{"text_format":"1","workbook":"xlsx","n_sheets":24,"sheets":["Start","Sheet2","Charts","Assets","Loans Composition","Loans NPL and coverage ratio","NACE composition","NPL ratio by NACE","IFRS9","Sovereigns","Liabilities","Own funds and RWA","Profitability","Moratoria","Public guarantee schemes","RE and Construction Exposures","Time series","RI database","Annex database","Data","Data Annex","Mapping","Reference Dates","List"],"not_rendered":{"charts":4,"images":4,"macros":1,"external_links":0,"defined_names":62,"comments":0,"pivot_tables":0},"unopened":[],"bounds":{"document_bytes":16777216,"sheet_cells":100000,"rows_first":2000,"rows_last":500,"rows_between":2000,"halvings":0,"cell_chars":16384,"cell_head_chars":4096},"cells_cut":0,"cells_raw":0,"read":"whole","date_system":"1900"}

{"sheet":"Start","index":0,"n_rows":26,"n_cols":20,"rows_kept":26,"cut":false,"hidden":false,"merged":[[7,1,7,2],[10,1,10,6],[3,4,3,6]]}
[" "]
[null,null,null,null,null,null,"Risk Dashboard Interactive Tool"]
[null,null,null,null,null,null,{"$f":"+'Reference Dates'!$C$4","v":"Q42020 Data"}]
[null,null,null,null,"Please enable macros to ensure the correct functioning of the tool"]
[null,null,null,null,null,null,null,null,null,null,null,null,null,null,"List showing in Dropdown menu","RI number","RI Code","Name for tables - change if needs to be different from dropdown names",null,"Tables name for dropdown"]
[null,null,null,null,null,null,null,null,null,null,null,null,null,null,"Tier 1 capital ratio",1,"SVC_1","Tier 1 capital ratio",null,"Assets"]
[null,"Choose a Risk Indicator:",null,null,"RI Number (*)",null,"RI Code",null,null,null,null,null,null,null,"Total capital ratio",2,"SVC_2","Total capital ratio",null,"Loans Composition"]
[null,"Tier 1 capital ratio",null,null,{"$f":"IFERROR(VLOOKUP(B8,$O$6:$Q$26,2,0),\"\")","v":1},null,{"$f":"IFERROR(VLOOKUP(B8,$O$6:$Q$26,3,0),\"\")","v":"SVC_1"},null,null,null,null,null,null,null,"CET1 ratio",3,"SVC_3","CET1 ratio",null,"Loans NPL and coverage ratio"]
[null,null,null,null,null,null,null,null,null,null,null,null,null,null,"CET1 ratio (fully loaded)",4,"SVC_29","CET1 ratio (fully loaded)",null,"NACE composition"]
[null,"Choose a set of Tables from the statistical Annex:",null,null,null,null,null,null,null,null,null,null,null,null,"Leverage ratio",5,"SVC_13","Leverage ratio (transitional definition of Tier 1)",null,"NPL ratio by NACE"]
[null,"Assets",null,null,null,null,null,null,{"$f":"IFERROR((LEFT($B$11,FIND(\" \",$B$11)-1)),$B$11)","v":"Assets"},null,null,null,null,null,"Leverage ratio (fully phased-in definition of Tier 1)",6,"SVC_12","Leverage ratio (fully phased-in definition of Tier 1)",null,"RE and Construction Exposures"]
[null,null,null,null,null,null,null,null,null,null,null,null,null,null,"Ratio of non-performing loans and advances (NPL ratio)",7,"AQT_3.2","Ratio of non-performing loans and advances (NPL ratio)",null,"IFRS9"]
[null,null,null,null,null,null,null,null,null,null,null,null,null,null,"Coverage ratio of non-performing loans and advances",8,"AQT_41.2","Coverage ratio of non-performing loans and advances",null,"Sovereigns"]
[null,null,null,null,null,null,null,null,null,null,null,null,null,null,"Forbearance ratio for loans and advances",9,"AQT_42.2","Forbearance ratio for loans and advances",null,"Liabilities"]
[null,"(*) In order of appearance in the Risk Dashboard",null,null,null,null,null,null,null,null,null,null,null,null,"Ratio of non-performing exposures (NPE ratio)",10,"AQT_3.1","Ratio of non-performing exposures (NPE ratio)",null,"Own funds and RWA"]
[null,null,null,null,null,null,null,null,null,null,null,null,null,null,"Return on equity",11,"PFT_21","Return on equity",null,"Profitability"]
[null,null,null,null,null,null,null,null,null,null,null,null,null,null,"Return on assets",12,"PFT_24","Return on assets",null,"Moratoria"]
[null,null,null,null,null,null,null,null,null,null,null,null,null,null,"Cost to income ratio",13,"PFT_23","Cost to income ratio",null,"Public guarantee schemes"]
[null,null,null,null,null,null,null,null,null,null,null,null,null,null,"Net interest income to total net operating income",14,"PFT_25","Net interest income to total net operating income"]
[null,null,null,null,null,null,null,null,null,null,null,null,null,null,"Net fee and commission income to total net operating income",15,"PFT_26","Net fee and commission income to total net operating income"]
[null,null,null,null,null,null,null,null,null,null,null,null,null,null,"Net trading income to total net operating income",16,"PFT_29","Net trading income to total net operating income"]
[null,null,null,null,null,null,null,null,null,null,null,null,null,null,"Net interest margin",17,"PFT_41","Net interest margin"]
[null,null,null,null,null,null,null,null,null,null,null,null,null,null,"Cost of Risk",18,"PFT_43","Cost of Risk"]
[null,null,null,null,null,null,null,null,null,null,null,null,null,null,"Loan-to-deposit ratio for households and non-financial corporations",19,"FND_32","Loan-to-deposit ratio for households and non-financial corporations"]
[null,null,null,null,null,null,null,null,null,null,null,null,null,null,"Asset encumbrance ratio",20,"FND_33","Asset encumbrance ratio"]
[null,null,null,null,null,null,null,null,null,null,null,null,null,null,"Liquidity coverage ratio (%)",21,"LIQ_17","Liquidity coverage ratio (%)"]

{"sheet":"Sheet2","index":1,"n_rows":0,"n_cols":0,"rows_kept":0,"cut":false,"hidden":true,"merged":[]}

{"sheet":"Charts","index":2,"n_rows":80,"n_cols":62,"rows_kept":80,"cut":false,"hidden":false,"merged":[[1,1,1,15],[2,1,2,15],[4,1,4,7],[4,9,4,15],[5,1,5,7],[5,9,5,15],[6,1,6,7],[6,9,6,15],[8,1,8,7],[8,9,8,15],[9,1,9,7],[9,9,9,15],[22,50,22,54],[10,1,10,7],[10,9,10,15],[13,1,13,3],[13,4,13,6],[13,7,13,9],[13,10,13,12],[13,13,13,15]]}
[]
[null,{"$f":"$AR$21","v":"Solvency"}]
[null,{"$f":"AM21&\" - \"&$AO$20","v":"1 - Tier 1 capital ratio"}]
[null,"Due to the automation of this file, charts axis are not scaled as in the booklet version. User may need to manually adjust it."]
[null,"Dispersion",null,null,null,null,null,null,null,"Numerator and denominator: trends"]
[]
[null,"5th and 95th pct, interquartile range and median. From Q1 2020 onwards, EU aggregates no longer include figures for UK banks and they include data for subsidiaries of UK banks in EU countries.",null,null,null,null,null,null,null,{"$f":"IF(AK21=\"PFT_43\",\"Total numerator and denominator. 2018Q1=100.\",\"Total numerator and denominator.\n\"&\nIF(NOT(ISNA($AS$25)), YEAR($AM$25), IF(NOT(ISNA($AS$26)), YEAR($AM$26), IF(NOT(ISNA($AS$27)), YEAR($AM$27), IF(NOT(ISNA($AS$28)), YEAR($AM$28), IF(NOT(ISNA(#REF!)), YEAR($AM$29),IF(NOT(ISNA($AS$30)), YEAR($AM$30),IF(NOT(ISNA($AS$31)), YEAR($AM$31),IF(NOT(ISNA($AS$32)), YEAR($AM$32),IF(NOT(ISNA($AS$33)), YEAR($AM$33),IF(NOT(ISNA($AS$34)), YEAR($AM$34),IF(NOT(ISNA($AS$35)), YEAR($AM$35),YEAR($AM$36))))))))))))\n&\"Q\"&\nIF(NOT(ISNA($AS$25)),ROUNDUP(MONTH($AM$25)/3,0), IF(NOT(ISNA($AS$26)),ROUNDUP(MONTH($AM$26)/3,0), IF(NOT(ISNA($AS$27)), ROUNDUP(MONTH($AM$27)/3,0), IF(NOT(ISNA($AS$28)), ROUNDUP(MONTH($AM$28)/3,0),NOT(ISNA($AS$29))))))\n&\" = 100.\")","v":"Total numerator and denominator.\n2018Q1 = 100."}]
[]
[null,{"$f":"\"Country dispersion (as of \"& YEAR(MAX(AM25:AM45))&\" Q\"&(ROUNDUP((MONTH(MAX(AM25:AM45))/3),0))&\")\"","v":"Country dispersion (as of 2020 Q4)"},null,null,null,null,null,null,null,"KRI by size class"]
[]
[null,"( * ) Not reported. Weighted Averages by country. From Q1 2020 onwards, EU aggregates no longer include figures for UK banks and they include data for subsidiaries of UK banks in EU countries.",null,null,null,null,null,null,null,{"$f":"\"Weighted average. Banks are classified in the size class according to the their average total assets between 2014Q4 and \"&YEAR(MAX(AM25:AM45))&\"Q\"&(ROUNDUP(MONTH(MAX(AM25:AM45))/3,0))&IF(AN48=\"Y\",\". Non-FINREP banks are assigned to the bucket of small banks.\",\". \")","v":"Weighted average. Banks are classified in the size class according to the their average total assets between 2014Q4 and 2020Q4. "}]
[]
[]
[null,"Period",null,null,"Weighted average",null,null,"25th percentile",null,null,"50th percentile",null,null,"75th percentile"]
[]
[null,null,{"$f":"AM25","v":"2018-03-01"},null,null,{"$f":"IF(AND(YEAR(C16)<2018,$AK$21=\"PFT_43\"),\"\",IFERROR(VLOOKUP($C16,$AM$25:$BB$42,8,FALSE), \"\"))","v":0.16012662806202599},null,null,{"$f":"IF(AND(YEAR(C16)<2018,$AK$21=\"PFT_43\"),\"\",IFERROR(VLOOKUP($C16,$AM$25:$BB$42,5,FALSE), \"\"))","v":0.14067908252588701},null,null,{"$f":"IF(AND(YEAR(C16)<2018,$AK$21=\"PFT_43\"),\"\",IFERROR(VLOOKUP($C16,$AM$25:$BB$42,6,FALSE), \"\"))","v":0.16390472943857301},null,null,{"$f":"IF(AND(YEAR(C16)<2018,$AK$21=\"PFT_43\"),\"\",IFERROR(VLOOKUP($C16,$AM$25:$BB$42,9,FALSE), \"\"))","v":0.21348256162625501}]
[null,null,{"$f":"AM26","v":"2018-06-01"},null,null,{"$f":"IF(AND(YEAR(C17)<2018,$AK$21=\"PFT_43\"),\"\",IFERROR(VLOOKUP($C17,$AM$25:$BB$42,8,FALSE), \"\"))","v":0.16027686716690201},null,null,{"$f":"IF(AND(YEAR(C17)<2018,$AK$21=\"PFT_43\"),\"\",IFERROR(VLOOKUP($C17,$AM$25:$BB$42,5,FALSE), \"\"))","v":0.140671190801122},null,null,{"$f":"IF(AND(YEAR(C17)<2018,$AK$21=\"PFT_43\"),\"\",IFERROR(VLOOKUP($C17,$AM$25:$BB$42,6,FALSE), \"\"))","v":0.16719434036671799},null,null,{"$f":"IF(AND(YEAR(C17)<2018,$AK$21=\"PFT_43\"),\"\",IFERROR(VLOOKUP($C17,$AM$25:$BB$42,9,FALSE), \"\"))","v":0.216885200171581}]
[null,null,{"$f":"AM27","v":"2018-09-01"},null,null,0.16284816765090701,null,null,0.13883715549960499,null,null,0.16916771875945999,null,null,0.21750338865154401]
[null,null,{"$f":"AM28","v":"2018-12-01"},null,null,0.163173756925026,null,null,0.14405161746482201,null,null,0.166646142909124,null,null,0.203164733502637]
[null,null,"2019-03-01",null,null,0.16137718130465201,null,null,0.14504248776624601,null,null,0.16594857559747,null,null,0.20018388722929401,null,null,null,null,null,null,null,null,null,null,null,null,null,null,null,null,null,null,null,null,null,null,null,null,"dashboard name",{"$f":"VLOOKUP($AM$21*1,List!$A$3:$M$23,8,FALSE)","v":"Tier 1 capital ratio"}]
[null,null,"2019-06-01",null,null,0.161722278401039,null,null,0.14642572155844,null,null,0.16523890799221599,null,null,0.197507707728245,null,null,null,null,null,null,null,null,null,null,null,null,null,null,null,null,null,null,null,null,null,{"$f":"VLOOKUP($AM$21*1,List!$A$3:$F$23,6,0)","v":"SVC_1"},null,{"$f":"Start!E8","v":1},{"$f":"VLOOKUP($AM$21*1,List!$A$3:$F$23,4,0)","v":1},{"$f":"VLOOKUP($AM$21*1,List!$A$3:$E$23,5,0)","v":"Tier 1 capital ratio"},{"$f":"VLOOKUP($AM$21*1,List!$A$3:$K$23,11,FALSE)","v":0},null,{"$f":"VLOOKUP($AM$21*1,List!$A$3:$M$23,13,FALSE)","v":"Solvency"}]
[null,null,"2019-09-01",null,null,0.161367738908512,null,null,0.147537046029242,null,null,0.16381606442636601,null,null,0.19459125426686899,null,null,null,null,null,null,null,null,null,null,null,null,null,null,null,null,null,null,null,null,null,null,null,null,null,null,null,null,null,null,"WA"]
[null,null,"2019-12-01",null,null,{"$f":"IF(AND(YEAR(C23)<2018,$AK$21=\"PFT_43\"),\"\",IFERROR(VLOOKUP($C23,$AM$25:$BB$42,8,FALSE), \"\"))","v":0.16785345589390099},null,null,0.15200271404278301,null,null,0.17172754325942699,null,null,0.20413545445751199,null,null,null,null,null,null,null,null,null,null,null,null,null,null,null,null,null,null,null,null,null,null,null,null,null,null,5,6,7,8,9,10,11,14,15,"Dispersion chart",null,null,null,null,12,13,null,null,null,null,16]
[null,null,"2020-03-01",null,null,0.15819464531792801,null,null,0.142713400364159,null,null,0.16288169400806099,null,null,0.198970388598324,null,null,null,null,null,null,null,null,null,null,null,null,null,null,null,null,null,null,null,null,null,null,{"$f":"+'Reference Dates'!$C$6","v":"2020-12-31"},null,null,null,"5^ pct","First quartile","Median","Average","All banks","Third quartile","95^ pct","Small","Medium","Q1","Q1 Neg","Q2","Q3","5pct","95 pct","Numeratir","Denominator",{"$f":"VLOOKUP($AN$21,List!$D:$L,6,0)","v":"Tier 1 capital"},{"$f":"VLOOKUP($AN$21,List!$D:$L,7,0)","v":"Total risk exposure amount"},"Quarter","Large"]
[null,null,"2020-06-01",null,null,0.16305946162686699,null,null,0.14799379411233601,null,null,0.169614698626494,null,null,0.20110496922697599,null,null,null,null,null,null,null,null,null,null,null,null,null,null,null,null,null,null,null,null,null,1,{"$f":"(+AN25)*1","v":201803},{"$f":"+'Reference Dates'!$C$7","v":"2018-03-01"},{"$f":"+IF(MONTH(AM25)=12,YEAR(AM25)&MONTH(AM25),YEAR(AM25)&0&MONTH(AM25))","v":"201803"},{"$f":"CONCATENATE($AO$21,AN25)","v":"Tier 1 capital ratio201803"},{"$f":"VLOOKUP($AO25,Data!$A$1:$P$688,Charts!AP$23,FALSE)","v":0.120035807188323},{"$f":"VLOOKUP($AO25,Data!$A$1:$P$688,Charts!AQ$23,FALSE)","v":0.14067908252588701},{"$f":"VLOOKUP($AO25,Data!$A$1:$P$688,Charts!AR$23,FALSE)","v":0.16390472943857301},{"$f":"VLOOKUP($AO25,Data!$A$1:$P$688,Charts!AS$23,FALSE)","v":0.214013711166649},{"$f":"VLOOKUP($AO25,Data!$A$1:$P$688,Charts!AT$23,FALSE)","v":0.16012662806202599},{"$f":"VLOOKUP($AO25,Data!$A$1:$P$688,Charts!AU$23,FALSE)","v":0.21348256162625501},{"$f":"VLOOKUP($AO25,Data!$A$1:$P$688,Charts!AV$23,FALSE)","v":0.44392567004936601},{"$f":"VLOOKUP($AO25,Data!$A$1:$P$688,Charts!AW$23,FALSE)","v":0.160858709879904},{"$f":"VLOOKUP($AO25,Data!$A$1:$P$688,Charts!AX$23,FALSE)","v":0.17130819983005399},{"$f":"IF(AQ25<0,0,AQ25)","v":0.14067908252588701},{"$f":"IF(AQ25<0,AQ25,0)","v":0},{"$f":"AR25-AY25","v":2.3225646912685999E-2},{"$f":"AU25-AR25","v":4.9577832187681997E-2},{"$f":"AQ25-AP25","v":2.0643275337564007E-2},{"$f":"AV25-AU25","v":0.230443108423111},{"$f":"VLOOKUP($AO25,Data!$A$1:$P$688,BD$23,FALSE)","v":1240566227435.8799},{"$f":"VLOOKUP($AO25,Data!$A$1:$P$688,BE$23,FALSE)","v":7991743373679.1104},{"$f":"IFERROR(IF($AP$21=0,BE25/BE$25*100,(100*(BE25*12/$BI25)/BE$25)),IFERROR(IF($AP$21=0, BE25/BE$26*100, 100*(BE25*12/$BI25)/BE$26), IFERROR(IF($AP$21=0, BE25/BE$27*100, 100*(BE25*12/$BI25)/BE$27),IFERROR(IF($AP$21=0, BE25/BE$28*100, 100*(BE25*12/$BI25)/BE$28), IFERROR(IF($AP$21=0, BE25/BE$29*100, 100*(BE25*12/$BI25)/BE$29),IFERROR(IF($AP$21=0, BE25/BE$30*100, 100*(BE25*12/$BI25)/#REF!),IFERROR(IF($AP$21=0, BE25/BE$31*100, 100*(BE25*12/$BI25)/BE$31),IFERROR(IF($AP$21=0, BE25/BE$31*100, 100*(BE25*12/$BI25)/BE$31),IFERROR(IF($AP$21=0, BE25/BE$32*100, 100*(BE25*12/$BI25)/BE$32),IFERROR(IF($AP$21=0, BE25/BE$33*100, 100*(BE25*12/$BI25)/BE$33),IF($AP$21=0, BE25/BE$34*100,  100*(BE25*12/$BI25)/BE$34)))))))))))","v":100},{"$f":"IFERROR(IF($AP$21=0,BF25/BF$25*100,(100*(BF25*12/$BI25)/BF$25)),IFERROR(IF($AP$21=0, BF25/BF$26*100, 100*(BF25*12/$BI25)/BF$26), IFERROR(IF($AP$21=0, BF25/BF$27*100, 100*(BF25*12/$BI25)/BF$27),IFERROR(IF($AP$21=0, BF25/BF$28*100, 100*(BF25*12/$BI25)/BF$28), IFERROR(IF($AP$21=0, BF25/BF$29*100, 100*(BF25*12/$BI25)/BF$29),IFERROR(IF($AP$21=0, BF25/BF$30*100, 100*(BF25*12/$BI25)/#REF!),IFERROR(IF($AP$21=0, BF25/BF$31*100, 100*(BF25*12/$BI25)/BF$31),IFERROR(IF($AP$21=0, BF25/BF$31*100, 100*(BF25*12/$BI25)/BF$31),IFERROR(IF($AP$21=0, BF25/BF$32*100, 100*(BF25*12/$BI25)/BF$32),IFERROR(IF($AP$21=0, BF25/BF$33*100, 100*(BF25*12/$BI25)/BF$33),IF($AP$21=0, BF25/BF$34*100,  100*(BF25*12/$BI25)/BF$34)))))))))))","v":100},{"$f":"MONTH(AM25)","v":3},{"$f":"VLOOKUP($AO25,Data!$A$1:$P$688,Charts!BJ$23,FALSE)","v":0.157773293328208}]
[null,null,{"$f":"AM35","v":"2020-09-01"},null,null,0.167299354319635,null,null,0.152903589854054,null,null,0.173303983034827,null,null,0.205226646797635,null,null,null,null,null,null,null,null,null,null,null,null,null,null,null,null,null,null,null,null,null,null,201806,{"$f":"IF(AM25<$AL$24,+DATE(YEAR(AM25),MONTH(AM25)+3,DAY(AM25)),\"\")","v":"2018-06-01"},{"$f":"+IF(MONTH(AM26)=12,YEAR(AM26)&MONTH(AM26),YEAR(AM26)&0&MONTH(AM26))","v":"201806"},"Tier 1 capital ratio201806",{"$f":"VLOOKUP($AO26,Data!$A$1:$P$688,Charts!AP$23,FALSE)","v":0.11927980645239999},{"$f":"VLOOKUP($AO26,Data!$A$1:$P$688,Charts!AQ$23,FALSE)","v":0.140671190801122},{"$f":"VLOOKUP($AO26,Data!$A$1:$P$688,Charts!AR$23,FALSE)","v":0.16719434036671799},{"$f":"VLOOKUP($AO26,Data!$A$1:$P$688,Charts!AS$23,FALSE)","v":0.21354467903775301},{"$f":"VLOOKUP($AO26,Data!$A$1:$P$688,Charts!AT$23,FALSE)","v":0.16027686716690201},{"$f":"VLOOKUP($AO26,Data!$A$1:$P$688,Charts!AU$23,FALSE)","v":0.216885200171581},{"$f":"VLOOKUP($AO26,Data!$A$1:$P$688,Charts!AV$23,FALSE)","v":0.44755519753554701},{"$f":"VLOOKUP($AO26,Data!$A$1:$P$688,Charts!AW$23,FALSE)","v":0.16743451331258699},{"$f":"VLOOKUP($AO26,Data!$A$1:$P$688,Charts!AX$23,FALSE)","v":0.17204962052016001},{"$f":"IF(AQ26<0,0,AQ26)","v":0.140671190801122},{"$f":"IF(AQ26<0,AQ26,0)","v":0},{"$f":"AR26-AY26","v":2.6523149565595983E-2},{"$f":"AU26-AR26","v":4.9690859804863013E-2},{"$f":"AQ26-AP26","v":2.1391384348722009E-2},{"$f":"AV26-AU26","v":0.23066999736396601},{"$f":"VLOOKUP($AO26,Data!$A$1:$P$688,BD$23,FALSE)","v":1247457347643.3401},{"$f":"VLOOKUP($AO26,Data!$A$1:$P$688,BE$23,FALSE)","v":8057460127133.4199},{"$f":"IFERROR(IF($AP$21=0,BE26/BE$25*100,(100*(BE26*12/$BI26)/BE$25)),IFERROR(IF($AP$21=0, BE26/BE$26*100, 100*(BE26*12/$BI26)/BE$26), IFERROR(IF($AP$21=0, BE26/BE$27*100, 100*(BE26*12/$BI26)/BE$27),IFERROR(IF($AP$21=0, BE26/BE$28*100, 100*(BE26*12/$BI26)/BE$28), IFERROR(IF($AP$21=0, BE26/BE$29*100, 100*(BE26*12/$BI26)/BE$29),IFERROR(IF($AP$21=0, BE26/BE$30*100, 100*(BE26*12/$BI26)/#REF!),IFERROR(IF($AP$21=0, BE26/BE$31*100, 100*(BE26*12/$BI26)/BE$31),IFERROR(IF($AP$21=0, BE26/BE$31*100, 100*(BE26*12/$BI26)/BE$31),IFERROR(IF($AP$21=0, BE26/BE$32*100, 100*(BE26*12/$BI26)/BE$32),IFERROR(IF($AP$21=0, BE26/BE$33*100, 100*(BE26*12/$BI26)/BE$33),IF($AP$21=0, BE26/BE$34*100,  100*(BE26*12/$BI26)/BE$34)))))))))))","v":100.55548184813183},{"$f":"IFERROR(IF($AP$21=0,BF26/BF$25*100,(100*(BF26*12/$BI26)/BF$25)),IFERROR(IF($AP$21=0, BF26/BF$26*100, 100*(BF26*12/$BI26)/BF$26), IFERROR(IF($AP$21=0, BF26/BF$27*100, 100*(BF26*12/$BI26)/BF$27),IFERROR(IF($AP$21=0, BF26/BF$28*100, 100*(BF26*12/$BI26)/BF$28), IFERROR(IF($AP$21=0, BF26/BF$29*100, 100*(BF26*12/$BI26)/BF$29),IFERROR(IF($AP$21=0, BF26/BF$30*100, 100*(BF26*12/$BI26)/#REF!),IFERROR(IF($AP$21=0, BF26/BF$31*100, 100*(BF26*12/$BI26)/BF$31),IFERROR(IF($AP$21=0, BF26/BF$31*100, 100*(BF26*12/$BI26)/BF$31),IFERROR(IF($AP$21=0, BF26/BF$32*100, 100*(BF26*12/$BI26)/BF$32),IFERROR(IF($AP$21=0, BF26/BF$33*100, 100*(BF26*12/$BI26)/BF$33),IF($AP$21=0, BF26/BF$34*100,  100*(BF26*12/$BI26)/BF$34)))))))))))","v":100.82230810452133},6,{"$f":"VLOOKUP($AO26,Data!$A$1:$P$688,Charts!BJ$23,FALSE)","v":0.15703927530075801}]
[null,null,{"$f":"AM36","v":"2020-12-01"},null,null,0.171802273388453,null,null,0.15724281974839499,null,null,0.17975159782685399,null,null,0.212919731956493,null,null,null,null,null,null,null,null,null,null,null,null,null,null,null,null,null,null,null,null,null,null,201809,{"$f":"IF(AM26<$AL$24,+DATE(YEAR(AM26),MONTH(AM26)+3,DAY(AM26)),\"\")","v":"2018-09-01"},"201809","Tier 1 capital ratio201809",{"$f":"VLOOKUP($AO27,Data!$A$1:$P$688,Charts!AP$23,FALSE)","v":0.118977736725962},{"$f":"VLOOKUP($AO27,Data!$A$1:$P$688,Charts!AQ$23,FALSE)","v":0.13883715549960499},{"$f":"VLOOKUP($AO27,Data!$A$1:$P$688,Charts!AR$23,FALSE)","v":0.16916771875945999},{"$f":"VLOOKUP($AO27,Data!$A$1:$P$688,Charts!AS$23,FALSE)","v":0.21759511847430299},{"$f":"VLOOKUP($AO27,Data!$A$1:$P$688,Charts!AT$23,FALSE)","v":0.16284816765090701},{"$f":"VLOOKUP($AO27,Data!$A$1:$P$688,Charts!AU$23,FALSE)","v":0.21750338865154401},{"$f":"VLOOKUP($AO27,Data!$A$1:$P$688,Charts!AV$23,FALSE)","v":0.44758782065328001},{"$f":"VLOOKUP($AO27,Data!$A$1:$P$688,Charts!AW$23,FALSE)","v":0.17632330829161499},{"$f":"VLOOKUP($AO27,Data!$A$1:$P$688,Charts!AX$23,FALSE)","v":0.17279812244095299},0.13883715549960499,0,3.0330563259855003E-2,4.8335669892084016E-2,1.9859418773642987E-2,0.23008443200173601,{"$f":"VLOOKUP($AO27,Data!$A$1:$P$688,BD$23,FALSE)","v":1248377165901.24},{"$f":"VLOOKUP($AO27,Data!$A$1:$P$688,BE$23,FALSE)","v":8010195758213.3896},{"$f":"IFERROR(IF($AP$21=0,BE27/BE$25*100,(100*(BE27*12/$BI27)/BE$25)),IFERROR(IF($AP$21=0, BE27/BE$26*100, 100*(BE27*12/$BI27)/BE$26), IFERROR(IF($AP$21=0, BE27/BE$27*100, 100*(BE27*12/$BI27)/BE$27),IFERROR(IF($AP$21=0, BE27/BE$28*100, 100*(BE27*12/$BI27)/BE$28), IFERROR(IF($AP$21=0, BE27/BE$29*100, 100*(BE27*12/$BI27)/BE$29),IFERROR(IF($AP$21=0, BE27/BE$30*100, 100*(BE27*12/$BI27)/#REF!),IFERROR(IF($AP$21=0, BE27/BE$31*100, 100*(BE27*12/$BI27)/BE$31),IFERROR(IF($AP$21=0, BE27/BE$31*100, 100*(BE27*12/$BI27)/BE$31),IFERROR(IF($AP$21=0, BE27/BE$32*100, 100*(BE27*12/$BI27)/BE$32),IFERROR(IF($AP$21=0, BE27/BE$33*100, 100*(BE27*12/$BI27)/BE$33),IF($AP$21=0, BE27/BE$34*100,  100*(BE27*12/$BI27)/BE$34)))))))))))","v":100.62962688267795},{"$f":"IFERROR(IF($AP$21=0,BF27/BF$25*100,(100*(BF27*12/$BI27)/BF$25)),IFERROR(IF($AP$21=0, BF27/BF$26*100, 100*(BF27*12/$BI27)/BF$26), IFERROR(IF($AP$21=0, BF27/BF$27*100, 100*(BF27*12/$BI27)/BF$27),IFERROR(IF($AP$21=0, BF27/BF$28*100, 100*(BF27*12/$BI27)/BF$28), IFERROR(IF($AP$21=0, BF27/BF$29*100, 100*(BF27*12/$BI27)/BF$29),IFERROR(IF($AP$21=0, BF27/BF$30*100, 100*(BF27*12/$BI27)/#REF!),IFERROR(IF($AP$21=0, BF27/BF$31*100, 100*(BF27*12/$BI27)/BF$31),IFERROR(IF($AP$21=0, BF27/BF$31*100, 100*(BF27*12/$BI27)/BF$31),IFERROR(IF($AP$21=0, BF27/BF$32*100, 100*(BF27*12/$BI27)/BF$32),IFERROR(IF($AP$21=0, BF27/BF$33*100, 100*(BF27*12/$BI27)/BF$33),IF($AP$21=0, BF27/BF$34*100,  100*(BF27*12/$BI27)/BF$34)))))))))))","v":100.23089310644097},9,{"$f":"VLOOKUP($AO27,Data!$A$1:$P$688,Charts!BJ$23,FALSE)","v":0.159253654938564}]
[null,{"$f":"IF($AK$21=\"PFT_43\",\"Data for Cost of Risk are shown here as a positive value, even though they are commonly expenses.\",\"\")","v":""},null,null,null,null,null,null,null,null,null,null,null,null,null,null,null,null,null,null,null,null,null,null,null,null,null,null,null,null,null,null,null,null,null,null,null,201812,"2018-12-01","201812","Tier 1 capital ratio201812",{"$f":"VLOOKUP($AO28,Data!$A$1:$P$688,Charts!AP$23,FALSE)","v":0.121773164240814},{"$f":"VLOOKUP($AO28,Data!$A$1:$P$688,Charts!AQ$23,FALSE)","v":0.14405161746482201},{"$f":"VLOOKUP($AO28,Data!$A$1:$P$688,Charts!AR$23,FALSE)","v":0.166646142909124},{"$f":"VLOOKUP($AO28,Data!$A$1:$P$688,Charts!AS$23,FALSE)","v":0.21998498365920699},{"$f":"VLOOKUP($AO28,Data!$A$1:$P$688,Charts!AT$23,FALSE)","v":0.163173756925026},{"$f":"VLOOKUP($AO28,Data!$A$1:$P$688,Charts!AU$23,FALSE)","v":0.203164733502637},{"$f":"VLOOKUP($AO28,Data!$A$1:$P$688,Charts!AV$23,FALSE)","v":0.49126708956414999},{"$f":"VLOOKUP($AO28,Data!$A$1:$P$688,Charts!AW$23,FALSE)","v":0.18635309163863201},{"$f":"VLOOKUP($AO28,Data!$A$1:$P$688,Charts!AX$23,FALSE)","v":0.17537989094586001},0.14405161746482201,0,2.2594525444301988E-2,3.6518590593513006E-2,2.227845322400801E-2,0.28810235606151302,{"$f":"VLOOKUP($AO28,Data!$A$1:$P$688,BD$23,FALSE)","v":1267885036419.8201},{"$f":"VLOOKUP($AO28,Data!$A$1:$P$688,BE$23,FALSE)","v":8136831844231.4404},{"$f":"IFERROR(IF($AP$21=0,BE28/BE$25*100,(100*(BE28*12/$BI28)/BE$25)),IFERROR(IF($AP$21=0, BE28/BE$26*100, 100*(BE28*12/$BI28)/BE$26), IFERROR(IF($AP$21=0, BE28/BE$27*100, 100*(BE28*12/$BI28)/BE$27),IFERROR(IF($AP$21=0, BE28/BE$28*100, 100*(BE28*12/$BI28)/BE$28), IFERROR(IF($AP$21=0, BE28/BE$29*100, 100*(BE28*12/$BI28)/BE$29),IFERROR(IF($AP$21=0, BE28/BE$30*100, 100*(BE28*12/$BI28)/#REF!),IFERROR(IF($AP$21=0, BE28/BE$31*100, 100*(BE28*12/$BI28)/BE$31),IFERROR(IF($AP$21=0, BE28/BE$31*100, 100*(BE28*12/$BI28)/BE$31),IFERROR(IF($AP$21=0, BE28/BE$32*100, 100*(BE28*12/$BI28)/BE$32),IFERROR(IF($AP$21=0, BE28/BE$33*100, 100*(BE28*12/$BI28)/BE$33),IF($AP$21=0, BE28/BE$34*100,  100*(BE28*12/$BI28)/BE$34)))))))))))","v":102.20212418972628},{"$f":"IFERROR(IF($AP$21=0,BF28/BF$25*100,(100*(BF28*12/$BI28)/BF$25)),IFERROR(IF($AP$21=0, BF28/BF$26*100, 100*(BF28*12/$BI28)/BF$26), IFERROR(IF($AP$21=0, BF28/BF$27*100, 100*(BF28*12/$BI28)/BF$27),IFERROR(IF($AP$21=0, BF28/BF$28*100, 100*(BF28*12/$BI28)/BF$28), IFERROR(IF($AP$21=0, BF28/BF$29*100, 100*(BF28*12/$BI28)/BF$29),IFERROR(IF($AP$21=0, BF28/BF$30*100, 100*(BF28*12/$BI28)/#REF!),IFERROR(IF($AP$21=0, BF28/BF$31*100, 100*(BF28*12/$BI28)/BF$31),IFERROR(IF($AP$21=0, BF28/BF$31*100, 100*(BF28*12/$BI28)/BF$31),IFERROR(IF($AP$21=0, BF28/BF$32*100, 100*(BF28*12/$BI28)/BF$32),IFERROR(IF($AP$21=0, BF28/BF$33*100, 100*(BF28*12/$BI28)/BF$33),IF($AP$21=0, BF28/BF$34*100,  100*(BF28*12/$BI28)/BF$34)))))))))))","v":101.81547959898438},12,{"$f":"VLOOKUP($AO28,Data!$A$1:$P$688,Charts!BJ$23,FALSE)","v":0.158197381359343}]
[null,null,null,null,null,null,null,null,null,null,null,null,null,null,null,null,null,null,null,null,null,null,null,null,null,null,null,null,null,null,null,null,null,null,null,null,null,201903,"2019-03-01","201903","Tier 1 capital ratio201903",{"$f":"VLOOKUP($AO29,Data!$A$1:$P$688,Charts!AP$23,FALSE)","v":0.125883194640589},{"$f":"VLOOKUP($AO29,Data!$A$1:$P$688,Charts!AQ$23,FALSE)","v":0.14504248776624601},{"$f":"VLOOKUP($AO29,Data!$A$1:$P$688,Charts!AR$23,FALSE)","v":0.16594857559747},{"$f":"VLOOKUP($AO29,Data!$A$1:$P$688,Charts!AS$23,FALSE)","v":0.202580479303861},{"$f":"VLOOKUP($AO29,Data!$A$1:$P$688,Charts!AT$23,FALSE)","v":0.16137718130465201},{"$f":"VLOOKUP($AO29,Data!$A$1:$P$688,Charts!AU$23,FALSE)","v":0.20018388722929401},{"$f":"VLOOKUP($AO29,Data!$A$1:$P$688,Charts!AV$23,FALSE)","v":0.38187760558619699},{"$f":"VLOOKUP($AO29,Data!$A$1:$P$688,Charts!AW$23,FALSE)","v":0.17941638375845101},{"$f":"VLOOKUP($AO29,Data!$A$1:$P$688,Charts!AX$23,FALSE)","v":0.169010577016459},{"$f":"IF(AQ29<0,0,AQ29)","v":0.14504248776624601},{"$f":"IF(AQ29<0,AQ29,0)","v":0},{"$f":"AR29-AY29","v":2.0906087831223996E-2},{"$f":"AU29-AR29","v":3.4235311631824E-2},{"$f":"AQ29-AP29","v":1.9159293125657006E-2},{"$f":"AV29-AU29","v":0.18169371835690298},{"$f":"VLOOKUP($AO29,Data!$A$1:$P$688,BD$23,FALSE)","v":1293191783951.3601},{"$f":"VLOOKUP($AO29,Data!$A$1:$P$688,BE$23,FALSE)","v":8329087152823.8398},{"$f":"IFERROR(IF($AP$21=0,BE29/BE$25*100,(100*(BE29*12/$BI29)/BE$25)),IFERROR(IF($AP$21=0, BE29/BE$26*100, 100*(BE29*12/$BI29)/BE$26), IFERROR(IF($AP$21=0, BE29/BE$27*100, 100*(BE29*12/$BI29)/BE$27),IFERROR(IF($AP$21=0, BE29/BE$28*100, 100*(BE29*12/$BI29)/BE$28), IFERROR(IF($AP$21=0, BE29/BE$29*100, 100*(BE29*12/$BI29)/BE$29),IFERROR(IF($AP$21=0, BE29/BE$30*100, 100*(BE29*12/$BI29)/#REF!),IFERROR(IF($AP$21=0, BE29/BE$31*100, 100*(BE29*12/$BI29)/BE$31),IFERROR(IF($AP$21=0, BE29/BE$31*100, 100*(BE29*12/$BI29)/BE$31),IFERROR(IF($AP$21=0, BE29/BE$32*100, 100*(BE29*12/$BI29)/BE$32),IFERROR(IF($AP$21=0, BE29/BE$33*100, 100*(BE29*12/$BI29)/BE$33),IF($AP$21=0, BE29/BE$34*100,  100*(BE29*12/$BI29)/BE$34)))))))))))","v":104.24205942025777},{"$f":"IFERROR(IF($AP$21=0,BF29/BF$25*100,(100*(BF29*12/$BI29)/BF$25)),IFERROR(IF($AP$21=0, BF29/BF$26*100, 100*(BF29*12/$BI29)/BF$26), IFERROR(IF($AP$21=0, BF29/BF$27*100, 100*(BF29*12/$BI29)/BF$27),IFERROR(IF($AP$21=0, BF29/BF$28*100, 100*(BF29*12/$BI29)/BF$28), IFERROR(IF($AP$21=0, BF29/BF$29*100, 100*(BF29*12/$BI29)/BF$29),IFERROR(IF($AP$21=0, BF29/BF$30*100, 100*(BF29*12/$BI29)/#REF!),IFERROR(IF($AP$21=0, BF29/BF$31*100, 100*(BF29*12/$BI29)/BF$31),IFERROR(IF($AP$21=0, BF29/BF$31*100, 100*(BF29*12/$BI29)/BF$31),IFERROR(IF($AP$21=0, BF29/BF$32*100, 100*(BF29*12/$BI29)/BF$32),IFERROR(IF($AP$21=0, BF29/BF$33*100, 100*(BF29*12/$BI29)/BF$33),IF($AP$21=0, BF29/BF$34*100,  100*(BF29*12/$BI29)/BF$34)))))))))))","v":104.22115380050585},3,{"$f":"VLOOKUP($AO29,Data!$A$1:$P$688,Charts!BJ$23,FALSE)","v":0.157713646041514}]
[null,null,null,null,null,null,null,null,null,null,null,null,null,null,null,null,null,null,null,null,null,null,null,null,null,null,null,null,null,null,null,null,null,null,null,null,null,201906,"2019-06-01","201906","Tier 1 capital ratio201906",{"$f":"VLOOKUP($AO30,Data!$A$1:$P$688,Charts!AP$23,FALSE)","v":0.12868530662219299},{"$f":"VLOOKUP($AO30,Data!$A$1:$P$688,Charts!AQ$23,FALSE)","v":0.14642572155844},{"$f":"VLOOKUP($AO30,Data!$A$1:$P$688,Charts!AR$23,FALSE)","v":0.16523890799221599},{"$f":"VLOOKUP($AO30,Data!$A$1:$P$688,Charts!AS$23,FALSE)","v":0.20292407128859999},{"$f":"VLOOKUP($AO30,Data!$A$1:$P$688,Charts!AT$23,FALSE)","v":0.161722278401039},{"$f":"VLOOKUP($AO30,Data!$A$1:$P$688,Charts!AU$23,FALSE)","v":0.197507707728245},{"$f":"VLOOKUP($AO30,Data!$A$1:$P$688,Charts!AV$23,FALSE)","v":0.43616732216668902},{"$f":"VLOOKUP($AO30,Data!$A$1:$P$688,Charts!AW$23,FALSE)","v":0.18124193434005501},{"$f":"VLOOKUP($AO30,Data!$A$1:$P$688,Charts!AX$23,FALSE)","v":0.170188847076719},0.14642572155844,0,1.8813186433775997E-2,3.2268799736029002E-2,1.7740414936247006E-2,0.23865961443844402,{"$f":"VLOOKUP($AO30,Data!$A$1:$P$688,BD$23,FALSE)","v":1305856392382.01},{"$f":"VLOOKUP($AO30,Data!$A$1:$P$688,BE$23,FALSE)","v":8367777415843.4102},{"$f":"IFERROR(IF($AP$21=0,BE30/BE$25*100,(100*(BE30*12/$BI30)/BE$25)),IFERROR(IF($AP$21=0, BE30/BE$26*100, 100*(BE30*12/$BI30)/BE$26), IFERROR(IF($AP$21=0, BE30/BE$27*100, 100*(BE30*12/$BI30)/BE$27),IFERROR(IF($AP$21=0, BE30/BE$28*100, 100*(BE30*12/$BI30)/BE$28), IFERROR(IF($AP$21=0, BE30/BE$29*100, 100*(BE30*12/$BI30)/BE$29),IFERROR(IF($AP$21=0, BE30/BE$30*100, 100*(BE30*12/$BI30)/#REF!),IFERROR(IF($AP$21=0, BE30/BE$31*100, 100*(BE30*12/$BI30)/BE$31),IFERROR(IF($AP$21=0, BE30/BE$31*100, 100*(BE30*12/$BI30)/BE$31),IFERROR(IF($AP$21=0, BE30/BE$32*100, 100*(BE30*12/$BI30)/BE$32),IFERROR(IF($AP$21=0, BE30/BE$33*100, 100*(BE30*12/$BI30)/BE$33),IF($AP$21=0, BE30/BE$34*100,  100*(BE30*12/$BI30)/BE$34)))))))))))","v":105.26293264335256},{"$f":"IFERROR(IF($AP$21=0,BF30/BF$25*100,(100*(BF30*12/$BI30)/BF$25)),IFERROR(IF($AP$21=0, BF30/BF$26*100, 100*(BF30*12/$BI30)/BF$26), IFERROR(IF($AP$21=0, BF30/BF$27*100, 100*(BF30*12/$BI30)/BF$27),IFERROR(IF($AP$21=0, BF30/BF$28*100, 100*(BF30*12/$BI30)/BF$28), IFERROR(IF($AP$21=0, BF30/BF$29*100, 100*(BF30*12/$BI30)/BF$29),IFERROR(IF($AP$21=0, BF30/BF$30*100, 100*(BF30*12/$BI30)/#REF!),IFERROR(IF($AP$21=0, BF30/BF$31*100, 100*(BF30*12/$BI30)/BF$31),IFERROR(IF($AP$21=0, BF30/BF$31*100, 100*(BF30*12/$BI30)/BF$31),IFERROR(IF($AP$21=0, BF30/BF$32*100, 100*(BF30*12/$BI30)/BF$32),IFERROR(IF($AP$21=0, BF30/BF$33*100, 100*(BF30*12/$BI30)/BF$33),IF($AP$21=0, BF30/BF$34*100,  100*(BF30*12/$BI30)/BF$34)))))))))))","v":104.70528174619285},6,{"$f":"VLOOKUP($AO30,Data!$A$1:$P$688,Charts!BJ$23,FALSE)","v":0.15778097352958501}]
[null,null,null,null,null,null,null,null,null,null,null,null,null,null,null,null,null,null,null,null,null,null,null,null,null,null,null,null,null,null,null,null,null,null,null,null,null,201909,"2019-09-01","201909",{"$f":"CONCATENATE($AO$21,AN31)","v":"Tier 1 capital ratio201909"},{"$f":"VLOOKUP($AO31,Data!$A$1:$P$688,Charts!AP$23,FALSE)","v":0.13011583906929899},{"$f":"VLOOKUP($AO31,Data!$A$1:$P$688,Charts!AQ$23,FALSE)","v":0.147537046029242},{"$f":"VLOOKUP($AO31,Data!$A$1:$P$688,Charts!AR$23,FALSE)","v":0.16381606442636601},{"$f":"VLOOKUP($AO31,Data!$A$1:$P$688,Charts!AS$23,FALSE)","v":0.20114958038193201},{"$f":"VLOOKUP($AO31,Data!$A$1:$P$688,Charts!AT$23,FALSE)","v":0.161367738908512},{"$f":"VLOOKUP($AO31,Data!$A$1:$P$688,Charts!AU$23,FALSE)","v":0.19459125426686899},{"$f":"VLOOKUP($AO31,Data!$A$1:$P$688,Charts!AV$23,FALSE)","v":0.41221952484074098},{"$f":"VLOOKUP($AO31,Data!$A$1:$P$688,Charts!AW$23,FALSE)","v":0.177731065143199},{"$f":"VLOOKUP($AO31,Data!$A$1:$P$688,Charts!AX$23,FALSE)","v":0.16958073970630799},{"$f":"IF(AQ31<0,0,AQ31)","v":0.147537046029242},{"$f":"IF(AQ31<0,AQ31,0)","v":0},{"$f":"AR31-AY31","v":1.6279018397124007E-2},{"$f":"AU31-AR31","v":3.0775189840502981E-2},{"$f":"AQ31-AP31","v":1.7421206959943009E-2},{"$f":"AV31-AU31","v":0.21762827057387199},{"$f":"VLOOKUP($AO31,Data!$A$1:$P$688,BD$23,FALSE)","v":1319546448843.04},{"$f":"VLOOKUP($AO31,Data!$A$1:$P$688,BE$23,FALSE)","v":8447097624298.29},{"$f":"IFERROR(IF($AP$21=0,BE31/BE$25*100,(100*(BE31*12/$BI31)/BE$25)),IFERROR(IF($AP$21=0, BE31/BE$26*100, 100*(BE31*12/$BI31)/BE$26), IFERROR(IF($AP$21=0, BE31/BE$27*100, 100*(BE31*12/$BI31)/BE$27),IFERROR(IF($AP$21=0, BE31/BE$28*100, 100*(BE31*12/$BI31)/BE$28), IFERROR(IF($AP$21=0, BE31/BE$29*100, 100*(BE31*12/$BI31)/BE$29),IFERROR(IF($AP$21=0, BE31/BE$30*100, 100*(BE31*12/$BI31)/#REF!),IFERROR(IF($AP$21=0, BE31/BE$31*100, 100*(BE31*12/$BI31)/BE$31),IFERROR(IF($AP$21=0, BE31/BE$31*100, 100*(BE31*12/$BI31)/BE$31),IFERROR(IF($AP$21=0, BE31/BE$32*100, 100*(BE31*12/$BI31)/BE$32),IFERROR(IF($AP$21=0, BE31/BE$33*100, 100*(BE31*12/$BI31)/BE$33),IF($AP$21=0, BE31/BE$34*100,  100*(BE31*12/$BI31)/BE$34)))))))))))","v":106.36646554294839},{"$f":"IFERROR(IF($AP$21=0,BF31/BF$25*100,(100*(BF31*12/$BI31)/BF$25)),IFERROR(IF($AP$21=0, BF31/BF$26*100, 100*(BF31*12/$BI31)/BF$26), IFERROR(IF($AP$21=0, BF31/BF$27*100, 100*(BF31*12/$BI31)/BF$27),IFERROR(IF($AP$21=0, BF31/BF$28*100, 100*(BF31*12/$BI31)/BF$28), IFERROR(IF($AP$21=0, BF31/BF$29*100, 100*(BF31*12/$BI31)/BF$29),IFERROR(IF($AP$21=0, BF31/BF$30*100, 100*(BF31*12/$BI31)/#REF!),IFERROR(IF($AP$21=0, BF31/BF$31*100, 100*(BF31*12/$BI31)/BF$31),IFERROR(IF($AP$21=0, BF31/BF$31*100, 100*(BF31*12/$BI31)/BF$31),IFERROR(IF($AP$21=0, BF31/BF$32*100, 100*(BF31*12/$BI31)/BF$32),IFERROR(IF($AP$21=0, BF31/BF$33*100, 100*(BF31*12/$BI31)/BF$33),IF($AP$21=0, BF31/BF$34*100,  100*(BF31*12/$BI31)/BF$34)))))))))))","v":105.69780871741821},{"$f":"MONTH(AM31)","v":9},{"$f":"VLOOKUP($AO31,Data!$A$1:$P$688,Charts!BJ$23,FALSE)","v":0.15772881031166}]
[null,null,null,null,null,null,null,null,null,null,null,null,null,null,null,null,null,null,null,null,null,null,null,null,null,null,null,null,null,null,null,null,null,null,null,null,null,201912,{"$f":"IF(AM31<$AL$24,+DATE(YEAR(AM31),MONTH(AM31)+3,DAY(AM31)),\"\")","v":"2019-12-01"},"201912","Tier 1 capital ratio201912",{"$f":"VLOOKUP($AO32,Data!$A$1:$P$688,Charts!AP$23,FALSE)","v":0.132043229012585},{"$f":"VLOOKUP($AO32,Data!$A$1:$P$688,Charts!AQ$23,FALSE)","v":0.15200271404278301},{"$f":"VLOOKUP($AO32,Data!$A$1:$P$688,Charts!AR$23,FALSE)","v":0.17172754325942699},{"$f":"VLOOKUP($AO32,Data!$A$1:$P$688,Charts!AS$23,FALSE)","v":0.206309840184314},{"$f":"VLOOKUP($AO32,Data!$A$1:$P$688,Charts!AT$23,FALSE)","v":0.16785345589390099},{"$f":"VLOOKUP($AO32,Data!$A$1:$P$688,Charts!AU$23,FALSE)","v":0.20413545445751199},{"$f":"VLOOKUP($AO32,Data!$A$1:$P$688,Charts!AV$23,FALSE)","v":0.38834947595143399},{"$f":"VLOOKUP($AO32,Data!$A$1:$P$688,Charts!AW$23,FALSE)","v":0.194808799685246},{"$f":"VLOOKUP($AO32,Data!$A$1:$P$688,Charts!AX$23,FALSE)","v":0.17395468243072201},0.15200271404278301,0,1.972482921664398E-2,3.2407911198085004E-2,1.995948503019801E-2,0.18421402149392199,{"$f":"VLOOKUP($AO32,Data!$A$1:$P$688,BD$23,FALSE)","v":1352282303969.73},{"$f":"VLOOKUP($AO32,Data!$A$1:$P$688,BE$23,FALSE)","v":8355116760591.5098},{"$f":"IFERROR(IF($AP$21=0,BE32/BE$25*100,(100*(BE32*12/$BI32)/BE$25)),IFERROR(IF($AP$21=0, BE32/BE$26*100, 100*(BE32*12/$BI32)/BE$26), IFERROR(IF($AP$21=0, BE32/BE$27*100, 100*(BE32*12/$BI32)/BE$27),IFERROR(IF($AP$21=0, BE32/BE$28*100, 100*(BE32*12/$BI32)/BE$28), IFERROR(IF($AP$21=0, BE32/BE$29*100, 100*(BE32*12/$BI32)/BE$29),IFERROR(IF($AP$21=0, BE32/BE$30*100, 100*(BE32*12/$BI32)/#REF!),IFERROR(IF($AP$21=0, BE32/BE$31*100, 100*(BE32*12/$BI32)/BE$31),IFERROR(IF($AP$21=0, BE32/BE$31*100, 100*(BE32*12/$BI32)/BE$31),IFERROR(IF($AP$21=0, BE32/BE$32*100, 100*(BE32*12/$BI32)/BE$32),IFERROR(IF($AP$21=0, BE32/BE$33*100, 100*(BE32*12/$BI32)/BE$33),IF($AP$21=0, BE32/BE$34*100,  100*(BE32*12/$BI32)/BE$34)))))))))))","v":109.00524889870293},{"$f":"IFERROR(IF($AP$21=0,BF32/BF$25*100,(100*(BF32*12/$BI32)/BF$25)),IFERROR(IF($AP$21=0, BF32/BF$26*100, 100*(BF32*12/$BI32)/BF$26), IFERROR(IF($AP$21=0, BF32/BF$27*100, 100*(BF32*12/$BI32)/BF$27),IFERROR(IF($AP$21=0, BF32/BF$28*100, 100*(BF32*12/$BI32)/BF$28), IFERROR(IF($AP$21=0, BF32/BF$29*100, 100*(BF32*12/$BI32)/BF$29),IFERROR(IF($AP$21=0, BF32/BF$30*100, 100*(BF32*12/$BI32)/#REF!),IFERROR(IF($AP$21=0, BF32/BF$31*100, 100*(BF32*12/$BI32)/BF$31),IFERROR(IF($AP$21=0, BF32/BF$31*100, 100*(BF32*12/$BI32)/BF$31),IFERROR(IF($AP$21=0, BF32/BF$32*100, 100*(BF32*12/$BI32)/BF$32),IFERROR(IF($AP$21=0, BF32/BF$33*100, 100*(BF32*12/$BI32)/BF$33),IF($AP$21=0, BF32/BF$34*100,  100*(BF32*12/$BI32)/BF$34)))))))))))","v":104.54686005195279},12,{"$f":"VLOOKUP($AO32,Data!$A$1:$P$688,Charts!BJ$23,FALSE)","v":0.163554417981499}]
[null,null,null,null,null,null,null,null,null,null,null,null,null,null,null,null,null,null,null,null,null,null,null,null,null,null,null,null,null,null,null,null,null,null,null,null,null,202003,{"$f":"IF(AM32<$AL$24,+DATE(YEAR(AM32),MONTH(AM32)+3,DAY(AM32)),\"\")","v":"2020-03-01"},"202003","Tier 1 capital ratio202003",{"$f":"VLOOKUP($AO33,Data!$A$1:$P$688,Charts!AP$23,FALSE)","v":0.13101347592193099},{"$f":"VLOOKUP($AO33,Data!$A$1:$P$688,Charts!AQ$23,FALSE)","v":0.142713400364159},{"$f":"VLOOKUP($AO33,Data!$A$1:$P$688,Charts!AR$23,FALSE)","v":0.16288169400806099},{"$f":"VLOOKUP($AO33,Data!$A$1:$P$688,Charts!AS$23,FALSE)","v":0.198438813434375},{"$f":"VLOOKUP($AO33,Data!$A$1:$P$688,Charts!AT$23,FALSE)","v":0.15819464531792801},{"$f":"VLOOKUP($AO33,Data!$A$1:$P$688,Charts!AU$23,FALSE)","v":0.198970388598324},{"$f":"VLOOKUP($AO33,Data!$A$1:$P$688,Charts!AV$23,FALSE)","v":0.369113576094317},{"$f":"VLOOKUP($AO33,Data!$A$1:$P$688,Charts!AW$23,FALSE)","v":0.201203355300486},{"$f":"VLOOKUP($AO33,Data!$A$1:$P$688,Charts!AX$23,FALSE)","v":0.16727051388837499},0.142713400364159,0,2.0168293643901991E-2,3.608869459026301E-2,1.1699924442228005E-2,0.170143187495993,{"$f":"VLOOKUP($AO33,Data!$A$1:$P$688,BD$23,FALSE)","v":1332993452268.46},{"$f":"VLOOKUP($AO33,Data!$A$1:$P$688,BE$23,FALSE)","v":8503973038323.29},{"$f":"IFERROR(IF($AP$21=0,BE33/BE$25*100,(100*(BE33*12/$BI33)/BE$25)),IFERROR(IF($AP$21=0, BE33/BE$26*100, 100*(BE33*12/$BI33)/BE$26), IFERROR(IF($AP$21=0, BE33/BE$27*100, 100*(BE33*12/$BI33)/BE$27),IFERROR(IF($AP$21=0, BE33/BE$28*100, 100*(BE33*12/$BI33)/BE$28), IFERROR(IF($AP$21=0, BE33/BE$29*100, 100*(BE33*12/$BI33)/BE$29),IFERROR(IF($AP$21=0, BE33/BE$30*100, 100*(BE33*12/$BI33)/#REF!),IFERROR(IF($AP$21=0, BE33/BE$31*100, 100*(BE33*12/$BI33)/BE$31),IFERROR(IF($AP$21=0, BE33/BE$31*100, 100*(BE33*12/$BI33)/BE$31),IFERROR(IF($AP$21=0, BE33/BE$32*100, 100*(BE33*12/$BI33)/BE$32),IFERROR(IF($AP$21=0, BE33/BE$33*100, 100*(BE33*12/$BI33)/BE$33),IF($AP$21=0, BE33/BE$34*100,  100*(BE33*12/$BI33)/BE$34)))))))))))","v":107.45040633772672},{"$f":"IFERROR(IF($AP$21=0,BF33/BF$25*100,(100*(BF33*12/$BI33)/BF$25)),IFERROR(IF($AP$21=0, BF33/BF$26*100, 100*(BF33*12/$BI33)/BF$26), IFERROR(IF($AP$21=0, BF33/BF$27*100, 100*(BF33*12/$BI33)/BF$27),IFERROR(IF($AP$21=0, BF33/BF$28*100, 100*(BF33*12/$BI33)/BF$28), IFERROR(IF($AP$21=0, BF33/BF$29*100, 100*(BF33*12/$BI33)/BF$29),IFERROR(IF($AP$21=0, BF33/BF$30*100, 100*(BF33*12/$BI33)/#REF!),IFERROR(IF($AP$21=0, BF33/BF$31*100, 100*(BF33*12/$BI33)/BF$31),IFERROR(IF($AP$21=0, BF33/BF$31*100, 100*(BF33*12/$BI33)/BF$31),IFERROR(IF($AP$21=0, BF33/BF$32*100, 100*(BF33*12/$BI33)/BF$32),IFERROR(IF($AP$21=0, BF33/BF$33*100, 100*(BF33*12/$BI33)/BF$33),IF($AP$21=0, BF33/BF$34*100,  100*(BF33*12/$BI33)/BF$34)))))))))))","v":106.40948589929968},3,{"$f":"VLOOKUP($AO33,Data!$A$1:$P$688,Charts!BJ$23,FALSE)","v":0.15438846953892699}]
[null,null,null,null,null,null,null,null,null,null,null,null,null,null,null,null,null,null,null,null,null,null,null,null,null,null,null,null,null,null,null,null,null,null,null,null,null,202006,"2020-06-01","202006","Tier 1 capital ratio202006",{"$f":"VLOOKUP($AO34,Data!$A$1:$P$688,Charts!AP$23,FALSE)","v":0.13309366446482701},{"$f":"VLOOKUP($AO34,Data!$A$1:$P$688,Charts!AQ$23,FALSE)","v":0.14799379411233601},{"$f":"VLOOKUP($AO34,Data!$A$1:$P$688,Charts!AR$23,FALSE)","v":0.169614698626494},{"$f":"VLOOKUP($AO34,Data!$A$1:$P$688,Charts!AS$23,FALSE)","v":0.20646223028987701},{"$f":"VLOOKUP($AO34,Data!$A$1:$P$688,Charts!AT$23,FALSE)","v":0.16305946162686699},{"$f":"VLOOKUP($AO34,Data!$A$1:$P$688,Charts!AU$23,FALSE)","v":0.20110496922697599},{"$f":"VLOOKUP($AO34,Data!$A$1:$P$688,Charts!AV$23,FALSE)","v":0.35973253916348202},{"$f":"VLOOKUP($AO34,Data!$A$1:$P$688,Charts!AW$23,FALSE)","v":0.20727475532994599},{"$f":"VLOOKUP($AO34,Data!$A$1:$P$688,Charts!AX$23,FALSE)","v":0.17173624344580701},0.14799379411233601,0,2.162090451415799E-2,3.1490270600481984E-2,1.4900129647509003E-2,0.15862756993650604,{"$f":"VLOOKUP($AO34,Data!$A$1:$P$688,BD$23,FALSE)","v":1364206248128.3999},{"$f":"VLOOKUP($AO34,Data!$A$1:$P$688,BE$23,FALSE)","v":8451237021985.4805},{"$f":"IFERROR(IF($AP$21=0,BE34/BE$25*100,(100*(BE34*12/$BI34)/BE$25)),IFERROR(IF($AP$21=0, BE34/BE$26*100, 100*(BE34*12/$BI34)/BE$26), IFERROR(IF($AP$21=0, BE34/BE$27*100, 100*(BE34*12/$BI34)/BE$27),IFERROR(IF($AP$21=0, BE34/BE$28*100, 100*(BE34*12/$BI34)/BE$28), IFERROR(IF($AP$21=0, BE34/BE$29*100, 100*(BE34*12/$BI34)/BE$29),IFERROR(IF($AP$21=0, BE34/BE$30*100, 100*(BE34*12/$BI34)/#REF!),IFERROR(IF($AP$21=0, BE34/BE$31*100, 100*(BE34*12/$BI34)/BE$31),IFERROR(IF($AP$21=0, BE34/BE$31*100, 100*(BE34*12/$BI34)/BE$31),IFERROR(IF($AP$21=0, BE34/BE$32*100, 100*(BE34*12/$BI34)/BE$32),IFERROR(IF($AP$21=0, BE34/BE$33*100, 100*(BE34*12/$BI34)/BE$33),IF($AP$21=0, BE34/BE$34*100,  100*(BE34*12/$BI34)/BE$34)))))))))))","v":109.96641839493495},{"$f":"IFERROR(IF($AP$21=0,BF34/BF$25*100,(100*(BF34*12/$BI34)/BF$25)),IFERROR(IF($AP$21=0, BF34/BF$26*100, 100*(BF34*12/$BI34)/BF$26), IFERROR(IF($AP$21=0, BF34/BF$27*100, 100*(BF34*12/$BI34)/BF$27),IFERROR(IF($AP$21=0, BF34/BF$28*100, 100*(BF34*12/$BI34)/BF$28), IFERROR(IF($AP$21=0, BF34/BF$29*100, 100*(BF34*12/$BI34)/BF$29),IFERROR(IF($AP$21=0, BF34/BF$30*100, 100*(BF34*12/$BI34)/#REF!),IFERROR(IF($AP$21=0, BF34/BF$31*100, 100*(BF34*12/$BI34)/BF$31),IFERROR(IF($AP$21=0, BF34/BF$31*100, 100*(BF34*12/$BI34)/BF$31),IFERROR(IF($AP$21=0, BF34/BF$32*100, 100*(BF34*12/$BI34)/BF$32),IFERROR(IF($AP$21=0, BF34/BF$33*100, 100*(BF34*12/$BI34)/BF$33),IF($AP$21=0, BF34/BF$34*100,  100*(BF34*12/$BI34)/BF$34)))))))))))","v":105.74960464596144},6,{"$f":"VLOOKUP($AO34,Data!$A$1:$P$688,Charts!BJ$23,FALSE)","v":0.159339046084541}]
[null,null,null,null,null,null,null,null,null,null,null,null,null,null,null,null,null,null,null,null,null,null,null,null,null,null,null,null,null,null,null,null,null,null,null,null,null,202009,"2020-09-01","202009","Tier 1 capital ratio202009",{"$f":"VLOOKUP($AO35,Data!$A$1:$P$688,Charts!AP$23,FALSE)","v":0.13388017731029001},{"$f":"VLOOKUP($AO35,Data!$A$1:$P$688,Charts!AQ$23,FALSE)","v":0.152903589854054},{"$f":"VLOOKUP($AO35,Data!$A$1:$P$688,Charts!AR$23,FALSE)","v":0.173303983034827},{"$f":"VLOOKUP($AO35,Data!$A$1:$P$688,Charts!AS$23,FALSE)","v":0.215058022653806},{"$f":"VLOOKUP($AO35,Data!$A$1:$P$688,Charts!AT$23,FALSE)","v":0.167299354319635},{"$f":"VLOOKUP($AO35,Data!$A$1:$P$688,Charts!AU$23,FALSE)","v":0.205226646797635},{"$f":"VLOOKUP($AO35,Data!$A$1:$P$688,Charts!AV$23,FALSE)","v":0.40156202383991402},{"$f":"VLOOKUP($AO35,Data!$A$1:$P$688,Charts!AW$23,FALSE)","v":0.22568066877547999},{"$f":"VLOOKUP($AO35,Data!$A$1:$P$688,Charts!AX$23,FALSE)","v":0.175204224615369},0.152903589854054,0,2.0400393180772997E-2,3.1922663762808001E-2,1.9023412543763996E-2,0.19633537704227902,{"$f":"VLOOKUP($AO35,Data!$A$1:$P$688,BD$23,FALSE)","v":1374453922491.6499},{"$f":"VLOOKUP($AO35,Data!$A$1:$P$688,BE$23,FALSE)","v":8324730655495.3896},{"$f":"IFERROR(IF($AP$21=0,BE35/BE$25*100,(100*(BE35*12/$BI35)/BE$25)),IFERROR(IF($AP$21=0, BE35/BE$26*100, 100*(BE35*12/$BI35)/BE$26), IFERROR(IF($AP$21=0, BE35/BE$27*100, 100*(BE35*12/$BI35)/BE$27),IFERROR(IF($AP$21=0, BE35/BE$28*100, 100*(BE35*12/$BI35)/BE$28), IFERROR(IF($AP$21=0, BE35/BE$29*100, 100*(BE35*12/$BI35)/BE$29),IFERROR(IF($AP$21=0, BE35/BE$30*100, 100*(BE35*12/$BI35)/#REF!),IFERROR(IF($AP$21=0, BE35/BE$31*100, 100*(BE35*12/$BI35)/BE$31),IFERROR(IF($AP$21=0, BE35/BE$31*100, 100*(BE35*12/$BI35)/BE$31),IFERROR(IF($AP$21=0, BE35/BE$32*100, 100*(BE35*12/$BI35)/BE$32),IFERROR(IF($AP$21=0, BE35/BE$33*100, 100*(BE35*12/$BI35)/BE$33),IF($AP$21=0, BE35/BE$34*100,  100*(BE35*12/$BI35)/BE$34)))))))))))","v":110.79246654428935},{"$f":"IFERROR(IF($AP$21=0,BF35/BF$25*100,(100*(BF35*12/$BI35)/BF$25)),IFERROR(IF($AP$21=0, BF35/BF$26*100, 100*(BF35*12/$BI35)/BF$26), IFERROR(IF($AP$21=0, BF35/BF$27*100, 100*(BF35*12/$BI35)/BF$27),IFERROR(IF($AP$21=0, BF35/BF$28*100, 100*(BF35*12/$BI35)/BF$28), IFERROR(IF($AP$21=0, BF35/BF$29*100, 100*(BF35*12/$BI35)/BF$29),IFERROR(IF($AP$21=0, BF35/BF$30*100, 100*(BF35*12/$BI35)/#REF!),IFERROR(IF($AP$21=0, BF35/BF$31*100, 100*(BF35*12/$BI35)/BF$31),IFERROR(IF($AP$21=0, BF35/BF$31*100, 100*(BF35*12/$BI35)/BF$31),IFERROR(IF($AP$21=0, BF35/BF$32*100, 100*(BF35*12/$BI35)/BF$32),IFERROR(IF($AP$21=0, BF35/BF$33*100, 100*(BF35*12/$BI35)/BF$33),IF($AP$21=0, BF35/BF$34*100,  100*(BF35*12/$BI35)/BF$34)))))))))))","v":104.1666413227554},9,{"$f":"VLOOKUP($AO35,Data!$A$1:$P$688,Charts!BJ$23,FALSE)","v":0.163262743607724}]
[null,null,null,null,null,null,null,null,null,null,null,null,null,null,null,null,null,null,null,null,null,null,null,null,null,null,null,null,null,null,null,null,null,null,null,null,null,202012,{"$f":"IF(AM35<$AL$24,+DATE(YEAR(AM35),MONTH(AM35)+3,DAY(AM35)),\"\")","v":"2020-12-01"},{"$f":"+IF(MONTH(AM36)=12,YEAR(AM36)&MONTH(AM36),YEAR(AM36)&0&MONTH(AM36))","v":"202012"},"Tier 1 capital ratio202012",{"$f":"VLOOKUP($AO36,Data!$A$1:$P$688,Charts!AP$23,FALSE)","v":0.13788222953277601},{"$f":"VLOOKUP($AO36,Data!$A$1:$P$688,Charts!AQ$23,FALSE)","v":0.15724281974839499},{"$f":"VLOOKUP($AO36,Data!$A$1:$P$688,Charts!AR$23,FALSE)","v":0.17975159782685399},{"$f":"VLOOKUP($AO36,Data!$A$1:$P$688,Charts!AS$23,FALSE)","v":0.23346177809114799},{"$f":"VLOOKUP($AO36,Data!$A$1:$P$688,Charts!AT$23,FALSE)","v":0.171802273388453},{"$f":"VLOOKUP($AO36,Data!$A$1:$P$688,Charts!AU$23,FALSE)","v":0.212919731956493},{"$f":"VLOOKUP($AO36,Data!$A$1:$P$688,Charts!AV$23,FALSE)","v":0.386930540300988},{"$f":"VLOOKUP($AO36,Data!$A$1:$P$688,Charts!AW$23,FALSE)","v":0.21813299801461999},{"$f":"VLOOKUP($AO36,Data!$A$1:$P$688,Charts!AX$23,FALSE)","v":0.18055012196407699},0.15724281974839499,0,2.2508778078458996E-2,3.316813412963901E-2,1.9360590215618978E-2,0.174010808344495,{"$f":"VLOOKUP($AO36,Data!$A$1:$P$688,BD$23,FALSE)","v":1424348828614.99},{"$f":"VLOOKUP($AO36,Data!$A$1:$P$688,BE$23,FALSE)","v":8387282252067.6299},{"$f":"IFERROR(IF($AP$21=0,BE36/BE$25*100,(100*(BE36*12/$BI36)/BE$25)),IFERROR(IF($AP$21=0, BE36/BE$26*100, 100*(BE36*12/$BI36)/BE$26), IFERROR(IF($AP$21=0, BE36/BE$27*100, 100*(BE36*12/$BI36)/BE$27),IFERROR(IF($AP$21=0, BE36/BE$28*100, 100*(BE36*12/$BI36)/BE$28), IFERROR(IF($AP$21=0, BE36/BE$29*100, 100*(BE36*12/$BI36)/BE$29),IFERROR(IF($AP$21=0, BE36/BE$30*100, 100*(BE36*12/$BI36)/#REF!),IFERROR(IF($AP$21=0, BE36/BE$31*100, 100*(BE36*12/$BI36)/BE$31),IFERROR(IF($AP$21=0, BE36/BE$31*100, 100*(BE36*12/$BI36)/BE$31),IFERROR(IF($AP$21=0, BE36/BE$32*100, 100*(BE36*12/$BI36)/BE$32),IFERROR(IF($AP$21=0, BE36/BE$33*100, 100*(BE36*12/$BI36)/BE$33),IF($AP$21=0, BE36/BE$34*100,  100*(BE36*12/$BI36)/BE$34)))))))))))","v":114.81441273465663},{"$f":"IFERROR(IF($AP$21=0,BF36/BF$25*100,(100*(BF36*12/$BI36)/BF$25)),IFERROR(IF($AP$21=0, BF36/BF$26*100, 100*(BF36*12/$BI36)/BF$26), IFERROR(IF($AP$21=0, BF36/BF$27*100, 100*(BF36*12/$BI36)/BF$27),IFERROR(IF($AP$21=0, BF36/BF$28*100, 100*(BF36*12/$BI36)/BF$28), IFERROR(IF($AP$21=0, BF36/BF$29*100, 100*(BF36*12/$BI36)/BF$29),IFERROR(IF($AP$21=0, BF36/BF$30*100, 100*(BF36*12/$BI36)/#REF!),IFERROR(IF($AP$21=0, BF36/BF$31*100, 100*(BF36*12/$BI36)/BF$31),IFERROR(IF($AP$21=0, BF36/BF$31*100, 100*(BF36*12/$BI36)/BF$31),IFERROR(IF($AP$21=0, BF36/BF$32*100, 100*(BF36*12/$BI36)/BF$32),IFERROR(IF($AP$21=0, BF36/BF$33*100, 100*(BF36*12/$BI36)/BF$33),IF($AP$21=0, BF36/BF$34*100,  100*(BF36*12/$BI36)/BF$34)))))))))))","v":104.94934409044252},12,{"$f":"VLOOKUP($AO36,Data!$A$1:$P$688,Charts!BJ$23,FALSE)","v":0.16777698546538899}]
[]
[]
[]
[]
[]
[]
[]
[]
[]
[]
[]
[null,null,null,null,null,null,null,null,null,null,null,null,null,null,null,null,null,null,null,null,null,null,null,null,null,null,null,null,null,null,null,null,null,null,null,null,null,null,null,{"$f":"VLOOKUP(AM21*1,List!$A$1:$I$100,9,FALSE)","v":9},"Indicator","Country","Country name","Value","EU value"]
[null,null,null,null,null,null,null,null,null,null,null,null,null,null,null,null,null,null,null,null,null,null,null,null,null,null,null,null,null,null,null,null,null,null,null,null,null,null,null,null,2,null,5,8]
[null,null,null,null,null,null,null,null,null,null,null,null,null,null,null,null,null,null,null,null,null,null,null,null,null,null,null,null,null,null,null,null,null,null,null,null,null,null,null,{"$f":"MAX($AL$25:$AL$45)","v":202012},{"$f":"CONCATENATE(VLOOKUP($AN$21*1,Data!$W$1:$AB$688,AO$49,FALSE),AP50)","v":"Tier 1 Capital Ratio1"},1,{"$f":"VLOOKUP($AO50,Data!$U$1:$AC$688,AQ$49,FALSE)&IF(AR50=\"\",\"*\",\"\")","v":"EE"},{"$f":"VLOOKUP($AO50,Data!$U$1:$AC$688,AR$49,FALSE)","v":0.27733085802344498},{"$f":"VLOOKUP($AO$80,Data!$U$1:$AC$688,$AR$49,FALSE)","v":0.171802273388453}]
[null,null,null,null,null,null,null,null,null,null,null,null,null,null,null,null,null,null,null,null,null,null,null,null,null,null,null,null,null,null,null,null,null,null,null,null,null,null,null,{"$f":"MAX($AL$25:$AL$45)","v":202012},{"$f":"CONCATENATE(VLOOKUP($AN$21*1,Data!$W$1:$AB$688,AO$49,FALSE),AP51)","v":"Tier 1 Capital Ratio2"},2,{"$f":"VLOOKUP($AO51,Data!$U$1:$AC$688,AQ$49,FALSE)&IF(AR51=\"\",\"*\",\"\")","v":"LV"},{"$f":"VLOOKUP($AO51,Data!$U$1:$AC$688,AR$49,FALSE)","v":0.26255041750060298},{"$f":"VLOOKUP($AO$80,Data!$U$1:$AC$688,$AR$49,FALSE)","v":0.171802273388453}]
[null,null,null,null,null,null,null,null,null,null,null,null,null,null,null,null,null,null,null,null,null,null,null,null,null,null,null,null,null,null,null,null,null,null,null,null,null,null,null,202012,{"$f":"CONCATENATE(VLOOKUP($AN$21*1,Data!$W$1:$AB$688,AO$49,FALSE),AP52)","v":"Tier 1 Capital Ratio3"},3,{"$f":"VLOOKUP($AO52,Data!$U$1:$AC$688,AQ$49,FALSE)&IF(AR52=\"\",\"*\",\"\")","v":"HR"},{"$f":"VLOOKUP($AO52,Data!$U$1:$AC$688,AR$49,FALSE)","v":0.24060347609882399},{"$f":"VLOOKUP($AO$80,Data!$U$1:$AC$688,$AR$49,FALSE)","v":0.171802273388453}]
[null,null,null,null,null,null,null,null,null,null,null,null,null,null,null,null,null,null,null,null,null,null,null,null,null,null,null,null,null,null,null,null,null,null,null,null,null,null,null,202012,{"$f":"CONCATENATE(VLOOKUP($AN$21*1,Data!$W$1:$AB$688,AO$49,FALSE),AP53)","v":"Tier 1 Capital Ratio4"},4,{"$f":"VLOOKUP($AO53,Data!$U$1:$AC$688,AQ$49,FALSE)&IF(AR53=\"\",\"*\",\"\")","v":"CZ"},{"$f":"VLOOKUP($AO53,Data!$U$1:$AC$688,AR$49,FALSE)","v":0.23618310542040899},{"$f":"VLOOKUP($AO$80,Data!$U$1:$AC$688,$AR$49,FALSE)","v":0.171802273388453}]
[null,null,null,null,null,null,null,null,null,null,null,null,null,null,null,null,null,null,null,null,null,null,null,null,null,null,null,null,null,null,null,null,null,null,null,null,null,null,null,202012,{"$f":"CONCATENATE(VLOOKUP($AN$21*1,Data!$W$1:$AB$688,AO$49,FALSE),AP54)","v":"Tier 1 Capital Ratio5"},5,{"$f":"VLOOKUP($AO54,Data!$U$1:$AC$688,AQ$49,FALSE)&IF(AR54=\"\",\"*\",\"\")","v":"BG"},{"$f":"VLOOKUP($AO54,Data!$U$1:$AC$688,AR$49,FALSE)","v":0.23595658125456201},{"$f":"VLOOKUP($AO$80,Data!$U$1:$AC$688,$AR$49,FALSE)","v":0.171802273388453}]
[null,null,null,null,null,null,null,null,null,null,null,null,null,null,null,null,null,null,null,null,null,null,null,null,null,null,null,null,null,null,null,null,null,null,null,null,null,null,null,202012,{"$f":"CONCATENATE(VLOOKUP($AN$21*1,Data!$W$1:$AB$688,AO$49,FALSE),AP55)","v":"Tier 1 Capital Ratio6"},6,{"$f":"VLOOKUP($AO55,Data!$U$1:$AC$688,AQ$49,FALSE)&IF(AR55=\"\",\"*\",\"\")","v":"IS"},{"$f":"VLOOKUP($AO55,Data!$U$1:$AC$688,AR$49,FALSE)","v":0.22423981009476401},{"$f":"VLOOKUP($AO$80,Data!$U$1:$AC$688,$AR$49,FALSE)","v":0.171802273388453}]
[null,null,null,null,null,null,null,null,null,null,null,null,null,null,null,null,null,null,null,null,null,null,null,null,null,null,null,null,null,null,null,null,null,null,null,null,null,null,null,202012,{"$f":"CONCATENATE(VLOOKUP($AN$21*1,Data!$W$1:$AB$688,AO$49,FALSE),AP56)","v":"Tier 1 Capital Ratio7"},7,{"$f":"VLOOKUP($AO56,Data!$U$1:$AC$688,AQ$49,FALSE)&IF(AR56=\"\",\"*\",\"\")","v":"NO"},{"$f":"VLOOKUP($AO56,Data!$U$1:$AC$688,AR$49,FALSE)","v":0.21240694416922501},{"$f":"VLOOKUP($AO$80,Data!$U$1:$AC$688,$AR$49,FALSE)","v":0.171802273388453}]
[null,null,null,null,null,null,null,null,null,null,null,null,null,null,null,null,null,null,null,null,null,null,null,null,null,null,null,null,null,null,null,null,null,null,null,null,null,null,null,202012,{"$f":"CONCATENATE(VLOOKUP($AN$21*1,Data!$W$1:$AB$688,AO$49,FALSE),AP57)","v":"Tier 1 Capital Ratio8"},8,{"$f":"VLOOKUP($AO57,Data!$U$1:$AC$688,AQ$49,FALSE)&IF(AR57=\"\",\"*\",\"\")","v":"LT"},{"$f":"VLOOKUP($AO57,Data!$U$1:$AC$688,AR$49,FALSE)","v":0.212106241830608},{"$f":"VLOOKUP($AO$80,Data!$U$1:$AC$688,$AR$49,FALSE)","v":0.171802273388453}]
[null,null,null,null,null,null,null,null,null,null,null,null,null,null,null,null,null,null,null,null,null,null,null,null,null,null,null,null,null,null,null,null,null,null,null,null,null,null,null,202012,{"$f":"CONCATENATE(VLOOKUP($AN$21*1,Data!$W$1:$AB$688,AO$49,FALSE),AP58)","v":"Tier 1 Capital Ratio9"},9,{"$f":"VLOOKUP($AO58,Data!$U$1:$AC$688,AQ$49,FALSE)&IF(AR58=\"\",\"*\",\"\")","v":"SE"},{"$f":"VLOOKUP($AO58,Data!$U$1:$AC$688,AR$49,FALSE)","v":0.21043826740704399},{"$f":"VLOOKUP($AO$80,Data!$U$1:$AC$688,$AR$49,FALSE)","v":0.171802273388453}]
[null,null,null,null,null,null,null,null,null,null,null,null,null,null,null,null,null,null,null,null,null,null,null,null,null,null,null,null,null,null,null,null,null,null,null,null,null,null,null,202012,{"$f":"CONCATENATE(VLOOKUP($AN$21*1,Data!$W$1:$AB$688,AO$49,FALSE),AP59)","v":"Tier 1 Capital Ratio10"},10,{"$f":"VLOOKUP($AO59,Data!$U$1:$AC$688,AQ$49,FALSE)&IF(AR59=\"\",\"*\",\"\")","v":"DK"},{"$f":"VLOOKUP($AO59,Data!$U$1:$AC$688,AR$49,FALSE)","v":0.20622359152008099},{"$f":"VLOOKUP($AO$80,Data!$U$1:$AC$688,$AR$49,FALSE)","v":0.171802273388453}]
[null,null,null,null,null,null,null,null,null,null,null,null,null,null,null,null,null,null,null,null,null,null,null,null,null,null,null,null,null,null,null,null,null,null,null,null,null,null,null,202012,{"$f":"CONCATENATE(VLOOKUP($AN$21*1,Data!$W$1:$AB$688,AO$49,FALSE),AP60)","v":"Tier 1 Capital Ratio11"},11,{"$f":"VLOOKUP($AO60,Data!$U$1:$AC$688,AQ$49,FALSE)&IF(AR60=\"\",\"*\",\"\")","v":"LU"},{"$f":"VLOOKUP($AO60,Data!$U$1:$AC$688,AR$49,FALSE)","v":0.20457481248166701},{"$f":"VLOOKUP($AO$80,Data!$U$1:$AC$688,$AR$49,FALSE)","v":0.171802273388453}]
[null,null,null,null,null,null,null,null,null,null,null,null,null,null,null,null,null,null,null,null,null,null,null,null,null,null,null,null,null,null,null,null,null,null,null,null,null,null,null,202012,{"$f":"CONCATENATE(VLOOKUP($AN$21*1,Data!$W$1:$AB$688,AO$49,FALSE),AP61)","v":"Tier 1 Capital Ratio12"},12,{"$f":"VLOOKUP($AO61,Data!$U$1:$AC$688,AQ$49,FALSE)&IF(AR61=\"\",\"*\",\"\")","v":"MT"},{"$f":"VLOOKUP($AO61,Data!$U$1:$AC$688,AR$49,FALSE)","v":0.20451146547889701},{"$f":"VLOOKUP($AO$80,Data!$U$1:$AC$688,$AR$49,FALSE)","v":0.171802273388453}]
[null,null,null,null,null,null,null,null,null,null,null,null,null,null,null,null,null,null,null,null,null,null,null,null,null,null,null,null,null,null,null,null,null,null,null,null,null,null,null,202012,{"$f":"CONCATENATE(VLOOKUP($AN$21*1,Data!$W$1:$AB$688,AO$49,FALSE),AP62)","v":"Tier 1 Capital Ratio13"},13,{"$f":"VLOOKUP($AO62,Data!$U$1:$AC$688,AQ$49,FALSE)&IF(AR62=\"\",\"*\",\"\")","v":"IE"},{"$f":"VLOOKUP($AO62,Data!$U$1:$AC$688,AR$49,FALSE)","v":0.20056161107600801},{"$f":"VLOOKUP($AO$80,Data!$U$1:$AC$688,$AR$49,FALSE)","v":0.171802273388453}]
[null,null,null,null,null,null,null,null,null,null,null,null,null,null,null,null,null,null,null,null,null,null,null,null,null,null,null,null,null,null,null,null,null,null,null,null,null,null,null,202012,{"$f":"CONCATENATE(VLOOKUP($AN$21*1,Data!$W$1:$AB$688,AO$49,FALSE),AP63)","v":"Tier 1 Capital Ratio14"},14,{"$f":"VLOOKUP($AO63,Data!$U$1:$AC$688,AQ$49,FALSE)&IF(AR63=\"\",\"*\",\"\")","v":"RO"},{"$f":"VLOOKUP($AO63,Data!$U$1:$AC$688,AR$49,FALSE)","v":0.19839120818472},{"$f":"VLOOKUP($AO$80,Data!$U$1:$AC$688,$AR$49,FALSE)","v":0.171802273388453}]
[null,null,null,null,null,null,null,null,null,null,null,null,null,null,null,null,null,null,null,null,null,null,null,null,null,null,null,null,null,null,null,null,null,null,null,null,null,null,null,202012,{"$f":"CONCATENATE(VLOOKUP($AN$21*1,Data!$W$1:$AB$688,AO$49,FALSE),AP64)","v":"Tier 1 Capital Ratio15"},15,{"$f":"VLOOKUP($AO64,Data!$U$1:$AC$688,AQ$49,FALSE)&IF(AR64=\"\",\"*\",\"\")","v":"FI"},{"$f":"VLOOKUP($AO64,Data!$U$1:$AC$688,AR$49,FALSE)","v":0.19429719607609999},{"$f":"VLOOKUP($AO$80,Data!$U$1:$AC$688,$AR$49,FALSE)","v":0.171802273388453}]
[null,null,null,null,null,null,null,null,null,null,null,null,null,null,null,null,null,null,null,null,null,null,null,null,null,null,null,null,null,null,null,null,null,null,null,null,null,null,null,202012,{"$f":"CONCATENATE(VLOOKUP($AN$21*1,Data!$W$1:$AB$688,AO$49,FALSE),AP65)","v":"Tier 1 Capital Ratio16"},16,{"$f":"VLOOKUP($AO65,Data!$U$1:$AC$688,AQ$49,FALSE)&IF(AR65=\"\",\"*\",\"\")","v":"BE"},{"$f":"VLOOKUP($AO65,Data!$U$1:$AC$688,AR$49,FALSE)","v":0.19147733862722699},{"$f":"VLOOKUP($AO$80,Data!$U$1:$AC$688,$AR$49,FALSE)","v":0.171802273388453}]
[null,null,null,null,null,null,null,null,null,null,null,null,null,null,null,null,null,null,null,null,null,null,null,null,null,null,null,null,null,null,null,null,null,null,null,null,null,null,null,202012,{"$f":"CONCATENATE(VLOOKUP($AN$21*1,Data!$W$1:$AB$688,AO$49,FALSE),AP66)","v":"Tier 1 Capital Ratio17"},17,{"$f":"VLOOKUP($AO66,Data!$U$1:$AC$688,AQ$49,FALSE)&IF(AR66=\"\",\"*\",\"\")","v":"NL"},{"$f":"VLOOKUP($AO66,Data!$U$1:$AC$688,AR$49,FALSE)","v":0.19059549479580201},{"$f":"VLOOKUP($AO$80,Data!$U$1:$AC$688,$AR$49,FALSE)","v":0.171802273388453}]
[null,null,null,null,null,null,null,null,null,null,null,null,null,null,null,null,null,null,null,null,null,null,null,null,null,null,null,null,null,null,null,null,null,null,null,null,null,null,null,202012,{"$f":"CONCATENATE(VLOOKUP($AN$21*1,Data!$W$1:$AB$688,AO$49,FALSE),AP67)","v":"Tier 1 Capital Ratio18"},18,{"$f":"VLOOKUP($AO67,Data!$U$1:$AC$688,AQ$49,FALSE)&IF(AR67=\"\",\"*\",\"\")","v":"CY"},{"$f":"VLOOKUP($AO67,Data!$U$1:$AC$688,AR$49,FALSE)","v":0.186020957687696},{"$f":"VLOOKUP($AO$80,Data!$U$1:$AC$688,$AR$49,FALSE)","v":0.171802273388453}]
[null,null,null,null,null,null,null,null,null,null,null,null,null,null,null,null,null,null,null,null,null,null,null,null,null,null,null,null,null,null,null,null,null,null,null,null,null,null,null,202012,{"$f":"CONCATENATE(VLOOKUP($AN$21*1,Data!$W$1:$AB$688,AO$49,FALSE),AP68)","v":"Tier 1 Capital Ratio19"},19,{"$f":"VLOOKUP($AO68,Data!$U$1:$AC$688,AQ$49,FALSE)&IF(AR68=\"\",\"*\",\"\")","v":"PL"},{"$f":"VLOOKUP($AO68,Data!$U$1:$AC$688,AR$49,FALSE)","v":0.18081396745036499},{"$f":"VLOOKUP($AO$80,Data!$U$1:$AC$688,$AR$49,FALSE)","v":0.171802273388453}]
[null,null,null,null,null,null,null,null,null,null,null,null,null,null,null,null,null,null,null,null,null,null,null,null,null,null,null,null,null,null,null,null,null,null,null,null,null,null,null,202012,{"$f":"CONCATENATE(VLOOKUP($AN$21*1,Data!$W$1:$AB$688,AO$49,FALSE),AP69)","v":"Tier 1 Capital Ratio20"},20,{"$f":"VLOOKUP($AO69,Data!$U$1:$AC$688,AQ$49,FALSE)&IF(AR69=\"\",\"*\",\"\")","v":"SK"},{"$f":"VLOOKUP($AO69,Data!$U$1:$AC$688,AR$49,FALSE)","v":0.176004938834526},{"$f":"VLOOKUP($AO$80,Data!$U$1:$AC$688,$AR$49,FALSE)","v":0.171802273388453}]
[null,null,null,null,null,null,null,null,null,null,null,null,null,null,null,null,null,null,null,null,null,null,null,null,null,null,null,null,null,null,null,null,null,null,null,null,null,null,null,202012,{"$f":"CONCATENATE(VLOOKUP($AN$21*1,Data!$W$1:$AB$688,AO$49,FALSE),AP70)","v":"Tier 1 Capital Ratio21"},21,{"$f":"VLOOKUP($AO70,Data!$U$1:$AC$688,AQ$49,FALSE)&IF(AR70=\"\",\"*\",\"\")","v":"IT"},{"$f":"VLOOKUP($AO70,Data!$U$1:$AC$688,AR$49,FALSE)","v":0.17105552575592101},{"$f":"VLOOKUP($AO$80,Data!$U$1:$AC$688,$AR$49,FALSE)","v":0.171802273388453}]
[null,null,null,null,null,null,null,null,null,null,null,null,null,null,null,null,null,null,null,null,null,null,null,null,null,null,null,null,null,null,null,null,null,null,null,null,null,null,null,202012,{"$f":"CONCATENATE(VLOOKUP($AN$21*1,Data!$W$1:$AB$688,AO$49,FALSE),AP71)","v":"Tier 1 Capital Ratio22"},22,{"$f":"VLOOKUP($AO71,Data!$U$1:$AC$688,AQ$49,FALSE)&IF(AR71=\"\",\"*\",\"\")","v":"DE"},{"$f":"VLOOKUP($AO71,Data!$U$1:$AC$688,AR$49,FALSE)","v":0.16975178052564799},{"$f":"VLOOKUP($AO$80,Data!$U$1:$AC$688,$AR$49,FALSE)","v":0.171802273388453}]
[null,null,null,null,null,null,null,null,null,null,null,null,null,null,null,null,null,null,null,null,null,null,null,null,null,null,null,null,null,null,null,null,null,null,null,null,null,null,null,202012,{"$f":"CONCATENATE(VLOOKUP($AN$21*1,Data!$W$1:$AB$688,AO$49,FALSE),AP72)","v":"Tier 1 Capital Ratio23"},23,{"$f":"VLOOKUP($AO72,Data!$U$1:$AC$688,AQ$49,FALSE)&IF(AR72=\"\",\"*\",\"\")","v":"FR"},{"$f":"VLOOKUP($AO72,Data!$U$1:$AC$688,AR$49,FALSE)","v":0.16954125379812801},{"$f":"VLOOKUP($AO$80,Data!$U$1:$AC$688,$AR$49,FALSE)","v":0.171802273388453}]
[null,null,null,null,null,null,null,null,null,null,null,null,null,null,null,null,null,null,null,null,null,null,null,null,null,null,null,null,null,null,null,null,null,null,null,null,null,null,null,202012,{"$f":"CONCATENATE(VLOOKUP($AN$21*1,Data!$W$1:$AB$688,AO$49,FALSE),AP73)","v":"Tier 1 Capital Ratio24"},24,{"$f":"VLOOKUP($AO73,Data!$U$1:$AC$688,AQ$49,FALSE)&IF(AR73=\"\",\"*\",\"\")","v":"AT"},{"$f":"VLOOKUP($AO73,Data!$U$1:$AC$688,AR$49,FALSE)","v":0.16546606368242101},{"$f":"VLOOKUP($AO$80,Data!$U$1:$AC$688,$AR$49,FALSE)","v":0.171802273388453}]
[null,null,null,null,null,null,null,null,null,null,null,null,null,null,null,null,null,null,null,null,null,null,null,null,null,null,null,null,null,null,null,null,null,null,null,null,null,null,null,202012,{"$f":"CONCATENATE(VLOOKUP($AN$21*1,Data!$W$1:$AB$688,AO$49,FALSE),AP74)","v":"Tier 1 Capital Ratio25"},25,{"$f":"VLOOKUP($AO74,Data!$U$1:$AC$688,AQ$49,FALSE)&IF(AR74=\"\",\"*\",\"\")","v":"PT"},{"$f":"VLOOKUP($AO74,Data!$U$1:$AC$688,AR$49,FALSE)","v":0.16033323728178001},{"$f":"VLOOKUP($AO$80,Data!$U$1:$AC$688,$AR$49,FALSE)","v":0.171802273388453}]
[null,null,null,null,null,null,null,null,null,null,null,null,null,null,null,null,null,null,null,null,null,null,null,null,null,null,null,null,null,null,null,null,null,null,null,null,null,null,null,202012,{"$f":"CONCATENATE(VLOOKUP($AN$21*1,Data!$W$1:$AB$688,AO$49,FALSE),AP75)","v":"Tier 1 Capital Ratio26"},26,{"$f":"VLOOKUP($AO75,Data!$U$1:$AC$688,AQ$49,FALSE)&IF(AR75=\"\",\"*\",\"\")","v":"HU"},{"$f":"VLOOKUP($AO75,Data!$U$1:$AC$688,AR$49,FALSE)","v":0.15606523748190099},{"$f":"VLOOKUP($AO$80,Data!$U$1:$AC$688,$AR$49,FALSE)","v":0.171802273388453}]
[null,null,null,null,null,null,null,null,null,null,null,null,null,null,null,null,null,null,null,null,null,null,null,null,null,null,null,null,null,null,null,null,null,null,null,null,null,null,null,202012,{"$f":"CONCATENATE(VLOOKUP($AN$21*1,Data!$W$1:$AB$688,AO$49,FALSE),AP76)","v":"Tier 1 Capital Ratio27"},27,{"$f":"VLOOKUP($AO76,Data!$U$1:$AC$688,AQ$49,FALSE)&IF(AR76=\"\",\"*\",\"\")","v":"SI"},{"$f":"VLOOKUP($AO76,Data!$U$1:$AC$688,AR$49,FALSE)","v":0.154485324182216},{"$f":"VLOOKUP($AO$80,Data!$U$1:$AC$688,$AR$49,FALSE)","v":0.171802273388453}]
[null,null,null,null,null,null,null,null,null,null,null,null,null,null,null,null,null,null,null,null,null,null,null,null,null,null,null,null,null,null,null,null,null,null,null,null,null,null,null,202012,{"$f":"CONCATENATE(VLOOKUP($AN$21*1,Data!$W$1:$AB$688,AO$49,FALSE),AP77)","v":"Tier 1 Capital Ratio28"},28,{"$f":"VLOOKUP($AO77,Data!$U$1:$AC$688,AQ$49,FALSE)&IF(AR77=\"\",\"*\",\"\")","v":"GR"},{"$f":"VLOOKUP($AO77,Data!$U$1:$AC$688,AR$49,FALSE)","v":0.15125018103574001},{"$f":"VLOOKUP($AO$80,Data!$U$1:$AC$688,$AR$49,FALSE)","v":0.171802273388453}]
[null,null,null,null,null,null,null,null,null,null,null,null,null,null,null,null,null,null,null,null,null,null,null,null,null,null,null,null,null,null,null,null,null,null,null,null,null,null,null,202012,{"$f":"CONCATENATE(VLOOKUP($AN$21*1,Data!$W$1:$AB$688,AO$49,FALSE),AP78)","v":"Tier 1 Capital Ratio29"},29,{"$f":"VLOOKUP($AO78,Data!$U$1:$AC$688,AQ$49,FALSE)&IF(AR78=\"\",\"*\",\"\")","v":"ES"},{"$f":"VLOOKUP($AO78,Data!$U$1:$AC$688,AR$49,FALSE)","v":0.14457768280267699},{"$f":"VLOOKUP($AO$80,Data!$U$1:$AC$688,$AR$49,FALSE)","v":0.171802273388453}]
[null,null,null,null,null,null,null,null,null,null,null,null,null,null,null,null,null,null,null,null,null,null,null,null,null,null,null,null,null,null,null,null,null,null,null,null,null,null,null,202012,{"$f":"CONCATENATE(VLOOKUP($AN$21*1,Data!$W$1:$AB$688,AO$49,FALSE),AP79)","v":"Tier 1 Capital Ratio100"},100,{"$f":"VLOOKUP($AO79,Data!$U$1:$AC$688,AQ$49,FALSE)&IF(AR79=\"\",\"*\",\"\")","v":"GB"},{"$f":"VLOOKUP($AO79,Data!$U$1:$AC$688,AR$49,FALSE)","v":0.18301821034278101},{"$f":"VLOOKUP($AO$80,Data!$U$1:$AC$688,$AR$49,FALSE)","v":0.171802273388453}]
[null,null,null,null,null,null,null,null,null,null,null,null,null,null,null,null,null,null,null,null,null,null,null,null,null,null,null,null,null,null,null,null,null,null,null,null,null,null,null,{"$f":"MAX($AL$25:$AL$45)","v":202012},{"$f":"CONCATENATE(VLOOKUP($AN$21*1,Data!$W$1:$AB$688,AO$49,FALSE),AP80)","v":"Tier 1 Capital Ratio99"},99,{"$f":"VLOOKUP($AO80,Data!$U$1:$AC$688,AQ$49,FALSE)&IF(AR80=\"\",\"*\",\"\")","v":"EU"},{"$f":"VLOOKUP($AO80,Data!$U$1:$AC$688,AR$49,FALSE)","v":0.171802273388453},{"$f":"VLOOKUP($AO$80,Data!$U$1:$AC$688,$AR$49,FALSE)","v":0.171802273388453}]

{"sheet":"Assets","index":3,"n_rows":87,"n_cols":29,"rows_kept":87,"cut":false,"hidden":false,"merged":[[82,3,82,4],[82,14,82,15],[83,3,83,4],[83,18,83,19],[85,3,85,27],[79,3,79,4],[79,14,79,15],[80,3,80,4],[80,14,80,15],[81,3,81,4],[81,14,81,15],[76,3,76,4],[76,14,76,15],[77,3,77,4],[77,14,77,15],[78,3,78,4],[78,14,78,15],[73,3,73,4],[73,14,73,15],[74,3,74,4],[74,14,74,15],[75,3,75,4],[75,14,75,15],[70,3,70,4],[70,14,70,15],[71,3,71,4],[71,14,71,15],[72,3,72,4],[72,14,72,15],[67,3,67,4],[67,14,67,15],[68,3,68,4],[68,14,68,15],[69,3,69,4],[69,14,69,15],[64,3,64,4],[64,14,64,15],[65,3,65,4],[65,14,65,15],[66,3,66,4],[66,14,66,15],[61,3,61,4],[61,14,61,15],[62,3,62,4],[62,14,62,15],[63,3,63,4],[63,14,63,15],[58,3,58,4],[58,14,58,15],[59,3,59,4],[59,14,59,15],[60,3,60,4],[60,14,60,15],[55,3,55,4],[55,14,55,15],[56,3,56,4],[56,14,56,15],[57,3,57,4],[57,14,57,15],[52,3,52,4],[52,14,52,15],[53,3,53,4],[53,14,53,15],[54,3,54,4],[54,14,54,15],[47,3,48,12],[47,14,48,27],[50,5,50,8],[50,9,50,12],[50,16,50,19],[50,20,50,23],[50,24,50,27],[3,3,3,27],[4,3,4,27],[6,3,6,25],[7,3,8,27],[10,4,10,7],[10,8,10,11],[10,12,10,15],[10,16,10,19],[10,20,10,23],[10,24,10,27]]}
[null,null,null,{"$f":"(\"'\"&MID(CELL(\"filename\",$A$1),FIND(\"]\",CELL(\"filename\",$A$1))+1,32)&\"'\")","v":"'Assets'"},"T01_1","T01_1","T01_1","T01_1","T01_2","T01_2","T01_2","T01_2","T01_3","T01_3","T01_3","T01_3","T01_4","T01_4","T01_4","T01_4","T01_5","T01_5","T01_5","T01_5","T01_6","T01_6","T01_6","T01_6"]
[{"$f":"'Reference Dates'!$C$8","v":"202012"},null,null,null,{"$f":"TEXT(E12,\"YYYYMM\")+0","v":202003},{"$f":"TEXT(F12,\"YYYYMM\")+0","v":202006},202009,202012,202003,202006,202009,202012,202003,202006,202009,202012,202003,202006,202009,202012,202003,202006,202009,202012,202003,202006,202009,202012]
[{"$f":"DATE(LEFT(A2,4),RIGHT(A2,2),1)","v":"2020-12-01"}]
[null,null,null,"Statistical Annex"]
[null,null,null,"Asset composition and volumes"]
[]
[]
[null,"CH_1",null,"Asset composition"]
[]
[null,null,null,"% of total assets"]
[null,null,null,null,"Cash balances",null,null,null,"Equity instruments",null,null,null,"Debt securities",null,null,null,"Loans and advances",null,null,null,"Derivatives",null,null,null,"Other Assets"]
[null,null,null,null,{"$f":"EOMONTH($A$3,-9)","v":"2020-03-31"},{"$f":"EOMONTH($A$3,-6)","v":"2020-06-30"},{"$f":"EOMONTH($A$3,-3)","v":"2020-09-30"},{"$f":"$A$3","v":"2020-12-01"},{"$f":"EOMONTH($A$3,-9)","v":"2020-03-31"},{"$f":"EOMONTH($A$3,-6)","v":"2020-06-30"},{"$f":"EOMONTH($A$3,-3)","v":"2020-09-30"},{"$f":"$A$3","v":"2020-12-01"},{"$f":"EOMONTH($A$3,-9)","v":"2020-03-31"},{"$f":"EOMONTH($A$3,-6)","v":"2020-06-30"},{"$f":"EOMONTH($A$3,-3)","v":"2020-09-30"},{"$f":"$A$3","v":"2020-12-01"},{"$f":"EOMONTH($A$3,-9)","v":"2020-03-31"},{"$f":"EOMONTH($A$3,-6)","v":"2020-06-30"},{"$f":"EOMONTH($A$3,-3)","v":"2020-09-30"},{"$f":"$A$3","v":"2020-12-01"},{"$f":"EOMONTH($A$3,-9)","v":"2020-03-31"},{"$f":"EOMONTH($A$3,-6)","v":"2020-06-30"},{"$f":"EOMONTH($A$3,-3)","v":"2020-09-30"},{"$f":"$A$3","v":"2020-12-01"},{"$f":"EOMONTH($A$3,-9)","v":"2020-03-31"},{"$f":"EOMONTH($A$3,-6)","v":"2020-06-30"},{"$f":"EOMONTH($A$3,-3)","v":"2020-09-30"},{"$f":"$A$3","v":"2020-12-01"}]
[null,"AT",null,{"$f":"IF(OR(E13=\"n.a.\",F13=\"n.a.\",G13=\"n.a.\",H13=\"n.a.\",I13=\"n.a.\",J13=\"n.a.\",K13=\"n.a.\",L13=\"n.a.\",M13=\"n.a.\",N13=\"n.a.\",O13=\"n.a.\",P13=\"n.a.\",Q13=\"n.a.\",R13=\"n.a.\",S13=\"n.a.\",T13=\"n.a.\",U13=\"n.a.\",V13=\"n.a.\",W13=\"n.a.\",X13=\"n.a.\",Y13=\"n.a.\",Z13=\"n.a.\",AA13=\"n.a.\",AB13=\"n.a.\"),$B13&\"*\",$B13)","v":"AT"},{"$f":"IFERROR(INDEX('Data Annex'!$K$1:$AN$869,MATCH(Assets!E$1&\"|\"&Assets!$B13,'Data Annex'!$K$1:$K$869,0),MATCH(Assets!E$2,'Data Annex'!$K$1:$AN$1,0)),\"\")","v":0.1111763637},{"$f":"IFERROR(INDEX('Data Annex'!$K$1:$AN$869,MATCH(Assets!F$1&\"|\"&Assets!$B13,'Data Annex'!$K$1:$K$869,0),MATCH(Assets!F$2,'Data Annex'!$K$1:$AN$1,0)),\"\")","v":0.13354626820000001},{"$f":"IFERROR(INDEX('Data Annex'!$K$1:$AN$869,MATCH(Assets!G$1&\"|\"&Assets!$B13,'Data Annex'!$K$1:$K$869,0),MATCH(Assets!G$2,'Data Annex'!$K$1:$AN$1,0)),\"\")","v":0.15570561490000001},{"$f":"IFERROR(INDEX('Data Annex'!$K$1:$AN$869,MATCH(Assets!H$1&\"|\"&Assets!$B13,'Data Annex'!$K$1:$K$869,0),MATCH(Assets!H$2,'Data Annex'!$K$1:$AN$1,0)),\"\")","v":0.17661627320000001},{"$f":"IFERROR(INDEX('Data Annex'!$K$1:$AN$869,MATCH(Assets!I$1&\"|\"&Assets!$B13,'Data Annex'!$K$1:$K$869,0),MATCH(Assets!I$2,'Data Annex'!$K$1:$AN$1,0)),\"\")","v":2.7082215E-3},{"$f":"IFERROR(INDEX('Data Annex'!$K$1:$AN$869,MATCH(Assets!J$1&\"|\"&Assets!$B13,'Data Annex'!$K$1:$K$869,0),MATCH(Assets!J$2,'Data Annex'!$K$1:$AN$1,0)),\"\")","v":2.7824716000000001E-3},{"$f":"IFERROR(INDEX('Data Annex'!$K$1:$AN$869,MATCH(Assets!K$1&\"|\"&Assets!$B13,'Data Annex'!$K$1:$K$869,0),MATCH(Assets!K$2,'Data Annex'!$K$1:$AN$1,0)),\"\")","v":2.7046616999999999E-3},{"$f":"IFERROR(INDEX('Data Annex'!$K$1:$AN$869,MATCH(Assets!L$1&\"|\"&Assets!$B13,'Data Annex'!$K$1:$K$869,0),MATCH(Assets!L$2,'Data Annex'!$K$1:$AN$1,0)),\"\")","v":5.2577348000000003E-3},{"$f":"IFERROR(INDEX('Data Annex'!$K$1:$AN$869,MATCH(Assets!M$1&\"|\"&Assets!$B13,'Data Annex'!$K$1:$K$869,0),MATCH(Assets!M$2,'Data Annex'!$K$1:$AN$1,0)),\"\")","v":0.14284667719999999},{"$f":"IFERROR(INDEX('Data Annex'!$K$1:$AN$869,MATCH(Assets!N$1&\"|\"&Assets!$B13,'Data Annex'!$K$1:$K$869,0),MATCH(Assets!N$2,'Data Annex'!$K$1:$AN$1,0)),\"\")","v":0.14570061440000001},{"$f":"IFERROR(INDEX('Data Annex'!$K$1:$AN$869,MATCH(Assets!O$1&\"|\"&Assets!$B13,'Data Annex'!$K$1:$K$869,0),MATCH(Assets!O$2,'Data Annex'!$K$1:$AN$1,0)),\"\")","v":0.13881621890000001},{"$f":"IFERROR(INDEX('Data Annex'!$K$1:$AN$869,MATCH(Assets!P$1&\"|\"&Assets!$B13,'Data Annex'!$K$1:$K$869,0),MATCH(Assets!P$2,'Data Annex'!$K$1:$AN$1,0)),\"\")","v":0.13431593580000001},{"$f":"IFERROR(INDEX('Data Annex'!$K$1:$AN$869,MATCH(Assets!Q$1&\"|\"&Assets!$B13,'Data Annex'!$K$1:$K$869,0),MATCH(Assets!Q$2,'Data Annex'!$K$1:$AN$1,0)),\"\")","v":0.68617133299999999},{"$f":"IFERROR(INDEX('Data Annex'!$K$1:$AN$869,MATCH(Assets!R$1&\"|\"&Assets!$B13,'Data Annex'!$K$1:$K$869,0),MATCH(Assets!R$2,'Data Annex'!$K$1:$AN$1,0)),\"\")","v":0.66569158709999998},{"$f":"IFERROR(INDEX('Data Annex'!$K$1:$AN$869,MATCH(Assets!S$1&\"|\"&Assets!$B13,'Data Annex'!$K$1:$K$869,0),MATCH(Assets!S$2,'Data Annex'!$K$1:$AN$1,0)),\"\")","v":0.65090590749999999},{"$f":"IFERROR(INDEX('Data Annex'!$K$1:$AN$869,MATCH(Assets!T$1&\"|\"&Assets!$B13,'Data Annex'!$K$1:$K$869,0),MATCH(Assets!T$2,'Data Annex'!$K$1:$AN$1,0)),\"\")","v":0.63420902239999999},{"$f":"IFERROR(INDEX('Data Annex'!$K$1:$AN$869,MATCH(Assets!U$1&\"|\"&Assets!$B13,'Data Annex'!$K$1:$K$869,0),MATCH(Assets!U$2,'Data Annex'!$K$1:$AN$1,0)),\"\")","v":2.2073549200000001E-2},{"$f":"IFERROR(INDEX('Data Annex'!$K$1:$AN$869,MATCH(Assets!V$1&\"|\"&Assets!$B13,'Data Annex'!$K$1:$K$869,0),MATCH(Assets!V$2,'Data Annex'!$K$1:$AN$1,0)),\"\")","v":1.8979210699999999E-2},{"$f":"IFERROR(INDEX('Data Annex'!$K$1:$AN$869,MATCH(Assets!W$1&\"|\"&Assets!$B13,'Data Annex'!$K$1:$K$869,0),MATCH(Assets!W$2,'Data Annex'!$K$1:$AN$1,0)),\"\")","v":1.9059061400000001E-2},{"$f":"IFERROR(INDEX('Data Annex'!$K$1:$AN$869,MATCH(Assets!X$1&\"|\"&Assets!$B13,'Data Annex'!$K$1:$K$869,0),MATCH(Assets!X$2,'Data Annex'!$K$1:$AN$1,0)),\"\")","v":1.7441265899999999E-2},{"$f":"IFERROR(INDEX('Data Annex'!$K$1:$AN$869,MATCH(Assets!Y$1&\"|\"&Assets!$B13,'Data Annex'!$K$1:$K$869,0),MATCH(Assets!Y$2,'Data Annex'!$K$1:$AN$1,0)),\"\")","v":3.5023855399999998E-2},{"$f":"IFERROR(INDEX('Data Annex'!$K$1:$AN$869,MATCH(Assets!Z$1&\"|\"&Assets!$B13,'Data Annex'!$K$1:$K$869,0),MATCH(Assets!Z$2,'Data Annex'!$K$1:$AN$1,0)),\"\")","v":3.3299847899999999E-2},{"$f":"IFERROR(INDEX('Data Annex'!$K$1:$AN$869,MATCH(Assets!AA$1&\"|\"&Assets!$B13,'Data Annex'!$K$1:$K$869,0),MATCH(Assets!AA$2,'Data Annex'!$K$1:$AN$1,0)),\"\")","v":3.2808535600000001E-2},{"$f":"IFERROR(INDEX('Data Annex'!$K$1:$AN$869,MATCH(Assets!AB$1&\"|\"&Assets!$B13,'Data Annex'!$K$1:$K$869,0),MATCH(Assets!AB$2,'Data Annex'!$K$1:$AN$1,0)),\"\")","v":3.2159767899999997E-2},{"$f":"IFERROR(INDEX('Data Annex'!$K$1:$AH$869,MATCH(Assets!AC$1&\"|\"&Assets!$B13,'Data Annex'!$K$1:$K$869,0),MATCH(Assets!AC$2,'Data Annex'!$K$1:$AH$1,0)),\"\")","v":""}]
[null,"BE",null,{"$f":"IF(OR(E14=\"n.a.\",F14=\"n.a.\",G14=\"n.a.\",H14=\"n.a.\",I14=\"n.a.\",J14=\"n.a.\",K14=\"n.a.\",L14=\"n.a.\",M14=\"n.a.\",N14=\"n.a.\",O14=\"n.a.\",P14=\"n.a.\",Q14=\"n.a.\",R14=\"n.a.\",S14=\"n.a.\",T14=\"n.a.\",U14=\"n.a.\",V14=\"n.a.\",W14=\"n.a.\",X14=\"n.a.\",Y14=\"n.a.\",Z14=\"n.a.\",AA14=\"n.a.\",AB14=\"n.a.\"),$B14&\"*\",$B14)","v":"BE"},{"$f":"IFERROR(INDEX('Data Annex'!$K$1:$AN$869,MATCH(Assets!E$1&\"|\"&Assets!$B14,'Data Annex'!$K$1:$K$869,0),MATCH(Assets!E$2,'Data Annex'!$K$1:$AN$1,0)),\"\")","v":9.2853227299999994E-2},{"$f":"IFERROR(INDEX('Data Annex'!$K$1:$AN$869,MATCH(Assets!F$1&\"|\"&Assets!$B14,'Data Annex'!$K$1:$K$869,0),MATCH(Assets!F$2,'Data Annex'!$K$1:$AN$1,0)),\"\")","v":0.12743061459999999},{"$f":"IFERROR(INDEX('Data Annex'!$K$1:$AN$869,MATCH(Assets!G$1&\"|\"&Assets!$B14,'Data Annex'!$K$1:$K$869,0),MATCH(Assets!G$2,'Data Annex'!$K$1:$AN$1,0)),\"\")","v":0.14336311139999999},{"$f":"IFERROR(INDEX('Data Annex'!$K$1:$AN$869,MATCH(Assets!H$1&\"|\"&Assets!$B14,'Data Annex'!$K$1:$K$869,0),MATCH(Assets!H$2,'Data Annex'!$K$1:$AN$1,0)),\"\")","v":0.1548956813},{"$f":"IFERROR(INDEX('Data Annex'!$K$1:$AN$869,MATCH(Assets!I$1&\"|\"&Assets!$B14,'Data Annex'!$K$1:$K$869,0),MATCH(Assets!I$2,'Data Annex'!$K$1:$AN$1,0)),\"\")","v":1.9791345999999998E-3},{"$f":"IFERROR(INDEX('Data Annex'!$K$1:$AN$869,MATCH(Assets!J$1&\"|\"&Assets!$B14,'Data Annex'!$K$1:$K$869,0),MATCH(Assets!J$2,'Data Annex'!$K$1:$AN$1,0)),\"\")","v":2.0317277999999999E-3},{"$f":"IFERROR(INDEX('Data Annex'!$K$1:$AN$869,MATCH(Assets!K$1&\"|\"&Assets!$B14,'Data Annex'!$K$1:$K$869,0),MATCH(Assets!K$2,'Data Annex'!$K$1:$AN$1,0)),\"\")","v":1.9819839E-3},{"$f":"IFERROR(INDEX('Data Annex'!$K$1:$AN$869,MATCH(Assets!L$1&\"|\"&Assets!$B14,'Data Annex'!$K$1:$K$869,0),MATCH(Assets!L$2,'Data Annex'!$K$1:$AN$1,0)),\"\")","v":2.1127743000000001E-3},{"$f":"IFERROR(INDEX('Data Annex'!$K$1:$AN$869,MATCH(Assets!M$1&\"|\"&Assets!$B14,'Data Annex'!$K$1:$K$869,0),MATCH(Assets!M$2,'Data Annex'!$K$1:$AN$1,0)),\"\")","v":0.1410110151},{"$f":"IFERROR(INDEX('Data Annex'!$K$1:$AN$869,MATCH(Assets!N$1&\"|\"&Assets!$B14,'Data Annex'!$K$1:$K$869,0),MATCH(Assets!N$2,'Data Annex'!$K$1:$AN$1,0)),\"\")","v":0.14823431749999999},{"$f":"IFERROR(INDEX('Data Annex'!$K$1:$AN$869,MATCH(Assets!O$1&\"|\"&Assets!$B14,'Data Annex'!$K$1:$K$869,0),MATCH(Assets!O$2,'Data Annex'!$K$1:$AN$1,0)),\"\")","v":0.1448980044},{"$f":"IFERROR(INDEX('Data Annex'!$K$1:$AN$869,MATCH(Assets!P$1&\"|\"&Assets!$B14,'Data Annex'!$K$1:$K$869,0),MATCH(Assets!P$2,'Data Annex'!$K$1:$AN$1,0)),\"\")","v":0.1414386836},{"$f":"IFERROR(INDEX('Data Annex'!$K$1:$AN$869,MATCH(Assets!Q$1&\"|\"&Assets!$B14,'Data Annex'!$K$1:$K$869,0),MATCH(Assets!Q$2,'Data Annex'!$K$1:$AN$1,0)),\"\")","v":0.65123915870000004},{"$f":"IFERROR(INDEX('Data Annex'!$K$1:$AN$869,MATCH(Assets!R$1&\"|\"&Assets!$B14,'Data Annex'!$K$1:$K$869,0),MATCH(Assets!R$2,'Data Annex'!$K$1:$AN$1,0)),\"\")","v":0.61331562340000001},{"$f":"IFERROR(INDEX('Data Annex'!$K$1:$AN$869,MATCH(Assets!S$1&\"|\"&Assets!$B14,'Data Annex'!$K$1:$K$869,0),MATCH(Assets!S$2,'Data Annex'!$K$1:$AN$1,0)),\"\")","v":0.60347557190000001},{"$f":"IFERROR(INDEX('Data Annex'!$K$1:$AN$869,MATCH(Assets!T$1&\"|\"&Assets!$B14,'Data Annex'!$K$1:$K$869,0),MATCH(Assets!T$2,'Data Annex'!$K$1:$AN$1,0)),\"\")","v":0.59832622430000004},{"$f":"IFERROR(INDEX('Data Annex'!$K$1:$AN$869,MATCH(Assets!U$1&\"|\"&Assets!$B14,'Data Annex'!$K$1:$K$869,0),MATCH(Assets!U$2,'Data Annex'!$K$1:$AN$1,0)),\"\")","v":5.36302445E-2},{"$f":"IFERROR(INDEX('Data Annex'!$K$1:$AN$869,MATCH(Assets!V$1&\"|\"&Assets!$B14,'Data Annex'!$K$1:$K$869,0),MATCH(Assets!V$2,'Data Annex'!$K$1:$AN$1,0)),\"\")","v":5.02779483E-2},{"$f":"IFERROR(INDEX('Data Annex'!$K$1:$AN$869,MATCH(Assets!W$1&\"|\"&Assets!$B14,'Data Annex'!$K$1:$K$869,0),MATCH(Assets!W$2,'Data Annex'!$K$1:$AN$1,0)),\"\")","v":4.8393489599999999E-2},{"$f":"IFERROR(INDEX('Data Annex'!$K$1:$AN$869,MATCH(Assets!X$1&\"|\"&Assets!$B14,'Data Annex'!$K$1:$K$869,0),MATCH(Assets!X$2,'Data Annex'!$K$1:$AN$1,0)),\"\")","v":4.4782129099999998E-2},{"$f":"IFERROR(INDEX('Data Annex'!$K$1:$AN$869,MATCH(Assets!Y$1&\"|\"&Assets!$B14,'Data Annex'!$K$1:$K$869,0),MATCH(Assets!Y$2,'Data Annex'!$K$1:$AN$1,0)),\"\")","v":5.9287219799999999E-2},{"$f":"IFERROR(INDEX('Data Annex'!$K$1:$AN$869,MATCH(Assets!Z$1&\"|\"&Assets!$B14,'Data Annex'!$K$1:$K$869,0),MATCH(Assets!Z$2,'Data Annex'!$K$1:$AN$1,0)),\"\")","v":5.8709768500000002E-2},{"$f":"IFERROR(INDEX('Data Annex'!$K$1:$AN$869,MATCH(Assets!AA$1&\"|\"&Assets!$B14,'Data Annex'!$K$1:$K$869,0),MATCH(Assets!AA$2,'Data Annex'!$K$1:$AN$1,0)),\"\")","v":5.7887838699999999E-2},{"$f":"IFERROR(INDEX('Data Annex'!$K$1:$AN$869,MATCH(Assets!AB$1&\"|\"&Assets!$B14,'Data Annex'!$K$1:$K$869,0),MATCH(Assets!AB$2,'Data Annex'!$K$1:$AN$1,0)),\"\")","v":5.8444507499999999E-2},{"$f":"IFERROR(INDEX('Data Annex'!$K$1:$AH$869,MATCH(Assets!AC$1&\"|\"&Assets!$B14,'Data Annex'!$K$1:$K$869,0),MATCH(Assets!AC$2,'Data Annex'!$K$1:$AH$1,0)),\"\")","v":""}]
[null,"BG",null,"BG",{"$f":"IFERROR(INDEX('Data Annex'!$K$1:$AN$869,MATCH(Assets!E$1&\"|\"&Assets!$B15,'Data Annex'!$K$1:$K$869,0),MATCH(Assets!E$2,'Data Annex'!$K$1:$AN$1,0)),\"\")","v":0.16037413619999999},{"$f":"IFERROR(INDEX('Data Annex'!$K$1:$AN$869,MATCH(Assets!F$1&\"|\"&Assets!$B15,'Data Annex'!$K$1:$K$869,0),MATCH(Assets!F$2,'Data Annex'!$K$1:$AN$1,0)),\"\")","v":0.17472975139999999},{"$f":"IFERROR(INDEX('Data Annex'!$K$1:$AN$869,MATCH(Assets!G$1&\"|\"&Assets!$B15,'Data Annex'!$K$1:$K$869,0),MATCH(Assets!G$2,'Data Annex'!$K$1:$AN$1,0)),\"\")","v":0.18337160420000001},{"$f":"IFERROR(INDEX('Data Annex'!$K$1:$AN$869,MATCH(Assets!H$1&\"|\"&Assets!$B15,'Data Annex'!$K$1:$K$869,0),MATCH(Assets!H$2,'Data Annex'!$K$1:$AN$1,0)),\"\")","v":0.20416821490000001},{"$f":"IFERROR(INDEX('Data Annex'!$K$1:$AN$869,MATCH(Assets!I$1&\"|\"&Assets!$B15,'Data Annex'!$K$1:$K$869,0),MATCH(Assets!I$2,'Data Annex'!$K$1:$AN$1,0)),\"\")","v":1.4667243999999999E-3},{"$f":"IFERROR(INDEX('Data Annex'!$K$1:$AN$869,MATCH(Assets!J$1&\"|\"&Assets!$B15,'Data Annex'!$K$1:$K$869,0),MATCH(Assets!J$2,'Data Annex'!$K$1:$AN$1,0)),\"\")","v":1.5255813999999999E-3},{"$f":"IFERROR(INDEX('Data Annex'!$K$1:$AN$869,MATCH(Assets!K$1&\"|\"&Assets!$B15,'Data Annex'!$K$1:$K$869,0),MATCH(Assets!K$2,'Data Annex'!$K$1:$AN$1,0)),\"\")","v":1.4783324000000001E-3},{"$f":"IFERROR(INDEX('Data Annex'!$K$1:$AN$869,MATCH(Assets!L$1&\"|\"&Assets!$B15,'Data Annex'!$K$1:$K$869,0),MATCH(Assets!L$2,'Data Annex'!$K$1:$AN$1,0)),\"\")","v":1.3909790999999999E-3},{"$f":"IFERROR(INDEX('Data Annex'!$K$1:$AN$869,MATCH(Assets!M$1&\"|\"&Assets!$B15,'Data Annex'!$K$1:$K$869,0),MATCH(Assets!M$2,'Data Annex'!$K$1:$AN$1,0)),\"\")","v":0.15058725710000001},{"$f":"IFERROR(INDEX('Data Annex'!$K$1:$AN$869,MATCH(Assets!N$1&\"|\"&Assets!$B15,'Data Annex'!$K$1:$K$869,0),MATCH(Assets!N$2,'Data Annex'!$K$1:$AN$1,0)),\"\")","v":0.15435558390000001},{"$f":"IFERROR(INDEX('Data Annex'!$K$1:$AN$869,MATCH(Assets!O$1&\"|\"&Assets!$B15,'Data Annex'!$K$1:$K$869,0),MATCH(Assets!O$2,'Data Annex'!$K$1:$AN$1,0)),\"\")","v":0.15664468300000001},{"$f":"IFERROR(INDEX('Data Annex'!$K$1:$AN$869,MATCH(Assets!P$1&\"|\"&Assets!$B15,'Data Annex'!$K$1:$K$869,0),MATCH(Assets!P$2,'Data Annex'!$K$1:$AN$1,0)),\"\")","v":0.15186270860000001},{"$f":"IFERROR(INDEX('Data Annex'!$K$1:$AN$869,MATCH(Assets!Q$1&\"|\"&Assets!$B15,'Data Annex'!$K$1:$K$869,0),MATCH(Assets!Q$2,'Data Annex'!$K$1:$AN$1,0)),\"\")","v":0.63324148589999996},{"$f":"IFERROR(INDEX('Data Annex'!$K$1:$AN$869,MATCH(Assets!R$1&\"|\"&Assets!$B15,'Data Annex'!$K$1:$K$869,0),MATCH(Assets!R$2,'Data Annex'!$K$1:$AN$1,0)),\"\")","v":0.62094960369999996},{"$f":"IFERROR(INDEX('Data Annex'!$K$1:$AN$869,MATCH(Assets!S$1&\"|\"&Assets!$B15,'Data Annex'!$K$1:$K$869,0),MATCH(Assets!S$2,'Data Annex'!$K$1:$AN$1,0)),\"\")","v":0.61131397870000004},{"$f":"IFERROR(INDEX('Data Annex'!$K$1:$AN$869,MATCH(Assets!T$1&\"|\"&Assets!$B15,'Data Annex'!$K$1:$K$869,0),MATCH(Assets!T$2,'Data Annex'!$K$1:$AN$1,0)),\"\")","v":0.59794665120000001},{"$f":"IFERROR(INDEX('Data Annex'!$K$1:$AN$869,MATCH(Assets!U$1&\"|\"&Assets!$B15,'Data Annex'!$K$1:$K$869,0),MATCH(Assets!U$2,'Data Annex'!$K$1:$AN$1,0)),\"\")","v":2.8739962999999999E-3},{"$f":"IFERROR(INDEX('Data Annex'!$K$1:$AN$869,MATCH(Assets!V$1&\"|\"&Assets!$B15,'Data Annex'!$K$1:$K$869,0),MATCH(Assets!V$2,'Data Annex'!$K$1:$AN$1,0)),\"\")","v":1.5296792E-3},{"$f":"IFERROR(INDEX('Data Annex'!$K$1:$AN$869,MATCH(Assets!W$1&\"|\"&Assets!$B15,'Data Annex'!$K$1:$K$869,0),MATCH(Assets!W$2,'Data Annex'!$K$1:$AN$1,0)),\"\")","v":1.7522570999999999E-3},{"$f":"IFERROR(INDEX('Data Annex'!$K$1:$AN$869,MATCH(Assets!X$1&\"|\"&Assets!$B15,'Data Annex'!$K$1:$K$869,0),MATCH(Assets!X$2,'Data Annex'!$K$1:$AN$1,0)),\"\")","v":2.0621229999999999E-3},{"$f":"IFERROR(INDEX('Data Annex'!$K$1:$AN$869,MATCH(Assets!Y$1&\"|\"&Assets!$B15,'Data Annex'!$K$1:$K$869,0),MATCH(Assets!Y$2,'Data Annex'!$K$1:$AN$1,0)),\"\")","v":5.1456400200000002E-2},{"$f":"IFERROR(INDEX('Data Annex'!$K$1:$AN$869,MATCH(Assets!Z$1&\"|\"&Assets!$B15,'Data Annex'!$K$1:$K$869,0),MATCH(Assets!Z$2,'Data Annex'!$K$1:$AN$1,0)),\"\")","v":4.69098004E-2},{"$f":"IFERROR(INDEX('Data Annex'!$K$1:$AN$869,MATCH(Assets!AA$1&\"|\"&Assets!$B15,'Data Annex'!$K$1:$K$869,0),MATCH(Assets!AA$2,'Data Annex'!$K$1:$AN$1,0)),\"\")","v":4.5439144600000002E-2},{"$f":"IFERROR(INDEX('Data Annex'!$K$1:$AN$869,MATCH(Assets!AB$1&\"|\"&Assets!$B15,'Data Annex'!$K$1:$K$869,0),MATCH(Assets!AB$2,'Data Annex'!$K$1:$AN$1,0)),\"\")","v":4.2569323100000001E-2},{"$f":"IFERROR(INDEX('Data Annex'!$K$1:$AH$869,MATCH(Assets!AC$1&\"|\"&Assets!$B15,'Data Annex'!$K$1:$K$869,0),MATCH(Assets!AC$2,'Data Annex'!$K$1:$AH$1,0)),\"\")","v":""}]
[null,"CY",null,"CY",{"$f":"IFERROR(INDEX('Data Annex'!$K$1:$AN$869,MATCH(Assets!E$1&\"|\"&Assets!$B16,'Data Annex'!$K$1:$K$869,0),MATCH(Assets!E$2,'Data Annex'!$K$1:$AN$1,0)),\"\")","v":0.2460876273},{"$f":"IFERROR(INDEX('Data Annex'!$K$1:$AN$869,MATCH(Assets!F$1&\"|\"&Assets!$B16,'Data Annex'!$K$1:$K$869,0),MATCH(Assets!F$2,'Data Annex'!$K$1:$AN$1,0)),\"\")","v":0.24031109519999999},{"$f":"IFERROR(INDEX('Data Annex'!$K$1:$AN$869,MATCH(Assets!G$1&\"|\"&Assets!$B16,'Data Annex'!$K$1:$K$869,0),MATCH(Assets!G$2,'Data Annex'!$K$1:$AN$1,0)),\"\")","v":0.2433024396},{"$f":"IFERROR(INDEX('Data Annex'!$K$1:$AN$869,MATCH(Assets!H$1&\"|\"&Assets!$B16,'Data Annex'!$K$1:$K$869,0),MATCH(Assets!H$2,'Data Annex'!$K$1:$AN$1,0)),\"\")","v":0.2659383749},{"$f":"IFERROR(INDEX('Data Annex'!$K$1:$AN$869,MATCH(Assets!I$1&\"|\"&Assets!$B16,'Data Annex'!$K$1:$K$869,0),MATCH(Assets!I$2,'Data Annex'!$K$1:$AN$1,0)),\"\")","v":8.5417670000000002E-4},{"$f":"IFERROR(INDEX('Data Annex'!$K$1:$AN$869,MATCH(Assets!J$1&\"|\"&Assets!$B16,'Data Annex'!$K$1:$K$869,0),MATCH(Assets!J$2,'Data Annex'!$K$1:$AN$1,0)),\"\")","v":9.4598499999999999E-4},{"$f":"IFERROR(INDEX('Data Annex'!$K$1:$AN$869,MATCH(Assets!K$1&\"|\"&Assets!$B16,'Data Annex'!$K$1:$K$869,0),MATCH(Assets!K$2,'Data Annex'!$K$1:$AN$1,0)),\"\")","v":9.4743669999999998E-4},{"$f":"IFERROR(INDEX('Data Annex'!$K$1:$AN$869,MATCH(Assets!L$1&\"|\"&Assets!$B16,'Data Annex'!$K$1:$K$869,0),MATCH(Assets!L$2,'Data Annex'!$K$1:$AN$1,0)),\"\")","v":1.0826726E-3},{"$f":"IFERROR(INDEX('Data Annex'!$K$1:$AN$869,MATCH(Assets!M$1&\"|\"&Assets!$B16,'Data Annex'!$K$1:$K$869,0),MATCH(Assets!M$2,'Data Annex'!$K$1:$AN$1,0)),\"\")","v":0.18691973009999999},{"$f":"IFERROR(INDEX('Data Annex'!$K$1:$AN$869,MATCH(Assets!N$1&\"|\"&Assets!$B16,'Data Annex'!$K$1:$K$869,0),MATCH(Assets!N$2,'Data Annex'!$K$1:$AN$1,0)),\"\")","v":0.2081078083},{"$f":"IFERROR(INDEX('Data Annex'!$K$1:$AN$869,MATCH(Assets!O$1&\"|\"&Assets!$B16,'Data Annex'!$K$1:$K$869,0),MATCH(Assets!O$2,'Data Annex'!$K$1:$AN$1,0)),\"\")","v":0.2071586822},{"$f":"IFERROR(INDEX('Data Annex'!$K$1:$AN$869,MATCH(Assets!P$1&\"|\"&Assets!$B16,'Data Annex'!$K$1:$K$869,0),MATCH(Assets!P$2,'Data Annex'!$K$1:$AN$1,0)),\"\")","v":0.18482963899999999},{"$f":"IFERROR(INDEX('Data Annex'!$K$1:$AN$869,MATCH(Assets!Q$1&\"|\"&Assets!$B16,'Data Annex'!$K$1:$K$869,0),MATCH(Assets!Q$2,'Data Annex'!$K$1:$AN$1,0)),\"\")","v":0.48128467159999999},{"$f":"IFERROR(INDEX('Data Annex'!$K$1:$AN$869,MATCH(Assets!R$1&\"|\"&Assets!$B16,'Data Annex'!$K$1:$K$869,0),MATCH(Assets!R$2,'Data Annex'!$K$1:$AN$1,0)),\"\")","v":0.46014558989999998},{"$f":"IFERROR(INDEX('Data Annex'!$K$1:$AN$869,MATCH(Assets!S$1&\"|\"&Assets!$B16,'Data Annex'!$K$1:$K$869,0),MATCH(Assets!S$2,'Data Annex'!$K$1:$AN$1,0)),\"\")","v":0.45641676730000003},{"$f":"IFERROR(INDEX('Data Annex'!$K$1:$AN$869,MATCH(Assets!T$1&\"|\"&Assets!$B16,'Data Annex'!$K$1:$K$869,0),MATCH(Assets!T$2,'Data Annex'!$K$1:$AN$1,0)),\"\")","v":0.45299395799999997},{"$f":"IFERROR(INDEX('Data Annex'!$K$1:$AN$869,MATCH(Assets!U$1&\"|\"&Assets!$B16,'Data Annex'!$K$1:$K$869,0),MATCH(Assets!U$2,'Data Annex'!$K$1:$AN$1,0)),\"\")","v":6.3021710000000001E-4},{"$f":"IFERROR(INDEX('Data Annex'!$K$1:$AN$869,MATCH(Assets!V$1&\"|\"&Assets!$B16,'Data Annex'!$K$1:$K$869,0),MATCH(Assets!V$2,'Data Annex'!$K$1:$AN$1,0)),\"\")","v":4.7325550000000002E-4},{"$f":"IFERROR(INDEX('Data Annex'!$K$1:$AN$869,MATCH(Assets!W$1&\"|\"&Assets!$B16,'Data Annex'!$K$1:$K$869,0),MATCH(Assets!W$2,'Data Annex'!$K$1:$AN$1,0)),\"\")","v":6.0088790000000002E-4},{"$f":"IFERROR(INDEX('Data Annex'!$K$1:$AN$869,MATCH(Assets!X$1&\"|\"&Assets!$B16,'Data Annex'!$K$1:$K$869,0),MATCH(Assets!X$2,'Data Annex'!$K$1:$AN$1,0)),\"\")","v":6.8858299999999999E-4},{"$f":"IFERROR(INDEX('Data Annex'!$K$1:$AN$869,MATCH(Assets!Y$1&\"|\"&Assets!$B16,'Data Annex'!$K$1:$K$869,0),MATCH(Assets!Y$2,'Data Annex'!$K$1:$AN$1,0)),\"\")","v":8.4223577199999997E-2},{"$f":"IFERROR(INDEX('Data Annex'!$K$1:$AN$869,MATCH(Assets!Z$1&\"|\"&Assets!$B16,'Data Annex'!$K$1:$K$869,0),MATCH(Assets!Z$2,'Data Annex'!$K$1:$AN$1,0)),\"\")","v":9.0016266100000006E-2},{"$f":"IFERROR(INDEX('Data Annex'!$K$1:$AN$869,MATCH(Assets!AA$1&\"|\"&Assets!$B16,'Data Annex'!$K$1:$K$869,0),MATCH(Assets!AA$2,'Data Annex'!$K$1:$AN$1,0)),\"\")","v":9.1573786300000001E-2},{"$f":"IFERROR(INDEX('Data Annex'!$K$1:$AN$869,MATCH(Assets!AB$1&\"|\"&Assets!$B16,'Data Annex'!$K$1:$K$869,0),MATCH(Assets!AB$2,'Data Annex'!$K$1:$AN$1,0)),\"\")","v":9.4466772599999999E-2},{"$f":"IFERROR(INDEX('Data Annex'!$K$1:$AH$869,MATCH(Assets!AC$1&\"|\"&Assets!$B16,'Data Annex'!$K$1:$K$869,0),MATCH(Assets!AC$2,'Data Annex'!$K$1:$AH$1,0)),\"\")","v":""}]
[null,"CZ",null,"CZ",{"$f":"IFERROR(INDEX('Data Annex'!$K$1:$AN$869,MATCH(Assets!E$1&\"|\"&Assets!$B17,'Data Annex'!$K$1:$K$869,0),MATCH(Assets!E$2,'Data Annex'!$K$1:$AN$1,0)),\"\")","v":4.3011830500000001E-2},{"$f":"IFERROR(INDEX('Data Annex'!$K$1:$AN$869,MATCH(Assets!F$1&\"|\"&Assets!$B17,'Data Annex'!$K$1:$K$869,0),MATCH(Assets!F$2,'Data Annex'!$K$1:$AN$1,0)),\"\")","v":2.5620936899999999E-2},{"$f":"IFERROR(INDEX('Data Annex'!$K$1:$AN$869,MATCH(Assets!G$1&\"|\"&Assets!$B17,'Data Annex'!$K$1:$K$869,0),MATCH(Assets!G$2,'Data Annex'!$K$1:$AN$1,0)),\"\")","v":2.9451987299999999E-2},{"$f":"IFERROR(INDEX('Data Annex'!$K$1:$AN$869,MATCH(Assets!H$1&\"|\"&Assets!$B17,'Data Annex'!$K$1:$K$869,0),MATCH(Assets!H$2,'Data Annex'!$K$1:$AN$1,0)),\"\")","v":2.2068969399999999E-2},{"$f":"IFERROR(INDEX('Data Annex'!$K$1:$AN$869,MATCH(Assets!I$1&\"|\"&Assets!$B17,'Data Annex'!$K$1:$K$869,0),MATCH(Assets!I$2,'Data Annex'!$K$1:$AN$1,0)),\"\")","v":5.0848159999999996E-4},{"$f":"IFERROR(INDEX('Data Annex'!$K$1:$AN$869,MATCH(Assets!J$1&\"|\"&Assets!$B17,'Data Annex'!$K$1:$K$869,0),MATCH(Assets!J$2,'Data Annex'!$K$1:$AN$1,0)),\"\")","v":6.2794700000000001E-4},{"$f":"IFERROR(INDEX('Data Annex'!$K$1:$AN$869,MATCH(Assets!K$1&\"|\"&Assets!$B17,'Data Annex'!$K$1:$K$869,0),MATCH(Assets!K$2,'Data Annex'!$K$1:$AN$1,0)),\"\")","v":8.1915289999999995E-4},{"$f":"IFERROR(INDEX('Data Annex'!$K$1:$AN$869,MATCH(Assets!L$1&\"|\"&Assets!$B17,'Data Annex'!$K$1:$K$869,0),MATCH(Assets!L$2,'Data Annex'!$K$1:$AN$1,0)),\"\")","v":6.523252E-4},{"$f":"IFERROR(INDEX('Data Annex'!$K$1:$AN$869,MATCH(Assets!M$1&\"|\"&Assets!$B17,'Data Annex'!$K$1:$K$869,0),MATCH(Assets!M$2,'Data Annex'!$K$1:$AN$1,0)),\"\")","v":0.1141065751},{"$f":"IFERROR(INDEX('Data Annex'!$K$1:$AN$869,MATCH(Assets!N$1&\"|\"&Assets!$B17,'Data Annex'!$K$1:$K$869,0),MATCH(Assets!N$2,'Data Annex'!$K$1:$AN$1,0)),\"\")","v":0.1407540098},{"$f":"IFERROR(INDEX('Data Annex'!$K$1:$AN$869,MATCH(Assets!O$1&\"|\"&Assets!$B17,'Data Annex'!$K$1:$K$869,0),MATCH(Assets!O$2,'Data Annex'!$K$1:$AN$1,0)),\"\")","v":0.13622191489999999},{"$f":"IFERROR(INDEX('Data Annex'!$K$1:$AN$869,MATCH(Assets!P$1&\"|\"&Assets!$B17,'Data Annex'!$K$1:$K$869,0),MATCH(Assets!P$2,'Data Annex'!$K$1:$AN$1,0)),\"\")","v":0.1446508339},{"$f":"IFERROR(INDEX('Data Annex'!$K$1:$AN$869,MATCH(Assets!Q$1&\"|\"&Assets!$B17,'Data Annex'!$K$1:$K$869,0),MATCH(Assets!Q$2,'Data Annex'!$K$1:$AN$1,0)),\"\")","v":0.7926149374},{"$f":"IFERROR(INDEX('Data Annex'!$K$1:$AN$869,MATCH(Assets!R$1&\"|\"&Assets!$B17,'Data Annex'!$K$1:$K$869,0),MATCH(Assets!R$2,'Data Annex'!$K$1:$AN$1,0)),\"\")","v":0.7855485901},{"$f":"IFERROR(INDEX('Data Annex'!$K$1:$AN$869,MATCH(Assets!S$1&\"|\"&Assets!$B17,'Data Annex'!$K$1:$K$869,0),MATCH(Assets!S$2,'Data Annex'!$K$1:$AN$1,0)),\"\")","v":0.78630919320000003},{"$f":"IFERROR(INDEX('Data Annex'!$K$1:$AN$869,MATCH(Assets!T$1&\"|\"&Assets!$B17,'Data Annex'!$K$1:$K$869,0),MATCH(Assets!T$2,'Data Annex'!$K$1:$AN$1,0)),\"\")","v":0.79140451580000004},{"$f":"IFERROR(INDEX('Data Annex'!$K$1:$AN$869,MATCH(Assets!U$1&\"|\"&Assets!$B17,'Data Annex'!$K$1:$K$869,0),MATCH(Assets!U$2,'Data Annex'!$K$1:$AN$1,0)),\"\")","v":3.0945728700000001E-2},{"$f":"IFERROR(INDEX('Data Annex'!$K$1:$AN$869,MATCH(Assets!V$1&\"|\"&Assets!$B17,'Data Annex'!$K$1:$K$869,0),MATCH(Assets!V$2,'Data Annex'!$K$1:$AN$1,0)),\"\")","v":2.79487E-2},{"$f":"IFERROR(INDEX('Data Annex'!$K$1:$AN$869,MATCH(Assets!W$1&\"|\"&Assets!$B17,'Data Annex'!$K$1:$K$869,0),MATCH(Assets!W$2,'Data Annex'!$K$1:$AN$1,0)),\"\")","v":2.7891447400000002E-2},{"$f":"IFERROR(INDEX('Data Annex'!$K$1:$AN$869,MATCH(Assets!X$1&\"|\"&Assets!$B17,'Data Annex'!$K$1:$K$869,0),MATCH(Assets!X$2,'Data Annex'!$K$1:$AN$1,0)),\"\")","v":2.14082196E-2},{"$f":"IFERROR(INDEX('Data Annex'!$K$1:$AN$869,MATCH(Assets!Y$1&\"|\"&Assets!$B17,'Data Annex'!$K$1:$K$869,0),MATCH(Assets!Y$2,'Data Annex'!$K$1:$AN$1,0)),\"\")","v":1.88124468E-2},{"$f":"IFERROR(INDEX('Data Annex'!$K$1:$AN$869,MATCH(Assets!Z$1&\"|\"&Assets!$B17,'Data Annex'!$K$1:$K$869,0),MATCH(Assets!Z$2,'Data Annex'!$K$1:$AN$1,0)),\"\")","v":1.9499816199999999E-2},{"$f":"IFERROR(INDEX('Data Annex'!$K$1:$AN$869,MATCH(Assets!AA$1&\"|\"&Assets!$B17,'Data Annex'!$K$1:$K$869,0),MATCH(Assets!AA$2,'Data Annex'!$K$1:$AN$1,0)),\"\")","v":1.9306304199999999E-2},{"$f":"IFERROR(INDEX('Data Annex'!$K$1:$AN$869,MATCH(Assets!AB$1&\"|\"&Assets!$B17,'Data Annex'!$K$1:$K$869,0),MATCH(Assets!AB$2,'Data Annex'!$K$1:$AN$1,0)),\"\")","v":1.9815136099999998E-2},{"$f":"IFERROR(INDEX('Data Annex'!$K$1:$AH$869,MATCH(Assets!AC$1&\"|\"&Assets!$B17,'Data Annex'!$K$1:$K$869,0),MATCH(Assets!AC$2,'Data Annex'!$K$1:$AH$1,0)),\"\")","v":""}]
[null,"DE",null,"DE",{"$f":"IFERROR(INDEX('Data Annex'!$K$1:$AN$869,MATCH(Assets!E$1&\"|\"&Assets!$B18,'Data Annex'!$K$1:$K$869,0),MATCH(Assets!E$2,'Data Annex'!$K$1:$AN$1,0)),\"\")","v":0.1039789879},{"$f":"IFERROR(INDEX('Data Annex'!$K$1:$AN$869,MATCH(Assets!F$1&\"|\"&Assets!$B18,'Data Annex'!$K$1:$K$869,0),MATCH(Assets!F$2,'Data Annex'!$K$1:$AN$1,0)),\"\")","v":0.1388390524},{"$f":"IFERROR(INDEX('Data Annex'!$K$1:$AN$869,MATCH(Assets!G$1&\"|\"&Assets!$B18,'Data Annex'!$K$1:$K$869,0),MATCH(Assets!G$2,'Data Annex'!$K$1:$AN$1,0)),\"\")","v":0.1515821735},{"$f":"IFERROR(INDEX('Data Annex'!$K$1:$AN$869,MATCH(Assets!H$1&\"|\"&Assets!$B18,'Data Annex'!$K$1:$K$869,0),MATCH(Assets!H$2,'Data Annex'!$K$1:$AN$1,0)),\"\")","v":0.13793735330000001},{"$f":"IFERROR(INDEX('Data Annex'!$K$1:$AN$869,MATCH(Assets!I$1&\"|\"&Assets!$B18,'Data Annex'!$K$1:$K$869,0),MATCH(Assets!I$2,'Data Annex'!$K$1:$AN$1,0)),\"\")","v":6.7283457E-3},{"$f":"IFERROR(INDEX('Data Annex'!$K$1:$AN$869,MATCH(Assets!J$1&\"|\"&Assets!$B18,'Data Annex'!$K$1:$K$869,0),MATCH(Assets!J$2,'Data Annex'!$K$1:$AN$1,0)),\"\")","v":7.3411474999999999E-3},{"$f":"IFERROR(INDEX('Data Annex'!$K$1:$AN$869,MATCH(Assets!K$1&\"|\"&Assets!$B18,'Data Annex'!$K$1:$K$869,0),MATCH(Assets!K$2,'Data Annex'!$K$1:$AN$1,0)),\"\")","v":7.3065904999999997E-3},{"$f":"IFERROR(INDEX('Data Annex'!$K$1:$AN$869,MATCH(Assets!L$1&\"|\"&Assets!$B18,'Data Annex'!$K$1:$K$869,0),MATCH(Assets!L$2,'Data Annex'!$K$1:$AN$1,0)),\"\")","v":7.5918542000000004E-3},{"$f":"IFERROR(INDEX('Data Annex'!$K$1:$AN$869,MATCH(Assets!M$1&\"|\"&Assets!$B18,'Data Annex'!$K$1:$K$869,0),MATCH(Assets!M$2,'Data Annex'!$K$1:$AN$1,0)),\"\")","v":0.134426301},{"$f":"IFERROR(INDEX('Data Annex'!$K$1:$AN$869,MATCH(Assets!N$1&\"|\"&Assets!$B18,'Data Annex'!$K$1:$K$869,0),MATCH(Assets!N$2,'Data Annex'!$K$1:$AN$1,0)),\"\")","v":0.1369815077},{"$f":"IFERROR(INDEX('Data Annex'!$K$1:$AN$869,MATCH(Assets!O$1&\"|\"&Assets!$B18,'Data Annex'!$K$1:$K$869,0),MATCH(Assets!O$2,'Data Annex'!$K$1:$AN$1,0)),\"\")","v":0.13667164470000001},{"$f":"IFERROR(INDEX('Data Annex'!$K$1:$AN$869,MATCH(Assets!P$1&\"|\"&Assets!$B18,'Data Annex'!$K$1:$K$869,0),MATCH(Assets!P$2,'Data Annex'!$K$1:$AN$1,0)),\"\")","v":0.13807085050000001},{"$f":"IFERROR(INDEX('Data Annex'!$K$1:$AN$869,MATCH(Assets!Q$1&\"|\"&Assets!$B18,'Data Annex'!$K$1:$K$869,0),MATCH(Assets!Q$2,'Data Annex'!$K$1:$AN$1,0)),\"\")","v":0.57174273350000004},{"$f":"IFERROR(INDEX('Data Annex'!$K$1:$AN$869,MATCH(Assets!R$1&\"|\"&Assets!$B18,'Data Annex'!$K$1:$K$869,0),MATCH(Assets!R$2,'Data Annex'!$K$1:$AN$1,0)),\"\")","v":0.55214590730000002},{"$f":"IFERROR(INDEX('Data Annex'!$K$1:$AN$869,MATCH(Assets!S$1&\"|\"&Assets!$B18,'Data Annex'!$K$1:$K$869,0),MATCH(Assets!S$2,'Data Annex'!$K$1:$AN$1,0)),\"\")","v":0.54876110590000005},{"$f":"IFERROR(INDEX('Data Annex'!$K$1:$AN$869,MATCH(Assets!T$1&\"|\"&Assets!$B18,'Data Annex'!$K$1:$K$869,0),MATCH(Assets!T$2,'Data Annex'!$K$1:$AN$1,0)),\"\")","v":0.55397255599999995},{"$f":"IFERROR(INDEX('Data Annex'!$K$1:$AN$869,MATCH(Assets!U$1&\"|\"&Assets!$B18,'Data Annex'!$K$1:$K$869,0),MATCH(Assets!U$2,'Data Annex'!$K$1:$AN$1,0)),\"\")","v":0.1563529088},{"$f":"IFERROR(INDEX('Data Annex'!$K$1:$AN$869,MATCH(Assets!V$1&\"|\"&Assets!$B18,'Data Annex'!$K$1:$K$869,0),MATCH(Assets!V$2,'Data Annex'!$K$1:$AN$1,0)),\"\")","v":0.13894084249999999},{"$f":"IFERROR(INDEX('Data Annex'!$K$1:$AN$869,MATCH(Assets!W$1&\"|\"&Assets!$B18,'Data Annex'!$K$1:$K$869,0),MATCH(Assets!W$2,'Data Annex'!$K$1:$AN$1,0)),\"\")","v":0.1300711168},{"$f":"IFERROR(INDEX('Data Annex'!$K$1:$AN$869,MATCH(Assets!X$1&\"|\"&Assets!$B18,'Data Annex'!$K$1:$K$869,0),MATCH(Assets!X$2,'Data Annex'!$K$1:$AN$1,0)),\"\")","v":0.13577604339999999},{"$f":"IFERROR(INDEX('Data Annex'!$K$1:$AN$869,MATCH(Assets!Y$1&\"|\"&Assets!$B18,'Data Annex'!$K$1:$K$869,0),MATCH(Assets!Y$2,'Data Annex'!$K$1:$AN$1,0)),\"\")","v":2.70054614E-2},{"$f":"IFERROR(INDEX('Data Annex'!$K$1:$AN$869,MATCH(Assets!Z$1&\"|\"&Assets!$B18,'Data Annex'!$K$1:$K$869,0),MATCH(Assets!Z$2,'Data Annex'!$K$1:$AN$1,0)),\"\")","v":2.6007269100000001E-2},{"$f":"IFERROR(INDEX('Data Annex'!$K$1:$AN$869,MATCH(Assets!AA$1&\"|\"&Assets!$B18,'Data Annex'!$K$1:$K$869,0),MATCH(Assets!AA$2,'Data Annex'!$K$1:$AN$1,0)),\"\")","v":2.5842380299999999E-2},{"$f":"IFERROR(INDEX('Data Annex'!$K$1:$AN$869,MATCH(Assets!AB$1&\"|\"&Assets!$B18,'Data Annex'!$K$1:$K$869,0),MATCH(Assets!AB$2,'Data Annex'!$K$1:$AN$1,0)),\"\")","v":2.6654276000000001E-2},{"$f":"IFERROR(INDEX('Data Annex'!$K$1:$AH$869,MATCH(Assets!AC$1&\"|\"&Assets!$B18,'Data Annex'!$K$1:$K$869,0),MATCH(Assets!AC$2,'Data Annex'!$K$1:$AH$1,0)),\"\")","v":""}]
[null,"DK",null,"DK",{"$f":"IFERROR(INDEX('Data Annex'!$K$1:$AN$869,MATCH(Assets!E$1&\"|\"&Assets!$B19,'Data Annex'!$K$1:$K$869,0),MATCH(Assets!E$2,'Data Annex'!$K$1:$AN$1,0)),\"\")","v":3.8345666200000003E-2},{"$f":"IFERROR(INDEX('Data Annex'!$K$1:$AN$869,MATCH(Assets!F$1&\"|\"&Assets!$B19,'Data Annex'!$K$1:$K$869,0),MATCH(Assets!F$2,'Data Annex'!$K$1:$AN$1,0)),\"\")","v":4.74422283E-2},{"$f":"IFERROR(INDEX('Data Annex'!$K$1:$AN$869,MATCH(Assets!G$1&\"|\"&Assets!$B19,'Data Annex'!$K$1:$K$869,0),MATCH(Assets!G$2,'Data Annex'!$K$1:$AN$1,0)),\"\")","v":5.1230676199999998E-2},{"$f":"IFERROR(INDEX('Data Annex'!$K$1:$AN$869,MATCH(Assets!H$1&\"|\"&Assets!$B19,'Data Annex'!$K$1:$K$869,0),MATCH(Assets!H$2,'Data Annex'!$K$1:$AN$1,0)),\"\")","v":7.0772514100000003E-2},{"$f":"IFERROR(INDEX('Data Annex'!$K$1:$AN$869,MATCH(Assets!I$1&\"|\"&Assets!$B19,'Data Annex'!$K$1:$K$869,0),MATCH(Assets!I$2,'Data Annex'!$K$1:$AN$1,0)),\"\")","v":4.8469206000000004E-3},{"$f":"IFERROR(INDEX('Data Annex'!$K$1:$AN$869,MATCH(Assets!J$1&\"|\"&Assets!$B19,'Data Annex'!$K$1:$K$869,0),MATCH(Assets!J$2,'Data Annex'!$K$1:$AN$1,0)),\"\")","v":4.4925976999999999E-3},{"$f":"IFERROR(INDEX('Data Annex'!$K$1:$AN$869,MATCH(Assets!K$1&\"|\"&Assets!$B19,'Data Annex'!$K$1:$K$869,0),MATCH(Assets!K$2,'Data Annex'!$K$1:$AN$1,0)),\"\")","v":5.6848335E-3},{"$f":"IFERROR(INDEX('Data Annex'!$K$1:$AN$869,MATCH(Assets!L$1&\"|\"&Assets!$B19,'Data Annex'!$K$1:$K$869,0),MATCH(Assets!L$2,'Data Annex'!$K$1:$AN$1,0)),\"\")","v":6.1405975999999996E-3},{"$f":"IFERROR(INDEX('Data Annex'!$K$1:$AN$869,MATCH(Assets!M$1&\"|\"&Assets!$B19,'Data Annex'!$K$1:$K$869,0),MATCH(Assets!M$2,'Data Annex'!$K$1:$AN$1,0)),\"\")","v":0.12880072889999999},{"$f":"IFERROR(INDEX('Data Annex'!$K$1:$AN$869,MATCH(Assets!N$1&\"|\"&Assets!$B19,'Data Annex'!$K$1:$K$869,0),MATCH(Assets!N$2,'Data Annex'!$K$1:$AN$1,0)),\"\")","v":0.13159392710000001},{"$f":"IFERROR(INDEX('Data Annex'!$K$1:$AN$869,MATCH(Assets!O$1&\"|\"&Assets!$B19,'Data Annex'!$K$1:$K$869,0),MATCH(Assets!O$2,'Data Annex'!$K$1:$AN$1,0)),\"\")","v":0.1397808727},{"$f":"IFERROR(INDEX('Data Annex'!$K$1:$AN$869,MATCH(Assets!P$1&\"|\"&Assets!$B19,'Data Annex'!$K$1:$K$869,0),MATCH(Assets!P$2,'Data Annex'!$K$1:$AN$1,0)),\"\")","v":0.1345524132},{"$f":"IFERROR(INDEX('Data Annex'!$K$1:$AN$869,MATCH(Assets!Q$1&\"|\"&Assets!$B19,'Data Annex'!$K$1:$K$869,0),MATCH(Assets!Q$2,'Data Annex'!$K$1:$AN$1,0)),\"\")","v":0.71335481219999997},{"$f":"IFERROR(INDEX('Data Annex'!$K$1:$AN$869,MATCH(Assets!R$1&\"|\"&Assets!$B19,'Data Annex'!$K$1:$K$869,0),MATCH(Assets!R$2,'Data Annex'!$K$1:$AN$1,0)),\"\")","v":0.71401536239999996},{"$f":"IFERROR(INDEX('Data Annex'!$K$1:$AN$869,MATCH(Assets!S$1&\"|\"&Assets!$B19,'Data Annex'!$K$1:$K$869,0),MATCH(Assets!S$2,'Data Annex'!$K$1:$AN$1,0)),\"\")","v":0.70518100930000005},{"$f":"IFERROR(INDEX('Data Annex'!$K$1:$AN$869,MATCH(Assets!T$1&\"|\"&Assets!$B19,'Data Annex'!$K$1:$K$869,0),MATCH(Assets!T$2,'Data Annex'!$K$1:$AN$1,0)),\"\")","v":0.69021116989999998},{"$f":"IFERROR(INDEX('Data Annex'!$K$1:$AN$869,MATCH(Assets!U$1&\"|\"&Assets!$B19,'Data Annex'!$K$1:$K$869,0),MATCH(Assets!U$2,'Data Annex'!$K$1:$AN$1,0)),\"\")","v":8.9047897500000001E-2},{"$f":"IFERROR(INDEX('Data Annex'!$K$1:$AN$869,MATCH(Assets!V$1&\"|\"&Assets!$B19,'Data Annex'!$K$1:$K$869,0),MATCH(Assets!V$2,'Data Annex'!$K$1:$AN$1,0)),\"\")","v":7.8688225000000001E-2},{"$f":"IFERROR(INDEX('Data Annex'!$K$1:$AN$869,MATCH(Assets!W$1&\"|\"&Assets!$B19,'Data Annex'!$K$1:$K$869,0),MATCH(Assets!W$2,'Data Annex'!$K$1:$AN$1,0)),\"\")","v":7.4262573900000003E-2},{"$f":"IFERROR(INDEX('Data Annex'!$K$1:$AN$869,MATCH(Assets!X$1&\"|\"&Assets!$B19,'Data Annex'!$K$1:$K$869,0),MATCH(Assets!X$2,'Data Annex'!$K$1:$AN$1,0)),\"\")","v":7.4832219199999994E-2},{"$f":"IFERROR(INDEX('Data Annex'!$K$1:$AN$869,MATCH(Assets!Y$1&\"|\"&Assets!$B19,'Data Annex'!$K$1:$K$869,0),MATCH(Assets!Y$2,'Data Annex'!$K$1:$AN$1,0)),\"\")","v":2.5603974500000001E-2},{"$f":"IFERROR(INDEX('Data Annex'!$K$1:$AN$869,MATCH(Assets!Z$1&\"|\"&Assets!$B19,'Data Annex'!$K$1:$K$869,0),MATCH(Assets!Z$2,'Data Annex'!$K$1:$AN$1,0)),\"\")","v":2.37676595E-2},{"$f":"IFERROR(INDEX('Data Annex'!$K$1:$AN$869,MATCH(Assets!AA$1&\"|\"&Assets!$B19,'Data Annex'!$K$1:$K$869,0),MATCH(Assets!AA$2,'Data Annex'!$K$1:$AN$1,0)),\"\")","v":2.3860034400000001E-2},{"$f":"IFERROR(INDEX('Data Annex'!$K$1:$AN$869,MATCH(Assets!AB$1&\"|\"&Assets!$B19,'Data Annex'!$K$1:$K$869,0),MATCH(Assets!AB$2,'Data Annex'!$K$1:$AN$1,0)),\"\")","v":2.35962542E-2},{"$f":"IFERROR(INDEX('Data Annex'!$K$1:$AH$869,MATCH(Assets!AC$1&\"|\"&Assets!$B19,'Data Annex'!$K$1:$K$869,0),MATCH(Assets!AC$2,'Data Annex'!$K$1:$AH$1,0)),\"\")","v":""}]
[null,"EE",null,"EE",{"$f":"IFERROR(INDEX('Data Annex'!$K$1:$AN$869,MATCH(Assets!E$1&\"|\"&Assets!$B20,'Data Annex'!$K$1:$K$869,0),MATCH(Assets!E$2,'Data Annex'!$K$1:$AN$1,0)),\"\")","v":0.22453501049999999},{"$f":"IFERROR(INDEX('Data Annex'!$K$1:$AN$869,MATCH(Assets!F$1&\"|\"&Assets!$B20,'Data Annex'!$K$1:$K$869,0),MATCH(Assets!F$2,'Data Annex'!$K$1:$AN$1,0)),\"\")","v":0.2346068731},{"$f":"IFERROR(INDEX('Data Annex'!$K$1:$AN$869,MATCH(Assets!G$1&\"|\"&Assets!$B20,'Data Annex'!$K$1:$K$869,0),MATCH(Assets!G$2,'Data Annex'!$K$1:$AN$1,0)),\"\")","v":0.25307435880000001},{"$f":"IFERROR(INDEX('Data Annex'!$K$1:$AN$869,MATCH(Assets!H$1&\"|\"&Assets!$B20,'Data Annex'!$K$1:$K$869,0),MATCH(Assets!H$2,'Data Annex'!$K$1:$AN$1,0)),\"\")","v":0.28128799209999999},{"$f":"IFERROR(INDEX('Data Annex'!$K$1:$AN$869,MATCH(Assets!I$1&\"|\"&Assets!$B20,'Data Annex'!$K$1:$K$869,0),MATCH(Assets!I$2,'Data Annex'!$K$1:$AN$1,0)),\"\")","v":4.8168259999999997E-4},{"$f":"IFERROR(INDEX('Data Annex'!$K$1:$AN$869,MATCH(Assets!J$1&\"|\"&Assets!$B20,'Data Annex'!$K$1:$K$869,0),MATCH(Assets!J$2,'Data Annex'!$K$1:$AN$1,0)),\"\")","v":4.8398290000000002E-4},{"$f":"IFERROR(INDEX('Data Annex'!$K$1:$AN$869,MATCH(Assets!K$1&\"|\"&Assets!$B20,'Data Annex'!$K$1:$K$869,0),MATCH(Assets!K$2,'Data Annex'!$K$1:$AN$1,0)),\"\")","v":4.7711470000000002E-4},{"$f":"IFERROR(INDEX('Data Annex'!$K$1:$AN$869,MATCH(Assets!L$1&\"|\"&Assets!$B20,'Data Annex'!$K$1:$K$869,0),MATCH(Assets!L$2,'Data Annex'!$K$1:$AN$1,0)),\"\")","v":3.5371270000000003E-4},{"$f":"IFERROR(INDEX('Data Annex'!$K$1:$AN$869,MATCH(Assets!M$1&\"|\"&Assets!$B20,'Data Annex'!$K$1:$K$869,0),MATCH(Assets!M$2,'Data Annex'!$K$1:$AN$1,0)),\"\")","v":2.18517469E-2},{"$f":"IFERROR(INDEX('Data Annex'!$K$1:$AN$869,MATCH(Assets!N$1&\"|\"&Assets!$B20,'Data Annex'!$K$1:$K$869,0),MATCH(Assets!N$2,'Data Annex'!$K$1:$AN$1,0)),\"\")","v":7.9982738400000003E-2},{"$f":"IFERROR(INDEX('Data Annex'!$K$1:$AN$869,MATCH(Assets!O$1&\"|\"&Assets!$B20,'Data Annex'!$K$1:$K$869,0),MATCH(Assets!O$2,'Data Annex'!$K$1:$AN$1,0)),\"\")","v":7.8280798700000001E-2},{"$f":"IFERROR(INDEX('Data Annex'!$K$1:$AN$869,MATCH(Assets!P$1&\"|\"&Assets!$B20,'Data Annex'!$K$1:$K$869,0),MATCH(Assets!P$2,'Data Annex'!$K$1:$AN$1,0)),\"\")","v":6.99538309E-2},{"$f":"IFERROR(INDEX('Data Annex'!$K$1:$AN$869,MATCH(Assets!Q$1&\"|\"&Assets!$B20,'Data Annex'!$K$1:$K$869,0),MATCH(Assets!Q$2,'Data Annex'!$K$1:$AN$1,0)),\"\")","v":0.73934557830000003},{"$f":"IFERROR(INDEX('Data Annex'!$K$1:$AN$869,MATCH(Assets!R$1&\"|\"&Assets!$B20,'Data Annex'!$K$1:$K$869,0),MATCH(Assets!R$2,'Data Annex'!$K$1:$AN$1,0)),\"\")","v":0.67243473350000005},{"$f":"IFERROR(INDEX('Data Annex'!$K$1:$AN$869,MATCH(Assets!S$1&\"|\"&Assets!$B20,'Data Annex'!$K$1:$K$869,0),MATCH(Assets!S$2,'Data Annex'!$K$1:$AN$1,0)),\"\")","v":0.65579028139999995},{"$f":"IFERROR(INDEX('Data Annex'!$K$1:$AN$869,MATCH(Assets!T$1&\"|\"&Assets!$B20,'Data Annex'!$K$1:$K$869,0),MATCH(Assets!T$2,'Data Annex'!$K$1:$AN$1,0)),\"\")","v":0.63511089310000002},{"$f":"IFERROR(INDEX('Data Annex'!$K$1:$AN$869,MATCH(Assets!U$1&\"|\"&Assets!$B20,'Data Annex'!$K$1:$K$869,0),MATCH(Assets!U$2,'Data Annex'!$K$1:$AN$1,0)),\"\")","v":2.502303E-3},{"$f":"IFERROR(INDEX('Data Annex'!$K$1:$AN$869,MATCH(Assets!V$1&\"|\"&Assets!$B20,'Data Annex'!$K$1:$K$869,0),MATCH(Assets!V$2,'Data Annex'!$K$1:$AN$1,0)),\"\")","v":1.8372178E-3},{"$f":"IFERROR(INDEX('Data Annex'!$K$1:$AN$869,MATCH(Assets!W$1&\"|\"&Assets!$B20,'Data Annex'!$K$1:$K$869,0),MATCH(Assets!W$2,'Data Annex'!$K$1:$AN$1,0)),\"\")","v":1.7666566999999999E-3},{"$f":"IFERROR(INDEX('Data Annex'!$K$1:$AN$869,MATCH(Assets!X$1&\"|\"&Assets!$B20,'Data Annex'!$K$1:$K$869,0),MATCH(Assets!X$2,'Data Annex'!$K$1:$AN$1,0)),\"\")","v":1.4840571E-3},{"$f":"IFERROR(INDEX('Data Annex'!$K$1:$AN$869,MATCH(Assets!Y$1&\"|\"&Assets!$B20,'Data Annex'!$K$1:$K$869,0),MATCH(Assets!Y$2,'Data Annex'!$K$1:$AN$1,0)),\"\")","v":1.1283678700000001E-2},{"$f":"IFERROR(INDEX('Data Annex'!$K$1:$AN$869,MATCH(Assets!Z$1&\"|\"&Assets!$B20,'Data Annex'!$K$1:$K$869,0),MATCH(Assets!Z$2,'Data Annex'!$K$1:$AN$1,0)),\"\")","v":1.06544542E-2},{"$f":"IFERROR(INDEX('Data Annex'!$K$1:$AN$869,MATCH(Assets!AA$1&\"|\"&Assets!$B20,'Data Annex'!$K$1:$K$869,0),MATCH(Assets!AA$2,'Data Annex'!$K$1:$AN$1,0)),\"\")","v":1.06107896E-2},{"$f":"IFERROR(INDEX('Data Annex'!$K$1:$AN$869,MATCH(Assets!AB$1&\"|\"&Assets!$B20,'Data Annex'!$K$1:$K$869,0),MATCH(Assets!AB$2,'Data Annex'!$K$1:$AN$1,0)),\"\")","v":1.18095141E-2},{"$f":"IFERROR(INDEX('Data Annex'!$K$1:$AH$869,MATCH(Assets!AC$1&\"|\"&Assets!$B20,'Data Annex'!$K$1:$K$869,0),MATCH(Assets!AC$2,'Data Annex'!$K$1:$AH$1,0)),\"\")","v":""}]
[null,"ES",null,"ES",{"$f":"IFERROR(INDEX('Data Annex'!$K$1:$AN$869,MATCH(Assets!E$1&\"|\"&Assets!$B21,'Data Annex'!$K$1:$K$869,0),MATCH(Assets!E$2,'Data Annex'!$K$1:$AN$1,0)),\"\")","v":7.3079991400000002E-2},{"$f":"IFERROR(INDEX('Data Annex'!$K$1:$AN$869,MATCH(Assets!F$1&\"|\"&Assets!$B21,'Data Annex'!$K$1:$K$869,0),MATCH(Assets!F$2,'Data Annex'!$K$1:$AN$1,0)),\"\")","v":9.3951975699999996E-2},{"$f":"IFERROR(INDEX('Data Annex'!$K$1:$AN$869,MATCH(Assets!G$1&\"|\"&Assets!$B21,'Data Annex'!$K$1:$K$869,0),MATCH(Assets!G$2,'Data Annex'!$K$1:$AN$1,0)),\"\")","v":0.10142057979999999},{"$f":"IFERROR(INDEX('Data Annex'!$K$1:$AN$869,MATCH(Assets!H$1&\"|\"&Assets!$B21,'Data Annex'!$K$1:$K$869,0),MATCH(Assets!H$2,'Data Annex'!$K$1:$AN$1,0)),\"\")","v":0.10206036860000001},{"$f":"IFERROR(INDEX('Data Annex'!$K$1:$AN$869,MATCH(Assets!I$1&\"|\"&Assets!$B21,'Data Annex'!$K$1:$K$869,0),MATCH(Assets!I$2,'Data Annex'!$K$1:$AN$1,0)),\"\")","v":7.8738769E-3},{"$f":"IFERROR(INDEX('Data Annex'!$K$1:$AN$869,MATCH(Assets!J$1&\"|\"&Assets!$B21,'Data Annex'!$K$1:$K$869,0),MATCH(Assets!J$2,'Data Annex'!$K$1:$AN$1,0)),\"\")","v":7.2989544E-3},{"$f":"IFERROR(INDEX('Data Annex'!$K$1:$AN$869,MATCH(Assets!K$1&\"|\"&Assets!$B21,'Data Annex'!$K$1:$K$869,0),MATCH(Assets!K$2,'Data Annex'!$K$1:$AN$1,0)),\"\")","v":7.5441253999999998E-3},{"$f":"IFERROR(INDEX('Data Annex'!$K$1:$AN$869,MATCH(Assets!L$1&\"|\"&Assets!$B21,'Data Annex'!$K$1:$K$869,0),MATCH(Assets!L$2,'Data Annex'!$K$1:$AN$1,0)),\"\")","v":9.2669082999999996E-3},{"$f":"IFERROR(INDEX('Data Annex'!$K$1:$AN$869,MATCH(Assets!M$1&\"|\"&Assets!$B21,'Data Annex'!$K$1:$K$869,0),MATCH(Assets!M$2,'Data Annex'!$K$1:$AN$1,0)),\"\")","v":0.12923095840000001},{"$f":"IFERROR(INDEX('Data Annex'!$K$1:$AN$869,MATCH(Assets!N$1&\"|\"&Assets!$B21,'Data Annex'!$K$1:$K$869,0),MATCH(Assets!N$2,'Data Annex'!$K$1:$AN$1,0)),\"\")","v":0.135005813},{"$f":"IFERROR(INDEX('Data Annex'!$K$1:$AN$869,MATCH(Assets!O$1&\"|\"&Assets!$B21,'Data Annex'!$K$1:$K$869,0),MATCH(Assets!O$2,'Data Annex'!$K$1:$AN$1,0)),\"\")","v":0.13779096430000001},{"$f":"IFERROR(INDEX('Data Annex'!$K$1:$AN$869,MATCH(Assets!P$1&\"|\"&Assets!$B21,'Data Annex'!$K$1:$K$869,0),MATCH(Assets!P$2,'Data Annex'!$K$1:$AN$1,0)),\"\")","v":0.1213331267},{"$f":"IFERROR(INDEX('Data Annex'!$K$1:$AN$869,MATCH(Assets!Q$1&\"|\"&Assets!$B21,'Data Annex'!$K$1:$K$869,0),MATCH(Assets!Q$2,'Data Annex'!$K$1:$AN$1,0)),\"\")","v":0.65787659649999997},{"$f":"IFERROR(INDEX('Data Annex'!$K$1:$AN$869,MATCH(Assets!R$1&\"|\"&Assets!$B21,'Data Annex'!$K$1:$K$869,0),MATCH(Assets!R$2,'Data Annex'!$K$1:$AN$1,0)),\"\")","v":0.64549921369999996},{"$f":"IFERROR(INDEX('Data Annex'!$K$1:$AN$869,MATCH(Assets!S$1&\"|\"&Assets!$B21,'Data Annex'!$K$1:$K$869,0),MATCH(Assets!S$2,'Data Annex'!$K$1:$AN$1,0)),\"\")","v":0.63743294679999996},{"$f":"IFERROR(INDEX('Data Annex'!$K$1:$AN$869,MATCH(Assets!T$1&\"|\"&Assets!$B21,'Data Annex'!$K$1:$K$869,0),MATCH(Assets!T$2,'Data Annex'!$K$1:$AN$1,0)),\"\")","v":0.58399759819999997},{"$f":"IFERROR(INDEX('Data Annex'!$K$1:$AN$869,MATCH(Assets!U$1&\"|\"&Assets!$B21,'Data Annex'!$K$1:$K$869,0),MATCH(Assets!U$2,'Data Annex'!$K$1:$AN$1,0)),\"\")","v":5.53272613E-2},{"$f":"IFERROR(INDEX('Data Annex'!$K$1:$AN$869,MATCH(Assets!V$1&\"|\"&Assets!$B21,'Data Annex'!$K$1:$K$869,0),MATCH(Assets!V$2,'Data Annex'!$K$1:$AN$1,0)),\"\")","v":5.0381718899999997E-2},{"$f":"IFERROR(INDEX('Data Annex'!$K$1:$AN$869,MATCH(Assets!W$1&\"|\"&Assets!$B21,'Data Annex'!$K$1:$K$869,0),MATCH(Assets!W$2,'Data Annex'!$K$1:$AN$1,0)),\"\")","v":4.7115654100000001E-2},{"$f":"IFERROR(INDEX('Data Annex'!$K$1:$AN$869,MATCH(Assets!X$1&\"|\"&Assets!$B21,'Data Annex'!$K$1:$K$869,0),MATCH(Assets!X$2,'Data Annex'!$K$1:$AN$1,0)),\"\")","v":3.9519996600000003E-2},{"$f":"IFERROR(INDEX('Data Annex'!$K$1:$AN$869,MATCH(Assets!Y$1&\"|\"&Assets!$B21,'Data Annex'!$K$1:$K$869,0),MATCH(Assets!Y$2,'Data Annex'!$K$1:$AN$1,0)),\"\")","v":7.6611315700000002E-2},{"$f":"IFERROR(INDEX('Data Annex'!$K$1:$AN$869,MATCH(Assets!Z$1&\"|\"&Assets!$B21,'Data Annex'!$K$1:$K$869,0),MATCH(Assets!Z$2,'Data Annex'!$K$1:$AN$1,0)),\"\")","v":6.7862324500000001E-2},{"$f":"IFERROR(INDEX('Data Annex'!$K$1:$AN$869,MATCH(Assets!AA$1&\"|\"&Assets!$B21,'Data Annex'!$K$1:$K$869,0),MATCH(Assets!AA$2,'Data Annex'!$K$1:$AN$1,0)),\"\")","v":6.8695730100000005E-2},{"$f":"IFERROR(INDEX('Data Annex'!$K$1:$AN$869,MATCH(Assets!AB$1&\"|\"&Assets!$B21,'Data Annex'!$K$1:$K$869,0),MATCH(Assets!AB$2,'Data Annex'!$K$1:$AN$1,0)),\"\")","v":0.14382200119999999},{"$f":"IFERROR(INDEX('Data Annex'!$K$1:$AH$869,MATCH(Assets!AC$1&\"|\"&Assets!$B21,'Data Annex'!$K$1:$K$869,0),MATCH(Assets!AC$2,'Data Annex'!$K$1:$AH$1,0)),\"\")","v":""}]
[null,"FI",null,"FI",{"$f":"IFERROR(INDEX('Data Annex'!$K$1:$AN$869,MATCH(Assets!E$1&\"|\"&Assets!$B22,'Data Annex'!$K$1:$K$869,0),MATCH(Assets!E$2,'Data Annex'!$K$1:$AN$1,0)),\"\")","v":8.5891943200000001E-2},{"$f":"IFERROR(INDEX('Data Annex'!$K$1:$AN$869,MATCH(Assets!F$1&\"|\"&Assets!$B22,'Data Annex'!$K$1:$K$869,0),MATCH(Assets!F$2,'Data Annex'!$K$1:$AN$1,0)),\"\")","v":0.10794139379999999},{"$f":"IFERROR(INDEX('Data Annex'!$K$1:$AN$869,MATCH(Assets!G$1&\"|\"&Assets!$B22,'Data Annex'!$K$1:$K$869,0),MATCH(Assets!G$2,'Data Annex'!$K$1:$AN$1,0)),\"\")","v":0.1127537765},{"$f":"IFERROR(INDEX('Data Annex'!$K$1:$AN$869,MATCH(Assets!H$1&\"|\"&Assets!$B22,'Data Annex'!$K$1:$K$869,0),MATCH(Assets!H$2,'Data Annex'!$K$1:$AN$1,0)),\"\")","v":9.3123416700000003E-2},{"$f":"IFERROR(INDEX('Data Annex'!$K$1:$AN$869,MATCH(Assets!I$1&\"|\"&Assets!$B22,'Data Annex'!$K$1:$K$869,0),MATCH(Assets!I$2,'Data Annex'!$K$1:$AN$1,0)),\"\")","v":7.4372598999999998E-3},{"$f":"IFERROR(INDEX('Data Annex'!$K$1:$AN$869,MATCH(Assets!J$1&\"|\"&Assets!$B22,'Data Annex'!$K$1:$K$869,0),MATCH(Assets!J$2,'Data Annex'!$K$1:$AN$1,0)),\"\")","v":7.4864538E-3},{"$f":"IFERROR(INDEX('Data Annex'!$K$1:$AN$869,MATCH(Assets!K$1&\"|\"&Assets!$B22,'Data Annex'!$K$1:$K$869,0),MATCH(Assets!K$2,'Data Annex'!$K$1:$AN$1,0)),\"\")","v":7.7294564000000001E-3},{"$f":"IFERROR(INDEX('Data Annex'!$K$1:$AN$869,MATCH(Assets!L$1&\"|\"&Assets!$B22,'Data Annex'!$K$1:$K$869,0),MATCH(Assets!L$2,'Data Annex'!$K$1:$AN$1,0)),\"\")","v":7.2925821000000002E-3},{"$f":"IFERROR(INDEX('Data Annex'!$K$1:$AN$869,MATCH(Assets!M$1&\"|\"&Assets!$B22,'Data Annex'!$K$1:$K$869,0),MATCH(Assets!M$2,'Data Annex'!$K$1:$AN$1,0)),\"\")","v":0.12940329410000001},{"$f":"IFERROR(INDEX('Data Annex'!$K$1:$AN$869,MATCH(Assets!N$1&\"|\"&Assets!$B22,'Data Annex'!$K$1:$K$869,0),MATCH(Assets!N$2,'Data Annex'!$K$1:$AN$1,0)),\"\")","v":0.1295644483},{"$f":"IFERROR(INDEX('Data Annex'!$K$1:$AN$869,MATCH(Assets!O$1&\"|\"&Assets!$B22,'Data Annex'!$K$1:$K$869,0),MATCH(Assets!O$2,'Data Annex'!$K$1:$AN$1,0)),\"\")","v":0.12504752590000001},{"$f":"IFERROR(INDEX('Data Annex'!$K$1:$AN$869,MATCH(Assets!P$1&\"|\"&Assets!$B22,'Data Annex'!$K$1:$K$869,0),MATCH(Assets!P$2,'Data Annex'!$K$1:$AN$1,0)),\"\")","v":0.1161399781},{"$f":"IFERROR(INDEX('Data Annex'!$K$1:$AN$869,MATCH(Assets!Q$1&\"|\"&Assets!$B22,'Data Annex'!$K$1:$K$869,0),MATCH(Assets!Q$2,'Data Annex'!$K$1:$AN$1,0)),\"\")","v":0.66433797100000003},{"$f":"IFERROR(INDEX('Data Annex'!$K$1:$AN$869,MATCH(Assets!R$1&\"|\"&Assets!$B22,'Data Annex'!$K$1:$K$869,0),MATCH(Assets!R$2,'Data Annex'!$K$1:$AN$1,0)),\"\")","v":0.65735997879999997},{"$f":"IFERROR(INDEX('Data Annex'!$K$1:$AN$869,MATCH(Assets!S$1&\"|\"&Assets!$B22,'Data Annex'!$K$1:$K$869,0),MATCH(Assets!S$2,'Data Annex'!$K$1:$AN$1,0)),\"\")","v":0.65827549129999996},{"$f":"IFERROR(INDEX('Data Annex'!$K$1:$AN$869,MATCH(Assets!T$1&\"|\"&Assets!$B22,'Data Annex'!$K$1:$K$869,0),MATCH(Assets!T$2,'Data Annex'!$K$1:$AN$1,0)),\"\")","v":0.68429384689999995},{"$f":"IFERROR(INDEX('Data Annex'!$K$1:$AN$869,MATCH(Assets!U$1&\"|\"&Assets!$B22,'Data Annex'!$K$1:$K$869,0),MATCH(Assets!U$2,'Data Annex'!$K$1:$AN$1,0)),\"\")","v":8.7768005600000004E-2},{"$f":"IFERROR(INDEX('Data Annex'!$K$1:$AN$869,MATCH(Assets!V$1&\"|\"&Assets!$B22,'Data Annex'!$K$1:$K$869,0),MATCH(Assets!V$2,'Data Annex'!$K$1:$AN$1,0)),\"\")","v":7.4519795200000002E-2},{"$f":"IFERROR(INDEX('Data Annex'!$K$1:$AN$869,MATCH(Assets!W$1&\"|\"&Assets!$B22,'Data Annex'!$K$1:$K$869,0),MATCH(Assets!W$2,'Data Annex'!$K$1:$AN$1,0)),\"\")","v":7.3290190599999999E-2},{"$f":"IFERROR(INDEX('Data Annex'!$K$1:$AN$869,MATCH(Assets!X$1&\"|\"&Assets!$B22,'Data Annex'!$K$1:$K$869,0),MATCH(Assets!X$2,'Data Annex'!$K$1:$AN$1,0)),\"\")","v":7.4892036499999995E-2},{"$f":"IFERROR(INDEX('Data Annex'!$K$1:$AN$869,MATCH(Assets!Y$1&\"|\"&Assets!$B22,'Data Annex'!$K$1:$K$869,0),MATCH(Assets!Y$2,'Data Annex'!$K$1:$AN$1,0)),\"\")","v":2.5161526100000001E-2},{"$f":"IFERROR(INDEX('Data Annex'!$K$1:$AN$869,MATCH(Assets!Z$1&\"|\"&Assets!$B22,'Data Annex'!$K$1:$K$869,0),MATCH(Assets!Z$2,'Data Annex'!$K$1:$AN$1,0)),\"\")","v":2.3127930099999999E-2},{"$f":"IFERROR(INDEX('Data Annex'!$K$1:$AN$869,MATCH(Assets!AA$1&\"|\"&Assets!$B22,'Data Annex'!$K$1:$K$869,0),MATCH(Assets!AA$2,'Data Annex'!$K$1:$AN$1,0)),\"\")","v":2.2903558399999999E-2},{"$f":"IFERROR(INDEX('Data Annex'!$K$1:$AN$869,MATCH(Assets!AB$1&\"|\"&Assets!$B22,'Data Annex'!$K$1:$K$869,0),MATCH(Assets!AB$2,'Data Annex'!$K$1:$AN$1,0)),\"\")","v":2.42581397E-2},{"$f":"IFERROR(INDEX('Data Annex'!$K$1:$AH$869,MATCH(Assets!AC$1&\"|\"&Assets!$B22,'Data Annex'!$K$1:$K$869,0),MATCH(Assets!AC$2,'Data Annex'!$K$1:$AH$1,0)),\"\")","v":""}]
[null,"FR",null,"FR",{"$f":"IFERROR(INDEX('Data Annex'!$K$1:$AN$869,MATCH(Assets!E$1&\"|\"&Assets!$B23,'Data Annex'!$K$1:$K$869,0),MATCH(Assets!E$2,'Data Annex'!$K$1:$AN$1,0)),\"\")","v":9.0914861799999996E-2},{"$f":"IFERROR(INDEX('Data Annex'!$K$1:$AN$869,MATCH(Assets!F$1&\"|\"&Assets!$B23,'Data Annex'!$K$1:$K$869,0),MATCH(Assets!F$2,'Data Annex'!$K$1:$AN$1,0)),\"\")","v":0.1178318255},{"$f":"IFERROR(INDEX('Data Annex'!$K$1:$AN$869,MATCH(Assets!G$1&\"|\"&Assets!$B23,'Data Annex'!$K$1:$K$869,0),MATCH(Assets!G$2,'Data Annex'!$K$1:$AN$1,0)),\"\")","v":0.12634133350000001},{"$f":"IFERROR(INDEX('Data Annex'!$K$1:$AN$869,MATCH(Assets!H$1&\"|\"&Assets!$B23,'Data Annex'!$K$1:$K$869,0),MATCH(Assets!H$2,'Data Annex'!$K$1:$AN$1,0)),\"\")","v":0.1278050147},{"$f":"IFERROR(INDEX('Data Annex'!$K$1:$AN$869,MATCH(Assets!I$1&\"|\"&Assets!$B23,'Data Annex'!$K$1:$K$869,0),MATCH(Assets!I$2,'Data Annex'!$K$1:$AN$1,0)),\"\")","v":1.9132239299999999E-2},{"$f":"IFERROR(INDEX('Data Annex'!$K$1:$AN$869,MATCH(Assets!J$1&\"|\"&Assets!$B23,'Data Annex'!$K$1:$K$869,0),MATCH(Assets!J$2,'Data Annex'!$K$1:$AN$1,0)),\"\")","v":2.2387777599999999E-2},{"$f":"IFERROR(INDEX('Data Annex'!$K$1:$AN$869,MATCH(Assets!K$1&\"|\"&Assets!$B23,'Data Annex'!$K$1:$K$869,0),MATCH(Assets!K$2,'Data Annex'!$K$1:$AN$1,0)),\"\")","v":2.3388403299999999E-2},{"$f":"IFERROR(INDEX('Data Annex'!$K$1:$AN$869,MATCH(Assets!L$1&\"|\"&Assets!$B23,'Data Annex'!$K$1:$K$869,0),MATCH(Assets!L$2,'Data Annex'!$K$1:$AN$1,0)),\"\")","v":2.6701976799999999E-2},{"$f":"IFERROR(INDEX('Data Annex'!$K$1:$AN$869,MATCH(Assets!M$1&\"|\"&Assets!$B23,'Data Annex'!$K$1:$K$869,0),MATCH(Assets!M$2,'Data Annex'!$K$1:$AN$1,0)),\"\")","v":0.1075436495},{"$f":"IFERROR(INDEX('Data Annex'!$K$1:$AN$869,MATCH(Assets!N$1&\"|\"&Assets!$B23,'Data Annex'!$K$1:$K$869,0),MATCH(Assets!N$2,'Data Annex'!$K$1:$AN$1,0)),\"\")","v":0.11148182750000001},{"$f":"IFERROR(INDEX('Data Annex'!$K$1:$AN$869,MATCH(Assets!O$1&\"|\"&Assets!$B23,'Data Annex'!$K$1:$K$869,0),MATCH(Assets!O$2,'Data Annex'!$K$1:$AN$1,0)),\"\")","v":0.1076301466},{"$f":"IFERROR(INDEX('Data Annex'!$K$1:$AN$869,MATCH(Assets!P$1&\"|\"&Assets!$B23,'Data Annex'!$K$1:$K$869,0),MATCH(Assets!P$2,'Data Annex'!$K$1:$AN$1,0)),\"\")","v":0.10030634150000001},{"$f":"IFERROR(INDEX('Data Annex'!$K$1:$AN$869,MATCH(Assets!Q$1&\"|\"&Assets!$B23,'Data Annex'!$K$1:$K$869,0),MATCH(Assets!Q$2,'Data Annex'!$K$1:$AN$1,0)),\"\")","v":0.59961348400000003},{"$f":"IFERROR(INDEX('Data Annex'!$K$1:$AN$869,MATCH(Assets!R$1&\"|\"&Assets!$B23,'Data Annex'!$K$1:$K$869,0),MATCH(Assets!R$2,'Data Annex'!$K$1:$AN$1,0)),\"\")","v":0.59060692999999997},{"$f":"IFERROR(INDEX('Data Annex'!$K$1:$AN$869,MATCH(Assets!S$1&\"|\"&Assets!$B23,'Data Annex'!$K$1:$K$869,0),MATCH(Assets!S$2,'Data Annex'!$K$1:$AN$1,0)),\"\")","v":0.58921844509999999},{"$f":"IFERROR(INDEX('Data Annex'!$K$1:$AN$869,MATCH(Assets!T$1&\"|\"&Assets!$B23,'Data Annex'!$K$1:$K$869,0),MATCH(Assets!T$2,'Data Annex'!$K$1:$AN$1,0)),\"\")","v":0.59172212349999997},{"$f":"IFERROR(INDEX('Data Annex'!$K$1:$AN$869,MATCH(Assets!U$1&\"|\"&Assets!$B23,'Data Annex'!$K$1:$K$869,0),MATCH(Assets!U$2,'Data Annex'!$K$1:$AN$1,0)),\"\")","v":0.1097397696},{"$f":"IFERROR(INDEX('Data Annex'!$K$1:$AN$869,MATCH(Assets!V$1&\"|\"&Assets!$B23,'Data Annex'!$K$1:$K$869,0),MATCH(Assets!V$2,'Data Annex'!$K$1:$AN$1,0)),\"\")","v":9.2624333200000006E-2},{"$f":"IFERROR(INDEX('Data Annex'!$K$1:$AN$869,MATCH(Assets!W$1&\"|\"&Assets!$B23,'Data Annex'!$K$1:$K$869,0),MATCH(Assets!W$2,'Data Annex'!$K$1:$AN$1,0)),\"\")","v":8.7967764000000004E-2},{"$f":"IFERROR(INDEX('Data Annex'!$K$1:$AN$869,MATCH(Assets!X$1&\"|\"&Assets!$B23,'Data Annex'!$K$1:$K$869,0),MATCH(Assets!X$2,'Data Annex'!$K$1:$AN$1,0)),\"\")","v":8.69408978E-2},{"$f":"IFERROR(INDEX('Data Annex'!$K$1:$AN$869,MATCH(Assets!Y$1&\"|\"&Assets!$B23,'Data Annex'!$K$1:$K$869,0),MATCH(Assets!Y$2,'Data Annex'!$K$1:$AN$1,0)),\"\")","v":7.3055995799999995E-2},{"$f":"IFERROR(INDEX('Data Annex'!$K$1:$AN$869,MATCH(Assets!Z$1&\"|\"&Assets!$B23,'Data Annex'!$K$1:$K$869,0),MATCH(Assets!Z$2,'Data Annex'!$K$1:$AN$1,0)),\"\")","v":6.5067306199999994E-2},{"$f":"IFERROR(INDEX('Data Annex'!$K$1:$AN$869,MATCH(Assets!AA$1&\"|\"&Assets!$B23,'Data Annex'!$K$1:$K$869,0),MATCH(Assets!AA$2,'Data Annex'!$K$1:$AN$1,0)),\"\")","v":6.54539076E-2},{"$f":"IFERROR(INDEX('Data Annex'!$K$1:$AN$869,MATCH(Assets!AB$1&\"|\"&Assets!$B23,'Data Annex'!$K$1:$K$869,0),MATCH(Assets!AB$2,'Data Annex'!$K$1:$AN$1,0)),\"\")","v":6.6523645699999995E-2},{"$f":"IFERROR(INDEX('Data Annex'!$K$1:$AH$869,MATCH(Assets!AC$1&\"|\"&Assets!$B23,'Data Annex'!$K$1:$K$869,0),MATCH(Assets!AC$2,'Data Annex'!$K$1:$AH$1,0)),\"\")","v":""}]
[null,"GR",null,"GR",{"$f":"IFERROR(INDEX('Data Annex'!$K$1:$AN$869,MATCH(Assets!E$1&\"|\"&Assets!$B24,'Data Annex'!$K$1:$K$869,0),MATCH(Assets!E$2,'Data Annex'!$K$1:$AN$1,0)),\"\")","v":7.9497549000000001E-2},{"$f":"IFERROR(INDEX('Data Annex'!$K$1:$AN$869,MATCH(Assets!F$1&\"|\"&Assets!$B24,'Data Annex'!$K$1:$K$869,0),MATCH(Assets!F$2,'Data Annex'!$K$1:$AN$1,0)),\"\")","v":9.5909647299999998E-2},{"$f":"IFERROR(INDEX('Data Annex'!$K$1:$AN$869,MATCH(Assets!G$1&\"|\"&Assets!$B24,'Data Annex'!$K$1:$K$869,0),MATCH(Assets!G$2,'Data Annex'!$K$1:$AN$1,0)),\"\")","v":0.1052206413},{"$f":"IFERROR(INDEX('Data Annex'!$K$1:$AN$869,MATCH(Assets!H$1&\"|\"&Assets!$B24,'Data Annex'!$K$1:$K$869,0),MATCH(Assets!H$2,'Data Annex'!$K$1:$AN$1,0)),\"\")","v":0.1262274058},{"$f":"IFERROR(INDEX('Data Annex'!$K$1:$AN$869,MATCH(Assets!I$1&\"|\"&Assets!$B24,'Data Annex'!$K$1:$K$869,0),MATCH(Assets!I$2,'Data Annex'!$K$1:$AN$1,0)),\"\")","v":2.4219805E-3},{"$f":"IFERROR(INDEX('Data Annex'!$K$1:$AN$869,MATCH(Assets!J$1&\"|\"&Assets!$B24,'Data Annex'!$K$1:$K$869,0),MATCH(Assets!J$2,'Data Annex'!$K$1:$AN$1,0)),\"\")","v":2.4796423999999999E-3},{"$f":"IFERROR(INDEX('Data Annex'!$K$1:$AN$869,MATCH(Assets!K$1&\"|\"&Assets!$B24,'Data Annex'!$K$1:$K$869,0),MATCH(Assets!K$2,'Data Annex'!$K$1:$AN$1,0)),\"\")","v":2.3654053999999998E-3},{"$f":"IFERROR(INDEX('Data Annex'!$K$1:$AN$869,MATCH(Assets!L$1&\"|\"&Assets!$B24,'Data Annex'!$K$1:$K$869,0),MATCH(Assets!L$2,'Data Annex'!$K$1:$AN$1,0)),\"\")","v":2.7451093E-3},{"$f":"IFERROR(INDEX('Data Annex'!$K$1:$AN$869,MATCH(Assets!M$1&\"|\"&Assets!$B24,'Data Annex'!$K$1:$K$869,0),MATCH(Assets!M$2,'Data Annex'!$K$1:$AN$1,0)),\"\")","v":0.12612792310000001},{"$f":"IFERROR(INDEX('Data Annex'!$K$1:$AN$869,MATCH(Assets!N$1&\"|\"&Assets!$B24,'Data Annex'!$K$1:$K$869,0),MATCH(Assets!N$2,'Data Annex'!$K$1:$AN$1,0)),\"\")","v":0.14597181740000001},{"$f":"IFERROR(INDEX('Data Annex'!$K$1:$AN$869,MATCH(Assets!O$1&\"|\"&Assets!$B24,'Data Annex'!$K$1:$K$869,0),MATCH(Assets!O$2,'Data Annex'!$K$1:$AN$1,0)),\"\")","v":0.14414284960000001},{"$f":"IFERROR(INDEX('Data Annex'!$K$1:$AN$869,MATCH(Assets!P$1&\"|\"&Assets!$B24,'Data Annex'!$K$1:$K$869,0),MATCH(Assets!P$2,'Data Annex'!$K$1:$AN$1,0)),\"\")","v":0.1452121743},{"$f":"IFERROR(INDEX('Data Annex'!$K$1:$AN$869,MATCH(Assets!Q$1&\"|\"&Assets!$B24,'Data Annex'!$K$1:$K$869,0),MATCH(Assets!Q$2,'Data Annex'!$K$1:$AN$1,0)),\"\")","v":0.58869223100000001},{"$f":"IFERROR(INDEX('Data Annex'!$K$1:$AN$869,MATCH(Assets!R$1&\"|\"&Assets!$B24,'Data Annex'!$K$1:$K$869,0),MATCH(Assets!R$2,'Data Annex'!$K$1:$AN$1,0)),\"\")","v":0.54957081699999999},{"$f":"IFERROR(INDEX('Data Annex'!$K$1:$AN$869,MATCH(Assets!S$1&\"|\"&Assets!$B24,'Data Annex'!$K$1:$K$869,0),MATCH(Assets!S$2,'Data Annex'!$K$1:$AN$1,0)),\"\")","v":0.55581525040000002},{"$f":"IFERROR(INDEX('Data Annex'!$K$1:$AN$869,MATCH(Assets!T$1&\"|\"&Assets!$B24,'Data Annex'!$K$1:$K$869,0),MATCH(Assets!T$2,'Data Annex'!$K$1:$AN$1,0)),\"\")","v":0.5322413909},{"$f":"IFERROR(INDEX('Data Annex'!$K$1:$AN$869,MATCH(Assets!U$1&\"|\"&Assets!$B24,'Data Annex'!$K$1:$K$869,0),MATCH(Assets!U$2,'Data Annex'!$K$1:$AN$1,0)),\"\")","v":3.65240867E-2},{"$f":"IFERROR(INDEX('Data Annex'!$K$1:$AN$869,MATCH(Assets!V$1&\"|\"&Assets!$B24,'Data Annex'!$K$1:$K$869,0),MATCH(Assets!V$2,'Data Annex'!$K$1:$AN$1,0)),\"\")","v":3.7378013500000001E-2},{"$f":"IFERROR(INDEX('Data Annex'!$K$1:$AN$869,MATCH(Assets!W$1&\"|\"&Assets!$B24,'Data Annex'!$K$1:$K$869,0),MATCH(Assets!W$2,'Data Annex'!$K$1:$AN$1,0)),\"\")","v":3.61659862E-2},{"$f":"IFERROR(INDEX('Data Annex'!$K$1:$AN$869,MATCH(Assets!X$1&\"|\"&Assets!$B24,'Data Annex'!$K$1:$K$869,0),MATCH(Assets!X$2,'Data Annex'!$K$1:$AN$1,0)),\"\")","v":3.5031901099999999E-2},{"$f":"IFERROR(INDEX('Data Annex'!$K$1:$AN$869,MATCH(Assets!Y$1&\"|\"&Assets!$B24,'Data Annex'!$K$1:$K$869,0),MATCH(Assets!Y$2,'Data Annex'!$K$1:$AN$1,0)),\"\")","v":0.16673622969999999},{"$f":"IFERROR(INDEX('Data Annex'!$K$1:$AN$869,MATCH(Assets!Z$1&\"|\"&Assets!$B24,'Data Annex'!$K$1:$K$869,0),MATCH(Assets!Z$2,'Data Annex'!$K$1:$AN$1,0)),\"\")","v":0.16869006240000001},{"$f":"IFERROR(INDEX('Data Annex'!$K$1:$AN$869,MATCH(Assets!AA$1&\"|\"&Assets!$B24,'Data Annex'!$K$1:$K$869,0),MATCH(Assets!AA$2,'Data Annex'!$K$1:$AN$1,0)),\"\")","v":0.15628986710000001},{"$f":"IFERROR(INDEX('Data Annex'!$K$1:$AN$869,MATCH(Assets!AB$1&\"|\"&Assets!$B24,'Data Annex'!$K$1:$K$869,0),MATCH(Assets!AB$2,'Data Annex'!$K$1:$AN$1,0)),\"\")","v":0.1585420186},{"$f":"IFERROR(INDEX('Data Annex'!$K$1:$AH$869,MATCH(Assets!AC$1&\"|\"&Assets!$B24,'Data Annex'!$K$1:$K$869,0),MATCH(Assets!AC$2,'Data Annex'!$K$1:$AH$1,0)),\"\")","v":""}]
[null,"HR",null,"HR",{"$f":"IFERROR(INDEX('Data Annex'!$K$1:$AN$869,MATCH(Assets!E$1&\"|\"&Assets!$B25,'Data Annex'!$K$1:$K$869,0),MATCH(Assets!E$2,'Data Annex'!$K$1:$AN$1,0)),\"\")","v":0.15896954999999999},{"$f":"IFERROR(INDEX('Data Annex'!$K$1:$AN$869,MATCH(Assets!F$1&\"|\"&Assets!$B25,'Data Annex'!$K$1:$K$869,0),MATCH(Assets!F$2,'Data Annex'!$K$1:$AN$1,0)),\"\")","v":0.16201126669999999},{"$f":"IFERROR(INDEX('Data Annex'!$K$1:$AN$869,MATCH(Assets!G$1&\"|\"&Assets!$B25,'Data Annex'!$K$1:$K$869,0),MATCH(Assets!G$2,'Data Annex'!$K$1:$AN$1,0)),\"\")","v":0.15632601539999999},{"$f":"IFERROR(INDEX('Data Annex'!$K$1:$AN$869,MATCH(Assets!H$1&\"|\"&Assets!$B25,'Data Annex'!$K$1:$K$869,0),MATCH(Assets!H$2,'Data Annex'!$K$1:$AN$1,0)),\"\")","v":0.1821350417},{"$f":"IFERROR(INDEX('Data Annex'!$K$1:$AN$869,MATCH(Assets!I$1&\"|\"&Assets!$B25,'Data Annex'!$K$1:$K$869,0),MATCH(Assets!I$2,'Data Annex'!$K$1:$AN$1,0)),\"\")","v":2.5783307E-3},{"$f":"IFERROR(INDEX('Data Annex'!$K$1:$AN$869,MATCH(Assets!J$1&\"|\"&Assets!$B25,'Data Annex'!$K$1:$K$869,0),MATCH(Assets!J$2,'Data Annex'!$K$1:$AN$1,0)),\"\")","v":2.5443063999999998E-3},{"$f":"IFERROR(INDEX('Data Annex'!$K$1:$AN$869,MATCH(Assets!K$1&\"|\"&Assets!$B25,'Data Annex'!$K$1:$K$869,0),MATCH(Assets!K$2,'Data Annex'!$K$1:$AN$1,0)),\"\")","v":2.6748941000000002E-3},{"$f":"IFERROR(INDEX('Data Annex'!$K$1:$AN$869,MATCH(Assets!L$1&\"|\"&Assets!$B25,'Data Annex'!$K$1:$K$869,0),MATCH(Assets!L$2,'Data Annex'!$K$1:$AN$1,0)),\"\")","v":2.1375982000000002E-3},{"$f":"IFERROR(INDEX('Data Annex'!$K$1:$AN$869,MATCH(Assets!M$1&\"|\"&Assets!$B25,'Data Annex'!$K$1:$K$869,0),MATCH(Assets!M$2,'Data Annex'!$K$1:$AN$1,0)),\"\")","v":0.1121804029},{"$f":"IFERROR(INDEX('Data Annex'!$K$1:$AN$869,MATCH(Assets!N$1&\"|\"&Assets!$B25,'Data Annex'!$K$1:$K$869,0),MATCH(Assets!N$2,'Data Annex'!$K$1:$AN$1,0)),\"\")","v":0.10873398500000001},{"$f":"IFERROR(INDEX('Data Annex'!$K$1:$AN$869,MATCH(Assets!O$1&\"|\"&Assets!$B25,'Data Annex'!$K$1:$K$869,0),MATCH(Assets!O$2,'Data Annex'!$K$1:$AN$1,0)),\"\")","v":0.1137800142},{"$f":"IFERROR(INDEX('Data Annex'!$K$1:$AN$869,MATCH(Assets!P$1&\"|\"&Assets!$B25,'Data Annex'!$K$1:$K$869,0),MATCH(Assets!P$2,'Data Annex'!$K$1:$AN$1,0)),\"\")","v":0.111510949},{"$f":"IFERROR(INDEX('Data Annex'!$K$1:$AN$869,MATCH(Assets!Q$1&\"|\"&Assets!$B25,'Data Annex'!$K$1:$K$869,0),MATCH(Assets!Q$2,'Data Annex'!$K$1:$AN$1,0)),\"\")","v":0.69520279110000005},{"$f":"IFERROR(INDEX('Data Annex'!$K$1:$AN$869,MATCH(Assets!R$1&\"|\"&Assets!$B25,'Data Annex'!$K$1:$K$869,0),MATCH(Assets!R$2,'Data Annex'!$K$1:$AN$1,0)),\"\")","v":0.69657669629999996},{"$f":"IFERROR(INDEX('Data Annex'!$K$1:$AN$869,MATCH(Assets!S$1&\"|\"&Assets!$B25,'Data Annex'!$K$1:$K$869,0),MATCH(Assets!S$2,'Data Annex'!$K$1:$AN$1,0)),\"\")","v":0.69997102639999997},{"$f":"IFERROR(INDEX('Data Annex'!$K$1:$AN$869,MATCH(Assets!T$1&\"|\"&Assets!$B25,'Data Annex'!$K$1:$K$869,0),MATCH(Assets!T$2,'Data Annex'!$K$1:$AN$1,0)),\"\")","v":0.67726478800000001},{"$f":"IFERROR(INDEX('Data Annex'!$K$1:$AN$869,MATCH(Assets!U$1&\"|\"&Assets!$B25,'Data Annex'!$K$1:$K$869,0),MATCH(Assets!U$2,'Data Annex'!$K$1:$AN$1,0)),\"\")","v":6.5799678999999998E-3},{"$f":"IFERROR(INDEX('Data Annex'!$K$1:$AN$869,MATCH(Assets!V$1&\"|\"&Assets!$B25,'Data Annex'!$K$1:$K$869,0),MATCH(Assets!V$2,'Data Annex'!$K$1:$AN$1,0)),\"\")","v":5.5206715000000002E-3},{"$f":"IFERROR(INDEX('Data Annex'!$K$1:$AN$869,MATCH(Assets!W$1&\"|\"&Assets!$B25,'Data Annex'!$K$1:$K$869,0),MATCH(Assets!W$2,'Data Annex'!$K$1:$AN$1,0)),\"\")","v":2.8032681999999999E-3},{"$f":"IFERROR(INDEX('Data Annex'!$K$1:$AN$869,MATCH(Assets!X$1&\"|\"&Assets!$B25,'Data Annex'!$K$1:$K$869,0),MATCH(Assets!X$2,'Data Annex'!$K$1:$AN$1,0)),\"\")","v":2.2659288999999998E-3},{"$f":"IFERROR(INDEX('Data Annex'!$K$1:$AN$869,MATCH(Assets!Y$1&\"|\"&Assets!$B25,'Data Annex'!$K$1:$K$869,0),MATCH(Assets!Y$2,'Data Annex'!$K$1:$AN$1,0)),\"\")","v":2.4488957400000001E-2},{"$f":"IFERROR(INDEX('Data Annex'!$K$1:$AN$869,MATCH(Assets!Z$1&\"|\"&Assets!$B25,'Data Annex'!$K$1:$K$869,0),MATCH(Assets!Z$2,'Data Annex'!$K$1:$AN$1,0)),\"\")","v":2.46130741E-2},{"$f":"IFERROR(INDEX('Data Annex'!$K$1:$AN$869,MATCH(Assets!AA$1&\"|\"&Assets!$B25,'Data Annex'!$K$1:$K$869,0),MATCH(Assets!AA$2,'Data Annex'!$K$1:$AN$1,0)),\"\")","v":2.4444781799999999E-2},{"$f":"IFERROR(INDEX('Data Annex'!$K$1:$AN$869,MATCH(Assets!AB$1&\"|\"&Assets!$B25,'Data Annex'!$K$1:$K$869,0),MATCH(Assets!AB$2,'Data Annex'!$K$1:$AN$1,0)),\"\")","v":2.4685694099999999E-2},{"$f":"IFERROR(INDEX('Data Annex'!$K$1:$AH$869,MATCH(Assets!AC$1&\"|\"&Assets!$B25,'Data Annex'!$K$1:$K$869,0),MATCH(Assets!AC$2,'Data Annex'!$K$1:$AH$1,0)),\"\")","v":""}]
[null,"HU",null,"HU",{"$f":"IFERROR(INDEX('Data Annex'!$K$1:$AN$869,MATCH(Assets!E$1&\"|\"&Assets!$B26,'Data Annex'!$K$1:$K$869,0),MATCH(Assets!E$2,'Data Annex'!$K$1:$AN$1,0)),\"\")","v":9.4867514200000003E-2},{"$f":"IFERROR(INDEX('Data Annex'!$K$1:$AN$869,MATCH(Assets!F$1&\"|\"&Assets!$B26,'Data Annex'!$K$1:$K$869,0),MATCH(Assets!F$2,'Data Annex'!$K$1:$AN$1,0)),\"\")","v":9.4813932099999998E-2},{"$f":"IFERROR(INDEX('Data Annex'!$K$1:$AN$869,MATCH(Assets!G$1&\"|\"&Assets!$B26,'Data Annex'!$K$1:$K$869,0),MATCH(Assets!G$2,'Data Annex'!$K$1:$AN$1,0)),\"\")","v":9.1964724999999997E-2},{"$f":"IFERROR(INDEX('Data Annex'!$K$1:$AN$869,MATCH(Assets!H$1&\"|\"&Assets!$B26,'Data Annex'!$K$1:$K$869,0),MATCH(Assets!H$2,'Data Annex'!$K$1:$AN$1,0)),\"\")","v":9.8402487900000002E-2},{"$f":"IFERROR(INDEX('Data Annex'!$K$1:$AN$869,MATCH(Assets!I$1&\"|\"&Assets!$B26,'Data Annex'!$K$1:$K$869,0),MATCH(Assets!I$2,'Data Annex'!$K$1:$AN$1,0)),\"\")","v":3.8578432999999998E-3},{"$f":"IFERROR(INDEX('Data Annex'!$K$1:$AN$869,MATCH(Assets!J$1&\"|\"&Assets!$B26,'Data Annex'!$K$1:$K$869,0),MATCH(Assets!J$2,'Data Annex'!$K$1:$AN$1,0)),\"\")","v":3.1207755999999999E-3},{"$f":"IFERROR(INDEX('Data Annex'!$K$1:$AN$869,MATCH(Assets!K$1&\"|\"&Assets!$B26,'Data Annex'!$K$1:$K$869,0),MATCH(Assets!K$2,'Data Annex'!$K$1:$AN$1,0)),\"\")","v":3.2510036999999999E-3},{"$f":"IFERROR(INDEX('Data Annex'!$K$1:$AN$869,MATCH(Assets!L$1&\"|\"&Assets!$B26,'Data Annex'!$K$1:$K$869,0),MATCH(Assets!L$2,'Data Annex'!$K$1:$AN$1,0)),\"\")","v":3.2775489999999998E-3},{"$f":"IFERROR(INDEX('Data Annex'!$K$1:$AN$869,MATCH(Assets!M$1&\"|\"&Assets!$B26,'Data Annex'!$K$1:$K$869,0),MATCH(Assets!M$2,'Data Annex'!$K$1:$AN$1,0)),\"\")","v":0.22326496479999999},{"$f":"IFERROR(INDEX('Data Annex'!$K$1:$AN$869,MATCH(Assets!N$1&\"|\"&Assets!$B26,'Data Annex'!$K$1:$K$869,0),MATCH(Assets!N$2,'Data Annex'!$K$1:$AN$1,0)),\"\")","v":0.21535966600000001},{"$f":"IFERROR(INDEX('Data Annex'!$K$1:$AN$869,MATCH(Assets!O$1&\"|\"&Assets!$B26,'Data Annex'!$K$1:$K$869,0),MATCH(Assets!O$2,'Data Annex'!$K$1:$AN$1,0)),\"\")","v":0.2203542238},{"$f":"IFERROR(INDEX('Data Annex'!$K$1:$AN$869,MATCH(Assets!P$1&\"|\"&Assets!$B26,'Data Annex'!$K$1:$K$869,0),MATCH(Assets!P$2,'Data Annex'!$K$1:$AN$1,0)),\"\")","v":0.21506772760000001},{"$f":"IFERROR(INDEX('Data Annex'!$K$1:$AN$869,MATCH(Assets!Q$1&\"|\"&Assets!$B26,'Data Annex'!$K$1:$K$869,0),MATCH(Assets!Q$2,'Data Annex'!$K$1:$AN$1,0)),\"\")","v":0.61495100579999995},{"$f":"IFERROR(INDEX('Data Annex'!$K$1:$AN$869,MATCH(Assets!R$1&\"|\"&Assets!$B26,'Data Annex'!$K$1:$K$869,0),MATCH(Assets!R$2,'Data Annex'!$K$1:$AN$1,0)),\"\")","v":0.62745768970000004},{"$f":"IFERROR(INDEX('Data Annex'!$K$1:$AN$869,MATCH(Assets!S$1&\"|\"&Assets!$B26,'Data Annex'!$K$1:$K$869,0),MATCH(Assets!S$2,'Data Annex'!$K$1:$AN$1,0)),\"\")","v":0.6299878552},{"$f":"IFERROR(INDEX('Data Annex'!$K$1:$AN$869,MATCH(Assets!T$1&\"|\"&Assets!$B26,'Data Annex'!$K$1:$K$869,0),MATCH(Assets!T$2,'Data Annex'!$K$1:$AN$1,0)),\"\")","v":0.63171822720000004},{"$f":"IFERROR(INDEX('Data Annex'!$K$1:$AN$869,MATCH(Assets!U$1&\"|\"&Assets!$B26,'Data Annex'!$K$1:$K$869,0),MATCH(Assets!U$2,'Data Annex'!$K$1:$AN$1,0)),\"\")","v":2.0022322400000001E-2},{"$f":"IFERROR(INDEX('Data Annex'!$K$1:$AN$869,MATCH(Assets!V$1&\"|\"&Assets!$B26,'Data Annex'!$K$1:$K$869,0),MATCH(Assets!V$2,'Data Annex'!$K$1:$AN$1,0)),\"\")","v":1.54974838E-2},{"$f":"IFERROR(INDEX('Data Annex'!$K$1:$AN$869,MATCH(Assets!W$1&\"|\"&Assets!$B26,'Data Annex'!$K$1:$K$869,0),MATCH(Assets!W$2,'Data Annex'!$K$1:$AN$1,0)),\"\")","v":1.33874189E-2},{"$f":"IFERROR(INDEX('Data Annex'!$K$1:$AN$869,MATCH(Assets!X$1&\"|\"&Assets!$B26,'Data Annex'!$K$1:$K$869,0),MATCH(Assets!X$2,'Data Annex'!$K$1:$AN$1,0)),\"\")","v":1.05808966E-2},{"$f":"IFERROR(INDEX('Data Annex'!$K$1:$AN$869,MATCH(Assets!Y$1&\"|\"&Assets!$B26,'Data Annex'!$K$1:$K$869,0),MATCH(Assets!Y$2,'Data Annex'!$K$1:$AN$1,0)),\"\")","v":4.3036349500000001E-2},{"$f":"IFERROR(INDEX('Data Annex'!$K$1:$AN$869,MATCH(Assets!Z$1&\"|\"&Assets!$B26,'Data Annex'!$K$1:$K$869,0),MATCH(Assets!Z$2,'Data Annex'!$K$1:$AN$1,0)),\"\")","v":4.3750452699999998E-2},{"$f":"IFERROR(INDEX('Data Annex'!$K$1:$AN$869,MATCH(Assets!AA$1&\"|\"&Assets!$B26,'Data Annex'!$K$1:$K$869,0),MATCH(Assets!AA$2,'Data Annex'!$K$1:$AN$1,0)),\"\")","v":4.1054773400000001E-2},{"$f":"IFERROR(INDEX('Data Annex'!$K$1:$AN$869,MATCH(Assets!AB$1&\"|\"&Assets!$B26,'Data Annex'!$K$1:$K$869,0),MATCH(Assets!AB$2,'Data Annex'!$K$1:$AN$1,0)),\"\")","v":4.0953111799999997E-2},{"$f":"IFERROR(INDEX('Data Annex'!$K$1:$AH$869,MATCH(Assets!AC$1&\"|\"&Assets!$B26,'Data Annex'!$K$1:$K$869,0),MATCH(Assets!AC$2,'Data Annex'!$K$1:$AH$1,0)),\"\")","v":""}]
[null,"IE",null,"IE",{"$f":"IFERROR(INDEX('Data Annex'!$K$1:$AN$869,MATCH(Assets!E$1&\"|\"&Assets!$B27,'Data Annex'!$K$1:$K$869,0),MATCH(Assets!E$2,'Data Annex'!$K$1:$AN$1,0)),\"\")","v":0.1410943955},{"$f":"IFERROR(INDEX('Data Annex'!$K$1:$AN$869,MATCH(Assets!F$1&\"|\"&Assets!$B27,'Data Annex'!$K$1:$K$869,0),MATCH(Assets!F$2,'Data Annex'!$K$1:$AN$1,0)),\"\")","v":0.15570621740000001},{"$f":"IFERROR(INDEX('Data Annex'!$K$1:$AN$869,MATCH(Assets!G$1&\"|\"&Assets!$B27,'Data Annex'!$K$1:$K$869,0),MATCH(Assets!G$2,'Data Annex'!$K$1:$AN$1,0)),\"\")","v":0.18268654979999999},{"$f":"IFERROR(INDEX('Data Annex'!$K$1:$AN$869,MATCH(Assets!H$1&\"|\"&Assets!$B27,'Data Annex'!$K$1:$K$869,0),MATCH(Assets!H$2,'Data Annex'!$K$1:$AN$1,0)),\"\")","v":0.18772819460000001},{"$f":"IFERROR(INDEX('Data Annex'!$K$1:$AN$869,MATCH(Assets!I$1&\"|\"&Assets!$B27,'Data Annex'!$K$1:$K$869,0),MATCH(Assets!I$2,'Data Annex'!$K$1:$AN$1,0)),\"\")","v":1.9390191E-3},{"$f":"IFERROR(INDEX('Data Annex'!$K$1:$AN$869,MATCH(Assets!J$1&\"|\"&Assets!$B27,'Data Annex'!$K$1:$K$869,0),MATCH(Assets!J$2,'Data Annex'!$K$1:$AN$1,0)),\"\")","v":2.1386655999999999E-3},{"$f":"IFERROR(INDEX('Data Annex'!$K$1:$AN$869,MATCH(Assets!K$1&\"|\"&Assets!$B27,'Data Annex'!$K$1:$K$869,0),MATCH(Assets!K$2,'Data Annex'!$K$1:$AN$1,0)),\"\")","v":2.1132148999999999E-3},{"$f":"IFERROR(INDEX('Data Annex'!$K$1:$AN$869,MATCH(Assets!L$1&\"|\"&Assets!$B27,'Data Annex'!$K$1:$K$869,0),MATCH(Assets!L$2,'Data Annex'!$K$1:$AN$1,0)),\"\")","v":1.5677390000000001E-3},{"$f":"IFERROR(INDEX('Data Annex'!$K$1:$AN$869,MATCH(Assets!M$1&\"|\"&Assets!$B27,'Data Annex'!$K$1:$K$869,0),MATCH(Assets!M$2,'Data Annex'!$K$1:$AN$1,0)),\"\")","v":0.13631044749999999},{"$f":"IFERROR(INDEX('Data Annex'!$K$1:$AN$869,MATCH(Assets!N$1&\"|\"&Assets!$B27,'Data Annex'!$K$1:$K$869,0),MATCH(Assets!N$2,'Data Annex'!$K$1:$AN$1,0)),\"\")","v":0.1483591749},{"$f":"IFERROR(INDEX('Data Annex'!$K$1:$AN$869,MATCH(Assets!O$1&\"|\"&Assets!$B27,'Data Annex'!$K$1:$K$869,0),MATCH(Assets!O$2,'Data Annex'!$K$1:$AN$1,0)),\"\")","v":0.1434877947},{"$f":"IFERROR(INDEX('Data Annex'!$K$1:$AN$869,MATCH(Assets!P$1&\"|\"&Assets!$B27,'Data Annex'!$K$1:$K$869,0),MATCH(Assets!P$2,'Data Annex'!$K$1:$AN$1,0)),\"\")","v":0.1403038928},{"$f":"IFERROR(INDEX('Data Annex'!$K$1:$AN$869,MATCH(Assets!Q$1&\"|\"&Assets!$B27,'Data Annex'!$K$1:$K$869,0),MATCH(Assets!Q$2,'Data Annex'!$K$1:$AN$1,0)),\"\")","v":0.62968792910000004},{"$f":"IFERROR(INDEX('Data Annex'!$K$1:$AN$869,MATCH(Assets!R$1&\"|\"&Assets!$B27,'Data Annex'!$K$1:$K$869,0),MATCH(Assets!R$2,'Data Annex'!$K$1:$AN$1,0)),\"\")","v":0.60418079179999995},{"$f":"IFERROR(INDEX('Data Annex'!$K$1:$AN$869,MATCH(Assets!S$1&\"|\"&Assets!$B27,'Data Annex'!$K$1:$K$869,0),MATCH(Assets!S$2,'Data Annex'!$K$1:$AN$1,0)),\"\")","v":0.58625127480000006},{"$f":"IFERROR(INDEX('Data Annex'!$K$1:$AN$869,MATCH(Assets!T$1&\"|\"&Assets!$B27,'Data Annex'!$K$1:$K$869,0),MATCH(Assets!T$2,'Data Annex'!$K$1:$AN$1,0)),\"\")","v":0.57983342309999997},{"$f":"IFERROR(INDEX('Data Annex'!$K$1:$AN$869,MATCH(Assets!U$1&\"|\"&Assets!$B27,'Data Annex'!$K$1:$K$869,0),MATCH(Assets!U$2,'Data Annex'!$K$1:$AN$1,0)),\"\")","v":3.4077584500000001E-2},{"$f":"IFERROR(INDEX('Data Annex'!$K$1:$AN$869,MATCH(Assets!V$1&\"|\"&Assets!$B27,'Data Annex'!$K$1:$K$869,0),MATCH(Assets!V$2,'Data Annex'!$K$1:$AN$1,0)),\"\")","v":3.5332501000000002E-2},{"$f":"IFERROR(INDEX('Data Annex'!$K$1:$AN$869,MATCH(Assets!W$1&\"|\"&Assets!$B27,'Data Annex'!$K$1:$K$869,0),MATCH(Assets!W$2,'Data Annex'!$K$1:$AN$1,0)),\"\")","v":3.6049688699999999E-2},{"$f":"IFERROR(INDEX('Data Annex'!$K$1:$AN$869,MATCH(Assets!X$1&\"|\"&Assets!$B27,'Data Annex'!$K$1:$K$869,0),MATCH(Assets!X$2,'Data Annex'!$K$1:$AN$1,0)),\"\")","v":4.4836682699999998E-2},{"$f":"IFERROR(INDEX('Data Annex'!$K$1:$AN$869,MATCH(Assets!Y$1&\"|\"&Assets!$B27,'Data Annex'!$K$1:$K$869,0),MATCH(Assets!Y$2,'Data Annex'!$K$1:$AN$1,0)),\"\")","v":5.6890624299999998E-2},{"$f":"IFERROR(INDEX('Data Annex'!$K$1:$AN$869,MATCH(Assets!Z$1&\"|\"&Assets!$B27,'Data Annex'!$K$1:$K$869,0),MATCH(Assets!Z$2,'Data Annex'!$K$1:$AN$1,0)),\"\")","v":5.4282649199999998E-2},{"$f":"IFERROR(INDEX('Data Annex'!$K$1:$AN$869,MATCH(Assets!AA$1&\"|\"&Assets!$B27,'Data Annex'!$K$1:$K$869,0),MATCH(Assets!AA$2,'Data Annex'!$K$1:$AN$1,0)),\"\")","v":4.9411477000000002E-2},{"$f":"IFERROR(INDEX('Data Annex'!$K$1:$AN$869,MATCH(Assets!AB$1&\"|\"&Assets!$B27,'Data Annex'!$K$1:$K$869,0),MATCH(Assets!AB$2,'Data Annex'!$K$1:$AN$1,0)),\"\")","v":4.5730067800000003E-2},{"$f":"IFERROR(INDEX('Data Annex'!$K$1:$AH$869,MATCH(Assets!AC$1&\"|\"&Assets!$B27,'Data Annex'!$K$1:$K$869,0),MATCH(Assets!AC$2,'Data Annex'!$K$1:$AH$1,0)),\"\")","v":""}]
[null,"IS",null,"IS",{"$f":"IFERROR(INDEX('Data Annex'!$K$1:$AN$869,MATCH(Assets!E$1&\"|\"&Assets!$B28,'Data Annex'!$K$1:$K$869,0),MATCH(Assets!E$2,'Data Annex'!$K$1:$AN$1,0)),\"\")","v":0.10864822609999999},{"$f":"IFERROR(INDEX('Data Annex'!$K$1:$AN$869,MATCH(Assets!F$1&\"|\"&Assets!$B28,'Data Annex'!$K$1:$K$869,0),MATCH(Assets!F$2,'Data Annex'!$K$1:$AN$1,0)),\"\")","v":9.5572778100000005E-2},{"$f":"IFERROR(INDEX('Data Annex'!$K$1:$AN$869,MATCH(Assets!G$1&\"|\"&Assets!$B28,'Data Annex'!$K$1:$K$869,0),MATCH(Assets!G$2,'Data Annex'!$K$1:$AN$1,0)),\"\")","v":0.10350540229999999},{"$f":"IFERROR(INDEX('Data Annex'!$K$1:$AN$869,MATCH(Assets!H$1&\"|\"&Assets!$B28,'Data Annex'!$K$1:$K$869,0),MATCH(Assets!H$2,'Data Annex'!$K$1:$AN$1,0)),\"\")","v":7.4643901700000001E-2},{"$f":"IFERROR(INDEX('Data Annex'!$K$1:$AN$869,MATCH(Assets!I$1&\"|\"&Assets!$B28,'Data Annex'!$K$1:$K$869,0),MATCH(Assets!I$2,'Data Annex'!$K$1:$AN$1,0)),\"\")","v":1.6978291E-2},{"$f":"IFERROR(INDEX('Data Annex'!$K$1:$AN$869,MATCH(Assets!J$1&\"|\"&Assets!$B28,'Data Annex'!$K$1:$K$869,0),MATCH(Assets!J$2,'Data Annex'!$K$1:$AN$1,0)),\"\")","v":1.6897300600000002E-2},{"$f":"IFERROR(INDEX('Data Annex'!$K$1:$AN$869,MATCH(Assets!K$1&\"|\"&Assets!$B28,'Data Annex'!$K$1:$K$869,0),MATCH(Assets!K$2,'Data Annex'!$K$1:$AN$1,0)),\"\")","v":1.7305988899999999E-2},{"$f":"IFERROR(INDEX('Data Annex'!$K$1:$AN$869,MATCH(Assets!L$1&\"|\"&Assets!$B28,'Data Annex'!$K$1:$K$869,0),MATCH(Assets!L$2,'Data Annex'!$K$1:$AN$1,0)),\"\")","v":1.878399E-2},{"$f":"IFERROR(INDEX('Data Annex'!$K$1:$AN$869,MATCH(Assets!M$1&\"|\"&Assets!$B28,'Data Annex'!$K$1:$K$869,0),MATCH(Assets!M$2,'Data Annex'!$K$1:$AN$1,0)),\"\")","v":8.5493903299999993E-2},{"$f":"IFERROR(INDEX('Data Annex'!$K$1:$AN$869,MATCH(Assets!N$1&\"|\"&Assets!$B28,'Data Annex'!$K$1:$K$869,0),MATCH(Assets!N$2,'Data Annex'!$K$1:$AN$1,0)),\"\")","v":0.1012850336},{"$f":"IFERROR(INDEX('Data Annex'!$K$1:$AN$869,MATCH(Assets!O$1&\"|\"&Assets!$B28,'Data Annex'!$K$1:$K$869,0),MATCH(Assets!O$2,'Data Annex'!$K$1:$AN$1,0)),\"\")","v":0.1067868723},{"$f":"IFERROR(INDEX('Data Annex'!$K$1:$AN$869,MATCH(Assets!P$1&\"|\"&Assets!$B28,'Data Annex'!$K$1:$K$869,0),MATCH(Assets!P$2,'Data Annex'!$K$1:$AN$1,0)),\"\")","v":0.1059671064},{"$f":"IFERROR(INDEX('Data Annex'!$K$1:$AN$869,MATCH(Assets!Q$1&\"|\"&Assets!$B28,'Data Annex'!$K$1:$K$869,0),MATCH(Assets!Q$2,'Data Annex'!$K$1:$AN$1,0)),\"\")","v":0.75218976630000001},{"$f":"IFERROR(INDEX('Data Annex'!$K$1:$AN$869,MATCH(Assets!R$1&\"|\"&Assets!$B28,'Data Annex'!$K$1:$K$869,0),MATCH(Assets!R$2,'Data Annex'!$K$1:$AN$1,0)),\"\")","v":0.74933557709999998},{"$f":"IFERROR(INDEX('Data Annex'!$K$1:$AN$869,MATCH(Assets!S$1&\"|\"&Assets!$B28,'Data Annex'!$K$1:$K$869,0),MATCH(Assets!S$2,'Data Annex'!$K$1:$AN$1,0)),\"\")","v":0.73695175390000001},{"$f":"IFERROR(INDEX('Data Annex'!$K$1:$AN$869,MATCH(Assets!T$1&\"|\"&Assets!$B28,'Data Annex'!$K$1:$K$869,0),MATCH(Assets!T$2,'Data Annex'!$K$1:$AN$1,0)),\"\")","v":0.77261168769999999},{"$f":"IFERROR(INDEX('Data Annex'!$K$1:$AN$869,MATCH(Assets!U$1&\"|\"&Assets!$B28,'Data Annex'!$K$1:$K$869,0),MATCH(Assets!U$2,'Data Annex'!$K$1:$AN$1,0)),\"\")","v":4.4426667000000003E-3},{"$f":"IFERROR(INDEX('Data Annex'!$K$1:$AN$869,MATCH(Assets!V$1&\"|\"&Assets!$B28,'Data Annex'!$K$1:$K$869,0),MATCH(Assets!V$2,'Data Annex'!$K$1:$AN$1,0)),\"\")","v":4.2507669000000003E-3},{"$f":"IFERROR(INDEX('Data Annex'!$K$1:$AN$869,MATCH(Assets!W$1&\"|\"&Assets!$B28,'Data Annex'!$K$1:$K$869,0),MATCH(Assets!W$2,'Data Annex'!$K$1:$AN$1,0)),\"\")","v":4.1631834999999997E-3},{"$f":"IFERROR(INDEX('Data Annex'!$K$1:$AN$869,MATCH(Assets!X$1&\"|\"&Assets!$B28,'Data Annex'!$K$1:$K$869,0),MATCH(Assets!X$2,'Data Annex'!$K$1:$AN$1,0)),\"\")","v":4.2225092999999998E-3},{"$f":"IFERROR(INDEX('Data Annex'!$K$1:$AN$869,MATCH(Assets!Y$1&\"|\"&Assets!$B28,'Data Annex'!$K$1:$K$869,0),MATCH(Assets!Y$2,'Data Annex'!$K$1:$AN$1,0)),\"\")","v":3.2247146599999998E-2},{"$f":"IFERROR(INDEX('Data Annex'!$K$1:$AN$869,MATCH(Assets!Z$1&\"|\"&Assets!$B28,'Data Annex'!$K$1:$K$869,0),MATCH(Assets!Z$2,'Data Annex'!$K$1:$AN$1,0)),\"\")","v":3.2657565E-2},{"$f":"IFERROR(INDEX('Data Annex'!$K$1:$AN$869,MATCH(Assets!AA$1&\"|\"&Assets!$B28,'Data Annex'!$K$1:$K$869,0),MATCH(Assets!AA$2,'Data Annex'!$K$1:$AN$1,0)),\"\")","v":3.1286798999999997E-2},{"$f":"IFERROR(INDEX('Data Annex'!$K$1:$AN$869,MATCH(Assets!AB$1&\"|\"&Assets!$B28,'Data Annex'!$K$1:$K$869,0),MATCH(Assets!AB$2,'Data Annex'!$K$1:$AN$1,0)),\"\")","v":2.3684332999999998E-2},{"$f":"IFERROR(INDEX('Data Annex'!$K$1:$AH$869,MATCH(Assets!AC$1&\"|\"&Assets!$B28,'Data Annex'!$K$1:$K$869,0),MATCH(Assets!AC$2,'Data Annex'!$K$1:$AH$1,0)),\"\")","v":""}]
[null,"IT",null,"IT",{"$f":"IFERROR(INDEX('Data Annex'!$K$1:$AN$869,MATCH(Assets!E$1&\"|\"&Assets!$B29,'Data Annex'!$K$1:$K$869,0),MATCH(Assets!E$2,'Data Annex'!$K$1:$AN$1,0)),\"\")","v":5.1691714800000003E-2},{"$f":"IFERROR(INDEX('Data Annex'!$K$1:$AN$869,MATCH(Assets!F$1&\"|\"&Assets!$B29,'Data Annex'!$K$1:$K$869,0),MATCH(Assets!F$2,'Data Annex'!$K$1:$AN$1,0)),\"\")","v":5.9325638600000001E-2},{"$f":"IFERROR(INDEX('Data Annex'!$K$1:$AN$869,MATCH(Assets!G$1&\"|\"&Assets!$B29,'Data Annex'!$K$1:$K$869,0),MATCH(Assets!G$2,'Data Annex'!$K$1:$AN$1,0)),\"\")","v":7.5732232100000005E-2},{"$f":"IFERROR(INDEX('Data Annex'!$K$1:$AN$869,MATCH(Assets!H$1&\"|\"&Assets!$B29,'Data Annex'!$K$1:$K$869,0),MATCH(Assets!H$2,'Data Annex'!$K$1:$AN$1,0)),\"\")","v":0.1369508009},{"$f":"IFERROR(INDEX('Data Annex'!$K$1:$AN$869,MATCH(Assets!I$1&\"|\"&Assets!$B29,'Data Annex'!$K$1:$K$869,0),MATCH(Assets!I$2,'Data Annex'!$K$1:$AN$1,0)),\"\")","v":9.6018948E-3},{"$f":"IFERROR(INDEX('Data Annex'!$K$1:$AN$869,MATCH(Assets!J$1&\"|\"&Assets!$B29,'Data Annex'!$K$1:$K$869,0),MATCH(Assets!J$2,'Data Annex'!$K$1:$AN$1,0)),\"\")","v":1.0510686E-2},{"$f":"IFERROR(INDEX('Data Annex'!$K$1:$AN$869,MATCH(Assets!K$1&\"|\"&Assets!$B29,'Data Annex'!$K$1:$K$869,0),MATCH(Assets!K$2,'Data Annex'!$K$1:$AN$1,0)),\"\")","v":1.0575665E-2},{"$f":"IFERROR(INDEX('Data Annex'!$K$1:$AN$869,MATCH(Assets!L$1&\"|\"&Assets!$B29,'Data Annex'!$K$1:$K$869,0),MATCH(Assets!L$2,'Data Annex'!$K$1:$AN$1,0)),\"\")","v":1.1609333600000001E-2},{"$f":"IFERROR(INDEX('Data Annex'!$K$1:$AN$869,MATCH(Assets!M$1&\"|\"&Assets!$B29,'Data Annex'!$K$1:$K$869,0),MATCH(Assets!M$2,'Data Annex'!$K$1:$AN$1,0)),\"\")","v":0.20006113950000001},{"$f":"IFERROR(INDEX('Data Annex'!$K$1:$AN$869,MATCH(Assets!N$1&\"|\"&Assets!$B29,'Data Annex'!$K$1:$K$869,0),MATCH(Assets!N$2,'Data Annex'!$K$1:$AN$1,0)),\"\")","v":0.2080416373},{"$f":"IFERROR(INDEX('Data Annex'!$K$1:$AN$869,MATCH(Assets!O$1&\"|\"&Assets!$B29,'Data Annex'!$K$1:$K$869,0),MATCH(Assets!O$2,'Data Annex'!$K$1:$AN$1,0)),\"\")","v":0.20476401280000001},{"$f":"IFERROR(INDEX('Data Annex'!$K$1:$AN$869,MATCH(Assets!P$1&\"|\"&Assets!$B29,'Data Annex'!$K$1:$K$869,0),MATCH(Assets!P$2,'Data Annex'!$K$1:$AN$1,0)),\"\")","v":0.19063285429999999},{"$f":"IFERROR(INDEX('Data Annex'!$K$1:$AN$869,MATCH(Assets!Q$1&\"|\"&Assets!$B29,'Data Annex'!$K$1:$K$869,0),MATCH(Assets!Q$2,'Data Annex'!$K$1:$AN$1,0)),\"\")","v":0.6387462626},{"$f":"IFERROR(INDEX('Data Annex'!$K$1:$AN$869,MATCH(Assets!R$1&\"|\"&Assets!$B29,'Data Annex'!$K$1:$K$869,0),MATCH(Assets!R$2,'Data Annex'!$K$1:$AN$1,0)),\"\")","v":0.62603599089999995},{"$f":"IFERROR(INDEX('Data Annex'!$K$1:$AN$869,MATCH(Assets!S$1&\"|\"&Assets!$B29,'Data Annex'!$K$1:$K$869,0),MATCH(Assets!S$2,'Data Annex'!$K$1:$AN$1,0)),\"\")","v":0.61618759400000001},{"$f":"IFERROR(INDEX('Data Annex'!$K$1:$AN$869,MATCH(Assets!T$1&\"|\"&Assets!$B29,'Data Annex'!$K$1:$K$869,0),MATCH(Assets!T$2,'Data Annex'!$K$1:$AN$1,0)),\"\")","v":0.56083726190000005},{"$f":"IFERROR(INDEX('Data Annex'!$K$1:$AN$869,MATCH(Assets!U$1&\"|\"&Assets!$B29,'Data Annex'!$K$1:$K$869,0),MATCH(Assets!U$2,'Data Annex'!$K$1:$AN$1,0)),\"\")","v":4.08468871E-2},{"$f":"IFERROR(INDEX('Data Annex'!$K$1:$AN$869,MATCH(Assets!V$1&\"|\"&Assets!$B29,'Data Annex'!$K$1:$K$869,0),MATCH(Assets!V$2,'Data Annex'!$K$1:$AN$1,0)),\"\")","v":3.7910818399999997E-2},{"$f":"IFERROR(INDEX('Data Annex'!$K$1:$AN$869,MATCH(Assets!W$1&\"|\"&Assets!$B29,'Data Annex'!$K$1:$K$869,0),MATCH(Assets!W$2,'Data Annex'!$K$1:$AN$1,0)),\"\")","v":3.5332376200000001E-2},{"$f":"IFERROR(INDEX('Data Annex'!$K$1:$AN$869,MATCH(Assets!X$1&\"|\"&Assets!$B29,'Data Annex'!$K$1:$K$869,0),MATCH(Assets!X$2,'Data Annex'!$K$1:$AN$1,0)),\"\")","v":3.4582249099999997E-2},{"$f":"IFERROR(INDEX('Data Annex'!$K$1:$AN$869,MATCH(Assets!Y$1&\"|\"&Assets!$B29,'Data Annex'!$K$1:$K$869,0),MATCH(Assets!Y$2,'Data Annex'!$K$1:$AN$1,0)),\"\")","v":5.9052101199999998E-2},{"$f":"IFERROR(INDEX('Data Annex'!$K$1:$AN$869,MATCH(Assets!Z$1&\"|\"&Assets!$B29,'Data Annex'!$K$1:$K$869,0),MATCH(Assets!Z$2,'Data Annex'!$K$1:$AN$1,0)),\"\")","v":5.8175228699999998E-2},{"$f":"IFERROR(INDEX('Data Annex'!$K$1:$AN$869,MATCH(Assets!AA$1&\"|\"&Assets!$B29,'Data Annex'!$K$1:$K$869,0),MATCH(Assets!AA$2,'Data Annex'!$K$1:$AN$1,0)),\"\")","v":5.7408119799999997E-2},{"$f":"IFERROR(INDEX('Data Annex'!$K$1:$AN$869,MATCH(Assets!AB$1&\"|\"&Assets!$B29,'Data Annex'!$K$1:$K$869,0),MATCH(Assets!AB$2,'Data Annex'!$K$1:$AN$1,0)),\"\")","v":6.5387499700000004E-2},{"$f":"IFERROR(INDEX('Data Annex'!$K$1:$AH$869,MATCH(Assets!AC$1&\"|\"&Assets!$B29,'Data Annex'!$K$1:$K$869,0),MATCH(Assets!AC$2,'Data Annex'!$K$1:$AH$1,0)),\"\")","v":""}]
[null,"LT",null,"LT",{"$f":"IFERROR(INDEX('Data Annex'!$K$1:$AN$869,MATCH(Assets!E$1&\"|\"&Assets!$B30,'Data Annex'!$K$1:$K$869,0),MATCH(Assets!E$2,'Data Annex'!$K$1:$AN$1,0)),\"\")","v":0.30488116380000002},{"$f":"IFERROR(INDEX('Data Annex'!$K$1:$AN$869,MATCH(Assets!F$1&\"|\"&Assets!$B30,'Data Annex'!$K$1:$K$869,0),MATCH(Assets!F$2,'Data Annex'!$K$1:$AN$1,0)),\"\")","v":0.33932824140000001},{"$f":"IFERROR(INDEX('Data Annex'!$K$1:$AN$869,MATCH(Assets!G$1&\"|\"&Assets!$B30,'Data Annex'!$K$1:$K$869,0),MATCH(Assets!G$2,'Data Annex'!$K$1:$AN$1,0)),\"\")","v":0.37969911849999999},{"$f":"IFERROR(INDEX('Data Annex'!$K$1:$AN$869,MATCH(Assets!H$1&\"|\"&Assets!$B30,'Data Annex'!$K$1:$K$869,0),MATCH(Assets!H$2,'Data Annex'!$K$1:$AN$1,0)),\"\")","v":0.3682813835},{"$f":"IFERROR(INDEX('Data Annex'!$K$1:$AN$869,MATCH(Assets!I$1&\"|\"&Assets!$B30,'Data Annex'!$K$1:$K$869,0),MATCH(Assets!I$2,'Data Annex'!$K$1:$AN$1,0)),\"\")","v":6.7063300000000001E-4},{"$f":"IFERROR(INDEX('Data Annex'!$K$1:$AN$869,MATCH(Assets!J$1&\"|\"&Assets!$B30,'Data Annex'!$K$1:$K$869,0),MATCH(Assets!J$2,'Data Annex'!$K$1:$AN$1,0)),\"\")","v":6.6768800000000005E-4},{"$f":"IFERROR(INDEX('Data Annex'!$K$1:$AN$869,MATCH(Assets!K$1&\"|\"&Assets!$B30,'Data Annex'!$K$1:$K$869,0),MATCH(Assets!K$2,'Data Annex'!$K$1:$AN$1,0)),\"\")","v":7.1949980000000002E-4},{"$f":"IFERROR(INDEX('Data Annex'!$K$1:$AN$869,MATCH(Assets!L$1&\"|\"&Assets!$B30,'Data Annex'!$K$1:$K$869,0),MATCH(Assets!L$2,'Data Annex'!$K$1:$AN$1,0)),\"\")","v":3.7481750000000001E-4},{"$f":"IFERROR(INDEX('Data Annex'!$K$1:$AN$869,MATCH(Assets!M$1&\"|\"&Assets!$B30,'Data Annex'!$K$1:$K$869,0),MATCH(Assets!M$2,'Data Annex'!$K$1:$AN$1,0)),\"\")","v":4.4329365900000001E-2},{"$f":"IFERROR(INDEX('Data Annex'!$K$1:$AN$869,MATCH(Assets!N$1&\"|\"&Assets!$B30,'Data Annex'!$K$1:$K$869,0),MATCH(Assets!N$2,'Data Annex'!$K$1:$AN$1,0)),\"\")","v":5.6376868400000002E-2},{"$f":"IFERROR(INDEX('Data Annex'!$K$1:$AN$869,MATCH(Assets!O$1&\"|\"&Assets!$B30,'Data Annex'!$K$1:$K$869,0),MATCH(Assets!O$2,'Data Annex'!$K$1:$AN$1,0)),\"\")","v":5.5568396499999999E-2},{"$f":"IFERROR(INDEX('Data Annex'!$K$1:$AN$869,MATCH(Assets!P$1&\"|\"&Assets!$B30,'Data Annex'!$K$1:$K$869,0),MATCH(Assets!P$2,'Data Annex'!$K$1:$AN$1,0)),\"\")","v":5.4308973900000002E-2},{"$f":"IFERROR(INDEX('Data Annex'!$K$1:$AN$869,MATCH(Assets!Q$1&\"|\"&Assets!$B30,'Data Annex'!$K$1:$K$869,0),MATCH(Assets!Q$2,'Data Annex'!$K$1:$AN$1,0)),\"\")","v":0.64027063920000005},{"$f":"IFERROR(INDEX('Data Annex'!$K$1:$AN$869,MATCH(Assets!R$1&\"|\"&Assets!$B30,'Data Annex'!$K$1:$K$869,0),MATCH(Assets!R$2,'Data Annex'!$K$1:$AN$1,0)),\"\")","v":0.59325697769999997},{"$f":"IFERROR(INDEX('Data Annex'!$K$1:$AN$869,MATCH(Assets!S$1&\"|\"&Assets!$B30,'Data Annex'!$K$1:$K$869,0),MATCH(Assets!S$2,'Data Annex'!$K$1:$AN$1,0)),\"\")","v":0.55417024670000004},{"$f":"IFERROR(INDEX('Data Annex'!$K$1:$AN$869,MATCH(Assets!T$1&\"|\"&Assets!$B30,'Data Annex'!$K$1:$K$869,0),MATCH(Assets!T$2,'Data Annex'!$K$1:$AN$1,0)),\"\")","v":0.56802048319999998},{"$f":"IFERROR(INDEX('Data Annex'!$K$1:$AN$869,MATCH(Assets!U$1&\"|\"&Assets!$B30,'Data Annex'!$K$1:$K$869,0),MATCH(Assets!U$2,'Data Annex'!$K$1:$AN$1,0)),\"\")","v":1.4132102000000001E-3},{"$f":"IFERROR(INDEX('Data Annex'!$K$1:$AN$869,MATCH(Assets!V$1&\"|\"&Assets!$B30,'Data Annex'!$K$1:$K$869,0),MATCH(Assets!V$2,'Data Annex'!$K$1:$AN$1,0)),\"\")","v":1.0231076000000001E-3},{"$f":"IFERROR(INDEX('Data Annex'!$K$1:$AN$869,MATCH(Assets!W$1&\"|\"&Assets!$B30,'Data Annex'!$K$1:$K$869,0),MATCH(Assets!W$2,'Data Annex'!$K$1:$AN$1,0)),\"\")","v":1.1580772E-3},{"$f":"IFERROR(INDEX('Data Annex'!$K$1:$AN$869,MATCH(Assets!X$1&\"|\"&Assets!$B30,'Data Annex'!$K$1:$K$869,0),MATCH(Assets!X$2,'Data Annex'!$K$1:$AN$1,0)),\"\")","v":1.1631788E-3},{"$f":"IFERROR(INDEX('Data Annex'!$K$1:$AN$869,MATCH(Assets!Y$1&\"|\"&Assets!$B30,'Data Annex'!$K$1:$K$869,0),MATCH(Assets!Y$2,'Data Annex'!$K$1:$AN$1,0)),\"\")","v":8.4349878999999996E-3},{"$f":"IFERROR(INDEX('Data Annex'!$K$1:$AN$869,MATCH(Assets!Z$1&\"|\"&Assets!$B30,'Data Annex'!$K$1:$K$869,0),MATCH(Assets!Z$2,'Data Annex'!$K$1:$AN$1,0)),\"\")","v":9.3471169000000007E-3},{"$f":"IFERROR(INDEX('Data Annex'!$K$1:$AN$869,MATCH(Assets!AA$1&\"|\"&Assets!$B30,'Data Annex'!$K$1:$K$869,0),MATCH(Assets!AA$2,'Data Annex'!$K$1:$AN$1,0)),\"\")","v":8.6846613000000003E-3},{"$f":"IFERROR(INDEX('Data Annex'!$K$1:$AN$869,MATCH(Assets!AB$1&\"|\"&Assets!$B30,'Data Annex'!$K$1:$K$869,0),MATCH(Assets!AB$2,'Data Annex'!$K$1:$AN$1,0)),\"\")","v":7.8511629999999995E-3},{"$f":"IFERROR(INDEX('Data Annex'!$K$1:$AH$869,MATCH(Assets!AC$1&\"|\"&Assets!$B30,'Data Annex'!$K$1:$K$869,0),MATCH(Assets!AC$2,'Data Annex'!$K$1:$AH$1,0)),\"\")","v":""}]
[null,"LU",null,"LU",{"$f":"IFERROR(INDEX('Data Annex'!$K$1:$AN$869,MATCH(Assets!E$1&\"|\"&Assets!$B31,'Data Annex'!$K$1:$K$869,0),MATCH(Assets!E$2,'Data Annex'!$K$1:$AN$1,0)),\"\")","v":0.1596667168},{"$f":"IFERROR(INDEX('Data Annex'!$K$1:$AN$869,MATCH(Assets!F$1&\"|\"&Assets!$B31,'Data Annex'!$K$1:$K$869,0),MATCH(Assets!F$2,'Data Annex'!$K$1:$AN$1,0)),\"\")","v":0.16457370060000001},{"$f":"IFERROR(INDEX('Data Annex'!$K$1:$AN$869,MATCH(Assets!G$1&\"|\"&Assets!$B31,'Data Annex'!$K$1:$K$869,0),MATCH(Assets!G$2,'Data Annex'!$K$1:$AN$1,0)),\"\")","v":0.1663693923},{"$f":"IFERROR(INDEX('Data Annex'!$K$1:$AN$869,MATCH(Assets!H$1&\"|\"&Assets!$B31,'Data Annex'!$K$1:$K$869,0),MATCH(Assets!H$2,'Data Annex'!$K$1:$AN$1,0)),\"\")","v":0.21121042039999999},{"$f":"IFERROR(INDEX('Data Annex'!$K$1:$AN$869,MATCH(Assets!I$1&\"|\"&Assets!$B31,'Data Annex'!$K$1:$K$869,0),MATCH(Assets!I$2,'Data Annex'!$K$1:$AN$1,0)),\"\")","v":2.8205221999999999E-3},{"$f":"IFERROR(INDEX('Data Annex'!$K$1:$AN$869,MATCH(Assets!J$1&\"|\"&Assets!$B31,'Data Annex'!$K$1:$K$869,0),MATCH(Assets!J$2,'Data Annex'!$K$1:$AN$1,0)),\"\")","v":3.3836231000000001E-3},{"$f":"IFERROR(INDEX('Data Annex'!$K$1:$AN$869,MATCH(Assets!K$1&\"|\"&Assets!$B31,'Data Annex'!$K$1:$K$869,0),MATCH(Assets!K$2,'Data Annex'!$K$1:$AN$1,0)),\"\")","v":2.8607686999999999E-3},{"$f":"IFERROR(INDEX('Data Annex'!$K$1:$AN$869,MATCH(Assets!L$1&\"|\"&Assets!$B31,'Data Annex'!$K$1:$K$869,0),MATCH(Assets!L$2,'Data Annex'!$K$1:$AN$1,0)),\"\")","v":3.8277678E-3},{"$f":"IFERROR(INDEX('Data Annex'!$K$1:$AN$869,MATCH(Assets!M$1&\"|\"&Assets!$B31,'Data Annex'!$K$1:$K$869,0),MATCH(Assets!M$2,'Data Annex'!$K$1:$AN$1,0)),\"\")","v":0.1134329415},{"$f":"IFERROR(INDEX('Data Annex'!$K$1:$AN$869,MATCH(Assets!N$1&\"|\"&Assets!$B31,'Data Annex'!$K$1:$K$869,0),MATCH(Assets!N$2,'Data Annex'!$K$1:$AN$1,0)),\"\")","v":0.12797549599999999},{"$f":"IFERROR(INDEX('Data Annex'!$K$1:$AN$869,MATCH(Assets!O$1&\"|\"&Assets!$B31,'Data Annex'!$K$1:$K$869,0),MATCH(Assets!O$2,'Data Annex'!$K$1:$AN$1,0)),\"\")","v":0.12766083519999999},{"$f":"IFERROR(INDEX('Data Annex'!$K$1:$AN$869,MATCH(Assets!P$1&\"|\"&Assets!$B31,'Data Annex'!$K$1:$K$869,0),MATCH(Assets!P$2,'Data Annex'!$K$1:$AN$1,0)),\"\")","v":0.1588085326},{"$f":"IFERROR(INDEX('Data Annex'!$K$1:$AN$869,MATCH(Assets!Q$1&\"|\"&Assets!$B31,'Data Annex'!$K$1:$K$869,0),MATCH(Assets!Q$2,'Data Annex'!$K$1:$AN$1,0)),\"\")","v":0.65588178009999998},{"$f":"IFERROR(INDEX('Data Annex'!$K$1:$AN$869,MATCH(Assets!R$1&\"|\"&Assets!$B31,'Data Annex'!$K$1:$K$869,0),MATCH(Assets!R$2,'Data Annex'!$K$1:$AN$1,0)),\"\")","v":0.66327918129999996},{"$f":"IFERROR(INDEX('Data Annex'!$K$1:$AN$869,MATCH(Assets!S$1&\"|\"&Assets!$B31,'Data Annex'!$K$1:$K$869,0),MATCH(Assets!S$2,'Data Annex'!$K$1:$AN$1,0)),\"\")","v":0.66439979760000001},{"$f":"IFERROR(INDEX('Data Annex'!$K$1:$AN$869,MATCH(Assets!T$1&\"|\"&Assets!$B31,'Data Annex'!$K$1:$K$869,0),MATCH(Assets!T$2,'Data Annex'!$K$1:$AN$1,0)),\"\")","v":0.58666963760000002},{"$f":"IFERROR(INDEX('Data Annex'!$K$1:$AN$869,MATCH(Assets!U$1&\"|\"&Assets!$B31,'Data Annex'!$K$1:$K$869,0),MATCH(Assets!U$2,'Data Annex'!$K$1:$AN$1,0)),\"\")","v":4.3190571699999999E-2},{"$f":"IFERROR(INDEX('Data Annex'!$K$1:$AN$869,MATCH(Assets!V$1&\"|\"&Assets!$B31,'Data Annex'!$K$1:$K$869,0),MATCH(Assets!V$2,'Data Annex'!$K$1:$AN$1,0)),\"\")","v":1.5241473199999999E-2},{"$f":"IFERROR(INDEX('Data Annex'!$K$1:$AN$869,MATCH(Assets!W$1&\"|\"&Assets!$B31,'Data Annex'!$K$1:$K$869,0),MATCH(Assets!W$2,'Data Annex'!$K$1:$AN$1,0)),\"\")","v":1.17134036E-2},{"$f":"IFERROR(INDEX('Data Annex'!$K$1:$AN$869,MATCH(Assets!X$1&\"|\"&Assets!$B31,'Data Annex'!$K$1:$K$869,0),MATCH(Assets!X$2,'Data Annex'!$K$1:$AN$1,0)),\"\")","v":1.10154377E-2},{"$f":"IFERROR(INDEX('Data Annex'!$K$1:$AN$869,MATCH(Assets!Y$1&\"|\"&Assets!$B31,'Data Annex'!$K$1:$K$869,0),MATCH(Assets!Y$2,'Data Annex'!$K$1:$AN$1,0)),\"\")","v":2.5007467700000001E-2},{"$f":"IFERROR(INDEX('Data Annex'!$K$1:$AN$869,MATCH(Assets!Z$1&\"|\"&Assets!$B31,'Data Annex'!$K$1:$K$869,0),MATCH(Assets!Z$2,'Data Annex'!$K$1:$AN$1,0)),\"\")","v":2.5546525800000001E-2},{"$f":"IFERROR(INDEX('Data Annex'!$K$1:$AN$869,MATCH(Assets!AA$1&\"|\"&Assets!$B31,'Data Annex'!$K$1:$K$869,0),MATCH(Assets!AA$2,'Data Annex'!$K$1:$AN$1,0)),\"\")","v":2.6995798000000001E-2},{"$f":"IFERROR(INDEX('Data Annex'!$K$1:$AN$869,MATCH(Assets!AB$1&\"|\"&Assets!$B31,'Data Annex'!$K$1:$K$869,0),MATCH(Assets!AB$2,'Data Annex'!$K$1:$AN$1,0)),\"\")","v":2.8468203899999999E-2},{"$f":"IFERROR(INDEX('Data Annex'!$K$1:$AH$869,MATCH(Assets!AC$1&\"|\"&Assets!$B31,'Data Annex'!$K$1:$K$869,0),MATCH(Assets!AC$2,'Data Annex'!$K$1:$AH$1,0)),\"\")","v":""}]
[null,"LV",null,"LV",{"$f":"IFERROR(INDEX('Data Annex'!$K$1:$AN$869,MATCH(Assets!E$1&\"|\"&Assets!$B32,'Data Annex'!$K$1:$K$869,0),MATCH(Assets!E$2,'Data Annex'!$K$1:$AN$1,0)),\"\")","v":0.29998023959999998},{"$f":"IFERROR(INDEX('Data Annex'!$K$1:$AN$869,MATCH(Assets!F$1&\"|\"&Assets!$B32,'Data Annex'!$K$1:$K$869,0),MATCH(Assets!F$2,'Data Annex'!$K$1:$AN$1,0)),\"\")","v":0.27991429309999999},{"$f":"IFERROR(INDEX('Data Annex'!$K$1:$AN$869,MATCH(Assets!G$1&\"|\"&Assets!$B32,'Data Annex'!$K$1:$K$869,0),MATCH(Assets!G$2,'Data Annex'!$K$1:$AN$1,0)),\"\")","v":0.26037610719999998},{"$f":"IFERROR(INDEX('Data Annex'!$K$1:$AN$869,MATCH(Assets!H$1&\"|\"&Assets!$B32,'Data Annex'!$K$1:$K$869,0),MATCH(Assets!H$2,'Data Annex'!$K$1:$AN$1,0)),\"\")","v":0.22575846350000001},{"$f":"IFERROR(INDEX('Data Annex'!$K$1:$AN$869,MATCH(Assets!I$1&\"|\"&Assets!$B32,'Data Annex'!$K$1:$K$869,0),MATCH(Assets!I$2,'Data Annex'!$K$1:$AN$1,0)),\"\")","v":1.2982352000000001E-3},{"$f":"IFERROR(INDEX('Data Annex'!$K$1:$AN$869,MATCH(Assets!J$1&\"|\"&Assets!$B32,'Data Annex'!$K$1:$K$869,0),MATCH(Assets!J$2,'Data Annex'!$K$1:$AN$1,0)),\"\")","v":1.7555820000000001E-3},{"$f":"IFERROR(INDEX('Data Annex'!$K$1:$AN$869,MATCH(Assets!K$1&\"|\"&Assets!$B32,'Data Annex'!$K$1:$K$869,0),MATCH(Assets!K$2,'Data Annex'!$K$1:$AN$1,0)),\"\")","v":1.8817098999999999E-3},{"$f":"IFERROR(INDEX('Data Annex'!$K$1:$AN$869,MATCH(Assets!L$1&\"|\"&Assets!$B32,'Data Annex'!$K$1:$K$869,0),MATCH(Assets!L$2,'Data Annex'!$K$1:$AN$1,0)),\"\")","v":2.6103023000000002E-3},{"$f":"IFERROR(INDEX('Data Annex'!$K$1:$AN$869,MATCH(Assets!M$1&\"|\"&Assets!$B32,'Data Annex'!$K$1:$K$869,0),MATCH(Assets!M$2,'Data Annex'!$K$1:$AN$1,0)),\"\")","v":8.5453544899999997E-2},{"$f":"IFERROR(INDEX('Data Annex'!$K$1:$AN$869,MATCH(Assets!N$1&\"|\"&Assets!$B32,'Data Annex'!$K$1:$K$869,0),MATCH(Assets!N$2,'Data Annex'!$K$1:$AN$1,0)),\"\")","v":0.16608951150000001},{"$f":"IFERROR(INDEX('Data Annex'!$K$1:$AN$869,MATCH(Assets!O$1&\"|\"&Assets!$B32,'Data Annex'!$K$1:$K$869,0),MATCH(Assets!O$2,'Data Annex'!$K$1:$AN$1,0)),\"\")","v":0.19538124740000001},{"$f":"IFERROR(INDEX('Data Annex'!$K$1:$AN$869,MATCH(Assets!P$1&\"|\"&Assets!$B32,'Data Annex'!$K$1:$K$869,0),MATCH(Assets!P$2,'Data Annex'!$K$1:$AN$1,0)),\"\")","v":0.22698297589999999},{"$f":"IFERROR(INDEX('Data Annex'!$K$1:$AN$869,MATCH(Assets!Q$1&\"|\"&Assets!$B32,'Data Annex'!$K$1:$K$869,0),MATCH(Assets!Q$2,'Data Annex'!$K$1:$AN$1,0)),\"\")","v":0.59591246050000002},{"$f":"IFERROR(INDEX('Data Annex'!$K$1:$AN$869,MATCH(Assets!R$1&\"|\"&Assets!$B32,'Data Annex'!$K$1:$K$869,0),MATCH(Assets!R$2,'Data Annex'!$K$1:$AN$1,0)),\"\")","v":0.53714404510000002},{"$f":"IFERROR(INDEX('Data Annex'!$K$1:$AN$869,MATCH(Assets!S$1&\"|\"&Assets!$B32,'Data Annex'!$K$1:$K$869,0),MATCH(Assets!S$2,'Data Annex'!$K$1:$AN$1,0)),\"\")","v":0.52835835949999999},{"$f":"IFERROR(INDEX('Data Annex'!$K$1:$AN$869,MATCH(Assets!T$1&\"|\"&Assets!$B32,'Data Annex'!$K$1:$K$869,0),MATCH(Assets!T$2,'Data Annex'!$K$1:$AN$1,0)),\"\")","v":0.53161575719999998},{"$f":"IFERROR(INDEX('Data Annex'!$K$1:$AN$869,MATCH(Assets!U$1&\"|\"&Assets!$B32,'Data Annex'!$K$1:$K$869,0),MATCH(Assets!U$2,'Data Annex'!$K$1:$AN$1,0)),\"\")","v":4.6908656999999996E-3},{"$f":"IFERROR(INDEX('Data Annex'!$K$1:$AN$869,MATCH(Assets!V$1&\"|\"&Assets!$B32,'Data Annex'!$K$1:$K$869,0),MATCH(Assets!V$2,'Data Annex'!$K$1:$AN$1,0)),\"\")","v":3.7364435000000001E-3},{"$f":"IFERROR(INDEX('Data Annex'!$K$1:$AN$869,MATCH(Assets!W$1&\"|\"&Assets!$B32,'Data Annex'!$K$1:$K$869,0),MATCH(Assets!W$2,'Data Annex'!$K$1:$AN$1,0)),\"\")","v":3.3555941E-3},{"$f":"IFERROR(INDEX('Data Annex'!$K$1:$AN$869,MATCH(Assets!X$1&\"|\"&Assets!$B32,'Data Annex'!$K$1:$K$869,0),MATCH(Assets!X$2,'Data Annex'!$K$1:$AN$1,0)),\"\")","v":3.7348793000000001E-3},{"$f":"IFERROR(INDEX('Data Annex'!$K$1:$AN$869,MATCH(Assets!Y$1&\"|\"&Assets!$B32,'Data Annex'!$K$1:$K$869,0),MATCH(Assets!Y$2,'Data Annex'!$K$1:$AN$1,0)),\"\")","v":1.26646542E-2},{"$f":"IFERROR(INDEX('Data Annex'!$K$1:$AN$869,MATCH(Assets!Z$1&\"|\"&Assets!$B32,'Data Annex'!$K$1:$K$869,0),MATCH(Assets!Z$2,'Data Annex'!$K$1:$AN$1,0)),\"\")","v":1.13601247E-2},{"$f":"IFERROR(INDEX('Data Annex'!$K$1:$AN$869,MATCH(Assets!AA$1&\"|\"&Assets!$B32,'Data Annex'!$K$1:$K$869,0),MATCH(Assets!AA$2,'Data Annex'!$K$1:$AN$1,0)),\"\")","v":1.06469819E-2},{"$f":"IFERROR(INDEX('Data Annex'!$K$1:$AN$869,MATCH(Assets!AB$1&\"|\"&Assets!$B32,'Data Annex'!$K$1:$K$869,0),MATCH(Assets!AB$2,'Data Annex'!$K$1:$AN$1,0)),\"\")","v":9.2976217999999992E-3},{"$f":"IFERROR(INDEX('Data Annex'!$K$1:$AH$869,MATCH(Assets!AC$1&\"|\"&Assets!$B32,'Data Annex'!$K$1:$K$869,0),MATCH(Assets!AC$2,'Data Annex'!$K$1:$AH$1,0)),\"\")","v":""}]
[null,"MT",null,"MT",{"$f":"IFERROR(INDEX('Data Annex'!$K$1:$AN$869,MATCH(Assets!E$1&\"|\"&Assets!$B33,'Data Annex'!$K$1:$K$869,0),MATCH(Assets!E$2,'Data Annex'!$K$1:$AN$1,0)),\"\")","v":0.21906201149999999},{"$f":"IFERROR(INDEX('Data Annex'!$K$1:$AN$869,MATCH(Assets!F$1&\"|\"&Assets!$B33,'Data Annex'!$K$1:$K$869,0),MATCH(Assets!F$2,'Data Annex'!$K$1:$AN$1,0)),\"\")","v":0.21259663619999999},{"$f":"IFERROR(INDEX('Data Annex'!$K$1:$AN$869,MATCH(Assets!G$1&\"|\"&Assets!$B33,'Data Annex'!$K$1:$K$869,0),MATCH(Assets!G$2,'Data Annex'!$K$1:$AN$1,0)),\"\")","v":0.2185057017},{"$f":"IFERROR(INDEX('Data Annex'!$K$1:$AN$869,MATCH(Assets!H$1&\"|\"&Assets!$B33,'Data Annex'!$K$1:$K$869,0),MATCH(Assets!H$2,'Data Annex'!$K$1:$AN$1,0)),\"\")","v":0.2385711502},{"$f":"IFERROR(INDEX('Data Annex'!$K$1:$AN$869,MATCH(Assets!I$1&\"|\"&Assets!$B33,'Data Annex'!$K$1:$K$869,0),MATCH(Assets!I$2,'Data Annex'!$K$1:$AN$1,0)),\"\")","v":2.3596046000000002E-3},{"$f":"IFERROR(INDEX('Data Annex'!$K$1:$AN$869,MATCH(Assets!J$1&\"|\"&Assets!$B33,'Data Annex'!$K$1:$K$869,0),MATCH(Assets!J$2,'Data Annex'!$K$1:$AN$1,0)),\"\")","v":2.2282170999999998E-3},{"$f":"IFERROR(INDEX('Data Annex'!$K$1:$AN$869,MATCH(Assets!K$1&\"|\"&Assets!$B33,'Data Annex'!$K$1:$K$869,0),MATCH(Assets!K$2,'Data Annex'!$K$1:$AN$1,0)),\"\")","v":2.4711449000000001E-3},{"$f":"IFERROR(INDEX('Data Annex'!$K$1:$AN$869,MATCH(Assets!L$1&\"|\"&Assets!$B33,'Data Annex'!$K$1:$K$869,0),MATCH(Assets!L$2,'Data Annex'!$K$1:$AN$1,0)),\"\")","v":2.6208313999999998E-3},{"$f":"IFERROR(INDEX('Data Annex'!$K$1:$AN$869,MATCH(Assets!M$1&\"|\"&Assets!$B33,'Data Annex'!$K$1:$K$869,0),MATCH(Assets!M$2,'Data Annex'!$K$1:$AN$1,0)),\"\")","v":0.2438414119},{"$f":"IFERROR(INDEX('Data Annex'!$K$1:$AN$869,MATCH(Assets!N$1&\"|\"&Assets!$B33,'Data Annex'!$K$1:$K$869,0),MATCH(Assets!N$2,'Data Annex'!$K$1:$AN$1,0)),\"\")","v":0.27451457600000001},{"$f":"IFERROR(INDEX('Data Annex'!$K$1:$AN$869,MATCH(Assets!O$1&\"|\"&Assets!$B33,'Data Annex'!$K$1:$K$869,0),MATCH(Assets!O$2,'Data Annex'!$K$1:$AN$1,0)),\"\")","v":0.26666755879999998},{"$f":"IFERROR(INDEX('Data Annex'!$K$1:$AN$869,MATCH(Assets!P$1&\"|\"&Assets!$B33,'Data Annex'!$K$1:$K$869,0),MATCH(Assets!P$2,'Data Annex'!$K$1:$AN$1,0)),\"\")","v":0.24972226119999999},{"$f":"IFERROR(INDEX('Data Annex'!$K$1:$AN$869,MATCH(Assets!Q$1&\"|\"&Assets!$B33,'Data Annex'!$K$1:$K$869,0),MATCH(Assets!Q$2,'Data Annex'!$K$1:$AN$1,0)),\"\")","v":0.50115669569999999},{"$f":"IFERROR(INDEX('Data Annex'!$K$1:$AN$869,MATCH(Assets!R$1&\"|\"&Assets!$B33,'Data Annex'!$K$1:$K$869,0),MATCH(Assets!R$2,'Data Annex'!$K$1:$AN$1,0)),\"\")","v":0.47876729099999998},{"$f":"IFERROR(INDEX('Data Annex'!$K$1:$AN$869,MATCH(Assets!S$1&\"|\"&Assets!$B33,'Data Annex'!$K$1:$K$869,0),MATCH(Assets!S$2,'Data Annex'!$K$1:$AN$1,0)),\"\")","v":0.48161280379999999},{"$f":"IFERROR(INDEX('Data Annex'!$K$1:$AN$869,MATCH(Assets!T$1&\"|\"&Assets!$B33,'Data Annex'!$K$1:$K$869,0),MATCH(Assets!T$2,'Data Annex'!$K$1:$AN$1,0)),\"\")","v":0.4770496307},{"$f":"IFERROR(INDEX('Data Annex'!$K$1:$AN$869,MATCH(Assets!U$1&\"|\"&Assets!$B33,'Data Annex'!$K$1:$K$869,0),MATCH(Assets!U$2,'Data Annex'!$K$1:$AN$1,0)),\"\")","v":1.0600628999999999E-3},{"$f":"IFERROR(INDEX('Data Annex'!$K$1:$AN$869,MATCH(Assets!V$1&\"|\"&Assets!$B33,'Data Annex'!$K$1:$K$869,0),MATCH(Assets!V$2,'Data Annex'!$K$1:$AN$1,0)),\"\")","v":7.8911279999999996E-4},{"$f":"IFERROR(INDEX('Data Annex'!$K$1:$AN$869,MATCH(Assets!W$1&\"|\"&Assets!$B33,'Data Annex'!$K$1:$K$869,0),MATCH(Assets!W$2,'Data Annex'!$K$1:$AN$1,0)),\"\")","v":6.4815269999999995E-4},{"$f":"IFERROR(INDEX('Data Annex'!$K$1:$AN$869,MATCH(Assets!X$1&\"|\"&Assets!$B33,'Data Annex'!$K$1:$K$869,0),MATCH(Assets!X$2,'Data Annex'!$K$1:$AN$1,0)),\"\")","v":4.5644160000000002E-4},{"$f":"IFERROR(INDEX('Data Annex'!$K$1:$AN$869,MATCH(Assets!Y$1&\"|\"&Assets!$B33,'Data Annex'!$K$1:$K$869,0),MATCH(Assets!Y$2,'Data Annex'!$K$1:$AN$1,0)),\"\")","v":3.2520213300000003E-2},{"$f":"IFERROR(INDEX('Data Annex'!$K$1:$AN$869,MATCH(Assets!Z$1&\"|\"&Assets!$B33,'Data Annex'!$K$1:$K$869,0),MATCH(Assets!Z$2,'Data Annex'!$K$1:$AN$1,0)),\"\")","v":3.1104166900000001E-2},{"$f":"IFERROR(INDEX('Data Annex'!$K$1:$AN$869,MATCH(Assets!AA$1&\"|\"&Assets!$B33,'Data Annex'!$K$1:$K$869,0),MATCH(Assets!AA$2,'Data Annex'!$K$1:$AN$1,0)),\"\")","v":3.0094638100000001E-2},{"$f":"IFERROR(INDEX('Data Annex'!$K$1:$AN$869,MATCH(Assets!AB$1&\"|\"&Assets!$B33,'Data Annex'!$K$1:$K$869,0),MATCH(Assets!AB$2,'Data Annex'!$K$1:$AN$1,0)),\"\")","v":3.1579684900000002E-2},{"$f":"IFERROR(INDEX('Data Annex'!$K$1:$AH$869,MATCH(Assets!AC$1&\"|\"&Assets!$B33,'Data Annex'!$K$1:$K$869,0),MATCH(Assets!AC$2,'Data Annex'!$K$1:$AH$1,0)),\"\")","v":""}]
[null,"NL",null,"NL",{"$f":"IFERROR(INDEX('Data Annex'!$K$1:$AN$869,MATCH(Assets!E$1&\"|\"&Assets!$B34,'Data Annex'!$K$1:$K$869,0),MATCH(Assets!E$2,'Data Annex'!$K$1:$AN$1,0)),\"\")","v":9.0885602100000004E-2},{"$f":"IFERROR(INDEX('Data Annex'!$K$1:$AN$869,MATCH(Assets!F$1&\"|\"&Assets!$B34,'Data Annex'!$K$1:$K$869,0),MATCH(Assets!F$2,'Data Annex'!$K$1:$AN$1,0)),\"\")","v":0.1212178169},{"$f":"IFERROR(INDEX('Data Annex'!$K$1:$AN$869,MATCH(Assets!G$1&\"|\"&Assets!$B34,'Data Annex'!$K$1:$K$869,0),MATCH(Assets!G$2,'Data Annex'!$K$1:$AN$1,0)),\"\")","v":0.14720272910000001},{"$f":"IFERROR(INDEX('Data Annex'!$K$1:$AN$869,MATCH(Assets!H$1&\"|\"&Assets!$B34,'Data Annex'!$K$1:$K$869,0),MATCH(Assets!H$2,'Data Annex'!$K$1:$AN$1,0)),\"\")","v":0.13279043679999999},{"$f":"IFERROR(INDEX('Data Annex'!$K$1:$AN$869,MATCH(Assets!I$1&\"|\"&Assets!$B34,'Data Annex'!$K$1:$K$869,0),MATCH(Assets!I$2,'Data Annex'!$K$1:$AN$1,0)),\"\")","v":4.3787553000000003E-3},{"$f":"IFERROR(INDEX('Data Annex'!$K$1:$AN$869,MATCH(Assets!J$1&\"|\"&Assets!$B34,'Data Annex'!$K$1:$K$869,0),MATCH(Assets!J$2,'Data Annex'!$K$1:$AN$1,0)),\"\")","v":4.0121990999999997E-3},{"$f":"IFERROR(INDEX('Data Annex'!$K$1:$AN$869,MATCH(Assets!K$1&\"|\"&Assets!$B34,'Data Annex'!$K$1:$K$869,0),MATCH(Assets!K$2,'Data Annex'!$K$1:$AN$1,0)),\"\")","v":4.6775921E-3},{"$f":"IFERROR(INDEX('Data Annex'!$K$1:$AN$869,MATCH(Assets!L$1&\"|\"&Assets!$B34,'Data Annex'!$K$1:$K$869,0),MATCH(Assets!L$2,'Data Annex'!$K$1:$AN$1,0)),\"\")","v":5.5382262999999999E-3},{"$f":"IFERROR(INDEX('Data Annex'!$K$1:$AN$869,MATCH(Assets!M$1&\"|\"&Assets!$B34,'Data Annex'!$K$1:$K$869,0),MATCH(Assets!M$2,'Data Annex'!$K$1:$AN$1,0)),\"\")","v":8.1607627899999993E-2},{"$f":"IFERROR(INDEX('Data Annex'!$K$1:$AN$869,MATCH(Assets!N$1&\"|\"&Assets!$B34,'Data Annex'!$K$1:$K$869,0),MATCH(Assets!N$2,'Data Annex'!$K$1:$AN$1,0)),\"\")","v":8.47036345E-2},{"$f":"IFERROR(INDEX('Data Annex'!$K$1:$AN$869,MATCH(Assets!O$1&\"|\"&Assets!$B34,'Data Annex'!$K$1:$K$869,0),MATCH(Assets!O$2,'Data Annex'!$K$1:$AN$1,0)),\"\")","v":8.1630931899999995E-2},{"$f":"IFERROR(INDEX('Data Annex'!$K$1:$AN$869,MATCH(Assets!P$1&\"|\"&Assets!$B34,'Data Annex'!$K$1:$K$869,0),MATCH(Assets!P$2,'Data Annex'!$K$1:$AN$1,0)),\"\")","v":8.2777573500000007E-2},{"$f":"IFERROR(INDEX('Data Annex'!$K$1:$AN$869,MATCH(Assets!Q$1&\"|\"&Assets!$B34,'Data Annex'!$K$1:$K$869,0),MATCH(Assets!Q$2,'Data Annex'!$K$1:$AN$1,0)),\"\")","v":0.74922444799999999},{"$f":"IFERROR(INDEX('Data Annex'!$K$1:$AN$869,MATCH(Assets!R$1&\"|\"&Assets!$B34,'Data Annex'!$K$1:$K$869,0),MATCH(Assets!R$2,'Data Annex'!$K$1:$AN$1,0)),\"\")","v":0.72100422269999997},{"$f":"IFERROR(INDEX('Data Annex'!$K$1:$AN$869,MATCH(Assets!S$1&\"|\"&Assets!$B34,'Data Annex'!$K$1:$K$869,0),MATCH(Assets!S$2,'Data Annex'!$K$1:$AN$1,0)),\"\")","v":0.70060138849999998},{"$f":"IFERROR(INDEX('Data Annex'!$K$1:$AN$869,MATCH(Assets!T$1&\"|\"&Assets!$B34,'Data Annex'!$K$1:$K$869,0),MATCH(Assets!T$2,'Data Annex'!$K$1:$AN$1,0)),\"\")","v":0.71161592579999999},{"$f":"IFERROR(INDEX('Data Annex'!$K$1:$AN$869,MATCH(Assets!U$1&\"|\"&Assets!$B34,'Data Annex'!$K$1:$K$869,0),MATCH(Assets!U$2,'Data Annex'!$K$1:$AN$1,0)),\"\")","v":3.9459810900000003E-2},{"$f":"IFERROR(INDEX('Data Annex'!$K$1:$AN$869,MATCH(Assets!V$1&\"|\"&Assets!$B34,'Data Annex'!$K$1:$K$869,0),MATCH(Assets!V$2,'Data Annex'!$K$1:$AN$1,0)),\"\")","v":3.4521359799999998E-2},{"$f":"IFERROR(INDEX('Data Annex'!$K$1:$AN$869,MATCH(Assets!W$1&\"|\"&Assets!$B34,'Data Annex'!$K$1:$K$869,0),MATCH(Assets!W$2,'Data Annex'!$K$1:$AN$1,0)),\"\")","v":3.28496525E-2},{"$f":"IFERROR(INDEX('Data Annex'!$K$1:$AN$869,MATCH(Assets!X$1&\"|\"&Assets!$B34,'Data Annex'!$K$1:$K$869,0),MATCH(Assets!X$2,'Data Annex'!$K$1:$AN$1,0)),\"\")","v":3.4762683699999998E-2},{"$f":"IFERROR(INDEX('Data Annex'!$K$1:$AN$869,MATCH(Assets!Y$1&\"|\"&Assets!$B34,'Data Annex'!$K$1:$K$869,0),MATCH(Assets!Y$2,'Data Annex'!$K$1:$AN$1,0)),\"\")","v":3.4443755899999998E-2},{"$f":"IFERROR(INDEX('Data Annex'!$K$1:$AN$869,MATCH(Assets!Z$1&\"|\"&Assets!$B34,'Data Annex'!$K$1:$K$869,0),MATCH(Assets!Z$2,'Data Annex'!$K$1:$AN$1,0)),\"\")","v":3.4540767100000001E-2},{"$f":"IFERROR(INDEX('Data Annex'!$K$1:$AN$869,MATCH(Assets!AA$1&\"|\"&Assets!$B34,'Data Annex'!$K$1:$K$869,0),MATCH(Assets!AA$2,'Data Annex'!$K$1:$AN$1,0)),\"\")","v":3.3037705899999999E-2},{"$f":"IFERROR(INDEX('Data Annex'!$K$1:$AN$869,MATCH(Assets!AB$1&\"|\"&Assets!$B34,'Data Annex'!$K$1:$K$869,0),MATCH(Assets!AB$2,'Data Annex'!$K$1:$AN$1,0)),\"\")","v":3.2515153900000003E-2},{"$f":"IFERROR(INDEX('Data Annex'!$K$1:$AH$869,MATCH(Assets!AC$1&\"|\"&Assets!$B34,'Data Annex'!$K$1:$K$869,0),MATCH(Assets!AC$2,'Data Annex'!$K$1:$AH$1,0)),\"\")","v":""}]
[null,"NO",null,"NO",{"$f":"IFERROR(INDEX('Data Annex'!$K$1:$AN$869,MATCH(Assets!E$1&\"|\"&Assets!$B35,'Data Annex'!$K$1:$K$869,0),MATCH(Assets!E$2,'Data Annex'!$K$1:$AN$1,0)),\"\")","v":0.1136092744},{"$f":"IFERROR(INDEX('Data Annex'!$K$1:$AN$869,MATCH(Assets!F$1&\"|\"&Assets!$B35,'Data Annex'!$K$1:$K$869,0),MATCH(Assets!F$2,'Data Annex'!$K$1:$AN$1,0)),\"\")","v":9.5432540299999993E-2},{"$f":"IFERROR(INDEX('Data Annex'!$K$1:$AN$869,MATCH(Assets!G$1&\"|\"&Assets!$B35,'Data Annex'!$K$1:$K$869,0),MATCH(Assets!G$2,'Data Annex'!$K$1:$AN$1,0)),\"\")","v":0.1025233071},{"$f":"IFERROR(INDEX('Data Annex'!$K$1:$AN$869,MATCH(Assets!H$1&\"|\"&Assets!$B35,'Data Annex'!$K$1:$K$869,0),MATCH(Assets!H$2,'Data Annex'!$K$1:$AN$1,0)),\"\")","v":9.3195534900000002E-2},{"$f":"IFERROR(INDEX('Data Annex'!$K$1:$AN$869,MATCH(Assets!I$1&\"|\"&Assets!$B35,'Data Annex'!$K$1:$K$869,0),MATCH(Assets!I$2,'Data Annex'!$K$1:$AN$1,0)),\"\")","v":2.5117043000000001E-3},{"$f":"IFERROR(INDEX('Data Annex'!$K$1:$AN$869,MATCH(Assets!J$1&\"|\"&Assets!$B35,'Data Annex'!$K$1:$K$869,0),MATCH(Assets!J$2,'Data Annex'!$K$1:$AN$1,0)),\"\")","v":2.9805464999999999E-3},{"$f":"IFERROR(INDEX('Data Annex'!$K$1:$AN$869,MATCH(Assets!K$1&\"|\"&Assets!$B35,'Data Annex'!$K$1:$K$869,0),MATCH(Assets!K$2,'Data Annex'!$K$1:$AN$1,0)),\"\")","v":2.9890729E-3},{"$f":"IFERROR(INDEX('Data Annex'!$K$1:$AN$869,MATCH(Assets!L$1&\"|\"&Assets!$B35,'Data Annex'!$K$1:$K$869,0),MATCH(Assets!L$2,'Data Annex'!$K$1:$AN$1,0)),\"\")","v":3.4450119999999999E-3},{"$f":"IFERROR(INDEX('Data Annex'!$K$1:$AN$869,MATCH(Assets!M$1&\"|\"&Assets!$B35,'Data Annex'!$K$1:$K$869,0),MATCH(Assets!M$2,'Data Annex'!$K$1:$AN$1,0)),\"\")","v":9.9721911199999999E-2},{"$f":"IFERROR(INDEX('Data Annex'!$K$1:$AN$869,MATCH(Assets!N$1&\"|\"&Assets!$B35,'Data Annex'!$K$1:$K$869,0),MATCH(Assets!N$2,'Data Annex'!$K$1:$AN$1,0)),\"\")","v":0.1184995935},{"$f":"IFERROR(INDEX('Data Annex'!$K$1:$AN$869,MATCH(Assets!O$1&\"|\"&Assets!$B35,'Data Annex'!$K$1:$K$869,0),MATCH(Assets!O$2,'Data Annex'!$K$1:$AN$1,0)),\"\")","v":0.1080211858},{"$f":"IFERROR(INDEX('Data Annex'!$K$1:$AN$869,MATCH(Assets!P$1&\"|\"&Assets!$B35,'Data Annex'!$K$1:$K$869,0),MATCH(Assets!P$2,'Data Annex'!$K$1:$AN$1,0)),\"\")","v":0.1141561477},{"$f":"IFERROR(INDEX('Data Annex'!$K$1:$AN$869,MATCH(Assets!Q$1&\"|\"&Assets!$B35,'Data Annex'!$K$1:$K$869,0),MATCH(Assets!Q$2,'Data Annex'!$K$1:$AN$1,0)),\"\")","v":0.68984302799999997},{"$f":"IFERROR(INDEX('Data Annex'!$K$1:$AN$869,MATCH(Assets!R$1&\"|\"&Assets!$B35,'Data Annex'!$K$1:$K$869,0),MATCH(Assets!R$2,'Data Annex'!$K$1:$AN$1,0)),\"\")","v":0.6976554425},{"$f":"IFERROR(INDEX('Data Annex'!$K$1:$AN$869,MATCH(Assets!S$1&\"|\"&Assets!$B35,'Data Annex'!$K$1:$K$869,0),MATCH(Assets!S$2,'Data Annex'!$K$1:$AN$1,0)),\"\")","v":0.7048241542},{"$f":"IFERROR(INDEX('Data Annex'!$K$1:$AN$869,MATCH(Assets!T$1&\"|\"&Assets!$B35,'Data Annex'!$K$1:$K$869,0),MATCH(Assets!T$2,'Data Annex'!$K$1:$AN$1,0)),\"\")","v":0.70828527949999998},{"$f":"IFERROR(INDEX('Data Annex'!$K$1:$AN$869,MATCH(Assets!U$1&\"|\"&Assets!$B35,'Data Annex'!$K$1:$K$869,0),MATCH(Assets!U$2,'Data Annex'!$K$1:$AN$1,0)),\"\")","v":7.9710507900000005E-2},{"$f":"IFERROR(INDEX('Data Annex'!$K$1:$AN$869,MATCH(Assets!V$1&\"|\"&Assets!$B35,'Data Annex'!$K$1:$K$869,0),MATCH(Assets!V$2,'Data Annex'!$K$1:$AN$1,0)),\"\")","v":6.9008605099999995E-2},{"$f":"IFERROR(INDEX('Data Annex'!$K$1:$AN$869,MATCH(Assets!W$1&\"|\"&Assets!$B35,'Data Annex'!$K$1:$K$869,0),MATCH(Assets!W$2,'Data Annex'!$K$1:$AN$1,0)),\"\")","v":6.6291655800000002E-2},{"$f":"IFERROR(INDEX('Data Annex'!$K$1:$AN$869,MATCH(Assets!X$1&\"|\"&Assets!$B35,'Data Annex'!$K$1:$K$869,0),MATCH(Assets!X$2,'Data Annex'!$K$1:$AN$1,0)),\"\")","v":6.5942157099999996E-2},{"$f":"IFERROR(INDEX('Data Annex'!$K$1:$AN$869,MATCH(Assets!Y$1&\"|\"&Assets!$B35,'Data Annex'!$K$1:$K$869,0),MATCH(Assets!Y$2,'Data Annex'!$K$1:$AN$1,0)),\"\")","v":1.4603574100000001E-2},{"$f":"IFERROR(INDEX('Data Annex'!$K$1:$AN$869,MATCH(Assets!Z$1&\"|\"&Assets!$B35,'Data Annex'!$K$1:$K$869,0),MATCH(Assets!Z$2,'Data Annex'!$K$1:$AN$1,0)),\"\")","v":1.6423272100000001E-2},{"$f":"IFERROR(INDEX('Data Annex'!$K$1:$AN$869,MATCH(Assets!AA$1&\"|\"&Assets!$B35,'Data Annex'!$K$1:$K$869,0),MATCH(Assets!AA$2,'Data Annex'!$K$1:$AN$1,0)),\"\")","v":1.53506241E-2},{"$f":"IFERROR(INDEX('Data Annex'!$K$1:$AN$869,MATCH(Assets!AB$1&\"|\"&Assets!$B35,'Data Annex'!$K$1:$K$869,0),MATCH(Assets!AB$2,'Data Annex'!$K$1:$AN$1,0)),\"\")","v":1.49758689E-2},{"$f":"IFERROR(INDEX('Data Annex'!$K$1:$AH$869,MATCH(Assets!AC$1&\"|\"&Assets!$B35,'Data Annex'!$K$1:$K$869,0),MATCH(Assets!AC$2,'Data Annex'!$K$1:$AH$1,0)),\"\")","v":""}]
[null,"PL",null,"PL",{"$f":"IFERROR(INDEX('Data Annex'!$K$1:$AN$869,MATCH(Assets!E$1&\"|\"&Assets!$B36,'Data Annex'!$K$1:$K$869,0),MATCH(Assets!E$2,'Data Annex'!$K$1:$AN$1,0)),\"\")","v":4.5410946100000002E-2},{"$f":"IFERROR(INDEX('Data Annex'!$K$1:$AN$869,MATCH(Assets!F$1&\"|\"&Assets!$B36,'Data Annex'!$K$1:$K$869,0),MATCH(Assets!F$2,'Data Annex'!$K$1:$AN$1,0)),\"\")","v":2.97432168E-2},{"$f":"IFERROR(INDEX('Data Annex'!$K$1:$AN$869,MATCH(Assets!G$1&\"|\"&Assets!$B36,'Data Annex'!$K$1:$K$869,0),MATCH(Assets!G$2,'Data Annex'!$K$1:$AN$1,0)),\"\")","v":1.8514889999999999E-2},{"$f":"IFERROR(INDEX('Data Annex'!$K$1:$AN$869,MATCH(Assets!H$1&\"|\"&Assets!$B36,'Data Annex'!$K$1:$K$869,0),MATCH(Assets!H$2,'Data Annex'!$K$1:$AN$1,0)),\"\")","v":2.29375468E-2},{"$f":"IFERROR(INDEX('Data Annex'!$K$1:$AN$869,MATCH(Assets!I$1&\"|\"&Assets!$B36,'Data Annex'!$K$1:$K$869,0),MATCH(Assets!I$2,'Data Annex'!$K$1:$AN$1,0)),\"\")","v":2.0869770999999999E-3},{"$f":"IFERROR(INDEX('Data Annex'!$K$1:$AN$869,MATCH(Assets!J$1&\"|\"&Assets!$B36,'Data Annex'!$K$1:$K$869,0),MATCH(Assets!J$2,'Data Annex'!$K$1:$AN$1,0)),\"\")","v":1.9685916999999998E-3},{"$f":"IFERROR(INDEX('Data Annex'!$K$1:$AN$869,MATCH(Assets!K$1&\"|\"&Assets!$B36,'Data Annex'!$K$1:$K$869,0),MATCH(Assets!K$2,'Data Annex'!$K$1:$AN$1,0)),\"\")","v":2.1461172E-3},{"$f":"IFERROR(INDEX('Data Annex'!$K$1:$AN$869,MATCH(Assets!L$1&\"|\"&Assets!$B36,'Data Annex'!$K$1:$K$869,0),MATCH(Assets!L$2,'Data Annex'!$K$1:$AN$1,0)),\"\")","v":2.2716580000000002E-3},{"$f":"IFERROR(INDEX('Data Annex'!$K$1:$AN$869,MATCH(Assets!M$1&\"|\"&Assets!$B36,'Data Annex'!$K$1:$K$869,0),MATCH(Assets!M$2,'Data Annex'!$K$1:$AN$1,0)),\"\")","v":0.2208318188},{"$f":"IFERROR(INDEX('Data Annex'!$K$1:$AN$869,MATCH(Assets!N$1&\"|\"&Assets!$B36,'Data Annex'!$K$1:$K$869,0),MATCH(Assets!N$2,'Data Annex'!$K$1:$AN$1,0)),\"\")","v":0.28663854519999998},{"$f":"IFERROR(INDEX('Data Annex'!$K$1:$AN$869,MATCH(Assets!O$1&\"|\"&Assets!$B36,'Data Annex'!$K$1:$K$869,0),MATCH(Assets!O$2,'Data Annex'!$K$1:$AN$1,0)),\"\")","v":0.30358749709999999},{"$f":"IFERROR(INDEX('Data Annex'!$K$1:$AN$869,MATCH(Assets!P$1&\"|\"&Assets!$B36,'Data Annex'!$K$1:$K$869,0),MATCH(Assets!P$2,'Data Annex'!$K$1:$AN$1,0)),\"\")","v":0.3077838879},{"$f":"IFERROR(INDEX('Data Annex'!$K$1:$AN$869,MATCH(Assets!Q$1&\"|\"&Assets!$B36,'Data Annex'!$K$1:$K$869,0),MATCH(Assets!Q$2,'Data Annex'!$K$1:$AN$1,0)),\"\")","v":0.67576966240000003},{"$f":"IFERROR(INDEX('Data Annex'!$K$1:$AN$869,MATCH(Assets!R$1&\"|\"&Assets!$B36,'Data Annex'!$K$1:$K$869,0),MATCH(Assets!R$2,'Data Annex'!$K$1:$AN$1,0)),\"\")","v":0.63044942810000004},{"$f":"IFERROR(INDEX('Data Annex'!$K$1:$AN$869,MATCH(Assets!S$1&\"|\"&Assets!$B36,'Data Annex'!$K$1:$K$869,0),MATCH(Assets!S$2,'Data Annex'!$K$1:$AN$1,0)),\"\")","v":0.62526461},{"$f":"IFERROR(INDEX('Data Annex'!$K$1:$AN$869,MATCH(Assets!T$1&\"|\"&Assets!$B36,'Data Annex'!$K$1:$K$869,0),MATCH(Assets!T$2,'Data Annex'!$K$1:$AN$1,0)),\"\")","v":0.61631462619999999},{"$f":"IFERROR(INDEX('Data Annex'!$K$1:$AN$869,MATCH(Assets!U$1&\"|\"&Assets!$B36,'Data Annex'!$K$1:$K$869,0),MATCH(Assets!U$2,'Data Annex'!$K$1:$AN$1,0)),\"\")","v":2.1202253399999999E-2},{"$f":"IFERROR(INDEX('Data Annex'!$K$1:$AN$869,MATCH(Assets!V$1&\"|\"&Assets!$B36,'Data Annex'!$K$1:$K$869,0),MATCH(Assets!V$2,'Data Annex'!$K$1:$AN$1,0)),\"\")","v":1.9041866599999999E-2},{"$f":"IFERROR(INDEX('Data Annex'!$K$1:$AN$869,MATCH(Assets!W$1&\"|\"&Assets!$B36,'Data Annex'!$K$1:$K$869,0),MATCH(Assets!W$2,'Data Annex'!$K$1:$AN$1,0)),\"\")","v":1.8795488499999999E-2},{"$f":"IFERROR(INDEX('Data Annex'!$K$1:$AN$869,MATCH(Assets!X$1&\"|\"&Assets!$B36,'Data Annex'!$K$1:$K$869,0),MATCH(Assets!X$2,'Data Annex'!$K$1:$AN$1,0)),\"\")","v":1.7641031299999999E-2},{"$f":"IFERROR(INDEX('Data Annex'!$K$1:$AN$869,MATCH(Assets!Y$1&\"|\"&Assets!$B36,'Data Annex'!$K$1:$K$869,0),MATCH(Assets!Y$2,'Data Annex'!$K$1:$AN$1,0)),\"\")","v":3.4698342200000003E-2},{"$f":"IFERROR(INDEX('Data Annex'!$K$1:$AN$869,MATCH(Assets!Z$1&\"|\"&Assets!$B36,'Data Annex'!$K$1:$K$869,0),MATCH(Assets!Z$2,'Data Annex'!$K$1:$AN$1,0)),\"\")","v":3.2158351699999997E-2},{"$f":"IFERROR(INDEX('Data Annex'!$K$1:$AN$869,MATCH(Assets!AA$1&\"|\"&Assets!$B36,'Data Annex'!$K$1:$K$869,0),MATCH(Assets!AA$2,'Data Annex'!$K$1:$AN$1,0)),\"\")","v":3.1691397199999999E-2},{"$f":"IFERROR(INDEX('Data Annex'!$K$1:$AN$869,MATCH(Assets!AB$1&\"|\"&Assets!$B36,'Data Annex'!$K$1:$K$869,0),MATCH(Assets!AB$2,'Data Annex'!$K$1:$AN$1,0)),\"\")","v":3.30512497E-2},{"$f":"IFERROR(INDEX('Data Annex'!$K$1:$AH$869,MATCH(Assets!AC$1&\"|\"&Assets!$B36,'Data Annex'!$K$1:$K$869,0),MATCH(Assets!AC$2,'Data Annex'!$K$1:$AH$1,0)),\"\")","v":""}]
[null,"PT",null,"PT",{"$f":"IFERROR(INDEX('Data Annex'!$K$1:$AN$869,MATCH(Assets!E$1&\"|\"&Assets!$B37,'Data Annex'!$K$1:$K$869,0),MATCH(Assets!E$2,'Data Annex'!$K$1:$AN$1,0)),\"\")","v":6.4009359900000007E-2},{"$f":"IFERROR(INDEX('Data Annex'!$K$1:$AN$869,MATCH(Assets!F$1&\"|\"&Assets!$B37,'Data Annex'!$K$1:$K$869,0),MATCH(Assets!F$2,'Data Annex'!$K$1:$AN$1,0)),\"\")","v":8.9722854000000005E-2},{"$f":"IFERROR(INDEX('Data Annex'!$K$1:$AN$869,MATCH(Assets!G$1&\"|\"&Assets!$B37,'Data Annex'!$K$1:$K$869,0),MATCH(Assets!G$2,'Data Annex'!$K$1:$AN$1,0)),\"\")","v":8.10230495E-2},{"$f":"IFERROR(INDEX('Data Annex'!$K$1:$AN$869,MATCH(Assets!H$1&\"|\"&Assets!$B37,'Data Annex'!$K$1:$K$869,0),MATCH(Assets!H$2,'Data Annex'!$K$1:$AN$1,0)),\"\")","v":9.4612591999999995E-2},{"$f":"IFERROR(INDEX('Data Annex'!$K$1:$AN$869,MATCH(Assets!I$1&\"|\"&Assets!$B37,'Data Annex'!$K$1:$K$869,0),MATCH(Assets!I$2,'Data Annex'!$K$1:$AN$1,0)),\"\")","v":1.5217187199999999E-2},{"$f":"IFERROR(INDEX('Data Annex'!$K$1:$AN$869,MATCH(Assets!J$1&\"|\"&Assets!$B37,'Data Annex'!$K$1:$K$869,0),MATCH(Assets!J$2,'Data Annex'!$K$1:$AN$1,0)),\"\")","v":1.3654052999999999E-2},{"$f":"IFERROR(INDEX('Data Annex'!$K$1:$AN$869,MATCH(Assets!K$1&\"|\"&Assets!$B37,'Data Annex'!$K$1:$K$869,0),MATCH(Assets!K$2,'Data Annex'!$K$1:$AN$1,0)),\"\")","v":1.3373100400000001E-2},{"$f":"IFERROR(INDEX('Data Annex'!$K$1:$AN$869,MATCH(Assets!L$1&\"|\"&Assets!$B37,'Data Annex'!$K$1:$K$869,0),MATCH(Assets!L$2,'Data Annex'!$K$1:$AN$1,0)),\"\")","v":1.29188463E-2},{"$f":"IFERROR(INDEX('Data Annex'!$K$1:$AN$869,MATCH(Assets!M$1&\"|\"&Assets!$B37,'Data Annex'!$K$1:$K$869,0),MATCH(Assets!M$2,'Data Annex'!$K$1:$AN$1,0)),\"\")","v":0.23041855389999999},{"$f":"IFERROR(INDEX('Data Annex'!$K$1:$AN$869,MATCH(Assets!N$1&\"|\"&Assets!$B37,'Data Annex'!$K$1:$K$869,0),MATCH(Assets!N$2,'Data Annex'!$K$1:$AN$1,0)),\"\")","v":0.23912913769999999},{"$f":"IFERROR(INDEX('Data Annex'!$K$1:$AN$869,MATCH(Assets!O$1&\"|\"&Assets!$B37,'Data Annex'!$K$1:$K$869,0),MATCH(Assets!O$2,'Data Annex'!$K$1:$AN$1,0)),\"\")","v":0.24026597829999999},{"$f":"IFERROR(INDEX('Data Annex'!$K$1:$AN$869,MATCH(Assets!P$1&\"|\"&Assets!$B37,'Data Annex'!$K$1:$K$869,0),MATCH(Assets!P$2,'Data Annex'!$K$1:$AN$1,0)),\"\")","v":0.2314959784},{"$f":"IFERROR(INDEX('Data Annex'!$K$1:$AN$869,MATCH(Assets!Q$1&\"|\"&Assets!$B37,'Data Annex'!$K$1:$K$869,0),MATCH(Assets!Q$2,'Data Annex'!$K$1:$AN$1,0)),\"\")","v":0.612871151},{"$f":"IFERROR(INDEX('Data Annex'!$K$1:$AN$869,MATCH(Assets!R$1&\"|\"&Assets!$B37,'Data Annex'!$K$1:$K$869,0),MATCH(Assets!R$2,'Data Annex'!$K$1:$AN$1,0)),\"\")","v":0.58831030169999998},{"$f":"IFERROR(INDEX('Data Annex'!$K$1:$AN$869,MATCH(Assets!S$1&\"|\"&Assets!$B37,'Data Annex'!$K$1:$K$869,0),MATCH(Assets!S$2,'Data Annex'!$K$1:$AN$1,0)),\"\")","v":0.59028754319999999},{"$f":"IFERROR(INDEX('Data Annex'!$K$1:$AN$869,MATCH(Assets!T$1&\"|\"&Assets!$B37,'Data Annex'!$K$1:$K$869,0),MATCH(Assets!T$2,'Data Annex'!$K$1:$AN$1,0)),\"\")","v":0.58927744599999998},{"$f":"IFERROR(INDEX('Data Annex'!$K$1:$AN$869,MATCH(Assets!U$1&\"|\"&Assets!$B37,'Data Annex'!$K$1:$K$869,0),MATCH(Assets!U$2,'Data Annex'!$K$1:$AN$1,0)),\"\")","v":1.18389576E-2},{"$f":"IFERROR(INDEX('Data Annex'!$K$1:$AN$869,MATCH(Assets!V$1&\"|\"&Assets!$B37,'Data Annex'!$K$1:$K$869,0),MATCH(Assets!V$2,'Data Annex'!$K$1:$AN$1,0)),\"\")","v":1.0312688400000001E-2},{"$f":"IFERROR(INDEX('Data Annex'!$K$1:$AN$869,MATCH(Assets!W$1&\"|\"&Assets!$B37,'Data Annex'!$K$1:$K$869,0),MATCH(Assets!W$2,'Data Annex'!$K$1:$AN$1,0)),\"\")","v":9.8026625999999995E-3},{"$f":"IFERROR(INDEX('Data Annex'!$K$1:$AN$869,MATCH(Assets!X$1&\"|\"&Assets!$B37,'Data Annex'!$K$1:$K$869,0),MATCH(Assets!X$2,'Data Annex'!$K$1:$AN$1,0)),\"\")","v":9.1602790000000003E-3},{"$f":"IFERROR(INDEX('Data Annex'!$K$1:$AN$869,MATCH(Assets!Y$1&\"|\"&Assets!$B37,'Data Annex'!$K$1:$K$869,0),MATCH(Assets!Y$2,'Data Annex'!$K$1:$AN$1,0)),\"\")","v":6.56447904E-2},{"$f":"IFERROR(INDEX('Data Annex'!$K$1:$AN$869,MATCH(Assets!Z$1&\"|\"&Assets!$B37,'Data Annex'!$K$1:$K$869,0),MATCH(Assets!Z$2,'Data Annex'!$K$1:$AN$1,0)),\"\")","v":5.88709652E-2},{"$f":"IFERROR(INDEX('Data Annex'!$K$1:$AN$869,MATCH(Assets!AA$1&\"|\"&Assets!$B37,'Data Annex'!$K$1:$K$869,0),MATCH(Assets!AA$2,'Data Annex'!$K$1:$AN$1,0)),\"\")","v":6.5247665999999996E-2},{"$f":"IFERROR(INDEX('Data Annex'!$K$1:$AN$869,MATCH(Assets!AB$1&\"|\"&Assets!$B37,'Data Annex'!$K$1:$K$869,0),MATCH(Assets!AB$2,'Data Annex'!$K$1:$AN$1,0)),\"\")","v":6.2534858299999996E-2},{"$f":"IFERROR(INDEX('Data Annex'!$K$1:$AH$869,MATCH(Assets!AC$1&\"|\"&Assets!$B37,'Data Annex'!$K$1:$K$869,0),MATCH(Assets!AC$2,'Data Annex'!$K$1:$AH$1,0)),\"\")","v":""}]
[null,"RO",null,"RO",{"$f":"IFERROR(INDEX('Data Annex'!$K$1:$AN$869,MATCH(Assets!E$1&\"|\"&Assets!$B38,'Data Annex'!$K$1:$K$869,0),MATCH(Assets!E$2,'Data Annex'!$K$1:$AN$1,0)),\"\")","v":0.15956843640000001},{"$f":"IFERROR(INDEX('Data Annex'!$K$1:$AN$869,MATCH(Assets!F$1&\"|\"&Assets!$B38,'Data Annex'!$K$1:$K$869,0),MATCH(Assets!F$2,'Data Annex'!$K$1:$AN$1,0)),\"\")","v":0.15836544159999999},{"$f":"IFERROR(INDEX('Data Annex'!$K$1:$AN$869,MATCH(Assets!G$1&\"|\"&Assets!$B38,'Data Annex'!$K$1:$K$869,0),MATCH(Assets!G$2,'Data Annex'!$K$1:$AN$1,0)),\"\")","v":0.1481859405},{"$f":"IFERROR(INDEX('Data Annex'!$K$1:$AN$869,MATCH(Assets!H$1&\"|\"&Assets!$B38,'Data Annex'!$K$1:$K$869,0),MATCH(Assets!H$2,'Data Annex'!$K$1:$AN$1,0)),\"\")","v":0.16590659169999999},{"$f":"IFERROR(INDEX('Data Annex'!$K$1:$AN$869,MATCH(Assets!I$1&\"|\"&Assets!$B38,'Data Annex'!$K$1:$K$869,0),MATCH(Assets!I$2,'Data Annex'!$K$1:$AN$1,0)),\"\")","v":1.2385923000000001E-3},{"$f":"IFERROR(INDEX('Data Annex'!$K$1:$AN$869,MATCH(Assets!J$1&\"|\"&Assets!$B38,'Data Annex'!$K$1:$K$869,0),MATCH(Assets!J$2,'Data Annex'!$K$1:$AN$1,0)),\"\")","v":1.6135904E-3},{"$f":"IFERROR(INDEX('Data Annex'!$K$1:$AN$869,MATCH(Assets!K$1&\"|\"&Assets!$B38,'Data Annex'!$K$1:$K$869,0),MATCH(Assets!K$2,'Data Annex'!$K$1:$AN$1,0)),\"\")","v":1.7782167E-3},{"$f":"IFERROR(INDEX('Data Annex'!$K$1:$AN$869,MATCH(Assets!L$1&\"|\"&Assets!$B38,'Data Annex'!$K$1:$K$869,0),MATCH(Assets!L$2,'Data Annex'!$K$1:$AN$1,0)),\"\")","v":1.5782649999999999E-3},{"$f":"IFERROR(INDEX('Data Annex'!$K$1:$AN$869,MATCH(Assets!M$1&\"|\"&Assets!$B38,'Data Annex'!$K$1:$K$869,0),MATCH(Assets!M$2,'Data Annex'!$K$1:$AN$1,0)),\"\")","v":0.27708431729999999},{"$f":"IFERROR(INDEX('Data Annex'!$K$1:$AN$869,MATCH(Assets!N$1&\"|\"&Assets!$B38,'Data Annex'!$K$1:$K$869,0),MATCH(Assets!N$2,'Data Annex'!$K$1:$AN$1,0)),\"\")","v":0.2837749906},{"$f":"IFERROR(INDEX('Data Annex'!$K$1:$AN$869,MATCH(Assets!O$1&\"|\"&Assets!$B38,'Data Annex'!$K$1:$K$869,0),MATCH(Assets!O$2,'Data Annex'!$K$1:$AN$1,0)),\"\")","v":0.28526634429999997},{"$f":"IFERROR(INDEX('Data Annex'!$K$1:$AN$869,MATCH(Assets!P$1&\"|\"&Assets!$B38,'Data Annex'!$K$1:$K$869,0),MATCH(Assets!P$2,'Data Annex'!$K$1:$AN$1,0)),\"\")","v":0.29340048569999999},{"$f":"IFERROR(INDEX('Data Annex'!$K$1:$AN$869,MATCH(Assets!Q$1&\"|\"&Assets!$B38,'Data Annex'!$K$1:$K$869,0),MATCH(Assets!Q$2,'Data Annex'!$K$1:$AN$1,0)),\"\")","v":0.53560350720000005},{"$f":"IFERROR(INDEX('Data Annex'!$K$1:$AN$869,MATCH(Assets!R$1&\"|\"&Assets!$B38,'Data Annex'!$K$1:$K$869,0),MATCH(Assets!R$2,'Data Annex'!$K$1:$AN$1,0)),\"\")","v":0.52975293079999997},{"$f":"IFERROR(INDEX('Data Annex'!$K$1:$AN$869,MATCH(Assets!S$1&\"|\"&Assets!$B38,'Data Annex'!$K$1:$K$869,0),MATCH(Assets!S$2,'Data Annex'!$K$1:$AN$1,0)),\"\")","v":0.53971511750000001},{"$f":"IFERROR(INDEX('Data Annex'!$K$1:$AN$869,MATCH(Assets!T$1&\"|\"&Assets!$B38,'Data Annex'!$K$1:$K$869,0),MATCH(Assets!T$2,'Data Annex'!$K$1:$AN$1,0)),\"\")","v":0.51512086739999996},{"$f":"IFERROR(INDEX('Data Annex'!$K$1:$AN$869,MATCH(Assets!U$1&\"|\"&Assets!$B38,'Data Annex'!$K$1:$K$869,0),MATCH(Assets!U$2,'Data Annex'!$K$1:$AN$1,0)),\"\")","v":1.0202785000000001E-3},{"$f":"IFERROR(INDEX('Data Annex'!$K$1:$AN$869,MATCH(Assets!V$1&\"|\"&Assets!$B38,'Data Annex'!$K$1:$K$869,0),MATCH(Assets!V$2,'Data Annex'!$K$1:$AN$1,0)),\"\")","v":1.0318584E-3},{"$f":"IFERROR(INDEX('Data Annex'!$K$1:$AN$869,MATCH(Assets!W$1&\"|\"&Assets!$B38,'Data Annex'!$K$1:$K$869,0),MATCH(Assets!W$2,'Data Annex'!$K$1:$AN$1,0)),\"\")","v":8.9107640000000001E-4},{"$f":"IFERROR(INDEX('Data Annex'!$K$1:$AN$869,MATCH(Assets!X$1&\"|\"&Assets!$B38,'Data Annex'!$K$1:$K$869,0),MATCH(Assets!X$2,'Data Annex'!$K$1:$AN$1,0)),\"\")","v":7.5997520000000004E-4},{"$f":"IFERROR(INDEX('Data Annex'!$K$1:$AN$869,MATCH(Assets!Y$1&\"|\"&Assets!$B38,'Data Annex'!$K$1:$K$869,0),MATCH(Assets!Y$2,'Data Annex'!$K$1:$AN$1,0)),\"\")","v":2.54848682E-2},{"$f":"IFERROR(INDEX('Data Annex'!$K$1:$AN$869,MATCH(Assets!Z$1&\"|\"&Assets!$B38,'Data Annex'!$K$1:$K$869,0),MATCH(Assets!Z$2,'Data Annex'!$K$1:$AN$1,0)),\"\")","v":2.5461188199999998E-2},{"$f":"IFERROR(INDEX('Data Annex'!$K$1:$AN$869,MATCH(Assets!AA$1&\"|\"&Assets!$B38,'Data Annex'!$K$1:$K$869,0),MATCH(Assets!AA$2,'Data Annex'!$K$1:$AN$1,0)),\"\")","v":2.4163304600000001E-2},{"$f":"IFERROR(INDEX('Data Annex'!$K$1:$AN$869,MATCH(Assets!AB$1&\"|\"&Assets!$B38,'Data Annex'!$K$1:$K$869,0),MATCH(Assets!AB$2,'Data Annex'!$K$1:$AN$1,0)),\"\")","v":2.32338149E-2}]
[null,"SE",null,"SE",{"$f":"IFERROR(INDEX('Data Annex'!$K$1:$AN$869,MATCH(Assets!E$1&\"|\"&Assets!$B39,'Data Annex'!$K$1:$K$869,0),MATCH(Assets!E$2,'Data Annex'!$K$1:$AN$1,0)),\"\")","v":0.1245545398},{"$f":"IFERROR(INDEX('Data Annex'!$K$1:$AN$869,MATCH(Assets!F$1&\"|\"&Assets!$B39,'Data Annex'!$K$1:$K$869,0),MATCH(Assets!F$2,'Data Annex'!$K$1:$AN$1,0)),\"\")","v":0.13368666879999999},{"$f":"IFERROR(INDEX('Data Annex'!$K$1:$AN$869,MATCH(Assets!G$1&\"|\"&Assets!$B39,'Data Annex'!$K$1:$K$869,0),MATCH(Assets!G$2,'Data Annex'!$K$1:$AN$1,0)),\"\")","v":0.1305626164},{"$f":"IFERROR(INDEX('Data Annex'!$K$1:$AN$869,MATCH(Assets!H$1&\"|\"&Assets!$B39,'Data Annex'!$K$1:$K$869,0),MATCH(Assets!H$2,'Data Annex'!$K$1:$AN$1,0)),\"\")","v":0.11018950819999999},{"$f":"IFERROR(INDEX('Data Annex'!$K$1:$AN$869,MATCH(Assets!I$1&\"|\"&Assets!$B39,'Data Annex'!$K$1:$K$869,0),MATCH(Assets!I$2,'Data Annex'!$K$1:$AN$1,0)),\"\")","v":6.9238627000000001E-3},{"$f":"IFERROR(INDEX('Data Annex'!$K$1:$AN$869,MATCH(Assets!J$1&\"|\"&Assets!$B39,'Data Annex'!$K$1:$K$869,0),MATCH(Assets!J$2,'Data Annex'!$K$1:$AN$1,0)),\"\")","v":6.1961812000000003E-3},{"$f":"IFERROR(INDEX('Data Annex'!$K$1:$AN$869,MATCH(Assets!K$1&\"|\"&Assets!$B39,'Data Annex'!$K$1:$K$869,0),MATCH(Assets!K$2,'Data Annex'!$K$1:$AN$1,0)),\"\")","v":8.5657487000000004E-3},{"$f":"IFERROR(INDEX('Data Annex'!$K$1:$AN$869,MATCH(Assets!L$1&\"|\"&Assets!$B39,'Data Annex'!$K$1:$K$869,0),MATCH(Assets!L$2,'Data Annex'!$K$1:$AN$1,0)),\"\")","v":1.09127064E-2},{"$f":"IFERROR(INDEX('Data Annex'!$K$1:$AN$869,MATCH(Assets!M$1&\"|\"&Assets!$B39,'Data Annex'!$K$1:$K$869,0),MATCH(Assets!M$2,'Data Annex'!$K$1:$AN$1,0)),\"\")","v":0.1030574969},{"$f":"IFERROR(INDEX('Data Annex'!$K$1:$AN$869,MATCH(Assets!N$1&\"|\"&Assets!$B39,'Data Annex'!$K$1:$K$869,0),MATCH(Assets!N$2,'Data Annex'!$K$1:$AN$1,0)),\"\")","v":9.96669637E-2},{"$f":"IFERROR(INDEX('Data Annex'!$K$1:$AN$869,MATCH(Assets!O$1&\"|\"&Assets!$B39,'Data Annex'!$K$1:$K$869,0),MATCH(Assets!O$2,'Data Annex'!$K$1:$AN$1,0)),\"\")","v":8.7323093700000007E-2},{"$f":"IFERROR(INDEX('Data Annex'!$K$1:$AN$869,MATCH(Assets!P$1&\"|\"&Assets!$B39,'Data Annex'!$K$1:$K$869,0),MATCH(Assets!P$2,'Data Annex'!$K$1:$AN$1,0)),\"\")","v":8.1230064500000004E-2},{"$f":"IFERROR(INDEX('Data Annex'!$K$1:$AN$869,MATCH(Assets!Q$1&\"|\"&Assets!$B39,'Data Annex'!$K$1:$K$869,0),MATCH(Assets!Q$2,'Data Annex'!$K$1:$AN$1,0)),\"\")","v":0.7094452135},{"$f":"IFERROR(INDEX('Data Annex'!$K$1:$AN$869,MATCH(Assets!R$1&\"|\"&Assets!$B39,'Data Annex'!$K$1:$K$869,0),MATCH(Assets!R$2,'Data Annex'!$K$1:$AN$1,0)),\"\")","v":0.71939629910000003},{"$f":"IFERROR(INDEX('Data Annex'!$K$1:$AN$869,MATCH(Assets!S$1&\"|\"&Assets!$B39,'Data Annex'!$K$1:$K$869,0),MATCH(Assets!S$2,'Data Annex'!$K$1:$AN$1,0)),\"\")","v":0.73247477630000002},{"$f":"IFERROR(INDEX('Data Annex'!$K$1:$AN$869,MATCH(Assets!T$1&\"|\"&Assets!$B39,'Data Annex'!$K$1:$K$869,0),MATCH(Assets!T$2,'Data Annex'!$K$1:$AN$1,0)),\"\")","v":0.75451984559999996},{"$f":"IFERROR(INDEX('Data Annex'!$K$1:$AN$869,MATCH(Assets!U$1&\"|\"&Assets!$B39,'Data Annex'!$K$1:$K$869,0),MATCH(Assets!U$2,'Data Annex'!$K$1:$AN$1,0)),\"\")","v":4.3583757799999998E-2},{"$f":"IFERROR(INDEX('Data Annex'!$K$1:$AN$869,MATCH(Assets!V$1&\"|\"&Assets!$B39,'Data Annex'!$K$1:$K$869,0),MATCH(Assets!V$2,'Data Annex'!$K$1:$AN$1,0)),\"\")","v":2.8527136000000002E-2},{"$f":"IFERROR(INDEX('Data Annex'!$K$1:$AN$869,MATCH(Assets!W$1&\"|\"&Assets!$B39,'Data Annex'!$K$1:$K$869,0),MATCH(Assets!W$2,'Data Annex'!$K$1:$AN$1,0)),\"\")","v":2.7854574600000001E-2},{"$f":"IFERROR(INDEX('Data Annex'!$K$1:$AN$869,MATCH(Assets!X$1&\"|\"&Assets!$B39,'Data Annex'!$K$1:$K$869,0),MATCH(Assets!X$2,'Data Annex'!$K$1:$AN$1,0)),\"\")","v":2.7655380199999999E-2},{"$f":"IFERROR(INDEX('Data Annex'!$K$1:$AN$869,MATCH(Assets!Y$1&\"|\"&Assets!$B39,'Data Annex'!$K$1:$K$869,0),MATCH(Assets!Y$2,'Data Annex'!$K$1:$AN$1,0)),\"\")","v":1.2435129200000001E-2},{"$f":"IFERROR(INDEX('Data Annex'!$K$1:$AN$869,MATCH(Assets!Z$1&\"|\"&Assets!$B39,'Data Annex'!$K$1:$K$869,0),MATCH(Assets!Z$2,'Data Annex'!$K$1:$AN$1,0)),\"\")","v":1.25267512E-2},{"$f":"IFERROR(INDEX('Data Annex'!$K$1:$AN$869,MATCH(Assets!AA$1&\"|\"&Assets!$B39,'Data Annex'!$K$1:$K$869,0),MATCH(Assets!AA$2,'Data Annex'!$K$1:$AN$1,0)),\"\")","v":1.3219190299999999E-2},{"$f":"IFERROR(INDEX('Data Annex'!$K$1:$AN$869,MATCH(Assets!AB$1&\"|\"&Assets!$B39,'Data Annex'!$K$1:$K$869,0),MATCH(Assets!AB$2,'Data Annex'!$K$1:$AN$1,0)),\"\")","v":1.54924951E-2}]
[null,"SI",null,"SI",{"$f":"IFERROR(INDEX('Data Annex'!$K$1:$AN$869,MATCH(Assets!E$1&\"|\"&Assets!$B40,'Data Annex'!$K$1:$K$869,0),MATCH(Assets!E$2,'Data Annex'!$K$1:$AN$1,0)),\"\")","v":0.13679935509999999},{"$f":"IFERROR(INDEX('Data Annex'!$K$1:$AN$869,MATCH(Assets!F$1&\"|\"&Assets!$B40,'Data Annex'!$K$1:$K$869,0),MATCH(Assets!F$2,'Data Annex'!$K$1:$AN$1,0)),\"\")","v":0.1911769854},{"$f":"IFERROR(INDEX('Data Annex'!$K$1:$AN$869,MATCH(Assets!G$1&\"|\"&Assets!$B40,'Data Annex'!$K$1:$K$869,0),MATCH(Assets!G$2,'Data Annex'!$K$1:$AN$1,0)),\"\")","v":0.188408611},{"$f":"IFERROR(INDEX('Data Annex'!$K$1:$AN$869,MATCH(Assets!H$1&\"|\"&Assets!$B40,'Data Annex'!$K$1:$K$869,0),MATCH(Assets!H$2,'Data Annex'!$K$1:$AN$1,0)),\"\")","v":0.20372522600000001},{"$f":"IFERROR(INDEX('Data Annex'!$K$1:$AN$869,MATCH(Assets!I$1&\"|\"&Assets!$B40,'Data Annex'!$K$1:$K$869,0),MATCH(Assets!I$2,'Data Annex'!$K$1:$AN$1,0)),\"\")","v":5.3499159999999997E-3},{"$f":"IFERROR(INDEX('Data Annex'!$K$1:$AN$869,MATCH(Assets!J$1&\"|\"&Assets!$B40,'Data Annex'!$K$1:$K$869,0),MATCH(Assets!J$2,'Data Annex'!$K$1:$AN$1,0)),\"\")","v":5.1909616999999998E-3},{"$f":"IFERROR(INDEX('Data Annex'!$K$1:$AN$869,MATCH(Assets!K$1&\"|\"&Assets!$B40,'Data Annex'!$K$1:$K$869,0),MATCH(Assets!K$2,'Data Annex'!$K$1:$AN$1,0)),\"\")","v":5.1596250000000001E-3},{"$f":"IFERROR(INDEX('Data Annex'!$K$1:$AN$869,MATCH(Assets!L$1&\"|\"&Assets!$B40,'Data Annex'!$K$1:$K$869,0),MATCH(Assets!L$2,'Data Annex'!$K$1:$AN$1,0)),\"\")","v":5.4221659000000004E-3},{"$f":"IFERROR(INDEX('Data Annex'!$K$1:$AN$869,MATCH(Assets!M$1&\"|\"&Assets!$B40,'Data Annex'!$K$1:$K$869,0),MATCH(Assets!M$2,'Data Annex'!$K$1:$AN$1,0)),\"\")","v":0.2354817283},{"$f":"IFERROR(INDEX('Data Annex'!$K$1:$AN$869,MATCH(Assets!N$1&\"|\"&Assets!$B40,'Data Annex'!$K$1:$K$869,0),MATCH(Assets!N$2,'Data Annex'!$K$1:$AN$1,0)),\"\")","v":0.221532008},{"$f":"IFERROR(INDEX('Data Annex'!$K$1:$AN$869,MATCH(Assets!O$1&\"|\"&Assets!$B40,'Data Annex'!$K$1:$K$869,0),MATCH(Assets!O$2,'Data Annex'!$K$1:$AN$1,0)),\"\")","v":0.22959329149999999},{"$f":"IFERROR(INDEX('Data Annex'!$K$1:$AN$869,MATCH(Assets!P$1&\"|\"&Assets!$B40,'Data Annex'!$K$1:$K$869,0),MATCH(Assets!P$2,'Data Annex'!$K$1:$AN$1,0)),\"\")","v":0.23709198889999999},{"$f":"IFERROR(INDEX('Data Annex'!$K$1:$AN$869,MATCH(Assets!Q$1&\"|\"&Assets!$B40,'Data Annex'!$K$1:$K$869,0),MATCH(Assets!Q$2,'Data Annex'!$K$1:$AN$1,0)),\"\")","v":0.59331657459999998},{"$f":"IFERROR(INDEX('Data Annex'!$K$1:$AN$869,MATCH(Assets!R$1&\"|\"&Assets!$B40,'Data Annex'!$K$1:$K$869,0),MATCH(Assets!R$2,'Data Annex'!$K$1:$AN$1,0)),\"\")","v":0.5549826725},{"$f":"IFERROR(INDEX('Data Annex'!$K$1:$AN$869,MATCH(Assets!S$1&\"|\"&Assets!$B40,'Data Annex'!$K$1:$K$869,0),MATCH(Assets!S$2,'Data Annex'!$K$1:$AN$1,0)),\"\")","v":0.55084876059999999},{"$f":"IFERROR(INDEX('Data Annex'!$K$1:$AN$869,MATCH(Assets!T$1&\"|\"&Assets!$B40,'Data Annex'!$K$1:$K$869,0),MATCH(Assets!T$2,'Data Annex'!$K$1:$AN$1,0)),\"\")","v":0.52854579430000004},{"$f":"IFERROR(INDEX('Data Annex'!$K$1:$AN$869,MATCH(Assets!U$1&\"|\"&Assets!$B40,'Data Annex'!$K$1:$K$869,0),MATCH(Assets!U$2,'Data Annex'!$K$1:$AN$1,0)),\"\")","v":1.6949949999999999E-3},{"$f":"IFERROR(INDEX('Data Annex'!$K$1:$AN$869,MATCH(Assets!V$1&\"|\"&Assets!$B40,'Data Annex'!$K$1:$K$869,0),MATCH(Assets!V$2,'Data Annex'!$K$1:$AN$1,0)),\"\")","v":1.4629269999999999E-3},{"$f":"IFERROR(INDEX('Data Annex'!$K$1:$AN$869,MATCH(Assets!W$1&\"|\"&Assets!$B40,'Data Annex'!$K$1:$K$869,0),MATCH(Assets!W$2,'Data Annex'!$K$1:$AN$1,0)),\"\")","v":1.3418032E-3},{"$f":"IFERROR(INDEX('Data Annex'!$K$1:$AN$869,MATCH(Assets!X$1&\"|\"&Assets!$B40,'Data Annex'!$K$1:$K$869,0),MATCH(Assets!X$2,'Data Annex'!$K$1:$AN$1,0)),\"\")","v":1.002483E-3},{"$f":"IFERROR(INDEX('Data Annex'!$K$1:$AN$869,MATCH(Assets!Y$1&\"|\"&Assets!$B40,'Data Annex'!$K$1:$K$869,0),MATCH(Assets!Y$2,'Data Annex'!$K$1:$AN$1,0)),\"\")","v":2.7357355900000001E-2},{"$f":"IFERROR(INDEX('Data Annex'!$K$1:$AN$869,MATCH(Assets!Z$1&\"|\"&Assets!$B40,'Data Annex'!$K$1:$K$869,0),MATCH(Assets!Z$2,'Data Annex'!$K$1:$AN$1,0)),\"\")","v":2.5654408900000002E-2},{"$f":"IFERROR(INDEX('Data Annex'!$K$1:$AN$869,MATCH(Assets!AA$1&\"|\"&Assets!$B40,'Data Annex'!$K$1:$K$869,0),MATCH(Assets!AA$2,'Data Annex'!$K$1:$AN$1,0)),\"\")","v":2.4647944799999998E-2},{"$f":"IFERROR(INDEX('Data Annex'!$K$1:$AN$869,MATCH(Assets!AB$1&\"|\"&Assets!$B40,'Data Annex'!$K$1:$K$869,0),MATCH(Assets!AB$2,'Data Annex'!$K$1:$AN$1,0)),\"\")","v":2.42123419E-2}]
[null,"SK",null,{"$f":"IF(OR(E41=\"n.a.\",F41=\"n.a.\",G41=\"n.a.\",H41=\"n.a.\",I41=\"n.a.\",J41=\"n.a.\",K41=\"n.a.\",L41=\"n.a.\",M41=\"n.a.\",N41=\"n.a.\",O41=\"n.a.\",P41=\"n.a.\",Q41=\"n.a.\",R41=\"n.a.\",S41=\"n.a.\",T41=\"n.a.\",U41=\"n.a.\",V41=\"n.a.\",W41=\"n.a.\",X41=\"n.a.\",Y41=\"n.a.\",Z41=\"n.a.\",AA41=\"n.a.\",AB41=\"n.a.\"),$B41&\"*\",$B41)","v":"SK"},{"$f":"IFERROR(INDEX('Data Annex'!$K$1:$AN$869,MATCH(Assets!E$1&\"|\"&Assets!$B41,'Data Annex'!$K$1:$K$869,0),MATCH(Assets!E$2,'Data Annex'!$K$1:$AN$1,0)),\"\")","v":4.2707006499999998E-2},{"$f":"IFERROR(INDEX('Data Annex'!$K$1:$AN$869,MATCH(Assets!F$1&\"|\"&Assets!$B41,'Data Annex'!$K$1:$K$869,0),MATCH(Assets!F$2,'Data Annex'!$K$1:$AN$1,0)),\"\")","v":5.2286126500000002E-2},{"$f":"IFERROR(INDEX('Data Annex'!$K$1:$AN$869,MATCH(Assets!G$1&\"|\"&Assets!$B41,'Data Annex'!$K$1:$K$869,0),MATCH(Assets!G$2,'Data Annex'!$K$1:$AN$1,0)),\"\")","v":6.3152316900000005E-2},{"$f":"IFERROR(INDEX('Data Annex'!$K$1:$AN$869,MATCH(Assets!H$1&\"|\"&Assets!$B41,'Data Annex'!$K$1:$K$869,0),MATCH(Assets!H$2,'Data Annex'!$K$1:$AN$1,0)),\"\")","v":7.8982477199999998E-2},{"$f":"IFERROR(INDEX('Data Annex'!$K$1:$AN$869,MATCH(Assets!I$1&\"|\"&Assets!$B41,'Data Annex'!$K$1:$K$869,0),MATCH(Assets!I$2,'Data Annex'!$K$1:$AN$1,0)),\"\")","v":9.5962230000000003E-4},{"$f":"IFERROR(INDEX('Data Annex'!$K$1:$AN$869,MATCH(Assets!J$1&\"|\"&Assets!$B41,'Data Annex'!$K$1:$K$869,0),MATCH(Assets!J$2,'Data Annex'!$K$1:$AN$1,0)),\"\")","v":9.9593839999999995E-4},{"$f":"IFERROR(INDEX('Data Annex'!$K$1:$AN$869,MATCH(Assets!K$1&\"|\"&Assets!$B41,'Data Annex'!$K$1:$K$869,0),MATCH(Assets!K$2,'Data Annex'!$K$1:$AN$1,0)),\"\")","v":1.1828949E-3},{"$f":"IFERROR(INDEX('Data Annex'!$K$1:$AN$869,MATCH(Assets!L$1&\"|\"&Assets!$B41,'Data Annex'!$K$1:$K$869,0),MATCH(Assets!L$2,'Data Annex'!$K$1:$AN$1,0)),\"\")","v":3.932405E-4},{"$f":"IFERROR(INDEX('Data Annex'!$K$1:$AN$869,MATCH(Assets!M$1&\"|\"&Assets!$B41,'Data Annex'!$K$1:$K$869,0),MATCH(Assets!M$2,'Data Annex'!$K$1:$AN$1,0)),\"\")","v":0.13480332340000001},{"$f":"IFERROR(INDEX('Data Annex'!$K$1:$AN$869,MATCH(Assets!N$1&\"|\"&Assets!$B41,'Data Annex'!$K$1:$K$869,0),MATCH(Assets!N$2,'Data Annex'!$K$1:$AN$1,0)),\"\")","v":0.15480888409999999},{"$f":"IFERROR(INDEX('Data Annex'!$K$1:$AN$869,MATCH(Assets!O$1&\"|\"&Assets!$B41,'Data Annex'!$K$1:$K$869,0),MATCH(Assets!O$2,'Data Annex'!$K$1:$AN$1,0)),\"\")","v":0.1461401769},{"$f":"IFERROR(INDEX('Data Annex'!$K$1:$AN$869,MATCH(Assets!P$1&\"|\"&Assets!$B41,'Data Annex'!$K$1:$K$869,0),MATCH(Assets!P$2,'Data Annex'!$K$1:$AN$1,0)),\"\")","v":0.13789123149999999},{"$f":"IFERROR(INDEX('Data Annex'!$K$1:$AN$869,MATCH(Assets!Q$1&\"|\"&Assets!$B41,'Data Annex'!$K$1:$K$869,0),MATCH(Assets!Q$2,'Data Annex'!$K$1:$AN$1,0)),\"\")","v":0.79680156889999998},{"$f":"IFERROR(INDEX('Data Annex'!$K$1:$AN$869,MATCH(Assets!R$1&\"|\"&Assets!$B41,'Data Annex'!$K$1:$K$869,0),MATCH(Assets!R$2,'Data Annex'!$K$1:$AN$1,0)),\"\")","v":0.76775946419999996},{"$f":"IFERROR(INDEX('Data Annex'!$K$1:$AN$869,MATCH(Assets!S$1&\"|\"&Assets!$B41,'Data Annex'!$K$1:$K$869,0),MATCH(Assets!S$2,'Data Annex'!$K$1:$AN$1,0)),\"\")","v":0.76523546129999998},{"$f":"IFERROR(INDEX('Data Annex'!$K$1:$AN$869,MATCH(Assets!T$1&\"|\"&Assets!$B41,'Data Annex'!$K$1:$K$869,0),MATCH(Assets!T$2,'Data Annex'!$K$1:$AN$1,0)),\"\")","v":0.75891525179999997},{"$f":"IFERROR(INDEX('Data Annex'!$K$1:$AN$869,MATCH(Assets!U$1&\"|\"&Assets!$B41,'Data Annex'!$K$1:$K$869,0),MATCH(Assets!U$2,'Data Annex'!$K$1:$AN$1,0)),\"\")","v":5.3179192E-3},{"$f":"IFERROR(INDEX('Data Annex'!$K$1:$AN$869,MATCH(Assets!V$1&\"|\"&Assets!$B41,'Data Annex'!$K$1:$K$869,0),MATCH(Assets!V$2,'Data Annex'!$K$1:$AN$1,0)),\"\")","v":5.2994905999999998E-3},{"$f":"IFERROR(INDEX('Data Annex'!$K$1:$AN$869,MATCH(Assets!W$1&\"|\"&Assets!$B41,'Data Annex'!$K$1:$K$869,0),MATCH(Assets!W$2,'Data Annex'!$K$1:$AN$1,0)),\"\")","v":5.5260676999999998E-3},{"$f":"IFERROR(INDEX('Data Annex'!$K$1:$AN$869,MATCH(Assets!X$1&\"|\"&Assets!$B41,'Data Annex'!$K$1:$K$869,0),MATCH(Assets!X$2,'Data Annex'!$K$1:$AN$1,0)),\"\")","v":5.5292885E-3},{"$f":"IFERROR(INDEX('Data Annex'!$K$1:$AN$869,MATCH(Assets!Y$1&\"|\"&Assets!$B41,'Data Annex'!$K$1:$K$869,0),MATCH(Assets!Y$2,'Data Annex'!$K$1:$AN$1,0)),\"\")","v":1.94105597E-2},{"$f":"IFERROR(INDEX('Data Annex'!$K$1:$AN$869,MATCH(Assets!Z$1&\"|\"&Assets!$B41,'Data Annex'!$K$1:$K$869,0),MATCH(Assets!Z$2,'Data Annex'!$K$1:$AN$1,0)),\"\")","v":1.8850096100000002E-2},{"$f":"IFERROR(INDEX('Data Annex'!$K$1:$AN$869,MATCH(Assets!AA$1&\"|\"&Assets!$B41,'Data Annex'!$K$1:$K$869,0),MATCH(Assets!AA$2,'Data Annex'!$K$1:$AN$1,0)),\"\")","v":1.8763082399999999E-2},{"$f":"IFERROR(INDEX('Data Annex'!$K$1:$AN$869,MATCH(Assets!AB$1&\"|\"&Assets!$B41,'Data Annex'!$K$1:$K$869,0),MATCH(Assets!AB$2,'Data Annex'!$K$1:$AN$1,0)),\"\")","v":1.8288510399999999E-2}]
[null,"EU",null,"EU/EEA",{"$f":"IFERROR(INDEX('Data Annex'!$K$1:$AN$869,MATCH(Assets!E$1&\"|\"&Assets!$B42,'Data Annex'!$K$1:$K$869,0),MATCH(Assets!E$2,'Data Annex'!$K$1:$AN$1,0)),\"\")","v":8.7910976900000007E-2},{"$f":"IFERROR(INDEX('Data Annex'!$K$1:$AN$869,MATCH(Assets!F$1&\"|\"&Assets!$B42,'Data Annex'!$K$1:$K$869,0),MATCH(Assets!F$2,'Data Annex'!$K$1:$AN$1,0)),\"\")","v":0.1108306879},{"$f":"IFERROR(INDEX('Data Annex'!$K$1:$AN$869,MATCH(Assets!G$1&\"|\"&Assets!$B42,'Data Annex'!$K$1:$K$869,0),MATCH(Assets!G$2,'Data Annex'!$K$1:$AN$1,0)),\"\")","v":0.1215542111},{"$f":"IFERROR(INDEX('Data Annex'!$K$1:$AN$869,MATCH(Assets!H$1&\"|\"&Assets!$B42,'Data Annex'!$K$1:$K$869,0),MATCH(Assets!H$2,'Data Annex'!$K$1:$AN$1,0)),\"\")","v":0.1253869255},{"$f":"IFERROR(INDEX('Data Annex'!$K$1:$AN$869,MATCH(Assets!I$1&\"|\"&Assets!$B42,'Data Annex'!$K$1:$K$869,0),MATCH(Assets!I$2,'Data Annex'!$K$1:$AN$1,0)),\"\")","v":1.0660962E-2},{"$f":"IFERROR(INDEX('Data Annex'!$K$1:$AN$869,MATCH(Assets!J$1&\"|\"&Assets!$B42,'Data Annex'!$K$1:$K$869,0),MATCH(Assets!J$2,'Data Annex'!$K$1:$AN$1,0)),\"\")","v":1.1716453700000001E-2},{"$f":"IFERROR(INDEX('Data Annex'!$K$1:$AN$869,MATCH(Assets!K$1&\"|\"&Assets!$B42,'Data Annex'!$K$1:$K$869,0),MATCH(Assets!K$2,'Data Annex'!$K$1:$AN$1,0)),\"\")","v":1.2284554899999999E-2},{"$f":"IFERROR(INDEX('Data Annex'!$K$1:$AN$869,MATCH(Assets!L$1&\"|\"&Assets!$B42,'Data Annex'!$K$1:$K$869,0),MATCH(Assets!L$2,'Data Annex'!$K$1:$AN$1,0)),\"\")","v":1.39528868E-2},{"$f":"IFERROR(INDEX('Data Annex'!$K$1:$AN$869,MATCH(Assets!M$1&\"|\"&Assets!$B42,'Data Annex'!$K$1:$K$869,0),MATCH(Assets!M$2,'Data Annex'!$K$1:$AN$1,0)),\"\")","v":0.12867766319999999},{"$f":"IFERROR(INDEX('Data Annex'!$K$1:$AN$869,MATCH(Assets!N$1&\"|\"&Assets!$B42,'Data Annex'!$K$1:$K$869,0),MATCH(Assets!N$2,'Data Annex'!$K$1:$AN$1,0)),\"\")","v":0.13374939390000001},{"$f":"IFERROR(INDEX('Data Annex'!$K$1:$AN$869,MATCH(Assets!O$1&\"|\"&Assets!$B42,'Data Annex'!$K$1:$K$869,0),MATCH(Assets!O$2,'Data Annex'!$K$1:$AN$1,0)),\"\")","v":0.1316342955},{"$f":"IFERROR(INDEX('Data Annex'!$K$1:$AN$869,MATCH(Assets!P$1&\"|\"&Assets!$B42,'Data Annex'!$K$1:$K$869,0),MATCH(Assets!P$2,'Data Annex'!$K$1:$AN$1,0)),\"\")","v":0.12534740450000001},{"$f":"IFERROR(INDEX('Data Annex'!$K$1:$AN$869,MATCH(Assets!Q$1&\"|\"&Assets!$B42,'Data Annex'!$K$1:$K$869,0),MATCH(Assets!Q$2,'Data Annex'!$K$1:$AN$1,0)),\"\")","v":0.63290364899999996},{"$f":"IFERROR(INDEX('Data Annex'!$K$1:$AN$869,MATCH(Assets!R$1&\"|\"&Assets!$B42,'Data Annex'!$K$1:$K$869,0),MATCH(Assets!R$2,'Data Annex'!$K$1:$AN$1,0)),\"\")","v":0.61971412329999997},{"$f":"IFERROR(INDEX('Data Annex'!$K$1:$AN$869,MATCH(Assets!S$1&\"|\"&Assets!$B42,'Data Annex'!$K$1:$K$869,0),MATCH(Assets!S$2,'Data Annex'!$K$1:$AN$1,0)),\"\")","v":0.61465684870000004},{"$f":"IFERROR(INDEX('Data Annex'!$K$1:$AN$869,MATCH(Assets!T$1&\"|\"&Assets!$B42,'Data Annex'!$K$1:$K$869,0),MATCH(Assets!T$2,'Data Annex'!$K$1:$AN$1,0)),\"\")","v":0.60477663530000003},{"$f":"IFERROR(INDEX('Data Annex'!$K$1:$AN$869,MATCH(Assets!U$1&\"|\"&Assets!$B42,'Data Annex'!$K$1:$K$869,0),MATCH(Assets!U$2,'Data Annex'!$K$1:$AN$1,0)),\"\")","v":8.5512949399999996E-2},{"$f":"IFERROR(INDEX('Data Annex'!$K$1:$AN$869,MATCH(Assets!V$1&\"|\"&Assets!$B42,'Data Annex'!$K$1:$K$869,0),MATCH(Assets!V$2,'Data Annex'!$K$1:$AN$1,0)),\"\")","v":7.3757927299999998E-2},{"$f":"IFERROR(INDEX('Data Annex'!$K$1:$AN$869,MATCH(Assets!W$1&\"|\"&Assets!$B42,'Data Annex'!$K$1:$K$869,0),MATCH(Assets!W$2,'Data Annex'!$K$1:$AN$1,0)),\"\")","v":6.9724778500000001E-2},{"$f":"IFERROR(INDEX('Data Annex'!$K$1:$AN$869,MATCH(Assets!X$1&\"|\"&Assets!$B42,'Data Annex'!$K$1:$K$869,0),MATCH(Assets!X$2,'Data Annex'!$K$1:$AN$1,0)),\"\")","v":6.8697573600000006E-2},{"$f":"IFERROR(INDEX('Data Annex'!$K$1:$AN$869,MATCH(Assets!Y$1&\"|\"&Assets!$B42,'Data Annex'!$K$1:$K$869,0),MATCH(Assets!Y$2,'Data Annex'!$K$1:$AN$1,0)),\"\")","v":5.43699921E-2},{"$f":"IFERROR(INDEX('Data Annex'!$K$1:$AN$869,MATCH(Assets!Z$1&\"|\"&Assets!$B42,'Data Annex'!$K$1:$K$869,0),MATCH(Assets!Z$2,'Data Annex'!$K$1:$AN$1,0)),\"\")","v":5.027007E-2},{"$f":"IFERROR(INDEX('Data Annex'!$K$1:$AN$869,MATCH(Assets!AA$1&\"|\"&Assets!$B42,'Data Annex'!$K$1:$K$869,0),MATCH(Assets!AA$2,'Data Annex'!$K$1:$AN$1,0)),\"\")","v":5.0180715899999999E-2},{"$f":"IFERROR(INDEX('Data Annex'!$K$1:$AN$869,MATCH(Assets!AB$1&\"|\"&Assets!$B42,'Data Annex'!$K$1:$K$869,0),MATCH(Assets!AB$2,'Data Annex'!$K$1:$AN$1,0)),\"\")","v":6.1842251299999998E-2}]
[null,"GB",null,{"$f":"IF(OR(E43=\"n.a.\",F43=\"n.a.\",G43=\"n.a.\",H43=\"n.a.\",I43=\"n.a.\",J43=\"n.a.\",K43=\"n.a.\",L43=\"n.a.\",M43=\"n.a.\",N43=\"n.a.\",O43=\"n.a.\",P43=\"n.a.\",Q43=\"n.a.\",R43=\"n.a.\",S43=\"n.a.\",T43=\"n.a.\",U43=\"n.a.\",V43=\"n.a.\",W43=\"n.a.\",X43=\"n.a.\",Y43=\"n.a.\",Z43=\"n.a.\",AA43=\"n.a.\",AB43=\"n.a.\"),$B43&\"*\",$B43)","v":"GB"},{"$f":"IFERROR(INDEX('Data Annex'!$K$1:$AN$869,MATCH(Assets!E$1&\"|\"&Assets!$B43,'Data Annex'!$K$1:$K$869,0),MATCH(Assets!E$2,'Data Annex'!$K$1:$AN$1,0)),\"\")","v":8.4856525200000005E-2},{"$f":"IFERROR(INDEX('Data Annex'!$K$1:$AN$869,MATCH(Assets!F$1&\"|\"&Assets!$B43,'Data Annex'!$K$1:$K$869,0),MATCH(Assets!F$2,'Data Annex'!$K$1:$AN$1,0)),\"\")","v":0.1064568241},{"$f":"IFERROR(INDEX('Data Annex'!$K$1:$AN$869,MATCH(Assets!G$1&\"|\"&Assets!$B43,'Data Annex'!$K$1:$K$869,0),MATCH(Assets!G$2,'Data Annex'!$K$1:$AN$1,0)),\"\")","v":0.1200435418},{"$f":"IFERROR(INDEX('Data Annex'!$K$1:$AN$869,MATCH(Assets!H$1&\"|\"&Assets!$B43,'Data Annex'!$K$1:$K$869,0),MATCH(Assets!H$2,'Data Annex'!$K$1:$AN$1,0)),\"\")","v":0.1211906604},{"$f":"IFERROR(INDEX('Data Annex'!$K$1:$AN$869,MATCH(Assets!I$1&\"|\"&Assets!$B43,'Data Annex'!$K$1:$K$869,0),MATCH(Assets!I$2,'Data Annex'!$K$1:$AN$1,0)),\"\")","v":1.65040584E-2},{"$f":"IFERROR(INDEX('Data Annex'!$K$1:$AN$869,MATCH(Assets!J$1&\"|\"&Assets!$B43,'Data Annex'!$K$1:$K$869,0),MATCH(Assets!J$2,'Data Annex'!$K$1:$AN$1,0)),\"\")","v":2.1236625700000001E-2},{"$f":"IFERROR(INDEX('Data Annex'!$K$1:$AN$869,MATCH(Assets!K$1&\"|\"&Assets!$B43,'Data Annex'!$K$1:$K$869,0),MATCH(Assets!K$2,'Data Annex'!$K$1:$AN$1,0)),\"\")","v":2.3629491499999999E-2},{"$f":"IFERROR(INDEX('Data Annex'!$K$1:$AN$869,MATCH(Assets!L$1&\"|\"&Assets!$B43,'Data Annex'!$K$1:$K$869,0),MATCH(Assets!L$2,'Data Annex'!$K$1:$AN$1,0)),\"\")","v":2.9790832199999999E-2},{"$f":"IFERROR(INDEX('Data Annex'!$K$1:$AN$869,MATCH(Assets!M$1&\"|\"&Assets!$B43,'Data Annex'!$K$1:$K$869,0),MATCH(Assets!M$2,'Data Annex'!$K$1:$AN$1,0)),\"\")","v":0.13530875619999999},{"$f":"IFERROR(INDEX('Data Annex'!$K$1:$AN$869,MATCH(Assets!N$1&\"|\"&Assets!$B43,'Data Annex'!$K$1:$K$869,0),MATCH(Assets!N$2,'Data Annex'!$K$1:$AN$1,0)),\"\")","v":0.1420316069},{"$f":"IFERROR(INDEX('Data Annex'!$K$1:$AN$869,MATCH(Assets!O$1&\"|\"&Assets!$B43,'Data Annex'!$K$1:$K$869,0),MATCH(Assets!O$2,'Data Annex'!$K$1:$AN$1,0)),\"\")","v":0.13666506689999999},{"$f":"IFERROR(INDEX('Data Annex'!$K$1:$AN$869,MATCH(Assets!P$1&\"|\"&Assets!$B43,'Data Annex'!$K$1:$K$869,0),MATCH(Assets!P$2,'Data Annex'!$K$1:$AN$1,0)),\"\")","v":0.135176306},{"$f":"IFERROR(INDEX('Data Annex'!$K$1:$AN$869,MATCH(Assets!Q$1&\"|\"&Assets!$B43,'Data Annex'!$K$1:$K$869,0),MATCH(Assets!Q$2,'Data Annex'!$K$1:$AN$1,0)),\"\")","v":0.54045714789999999},{"$f":"IFERROR(INDEX('Data Annex'!$K$1:$AN$869,MATCH(Assets!R$1&\"|\"&Assets!$B43,'Data Annex'!$K$1:$K$869,0),MATCH(Assets!R$2,'Data Annex'!$K$1:$AN$1,0)),\"\")","v":0.52779391440000001},{"$f":"IFERROR(INDEX('Data Annex'!$K$1:$AN$869,MATCH(Assets!S$1&\"|\"&Assets!$B43,'Data Annex'!$K$1:$K$869,0),MATCH(Assets!S$2,'Data Annex'!$K$1:$AN$1,0)),\"\")","v":0.52970463050000005},{"$f":"IFERROR(INDEX('Data Annex'!$K$1:$AN$869,MATCH(Assets!T$1&\"|\"&Assets!$B43,'Data Annex'!$K$1:$K$869,0),MATCH(Assets!T$2,'Data Annex'!$K$1:$AN$1,0)),\"\")","v":0.51678668149999996},{"$f":"IFERROR(INDEX('Data Annex'!$K$1:$AN$869,MATCH(Assets!U$1&\"|\"&Assets!$B43,'Data Annex'!$K$1:$K$869,0),MATCH(Assets!U$2,'Data Annex'!$K$1:$AN$1,0)),\"\")","v":0.17782974339999999},{"$f":"IFERROR(INDEX('Data Annex'!$K$1:$AN$869,MATCH(Assets!V$1&\"|\"&Assets!$B43,'Data Annex'!$K$1:$K$869,0),MATCH(Assets!V$2,'Data Annex'!$K$1:$AN$1,0)),\"\")","v":0.15567325909999999},{"$f":"IFERROR(INDEX('Data Annex'!$K$1:$AN$869,MATCH(Assets!W$1&\"|\"&Assets!$B43,'Data Annex'!$K$1:$K$869,0),MATCH(Assets!W$2,'Data Annex'!$K$1:$AN$1,0)),\"\")","v":0.14666824170000001},{"$f":"IFERROR(INDEX('Data Annex'!$K$1:$AN$869,MATCH(Assets!X$1&\"|\"&Assets!$B43,'Data Annex'!$K$1:$K$869,0),MATCH(Assets!X$2,'Data Annex'!$K$1:$AN$1,0)),\"\")","v":0.1544924865},{"$f":"IFERROR(INDEX('Data Annex'!$K$1:$AN$869,MATCH(Assets!Y$1&\"|\"&Assets!$B43,'Data Annex'!$K$1:$K$869,0),MATCH(Assets!Y$2,'Data Annex'!$K$1:$AN$1,0)),\"\")","v":4.5043768900000003E-2},{"$f":"IFERROR(INDEX('Data Annex'!$K$1:$AN$869,MATCH(Assets!Z$1&\"|\"&Assets!$B43,'Data Annex'!$K$1:$K$869,0),MATCH(Assets!Z$2,'Data Annex'!$K$1:$AN$1,0)),\"\")","v":4.4689575099999997E-2},{"$f":"IFERROR(INDEX('Data Annex'!$K$1:$AN$869,MATCH(Assets!AA$1&\"|\"&Assets!$B43,'Data Annex'!$K$1:$K$869,0),MATCH(Assets!AA$2,'Data Annex'!$K$1:$AN$1,0)),\"\")","v":4.3289027600000002E-2},{"$f":"IFERROR(INDEX('Data Annex'!$K$1:$AN$869,MATCH(Assets!AB$1&\"|\"&Assets!$B43,'Data Annex'!$K$1:$K$869,0),MATCH(Assets!AB$2,'Data Annex'!$K$1:$AN$1,0)),\"\")","v":4.2563036399999997E-2},{"$f":"IFERROR(INDEX('Data Annex'!$K$1:$AH$869,MATCH(Assets!AC$1&\"|\"&Assets!$B43,'Data Annex'!$K$1:$K$869,0),MATCH(Assets!AC$2,'Data Annex'!$K$1:$AH$1,0)),\"\")","v":""}]
[]
[]
[null,null,null,null,null,"T02_1","T02_1","T02_1","T02_1","T02_2","T02_2","T02_2","T02_2",null,null,"T03_1","T03_1","T03_1","T03_1","T03_1","T03_2","T03_2","T03_2","T03_2","T03_3","T03_3","T03_3","T03_3"]
[null,null,null,null,null,{"$f":"TEXT(F52,\"YYYYMM\")+0","v":202003},202006,202009,202012,202003,202006,202009,202012,null,null,null,{"$f":"TEXT(Q52,\"YYYYMM\")+0","v":202003},{"$f":"TEXT(R52,\"YYYYMM\")+0","v":202006},{"$f":"TEXT(S52,\"YYYYMM\")+0","v":202009},{"$f":"TEXT(T52,\"YYYYMM\")+0","v":202012},{"$f":"TEXT(U52,\"YYYYMM\")+0","v":202003},202006,202009,202012,202003,202006,202009,202012]
[null,null,null," Assets",null,null,null,null,null,null,null,null,null,null,"Financial Assets"]
[]
[null,null,null,"Volumes bn EUR",null,null,null,null,null,null,null,null,null,null,"% of total financial assets"]
[null,null,null,null,null,"Total Assets",null,null,null,"Total Financial Assets",null,null,null,null,null,null,"Share of financial assets valued at (amortised) cost",null,null,null,"Share of financial assets at fair value through OCI",null,null,null,"Share of financial assets at fair value through profit&loss"]
[null,null,null,null,null,{"$f":"EOMONTH($A$3,-9)","v":"2020-03-31"},{"$f":"EOMONTH($A$3,-6)","v":"2020-06-30"},{"$f":"EOMONTH($A$3,-3)","v":"2020-09-30"},{"$f":"$A$3","v":"2020-12-01"},{"$f":"EOMONTH($A$3,-9)","v":"2020-03-31"},{"$f":"EOMONTH($A$3,-6)","v":"2020-06-30"},{"$f":"EOMONTH($A$3,-3)","v":"2020-09-30"},{"$f":"$A$3","v":"2020-12-01"},null,null,null,{"$f":"EOMONTH($A$3,-9)","v":"2020-03-31"},{"$f":"EOMONTH($A$3,-6)","v":"2020-06-30"},{"$f":"EOMONTH($A$3,-3)","v":"2020-09-30"},{"$f":"$A$3","v":"2020-12-01"},{"$f":"EOMONTH($A$3,-9)","v":"2020-03-31"},{"$f":"EOMONTH($A$3,-6)","v":"2020-06-30"},{"$f":"EOMONTH($A$3,-3)","v":"2020-09-30"},{"$f":"$A$3","v":"2020-12-01"},{"$f":"EOMONTH($A$3,-9)","v":"2020-03-31"},{"$f":"EOMONTH($A$3,-6)","v":"2020-06-30"},{"$f":"EOMONTH($A$3,-3)","v":"2020-09-30"},{"$f":"$A$3","v":"2020-12-01"}]
[null,"AT",null,{"$f":"IF(OR(F53=\"n.a.\",G53=\"n.a.\",H53=\"n.a.\",I53=\"n.a.\",J53=\"n.a.\",K53=\"n.a.\",L53=\"n.a.\",M53=\"n.a.\"),$B53&\"*\",$B53)","v":"AT"},null,{"$f":"IFERROR(INDEX('Data Annex'!$K$1:$AN$869,MATCH(Assets!F$46&\"|\"&Assets!$B53,'Data Annex'!$K$1:$K$869,0),MATCH(Assets!F$47,'Data Annex'!$K$1:$AN$1,0)),\"\")","v":650.33514271000001},{"$f":"IFERROR(INDEX('Data Annex'!$K$1:$AN$869,MATCH(Assets!G$46&\"|\"&Assets!$B53,'Data Annex'!$K$1:$K$869,0),MATCH(Assets!G$47,'Data Annex'!$K$1:$AN$1,0)),\"\")","v":683.40072523000003},{"$f":"IFERROR(INDEX('Data Annex'!$K$1:$AN$869,MATCH(Assets!H$46&\"|\"&Assets!$B53,'Data Annex'!$K$1:$K$869,0),MATCH(Assets!H$47,'Data Annex'!$K$1:$AN$1,0)),\"\")","v":692.19613471000002},{"$f":"IFERROR(INDEX('Data Annex'!$K$1:$AN$869,MATCH(Assets!I$46&\"|\"&Assets!$B53,'Data Annex'!$K$1:$K$869,0),MATCH(Assets!I$47,'Data Annex'!$K$1:$AN$1,0)),\"\")","v":705.01328593999995},{"$f":"IFERROR(INDEX('Data Annex'!$K$1:$AN$869,MATCH(Assets!J$46&\"|\"&Assets!$B53,'Data Annex'!$K$1:$K$869,0),MATCH(Assets!J$47,'Data Annex'!$K$1:$AN$1,0)),\"\")","v":627.55789875000005},{"$f":"IFERROR(INDEX('Data Annex'!$K$1:$AN$869,MATCH(Assets!K$46&\"|\"&Assets!$B53,'Data Annex'!$K$1:$K$869,0),MATCH(Assets!K$47,'Data Annex'!$K$1:$AN$1,0)),\"\")","v":660.64358499000002},{"$f":"IFERROR(INDEX('Data Annex'!$K$1:$AN$869,MATCH(Assets!L$46&\"|\"&Assets!$B53,'Data Annex'!$K$1:$K$869,0),MATCH(Assets!L$47,'Data Annex'!$K$1:$AN$1,0)),\"\")","v":669.48619321000001},{"$f":"IFERROR(INDEX('Data Annex'!$K$1:$AN$869,MATCH(Assets!M$46&\"|\"&Assets!$B53,'Data Annex'!$K$1:$K$869,0),MATCH(Assets!M$47,'Data Annex'!$K$1:$AN$1,0)),\"\")","v":682.34022229000004},{"$f":"M53/I53","v":0.96784023208900283},{"$f":"+D53","v":"AT"},null,{"$f":"IFERROR(INDEX('Data Annex'!$K$1:$AN$869,MATCH(Assets!Q$46&\"|\"&Assets!$B53,'Data Annex'!$K$1:$K$869,0),MATCH(Assets!Q$47,'Data Annex'!$K$1:$AN$1,0)),\"\")","v":0.89060430989999995},{"$f":"IFERROR(INDEX('Data Annex'!$K$1:$AN$869,MATCH(Assets!R$46&\"|\"&Assets!$B53,'Data Annex'!$K$1:$K$869,0),MATCH(Assets!R$47,'Data Annex'!$K$1:$AN$1,0)),\"\")","v":0.89689521380000004},{"$f":"IFERROR(INDEX('Data Annex'!$K$1:$AN$869,MATCH(Assets!S$46&\"|\"&Assets!$B53,'Data Annex'!$K$1:$K$869,0),MATCH(Assets!S$47,'Data Annex'!$K$1:$AN$1,0)),\"\")","v":0.9041410902},{"$f":"IFERROR(INDEX('Data Annex'!$K$1:$AN$869,MATCH(Assets!T$46&\"|\"&Assets!$B53,'Data Annex'!$K$1:$K$869,0),MATCH(Assets!T$47,'Data Annex'!$K$1:$AN$1,0)),\"\")","v":0.90781777289999999},{"$f":"IFERROR(INDEX('Data Annex'!$K$1:$AN$869,MATCH(Assets!U$46&\"|\"&Assets!$B53,'Data Annex'!$K$1:$K$869,0),MATCH(Assets!U$47,'Data Annex'!$K$1:$AN$1,0)),\"\")","v":6.1447850300000002E-2},{"$f":"IFERROR(INDEX('Data Annex'!$K$1:$AN$869,MATCH(Assets!V$46&\"|\"&Assets!$B53,'Data Annex'!$K$1:$K$869,0),MATCH(Assets!V$47,'Data Annex'!$K$1:$AN$1,0)),\"\")","v":6.0944722600000001E-2},{"$f":"IFERROR(INDEX('Data Annex'!$K$1:$AN$869,MATCH(Assets!W$46&\"|\"&Assets!$B53,'Data Annex'!$K$1:$K$869,0),MATCH(Assets!W$47,'Data Annex'!$K$1:$AN$1,0)),\"\")","v":5.5726835299999999E-2},{"$f":"IFERROR(INDEX('Data Annex'!$K$1:$AN$869,MATCH(Assets!X$46&\"|\"&Assets!$B53,'Data Annex'!$K$1:$K$869,0),MATCH(Assets!X$47,'Data Annex'!$K$1:$AN$1,0)),\"\")","v":5.3973156600000002E-2},{"$f":"IFERROR(INDEX('Data Annex'!$K$1:$AN$869,MATCH(Assets!Y$46&\"|\"&Assets!$B53,'Data Annex'!$K$1:$K$869,0),MATCH(Assets!Y$47,'Data Annex'!$K$1:$AN$1,0)),\"\")","v":4.7947839800000003E-2},{"$f":"IFERROR(INDEX('Data Annex'!$K$1:$AN$869,MATCH(Assets!Z$46&\"|\"&Assets!$B53,'Data Annex'!$K$1:$K$869,0),MATCH(Assets!Z$47,'Data Annex'!$K$1:$AN$1,0)),\"\")","v":4.2160063499999997E-2},{"$f":"IFERROR(INDEX('Data Annex'!$K$1:$AN$869,MATCH(Assets!AA$46&\"|\"&Assets!$B53,'Data Annex'!$K$1:$K$869,0),MATCH(Assets!AA$47,'Data Annex'!$K$1:$AN$1,0)),\"\")","v":4.0132074400000002E-2},{"$f":"IFERROR(INDEX('Data Annex'!$K$1:$AN$869,MATCH(Assets!AB$46&\"|\"&Assets!$B53,'Data Annex'!$K$1:$K$869,0),MATCH(Assets!AB$47,'Data Annex'!$K$1:$AN$1,0)),\"\")","v":3.8209070499999997E-2}]
[null,"BE",null,{"$f":"IF(OR(F54=\"n.a.\",G54=\"n.a.\",H54=\"n.a.\",I54=\"n.a.\",J54=\"n.a.\",K54=\"n.a.\",L54=\"n.a.\",M54=\"n.a.\"),$B54&\"*\",$B54)","v":"BE"},null,{"$f":"IFERROR(INDEX('Data Annex'!$K$1:$AN$869,MATCH(Assets!F$46&\"|\"&Assets!$B54,'Data Annex'!$K$1:$K$869,0),MATCH(Assets!F$47,'Data Annex'!$K$1:$AN$1,0)),\"\")","v":1184.2065130000001},{"$f":"IFERROR(INDEX('Data Annex'!$K$1:$AN$869,MATCH(Assets!G$46&\"|\"&Assets!$B54,'Data Annex'!$K$1:$K$869,0),MATCH(Assets!G$47,'Data Annex'!$K$1:$AN$1,0)),\"\")","v":1203.9928742},{"$f":"IFERROR(INDEX('Data Annex'!$K$1:$AN$869,MATCH(Assets!H$46&\"|\"&Assets!$B54,'Data Annex'!$K$1:$K$869,0),MATCH(Assets!H$47,'Data Annex'!$K$1:$AN$1,0)),\"\")","v":1194.6394604},{"$f":"IFERROR(INDEX('Data Annex'!$K$1:$AN$869,MATCH(Assets!I$46&\"|\"&Assets!$B54,'Data Annex'!$K$1:$K$869,0),MATCH(Assets!I$47,'Data Annex'!$K$1:$AN$1,0)),\"\")","v":1193.7259792},{"$f":"IFERROR(INDEX('Data Annex'!$K$1:$AN$869,MATCH(Assets!J$46&\"|\"&Assets!$B54,'Data Annex'!$K$1:$K$869,0),MATCH(Assets!J$47,'Data Annex'!$K$1:$AN$1,0)),\"\")","v":1113.9982012},{"$f":"IFERROR(INDEX('Data Annex'!$K$1:$AN$869,MATCH(Assets!K$46&\"|\"&Assets!$B54,'Data Annex'!$K$1:$K$869,0),MATCH(Assets!K$47,'Data Annex'!$K$1:$AN$1,0)),\"\")","v":1133.3067312999999},{"$f":"IFERROR(INDEX('Data Annex'!$K$1:$AN$869,MATCH(Assets!L$46&\"|\"&Assets!$B54,'Data Annex'!$K$1:$K$869,0),MATCH(Assets!L$47,'Data Annex'!$K$1:$AN$1,0)),\"\")","v":1125.4843639999999},{"$f":"IFERROR(INDEX('Data Annex'!$K$1:$AN$869,MATCH(Assets!M$46&\"|\"&Assets!$B54,'Data Annex'!$K$1:$K$869,0),MATCH(Assets!M$47,'Data Annex'!$K$1:$AN$1,0)),\"\")","v":1123.9592524},{"$f":"M54/I54","v":0.94155549262088134},"BE",null,{"$f":"IFERROR(INDEX('Data Annex'!$K$1:$AN$869,MATCH(Assets!Q$46&\"|\"&Assets!$B54,'Data Annex'!$K$1:$K$869,0),MATCH(Assets!Q$47,'Data Annex'!$K$1:$AN$1,0)),\"\")","v":0.8843426539},{"$f":"IFERROR(INDEX('Data Annex'!$K$1:$AN$869,MATCH(Assets!R$46&\"|\"&Assets!$B54,'Data Annex'!$K$1:$K$869,0),MATCH(Assets!R$47,'Data Annex'!$K$1:$AN$1,0)),\"\")","v":0.88682203690000005},{"$f":"IFERROR(INDEX('Data Annex'!$K$1:$AN$869,MATCH(Assets!S$46&\"|\"&Assets!$B54,'Data Annex'!$K$1:$K$869,0),MATCH(Assets!S$47,'Data Annex'!$K$1:$AN$1,0)),\"\")","v":0.8923012843},{"$f":"IFERROR(INDEX('Data Annex'!$K$1:$AN$869,MATCH(Assets!T$46&\"|\"&Assets!$B54,'Data Annex'!$K$1:$K$869,0),MATCH(Assets!T$47,'Data Annex'!$K$1:$AN$1,0)),\"\")","v":0.90203687740000005},{"$f":"IFERROR(INDEX('Data Annex'!$K$1:$AN$869,MATCH(Assets!U$46&\"|\"&Assets!$B54,'Data Annex'!$K$1:$K$869,0),MATCH(Assets!U$47,'Data Annex'!$K$1:$AN$1,0)),\"\")","v":3.8490702699999997E-2},{"$f":"IFERROR(INDEX('Data Annex'!$K$1:$AN$869,MATCH(Assets!V$46&\"|\"&Assets!$B54,'Data Annex'!$K$1:$K$869,0),MATCH(Assets!V$47,'Data Annex'!$K$1:$AN$1,0)),\"\")","v":4.0651680500000002E-2},{"$f":"IFERROR(INDEX('Data Annex'!$K$1:$AN$869,MATCH(Assets!W$46&\"|\"&Assets!$B54,'Data Annex'!$K$1:$K$869,0),MATCH(Assets!W$47,'Data Annex'!$K$1:$AN$1,0)),\"\")","v":3.8094138700000002E-2},{"$f":"IFERROR(INDEX('Data Annex'!$K$1:$AN$869,MATCH(Assets!X$46&\"|\"&Assets!$B54,'Data Annex'!$K$1:$K$869,0),MATCH(Assets!X$47,'Data Annex'!$K$1:$AN$1,0)),\"\")","v":3.6735791800000001E-2},{"$f":"IFERROR(INDEX('Data Annex'!$K$1:$AN$869,MATCH(Assets!Y$46&\"|\"&Assets!$B54,'Data Annex'!$K$1:$K$869,0),MATCH(Assets!Y$47,'Data Annex'!$K$1:$AN$1,0)),\"\")","v":7.7166643399999998E-2},{"$f":"IFERROR(INDEX('Data Annex'!$K$1:$AN$869,MATCH(Assets!Z$46&\"|\"&Assets!$B54,'Data Annex'!$K$1:$K$869,0),MATCH(Assets!Z$47,'Data Annex'!$K$1:$AN$1,0)),\"\")","v":7.2526282600000005E-2},{"$f":"IFERROR(INDEX('Data Annex'!$K$1:$AN$869,MATCH(Assets!AA$46&\"|\"&Assets!$B54,'Data Annex'!$K$1:$K$869,0),MATCH(Assets!AA$47,'Data Annex'!$K$1:$AN$1,0)),\"\")","v":6.9604577000000001E-2},{"$f":"IFERROR(INDEX('Data Annex'!$K$1:$AN$869,MATCH(Assets!AB$46&\"|\"&Assets!$B54,'Data Annex'!$K$1:$K$869,0),MATCH(Assets!AB$47,'Data Annex'!$K$1:$AN$1,0)),\"\")","v":6.12273308E-2}]
[null,"BG",null,"BG",null,{"$f":"IFERROR(INDEX('Data Annex'!$K$1:$AN$869,MATCH(Assets!F$46&\"|\"&Assets!$B55,'Data Annex'!$K$1:$K$869,0),MATCH(Assets!F$47,'Data Annex'!$K$1:$AN$1,0)),\"\")","v":33.884591471999997},{"$f":"IFERROR(INDEX('Data Annex'!$K$1:$AN$869,MATCH(Assets!G$46&\"|\"&Assets!$B55,'Data Annex'!$K$1:$K$869,0),MATCH(Assets!G$47,'Data Annex'!$K$1:$AN$1,0)),\"\")","v":34.063715104000003},{"$f":"IFERROR(INDEX('Data Annex'!$K$1:$AN$869,MATCH(Assets!H$46&\"|\"&Assets!$B55,'Data Annex'!$K$1:$K$869,0),MATCH(Assets!H$47,'Data Annex'!$K$1:$AN$1,0)),\"\")","v":35.171793127999997},{"$f":"IFERROR(INDEX('Data Annex'!$K$1:$AN$869,MATCH(Assets!I$46&\"|\"&Assets!$B55,'Data Annex'!$K$1:$K$869,0),MATCH(Assets!I$47,'Data Annex'!$K$1:$AN$1,0)),\"\")","v":36.595421311000003},{"$f":"IFERROR(INDEX('Data Annex'!$K$1:$AN$869,MATCH(Assets!J$46&\"|\"&Assets!$B55,'Data Annex'!$K$1:$K$869,0),MATCH(Assets!J$47,'Data Annex'!$K$1:$AN$1,0)),\"\")","v":32.141012373000002},{"$f":"IFERROR(INDEX('Data Annex'!$K$1:$AN$869,MATCH(Assets!K$46&\"|\"&Assets!$B55,'Data Annex'!$K$1:$K$869,0),MATCH(Assets!K$47,'Data Annex'!$K$1:$AN$1,0)),\"\")","v":32.465793026},{"$f":"IFERROR(INDEX('Data Annex'!$K$1:$AN$869,MATCH(Assets!L$46&\"|\"&Assets!$B55,'Data Annex'!$K$1:$K$869,0),MATCH(Assets!L$47,'Data Annex'!$K$1:$AN$1,0)),\"\")","v":33.573616934},{"$f":"IFERROR(INDEX('Data Annex'!$K$1:$AN$869,MATCH(Assets!M$46&\"|\"&Assets!$B55,'Data Annex'!$K$1:$K$869,0),MATCH(Assets!M$47,'Data Annex'!$K$1:$AN$1,0)),\"\")","v":35.037578996000001},0.95743067686635053,"BG",null,{"$f":"IFERROR(INDEX('Data Annex'!$K$1:$AN$869,MATCH(Assets!Q$46&\"|\"&Assets!$B55,'Data Annex'!$K$1:$K$869,0),MATCH(Assets!Q$47,'Data Annex'!$K$1:$AN$1,0)),\"\")","v":0.87155389429999996},{"$f":"IFERROR(INDEX('Data Annex'!$K$1:$AN$869,MATCH(Assets!R$46&\"|\"&Assets!$B55,'Data Annex'!$K$1:$K$869,0),MATCH(Assets!R$47,'Data Annex'!$K$1:$AN$1,0)),\"\")","v":0.87487357980000002},{"$f":"IFERROR(INDEX('Data Annex'!$K$1:$AN$869,MATCH(Assets!S$46&\"|\"&Assets!$B55,'Data Annex'!$K$1:$K$869,0),MATCH(Assets!S$47,'Data Annex'!$K$1:$AN$1,0)),\"\")","v":0.87876840749999996},{"$f":"IFERROR(INDEX('Data Annex'!$K$1:$AN$869,MATCH(Assets!T$46&\"|\"&Assets!$B55,'Data Annex'!$K$1:$K$869,0),MATCH(Assets!T$47,'Data Annex'!$K$1:$AN$1,0)),\"\")","v":0.88303039920000004},{"$f":"IFERROR(INDEX('Data Annex'!$K$1:$AN$869,MATCH(Assets!U$46&\"|\"&Assets!$B55,'Data Annex'!$K$1:$K$869,0),MATCH(Assets!U$47,'Data Annex'!$K$1:$AN$1,0)),\"\")","v":0.1165408173},{"$f":"IFERROR(INDEX('Data Annex'!$K$1:$AN$869,MATCH(Assets!V$46&\"|\"&Assets!$B55,'Data Annex'!$K$1:$K$869,0),MATCH(Assets!V$47,'Data Annex'!$K$1:$AN$1,0)),\"\")","v":0.1150578335},{"$f":"IFERROR(INDEX('Data Annex'!$K$1:$AN$869,MATCH(Assets!W$46&\"|\"&Assets!$B55,'Data Annex'!$K$1:$K$869,0),MATCH(Assets!W$47,'Data Annex'!$K$1:$AN$1,0)),\"\")","v":0.1111537377},{"$f":"IFERROR(INDEX('Data Annex'!$K$1:$AN$869,MATCH(Assets!X$46&\"|\"&Assets!$B55,'Data Annex'!$K$1:$K$869,0),MATCH(Assets!X$47,'Data Annex'!$K$1:$AN$1,0)),\"\")","v":0.1067015727},{"$f":"IFERROR(INDEX('Data Annex'!$K$1:$AN$869,MATCH(Assets!Y$46&\"|\"&Assets!$B55,'Data Annex'!$K$1:$K$869,0),MATCH(Assets!Y$47,'Data Annex'!$K$1:$AN$1,0)),\"\")","v":1.19052884E-2},{"$f":"IFERROR(INDEX('Data Annex'!$K$1:$AN$869,MATCH(Assets!Z$46&\"|\"&Assets!$B55,'Data Annex'!$K$1:$K$869,0),MATCH(Assets!Z$47,'Data Annex'!$K$1:$AN$1,0)),\"\")","v":1.00685867E-2},{"$f":"IFERROR(INDEX('Data Annex'!$K$1:$AN$869,MATCH(Assets!AA$46&\"|\"&Assets!$B55,'Data Annex'!$K$1:$K$869,0),MATCH(Assets!AA$47,'Data Annex'!$K$1:$AN$1,0)),\"\")","v":1.0077854799999999E-2},{"$f":"IFERROR(INDEX('Data Annex'!$K$1:$AN$869,MATCH(Assets!AB$46&\"|\"&Assets!$B55,'Data Annex'!$K$1:$K$869,0),MATCH(Assets!AB$47,'Data Annex'!$K$1:$AN$1,0)),\"\")","v":1.02680281E-2}]
[null,"CY",null,"CY",null,{"$f":"IFERROR(INDEX('Data Annex'!$K$1:$AN$869,MATCH(Assets!F$46&\"|\"&Assets!$B56,'Data Annex'!$K$1:$K$869,0),MATCH(Assets!F$47,'Data Annex'!$K$1:$AN$1,0)),\"\")","v":35.332267999999999},{"$f":"IFERROR(INDEX('Data Annex'!$K$1:$AN$869,MATCH(Assets!G$46&\"|\"&Assets!$B56,'Data Annex'!$K$1:$K$869,0),MATCH(Assets!G$47,'Data Annex'!$K$1:$AN$1,0)),\"\")","v":36.309713387000002},{"$f":"IFERROR(INDEX('Data Annex'!$K$1:$AN$869,MATCH(Assets!H$46&\"|\"&Assets!$B56,'Data Annex'!$K$1:$K$869,0),MATCH(Assets!H$47,'Data Annex'!$K$1:$AN$1,0)),\"\")","v":36.278815870000003},{"$f":"IFERROR(INDEX('Data Annex'!$K$1:$AN$869,MATCH(Assets!I$46&\"|\"&Assets!$B56,'Data Annex'!$K$1:$K$869,0),MATCH(Assets!I$47,'Data Annex'!$K$1:$AN$1,0)),\"\")","v":36.355875629000003},{"$f":"IFERROR(INDEX('Data Annex'!$K$1:$AN$869,MATCH(Assets!J$46&\"|\"&Assets!$B56,'Data Annex'!$K$1:$K$869,0),MATCH(Assets!J$47,'Data Annex'!$K$1:$AN$1,0)),\"\")","v":32.356458000000003},{"$f":"IFERROR(INDEX('Data Annex'!$K$1:$AN$869,MATCH(Assets!K$46&\"|\"&Assets!$B56,'Data Annex'!$K$1:$K$869,0),MATCH(Assets!K$47,'Data Annex'!$K$1:$AN$1,0)),\"\")","v":33.041248566},{"$f":"IFERROR(INDEX('Data Annex'!$K$1:$AN$869,MATCH(Assets!L$46&\"|\"&Assets!$B56,'Data Annex'!$K$1:$K$869,0),MATCH(Assets!L$47,'Data Annex'!$K$1:$AN$1,0)),\"\")","v":32.956627339999997},{"$f":"IFERROR(INDEX('Data Annex'!$K$1:$AN$869,MATCH(Assets!M$46&\"|\"&Assets!$B56,'Data Annex'!$K$1:$K$869,0),MATCH(Assets!M$47,'Data Annex'!$K$1:$AN$1,0)),\"\")","v":32.921453393999997},0.90553322741976627,"CY",null,{"$f":"IFERROR(INDEX('Data Annex'!$K$1:$AN$869,MATCH(Assets!Q$46&\"|\"&Assets!$B56,'Data Annex'!$K$1:$K$869,0),MATCH(Assets!Q$47,'Data Annex'!$K$1:$AN$1,0)),\"\")","v":0.9483834417},{"$f":"IFERROR(INDEX('Data Annex'!$K$1:$AN$869,MATCH(Assets!R$46&\"|\"&Assets!$B56,'Data Annex'!$K$1:$K$869,0),MATCH(Assets!R$47,'Data Annex'!$K$1:$AN$1,0)),\"\")","v":0.95436733060000001},{"$f":"IFERROR(INDEX('Data Annex'!$K$1:$AN$869,MATCH(Assets!S$46&\"|\"&Assets!$B56,'Data Annex'!$K$1:$K$869,0),MATCH(Assets!S$47,'Data Annex'!$K$1:$AN$1,0)),\"\")","v":0.95579184699999997},{"$f":"IFERROR(INDEX('Data Annex'!$K$1:$AN$869,MATCH(Assets!T$46&\"|\"&Assets!$B56,'Data Annex'!$K$1:$K$869,0),MATCH(Assets!T$47,'Data Annex'!$K$1:$AN$1,0)),\"\")","v":0.96115456720000003},{"$f":"IFERROR(INDEX('Data Annex'!$K$1:$AN$869,MATCH(Assets!U$46&\"|\"&Assets!$B56,'Data Annex'!$K$1:$K$869,0),MATCH(Assets!U$47,'Data Annex'!$K$1:$AN$1,0)),\"\")","v":4.11619529E-2},{"$f":"IFERROR(INDEX('Data Annex'!$K$1:$AN$869,MATCH(Assets!V$46&\"|\"&Assets!$B56,'Data Annex'!$K$1:$K$869,0),MATCH(Assets!V$47,'Data Annex'!$K$1:$AN$1,0)),\"\")","v":3.5152481899999997E-2},{"$f":"IFERROR(INDEX('Data Annex'!$K$1:$AN$869,MATCH(Assets!W$46&\"|\"&Assets!$B56,'Data Annex'!$K$1:$K$869,0),MATCH(Assets!W$47,'Data Annex'!$K$1:$AN$1,0)),\"\")","v":3.3532698899999998E-2},{"$f":"IFERROR(INDEX('Data Annex'!$K$1:$AN$869,MATCH(Assets!X$46&\"|\"&Assets!$B56,'Data Annex'!$K$1:$K$869,0),MATCH(Assets!X$47,'Data Annex'!$K$1:$AN$1,0)),\"\")","v":2.82086665E-2},{"$f":"IFERROR(INDEX('Data Annex'!$K$1:$AN$869,MATCH(Assets!Y$46&\"|\"&Assets!$B56,'Data Annex'!$K$1:$K$869,0),MATCH(Assets!Y$47,'Data Annex'!$K$1:$AN$1,0)),\"\")","v":1.0454605400000001E-2},{"$f":"IFERROR(INDEX('Data Annex'!$K$1:$AN$869,MATCH(Assets!Z$46&\"|\"&Assets!$B56,'Data Annex'!$K$1:$K$869,0),MATCH(Assets!Z$47,'Data Annex'!$K$1:$AN$1,0)),\"\")","v":1.04801876E-2},{"$f":"IFERROR(INDEX('Data Annex'!$K$1:$AN$869,MATCH(Assets!AA$46&\"|\"&Assets!$B56,'Data Annex'!$K$1:$K$869,0),MATCH(Assets!AA$47,'Data Annex'!$K$1:$AN$1,0)),\"\")","v":1.06754541E-2},{"$f":"IFERROR(INDEX('Data Annex'!$K$1:$AN$869,MATCH(Assets!AB$46&\"|\"&Assets!$B56,'Data Annex'!$K$1:$K$869,0),MATCH(Assets!AB$47,'Data Annex'!$K$1:$AN$1,0)),\"\")","v":1.0636766299999999E-2}]
[null,"CZ",null,"CZ",null,{"$f":"IFERROR(INDEX('Data Annex'!$K$1:$AN$869,MATCH(Assets!F$46&\"|\"&Assets!$B57,'Data Annex'!$K$1:$K$869,0),MATCH(Assets!F$47,'Data Annex'!$K$1:$AN$1,0)),\"\")","v":172.85260441},{"$f":"IFERROR(INDEX('Data Annex'!$K$1:$AN$869,MATCH(Assets!G$46&\"|\"&Assets!$B57,'Data Annex'!$K$1:$K$869,0),MATCH(Assets!G$47,'Data Annex'!$K$1:$AN$1,0)),\"\")","v":174.42904172999999},{"$f":"IFERROR(INDEX('Data Annex'!$K$1:$AN$869,MATCH(Assets!H$46&\"|\"&Assets!$B57,'Data Annex'!$K$1:$K$869,0),MATCH(Assets!H$47,'Data Annex'!$K$1:$AN$1,0)),\"\")","v":171.77142555},{"$f":"IFERROR(INDEX('Data Annex'!$K$1:$AN$869,MATCH(Assets!I$46&\"|\"&Assets!$B57,'Data Annex'!$K$1:$K$869,0),MATCH(Assets!I$47,'Data Annex'!$K$1:$AN$1,0)),\"\")","v":170.00108212999999},{"$f":"IFERROR(INDEX('Data Annex'!$K$1:$AN$869,MATCH(Assets!J$46&\"|\"&Assets!$B57,'Data Annex'!$K$1:$K$869,0),MATCH(Assets!J$47,'Data Annex'!$K$1:$AN$1,0)),\"\")","v":169.60082399999999},{"$f":"IFERROR(INDEX('Data Annex'!$K$1:$AN$869,MATCH(Assets!K$46&\"|\"&Assets!$B57,'Data Annex'!$K$1:$K$869,0),MATCH(Assets!K$47,'Data Annex'!$K$1:$AN$1,0)),\"\")","v":171.02770747},{"$f":"IFERROR(INDEX('Data Annex'!$K$1:$AN$869,MATCH(Assets!L$46&\"|\"&Assets!$B57,'Data Annex'!$K$1:$K$869,0),MATCH(Assets!L$47,'Data Annex'!$K$1:$AN$1,0)),\"\")","v":168.45515415},{"$f":"IFERROR(INDEX('Data Annex'!$K$1:$AN$869,MATCH(Assets!M$46&\"|\"&Assets!$B57,'Data Annex'!$K$1:$K$869,0),MATCH(Assets!M$47,'Data Annex'!$K$1:$AN$1,0)),\"\")","v":166.63248755000001},0.98018486389737203,"CZ",null,{"$f":"IFERROR(INDEX('Data Annex'!$K$1:$AN$869,MATCH(Assets!Q$46&\"|\"&Assets!$B57,'Data Annex'!$K$1:$K$869,0),MATCH(Assets!Q$47,'Data Annex'!$K$1:$AN$1,0)),\"\")","v":0.94894899389999998},{"$f":"IFERROR(INDEX('Data Annex'!$K$1:$AN$869,MATCH(Assets!R$46&\"|\"&Assets!$B57,'Data Annex'!$K$1:$K$869,0),MATCH(Assets!R$47,'Data Annex'!$K$1:$AN$1,0)),\"\")","v":0.94127993470000004},{"$f":"IFERROR(INDEX('Data Annex'!$K$1:$AN$869,MATCH(Assets!S$46&\"|\"&Assets!$B57,'Data Annex'!$K$1:$K$869,0),MATCH(Assets!S$47,'Data Annex'!$K$1:$AN$1,0)),\"\")","v":0.94510836519999997},{"$f":"IFERROR(INDEX('Data Annex'!$K$1:$AN$869,MATCH(Assets!T$46&\"|\"&Assets!$B57,'Data Annex'!$K$1:$K$869,0),MATCH(Assets!T$47,'Data Annex'!$K$1:$AN$1,0)),\"\")","v":0.95724004679999997},{"$f":"IFERROR(INDEX('Data Annex'!$K$1:$AN$869,MATCH(Assets!U$46&\"|\"&Assets!$B57,'Data Annex'!$K$1:$K$869,0),MATCH(Assets!U$47,'Data Annex'!$K$1:$AN$1,0)),\"\")","v":1.6243105000000001E-2},{"$f":"IFERROR(INDEX('Data Annex'!$K$1:$AN$869,MATCH(Assets!V$46&\"|\"&Assets!$B57,'Data Annex'!$K$1:$K$869,0),MATCH(Assets!V$47,'Data Annex'!$K$1:$AN$1,0)),\"\")","v":2.27793656E-2},{"$f":"IFERROR(INDEX('Data Annex'!$K$1:$AN$869,MATCH(Assets!W$46&\"|\"&Assets!$B57,'Data Annex'!$K$1:$K$869,0),MATCH(Assets!W$47,'Data Annex'!$K$1:$AN$1,0)),\"\")","v":2.1149242200000001E-2},{"$f":"IFERROR(INDEX('Data Annex'!$K$1:$AN$869,MATCH(Assets!X$46&\"|\"&Assets!$B57,'Data Annex'!$K$1:$K$869,0),MATCH(Assets!X$47,'Data Annex'!$K$1:$AN$1,0)),\"\")","v":1.9068046799999998E-2},{"$f":"IFERROR(INDEX('Data Annex'!$K$1:$AN$869,MATCH(Assets!Y$46&\"|\"&Assets!$B57,'Data Annex'!$K$1:$K$869,0),MATCH(Assets!Y$47,'Data Annex'!$K$1:$AN$1,0)),\"\")","v":3.4807901099999997E-2},{"$f":"IFERROR(INDEX('Data Annex'!$K$1:$AN$869,MATCH(Assets!Z$46&\"|\"&Assets!$B57,'Data Annex'!$K$1:$K$869,0),MATCH(Assets!Z$47,'Data Annex'!$K$1:$AN$1,0)),\"\")","v":3.5940699700000002E-2},{"$f":"IFERROR(INDEX('Data Annex'!$K$1:$AN$869,MATCH(Assets!AA$46&\"|\"&Assets!$B57,'Data Annex'!$K$1:$K$869,0),MATCH(Assets!AA$47,'Data Annex'!$K$1:$AN$1,0)),\"\")","v":3.3742392599999997E-2},{"$f":"IFERROR(INDEX('Data Annex'!$K$1:$AN$869,MATCH(Assets!AB$46&\"|\"&Assets!$B57,'Data Annex'!$K$1:$K$869,0),MATCH(Assets!AB$47,'Data Annex'!$K$1:$AN$1,0)),\"\")","v":2.3691906400000001E-2}]
[null,"DE",null,"DE",null,{"$f":"IFERROR(INDEX('Data Annex'!$K$1:$AN$869,MATCH(Assets!F$46&\"|\"&Assets!$B58,'Data Annex'!$K$1:$K$869,0),MATCH(Assets!F$47,'Data Annex'!$K$1:$AN$1,0)),\"\")","v":3940.6092984000002},{"$f":"IFERROR(INDEX('Data Annex'!$K$1:$AN$869,MATCH(Assets!G$46&\"|\"&Assets!$B58,'Data Annex'!$K$1:$K$869,0),MATCH(Assets!G$47,'Data Annex'!$K$1:$AN$1,0)),\"\")","v":3938.4998925999998},{"$f":"IFERROR(INDEX('Data Annex'!$K$1:$AN$869,MATCH(Assets!H$46&\"|\"&Assets!$B58,'Data Annex'!$K$1:$K$869,0),MATCH(Assets!H$47,'Data Annex'!$K$1:$AN$1,0)),\"\")","v":3915.7163179999998},{"$f":"IFERROR(INDEX('Data Annex'!$K$1:$AN$869,MATCH(Assets!I$46&\"|\"&Assets!$B58,'Data Annex'!$K$1:$K$869,0),MATCH(Assets!I$47,'Data Annex'!$K$1:$AN$1,0)),\"\")","v":3742.6817704999999},{"$f":"IFERROR(INDEX('Data Annex'!$K$1:$AN$869,MATCH(Assets!J$46&\"|\"&Assets!$B58,'Data Annex'!$K$1:$K$869,0),MATCH(Assets!J$47,'Data Annex'!$K$1:$AN$1,0)),\"\")","v":3834.1913260000001},{"$f":"IFERROR(INDEX('Data Annex'!$K$1:$AN$869,MATCH(Assets!K$46&\"|\"&Assets!$B58,'Data Annex'!$K$1:$K$869,0),MATCH(Assets!K$47,'Data Annex'!$K$1:$AN$1,0)),\"\")","v":3836.154822},{"$f":"IFERROR(INDEX('Data Annex'!$K$1:$AN$869,MATCH(Assets!L$46&\"|\"&Assets!$B58,'Data Annex'!$K$1:$K$869,0),MATCH(Assets!L$47,'Data Annex'!$K$1:$AN$1,0)),\"\")","v":3814.5248878000002},{"$f":"IFERROR(INDEX('Data Annex'!$K$1:$AN$869,MATCH(Assets!M$46&\"|\"&Assets!$B58,'Data Annex'!$K$1:$K$869,0),MATCH(Assets!M$47,'Data Annex'!$K$1:$AN$1,0)),\"\")","v":3642.9342775},0.97334865769614332,"DE",null,{"$f":"IFERROR(INDEX('Data Annex'!$K$1:$AN$869,MATCH(Assets!Q$46&\"|\"&Assets!$B58,'Data Annex'!$K$1:$K$869,0),MATCH(Assets!Q$47,'Data Annex'!$K$1:$AN$1,0)),\"\")","v":0.68226923799999994},{"$f":"IFERROR(INDEX('Data Annex'!$K$1:$AN$869,MATCH(Assets!R$46&\"|\"&Assets!$B58,'Data Annex'!$K$1:$K$869,0),MATCH(Assets!R$47,'Data Annex'!$K$1:$AN$1,0)),\"\")","v":0.69670627090000004},{"$f":"IFERROR(INDEX('Data Annex'!$K$1:$AN$869,MATCH(Assets!S$46&\"|\"&Assets!$B58,'Data Annex'!$K$1:$K$869,0),MATCH(Assets!S$47,'Data Annex'!$K$1:$AN$1,0)),\"\")","v":0.70482123279999997},{"$f":"IFERROR(INDEX('Data Annex'!$K$1:$AN$869,MATCH(Assets!T$46&\"|\"&Assets!$B58,'Data Annex'!$K$1:$K$869,0),MATCH(Assets!T$47,'Data Annex'!$K$1:$AN$1,0)),\"\")","v":0.70166307380000004},{"$f":"IFERROR(INDEX('Data Annex'!$K$1:$AN$869,MATCH(Assets!U$46&\"|\"&Assets!$B58,'Data Annex'!$K$1:$K$869,0),MATCH(Assets!U$47,'Data Annex'!$K$1:$AN$1,0)),\"\")","v":5.9557502700000001E-2},{"$f":"IFERROR(INDEX('Data Annex'!$K$1:$AN$869,MATCH(Assets!V$46&\"|\"&Assets!$B58,'Data Annex'!$K$1:$K$869,0),MATCH(Assets!V$47,'Data Annex'!$K$1:$AN$1,0)),\"\")","v":6.2323124100000002E-2},{"$f":"IFERROR(INDEX('Data Annex'!$K$1:$AN$869,MATCH(Assets!W$46&\"|\"&Assets!$B58,'Data Annex'!$K$1:$K$869,0),MATCH(Assets!W$47,'Data Annex'!$K$1:$AN$1,0)),\"\")","v":6.4245717699999996E-2},{"$f":"IFERROR(INDEX('Data Annex'!$K$1:$AN$869,MATCH(Assets!X$46&\"|\"&Assets!$B58,'Data Annex'!$K$1:$K$869,0),MATCH(Assets!X$47,'Data Annex'!$K$1:$AN$1,0)),\"\")","v":6.7394537800000001E-2},{"$f":"IFERROR(INDEX('Data Annex'!$K$1:$AN$869,MATCH(Assets!Y$46&\"|\"&Assets!$B58,'Data Annex'!$K$1:$K$869,0),MATCH(Assets!Y$47,'Data Annex'!$K$1:$AN$1,0)),\"\")","v":0.25841737409999999},{"$f":"IFERROR(INDEX('Data Annex'!$K$1:$AN$869,MATCH(Assets!Z$46&\"|\"&Assets!$B58,'Data Annex'!$K$1:$K$869,0),MATCH(Assets!Z$47,'Data Annex'!$K$1:$AN$1,0)),\"\")","v":0.24121301000000001},{"$f":"IFERROR(INDEX('Data Annex'!$K$1:$AN$869,MATCH(Assets!AA$46&\"|\"&Assets!$B58,'Data Annex'!$K$1:$K$869,0),MATCH(Assets!AA$47,'Data Annex'!$K$1:$AN$1,0)),\"\")","v":0.23117524580000001},{"$f":"IFERROR(INDEX('Data Annex'!$K$1:$AN$869,MATCH(Assets!AB$46&\"|\"&Assets!$B58,'Data Annex'!$K$1:$K$869,0),MATCH(Assets!AB$47,'Data Annex'!$K$1:$AN$1,0)),\"\")","v":0.2309423884}]
[null,"DK",null,"DK",null,{"$f":"IFERROR(INDEX('Data Annex'!$K$1:$AN$869,MATCH(Assets!F$46&\"|\"&Assets!$B59,'Data Annex'!$K$1:$K$869,0),MATCH(Assets!F$47,'Data Annex'!$K$1:$AN$1,0)),\"\")","v":789.75714937999999},{"$f":"IFERROR(INDEX('Data Annex'!$K$1:$AN$869,MATCH(Assets!G$46&\"|\"&Assets!$B59,'Data Annex'!$K$1:$K$869,0),MATCH(Assets!G$47,'Data Annex'!$K$1:$AN$1,0)),\"\")","v":791.26170910999997},{"$f":"IFERROR(INDEX('Data Annex'!$K$1:$AN$869,MATCH(Assets!H$46&\"|\"&Assets!$B59,'Data Annex'!$K$1:$K$869,0),MATCH(Assets!H$47,'Data Annex'!$K$1:$AN$1,0)),\"\")","v":794.26935909999997},{"$f":"IFERROR(INDEX('Data Annex'!$K$1:$AN$869,MATCH(Assets!I$46&\"|\"&Assets!$B59,'Data Annex'!$K$1:$K$869,0),MATCH(Assets!I$47,'Data Annex'!$K$1:$AN$1,0)),\"\")","v":813.54814744999999},{"$f":"IFERROR(INDEX('Data Annex'!$K$1:$AN$869,MATCH(Assets!J$46&\"|\"&Assets!$B59,'Data Annex'!$K$1:$K$869,0),MATCH(Assets!J$47,'Data Annex'!$K$1:$AN$1,0)),\"\")","v":769.53622743999995},{"$f":"IFERROR(INDEX('Data Annex'!$K$1:$AN$869,MATCH(Assets!K$46&\"|\"&Assets!$B59,'Data Annex'!$K$1:$K$869,0),MATCH(Assets!K$47,'Data Annex'!$K$1:$AN$1,0)),\"\")","v":772.45527025000001},{"$f":"IFERROR(INDEX('Data Annex'!$K$1:$AN$869,MATCH(Assets!L$46&\"|\"&Assets!$B59,'Data Annex'!$K$1:$K$869,0),MATCH(Assets!L$47,'Data Annex'!$K$1:$AN$1,0)),\"\")","v":775.31806483000003},{"$f":"IFERROR(INDEX('Data Annex'!$K$1:$AN$869,MATCH(Assets!M$46&\"|\"&Assets!$B59,'Data Annex'!$K$1:$K$869,0),MATCH(Assets!M$47,'Data Annex'!$K$1:$AN$1,0)),\"\")","v":794.43701798999996},0.9765089140453429,"DK",null,{"$f":"IFERROR(INDEX('Data Annex'!$K$1:$AN$869,MATCH(Assets!Q$46&\"|\"&Assets!$B59,'Data Annex'!$K$1:$K$869,0),MATCH(Assets!Q$47,'Data Annex'!$K$1:$AN$1,0)),\"\")","v":0.31332018890000002},{"$f":"IFERROR(INDEX('Data Annex'!$K$1:$AN$869,MATCH(Assets!R$46&\"|\"&Assets!$B59,'Data Annex'!$K$1:$K$869,0),MATCH(Assets!R$47,'Data Annex'!$K$1:$AN$1,0)),\"\")","v":0.31671520980000001},{"$f":"IFERROR(INDEX('Data Annex'!$K$1:$AN$869,MATCH(Assets!S$46&\"|\"&Assets!$B59,'Data Annex'!$K$1:$K$869,0),MATCH(Assets!S$47,'Data Annex'!$K$1:$AN$1,0)),\"\")","v":0.31491745659999998},{"$f":"IFERROR(INDEX('Data Annex'!$K$1:$AN$869,MATCH(Assets!T$46&\"|\"&Assets!$B59,'Data Annex'!$K$1:$K$869,0),MATCH(Assets!T$47,'Data Annex'!$K$1:$AN$1,0)),\"\")","v":0.33321688890000001},{"$f":"IFERROR(INDEX('Data Annex'!$K$1:$AN$869,MATCH(Assets!U$46&\"|\"&Assets!$B59,'Data Annex'!$K$1:$K$869,0),MATCH(Assets!U$47,'Data Annex'!$K$1:$AN$1,0)),\"\")","v":1.9129258199999999E-2},{"$f":"IFERROR(INDEX('Data Annex'!$K$1:$AN$869,MATCH(Assets!V$46&\"|\"&Assets!$B59,'Data Annex'!$K$1:$K$869,0),MATCH(Assets!V$47,'Data Annex'!$K$1:$AN$1,0)),\"\")","v":2.0043518E-2},{"$f":"IFERROR(INDEX('Data Annex'!$K$1:$AN$869,MATCH(Assets!W$46&\"|\"&Assets!$B59,'Data Annex'!$K$1:$K$869,0),MATCH(Assets!W$47,'Data Annex'!$K$1:$AN$1,0)),\"\")","v":2.04615101E-2},{"$f":"IFERROR(INDEX('Data Annex'!$K$1:$AN$869,MATCH(Assets!X$46&\"|\"&Assets!$B59,'Data Annex'!$K$1:$K$869,0),MATCH(Assets!X$47,'Data Annex'!$K$1:$AN$1,0)),\"\")","v":1.9782775200000002E-2},{"$f":"IFERROR(INDEX('Data Annex'!$K$1:$AN$869,MATCH(Assets!Y$46&\"|\"&Assets!$B59,'Data Annex'!$K$1:$K$869,0),MATCH(Assets!Y$47,'Data Annex'!$K$1:$AN$1,0)),\"\")","v":0.66755055299999999},{"$f":"IFERROR(INDEX('Data Annex'!$K$1:$AN$869,MATCH(Assets!Z$46&\"|\"&Assets!$B59,'Data Annex'!$K$1:$K$869,0),MATCH(Assets!Z$47,'Data Annex'!$K$1:$AN$1,0)),\"\")","v":0.66324127229999996},{"$f":"IFERROR(INDEX('Data Annex'!$K$1:$AN$869,MATCH(Assets!AA$46&\"|\"&Assets!$B59,'Data Annex'!$K$1:$K$869,0),MATCH(Assets!AA$47,'Data Annex'!$K$1:$AN$1,0)),\"\")","v":0.66462103319999999},{"$f":"IFERROR(INDEX('Data Annex'!$K$1:$AN$869,MATCH(Assets!AB$46&\"|\"&Assets!$B59,'Data Annex'!$K$1:$K$869,0),MATCH(Assets!AB$47,'Data Annex'!$K$1:$AN$1,0)),\"\")","v":0.64700033589999995}]
[null,"EE",null,"EE",null,{"$f":"IFERROR(INDEX('Data Annex'!$K$1:$AN$869,MATCH(Assets!F$46&\"|\"&Assets!$B60,'Data Annex'!$K$1:$K$869,0),MATCH(Assets!F$47,'Data Annex'!$K$1:$AN$1,0)),\"\")","v":35.172326009000003},{"$f":"IFERROR(INDEX('Data Annex'!$K$1:$AN$869,MATCH(Assets!G$46&\"|\"&Assets!$B60,'Data Annex'!$K$1:$K$869,0),MATCH(Assets!G$47,'Data Annex'!$K$1:$AN$1,0)),\"\")","v":38.190914399999997},{"$f":"IFERROR(INDEX('Data Annex'!$K$1:$AN$869,MATCH(Assets!H$46&\"|\"&Assets!$B60,'Data Annex'!$K$1:$K$869,0),MATCH(Assets!H$47,'Data Annex'!$K$1:$AN$1,0)),\"\")","v":39.463891252000003},{"$f":"IFERROR(INDEX('Data Annex'!$K$1:$AN$869,MATCH(Assets!I$46&\"|\"&Assets!$B60,'Data Annex'!$K$1:$K$869,0),MATCH(Assets!I$47,'Data Annex'!$K$1:$AN$1,0)),\"\")","v":41.523291342},{"$f":"IFERROR(INDEX('Data Annex'!$K$1:$AN$869,MATCH(Assets!J$46&\"|\"&Assets!$B60,'Data Annex'!$K$1:$K$869,0),MATCH(Assets!J$47,'Data Annex'!$K$1:$AN$1,0)),\"\")","v":34.775452784000002},{"$f":"IFERROR(INDEX('Data Annex'!$K$1:$AN$869,MATCH(Assets!K$46&\"|\"&Assets!$B60,'Data Annex'!$K$1:$K$869,0),MATCH(Assets!K$47,'Data Annex'!$K$1:$AN$1,0)),\"\")","v":37.784011049999997},{"$f":"IFERROR(INDEX('Data Annex'!$K$1:$AN$869,MATCH(Assets!L$46&\"|\"&Assets!$B60,'Data Annex'!$K$1:$K$869,0),MATCH(Assets!L$47,'Data Annex'!$K$1:$AN$1,0)),\"\")","v":39.045148204},{"$f":"IFERROR(INDEX('Data Annex'!$K$1:$AN$869,MATCH(Assets!M$46&\"|\"&Assets!$B60,'Data Annex'!$K$1:$K$869,0),MATCH(Assets!M$47,'Data Annex'!$K$1:$AN$1,0)),\"\")","v":41.032921444999999},0.98819048584176172,"EE",null,{"$f":"IFERROR(INDEX('Data Annex'!$K$1:$AN$869,MATCH(Assets!Q$46&\"|\"&Assets!$B60,'Data Annex'!$K$1:$K$869,0),MATCH(Assets!Q$47,'Data Annex'!$K$1:$AN$1,0)),\"\")","v":0.9754661},{"$f":"IFERROR(INDEX('Data Annex'!$K$1:$AN$869,MATCH(Assets!R$46&\"|\"&Assets!$B60,'Data Annex'!$K$1:$K$869,0),MATCH(Assets!R$47,'Data Annex'!$K$1:$AN$1,0)),\"\")","v":0.91732764600000005},{"$f":"IFERROR(INDEX('Data Annex'!$K$1:$AN$869,MATCH(Assets!S$46&\"|\"&Assets!$B60,'Data Annex'!$K$1:$K$869,0),MATCH(Assets!S$47,'Data Annex'!$K$1:$AN$1,0)),\"\")","v":0.91902562129999998},{"$f":"IFERROR(INDEX('Data Annex'!$K$1:$AN$869,MATCH(Assets!T$46&\"|\"&Assets!$B60,'Data Annex'!$K$1:$K$869,0),MATCH(Assets!T$47,'Data Annex'!$K$1:$AN$1,0)),\"\")","v":0.92772367870000005},{"$f":"IFERROR(INDEX('Data Annex'!$K$1:$AN$869,MATCH(Assets!U$46&\"|\"&Assets!$B60,'Data Annex'!$K$1:$K$869,0),MATCH(Assets!U$47,'Data Annex'!$K$1:$AN$1,0)),\"\")","v":1.6446599999999999E-5},{"$f":"IFERROR(INDEX('Data Annex'!$K$1:$AN$869,MATCH(Assets!V$46&\"|\"&Assets!$B60,'Data Annex'!$K$1:$K$869,0),MATCH(Assets!V$47,'Data Annex'!$K$1:$AN$1,0)),\"\")","v":2.0970100000000001E-5},{"$f":"IFERROR(INDEX('Data Annex'!$K$1:$AN$869,MATCH(Assets!W$46&\"|\"&Assets!$B60,'Data Annex'!$K$1:$K$869,0),MATCH(Assets!W$47,'Data Annex'!$K$1:$AN$1,0)),\"\")","v":2.02928E-5},{"$f":"IFERROR(INDEX('Data Annex'!$K$1:$AN$869,MATCH(Assets!X$46&\"|\"&Assets!$B60,'Data Annex'!$K$1:$K$869,0),MATCH(Assets!X$47,'Data Annex'!$K$1:$AN$1,0)),\"\")","v":3.4106761999999999E-6},{"$f":"IFERROR(INDEX('Data Annex'!$K$1:$AN$869,MATCH(Assets!Y$46&\"|\"&Assets!$B60,'Data Annex'!$K$1:$K$869,0),MATCH(Assets!Y$47,'Data Annex'!$K$1:$AN$1,0)),\"\")","v":2.45174534E-2},{"$f":"IFERROR(INDEX('Data Annex'!$K$1:$AN$869,MATCH(Assets!Z$46&\"|\"&Assets!$B60,'Data Annex'!$K$1:$K$869,0),MATCH(Assets!Z$47,'Data Annex'!$K$1:$AN$1,0)),\"\")","v":8.2651383800000006E-2},{"$f":"IFERROR(INDEX('Data Annex'!$K$1:$AN$869,MATCH(Assets!AA$46&\"|\"&Assets!$B60,'Data Annex'!$K$1:$K$869,0),MATCH(Assets!AA$47,'Data Annex'!$K$1:$AN$1,0)),\"\")","v":8.09540859E-2},{"$f":"IFERROR(INDEX('Data Annex'!$K$1:$AN$869,MATCH(Assets!AB$46&\"|\"&Assets!$B60,'Data Annex'!$K$1:$K$869,0),MATCH(Assets!AB$47,'Data Annex'!$K$1:$AN$1,0)),\"\")","v":7.2272910600000004E-2}]
[null,"ES",null,"ES",null,{"$f":"IFERROR(INDEX('Data Annex'!$K$1:$AN$869,MATCH(Assets!F$46&\"|\"&Assets!$B61,'Data Annex'!$K$1:$K$869,0),MATCH(Assets!F$47,'Data Annex'!$K$1:$AN$1,0)),\"\")","v":3418.5878112},{"$f":"IFERROR(INDEX('Data Annex'!$K$1:$AN$869,MATCH(Assets!G$46&\"|\"&Assets!$B61,'Data Annex'!$K$1:$K$869,0),MATCH(Assets!G$47,'Data Annex'!$K$1:$AN$1,0)),\"\")","v":3558.8868432999998},{"$f":"IFERROR(INDEX('Data Annex'!$K$1:$AN$869,MATCH(Assets!H$46&\"|\"&Assets!$B61,'Data Annex'!$K$1:$K$869,0),MATCH(Assets!H$47,'Data Annex'!$K$1:$AN$1,0)),\"\")","v":3477.4753399000001},{"$f":"IFERROR(INDEX('Data Annex'!$K$1:$AN$869,MATCH(Assets!I$46&\"|\"&Assets!$B61,'Data Annex'!$K$1:$K$869,0),MATCH(Assets!I$47,'Data Annex'!$K$1:$AN$1,0)),\"\")","v":3476.0980485999999},{"$f":"IFERROR(INDEX('Data Annex'!$K$1:$AN$869,MATCH(Assets!J$46&\"|\"&Assets!$B61,'Data Annex'!$K$1:$K$869,0),MATCH(Assets!J$47,'Data Annex'!$K$1:$AN$1,0)),\"\")","v":3156.6853009000001},{"$f":"IFERROR(INDEX('Data Annex'!$K$1:$AN$869,MATCH(Assets!K$46&\"|\"&Assets!$B61,'Data Annex'!$K$1:$K$869,0),MATCH(Assets!K$47,'Data Annex'!$K$1:$AN$1,0)),\"\")","v":3317.3725094000001},{"$f":"IFERROR(INDEX('Data Annex'!$K$1:$AN$869,MATCH(Assets!L$46&\"|\"&Assets!$B61,'Data Annex'!$K$1:$K$869,0),MATCH(Assets!L$47,'Data Annex'!$K$1:$AN$1,0)),\"\")","v":3238.5876343999998},{"$f":"IFERROR(INDEX('Data Annex'!$K$1:$AN$869,MATCH(Assets!M$46&\"|\"&Assets!$B61,'Data Annex'!$K$1:$K$869,0),MATCH(Assets!M$47,'Data Annex'!$K$1:$AN$1,0)),\"\")","v":2976.1586708},0.85617799877614187,"ES",null,{"$f":"IFERROR(INDEX('Data Annex'!$K$1:$AN$869,MATCH(Assets!Q$46&\"|\"&Assets!$B61,'Data Annex'!$K$1:$K$869,0),MATCH(Assets!Q$47,'Data Annex'!$K$1:$AN$1,0)),\"\")","v":0.8199395491},{"$f":"IFERROR(INDEX('Data Annex'!$K$1:$AN$869,MATCH(Assets!R$46&\"|\"&Assets!$B61,'Data Annex'!$K$1:$K$869,0),MATCH(Assets!R$47,'Data Annex'!$K$1:$AN$1,0)),\"\")","v":0.81565487240000001},{"$f":"IFERROR(INDEX('Data Annex'!$K$1:$AN$869,MATCH(Assets!S$46&\"|\"&Assets!$B61,'Data Annex'!$K$1:$K$869,0),MATCH(Assets!S$47,'Data Annex'!$K$1:$AN$1,0)),\"\")","v":0.82888459879999998},{"$f":"IFERROR(INDEX('Data Annex'!$K$1:$AN$869,MATCH(Assets!T$46&\"|\"&Assets!$B61,'Data Annex'!$K$1:$K$869,0),MATCH(Assets!T$47,'Data Annex'!$K$1:$AN$1,0)),\"\")","v":0.82771001649999998},{"$f":"IFERROR(INDEX('Data Annex'!$K$1:$AN$869,MATCH(Assets!U$46&\"|\"&Assets!$B61,'Data Annex'!$K$1:$K$869,0),MATCH(Assets!U$47,'Data Annex'!$K$1:$AN$1,0)),\"\")","v":6.2079777900000001E-2},{"$f":"IFERROR(INDEX('Data Annex'!$K$1:$AN$869,MATCH(Assets!V$46&\"|\"&Assets!$B61,'Data Annex'!$K$1:$K$869,0),MATCH(Assets!V$47,'Data Annex'!$K$1:$AN$1,0)),\"\")","v":6.6523878100000003E-2},{"$f":"IFERROR(INDEX('Data Annex'!$K$1:$AN$869,MATCH(Assets!W$46&\"|\"&Assets!$B61,'Data Annex'!$K$1:$K$869,0),MATCH(Assets!W$47,'Data Annex'!$K$1:$AN$1,0)),\"\")","v":6.6060690699999994E-2},{"$f":"IFERROR(INDEX('Data Annex'!$K$1:$AN$869,MATCH(Assets!X$46&\"|\"&Assets!$B61,'Data Annex'!$K$1:$K$869,0),MATCH(Assets!X$47,'Data Annex'!$K$1:$AN$1,0)),\"\")","v":6.8919868400000001E-2},{"$f":"IFERROR(INDEX('Data Annex'!$K$1:$AN$869,MATCH(Assets!Y$46&\"|\"&Assets!$B61,'Data Annex'!$K$1:$K$869,0),MATCH(Assets!Y$47,'Data Annex'!$K$1:$AN$1,0)),\"\")","v":0.1179806731},{"$f":"IFERROR(INDEX('Data Annex'!$K$1:$AN$869,MATCH(Assets!Z$46&\"|\"&Assets!$B61,'Data Annex'!$K$1:$K$869,0),MATCH(Assets!Z$47,'Data Annex'!$K$1:$AN$1,0)),\"\")","v":0.1178212495},{"$f":"IFERROR(INDEX('Data Annex'!$K$1:$AN$869,MATCH(Assets!AA$46&\"|\"&Assets!$B61,'Data Annex'!$K$1:$K$869,0),MATCH(Assets!AA$47,'Data Annex'!$K$1:$AN$1,0)),\"\")","v":0.1050547104},{"$f":"IFERROR(INDEX('Data Annex'!$K$1:$AN$869,MATCH(Assets!AB$46&\"|\"&Assets!$B61,'Data Annex'!$K$1:$K$869,0),MATCH(Assets!AB$47,'Data Annex'!$K$1:$AN$1,0)),\"\")","v":0.1033701152}]
[null,"FI",null,"FI",null,{"$f":"IFERROR(INDEX('Data Annex'!$K$1:$AN$869,MATCH(Assets!F$46&\"|\"&Assets!$B62,'Data Annex'!$K$1:$K$869,0),MATCH(Assets!F$47,'Data Annex'!$K$1:$AN$1,0)),\"\")","v":742.43371930000001},{"$f":"IFERROR(INDEX('Data Annex'!$K$1:$AN$869,MATCH(Assets!G$46&\"|\"&Assets!$B62,'Data Annex'!$K$1:$K$869,0),MATCH(Assets!G$47,'Data Annex'!$K$1:$AN$1,0)),\"\")","v":737.76861245999999},{"$f":"IFERROR(INDEX('Data Annex'!$K$1:$AN$869,MATCH(Assets!H$46&\"|\"&Assets!$B62,'Data Annex'!$K$1:$K$869,0),MATCH(Assets!H$47,'Data Annex'!$K$1:$AN$1,0)),\"\")","v":724.14440488000002},{"$f":"IFERROR(INDEX('Data Annex'!$K$1:$AN$869,MATCH(Assets!I$46&\"|\"&Assets!$B62,'Data Annex'!$K$1:$K$869,0),MATCH(Assets!I$47,'Data Annex'!$K$1:$AN$1,0)),\"\")","v":698.21225156000003},{"$f":"IFERROR(INDEX('Data Annex'!$K$1:$AN$869,MATCH(Assets!J$46&\"|\"&Assets!$B62,'Data Annex'!$K$1:$K$869,0),MATCH(Assets!J$47,'Data Annex'!$K$1:$AN$1,0)),\"\")","v":723.75295374999996},{"$f":"IFERROR(INDEX('Data Annex'!$K$1:$AN$869,MATCH(Assets!K$46&\"|\"&Assets!$B62,'Data Annex'!$K$1:$K$869,0),MATCH(Assets!K$47,'Data Annex'!$K$1:$AN$1,0)),\"\")","v":720.70555158000002},{"$f":"IFERROR(INDEX('Data Annex'!$K$1:$AN$869,MATCH(Assets!L$46&\"|\"&Assets!$B62,'Data Annex'!$K$1:$K$869,0),MATCH(Assets!L$47,'Data Annex'!$K$1:$AN$1,0)),\"\")","v":707.55892066000001},{"$f":"IFERROR(INDEX('Data Annex'!$K$1:$AN$869,MATCH(Assets!M$46&\"|\"&Assets!$B62,'Data Annex'!$K$1:$K$869,0),MATCH(Assets!M$47,'Data Annex'!$K$1:$AN$1,0)),\"\")","v":681.27492124000003},0.97574186032663091,"FI",null,{"$f":"IFERROR(INDEX('Data Annex'!$K$1:$AN$869,MATCH(Assets!Q$46&\"|\"&Assets!$B62,'Data Annex'!$K$1:$K$869,0),MATCH(Assets!Q$47,'Data Annex'!$K$1:$AN$1,0)),\"\")","v":0.61712104160000003},{"$f":"IFERROR(INDEX('Data Annex'!$K$1:$AN$869,MATCH(Assets!R$46&\"|\"&Assets!$B62,'Data Annex'!$K$1:$K$869,0),MATCH(Assets!R$47,'Data Annex'!$K$1:$AN$1,0)),\"\")","v":0.63938783239999997},{"$f":"IFERROR(INDEX('Data Annex'!$K$1:$AN$869,MATCH(Assets!S$46&\"|\"&Assets!$B62,'Data Annex'!$K$1:$K$869,0),MATCH(Assets!S$47,'Data Annex'!$K$1:$AN$1,0)),\"\")","v":0.64965711599999998},{"$f":"IFERROR(INDEX('Data Annex'!$K$1:$AN$869,MATCH(Assets!T$46&\"|\"&Assets!$B62,'Data Annex'!$K$1:$K$869,0),MATCH(Assets!T$47,'Data Annex'!$K$1:$AN$1,0)),\"\")","v":0.67286218659999997},{"$f":"IFERROR(INDEX('Data Annex'!$K$1:$AN$869,MATCH(Assets!U$46&\"|\"&Assets!$B62,'Data Annex'!$K$1:$K$869,0),MATCH(Assets!U$47,'Data Annex'!$K$1:$AN$1,0)),\"\")","v":6.6309322800000001E-2},{"$f":"IFERROR(INDEX('Data Annex'!$K$1:$AN$869,MATCH(Assets!V$46&\"|\"&Assets!$B62,'Data Annex'!$K$1:$K$869,0),MATCH(Assets!V$47,'Data Annex'!$K$1:$AN$1,0)),\"\")","v":6.9256411700000006E-2},{"$f":"IFERROR(INDEX('Data Annex'!$K$1:$AN$869,MATCH(Assets!W$46&\"|\"&Assets!$B62,'Data Annex'!$K$1:$K$869,0),MATCH(Assets!W$47,'Data Annex'!$K$1:$AN$1,0)),\"\")","v":6.98190058E-2},{"$f":"IFERROR(INDEX('Data Annex'!$K$1:$AN$869,MATCH(Assets!X$46&\"|\"&Assets!$B62,'Data Annex'!$K$1:$K$869,0),MATCH(Assets!X$47,'Data Annex'!$K$1:$AN$1,0)),\"\")","v":7.1248211199999995E-2},{"$f":"IFERROR(INDEX('Data Annex'!$K$1:$AN$869,MATCH(Assets!Y$46&\"|\"&Assets!$B62,'Data Annex'!$K$1:$K$869,0),MATCH(Assets!Y$47,'Data Annex'!$K$1:$AN$1,0)),\"\")","v":0.3165696355},{"$f":"IFERROR(INDEX('Data Annex'!$K$1:$AN$869,MATCH(Assets!Z$46&\"|\"&Assets!$B62,'Data Annex'!$K$1:$K$869,0),MATCH(Assets!Z$47,'Data Annex'!$K$1:$AN$1,0)),\"\")","v":0.29135575590000001},{"$f":"IFERROR(INDEX('Data Annex'!$K$1:$AN$869,MATCH(Assets!AA$46&\"|\"&Assets!$B62,'Data Annex'!$K$1:$K$869,0),MATCH(Assets!AA$47,'Data Annex'!$K$1:$AN$1,0)),\"\")","v":0.28052387820000002},{"$f":"IFERROR(INDEX('Data Annex'!$K$1:$AN$869,MATCH(Assets!AB$46&\"|\"&Assets!$B62,'Data Annex'!$K$1:$K$869,0),MATCH(Assets!AB$47,'Data Annex'!$K$1:$AN$1,0)),\"\")","v":0.25588960220000001}]
[null,"FR",null,"FR",null,{"$f":"IFERROR(INDEX('Data Annex'!$K$1:$AN$869,MATCH(Assets!F$46&\"|\"&Assets!$B63,'Data Annex'!$K$1:$K$869,0),MATCH(Assets!F$47,'Data Annex'!$K$1:$AN$1,0)),\"\")","v":8336.6115114999993},{"$f":"IFERROR(INDEX('Data Annex'!$K$1:$AN$869,MATCH(Assets!G$46&\"|\"&Assets!$B63,'Data Annex'!$K$1:$K$869,0),MATCH(Assets!G$47,'Data Annex'!$K$1:$AN$1,0)),\"\")","v":8445.9795847000005},{"$f":"IFERROR(INDEX('Data Annex'!$K$1:$AN$869,MATCH(Assets!H$46&\"|\"&Assets!$B63,'Data Annex'!$K$1:$K$869,0),MATCH(Assets!H$47,'Data Annex'!$K$1:$AN$1,0)),\"\")","v":8465.0797636000007},{"$f":"IFERROR(INDEX('Data Annex'!$K$1:$AN$869,MATCH(Assets!I$46&\"|\"&Assets!$B63,'Data Annex'!$K$1:$K$869,0),MATCH(Assets!I$47,'Data Annex'!$K$1:$AN$1,0)),\"\")","v":8308.1653272999993},{"$f":"IFERROR(INDEX('Data Annex'!$K$1:$AN$869,MATCH(Assets!J$46&\"|\"&Assets!$B63,'Data Annex'!$K$1:$K$869,0),MATCH(Assets!J$47,'Data Annex'!$K$1:$AN$1,0)),\"\")","v":7727.5720559000001},{"$f":"IFERROR(INDEX('Data Annex'!$K$1:$AN$869,MATCH(Assets!K$46&\"|\"&Assets!$B63,'Data Annex'!$K$1:$K$869,0),MATCH(Assets!K$47,'Data Annex'!$K$1:$AN$1,0)),\"\")","v":7896.4224449000003},{"$f":"IFERROR(INDEX('Data Annex'!$K$1:$AN$869,MATCH(Assets!L$46&\"|\"&Assets!$B63,'Data Annex'!$K$1:$K$869,0),MATCH(Assets!L$47,'Data Annex'!$K$1:$AN$1,0)),\"\")","v":7911.0072153000001},{"$f":"IFERROR(INDEX('Data Annex'!$K$1:$AN$869,MATCH(Assets!M$46&\"|\"&Assets!$B63,'Data Annex'!$K$1:$K$869,0),MATCH(Assets!M$47,'Data Annex'!$K$1:$AN$1,0)),\"\")","v":7755.4758812},0.93347635436623966,"FR",null,{"$f":"IFERROR(INDEX('Data Annex'!$K$1:$AN$869,MATCH(Assets!Q$46&\"|\"&Assets!$B63,'Data Annex'!$K$1:$K$869,0),MATCH(Assets!Q$47,'Data Annex'!$K$1:$AN$1,0)),\"\")","v":0.68300742039999995},{"$f":"IFERROR(INDEX('Data Annex'!$K$1:$AN$869,MATCH(Assets!R$46&\"|\"&Assets!$B63,'Data Annex'!$K$1:$K$869,0),MATCH(Assets!R$47,'Data Annex'!$K$1:$AN$1,0)),\"\")","v":0.71425918359999996},{"$f":"IFERROR(INDEX('Data Annex'!$K$1:$AN$869,MATCH(Assets!S$46&\"|\"&Assets!$B63,'Data Annex'!$K$1:$K$869,0),MATCH(Assets!S$47,'Data Annex'!$K$1:$AN$1,0)),\"\")","v":0.71742668649999997},{"$f":"IFERROR(INDEX('Data Annex'!$K$1:$AN$869,MATCH(Assets!T$46&\"|\"&Assets!$B63,'Data Annex'!$K$1:$K$869,0),MATCH(Assets!T$47,'Data Annex'!$K$1:$AN$1,0)),\"\")","v":0.72852880980000001},{"$f":"IFERROR(INDEX('Data Annex'!$K$1:$AN$869,MATCH(Assets!U$46&\"|\"&Assets!$B63,'Data Annex'!$K$1:$K$869,0),MATCH(Assets!U$47,'Data Annex'!$K$1:$AN$1,0)),\"\")","v":3.90971138E-2},{"$f":"IFERROR(INDEX('Data Annex'!$K$1:$AN$869,MATCH(Assets!V$46&\"|\"&Assets!$B63,'Data Annex'!$K$1:$K$869,0),MATCH(Assets!V$47,'Data Annex'!$K$1:$AN$1,0)),\"\")","v":3.9674823800000002E-2},{"$f":"IFERROR(INDEX('Data Annex'!$K$1:$AN$869,MATCH(Assets!W$46&\"|\"&Assets!$B63,'Data Annex'!$K$1:$K$869,0),MATCH(Assets!W$47,'Data Annex'!$K$1:$AN$1,0)),\"\")","v":3.8314480499999998E-2},{"$f":"IFERROR(INDEX('Data Annex'!$K$1:$AN$869,MATCH(Assets!X$46&\"|\"&Assets!$B63,'Data Annex'!$K$1:$K$869,0),MATCH(Assets!X$47,'Data Annex'!$K$1:$AN$1,0)),\"\")","v":3.8339066300000002E-2},{"$f":"IFERROR(INDEX('Data Annex'!$K$1:$AN$869,MATCH(Assets!Y$46&\"|\"&Assets!$B63,'Data Annex'!$K$1:$K$869,0),MATCH(Assets!Y$47,'Data Annex'!$K$1:$AN$1,0)),\"\")","v":0.27789546570000001},{"$f":"IFERROR(INDEX('Data Annex'!$K$1:$AN$869,MATCH(Assets!Z$46&\"|\"&Assets!$B63,'Data Annex'!$K$1:$K$869,0),MATCH(Assets!Z$47,'Data Annex'!$K$1:$AN$1,0)),\"\")","v":0.2460659925},{"$f":"IFERROR(INDEX('Data Annex'!$K$1:$AN$869,MATCH(Assets!AA$46&\"|\"&Assets!$B63,'Data Annex'!$K$1:$K$869,0),MATCH(Assets!AA$47,'Data Annex'!$K$1:$AN$1,0)),\"\")","v":0.24425883300000001},{"$f":"IFERROR(INDEX('Data Annex'!$K$1:$AN$869,MATCH(Assets!AB$46&\"|\"&Assets!$B63,'Data Annex'!$K$1:$K$869,0),MATCH(Assets!AB$47,'Data Annex'!$K$1:$AN$1,0)),\"\")","v":0.23313212389999999}]
[null,"GR",null,"GR",null,{"$f":"IFERROR(INDEX('Data Annex'!$K$1:$AN$869,MATCH(Assets!F$46&\"|\"&Assets!$B64,'Data Annex'!$K$1:$K$869,0),MATCH(Assets!F$47,'Data Annex'!$K$1:$AN$1,0)),\"\")","v":258.72327875000002},{"$f":"IFERROR(INDEX('Data Annex'!$K$1:$AN$869,MATCH(Assets!G$46&\"|\"&Assets!$B64,'Data Annex'!$K$1:$K$869,0),MATCH(Assets!G$47,'Data Annex'!$K$1:$AN$1,0)),\"\")","v":270.76268657000003},{"$f":"IFERROR(INDEX('Data Annex'!$K$1:$AN$869,MATCH(Assets!H$46&\"|\"&Assets!$B64,'Data Annex'!$K$1:$K$869,0),MATCH(Assets!H$47,'Data Annex'!$K$1:$AN$1,0)),\"\")","v":274.79467398999998},{"$f":"IFERROR(INDEX('Data Annex'!$K$1:$AN$869,MATCH(Assets!I$46&\"|\"&Assets!$B64,'Data Annex'!$K$1:$K$869,0),MATCH(Assets!I$47,'Data Annex'!$K$1:$AN$1,0)),\"\")","v":282.94880559000001},{"$f":"IFERROR(INDEX('Data Annex'!$K$1:$AN$869,MATCH(Assets!J$46&\"|\"&Assets!$B64,'Data Annex'!$K$1:$K$869,0),MATCH(Assets!J$47,'Data Annex'!$K$1:$AN$1,0)),\"\")","v":215.58473472},{"$f":"IFERROR(INDEX('Data Annex'!$K$1:$AN$869,MATCH(Assets!K$46&\"|\"&Assets!$B64,'Data Annex'!$K$1:$K$869,0),MATCH(Assets!K$47,'Data Annex'!$K$1:$AN$1,0)),\"\")","v":225.08771207999999},{"$f":"IFERROR(INDEX('Data Annex'!$K$1:$AN$869,MATCH(Assets!L$46&\"|\"&Assets!$B64,'Data Annex'!$K$1:$K$869,0),MATCH(Assets!L$47,'Data Annex'!$K$1:$AN$1,0)),\"\")","v":231.84705091000001},{"$f":"IFERROR(INDEX('Data Annex'!$K$1:$AN$869,MATCH(Assets!M$46&\"|\"&Assets!$B64,'Data Annex'!$K$1:$K$869,0),MATCH(Assets!M$47,'Data Annex'!$K$1:$AN$1,0)),\"\")","v":238.08953079},0.84145798139539685,"GR",null,{"$f":"IFERROR(INDEX('Data Annex'!$K$1:$AN$869,MATCH(Assets!Q$46&\"|\"&Assets!$B64,'Data Annex'!$K$1:$K$869,0),MATCH(Assets!Q$47,'Data Annex'!$K$1:$AN$1,0)),\"\")","v":0.87220190470000003},{"$f":"IFERROR(INDEX('Data Annex'!$K$1:$AN$869,MATCH(Assets!R$46&\"|\"&Assets!$B64,'Data Annex'!$K$1:$K$869,0),MATCH(Assets!R$47,'Data Annex'!$K$1:$AN$1,0)),\"\")","v":0.86872294719999998},{"$f":"IFERROR(INDEX('Data Annex'!$K$1:$AN$869,MATCH(Assets!S$46&\"|\"&Assets!$B64,'Data Annex'!$K$1:$K$869,0),MATCH(Assets!S$47,'Data Annex'!$K$1:$AN$1,0)),\"\")","v":0.87951102189999997},{"$f":"IFERROR(INDEX('Data Annex'!$K$1:$AN$869,MATCH(Assets!T$46&\"|\"&Assets!$B64,'Data Annex'!$K$1:$K$869,0),MATCH(Assets!T$47,'Data Annex'!$K$1:$AN$1,0)),\"\")","v":0.87825333400000005},{"$f":"IFERROR(INDEX('Data Annex'!$K$1:$AN$869,MATCH(Assets!U$46&\"|\"&Assets!$B64,'Data Annex'!$K$1:$K$869,0),MATCH(Assets!U$47,'Data Annex'!$K$1:$AN$1,0)),\"\")","v":7.3619292899999994E-2},{"$f":"IFERROR(INDEX('Data Annex'!$K$1:$AN$869,MATCH(Assets!V$46&\"|\"&Assets!$B64,'Data Annex'!$K$1:$K$869,0),MATCH(Assets!V$47,'Data Annex'!$K$1:$AN$1,0)),\"\")","v":7.8135798899999998E-2},{"$f":"IFERROR(INDEX('Data Annex'!$K$1:$AN$869,MATCH(Assets!W$46&\"|\"&Assets!$B64,'Data Annex'!$K$1:$K$869,0),MATCH(Assets!W$47,'Data Annex'!$K$1:$AN$1,0)),\"\")","v":7.0531414599999995E-2},{"$f":"IFERROR(INDEX('Data Annex'!$K$1:$AN$869,MATCH(Assets!X$46&\"|\"&Assets!$B64,'Data Annex'!$K$1:$K$869,0),MATCH(Assets!X$47,'Data Annex'!$K$1:$AN$1,0)),\"\")","v":7.2455998999999993E-2},{"$f":"IFERROR(INDEX('Data Annex'!$K$1:$AN$869,MATCH(Assets!Y$46&\"|\"&Assets!$B64,'Data Annex'!$K$1:$K$869,0),MATCH(Assets!Y$47,'Data Annex'!$K$1:$AN$1,0)),\"\")","v":5.4178802400000003E-2},{"$f":"IFERROR(INDEX('Data Annex'!$K$1:$AN$869,MATCH(Assets!Z$46&\"|\"&Assets!$B64,'Data Annex'!$K$1:$K$869,0),MATCH(Assets!Z$47,'Data Annex'!$K$1:$AN$1,0)),\"\")","v":5.3141253899999998E-2},{"$f":"IFERROR(INDEX('Data Annex'!$K$1:$AN$869,MATCH(Assets!AA$46&\"|\"&Assets!$B64,'Data Annex'!$K$1:$K$869,0),MATCH(Assets!AA$47,'Data Annex'!$K$1:$AN$1,0)),\"\")","v":4.9957563500000003E-2},{"$f":"IFERROR(INDEX('Data Annex'!$K$1:$AN$869,MATCH(Assets!AB$46&\"|\"&Assets!$B64,'Data Annex'!$K$1:$K$869,0),MATCH(Assets!AB$47,'Data Annex'!$K$1:$AN$1,0)),\"\")","v":4.9290667099999998E-2}]
[null,"HR",null,"HR",null,{"$f":"IFERROR(INDEX('Data Annex'!$K$1:$AN$869,MATCH(Assets!F$46&\"|\"&Assets!$B65,'Data Annex'!$K$1:$K$869,0),MATCH(Assets!F$47,'Data Annex'!$K$1:$AN$1,0)),\"\")","v":45.475767443000002},{"$f":"IFERROR(INDEX('Data Annex'!$K$1:$AN$869,MATCH(Assets!G$46&\"|\"&Assets!$B65,'Data Annex'!$K$1:$K$869,0),MATCH(Assets!G$47,'Data Annex'!$K$1:$AN$1,0)),\"\")","v":46.643338518},{"$f":"IFERROR(INDEX('Data Annex'!$K$1:$AN$869,MATCH(Assets!H$46&\"|\"&Assets!$B65,'Data Annex'!$K$1:$K$869,0),MATCH(Assets!H$47,'Data Annex'!$K$1:$AN$1,0)),\"\")","v":46.694201964000001},{"$f":"IFERROR(INDEX('Data Annex'!$K$1:$AN$869,MATCH(Assets!I$46&\"|\"&Assets!$B65,'Data Annex'!$K$1:$K$869,0),MATCH(Assets!I$47,'Data Annex'!$K$1:$AN$1,0)),\"\")","v":47.767641836000003},{"$f":"IFERROR(INDEX('Data Annex'!$K$1:$AN$869,MATCH(Assets!J$46&\"|\"&Assets!$B65,'Data Annex'!$K$1:$K$869,0),MATCH(Assets!J$47,'Data Annex'!$K$1:$AN$1,0)),\"\")","v":44.362113311999998},{"$f":"IFERROR(INDEX('Data Annex'!$K$1:$AN$869,MATCH(Assets!K$46&\"|\"&Assets!$B65,'Data Annex'!$K$1:$K$869,0),MATCH(Assets!K$47,'Data Annex'!$K$1:$AN$1,0)),\"\")","v":45.495302569000003},{"$f":"IFERROR(INDEX('Data Annex'!$K$1:$AN$869,MATCH(Assets!L$46&\"|\"&Assets!$B65,'Data Annex'!$K$1:$K$869,0),MATCH(Assets!L$47,'Data Annex'!$K$1:$AN$1,0)),\"\")","v":45.552772382999997},{"$f":"IFERROR(INDEX('Data Annex'!$K$1:$AN$869,MATCH(Assets!M$46&\"|\"&Assets!$B65,'Data Annex'!$K$1:$K$869,0),MATCH(Assets!M$47,'Data Annex'!$K$1:$AN$1,0)),\"\")","v":46.588464440999999},0.97531430588412849,"HR",null,{"$f":"IFERROR(INDEX('Data Annex'!$K$1:$AN$869,MATCH(Assets!Q$46&\"|\"&Assets!$B65,'Data Annex'!$K$1:$K$869,0),MATCH(Assets!Q$47,'Data Annex'!$K$1:$AN$1,0)),\"\")","v":0.8839805785},{"$f":"IFERROR(INDEX('Data Annex'!$K$1:$AN$869,MATCH(Assets!R$46&\"|\"&Assets!$B65,'Data Annex'!$K$1:$K$869,0),MATCH(Assets!R$47,'Data Annex'!$K$1:$AN$1,0)),\"\")","v":0.8886704138},{"$f":"IFERROR(INDEX('Data Annex'!$K$1:$AN$869,MATCH(Assets!S$46&\"|\"&Assets!$B65,'Data Annex'!$K$1:$K$869,0),MATCH(Assets!S$47,'Data Annex'!$K$1:$AN$1,0)),\"\")","v":0.88907939449999995},{"$f":"IFERROR(INDEX('Data Annex'!$K$1:$AN$869,MATCH(Assets!T$46&\"|\"&Assets!$B65,'Data Annex'!$K$1:$K$869,0),MATCH(Assets!T$47,'Data Annex'!$K$1:$AN$1,0)),\"\")","v":0.89273636700000003},{"$f":"IFERROR(INDEX('Data Annex'!$K$1:$AN$869,MATCH(Assets!U$46&\"|\"&Assets!$B65,'Data Annex'!$K$1:$K$869,0),MATCH(Assets!U$47,'Data Annex'!$K$1:$AN$1,0)),\"\")","v":0.10243606700000001},{"$f":"IFERROR(INDEX('Data Annex'!$K$1:$AN$869,MATCH(Assets!V$46&\"|\"&Assets!$B65,'Data Annex'!$K$1:$K$869,0),MATCH(Assets!V$47,'Data Annex'!$K$1:$AN$1,0)),\"\")","v":9.9607129799999999E-2},{"$f":"IFERROR(INDEX('Data Annex'!$K$1:$AN$869,MATCH(Assets!W$46&\"|\"&Assets!$B65,'Data Annex'!$K$1:$K$869,0),MATCH(Assets!W$47,'Data Annex'!$K$1:$AN$1,0)),\"\")","v":0.1024800096},{"$f":"IFERROR(INDEX('Data Annex'!$K$1:$AN$869,MATCH(Assets!X$46&\"|\"&Assets!$B65,'Data Annex'!$K$1:$K$869,0),MATCH(Assets!X$47,'Data Annex'!$K$1:$AN$1,0)),\"\")","v":9.9528303200000001E-2},{"$f":"IFERROR(INDEX('Data Annex'!$K$1:$AN$869,MATCH(Assets!Y$46&\"|\"&Assets!$B65,'Data Annex'!$K$1:$K$869,0),MATCH(Assets!Y$47,'Data Annex'!$K$1:$AN$1,0)),\"\")","v":1.35833545E-2},{"$f":"IFERROR(INDEX('Data Annex'!$K$1:$AN$869,MATCH(Assets!Z$46&\"|\"&Assets!$B65,'Data Annex'!$K$1:$K$869,0),MATCH(Assets!Z$47,'Data Annex'!$K$1:$AN$1,0)),\"\")","v":1.1722456500000001E-2},{"$f":"IFERROR(INDEX('Data Annex'!$K$1:$AN$869,MATCH(Assets!AA$46&\"|\"&Assets!$B65,'Data Annex'!$K$1:$K$869,0),MATCH(Assets!AA$47,'Data Annex'!$K$1:$AN$1,0)),\"\")","v":8.4405959999999999E-3},{"$f":"IFERROR(INDEX('Data Annex'!$K$1:$AN$869,MATCH(Assets!AB$46&\"|\"&Assets!$B65,'Data Annex'!$K$1:$K$869,0),MATCH(Assets!AB$47,'Data Annex'!$K$1:$AN$1,0)),\"\")","v":7.7353296999999998E-3}]
[null,"HU",null,"HU",null,{"$f":"IFERROR(INDEX('Data Annex'!$K$1:$AN$869,MATCH(Assets!F$46&\"|\"&Assets!$B66,'Data Annex'!$K$1:$K$869,0),MATCH(Assets!F$47,'Data Annex'!$K$1:$AN$1,0)),\"\")","v":80.520618712000001},{"$f":"IFERROR(INDEX('Data Annex'!$K$1:$AN$869,MATCH(Assets!G$46&\"|\"&Assets!$B66,'Data Annex'!$K$1:$K$869,0),MATCH(Assets!G$47,'Data Annex'!$K$1:$AN$1,0)),\"\")","v":82.355895763999996},{"$f":"IFERROR(INDEX('Data Annex'!$K$1:$AN$869,MATCH(Assets!H$46&\"|\"&Assets!$B66,'Data Annex'!$K$1:$K$869,0),MATCH(Assets!H$47,'Data Annex'!$K$1:$AN$1,0)),\"\")","v":83.654955904999994},{"$f":"IFERROR(INDEX('Data Annex'!$K$1:$AN$869,MATCH(Assets!I$46&\"|\"&Assets!$B66,'Data Annex'!$K$1:$K$869,0),MATCH(Assets!I$47,'Data Annex'!$K$1:$AN$1,0)),\"\")","v":87.563910143000001},{"$f":"IFERROR(INDEX('Data Annex'!$K$1:$AN$869,MATCH(Assets!J$46&\"|\"&Assets!$B66,'Data Annex'!$K$1:$K$869,0),MATCH(Assets!J$47,'Data Annex'!$K$1:$AN$1,0)),\"\")","v":77.055305224999998},{"$f":"IFERROR(INDEX('Data Annex'!$K$1:$AN$869,MATCH(Assets!K$46&\"|\"&Assets!$B66,'Data Annex'!$K$1:$K$869,0),MATCH(Assets!K$47,'Data Annex'!$K$1:$AN$1,0)),\"\")","v":78.752788038000006},{"$f":"IFERROR(INDEX('Data Annex'!$K$1:$AN$869,MATCH(Assets!L$46&\"|\"&Assets!$B66,'Data Annex'!$K$1:$K$869,0),MATCH(Assets!L$47,'Data Annex'!$K$1:$AN$1,0)),\"\")","v":80.220520644000004},{"$f":"IFERROR(INDEX('Data Annex'!$K$1:$AN$869,MATCH(Assets!M$46&\"|\"&Assets!$B66,'Data Annex'!$K$1:$K$869,0),MATCH(Assets!M$47,'Data Annex'!$K$1:$AN$1,0)),\"\")","v":83.977895545999999},0.95904688825403406,"HU",null,{"$f":"IFERROR(INDEX('Data Annex'!$K$1:$AN$869,MATCH(Assets!Q$46&\"|\"&Assets!$B66,'Data Annex'!$K$1:$K$869,0),MATCH(Assets!Q$47,'Data Annex'!$K$1:$AN$1,0)),\"\")","v":0.86192829969999996},{"$f":"IFERROR(INDEX('Data Annex'!$K$1:$AN$869,MATCH(Assets!R$46&\"|\"&Assets!$B66,'Data Annex'!$K$1:$K$869,0),MATCH(Assets!R$47,'Data Annex'!$K$1:$AN$1,0)),\"\")","v":0.88515991999999999},{"$f":"IFERROR(INDEX('Data Annex'!$K$1:$AN$869,MATCH(Assets!S$46&\"|\"&Assets!$B66,'Data Annex'!$K$1:$K$869,0),MATCH(Assets!S$47,'Data Annex'!$K$1:$AN$1,0)),\"\")","v":0.88561381340000001},{"$f":"IFERROR(INDEX('Data Annex'!$K$1:$AN$869,MATCH(Assets!T$46&\"|\"&Assets!$B66,'Data Annex'!$K$1:$K$869,0),MATCH(Assets!T$47,'Data Annex'!$K$1:$AN$1,0)),\"\")","v":0.86578197560000003},{"$f":"IFERROR(INDEX('Data Annex'!$K$1:$AN$869,MATCH(Assets!U$46&\"|\"&Assets!$B66,'Data Annex'!$K$1:$K$869,0),MATCH(Assets!U$47,'Data Annex'!$K$1:$AN$1,0)),\"\")","v":0.1068820323},{"$f":"IFERROR(INDEX('Data Annex'!$K$1:$AN$869,MATCH(Assets!V$46&\"|\"&Assets!$B66,'Data Annex'!$K$1:$K$869,0),MATCH(Assets!V$47,'Data Annex'!$K$1:$AN$1,0)),\"\")","v":8.9191603800000005E-2},{"$f":"IFERROR(INDEX('Data Annex'!$K$1:$AN$869,MATCH(Assets!W$46&\"|\"&Assets!$B66,'Data Annex'!$K$1:$K$869,0),MATCH(Assets!W$47,'Data Annex'!$K$1:$AN$1,0)),\"\")","v":9.0834310400000007E-2},{"$f":"IFERROR(INDEX('Data Annex'!$K$1:$AN$869,MATCH(Assets!X$46&\"|\"&Assets!$B66,'Data Annex'!$K$1:$K$869,0),MATCH(Assets!X$47,'Data Annex'!$K$1:$AN$1,0)),\"\")","v":8.7515429199999994E-2},{"$f":"IFERROR(INDEX('Data Annex'!$K$1:$AN$869,MATCH(Assets!Y$46&\"|\"&Assets!$B66,'Data Annex'!$K$1:$K$869,0),MATCH(Assets!Y$47,'Data Annex'!$K$1:$AN$1,0)),\"\")","v":3.1189668E-2},{"$f":"IFERROR(INDEX('Data Annex'!$K$1:$AN$869,MATCH(Assets!Z$46&\"|\"&Assets!$B66,'Data Annex'!$K$1:$K$869,0),MATCH(Assets!Z$47,'Data Annex'!$K$1:$AN$1,0)),\"\")","v":2.5648476199999999E-2},{"$f":"IFERROR(INDEX('Data Annex'!$K$1:$AN$869,MATCH(Assets!AA$46&\"|\"&Assets!$B66,'Data Annex'!$K$1:$K$869,0),MATCH(Assets!AA$47,'Data Annex'!$K$1:$AN$1,0)),\"\")","v":2.3551876199999999E-2},{"$f":"IFERROR(INDEX('Data Annex'!$K$1:$AN$869,MATCH(Assets!AB$46&\"|\"&Assets!$B66,'Data Annex'!$K$1:$K$869,0),MATCH(Assets!AB$47,'Data Annex'!$K$1:$AN$1,0)),\"\")","v":4.6702595200000002E-2}]
[null,"IE",null,"IE",null,{"$f":"IFERROR(INDEX('Data Annex'!$K$1:$AN$869,MATCH(Assets!F$46&\"|\"&Assets!$B67,'Data Annex'!$K$1:$K$869,0),MATCH(Assets!F$47,'Data Annex'!$K$1:$AN$1,0)),\"\")","v":276.06073293999998},{"$f":"IFERROR(INDEX('Data Annex'!$K$1:$AN$869,MATCH(Assets!G$46&\"|\"&Assets!$B67,'Data Annex'!$K$1:$K$869,0),MATCH(Assets!G$47,'Data Annex'!$K$1:$AN$1,0)),\"\")","v":275.87596623000002},{"$f":"IFERROR(INDEX('Data Annex'!$K$1:$AN$869,MATCH(Assets!H$46&\"|\"&Assets!$B67,'Data Annex'!$K$1:$K$869,0),MATCH(Assets!H$47,'Data Annex'!$K$1:$AN$1,0)),\"\")","v":279.81049806999999},{"$f":"IFERROR(INDEX('Data Annex'!$K$1:$AN$869,MATCH(Assets!I$46&\"|\"&Assets!$B67,'Data Annex'!$K$1:$K$869,0),MATCH(Assets!I$47,'Data Annex'!$K$1:$AN$1,0)),\"\")","v":285.50255135999998},{"$f":"IFERROR(INDEX('Data Annex'!$K$1:$AN$869,MATCH(Assets!J$46&\"|\"&Assets!$B67,'Data Annex'!$K$1:$K$869,0),MATCH(Assets!J$47,'Data Annex'!$K$1:$AN$1,0)),\"\")","v":260.35546548000002},{"$f":"IFERROR(INDEX('Data Annex'!$K$1:$AN$869,MATCH(Assets!K$46&\"|\"&Assets!$B67,'Data Annex'!$K$1:$K$869,0),MATCH(Assets!K$47,'Data Annex'!$K$1:$AN$1,0)),\"\")","v":260.90068794000001},{"$f":"IFERROR(INDEX('Data Annex'!$K$1:$AN$869,MATCH(Assets!L$46&\"|\"&Assets!$B67,'Data Annex'!$K$1:$K$869,0),MATCH(Assets!L$47,'Data Annex'!$K$1:$AN$1,0)),\"\")","v":265.98464809000001},{"$f":"IFERROR(INDEX('Data Annex'!$K$1:$AN$869,MATCH(Assets!M$46&\"|\"&Assets!$B67,'Data Annex'!$K$1:$K$869,0),MATCH(Assets!M$47,'Data Annex'!$K$1:$AN$1,0)),\"\")","v":272.44650031999998},0.95426993216765632,"IE",null,{"$f":"IFERROR(INDEX('Data Annex'!$K$1:$AN$869,MATCH(Assets!Q$46&\"|\"&Assets!$B67,'Data Annex'!$K$1:$K$869,0),MATCH(Assets!Q$47,'Data Annex'!$K$1:$AN$1,0)),\"\")","v":0.83880128600000003},{"$f":"IFERROR(INDEX('Data Annex'!$K$1:$AN$869,MATCH(Assets!R$46&\"|\"&Assets!$B67,'Data Annex'!$K$1:$K$869,0),MATCH(Assets!R$47,'Data Annex'!$K$1:$AN$1,0)),\"\")","v":0.83227412850000004},{"$f":"IFERROR(INDEX('Data Annex'!$K$1:$AN$869,MATCH(Assets!S$46&\"|\"&Assets!$B67,'Data Annex'!$K$1:$K$869,0),MATCH(Assets!S$47,'Data Annex'!$K$1:$AN$1,0)),\"\")","v":0.84089553589999999},{"$f":"IFERROR(INDEX('Data Annex'!$K$1:$AN$869,MATCH(Assets!T$46&\"|\"&Assets!$B67,'Data Annex'!$K$1:$K$869,0),MATCH(Assets!T$47,'Data Annex'!$K$1:$AN$1,0)),\"\")","v":0.83672244139999996},{"$f":"IFERROR(INDEX('Data Annex'!$K$1:$AN$869,MATCH(Assets!U$46&\"|\"&Assets!$B67,'Data Annex'!$K$1:$K$869,0),MATCH(Assets!U$47,'Data Annex'!$K$1:$AN$1,0)),\"\")","v":0.1158589216},{"$f":"IFERROR(INDEX('Data Annex'!$K$1:$AN$869,MATCH(Assets!V$46&\"|\"&Assets!$B67,'Data Annex'!$K$1:$K$869,0),MATCH(Assets!V$47,'Data Annex'!$K$1:$AN$1,0)),\"\")","v":0.12067460269999999},{"$f":"IFERROR(INDEX('Data Annex'!$K$1:$AN$869,MATCH(Assets!W$46&\"|\"&Assets!$B67,'Data Annex'!$K$1:$K$869,0),MATCH(Assets!W$47,'Data Annex'!$K$1:$AN$1,0)),\"\")","v":0.11374447360000001},{"$f":"IFERROR(INDEX('Data Annex'!$K$1:$AN$869,MATCH(Assets!X$46&\"|\"&Assets!$B67,'Data Annex'!$K$1:$K$869,0),MATCH(Assets!X$47,'Data Annex'!$K$1:$AN$1,0)),\"\")","v":0.1095492314},{"$f":"IFERROR(INDEX('Data Annex'!$K$1:$AN$869,MATCH(Assets!Y$46&\"|\"&Assets!$B67,'Data Annex'!$K$1:$K$869,0),MATCH(Assets!Y$47,'Data Annex'!$K$1:$AN$1,0)),\"\")","v":4.5339792400000002E-2},{"$f":"IFERROR(INDEX('Data Annex'!$K$1:$AN$869,MATCH(Assets!Z$46&\"|\"&Assets!$B67,'Data Annex'!$K$1:$K$869,0),MATCH(Assets!Z$47,'Data Annex'!$K$1:$AN$1,0)),\"\")","v":4.7051268799999997E-2},{"$f":"IFERROR(INDEX('Data Annex'!$K$1:$AN$869,MATCH(Assets!AA$46&\"|\"&Assets!$B67,'Data Annex'!$K$1:$K$869,0),MATCH(Assets!AA$47,'Data Annex'!$K$1:$AN$1,0)),\"\")","v":4.5359990400000001E-2},{"$f":"IFERROR(INDEX('Data Annex'!$K$1:$AN$869,MATCH(Assets!AB$46&\"|\"&Assets!$B67,'Data Annex'!$K$1:$K$869,0),MATCH(Assets!AB$47,'Data Annex'!$K$1:$AN$1,0)),\"\")","v":5.3728327200000002E-2}]
[null,"IS",null,"IS",null,{"$f":"IFERROR(INDEX('Data Annex'!$K$1:$AN$869,MATCH(Assets!F$46&\"|\"&Assets!$B68,'Data Annex'!$K$1:$K$869,0),MATCH(Assets!F$47,'Data Annex'!$K$1:$AN$1,0)),\"\")","v":25.492904935999999},{"$f":"IFERROR(INDEX('Data Annex'!$K$1:$AN$869,MATCH(Assets!G$46&\"|\"&Assets!$B68,'Data Annex'!$K$1:$K$869,0),MATCH(Assets!G$47,'Data Annex'!$K$1:$AN$1,0)),\"\")","v":25.653899288000002},{"$f":"IFERROR(INDEX('Data Annex'!$K$1:$AN$869,MATCH(Assets!H$46&\"|\"&Assets!$B68,'Data Annex'!$K$1:$K$869,0),MATCH(Assets!H$47,'Data Annex'!$K$1:$AN$1,0)),\"\")","v":25.741366066000001},{"$f":"IFERROR(INDEX('Data Annex'!$K$1:$AN$869,MATCH(Assets!I$46&\"|\"&Assets!$B68,'Data Annex'!$K$1:$K$869,0),MATCH(Assets!I$47,'Data Annex'!$K$1:$AN$1,0)),\"\")","v":26.146747374},{"$f":"IFERROR(INDEX('Data Annex'!$K$1:$AN$869,MATCH(Assets!J$46&\"|\"&Assets!$B68,'Data Annex'!$K$1:$K$869,0),MATCH(Assets!J$47,'Data Annex'!$K$1:$AN$1,0)),\"\")","v":24.670831495000002},{"$f":"IFERROR(INDEX('Data Annex'!$K$1:$AN$869,MATCH(Assets!K$46&\"|\"&Assets!$B68,'Data Annex'!$K$1:$K$869,0),MATCH(Assets!K$47,'Data Annex'!$K$1:$AN$1,0)),\"\")","v":24.816080294999999},{"$f":"IFERROR(INDEX('Data Annex'!$K$1:$AN$869,MATCH(Assets!L$46&\"|\"&Assets!$B68,'Data Annex'!$K$1:$K$869,0),MATCH(Assets!L$47,'Data Annex'!$K$1:$AN$1,0)),\"\")","v":24.936001119},{"$f":"IFERROR(INDEX('Data Annex'!$K$1:$AN$869,MATCH(Assets!M$46&\"|\"&Assets!$B68,'Data Annex'!$K$1:$K$869,0),MATCH(Assets!M$47,'Data Annex'!$K$1:$AN$1,0)),\"\")","v":25.525218141},0.97622919500809335,"IS",null,{"$f":"IFERROR(INDEX('Data Annex'!$K$1:$AN$869,MATCH(Assets!Q$46&\"|\"&Assets!$B68,'Data Annex'!$K$1:$K$869,0),MATCH(Assets!Q$47,'Data Annex'!$K$1:$AN$1,0)),\"\")","v":0.88701549700000004},{"$f":"IFERROR(INDEX('Data Annex'!$K$1:$AN$869,MATCH(Assets!R$46&\"|\"&Assets!$B68,'Data Annex'!$K$1:$K$869,0),MATCH(Assets!R$47,'Data Annex'!$K$1:$AN$1,0)),\"\")","v":0.87144926010000001},{"$f":"IFERROR(INDEX('Data Annex'!$K$1:$AN$869,MATCH(Assets!S$46&\"|\"&Assets!$B68,'Data Annex'!$K$1:$K$869,0),MATCH(Assets!S$47,'Data Annex'!$K$1:$AN$1,0)),\"\")","v":0.86546107480000001},{"$f":"IFERROR(INDEX('Data Annex'!$K$1:$AN$869,MATCH(Assets!T$46&\"|\"&Assets!$B68,'Data Annex'!$K$1:$K$869,0),MATCH(Assets!T$47,'Data Annex'!$K$1:$AN$1,0)),\"\")","v":0.86482313050000004},{"$f":"IFERROR(INDEX('Data Annex'!$K$1:$AN$869,MATCH(Assets!U$46&\"|\"&Assets!$B68,'Data Annex'!$K$1:$K$869,0),MATCH(Assets!U$47,'Data Annex'!$K$1:$AN$1,0)),\"\")","v":2.93613616E-2},{"$f":"IFERROR(INDEX('Data Annex'!$K$1:$AN$869,MATCH(Assets!V$46&\"|\"&Assets!$B68,'Data Annex'!$K$1:$K$869,0),MATCH(Assets!V$47,'Data Annex'!$K$1:$AN$1,0)),\"\")","v":3.1683991299999999E-2},{"$f":"IFERROR(INDEX('Data Annex'!$K$1:$AN$869,MATCH(Assets!W$46&\"|\"&Assets!$B68,'Data Annex'!$K$1:$K$869,0),MATCH(Assets!W$47,'Data Annex'!$K$1:$AN$1,0)),\"\")","v":3.7811170499999998E-2},{"$f":"IFERROR(INDEX('Data Annex'!$K$1:$AN$869,MATCH(Assets!X$46&\"|\"&Assets!$B68,'Data Annex'!$K$1:$K$869,0),MATCH(Assets!X$47,'Data Annex'!$K$1:$AN$1,0)),\"\")","v":3.4547786300000001E-2},{"$f":"IFERROR(INDEX('Data Annex'!$K$1:$AN$869,MATCH(Assets!Y$46&\"|\"&Assets!$B68,'Data Annex'!$K$1:$K$869,0),MATCH(Assets!Y$47,'Data Annex'!$K$1:$AN$1,0)),\"\")","v":8.3623141400000003E-2},{"$f":"IFERROR(INDEX('Data Annex'!$K$1:$AN$869,MATCH(Assets!Z$46&\"|\"&Assets!$B68,'Data Annex'!$K$1:$K$869,0),MATCH(Assets!Z$47,'Data Annex'!$K$1:$AN$1,0)),\"\")","v":9.6866748599999997E-2},{"$f":"IFERROR(INDEX('Data Annex'!$K$1:$AN$869,MATCH(Assets!AA$46&\"|\"&Assets!$B68,'Data Annex'!$K$1:$K$869,0),MATCH(Assets!AA$47,'Data Annex'!$K$1:$AN$1,0)),\"\")","v":9.6727754700000002E-2},{"$f":"IFERROR(INDEX('Data Annex'!$K$1:$AN$869,MATCH(Assets!AB$46&\"|\"&Assets!$B68,'Data Annex'!$K$1:$K$869,0),MATCH(Assets!AB$47,'Data Annex'!$K$1:$AN$1,0)),\"\")","v":0.1006290832}]
[null,"IT",null,"IT",null,{"$f":"IFERROR(INDEX('Data Annex'!$K$1:$AN$869,MATCH(Assets!F$46&\"|\"&Assets!$B69,'Data Annex'!$K$1:$K$869,0),MATCH(Assets!F$47,'Data Annex'!$K$1:$AN$1,0)),\"\")","v":2466.60961},{"$f":"IFERROR(INDEX('Data Annex'!$K$1:$AN$869,MATCH(Assets!G$46&\"|\"&Assets!$B69,'Data Annex'!$K$1:$K$869,0),MATCH(Assets!G$47,'Data Annex'!$K$1:$AN$1,0)),\"\")","v":2545.2051809999998},{"$f":"IFERROR(INDEX('Data Annex'!$K$1:$AN$869,MATCH(Assets!H$46&\"|\"&Assets!$B69,'Data Annex'!$K$1:$K$869,0),MATCH(Assets!H$47,'Data Annex'!$K$1:$AN$1,0)),\"\")","v":2582.7067419},{"$f":"IFERROR(INDEX('Data Annex'!$K$1:$AN$869,MATCH(Assets!I$46&\"|\"&Assets!$B69,'Data Annex'!$K$1:$K$869,0),MATCH(Assets!I$47,'Data Annex'!$K$1:$AN$1,0)),\"\")","v":2623.627915},{"$f":"IFERROR(INDEX('Data Annex'!$K$1:$AN$869,MATCH(Assets!J$46&\"|\"&Assets!$B69,'Data Annex'!$K$1:$K$869,0),MATCH(Assets!J$47,'Data Annex'!$K$1:$AN$1,0)),\"\")","v":2320.9511296999999},{"$f":"IFERROR(INDEX('Data Annex'!$K$1:$AN$869,MATCH(Assets!K$46&\"|\"&Assets!$B69,'Data Annex'!$K$1:$K$869,0),MATCH(Assets!K$47,'Data Annex'!$K$1:$AN$1,0)),\"\")","v":2397.1372870999999},{"$f":"IFERROR(INDEX('Data Annex'!$K$1:$AN$869,MATCH(Assets!L$46&\"|\"&Assets!$B69,'Data Annex'!$K$1:$K$869,0),MATCH(Assets!L$47,'Data Annex'!$K$1:$AN$1,0)),\"\")","v":2434.4384039000001},{"$f":"IFERROR(INDEX('Data Annex'!$K$1:$AN$869,MATCH(Assets!M$46&\"|\"&Assets!$B69,'Data Annex'!$K$1:$K$869,0),MATCH(Assets!M$47,'Data Annex'!$K$1:$AN$1,0)),\"\")","v":2452.0754440999999},0.93461249976828364,"IT",null,{"$f":"IFERROR(INDEX('Data Annex'!$K$1:$AN$869,MATCH(Assets!Q$46&\"|\"&Assets!$B69,'Data Annex'!$K$1:$K$869,0),MATCH(Assets!Q$47,'Data Annex'!$K$1:$AN$1,0)),\"\")","v":0.82289618060000003},{"$f":"IFERROR(INDEX('Data Annex'!$K$1:$AN$869,MATCH(Assets!R$46&\"|\"&Assets!$B69,'Data Annex'!$K$1:$K$869,0),MATCH(Assets!R$47,'Data Annex'!$K$1:$AN$1,0)),\"\")","v":0.82767776979999996},{"$f":"IFERROR(INDEX('Data Annex'!$K$1:$AN$869,MATCH(Assets!S$46&\"|\"&Assets!$B69,'Data Annex'!$K$1:$K$869,0),MATCH(Assets!S$47,'Data Annex'!$K$1:$AN$1,0)),\"\")","v":0.83412437210000001},{"$f":"IFERROR(INDEX('Data Annex'!$K$1:$AN$869,MATCH(Assets!T$46&\"|\"&Assets!$B69,'Data Annex'!$K$1:$K$869,0),MATCH(Assets!T$47,'Data Annex'!$K$1:$AN$1,0)),\"\")","v":0.84915928460000001},{"$f":"IFERROR(INDEX('Data Annex'!$K$1:$AN$869,MATCH(Assets!U$46&\"|\"&Assets!$B69,'Data Annex'!$K$1:$K$869,0),MATCH(Assets!U$47,'Data Annex'!$K$1:$AN$1,0)),\"\")","v":9.3069383800000002E-2},{"$f":"IFERROR(INDEX('Data Annex'!$K$1:$AN$869,MATCH(Assets!V$46&\"|\"&Assets!$B69,'Data Annex'!$K$1:$K$869,0),MATCH(Assets!V$47,'Data Annex'!$K$1:$AN$1,0)),\"\")","v":8.9625909599999998E-2},{"$f":"IFERROR(INDEX('Data Annex'!$K$1:$AN$869,MATCH(Assets!W$46&\"|\"&Assets!$B69,'Data Annex'!$K$1:$K$869,0),MATCH(Assets!W$47,'Data Annex'!$K$1:$AN$1,0)),\"\")","v":8.5440265599999995E-2},{"$f":"IFERROR(INDEX('Data Annex'!$K$1:$AN$869,MATCH(Assets!X$46&\"|\"&Assets!$B69,'Data Annex'!$K$1:$K$869,0),MATCH(Assets!X$47,'Data Annex'!$K$1:$AN$1,0)),\"\")","v":7.3817699799999997E-2},{"$f":"IFERROR(INDEX('Data Annex'!$K$1:$AN$869,MATCH(Assets!Y$46&\"|\"&Assets!$B69,'Data Annex'!$K$1:$K$869,0),MATCH(Assets!Y$47,'Data Annex'!$K$1:$AN$1,0)),\"\")","v":8.4034435599999999E-2},{"$f":"IFERROR(INDEX('Data Annex'!$K$1:$AN$869,MATCH(Assets!Z$46&\"|\"&Assets!$B69,'Data Annex'!$K$1:$K$869,0),MATCH(Assets!Z$47,'Data Annex'!$K$1:$AN$1,0)),\"\")","v":8.2696320500000003E-2},{"$f":"IFERROR(INDEX('Data Annex'!$K$1:$AN$869,MATCH(Assets!AA$46&\"|\"&Assets!$B69,'Data Annex'!$K$1:$K$869,0),MATCH(Assets!AA$47,'Data Annex'!$K$1:$AN$1,0)),\"\")","v":8.0435362299999993E-2},{"$f":"IFERROR(INDEX('Data Annex'!$K$1:$AN$869,MATCH(Assets!AB$46&\"|\"&Assets!$B69,'Data Annex'!$K$1:$K$869,0),MATCH(Assets!AB$47,'Data Annex'!$K$1:$AN$1,0)),\"\")","v":7.7023015599999994E-2}]
[null,"LT",null,"LT",null,{"$f":"IFERROR(INDEX('Data Annex'!$K$1:$AN$869,MATCH(Assets!F$46&\"|\"&Assets!$B70,'Data Annex'!$K$1:$K$869,0),MATCH(Assets!F$47,'Data Annex'!$K$1:$AN$1,0)),\"\")","v":22.044844999999999},{"$f":"IFERROR(INDEX('Data Annex'!$K$1:$AN$869,MATCH(Assets!G$46&\"|\"&Assets!$B70,'Data Annex'!$K$1:$K$869,0),MATCH(Assets!G$47,'Data Annex'!$K$1:$AN$1,0)),\"\")","v":23.313285},{"$f":"IFERROR(INDEX('Data Annex'!$K$1:$AN$869,MATCH(Assets!H$46&\"|\"&Assets!$B70,'Data Annex'!$K$1:$K$869,0),MATCH(Assets!H$47,'Data Annex'!$K$1:$AN$1,0)),\"\")","v":25.067413999999999},{"$f":"IFERROR(INDEX('Data Annex'!$K$1:$AN$869,MATCH(Assets!I$46&\"|\"&Assets!$B70,'Data Annex'!$K$1:$K$869,0),MATCH(Assets!I$47,'Data Annex'!$K$1:$AN$1,0)),\"\")","v":27.242588000000001},{"$f":"IFERROR(INDEX('Data Annex'!$K$1:$AN$869,MATCH(Assets!J$46&\"|\"&Assets!$B70,'Data Annex'!$K$1:$K$869,0),MATCH(Assets!J$47,'Data Annex'!$K$1:$AN$1,0)),\"\")","v":21.858896999999999},{"$f":"IFERROR(INDEX('Data Annex'!$K$1:$AN$869,MATCH(Assets!K$46&\"|\"&Assets!$B70,'Data Annex'!$K$1:$K$869,0),MATCH(Assets!K$47,'Data Annex'!$K$1:$AN$1,0)),\"\")","v":23.095372999999999},{"$f":"IFERROR(INDEX('Data Annex'!$K$1:$AN$869,MATCH(Assets!L$46&\"|\"&Assets!$B70,'Data Annex'!$K$1:$K$869,0),MATCH(Assets!L$47,'Data Annex'!$K$1:$AN$1,0)),\"\")","v":24.849712},{"$f":"IFERROR(INDEX('Data Annex'!$K$1:$AN$869,MATCH(Assets!M$46&\"|\"&Assets!$B70,'Data Annex'!$K$1:$K$869,0),MATCH(Assets!M$47,'Data Annex'!$K$1:$AN$1,0)),\"\")","v":27.028701999999999},0.99214883696071743,"LT",null,{"$f":"IFERROR(INDEX('Data Annex'!$K$1:$AN$869,MATCH(Assets!Q$46&\"|\"&Assets!$B70,'Data Annex'!$K$1:$K$869,0),MATCH(Assets!Q$47,'Data Annex'!$K$1:$AN$1,0)),\"\")","v":0.97702820960000003},{"$f":"IFERROR(INDEX('Data Annex'!$K$1:$AN$869,MATCH(Assets!R$46&\"|\"&Assets!$B70,'Data Annex'!$K$1:$K$869,0),MATCH(Assets!R$47,'Data Annex'!$K$1:$AN$1,0)),\"\")","v":0.96845272859999998},{"$f":"IFERROR(INDEX('Data Annex'!$K$1:$AN$869,MATCH(Assets!S$46&\"|\"&Assets!$B70,'Data Annex'!$K$1:$K$869,0),MATCH(Assets!S$47,'Data Annex'!$K$1:$AN$1,0)),\"\")","v":0.970097239},{"$f":"IFERROR(INDEX('Data Annex'!$K$1:$AN$869,MATCH(Assets!T$46&\"|\"&Assets!$B70,'Data Annex'!$K$1:$K$869,0),MATCH(Assets!T$47,'Data Annex'!$K$1:$AN$1,0)),\"\")","v":0.96950353},{"$f":"IFERROR(INDEX('Data Annex'!$K$1:$AN$869,MATCH(Assets!U$46&\"|\"&Assets!$B70,'Data Annex'!$K$1:$K$869,0),MATCH(Assets!U$47,'Data Annex'!$K$1:$AN$1,0)),\"\")","v":3.1771959999999999E-4},{"$f":"IFERROR(INDEX('Data Annex'!$K$1:$AN$869,MATCH(Assets!V$46&\"|\"&Assets!$B70,'Data Annex'!$K$1:$K$869,0),MATCH(Assets!V$47,'Data Annex'!$K$1:$AN$1,0)),\"\")","v":1.5980689999999999E-3},{"$f":"IFERROR(INDEX('Data Annex'!$K$1:$AN$869,MATCH(Assets!W$46&\"|\"&Assets!$B70,'Data Annex'!$K$1:$K$869,0),MATCH(Assets!W$47,'Data Annex'!$K$1:$AN$1,0)),\"\")","v":1.3053672000000001E-3},{"$f":"IFERROR(INDEX('Data Annex'!$K$1:$AN$869,MATCH(Assets!X$46&\"|\"&Assets!$B70,'Data Annex'!$K$1:$K$869,0),MATCH(Assets!X$47,'Data Annex'!$K$1:$AN$1,0)),\"\")","v":1.1258031999999999E-3},{"$f":"IFERROR(INDEX('Data Annex'!$K$1:$AN$869,MATCH(Assets!Y$46&\"|\"&Assets!$B70,'Data Annex'!$K$1:$K$869,0),MATCH(Assets!Y$47,'Data Annex'!$K$1:$AN$1,0)),\"\")","v":2.2654070799999999E-2},{"$f":"IFERROR(INDEX('Data Annex'!$K$1:$AN$869,MATCH(Assets!Z$46&\"|\"&Assets!$B70,'Data Annex'!$K$1:$K$869,0),MATCH(Assets!Z$47,'Data Annex'!$K$1:$AN$1,0)),\"\")","v":2.99492024E-2},{"$f":"IFERROR(INDEX('Data Annex'!$K$1:$AN$869,MATCH(Assets!AA$46&\"|\"&Assets!$B70,'Data Annex'!$K$1:$K$869,0),MATCH(Assets!AA$47,'Data Annex'!$K$1:$AN$1,0)),\"\")","v":2.8597393799999999E-2},{"$f":"IFERROR(INDEX('Data Annex'!$K$1:$AN$869,MATCH(Assets!AB$46&\"|\"&Assets!$B70,'Data Annex'!$K$1:$K$869,0),MATCH(Assets!AB$47,'Data Annex'!$K$1:$AN$1,0)),\"\")","v":2.93706668E-2}]
[null,"LU",null,"LU",null,{"$f":"IFERROR(INDEX('Data Annex'!$K$1:$AN$869,MATCH(Assets!F$46&\"|\"&Assets!$B71,'Data Annex'!$K$1:$K$869,0),MATCH(Assets!F$47,'Data Annex'!$K$1:$AN$1,0)),\"\")","v":231.02555394000001},{"$f":"IFERROR(INDEX('Data Annex'!$K$1:$AN$869,MATCH(Assets!G$46&\"|\"&Assets!$B71,'Data Annex'!$K$1:$K$869,0),MATCH(Assets!G$47,'Data Annex'!$K$1:$AN$1,0)),\"\")","v":221.33513094},{"$f":"IFERROR(INDEX('Data Annex'!$K$1:$AN$869,MATCH(Assets!H$46&\"|\"&Assets!$B71,'Data Annex'!$K$1:$K$869,0),MATCH(Assets!H$47,'Data Annex'!$K$1:$AN$1,0)),\"\")","v":218.72177149000001},{"$f":"IFERROR(INDEX('Data Annex'!$K$1:$AN$869,MATCH(Assets!I$46&\"|\"&Assets!$B71,'Data Annex'!$K$1:$K$869,0),MATCH(Assets!I$47,'Data Annex'!$K$1:$AN$1,0)),\"\")","v":177.26317648},{"$f":"IFERROR(INDEX('Data Annex'!$K$1:$AN$869,MATCH(Assets!J$46&\"|\"&Assets!$B71,'Data Annex'!$K$1:$K$869,0),MATCH(Assets!J$47,'Data Annex'!$K$1:$AN$1,0)),\"\")","v":225.24818984999999},{"$f":"IFERROR(INDEX('Data Annex'!$K$1:$AN$869,MATCH(Assets!K$46&\"|\"&Assets!$B71,'Data Annex'!$K$1:$K$869,0),MATCH(Assets!K$47,'Data Annex'!$K$1:$AN$1,0)),\"\")","v":215.68078731},{"$f":"IFERROR(INDEX('Data Annex'!$K$1:$AN$869,MATCH(Assets!L$46&\"|\"&Assets!$B71,'Data Annex'!$K$1:$K$869,0),MATCH(Assets!L$47,'Data Annex'!$K$1:$AN$1,0)),\"\")","v":212.81720274},{"$f":"IFERROR(INDEX('Data Annex'!$K$1:$AN$869,MATCH(Assets!M$46&\"|\"&Assets!$B71,'Data Annex'!$K$1:$K$869,0),MATCH(Assets!M$47,'Data Annex'!$K$1:$AN$1,0)),\"\")","v":172.21681222999999},0.97153179611125062,"LU",null,{"$f":"IFERROR(INDEX('Data Annex'!$K$1:$AN$869,MATCH(Assets!Q$46&\"|\"&Assets!$B71,'Data Annex'!$K$1:$K$869,0),MATCH(Assets!Q$47,'Data Annex'!$K$1:$AN$1,0)),\"\")","v":0.70325513839999998},{"$f":"IFERROR(INDEX('Data Annex'!$K$1:$AN$869,MATCH(Assets!R$46&\"|\"&Assets!$B71,'Data Annex'!$K$1:$K$869,0),MATCH(Assets!R$47,'Data Annex'!$K$1:$AN$1,0)),\"\")","v":0.72101863249999998},{"$f":"IFERROR(INDEX('Data Annex'!$K$1:$AN$869,MATCH(Assets!S$46&\"|\"&Assets!$B71,'Data Annex'!$K$1:$K$869,0),MATCH(Assets!S$47,'Data Annex'!$K$1:$AN$1,0)),\"\")","v":0.72978931120000001},{"$f":"IFERROR(INDEX('Data Annex'!$K$1:$AN$869,MATCH(Assets!T$46&\"|\"&Assets!$B71,'Data Annex'!$K$1:$K$869,0),MATCH(Assets!T$47,'Data Annex'!$K$1:$AN$1,0)),\"\")","v":0.91842802830000003},{"$f":"IFERROR(INDEX('Data Annex'!$K$1:$AN$869,MATCH(Assets!U$46&\"|\"&Assets!$B71,'Data Annex'!$K$1:$K$869,0),MATCH(Assets!U$47,'Data Annex'!$K$1:$AN$1,0)),\"\")","v":4.86689441E-2},{"$f":"IFERROR(INDEX('Data Annex'!$K$1:$AN$869,MATCH(Assets!V$46&\"|\"&Assets!$B71,'Data Annex'!$K$1:$K$869,0),MATCH(Assets!V$47,'Data Annex'!$K$1:$AN$1,0)),\"\")","v":5.35360826E-2},{"$f":"IFERROR(INDEX('Data Annex'!$K$1:$AN$869,MATCH(Assets!W$46&\"|\"&Assets!$B71,'Data Annex'!$K$1:$K$869,0),MATCH(Assets!W$47,'Data Annex'!$K$1:$AN$1,0)),\"\")","v":5.1931720000000001E-2},{"$f":"IFERROR(INDEX('Data Annex'!$K$1:$AN$869,MATCH(Assets!X$46&\"|\"&Assets!$B71,'Data Annex'!$K$1:$K$869,0),MATCH(Assets!X$47,'Data Annex'!$K$1:$AN$1,0)),\"\")","v":6.3679011499999993E-2},{"$f":"IFERROR(INDEX('Data Annex'!$K$1:$AN$869,MATCH(Assets!Y$46&\"|\"&Assets!$B71,'Data Annex'!$K$1:$K$869,0),MATCH(Assets!Y$47,'Data Annex'!$K$1:$AN$1,0)),\"\")","v":0.24807591749999999},{"$f":"IFERROR(INDEX('Data Annex'!$K$1:$AN$869,MATCH(Assets!Z$46&\"|\"&Assets!$B71,'Data Annex'!$K$1:$K$869,0),MATCH(Assets!Z$47,'Data Annex'!$K$1:$AN$1,0)),\"\")","v":0.22544528489999999},{"$f":"IFERROR(INDEX('Data Annex'!$K$1:$AN$869,MATCH(Assets!AA$46&\"|\"&Assets!$B71,'Data Annex'!$K$1:$K$869,0),MATCH(Assets!AA$47,'Data Annex'!$K$1:$AN$1,0)),\"\")","v":0.21827896869999999},{"$f":"IFERROR(INDEX('Data Annex'!$K$1:$AN$869,MATCH(Assets!AB$46&\"|\"&Assets!$B71,'Data Annex'!$K$1:$K$869,0),MATCH(Assets!AB$47,'Data Annex'!$K$1:$AN$1,0)),\"\")","v":1.7892960199999999E-2}]
[null,"LV",null,"LV",null,{"$f":"IFERROR(INDEX('Data Annex'!$K$1:$AN$869,MATCH(Assets!F$46&\"|\"&Assets!$B72,'Data Annex'!$K$1:$K$869,0),MATCH(Assets!F$47,'Data Annex'!$K$1:$AN$1,0)),\"\")","v":13.947091937},{"$f":"IFERROR(INDEX('Data Annex'!$K$1:$AN$869,MATCH(Assets!G$46&\"|\"&Assets!$B72,'Data Annex'!$K$1:$K$869,0),MATCH(Assets!G$47,'Data Annex'!$K$1:$AN$1,0)),\"\")","v":15.491013965},{"$f":"IFERROR(INDEX('Data Annex'!$K$1:$AN$869,MATCH(Assets!H$46&\"|\"&Assets!$B72,'Data Annex'!$K$1:$K$869,0),MATCH(Assets!H$47,'Data Annex'!$K$1:$AN$1,0)),\"\")","v":15.783161622},{"$f":"IFERROR(INDEX('Data Annex'!$K$1:$AN$869,MATCH(Assets!I$46&\"|\"&Assets!$B72,'Data Annex'!$K$1:$K$869,0),MATCH(Assets!I$47,'Data Annex'!$K$1:$AN$1,0)),\"\")","v":8.7984436746999997},{"$f":"IFERROR(INDEX('Data Annex'!$K$1:$AN$869,MATCH(Assets!J$46&\"|\"&Assets!$B72,'Data Annex'!$K$1:$K$869,0),MATCH(Assets!J$47,'Data Annex'!$K$1:$AN$1,0)),\"\")","v":13.770456841},{"$f":"IFERROR(INDEX('Data Annex'!$K$1:$AN$869,MATCH(Assets!K$46&\"|\"&Assets!$B72,'Data Annex'!$K$1:$K$869,0),MATCH(Assets!K$47,'Data Annex'!$K$1:$AN$1,0)),\"\")","v":15.315034113999999},{"$f":"IFERROR(INDEX('Data Annex'!$K$1:$AN$869,MATCH(Assets!L$46&\"|\"&Assets!$B72,'Data Annex'!$K$1:$K$869,0),MATCH(Assets!L$47,'Data Annex'!$K$1:$AN$1,0)),\"\")","v":15.615118585999999},{"$f":"IFERROR(INDEX('Data Annex'!$K$1:$AN$869,MATCH(Assets!M$46&\"|\"&Assets!$B72,'Data Annex'!$K$1:$K$869,0),MATCH(Assets!M$47,'Data Annex'!$K$1:$AN$1,0)),\"\")","v":8.7166390729999996},0.99070237820181428,"LV",null,{"$f":"IFERROR(INDEX('Data Annex'!$K$1:$AN$869,MATCH(Assets!Q$46&\"|\"&Assets!$B72,'Data Annex'!$K$1:$K$869,0),MATCH(Assets!Q$47,'Data Annex'!$K$1:$AN$1,0)),\"\")","v":0.95713725559999996},{"$f":"IFERROR(INDEX('Data Annex'!$K$1:$AN$869,MATCH(Assets!R$46&\"|\"&Assets!$B72,'Data Annex'!$K$1:$K$869,0),MATCH(Assets!R$47,'Data Annex'!$K$1:$AN$1,0)),\"\")","v":0.89132494330000001},{"$f":"IFERROR(INDEX('Data Annex'!$K$1:$AN$869,MATCH(Assets!S$46&\"|\"&Assets!$B72,'Data Annex'!$K$1:$K$869,0),MATCH(Assets!S$47,'Data Annex'!$K$1:$AN$1,0)),\"\")","v":0.8864917444},{"$f":"IFERROR(INDEX('Data Annex'!$K$1:$AN$869,MATCH(Assets!T$46&\"|\"&Assets!$B72,'Data Annex'!$K$1:$K$869,0),MATCH(Assets!T$47,'Data Annex'!$K$1:$AN$1,0)),\"\")","v":0.92316903269999995},{"$f":"IFERROR(INDEX('Data Annex'!$K$1:$AN$869,MATCH(Assets!U$46&\"|\"&Assets!$B72,'Data Annex'!$K$1:$K$869,0),MATCH(Assets!U$47,'Data Annex'!$K$1:$AN$1,0)),\"\")","v":2.2087474400000001E-2},{"$f":"IFERROR(INDEX('Data Annex'!$K$1:$AN$869,MATCH(Assets!V$46&\"|\"&Assets!$B72,'Data Annex'!$K$1:$K$869,0),MATCH(Assets!V$47,'Data Annex'!$K$1:$AN$1,0)),\"\")","v":2.44807545E-2},{"$f":"IFERROR(INDEX('Data Annex'!$K$1:$AN$869,MATCH(Assets!W$46&\"|\"&Assets!$B72,'Data Annex'!$K$1:$K$869,0),MATCH(Assets!W$47,'Data Annex'!$K$1:$AN$1,0)),\"\")","v":3.06981949E-2},{"$f":"IFERROR(INDEX('Data Annex'!$K$1:$AN$869,MATCH(Assets!X$46&\"|\"&Assets!$B72,'Data Annex'!$K$1:$K$869,0),MATCH(Assets!X$47,'Data Annex'!$K$1:$AN$1,0)),\"\")","v":3.8830846600000003E-2},{"$f":"IFERROR(INDEX('Data Annex'!$K$1:$AN$869,MATCH(Assets!Y$46&\"|\"&Assets!$B72,'Data Annex'!$K$1:$K$869,0),MATCH(Assets!Y$47,'Data Annex'!$K$1:$AN$1,0)),\"\")","v":2.0775269999999998E-2},{"$f":"IFERROR(INDEX('Data Annex'!$K$1:$AN$869,MATCH(Assets!Z$46&\"|\"&Assets!$B72,'Data Annex'!$K$1:$K$869,0),MATCH(Assets!Z$47,'Data Annex'!$K$1:$AN$1,0)),\"\")","v":8.4194302100000007E-2},{"$f":"IFERROR(INDEX('Data Annex'!$K$1:$AN$869,MATCH(Assets!AA$46&\"|\"&Assets!$B72,'Data Annex'!$K$1:$K$869,0),MATCH(Assets!AA$47,'Data Annex'!$K$1:$AN$1,0)),\"\")","v":8.2810060699999993E-2},{"$f":"IFERROR(INDEX('Data Annex'!$K$1:$AN$869,MATCH(Assets!AB$46&\"|\"&Assets!$B72,'Data Annex'!$K$1:$K$869,0),MATCH(Assets!AB$47,'Data Annex'!$K$1:$AN$1,0)),\"\")","v":3.8000120700000001E-2}]
[null,"MT",null,"MT",null,{"$f":"IFERROR(INDEX('Data Annex'!$K$1:$AN$869,MATCH(Assets!F$46&\"|\"&Assets!$B73,'Data Annex'!$K$1:$K$869,0),MATCH(Assets!F$47,'Data Annex'!$K$1:$AN$1,0)),\"\")","v":21.739890990999999},{"$f":"IFERROR(INDEX('Data Annex'!$K$1:$AN$869,MATCH(Assets!G$46&\"|\"&Assets!$B73,'Data Annex'!$K$1:$K$869,0),MATCH(Assets!G$47,'Data Annex'!$K$1:$AN$1,0)),\"\")","v":22.388760999999999},{"$f":"IFERROR(INDEX('Data Annex'!$K$1:$AN$869,MATCH(Assets!H$46&\"|\"&Assets!$B73,'Data Annex'!$K$1:$K$869,0),MATCH(Assets!H$47,'Data Annex'!$K$1:$AN$1,0)),\"\")","v":22.496193451},{"$f":"IFERROR(INDEX('Data Annex'!$K$1:$AN$869,MATCH(Assets!I$46&\"|\"&Assets!$B73,'Data Annex'!$K$1:$K$869,0),MATCH(Assets!I$47,'Data Annex'!$K$1:$AN$1,0)),\"\")","v":22.853745536000002},{"$f":"IFERROR(INDEX('Data Annex'!$K$1:$AN$869,MATCH(Assets!J$46&\"|\"&Assets!$B73,'Data Annex'!$K$1:$K$869,0),MATCH(Assets!J$47,'Data Annex'!$K$1:$AN$1,0)),\"\")","v":21.032905098000001},{"$f":"IFERROR(INDEX('Data Annex'!$K$1:$AN$869,MATCH(Assets!K$46&\"|\"&Assets!$B73,'Data Annex'!$K$1:$K$869,0),MATCH(Assets!K$47,'Data Annex'!$K$1:$AN$1,0)),\"\")","v":21.692377241999999},{"$f":"IFERROR(INDEX('Data Annex'!$K$1:$AN$869,MATCH(Assets!L$46&\"|\"&Assets!$B73,'Data Annex'!$K$1:$K$869,0),MATCH(Assets!L$47,'Data Annex'!$K$1:$AN$1,0)),\"\")","v":21.819178651000001},{"$f":"IFERROR(INDEX('Data Annex'!$K$1:$AN$869,MATCH(Assets!M$46&\"|\"&Assets!$B73,'Data Annex'!$K$1:$K$869,0),MATCH(Assets!M$47,'Data Annex'!$K$1:$AN$1,0)),\"\")","v":22.132031453},0.96842031509175885,"MT",null,{"$f":"IFERROR(INDEX('Data Annex'!$K$1:$AN$869,MATCH(Assets!Q$46&\"|\"&Assets!$B73,'Data Annex'!$K$1:$K$869,0),MATCH(Assets!Q$47,'Data Annex'!$K$1:$AN$1,0)),\"\")","v":0.90441108209999999},{"$f":"IFERROR(INDEX('Data Annex'!$K$1:$AN$869,MATCH(Assets!R$46&\"|\"&Assets!$B73,'Data Annex'!$K$1:$K$869,0),MATCH(Assets!R$47,'Data Annex'!$K$1:$AN$1,0)),\"\")","v":0.87997625310000005},{"$f":"IFERROR(INDEX('Data Annex'!$K$1:$AN$869,MATCH(Assets!S$46&\"|\"&Assets!$B73,'Data Annex'!$K$1:$K$869,0),MATCH(Assets!S$47,'Data Annex'!$K$1:$AN$1,0)),\"\")","v":0.88834347020000004},{"$f":"IFERROR(INDEX('Data Annex'!$K$1:$AN$869,MATCH(Assets!T$46&\"|\"&Assets!$B73,'Data Annex'!$K$1:$K$869,0),MATCH(Assets!T$47,'Data Annex'!$K$1:$AN$1,0)),\"\")","v":0.89705395310000002},{"$f":"IFERROR(INDEX('Data Annex'!$K$1:$AN$869,MATCH(Assets!U$46&\"|\"&Assets!$B73,'Data Annex'!$K$1:$K$869,0),MATCH(Assets!U$47,'Data Annex'!$K$1:$AN$1,0)),\"\")","v":8.4791039700000001E-2},{"$f":"IFERROR(INDEX('Data Annex'!$K$1:$AN$869,MATCH(Assets!V$46&\"|\"&Assets!$B73,'Data Annex'!$K$1:$K$869,0),MATCH(Assets!V$47,'Data Annex'!$K$1:$AN$1,0)),\"\")","v":0.1112077249},{"$f":"IFERROR(INDEX('Data Annex'!$K$1:$AN$869,MATCH(Assets!W$46&\"|\"&Assets!$B73,'Data Annex'!$K$1:$K$869,0),MATCH(Assets!W$47,'Data Annex'!$K$1:$AN$1,0)),\"\")","v":0.10314441589999999},{"$f":"IFERROR(INDEX('Data Annex'!$K$1:$AN$869,MATCH(Assets!X$46&\"|\"&Assets!$B73,'Data Annex'!$K$1:$K$869,0),MATCH(Assets!X$47,'Data Annex'!$K$1:$AN$1,0)),\"\")","v":9.4898301700000007E-2},{"$f":"IFERROR(INDEX('Data Annex'!$K$1:$AN$869,MATCH(Assets!Y$46&\"|\"&Assets!$B73,'Data Annex'!$K$1:$K$869,0),MATCH(Assets!Y$47,'Data Annex'!$K$1:$AN$1,0)),\"\")","v":1.07978782E-2},{"$f":"IFERROR(INDEX('Data Annex'!$K$1:$AN$869,MATCH(Assets!Z$46&\"|\"&Assets!$B73,'Data Annex'!$K$1:$K$869,0),MATCH(Assets!Z$47,'Data Annex'!$K$1:$AN$1,0)),\"\")","v":8.8160219999999997E-3},{"$f":"IFERROR(INDEX('Data Annex'!$K$1:$AN$869,MATCH(Assets!AA$46&\"|\"&Assets!$B73,'Data Annex'!$K$1:$K$869,0),MATCH(Assets!AA$47,'Data Annex'!$K$1:$AN$1,0)),\"\")","v":8.5121138999999998E-3},{"$f":"IFERROR(INDEX('Data Annex'!$K$1:$AN$869,MATCH(Assets!AB$46&\"|\"&Assets!$B73,'Data Annex'!$K$1:$K$869,0),MATCH(Assets!AB$47,'Data Annex'!$K$1:$AN$1,0)),\"\")","v":8.0477451999999994E-3}]
[null,"NL",null,"NL",null,{"$f":"IFERROR(INDEX('Data Annex'!$K$1:$AN$869,MATCH(Assets!F$46&\"|\"&Assets!$B74,'Data Annex'!$K$1:$K$869,0),MATCH(Assets!F$47,'Data Annex'!$K$1:$AN$1,0)),\"\")","v":2212.1461831000001},{"$f":"IFERROR(INDEX('Data Annex'!$K$1:$AN$869,MATCH(Assets!G$46&\"|\"&Assets!$B74,'Data Annex'!$K$1:$K$869,0),MATCH(Assets!G$47,'Data Annex'!$K$1:$AN$1,0)),\"\")","v":2262.3562892999998},{"$f":"IFERROR(INDEX('Data Annex'!$K$1:$AN$869,MATCH(Assets!H$46&\"|\"&Assets!$B74,'Data Annex'!$K$1:$K$869,0),MATCH(Assets!H$47,'Data Annex'!$K$1:$AN$1,0)),\"\")","v":2290.6661804999999},{"$f":"IFERROR(INDEX('Data Annex'!$K$1:$AN$869,MATCH(Assets!I$46&\"|\"&Assets!$B74,'Data Annex'!$K$1:$K$869,0),MATCH(Assets!I$47,'Data Annex'!$K$1:$AN$1,0)),\"\")","v":2193.2848319},{"$f":"IFERROR(INDEX('Data Annex'!$K$1:$AN$869,MATCH(Assets!J$46&\"|\"&Assets!$B74,'Data Annex'!$K$1:$K$869,0),MATCH(Assets!J$47,'Data Annex'!$K$1:$AN$1,0)),\"\")","v":2135.95156},{"$f":"IFERROR(INDEX('Data Annex'!$K$1:$AN$869,MATCH(Assets!K$46&\"|\"&Assets!$B74,'Data Annex'!$K$1:$K$869,0),MATCH(Assets!K$47,'Data Annex'!$K$1:$AN$1,0)),\"\")","v":2184.2127676},{"$f":"IFERROR(INDEX('Data Annex'!$K$1:$AN$869,MATCH(Assets!L$46&\"|\"&Assets!$B74,'Data Annex'!$K$1:$K$869,0),MATCH(Assets!L$47,'Data Annex'!$K$1:$AN$1,0)),\"\")","v":2214.9878248999999},{"$f":"IFERROR(INDEX('Data Annex'!$K$1:$AN$869,MATCH(Assets!M$46&\"|\"&Assets!$B74,'Data Annex'!$K$1:$K$869,0),MATCH(Assets!M$47,'Data Annex'!$K$1:$AN$1,0)),\"\")","v":2121.969838},0.96748484607983121,"NL",null,{"$f":"IFERROR(INDEX('Data Annex'!$K$1:$AN$869,MATCH(Assets!Q$46&\"|\"&Assets!$B74,'Data Annex'!$K$1:$K$869,0),MATCH(Assets!Q$47,'Data Annex'!$K$1:$AN$1,0)),\"\")","v":0.86304214450000005},{"$f":"IFERROR(INDEX('Data Annex'!$K$1:$AN$869,MATCH(Assets!R$46&\"|\"&Assets!$B74,'Data Annex'!$K$1:$K$869,0),MATCH(Assets!R$47,'Data Annex'!$K$1:$AN$1,0)),\"\")","v":0.86833450050000005},{"$f":"IFERROR(INDEX('Data Annex'!$K$1:$AN$869,MATCH(Assets!S$46&\"|\"&Assets!$B74,'Data Annex'!$K$1:$K$869,0),MATCH(Assets!S$47,'Data Annex'!$K$1:$AN$1,0)),\"\")","v":0.87279213229999997},{"$f":"IFERROR(INDEX('Data Annex'!$K$1:$AN$869,MATCH(Assets!T$46&\"|\"&Assets!$B74,'Data Annex'!$K$1:$K$869,0),MATCH(Assets!T$47,'Data Annex'!$K$1:$AN$1,0)),\"\")","v":0.87409921850000005},{"$f":"IFERROR(INDEX('Data Annex'!$K$1:$AN$869,MATCH(Assets!U$46&\"|\"&Assets!$B74,'Data Annex'!$K$1:$K$869,0),MATCH(Assets!U$47,'Data Annex'!$K$1:$AN$1,0)),\"\")","v":5.1477898600000002E-2},{"$f":"IFERROR(INDEX('Data Annex'!$K$1:$AN$869,MATCH(Assets!V$46&\"|\"&Assets!$B74,'Data Annex'!$K$1:$K$869,0),MATCH(Assets!V$47,'Data Annex'!$K$1:$AN$1,0)),\"\")","v":5.30070786E-2},{"$f":"IFERROR(INDEX('Data Annex'!$K$1:$AN$869,MATCH(Assets!W$46&\"|\"&Assets!$B74,'Data Annex'!$K$1:$K$869,0),MATCH(Assets!W$47,'Data Annex'!$K$1:$AN$1,0)),\"\")","v":5.0848487999999997E-2},{"$f":"IFERROR(INDEX('Data Annex'!$K$1:$AN$869,MATCH(Assets!X$46&\"|\"&Assets!$B74,'Data Annex'!$K$1:$K$869,0),MATCH(Assets!X$47,'Data Annex'!$K$1:$AN$1,0)),\"\")","v":5.1705519800000002E-2},{"$f":"IFERROR(INDEX('Data Annex'!$K$1:$AN$869,MATCH(Assets!Y$46&\"|\"&Assets!$B74,'Data Annex'!$K$1:$K$869,0),MATCH(Assets!Y$47,'Data Annex'!$K$1:$AN$1,0)),\"\")","v":8.5479956900000001E-2},{"$f":"IFERROR(INDEX('Data Annex'!$K$1:$AN$869,MATCH(Assets!Z$46&\"|\"&Assets!$B74,'Data Annex'!$K$1:$K$869,0),MATCH(Assets!Z$47,'Data Annex'!$K$1:$AN$1,0)),\"\")","v":7.8658421000000006E-2},{"$f":"IFERROR(INDEX('Data Annex'!$K$1:$AN$869,MATCH(Assets!AA$46&\"|\"&Assets!$B74,'Data Annex'!$K$1:$K$869,0),MATCH(Assets!AA$47,'Data Annex'!$K$1:$AN$1,0)),\"\")","v":7.6359379699999994E-2},{"$f":"IFERROR(INDEX('Data Annex'!$K$1:$AN$869,MATCH(Assets!AB$46&\"|\"&Assets!$B74,'Data Annex'!$K$1:$K$869,0),MATCH(Assets!AB$47,'Data Annex'!$K$1:$AN$1,0)),\"\")","v":7.4195261700000001E-2}]
[null,"NO",null,"NO",null,{"$f":"IFERROR(INDEX('Data Annex'!$K$1:$AN$869,MATCH(Assets!F$46&\"|\"&Assets!$B75,'Data Annex'!$K$1:$K$869,0),MATCH(Assets!F$47,'Data Annex'!$K$1:$AN$1,0)),\"\")","v":301.56252954000001},{"$f":"IFERROR(INDEX('Data Annex'!$K$1:$AN$869,MATCH(Assets!G$46&\"|\"&Assets!$B75,'Data Annex'!$K$1:$K$869,0),MATCH(Assets!G$47,'Data Annex'!$K$1:$AN$1,0)),\"\")","v":303.65801190000002},{"$f":"IFERROR(INDEX('Data Annex'!$K$1:$AN$869,MATCH(Assets!H$46&\"|\"&Assets!$B75,'Data Annex'!$K$1:$K$869,0),MATCH(Assets!H$47,'Data Annex'!$K$1:$AN$1,0)),\"\")","v":297.23205252000002},{"$f":"IFERROR(INDEX('Data Annex'!$K$1:$AN$869,MATCH(Assets!I$46&\"|\"&Assets!$B75,'Data Annex'!$K$1:$K$869,0),MATCH(Assets!I$47,'Data Annex'!$K$1:$AN$1,0)),\"\")","v":302.96861307},{"$f":"IFERROR(INDEX('Data Annex'!$K$1:$AN$869,MATCH(Assets!J$46&\"|\"&Assets!$B75,'Data Annex'!$K$1:$K$869,0),MATCH(Assets!J$47,'Data Annex'!$K$1:$AN$1,0)),\"\")","v":297.15863880000001},{"$f":"IFERROR(INDEX('Data Annex'!$K$1:$AN$869,MATCH(Assets!K$46&\"|\"&Assets!$B75,'Data Annex'!$K$1:$K$869,0),MATCH(Assets!K$47,'Data Annex'!$K$1:$AN$1,0)),\"\")","v":298.67095375999997},{"$f":"IFERROR(INDEX('Data Annex'!$K$1:$AN$869,MATCH(Assets!L$46&\"|\"&Assets!$B75,'Data Annex'!$K$1:$K$869,0),MATCH(Assets!L$47,'Data Annex'!$K$1:$AN$1,0)),\"\")","v":292.669355},{"$f":"IFERROR(INDEX('Data Annex'!$K$1:$AN$869,MATCH(Assets!M$46&\"|\"&Assets!$B75,'Data Annex'!$K$1:$K$869,0),MATCH(Assets!M$47,'Data Annex'!$K$1:$AN$1,0)),\"\")","v":298.43139484},0.98502413110049891,"NO",null,{"$f":"IFERROR(INDEX('Data Annex'!$K$1:$AN$869,MATCH(Assets!Q$46&\"|\"&Assets!$B75,'Data Annex'!$K$1:$K$869,0),MATCH(Assets!Q$47,'Data Annex'!$K$1:$AN$1,0)),\"\")","v":0.77757145400000005},{"$f":"IFERROR(INDEX('Data Annex'!$K$1:$AN$869,MATCH(Assets!R$46&\"|\"&Assets!$B75,'Data Annex'!$K$1:$K$869,0),MATCH(Assets!R$47,'Data Annex'!$K$1:$AN$1,0)),\"\")","v":0.76628434860000005},{"$f":"IFERROR(INDEX('Data Annex'!$K$1:$AN$869,MATCH(Assets!S$46&\"|\"&Assets!$B75,'Data Annex'!$K$1:$K$869,0),MATCH(Assets!S$47,'Data Annex'!$K$1:$AN$1,0)),\"\")","v":0.77940903039999998},{"$f":"IFERROR(INDEX('Data Annex'!$K$1:$AN$869,MATCH(Assets!T$46&\"|\"&Assets!$B75,'Data Annex'!$K$1:$K$869,0),MATCH(Assets!T$47,'Data Annex'!$K$1:$AN$1,0)),\"\")","v":0.76921168699999998},{"$f":"IFERROR(INDEX('Data Annex'!$K$1:$AN$869,MATCH(Assets!U$46&\"|\"&Assets!$B75,'Data Annex'!$K$1:$K$869,0),MATCH(Assets!U$47,'Data Annex'!$K$1:$AN$1,0)),\"\")","v":4.7335694999999997E-2},{"$f":"IFERROR(INDEX('Data Annex'!$K$1:$AN$869,MATCH(Assets!V$46&\"|\"&Assets!$B75,'Data Annex'!$K$1:$K$869,0),MATCH(Assets!V$47,'Data Annex'!$K$1:$AN$1,0)),\"\")","v":5.1420170199999997E-2},{"$f":"IFERROR(INDEX('Data Annex'!$K$1:$AN$869,MATCH(Assets!W$46&\"|\"&Assets!$B75,'Data Annex'!$K$1:$K$869,0),MATCH(Assets!W$47,'Data Annex'!$K$1:$AN$1,0)),\"\")","v":5.3362936999999999E-2},{"$f":"IFERROR(INDEX('Data Annex'!$K$1:$AN$869,MATCH(Assets!X$46&\"|\"&Assets!$B75,'Data Annex'!$K$1:$K$869,0),MATCH(Assets!X$47,'Data Annex'!$K$1:$AN$1,0)),\"\")","v":5.6865728099999999E-2},{"$f":"IFERROR(INDEX('Data Annex'!$K$1:$AN$869,MATCH(Assets!Y$46&\"|\"&Assets!$B75,'Data Annex'!$K$1:$K$869,0),MATCH(Assets!Y$47,'Data Annex'!$K$1:$AN$1,0)),\"\")","v":0.17509285099999999},{"$f":"IFERROR(INDEX('Data Annex'!$K$1:$AN$869,MATCH(Assets!Z$46&\"|\"&Assets!$B75,'Data Annex'!$K$1:$K$869,0),MATCH(Assets!Z$47,'Data Annex'!$K$1:$AN$1,0)),\"\")","v":0.1822954812},{"$f":"IFERROR(INDEX('Data Annex'!$K$1:$AN$869,MATCH(Assets!AA$46&\"|\"&Assets!$B75,'Data Annex'!$K$1:$K$869,0),MATCH(Assets!AA$47,'Data Annex'!$K$1:$AN$1,0)),\"\")","v":0.16722803259999999},{"$f":"IFERROR(INDEX('Data Annex'!$K$1:$AN$869,MATCH(Assets!AB$46&\"|\"&Assets!$B75,'Data Annex'!$K$1:$K$869,0),MATCH(Assets!AB$47,'Data Annex'!$K$1:$AN$1,0)),\"\")","v":0.1739225848}]
[null,"PL",null,"PL",null,{"$f":"IFERROR(INDEX('Data Annex'!$K$1:$AN$869,MATCH(Assets!F$46&\"|\"&Assets!$B76,'Data Annex'!$K$1:$K$869,0),MATCH(Assets!F$47,'Data Annex'!$K$1:$AN$1,0)),\"\")","v":174.84451075000001},{"$f":"IFERROR(INDEX('Data Annex'!$K$1:$AN$869,MATCH(Assets!G$46&\"|\"&Assets!$B76,'Data Annex'!$K$1:$K$869,0),MATCH(Assets!G$47,'Data Annex'!$K$1:$AN$1,0)),\"\")","v":186.73622118},{"$f":"IFERROR(INDEX('Data Annex'!$K$1:$AN$869,MATCH(Assets!H$46&\"|\"&Assets!$B76,'Data Annex'!$K$1:$K$869,0),MATCH(Assets!H$47,'Data Annex'!$K$1:$AN$1,0)),\"\")","v":182.4476114},{"$f":"IFERROR(INDEX('Data Annex'!$K$1:$AN$869,MATCH(Assets!I$46&\"|\"&Assets!$B76,'Data Annex'!$K$1:$K$869,0),MATCH(Assets!I$47,'Data Annex'!$K$1:$AN$1,0)),\"\")","v":184.71850928000001},{"$f":"IFERROR(INDEX('Data Annex'!$K$1:$AN$869,MATCH(Assets!J$46&\"|\"&Assets!$B76,'Data Annex'!$K$1:$K$869,0),MATCH(Assets!J$47,'Data Annex'!$K$1:$AN$1,0)),\"\")","v":168.77769609000001},{"$f":"IFERROR(INDEX('Data Annex'!$K$1:$AN$869,MATCH(Assets!K$46&\"|\"&Assets!$B76,'Data Annex'!$K$1:$K$869,0),MATCH(Assets!K$47,'Data Annex'!$K$1:$AN$1,0)),\"\")","v":180.73109210999999},{"$f":"IFERROR(INDEX('Data Annex'!$K$1:$AN$869,MATCH(Assets!L$46&\"|\"&Assets!$B76,'Data Annex'!$K$1:$K$869,0),MATCH(Assets!L$47,'Data Annex'!$K$1:$AN$1,0)),\"\")","v":176.66559168000001},{"$f":"IFERROR(INDEX('Data Annex'!$K$1:$AN$869,MATCH(Assets!M$46&\"|\"&Assets!$B76,'Data Annex'!$K$1:$K$869,0),MATCH(Assets!M$47,'Data Annex'!$K$1:$AN$1,0)),\"\")","v":178.6133317},0.96694875026981919,"PL",null,{"$f":"IFERROR(INDEX('Data Annex'!$K$1:$AN$869,MATCH(Assets!Q$46&\"|\"&Assets!$B76,'Data Annex'!$K$1:$K$869,0),MATCH(Assets!Q$47,'Data Annex'!$K$1:$AN$1,0)),\"\")","v":0.78216852869999998},{"$f":"IFERROR(INDEX('Data Annex'!$K$1:$AN$869,MATCH(Assets!R$46&\"|\"&Assets!$B76,'Data Annex'!$K$1:$K$869,0),MATCH(Assets!R$47,'Data Annex'!$K$1:$AN$1,0)),\"\")","v":0.74407169709999998},{"$f":"IFERROR(INDEX('Data Annex'!$K$1:$AN$869,MATCH(Assets!S$46&\"|\"&Assets!$B76,'Data Annex'!$K$1:$K$869,0),MATCH(Assets!S$47,'Data Annex'!$K$1:$AN$1,0)),\"\")","v":0.73419338180000004},{"$f":"IFERROR(INDEX('Data Annex'!$K$1:$AN$869,MATCH(Assets!T$46&\"|\"&Assets!$B76,'Data Annex'!$K$1:$K$869,0),MATCH(Assets!T$47,'Data Annex'!$K$1:$AN$1,0)),\"\")","v":0.73964904359999994},{"$f":"IFERROR(INDEX('Data Annex'!$K$1:$AN$869,MATCH(Assets!U$46&\"|\"&Assets!$B76,'Data Annex'!$K$1:$K$869,0),MATCH(Assets!U$47,'Data Annex'!$K$1:$AN$1,0)),\"\")","v":0.1801024739},{"$f":"IFERROR(INDEX('Data Annex'!$K$1:$AN$869,MATCH(Assets!V$46&\"|\"&Assets!$B76,'Data Annex'!$K$1:$K$869,0),MATCH(Assets!V$47,'Data Annex'!$K$1:$AN$1,0)),\"\")","v":0.22108874009999999},{"$f":"IFERROR(INDEX('Data Annex'!$K$1:$AN$869,MATCH(Assets!W$46&\"|\"&Assets!$B76,'Data Annex'!$K$1:$K$869,0),MATCH(Assets!W$47,'Data Annex'!$K$1:$AN$1,0)),\"\")","v":0.2303220245},{"$f":"IFERROR(INDEX('Data Annex'!$K$1:$AN$869,MATCH(Assets!X$46&\"|\"&Assets!$B76,'Data Annex'!$K$1:$K$869,0),MATCH(Assets!X$47,'Data Annex'!$K$1:$AN$1,0)),\"\")","v":0.228171558},{"$f":"IFERROR(INDEX('Data Annex'!$K$1:$AN$869,MATCH(Assets!Y$46&\"|\"&Assets!$B76,'Data Annex'!$K$1:$K$869,0),MATCH(Assets!Y$47,'Data Annex'!$K$1:$AN$1,0)),\"\")","v":3.7728997399999999E-2},{"$f":"IFERROR(INDEX('Data Annex'!$K$1:$AN$869,MATCH(Assets!Z$46&\"|\"&Assets!$B76,'Data Annex'!$K$1:$K$869,0),MATCH(Assets!Z$47,'Data Annex'!$K$1:$AN$1,0)),\"\")","v":3.4839562800000001E-2},{"$f":"IFERROR(INDEX('Data Annex'!$K$1:$AN$869,MATCH(Assets!AA$46&\"|\"&Assets!$B76,'Data Annex'!$K$1:$K$869,0),MATCH(Assets!AA$47,'Data Annex'!$K$1:$AN$1,0)),\"\")","v":3.5484593699999997E-2},{"$f":"IFERROR(INDEX('Data Annex'!$K$1:$AN$869,MATCH(Assets!AB$46&\"|\"&Assets!$B76,'Data Annex'!$K$1:$K$869,0),MATCH(Assets!AB$47,'Data Annex'!$K$1:$AN$1,0)),\"\")","v":3.2179398400000003E-2}]
[null,"PT",null,"PT",null,{"$f":"IFERROR(INDEX('Data Annex'!$K$1:$AN$869,MATCH(Assets!F$46&\"|\"&Assets!$B77,'Data Annex'!$K$1:$K$869,0),MATCH(Assets!F$47,'Data Annex'!$K$1:$AN$1,0)),\"\")","v":337.60261687000002},{"$f":"IFERROR(INDEX('Data Annex'!$K$1:$AN$869,MATCH(Assets!G$46&\"|\"&Assets!$B77,'Data Annex'!$K$1:$K$869,0),MATCH(Assets!G$47,'Data Annex'!$K$1:$AN$1,0)),\"\")","v":356.03610861999999},{"$f":"IFERROR(INDEX('Data Annex'!$K$1:$AN$869,MATCH(Assets!H$46&\"|\"&Assets!$B77,'Data Annex'!$K$1:$K$869,0),MATCH(Assets!H$47,'Data Annex'!$K$1:$AN$1,0)),\"\")","v":354.15184719000001},{"$f":"IFERROR(INDEX('Data Annex'!$K$1:$AN$869,MATCH(Assets!I$46&\"|\"&Assets!$B77,'Data Annex'!$K$1:$K$869,0),MATCH(Assets!I$47,'Data Annex'!$K$1:$AN$1,0)),\"\")","v":355.15328736999999},{"$f":"IFERROR(INDEX('Data Annex'!$K$1:$AN$869,MATCH(Assets!J$46&\"|\"&Assets!$B77,'Data Annex'!$K$1:$K$869,0),MATCH(Assets!J$47,'Data Annex'!$K$1:$AN$1,0)),\"\")","v":315.44076387000001},{"$f":"IFERROR(INDEX('Data Annex'!$K$1:$AN$869,MATCH(Assets!K$46&\"|\"&Assets!$B77,'Data Annex'!$K$1:$K$869,0),MATCH(Assets!K$47,'Data Annex'!$K$1:$AN$1,0)),\"\")","v":335.07591924000002},{"$f":"IFERROR(INDEX('Data Annex'!$K$1:$AN$869,MATCH(Assets!L$46&\"|\"&Assets!$B77,'Data Annex'!$K$1:$K$869,0),MATCH(Assets!L$47,'Data Annex'!$K$1:$AN$1,0)),\"\")","v":331.04426574000001},{"$f":"IFERROR(INDEX('Data Annex'!$K$1:$AN$869,MATCH(Assets!M$46&\"|\"&Assets!$B77,'Data Annex'!$K$1:$K$869,0),MATCH(Assets!M$47,'Data Annex'!$K$1:$AN$1,0)),\"\")","v":332.94382689000003},0.93746514175761508,"PT",null,{"$f":"IFERROR(INDEX('Data Annex'!$K$1:$AN$869,MATCH(Assets!Q$46&\"|\"&Assets!$B77,'Data Annex'!$K$1:$K$869,0),MATCH(Assets!Q$47,'Data Annex'!$K$1:$AN$1,0)),\"\")","v":0.8342806062},{"$f":"IFERROR(INDEX('Data Annex'!$K$1:$AN$869,MATCH(Assets!R$46&\"|\"&Assets!$B77,'Data Annex'!$K$1:$K$869,0),MATCH(Assets!R$47,'Data Annex'!$K$1:$AN$1,0)),\"\")","v":0.83192628619999998},{"$f":"IFERROR(INDEX('Data Annex'!$K$1:$AN$869,MATCH(Assets!S$46&\"|\"&Assets!$B77,'Data Annex'!$K$1:$K$869,0),MATCH(Assets!S$47,'Data Annex'!$K$1:$AN$1,0)),\"\")","v":0.83688449040000001},{"$f":"IFERROR(INDEX('Data Annex'!$K$1:$AN$869,MATCH(Assets!T$46&\"|\"&Assets!$B77,'Data Annex'!$K$1:$K$869,0),MATCH(Assets!T$47,'Data Annex'!$K$1:$AN$1,0)),\"\")","v":0.84958325170000004},{"$f":"IFERROR(INDEX('Data Annex'!$K$1:$AN$869,MATCH(Assets!U$46&\"|\"&Assets!$B77,'Data Annex'!$K$1:$K$869,0),MATCH(Assets!U$47,'Data Annex'!$K$1:$AN$1,0)),\"\")","v":0.1103466609},{"$f":"IFERROR(INDEX('Data Annex'!$K$1:$AN$869,MATCH(Assets!V$46&\"|\"&Assets!$B77,'Data Annex'!$K$1:$K$869,0),MATCH(Assets!V$47,'Data Annex'!$K$1:$AN$1,0)),\"\")","v":0.11670630410000001},{"$f":"IFERROR(INDEX('Data Annex'!$K$1:$AN$869,MATCH(Assets!W$46&\"|\"&Assets!$B77,'Data Annex'!$K$1:$K$869,0),MATCH(Assets!W$47,'Data Annex'!$K$1:$AN$1,0)),\"\")","v":0.1168661438},{"$f":"IFERROR(INDEX('Data Annex'!$K$1:$AN$869,MATCH(Assets!X$46&\"|\"&Assets!$B77,'Data Annex'!$K$1:$K$869,0),MATCH(Assets!X$47,'Data Annex'!$K$1:$AN$1,0)),\"\")","v":0.1120274032},{"$f":"IFERROR(INDEX('Data Annex'!$K$1:$AN$869,MATCH(Assets!Y$46&\"|\"&Assets!$B77,'Data Annex'!$K$1:$K$869,0),MATCH(Assets!Y$47,'Data Annex'!$K$1:$AN$1,0)),\"\")","v":5.5372732799999998E-2},{"$f":"IFERROR(INDEX('Data Annex'!$K$1:$AN$869,MATCH(Assets!Z$46&\"|\"&Assets!$B77,'Data Annex'!$K$1:$K$869,0),MATCH(Assets!Z$47,'Data Annex'!$K$1:$AN$1,0)),\"\")","v":5.1367409699999998E-2},{"$f":"IFERROR(INDEX('Data Annex'!$K$1:$AN$869,MATCH(Assets!AA$46&\"|\"&Assets!$B77,'Data Annex'!$K$1:$K$869,0),MATCH(Assets!AA$47,'Data Annex'!$K$1:$AN$1,0)),\"\")","v":4.6249365899999999E-2},{"$f":"IFERROR(INDEX('Data Annex'!$K$1:$AN$869,MATCH(Assets!AB$46&\"|\"&Assets!$B77,'Data Annex'!$K$1:$K$869,0),MATCH(Assets!AB$47,'Data Annex'!$K$1:$AN$1,0)),\"\")","v":3.8389345200000001E-2}]
[null,"RO",null,"RO",null,{"$f":"IFERROR(INDEX('Data Annex'!$K$1:$AN$869,MATCH(Assets!F$46&\"|\"&Assets!$B78,'Data Annex'!$K$1:$K$869,0),MATCH(Assets!F$47,'Data Annex'!$K$1:$AN$1,0)),\"\")","v":48.40104522},{"$f":"IFERROR(INDEX('Data Annex'!$K$1:$AN$869,MATCH(Assets!G$46&\"|\"&Assets!$B78,'Data Annex'!$K$1:$K$869,0),MATCH(Assets!G$47,'Data Annex'!$K$1:$AN$1,0)),\"\")","v":48.513647001000002},{"$f":"IFERROR(INDEX('Data Annex'!$K$1:$AN$869,MATCH(Assets!H$46&\"|\"&Assets!$B78,'Data Annex'!$K$1:$K$869,0),MATCH(Assets!H$47,'Data Annex'!$K$1:$AN$1,0)),\"\")","v":49.138242234000003},{"$f":"IFERROR(INDEX('Data Annex'!$K$1:$AN$869,MATCH(Assets!I$46&\"|\"&Assets!$B78,'Data Annex'!$K$1:$K$869,0),MATCH(Assets!I$47,'Data Annex'!$K$1:$AN$1,0)),\"\")","v":51.968035061000002},{"$f":"IFERROR(INDEX('Data Annex'!$K$1:$AN$869,MATCH(Assets!J$46&\"|\"&Assets!$B78,'Data Annex'!$K$1:$K$869,0),MATCH(Assets!J$47,'Data Annex'!$K$1:$AN$1,0)),\"\")","v":47.167550961000003},{"$f":"IFERROR(INDEX('Data Annex'!$K$1:$AN$869,MATCH(Assets!K$46&\"|\"&Assets!$B78,'Data Annex'!$K$1:$K$869,0),MATCH(Assets!K$47,'Data Annex'!$K$1:$AN$1,0)),\"\")","v":47.278431906999998},{"$f":"IFERROR(INDEX('Data Annex'!$K$1:$AN$869,MATCH(Assets!L$46&\"|\"&Assets!$B78,'Data Annex'!$K$1:$K$869,0),MATCH(Assets!L$47,'Data Annex'!$K$1:$AN$1,0)),\"\")","v":47.950899919000001},{"$f":"IFERROR(INDEX('Data Annex'!$K$1:$AN$869,MATCH(Assets!M$46&\"|\"&Assets!$B78,'Data Annex'!$K$1:$K$869,0),MATCH(Assets!M$47,'Data Annex'!$K$1:$AN$1,0)),\"\")","v":50.760619351000003},0.97676618504850654,"RO",null,{"$f":"IFERROR(INDEX('Data Annex'!$K$1:$AN$869,MATCH(Assets!Q$46&\"|\"&Assets!$B78,'Data Annex'!$K$1:$K$869,0),MATCH(Assets!Q$47,'Data Annex'!$K$1:$AN$1,0)),\"\")","v":0.78600614349999998},{"$f":"IFERROR(INDEX('Data Annex'!$K$1:$AN$869,MATCH(Assets!R$46&\"|\"&Assets!$B78,'Data Annex'!$K$1:$K$869,0),MATCH(Assets!R$47,'Data Annex'!$K$1:$AN$1,0)),\"\")","v":0.77604926080000003},{"$f":"IFERROR(INDEX('Data Annex'!$K$1:$AN$869,MATCH(Assets!S$46&\"|\"&Assets!$B78,'Data Annex'!$K$1:$K$869,0),MATCH(Assets!S$47,'Data Annex'!$K$1:$AN$1,0)),\"\")","v":0.77264142999999996},{"$f":"IFERROR(INDEX('Data Annex'!$K$1:$AN$869,MATCH(Assets!T$46&\"|\"&Assets!$B78,'Data Annex'!$K$1:$K$869,0),MATCH(Assets!T$47,'Data Annex'!$K$1:$AN$1,0)),\"\")","v":0.75876579830000002},{"$f":"IFERROR(INDEX('Data Annex'!$K$1:$AN$869,MATCH(Assets!U$46&\"|\"&Assets!$B78,'Data Annex'!$K$1:$K$869,0),MATCH(Assets!U$47,'Data Annex'!$K$1:$AN$1,0)),\"\")","v":0.1919226067},{"$f":"IFERROR(INDEX('Data Annex'!$K$1:$AN$869,MATCH(Assets!V$46&\"|\"&Assets!$B78,'Data Annex'!$K$1:$K$869,0),MATCH(Assets!V$47,'Data Annex'!$K$1:$AN$1,0)),\"\")","v":0.20230291689999999},{"$f":"IFERROR(INDEX('Data Annex'!$K$1:$AN$869,MATCH(Assets!W$46&\"|\"&Assets!$B78,'Data Annex'!$K$1:$K$869,0),MATCH(Assets!W$47,'Data Annex'!$K$1:$AN$1,0)),\"\")","v":0.2068212646},{"$f":"IFERROR(INDEX('Data Annex'!$K$1:$AN$869,MATCH(Assets!X$46&\"|\"&Assets!$B78,'Data Annex'!$K$1:$K$869,0),MATCH(Assets!X$47,'Data Annex'!$K$1:$AN$1,0)),\"\")","v":0.21995044929999999},{"$f":"IFERROR(INDEX('Data Annex'!$K$1:$AN$869,MATCH(Assets!Y$46&\"|\"&Assets!$B78,'Data Annex'!$K$1:$K$869,0),MATCH(Assets!Y$47,'Data Annex'!$K$1:$AN$1,0)),\"\")","v":2.2071249800000001E-2},{"$f":"IFERROR(INDEX('Data Annex'!$K$1:$AN$869,MATCH(Assets!Z$46&\"|\"&Assets!$B78,'Data Annex'!$K$1:$K$869,0),MATCH(Assets!Z$47,'Data Annex'!$K$1:$AN$1,0)),\"\")","v":2.1647822300000001E-2},{"$f":"IFERROR(INDEX('Data Annex'!$K$1:$AN$869,MATCH(Assets!AA$46&\"|\"&Assets!$B78,'Data Annex'!$K$1:$K$869,0),MATCH(Assets!AA$47,'Data Annex'!$K$1:$AN$1,0)),\"\")","v":2.0537305400000001E-2},{"$f":"IFERROR(INDEX('Data Annex'!$K$1:$AN$869,MATCH(Assets!AB$46&\"|\"&Assets!$B78,'Data Annex'!$K$1:$K$869,0),MATCH(Assets!AB$47,'Data Annex'!$K$1:$AN$1,0)),\"\")","v":2.1283752499999999E-2}]
[null,"SE",null,"SE",null,{"$f":"IFERROR(INDEX('Data Annex'!$K$1:$AN$869,MATCH(Assets!F$46&\"|\"&Assets!$B79,'Data Annex'!$K$1:$K$869,0),MATCH(Assets!F$47,'Data Annex'!$K$1:$AN$1,0)),\"\")","v":940.17805510000005},{"$f":"IFERROR(INDEX('Data Annex'!$K$1:$AN$869,MATCH(Assets!G$46&\"|\"&Assets!$B79,'Data Annex'!$K$1:$K$869,0),MATCH(Assets!G$47,'Data Annex'!$K$1:$AN$1,0)),\"\")","v":980.19492572000001},{"$f":"IFERROR(INDEX('Data Annex'!$K$1:$AN$869,MATCH(Assets!H$46&\"|\"&Assets!$B79,'Data Annex'!$K$1:$K$869,0),MATCH(Assets!H$47,'Data Annex'!$K$1:$AN$1,0)),\"\")","v":941.91343675999997},{"$f":"IFERROR(INDEX('Data Annex'!$K$1:$AN$869,MATCH(Assets!I$46&\"|\"&Assets!$B79,'Data Annex'!$K$1:$K$869,0),MATCH(Assets!I$47,'Data Annex'!$K$1:$AN$1,0)),\"\")","v":939.93346326999995},{"$f":"IFERROR(INDEX('Data Annex'!$K$1:$AN$869,MATCH(Assets!J$46&\"|\"&Assets!$B79,'Data Annex'!$K$1:$K$869,0),MATCH(Assets!J$47,'Data Annex'!$K$1:$AN$1,0)),\"\")","v":928.48681952000004},{"$f":"IFERROR(INDEX('Data Annex'!$K$1:$AN$869,MATCH(Assets!K$46&\"|\"&Assets!$B79,'Data Annex'!$K$1:$K$869,0),MATCH(Assets!K$47,'Data Annex'!$K$1:$AN$1,0)),\"\")","v":967.91626773999997},{"$f":"IFERROR(INDEX('Data Annex'!$K$1:$AN$869,MATCH(Assets!L$46&\"|\"&Assets!$B79,'Data Annex'!$K$1:$K$869,0),MATCH(Assets!L$47,'Data Annex'!$K$1:$AN$1,0)),\"\")","v":929.46210381000003},{"$f":"IFERROR(INDEX('Data Annex'!$K$1:$AN$869,MATCH(Assets!M$46&\"|\"&Assets!$B79,'Data Annex'!$K$1:$K$869,0),MATCH(Assets!M$47,'Data Annex'!$K$1:$AN$1,0)),\"\")","v":925.37154869000005},0.98450750489365557,"SE",null,{"$f":"IFERROR(INDEX('Data Annex'!$K$1:$AN$869,MATCH(Assets!Q$46&\"|\"&Assets!$B79,'Data Annex'!$K$1:$K$869,0),MATCH(Assets!Q$47,'Data Annex'!$K$1:$AN$1,0)),\"\")","v":0.828298007},{"$f":"IFERROR(INDEX('Data Annex'!$K$1:$AN$869,MATCH(Assets!R$46&\"|\"&Assets!$B79,'Data Annex'!$K$1:$K$869,0),MATCH(Assets!R$47,'Data Annex'!$K$1:$AN$1,0)),\"\")","v":0.84109369980000004},{"$f":"IFERROR(INDEX('Data Annex'!$K$1:$AN$869,MATCH(Assets!S$46&\"|\"&Assets!$B79,'Data Annex'!$K$1:$K$869,0),MATCH(Assets!S$47,'Data Annex'!$K$1:$AN$1,0)),\"\")","v":0.85330209359999998},{"$f":"IFERROR(INDEX('Data Annex'!$K$1:$AN$869,MATCH(Assets!T$46&\"|\"&Assets!$B79,'Data Annex'!$K$1:$K$869,0),MATCH(Assets!T$47,'Data Annex'!$K$1:$AN$1,0)),\"\")","v":0.87005215380000001},{"$f":"IFERROR(INDEX('Data Annex'!$K$1:$AN$869,MATCH(Assets!U$46&\"|\"&Assets!$B79,'Data Annex'!$K$1:$K$869,0),MATCH(Assets!U$47,'Data Annex'!$K$1:$AN$1,0)),\"\")","v":1.2393879300000001E-2},{"$f":"IFERROR(INDEX('Data Annex'!$K$1:$AN$869,MATCH(Assets!V$46&\"|\"&Assets!$B79,'Data Annex'!$K$1:$K$869,0),MATCH(Assets!V$47,'Data Annex'!$K$1:$AN$1,0)),\"\")","v":9.7987300000000003E-3},{"$f":"IFERROR(INDEX('Data Annex'!$K$1:$AN$869,MATCH(Assets!W$46&\"|\"&Assets!$B79,'Data Annex'!$K$1:$K$869,0),MATCH(Assets!W$47,'Data Annex'!$K$1:$AN$1,0)),\"\")","v":1.00801474E-2},{"$f":"IFERROR(INDEX('Data Annex'!$K$1:$AN$869,MATCH(Assets!X$46&\"|\"&Assets!$B79,'Data Annex'!$K$1:$K$869,0),MATCH(Assets!X$47,'Data Annex'!$K$1:$AN$1,0)),\"\")","v":1.1072745199999999E-2},{"$f":"IFERROR(INDEX('Data Annex'!$K$1:$AN$869,MATCH(Assets!Y$46&\"|\"&Assets!$B79,'Data Annex'!$K$1:$K$869,0),MATCH(Assets!Y$47,'Data Annex'!$K$1:$AN$1,0)),\"\")","v":0.1593081136},{"$f":"IFERROR(INDEX('Data Annex'!$K$1:$AN$869,MATCH(Assets!Z$46&\"|\"&Assets!$B79,'Data Annex'!$K$1:$K$869,0),MATCH(Assets!Z$47,'Data Annex'!$K$1:$AN$1,0)),\"\")","v":0.14910757020000001},{"$f":"IFERROR(INDEX('Data Annex'!$K$1:$AN$869,MATCH(Assets!AA$46&\"|\"&Assets!$B79,'Data Annex'!$K$1:$K$869,0),MATCH(Assets!AA$47,'Data Annex'!$K$1:$AN$1,0)),\"\")","v":0.13661775900000001},{"$f":"IFERROR(INDEX('Data Annex'!$K$1:$AN$869,MATCH(Assets!AB$46&\"|\"&Assets!$B79,'Data Annex'!$K$1:$K$869,0),MATCH(Assets!AB$47,'Data Annex'!$K$1:$AN$1,0)),\"\")","v":0.1188751009}]
[null,"SI",null,"SI",null,{"$f":"IFERROR(INDEX('Data Annex'!$K$1:$AN$869,MATCH(Assets!F$46&\"|\"&Assets!$B80,'Data Annex'!$K$1:$K$869,0),MATCH(Assets!F$47,'Data Annex'!$K$1:$AN$1,0)),\"\")","v":26.611254815999999},{"$f":"IFERROR(INDEX('Data Annex'!$K$1:$AN$869,MATCH(Assets!G$46&\"|\"&Assets!$B80,'Data Annex'!$K$1:$K$869,0),MATCH(Assets!G$47,'Data Annex'!$K$1:$AN$1,0)),\"\")","v":27.403023503},{"$f":"IFERROR(INDEX('Data Annex'!$K$1:$AN$869,MATCH(Assets!H$46&\"|\"&Assets!$B80,'Data Annex'!$K$1:$K$869,0),MATCH(Assets!H$47,'Data Annex'!$K$1:$AN$1,0)),\"\")","v":27.674132222000001},{"$f":"IFERROR(INDEX('Data Annex'!$K$1:$AN$869,MATCH(Assets!I$46&\"|\"&Assets!$B80,'Data Annex'!$K$1:$K$869,0),MATCH(Assets!I$47,'Data Annex'!$K$1:$AN$1,0)),\"\")","v":32.397115460000002},{"$f":"IFERROR(INDEX('Data Annex'!$K$1:$AN$869,MATCH(Assets!J$46&\"|\"&Assets!$B80,'Data Annex'!$K$1:$K$869,0),MATCH(Assets!J$47,'Data Annex'!$K$1:$AN$1,0)),\"\")","v":25.883240248},{"$f":"IFERROR(INDEX('Data Annex'!$K$1:$AN$869,MATCH(Assets!K$46&\"|\"&Assets!$B80,'Data Annex'!$K$1:$K$869,0),MATCH(Assets!K$47,'Data Annex'!$K$1:$AN$1,0)),\"\")","v":26.700016133999998},{"$f":"IFERROR(INDEX('Data Annex'!$K$1:$AN$869,MATCH(Assets!L$46&\"|\"&Assets!$B80,'Data Annex'!$K$1:$K$869,0),MATCH(Assets!L$47,'Data Annex'!$K$1:$AN$1,0)),\"\")","v":26.992022738999999},{"$f":"IFERROR(INDEX('Data Annex'!$K$1:$AN$869,MATCH(Assets!M$46&\"|\"&Assets!$B80,'Data Annex'!$K$1:$K$869,0),MATCH(Assets!M$47,'Data Annex'!$K$1:$AN$1,0)),\"\")","v":31.612705424000001},0.97578765810281798,"SI",null,{"$f":"IFERROR(INDEX('Data Annex'!$K$1:$AN$869,MATCH(Assets!Q$46&\"|\"&Assets!$B80,'Data Annex'!$K$1:$K$869,0),MATCH(Assets!Q$47,'Data Annex'!$K$1:$AN$1,0)),\"\")","v":0.81640949100000004},{"$f":"IFERROR(INDEX('Data Annex'!$K$1:$AN$869,MATCH(Assets!R$46&\"|\"&Assets!$B80,'Data Annex'!$K$1:$K$869,0),MATCH(Assets!R$47,'Data Annex'!$K$1:$AN$1,0)),\"\")","v":0.83002085260000003},{"$f":"IFERROR(INDEX('Data Annex'!$K$1:$AN$869,MATCH(Assets!S$46&\"|\"&Assets!$B80,'Data Annex'!$K$1:$K$869,0),MATCH(Assets!S$47,'Data Annex'!$K$1:$AN$1,0)),\"\")","v":0.82688144029999999},{"$f":"IFERROR(INDEX('Data Annex'!$K$1:$AN$869,MATCH(Assets!T$46&\"|\"&Assets!$B80,'Data Annex'!$K$1:$K$869,0),MATCH(Assets!T$47,'Data Annex'!$K$1:$AN$1,0)),\"\")","v":0.81145589470000001},{"$f":"IFERROR(INDEX('Data Annex'!$K$1:$AN$869,MATCH(Assets!U$46&\"|\"&Assets!$B80,'Data Annex'!$K$1:$K$869,0),MATCH(Assets!U$47,'Data Annex'!$K$1:$AN$1,0)),\"\")","v":0.17687519900000001},{"$f":"IFERROR(INDEX('Data Annex'!$K$1:$AN$869,MATCH(Assets!V$46&\"|\"&Assets!$B80,'Data Annex'!$K$1:$K$869,0),MATCH(Assets!V$47,'Data Annex'!$K$1:$AN$1,0)),\"\")","v":0.1637986256},{"$f":"IFERROR(INDEX('Data Annex'!$K$1:$AN$869,MATCH(Assets!W$46&\"|\"&Assets!$B80,'Data Annex'!$K$1:$K$869,0),MATCH(Assets!W$47,'Data Annex'!$K$1:$AN$1,0)),\"\")","v":0.16717755649999999},{"$f":"IFERROR(INDEX('Data Annex'!$K$1:$AN$869,MATCH(Assets!X$46&\"|\"&Assets!$B80,'Data Annex'!$K$1:$K$869,0),MATCH(Assets!X$47,'Data Annex'!$K$1:$AN$1,0)),\"\")","v":0.1809458826},{"$f":"IFERROR(INDEX('Data Annex'!$K$1:$AN$869,MATCH(Assets!Y$46&\"|\"&Assets!$B80,'Data Annex'!$K$1:$K$869,0),MATCH(Assets!Y$47,'Data Annex'!$K$1:$AN$1,0)),\"\")","v":6.7153101E-3},{"$f":"IFERROR(INDEX('Data Annex'!$K$1:$AN$869,MATCH(Assets!Z$46&\"|\"&Assets!$B80,'Data Annex'!$K$1:$K$869,0),MATCH(Assets!Z$47,'Data Annex'!$K$1:$AN$1,0)),\"\")","v":6.1805217999999999E-3},{"$f":"IFERROR(INDEX('Data Annex'!$K$1:$AN$869,MATCH(Assets!AA$46&\"|\"&Assets!$B80,'Data Annex'!$K$1:$K$869,0),MATCH(Assets!AA$47,'Data Annex'!$K$1:$AN$1,0)),\"\")","v":5.9410032000000003E-3},{"$f":"IFERROR(INDEX('Data Annex'!$K$1:$AN$869,MATCH(Assets!AB$46&\"|\"&Assets!$B80,'Data Annex'!$K$1:$K$869,0),MATCH(Assets!AB$47,'Data Annex'!$K$1:$AN$1,0)),\"\")","v":7.5982226000000002E-3}]
[null,"SK",null,"SK",null,{"$f":"IFERROR(INDEX('Data Annex'!$K$1:$AN$869,MATCH(Assets!F$46&\"|\"&Assets!$B81,'Data Annex'!$K$1:$K$869,0),MATCH(Assets!F$47,'Data Annex'!$K$1:$AN$1,0)),\"\")","v":50.623705663000003},{"$f":"IFERROR(INDEX('Data Annex'!$K$1:$AN$869,MATCH(Assets!G$46&\"|\"&Assets!$B81,'Data Annex'!$K$1:$K$869,0),MATCH(Assets!G$47,'Data Annex'!$K$1:$AN$1,0)),\"\")","v":52.769612064},{"$f":"IFERROR(INDEX('Data Annex'!$K$1:$AN$869,MATCH(Assets!H$46&\"|\"&Assets!$B81,'Data Annex'!$K$1:$K$869,0),MATCH(Assets!H$47,'Data Annex'!$K$1:$AN$1,0)),\"\")","v":54.145689220999998},{"$f":"IFERROR(INDEX('Data Annex'!$K$1:$AN$869,MATCH(Assets!I$46&\"|\"&Assets!$B81,'Data Annex'!$K$1:$K$869,0),MATCH(Assets!I$47,'Data Annex'!$K$1:$AN$1,0)),\"\")","v":55.601107599000002},{"$f":"IFERROR(INDEX('Data Annex'!$K$1:$AN$869,MATCH(Assets!J$46&\"|\"&Assets!$B81,'Data Annex'!$K$1:$K$869,0),MATCH(Assets!J$47,'Data Annex'!$K$1:$AN$1,0)),\"\")","v":49.641071203000003},{"$f":"IFERROR(INDEX('Data Annex'!$K$1:$AN$869,MATCH(Assets!K$46&\"|\"&Assets!$B81,'Data Annex'!$K$1:$K$869,0),MATCH(Assets!K$47,'Data Annex'!$K$1:$AN$1,0)),\"\")","v":51.774899806000001},{"$f":"IFERROR(INDEX('Data Annex'!$K$1:$AN$869,MATCH(Assets!L$46&\"|\"&Assets!$B81,'Data Annex'!$K$1:$K$869,0),MATCH(Assets!L$47,'Data Annex'!$K$1:$AN$1,0)),\"\")","v":53.129749191999998},{"$f":"IFERROR(INDEX('Data Annex'!$K$1:$AN$869,MATCH(Assets!M$46&\"|\"&Assets!$B81,'Data Annex'!$K$1:$K$869,0),MATCH(Assets!M$47,'Data Annex'!$K$1:$AN$1,0)),\"\")","v":54.584246166},0.98171148962834165,"SK",null,{"$f":"IFERROR(INDEX('Data Annex'!$K$1:$AN$869,MATCH(Assets!Q$46&\"|\"&Assets!$B81,'Data Annex'!$K$1:$K$869,0),MATCH(Assets!Q$47,'Data Annex'!$K$1:$AN$1,0)),\"\")","v":0.95976509369999996},{"$f":"IFERROR(INDEX('Data Annex'!$K$1:$AN$869,MATCH(Assets!R$46&\"|\"&Assets!$B81,'Data Annex'!$K$1:$K$869,0),MATCH(Assets!R$47,'Data Annex'!$K$1:$AN$1,0)),\"\")","v":0.94821742470000003},{"$f":"IFERROR(INDEX('Data Annex'!$K$1:$AN$869,MATCH(Assets!S$46&\"|\"&Assets!$B81,'Data Annex'!$K$1:$K$869,0),MATCH(Assets!S$47,'Data Annex'!$K$1:$AN$1,0)),\"\")","v":0.95432587369999999},{"$f":"IFERROR(INDEX('Data Annex'!$K$1:$AN$869,MATCH(Assets!T$46&\"|\"&Assets!$B81,'Data Annex'!$K$1:$K$869,0),MATCH(Assets!T$47,'Data Annex'!$K$1:$AN$1,0)),\"\")","v":0.95953298350000005},{"$f":"IFERROR(INDEX('Data Annex'!$K$1:$AN$869,MATCH(Assets!U$46&\"|\"&Assets!$B81,'Data Annex'!$K$1:$K$869,0),MATCH(Assets!U$47,'Data Annex'!$K$1:$AN$1,0)),\"\")","v":3.3982166000000001E-2},{"$f":"IFERROR(INDEX('Data Annex'!$K$1:$AN$869,MATCH(Assets!V$46&\"|\"&Assets!$B81,'Data Annex'!$K$1:$K$869,0),MATCH(Assets!V$47,'Data Annex'!$K$1:$AN$1,0)),\"\")","v":4.1981289499999998E-2},{"$f":"IFERROR(INDEX('Data Annex'!$K$1:$AN$869,MATCH(Assets!W$46&\"|\"&Assets!$B81,'Data Annex'!$K$1:$K$869,0),MATCH(Assets!W$47,'Data Annex'!$K$1:$AN$1,0)),\"\")","v":3.6519176600000001E-2},{"$f":"IFERROR(INDEX('Data Annex'!$K$1:$AN$869,MATCH(Assets!X$46&\"|\"&Assets!$B81,'Data Annex'!$K$1:$K$869,0),MATCH(Assets!X$47,'Data Annex'!$K$1:$AN$1,0)),\"\")","v":3.3696133900000001E-2},{"$f":"IFERROR(INDEX('Data Annex'!$K$1:$AN$869,MATCH(Assets!Y$46&\"|\"&Assets!$B81,'Data Annex'!$K$1:$K$869,0),MATCH(Assets!Y$47,'Data Annex'!$K$1:$AN$1,0)),\"\")","v":6.2527403000000002E-3},{"$f":"IFERROR(INDEX('Data Annex'!$K$1:$AN$869,MATCH(Assets!Z$46&\"|\"&Assets!$B81,'Data Annex'!$K$1:$K$869,0),MATCH(Assets!Z$47,'Data Annex'!$K$1:$AN$1,0)),\"\")","v":9.8012858000000001E-3},{"$f":"IFERROR(INDEX('Data Annex'!$K$1:$AN$869,MATCH(Assets!AA$46&\"|\"&Assets!$B81,'Data Annex'!$K$1:$K$869,0),MATCH(Assets!AA$47,'Data Annex'!$K$1:$AN$1,0)),\"\")","v":9.1549496999999997E-3},{"$f":"IFERROR(INDEX('Data Annex'!$K$1:$AN$869,MATCH(Assets!AB$46&\"|\"&Assets!$B81,'Data Annex'!$K$1:$K$869,0),MATCH(Assets!AB$47,'Data Annex'!$K$1:$AN$1,0)),\"\")","v":6.7708826E-3}]
[null,"EU",null,{"$f":"+D42","v":"EU/EEA"},null,{"$f":"IFERROR(INDEX('Data Annex'!$K$1:$AN$869,MATCH(Assets!F$46&\"|\"&Assets!$B82,'Data Annex'!$K$1:$K$869,0),MATCH(Assets!F$47,'Data Annex'!$K$1:$AN$1,0)),\"\")","v":25557.926817},{"$f":"IFERROR(INDEX('Data Annex'!$K$1:$AN$869,MATCH(Assets!G$46&\"|\"&Assets!$B82,'Data Annex'!$K$1:$K$869,0),MATCH(Assets!G$47,'Data Annex'!$K$1:$AN$1,0)),\"\")","v":26054.063639},{"$f":"IFERROR(INDEX('Data Annex'!$K$1:$AN$869,MATCH(Assets!H$46&\"|\"&Assets!$B82,'Data Annex'!$K$1:$K$869,0),MATCH(Assets!H$47,'Data Annex'!$K$1:$AN$1,0)),\"\")","v":25992.184486999999},{"$f":"IFERROR(INDEX('Data Annex'!$K$1:$AN$869,MATCH(Assets!I$46&\"|\"&Assets!$B82,'Data Annex'!$K$1:$K$869,0),MATCH(Assets!I$47,'Data Annex'!$K$1:$AN$1,0)),\"\")","v":25639.354695999999},{"$f":"IFERROR(INDEX('Data Annex'!$K$1:$AN$869,MATCH(Assets!J$46&\"|\"&Assets!$B82,'Data Annex'!$K$1:$K$869,0),MATCH(Assets!J$47,'Data Annex'!$K$1:$AN$1,0)),\"\")","v":24168.342535},{"$f":"IFERROR(INDEX('Data Annex'!$K$1:$AN$869,MATCH(Assets!K$46&\"|\"&Assets!$B82,'Data Annex'!$K$1:$K$869,0),MATCH(Assets!K$47,'Data Annex'!$K$1:$AN$1,0)),\"\")","v":24744.408565999998},{"$f":"IFERROR(INDEX('Data Annex'!$K$1:$AN$869,MATCH(Assets!L$46&\"|\"&Assets!$B82,'Data Annex'!$K$1:$K$869,0),MATCH(Assets!L$47,'Data Annex'!$K$1:$AN$1,0)),\"\")","v":24687.878065000001},{"$f":"IFERROR(INDEX('Data Annex'!$K$1:$AN$869,MATCH(Assets!M$46&\"|\"&Assets!$B82,'Data Annex'!$K$1:$K$869,0),MATCH(Assets!M$47,'Data Annex'!$K$1:$AN$1,0)),\"\")","v":24053.853556999999},0.93816142575353678,{"$f":"D82","v":"EU/EEA"},null,{"$f":"IFERROR(INDEX('Data Annex'!$K$1:$AN$869,MATCH(Assets!Q$46&\"|\"&Assets!$B82,'Data Annex'!$K$1:$K$869,0),MATCH(Assets!Q$47,'Data Annex'!$K$1:$AN$1,0)),\"\")","v":0.7405865492},{"$f":"IFERROR(INDEX('Data Annex'!$K$1:$AN$869,MATCH(Assets!R$46&\"|\"&Assets!$B82,'Data Annex'!$K$1:$K$869,0),MATCH(Assets!R$47,'Data Annex'!$K$1:$AN$1,0)),\"\")","v":0.75536871539999995},{"$f":"IFERROR(INDEX('Data Annex'!$K$1:$AN$869,MATCH(Assets!S$46&\"|\"&Assets!$B82,'Data Annex'!$K$1:$K$869,0),MATCH(Assets!S$47,'Data Annex'!$K$1:$AN$1,0)),\"\")","v":0.76185588630000001},{"$f":"IFERROR(INDEX('Data Annex'!$K$1:$AN$869,MATCH(Assets!T$46&\"|\"&Assets!$B82,'Data Annex'!$K$1:$K$869,0),MATCH(Assets!T$47,'Data Annex'!$K$1:$AN$1,0)),\"\")","v":0.7682541745},{"$f":"IFERROR(INDEX('Data Annex'!$K$1:$AN$869,MATCH(Assets!U$46&\"|\"&Assets!$B82,'Data Annex'!$K$1:$K$869,0),MATCH(Assets!U$47,'Data Annex'!$K$1:$AN$1,0)),\"\")","v":5.4284878500000001E-2},{"$f":"IFERROR(INDEX('Data Annex'!$K$1:$AN$869,MATCH(Assets!V$46&\"|\"&Assets!$B82,'Data Annex'!$K$1:$K$869,0),MATCH(Assets!V$47,'Data Annex'!$K$1:$AN$1,0)),\"\")","v":5.5822129300000002E-2},{"$f":"IFERROR(INDEX('Data Annex'!$K$1:$AN$869,MATCH(Assets!W$46&\"|\"&Assets!$B82,'Data Annex'!$K$1:$K$869,0),MATCH(Assets!W$47,'Data Annex'!$K$1:$AN$1,0)),\"\")","v":5.4875543200000002E-2},{"$f":"IFERROR(INDEX('Data Annex'!$K$1:$AN$869,MATCH(Assets!X$46&\"|\"&Assets!$B82,'Data Annex'!$K$1:$K$869,0),MATCH(Assets!X$47,'Data Annex'!$K$1:$AN$1,0)),\"\")","v":5.4432472699999998E-2},{"$f":"IFERROR(INDEX('Data Annex'!$K$1:$AN$869,MATCH(Assets!Y$46&\"|\"&Assets!$B82,'Data Annex'!$K$1:$K$869,0),MATCH(Assets!Y$47,'Data Annex'!$K$1:$AN$1,0)),\"\")","v":0.20516729989999999},{"$f":"IFERROR(INDEX('Data Annex'!$K$1:$AN$869,MATCH(Assets!Z$46&\"|\"&Assets!$B82,'Data Annex'!$K$1:$K$869,0),MATCH(Assets!Z$47,'Data Annex'!$K$1:$AN$1,0)),\"\")","v":0.18884673569999999},{"$f":"IFERROR(INDEX('Data Annex'!$K$1:$AN$869,MATCH(Assets!AA$46&\"|\"&Assets!$B82,'Data Annex'!$K$1:$K$869,0),MATCH(Assets!AA$47,'Data Annex'!$K$1:$AN$1,0)),\"\")","v":0.18330599219999999},{"$f":"IFERROR(INDEX('Data Annex'!$K$1:$AN$869,MATCH(Assets!AB$46&\"|\"&Assets!$B82,'Data Annex'!$K$1:$K$869,0),MATCH(Assets!AB$47,'Data Annex'!$K$1:$AN$1,0)),\"\")","v":0.17731335279999999}]
[null,"GB",null,{"$f":"IF(OR(F83=\"n.a.\",G83=\"n.a.\",H83=\"n.a.\",I83=\"n.a.\",J83=\"n.a.\",K83=\"n.a.\",L83=\"n.a.\",M83=\"n.a.\"),$B83&\"*\",$B83)","v":"GB"},null,{"$f":"IFERROR(INDEX('Data Annex'!$K$1:$AN$869,MATCH(Assets!F$46&\"|\"&Assets!$B83,'Data Annex'!$K$1:$K$869,0),MATCH(Assets!F$47,'Data Annex'!$K$1:$AN$1,0)),\"\")","v":7679.5908007999997},{"$f":"IFERROR(INDEX('Data Annex'!$K$1:$AN$869,MATCH(Assets!G$46&\"|\"&Assets!$B83,'Data Annex'!$K$1:$K$869,0),MATCH(Assets!G$47,'Data Annex'!$K$1:$AN$1,0)),\"\")","v":7359.7898833999998},{"$f":"IFERROR(INDEX('Data Annex'!$K$1:$AN$869,MATCH(Assets!H$46&\"|\"&Assets!$B83,'Data Annex'!$K$1:$K$869,0),MATCH(Assets!H$47,'Data Annex'!$K$1:$AN$1,0)),\"\")","v":7235.1592755000001},{"$f":"IFERROR(INDEX('Data Annex'!$K$1:$AN$869,MATCH(Assets!I$46&\"|\"&Assets!$B83,'Data Annex'!$K$1:$K$869,0),MATCH(Assets!I$47,'Data Annex'!$K$1:$AN$1,0)),\"\")","v":7178.1217540999996},{"$f":"IFERROR(INDEX('Data Annex'!$K$1:$AN$869,MATCH(Assets!J$46&\"|\"&Assets!$B83,'Data Annex'!$K$1:$K$869,0),MATCH(Assets!J$47,'Data Annex'!$K$1:$AN$1,0)),\"\")","v":7333.6730869000003},{"$f":"IFERROR(INDEX('Data Annex'!$K$1:$AN$869,MATCH(Assets!K$46&\"|\"&Assets!$B83,'Data Annex'!$K$1:$K$869,0),MATCH(Assets!K$47,'Data Annex'!$K$1:$AN$1,0)),\"\")","v":7015.2945317000003},{"$f":"IFERROR(INDEX('Data Annex'!$K$1:$AN$869,MATCH(Assets!L$46&\"|\"&Assets!$B83,'Data Annex'!$K$1:$K$869,0),MATCH(Assets!L$47,'Data Annex'!$K$1:$AN$1,0)),\"\")","v":6921.9562666000002},{"$f":"IFERROR(INDEX('Data Annex'!$K$1:$AN$869,MATCH(Assets!M$46&\"|\"&Assets!$B83,'Data Annex'!$K$1:$K$869,0),MATCH(Assets!M$47,'Data Annex'!$K$1:$AN$1,0)),\"\")","v":6872.5991205},{"$f":"M83/I83","v":0.95743696693003411},{"$f":"+D83","v":"GB"},null,{"$f":"IFERROR(INDEX('Data Annex'!$K$1:$AN$869,MATCH(Assets!Q$46&\"|\"&Assets!$B83,'Data Annex'!$K$1:$K$869,0),MATCH(Assets!Q$47,'Data Annex'!$K$1:$AN$1,0)),\"\")","v":0.60293596140000005},{"$f":"IFERROR(INDEX('Data Annex'!$K$1:$AN$869,MATCH(Assets!R$46&\"|\"&Assets!$B83,'Data Annex'!$K$1:$K$869,0),MATCH(Assets!R$47,'Data Annex'!$K$1:$AN$1,0)),\"\")","v":0.62207263670000001},{"$f":"IFERROR(INDEX('Data Annex'!$K$1:$AN$869,MATCH(Assets!S$46&\"|\"&Assets!$B83,'Data Annex'!$K$1:$K$869,0),MATCH(Assets!S$47,'Data Annex'!$K$1:$AN$1,0)),\"\")","v":0.62979561910000004},{"$f":"IFERROR(INDEX('Data Annex'!$K$1:$AN$869,MATCH(Assets!T$46&\"|\"&Assets!$B83,'Data Annex'!$K$1:$K$869,0),MATCH(Assets!T$47,'Data Annex'!$K$1:$AN$1,0)),\"\")","v":0.61848991139999998},{"$f":"IFERROR(INDEX('Data Annex'!$K$1:$AN$869,MATCH(Assets!U$46&\"|\"&Assets!$B83,'Data Annex'!$K$1:$K$869,0),MATCH(Assets!U$47,'Data Annex'!$K$1:$AN$1,0)),\"\")","v":8.7135554099999998E-2},{"$f":"IFERROR(INDEX('Data Annex'!$K$1:$AN$869,MATCH(Assets!V$46&\"|\"&Assets!$B83,'Data Annex'!$K$1:$K$869,0),MATCH(Assets!V$47,'Data Annex'!$K$1:$AN$1,0)),\"\")","v":9.5475442999999993E-2},{"$f":"IFERROR(INDEX('Data Annex'!$K$1:$AN$869,MATCH(Assets!W$46&\"|\"&Assets!$B83,'Data Annex'!$K$1:$K$869,0),MATCH(Assets!W$47,'Data Annex'!$K$1:$AN$1,0)),\"\")","v":8.9945928699999997E-2},{"$f":"IFERROR(INDEX('Data Annex'!$K$1:$AN$869,MATCH(Assets!X$46&\"|\"&Assets!$B83,'Data Annex'!$K$1:$K$869,0),MATCH(Assets!X$47,'Data Annex'!$K$1:$AN$1,0)),\"\")","v":9.1297958499999998E-2},{"$f":"IFERROR(INDEX('Data Annex'!$K$1:$AN$869,MATCH(Assets!Y$46&\"|\"&Assets!$B83,'Data Annex'!$K$1:$K$869,0),MATCH(Assets!Y$47,'Data Annex'!$K$1:$AN$1,0)),\"\")","v":0.3099284846},{"$f":"IFERROR(INDEX('Data Annex'!$K$1:$AN$869,MATCH(Assets!Z$46&\"|\"&Assets!$B83,'Data Annex'!$K$1:$K$869,0),MATCH(Assets!Z$47,'Data Annex'!$K$1:$AN$1,0)),\"\")","v":0.28245192019999998},{"$f":"IFERROR(INDEX('Data Annex'!$K$1:$AN$869,MATCH(Assets!AA$46&\"|\"&Assets!$B83,'Data Annex'!$K$1:$K$869,0),MATCH(Assets!AA$47,'Data Annex'!$K$1:$AN$1,0)),\"\")","v":0.28025845220000001},{"$f":"IFERROR(INDEX('Data Annex'!$K$1:$AN$869,MATCH(Assets!AB$46&\"|\"&Assets!$B83,'Data Annex'!$K$1:$K$869,0),MATCH(Assets!AB$47,'Data Annex'!$K$1:$AN$1,0)),\"\")","v":0.29021213010000002}]
[]
[null,null,null,null,null,null,null,null,null,null,null,null,null,{"$f":"H42+L42+P42+T42+X42","v":0.93816142569999994}]
[null,null,null,"Individual country data includes subsidiaries, which are excluded from EU aggregate. For example, at country level the subsidiary in country X of a bank domiciled in country Y is included both in data for countries X and Y (for the latter as part of the consolidated entity). In the EU aggregate, only the consolidated entity domiciled in country Y is considered.  The sample of banks is unbalanced and reviewed annually.\nAs of Q1 2020 onwards UK banks are removed from the EU/EEA aggregate and subsidiaries of UK banks in EU member states are used instead.\n"]
[null,null,null,"* To ensure confidentiality, figures by country are only disclosed if there are at least 3 institutions potentially reporting data, unless institutions provide explicit consent for the publication of country aggregates with less than 3 institutions."]

{"sheet":"Loans Composition","index":4,"n_rows":85,"n_cols":28,"rows_kept":85,"cut":false,"hidden":true,"merged":[[82,3,82,27],[85,3,85,24],[9,24,9,27],[45,8,46,27],[47,3,48,3],[48,4,48,7],[48,8,48,11],[48,12,48,15],[48,16,48,19],[48,20,48,23],[48,24,48,27],[2,3,2,27],[3,3,3,27],[4,3,4,27],[6,8,7,27],[8,3,9,3],[9,4,9,7],[9,8,9,11],[9,12,9,15],[9,16,9,19],[9,20,9,23]]}
[null,null,null,null,"T20_1","T20_1","T20_1","T20_1","T20_2","T20_2","T20_2","T20_2","T20_3","T20_3","T20_3","T20_3","T20_4","T20_4","T20_4","T20_4","T20_5","T20_5","T20_5","T20_5","T20_6","T20_6","T20_6","T20_6"]
[{"$f":"'Reference Dates'!$C$8","v":"202012"},null,null,null,{"$f":"TEXT(E50,\"YYYYMM\")+0","v":202003},202006,202009,202012,202003,202006,202009,202012,202003,202006,202009,202012,202003,202006,202009,202012,202003,202006,202009,202012,202003,202006,202009,202012]
[{"$f":"DATE(LEFT(A2,4),RIGHT(A2,2),1)","v":"2020-12-01"},null,null,"Statistical Annex"]
[null,null,null,"Loans: composition and asset quality"]
[]
[]
[null,null,null,null,null,null,null,null,"of which: loans and advances at amortised cost - by segment (volumes) (2)"]
[]
[null,null,null,"Volumes bn EUR"]
[null,null,null,null,"Loans and advances (1)",null,null,null,"HHs",null,null,null,"…of which mortgages",null,null,null,"NFCs",null,null,null,"…of which SMEs",null,null,null,"…of which CRE"]
[null,null,null,null,{"$f":"EOMONTH($A$3,-9)","v":"2020-03-31"},{"$f":"EOMONTH($A$3,-6)","v":"2020-06-30"},{"$f":"EOMONTH($A$3,-3)","v":"2020-09-30"},{"$f":"EOMONTH($A$3,0)","v":"2020-12-31"},{"$f":"EOMONTH($A$3,-9)","v":"2020-03-31"},{"$f":"EOMONTH($A$3,-6)","v":"2020-06-30"},{"$f":"EOMONTH($A$3,-3)","v":"2020-09-30"},{"$f":"EOMONTH($A$3,0)","v":"2020-12-31"},{"$f":"EOMONTH($A$3,-9)","v":"2020-03-31"},{"$f":"EOMONTH($A$3,-6)","v":"2020-06-30"},{"$f":"EOMONTH($A$3,-3)","v":"2020-09-30"},{"$f":"EOMONTH($A$3,0)","v":"2020-12-31"},{"$f":"EOMONTH($A$3,-9)","v":"2020-03-31"},{"$f":"EOMONTH($A$3,-6)","v":"2020-06-30"},{"$f":"EOMONTH($A$3,-3)","v":"2020-09-30"},{"$f":"EOMONTH($A$3,0)","v":"2020-12-31"},{"$f":"EOMONTH($A$3,-9)","v":"2020-03-31"},{"$f":"EOMONTH($A$3,-6)","v":"2020-06-30"},{"$f":"EOMONTH($A$3,-3)","v":"2020-09-30"},{"$f":"EOMONTH($A$3,0)","v":"2020-12-31"},{"$f":"EOMONTH($A$3,-9)","v":"2020-03-31"},{"$f":"EOMONTH($A$3,-6)","v":"2020-06-30"},{"$f":"EOMONTH($A$3,-3)","v":"2020-09-30"},{"$f":"EOMONTH($A$3,0)","v":"2020-12-31"}]
[1,"AT",null,"AT",{"$f":"IFERROR(INDEX('Data Annex'!$K$1:$AN$4997,MATCH(E$1&\"|\"&$B12,'Data Annex'!$K$1:$K$4997,0),MATCH(E$2,'Data Annex'!$K$1:$AN$1,0)),\"\")","v":513.59108762999995},{"$f":"IFERROR(INDEX('Data Annex'!$K$1:$AN$4997,MATCH(F$1&\"|\"&$B12,'Data Annex'!$K$1:$K$4997,0),MATCH(F$2,'Data Annex'!$K$1:$AN$1,0)),\"\")","v":541.46739639999998},{"$f":"IFERROR(INDEX('Data Annex'!$K$1:$AN$4997,MATCH(G$1&\"|\"&$B12,'Data Annex'!$K$1:$K$4997,0),MATCH(G$2,'Data Annex'!$K$1:$AN$1,0)),\"\")","v":554.35121222999999},{"$f":"IFERROR(INDEX('Data Annex'!$K$1:$AN$4997,MATCH(H$1&\"|\"&$B12,'Data Annex'!$K$1:$K$4997,0),MATCH(H$2,'Data Annex'!$K$1:$AN$1,0)),\"\")","v":566.91622427000004},{"$f":"IFERROR(INDEX('Data Annex'!$K$1:$AN$4997,MATCH(I$1&\"|\"&$B12,'Data Annex'!$K$1:$K$4997,0),MATCH(I$2,'Data Annex'!$K$1:$AN$1,0)),\"\")","v":165.08231988},{"$f":"IFERROR(INDEX('Data Annex'!$K$1:$AN$4997,MATCH(J$1&\"|\"&$B12,'Data Annex'!$K$1:$K$4997,0),MATCH(J$2,'Data Annex'!$K$1:$AN$1,0)),\"\")","v":167.10577631000001},{"$f":"IFERROR(INDEX('Data Annex'!$K$1:$AN$4997,MATCH(K$1&\"|\"&$B12,'Data Annex'!$K$1:$K$4997,0),MATCH(K$2,'Data Annex'!$K$1:$AN$1,0)),\"\")","v":168.71219726000001},{"$f":"IFERROR(INDEX('Data Annex'!$K$1:$AN$4997,MATCH(L$1&\"|\"&$B12,'Data Annex'!$K$1:$K$4997,0),MATCH(L$2,'Data Annex'!$K$1:$AN$1,0)),\"\")","v":172.05268824999999},{"$f":"IFERROR(INDEX('Data Annex'!$K$1:$AN$4997,MATCH(M$1&\"|\"&$B12,'Data Annex'!$K$1:$K$4997,0),MATCH(M$2,'Data Annex'!$K$1:$AN$1,0)),\"\")","v":110.66872938},{"$f":"IFERROR(INDEX('Data Annex'!$K$1:$AN$4997,MATCH(N$1&\"|\"&$B12,'Data Annex'!$K$1:$K$4997,0),MATCH(N$2,'Data Annex'!$K$1:$AN$1,0)),\"\")","v":114.35113095},{"$f":"IFERROR(INDEX('Data Annex'!$K$1:$AN$4997,MATCH(O$1&\"|\"&$B12,'Data Annex'!$K$1:$K$4997,0),MATCH(O$2,'Data Annex'!$K$1:$AN$1,0)),\"\")","v":115.97103602999999},{"$f":"IFERROR(INDEX('Data Annex'!$K$1:$AN$4997,MATCH(P$1&\"|\"&$B12,'Data Annex'!$K$1:$K$4997,0),MATCH(P$2,'Data Annex'!$K$1:$AN$1,0)),\"\")","v":118.51878290000001},{"$f":"IFERROR(INDEX('Data Annex'!$K$1:$AN$4997,MATCH(Q$1&\"|\"&$B12,'Data Annex'!$K$1:$K$4997,0),MATCH(Q$2,'Data Annex'!$K$1:$AN$1,0)),\"\")","v":200.47082784},{"$f":"IFERROR(INDEX('Data Annex'!$K$1:$AN$4997,MATCH(R$1&\"|\"&$B12,'Data Annex'!$K$1:$K$4997,0),MATCH(R$2,'Data Annex'!$K$1:$AN$1,0)),\"\")","v":201.98444384000001},{"$f":"IFERROR(INDEX('Data Annex'!$K$1:$AN$4997,MATCH(S$1&\"|\"&$B12,'Data Annex'!$K$1:$K$4997,0),MATCH(S$2,'Data Annex'!$K$1:$AN$1,0)),\"\")","v":198.81441391999999},{"$f":"IFERROR(INDEX('Data Annex'!$K$1:$AN$4997,MATCH(T$1&\"|\"&$B12,'Data Annex'!$K$1:$K$4997,0),MATCH(T$2,'Data Annex'!$K$1:$AN$1,0)),\"\")","v":198.04318372},{"$f":"IFERROR(INDEX('Data Annex'!$K$1:$AN$4997,MATCH(U$1&\"|\"&$B12,'Data Annex'!$K$1:$K$4997,0),MATCH(U$2,'Data Annex'!$K$1:$AN$1,0)),\"\")","v":70.942705360000005},{"$f":"IFERROR(INDEX('Data Annex'!$K$1:$AN$4997,MATCH(V$1&\"|\"&$B12,'Data Annex'!$K$1:$K$4997,0),MATCH(V$2,'Data Annex'!$K$1:$AN$1,0)),\"\")","v":71.593764929000002},{"$f":"IFERROR(INDEX('Data Annex'!$K$1:$AN$4997,MATCH(W$1&\"|\"&$B12,'Data Annex'!$K$1:$K$4997,0),MATCH(W$2,'Data Annex'!$K$1:$AN$1,0)),\"\")","v":72.172784806999999},{"$f":"IFERROR(INDEX('Data Annex'!$K$1:$AN$4997,MATCH(X$1&\"|\"&$B12,'Data Annex'!$K$1:$K$4997,0),MATCH(X$2,'Data Annex'!$K$1:$AN$1,0)),\"\")","v":72.406481854000006},{"$f":"IFERROR(INDEX('Data Annex'!$K$1:$AN$4997,MATCH(Y$1&\"|\"&$B12,'Data Annex'!$K$1:$K$4997,0),MATCH(Y$2,'Data Annex'!$K$1:$AN$1,0)),\"\")","v":56.251447271000004},{"$f":"IFERROR(INDEX('Data Annex'!$K$1:$AN$4997,MATCH(Z$1&\"|\"&$B12,'Data Annex'!$K$1:$K$4997,0),MATCH(Z$2,'Data Annex'!$K$1:$AN$1,0)),\"\")","v":59.06616623},{"$f":"IFERROR(INDEX('Data Annex'!$K$1:$AN$4997,MATCH(AA$1&\"|\"&$B12,'Data Annex'!$K$1:$K$4997,0),MATCH(AA$2,'Data Annex'!$K$1:$AN$1,0)),\"\")","v":58.366198939},{"$f":"IFERROR(INDEX('Data Annex'!$K$1:$AN$4997,MATCH(AB$1&\"|\"&$B12,'Data Annex'!$K$1:$K$4997,0),MATCH(AB$2,'Data Annex'!$K$1:$AN$1,0)),\"\")","v":59.315264655999997}]
[2,"BE",null,"BE",{"$f":"IFERROR(INDEX('Data Annex'!$K$1:$AN$4997,MATCH(E$1&\"|\"&$B13,'Data Annex'!$K$1:$K$4997,0),MATCH(E$2,'Data Annex'!$K$1:$AN$1,0)),\"\")","v":878.56802258000005},{"$f":"IFERROR(INDEX('Data Annex'!$K$1:$AN$4997,MATCH(F$1&\"|\"&$B13,'Data Annex'!$K$1:$K$4997,0),MATCH(F$2,'Data Annex'!$K$1:$AN$1,0)),\"\")","v":891.22616115000005},{"$f":"IFERROR(INDEX('Data Annex'!$K$1:$AN$4997,MATCH(G$1&\"|\"&$B13,'Data Annex'!$K$1:$K$4997,0),MATCH(G$2,'Data Annex'!$K$1:$AN$1,0)),\"\")","v":892.44330901000001},{"$f":"IFERROR(INDEX('Data Annex'!$K$1:$AN$4997,MATCH(H$1&\"|\"&$B13,'Data Annex'!$K$1:$K$4997,0),MATCH(H$2,'Data Annex'!$K$1:$AN$1,0)),\"\")","v":902.24074718999998},{"$f":"IFERROR(INDEX('Data Annex'!$K$1:$AN$4997,MATCH(I$1&\"|\"&$B13,'Data Annex'!$K$1:$K$4997,0),MATCH(I$2,'Data Annex'!$K$1:$AN$1,0)),\"\")","v":291.90839016000001},{"$f":"IFERROR(INDEX('Data Annex'!$K$1:$AN$4997,MATCH(J$1&\"|\"&$B13,'Data Annex'!$K$1:$K$4997,0),MATCH(J$2,'Data Annex'!$K$1:$AN$1,0)),\"\")","v":293.59023745000002},{"$f":"IFERROR(INDEX('Data Annex'!$K$1:$AN$4997,MATCH(K$1&\"|\"&$B13,'Data Annex'!$K$1:$K$4997,0),MATCH(K$2,'Data Annex'!$K$1:$AN$1,0)),\"\")","v":296.93559243999999},{"$f":"IFERROR(INDEX('Data Annex'!$K$1:$AN$4997,MATCH(L$1&\"|\"&$B13,'Data Annex'!$K$1:$K$4997,0),MATCH(L$2,'Data Annex'!$K$1:$AN$1,0)),\"\")","v":302.42564375000001},{"$f":"IFERROR(INDEX('Data Annex'!$K$1:$AN$4997,MATCH(M$1&\"|\"&$B13,'Data Annex'!$K$1:$K$4997,0),MATCH(M$2,'Data Annex'!$K$1:$AN$1,0)),\"\")","v":241.27968027},{"$f":"IFERROR(INDEX('Data Annex'!$K$1:$AN$4997,MATCH(N$1&\"|\"&$B13,'Data Annex'!$K$1:$K$4997,0),MATCH(N$2,'Data Annex'!$K$1:$AN$1,0)),\"\")","v":245.60802999000001},{"$f":"IFERROR(INDEX('Data Annex'!$K$1:$AN$4997,MATCH(O$1&\"|\"&$B13,'Data Annex'!$K$1:$K$4997,0),MATCH(O$2,'Data Annex'!$K$1:$AN$1,0)),\"\")","v":248.23638929000001},{"$f":"IFERROR(INDEX('Data Annex'!$K$1:$AN$4997,MATCH(P$1&\"|\"&$B13,'Data Annex'!$K$1:$K$4997,0),MATCH(P$2,'Data Annex'!$K$1:$AN$1,0)),\"\")","v":254.01278302},{"$f":"IFERROR(INDEX('Data Annex'!$K$1:$AN$4997,MATCH(Q$1&\"|\"&$B13,'Data Annex'!$K$1:$K$4997,0),MATCH(Q$2,'Data Annex'!$K$1:$AN$1,0)),\"\")","v":261.26382455999999},{"$f":"IFERROR(INDEX('Data Annex'!$K$1:$AN$4997,MATCH(R$1&\"|\"&$B13,'Data Annex'!$K$1:$K$4997,0),MATCH(R$2,'Data Annex'!$K$1:$AN$1,0)),\"\")","v":252.60276626000001},{"$f":"IFERROR(INDEX('Data Annex'!$K$1:$AN$4997,MATCH(S$1&\"|\"&$B13,'Data Annex'!$K$1:$K$4997,0),MATCH(S$2,'Data Annex'!$K$1:$AN$1,0)),\"\")","v":247.12405974000001},{"$f":"IFERROR(INDEX('Data Annex'!$K$1:$AN$4997,MATCH(T$1&\"|\"&$B13,'Data Annex'!$K$1:$K$4997,0),MATCH(T$2,'Data Annex'!$K$1:$AN$1,0)),\"\")","v":247.42598303},{"$f":"IFERROR(INDEX('Data Annex'!$K$1:$AN$4997,MATCH(U$1&\"|\"&$B13,'Data Annex'!$K$1:$K$4997,0),MATCH(U$2,'Data Annex'!$K$1:$AN$1,0)),\"\")","v":113.01848651},{"$f":"IFERROR(INDEX('Data Annex'!$K$1:$AN$4997,MATCH(V$1&\"|\"&$B13,'Data Annex'!$K$1:$K$4997,0),MATCH(V$2,'Data Annex'!$K$1:$AN$1,0)),\"\")","v":113.56047882999999},{"$f":"IFERROR(INDEX('Data Annex'!$K$1:$AN$4997,MATCH(W$1&\"|\"&$B13,'Data Annex'!$K$1:$K$4997,0),MATCH(W$2,'Data Annex'!$K$1:$AN$1,0)),\"\")","v":118.21133004000001},{"$f":"IFERROR(INDEX('Data Annex'!$K$1:$AN$4997,MATCH(X$1&\"|\"&$B13,'Data Annex'!$K$1:$K$4997,0),MATCH(X$2,'Data Annex'!$K$1:$AN$1,0)),\"\")","v":119.64769463},{"$f":"IFERROR(INDEX('Data Annex'!$K$1:$AN$4997,MATCH(Y$1&\"|\"&$B13,'Data Annex'!$K$1:$K$4997,0),MATCH(Y$2,'Data Annex'!$K$1:$AN$1,0)),\"\")","v":50.587839144999997},{"$f":"IFERROR(INDEX('Data Annex'!$K$1:$AN$4997,MATCH(Z$1&\"|\"&$B13,'Data Annex'!$K$1:$K$4997,0),MATCH(Z$2,'Data Annex'!$K$1:$AN$1,0)),\"\")","v":58.046955723000004},{"$f":"IFERROR(INDEX('Data Annex'!$K$1:$AN$4997,MATCH(AA$1&\"|\"&$B13,'Data Annex'!$K$1:$K$4997,0),MATCH(AA$2,'Data Annex'!$K$1:$AN$1,0)),\"\")","v":56.215189113000001},{"$f":"IFERROR(INDEX('Data Annex'!$K$1:$AN$4997,MATCH(AB$1&\"|\"&$B13,'Data Annex'!$K$1:$K$4997,0),MATCH(AB$2,'Data Annex'!$K$1:$AN$1,0)),\"\")","v":57.376180507000001}]
[3,"BG",null,"BG",{"$f":"IFERROR(INDEX('Data Annex'!$K$1:$AN$4997,MATCH(E$1&\"|\"&$B14,'Data Annex'!$K$1:$K$4997,0),MATCH(E$2,'Data Annex'!$K$1:$AN$1,0)),\"\")","v":27.566209735000001},{"$f":"IFERROR(INDEX('Data Annex'!$K$1:$AN$4997,MATCH(F$1&\"|\"&$B14,'Data Annex'!$K$1:$K$4997,0),MATCH(F$2,'Data Annex'!$K$1:$AN$1,0)),\"\")","v":27.838237038999999},{"$f":"IFERROR(INDEX('Data Annex'!$K$1:$AN$4997,MATCH(G$1&\"|\"&$B14,'Data Annex'!$K$1:$K$4997,0),MATCH(G$2,'Data Annex'!$K$1:$AN$1,0)),\"\")","v":28.710451988999999},{"$f":"IFERROR(INDEX('Data Annex'!$K$1:$AN$4997,MATCH(H$1&\"|\"&$B14,'Data Annex'!$K$1:$K$4997,0),MATCH(H$2,'Data Annex'!$K$1:$AN$1,0)),\"\")","v":29.965467838999999},{"$f":"IFERROR(INDEX('Data Annex'!$K$1:$AN$4997,MATCH(I$1&\"|\"&$B14,'Data Annex'!$K$1:$K$4997,0),MATCH(I$2,'Data Annex'!$K$1:$AN$1,0)),\"\")","v":8.7331465384999998},{"$f":"IFERROR(INDEX('Data Annex'!$K$1:$AN$4997,MATCH(J$1&\"|\"&$B14,'Data Annex'!$K$1:$K$4997,0),MATCH(J$2,'Data Annex'!$K$1:$AN$1,0)),\"\")","v":8.7988925247999994},{"$f":"IFERROR(INDEX('Data Annex'!$K$1:$AN$4997,MATCH(K$1&\"|\"&$B14,'Data Annex'!$K$1:$K$4997,0),MATCH(K$2,'Data Annex'!$K$1:$AN$1,0)),\"\")","v":8.9684390019000002},{"$f":"IFERROR(INDEX('Data Annex'!$K$1:$AN$4997,MATCH(L$1&\"|\"&$B14,'Data Annex'!$K$1:$K$4997,0),MATCH(L$2,'Data Annex'!$K$1:$AN$1,0)),\"\")","v":9.0498021269999995},{"$f":"IFERROR(INDEX('Data Annex'!$K$1:$AN$4997,MATCH(M$1&\"|\"&$B14,'Data Annex'!$K$1:$K$4997,0),MATCH(M$2,'Data Annex'!$K$1:$AN$1,0)),\"\")","v":4.0439635955000002},{"$f":"IFERROR(INDEX('Data Annex'!$K$1:$AN$4997,MATCH(N$1&\"|\"&$B14,'Data Annex'!$K$1:$K$4997,0),MATCH(N$2,'Data Annex'!$K$1:$AN$1,0)),\"\")","v":4.1068493711},{"$f":"IFERROR(INDEX('Data Annex'!$K$1:$AN$4997,MATCH(O$1&\"|\"&$B14,'Data Annex'!$K$1:$K$4997,0),MATCH(O$2,'Data Annex'!$K$1:$AN$1,0)),\"\")","v":4.1732636260999998},{"$f":"IFERROR(INDEX('Data Annex'!$K$1:$AN$4997,MATCH(P$1&\"|\"&$B14,'Data Annex'!$K$1:$K$4997,0),MATCH(P$2,'Data Annex'!$K$1:$AN$1,0)),\"\")","v":4.2790556294000002},{"$f":"IFERROR(INDEX('Data Annex'!$K$1:$AN$4997,MATCH(Q$1&\"|\"&$B14,'Data Annex'!$K$1:$K$4997,0),MATCH(Q$2,'Data Annex'!$K$1:$AN$1,0)),\"\")","v":11.184938132999999},{"$f":"IFERROR(INDEX('Data Annex'!$K$1:$AN$4997,MATCH(R$1&\"|\"&$B14,'Data Annex'!$K$1:$K$4997,0),MATCH(R$2,'Data Annex'!$K$1:$AN$1,0)),\"\")","v":10.958982514000001},{"$f":"IFERROR(INDEX('Data Annex'!$K$1:$AN$4997,MATCH(S$1&\"|\"&$B14,'Data Annex'!$K$1:$K$4997,0),MATCH(S$2,'Data Annex'!$K$1:$AN$1,0)),\"\")","v":11.16517691},{"$f":"IFERROR(INDEX('Data Annex'!$K$1:$AN$4997,MATCH(T$1&\"|\"&$B14,'Data Annex'!$K$1:$K$4997,0),MATCH(T$2,'Data Annex'!$K$1:$AN$1,0)),\"\")","v":11.325403927},{"$f":"IFERROR(INDEX('Data Annex'!$K$1:$AN$4997,MATCH(U$1&\"|\"&$B14,'Data Annex'!$K$1:$K$4997,0),MATCH(U$2,'Data Annex'!$K$1:$AN$1,0)),\"\")","v":6.2547208304000002},{"$f":"IFERROR(INDEX('Data Annex'!$K$1:$AN$4997,MATCH(V$1&\"|\"&$B14,'Data Annex'!$K$1:$K$4997,0),MATCH(V$2,'Data Annex'!$K$1:$AN$1,0)),\"\")","v":5.9230314961000001},{"$f":"IFERROR(INDEX('Data Annex'!$K$1:$AN$4997,MATCH(W$1&\"|\"&$B14,'Data Annex'!$K$1:$K$4997,0),MATCH(W$2,'Data Annex'!$K$1:$AN$1,0)),\"\")","v":6.1497530422000004},{"$f":"IFERROR(INDEX('Data Annex'!$K$1:$AN$4997,MATCH(X$1&\"|\"&$B14,'Data Annex'!$K$1:$K$4997,0),MATCH(X$2,'Data Annex'!$K$1:$AN$1,0)),\"\")","v":5.6280703548000002},{"$f":"IFERROR(INDEX('Data Annex'!$K$1:$AN$4997,MATCH(Y$1&\"|\"&$B14,'Data Annex'!$K$1:$K$4997,0),MATCH(Y$2,'Data Annex'!$K$1:$AN$1,0)),\"\")","v":5.9523974843999996},{"$f":"IFERROR(INDEX('Data Annex'!$K$1:$AN$4997,MATCH(Z$1&\"|\"&$B14,'Data Annex'!$K$1:$K$4997,0),MATCH(Z$2,'Data Annex'!$K$1:$AN$1,0)),\"\")","v":5.7780754677999999},{"$f":"IFERROR(INDEX('Data Annex'!$K$1:$AN$4997,MATCH(AA$1&\"|\"&$B14,'Data Annex'!$K$1:$K$4997,0),MATCH(AA$2,'Data Annex'!$K$1:$AN$1,0)),\"\")","v":5.8723887922999998},{"$f":"IFERROR(INDEX('Data Annex'!$K$1:$AN$4997,MATCH(AB$1&\"|\"&$B14,'Data Annex'!$K$1:$K$4997,0),MATCH(AB$2,'Data Annex'!$K$1:$AN$1,0)),\"\")","v":5.6912629102999999}]
[4,"CY",null,"CY",{"$f":"IFERROR(INDEX('Data Annex'!$K$1:$AN$4997,MATCH(E$1&\"|\"&$B15,'Data Annex'!$K$1:$K$4997,0),MATCH(E$2,'Data Annex'!$K$1:$AN$1,0)),\"\")","v":28.431063000000002},{"$f":"IFERROR(INDEX('Data Annex'!$K$1:$AN$4997,MATCH(F$1&\"|\"&$B15,'Data Annex'!$K$1:$K$4997,0),MATCH(F$2,'Data Annex'!$K$1:$AN$1,0)),\"\")","v":27.265730631},{"$f":"IFERROR(INDEX('Data Annex'!$K$1:$AN$4997,MATCH(G$1&\"|\"&$B15,'Data Annex'!$K$1:$K$4997,0),MATCH(G$2,'Data Annex'!$K$1:$AN$1,0)),\"\")","v":27.037255834},{"$f":"IFERROR(INDEX('Data Annex'!$K$1:$AN$4997,MATCH(H$1&\"|\"&$B15,'Data Annex'!$K$1:$K$4997,0),MATCH(H$2,'Data Annex'!$K$1:$AN$1,0)),\"\")","v":27.359479196999999},{"$f":"IFERROR(INDEX('Data Annex'!$K$1:$AN$4997,MATCH(I$1&\"|\"&$B15,'Data Annex'!$K$1:$K$4997,0),MATCH(I$2,'Data Annex'!$K$1:$AN$1,0)),\"\")","v":10.280476},{"$f":"IFERROR(INDEX('Data Annex'!$K$1:$AN$4997,MATCH(J$1&\"|\"&$B15,'Data Annex'!$K$1:$K$4997,0),MATCH(J$2,'Data Annex'!$K$1:$AN$1,0)),\"\")","v":9.4650388010000004},{"$f":"IFERROR(INDEX('Data Annex'!$K$1:$AN$4997,MATCH(K$1&\"|\"&$B15,'Data Annex'!$K$1:$K$4997,0),MATCH(K$2,'Data Annex'!$K$1:$AN$1,0)),\"\")","v":9.4020580169999999},{"$f":"IFERROR(INDEX('Data Annex'!$K$1:$AN$4997,MATCH(L$1&\"|\"&$B15,'Data Annex'!$K$1:$K$4997,0),MATCH(L$2,'Data Annex'!$K$1:$AN$1,0)),\"\")","v":3.9121155089999999},{"$f":"IFERROR(INDEX('Data Annex'!$K$1:$AN$4997,MATCH(M$1&\"|\"&$B15,'Data Annex'!$K$1:$K$4997,0),MATCH(M$2,'Data Annex'!$K$1:$AN$1,0)),\"\")","v":7.6035919999999999},{"$f":"IFERROR(INDEX('Data Annex'!$K$1:$AN$4997,MATCH(N$1&\"|\"&$B15,'Data Annex'!$K$1:$K$4997,0),MATCH(N$2,'Data Annex'!$K$1:$AN$1,0)),\"\")","v":7.1096724790000003},{"$f":"IFERROR(INDEX('Data Annex'!$K$1:$AN$4997,MATCH(O$1&\"|\"&$B15,'Data Annex'!$K$1:$K$4997,0),MATCH(O$2,'Data Annex'!$K$1:$AN$1,0)),\"\")","v":7.0908087789999996},{"$f":"IFERROR(INDEX('Data Annex'!$K$1:$AN$4997,MATCH(P$1&\"|\"&$B15,'Data Annex'!$K$1:$K$4997,0),MATCH(P$2,'Data Annex'!$K$1:$AN$1,0)),\"\")","v":2.8789266859999998},{"$f":"IFERROR(INDEX('Data Annex'!$K$1:$AN$4997,MATCH(Q$1&\"|\"&$B15,'Data Annex'!$K$1:$K$4997,0),MATCH(Q$2,'Data Annex'!$K$1:$AN$1,0)),\"\")","v":8.7081569999999999},{"$f":"IFERROR(INDEX('Data Annex'!$K$1:$AN$4997,MATCH(R$1&\"|\"&$B15,'Data Annex'!$K$1:$K$4997,0),MATCH(R$2,'Data Annex'!$K$1:$AN$1,0)),\"\")","v":8.1492100930000007},{"$f":"IFERROR(INDEX('Data Annex'!$K$1:$AN$4997,MATCH(S$1&\"|\"&$B15,'Data Annex'!$K$1:$K$4997,0),MATCH(S$2,'Data Annex'!$K$1:$AN$1,0)),\"\")","v":7.9693989109999999},{"$f":"IFERROR(INDEX('Data Annex'!$K$1:$AN$4997,MATCH(T$1&\"|\"&$B15,'Data Annex'!$K$1:$K$4997,0),MATCH(T$2,'Data Annex'!$K$1:$AN$1,0)),\"\")","v":2.7278224529999999},{"$f":"IFERROR(INDEX('Data Annex'!$K$1:$AN$4997,MATCH(U$1&\"|\"&$B15,'Data Annex'!$K$1:$K$4997,0),MATCH(U$2,'Data Annex'!$K$1:$AN$1,0)),\"\")","v":7.2305989999999998},{"$f":"IFERROR(INDEX('Data Annex'!$K$1:$AN$4997,MATCH(V$1&\"|\"&$B15,'Data Annex'!$K$1:$K$4997,0),MATCH(V$2,'Data Annex'!$K$1:$AN$1,0)),\"\")","v":6.6427683059999998},{"$f":"IFERROR(INDEX('Data Annex'!$K$1:$AN$4997,MATCH(W$1&\"|\"&$B15,'Data Annex'!$K$1:$K$4997,0),MATCH(W$2,'Data Annex'!$K$1:$AN$1,0)),\"\")","v":6.4032242830000001},{"$f":"IFERROR(INDEX('Data Annex'!$K$1:$AN$4997,MATCH(X$1&\"|\"&$B15,'Data Annex'!$K$1:$K$4997,0),MATCH(X$2,'Data Annex'!$K$1:$AN$1,0)),\"\")","v":2.4307452139999999},{"$f":"IFERROR(INDEX('Data Annex'!$K$1:$AN$4997,MATCH(Y$1&\"|\"&$B15,'Data Annex'!$K$1:$K$4997,0),MATCH(Y$2,'Data Annex'!$K$1:$AN$1,0)),\"\")","v":6.2871199999999998},{"$f":"IFERROR(INDEX('Data Annex'!$K$1:$AN$4997,MATCH(Z$1&\"|\"&$B15,'Data Annex'!$K$1:$K$4997,0),MATCH(Z$2,'Data Annex'!$K$1:$AN$1,0)),\"\")","v":5.9823787939999997},{"$f":"IFERROR(INDEX('Data Annex'!$K$1:$AN$4997,MATCH(AA$1&\"|\"&$B15,'Data Annex'!$K$1:$K$4997,0),MATCH(AA$2,'Data Annex'!$K$1:$AN$1,0)),\"\")","v":5.8848362339999998},{"$f":"IFERROR(INDEX('Data Annex'!$K$1:$AN$4997,MATCH(AB$1&\"|\"&$B15,'Data Annex'!$K$1:$K$4997,0),MATCH(AB$2,'Data Annex'!$K$1:$AN$1,0)),\"\")","v":1.958571786}]
[5,"CZ",null,"CZ",{"$f":"IFERROR(INDEX('Data Annex'!$K$1:$AN$4997,MATCH(E$1&\"|\"&$B16,'Data Annex'!$K$1:$K$4997,0),MATCH(E$2,'Data Annex'!$K$1:$AN$1,0)),\"\")","v":143.88470803000001},{"$f":"IFERROR(INDEX('Data Annex'!$K$1:$AN$4997,MATCH(F$1&\"|\"&$B16,'Data Annex'!$K$1:$K$4997,0),MATCH(F$2,'Data Annex'!$K$1:$AN$1,0)),\"\")","v":141.1549972},{"$f":"IFERROR(INDEX('Data Annex'!$K$1:$AN$4997,MATCH(G$1&\"|\"&$B16,'Data Annex'!$K$1:$K$4997,0),MATCH(G$2,'Data Annex'!$K$1:$AN$1,0)),\"\")","v":140.15676388},{"$f":"IFERROR(INDEX('Data Annex'!$K$1:$AN$4997,MATCH(H$1&\"|\"&$B16,'Data Annex'!$K$1:$K$4997,0),MATCH(H$2,'Data Annex'!$K$1:$AN$1,0)),\"\")","v":138.71606141999999},{"$f":"IFERROR(INDEX('Data Annex'!$K$1:$AN$4997,MATCH(I$1&\"|\"&$B16,'Data Annex'!$K$1:$K$4997,0),MATCH(I$2,'Data Annex'!$K$1:$AN$1,0)),\"\")","v":47.298000023999997},{"$f":"IFERROR(INDEX('Data Annex'!$K$1:$AN$4997,MATCH(J$1&\"|\"&$B16,'Data Annex'!$K$1:$K$4997,0),MATCH(J$2,'Data Annex'!$K$1:$AN$1,0)),\"\")","v":48.785310971999998},{"$f":"IFERROR(INDEX('Data Annex'!$K$1:$AN$4997,MATCH(K$1&\"|\"&$B16,'Data Annex'!$K$1:$K$4997,0),MATCH(K$2,'Data Annex'!$K$1:$AN$1,0)),\"\")","v":48.858240786000003},{"$f":"IFERROR(INDEX('Data Annex'!$K$1:$AN$4997,MATCH(L$1&\"|\"&$B16,'Data Annex'!$K$1:$K$4997,0),MATCH(L$2,'Data Annex'!$K$1:$AN$1,0)),\"\")","v":51.323486537999997},{"$f":"IFERROR(INDEX('Data Annex'!$K$1:$AN$4997,MATCH(M$1&\"|\"&$B16,'Data Annex'!$K$1:$K$4997,0),MATCH(M$2,'Data Annex'!$K$1:$AN$1,0)),\"\")","v":35.643065116999999},{"$f":"IFERROR(INDEX('Data Annex'!$K$1:$AN$4997,MATCH(N$1&\"|\"&$B16,'Data Annex'!$K$1:$K$4997,0),MATCH(N$2,'Data Annex'!$K$1:$AN$1,0)),\"\")","v":37.343047259999999},{"$f":"IFERROR(INDEX('Data Annex'!$K$1:$AN$4997,MATCH(O$1&\"|\"&$B16,'Data Annex'!$K$1:$K$4997,0),MATCH(O$2,'Data Annex'!$K$1:$AN$1,0)),\"\")","v":37.511917306999997},{"$f":"IFERROR(INDEX('Data Annex'!$K$1:$AN$4997,MATCH(P$1&\"|\"&$B16,'Data Annex'!$K$1:$K$4997,0),MATCH(P$2,'Data Annex'!$K$1:$AN$1,0)),\"\")","v":39.671670532999997},{"$f":"IFERROR(INDEX('Data Annex'!$K$1:$AN$4997,MATCH(Q$1&\"|\"&$B16,'Data Annex'!$K$1:$K$4997,0),MATCH(Q$2,'Data Annex'!$K$1:$AN$1,0)),\"\")","v":29.814813514000001},{"$f":"IFERROR(INDEX('Data Annex'!$K$1:$AN$4997,MATCH(R$1&\"|\"&$B16,'Data Annex'!$K$1:$K$4997,0),MATCH(R$2,'Data Annex'!$K$1:$AN$1,0)),\"\")","v":30.442824435999999},{"$f":"IFERROR(INDEX('Data Annex'!$K$1:$AN$4997,MATCH(S$1&\"|\"&$B16,'Data Annex'!$K$1:$K$4997,0),MATCH(S$2,'Data Annex'!$K$1:$AN$1,0)),\"\")","v":29.796336358000001},{"$f":"IFERROR(INDEX('Data Annex'!$K$1:$AN$4997,MATCH(T$1&\"|\"&$B16,'Data Annex'!$K$1:$K$4997,0),MATCH(T$2,'Data Annex'!$K$1:$AN$1,0)),\"\")","v":29.936252917000001},{"$f":"IFERROR(INDEX('Data Annex'!$K$1:$AN$4997,MATCH(U$1&\"|\"&$B16,'Data Annex'!$K$1:$K$4997,0),MATCH(U$2,'Data Annex'!$K$1:$AN$1,0)),\"\")","v":11.078696978},{"$f":"IFERROR(INDEX('Data Annex'!$K$1:$AN$4997,MATCH(V$1&\"|\"&$B16,'Data Annex'!$K$1:$K$4997,0),MATCH(V$2,'Data Annex'!$K$1:$AN$1,0)),\"\")","v":11.500908225},{"$f":"IFERROR(INDEX('Data Annex'!$K$1:$AN$4997,MATCH(W$1&\"|\"&$B16,'Data Annex'!$K$1:$K$4997,0),MATCH(W$2,'Data Annex'!$K$1:$AN$1,0)),\"\")","v":11.291663428},{"$f":"IFERROR(INDEX('Data Annex'!$K$1:$AN$4997,MATCH(X$1&\"|\"&$B16,'Data Annex'!$K$1:$K$4997,0),MATCH(X$2,'Data Annex'!$K$1:$AN$1,0)),\"\")","v":11.722953347000001},{"$f":"IFERROR(INDEX('Data Annex'!$K$1:$AN$4997,MATCH(Y$1&\"|\"&$B16,'Data Annex'!$K$1:$K$4997,0),MATCH(Y$2,'Data Annex'!$K$1:$AN$1,0)),\"\")","v":12.069901378000001},{"$f":"IFERROR(INDEX('Data Annex'!$K$1:$AN$4997,MATCH(Z$1&\"|\"&$B16,'Data Annex'!$K$1:$K$4997,0),MATCH(Z$2,'Data Annex'!$K$1:$AN$1,0)),\"\")","v":12.162069296},{"$f":"IFERROR(INDEX('Data Annex'!$K$1:$AN$4997,MATCH(AA$1&\"|\"&$B16,'Data Annex'!$K$1:$K$4997,0),MATCH(AA$2,'Data Annex'!$K$1:$AN$1,0)),\"\")","v":12.101875974},{"$f":"IFERROR(INDEX('Data Annex'!$K$1:$AN$4997,MATCH(AB$1&\"|\"&$B16,'Data Annex'!$K$1:$K$4997,0),MATCH(AB$2,'Data Annex'!$K$1:$AN$1,0)),\"\")","v":12.953168940999999}]
[6,"DE",null,"DE",{"$f":"IFERROR(INDEX('Data Annex'!$K$1:$AN$4997,MATCH(E$1&\"|\"&$B17,'Data Annex'!$K$1:$K$4997,0),MATCH(E$2,'Data Annex'!$K$1:$AN$1,0)),\"\")","v":2624.6113260000002},{"$f":"IFERROR(INDEX('Data Annex'!$K$1:$AN$4997,MATCH(F$1&\"|\"&$B17,'Data Annex'!$K$1:$K$4997,0),MATCH(F$2,'Data Annex'!$K$1:$AN$1,0)),\"\")","v":2684.7660320999998},{"$f":"IFERROR(INDEX('Data Annex'!$K$1:$AN$4997,MATCH(G$1&\"|\"&$B17,'Data Annex'!$K$1:$K$4997,0),MATCH(G$2,'Data Annex'!$K$1:$AN$1,0)),\"\")","v":2706.4013450000002},{"$f":"IFERROR(INDEX('Data Annex'!$K$1:$AN$4997,MATCH(H$1&\"|\"&$B17,'Data Annex'!$K$1:$K$4997,0),MATCH(H$2,'Data Annex'!$K$1:$AN$1,0)),\"\")","v":2557.7300386000002},{"$f":"IFERROR(INDEX('Data Annex'!$K$1:$AN$4997,MATCH(I$1&\"|\"&$B17,'Data Annex'!$K$1:$K$4997,0),MATCH(I$2,'Data Annex'!$K$1:$AN$1,0)),\"\")","v":509.91024157999999},{"$f":"IFERROR(INDEX('Data Annex'!$K$1:$AN$4997,MATCH(J$1&\"|\"&$B17,'Data Annex'!$K$1:$K$4997,0),MATCH(J$2,'Data Annex'!$K$1:$AN$1,0)),\"\")","v":511.83170601},{"$f":"IFERROR(INDEX('Data Annex'!$K$1:$AN$4997,MATCH(K$1&\"|\"&$B17,'Data Annex'!$K$1:$K$4997,0),MATCH(K$2,'Data Annex'!$K$1:$AN$1,0)),\"\")","v":518.35084531999996},{"$f":"IFERROR(INDEX('Data Annex'!$K$1:$AN$4997,MATCH(L$1&\"|\"&$B17,'Data Annex'!$K$1:$K$4997,0),MATCH(L$2,'Data Annex'!$K$1:$AN$1,0)),\"\")","v":445.81807491000001},{"$f":"IFERROR(INDEX('Data Annex'!$K$1:$AN$4997,MATCH(M$1&\"|\"&$B17,'Data Annex'!$K$1:$K$4997,0),MATCH(M$2,'Data Annex'!$K$1:$AN$1,0)),\"\")","v":344.57731768999997},{"$f":"IFERROR(INDEX('Data Annex'!$K$1:$AN$4997,MATCH(N$1&\"|\"&$B17,'Data Annex'!$K$1:$K$4997,0),MATCH(N$2,'Data Annex'!$K$1:$AN$1,0)),\"\")","v":348.39993965000002},{"$f":"IFERROR(INDEX('Data Annex'!$K$1:$AN$4997,MATCH(O$1&\"|\"&$B17,'Data Annex'!$K$1:$K$4997,0),MATCH(O$2,'Data Annex'!$K$1:$AN$1,0)),\"\")","v":348.75621868000002},{"$f":"IFERROR(INDEX('Data Annex'!$K$1:$AN$4997,MATCH(P$1&\"|\"&$B17,'Data Annex'!$K$1:$K$4997,0),MATCH(P$2,'Data Annex'!$K$1:$AN$1,0)),\"\")","v":304.2020819},{"$f":"IFERROR(INDEX('Data Annex'!$K$1:$AN$4997,MATCH(Q$1&\"|\"&$B17,'Data Annex'!$K$1:$K$4997,0),MATCH(Q$2,'Data Annex'!$K$1:$AN$1,0)),\"\")","v":845.85590033999995},{"$f":"IFERROR(INDEX('Data Annex'!$K$1:$AN$4997,MATCH(R$1&\"|\"&$B17,'Data Annex'!$K$1:$K$4997,0),MATCH(R$2,'Data Annex'!$K$1:$AN$1,0)),\"\")","v":823.95497995000005},{"$f":"IFERROR(INDEX('Data Annex'!$K$1:$AN$4997,MATCH(S$1&\"|\"&$B17,'Data Annex'!$K$1:$K$4997,0),MATCH(S$2,'Data Annex'!$K$1:$AN$1,0)),\"\")","v":797.70173542999999},{"$f":"IFERROR(INDEX('Data Annex'!$K$1:$AN$4997,MATCH(T$1&\"|\"&$B17,'Data Annex'!$K$1:$K$4997,0),MATCH(T$2,'Data Annex'!$K$1:$AN$1,0)),\"\")","v":700.34492262000003},{"$f":"IFERROR(INDEX('Data Annex'!$K$1:$AN$4997,MATCH(U$1&\"|\"&$B17,'Data Annex'!$K$1:$K$4997,0),MATCH(U$2,'Data Annex'!$K$1:$AN$1,0)),\"\")","v":185.83177710000001},{"$f":"IFERROR(INDEX('Data Annex'!$K$1:$AN$4997,MATCH(V$1&\"|\"&$B17,'Data Annex'!$K$1:$K$4997,0),MATCH(V$2,'Data Annex'!$K$1:$AN$1,0)),\"\")","v":197.06107831},{"$f":"IFERROR(INDEX('Data Annex'!$K$1:$AN$4997,MATCH(W$1&\"|\"&$B17,'Data Annex'!$K$1:$K$4997,0),MATCH(W$2,'Data Annex'!$K$1:$AN$1,0)),\"\")","v":192.37624327},{"$f":"IFERROR(INDEX('Data Annex'!$K$1:$AN$4997,MATCH(X$1&\"|\"&$B17,'Data Annex'!$K$1:$K$4997,0),MATCH(X$2,'Data Annex'!$K$1:$AN$1,0)),\"\")","v":181.56308010999999},{"$f":"IFERROR(INDEX('Data Annex'!$K$1:$AN$4997,MATCH(Y$1&\"|\"&$B17,'Data Annex'!$K$1:$K$4997,0),MATCH(Y$2,'Data Annex'!$K$1:$AN$1,0)),\"\")","v":261.66629139000003},{"$f":"IFERROR(INDEX('Data Annex'!$K$1:$AN$4997,MATCH(Z$1&\"|\"&$B17,'Data Annex'!$K$1:$K$4997,0),MATCH(Z$2,'Data Annex'!$K$1:$AN$1,0)),\"\")","v":258.84932121999998},{"$f":"IFERROR(INDEX('Data Annex'!$K$1:$AN$4997,MATCH(AA$1&\"|\"&$B17,'Data Annex'!$K$1:$K$4997,0),MATCH(AA$2,'Data Annex'!$K$1:$AN$1,0)),\"\")","v":232.47068378},{"$f":"IFERROR(INDEX('Data Annex'!$K$1:$AN$4997,MATCH(AB$1&\"|\"&$B17,'Data Annex'!$K$1:$K$4997,0),MATCH(AB$2,'Data Annex'!$K$1:$AN$1,0)),\"\")","v":214.85322244}]
[7,"DK",null,"DK",{"$f":"IFERROR(INDEX('Data Annex'!$K$1:$AN$4997,MATCH(E$1&\"|\"&$B18,'Data Annex'!$K$1:$K$4997,0),MATCH(E$2,'Data Annex'!$K$1:$AN$1,0)),\"\")","v":597.67893334999997},{"$f":"IFERROR(INDEX('Data Annex'!$K$1:$AN$4997,MATCH(F$1&\"|\"&$B18,'Data Annex'!$K$1:$K$4997,0),MATCH(F$2,'Data Annex'!$K$1:$AN$1,0)),\"\")","v":606.63571432000003},{"$f":"IFERROR(INDEX('Data Annex'!$K$1:$AN$4997,MATCH(G$1&\"|\"&$B18,'Data Annex'!$K$1:$K$4997,0),MATCH(G$2,'Data Annex'!$K$1:$AN$1,0)),\"\")","v":604.64769865999995},{"$f":"IFERROR(INDEX('Data Annex'!$K$1:$AN$4997,MATCH(H$1&\"|\"&$B18,'Data Annex'!$K$1:$K$4997,0),MATCH(H$2,'Data Annex'!$K$1:$AN$1,0)),\"\")","v":622.73646364000001},{"$f":"IFERROR(INDEX('Data Annex'!$K$1:$AN$4997,MATCH(I$1&\"|\"&$B18,'Data Annex'!$K$1:$K$4997,0),MATCH(I$2,'Data Annex'!$K$1:$AN$1,0)),\"\")","v":69.457686671000005},{"$f":"IFERROR(INDEX('Data Annex'!$K$1:$AN$4997,MATCH(J$1&\"|\"&$B18,'Data Annex'!$K$1:$K$4997,0),MATCH(J$2,'Data Annex'!$K$1:$AN$1,0)),\"\")","v":71.243669299999993},{"$f":"IFERROR(INDEX('Data Annex'!$K$1:$AN$4997,MATCH(K$1&\"|\"&$B18,'Data Annex'!$K$1:$K$4997,0),MATCH(K$2,'Data Annex'!$K$1:$AN$1,0)),\"\")","v":71.266666865999994},{"$f":"IFERROR(INDEX('Data Annex'!$K$1:$AN$4997,MATCH(L$1&\"|\"&$B18,'Data Annex'!$K$1:$K$4997,0),MATCH(L$2,'Data Annex'!$K$1:$AN$1,0)),\"\")","v":73.501146191000004},{"$f":"IFERROR(INDEX('Data Annex'!$K$1:$AN$4997,MATCH(M$1&\"|\"&$B18,'Data Annex'!$K$1:$K$4997,0),MATCH(M$2,'Data Annex'!$K$1:$AN$1,0)),\"\")","v":52.297014507},{"$f":"IFERROR(INDEX('Data Annex'!$K$1:$AN$4997,MATCH(N$1&\"|\"&$B18,'Data Annex'!$K$1:$K$4997,0),MATCH(N$2,'Data Annex'!$K$1:$AN$1,0)),\"\")","v":53.982723872999998},{"$f":"IFERROR(INDEX('Data Annex'!$K$1:$AN$4997,MATCH(O$1&\"|\"&$B18,'Data Annex'!$K$1:$K$4997,0),MATCH(O$2,'Data Annex'!$K$1:$AN$1,0)),\"\")","v":53.9252562},{"$f":"IFERROR(INDEX('Data Annex'!$K$1:$AN$4997,MATCH(P$1&\"|\"&$B18,'Data Annex'!$K$1:$K$4997,0),MATCH(P$2,'Data Annex'!$K$1:$AN$1,0)),\"\")","v":56.026140595999998},{"$f":"IFERROR(INDEX('Data Annex'!$K$1:$AN$4997,MATCH(Q$1&\"|\"&$B18,'Data Annex'!$K$1:$K$4997,0),MATCH(Q$2,'Data Annex'!$K$1:$AN$1,0)),\"\")","v":83.406945463},{"$f":"IFERROR(INDEX('Data Annex'!$K$1:$AN$4997,MATCH(R$1&\"|\"&$B18,'Data Annex'!$K$1:$K$4997,0),MATCH(R$2,'Data Annex'!$K$1:$AN$1,0)),\"\")","v":83.856997789999994},{"$f":"IFERROR(INDEX('Data Annex'!$K$1:$AN$4997,MATCH(S$1&\"|\"&$B18,'Data Annex'!$K$1:$K$4997,0),MATCH(S$2,'Data Annex'!$K$1:$AN$1,0)),\"\")","v":82.285614494000001},{"$f":"IFERROR(INDEX('Data Annex'!$K$1:$AN$4997,MATCH(T$1&\"|\"&$B18,'Data Annex'!$K$1:$K$4997,0),MATCH(T$2,'Data Annex'!$K$1:$AN$1,0)),\"\")","v":81.685321360000003},{"$f":"IFERROR(INDEX('Data Annex'!$K$1:$AN$4997,MATCH(U$1&\"|\"&$B18,'Data Annex'!$K$1:$K$4997,0),MATCH(U$2,'Data Annex'!$K$1:$AN$1,0)),\"\")","v":34.742196501000002},{"$f":"IFERROR(INDEX('Data Annex'!$K$1:$AN$4997,MATCH(V$1&\"|\"&$B18,'Data Annex'!$K$1:$K$4997,0),MATCH(V$2,'Data Annex'!$K$1:$AN$1,0)),\"\")","v":34.231441013999998},{"$f":"IFERROR(INDEX('Data Annex'!$K$1:$AN$4997,MATCH(W$1&\"|\"&$B18,'Data Annex'!$K$1:$K$4997,0),MATCH(W$2,'Data Annex'!$K$1:$AN$1,0)),\"\")","v":34.138185753000002},{"$f":"IFERROR(INDEX('Data Annex'!$K$1:$AN$4997,MATCH(X$1&\"|\"&$B18,'Data Annex'!$K$1:$K$4997,0),MATCH(X$2,'Data Annex'!$K$1:$AN$1,0)),\"\")","v":34.625246079},{"$f":"IFERROR(INDEX('Data Annex'!$K$1:$AN$4997,MATCH(Y$1&\"|\"&$B18,'Data Annex'!$K$1:$K$4997,0),MATCH(Y$2,'Data Annex'!$K$1:$AN$1,0)),\"\")","v":26.080794360999999},{"$f":"IFERROR(INDEX('Data Annex'!$K$1:$AN$4997,MATCH(Z$1&\"|\"&$B18,'Data Annex'!$K$1:$K$4997,0),MATCH(Z$2,'Data Annex'!$K$1:$AN$1,0)),\"\")","v":26.412510106999999},{"$f":"IFERROR(INDEX('Data Annex'!$K$1:$AN$4997,MATCH(AA$1&\"|\"&$B18,'Data Annex'!$K$1:$K$4997,0),MATCH(AA$2,'Data Annex'!$K$1:$AN$1,0)),\"\")","v":26.375713480000002},{"$f":"IFERROR(INDEX('Data Annex'!$K$1:$AN$4997,MATCH(AB$1&\"|\"&$B18,'Data Annex'!$K$1:$K$4997,0),MATCH(AB$2,'Data Annex'!$K$1:$AN$1,0)),\"\")","v":27.267304142}]
[8,"EE",null,"EE",{"$f":"IFERROR(INDEX('Data Annex'!$K$1:$AN$4997,MATCH(E$1&\"|\"&$B19,'Data Annex'!$K$1:$K$4997,0),MATCH(E$2,'Data Annex'!$K$1:$AN$1,0)),\"\")","v":33.884670661999998},{"$f":"IFERROR(INDEX('Data Annex'!$K$1:$AN$4997,MATCH(F$1&\"|\"&$B19,'Data Annex'!$K$1:$K$4997,0),MATCH(F$2,'Data Annex'!$K$1:$AN$1,0)),\"\")","v":34.650718237},{"$f":"IFERROR(INDEX('Data Annex'!$K$1:$AN$4997,MATCH(G$1&\"|\"&$B19,'Data Annex'!$K$1:$K$4997,0),MATCH(G$2,'Data Annex'!$K$1:$AN$1,0)),\"\")","v":35.861701947},{"$f":"IFERROR(INDEX('Data Annex'!$K$1:$AN$4997,MATCH(H$1&\"|\"&$B19,'Data Annex'!$K$1:$K$4997,0),MATCH(H$2,'Data Annex'!$K$1:$AN$1,0)),\"\")","v":38.004961436000002},{"$f":"IFERROR(INDEX('Data Annex'!$K$1:$AN$4997,MATCH(I$1&\"|\"&$B19,'Data Annex'!$K$1:$K$4997,0),MATCH(I$2,'Data Annex'!$K$1:$AN$1,0)),\"\")","v":13.828465349},{"$f":"IFERROR(INDEX('Data Annex'!$K$1:$AN$4997,MATCH(J$1&\"|\"&$B19,'Data Annex'!$K$1:$K$4997,0),MATCH(J$2,'Data Annex'!$K$1:$AN$1,0)),\"\")","v":13.81856956},{"$f":"IFERROR(INDEX('Data Annex'!$K$1:$AN$4997,MATCH(K$1&\"|\"&$B19,'Data Annex'!$K$1:$K$4997,0),MATCH(K$2,'Data Annex'!$K$1:$AN$1,0)),\"\")","v":13.877409526999999},{"$f":"IFERROR(INDEX('Data Annex'!$K$1:$AN$4997,MATCH(L$1&\"|\"&$B19,'Data Annex'!$K$1:$K$4997,0),MATCH(L$2,'Data Annex'!$K$1:$AN$1,0)),\"\")","v":13.991184282000001},{"$f":"IFERROR(INDEX('Data Annex'!$K$1:$AN$4997,MATCH(M$1&\"|\"&$B19,'Data Annex'!$K$1:$K$4997,0),MATCH(M$2,'Data Annex'!$K$1:$AN$1,0)),\"\")","v":11.297816224},{"$f":"IFERROR(INDEX('Data Annex'!$K$1:$AN$4997,MATCH(N$1&\"|\"&$B19,'Data Annex'!$K$1:$K$4997,0),MATCH(N$2,'Data Annex'!$K$1:$AN$1,0)),\"\")","v":11.406484763},{"$f":"IFERROR(INDEX('Data Annex'!$K$1:$AN$4997,MATCH(O$1&\"|\"&$B19,'Data Annex'!$K$1:$K$4997,0),MATCH(O$2,'Data Annex'!$K$1:$AN$1,0)),\"\")","v":11.472888728999999},{"$f":"IFERROR(INDEX('Data Annex'!$K$1:$AN$4997,MATCH(P$1&\"|\"&$B19,'Data Annex'!$K$1:$K$4997,0),MATCH(P$2,'Data Annex'!$K$1:$AN$1,0)),\"\")","v":11.621959169},{"$f":"IFERROR(INDEX('Data Annex'!$K$1:$AN$4997,MATCH(Q$1&\"|\"&$B19,'Data Annex'!$K$1:$K$4997,0),MATCH(Q$2,'Data Annex'!$K$1:$AN$1,0)),\"\")","v":11.50526554},{"$f":"IFERROR(INDEX('Data Annex'!$K$1:$AN$4997,MATCH(R$1&\"|\"&$B19,'Data Annex'!$K$1:$K$4997,0),MATCH(R$2,'Data Annex'!$K$1:$AN$1,0)),\"\")","v":11.211924918999999},{"$f":"IFERROR(INDEX('Data Annex'!$K$1:$AN$4997,MATCH(S$1&\"|\"&$B19,'Data Annex'!$K$1:$K$4997,0),MATCH(S$2,'Data Annex'!$K$1:$AN$1,0)),\"\")","v":11.257828785999999},{"$f":"IFERROR(INDEX('Data Annex'!$K$1:$AN$4997,MATCH(T$1&\"|\"&$B19,'Data Annex'!$K$1:$K$4997,0),MATCH(T$2,'Data Annex'!$K$1:$AN$1,0)),\"\")","v":11.166623789000001},{"$f":"IFERROR(INDEX('Data Annex'!$K$1:$AN$4997,MATCH(U$1&\"|\"&$B19,'Data Annex'!$K$1:$K$4997,0),MATCH(U$2,'Data Annex'!$K$1:$AN$1,0)),\"\")","v":5.4670468298000001},{"$f":"IFERROR(INDEX('Data Annex'!$K$1:$AN$4997,MATCH(V$1&\"|\"&$B19,'Data Annex'!$K$1:$K$4997,0),MATCH(V$2,'Data Annex'!$K$1:$AN$1,0)),\"\")","v":7.7222467114000004},{"$f":"IFERROR(INDEX('Data Annex'!$K$1:$AN$4997,MATCH(W$1&\"|\"&$B19,'Data Annex'!$K$1:$K$4997,0),MATCH(W$2,'Data Annex'!$K$1:$AN$1,0)),\"\")","v":7.6034003916000001},{"$f":"IFERROR(INDEX('Data Annex'!$K$1:$AN$4997,MATCH(X$1&\"|\"&$B19,'Data Annex'!$K$1:$K$4997,0),MATCH(X$2,'Data Annex'!$K$1:$AN$1,0)),\"\")","v":7.9660669244999998},{"$f":"IFERROR(INDEX('Data Annex'!$K$1:$AN$4997,MATCH(Y$1&\"|\"&$B19,'Data Annex'!$K$1:$K$4997,0),MATCH(Y$2,'Data Annex'!$K$1:$AN$1,0)),\"\")","v":6.6509315003999996},{"$f":"IFERROR(INDEX('Data Annex'!$K$1:$AN$4997,MATCH(Z$1&\"|\"&$B19,'Data Annex'!$K$1:$K$4997,0),MATCH(Z$2,'Data Annex'!$K$1:$AN$1,0)),\"\")","v":6.7657506054000001},{"$f":"IFERROR(INDEX('Data Annex'!$K$1:$AN$4997,MATCH(AA$1&\"|\"&$B19,'Data Annex'!$K$1:$K$4997,0),MATCH(AA$2,'Data Annex'!$K$1:$AN$1,0)),\"\")","v":6.8751710697000004},{"$f":"IFERROR(INDEX('Data Annex'!$K$1:$AN$4997,MATCH(AB$1&\"|\"&$B19,'Data Annex'!$K$1:$K$4997,0),MATCH(AB$2,'Data Annex'!$K$1:$AN$1,0)),\"\")","v":6.8284104565000003}]
[9,"ES",null,"ES",{"$f":"IFERROR(INDEX('Data Annex'!$K$1:$AN$4997,MATCH(E$1&\"|\"&$B20,'Data Annex'!$K$1:$K$4997,0),MATCH(E$2,'Data Annex'!$K$1:$AN$1,0)),\"\")","v":2489.5178110000002},{"$f":"IFERROR(INDEX('Data Annex'!$K$1:$AN$4997,MATCH(F$1&\"|\"&$B20,'Data Annex'!$K$1:$K$4997,0),MATCH(F$2,'Data Annex'!$K$1:$AN$1,0)),\"\")","v":2628.9851999000002},{"$f":"IFERROR(INDEX('Data Annex'!$K$1:$AN$4997,MATCH(G$1&\"|\"&$B20,'Data Annex'!$K$1:$K$4997,0),MATCH(G$2,'Data Annex'!$K$1:$AN$1,0)),\"\")","v":2570.8149165999998},{"$f":"IFERROR(INDEX('Data Annex'!$K$1:$AN$4997,MATCH(H$1&\"|\"&$B20,'Data Annex'!$K$1:$K$4997,0),MATCH(H$2,'Data Annex'!$K$1:$AN$1,0)),\"\")","v":2381.5660260999998},{"$f":"IFERROR(INDEX('Data Annex'!$K$1:$AN$4997,MATCH(I$1&\"|\"&$B20,'Data Annex'!$K$1:$K$4997,0),MATCH(I$2,'Data Annex'!$K$1:$AN$1,0)),\"\")","v":1157.8587451000001},{"$f":"IFERROR(INDEX('Data Annex'!$K$1:$AN$4997,MATCH(J$1&\"|\"&$B20,'Data Annex'!$K$1:$K$4997,0),MATCH(J$2,'Data Annex'!$K$1:$AN$1,0)),\"\")","v":1151.1386972},{"$f":"IFERROR(INDEX('Data Annex'!$K$1:$AN$4997,MATCH(K$1&\"|\"&$B20,'Data Annex'!$K$1:$K$4997,0),MATCH(K$2,'Data Annex'!$K$1:$AN$1,0)),\"\")","v":1139.3752597},{"$f":"IFERROR(INDEX('Data Annex'!$K$1:$AN$4997,MATCH(L$1&\"|\"&$B20,'Data Annex'!$K$1:$K$4997,0),MATCH(L$2,'Data Annex'!$K$1:$AN$1,0)),\"\")","v":1056.8295040999999},{"$f":"IFERROR(INDEX('Data Annex'!$K$1:$AN$4997,MATCH(M$1&\"|\"&$B20,'Data Annex'!$K$1:$K$4997,0),MATCH(M$2,'Data Annex'!$K$1:$AN$1,0)),\"\")","v":812.19744856},{"$f":"IFERROR(INDEX('Data Annex'!$K$1:$AN$4997,MATCH(N$1&\"|\"&$B20,'Data Annex'!$K$1:$K$4997,0),MATCH(N$2,'Data Annex'!$K$1:$AN$1,0)),\"\")","v":809.96450878999997},{"$f":"IFERROR(INDEX('Data Annex'!$K$1:$AN$4997,MATCH(O$1&\"|\"&$B20,'Data Annex'!$K$1:$K$4997,0),MATCH(O$2,'Data Annex'!$K$1:$AN$1,0)),\"\")","v":804.70074705000002},{"$f":"IFERROR(INDEX('Data Annex'!$K$1:$AN$4997,MATCH(P$1&\"|\"&$B20,'Data Annex'!$K$1:$K$4997,0),MATCH(P$2,'Data Annex'!$K$1:$AN$1,0)),\"\")","v":736.64840446000005},{"$f":"IFERROR(INDEX('Data Annex'!$K$1:$AN$4997,MATCH(Q$1&\"|\"&$B20,'Data Annex'!$K$1:$K$4997,0),MATCH(Q$2,'Data Annex'!$K$1:$AN$1,0)),\"\")","v":748.17816719999996},{"$f":"IFERROR(INDEX('Data Annex'!$K$1:$AN$4997,MATCH(R$1&\"|\"&$B20,'Data Annex'!$K$1:$K$4997,0),MATCH(R$2,'Data Annex'!$K$1:$AN$1,0)),\"\")","v":784.21496420999995},{"$f":"IFERROR(INDEX('Data Annex'!$K$1:$AN$4997,MATCH(S$1&\"|\"&$B20,'Data Annex'!$K$1:$K$4997,0),MATCH(S$2,'Data Annex'!$K$1:$AN$1,0)),\"\")","v":760.59088291},{"$f":"IFERROR(INDEX('Data Annex'!$K$1:$AN$4997,MATCH(T$1&\"|\"&$B20,'Data Annex'!$K$1:$K$4997,0),MATCH(T$2,'Data Annex'!$K$1:$AN$1,0)),\"\")","v":688.27714043000003},{"$f":"IFERROR(INDEX('Data Annex'!$K$1:$AN$4997,MATCH(U$1&\"|\"&$B20,'Data Annex'!$K$1:$K$4997,0),MATCH(U$2,'Data Annex'!$K$1:$AN$1,0)),\"\")","v":291.89529082000001},{"$f":"IFERROR(INDEX('Data Annex'!$K$1:$AN$4997,MATCH(V$1&\"|\"&$B20,'Data Annex'!$K$1:$K$4997,0),MATCH(V$2,'Data Annex'!$K$1:$AN$1,0)),\"\")","v":320.23297508000002},{"$f":"IFERROR(INDEX('Data Annex'!$K$1:$AN$4997,MATCH(W$1&\"|\"&$B20,'Data Annex'!$K$1:$K$4997,0),MATCH(W$2,'Data Annex'!$K$1:$AN$1,0)),\"\")","v":318.27239401999998},{"$f":"IFERROR(INDEX('Data Annex'!$K$1:$AN$4997,MATCH(X$1&\"|\"&$B20,'Data Annex'!$K$1:$K$4997,0),MATCH(X$2,'Data Annex'!$K$1:$AN$1,0)),\"\")","v":299.44114798999999},{"$f":"IFERROR(INDEX('Data Annex'!$K$1:$AN$4997,MATCH(Y$1&\"|\"&$B20,'Data Annex'!$K$1:$K$4997,0),MATCH(Y$2,'Data Annex'!$K$1:$AN$1,0)),\"\")","v":116.92117471},{"$f":"IFERROR(INDEX('Data Annex'!$K$1:$AN$4997,MATCH(Z$1&\"|\"&$B20,'Data Annex'!$K$1:$K$4997,0),MATCH(Z$2,'Data Annex'!$K$1:$AN$1,0)),\"\")","v":121.63578027},{"$f":"IFERROR(INDEX('Data Annex'!$K$1:$AN$4997,MATCH(AA$1&\"|\"&$B20,'Data Annex'!$K$1:$K$4997,0),MATCH(AA$2,'Data Annex'!$K$1:$AN$1,0)),\"\")","v":124.78162877},{"$f":"IFERROR(INDEX('Data Annex'!$K$1:$AN$4997,MATCH(AB$1&\"|\"&$B20,'Data Annex'!$K$1:$K$4997,0),MATCH(AB$2,'Data Annex'!$K$1:$AN$1,0)),\"\")","v":105.49692794000001}]
[10,"FI",null,"FI",{"$f":"IFERROR(INDEX('Data Annex'!$K$1:$AN$4997,MATCH(E$1&\"|\"&$B21,'Data Annex'!$K$1:$K$4997,0),MATCH(E$2,'Data Annex'!$K$1:$AN$1,0)),\"\")","v":501.52757953999998},{"$f":"IFERROR(INDEX('Data Annex'!$K$1:$AN$4997,MATCH(F$1&\"|\"&$B21,'Data Annex'!$K$1:$K$4997,0),MATCH(F$2,'Data Annex'!$K$1:$AN$1,0)),\"\")","v":517.00561913000001},{"$f":"IFERROR(INDEX('Data Annex'!$K$1:$AN$4997,MATCH(G$1&\"|\"&$B21,'Data Annex'!$K$1:$K$4997,0),MATCH(G$2,'Data Annex'!$K$1:$AN$1,0)),\"\")","v":516.52773301000002},{"$f":"IFERROR(INDEX('Data Annex'!$K$1:$AN$4997,MATCH(H$1&\"|\"&$B21,'Data Annex'!$K$1:$K$4997,0),MATCH(H$2,'Data Annex'!$K$1:$AN$1,0)),\"\")","v":515.90954362000002},{"$f":"IFERROR(INDEX('Data Annex'!$K$1:$AN$4997,MATCH(I$1&\"|\"&$B21,'Data Annex'!$K$1:$K$4997,0),MATCH(I$2,'Data Annex'!$K$1:$AN$1,0)),\"\")","v":188.80500563999999},{"$f":"IFERROR(INDEX('Data Annex'!$K$1:$AN$4997,MATCH(J$1&\"|\"&$B21,'Data Annex'!$K$1:$K$4997,0),MATCH(J$2,'Data Annex'!$K$1:$AN$1,0)),\"\")","v":195.83220750000001},{"$f":"IFERROR(INDEX('Data Annex'!$K$1:$AN$4997,MATCH(K$1&\"|\"&$B21,'Data Annex'!$K$1:$K$4997,0),MATCH(K$2,'Data Annex'!$K$1:$AN$1,0)),\"\")","v":197.18268203},{"$f":"IFERROR(INDEX('Data Annex'!$K$1:$AN$4997,MATCH(L$1&\"|\"&$B21,'Data Annex'!$K$1:$K$4997,0),MATCH(L$2,'Data Annex'!$K$1:$AN$1,0)),\"\")","v":203.39529679},{"$f":"IFERROR(INDEX('Data Annex'!$K$1:$AN$4997,MATCH(M$1&\"|\"&$B21,'Data Annex'!$K$1:$K$4997,0),MATCH(M$2,'Data Annex'!$K$1:$AN$1,0)),\"\")","v":154.98571186000001},{"$f":"IFERROR(INDEX('Data Annex'!$K$1:$AN$4997,MATCH(N$1&\"|\"&$B21,'Data Annex'!$K$1:$K$4997,0),MATCH(N$2,'Data Annex'!$K$1:$AN$1,0)),\"\")","v":158.56956683999999},{"$f":"IFERROR(INDEX('Data Annex'!$K$1:$AN$4997,MATCH(O$1&\"|\"&$B21,'Data Annex'!$K$1:$K$4997,0),MATCH(O$2,'Data Annex'!$K$1:$AN$1,0)),\"\")","v":162.92778354999999},{"$f":"IFERROR(INDEX('Data Annex'!$K$1:$AN$4997,MATCH(P$1&\"|\"&$B21,'Data Annex'!$K$1:$K$4997,0),MATCH(P$2,'Data Annex'!$K$1:$AN$1,0)),\"\")","v":169.21261612000001},{"$f":"IFERROR(INDEX('Data Annex'!$K$1:$AN$4997,MATCH(Q$1&\"|\"&$B21,'Data Annex'!$K$1:$K$4997,0),MATCH(Q$2,'Data Annex'!$K$1:$AN$1,0)),\"\")","v":155.45322032000001},{"$f":"IFERROR(INDEX('Data Annex'!$K$1:$AN$4997,MATCH(R$1&\"|\"&$B21,'Data Annex'!$K$1:$K$4997,0),MATCH(R$2,'Data Annex'!$K$1:$AN$1,0)),\"\")","v":151.47913713},{"$f":"IFERROR(INDEX('Data Annex'!$K$1:$AN$4997,MATCH(S$1&\"|\"&$B21,'Data Annex'!$K$1:$K$4997,0),MATCH(S$2,'Data Annex'!$K$1:$AN$1,0)),\"\")","v":152.27812954999999},{"$f":"IFERROR(INDEX('Data Annex'!$K$1:$AN$4997,MATCH(T$1&\"|\"&$B21,'Data Annex'!$K$1:$K$4997,0),MATCH(T$2,'Data Annex'!$K$1:$AN$1,0)),\"\")","v":160.79931532000001},{"$f":"IFERROR(INDEX('Data Annex'!$K$1:$AN$4997,MATCH(U$1&\"|\"&$B21,'Data Annex'!$K$1:$K$4997,0),MATCH(U$2,'Data Annex'!$K$1:$AN$1,0)),\"\")","v":53.246799668000001},{"$f":"IFERROR(INDEX('Data Annex'!$K$1:$AN$4997,MATCH(V$1&\"|\"&$B21,'Data Annex'!$K$1:$K$4997,0),MATCH(V$2,'Data Annex'!$K$1:$AN$1,0)),\"\")","v":59.314029955000002},{"$f":"IFERROR(INDEX('Data Annex'!$K$1:$AN$4997,MATCH(W$1&\"|\"&$B21,'Data Annex'!$K$1:$K$4997,0),MATCH(W$2,'Data Annex'!$K$1:$AN$1,0)),\"\")","v":57.655755249000002},{"$f":"IFERROR(INDEX('Data Annex'!$K$1:$AN$4997,MATCH(X$1&\"|\"&$B21,'Data Annex'!$K$1:$K$4997,0),MATCH(X$2,'Data Annex'!$K$1:$AN$1,0)),\"\")","v":59.914802051000002},{"$f":"IFERROR(INDEX('Data Annex'!$K$1:$AN$4997,MATCH(Y$1&\"|\"&$B21,'Data Annex'!$K$1:$K$4997,0),MATCH(Y$2,'Data Annex'!$K$1:$AN$1,0)),\"\")","v":32.835817024000001},{"$f":"IFERROR(INDEX('Data Annex'!$K$1:$AN$4997,MATCH(Z$1&\"|\"&$B21,'Data Annex'!$K$1:$K$4997,0),MATCH(Z$2,'Data Annex'!$K$1:$AN$1,0)),\"\")","v":27.861675397999999},{"$f":"IFERROR(INDEX('Data Annex'!$K$1:$AN$4997,MATCH(AA$1&\"|\"&$B21,'Data Annex'!$K$1:$K$4997,0),MATCH(AA$2,'Data Annex'!$K$1:$AN$1,0)),\"\")","v":33.837710668},{"$f":"IFERROR(INDEX('Data Annex'!$K$1:$AN$4997,MATCH(AB$1&\"|\"&$B21,'Data Annex'!$K$1:$K$4997,0),MATCH(AB$2,'Data Annex'!$K$1:$AN$1,0)),\"\")","v":34.012970445000001}]
[11,"FR",null,"FR",{"$f":"IFERROR(INDEX('Data Annex'!$K$1:$AN$4997,MATCH(E$1&\"|\"&$B22,'Data Annex'!$K$1:$K$4997,0),MATCH(E$2,'Data Annex'!$K$1:$AN$1,0)),\"\")","v":5065.6858930999997},{"$f":"IFERROR(INDEX('Data Annex'!$K$1:$AN$4997,MATCH(F$1&\"|\"&$B22,'Data Annex'!$K$1:$K$4997,0),MATCH(F$2,'Data Annex'!$K$1:$AN$1,0)),\"\")","v":5407.8662285999999},{"$f":"IFERROR(INDEX('Data Annex'!$K$1:$AN$4997,MATCH(G$1&\"|\"&$B22,'Data Annex'!$K$1:$K$4997,0),MATCH(G$2,'Data Annex'!$K$1:$AN$1,0)),\"\")","v":5455.8783623999998},{"$f":"IFERROR(INDEX('Data Annex'!$K$1:$AN$4997,MATCH(H$1&\"|\"&$B22,'Data Annex'!$K$1:$K$4997,0),MATCH(H$2,'Data Annex'!$K$1:$AN$1,0)),\"\")","v":5439.8240300999996},{"$f":"IFERROR(INDEX('Data Annex'!$K$1:$AN$4997,MATCH(I$1&\"|\"&$B22,'Data Annex'!$K$1:$K$4997,0),MATCH(I$2,'Data Annex'!$K$1:$AN$1,0)),\"\")","v":1838.1386895999999},{"$f":"IFERROR(INDEX('Data Annex'!$K$1:$AN$4997,MATCH(J$1&\"|\"&$B22,'Data Annex'!$K$1:$K$4997,0),MATCH(J$2,'Data Annex'!$K$1:$AN$1,0)),\"\")","v":1863.3947152000001},{"$f":"IFERROR(INDEX('Data Annex'!$K$1:$AN$4997,MATCH(K$1&\"|\"&$B22,'Data Annex'!$K$1:$K$4997,0),MATCH(K$2,'Data Annex'!$K$1:$AN$1,0)),\"\")","v":1870.0398181},{"$f":"IFERROR(INDEX('Data Annex'!$K$1:$AN$4997,MATCH(L$1&\"|\"&$B22,'Data Annex'!$K$1:$K$4997,0),MATCH(L$2,'Data Annex'!$K$1:$AN$1,0)),\"\")","v":1893.7134008999999},{"$f":"IFERROR(INDEX('Data Annex'!$K$1:$AN$4997,MATCH(M$1&\"|\"&$B22,'Data Annex'!$K$1:$K$4997,0),MATCH(M$2,'Data Annex'!$K$1:$AN$1,0)),\"\")","v":608.07251525000004},{"$f":"IFERROR(INDEX('Data Annex'!$K$1:$AN$4997,MATCH(N$1&\"|\"&$B22,'Data Annex'!$K$1:$K$4997,0),MATCH(N$2,'Data Annex'!$K$1:$AN$1,0)),\"\")","v":609.74328845000002},{"$f":"IFERROR(INDEX('Data Annex'!$K$1:$AN$4997,MATCH(O$1&\"|\"&$B22,'Data Annex'!$K$1:$K$4997,0),MATCH(O$2,'Data Annex'!$K$1:$AN$1,0)),\"\")","v":601.57080702999997},{"$f":"IFERROR(INDEX('Data Annex'!$K$1:$AN$4997,MATCH(P$1&\"|\"&$B22,'Data Annex'!$K$1:$K$4997,0),MATCH(P$2,'Data Annex'!$K$1:$AN$1,0)),\"\")","v":609.08263566000005},{"$f":"IFERROR(INDEX('Data Annex'!$K$1:$AN$4997,MATCH(Q$1&\"|\"&$B22,'Data Annex'!$K$1:$K$4997,0),MATCH(Q$2,'Data Annex'!$K$1:$AN$1,0)),\"\")","v":1633.3820866000001},{"$f":"IFERROR(INDEX('Data Annex'!$K$1:$AN$4997,MATCH(R$1&\"|\"&$B22,'Data Annex'!$K$1:$K$4997,0),MATCH(R$2,'Data Annex'!$K$1:$AN$1,0)),\"\")","v":1699.9513113},{"$f":"IFERROR(INDEX('Data Annex'!$K$1:$AN$4997,MATCH(S$1&\"|\"&$B22,'Data Annex'!$K$1:$K$4997,0),MATCH(S$2,'Data Annex'!$K$1:$AN$1,0)),\"\")","v":1672.0438383000001},{"$f":"IFERROR(INDEX('Data Annex'!$K$1:$AN$4997,MATCH(T$1&\"|\"&$B22,'Data Annex'!$K$1:$K$4997,0),MATCH(T$2,'Data Annex'!$K$1:$AN$1,0)),\"\")","v":1669.9128121000001},{"$f":"IFERROR(INDEX('Data Annex'!$K$1:$AN$4997,MATCH(U$1&\"|\"&$B22,'Data Annex'!$K$1:$K$4997,0),MATCH(U$2,'Data Annex'!$K$1:$AN$1,0)),\"\")","v":664.39927449000004},{"$f":"IFERROR(INDEX('Data Annex'!$K$1:$AN$4997,MATCH(V$1&\"|\"&$B22,'Data Annex'!$K$1:$K$4997,0),MATCH(V$2,'Data Annex'!$K$1:$AN$1,0)),\"\")","v":731.19019547000005},{"$f":"IFERROR(INDEX('Data Annex'!$K$1:$AN$4997,MATCH(W$1&\"|\"&$B22,'Data Annex'!$K$1:$K$4997,0),MATCH(W$2,'Data Annex'!$K$1:$AN$1,0)),\"\")","v":754.34871131},{"$f":"IFERROR(INDEX('Data Annex'!$K$1:$AN$4997,MATCH(X$1&\"|\"&$B22,'Data Annex'!$K$1:$K$4997,0),MATCH(X$2,'Data Annex'!$K$1:$AN$1,0)),\"\")","v":759.77096247999998},{"$f":"IFERROR(INDEX('Data Annex'!$K$1:$AN$4997,MATCH(Y$1&\"|\"&$B22,'Data Annex'!$K$1:$K$4997,0),MATCH(Y$2,'Data Annex'!$K$1:$AN$1,0)),\"\")","v":185.84561880999999},{"$f":"IFERROR(INDEX('Data Annex'!$K$1:$AN$4997,MATCH(Z$1&\"|\"&$B22,'Data Annex'!$K$1:$K$4997,0),MATCH(Z$2,'Data Annex'!$K$1:$AN$1,0)),\"\")","v":178.83515749},{"$f":"IFERROR(INDEX('Data Annex'!$K$1:$AN$4997,MATCH(AA$1&\"|\"&$B22,'Data Annex'!$K$1:$K$4997,0),MATCH(AA$2,'Data Annex'!$K$1:$AN$1,0)),\"\")","v":179.37726624999999},{"$f":"IFERROR(INDEX('Data Annex'!$K$1:$AN$4997,MATCH(AB$1&\"|\"&$B22,'Data Annex'!$K$1:$K$4997,0),MATCH(AB$2,'Data Annex'!$K$1:$AN$1,0)),\"\")","v":200.93244300999999}]
[13,"GR",null,"GR",{"$f":"IFERROR(INDEX('Data Annex'!$K$1:$AN$4997,MATCH(E$1&\"|\"&$B23,'Data Annex'!$K$1:$K$4997,0),MATCH(E$2,'Data Annex'!$K$1:$AN$1,0)),\"\")","v":204.37454758000001},{"$f":"IFERROR(INDEX('Data Annex'!$K$1:$AN$4997,MATCH(F$1&\"|\"&$B23,'Data Annex'!$K$1:$K$4997,0),MATCH(F$2,'Data Annex'!$K$1:$AN$1,0)),\"\")","v":202.33538791000001},{"$f":"IFERROR(INDEX('Data Annex'!$K$1:$AN$4997,MATCH(G$1&\"|\"&$B23,'Data Annex'!$K$1:$K$4997,0),MATCH(G$2,'Data Annex'!$K$1:$AN$1,0)),\"\")","v":208.76865516999999},{"$f":"IFERROR(INDEX('Data Annex'!$K$1:$AN$4997,MATCH(H$1&\"|\"&$B23,'Data Annex'!$K$1:$K$4997,0),MATCH(H$2,'Data Annex'!$K$1:$AN$1,0)),\"\")","v":210.1610824},{"$f":"IFERROR(INDEX('Data Annex'!$K$1:$AN$4997,MATCH(I$1&\"|\"&$B23,'Data Annex'!$K$1:$K$4997,0),MATCH(I$2,'Data Annex'!$K$1:$AN$1,0)),\"\")","v":78.742327875000001},{"$f":"IFERROR(INDEX('Data Annex'!$K$1:$AN$4997,MATCH(J$1&\"|\"&$B23,'Data Annex'!$K$1:$K$4997,0),MATCH(J$2,'Data Annex'!$K$1:$AN$1,0)),\"\")","v":75.713284626000004},{"$f":"IFERROR(INDEX('Data Annex'!$K$1:$AN$4997,MATCH(K$1&\"|\"&$B23,'Data Annex'!$K$1:$K$4997,0),MATCH(K$2,'Data Annex'!$K$1:$AN$1,0)),\"\")","v":75.333879968999995},{"$f":"IFERROR(INDEX('Data Annex'!$K$1:$AN$4997,MATCH(L$1&\"|\"&$B23,'Data Annex'!$K$1:$K$4997,0),MATCH(L$2,'Data Annex'!$K$1:$AN$1,0)),\"\")","v":69.631563935000003},{"$f":"IFERROR(INDEX('Data Annex'!$K$1:$AN$4997,MATCH(M$1&\"|\"&$B23,'Data Annex'!$K$1:$K$4997,0),MATCH(M$2,'Data Annex'!$K$1:$AN$1,0)),\"\")","v":57.746398837000001},{"$f":"IFERROR(INDEX('Data Annex'!$K$1:$AN$4997,MATCH(N$1&\"|\"&$B23,'Data Annex'!$K$1:$K$4997,0),MATCH(N$2,'Data Annex'!$K$1:$AN$1,0)),\"\")","v":55.864023779},{"$f":"IFERROR(INDEX('Data Annex'!$K$1:$AN$4997,MATCH(O$1&\"|\"&$B23,'Data Annex'!$K$1:$K$4997,0),MATCH(O$2,'Data Annex'!$K$1:$AN$1,0)),\"\")","v":55.325066657000001},{"$f":"IFERROR(INDEX('Data Annex'!$K$1:$AN$4997,MATCH(P$1&\"|\"&$B23,'Data Annex'!$K$1:$K$4997,0),MATCH(P$2,'Data Annex'!$K$1:$AN$1,0)),\"\")","v":50.458706509999999},{"$f":"IFERROR(INDEX('Data Annex'!$K$1:$AN$4997,MATCH(Q$1&\"|\"&$B23,'Data Annex'!$K$1:$K$4997,0),MATCH(Q$2,'Data Annex'!$K$1:$AN$1,0)),\"\")","v":92.879023277000002},{"$f":"IFERROR(INDEX('Data Annex'!$K$1:$AN$4997,MATCH(R$1&\"|\"&$B23,'Data Annex'!$K$1:$K$4997,0),MATCH(R$2,'Data Annex'!$K$1:$AN$1,0)),\"\")","v":88.436697549000002},{"$f":"IFERROR(INDEX('Data Annex'!$K$1:$AN$4997,MATCH(S$1&\"|\"&$B23,'Data Annex'!$K$1:$K$4997,0),MATCH(S$2,'Data Annex'!$K$1:$AN$1,0)),\"\")","v":89.959583731999999},{"$f":"IFERROR(INDEX('Data Annex'!$K$1:$AN$4997,MATCH(T$1&\"|\"&$B23,'Data Annex'!$K$1:$K$4997,0),MATCH(T$2,'Data Annex'!$K$1:$AN$1,0)),\"\")","v":89.930952801999993},{"$f":"IFERROR(INDEX('Data Annex'!$K$1:$AN$4997,MATCH(U$1&\"|\"&$B23,'Data Annex'!$K$1:$K$4997,0),MATCH(U$2,'Data Annex'!$K$1:$AN$1,0)),\"\")","v":46.107511264999999},{"$f":"IFERROR(INDEX('Data Annex'!$K$1:$AN$4997,MATCH(V$1&\"|\"&$B23,'Data Annex'!$K$1:$K$4997,0),MATCH(V$2,'Data Annex'!$K$1:$AN$1,0)),\"\")","v":42.253878524999998},{"$f":"IFERROR(INDEX('Data Annex'!$K$1:$AN$4997,MATCH(W$1&\"|\"&$B23,'Data Annex'!$K$1:$K$4997,0),MATCH(W$2,'Data Annex'!$K$1:$AN$1,0)),\"\")","v":43.411966212999999},{"$f":"IFERROR(INDEX('Data Annex'!$K$1:$AN$4997,MATCH(X$1&\"|\"&$B23,'Data Annex'!$K$1:$K$4997,0),MATCH(X$2,'Data Annex'!$K$1:$AN$1,0)),\"\")","v":46.260584891999997},{"$f":"IFERROR(INDEX('Data Annex'!$K$1:$AN$4997,MATCH(Y$1&\"|\"&$B23,'Data Annex'!$K$1:$K$4997,0),MATCH(Y$2,'Data Annex'!$K$1:$AN$1,0)),\"\")","v":33.807544790000001},{"$f":"IFERROR(INDEX('Data Annex'!$K$1:$AN$4997,MATCH(Z$1&\"|\"&$B23,'Data Annex'!$K$1:$K$4997,0),MATCH(Z$2,'Data Annex'!$K$1:$AN$1,0)),\"\")","v":31.536419975000001},{"$f":"IFERROR(INDEX('Data Annex'!$K$1:$AN$4997,MATCH(AA$1&\"|\"&$B23,'Data Annex'!$K$1:$K$4997,0),MATCH(AA$2,'Data Annex'!$K$1:$AN$1,0)),\"\")","v":31.120274889000001},{"$f":"IFERROR(INDEX('Data Annex'!$K$1:$AN$4997,MATCH(AB$1&\"|\"&$B23,'Data Annex'!$K$1:$K$4997,0),MATCH(AB$2,'Data Annex'!$K$1:$AN$1,0)),\"\")","v":30.644420073999999}]
[14,"HR",null,"HR",{"$f":"IFERROR(INDEX('Data Annex'!$K$1:$AN$4997,MATCH(E$1&\"|\"&$B24,'Data Annex'!$K$1:$K$4997,0),MATCH(E$2,'Data Annex'!$K$1:$AN$1,0)),\"\")","v":38.712921672999997},{"$f":"IFERROR(INDEX('Data Annex'!$K$1:$AN$4997,MATCH(F$1&\"|\"&$B24,'Data Annex'!$K$1:$K$4997,0),MATCH(F$2,'Data Annex'!$K$1:$AN$1,0)),\"\")","v":40.040694844999997},{"$f":"IFERROR(INDEX('Data Annex'!$K$1:$AN$4997,MATCH(G$1&\"|\"&$B24,'Data Annex'!$K$1:$K$4997,0),MATCH(G$2,'Data Annex'!$K$1:$AN$1,0)),\"\")","v":40.122760855999999},{"$f":"IFERROR(INDEX('Data Annex'!$K$1:$AN$4997,MATCH(H$1&\"|\"&$B24,'Data Annex'!$K$1:$K$4997,0),MATCH(H$2,'Data Annex'!$K$1:$AN$1,0)),\"\")","v":41.254798125999997},{"$f":"IFERROR(INDEX('Data Annex'!$K$1:$AN$4997,MATCH(I$1&\"|\"&$B24,'Data Annex'!$K$1:$K$4997,0),MATCH(I$2,'Data Annex'!$K$1:$AN$1,0)),\"\")","v":13.641036114},{"$f":"IFERROR(INDEX('Data Annex'!$K$1:$AN$4997,MATCH(J$1&\"|\"&$B24,'Data Annex'!$K$1:$K$4997,0),MATCH(J$2,'Data Annex'!$K$1:$AN$1,0)),\"\")","v":13.631428009},{"$f":"IFERROR(INDEX('Data Annex'!$K$1:$AN$4997,MATCH(K$1&\"|\"&$B24,'Data Annex'!$K$1:$K$4997,0),MATCH(K$2,'Data Annex'!$K$1:$AN$1,0)),\"\")","v":13.703652139000001},{"$f":"IFERROR(INDEX('Data Annex'!$K$1:$AN$4997,MATCH(L$1&\"|\"&$B24,'Data Annex'!$K$1:$K$4997,0),MATCH(L$2,'Data Annex'!$K$1:$AN$1,0)),\"\")","v":13.647954904000001},{"$f":"IFERROR(INDEX('Data Annex'!$K$1:$AN$4997,MATCH(M$1&\"|\"&$B24,'Data Annex'!$K$1:$K$4997,0),MATCH(M$2,'Data Annex'!$K$1:$AN$1,0)),\"\")","v":4.8914471701000002},{"$f":"IFERROR(INDEX('Data Annex'!$K$1:$AN$4997,MATCH(N$1&\"|\"&$B24,'Data Annex'!$K$1:$K$4997,0),MATCH(N$2,'Data Annex'!$K$1:$AN$1,0)),\"\")","v":4.9407123411000002},{"$f":"IFERROR(INDEX('Data Annex'!$K$1:$AN$4997,MATCH(O$1&\"|\"&$B24,'Data Annex'!$K$1:$K$4997,0),MATCH(O$2,'Data Annex'!$K$1:$AN$1,0)),\"\")","v":5.0570045659999998},{"$f":"IFERROR(INDEX('Data Annex'!$K$1:$AN$4997,MATCH(P$1&\"|\"&$B24,'Data Annex'!$K$1:$K$4997,0),MATCH(P$2,'Data Annex'!$K$1:$AN$1,0)),\"\")","v":5.3710110251999996},{"$f":"IFERROR(INDEX('Data Annex'!$K$1:$AN$4997,MATCH(Q$1&\"|\"&$B24,'Data Annex'!$K$1:$K$4997,0),MATCH(Q$2,'Data Annex'!$K$1:$AN$1,0)),\"\")","v":10.059421029999999},{"$f":"IFERROR(INDEX('Data Annex'!$K$1:$AN$4997,MATCH(R$1&\"|\"&$B24,'Data Annex'!$K$1:$K$4997,0),MATCH(R$2,'Data Annex'!$K$1:$AN$1,0)),\"\")","v":9.9256416977999997},{"$f":"IFERROR(INDEX('Data Annex'!$K$1:$AN$4997,MATCH(S$1&\"|\"&$B24,'Data Annex'!$K$1:$K$4997,0),MATCH(S$2,'Data Annex'!$K$1:$AN$1,0)),\"\")","v":9.7841164738999993},{"$f":"IFERROR(INDEX('Data Annex'!$K$1:$AN$4997,MATCH(T$1&\"|\"&$B24,'Data Annex'!$K$1:$K$4997,0),MATCH(T$2,'Data Annex'!$K$1:$AN$1,0)),\"\")","v":10.093937965},{"$f":"IFERROR(INDEX('Data Annex'!$K$1:$AN$4997,MATCH(U$1&\"|\"&$B24,'Data Annex'!$K$1:$K$4997,0),MATCH(U$2,'Data Annex'!$K$1:$AN$1,0)),\"\")","v":5.4118826060999998},{"$f":"IFERROR(INDEX('Data Annex'!$K$1:$AN$4997,MATCH(V$1&\"|\"&$B24,'Data Annex'!$K$1:$K$4997,0),MATCH(V$2,'Data Annex'!$K$1:$AN$1,0)),\"\")","v":5.2439501328000002},{"$f":"IFERROR(INDEX('Data Annex'!$K$1:$AN$4997,MATCH(W$1&\"|\"&$B24,'Data Annex'!$K$1:$K$4997,0),MATCH(W$2,'Data Annex'!$K$1:$AN$1,0)),\"\")","v":5.4028168179999998},{"$f":"IFERROR(INDEX('Data Annex'!$K$1:$AN$4997,MATCH(X$1&\"|\"&$B24,'Data Annex'!$K$1:$K$4997,0),MATCH(X$2,'Data Annex'!$K$1:$AN$1,0)),\"\")","v":5.2310953175000003},{"$f":"IFERROR(INDEX('Data Annex'!$K$1:$AN$4997,MATCH(Y$1&\"|\"&$B24,'Data Annex'!$K$1:$K$4997,0),MATCH(Y$2,'Data Annex'!$K$1:$AN$1,0)),\"\")","v":3.8730388462000001},{"$f":"IFERROR(INDEX('Data Annex'!$K$1:$AN$4997,MATCH(Z$1&\"|\"&$B24,'Data Annex'!$K$1:$K$4997,0),MATCH(Z$2,'Data Annex'!$K$1:$AN$1,0)),\"\")","v":4.2434225676999997},{"$f":"IFERROR(INDEX('Data Annex'!$K$1:$AN$4997,MATCH(AA$1&\"|\"&$B24,'Data Annex'!$K$1:$K$4997,0),MATCH(AA$2,'Data Annex'!$K$1:$AN$1,0)),\"\")","v":4.2642567634999997},{"$f":"IFERROR(INDEX('Data Annex'!$K$1:$AN$4997,MATCH(AB$1&\"|\"&$B24,'Data Annex'!$K$1:$K$4997,0),MATCH(AB$2,'Data Annex'!$K$1:$AN$1,0)),\"\")","v":4.3672893655999996}]
[15,"HU",null,"HU",{"$f":"IFERROR(INDEX('Data Annex'!$K$1:$AN$4997,MATCH(E$1&\"|\"&$B25,'Data Annex'!$K$1:$K$4997,0),MATCH(E$2,'Data Annex'!$K$1:$AN$1,0)),\"\")","v":58.051598775000002},{"$f":"IFERROR(INDEX('Data Annex'!$K$1:$AN$4997,MATCH(F$1&\"|\"&$B25,'Data Annex'!$K$1:$K$4997,0),MATCH(F$2,'Data Annex'!$K$1:$AN$1,0)),\"\")","v":60.536455568000001},{"$f":"IFERROR(INDEX('Data Annex'!$K$1:$AN$4997,MATCH(G$1&\"|\"&$B25,'Data Annex'!$K$1:$K$4997,0),MATCH(G$2,'Data Annex'!$K$1:$AN$1,0)),\"\")","v":61.505556065999997},{"$f":"IFERROR(INDEX('Data Annex'!$K$1:$AN$4997,MATCH(H$1&\"|\"&$B25,'Data Annex'!$K$1:$K$4997,0),MATCH(H$2,'Data Annex'!$K$1:$AN$1,0)),\"\")","v":64.990295434999993},{"$f":"IFERROR(INDEX('Data Annex'!$K$1:$AN$4997,MATCH(I$1&\"|\"&$B25,'Data Annex'!$K$1:$K$4997,0),MATCH(I$2,'Data Annex'!$K$1:$AN$1,0)),\"\")","v":23.751559531000002},{"$f":"IFERROR(INDEX('Data Annex'!$K$1:$AN$4997,MATCH(J$1&\"|\"&$B25,'Data Annex'!$K$1:$K$4997,0),MATCH(J$2,'Data Annex'!$K$1:$AN$1,0)),\"\")","v":24.854397923000001},{"$f":"IFERROR(INDEX('Data Annex'!$K$1:$AN$4997,MATCH(K$1&\"|\"&$B25,'Data Annex'!$K$1:$K$4997,0),MATCH(K$2,'Data Annex'!$K$1:$AN$1,0)),\"\")","v":24.495104008999999},{"$f":"IFERROR(INDEX('Data Annex'!$K$1:$AN$4997,MATCH(L$1&\"|\"&$B25,'Data Annex'!$K$1:$K$4997,0),MATCH(L$2,'Data Annex'!$K$1:$AN$1,0)),\"\")","v":22.274778001000001},{"$f":"IFERROR(INDEX('Data Annex'!$K$1:$AN$4997,MATCH(M$1&\"|\"&$B25,'Data Annex'!$K$1:$K$4997,0),MATCH(M$2,'Data Annex'!$K$1:$AN$1,0)),\"\")","v":11.591177971},{"$f":"IFERROR(INDEX('Data Annex'!$K$1:$AN$4997,MATCH(N$1&\"|\"&$B25,'Data Annex'!$K$1:$K$4997,0),MATCH(N$2,'Data Annex'!$K$1:$AN$1,0)),\"\")","v":12.37191136},{"$f":"IFERROR(INDEX('Data Annex'!$K$1:$AN$4997,MATCH(O$1&\"|\"&$B25,'Data Annex'!$K$1:$K$4997,0),MATCH(O$2,'Data Annex'!$K$1:$AN$1,0)),\"\")","v":11.982846377},{"$f":"IFERROR(INDEX('Data Annex'!$K$1:$AN$4997,MATCH(P$1&\"|\"&$B25,'Data Annex'!$K$1:$K$4997,0),MATCH(P$2,'Data Annex'!$K$1:$AN$1,0)),\"\")","v":10.875144347999999},{"$f":"IFERROR(INDEX('Data Annex'!$K$1:$AN$4997,MATCH(Q$1&\"|\"&$B25,'Data Annex'!$K$1:$K$4997,0),MATCH(Q$2,'Data Annex'!$K$1:$AN$1,0)),\"\")","v":21.290623406000002},{"$f":"IFERROR(INDEX('Data Annex'!$K$1:$AN$4997,MATCH(R$1&\"|\"&$B25,'Data Annex'!$K$1:$K$4997,0),MATCH(R$2,'Data Annex'!$K$1:$AN$1,0)),\"\")","v":20.466609600999998},{"$f":"IFERROR(INDEX('Data Annex'!$K$1:$AN$4997,MATCH(S$1&\"|\"&$B25,'Data Annex'!$K$1:$K$4997,0),MATCH(S$2,'Data Annex'!$K$1:$AN$1,0)),\"\")","v":21.581412091000001},{"$f":"IFERROR(INDEX('Data Annex'!$K$1:$AN$4997,MATCH(T$1&\"|\"&$B25,'Data Annex'!$K$1:$K$4997,0),MATCH(T$2,'Data Annex'!$K$1:$AN$1,0)),\"\")","v":21.814974686999999},{"$f":"IFERROR(INDEX('Data Annex'!$K$1:$AN$4997,MATCH(U$1&\"|\"&$B25,'Data Annex'!$K$1:$K$4997,0),MATCH(U$2,'Data Annex'!$K$1:$AN$1,0)),\"\")","v":8.4263400405999995},{"$f":"IFERROR(INDEX('Data Annex'!$K$1:$AN$4997,MATCH(V$1&\"|\"&$B25,'Data Annex'!$K$1:$K$4997,0),MATCH(V$2,'Data Annex'!$K$1:$AN$1,0)),\"\")","v":7.874972487},{"$f":"IFERROR(INDEX('Data Annex'!$K$1:$AN$4997,MATCH(W$1&\"|\"&$B25,'Data Annex'!$K$1:$K$4997,0),MATCH(W$2,'Data Annex'!$K$1:$AN$1,0)),\"\")","v":8.7026369621999997},{"$f":"IFERROR(INDEX('Data Annex'!$K$1:$AN$4997,MATCH(X$1&\"|\"&$B25,'Data Annex'!$K$1:$K$4997,0),MATCH(X$2,'Data Annex'!$K$1:$AN$1,0)),\"\")","v":9.1009031823999997},{"$f":"IFERROR(INDEX('Data Annex'!$K$1:$AN$4997,MATCH(Y$1&\"|\"&$B25,'Data Annex'!$K$1:$K$4997,0),MATCH(Y$2,'Data Annex'!$K$1:$AN$1,0)),\"\")","v":7.9703901040999998},{"$f":"IFERROR(INDEX('Data Annex'!$K$1:$AN$4997,MATCH(Z$1&\"|\"&$B25,'Data Annex'!$K$1:$K$4997,0),MATCH(Z$2,'Data Annex'!$K$1:$AN$1,0)),\"\")","v":7.5890646962000003},{"$f":"IFERROR(INDEX('Data Annex'!$K$1:$AN$4997,MATCH(AA$1&\"|\"&$B25,'Data Annex'!$K$1:$K$4997,0),MATCH(AA$2,'Data Annex'!$K$1:$AN$1,0)),\"\")","v":7.8700180474000003},{"$f":"IFERROR(INDEX('Data Annex'!$K$1:$AN$4997,MATCH(AB$1&\"|\"&$B25,'Data Annex'!$K$1:$K$4997,0),MATCH(AB$2,'Data Annex'!$K$1:$AN$1,0)),\"\")","v":7.8447830475}]
[16,"IE",null,"IE",{"$f":"IFERROR(INDEX('Data Annex'!$K$1:$AN$4997,MATCH(E$1&\"|\"&$B26,'Data Annex'!$K$1:$K$4997,0),MATCH(E$2,'Data Annex'!$K$1:$AN$1,0)),\"\")","v":214.03684041},{"$f":"IFERROR(INDEX('Data Annex'!$K$1:$AN$4997,MATCH(F$1&\"|\"&$B26,'Data Annex'!$K$1:$K$4997,0),MATCH(F$2,'Data Annex'!$K$1:$AN$1,0)),\"\")","v":213.11563416999999},{"$f":"IFERROR(INDEX('Data Annex'!$K$1:$AN$4997,MATCH(G$1&\"|\"&$B26,'Data Annex'!$K$1:$K$4997,0),MATCH(G$2,'Data Annex'!$K$1:$AN$1,0)),\"\")","v":218.82101588},{"$f":"IFERROR(INDEX('Data Annex'!$K$1:$AN$4997,MATCH(H$1&\"|\"&$B26,'Data Annex'!$K$1:$K$4997,0),MATCH(H$2,'Data Annex'!$K$1:$AN$1,0)),\"\")","v":222.81012914999999},{"$f":"IFERROR(INDEX('Data Annex'!$K$1:$AN$4997,MATCH(I$1&\"|\"&$B26,'Data Annex'!$K$1:$K$4997,0),MATCH(I$2,'Data Annex'!$K$1:$AN$1,0)),\"\")","v":87.141060460000006},{"$f":"IFERROR(INDEX('Data Annex'!$K$1:$AN$4997,MATCH(J$1&\"|\"&$B26,'Data Annex'!$K$1:$K$4997,0),MATCH(J$2,'Data Annex'!$K$1:$AN$1,0)),\"\")","v":85.349273464000007},{"$f":"IFERROR(INDEX('Data Annex'!$K$1:$AN$4997,MATCH(K$1&\"|\"&$B26,'Data Annex'!$K$1:$K$4997,0),MATCH(K$2,'Data Annex'!$K$1:$AN$1,0)),\"\")","v":85.170753662999999},{"$f":"IFERROR(INDEX('Data Annex'!$K$1:$AN$4997,MATCH(L$1&\"|\"&$B26,'Data Annex'!$K$1:$K$4997,0),MATCH(L$2,'Data Annex'!$K$1:$AN$1,0)),\"\")","v":85.419771882999996},{"$f":"IFERROR(INDEX('Data Annex'!$K$1:$AN$4997,MATCH(M$1&\"|\"&$B26,'Data Annex'!$K$1:$K$4997,0),MATCH(M$2,'Data Annex'!$K$1:$AN$1,0)),\"\")","v":76.659226168000004},{"$f":"IFERROR(INDEX('Data Annex'!$K$1:$AN$4997,MATCH(N$1&\"|\"&$B26,'Data Annex'!$K$1:$K$4997,0),MATCH(N$2,'Data Annex'!$K$1:$AN$1,0)),\"\")","v":75.046386175999999},{"$f":"IFERROR(INDEX('Data Annex'!$K$1:$AN$4997,MATCH(O$1&\"|\"&$B26,'Data Annex'!$K$1:$K$4997,0),MATCH(O$2,'Data Annex'!$K$1:$AN$1,0)),\"\")","v":74.766148436999998},{"$f":"IFERROR(INDEX('Data Annex'!$K$1:$AN$4997,MATCH(P$1&\"|\"&$B26,'Data Annex'!$K$1:$K$4997,0),MATCH(P$2,'Data Annex'!$K$1:$AN$1,0)),\"\")","v":75.190401406999996},{"$f":"IFERROR(INDEX('Data Annex'!$K$1:$AN$4997,MATCH(Q$1&\"|\"&$B26,'Data Annex'!$K$1:$K$4997,0),MATCH(Q$2,'Data Annex'!$K$1:$AN$1,0)),\"\")","v":69.746373591999998},{"$f":"IFERROR(INDEX('Data Annex'!$K$1:$AN$4997,MATCH(R$1&\"|\"&$B26,'Data Annex'!$K$1:$K$4997,0),MATCH(R$2,'Data Annex'!$K$1:$AN$1,0)),\"\")","v":66.785156219000001},{"$f":"IFERROR(INDEX('Data Annex'!$K$1:$AN$4997,MATCH(S$1&\"|\"&$B26,'Data Annex'!$K$1:$K$4997,0),MATCH(S$2,'Data Annex'!$K$1:$AN$1,0)),\"\")","v":65.309606216000006},{"$f":"IFERROR(INDEX('Data Annex'!$K$1:$AN$4997,MATCH(T$1&\"|\"&$B26,'Data Annex'!$K$1:$K$4997,0),MATCH(T$2,'Data Annex'!$K$1:$AN$1,0)),\"\")","v":64.956439501999995},{"$f":"IFERROR(INDEX('Data Annex'!$K$1:$AN$4997,MATCH(U$1&\"|\"&$B26,'Data Annex'!$K$1:$K$4997,0),MATCH(U$2,'Data Annex'!$K$1:$AN$1,0)),\"\")","v":27.725809385000002},{"$f":"IFERROR(INDEX('Data Annex'!$K$1:$AN$4997,MATCH(V$1&\"|\"&$B26,'Data Annex'!$K$1:$K$4997,0),MATCH(V$2,'Data Annex'!$K$1:$AN$1,0)),\"\")","v":27.678465210999999},{"$f":"IFERROR(INDEX('Data Annex'!$K$1:$AN$4997,MATCH(W$1&\"|\"&$B26,'Data Annex'!$K$1:$K$4997,0),MATCH(W$2,'Data Annex'!$K$1:$AN$1,0)),\"\")","v":27.877222748000001},{"$f":"IFERROR(INDEX('Data Annex'!$K$1:$AN$4997,MATCH(X$1&\"|\"&$B26,'Data Annex'!$K$1:$K$4997,0),MATCH(X$2,'Data Annex'!$K$1:$AN$1,0)),\"\")","v":28.388010936000001},{"$f":"IFERROR(INDEX('Data Annex'!$K$1:$AN$4997,MATCH(Y$1&\"|\"&$B26,'Data Annex'!$K$1:$K$4997,0),MATCH(Y$2,'Data Annex'!$K$1:$AN$1,0)),\"\")","v":16.267611046999999},{"$f":"IFERROR(INDEX('Data Annex'!$K$1:$AN$4997,MATCH(Z$1&\"|\"&$B26,'Data Annex'!$K$1:$K$4997,0),MATCH(Z$2,'Data Annex'!$K$1:$AN$1,0)),\"\")","v":16.808652535},{"$f":"IFERROR(INDEX('Data Annex'!$K$1:$AN$4997,MATCH(AA$1&\"|\"&$B26,'Data Annex'!$K$1:$K$4997,0),MATCH(AA$2,'Data Annex'!$K$1:$AN$1,0)),\"\")","v":17.210789609999999},{"$f":"IFERROR(INDEX('Data Annex'!$K$1:$AN$4997,MATCH(AB$1&\"|\"&$B26,'Data Annex'!$K$1:$K$4997,0),MATCH(AB$2,'Data Annex'!$K$1:$AN$1,0)),\"\")","v":17.110771371999999}]
[17,"IS",null,"IS",{"$f":"IFERROR(INDEX('Data Annex'!$K$1:$AN$4997,MATCH(E$1&\"|\"&$B27,'Data Annex'!$K$1:$K$4997,0),MATCH(E$2,'Data Annex'!$K$1:$AN$1,0)),\"\")","v":22.155131085000001},{"$f":"IFERROR(INDEX('Data Annex'!$K$1:$AN$4997,MATCH(F$1&\"|\"&$B27,'Data Annex'!$K$1:$K$4997,0),MATCH(F$2,'Data Annex'!$K$1:$AN$1,0)),\"\")","v":21.946767374},{"$f":"IFERROR(INDEX('Data Annex'!$K$1:$AN$4997,MATCH(G$1&\"|\"&$B27,'Data Annex'!$K$1:$K$4997,0),MATCH(G$2,'Data Annex'!$K$1:$AN$1,0)),\"\")","v":21.901506517000001},{"$f":"IFERROR(INDEX('Data Annex'!$K$1:$AN$4997,MATCH(H$1&\"|\"&$B27,'Data Annex'!$K$1:$K$4997,0),MATCH(H$2,'Data Annex'!$K$1:$AN$1,0)),\"\")","v":22.423720517},{"$f":"IFERROR(INDEX('Data Annex'!$K$1:$AN$4997,MATCH(I$1&\"|\"&$B27,'Data Annex'!$K$1:$K$4997,0),MATCH(I$2,'Data Annex'!$K$1:$AN$1,0)),\"\")","v":7.7701751107000003},{"$f":"IFERROR(INDEX('Data Annex'!$K$1:$AN$4997,MATCH(J$1&\"|\"&$B27,'Data Annex'!$K$1:$K$4997,0),MATCH(J$2,'Data Annex'!$K$1:$AN$1,0)),\"\")","v":8.1015254767999991},{"$f":"IFERROR(INDEX('Data Annex'!$K$1:$AN$4997,MATCH(K$1&\"|\"&$B27,'Data Annex'!$K$1:$K$4997,0),MATCH(K$2,'Data Annex'!$K$1:$AN$1,0)),\"\")","v":8.4016040354000001},{"$f":"IFERROR(INDEX('Data Annex'!$K$1:$AN$4997,MATCH(L$1&\"|\"&$B27,'Data Annex'!$K$1:$K$4997,0),MATCH(L$2,'Data Annex'!$K$1:$AN$1,0)),\"\")","v":9.4300752515999999},{"$f":"IFERROR(INDEX('Data Annex'!$K$1:$AN$4997,MATCH(M$1&\"|\"&$B27,'Data Annex'!$K$1:$K$4997,0),MATCH(M$2,'Data Annex'!$K$1:$AN$1,0)),\"\")","v":6.5911267570999996},{"$f":"IFERROR(INDEX('Data Annex'!$K$1:$AN$4997,MATCH(N$1&\"|\"&$B27,'Data Annex'!$K$1:$K$4997,0),MATCH(N$2,'Data Annex'!$K$1:$AN$1,0)),\"\")","v":6.9388239239000002},{"$f":"IFERROR(INDEX('Data Annex'!$K$1:$AN$4997,MATCH(O$1&\"|\"&$B27,'Data Annex'!$K$1:$K$4997,0),MATCH(O$2,'Data Annex'!$K$1:$AN$1,0)),\"\")","v":7.1706850219999998},{"$f":"IFERROR(INDEX('Data Annex'!$K$1:$AN$4997,MATCH(P$1&\"|\"&$B27,'Data Annex'!$K$1:$K$4997,0),MATCH(P$2,'Data Annex'!$K$1:$AN$1,0)),\"\")","v":8.1446460489000003},{"$f":"IFERROR(INDEX('Data Annex'!$K$1:$AN$4997,MATCH(Q$1&\"|\"&$B27,'Data Annex'!$K$1:$K$4997,0),MATCH(Q$2,'Data Annex'!$K$1:$AN$1,0)),\"\")","v":10.422472564},{"$f":"IFERROR(INDEX('Data Annex'!$K$1:$AN$4997,MATCH(R$1&\"|\"&$B27,'Data Annex'!$K$1:$K$4997,0),MATCH(R$2,'Data Annex'!$K$1:$AN$1,0)),\"\")","v":10.311620671},{"$f":"IFERROR(INDEX('Data Annex'!$K$1:$AN$4997,MATCH(S$1&\"|\"&$B27,'Data Annex'!$K$1:$K$4997,0),MATCH(S$2,'Data Annex'!$K$1:$AN$1,0)),\"\")","v":10.006852032999999},{"$f":"IFERROR(INDEX('Data Annex'!$K$1:$AN$4997,MATCH(T$1&\"|\"&$B27,'Data Annex'!$K$1:$K$4997,0),MATCH(T$2,'Data Annex'!$K$1:$AN$1,0)),\"\")","v":10.111769175999999},{"$f":"IFERROR(INDEX('Data Annex'!$K$1:$AN$4997,MATCH(U$1&\"|\"&$B27,'Data Annex'!$K$1:$K$4997,0),MATCH(U$2,'Data Annex'!$K$1:$AN$1,0)),\"\")","v":2.8427583462000001},{"$f":"IFERROR(INDEX('Data Annex'!$K$1:$AN$4997,MATCH(V$1&\"|\"&$B27,'Data Annex'!$K$1:$K$4997,0),MATCH(V$2,'Data Annex'!$K$1:$AN$1,0)),\"\")","v":5.133306191},{"$f":"IFERROR(INDEX('Data Annex'!$K$1:$AN$4997,MATCH(W$1&\"|\"&$B27,'Data Annex'!$K$1:$K$4997,0),MATCH(W$2,'Data Annex'!$K$1:$AN$1,0)),\"\")","v":4.9825175501999999},{"$f":"IFERROR(INDEX('Data Annex'!$K$1:$AN$4997,MATCH(X$1&\"|\"&$B27,'Data Annex'!$K$1:$K$4997,0),MATCH(X$2,'Data Annex'!$K$1:$AN$1,0)),\"\")","v":4.9485340569999998},{"$f":"IFERROR(INDEX('Data Annex'!$K$1:$AN$4997,MATCH(Y$1&\"|\"&$B27,'Data Annex'!$K$1:$K$4997,0),MATCH(Y$2,'Data Annex'!$K$1:$AN$1,0)),\"\")","v":5.3478327178000002},{"$f":"IFERROR(INDEX('Data Annex'!$K$1:$AN$4997,MATCH(Z$1&\"|\"&$B27,'Data Annex'!$K$1:$K$4997,0),MATCH(Z$2,'Data Annex'!$K$1:$AN$1,0)),\"\")","v":5.2322102763},{"$f":"IFERROR(INDEX('Data Annex'!$K$1:$AN$4997,MATCH(AA$1&\"|\"&$B27,'Data Annex'!$K$1:$K$4997,0),MATCH(AA$2,'Data Annex'!$K$1:$AN$1,0)),\"\")","v":4.4663765732999998},{"$f":"IFERROR(INDEX('Data Annex'!$K$1:$AN$4997,MATCH(AB$1&\"|\"&$B27,'Data Annex'!$K$1:$K$4997,0),MATCH(AB$2,'Data Annex'!$K$1:$AN$1,0)),\"\")","v":4.5344209169000003}]
[18,"IT",null,"IT",{"$f":"IFERROR(INDEX('Data Annex'!$K$1:$AN$4997,MATCH(E$1&\"|\"&$B28,'Data Annex'!$K$1:$K$4997,0),MATCH(E$2,'Data Annex'!$K$1:$AN$1,0)),\"\")","v":1751.2681540000001},{"$f":"IFERROR(INDEX('Data Annex'!$K$1:$AN$4997,MATCH(F$1&\"|\"&$B28,'Data Annex'!$K$1:$K$4997,0),MATCH(F$2,'Data Annex'!$K$1:$AN$1,0)),\"\")","v":1787.0497897},{"$f":"IFERROR(INDEX('Data Annex'!$K$1:$AN$4997,MATCH(G$1&\"|\"&$B28,'Data Annex'!$K$1:$K$4997,0),MATCH(G$2,'Data Annex'!$K$1:$AN$1,0)),\"\")","v":1823.3991375999999},{"$f":"IFERROR(INDEX('Data Annex'!$K$1:$AN$4997,MATCH(H$1&\"|\"&$B28,'Data Annex'!$K$1:$K$4997,0),MATCH(H$2,'Data Annex'!$K$1:$AN$1,0)),\"\")","v":1855.5251625000001},{"$f":"IFERROR(INDEX('Data Annex'!$K$1:$AN$4997,MATCH(I$1&\"|\"&$B28,'Data Annex'!$K$1:$K$4997,0),MATCH(I$2,'Data Annex'!$K$1:$AN$1,0)),\"\")","v":513.39774160000002},{"$f":"IFERROR(INDEX('Data Annex'!$K$1:$AN$4997,MATCH(J$1&\"|\"&$B28,'Data Annex'!$K$1:$K$4997,0),MATCH(J$2,'Data Annex'!$K$1:$AN$1,0)),\"\")","v":516.99169394},{"$f":"IFERROR(INDEX('Data Annex'!$K$1:$AN$4997,MATCH(K$1&\"|\"&$B28,'Data Annex'!$K$1:$K$4997,0),MATCH(K$2,'Data Annex'!$K$1:$AN$1,0)),\"\")","v":518.64852049000001},{"$f":"IFERROR(INDEX('Data Annex'!$K$1:$AN$4997,MATCH(L$1&\"|\"&$B28,'Data Annex'!$K$1:$K$4997,0),MATCH(L$2,'Data Annex'!$K$1:$AN$1,0)),\"\")","v":509.29801959999998},{"$f":"IFERROR(INDEX('Data Annex'!$K$1:$AN$4997,MATCH(M$1&\"|\"&$B28,'Data Annex'!$K$1:$K$4997,0),MATCH(M$2,'Data Annex'!$K$1:$AN$1,0)),\"\")","v":351.99627158999999},{"$f":"IFERROR(INDEX('Data Annex'!$K$1:$AN$4997,MATCH(N$1&\"|\"&$B28,'Data Annex'!$K$1:$K$4997,0),MATCH(N$2,'Data Annex'!$K$1:$AN$1,0)),\"\")","v":360.44498000999999},{"$f":"IFERROR(INDEX('Data Annex'!$K$1:$AN$4997,MATCH(O$1&\"|\"&$B28,'Data Annex'!$K$1:$K$4997,0),MATCH(O$2,'Data Annex'!$K$1:$AN$1,0)),\"\")","v":361.77886606999999},{"$f":"IFERROR(INDEX('Data Annex'!$K$1:$AN$4997,MATCH(P$1&\"|\"&$B28,'Data Annex'!$K$1:$K$4997,0),MATCH(P$2,'Data Annex'!$K$1:$AN$1,0)),\"\")","v":355.78982179000002},{"$f":"IFERROR(INDEX('Data Annex'!$K$1:$AN$4997,MATCH(Q$1&\"|\"&$B28,'Data Annex'!$K$1:$K$4997,0),MATCH(Q$2,'Data Annex'!$K$1:$AN$1,0)),\"\")","v":748.68547776000003},{"$f":"IFERROR(INDEX('Data Annex'!$K$1:$AN$4997,MATCH(R$1&\"|\"&$B28,'Data Annex'!$K$1:$K$4997,0),MATCH(R$2,'Data Annex'!$K$1:$AN$1,0)),\"\")","v":744.54543804000002},{"$f":"IFERROR(INDEX('Data Annex'!$K$1:$AN$4997,MATCH(S$1&\"|\"&$B28,'Data Annex'!$K$1:$K$4997,0),MATCH(S$2,'Data Annex'!$K$1:$AN$1,0)),\"\")","v":742.43945435000001},{"$f":"IFERROR(INDEX('Data Annex'!$K$1:$AN$4997,MATCH(T$1&\"|\"&$B28,'Data Annex'!$K$1:$K$4997,0),MATCH(T$2,'Data Annex'!$K$1:$AN$1,0)),\"\")","v":715.10904947999995},{"$f":"IFERROR(INDEX('Data Annex'!$K$1:$AN$4997,MATCH(U$1&\"|\"&$B28,'Data Annex'!$K$1:$K$4997,0),MATCH(U$2,'Data Annex'!$K$1:$AN$1,0)),\"\")","v":324.82966661},{"$f":"IFERROR(INDEX('Data Annex'!$K$1:$AN$4997,MATCH(V$1&\"|\"&$B28,'Data Annex'!$K$1:$K$4997,0),MATCH(V$2,'Data Annex'!$K$1:$AN$1,0)),\"\")","v":328.86274204},{"$f":"IFERROR(INDEX('Data Annex'!$K$1:$AN$4997,MATCH(W$1&\"|\"&$B28,'Data Annex'!$K$1:$K$4997,0),MATCH(W$2,'Data Annex'!$K$1:$AN$1,0)),\"\")","v":334.56074926999997},{"$f":"IFERROR(INDEX('Data Annex'!$K$1:$AN$4997,MATCH(X$1&\"|\"&$B28,'Data Annex'!$K$1:$K$4997,0),MATCH(X$2,'Data Annex'!$K$1:$AN$1,0)),\"\")","v":323.27131164999997},{"$f":"IFERROR(INDEX('Data Annex'!$K$1:$AN$4997,MATCH(Y$1&\"|\"&$B28,'Data Annex'!$K$1:$K$4997,0),MATCH(Y$2,'Data Annex'!$K$1:$AN$1,0)),\"\")","v":178.22582251},{"$f":"IFERROR(INDEX('Data Annex'!$K$1:$AN$4997,MATCH(Z$1&\"|\"&$B28,'Data Annex'!$K$1:$K$4997,0),MATCH(Z$2,'Data Annex'!$K$1:$AN$1,0)),\"\")","v":175.24997554000001},{"$f":"IFERROR(INDEX('Data Annex'!$K$1:$AN$4997,MATCH(AA$1&\"|\"&$B28,'Data Annex'!$K$1:$K$4997,0),MATCH(AA$2,'Data Annex'!$K$1:$AN$1,0)),\"\")","v":171.88761653},{"$f":"IFERROR(INDEX('Data Annex'!$K$1:$AN$4997,MATCH(AB$1&\"|\"&$B28,'Data Annex'!$K$1:$K$4997,0),MATCH(AB$2,'Data Annex'!$K$1:$AN$1,0)),\"\")","v":159.28108121}]
[19,"LT",null,"LT",{"$f":"IFERROR(INDEX('Data Annex'!$K$1:$AN$4997,MATCH(E$1&\"|\"&$B29,'Data Annex'!$K$1:$K$4997,0),MATCH(E$2,'Data Annex'!$K$1:$AN$1,0)),\"\")","v":20.623502999999999},{"$f":"IFERROR(INDEX('Data Annex'!$K$1:$AN$4997,MATCH(F$1&\"|\"&$B29,'Data Annex'!$K$1:$K$4997,0),MATCH(F$2,'Data Annex'!$K$1:$AN$1,0)),\"\")","v":21.547281999999999},{"$f":"IFERROR(INDEX('Data Annex'!$K$1:$AN$4997,MATCH(G$1&\"|\"&$B29,'Data Annex'!$K$1:$K$4997,0),MATCH(G$2,'Data Annex'!$K$1:$AN$1,0)),\"\")","v":23.224231},{"$f":"IFERROR(INDEX('Data Annex'!$K$1:$AN$4997,MATCH(H$1&\"|\"&$B29,'Data Annex'!$K$1:$K$4997,0),MATCH(H$2,'Data Annex'!$K$1:$AN$1,0)),\"\")","v":25.315460999999999},{"$f":"IFERROR(INDEX('Data Annex'!$K$1:$AN$4997,MATCH(I$1&\"|\"&$B29,'Data Annex'!$K$1:$K$4997,0),MATCH(I$2,'Data Annex'!$K$1:$AN$1,0)),\"\")","v":7.3866139999999998},{"$f":"IFERROR(INDEX('Data Annex'!$K$1:$AN$4997,MATCH(J$1&\"|\"&$B29,'Data Annex'!$K$1:$K$4997,0),MATCH(J$2,'Data Annex'!$K$1:$AN$1,0)),\"\")","v":7.6143369999999999},{"$f":"IFERROR(INDEX('Data Annex'!$K$1:$AN$4997,MATCH(K$1&\"|\"&$B29,'Data Annex'!$K$1:$K$4997,0),MATCH(K$2,'Data Annex'!$K$1:$AN$1,0)),\"\")","v":7.7812150000000004},{"$f":"IFERROR(INDEX('Data Annex'!$K$1:$AN$4997,MATCH(L$1&\"|\"&$B29,'Data Annex'!$K$1:$K$4997,0),MATCH(L$2,'Data Annex'!$K$1:$AN$1,0)),\"\")","v":7.9083490000000003},{"$f":"IFERROR(INDEX('Data Annex'!$K$1:$AN$4997,MATCH(M$1&\"|\"&$B29,'Data Annex'!$K$1:$K$4997,0),MATCH(M$2,'Data Annex'!$K$1:$AN$1,0)),\"\")","v":6.1218870000000001},{"$f":"IFERROR(INDEX('Data Annex'!$K$1:$AN$4997,MATCH(N$1&\"|\"&$B29,'Data Annex'!$K$1:$K$4997,0),MATCH(N$2,'Data Annex'!$K$1:$AN$1,0)),\"\")","v":6.3474000000000004},{"$f":"IFERROR(INDEX('Data Annex'!$K$1:$AN$4997,MATCH(O$1&\"|\"&$B29,'Data Annex'!$K$1:$K$4997,0),MATCH(O$2,'Data Annex'!$K$1:$AN$1,0)),\"\")","v":6.4863239999999998},{"$f":"IFERROR(INDEX('Data Annex'!$K$1:$AN$4997,MATCH(P$1&\"|\"&$B29,'Data Annex'!$K$1:$K$4997,0),MATCH(P$2,'Data Annex'!$K$1:$AN$1,0)),\"\")","v":6.6616119999999999},{"$f":"IFERROR(INDEX('Data Annex'!$K$1:$AN$4997,MATCH(Q$1&\"|\"&$B29,'Data Annex'!$K$1:$K$4997,0),MATCH(Q$2,'Data Annex'!$K$1:$AN$1,0)),\"\")","v":6.542897},{"$f":"IFERROR(INDEX('Data Annex'!$K$1:$AN$4997,MATCH(R$1&\"|\"&$B29,'Data Annex'!$K$1:$K$4997,0),MATCH(R$2,'Data Annex'!$K$1:$AN$1,0)),\"\")","v":6.0471320000000004},{"$f":"IFERROR(INDEX('Data Annex'!$K$1:$AN$4997,MATCH(S$1&\"|\"&$B29,'Data Annex'!$K$1:$K$4997,0),MATCH(S$2,'Data Annex'!$K$1:$AN$1,0)),\"\")","v":5.9373899999999997},{"$f":"IFERROR(INDEX('Data Annex'!$K$1:$AN$4997,MATCH(T$1&\"|\"&$B29,'Data Annex'!$K$1:$K$4997,0),MATCH(T$2,'Data Annex'!$K$1:$AN$1,0)),\"\")","v":5.6468889999999998},{"$f":"IFERROR(INDEX('Data Annex'!$K$1:$AN$4997,MATCH(U$1&\"|\"&$B29,'Data Annex'!$K$1:$K$4997,0),MATCH(U$2,'Data Annex'!$K$1:$AN$1,0)),\"\")","v":2.8887909999999999},{"$f":"IFERROR(INDEX('Data Annex'!$K$1:$AN$4997,MATCH(V$1&\"|\"&$B29,'Data Annex'!$K$1:$K$4997,0),MATCH(V$2,'Data Annex'!$K$1:$AN$1,0)),\"\")","v":3.846015},{"$f":"IFERROR(INDEX('Data Annex'!$K$1:$AN$4997,MATCH(W$1&\"|\"&$B29,'Data Annex'!$K$1:$K$4997,0),MATCH(W$2,'Data Annex'!$K$1:$AN$1,0)),\"\")","v":3.822997},{"$f":"IFERROR(INDEX('Data Annex'!$K$1:$AN$4997,MATCH(X$1&\"|\"&$B29,'Data Annex'!$K$1:$K$4997,0),MATCH(X$2,'Data Annex'!$K$1:$AN$1,0)),\"\")","v":3.161451},{"$f":"IFERROR(INDEX('Data Annex'!$K$1:$AN$4997,MATCH(Y$1&\"|\"&$B29,'Data Annex'!$K$1:$K$4997,0),MATCH(Y$2,'Data Annex'!$K$1:$AN$1,0)),\"\")","v":3.559285},{"$f":"IFERROR(INDEX('Data Annex'!$K$1:$AN$4997,MATCH(Z$1&\"|\"&$B29,'Data Annex'!$K$1:$K$4997,0),MATCH(Z$2,'Data Annex'!$K$1:$AN$1,0)),\"\")","v":3.8791549999999999},{"$f":"IFERROR(INDEX('Data Annex'!$K$1:$AN$4997,MATCH(AA$1&\"|\"&$B29,'Data Annex'!$K$1:$K$4997,0),MATCH(AA$2,'Data Annex'!$K$1:$AN$1,0)),\"\")","v":3.7216689999999999},{"$f":"IFERROR(INDEX('Data Annex'!$K$1:$AN$4997,MATCH(AB$1&\"|\"&$B29,'Data Annex'!$K$1:$K$4997,0),MATCH(AB$2,'Data Annex'!$K$1:$AN$1,0)),\"\")","v":3.6198049999999999}]
[20,"LU",null,"LU",{"$f":"IFERROR(INDEX('Data Annex'!$K$1:$AN$4997,MATCH(E$1&\"|\"&$B30,'Data Annex'!$K$1:$K$4997,0),MATCH(E$2,'Data Annex'!$K$1:$AN$1,0)),\"\")","v":189.21955363000001},{"$f":"IFERROR(INDEX('Data Annex'!$K$1:$AN$4997,MATCH(F$1&\"|\"&$B30,'Data Annex'!$K$1:$K$4997,0),MATCH(F$2,'Data Annex'!$K$1:$AN$1,0)),\"\")","v":184.08517906},{"$f":"IFERROR(INDEX('Data Annex'!$K$1:$AN$4997,MATCH(G$1&\"|\"&$B30,'Data Annex'!$K$1:$K$4997,0),MATCH(G$2,'Data Annex'!$K$1:$AN$1,0)),\"\")","v":182.64625204000001},{"$f":"IFERROR(INDEX('Data Annex'!$K$1:$AN$4997,MATCH(H$1&\"|\"&$B30,'Data Annex'!$K$1:$K$4997,0),MATCH(H$2,'Data Annex'!$K$1:$AN$1,0)),\"\")","v":142.37214277999999},{"$f":"IFERROR(INDEX('Data Annex'!$K$1:$AN$4997,MATCH(I$1&\"|\"&$B30,'Data Annex'!$K$1:$K$4997,0),MATCH(I$2,'Data Annex'!$K$1:$AN$1,0)),\"\")","v":20.281481878000001},{"$f":"IFERROR(INDEX('Data Annex'!$K$1:$AN$4997,MATCH(J$1&\"|\"&$B30,'Data Annex'!$K$1:$K$4997,0),MATCH(J$2,'Data Annex'!$K$1:$AN$1,0)),\"\")","v":20.059263207000001},{"$f":"IFERROR(INDEX('Data Annex'!$K$1:$AN$4997,MATCH(K$1&\"|\"&$B30,'Data Annex'!$K$1:$K$4997,0),MATCH(K$2,'Data Annex'!$K$1:$AN$1,0)),\"\")","v":20.373587125},{"$f":"IFERROR(INDEX('Data Annex'!$K$1:$AN$4997,MATCH(L$1&\"|\"&$B30,'Data Annex'!$K$1:$K$4997,0),MATCH(L$2,'Data Annex'!$K$1:$AN$1,0)),\"\")","v":20.997377504999999},{"$f":"IFERROR(INDEX('Data Annex'!$K$1:$AN$4997,MATCH(M$1&\"|\"&$B30,'Data Annex'!$K$1:$K$4997,0),MATCH(M$2,'Data Annex'!$K$1:$AN$1,0)),\"\")","v":12.935862508},{"$f":"IFERROR(INDEX('Data Annex'!$K$1:$AN$4997,MATCH(N$1&\"|\"&$B30,'Data Annex'!$K$1:$K$4997,0),MATCH(N$2,'Data Annex'!$K$1:$AN$1,0)),\"\")","v":13.630963756},{"$f":"IFERROR(INDEX('Data Annex'!$K$1:$AN$4997,MATCH(O$1&\"|\"&$B30,'Data Annex'!$K$1:$K$4997,0),MATCH(O$2,'Data Annex'!$K$1:$AN$1,0)),\"\")","v":13.84985981},{"$f":"IFERROR(INDEX('Data Annex'!$K$1:$AN$4997,MATCH(P$1&\"|\"&$B30,'Data Annex'!$K$1:$K$4997,0),MATCH(P$2,'Data Annex'!$K$1:$AN$1,0)),\"\")","v":14.777381222000001},{"$f":"IFERROR(INDEX('Data Annex'!$K$1:$AN$4997,MATCH(Q$1&\"|\"&$B30,'Data Annex'!$K$1:$K$4997,0),MATCH(Q$2,'Data Annex'!$K$1:$AN$1,0)),\"\")","v":48.898105887},{"$f":"IFERROR(INDEX('Data Annex'!$K$1:$AN$4997,MATCH(R$1&\"|\"&$B30,'Data Annex'!$K$1:$K$4997,0),MATCH(R$2,'Data Annex'!$K$1:$AN$1,0)),\"\")","v":48.708359876000003},{"$f":"IFERROR(INDEX('Data Annex'!$K$1:$AN$4997,MATCH(S$1&\"|\"&$B30,'Data Annex'!$K$1:$K$4997,0),MATCH(S$2,'Data Annex'!$K$1:$AN$1,0)),\"\")","v":47.848781586999998},{"$f":"IFERROR(INDEX('Data Annex'!$K$1:$AN$4997,MATCH(T$1&\"|\"&$B30,'Data Annex'!$K$1:$K$4997,0),MATCH(T$2,'Data Annex'!$K$1:$AN$1,0)),\"\")","v":49.222167812999999},{"$f":"IFERROR(INDEX('Data Annex'!$K$1:$AN$4997,MATCH(U$1&\"|\"&$B30,'Data Annex'!$K$1:$K$4997,0),MATCH(U$2,'Data Annex'!$K$1:$AN$1,0)),\"\")","v":21.743597268999999},{"$f":"IFERROR(INDEX('Data Annex'!$K$1:$AN$4997,MATCH(V$1&\"|\"&$B30,'Data Annex'!$K$1:$K$4997,0),MATCH(V$2,'Data Annex'!$K$1:$AN$1,0)),\"\")","v":21.717983395000001},{"$f":"IFERROR(INDEX('Data Annex'!$K$1:$AN$4997,MATCH(W$1&\"|\"&$B30,'Data Annex'!$K$1:$K$4997,0),MATCH(W$2,'Data Annex'!$K$1:$AN$1,0)),\"\")","v":21.695603037000001},{"$f":"IFERROR(INDEX('Data Annex'!$K$1:$AN$4997,MATCH(X$1&\"|\"&$B30,'Data Annex'!$K$1:$K$4997,0),MATCH(X$2,'Data Annex'!$K$1:$AN$1,0)),\"\")","v":22.689661388000001},{"$f":"IFERROR(INDEX('Data Annex'!$K$1:$AN$4997,MATCH(Y$1&\"|\"&$B30,'Data Annex'!$K$1:$K$4997,0),MATCH(Y$2,'Data Annex'!$K$1:$AN$1,0)),\"\")","v":4.9180793999999999},{"$f":"IFERROR(INDEX('Data Annex'!$K$1:$AN$4997,MATCH(Z$1&\"|\"&$B30,'Data Annex'!$K$1:$K$4997,0),MATCH(Z$2,'Data Annex'!$K$1:$AN$1,0)),\"\")","v":5.097564577},{"$f":"IFERROR(INDEX('Data Annex'!$K$1:$AN$4997,MATCH(AA$1&\"|\"&$B30,'Data Annex'!$K$1:$K$4997,0),MATCH(AA$2,'Data Annex'!$K$1:$AN$1,0)),\"\")","v":5.0913328484000004},{"$f":"IFERROR(INDEX('Data Annex'!$K$1:$AN$4997,MATCH(AB$1&\"|\"&$B30,'Data Annex'!$K$1:$K$4997,0),MATCH(AB$2,'Data Annex'!$K$1:$AN$1,0)),\"\")","v":6.1438044227999997}]
[21,"LV",null,"LV",{"$f":"IFERROR(INDEX('Data Annex'!$K$1:$AN$4997,MATCH(E$1&\"|\"&$B31,'Data Annex'!$K$1:$K$4997,0),MATCH(E$2,'Data Annex'!$K$1:$AN$1,0)),\"\")","v":12.481786208999999},{"$f":"IFERROR(INDEX('Data Annex'!$K$1:$AN$4997,MATCH(F$1&\"|\"&$B31,'Data Annex'!$K$1:$K$4997,0),MATCH(F$2,'Data Annex'!$K$1:$AN$1,0)),\"\")","v":12.644076496},{"$f":"IFERROR(INDEX('Data Annex'!$K$1:$AN$4997,MATCH(G$1&\"|\"&$B31,'Data Annex'!$K$1:$K$4997,0),MATCH(G$2,'Data Annex'!$K$1:$AN$1,0)),\"\")","v":12.434736499},{"$f":"IFERROR(INDEX('Data Annex'!$K$1:$AN$4997,MATCH(H$1&\"|\"&$B31,'Data Annex'!$K$1:$K$4997,0),MATCH(H$2,'Data Annex'!$K$1:$AN$1,0)),\"\")","v":6.6942216590000001},{"$f":"IFERROR(INDEX('Data Annex'!$K$1:$AN$4997,MATCH(I$1&\"|\"&$B31,'Data Annex'!$K$1:$K$4997,0),MATCH(I$2,'Data Annex'!$K$1:$AN$1,0)),\"\")","v":3.758957659},{"$f":"IFERROR(INDEX('Data Annex'!$K$1:$AN$4997,MATCH(J$1&\"|\"&$B31,'Data Annex'!$K$1:$K$4997,0),MATCH(J$2,'Data Annex'!$K$1:$AN$1,0)),\"\")","v":3.7514360930000001},{"$f":"IFERROR(INDEX('Data Annex'!$K$1:$AN$4997,MATCH(K$1&\"|\"&$B31,'Data Annex'!$K$1:$K$4997,0),MATCH(K$2,'Data Annex'!$K$1:$AN$1,0)),\"\")","v":3.8038191349999999},{"$f":"IFERROR(INDEX('Data Annex'!$K$1:$AN$4997,MATCH(L$1&\"|\"&$B31,'Data Annex'!$K$1:$K$4997,0),MATCH(L$2,'Data Annex'!$K$1:$AN$1,0)),\"\")","v":1.844326796},{"$f":"IFERROR(INDEX('Data Annex'!$K$1:$AN$4997,MATCH(M$1&\"|\"&$B31,'Data Annex'!$K$1:$K$4997,0),MATCH(M$2,'Data Annex'!$K$1:$AN$1,0)),\"\")","v":2.9726651049999999},{"$f":"IFERROR(INDEX('Data Annex'!$K$1:$AN$4997,MATCH(N$1&\"|\"&$B31,'Data Annex'!$K$1:$K$4997,0),MATCH(N$2,'Data Annex'!$K$1:$AN$1,0)),\"\")","v":2.9903199439999999},{"$f":"IFERROR(INDEX('Data Annex'!$K$1:$AN$4997,MATCH(O$1&\"|\"&$B31,'Data Annex'!$K$1:$K$4997,0),MATCH(O$2,'Data Annex'!$K$1:$AN$1,0)),\"\")","v":3.032635902},{"$f":"IFERROR(INDEX('Data Annex'!$K$1:$AN$4997,MATCH(P$1&\"|\"&$B31,'Data Annex'!$K$1:$K$4997,0),MATCH(P$2,'Data Annex'!$K$1:$AN$1,0)),\"\")","v":1.4532096489999999},{"$f":"IFERROR(INDEX('Data Annex'!$K$1:$AN$4997,MATCH(Q$1&\"|\"&$B31,'Data Annex'!$K$1:$K$4997,0),MATCH(Q$2,'Data Annex'!$K$1:$AN$1,0)),\"\")","v":4.3992141609999997},{"$f":"IFERROR(INDEX('Data Annex'!$K$1:$AN$4997,MATCH(R$1&\"|\"&$B31,'Data Annex'!$K$1:$K$4997,0),MATCH(R$2,'Data Annex'!$K$1:$AN$1,0)),\"\")","v":4.3894249570000001},{"$f":"IFERROR(INDEX('Data Annex'!$K$1:$AN$4997,MATCH(S$1&\"|\"&$B31,'Data Annex'!$K$1:$K$4997,0),MATCH(S$2,'Data Annex'!$K$1:$AN$1,0)),\"\")","v":4.3585514119999997},{"$f":"IFERROR(INDEX('Data Annex'!$K$1:$AN$4997,MATCH(T$1&\"|\"&$B31,'Data Annex'!$K$1:$K$4997,0),MATCH(T$2,'Data Annex'!$K$1:$AN$1,0)),\"\")","v":2.7126265209999998},{"$f":"IFERROR(INDEX('Data Annex'!$K$1:$AN$4997,MATCH(U$1&\"|\"&$B31,'Data Annex'!$K$1:$K$4997,0),MATCH(U$2,'Data Annex'!$K$1:$AN$1,0)),\"\")","v":2.0554468990000001},{"$f":"IFERROR(INDEX('Data Annex'!$K$1:$AN$4997,MATCH(V$1&\"|\"&$B31,'Data Annex'!$K$1:$K$4997,0),MATCH(V$2,'Data Annex'!$K$1:$AN$1,0)),\"\")","v":2.874545269},{"$f":"IFERROR(INDEX('Data Annex'!$K$1:$AN$4997,MATCH(W$1&\"|\"&$B31,'Data Annex'!$K$1:$K$4997,0),MATCH(W$2,'Data Annex'!$K$1:$AN$1,0)),\"\")","v":2.81043076},{"$f":"IFERROR(INDEX('Data Annex'!$K$1:$AN$4997,MATCH(X$1&\"|\"&$B31,'Data Annex'!$K$1:$K$4997,0),MATCH(X$2,'Data Annex'!$K$1:$AN$1,0)),\"\")","v":1.4173067050000001},{"$f":"IFERROR(INDEX('Data Annex'!$K$1:$AN$4997,MATCH(Y$1&\"|\"&$B31,'Data Annex'!$K$1:$K$4997,0),MATCH(Y$2,'Data Annex'!$K$1:$AN$1,0)),\"\")","v":2.5169499960000001},{"$f":"IFERROR(INDEX('Data Annex'!$K$1:$AN$4997,MATCH(Z$1&\"|\"&$B31,'Data Annex'!$K$1:$K$4997,0),MATCH(Z$2,'Data Annex'!$K$1:$AN$1,0)),\"\")","v":2.6473624149999999},{"$f":"IFERROR(INDEX('Data Annex'!$K$1:$AN$4997,MATCH(AA$1&\"|\"&$B31,'Data Annex'!$K$1:$K$4997,0),MATCH(AA$2,'Data Annex'!$K$1:$AN$1,0)),\"\")","v":2.624756826},{"$f":"IFERROR(INDEX('Data Annex'!$K$1:$AN$4997,MATCH(AB$1&\"|\"&$B31,'Data Annex'!$K$1:$K$4997,0),MATCH(AB$2,'Data Annex'!$K$1:$AN$1,0)),\"\")","v":1.6352223669999999}]
[22,"MT",null,"MT",{"$f":"IFERROR(INDEX('Data Annex'!$K$1:$AN$4997,MATCH(E$1&\"|\"&$B32,'Data Annex'!$K$1:$K$4997,0),MATCH(E$2,'Data Annex'!$K$1:$AN$1,0)),\"\")","v":15.756330098999999},{"$f":"IFERROR(INDEX('Data Annex'!$K$1:$AN$4997,MATCH(F$1&\"|\"&$B32,'Data Annex'!$K$1:$K$4997,0),MATCH(F$2,'Data Annex'!$K$1:$AN$1,0)),\"\")","v":15.635924878000001},{"$f":"IFERROR(INDEX('Data Annex'!$K$1:$AN$4997,MATCH(G$1&\"|\"&$B32,'Data Annex'!$K$1:$K$4997,0),MATCH(G$2,'Data Annex'!$K$1:$AN$1,0)),\"\")","v":15.875872314},{"$f":"IFERROR(INDEX('Data Annex'!$K$1:$AN$4997,MATCH(H$1&\"|\"&$B32,'Data Annex'!$K$1:$K$4997,0),MATCH(H$2,'Data Annex'!$K$1:$AN$1,0)),\"\")","v":16.536307830999998},{"$f":"IFERROR(INDEX('Data Annex'!$K$1:$AN$4997,MATCH(I$1&\"|\"&$B32,'Data Annex'!$K$1:$K$4997,0),MATCH(I$2,'Data Annex'!$K$1:$AN$1,0)),\"\")","v":5.2610615457999996},{"$f":"IFERROR(INDEX('Data Annex'!$K$1:$AN$4997,MATCH(J$1&\"|\"&$B32,'Data Annex'!$K$1:$K$4997,0),MATCH(J$2,'Data Annex'!$K$1:$AN$1,0)),\"\")","v":5.4271519524},{"$f":"IFERROR(INDEX('Data Annex'!$K$1:$AN$4997,MATCH(K$1&\"|\"&$B32,'Data Annex'!$K$1:$K$4997,0),MATCH(K$2,'Data Annex'!$K$1:$AN$1,0)),\"\")","v":5.7093242461999996},{"$f":"IFERROR(INDEX('Data Annex'!$K$1:$AN$4997,MATCH(L$1&\"|\"&$B32,'Data Annex'!$K$1:$K$4997,0),MATCH(L$2,'Data Annex'!$K$1:$AN$1,0)),\"\")","v":5.9982463303999998},{"$f":"IFERROR(INDEX('Data Annex'!$K$1:$AN$4997,MATCH(M$1&\"|\"&$B32,'Data Annex'!$K$1:$K$4997,0),MATCH(M$2,'Data Annex'!$K$1:$AN$1,0)),\"\")","v":4.6029579704000003},{"$f":"IFERROR(INDEX('Data Annex'!$K$1:$AN$4997,MATCH(N$1&\"|\"&$B32,'Data Annex'!$K$1:$K$4997,0),MATCH(N$2,'Data Annex'!$K$1:$AN$1,0)),\"\")","v":4.7880504854000003},{"$f":"IFERROR(INDEX('Data Annex'!$K$1:$AN$4997,MATCH(O$1&\"|\"&$B32,'Data Annex'!$K$1:$K$4997,0),MATCH(O$2,'Data Annex'!$K$1:$AN$1,0)),\"\")","v":5.0237761823999998},{"$f":"IFERROR(INDEX('Data Annex'!$K$1:$AN$4997,MATCH(P$1&\"|\"&$B32,'Data Annex'!$K$1:$K$4997,0),MATCH(P$2,'Data Annex'!$K$1:$AN$1,0)),\"\")","v":5.2581118014000001},{"$f":"IFERROR(INDEX('Data Annex'!$K$1:$AN$4997,MATCH(Q$1&\"|\"&$B32,'Data Annex'!$K$1:$K$4997,0),MATCH(Q$2,'Data Annex'!$K$1:$AN$1,0)),\"\")","v":3.0108100707999998},{"$f":"IFERROR(INDEX('Data Annex'!$K$1:$AN$4997,MATCH(R$1&\"|\"&$B32,'Data Annex'!$K$1:$K$4997,0),MATCH(R$2,'Data Annex'!$K$1:$AN$1,0)),\"\")","v":3.0158018680000001},{"$f":"IFERROR(INDEX('Data Annex'!$K$1:$AN$4997,MATCH(S$1&\"|\"&$B32,'Data Annex'!$K$1:$K$4997,0),MATCH(S$2,'Data Annex'!$K$1:$AN$1,0)),\"\")","v":3.0869860025000002},{"$f":"IFERROR(INDEX('Data Annex'!$K$1:$AN$4997,MATCH(T$1&\"|\"&$B32,'Data Annex'!$K$1:$K$4997,0),MATCH(T$2,'Data Annex'!$K$1:$AN$1,0)),\"\")","v":3.5083051484999999},{"$f":"IFERROR(INDEX('Data Annex'!$K$1:$AN$4997,MATCH(U$1&\"|\"&$B32,'Data Annex'!$K$1:$K$4997,0),MATCH(U$2,'Data Annex'!$K$1:$AN$1,0)),\"\")","v":1.8499874455},{"$f":"IFERROR(INDEX('Data Annex'!$K$1:$AN$4997,MATCH(V$1&\"|\"&$B32,'Data Annex'!$K$1:$K$4997,0),MATCH(V$2,'Data Annex'!$K$1:$AN$1,0)),\"\")","v":1.8464363712},{"$f":"IFERROR(INDEX('Data Annex'!$K$1:$AN$4997,MATCH(W$1&\"|\"&$B32,'Data Annex'!$K$1:$K$4997,0),MATCH(W$2,'Data Annex'!$K$1:$AN$1,0)),\"\")","v":1.7595434686},{"$f":"IFERROR(INDEX('Data Annex'!$K$1:$AN$4997,MATCH(X$1&\"|\"&$B32,'Data Annex'!$K$1:$K$4997,0),MATCH(X$2,'Data Annex'!$K$1:$AN$1,0)),\"\")","v":2.0372260491},{"$f":"IFERROR(INDEX('Data Annex'!$K$1:$AN$4997,MATCH(Y$1&\"|\"&$B32,'Data Annex'!$K$1:$K$4997,0),MATCH(Y$2,'Data Annex'!$K$1:$AN$1,0)),\"\")","v":1.160180666},{"$f":"IFERROR(INDEX('Data Annex'!$K$1:$AN$4997,MATCH(Z$1&\"|\"&$B32,'Data Annex'!$K$1:$K$4997,0),MATCH(Z$2,'Data Annex'!$K$1:$AN$1,0)),\"\")","v":1.1816623278},{"$f":"IFERROR(INDEX('Data Annex'!$K$1:$AN$4997,MATCH(AA$1&\"|\"&$B32,'Data Annex'!$K$1:$K$4997,0),MATCH(AA$2,'Data Annex'!$K$1:$AN$1,0)),\"\")","v":1.169043652},{"$f":"IFERROR(INDEX('Data Annex'!$K$1:$AN$4997,MATCH(AB$1&\"|\"&$B32,'Data Annex'!$K$1:$K$4997,0),MATCH(AB$2,'Data Annex'!$K$1:$AN$1,0)),\"\")","v":1.1827096454999999}]
[23,"NL",null,"NL",{"$f":"IFERROR(INDEX('Data Annex'!$K$1:$AN$4997,MATCH(E$1&\"|\"&$B33,'Data Annex'!$K$1:$K$4997,0),MATCH(E$2,'Data Annex'!$K$1:$AN$1,0)),\"\")","v":1850.9754467},{"$f":"IFERROR(INDEX('Data Annex'!$K$1:$AN$4997,MATCH(F$1&\"|\"&$B33,'Data Annex'!$K$1:$K$4997,0),MATCH(F$2,'Data Annex'!$K$1:$AN$1,0)),\"\")","v":1901.9434555},{"$f":"IFERROR(INDEX('Data Annex'!$K$1:$AN$4997,MATCH(G$1&\"|\"&$B33,'Data Annex'!$K$1:$K$4997,0),MATCH(G$2,'Data Annex'!$K$1:$AN$1,0)),\"\")","v":1940.3798025000001},{"$f":"IFERROR(INDEX('Data Annex'!$K$1:$AN$4997,MATCH(H$1&\"|\"&$B33,'Data Annex'!$K$1:$K$4997,0),MATCH(H$2,'Data Annex'!$K$1:$AN$1,0)),\"\")","v":1852.2203004},{"$f":"IFERROR(INDEX('Data Annex'!$K$1:$AN$4997,MATCH(I$1&\"|\"&$B33,'Data Annex'!$K$1:$K$4997,0),MATCH(I$2,'Data Annex'!$K$1:$AN$1,0)),\"\")","v":735.52476288000003},{"$f":"IFERROR(INDEX('Data Annex'!$K$1:$AN$4997,MATCH(J$1&\"|\"&$B33,'Data Annex'!$K$1:$K$4997,0),MATCH(J$2,'Data Annex'!$K$1:$AN$1,0)),\"\")","v":738.07528521999996},{"$f":"IFERROR(INDEX('Data Annex'!$K$1:$AN$4997,MATCH(K$1&\"|\"&$B33,'Data Annex'!$K$1:$K$4997,0),MATCH(K$2,'Data Annex'!$K$1:$AN$1,0)),\"\")","v":738.76872664999996},{"$f":"IFERROR(INDEX('Data Annex'!$K$1:$AN$4997,MATCH(L$1&\"|\"&$B33,'Data Annex'!$K$1:$K$4997,0),MATCH(L$2,'Data Annex'!$K$1:$AN$1,0)),\"\")","v":740.21798267999998},{"$f":"IFERROR(INDEX('Data Annex'!$K$1:$AN$4997,MATCH(M$1&\"|\"&$B33,'Data Annex'!$K$1:$K$4997,0),MATCH(M$2,'Data Annex'!$K$1:$AN$1,0)),\"\")","v":676.89785261999998},{"$f":"IFERROR(INDEX('Data Annex'!$K$1:$AN$4997,MATCH(N$1&\"|\"&$B33,'Data Annex'!$K$1:$K$4997,0),MATCH(N$2,'Data Annex'!$K$1:$AN$1,0)),\"\")","v":680.70625053000003},{"$f":"IFERROR(INDEX('Data Annex'!$K$1:$AN$4997,MATCH(O$1&\"|\"&$B33,'Data Annex'!$K$1:$K$4997,0),MATCH(O$2,'Data Annex'!$K$1:$AN$1,0)),\"\")","v":681.06929564999996},{"$f":"IFERROR(INDEX('Data Annex'!$K$1:$AN$4997,MATCH(P$1&\"|\"&$B33,'Data Annex'!$K$1:$K$4997,0),MATCH(P$2,'Data Annex'!$K$1:$AN$1,0)),\"\")","v":682.94695000000002},{"$f":"IFERROR(INDEX('Data Annex'!$K$1:$AN$4997,MATCH(Q$1&\"|\"&$B33,'Data Annex'!$K$1:$K$4997,0),MATCH(Q$2,'Data Annex'!$K$1:$AN$1,0)),\"\")","v":588.03178509999998},{"$f":"IFERROR(INDEX('Data Annex'!$K$1:$AN$4997,MATCH(R$1&\"|\"&$B33,'Data Annex'!$K$1:$K$4997,0),MATCH(R$2,'Data Annex'!$K$1:$AN$1,0)),\"\")","v":575.73579482000002},{"$f":"IFERROR(INDEX('Data Annex'!$K$1:$AN$4997,MATCH(S$1&\"|\"&$B33,'Data Annex'!$K$1:$K$4997,0),MATCH(S$2,'Data Annex'!$K$1:$AN$1,0)),\"\")","v":550.49890619999996},{"$f":"IFERROR(INDEX('Data Annex'!$K$1:$AN$4997,MATCH(T$1&\"|\"&$B33,'Data Annex'!$K$1:$K$4997,0),MATCH(T$2,'Data Annex'!$K$1:$AN$1,0)),\"\")","v":536.27090908000002},{"$f":"IFERROR(INDEX('Data Annex'!$K$1:$AN$4997,MATCH(U$1&\"|\"&$B33,'Data Annex'!$K$1:$K$4997,0),MATCH(U$2,'Data Annex'!$K$1:$AN$1,0)),\"\")","v":141.914503},{"$f":"IFERROR(INDEX('Data Annex'!$K$1:$AN$4997,MATCH(V$1&\"|\"&$B33,'Data Annex'!$K$1:$K$4997,0),MATCH(V$2,'Data Annex'!$K$1:$AN$1,0)),\"\")","v":144.07244076999999},{"$f":"IFERROR(INDEX('Data Annex'!$K$1:$AN$4997,MATCH(W$1&\"|\"&$B33,'Data Annex'!$K$1:$K$4997,0),MATCH(W$2,'Data Annex'!$K$1:$AN$1,0)),\"\")","v":146.05526035},{"$f":"IFERROR(INDEX('Data Annex'!$K$1:$AN$4997,MATCH(X$1&\"|\"&$B33,'Data Annex'!$K$1:$K$4997,0),MATCH(X$2,'Data Annex'!$K$1:$AN$1,0)),\"\")","v":142.4519257},{"$f":"IFERROR(INDEX('Data Annex'!$K$1:$AN$4997,MATCH(Y$1&\"|\"&$B33,'Data Annex'!$K$1:$K$4997,0),MATCH(Y$2,'Data Annex'!$K$1:$AN$1,0)),\"\")","v":155.00510940000001},{"$f":"IFERROR(INDEX('Data Annex'!$K$1:$AN$4997,MATCH(Z$1&\"|\"&$B33,'Data Annex'!$K$1:$K$4997,0),MATCH(Z$2,'Data Annex'!$K$1:$AN$1,0)),\"\")","v":161.84026305},{"$f":"IFERROR(INDEX('Data Annex'!$K$1:$AN$4997,MATCH(AA$1&\"|\"&$B33,'Data Annex'!$K$1:$K$4997,0),MATCH(AA$2,'Data Annex'!$K$1:$AN$1,0)),\"\")","v":162.57937200999999},{"$f":"IFERROR(INDEX('Data Annex'!$K$1:$AN$4997,MATCH(AB$1&\"|\"&$B33,'Data Annex'!$K$1:$K$4997,0),MATCH(AB$2,'Data Annex'!$K$1:$AN$1,0)),\"\")","v":159.44511772000001}]
[24,"NO",null,"NO",{"$f":"IFERROR(INDEX('Data Annex'!$K$1:$AN$4997,MATCH(E$1&\"|\"&$B34,'Data Annex'!$K$1:$K$4997,0),MATCH(E$2,'Data Annex'!$K$1:$AN$1,0)),\"\")","v":243.72841474000001},{"$f":"IFERROR(INDEX('Data Annex'!$K$1:$AN$4997,MATCH(F$1&\"|\"&$B34,'Data Annex'!$K$1:$K$4997,0),MATCH(F$2,'Data Annex'!$K$1:$AN$1,0)),\"\")","v":242.57964876},{"$f":"IFERROR(INDEX('Data Annex'!$K$1:$AN$4997,MATCH(G$1&\"|\"&$B34,'Data Annex'!$K$1:$K$4997,0),MATCH(G$2,'Data Annex'!$K$1:$AN$1,0)),\"\")","v":241.73069620999999},{"$f":"IFERROR(INDEX('Data Annex'!$K$1:$AN$4997,MATCH(H$1&\"|\"&$B34,'Data Annex'!$K$1:$K$4997,0),MATCH(H$2,'Data Annex'!$K$1:$AN$1,0)),\"\")","v":244.45840652999999},{"$f":"IFERROR(INDEX('Data Annex'!$K$1:$AN$4997,MATCH(I$1&\"|\"&$B34,'Data Annex'!$K$1:$K$4997,0),MATCH(I$2,'Data Annex'!$K$1:$AN$1,0)),\"\")","v":90.076218878999995},{"$f":"IFERROR(INDEX('Data Annex'!$K$1:$AN$4997,MATCH(J$1&\"|\"&$B34,'Data Annex'!$K$1:$K$4997,0),MATCH(J$2,'Data Annex'!$K$1:$AN$1,0)),\"\")","v":95.423458828999998},{"$f":"IFERROR(INDEX('Data Annex'!$K$1:$AN$4997,MATCH(K$1&\"|\"&$B34,'Data Annex'!$K$1:$K$4997,0),MATCH(K$2,'Data Annex'!$K$1:$AN$1,0)),\"\")","v":95.650334814999994},{"$f":"IFERROR(INDEX('Data Annex'!$K$1:$AN$4997,MATCH(L$1&\"|\"&$B34,'Data Annex'!$K$1:$K$4997,0),MATCH(L$2,'Data Annex'!$K$1:$AN$1,0)),\"\")","v":102.35879952000001},{"$f":"IFERROR(INDEX('Data Annex'!$K$1:$AN$4997,MATCH(M$1&\"|\"&$B34,'Data Annex'!$K$1:$K$4997,0),MATCH(M$2,'Data Annex'!$K$1:$AN$1,0)),\"\")","v":78.991230580999996},{"$f":"IFERROR(INDEX('Data Annex'!$K$1:$AN$4997,MATCH(N$1&\"|\"&$B34,'Data Annex'!$K$1:$K$4997,0),MATCH(N$2,'Data Annex'!$K$1:$AN$1,0)),\"\")","v":83.669246732999994},{"$f":"IFERROR(INDEX('Data Annex'!$K$1:$AN$4997,MATCH(O$1&\"|\"&$B34,'Data Annex'!$K$1:$K$4997,0),MATCH(O$2,'Data Annex'!$K$1:$AN$1,0)),\"\")","v":84.593941766},{"$f":"IFERROR(INDEX('Data Annex'!$K$1:$AN$4997,MATCH(P$1&\"|\"&$B34,'Data Annex'!$K$1:$K$4997,0),MATCH(P$2,'Data Annex'!$K$1:$AN$1,0)),\"\")","v":90.870145338},{"$f":"IFERROR(INDEX('Data Annex'!$K$1:$AN$4997,MATCH(Q$1&\"|\"&$B34,'Data Annex'!$K$1:$K$4997,0),MATCH(Q$2,'Data Annex'!$K$1:$AN$1,0)),\"\")","v":79.632300079000004},{"$f":"IFERROR(INDEX('Data Annex'!$K$1:$AN$4997,MATCH(R$1&\"|\"&$B34,'Data Annex'!$K$1:$K$4997,0),MATCH(R$2,'Data Annex'!$K$1:$AN$1,0)),\"\")","v":81.487483635999993},{"$f":"IFERROR(INDEX('Data Annex'!$K$1:$AN$4997,MATCH(S$1&\"|\"&$B34,'Data Annex'!$K$1:$K$4997,0),MATCH(S$2,'Data Annex'!$K$1:$AN$1,0)),\"\")","v":79.674845618999996},{"$f":"IFERROR(INDEX('Data Annex'!$K$1:$AN$4997,MATCH(T$1&\"|\"&$B34,'Data Annex'!$K$1:$K$4997,0),MATCH(T$2,'Data Annex'!$K$1:$AN$1,0)),\"\")","v":82.194836476999996},{"$f":"IFERROR(INDEX('Data Annex'!$K$1:$AN$4997,MATCH(U$1&\"|\"&$B34,'Data Annex'!$K$1:$K$4997,0),MATCH(U$2,'Data Annex'!$K$1:$AN$1,0)),\"\")","v":27.510729111},{"$f":"IFERROR(INDEX('Data Annex'!$K$1:$AN$4997,MATCH(V$1&\"|\"&$B34,'Data Annex'!$K$1:$K$4997,0),MATCH(V$2,'Data Annex'!$K$1:$AN$1,0)),\"\")","v":28.101180944999999},{"$f":"IFERROR(INDEX('Data Annex'!$K$1:$AN$4997,MATCH(W$1&\"|\"&$B34,'Data Annex'!$K$1:$K$4997,0),MATCH(W$2,'Data Annex'!$K$1:$AN$1,0)),\"\")","v":29.052167583999999},{"$f":"IFERROR(INDEX('Data Annex'!$K$1:$AN$4997,MATCH(X$1&\"|\"&$B34,'Data Annex'!$K$1:$K$4997,0),MATCH(X$2,'Data Annex'!$K$1:$AN$1,0)),\"\")","v":30.152830033000001},{"$f":"IFERROR(INDEX('Data Annex'!$K$1:$AN$4997,MATCH(Y$1&\"|\"&$B34,'Data Annex'!$K$1:$K$4997,0),MATCH(Y$2,'Data Annex'!$K$1:$AN$1,0)),\"\")","v":22.372641495},{"$f":"IFERROR(INDEX('Data Annex'!$K$1:$AN$4997,MATCH(Z$1&\"|\"&$B34,'Data Annex'!$K$1:$K$4997,0),MATCH(Z$2,'Data Annex'!$K$1:$AN$1,0)),\"\")","v":24.108325431000001},{"$f":"IFERROR(INDEX('Data Annex'!$K$1:$AN$4997,MATCH(AA$1&\"|\"&$B34,'Data Annex'!$K$1:$K$4997,0),MATCH(AA$2,'Data Annex'!$K$1:$AN$1,0)),\"\")","v":23.501826990000001},{"$f":"IFERROR(INDEX('Data Annex'!$K$1:$AN$4997,MATCH(AB$1&\"|\"&$B34,'Data Annex'!$K$1:$K$4997,0),MATCH(AB$2,'Data Annex'!$K$1:$AN$1,0)),\"\")","v":25.035973000999999}]
[25,"PL",null,"PL",{"$f":"IFERROR(INDEX('Data Annex'!$K$1:$AN$4997,MATCH(E$1&\"|\"&$B35,'Data Annex'!$K$1:$K$4997,0),MATCH(E$2,'Data Annex'!$K$1:$AN$1,0)),\"\")","v":128.52076289999999},{"$f":"IFERROR(INDEX('Data Annex'!$K$1:$AN$4997,MATCH(F$1&\"|\"&$B35,'Data Annex'!$K$1:$K$4997,0),MATCH(F$2,'Data Annex'!$K$1:$AN$1,0)),\"\")","v":125.71300436},{"$f":"IFERROR(INDEX('Data Annex'!$K$1:$AN$4997,MATCH(G$1&\"|\"&$B35,'Data Annex'!$K$1:$K$4997,0),MATCH(G$2,'Data Annex'!$K$1:$AN$1,0)),\"\")","v":120.21560572},{"$f":"IFERROR(INDEX('Data Annex'!$K$1:$AN$4997,MATCH(H$1&\"|\"&$B35,'Data Annex'!$K$1:$K$4997,0),MATCH(H$2,'Data Annex'!$K$1:$AN$1,0)),\"\")","v":120.79352563},{"$f":"IFERROR(INDEX('Data Annex'!$K$1:$AN$4997,MATCH(I$1&\"|\"&$B35,'Data Annex'!$K$1:$K$4997,0),MATCH(I$2,'Data Annex'!$K$1:$AN$1,0)),\"\")","v":70.995557429000002},{"$f":"IFERROR(INDEX('Data Annex'!$K$1:$AN$4997,MATCH(J$1&\"|\"&$B35,'Data Annex'!$K$1:$K$4997,0),MATCH(J$2,'Data Annex'!$K$1:$AN$1,0)),\"\")","v":72.096398101999995},{"$f":"IFERROR(INDEX('Data Annex'!$K$1:$AN$4997,MATCH(K$1&\"|\"&$B35,'Data Annex'!$K$1:$K$4997,0),MATCH(K$2,'Data Annex'!$K$1:$AN$1,0)),\"\")","v":70.899658982999995},{"$f":"IFERROR(INDEX('Data Annex'!$K$1:$AN$4997,MATCH(L$1&\"|\"&$B35,'Data Annex'!$K$1:$K$4997,0),MATCH(L$2,'Data Annex'!$K$1:$AN$1,0)),\"\")","v":70.795852300999996},{"$f":"IFERROR(INDEX('Data Annex'!$K$1:$AN$4997,MATCH(M$1&\"|\"&$B35,'Data Annex'!$K$1:$K$4997,0),MATCH(M$2,'Data Annex'!$K$1:$AN$1,0)),\"\")","v":46.438976682000003},{"$f":"IFERROR(INDEX('Data Annex'!$K$1:$AN$4997,MATCH(N$1&\"|\"&$B35,'Data Annex'!$K$1:$K$4997,0),MATCH(N$2,'Data Annex'!$K$1:$AN$1,0)),\"\")","v":46.740002762000003},{"$f":"IFERROR(INDEX('Data Annex'!$K$1:$AN$4997,MATCH(O$1&\"|\"&$B35,'Data Annex'!$K$1:$K$4997,0),MATCH(O$2,'Data Annex'!$K$1:$AN$1,0)),\"\")","v":47.413410175000003},{"$f":"IFERROR(INDEX('Data Annex'!$K$1:$AN$4997,MATCH(P$1&\"|\"&$B35,'Data Annex'!$K$1:$K$4997,0),MATCH(P$2,'Data Annex'!$K$1:$AN$1,0)),\"\")","v":47.586024277999996},{"$f":"IFERROR(INDEX('Data Annex'!$K$1:$AN$4997,MATCH(Q$1&\"|\"&$B35,'Data Annex'!$K$1:$K$4997,0),MATCH(Q$2,'Data Annex'!$K$1:$AN$1,0)),\"\")","v":43.979610717},{"$f":"IFERROR(INDEX('Data Annex'!$K$1:$AN$4997,MATCH(R$1&\"|\"&$B35,'Data Annex'!$K$1:$K$4997,0),MATCH(R$2,'Data Annex'!$K$1:$AN$1,0)),\"\")","v":42.357669967},{"$f":"IFERROR(INDEX('Data Annex'!$K$1:$AN$4997,MATCH(S$1&\"|\"&$B35,'Data Annex'!$K$1:$K$4997,0),MATCH(S$2,'Data Annex'!$K$1:$AN$1,0)),\"\")","v":40.809596532},{"$f":"IFERROR(INDEX('Data Annex'!$K$1:$AN$4997,MATCH(T$1&\"|\"&$B35,'Data Annex'!$K$1:$K$4997,0),MATCH(T$2,'Data Annex'!$K$1:$AN$1,0)),\"\")","v":40.982709559},{"$f":"IFERROR(INDEX('Data Annex'!$K$1:$AN$4997,MATCH(U$1&\"|\"&$B35,'Data Annex'!$K$1:$K$4997,0),MATCH(U$2,'Data Annex'!$K$1:$AN$1,0)),\"\")","v":20.569014008},{"$f":"IFERROR(INDEX('Data Annex'!$K$1:$AN$4997,MATCH(V$1&\"|\"&$B35,'Data Annex'!$K$1:$K$4997,0),MATCH(V$2,'Data Annex'!$K$1:$AN$1,0)),\"\")","v":19.860552143},{"$f":"IFERROR(INDEX('Data Annex'!$K$1:$AN$4997,MATCH(W$1&\"|\"&$B35,'Data Annex'!$K$1:$K$4997,0),MATCH(W$2,'Data Annex'!$K$1:$AN$1,0)),\"\")","v":19.386648095000002},{"$f":"IFERROR(INDEX('Data Annex'!$K$1:$AN$4997,MATCH(X$1&\"|\"&$B35,'Data Annex'!$K$1:$K$4997,0),MATCH(X$2,'Data Annex'!$K$1:$AN$1,0)),\"\")","v":19.423873134000001},{"$f":"IFERROR(INDEX('Data Annex'!$K$1:$AN$4997,MATCH(Y$1&\"|\"&$B35,'Data Annex'!$K$1:$K$4997,0),MATCH(Y$2,'Data Annex'!$K$1:$AN$1,0)),\"\")","v":13.218663448999999},{"$f":"IFERROR(INDEX('Data Annex'!$K$1:$AN$4997,MATCH(Z$1&\"|\"&$B35,'Data Annex'!$K$1:$K$4997,0),MATCH(Z$2,'Data Annex'!$K$1:$AN$1,0)),\"\")","v":13.953413320999999},{"$f":"IFERROR(INDEX('Data Annex'!$K$1:$AN$4997,MATCH(AA$1&\"|\"&$B35,'Data Annex'!$K$1:$K$4997,0),MATCH(AA$2,'Data Annex'!$K$1:$AN$1,0)),\"\")","v":14.005364698999999},{"$f":"IFERROR(INDEX('Data Annex'!$K$1:$AN$4997,MATCH(AB$1&\"|\"&$B35,'Data Annex'!$K$1:$K$4997,0),MATCH(AB$2,'Data Annex'!$K$1:$AN$1,0)),\"\")","v":13.336132559999999}]
[26,"PT",null,"PT",{"$f":"IFERROR(INDEX('Data Annex'!$K$1:$AN$4997,MATCH(E$1&\"|\"&$B36,'Data Annex'!$K$1:$K$4997,0),MATCH(E$2,'Data Annex'!$K$1:$AN$1,0)),\"\")","v":235.31206359999999},{"$f":"IFERROR(INDEX('Data Annex'!$K$1:$AN$4997,MATCH(F$1&\"|\"&$B36,'Data Annex'!$K$1:$K$4997,0),MATCH(F$2,'Data Annex'!$K$1:$AN$1,0)),\"\")","v":248.57610861000001},{"$f":"IFERROR(INDEX('Data Annex'!$K$1:$AN$4997,MATCH(G$1&\"|\"&$B36,'Data Annex'!$K$1:$K$4997,0),MATCH(G$2,'Data Annex'!$K$1:$AN$1,0)),\"\")","v":245.16827817000001},{"$f":"IFERROR(INDEX('Data Annex'!$K$1:$AN$4997,MATCH(H$1&\"|\"&$B36,'Data Annex'!$K$1:$K$4997,0),MATCH(H$2,'Data Annex'!$K$1:$AN$1,0)),\"\")","v":249.50582424999999},{"$f":"IFERROR(INDEX('Data Annex'!$K$1:$AN$4997,MATCH(I$1&\"|\"&$B36,'Data Annex'!$K$1:$K$4997,0),MATCH(I$2,'Data Annex'!$K$1:$AN$1,0)),\"\")","v":118.15767569},{"$f":"IFERROR(INDEX('Data Annex'!$K$1:$AN$4997,MATCH(J$1&\"|\"&$B36,'Data Annex'!$K$1:$K$4997,0),MATCH(J$2,'Data Annex'!$K$1:$AN$1,0)),\"\")","v":118.68715103},{"$f":"IFERROR(INDEX('Data Annex'!$K$1:$AN$4997,MATCH(K$1&\"|\"&$B36,'Data Annex'!$K$1:$K$4997,0),MATCH(K$2,'Data Annex'!$K$1:$AN$1,0)),\"\")","v":119.07167492000001},{"$f":"IFERROR(INDEX('Data Annex'!$K$1:$AN$4997,MATCH(L$1&\"|\"&$B36,'Data Annex'!$K$1:$K$4997,0),MATCH(L$2,'Data Annex'!$K$1:$AN$1,0)),\"\")","v":119.97450972999999},{"$f":"IFERROR(INDEX('Data Annex'!$K$1:$AN$4997,MATCH(M$1&\"|\"&$B36,'Data Annex'!$K$1:$K$4997,0),MATCH(M$2,'Data Annex'!$K$1:$AN$1,0)),\"\")","v":100.62212795000001},{"$f":"IFERROR(INDEX('Data Annex'!$K$1:$AN$4997,MATCH(N$1&\"|\"&$B36,'Data Annex'!$K$1:$K$4997,0),MATCH(N$2,'Data Annex'!$K$1:$AN$1,0)),\"\")","v":100.73905563},{"$f":"IFERROR(INDEX('Data Annex'!$K$1:$AN$4997,MATCH(O$1&\"|\"&$B36,'Data Annex'!$K$1:$K$4997,0),MATCH(O$2,'Data Annex'!$K$1:$AN$1,0)),\"\")","v":101.01292977999999},{"$f":"IFERROR(INDEX('Data Annex'!$K$1:$AN$4997,MATCH(P$1&\"|\"&$B36,'Data Annex'!$K$1:$K$4997,0),MATCH(P$2,'Data Annex'!$K$1:$AN$1,0)),\"\")","v":101.63977429000001},{"$f":"IFERROR(INDEX('Data Annex'!$K$1:$AN$4997,MATCH(Q$1&\"|\"&$B36,'Data Annex'!$K$1:$K$4997,0),MATCH(Q$2,'Data Annex'!$K$1:$AN$1,0)),\"\")","v":75.055233709999996},{"$f":"IFERROR(INDEX('Data Annex'!$K$1:$AN$4997,MATCH(R$1&\"|\"&$B36,'Data Annex'!$K$1:$K$4997,0),MATCH(R$2,'Data Annex'!$K$1:$AN$1,0)),\"\")","v":78.610017037999995},{"$f":"IFERROR(INDEX('Data Annex'!$K$1:$AN$4997,MATCH(S$1&\"|\"&$B36,'Data Annex'!$K$1:$K$4997,0),MATCH(S$2,'Data Annex'!$K$1:$AN$1,0)),\"\")","v":78.338637057},{"$f":"IFERROR(INDEX('Data Annex'!$K$1:$AN$4997,MATCH(T$1&\"|\"&$B36,'Data Annex'!$K$1:$K$4997,0),MATCH(T$2,'Data Annex'!$K$1:$AN$1,0)),\"\")","v":77.636480926999994},{"$f":"IFERROR(INDEX('Data Annex'!$K$1:$AN$4997,MATCH(U$1&\"|\"&$B36,'Data Annex'!$K$1:$K$4997,0),MATCH(U$2,'Data Annex'!$K$1:$AN$1,0)),\"\")","v":49.834201012999998},{"$f":"IFERROR(INDEX('Data Annex'!$K$1:$AN$4997,MATCH(V$1&\"|\"&$B36,'Data Annex'!$K$1:$K$4997,0),MATCH(V$2,'Data Annex'!$K$1:$AN$1,0)),\"\")","v":52.389199892999997},{"$f":"IFERROR(INDEX('Data Annex'!$K$1:$AN$4997,MATCH(W$1&\"|\"&$B36,'Data Annex'!$K$1:$K$4997,0),MATCH(W$2,'Data Annex'!$K$1:$AN$1,0)),\"\")","v":53.280971786999999},{"$f":"IFERROR(INDEX('Data Annex'!$K$1:$AN$4997,MATCH(X$1&\"|\"&$B36,'Data Annex'!$K$1:$K$4997,0),MATCH(X$2,'Data Annex'!$K$1:$AN$1,0)),\"\")","v":53.419592049000002},{"$f":"IFERROR(INDEX('Data Annex'!$K$1:$AN$4997,MATCH(Y$1&\"|\"&$B36,'Data Annex'!$K$1:$K$4997,0),MATCH(Y$2,'Data Annex'!$K$1:$AN$1,0)),\"\")","v":20.689817806000001},{"$f":"IFERROR(INDEX('Data Annex'!$K$1:$AN$4997,MATCH(Z$1&\"|\"&$B36,'Data Annex'!$K$1:$K$4997,0),MATCH(Z$2,'Data Annex'!$K$1:$AN$1,0)),\"\")","v":22.680538458000001},{"$f":"IFERROR(INDEX('Data Annex'!$K$1:$AN$4997,MATCH(AA$1&\"|\"&$B36,'Data Annex'!$K$1:$K$4997,0),MATCH(AA$2,'Data Annex'!$K$1:$AN$1,0)),\"\")","v":22.383236126},{"$f":"IFERROR(INDEX('Data Annex'!$K$1:$AN$4997,MATCH(AB$1&\"|\"&$B36,'Data Annex'!$K$1:$K$4997,0),MATCH(AB$2,'Data Annex'!$K$1:$AN$1,0)),\"\")","v":22.23863356}]
[27,"RO",null,"RO",{"$f":"IFERROR(INDEX('Data Annex'!$K$1:$AN$4997,MATCH(E$1&\"|\"&$B37,'Data Annex'!$K$1:$K$4997,0),MATCH(E$2,'Data Annex'!$K$1:$AN$1,0)),\"\")","v":32.593333053999999},{"$f":"IFERROR(INDEX('Data Annex'!$K$1:$AN$4997,MATCH(F$1&\"|\"&$B37,'Data Annex'!$K$1:$K$4997,0),MATCH(F$2,'Data Annex'!$K$1:$AN$1,0)),\"\")","v":32.831607056000003},{"$f":"IFERROR(INDEX('Data Annex'!$K$1:$AN$4997,MATCH(G$1&\"|\"&$B37,'Data Annex'!$K$1:$K$4997,0),MATCH(G$2,'Data Annex'!$K$1:$AN$1,0)),\"\")","v":33.167376517000001},{"$f":"IFERROR(INDEX('Data Annex'!$K$1:$AN$4997,MATCH(H$1&\"|\"&$B37,'Data Annex'!$K$1:$K$4997,0),MATCH(H$2,'Data Annex'!$K$1:$AN$1,0)),\"\")","v":34.776119844},{"$f":"IFERROR(INDEX('Data Annex'!$K$1:$AN$4997,MATCH(I$1&\"|\"&$B37,'Data Annex'!$K$1:$K$4997,0),MATCH(I$2,'Data Annex'!$K$1:$AN$1,0)),\"\")","v":14.979297001999999},{"$f":"IFERROR(INDEX('Data Annex'!$K$1:$AN$4997,MATCH(J$1&\"|\"&$B37,'Data Annex'!$K$1:$K$4997,0),MATCH(J$2,'Data Annex'!$K$1:$AN$1,0)),\"\")","v":15.006002272},{"$f":"IFERROR(INDEX('Data Annex'!$K$1:$AN$4997,MATCH(K$1&\"|\"&$B37,'Data Annex'!$K$1:$K$4997,0),MATCH(K$2,'Data Annex'!$K$1:$AN$1,0)),\"\")","v":15.196264458},{"$f":"IFERROR(INDEX('Data Annex'!$K$1:$AN$4997,MATCH(L$1&\"|\"&$B37,'Data Annex'!$K$1:$K$4997,0),MATCH(L$2,'Data Annex'!$K$1:$AN$1,0)),\"\")","v":15.291050774},{"$f":"IFERROR(INDEX('Data Annex'!$K$1:$AN$4997,MATCH(M$1&\"|\"&$B37,'Data Annex'!$K$1:$K$4997,0),MATCH(M$2,'Data Annex'!$K$1:$AN$1,0)),\"\")","v":9.6592608469000005},{"$f":"IFERROR(INDEX('Data Annex'!$K$1:$AN$4997,MATCH(N$1&\"|\"&$B37,'Data Annex'!$K$1:$K$4997,0),MATCH(N$2,'Data Annex'!$K$1:$AN$1,0)),\"\")","v":9.7234961125999995},{"$f":"IFERROR(INDEX('Data Annex'!$K$1:$AN$4997,MATCH(O$1&\"|\"&$B37,'Data Annex'!$K$1:$K$4997,0),MATCH(O$2,'Data Annex'!$K$1:$AN$1,0)),\"\")","v":9.7898153219000008},{"$f":"IFERROR(INDEX('Data Annex'!$K$1:$AN$4997,MATCH(P$1&\"|\"&$B37,'Data Annex'!$K$1:$K$4997,0),MATCH(P$2,'Data Annex'!$K$1:$AN$1,0)),\"\")","v":9.9691179971999997},{"$f":"IFERROR(INDEX('Data Annex'!$K$1:$AN$4997,MATCH(Q$1&\"|\"&$B37,'Data Annex'!$K$1:$K$4997,0),MATCH(Q$2,'Data Annex'!$K$1:$AN$1,0)),\"\")","v":8.6940826092000005},{"$f":"IFERROR(INDEX('Data Annex'!$K$1:$AN$4997,MATCH(R$1&\"|\"&$B37,'Data Annex'!$K$1:$K$4997,0),MATCH(R$2,'Data Annex'!$K$1:$AN$1,0)),\"\")","v":8.5815814423999992},{"$f":"IFERROR(INDEX('Data Annex'!$K$1:$AN$4997,MATCH(S$1&\"|\"&$B37,'Data Annex'!$K$1:$K$4997,0),MATCH(S$2,'Data Annex'!$K$1:$AN$1,0)),\"\")","v":8.8955821581999999},{"$f":"IFERROR(INDEX('Data Annex'!$K$1:$AN$4997,MATCH(T$1&\"|\"&$B37,'Data Annex'!$K$1:$K$4997,0),MATCH(T$2,'Data Annex'!$K$1:$AN$1,0)),\"\")","v":9.0848790791000003},{"$f":"IFERROR(INDEX('Data Annex'!$K$1:$AN$4997,MATCH(U$1&\"|\"&$B37,'Data Annex'!$K$1:$K$4997,0),MATCH(U$2,'Data Annex'!$K$1:$AN$1,0)),\"\")","v":3.9993376977000001},{"$f":"IFERROR(INDEX('Data Annex'!$K$1:$AN$4997,MATCH(V$1&\"|\"&$B37,'Data Annex'!$K$1:$K$4997,0),MATCH(V$2,'Data Annex'!$K$1:$AN$1,0)),\"\")","v":4.2219351295000003},{"$f":"IFERROR(INDEX('Data Annex'!$K$1:$AN$4997,MATCH(W$1&\"|\"&$B37,'Data Annex'!$K$1:$K$4997,0),MATCH(W$2,'Data Annex'!$K$1:$AN$1,0)),\"\")","v":4.5110994917999996},{"$f":"IFERROR(INDEX('Data Annex'!$K$1:$AN$4997,MATCH(X$1&\"|\"&$B37,'Data Annex'!$K$1:$K$4997,0),MATCH(X$2,'Data Annex'!$K$1:$AN$1,0)),\"\")","v":4.6184229895},{"$f":"IFERROR(INDEX('Data Annex'!$K$1:$AN$4997,MATCH(Y$1&\"|\"&$B37,'Data Annex'!$K$1:$K$4997,0),MATCH(Y$2,'Data Annex'!$K$1:$AN$1,0)),\"\")","v":3.1390968291000001},{"$f":"IFERROR(INDEX('Data Annex'!$K$1:$AN$4997,MATCH(Z$1&\"|\"&$B37,'Data Annex'!$K$1:$K$4997,0),MATCH(Z$2,'Data Annex'!$K$1:$AN$1,0)),\"\")","v":3.4982418700000002},{"$f":"IFERROR(INDEX('Data Annex'!$K$1:$AN$4997,MATCH(AA$1&\"|\"&$B37,'Data Annex'!$K$1:$K$4997,0),MATCH(AA$2,'Data Annex'!$K$1:$AN$1,0)),\"\")","v":3.3559303345},{"$f":"IFERROR(INDEX('Data Annex'!$K$1:$AN$4997,MATCH(AB$1&\"|\"&$B37,'Data Annex'!$K$1:$K$4997,0),MATCH(AB$2,'Data Annex'!$K$1:$AN$1,0)),\"\")","v":3.2906136846999998}]
[28,"SE",null,"SE",{"$f":"IFERROR(INDEX('Data Annex'!$K$1:$AN$4997,MATCH(E$1&\"|\"&$B38,'Data Annex'!$K$1:$K$4997,0),MATCH(E$2,'Data Annex'!$K$1:$AN$1,0)),\"\")","v":760.63860400999999},{"$f":"IFERROR(INDEX('Data Annex'!$K$1:$AN$4997,MATCH(F$1&\"|\"&$B38,'Data Annex'!$K$1:$K$4997,0),MATCH(F$2,'Data Annex'!$K$1:$AN$1,0)),\"\")","v":805.34608498},{"$f":"IFERROR(INDEX('Data Annex'!$K$1:$AN$4997,MATCH(G$1&\"|\"&$B38,'Data Annex'!$K$1:$K$4997,0),MATCH(G$2,'Data Annex'!$K$1:$AN$1,0)),\"\")","v":788.87512934999995},{"$f":"IFERROR(INDEX('Data Annex'!$K$1:$AN$4997,MATCH(H$1&\"|\"&$B38,'Data Annex'!$K$1:$K$4997,0),MATCH(H$2,'Data Annex'!$K$1:$AN$1,0)),\"\")","v":798.49228760000005},{"$f":"IFERROR(INDEX('Data Annex'!$K$1:$AN$4997,MATCH(I$1&\"|\"&$B38,'Data Annex'!$K$1:$K$4997,0),MATCH(I$2,'Data Annex'!$K$1:$AN$1,0)),\"\")","v":318.71807575999998},{"$f":"IFERROR(INDEX('Data Annex'!$K$1:$AN$4997,MATCH(J$1&\"|\"&$B38,'Data Annex'!$K$1:$K$4997,0),MATCH(J$2,'Data Annex'!$K$1:$AN$1,0)),\"\")","v":337.60057647000002},{"$f":"IFERROR(INDEX('Data Annex'!$K$1:$AN$4997,MATCH(K$1&\"|\"&$B38,'Data Annex'!$K$1:$K$4997,0),MATCH(K$2,'Data Annex'!$K$1:$AN$1,0)),\"\")","v":338.92793919000002},{"$f":"IFERROR(INDEX('Data Annex'!$K$1:$AN$4997,MATCH(L$1&\"|\"&$B38,'Data Annex'!$K$1:$K$4997,0),MATCH(L$2,'Data Annex'!$K$1:$AN$1,0)),\"\")","v":359.51114233999999},{"$f":"IFERROR(INDEX('Data Annex'!$K$1:$AN$4997,MATCH(M$1&\"|\"&$B38,'Data Annex'!$K$1:$K$4997,0),MATCH(M$2,'Data Annex'!$K$1:$AN$1,0)),\"\")","v":286.15888520999999},{"$f":"IFERROR(INDEX('Data Annex'!$K$1:$AN$4997,MATCH(N$1&\"|\"&$B38,'Data Annex'!$K$1:$K$4997,0),MATCH(N$2,'Data Annex'!$K$1:$AN$1,0)),\"\")","v":303.05924637999999},{"$f":"IFERROR(INDEX('Data Annex'!$K$1:$AN$4997,MATCH(O$1&\"|\"&$B38,'Data Annex'!$K$1:$K$4997,0),MATCH(O$2,'Data Annex'!$K$1:$AN$1,0)),\"\")","v":304.11952764},{"$f":"IFERROR(INDEX('Data Annex'!$K$1:$AN$4997,MATCH(P$1&\"|\"&$B38,'Data Annex'!$K$1:$K$4997,0),MATCH(P$2,'Data Annex'!$K$1:$AN$1,0)),\"\")","v":323.28056183000001},{"$f":"IFERROR(INDEX('Data Annex'!$K$1:$AN$4997,MATCH(Q$1&\"|\"&$B38,'Data Annex'!$K$1:$K$4997,0),MATCH(Q$2,'Data Annex'!$K$1:$AN$1,0)),\"\")","v":263.85163575000001},{"$f":"IFERROR(INDEX('Data Annex'!$K$1:$AN$4997,MATCH(R$1&\"|\"&$B38,'Data Annex'!$K$1:$K$4997,0),MATCH(R$2,'Data Annex'!$K$1:$AN$1,0)),\"\")","v":267.97830649000002},{"$f":"IFERROR(INDEX('Data Annex'!$K$1:$AN$4997,MATCH(S$1&\"|\"&$B38,'Data Annex'!$K$1:$K$4997,0),MATCH(S$2,'Data Annex'!$K$1:$AN$1,0)),\"\")","v":265.04544477000002},{"$f":"IFERROR(INDEX('Data Annex'!$K$1:$AN$4997,MATCH(T$1&\"|\"&$B38,'Data Annex'!$K$1:$K$4997,0),MATCH(T$2,'Data Annex'!$K$1:$AN$1,0)),\"\")","v":272.65300381999998},{"$f":"IFERROR(INDEX('Data Annex'!$K$1:$AN$4997,MATCH(U$1&\"|\"&$B38,'Data Annex'!$K$1:$K$4997,0),MATCH(U$2,'Data Annex'!$K$1:$AN$1,0)),\"\")","v":127.11927364},{"$f":"IFERROR(INDEX('Data Annex'!$K$1:$AN$4997,MATCH(V$1&\"|\"&$B38,'Data Annex'!$K$1:$K$4997,0),MATCH(V$2,'Data Annex'!$K$1:$AN$1,0)),\"\")","v":137.02767488000001},{"$f":"IFERROR(INDEX('Data Annex'!$K$1:$AN$4997,MATCH(W$1&\"|\"&$B38,'Data Annex'!$K$1:$K$4997,0),MATCH(W$2,'Data Annex'!$K$1:$AN$1,0)),\"\")","v":137.29089565000001},{"$f":"IFERROR(INDEX('Data Annex'!$K$1:$AN$4997,MATCH(X$1&\"|\"&$B38,'Data Annex'!$K$1:$K$4997,0),MATCH(X$2,'Data Annex'!$K$1:$AN$1,0)),\"\")","v":142.36390176},{"$f":"IFERROR(INDEX('Data Annex'!$K$1:$AN$4997,MATCH(Y$1&\"|\"&$B38,'Data Annex'!$K$1:$K$4997,0),MATCH(Y$2,'Data Annex'!$K$1:$AN$1,0)),\"\")","v":105.78981086},{"$f":"IFERROR(INDEX('Data Annex'!$K$1:$AN$4997,MATCH(Z$1&\"|\"&$B38,'Data Annex'!$K$1:$K$4997,0),MATCH(Z$2,'Data Annex'!$K$1:$AN$1,0)),\"\")","v":111.23024258},{"$f":"IFERROR(INDEX('Data Annex'!$K$1:$AN$4997,MATCH(AA$1&\"|\"&$B38,'Data Annex'!$K$1:$K$4997,0),MATCH(AA$2,'Data Annex'!$K$1:$AN$1,0)),\"\")","v":99.338359354999994},{"$f":"IFERROR(INDEX('Data Annex'!$K$1:$AN$4997,MATCH(AB$1&\"|\"&$B38,'Data Annex'!$K$1:$K$4997,0),MATCH(AB$2,'Data Annex'!$K$1:$AN$1,0)),\"\")","v":104.93264052000001}]
[29,"SI",null,"SI",{"$f":"IFERROR(INDEX('Data Annex'!$K$1:$AN$4997,MATCH(E$1&\"|\"&$B39,'Data Annex'!$K$1:$K$4997,0),MATCH(E$2,'Data Annex'!$K$1:$AN$1,0)),\"\")","v":19.449913794},{"$f":"IFERROR(INDEX('Data Annex'!$K$1:$AN$4997,MATCH(F$1&\"|\"&$B39,'Data Annex'!$K$1:$K$4997,0),MATCH(F$2,'Data Annex'!$K$1:$AN$1,0)),\"\")","v":20.440867901000001},{"$f":"IFERROR(INDEX('Data Annex'!$K$1:$AN$4997,MATCH(G$1&\"|\"&$B39,'Data Annex'!$K$1:$K$4997,0),MATCH(G$2,'Data Annex'!$K$1:$AN$1,0)),\"\")","v":20.461306650000001},{"$f":"IFERROR(INDEX('Data Annex'!$K$1:$AN$4997,MATCH(H$1&\"|\"&$B39,'Data Annex'!$K$1:$K$4997,0),MATCH(H$2,'Data Annex'!$K$1:$AN$1,0)),\"\")","v":23.622079203999998},{"$f":"IFERROR(INDEX('Data Annex'!$K$1:$AN$4997,MATCH(I$1&\"|\"&$B39,'Data Annex'!$K$1:$K$4997,0),MATCH(I$2,'Data Annex'!$K$1:$AN$1,0)),\"\")","v":8.3054364339000006},{"$f":"IFERROR(INDEX('Data Annex'!$K$1:$AN$4997,MATCH(J$1&\"|\"&$B39,'Data Annex'!$K$1:$K$4997,0),MATCH(J$2,'Data Annex'!$K$1:$AN$1,0)),\"\")","v":8.2548702911999996},{"$f":"IFERROR(INDEX('Data Annex'!$K$1:$AN$4997,MATCH(K$1&\"|\"&$B39,'Data Annex'!$K$1:$K$4997,0),MATCH(K$2,'Data Annex'!$K$1:$AN$1,0)),\"\")","v":8.3905128128000008},{"$f":"IFERROR(INDEX('Data Annex'!$K$1:$AN$4997,MATCH(L$1&\"|\"&$B39,'Data Annex'!$K$1:$K$4997,0),MATCH(L$2,'Data Annex'!$K$1:$AN$1,0)),\"\")","v":9.4155123805999992},{"$f":"IFERROR(INDEX('Data Annex'!$K$1:$AN$4997,MATCH(M$1&\"|\"&$B39,'Data Annex'!$K$1:$K$4997,0),MATCH(M$2,'Data Annex'!$K$1:$AN$1,0)),\"\")","v":3.2405515373},{"$f":"IFERROR(INDEX('Data Annex'!$K$1:$AN$4997,MATCH(N$1&\"|\"&$B39,'Data Annex'!$K$1:$K$4997,0),MATCH(N$2,'Data Annex'!$K$1:$AN$1,0)),\"\")","v":3.2588115534000002},{"$f":"IFERROR(INDEX('Data Annex'!$K$1:$AN$4997,MATCH(O$1&\"|\"&$B39,'Data Annex'!$K$1:$K$4997,0),MATCH(O$2,'Data Annex'!$K$1:$AN$1,0)),\"\")","v":3.3207070542000001},{"$f":"IFERROR(INDEX('Data Annex'!$K$1:$AN$4997,MATCH(P$1&\"|\"&$B39,'Data Annex'!$K$1:$K$4997,0),MATCH(P$2,'Data Annex'!$K$1:$AN$1,0)),\"\")","v":3.8372613060999998},{"$f":"IFERROR(INDEX('Data Annex'!$K$1:$AN$4997,MATCH(Q$1&\"|\"&$B39,'Data Annex'!$K$1:$K$4997,0),MATCH(Q$2,'Data Annex'!$K$1:$AN$1,0)),\"\")","v":6.5709021731000004},{"$f":"IFERROR(INDEX('Data Annex'!$K$1:$AN$4997,MATCH(R$1&\"|\"&$B39,'Data Annex'!$K$1:$K$4997,0),MATCH(R$2,'Data Annex'!$K$1:$AN$1,0)),\"\")","v":6.2877631369999998},{"$f":"IFERROR(INDEX('Data Annex'!$K$1:$AN$4997,MATCH(S$1&\"|\"&$B39,'Data Annex'!$K$1:$K$4997,0),MATCH(S$2,'Data Annex'!$K$1:$AN$1,0)),\"\")","v":6.1823823645999996},{"$f":"IFERROR(INDEX('Data Annex'!$K$1:$AN$4997,MATCH(T$1&\"|\"&$B39,'Data Annex'!$K$1:$K$4997,0),MATCH(T$2,'Data Annex'!$K$1:$AN$1,0)),\"\")","v":6.8492240485},{"$f":"IFERROR(INDEX('Data Annex'!$K$1:$AN$4997,MATCH(U$1&\"|\"&$B39,'Data Annex'!$K$1:$K$4997,0),MATCH(U$2,'Data Annex'!$K$1:$AN$1,0)),\"\")","v":3.4995590421},{"$f":"IFERROR(INDEX('Data Annex'!$K$1:$AN$4997,MATCH(V$1&\"|\"&$B39,'Data Annex'!$K$1:$K$4997,0),MATCH(V$2,'Data Annex'!$K$1:$AN$1,0)),\"\")","v":3.4874208209000002},{"$f":"IFERROR(INDEX('Data Annex'!$K$1:$AN$4997,MATCH(W$1&\"|\"&$B39,'Data Annex'!$K$1:$K$4997,0),MATCH(W$2,'Data Annex'!$K$1:$AN$1,0)),\"\")","v":3.4395259324},{"$f":"IFERROR(INDEX('Data Annex'!$K$1:$AN$4997,MATCH(X$1&\"|\"&$B39,'Data Annex'!$K$1:$K$4997,0),MATCH(X$2,'Data Annex'!$K$1:$AN$1,0)),\"\")","v":3.8799022479},{"$f":"IFERROR(INDEX('Data Annex'!$K$1:$AN$4997,MATCH(Y$1&\"|\"&$B39,'Data Annex'!$K$1:$K$4997,0),MATCH(Y$2,'Data Annex'!$K$1:$AN$1,0)),\"\")","v":2.7482660713999998},{"$f":"IFERROR(INDEX('Data Annex'!$K$1:$AN$4997,MATCH(Z$1&\"|\"&$B39,'Data Annex'!$K$1:$K$4997,0),MATCH(Z$2,'Data Annex'!$K$1:$AN$1,0)),\"\")","v":2.7632395057000001},{"$f":"IFERROR(INDEX('Data Annex'!$K$1:$AN$4997,MATCH(AA$1&\"|\"&$B39,'Data Annex'!$K$1:$K$4997,0),MATCH(AA$2,'Data Annex'!$K$1:$AN$1,0)),\"\")","v":2.6978894790000001},{"$f":"IFERROR(INDEX('Data Annex'!$K$1:$AN$4997,MATCH(AB$1&\"|\"&$B39,'Data Annex'!$K$1:$K$4997,0),MATCH(AB$2,'Data Annex'!$K$1:$AN$1,0)),\"\")","v":2.8015531082999998}]
[30,"SK",null,"SK",{"$f":"IFERROR(INDEX('Data Annex'!$K$1:$AN$4997,MATCH(E$1&\"|\"&$B40,'Data Annex'!$K$1:$K$4997,0),MATCH(E$2,'Data Annex'!$K$1:$AN$1,0)),\"\")","v":42.668081581000003},{"$f":"IFERROR(INDEX('Data Annex'!$K$1:$AN$4997,MATCH(F$1&\"|\"&$B40,'Data Annex'!$K$1:$K$4997,0),MATCH(F$2,'Data Annex'!$K$1:$AN$1,0)),\"\")","v":43.600707731},{"$f":"IFERROR(INDEX('Data Annex'!$K$1:$AN$4997,MATCH(G$1&\"|\"&$B40,'Data Annex'!$K$1:$K$4997,0),MATCH(G$2,'Data Annex'!$K$1:$AN$1,0)),\"\")","v":45.208896312999997},{"$f":"IFERROR(INDEX('Data Annex'!$K$1:$AN$4997,MATCH(H$1&\"|\"&$B40,'Data Annex'!$K$1:$K$4997,0),MATCH(H$2,'Data Annex'!$K$1:$AN$1,0)),\"\")","v":46.904878294},{"$f":"IFERROR(INDEX('Data Annex'!$K$1:$AN$4997,MATCH(I$1&\"|\"&$B40,'Data Annex'!$K$1:$K$4997,0),MATCH(I$2,'Data Annex'!$K$1:$AN$1,0)),\"\")","v":26.222912646000001},{"$f":"IFERROR(INDEX('Data Annex'!$K$1:$AN$4997,MATCH(J$1&\"|\"&$B40,'Data Annex'!$K$1:$K$4997,0),MATCH(J$2,'Data Annex'!$K$1:$AN$1,0)),\"\")","v":26.699788324},{"$f":"IFERROR(INDEX('Data Annex'!$K$1:$AN$4997,MATCH(K$1&\"|\"&$B40,'Data Annex'!$K$1:$K$4997,0),MATCH(K$2,'Data Annex'!$K$1:$AN$1,0)),\"\")","v":27.135268119999999},{"$f":"IFERROR(INDEX('Data Annex'!$K$1:$AN$4997,MATCH(L$1&\"|\"&$B40,'Data Annex'!$K$1:$K$4997,0),MATCH(L$2,'Data Annex'!$K$1:$AN$1,0)),\"\")","v":27.375771125},{"$f":"IFERROR(INDEX('Data Annex'!$K$1:$AN$4997,MATCH(M$1&\"|\"&$B40,'Data Annex'!$K$1:$K$4997,0),MATCH(M$2,'Data Annex'!$K$1:$AN$1,0)),\"\")","v":20.564622267000001},{"$f":"IFERROR(INDEX('Data Annex'!$K$1:$AN$4997,MATCH(N$1&\"|\"&$B40,'Data Annex'!$K$1:$K$4997,0),MATCH(N$2,'Data Annex'!$K$1:$AN$1,0)),\"\")","v":21.021949059000001},{"$f":"IFERROR(INDEX('Data Annex'!$K$1:$AN$4997,MATCH(O$1&\"|\"&$B40,'Data Annex'!$K$1:$K$4997,0),MATCH(O$2,'Data Annex'!$K$1:$AN$1,0)),\"\")","v":21.466131038},{"$f":"IFERROR(INDEX('Data Annex'!$K$1:$AN$4997,MATCH(P$1&\"|\"&$B40,'Data Annex'!$K$1:$K$4997,0),MATCH(P$2,'Data Annex'!$K$1:$AN$1,0)),\"\")","v":21.457534958},{"$f":"IFERROR(INDEX('Data Annex'!$K$1:$AN$4997,MATCH(Q$1&\"|\"&$B40,'Data Annex'!$K$1:$K$4997,0),MATCH(Q$2,'Data Annex'!$K$1:$AN$1,0)),\"\")","v":13.719177599},{"$f":"IFERROR(INDEX('Data Annex'!$K$1:$AN$4997,MATCH(R$1&\"|\"&$B40,'Data Annex'!$K$1:$K$4997,0),MATCH(R$2,'Data Annex'!$K$1:$AN$1,0)),\"\")","v":13.521141042},{"$f":"IFERROR(INDEX('Data Annex'!$K$1:$AN$4997,MATCH(S$1&\"|\"&$B40,'Data Annex'!$K$1:$K$4997,0),MATCH(S$2,'Data Annex'!$K$1:$AN$1,0)),\"\")","v":13.723185743},{"$f":"IFERROR(INDEX('Data Annex'!$K$1:$AN$4997,MATCH(T$1&\"|\"&$B40,'Data Annex'!$K$1:$K$4997,0),MATCH(T$2,'Data Annex'!$K$1:$AN$1,0)),\"\")","v":13.806708520999999},{"$f":"IFERROR(INDEX('Data Annex'!$K$1:$AN$4997,MATCH(U$1&\"|\"&$B40,'Data Annex'!$K$1:$K$4997,0),MATCH(U$2,'Data Annex'!$K$1:$AN$1,0)),\"\")","v":5.2948968479999996},{"$f":"IFERROR(INDEX('Data Annex'!$K$1:$AN$4997,MATCH(V$1&\"|\"&$B40,'Data Annex'!$K$1:$K$4997,0),MATCH(V$2,'Data Annex'!$K$1:$AN$1,0)),\"\")","v":5.3951882394000004},{"$f":"IFERROR(INDEX('Data Annex'!$K$1:$AN$4997,MATCH(W$1&\"|\"&$B40,'Data Annex'!$K$1:$K$4997,0),MATCH(W$2,'Data Annex'!$K$1:$AN$1,0)),\"\")","v":5.6080040046999997},{"$f":"IFERROR(INDEX('Data Annex'!$K$1:$AN$4997,MATCH(X$1&\"|\"&$B40,'Data Annex'!$K$1:$K$4997,0),MATCH(X$2,'Data Annex'!$K$1:$AN$1,0)),\"\")","v":5.6524920314999996},{"$f":"IFERROR(INDEX('Data Annex'!$K$1:$AN$4997,MATCH(Y$1&\"|\"&$B40,'Data Annex'!$K$1:$K$4997,0),MATCH(Y$2,'Data Annex'!$K$1:$AN$1,0)),\"\")","v":4.8289760673000002},{"$f":"IFERROR(INDEX('Data Annex'!$K$1:$AN$4997,MATCH(Z$1&\"|\"&$B40,'Data Annex'!$K$1:$K$4997,0),MATCH(Z$2,'Data Annex'!$K$1:$AN$1,0)),\"\")","v":5.0149555396999999},{"$f":"IFERROR(INDEX('Data Annex'!$K$1:$AN$4997,MATCH(AA$1&\"|\"&$B40,'Data Annex'!$K$1:$K$4997,0),MATCH(AA$2,'Data Annex'!$K$1:$AN$1,0)),\"\")","v":5.0874058986000001},{"$f":"IFERROR(INDEX('Data Annex'!$K$1:$AN$4997,MATCH(AB$1&\"|\"&$B40,'Data Annex'!$K$1:$K$4997,0),MATCH(AB$2,'Data Annex'!$K$1:$AN$1,0)),\"\")","v":4.9552273648999998}]
[99,"EU",null,"EU/EEA",{"$f":"IFERROR(INDEX('Data Annex'!$K$1:$AN$4997,MATCH(E$1&\"|\"&$B41,'Data Annex'!$K$1:$K$4997,0),MATCH(E$2,'Data Annex'!$K$1:$AN$1,0)),\"\")","v":17692.783445000001},{"$f":"IFERROR(INDEX('Data Annex'!$K$1:$AN$4997,MATCH(F$1&\"|\"&$B41,'Data Annex'!$K$1:$K$4997,0),MATCH(F$2,'Data Annex'!$K$1:$AN$1,0)),\"\")","v":18425.691002},{"$f":"IFERROR(INDEX('Data Annex'!$K$1:$AN$4997,MATCH(G$1&\"|\"&$B41,'Data Annex'!$K$1:$K$4997,0),MATCH(G$2,'Data Annex'!$K$1:$AN$1,0)),\"\")","v":18515.635682},{"$f":"IFERROR(INDEX('Data Annex'!$K$1:$AN$4997,MATCH(H$1&\"|\"&$B41,'Data Annex'!$K$1:$K$4997,0),MATCH(H$2,'Data Annex'!$K$1:$AN$1,0)),\"\")","v":18172.990232},{"$f":"IFERROR(INDEX('Data Annex'!$K$1:$AN$4997,MATCH(I$1&\"|\"&$B41,'Data Annex'!$K$1:$K$4997,0),MATCH(I$2,'Data Annex'!$K$1:$AN$1,0)),\"\")","v":6108.7352493999997},{"$f":"IFERROR(INDEX('Data Annex'!$K$1:$AN$4997,MATCH(J$1&\"|\"&$B41,'Data Annex'!$K$1:$K$4997,0),MATCH(J$2,'Data Annex'!$K$1:$AN$1,0)),\"\")","v":6169.7539463000003},{"$f":"IFERROR(INDEX('Data Annex'!$K$1:$AN$4997,MATCH(K$1&\"|\"&$B41,'Data Annex'!$K$1:$K$4997,0),MATCH(K$2,'Data Annex'!$K$1:$AN$1,0)),\"\")","v":6180.644902},{"$f":"IFERROR(INDEX('Data Annex'!$K$1:$AN$4997,MATCH(L$1&\"|\"&$B41,'Data Annex'!$K$1:$K$4997,0),MATCH(L$2,'Data Annex'!$K$1:$AN$1,0)),\"\")","v":6074.6467052999997},{"$f":"IFERROR(INDEX('Data Annex'!$K$1:$AN$4997,MATCH(M$1&\"|\"&$B41,'Data Annex'!$K$1:$K$4997,0),MATCH(M$2,'Data Annex'!$K$1:$AN$1,0)),\"\")","v":3890.3153848000002},{"$f":"IFERROR(INDEX('Data Annex'!$K$1:$AN$4997,MATCH(N$1&\"|\"&$B41,'Data Annex'!$K$1:$K$4997,0),MATCH(N$2,'Data Annex'!$K$1:$AN$1,0)),\"\")","v":3936.0685518999999},{"$f":"IFERROR(INDEX('Data Annex'!$K$1:$AN$4997,MATCH(O$1&\"|\"&$B41,'Data Annex'!$K$1:$K$4997,0),MATCH(O$2,'Data Annex'!$K$1:$AN$1,0)),\"\")","v":3934.2716985000002},{"$f":"IFERROR(INDEX('Data Annex'!$K$1:$AN$4997,MATCH(P$1&\"|\"&$B41,'Data Annex'!$K$1:$K$4997,0),MATCH(P$2,'Data Annex'!$K$1:$AN$1,0)),\"\")","v":3858.7829916000001},{"$f":"IFERROR(INDEX('Data Annex'!$K$1:$AN$4997,MATCH(Q$1&\"|\"&$B41,'Data Annex'!$K$1:$K$4997,0),MATCH(Q$2,'Data Annex'!$K$1:$AN$1,0)),\"\")","v":5732.7955265999999},{"$f":"IFERROR(INDEX('Data Annex'!$K$1:$AN$4997,MATCH(R$1&\"|\"&$B41,'Data Annex'!$K$1:$K$4997,0),MATCH(R$2,'Data Annex'!$K$1:$AN$1,0)),\"\")","v":5794.1422335999996},{"$f":"IFERROR(INDEX('Data Annex'!$K$1:$AN$4997,MATCH(S$1&\"|\"&$B41,'Data Annex'!$K$1:$K$4997,0),MATCH(S$2,'Data Annex'!$K$1:$AN$1,0)),\"\")","v":5678.8963819999999},{"$f":"IFERROR(INDEX('Data Annex'!$K$1:$AN$4997,MATCH(T$1&\"|\"&$B41,'Data Annex'!$K$1:$K$4997,0),MATCH(T$2,'Data Annex'!$K$1:$AN$1,0)),\"\")","v":5479.4122041999999},{"$f":"IFERROR(INDEX('Data Annex'!$K$1:$AN$4997,MATCH(U$1&\"|\"&$B41,'Data Annex'!$K$1:$K$4997,0),MATCH(U$2,'Data Annex'!$K$1:$AN$1,0)),\"\")","v":2123.7266510999998},{"$f":"IFERROR(INDEX('Data Annex'!$K$1:$AN$4997,MATCH(V$1&\"|\"&$B41,'Data Annex'!$K$1:$K$4997,0),MATCH(V$2,'Data Annex'!$K$1:$AN$1,0)),\"\")","v":2254.5136831999998},{"$f":"IFERROR(INDEX('Data Annex'!$K$1:$AN$4997,MATCH(W$1&\"|\"&$B41,'Data Annex'!$K$1:$K$4997,0),MATCH(W$2,'Data Annex'!$K$1:$AN$1,0)),\"\")","v":2282.5013176000002},{"$f":"IFERROR(INDEX('Data Annex'!$K$1:$AN$4997,MATCH(X$1&\"|\"&$B41,'Data Annex'!$K$1:$K$4997,0),MATCH(X$2,'Data Annex'!$K$1:$AN$1,0)),\"\")","v":2255.0487380999998},{"$f":"IFERROR(INDEX('Data Annex'!$K$1:$AN$4997,MATCH(Y$1&\"|\"&$B41,'Data Annex'!$K$1:$K$4997,0),MATCH(Y$2,'Data Annex'!$K$1:$AN$1,0)),\"\")","v":1260.7618147000001},{"$f":"IFERROR(INDEX('Data Annex'!$K$1:$AN$4997,MATCH(Z$1&\"|\"&$B41,'Data Annex'!$K$1:$K$4997,0),MATCH(Z$2,'Data Annex'!$K$1:$AN$1,0)),\"\")","v":1271.5042974999999},{"$f":"IFERROR(INDEX('Data Annex'!$K$1:$AN$4997,MATCH(AA$1&\"|\"&$B41,'Data Annex'!$K$1:$K$4997,0),MATCH(AA$2,'Data Annex'!$K$1:$AN$1,0)),\"\")","v":1237.8010916999999},{"$f":"IFERROR(INDEX('Data Annex'!$K$1:$AN$4997,MATCH(AB$1&\"|\"&$B41,'Data Annex'!$K$1:$K$4997,0),MATCH(AB$2,'Data Annex'!$K$1:$AN$1,0)),\"\")","v":1212.2379906000001}]
[12,"GB",null,"GB",{"$f":"IFERROR(INDEX('Data Annex'!$K$1:$AN$4997,MATCH(E$1&\"|\"&$B42,'Data Annex'!$K$1:$K$4997,0),MATCH(E$2,'Data Annex'!$K$1:$AN$1,0)),\"\")","v":4727.1381520000004},{"$f":"IFERROR(INDEX('Data Annex'!$K$1:$AN$4997,MATCH(F$1&\"|\"&$B42,'Data Annex'!$K$1:$K$4997,0),MATCH(F$2,'Data Annex'!$K$1:$AN$1,0)),\"\")","v":4605.6732628},{"$f":"IFERROR(INDEX('Data Annex'!$K$1:$AN$4997,MATCH(G$1&\"|\"&$B42,'Data Annex'!$K$1:$K$4997,0),MATCH(G$2,'Data Annex'!$K$1:$AN$1,0)),\"\")","v":4648.4667734000004},{"$f":"IFERROR(INDEX('Data Annex'!$K$1:$AN$4997,MATCH(H$1&\"|\"&$B42,'Data Annex'!$K$1:$K$4997,0),MATCH(H$2,'Data Annex'!$K$1:$AN$1,0)),\"\")","v":4521.2933112999999},{"$f":"IFERROR(INDEX('Data Annex'!$K$1:$AN$4997,MATCH(I$1&\"|\"&$B42,'Data Annex'!$K$1:$K$4997,0),MATCH(I$2,'Data Annex'!$K$1:$AN$1,0)),\"\")","v":1729.2248442},{"$f":"IFERROR(INDEX('Data Annex'!$K$1:$AN$4997,MATCH(J$1&\"|\"&$B42,'Data Annex'!$K$1:$K$4997,0),MATCH(J$2,'Data Annex'!$K$1:$AN$1,0)),\"\")","v":1683.4081076},{"$f":"IFERROR(INDEX('Data Annex'!$K$1:$AN$4997,MATCH(K$1&\"|\"&$B42,'Data Annex'!$K$1:$K$4997,0),MATCH(K$2,'Data Annex'!$K$1:$AN$1,0)),\"\")","v":1696.3498036999999},{"$f":"IFERROR(INDEX('Data Annex'!$K$1:$AN$4997,MATCH(L$1&\"|\"&$B42,'Data Annex'!$K$1:$K$4997,0),MATCH(L$2,'Data Annex'!$K$1:$AN$1,0)),\"\")","v":1716.1390320999999},{"$f":"IFERROR(INDEX('Data Annex'!$K$1:$AN$4997,MATCH(M$1&\"|\"&$B42,'Data Annex'!$K$1:$K$4997,0),MATCH(M$2,'Data Annex'!$K$1:$AN$1,0)),\"\")","v":1439.8779159000001},{"$f":"IFERROR(INDEX('Data Annex'!$K$1:$AN$4997,MATCH(N$1&\"|\"&$B42,'Data Annex'!$K$1:$K$4997,0),MATCH(N$2,'Data Annex'!$K$1:$AN$1,0)),\"\")","v":1414.5484117999999},{"$f":"IFERROR(INDEX('Data Annex'!$K$1:$AN$4997,MATCH(O$1&\"|\"&$B42,'Data Annex'!$K$1:$K$4997,0),MATCH(O$2,'Data Annex'!$K$1:$AN$1,0)),\"\")","v":1423.0368309999999},{"$f":"IFERROR(INDEX('Data Annex'!$K$1:$AN$4997,MATCH(P$1&\"|\"&$B42,'Data Annex'!$K$1:$K$4997,0),MATCH(P$2,'Data Annex'!$K$1:$AN$1,0)),\"\")","v":1459.784431},{"$f":"IFERROR(INDEX('Data Annex'!$K$1:$AN$4997,MATCH(Q$1&\"|\"&$B42,'Data Annex'!$K$1:$K$4997,0),MATCH(Q$2,'Data Annex'!$K$1:$AN$1,0)),\"\")","v":971.45555883999998},{"$f":"IFERROR(INDEX('Data Annex'!$K$1:$AN$4997,MATCH(R$1&\"|\"&$B42,'Data Annex'!$K$1:$K$4997,0),MATCH(R$2,'Data Annex'!$K$1:$AN$1,0)),\"\")","v":948.65427393000004},{"$f":"IFERROR(INDEX('Data Annex'!$K$1:$AN$4997,MATCH(S$1&\"|\"&$B42,'Data Annex'!$K$1:$K$4997,0),MATCH(S$2,'Data Annex'!$K$1:$AN$1,0)),\"\")","v":896.42349015000002},{"$f":"IFERROR(INDEX('Data Annex'!$K$1:$AN$4997,MATCH(T$1&\"|\"&$B42,'Data Annex'!$K$1:$K$4997,0),MATCH(T$2,'Data Annex'!$K$1:$AN$1,0)),\"\")","v":855.13470485000005},{"$f":"IFERROR(INDEX('Data Annex'!$K$1:$AN$4997,MATCH(U$1&\"|\"&$B42,'Data Annex'!$K$1:$K$4997,0),MATCH(U$2,'Data Annex'!$K$1:$AN$1,0)),\"\")","v":96.649634836999994},{"$f":"IFERROR(INDEX('Data Annex'!$K$1:$AN$4997,MATCH(V$1&\"|\"&$B42,'Data Annex'!$K$1:$K$4997,0),MATCH(V$2,'Data Annex'!$K$1:$AN$1,0)),\"\")","v":107.84011288000001},{"$f":"IFERROR(INDEX('Data Annex'!$K$1:$AN$4997,MATCH(W$1&\"|\"&$B42,'Data Annex'!$K$1:$K$4997,0),MATCH(W$2,'Data Annex'!$K$1:$AN$1,0)),\"\")","v":116.95709945},{"$f":"IFERROR(INDEX('Data Annex'!$K$1:$AN$4997,MATCH(X$1&\"|\"&$B42,'Data Annex'!$K$1:$K$4997,0),MATCH(X$2,'Data Annex'!$K$1:$AN$1,0)),\"\")","v":118.38775928},{"$f":"IFERROR(INDEX('Data Annex'!$K$1:$AN$4997,MATCH(Y$1&\"|\"&$B42,'Data Annex'!$K$1:$K$4997,0),MATCH(Y$2,'Data Annex'!$K$1:$AN$1,0)),\"\")","v":194.59547837},{"$f":"IFERROR(INDEX('Data Annex'!$K$1:$AN$4997,MATCH(Z$1&\"|\"&$B42,'Data Annex'!$K$1:$K$4997,0),MATCH(Z$2,'Data Annex'!$K$1:$AN$1,0)),\"\")","v":206.45190328999999},{"$f":"IFERROR(INDEX('Data Annex'!$K$1:$AN$4997,MATCH(AA$1&\"|\"&$B42,'Data Annex'!$K$1:$K$4997,0),MATCH(AA$2,'Data Annex'!$K$1:$AN$1,0)),\"\")","v":206.13986754999999},{"$f":"IFERROR(INDEX('Data Annex'!$K$1:$AN$4997,MATCH(AB$1&\"|\"&$B42,'Data Annex'!$K$1:$K$4997,0),MATCH(AB$2,'Data Annex'!$K$1:$AN$1,0)),\"\")","v":198.65647433000001}]
[]
[null,null,null,null,"T21_1","T21_1","T21_1","T21_1","T21_2","T21_2","T21_2","T21_2","T21_3","T21_3","T21_3","T21_3","T21_4","T21_4","T21_4","T21_4","T21_5","T21_5","T21_5","T21_5","T21_6","T21_6","T21_6","T21_6"]
[null,null,null,null,{"$f":"TEXT(E$50,\"YYYYMM\")+0","v":202003},{"$f":"TEXT(F$50,\"YYYYMM\")+0","v":202006},202009,202012,202003,202006,202009,202012,202003,202006,202009,202012,202003,202006,202009,202012,202003,202006,202009,202012,202003,202006,202009,202012]
[null,null,null,null,null,null,null,null,"of which: non-performing loans and advances at amortised cost by segment (volumes) (2)"]
[]
[null,null,null,"Volumes bn EUR"]
[null,null,null,null,"Non-performing loans and advances (1)",null,null,null,"HHs",null,null,null,"…of which mortgages",null,null,null,"NFCs",null,null,null,"…of which SMEs",null,null,null,"…of which CRE"]
[null,null,null,null,{"$f":"EOMONTH($A$3,-9)","v":"2020-03-31"},{"$f":"EOMONTH($A$3,-6)","v":"2020-06-30"},{"$f":"EOMONTH($A$3,-3)","v":"2020-09-30"},{"$f":"EOMONTH($A$3,0)","v":"2020-12-31"},{"$f":"EOMONTH($A$3,-9)","v":"2020-03-31"},{"$f":"EOMONTH($A$3,-6)","v":"2020-06-30"},{"$f":"EOMONTH($A$3,-3)","v":"2020-09-30"},{"$f":"EOMONTH($A$3,0)","v":"2020-12-31"},{"$f":"EOMONTH($A$3,-9)","v":"2020-03-31"},{"$f":"EOMONTH($A$3,-6)","v":"2020-06-30"},{"$f":"EOMONTH($A$3,-3)","v":"2020-09-30"},{"$f":"EOMONTH($A$3,0)","v":"2020-12-31"},{"$f":"EOMONTH($A$3,-9)","v":"2020-03-31"},{"$f":"EOMONTH($A$3,-6)","v":"2020-06-30"},{"$f":"EOMONTH($A$3,-3)","v":"2020-09-30"},{"$f":"EOMONTH($A$3,0)","v":"2020-12-31"},{"$f":"EOMONTH($A$3,-9)","v":"2020-03-31"},{"$f":"EOMONTH($A$3,-6)","v":"2020-06-30"},{"$f":"EOMONTH($A$3,-3)","v":"2020-09-30"},{"$f":"EOMONTH($A$3,0)","v":"2020-12-31"},{"$f":"EOMONTH($A$3,-9)","v":"2020-03-31"},{"$f":"EOMONTH($A$3,-6)","v":"2020-06-30"},{"$f":"EOMONTH($A$3,-3)","v":"2020-09-30"},{"$f":"EOMONTH($A$3,0)","v":"2020-12-31"}]
[1,"AT",null,"AT",{"$f":"IFERROR(INDEX('Data Annex'!$K$1:$AN$4997,MATCH(E$44&\"|\"&$B51,'Data Annex'!$K$1:$K$4997,0),MATCH(E$45,'Data Annex'!$K$1:$AN$1,0)),\"\")","v":11.009172242},{"$f":"IFERROR(INDEX('Data Annex'!$K$1:$AN$4997,MATCH(F$44&\"|\"&$B51,'Data Annex'!$K$1:$K$4997,0),MATCH(F$45,'Data Annex'!$K$1:$AN$1,0)),\"\")","v":11.284351278000001},{"$f":"IFERROR(INDEX('Data Annex'!$K$1:$AN$4997,MATCH(G$44&\"|\"&$B51,'Data Annex'!$K$1:$K$4997,0),MATCH(G$45,'Data Annex'!$K$1:$AN$1,0)),\"\")","v":11.067923779999999},{"$f":"IFERROR(INDEX('Data Annex'!$K$1:$AN$4997,MATCH(H$44&\"|\"&$B51,'Data Annex'!$K$1:$K$4997,0),MATCH(H$45,'Data Annex'!$K$1:$AN$1,0)),\"\")","v":11.910161583000001},{"$f":"IFERROR(INDEX('Data Annex'!$K$1:$AN$4997,MATCH(I$44&\"|\"&$B51,'Data Annex'!$K$1:$K$4997,0),MATCH(I$45,'Data Annex'!$K$1:$AN$1,0)),\"\")","v":4.5664989696999996},{"$f":"IFERROR(INDEX('Data Annex'!$K$1:$AN$4997,MATCH(J$44&\"|\"&$B51,'Data Annex'!$K$1:$K$4997,0),MATCH(J$45,'Data Annex'!$K$1:$AN$1,0)),\"\")","v":4.6822996258999998},{"$f":"IFERROR(INDEX('Data Annex'!$K$1:$AN$4997,MATCH(K$44&\"|\"&$B51,'Data Annex'!$K$1:$K$4997,0),MATCH(K$45,'Data Annex'!$K$1:$AN$1,0)),\"\")","v":4.5724127254000004},{"$f":"IFERROR(INDEX('Data Annex'!$K$1:$AN$4997,MATCH(L$44&\"|\"&$B51,'Data Annex'!$K$1:$K$4997,0),MATCH(L$45,'Data Annex'!$K$1:$AN$1,0)),\"\")","v":4.6610510754999996},{"$f":"IFERROR(INDEX('Data Annex'!$K$1:$AN$4997,MATCH(M$44&\"|\"&$B51,'Data Annex'!$K$1:$K$4997,0),MATCH(M$45,'Data Annex'!$K$1:$AN$1,0)),\"\")","v":2.0365724932},{"$f":"IFERROR(INDEX('Data Annex'!$K$1:$AN$4997,MATCH(N$44&\"|\"&$B51,'Data Annex'!$K$1:$K$4997,0),MATCH(N$45,'Data Annex'!$K$1:$AN$1,0)),\"\")","v":2.0342421970000002},{"$f":"IFERROR(INDEX('Data Annex'!$K$1:$AN$4997,MATCH(O$44&\"|\"&$B51,'Data Annex'!$K$1:$K$4997,0),MATCH(O$45,'Data Annex'!$K$1:$AN$1,0)),\"\")","v":1.9475129314999999},{"$f":"IFERROR(INDEX('Data Annex'!$K$1:$AN$4997,MATCH(P$44&\"|\"&$B51,'Data Annex'!$K$1:$K$4997,0),MATCH(P$45,'Data Annex'!$K$1:$AN$1,0)),\"\")","v":1.9108321213999999},{"$f":"IFERROR(INDEX('Data Annex'!$K$1:$AN$4997,MATCH(Q$44&\"|\"&$B51,'Data Annex'!$K$1:$K$4997,0),MATCH(Q$45,'Data Annex'!$K$1:$AN$1,0)),\"\")","v":6.0301474382000002},{"$f":"IFERROR(INDEX('Data Annex'!$K$1:$AN$4997,MATCH(R$44&\"|\"&$B51,'Data Annex'!$K$1:$K$4997,0),MATCH(R$45,'Data Annex'!$K$1:$AN$1,0)),\"\")","v":6.1402121031999997},{"$f":"IFERROR(INDEX('Data Annex'!$K$1:$AN$4997,MATCH(S$44&\"|\"&$B51,'Data Annex'!$K$1:$K$4997,0),MATCH(S$45,'Data Annex'!$K$1:$AN$1,0)),\"\")","v":5.9914904833999998},{"$f":"IFERROR(INDEX('Data Annex'!$K$1:$AN$4997,MATCH(T$44&\"|\"&$B51,'Data Annex'!$K$1:$K$4997,0),MATCH(T$45,'Data Annex'!$K$1:$AN$1,0)),\"\")","v":6.6785352141000001},{"$f":"IFERROR(INDEX('Data Annex'!$K$1:$AN$4997,MATCH(U$44&\"|\"&$B51,'Data Annex'!$K$1:$K$4997,0),MATCH(U$45,'Data Annex'!$K$1:$AN$1,0)),\"\")","v":2.9701712596999998},{"$f":"IFERROR(INDEX('Data Annex'!$K$1:$AN$4997,MATCH(V$44&\"|\"&$B51,'Data Annex'!$K$1:$K$4997,0),MATCH(V$45,'Data Annex'!$K$1:$AN$1,0)),\"\")","v":3.0079056431},{"$f":"IFERROR(INDEX('Data Annex'!$K$1:$AN$4997,MATCH(W$44&\"|\"&$B51,'Data Annex'!$K$1:$K$4997,0),MATCH(W$45,'Data Annex'!$K$1:$AN$1,0)),\"\")","v":3.0124689172000001},{"$f":"IFERROR(INDEX('Data Annex'!$K$1:$AN$4997,MATCH(X$44&\"|\"&$B51,'Data Annex'!$K$1:$K$4997,0),MATCH(X$45,'Data Annex'!$K$1:$AN$1,0)),\"\")","v":3.2982486724000002},{"$f":"IFERROR(INDEX('Data Annex'!$K$1:$AN$4997,MATCH(Y$44&\"|\"&$B51,'Data Annex'!$K$1:$K$4997,0),MATCH(Y$45,'Data Annex'!$K$1:$AN$1,0)),\"\")","v":1.9913404056999999},{"$f":"IFERROR(INDEX('Data Annex'!$K$1:$AN$4997,MATCH(Z$44&\"|\"&$B51,'Data Annex'!$K$1:$K$4997,0),MATCH(Z$45,'Data Annex'!$K$1:$AN$1,0)),\"\")","v":2.0741750694999999},{"$f":"IFERROR(INDEX('Data Annex'!$K$1:$AN$4997,MATCH(AA$44&\"|\"&$B51,'Data Annex'!$K$1:$K$4997,0),MATCH(AA$45,'Data Annex'!$K$1:$AN$1,0)),\"\")","v":1.9593638019999999},{"$f":"IFERROR(INDEX('Data Annex'!$K$1:$AN$4997,MATCH(AB$44&\"|\"&$B51,'Data Annex'!$K$1:$K$4997,0),MATCH(AB$45,'Data Annex'!$K$1:$AN$1,0)),\"\")","v":2.1439112603999999}]
[2,"BE",null,"BE",{"$f":"IFERROR(INDEX('Data Annex'!$K$1:$AN$4997,MATCH(E$44&\"|\"&$B52,'Data Annex'!$K$1:$K$4997,0),MATCH(E$45,'Data Annex'!$K$1:$AN$1,0)),\"\")","v":16.861647323},{"$f":"IFERROR(INDEX('Data Annex'!$K$1:$AN$4997,MATCH(F$44&\"|\"&$B52,'Data Annex'!$K$1:$K$4997,0),MATCH(F$45,'Data Annex'!$K$1:$AN$1,0)),\"\")","v":17.410985233000002},{"$f":"IFERROR(INDEX('Data Annex'!$K$1:$AN$4997,MATCH(G$44&\"|\"&$B52,'Data Annex'!$K$1:$K$4997,0),MATCH(G$45,'Data Annex'!$K$1:$AN$1,0)),\"\")","v":16.937989624},{"$f":"IFERROR(INDEX('Data Annex'!$K$1:$AN$4997,MATCH(H$44&\"|\"&$B52,'Data Annex'!$K$1:$K$4997,0),MATCH(H$45,'Data Annex'!$K$1:$AN$1,0)),\"\")","v":17.818224941},{"$f":"IFERROR(INDEX('Data Annex'!$K$1:$AN$4997,MATCH(I$44&\"|\"&$B52,'Data Annex'!$K$1:$K$4997,0),MATCH(I$45,'Data Annex'!$K$1:$AN$1,0)),\"\")","v":5.9173063470000002},{"$f":"IFERROR(INDEX('Data Annex'!$K$1:$AN$4997,MATCH(J$44&\"|\"&$B52,'Data Annex'!$K$1:$K$4997,0),MATCH(J$45,'Data Annex'!$K$1:$AN$1,0)),\"\")","v":5.9641983959999996},{"$f":"IFERROR(INDEX('Data Annex'!$K$1:$AN$4997,MATCH(K$44&\"|\"&$B52,'Data Annex'!$K$1:$K$4997,0),MATCH(K$45,'Data Annex'!$K$1:$AN$1,0)),\"\")","v":5.8239352630000001},{"$f":"IFERROR(INDEX('Data Annex'!$K$1:$AN$4997,MATCH(L$44&\"|\"&$B52,'Data Annex'!$K$1:$K$4997,0),MATCH(L$45,'Data Annex'!$K$1:$AN$1,0)),\"\")","v":5.8984194717999996},{"$f":"IFERROR(INDEX('Data Annex'!$K$1:$AN$4997,MATCH(M$44&\"|\"&$B52,'Data Annex'!$K$1:$K$4997,0),MATCH(M$45,'Data Annex'!$K$1:$AN$1,0)),\"\")","v":4.5747626898},{"$f":"IFERROR(INDEX('Data Annex'!$K$1:$AN$4997,MATCH(N$44&\"|\"&$B52,'Data Annex'!$K$1:$K$4997,0),MATCH(N$45,'Data Annex'!$K$1:$AN$1,0)),\"\")","v":4.4822698523},{"$f":"IFERROR(INDEX('Data Annex'!$K$1:$AN$4997,MATCH(O$44&\"|\"&$B52,'Data Annex'!$K$1:$K$4997,0),MATCH(O$45,'Data Annex'!$K$1:$AN$1,0)),\"\")","v":4.3415795984000001},{"$f":"IFERROR(INDEX('Data Annex'!$K$1:$AN$4997,MATCH(P$44&\"|\"&$B52,'Data Annex'!$K$1:$K$4997,0),MATCH(P$45,'Data Annex'!$K$1:$AN$1,0)),\"\")","v":4.4081604183999996},{"$f":"IFERROR(INDEX('Data Annex'!$K$1:$AN$4997,MATCH(Q$44&\"|\"&$B52,'Data Annex'!$K$1:$K$4997,0),MATCH(Q$45,'Data Annex'!$K$1:$AN$1,0)),\"\")","v":9.3612940605000006},{"$f":"IFERROR(INDEX('Data Annex'!$K$1:$AN$4997,MATCH(R$44&\"|\"&$B52,'Data Annex'!$K$1:$K$4997,0),MATCH(R$45,'Data Annex'!$K$1:$AN$1,0)),\"\")","v":9.5081158644000006},{"$f":"IFERROR(INDEX('Data Annex'!$K$1:$AN$4997,MATCH(S$44&\"|\"&$B52,'Data Annex'!$K$1:$K$4997,0),MATCH(S$45,'Data Annex'!$K$1:$AN$1,0)),\"\")","v":9.2759145752999999},{"$f":"IFERROR(INDEX('Data Annex'!$K$1:$AN$4997,MATCH(T$44&\"|\"&$B52,'Data Annex'!$K$1:$K$4997,0),MATCH(T$45,'Data Annex'!$K$1:$AN$1,0)),\"\")","v":10.10271657},{"$f":"IFERROR(INDEX('Data Annex'!$K$1:$AN$4997,MATCH(U$44&\"|\"&$B52,'Data Annex'!$K$1:$K$4997,0),MATCH(U$45,'Data Annex'!$K$1:$AN$1,0)),\"\")","v":4.1789604560000004},{"$f":"IFERROR(INDEX('Data Annex'!$K$1:$AN$4997,MATCH(V$44&\"|\"&$B52,'Data Annex'!$K$1:$K$4997,0),MATCH(V$45,'Data Annex'!$K$1:$AN$1,0)),\"\")","v":4.4317100790000001},{"$f":"IFERROR(INDEX('Data Annex'!$K$1:$AN$4997,MATCH(W$44&\"|\"&$B52,'Data Annex'!$K$1:$K$4997,0),MATCH(W$45,'Data Annex'!$K$1:$AN$1,0)),\"\")","v":4.4619100830000002},{"$f":"IFERROR(INDEX('Data Annex'!$K$1:$AN$4997,MATCH(X$44&\"|\"&$B52,'Data Annex'!$K$1:$K$4997,0),MATCH(X$45,'Data Annex'!$K$1:$AN$1,0)),\"\")","v":4.9052511103000001},{"$f":"IFERROR(INDEX('Data Annex'!$K$1:$AN$4997,MATCH(Y$44&\"|\"&$B52,'Data Annex'!$K$1:$K$4997,0),MATCH(Y$45,'Data Annex'!$K$1:$AN$1,0)),\"\")","v":1.9188639891999999},{"$f":"IFERROR(INDEX('Data Annex'!$K$1:$AN$4997,MATCH(Z$44&\"|\"&$B52,'Data Annex'!$K$1:$K$4997,0),MATCH(Z$45,'Data Annex'!$K$1:$AN$1,0)),\"\")","v":2.2334026063999999},{"$f":"IFERROR(INDEX('Data Annex'!$K$1:$AN$4997,MATCH(AA$44&\"|\"&$B52,'Data Annex'!$K$1:$K$4997,0),MATCH(AA$45,'Data Annex'!$K$1:$AN$1,0)),\"\")","v":2.1122559001000001},{"$f":"IFERROR(INDEX('Data Annex'!$K$1:$AN$4997,MATCH(AB$44&\"|\"&$B52,'Data Annex'!$K$1:$K$4997,0),MATCH(AB$45,'Data Annex'!$K$1:$AN$1,0)),\"\")","v":2.7163807788000001}]
[3,"BG",null,"BG",{"$f":"IFERROR(INDEX('Data Annex'!$K$1:$AN$4997,MATCH(E$44&\"|\"&$B53,'Data Annex'!$K$1:$K$4997,0),MATCH(E$45,'Data Annex'!$K$1:$AN$1,0)),\"\")","v":2.0447341241000001},{"$f":"IFERROR(INDEX('Data Annex'!$K$1:$AN$4997,MATCH(F$44&\"|\"&$B53,'Data Annex'!$K$1:$K$4997,0),MATCH(F$45,'Data Annex'!$K$1:$AN$1,0)),\"\")","v":2.1319956028},{"$f":"IFERROR(INDEX('Data Annex'!$K$1:$AN$4997,MATCH(G$44&\"|\"&$B53,'Data Annex'!$K$1:$K$4997,0),MATCH(G$45,'Data Annex'!$K$1:$AN$1,0)),\"\")","v":2.0611642295000001},{"$f":"IFERROR(INDEX('Data Annex'!$K$1:$AN$4997,MATCH(H$44&\"|\"&$B53,'Data Annex'!$K$1:$K$4997,0),MATCH(H$45,'Data Annex'!$K$1:$AN$1,0)),\"\")","v":2.1039891603999998},{"$f":"IFERROR(INDEX('Data Annex'!$K$1:$AN$4997,MATCH(I$44&\"|\"&$B53,'Data Annex'!$K$1:$K$4997,0),MATCH(I$45,'Data Annex'!$K$1:$AN$1,0)),\"\")","v":0.64958380199999999},{"$f":"IFERROR(INDEX('Data Annex'!$K$1:$AN$4997,MATCH(J$44&\"|\"&$B53,'Data Annex'!$K$1:$K$4997,0),MATCH(J$45,'Data Annex'!$K$1:$AN$1,0)),\"\")","v":0.72267716540000004},{"$f":"IFERROR(INDEX('Data Annex'!$K$1:$AN$4997,MATCH(K$44&\"|\"&$B53,'Data Annex'!$K$1:$K$4997,0),MATCH(K$45,'Data Annex'!$K$1:$AN$1,0)),\"\")","v":0.72305808360000001},{"$f":"IFERROR(INDEX('Data Annex'!$K$1:$AN$4997,MATCH(L$44&\"|\"&$B53,'Data Annex'!$K$1:$K$4997,0),MATCH(L$45,'Data Annex'!$K$1:$AN$1,0)),\"\")","v":0.74211575829999998},{"$f":"IFERROR(INDEX('Data Annex'!$K$1:$AN$4997,MATCH(M$44&\"|\"&$B53,'Data Annex'!$K$1:$K$4997,0),MATCH(M$45,'Data Annex'!$K$1:$AN$1,0)),\"\")","v":0.2482385725},{"$f":"IFERROR(INDEX('Data Annex'!$K$1:$AN$4997,MATCH(N$44&\"|\"&$B53,'Data Annex'!$K$1:$K$4997,0),MATCH(N$45,'Data Annex'!$K$1:$AN$1,0)),\"\")","v":0.2609515288},{"$f":"IFERROR(INDEX('Data Annex'!$K$1:$AN$4997,MATCH(O$44&\"|\"&$B53,'Data Annex'!$K$1:$K$4997,0),MATCH(O$45,'Data Annex'!$K$1:$AN$1,0)),\"\")","v":0.25336895390000003},{"$f":"IFERROR(INDEX('Data Annex'!$K$1:$AN$4997,MATCH(P$44&\"|\"&$B53,'Data Annex'!$K$1:$K$4997,0),MATCH(P$45,'Data Annex'!$K$1:$AN$1,0)),\"\")","v":0.25467736990000001},{"$f":"IFERROR(INDEX('Data Annex'!$K$1:$AN$4997,MATCH(Q$44&\"|\"&$B53,'Data Annex'!$K$1:$K$4997,0),MATCH(Q$45,'Data Annex'!$K$1:$AN$1,0)),\"\")","v":1.3493705899999999},{"$f":"IFERROR(INDEX('Data Annex'!$K$1:$AN$4997,MATCH(R$44&\"|\"&$B53,'Data Annex'!$K$1:$K$4997,0),MATCH(R$45,'Data Annex'!$K$1:$AN$1,0)),\"\")","v":1.3637733919999999},{"$f":"IFERROR(INDEX('Data Annex'!$K$1:$AN$4997,MATCH(S$44&\"|\"&$B53,'Data Annex'!$K$1:$K$4997,0),MATCH(S$45,'Data Annex'!$K$1:$AN$1,0)),\"\")","v":1.2935213212000001},{"$f":"IFERROR(INDEX('Data Annex'!$K$1:$AN$4997,MATCH(T$44&\"|\"&$B53,'Data Annex'!$K$1:$K$4997,0),MATCH(T$45,'Data Annex'!$K$1:$AN$1,0)),\"\")","v":1.3156350343000001},{"$f":"IFERROR(INDEX('Data Annex'!$K$1:$AN$4997,MATCH(U$44&\"|\"&$B53,'Data Annex'!$K$1:$K$4997,0),MATCH(U$45,'Data Annex'!$K$1:$AN$1,0)),\"\")","v":0.96408017180000005},{"$f":"IFERROR(INDEX('Data Annex'!$K$1:$AN$4997,MATCH(V$44&\"|\"&$B53,'Data Annex'!$K$1:$K$4997,0),MATCH(V$45,'Data Annex'!$K$1:$AN$1,0)),\"\")","v":0.99878106150000001},{"$f":"IFERROR(INDEX('Data Annex'!$K$1:$AN$4997,MATCH(W$44&\"|\"&$B53,'Data Annex'!$K$1:$K$4997,0),MATCH(W$45,'Data Annex'!$K$1:$AN$1,0)),\"\")","v":0.95904438079999998},{"$f":"IFERROR(INDEX('Data Annex'!$K$1:$AN$4997,MATCH(X$44&\"|\"&$B53,'Data Annex'!$K$1:$K$4997,0),MATCH(X$45,'Data Annex'!$K$1:$AN$1,0)),\"\")","v":0.92893036100000004},{"$f":"IFERROR(INDEX('Data Annex'!$K$1:$AN$4997,MATCH(Y$44&\"|\"&$B53,'Data Annex'!$K$1:$K$4997,0),MATCH(Y$45,'Data Annex'!$K$1:$AN$1,0)),\"\")","v":0.79775130380000003},{"$f":"IFERROR(INDEX('Data Annex'!$K$1:$AN$4997,MATCH(Z$44&\"|\"&$B53,'Data Annex'!$K$1:$K$4997,0),MATCH(Z$45,'Data Annex'!$K$1:$AN$1,0)),\"\")","v":0.81551129970000003},{"$f":"IFERROR(INDEX('Data Annex'!$K$1:$AN$4997,MATCH(AA$44&\"|\"&$B53,'Data Annex'!$K$1:$K$4997,0),MATCH(AA$45,'Data Annex'!$K$1:$AN$1,0)),\"\")","v":0.79873095409999995},{"$f":"IFERROR(INDEX('Data Annex'!$K$1:$AN$4997,MATCH(AB$44&\"|\"&$B53,'Data Annex'!$K$1:$K$4997,0),MATCH(AB$45,'Data Annex'!$K$1:$AN$1,0)),\"\")","v":0.79402699659999998}]
[4,"CY",null,"CY",{"$f":"IFERROR(INDEX('Data Annex'!$K$1:$AN$4997,MATCH(E$44&\"|\"&$B54,'Data Annex'!$K$1:$K$4997,0),MATCH(E$45,'Data Annex'!$K$1:$AN$1,0)),\"\")","v":5.70505},{"$f":"IFERROR(INDEX('Data Annex'!$K$1:$AN$4997,MATCH(F$44&\"|\"&$B54,'Data Annex'!$K$1:$K$4997,0),MATCH(F$45,'Data Annex'!$K$1:$AN$1,0)),\"\")","v":4.2311326210000004},{"$f":"IFERROR(INDEX('Data Annex'!$K$1:$AN$4997,MATCH(G$44&\"|\"&$B54,'Data Annex'!$K$1:$K$4997,0),MATCH(G$45,'Data Annex'!$K$1:$AN$1,0)),\"\")","v":3.8792763080000001},{"$f":"IFERROR(INDEX('Data Annex'!$K$1:$AN$4997,MATCH(H$44&\"|\"&$B54,'Data Annex'!$K$1:$K$4997,0),MATCH(H$45,'Data Annex'!$K$1:$AN$1,0)),\"\")","v":3.1435000280000001},{"$f":"IFERROR(INDEX('Data Annex'!$K$1:$AN$4997,MATCH(I$44&\"|\"&$B54,'Data Annex'!$K$1:$K$4997,0),MATCH(I$45,'Data Annex'!$K$1:$AN$1,0)),\"\")","v":3.2799649999999998},{"$f":"IFERROR(INDEX('Data Annex'!$K$1:$AN$4997,MATCH(J$44&\"|\"&$B54,'Data Annex'!$K$1:$K$4997,0),MATCH(J$45,'Data Annex'!$K$1:$AN$1,0)),\"\")","v":2.4075940619999998},{"$f":"IFERROR(INDEX('Data Annex'!$K$1:$AN$4997,MATCH(K$44&\"|\"&$B54,'Data Annex'!$K$1:$K$4997,0),MATCH(K$45,'Data Annex'!$K$1:$AN$1,0)),\"\")","v":2.2456770549999998},{"$f":"IFERROR(INDEX('Data Annex'!$K$1:$AN$4997,MATCH(L$44&\"|\"&$B54,'Data Annex'!$K$1:$K$4997,0),MATCH(L$45,'Data Annex'!$K$1:$AN$1,0)),\"\")","v":0.77640734600000005},{"$f":"IFERROR(INDEX('Data Annex'!$K$1:$AN$4997,MATCH(M$44&\"|\"&$B54,'Data Annex'!$K$1:$K$4997,0),MATCH(M$45,'Data Annex'!$K$1:$AN$1,0)),\"\")","v":2.3462190000000001},{"$f":"IFERROR(INDEX('Data Annex'!$K$1:$AN$4997,MATCH(N$44&\"|\"&$B54,'Data Annex'!$K$1:$K$4997,0),MATCH(N$45,'Data Annex'!$K$1:$AN$1,0)),\"\")","v":1.779203093},{"$f":"IFERROR(INDEX('Data Annex'!$K$1:$AN$4997,MATCH(O$44&\"|\"&$B54,'Data Annex'!$K$1:$K$4997,0),MATCH(O$45,'Data Annex'!$K$1:$AN$1,0)),\"\")","v":1.6617721000000001},{"$f":"IFERROR(INDEX('Data Annex'!$K$1:$AN$4997,MATCH(P$44&\"|\"&$B54,'Data Annex'!$K$1:$K$4997,0),MATCH(P$45,'Data Annex'!$K$1:$AN$1,0)),\"\")","v":0.53957307099999996},{"$f":"IFERROR(INDEX('Data Annex'!$K$1:$AN$4997,MATCH(Q$44&\"|\"&$B54,'Data Annex'!$K$1:$K$4997,0),MATCH(Q$45,'Data Annex'!$K$1:$AN$1,0)),\"\")","v":2.2917399999999999},{"$f":"IFERROR(INDEX('Data Annex'!$K$1:$AN$4997,MATCH(R$44&\"|\"&$B54,'Data Annex'!$K$1:$K$4997,0),MATCH(R$45,'Data Annex'!$K$1:$AN$1,0)),\"\")","v":1.7107225770000001},{"$f":"IFERROR(INDEX('Data Annex'!$K$1:$AN$4997,MATCH(S$44&\"|\"&$B54,'Data Annex'!$K$1:$K$4997,0),MATCH(S$45,'Data Annex'!$K$1:$AN$1,0)),\"\")","v":1.519906497},{"$f":"IFERROR(INDEX('Data Annex'!$K$1:$AN$4997,MATCH(T$44&\"|\"&$B54,'Data Annex'!$K$1:$K$4997,0),MATCH(T$45,'Data Annex'!$K$1:$AN$1,0)),\"\")","v":0.70966049899999994},{"$f":"IFERROR(INDEX('Data Annex'!$K$1:$AN$4997,MATCH(U$44&\"|\"&$B54,'Data Annex'!$K$1:$K$4997,0),MATCH(U$45,'Data Annex'!$K$1:$AN$1,0)),\"\")","v":2.1123539999999998},{"$f":"IFERROR(INDEX('Data Annex'!$K$1:$AN$4997,MATCH(V$44&\"|\"&$B54,'Data Annex'!$K$1:$K$4997,0),MATCH(V$45,'Data Annex'!$K$1:$AN$1,0)),\"\")","v":1.50987169},{"$f":"IFERROR(INDEX('Data Annex'!$K$1:$AN$4997,MATCH(W$44&\"|\"&$B54,'Data Annex'!$K$1:$K$4997,0),MATCH(W$45,'Data Annex'!$K$1:$AN$1,0)),\"\")","v":1.405462961},{"$f":"IFERROR(INDEX('Data Annex'!$K$1:$AN$4997,MATCH(X$44&\"|\"&$B54,'Data Annex'!$K$1:$K$4997,0),MATCH(X$45,'Data Annex'!$K$1:$AN$1,0)),\"\")","v":0.70941674700000001},{"$f":"IFERROR(INDEX('Data Annex'!$K$1:$AN$4997,MATCH(Y$44&\"|\"&$B54,'Data Annex'!$K$1:$K$4997,0),MATCH(Y$45,'Data Annex'!$K$1:$AN$1,0)),\"\")","v":1.6179809999999999},{"$f":"IFERROR(INDEX('Data Annex'!$K$1:$AN$4997,MATCH(Z$44&\"|\"&$B54,'Data Annex'!$K$1:$K$4997,0),MATCH(Z$45,'Data Annex'!$K$1:$AN$1,0)),\"\")","v":1.245924727},{"$f":"IFERROR(INDEX('Data Annex'!$K$1:$AN$4997,MATCH(AA$44&\"|\"&$B54,'Data Annex'!$K$1:$K$4997,0),MATCH(AA$45,'Data Annex'!$K$1:$AN$1,0)),\"\")","v":1.066967241},{"$f":"IFERROR(INDEX('Data Annex'!$K$1:$AN$4997,MATCH(AB$44&\"|\"&$B54,'Data Annex'!$K$1:$K$4997,0),MATCH(AB$45,'Data Annex'!$K$1:$AN$1,0)),\"\")","v":0.53359677599999999}]
[5,"CZ",null,"CZ",{"$f":"IFERROR(INDEX('Data Annex'!$K$1:$AN$4997,MATCH(E$44&\"|\"&$B55,'Data Annex'!$K$1:$K$4997,0),MATCH(E$45,'Data Annex'!$K$1:$AN$1,0)),\"\")","v":1.644392356},{"$f":"IFERROR(INDEX('Data Annex'!$K$1:$AN$4997,MATCH(F$44&\"|\"&$B55,'Data Annex'!$K$1:$K$4997,0),MATCH(F$45,'Data Annex'!$K$1:$AN$1,0)),\"\")","v":1.7530421716},{"$f":"IFERROR(INDEX('Data Annex'!$K$1:$AN$4997,MATCH(G$44&\"|\"&$B55,'Data Annex'!$K$1:$K$4997,0),MATCH(G$45,'Data Annex'!$K$1:$AN$1,0)),\"\")","v":1.7530866784000001},{"$f":"IFERROR(INDEX('Data Annex'!$K$1:$AN$4997,MATCH(H$44&\"|\"&$B55,'Data Annex'!$K$1:$K$4997,0),MATCH(H$45,'Data Annex'!$K$1:$AN$1,0)),\"\")","v":2.0471712797000001},{"$f":"IFERROR(INDEX('Data Annex'!$K$1:$AN$4997,MATCH(I$44&\"|\"&$B55,'Data Annex'!$K$1:$K$4997,0),MATCH(I$45,'Data Annex'!$K$1:$AN$1,0)),\"\")","v":0.79042378710000005},{"$f":"IFERROR(INDEX('Data Annex'!$K$1:$AN$4997,MATCH(J$44&\"|\"&$B55,'Data Annex'!$K$1:$K$4997,0),MATCH(J$45,'Data Annex'!$K$1:$AN$1,0)),\"\")","v":0.79473754330000002},{"$f":"IFERROR(INDEX('Data Annex'!$K$1:$AN$4997,MATCH(K$44&\"|\"&$B55,'Data Annex'!$K$1:$K$4997,0),MATCH(K$45,'Data Annex'!$K$1:$AN$1,0)),\"\")","v":0.77437931709999996},{"$f":"IFERROR(INDEX('Data Annex'!$K$1:$AN$4997,MATCH(L$44&\"|\"&$B55,'Data Annex'!$K$1:$K$4997,0),MATCH(L$45,'Data Annex'!$K$1:$AN$1,0)),\"\")","v":0.87781645580000001},{"$f":"IFERROR(INDEX('Data Annex'!$K$1:$AN$4997,MATCH(M$44&\"|\"&$B55,'Data Annex'!$K$1:$K$4997,0),MATCH(M$45,'Data Annex'!$K$1:$AN$1,0)),\"\")","v":0.32677114289999998},{"$f":"IFERROR(INDEX('Data Annex'!$K$1:$AN$4997,MATCH(N$44&\"|\"&$B55,'Data Annex'!$K$1:$K$4997,0),MATCH(N$45,'Data Annex'!$K$1:$AN$1,0)),\"\")","v":0.33477973640000003},{"$f":"IFERROR(INDEX('Data Annex'!$K$1:$AN$4997,MATCH(O$44&\"|\"&$B55,'Data Annex'!$K$1:$K$4997,0),MATCH(O$45,'Data Annex'!$K$1:$AN$1,0)),\"\")","v":0.33090448020000002},{"$f":"IFERROR(INDEX('Data Annex'!$K$1:$AN$4997,MATCH(P$44&\"|\"&$B55,'Data Annex'!$K$1:$K$4997,0),MATCH(P$45,'Data Annex'!$K$1:$AN$1,0)),\"\")","v":0.36376759289999999},{"$f":"IFERROR(INDEX('Data Annex'!$K$1:$AN$4997,MATCH(Q$44&\"|\"&$B55,'Data Annex'!$K$1:$K$4997,0),MATCH(Q$45,'Data Annex'!$K$1:$AN$1,0)),\"\")","v":0.84998251329999996},{"$f":"IFERROR(INDEX('Data Annex'!$K$1:$AN$4997,MATCH(R$44&\"|\"&$B55,'Data Annex'!$K$1:$K$4997,0),MATCH(R$45,'Data Annex'!$K$1:$AN$1,0)),\"\")","v":0.95132949600000005},{"$f":"IFERROR(INDEX('Data Annex'!$K$1:$AN$4997,MATCH(S$44&\"|\"&$B55,'Data Annex'!$K$1:$K$4997,0),MATCH(S$45,'Data Annex'!$K$1:$AN$1,0)),\"\")","v":0.96601176109999998},{"$f":"IFERROR(INDEX('Data Annex'!$K$1:$AN$4997,MATCH(T$44&\"|\"&$B55,'Data Annex'!$K$1:$K$4997,0),MATCH(T$45,'Data Annex'!$K$1:$AN$1,0)),\"\")","v":1.1482954562000001},{"$f":"IFERROR(INDEX('Data Annex'!$K$1:$AN$4997,MATCH(U$44&\"|\"&$B55,'Data Annex'!$K$1:$K$4997,0),MATCH(U$45,'Data Annex'!$K$1:$AN$1,0)),\"\")","v":0.36210283910000002},{"$f":"IFERROR(INDEX('Data Annex'!$K$1:$AN$4997,MATCH(V$44&\"|\"&$B55,'Data Annex'!$K$1:$K$4997,0),MATCH(V$45,'Data Annex'!$K$1:$AN$1,0)),\"\")","v":0.41581646620000001},{"$f":"IFERROR(INDEX('Data Annex'!$K$1:$AN$4997,MATCH(W$44&\"|\"&$B55,'Data Annex'!$K$1:$K$4997,0),MATCH(W$45,'Data Annex'!$K$1:$AN$1,0)),\"\")","v":0.41832893139999999},{"$f":"IFERROR(INDEX('Data Annex'!$K$1:$AN$4997,MATCH(X$44&\"|\"&$B55,'Data Annex'!$K$1:$K$4997,0),MATCH(X$45,'Data Annex'!$K$1:$AN$1,0)),\"\")","v":0.53660067700000003},{"$f":"IFERROR(INDEX('Data Annex'!$K$1:$AN$4997,MATCH(Y$44&\"|\"&$B55,'Data Annex'!$K$1:$K$4997,0),MATCH(Y$45,'Data Annex'!$K$1:$AN$1,0)),\"\")","v":0.25998347919999998},{"$f":"IFERROR(INDEX('Data Annex'!$K$1:$AN$4997,MATCH(Z$44&\"|\"&$B55,'Data Annex'!$K$1:$K$4997,0),MATCH(Z$45,'Data Annex'!$K$1:$AN$1,0)),\"\")","v":0.30325361569999998},{"$f":"IFERROR(INDEX('Data Annex'!$K$1:$AN$4997,MATCH(AA$44&\"|\"&$B55,'Data Annex'!$K$1:$K$4997,0),MATCH(AA$45,'Data Annex'!$K$1:$AN$1,0)),\"\")","v":0.29986419279999998},{"$f":"IFERROR(INDEX('Data Annex'!$K$1:$AN$4997,MATCH(AB$44&\"|\"&$B55,'Data Annex'!$K$1:$K$4997,0),MATCH(AB$45,'Data Annex'!$K$1:$AN$1,0)),\"\")","v":0.3897852698}]
[6,"DE",null,"DE",{"$f":"IFERROR(INDEX('Data Annex'!$K$1:$AN$4997,MATCH(E$44&\"|\"&$B56,'Data Annex'!$K$1:$K$4997,0),MATCH(E$45,'Data Annex'!$K$1:$AN$1,0)),\"\")","v":30.209373017000001},{"$f":"IFERROR(INDEX('Data Annex'!$K$1:$AN$4997,MATCH(F$44&\"|\"&$B56,'Data Annex'!$K$1:$K$4997,0),MATCH(F$45,'Data Annex'!$K$1:$AN$1,0)),\"\")","v":33.863070006999997},{"$f":"IFERROR(INDEX('Data Annex'!$K$1:$AN$4997,MATCH(G$44&\"|\"&$B56,'Data Annex'!$K$1:$K$4997,0),MATCH(G$45,'Data Annex'!$K$1:$AN$1,0)),\"\")","v":33.177974742000004},{"$f":"IFERROR(INDEX('Data Annex'!$K$1:$AN$4997,MATCH(H$44&\"|\"&$B56,'Data Annex'!$K$1:$K$4997,0),MATCH(H$45,'Data Annex'!$K$1:$AN$1,0)),\"\")","v":32.514249358000001},{"$f":"IFERROR(INDEX('Data Annex'!$K$1:$AN$4997,MATCH(I$44&\"|\"&$B56,'Data Annex'!$K$1:$K$4997,0),MATCH(I$45,'Data Annex'!$K$1:$AN$1,0)),\"\")","v":8.4270647043999993},{"$f":"IFERROR(INDEX('Data Annex'!$K$1:$AN$4997,MATCH(J$44&\"|\"&$B56,'Data Annex'!$K$1:$K$4997,0),MATCH(J$45,'Data Annex'!$K$1:$AN$1,0)),\"\")","v":8.9172051866000004},{"$f":"IFERROR(INDEX('Data Annex'!$K$1:$AN$4997,MATCH(K$44&\"|\"&$B56,'Data Annex'!$K$1:$K$4997,0),MATCH(K$45,'Data Annex'!$K$1:$AN$1,0)),\"\")","v":8.9654277248999996},{"$f":"IFERROR(INDEX('Data Annex'!$K$1:$AN$4997,MATCH(L$44&\"|\"&$B56,'Data Annex'!$K$1:$K$4997,0),MATCH(L$45,'Data Annex'!$K$1:$AN$1,0)),\"\")","v":7.6644384204999998},{"$f":"IFERROR(INDEX('Data Annex'!$K$1:$AN$4997,MATCH(M$44&\"|\"&$B56,'Data Annex'!$K$1:$K$4997,0),MATCH(M$45,'Data Annex'!$K$1:$AN$1,0)),\"\")","v":3.4249662730999999},{"$f":"IFERROR(INDEX('Data Annex'!$K$1:$AN$4997,MATCH(N$44&\"|\"&$B56,'Data Annex'!$K$1:$K$4997,0),MATCH(N$45,'Data Annex'!$K$1:$AN$1,0)),\"\")","v":3.7483719198999998},{"$f":"IFERROR(INDEX('Data Annex'!$K$1:$AN$4997,MATCH(O$44&\"|\"&$B56,'Data Annex'!$K$1:$K$4997,0),MATCH(O$45,'Data Annex'!$K$1:$AN$1,0)),\"\")","v":3.6866425673999998},{"$f":"IFERROR(INDEX('Data Annex'!$K$1:$AN$4997,MATCH(P$44&\"|\"&$B56,'Data Annex'!$K$1:$K$4997,0),MATCH(P$45,'Data Annex'!$K$1:$AN$1,0)),\"\")","v":2.8406532351},{"$f":"IFERROR(INDEX('Data Annex'!$K$1:$AN$4997,MATCH(Q$44&\"|\"&$B56,'Data Annex'!$K$1:$K$4997,0),MATCH(Q$45,'Data Annex'!$K$1:$AN$1,0)),\"\")","v":18.110940584000002},{"$f":"IFERROR(INDEX('Data Annex'!$K$1:$AN$4997,MATCH(R$44&\"|\"&$B56,'Data Annex'!$K$1:$K$4997,0),MATCH(R$45,'Data Annex'!$K$1:$AN$1,0)),\"\")","v":20.993828886999999},{"$f":"IFERROR(INDEX('Data Annex'!$K$1:$AN$4997,MATCH(S$44&\"|\"&$B56,'Data Annex'!$K$1:$K$4997,0),MATCH(S$45,'Data Annex'!$K$1:$AN$1,0)),\"\")","v":20.996178694000001},{"$f":"IFERROR(INDEX('Data Annex'!$K$1:$AN$4997,MATCH(T$44&\"|\"&$B56,'Data Annex'!$K$1:$K$4997,0),MATCH(T$45,'Data Annex'!$K$1:$AN$1,0)),\"\")","v":17.919661564999998},{"$f":"IFERROR(INDEX('Data Annex'!$K$1:$AN$4997,MATCH(U$44&\"|\"&$B56,'Data Annex'!$K$1:$K$4997,0),MATCH(U$45,'Data Annex'!$K$1:$AN$1,0)),\"\")","v":4.8631246337},{"$f":"IFERROR(INDEX('Data Annex'!$K$1:$AN$4997,MATCH(V$44&\"|\"&$B56,'Data Annex'!$K$1:$K$4997,0),MATCH(V$45,'Data Annex'!$K$1:$AN$1,0)),\"\")","v":5.3359515871000003},{"$f":"IFERROR(INDEX('Data Annex'!$K$1:$AN$4997,MATCH(W$44&\"|\"&$B56,'Data Annex'!$K$1:$K$4997,0),MATCH(W$45,'Data Annex'!$K$1:$AN$1,0)),\"\")","v":4.7739717974999998},{"$f":"IFERROR(INDEX('Data Annex'!$K$1:$AN$4997,MATCH(X$44&\"|\"&$B56,'Data Annex'!$K$1:$K$4997,0),MATCH(X$45,'Data Annex'!$K$1:$AN$1,0)),\"\")","v":5.6195268437000001},{"$f":"IFERROR(INDEX('Data Annex'!$K$1:$AN$4997,MATCH(Y$44&\"|\"&$B56,'Data Annex'!$K$1:$K$4997,0),MATCH(Y$45,'Data Annex'!$K$1:$AN$1,0)),\"\")","v":3.8617901739999998},{"$f":"IFERROR(INDEX('Data Annex'!$K$1:$AN$4997,MATCH(Z$44&\"|\"&$B56,'Data Annex'!$K$1:$K$4997,0),MATCH(Z$45,'Data Annex'!$K$1:$AN$1,0)),\"\")","v":4.0386064250000002},{"$f":"IFERROR(INDEX('Data Annex'!$K$1:$AN$4997,MATCH(AA$44&\"|\"&$B56,'Data Annex'!$K$1:$K$4997,0),MATCH(AA$45,'Data Annex'!$K$1:$AN$1,0)),\"\")","v":4.0678805793999997},{"$f":"IFERROR(INDEX('Data Annex'!$K$1:$AN$4997,MATCH(AB$44&\"|\"&$B56,'Data Annex'!$K$1:$K$4997,0),MATCH(AB$45,'Data Annex'!$K$1:$AN$1,0)),\"\")","v":4.6407838424000003}]
[7,"DK",null,"DK",{"$f":"IFERROR(INDEX('Data Annex'!$K$1:$AN$4997,MATCH(E$44&\"|\"&$B57,'Data Annex'!$K$1:$K$4997,0),MATCH(E$45,'Data Annex'!$K$1:$AN$1,0)),\"\")","v":10.947380221},{"$f":"IFERROR(INDEX('Data Annex'!$K$1:$AN$4997,MATCH(F$44&\"|\"&$B57,'Data Annex'!$K$1:$K$4997,0),MATCH(F$45,'Data Annex'!$K$1:$AN$1,0)),\"\")","v":11.421163212},{"$f":"IFERROR(INDEX('Data Annex'!$K$1:$AN$4997,MATCH(G$44&\"|\"&$B57,'Data Annex'!$K$1:$K$4997,0),MATCH(G$45,'Data Annex'!$K$1:$AN$1,0)),\"\")","v":11.323242441},{"$f":"IFERROR(INDEX('Data Annex'!$K$1:$AN$4997,MATCH(H$44&\"|\"&$B57,'Data Annex'!$K$1:$K$4997,0),MATCH(H$45,'Data Annex'!$K$1:$AN$1,0)),\"\")","v":11.636664649},{"$f":"IFERROR(INDEX('Data Annex'!$K$1:$AN$4997,MATCH(I$44&\"|\"&$B57,'Data Annex'!$K$1:$K$4997,0),MATCH(I$45,'Data Annex'!$K$1:$AN$1,0)),\"\")","v":1.9093120557000001},{"$f":"IFERROR(INDEX('Data Annex'!$K$1:$AN$4997,MATCH(J$44&\"|\"&$B57,'Data Annex'!$K$1:$K$4997,0),MATCH(J$45,'Data Annex'!$K$1:$AN$1,0)),\"\")","v":1.9722627408},{"$f":"IFERROR(INDEX('Data Annex'!$K$1:$AN$4997,MATCH(K$44&\"|\"&$B57,'Data Annex'!$K$1:$K$4997,0),MATCH(K$45,'Data Annex'!$K$1:$AN$1,0)),\"\")","v":2.0393780747000001},{"$f":"IFERROR(INDEX('Data Annex'!$K$1:$AN$4997,MATCH(L$44&\"|\"&$B57,'Data Annex'!$K$1:$K$4997,0),MATCH(L$45,'Data Annex'!$K$1:$AN$1,0)),\"\")","v":1.9908408794000001},{"$f":"IFERROR(INDEX('Data Annex'!$K$1:$AN$4997,MATCH(M$44&\"|\"&$B57,'Data Annex'!$K$1:$K$4997,0),MATCH(M$45,'Data Annex'!$K$1:$AN$1,0)),\"\")","v":1.0391287409000001},{"$f":"IFERROR(INDEX('Data Annex'!$K$1:$AN$4997,MATCH(N$44&\"|\"&$B57,'Data Annex'!$K$1:$K$4997,0),MATCH(N$45,'Data Annex'!$K$1:$AN$1,0)),\"\")","v":1.0563093969999999},{"$f":"IFERROR(INDEX('Data Annex'!$K$1:$AN$4997,MATCH(O$44&\"|\"&$B57,'Data Annex'!$K$1:$K$4997,0),MATCH(O$45,'Data Annex'!$K$1:$AN$1,0)),\"\")","v":1.123468879},{"$f":"IFERROR(INDEX('Data Annex'!$K$1:$AN$4997,MATCH(P$44&\"|\"&$B57,'Data Annex'!$K$1:$K$4997,0),MATCH(P$45,'Data Annex'!$K$1:$AN$1,0)),\"\")","v":1.0866705316},{"$f":"IFERROR(INDEX('Data Annex'!$K$1:$AN$4997,MATCH(Q$44&\"|\"&$B57,'Data Annex'!$K$1:$K$4997,0),MATCH(Q$45,'Data Annex'!$K$1:$AN$1,0)),\"\")","v":3.7199101762},{"$f":"IFERROR(INDEX('Data Annex'!$K$1:$AN$4997,MATCH(R$44&\"|\"&$B57,'Data Annex'!$K$1:$K$4997,0),MATCH(R$45,'Data Annex'!$K$1:$AN$1,0)),\"\")","v":4.0676187268000001},{"$f":"IFERROR(INDEX('Data Annex'!$K$1:$AN$4997,MATCH(S$44&\"|\"&$B57,'Data Annex'!$K$1:$K$4997,0),MATCH(S$45,'Data Annex'!$K$1:$AN$1,0)),\"\")","v":4.1320509460999997},{"$f":"IFERROR(INDEX('Data Annex'!$K$1:$AN$4997,MATCH(T$44&\"|\"&$B57,'Data Annex'!$K$1:$K$4997,0),MATCH(T$45,'Data Annex'!$K$1:$AN$1,0)),\"\")","v":4.5089050131999997},{"$f":"IFERROR(INDEX('Data Annex'!$K$1:$AN$4997,MATCH(U$44&\"|\"&$B57,'Data Annex'!$K$1:$K$4997,0),MATCH(U$45,'Data Annex'!$K$1:$AN$1,0)),\"\")","v":1.6307578999000001},{"$f":"IFERROR(INDEX('Data Annex'!$K$1:$AN$4997,MATCH(V$44&\"|\"&$B57,'Data Annex'!$K$1:$K$4997,0),MATCH(V$45,'Data Annex'!$K$1:$AN$1,0)),\"\")","v":1.8531820491},{"$f":"IFERROR(INDEX('Data Annex'!$K$1:$AN$4997,MATCH(W$44&\"|\"&$B57,'Data Annex'!$K$1:$K$4997,0),MATCH(W$45,'Data Annex'!$K$1:$AN$1,0)),\"\")","v":2.0034368841000001},{"$f":"IFERROR(INDEX('Data Annex'!$K$1:$AN$4997,MATCH(X$44&\"|\"&$B57,'Data Annex'!$K$1:$K$4997,0),MATCH(X$45,'Data Annex'!$K$1:$AN$1,0)),\"\")","v":2.0365803135},{"$f":"IFERROR(INDEX('Data Annex'!$K$1:$AN$4997,MATCH(Y$44&\"|\"&$B57,'Data Annex'!$K$1:$K$4997,0),MATCH(Y$45,'Data Annex'!$K$1:$AN$1,0)),\"\")","v":0.72777159049999995},{"$f":"IFERROR(INDEX('Data Annex'!$K$1:$AN$4997,MATCH(Z$44&\"|\"&$B57,'Data Annex'!$K$1:$K$4997,0),MATCH(Z$45,'Data Annex'!$K$1:$AN$1,0)),\"\")","v":0.85590716229999997},{"$f":"IFERROR(INDEX('Data Annex'!$K$1:$AN$4997,MATCH(AA$44&\"|\"&$B57,'Data Annex'!$K$1:$K$4997,0),MATCH(AA$45,'Data Annex'!$K$1:$AN$1,0)),\"\")","v":0.94389095749999996},{"$f":"IFERROR(INDEX('Data Annex'!$K$1:$AN$4997,MATCH(AB$44&\"|\"&$B57,'Data Annex'!$K$1:$K$4997,0),MATCH(AB$45,'Data Annex'!$K$1:$AN$1,0)),\"\")","v":1.0278900858}]
[8,"EE",null,"EE",{"$f":"IFERROR(INDEX('Data Annex'!$K$1:$AN$4997,MATCH(E$44&\"|\"&$B58,'Data Annex'!$K$1:$K$4997,0),MATCH(E$45,'Data Annex'!$K$1:$AN$1,0)),\"\")","v":0.49986909200000001},{"$f":"IFERROR(INDEX('Data Annex'!$K$1:$AN$4997,MATCH(F$44&\"|\"&$B58,'Data Annex'!$K$1:$K$4997,0),MATCH(F$45,'Data Annex'!$K$1:$AN$1,0)),\"\")","v":0.50946965720000004},{"$f":"IFERROR(INDEX('Data Annex'!$K$1:$AN$4997,MATCH(G$44&\"|\"&$B58,'Data Annex'!$K$1:$K$4997,0),MATCH(G$45,'Data Annex'!$K$1:$AN$1,0)),\"\")","v":0.4727265054},{"$f":"IFERROR(INDEX('Data Annex'!$K$1:$AN$4997,MATCH(H$44&\"|\"&$B58,'Data Annex'!$K$1:$K$4997,0),MATCH(H$45,'Data Annex'!$K$1:$AN$1,0)),\"\")","v":0.41035446990000002},{"$f":"IFERROR(INDEX('Data Annex'!$K$1:$AN$4997,MATCH(I$44&\"|\"&$B58,'Data Annex'!$K$1:$K$4997,0),MATCH(I$45,'Data Annex'!$K$1:$AN$1,0)),\"\")","v":0.21262275410000001},{"$f":"IFERROR(INDEX('Data Annex'!$K$1:$AN$4997,MATCH(J$44&\"|\"&$B58,'Data Annex'!$K$1:$K$4997,0),MATCH(J$45,'Data Annex'!$K$1:$AN$1,0)),\"\")","v":0.2262957823},{"$f":"IFERROR(INDEX('Data Annex'!$K$1:$AN$4997,MATCH(K$44&\"|\"&$B58,'Data Annex'!$K$1:$K$4997,0),MATCH(K$45,'Data Annex'!$K$1:$AN$1,0)),\"\")","v":0.2065248381},{"$f":"IFERROR(INDEX('Data Annex'!$K$1:$AN$4997,MATCH(L$44&\"|\"&$B58,'Data Annex'!$K$1:$K$4997,0),MATCH(L$45,'Data Annex'!$K$1:$AN$1,0)),\"\")","v":0.20627640059999999},{"$f":"IFERROR(INDEX('Data Annex'!$K$1:$AN$4997,MATCH(M$44&\"|\"&$B58,'Data Annex'!$K$1:$K$4997,0),MATCH(M$45,'Data Annex'!$K$1:$AN$1,0)),\"\")","v":0.17594280800000001},{"$f":"IFERROR(INDEX('Data Annex'!$K$1:$AN$4997,MATCH(N$44&\"|\"&$B58,'Data Annex'!$K$1:$K$4997,0),MATCH(N$45,'Data Annex'!$K$1:$AN$1,0)),\"\")","v":0.18684527740000001},{"$f":"IFERROR(INDEX('Data Annex'!$K$1:$AN$4997,MATCH(O$44&\"|\"&$B58,'Data Annex'!$K$1:$K$4997,0),MATCH(O$45,'Data Annex'!$K$1:$AN$1,0)),\"\")","v":0.16903846950000001},{"$f":"IFERROR(INDEX('Data Annex'!$K$1:$AN$4997,MATCH(P$44&\"|\"&$B58,'Data Annex'!$K$1:$K$4997,0),MATCH(P$45,'Data Annex'!$K$1:$AN$1,0)),\"\")","v":0.1727878675},{"$f":"IFERROR(INDEX('Data Annex'!$K$1:$AN$4997,MATCH(Q$44&\"|\"&$B58,'Data Annex'!$K$1:$K$4997,0),MATCH(Q$45,'Data Annex'!$K$1:$AN$1,0)),\"\")","v":0.28672534199999999},{"$f":"IFERROR(INDEX('Data Annex'!$K$1:$AN$4997,MATCH(R$44&\"|\"&$B58,'Data Annex'!$K$1:$K$4997,0),MATCH(R$45,'Data Annex'!$K$1:$AN$1,0)),\"\")","v":0.28266148959999998},{"$f":"IFERROR(INDEX('Data Annex'!$K$1:$AN$4997,MATCH(S$44&\"|\"&$B58,'Data Annex'!$K$1:$K$4997,0),MATCH(S$45,'Data Annex'!$K$1:$AN$1,0)),\"\")","v":0.26570543499999999},{"$f":"IFERROR(INDEX('Data Annex'!$K$1:$AN$4997,MATCH(T$44&\"|\"&$B58,'Data Annex'!$K$1:$K$4997,0),MATCH(T$45,'Data Annex'!$K$1:$AN$1,0)),\"\")","v":0.2039890114},{"$f":"IFERROR(INDEX('Data Annex'!$K$1:$AN$4997,MATCH(U$44&\"|\"&$B58,'Data Annex'!$K$1:$K$4997,0),MATCH(U$45,'Data Annex'!$K$1:$AN$1,0)),\"\")","v":0.137280134},{"$f":"IFERROR(INDEX('Data Annex'!$K$1:$AN$4997,MATCH(V$44&\"|\"&$B58,'Data Annex'!$K$1:$K$4997,0),MATCH(V$45,'Data Annex'!$K$1:$AN$1,0)),\"\")","v":0.19995246580000001},{"$f":"IFERROR(INDEX('Data Annex'!$K$1:$AN$4997,MATCH(W$44&\"|\"&$B58,'Data Annex'!$K$1:$K$4997,0),MATCH(W$45,'Data Annex'!$K$1:$AN$1,0)),\"\")","v":0.1824990581},{"$f":"IFERROR(INDEX('Data Annex'!$K$1:$AN$4997,MATCH(X$44&\"|\"&$B58,'Data Annex'!$K$1:$K$4997,0),MATCH(X$45,'Data Annex'!$K$1:$AN$1,0)),\"\")","v":0.13704588879999999},{"$f":"IFERROR(INDEX('Data Annex'!$K$1:$AN$4997,MATCH(Y$44&\"|\"&$B58,'Data Annex'!$K$1:$K$4997,0),MATCH(Y$45,'Data Annex'!$K$1:$AN$1,0)),\"\")","v":0.1495675739},{"$f":"IFERROR(INDEX('Data Annex'!$K$1:$AN$4997,MATCH(Z$44&\"|\"&$B58,'Data Annex'!$K$1:$K$4997,0),MATCH(Z$45,'Data Annex'!$K$1:$AN$1,0)),\"\")","v":0.1648457609},{"$f":"IFERROR(INDEX('Data Annex'!$K$1:$AN$4997,MATCH(AA$44&\"|\"&$B58,'Data Annex'!$K$1:$K$4997,0),MATCH(AA$45,'Data Annex'!$K$1:$AN$1,0)),\"\")","v":0.14328908570000001},{"$f":"IFERROR(INDEX('Data Annex'!$K$1:$AN$4997,MATCH(AB$44&\"|\"&$B58,'Data Annex'!$K$1:$K$4997,0),MATCH(AB$45,'Data Annex'!$K$1:$AN$1,0)),\"\")","v":0.13001058970000001}]
[9,"ES",null,"ES",{"$f":"IFERROR(INDEX('Data Annex'!$K$1:$AN$4997,MATCH(E$44&\"|\"&$B59,'Data Annex'!$K$1:$K$4997,0),MATCH(E$45,'Data Annex'!$K$1:$AN$1,0)),\"\")","v":77.523255684000006},{"$f":"IFERROR(INDEX('Data Annex'!$K$1:$AN$4997,MATCH(F$44&\"|\"&$B59,'Data Annex'!$K$1:$K$4997,0),MATCH(F$45,'Data Annex'!$K$1:$AN$1,0)),\"\")","v":79.273073062999998},{"$f":"IFERROR(INDEX('Data Annex'!$K$1:$AN$4997,MATCH(G$44&\"|\"&$B59,'Data Annex'!$K$1:$K$4997,0),MATCH(G$45,'Data Annex'!$K$1:$AN$1,0)),\"\")","v":76.906396838000006},{"$f":"IFERROR(INDEX('Data Annex'!$K$1:$AN$4997,MATCH(H$44&\"|\"&$B59,'Data Annex'!$K$1:$K$4997,0),MATCH(H$45,'Data Annex'!$K$1:$AN$1,0)),\"\")","v":69.668386204000001},{"$f":"IFERROR(INDEX('Data Annex'!$K$1:$AN$4997,MATCH(I$44&\"|\"&$B59,'Data Annex'!$K$1:$K$4997,0),MATCH(I$45,'Data Annex'!$K$1:$AN$1,0)),\"\")","v":43.384765545999997},{"$f":"IFERROR(INDEX('Data Annex'!$K$1:$AN$4997,MATCH(J$44&\"|\"&$B59,'Data Annex'!$K$1:$K$4997,0),MATCH(J$45,'Data Annex'!$K$1:$AN$1,0)),\"\")","v":43.840589950000002},{"$f":"IFERROR(INDEX('Data Annex'!$K$1:$AN$4997,MATCH(K$44&\"|\"&$B59,'Data Annex'!$K$1:$K$4997,0),MATCH(K$45,'Data Annex'!$K$1:$AN$1,0)),\"\")","v":41.364346881000003},{"$f":"IFERROR(INDEX('Data Annex'!$K$1:$AN$4997,MATCH(L$44&\"|\"&$B59,'Data Annex'!$K$1:$K$4997,0),MATCH(L$45,'Data Annex'!$K$1:$AN$1,0)),\"\")","v":36.927460301000004},{"$f":"IFERROR(INDEX('Data Annex'!$K$1:$AN$4997,MATCH(M$44&\"|\"&$B59,'Data Annex'!$K$1:$K$4997,0),MATCH(M$45,'Data Annex'!$K$1:$AN$1,0)),\"\")","v":26.796167667999999},{"$f":"IFERROR(INDEX('Data Annex'!$K$1:$AN$4997,MATCH(N$44&\"|\"&$B59,'Data Annex'!$K$1:$K$4997,0),MATCH(N$45,'Data Annex'!$K$1:$AN$1,0)),\"\")","v":27.450827107999999},{"$f":"IFERROR(INDEX('Data Annex'!$K$1:$AN$4997,MATCH(O$44&\"|\"&$B59,'Data Annex'!$K$1:$K$4997,0),MATCH(O$45,'Data Annex'!$K$1:$AN$1,0)),\"\")","v":25.762263202},{"$f":"IFERROR(INDEX('Data Annex'!$K$1:$AN$4997,MATCH(P$44&\"|\"&$B59,'Data Annex'!$K$1:$K$4997,0),MATCH(P$45,'Data Annex'!$K$1:$AN$1,0)),\"\")","v":21.439524428999999},{"$f":"IFERROR(INDEX('Data Annex'!$K$1:$AN$4997,MATCH(Q$44&\"|\"&$B59,'Data Annex'!$K$1:$K$4997,0),MATCH(Q$45,'Data Annex'!$K$1:$AN$1,0)),\"\")","v":33.592493048999998},{"$f":"IFERROR(INDEX('Data Annex'!$K$1:$AN$4997,MATCH(R$44&\"|\"&$B59,'Data Annex'!$K$1:$K$4997,0),MATCH(R$45,'Data Annex'!$K$1:$AN$1,0)),\"\")","v":34.636404650999999},{"$f":"IFERROR(INDEX('Data Annex'!$K$1:$AN$4997,MATCH(S$44&\"|\"&$B59,'Data Annex'!$K$1:$K$4997,0),MATCH(S$45,'Data Annex'!$K$1:$AN$1,0)),\"\")","v":34.856240632999999},{"$f":"IFERROR(INDEX('Data Annex'!$K$1:$AN$4997,MATCH(T$44&\"|\"&$B59,'Data Annex'!$K$1:$K$4997,0),MATCH(T$45,'Data Annex'!$K$1:$AN$1,0)),\"\")","v":32.164839454000003},{"$f":"IFERROR(INDEX('Data Annex'!$K$1:$AN$4997,MATCH(U$44&\"|\"&$B59,'Data Annex'!$K$1:$K$4997,0),MATCH(U$45,'Data Annex'!$K$1:$AN$1,0)),\"\")","v":21.057849793999999},{"$f":"IFERROR(INDEX('Data Annex'!$K$1:$AN$4997,MATCH(V$44&\"|\"&$B59,'Data Annex'!$K$1:$K$4997,0),MATCH(V$45,'Data Annex'!$K$1:$AN$1,0)),\"\")","v":21.934669608},{"$f":"IFERROR(INDEX('Data Annex'!$K$1:$AN$4997,MATCH(W$44&\"|\"&$B59,'Data Annex'!$K$1:$K$4997,0),MATCH(W$45,'Data Annex'!$K$1:$AN$1,0)),\"\")","v":21.6730044},{"$f":"IFERROR(INDEX('Data Annex'!$K$1:$AN$4997,MATCH(X$44&\"|\"&$B59,'Data Annex'!$K$1:$K$4997,0),MATCH(X$45,'Data Annex'!$K$1:$AN$1,0)),\"\")","v":20.051542627},{"$f":"IFERROR(INDEX('Data Annex'!$K$1:$AN$4997,MATCH(Y$44&\"|\"&$B59,'Data Annex'!$K$1:$K$4997,0),MATCH(Y$45,'Data Annex'!$K$1:$AN$1,0)),\"\")","v":10.962386801999999},{"$f":"IFERROR(INDEX('Data Annex'!$K$1:$AN$4997,MATCH(Z$44&\"|\"&$B59,'Data Annex'!$K$1:$K$4997,0),MATCH(Z$45,'Data Annex'!$K$1:$AN$1,0)),\"\")","v":11.571569823000001},{"$f":"IFERROR(INDEX('Data Annex'!$K$1:$AN$4997,MATCH(AA$44&\"|\"&$B59,'Data Annex'!$K$1:$K$4997,0),MATCH(AA$45,'Data Annex'!$K$1:$AN$1,0)),\"\")","v":11.852488079},{"$f":"IFERROR(INDEX('Data Annex'!$K$1:$AN$4997,MATCH(AB$44&\"|\"&$B59,'Data Annex'!$K$1:$K$4997,0),MATCH(AB$45,'Data Annex'!$K$1:$AN$1,0)),\"\")","v":10.231696081000001}]
[10,"FI",null,"FI",{"$f":"IFERROR(INDEX('Data Annex'!$K$1:$AN$4997,MATCH(E$44&\"|\"&$B60,'Data Annex'!$K$1:$K$4997,0),MATCH(E$45,'Data Annex'!$K$1:$AN$1,0)),\"\")","v":7.5992592086000004},{"$f":"IFERROR(INDEX('Data Annex'!$K$1:$AN$4997,MATCH(F$44&\"|\"&$B60,'Data Annex'!$K$1:$K$4997,0),MATCH(F$45,'Data Annex'!$K$1:$AN$1,0)),\"\")","v":8.1580672683},{"$f":"IFERROR(INDEX('Data Annex'!$K$1:$AN$4997,MATCH(G$44&\"|\"&$B60,'Data Annex'!$K$1:$K$4997,0),MATCH(G$45,'Data Annex'!$K$1:$AN$1,0)),\"\")","v":8.0253249207999993},{"$f":"IFERROR(INDEX('Data Annex'!$K$1:$AN$4997,MATCH(H$44&\"|\"&$B60,'Data Annex'!$K$1:$K$4997,0),MATCH(H$45,'Data Annex'!$K$1:$AN$1,0)),\"\")","v":7.8632483344999997},{"$f":"IFERROR(INDEX('Data Annex'!$K$1:$AN$4997,MATCH(I$44&\"|\"&$B60,'Data Annex'!$K$1:$K$4997,0),MATCH(I$45,'Data Annex'!$K$1:$AN$1,0)),\"\")","v":2.672175433},{"$f":"IFERROR(INDEX('Data Annex'!$K$1:$AN$4997,MATCH(J$44&\"|\"&$B60,'Data Annex'!$K$1:$K$4997,0),MATCH(J$45,'Data Annex'!$K$1:$AN$1,0)),\"\")","v":2.8350999682000002},{"$f":"IFERROR(INDEX('Data Annex'!$K$1:$AN$4997,MATCH(K$44&\"|\"&$B60,'Data Annex'!$K$1:$K$4997,0),MATCH(K$45,'Data Annex'!$K$1:$AN$1,0)),\"\")","v":2.9839745396000001},{"$f":"IFERROR(INDEX('Data Annex'!$K$1:$AN$4997,MATCH(L$44&\"|\"&$B60,'Data Annex'!$K$1:$K$4997,0),MATCH(L$45,'Data Annex'!$K$1:$AN$1,0)),\"\")","v":2.9656451440999998},{"$f":"IFERROR(INDEX('Data Annex'!$K$1:$AN$4997,MATCH(M$44&\"|\"&$B60,'Data Annex'!$K$1:$K$4997,0),MATCH(M$45,'Data Annex'!$K$1:$AN$1,0)),\"\")","v":1.6053160550000001},{"$f":"IFERROR(INDEX('Data Annex'!$K$1:$AN$4997,MATCH(N$44&\"|\"&$B60,'Data Annex'!$K$1:$K$4997,0),MATCH(N$45,'Data Annex'!$K$1:$AN$1,0)),\"\")","v":1.6465641883},{"$f":"IFERROR(INDEX('Data Annex'!$K$1:$AN$4997,MATCH(O$44&\"|\"&$B60,'Data Annex'!$K$1:$K$4997,0),MATCH(O$45,'Data Annex'!$K$1:$AN$1,0)),\"\")","v":1.7026975902999999},{"$f":"IFERROR(INDEX('Data Annex'!$K$1:$AN$4997,MATCH(P$44&\"|\"&$B60,'Data Annex'!$K$1:$K$4997,0),MATCH(P$45,'Data Annex'!$K$1:$AN$1,0)),\"\")","v":1.7056948099},{"$f":"IFERROR(INDEX('Data Annex'!$K$1:$AN$4997,MATCH(Q$44&\"|\"&$B60,'Data Annex'!$K$1:$K$4997,0),MATCH(Q$45,'Data Annex'!$K$1:$AN$1,0)),\"\")","v":4.1028743998000001},{"$f":"IFERROR(INDEX('Data Annex'!$K$1:$AN$4997,MATCH(R$44&\"|\"&$B60,'Data Annex'!$K$1:$K$4997,0),MATCH(R$45,'Data Annex'!$K$1:$AN$1,0)),\"\")","v":4.1798268095999997},{"$f":"IFERROR(INDEX('Data Annex'!$K$1:$AN$4997,MATCH(S$44&\"|\"&$B60,'Data Annex'!$K$1:$K$4997,0),MATCH(S$45,'Data Annex'!$K$1:$AN$1,0)),\"\")","v":3.8496320691000001},{"$f":"IFERROR(INDEX('Data Annex'!$K$1:$AN$4997,MATCH(T$44&\"|\"&$B60,'Data Annex'!$K$1:$K$4997,0),MATCH(T$45,'Data Annex'!$K$1:$AN$1,0)),\"\")","v":3.7059035964999998},{"$f":"IFERROR(INDEX('Data Annex'!$K$1:$AN$4997,MATCH(U$44&\"|\"&$B60,'Data Annex'!$K$1:$K$4997,0),MATCH(U$45,'Data Annex'!$K$1:$AN$1,0)),\"\")","v":1.6468338360999999},{"$f":"IFERROR(INDEX('Data Annex'!$K$1:$AN$4997,MATCH(V$44&\"|\"&$B60,'Data Annex'!$K$1:$K$4997,0),MATCH(V$45,'Data Annex'!$K$1:$AN$1,0)),\"\")","v":1.6848361681999999},{"$f":"IFERROR(INDEX('Data Annex'!$K$1:$AN$4997,MATCH(W$44&\"|\"&$B60,'Data Annex'!$K$1:$K$4997,0),MATCH(W$45,'Data Annex'!$K$1:$AN$1,0)),\"\")","v":1.6891699147000001},{"$f":"IFERROR(INDEX('Data Annex'!$K$1:$AN$4997,MATCH(X$44&\"|\"&$B60,'Data Annex'!$K$1:$K$4997,0),MATCH(X$45,'Data Annex'!$K$1:$AN$1,0)),\"\")","v":1.5513967846000001},{"$f":"IFERROR(INDEX('Data Annex'!$K$1:$AN$4997,MATCH(Y$44&\"|\"&$B60,'Data Annex'!$K$1:$K$4997,0),MATCH(Y$45,'Data Annex'!$K$1:$AN$1,0)),\"\")","v":0.72012577740000006},{"$f":"IFERROR(INDEX('Data Annex'!$K$1:$AN$4997,MATCH(Z$44&\"|\"&$B60,'Data Annex'!$K$1:$K$4997,0),MATCH(Z$45,'Data Annex'!$K$1:$AN$1,0)),\"\")","v":0.62427052699999996},{"$f":"IFERROR(INDEX('Data Annex'!$K$1:$AN$4997,MATCH(AA$44&\"|\"&$B60,'Data Annex'!$K$1:$K$4997,0),MATCH(AA$45,'Data Annex'!$K$1:$AN$1,0)),\"\")","v":0.73575416890000001},{"$f":"IFERROR(INDEX('Data Annex'!$K$1:$AN$4997,MATCH(AB$44&\"|\"&$B60,'Data Annex'!$K$1:$K$4997,0),MATCH(AB$45,'Data Annex'!$K$1:$AN$1,0)),\"\")","v":0.66849638199999994}]
[11,"FR",null,"FR",{"$f":"IFERROR(INDEX('Data Annex'!$K$1:$AN$4997,MATCH(E$44&\"|\"&$B61,'Data Annex'!$K$1:$K$4997,0),MATCH(E$45,'Data Annex'!$K$1:$AN$1,0)),\"\")","v":120.81436005},{"$f":"IFERROR(INDEX('Data Annex'!$K$1:$AN$4997,MATCH(F$44&\"|\"&$B61,'Data Annex'!$K$1:$K$4997,0),MATCH(F$45,'Data Annex'!$K$1:$AN$1,0)),\"\")","v":126.5627042},{"$f":"IFERROR(INDEX('Data Annex'!$K$1:$AN$4997,MATCH(G$44&\"|\"&$B61,'Data Annex'!$K$1:$K$4997,0),MATCH(G$45,'Data Annex'!$K$1:$AN$1,0)),\"\")","v":125.39020782},{"$f":"IFERROR(INDEX('Data Annex'!$K$1:$AN$4997,MATCH(H$44&\"|\"&$B61,'Data Annex'!$K$1:$K$4997,0),MATCH(H$45,'Data Annex'!$K$1:$AN$1,0)),\"\")","v":119.26254166},{"$f":"IFERROR(INDEX('Data Annex'!$K$1:$AN$4997,MATCH(I$44&\"|\"&$B61,'Data Annex'!$K$1:$K$4997,0),MATCH(I$45,'Data Annex'!$K$1:$AN$1,0)),\"\")","v":53.214576672},{"$f":"IFERROR(INDEX('Data Annex'!$K$1:$AN$4997,MATCH(J$44&\"|\"&$B61,'Data Annex'!$K$1:$K$4997,0),MATCH(J$45,'Data Annex'!$K$1:$AN$1,0)),\"\")","v":54.140825632000002},{"$f":"IFERROR(INDEX('Data Annex'!$K$1:$AN$4997,MATCH(K$44&\"|\"&$B61,'Data Annex'!$K$1:$K$4997,0),MATCH(K$45,'Data Annex'!$K$1:$AN$1,0)),\"\")","v":51.655907796000001},{"$f":"IFERROR(INDEX('Data Annex'!$K$1:$AN$4997,MATCH(L$44&\"|\"&$B61,'Data Annex'!$K$1:$K$4997,0),MATCH(L$45,'Data Annex'!$K$1:$AN$1,0)),\"\")","v":49.252661363000001},{"$f":"IFERROR(INDEX('Data Annex'!$K$1:$AN$4997,MATCH(M$44&\"|\"&$B61,'Data Annex'!$K$1:$K$4997,0),MATCH(M$45,'Data Annex'!$K$1:$AN$1,0)),\"\")","v":18.057249951999999},{"$f":"IFERROR(INDEX('Data Annex'!$K$1:$AN$4997,MATCH(N$44&\"|\"&$B61,'Data Annex'!$K$1:$K$4997,0),MATCH(N$45,'Data Annex'!$K$1:$AN$1,0)),\"\")","v":16.849207663000001},{"$f":"IFERROR(INDEX('Data Annex'!$K$1:$AN$4997,MATCH(O$44&\"|\"&$B61,'Data Annex'!$K$1:$K$4997,0),MATCH(O$45,'Data Annex'!$K$1:$AN$1,0)),\"\")","v":16.175025806000001},{"$f":"IFERROR(INDEX('Data Annex'!$K$1:$AN$4997,MATCH(P$44&\"|\"&$B61,'Data Annex'!$K$1:$K$4997,0),MATCH(P$45,'Data Annex'!$K$1:$AN$1,0)),\"\")","v":15.287086585000001},{"$f":"IFERROR(INDEX('Data Annex'!$K$1:$AN$4997,MATCH(Q$44&\"|\"&$B61,'Data Annex'!$K$1:$K$4997,0),MATCH(Q$45,'Data Annex'!$K$1:$AN$1,0)),\"\")","v":61.565593020000001},{"$f":"IFERROR(INDEX('Data Annex'!$K$1:$AN$4997,MATCH(R$44&\"|\"&$B61,'Data Annex'!$K$1:$K$4997,0),MATCH(R$45,'Data Annex'!$K$1:$AN$1,0)),\"\")","v":66.439259414000006},{"$f":"IFERROR(INDEX('Data Annex'!$K$1:$AN$4997,MATCH(S$44&\"|\"&$B61,'Data Annex'!$K$1:$K$4997,0),MATCH(S$45,'Data Annex'!$K$1:$AN$1,0)),\"\")","v":67.380427604000005},{"$f":"IFERROR(INDEX('Data Annex'!$K$1:$AN$4997,MATCH(T$44&\"|\"&$B61,'Data Annex'!$K$1:$K$4997,0),MATCH(T$45,'Data Annex'!$K$1:$AN$1,0)),\"\")","v":64.659532366999997},{"$f":"IFERROR(INDEX('Data Annex'!$K$1:$AN$4997,MATCH(U$44&\"|\"&$B61,'Data Annex'!$K$1:$K$4997,0),MATCH(U$45,'Data Annex'!$K$1:$AN$1,0)),\"\")","v":32.485802733},{"$f":"IFERROR(INDEX('Data Annex'!$K$1:$AN$4997,MATCH(V$44&\"|\"&$B61,'Data Annex'!$K$1:$K$4997,0),MATCH(V$45,'Data Annex'!$K$1:$AN$1,0)),\"\")","v":34.886373966000001},{"$f":"IFERROR(INDEX('Data Annex'!$K$1:$AN$4997,MATCH(W$44&\"|\"&$B61,'Data Annex'!$K$1:$K$4997,0),MATCH(W$45,'Data Annex'!$K$1:$AN$1,0)),\"\")","v":34.203633597},{"$f":"IFERROR(INDEX('Data Annex'!$K$1:$AN$4997,MATCH(X$44&\"|\"&$B61,'Data Annex'!$K$1:$K$4997,0),MATCH(X$45,'Data Annex'!$K$1:$AN$1,0)),\"\")","v":33.043760677000002},{"$f":"IFERROR(INDEX('Data Annex'!$K$1:$AN$4997,MATCH(Y$44&\"|\"&$B61,'Data Annex'!$K$1:$K$4997,0),MATCH(Y$45,'Data Annex'!$K$1:$AN$1,0)),\"\")","v":7.2951085359999999},{"$f":"IFERROR(INDEX('Data Annex'!$K$1:$AN$4997,MATCH(Z$44&\"|\"&$B61,'Data Annex'!$K$1:$K$4997,0),MATCH(Z$45,'Data Annex'!$K$1:$AN$1,0)),\"\")","v":7.4261926208000002},{"$f":"IFERROR(INDEX('Data Annex'!$K$1:$AN$4997,MATCH(AA$44&\"|\"&$B61,'Data Annex'!$K$1:$K$4997,0),MATCH(AA$45,'Data Annex'!$K$1:$AN$1,0)),\"\")","v":7.1395051748},{"$f":"IFERROR(INDEX('Data Annex'!$K$1:$AN$4997,MATCH(AB$44&\"|\"&$B61,'Data Annex'!$K$1:$K$4997,0),MATCH(AB$45,'Data Annex'!$K$1:$AN$1,0)),\"\")","v":7.6398279001000002}]
[13,"GR",null,"GR",{"$f":"IFERROR(INDEX('Data Annex'!$K$1:$AN$4997,MATCH(E$44&\"|\"&$B62,'Data Annex'!$K$1:$K$4997,0),MATCH(E$45,'Data Annex'!$K$1:$AN$1,0)),\"\")","v":69.460576062000001},{"$f":"IFERROR(INDEX('Data Annex'!$K$1:$AN$4997,MATCH(F$44&\"|\"&$B62,'Data Annex'!$K$1:$K$4997,0),MATCH(F$45,'Data Annex'!$K$1:$AN$1,0)),\"\")","v":61.336559587000004},{"$f":"IFERROR(INDEX('Data Annex'!$K$1:$AN$4997,MATCH(G$44&\"|\"&$B62,'Data Annex'!$K$1:$K$4997,0),MATCH(G$45,'Data Annex'!$K$1:$AN$1,0)),\"\")","v":60.228632292},{"$f":"IFERROR(INDEX('Data Annex'!$K$1:$AN$4997,MATCH(H$44&\"|\"&$B62,'Data Annex'!$K$1:$K$4997,0),MATCH(H$45,'Data Annex'!$K$1:$AN$1,0)),\"\")","v":53.684300438000001},{"$f":"IFERROR(INDEX('Data Annex'!$K$1:$AN$4997,MATCH(I$44&\"|\"&$B62,'Data Annex'!$K$1:$K$4997,0),MATCH(I$45,'Data Annex'!$K$1:$AN$1,0)),\"\")","v":33.928467775999998},{"$f":"IFERROR(INDEX('Data Annex'!$K$1:$AN$4997,MATCH(J$44&\"|\"&$B62,'Data Annex'!$K$1:$K$4997,0),MATCH(J$45,'Data Annex'!$K$1:$AN$1,0)),\"\")","v":31.143853823000001},{"$f":"IFERROR(INDEX('Data Annex'!$K$1:$AN$4997,MATCH(K$44&\"|\"&$B62,'Data Annex'!$K$1:$K$4997,0),MATCH(K$45,'Data Annex'!$K$1:$AN$1,0)),\"\")","v":30.570691768},{"$f":"IFERROR(INDEX('Data Annex'!$K$1:$AN$4997,MATCH(L$44&\"|\"&$B62,'Data Annex'!$K$1:$K$4997,0),MATCH(L$45,'Data Annex'!$K$1:$AN$1,0)),\"\")","v":25.650236511999999},{"$f":"IFERROR(INDEX('Data Annex'!$K$1:$AN$4997,MATCH(M$44&\"|\"&$B62,'Data Annex'!$K$1:$K$4997,0),MATCH(M$45,'Data Annex'!$K$1:$AN$1,0)),\"\")","v":24.317766711000001},{"$f":"IFERROR(INDEX('Data Annex'!$K$1:$AN$4997,MATCH(N$44&\"|\"&$B62,'Data Annex'!$K$1:$K$4997,0),MATCH(N$45,'Data Annex'!$K$1:$AN$1,0)),\"\")","v":22.558267779000001},{"$f":"IFERROR(INDEX('Data Annex'!$K$1:$AN$4997,MATCH(O$44&\"|\"&$B62,'Data Annex'!$K$1:$K$4997,0),MATCH(O$45,'Data Annex'!$K$1:$AN$1,0)),\"\")","v":22.079961459},{"$f":"IFERROR(INDEX('Data Annex'!$K$1:$AN$4997,MATCH(P$44&\"|\"&$B62,'Data Annex'!$K$1:$K$4997,0),MATCH(P$45,'Data Annex'!$K$1:$AN$1,0)),\"\")","v":17.619793978000001},{"$f":"IFERROR(INDEX('Data Annex'!$K$1:$AN$4997,MATCH(Q$44&\"|\"&$B62,'Data Annex'!$K$1:$K$4997,0),MATCH(Q$45,'Data Annex'!$K$1:$AN$1,0)),\"\")","v":33.474669927999997},{"$f":"IFERROR(INDEX('Data Annex'!$K$1:$AN$4997,MATCH(R$44&\"|\"&$B62,'Data Annex'!$K$1:$K$4997,0),MATCH(R$45,'Data Annex'!$K$1:$AN$1,0)),\"\")","v":28.285744781999998},{"$f":"IFERROR(INDEX('Data Annex'!$K$1:$AN$4997,MATCH(S$44&\"|\"&$B62,'Data Annex'!$K$1:$K$4997,0),MATCH(S$45,'Data Annex'!$K$1:$AN$1,0)),\"\")","v":27.803799871999999},{"$f":"IFERROR(INDEX('Data Annex'!$K$1:$AN$4997,MATCH(T$44&\"|\"&$B62,'Data Annex'!$K$1:$K$4997,0),MATCH(T$45,'Data Annex'!$K$1:$AN$1,0)),\"\")","v":26.276951917000002},{"$f":"IFERROR(INDEX('Data Annex'!$K$1:$AN$4997,MATCH(U$44&\"|\"&$B62,'Data Annex'!$K$1:$K$4997,0),MATCH(U$45,'Data Annex'!$K$1:$AN$1,0)),\"\")","v":24.480416923},{"$f":"IFERROR(INDEX('Data Annex'!$K$1:$AN$4997,MATCH(V$44&\"|\"&$B62,'Data Annex'!$K$1:$K$4997,0),MATCH(V$45,'Data Annex'!$K$1:$AN$1,0)),\"\")","v":20.553553551},{"$f":"IFERROR(INDEX('Data Annex'!$K$1:$AN$4997,MATCH(W$44&\"|\"&$B62,'Data Annex'!$K$1:$K$4997,0),MATCH(W$45,'Data Annex'!$K$1:$AN$1,0)),\"\")","v":20.290416365999999},{"$f":"IFERROR(INDEX('Data Annex'!$K$1:$AN$4997,MATCH(X$44&\"|\"&$B62,'Data Annex'!$K$1:$K$4997,0),MATCH(X$45,'Data Annex'!$K$1:$AN$1,0)),\"\")","v":19.954525517},{"$f":"IFERROR(INDEX('Data Annex'!$K$1:$AN$4997,MATCH(Y$44&\"|\"&$B62,'Data Annex'!$K$1:$K$4997,0),MATCH(Y$45,'Data Annex'!$K$1:$AN$1,0)),\"\")","v":17.302660753000001},{"$f":"IFERROR(INDEX('Data Annex'!$K$1:$AN$4997,MATCH(Z$44&\"|\"&$B62,'Data Annex'!$K$1:$K$4997,0),MATCH(Z$45,'Data Annex'!$K$1:$AN$1,0)),\"\")","v":15.015127080999999},{"$f":"IFERROR(INDEX('Data Annex'!$K$1:$AN$4997,MATCH(AA$44&\"|\"&$B62,'Data Annex'!$K$1:$K$4997,0),MATCH(AA$45,'Data Annex'!$K$1:$AN$1,0)),\"\")","v":14.642008222999999},{"$f":"IFERROR(INDEX('Data Annex'!$K$1:$AN$4997,MATCH(AB$44&\"|\"&$B62,'Data Annex'!$K$1:$K$4997,0),MATCH(AB$45,'Data Annex'!$K$1:$AN$1,0)),\"\")","v":14.324945359999999}]
[14,"HR",null,"HR",{"$f":"IFERROR(INDEX('Data Annex'!$K$1:$AN$4997,MATCH(E$44&\"|\"&$B63,'Data Annex'!$K$1:$K$4997,0),MATCH(E$45,'Data Annex'!$K$1:$AN$1,0)),\"\")","v":1.6133952021},{"$f":"IFERROR(INDEX('Data Annex'!$K$1:$AN$4997,MATCH(F$44&\"|\"&$B63,'Data Annex'!$K$1:$K$4997,0),MATCH(F$45,'Data Annex'!$K$1:$AN$1,0)),\"\")","v":1.7223684201},{"$f":"IFERROR(INDEX('Data Annex'!$K$1:$AN$4997,MATCH(G$44&\"|\"&$B63,'Data Annex'!$K$1:$K$4997,0),MATCH(G$45,'Data Annex'!$K$1:$AN$1,0)),\"\")","v":1.7933005329},{"$f":"IFERROR(INDEX('Data Annex'!$K$1:$AN$4997,MATCH(H$44&\"|\"&$B63,'Data Annex'!$K$1:$K$4997,0),MATCH(H$45,'Data Annex'!$K$1:$AN$1,0)),\"\")","v":1.7945944410000001},{"$f":"IFERROR(INDEX('Data Annex'!$K$1:$AN$4997,MATCH(I$44&\"|\"&$B63,'Data Annex'!$K$1:$K$4997,0),MATCH(I$45,'Data Annex'!$K$1:$AN$1,0)),\"\")","v":0.61073517259999999},{"$f":"IFERROR(INDEX('Data Annex'!$K$1:$AN$4997,MATCH(J$44&\"|\"&$B63,'Data Annex'!$K$1:$K$4997,0),MATCH(J$45,'Data Annex'!$K$1:$AN$1,0)),\"\")","v":0.72449564430000002},{"$f":"IFERROR(INDEX('Data Annex'!$K$1:$AN$4997,MATCH(K$44&\"|\"&$B63,'Data Annex'!$K$1:$K$4997,0),MATCH(K$45,'Data Annex'!$K$1:$AN$1,0)),\"\")","v":0.77464832920000004},{"$f":"IFERROR(INDEX('Data Annex'!$K$1:$AN$4997,MATCH(L$44&\"|\"&$B63,'Data Annex'!$K$1:$K$4997,0),MATCH(L$45,'Data Annex'!$K$1:$AN$1,0)),\"\")","v":0.80790087269999999},{"$f":"IFERROR(INDEX('Data Annex'!$K$1:$AN$4997,MATCH(M$44&\"|\"&$B63,'Data Annex'!$K$1:$K$4997,0),MATCH(M$45,'Data Annex'!$K$1:$AN$1,0)),\"\")","v":0.12028057170000001},{"$f":"IFERROR(INDEX('Data Annex'!$K$1:$AN$4997,MATCH(N$44&\"|\"&$B63,'Data Annex'!$K$1:$K$4997,0),MATCH(N$45,'Data Annex'!$K$1:$AN$1,0)),\"\")","v":0.1939632181},{"$f":"IFERROR(INDEX('Data Annex'!$K$1:$AN$4997,MATCH(O$44&\"|\"&$B63,'Data Annex'!$K$1:$K$4997,0),MATCH(O$45,'Data Annex'!$K$1:$AN$1,0)),\"\")","v":0.202279666},{"$f":"IFERROR(INDEX('Data Annex'!$K$1:$AN$4997,MATCH(P$44&\"|\"&$B63,'Data Annex'!$K$1:$K$4997,0),MATCH(P$45,'Data Annex'!$K$1:$AN$1,0)),\"\")","v":0.20094031079999999},{"$f":"IFERROR(INDEX('Data Annex'!$K$1:$AN$4997,MATCH(Q$44&\"|\"&$B63,'Data Annex'!$K$1:$K$4997,0),MATCH(Q$45,'Data Annex'!$K$1:$AN$1,0)),\"\")","v":0.97955747540000004},{"$f":"IFERROR(INDEX('Data Annex'!$K$1:$AN$4997,MATCH(R$44&\"|\"&$B63,'Data Annex'!$K$1:$K$4997,0),MATCH(R$45,'Data Annex'!$K$1:$AN$1,0)),\"\")","v":0.97518060510000004},{"$f":"IFERROR(INDEX('Data Annex'!$K$1:$AN$4997,MATCH(S$44&\"|\"&$B63,'Data Annex'!$K$1:$K$4997,0),MATCH(S$45,'Data Annex'!$K$1:$AN$1,0)),\"\")","v":0.99650379349999996},{"$f":"IFERROR(INDEX('Data Annex'!$K$1:$AN$4997,MATCH(T$44&\"|\"&$B63,'Data Annex'!$K$1:$K$4997,0),MATCH(T$45,'Data Annex'!$K$1:$AN$1,0)),\"\")","v":0.96548241820000003},{"$f":"IFERROR(INDEX('Data Annex'!$K$1:$AN$4997,MATCH(U$44&\"|\"&$B63,'Data Annex'!$K$1:$K$4997,0),MATCH(U$45,'Data Annex'!$K$1:$AN$1,0)),\"\")","v":0.55217294139999995},{"$f":"IFERROR(INDEX('Data Annex'!$K$1:$AN$4997,MATCH(V$44&\"|\"&$B63,'Data Annex'!$K$1:$K$4997,0),MATCH(V$45,'Data Annex'!$K$1:$AN$1,0)),\"\")","v":0.5720490989},{"$f":"IFERROR(INDEX('Data Annex'!$K$1:$AN$4997,MATCH(W$44&\"|\"&$B63,'Data Annex'!$K$1:$K$4997,0),MATCH(W$45,'Data Annex'!$K$1:$AN$1,0)),\"\")","v":0.65352503230000003},{"$f":"IFERROR(INDEX('Data Annex'!$K$1:$AN$4997,MATCH(X$44&\"|\"&$B63,'Data Annex'!$K$1:$K$4997,0),MATCH(X$45,'Data Annex'!$K$1:$AN$1,0)),\"\")","v":0.58502666280000004},{"$f":"IFERROR(INDEX('Data Annex'!$K$1:$AN$4997,MATCH(Y$44&\"|\"&$B63,'Data Annex'!$K$1:$K$4997,0),MATCH(Y$45,'Data Annex'!$K$1:$AN$1,0)),\"\")","v":0.35511668530000001},{"$f":"IFERROR(INDEX('Data Annex'!$K$1:$AN$4997,MATCH(Z$44&\"|\"&$B63,'Data Annex'!$K$1:$K$4997,0),MATCH(Z$45,'Data Annex'!$K$1:$AN$1,0)),\"\")","v":0.45989748920000001},{"$f":"IFERROR(INDEX('Data Annex'!$K$1:$AN$4997,MATCH(AA$44&\"|\"&$B63,'Data Annex'!$K$1:$K$4997,0),MATCH(AA$45,'Data Annex'!$K$1:$AN$1,0)),\"\")","v":0.45873788739999999},{"$f":"IFERROR(INDEX('Data Annex'!$K$1:$AN$4997,MATCH(AB$44&\"|\"&$B63,'Data Annex'!$K$1:$K$4997,0),MATCH(AB$45,'Data Annex'!$K$1:$AN$1,0)),\"\")","v":0.44901288140000001}]
[15,"HU",null,"HU",{"$f":"IFERROR(INDEX('Data Annex'!$K$1:$AN$4997,MATCH(E$44&\"|\"&$B64,'Data Annex'!$K$1:$K$4997,0),MATCH(E$45,'Data Annex'!$K$1:$AN$1,0)),\"\")","v":2.5909449771999999},{"$f":"IFERROR(INDEX('Data Annex'!$K$1:$AN$4997,MATCH(F$44&\"|\"&$B64,'Data Annex'!$K$1:$K$4997,0),MATCH(F$45,'Data Annex'!$K$1:$AN$1,0)),\"\")","v":2.6768928882999998},{"$f":"IFERROR(INDEX('Data Annex'!$K$1:$AN$4997,MATCH(G$44&\"|\"&$B64,'Data Annex'!$K$1:$K$4997,0),MATCH(G$45,'Data Annex'!$K$1:$AN$1,0)),\"\")","v":2.5909289735000001},{"$f":"IFERROR(INDEX('Data Annex'!$K$1:$AN$4997,MATCH(H$44&\"|\"&$B64,'Data Annex'!$K$1:$K$4997,0),MATCH(H$45,'Data Annex'!$K$1:$AN$1,0)),\"\")","v":2.6251924979000001},{"$f":"IFERROR(INDEX('Data Annex'!$K$1:$AN$4997,MATCH(I$44&\"|\"&$B64,'Data Annex'!$K$1:$K$4997,0),MATCH(I$45,'Data Annex'!$K$1:$AN$1,0)),\"\")","v":1.6573563857},{"$f":"IFERROR(INDEX('Data Annex'!$K$1:$AN$4997,MATCH(J$44&\"|\"&$B64,'Data Annex'!$K$1:$K$4997,0),MATCH(J$45,'Data Annex'!$K$1:$AN$1,0)),\"\")","v":1.817330321},{"$f":"IFERROR(INDEX('Data Annex'!$K$1:$AN$4997,MATCH(K$44&\"|\"&$B64,'Data Annex'!$K$1:$K$4997,0),MATCH(K$45,'Data Annex'!$K$1:$AN$1,0)),\"\")","v":1.6941944439000001},{"$f":"IFERROR(INDEX('Data Annex'!$K$1:$AN$4997,MATCH(L$44&\"|\"&$B64,'Data Annex'!$K$1:$K$4997,0),MATCH(L$45,'Data Annex'!$K$1:$AN$1,0)),\"\")","v":1.7016284018000001},{"$f":"IFERROR(INDEX('Data Annex'!$K$1:$AN$4997,MATCH(M$44&\"|\"&$B64,'Data Annex'!$K$1:$K$4997,0),MATCH(M$45,'Data Annex'!$K$1:$AN$1,0)),\"\")","v":0.70206180569999999},{"$f":"IFERROR(INDEX('Data Annex'!$K$1:$AN$4997,MATCH(N$44&\"|\"&$B64,'Data Annex'!$K$1:$K$4997,0),MATCH(N$45,'Data Annex'!$K$1:$AN$1,0)),\"\")","v":0.74667845769999996},{"$f":"IFERROR(INDEX('Data Annex'!$K$1:$AN$4997,MATCH(O$44&\"|\"&$B64,'Data Annex'!$K$1:$K$4997,0),MATCH(O$45,'Data Annex'!$K$1:$AN$1,0)),\"\")","v":0.66936844900000003},{"$f":"IFERROR(INDEX('Data Annex'!$K$1:$AN$4997,MATCH(P$44&\"|\"&$B64,'Data Annex'!$K$1:$K$4997,0),MATCH(P$45,'Data Annex'!$K$1:$AN$1,0)),\"\")","v":0.65782034290000002},{"$f":"IFERROR(INDEX('Data Annex'!$K$1:$AN$4997,MATCH(Q$44&\"|\"&$B64,'Data Annex'!$K$1:$K$4997,0),MATCH(Q$45,'Data Annex'!$K$1:$AN$1,0)),\"\")","v":0.91379949009999994},{"$f":"IFERROR(INDEX('Data Annex'!$K$1:$AN$4997,MATCH(R$44&\"|\"&$B64,'Data Annex'!$K$1:$K$4997,0),MATCH(R$45,'Data Annex'!$K$1:$AN$1,0)),\"\")","v":0.83923292289999996},{"$f":"IFERROR(INDEX('Data Annex'!$K$1:$AN$4997,MATCH(S$44&\"|\"&$B64,'Data Annex'!$K$1:$K$4997,0),MATCH(S$45,'Data Annex'!$K$1:$AN$1,0)),\"\")","v":0.87802966630000001},{"$f":"IFERROR(INDEX('Data Annex'!$K$1:$AN$4997,MATCH(T$44&\"|\"&$B64,'Data Annex'!$K$1:$K$4997,0),MATCH(T$45,'Data Annex'!$K$1:$AN$1,0)),\"\")","v":0.87019974119999999},{"$f":"IFERROR(INDEX('Data Annex'!$K$1:$AN$4997,MATCH(U$44&\"|\"&$B64,'Data Annex'!$K$1:$K$4997,0),MATCH(U$45,'Data Annex'!$K$1:$AN$1,0)),\"\")","v":0.38296495739999997},{"$f":"IFERROR(INDEX('Data Annex'!$K$1:$AN$4997,MATCH(V$44&\"|\"&$B64,'Data Annex'!$K$1:$K$4997,0),MATCH(V$45,'Data Annex'!$K$1:$AN$1,0)),\"\")","v":0.35144404579999999},{"$f":"IFERROR(INDEX('Data Annex'!$K$1:$AN$4997,MATCH(W$44&\"|\"&$B64,'Data Annex'!$K$1:$K$4997,0),MATCH(W$45,'Data Annex'!$K$1:$AN$1,0)),\"\")","v":0.4064110252},{"$f":"IFERROR(INDEX('Data Annex'!$K$1:$AN$4997,MATCH(X$44&\"|\"&$B64,'Data Annex'!$K$1:$K$4997,0),MATCH(X$45,'Data Annex'!$K$1:$AN$1,0)),\"\")","v":0.43314450580000002},{"$f":"IFERROR(INDEX('Data Annex'!$K$1:$AN$4997,MATCH(Y$44&\"|\"&$B64,'Data Annex'!$K$1:$K$4997,0),MATCH(Y$45,'Data Annex'!$K$1:$AN$1,0)),\"\")","v":0.49110623549999999},{"$f":"IFERROR(INDEX('Data Annex'!$K$1:$AN$4997,MATCH(Z$44&\"|\"&$B64,'Data Annex'!$K$1:$K$4997,0),MATCH(Z$45,'Data Annex'!$K$1:$AN$1,0)),\"\")","v":0.43477471620000002},{"$f":"IFERROR(INDEX('Data Annex'!$K$1:$AN$4997,MATCH(AA$44&\"|\"&$B64,'Data Annex'!$K$1:$K$4997,0),MATCH(AA$45,'Data Annex'!$K$1:$AN$1,0)),\"\")","v":0.46115112879999998},{"$f":"IFERROR(INDEX('Data Annex'!$K$1:$AN$4997,MATCH(AB$44&\"|\"&$B64,'Data Annex'!$K$1:$K$4997,0),MATCH(AB$45,'Data Annex'!$K$1:$AN$1,0)),\"\")","v":0.42293978879999999}]
[16,"IE",null,"IE",{"$f":"IFERROR(INDEX('Data Annex'!$K$1:$AN$4997,MATCH(E$44&\"|\"&$B65,'Data Annex'!$K$1:$K$4997,0),MATCH(E$45,'Data Annex'!$K$1:$AN$1,0)),\"\")","v":7.1456054273999996},{"$f":"IFERROR(INDEX('Data Annex'!$K$1:$AN$4997,MATCH(F$44&\"|\"&$B65,'Data Annex'!$K$1:$K$4997,0),MATCH(F$45,'Data Annex'!$K$1:$AN$1,0)),\"\")","v":8.6229609929999995},{"$f":"IFERROR(INDEX('Data Annex'!$K$1:$AN$4997,MATCH(G$44&\"|\"&$B65,'Data Annex'!$K$1:$K$4997,0),MATCH(G$45,'Data Annex'!$K$1:$AN$1,0)),\"\")","v":8.8317337244999994},{"$f":"IFERROR(INDEX('Data Annex'!$K$1:$AN$4997,MATCH(H$44&\"|\"&$B65,'Data Annex'!$K$1:$K$4997,0),MATCH(H$45,'Data Annex'!$K$1:$AN$1,0)),\"\")","v":9.344441346},{"$f":"IFERROR(INDEX('Data Annex'!$K$1:$AN$4997,MATCH(I$44&\"|\"&$B65,'Data Annex'!$K$1:$K$4997,0),MATCH(I$45,'Data Annex'!$K$1:$AN$1,0)),\"\")","v":4.6639933713000001},{"$f":"IFERROR(INDEX('Data Annex'!$K$1:$AN$4997,MATCH(J$44&\"|\"&$B65,'Data Annex'!$K$1:$K$4997,0),MATCH(J$45,'Data Annex'!$K$1:$AN$1,0)),\"\")","v":5.0182401555},{"$f":"IFERROR(INDEX('Data Annex'!$K$1:$AN$4997,MATCH(K$44&\"|\"&$B65,'Data Annex'!$K$1:$K$4997,0),MATCH(K$45,'Data Annex'!$K$1:$AN$1,0)),\"\")","v":5.0023016754},{"$f":"IFERROR(INDEX('Data Annex'!$K$1:$AN$4997,MATCH(L$44&\"|\"&$B65,'Data Annex'!$K$1:$K$4997,0),MATCH(L$45,'Data Annex'!$K$1:$AN$1,0)),\"\")","v":4.9207644391000001},{"$f":"IFERROR(INDEX('Data Annex'!$K$1:$AN$4997,MATCH(M$44&\"|\"&$B65,'Data Annex'!$K$1:$K$4997,0),MATCH(M$45,'Data Annex'!$K$1:$AN$1,0)),\"\")","v":4.0678400102000003},{"$f":"IFERROR(INDEX('Data Annex'!$K$1:$AN$4997,MATCH(N$44&\"|\"&$B65,'Data Annex'!$K$1:$K$4997,0),MATCH(N$45,'Data Annex'!$K$1:$AN$1,0)),\"\")","v":4.4064038120999998},{"$f":"IFERROR(INDEX('Data Annex'!$K$1:$AN$4997,MATCH(O$44&\"|\"&$B65,'Data Annex'!$K$1:$K$4997,0),MATCH(O$45,'Data Annex'!$K$1:$AN$1,0)),\"\")","v":4.3773916013000003},{"$f":"IFERROR(INDEX('Data Annex'!$K$1:$AN$4997,MATCH(P$44&\"|\"&$B65,'Data Annex'!$K$1:$K$4997,0),MATCH(P$45,'Data Annex'!$K$1:$AN$1,0)),\"\")","v":4.2931311600999997},{"$f":"IFERROR(INDEX('Data Annex'!$K$1:$AN$4997,MATCH(Q$44&\"|\"&$B65,'Data Annex'!$K$1:$K$4997,0),MATCH(Q$45,'Data Annex'!$K$1:$AN$1,0)),\"\")","v":2.4699771561000001},{"$f":"IFERROR(INDEX('Data Annex'!$K$1:$AN$4997,MATCH(R$44&\"|\"&$B65,'Data Annex'!$K$1:$K$4997,0),MATCH(R$45,'Data Annex'!$K$1:$AN$1,0)),\"\")","v":3.5892457431999998},{"$f":"IFERROR(INDEX('Data Annex'!$K$1:$AN$4997,MATCH(S$44&\"|\"&$B65,'Data Annex'!$K$1:$K$4997,0),MATCH(S$45,'Data Annex'!$K$1:$AN$1,0)),\"\")","v":3.8127304708},{"$f":"IFERROR(INDEX('Data Annex'!$K$1:$AN$4997,MATCH(T$44&\"|\"&$B65,'Data Annex'!$K$1:$K$4997,0),MATCH(T$45,'Data Annex'!$K$1:$AN$1,0)),\"\")","v":4.402086444},{"$f":"IFERROR(INDEX('Data Annex'!$K$1:$AN$4997,MATCH(U$44&\"|\"&$B65,'Data Annex'!$K$1:$K$4997,0),MATCH(U$45,'Data Annex'!$K$1:$AN$1,0)),\"\")","v":1.6957569933000001},{"$f":"IFERROR(INDEX('Data Annex'!$K$1:$AN$4997,MATCH(V$44&\"|\"&$B65,'Data Annex'!$K$1:$K$4997,0),MATCH(V$45,'Data Annex'!$K$1:$AN$1,0)),\"\")","v":2.3423807907},{"$f":"IFERROR(INDEX('Data Annex'!$K$1:$AN$4997,MATCH(W$44&\"|\"&$B65,'Data Annex'!$K$1:$K$4997,0),MATCH(W$45,'Data Annex'!$K$1:$AN$1,0)),\"\")","v":2.4759894455999998},{"$f":"IFERROR(INDEX('Data Annex'!$K$1:$AN$4997,MATCH(X$44&\"|\"&$B65,'Data Annex'!$K$1:$K$4997,0),MATCH(X$45,'Data Annex'!$K$1:$AN$1,0)),\"\")","v":2.7291819722000001},{"$f":"IFERROR(INDEX('Data Annex'!$K$1:$AN$4997,MATCH(Y$44&\"|\"&$B65,'Data Annex'!$K$1:$K$4997,0),MATCH(Y$45,'Data Annex'!$K$1:$AN$1,0)),\"\")","v":0.95991869379999994},{"$f":"IFERROR(INDEX('Data Annex'!$K$1:$AN$4997,MATCH(Z$44&\"|\"&$B65,'Data Annex'!$K$1:$K$4997,0),MATCH(Z$45,'Data Annex'!$K$1:$AN$1,0)),\"\")","v":1.3623649444999999},{"$f":"IFERROR(INDEX('Data Annex'!$K$1:$AN$4997,MATCH(AA$44&\"|\"&$B65,'Data Annex'!$K$1:$K$4997,0),MATCH(AA$45,'Data Annex'!$K$1:$AN$1,0)),\"\")","v":1.7548396136},{"$f":"IFERROR(INDEX('Data Annex'!$K$1:$AN$4997,MATCH(AB$44&\"|\"&$B65,'Data Annex'!$K$1:$K$4997,0),MATCH(AB$45,'Data Annex'!$K$1:$AN$1,0)),\"\")","v":2.1673601217999998}]
[17,"IS",null,"IS",{"$f":"IFERROR(INDEX('Data Annex'!$K$1:$AN$4997,MATCH(E$44&\"|\"&$B66,'Data Annex'!$K$1:$K$4997,0),MATCH(E$45,'Data Annex'!$K$1:$AN$1,0)),\"\")","v":0.55952387299999995},{"$f":"IFERROR(INDEX('Data Annex'!$K$1:$AN$4997,MATCH(F$44&\"|\"&$B66,'Data Annex'!$K$1:$K$4997,0),MATCH(F$45,'Data Annex'!$K$1:$AN$1,0)),\"\")","v":0.64560006930000002},{"$f":"IFERROR(INDEX('Data Annex'!$K$1:$AN$4997,MATCH(G$44&\"|\"&$B66,'Data Annex'!$K$1:$K$4997,0),MATCH(G$45,'Data Annex'!$K$1:$AN$1,0)),\"\")","v":0.62432310589999995},{"$f":"IFERROR(INDEX('Data Annex'!$K$1:$AN$4997,MATCH(H$44&\"|\"&$B66,'Data Annex'!$K$1:$K$4997,0),MATCH(H$45,'Data Annex'!$K$1:$AN$1,0)),\"\")","v":0.59636426119999997},{"$f":"IFERROR(INDEX('Data Annex'!$K$1:$AN$4997,MATCH(I$44&\"|\"&$B66,'Data Annex'!$K$1:$K$4997,0),MATCH(I$45,'Data Annex'!$K$1:$AN$1,0)),\"\")","v":0.1403998914},{"$f":"IFERROR(INDEX('Data Annex'!$K$1:$AN$4997,MATCH(J$44&\"|\"&$B66,'Data Annex'!$K$1:$K$4997,0),MATCH(J$45,'Data Annex'!$K$1:$AN$1,0)),\"\")","v":0.14773012250000001},{"$f":"IFERROR(INDEX('Data Annex'!$K$1:$AN$4997,MATCH(K$44&\"|\"&$B66,'Data Annex'!$K$1:$K$4997,0),MATCH(K$45,'Data Annex'!$K$1:$AN$1,0)),\"\")","v":0.1313443815},{"$f":"IFERROR(INDEX('Data Annex'!$K$1:$AN$4997,MATCH(L$44&\"|\"&$B66,'Data Annex'!$K$1:$K$4997,0),MATCH(L$45,'Data Annex'!$K$1:$AN$1,0)),\"\")","v":0.11592955369999999},{"$f":"IFERROR(INDEX('Data Annex'!$K$1:$AN$4997,MATCH(M$44&\"|\"&$B66,'Data Annex'!$K$1:$K$4997,0),MATCH(M$45,'Data Annex'!$K$1:$AN$1,0)),\"\")","v":0.1018550592},{"$f":"IFERROR(INDEX('Data Annex'!$K$1:$AN$4997,MATCH(N$44&\"|\"&$B66,'Data Annex'!$K$1:$K$4997,0),MATCH(N$45,'Data Annex'!$K$1:$AN$1,0)),\"\")","v":0.10915323959999999},{"$f":"IFERROR(INDEX('Data Annex'!$K$1:$AN$4997,MATCH(O$44&\"|\"&$B66,'Data Annex'!$K$1:$K$4997,0),MATCH(O$45,'Data Annex'!$K$1:$AN$1,0)),\"\")","v":9.3072650699999995E-2},{"$f":"IFERROR(INDEX('Data Annex'!$K$1:$AN$4997,MATCH(P$44&\"|\"&$B66,'Data Annex'!$K$1:$K$4997,0),MATCH(P$45,'Data Annex'!$K$1:$AN$1,0)),\"\")","v":8.4083315899999997E-2},{"$f":"IFERROR(INDEX('Data Annex'!$K$1:$AN$4997,MATCH(Q$44&\"|\"&$B66,'Data Annex'!$K$1:$K$4997,0),MATCH(Q$45,'Data Annex'!$K$1:$AN$1,0)),\"\")","v":0.41144848049999999},{"$f":"IFERROR(INDEX('Data Annex'!$K$1:$AN$4997,MATCH(R$44&\"|\"&$B66,'Data Annex'!$K$1:$K$4997,0),MATCH(R$45,'Data Annex'!$K$1:$AN$1,0)),\"\")","v":0.46422164199999999},{"$f":"IFERROR(INDEX('Data Annex'!$K$1:$AN$4997,MATCH(S$44&\"|\"&$B66,'Data Annex'!$K$1:$K$4997,0),MATCH(S$45,'Data Annex'!$K$1:$AN$1,0)),\"\")","v":0.4594082068},{"$f":"IFERROR(INDEX('Data Annex'!$K$1:$AN$4997,MATCH(T$44&\"|\"&$B66,'Data Annex'!$K$1:$K$4997,0),MATCH(T$45,'Data Annex'!$K$1:$AN$1,0)),\"\")","v":0.45146346430000001},{"$f":"IFERROR(INDEX('Data Annex'!$K$1:$AN$4997,MATCH(U$44&\"|\"&$B66,'Data Annex'!$K$1:$K$4997,0),MATCH(U$45,'Data Annex'!$K$1:$AN$1,0)),\"\")","v":0.2081261888},{"$f":"IFERROR(INDEX('Data Annex'!$K$1:$AN$4997,MATCH(V$44&\"|\"&$B66,'Data Annex'!$K$1:$K$4997,0),MATCH(V$45,'Data Annex'!$K$1:$AN$1,0)),\"\")","v":0.37970688460000002},{"$f":"IFERROR(INDEX('Data Annex'!$K$1:$AN$4997,MATCH(W$44&\"|\"&$B66,'Data Annex'!$K$1:$K$4997,0),MATCH(W$45,'Data Annex'!$K$1:$AN$1,0)),\"\")","v":0.3836012057},{"$f":"IFERROR(INDEX('Data Annex'!$K$1:$AN$4997,MATCH(X$44&\"|\"&$B66,'Data Annex'!$K$1:$K$4997,0),MATCH(X$45,'Data Annex'!$K$1:$AN$1,0)),\"\")","v":0.38281015860000001},{"$f":"IFERROR(INDEX('Data Annex'!$K$1:$AN$4997,MATCH(Y$44&\"|\"&$B66,'Data Annex'!$K$1:$K$4997,0),MATCH(Y$45,'Data Annex'!$K$1:$AN$1,0)),\"\")","v":0.2089852492},{"$f":"IFERROR(INDEX('Data Annex'!$K$1:$AN$4997,MATCH(Z$44&\"|\"&$B66,'Data Annex'!$K$1:$K$4997,0),MATCH(Z$45,'Data Annex'!$K$1:$AN$1,0)),\"\")","v":0.23952488320000001},{"$f":"IFERROR(INDEX('Data Annex'!$K$1:$AN$4997,MATCH(AA$44&\"|\"&$B66,'Data Annex'!$K$1:$K$4997,0),MATCH(AA$45,'Data Annex'!$K$1:$AN$1,0)),\"\")","v":0.1864851578},{"$f":"IFERROR(INDEX('Data Annex'!$K$1:$AN$4997,MATCH(AB$44&\"|\"&$B66,'Data Annex'!$K$1:$K$4997,0),MATCH(AB$45,'Data Annex'!$K$1:$AN$1,0)),\"\")","v":0.17994066289999999}]
[18,"IT",null,"IT",{"$f":"IFERROR(INDEX('Data Annex'!$K$1:$AN$4997,MATCH(E$44&\"|\"&$B67,'Data Annex'!$K$1:$K$4997,0),MATCH(E$45,'Data Annex'!$K$1:$AN$1,0)),\"\")","v":111.62319395999999},{"$f":"IFERROR(INDEX('Data Annex'!$K$1:$AN$4997,MATCH(F$44&\"|\"&$B67,'Data Annex'!$K$1:$K$4997,0),MATCH(F$45,'Data Annex'!$K$1:$AN$1,0)),\"\")","v":108.40682362},{"$f":"IFERROR(INDEX('Data Annex'!$K$1:$AN$4997,MATCH(G$44&\"|\"&$B67,'Data Annex'!$K$1:$K$4997,0),MATCH(G$45,'Data Annex'!$K$1:$AN$1,0)),\"\")","v":97.962976042999998},{"$f":"IFERROR(INDEX('Data Annex'!$K$1:$AN$4997,MATCH(H$44&\"|\"&$B67,'Data Annex'!$K$1:$K$4997,0),MATCH(H$45,'Data Annex'!$K$1:$AN$1,0)),\"\")","v":76.698126465000001},{"$f":"IFERROR(INDEX('Data Annex'!$K$1:$AN$4997,MATCH(I$44&\"|\"&$B67,'Data Annex'!$K$1:$K$4997,0),MATCH(I$45,'Data Annex'!$K$1:$AN$1,0)),\"\")","v":26.064950551999999},{"$f":"IFERROR(INDEX('Data Annex'!$K$1:$AN$4997,MATCH(J$44&\"|\"&$B67,'Data Annex'!$K$1:$K$4997,0),MATCH(J$45,'Data Annex'!$K$1:$AN$1,0)),\"\")","v":26.314569551999998},{"$f":"IFERROR(INDEX('Data Annex'!$K$1:$AN$4997,MATCH(K$44&\"|\"&$B67,'Data Annex'!$K$1:$K$4997,0),MATCH(K$45,'Data Annex'!$K$1:$AN$1,0)),\"\")","v":23.476280177},{"$f":"IFERROR(INDEX('Data Annex'!$K$1:$AN$4997,MATCH(L$44&\"|\"&$B67,'Data Annex'!$K$1:$K$4997,0),MATCH(L$45,'Data Annex'!$K$1:$AN$1,0)),\"\")","v":18.949466058999999},{"$f":"IFERROR(INDEX('Data Annex'!$K$1:$AN$4997,MATCH(M$44&\"|\"&$B67,'Data Annex'!$K$1:$K$4997,0),MATCH(M$45,'Data Annex'!$K$1:$AN$1,0)),\"\")","v":12.185292429},{"$f":"IFERROR(INDEX('Data Annex'!$K$1:$AN$4997,MATCH(N$44&\"|\"&$B67,'Data Annex'!$K$1:$K$4997,0),MATCH(N$45,'Data Annex'!$K$1:$AN$1,0)),\"\")","v":13.019780731000001},{"$f":"IFERROR(INDEX('Data Annex'!$K$1:$AN$4997,MATCH(O$44&\"|\"&$B67,'Data Annex'!$K$1:$K$4997,0),MATCH(O$45,'Data Annex'!$K$1:$AN$1,0)),\"\")","v":11.733454542},{"$f":"IFERROR(INDEX('Data Annex'!$K$1:$AN$4997,MATCH(P$44&\"|\"&$B67,'Data Annex'!$K$1:$K$4997,0),MATCH(P$45,'Data Annex'!$K$1:$AN$1,0)),\"\")","v":9.466365176},{"$f":"IFERROR(INDEX('Data Annex'!$K$1:$AN$4997,MATCH(Q$44&\"|\"&$B67,'Data Annex'!$K$1:$K$4997,0),MATCH(Q$45,'Data Annex'!$K$1:$AN$1,0)),\"\")","v":80.901097508999996},{"$f":"IFERROR(INDEX('Data Annex'!$K$1:$AN$4997,MATCH(R$44&\"|\"&$B67,'Data Annex'!$K$1:$K$4997,0),MATCH(R$45,'Data Annex'!$K$1:$AN$1,0)),\"\")","v":77.445393319000004},{"$f":"IFERROR(INDEX('Data Annex'!$K$1:$AN$4997,MATCH(S$44&\"|\"&$B67,'Data Annex'!$K$1:$K$4997,0),MATCH(S$45,'Data Annex'!$K$1:$AN$1,0)),\"\")","v":70.174981220000006},{"$f":"IFERROR(INDEX('Data Annex'!$K$1:$AN$4997,MATCH(T$44&\"|\"&$B67,'Data Annex'!$K$1:$K$4997,0),MATCH(T$45,'Data Annex'!$K$1:$AN$1,0)),\"\")","v":53.474955981999997},{"$f":"IFERROR(INDEX('Data Annex'!$K$1:$AN$4997,MATCH(U$44&\"|\"&$B67,'Data Annex'!$K$1:$K$4997,0),MATCH(U$45,'Data Annex'!$K$1:$AN$1,0)),\"\")","v":51.910959740000003},{"$f":"IFERROR(INDEX('Data Annex'!$K$1:$AN$4997,MATCH(V$44&\"|\"&$B67,'Data Annex'!$K$1:$K$4997,0),MATCH(V$45,'Data Annex'!$K$1:$AN$1,0)),\"\")","v":50.481696233999998},{"$f":"IFERROR(INDEX('Data Annex'!$K$1:$AN$4997,MATCH(W$44&\"|\"&$B67,'Data Annex'!$K$1:$K$4997,0),MATCH(W$45,'Data Annex'!$K$1:$AN$1,0)),\"\")","v":43.548156284999997},{"$f":"IFERROR(INDEX('Data Annex'!$K$1:$AN$4997,MATCH(X$44&\"|\"&$B67,'Data Annex'!$K$1:$K$4997,0),MATCH(X$45,'Data Annex'!$K$1:$AN$1,0)),\"\")","v":32.856432787999999},{"$f":"IFERROR(INDEX('Data Annex'!$K$1:$AN$4997,MATCH(Y$44&\"|\"&$B67,'Data Annex'!$K$1:$K$4997,0),MATCH(Y$45,'Data Annex'!$K$1:$AN$1,0)),\"\")","v":33.451538839999998},{"$f":"IFERROR(INDEX('Data Annex'!$K$1:$AN$4997,MATCH(Z$44&\"|\"&$B67,'Data Annex'!$K$1:$K$4997,0),MATCH(Z$45,'Data Annex'!$K$1:$AN$1,0)),\"\")","v":32.643156541000003},{"$f":"IFERROR(INDEX('Data Annex'!$K$1:$AN$4997,MATCH(AA$44&\"|\"&$B67,'Data Annex'!$K$1:$K$4997,0),MATCH(AA$45,'Data Annex'!$K$1:$AN$1,0)),\"\")","v":29.669792996999998},{"$f":"IFERROR(INDEX('Data Annex'!$K$1:$AN$4997,MATCH(AB$44&\"|\"&$B67,'Data Annex'!$K$1:$K$4997,0),MATCH(AB$45,'Data Annex'!$K$1:$AN$1,0)),\"\")","v":21.536212332000002}]
[19,"LT",null,"LT",{"$f":"IFERROR(INDEX('Data Annex'!$K$1:$AN$4997,MATCH(E$44&\"|\"&$B68,'Data Annex'!$K$1:$K$4997,0),MATCH(E$45,'Data Annex'!$K$1:$AN$1,0)),\"\")","v":0.28712100000000002},{"$f":"IFERROR(INDEX('Data Annex'!$K$1:$AN$4997,MATCH(F$44&\"|\"&$B68,'Data Annex'!$K$1:$K$4997,0),MATCH(F$45,'Data Annex'!$K$1:$AN$1,0)),\"\")","v":0.29293000000000002},{"$f":"IFERROR(INDEX('Data Annex'!$K$1:$AN$4997,MATCH(G$44&\"|\"&$B68,'Data Annex'!$K$1:$K$4997,0),MATCH(G$45,'Data Annex'!$K$1:$AN$1,0)),\"\")","v":0.28585500000000003},{"$f":"IFERROR(INDEX('Data Annex'!$K$1:$AN$4997,MATCH(H$44&\"|\"&$B68,'Data Annex'!$K$1:$K$4997,0),MATCH(H$45,'Data Annex'!$K$1:$AN$1,0)),\"\")","v":0.31700600000000001},{"$f":"IFERROR(INDEX('Data Annex'!$K$1:$AN$4997,MATCH(I$44&\"|\"&$B68,'Data Annex'!$K$1:$K$4997,0),MATCH(I$45,'Data Annex'!$K$1:$AN$1,0)),\"\")","v":0.128361},{"$f":"IFERROR(INDEX('Data Annex'!$K$1:$AN$4997,MATCH(J$44&\"|\"&$B68,'Data Annex'!$K$1:$K$4997,0),MATCH(J$45,'Data Annex'!$K$1:$AN$1,0)),\"\")","v":0.13636400000000001},{"$f":"IFERROR(INDEX('Data Annex'!$K$1:$AN$4997,MATCH(K$44&\"|\"&$B68,'Data Annex'!$K$1:$K$4997,0),MATCH(K$45,'Data Annex'!$K$1:$AN$1,0)),\"\")","v":0.13478899999999999},{"$f":"IFERROR(INDEX('Data Annex'!$K$1:$AN$4997,MATCH(L$44&\"|\"&$B68,'Data Annex'!$K$1:$K$4997,0),MATCH(L$45,'Data Annex'!$K$1:$AN$1,0)),\"\")","v":0.12954499999999999},{"$f":"IFERROR(INDEX('Data Annex'!$K$1:$AN$4997,MATCH(M$44&\"|\"&$B68,'Data Annex'!$K$1:$K$4997,0),MATCH(M$45,'Data Annex'!$K$1:$AN$1,0)),\"\")","v":9.1064999999999993E-2},{"$f":"IFERROR(INDEX('Data Annex'!$K$1:$AN$4997,MATCH(N$44&\"|\"&$B68,'Data Annex'!$K$1:$K$4997,0),MATCH(N$45,'Data Annex'!$K$1:$AN$1,0)),\"\")","v":9.7590999999999997E-2},{"$f":"IFERROR(INDEX('Data Annex'!$K$1:$AN$4997,MATCH(O$44&\"|\"&$B68,'Data Annex'!$K$1:$K$4997,0),MATCH(O$45,'Data Annex'!$K$1:$AN$1,0)),\"\")","v":9.5615000000000006E-2},{"$f":"IFERROR(INDEX('Data Annex'!$K$1:$AN$4997,MATCH(P$44&\"|\"&$B68,'Data Annex'!$K$1:$K$4997,0),MATCH(P$45,'Data Annex'!$K$1:$AN$1,0)),\"\")","v":9.3183000000000002E-2},{"$f":"IFERROR(INDEX('Data Annex'!$K$1:$AN$4997,MATCH(Q$44&\"|\"&$B68,'Data Annex'!$K$1:$K$4997,0),MATCH(Q$45,'Data Annex'!$K$1:$AN$1,0)),\"\")","v":0.158662},{"$f":"IFERROR(INDEX('Data Annex'!$K$1:$AN$4997,MATCH(R$44&\"|\"&$B68,'Data Annex'!$K$1:$K$4997,0),MATCH(R$45,'Data Annex'!$K$1:$AN$1,0)),\"\")","v":0.15648200000000001},{"$f":"IFERROR(INDEX('Data Annex'!$K$1:$AN$4997,MATCH(S$44&\"|\"&$B68,'Data Annex'!$K$1:$K$4997,0),MATCH(S$45,'Data Annex'!$K$1:$AN$1,0)),\"\")","v":0.15099499999999999},{"$f":"IFERROR(INDEX('Data Annex'!$K$1:$AN$4997,MATCH(T$44&\"|\"&$B68,'Data Annex'!$K$1:$K$4997,0),MATCH(T$45,'Data Annex'!$K$1:$AN$1,0)),\"\")","v":0.18718099999999999},{"$f":"IFERROR(INDEX('Data Annex'!$K$1:$AN$4997,MATCH(U$44&\"|\"&$B68,'Data Annex'!$K$1:$K$4997,0),MATCH(U$45,'Data Annex'!$K$1:$AN$1,0)),\"\")","v":0.108069},{"$f":"IFERROR(INDEX('Data Annex'!$K$1:$AN$4997,MATCH(V$44&\"|\"&$B68,'Data Annex'!$K$1:$K$4997,0),MATCH(V$45,'Data Annex'!$K$1:$AN$1,0)),\"\")","v":0.119339},{"$f":"IFERROR(INDEX('Data Annex'!$K$1:$AN$4997,MATCH(W$44&\"|\"&$B68,'Data Annex'!$K$1:$K$4997,0),MATCH(W$45,'Data Annex'!$K$1:$AN$1,0)),\"\")","v":0.11655},{"$f":"IFERROR(INDEX('Data Annex'!$K$1:$AN$4997,MATCH(X$44&\"|\"&$B68,'Data Annex'!$K$1:$K$4997,0),MATCH(X$45,'Data Annex'!$K$1:$AN$1,0)),\"\")","v":0.17493300000000001},{"$f":"IFERROR(INDEX('Data Annex'!$K$1:$AN$4997,MATCH(Y$44&\"|\"&$B68,'Data Annex'!$K$1:$K$4997,0),MATCH(Y$45,'Data Annex'!$K$1:$AN$1,0)),\"\")","v":0.109774},{"$f":"IFERROR(INDEX('Data Annex'!$K$1:$AN$4997,MATCH(Z$44&\"|\"&$B68,'Data Annex'!$K$1:$K$4997,0),MATCH(Z$45,'Data Annex'!$K$1:$AN$1,0)),\"\")","v":0.121076},{"$f":"IFERROR(INDEX('Data Annex'!$K$1:$AN$4997,MATCH(AA$44&\"|\"&$B68,'Data Annex'!$K$1:$K$4997,0),MATCH(AA$45,'Data Annex'!$K$1:$AN$1,0)),\"\")","v":0.11788800000000001},{"$f":"IFERROR(INDEX('Data Annex'!$K$1:$AN$4997,MATCH(AB$44&\"|\"&$B68,'Data Annex'!$K$1:$K$4997,0),MATCH(AB$45,'Data Annex'!$K$1:$AN$1,0)),\"\")","v":0.14471200000000001}]
[20,"LU",null,"LU",{"$f":"IFERROR(INDEX('Data Annex'!$K$1:$AN$4997,MATCH(E$44&\"|\"&$B69,'Data Annex'!$K$1:$K$4997,0),MATCH(E$45,'Data Annex'!$K$1:$AN$1,0)),\"\")","v":1.9357541103},{"$f":"IFERROR(INDEX('Data Annex'!$K$1:$AN$4997,MATCH(F$44&\"|\"&$B69,'Data Annex'!$K$1:$K$4997,0),MATCH(F$45,'Data Annex'!$K$1:$AN$1,0)),\"\")","v":2.0217790634999999},{"$f":"IFERROR(INDEX('Data Annex'!$K$1:$AN$4997,MATCH(G$44&\"|\"&$B69,'Data Annex'!$K$1:$K$4997,0),MATCH(G$45,'Data Annex'!$K$1:$AN$1,0)),\"\")","v":2.4694566441000001},{"$f":"IFERROR(INDEX('Data Annex'!$K$1:$AN$4997,MATCH(H$44&\"|\"&$B69,'Data Annex'!$K$1:$K$4997,0),MATCH(H$45,'Data Annex'!$K$1:$AN$1,0)),\"\")","v":2.5952316728999998},{"$f":"IFERROR(INDEX('Data Annex'!$K$1:$AN$4997,MATCH(I$44&\"|\"&$B69,'Data Annex'!$K$1:$K$4997,0),MATCH(I$45,'Data Annex'!$K$1:$AN$1,0)),\"\")","v":0.43026996649999999},{"$f":"IFERROR(INDEX('Data Annex'!$K$1:$AN$4997,MATCH(J$44&\"|\"&$B69,'Data Annex'!$K$1:$K$4997,0),MATCH(J$45,'Data Annex'!$K$1:$AN$1,0)),\"\")","v":0.40213985619999998},{"$f":"IFERROR(INDEX('Data Annex'!$K$1:$AN$4997,MATCH(K$44&\"|\"&$B69,'Data Annex'!$K$1:$K$4997,0),MATCH(K$45,'Data Annex'!$K$1:$AN$1,0)),\"\")","v":0.44189862099999999},{"$f":"IFERROR(INDEX('Data Annex'!$K$1:$AN$4997,MATCH(L$44&\"|\"&$B69,'Data Annex'!$K$1:$K$4997,0),MATCH(L$45,'Data Annex'!$K$1:$AN$1,0)),\"\")","v":0.45013862570000002},{"$f":"IFERROR(INDEX('Data Annex'!$K$1:$AN$4997,MATCH(M$44&\"|\"&$B69,'Data Annex'!$K$1:$K$4997,0),MATCH(M$45,'Data Annex'!$K$1:$AN$1,0)),\"\")","v":0.28915776720000003},{"$f":"IFERROR(INDEX('Data Annex'!$K$1:$AN$4997,MATCH(N$44&\"|\"&$B69,'Data Annex'!$K$1:$K$4997,0),MATCH(N$45,'Data Annex'!$K$1:$AN$1,0)),\"\")","v":0.28120468129999998},{"$f":"IFERROR(INDEX('Data Annex'!$K$1:$AN$4997,MATCH(O$44&\"|\"&$B69,'Data Annex'!$K$1:$K$4997,0),MATCH(O$45,'Data Annex'!$K$1:$AN$1,0)),\"\")","v":0.32640052120000002},{"$f":"IFERROR(INDEX('Data Annex'!$K$1:$AN$4997,MATCH(P$44&\"|\"&$B69,'Data Annex'!$K$1:$K$4997,0),MATCH(P$45,'Data Annex'!$K$1:$AN$1,0)),\"\")","v":0.35208824030000002},{"$f":"IFERROR(INDEX('Data Annex'!$K$1:$AN$4997,MATCH(Q$44&\"|\"&$B69,'Data Annex'!$K$1:$K$4997,0),MATCH(Q$45,'Data Annex'!$K$1:$AN$1,0)),\"\")","v":1.2418719523999999},{"$f":"IFERROR(INDEX('Data Annex'!$K$1:$AN$4997,MATCH(R$44&\"|\"&$B69,'Data Annex'!$K$1:$K$4997,0),MATCH(R$45,'Data Annex'!$K$1:$AN$1,0)),\"\")","v":1.3614503708000001},{"$f":"IFERROR(INDEX('Data Annex'!$K$1:$AN$4997,MATCH(S$44&\"|\"&$B69,'Data Annex'!$K$1:$K$4997,0),MATCH(S$45,'Data Annex'!$K$1:$AN$1,0)),\"\")","v":1.7569178879},{"$f":"IFERROR(INDEX('Data Annex'!$K$1:$AN$4997,MATCH(T$44&\"|\"&$B69,'Data Annex'!$K$1:$K$4997,0),MATCH(T$45,'Data Annex'!$K$1:$AN$1,0)),\"\")","v":1.8650741162},{"$f":"IFERROR(INDEX('Data Annex'!$K$1:$AN$4997,MATCH(U$44&\"|\"&$B69,'Data Annex'!$K$1:$K$4997,0),MATCH(U$45,'Data Annex'!$K$1:$AN$1,0)),\"\")","v":0.89548401280000001},{"$f":"IFERROR(INDEX('Data Annex'!$K$1:$AN$4997,MATCH(V$44&\"|\"&$B69,'Data Annex'!$K$1:$K$4997,0),MATCH(V$45,'Data Annex'!$K$1:$AN$1,0)),\"\")","v":0.97438406379999998},{"$f":"IFERROR(INDEX('Data Annex'!$K$1:$AN$4997,MATCH(W$44&\"|\"&$B69,'Data Annex'!$K$1:$K$4997,0),MATCH(W$45,'Data Annex'!$K$1:$AN$1,0)),\"\")","v":1.1001789644},{"$f":"IFERROR(INDEX('Data Annex'!$K$1:$AN$4997,MATCH(X$44&\"|\"&$B69,'Data Annex'!$K$1:$K$4997,0),MATCH(X$45,'Data Annex'!$K$1:$AN$1,0)),\"\")","v":1.1876070879},{"$f":"IFERROR(INDEX('Data Annex'!$K$1:$AN$4997,MATCH(Y$44&\"|\"&$B69,'Data Annex'!$K$1:$K$4997,0),MATCH(Y$45,'Data Annex'!$K$1:$AN$1,0)),\"\")","v":0.172245549},{"$f":"IFERROR(INDEX('Data Annex'!$K$1:$AN$4997,MATCH(Z$44&\"|\"&$B69,'Data Annex'!$K$1:$K$4997,0),MATCH(Z$45,'Data Annex'!$K$1:$AN$1,0)),\"\")","v":0.16930298899999999},{"$f":"IFERROR(INDEX('Data Annex'!$K$1:$AN$4997,MATCH(AA$44&\"|\"&$B69,'Data Annex'!$K$1:$K$4997,0),MATCH(AA$45,'Data Annex'!$K$1:$AN$1,0)),\"\")","v":0.21197253099999999},{"$f":"IFERROR(INDEX('Data Annex'!$K$1:$AN$4997,MATCH(AB$44&\"|\"&$B69,'Data Annex'!$K$1:$K$4997,0),MATCH(AB$45,'Data Annex'!$K$1:$AN$1,0)),\"\")","v":0.31511983799999999}]
[21,"LV",null,"LV",{"$f":"IFERROR(INDEX('Data Annex'!$K$1:$AN$4997,MATCH(E$44&\"|\"&$B70,'Data Annex'!$K$1:$K$4997,0),MATCH(E$45,'Data Annex'!$K$1:$AN$1,0)),\"\")","v":0.215961239},{"$f":"IFERROR(INDEX('Data Annex'!$K$1:$AN$4997,MATCH(F$44&\"|\"&$B70,'Data Annex'!$K$1:$K$4997,0),MATCH(F$45,'Data Annex'!$K$1:$AN$1,0)),\"\")","v":0.23150162799999999},{"$f":"IFERROR(INDEX('Data Annex'!$K$1:$AN$4997,MATCH(G$44&\"|\"&$B70,'Data Annex'!$K$1:$K$4997,0),MATCH(G$45,'Data Annex'!$K$1:$AN$1,0)),\"\")","v":0.22615237899999999},{"$f":"IFERROR(INDEX('Data Annex'!$K$1:$AN$4997,MATCH(H$44&\"|\"&$B70,'Data Annex'!$K$1:$K$4997,0),MATCH(H$45,'Data Annex'!$K$1:$AN$1,0)),\"\")","v":0.14998014700000001},{"$f":"IFERROR(INDEX('Data Annex'!$K$1:$AN$4997,MATCH(I$44&\"|\"&$B70,'Data Annex'!$K$1:$K$4997,0),MATCH(I$45,'Data Annex'!$K$1:$AN$1,0)),\"\")","v":9.2589638000000002E-2},{"$f":"IFERROR(INDEX('Data Annex'!$K$1:$AN$4997,MATCH(J$44&\"|\"&$B70,'Data Annex'!$K$1:$K$4997,0),MATCH(J$45,'Data Annex'!$K$1:$AN$1,0)),\"\")","v":8.8632557000000001E-2},{"$f":"IFERROR(INDEX('Data Annex'!$K$1:$AN$4997,MATCH(K$44&\"|\"&$B70,'Data Annex'!$K$1:$K$4997,0),MATCH(K$45,'Data Annex'!$K$1:$AN$1,0)),\"\")","v":8.3751049999999994E-2},{"$f":"IFERROR(INDEX('Data Annex'!$K$1:$AN$4997,MATCH(L$44&\"|\"&$B70,'Data Annex'!$K$1:$K$4997,0),MATCH(L$45,'Data Annex'!$K$1:$AN$1,0)),\"\")","v":4.7417358999999999E-2},{"$f":"IFERROR(INDEX('Data Annex'!$K$1:$AN$4997,MATCH(M$44&\"|\"&$B70,'Data Annex'!$K$1:$K$4997,0),MATCH(M$45,'Data Annex'!$K$1:$AN$1,0)),\"\")","v":7.9873016000000005E-2},{"$f":"IFERROR(INDEX('Data Annex'!$K$1:$AN$4997,MATCH(N$44&\"|\"&$B70,'Data Annex'!$K$1:$K$4997,0),MATCH(N$45,'Data Annex'!$K$1:$AN$1,0)),\"\")","v":7.6082822999999994E-2},{"$f":"IFERROR(INDEX('Data Annex'!$K$1:$AN$4997,MATCH(O$44&\"|\"&$B70,'Data Annex'!$K$1:$K$4997,0),MATCH(O$45,'Data Annex'!$K$1:$AN$1,0)),\"\")","v":7.2219926000000004E-2},{"$f":"IFERROR(INDEX('Data Annex'!$K$1:$AN$4997,MATCH(P$44&\"|\"&$B70,'Data Annex'!$K$1:$K$4997,0),MATCH(P$45,'Data Annex'!$K$1:$AN$1,0)),\"\")","v":4.0371576999999999E-2},{"$f":"IFERROR(INDEX('Data Annex'!$K$1:$AN$4997,MATCH(Q$44&\"|\"&$B70,'Data Annex'!$K$1:$K$4997,0),MATCH(Q$45,'Data Annex'!$K$1:$AN$1,0)),\"\")","v":0.12256837499999999},{"$f":"IFERROR(INDEX('Data Annex'!$K$1:$AN$4997,MATCH(R$44&\"|\"&$B70,'Data Annex'!$K$1:$K$4997,0),MATCH(R$45,'Data Annex'!$K$1:$AN$1,0)),\"\")","v":0.14246468600000001},{"$f":"IFERROR(INDEX('Data Annex'!$K$1:$AN$4997,MATCH(S$44&\"|\"&$B70,'Data Annex'!$K$1:$K$4997,0),MATCH(S$45,'Data Annex'!$K$1:$AN$1,0)),\"\")","v":0.14223307900000001},{"$f":"IFERROR(INDEX('Data Annex'!$K$1:$AN$4997,MATCH(T$44&\"|\"&$B70,'Data Annex'!$K$1:$K$4997,0),MATCH(T$45,'Data Annex'!$K$1:$AN$1,0)),\"\")","v":0.10240350500000001},{"$f":"IFERROR(INDEX('Data Annex'!$K$1:$AN$4997,MATCH(U$44&\"|\"&$B70,'Data Annex'!$K$1:$K$4997,0),MATCH(U$45,'Data Annex'!$K$1:$AN$1,0)),\"\")","v":5.1537152000000003E-2},{"$f":"IFERROR(INDEX('Data Annex'!$K$1:$AN$4997,MATCH(V$44&\"|\"&$B70,'Data Annex'!$K$1:$K$4997,0),MATCH(V$45,'Data Annex'!$K$1:$AN$1,0)),\"\")","v":7.4693102999999997E-2},{"$f":"IFERROR(INDEX('Data Annex'!$K$1:$AN$4997,MATCH(W$44&\"|\"&$B70,'Data Annex'!$K$1:$K$4997,0),MATCH(W$45,'Data Annex'!$K$1:$AN$1,0)),\"\")","v":8.0829247000000007E-2},{"$f":"IFERROR(INDEX('Data Annex'!$K$1:$AN$4997,MATCH(X$44&\"|\"&$B70,'Data Annex'!$K$1:$K$4997,0),MATCH(X$45,'Data Annex'!$K$1:$AN$1,0)),\"\")","v":4.9526382000000001E-2},{"$f":"IFERROR(INDEX('Data Annex'!$K$1:$AN$4997,MATCH(Y$44&\"|\"&$B70,'Data Annex'!$K$1:$K$4997,0),MATCH(Y$45,'Data Annex'!$K$1:$AN$1,0)),\"\")","v":8.8765397999999995E-2},{"$f":"IFERROR(INDEX('Data Annex'!$K$1:$AN$4997,MATCH(Z$44&\"|\"&$B70,'Data Annex'!$K$1:$K$4997,0),MATCH(Z$45,'Data Annex'!$K$1:$AN$1,0)),\"\")","v":0.10878732000000001},{"$f":"IFERROR(INDEX('Data Annex'!$K$1:$AN$4997,MATCH(AA$44&\"|\"&$B70,'Data Annex'!$K$1:$K$4997,0),MATCH(AA$45,'Data Annex'!$K$1:$AN$1,0)),\"\")","v":0.114610401},{"$f":"IFERROR(INDEX('Data Annex'!$K$1:$AN$4997,MATCH(AB$44&\"|\"&$B70,'Data Annex'!$K$1:$K$4997,0),MATCH(AB$45,'Data Annex'!$K$1:$AN$1,0)),\"\")","v":7.9230832000000001E-2}]
[22,"MT",null,"MT",{"$f":"IFERROR(INDEX('Data Annex'!$K$1:$AN$4997,MATCH(E$44&\"|\"&$B71,'Data Annex'!$K$1:$K$4997,0),MATCH(E$45,'Data Annex'!$K$1:$AN$1,0)),\"\")","v":0.47754924440000002},{"$f":"IFERROR(INDEX('Data Annex'!$K$1:$AN$4997,MATCH(F$44&\"|\"&$B71,'Data Annex'!$K$1:$K$4997,0),MATCH(F$45,'Data Annex'!$K$1:$AN$1,0)),\"\")","v":0.54273093019999996},{"$f":"IFERROR(INDEX('Data Annex'!$K$1:$AN$4997,MATCH(G$44&\"|\"&$B71,'Data Annex'!$K$1:$K$4997,0),MATCH(G$45,'Data Annex'!$K$1:$AN$1,0)),\"\")","v":0.51849191559999996},{"$f":"IFERROR(INDEX('Data Annex'!$K$1:$AN$4997,MATCH(H$44&\"|\"&$B71,'Data Annex'!$K$1:$K$4997,0),MATCH(H$45,'Data Annex'!$K$1:$AN$1,0)),\"\")","v":0.57247119499999999},{"$f":"IFERROR(INDEX('Data Annex'!$K$1:$AN$4997,MATCH(I$44&\"|\"&$B71,'Data Annex'!$K$1:$K$4997,0),MATCH(I$45,'Data Annex'!$K$1:$AN$1,0)),\"\")","v":0.12767348179999999},{"$f":"IFERROR(INDEX('Data Annex'!$K$1:$AN$4997,MATCH(J$44&\"|\"&$B71,'Data Annex'!$K$1:$K$4997,0),MATCH(J$45,'Data Annex'!$K$1:$AN$1,0)),\"\")","v":0.15173800179999999},{"$f":"IFERROR(INDEX('Data Annex'!$K$1:$AN$4997,MATCH(K$44&\"|\"&$B71,'Data Annex'!$K$1:$K$4997,0),MATCH(K$45,'Data Annex'!$K$1:$AN$1,0)),\"\")","v":0.1510728311},{"$f":"IFERROR(INDEX('Data Annex'!$K$1:$AN$4997,MATCH(L$44&\"|\"&$B71,'Data Annex'!$K$1:$K$4997,0),MATCH(L$45,'Data Annex'!$K$1:$AN$1,0)),\"\")","v":0.16325885479999999},{"$f":"IFERROR(INDEX('Data Annex'!$K$1:$AN$4997,MATCH(M$44&\"|\"&$B71,'Data Annex'!$K$1:$K$4997,0),MATCH(M$45,'Data Annex'!$K$1:$AN$1,0)),\"\")","v":0.1022375284},{"$f":"IFERROR(INDEX('Data Annex'!$K$1:$AN$4997,MATCH(N$44&\"|\"&$B71,'Data Annex'!$K$1:$K$4997,0),MATCH(N$45,'Data Annex'!$K$1:$AN$1,0)),\"\")","v":0.1244897254},{"$f":"IFERROR(INDEX('Data Annex'!$K$1:$AN$4997,MATCH(O$44&\"|\"&$B71,'Data Annex'!$K$1:$K$4997,0),MATCH(O$45,'Data Annex'!$K$1:$AN$1,0)),\"\")","v":0.12382718080000001},{"$f":"IFERROR(INDEX('Data Annex'!$K$1:$AN$4997,MATCH(P$44&\"|\"&$B71,'Data Annex'!$K$1:$K$4997,0),MATCH(P$45,'Data Annex'!$K$1:$AN$1,0)),\"\")","v":0.1368172138},{"$f":"IFERROR(INDEX('Data Annex'!$K$1:$AN$4997,MATCH(Q$44&\"|\"&$B71,'Data Annex'!$K$1:$K$4997,0),MATCH(Q$45,'Data Annex'!$K$1:$AN$1,0)),\"\")","v":0.24685274099999999},{"$f":"IFERROR(INDEX('Data Annex'!$K$1:$AN$4997,MATCH(R$44&\"|\"&$B71,'Data Annex'!$K$1:$K$4997,0),MATCH(R$45,'Data Annex'!$K$1:$AN$1,0)),\"\")","v":0.22799484019999999},{"$f":"IFERROR(INDEX('Data Annex'!$K$1:$AN$4997,MATCH(S$44&\"|\"&$B71,'Data Annex'!$K$1:$K$4997,0),MATCH(S$45,'Data Annex'!$K$1:$AN$1,0)),\"\")","v":0.30723475750000001},{"$f":"IFERROR(INDEX('Data Annex'!$K$1:$AN$4997,MATCH(T$44&\"|\"&$B71,'Data Annex'!$K$1:$K$4997,0),MATCH(T$45,'Data Annex'!$K$1:$AN$1,0)),\"\")","v":0.34734314189999999},{"$f":"IFERROR(INDEX('Data Annex'!$K$1:$AN$4997,MATCH(U$44&\"|\"&$B71,'Data Annex'!$K$1:$K$4997,0),MATCH(U$45,'Data Annex'!$K$1:$AN$1,0)),\"\")","v":0.1610672645},{"$f":"IFERROR(INDEX('Data Annex'!$K$1:$AN$4997,MATCH(V$44&\"|\"&$B71,'Data Annex'!$K$1:$K$4997,0),MATCH(V$45,'Data Annex'!$K$1:$AN$1,0)),\"\")","v":0.16248943369999999},{"$f":"IFERROR(INDEX('Data Annex'!$K$1:$AN$4997,MATCH(W$44&\"|\"&$B71,'Data Annex'!$K$1:$K$4997,0),MATCH(W$45,'Data Annex'!$K$1:$AN$1,0)),\"\")","v":0.15798719089999999},{"$f":"IFERROR(INDEX('Data Annex'!$K$1:$AN$4997,MATCH(X$44&\"|\"&$B71,'Data Annex'!$K$1:$K$4997,0),MATCH(X$45,'Data Annex'!$K$1:$AN$1,0)),\"\")","v":0.1734910922},{"$f":"IFERROR(INDEX('Data Annex'!$K$1:$AN$4997,MATCH(Y$44&\"|\"&$B71,'Data Annex'!$K$1:$K$4997,0),MATCH(Y$45,'Data Annex'!$K$1:$AN$1,0)),\"\")","v":0.13903664499999999},{"$f":"IFERROR(INDEX('Data Annex'!$K$1:$AN$4997,MATCH(Z$44&\"|\"&$B71,'Data Annex'!$K$1:$K$4997,0),MATCH(Z$45,'Data Annex'!$K$1:$AN$1,0)),\"\")","v":0.1252791946},{"$f":"IFERROR(INDEX('Data Annex'!$K$1:$AN$4997,MATCH(AA$44&\"|\"&$B71,'Data Annex'!$K$1:$K$4997,0),MATCH(AA$45,'Data Annex'!$K$1:$AN$1,0)),\"\")","v":0.1188700437},{"$f":"IFERROR(INDEX('Data Annex'!$K$1:$AN$4997,MATCH(AB$44&\"|\"&$B71,'Data Annex'!$K$1:$K$4997,0),MATCH(AB$45,'Data Annex'!$K$1:$AN$1,0)),\"\")","v":0.14438167969999999}]
[23,"NL",null,"NL",{"$f":"IFERROR(INDEX('Data Annex'!$K$1:$AN$4997,MATCH(E$44&\"|\"&$B72,'Data Annex'!$K$1:$K$4997,0),MATCH(E$45,'Data Annex'!$K$1:$AN$1,0)),\"\")","v":35.973356381000002},{"$f":"IFERROR(INDEX('Data Annex'!$K$1:$AN$4997,MATCH(F$44&\"|\"&$B72,'Data Annex'!$K$1:$K$4997,0),MATCH(F$45,'Data Annex'!$K$1:$AN$1,0)),\"\")","v":37.738147791999999},{"$f":"IFERROR(INDEX('Data Annex'!$K$1:$AN$4997,MATCH(G$44&\"|\"&$B72,'Data Annex'!$K$1:$K$4997,0),MATCH(G$45,'Data Annex'!$K$1:$AN$1,0)),\"\")","v":37.343708786000001},{"$f":"IFERROR(INDEX('Data Annex'!$K$1:$AN$4997,MATCH(H$44&\"|\"&$B72,'Data Annex'!$K$1:$K$4997,0),MATCH(H$45,'Data Annex'!$K$1:$AN$1,0)),\"\")","v":36.807508786},{"$f":"IFERROR(INDEX('Data Annex'!$K$1:$AN$4997,MATCH(I$44&\"|\"&$B72,'Data Annex'!$K$1:$K$4997,0),MATCH(I$45,'Data Annex'!$K$1:$AN$1,0)),\"\")","v":9.0159175048000009},{"$f":"IFERROR(INDEX('Data Annex'!$K$1:$AN$4997,MATCH(J$44&\"|\"&$B72,'Data Annex'!$K$1:$K$4997,0),MATCH(J$45,'Data Annex'!$K$1:$AN$1,0)),\"\")","v":9.4703193104000007},{"$f":"IFERROR(INDEX('Data Annex'!$K$1:$AN$4997,MATCH(K$44&\"|\"&$B72,'Data Annex'!$K$1:$K$4997,0),MATCH(K$45,'Data Annex'!$K$1:$AN$1,0)),\"\")","v":9.2879217806999996},{"$f":"IFERROR(INDEX('Data Annex'!$K$1:$AN$4997,MATCH(L$44&\"|\"&$B72,'Data Annex'!$K$1:$K$4997,0),MATCH(L$45,'Data Annex'!$K$1:$AN$1,0)),\"\")","v":9.5669295890000008},{"$f":"IFERROR(INDEX('Data Annex'!$K$1:$AN$4997,MATCH(M$44&\"|\"&$B72,'Data Annex'!$K$1:$K$4997,0),MATCH(M$45,'Data Annex'!$K$1:$AN$1,0)),\"\")","v":6.5914208079999996},{"$f":"IFERROR(INDEX('Data Annex'!$K$1:$AN$4997,MATCH(N$44&\"|\"&$B72,'Data Annex'!$K$1:$K$4997,0),MATCH(N$45,'Data Annex'!$K$1:$AN$1,0)),\"\")","v":6.8107662260000001},{"$f":"IFERROR(INDEX('Data Annex'!$K$1:$AN$4997,MATCH(O$44&\"|\"&$B72,'Data Annex'!$K$1:$K$4997,0),MATCH(O$45,'Data Annex'!$K$1:$AN$1,0)),\"\")","v":6.6639389099999997},{"$f":"IFERROR(INDEX('Data Annex'!$K$1:$AN$4997,MATCH(P$44&\"|\"&$B72,'Data Annex'!$K$1:$K$4997,0),MATCH(P$45,'Data Annex'!$K$1:$AN$1,0)),\"\")","v":6.9245831410000003},{"$f":"IFERROR(INDEX('Data Annex'!$K$1:$AN$4997,MATCH(Q$44&\"|\"&$B72,'Data Annex'!$K$1:$K$4997,0),MATCH(Q$45,'Data Annex'!$K$1:$AN$1,0)),\"\")","v":25.749740778},{"$f":"IFERROR(INDEX('Data Annex'!$K$1:$AN$4997,MATCH(R$44&\"|\"&$B72,'Data Annex'!$K$1:$K$4997,0),MATCH(R$45,'Data Annex'!$K$1:$AN$1,0)),\"\")","v":27.367002627000002},{"$f":"IFERROR(INDEX('Data Annex'!$K$1:$AN$4997,MATCH(S$44&\"|\"&$B72,'Data Annex'!$K$1:$K$4997,0),MATCH(S$45,'Data Annex'!$K$1:$AN$1,0)),\"\")","v":26.836017467000001},{"$f":"IFERROR(INDEX('Data Annex'!$K$1:$AN$4997,MATCH(T$44&\"|\"&$B72,'Data Annex'!$K$1:$K$4997,0),MATCH(T$45,'Data Annex'!$K$1:$AN$1,0)),\"\")","v":25.908438704999998},{"$f":"IFERROR(INDEX('Data Annex'!$K$1:$AN$4997,MATCH(U$44&\"|\"&$B72,'Data Annex'!$K$1:$K$4997,0),MATCH(U$45,'Data Annex'!$K$1:$AN$1,0)),\"\")","v":7.5977750382},{"$f":"IFERROR(INDEX('Data Annex'!$K$1:$AN$4997,MATCH(V$44&\"|\"&$B72,'Data Annex'!$K$1:$K$4997,0),MATCH(V$45,'Data Annex'!$K$1:$AN$1,0)),\"\")","v":7.6389335959000002},{"$f":"IFERROR(INDEX('Data Annex'!$K$1:$AN$4997,MATCH(W$44&\"|\"&$B72,'Data Annex'!$K$1:$K$4997,0),MATCH(W$45,'Data Annex'!$K$1:$AN$1,0)),\"\")","v":7.4770780446999998},{"$f":"IFERROR(INDEX('Data Annex'!$K$1:$AN$4997,MATCH(X$44&\"|\"&$B72,'Data Annex'!$K$1:$K$4997,0),MATCH(X$45,'Data Annex'!$K$1:$AN$1,0)),\"\")","v":7.4032361613999997},{"$f":"IFERROR(INDEX('Data Annex'!$K$1:$AN$4997,MATCH(Y$44&\"|\"&$B72,'Data Annex'!$K$1:$K$4997,0),MATCH(Y$45,'Data Annex'!$K$1:$AN$1,0)),\"\")","v":9.1798044070000007},{"$f":"IFERROR(INDEX('Data Annex'!$K$1:$AN$4997,MATCH(Z$44&\"|\"&$B72,'Data Annex'!$K$1:$K$4997,0),MATCH(Z$45,'Data Annex'!$K$1:$AN$1,0)),\"\")","v":8.6157737579999996},{"$f":"IFERROR(INDEX('Data Annex'!$K$1:$AN$4997,MATCH(AA$44&\"|\"&$B72,'Data Annex'!$K$1:$K$4997,0),MATCH(AA$45,'Data Annex'!$K$1:$AN$1,0)),\"\")","v":8.5783805789999992},{"$f":"IFERROR(INDEX('Data Annex'!$K$1:$AN$4997,MATCH(AB$44&\"|\"&$B72,'Data Annex'!$K$1:$K$4997,0),MATCH(AB$45,'Data Annex'!$K$1:$AN$1,0)),\"\")","v":8.7995048899999997}]
[24,"NO",null,"NO",{"$f":"IFERROR(INDEX('Data Annex'!$K$1:$AN$4997,MATCH(E$44&\"|\"&$B73,'Data Annex'!$K$1:$K$4997,0),MATCH(E$45,'Data Annex'!$K$1:$AN$1,0)),\"\")","v":3.6422846960999999},{"$f":"IFERROR(INDEX('Data Annex'!$K$1:$AN$4997,MATCH(F$44&\"|\"&$B73,'Data Annex'!$K$1:$K$4997,0),MATCH(F$45,'Data Annex'!$K$1:$AN$1,0)),\"\")","v":4.1027698441},{"$f":"IFERROR(INDEX('Data Annex'!$K$1:$AN$4997,MATCH(G$44&\"|\"&$B73,'Data Annex'!$K$1:$K$4997,0),MATCH(G$45,'Data Annex'!$K$1:$AN$1,0)),\"\")","v":4.0292160118},{"$f":"IFERROR(INDEX('Data Annex'!$K$1:$AN$4997,MATCH(H$44&\"|\"&$B73,'Data Annex'!$K$1:$K$4997,0),MATCH(H$45,'Data Annex'!$K$1:$AN$1,0)),\"\")","v":3.8268926012},{"$f":"IFERROR(INDEX('Data Annex'!$K$1:$AN$4997,MATCH(I$44&\"|\"&$B73,'Data Annex'!$K$1:$K$4997,0),MATCH(I$45,'Data Annex'!$K$1:$AN$1,0)),\"\")","v":0.39710685899999998},{"$f":"IFERROR(INDEX('Data Annex'!$K$1:$AN$4997,MATCH(J$44&\"|\"&$B73,'Data Annex'!$K$1:$K$4997,0),MATCH(J$45,'Data Annex'!$K$1:$AN$1,0)),\"\")","v":0.4170559559},{"$f":"IFERROR(INDEX('Data Annex'!$K$1:$AN$4997,MATCH(K$44&\"|\"&$B73,'Data Annex'!$K$1:$K$4997,0),MATCH(K$45,'Data Annex'!$K$1:$AN$1,0)),\"\")","v":0.40729255679999998},{"$f":"IFERROR(INDEX('Data Annex'!$K$1:$AN$4997,MATCH(L$44&\"|\"&$B73,'Data Annex'!$K$1:$K$4997,0),MATCH(L$45,'Data Annex'!$K$1:$AN$1,0)),\"\")","v":0.39986114179999999},{"$f":"IFERROR(INDEX('Data Annex'!$K$1:$AN$4997,MATCH(M$44&\"|\"&$B73,'Data Annex'!$K$1:$K$4997,0),MATCH(M$45,'Data Annex'!$K$1:$AN$1,0)),\"\")","v":0.1880303133},{"$f":"IFERROR(INDEX('Data Annex'!$K$1:$AN$4997,MATCH(N$44&\"|\"&$B73,'Data Annex'!$K$1:$K$4997,0),MATCH(N$45,'Data Annex'!$K$1:$AN$1,0)),\"\")","v":0.19344422089999999},{"$f":"IFERROR(INDEX('Data Annex'!$K$1:$AN$4997,MATCH(O$44&\"|\"&$B73,'Data Annex'!$K$1:$K$4997,0),MATCH(O$45,'Data Annex'!$K$1:$AN$1,0)),\"\")","v":0.19147755080000001},{"$f":"IFERROR(INDEX('Data Annex'!$K$1:$AN$4997,MATCH(P$44&\"|\"&$B73,'Data Annex'!$K$1:$K$4997,0),MATCH(P$45,'Data Annex'!$K$1:$AN$1,0)),\"\")","v":0.1873619218},{"$f":"IFERROR(INDEX('Data Annex'!$K$1:$AN$4997,MATCH(Q$44&\"|\"&$B73,'Data Annex'!$K$1:$K$4997,0),MATCH(Q$45,'Data Annex'!$K$1:$AN$1,0)),\"\")","v":3.1906173873000001},{"$f":"IFERROR(INDEX('Data Annex'!$K$1:$AN$4997,MATCH(R$44&\"|\"&$B73,'Data Annex'!$K$1:$K$4997,0),MATCH(R$45,'Data Annex'!$K$1:$AN$1,0)),\"\")","v":3.6211208804999999},{"$f":"IFERROR(INDEX('Data Annex'!$K$1:$AN$4997,MATCH(S$44&\"|\"&$B73,'Data Annex'!$K$1:$K$4997,0),MATCH(S$45,'Data Annex'!$K$1:$AN$1,0)),\"\")","v":3.5713883526000001},{"$f":"IFERROR(INDEX('Data Annex'!$K$1:$AN$4997,MATCH(T$44&\"|\"&$B73,'Data Annex'!$K$1:$K$4997,0),MATCH(T$45,'Data Annex'!$K$1:$AN$1,0)),\"\")","v":3.3519880505000001},{"$f":"IFERROR(INDEX('Data Annex'!$K$1:$AN$4997,MATCH(U$44&\"|\"&$B73,'Data Annex'!$K$1:$K$4997,0),MATCH(U$45,'Data Annex'!$K$1:$AN$1,0)),\"\")","v":0.72249323870000004},{"$f":"IFERROR(INDEX('Data Annex'!$K$1:$AN$4997,MATCH(V$44&\"|\"&$B73,'Data Annex'!$K$1:$K$4997,0),MATCH(V$45,'Data Annex'!$K$1:$AN$1,0)),\"\")","v":0.77895979459999998},{"$f":"IFERROR(INDEX('Data Annex'!$K$1:$AN$4997,MATCH(W$44&\"|\"&$B73,'Data Annex'!$K$1:$K$4997,0),MATCH(W$45,'Data Annex'!$K$1:$AN$1,0)),\"\")","v":0.59595357059999998},{"$f":"IFERROR(INDEX('Data Annex'!$K$1:$AN$4997,MATCH(X$44&\"|\"&$B73,'Data Annex'!$K$1:$K$4997,0),MATCH(X$45,'Data Annex'!$K$1:$AN$1,0)),\"\")","v":0.6730033594},{"$f":"IFERROR(INDEX('Data Annex'!$K$1:$AN$4997,MATCH(Y$44&\"|\"&$B73,'Data Annex'!$K$1:$K$4997,0),MATCH(Y$45,'Data Annex'!$K$1:$AN$1,0)),\"\")","v":0.21572387470000001},{"$f":"IFERROR(INDEX('Data Annex'!$K$1:$AN$4997,MATCH(Z$44&\"|\"&$B73,'Data Annex'!$K$1:$K$4997,0),MATCH(Z$45,'Data Annex'!$K$1:$AN$1,0)),\"\")","v":0.30206649060000001},{"$f":"IFERROR(INDEX('Data Annex'!$K$1:$AN$4997,MATCH(AA$44&\"|\"&$B73,'Data Annex'!$K$1:$K$4997,0),MATCH(AA$45,'Data Annex'!$K$1:$AN$1,0)),\"\")","v":0.2584036381},{"$f":"IFERROR(INDEX('Data Annex'!$K$1:$AN$4997,MATCH(AB$44&\"|\"&$B73,'Data Annex'!$K$1:$K$4997,0),MATCH(AB$45,'Data Annex'!$K$1:$AN$1,0)),\"\")","v":0.26573509290000003}]
[25,"PL",null,"PL",{"$f":"IFERROR(INDEX('Data Annex'!$K$1:$AN$4997,MATCH(E$44&\"|\"&$B74,'Data Annex'!$K$1:$K$4997,0),MATCH(E$45,'Data Annex'!$K$1:$AN$1,0)),\"\")","v":6.1643542423},{"$f":"IFERROR(INDEX('Data Annex'!$K$1:$AN$4997,MATCH(F$44&\"|\"&$B74,'Data Annex'!$K$1:$K$4997,0),MATCH(F$45,'Data Annex'!$K$1:$AN$1,0)),\"\")","v":6.1499137469000003},{"$f":"IFERROR(INDEX('Data Annex'!$K$1:$AN$4997,MATCH(G$44&\"|\"&$B74,'Data Annex'!$K$1:$K$4997,0),MATCH(G$45,'Data Annex'!$K$1:$AN$1,0)),\"\")","v":6.0034348204999999},{"$f":"IFERROR(INDEX('Data Annex'!$K$1:$AN$4997,MATCH(H$44&\"|\"&$B74,'Data Annex'!$K$1:$K$4997,0),MATCH(H$45,'Data Annex'!$K$1:$AN$1,0)),\"\")","v":6.1472291605000002},{"$f":"IFERROR(INDEX('Data Annex'!$K$1:$AN$4997,MATCH(I$44&\"|\"&$B74,'Data Annex'!$K$1:$K$4997,0),MATCH(I$45,'Data Annex'!$K$1:$AN$1,0)),\"\")","v":2.6065181099000001},{"$f":"IFERROR(INDEX('Data Annex'!$K$1:$AN$4997,MATCH(J$44&\"|\"&$B74,'Data Annex'!$K$1:$K$4997,0),MATCH(J$45,'Data Annex'!$K$1:$AN$1,0)),\"\")","v":2.7462818017999999},{"$f":"IFERROR(INDEX('Data Annex'!$K$1:$AN$4997,MATCH(K$44&\"|\"&$B74,'Data Annex'!$K$1:$K$4997,0),MATCH(K$45,'Data Annex'!$K$1:$AN$1,0)),\"\")","v":2.7033824211000002},{"$f":"IFERROR(INDEX('Data Annex'!$K$1:$AN$4997,MATCH(L$44&\"|\"&$B74,'Data Annex'!$K$1:$K$4997,0),MATCH(L$45,'Data Annex'!$K$1:$AN$1,0)),\"\")","v":2.7689365647000002},{"$f":"IFERROR(INDEX('Data Annex'!$K$1:$AN$4997,MATCH(M$44&\"|\"&$B74,'Data Annex'!$K$1:$K$4997,0),MATCH(M$45,'Data Annex'!$K$1:$AN$1,0)),\"\")","v":0.85542560150000002},{"$f":"IFERROR(INDEX('Data Annex'!$K$1:$AN$4997,MATCH(N$44&\"|\"&$B74,'Data Annex'!$K$1:$K$4997,0),MATCH(N$45,'Data Annex'!$K$1:$AN$1,0)),\"\")","v":0.89923540150000003},{"$f":"IFERROR(INDEX('Data Annex'!$K$1:$AN$4997,MATCH(O$44&\"|\"&$B74,'Data Annex'!$K$1:$K$4997,0),MATCH(O$45,'Data Annex'!$K$1:$AN$1,0)),\"\")","v":0.87242993030000004},{"$f":"IFERROR(INDEX('Data Annex'!$K$1:$AN$4997,MATCH(P$44&\"|\"&$B74,'Data Annex'!$K$1:$K$4997,0),MATCH(P$45,'Data Annex'!$K$1:$AN$1,0)),\"\")","v":0.94467600129999996},{"$f":"IFERROR(INDEX('Data Annex'!$K$1:$AN$4997,MATCH(Q$44&\"|\"&$B74,'Data Annex'!$K$1:$K$4997,0),MATCH(Q$45,'Data Annex'!$K$1:$AN$1,0)),\"\")","v":3.1495334567},{"$f":"IFERROR(INDEX('Data Annex'!$K$1:$AN$4997,MATCH(R$44&\"|\"&$B74,'Data Annex'!$K$1:$K$4997,0),MATCH(R$45,'Data Annex'!$K$1:$AN$1,0)),\"\")","v":3.2274769387000002},{"$f":"IFERROR(INDEX('Data Annex'!$K$1:$AN$4997,MATCH(S$44&\"|\"&$B74,'Data Annex'!$K$1:$K$4997,0),MATCH(S$45,'Data Annex'!$K$1:$AN$1,0)),\"\")","v":3.1273990142999999},{"$f":"IFERROR(INDEX('Data Annex'!$K$1:$AN$4997,MATCH(T$44&\"|\"&$B74,'Data Annex'!$K$1:$K$4997,0),MATCH(T$45,'Data Annex'!$K$1:$AN$1,0)),\"\")","v":3.1777167728000002},{"$f":"IFERROR(INDEX('Data Annex'!$K$1:$AN$4997,MATCH(U$44&\"|\"&$B74,'Data Annex'!$K$1:$K$4997,0),MATCH(U$45,'Data Annex'!$K$1:$AN$1,0)),\"\")","v":1.7705318145},{"$f":"IFERROR(INDEX('Data Annex'!$K$1:$AN$4997,MATCH(V$44&\"|\"&$B74,'Data Annex'!$K$1:$K$4997,0),MATCH(V$45,'Data Annex'!$K$1:$AN$1,0)),\"\")","v":1.8494771201},{"$f":"IFERROR(INDEX('Data Annex'!$K$1:$AN$4997,MATCH(W$44&\"|\"&$B74,'Data Annex'!$K$1:$K$4997,0),MATCH(W$45,'Data Annex'!$K$1:$AN$1,0)),\"\")","v":1.8005647256999999},{"$f":"IFERROR(INDEX('Data Annex'!$K$1:$AN$4997,MATCH(X$44&\"|\"&$B74,'Data Annex'!$K$1:$K$4997,0),MATCH(X$45,'Data Annex'!$K$1:$AN$1,0)),\"\")","v":1.8064558063},{"$f":"IFERROR(INDEX('Data Annex'!$K$1:$AN$4997,MATCH(Y$44&\"|\"&$B74,'Data Annex'!$K$1:$K$4997,0),MATCH(Y$45,'Data Annex'!$K$1:$AN$1,0)),\"\")","v":1.4616389217000001},{"$f":"IFERROR(INDEX('Data Annex'!$K$1:$AN$4997,MATCH(Z$44&\"|\"&$B74,'Data Annex'!$K$1:$K$4997,0),MATCH(Z$45,'Data Annex'!$K$1:$AN$1,0)),\"\")","v":1.5257279197},{"$f":"IFERROR(INDEX('Data Annex'!$K$1:$AN$4997,MATCH(AA$44&\"|\"&$B74,'Data Annex'!$K$1:$K$4997,0),MATCH(AA$45,'Data Annex'!$K$1:$AN$1,0)),\"\")","v":1.5344949694000001},{"$f":"IFERROR(INDEX('Data Annex'!$K$1:$AN$4997,MATCH(AB$44&\"|\"&$B74,'Data Annex'!$K$1:$K$4997,0),MATCH(AB$45,'Data Annex'!$K$1:$AN$1,0)),\"\")","v":1.6023644249}]
[26,"PT",null,"PT",{"$f":"IFERROR(INDEX('Data Annex'!$K$1:$AN$4997,MATCH(E$44&\"|\"&$B75,'Data Annex'!$K$1:$K$4997,0),MATCH(E$45,'Data Annex'!$K$1:$AN$1,0)),\"\")","v":14.479428523999999},{"$f":"IFERROR(INDEX('Data Annex'!$K$1:$AN$4997,MATCH(F$44&\"|\"&$B75,'Data Annex'!$K$1:$K$4997,0),MATCH(F$45,'Data Annex'!$K$1:$AN$1,0)),\"\")","v":14.221211760999999},{"$f":"IFERROR(INDEX('Data Annex'!$K$1:$AN$4997,MATCH(G$44&\"|\"&$B75,'Data Annex'!$K$1:$K$4997,0),MATCH(G$45,'Data Annex'!$K$1:$AN$1,0)),\"\")","v":13.375368995000001},{"$f":"IFERROR(INDEX('Data Annex'!$K$1:$AN$4997,MATCH(H$44&\"|\"&$B75,'Data Annex'!$K$1:$K$4997,0),MATCH(H$45,'Data Annex'!$K$1:$AN$1,0)),\"\")","v":12.250962465000001},{"$f":"IFERROR(INDEX('Data Annex'!$K$1:$AN$4997,MATCH(I$44&\"|\"&$B75,'Data Annex'!$K$1:$K$4997,0),MATCH(I$45,'Data Annex'!$K$1:$AN$1,0)),\"\")","v":3.9515570019999999},{"$f":"IFERROR(INDEX('Data Annex'!$K$1:$AN$4997,MATCH(J$44&\"|\"&$B75,'Data Annex'!$K$1:$K$4997,0),MATCH(J$45,'Data Annex'!$K$1:$AN$1,0)),\"\")","v":3.9243674502000001},{"$f":"IFERROR(INDEX('Data Annex'!$K$1:$AN$4997,MATCH(K$44&\"|\"&$B75,'Data Annex'!$K$1:$K$4997,0),MATCH(K$45,'Data Annex'!$K$1:$AN$1,0)),\"\")","v":3.7233147276},{"$f":"IFERROR(INDEX('Data Annex'!$K$1:$AN$4997,MATCH(L$44&\"|\"&$B75,'Data Annex'!$K$1:$K$4997,0),MATCH(L$45,'Data Annex'!$K$1:$AN$1,0)),\"\")","v":3.5601443094},{"$f":"IFERROR(INDEX('Data Annex'!$K$1:$AN$4997,MATCH(M$44&\"|\"&$B75,'Data Annex'!$K$1:$K$4997,0),MATCH(M$45,'Data Annex'!$K$1:$AN$1,0)),\"\")","v":2.3335810298999999},{"$f":"IFERROR(INDEX('Data Annex'!$K$1:$AN$4997,MATCH(N$44&\"|\"&$B75,'Data Annex'!$K$1:$K$4997,0),MATCH(N$45,'Data Annex'!$K$1:$AN$1,0)),\"\")","v":2.2339923758000002},{"$f":"IFERROR(INDEX('Data Annex'!$K$1:$AN$4997,MATCH(O$44&\"|\"&$B75,'Data Annex'!$K$1:$K$4997,0),MATCH(O$45,'Data Annex'!$K$1:$AN$1,0)),\"\")","v":2.0809918933999998},{"$f":"IFERROR(INDEX('Data Annex'!$K$1:$AN$4997,MATCH(P$44&\"|\"&$B75,'Data Annex'!$K$1:$K$4997,0),MATCH(P$45,'Data Annex'!$K$1:$AN$1,0)),\"\")","v":1.9635866068000001},{"$f":"IFERROR(INDEX('Data Annex'!$K$1:$AN$4997,MATCH(Q$44&\"|\"&$B75,'Data Annex'!$K$1:$K$4997,0),MATCH(Q$45,'Data Annex'!$K$1:$AN$1,0)),\"\")","v":9.5067388394000005},{"$f":"IFERROR(INDEX('Data Annex'!$K$1:$AN$4997,MATCH(R$44&\"|\"&$B75,'Data Annex'!$K$1:$K$4997,0),MATCH(R$45,'Data Annex'!$K$1:$AN$1,0)),\"\")","v":9.3058148120999995},{"$f":"IFERROR(INDEX('Data Annex'!$K$1:$AN$4997,MATCH(S$44&\"|\"&$B75,'Data Annex'!$K$1:$K$4997,0),MATCH(S$45,'Data Annex'!$K$1:$AN$1,0)),\"\")","v":8.7038853503000002},{"$f":"IFERROR(INDEX('Data Annex'!$K$1:$AN$4997,MATCH(T$44&\"|\"&$B75,'Data Annex'!$K$1:$K$4997,0),MATCH(T$45,'Data Annex'!$K$1:$AN$1,0)),\"\")","v":7.8466262023000004},{"$f":"IFERROR(INDEX('Data Annex'!$K$1:$AN$4997,MATCH(U$44&\"|\"&$B75,'Data Annex'!$K$1:$K$4997,0),MATCH(U$45,'Data Annex'!$K$1:$AN$1,0)),\"\")","v":6.5186167455000001},{"$f":"IFERROR(INDEX('Data Annex'!$K$1:$AN$4997,MATCH(V$44&\"|\"&$B75,'Data Annex'!$K$1:$K$4997,0),MATCH(V$45,'Data Annex'!$K$1:$AN$1,0)),\"\")","v":6.4145801001000002},{"$f":"IFERROR(INDEX('Data Annex'!$K$1:$AN$4997,MATCH(W$44&\"|\"&$B75,'Data Annex'!$K$1:$K$4997,0),MATCH(W$45,'Data Annex'!$K$1:$AN$1,0)),\"\")","v":6.0996366082},{"$f":"IFERROR(INDEX('Data Annex'!$K$1:$AN$4997,MATCH(X$44&\"|\"&$B75,'Data Annex'!$K$1:$K$4997,0),MATCH(X$45,'Data Annex'!$K$1:$AN$1,0)),\"\")","v":5.6524003722999998},{"$f":"IFERROR(INDEX('Data Annex'!$K$1:$AN$4997,MATCH(Y$44&\"|\"&$B75,'Data Annex'!$K$1:$K$4997,0),MATCH(Y$45,'Data Annex'!$K$1:$AN$1,0)),\"\")","v":3.8270136769},{"$f":"IFERROR(INDEX('Data Annex'!$K$1:$AN$4997,MATCH(Z$44&\"|\"&$B75,'Data Annex'!$K$1:$K$4997,0),MATCH(Z$45,'Data Annex'!$K$1:$AN$1,0)),\"\")","v":3.9814694116},{"$f":"IFERROR(INDEX('Data Annex'!$K$1:$AN$4997,MATCH(AA$44&\"|\"&$B75,'Data Annex'!$K$1:$K$4997,0),MATCH(AA$45,'Data Annex'!$K$1:$AN$1,0)),\"\")","v":3.8113446012000001},{"$f":"IFERROR(INDEX('Data Annex'!$K$1:$AN$4997,MATCH(AB$44&\"|\"&$B75,'Data Annex'!$K$1:$K$4997,0),MATCH(AB$45,'Data Annex'!$K$1:$AN$1,0)),\"\")","v":3.5172178903}]
[27,"RO",null,"RO",{"$f":"IFERROR(INDEX('Data Annex'!$K$1:$AN$4997,MATCH(E$44&\"|\"&$B76,'Data Annex'!$K$1:$K$4997,0),MATCH(E$45,'Data Annex'!$K$1:$AN$1,0)),\"\")","v":1.2646013256999999},{"$f":"IFERROR(INDEX('Data Annex'!$K$1:$AN$4997,MATCH(F$44&\"|\"&$B76,'Data Annex'!$K$1:$K$4997,0),MATCH(F$45,'Data Annex'!$K$1:$AN$1,0)),\"\")","v":1.3860152239000001},{"$f":"IFERROR(INDEX('Data Annex'!$K$1:$AN$4997,MATCH(G$44&\"|\"&$B76,'Data Annex'!$K$1:$K$4997,0),MATCH(G$45,'Data Annex'!$K$1:$AN$1,0)),\"\")","v":1.2877826292000001},{"$f":"IFERROR(INDEX('Data Annex'!$K$1:$AN$4997,MATCH(H$44&\"|\"&$B76,'Data Annex'!$K$1:$K$4997,0),MATCH(H$45,'Data Annex'!$K$1:$AN$1,0)),\"\")","v":1.3019763769999999},{"$f":"IFERROR(INDEX('Data Annex'!$K$1:$AN$4997,MATCH(I$44&\"|\"&$B76,'Data Annex'!$K$1:$K$4997,0),MATCH(I$45,'Data Annex'!$K$1:$AN$1,0)),\"\")","v":0.60307071369999998},{"$f":"IFERROR(INDEX('Data Annex'!$K$1:$AN$4997,MATCH(J$44&\"|\"&$B76,'Data Annex'!$K$1:$K$4997,0),MATCH(J$45,'Data Annex'!$K$1:$AN$1,0)),\"\")","v":0.63464444679999998},{"$f":"IFERROR(INDEX('Data Annex'!$K$1:$AN$4997,MATCH(K$44&\"|\"&$B76,'Data Annex'!$K$1:$K$4997,0),MATCH(K$45,'Data Annex'!$K$1:$AN$1,0)),\"\")","v":0.60620159299999998},{"$f":"IFERROR(INDEX('Data Annex'!$K$1:$AN$4997,MATCH(L$44&\"|\"&$B76,'Data Annex'!$K$1:$K$4997,0),MATCH(L$45,'Data Annex'!$K$1:$AN$1,0)),\"\")","v":0.6221239891},{"$f":"IFERROR(INDEX('Data Annex'!$K$1:$AN$4997,MATCH(M$44&\"|\"&$B76,'Data Annex'!$K$1:$K$4997,0),MATCH(M$45,'Data Annex'!$K$1:$AN$1,0)),\"\")","v":0.2904499901},{"$f":"IFERROR(INDEX('Data Annex'!$K$1:$AN$4997,MATCH(N$44&\"|\"&$B76,'Data Annex'!$K$1:$K$4997,0),MATCH(N$45,'Data Annex'!$K$1:$AN$1,0)),\"\")","v":0.29020068370000002},{"$f":"IFERROR(INDEX('Data Annex'!$K$1:$AN$4997,MATCH(O$44&\"|\"&$B76,'Data Annex'!$K$1:$K$4997,0),MATCH(O$45,'Data Annex'!$K$1:$AN$1,0)),\"\")","v":0.26170717850000003},{"$f":"IFERROR(INDEX('Data Annex'!$K$1:$AN$4997,MATCH(P$44&\"|\"&$B76,'Data Annex'!$K$1:$K$4997,0),MATCH(P$45,'Data Annex'!$K$1:$AN$1,0)),\"\")","v":0.26261596370000001},{"$f":"IFERROR(INDEX('Data Annex'!$K$1:$AN$4997,MATCH(Q$44&\"|\"&$B76,'Data Annex'!$K$1:$K$4997,0),MATCH(Q$45,'Data Annex'!$K$1:$AN$1,0)),\"\")","v":0.65154439080000004},{"$f":"IFERROR(INDEX('Data Annex'!$K$1:$AN$4997,MATCH(R$44&\"|\"&$B76,'Data Annex'!$K$1:$K$4997,0),MATCH(R$45,'Data Annex'!$K$1:$AN$1,0)),\"\")","v":0.72888305289999999},{"$f":"IFERROR(INDEX('Data Annex'!$K$1:$AN$4997,MATCH(S$44&\"|\"&$B76,'Data Annex'!$K$1:$K$4997,0),MATCH(S$45,'Data Annex'!$K$1:$AN$1,0)),\"\")","v":0.66002552020000005},{"$f":"IFERROR(INDEX('Data Annex'!$K$1:$AN$4997,MATCH(T$44&\"|\"&$B76,'Data Annex'!$K$1:$K$4997,0),MATCH(T$45,'Data Annex'!$K$1:$AN$1,0)),\"\")","v":0.66059547480000003},{"$f":"IFERROR(INDEX('Data Annex'!$K$1:$AN$4997,MATCH(U$44&\"|\"&$B76,'Data Annex'!$K$1:$K$4997,0),MATCH(U$45,'Data Annex'!$K$1:$AN$1,0)),\"\")","v":0.28394382410000002},{"$f":"IFERROR(INDEX('Data Annex'!$K$1:$AN$4997,MATCH(V$44&\"|\"&$B76,'Data Annex'!$K$1:$K$4997,0),MATCH(V$45,'Data Annex'!$K$1:$AN$1,0)),\"\")","v":0.3320688497},{"$f":"IFERROR(INDEX('Data Annex'!$K$1:$AN$4997,MATCH(W$44&\"|\"&$B76,'Data Annex'!$K$1:$K$4997,0),MATCH(W$45,'Data Annex'!$K$1:$AN$1,0)),\"\")","v":0.30001036720000002},{"$f":"IFERROR(INDEX('Data Annex'!$K$1:$AN$4997,MATCH(X$44&\"|\"&$B76,'Data Annex'!$K$1:$K$4997,0),MATCH(X$45,'Data Annex'!$K$1:$AN$1,0)),\"\")","v":0.33023043749999997},{"$f":"IFERROR(INDEX('Data Annex'!$K$1:$AN$4997,MATCH(Y$44&\"|\"&$B76,'Data Annex'!$K$1:$K$4997,0),MATCH(Y$45,'Data Annex'!$K$1:$AN$1,0)),\"\")","v":0.33226953009999999},{"$f":"IFERROR(INDEX('Data Annex'!$K$1:$AN$4997,MATCH(Z$44&\"|\"&$B76,'Data Annex'!$K$1:$K$4997,0),MATCH(Z$45,'Data Annex'!$K$1:$AN$1,0)),\"\")","v":0.43117491390000001},{"$f":"IFERROR(INDEX('Data Annex'!$K$1:$AN$4997,MATCH(AA$44&\"|\"&$B76,'Data Annex'!$K$1:$K$4997,0),MATCH(AA$45,'Data Annex'!$K$1:$AN$1,0)),\"\")","v":0.38917717909999999},{"$f":"IFERROR(INDEX('Data Annex'!$K$1:$AN$4997,MATCH(AB$44&\"|\"&$B76,'Data Annex'!$K$1:$K$4997,0),MATCH(AB$45,'Data Annex'!$K$1:$AN$1,0)),\"\")","v":0.34296218760000002}]
[28,"SE",null,"SE",{"$f":"IFERROR(INDEX('Data Annex'!$K$1:$AN$4997,MATCH(E$44&\"|\"&$B77,'Data Annex'!$K$1:$K$4997,0),MATCH(E$45,'Data Annex'!$K$1:$AN$1,0)),\"\")","v":3.6819000179999999},{"$f":"IFERROR(INDEX('Data Annex'!$K$1:$AN$4997,MATCH(F$44&\"|\"&$B77,'Data Annex'!$K$1:$K$4997,0),MATCH(F$45,'Data Annex'!$K$1:$AN$1,0)),\"\")","v":3.9971023204999998},{"$f":"IFERROR(INDEX('Data Annex'!$K$1:$AN$4997,MATCH(G$44&\"|\"&$B77,'Data Annex'!$K$1:$K$4997,0),MATCH(G$45,'Data Annex'!$K$1:$AN$1,0)),\"\")","v":3.8680987645},{"$f":"IFERROR(INDEX('Data Annex'!$K$1:$AN$4997,MATCH(H$44&\"|\"&$B77,'Data Annex'!$K$1:$K$4997,0),MATCH(H$45,'Data Annex'!$K$1:$AN$1,0)),\"\")","v":3.7060700863},{"$f":"IFERROR(INDEX('Data Annex'!$K$1:$AN$4997,MATCH(I$44&\"|\"&$B77,'Data Annex'!$K$1:$K$4997,0),MATCH(I$45,'Data Annex'!$K$1:$AN$1,0)),\"\")","v":0.99369704670000003},{"$f":"IFERROR(INDEX('Data Annex'!$K$1:$AN$4997,MATCH(J$44&\"|\"&$B77,'Data Annex'!$K$1:$K$4997,0),MATCH(J$45,'Data Annex'!$K$1:$AN$1,0)),\"\")","v":1.0179848031000001},{"$f":"IFERROR(INDEX('Data Annex'!$K$1:$AN$4997,MATCH(K$44&\"|\"&$B77,'Data Annex'!$K$1:$K$4997,0),MATCH(K$45,'Data Annex'!$K$1:$AN$1,0)),\"\")","v":0.97865093489999999},{"$f":"IFERROR(INDEX('Data Annex'!$K$1:$AN$4997,MATCH(L$44&\"|\"&$B77,'Data Annex'!$K$1:$K$4997,0),MATCH(L$45,'Data Annex'!$K$1:$AN$1,0)),\"\")","v":1.0322268286},{"$f":"IFERROR(INDEX('Data Annex'!$K$1:$AN$4997,MATCH(M$44&\"|\"&$B77,'Data Annex'!$K$1:$K$4997,0),MATCH(M$45,'Data Annex'!$K$1:$AN$1,0)),\"\")","v":0.48683964260000001},{"$f":"IFERROR(INDEX('Data Annex'!$K$1:$AN$4997,MATCH(N$44&\"|\"&$B77,'Data Annex'!$K$1:$K$4997,0),MATCH(N$45,'Data Annex'!$K$1:$AN$1,0)),\"\")","v":0.49800199319999999},{"$f":"IFERROR(INDEX('Data Annex'!$K$1:$AN$4997,MATCH(O$44&\"|\"&$B77,'Data Annex'!$K$1:$K$4997,0),MATCH(O$45,'Data Annex'!$K$1:$AN$1,0)),\"\")","v":0.48511733330000001},{"$f":"IFERROR(INDEX('Data Annex'!$K$1:$AN$4997,MATCH(P$44&\"|\"&$B77,'Data Annex'!$K$1:$K$4997,0),MATCH(P$45,'Data Annex'!$K$1:$AN$1,0)),\"\")","v":0.49162871879999998},{"$f":"IFERROR(INDEX('Data Annex'!$K$1:$AN$4997,MATCH(Q$44&\"|\"&$B77,'Data Annex'!$K$1:$K$4997,0),MATCH(Q$45,'Data Annex'!$K$1:$AN$1,0)),\"\")","v":2.5917130836000002},{"$f":"IFERROR(INDEX('Data Annex'!$K$1:$AN$4997,MATCH(R$44&\"|\"&$B77,'Data Annex'!$K$1:$K$4997,0),MATCH(R$45,'Data Annex'!$K$1:$AN$1,0)),\"\")","v":2.8905749429999998},{"$f":"IFERROR(INDEX('Data Annex'!$K$1:$AN$4997,MATCH(S$44&\"|\"&$B77,'Data Annex'!$K$1:$K$4997,0),MATCH(S$45,'Data Annex'!$K$1:$AN$1,0)),\"\")","v":2.8165426823000002},{"$f":"IFERROR(INDEX('Data Annex'!$K$1:$AN$4997,MATCH(T$44&\"|\"&$B77,'Data Annex'!$K$1:$K$4997,0),MATCH(T$45,'Data Annex'!$K$1:$AN$1,0)),\"\")","v":2.6062359876999999},{"$f":"IFERROR(INDEX('Data Annex'!$K$1:$AN$4997,MATCH(U$44&\"|\"&$B77,'Data Annex'!$K$1:$K$4997,0),MATCH(U$45,'Data Annex'!$K$1:$AN$1,0)),\"\")","v":0.52274642920000003},{"$f":"IFERROR(INDEX('Data Annex'!$K$1:$AN$4997,MATCH(V$44&\"|\"&$B77,'Data Annex'!$K$1:$K$4997,0),MATCH(V$45,'Data Annex'!$K$1:$AN$1,0)),\"\")","v":0.7043756176},{"$f":"IFERROR(INDEX('Data Annex'!$K$1:$AN$4997,MATCH(W$44&\"|\"&$B77,'Data Annex'!$K$1:$K$4997,0),MATCH(W$45,'Data Annex'!$K$1:$AN$1,0)),\"\")","v":0.64213212389999996},{"$f":"IFERROR(INDEX('Data Annex'!$K$1:$AN$4997,MATCH(X$44&\"|\"&$B77,'Data Annex'!$K$1:$K$4997,0),MATCH(X$45,'Data Annex'!$K$1:$AN$1,0)),\"\")","v":0.58103988620000002},{"$f":"IFERROR(INDEX('Data Annex'!$K$1:$AN$4997,MATCH(Y$44&\"|\"&$B77,'Data Annex'!$K$1:$K$4997,0),MATCH(Y$45,'Data Annex'!$K$1:$AN$1,0)),\"\")","v":0.2884359118},{"$f":"IFERROR(INDEX('Data Annex'!$K$1:$AN$4997,MATCH(Z$44&\"|\"&$B77,'Data Annex'!$K$1:$K$4997,0),MATCH(Z$45,'Data Annex'!$K$1:$AN$1,0)),\"\")","v":0.38406881840000001},{"$f":"IFERROR(INDEX('Data Annex'!$K$1:$AN$4997,MATCH(AA$44&\"|\"&$B77,'Data Annex'!$K$1:$K$4997,0),MATCH(AA$45,'Data Annex'!$K$1:$AN$1,0)),\"\")","v":0.38890582579999999},{"$f":"IFERROR(INDEX('Data Annex'!$K$1:$AN$4997,MATCH(AB$44&\"|\"&$B77,'Data Annex'!$K$1:$K$4997,0),MATCH(AB$45,'Data Annex'!$K$1:$AN$1,0)),\"\")","v":0.35411587589999999}]
[29,"SI",null,"SI",{"$f":"IFERROR(INDEX('Data Annex'!$K$1:$AN$4997,MATCH(E$44&\"|\"&$B78,'Data Annex'!$K$1:$K$4997,0),MATCH(E$45,'Data Annex'!$K$1:$AN$1,0)),\"\")","v":0.6750579793},{"$f":"IFERROR(INDEX('Data Annex'!$K$1:$AN$4997,MATCH(F$44&\"|\"&$B78,'Data Annex'!$K$1:$K$4997,0),MATCH(F$45,'Data Annex'!$K$1:$AN$1,0)),\"\")","v":0.66432601989999995},{"$f":"IFERROR(INDEX('Data Annex'!$K$1:$AN$4997,MATCH(G$44&\"|\"&$B78,'Data Annex'!$K$1:$K$4997,0),MATCH(G$45,'Data Annex'!$K$1:$AN$1,0)),\"\")","v":0.65218206420000002},{"$f":"IFERROR(INDEX('Data Annex'!$K$1:$AN$4997,MATCH(H$44&\"|\"&$B78,'Data Annex'!$K$1:$K$4997,0),MATCH(H$45,'Data Annex'!$K$1:$AN$1,0)),\"\")","v":0.75223430579999995},{"$f":"IFERROR(INDEX('Data Annex'!$K$1:$AN$4997,MATCH(I$44&\"|\"&$B78,'Data Annex'!$K$1:$K$4997,0),MATCH(I$45,'Data Annex'!$K$1:$AN$1,0)),\"\")","v":0.2014945098},{"$f":"IFERROR(INDEX('Data Annex'!$K$1:$AN$4997,MATCH(J$44&\"|\"&$B78,'Data Annex'!$K$1:$K$4997,0),MATCH(J$45,'Data Annex'!$K$1:$AN$1,0)),\"\")","v":0.19245441620000001},{"$f":"IFERROR(INDEX('Data Annex'!$K$1:$AN$4997,MATCH(K$44&\"|\"&$B78,'Data Annex'!$K$1:$K$4997,0),MATCH(K$45,'Data Annex'!$K$1:$AN$1,0)),\"\")","v":0.20106516260000001},{"$f":"IFERROR(INDEX('Data Annex'!$K$1:$AN$4997,MATCH(L$44&\"|\"&$B78,'Data Annex'!$K$1:$K$4997,0),MATCH(L$45,'Data Annex'!$K$1:$AN$1,0)),\"\")","v":0.25337173769999999},{"$f":"IFERROR(INDEX('Data Annex'!$K$1:$AN$4997,MATCH(M$44&\"|\"&$B78,'Data Annex'!$K$1:$K$4997,0),MATCH(M$45,'Data Annex'!$K$1:$AN$1,0)),\"\")","v":8.5641273399999995E-2},{"$f":"IFERROR(INDEX('Data Annex'!$K$1:$AN$4997,MATCH(N$44&\"|\"&$B78,'Data Annex'!$K$1:$K$4997,0),MATCH(N$45,'Data Annex'!$K$1:$AN$1,0)),\"\")","v":7.7070795100000006E-2},{"$f":"IFERROR(INDEX('Data Annex'!$K$1:$AN$4997,MATCH(O$44&\"|\"&$B78,'Data Annex'!$K$1:$K$4997,0),MATCH(O$45,'Data Annex'!$K$1:$AN$1,0)),\"\")","v":7.9320650300000003E-2},{"$f":"IFERROR(INDEX('Data Annex'!$K$1:$AN$4997,MATCH(P$44&\"|\"&$B78,'Data Annex'!$K$1:$K$4997,0),MATCH(P$45,'Data Annex'!$K$1:$AN$1,0)),\"\")","v":9.3917500799999998E-2},{"$f":"IFERROR(INDEX('Data Annex'!$K$1:$AN$4997,MATCH(Q$44&\"|\"&$B78,'Data Annex'!$K$1:$K$4997,0),MATCH(Q$45,'Data Annex'!$K$1:$AN$1,0)),\"\")","v":0.37068083000000002},{"$f":"IFERROR(INDEX('Data Annex'!$K$1:$AN$4997,MATCH(R$44&\"|\"&$B78,'Data Annex'!$K$1:$K$4997,0),MATCH(R$45,'Data Annex'!$K$1:$AN$1,0)),\"\")","v":0.373300613},{"$f":"IFERROR(INDEX('Data Annex'!$K$1:$AN$4997,MATCH(S$44&\"|\"&$B78,'Data Annex'!$K$1:$K$4997,0),MATCH(S$45,'Data Annex'!$K$1:$AN$1,0)),\"\")","v":0.3461421335},{"$f":"IFERROR(INDEX('Data Annex'!$K$1:$AN$4997,MATCH(T$44&\"|\"&$B78,'Data Annex'!$K$1:$K$4997,0),MATCH(T$45,'Data Annex'!$K$1:$AN$1,0)),\"\")","v":0.39348550360000001},{"$f":"IFERROR(INDEX('Data Annex'!$K$1:$AN$4997,MATCH(U$44&\"|\"&$B78,'Data Annex'!$K$1:$K$4997,0),MATCH(U$45,'Data Annex'!$K$1:$AN$1,0)),\"\")","v":0.29578938659999998},{"$f":"IFERROR(INDEX('Data Annex'!$K$1:$AN$4997,MATCH(V$44&\"|\"&$B78,'Data Annex'!$K$1:$K$4997,0),MATCH(V$45,'Data Annex'!$K$1:$AN$1,0)),\"\")","v":0.30119239790000002},{"$f":"IFERROR(INDEX('Data Annex'!$K$1:$AN$4997,MATCH(W$44&\"|\"&$B78,'Data Annex'!$K$1:$K$4997,0),MATCH(W$45,'Data Annex'!$K$1:$AN$1,0)),\"\")","v":0.28130216959999998},{"$f":"IFERROR(INDEX('Data Annex'!$K$1:$AN$4997,MATCH(X$44&\"|\"&$B78,'Data Annex'!$K$1:$K$4997,0),MATCH(X$45,'Data Annex'!$K$1:$AN$1,0)),\"\")","v":0.32077897649999998},{"$f":"IFERROR(INDEX('Data Annex'!$K$1:$AN$4997,MATCH(Y$44&\"|\"&$B78,'Data Annex'!$K$1:$K$4997,0),MATCH(Y$45,'Data Annex'!$K$1:$AN$1,0)),\"\")","v":0.25261271330000001},{"$f":"IFERROR(INDEX('Data Annex'!$K$1:$AN$4997,MATCH(Z$44&\"|\"&$B78,'Data Annex'!$K$1:$K$4997,0),MATCH(Z$45,'Data Annex'!$K$1:$AN$1,0)),\"\")","v":0.25190791299999998},{"$f":"IFERROR(INDEX('Data Annex'!$K$1:$AN$4997,MATCH(AA$44&\"|\"&$B78,'Data Annex'!$K$1:$K$4997,0),MATCH(AA$45,'Data Annex'!$K$1:$AN$1,0)),\"\")","v":0.22521469290000001},{"$f":"IFERROR(INDEX('Data Annex'!$K$1:$AN$4997,MATCH(AB$44&\"|\"&$B78,'Data Annex'!$K$1:$K$4997,0),MATCH(AB$45,'Data Annex'!$K$1:$AN$1,0)),\"\")","v":0.26078547260000001}]
[30,"SK",null,"SK",{"$f":"IFERROR(INDEX('Data Annex'!$K$1:$AN$4997,MATCH(E$44&\"|\"&$B79,'Data Annex'!$K$1:$K$4997,0),MATCH(E$45,'Data Annex'!$K$1:$AN$1,0)),\"\")","v":1.0904762457999999},{"$f":"IFERROR(INDEX('Data Annex'!$K$1:$AN$4997,MATCH(F$44&\"|\"&$B79,'Data Annex'!$K$1:$K$4997,0),MATCH(F$45,'Data Annex'!$K$1:$AN$1,0)),\"\")","v":1.0851474082999999},{"$f":"IFERROR(INDEX('Data Annex'!$K$1:$AN$4997,MATCH(G$44&\"|\"&$B79,'Data Annex'!$K$1:$K$4997,0),MATCH(G$45,'Data Annex'!$K$1:$AN$1,0)),\"\")","v":1.0437576099999999},{"$f":"IFERROR(INDEX('Data Annex'!$K$1:$AN$4997,MATCH(H$44&\"|\"&$B79,'Data Annex'!$K$1:$K$4997,0),MATCH(H$45,'Data Annex'!$K$1:$AN$1,0)),\"\")","v":1.0086954897},{"$f":"IFERROR(INDEX('Data Annex'!$K$1:$AN$4997,MATCH(I$44&\"|\"&$B79,'Data Annex'!$K$1:$K$4997,0),MATCH(I$45,'Data Annex'!$K$1:$AN$1,0)),\"\")","v":0.73417844350000006},{"$f":"IFERROR(INDEX('Data Annex'!$K$1:$AN$4997,MATCH(J$44&\"|\"&$B79,'Data Annex'!$K$1:$K$4997,0),MATCH(J$45,'Data Annex'!$K$1:$AN$1,0)),\"\")","v":0.76415305529999999},{"$f":"IFERROR(INDEX('Data Annex'!$K$1:$AN$4997,MATCH(K$44&\"|\"&$B79,'Data Annex'!$K$1:$K$4997,0),MATCH(K$45,'Data Annex'!$K$1:$AN$1,0)),\"\")","v":0.73795884},{"$f":"IFERROR(INDEX('Data Annex'!$K$1:$AN$4997,MATCH(L$44&\"|\"&$B79,'Data Annex'!$K$1:$K$4997,0),MATCH(L$45,'Data Annex'!$K$1:$AN$1,0)),\"\")","v":0.69785740860000001},{"$f":"IFERROR(INDEX('Data Annex'!$K$1:$AN$4997,MATCH(M$44&\"|\"&$B79,'Data Annex'!$K$1:$K$4997,0),MATCH(M$45,'Data Annex'!$K$1:$AN$1,0)),\"\")","v":0.32663421939999998},{"$f":"IFERROR(INDEX('Data Annex'!$K$1:$AN$4997,MATCH(N$44&\"|\"&$B79,'Data Annex'!$K$1:$K$4997,0),MATCH(N$45,'Data Annex'!$K$1:$AN$1,0)),\"\")","v":0.32262075690000003},{"$f":"IFERROR(INDEX('Data Annex'!$K$1:$AN$4997,MATCH(O$44&\"|\"&$B79,'Data Annex'!$K$1:$K$4997,0),MATCH(O$45,'Data Annex'!$K$1:$AN$1,0)),\"\")","v":0.31194298409999999},{"$f":"IFERROR(INDEX('Data Annex'!$K$1:$AN$4997,MATCH(P$44&\"|\"&$B79,'Data Annex'!$K$1:$K$4997,0),MATCH(P$45,'Data Annex'!$K$1:$AN$1,0)),\"\")","v":0.3105838219},{"$f":"IFERROR(INDEX('Data Annex'!$K$1:$AN$4997,MATCH(Q$44&\"|\"&$B79,'Data Annex'!$K$1:$K$4997,0),MATCH(Q$45,'Data Annex'!$K$1:$AN$1,0)),\"\")","v":0.35491871899999999},{"$f":"IFERROR(INDEX('Data Annex'!$K$1:$AN$4997,MATCH(R$44&\"|\"&$B79,'Data Annex'!$K$1:$K$4997,0),MATCH(R$45,'Data Annex'!$K$1:$AN$1,0)),\"\")","v":0.31977284700000003},{"$f":"IFERROR(INDEX('Data Annex'!$K$1:$AN$4997,MATCH(S$44&\"|\"&$B79,'Data Annex'!$K$1:$K$4997,0),MATCH(S$45,'Data Annex'!$K$1:$AN$1,0)),\"\")","v":0.30390370849999998},{"$f":"IFERROR(INDEX('Data Annex'!$K$1:$AN$4997,MATCH(T$44&\"|\"&$B79,'Data Annex'!$K$1:$K$4997,0),MATCH(T$45,'Data Annex'!$K$1:$AN$1,0)),\"\")","v":0.30963226269999999},{"$f":"IFERROR(INDEX('Data Annex'!$K$1:$AN$4997,MATCH(U$44&\"|\"&$B79,'Data Annex'!$K$1:$K$4997,0),MATCH(U$45,'Data Annex'!$K$1:$AN$1,0)),\"\")","v":0.24673642800000001},{"$f":"IFERROR(INDEX('Data Annex'!$K$1:$AN$4997,MATCH(V$44&\"|\"&$B79,'Data Annex'!$K$1:$K$4997,0),MATCH(V$45,'Data Annex'!$K$1:$AN$1,0)),\"\")","v":0.25369448039999998},{"$f":"IFERROR(INDEX('Data Annex'!$K$1:$AN$4997,MATCH(W$44&\"|\"&$B79,'Data Annex'!$K$1:$K$4997,0),MATCH(W$45,'Data Annex'!$K$1:$AN$1,0)),\"\")","v":0.2569344811},{"$f":"IFERROR(INDEX('Data Annex'!$K$1:$AN$4997,MATCH(X$44&\"|\"&$B79,'Data Annex'!$K$1:$K$4997,0),MATCH(X$45,'Data Annex'!$K$1:$AN$1,0)),\"\")","v":0.24556692899999999},{"$f":"IFERROR(INDEX('Data Annex'!$K$1:$AN$4997,MATCH(Y$44&\"|\"&$B79,'Data Annex'!$K$1:$K$4997,0),MATCH(Y$45,'Data Annex'!$K$1:$AN$1,0)),\"\")","v":0.1437510541},{"$f":"IFERROR(INDEX('Data Annex'!$K$1:$AN$4997,MATCH(Z$44&\"|\"&$B79,'Data Annex'!$K$1:$K$4997,0),MATCH(Z$45,'Data Annex'!$K$1:$AN$1,0)),\"\")","v":0.1414235154},{"$f":"IFERROR(INDEX('Data Annex'!$K$1:$AN$4997,MATCH(AA$44&\"|\"&$B79,'Data Annex'!$K$1:$K$4997,0),MATCH(AA$45,'Data Annex'!$K$1:$AN$1,0)),\"\")","v":0.13565008919999999},{"$f":"IFERROR(INDEX('Data Annex'!$K$1:$AN$4997,MATCH(AB$44&\"|\"&$B79,'Data Annex'!$K$1:$K$4997,0),MATCH(AB$45,'Data Annex'!$K$1:$AN$1,0)),\"\")","v":0.14949782740000001}]
[99,"EU",null,"EU/EEA",{"$f":"IFERROR(INDEX('Data Annex'!$K$1:$AN$4997,MATCH(E$44&\"|\"&$B80,'Data Annex'!$K$1:$K$4997,0),MATCH(E$45,'Data Annex'!$K$1:$AN$1,0)),\"\")","v":524.66980663000004},{"$f":"IFERROR(INDEX('Data Annex'!$K$1:$AN$4997,MATCH(F$44&\"|\"&$B80,'Data Annex'!$K$1:$K$4997,0),MATCH(F$45,'Data Annex'!$K$1:$AN$1,0)),\"\")","v":528.49835655000004},{"$f":"IFERROR(INDEX('Data Annex'!$K$1:$AN$4997,MATCH(G$44&\"|\"&$B80,'Data Annex'!$K$1:$K$4997,0),MATCH(G$45,'Data Annex'!$K$1:$AN$1,0)),\"\")","v":510.33687508999998},{"$f":"IFERROR(INDEX('Data Annex'!$K$1:$AN$4997,MATCH(H$44&\"|\"&$B80,'Data Annex'!$K$1:$K$4997,0),MATCH(H$45,'Data Annex'!$K$1:$AN$1,0)),\"\")","v":467.71759280999999},{"$f":"IFERROR(INDEX('Data Annex'!$K$1:$AN$4997,MATCH(I$44&\"|\"&$B80,'Data Annex'!$K$1:$K$4997,0),MATCH(I$45,'Data Annex'!$K$1:$AN$1,0)),\"\")","v":202.28014709000001},{"$f":"IFERROR(INDEX('Data Annex'!$K$1:$AN$4997,MATCH(J$44&\"|\"&$B80,'Data Annex'!$K$1:$K$4997,0),MATCH(J$45,'Data Annex'!$K$1:$AN$1,0)),\"\")","v":202.24812635000001},{"$f":"IFERROR(INDEX('Data Annex'!$K$1:$AN$4997,MATCH(K$44&\"|\"&$B80,'Data Annex'!$K$1:$K$4997,0),MATCH(K$45,'Data Annex'!$K$1:$AN$1,0)),\"\")","v":193.2326923},{"$f":"IFERROR(INDEX('Data Annex'!$K$1:$AN$4997,MATCH(L$44&\"|\"&$B80,'Data Annex'!$K$1:$K$4997,0),MATCH(L$45,'Data Annex'!$K$1:$AN$1,0)),\"\")","v":174.54027042999999},{"$f":"IFERROR(INDEX('Data Annex'!$K$1:$AN$4997,MATCH(M$44&\"|\"&$B80,'Data Annex'!$K$1:$K$4997,0),MATCH(M$45,'Data Annex'!$K$1:$AN$1,0)),\"\")","v":109.09019483},{"$f":"IFERROR(INDEX('Data Annex'!$K$1:$AN$4997,MATCH(N$44&\"|\"&$B80,'Data Annex'!$K$1:$K$4997,0),MATCH(N$45,'Data Annex'!$K$1:$AN$1,0)),\"\")","v":107.97582797},{"$f":"IFERROR(INDEX('Data Annex'!$K$1:$AN$4997,MATCH(O$44&\"|\"&$B80,'Data Annex'!$K$1:$K$4997,0),MATCH(O$45,'Data Annex'!$K$1:$AN$1,0)),\"\")","v":103.24251352},{"$f":"IFERROR(INDEX('Data Annex'!$K$1:$AN$4997,MATCH(P$44&\"|\"&$B80,'Data Annex'!$K$1:$K$4997,0),MATCH(P$45,'Data Annex'!$K$1:$AN$1,0)),\"\")","v":89.521238983000003},{"$f":"IFERROR(INDEX('Data Annex'!$K$1:$AN$4997,MATCH(Q$44&\"|\"&$B80,'Data Annex'!$K$1:$K$4997,0),MATCH(Q$45,'Data Annex'!$K$1:$AN$1,0)),\"\")","v":294.5350474},{"$f":"IFERROR(INDEX('Data Annex'!$K$1:$AN$4997,MATCH(R$44&\"|\"&$B80,'Data Annex'!$K$1:$K$4997,0),MATCH(R$45,'Data Annex'!$K$1:$AN$1,0)),\"\")","v":298.14154245999998},{"$f":"IFERROR(INDEX('Data Annex'!$K$1:$AN$4997,MATCH(S$44&\"|\"&$B80,'Data Annex'!$K$1:$K$4997,0),MATCH(S$45,'Data Annex'!$K$1:$AN$1,0)),\"\")","v":289.90587428999999},{"$f":"IFERROR(INDEX('Data Annex'!$K$1:$AN$4997,MATCH(T$44&\"|\"&$B80,'Data Annex'!$K$1:$K$4997,0),MATCH(T$45,'Data Annex'!$K$1:$AN$1,0)),\"\")","v":261.86878359999997},{"$f":"IFERROR(INDEX('Data Annex'!$K$1:$AN$4997,MATCH(U$44&\"|\"&$B80,'Data Annex'!$K$1:$K$4997,0),MATCH(U$45,'Data Annex'!$K$1:$AN$1,0)),\"\")","v":163.30804125},{"$f":"IFERROR(INDEX('Data Annex'!$K$1:$AN$4997,MATCH(V$44&\"|\"&$B80,'Data Annex'!$K$1:$K$4997,0),MATCH(V$45,'Data Annex'!$K$1:$AN$1,0)),\"\")","v":162.82031058999999},{"$f":"IFERROR(INDEX('Data Annex'!$K$1:$AN$4997,MATCH(W$44&\"|\"&$B80,'Data Annex'!$K$1:$K$4997,0),MATCH(W$45,'Data Annex'!$K$1:$AN$1,0)),\"\")","v":153.52392506000001},{"$f":"IFERROR(INDEX('Data Annex'!$K$1:$AN$4997,MATCH(X$44&\"|\"&$B80,'Data Annex'!$K$1:$K$4997,0),MATCH(X$45,'Data Annex'!$K$1:$AN$1,0)),\"\")","v":139.87771090000001},{"$f":"IFERROR(INDEX('Data Annex'!$K$1:$AN$4997,MATCH(Y$44&\"|\"&$B80,'Data Annex'!$K$1:$K$4997,0),MATCH(Y$45,'Data Annex'!$K$1:$AN$1,0)),\"\")","v":95.218504675999995},{"$f":"IFERROR(INDEX('Data Annex'!$K$1:$AN$4997,MATCH(Z$44&\"|\"&$B80,'Data Annex'!$K$1:$K$4997,0),MATCH(Z$45,'Data Annex'!$K$1:$AN$1,0)),\"\")","v":93.395104712999995},{"$f":"IFERROR(INDEX('Data Annex'!$K$1:$AN$4997,MATCH(AA$44&\"|\"&$B80,'Data Annex'!$K$1:$K$4997,0),MATCH(AA$45,'Data Annex'!$K$1:$AN$1,0)),\"\")","v":90.16687211},{"$f":"IFERROR(INDEX('Data Annex'!$K$1:$AN$4997,MATCH(AB$44&\"|\"&$B80,'Data Annex'!$K$1:$K$4997,0),MATCH(AB$45,'Data Annex'!$K$1:$AN$1,0)),\"\")","v":81.442596862000002}]
[12,"GB",null,"GB",{"$f":"IFERROR(INDEX('Data Annex'!$K$1:$AN$4997,MATCH(E$44&\"|\"&$B81,'Data Annex'!$K$1:$K$4997,0),MATCH(E$45,'Data Annex'!$K$1:$AN$1,0)),\"\")","v":56.803763732999997},{"$f":"IFERROR(INDEX('Data Annex'!$K$1:$AN$4997,MATCH(F$44&\"|\"&$B81,'Data Annex'!$K$1:$K$4997,0),MATCH(F$45,'Data Annex'!$K$1:$AN$1,0)),\"\")","v":60.732365602000002},{"$f":"IFERROR(INDEX('Data Annex'!$K$1:$AN$4997,MATCH(G$44&\"|\"&$B81,'Data Annex'!$K$1:$K$4997,0),MATCH(G$45,'Data Annex'!$K$1:$AN$1,0)),\"\")","v":60.589301699000004},{"$f":"IFERROR(INDEX('Data Annex'!$K$1:$AN$4997,MATCH(H$44&\"|\"&$B81,'Data Annex'!$K$1:$K$4997,0),MATCH(H$45,'Data Annex'!$K$1:$AN$1,0)),\"\")","v":59.773781106000001},{"$f":"IFERROR(INDEX('Data Annex'!$K$1:$AN$4997,MATCH(I$44&\"|\"&$B81,'Data Annex'!$K$1:$K$4997,0),MATCH(I$45,'Data Annex'!$K$1:$AN$1,0)),\"\")","v":30.056261218},{"$f":"IFERROR(INDEX('Data Annex'!$K$1:$AN$4997,MATCH(J$44&\"|\"&$B81,'Data Annex'!$K$1:$K$4997,0),MATCH(J$45,'Data Annex'!$K$1:$AN$1,0)),\"\")","v":30.290033270999999},{"$f":"IFERROR(INDEX('Data Annex'!$K$1:$AN$4997,MATCH(K$44&\"|\"&$B81,'Data Annex'!$K$1:$K$4997,0),MATCH(K$45,'Data Annex'!$K$1:$AN$1,0)),\"\")","v":29.194677039999998},{"$f":"IFERROR(INDEX('Data Annex'!$K$1:$AN$4997,MATCH(L$44&\"|\"&$B81,'Data Annex'!$K$1:$K$4997,0),MATCH(L$45,'Data Annex'!$K$1:$AN$1,0)),\"\")","v":29.408441663000001},{"$f":"IFERROR(INDEX('Data Annex'!$K$1:$AN$4997,MATCH(M$44&\"|\"&$B81,'Data Annex'!$K$1:$K$4997,0),MATCH(M$45,'Data Annex'!$K$1:$AN$1,0)),\"\")","v":20.541949836000001},{"$f":"IFERROR(INDEX('Data Annex'!$K$1:$AN$4997,MATCH(N$44&\"|\"&$B81,'Data Annex'!$K$1:$K$4997,0),MATCH(N$45,'Data Annex'!$K$1:$AN$1,0)),\"\")","v":20.570793204000001},{"$f":"IFERROR(INDEX('Data Annex'!$K$1:$AN$4997,MATCH(O$44&\"|\"&$B81,'Data Annex'!$K$1:$K$4997,0),MATCH(O$45,'Data Annex'!$K$1:$AN$1,0)),\"\")","v":19.840128762999999},{"$f":"IFERROR(INDEX('Data Annex'!$K$1:$AN$4997,MATCH(P$44&\"|\"&$B81,'Data Annex'!$K$1:$K$4997,0),MATCH(P$45,'Data Annex'!$K$1:$AN$1,0)),\"\")","v":20.193517557},{"$f":"IFERROR(INDEX('Data Annex'!$K$1:$AN$4997,MATCH(Q$44&\"|\"&$B81,'Data Annex'!$K$1:$K$4997,0),MATCH(Q$45,'Data Annex'!$K$1:$AN$1,0)),\"\")","v":25.456627999999998},{"$f":"IFERROR(INDEX('Data Annex'!$K$1:$AN$4997,MATCH(R$44&\"|\"&$B81,'Data Annex'!$K$1:$K$4997,0),MATCH(R$45,'Data Annex'!$K$1:$AN$1,0)),\"\")","v":28.712940495000002},{"$f":"IFERROR(INDEX('Data Annex'!$K$1:$AN$4997,MATCH(S$44&\"|\"&$B81,'Data Annex'!$K$1:$K$4997,0),MATCH(S$45,'Data Annex'!$K$1:$AN$1,0)),\"\")","v":29.001796278},{"$f":"IFERROR(INDEX('Data Annex'!$K$1:$AN$4997,MATCH(T$44&\"|\"&$B81,'Data Annex'!$K$1:$K$4997,0),MATCH(T$45,'Data Annex'!$K$1:$AN$1,0)),\"\")","v":29.049469962},{"$f":"IFERROR(INDEX('Data Annex'!$K$1:$AN$4997,MATCH(U$44&\"|\"&$B81,'Data Annex'!$K$1:$K$4997,0),MATCH(U$45,'Data Annex'!$K$1:$AN$1,0)),\"\")","v":3.8537154567999998},{"$f":"IFERROR(INDEX('Data Annex'!$K$1:$AN$4997,MATCH(V$44&\"|\"&$B81,'Data Annex'!$K$1:$K$4997,0),MATCH(V$45,'Data Annex'!$K$1:$AN$1,0)),\"\")","v":3.9717861450999998},{"$f":"IFERROR(INDEX('Data Annex'!$K$1:$AN$4997,MATCH(W$44&\"|\"&$B81,'Data Annex'!$K$1:$K$4997,0),MATCH(W$45,'Data Annex'!$K$1:$AN$1,0)),\"\")","v":4.2898782880999997},{"$f":"IFERROR(INDEX('Data Annex'!$K$1:$AN$4997,MATCH(X$44&\"|\"&$B81,'Data Annex'!$K$1:$K$4997,0),MATCH(X$45,'Data Annex'!$K$1:$AN$1,0)),\"\")","v":4.1660225383},{"$f":"IFERROR(INDEX('Data Annex'!$K$1:$AN$4997,MATCH(Y$44&\"|\"&$B81,'Data Annex'!$K$1:$K$4997,0),MATCH(Y$45,'Data Annex'!$K$1:$AN$1,0)),\"\")","v":4.9704850280999997},{"$f":"IFERROR(INDEX('Data Annex'!$K$1:$AN$4997,MATCH(Z$44&\"|\"&$B81,'Data Annex'!$K$1:$K$4997,0),MATCH(Z$45,'Data Annex'!$K$1:$AN$1,0)),\"\")","v":6.3552339071999997},{"$f":"IFERROR(INDEX('Data Annex'!$K$1:$AN$4997,MATCH(AA$44&\"|\"&$B81,'Data Annex'!$K$1:$K$4997,0),MATCH(AA$45,'Data Annex'!$K$1:$AN$1,0)),\"\")","v":6.9754283298999997},{"$f":"IFERROR(INDEX('Data Annex'!$K$1:$AN$4997,MATCH(AB$44&\"|\"&$B81,'Data Annex'!$K$1:$K$4997,0),MATCH(AB$45,'Data Annex'!$K$1:$AN$1,0)),\"\")","v":6.0988495096999999}]
[]
[null,null,null,"Individual country data includes subsidiaries, which are excluded from EU aggregate. For example, at country level the subsidiary in country X of a bank domiciled in country Y is included both in data for countries X and Y (for the latter as part of the consolidated entity). In the EU aggregate, only the consolidated entity domiciled in country Y is considered.  The sample of banks is unbalanced and reviewed annually.\nAs of Q1 2020 onwards UK banks are removed from the EU/EEA aggregate and subsidiaries of UK banks in EU member states are used instead.\n"]
[null,null,null,"(1) Gross carrying amounts, other than trading exposures."]
[null,null,null,"(2) Gross carrying amounts, loans and advances at amortised cost (excluding at fair value through OCI and through P&L, excluding trading exposures)."]

{"sheet":"Loans NPL and coverage ratio","index":5,"n_rows":86,"n_cols":28,"rows_kept":86,"cut":false,"hidden":true,"merged":[[83,3,83,27],[86,3,86,24],[10,24,10,27],[46,8,47,27],[48,3,49,3],[49,4,49,7],[49,8,49,11],[49,12,49,15],[49,16,49,19],[49,20,49,23],[49,24,49,27],[2,3,2,27],[3,3,3,27],[4,3,4,27],[7,8,8,27],[9,3,10,3],[10,4,10,7],[10,8,10,11],[10,12,10,15],[10,16,10,19],[10,20,10,23]]}
[null,null,null,null,"T22_1","T22_1","T22_1","T22_1","T22_2","T22_2","T22_2","T22_2","T22_3","T22_3","T22_3","T22_3","T22_4","T22_4","T22_4","T22_4","T22_5","T22_5","T22_5","T22_5","T22_6","T22_6","T22_6","T22_6"]
[{"$f":"'Reference Dates'!$C$8","v":"202012"},null,null,null,{"$f":"TEXT(E51,\"YYYYMM\")+0","v":202003},202006,202009,202012,202003,202006,202009,202012,202003,202006,202009,202012,202003,202006,202009,202012,202003,202006,202009,202012,202003,202006,202009,202012]
[{"$f":"DATE(LEFT(A2,4),RIGHT(A2,2),1)","v":"2020-12-01"},null,null,"Statistical Annex"]
[null,null,null,"Loans: NPL and coverage ratios"]
[]
[]
[]
[null,null,null,null,null,null,null,null,"of which: loans and advances at amortised cost: NPL ratio (2)"]
[]
[null,null,null,"%"]
[null,null,null,null,"Loans and advances:\nNPL ratio (1)",null,null,null,"HHs",null,null,null,"…of which mortgages",null,null,null,"NFCs",null,null,null,"…of which SMEs",null,null,null,"…of which CRE"]
[null,null,null,null,{"$f":"EOMONTH($A$3,-9)","v":"2020-03-31"},{"$f":"EOMONTH($A$3,-6)","v":"2020-06-30"},{"$f":"EOMONTH($A$3,-3)","v":"2020-09-30"},{"$f":"EOMONTH($A$3,0)","v":"2020-12-31"},{"$f":"EOMONTH($A$3,-9)","v":"2020-03-31"},{"$f":"EOMONTH($A$3,-6)","v":"2020-06-30"},{"$f":"EOMONTH($A$3,-3)","v":"2020-09-30"},{"$f":"EOMONTH($A$3,0)","v":"2020-12-31"},{"$f":"EOMONTH($A$3,-9)","v":"2020-03-31"},{"$f":"EOMONTH($A$3,-6)","v":"2020-06-30"},{"$f":"EOMONTH($A$3,-3)","v":"2020-09-30"},{"$f":"EOMONTH($A$3,0)","v":"2020-12-31"},{"$f":"EOMONTH($A$3,-9)","v":"2020-03-31"},{"$f":"EOMONTH($A$3,-6)","v":"2020-06-30"},{"$f":"EOMONTH($A$3,-3)","v":"2020-09-30"},{"$f":"EOMONTH($A$3,0)","v":"2020-12-31"},{"$f":"EOMONTH($A$3,-9)","v":"2020-03-31"},{"$f":"EOMONTH($A$3,-6)","v":"2020-06-30"},{"$f":"EOMONTH($A$3,-3)","v":"2020-09-30"},{"$f":"EOMONTH($A$3,0)","v":"2020-12-31"},{"$f":"EOMONTH($A$3,-9)","v":"2020-03-31"},{"$f":"EOMONTH($A$3,-6)","v":"2020-06-30"},{"$f":"EOMONTH($A$3,-3)","v":"2020-09-30"},{"$f":"EOMONTH($A$3,0)","v":"2020-12-31"}]
[1,"AT",null,"AT",{"$f":"IFERROR(INDEX('Data Annex'!$K$1:$AN$4997,MATCH(E$1&\"|\"&$B13,'Data Annex'!$K$1:$K$4997,0),MATCH(E$2,'Data Annex'!$K$1:$AN$1,0)),\"\")","v":2.14356762E-2},{"$f":"IFERROR(INDEX('Data Annex'!$K$1:$AN$4997,MATCH(F$1&\"|\"&$B13,'Data Annex'!$K$1:$K$4997,0),MATCH(F$2,'Data Annex'!$K$1:$AN$1,0)),\"\")","v":2.0840315299999999E-2},{"$f":"IFERROR(INDEX('Data Annex'!$K$1:$AN$4997,MATCH(G$1&\"|\"&$B13,'Data Annex'!$K$1:$K$4997,0),MATCH(G$2,'Data Annex'!$K$1:$AN$1,0)),\"\")","v":1.9965544500000001E-2},{"$f":"IFERROR(INDEX('Data Annex'!$K$1:$AN$4997,MATCH(H$1&\"|\"&$B13,'Data Annex'!$K$1:$K$4997,0),MATCH(H$2,'Data Annex'!$K$1:$AN$1,0)),\"\")","v":2.10086801E-2},{"$f":"IFERROR(INDEX('Data Annex'!$K$1:$AN$4997,MATCH(I$1&\"|\"&$B13,'Data Annex'!$K$1:$K$4997,0),MATCH(I$2,'Data Annex'!$K$1:$AN$1,0)),\"\")","v":2.7661950599999999E-2},{"$f":"IFERROR(INDEX('Data Annex'!$K$1:$AN$4997,MATCH(J$1&\"|\"&$B13,'Data Annex'!$K$1:$K$4997,0),MATCH(J$2,'Data Annex'!$K$1:$AN$1,0)),\"\")","v":2.8019974699999999E-2},{"$f":"IFERROR(INDEX('Data Annex'!$K$1:$AN$4997,MATCH(K$1&\"|\"&$B13,'Data Annex'!$K$1:$K$4997,0),MATCH(K$2,'Data Annex'!$K$1:$AN$1,0)),\"\")","v":2.7101850399999999E-2},{"$f":"IFERROR(INDEX('Data Annex'!$K$1:$AN$4997,MATCH(L$1&\"|\"&$B13,'Data Annex'!$K$1:$K$4997,0),MATCH(L$2,'Data Annex'!$K$1:$AN$1,0)),\"\")","v":2.70908355E-2},{"$f":"IFERROR(INDEX('Data Annex'!$K$1:$AN$4997,MATCH(M$1&\"|\"&$B13,'Data Annex'!$K$1:$K$4997,0),MATCH(M$2,'Data Annex'!$K$1:$AN$1,0)),\"\")","v":1.8402420499999999E-2},{"$f":"IFERROR(INDEX('Data Annex'!$K$1:$AN$4997,MATCH(N$1&\"|\"&$B13,'Data Annex'!$K$1:$K$4997,0),MATCH(N$2,'Data Annex'!$K$1:$AN$1,0)),\"\")","v":1.77894366E-2},{"$f":"IFERROR(INDEX('Data Annex'!$K$1:$AN$4997,MATCH(O$1&\"|\"&$B13,'Data Annex'!$K$1:$K$4997,0),MATCH(O$2,'Data Annex'!$K$1:$AN$1,0)),\"\")","v":1.6793097600000001E-2},{"$f":"IFERROR(INDEX('Data Annex'!$K$1:$AN$4997,MATCH(P$1&\"|\"&$B13,'Data Annex'!$K$1:$K$4997,0),MATCH(P$2,'Data Annex'!$K$1:$AN$1,0)),\"\")","v":1.61226101E-2},{"$f":"IFERROR(INDEX('Data Annex'!$K$1:$AN$4997,MATCH(Q$1&\"|\"&$B13,'Data Annex'!$K$1:$K$4997,0),MATCH(Q$2,'Data Annex'!$K$1:$AN$1,0)),\"\")","v":3.0079924899999999E-2},{"$f":"IFERROR(INDEX('Data Annex'!$K$1:$AN$4997,MATCH(R$1&\"|\"&$B13,'Data Annex'!$K$1:$K$4997,0),MATCH(R$2,'Data Annex'!$K$1:$AN$1,0)),\"\")","v":3.0399430700000001E-2},{"$f":"IFERROR(INDEX('Data Annex'!$K$1:$AN$4997,MATCH(S$1&\"|\"&$B13,'Data Annex'!$K$1:$K$4997,0),MATCH(S$2,'Data Annex'!$K$1:$AN$1,0)),\"\")","v":3.0136097099999998E-2},{"$f":"IFERROR(INDEX('Data Annex'!$K$1:$AN$4997,MATCH(T$1&\"|\"&$B13,'Data Annex'!$K$1:$K$4997,0),MATCH(T$2,'Data Annex'!$K$1:$AN$1,0)),\"\")","v":3.37226209E-2},{"$f":"IFERROR(INDEX('Data Annex'!$K$1:$AN$4997,MATCH(U$1&\"|\"&$B13,'Data Annex'!$K$1:$K$4997,0),MATCH(U$2,'Data Annex'!$K$1:$AN$1,0)),\"\")","v":4.1867183400000001E-2},{"$f":"IFERROR(INDEX('Data Annex'!$K$1:$AN$4997,MATCH(V$1&\"|\"&$B13,'Data Annex'!$K$1:$K$4997,0),MATCH(V$2,'Data Annex'!$K$1:$AN$1,0)),\"\")","v":4.2013514000000002E-2},{"$f":"IFERROR(INDEX('Data Annex'!$K$1:$AN$4997,MATCH(W$1&\"|\"&$B13,'Data Annex'!$K$1:$K$4997,0),MATCH(W$2,'Data Annex'!$K$1:$AN$1,0)),\"\")","v":4.1739679600000003E-2},{"$f":"IFERROR(INDEX('Data Annex'!$K$1:$AN$4997,MATCH(X$1&\"|\"&$B13,'Data Annex'!$K$1:$K$4997,0),MATCH(X$2,'Data Annex'!$K$1:$AN$1,0)),\"\")","v":4.5551842699999998E-2},{"$f":"IFERROR(INDEX('Data Annex'!$K$1:$AN$4997,MATCH(Y$1&\"|\"&$B13,'Data Annex'!$K$1:$K$4997,0),MATCH(Y$2,'Data Annex'!$K$1:$AN$1,0)),\"\")","v":3.5400696400000001E-2},{"$f":"IFERROR(INDEX('Data Annex'!$K$1:$AN$4997,MATCH(Z$1&\"|\"&$B13,'Data Annex'!$K$1:$K$4997,0),MATCH(Z$2,'Data Annex'!$K$1:$AN$1,0)),\"\")","v":3.51161283E-2},{"$f":"IFERROR(INDEX('Data Annex'!$K$1:$AN$4997,MATCH(AA$1&\"|\"&$B13,'Data Annex'!$K$1:$K$4997,0),MATCH(AA$2,'Data Annex'!$K$1:$AN$1,0)),\"\")","v":3.3570179999999998E-2},{"$f":"IFERROR(INDEX('Data Annex'!$K$1:$AN$4997,MATCH(AB$1&\"|\"&$B13,'Data Annex'!$K$1:$K$4997,0),MATCH(AB$2,'Data Annex'!$K$1:$AN$1,0)),\"\")","v":3.61443428E-2}]
[2,"BE",null,"BE",{"$f":"IFERROR(INDEX('Data Annex'!$K$1:$AN$4997,MATCH(E$1&\"|\"&$B14,'Data Annex'!$K$1:$K$4997,0),MATCH(E$2,'Data Annex'!$K$1:$AN$1,0)),\"\")","v":1.91921933E-2},{"$f":"IFERROR(INDEX('Data Annex'!$K$1:$AN$4997,MATCH(F$1&\"|\"&$B14,'Data Annex'!$K$1:$K$4997,0),MATCH(F$2,'Data Annex'!$K$1:$AN$1,0)),\"\")","v":1.95359898E-2},{"$f":"IFERROR(INDEX('Data Annex'!$K$1:$AN$4997,MATCH(G$1&\"|\"&$B14,'Data Annex'!$K$1:$K$4997,0),MATCH(G$2,'Data Annex'!$K$1:$AN$1,0)),\"\")","v":1.8979345200000001E-2},{"$f":"IFERROR(INDEX('Data Annex'!$K$1:$AN$4997,MATCH(H$1&\"|\"&$B14,'Data Annex'!$K$1:$K$4997,0),MATCH(H$2,'Data Annex'!$K$1:$AN$1,0)),\"\")","v":1.9748858599999999E-2},{"$f":"IFERROR(INDEX('Data Annex'!$K$1:$AN$4997,MATCH(I$1&\"|\"&$B14,'Data Annex'!$K$1:$K$4997,0),MATCH(I$2,'Data Annex'!$K$1:$AN$1,0)),\"\")","v":2.02711075E-2},{"$f":"IFERROR(INDEX('Data Annex'!$K$1:$AN$4997,MATCH(J$1&\"|\"&$B14,'Data Annex'!$K$1:$K$4997,0),MATCH(J$2,'Data Annex'!$K$1:$AN$1,0)),\"\")","v":2.0314702699999999E-2},{"$f":"IFERROR(INDEX('Data Annex'!$K$1:$AN$4997,MATCH(K$1&\"|\"&$B14,'Data Annex'!$K$1:$K$4997,0),MATCH(K$2,'Data Annex'!$K$1:$AN$1,0)),\"\")","v":1.9613463000000001E-2},{"$f":"IFERROR(INDEX('Data Annex'!$K$1:$AN$4997,MATCH(L$1&\"|\"&$B14,'Data Annex'!$K$1:$K$4997,0),MATCH(L$2,'Data Annex'!$K$1:$AN$1,0)),\"\")","v":1.9503701500000001E-2},{"$f":"IFERROR(INDEX('Data Annex'!$K$1:$AN$4997,MATCH(M$1&\"|\"&$B14,'Data Annex'!$K$1:$K$4997,0),MATCH(M$2,'Data Annex'!$K$1:$AN$1,0)),\"\")","v":1.8960414299999999E-2},{"$f":"IFERROR(INDEX('Data Annex'!$K$1:$AN$4997,MATCH(N$1&\"|\"&$B14,'Data Annex'!$K$1:$K$4997,0),MATCH(N$2,'Data Annex'!$K$1:$AN$1,0)),\"\")","v":1.8249687699999999E-2},{"$f":"IFERROR(INDEX('Data Annex'!$K$1:$AN$4997,MATCH(O$1&\"|\"&$B14,'Data Annex'!$K$1:$K$4997,0),MATCH(O$2,'Data Annex'!$K$1:$AN$1,0)),\"\")","v":1.7489698500000001E-2},{"$f":"IFERROR(INDEX('Data Annex'!$K$1:$AN$4997,MATCH(P$1&\"|\"&$B14,'Data Annex'!$K$1:$K$4997,0),MATCH(P$2,'Data Annex'!$K$1:$AN$1,0)),\"\")","v":1.7354088899999998E-2},{"$f":"IFERROR(INDEX('Data Annex'!$K$1:$AN$4997,MATCH(Q$1&\"|\"&$B14,'Data Annex'!$K$1:$K$4997,0),MATCH(Q$2,'Data Annex'!$K$1:$AN$1,0)),\"\")","v":3.5830808499999998E-2},{"$f":"IFERROR(INDEX('Data Annex'!$K$1:$AN$4997,MATCH(R$1&\"|\"&$B14,'Data Annex'!$K$1:$K$4997,0),MATCH(R$2,'Data Annex'!$K$1:$AN$1,0)),\"\")","v":3.7640584900000003E-2},{"$f":"IFERROR(INDEX('Data Annex'!$K$1:$AN$4997,MATCH(S$1&\"|\"&$B14,'Data Annex'!$K$1:$K$4997,0),MATCH(S$2,'Data Annex'!$K$1:$AN$1,0)),\"\")","v":3.7535457199999997E-2},{"$f":"IFERROR(INDEX('Data Annex'!$K$1:$AN$4997,MATCH(T$1&\"|\"&$B14,'Data Annex'!$K$1:$K$4997,0),MATCH(T$2,'Data Annex'!$K$1:$AN$1,0)),\"\")","v":4.0831267800000001E-2},{"$f":"IFERROR(INDEX('Data Annex'!$K$1:$AN$4997,MATCH(U$1&\"|\"&$B14,'Data Annex'!$K$1:$K$4997,0),MATCH(U$2,'Data Annex'!$K$1:$AN$1,0)),\"\")","v":3.6975901800000002E-2},{"$f":"IFERROR(INDEX('Data Annex'!$K$1:$AN$4997,MATCH(V$1&\"|\"&$B14,'Data Annex'!$K$1:$K$4997,0),MATCH(V$2,'Data Annex'!$K$1:$AN$1,0)),\"\")","v":3.9025109099999997E-2},{"$f":"IFERROR(INDEX('Data Annex'!$K$1:$AN$4997,MATCH(W$1&\"|\"&$B14,'Data Annex'!$K$1:$K$4997,0),MATCH(W$2,'Data Annex'!$K$1:$AN$1,0)),\"\")","v":3.7745198200000003E-2},{"$f":"IFERROR(INDEX('Data Annex'!$K$1:$AN$4997,MATCH(X$1&\"|\"&$B14,'Data Annex'!$K$1:$K$4997,0),MATCH(X$2,'Data Annex'!$K$1:$AN$1,0)),\"\")","v":4.0997456100000003E-2},{"$f":"IFERROR(INDEX('Data Annex'!$K$1:$AN$4997,MATCH(Y$1&\"|\"&$B14,'Data Annex'!$K$1:$K$4997,0),MATCH(Y$2,'Data Annex'!$K$1:$AN$1,0)),\"\")","v":3.7931329399999998E-2},{"$f":"IFERROR(INDEX('Data Annex'!$K$1:$AN$4997,MATCH(Z$1&\"|\"&$B14,'Data Annex'!$K$1:$K$4997,0),MATCH(Z$2,'Data Annex'!$K$1:$AN$1,0)),\"\")","v":3.8475792199999997E-2},{"$f":"IFERROR(INDEX('Data Annex'!$K$1:$AN$4997,MATCH(AA$1&\"|\"&$B14,'Data Annex'!$K$1:$K$4997,0),MATCH(AA$2,'Data Annex'!$K$1:$AN$1,0)),\"\")","v":3.7574469300000003E-2},{"$f":"IFERROR(INDEX('Data Annex'!$K$1:$AN$4997,MATCH(AB$1&\"|\"&$B14,'Data Annex'!$K$1:$K$4997,0),MATCH(AB$2,'Data Annex'!$K$1:$AN$1,0)),\"\")","v":4.73433532E-2}]
[3,"BG",null,"BG",{"$f":"IFERROR(INDEX('Data Annex'!$K$1:$AN$4997,MATCH(E$1&\"|\"&$B15,'Data Annex'!$K$1:$K$4997,0),MATCH(E$2,'Data Annex'!$K$1:$AN$1,0)),\"\")","v":7.4175381499999998E-2},{"$f":"IFERROR(INDEX('Data Annex'!$K$1:$AN$4997,MATCH(F$1&\"|\"&$B15,'Data Annex'!$K$1:$K$4997,0),MATCH(F$2,'Data Annex'!$K$1:$AN$1,0)),\"\")","v":7.6585151599999998E-2},{"$f":"IFERROR(INDEX('Data Annex'!$K$1:$AN$4997,MATCH(G$1&\"|\"&$B15,'Data Annex'!$K$1:$K$4997,0),MATCH(G$2,'Data Annex'!$K$1:$AN$1,0)),\"\")","v":7.1791423899999998E-2},{"$f":"IFERROR(INDEX('Data Annex'!$K$1:$AN$4997,MATCH(H$1&\"|\"&$B15,'Data Annex'!$K$1:$K$4997,0),MATCH(H$2,'Data Annex'!$K$1:$AN$1,0)),\"\")","v":7.0213793100000005E-2},{"$f":"IFERROR(INDEX('Data Annex'!$K$1:$AN$4997,MATCH(I$1&\"|\"&$B15,'Data Annex'!$K$1:$K$4997,0),MATCH(I$2,'Data Annex'!$K$1:$AN$1,0)),\"\")","v":7.43814156E-2},{"$f":"IFERROR(INDEX('Data Annex'!$K$1:$AN$4997,MATCH(J$1&\"|\"&$B15,'Data Annex'!$K$1:$K$4997,0),MATCH(J$2,'Data Annex'!$K$1:$AN$1,0)),\"\")","v":8.2132741499999995E-2},{"$f":"IFERROR(INDEX('Data Annex'!$K$1:$AN$4997,MATCH(K$1&\"|\"&$B15,'Data Annex'!$K$1:$K$4997,0),MATCH(K$2,'Data Annex'!$K$1:$AN$1,0)),\"\")","v":8.0622512300000004E-2},{"$f":"IFERROR(INDEX('Data Annex'!$K$1:$AN$4997,MATCH(L$1&\"|\"&$B15,'Data Annex'!$K$1:$K$4997,0),MATCH(L$2,'Data Annex'!$K$1:$AN$1,0)),\"\")","v":8.2003534200000006E-2},{"$f":"IFERROR(INDEX('Data Annex'!$K$1:$AN$4997,MATCH(M$1&\"|\"&$B15,'Data Annex'!$K$1:$K$4997,0),MATCH(M$2,'Data Annex'!$K$1:$AN$1,0)),\"\")","v":6.13849671E-2},{"$f":"IFERROR(INDEX('Data Annex'!$K$1:$AN$4997,MATCH(N$1&\"|\"&$B15,'Data Annex'!$K$1:$K$4997,0),MATCH(N$2,'Data Annex'!$K$1:$AN$1,0)),\"\")","v":6.3540564800000005E-2},{"$f":"IFERROR(INDEX('Data Annex'!$K$1:$AN$4997,MATCH(O$1&\"|\"&$B15,'Data Annex'!$K$1:$K$4997,0),MATCH(O$2,'Data Annex'!$K$1:$AN$1,0)),\"\")","v":6.0712424799999998E-2},{"$f":"IFERROR(INDEX('Data Annex'!$K$1:$AN$4997,MATCH(P$1&\"|\"&$B15,'Data Annex'!$K$1:$K$4997,0),MATCH(P$2,'Data Annex'!$K$1:$AN$1,0)),\"\")","v":5.95171907E-2},{"$f":"IFERROR(INDEX('Data Annex'!$K$1:$AN$4997,MATCH(Q$1&\"|\"&$B15,'Data Annex'!$K$1:$K$4997,0),MATCH(Q$2,'Data Annex'!$K$1:$AN$1,0)),\"\")","v":0.1206417572},{"$f":"IFERROR(INDEX('Data Annex'!$K$1:$AN$4997,MATCH(R$1&\"|\"&$B15,'Data Annex'!$K$1:$K$4997,0),MATCH(R$2,'Data Annex'!$K$1:$AN$1,0)),\"\")","v":0.1244434317},{"$f":"IFERROR(INDEX('Data Annex'!$K$1:$AN$4997,MATCH(S$1&\"|\"&$B15,'Data Annex'!$K$1:$K$4997,0),MATCH(S$2,'Data Annex'!$K$1:$AN$1,0)),\"\")","v":0.1158531864},{"$f":"IFERROR(INDEX('Data Annex'!$K$1:$AN$4997,MATCH(T$1&\"|\"&$B15,'Data Annex'!$K$1:$K$4997,0),MATCH(T$2,'Data Annex'!$K$1:$AN$1,0)),\"\")","v":0.1161667207},{"$f":"IFERROR(INDEX('Data Annex'!$K$1:$AN$4997,MATCH(U$1&\"|\"&$B15,'Data Annex'!$K$1:$K$4997,0),MATCH(U$2,'Data Annex'!$K$1:$AN$1,0)),\"\")","v":0.15413640319999999},{"$f":"IFERROR(INDEX('Data Annex'!$K$1:$AN$4997,MATCH(V$1&\"|\"&$B15,'Data Annex'!$K$1:$K$4997,0),MATCH(V$2,'Data Annex'!$K$1:$AN$1,0)),\"\")","v":0.1686266673},{"$f":"IFERROR(INDEX('Data Annex'!$K$1:$AN$4997,MATCH(W$1&\"|\"&$B15,'Data Annex'!$K$1:$K$4997,0),MATCH(W$2,'Data Annex'!$K$1:$AN$1,0)),\"\")","v":0.15594843799999999},{"$f":"IFERROR(INDEX('Data Annex'!$K$1:$AN$4997,MATCH(X$1&\"|\"&$B15,'Data Annex'!$K$1:$K$4997,0),MATCH(X$2,'Data Annex'!$K$1:$AN$1,0)),\"\")","v":0.16505308260000001},{"$f":"IFERROR(INDEX('Data Annex'!$K$1:$AN$4997,MATCH(Y$1&\"|\"&$B15,'Data Annex'!$K$1:$K$4997,0),MATCH(Y$2,'Data Annex'!$K$1:$AN$1,0)),\"\")","v":0.13402184680000001},{"$f":"IFERROR(INDEX('Data Annex'!$K$1:$AN$4997,MATCH(Z$1&\"|\"&$B15,'Data Annex'!$K$1:$K$4997,0),MATCH(Z$2,'Data Annex'!$K$1:$AN$1,0)),\"\")","v":0.1411389146},{"$f":"IFERROR(INDEX('Data Annex'!$K$1:$AN$4997,MATCH(AA$1&\"|\"&$B15,'Data Annex'!$K$1:$K$4997,0),MATCH(AA$2,'Data Annex'!$K$1:$AN$1,0)),\"\")","v":0.13601465809999999},{"$f":"IFERROR(INDEX('Data Annex'!$K$1:$AN$4997,MATCH(AB$1&\"|\"&$B15,'Data Annex'!$K$1:$K$4997,0),MATCH(AB$2,'Data Annex'!$K$1:$AN$1,0)),\"\")","v":0.13951683640000001}]
[4,"CY",null,"CY",{"$f":"IFERROR(INDEX('Data Annex'!$K$1:$AN$4997,MATCH(E$1&\"|\"&$B16,'Data Annex'!$K$1:$K$4997,0),MATCH(E$2,'Data Annex'!$K$1:$AN$1,0)),\"\")","v":0.20066256399999999},{"$f":"IFERROR(INDEX('Data Annex'!$K$1:$AN$4997,MATCH(F$1&\"|\"&$B16,'Data Annex'!$K$1:$K$4997,0),MATCH(F$2,'Data Annex'!$K$1:$AN$1,0)),\"\")","v":0.15518134019999999},{"$f":"IFERROR(INDEX('Data Annex'!$K$1:$AN$4997,MATCH(G$1&\"|\"&$B16,'Data Annex'!$K$1:$K$4997,0),MATCH(G$2,'Data Annex'!$K$1:$AN$1,0)),\"\")","v":0.1434789215},{"$f":"IFERROR(INDEX('Data Annex'!$K$1:$AN$4997,MATCH(H$1&\"|\"&$B16,'Data Annex'!$K$1:$K$4997,0),MATCH(H$2,'Data Annex'!$K$1:$AN$1,0)),\"\")","v":0.1148961939},{"$f":"IFERROR(INDEX('Data Annex'!$K$1:$AN$4997,MATCH(I$1&\"|\"&$B16,'Data Annex'!$K$1:$K$4997,0),MATCH(I$2,'Data Annex'!$K$1:$AN$1,0)),\"\")","v":0.31904797019999998},{"$f":"IFERROR(INDEX('Data Annex'!$K$1:$AN$4997,MATCH(J$1&\"|\"&$B16,'Data Annex'!$K$1:$K$4997,0),MATCH(J$2,'Data Annex'!$K$1:$AN$1,0)),\"\")","v":0.25436705679999999},{"$f":"IFERROR(INDEX('Data Annex'!$K$1:$AN$4997,MATCH(K$1&\"|\"&$B16,'Data Annex'!$K$1:$K$4997,0),MATCH(K$2,'Data Annex'!$K$1:$AN$1,0)),\"\")","v":0.23884952109999999},{"$f":"IFERROR(INDEX('Data Annex'!$K$1:$AN$4997,MATCH(L$1&\"|\"&$B16,'Data Annex'!$K$1:$K$4997,0),MATCH(L$2,'Data Annex'!$K$1:$AN$1,0)),\"\")","v":0.19846227550000001},{"$f":"IFERROR(INDEX('Data Annex'!$K$1:$AN$4997,MATCH(M$1&\"|\"&$B16,'Data Annex'!$K$1:$K$4997,0),MATCH(M$2,'Data Annex'!$K$1:$AN$1,0)),\"\")","v":0.30856718770000002},{"$f":"IFERROR(INDEX('Data Annex'!$K$1:$AN$4997,MATCH(N$1&\"|\"&$B16,'Data Annex'!$K$1:$K$4997,0),MATCH(N$2,'Data Annex'!$K$1:$AN$1,0)),\"\")","v":0.25025106270000003},{"$f":"IFERROR(INDEX('Data Annex'!$K$1:$AN$4997,MATCH(O$1&\"|\"&$B16,'Data Annex'!$K$1:$K$4997,0),MATCH(O$2,'Data Annex'!$K$1:$AN$1,0)),\"\")","v":0.23435579100000001},{"$f":"IFERROR(INDEX('Data Annex'!$K$1:$AN$4997,MATCH(P$1&\"|\"&$B16,'Data Annex'!$K$1:$K$4997,0),MATCH(P$2,'Data Annex'!$K$1:$AN$1,0)),\"\")","v":0.1874216088},{"$f":"IFERROR(INDEX('Data Annex'!$K$1:$AN$4997,MATCH(Q$1&\"|\"&$B16,'Data Annex'!$K$1:$K$4997,0),MATCH(Q$2,'Data Annex'!$K$1:$AN$1,0)),\"\")","v":0.26317164469999998},{"$f":"IFERROR(INDEX('Data Annex'!$K$1:$AN$4997,MATCH(R$1&\"|\"&$B16,'Data Annex'!$K$1:$K$4997,0),MATCH(R$2,'Data Annex'!$K$1:$AN$1,0)),\"\")","v":0.20992495680000001},{"$f":"IFERROR(INDEX('Data Annex'!$K$1:$AN$4997,MATCH(S$1&\"|\"&$B16,'Data Annex'!$K$1:$K$4997,0),MATCH(S$2,'Data Annex'!$K$1:$AN$1,0)),\"\")","v":0.19071783379999999},{"$f":"IFERROR(INDEX('Data Annex'!$K$1:$AN$4997,MATCH(T$1&\"|\"&$B16,'Data Annex'!$K$1:$K$4997,0),MATCH(T$2,'Data Annex'!$K$1:$AN$1,0)),\"\")","v":0.26015641090000002},{"$f":"IFERROR(INDEX('Data Annex'!$K$1:$AN$4997,MATCH(U$1&\"|\"&$B16,'Data Annex'!$K$1:$K$4997,0),MATCH(U$2,'Data Annex'!$K$1:$AN$1,0)),\"\")","v":0.29214094159999998},{"$f":"IFERROR(INDEX('Data Annex'!$K$1:$AN$4997,MATCH(V$1&\"|\"&$B16,'Data Annex'!$K$1:$K$4997,0),MATCH(V$2,'Data Annex'!$K$1:$AN$1,0)),\"\")","v":0.2272955522},{"$f":"IFERROR(INDEX('Data Annex'!$K$1:$AN$4997,MATCH(W$1&\"|\"&$B16,'Data Annex'!$K$1:$K$4997,0),MATCH(W$2,'Data Annex'!$K$1:$AN$1,0)),\"\")","v":0.21949300829999999},{"$f":"IFERROR(INDEX('Data Annex'!$K$1:$AN$4997,MATCH(X$1&\"|\"&$B16,'Data Annex'!$K$1:$K$4997,0),MATCH(X$2,'Data Annex'!$K$1:$AN$1,0)),\"\")","v":0.29185154530000001},{"$f":"IFERROR(INDEX('Data Annex'!$K$1:$AN$4997,MATCH(Y$1&\"|\"&$B16,'Data Annex'!$K$1:$K$4997,0),MATCH(Y$2,'Data Annex'!$K$1:$AN$1,0)),\"\")","v":0.2573485157},{"$f":"IFERROR(INDEX('Data Annex'!$K$1:$AN$4997,MATCH(Z$1&\"|\"&$B16,'Data Annex'!$K$1:$K$4997,0),MATCH(Z$2,'Data Annex'!$K$1:$AN$1,0)),\"\")","v":0.20826577020000001},{"$f":"IFERROR(INDEX('Data Annex'!$K$1:$AN$4997,MATCH(AA$1&\"|\"&$B16,'Data Annex'!$K$1:$K$4997,0),MATCH(AA$2,'Data Annex'!$K$1:$AN$1,0)),\"\")","v":0.18130789010000001},{"$f":"IFERROR(INDEX('Data Annex'!$K$1:$AN$4997,MATCH(AB$1&\"|\"&$B16,'Data Annex'!$K$1:$K$4997,0),MATCH(AB$2,'Data Annex'!$K$1:$AN$1,0)),\"\")","v":0.27244177609999998}]
[5,"CZ",null,"CZ",{"$f":"IFERROR(INDEX('Data Annex'!$K$1:$AN$4997,MATCH(E$1&\"|\"&$B17,'Data Annex'!$K$1:$K$4997,0),MATCH(E$2,'Data Annex'!$K$1:$AN$1,0)),\"\")","v":1.14285415E-2},{"$f":"IFERROR(INDEX('Data Annex'!$K$1:$AN$4997,MATCH(F$1&\"|\"&$B17,'Data Annex'!$K$1:$K$4997,0),MATCH(F$2,'Data Annex'!$K$1:$AN$1,0)),\"\")","v":1.24192711E-2},{"$f":"IFERROR(INDEX('Data Annex'!$K$1:$AN$4997,MATCH(G$1&\"|\"&$B17,'Data Annex'!$K$1:$K$4997,0),MATCH(G$2,'Data Annex'!$K$1:$AN$1,0)),\"\")","v":1.2508041900000001E-2},{"$f":"IFERROR(INDEX('Data Annex'!$K$1:$AN$4997,MATCH(H$1&\"|\"&$B17,'Data Annex'!$K$1:$K$4997,0),MATCH(H$2,'Data Annex'!$K$1:$AN$1,0)),\"\")","v":1.47579974E-2},{"$f":"IFERROR(INDEX('Data Annex'!$K$1:$AN$4997,MATCH(I$1&\"|\"&$B17,'Data Annex'!$K$1:$K$4997,0),MATCH(I$2,'Data Annex'!$K$1:$AN$1,0)),\"\")","v":1.6711568900000001E-2},{"$f":"IFERROR(INDEX('Data Annex'!$K$1:$AN$4997,MATCH(J$1&\"|\"&$B17,'Data Annex'!$K$1:$K$4997,0),MATCH(J$2,'Data Annex'!$K$1:$AN$1,0)),\"\")","v":1.62905089E-2},{"$f":"IFERROR(INDEX('Data Annex'!$K$1:$AN$4997,MATCH(K$1&\"|\"&$B17,'Data Annex'!$K$1:$K$4997,0),MATCH(K$2,'Data Annex'!$K$1:$AN$1,0)),\"\")","v":1.5849512900000001E-2},{"$f":"IFERROR(INDEX('Data Annex'!$K$1:$AN$4997,MATCH(L$1&\"|\"&$B17,'Data Annex'!$K$1:$K$4997,0),MATCH(L$2,'Data Annex'!$K$1:$AN$1,0)),\"\")","v":1.7103601400000001E-2},{"$f":"IFERROR(INDEX('Data Annex'!$K$1:$AN$4997,MATCH(M$1&\"|\"&$B17,'Data Annex'!$K$1:$K$4997,0),MATCH(M$2,'Data Annex'!$K$1:$AN$1,0)),\"\")","v":9.1678743999999996E-3},{"$f":"IFERROR(INDEX('Data Annex'!$K$1:$AN$4997,MATCH(N$1&\"|\"&$B17,'Data Annex'!$K$1:$K$4997,0),MATCH(N$2,'Data Annex'!$K$1:$AN$1,0)),\"\")","v":8.9649816999999993E-3},{"$f":"IFERROR(INDEX('Data Annex'!$K$1:$AN$4997,MATCH(O$1&\"|\"&$B17,'Data Annex'!$K$1:$K$4997,0),MATCH(O$2,'Data Annex'!$K$1:$AN$1,0)),\"\")","v":8.8213161000000005E-3},{"$f":"IFERROR(INDEX('Data Annex'!$K$1:$AN$4997,MATCH(P$1&\"|\"&$B17,'Data Annex'!$K$1:$K$4997,0),MATCH(P$2,'Data Annex'!$K$1:$AN$1,0)),\"\")","v":9.1694549000000004E-3},{"$f":"IFERROR(INDEX('Data Annex'!$K$1:$AN$4997,MATCH(Q$1&\"|\"&$B17,'Data Annex'!$K$1:$K$4997,0),MATCH(Q$2,'Data Annex'!$K$1:$AN$1,0)),\"\")","v":2.8508731499999999E-2},{"$f":"IFERROR(INDEX('Data Annex'!$K$1:$AN$4997,MATCH(R$1&\"|\"&$B17,'Data Annex'!$K$1:$K$4997,0),MATCH(R$2,'Data Annex'!$K$1:$AN$1,0)),\"\")","v":3.1249711999999999E-2},{"$f":"IFERROR(INDEX('Data Annex'!$K$1:$AN$4997,MATCH(S$1&\"|\"&$B17,'Data Annex'!$K$1:$K$4997,0),MATCH(S$2,'Data Annex'!$K$1:$AN$1,0)),\"\")","v":3.2420487900000003E-2},{"$f":"IFERROR(INDEX('Data Annex'!$K$1:$AN$4997,MATCH(T$1&\"|\"&$B17,'Data Annex'!$K$1:$K$4997,0),MATCH(T$2,'Data Annex'!$K$1:$AN$1,0)),\"\")","v":3.8358022300000003E-2},{"$f":"IFERROR(INDEX('Data Annex'!$K$1:$AN$4997,MATCH(U$1&\"|\"&$B17,'Data Annex'!$K$1:$K$4997,0),MATCH(U$2,'Data Annex'!$K$1:$AN$1,0)),\"\")","v":3.2684605399999997E-2},{"$f":"IFERROR(INDEX('Data Annex'!$K$1:$AN$4997,MATCH(V$1&\"|\"&$B17,'Data Annex'!$K$1:$K$4997,0),MATCH(V$2,'Data Annex'!$K$1:$AN$1,0)),\"\")","v":3.6155098199999999E-2},{"$f":"IFERROR(INDEX('Data Annex'!$K$1:$AN$4997,MATCH(W$1&\"|\"&$B17,'Data Annex'!$K$1:$K$4997,0),MATCH(W$2,'Data Annex'!$K$1:$AN$1,0)),\"\")","v":3.7047591300000002E-2},{"$f":"IFERROR(INDEX('Data Annex'!$K$1:$AN$4997,MATCH(X$1&\"|\"&$B17,'Data Annex'!$K$1:$K$4997,0),MATCH(X$2,'Data Annex'!$K$1:$AN$1,0)),\"\")","v":4.57735061E-2},{"$f":"IFERROR(INDEX('Data Annex'!$K$1:$AN$4997,MATCH(Y$1&\"|\"&$B17,'Data Annex'!$K$1:$K$4997,0),MATCH(Y$2,'Data Annex'!$K$1:$AN$1,0)),\"\")","v":2.1539817999999999E-2},{"$f":"IFERROR(INDEX('Data Annex'!$K$1:$AN$4997,MATCH(Z$1&\"|\"&$B17,'Data Annex'!$K$1:$K$4997,0),MATCH(Z$2,'Data Annex'!$K$1:$AN$1,0)),\"\")","v":2.4934376599999999E-2},{"$f":"IFERROR(INDEX('Data Annex'!$K$1:$AN$4997,MATCH(AA$1&\"|\"&$B17,'Data Annex'!$K$1:$K$4997,0),MATCH(AA$2,'Data Annex'!$K$1:$AN$1,0)),\"\")","v":2.4778323099999999E-2},{"$f":"IFERROR(INDEX('Data Annex'!$K$1:$AN$4997,MATCH(AB$1&\"|\"&$B17,'Data Annex'!$K$1:$K$4997,0),MATCH(AB$2,'Data Annex'!$K$1:$AN$1,0)),\"\")","v":3.0091884999999999E-2}]
[6,"DE",null,"DE",{"$f":"IFERROR(INDEX('Data Annex'!$K$1:$AN$4997,MATCH(E$1&\"|\"&$B18,'Data Annex'!$K$1:$K$4997,0),MATCH(E$2,'Data Annex'!$K$1:$AN$1,0)),\"\")","v":1.15100368E-2},{"$f":"IFERROR(INDEX('Data Annex'!$K$1:$AN$4997,MATCH(F$1&\"|\"&$B18,'Data Annex'!$K$1:$K$4997,0),MATCH(F$2,'Data Annex'!$K$1:$AN$1,0)),\"\")","v":1.26130432E-2},{"$f":"IFERROR(INDEX('Data Annex'!$K$1:$AN$4997,MATCH(G$1&\"|\"&$B18,'Data Annex'!$K$1:$K$4997,0),MATCH(G$2,'Data Annex'!$K$1:$AN$1,0)),\"\")","v":1.22590741E-2},{"$f":"IFERROR(INDEX('Data Annex'!$K$1:$AN$4997,MATCH(H$1&\"|\"&$B18,'Data Annex'!$K$1:$K$4997,0),MATCH(H$2,'Data Annex'!$K$1:$AN$1,0)),\"\")","v":1.27121506E-2},{"$f":"IFERROR(INDEX('Data Annex'!$K$1:$AN$4997,MATCH(I$1&\"|\"&$B18,'Data Annex'!$K$1:$K$4997,0),MATCH(I$2,'Data Annex'!$K$1:$AN$1,0)),\"\")","v":1.6526564899999999E-2},{"$f":"IFERROR(INDEX('Data Annex'!$K$1:$AN$4997,MATCH(J$1&\"|\"&$B18,'Data Annex'!$K$1:$K$4997,0),MATCH(J$2,'Data Annex'!$K$1:$AN$1,0)),\"\")","v":1.7422143000000001E-2},{"$f":"IFERROR(INDEX('Data Annex'!$K$1:$AN$4997,MATCH(K$1&\"|\"&$B18,'Data Annex'!$K$1:$K$4997,0),MATCH(K$2,'Data Annex'!$K$1:$AN$1,0)),\"\")","v":1.7296060799999999E-2},{"$f":"IFERROR(INDEX('Data Annex'!$K$1:$AN$4997,MATCH(L$1&\"|\"&$B18,'Data Annex'!$K$1:$K$4997,0),MATCH(L$2,'Data Annex'!$K$1:$AN$1,0)),\"\")","v":1.7191852099999998E-2},{"$f":"IFERROR(INDEX('Data Annex'!$K$1:$AN$4997,MATCH(M$1&\"|\"&$B18,'Data Annex'!$K$1:$K$4997,0),MATCH(M$2,'Data Annex'!$K$1:$AN$1,0)),\"\")","v":9.9396161999999993E-3},{"$f":"IFERROR(INDEX('Data Annex'!$K$1:$AN$4997,MATCH(N$1&\"|\"&$B18,'Data Annex'!$K$1:$K$4997,0),MATCH(N$2,'Data Annex'!$K$1:$AN$1,0)),\"\")","v":1.0758819100000001E-2},{"$f":"IFERROR(INDEX('Data Annex'!$K$1:$AN$4997,MATCH(O$1&\"|\"&$B18,'Data Annex'!$K$1:$K$4997,0),MATCH(O$2,'Data Annex'!$K$1:$AN$1,0)),\"\")","v":1.05708296E-2},{"$f":"IFERROR(INDEX('Data Annex'!$K$1:$AN$4997,MATCH(P$1&\"|\"&$B18,'Data Annex'!$K$1:$K$4997,0),MATCH(P$2,'Data Annex'!$K$1:$AN$1,0)),\"\")","v":9.3380466999999998E-3},{"$f":"IFERROR(INDEX('Data Annex'!$K$1:$AN$4997,MATCH(Q$1&\"|\"&$B18,'Data Annex'!$K$1:$K$4997,0),MATCH(Q$2,'Data Annex'!$K$1:$AN$1,0)),\"\")","v":2.1411378200000001E-2},{"$f":"IFERROR(INDEX('Data Annex'!$K$1:$AN$4997,MATCH(R$1&\"|\"&$B18,'Data Annex'!$K$1:$K$4997,0),MATCH(R$2,'Data Annex'!$K$1:$AN$1,0)),\"\")","v":2.54793398E-2},{"$f":"IFERROR(INDEX('Data Annex'!$K$1:$AN$4997,MATCH(S$1&\"|\"&$B18,'Data Annex'!$K$1:$K$4997,0),MATCH(S$2,'Data Annex'!$K$1:$AN$1,0)),\"\")","v":2.6320838700000002E-2},{"$f":"IFERROR(INDEX('Data Annex'!$K$1:$AN$4997,MATCH(T$1&\"|\"&$B18,'Data Annex'!$K$1:$K$4997,0),MATCH(T$2,'Data Annex'!$K$1:$AN$1,0)),\"\")","v":2.5586908700000001E-2},{"$f":"IFERROR(INDEX('Data Annex'!$K$1:$AN$4997,MATCH(U$1&\"|\"&$B18,'Data Annex'!$K$1:$K$4997,0),MATCH(U$2,'Data Annex'!$K$1:$AN$1,0)),\"\")","v":2.6169499700000001E-2},{"$f":"IFERROR(INDEX('Data Annex'!$K$1:$AN$4997,MATCH(V$1&\"|\"&$B18,'Data Annex'!$K$1:$K$4997,0),MATCH(V$2,'Data Annex'!$K$1:$AN$1,0)),\"\")","v":2.70776535E-2},{"$f":"IFERROR(INDEX('Data Annex'!$K$1:$AN$4997,MATCH(W$1&\"|\"&$B18,'Data Annex'!$K$1:$K$4997,0),MATCH(W$2,'Data Annex'!$K$1:$AN$1,0)),\"\")","v":2.4815807400000001E-2},{"$f":"IFERROR(INDEX('Data Annex'!$K$1:$AN$4997,MATCH(X$1&\"|\"&$B18,'Data Annex'!$K$1:$K$4997,0),MATCH(X$2,'Data Annex'!$K$1:$AN$1,0)),\"\")","v":3.0950823499999999E-2},{"$f":"IFERROR(INDEX('Data Annex'!$K$1:$AN$4997,MATCH(Y$1&\"|\"&$B18,'Data Annex'!$K$1:$K$4997,0),MATCH(Y$2,'Data Annex'!$K$1:$AN$1,0)),\"\")","v":1.4758455E-2},{"$f":"IFERROR(INDEX('Data Annex'!$K$1:$AN$4997,MATCH(Z$1&\"|\"&$B18,'Data Annex'!$K$1:$K$4997,0),MATCH(Z$2,'Data Annex'!$K$1:$AN$1,0)),\"\")","v":1.56021519E-2},{"$f":"IFERROR(INDEX('Data Annex'!$K$1:$AN$4997,MATCH(AA$1&\"|\"&$B18,'Data Annex'!$K$1:$K$4997,0),MATCH(AA$2,'Data Annex'!$K$1:$AN$1,0)),\"\")","v":1.7498467E-2},{"$f":"IFERROR(INDEX('Data Annex'!$K$1:$AN$4997,MATCH(AB$1&\"|\"&$B18,'Data Annex'!$K$1:$K$4997,0),MATCH(AB$2,'Data Annex'!$K$1:$AN$1,0)),\"\")","v":2.1599786999999999E-2}]
[7,"DK",null,"DK",{"$f":"IFERROR(INDEX('Data Annex'!$K$1:$AN$4997,MATCH(E$1&\"|\"&$B19,'Data Annex'!$K$1:$K$4997,0),MATCH(E$2,'Data Annex'!$K$1:$AN$1,0)),\"\")","v":1.8316490000000001E-2},{"$f":"IFERROR(INDEX('Data Annex'!$K$1:$AN$4997,MATCH(F$1&\"|\"&$B19,'Data Annex'!$K$1:$K$4997,0),MATCH(F$2,'Data Annex'!$K$1:$AN$1,0)),\"\")","v":1.88270538E-2},{"$f":"IFERROR(INDEX('Data Annex'!$K$1:$AN$4997,MATCH(G$1&\"|\"&$B19,'Data Annex'!$K$1:$K$4997,0),MATCH(G$2,'Data Annex'!$K$1:$AN$1,0)),\"\")","v":1.8727008199999999E-2},{"$f":"IFERROR(INDEX('Data Annex'!$K$1:$AN$4997,MATCH(H$1&\"|\"&$B19,'Data Annex'!$K$1:$K$4997,0),MATCH(H$2,'Data Annex'!$K$1:$AN$1,0)),\"\")","v":1.8686339E-2},{"$f":"IFERROR(INDEX('Data Annex'!$K$1:$AN$4997,MATCH(I$1&\"|\"&$B19,'Data Annex'!$K$1:$K$4997,0),MATCH(I$2,'Data Annex'!$K$1:$AN$1,0)),\"\")","v":2.7488851799999998E-2},{"$f":"IFERROR(INDEX('Data Annex'!$K$1:$AN$4997,MATCH(J$1&\"|\"&$B19,'Data Annex'!$K$1:$K$4997,0),MATCH(J$2,'Data Annex'!$K$1:$AN$1,0)),\"\")","v":2.7683340300000001E-2},{"$f":"IFERROR(INDEX('Data Annex'!$K$1:$AN$4997,MATCH(K$1&\"|\"&$B19,'Data Annex'!$K$1:$K$4997,0),MATCH(K$2,'Data Annex'!$K$1:$AN$1,0)),\"\")","v":2.8616156300000001E-2},{"$f":"IFERROR(INDEX('Data Annex'!$K$1:$AN$4997,MATCH(L$1&\"|\"&$B19,'Data Annex'!$K$1:$K$4997,0),MATCH(L$2,'Data Annex'!$K$1:$AN$1,0)),\"\")","v":2.7085848100000001E-2},{"$f":"IFERROR(INDEX('Data Annex'!$K$1:$AN$4997,MATCH(M$1&\"|\"&$B19,'Data Annex'!$K$1:$K$4997,0),MATCH(M$2,'Data Annex'!$K$1:$AN$1,0)),\"\")","v":1.9869752599999999E-2},{"$f":"IFERROR(INDEX('Data Annex'!$K$1:$AN$4997,MATCH(N$1&\"|\"&$B19,'Data Annex'!$K$1:$K$4997,0),MATCH(N$2,'Data Annex'!$K$1:$AN$1,0)),\"\")","v":1.9567545299999999E-2},{"$f":"IFERROR(INDEX('Data Annex'!$K$1:$AN$4997,MATCH(O$1&\"|\"&$B19,'Data Annex'!$K$1:$K$4997,0),MATCH(O$2,'Data Annex'!$K$1:$AN$1,0)),\"\")","v":2.0833816299999999E-2},{"$f":"IFERROR(INDEX('Data Annex'!$K$1:$AN$4997,MATCH(P$1&\"|\"&$B19,'Data Annex'!$K$1:$K$4997,0),MATCH(P$2,'Data Annex'!$K$1:$AN$1,0)),\"\")","v":1.9395776999999999E-2},{"$f":"IFERROR(INDEX('Data Annex'!$K$1:$AN$4997,MATCH(Q$1&\"|\"&$B19,'Data Annex'!$K$1:$K$4997,0),MATCH(Q$2,'Data Annex'!$K$1:$AN$1,0)),\"\")","v":4.4599525299999998E-2},{"$f":"IFERROR(INDEX('Data Annex'!$K$1:$AN$4997,MATCH(R$1&\"|\"&$B19,'Data Annex'!$K$1:$K$4997,0),MATCH(R$2,'Data Annex'!$K$1:$AN$1,0)),\"\")","v":4.8506610499999998E-2},{"$f":"IFERROR(INDEX('Data Annex'!$K$1:$AN$4997,MATCH(S$1&\"|\"&$B19,'Data Annex'!$K$1:$K$4997,0),MATCH(S$2,'Data Annex'!$K$1:$AN$1,0)),\"\")","v":5.0215957800000002E-2},{"$f":"IFERROR(INDEX('Data Annex'!$K$1:$AN$4997,MATCH(T$1&\"|\"&$B19,'Data Annex'!$K$1:$K$4997,0),MATCH(T$2,'Data Annex'!$K$1:$AN$1,0)),\"\")","v":5.5198473099999999E-2},{"$f":"IFERROR(INDEX('Data Annex'!$K$1:$AN$4997,MATCH(U$1&\"|\"&$B19,'Data Annex'!$K$1:$K$4997,0),MATCH(U$2,'Data Annex'!$K$1:$AN$1,0)),\"\")","v":4.6938825500000003E-2},{"$f":"IFERROR(INDEX('Data Annex'!$K$1:$AN$4997,MATCH(V$1&\"|\"&$B19,'Data Annex'!$K$1:$K$4997,0),MATCH(V$2,'Data Annex'!$K$1:$AN$1,0)),\"\")","v":5.41368401E-2},{"$f":"IFERROR(INDEX('Data Annex'!$K$1:$AN$4997,MATCH(W$1&\"|\"&$B19,'Data Annex'!$K$1:$K$4997,0),MATCH(W$2,'Data Annex'!$K$1:$AN$1,0)),\"\")","v":5.8686097100000001E-2},{"$f":"IFERROR(INDEX('Data Annex'!$K$1:$AN$4997,MATCH(X$1&\"|\"&$B19,'Data Annex'!$K$1:$K$4997,0),MATCH(X$2,'Data Annex'!$K$1:$AN$1,0)),\"\")","v":5.8817785999999997E-2},{"$f":"IFERROR(INDEX('Data Annex'!$K$1:$AN$4997,MATCH(Y$1&\"|\"&$B19,'Data Annex'!$K$1:$K$4997,0),MATCH(Y$2,'Data Annex'!$K$1:$AN$1,0)),\"\")","v":2.7904502500000001E-2},{"$f":"IFERROR(INDEX('Data Annex'!$K$1:$AN$4997,MATCH(Z$1&\"|\"&$B19,'Data Annex'!$K$1:$K$4997,0),MATCH(Z$2,'Data Annex'!$K$1:$AN$1,0)),\"\")","v":3.2405370000000003E-2},{"$f":"IFERROR(INDEX('Data Annex'!$K$1:$AN$4997,MATCH(AA$1&\"|\"&$B19,'Data Annex'!$K$1:$K$4997,0),MATCH(AA$2,'Data Annex'!$K$1:$AN$1,0)),\"\")","v":3.5786366799999997E-2},{"$f":"IFERROR(INDEX('Data Annex'!$K$1:$AN$4997,MATCH(AB$1&\"|\"&$B19,'Data Annex'!$K$1:$K$4997,0),MATCH(AB$2,'Data Annex'!$K$1:$AN$1,0)),\"\")","v":3.7696799099999997E-2}]
[8,"EE",null,"EE",{"$f":"IFERROR(INDEX('Data Annex'!$K$1:$AN$4997,MATCH(E$1&\"|\"&$B20,'Data Annex'!$K$1:$K$4997,0),MATCH(E$2,'Data Annex'!$K$1:$AN$1,0)),\"\")","v":1.4752071699999999E-2},{"$f":"IFERROR(INDEX('Data Annex'!$K$1:$AN$4997,MATCH(F$1&\"|\"&$B20,'Data Annex'!$K$1:$K$4997,0),MATCH(F$2,'Data Annex'!$K$1:$AN$1,0)),\"\")","v":1.47030042E-2},{"$f":"IFERROR(INDEX('Data Annex'!$K$1:$AN$4997,MATCH(G$1&\"|\"&$B20,'Data Annex'!$K$1:$K$4997,0),MATCH(G$2,'Data Annex'!$K$1:$AN$1,0)),\"\")","v":1.31819317E-2},{"$f":"IFERROR(INDEX('Data Annex'!$K$1:$AN$4997,MATCH(H$1&\"|\"&$B20,'Data Annex'!$K$1:$K$4997,0),MATCH(H$2,'Data Annex'!$K$1:$AN$1,0)),\"\")","v":1.0797392100000001E-2},{"$f":"IFERROR(INDEX('Data Annex'!$K$1:$AN$4997,MATCH(I$1&\"|\"&$B20,'Data Annex'!$K$1:$K$4997,0),MATCH(I$2,'Data Annex'!$K$1:$AN$1,0)),\"\")","v":1.5375730299999999E-2},{"$f":"IFERROR(INDEX('Data Annex'!$K$1:$AN$4997,MATCH(J$1&\"|\"&$B20,'Data Annex'!$K$1:$K$4997,0),MATCH(J$2,'Data Annex'!$K$1:$AN$1,0)),\"\")","v":1.6376208900000001E-2},{"$f":"IFERROR(INDEX('Data Annex'!$K$1:$AN$4997,MATCH(K$1&\"|\"&$B20,'Data Annex'!$K$1:$K$4997,0),MATCH(K$2,'Data Annex'!$K$1:$AN$1,0)),\"\")","v":1.4882088599999999E-2},{"$f":"IFERROR(INDEX('Data Annex'!$K$1:$AN$4997,MATCH(L$1&\"|\"&$B20,'Data Annex'!$K$1:$K$4997,0),MATCH(L$2,'Data Annex'!$K$1:$AN$1,0)),\"\")","v":1.47433124E-2},{"$f":"IFERROR(INDEX('Data Annex'!$K$1:$AN$4997,MATCH(M$1&\"|\"&$B20,'Data Annex'!$K$1:$K$4997,0),MATCH(M$2,'Data Annex'!$K$1:$AN$1,0)),\"\")","v":1.5573169600000001E-2},{"$f":"IFERROR(INDEX('Data Annex'!$K$1:$AN$4997,MATCH(N$1&\"|\"&$B20,'Data Annex'!$K$1:$K$4997,0),MATCH(N$2,'Data Annex'!$K$1:$AN$1,0)),\"\")","v":1.6380618699999999E-2},{"$f":"IFERROR(INDEX('Data Annex'!$K$1:$AN$4997,MATCH(O$1&\"|\"&$B20,'Data Annex'!$K$1:$K$4997,0),MATCH(O$2,'Data Annex'!$K$1:$AN$1,0)),\"\")","v":1.4733732100000001E-2},{"$f":"IFERROR(INDEX('Data Annex'!$K$1:$AN$4997,MATCH(P$1&\"|\"&$B20,'Data Annex'!$K$1:$K$4997,0),MATCH(P$2,'Data Annex'!$K$1:$AN$1,0)),\"\")","v":1.4867361399999999E-2},{"$f":"IFERROR(INDEX('Data Annex'!$K$1:$AN$4997,MATCH(Q$1&\"|\"&$B20,'Data Annex'!$K$1:$K$4997,0),MATCH(Q$2,'Data Annex'!$K$1:$AN$1,0)),\"\")","v":2.49212277E-2},{"$f":"IFERROR(INDEX('Data Annex'!$K$1:$AN$4997,MATCH(R$1&\"|\"&$B20,'Data Annex'!$K$1:$K$4997,0),MATCH(R$2,'Data Annex'!$K$1:$AN$1,0)),\"\")","v":2.5210790399999999E-2},{"$f":"IFERROR(INDEX('Data Annex'!$K$1:$AN$4997,MATCH(S$1&\"|\"&$B20,'Data Annex'!$K$1:$K$4997,0),MATCH(S$2,'Data Annex'!$K$1:$AN$1,0)),\"\")","v":2.3601836599999999E-2},{"$f":"IFERROR(INDEX('Data Annex'!$K$1:$AN$4997,MATCH(T$1&\"|\"&$B20,'Data Annex'!$K$1:$K$4997,0),MATCH(T$2,'Data Annex'!$K$1:$AN$1,0)),\"\")","v":1.82677428E-2},{"$f":"IFERROR(INDEX('Data Annex'!$K$1:$AN$4997,MATCH(U$1&\"|\"&$B20,'Data Annex'!$K$1:$K$4997,0),MATCH(U$2,'Data Annex'!$K$1:$AN$1,0)),\"\")","v":2.51104734E-2},{"$f":"IFERROR(INDEX('Data Annex'!$K$1:$AN$4997,MATCH(V$1&\"|\"&$B20,'Data Annex'!$K$1:$K$4997,0),MATCH(V$2,'Data Annex'!$K$1:$AN$1,0)),\"\")","v":2.5893043000000001E-2},{"$f":"IFERROR(INDEX('Data Annex'!$K$1:$AN$4997,MATCH(W$1&\"|\"&$B20,'Data Annex'!$K$1:$K$4997,0),MATCH(W$2,'Data Annex'!$K$1:$AN$1,0)),\"\")","v":2.4002294899999999E-2},{"$f":"IFERROR(INDEX('Data Annex'!$K$1:$AN$4997,MATCH(X$1&\"|\"&$B20,'Data Annex'!$K$1:$K$4997,0),MATCH(X$2,'Data Annex'!$K$1:$AN$1,0)),\"\")","v":1.72037079E-2},{"$f":"IFERROR(INDEX('Data Annex'!$K$1:$AN$4997,MATCH(Y$1&\"|\"&$B20,'Data Annex'!$K$1:$K$4997,0),MATCH(Y$2,'Data Annex'!$K$1:$AN$1,0)),\"\")","v":2.2488214499999999E-2},{"$f":"IFERROR(INDEX('Data Annex'!$K$1:$AN$4997,MATCH(Z$1&\"|\"&$B20,'Data Annex'!$K$1:$K$4997,0),MATCH(Z$2,'Data Annex'!$K$1:$AN$1,0)),\"\")","v":2.4364740999999999E-2},{"$f":"IFERROR(INDEX('Data Annex'!$K$1:$AN$4997,MATCH(AA$1&\"|\"&$B20,'Data Annex'!$K$1:$K$4997,0),MATCH(AA$2,'Data Annex'!$K$1:$AN$1,0)),\"\")","v":2.08415302E-2},{"$f":"IFERROR(INDEX('Data Annex'!$K$1:$AN$4997,MATCH(AB$1&\"|\"&$B20,'Data Annex'!$K$1:$K$4997,0),MATCH(AB$2,'Data Annex'!$K$1:$AN$1,0)),\"\")","v":1.9039656499999998E-2}]
[9,"ES",null,"ES",{"$f":"IFERROR(INDEX('Data Annex'!$K$1:$AN$4997,MATCH(E$1&\"|\"&$B21,'Data Annex'!$K$1:$K$4997,0),MATCH(E$2,'Data Annex'!$K$1:$AN$1,0)),\"\")","v":3.11398679E-2},{"$f":"IFERROR(INDEX('Data Annex'!$K$1:$AN$4997,MATCH(F$1&\"|\"&$B21,'Data Annex'!$K$1:$K$4997,0),MATCH(F$2,'Data Annex'!$K$1:$AN$1,0)),\"\")","v":3.01534878E-2},{"$f":"IFERROR(INDEX('Data Annex'!$K$1:$AN$4997,MATCH(G$1&\"|\"&$B21,'Data Annex'!$K$1:$K$4997,0),MATCH(G$2,'Data Annex'!$K$1:$AN$1,0)),\"\")","v":2.9915182299999999E-2},{"$f":"IFERROR(INDEX('Data Annex'!$K$1:$AN$4997,MATCH(H$1&\"|\"&$B21,'Data Annex'!$K$1:$K$4997,0),MATCH(H$2,'Data Annex'!$K$1:$AN$1,0)),\"\")","v":2.9253182799999999E-2},{"$f":"IFERROR(INDEX('Data Annex'!$K$1:$AN$4997,MATCH(I$1&\"|\"&$B21,'Data Annex'!$K$1:$K$4997,0),MATCH(I$2,'Data Annex'!$K$1:$AN$1,0)),\"\")","v":3.7469825900000003E-2},{"$f":"IFERROR(INDEX('Data Annex'!$K$1:$AN$4997,MATCH(J$1&\"|\"&$B21,'Data Annex'!$K$1:$K$4997,0),MATCH(J$2,'Data Annex'!$K$1:$AN$1,0)),\"\")","v":3.8084541899999998E-2},{"$f":"IFERROR(INDEX('Data Annex'!$K$1:$AN$4997,MATCH(K$1&\"|\"&$B21,'Data Annex'!$K$1:$K$4997,0),MATCH(K$2,'Data Annex'!$K$1:$AN$1,0)),\"\")","v":3.6304410299999999E-2},{"$f":"IFERROR(INDEX('Data Annex'!$K$1:$AN$4997,MATCH(L$1&\"|\"&$B21,'Data Annex'!$K$1:$K$4997,0),MATCH(L$2,'Data Annex'!$K$1:$AN$1,0)),\"\")","v":3.4941738600000001E-2},{"$f":"IFERROR(INDEX('Data Annex'!$K$1:$AN$4997,MATCH(M$1&\"|\"&$B21,'Data Annex'!$K$1:$K$4997,0),MATCH(M$2,'Data Annex'!$K$1:$AN$1,0)),\"\")","v":3.2992184000000001E-2},{"$f":"IFERROR(INDEX('Data Annex'!$K$1:$AN$4997,MATCH(N$1&\"|\"&$B21,'Data Annex'!$K$1:$K$4997,0),MATCH(N$2,'Data Annex'!$K$1:$AN$1,0)),\"\")","v":3.3891394999999998E-2},{"$f":"IFERROR(INDEX('Data Annex'!$K$1:$AN$4997,MATCH(O$1&\"|\"&$B21,'Data Annex'!$K$1:$K$4997,0),MATCH(O$2,'Data Annex'!$K$1:$AN$1,0)),\"\")","v":3.2014712700000003E-2},{"$f":"IFERROR(INDEX('Data Annex'!$K$1:$AN$4997,MATCH(P$1&\"|\"&$B21,'Data Annex'!$K$1:$K$4997,0),MATCH(P$2,'Data Annex'!$K$1:$AN$1,0)),\"\")","v":2.91041483E-2},{"$f":"IFERROR(INDEX('Data Annex'!$K$1:$AN$4997,MATCH(Q$1&\"|\"&$B21,'Data Annex'!$K$1:$K$4997,0),MATCH(Q$2,'Data Annex'!$K$1:$AN$1,0)),\"\")","v":4.48990555E-2},{"$f":"IFERROR(INDEX('Data Annex'!$K$1:$AN$4997,MATCH(R$1&\"|\"&$B21,'Data Annex'!$K$1:$K$4997,0),MATCH(R$2,'Data Annex'!$K$1:$AN$1,0)),\"\")","v":4.4166977500000003E-2},{"$f":"IFERROR(INDEX('Data Annex'!$K$1:$AN$4997,MATCH(S$1&\"|\"&$B21,'Data Annex'!$K$1:$K$4997,0),MATCH(S$2,'Data Annex'!$K$1:$AN$1,0)),\"\")","v":4.5827844399999998E-2},{"$f":"IFERROR(INDEX('Data Annex'!$K$1:$AN$4997,MATCH(T$1&\"|\"&$B21,'Data Annex'!$K$1:$K$4997,0),MATCH(T$2,'Data Annex'!$K$1:$AN$1,0)),\"\")","v":4.6732395400000001E-2},{"$f":"IFERROR(INDEX('Data Annex'!$K$1:$AN$4997,MATCH(U$1&\"|\"&$B21,'Data Annex'!$K$1:$K$4997,0),MATCH(U$2,'Data Annex'!$K$1:$AN$1,0)),\"\")","v":7.2141793499999995E-2},{"$f":"IFERROR(INDEX('Data Annex'!$K$1:$AN$4997,MATCH(V$1&\"|\"&$B21,'Data Annex'!$K$1:$K$4997,0),MATCH(V$2,'Data Annex'!$K$1:$AN$1,0)),\"\")","v":6.8495974200000004E-2},{"$f":"IFERROR(INDEX('Data Annex'!$K$1:$AN$4997,MATCH(W$1&\"|\"&$B21,'Data Annex'!$K$1:$K$4997,0),MATCH(W$2,'Data Annex'!$K$1:$AN$1,0)),\"\")","v":6.8095772099999993E-2},{"$f":"IFERROR(INDEX('Data Annex'!$K$1:$AN$4997,MATCH(X$1&\"|\"&$B21,'Data Annex'!$K$1:$K$4997,0),MATCH(X$2,'Data Annex'!$K$1:$AN$1,0)),\"\")","v":6.6963217199999994E-2},{"$f":"IFERROR(INDEX('Data Annex'!$K$1:$AN$4997,MATCH(Y$1&\"|\"&$B21,'Data Annex'!$K$1:$K$4997,0),MATCH(Y$2,'Data Annex'!$K$1:$AN$1,0)),\"\")","v":9.3758780900000005E-2},{"$f":"IFERROR(INDEX('Data Annex'!$K$1:$AN$4997,MATCH(Z$1&\"|\"&$B21,'Data Annex'!$K$1:$K$4997,0),MATCH(Z$2,'Data Annex'!$K$1:$AN$1,0)),\"\")","v":9.5132943600000006E-2},{"$f":"IFERROR(INDEX('Data Annex'!$K$1:$AN$4997,MATCH(AA$1&\"|\"&$B21,'Data Annex'!$K$1:$K$4997,0),MATCH(AA$2,'Data Annex'!$K$1:$AN$1,0)),\"\")","v":9.4985842000000001E-2},{"$f":"IFERROR(INDEX('Data Annex'!$K$1:$AN$4997,MATCH(AB$1&\"|\"&$B21,'Data Annex'!$K$1:$K$4997,0),MATCH(AB$2,'Data Annex'!$K$1:$AN$1,0)),\"\")","v":9.69857254E-2}]
[10,"FI",null,"FI",{"$f":"IFERROR(INDEX('Data Annex'!$K$1:$AN$4997,MATCH(E$1&\"|\"&$B22,'Data Annex'!$K$1:$K$4997,0),MATCH(E$2,'Data Annex'!$K$1:$AN$1,0)),\"\")","v":1.5152226E-2},{"$f":"IFERROR(INDEX('Data Annex'!$K$1:$AN$4997,MATCH(F$1&\"|\"&$B22,'Data Annex'!$K$1:$K$4997,0),MATCH(F$2,'Data Annex'!$K$1:$AN$1,0)),\"\")","v":1.57794557E-2},{"$f":"IFERROR(INDEX('Data Annex'!$K$1:$AN$4997,MATCH(G$1&\"|\"&$B22,'Data Annex'!$K$1:$K$4997,0),MATCH(G$2,'Data Annex'!$K$1:$AN$1,0)),\"\")","v":1.55370649E-2},{"$f":"IFERROR(INDEX('Data Annex'!$K$1:$AN$4997,MATCH(H$1&\"|\"&$B22,'Data Annex'!$K$1:$K$4997,0),MATCH(H$2,'Data Annex'!$K$1:$AN$1,0)),\"\")","v":1.52415252E-2},{"$f":"IFERROR(INDEX('Data Annex'!$K$1:$AN$4997,MATCH(I$1&\"|\"&$B22,'Data Annex'!$K$1:$K$4997,0),MATCH(I$2,'Data Annex'!$K$1:$AN$1,0)),\"\")","v":1.4153096299999999E-2},{"$f":"IFERROR(INDEX('Data Annex'!$K$1:$AN$4997,MATCH(J$1&\"|\"&$B22,'Data Annex'!$K$1:$K$4997,0),MATCH(J$2,'Data Annex'!$K$1:$AN$1,0)),\"\")","v":1.44771894E-2},{"$f":"IFERROR(INDEX('Data Annex'!$K$1:$AN$4997,MATCH(K$1&\"|\"&$B22,'Data Annex'!$K$1:$K$4997,0),MATCH(K$2,'Data Annex'!$K$1:$AN$1,0)),\"\")","v":1.51330457E-2},{"$f":"IFERROR(INDEX('Data Annex'!$K$1:$AN$4997,MATCH(L$1&\"|\"&$B22,'Data Annex'!$K$1:$K$4997,0),MATCH(L$2,'Data Annex'!$K$1:$AN$1,0)),\"\")","v":1.4580696799999999E-2},{"$f":"IFERROR(INDEX('Data Annex'!$K$1:$AN$4997,MATCH(M$1&\"|\"&$B22,'Data Annex'!$K$1:$K$4997,0),MATCH(M$2,'Data Annex'!$K$1:$AN$1,0)),\"\")","v":1.03578326E-2},{"$f":"IFERROR(INDEX('Data Annex'!$K$1:$AN$4997,MATCH(N$1&\"|\"&$B22,'Data Annex'!$K$1:$K$4997,0),MATCH(N$2,'Data Annex'!$K$1:$AN$1,0)),\"\")","v":1.038386E-2},{"$f":"IFERROR(INDEX('Data Annex'!$K$1:$AN$4997,MATCH(O$1&\"|\"&$B22,'Data Annex'!$K$1:$K$4997,0),MATCH(O$2,'Data Annex'!$K$1:$AN$1,0)),\"\")","v":1.04506276E-2},{"$f":"IFERROR(INDEX('Data Annex'!$K$1:$AN$4997,MATCH(P$1&\"|\"&$B22,'Data Annex'!$K$1:$K$4997,0),MATCH(P$2,'Data Annex'!$K$1:$AN$1,0)),\"\")","v":1.0080186999999999E-2},{"$f":"IFERROR(INDEX('Data Annex'!$K$1:$AN$4997,MATCH(Q$1&\"|\"&$B22,'Data Annex'!$K$1:$K$4997,0),MATCH(Q$2,'Data Annex'!$K$1:$AN$1,0)),\"\")","v":2.6392984299999998E-2},{"$f":"IFERROR(INDEX('Data Annex'!$K$1:$AN$4997,MATCH(R$1&\"|\"&$B22,'Data Annex'!$K$1:$K$4997,0),MATCH(R$2,'Data Annex'!$K$1:$AN$1,0)),\"\")","v":2.75934158E-2},{"$f":"IFERROR(INDEX('Data Annex'!$K$1:$AN$4997,MATCH(S$1&\"|\"&$B22,'Data Annex'!$K$1:$K$4997,0),MATCH(S$2,'Data Annex'!$K$1:$AN$1,0)),\"\")","v":2.52802689E-2},{"$f":"IFERROR(INDEX('Data Annex'!$K$1:$AN$4997,MATCH(T$1&\"|\"&$B22,'Data Annex'!$K$1:$K$4997,0),MATCH(T$2,'Data Annex'!$K$1:$AN$1,0)),\"\")","v":2.3046762299999999E-2},{"$f":"IFERROR(INDEX('Data Annex'!$K$1:$AN$4997,MATCH(U$1&\"|\"&$B22,'Data Annex'!$K$1:$K$4997,0),MATCH(U$2,'Data Annex'!$K$1:$AN$1,0)),\"\")","v":3.0928315800000002E-2},{"$f":"IFERROR(INDEX('Data Annex'!$K$1:$AN$4997,MATCH(V$1&\"|\"&$B22,'Data Annex'!$K$1:$K$4997,0),MATCH(V$2,'Data Annex'!$K$1:$AN$1,0)),\"\")","v":2.8405356499999999E-2},{"$f":"IFERROR(INDEX('Data Annex'!$K$1:$AN$4997,MATCH(W$1&\"|\"&$B22,'Data Annex'!$K$1:$K$4997,0),MATCH(W$2,'Data Annex'!$K$1:$AN$1,0)),\"\")","v":2.9297507399999999E-2},{"$f":"IFERROR(INDEX('Data Annex'!$K$1:$AN$4997,MATCH(X$1&\"|\"&$B22,'Data Annex'!$K$1:$K$4997,0),MATCH(X$2,'Data Annex'!$K$1:$AN$1,0)),\"\")","v":2.5893380800000001E-2},{"$f":"IFERROR(INDEX('Data Annex'!$K$1:$AN$4997,MATCH(Y$1&\"|\"&$B22,'Data Annex'!$K$1:$K$4997,0),MATCH(Y$2,'Data Annex'!$K$1:$AN$1,0)),\"\")","v":2.19311058E-2},{"$f":"IFERROR(INDEX('Data Annex'!$K$1:$AN$4997,MATCH(Z$1&\"|\"&$B22,'Data Annex'!$K$1:$K$4997,0),MATCH(Z$2,'Data Annex'!$K$1:$AN$1,0)),\"\")","v":2.24060656E-2},{"$f":"IFERROR(INDEX('Data Annex'!$K$1:$AN$4997,MATCH(AA$1&\"|\"&$B22,'Data Annex'!$K$1:$K$4997,0),MATCH(AA$2,'Data Annex'!$K$1:$AN$1,0)),\"\")","v":2.1743615500000001E-2},{"$f":"IFERROR(INDEX('Data Annex'!$K$1:$AN$4997,MATCH(AB$1&\"|\"&$B22,'Data Annex'!$K$1:$K$4997,0),MATCH(AB$2,'Data Annex'!$K$1:$AN$1,0)),\"\")","v":1.9654160600000001E-2}]
[11,"FR",null,"FR",{"$f":"IFERROR(INDEX('Data Annex'!$K$1:$AN$4997,MATCH(E$1&\"|\"&$B23,'Data Annex'!$K$1:$K$4997,0),MATCH(E$2,'Data Annex'!$K$1:$AN$1,0)),\"\")","v":2.3849556099999999E-2},{"$f":"IFERROR(INDEX('Data Annex'!$K$1:$AN$4997,MATCH(F$1&\"|\"&$B23,'Data Annex'!$K$1:$K$4997,0),MATCH(F$2,'Data Annex'!$K$1:$AN$1,0)),\"\")","v":2.3403445799999999E-2},{"$f":"IFERROR(INDEX('Data Annex'!$K$1:$AN$4997,MATCH(G$1&\"|\"&$B23,'Data Annex'!$K$1:$K$4997,0),MATCH(G$2,'Data Annex'!$K$1:$AN$1,0)),\"\")","v":2.2982588599999999E-2},{"$f":"IFERROR(INDEX('Data Annex'!$K$1:$AN$4997,MATCH(H$1&\"|\"&$B23,'Data Annex'!$K$1:$K$4997,0),MATCH(H$2,'Data Annex'!$K$1:$AN$1,0)),\"\")","v":2.1923970500000001E-2},{"$f":"IFERROR(INDEX('Data Annex'!$K$1:$AN$4997,MATCH(I$1&\"|\"&$B23,'Data Annex'!$K$1:$K$4997,0),MATCH(I$2,'Data Annex'!$K$1:$AN$1,0)),\"\")","v":2.8950251100000001E-2},{"$f":"IFERROR(INDEX('Data Annex'!$K$1:$AN$4997,MATCH(J$1&\"|\"&$B23,'Data Annex'!$K$1:$K$4997,0),MATCH(J$2,'Data Annex'!$K$1:$AN$1,0)),\"\")","v":2.9054942100000002E-2},{"$f":"IFERROR(INDEX('Data Annex'!$K$1:$AN$4997,MATCH(K$1&\"|\"&$B23,'Data Annex'!$K$1:$K$4997,0),MATCH(K$2,'Data Annex'!$K$1:$AN$1,0)),\"\")","v":2.7622891900000002E-2},{"$f":"IFERROR(INDEX('Data Annex'!$K$1:$AN$4997,MATCH(L$1&\"|\"&$B23,'Data Annex'!$K$1:$K$4997,0),MATCH(L$2,'Data Annex'!$K$1:$AN$1,0)),\"\")","v":2.6008508600000001E-2},{"$f":"IFERROR(INDEX('Data Annex'!$K$1:$AN$4997,MATCH(M$1&\"|\"&$B23,'Data Annex'!$K$1:$K$4997,0),MATCH(M$2,'Data Annex'!$K$1:$AN$1,0)),\"\")","v":2.96958825E-2},{"$f":"IFERROR(INDEX('Data Annex'!$K$1:$AN$4997,MATCH(N$1&\"|\"&$B23,'Data Annex'!$K$1:$K$4997,0),MATCH(N$2,'Data Annex'!$K$1:$AN$1,0)),\"\")","v":2.76332811E-2},{"$f":"IFERROR(INDEX('Data Annex'!$K$1:$AN$4997,MATCH(O$1&\"|\"&$B23,'Data Annex'!$K$1:$K$4997,0),MATCH(O$2,'Data Annex'!$K$1:$AN$1,0)),\"\")","v":2.6887983300000001E-2},{"$f":"IFERROR(INDEX('Data Annex'!$K$1:$AN$4997,MATCH(P$1&\"|\"&$B23,'Data Annex'!$K$1:$K$4997,0),MATCH(P$2,'Data Annex'!$K$1:$AN$1,0)),\"\")","v":2.5098542799999998E-2},{"$f":"IFERROR(INDEX('Data Annex'!$K$1:$AN$4997,MATCH(Q$1&\"|\"&$B23,'Data Annex'!$K$1:$K$4997,0),MATCH(Q$2,'Data Annex'!$K$1:$AN$1,0)),\"\")","v":3.7692095100000003E-2},{"$f":"IFERROR(INDEX('Data Annex'!$K$1:$AN$4997,MATCH(R$1&\"|\"&$B23,'Data Annex'!$K$1:$K$4997,0),MATCH(R$2,'Data Annex'!$K$1:$AN$1,0)),\"\")","v":3.9083036699999997E-2},{"$f":"IFERROR(INDEX('Data Annex'!$K$1:$AN$4997,MATCH(S$1&\"|\"&$B23,'Data Annex'!$K$1:$K$4997,0),MATCH(S$2,'Data Annex'!$K$1:$AN$1,0)),\"\")","v":4.0298242200000001E-2},{"$f":"IFERROR(INDEX('Data Annex'!$K$1:$AN$4997,MATCH(T$1&\"|\"&$B23,'Data Annex'!$K$1:$K$4997,0),MATCH(T$2,'Data Annex'!$K$1:$AN$1,0)),\"\")","v":3.8720304400000002E-2},{"$f":"IFERROR(INDEX('Data Annex'!$K$1:$AN$4997,MATCH(U$1&\"|\"&$B23,'Data Annex'!$K$1:$K$4997,0),MATCH(U$2,'Data Annex'!$K$1:$AN$1,0)),\"\")","v":4.8895000299999998E-2},{"$f":"IFERROR(INDEX('Data Annex'!$K$1:$AN$4997,MATCH(V$1&\"|\"&$B23,'Data Annex'!$K$1:$K$4997,0),MATCH(V$2,'Data Annex'!$K$1:$AN$1,0)),\"\")","v":4.7711763900000002E-2},{"$f":"IFERROR(INDEX('Data Annex'!$K$1:$AN$4997,MATCH(W$1&\"|\"&$B23,'Data Annex'!$K$1:$K$4997,0),MATCH(W$2,'Data Annex'!$K$1:$AN$1,0)),\"\")","v":4.5341939499999998E-2},{"$f":"IFERROR(INDEX('Data Annex'!$K$1:$AN$4997,MATCH(X$1&\"|\"&$B23,'Data Annex'!$K$1:$K$4997,0),MATCH(X$2,'Data Annex'!$K$1:$AN$1,0)),\"\")","v":4.34917394E-2},{"$f":"IFERROR(INDEX('Data Annex'!$K$1:$AN$4997,MATCH(Y$1&\"|\"&$B23,'Data Annex'!$K$1:$K$4997,0),MATCH(Y$2,'Data Annex'!$K$1:$AN$1,0)),\"\")","v":3.9253594400000001E-2},{"$f":"IFERROR(INDEX('Data Annex'!$K$1:$AN$4997,MATCH(Z$1&\"|\"&$B23,'Data Annex'!$K$1:$K$4997,0),MATCH(Z$2,'Data Annex'!$K$1:$AN$1,0)),\"\")","v":4.1525350599999997E-2},{"$f":"IFERROR(INDEX('Data Annex'!$K$1:$AN$4997,MATCH(AA$1&\"|\"&$B23,'Data Annex'!$K$1:$K$4997,0),MATCH(AA$2,'Data Annex'!$K$1:$AN$1,0)),\"\")","v":3.9801616599999999E-2},{"$f":"IFERROR(INDEX('Data Annex'!$K$1:$AN$4997,MATCH(AB$1&\"|\"&$B23,'Data Annex'!$K$1:$K$4997,0),MATCH(AB$2,'Data Annex'!$K$1:$AN$1,0)),\"\")","v":3.8021873400000003E-2}]
[13,"GR",null,"GR",{"$f":"IFERROR(INDEX('Data Annex'!$K$1:$AN$4997,MATCH(E$1&\"|\"&$B24,'Data Annex'!$K$1:$K$4997,0),MATCH(E$2,'Data Annex'!$K$1:$AN$1,0)),\"\")","v":0.3398690144},{"$f":"IFERROR(INDEX('Data Annex'!$K$1:$AN$4997,MATCH(F$1&\"|\"&$B24,'Data Annex'!$K$1:$K$4997,0),MATCH(F$2,'Data Annex'!$K$1:$AN$1,0)),\"\")","v":0.30314301529999998},{"$f":"IFERROR(INDEX('Data Annex'!$K$1:$AN$4997,MATCH(G$1&\"|\"&$B24,'Data Annex'!$K$1:$K$4997,0),MATCH(G$2,'Data Annex'!$K$1:$AN$1,0)),\"\")","v":0.28849461259999998},{"$f":"IFERROR(INDEX('Data Annex'!$K$1:$AN$4997,MATCH(H$1&\"|\"&$B24,'Data Annex'!$K$1:$K$4997,0),MATCH(H$2,'Data Annex'!$K$1:$AN$1,0)),\"\")","v":0.25544358560000002},{"$f":"IFERROR(INDEX('Data Annex'!$K$1:$AN$4997,MATCH(I$1&\"|\"&$B24,'Data Annex'!$K$1:$K$4997,0),MATCH(I$2,'Data Annex'!$K$1:$AN$1,0)),\"\")","v":0.430879664},{"$f":"IFERROR(INDEX('Data Annex'!$K$1:$AN$4997,MATCH(J$1&\"|\"&$B24,'Data Annex'!$K$1:$K$4997,0),MATCH(J$2,'Data Annex'!$K$1:$AN$1,0)),\"\")","v":0.41133935710000002},{"$f":"IFERROR(INDEX('Data Annex'!$K$1:$AN$4997,MATCH(K$1&\"|\"&$B24,'Data Annex'!$K$1:$K$4997,0),MATCH(K$2,'Data Annex'!$K$1:$AN$1,0)),\"\")","v":0.40580269829999999},{"$f":"IFERROR(INDEX('Data Annex'!$K$1:$AN$4997,MATCH(L$1&\"|\"&$B24,'Data Annex'!$K$1:$K$4997,0),MATCH(L$2,'Data Annex'!$K$1:$AN$1,0)),\"\")","v":0.36837082300000001},{"$f":"IFERROR(INDEX('Data Annex'!$K$1:$AN$4997,MATCH(M$1&\"|\"&$B24,'Data Annex'!$K$1:$K$4997,0),MATCH(M$2,'Data Annex'!$K$1:$AN$1,0)),\"\")","v":0.42111312909999998},{"$f":"IFERROR(INDEX('Data Annex'!$K$1:$AN$4997,MATCH(N$1&\"|\"&$B24,'Data Annex'!$K$1:$K$4997,0),MATCH(N$2,'Data Annex'!$K$1:$AN$1,0)),\"\")","v":0.40380671229999998},{"$f":"IFERROR(INDEX('Data Annex'!$K$1:$AN$4997,MATCH(O$1&\"|\"&$B24,'Data Annex'!$K$1:$K$4997,0),MATCH(O$2,'Data Annex'!$K$1:$AN$1,0)),\"\")","v":0.399095072},{"$f":"IFERROR(INDEX('Data Annex'!$K$1:$AN$4997,MATCH(P$1&\"|\"&$B24,'Data Annex'!$K$1:$K$4997,0),MATCH(P$2,'Data Annex'!$K$1:$AN$1,0)),\"\")","v":0.3491923435},{"$f":"IFERROR(INDEX('Data Annex'!$K$1:$AN$4997,MATCH(Q$1&\"|\"&$B24,'Data Annex'!$K$1:$K$4997,0),MATCH(Q$2,'Data Annex'!$K$1:$AN$1,0)),\"\")","v":0.36041151970000002},{"$f":"IFERROR(INDEX('Data Annex'!$K$1:$AN$4997,MATCH(R$1&\"|\"&$B24,'Data Annex'!$K$1:$K$4997,0),MATCH(R$2,'Data Annex'!$K$1:$AN$1,0)),\"\")","v":0.31984171239999998},{"$f":"IFERROR(INDEX('Data Annex'!$K$1:$AN$4997,MATCH(S$1&\"|\"&$B24,'Data Annex'!$K$1:$K$4997,0),MATCH(S$2,'Data Annex'!$K$1:$AN$1,0)),\"\")","v":0.30906990359999997},{"$f":"IFERROR(INDEX('Data Annex'!$K$1:$AN$4997,MATCH(T$1&\"|\"&$B24,'Data Annex'!$K$1:$K$4997,0),MATCH(T$2,'Data Annex'!$K$1:$AN$1,0)),\"\")","v":0.29219029819999998},{"$f":"IFERROR(INDEX('Data Annex'!$K$1:$AN$4997,MATCH(U$1&\"|\"&$B24,'Data Annex'!$K$1:$K$4997,0),MATCH(U$2,'Data Annex'!$K$1:$AN$1,0)),\"\")","v":0.53094205809999995},{"$f":"IFERROR(INDEX('Data Annex'!$K$1:$AN$4997,MATCH(V$1&\"|\"&$B24,'Data Annex'!$K$1:$K$4997,0),MATCH(V$2,'Data Annex'!$K$1:$AN$1,0)),\"\")","v":0.48642998630000001},{"$f":"IFERROR(INDEX('Data Annex'!$K$1:$AN$4997,MATCH(W$1&\"|\"&$B24,'Data Annex'!$K$1:$K$4997,0),MATCH(W$2,'Data Annex'!$K$1:$AN$1,0)),\"\")","v":0.46739224540000002},{"$f":"IFERROR(INDEX('Data Annex'!$K$1:$AN$4997,MATCH(X$1&\"|\"&$B24,'Data Annex'!$K$1:$K$4997,0),MATCH(X$2,'Data Annex'!$K$1:$AN$1,0)),\"\")","v":0.43135048040000001},{"$f":"IFERROR(INDEX('Data Annex'!$K$1:$AN$4997,MATCH(Y$1&\"|\"&$B24,'Data Annex'!$K$1:$K$4997,0),MATCH(Y$2,'Data Annex'!$K$1:$AN$1,0)),\"\")","v":0.51179879699999997},{"$f":"IFERROR(INDEX('Data Annex'!$K$1:$AN$4997,MATCH(Z$1&\"|\"&$B24,'Data Annex'!$K$1:$K$4997,0),MATCH(Z$2,'Data Annex'!$K$1:$AN$1,0)),\"\")","v":0.47612021570000002},{"$f":"IFERROR(INDEX('Data Annex'!$K$1:$AN$4997,MATCH(AA$1&\"|\"&$B24,'Data Annex'!$K$1:$K$4997,0),MATCH(AA$2,'Data Annex'!$K$1:$AN$1,0)),\"\")","v":0.47049739359999998},{"$f":"IFERROR(INDEX('Data Annex'!$K$1:$AN$4997,MATCH(AB$1&\"|\"&$B24,'Data Annex'!$K$1:$K$4997,0),MATCH(AB$2,'Data Annex'!$K$1:$AN$1,0)),\"\")","v":0.4674568918}]
[14,"HR",null,"HR",{"$f":"IFERROR(INDEX('Data Annex'!$K$1:$AN$4997,MATCH(E$1&\"|\"&$B25,'Data Annex'!$K$1:$K$4997,0),MATCH(E$2,'Data Annex'!$K$1:$AN$1,0)),\"\")","v":4.16758832E-2},{"$f":"IFERROR(INDEX('Data Annex'!$K$1:$AN$4997,MATCH(F$1&\"|\"&$B25,'Data Annex'!$K$1:$K$4997,0),MATCH(F$2,'Data Annex'!$K$1:$AN$1,0)),\"\")","v":4.3015447800000002E-2},{"$f":"IFERROR(INDEX('Data Annex'!$K$1:$AN$4997,MATCH(G$1&\"|\"&$B25,'Data Annex'!$K$1:$K$4997,0),MATCH(G$2,'Data Annex'!$K$1:$AN$1,0)),\"\")","v":4.4695342399999997E-2},{"$f":"IFERROR(INDEX('Data Annex'!$K$1:$AN$4997,MATCH(H$1&\"|\"&$B25,'Data Annex'!$K$1:$K$4997,0),MATCH(H$2,'Data Annex'!$K$1:$AN$1,0)),\"\")","v":4.3500259899999998E-2},{"$f":"IFERROR(INDEX('Data Annex'!$K$1:$AN$4997,MATCH(I$1&\"|\"&$B25,'Data Annex'!$K$1:$K$4997,0),MATCH(I$2,'Data Annex'!$K$1:$AN$1,0)),\"\")","v":4.4771905000000001E-2},{"$f":"IFERROR(INDEX('Data Annex'!$K$1:$AN$4997,MATCH(J$1&\"|\"&$B25,'Data Annex'!$K$1:$K$4997,0),MATCH(J$2,'Data Annex'!$K$1:$AN$1,0)),\"\")","v":5.3148917599999998E-2},{"$f":"IFERROR(INDEX('Data Annex'!$K$1:$AN$4997,MATCH(K$1&\"|\"&$B25,'Data Annex'!$K$1:$K$4997,0),MATCH(K$2,'Data Annex'!$K$1:$AN$1,0)),\"\")","v":5.65286043E-2},{"$f":"IFERROR(INDEX('Data Annex'!$K$1:$AN$4997,MATCH(L$1&\"|\"&$B25,'Data Annex'!$K$1:$K$4997,0),MATCH(L$2,'Data Annex'!$K$1:$AN$1,0)),\"\")","v":5.9195746100000002E-2},{"$f":"IFERROR(INDEX('Data Annex'!$K$1:$AN$4997,MATCH(M$1&\"|\"&$B25,'Data Annex'!$K$1:$K$4997,0),MATCH(M$2,'Data Annex'!$K$1:$AN$1,0)),\"\")","v":2.4589976600000001E-2},{"$f":"IFERROR(INDEX('Data Annex'!$K$1:$AN$4997,MATCH(N$1&\"|\"&$B25,'Data Annex'!$K$1:$K$4997,0),MATCH(N$2,'Data Annex'!$K$1:$AN$1,0)),\"\")","v":3.9258148399999998E-2},{"$f":"IFERROR(INDEX('Data Annex'!$K$1:$AN$4997,MATCH(O$1&\"|\"&$B25,'Data Annex'!$K$1:$K$4997,0),MATCH(O$2,'Data Annex'!$K$1:$AN$1,0)),\"\")","v":3.9999897800000003E-2},{"$f":"IFERROR(INDEX('Data Annex'!$K$1:$AN$4997,MATCH(P$1&\"|\"&$B25,'Data Annex'!$K$1:$K$4997,0),MATCH(P$2,'Data Annex'!$K$1:$AN$1,0)),\"\")","v":3.7412008599999998E-2},{"$f":"IFERROR(INDEX('Data Annex'!$K$1:$AN$4997,MATCH(Q$1&\"|\"&$B25,'Data Annex'!$K$1:$K$4997,0),MATCH(Q$2,'Data Annex'!$K$1:$AN$1,0)),\"\")","v":9.7377122699999999E-2},{"$f":"IFERROR(INDEX('Data Annex'!$K$1:$AN$4997,MATCH(R$1&\"|\"&$B25,'Data Annex'!$K$1:$K$4997,0),MATCH(R$2,'Data Annex'!$K$1:$AN$1,0)),\"\")","v":9.8248620600000003E-2},{"$f":"IFERROR(INDEX('Data Annex'!$K$1:$AN$4997,MATCH(S$1&\"|\"&$B25,'Data Annex'!$K$1:$K$4997,0),MATCH(S$2,'Data Annex'!$K$1:$AN$1,0)),\"\")","v":0.1018491344},{"$f":"IFERROR(INDEX('Data Annex'!$K$1:$AN$4997,MATCH(T$1&\"|\"&$B25,'Data Annex'!$K$1:$K$4997,0),MATCH(T$2,'Data Annex'!$K$1:$AN$1,0)),\"\")","v":9.5649727700000006E-2},{"$f":"IFERROR(INDEX('Data Annex'!$K$1:$AN$4997,MATCH(U$1&\"|\"&$B25,'Data Annex'!$K$1:$K$4997,0),MATCH(U$2,'Data Annex'!$K$1:$AN$1,0)),\"\")","v":0.10202973379999999},{"$f":"IFERROR(INDEX('Data Annex'!$K$1:$AN$4997,MATCH(V$1&\"|\"&$B25,'Data Annex'!$K$1:$K$4997,0),MATCH(V$2,'Data Annex'!$K$1:$AN$1,0)),\"\")","v":0.1090874406},{"$f":"IFERROR(INDEX('Data Annex'!$K$1:$AN$4997,MATCH(W$1&\"|\"&$B25,'Data Annex'!$K$1:$K$4997,0),MATCH(W$2,'Data Annex'!$K$1:$AN$1,0)),\"\")","v":0.1209600574},{"$f":"IFERROR(INDEX('Data Annex'!$K$1:$AN$4997,MATCH(X$1&\"|\"&$B25,'Data Annex'!$K$1:$K$4997,0),MATCH(X$2,'Data Annex'!$K$1:$AN$1,0)),\"\")","v":0.1118363607},{"$f":"IFERROR(INDEX('Data Annex'!$K$1:$AN$4997,MATCH(Y$1&\"|\"&$B25,'Data Annex'!$K$1:$K$4997,0),MATCH(Y$2,'Data Annex'!$K$1:$AN$1,0)),\"\")","v":9.1689419999999994E-2},{"$f":"IFERROR(INDEX('Data Annex'!$K$1:$AN$4997,MATCH(Z$1&\"|\"&$B25,'Data Annex'!$K$1:$K$4997,0),MATCH(Z$2,'Data Annex'!$K$1:$AN$1,0)),\"\")","v":0.1083789045},{"$f":"IFERROR(INDEX('Data Annex'!$K$1:$AN$4997,MATCH(AA$1&\"|\"&$B25,'Data Annex'!$K$1:$K$4997,0),MATCH(AA$2,'Data Annex'!$K$1:$AN$1,0)),\"\")","v":0.10757745439999999},{"$f":"IFERROR(INDEX('Data Annex'!$K$1:$AN$4997,MATCH(AB$1&\"|\"&$B25,'Data Annex'!$K$1:$K$4997,0),MATCH(AB$2,'Data Annex'!$K$1:$AN$1,0)),\"\")","v":0.102812716}]
[15,"HU",null,"HU",{"$f":"IFERROR(INDEX('Data Annex'!$K$1:$AN$4997,MATCH(E$1&\"|\"&$B26,'Data Annex'!$K$1:$K$4997,0),MATCH(E$2,'Data Annex'!$K$1:$AN$1,0)),\"\")","v":4.4631759200000003E-2},{"$f":"IFERROR(INDEX('Data Annex'!$K$1:$AN$4997,MATCH(F$1&\"|\"&$B26,'Data Annex'!$K$1:$K$4997,0),MATCH(F$2,'Data Annex'!$K$1:$AN$1,0)),\"\")","v":4.4219517999999999E-2},{"$f":"IFERROR(INDEX('Data Annex'!$K$1:$AN$4997,MATCH(G$1&\"|\"&$B26,'Data Annex'!$K$1:$K$4997,0),MATCH(G$2,'Data Annex'!$K$1:$AN$1,0)),\"\")","v":4.2125120699999997E-2},{"$f":"IFERROR(INDEX('Data Annex'!$K$1:$AN$4997,MATCH(H$1&\"|\"&$B26,'Data Annex'!$K$1:$K$4997,0),MATCH(H$2,'Data Annex'!$K$1:$AN$1,0)),\"\")","v":4.03936077E-2},{"$f":"IFERROR(INDEX('Data Annex'!$K$1:$AN$4997,MATCH(I$1&\"|\"&$B26,'Data Annex'!$K$1:$K$4997,0),MATCH(I$2,'Data Annex'!$K$1:$AN$1,0)),\"\")","v":6.9778844800000003E-2},{"$f":"IFERROR(INDEX('Data Annex'!$K$1:$AN$4997,MATCH(J$1&\"|\"&$B26,'Data Annex'!$K$1:$K$4997,0),MATCH(J$2,'Data Annex'!$K$1:$AN$1,0)),\"\")","v":7.3119064299999995E-2},{"$f":"IFERROR(INDEX('Data Annex'!$K$1:$AN$4997,MATCH(K$1&\"|\"&$B26,'Data Annex'!$K$1:$K$4997,0),MATCH(K$2,'Data Annex'!$K$1:$AN$1,0)),\"\")","v":6.9164615200000001E-2},{"$f":"IFERROR(INDEX('Data Annex'!$K$1:$AN$4997,MATCH(L$1&\"|\"&$B26,'Data Annex'!$K$1:$K$4997,0),MATCH(L$2,'Data Annex'!$K$1:$AN$1,0)),\"\")","v":7.6392608799999998E-2},{"$f":"IFERROR(INDEX('Data Annex'!$K$1:$AN$4997,MATCH(M$1&\"|\"&$B26,'Data Annex'!$K$1:$K$4997,0),MATCH(M$2,'Data Annex'!$K$1:$AN$1,0)),\"\")","v":6.0568633099999998E-2},{"$f":"IFERROR(INDEX('Data Annex'!$K$1:$AN$4997,MATCH(N$1&\"|\"&$B26,'Data Annex'!$K$1:$K$4997,0),MATCH(N$2,'Data Annex'!$K$1:$AN$1,0)),\"\")","v":6.0352716399999999E-2},{"$f":"IFERROR(INDEX('Data Annex'!$K$1:$AN$4997,MATCH(O$1&\"|\"&$B26,'Data Annex'!$K$1:$K$4997,0),MATCH(O$2,'Data Annex'!$K$1:$AN$1,0)),\"\")","v":5.5860554999999999E-2},{"$f":"IFERROR(INDEX('Data Annex'!$K$1:$AN$4997,MATCH(P$1&\"|\"&$B26,'Data Annex'!$K$1:$K$4997,0),MATCH(P$2,'Data Annex'!$K$1:$AN$1,0)),\"\")","v":6.0488423999999999E-2},{"$f":"IFERROR(INDEX('Data Annex'!$K$1:$AN$4997,MATCH(Q$1&\"|\"&$B26,'Data Annex'!$K$1:$K$4997,0),MATCH(Q$2,'Data Annex'!$K$1:$AN$1,0)),\"\")","v":4.2920278700000002E-2},{"$f":"IFERROR(INDEX('Data Annex'!$K$1:$AN$4997,MATCH(R$1&\"|\"&$B26,'Data Annex'!$K$1:$K$4997,0),MATCH(R$2,'Data Annex'!$K$1:$AN$1,0)),\"\")","v":4.10049803E-2},{"$f":"IFERROR(INDEX('Data Annex'!$K$1:$AN$4997,MATCH(S$1&\"|\"&$B26,'Data Annex'!$K$1:$K$4997,0),MATCH(S$2,'Data Annex'!$K$1:$AN$1,0)),\"\")","v":4.0684532699999998E-2},{"$f":"IFERROR(INDEX('Data Annex'!$K$1:$AN$4997,MATCH(T$1&\"|\"&$B26,'Data Annex'!$K$1:$K$4997,0),MATCH(T$2,'Data Annex'!$K$1:$AN$1,0)),\"\")","v":3.9890018399999998E-2},{"$f":"IFERROR(INDEX('Data Annex'!$K$1:$AN$4997,MATCH(U$1&\"|\"&$B26,'Data Annex'!$K$1:$K$4997,0),MATCH(U$2,'Data Annex'!$K$1:$AN$1,0)),\"\")","v":4.5448552500000003E-2},{"$f":"IFERROR(INDEX('Data Annex'!$K$1:$AN$4997,MATCH(V$1&\"|\"&$B26,'Data Annex'!$K$1:$K$4997,0),MATCH(V$2,'Data Annex'!$K$1:$AN$1,0)),\"\")","v":4.4627971299999999E-2},{"$f":"IFERROR(INDEX('Data Annex'!$K$1:$AN$4997,MATCH(W$1&\"|\"&$B26,'Data Annex'!$K$1:$K$4997,0),MATCH(W$2,'Data Annex'!$K$1:$AN$1,0)),\"\")","v":4.6699756299999999E-2},{"$f":"IFERROR(INDEX('Data Annex'!$K$1:$AN$4997,MATCH(X$1&\"|\"&$B26,'Data Annex'!$K$1:$K$4997,0),MATCH(X$2,'Data Annex'!$K$1:$AN$1,0)),\"\")","v":4.7593573600000001E-2},{"$f":"IFERROR(INDEX('Data Annex'!$K$1:$AN$4997,MATCH(Y$1&\"|\"&$B26,'Data Annex'!$K$1:$K$4997,0),MATCH(Y$2,'Data Annex'!$K$1:$AN$1,0)),\"\")","v":6.1616336100000002E-2},{"$f":"IFERROR(INDEX('Data Annex'!$K$1:$AN$4997,MATCH(Z$1&\"|\"&$B26,'Data Annex'!$K$1:$K$4997,0),MATCH(Z$2,'Data Annex'!$K$1:$AN$1,0)),\"\")","v":5.7289631000000001E-2},{"$f":"IFERROR(INDEX('Data Annex'!$K$1:$AN$4997,MATCH(AA$1&\"|\"&$B26,'Data Annex'!$K$1:$K$4997,0),MATCH(AA$2,'Data Annex'!$K$1:$AN$1,0)),\"\")","v":5.8595942999999998E-2},{"$f":"IFERROR(INDEX('Data Annex'!$K$1:$AN$4997,MATCH(AB$1&\"|\"&$B26,'Data Annex'!$K$1:$K$4997,0),MATCH(AB$2,'Data Annex'!$K$1:$AN$1,0)),\"\")","v":5.3913509900000003E-2}]
[16,"IE",null,"IE",{"$f":"IFERROR(INDEX('Data Annex'!$K$1:$AN$4997,MATCH(E$1&\"|\"&$B27,'Data Annex'!$K$1:$K$4997,0),MATCH(E$2,'Data Annex'!$K$1:$AN$1,0)),\"\")","v":3.3384932300000003E-2},{"$f":"IFERROR(INDEX('Data Annex'!$K$1:$AN$4997,MATCH(F$1&\"|\"&$B27,'Data Annex'!$K$1:$K$4997,0),MATCH(F$2,'Data Annex'!$K$1:$AN$1,0)),\"\")","v":4.04614191E-2},{"$f":"IFERROR(INDEX('Data Annex'!$K$1:$AN$4997,MATCH(G$1&\"|\"&$B27,'Data Annex'!$K$1:$K$4997,0),MATCH(G$2,'Data Annex'!$K$1:$AN$1,0)),\"\")","v":4.0360537100000003E-2},{"$f":"IFERROR(INDEX('Data Annex'!$K$1:$AN$4997,MATCH(H$1&\"|\"&$B27,'Data Annex'!$K$1:$K$4997,0),MATCH(H$2,'Data Annex'!$K$1:$AN$1,0)),\"\")","v":4.1939032899999999E-2},{"$f":"IFERROR(INDEX('Data Annex'!$K$1:$AN$4997,MATCH(I$1&\"|\"&$B27,'Data Annex'!$K$1:$K$4997,0),MATCH(I$2,'Data Annex'!$K$1:$AN$1,0)),\"\")","v":5.3522338900000001E-2},{"$f":"IFERROR(INDEX('Data Annex'!$K$1:$AN$4997,MATCH(J$1&\"|\"&$B27,'Data Annex'!$K$1:$K$4997,0),MATCH(J$2,'Data Annex'!$K$1:$AN$1,0)),\"\")","v":5.8796518700000001E-2},{"$f":"IFERROR(INDEX('Data Annex'!$K$1:$AN$4997,MATCH(K$1&\"|\"&$B27,'Data Annex'!$K$1:$K$4997,0),MATCH(K$2,'Data Annex'!$K$1:$AN$1,0)),\"\")","v":5.8732621899999997E-2},{"$f":"IFERROR(INDEX('Data Annex'!$K$1:$AN$4997,MATCH(L$1&\"|\"&$B27,'Data Annex'!$K$1:$K$4997,0),MATCH(L$2,'Data Annex'!$K$1:$AN$1,0)),\"\")","v":5.7606855300000002E-2},{"$f":"IFERROR(INDEX('Data Annex'!$K$1:$AN$4997,MATCH(M$1&\"|\"&$B27,'Data Annex'!$K$1:$K$4997,0),MATCH(M$2,'Data Annex'!$K$1:$AN$1,0)),\"\")","v":5.3063932600000002E-2},{"$f":"IFERROR(INDEX('Data Annex'!$K$1:$AN$4997,MATCH(N$1&\"|\"&$B27,'Data Annex'!$K$1:$K$4997,0),MATCH(N$2,'Data Annex'!$K$1:$AN$1,0)),\"\")","v":5.87157362E-2},{"$f":"IFERROR(INDEX('Data Annex'!$K$1:$AN$4997,MATCH(O$1&\"|\"&$B27,'Data Annex'!$K$1:$K$4997,0),MATCH(O$2,'Data Annex'!$K$1:$AN$1,0)),\"\")","v":5.8547774499999997E-2},{"$f":"IFERROR(INDEX('Data Annex'!$K$1:$AN$4997,MATCH(P$1&\"|\"&$B27,'Data Annex'!$K$1:$K$4997,0),MATCH(P$2,'Data Annex'!$K$1:$AN$1,0)),\"\")","v":5.7096797999999997E-2},{"$f":"IFERROR(INDEX('Data Annex'!$K$1:$AN$4997,MATCH(Q$1&\"|\"&$B27,'Data Annex'!$K$1:$K$4997,0),MATCH(Q$2,'Data Annex'!$K$1:$AN$1,0)),\"\")","v":3.5413700100000001E-2},{"$f":"IFERROR(INDEX('Data Annex'!$K$1:$AN$4997,MATCH(R$1&\"|\"&$B27,'Data Annex'!$K$1:$K$4997,0),MATCH(R$2,'Data Annex'!$K$1:$AN$1,0)),\"\")","v":5.3743166100000003E-2},{"$f":"IFERROR(INDEX('Data Annex'!$K$1:$AN$4997,MATCH(S$1&\"|\"&$B27,'Data Annex'!$K$1:$K$4997,0),MATCH(S$2,'Data Annex'!$K$1:$AN$1,0)),\"\")","v":5.8379321099999999E-2},{"$f":"IFERROR(INDEX('Data Annex'!$K$1:$AN$4997,MATCH(T$1&\"|\"&$B27,'Data Annex'!$K$1:$K$4997,0),MATCH(T$2,'Data Annex'!$K$1:$AN$1,0)),\"\")","v":6.7769823600000001E-2},{"$f":"IFERROR(INDEX('Data Annex'!$K$1:$AN$4997,MATCH(U$1&\"|\"&$B27,'Data Annex'!$K$1:$K$4997,0),MATCH(U$2,'Data Annex'!$K$1:$AN$1,0)),\"\")","v":6.1161676800000002E-2},{"$f":"IFERROR(INDEX('Data Annex'!$K$1:$AN$4997,MATCH(V$1&\"|\"&$B27,'Data Annex'!$K$1:$K$4997,0),MATCH(V$2,'Data Annex'!$K$1:$AN$1,0)),\"\")","v":8.4628275899999994E-2},{"$f":"IFERROR(INDEX('Data Annex'!$K$1:$AN$4997,MATCH(W$1&\"|\"&$B27,'Data Annex'!$K$1:$K$4997,0),MATCH(W$2,'Data Annex'!$K$1:$AN$1,0)),\"\")","v":8.88176512E-2},{"$f":"IFERROR(INDEX('Data Annex'!$K$1:$AN$4997,MATCH(X$1&\"|\"&$B27,'Data Annex'!$K$1:$K$4997,0),MATCH(X$2,'Data Annex'!$K$1:$AN$1,0)),\"\")","v":9.6138541699999996E-2},{"$f":"IFERROR(INDEX('Data Annex'!$K$1:$AN$4997,MATCH(Y$1&\"|\"&$B27,'Data Annex'!$K$1:$K$4997,0),MATCH(Y$2,'Data Annex'!$K$1:$AN$1,0)),\"\")","v":5.9007969299999997E-2},{"$f":"IFERROR(INDEX('Data Annex'!$K$1:$AN$4997,MATCH(Z$1&\"|\"&$B27,'Data Annex'!$K$1:$K$4997,0),MATCH(Z$2,'Data Annex'!$K$1:$AN$1,0)),\"\")","v":8.1051407399999997E-2},{"$f":"IFERROR(INDEX('Data Annex'!$K$1:$AN$4997,MATCH(AA$1&\"|\"&$B27,'Data Annex'!$K$1:$K$4997,0),MATCH(AA$2,'Data Annex'!$K$1:$AN$1,0)),\"\")","v":0.10196159809999999},{"$f":"IFERROR(INDEX('Data Annex'!$K$1:$AN$4997,MATCH(AB$1&\"|\"&$B27,'Data Annex'!$K$1:$K$4997,0),MATCH(AB$2,'Data Annex'!$K$1:$AN$1,0)),\"\")","v":0.12666641819999999}]
[17,"IS",null,"IS",{"$f":"IFERROR(INDEX('Data Annex'!$K$1:$AN$4997,MATCH(E$1&\"|\"&$B28,'Data Annex'!$K$1:$K$4997,0),MATCH(E$2,'Data Annex'!$K$1:$AN$1,0)),\"\")","v":2.5254821100000002E-2},{"$f":"IFERROR(INDEX('Data Annex'!$K$1:$AN$4997,MATCH(F$1&\"|\"&$B28,'Data Annex'!$K$1:$K$4997,0),MATCH(F$2,'Data Annex'!$K$1:$AN$1,0)),\"\")","v":2.9416636100000001E-2},{"$f":"IFERROR(INDEX('Data Annex'!$K$1:$AN$4997,MATCH(G$1&\"|\"&$B28,'Data Annex'!$K$1:$K$4997,0),MATCH(G$2,'Data Annex'!$K$1:$AN$1,0)),\"\")","v":2.8505943400000001E-2},{"$f":"IFERROR(INDEX('Data Annex'!$K$1:$AN$4997,MATCH(H$1&\"|\"&$B28,'Data Annex'!$K$1:$K$4997,0),MATCH(H$2,'Data Annex'!$K$1:$AN$1,0)),\"\")","v":2.6595241400000001E-2},{"$f":"IFERROR(INDEX('Data Annex'!$K$1:$AN$4997,MATCH(I$1&\"|\"&$B28,'Data Annex'!$K$1:$K$4997,0),MATCH(I$2,'Data Annex'!$K$1:$AN$1,0)),\"\")","v":1.8069076900000001E-2},{"$f":"IFERROR(INDEX('Data Annex'!$K$1:$AN$4997,MATCH(J$1&\"|\"&$B28,'Data Annex'!$K$1:$K$4997,0),MATCH(J$2,'Data Annex'!$K$1:$AN$1,0)),\"\")","v":1.8234852499999999E-2},{"$f":"IFERROR(INDEX('Data Annex'!$K$1:$AN$4997,MATCH(K$1&\"|\"&$B28,'Data Annex'!$K$1:$K$4997,0),MATCH(K$2,'Data Annex'!$K$1:$AN$1,0)),\"\")","v":1.5633250599999999E-2},{"$f":"IFERROR(INDEX('Data Annex'!$K$1:$AN$4997,MATCH(L$1&\"|\"&$B28,'Data Annex'!$K$1:$K$4997,0),MATCH(L$2,'Data Annex'!$K$1:$AN$1,0)),\"\")","v":1.22935979E-2},{"$f":"IFERROR(INDEX('Data Annex'!$K$1:$AN$4997,MATCH(M$1&\"|\"&$B28,'Data Annex'!$K$1:$K$4997,0),MATCH(M$2,'Data Annex'!$K$1:$AN$1,0)),\"\")","v":1.54533607E-2},{"$f":"IFERROR(INDEX('Data Annex'!$K$1:$AN$4997,MATCH(N$1&\"|\"&$B28,'Data Annex'!$K$1:$K$4997,0),MATCH(N$2,'Data Annex'!$K$1:$AN$1,0)),\"\")","v":1.5730798300000001E-2},{"$f":"IFERROR(INDEX('Data Annex'!$K$1:$AN$4997,MATCH(O$1&\"|\"&$B28,'Data Annex'!$K$1:$K$4997,0),MATCH(O$2,'Data Annex'!$K$1:$AN$1,0)),\"\")","v":1.29796038E-2},{"$f":"IFERROR(INDEX('Data Annex'!$K$1:$AN$4997,MATCH(P$1&\"|\"&$B28,'Data Annex'!$K$1:$K$4997,0),MATCH(P$2,'Data Annex'!$K$1:$AN$1,0)),\"\")","v":1.0323753200000001E-2},{"$f":"IFERROR(INDEX('Data Annex'!$K$1:$AN$4997,MATCH(Q$1&\"|\"&$B28,'Data Annex'!$K$1:$K$4997,0),MATCH(Q$2,'Data Annex'!$K$1:$AN$1,0)),\"\")","v":3.9477050999999999E-2},{"$f":"IFERROR(INDEX('Data Annex'!$K$1:$AN$4997,MATCH(R$1&\"|\"&$B28,'Data Annex'!$K$1:$K$4997,0),MATCH(R$2,'Data Annex'!$K$1:$AN$1,0)),\"\")","v":4.5019270700000003E-2},{"$f":"IFERROR(INDEX('Data Annex'!$K$1:$AN$4997,MATCH(S$1&\"|\"&$B28,'Data Annex'!$K$1:$K$4997,0),MATCH(S$2,'Data Annex'!$K$1:$AN$1,0)),\"\")","v":4.59093634E-2},{"$f":"IFERROR(INDEX('Data Annex'!$K$1:$AN$4997,MATCH(T$1&\"|\"&$B28,'Data Annex'!$K$1:$K$4997,0),MATCH(T$2,'Data Annex'!$K$1:$AN$1,0)),\"\")","v":4.4647326899999999E-2},{"$f":"IFERROR(INDEX('Data Annex'!$K$1:$AN$4997,MATCH(U$1&\"|\"&$B28,'Data Annex'!$K$1:$K$4997,0),MATCH(U$2,'Data Annex'!$K$1:$AN$1,0)),\"\")","v":7.3212761500000001E-2},{"$f":"IFERROR(INDEX('Data Annex'!$K$1:$AN$4997,MATCH(V$1&\"|\"&$B28,'Data Annex'!$K$1:$K$4997,0),MATCH(V$2,'Data Annex'!$K$1:$AN$1,0)),\"\")","v":7.3969264699999995E-2},{"$f":"IFERROR(INDEX('Data Annex'!$K$1:$AN$4997,MATCH(W$1&\"|\"&$B28,'Data Annex'!$K$1:$K$4997,0),MATCH(W$2,'Data Annex'!$K$1:$AN$1,0)),\"\")","v":7.6989433900000001E-2},{"$f":"IFERROR(INDEX('Data Annex'!$K$1:$AN$4997,MATCH(X$1&\"|\"&$B28,'Data Annex'!$K$1:$K$4997,0),MATCH(X$2,'Data Annex'!$K$1:$AN$1,0)),\"\")","v":7.7358295199999996E-2},{"$f":"IFERROR(INDEX('Data Annex'!$K$1:$AN$4997,MATCH(Y$1&\"|\"&$B28,'Data Annex'!$K$1:$K$4997,0),MATCH(Y$2,'Data Annex'!$K$1:$AN$1,0)),\"\")","v":3.90784941E-2},{"$f":"IFERROR(INDEX('Data Annex'!$K$1:$AN$4997,MATCH(Z$1&\"|\"&$B28,'Data Annex'!$K$1:$K$4997,0),MATCH(Z$2,'Data Annex'!$K$1:$AN$1,0)),\"\")","v":4.5778909999999999E-2},{"$f":"IFERROR(INDEX('Data Annex'!$K$1:$AN$4997,MATCH(AA$1&\"|\"&$B28,'Data Annex'!$K$1:$K$4997,0),MATCH(AA$2,'Data Annex'!$K$1:$AN$1,0)),\"\")","v":4.17531202E-2},{"$f":"IFERROR(INDEX('Data Annex'!$K$1:$AN$4997,MATCH(AB$1&\"|\"&$B28,'Data Annex'!$K$1:$K$4997,0),MATCH(AB$2,'Data Annex'!$K$1:$AN$1,0)),\"\")","v":3.9683272899999997E-2}]
[18,"IT",null,"IT",{"$f":"IFERROR(INDEX('Data Annex'!$K$1:$AN$4997,MATCH(E$1&\"|\"&$B29,'Data Annex'!$K$1:$K$4997,0),MATCH(E$2,'Data Annex'!$K$1:$AN$1,0)),\"\")","v":6.3738493600000001E-2},{"$f":"IFERROR(INDEX('Data Annex'!$K$1:$AN$4997,MATCH(F$1&\"|\"&$B29,'Data Annex'!$K$1:$K$4997,0),MATCH(F$2,'Data Annex'!$K$1:$AN$1,0)),\"\")","v":6.0662452899999997E-2},{"$f":"IFERROR(INDEX('Data Annex'!$K$1:$AN$4997,MATCH(G$1&\"|\"&$B29,'Data Annex'!$K$1:$K$4997,0),MATCH(G$2,'Data Annex'!$K$1:$AN$1,0)),\"\")","v":5.37254702E-2},{"$f":"IFERROR(INDEX('Data Annex'!$K$1:$AN$4997,MATCH(H$1&\"|\"&$B29,'Data Annex'!$K$1:$K$4997,0),MATCH(H$2,'Data Annex'!$K$1:$AN$1,0)),\"\")","v":4.1334996700000001E-2},{"$f":"IFERROR(INDEX('Data Annex'!$K$1:$AN$4997,MATCH(I$1&\"|\"&$B29,'Data Annex'!$K$1:$K$4997,0),MATCH(I$2,'Data Annex'!$K$1:$AN$1,0)),\"\")","v":5.07695076E-2},{"$f":"IFERROR(INDEX('Data Annex'!$K$1:$AN$4997,MATCH(J$1&\"|\"&$B29,'Data Annex'!$K$1:$K$4997,0),MATCH(J$2,'Data Annex'!$K$1:$AN$1,0)),\"\")","v":5.08994049E-2},{"$f":"IFERROR(INDEX('Data Annex'!$K$1:$AN$4997,MATCH(K$1&\"|\"&$B29,'Data Annex'!$K$1:$K$4997,0),MATCH(K$2,'Data Annex'!$K$1:$AN$1,0)),\"\")","v":4.5264334599999997E-2},{"$f":"IFERROR(INDEX('Data Annex'!$K$1:$AN$4997,MATCH(L$1&\"|\"&$B29,'Data Annex'!$K$1:$K$4997,0),MATCH(L$2,'Data Annex'!$K$1:$AN$1,0)),\"\")","v":3.72070288E-2},{"$f":"IFERROR(INDEX('Data Annex'!$K$1:$AN$4997,MATCH(M$1&\"|\"&$B29,'Data Annex'!$K$1:$K$4997,0),MATCH(M$2,'Data Annex'!$K$1:$AN$1,0)),\"\")","v":3.4617674700000003E-2},{"$f":"IFERROR(INDEX('Data Annex'!$K$1:$AN$4997,MATCH(N$1&\"|\"&$B29,'Data Annex'!$K$1:$K$4997,0),MATCH(N$2,'Data Annex'!$K$1:$AN$1,0)),\"\")","v":3.61214095E-2},{"$f":"IFERROR(INDEX('Data Annex'!$K$1:$AN$4997,MATCH(O$1&\"|\"&$B29,'Data Annex'!$K$1:$K$4997,0),MATCH(O$2,'Data Annex'!$K$1:$AN$1,0)),\"\")","v":3.2432669900000002E-2},{"$f":"IFERROR(INDEX('Data Annex'!$K$1:$AN$4997,MATCH(P$1&\"|\"&$B29,'Data Annex'!$K$1:$K$4997,0),MATCH(P$2,'Data Annex'!$K$1:$AN$1,0)),\"\")","v":2.6606621699999999E-2},{"$f":"IFERROR(INDEX('Data Annex'!$K$1:$AN$4997,MATCH(Q$1&\"|\"&$B29,'Data Annex'!$K$1:$K$4997,0),MATCH(Q$2,'Data Annex'!$K$1:$AN$1,0)),\"\")","v":0.108057522},{"$f":"IFERROR(INDEX('Data Annex'!$K$1:$AN$4997,MATCH(R$1&\"|\"&$B29,'Data Annex'!$K$1:$K$4997,0),MATCH(R$2,'Data Annex'!$K$1:$AN$1,0)),\"\")","v":0.1040170141},{"$f":"IFERROR(INDEX('Data Annex'!$K$1:$AN$4997,MATCH(S$1&\"|\"&$B29,'Data Annex'!$K$1:$K$4997,0),MATCH(S$2,'Data Annex'!$K$1:$AN$1,0)),\"\")","v":9.4519466600000004E-2},{"$f":"IFERROR(INDEX('Data Annex'!$K$1:$AN$4997,MATCH(T$1&\"|\"&$B29,'Data Annex'!$K$1:$K$4997,0),MATCH(T$2,'Data Annex'!$K$1:$AN$1,0)),\"\")","v":7.4778743199999997E-2},{"$f":"IFERROR(INDEX('Data Annex'!$K$1:$AN$4997,MATCH(U$1&\"|\"&$B29,'Data Annex'!$K$1:$K$4997,0),MATCH(U$2,'Data Annex'!$K$1:$AN$1,0)),\"\")","v":0.15980978670000001},{"$f":"IFERROR(INDEX('Data Annex'!$K$1:$AN$4997,MATCH(V$1&\"|\"&$B29,'Data Annex'!$K$1:$K$4997,0),MATCH(V$2,'Data Annex'!$K$1:$AN$1,0)),\"\")","v":0.15350384759999999},{"$f":"IFERROR(INDEX('Data Annex'!$K$1:$AN$4997,MATCH(W$1&\"|\"&$B29,'Data Annex'!$K$1:$K$4997,0),MATCH(W$2,'Data Annex'!$K$1:$AN$1,0)),\"\")","v":0.1301651684},{"$f":"IFERROR(INDEX('Data Annex'!$K$1:$AN$4997,MATCH(X$1&\"|\"&$B29,'Data Annex'!$K$1:$K$4997,0),MATCH(X$2,'Data Annex'!$K$1:$AN$1,0)),\"\")","v":0.1016373294},{"$f":"IFERROR(INDEX('Data Annex'!$K$1:$AN$4997,MATCH(Y$1&\"|\"&$B29,'Data Annex'!$K$1:$K$4997,0),MATCH(Y$2,'Data Annex'!$K$1:$AN$1,0)),\"\")","v":0.1876918752},{"$f":"IFERROR(INDEX('Data Annex'!$K$1:$AN$4997,MATCH(Z$1&\"|\"&$B29,'Data Annex'!$K$1:$K$4997,0),MATCH(Z$2,'Data Annex'!$K$1:$AN$1,0)),\"\")","v":0.18626625450000001},{"$f":"IFERROR(INDEX('Data Annex'!$K$1:$AN$4997,MATCH(AA$1&\"|\"&$B29,'Data Annex'!$K$1:$K$4997,0),MATCH(AA$2,'Data Annex'!$K$1:$AN$1,0)),\"\")","v":0.17261157960000001},{"$f":"IFERROR(INDEX('Data Annex'!$K$1:$AN$4997,MATCH(AB$1&\"|\"&$B29,'Data Annex'!$K$1:$K$4997,0),MATCH(AB$2,'Data Annex'!$K$1:$AN$1,0)),\"\")","v":0.13520885320000001}]
[19,"LT",null,"LT",{"$f":"IFERROR(INDEX('Data Annex'!$K$1:$AN$4997,MATCH(E$1&\"|\"&$B30,'Data Annex'!$K$1:$K$4997,0),MATCH(E$2,'Data Annex'!$K$1:$AN$1,0)),\"\")","v":1.39220287E-2},{"$f":"IFERROR(INDEX('Data Annex'!$K$1:$AN$4997,MATCH(F$1&\"|\"&$B30,'Data Annex'!$K$1:$K$4997,0),MATCH(F$2,'Data Annex'!$K$1:$AN$1,0)),\"\")","v":1.35947541E-2},{"$f":"IFERROR(INDEX('Data Annex'!$K$1:$AN$4997,MATCH(G$1&\"|\"&$B30,'Data Annex'!$K$1:$K$4997,0),MATCH(G$2,'Data Annex'!$K$1:$AN$1,0)),\"\")","v":1.2308480700000001E-2},{"$f":"IFERROR(INDEX('Data Annex'!$K$1:$AN$4997,MATCH(H$1&\"|\"&$B30,'Data Annex'!$K$1:$K$4997,0),MATCH(H$2,'Data Annex'!$K$1:$AN$1,0)),\"\")","v":1.2522228999999999E-2},{"$f":"IFERROR(INDEX('Data Annex'!$K$1:$AN$4997,MATCH(I$1&\"|\"&$B30,'Data Annex'!$K$1:$K$4997,0),MATCH(I$2,'Data Annex'!$K$1:$AN$1,0)),\"\")","v":1.7377515600000001E-2},{"$f":"IFERROR(INDEX('Data Annex'!$K$1:$AN$4997,MATCH(J$1&\"|\"&$B30,'Data Annex'!$K$1:$K$4997,0),MATCH(J$2,'Data Annex'!$K$1:$AN$1,0)),\"\")","v":1.7908847499999998E-2},{"$f":"IFERROR(INDEX('Data Annex'!$K$1:$AN$4997,MATCH(K$1&\"|\"&$B30,'Data Annex'!$K$1:$K$4997,0),MATCH(K$2,'Data Annex'!$K$1:$AN$1,0)),\"\")","v":1.7322358999999999E-2},{"$f":"IFERROR(INDEX('Data Annex'!$K$1:$AN$4997,MATCH(L$1&\"|\"&$B30,'Data Annex'!$K$1:$K$4997,0),MATCH(L$2,'Data Annex'!$K$1:$AN$1,0)),\"\")","v":1.63807895E-2},{"$f":"IFERROR(INDEX('Data Annex'!$K$1:$AN$4997,MATCH(M$1&\"|\"&$B30,'Data Annex'!$K$1:$K$4997,0),MATCH(M$2,'Data Annex'!$K$1:$AN$1,0)),\"\")","v":1.48753154E-2},{"$f":"IFERROR(INDEX('Data Annex'!$K$1:$AN$4997,MATCH(N$1&\"|\"&$B30,'Data Annex'!$K$1:$K$4997,0),MATCH(N$2,'Data Annex'!$K$1:$AN$1,0)),\"\")","v":1.5374956699999999E-2},{"$f":"IFERROR(INDEX('Data Annex'!$K$1:$AN$4997,MATCH(O$1&\"|\"&$B30,'Data Annex'!$K$1:$K$4997,0),MATCH(O$2,'Data Annex'!$K$1:$AN$1,0)),\"\")","v":1.4741015099999999E-2},{"$f":"IFERROR(INDEX('Data Annex'!$K$1:$AN$4997,MATCH(P$1&\"|\"&$B30,'Data Annex'!$K$1:$K$4997,0),MATCH(P$2,'Data Annex'!$K$1:$AN$1,0)),\"\")","v":1.39880557E-2},{"$f":"IFERROR(INDEX('Data Annex'!$K$1:$AN$4997,MATCH(Q$1&\"|\"&$B30,'Data Annex'!$K$1:$K$4997,0),MATCH(Q$2,'Data Annex'!$K$1:$AN$1,0)),\"\")","v":2.4249502900000001E-2},{"$f":"IFERROR(INDEX('Data Annex'!$K$1:$AN$4997,MATCH(R$1&\"|\"&$B30,'Data Annex'!$K$1:$K$4997,0),MATCH(R$2,'Data Annex'!$K$1:$AN$1,0)),\"\")","v":2.5877060399999999E-2},{"$f":"IFERROR(INDEX('Data Annex'!$K$1:$AN$4997,MATCH(S$1&\"|\"&$B30,'Data Annex'!$K$1:$K$4997,0),MATCH(S$2,'Data Annex'!$K$1:$AN$1,0)),\"\")","v":2.5431208E-2},{"$f":"IFERROR(INDEX('Data Annex'!$K$1:$AN$4997,MATCH(T$1&\"|\"&$B30,'Data Annex'!$K$1:$K$4997,0),MATCH(T$2,'Data Annex'!$K$1:$AN$1,0)),\"\")","v":3.31476323E-2},{"$f":"IFERROR(INDEX('Data Annex'!$K$1:$AN$4997,MATCH(U$1&\"|\"&$B30,'Data Annex'!$K$1:$K$4997,0),MATCH(U$2,'Data Annex'!$K$1:$AN$1,0)),\"\")","v":3.7409767599999998E-2},{"$f":"IFERROR(INDEX('Data Annex'!$K$1:$AN$4997,MATCH(V$1&\"|\"&$B30,'Data Annex'!$K$1:$K$4997,0),MATCH(V$2,'Data Annex'!$K$1:$AN$1,0)),\"\")","v":3.1029260199999999E-2},{"$f":"IFERROR(INDEX('Data Annex'!$K$1:$AN$4997,MATCH(W$1&\"|\"&$B30,'Data Annex'!$K$1:$K$4997,0),MATCH(W$2,'Data Annex'!$K$1:$AN$1,0)),\"\")","v":3.04865528E-2},{"$f":"IFERROR(INDEX('Data Annex'!$K$1:$AN$4997,MATCH(X$1&\"|\"&$B30,'Data Annex'!$K$1:$K$4997,0),MATCH(X$2,'Data Annex'!$K$1:$AN$1,0)),\"\")","v":5.5333136599999999E-2},{"$f":"IFERROR(INDEX('Data Annex'!$K$1:$AN$4997,MATCH(Y$1&\"|\"&$B30,'Data Annex'!$K$1:$K$4997,0),MATCH(Y$2,'Data Annex'!$K$1:$AN$1,0)),\"\")","v":3.0841587600000001E-2},{"$f":"IFERROR(INDEX('Data Annex'!$K$1:$AN$4997,MATCH(Z$1&\"|\"&$B30,'Data Annex'!$K$1:$K$4997,0),MATCH(Z$2,'Data Annex'!$K$1:$AN$1,0)),\"\")","v":3.1211952099999999E-2},{"$f":"IFERROR(INDEX('Data Annex'!$K$1:$AN$4997,MATCH(AA$1&\"|\"&$B30,'Data Annex'!$K$1:$K$4997,0),MATCH(AA$2,'Data Annex'!$K$1:$AN$1,0)),\"\")","v":3.1676110899999999E-2},{"$f":"IFERROR(INDEX('Data Annex'!$K$1:$AN$4997,MATCH(AB$1&\"|\"&$B30,'Data Annex'!$K$1:$K$4997,0),MATCH(AB$2,'Data Annex'!$K$1:$AN$1,0)),\"\")","v":3.99778441E-2}]
[20,"LU",null,"LU",{"$f":"IFERROR(INDEX('Data Annex'!$K$1:$AN$4997,MATCH(E$1&\"|\"&$B31,'Data Annex'!$K$1:$K$4997,0),MATCH(E$2,'Data Annex'!$K$1:$AN$1,0)),\"\")","v":1.02302012E-2},{"$f":"IFERROR(INDEX('Data Annex'!$K$1:$AN$4997,MATCH(F$1&\"|\"&$B31,'Data Annex'!$K$1:$K$4997,0),MATCH(F$2,'Data Annex'!$K$1:$AN$1,0)),\"\")","v":1.09828454E-2},{"$f":"IFERROR(INDEX('Data Annex'!$K$1:$AN$4997,MATCH(G$1&\"|\"&$B31,'Data Annex'!$K$1:$K$4997,0),MATCH(G$2,'Data Annex'!$K$1:$AN$1,0)),\"\")","v":1.35204343E-2},{"$f":"IFERROR(INDEX('Data Annex'!$K$1:$AN$4997,MATCH(H$1&\"|\"&$B31,'Data Annex'!$K$1:$K$4997,0),MATCH(H$2,'Data Annex'!$K$1:$AN$1,0)),\"\")","v":1.8228507500000001E-2},{"$f":"IFERROR(INDEX('Data Annex'!$K$1:$AN$4997,MATCH(I$1&\"|\"&$B31,'Data Annex'!$K$1:$K$4997,0),MATCH(I$2,'Data Annex'!$K$1:$AN$1,0)),\"\")","v":2.1214917600000001E-2},{"$f":"IFERROR(INDEX('Data Annex'!$K$1:$AN$4997,MATCH(J$1&\"|\"&$B31,'Data Annex'!$K$1:$K$4997,0),MATCH(J$2,'Data Annex'!$K$1:$AN$1,0)),\"\")","v":2.0047588599999999E-2},{"$f":"IFERROR(INDEX('Data Annex'!$K$1:$AN$4997,MATCH(K$1&\"|\"&$B31,'Data Annex'!$K$1:$K$4997,0),MATCH(K$2,'Data Annex'!$K$1:$AN$1,0)),\"\")","v":2.1689779900000001E-2},{"$f":"IFERROR(INDEX('Data Annex'!$K$1:$AN$4997,MATCH(L$1&\"|\"&$B31,'Data Annex'!$K$1:$K$4997,0),MATCH(L$2,'Data Annex'!$K$1:$AN$1,0)),\"\")","v":2.1437849799999999E-2},{"$f":"IFERROR(INDEX('Data Annex'!$K$1:$AN$4997,MATCH(M$1&\"|\"&$B31,'Data Annex'!$K$1:$K$4997,0),MATCH(M$2,'Data Annex'!$K$1:$AN$1,0)),\"\")","v":2.2353188E-2},{"$f":"IFERROR(INDEX('Data Annex'!$K$1:$AN$4997,MATCH(N$1&\"|\"&$B31,'Data Annex'!$K$1:$K$4997,0),MATCH(N$2,'Data Annex'!$K$1:$AN$1,0)),\"\")","v":2.0629845899999999E-2},{"$f":"IFERROR(INDEX('Data Annex'!$K$1:$AN$4997,MATCH(O$1&\"|\"&$B31,'Data Annex'!$K$1:$K$4997,0),MATCH(O$2,'Data Annex'!$K$1:$AN$1,0)),\"\")","v":2.3567063199999998E-2},{"$f":"IFERROR(INDEX('Data Annex'!$K$1:$AN$4997,MATCH(P$1&\"|\"&$B31,'Data Annex'!$K$1:$K$4997,0),MATCH(P$2,'Data Annex'!$K$1:$AN$1,0)),\"\")","v":2.3826159400000001E-2},{"$f":"IFERROR(INDEX('Data Annex'!$K$1:$AN$4997,MATCH(Q$1&\"|\"&$B31,'Data Annex'!$K$1:$K$4997,0),MATCH(Q$2,'Data Annex'!$K$1:$AN$1,0)),\"\")","v":2.5397138199999999E-2},{"$f":"IFERROR(INDEX('Data Annex'!$K$1:$AN$4997,MATCH(R$1&\"|\"&$B31,'Data Annex'!$K$1:$K$4997,0),MATCH(R$2,'Data Annex'!$K$1:$AN$1,0)),\"\")","v":2.7951061700000002E-2},{"$f":"IFERROR(INDEX('Data Annex'!$K$1:$AN$4997,MATCH(S$1&\"|\"&$B31,'Data Annex'!$K$1:$K$4997,0),MATCH(S$2,'Data Annex'!$K$1:$AN$1,0)),\"\")","v":3.6718132200000003E-2},{"$f":"IFERROR(INDEX('Data Annex'!$K$1:$AN$4997,MATCH(T$1&\"|\"&$B31,'Data Annex'!$K$1:$K$4997,0),MATCH(T$2,'Data Annex'!$K$1:$AN$1,0)),\"\")","v":3.7890938200000002E-2},{"$f":"IFERROR(INDEX('Data Annex'!$K$1:$AN$4997,MATCH(U$1&\"|\"&$B31,'Data Annex'!$K$1:$K$4997,0),MATCH(U$2,'Data Annex'!$K$1:$AN$1,0)),\"\")","v":4.1183802399999997E-2},{"$f":"IFERROR(INDEX('Data Annex'!$K$1:$AN$4997,MATCH(V$1&\"|\"&$B31,'Data Annex'!$K$1:$K$4997,0),MATCH(V$2,'Data Annex'!$K$1:$AN$1,0)),\"\")","v":4.4865310300000003E-2},{"$f":"IFERROR(INDEX('Data Annex'!$K$1:$AN$4997,MATCH(W$1&\"|\"&$B31,'Data Annex'!$K$1:$K$4997,0),MATCH(W$2,'Data Annex'!$K$1:$AN$1,0)),\"\")","v":5.0709766500000003E-2},{"$f":"IFERROR(INDEX('Data Annex'!$K$1:$AN$4997,MATCH(X$1&\"|\"&$B31,'Data Annex'!$K$1:$K$4997,0),MATCH(X$2,'Data Annex'!$K$1:$AN$1,0)),\"\")","v":5.2341331499999998E-2},{"$f":"IFERROR(INDEX('Data Annex'!$K$1:$AN$4997,MATCH(Y$1&\"|\"&$B31,'Data Annex'!$K$1:$K$4997,0),MATCH(Y$2,'Data Annex'!$K$1:$AN$1,0)),\"\")","v":3.5022929699999997E-2},{"$f":"IFERROR(INDEX('Data Annex'!$K$1:$AN$4997,MATCH(Z$1&\"|\"&$B31,'Data Annex'!$K$1:$K$4997,0),MATCH(Z$2,'Data Annex'!$K$1:$AN$1,0)),\"\")","v":3.3212524600000001E-2},{"$f":"IFERROR(INDEX('Data Annex'!$K$1:$AN$4997,MATCH(AA$1&\"|\"&$B31,'Data Annex'!$K$1:$K$4997,0),MATCH(AA$2,'Data Annex'!$K$1:$AN$1,0)),\"\")","v":4.1633995899999998E-2},{"$f":"IFERROR(INDEX('Data Annex'!$K$1:$AN$4997,MATCH(AB$1&\"|\"&$B31,'Data Annex'!$K$1:$K$4997,0),MATCH(AB$2,'Data Annex'!$K$1:$AN$1,0)),\"\")","v":5.1290668800000001E-2}]
[21,"LV",null,"LV",{"$f":"IFERROR(INDEX('Data Annex'!$K$1:$AN$4997,MATCH(E$1&\"|\"&$B32,'Data Annex'!$K$1:$K$4997,0),MATCH(E$2,'Data Annex'!$K$1:$AN$1,0)),\"\")","v":1.73021101E-2},{"$f":"IFERROR(INDEX('Data Annex'!$K$1:$AN$4997,MATCH(F$1&\"|\"&$B32,'Data Annex'!$K$1:$K$4997,0),MATCH(F$2,'Data Annex'!$K$1:$AN$1,0)),\"\")","v":1.8309097399999998E-2},{"$f":"IFERROR(INDEX('Data Annex'!$K$1:$AN$4997,MATCH(G$1&\"|\"&$B32,'Data Annex'!$K$1:$K$4997,0),MATCH(G$2,'Data Annex'!$K$1:$AN$1,0)),\"\")","v":1.8187146899999999E-2},{"$f":"IFERROR(INDEX('Data Annex'!$K$1:$AN$4997,MATCH(H$1&\"|\"&$B32,'Data Annex'!$K$1:$K$4997,0),MATCH(H$2,'Data Annex'!$K$1:$AN$1,0)),\"\")","v":2.2404418999999998E-2},{"$f":"IFERROR(INDEX('Data Annex'!$K$1:$AN$4997,MATCH(I$1&\"|\"&$B32,'Data Annex'!$K$1:$K$4997,0),MATCH(I$2,'Data Annex'!$K$1:$AN$1,0)),\"\")","v":2.4631732100000001E-2},{"$f":"IFERROR(INDEX('Data Annex'!$K$1:$AN$4997,MATCH(J$1&\"|\"&$B32,'Data Annex'!$K$1:$K$4997,0),MATCH(J$2,'Data Annex'!$K$1:$AN$1,0)),\"\")","v":2.36263006E-2},{"$f":"IFERROR(INDEX('Data Annex'!$K$1:$AN$4997,MATCH(K$1&\"|\"&$B32,'Data Annex'!$K$1:$K$4997,0),MATCH(K$2,'Data Annex'!$K$1:$AN$1,0)),\"\")","v":2.2017621500000001E-2},{"$f":"IFERROR(INDEX('Data Annex'!$K$1:$AN$4997,MATCH(L$1&\"|\"&$B32,'Data Annex'!$K$1:$K$4997,0),MATCH(L$2,'Data Annex'!$K$1:$AN$1,0)),\"\")","v":2.5709846599999999E-2},{"$f":"IFERROR(INDEX('Data Annex'!$K$1:$AN$4997,MATCH(M$1&\"|\"&$B32,'Data Annex'!$K$1:$K$4997,0),MATCH(M$2,'Data Annex'!$K$1:$AN$1,0)),\"\")","v":2.6869160600000001E-2},{"$f":"IFERROR(INDEX('Data Annex'!$K$1:$AN$4997,MATCH(N$1&\"|\"&$B32,'Data Annex'!$K$1:$K$4997,0),MATCH(N$2,'Data Annex'!$K$1:$AN$1,0)),\"\")","v":2.5443037700000001E-2},{"$f":"IFERROR(INDEX('Data Annex'!$K$1:$AN$4997,MATCH(O$1&\"|\"&$B32,'Data Annex'!$K$1:$K$4997,0),MATCH(O$2,'Data Annex'!$K$1:$AN$1,0)),\"\")","v":2.3814242199999999E-2},{"$f":"IFERROR(INDEX('Data Annex'!$K$1:$AN$4997,MATCH(P$1&\"|\"&$B32,'Data Annex'!$K$1:$K$4997,0),MATCH(P$2,'Data Annex'!$K$1:$AN$1,0)),\"\")","v":2.7780972300000002E-2},{"$f":"IFERROR(INDEX('Data Annex'!$K$1:$AN$4997,MATCH(Q$1&\"|\"&$B32,'Data Annex'!$K$1:$K$4997,0),MATCH(Q$2,'Data Annex'!$K$1:$AN$1,0)),\"\")","v":2.7861424900000001E-2},{"$f":"IFERROR(INDEX('Data Annex'!$K$1:$AN$4997,MATCH(R$1&\"|\"&$B32,'Data Annex'!$K$1:$K$4997,0),MATCH(R$2,'Data Annex'!$K$1:$AN$1,0)),\"\")","v":3.2456343899999997E-2},{"$f":"IFERROR(INDEX('Data Annex'!$K$1:$AN$4997,MATCH(S$1&\"|\"&$B32,'Data Annex'!$K$1:$K$4997,0),MATCH(S$2,'Data Annex'!$K$1:$AN$1,0)),\"\")","v":3.2633108000000001E-2},{"$f":"IFERROR(INDEX('Data Annex'!$K$1:$AN$4997,MATCH(T$1&\"|\"&$B32,'Data Annex'!$K$1:$K$4997,0),MATCH(T$2,'Data Annex'!$K$1:$AN$1,0)),\"\")","v":3.7750683399999999E-2},{"$f":"IFERROR(INDEX('Data Annex'!$K$1:$AN$4997,MATCH(U$1&\"|\"&$B32,'Data Annex'!$K$1:$K$4997,0),MATCH(U$2,'Data Annex'!$K$1:$AN$1,0)),\"\")","v":2.5073453400000001E-2},{"$f":"IFERROR(INDEX('Data Annex'!$K$1:$AN$4997,MATCH(V$1&\"|\"&$B32,'Data Annex'!$K$1:$K$4997,0),MATCH(V$2,'Data Annex'!$K$1:$AN$1,0)),\"\")","v":2.59843196E-2},{"$f":"IFERROR(INDEX('Data Annex'!$K$1:$AN$4997,MATCH(W$1&\"|\"&$B32,'Data Annex'!$K$1:$K$4997,0),MATCH(W$2,'Data Annex'!$K$1:$AN$1,0)),\"\")","v":2.87604477E-2},{"$f":"IFERROR(INDEX('Data Annex'!$K$1:$AN$4997,MATCH(X$1&\"|\"&$B32,'Data Annex'!$K$1:$K$4997,0),MATCH(X$2,'Data Annex'!$K$1:$AN$1,0)),\"\")","v":3.4944011599999998E-2},{"$f":"IFERROR(INDEX('Data Annex'!$K$1:$AN$4997,MATCH(Y$1&\"|\"&$B32,'Data Annex'!$K$1:$K$4997,0),MATCH(Y$2,'Data Annex'!$K$1:$AN$1,0)),\"\")","v":3.5267048699999998E-2},{"$f":"IFERROR(INDEX('Data Annex'!$K$1:$AN$4997,MATCH(Z$1&\"|\"&$B32,'Data Annex'!$K$1:$K$4997,0),MATCH(Z$2,'Data Annex'!$K$1:$AN$1,0)),\"\")","v":4.1092719100000001E-2},{"$f":"IFERROR(INDEX('Data Annex'!$K$1:$AN$4997,MATCH(AA$1&\"|\"&$B32,'Data Annex'!$K$1:$K$4997,0),MATCH(AA$2,'Data Annex'!$K$1:$AN$1,0)),\"\")","v":4.3665150200000002E-2},{"$f":"IFERROR(INDEX('Data Annex'!$K$1:$AN$4997,MATCH(AB$1&\"|\"&$B32,'Data Annex'!$K$1:$K$4997,0),MATCH(AB$2,'Data Annex'!$K$1:$AN$1,0)),\"\")","v":4.8452634699999997E-2}]
[22,"MT",null,"MT",{"$f":"IFERROR(INDEX('Data Annex'!$K$1:$AN$4997,MATCH(E$1&\"|\"&$B33,'Data Annex'!$K$1:$K$4997,0),MATCH(E$2,'Data Annex'!$K$1:$AN$1,0)),\"\")","v":3.0308405699999999E-2},{"$f":"IFERROR(INDEX('Data Annex'!$K$1:$AN$4997,MATCH(F$1&\"|\"&$B33,'Data Annex'!$K$1:$K$4997,0),MATCH(F$2,'Data Annex'!$K$1:$AN$1,0)),\"\")","v":3.4710510200000003E-2},{"$f":"IFERROR(INDEX('Data Annex'!$K$1:$AN$4997,MATCH(G$1&\"|\"&$B33,'Data Annex'!$K$1:$K$4997,0),MATCH(G$2,'Data Annex'!$K$1:$AN$1,0)),\"\")","v":3.2659113500000003E-2},{"$f":"IFERROR(INDEX('Data Annex'!$K$1:$AN$4997,MATCH(H$1&\"|\"&$B33,'Data Annex'!$K$1:$K$4997,0),MATCH(H$2,'Data Annex'!$K$1:$AN$1,0)),\"\")","v":3.4619045600000002E-2},{"$f":"IFERROR(INDEX('Data Annex'!$K$1:$AN$4997,MATCH(I$1&\"|\"&$B33,'Data Annex'!$K$1:$K$4997,0),MATCH(I$2,'Data Annex'!$K$1:$AN$1,0)),\"\")","v":2.42676275E-2},{"$f":"IFERROR(INDEX('Data Annex'!$K$1:$AN$4997,MATCH(J$1&\"|\"&$B33,'Data Annex'!$K$1:$K$4997,0),MATCH(J$2,'Data Annex'!$K$1:$AN$1,0)),\"\")","v":2.7959048E-2},{"$f":"IFERROR(INDEX('Data Annex'!$K$1:$AN$4997,MATCH(K$1&\"|\"&$B33,'Data Annex'!$K$1:$K$4997,0),MATCH(K$2,'Data Annex'!$K$1:$AN$1,0)),\"\")","v":2.6460720100000001E-2},{"$f":"IFERROR(INDEX('Data Annex'!$K$1:$AN$4997,MATCH(L$1&\"|\"&$B33,'Data Annex'!$K$1:$K$4997,0),MATCH(L$2,'Data Annex'!$K$1:$AN$1,0)),\"\")","v":2.7217764299999999E-2},{"$f":"IFERROR(INDEX('Data Annex'!$K$1:$AN$4997,MATCH(M$1&\"|\"&$B33,'Data Annex'!$K$1:$K$4997,0),MATCH(M$2,'Data Annex'!$K$1:$AN$1,0)),\"\")","v":2.2211267E-2},{"$f":"IFERROR(INDEX('Data Annex'!$K$1:$AN$4997,MATCH(N$1&\"|\"&$B33,'Data Annex'!$K$1:$K$4997,0),MATCH(N$2,'Data Annex'!$K$1:$AN$1,0)),\"\")","v":2.6000086200000001E-2},{"$f":"IFERROR(INDEX('Data Annex'!$K$1:$AN$4997,MATCH(O$1&\"|\"&$B33,'Data Annex'!$K$1:$K$4997,0),MATCH(O$2,'Data Annex'!$K$1:$AN$1,0)),\"\")","v":2.4648228000000001E-2},{"$f":"IFERROR(INDEX('Data Annex'!$K$1:$AN$4997,MATCH(P$1&\"|\"&$B33,'Data Annex'!$K$1:$K$4997,0),MATCH(P$2,'Data Annex'!$K$1:$AN$1,0)),\"\")","v":2.6020217700000001E-2},{"$f":"IFERROR(INDEX('Data Annex'!$K$1:$AN$4997,MATCH(Q$1&\"|\"&$B33,'Data Annex'!$K$1:$K$4997,0),MATCH(Q$2,'Data Annex'!$K$1:$AN$1,0)),\"\")","v":8.1988811999999994E-2},{"$f":"IFERROR(INDEX('Data Annex'!$K$1:$AN$4997,MATCH(R$1&\"|\"&$B33,'Data Annex'!$K$1:$K$4997,0),MATCH(R$2,'Data Annex'!$K$1:$AN$1,0)),\"\")","v":7.5600072599999998E-2},{"$f":"IFERROR(INDEX('Data Annex'!$K$1:$AN$4997,MATCH(S$1&\"|\"&$B33,'Data Annex'!$K$1:$K$4997,0),MATCH(S$2,'Data Annex'!$K$1:$AN$1,0)),\"\")","v":9.9525801900000002E-2},{"$f":"IFERROR(INDEX('Data Annex'!$K$1:$AN$4997,MATCH(T$1&\"|\"&$B33,'Data Annex'!$K$1:$K$4997,0),MATCH(T$2,'Data Annex'!$K$1:$AN$1,0)),\"\")","v":9.9005966500000001E-2},{"$f":"IFERROR(INDEX('Data Annex'!$K$1:$AN$4997,MATCH(U$1&\"|\"&$B33,'Data Annex'!$K$1:$K$4997,0),MATCH(U$2,'Data Annex'!$K$1:$AN$1,0)),\"\")","v":8.7063977099999995E-2},{"$f":"IFERROR(INDEX('Data Annex'!$K$1:$AN$4997,MATCH(V$1&\"|\"&$B33,'Data Annex'!$K$1:$K$4997,0),MATCH(V$2,'Data Annex'!$K$1:$AN$1,0)),\"\")","v":8.8001642699999993E-2},{"$f":"IFERROR(INDEX('Data Annex'!$K$1:$AN$4997,MATCH(W$1&\"|\"&$B33,'Data Annex'!$K$1:$K$4997,0),MATCH(W$2,'Data Annex'!$K$1:$AN$1,0)),\"\")","v":8.9788739899999997E-2},{"$f":"IFERROR(INDEX('Data Annex'!$K$1:$AN$4997,MATCH(X$1&\"|\"&$B33,'Data Annex'!$K$1:$K$4997,0),MATCH(X$2,'Data Annex'!$K$1:$AN$1,0)),\"\")","v":8.5160452499999997E-2},{"$f":"IFERROR(INDEX('Data Annex'!$K$1:$AN$4997,MATCH(Y$1&\"|\"&$B33,'Data Annex'!$K$1:$K$4997,0),MATCH(Y$2,'Data Annex'!$K$1:$AN$1,0)),\"\")","v":0.119840512},{"$f":"IFERROR(INDEX('Data Annex'!$K$1:$AN$4997,MATCH(Z$1&\"|\"&$B33,'Data Annex'!$K$1:$K$4997,0),MATCH(Z$2,'Data Annex'!$K$1:$AN$1,0)),\"\")","v":0.1060194538},{"$f":"IFERROR(INDEX('Data Annex'!$K$1:$AN$4997,MATCH(AA$1&\"|\"&$B33,'Data Annex'!$K$1:$K$4997,0),MATCH(AA$2,'Data Annex'!$K$1:$AN$1,0)),\"\")","v":0.1016814415},{"$f":"IFERROR(INDEX('Data Annex'!$K$1:$AN$4997,MATCH(AB$1&\"|\"&$B33,'Data Annex'!$K$1:$K$4997,0),MATCH(AB$2,'Data Annex'!$K$1:$AN$1,0)),\"\")","v":0.122077029}]
[23,"NL",null,"NL",{"$f":"IFERROR(INDEX('Data Annex'!$K$1:$AN$4997,MATCH(E$1&\"|\"&$B34,'Data Annex'!$K$1:$K$4997,0),MATCH(E$2,'Data Annex'!$K$1:$AN$1,0)),\"\")","v":1.9434810100000002E-2},{"$f":"IFERROR(INDEX('Data Annex'!$K$1:$AN$4997,MATCH(F$1&\"|\"&$B34,'Data Annex'!$K$1:$K$4997,0),MATCH(F$2,'Data Annex'!$K$1:$AN$1,0)),\"\")","v":1.9841887400000001E-2},{"$f":"IFERROR(INDEX('Data Annex'!$K$1:$AN$4997,MATCH(G$1&\"|\"&$B34,'Data Annex'!$K$1:$K$4997,0),MATCH(G$2,'Data Annex'!$K$1:$AN$1,0)),\"\")","v":1.92455666E-2},{"$f":"IFERROR(INDEX('Data Annex'!$K$1:$AN$4997,MATCH(H$1&\"|\"&$B34,'Data Annex'!$K$1:$K$4997,0),MATCH(H$2,'Data Annex'!$K$1:$AN$1,0)),\"\")","v":1.9872100899999998E-2},{"$f":"IFERROR(INDEX('Data Annex'!$K$1:$AN$4997,MATCH(I$1&\"|\"&$B34,'Data Annex'!$K$1:$K$4997,0),MATCH(I$2,'Data Annex'!$K$1:$AN$1,0)),\"\")","v":1.22578028E-2},{"$f":"IFERROR(INDEX('Data Annex'!$K$1:$AN$4997,MATCH(J$1&\"|\"&$B34,'Data Annex'!$K$1:$K$4997,0),MATCH(J$2,'Data Annex'!$K$1:$AN$1,0)),\"\")","v":1.28311021E-2},{"$f":"IFERROR(INDEX('Data Annex'!$K$1:$AN$4997,MATCH(K$1&\"|\"&$B34,'Data Annex'!$K$1:$K$4997,0),MATCH(K$2,'Data Annex'!$K$1:$AN$1,0)),\"\")","v":1.2572164300000001E-2},{"$f":"IFERROR(INDEX('Data Annex'!$K$1:$AN$4997,MATCH(L$1&\"|\"&$B34,'Data Annex'!$K$1:$K$4997,0),MATCH(L$2,'Data Annex'!$K$1:$AN$1,0)),\"\")","v":1.29244761E-2},{"$f":"IFERROR(INDEX('Data Annex'!$K$1:$AN$4997,MATCH(M$1&\"|\"&$B34,'Data Annex'!$K$1:$K$4997,0),MATCH(M$2,'Data Annex'!$K$1:$AN$1,0)),\"\")","v":9.7376891000000004E-3},{"$f":"IFERROR(INDEX('Data Annex'!$K$1:$AN$4997,MATCH(N$1&\"|\"&$B34,'Data Annex'!$K$1:$K$4997,0),MATCH(N$2,'Data Annex'!$K$1:$AN$1,0)),\"\")","v":1.0005441E-2},{"$f":"IFERROR(INDEX('Data Annex'!$K$1:$AN$4997,MATCH(O$1&\"|\"&$B34,'Data Annex'!$K$1:$K$4997,0),MATCH(O$2,'Data Annex'!$K$1:$AN$1,0)),\"\")","v":9.7845241000000006E-3},{"$f":"IFERROR(INDEX('Data Annex'!$K$1:$AN$4997,MATCH(P$1&\"|\"&$B34,'Data Annex'!$K$1:$K$4997,0),MATCH(P$2,'Data Annex'!$K$1:$AN$1,0)),\"\")","v":1.01392694E-2},{"$f":"IFERROR(INDEX('Data Annex'!$K$1:$AN$4997,MATCH(Q$1&\"|\"&$B34,'Data Annex'!$K$1:$K$4997,0),MATCH(Q$2,'Data Annex'!$K$1:$AN$1,0)),\"\")","v":4.3789709000000003E-2},{"$f":"IFERROR(INDEX('Data Annex'!$K$1:$AN$4997,MATCH(R$1&\"|\"&$B34,'Data Annex'!$K$1:$K$4997,0),MATCH(R$2,'Data Annex'!$K$1:$AN$1,0)),\"\")","v":4.7533960700000003E-2},{"$f":"IFERROR(INDEX('Data Annex'!$K$1:$AN$4997,MATCH(S$1&\"|\"&$B34,'Data Annex'!$K$1:$K$4997,0),MATCH(S$2,'Data Annex'!$K$1:$AN$1,0)),\"\")","v":4.8748539100000002E-2},{"$f":"IFERROR(INDEX('Data Annex'!$K$1:$AN$4997,MATCH(T$1&\"|\"&$B34,'Data Annex'!$K$1:$K$4997,0),MATCH(T$2,'Data Annex'!$K$1:$AN$1,0)),\"\")","v":4.8312221099999997E-2},{"$f":"IFERROR(INDEX('Data Annex'!$K$1:$AN$4997,MATCH(U$1&\"|\"&$B34,'Data Annex'!$K$1:$K$4997,0),MATCH(U$2,'Data Annex'!$K$1:$AN$1,0)),\"\")","v":5.3537692599999999E-2},{"$f":"IFERROR(INDEX('Data Annex'!$K$1:$AN$4997,MATCH(V$1&\"|\"&$B34,'Data Annex'!$K$1:$K$4997,0),MATCH(V$2,'Data Annex'!$K$1:$AN$1,0)),\"\")","v":5.3021476900000003E-2},{"$f":"IFERROR(INDEX('Data Annex'!$K$1:$AN$4997,MATCH(W$1&\"|\"&$B34,'Data Annex'!$K$1:$K$4997,0),MATCH(W$2,'Data Annex'!$K$1:$AN$1,0)),\"\")","v":5.11934868E-2},{"$f":"IFERROR(INDEX('Data Annex'!$K$1:$AN$4997,MATCH(X$1&\"|\"&$B34,'Data Annex'!$K$1:$K$4997,0),MATCH(X$2,'Data Annex'!$K$1:$AN$1,0)),\"\")","v":5.1970067299999999E-2},{"$f":"IFERROR(INDEX('Data Annex'!$K$1:$AN$4997,MATCH(Y$1&\"|\"&$B34,'Data Annex'!$K$1:$K$4997,0),MATCH(Y$2,'Data Annex'!$K$1:$AN$1,0)),\"\")","v":5.9222592400000003E-2},{"$f":"IFERROR(INDEX('Data Annex'!$K$1:$AN$4997,MATCH(Z$1&\"|\"&$B34,'Data Annex'!$K$1:$K$4997,0),MATCH(Z$2,'Data Annex'!$K$1:$AN$1,0)),\"\")","v":5.3236281199999999E-2},{"$f":"IFERROR(INDEX('Data Annex'!$K$1:$AN$4997,MATCH(AA$1&\"|\"&$B34,'Data Annex'!$K$1:$K$4997,0),MATCH(AA$2,'Data Annex'!$K$1:$AN$1,0)),\"\")","v":5.2764261999999999E-2},{"$f":"IFERROR(INDEX('Data Annex'!$K$1:$AN$4997,MATCH(AB$1&\"|\"&$B34,'Data Annex'!$K$1:$K$4997,0),MATCH(AB$2,'Data Annex'!$K$1:$AN$1,0)),\"\")","v":5.5188299400000002E-2}]
[24,"NO",null,"NO",{"$f":"IFERROR(INDEX('Data Annex'!$K$1:$AN$4997,MATCH(E$1&\"|\"&$B35,'Data Annex'!$K$1:$K$4997,0),MATCH(E$2,'Data Annex'!$K$1:$AN$1,0)),\"\")","v":1.49440298E-2},{"$f":"IFERROR(INDEX('Data Annex'!$K$1:$AN$4997,MATCH(F$1&\"|\"&$B35,'Data Annex'!$K$1:$K$4997,0),MATCH(F$2,'Data Annex'!$K$1:$AN$1,0)),\"\")","v":1.6913083499999999E-2},{"$f":"IFERROR(INDEX('Data Annex'!$K$1:$AN$4997,MATCH(G$1&\"|\"&$B35,'Data Annex'!$K$1:$K$4997,0),MATCH(G$2,'Data Annex'!$K$1:$AN$1,0)),\"\")","v":1.6668201699999999E-2},{"$f":"IFERROR(INDEX('Data Annex'!$K$1:$AN$4997,MATCH(H$1&\"|\"&$B35,'Data Annex'!$K$1:$K$4997,0),MATCH(H$2,'Data Annex'!$K$1:$AN$1,0)),\"\")","v":1.5654575600000002E-2},{"$f":"IFERROR(INDEX('Data Annex'!$K$1:$AN$4997,MATCH(I$1&\"|\"&$B35,'Data Annex'!$K$1:$K$4997,0),MATCH(I$2,'Data Annex'!$K$1:$AN$1,0)),\"\")","v":4.4085649000000001E-3},{"$f":"IFERROR(INDEX('Data Annex'!$K$1:$AN$4997,MATCH(J$1&\"|\"&$B35,'Data Annex'!$K$1:$K$4997,0),MATCH(J$2,'Data Annex'!$K$1:$AN$1,0)),\"\")","v":4.3705810000000001E-3},{"$f":"IFERROR(INDEX('Data Annex'!$K$1:$AN$4997,MATCH(K$1&\"|\"&$B35,'Data Annex'!$K$1:$K$4997,0),MATCH(K$2,'Data Annex'!$K$1:$AN$1,0)),\"\")","v":4.2581403999999998E-3},{"$f":"IFERROR(INDEX('Data Annex'!$K$1:$AN$4997,MATCH(L$1&\"|\"&$B35,'Data Annex'!$K$1:$K$4997,0),MATCH(L$2,'Data Annex'!$K$1:$AN$1,0)),\"\")","v":3.9064657000000003E-3},{"$f":"IFERROR(INDEX('Data Annex'!$K$1:$AN$4997,MATCH(M$1&\"|\"&$B35,'Data Annex'!$K$1:$K$4997,0),MATCH(M$2,'Data Annex'!$K$1:$AN$1,0)),\"\")","v":2.3803947999999999E-3},{"$f":"IFERROR(INDEX('Data Annex'!$K$1:$AN$4997,MATCH(N$1&\"|\"&$B35,'Data Annex'!$K$1:$K$4997,0),MATCH(N$2,'Data Annex'!$K$1:$AN$1,0)),\"\")","v":2.3120110000000001E-3},{"$f":"IFERROR(INDEX('Data Annex'!$K$1:$AN$4997,MATCH(O$1&\"|\"&$B35,'Data Annex'!$K$1:$K$4997,0),MATCH(O$2,'Data Annex'!$K$1:$AN$1,0)),\"\")","v":2.2634901E-3},{"$f":"IFERROR(INDEX('Data Annex'!$K$1:$AN$4997,MATCH(P$1&\"|\"&$B35,'Data Annex'!$K$1:$K$4997,0),MATCH(P$2,'Data Annex'!$K$1:$AN$1,0)),\"\")","v":2.0618644000000002E-3},{"$f":"IFERROR(INDEX('Data Annex'!$K$1:$AN$4997,MATCH(Q$1&\"|\"&$B35,'Data Annex'!$K$1:$K$4997,0),MATCH(Q$2,'Data Annex'!$K$1:$AN$1,0)),\"\")","v":4.0066874699999998E-2},{"$f":"IFERROR(INDEX('Data Annex'!$K$1:$AN$4997,MATCH(R$1&\"|\"&$B35,'Data Annex'!$K$1:$K$4997,0),MATCH(R$2,'Data Annex'!$K$1:$AN$1,0)),\"\")","v":4.4437755600000003E-2},{"$f":"IFERROR(INDEX('Data Annex'!$K$1:$AN$4997,MATCH(S$1&\"|\"&$B35,'Data Annex'!$K$1:$K$4997,0),MATCH(S$2,'Data Annex'!$K$1:$AN$1,0)),\"\")","v":4.4824540599999997E-2},{"$f":"IFERROR(INDEX('Data Annex'!$K$1:$AN$4997,MATCH(T$1&\"|\"&$B35,'Data Annex'!$K$1:$K$4997,0),MATCH(T$2,'Data Annex'!$K$1:$AN$1,0)),\"\")","v":4.0781005199999998E-2},{"$f":"IFERROR(INDEX('Data Annex'!$K$1:$AN$4997,MATCH(U$1&\"|\"&$B35,'Data Annex'!$K$1:$K$4997,0),MATCH(U$2,'Data Annex'!$K$1:$AN$1,0)),\"\")","v":2.6262235200000001E-2},{"$f":"IFERROR(INDEX('Data Annex'!$K$1:$AN$4997,MATCH(V$1&\"|\"&$B35,'Data Annex'!$K$1:$K$4997,0),MATCH(V$2,'Data Annex'!$K$1:$AN$1,0)),\"\")","v":2.77198242E-2},{"$f":"IFERROR(INDEX('Data Annex'!$K$1:$AN$4997,MATCH(W$1&\"|\"&$B35,'Data Annex'!$K$1:$K$4997,0),MATCH(W$2,'Data Annex'!$K$1:$AN$1,0)),\"\")","v":2.0513222300000002E-2},{"$f":"IFERROR(INDEX('Data Annex'!$K$1:$AN$4997,MATCH(X$1&\"|\"&$B35,'Data Annex'!$K$1:$K$4997,0),MATCH(X$2,'Data Annex'!$K$1:$AN$1,0)),\"\")","v":2.2319741099999998E-2},{"$f":"IFERROR(INDEX('Data Annex'!$K$1:$AN$4997,MATCH(Y$1&\"|\"&$B35,'Data Annex'!$K$1:$K$4997,0),MATCH(Y$2,'Data Annex'!$K$1:$AN$1,0)),\"\")","v":9.6423068999999997E-3},{"$f":"IFERROR(INDEX('Data Annex'!$K$1:$AN$4997,MATCH(Z$1&\"|\"&$B35,'Data Annex'!$K$1:$K$4997,0),MATCH(Z$2,'Data Annex'!$K$1:$AN$1,0)),\"\")","v":1.25295509E-2},{"$f":"IFERROR(INDEX('Data Annex'!$K$1:$AN$4997,MATCH(AA$1&\"|\"&$B35,'Data Annex'!$K$1:$K$4997,0),MATCH(AA$2,'Data Annex'!$K$1:$AN$1,0)),\"\")","v":1.09950447E-2},{"$f":"IFERROR(INDEX('Data Annex'!$K$1:$AN$4997,MATCH(AB$1&\"|\"&$B35,'Data Annex'!$K$1:$K$4997,0),MATCH(AB$2,'Data Annex'!$K$1:$AN$1,0)),\"\")","v":1.06141308E-2}]
[25,"PL",null,"PL",{"$f":"IFERROR(INDEX('Data Annex'!$K$1:$AN$4997,MATCH(E$1&\"|\"&$B36,'Data Annex'!$K$1:$K$4997,0),MATCH(E$2,'Data Annex'!$K$1:$AN$1,0)),\"\")","v":4.79638784E-2},{"$f":"IFERROR(INDEX('Data Annex'!$K$1:$AN$4997,MATCH(F$1&\"|\"&$B36,'Data Annex'!$K$1:$K$4997,0),MATCH(F$2,'Data Annex'!$K$1:$AN$1,0)),\"\")","v":4.8920267099999998E-2},{"$f":"IFERROR(INDEX('Data Annex'!$K$1:$AN$4997,MATCH(G$1&\"|\"&$B36,'Data Annex'!$K$1:$K$4997,0),MATCH(G$2,'Data Annex'!$K$1:$AN$1,0)),\"\")","v":4.9938897599999997E-2},{"$f":"IFERROR(INDEX('Data Annex'!$K$1:$AN$4997,MATCH(H$1&\"|\"&$B36,'Data Annex'!$K$1:$K$4997,0),MATCH(H$2,'Data Annex'!$K$1:$AN$1,0)),\"\")","v":5.0890386099999997E-2},{"$f":"IFERROR(INDEX('Data Annex'!$K$1:$AN$4997,MATCH(I$1&\"|\"&$B36,'Data Annex'!$K$1:$K$4997,0),MATCH(I$2,'Data Annex'!$K$1:$AN$1,0)),\"\")","v":3.67138199E-2},{"$f":"IFERROR(INDEX('Data Annex'!$K$1:$AN$4997,MATCH(J$1&\"|\"&$B36,'Data Annex'!$K$1:$K$4997,0),MATCH(J$2,'Data Annex'!$K$1:$AN$1,0)),\"\")","v":3.8091803100000002E-2},{"$f":"IFERROR(INDEX('Data Annex'!$K$1:$AN$4997,MATCH(K$1&\"|\"&$B36,'Data Annex'!$K$1:$K$4997,0),MATCH(K$2,'Data Annex'!$K$1:$AN$1,0)),\"\")","v":3.8129695700000001E-2},{"$f":"IFERROR(INDEX('Data Annex'!$K$1:$AN$4997,MATCH(L$1&\"|\"&$B36,'Data Annex'!$K$1:$K$4997,0),MATCH(L$2,'Data Annex'!$K$1:$AN$1,0)),\"\")","v":3.9111564799999998E-2},{"$f":"IFERROR(INDEX('Data Annex'!$K$1:$AN$4997,MATCH(M$1&\"|\"&$B36,'Data Annex'!$K$1:$K$4997,0),MATCH(M$2,'Data Annex'!$K$1:$AN$1,0)),\"\")","v":1.8420423200000001E-2},{"$f":"IFERROR(INDEX('Data Annex'!$K$1:$AN$4997,MATCH(N$1&\"|\"&$B36,'Data Annex'!$K$1:$K$4997,0),MATCH(N$2,'Data Annex'!$K$1:$AN$1,0)),\"\")","v":1.9239096000000001E-2},{"$f":"IFERROR(INDEX('Data Annex'!$K$1:$AN$4997,MATCH(O$1&\"|\"&$B36,'Data Annex'!$K$1:$K$4997,0),MATCH(O$2,'Data Annex'!$K$1:$AN$1,0)),\"\")","v":1.8400488999999999E-2},{"$f":"IFERROR(INDEX('Data Annex'!$K$1:$AN$4997,MATCH(P$1&\"|\"&$B36,'Data Annex'!$K$1:$K$4997,0),MATCH(P$2,'Data Annex'!$K$1:$AN$1,0)),\"\")","v":1.9851963199999999E-2},{"$f":"IFERROR(INDEX('Data Annex'!$K$1:$AN$4997,MATCH(Q$1&\"|\"&$B36,'Data Annex'!$K$1:$K$4997,0),MATCH(Q$2,'Data Annex'!$K$1:$AN$1,0)),\"\")","v":7.1613491000000001E-2},{"$f":"IFERROR(INDEX('Data Annex'!$K$1:$AN$4997,MATCH(R$1&\"|\"&$B36,'Data Annex'!$K$1:$K$4997,0),MATCH(R$2,'Data Annex'!$K$1:$AN$1,0)),\"\")","v":7.6195809200000006E-2},{"$f":"IFERROR(INDEX('Data Annex'!$K$1:$AN$4997,MATCH(S$1&\"|\"&$B36,'Data Annex'!$K$1:$K$4997,0),MATCH(S$2,'Data Annex'!$K$1:$AN$1,0)),\"\")","v":7.6633911599999993E-2},{"$f":"IFERROR(INDEX('Data Annex'!$K$1:$AN$4997,MATCH(T$1&\"|\"&$B36,'Data Annex'!$K$1:$K$4997,0),MATCH(T$2,'Data Annex'!$K$1:$AN$1,0)),\"\")","v":7.75379863E-2},{"$f":"IFERROR(INDEX('Data Annex'!$K$1:$AN$4997,MATCH(U$1&\"|\"&$B36,'Data Annex'!$K$1:$K$4997,0),MATCH(U$2,'Data Annex'!$K$1:$AN$1,0)),\"\")","v":8.6077622100000001E-2},{"$f":"IFERROR(INDEX('Data Annex'!$K$1:$AN$4997,MATCH(V$1&\"|\"&$B36,'Data Annex'!$K$1:$K$4997,0),MATCH(V$2,'Data Annex'!$K$1:$AN$1,0)),\"\")","v":9.3123147200000006E-2},{"$f":"IFERROR(INDEX('Data Annex'!$K$1:$AN$4997,MATCH(W$1&\"|\"&$B36,'Data Annex'!$K$1:$K$4997,0),MATCH(W$2,'Data Annex'!$K$1:$AN$1,0)),\"\")","v":9.2876536300000007E-2},{"$f":"IFERROR(INDEX('Data Annex'!$K$1:$AN$4997,MATCH(X$1&\"|\"&$B36,'Data Annex'!$K$1:$K$4997,0),MATCH(X$2,'Data Annex'!$K$1:$AN$1,0)),\"\")","v":9.3001833000000006E-2},{"$f":"IFERROR(INDEX('Data Annex'!$K$1:$AN$4997,MATCH(Y$1&\"|\"&$B36,'Data Annex'!$K$1:$K$4997,0),MATCH(Y$2,'Data Annex'!$K$1:$AN$1,0)),\"\")","v":0.1105738812},{"$f":"IFERROR(INDEX('Data Annex'!$K$1:$AN$4997,MATCH(Z$1&\"|\"&$B36,'Data Annex'!$K$1:$K$4997,0),MATCH(Z$2,'Data Annex'!$K$1:$AN$1,0)),\"\")","v":0.1093444224},{"$f":"IFERROR(INDEX('Data Annex'!$K$1:$AN$4997,MATCH(AA$1&\"|\"&$B36,'Data Annex'!$K$1:$K$4997,0),MATCH(AA$2,'Data Annex'!$K$1:$AN$1,0)),\"\")","v":0.1095647991},{"$f":"IFERROR(INDEX('Data Annex'!$K$1:$AN$4997,MATCH(AB$1&\"|\"&$B36,'Data Annex'!$K$1:$K$4997,0),MATCH(AB$2,'Data Annex'!$K$1:$AN$1,0)),\"\")","v":0.1201521069}]
[26,"PT",null,"PT",{"$f":"IFERROR(INDEX('Data Annex'!$K$1:$AN$4997,MATCH(E$1&\"|\"&$B37,'Data Annex'!$K$1:$K$4997,0),MATCH(E$2,'Data Annex'!$K$1:$AN$1,0)),\"\")","v":6.1532878100000001E-2},{"$f":"IFERROR(INDEX('Data Annex'!$K$1:$AN$4997,MATCH(F$1&\"|\"&$B37,'Data Annex'!$K$1:$K$4997,0),MATCH(F$2,'Data Annex'!$K$1:$AN$1,0)),\"\")","v":5.7210694300000003E-2},{"$f":"IFERROR(INDEX('Data Annex'!$K$1:$AN$4997,MATCH(G$1&\"|\"&$B37,'Data Annex'!$K$1:$K$4997,0),MATCH(G$2,'Data Annex'!$K$1:$AN$1,0)),\"\")","v":5.4555871200000002E-2},{"$f":"IFERROR(INDEX('Data Annex'!$K$1:$AN$4997,MATCH(H$1&\"|\"&$B37,'Data Annex'!$K$1:$K$4997,0),MATCH(H$2,'Data Annex'!$K$1:$AN$1,0)),\"\")","v":4.9100907800000003E-2},{"$f":"IFERROR(INDEX('Data Annex'!$K$1:$AN$4997,MATCH(I$1&\"|\"&$B37,'Data Annex'!$K$1:$K$4997,0),MATCH(I$2,'Data Annex'!$K$1:$AN$1,0)),\"\")","v":3.3443083399999997E-2},{"$f":"IFERROR(INDEX('Data Annex'!$K$1:$AN$4997,MATCH(J$1&\"|\"&$B37,'Data Annex'!$K$1:$K$4997,0),MATCH(J$2,'Data Annex'!$K$1:$AN$1,0)),\"\")","v":3.3064804500000003E-2},{"$f":"IFERROR(INDEX('Data Annex'!$K$1:$AN$4997,MATCH(K$1&\"|\"&$B37,'Data Annex'!$K$1:$K$4997,0),MATCH(K$2,'Data Annex'!$K$1:$AN$1,0)),\"\")","v":3.1269525100000001E-2},{"$f":"IFERROR(INDEX('Data Annex'!$K$1:$AN$4997,MATCH(L$1&\"|\"&$B37,'Data Annex'!$K$1:$K$4997,0),MATCH(L$2,'Data Annex'!$K$1:$AN$1,0)),\"\")","v":2.96741726E-2},{"$f":"IFERROR(INDEX('Data Annex'!$K$1:$AN$4997,MATCH(M$1&\"|\"&$B37,'Data Annex'!$K$1:$K$4997,0),MATCH(M$2,'Data Annex'!$K$1:$AN$1,0)),\"\")","v":2.3191529299999999E-2},{"$f":"IFERROR(INDEX('Data Annex'!$K$1:$AN$4997,MATCH(N$1&\"|\"&$B37,'Data Annex'!$K$1:$K$4997,0),MATCH(N$2,'Data Annex'!$K$1:$AN$1,0)),\"\")","v":2.21760306E-2},{"$f":"IFERROR(INDEX('Data Annex'!$K$1:$AN$4997,MATCH(O$1&\"|\"&$B37,'Data Annex'!$K$1:$K$4997,0),MATCH(O$2,'Data Annex'!$K$1:$AN$1,0)),\"\")","v":2.0601242799999999E-2},{"$f":"IFERROR(INDEX('Data Annex'!$K$1:$AN$4997,MATCH(P$1&\"|\"&$B37,'Data Annex'!$K$1:$K$4997,0),MATCH(P$2,'Data Annex'!$K$1:$AN$1,0)),\"\")","v":1.9319076800000001E-2},{"$f":"IFERROR(INDEX('Data Annex'!$K$1:$AN$4997,MATCH(Q$1&\"|\"&$B37,'Data Annex'!$K$1:$K$4997,0),MATCH(Q$2,'Data Annex'!$K$1:$AN$1,0)),\"\")","v":0.1266632368},{"$f":"IFERROR(INDEX('Data Annex'!$K$1:$AN$4997,MATCH(R$1&\"|\"&$B37,'Data Annex'!$K$1:$K$4997,0),MATCH(R$2,'Data Annex'!$K$1:$AN$1,0)),\"\")","v":0.11837950379999999},{"$f":"IFERROR(INDEX('Data Annex'!$K$1:$AN$4997,MATCH(S$1&\"|\"&$B37,'Data Annex'!$K$1:$K$4997,0),MATCH(S$2,'Data Annex'!$K$1:$AN$1,0)),\"\")","v":0.1111059073},{"$f":"IFERROR(INDEX('Data Annex'!$K$1:$AN$4997,MATCH(T$1&\"|\"&$B37,'Data Annex'!$K$1:$K$4997,0),MATCH(T$2,'Data Annex'!$K$1:$AN$1,0)),\"\")","v":0.10106880309999999},{"$f":"IFERROR(INDEX('Data Annex'!$K$1:$AN$4997,MATCH(U$1&\"|\"&$B37,'Data Annex'!$K$1:$K$4997,0),MATCH(U$2,'Data Annex'!$K$1:$AN$1,0)),\"\")","v":0.13080608520000001},{"$f":"IFERROR(INDEX('Data Annex'!$K$1:$AN$4997,MATCH(V$1&\"|\"&$B37,'Data Annex'!$K$1:$K$4997,0),MATCH(V$2,'Data Annex'!$K$1:$AN$1,0)),\"\")","v":0.1224408869},{"$f":"IFERROR(INDEX('Data Annex'!$K$1:$AN$4997,MATCH(W$1&\"|\"&$B37,'Data Annex'!$K$1:$K$4997,0),MATCH(W$2,'Data Annex'!$K$1:$AN$1,0)),\"\")","v":0.114480581},{"$f":"IFERROR(INDEX('Data Annex'!$K$1:$AN$4997,MATCH(X$1&\"|\"&$B37,'Data Annex'!$K$1:$K$4997,0),MATCH(X$2,'Data Annex'!$K$1:$AN$1,0)),\"\")","v":0.10581137290000001},{"$f":"IFERROR(INDEX('Data Annex'!$K$1:$AN$4997,MATCH(Y$1&\"|\"&$B37,'Data Annex'!$K$1:$K$4997,0),MATCH(Y$2,'Data Annex'!$K$1:$AN$1,0)),\"\")","v":0.18497087370000001},{"$f":"IFERROR(INDEX('Data Annex'!$K$1:$AN$4997,MATCH(Z$1&\"|\"&$B37,'Data Annex'!$K$1:$K$4997,0),MATCH(Z$2,'Data Annex'!$K$1:$AN$1,0)),\"\")","v":0.17554563000000001},{"$f":"IFERROR(INDEX('Data Annex'!$K$1:$AN$4997,MATCH(AA$1&\"|\"&$B37,'Data Annex'!$K$1:$K$4997,0),MATCH(AA$2,'Data Annex'!$K$1:$AN$1,0)),\"\")","v":0.17027674549999999},{"$f":"IFERROR(INDEX('Data Annex'!$K$1:$AN$4997,MATCH(AB$1&\"|\"&$B37,'Data Annex'!$K$1:$K$4997,0),MATCH(AB$2,'Data Annex'!$K$1:$AN$1,0)),\"\")","v":0.1581580038}]
[27,"RO",null,"RO",{"$f":"IFERROR(INDEX('Data Annex'!$K$1:$AN$4997,MATCH(E$1&\"|\"&$B38,'Data Annex'!$K$1:$K$4997,0),MATCH(E$2,'Data Annex'!$K$1:$AN$1,0)),\"\")","v":3.8799386499999998E-2},{"$f":"IFERROR(INDEX('Data Annex'!$K$1:$AN$4997,MATCH(F$1&\"|\"&$B38,'Data Annex'!$K$1:$K$4997,0),MATCH(F$2,'Data Annex'!$K$1:$AN$1,0)),\"\")","v":4.2215881199999999E-2},{"$f":"IFERROR(INDEX('Data Annex'!$K$1:$AN$4997,MATCH(G$1&\"|\"&$B38,'Data Annex'!$K$1:$K$4997,0),MATCH(G$2,'Data Annex'!$K$1:$AN$1,0)),\"\")","v":3.8826786000000002E-2},{"$f":"IFERROR(INDEX('Data Annex'!$K$1:$AN$4997,MATCH(H$1&\"|\"&$B38,'Data Annex'!$K$1:$K$4997,0),MATCH(H$2,'Data Annex'!$K$1:$AN$1,0)),\"\")","v":3.7438805200000001E-2},{"$f":"IFERROR(INDEX('Data Annex'!$K$1:$AN$4997,MATCH(I$1&\"|\"&$B38,'Data Annex'!$K$1:$K$4997,0),MATCH(I$2,'Data Annex'!$K$1:$AN$1,0)),\"\")","v":4.0260281500000002E-2},{"$f":"IFERROR(INDEX('Data Annex'!$K$1:$AN$4997,MATCH(J$1&\"|\"&$B38,'Data Annex'!$K$1:$K$4997,0),MATCH(J$2,'Data Annex'!$K$1:$AN$1,0)),\"\")","v":4.2292706300000003E-2},{"$f":"IFERROR(INDEX('Data Annex'!$K$1:$AN$4997,MATCH(K$1&\"|\"&$B38,'Data Annex'!$K$1:$K$4997,0),MATCH(K$2,'Data Annex'!$K$1:$AN$1,0)),\"\")","v":3.9891487500000003E-2},{"$f":"IFERROR(INDEX('Data Annex'!$K$1:$AN$4997,MATCH(L$1&\"|\"&$B38,'Data Annex'!$K$1:$K$4997,0),MATCH(L$2,'Data Annex'!$K$1:$AN$1,0)),\"\")","v":4.0685496299999999E-2},{"$f":"IFERROR(INDEX('Data Annex'!$K$1:$AN$4997,MATCH(M$1&\"|\"&$B38,'Data Annex'!$K$1:$K$4997,0),MATCH(M$2,'Data Annex'!$K$1:$AN$1,0)),\"\")","v":3.0069587599999999E-2},{"$f":"IFERROR(INDEX('Data Annex'!$K$1:$AN$4997,MATCH(N$1&\"|\"&$B38,'Data Annex'!$K$1:$K$4997,0),MATCH(N$2,'Data Annex'!$K$1:$AN$1,0)),\"\")","v":2.9845302600000002E-2},{"$f":"IFERROR(INDEX('Data Annex'!$K$1:$AN$4997,MATCH(O$1&\"|\"&$B38,'Data Annex'!$K$1:$K$4997,0),MATCH(O$2,'Data Annex'!$K$1:$AN$1,0)),\"\")","v":2.6732596099999999E-2},{"$f":"IFERROR(INDEX('Data Annex'!$K$1:$AN$4997,MATCH(P$1&\"|\"&$B38,'Data Annex'!$K$1:$K$4997,0),MATCH(P$2,'Data Annex'!$K$1:$AN$1,0)),\"\")","v":2.63429487E-2},{"$f":"IFERROR(INDEX('Data Annex'!$K$1:$AN$4997,MATCH(Q$1&\"|\"&$B38,'Data Annex'!$K$1:$K$4997,0),MATCH(Q$2,'Data Annex'!$K$1:$AN$1,0)),\"\")","v":7.4941131800000005E-2},{"$f":"IFERROR(INDEX('Data Annex'!$K$1:$AN$4997,MATCH(R$1&\"|\"&$B38,'Data Annex'!$K$1:$K$4997,0),MATCH(R$2,'Data Annex'!$K$1:$AN$1,0)),\"\")","v":8.4935749599999999E-2},{"$f":"IFERROR(INDEX('Data Annex'!$K$1:$AN$4997,MATCH(S$1&\"|\"&$B38,'Data Annex'!$K$1:$K$4997,0),MATCH(S$2,'Data Annex'!$K$1:$AN$1,0)),\"\")","v":7.4197001200000001E-2},{"$f":"IFERROR(INDEX('Data Annex'!$K$1:$AN$4997,MATCH(T$1&\"|\"&$B38,'Data Annex'!$K$1:$K$4997,0),MATCH(T$2,'Data Annex'!$K$1:$AN$1,0)),\"\")","v":7.27137333E-2},{"$f":"IFERROR(INDEX('Data Annex'!$K$1:$AN$4997,MATCH(U$1&\"|\"&$B38,'Data Annex'!$K$1:$K$4997,0),MATCH(U$2,'Data Annex'!$K$1:$AN$1,0)),\"\")","v":7.0997711500000005E-2},{"$f":"IFERROR(INDEX('Data Annex'!$K$1:$AN$4997,MATCH(V$1&\"|\"&$B38,'Data Annex'!$K$1:$K$4997,0),MATCH(V$2,'Data Annex'!$K$1:$AN$1,0)),\"\")","v":7.8653233500000003E-2},{"$f":"IFERROR(INDEX('Data Annex'!$K$1:$AN$4997,MATCH(W$1&\"|\"&$B38,'Data Annex'!$K$1:$K$4997,0),MATCH(W$2,'Data Annex'!$K$1:$AN$1,0)),\"\")","v":6.6504932500000002E-2},{"$f":"IFERROR(INDEX('Data Annex'!$K$1:$AN$4997,MATCH(X$1&\"|\"&$B38,'Data Annex'!$K$1:$K$4997,0),MATCH(X$2,'Data Annex'!$K$1:$AN$1,0)),\"\")","v":7.15028568E-2},{"$f":"IFERROR(INDEX('Data Annex'!$K$1:$AN$4997,MATCH(Y$1&\"|\"&$B38,'Data Annex'!$K$1:$K$4997,0),MATCH(Y$2,'Data Annex'!$K$1:$AN$1,0)),\"\")","v":0.1058487674},{"$f":"IFERROR(INDEX('Data Annex'!$K$1:$AN$4997,MATCH(Z$1&\"|\"&$B38,'Data Annex'!$K$1:$K$4997,0),MATCH(Z$2,'Data Annex'!$K$1:$AN$1,0)),\"\")","v":0.1232547462},{"$f":"IFERROR(INDEX('Data Annex'!$K$1:$AN$4997,MATCH(AA$1&\"|\"&$B38,'Data Annex'!$K$1:$K$4997,0),MATCH(AA$2,'Data Annex'!$K$1:$AN$1,0)),\"\")","v":0.1159670018},{"$f":"IFERROR(INDEX('Data Annex'!$K$1:$AN$4997,MATCH(AB$1&\"|\"&$B38,'Data Annex'!$K$1:$K$4997,0),MATCH(AB$2,'Data Annex'!$K$1:$AN$1,0)),\"\")","v":0.104224385}]
[28,"SE",null,"SE",{"$f":"IFERROR(INDEX('Data Annex'!$K$1:$AN$4997,MATCH(E$1&\"|\"&$B39,'Data Annex'!$K$1:$K$4997,0),MATCH(E$2,'Data Annex'!$K$1:$AN$1,0)),\"\")","v":4.8405378999999997E-3},{"$f":"IFERROR(INDEX('Data Annex'!$K$1:$AN$4997,MATCH(F$1&\"|\"&$B39,'Data Annex'!$K$1:$K$4997,0),MATCH(F$2,'Data Annex'!$K$1:$AN$1,0)),\"\")","v":4.9632106999999998E-3},{"$f":"IFERROR(INDEX('Data Annex'!$K$1:$AN$4997,MATCH(G$1&\"|\"&$B39,'Data Annex'!$K$1:$K$4997,0),MATCH(G$2,'Data Annex'!$K$1:$AN$1,0)),\"\")","v":4.9033093000000003E-3},{"$f":"IFERROR(INDEX('Data Annex'!$K$1:$AN$4997,MATCH(H$1&\"|\"&$B39,'Data Annex'!$K$1:$K$4997,0),MATCH(H$2,'Data Annex'!$K$1:$AN$1,0)),\"\")","v":4.6413349000000003E-3},{"$f":"IFERROR(INDEX('Data Annex'!$K$1:$AN$4997,MATCH(I$1&\"|\"&$B39,'Data Annex'!$K$1:$K$4997,0),MATCH(I$2,'Data Annex'!$K$1:$AN$1,0)),\"\")","v":3.1177931999999998E-3},{"$f":"IFERROR(INDEX('Data Annex'!$K$1:$AN$4997,MATCH(J$1&\"|\"&$B39,'Data Annex'!$K$1:$K$4997,0),MATCH(J$2,'Data Annex'!$K$1:$AN$1,0)),\"\")","v":3.0153527E-3},{"$f":"IFERROR(INDEX('Data Annex'!$K$1:$AN$4997,MATCH(K$1&\"|\"&$B39,'Data Annex'!$K$1:$K$4997,0),MATCH(K$2,'Data Annex'!$K$1:$AN$1,0)),\"\")","v":2.8874896999999998E-3},{"$f":"IFERROR(INDEX('Data Annex'!$K$1:$AN$4997,MATCH(L$1&\"|\"&$B39,'Data Annex'!$K$1:$K$4997,0),MATCH(L$2,'Data Annex'!$K$1:$AN$1,0)),\"\")","v":2.8711956999999998E-3},{"$f":"IFERROR(INDEX('Data Annex'!$K$1:$AN$4997,MATCH(M$1&\"|\"&$B39,'Data Annex'!$K$1:$K$4997,0),MATCH(M$2,'Data Annex'!$K$1:$AN$1,0)),\"\")","v":1.7012914000000001E-3},{"$f":"IFERROR(INDEX('Data Annex'!$K$1:$AN$4997,MATCH(N$1&\"|\"&$B39,'Data Annex'!$K$1:$K$4997,0),MATCH(N$2,'Data Annex'!$K$1:$AN$1,0)),\"\")","v":1.6432496E-3},{"$f":"IFERROR(INDEX('Data Annex'!$K$1:$AN$4997,MATCH(O$1&\"|\"&$B39,'Data Annex'!$K$1:$K$4997,0),MATCH(O$2,'Data Annex'!$K$1:$AN$1,0)),\"\")","v":1.5951534999999999E-3},{"$f":"IFERROR(INDEX('Data Annex'!$K$1:$AN$4997,MATCH(P$1&\"|\"&$B39,'Data Annex'!$K$1:$K$4997,0),MATCH(P$2,'Data Annex'!$K$1:$AN$1,0)),\"\")","v":1.5207494E-3},{"$f":"IFERROR(INDEX('Data Annex'!$K$1:$AN$4997,MATCH(Q$1&\"|\"&$B39,'Data Annex'!$K$1:$K$4997,0),MATCH(Q$2,'Data Annex'!$K$1:$AN$1,0)),\"\")","v":9.8226152000000008E-3},{"$f":"IFERROR(INDEX('Data Annex'!$K$1:$AN$4997,MATCH(R$1&\"|\"&$B39,'Data Annex'!$K$1:$K$4997,0),MATCH(R$2,'Data Annex'!$K$1:$AN$1,0)),\"\")","v":1.07866005E-2},{"$f":"IFERROR(INDEX('Data Annex'!$K$1:$AN$4997,MATCH(S$1&\"|\"&$B39,'Data Annex'!$K$1:$K$4997,0),MATCH(S$2,'Data Annex'!$K$1:$AN$1,0)),\"\")","v":1.0626640600000001E-2},{"$f":"IFERROR(INDEX('Data Annex'!$K$1:$AN$4997,MATCH(T$1&\"|\"&$B39,'Data Annex'!$K$1:$K$4997,0),MATCH(T$2,'Data Annex'!$K$1:$AN$1,0)),\"\")","v":9.5588016999999994E-3},{"$f":"IFERROR(INDEX('Data Annex'!$K$1:$AN$4997,MATCH(U$1&\"|\"&$B39,'Data Annex'!$K$1:$K$4997,0),MATCH(U$2,'Data Annex'!$K$1:$AN$1,0)),\"\")","v":4.1122514999999997E-3},{"$f":"IFERROR(INDEX('Data Annex'!$K$1:$AN$4997,MATCH(V$1&\"|\"&$B39,'Data Annex'!$K$1:$K$4997,0),MATCH(V$2,'Data Annex'!$K$1:$AN$1,0)),\"\")","v":5.1403895000000002E-3},{"$f":"IFERROR(INDEX('Data Annex'!$K$1:$AN$4997,MATCH(W$1&\"|\"&$B39,'Data Annex'!$K$1:$K$4997,0),MATCH(W$2,'Data Annex'!$K$1:$AN$1,0)),\"\")","v":4.6771647E-3},{"$f":"IFERROR(INDEX('Data Annex'!$K$1:$AN$4997,MATCH(X$1&\"|\"&$B39,'Data Annex'!$K$1:$K$4997,0),MATCH(X$2,'Data Annex'!$K$1:$AN$1,0)),\"\")","v":4.0813708999999998E-3},{"$f":"IFERROR(INDEX('Data Annex'!$K$1:$AN$4997,MATCH(Y$1&\"|\"&$B39,'Data Annex'!$K$1:$K$4997,0),MATCH(Y$2,'Data Annex'!$K$1:$AN$1,0)),\"\")","v":2.7264999000000002E-3},{"$f":"IFERROR(INDEX('Data Annex'!$K$1:$AN$4997,MATCH(Z$1&\"|\"&$B39,'Data Annex'!$K$1:$K$4997,0),MATCH(Z$2,'Data Annex'!$K$1:$AN$1,0)),\"\")","v":3.4529171999999999E-3},{"$f":"IFERROR(INDEX('Data Annex'!$K$1:$AN$4997,MATCH(AA$1&\"|\"&$B39,'Data Annex'!$K$1:$K$4997,0),MATCH(AA$2,'Data Annex'!$K$1:$AN$1,0)),\"\")","v":3.9149611999999999E-3},{"$f":"IFERROR(INDEX('Data Annex'!$K$1:$AN$4997,MATCH(AB$1&\"|\"&$B39,'Data Annex'!$K$1:$K$4997,0),MATCH(AB$2,'Data Annex'!$K$1:$AN$1,0)),\"\")","v":3.3746970999999999E-3}]
[29,"SI",null,"SI",{"$f":"IFERROR(INDEX('Data Annex'!$K$1:$AN$4997,MATCH(E$1&\"|\"&$B40,'Data Annex'!$K$1:$K$4997,0),MATCH(E$2,'Data Annex'!$K$1:$AN$1,0)),\"\")","v":3.4707505E-2},{"$f":"IFERROR(INDEX('Data Annex'!$K$1:$AN$4997,MATCH(F$1&\"|\"&$B40,'Data Annex'!$K$1:$K$4997,0),MATCH(F$2,'Data Annex'!$K$1:$AN$1,0)),\"\")","v":3.2499893000000002E-2},{"$f":"IFERROR(INDEX('Data Annex'!$K$1:$AN$4997,MATCH(G$1&\"|\"&$B40,'Data Annex'!$K$1:$K$4997,0),MATCH(G$2,'Data Annex'!$K$1:$AN$1,0)),\"\")","v":3.1873920600000001E-2},{"$f":"IFERROR(INDEX('Data Annex'!$K$1:$AN$4997,MATCH(H$1&\"|\"&$B40,'Data Annex'!$K$1:$K$4997,0),MATCH(H$2,'Data Annex'!$K$1:$AN$1,0)),\"\")","v":3.1844542500000003E-2},{"$f":"IFERROR(INDEX('Data Annex'!$K$1:$AN$4997,MATCH(I$1&\"|\"&$B40,'Data Annex'!$K$1:$K$4997,0),MATCH(I$2,'Data Annex'!$K$1:$AN$1,0)),\"\")","v":2.4260556499999999E-2},{"$f":"IFERROR(INDEX('Data Annex'!$K$1:$AN$4997,MATCH(J$1&\"|\"&$B40,'Data Annex'!$K$1:$K$4997,0),MATCH(J$2,'Data Annex'!$K$1:$AN$1,0)),\"\")","v":2.3314044900000001E-2},{"$f":"IFERROR(INDEX('Data Annex'!$K$1:$AN$4997,MATCH(K$1&\"|\"&$B40,'Data Annex'!$K$1:$K$4997,0),MATCH(K$2,'Data Annex'!$K$1:$AN$1,0)),\"\")","v":2.39633938E-2},{"$f":"IFERROR(INDEX('Data Annex'!$K$1:$AN$4997,MATCH(L$1&\"|\"&$B40,'Data Annex'!$K$1:$K$4997,0),MATCH(L$2,'Data Annex'!$K$1:$AN$1,0)),\"\")","v":2.6910031800000001E-2},{"$f":"IFERROR(INDEX('Data Annex'!$K$1:$AN$4997,MATCH(M$1&\"|\"&$B40,'Data Annex'!$K$1:$K$4997,0),MATCH(M$2,'Data Annex'!$K$1:$AN$1,0)),\"\")","v":2.6427993E-2},{"$f":"IFERROR(INDEX('Data Annex'!$K$1:$AN$4997,MATCH(N$1&\"|\"&$B40,'Data Annex'!$K$1:$K$4997,0),MATCH(N$2,'Data Annex'!$K$1:$AN$1,0)),\"\")","v":2.3649969900000001E-2},{"$f":"IFERROR(INDEX('Data Annex'!$K$1:$AN$4997,MATCH(O$1&\"|\"&$B40,'Data Annex'!$K$1:$K$4997,0),MATCH(O$2,'Data Annex'!$K$1:$AN$1,0)),\"\")","v":2.3886675E-2},{"$f":"IFERROR(INDEX('Data Annex'!$K$1:$AN$4997,MATCH(P$1&\"|\"&$B40,'Data Annex'!$K$1:$K$4997,0),MATCH(P$2,'Data Annex'!$K$1:$AN$1,0)),\"\")","v":2.44751382E-2},{"$f":"IFERROR(INDEX('Data Annex'!$K$1:$AN$4997,MATCH(Q$1&\"|\"&$B40,'Data Annex'!$K$1:$K$4997,0),MATCH(Q$2,'Data Annex'!$K$1:$AN$1,0)),\"\")","v":5.6412471300000003E-2},{"$f":"IFERROR(INDEX('Data Annex'!$K$1:$AN$4997,MATCH(R$1&\"|\"&$B40,'Data Annex'!$K$1:$K$4997,0),MATCH(R$2,'Data Annex'!$K$1:$AN$1,0)),\"\")","v":5.9369382200000001E-2},{"$f":"IFERROR(INDEX('Data Annex'!$K$1:$AN$4997,MATCH(S$1&\"|\"&$B40,'Data Annex'!$K$1:$K$4997,0),MATCH(S$2,'Data Annex'!$K$1:$AN$1,0)),\"\")","v":5.59884706E-2},{"$f":"IFERROR(INDEX('Data Annex'!$K$1:$AN$4997,MATCH(T$1&\"|\"&$B40,'Data Annex'!$K$1:$K$4997,0),MATCH(T$2,'Data Annex'!$K$1:$AN$1,0)),\"\")","v":5.7449647E-2},{"$f":"IFERROR(INDEX('Data Annex'!$K$1:$AN$4997,MATCH(U$1&\"|\"&$B40,'Data Annex'!$K$1:$K$4997,0),MATCH(U$2,'Data Annex'!$K$1:$AN$1,0)),\"\")","v":8.4521902100000004E-2},{"$f":"IFERROR(INDEX('Data Annex'!$K$1:$AN$4997,MATCH(V$1&\"|\"&$B40,'Data Annex'!$K$1:$K$4997,0),MATCH(V$2,'Data Annex'!$K$1:$AN$1,0)),\"\")","v":8.6365372400000001E-2},{"$f":"IFERROR(INDEX('Data Annex'!$K$1:$AN$4997,MATCH(W$1&\"|\"&$B40,'Data Annex'!$K$1:$K$4997,0),MATCH(W$2,'Data Annex'!$K$1:$AN$1,0)),\"\")","v":8.1785157400000003E-2},{"$f":"IFERROR(INDEX('Data Annex'!$K$1:$AN$4997,MATCH(X$1&\"|\"&$B40,'Data Annex'!$K$1:$K$4997,0),MATCH(X$2,'Data Annex'!$K$1:$AN$1,0)),\"\")","v":8.2677076899999993E-2},{"$f":"IFERROR(INDEX('Data Annex'!$K$1:$AN$4997,MATCH(Y$1&\"|\"&$B40,'Data Annex'!$K$1:$K$4997,0),MATCH(Y$2,'Data Annex'!$K$1:$AN$1,0)),\"\")","v":9.1917124000000003E-2},{"$f":"IFERROR(INDEX('Data Annex'!$K$1:$AN$4997,MATCH(Z$1&\"|\"&$B40,'Data Annex'!$K$1:$K$4997,0),MATCH(Z$2,'Data Annex'!$K$1:$AN$1,0)),\"\")","v":9.1163980699999994E-2},{"$f":"IFERROR(INDEX('Data Annex'!$K$1:$AN$4997,MATCH(AA$1&\"|\"&$B40,'Data Annex'!$K$1:$K$4997,0),MATCH(AA$2,'Data Annex'!$K$1:$AN$1,0)),\"\")","v":8.3478101900000004E-2},{"$f":"IFERROR(INDEX('Data Annex'!$K$1:$AN$4997,MATCH(AB$1&\"|\"&$B40,'Data Annex'!$K$1:$K$4997,0),MATCH(AB$2,'Data Annex'!$K$1:$AN$1,0)),\"\")","v":9.30860357E-2}]
[30,"SK",null,"SK",{"$f":"IFERROR(INDEX('Data Annex'!$K$1:$AN$4997,MATCH(E$1&\"|\"&$B41,'Data Annex'!$K$1:$K$4997,0),MATCH(E$2,'Data Annex'!$K$1:$AN$1,0)),\"\")","v":2.5557189500000001E-2},{"$f":"IFERROR(INDEX('Data Annex'!$K$1:$AN$4997,MATCH(F$1&\"|\"&$B41,'Data Annex'!$K$1:$K$4997,0),MATCH(F$2,'Data Annex'!$K$1:$AN$1,0)),\"\")","v":2.4888298E-2},{"$f":"IFERROR(INDEX('Data Annex'!$K$1:$AN$4997,MATCH(G$1&\"|\"&$B41,'Data Annex'!$K$1:$K$4997,0),MATCH(G$2,'Data Annex'!$K$1:$AN$1,0)),\"\")","v":2.30874384E-2},{"$f":"IFERROR(INDEX('Data Annex'!$K$1:$AN$4997,MATCH(H$1&\"|\"&$B41,'Data Annex'!$K$1:$K$4997,0),MATCH(H$2,'Data Annex'!$K$1:$AN$1,0)),\"\")","v":2.15051297E-2},{"$f":"IFERROR(INDEX('Data Annex'!$K$1:$AN$4997,MATCH(I$1&\"|\"&$B41,'Data Annex'!$K$1:$K$4997,0),MATCH(I$2,'Data Annex'!$K$1:$AN$1,0)),\"\")","v":2.7997593300000002E-2},{"$f":"IFERROR(INDEX('Data Annex'!$K$1:$AN$4997,MATCH(J$1&\"|\"&$B41,'Data Annex'!$K$1:$K$4997,0),MATCH(J$2,'Data Annex'!$K$1:$AN$1,0)),\"\")","v":2.8620191499999999E-2},{"$f":"IFERROR(INDEX('Data Annex'!$K$1:$AN$4997,MATCH(K$1&\"|\"&$B41,'Data Annex'!$K$1:$K$4997,0),MATCH(K$2,'Data Annex'!$K$1:$AN$1,0)),\"\")","v":2.7195561E-2},{"$f":"IFERROR(INDEX('Data Annex'!$K$1:$AN$4997,MATCH(L$1&\"|\"&$B41,'Data Annex'!$K$1:$K$4997,0),MATCH(L$2,'Data Annex'!$K$1:$AN$1,0)),\"\")","v":2.549179E-2},{"$f":"IFERROR(INDEX('Data Annex'!$K$1:$AN$4997,MATCH(M$1&\"|\"&$B41,'Data Annex'!$K$1:$K$4997,0),MATCH(M$2,'Data Annex'!$K$1:$AN$1,0)),\"\")","v":1.5883307499999999E-2},{"$f":"IFERROR(INDEX('Data Annex'!$K$1:$AN$4997,MATCH(N$1&\"|\"&$B41,'Data Annex'!$K$1:$K$4997,0),MATCH(N$2,'Data Annex'!$K$1:$AN$1,0)),\"\")","v":1.53468528E-2},{"$f":"IFERROR(INDEX('Data Annex'!$K$1:$AN$4997,MATCH(O$1&\"|\"&$B41,'Data Annex'!$K$1:$K$4997,0),MATCH(O$2,'Data Annex'!$K$1:$AN$1,0)),\"\")","v":1.4531868099999999E-2},{"$f":"IFERROR(INDEX('Data Annex'!$K$1:$AN$4997,MATCH(P$1&\"|\"&$B41,'Data Annex'!$K$1:$K$4997,0),MATCH(P$2,'Data Annex'!$K$1:$AN$1,0)),\"\")","v":1.4474347699999999E-2},{"$f":"IFERROR(INDEX('Data Annex'!$K$1:$AN$4997,MATCH(Q$1&\"|\"&$B41,'Data Annex'!$K$1:$K$4997,0),MATCH(Q$2,'Data Annex'!$K$1:$AN$1,0)),\"\")","v":2.5870262000000002E-2},{"$f":"IFERROR(INDEX('Data Annex'!$K$1:$AN$4997,MATCH(R$1&\"|\"&$B41,'Data Annex'!$K$1:$K$4997,0),MATCH(R$2,'Data Annex'!$K$1:$AN$1,0)),\"\")","v":2.3649841800000002E-2},{"$f":"IFERROR(INDEX('Data Annex'!$K$1:$AN$4997,MATCH(S$1&\"|\"&$B41,'Data Annex'!$K$1:$K$4997,0),MATCH(S$2,'Data Annex'!$K$1:$AN$1,0)),\"\")","v":2.2145274E-2},{"$f":"IFERROR(INDEX('Data Annex'!$K$1:$AN$4997,MATCH(T$1&\"|\"&$B41,'Data Annex'!$K$1:$K$4997,0),MATCH(T$2,'Data Annex'!$K$1:$AN$1,0)),\"\")","v":2.2426218500000001E-2},{"$f":"IFERROR(INDEX('Data Annex'!$K$1:$AN$4997,MATCH(U$1&\"|\"&$B41,'Data Annex'!$K$1:$K$4997,0),MATCH(U$2,'Data Annex'!$K$1:$AN$1,0)),\"\")","v":4.6598911200000002E-2},{"$f":"IFERROR(INDEX('Data Annex'!$K$1:$AN$4997,MATCH(V$1&\"|\"&$B41,'Data Annex'!$K$1:$K$4997,0),MATCH(V$2,'Data Annex'!$K$1:$AN$1,0)),\"\")","v":4.7022359399999998E-2},{"$f":"IFERROR(INDEX('Data Annex'!$K$1:$AN$4997,MATCH(W$1&\"|\"&$B41,'Data Annex'!$K$1:$K$4997,0),MATCH(W$2,'Data Annex'!$K$1:$AN$1,0)),\"\")","v":4.5815673600000002E-2},{"$f":"IFERROR(INDEX('Data Annex'!$K$1:$AN$4997,MATCH(X$1&\"|\"&$B41,'Data Annex'!$K$1:$K$4997,0),MATCH(X$2,'Data Annex'!$K$1:$AN$1,0)),\"\")","v":4.3444011499999997E-2},{"$f":"IFERROR(INDEX('Data Annex'!$K$1:$AN$4997,MATCH(Y$1&\"|\"&$B41,'Data Annex'!$K$1:$K$4997,0),MATCH(Y$2,'Data Annex'!$K$1:$AN$1,0)),\"\")","v":2.9768433699999999E-2},{"$f":"IFERROR(INDEX('Data Annex'!$K$1:$AN$4997,MATCH(Z$1&\"|\"&$B41,'Data Annex'!$K$1:$K$4997,0),MATCH(Z$2,'Data Annex'!$K$1:$AN$1,0)),\"\")","v":2.8200352800000002E-2},{"$f":"IFERROR(INDEX('Data Annex'!$K$1:$AN$4997,MATCH(AA$1&\"|\"&$B41,'Data Annex'!$K$1:$K$4997,0),MATCH(AA$2,'Data Annex'!$K$1:$AN$1,0)),\"\")","v":2.6663901399999999E-2},{"$f":"IFERROR(INDEX('Data Annex'!$K$1:$AN$4997,MATCH(AB$1&\"|\"&$B41,'Data Annex'!$K$1:$K$4997,0),MATCH(AB$2,'Data Annex'!$K$1:$AN$1,0)),\"\")","v":3.0169721100000001E-2}]
[99,"EU",null,"EU/EEA",{"$f":"IFERROR(INDEX('Data Annex'!$K$1:$AN$4997,MATCH(E$1&\"|\"&$B42,'Data Annex'!$K$1:$K$4997,0),MATCH(E$2,'Data Annex'!$K$1:$AN$1,0)),\"\")","v":2.9654452500000001E-2},{"$f":"IFERROR(INDEX('Data Annex'!$K$1:$AN$4997,MATCH(F$1&\"|\"&$B42,'Data Annex'!$K$1:$K$4997,0),MATCH(F$2,'Data Annex'!$K$1:$AN$1,0)),\"\")","v":2.8682688599999999E-2},{"$f":"IFERROR(INDEX('Data Annex'!$K$1:$AN$4997,MATCH(G$1&\"|\"&$B42,'Data Annex'!$K$1:$K$4997,0),MATCH(G$2,'Data Annex'!$K$1:$AN$1,0)),\"\")","v":2.7562481999999999E-2},{"$f":"IFERROR(INDEX('Data Annex'!$K$1:$AN$4997,MATCH(H$1&\"|\"&$B42,'Data Annex'!$K$1:$K$4997,0),MATCH(H$2,'Data Annex'!$K$1:$AN$1,0)),\"\")","v":2.57369639E-2},{"$f":"IFERROR(INDEX('Data Annex'!$K$1:$AN$4997,MATCH(I$1&\"|\"&$B42,'Data Annex'!$K$1:$K$4997,0),MATCH(I$2,'Data Annex'!$K$1:$AN$1,0)),\"\")","v":3.3113261400000003E-2},{"$f":"IFERROR(INDEX('Data Annex'!$K$1:$AN$4997,MATCH(J$1&\"|\"&$B42,'Data Annex'!$K$1:$K$4997,0),MATCH(J$2,'Data Annex'!$K$1:$AN$1,0)),\"\")","v":3.2780582199999998E-2},{"$f":"IFERROR(INDEX('Data Annex'!$K$1:$AN$4997,MATCH(K$1&\"|\"&$B42,'Data Annex'!$K$1:$K$4997,0),MATCH(K$2,'Data Annex'!$K$1:$AN$1,0)),\"\")","v":3.1264163400000003E-2},{"$f":"IFERROR(INDEX('Data Annex'!$K$1:$AN$4997,MATCH(L$1&\"|\"&$B42,'Data Annex'!$K$1:$K$4997,0),MATCH(L$2,'Data Annex'!$K$1:$AN$1,0)),\"\")","v":2.87325797E-2},{"$f":"IFERROR(INDEX('Data Annex'!$K$1:$AN$4997,MATCH(M$1&\"|\"&$B42,'Data Annex'!$K$1:$K$4997,0),MATCH(M$2,'Data Annex'!$K$1:$AN$1,0)),\"\")","v":2.80414784E-2},{"$f":"IFERROR(INDEX('Data Annex'!$K$1:$AN$4997,MATCH(N$1&\"|\"&$B42,'Data Annex'!$K$1:$K$4997,0),MATCH(N$2,'Data Annex'!$K$1:$AN$1,0)),\"\")","v":2.7432405300000001E-2},{"$f":"IFERROR(INDEX('Data Annex'!$K$1:$AN$4997,MATCH(O$1&\"|\"&$B42,'Data Annex'!$K$1:$K$4997,0),MATCH(O$2,'Data Annex'!$K$1:$AN$1,0)),\"\")","v":2.62418362E-2},{"$f":"IFERROR(INDEX('Data Annex'!$K$1:$AN$4997,MATCH(P$1&\"|\"&$B42,'Data Annex'!$K$1:$K$4997,0),MATCH(P$2,'Data Annex'!$K$1:$AN$1,0)),\"\")","v":2.31993453E-2},{"$f":"IFERROR(INDEX('Data Annex'!$K$1:$AN$4997,MATCH(Q$1&\"|\"&$B42,'Data Annex'!$K$1:$K$4997,0),MATCH(Q$2,'Data Annex'!$K$1:$AN$1,0)),\"\")","v":5.1377211399999997E-2},{"$f":"IFERROR(INDEX('Data Annex'!$K$1:$AN$4997,MATCH(R$1&\"|\"&$B42,'Data Annex'!$K$1:$K$4997,0),MATCH(R$2,'Data Annex'!$K$1:$AN$1,0)),\"\")","v":5.1455682400000001E-2},{"$f":"IFERROR(INDEX('Data Annex'!$K$1:$AN$4997,MATCH(S$1&\"|\"&$B42,'Data Annex'!$K$1:$K$4997,0),MATCH(S$2,'Data Annex'!$K$1:$AN$1,0)),\"\")","v":5.1049685499999997E-2},{"$f":"IFERROR(INDEX('Data Annex'!$K$1:$AN$4997,MATCH(T$1&\"|\"&$B42,'Data Annex'!$K$1:$K$4997,0),MATCH(T$2,'Data Annex'!$K$1:$AN$1,0)),\"\")","v":4.7791400599999999E-2},{"$f":"IFERROR(INDEX('Data Annex'!$K$1:$AN$4997,MATCH(U$1&\"|\"&$B42,'Data Annex'!$K$1:$K$4997,0),MATCH(U$2,'Data Annex'!$K$1:$AN$1,0)),\"\")","v":7.6896921300000004E-2},{"$f":"IFERROR(INDEX('Data Annex'!$K$1:$AN$4997,MATCH(V$1&\"|\"&$B42,'Data Annex'!$K$1:$K$4997,0),MATCH(V$2,'Data Annex'!$K$1:$AN$1,0)),\"\")","v":7.2219703900000001E-2},{"$f":"IFERROR(INDEX('Data Annex'!$K$1:$AN$4997,MATCH(W$1&\"|\"&$B42,'Data Annex'!$K$1:$K$4997,0),MATCH(W$2,'Data Annex'!$K$1:$AN$1,0)),\"\")","v":6.7261264599999995E-2},{"$f":"IFERROR(INDEX('Data Annex'!$K$1:$AN$4997,MATCH(X$1&\"|\"&$B42,'Data Annex'!$K$1:$K$4997,0),MATCH(X$2,'Data Annex'!$K$1:$AN$1,0)),\"\")","v":6.2028686399999998E-2},{"$f":"IFERROR(INDEX('Data Annex'!$K$1:$AN$4997,MATCH(Y$1&\"|\"&$B42,'Data Annex'!$K$1:$K$4997,0),MATCH(Y$2,'Data Annex'!$K$1:$AN$1,0)),\"\")","v":7.5524578499999995E-2},{"$f":"IFERROR(INDEX('Data Annex'!$K$1:$AN$4997,MATCH(Z$1&\"|\"&$B42,'Data Annex'!$K$1:$K$4997,0),MATCH(Z$2,'Data Annex'!$K$1:$AN$1,0)),\"\")","v":7.3452449099999997E-2},{"$f":"IFERROR(INDEX('Data Annex'!$K$1:$AN$4997,MATCH(AA$1&\"|\"&$B42,'Data Annex'!$K$1:$K$4997,0),MATCH(AA$2,'Data Annex'!$K$1:$AN$1,0)),\"\")","v":7.2844395399999998E-2},{"$f":"IFERROR(INDEX('Data Annex'!$K$1:$AN$4997,MATCH(AB$1&\"|\"&$B42,'Data Annex'!$K$1:$K$4997,0),MATCH(AB$2,'Data Annex'!$K$1:$AN$1,0)),\"\")","v":6.7183669799999998E-2}]
[12,"GB",null,"GB",{"$f":"IFERROR(INDEX('Data Annex'!$K$1:$AN$4997,MATCH(E$1&\"|\"&$B43,'Data Annex'!$K$1:$K$4997,0),MATCH(E$2,'Data Annex'!$K$1:$AN$1,0)),\"\")","v":1.20165229E-2},{"$f":"IFERROR(INDEX('Data Annex'!$K$1:$AN$4997,MATCH(F$1&\"|\"&$B43,'Data Annex'!$K$1:$K$4997,0),MATCH(F$2,'Data Annex'!$K$1:$AN$1,0)),\"\")","v":1.3186425099999999E-2},{"$f":"IFERROR(INDEX('Data Annex'!$K$1:$AN$4997,MATCH(G$1&\"|\"&$B43,'Data Annex'!$K$1:$K$4997,0),MATCH(G$2,'Data Annex'!$K$1:$AN$1,0)),\"\")","v":1.3034255099999999E-2},{"$f":"IFERROR(INDEX('Data Annex'!$K$1:$AN$4997,MATCH(H$1&\"|\"&$B43,'Data Annex'!$K$1:$K$4997,0),MATCH(H$2,'Data Annex'!$K$1:$AN$1,0)),\"\")","v":1.32205051E-2},{"$f":"IFERROR(INDEX('Data Annex'!$K$1:$AN$4997,MATCH(I$1&\"|\"&$B43,'Data Annex'!$K$1:$K$4997,0),MATCH(I$2,'Data Annex'!$K$1:$AN$1,0)),\"\")","v":1.7381349399999999E-2},{"$f":"IFERROR(INDEX('Data Annex'!$K$1:$AN$4997,MATCH(J$1&\"|\"&$B43,'Data Annex'!$K$1:$K$4997,0),MATCH(J$2,'Data Annex'!$K$1:$AN$1,0)),\"\")","v":1.7993279899999999E-2},{"$f":"IFERROR(INDEX('Data Annex'!$K$1:$AN$4997,MATCH(K$1&\"|\"&$B43,'Data Annex'!$K$1:$K$4997,0),MATCH(K$2,'Data Annex'!$K$1:$AN$1,0)),\"\")","v":1.72102929E-2},{"$f":"IFERROR(INDEX('Data Annex'!$K$1:$AN$4997,MATCH(L$1&\"|\"&$B43,'Data Annex'!$K$1:$K$4997,0),MATCH(L$2,'Data Annex'!$K$1:$AN$1,0)),\"\")","v":1.7136398099999998E-2},{"$f":"IFERROR(INDEX('Data Annex'!$K$1:$AN$4997,MATCH(M$1&\"|\"&$B43,'Data Annex'!$K$1:$K$4997,0),MATCH(M$2,'Data Annex'!$K$1:$AN$1,0)),\"\")","v":1.42664525E-2},{"$f":"IFERROR(INDEX('Data Annex'!$K$1:$AN$4997,MATCH(N$1&\"|\"&$B43,'Data Annex'!$K$1:$K$4997,0),MATCH(N$2,'Data Annex'!$K$1:$AN$1,0)),\"\")","v":1.45423041E-2},{"$f":"IFERROR(INDEX('Data Annex'!$K$1:$AN$4997,MATCH(O$1&\"|\"&$B43,'Data Annex'!$K$1:$K$4997,0),MATCH(O$2,'Data Annex'!$K$1:$AN$1,0)),\"\")","v":1.39421049E-2},{"$f":"IFERROR(INDEX('Data Annex'!$K$1:$AN$4997,MATCH(P$1&\"|\"&$B43,'Data Annex'!$K$1:$K$4997,0),MATCH(P$2,'Data Annex'!$K$1:$AN$1,0)),\"\")","v":1.3833218899999999E-2},{"$f":"IFERROR(INDEX('Data Annex'!$K$1:$AN$4997,MATCH(Q$1&\"|\"&$B43,'Data Annex'!$K$1:$K$4997,0),MATCH(Q$2,'Data Annex'!$K$1:$AN$1,0)),\"\")","v":2.6204624400000001E-2},{"$f":"IFERROR(INDEX('Data Annex'!$K$1:$AN$4997,MATCH(R$1&\"|\"&$B43,'Data Annex'!$K$1:$K$4997,0),MATCH(R$2,'Data Annex'!$K$1:$AN$1,0)),\"\")","v":3.0267022800000001E-2},{"$f":"IFERROR(INDEX('Data Annex'!$K$1:$AN$4997,MATCH(S$1&\"|\"&$B43,'Data Annex'!$K$1:$K$4997,0),MATCH(S$2,'Data Annex'!$K$1:$AN$1,0)),\"\")","v":3.2352784799999999E-2},{"$f":"IFERROR(INDEX('Data Annex'!$K$1:$AN$4997,MATCH(T$1&\"|\"&$B43,'Data Annex'!$K$1:$K$4997,0),MATCH(T$2,'Data Annex'!$K$1:$AN$1,0)),\"\")","v":3.3970636200000001E-2},{"$f":"IFERROR(INDEX('Data Annex'!$K$1:$AN$4997,MATCH(U$1&\"|\"&$B43,'Data Annex'!$K$1:$K$4997,0),MATCH(U$2,'Data Annex'!$K$1:$AN$1,0)),\"\")","v":3.9873047299999999E-2},{"$f":"IFERROR(INDEX('Data Annex'!$K$1:$AN$4997,MATCH(V$1&\"|\"&$B43,'Data Annex'!$K$1:$K$4997,0),MATCH(V$2,'Data Annex'!$K$1:$AN$1,0)),\"\")","v":3.68303226E-2},{"$f":"IFERROR(INDEX('Data Annex'!$K$1:$AN$4997,MATCH(W$1&\"|\"&$B43,'Data Annex'!$K$1:$K$4997,0),MATCH(W$2,'Data Annex'!$K$1:$AN$1,0)),\"\")","v":3.66790756E-2},{"$f":"IFERROR(INDEX('Data Annex'!$K$1:$AN$4997,MATCH(X$1&\"|\"&$B43,'Data Annex'!$K$1:$K$4997,0),MATCH(X$2,'Data Annex'!$K$1:$AN$1,0)),\"\")","v":3.5189639199999997E-2},{"$f":"IFERROR(INDEX('Data Annex'!$K$1:$AN$4997,MATCH(Y$1&\"|\"&$B43,'Data Annex'!$K$1:$K$4997,0),MATCH(Y$2,'Data Annex'!$K$1:$AN$1,0)),\"\")","v":2.5542654299999999E-2},{"$f":"IFERROR(INDEX('Data Annex'!$K$1:$AN$4997,MATCH(Z$1&\"|\"&$B43,'Data Annex'!$K$1:$K$4997,0),MATCH(Z$2,'Data Annex'!$K$1:$AN$1,0)),\"\")","v":3.0783120899999999E-2},{"$f":"IFERROR(INDEX('Data Annex'!$K$1:$AN$4997,MATCH(AA$1&\"|\"&$B43,'Data Annex'!$K$1:$K$4997,0),MATCH(AA$2,'Data Annex'!$K$1:$AN$1,0)),\"\")","v":3.38383274E-2},{"$f":"IFERROR(INDEX('Data Annex'!$K$1:$AN$4997,MATCH(AB$1&\"|\"&$B43,'Data Annex'!$K$1:$K$4997,0),MATCH(AB$2,'Data Annex'!$K$1:$AN$1,0)),\"\")","v":3.0700482000000001E-2}]
[]
[null,null,null,null,"T23_1","T23_1","T23_1","T23_1","T23_2","T23_2","T23_2","T23_2","T23_3","T23_3","T23_3","T23_3","T23_4","T23_4","T23_4","T23_4","T23_5","T23_5","T23_5","T23_5","T23_6","T23_6","T23_6","T23_6"]
[null,null,null,null,{"$f":"TEXT(E$51,\"YYYYMM\")+0","v":202003},{"$f":"TEXT(F$51,\"YYYYMM\")+0","v":202006},202009,202012,202003,202006,202009,202012,202003,202006,202009,202012,202003,202006,202009,202012,202003,202006,202009,202012,202003,202006,202009,202012]
[null,null,null,null,null,null,null,null,"of which: non-performing loans and advances at amortised cost: coverage ratio (2)"]
[]
[null,null,null,"%"]
[null,null,null,null,"Non-performing loans and advances: coverage ratio (1)",null,null,null,"HHs",null,null,null,"…of which mortgages",null,null,null,"NFCs",null,null,null,"…of which SMEs",null,null,null,"…of which CRE"]
[null,null,null,null,{"$f":"EOMONTH($A$3,-9)","v":"2020-03-31"},{"$f":"EOMONTH($A$3,-6)","v":"2020-06-30"},{"$f":"EOMONTH($A$3,-3)","v":"2020-09-30"},{"$f":"EOMONTH($A$3,0)","v":"2020-12-31"},{"$f":"EOMONTH($A$3,-9)","v":"2020-03-31"},{"$f":"EOMONTH($A$3,-6)","v":"2020-06-30"},{"$f":"EOMONTH($A$3,-3)","v":"2020-09-30"},{"$f":"EOMONTH($A$3,0)","v":"2020-12-31"},{"$f":"EOMONTH($A$3,-9)","v":"2020-03-31"},{"$f":"EOMONTH($A$3,-6)","v":"2020-06-30"},{"$f":"EOMONTH($A$3,-3)","v":"2020-09-30"},{"$f":"EOMONTH($A$3,0)","v":"2020-12-31"},{"$f":"EOMONTH($A$3,-9)","v":"2020-03-31"},{"$f":"EOMONTH($A$3,-6)","v":"2020-06-30"},{"$f":"EOMONTH($A$3,-3)","v":"2020-09-30"},{"$f":"EOMONTH($A$3,0)","v":"2020-12-31"},{"$f":"EOMONTH($A$3,-9)","v":"2020-03-31"},{"$f":"EOMONTH($A$3,-6)","v":"2020-06-30"},{"$f":"EOMONTH($A$3,-3)","v":"2020-09-30"},{"$f":"EOMONTH($A$3,0)","v":"2020-12-31"},{"$f":"EOMONTH($A$3,-9)","v":"2020-03-31"},{"$f":"EOMONTH($A$3,-6)","v":"2020-06-30"},{"$f":"EOMONTH($A$3,-3)","v":"2020-09-30"},{"$f":"EOMONTH($A$3,0)","v":"2020-12-31"}]
[1,"AT",null,"AT",{"$f":"IFERROR(INDEX('Data Annex'!$K$1:$AN$4997,MATCH(E$45&\"|\"&$B52,'Data Annex'!$K$1:$K$4997,0),MATCH(E$46,'Data Annex'!$K$1:$AN$1,0)),\"\")","v":0.52820336940000001},{"$f":"IFERROR(INDEX('Data Annex'!$K$1:$AN$4997,MATCH(F$45&\"|\"&$B52,'Data Annex'!$K$1:$K$4997,0),MATCH(F$46,'Data Annex'!$K$1:$AN$1,0)),\"\")","v":0.52740168379999997},{"$f":"IFERROR(INDEX('Data Annex'!$K$1:$AN$4997,MATCH(G$45&\"|\"&$B52,'Data Annex'!$K$1:$K$4997,0),MATCH(G$46,'Data Annex'!$K$1:$AN$1,0)),\"\")","v":0.53675114710000005},{"$f":"IFERROR(INDEX('Data Annex'!$K$1:$AN$4997,MATCH(H$45&\"|\"&$B52,'Data Annex'!$K$1:$K$4997,0),MATCH(H$46,'Data Annex'!$K$1:$AN$1,0)),\"\")","v":0.51453585609999997},{"$f":"IFERROR(INDEX('Data Annex'!$K$1:$AN$4997,MATCH(I$45&\"|\"&$B52,'Data Annex'!$K$1:$K$4997,0),MATCH(I$46,'Data Annex'!$K$1:$AN$1,0)),\"\")","v":0.5441632072},{"$f":"IFERROR(INDEX('Data Annex'!$K$1:$AN$4997,MATCH(J$45&\"|\"&$B52,'Data Annex'!$K$1:$K$4997,0),MATCH(J$46,'Data Annex'!$K$1:$AN$1,0)),\"\")","v":0.54818861080000003},{"$f":"IFERROR(INDEX('Data Annex'!$K$1:$AN$4997,MATCH(K$45&\"|\"&$B52,'Data Annex'!$K$1:$K$4997,0),MATCH(K$46,'Data Annex'!$K$1:$AN$1,0)),\"\")","v":0.55645292899999999},{"$f":"IFERROR(INDEX('Data Annex'!$K$1:$AN$4997,MATCH(L$45&\"|\"&$B52,'Data Annex'!$K$1:$K$4997,0),MATCH(L$46,'Data Annex'!$K$1:$AN$1,0)),\"\")","v":0.54662229259999995},{"$f":"IFERROR(INDEX('Data Annex'!$K$1:$AN$4997,MATCH(M$45&\"|\"&$B52,'Data Annex'!$K$1:$K$4997,0),MATCH(M$46,'Data Annex'!$K$1:$AN$1,0)),\"\")","v":0.34909764370000002},{"$f":"IFERROR(INDEX('Data Annex'!$K$1:$AN$4997,MATCH(N$45&\"|\"&$B52,'Data Annex'!$K$1:$K$4997,0),MATCH(N$46,'Data Annex'!$K$1:$AN$1,0)),\"\")","v":0.35457646320000002},{"$f":"IFERROR(INDEX('Data Annex'!$K$1:$AN$4997,MATCH(O$45&\"|\"&$B52,'Data Annex'!$K$1:$K$4997,0),MATCH(O$46,'Data Annex'!$K$1:$AN$1,0)),\"\")","v":0.3551195009},{"$f":"IFERROR(INDEX('Data Annex'!$K$1:$AN$4997,MATCH(P$45&\"|\"&$B52,'Data Annex'!$K$1:$K$4997,0),MATCH(P$46,'Data Annex'!$K$1:$AN$1,0)),\"\")","v":0.34473973200000002},{"$f":"IFERROR(INDEX('Data Annex'!$K$1:$AN$4997,MATCH(Q$45&\"|\"&$B52,'Data Annex'!$K$1:$K$4997,0),MATCH(Q$46,'Data Annex'!$K$1:$AN$1,0)),\"\")","v":0.53161279780000004},{"$f":"IFERROR(INDEX('Data Annex'!$K$1:$AN$4997,MATCH(R$45&\"|\"&$B52,'Data Annex'!$K$1:$K$4997,0),MATCH(R$46,'Data Annex'!$K$1:$AN$1,0)),\"\")","v":0.52412102800000004},{"$f":"IFERROR(INDEX('Data Annex'!$K$1:$AN$4997,MATCH(S$45&\"|\"&$B52,'Data Annex'!$K$1:$K$4997,0),MATCH(S$46,'Data Annex'!$K$1:$AN$1,0)),\"\")","v":0.5358548648},{"$f":"IFERROR(INDEX('Data Annex'!$K$1:$AN$4997,MATCH(T$45&\"|\"&$B52,'Data Annex'!$K$1:$K$4997,0),MATCH(T$46,'Data Annex'!$K$1:$AN$1,0)),\"\")","v":0.50631624710000001},{"$f":"IFERROR(INDEX('Data Annex'!$K$1:$AN$4997,MATCH(U$45&\"|\"&$B52,'Data Annex'!$K$1:$K$4997,0),MATCH(U$46,'Data Annex'!$K$1:$AN$1,0)),\"\")","v":0.53458633639999997},{"$f":"IFERROR(INDEX('Data Annex'!$K$1:$AN$4997,MATCH(V$45&\"|\"&$B52,'Data Annex'!$K$1:$K$4997,0),MATCH(V$46,'Data Annex'!$K$1:$AN$1,0)),\"\")","v":0.52357920459999996},{"$f":"IFERROR(INDEX('Data Annex'!$K$1:$AN$4997,MATCH(W$45&\"|\"&$B52,'Data Annex'!$K$1:$K$4997,0),MATCH(W$46,'Data Annex'!$K$1:$AN$1,0)),\"\")","v":0.53439407890000001},{"$f":"IFERROR(INDEX('Data Annex'!$K$1:$AN$4997,MATCH(X$45&\"|\"&$B52,'Data Annex'!$K$1:$K$4997,0),MATCH(X$46,'Data Annex'!$K$1:$AN$1,0)),\"\")","v":0.50812870099999996},{"$f":"IFERROR(INDEX('Data Annex'!$K$1:$AN$4997,MATCH(Y$45&\"|\"&$B52,'Data Annex'!$K$1:$K$4997,0),MATCH(Y$46,'Data Annex'!$K$1:$AN$1,0)),\"\")","v":0.44849582269999999},{"$f":"IFERROR(INDEX('Data Annex'!$K$1:$AN$4997,MATCH(Z$45&\"|\"&$B52,'Data Annex'!$K$1:$K$4997,0),MATCH(Z$46,'Data Annex'!$K$1:$AN$1,0)),\"\")","v":0.47086515309999999},{"$f":"IFERROR(INDEX('Data Annex'!$K$1:$AN$4997,MATCH(AA$45&\"|\"&$B52,'Data Annex'!$K$1:$K$4997,0),MATCH(AA$46,'Data Annex'!$K$1:$AN$1,0)),\"\")","v":0.48370760740000002},{"$f":"IFERROR(INDEX('Data Annex'!$K$1:$AN$4997,MATCH(AB$45&\"|\"&$B52,'Data Annex'!$K$1:$K$4997,0),MATCH(AB$46,'Data Annex'!$K$1:$AN$1,0)),\"\")","v":0.42431334079999999}]
[2,"BE",null,"BE",{"$f":"IFERROR(INDEX('Data Annex'!$K$1:$AN$4997,MATCH(E$45&\"|\"&$B53,'Data Annex'!$K$1:$K$4997,0),MATCH(E$46,'Data Annex'!$K$1:$AN$1,0)),\"\")","v":0.4094139088},{"$f":"IFERROR(INDEX('Data Annex'!$K$1:$AN$4997,MATCH(F$45&\"|\"&$B53,'Data Annex'!$K$1:$K$4997,0),MATCH(F$46,'Data Annex'!$K$1:$AN$1,0)),\"\")","v":0.41800779380000003},{"$f":"IFERROR(INDEX('Data Annex'!$K$1:$AN$4997,MATCH(G$45&\"|\"&$B53,'Data Annex'!$K$1:$K$4997,0),MATCH(G$46,'Data Annex'!$K$1:$AN$1,0)),\"\")","v":0.41820684600000002},{"$f":"IFERROR(INDEX('Data Annex'!$K$1:$AN$4997,MATCH(H$45&\"|\"&$B53,'Data Annex'!$K$1:$K$4997,0),MATCH(H$46,'Data Annex'!$K$1:$AN$1,0)),\"\")","v":0.4024363467},{"$f":"IFERROR(INDEX('Data Annex'!$K$1:$AN$4997,MATCH(I$45&\"|\"&$B53,'Data Annex'!$K$1:$K$4997,0),MATCH(I$46,'Data Annex'!$K$1:$AN$1,0)),\"\")","v":0.2366423292},{"$f":"IFERROR(INDEX('Data Annex'!$K$1:$AN$4997,MATCH(J$45&\"|\"&$B53,'Data Annex'!$K$1:$K$4997,0),MATCH(J$46,'Data Annex'!$K$1:$AN$1,0)),\"\")","v":0.2450793282},{"$f":"IFERROR(INDEX('Data Annex'!$K$1:$AN$4997,MATCH(K$45&\"|\"&$B53,'Data Annex'!$K$1:$K$4997,0),MATCH(K$46,'Data Annex'!$K$1:$AN$1,0)),\"\")","v":0.24073451370000001},{"$f":"IFERROR(INDEX('Data Annex'!$K$1:$AN$4997,MATCH(L$45&\"|\"&$B53,'Data Annex'!$K$1:$K$4997,0),MATCH(L$46,'Data Annex'!$K$1:$AN$1,0)),\"\")","v":0.2345097193},{"$f":"IFERROR(INDEX('Data Annex'!$K$1:$AN$4997,MATCH(M$45&\"|\"&$B53,'Data Annex'!$K$1:$K$4997,0),MATCH(M$46,'Data Annex'!$K$1:$AN$1,0)),\"\")","v":0.17096920090000001},{"$f":"IFERROR(INDEX('Data Annex'!$K$1:$AN$4997,MATCH(N$45&\"|\"&$B53,'Data Annex'!$K$1:$K$4997,0),MATCH(N$46,'Data Annex'!$K$1:$AN$1,0)),\"\")","v":0.18275045009999999},{"$f":"IFERROR(INDEX('Data Annex'!$K$1:$AN$4997,MATCH(O$45&\"|\"&$B53,'Data Annex'!$K$1:$K$4997,0),MATCH(O$46,'Data Annex'!$K$1:$AN$1,0)),\"\")","v":0.1782743789},{"$f":"IFERROR(INDEX('Data Annex'!$K$1:$AN$4997,MATCH(P$45&\"|\"&$B53,'Data Annex'!$K$1:$K$4997,0),MATCH(P$46,'Data Annex'!$K$1:$AN$1,0)),\"\")","v":0.16524121820000001},{"$f":"IFERROR(INDEX('Data Annex'!$K$1:$AN$4997,MATCH(Q$45&\"|\"&$B53,'Data Annex'!$K$1:$K$4997,0),MATCH(Q$46,'Data Annex'!$K$1:$AN$1,0)),\"\")","v":0.49396842270000002},{"$f":"IFERROR(INDEX('Data Annex'!$K$1:$AN$4997,MATCH(R$45&\"|\"&$B53,'Data Annex'!$K$1:$K$4997,0),MATCH(R$46,'Data Annex'!$K$1:$AN$1,0)),\"\")","v":0.50153055319999995},{"$f":"IFERROR(INDEX('Data Annex'!$K$1:$AN$4997,MATCH(S$45&\"|\"&$B53,'Data Annex'!$K$1:$K$4997,0),MATCH(S$46,'Data Annex'!$K$1:$AN$1,0)),\"\")","v":0.50359310189999995},{"$f":"IFERROR(INDEX('Data Annex'!$K$1:$AN$4997,MATCH(T$45&\"|\"&$B53,'Data Annex'!$K$1:$K$4997,0),MATCH(T$46,'Data Annex'!$K$1:$AN$1,0)),\"\")","v":0.47531970060000001},{"$f":"IFERROR(INDEX('Data Annex'!$K$1:$AN$4997,MATCH(U$45&\"|\"&$B53,'Data Annex'!$K$1:$K$4997,0),MATCH(U$46,'Data Annex'!$K$1:$AN$1,0)),\"\")","v":0.48261017150000002},{"$f":"IFERROR(INDEX('Data Annex'!$K$1:$AN$4997,MATCH(V$45&\"|\"&$B53,'Data Annex'!$K$1:$K$4997,0),MATCH(V$46,'Data Annex'!$K$1:$AN$1,0)),\"\")","v":0.49762127039999998},{"$f":"IFERROR(INDEX('Data Annex'!$K$1:$AN$4997,MATCH(W$45&\"|\"&$B53,'Data Annex'!$K$1:$K$4997,0),MATCH(W$46,'Data Annex'!$K$1:$AN$1,0)),\"\")","v":0.49053724510000002},{"$f":"IFERROR(INDEX('Data Annex'!$K$1:$AN$4997,MATCH(X$45&\"|\"&$B53,'Data Annex'!$K$1:$K$4997,0),MATCH(X$46,'Data Annex'!$K$1:$AN$1,0)),\"\")","v":0.46048882079999998},{"$f":"IFERROR(INDEX('Data Annex'!$K$1:$AN$4997,MATCH(Y$45&\"|\"&$B53,'Data Annex'!$K$1:$K$4997,0),MATCH(Y$46,'Data Annex'!$K$1:$AN$1,0)),\"\")","v":0.28040551990000001},{"$f":"IFERROR(INDEX('Data Annex'!$K$1:$AN$4997,MATCH(Z$45&\"|\"&$B53,'Data Annex'!$K$1:$K$4997,0),MATCH(Z$46,'Data Annex'!$K$1:$AN$1,0)),\"\")","v":0.35825514400000003},{"$f":"IFERROR(INDEX('Data Annex'!$K$1:$AN$4997,MATCH(AA$45&\"|\"&$B53,'Data Annex'!$K$1:$K$4997,0),MATCH(AA$46,'Data Annex'!$K$1:$AN$1,0)),\"\")","v":0.35913833049999999},{"$f":"IFERROR(INDEX('Data Annex'!$K$1:$AN$4997,MATCH(AB$45&\"|\"&$B53,'Data Annex'!$K$1:$K$4997,0),MATCH(AB$46,'Data Annex'!$K$1:$AN$1,0)),\"\")","v":0.25506141199999999}]
[3,"BG",null,"BG",{"$f":"IFERROR(INDEX('Data Annex'!$K$1:$AN$4997,MATCH(E$45&\"|\"&$B54,'Data Annex'!$K$1:$K$4997,0),MATCH(E$46,'Data Annex'!$K$1:$AN$1,0)),\"\")","v":0.4909868268},{"$f":"IFERROR(INDEX('Data Annex'!$K$1:$AN$4997,MATCH(F$45&\"|\"&$B54,'Data Annex'!$K$1:$K$4997,0),MATCH(F$46,'Data Annex'!$K$1:$AN$1,0)),\"\")","v":0.48341474099999998},{"$f":"IFERROR(INDEX('Data Annex'!$K$1:$AN$4997,MATCH(G$45&\"|\"&$B54,'Data Annex'!$K$1:$K$4997,0),MATCH(G$46,'Data Annex'!$K$1:$AN$1,0)),\"\")","v":0.4954397237},{"$f":"IFERROR(INDEX('Data Annex'!$K$1:$AN$4997,MATCH(H$45&\"|\"&$B54,'Data Annex'!$K$1:$K$4997,0),MATCH(H$46,'Data Annex'!$K$1:$AN$1,0)),\"\")","v":0.50562019469999997},{"$f":"IFERROR(INDEX('Data Annex'!$K$1:$AN$4997,MATCH(I$45&\"|\"&$B54,'Data Annex'!$K$1:$K$4997,0),MATCH(I$46,'Data Annex'!$K$1:$AN$1,0)),\"\")","v":0.63363941769999998},{"$f":"IFERROR(INDEX('Data Annex'!$K$1:$AN$4997,MATCH(J$45&\"|\"&$B54,'Data Annex'!$K$1:$K$4997,0),MATCH(J$46,'Data Annex'!$K$1:$AN$1,0)),\"\")","v":0.61920444990000001},{"$f":"IFERROR(INDEX('Data Annex'!$K$1:$AN$4997,MATCH(K$45&\"|\"&$B54,'Data Annex'!$K$1:$K$4997,0),MATCH(K$46,'Data Annex'!$K$1:$AN$1,0)),\"\")","v":0.62710151700000005},{"$f":"IFERROR(INDEX('Data Annex'!$K$1:$AN$4997,MATCH(L$45&\"|\"&$B54,'Data Annex'!$K$1:$K$4997,0),MATCH(L$46,'Data Annex'!$K$1:$AN$1,0)),\"\")","v":0.63892919400000003},{"$f":"IFERROR(INDEX('Data Annex'!$K$1:$AN$4997,MATCH(M$45&\"|\"&$B54,'Data Annex'!$K$1:$K$4997,0),MATCH(M$46,'Data Annex'!$K$1:$AN$1,0)),\"\")","v":0.45568840690000001},{"$f":"IFERROR(INDEX('Data Annex'!$K$1:$AN$4997,MATCH(N$45&\"|\"&$B54,'Data Annex'!$K$1:$K$4997,0),MATCH(N$46,'Data Annex'!$K$1:$AN$1,0)),\"\")","v":0.47163914740000001},{"$f":"IFERROR(INDEX('Data Annex'!$K$1:$AN$4997,MATCH(O$45&\"|\"&$B54,'Data Annex'!$K$1:$K$4997,0),MATCH(O$46,'Data Annex'!$K$1:$AN$1,0)),\"\")","v":0.44753894239999997},{"$f":"IFERROR(INDEX('Data Annex'!$K$1:$AN$4997,MATCH(P$45&\"|\"&$B54,'Data Annex'!$K$1:$K$4997,0),MATCH(P$46,'Data Annex'!$K$1:$AN$1,0)),\"\")","v":0.46748431029999998},{"$f":"IFERROR(INDEX('Data Annex'!$K$1:$AN$4997,MATCH(Q$45&\"|\"&$B54,'Data Annex'!$K$1:$K$4997,0),MATCH(Q$46,'Data Annex'!$K$1:$AN$1,0)),\"\")","v":0.43019795770000002},{"$f":"IFERROR(INDEX('Data Annex'!$K$1:$AN$4997,MATCH(R$45&\"|\"&$B54,'Data Annex'!$K$1:$K$4997,0),MATCH(R$46,'Data Annex'!$K$1:$AN$1,0)),\"\")","v":0.41891703419999998},{"$f":"IFERROR(INDEX('Data Annex'!$K$1:$AN$4997,MATCH(S$45&\"|\"&$B54,'Data Annex'!$K$1:$K$4997,0),MATCH(S$46,'Data Annex'!$K$1:$AN$1,0)),\"\")","v":0.43049541299999999},{"$f":"IFERROR(INDEX('Data Annex'!$K$1:$AN$4997,MATCH(T$45&\"|\"&$B54,'Data Annex'!$K$1:$K$4997,0),MATCH(T$46,'Data Annex'!$K$1:$AN$1,0)),\"\")","v":0.43908113069999999},{"$f":"IFERROR(INDEX('Data Annex'!$K$1:$AN$4997,MATCH(U$45&\"|\"&$B54,'Data Annex'!$K$1:$K$4997,0),MATCH(U$46,'Data Annex'!$K$1:$AN$1,0)),\"\")","v":0.43631930880000003},{"$f":"IFERROR(INDEX('Data Annex'!$K$1:$AN$4997,MATCH(V$45&\"|\"&$B54,'Data Annex'!$K$1:$K$4997,0),MATCH(V$46,'Data Annex'!$K$1:$AN$1,0)),\"\")","v":0.42428136150000001},{"$f":"IFERROR(INDEX('Data Annex'!$K$1:$AN$4997,MATCH(W$45&\"|\"&$B54,'Data Annex'!$K$1:$K$4997,0),MATCH(W$46,'Data Annex'!$K$1:$AN$1,0)),\"\")","v":0.42981203270000001},{"$f":"IFERROR(INDEX('Data Annex'!$K$1:$AN$4997,MATCH(X$45&\"|\"&$B54,'Data Annex'!$K$1:$K$4997,0),MATCH(X$46,'Data Annex'!$K$1:$AN$1,0)),\"\")","v":0.45467200060000001},{"$f":"IFERROR(INDEX('Data Annex'!$K$1:$AN$4997,MATCH(Y$45&\"|\"&$B54,'Data Annex'!$K$1:$K$4997,0),MATCH(Y$46,'Data Annex'!$K$1:$AN$1,0)),\"\")","v":0.39165014149999999},{"$f":"IFERROR(INDEX('Data Annex'!$K$1:$AN$4997,MATCH(Z$45&\"|\"&$B54,'Data Annex'!$K$1:$K$4997,0),MATCH(Z$46,'Data Annex'!$K$1:$AN$1,0)),\"\")","v":0.39222759950000002},{"$f":"IFERROR(INDEX('Data Annex'!$K$1:$AN$4997,MATCH(AA$45&\"|\"&$B54,'Data Annex'!$K$1:$K$4997,0),MATCH(AA$46,'Data Annex'!$K$1:$AN$1,0)),\"\")","v":0.38400981210000001},{"$f":"IFERROR(INDEX('Data Annex'!$K$1:$AN$4997,MATCH(AB$45&\"|\"&$B54,'Data Annex'!$K$1:$K$4997,0),MATCH(AB$46,'Data Annex'!$K$1:$AN$1,0)),\"\")","v":0.39742607330000002}]
[4,"CY",null,"CY",{"$f":"IFERROR(INDEX('Data Annex'!$K$1:$AN$4997,MATCH(E$45&\"|\"&$B55,'Data Annex'!$K$1:$K$4997,0),MATCH(E$46,'Data Annex'!$K$1:$AN$1,0)),\"\")","v":0.50584254299999998},{"$f":"IFERROR(INDEX('Data Annex'!$K$1:$AN$4997,MATCH(F$45&\"|\"&$B55,'Data Annex'!$K$1:$K$4997,0),MATCH(F$46,'Data Annex'!$K$1:$AN$1,0)),\"\")","v":0.46592881520000001},{"$f":"IFERROR(INDEX('Data Annex'!$K$1:$AN$4997,MATCH(G$45&\"|\"&$B55,'Data Annex'!$K$1:$K$4997,0),MATCH(G$46,'Data Annex'!$K$1:$AN$1,0)),\"\")","v":0.46210518189999999},{"$f":"IFERROR(INDEX('Data Annex'!$K$1:$AN$4997,MATCH(H$45&\"|\"&$B55,'Data Annex'!$K$1:$K$4997,0),MATCH(H$46,'Data Annex'!$K$1:$AN$1,0)),\"\")","v":0.44061896189999999},{"$f":"IFERROR(INDEX('Data Annex'!$K$1:$AN$4997,MATCH(I$45&\"|\"&$B55,'Data Annex'!$K$1:$K$4997,0),MATCH(I$46,'Data Annex'!$K$1:$AN$1,0)),\"\")","v":0.47784046479999998},{"$f":"IFERROR(INDEX('Data Annex'!$K$1:$AN$4997,MATCH(J$45&\"|\"&$B55,'Data Annex'!$K$1:$K$4997,0),MATCH(J$46,'Data Annex'!$K$1:$AN$1,0)),\"\")","v":0.44294394799999998},{"$f":"IFERROR(INDEX('Data Annex'!$K$1:$AN$4997,MATCH(K$45&\"|\"&$B55,'Data Annex'!$K$1:$K$4997,0),MATCH(K$46,'Data Annex'!$K$1:$AN$1,0)),\"\")","v":0.42714133929999998},{"$f":"IFERROR(INDEX('Data Annex'!$K$1:$AN$4997,MATCH(L$45&\"|\"&$B55,'Data Annex'!$K$1:$K$4997,0),MATCH(L$46,'Data Annex'!$K$1:$AN$1,0)),\"\")","v":0.35221918679999997},{"$f":"IFERROR(INDEX('Data Annex'!$K$1:$AN$4997,MATCH(M$45&\"|\"&$B55,'Data Annex'!$K$1:$K$4997,0),MATCH(M$46,'Data Annex'!$K$1:$AN$1,0)),\"\")","v":0.40792995030000001},{"$f":"IFERROR(INDEX('Data Annex'!$K$1:$AN$4997,MATCH(N$45&\"|\"&$B55,'Data Annex'!$K$1:$K$4997,0),MATCH(N$46,'Data Annex'!$K$1:$AN$1,0)),\"\")","v":0.39043409870000001},{"$f":"IFERROR(INDEX('Data Annex'!$K$1:$AN$4997,MATCH(O$45&\"|\"&$B55,'Data Annex'!$K$1:$K$4997,0),MATCH(O$46,'Data Annex'!$K$1:$AN$1,0)),\"\")","v":0.37676602469999998},{"$f":"IFERROR(INDEX('Data Annex'!$K$1:$AN$4997,MATCH(P$45&\"|\"&$B55,'Data Annex'!$K$1:$K$4997,0),MATCH(P$46,'Data Annex'!$K$1:$AN$1,0)),\"\")","v":0.29836787570000001},{"$f":"IFERROR(INDEX('Data Annex'!$K$1:$AN$4997,MATCH(Q$45&\"|\"&$B55,'Data Annex'!$K$1:$K$4997,0),MATCH(Q$46,'Data Annex'!$K$1:$AN$1,0)),\"\")","v":0.56487646940000003},{"$f":"IFERROR(INDEX('Data Annex'!$K$1:$AN$4997,MATCH(R$45&\"|\"&$B55,'Data Annex'!$K$1:$K$4997,0),MATCH(R$46,'Data Annex'!$K$1:$AN$1,0)),\"\")","v":0.51676485120000004},{"$f":"IFERROR(INDEX('Data Annex'!$K$1:$AN$4997,MATCH(S$45&\"|\"&$B55,'Data Annex'!$K$1:$K$4997,0),MATCH(S$46,'Data Annex'!$K$1:$AN$1,0)),\"\")","v":0.53505638580000003},{"$f":"IFERROR(INDEX('Data Annex'!$K$1:$AN$4997,MATCH(T$45&\"|\"&$B55,'Data Annex'!$K$1:$K$4997,0),MATCH(T$46,'Data Annex'!$K$1:$AN$1,0)),\"\")","v":0.51825468870000002},{"$f":"IFERROR(INDEX('Data Annex'!$K$1:$AN$4997,MATCH(U$45&\"|\"&$B55,'Data Annex'!$K$1:$K$4997,0),MATCH(U$46,'Data Annex'!$K$1:$AN$1,0)),\"\")","v":0.58295863290000005},{"$f":"IFERROR(INDEX('Data Annex'!$K$1:$AN$4997,MATCH(V$45&\"|\"&$B55,'Data Annex'!$K$1:$K$4997,0),MATCH(V$46,'Data Annex'!$K$1:$AN$1,0)),\"\")","v":0.54066416530000005},{"$f":"IFERROR(INDEX('Data Annex'!$K$1:$AN$4997,MATCH(W$45&\"|\"&$B55,'Data Annex'!$K$1:$K$4997,0),MATCH(W$46,'Data Annex'!$K$1:$AN$1,0)),\"\")","v":0.55358152839999997},{"$f":"IFERROR(INDEX('Data Annex'!$K$1:$AN$4997,MATCH(X$45&\"|\"&$B55,'Data Annex'!$K$1:$K$4997,0),MATCH(X$46,'Data Annex'!$K$1:$AN$1,0)),\"\")","v":0.51822648609999999},{"$f":"IFERROR(INDEX('Data Annex'!$K$1:$AN$4997,MATCH(Y$45&\"|\"&$B55,'Data Annex'!$K$1:$K$4997,0),MATCH(Y$46,'Data Annex'!$K$1:$AN$1,0)),\"\")","v":0.52428736799999998},{"$f":"IFERROR(INDEX('Data Annex'!$K$1:$AN$4997,MATCH(Z$45&\"|\"&$B55,'Data Annex'!$K$1:$K$4997,0),MATCH(Z$46,'Data Annex'!$K$1:$AN$1,0)),\"\")","v":0.47001956480000001},{"$f":"IFERROR(INDEX('Data Annex'!$K$1:$AN$4997,MATCH(AA$45&\"|\"&$B55,'Data Annex'!$K$1:$K$4997,0),MATCH(AA$46,'Data Annex'!$K$1:$AN$1,0)),\"\")","v":0.50516531840000001},{"$f":"IFERROR(INDEX('Data Annex'!$K$1:$AN$4997,MATCH(AB$45&\"|\"&$B55,'Data Annex'!$K$1:$K$4997,0),MATCH(AB$46,'Data Annex'!$K$1:$AN$1,0)),\"\")","v":0.48009073050000001}]
[5,"CZ",null,"CZ",{"$f":"IFERROR(INDEX('Data Annex'!$K$1:$AN$4997,MATCH(E$45&\"|\"&$B56,'Data Annex'!$K$1:$K$4997,0),MATCH(E$46,'Data Annex'!$K$1:$AN$1,0)),\"\")","v":0.56894855769999997},{"$f":"IFERROR(INDEX('Data Annex'!$K$1:$AN$4997,MATCH(F$45&\"|\"&$B56,'Data Annex'!$K$1:$K$4997,0),MATCH(F$46,'Data Annex'!$K$1:$AN$1,0)),\"\")","v":0.55993847969999999},{"$f":"IFERROR(INDEX('Data Annex'!$K$1:$AN$4997,MATCH(G$45&\"|\"&$B56,'Data Annex'!$K$1:$K$4997,0),MATCH(G$46,'Data Annex'!$K$1:$AN$1,0)),\"\")","v":0.56918304050000001},{"$f":"IFERROR(INDEX('Data Annex'!$K$1:$AN$4997,MATCH(H$45&\"|\"&$B56,'Data Annex'!$K$1:$K$4997,0),MATCH(H$46,'Data Annex'!$K$1:$AN$1,0)),\"\")","v":0.54732337669999997},{"$f":"IFERROR(INDEX('Data Annex'!$K$1:$AN$4997,MATCH(I$45&\"|\"&$B56,'Data Annex'!$K$1:$K$4997,0),MATCH(I$46,'Data Annex'!$K$1:$AN$1,0)),\"\")","v":0.56858674899999995},{"$f":"IFERROR(INDEX('Data Annex'!$K$1:$AN$4997,MATCH(J$45&\"|\"&$B56,'Data Annex'!$K$1:$K$4997,0),MATCH(J$46,'Data Annex'!$K$1:$AN$1,0)),\"\")","v":0.56544510049999996},{"$f":"IFERROR(INDEX('Data Annex'!$K$1:$AN$4997,MATCH(K$45&\"|\"&$B56,'Data Annex'!$K$1:$K$4997,0),MATCH(K$46,'Data Annex'!$K$1:$AN$1,0)),\"\")","v":0.57595860750000005},{"$f":"IFERROR(INDEX('Data Annex'!$K$1:$AN$4997,MATCH(L$45&\"|\"&$B56,'Data Annex'!$K$1:$K$4997,0),MATCH(L$46,'Data Annex'!$K$1:$AN$1,0)),\"\")","v":0.55242398670000004},{"$f":"IFERROR(INDEX('Data Annex'!$K$1:$AN$4997,MATCH(M$45&\"|\"&$B56,'Data Annex'!$K$1:$K$4997,0),MATCH(M$46,'Data Annex'!$K$1:$AN$1,0)),\"\")","v":0.37866692639999999},{"$f":"IFERROR(INDEX('Data Annex'!$K$1:$AN$4997,MATCH(N$45&\"|\"&$B56,'Data Annex'!$K$1:$K$4997,0),MATCH(N$46,'Data Annex'!$K$1:$AN$1,0)),\"\")","v":0.37147986220000001},{"$f":"IFERROR(INDEX('Data Annex'!$K$1:$AN$4997,MATCH(O$45&\"|\"&$B56,'Data Annex'!$K$1:$K$4997,0),MATCH(O$46,'Data Annex'!$K$1:$AN$1,0)),\"\")","v":0.37018346419999998},{"$f":"IFERROR(INDEX('Data Annex'!$K$1:$AN$4997,MATCH(P$45&\"|\"&$B56,'Data Annex'!$K$1:$K$4997,0),MATCH(P$46,'Data Annex'!$K$1:$AN$1,0)),\"\")","v":0.33405343799999998},{"$f":"IFERROR(INDEX('Data Annex'!$K$1:$AN$4997,MATCH(Q$45&\"|\"&$B56,'Data Annex'!$K$1:$K$4997,0),MATCH(Q$46,'Data Annex'!$K$1:$AN$1,0)),\"\")","v":0.57000996469999998},{"$f":"IFERROR(INDEX('Data Annex'!$K$1:$AN$4997,MATCH(R$45&\"|\"&$B56,'Data Annex'!$K$1:$K$4997,0),MATCH(R$46,'Data Annex'!$K$1:$AN$1,0)),\"\")","v":0.55444080610000002},{"$f":"IFERROR(INDEX('Data Annex'!$K$1:$AN$4997,MATCH(S$45&\"|\"&$B56,'Data Annex'!$K$1:$K$4997,0),MATCH(S$46,'Data Annex'!$K$1:$AN$1,0)),\"\")","v":0.56852810229999995},{"$f":"IFERROR(INDEX('Data Annex'!$K$1:$AN$4997,MATCH(T$45&\"|\"&$B56,'Data Annex'!$K$1:$K$4997,0),MATCH(T$46,'Data Annex'!$K$1:$AN$1,0)),\"\")","v":0.55081091069999999},{"$f":"IFERROR(INDEX('Data Annex'!$K$1:$AN$4997,MATCH(U$45&\"|\"&$B56,'Data Annex'!$K$1:$K$4997,0),MATCH(U$46,'Data Annex'!$K$1:$AN$1,0)),\"\")","v":0.60115199640000005},{"$f":"IFERROR(INDEX('Data Annex'!$K$1:$AN$4997,MATCH(V$45&\"|\"&$B56,'Data Annex'!$K$1:$K$4997,0),MATCH(V$46,'Data Annex'!$K$1:$AN$1,0)),\"\")","v":0.5606875925},{"$f":"IFERROR(INDEX('Data Annex'!$K$1:$AN$4997,MATCH(W$45&\"|\"&$B56,'Data Annex'!$K$1:$K$4997,0),MATCH(W$46,'Data Annex'!$K$1:$AN$1,0)),\"\")","v":0.5531125496},{"$f":"IFERROR(INDEX('Data Annex'!$K$1:$AN$4997,MATCH(X$45&\"|\"&$B56,'Data Annex'!$K$1:$K$4997,0),MATCH(X$46,'Data Annex'!$K$1:$AN$1,0)),\"\")","v":0.5306937572},{"$f":"IFERROR(INDEX('Data Annex'!$K$1:$AN$4997,MATCH(Y$45&\"|\"&$B56,'Data Annex'!$K$1:$K$4997,0),MATCH(Y$46,'Data Annex'!$K$1:$AN$1,0)),\"\")","v":0.51070779570000002},{"$f":"IFERROR(INDEX('Data Annex'!$K$1:$AN$4997,MATCH(Z$45&\"|\"&$B56,'Data Annex'!$K$1:$K$4997,0),MATCH(Z$46,'Data Annex'!$K$1:$AN$1,0)),\"\")","v":0.50476543289999998},{"$f":"IFERROR(INDEX('Data Annex'!$K$1:$AN$4997,MATCH(AA$45&\"|\"&$B56,'Data Annex'!$K$1:$K$4997,0),MATCH(AA$46,'Data Annex'!$K$1:$AN$1,0)),\"\")","v":0.546689278},{"$f":"IFERROR(INDEX('Data Annex'!$K$1:$AN$4997,MATCH(AB$45&\"|\"&$B56,'Data Annex'!$K$1:$K$4997,0),MATCH(AB$46,'Data Annex'!$K$1:$AN$1,0)),\"\")","v":0.48778201760000001}]
[6,"DE",null,"DE",{"$f":"IFERROR(INDEX('Data Annex'!$K$1:$AN$4997,MATCH(E$45&\"|\"&$B57,'Data Annex'!$K$1:$K$4997,0),MATCH(E$46,'Data Annex'!$K$1:$AN$1,0)),\"\")","v":0.39173069259999999},{"$f":"IFERROR(INDEX('Data Annex'!$K$1:$AN$4997,MATCH(F$45&\"|\"&$B57,'Data Annex'!$K$1:$K$4997,0),MATCH(F$46,'Data Annex'!$K$1:$AN$1,0)),\"\")","v":0.37914636200000001},{"$f":"IFERROR(INDEX('Data Annex'!$K$1:$AN$4997,MATCH(G$45&\"|\"&$B57,'Data Annex'!$K$1:$K$4997,0),MATCH(G$46,'Data Annex'!$K$1:$AN$1,0)),\"\")","v":0.37128103870000001},{"$f":"IFERROR(INDEX('Data Annex'!$K$1:$AN$4997,MATCH(H$45&\"|\"&$B57,'Data Annex'!$K$1:$K$4997,0),MATCH(H$46,'Data Annex'!$K$1:$AN$1,0)),\"\")","v":0.36625115790000001},{"$f":"IFERROR(INDEX('Data Annex'!$K$1:$AN$4997,MATCH(I$45&\"|\"&$B57,'Data Annex'!$K$1:$K$4997,0),MATCH(I$46,'Data Annex'!$K$1:$AN$1,0)),\"\")","v":0.31718291409999999},{"$f":"IFERROR(INDEX('Data Annex'!$K$1:$AN$4997,MATCH(J$45&\"|\"&$B57,'Data Annex'!$K$1:$K$4997,0),MATCH(J$46,'Data Annex'!$K$1:$AN$1,0)),\"\")","v":0.30655507609999999},{"$f":"IFERROR(INDEX('Data Annex'!$K$1:$AN$4997,MATCH(K$45&\"|\"&$B57,'Data Annex'!$K$1:$K$4997,0),MATCH(K$46,'Data Annex'!$K$1:$AN$1,0)),\"\")","v":0.32742173749999998},{"$f":"IFERROR(INDEX('Data Annex'!$K$1:$AN$4997,MATCH(L$45&\"|\"&$B57,'Data Annex'!$K$1:$K$4997,0),MATCH(L$46,'Data Annex'!$K$1:$AN$1,0)),\"\")","v":0.3273634668},{"$f":"IFERROR(INDEX('Data Annex'!$K$1:$AN$4997,MATCH(M$45&\"|\"&$B57,'Data Annex'!$K$1:$K$4997,0),MATCH(M$46,'Data Annex'!$K$1:$AN$1,0)),\"\")","v":0.1967348853},{"$f":"IFERROR(INDEX('Data Annex'!$K$1:$AN$4997,MATCH(N$45&\"|\"&$B57,'Data Annex'!$K$1:$K$4997,0),MATCH(N$46,'Data Annex'!$K$1:$AN$1,0)),\"\")","v":0.1821051769},{"$f":"IFERROR(INDEX('Data Annex'!$K$1:$AN$4997,MATCH(O$45&\"|\"&$B57,'Data Annex'!$K$1:$K$4997,0),MATCH(O$46,'Data Annex'!$K$1:$AN$1,0)),\"\")","v":0.177150638},{"$f":"IFERROR(INDEX('Data Annex'!$K$1:$AN$4997,MATCH(P$45&\"|\"&$B57,'Data Annex'!$K$1:$K$4997,0),MATCH(P$46,'Data Annex'!$K$1:$AN$1,0)),\"\")","v":0.20289859439999999},{"$f":"IFERROR(INDEX('Data Annex'!$K$1:$AN$4997,MATCH(Q$45&\"|\"&$B57,'Data Annex'!$K$1:$K$4997,0),MATCH(Q$46,'Data Annex'!$K$1:$AN$1,0)),\"\")","v":0.44746375939999999},{"$f":"IFERROR(INDEX('Data Annex'!$K$1:$AN$4997,MATCH(R$45&\"|\"&$B57,'Data Annex'!$K$1:$K$4997,0),MATCH(R$46,'Data Annex'!$K$1:$AN$1,0)),\"\")","v":0.42689615920000001},{"$f":"IFERROR(INDEX('Data Annex'!$K$1:$AN$4997,MATCH(S$45&\"|\"&$B57,'Data Annex'!$K$1:$K$4997,0),MATCH(S$46,'Data Annex'!$K$1:$AN$1,0)),\"\")","v":0.41803030479999997},{"$f":"IFERROR(INDEX('Data Annex'!$K$1:$AN$4997,MATCH(T$45&\"|\"&$B57,'Data Annex'!$K$1:$K$4997,0),MATCH(T$46,'Data Annex'!$K$1:$AN$1,0)),\"\")","v":0.39493093460000001},{"$f":"IFERROR(INDEX('Data Annex'!$K$1:$AN$4997,MATCH(U$45&\"|\"&$B57,'Data Annex'!$K$1:$K$4997,0),MATCH(U$46,'Data Annex'!$K$1:$AN$1,0)),\"\")","v":0.38993975510000001},{"$f":"IFERROR(INDEX('Data Annex'!$K$1:$AN$4997,MATCH(V$45&\"|\"&$B57,'Data Annex'!$K$1:$K$4997,0),MATCH(V$46,'Data Annex'!$K$1:$AN$1,0)),\"\")","v":0.4533086476},{"$f":"IFERROR(INDEX('Data Annex'!$K$1:$AN$4997,MATCH(W$45&\"|\"&$B57,'Data Annex'!$K$1:$K$4997,0),MATCH(W$46,'Data Annex'!$K$1:$AN$1,0)),\"\")","v":0.43670959409999999},{"$f":"IFERROR(INDEX('Data Annex'!$K$1:$AN$4997,MATCH(X$45&\"|\"&$B57,'Data Annex'!$K$1:$K$4997,0),MATCH(X$46,'Data Annex'!$K$1:$AN$1,0)),\"\")","v":0.40350231149999999},{"$f":"IFERROR(INDEX('Data Annex'!$K$1:$AN$4997,MATCH(Y$45&\"|\"&$B57,'Data Annex'!$K$1:$K$4997,0),MATCH(Y$46,'Data Annex'!$K$1:$AN$1,0)),\"\")","v":0.31458423639999999},{"$f":"IFERROR(INDEX('Data Annex'!$K$1:$AN$4997,MATCH(Z$45&\"|\"&$B57,'Data Annex'!$K$1:$K$4997,0),MATCH(Z$46,'Data Annex'!$K$1:$AN$1,0)),\"\")","v":0.2845420119},{"$f":"IFERROR(INDEX('Data Annex'!$K$1:$AN$4997,MATCH(AA$45&\"|\"&$B57,'Data Annex'!$K$1:$K$4997,0),MATCH(AA$46,'Data Annex'!$K$1:$AN$1,0)),\"\")","v":0.27298907160000002},{"$f":"IFERROR(INDEX('Data Annex'!$K$1:$AN$4997,MATCH(AB$45&\"|\"&$B57,'Data Annex'!$K$1:$K$4997,0),MATCH(AB$46,'Data Annex'!$K$1:$AN$1,0)),\"\")","v":0.26830921720000001}]
[7,"DK",null,"DK",{"$f":"IFERROR(INDEX('Data Annex'!$K$1:$AN$4997,MATCH(E$45&\"|\"&$B58,'Data Annex'!$K$1:$K$4997,0),MATCH(E$46,'Data Annex'!$K$1:$AN$1,0)),\"\")","v":0.34536248200000003},{"$f":"IFERROR(INDEX('Data Annex'!$K$1:$AN$4997,MATCH(F$45&\"|\"&$B58,'Data Annex'!$K$1:$K$4997,0),MATCH(F$46,'Data Annex'!$K$1:$AN$1,0)),\"\")","v":0.34479811729999998},{"$f":"IFERROR(INDEX('Data Annex'!$K$1:$AN$4997,MATCH(G$45&\"|\"&$B58,'Data Annex'!$K$1:$K$4997,0),MATCH(G$46,'Data Annex'!$K$1:$AN$1,0)),\"\")","v":0.31909231500000002},{"$f":"IFERROR(INDEX('Data Annex'!$K$1:$AN$4997,MATCH(H$45&\"|\"&$B58,'Data Annex'!$K$1:$K$4997,0),MATCH(H$46,'Data Annex'!$K$1:$AN$1,0)),\"\")","v":0.29299373200000001},{"$f":"IFERROR(INDEX('Data Annex'!$K$1:$AN$4997,MATCH(I$45&\"|\"&$B58,'Data Annex'!$K$1:$K$4997,0),MATCH(I$46,'Data Annex'!$K$1:$AN$1,0)),\"\")","v":0.45788474359999998},{"$f":"IFERROR(INDEX('Data Annex'!$K$1:$AN$4997,MATCH(J$45&\"|\"&$B58,'Data Annex'!$K$1:$K$4997,0),MATCH(J$46,'Data Annex'!$K$1:$AN$1,0)),\"\")","v":0.44032162819999998},{"$f":"IFERROR(INDEX('Data Annex'!$K$1:$AN$4997,MATCH(K$45&\"|\"&$B58,'Data Annex'!$K$1:$K$4997,0),MATCH(K$46,'Data Annex'!$K$1:$AN$1,0)),\"\")","v":0.40174136580000003},{"$f":"IFERROR(INDEX('Data Annex'!$K$1:$AN$4997,MATCH(L$45&\"|\"&$B58,'Data Annex'!$K$1:$K$4997,0),MATCH(L$46,'Data Annex'!$K$1:$AN$1,0)),\"\")","v":0.39719061160000002},{"$f":"IFERROR(INDEX('Data Annex'!$K$1:$AN$4997,MATCH(M$45&\"|\"&$B58,'Data Annex'!$K$1:$K$4997,0),MATCH(M$46,'Data Annex'!$K$1:$AN$1,0)),\"\")","v":0.2683251103},{"$f":"IFERROR(INDEX('Data Annex'!$K$1:$AN$4997,MATCH(N$45&\"|\"&$B58,'Data Annex'!$K$1:$K$4997,0),MATCH(N$46,'Data Annex'!$K$1:$AN$1,0)),\"\")","v":0.2450575512},{"$f":"IFERROR(INDEX('Data Annex'!$K$1:$AN$4997,MATCH(O$45&\"|\"&$B58,'Data Annex'!$K$1:$K$4997,0),MATCH(O$46,'Data Annex'!$K$1:$AN$1,0)),\"\")","v":0.217254895},{"$f":"IFERROR(INDEX('Data Annex'!$K$1:$AN$4997,MATCH(P$45&\"|\"&$B58,'Data Annex'!$K$1:$K$4997,0),MATCH(P$46,'Data Annex'!$K$1:$AN$1,0)),\"\")","v":0.21031397199999999},{"$f":"IFERROR(INDEX('Data Annex'!$K$1:$AN$4997,MATCH(Q$45&\"|\"&$B58,'Data Annex'!$K$1:$K$4997,0),MATCH(Q$46,'Data Annex'!$K$1:$AN$1,0)),\"\")","v":0.42705304589999998},{"$f":"IFERROR(INDEX('Data Annex'!$K$1:$AN$4997,MATCH(R$45&\"|\"&$B58,'Data Annex'!$K$1:$K$4997,0),MATCH(R$46,'Data Annex'!$K$1:$AN$1,0)),\"\")","v":0.41325306000000001},{"$f":"IFERROR(INDEX('Data Annex'!$K$1:$AN$4997,MATCH(S$45&\"|\"&$B58,'Data Annex'!$K$1:$K$4997,0),MATCH(S$46,'Data Annex'!$K$1:$AN$1,0)),\"\")","v":0.35933461430000002},{"$f":"IFERROR(INDEX('Data Annex'!$K$1:$AN$4997,MATCH(T$45&\"|\"&$B58,'Data Annex'!$K$1:$K$4997,0),MATCH(T$46,'Data Annex'!$K$1:$AN$1,0)),\"\")","v":0.29071084990000001},{"$f":"IFERROR(INDEX('Data Annex'!$K$1:$AN$4997,MATCH(U$45&\"|\"&$B58,'Data Annex'!$K$1:$K$4997,0),MATCH(U$46,'Data Annex'!$K$1:$AN$1,0)),\"\")","v":0.43494752580000001},{"$f":"IFERROR(INDEX('Data Annex'!$K$1:$AN$4997,MATCH(V$45&\"|\"&$B58,'Data Annex'!$K$1:$K$4997,0),MATCH(V$46,'Data Annex'!$K$1:$AN$1,0)),\"\")","v":0.40180699440000001},{"$f":"IFERROR(INDEX('Data Annex'!$K$1:$AN$4997,MATCH(W$45&\"|\"&$B58,'Data Annex'!$K$1:$K$4997,0),MATCH(W$46,'Data Annex'!$K$1:$AN$1,0)),\"\")","v":0.34380898529999998},{"$f":"IFERROR(INDEX('Data Annex'!$K$1:$AN$4997,MATCH(X$45&\"|\"&$B58,'Data Annex'!$K$1:$K$4997,0),MATCH(X$46,'Data Annex'!$K$1:$AN$1,0)),\"\")","v":0.31529033010000002},{"$f":"IFERROR(INDEX('Data Annex'!$K$1:$AN$4997,MATCH(Y$45&\"|\"&$B58,'Data Annex'!$K$1:$K$4997,0),MATCH(Y$46,'Data Annex'!$K$1:$AN$1,0)),\"\")","v":0.36420957120000003},{"$f":"IFERROR(INDEX('Data Annex'!$K$1:$AN$4997,MATCH(Z$45&\"|\"&$B58,'Data Annex'!$K$1:$K$4997,0),MATCH(Z$46,'Data Annex'!$K$1:$AN$1,0)),\"\")","v":0.34590175620000002},{"$f":"IFERROR(INDEX('Data Annex'!$K$1:$AN$4997,MATCH(AA$45&\"|\"&$B58,'Data Annex'!$K$1:$K$4997,0),MATCH(AA$46,'Data Annex'!$K$1:$AN$1,0)),\"\")","v":0.27497083379999998},{"$f":"IFERROR(INDEX('Data Annex'!$K$1:$AN$4997,MATCH(AB$45&\"|\"&$B58,'Data Annex'!$K$1:$K$4997,0),MATCH(AB$46,'Data Annex'!$K$1:$AN$1,0)),\"\")","v":0.2283048225}]
[8,"EE",null,"EE",{"$f":"IFERROR(INDEX('Data Annex'!$K$1:$AN$4997,MATCH(E$45&\"|\"&$B59,'Data Annex'!$K$1:$K$4997,0),MATCH(E$46,'Data Annex'!$K$1:$AN$1,0)),\"\")","v":0.34581953669999999},{"$f":"IFERROR(INDEX('Data Annex'!$K$1:$AN$4997,MATCH(F$45&\"|\"&$B59,'Data Annex'!$K$1:$K$4997,0),MATCH(F$46,'Data Annex'!$K$1:$AN$1,0)),\"\")","v":0.33266615170000002},{"$f":"IFERROR(INDEX('Data Annex'!$K$1:$AN$4997,MATCH(G$45&\"|\"&$B59,'Data Annex'!$K$1:$K$4997,0),MATCH(G$46,'Data Annex'!$K$1:$AN$1,0)),\"\")","v":0.3400006512},{"$f":"IFERROR(INDEX('Data Annex'!$K$1:$AN$4997,MATCH(H$45&\"|\"&$B59,'Data Annex'!$K$1:$K$4997,0),MATCH(H$46,'Data Annex'!$K$1:$AN$1,0)),\"\")","v":0.29010298769999998},{"$f":"IFERROR(INDEX('Data Annex'!$K$1:$AN$4997,MATCH(I$45&\"|\"&$B59,'Data Annex'!$K$1:$K$4997,0),MATCH(I$46,'Data Annex'!$K$1:$AN$1,0)),\"\")","v":0.26156455080000002},{"$f":"IFERROR(INDEX('Data Annex'!$K$1:$AN$4997,MATCH(J$45&\"|\"&$B59,'Data Annex'!$K$1:$K$4997,0),MATCH(J$46,'Data Annex'!$K$1:$AN$1,0)),\"\")","v":0.26818167050000002},{"$f":"IFERROR(INDEX('Data Annex'!$K$1:$AN$4997,MATCH(K$45&\"|\"&$B59,'Data Annex'!$K$1:$K$4997,0),MATCH(K$46,'Data Annex'!$K$1:$AN$1,0)),\"\")","v":0.25648547319999998},{"$f":"IFERROR(INDEX('Data Annex'!$K$1:$AN$4997,MATCH(L$45&\"|\"&$B59,'Data Annex'!$K$1:$K$4997,0),MATCH(L$46,'Data Annex'!$K$1:$AN$1,0)),\"\")","v":0.2249057394},{"$f":"IFERROR(INDEX('Data Annex'!$K$1:$AN$4997,MATCH(M$45&\"|\"&$B59,'Data Annex'!$K$1:$K$4997,0),MATCH(M$46,'Data Annex'!$K$1:$AN$1,0)),\"\")","v":0.23518432959999999},{"$f":"IFERROR(INDEX('Data Annex'!$K$1:$AN$4997,MATCH(N$45&\"|\"&$B59,'Data Annex'!$K$1:$K$4997,0),MATCH(N$46,'Data Annex'!$K$1:$AN$1,0)),\"\")","v":0.2461869525},{"$f":"IFERROR(INDEX('Data Annex'!$K$1:$AN$4997,MATCH(O$45&\"|\"&$B59,'Data Annex'!$K$1:$K$4997,0),MATCH(O$46,'Data Annex'!$K$1:$AN$1,0)),\"\")","v":0.2390705866},{"$f":"IFERROR(INDEX('Data Annex'!$K$1:$AN$4997,MATCH(P$45&\"|\"&$B59,'Data Annex'!$K$1:$K$4997,0),MATCH(P$46,'Data Annex'!$K$1:$AN$1,0)),\"\")","v":0.20323522760000001},{"$f":"IFERROR(INDEX('Data Annex'!$K$1:$AN$4997,MATCH(Q$45&\"|\"&$B59,'Data Annex'!$K$1:$K$4997,0),MATCH(Q$46,'Data Annex'!$K$1:$AN$1,0)),\"\")","v":0.40882200790000001},{"$f":"IFERROR(INDEX('Data Annex'!$K$1:$AN$4997,MATCH(R$45&\"|\"&$B59,'Data Annex'!$K$1:$K$4997,0),MATCH(R$46,'Data Annex'!$K$1:$AN$1,0)),\"\")","v":0.38479689150000002},{"$f":"IFERROR(INDEX('Data Annex'!$K$1:$AN$4997,MATCH(S$45&\"|\"&$B59,'Data Annex'!$K$1:$K$4997,0),MATCH(S$46,'Data Annex'!$K$1:$AN$1,0)),\"\")","v":0.40545332769999998},{"$f":"IFERROR(INDEX('Data Annex'!$K$1:$AN$4997,MATCH(T$45&\"|\"&$B59,'Data Annex'!$K$1:$K$4997,0),MATCH(T$46,'Data Annex'!$K$1:$AN$1,0)),\"\")","v":0.35607138859999998},{"$f":"IFERROR(INDEX('Data Annex'!$K$1:$AN$4997,MATCH(U$45&\"|\"&$B59,'Data Annex'!$K$1:$K$4997,0),MATCH(U$46,'Data Annex'!$K$1:$AN$1,0)),\"\")","v":0.35591389919999999},{"$f":"IFERROR(INDEX('Data Annex'!$K$1:$AN$4997,MATCH(V$45&\"|\"&$B59,'Data Annex'!$K$1:$K$4997,0),MATCH(V$46,'Data Annex'!$K$1:$AN$1,0)),\"\")","v":0.35593598850000002},{"$f":"IFERROR(INDEX('Data Annex'!$K$1:$AN$4997,MATCH(W$45&\"|\"&$B59,'Data Annex'!$K$1:$K$4997,0),MATCH(W$46,'Data Annex'!$K$1:$AN$1,0)),\"\")","v":0.37771960560000001},{"$f":"IFERROR(INDEX('Data Annex'!$K$1:$AN$4997,MATCH(X$45&\"|\"&$B59,'Data Annex'!$K$1:$K$4997,0),MATCH(X$46,'Data Annex'!$K$1:$AN$1,0)),\"\")","v":0.29809942239999998},{"$f":"IFERROR(INDEX('Data Annex'!$K$1:$AN$4997,MATCH(Y$45&\"|\"&$B59,'Data Annex'!$K$1:$K$4997,0),MATCH(Y$46,'Data Annex'!$K$1:$AN$1,0)),\"\")","v":0.34548265150000002},{"$f":"IFERROR(INDEX('Data Annex'!$K$1:$AN$4997,MATCH(Z$45&\"|\"&$B59,'Data Annex'!$K$1:$K$4997,0),MATCH(Z$46,'Data Annex'!$K$1:$AN$1,0)),\"\")","v":0.30681862360000001},{"$f":"IFERROR(INDEX('Data Annex'!$K$1:$AN$4997,MATCH(AA$45&\"|\"&$B59,'Data Annex'!$K$1:$K$4997,0),MATCH(AA$46,'Data Annex'!$K$1:$AN$1,0)),\"\")","v":0.30940421210000002},{"$f":"IFERROR(INDEX('Data Annex'!$K$1:$AN$4997,MATCH(AB$45&\"|\"&$B59,'Data Annex'!$K$1:$K$4997,0),MATCH(AB$46,'Data Annex'!$K$1:$AN$1,0)),\"\")","v":0.32930011640000001}]
[9,"ES",null,"ES",{"$f":"IFERROR(INDEX('Data Annex'!$K$1:$AN$4997,MATCH(E$45&\"|\"&$B60,'Data Annex'!$K$1:$K$4997,0),MATCH(E$46,'Data Annex'!$K$1:$AN$1,0)),\"\")","v":0.43313141710000003},{"$f":"IFERROR(INDEX('Data Annex'!$K$1:$AN$4997,MATCH(F$45&\"|\"&$B60,'Data Annex'!$K$1:$K$4997,0),MATCH(F$46,'Data Annex'!$K$1:$AN$1,0)),\"\")","v":0.4328829038},{"$f":"IFERROR(INDEX('Data Annex'!$K$1:$AN$4997,MATCH(G$45&\"|\"&$B60,'Data Annex'!$K$1:$K$4997,0),MATCH(G$46,'Data Annex'!$K$1:$AN$1,0)),\"\")","v":0.44303835819999998},{"$f":"IFERROR(INDEX('Data Annex'!$K$1:$AN$4997,MATCH(H$45&\"|\"&$B60,'Data Annex'!$K$1:$K$4997,0),MATCH(H$46,'Data Annex'!$K$1:$AN$1,0)),\"\")","v":0.4492101027},{"$f":"IFERROR(INDEX('Data Annex'!$K$1:$AN$4997,MATCH(I$45&\"|\"&$B60,'Data Annex'!$K$1:$K$4997,0),MATCH(I$46,'Data Annex'!$K$1:$AN$1,0)),\"\")","v":0.38289977149999999},{"$f":"IFERROR(INDEX('Data Annex'!$K$1:$AN$4997,MATCH(J$45&\"|\"&$B60,'Data Annex'!$K$1:$K$4997,0),MATCH(J$46,'Data Annex'!$K$1:$AN$1,0)),\"\")","v":0.3922529703},{"$f":"IFERROR(INDEX('Data Annex'!$K$1:$AN$4997,MATCH(K$45&\"|\"&$B60,'Data Annex'!$K$1:$K$4997,0),MATCH(K$46,'Data Annex'!$K$1:$AN$1,0)),\"\")","v":0.391809407},{"$f":"IFERROR(INDEX('Data Annex'!$K$1:$AN$4997,MATCH(L$45&\"|\"&$B60,'Data Annex'!$K$1:$K$4997,0),MATCH(L$46,'Data Annex'!$K$1:$AN$1,0)),\"\")","v":0.41819565469999997},{"$f":"IFERROR(INDEX('Data Annex'!$K$1:$AN$4997,MATCH(M$45&\"|\"&$B60,'Data Annex'!$K$1:$K$4997,0),MATCH(M$46,'Data Annex'!$K$1:$AN$1,0)),\"\")","v":0.24500609109999999},{"$f":"IFERROR(INDEX('Data Annex'!$K$1:$AN$4997,MATCH(N$45&\"|\"&$B60,'Data Annex'!$K$1:$K$4997,0),MATCH(N$46,'Data Annex'!$K$1:$AN$1,0)),\"\")","v":0.2510281714},{"$f":"IFERROR(INDEX('Data Annex'!$K$1:$AN$4997,MATCH(O$45&\"|\"&$B60,'Data Annex'!$K$1:$K$4997,0),MATCH(O$46,'Data Annex'!$K$1:$AN$1,0)),\"\")","v":0.2420563201},{"$f":"IFERROR(INDEX('Data Annex'!$K$1:$AN$4997,MATCH(P$45&\"|\"&$B60,'Data Annex'!$K$1:$K$4997,0),MATCH(P$46,'Data Annex'!$K$1:$AN$1,0)),\"\")","v":0.2407399301},{"$f":"IFERROR(INDEX('Data Annex'!$K$1:$AN$4997,MATCH(Q$45&\"|\"&$B60,'Data Annex'!$K$1:$K$4997,0),MATCH(Q$46,'Data Annex'!$K$1:$AN$1,0)),\"\")","v":0.4970165017},{"$f":"IFERROR(INDEX('Data Annex'!$K$1:$AN$4997,MATCH(R$45&\"|\"&$B60,'Data Annex'!$K$1:$K$4997,0),MATCH(R$46,'Data Annex'!$K$1:$AN$1,0)),\"\")","v":0.48567023599999998},{"$f":"IFERROR(INDEX('Data Annex'!$K$1:$AN$4997,MATCH(S$45&\"|\"&$B60,'Data Annex'!$K$1:$K$4997,0),MATCH(S$46,'Data Annex'!$K$1:$AN$1,0)),\"\")","v":0.50593358860000004},{"$f":"IFERROR(INDEX('Data Annex'!$K$1:$AN$4997,MATCH(T$45&\"|\"&$B60,'Data Annex'!$K$1:$K$4997,0),MATCH(T$46,'Data Annex'!$K$1:$AN$1,0)),\"\")","v":0.4868256581},{"$f":"IFERROR(INDEX('Data Annex'!$K$1:$AN$4997,MATCH(U$45&\"|\"&$B60,'Data Annex'!$K$1:$K$4997,0),MATCH(U$46,'Data Annex'!$K$1:$AN$1,0)),\"\")","v":0.48041992259999999},{"$f":"IFERROR(INDEX('Data Annex'!$K$1:$AN$4997,MATCH(V$45&\"|\"&$B60,'Data Annex'!$K$1:$K$4997,0),MATCH(V$46,'Data Annex'!$K$1:$AN$1,0)),\"\")","v":0.49009621180000001},{"$f":"IFERROR(INDEX('Data Annex'!$K$1:$AN$4997,MATCH(W$45&\"|\"&$B60,'Data Annex'!$K$1:$K$4997,0),MATCH(W$46,'Data Annex'!$K$1:$AN$1,0)),\"\")","v":0.501852882},{"$f":"IFERROR(INDEX('Data Annex'!$K$1:$AN$4997,MATCH(X$45&\"|\"&$B60,'Data Annex'!$K$1:$K$4997,0),MATCH(X$46,'Data Annex'!$K$1:$AN$1,0)),\"\")","v":0.50830276320000001},{"$f":"IFERROR(INDEX('Data Annex'!$K$1:$AN$4997,MATCH(Y$45&\"|\"&$B60,'Data Annex'!$K$1:$K$4997,0),MATCH(Y$46,'Data Annex'!$K$1:$AN$1,0)),\"\")","v":0.35814363069999999},{"$f":"IFERROR(INDEX('Data Annex'!$K$1:$AN$4997,MATCH(Z$45&\"|\"&$B60,'Data Annex'!$K$1:$K$4997,0),MATCH(Z$46,'Data Annex'!$K$1:$AN$1,0)),\"\")","v":0.36013950430000002},{"$f":"IFERROR(INDEX('Data Annex'!$K$1:$AN$4997,MATCH(AA$45&\"|\"&$B60,'Data Annex'!$K$1:$K$4997,0),MATCH(AA$46,'Data Annex'!$K$1:$AN$1,0)),\"\")","v":0.36629557169999999},{"$f":"IFERROR(INDEX('Data Annex'!$K$1:$AN$4997,MATCH(AB$45&\"|\"&$B60,'Data Annex'!$K$1:$K$4997,0),MATCH(AB$46,'Data Annex'!$K$1:$AN$1,0)),\"\")","v":0.38260641509999999}]
[10,"FI",null,"FI",{"$f":"IFERROR(INDEX('Data Annex'!$K$1:$AN$4997,MATCH(E$45&\"|\"&$B61,'Data Annex'!$K$1:$K$4997,0),MATCH(E$46,'Data Annex'!$K$1:$AN$1,0)),\"\")","v":0.31265153670000001},{"$f":"IFERROR(INDEX('Data Annex'!$K$1:$AN$4997,MATCH(F$45&\"|\"&$B61,'Data Annex'!$K$1:$K$4997,0),MATCH(F$46,'Data Annex'!$K$1:$AN$1,0)),\"\")","v":0.31813780549999998},{"$f":"IFERROR(INDEX('Data Annex'!$K$1:$AN$4997,MATCH(G$45&\"|\"&$B61,'Data Annex'!$K$1:$K$4997,0),MATCH(G$46,'Data Annex'!$K$1:$AN$1,0)),\"\")","v":0.30671869759999998},{"$f":"IFERROR(INDEX('Data Annex'!$K$1:$AN$4997,MATCH(H$45&\"|\"&$B61,'Data Annex'!$K$1:$K$4997,0),MATCH(H$46,'Data Annex'!$K$1:$AN$1,0)),\"\")","v":0.29535808569999999},{"$f":"IFERROR(INDEX('Data Annex'!$K$1:$AN$4997,MATCH(I$45&\"|\"&$B61,'Data Annex'!$K$1:$K$4997,0),MATCH(I$46,'Data Annex'!$K$1:$AN$1,0)),\"\")","v":0.18988895629999999},{"$f":"IFERROR(INDEX('Data Annex'!$K$1:$AN$4997,MATCH(J$45&\"|\"&$B61,'Data Annex'!$K$1:$K$4997,0),MATCH(J$46,'Data Annex'!$K$1:$AN$1,0)),\"\")","v":0.2201186681},{"$f":"IFERROR(INDEX('Data Annex'!$K$1:$AN$4997,MATCH(K$45&\"|\"&$B61,'Data Annex'!$K$1:$K$4997,0),MATCH(K$46,'Data Annex'!$K$1:$AN$1,0)),\"\")","v":0.20553808130000001},{"$f":"IFERROR(INDEX('Data Annex'!$K$1:$AN$4997,MATCH(L$45&\"|\"&$B61,'Data Annex'!$K$1:$K$4997,0),MATCH(L$46,'Data Annex'!$K$1:$AN$1,0)),\"\")","v":0.19299049930000001},{"$f":"IFERROR(INDEX('Data Annex'!$K$1:$AN$4997,MATCH(M$45&\"|\"&$B61,'Data Annex'!$K$1:$K$4997,0),MATCH(M$46,'Data Annex'!$K$1:$AN$1,0)),\"\")","v":5.0889673400000002E-2},{"$f":"IFERROR(INDEX('Data Annex'!$K$1:$AN$4997,MATCH(N$45&\"|\"&$B61,'Data Annex'!$K$1:$K$4997,0),MATCH(N$46,'Data Annex'!$K$1:$AN$1,0)),\"\")","v":5.8676722399999999E-2},{"$f":"IFERROR(INDEX('Data Annex'!$K$1:$AN$4997,MATCH(O$45&\"|\"&$B61,'Data Annex'!$K$1:$K$4997,0),MATCH(O$46,'Data Annex'!$K$1:$AN$1,0)),\"\")","v":5.79542745E-2},{"$f":"IFERROR(INDEX('Data Annex'!$K$1:$AN$4997,MATCH(P$45&\"|\"&$B61,'Data Annex'!$K$1:$K$4997,0),MATCH(P$46,'Data Annex'!$K$1:$AN$1,0)),\"\")","v":6.3386732799999998E-2},{"$f":"IFERROR(INDEX('Data Annex'!$K$1:$AN$4997,MATCH(Q$45&\"|\"&$B61,'Data Annex'!$K$1:$K$4997,0),MATCH(Q$46,'Data Annex'!$K$1:$AN$1,0)),\"\")","v":0.41768110780000001},{"$f":"IFERROR(INDEX('Data Annex'!$K$1:$AN$4997,MATCH(R$45&\"|\"&$B61,'Data Annex'!$K$1:$K$4997,0),MATCH(R$46,'Data Annex'!$K$1:$AN$1,0)),\"\")","v":0.4304522288},{"$f":"IFERROR(INDEX('Data Annex'!$K$1:$AN$4997,MATCH(S$45&\"|\"&$B61,'Data Annex'!$K$1:$K$4997,0),MATCH(S$46,'Data Annex'!$K$1:$AN$1,0)),\"\")","v":0.43834808829999999},{"$f":"IFERROR(INDEX('Data Annex'!$K$1:$AN$4997,MATCH(T$45&\"|\"&$B61,'Data Annex'!$K$1:$K$4997,0),MATCH(T$46,'Data Annex'!$K$1:$AN$1,0)),\"\")","v":0.42920958040000001},{"$f":"IFERROR(INDEX('Data Annex'!$K$1:$AN$4997,MATCH(U$45&\"|\"&$B61,'Data Annex'!$K$1:$K$4997,0),MATCH(U$46,'Data Annex'!$K$1:$AN$1,0)),\"\")","v":0.42029832080000001},{"$f":"IFERROR(INDEX('Data Annex'!$K$1:$AN$4997,MATCH(V$45&\"|\"&$B61,'Data Annex'!$K$1:$K$4997,0),MATCH(V$46,'Data Annex'!$K$1:$AN$1,0)),\"\")","v":0.42379336010000002},{"$f":"IFERROR(INDEX('Data Annex'!$K$1:$AN$4997,MATCH(W$45&\"|\"&$B61,'Data Annex'!$K$1:$K$4997,0),MATCH(W$46,'Data Annex'!$K$1:$AN$1,0)),\"\")","v":0.38433933139999998},{"$f":"IFERROR(INDEX('Data Annex'!$K$1:$AN$4997,MATCH(X$45&\"|\"&$B61,'Data Annex'!$K$1:$K$4997,0),MATCH(X$46,'Data Annex'!$K$1:$AN$1,0)),\"\")","v":0.40779211329999998},{"$f":"IFERROR(INDEX('Data Annex'!$K$1:$AN$4997,MATCH(Y$45&\"|\"&$B61,'Data Annex'!$K$1:$K$4997,0),MATCH(Y$46,'Data Annex'!$K$1:$AN$1,0)),\"\")","v":0.18974097719999999},{"$f":"IFERROR(INDEX('Data Annex'!$K$1:$AN$4997,MATCH(Z$45&\"|\"&$B61,'Data Annex'!$K$1:$K$4997,0),MATCH(Z$46,'Data Annex'!$K$1:$AN$1,0)),\"\")","v":0.2397475537},{"$f":"IFERROR(INDEX('Data Annex'!$K$1:$AN$4997,MATCH(AA$45&\"|\"&$B61,'Data Annex'!$K$1:$K$4997,0),MATCH(AA$46,'Data Annex'!$K$1:$AN$1,0)),\"\")","v":0.21479960619999999},{"$f":"IFERROR(INDEX('Data Annex'!$K$1:$AN$4997,MATCH(AB$45&\"|\"&$B61,'Data Annex'!$K$1:$K$4997,0),MATCH(AB$46,'Data Annex'!$K$1:$AN$1,0)),\"\")","v":0.24261175239999999}]
[11,"FR",null,"FR",{"$f":"IFERROR(INDEX('Data Annex'!$K$1:$AN$4997,MATCH(E$45&\"|\"&$B62,'Data Annex'!$K$1:$K$4997,0),MATCH(E$46,'Data Annex'!$K$1:$AN$1,0)),\"\")","v":0.503214155},{"$f":"IFERROR(INDEX('Data Annex'!$K$1:$AN$4997,MATCH(F$45&\"|\"&$B62,'Data Annex'!$K$1:$K$4997,0),MATCH(F$46,'Data Annex'!$K$1:$AN$1,0)),\"\")","v":0.49517965349999998},{"$f":"IFERROR(INDEX('Data Annex'!$K$1:$AN$4997,MATCH(G$45&\"|\"&$B62,'Data Annex'!$K$1:$K$4997,0),MATCH(G$46,'Data Annex'!$K$1:$AN$1,0)),\"\")","v":0.4876298443},{"$f":"IFERROR(INDEX('Data Annex'!$K$1:$AN$4997,MATCH(H$45&\"|\"&$B62,'Data Annex'!$K$1:$K$4997,0),MATCH(H$46,'Data Annex'!$K$1:$AN$1,0)),\"\")","v":0.49054600199999998},{"$f":"IFERROR(INDEX('Data Annex'!$K$1:$AN$4997,MATCH(I$45&\"|\"&$B62,'Data Annex'!$K$1:$K$4997,0),MATCH(I$46,'Data Annex'!$K$1:$AN$1,0)),\"\")","v":0.48927757249999998},{"$f":"IFERROR(INDEX('Data Annex'!$K$1:$AN$4997,MATCH(J$45&\"|\"&$B62,'Data Annex'!$K$1:$K$4997,0),MATCH(J$46,'Data Annex'!$K$1:$AN$1,0)),\"\")","v":0.48632172239999999},{"$f":"IFERROR(INDEX('Data Annex'!$K$1:$AN$4997,MATCH(K$45&\"|\"&$B62,'Data Annex'!$K$1:$K$4997,0),MATCH(K$46,'Data Annex'!$K$1:$AN$1,0)),\"\")","v":0.48408270739999998},{"$f":"IFERROR(INDEX('Data Annex'!$K$1:$AN$4997,MATCH(L$45&\"|\"&$B62,'Data Annex'!$K$1:$K$4997,0),MATCH(L$46,'Data Annex'!$K$1:$AN$1,0)),\"\")","v":0.48921705700000001},{"$f":"IFERROR(INDEX('Data Annex'!$K$1:$AN$4997,MATCH(M$45&\"|\"&$B62,'Data Annex'!$K$1:$K$4997,0),MATCH(M$46,'Data Annex'!$K$1:$AN$1,0)),\"\")","v":0.2503697178},{"$f":"IFERROR(INDEX('Data Annex'!$K$1:$AN$4997,MATCH(N$45&\"|\"&$B62,'Data Annex'!$K$1:$K$4997,0),MATCH(N$46,'Data Annex'!$K$1:$AN$1,0)),\"\")","v":0.231628743},{"$f":"IFERROR(INDEX('Data Annex'!$K$1:$AN$4997,MATCH(O$45&\"|\"&$B62,'Data Annex'!$K$1:$K$4997,0),MATCH(O$46,'Data Annex'!$K$1:$AN$1,0)),\"\")","v":0.23519987240000001},{"$f":"IFERROR(INDEX('Data Annex'!$K$1:$AN$4997,MATCH(P$45&\"|\"&$B62,'Data Annex'!$K$1:$K$4997,0),MATCH(P$46,'Data Annex'!$K$1:$AN$1,0)),\"\")","v":0.25500146759999998},{"$f":"IFERROR(INDEX('Data Annex'!$K$1:$AN$4997,MATCH(Q$45&\"|\"&$B62,'Data Annex'!$K$1:$K$4997,0),MATCH(Q$46,'Data Annex'!$K$1:$AN$1,0)),\"\")","v":0.51762603870000001},{"$f":"IFERROR(INDEX('Data Annex'!$K$1:$AN$4997,MATCH(R$45&\"|\"&$B62,'Data Annex'!$K$1:$K$4997,0),MATCH(R$46,'Data Annex'!$K$1:$AN$1,0)),\"\")","v":0.5051770069},{"$f":"IFERROR(INDEX('Data Annex'!$K$1:$AN$4997,MATCH(S$45&\"|\"&$B62,'Data Annex'!$K$1:$K$4997,0),MATCH(S$46,'Data Annex'!$K$1:$AN$1,0)),\"\")","v":0.49544106570000002},{"$f":"IFERROR(INDEX('Data Annex'!$K$1:$AN$4997,MATCH(T$45&\"|\"&$B62,'Data Annex'!$K$1:$K$4997,0),MATCH(T$46,'Data Annex'!$K$1:$AN$1,0)),\"\")","v":0.49335154460000002},{"$f":"IFERROR(INDEX('Data Annex'!$K$1:$AN$4997,MATCH(U$45&\"|\"&$B62,'Data Annex'!$K$1:$K$4997,0),MATCH(U$46,'Data Annex'!$K$1:$AN$1,0)),\"\")","v":0.51451366870000004},{"$f":"IFERROR(INDEX('Data Annex'!$K$1:$AN$4997,MATCH(V$45&\"|\"&$B62,'Data Annex'!$K$1:$K$4997,0),MATCH(V$46,'Data Annex'!$K$1:$AN$1,0)),\"\")","v":0.49687484850000002},{"$f":"IFERROR(INDEX('Data Annex'!$K$1:$AN$4997,MATCH(W$45&\"|\"&$B62,'Data Annex'!$K$1:$K$4997,0),MATCH(W$46,'Data Annex'!$K$1:$AN$1,0)),\"\")","v":0.50494263049999999},{"$f":"IFERROR(INDEX('Data Annex'!$K$1:$AN$4997,MATCH(X$45&\"|\"&$B62,'Data Annex'!$K$1:$K$4997,0),MATCH(X$46,'Data Annex'!$K$1:$AN$1,0)),\"\")","v":0.49647471319999997},{"$f":"IFERROR(INDEX('Data Annex'!$K$1:$AN$4997,MATCH(Y$45&\"|\"&$B62,'Data Annex'!$K$1:$K$4997,0),MATCH(Y$46,'Data Annex'!$K$1:$AN$1,0)),\"\")","v":0.31328903330000002},{"$f":"IFERROR(INDEX('Data Annex'!$K$1:$AN$4997,MATCH(Z$45&\"|\"&$B62,'Data Annex'!$K$1:$K$4997,0),MATCH(Z$46,'Data Annex'!$K$1:$AN$1,0)),\"\")","v":0.31116170669999998},{"$f":"IFERROR(INDEX('Data Annex'!$K$1:$AN$4997,MATCH(AA$45&\"|\"&$B62,'Data Annex'!$K$1:$K$4997,0),MATCH(AA$46,'Data Annex'!$K$1:$AN$1,0)),\"\")","v":0.31806793049999998},{"$f":"IFERROR(INDEX('Data Annex'!$K$1:$AN$4997,MATCH(AB$45&\"|\"&$B62,'Data Annex'!$K$1:$K$4997,0),MATCH(AB$46,'Data Annex'!$K$1:$AN$1,0)),\"\")","v":0.30978394939999998}]
[13,"GR",null,"GR",{"$f":"IFERROR(INDEX('Data Annex'!$K$1:$AN$4997,MATCH(E$45&\"|\"&$B63,'Data Annex'!$K$1:$K$4997,0),MATCH(E$46,'Data Annex'!$K$1:$AN$1,0)),\"\")","v":0.45151269109999997},{"$f":"IFERROR(INDEX('Data Annex'!$K$1:$AN$4997,MATCH(F$45&\"|\"&$B63,'Data Annex'!$K$1:$K$4997,0),MATCH(F$46,'Data Annex'!$K$1:$AN$1,0)),\"\")","v":0.44549832890000002},{"$f":"IFERROR(INDEX('Data Annex'!$K$1:$AN$4997,MATCH(G$45&\"|\"&$B63,'Data Annex'!$K$1:$K$4997,0),MATCH(G$46,'Data Annex'!$K$1:$AN$1,0)),\"\")","v":0.44855001700000002},{"$f":"IFERROR(INDEX('Data Annex'!$K$1:$AN$4997,MATCH(H$45&\"|\"&$B63,'Data Annex'!$K$1:$K$4997,0),MATCH(H$46,'Data Annex'!$K$1:$AN$1,0)),\"\")","v":0.4473044705},{"$f":"IFERROR(INDEX('Data Annex'!$K$1:$AN$4997,MATCH(I$45&\"|\"&$B63,'Data Annex'!$K$1:$K$4997,0),MATCH(I$46,'Data Annex'!$K$1:$AN$1,0)),\"\")","v":0.41439415210000002},{"$f":"IFERROR(INDEX('Data Annex'!$K$1:$AN$4997,MATCH(J$45&\"|\"&$B63,'Data Annex'!$K$1:$K$4997,0),MATCH(J$46,'Data Annex'!$K$1:$AN$1,0)),\"\")","v":0.40847807349999998},{"$f":"IFERROR(INDEX('Data Annex'!$K$1:$AN$4997,MATCH(K$45&\"|\"&$B63,'Data Annex'!$K$1:$K$4997,0),MATCH(K$46,'Data Annex'!$K$1:$AN$1,0)),\"\")","v":0.41245779469999999},{"$f":"IFERROR(INDEX('Data Annex'!$K$1:$AN$4997,MATCH(L$45&\"|\"&$B63,'Data Annex'!$K$1:$K$4997,0),MATCH(L$46,'Data Annex'!$K$1:$AN$1,0)),\"\")","v":0.41663220359999997},{"$f":"IFERROR(INDEX('Data Annex'!$K$1:$AN$4997,MATCH(M$45&\"|\"&$B63,'Data Annex'!$K$1:$K$4997,0),MATCH(M$46,'Data Annex'!$K$1:$AN$1,0)),\"\")","v":0.33272505759999998},{"$f":"IFERROR(INDEX('Data Annex'!$K$1:$AN$4997,MATCH(N$45&\"|\"&$B63,'Data Annex'!$K$1:$K$4997,0),MATCH(N$46,'Data Annex'!$K$1:$AN$1,0)),\"\")","v":0.3273254511},{"$f":"IFERROR(INDEX('Data Annex'!$K$1:$AN$4997,MATCH(O$45&\"|\"&$B63,'Data Annex'!$K$1:$K$4997,0),MATCH(O$46,'Data Annex'!$K$1:$AN$1,0)),\"\")","v":0.32710857319999997},{"$f":"IFERROR(INDEX('Data Annex'!$K$1:$AN$4997,MATCH(P$45&\"|\"&$B63,'Data Annex'!$K$1:$K$4997,0),MATCH(P$46,'Data Annex'!$K$1:$AN$1,0)),\"\")","v":0.31688291330000001},{"$f":"IFERROR(INDEX('Data Annex'!$K$1:$AN$4997,MATCH(Q$45&\"|\"&$B63,'Data Annex'!$K$1:$K$4997,0),MATCH(Q$46,'Data Annex'!$K$1:$AN$1,0)),\"\")","v":0.48673093690000002},{"$f":"IFERROR(INDEX('Data Annex'!$K$1:$AN$4997,MATCH(R$45&\"|\"&$B63,'Data Annex'!$K$1:$K$4997,0),MATCH(R$46,'Data Annex'!$K$1:$AN$1,0)),\"\")","v":0.48475841749999998},{"$f":"IFERROR(INDEX('Data Annex'!$K$1:$AN$4997,MATCH(S$45&\"|\"&$B63,'Data Annex'!$K$1:$K$4997,0),MATCH(S$46,'Data Annex'!$K$1:$AN$1,0)),\"\")","v":0.48770984309999998},{"$f":"IFERROR(INDEX('Data Annex'!$K$1:$AN$4997,MATCH(T$45&\"|\"&$B63,'Data Annex'!$K$1:$K$4997,0),MATCH(T$46,'Data Annex'!$K$1:$AN$1,0)),\"\")","v":0.4777370037},{"$f":"IFERROR(INDEX('Data Annex'!$K$1:$AN$4997,MATCH(U$45&\"|\"&$B63,'Data Annex'!$K$1:$K$4997,0),MATCH(U$46,'Data Annex'!$K$1:$AN$1,0)),\"\")","v":0.49359405179999999},{"$f":"IFERROR(INDEX('Data Annex'!$K$1:$AN$4997,MATCH(V$45&\"|\"&$B63,'Data Annex'!$K$1:$K$4997,0),MATCH(V$46,'Data Annex'!$K$1:$AN$1,0)),\"\")","v":0.4943613342},{"$f":"IFERROR(INDEX('Data Annex'!$K$1:$AN$4997,MATCH(W$45&\"|\"&$B63,'Data Annex'!$K$1:$K$4997,0),MATCH(W$46,'Data Annex'!$K$1:$AN$1,0)),\"\")","v":0.49653170720000001},{"$f":"IFERROR(INDEX('Data Annex'!$K$1:$AN$4997,MATCH(X$45&\"|\"&$B63,'Data Annex'!$K$1:$K$4997,0),MATCH(X$46,'Data Annex'!$K$1:$AN$1,0)),\"\")","v":0.4801586477},{"$f":"IFERROR(INDEX('Data Annex'!$K$1:$AN$4997,MATCH(Y$45&\"|\"&$B63,'Data Annex'!$K$1:$K$4997,0),MATCH(Y$46,'Data Annex'!$K$1:$AN$1,0)),\"\")","v":0.39219180149999999},{"$f":"IFERROR(INDEX('Data Annex'!$K$1:$AN$4997,MATCH(Z$45&\"|\"&$B63,'Data Annex'!$K$1:$K$4997,0),MATCH(Z$46,'Data Annex'!$K$1:$AN$1,0)),\"\")","v":0.38700797529999997},{"$f":"IFERROR(INDEX('Data Annex'!$K$1:$AN$4997,MATCH(AA$45&\"|\"&$B63,'Data Annex'!$K$1:$K$4997,0),MATCH(AA$46,'Data Annex'!$K$1:$AN$1,0)),\"\")","v":0.38796970060000002},{"$f":"IFERROR(INDEX('Data Annex'!$K$1:$AN$4997,MATCH(AB$45&\"|\"&$B63,'Data Annex'!$K$1:$K$4997,0),MATCH(AB$46,'Data Annex'!$K$1:$AN$1,0)),\"\")","v":0.38489833029999998}]
[14,"HR",null,"HR",{"$f":"IFERROR(INDEX('Data Annex'!$K$1:$AN$4997,MATCH(E$45&\"|\"&$B64,'Data Annex'!$K$1:$K$4997,0),MATCH(E$46,'Data Annex'!$K$1:$AN$1,0)),\"\")","v":0.67811870799999996},{"$f":"IFERROR(INDEX('Data Annex'!$K$1:$AN$4997,MATCH(F$45&\"|\"&$B64,'Data Annex'!$K$1:$K$4997,0),MATCH(F$46,'Data Annex'!$K$1:$AN$1,0)),\"\")","v":0.67484730810000004},{"$f":"IFERROR(INDEX('Data Annex'!$K$1:$AN$4997,MATCH(G$45&\"|\"&$B64,'Data Annex'!$K$1:$K$4997,0),MATCH(G$46,'Data Annex'!$K$1:$AN$1,0)),\"\")","v":0.67516264179999996},{"$f":"IFERROR(INDEX('Data Annex'!$K$1:$AN$4997,MATCH(H$45&\"|\"&$B64,'Data Annex'!$K$1:$K$4997,0),MATCH(H$46,'Data Annex'!$K$1:$AN$1,0)),\"\")","v":0.62872757820000003},{"$f":"IFERROR(INDEX('Data Annex'!$K$1:$AN$4997,MATCH(I$45&\"|\"&$B64,'Data Annex'!$K$1:$K$4997,0),MATCH(I$46,'Data Annex'!$K$1:$AN$1,0)),\"\")","v":0.66961360950000004},{"$f":"IFERROR(INDEX('Data Annex'!$K$1:$AN$4997,MATCH(J$45&\"|\"&$B64,'Data Annex'!$K$1:$K$4997,0),MATCH(J$46,'Data Annex'!$K$1:$AN$1,0)),\"\")","v":0.6543462578},{"$f":"IFERROR(INDEX('Data Annex'!$K$1:$AN$4997,MATCH(K$45&\"|\"&$B64,'Data Annex'!$K$1:$K$4997,0),MATCH(K$46,'Data Annex'!$K$1:$AN$1,0)),\"\")","v":0.66261722710000004},{"$f":"IFERROR(INDEX('Data Annex'!$K$1:$AN$4997,MATCH(L$45&\"|\"&$B64,'Data Annex'!$K$1:$K$4997,0),MATCH(L$46,'Data Annex'!$K$1:$AN$1,0)),\"\")","v":0.59848599199999997},{"$f":"IFERROR(INDEX('Data Annex'!$K$1:$AN$4997,MATCH(M$45&\"|\"&$B64,'Data Annex'!$K$1:$K$4997,0),MATCH(M$46,'Data Annex'!$K$1:$AN$1,0)),\"\")","v":0.51068221150000004},{"$f":"IFERROR(INDEX('Data Annex'!$K$1:$AN$4997,MATCH(N$45&\"|\"&$B64,'Data Annex'!$K$1:$K$4997,0),MATCH(N$46,'Data Annex'!$K$1:$AN$1,0)),\"\")","v":0.65767818710000003},{"$f":"IFERROR(INDEX('Data Annex'!$K$1:$AN$4997,MATCH(O$45&\"|\"&$B64,'Data Annex'!$K$1:$K$4997,0),MATCH(O$46,'Data Annex'!$K$1:$AN$1,0)),\"\")","v":0.64371867849999997},{"$f":"IFERROR(INDEX('Data Annex'!$K$1:$AN$4997,MATCH(P$45&\"|\"&$B64,'Data Annex'!$K$1:$K$4997,0),MATCH(P$46,'Data Annex'!$K$1:$AN$1,0)),\"\")","v":0.55946219109999995},{"$f":"IFERROR(INDEX('Data Annex'!$K$1:$AN$4997,MATCH(Q$45&\"|\"&$B64,'Data Annex'!$K$1:$K$4997,0),MATCH(Q$46,'Data Annex'!$K$1:$AN$1,0)),\"\")","v":0.67849798110000004},{"$f":"IFERROR(INDEX('Data Annex'!$K$1:$AN$4997,MATCH(R$45&\"|\"&$B64,'Data Annex'!$K$1:$K$4997,0),MATCH(R$46,'Data Annex'!$K$1:$AN$1,0)),\"\")","v":0.68395007630000004},{"$f":"IFERROR(INDEX('Data Annex'!$K$1:$AN$4997,MATCH(S$45&\"|\"&$B64,'Data Annex'!$K$1:$K$4997,0),MATCH(S$46,'Data Annex'!$K$1:$AN$1,0)),\"\")","v":0.67908165340000004},{"$f":"IFERROR(INDEX('Data Annex'!$K$1:$AN$4997,MATCH(T$45&\"|\"&$B64,'Data Annex'!$K$1:$K$4997,0),MATCH(T$46,'Data Annex'!$K$1:$AN$1,0)),\"\")","v":0.64717443939999997},{"$f":"IFERROR(INDEX('Data Annex'!$K$1:$AN$4997,MATCH(U$45&\"|\"&$B64,'Data Annex'!$K$1:$K$4997,0),MATCH(U$46,'Data Annex'!$K$1:$AN$1,0)),\"\")","v":0.7021273804},{"$f":"IFERROR(INDEX('Data Annex'!$K$1:$AN$4997,MATCH(V$45&\"|\"&$B64,'Data Annex'!$K$1:$K$4997,0),MATCH(V$46,'Data Annex'!$K$1:$AN$1,0)),\"\")","v":0.69821941769999996},{"$f":"IFERROR(INDEX('Data Annex'!$K$1:$AN$4997,MATCH(W$45&\"|\"&$B64,'Data Annex'!$K$1:$K$4997,0),MATCH(W$46,'Data Annex'!$K$1:$AN$1,0)),\"\")","v":0.68125371499999998},{"$f":"IFERROR(INDEX('Data Annex'!$K$1:$AN$4997,MATCH(X$45&\"|\"&$B64,'Data Annex'!$K$1:$K$4997,0),MATCH(X$46,'Data Annex'!$K$1:$AN$1,0)),\"\")","v":0.62137027580000004},{"$f":"IFERROR(INDEX('Data Annex'!$K$1:$AN$4997,MATCH(Y$45&\"|\"&$B64,'Data Annex'!$K$1:$K$4997,0),MATCH(Y$46,'Data Annex'!$K$1:$AN$1,0)),\"\")","v":0.52688732159999996},{"$f":"IFERROR(INDEX('Data Annex'!$K$1:$AN$4997,MATCH(Z$45&\"|\"&$B64,'Data Annex'!$K$1:$K$4997,0),MATCH(Z$46,'Data Annex'!$K$1:$AN$1,0)),\"\")","v":0.59496439999999995},{"$f":"IFERROR(INDEX('Data Annex'!$K$1:$AN$4997,MATCH(AA$45&\"|\"&$B64,'Data Annex'!$K$1:$K$4997,0),MATCH(AA$46,'Data Annex'!$K$1:$AN$1,0)),\"\")","v":0.61516966969999998},{"$f":"IFERROR(INDEX('Data Annex'!$K$1:$AN$4997,MATCH(AB$45&\"|\"&$B64,'Data Annex'!$K$1:$K$4997,0),MATCH(AB$46,'Data Annex'!$K$1:$AN$1,0)),\"\")","v":0.62650296660000004}]
[15,"HU",null,"HU",{"$f":"IFERROR(INDEX('Data Annex'!$K$1:$AN$4997,MATCH(E$45&\"|\"&$B65,'Data Annex'!$K$1:$K$4997,0),MATCH(E$46,'Data Annex'!$K$1:$AN$1,0)),\"\")","v":0.65103687460000004},{"$f":"IFERROR(INDEX('Data Annex'!$K$1:$AN$4997,MATCH(F$45&\"|\"&$B65,'Data Annex'!$K$1:$K$4997,0),MATCH(F$46,'Data Annex'!$K$1:$AN$1,0)),\"\")","v":0.66448914049999996},{"$f":"IFERROR(INDEX('Data Annex'!$K$1:$AN$4997,MATCH(G$45&\"|\"&$B65,'Data Annex'!$K$1:$K$4997,0),MATCH(G$46,'Data Annex'!$K$1:$AN$1,0)),\"\")","v":0.65483057239999998},{"$f":"IFERROR(INDEX('Data Annex'!$K$1:$AN$4997,MATCH(H$45&\"|\"&$B65,'Data Annex'!$K$1:$K$4997,0),MATCH(H$46,'Data Annex'!$K$1:$AN$1,0)),\"\")","v":0.62837513190000005},{"$f":"IFERROR(INDEX('Data Annex'!$K$1:$AN$4997,MATCH(I$45&\"|\"&$B65,'Data Annex'!$K$1:$K$4997,0),MATCH(I$46,'Data Annex'!$K$1:$AN$1,0)),\"\")","v":0.70144368079999997},{"$f":"IFERROR(INDEX('Data Annex'!$K$1:$AN$4997,MATCH(J$45&\"|\"&$B65,'Data Annex'!$K$1:$K$4997,0),MATCH(J$46,'Data Annex'!$K$1:$AN$1,0)),\"\")","v":0.70253362190000002},{"$f":"IFERROR(INDEX('Data Annex'!$K$1:$AN$4997,MATCH(K$45&\"|\"&$B65,'Data Annex'!$K$1:$K$4997,0),MATCH(K$46,'Data Annex'!$K$1:$AN$1,0)),\"\")","v":0.69406534720000002},{"$f":"IFERROR(INDEX('Data Annex'!$K$1:$AN$4997,MATCH(L$45&\"|\"&$B65,'Data Annex'!$K$1:$K$4997,0),MATCH(L$46,'Data Annex'!$K$1:$AN$1,0)),\"\")","v":0.66924711290000005},{"$f":"IFERROR(INDEX('Data Annex'!$K$1:$AN$4997,MATCH(M$45&\"|\"&$B65,'Data Annex'!$K$1:$K$4997,0),MATCH(M$46,'Data Annex'!$K$1:$AN$1,0)),\"\")","v":0.5895956671},{"$f":"IFERROR(INDEX('Data Annex'!$K$1:$AN$4997,MATCH(N$45&\"|\"&$B65,'Data Annex'!$K$1:$K$4997,0),MATCH(N$46,'Data Annex'!$K$1:$AN$1,0)),\"\")","v":0.59370239869999997},{"$f":"IFERROR(INDEX('Data Annex'!$K$1:$AN$4997,MATCH(O$45&\"|\"&$B65,'Data Annex'!$K$1:$K$4997,0),MATCH(O$46,'Data Annex'!$K$1:$AN$1,0)),\"\")","v":0.57623887750000002},{"$f":"IFERROR(INDEX('Data Annex'!$K$1:$AN$4997,MATCH(P$45&\"|\"&$B65,'Data Annex'!$K$1:$K$4997,0),MATCH(P$46,'Data Annex'!$K$1:$AN$1,0)),\"\")","v":0.56980219769999996},{"$f":"IFERROR(INDEX('Data Annex'!$K$1:$AN$4997,MATCH(Q$45&\"|\"&$B65,'Data Annex'!$K$1:$K$4997,0),MATCH(Q$46,'Data Annex'!$K$1:$AN$1,0)),\"\")","v":0.56511485459999999},{"$f":"IFERROR(INDEX('Data Annex'!$K$1:$AN$4997,MATCH(R$45&\"|\"&$B65,'Data Annex'!$K$1:$K$4997,0),MATCH(R$46,'Data Annex'!$K$1:$AN$1,0)),\"\")","v":0.58750359799999996},{"$f":"IFERROR(INDEX('Data Annex'!$K$1:$AN$4997,MATCH(S$45&\"|\"&$B65,'Data Annex'!$K$1:$K$4997,0),MATCH(S$46,'Data Annex'!$K$1:$AN$1,0)),\"\")","v":0.58437175210000003},{"$f":"IFERROR(INDEX('Data Annex'!$K$1:$AN$4997,MATCH(T$45&\"|\"&$B65,'Data Annex'!$K$1:$K$4997,0),MATCH(T$46,'Data Annex'!$K$1:$AN$1,0)),\"\")","v":0.55112730539999999},{"$f":"IFERROR(INDEX('Data Annex'!$K$1:$AN$4997,MATCH(U$45&\"|\"&$B65,'Data Annex'!$K$1:$K$4997,0),MATCH(U$46,'Data Annex'!$K$1:$AN$1,0)),\"\")","v":0.55503809400000004},{"$f":"IFERROR(INDEX('Data Annex'!$K$1:$AN$4997,MATCH(V$45&\"|\"&$B65,'Data Annex'!$K$1:$K$4997,0),MATCH(V$46,'Data Annex'!$K$1:$AN$1,0)),\"\")","v":0.57859651089999997},{"$f":"IFERROR(INDEX('Data Annex'!$K$1:$AN$4997,MATCH(W$45&\"|\"&$B65,'Data Annex'!$K$1:$K$4997,0),MATCH(W$46,'Data Annex'!$K$1:$AN$1,0)),\"\")","v":0.55106313129999995},{"$f":"IFERROR(INDEX('Data Annex'!$K$1:$AN$4997,MATCH(X$45&\"|\"&$B65,'Data Annex'!$K$1:$K$4997,0),MATCH(X$46,'Data Annex'!$K$1:$AN$1,0)),\"\")","v":0.51171222910000003},{"$f":"IFERROR(INDEX('Data Annex'!$K$1:$AN$4997,MATCH(Y$45&\"|\"&$B65,'Data Annex'!$K$1:$K$4997,0),MATCH(Y$46,'Data Annex'!$K$1:$AN$1,0)),\"\")","v":0.54296370549999995},{"$f":"IFERROR(INDEX('Data Annex'!$K$1:$AN$4997,MATCH(Z$45&\"|\"&$B65,'Data Annex'!$K$1:$K$4997,0),MATCH(Z$46,'Data Annex'!$K$1:$AN$1,0)),\"\")","v":0.57312919429999998},{"$f":"IFERROR(INDEX('Data Annex'!$K$1:$AN$4997,MATCH(AA$45&\"|\"&$B65,'Data Annex'!$K$1:$K$4997,0),MATCH(AA$46,'Data Annex'!$K$1:$AN$1,0)),\"\")","v":0.56019694679999998},{"$f":"IFERROR(INDEX('Data Annex'!$K$1:$AN$4997,MATCH(AB$45&\"|\"&$B65,'Data Annex'!$K$1:$K$4997,0),MATCH(AB$46,'Data Annex'!$K$1:$AN$1,0)),\"\")","v":0.51910426220000006}]
[16,"IE",null,"IE",{"$f":"IFERROR(INDEX('Data Annex'!$K$1:$AN$4997,MATCH(E$45&\"|\"&$B66,'Data Annex'!$K$1:$K$4997,0),MATCH(E$46,'Data Annex'!$K$1:$AN$1,0)),\"\")","v":0.27638564069999999},{"$f":"IFERROR(INDEX('Data Annex'!$K$1:$AN$4997,MATCH(F$45&\"|\"&$B66,'Data Annex'!$K$1:$K$4997,0),MATCH(F$46,'Data Annex'!$K$1:$AN$1,0)),\"\")","v":0.29753918559999998},{"$f":"IFERROR(INDEX('Data Annex'!$K$1:$AN$4997,MATCH(G$45&\"|\"&$B66,'Data Annex'!$K$1:$K$4997,0),MATCH(G$46,'Data Annex'!$K$1:$AN$1,0)),\"\")","v":0.29840683229999998},{"$f":"IFERROR(INDEX('Data Annex'!$K$1:$AN$4997,MATCH(H$45&\"|\"&$B66,'Data Annex'!$K$1:$K$4997,0),MATCH(H$46,'Data Annex'!$K$1:$AN$1,0)),\"\")","v":0.30798506339999998},{"$f":"IFERROR(INDEX('Data Annex'!$K$1:$AN$4997,MATCH(I$45&\"|\"&$B66,'Data Annex'!$K$1:$K$4997,0),MATCH(I$46,'Data Annex'!$K$1:$AN$1,0)),\"\")","v":0.25333240400000001},{"$f":"IFERROR(INDEX('Data Annex'!$K$1:$AN$4997,MATCH(J$45&\"|\"&$B66,'Data Annex'!$K$1:$K$4997,0),MATCH(J$46,'Data Annex'!$K$1:$AN$1,0)),\"\")","v":0.26606927409999998},{"$f":"IFERROR(INDEX('Data Annex'!$K$1:$AN$4997,MATCH(K$45&\"|\"&$B66,'Data Annex'!$K$1:$K$4997,0),MATCH(K$46,'Data Annex'!$K$1:$AN$1,0)),\"\")","v":0.26698671639999999},{"$f":"IFERROR(INDEX('Data Annex'!$K$1:$AN$4997,MATCH(L$45&\"|\"&$B66,'Data Annex'!$K$1:$K$4997,0),MATCH(L$46,'Data Annex'!$K$1:$AN$1,0)),\"\")","v":0.28166725409999999},{"$f":"IFERROR(INDEX('Data Annex'!$K$1:$AN$4997,MATCH(M$45&\"|\"&$B66,'Data Annex'!$K$1:$K$4997,0),MATCH(M$46,'Data Annex'!$K$1:$AN$1,0)),\"\")","v":0.21626598250000001},{"$f":"IFERROR(INDEX('Data Annex'!$K$1:$AN$4997,MATCH(N$45&\"|\"&$B66,'Data Annex'!$K$1:$K$4997,0),MATCH(N$46,'Data Annex'!$K$1:$AN$1,0)),\"\")","v":0.230914117},{"$f":"IFERROR(INDEX('Data Annex'!$K$1:$AN$4997,MATCH(O$45&\"|\"&$B66,'Data Annex'!$K$1:$K$4997,0),MATCH(O$46,'Data Annex'!$K$1:$AN$1,0)),\"\")","v":0.2295060961},{"$f":"IFERROR(INDEX('Data Annex'!$K$1:$AN$4997,MATCH(P$45&\"|\"&$B66,'Data Annex'!$K$1:$K$4997,0),MATCH(P$46,'Data Annex'!$K$1:$AN$1,0)),\"\")","v":0.24569893109999999},{"$f":"IFERROR(INDEX('Data Annex'!$K$1:$AN$4997,MATCH(Q$45&\"|\"&$B66,'Data Annex'!$K$1:$K$4997,0),MATCH(Q$46,'Data Annex'!$K$1:$AN$1,0)),\"\")","v":0.32005705379999999},{"$f":"IFERROR(INDEX('Data Annex'!$K$1:$AN$4997,MATCH(R$45&\"|\"&$B66,'Data Annex'!$K$1:$K$4997,0),MATCH(R$46,'Data Annex'!$K$1:$AN$1,0)),\"\")","v":0.34185507459999998},{"$f":"IFERROR(INDEX('Data Annex'!$K$1:$AN$4997,MATCH(S$45&\"|\"&$B66,'Data Annex'!$K$1:$K$4997,0),MATCH(S$46,'Data Annex'!$K$1:$AN$1,0)),\"\")","v":0.33968782710000001},{"$f":"IFERROR(INDEX('Data Annex'!$K$1:$AN$4997,MATCH(T$45&\"|\"&$B66,'Data Annex'!$K$1:$K$4997,0),MATCH(T$46,'Data Annex'!$K$1:$AN$1,0)),\"\")","v":0.3377042327},{"$f":"IFERROR(INDEX('Data Annex'!$K$1:$AN$4997,MATCH(U$45&\"|\"&$B66,'Data Annex'!$K$1:$K$4997,0),MATCH(U$46,'Data Annex'!$K$1:$AN$1,0)),\"\")","v":0.32114498019999999},{"$f":"IFERROR(INDEX('Data Annex'!$K$1:$AN$4997,MATCH(V$45&\"|\"&$B66,'Data Annex'!$K$1:$K$4997,0),MATCH(V$46,'Data Annex'!$K$1:$AN$1,0)),\"\")","v":0.28922390720000002},{"$f":"IFERROR(INDEX('Data Annex'!$K$1:$AN$4997,MATCH(W$45&\"|\"&$B66,'Data Annex'!$K$1:$K$4997,0),MATCH(W$46,'Data Annex'!$K$1:$AN$1,0)),\"\")","v":0.32300090320000002},{"$f":"IFERROR(INDEX('Data Annex'!$K$1:$AN$4997,MATCH(X$45&\"|\"&$B66,'Data Annex'!$K$1:$K$4997,0),MATCH(X$46,'Data Annex'!$K$1:$AN$1,0)),\"\")","v":0.31430904079999999},{"$f":"IFERROR(INDEX('Data Annex'!$K$1:$AN$4997,MATCH(Y$45&\"|\"&$B66,'Data Annex'!$K$1:$K$4997,0),MATCH(Y$46,'Data Annex'!$K$1:$AN$1,0)),\"\")","v":0.24016341899999999},{"$f":"IFERROR(INDEX('Data Annex'!$K$1:$AN$4997,MATCH(Z$45&\"|\"&$B66,'Data Annex'!$K$1:$K$4997,0),MATCH(Z$46,'Data Annex'!$K$1:$AN$1,0)),\"\")","v":0.29951083160000003},{"$f":"IFERROR(INDEX('Data Annex'!$K$1:$AN$4997,MATCH(AA$45&\"|\"&$B66,'Data Annex'!$K$1:$K$4997,0),MATCH(AA$46,'Data Annex'!$K$1:$AN$1,0)),\"\")","v":0.27601873500000002},{"$f":"IFERROR(INDEX('Data Annex'!$K$1:$AN$4997,MATCH(AB$45&\"|\"&$B66,'Data Annex'!$K$1:$K$4997,0),MATCH(AB$46,'Data Annex'!$K$1:$AN$1,0)),\"\")","v":0.27772512630000001}]
[17,"IS",null,"IS",{"$f":"IFERROR(INDEX('Data Annex'!$K$1:$AN$4997,MATCH(E$45&\"|\"&$B67,'Data Annex'!$K$1:$K$4997,0),MATCH(E$46,'Data Annex'!$K$1:$AN$1,0)),\"\")","v":0.30262644519999998},{"$f":"IFERROR(INDEX('Data Annex'!$K$1:$AN$4997,MATCH(F$45&\"|\"&$B67,'Data Annex'!$K$1:$K$4997,0),MATCH(F$46,'Data Annex'!$K$1:$AN$1,0)),\"\")","v":0.29282189650000001},{"$f":"IFERROR(INDEX('Data Annex'!$K$1:$AN$4997,MATCH(G$45&\"|\"&$B67,'Data Annex'!$K$1:$K$4997,0),MATCH(G$46,'Data Annex'!$K$1:$AN$1,0)),\"\")","v":0.29600627400000001},{"$f":"IFERROR(INDEX('Data Annex'!$K$1:$AN$4997,MATCH(H$45&\"|\"&$B67,'Data Annex'!$K$1:$K$4997,0),MATCH(H$46,'Data Annex'!$K$1:$AN$1,0)),\"\")","v":0.30421958389999998},{"$f":"IFERROR(INDEX('Data Annex'!$K$1:$AN$4997,MATCH(I$45&\"|\"&$B67,'Data Annex'!$K$1:$K$4997,0),MATCH(I$46,'Data Annex'!$K$1:$AN$1,0)),\"\")","v":0.19033331049999999},{"$f":"IFERROR(INDEX('Data Annex'!$K$1:$AN$4997,MATCH(J$45&\"|\"&$B67,'Data Annex'!$K$1:$K$4997,0),MATCH(J$46,'Data Annex'!$K$1:$AN$1,0)),\"\")","v":0.17941959090000001},{"$f":"IFERROR(INDEX('Data Annex'!$K$1:$AN$4997,MATCH(K$45&\"|\"&$B67,'Data Annex'!$K$1:$K$4997,0),MATCH(K$46,'Data Annex'!$K$1:$AN$1,0)),\"\")","v":0.1698374419},{"$f":"IFERROR(INDEX('Data Annex'!$K$1:$AN$4997,MATCH(L$45&\"|\"&$B67,'Data Annex'!$K$1:$K$4997,0),MATCH(L$46,'Data Annex'!$K$1:$AN$1,0)),\"\")","v":0.16924001820000001},{"$f":"IFERROR(INDEX('Data Annex'!$K$1:$AN$4997,MATCH(M$45&\"|\"&$B67,'Data Annex'!$K$1:$K$4997,0),MATCH(M$46,'Data Annex'!$K$1:$AN$1,0)),\"\")","v":7.4553769399999997E-2},{"$f":"IFERROR(INDEX('Data Annex'!$K$1:$AN$4997,MATCH(N$45&\"|\"&$B67,'Data Annex'!$K$1:$K$4997,0),MATCH(N$46,'Data Annex'!$K$1:$AN$1,0)),\"\")","v":6.81387668E-2},{"$f":"IFERROR(INDEX('Data Annex'!$K$1:$AN$4997,MATCH(O$45&\"|\"&$B67,'Data Annex'!$K$1:$K$4997,0),MATCH(O$46,'Data Annex'!$K$1:$AN$1,0)),\"\")","v":5.5403317399999999E-2},{"$f":"IFERROR(INDEX('Data Annex'!$K$1:$AN$4997,MATCH(P$45&\"|\"&$B67,'Data Annex'!$K$1:$K$4997,0),MATCH(P$46,'Data Annex'!$K$1:$AN$1,0)),\"\")","v":6.0239090199999998E-2},{"$f":"IFERROR(INDEX('Data Annex'!$K$1:$AN$4997,MATCH(Q$45&\"|\"&$B67,'Data Annex'!$K$1:$K$4997,0),MATCH(Q$46,'Data Annex'!$K$1:$AN$1,0)),\"\")","v":0.34138618809999999},{"$f":"IFERROR(INDEX('Data Annex'!$K$1:$AN$4997,MATCH(R$45&\"|\"&$B67,'Data Annex'!$K$1:$K$4997,0),MATCH(R$46,'Data Annex'!$K$1:$AN$1,0)),\"\")","v":0.3428578887},{"$f":"IFERROR(INDEX('Data Annex'!$K$1:$AN$4997,MATCH(S$45&\"|\"&$B67,'Data Annex'!$K$1:$K$4997,0),MATCH(S$46,'Data Annex'!$K$1:$AN$1,0)),\"\")","v":0.34660181109999999},{"$f":"IFERROR(INDEX('Data Annex'!$K$1:$AN$4997,MATCH(T$45&\"|\"&$B67,'Data Annex'!$K$1:$K$4997,0),MATCH(T$46,'Data Annex'!$K$1:$AN$1,0)),\"\")","v":0.34879280800000001},{"$f":"IFERROR(INDEX('Data Annex'!$K$1:$AN$4997,MATCH(U$45&\"|\"&$B67,'Data Annex'!$K$1:$K$4997,0),MATCH(U$46,'Data Annex'!$K$1:$AN$1,0)),\"\")","v":0.33074615699999999},{"$f":"IFERROR(INDEX('Data Annex'!$K$1:$AN$4997,MATCH(V$45&\"|\"&$B67,'Data Annex'!$K$1:$K$4997,0),MATCH(V$46,'Data Annex'!$K$1:$AN$1,0)),\"\")","v":0.30512538700000003},{"$f":"IFERROR(INDEX('Data Annex'!$K$1:$AN$4997,MATCH(W$45&\"|\"&$B67,'Data Annex'!$K$1:$K$4997,0),MATCH(W$46,'Data Annex'!$K$1:$AN$1,0)),\"\")","v":0.306121904},{"$f":"IFERROR(INDEX('Data Annex'!$K$1:$AN$4997,MATCH(X$45&\"|\"&$B67,'Data Annex'!$K$1:$K$4997,0),MATCH(X$46,'Data Annex'!$K$1:$AN$1,0)),\"\")","v":0.3101563678},{"$f":"IFERROR(INDEX('Data Annex'!$K$1:$AN$4997,MATCH(Y$45&\"|\"&$B67,'Data Annex'!$K$1:$K$4997,0),MATCH(Y$46,'Data Annex'!$K$1:$AN$1,0)),\"\")","v":0.21206897459999999},{"$f":"IFERROR(INDEX('Data Annex'!$K$1:$AN$4997,MATCH(Z$45&\"|\"&$B67,'Data Annex'!$K$1:$K$4997,0),MATCH(Z$46,'Data Annex'!$K$1:$AN$1,0)),\"\")","v":0.19973320650000001},{"$f":"IFERROR(INDEX('Data Annex'!$K$1:$AN$4997,MATCH(AA$45&\"|\"&$B67,'Data Annex'!$K$1:$K$4997,0),MATCH(AA$46,'Data Annex'!$K$1:$AN$1,0)),\"\")","v":0.1926296767},{"$f":"IFERROR(INDEX('Data Annex'!$K$1:$AN$4997,MATCH(AB$45&\"|\"&$B67,'Data Annex'!$K$1:$K$4997,0),MATCH(AB$46,'Data Annex'!$K$1:$AN$1,0)),\"\")","v":0.2190481323}]
[18,"IT",null,"IT",{"$f":"IFERROR(INDEX('Data Annex'!$K$1:$AN$4997,MATCH(E$45&\"|\"&$B68,'Data Annex'!$K$1:$K$4997,0),MATCH(E$46,'Data Annex'!$K$1:$AN$1,0)),\"\")","v":0.53785875000000005},{"$f":"IFERROR(INDEX('Data Annex'!$K$1:$AN$4997,MATCH(F$45&\"|\"&$B68,'Data Annex'!$K$1:$K$4997,0),MATCH(F$46,'Data Annex'!$K$1:$AN$1,0)),\"\")","v":0.52713335719999999},{"$f":"IFERROR(INDEX('Data Annex'!$K$1:$AN$4997,MATCH(G$45&\"|\"&$B68,'Data Annex'!$K$1:$K$4997,0),MATCH(G$46,'Data Annex'!$K$1:$AN$1,0)),\"\")","v":0.53807245910000001},{"$f":"IFERROR(INDEX('Data Annex'!$K$1:$AN$4997,MATCH(H$45&\"|\"&$B68,'Data Annex'!$K$1:$K$4997,0),MATCH(H$46,'Data Annex'!$K$1:$AN$1,0)),\"\")","v":0.53467597990000004},{"$f":"IFERROR(INDEX('Data Annex'!$K$1:$AN$4997,MATCH(I$45&\"|\"&$B68,'Data Annex'!$K$1:$K$4997,0),MATCH(I$46,'Data Annex'!$K$1:$AN$1,0)),\"\")","v":0.4712214965},{"$f":"IFERROR(INDEX('Data Annex'!$K$1:$AN$4997,MATCH(J$45&\"|\"&$B68,'Data Annex'!$K$1:$K$4997,0),MATCH(J$46,'Data Annex'!$K$1:$AN$1,0)),\"\")","v":0.45980914420000002},{"$f":"IFERROR(INDEX('Data Annex'!$K$1:$AN$4997,MATCH(K$45&\"|\"&$B68,'Data Annex'!$K$1:$K$4997,0),MATCH(K$46,'Data Annex'!$K$1:$AN$1,0)),\"\")","v":0.47236198480000002},{"$f":"IFERROR(INDEX('Data Annex'!$K$1:$AN$4997,MATCH(L$45&\"|\"&$B68,'Data Annex'!$K$1:$K$4997,0),MATCH(L$46,'Data Annex'!$K$1:$AN$1,0)),\"\")","v":0.47564730919999998},{"$f":"IFERROR(INDEX('Data Annex'!$K$1:$AN$4997,MATCH(M$45&\"|\"&$B68,'Data Annex'!$K$1:$K$4997,0),MATCH(M$46,'Data Annex'!$K$1:$AN$1,0)),\"\")","v":0.31940415239999997},{"$f":"IFERROR(INDEX('Data Annex'!$K$1:$AN$4997,MATCH(N$45&\"|\"&$B68,'Data Annex'!$K$1:$K$4997,0),MATCH(N$46,'Data Annex'!$K$1:$AN$1,0)),\"\")","v":0.31815177849999998},{"$f":"IFERROR(INDEX('Data Annex'!$K$1:$AN$4997,MATCH(O$45&\"|\"&$B68,'Data Annex'!$K$1:$K$4997,0),MATCH(O$46,'Data Annex'!$K$1:$AN$1,0)),\"\")","v":0.32987862600000001},{"$f":"IFERROR(INDEX('Data Annex'!$K$1:$AN$4997,MATCH(P$45&\"|\"&$B68,'Data Annex'!$K$1:$K$4997,0),MATCH(P$46,'Data Annex'!$K$1:$AN$1,0)),\"\")","v":0.34428462580000002},{"$f":"IFERROR(INDEX('Data Annex'!$K$1:$AN$4997,MATCH(Q$45&\"|\"&$B68,'Data Annex'!$K$1:$K$4997,0),MATCH(Q$46,'Data Annex'!$K$1:$AN$1,0)),\"\")","v":0.55984454449999999},{"$f":"IFERROR(INDEX('Data Annex'!$K$1:$AN$4997,MATCH(R$45&\"|\"&$B68,'Data Annex'!$K$1:$K$4997,0),MATCH(R$46,'Data Annex'!$K$1:$AN$1,0)),\"\")","v":0.54933729389999997},{"$f":"IFERROR(INDEX('Data Annex'!$K$1:$AN$4997,MATCH(S$45&\"|\"&$B68,'Data Annex'!$K$1:$K$4997,0),MATCH(S$46,'Data Annex'!$K$1:$AN$1,0)),\"\")","v":0.56042826450000005},{"$f":"IFERROR(INDEX('Data Annex'!$K$1:$AN$4997,MATCH(T$45&\"|\"&$B68,'Data Annex'!$K$1:$K$4997,0),MATCH(T$46,'Data Annex'!$K$1:$AN$1,0)),\"\")","v":0.56062187470000002},{"$f":"IFERROR(INDEX('Data Annex'!$K$1:$AN$4997,MATCH(U$45&\"|\"&$B68,'Data Annex'!$K$1:$K$4997,0),MATCH(U$46,'Data Annex'!$K$1:$AN$1,0)),\"\")","v":0.55854806899999998},{"$f":"IFERROR(INDEX('Data Annex'!$K$1:$AN$4997,MATCH(V$45&\"|\"&$B68,'Data Annex'!$K$1:$K$4997,0),MATCH(V$46,'Data Annex'!$K$1:$AN$1,0)),\"\")","v":0.54541870869999998},{"$f":"IFERROR(INDEX('Data Annex'!$K$1:$AN$4997,MATCH(W$45&\"|\"&$B68,'Data Annex'!$K$1:$K$4997,0),MATCH(W$46,'Data Annex'!$K$1:$AN$1,0)),\"\")","v":0.55260554269999995},{"$f":"IFERROR(INDEX('Data Annex'!$K$1:$AN$4997,MATCH(X$45&\"|\"&$B68,'Data Annex'!$K$1:$K$4997,0),MATCH(X$46,'Data Annex'!$K$1:$AN$1,0)),\"\")","v":0.55672191660000003},{"$f":"IFERROR(INDEX('Data Annex'!$K$1:$AN$4997,MATCH(Y$45&\"|\"&$B68,'Data Annex'!$K$1:$K$4997,0),MATCH(Y$46,'Data Annex'!$K$1:$AN$1,0)),\"\")","v":0.44084801470000001},{"$f":"IFERROR(INDEX('Data Annex'!$K$1:$AN$4997,MATCH(Z$45&\"|\"&$B68,'Data Annex'!$K$1:$K$4997,0),MATCH(Z$46,'Data Annex'!$K$1:$AN$1,0)),\"\")","v":0.4447141718},{"$f":"IFERROR(INDEX('Data Annex'!$K$1:$AN$4997,MATCH(AA$45&\"|\"&$B68,'Data Annex'!$K$1:$K$4997,0),MATCH(AA$46,'Data Annex'!$K$1:$AN$1,0)),\"\")","v":0.45193449959999998},{"$f":"IFERROR(INDEX('Data Annex'!$K$1:$AN$4997,MATCH(AB$45&\"|\"&$B68,'Data Annex'!$K$1:$K$4997,0),MATCH(AB$46,'Data Annex'!$K$1:$AN$1,0)),\"\")","v":0.45546271820000001}]
[19,"LT",null,"LT",{"$f":"IFERROR(INDEX('Data Annex'!$K$1:$AN$4997,MATCH(E$45&\"|\"&$B69,'Data Annex'!$K$1:$K$4997,0),MATCH(E$46,'Data Annex'!$K$1:$AN$1,0)),\"\")","v":0.32115379929999999},{"$f":"IFERROR(INDEX('Data Annex'!$K$1:$AN$4997,MATCH(F$45&\"|\"&$B69,'Data Annex'!$K$1:$K$4997,0),MATCH(F$46,'Data Annex'!$K$1:$AN$1,0)),\"\")","v":0.31488751580000002},{"$f":"IFERROR(INDEX('Data Annex'!$K$1:$AN$4997,MATCH(G$45&\"|\"&$B69,'Data Annex'!$K$1:$K$4997,0),MATCH(G$46,'Data Annex'!$K$1:$AN$1,0)),\"\")","v":0.31982298720000002},{"$f":"IFERROR(INDEX('Data Annex'!$K$1:$AN$4997,MATCH(H$45&\"|\"&$B69,'Data Annex'!$K$1:$K$4997,0),MATCH(H$46,'Data Annex'!$K$1:$AN$1,0)),\"\")","v":0.29634454869999999},{"$f":"IFERROR(INDEX('Data Annex'!$K$1:$AN$4997,MATCH(I$45&\"|\"&$B69,'Data Annex'!$K$1:$K$4997,0),MATCH(I$46,'Data Annex'!$K$1:$AN$1,0)),\"\")","v":0.25019281560000001},{"$f":"IFERROR(INDEX('Data Annex'!$K$1:$AN$4997,MATCH(J$45&\"|\"&$B69,'Data Annex'!$K$1:$K$4997,0),MATCH(J$46,'Data Annex'!$K$1:$AN$1,0)),\"\")","v":0.24498401340000001},{"$f":"IFERROR(INDEX('Data Annex'!$K$1:$AN$4997,MATCH(K$45&\"|\"&$B69,'Data Annex'!$K$1:$K$4997,0),MATCH(K$46,'Data Annex'!$K$1:$AN$1,0)),\"\")","v":0.2411843696},{"$f":"IFERROR(INDEX('Data Annex'!$K$1:$AN$4997,MATCH(L$45&\"|\"&$B69,'Data Annex'!$K$1:$K$4997,0),MATCH(L$46,'Data Annex'!$K$1:$AN$1,0)),\"\")","v":0.24333629239999999},{"$f":"IFERROR(INDEX('Data Annex'!$K$1:$AN$4997,MATCH(M$45&\"|\"&$B69,'Data Annex'!$K$1:$K$4997,0),MATCH(M$46,'Data Annex'!$K$1:$AN$1,0)),\"\")","v":0.1945094164},{"$f":"IFERROR(INDEX('Data Annex'!$K$1:$AN$4997,MATCH(N$45&\"|\"&$B69,'Data Annex'!$K$1:$K$4997,0),MATCH(N$46,'Data Annex'!$K$1:$AN$1,0)),\"\")","v":0.18381818},{"$f":"IFERROR(INDEX('Data Annex'!$K$1:$AN$4997,MATCH(O$45&\"|\"&$B69,'Data Annex'!$K$1:$K$4997,0),MATCH(O$46,'Data Annex'!$K$1:$AN$1,0)),\"\")","v":0.18081890919999999},{"$f":"IFERROR(INDEX('Data Annex'!$K$1:$AN$4997,MATCH(P$45&\"|\"&$B69,'Data Annex'!$K$1:$K$4997,0),MATCH(P$46,'Data Annex'!$K$1:$AN$1,0)),\"\")","v":0.17238122829999999},{"$f":"IFERROR(INDEX('Data Annex'!$K$1:$AN$4997,MATCH(Q$45&\"|\"&$B69,'Data Annex'!$K$1:$K$4997,0),MATCH(Q$46,'Data Annex'!$K$1:$AN$1,0)),\"\")","v":0.37870441570000002},{"$f":"IFERROR(INDEX('Data Annex'!$K$1:$AN$4997,MATCH(R$45&\"|\"&$B69,'Data Annex'!$K$1:$K$4997,0),MATCH(R$46,'Data Annex'!$K$1:$AN$1,0)),\"\")","v":0.3759154408},{"$f":"IFERROR(INDEX('Data Annex'!$K$1:$AN$4997,MATCH(S$45&\"|\"&$B69,'Data Annex'!$K$1:$K$4997,0),MATCH(S$46,'Data Annex'!$K$1:$AN$1,0)),\"\")","v":0.39010563259999997},{"$f":"IFERROR(INDEX('Data Annex'!$K$1:$AN$4997,MATCH(T$45&\"|\"&$B69,'Data Annex'!$K$1:$K$4997,0),MATCH(T$46,'Data Annex'!$K$1:$AN$1,0)),\"\")","v":0.33345264740000002},{"$f":"IFERROR(INDEX('Data Annex'!$K$1:$AN$4997,MATCH(U$45&\"|\"&$B69,'Data Annex'!$K$1:$K$4997,0),MATCH(U$46,'Data Annex'!$K$1:$AN$1,0)),\"\")","v":0.39273982359999998},{"$f":"IFERROR(INDEX('Data Annex'!$K$1:$AN$4997,MATCH(V$45&\"|\"&$B69,'Data Annex'!$K$1:$K$4997,0),MATCH(V$46,'Data Annex'!$K$1:$AN$1,0)),\"\")","v":0.37559389640000002},{"$f":"IFERROR(INDEX('Data Annex'!$K$1:$AN$4997,MATCH(W$45&\"|\"&$B69,'Data Annex'!$K$1:$K$4997,0),MATCH(W$46,'Data Annex'!$K$1:$AN$1,0)),\"\")","v":0.38956670960000001},{"$f":"IFERROR(INDEX('Data Annex'!$K$1:$AN$4997,MATCH(X$45&\"|\"&$B69,'Data Annex'!$K$1:$K$4997,0),MATCH(X$46,'Data Annex'!$K$1:$AN$1,0)),\"\")","v":0.33260734110000001},{"$f":"IFERROR(INDEX('Data Annex'!$K$1:$AN$4997,MATCH(Y$45&\"|\"&$B69,'Data Annex'!$K$1:$K$4997,0),MATCH(Y$46,'Data Annex'!$K$1:$AN$1,0)),\"\")","v":0.39265217629999999},{"$f":"IFERROR(INDEX('Data Annex'!$K$1:$AN$4997,MATCH(Z$45&\"|\"&$B69,'Data Annex'!$K$1:$K$4997,0),MATCH(Z$46,'Data Annex'!$K$1:$AN$1,0)),\"\")","v":0.34079421189999998},{"$f":"IFERROR(INDEX('Data Annex'!$K$1:$AN$4997,MATCH(AA$45&\"|\"&$B69,'Data Annex'!$K$1:$K$4997,0),MATCH(AA$46,'Data Annex'!$K$1:$AN$1,0)),\"\")","v":0.35072271989999998},{"$f":"IFERROR(INDEX('Data Annex'!$K$1:$AN$4997,MATCH(AB$45&\"|\"&$B69,'Data Annex'!$K$1:$K$4997,0),MATCH(AB$46,'Data Annex'!$K$1:$AN$1,0)),\"\")","v":0.2781662889}]
[20,"LU",null,"LU",{"$f":"IFERROR(INDEX('Data Annex'!$K$1:$AN$4997,MATCH(E$45&\"|\"&$B70,'Data Annex'!$K$1:$K$4997,0),MATCH(E$46,'Data Annex'!$K$1:$AN$1,0)),\"\")","v":0.39761124840000001},{"$f":"IFERROR(INDEX('Data Annex'!$K$1:$AN$4997,MATCH(F$45&\"|\"&$B70,'Data Annex'!$K$1:$K$4997,0),MATCH(F$46,'Data Annex'!$K$1:$AN$1,0)),\"\")","v":0.38634218110000002},{"$f":"IFERROR(INDEX('Data Annex'!$K$1:$AN$4997,MATCH(G$45&\"|\"&$B70,'Data Annex'!$K$1:$K$4997,0),MATCH(G$46,'Data Annex'!$K$1:$AN$1,0)),\"\")","v":0.33079066470000001},{"$f":"IFERROR(INDEX('Data Annex'!$K$1:$AN$4997,MATCH(H$45&\"|\"&$B70,'Data Annex'!$K$1:$K$4997,0),MATCH(H$46,'Data Annex'!$K$1:$AN$1,0)),\"\")","v":0.33016898859999999},{"$f":"IFERROR(INDEX('Data Annex'!$K$1:$AN$4997,MATCH(I$45&\"|\"&$B70,'Data Annex'!$K$1:$K$4997,0),MATCH(I$46,'Data Annex'!$K$1:$AN$1,0)),\"\")","v":0.24173963909999999},{"$f":"IFERROR(INDEX('Data Annex'!$K$1:$AN$4997,MATCH(J$45&\"|\"&$B70,'Data Annex'!$K$1:$K$4997,0),MATCH(J$46,'Data Annex'!$K$1:$AN$1,0)),\"\")","v":0.24863381979999999},{"$f":"IFERROR(INDEX('Data Annex'!$K$1:$AN$4997,MATCH(K$45&\"|\"&$B70,'Data Annex'!$K$1:$K$4997,0),MATCH(K$46,'Data Annex'!$K$1:$AN$1,0)),\"\")","v":0.22070115160000001},{"$f":"IFERROR(INDEX('Data Annex'!$K$1:$AN$4997,MATCH(L$45&\"|\"&$B70,'Data Annex'!$K$1:$K$4997,0),MATCH(L$46,'Data Annex'!$K$1:$AN$1,0)),\"\")","v":0.1987780858},{"$f":"IFERROR(INDEX('Data Annex'!$K$1:$AN$4997,MATCH(M$45&\"|\"&$B70,'Data Annex'!$K$1:$K$4997,0),MATCH(M$46,'Data Annex'!$K$1:$AN$1,0)),\"\")","v":0.1156582261},{"$f":"IFERROR(INDEX('Data Annex'!$K$1:$AN$4997,MATCH(N$45&\"|\"&$B70,'Data Annex'!$K$1:$K$4997,0),MATCH(N$46,'Data Annex'!$K$1:$AN$1,0)),\"\")","v":0.1163352788},{"$f":"IFERROR(INDEX('Data Annex'!$K$1:$AN$4997,MATCH(O$45&\"|\"&$B70,'Data Annex'!$K$1:$K$4997,0),MATCH(O$46,'Data Annex'!$K$1:$AN$1,0)),\"\")","v":0.10057020379999999},{"$f":"IFERROR(INDEX('Data Annex'!$K$1:$AN$4997,MATCH(P$45&\"|\"&$B70,'Data Annex'!$K$1:$K$4997,0),MATCH(P$46,'Data Annex'!$K$1:$AN$1,0)),\"\")","v":9.31861467E-2},{"$f":"IFERROR(INDEX('Data Annex'!$K$1:$AN$4997,MATCH(Q$45&\"|\"&$B70,'Data Annex'!$K$1:$K$4997,0),MATCH(Q$46,'Data Annex'!$K$1:$AN$1,0)),\"\")","v":0.42769718330000001},{"$f":"IFERROR(INDEX('Data Annex'!$K$1:$AN$4997,MATCH(R$45&\"|\"&$B70,'Data Annex'!$K$1:$K$4997,0),MATCH(R$46,'Data Annex'!$K$1:$AN$1,0)),\"\")","v":0.40226753269999999},{"$f":"IFERROR(INDEX('Data Annex'!$K$1:$AN$4997,MATCH(S$45&\"|\"&$B70,'Data Annex'!$K$1:$K$4997,0),MATCH(S$46,'Data Annex'!$K$1:$AN$1,0)),\"\")","v":0.33852032139999999},{"$f":"IFERROR(INDEX('Data Annex'!$K$1:$AN$4997,MATCH(T$45&\"|\"&$B70,'Data Annex'!$K$1:$K$4997,0),MATCH(T$46,'Data Annex'!$K$1:$AN$1,0)),\"\")","v":0.33972730610000001},{"$f":"IFERROR(INDEX('Data Annex'!$K$1:$AN$4997,MATCH(U$45&\"|\"&$B70,'Data Annex'!$K$1:$K$4997,0),MATCH(U$46,'Data Annex'!$K$1:$AN$1,0)),\"\")","v":0.46736678500000001},{"$f":"IFERROR(INDEX('Data Annex'!$K$1:$AN$4997,MATCH(V$45&\"|\"&$B70,'Data Annex'!$K$1:$K$4997,0),MATCH(V$46,'Data Annex'!$K$1:$AN$1,0)),\"\")","v":0.43827700949999998},{"$f":"IFERROR(INDEX('Data Annex'!$K$1:$AN$4997,MATCH(W$45&\"|\"&$B70,'Data Annex'!$K$1:$K$4997,0),MATCH(W$46,'Data Annex'!$K$1:$AN$1,0)),\"\")","v":0.40901660719999999},{"$f":"IFERROR(INDEX('Data Annex'!$K$1:$AN$4997,MATCH(X$45&\"|\"&$B70,'Data Annex'!$K$1:$K$4997,0),MATCH(X$46,'Data Annex'!$K$1:$AN$1,0)),\"\")","v":0.40634645679999998},{"$f":"IFERROR(INDEX('Data Annex'!$K$1:$AN$4997,MATCH(Y$45&\"|\"&$B70,'Data Annex'!$K$1:$K$4997,0),MATCH(Y$46,'Data Annex'!$K$1:$AN$1,0)),\"\")","v":0.37163414309999998},{"$f":"IFERROR(INDEX('Data Annex'!$K$1:$AN$4997,MATCH(Z$45&\"|\"&$B70,'Data Annex'!$K$1:$K$4997,0),MATCH(Z$46,'Data Annex'!$K$1:$AN$1,0)),\"\")","v":0.33996975680000002},{"$f":"IFERROR(INDEX('Data Annex'!$K$1:$AN$4997,MATCH(AA$45&\"|\"&$B70,'Data Annex'!$K$1:$K$4997,0),MATCH(AA$46,'Data Annex'!$K$1:$AN$1,0)),\"\")","v":0.30334805980000001},{"$f":"IFERROR(INDEX('Data Annex'!$K$1:$AN$4997,MATCH(AB$45&\"|\"&$B70,'Data Annex'!$K$1:$K$4997,0),MATCH(AB$46,'Data Annex'!$K$1:$AN$1,0)),\"\")","v":0.2361845337}]
[21,"LV",null,"LV",{"$f":"IFERROR(INDEX('Data Annex'!$K$1:$AN$4997,MATCH(E$45&\"|\"&$B71,'Data Annex'!$K$1:$K$4997,0),MATCH(E$46,'Data Annex'!$K$1:$AN$1,0)),\"\")","v":0.39249897519999999},{"$f":"IFERROR(INDEX('Data Annex'!$K$1:$AN$4997,MATCH(F$45&\"|\"&$B71,'Data Annex'!$K$1:$K$4997,0),MATCH(F$46,'Data Annex'!$K$1:$AN$1,0)),\"\")","v":0.36934010239999998},{"$f":"IFERROR(INDEX('Data Annex'!$K$1:$AN$4997,MATCH(G$45&\"|\"&$B71,'Data Annex'!$K$1:$K$4997,0),MATCH(G$46,'Data Annex'!$K$1:$AN$1,0)),\"\")","v":0.37422405800000003},{"$f":"IFERROR(INDEX('Data Annex'!$K$1:$AN$4997,MATCH(H$45&\"|\"&$B71,'Data Annex'!$K$1:$K$4997,0),MATCH(H$46,'Data Annex'!$K$1:$AN$1,0)),\"\")","v":0.44741695050000002},{"$f":"IFERROR(INDEX('Data Annex'!$K$1:$AN$4997,MATCH(I$45&\"|\"&$B71,'Data Annex'!$K$1:$K$4997,0),MATCH(I$46,'Data Annex'!$K$1:$AN$1,0)),\"\")","v":0.40483430770000001},{"$f":"IFERROR(INDEX('Data Annex'!$K$1:$AN$4997,MATCH(J$45&\"|\"&$B71,'Data Annex'!$K$1:$K$4997,0),MATCH(J$46,'Data Annex'!$K$1:$AN$1,0)),\"\")","v":0.41546720809999999},{"$f":"IFERROR(INDEX('Data Annex'!$K$1:$AN$4997,MATCH(K$45&\"|\"&$B71,'Data Annex'!$K$1:$K$4997,0),MATCH(K$46,'Data Annex'!$K$1:$AN$1,0)),\"\")","v":0.44290735460000002},{"$f":"IFERROR(INDEX('Data Annex'!$K$1:$AN$4997,MATCH(L$45&\"|\"&$B71,'Data Annex'!$K$1:$K$4997,0),MATCH(L$46,'Data Annex'!$K$1:$AN$1,0)),\"\")","v":0.56328645379999998},{"$f":"IFERROR(INDEX('Data Annex'!$K$1:$AN$4997,MATCH(M$45&\"|\"&$B71,'Data Annex'!$K$1:$K$4997,0),MATCH(M$46,'Data Annex'!$K$1:$AN$1,0)),\"\")","v":0.40024646120000001},{"$f":"IFERROR(INDEX('Data Annex'!$K$1:$AN$4997,MATCH(N$45&\"|\"&$B71,'Data Annex'!$K$1:$K$4997,0),MATCH(N$46,'Data Annex'!$K$1:$AN$1,0)),\"\")","v":0.405393475},{"$f":"IFERROR(INDEX('Data Annex'!$K$1:$AN$4997,MATCH(O$45&\"|\"&$B71,'Data Annex'!$K$1:$K$4997,0),MATCH(O$46,'Data Annex'!$K$1:$AN$1,0)),\"\")","v":0.43218400689999997},{"$f":"IFERROR(INDEX('Data Annex'!$K$1:$AN$4997,MATCH(P$45&\"|\"&$B71,'Data Annex'!$K$1:$K$4997,0),MATCH(P$46,'Data Annex'!$K$1:$AN$1,0)),\"\")","v":0.56904693120000005},{"$f":"IFERROR(INDEX('Data Annex'!$K$1:$AN$4997,MATCH(Q$45&\"|\"&$B71,'Data Annex'!$K$1:$K$4997,0),MATCH(Q$46,'Data Annex'!$K$1:$AN$1,0)),\"\")","v":0.38151138089999997},{"$f":"IFERROR(INDEX('Data Annex'!$K$1:$AN$4997,MATCH(R$45&\"|\"&$B71,'Data Annex'!$K$1:$K$4997,0),MATCH(R$46,'Data Annex'!$K$1:$AN$1,0)),\"\")","v":0.34067976680000001},{"$f":"IFERROR(INDEX('Data Annex'!$K$1:$AN$4997,MATCH(S$45&\"|\"&$B71,'Data Annex'!$K$1:$K$4997,0),MATCH(S$46,'Data Annex'!$K$1:$AN$1,0)),\"\")","v":0.33394163529999998},{"$f":"IFERROR(INDEX('Data Annex'!$K$1:$AN$4997,MATCH(T$45&\"|\"&$B71,'Data Annex'!$K$1:$K$4997,0),MATCH(T$46,'Data Annex'!$K$1:$AN$1,0)),\"\")","v":0.39403226479999998},{"$f":"IFERROR(INDEX('Data Annex'!$K$1:$AN$4997,MATCH(U$45&\"|\"&$B71,'Data Annex'!$K$1:$K$4997,0),MATCH(U$46,'Data Annex'!$K$1:$AN$1,0)),\"\")","v":0.38523494660000002},{"$f":"IFERROR(INDEX('Data Annex'!$K$1:$AN$4997,MATCH(V$45&\"|\"&$B71,'Data Annex'!$K$1:$K$4997,0),MATCH(V$46,'Data Annex'!$K$1:$AN$1,0)),\"\")","v":0.32203125900000001},{"$f":"IFERROR(INDEX('Data Annex'!$K$1:$AN$4997,MATCH(W$45&\"|\"&$B71,'Data Annex'!$K$1:$K$4997,0),MATCH(W$46,'Data Annex'!$K$1:$AN$1,0)),\"\")","v":0.29994811160000001},{"$f":"IFERROR(INDEX('Data Annex'!$K$1:$AN$4997,MATCH(X$45&\"|\"&$B71,'Data Annex'!$K$1:$K$4997,0),MATCH(X$46,'Data Annex'!$K$1:$AN$1,0)),\"\")","v":0.46905011149999998},{"$f":"IFERROR(INDEX('Data Annex'!$K$1:$AN$4997,MATCH(Y$45&\"|\"&$B71,'Data Annex'!$K$1:$K$4997,0),MATCH(Y$46,'Data Annex'!$K$1:$AN$1,0)),\"\")","v":0.3359254357},{"$f":"IFERROR(INDEX('Data Annex'!$K$1:$AN$4997,MATCH(Z$45&\"|\"&$B71,'Data Annex'!$K$1:$K$4997,0),MATCH(Z$46,'Data Annex'!$K$1:$AN$1,0)),\"\")","v":0.28061970829999999},{"$f":"IFERROR(INDEX('Data Annex'!$K$1:$AN$4997,MATCH(AA$45&\"|\"&$B71,'Data Annex'!$K$1:$K$4997,0),MATCH(AA$46,'Data Annex'!$K$1:$AN$1,0)),\"\")","v":0.27673244940000002},{"$f":"IFERROR(INDEX('Data Annex'!$K$1:$AN$4997,MATCH(AB$45&\"|\"&$B71,'Data Annex'!$K$1:$K$4997,0),MATCH(AB$46,'Data Annex'!$K$1:$AN$1,0)),\"\")","v":0.33772820910000001}]
[22,"MT",null,"MT",{"$f":"IFERROR(INDEX('Data Annex'!$K$1:$AN$4997,MATCH(E$45&\"|\"&$B72,'Data Annex'!$K$1:$K$4997,0),MATCH(E$46,'Data Annex'!$K$1:$AN$1,0)),\"\")","v":0.26251137629999999},{"$f":"IFERROR(INDEX('Data Annex'!$K$1:$AN$4997,MATCH(F$45&\"|\"&$B72,'Data Annex'!$K$1:$K$4997,0),MATCH(F$46,'Data Annex'!$K$1:$AN$1,0)),\"\")","v":0.30595627510000001},{"$f":"IFERROR(INDEX('Data Annex'!$K$1:$AN$4997,MATCH(G$45&\"|\"&$B72,'Data Annex'!$K$1:$K$4997,0),MATCH(G$46,'Data Annex'!$K$1:$AN$1,0)),\"\")","v":0.2816709731},{"$f":"IFERROR(INDEX('Data Annex'!$K$1:$AN$4997,MATCH(H$45&\"|\"&$B72,'Data Annex'!$K$1:$K$4997,0),MATCH(H$46,'Data Annex'!$K$1:$AN$1,0)),\"\")","v":0.329545278},{"$f":"IFERROR(INDEX('Data Annex'!$K$1:$AN$4997,MATCH(I$45&\"|\"&$B72,'Data Annex'!$K$1:$K$4997,0),MATCH(I$46,'Data Annex'!$K$1:$AN$1,0)),\"\")","v":0.26003886240000001},{"$f":"IFERROR(INDEX('Data Annex'!$K$1:$AN$4997,MATCH(J$45&\"|\"&$B72,'Data Annex'!$K$1:$K$4997,0),MATCH(J$46,'Data Annex'!$K$1:$AN$1,0)),\"\")","v":0.2382191146},{"$f":"IFERROR(INDEX('Data Annex'!$K$1:$AN$4997,MATCH(K$45&\"|\"&$B72,'Data Annex'!$K$1:$K$4997,0),MATCH(K$46,'Data Annex'!$K$1:$AN$1,0)),\"\")","v":0.2380465521},{"$f":"IFERROR(INDEX('Data Annex'!$K$1:$AN$4997,MATCH(L$45&\"|\"&$B72,'Data Annex'!$K$1:$K$4997,0),MATCH(L$46,'Data Annex'!$K$1:$AN$1,0)),\"\")","v":0.31127583260000002},{"$f":"IFERROR(INDEX('Data Annex'!$K$1:$AN$4997,MATCH(M$45&\"|\"&$B72,'Data Annex'!$K$1:$K$4997,0),MATCH(M$46,'Data Annex'!$K$1:$AN$1,0)),\"\")","v":0.23935896540000001},{"$f":"IFERROR(INDEX('Data Annex'!$K$1:$AN$4997,MATCH(N$45&\"|\"&$B72,'Data Annex'!$K$1:$K$4997,0),MATCH(N$46,'Data Annex'!$K$1:$AN$1,0)),\"\")","v":0.1655849539},{"$f":"IFERROR(INDEX('Data Annex'!$K$1:$AN$4997,MATCH(O$45&\"|\"&$B72,'Data Annex'!$K$1:$K$4997,0),MATCH(O$46,'Data Annex'!$K$1:$AN$1,0)),\"\")","v":0.1602882417},{"$f":"IFERROR(INDEX('Data Annex'!$K$1:$AN$4997,MATCH(P$45&\"|\"&$B72,'Data Annex'!$K$1:$K$4997,0),MATCH(P$46,'Data Annex'!$K$1:$AN$1,0)),\"\")","v":0.23749293990000001},{"$f":"IFERROR(INDEX('Data Annex'!$K$1:$AN$4997,MATCH(Q$45&\"|\"&$B72,'Data Annex'!$K$1:$K$4997,0),MATCH(Q$46,'Data Annex'!$K$1:$AN$1,0)),\"\")","v":0.31967682990000001},{"$f":"IFERROR(INDEX('Data Annex'!$K$1:$AN$4997,MATCH(R$45&\"|\"&$B72,'Data Annex'!$K$1:$K$4997,0),MATCH(R$46,'Data Annex'!$K$1:$AN$1,0)),\"\")","v":0.35852937099999999},{"$f":"IFERROR(INDEX('Data Annex'!$K$1:$AN$4997,MATCH(S$45&\"|\"&$B72,'Data Annex'!$K$1:$K$4997,0),MATCH(S$46,'Data Annex'!$K$1:$AN$1,0)),\"\")","v":0.29012076050000002},{"$f":"IFERROR(INDEX('Data Annex'!$K$1:$AN$4997,MATCH(T$45&\"|\"&$B72,'Data Annex'!$K$1:$K$4997,0),MATCH(T$46,'Data Annex'!$K$1:$AN$1,0)),\"\")","v":0.3377799964},{"$f":"IFERROR(INDEX('Data Annex'!$K$1:$AN$4997,MATCH(U$45&\"|\"&$B72,'Data Annex'!$K$1:$K$4997,0),MATCH(U$46,'Data Annex'!$K$1:$AN$1,0)),\"\")","v":0.37063661060000003},{"$f":"IFERROR(INDEX('Data Annex'!$K$1:$AN$4997,MATCH(V$45&\"|\"&$B72,'Data Annex'!$K$1:$K$4997,0),MATCH(V$46,'Data Annex'!$K$1:$AN$1,0)),\"\")","v":0.37969253650000001},{"$f":"IFERROR(INDEX('Data Annex'!$K$1:$AN$4997,MATCH(W$45&\"|\"&$B72,'Data Annex'!$K$1:$K$4997,0),MATCH(W$46,'Data Annex'!$K$1:$AN$1,0)),\"\")","v":0.39855251250000001},{"$f":"IFERROR(INDEX('Data Annex'!$K$1:$AN$4997,MATCH(X$45&\"|\"&$B72,'Data Annex'!$K$1:$K$4997,0),MATCH(X$46,'Data Annex'!$K$1:$AN$1,0)),\"\")","v":0.44641874190000003},{"$f":"IFERROR(INDEX('Data Annex'!$K$1:$AN$4997,MATCH(Y$45&\"|\"&$B72,'Data Annex'!$K$1:$K$4997,0),MATCH(Y$46,'Data Annex'!$K$1:$AN$1,0)),\"\")","v":0.1610881314},{"$f":"IFERROR(INDEX('Data Annex'!$K$1:$AN$4997,MATCH(Z$45&\"|\"&$B72,'Data Annex'!$K$1:$K$4997,0),MATCH(Z$46,'Data Annex'!$K$1:$AN$1,0)),\"\")","v":0.2676949079},{"$f":"IFERROR(INDEX('Data Annex'!$K$1:$AN$4997,MATCH(AA$45&\"|\"&$B72,'Data Annex'!$K$1:$K$4997,0),MATCH(AA$46,'Data Annex'!$K$1:$AN$1,0)),\"\")","v":0.26456226230000002},{"$f":"IFERROR(INDEX('Data Annex'!$K$1:$AN$4997,MATCH(AB$45&\"|\"&$B72,'Data Annex'!$K$1:$K$4997,0),MATCH(AB$46,'Data Annex'!$K$1:$AN$1,0)),\"\")","v":0.36820298159999998}]
[23,"NL",null,"NL",{"$f":"IFERROR(INDEX('Data Annex'!$K$1:$AN$4997,MATCH(E$45&\"|\"&$B73,'Data Annex'!$K$1:$K$4997,0),MATCH(E$46,'Data Annex'!$K$1:$AN$1,0)),\"\")","v":0.25684151509999997},{"$f":"IFERROR(INDEX('Data Annex'!$K$1:$AN$4997,MATCH(F$45&\"|\"&$B73,'Data Annex'!$K$1:$K$4997,0),MATCH(F$46,'Data Annex'!$K$1:$AN$1,0)),\"\")","v":0.27870220540000001},{"$f":"IFERROR(INDEX('Data Annex'!$K$1:$AN$4997,MATCH(G$45&\"|\"&$B73,'Data Annex'!$K$1:$K$4997,0),MATCH(G$46,'Data Annex'!$K$1:$AN$1,0)),\"\")","v":0.27351227680000001},{"$f":"IFERROR(INDEX('Data Annex'!$K$1:$AN$4997,MATCH(H$45&\"|\"&$B73,'Data Annex'!$K$1:$K$4997,0),MATCH(H$46,'Data Annex'!$K$1:$AN$1,0)),\"\")","v":0.27084729660000001},{"$f":"IFERROR(INDEX('Data Annex'!$K$1:$AN$4997,MATCH(I$45&\"|\"&$B73,'Data Annex'!$K$1:$K$4997,0),MATCH(I$46,'Data Annex'!$K$1:$AN$1,0)),\"\")","v":0.15990225490000001},{"$f":"IFERROR(INDEX('Data Annex'!$K$1:$AN$4997,MATCH(J$45&\"|\"&$B73,'Data Annex'!$K$1:$K$4997,0),MATCH(J$46,'Data Annex'!$K$1:$AN$1,0)),\"\")","v":0.16405264680000001},{"$f":"IFERROR(INDEX('Data Annex'!$K$1:$AN$4997,MATCH(K$45&\"|\"&$B73,'Data Annex'!$K$1:$K$4997,0),MATCH(K$46,'Data Annex'!$K$1:$AN$1,0)),\"\")","v":0.17324617119999999},{"$f":"IFERROR(INDEX('Data Annex'!$K$1:$AN$4997,MATCH(L$45&\"|\"&$B73,'Data Annex'!$K$1:$K$4997,0),MATCH(L$46,'Data Annex'!$K$1:$AN$1,0)),\"\")","v":0.17079219009999999},{"$f":"IFERROR(INDEX('Data Annex'!$K$1:$AN$4997,MATCH(M$45&\"|\"&$B73,'Data Annex'!$K$1:$K$4997,0),MATCH(M$46,'Data Annex'!$K$1:$AN$1,0)),\"\")","v":7.5127869E-2},{"$f":"IFERROR(INDEX('Data Annex'!$K$1:$AN$4997,MATCH(N$45&\"|\"&$B73,'Data Annex'!$K$1:$K$4997,0),MATCH(N$46,'Data Annex'!$K$1:$AN$1,0)),\"\")","v":7.5871946199999998E-2},{"$f":"IFERROR(INDEX('Data Annex'!$K$1:$AN$4997,MATCH(O$45&\"|\"&$B73,'Data Annex'!$K$1:$K$4997,0),MATCH(O$46,'Data Annex'!$K$1:$AN$1,0)),\"\")","v":7.7650188600000003E-2},{"$f":"IFERROR(INDEX('Data Annex'!$K$1:$AN$4997,MATCH(P$45&\"|\"&$B73,'Data Annex'!$K$1:$K$4997,0),MATCH(P$46,'Data Annex'!$K$1:$AN$1,0)),\"\")","v":8.2801656799999998E-2},{"$f":"IFERROR(INDEX('Data Annex'!$K$1:$AN$4997,MATCH(Q$45&\"|\"&$B73,'Data Annex'!$K$1:$K$4997,0),MATCH(Q$46,'Data Annex'!$K$1:$AN$1,0)),\"\")","v":0.29351090530000001},{"$f":"IFERROR(INDEX('Data Annex'!$K$1:$AN$4997,MATCH(R$45&\"|\"&$B73,'Data Annex'!$K$1:$K$4997,0),MATCH(R$46,'Data Annex'!$K$1:$AN$1,0)),\"\")","v":0.31455703699999998},{"$f":"IFERROR(INDEX('Data Annex'!$K$1:$AN$4997,MATCH(S$45&\"|\"&$B73,'Data Annex'!$K$1:$K$4997,0),MATCH(S$46,'Data Annex'!$K$1:$AN$1,0)),\"\")","v":0.30430576339999998},{"$f":"IFERROR(INDEX('Data Annex'!$K$1:$AN$4997,MATCH(T$45&\"|\"&$B73,'Data Annex'!$K$1:$K$4997,0),MATCH(T$46,'Data Annex'!$K$1:$AN$1,0)),\"\")","v":0.30894586130000001},{"$f":"IFERROR(INDEX('Data Annex'!$K$1:$AN$4997,MATCH(U$45&\"|\"&$B73,'Data Annex'!$K$1:$K$4997,0),MATCH(U$46,'Data Annex'!$K$1:$AN$1,0)),\"\")","v":0.23562803399999999},{"$f":"IFERROR(INDEX('Data Annex'!$K$1:$AN$4997,MATCH(V$45&\"|\"&$B73,'Data Annex'!$K$1:$K$4997,0),MATCH(V$46,'Data Annex'!$K$1:$AN$1,0)),\"\")","v":0.23353705650000001},{"$f":"IFERROR(INDEX('Data Annex'!$K$1:$AN$4997,MATCH(W$45&\"|\"&$B73,'Data Annex'!$K$1:$K$4997,0),MATCH(W$46,'Data Annex'!$K$1:$AN$1,0)),\"\")","v":0.238537054},{"$f":"IFERROR(INDEX('Data Annex'!$K$1:$AN$4997,MATCH(X$45&\"|\"&$B73,'Data Annex'!$K$1:$K$4997,0),MATCH(X$46,'Data Annex'!$K$1:$AN$1,0)),\"\")","v":0.27196924350000001},{"$f":"IFERROR(INDEX('Data Annex'!$K$1:$AN$4997,MATCH(Y$45&\"|\"&$B73,'Data Annex'!$K$1:$K$4997,0),MATCH(Y$46,'Data Annex'!$K$1:$AN$1,0)),\"\")","v":0.14466720020000001},{"$f":"IFERROR(INDEX('Data Annex'!$K$1:$AN$4997,MATCH(Z$45&\"|\"&$B73,'Data Annex'!$K$1:$K$4997,0),MATCH(Z$46,'Data Annex'!$K$1:$AN$1,0)),\"\")","v":0.1590299557},{"$f":"IFERROR(INDEX('Data Annex'!$K$1:$AN$4997,MATCH(AA$45&\"|\"&$B73,'Data Annex'!$K$1:$K$4997,0),MATCH(AA$46,'Data Annex'!$K$1:$AN$1,0)),\"\")","v":0.1676516458},{"$f":"IFERROR(INDEX('Data Annex'!$K$1:$AN$4997,MATCH(AB$45&\"|\"&$B73,'Data Annex'!$K$1:$K$4997,0),MATCH(AB$46,'Data Annex'!$K$1:$AN$1,0)),\"\")","v":0.15863253429999999}]
[24,"NO",null,"NO",{"$f":"IFERROR(INDEX('Data Annex'!$K$1:$AN$4997,MATCH(E$45&\"|\"&$B74,'Data Annex'!$K$1:$K$4997,0),MATCH(E$46,'Data Annex'!$K$1:$AN$1,0)),\"\")","v":0.32097243069999998},{"$f":"IFERROR(INDEX('Data Annex'!$K$1:$AN$4997,MATCH(F$45&\"|\"&$B74,'Data Annex'!$K$1:$K$4997,0),MATCH(F$46,'Data Annex'!$K$1:$AN$1,0)),\"\")","v":0.35933478670000002},{"$f":"IFERROR(INDEX('Data Annex'!$K$1:$AN$4997,MATCH(G$45&\"|\"&$B74,'Data Annex'!$K$1:$K$4997,0),MATCH(G$46,'Data Annex'!$K$1:$AN$1,0)),\"\")","v":0.37791294320000002},{"$f":"IFERROR(INDEX('Data Annex'!$K$1:$AN$4997,MATCH(H$45&\"|\"&$B74,'Data Annex'!$K$1:$K$4997,0),MATCH(H$46,'Data Annex'!$K$1:$AN$1,0)),\"\")","v":0.36896631749999997},{"$f":"IFERROR(INDEX('Data Annex'!$K$1:$AN$4997,MATCH(I$45&\"|\"&$B74,'Data Annex'!$K$1:$K$4997,0),MATCH(I$46,'Data Annex'!$K$1:$AN$1,0)),\"\")","v":0.24427109550000001},{"$f":"IFERROR(INDEX('Data Annex'!$K$1:$AN$4997,MATCH(J$45&\"|\"&$B74,'Data Annex'!$K$1:$K$4997,0),MATCH(J$46,'Data Annex'!$K$1:$AN$1,0)),\"\")","v":0.23324546809999999},{"$f":"IFERROR(INDEX('Data Annex'!$K$1:$AN$4997,MATCH(K$45&\"|\"&$B74,'Data Annex'!$K$1:$K$4997,0),MATCH(K$46,'Data Annex'!$K$1:$AN$1,0)),\"\")","v":0.22750277739999999},{"$f":"IFERROR(INDEX('Data Annex'!$K$1:$AN$4997,MATCH(L$45&\"|\"&$B74,'Data Annex'!$K$1:$K$4997,0),MATCH(L$46,'Data Annex'!$K$1:$AN$1,0)),\"\")","v":0.22511735490000001},{"$f":"IFERROR(INDEX('Data Annex'!$K$1:$AN$4997,MATCH(M$45&\"|\"&$B74,'Data Annex'!$K$1:$K$4997,0),MATCH(M$46,'Data Annex'!$K$1:$AN$1,0)),\"\")","v":0.12943112270000001},{"$f":"IFERROR(INDEX('Data Annex'!$K$1:$AN$4997,MATCH(N$45&\"|\"&$B74,'Data Annex'!$K$1:$K$4997,0),MATCH(N$46,'Data Annex'!$K$1:$AN$1,0)),\"\")","v":0.12523191350000001},{"$f":"IFERROR(INDEX('Data Annex'!$K$1:$AN$4997,MATCH(O$45&\"|\"&$B74,'Data Annex'!$K$1:$K$4997,0),MATCH(O$46,'Data Annex'!$K$1:$AN$1,0)),\"\")","v":0.120411015},{"$f":"IFERROR(INDEX('Data Annex'!$K$1:$AN$4997,MATCH(P$45&\"|\"&$B74,'Data Annex'!$K$1:$K$4997,0),MATCH(P$46,'Data Annex'!$K$1:$AN$1,0)),\"\")","v":0.1178311487},{"$f":"IFERROR(INDEX('Data Annex'!$K$1:$AN$4997,MATCH(Q$45&\"|\"&$B74,'Data Annex'!$K$1:$K$4997,0),MATCH(Q$46,'Data Annex'!$K$1:$AN$1,0)),\"\")","v":0.33438826630000001},{"$f":"IFERROR(INDEX('Data Annex'!$K$1:$AN$4997,MATCH(R$45&\"|\"&$B74,'Data Annex'!$K$1:$K$4997,0),MATCH(R$46,'Data Annex'!$K$1:$AN$1,0)),\"\")","v":0.37771271940000001},{"$f":"IFERROR(INDEX('Data Annex'!$K$1:$AN$4997,MATCH(S$45&\"|\"&$B74,'Data Annex'!$K$1:$K$4997,0),MATCH(S$46,'Data Annex'!$K$1:$AN$1,0)),\"\")","v":0.397660134},{"$f":"IFERROR(INDEX('Data Annex'!$K$1:$AN$4997,MATCH(T$45&\"|\"&$B74,'Data Annex'!$K$1:$K$4997,0),MATCH(T$46,'Data Annex'!$K$1:$AN$1,0)),\"\")","v":0.39121158779999998},{"$f":"IFERROR(INDEX('Data Annex'!$K$1:$AN$4997,MATCH(U$45&\"|\"&$B74,'Data Annex'!$K$1:$K$4997,0),MATCH(U$46,'Data Annex'!$K$1:$AN$1,0)),\"\")","v":0.33428271180000002},{"$f":"IFERROR(INDEX('Data Annex'!$K$1:$AN$4997,MATCH(V$45&\"|\"&$B74,'Data Annex'!$K$1:$K$4997,0),MATCH(V$46,'Data Annex'!$K$1:$AN$1,0)),\"\")","v":0.30961859130000002},{"$f":"IFERROR(INDEX('Data Annex'!$K$1:$AN$4997,MATCH(W$45&\"|\"&$B74,'Data Annex'!$K$1:$K$4997,0),MATCH(W$46,'Data Annex'!$K$1:$AN$1,0)),\"\")","v":0.46827119119999999},{"$f":"IFERROR(INDEX('Data Annex'!$K$1:$AN$4997,MATCH(X$45&\"|\"&$B74,'Data Annex'!$K$1:$K$4997,0),MATCH(X$46,'Data Annex'!$K$1:$AN$1,0)),\"\")","v":0.33742987340000002},{"$f":"IFERROR(INDEX('Data Annex'!$K$1:$AN$4997,MATCH(Y$45&\"|\"&$B74,'Data Annex'!$K$1:$K$4997,0),MATCH(Y$46,'Data Annex'!$K$1:$AN$1,0)),\"\")","v":0.20548270809999999},{"$f":"IFERROR(INDEX('Data Annex'!$K$1:$AN$4997,MATCH(Z$45&\"|\"&$B74,'Data Annex'!$K$1:$K$4997,0),MATCH(Z$46,'Data Annex'!$K$1:$AN$1,0)),\"\")","v":0.19058317699999999},{"$f":"IFERROR(INDEX('Data Annex'!$K$1:$AN$4997,MATCH(AA$45&\"|\"&$B74,'Data Annex'!$K$1:$K$4997,0),MATCH(AA$46,'Data Annex'!$K$1:$AN$1,0)),\"\")","v":0.19895379930000001},{"$f":"IFERROR(INDEX('Data Annex'!$K$1:$AN$4997,MATCH(AB$45&\"|\"&$B74,'Data Annex'!$K$1:$K$4997,0),MATCH(AB$46,'Data Annex'!$K$1:$AN$1,0)),\"\")","v":0.2400887411}]
[25,"PL",null,"PL",{"$f":"IFERROR(INDEX('Data Annex'!$K$1:$AN$4997,MATCH(E$45&\"|\"&$B75,'Data Annex'!$K$1:$K$4997,0),MATCH(E$46,'Data Annex'!$K$1:$AN$1,0)),\"\")","v":0.62685131240000003},{"$f":"IFERROR(INDEX('Data Annex'!$K$1:$AN$4997,MATCH(F$45&\"|\"&$B75,'Data Annex'!$K$1:$K$4997,0),MATCH(F$46,'Data Annex'!$K$1:$AN$1,0)),\"\")","v":0.62304876570000001},{"$f":"IFERROR(INDEX('Data Annex'!$K$1:$AN$4997,MATCH(G$45&\"|\"&$B75,'Data Annex'!$K$1:$K$4997,0),MATCH(G$46,'Data Annex'!$K$1:$AN$1,0)),\"\")","v":0.63905676170000003},{"$f":"IFERROR(INDEX('Data Annex'!$K$1:$AN$4997,MATCH(H$45&\"|\"&$B75,'Data Annex'!$K$1:$K$4997,0),MATCH(H$46,'Data Annex'!$K$1:$AN$1,0)),\"\")","v":0.63138405870000003},{"$f":"IFERROR(INDEX('Data Annex'!$K$1:$AN$4997,MATCH(I$45&\"|\"&$B75,'Data Annex'!$K$1:$K$4997,0),MATCH(I$46,'Data Annex'!$K$1:$AN$1,0)),\"\")","v":0.67512302759999998},{"$f":"IFERROR(INDEX('Data Annex'!$K$1:$AN$4997,MATCH(J$45&\"|\"&$B75,'Data Annex'!$K$1:$K$4997,0),MATCH(J$46,'Data Annex'!$K$1:$AN$1,0)),\"\")","v":0.67853341570000003},{"$f":"IFERROR(INDEX('Data Annex'!$K$1:$AN$4997,MATCH(K$45&\"|\"&$B75,'Data Annex'!$K$1:$K$4997,0),MATCH(K$46,'Data Annex'!$K$1:$AN$1,0)),\"\")","v":0.68840693539999998},{"$f":"IFERROR(INDEX('Data Annex'!$K$1:$AN$4997,MATCH(L$45&\"|\"&$B75,'Data Annex'!$K$1:$K$4997,0),MATCH(L$46,'Data Annex'!$K$1:$AN$1,0)),\"\")","v":0.67346059849999995},{"$f":"IFERROR(INDEX('Data Annex'!$K$1:$AN$4997,MATCH(M$45&\"|\"&$B75,'Data Annex'!$K$1:$K$4997,0),MATCH(M$46,'Data Annex'!$K$1:$AN$1,0)),\"\")","v":0.58357984730000001},{"$f":"IFERROR(INDEX('Data Annex'!$K$1:$AN$4997,MATCH(N$45&\"|\"&$B75,'Data Annex'!$K$1:$K$4997,0),MATCH(N$46,'Data Annex'!$K$1:$AN$1,0)),\"\")","v":0.59027894359999999},{"$f":"IFERROR(INDEX('Data Annex'!$K$1:$AN$4997,MATCH(O$45&\"|\"&$B75,'Data Annex'!$K$1:$K$4997,0),MATCH(O$46,'Data Annex'!$K$1:$AN$1,0)),\"\")","v":0.6058820198},{"$f":"IFERROR(INDEX('Data Annex'!$K$1:$AN$4997,MATCH(P$45&\"|\"&$B75,'Data Annex'!$K$1:$K$4997,0),MATCH(P$46,'Data Annex'!$K$1:$AN$1,0)),\"\")","v":0.59127573590000004},{"$f":"IFERROR(INDEX('Data Annex'!$K$1:$AN$4997,MATCH(Q$45&\"|\"&$B75,'Data Annex'!$K$1:$K$4997,0),MATCH(Q$46,'Data Annex'!$K$1:$AN$1,0)),\"\")","v":0.56222696520000004},{"$f":"IFERROR(INDEX('Data Annex'!$K$1:$AN$4997,MATCH(R$45&\"|\"&$B75,'Data Annex'!$K$1:$K$4997,0),MATCH(R$46,'Data Annex'!$K$1:$AN$1,0)),\"\")","v":0.57706540470000001},{"$f":"IFERROR(INDEX('Data Annex'!$K$1:$AN$4997,MATCH(S$45&\"|\"&$B75,'Data Annex'!$K$1:$K$4997,0),MATCH(S$46,'Data Annex'!$K$1:$AN$1,0)),\"\")","v":0.59687647519999998},{"$f":"IFERROR(INDEX('Data Annex'!$K$1:$AN$4997,MATCH(T$45&\"|\"&$B75,'Data Annex'!$K$1:$K$4997,0),MATCH(T$46,'Data Annex'!$K$1:$AN$1,0)),\"\")","v":0.60652250370000005},{"$f":"IFERROR(INDEX('Data Annex'!$K$1:$AN$4997,MATCH(U$45&\"|\"&$B75,'Data Annex'!$K$1:$K$4997,0),MATCH(U$46,'Data Annex'!$K$1:$AN$1,0)),\"\")","v":0.55213440810000003},{"$f":"IFERROR(INDEX('Data Annex'!$K$1:$AN$4997,MATCH(V$45&\"|\"&$B75,'Data Annex'!$K$1:$K$4997,0),MATCH(V$46,'Data Annex'!$K$1:$AN$1,0)),\"\")","v":0.55924500529999999},{"$f":"IFERROR(INDEX('Data Annex'!$K$1:$AN$4997,MATCH(W$45&\"|\"&$B75,'Data Annex'!$K$1:$K$4997,0),MATCH(W$46,'Data Annex'!$K$1:$AN$1,0)),\"\")","v":0.57218694589999997},{"$f":"IFERROR(INDEX('Data Annex'!$K$1:$AN$4997,MATCH(X$45&\"|\"&$B75,'Data Annex'!$K$1:$K$4997,0),MATCH(X$46,'Data Annex'!$K$1:$AN$1,0)),\"\")","v":0.58480128819999999},{"$f":"IFERROR(INDEX('Data Annex'!$K$1:$AN$4997,MATCH(Y$45&\"|\"&$B75,'Data Annex'!$K$1:$K$4997,0),MATCH(Y$46,'Data Annex'!$K$1:$AN$1,0)),\"\")","v":0.46845695790000003},{"$f":"IFERROR(INDEX('Data Annex'!$K$1:$AN$4997,MATCH(Z$45&\"|\"&$B75,'Data Annex'!$K$1:$K$4997,0),MATCH(Z$46,'Data Annex'!$K$1:$AN$1,0)),\"\")","v":0.48871408290000001},{"$f":"IFERROR(INDEX('Data Annex'!$K$1:$AN$4997,MATCH(AA$45&\"|\"&$B75,'Data Annex'!$K$1:$K$4997,0),MATCH(AA$46,'Data Annex'!$K$1:$AN$1,0)),\"\")","v":0.50069415610000001},{"$f":"IFERROR(INDEX('Data Annex'!$K$1:$AN$4997,MATCH(AB$45&\"|\"&$B75,'Data Annex'!$K$1:$K$4997,0),MATCH(AB$46,'Data Annex'!$K$1:$AN$1,0)),\"\")","v":0.50441411169999995}]
[26,"PT",null,"PT",{"$f":"IFERROR(INDEX('Data Annex'!$K$1:$AN$4997,MATCH(E$45&\"|\"&$B76,'Data Annex'!$K$1:$K$4997,0),MATCH(E$46,'Data Annex'!$K$1:$AN$1,0)),\"\")","v":0.50586461130000004},{"$f":"IFERROR(INDEX('Data Annex'!$K$1:$AN$4997,MATCH(F$45&\"|\"&$B76,'Data Annex'!$K$1:$K$4997,0),MATCH(F$46,'Data Annex'!$K$1:$AN$1,0)),\"\")","v":0.51645770869999996},{"$f":"IFERROR(INDEX('Data Annex'!$K$1:$AN$4997,MATCH(G$45&\"|\"&$B76,'Data Annex'!$K$1:$K$4997,0),MATCH(G$46,'Data Annex'!$K$1:$AN$1,0)),\"\")","v":0.5493693274},{"$f":"IFERROR(INDEX('Data Annex'!$K$1:$AN$4997,MATCH(H$45&\"|\"&$B76,'Data Annex'!$K$1:$K$4997,0),MATCH(H$46,'Data Annex'!$K$1:$AN$1,0)),\"\")","v":0.54140636450000001},{"$f":"IFERROR(INDEX('Data Annex'!$K$1:$AN$4997,MATCH(I$45&\"|\"&$B76,'Data Annex'!$K$1:$K$4997,0),MATCH(I$46,'Data Annex'!$K$1:$AN$1,0)),\"\")","v":0.39097059699999998},{"$f":"IFERROR(INDEX('Data Annex'!$K$1:$AN$4997,MATCH(J$45&\"|\"&$B76,'Data Annex'!$K$1:$K$4997,0),MATCH(J$46,'Data Annex'!$K$1:$AN$1,0)),\"\")","v":0.4182179754},{"$f":"IFERROR(INDEX('Data Annex'!$K$1:$AN$4997,MATCH(K$45&\"|\"&$B76,'Data Annex'!$K$1:$K$4997,0),MATCH(K$46,'Data Annex'!$K$1:$AN$1,0)),\"\")","v":0.43343618070000001},{"$f":"IFERROR(INDEX('Data Annex'!$K$1:$AN$4997,MATCH(L$45&\"|\"&$B76,'Data Annex'!$K$1:$K$4997,0),MATCH(L$46,'Data Annex'!$K$1:$AN$1,0)),\"\")","v":0.45476455430000001},{"$f":"IFERROR(INDEX('Data Annex'!$K$1:$AN$4997,MATCH(M$45&\"|\"&$B76,'Data Annex'!$K$1:$K$4997,0),MATCH(M$46,'Data Annex'!$K$1:$AN$1,0)),\"\")","v":0.27162039329999998},{"$f":"IFERROR(INDEX('Data Annex'!$K$1:$AN$4997,MATCH(N$45&\"|\"&$B76,'Data Annex'!$K$1:$K$4997,0),MATCH(N$46,'Data Annex'!$K$1:$AN$1,0)),\"\")","v":0.2790410062},{"$f":"IFERROR(INDEX('Data Annex'!$K$1:$AN$4997,MATCH(O$45&\"|\"&$B76,'Data Annex'!$K$1:$K$4997,0),MATCH(O$46,'Data Annex'!$K$1:$AN$1,0)),\"\")","v":0.28169456329999998},{"$f":"IFERROR(INDEX('Data Annex'!$K$1:$AN$4997,MATCH(P$45&\"|\"&$B76,'Data Annex'!$K$1:$K$4997,0),MATCH(P$46,'Data Annex'!$K$1:$AN$1,0)),\"\")","v":0.29919129420000001},{"$f":"IFERROR(INDEX('Data Annex'!$K$1:$AN$4997,MATCH(Q$45&\"|\"&$B76,'Data Annex'!$K$1:$K$4997,0),MATCH(Q$46,'Data Annex'!$K$1:$AN$1,0)),\"\")","v":0.5626938869},{"$f":"IFERROR(INDEX('Data Annex'!$K$1:$AN$4997,MATCH(R$45&\"|\"&$B76,'Data Annex'!$K$1:$K$4997,0),MATCH(R$46,'Data Annex'!$K$1:$AN$1,0)),\"\")","v":0.56693421310000003},{"$f":"IFERROR(INDEX('Data Annex'!$K$1:$AN$4997,MATCH(S$45&\"|\"&$B76,'Data Annex'!$K$1:$K$4997,0),MATCH(S$46,'Data Annex'!$K$1:$AN$1,0)),\"\")","v":0.58035470450000004},{"$f":"IFERROR(INDEX('Data Annex'!$K$1:$AN$4997,MATCH(T$45&\"|\"&$B76,'Data Annex'!$K$1:$K$4997,0),MATCH(T$46,'Data Annex'!$K$1:$AN$1,0)),\"\")","v":0.56213622100000005},{"$f":"IFERROR(INDEX('Data Annex'!$K$1:$AN$4997,MATCH(U$45&\"|\"&$B76,'Data Annex'!$K$1:$K$4997,0),MATCH(U$46,'Data Annex'!$K$1:$AN$1,0)),\"\")","v":0.51554329109999997},{"$f":"IFERROR(INDEX('Data Annex'!$K$1:$AN$4997,MATCH(V$45&\"|\"&$B76,'Data Annex'!$K$1:$K$4997,0),MATCH(V$46,'Data Annex'!$K$1:$AN$1,0)),\"\")","v":0.51682449770000005},{"$f":"IFERROR(INDEX('Data Annex'!$K$1:$AN$4997,MATCH(W$45&\"|\"&$B76,'Data Annex'!$K$1:$K$4997,0),MATCH(W$46,'Data Annex'!$K$1:$AN$1,0)),\"\")","v":0.53760006680000005},{"$f":"IFERROR(INDEX('Data Annex'!$K$1:$AN$4997,MATCH(X$45&\"|\"&$B76,'Data Annex'!$K$1:$K$4997,0),MATCH(X$46,'Data Annex'!$K$1:$AN$1,0)),\"\")","v":0.52279271250000003},{"$f":"IFERROR(INDEX('Data Annex'!$K$1:$AN$4997,MATCH(Y$45&\"|\"&$B76,'Data Annex'!$K$1:$K$4997,0),MATCH(Y$46,'Data Annex'!$K$1:$AN$1,0)),\"\")","v":0.46545600850000002},{"$f":"IFERROR(INDEX('Data Annex'!$K$1:$AN$4997,MATCH(Z$45&\"|\"&$B76,'Data Annex'!$K$1:$K$4997,0),MATCH(Z$46,'Data Annex'!$K$1:$AN$1,0)),\"\")","v":0.47305378770000001},{"$f":"IFERROR(INDEX('Data Annex'!$K$1:$AN$4997,MATCH(AA$45&\"|\"&$B76,'Data Annex'!$K$1:$K$4997,0),MATCH(AA$46,'Data Annex'!$K$1:$AN$1,0)),\"\")","v":0.48698321929999999},{"$f":"IFERROR(INDEX('Data Annex'!$K$1:$AN$4997,MATCH(AB$45&\"|\"&$B76,'Data Annex'!$K$1:$K$4997,0),MATCH(AB$46,'Data Annex'!$K$1:$AN$1,0)),\"\")","v":0.46420898090000001}]
[27,"RO",null,"RO",{"$f":"IFERROR(INDEX('Data Annex'!$K$1:$AN$4997,MATCH(E$45&\"|\"&$B77,'Data Annex'!$K$1:$K$4997,0),MATCH(E$46,'Data Annex'!$K$1:$AN$1,0)),\"\")","v":0.6569501163},{"$f":"IFERROR(INDEX('Data Annex'!$K$1:$AN$4997,MATCH(F$45&\"|\"&$B77,'Data Annex'!$K$1:$K$4997,0),MATCH(F$46,'Data Annex'!$K$1:$AN$1,0)),\"\")","v":0.65476861409999998},{"$f":"IFERROR(INDEX('Data Annex'!$K$1:$AN$4997,MATCH(G$45&\"|\"&$B77,'Data Annex'!$K$1:$K$4997,0),MATCH(G$46,'Data Annex'!$K$1:$AN$1,0)),\"\")","v":0.6535126108},{"$f":"IFERROR(INDEX('Data Annex'!$K$1:$AN$4997,MATCH(H$45&\"|\"&$B77,'Data Annex'!$K$1:$K$4997,0),MATCH(H$46,'Data Annex'!$K$1:$AN$1,0)),\"\")","v":0.65903498469999999},{"$f":"IFERROR(INDEX('Data Annex'!$K$1:$AN$4997,MATCH(I$45&\"|\"&$B77,'Data Annex'!$K$1:$K$4997,0),MATCH(I$46,'Data Annex'!$K$1:$AN$1,0)),\"\")","v":0.67892706179999995},{"$f":"IFERROR(INDEX('Data Annex'!$K$1:$AN$4997,MATCH(J$45&\"|\"&$B77,'Data Annex'!$K$1:$K$4997,0),MATCH(J$46,'Data Annex'!$K$1:$AN$1,0)),\"\")","v":0.68578829640000005},{"$f":"IFERROR(INDEX('Data Annex'!$K$1:$AN$4997,MATCH(K$45&\"|\"&$B77,'Data Annex'!$K$1:$K$4997,0),MATCH(K$46,'Data Annex'!$K$1:$AN$1,0)),\"\")","v":0.69199747050000004},{"$f":"IFERROR(INDEX('Data Annex'!$K$1:$AN$4997,MATCH(L$45&\"|\"&$B77,'Data Annex'!$K$1:$K$4997,0),MATCH(L$46,'Data Annex'!$K$1:$AN$1,0)),\"\")","v":0.68236686420000003},{"$f":"IFERROR(INDEX('Data Annex'!$K$1:$AN$4997,MATCH(M$45&\"|\"&$B77,'Data Annex'!$K$1:$K$4997,0),MATCH(M$46,'Data Annex'!$K$1:$AN$1,0)),\"\")","v":0.5462946541},{"$f":"IFERROR(INDEX('Data Annex'!$K$1:$AN$4997,MATCH(N$45&\"|\"&$B77,'Data Annex'!$K$1:$K$4997,0),MATCH(N$46,'Data Annex'!$K$1:$AN$1,0)),\"\")","v":0.54102987950000003},{"$f":"IFERROR(INDEX('Data Annex'!$K$1:$AN$4997,MATCH(O$45&\"|\"&$B77,'Data Annex'!$K$1:$K$4997,0),MATCH(O$46,'Data Annex'!$K$1:$AN$1,0)),\"\")","v":0.53506536039999997},{"$f":"IFERROR(INDEX('Data Annex'!$K$1:$AN$4997,MATCH(P$45&\"|\"&$B77,'Data Annex'!$K$1:$K$4997,0),MATCH(P$46,'Data Annex'!$K$1:$AN$1,0)),\"\")","v":0.52004073319999999},{"$f":"IFERROR(INDEX('Data Annex'!$K$1:$AN$4997,MATCH(Q$45&\"|\"&$B77,'Data Annex'!$K$1:$K$4997,0),MATCH(Q$46,'Data Annex'!$K$1:$AN$1,0)),\"\")","v":0.63529874779999995},{"$f":"IFERROR(INDEX('Data Annex'!$K$1:$AN$4997,MATCH(R$45&\"|\"&$B77,'Data Annex'!$K$1:$K$4997,0),MATCH(R$46,'Data Annex'!$K$1:$AN$1,0)),\"\")","v":0.63019436039999999},{"$f":"IFERROR(INDEX('Data Annex'!$K$1:$AN$4997,MATCH(S$45&\"|\"&$B77,'Data Annex'!$K$1:$K$4997,0),MATCH(S$46,'Data Annex'!$K$1:$AN$1,0)),\"\")","v":0.62195344249999995},{"$f":"IFERROR(INDEX('Data Annex'!$K$1:$AN$4997,MATCH(T$45&\"|\"&$B77,'Data Annex'!$K$1:$K$4997,0),MATCH(T$46,'Data Annex'!$K$1:$AN$1,0)),\"\")","v":0.63902770819999999},{"$f":"IFERROR(INDEX('Data Annex'!$K$1:$AN$4997,MATCH(U$45&\"|\"&$B77,'Data Annex'!$K$1:$K$4997,0),MATCH(U$46,'Data Annex'!$K$1:$AN$1,0)),\"\")","v":0.65187767620000003},{"$f":"IFERROR(INDEX('Data Annex'!$K$1:$AN$4997,MATCH(V$45&\"|\"&$B77,'Data Annex'!$K$1:$K$4997,0),MATCH(V$46,'Data Annex'!$K$1:$AN$1,0)),\"\")","v":0.63844154040000001},{"$f":"IFERROR(INDEX('Data Annex'!$K$1:$AN$4997,MATCH(W$45&\"|\"&$B77,'Data Annex'!$K$1:$K$4997,0),MATCH(W$46,'Data Annex'!$K$1:$AN$1,0)),\"\")","v":0.61824794520000004},{"$f":"IFERROR(INDEX('Data Annex'!$K$1:$AN$4997,MATCH(X$45&\"|\"&$B77,'Data Annex'!$K$1:$K$4997,0),MATCH(X$46,'Data Annex'!$K$1:$AN$1,0)),\"\")","v":0.6284500328},{"$f":"IFERROR(INDEX('Data Annex'!$K$1:$AN$4997,MATCH(Y$45&\"|\"&$B77,'Data Annex'!$K$1:$K$4997,0),MATCH(Y$46,'Data Annex'!$K$1:$AN$1,0)),\"\")","v":0.49923426209999999},{"$f":"IFERROR(INDEX('Data Annex'!$K$1:$AN$4997,MATCH(Z$45&\"|\"&$B77,'Data Annex'!$K$1:$K$4997,0),MATCH(Z$46,'Data Annex'!$K$1:$AN$1,0)),\"\")","v":0.55850083070000001},{"$f":"IFERROR(INDEX('Data Annex'!$K$1:$AN$4997,MATCH(AA$45&\"|\"&$B77,'Data Annex'!$K$1:$K$4997,0),MATCH(AA$46,'Data Annex'!$K$1:$AN$1,0)),\"\")","v":0.56426585200000001},{"$f":"IFERROR(INDEX('Data Annex'!$K$1:$AN$4997,MATCH(AB$45&\"|\"&$B77,'Data Annex'!$K$1:$K$4997,0),MATCH(AB$46,'Data Annex'!$K$1:$AN$1,0)),\"\")","v":0.58377126739999996}]
[28,"SE",null,"SE",{"$f":"IFERROR(INDEX('Data Annex'!$K$1:$AN$4997,MATCH(E$45&\"|\"&$B78,'Data Annex'!$K$1:$K$4997,0),MATCH(E$46,'Data Annex'!$K$1:$AN$1,0)),\"\")","v":0.4035740914},{"$f":"IFERROR(INDEX('Data Annex'!$K$1:$AN$4997,MATCH(F$45&\"|\"&$B78,'Data Annex'!$K$1:$K$4997,0),MATCH(F$46,'Data Annex'!$K$1:$AN$1,0)),\"\")","v":0.40936398359999998},{"$f":"IFERROR(INDEX('Data Annex'!$K$1:$AN$4997,MATCH(G$45&\"|\"&$B78,'Data Annex'!$K$1:$K$4997,0),MATCH(G$46,'Data Annex'!$K$1:$AN$1,0)),\"\")","v":0.4250273604},{"$f":"IFERROR(INDEX('Data Annex'!$K$1:$AN$4997,MATCH(H$45&\"|\"&$B78,'Data Annex'!$K$1:$K$4997,0),MATCH(H$46,'Data Annex'!$K$1:$AN$1,0)),\"\")","v":0.42603835210000002},{"$f":"IFERROR(INDEX('Data Annex'!$K$1:$AN$4997,MATCH(I$45&\"|\"&$B78,'Data Annex'!$K$1:$K$4997,0),MATCH(I$46,'Data Annex'!$K$1:$AN$1,0)),\"\")","v":0.31953030339999999},{"$f":"IFERROR(INDEX('Data Annex'!$K$1:$AN$4997,MATCH(J$45&\"|\"&$B78,'Data Annex'!$K$1:$K$4997,0),MATCH(J$46,'Data Annex'!$K$1:$AN$1,0)),\"\")","v":0.31217320630000001},{"$f":"IFERROR(INDEX('Data Annex'!$K$1:$AN$4997,MATCH(K$45&\"|\"&$B78,'Data Annex'!$K$1:$K$4997,0),MATCH(K$46,'Data Annex'!$K$1:$AN$1,0)),\"\")","v":0.32314767570000003},{"$f":"IFERROR(INDEX('Data Annex'!$K$1:$AN$4997,MATCH(L$45&\"|\"&$B78,'Data Annex'!$K$1:$K$4997,0),MATCH(L$46,'Data Annex'!$K$1:$AN$1,0)),\"\")","v":0.32999225389999998},{"$f":"IFERROR(INDEX('Data Annex'!$K$1:$AN$4997,MATCH(M$45&\"|\"&$B78,'Data Annex'!$K$1:$K$4997,0),MATCH(M$46,'Data Annex'!$K$1:$AN$1,0)),\"\")","v":0.19208090150000001},{"$f":"IFERROR(INDEX('Data Annex'!$K$1:$AN$4997,MATCH(N$45&\"|\"&$B78,'Data Annex'!$K$1:$K$4997,0),MATCH(N$46,'Data Annex'!$K$1:$AN$1,0)),\"\")","v":0.17671744980000001},{"$f":"IFERROR(INDEX('Data Annex'!$K$1:$AN$4997,MATCH(O$45&\"|\"&$B78,'Data Annex'!$K$1:$K$4997,0),MATCH(O$46,'Data Annex'!$K$1:$AN$1,0)),\"\")","v":0.1714615088},{"$f":"IFERROR(INDEX('Data Annex'!$K$1:$AN$4997,MATCH(P$45&\"|\"&$B78,'Data Annex'!$K$1:$K$4997,0),MATCH(P$46,'Data Annex'!$K$1:$AN$1,0)),\"\")","v":0.17233117319999999},{"$f":"IFERROR(INDEX('Data Annex'!$K$1:$AN$4997,MATCH(Q$45&\"|\"&$B78,'Data Annex'!$K$1:$K$4997,0),MATCH(Q$46,'Data Annex'!$K$1:$AN$1,0)),\"\")","v":0.44802907860000002},{"$f":"IFERROR(INDEX('Data Annex'!$K$1:$AN$4997,MATCH(R$45&\"|\"&$B78,'Data Annex'!$K$1:$K$4997,0),MATCH(R$46,'Data Annex'!$K$1:$AN$1,0)),\"\")","v":0.45097533620000002},{"$f":"IFERROR(INDEX('Data Annex'!$K$1:$AN$4997,MATCH(S$45&\"|\"&$B78,'Data Annex'!$K$1:$K$4997,0),MATCH(S$46,'Data Annex'!$K$1:$AN$1,0)),\"\")","v":0.46152535249999999},{"$f":"IFERROR(INDEX('Data Annex'!$K$1:$AN$4997,MATCH(T$45&\"|\"&$B78,'Data Annex'!$K$1:$K$4997,0),MATCH(T$46,'Data Annex'!$K$1:$AN$1,0)),\"\")","v":0.46433713720000003},{"$f":"IFERROR(INDEX('Data Annex'!$K$1:$AN$4997,MATCH(U$45&\"|\"&$B78,'Data Annex'!$K$1:$K$4997,0),MATCH(U$46,'Data Annex'!$K$1:$AN$1,0)),\"\")","v":0.25909545160000003},{"$f":"IFERROR(INDEX('Data Annex'!$K$1:$AN$4997,MATCH(V$45&\"|\"&$B78,'Data Annex'!$K$1:$K$4997,0),MATCH(V$46,'Data Annex'!$K$1:$AN$1,0)),\"\")","v":0.25617808450000001},{"$f":"IFERROR(INDEX('Data Annex'!$K$1:$AN$4997,MATCH(W$45&\"|\"&$B78,'Data Annex'!$K$1:$K$4997,0),MATCH(W$46,'Data Annex'!$K$1:$AN$1,0)),\"\")","v":0.27672662539999998},{"$f":"IFERROR(INDEX('Data Annex'!$K$1:$AN$4997,MATCH(X$45&\"|\"&$B78,'Data Annex'!$K$1:$K$4997,0),MATCH(X$46,'Data Annex'!$K$1:$AN$1,0)),\"\")","v":0.26736496589999997},{"$f":"IFERROR(INDEX('Data Annex'!$K$1:$AN$4997,MATCH(Y$45&\"|\"&$B78,'Data Annex'!$K$1:$K$4997,0),MATCH(Y$46,'Data Annex'!$K$1:$AN$1,0)),\"\")","v":0.31723647399999999},{"$f":"IFERROR(INDEX('Data Annex'!$K$1:$AN$4997,MATCH(Z$45&\"|\"&$B78,'Data Annex'!$K$1:$K$4997,0),MATCH(Z$46,'Data Annex'!$K$1:$AN$1,0)),\"\")","v":0.26073753059999999},{"$f":"IFERROR(INDEX('Data Annex'!$K$1:$AN$4997,MATCH(AA$45&\"|\"&$B78,'Data Annex'!$K$1:$K$4997,0),MATCH(AA$46,'Data Annex'!$K$1:$AN$1,0)),\"\")","v":0.25049668139999998},{"$f":"IFERROR(INDEX('Data Annex'!$K$1:$AN$4997,MATCH(AB$45&\"|\"&$B78,'Data Annex'!$K$1:$K$4997,0),MATCH(AB$46,'Data Annex'!$K$1:$AN$1,0)),\"\")","v":0.2442074383}]
[29,"SI",null,"SI",{"$f":"IFERROR(INDEX('Data Annex'!$K$1:$AN$4997,MATCH(E$45&\"|\"&$B79,'Data Annex'!$K$1:$K$4997,0),MATCH(E$46,'Data Annex'!$K$1:$AN$1,0)),\"\")","v":0.52595892529999999},{"$f":"IFERROR(INDEX('Data Annex'!$K$1:$AN$4997,MATCH(F$45&\"|\"&$B79,'Data Annex'!$K$1:$K$4997,0),MATCH(F$46,'Data Annex'!$K$1:$AN$1,0)),\"\")","v":0.52262703899999996},{"$f":"IFERROR(INDEX('Data Annex'!$K$1:$AN$4997,MATCH(G$45&\"|\"&$B79,'Data Annex'!$K$1:$K$4997,0),MATCH(G$46,'Data Annex'!$K$1:$AN$1,0)),\"\")","v":0.52878185840000003},{"$f":"IFERROR(INDEX('Data Annex'!$K$1:$AN$4997,MATCH(H$45&\"|\"&$B79,'Data Annex'!$K$1:$K$4997,0),MATCH(H$46,'Data Annex'!$K$1:$AN$1,0)),\"\")","v":0.51269833649999996},{"$f":"IFERROR(INDEX('Data Annex'!$K$1:$AN$4997,MATCH(I$45&\"|\"&$B79,'Data Annex'!$K$1:$K$4997,0),MATCH(I$46,'Data Annex'!$K$1:$AN$1,0)),\"\")","v":0.53587416590000003},{"$f":"IFERROR(INDEX('Data Annex'!$K$1:$AN$4997,MATCH(J$45&\"|\"&$B79,'Data Annex'!$K$1:$K$4997,0),MATCH(J$46,'Data Annex'!$K$1:$AN$1,0)),\"\")","v":0.52755065830000003},{"$f":"IFERROR(INDEX('Data Annex'!$K$1:$AN$4997,MATCH(K$45&\"|\"&$B79,'Data Annex'!$K$1:$K$4997,0),MATCH(K$46,'Data Annex'!$K$1:$AN$1,0)),\"\")","v":0.52567553980000004},{"$f":"IFERROR(INDEX('Data Annex'!$K$1:$AN$4997,MATCH(L$45&\"|\"&$B79,'Data Annex'!$K$1:$K$4997,0),MATCH(L$46,'Data Annex'!$K$1:$AN$1,0)),\"\")","v":0.49800079580000001},{"$f":"IFERROR(INDEX('Data Annex'!$K$1:$AN$4997,MATCH(M$45&\"|\"&$B79,'Data Annex'!$K$1:$K$4997,0),MATCH(M$46,'Data Annex'!$K$1:$AN$1,0)),\"\")","v":0.3136527616},{"$f":"IFERROR(INDEX('Data Annex'!$K$1:$AN$4997,MATCH(N$45&\"|\"&$B79,'Data Annex'!$K$1:$K$4997,0),MATCH(N$46,'Data Annex'!$K$1:$AN$1,0)),\"\")","v":0.30842665520000001},{"$f":"IFERROR(INDEX('Data Annex'!$K$1:$AN$4997,MATCH(O$45&\"|\"&$B79,'Data Annex'!$K$1:$K$4997,0),MATCH(O$46,'Data Annex'!$K$1:$AN$1,0)),\"\")","v":0.30183115360000001},{"$f":"IFERROR(INDEX('Data Annex'!$K$1:$AN$4997,MATCH(P$45&\"|\"&$B79,'Data Annex'!$K$1:$K$4997,0),MATCH(P$46,'Data Annex'!$K$1:$AN$1,0)),\"\")","v":0.35230845779999997},{"$f":"IFERROR(INDEX('Data Annex'!$K$1:$AN$4997,MATCH(Q$45&\"|\"&$B79,'Data Annex'!$K$1:$K$4997,0),MATCH(Q$46,'Data Annex'!$K$1:$AN$1,0)),\"\")","v":0.61625286720000005},{"$f":"IFERROR(INDEX('Data Annex'!$K$1:$AN$4997,MATCH(R$45&\"|\"&$B79,'Data Annex'!$K$1:$K$4997,0),MATCH(R$46,'Data Annex'!$K$1:$AN$1,0)),\"\")","v":0.60695005629999998},{"$f":"IFERROR(INDEX('Data Annex'!$K$1:$AN$4997,MATCH(S$45&\"|\"&$B79,'Data Annex'!$K$1:$K$4997,0),MATCH(S$46,'Data Annex'!$K$1:$AN$1,0)),\"\")","v":0.63606218150000005},{"$f":"IFERROR(INDEX('Data Annex'!$K$1:$AN$4997,MATCH(T$45&\"|\"&$B79,'Data Annex'!$K$1:$K$4997,0),MATCH(T$46,'Data Annex'!$K$1:$AN$1,0)),\"\")","v":0.59802555550000003},{"$f":"IFERROR(INDEX('Data Annex'!$K$1:$AN$4997,MATCH(U$45&\"|\"&$B79,'Data Annex'!$K$1:$K$4997,0),MATCH(U$46,'Data Annex'!$K$1:$AN$1,0)),\"\")","v":0.63407034750000002},{"$f":"IFERROR(INDEX('Data Annex'!$K$1:$AN$4997,MATCH(V$45&\"|\"&$B79,'Data Annex'!$K$1:$K$4997,0),MATCH(V$46,'Data Annex'!$K$1:$AN$1,0)),\"\")","v":0.61892883830000001},{"$f":"IFERROR(INDEX('Data Annex'!$K$1:$AN$4997,MATCH(W$45&\"|\"&$B79,'Data Annex'!$K$1:$K$4997,0),MATCH(W$46,'Data Annex'!$K$1:$AN$1,0)),\"\")","v":0.6295744512},{"$f":"IFERROR(INDEX('Data Annex'!$K$1:$AN$4997,MATCH(X$45&\"|\"&$B79,'Data Annex'!$K$1:$K$4997,0),MATCH(X$46,'Data Annex'!$K$1:$AN$1,0)),\"\")","v":0.58586159419999995},{"$f":"IFERROR(INDEX('Data Annex'!$K$1:$AN$4997,MATCH(Y$45&\"|\"&$B79,'Data Annex'!$K$1:$K$4997,0),MATCH(Y$46,'Data Annex'!$K$1:$AN$1,0)),\"\")","v":0.58600135180000001},{"$f":"IFERROR(INDEX('Data Annex'!$K$1:$AN$4997,MATCH(Z$45&\"|\"&$B79,'Data Annex'!$K$1:$K$4997,0),MATCH(Z$46,'Data Annex'!$K$1:$AN$1,0)),\"\")","v":0.58176548859999999},{"$f":"IFERROR(INDEX('Data Annex'!$K$1:$AN$4997,MATCH(AA$45&\"|\"&$B79,'Data Annex'!$K$1:$K$4997,0),MATCH(AA$46,'Data Annex'!$K$1:$AN$1,0)),\"\")","v":0.62675766160000002},{"$f":"IFERROR(INDEX('Data Annex'!$K$1:$AN$4997,MATCH(AB$45&\"|\"&$B79,'Data Annex'!$K$1:$K$4997,0),MATCH(AB$46,'Data Annex'!$K$1:$AN$1,0)),\"\")","v":0.60057988969999998}]
[30,"SK",null,"SK",{"$f":"IFERROR(INDEX('Data Annex'!$K$1:$AN$4997,MATCH(E$45&\"|\"&$B80,'Data Annex'!$K$1:$K$4997,0),MATCH(E$46,'Data Annex'!$K$1:$AN$1,0)),\"\")","v":0.61114273119999996},{"$f":"IFERROR(INDEX('Data Annex'!$K$1:$AN$4997,MATCH(F$45&\"|\"&$B80,'Data Annex'!$K$1:$K$4997,0),MATCH(F$46,'Data Annex'!$K$1:$AN$1,0)),\"\")","v":0.62540424770000003},{"$f":"IFERROR(INDEX('Data Annex'!$K$1:$AN$4997,MATCH(G$45&\"|\"&$B80,'Data Annex'!$K$1:$K$4997,0),MATCH(G$46,'Data Annex'!$K$1:$AN$1,0)),\"\")","v":0.64644367940000003},{"$f":"IFERROR(INDEX('Data Annex'!$K$1:$AN$4997,MATCH(H$45&\"|\"&$B80,'Data Annex'!$K$1:$K$4997,0),MATCH(H$46,'Data Annex'!$K$1:$AN$1,0)),\"\")","v":0.62160483040000003},{"$f":"IFERROR(INDEX('Data Annex'!$K$1:$AN$4997,MATCH(I$45&\"|\"&$B80,'Data Annex'!$K$1:$K$4997,0),MATCH(I$46,'Data Annex'!$K$1:$AN$1,0)),\"\")","v":0.60322309500000004},{"$f":"IFERROR(INDEX('Data Annex'!$K$1:$AN$4997,MATCH(J$45&\"|\"&$B80,'Data Annex'!$K$1:$K$4997,0),MATCH(J$46,'Data Annex'!$K$1:$AN$1,0)),\"\")","v":0.61423079550000004},{"$f":"IFERROR(INDEX('Data Annex'!$K$1:$AN$4997,MATCH(K$45&\"|\"&$B80,'Data Annex'!$K$1:$K$4997,0),MATCH(K$46,'Data Annex'!$K$1:$AN$1,0)),\"\")","v":0.63162702059999998},{"$f":"IFERROR(INDEX('Data Annex'!$K$1:$AN$4997,MATCH(L$45&\"|\"&$B80,'Data Annex'!$K$1:$K$4997,0),MATCH(L$46,'Data Annex'!$K$1:$AN$1,0)),\"\")","v":0.58869067180000001},{"$f":"IFERROR(INDEX('Data Annex'!$K$1:$AN$4997,MATCH(M$45&\"|\"&$B80,'Data Annex'!$K$1:$K$4997,0),MATCH(M$46,'Data Annex'!$K$1:$AN$1,0)),\"\")","v":0.44037507180000002},{"$f":"IFERROR(INDEX('Data Annex'!$K$1:$AN$4997,MATCH(N$45&\"|\"&$B80,'Data Annex'!$K$1:$K$4997,0),MATCH(N$46,'Data Annex'!$K$1:$AN$1,0)),\"\")","v":0.44933624719999998},{"$f":"IFERROR(INDEX('Data Annex'!$K$1:$AN$4997,MATCH(O$45&\"|\"&$B80,'Data Annex'!$K$1:$K$4997,0),MATCH(O$46,'Data Annex'!$K$1:$AN$1,0)),\"\")","v":0.48488876689999999},{"$f":"IFERROR(INDEX('Data Annex'!$K$1:$AN$4997,MATCH(P$45&\"|\"&$B80,'Data Annex'!$K$1:$K$4997,0),MATCH(P$46,'Data Annex'!$K$1:$AN$1,0)),\"\")","v":0.41929417540000002},{"$f":"IFERROR(INDEX('Data Annex'!$K$1:$AN$4997,MATCH(Q$45&\"|\"&$B80,'Data Annex'!$K$1:$K$4997,0),MATCH(Q$46,'Data Annex'!$K$1:$AN$1,0)),\"\")","v":0.62652453409999997},{"$f":"IFERROR(INDEX('Data Annex'!$K$1:$AN$4997,MATCH(R$45&\"|\"&$B80,'Data Annex'!$K$1:$K$4997,0),MATCH(R$46,'Data Annex'!$K$1:$AN$1,0)),\"\")","v":0.6507892072},{"$f":"IFERROR(INDEX('Data Annex'!$K$1:$AN$4997,MATCH(S$45&\"|\"&$B80,'Data Annex'!$K$1:$K$4997,0),MATCH(S$46,'Data Annex'!$K$1:$AN$1,0)),\"\")","v":0.68217579139999995},{"$f":"IFERROR(INDEX('Data Annex'!$K$1:$AN$4997,MATCH(T$45&\"|\"&$B80,'Data Annex'!$K$1:$K$4997,0),MATCH(T$46,'Data Annex'!$K$1:$AN$1,0)),\"\")","v":0.69444564499999994},{"$f":"IFERROR(INDEX('Data Annex'!$K$1:$AN$4997,MATCH(U$45&\"|\"&$B80,'Data Annex'!$K$1:$K$4997,0),MATCH(U$46,'Data Annex'!$K$1:$AN$1,0)),\"\")","v":0.63956515810000003},{"$f":"IFERROR(INDEX('Data Annex'!$K$1:$AN$4997,MATCH(V$45&\"|\"&$B80,'Data Annex'!$K$1:$K$4997,0),MATCH(V$46,'Data Annex'!$K$1:$AN$1,0)),\"\")","v":0.64955906630000004},{"$f":"IFERROR(INDEX('Data Annex'!$K$1:$AN$4997,MATCH(W$45&\"|\"&$B80,'Data Annex'!$K$1:$K$4997,0),MATCH(W$46,'Data Annex'!$K$1:$AN$1,0)),\"\")","v":0.70218028840000002},{"$f":"IFERROR(INDEX('Data Annex'!$K$1:$AN$4997,MATCH(X$45&\"|\"&$B80,'Data Annex'!$K$1:$K$4997,0),MATCH(X$46,'Data Annex'!$K$1:$AN$1,0)),\"\")","v":0.71459063119999999},{"$f":"IFERROR(INDEX('Data Annex'!$K$1:$AN$4997,MATCH(Y$45&\"|\"&$B80,'Data Annex'!$K$1:$K$4997,0),MATCH(Y$46,'Data Annex'!$K$1:$AN$1,0)),\"\")","v":0.65637601459999995},{"$f":"IFERROR(INDEX('Data Annex'!$K$1:$AN$4997,MATCH(Z$45&\"|\"&$B80,'Data Annex'!$K$1:$K$4997,0),MATCH(Z$46,'Data Annex'!$K$1:$AN$1,0)),\"\")","v":0.6158820841},{"$f":"IFERROR(INDEX('Data Annex'!$K$1:$AN$4997,MATCH(AA$45&\"|\"&$B80,'Data Annex'!$K$1:$K$4997,0),MATCH(AA$46,'Data Annex'!$K$1:$AN$1,0)),\"\")","v":0.68723363829999995},{"$f":"IFERROR(INDEX('Data Annex'!$K$1:$AN$4997,MATCH(AB$45&\"|\"&$B80,'Data Annex'!$K$1:$K$4997,0),MATCH(AB$46,'Data Annex'!$K$1:$AN$1,0)),\"\")","v":0.68303798520000003}]
[99,"EU",null,"EU/EEA",{"$f":"IFERROR(INDEX('Data Annex'!$K$1:$AN$4997,MATCH(E$45&\"|\"&$B81,'Data Annex'!$K$1:$K$4997,0),MATCH(E$46,'Data Annex'!$K$1:$AN$1,0)),\"\")","v":0.4599164932},{"$f":"IFERROR(INDEX('Data Annex'!$K$1:$AN$4997,MATCH(F$45&\"|\"&$B81,'Data Annex'!$K$1:$K$4997,0),MATCH(F$46,'Data Annex'!$K$1:$AN$1,0)),\"\")","v":0.4545849985},{"$f":"IFERROR(INDEX('Data Annex'!$K$1:$AN$4997,MATCH(G$45&\"|\"&$B81,'Data Annex'!$K$1:$K$4997,0),MATCH(G$46,'Data Annex'!$K$1:$AN$1,0)),\"\")","v":0.45491587859999999},{"$f":"IFERROR(INDEX('Data Annex'!$K$1:$AN$4997,MATCH(H$45&\"|\"&$B81,'Data Annex'!$K$1:$K$4997,0),MATCH(H$46,'Data Annex'!$K$1:$AN$1,0)),\"\")","v":0.44940126359999999},{"$f":"IFERROR(INDEX('Data Annex'!$K$1:$AN$4997,MATCH(I$45&\"|\"&$B81,'Data Annex'!$K$1:$K$4997,0),MATCH(I$46,'Data Annex'!$K$1:$AN$1,0)),\"\")","v":0.41782655810000002},{"$f":"IFERROR(INDEX('Data Annex'!$K$1:$AN$4997,MATCH(J$45&\"|\"&$B81,'Data Annex'!$K$1:$K$4997,0),MATCH(J$46,'Data Annex'!$K$1:$AN$1,0)),\"\")","v":0.41655959120000002},{"$f":"IFERROR(INDEX('Data Annex'!$K$1:$AN$4997,MATCH(K$45&\"|\"&$B81,'Data Annex'!$K$1:$K$4997,0),MATCH(K$46,'Data Annex'!$K$1:$AN$1,0)),\"\")","v":0.4177361201},{"$f":"IFERROR(INDEX('Data Annex'!$K$1:$AN$4997,MATCH(L$45&\"|\"&$B81,'Data Annex'!$K$1:$K$4997,0),MATCH(L$46,'Data Annex'!$K$1:$AN$1,0)),\"\")","v":0.42363688579999997},{"$f":"IFERROR(INDEX('Data Annex'!$K$1:$AN$4997,MATCH(M$45&\"|\"&$B81,'Data Annex'!$K$1:$K$4997,0),MATCH(M$46,'Data Annex'!$K$1:$AN$1,0)),\"\")","v":0.2673254109},{"$f":"IFERROR(INDEX('Data Annex'!$K$1:$AN$4997,MATCH(N$45&\"|\"&$B81,'Data Annex'!$K$1:$K$4997,0),MATCH(N$46,'Data Annex'!$K$1:$AN$1,0)),\"\")","v":0.26356834639999999},{"$f":"IFERROR(INDEX('Data Annex'!$K$1:$AN$4997,MATCH(O$45&\"|\"&$B81,'Data Annex'!$K$1:$K$4997,0),MATCH(O$46,'Data Annex'!$K$1:$AN$1,0)),\"\")","v":0.26139358270000002},{"$f":"IFERROR(INDEX('Data Annex'!$K$1:$AN$4997,MATCH(P$45&\"|\"&$B81,'Data Annex'!$K$1:$K$4997,0),MATCH(P$46,'Data Annex'!$K$1:$AN$1,0)),\"\")","v":0.26025159240000001},{"$f":"IFERROR(INDEX('Data Annex'!$K$1:$AN$4997,MATCH(Q$45&\"|\"&$B81,'Data Annex'!$K$1:$K$4997,0),MATCH(Q$46,'Data Annex'!$K$1:$AN$1,0)),\"\")","v":0.49482646819999998},{"$f":"IFERROR(INDEX('Data Annex'!$K$1:$AN$4997,MATCH(R$45&\"|\"&$B81,'Data Annex'!$K$1:$K$4997,0),MATCH(R$46,'Data Annex'!$K$1:$AN$1,0)),\"\")","v":0.48614174290000001},{"$f":"IFERROR(INDEX('Data Annex'!$K$1:$AN$4997,MATCH(S$45&\"|\"&$B81,'Data Annex'!$K$1:$K$4997,0),MATCH(S$46,'Data Annex'!$K$1:$AN$1,0)),\"\")","v":0.4865877817},{"$f":"IFERROR(INDEX('Data Annex'!$K$1:$AN$4997,MATCH(T$45&\"|\"&$B81,'Data Annex'!$K$1:$K$4997,0),MATCH(T$46,'Data Annex'!$K$1:$AN$1,0)),\"\")","v":0.47438843539999997},{"$f":"IFERROR(INDEX('Data Annex'!$K$1:$AN$4997,MATCH(U$45&\"|\"&$B81,'Data Annex'!$K$1:$K$4997,0),MATCH(U$46,'Data Annex'!$K$1:$AN$1,0)),\"\")","v":0.50024301800000004},{"$f":"IFERROR(INDEX('Data Annex'!$K$1:$AN$4997,MATCH(V$45&\"|\"&$B81,'Data Annex'!$K$1:$K$4997,0),MATCH(V$46,'Data Annex'!$K$1:$AN$1,0)),\"\")","v":0.49169572410000001},{"$f":"IFERROR(INDEX('Data Annex'!$K$1:$AN$4997,MATCH(W$45&\"|\"&$B81,'Data Annex'!$K$1:$K$4997,0),MATCH(W$46,'Data Annex'!$K$1:$AN$1,0)),\"\")","v":0.49643610110000003},{"$f":"IFERROR(INDEX('Data Annex'!$K$1:$AN$4997,MATCH(X$45&\"|\"&$B81,'Data Annex'!$K$1:$K$4997,0),MATCH(X$46,'Data Annex'!$K$1:$AN$1,0)),\"\")","v":0.48686589590000001},{"$f":"IFERROR(INDEX('Data Annex'!$K$1:$AN$4997,MATCH(Y$45&\"|\"&$B81,'Data Annex'!$K$1:$K$4997,0),MATCH(Y$46,'Data Annex'!$K$1:$AN$1,0)),\"\")","v":0.37522095719999998},{"$f":"IFERROR(INDEX('Data Annex'!$K$1:$AN$4997,MATCH(Z$45&\"|\"&$B81,'Data Annex'!$K$1:$K$4997,0),MATCH(Z$46,'Data Annex'!$K$1:$AN$1,0)),\"\")","v":0.3770464416},{"$f":"IFERROR(INDEX('Data Annex'!$K$1:$AN$4997,MATCH(AA$45&\"|\"&$B81,'Data Annex'!$K$1:$K$4997,0),MATCH(AA$46,'Data Annex'!$K$1:$AN$1,0)),\"\")","v":0.3783044371},{"$f":"IFERROR(INDEX('Data Annex'!$K$1:$AN$4997,MATCH(AB$45&\"|\"&$B81,'Data Annex'!$K$1:$K$4997,0),MATCH(AB$46,'Data Annex'!$K$1:$AN$1,0)),\"\")","v":0.36358835299999998}]
[12,"GB",null,"GB",{"$f":"IFERROR(INDEX('Data Annex'!$K$1:$AN$4997,MATCH(E$45&\"|\"&$B82,'Data Annex'!$K$1:$K$4997,0),MATCH(E$46,'Data Annex'!$K$1:$AN$1,0)),\"\")","v":0.36177323970000003},{"$f":"IFERROR(INDEX('Data Annex'!$K$1:$AN$4997,MATCH(F$45&\"|\"&$B82,'Data Annex'!$K$1:$K$4997,0),MATCH(F$46,'Data Annex'!$K$1:$AN$1,0)),\"\")","v":0.36478775730000002},{"$f":"IFERROR(INDEX('Data Annex'!$K$1:$AN$4997,MATCH(G$45&\"|\"&$B82,'Data Annex'!$K$1:$K$4997,0),MATCH(G$46,'Data Annex'!$K$1:$AN$1,0)),\"\")","v":0.3589980821},{"$f":"IFERROR(INDEX('Data Annex'!$K$1:$AN$4997,MATCH(H$45&\"|\"&$B82,'Data Annex'!$K$1:$K$4997,0),MATCH(H$46,'Data Annex'!$K$1:$AN$1,0)),\"\")","v":0.3551486928},{"$f":"IFERROR(INDEX('Data Annex'!$K$1:$AN$4997,MATCH(I$45&\"|\"&$B82,'Data Annex'!$K$1:$K$4997,0),MATCH(I$46,'Data Annex'!$K$1:$AN$1,0)),\"\")","v":0.26724108959999998},{"$f":"IFERROR(INDEX('Data Annex'!$K$1:$AN$4997,MATCH(J$45&\"|\"&$B82,'Data Annex'!$K$1:$K$4997,0),MATCH(J$46,'Data Annex'!$K$1:$AN$1,0)),\"\")","v":0.28025585279999998},{"$f":"IFERROR(INDEX('Data Annex'!$K$1:$AN$4997,MATCH(K$45&\"|\"&$B82,'Data Annex'!$K$1:$K$4997,0),MATCH(K$46,'Data Annex'!$K$1:$AN$1,0)),\"\")","v":0.27920368130000001},{"$f":"IFERROR(INDEX('Data Annex'!$K$1:$AN$4997,MATCH(L$45&\"|\"&$B82,'Data Annex'!$K$1:$K$4997,0),MATCH(L$46,'Data Annex'!$K$1:$AN$1,0)),\"\")","v":0.27247471950000002},{"$f":"IFERROR(INDEX('Data Annex'!$K$1:$AN$4997,MATCH(M$45&\"|\"&$B82,'Data Annex'!$K$1:$K$4997,0),MATCH(M$46,'Data Annex'!$K$1:$AN$1,0)),\"\")","v":0.107972965},{"$f":"IFERROR(INDEX('Data Annex'!$K$1:$AN$4997,MATCH(N$45&\"|\"&$B82,'Data Annex'!$K$1:$K$4997,0),MATCH(N$46,'Data Annex'!$K$1:$AN$1,0)),\"\")","v":0.1209251948},{"$f":"IFERROR(INDEX('Data Annex'!$K$1:$AN$4997,MATCH(O$45&\"|\"&$B82,'Data Annex'!$K$1:$K$4997,0),MATCH(O$46,'Data Annex'!$K$1:$AN$1,0)),\"\")","v":0.13294844780000001},{"$f":"IFERROR(INDEX('Data Annex'!$K$1:$AN$4997,MATCH(P$45&\"|\"&$B82,'Data Annex'!$K$1:$K$4997,0),MATCH(P$46,'Data Annex'!$K$1:$AN$1,0)),\"\")","v":0.118845887},{"$f":"IFERROR(INDEX('Data Annex'!$K$1:$AN$4997,MATCH(Q$45&\"|\"&$B82,'Data Annex'!$K$1:$K$4997,0),MATCH(Q$46,'Data Annex'!$K$1:$AN$1,0)),\"\")","v":0.47260665940000002},{"$f":"IFERROR(INDEX('Data Annex'!$K$1:$AN$4997,MATCH(R$45&\"|\"&$B82,'Data Annex'!$K$1:$K$4997,0),MATCH(R$46,'Data Annex'!$K$1:$AN$1,0)),\"\")","v":0.45604254950000001},{"$f":"IFERROR(INDEX('Data Annex'!$K$1:$AN$4997,MATCH(S$45&\"|\"&$B82,'Data Annex'!$K$1:$K$4997,0),MATCH(S$46,'Data Annex'!$K$1:$AN$1,0)),\"\")","v":0.45261561360000002},{"$f":"IFERROR(INDEX('Data Annex'!$K$1:$AN$4997,MATCH(T$45&\"|\"&$B82,'Data Annex'!$K$1:$K$4997,0),MATCH(T$46,'Data Annex'!$K$1:$AN$1,0)),\"\")","v":0.43763098909999998},{"$f":"IFERROR(INDEX('Data Annex'!$K$1:$AN$4997,MATCH(U$45&\"|\"&$B82,'Data Annex'!$K$1:$K$4997,0),MATCH(U$46,'Data Annex'!$K$1:$AN$1,0)),\"\")","v":0.27956621770000001},{"$f":"IFERROR(INDEX('Data Annex'!$K$1:$AN$4997,MATCH(V$45&\"|\"&$B82,'Data Annex'!$K$1:$K$4997,0),MATCH(V$46,'Data Annex'!$K$1:$AN$1,0)),\"\")","v":0.3077217927},{"$f":"IFERROR(INDEX('Data Annex'!$K$1:$AN$4997,MATCH(W$45&\"|\"&$B82,'Data Annex'!$K$1:$K$4997,0),MATCH(W$46,'Data Annex'!$K$1:$AN$1,0)),\"\")","v":0.28166315419999999},{"$f":"IFERROR(INDEX('Data Annex'!$K$1:$AN$4997,MATCH(X$45&\"|\"&$B82,'Data Annex'!$K$1:$K$4997,0),MATCH(X$46,'Data Annex'!$K$1:$AN$1,0)),\"\")","v":0.29243234150000003},{"$f":"IFERROR(INDEX('Data Annex'!$K$1:$AN$4997,MATCH(Y$45&\"|\"&$B82,'Data Annex'!$K$1:$K$4997,0),MATCH(Y$46,'Data Annex'!$K$1:$AN$1,0)),\"\")","v":0.21901967050000001},{"$f":"IFERROR(INDEX('Data Annex'!$K$1:$AN$4997,MATCH(Z$45&\"|\"&$B82,'Data Annex'!$K$1:$K$4997,0),MATCH(Z$46,'Data Annex'!$K$1:$AN$1,0)),\"\")","v":0.29296007899999998},{"$f":"IFERROR(INDEX('Data Annex'!$K$1:$AN$4997,MATCH(AA$45&\"|\"&$B82,'Data Annex'!$K$1:$K$4997,0),MATCH(AA$46,'Data Annex'!$K$1:$AN$1,0)),\"\")","v":0.3105990025},{"$f":"IFERROR(INDEX('Data Annex'!$K$1:$AN$4997,MATCH(AB$45&\"|\"&$B82,'Data Annex'!$K$1:$K$4997,0),MATCH(AB$46,'Data Annex'!$K$1:$AN$1,0)),\"\")","v":0.2930411161}]
[]
[null,null,null,"Individual country data includes subsidiaries, which are excluded from EU aggregate. For example, at country level the subsidiary in country X of a bank domiciled in country Y is included both in data for countries X and Y (for the latter as part of the consolidated entity). In the EU aggregate, only the consolidated entity domiciled in country Y is considered.  The sample of banks is unbalanced and reviewed annually.\nAs of Q1 2020 onwards UK banks are removed from the EU/EEA aggregate and subsidiaries of UK banks in EU member states are used instead.\n"]
[null,null,null,"(1) Gross carrying amounts, other than trading exposures."]
[null,null,null,"(2) Gross carrying amounts, loans and advances at amortised costs (excluding at fair value through OCI and through P&L, excluding trading exposures)."]

{"sheet":"NACE composition","index":6,"n_rows":84,"n_cols":24,"rows_kept":84,"cut":false,"hidden":true,"merged":[[47,16,47,17],[47,18,47,19],[47,20,47,21],[83,3,83,24],[47,4,47,5],[47,6,47,7],[47,8,47,9],[47,10,47,11],[47,12,47,13],[47,14,47,15],[45,3,46,21],[2,3,2,23],[3,3,3,23],[5,3,5,22],[6,3,6,22],[7,3,8,22],[9,4,9,5],[9,6,9,7],[9,8,9,9],[9,10,9,11],[9,12,9,13],[9,14,9,15],[9,16,9,17],[9,18,9,19],[9,20,9,21],[9,22,9,23]]}
[null,null,null,null,"T24_1","T24_1","T24_2","T24_2","T24_3","T24_3","T24_4","T24_4","T24_5","T24_5","T24_6","T24_6","T24_7","T24_7","T24_8","T24_8","T24_9","T24_9","T2410","T2410"]
[{"$f":"'Reference Dates'!$C$8","v":"202012"},null,null,null,{"$f":"TEXT(E11,\"YYYYMM\")+0","v":202009},{"$f":"TEXT(F11,\"YYYYMM\")+0","v":202012},{"$f":"TEXT(G11,\"YYYYMM\")+0","v":202009},202012,202009,202012,202009,202012,202009,{"$f":"TEXT(N11,\"YYYYMM\")+0","v":202012},202009,202012,202009,202012,202009,202012,202009,202012,202009,202012]
[{"$f":"DATE(LEFT(A2,4),RIGHT(A2,2),1)","v":"2020-12-01"},null,null,"Statistical Annex"]
[null,null,null,"Non-trading loans and advances to non-financial corporations by sector"]
[]
[]
[]
[null,null,null,"Distribution of NFC loans and advances by NACE code (other than trading exposures) (1/2)"]
[]
[null,null,null,"%","A Agriculture, forestry and fishing",null,"B Mining and quarrying",null,"C Manufacturing",null,"D Electricity, gas, steam and air conditioning supply",null,"E Water supply",null,"F Construction",null,"G Wholesale and retail trade",null,"H Transport and storage",null,"I Accommodation and food service activities",null,"J Information and communication"]
[null,null,null,null,{"$f":"EOMONTH($A$3,-3)","v":"2020-09-30"},{"$f":"EOMONTH($A$3,0)","v":"2020-12-31"},{"$f":"EOMONTH($A$3,-3)","v":"2020-09-30"},{"$f":"EOMONTH($A$3,0)","v":"2020-12-31"},{"$f":"EOMONTH($A$3,-3)","v":"2020-09-30"},{"$f":"EOMONTH($A$3,0)","v":"2020-12-31"},{"$f":"EOMONTH($A$3,-3)","v":"2020-09-30"},{"$f":"EOMONTH($A$3,0)","v":"2020-12-31"},{"$f":"EOMONTH($A$3,-3)","v":"2020-09-30"},{"$f":"EOMONTH($A$3,0)","v":"2020-12-31"},{"$f":"EOMONTH($A$3,-3)","v":"2020-09-30"},{"$f":"EOMONTH($A$3,0)","v":"2020-12-31"},{"$f":"EOMONTH($A$3,-3)","v":"2020-09-30"},{"$f":"EOMONTH($A$3,0)","v":"2020-12-31"},{"$f":"EOMONTH($A$3,-3)","v":"2020-09-30"},{"$f":"EOMONTH($A$3,0)","v":"2020-12-31"},{"$f":"EOMONTH($A$3,-3)","v":"2020-09-30"},{"$f":"EOMONTH($A$3,0)","v":"2020-12-31"},{"$f":"EOMONTH($A$3,-3)","v":"2020-09-30"},{"$f":"EOMONTH($A$3,0)","v":"2020-12-31"}]
[1,"AT",null,"AT",{"$f":"IFERROR(INDEX('Data Annex'!$K$1:$AN$4997,MATCH(E$1&\"|\"&$B12,'Data Annex'!$K$1:$K$4997,0),MATCH(E$2,'Data Annex'!$K$1:$AN$1,0)),\"\")","v":1.8136677300000001E-2},{"$f":"IFERROR(INDEX('Data Annex'!$K$1:$AN$4997,MATCH(F$1&\"|\"&$B12,'Data Annex'!$K$1:$K$4997,0),MATCH(F$2,'Data Annex'!$K$1:$AN$1,0)),\"\")","v":1.74399529E-2},{"$f":"IFERROR(INDEX('Data Annex'!$K$1:$AN$4997,MATCH(G$1&\"|\"&$B12,'Data Annex'!$K$1:$K$4997,0),MATCH(G$2,'Data Annex'!$K$1:$AN$1,0)),\"\")","v":1.34621789E-2},{"$f":"IFERROR(INDEX('Data Annex'!$K$1:$AN$4997,MATCH(H$1&\"|\"&$B12,'Data Annex'!$K$1:$K$4997,0),MATCH(H$2,'Data Annex'!$K$1:$AN$1,0)),\"\")","v":1.2197713000000001E-2},{"$f":"IFERROR(INDEX('Data Annex'!$K$1:$AN$4997,MATCH(I$1&\"|\"&$B12,'Data Annex'!$K$1:$K$4997,0),MATCH(I$2,'Data Annex'!$K$1:$AN$1,0)),\"\")","v":0.1848477406},{"$f":"IFERROR(INDEX('Data Annex'!$K$1:$AN$4997,MATCH(J$1&\"|\"&$B12,'Data Annex'!$K$1:$K$4997,0),MATCH(J$2,'Data Annex'!$K$1:$AN$1,0)),\"\")","v":0.18186915040000001},{"$f":"IFERROR(INDEX('Data Annex'!$K$1:$AN$4997,MATCH(K$1&\"|\"&$B12,'Data Annex'!$K$1:$K$4997,0),MATCH(K$2,'Data Annex'!$K$1:$AN$1,0)),\"\")","v":3.5050959600000001E-2},{"$f":"IFERROR(INDEX('Data Annex'!$K$1:$AN$4997,MATCH(L$1&\"|\"&$B12,'Data Annex'!$K$1:$K$4997,0),MATCH(L$2,'Data Annex'!$K$1:$AN$1,0)),\"\")","v":3.4437572800000003E-2},{"$f":"IFERROR(INDEX('Data Annex'!$K$1:$AN$4997,MATCH(M$1&\"|\"&$B12,'Data Annex'!$K$1:$K$4997,0),MATCH(M$2,'Data Annex'!$K$1:$AN$1,0)),\"\")","v":9.5127171999999996E-3},{"$f":"IFERROR(INDEX('Data Annex'!$K$1:$AN$4997,MATCH(N$1&\"|\"&$B12,'Data Annex'!$K$1:$K$4997,0),MATCH(N$2,'Data Annex'!$K$1:$AN$1,0)),\"\")","v":9.9348544E-3},{"$f":"IFERROR(INDEX('Data Annex'!$K$1:$AN$4997,MATCH(O$1&\"|\"&$B12,'Data Annex'!$K$1:$K$4997,0),MATCH(O$2,'Data Annex'!$K$1:$AN$1,0)),\"\")","v":7.4494919399999998E-2},{"$f":"IFERROR(INDEX('Data Annex'!$K$1:$AN$4997,MATCH(P$1&\"|\"&$B12,'Data Annex'!$K$1:$K$4997,0),MATCH(P$2,'Data Annex'!$K$1:$AN$1,0)),\"\")","v":7.4446106600000006E-2},{"$f":"IFERROR(INDEX('Data Annex'!$K$1:$AN$4997,MATCH(Q$1&\"|\"&$B12,'Data Annex'!$K$1:$K$4997,0),MATCH(Q$2,'Data Annex'!$K$1:$AN$1,0)),\"\")","v":0.12888948110000001},{"$f":"IFERROR(INDEX('Data Annex'!$K$1:$AN$4997,MATCH(R$1&\"|\"&$B12,'Data Annex'!$K$1:$K$4997,0),MATCH(R$2,'Data Annex'!$K$1:$AN$1,0)),\"\")","v":0.12856373199999999},{"$f":"IFERROR(INDEX('Data Annex'!$K$1:$AN$4997,MATCH(S$1&\"|\"&$B12,'Data Annex'!$K$1:$K$4997,0),MATCH(S$2,'Data Annex'!$K$1:$AN$1,0)),\"\")","v":4.5254329900000001E-2},{"$f":"IFERROR(INDEX('Data Annex'!$K$1:$AN$4997,MATCH(T$1&\"|\"&$B12,'Data Annex'!$K$1:$K$4997,0),MATCH(T$2,'Data Annex'!$K$1:$AN$1,0)),\"\")","v":4.7164306699999999E-2},{"$f":"IFERROR(INDEX('Data Annex'!$K$1:$AN$4997,MATCH(U$1&\"|\"&$B12,'Data Annex'!$K$1:$K$4997,0),MATCH(U$2,'Data Annex'!$K$1:$AN$1,0)),\"\")","v":3.5426514999999999E-2},{"$f":"IFERROR(INDEX('Data Annex'!$K$1:$AN$4997,MATCH(V$1&\"|\"&$B12,'Data Annex'!$K$1:$K$4997,0),MATCH(V$2,'Data Annex'!$K$1:$AN$1,0)),\"\")","v":3.6403538200000002E-2},{"$f":"IFERROR(INDEX('Data Annex'!$K$1:$AN$4997,MATCH(W$1&\"|\"&$B12,'Data Annex'!$K$1:$K$4997,0),MATCH(W$2,'Data Annex'!$K$1:$AN$1,0)),\"\")","v":2.0403489600000001E-2},{"$f":"IFERROR(INDEX('Data Annex'!$K$1:$AN$4997,MATCH(X$1&\"|\"&$B12,'Data Annex'!$K$1:$K$4997,0),MATCH(X$2,'Data Annex'!$K$1:$AN$1,0)),\"\")","v":2.1120003799999999E-2}]
[2,"BE",null,"BE",{"$f":"IFERROR(INDEX('Data Annex'!$K$1:$AN$4997,MATCH(E$1&\"|\"&$B13,'Data Annex'!$K$1:$K$4997,0),MATCH(E$2,'Data Annex'!$K$1:$AN$1,0)),\"\")","v":4.2596519899999997E-2},{"$f":"IFERROR(INDEX('Data Annex'!$K$1:$AN$4997,MATCH(F$1&\"|\"&$B13,'Data Annex'!$K$1:$K$4997,0),MATCH(F$2,'Data Annex'!$K$1:$AN$1,0)),\"\")","v":4.2223199500000003E-2},{"$f":"IFERROR(INDEX('Data Annex'!$K$1:$AN$4997,MATCH(G$1&\"|\"&$B13,'Data Annex'!$K$1:$K$4997,0),MATCH(G$2,'Data Annex'!$K$1:$AN$1,0)),\"\")","v":7.3157309999999998E-3},{"$f":"IFERROR(INDEX('Data Annex'!$K$1:$AN$4997,MATCH(H$1&\"|\"&$B13,'Data Annex'!$K$1:$K$4997,0),MATCH(H$2,'Data Annex'!$K$1:$AN$1,0)),\"\")","v":5.826159E-3},{"$f":"IFERROR(INDEX('Data Annex'!$K$1:$AN$4997,MATCH(I$1&\"|\"&$B13,'Data Annex'!$K$1:$K$4997,0),MATCH(I$2,'Data Annex'!$K$1:$AN$1,0)),\"\")","v":0.14740516349999999},{"$f":"IFERROR(INDEX('Data Annex'!$K$1:$AN$4997,MATCH(J$1&\"|\"&$B13,'Data Annex'!$K$1:$K$4997,0),MATCH(J$2,'Data Annex'!$K$1:$AN$1,0)),\"\")","v":0.14427913349999999},{"$f":"IFERROR(INDEX('Data Annex'!$K$1:$AN$4997,MATCH(K$1&\"|\"&$B13,'Data Annex'!$K$1:$K$4997,0),MATCH(K$2,'Data Annex'!$K$1:$AN$1,0)),\"\")","v":4.6282991199999998E-2},{"$f":"IFERROR(INDEX('Data Annex'!$K$1:$AN$4997,MATCH(L$1&\"|\"&$B13,'Data Annex'!$K$1:$K$4997,0),MATCH(L$2,'Data Annex'!$K$1:$AN$1,0)),\"\")","v":4.6421601399999998E-2},{"$f":"IFERROR(INDEX('Data Annex'!$K$1:$AN$4997,MATCH(M$1&\"|\"&$B13,'Data Annex'!$K$1:$K$4997,0),MATCH(M$2,'Data Annex'!$K$1:$AN$1,0)),\"\")","v":1.19868517E-2},{"$f":"IFERROR(INDEX('Data Annex'!$K$1:$AN$4997,MATCH(N$1&\"|\"&$B13,'Data Annex'!$K$1:$K$4997,0),MATCH(N$2,'Data Annex'!$K$1:$AN$1,0)),\"\")","v":1.2362878000000001E-2},{"$f":"IFERROR(INDEX('Data Annex'!$K$1:$AN$4997,MATCH(O$1&\"|\"&$B13,'Data Annex'!$K$1:$K$4997,0),MATCH(O$2,'Data Annex'!$K$1:$AN$1,0)),\"\")","v":0.10868620380000001},{"$f":"IFERROR(INDEX('Data Annex'!$K$1:$AN$4997,MATCH(P$1&\"|\"&$B13,'Data Annex'!$K$1:$K$4997,0),MATCH(P$2,'Data Annex'!$K$1:$AN$1,0)),\"\")","v":0.1099999466},{"$f":"IFERROR(INDEX('Data Annex'!$K$1:$AN$4997,MATCH(Q$1&\"|\"&$B13,'Data Annex'!$K$1:$K$4997,0),MATCH(Q$2,'Data Annex'!$K$1:$AN$1,0)),\"\")","v":0.15011365669999999},{"$f":"IFERROR(INDEX('Data Annex'!$K$1:$AN$4997,MATCH(R$1&\"|\"&$B13,'Data Annex'!$K$1:$K$4997,0),MATCH(R$2,'Data Annex'!$K$1:$AN$1,0)),\"\")","v":0.15304583090000001},{"$f":"IFERROR(INDEX('Data Annex'!$K$1:$AN$4997,MATCH(S$1&\"|\"&$B13,'Data Annex'!$K$1:$K$4997,0),MATCH(S$2,'Data Annex'!$K$1:$AN$1,0)),\"\")","v":6.0821921100000002E-2},{"$f":"IFERROR(INDEX('Data Annex'!$K$1:$AN$4997,MATCH(T$1&\"|\"&$B13,'Data Annex'!$K$1:$K$4997,0),MATCH(T$2,'Data Annex'!$K$1:$AN$1,0)),\"\")","v":5.7714803799999999E-2},{"$f":"IFERROR(INDEX('Data Annex'!$K$1:$AN$4997,MATCH(U$1&\"|\"&$B13,'Data Annex'!$K$1:$K$4997,0),MATCH(U$2,'Data Annex'!$K$1:$AN$1,0)),\"\")","v":1.53684116E-2},{"$f":"IFERROR(INDEX('Data Annex'!$K$1:$AN$4997,MATCH(V$1&\"|\"&$B13,'Data Annex'!$K$1:$K$4997,0),MATCH(V$2,'Data Annex'!$K$1:$AN$1,0)),\"\")","v":1.5823923899999998E-2},{"$f":"IFERROR(INDEX('Data Annex'!$K$1:$AN$4997,MATCH(W$1&\"|\"&$B13,'Data Annex'!$K$1:$K$4997,0),MATCH(W$2,'Data Annex'!$K$1:$AN$1,0)),\"\")","v":2.5854489500000001E-2},{"$f":"IFERROR(INDEX('Data Annex'!$K$1:$AN$4997,MATCH(X$1&\"|\"&$B13,'Data Annex'!$K$1:$K$4997,0),MATCH(X$2,'Data Annex'!$K$1:$AN$1,0)),\"\")","v":2.6563058099999998E-2}]
[3,"BG",null,"BG",{"$f":"IFERROR(INDEX('Data Annex'!$K$1:$AN$4997,MATCH(E$1&\"|\"&$B14,'Data Annex'!$K$1:$K$4997,0),MATCH(E$2,'Data Annex'!$K$1:$AN$1,0)),\"\")","v":6.1554637600000003E-2},{"$f":"IFERROR(INDEX('Data Annex'!$K$1:$AN$4997,MATCH(F$1&\"|\"&$B14,'Data Annex'!$K$1:$K$4997,0),MATCH(F$2,'Data Annex'!$K$1:$AN$1,0)),\"\")","v":6.1100164899999997E-2},{"$f":"IFERROR(INDEX('Data Annex'!$K$1:$AN$4997,MATCH(G$1&\"|\"&$B14,'Data Annex'!$K$1:$K$4997,0),MATCH(G$2,'Data Annex'!$K$1:$AN$1,0)),\"\")","v":8.4821389000000001E-3},{"$f":"IFERROR(INDEX('Data Annex'!$K$1:$AN$4997,MATCH(H$1&\"|\"&$B14,'Data Annex'!$K$1:$K$4997,0),MATCH(H$2,'Data Annex'!$K$1:$AN$1,0)),\"\")","v":8.2526313000000004E-3},{"$f":"IFERROR(INDEX('Data Annex'!$K$1:$AN$4997,MATCH(I$1&\"|\"&$B14,'Data Annex'!$K$1:$K$4997,0),MATCH(I$2,'Data Annex'!$K$1:$AN$1,0)),\"\")","v":0.26330461500000002},{"$f":"IFERROR(INDEX('Data Annex'!$K$1:$AN$4997,MATCH(J$1&\"|\"&$B14,'Data Annex'!$K$1:$K$4997,0),MATCH(J$2,'Data Annex'!$K$1:$AN$1,0)),\"\")","v":0.26586964279999997},{"$f":"IFERROR(INDEX('Data Annex'!$K$1:$AN$4997,MATCH(K$1&\"|\"&$B14,'Data Annex'!$K$1:$K$4997,0),MATCH(K$2,'Data Annex'!$K$1:$AN$1,0)),\"\")","v":4.4418026800000003E-2},{"$f":"IFERROR(INDEX('Data Annex'!$K$1:$AN$4997,MATCH(L$1&\"|\"&$B14,'Data Annex'!$K$1:$K$4997,0),MATCH(L$2,'Data Annex'!$K$1:$AN$1,0)),\"\")","v":4.5829806600000002E-2},{"$f":"IFERROR(INDEX('Data Annex'!$K$1:$AN$4997,MATCH(M$1&\"|\"&$B14,'Data Annex'!$K$1:$K$4997,0),MATCH(M$2,'Data Annex'!$K$1:$AN$1,0)),\"\")","v":6.4649627999999997E-3},{"$f":"IFERROR(INDEX('Data Annex'!$K$1:$AN$4997,MATCH(N$1&\"|\"&$B14,'Data Annex'!$K$1:$K$4997,0),MATCH(N$2,'Data Annex'!$K$1:$AN$1,0)),\"\")","v":6.0812236000000004E-3},{"$f":"IFERROR(INDEX('Data Annex'!$K$1:$AN$4997,MATCH(O$1&\"|\"&$B14,'Data Annex'!$K$1:$K$4997,0),MATCH(O$2,'Data Annex'!$K$1:$AN$1,0)),\"\")","v":7.5164830099999996E-2},{"$f":"IFERROR(INDEX('Data Annex'!$K$1:$AN$4997,MATCH(P$1&\"|\"&$B14,'Data Annex'!$K$1:$K$4997,0),MATCH(P$2,'Data Annex'!$K$1:$AN$1,0)),\"\")","v":7.1062181200000005E-2},{"$f":"IFERROR(INDEX('Data Annex'!$K$1:$AN$4997,MATCH(Q$1&\"|\"&$B14,'Data Annex'!$K$1:$K$4997,0),MATCH(Q$2,'Data Annex'!$K$1:$AN$1,0)),\"\")","v":0.2341731366},{"$f":"IFERROR(INDEX('Data Annex'!$K$1:$AN$4997,MATCH(R$1&\"|\"&$B14,'Data Annex'!$K$1:$K$4997,0),MATCH(R$2,'Data Annex'!$K$1:$AN$1,0)),\"\")","v":0.2312085461},{"$f":"IFERROR(INDEX('Data Annex'!$K$1:$AN$4997,MATCH(S$1&\"|\"&$B14,'Data Annex'!$K$1:$K$4997,0),MATCH(S$2,'Data Annex'!$K$1:$AN$1,0)),\"\")","v":5.4605823599999999E-2},{"$f":"IFERROR(INDEX('Data Annex'!$K$1:$AN$4997,MATCH(T$1&\"|\"&$B14,'Data Annex'!$K$1:$K$4997,0),MATCH(T$2,'Data Annex'!$K$1:$AN$1,0)),\"\")","v":6.0705486599999997E-2},{"$f":"IFERROR(INDEX('Data Annex'!$K$1:$AN$4997,MATCH(U$1&\"|\"&$B14,'Data Annex'!$K$1:$K$4997,0),MATCH(U$2,'Data Annex'!$K$1:$AN$1,0)),\"\")","v":4.5445569599999999E-2},{"$f":"IFERROR(INDEX('Data Annex'!$K$1:$AN$4997,MATCH(V$1&\"|\"&$B14,'Data Annex'!$K$1:$K$4997,0),MATCH(V$2,'Data Annex'!$K$1:$AN$1,0)),\"\")","v":4.4968952899999998E-2},{"$f":"IFERROR(INDEX('Data Annex'!$K$1:$AN$4997,MATCH(W$1&\"|\"&$B14,'Data Annex'!$K$1:$K$4997,0),MATCH(W$2,'Data Annex'!$K$1:$AN$1,0)),\"\")","v":2.06792368E-2},{"$f":"IFERROR(INDEX('Data Annex'!$K$1:$AN$4997,MATCH(X$1&\"|\"&$B14,'Data Annex'!$K$1:$K$4997,0),MATCH(X$2,'Data Annex'!$K$1:$AN$1,0)),\"\")","v":2.1192518899999999E-2}]
[4,"CY",null,"CY",{"$f":"IFERROR(INDEX('Data Annex'!$K$1:$AN$4997,MATCH(E$1&\"|\"&$B15,'Data Annex'!$K$1:$K$4997,0),MATCH(E$2,'Data Annex'!$K$1:$AN$1,0)),\"\")","v":1.3932725700000001E-2},{"$f":"IFERROR(INDEX('Data Annex'!$K$1:$AN$4997,MATCH(F$1&\"|\"&$B15,'Data Annex'!$K$1:$K$4997,0),MATCH(F$2,'Data Annex'!$K$1:$AN$1,0)),\"\")","v":1.74050496E-2},{"$f":"IFERROR(INDEX('Data Annex'!$K$1:$AN$4997,MATCH(G$1&\"|\"&$B15,'Data Annex'!$K$1:$K$4997,0),MATCH(G$2,'Data Annex'!$K$1:$AN$1,0)),\"\")","v":2.8673878000000002E-3},{"$f":"IFERROR(INDEX('Data Annex'!$K$1:$AN$4997,MATCH(H$1&\"|\"&$B15,'Data Annex'!$K$1:$K$4997,0),MATCH(H$2,'Data Annex'!$K$1:$AN$1,0)),\"\")","v":4.3631216000000004E-3},{"$f":"IFERROR(INDEX('Data Annex'!$K$1:$AN$4997,MATCH(I$1&\"|\"&$B15,'Data Annex'!$K$1:$K$4997,0),MATCH(I$2,'Data Annex'!$K$1:$AN$1,0)),\"\")","v":9.09543674E-2},{"$f":"IFERROR(INDEX('Data Annex'!$K$1:$AN$4997,MATCH(J$1&\"|\"&$B15,'Data Annex'!$K$1:$K$4997,0),MATCH(J$2,'Data Annex'!$K$1:$AN$1,0)),\"\")","v":0.13162412770000001},{"$f":"IFERROR(INDEX('Data Annex'!$K$1:$AN$4997,MATCH(K$1&\"|\"&$B15,'Data Annex'!$K$1:$K$4997,0),MATCH(K$2,'Data Annex'!$K$1:$AN$1,0)),\"\")","v":6.8462410999999999E-3},{"$f":"IFERROR(INDEX('Data Annex'!$K$1:$AN$4997,MATCH(L$1&\"|\"&$B15,'Data Annex'!$K$1:$K$4997,0),MATCH(L$2,'Data Annex'!$K$1:$AN$1,0)),\"\")","v":1.6041397799999999E-2},{"$f":"IFERROR(INDEX('Data Annex'!$K$1:$AN$4997,MATCH(M$1&\"|\"&$B15,'Data Annex'!$K$1:$K$4997,0),MATCH(M$2,'Data Annex'!$K$1:$AN$1,0)),\"\")","v":6.4213999999999999E-3},{"$f":"IFERROR(INDEX('Data Annex'!$K$1:$AN$4997,MATCH(N$1&\"|\"&$B15,'Data Annex'!$K$1:$K$4997,0),MATCH(N$2,'Data Annex'!$K$1:$AN$1,0)),\"\")","v":1.6591449300000002E-2},{"$f":"IFERROR(INDEX('Data Annex'!$K$1:$AN$4997,MATCH(O$1&\"|\"&$B15,'Data Annex'!$K$1:$K$4997,0),MATCH(O$2,'Data Annex'!$K$1:$AN$1,0)),\"\")","v":0.12871097949999999},{"$f":"IFERROR(INDEX('Data Annex'!$K$1:$AN$4997,MATCH(P$1&\"|\"&$B15,'Data Annex'!$K$1:$K$4997,0),MATCH(P$2,'Data Annex'!$K$1:$AN$1,0)),\"\")","v":0.13238329739999999},{"$f":"IFERROR(INDEX('Data Annex'!$K$1:$AN$4997,MATCH(Q$1&\"|\"&$B15,'Data Annex'!$K$1:$K$4997,0),MATCH(Q$2,'Data Annex'!$K$1:$AN$1,0)),\"\")","v":0.203807189},{"$f":"IFERROR(INDEX('Data Annex'!$K$1:$AN$4997,MATCH(R$1&\"|\"&$B15,'Data Annex'!$K$1:$K$4997,0),MATCH(R$2,'Data Annex'!$K$1:$AN$1,0)),\"\")","v":0.1987377615},{"$f":"IFERROR(INDEX('Data Annex'!$K$1:$AN$4997,MATCH(S$1&\"|\"&$B15,'Data Annex'!$K$1:$K$4997,0),MATCH(S$2,'Data Annex'!$K$1:$AN$1,0)),\"\")","v":6.8207682000000006E-2},{"$f":"IFERROR(INDEX('Data Annex'!$K$1:$AN$4997,MATCH(T$1&\"|\"&$B15,'Data Annex'!$K$1:$K$4997,0),MATCH(T$2,'Data Annex'!$K$1:$AN$1,0)),\"\")","v":9.6791832100000003E-2},{"$f":"IFERROR(INDEX('Data Annex'!$K$1:$AN$4997,MATCH(U$1&\"|\"&$B15,'Data Annex'!$K$1:$K$4997,0),MATCH(U$2,'Data Annex'!$K$1:$AN$1,0)),\"\")","v":0.19598047730000001},{"$f":"IFERROR(INDEX('Data Annex'!$K$1:$AN$4997,MATCH(V$1&\"|\"&$B15,'Data Annex'!$K$1:$K$4997,0),MATCH(V$2,'Data Annex'!$K$1:$AN$1,0)),\"\")","v":0.18764091059999999},{"$f":"IFERROR(INDEX('Data Annex'!$K$1:$AN$4997,MATCH(W$1&\"|\"&$B15,'Data Annex'!$K$1:$K$4997,0),MATCH(W$2,'Data Annex'!$K$1:$AN$1,0)),\"\")","v":1.00756406E-2},{"$f":"IFERROR(INDEX('Data Annex'!$K$1:$AN$4997,MATCH(X$1&\"|\"&$B15,'Data Annex'!$K$1:$K$4997,0),MATCH(X$2,'Data Annex'!$K$1:$AN$1,0)),\"\")","v":9.8892496000000003E-3}]
[5,"CZ",null,"CZ",{"$f":"IFERROR(INDEX('Data Annex'!$K$1:$AN$4997,MATCH(E$1&\"|\"&$B16,'Data Annex'!$K$1:$K$4997,0),MATCH(E$2,'Data Annex'!$K$1:$AN$1,0)),\"\")","v":3.9703787099999999E-2},{"$f":"IFERROR(INDEX('Data Annex'!$K$1:$AN$4997,MATCH(F$1&\"|\"&$B16,'Data Annex'!$K$1:$K$4997,0),MATCH(F$2,'Data Annex'!$K$1:$AN$1,0)),\"\")","v":4.07913653E-2},{"$f":"IFERROR(INDEX('Data Annex'!$K$1:$AN$4997,MATCH(G$1&\"|\"&$B16,'Data Annex'!$K$1:$K$4997,0),MATCH(G$2,'Data Annex'!$K$1:$AN$1,0)),\"\")","v":5.6815282999999996E-3},{"$f":"IFERROR(INDEX('Data Annex'!$K$1:$AN$4997,MATCH(H$1&\"|\"&$B16,'Data Annex'!$K$1:$K$4997,0),MATCH(H$2,'Data Annex'!$K$1:$AN$1,0)),\"\")","v":5.2565574000000004E-3},{"$f":"IFERROR(INDEX('Data Annex'!$K$1:$AN$4997,MATCH(I$1&\"|\"&$B16,'Data Annex'!$K$1:$K$4997,0),MATCH(I$2,'Data Annex'!$K$1:$AN$1,0)),\"\")","v":0.2432146969},{"$f":"IFERROR(INDEX('Data Annex'!$K$1:$AN$4997,MATCH(J$1&\"|\"&$B16,'Data Annex'!$K$1:$K$4997,0),MATCH(J$2,'Data Annex'!$K$1:$AN$1,0)),\"\")","v":0.2370631198},{"$f":"IFERROR(INDEX('Data Annex'!$K$1:$AN$4997,MATCH(K$1&\"|\"&$B16,'Data Annex'!$K$1:$K$4997,0),MATCH(K$2,'Data Annex'!$K$1:$AN$1,0)),\"\")","v":4.9209071399999998E-2},{"$f":"IFERROR(INDEX('Data Annex'!$K$1:$AN$4997,MATCH(L$1&\"|\"&$B16,'Data Annex'!$K$1:$K$4997,0),MATCH(L$2,'Data Annex'!$K$1:$AN$1,0)),\"\")","v":4.6420337800000003E-2},{"$f":"IFERROR(INDEX('Data Annex'!$K$1:$AN$4997,MATCH(M$1&\"|\"&$B16,'Data Annex'!$K$1:$K$4997,0),MATCH(M$2,'Data Annex'!$K$1:$AN$1,0)),\"\")","v":1.1080761E-2},{"$f":"IFERROR(INDEX('Data Annex'!$K$1:$AN$4997,MATCH(N$1&\"|\"&$B16,'Data Annex'!$K$1:$K$4997,0),MATCH(N$2,'Data Annex'!$K$1:$AN$1,0)),\"\")","v":1.1160341799999999E-2},{"$f":"IFERROR(INDEX('Data Annex'!$K$1:$AN$4997,MATCH(O$1&\"|\"&$B16,'Data Annex'!$K$1:$K$4997,0),MATCH(O$2,'Data Annex'!$K$1:$AN$1,0)),\"\")","v":4.6200436999999997E-2},{"$f":"IFERROR(INDEX('Data Annex'!$K$1:$AN$4997,MATCH(P$1&\"|\"&$B16,'Data Annex'!$K$1:$K$4997,0),MATCH(P$2,'Data Annex'!$K$1:$AN$1,0)),\"\")","v":4.4257523100000001E-2},{"$f":"IFERROR(INDEX('Data Annex'!$K$1:$AN$4997,MATCH(Q$1&\"|\"&$B16,'Data Annex'!$K$1:$K$4997,0),MATCH(Q$2,'Data Annex'!$K$1:$AN$1,0)),\"\")","v":0.16446132320000001},{"$f":"IFERROR(INDEX('Data Annex'!$K$1:$AN$4997,MATCH(R$1&\"|\"&$B16,'Data Annex'!$K$1:$K$4997,0),MATCH(R$2,'Data Annex'!$K$1:$AN$1,0)),\"\")","v":0.16245804720000001},{"$f":"IFERROR(INDEX('Data Annex'!$K$1:$AN$4997,MATCH(S$1&\"|\"&$B16,'Data Annex'!$K$1:$K$4997,0),MATCH(S$2,'Data Annex'!$K$1:$AN$1,0)),\"\")","v":5.83098331E-2},{"$f":"IFERROR(INDEX('Data Annex'!$K$1:$AN$4997,MATCH(T$1&\"|\"&$B16,'Data Annex'!$K$1:$K$4997,0),MATCH(T$2,'Data Annex'!$K$1:$AN$1,0)),\"\")","v":5.8326841800000001E-2},{"$f":"IFERROR(INDEX('Data Annex'!$K$1:$AN$4997,MATCH(U$1&\"|\"&$B16,'Data Annex'!$K$1:$K$4997,0),MATCH(U$2,'Data Annex'!$K$1:$AN$1,0)),\"\")","v":1.49029878E-2},{"$f":"IFERROR(INDEX('Data Annex'!$K$1:$AN$4997,MATCH(V$1&\"|\"&$B16,'Data Annex'!$K$1:$K$4997,0),MATCH(V$2,'Data Annex'!$K$1:$AN$1,0)),\"\")","v":1.6262247399999999E-2},{"$f":"IFERROR(INDEX('Data Annex'!$K$1:$AN$4997,MATCH(W$1&\"|\"&$B16,'Data Annex'!$K$1:$K$4997,0),MATCH(W$2,'Data Annex'!$K$1:$AN$1,0)),\"\")","v":1.9504659899999999E-2},{"$f":"IFERROR(INDEX('Data Annex'!$K$1:$AN$4997,MATCH(X$1&\"|\"&$B16,'Data Annex'!$K$1:$K$4997,0),MATCH(X$2,'Data Annex'!$K$1:$AN$1,0)),\"\")","v":2.2190435800000002E-2}]
[6,"DE",null,"DE",{"$f":"IFERROR(INDEX('Data Annex'!$K$1:$AN$4997,MATCH(E$1&\"|\"&$B17,'Data Annex'!$K$1:$K$4997,0),MATCH(E$2,'Data Annex'!$K$1:$AN$1,0)),\"\")","v":6.9323832000000004E-3},{"$f":"IFERROR(INDEX('Data Annex'!$K$1:$AN$4997,MATCH(F$1&\"|\"&$B17,'Data Annex'!$K$1:$K$4997,0),MATCH(F$2,'Data Annex'!$K$1:$AN$1,0)),\"\")","v":6.3813345000000004E-3},{"$f":"IFERROR(INDEX('Data Annex'!$K$1:$AN$4997,MATCH(G$1&\"|\"&$B17,'Data Annex'!$K$1:$K$4997,0),MATCH(G$2,'Data Annex'!$K$1:$AN$1,0)),\"\")","v":8.7191987999999995E-3},{"$f":"IFERROR(INDEX('Data Annex'!$K$1:$AN$4997,MATCH(H$1&\"|\"&$B17,'Data Annex'!$K$1:$K$4997,0),MATCH(H$2,'Data Annex'!$K$1:$AN$1,0)),\"\")","v":8.3589610999999994E-3},{"$f":"IFERROR(INDEX('Data Annex'!$K$1:$AN$4997,MATCH(I$1&\"|\"&$B17,'Data Annex'!$K$1:$K$4997,0),MATCH(I$2,'Data Annex'!$K$1:$AN$1,0)),\"\")","v":0.13270090909999999},{"$f":"IFERROR(INDEX('Data Annex'!$K$1:$AN$4997,MATCH(J$1&\"|\"&$B17,'Data Annex'!$K$1:$K$4997,0),MATCH(J$2,'Data Annex'!$K$1:$AN$1,0)),\"\")","v":0.1265804975},{"$f":"IFERROR(INDEX('Data Annex'!$K$1:$AN$4997,MATCH(K$1&\"|\"&$B17,'Data Annex'!$K$1:$K$4997,0),MATCH(K$2,'Data Annex'!$K$1:$AN$1,0)),\"\")","v":8.2253947800000005E-2},{"$f":"IFERROR(INDEX('Data Annex'!$K$1:$AN$4997,MATCH(L$1&\"|\"&$B17,'Data Annex'!$K$1:$K$4997,0),MATCH(L$2,'Data Annex'!$K$1:$AN$1,0)),\"\")","v":8.3515403700000004E-2},{"$f":"IFERROR(INDEX('Data Annex'!$K$1:$AN$4997,MATCH(M$1&\"|\"&$B17,'Data Annex'!$K$1:$K$4997,0),MATCH(M$2,'Data Annex'!$K$1:$AN$1,0)),\"\")","v":1.5847442E-2},{"$f":"IFERROR(INDEX('Data Annex'!$K$1:$AN$4997,MATCH(N$1&\"|\"&$B17,'Data Annex'!$K$1:$K$4997,0),MATCH(N$2,'Data Annex'!$K$1:$AN$1,0)),\"\")","v":1.83455106E-2},{"$f":"IFERROR(INDEX('Data Annex'!$K$1:$AN$4997,MATCH(O$1&\"|\"&$B17,'Data Annex'!$K$1:$K$4997,0),MATCH(O$2,'Data Annex'!$K$1:$AN$1,0)),\"\")","v":2.2419247999999999E-2},{"$f":"IFERROR(INDEX('Data Annex'!$K$1:$AN$4997,MATCH(P$1&\"|\"&$B17,'Data Annex'!$K$1:$K$4997,0),MATCH(P$2,'Data Annex'!$K$1:$AN$1,0)),\"\")","v":2.1562489300000001E-2},{"$f":"IFERROR(INDEX('Data Annex'!$K$1:$AN$4997,MATCH(Q$1&\"|\"&$B17,'Data Annex'!$K$1:$K$4997,0),MATCH(Q$2,'Data Annex'!$K$1:$AN$1,0)),\"\")","v":7.7865271900000005E-2},{"$f":"IFERROR(INDEX('Data Annex'!$K$1:$AN$4997,MATCH(R$1&\"|\"&$B17,'Data Annex'!$K$1:$K$4997,0),MATCH(R$2,'Data Annex'!$K$1:$AN$1,0)),\"\")","v":8.3307598299999994E-2},{"$f":"IFERROR(INDEX('Data Annex'!$K$1:$AN$4997,MATCH(S$1&\"|\"&$B17,'Data Annex'!$K$1:$K$4997,0),MATCH(S$2,'Data Annex'!$K$1:$AN$1,0)),\"\")","v":5.6256918900000001E-2},{"$f":"IFERROR(INDEX('Data Annex'!$K$1:$AN$4997,MATCH(T$1&\"|\"&$B17,'Data Annex'!$K$1:$K$4997,0),MATCH(T$2,'Data Annex'!$K$1:$AN$1,0)),\"\")","v":5.1100779499999999E-2},{"$f":"IFERROR(INDEX('Data Annex'!$K$1:$AN$4997,MATCH(U$1&\"|\"&$B17,'Data Annex'!$K$1:$K$4997,0),MATCH(U$2,'Data Annex'!$K$1:$AN$1,0)),\"\")","v":9.4977723000000003E-3},{"$f":"IFERROR(INDEX('Data Annex'!$K$1:$AN$4997,MATCH(V$1&\"|\"&$B17,'Data Annex'!$K$1:$K$4997,0),MATCH(V$2,'Data Annex'!$K$1:$AN$1,0)),\"\")","v":1.0071526900000001E-2},{"$f":"IFERROR(INDEX('Data Annex'!$K$1:$AN$4997,MATCH(W$1&\"|\"&$B17,'Data Annex'!$K$1:$K$4997,0),MATCH(W$2,'Data Annex'!$K$1:$AN$1,0)),\"\")","v":2.6816400399999999E-2},{"$f":"IFERROR(INDEX('Data Annex'!$K$1:$AN$4997,MATCH(X$1&\"|\"&$B17,'Data Annex'!$K$1:$K$4997,0),MATCH(X$2,'Data Annex'!$K$1:$AN$1,0)),\"\")","v":2.74741225E-2}]
[7,"DK",null,"DK",{"$f":"IFERROR(INDEX('Data Annex'!$K$1:$AN$4997,MATCH(E$1&\"|\"&$B18,'Data Annex'!$K$1:$K$4997,0),MATCH(E$2,'Data Annex'!$K$1:$AN$1,0)),\"\")","v":2.61946253E-2},{"$f":"IFERROR(INDEX('Data Annex'!$K$1:$AN$4997,MATCH(F$1&\"|\"&$B18,'Data Annex'!$K$1:$K$4997,0),MATCH(F$2,'Data Annex'!$K$1:$AN$1,0)),\"\")","v":2.6796609200000002E-2},{"$f":"IFERROR(INDEX('Data Annex'!$K$1:$AN$4997,MATCH(G$1&\"|\"&$B18,'Data Annex'!$K$1:$K$4997,0),MATCH(G$2,'Data Annex'!$K$1:$AN$1,0)),\"\")","v":5.6268359999999996E-3},{"$f":"IFERROR(INDEX('Data Annex'!$K$1:$AN$4997,MATCH(H$1&\"|\"&$B18,'Data Annex'!$K$1:$K$4997,0),MATCH(H$2,'Data Annex'!$K$1:$AN$1,0)),\"\")","v":4.5708251000000002E-3},{"$f":"IFERROR(INDEX('Data Annex'!$K$1:$AN$4997,MATCH(I$1&\"|\"&$B18,'Data Annex'!$K$1:$K$4997,0),MATCH(I$2,'Data Annex'!$K$1:$AN$1,0)),\"\")","v":7.7617287600000001E-2},{"$f":"IFERROR(INDEX('Data Annex'!$K$1:$AN$4997,MATCH(J$1&\"|\"&$B18,'Data Annex'!$K$1:$K$4997,0),MATCH(J$2,'Data Annex'!$K$1:$AN$1,0)),\"\")","v":7.2087554299999995E-2},{"$f":"IFERROR(INDEX('Data Annex'!$K$1:$AN$4997,MATCH(K$1&\"|\"&$B18,'Data Annex'!$K$1:$K$4997,0),MATCH(K$2,'Data Annex'!$K$1:$AN$1,0)),\"\")","v":3.0546928300000002E-2},{"$f":"IFERROR(INDEX('Data Annex'!$K$1:$AN$4997,MATCH(L$1&\"|\"&$B18,'Data Annex'!$K$1:$K$4997,0),MATCH(L$2,'Data Annex'!$K$1:$AN$1,0)),\"\")","v":3.2661873700000003E-2},{"$f":"IFERROR(INDEX('Data Annex'!$K$1:$AN$4997,MATCH(M$1&\"|\"&$B18,'Data Annex'!$K$1:$K$4997,0),MATCH(M$2,'Data Annex'!$K$1:$AN$1,0)),\"\")","v":3.1720805E-3},{"$f":"IFERROR(INDEX('Data Annex'!$K$1:$AN$4997,MATCH(N$1&\"|\"&$B18,'Data Annex'!$K$1:$K$4997,0),MATCH(N$2,'Data Annex'!$K$1:$AN$1,0)),\"\")","v":3.2871251000000002E-3},{"$f":"IFERROR(INDEX('Data Annex'!$K$1:$AN$4997,MATCH(O$1&\"|\"&$B18,'Data Annex'!$K$1:$K$4997,0),MATCH(O$2,'Data Annex'!$K$1:$AN$1,0)),\"\")","v":2.7230144899999999E-2},{"$f":"IFERROR(INDEX('Data Annex'!$K$1:$AN$4997,MATCH(P$1&\"|\"&$B18,'Data Annex'!$K$1:$K$4997,0),MATCH(P$2,'Data Annex'!$K$1:$AN$1,0)),\"\")","v":2.6556424200000001E-2},{"$f":"IFERROR(INDEX('Data Annex'!$K$1:$AN$4997,MATCH(Q$1&\"|\"&$B18,'Data Annex'!$K$1:$K$4997,0),MATCH(Q$2,'Data Annex'!$K$1:$AN$1,0)),\"\")","v":6.3743704100000007E-2},{"$f":"IFERROR(INDEX('Data Annex'!$K$1:$AN$4997,MATCH(R$1&\"|\"&$B18,'Data Annex'!$K$1:$K$4997,0),MATCH(R$2,'Data Annex'!$K$1:$AN$1,0)),\"\")","v":6.5132462799999999E-2},{"$f":"IFERROR(INDEX('Data Annex'!$K$1:$AN$4997,MATCH(S$1&\"|\"&$B18,'Data Annex'!$K$1:$K$4997,0),MATCH(S$2,'Data Annex'!$K$1:$AN$1,0)),\"\")","v":4.0472435700000003E-2},{"$f":"IFERROR(INDEX('Data Annex'!$K$1:$AN$4997,MATCH(T$1&\"|\"&$B18,'Data Annex'!$K$1:$K$4997,0),MATCH(T$2,'Data Annex'!$K$1:$AN$1,0)),\"\")","v":3.98850356E-2},{"$f":"IFERROR(INDEX('Data Annex'!$K$1:$AN$4997,MATCH(U$1&\"|\"&$B18,'Data Annex'!$K$1:$K$4997,0),MATCH(U$2,'Data Annex'!$K$1:$AN$1,0)),\"\")","v":8.4104478E-3},{"$f":"IFERROR(INDEX('Data Annex'!$K$1:$AN$4997,MATCH(V$1&\"|\"&$B18,'Data Annex'!$K$1:$K$4997,0),MATCH(V$2,'Data Annex'!$K$1:$AN$1,0)),\"\")","v":8.6956466000000007E-3},{"$f":"IFERROR(INDEX('Data Annex'!$K$1:$AN$4997,MATCH(W$1&\"|\"&$B18,'Data Annex'!$K$1:$K$4997,0),MATCH(W$2,'Data Annex'!$K$1:$AN$1,0)),\"\")","v":1.40503711E-2},{"$f":"IFERROR(INDEX('Data Annex'!$K$1:$AN$4997,MATCH(X$1&\"|\"&$B18,'Data Annex'!$K$1:$K$4997,0),MATCH(X$2,'Data Annex'!$K$1:$AN$1,0)),\"\")","v":1.2474288700000001E-2}]
[8,"EE",null,"EE",{"$f":"IFERROR(INDEX('Data Annex'!$K$1:$AN$4997,MATCH(E$1&\"|\"&$B19,'Data Annex'!$K$1:$K$4997,0),MATCH(E$2,'Data Annex'!$K$1:$AN$1,0)),\"\")","v":7.7933450700000004E-2},{"$f":"IFERROR(INDEX('Data Annex'!$K$1:$AN$4997,MATCH(F$1&\"|\"&$B19,'Data Annex'!$K$1:$K$4997,0),MATCH(F$2,'Data Annex'!$K$1:$AN$1,0)),\"\")","v":7.4709615500000007E-2},{"$f":"IFERROR(INDEX('Data Annex'!$K$1:$AN$4997,MATCH(G$1&\"|\"&$B19,'Data Annex'!$K$1:$K$4997,0),MATCH(G$2,'Data Annex'!$K$1:$AN$1,0)),\"\")","v":5.8226077000000003E-3},{"$f":"IFERROR(INDEX('Data Annex'!$K$1:$AN$4997,MATCH(H$1&\"|\"&$B19,'Data Annex'!$K$1:$K$4997,0),MATCH(H$2,'Data Annex'!$K$1:$AN$1,0)),\"\")","v":5.8242175999999998E-3},{"$f":"IFERROR(INDEX('Data Annex'!$K$1:$AN$4997,MATCH(I$1&\"|\"&$B19,'Data Annex'!$K$1:$K$4997,0),MATCH(I$2,'Data Annex'!$K$1:$AN$1,0)),\"\")","v":0.12581493220000001},{"$f":"IFERROR(INDEX('Data Annex'!$K$1:$AN$4997,MATCH(J$1&\"|\"&$B19,'Data Annex'!$K$1:$K$4997,0),MATCH(J$2,'Data Annex'!$K$1:$AN$1,0)),\"\")","v":0.12828974439999999},{"$f":"IFERROR(INDEX('Data Annex'!$K$1:$AN$4997,MATCH(K$1&\"|\"&$B19,'Data Annex'!$K$1:$K$4997,0),MATCH(K$2,'Data Annex'!$K$1:$AN$1,0)),\"\")","v":5.75773708E-2},{"$f":"IFERROR(INDEX('Data Annex'!$K$1:$AN$4997,MATCH(L$1&\"|\"&$B19,'Data Annex'!$K$1:$K$4997,0),MATCH(L$2,'Data Annex'!$K$1:$AN$1,0)),\"\")","v":6.5949860599999993E-2},{"$f":"IFERROR(INDEX('Data Annex'!$K$1:$AN$4997,MATCH(M$1&\"|\"&$B19,'Data Annex'!$K$1:$K$4997,0),MATCH(M$2,'Data Annex'!$K$1:$AN$1,0)),\"\")","v":6.3020717999999996E-3},{"$f":"IFERROR(INDEX('Data Annex'!$K$1:$AN$4997,MATCH(N$1&\"|\"&$B19,'Data Annex'!$K$1:$K$4997,0),MATCH(N$2,'Data Annex'!$K$1:$AN$1,0)),\"\")","v":6.7093930000000001E-3},{"$f":"IFERROR(INDEX('Data Annex'!$K$1:$AN$4997,MATCH(O$1&\"|\"&$B19,'Data Annex'!$K$1:$K$4997,0),MATCH(O$2,'Data Annex'!$K$1:$AN$1,0)),\"\")","v":3.7153499899999998E-2},{"$f":"IFERROR(INDEX('Data Annex'!$K$1:$AN$4997,MATCH(P$1&\"|\"&$B19,'Data Annex'!$K$1:$K$4997,0),MATCH(P$2,'Data Annex'!$K$1:$AN$1,0)),\"\")","v":3.3423290000000001E-2},{"$f":"IFERROR(INDEX('Data Annex'!$K$1:$AN$4997,MATCH(Q$1&\"|\"&$B19,'Data Annex'!$K$1:$K$4997,0),MATCH(Q$2,'Data Annex'!$K$1:$AN$1,0)),\"\")","v":0.14876316449999999},{"$f":"IFERROR(INDEX('Data Annex'!$K$1:$AN$4997,MATCH(R$1&\"|\"&$B19,'Data Annex'!$K$1:$K$4997,0),MATCH(R$2,'Data Annex'!$K$1:$AN$1,0)),\"\")","v":0.13557720979999999},{"$f":"IFERROR(INDEX('Data Annex'!$K$1:$AN$4997,MATCH(S$1&\"|\"&$B19,'Data Annex'!$K$1:$K$4997,0),MATCH(S$2,'Data Annex'!$K$1:$AN$1,0)),\"\")","v":8.7699225800000002E-2},{"$f":"IFERROR(INDEX('Data Annex'!$K$1:$AN$4997,MATCH(T$1&\"|\"&$B19,'Data Annex'!$K$1:$K$4997,0),MATCH(T$2,'Data Annex'!$K$1:$AN$1,0)),\"\")","v":8.7877405300000003E-2},{"$f":"IFERROR(INDEX('Data Annex'!$K$1:$AN$4997,MATCH(U$1&\"|\"&$B19,'Data Annex'!$K$1:$K$4997,0),MATCH(U$2,'Data Annex'!$K$1:$AN$1,0)),\"\")","v":1.5664990699999999E-2},{"$f":"IFERROR(INDEX('Data Annex'!$K$1:$AN$4997,MATCH(V$1&\"|\"&$B19,'Data Annex'!$K$1:$K$4997,0),MATCH(V$2,'Data Annex'!$K$1:$AN$1,0)),\"\")","v":1.6891088299999999E-2},{"$f":"IFERROR(INDEX('Data Annex'!$K$1:$AN$4997,MATCH(W$1&\"|\"&$B19,'Data Annex'!$K$1:$K$4997,0),MATCH(W$2,'Data Annex'!$K$1:$AN$1,0)),\"\")","v":7.1471579999999998E-3},{"$f":"IFERROR(INDEX('Data Annex'!$K$1:$AN$4997,MATCH(X$1&\"|\"&$B19,'Data Annex'!$K$1:$K$4997,0),MATCH(X$2,'Data Annex'!$K$1:$AN$1,0)),\"\")","v":7.0461917000000001E-3}]
[9,"ES",null,"ES",{"$f":"IFERROR(INDEX('Data Annex'!$K$1:$AN$4997,MATCH(E$1&\"|\"&$B20,'Data Annex'!$K$1:$K$4997,0),MATCH(E$2,'Data Annex'!$K$1:$AN$1,0)),\"\")","v":2.4436335300000001E-2},{"$f":"IFERROR(INDEX('Data Annex'!$K$1:$AN$4997,MATCH(F$1&\"|\"&$B20,'Data Annex'!$K$1:$K$4997,0),MATCH(F$2,'Data Annex'!$K$1:$AN$1,0)),\"\")","v":2.5852603700000001E-2},{"$f":"IFERROR(INDEX('Data Annex'!$K$1:$AN$4997,MATCH(G$1&\"|\"&$B20,'Data Annex'!$K$1:$K$4997,0),MATCH(G$2,'Data Annex'!$K$1:$AN$1,0)),\"\")","v":1.7561749000000001E-2},{"$f":"IFERROR(INDEX('Data Annex'!$K$1:$AN$4997,MATCH(H$1&\"|\"&$B20,'Data Annex'!$K$1:$K$4997,0),MATCH(H$2,'Data Annex'!$K$1:$AN$1,0)),\"\")","v":1.7683212199999999E-2},{"$f":"IFERROR(INDEX('Data Annex'!$K$1:$AN$4997,MATCH(I$1&\"|\"&$B20,'Data Annex'!$K$1:$K$4997,0),MATCH(I$2,'Data Annex'!$K$1:$AN$1,0)),\"\")","v":0.17839731759999999},{"$f":"IFERROR(INDEX('Data Annex'!$K$1:$AN$4997,MATCH(J$1&\"|\"&$B20,'Data Annex'!$K$1:$K$4997,0),MATCH(J$2,'Data Annex'!$K$1:$AN$1,0)),\"\")","v":0.17574317270000001},{"$f":"IFERROR(INDEX('Data Annex'!$K$1:$AN$4997,MATCH(K$1&\"|\"&$B20,'Data Annex'!$K$1:$K$4997,0),MATCH(K$2,'Data Annex'!$K$1:$AN$1,0)),\"\")","v":5.6749444900000001E-2},{"$f":"IFERROR(INDEX('Data Annex'!$K$1:$AN$4997,MATCH(L$1&\"|\"&$B20,'Data Annex'!$K$1:$K$4997,0),MATCH(L$2,'Data Annex'!$K$1:$AN$1,0)),\"\")","v":5.8953134599999998E-2},{"$f":"IFERROR(INDEX('Data Annex'!$K$1:$AN$4997,MATCH(M$1&\"|\"&$B20,'Data Annex'!$K$1:$K$4997,0),MATCH(M$2,'Data Annex'!$K$1:$AN$1,0)),\"\")","v":7.4712672999999999E-3},{"$f":"IFERROR(INDEX('Data Annex'!$K$1:$AN$4997,MATCH(N$1&\"|\"&$B20,'Data Annex'!$K$1:$K$4997,0),MATCH(N$2,'Data Annex'!$K$1:$AN$1,0)),\"\")","v":7.4147605E-3},{"$f":"IFERROR(INDEX('Data Annex'!$K$1:$AN$4997,MATCH(O$1&\"|\"&$B20,'Data Annex'!$K$1:$K$4997,0),MATCH(O$2,'Data Annex'!$K$1:$AN$1,0)),\"\")","v":7.6322924599999994E-2},{"$f":"IFERROR(INDEX('Data Annex'!$K$1:$AN$4997,MATCH(P$1&\"|\"&$B20,'Data Annex'!$K$1:$K$4997,0),MATCH(P$2,'Data Annex'!$K$1:$AN$1,0)),\"\")","v":7.6450053099999998E-2},{"$f":"IFERROR(INDEX('Data Annex'!$K$1:$AN$4997,MATCH(Q$1&\"|\"&$B20,'Data Annex'!$K$1:$K$4997,0),MATCH(Q$2,'Data Annex'!$K$1:$AN$1,0)),\"\")","v":0.17170336950000001},{"$f":"IFERROR(INDEX('Data Annex'!$K$1:$AN$4997,MATCH(R$1&\"|\"&$B20,'Data Annex'!$K$1:$K$4997,0),MATCH(R$2,'Data Annex'!$K$1:$AN$1,0)),\"\")","v":0.1818305871},{"$f":"IFERROR(INDEX('Data Annex'!$K$1:$AN$4997,MATCH(S$1&\"|\"&$B20,'Data Annex'!$K$1:$K$4997,0),MATCH(S$2,'Data Annex'!$K$1:$AN$1,0)),\"\")","v":6.645682E-2},{"$f":"IFERROR(INDEX('Data Annex'!$K$1:$AN$4997,MATCH(T$1&\"|\"&$B20,'Data Annex'!$K$1:$K$4997,0),MATCH(T$2,'Data Annex'!$K$1:$AN$1,0)),\"\")","v":6.4785400100000001E-2},{"$f":"IFERROR(INDEX('Data Annex'!$K$1:$AN$4997,MATCH(U$1&\"|\"&$B20,'Data Annex'!$K$1:$K$4997,0),MATCH(U$2,'Data Annex'!$K$1:$AN$1,0)),\"\")","v":5.6695874799999997E-2},{"$f":"IFERROR(INDEX('Data Annex'!$K$1:$AN$4997,MATCH(V$1&\"|\"&$B20,'Data Annex'!$K$1:$K$4997,0),MATCH(V$2,'Data Annex'!$K$1:$AN$1,0)),\"\")","v":5.7605548999999999E-2},{"$f":"IFERROR(INDEX('Data Annex'!$K$1:$AN$4997,MATCH(W$1&\"|\"&$B20,'Data Annex'!$K$1:$K$4997,0),MATCH(W$2,'Data Annex'!$K$1:$AN$1,0)),\"\")","v":3.4370574299999998E-2},{"$f":"IFERROR(INDEX('Data Annex'!$K$1:$AN$4997,MATCH(X$1&\"|\"&$B20,'Data Annex'!$K$1:$K$4997,0),MATCH(X$2,'Data Annex'!$K$1:$AN$1,0)),\"\")","v":3.6506293500000002E-2}]
[10,"FI",null,"FI",{"$f":"IFERROR(INDEX('Data Annex'!$K$1:$AN$4997,MATCH(E$1&\"|\"&$B21,'Data Annex'!$K$1:$K$4997,0),MATCH(E$2,'Data Annex'!$K$1:$AN$1,0)),\"\")","v":5.4417339600000003E-2},{"$f":"IFERROR(INDEX('Data Annex'!$K$1:$AN$4997,MATCH(F$1&\"|\"&$B21,'Data Annex'!$K$1:$K$4997,0),MATCH(F$2,'Data Annex'!$K$1:$AN$1,0)),\"\")","v":5.36794144E-2},{"$f":"IFERROR(INDEX('Data Annex'!$K$1:$AN$4997,MATCH(G$1&\"|\"&$B21,'Data Annex'!$K$1:$K$4997,0),MATCH(G$2,'Data Annex'!$K$1:$AN$1,0)),\"\")","v":9.5897987000000007E-3},{"$f":"IFERROR(INDEX('Data Annex'!$K$1:$AN$4997,MATCH(H$1&\"|\"&$B21,'Data Annex'!$K$1:$K$4997,0),MATCH(H$2,'Data Annex'!$K$1:$AN$1,0)),\"\")","v":8.2405415000000003E-3},{"$f":"IFERROR(INDEX('Data Annex'!$K$1:$AN$4997,MATCH(I$1&\"|\"&$B21,'Data Annex'!$K$1:$K$4997,0),MATCH(I$2,'Data Annex'!$K$1:$AN$1,0)),\"\")","v":0.1100752859},{"$f":"IFERROR(INDEX('Data Annex'!$K$1:$AN$4997,MATCH(J$1&\"|\"&$B21,'Data Annex'!$K$1:$K$4997,0),MATCH(J$2,'Data Annex'!$K$1:$AN$1,0)),\"\")","v":0.1319287807},{"$f":"IFERROR(INDEX('Data Annex'!$K$1:$AN$4997,MATCH(K$1&\"|\"&$B21,'Data Annex'!$K$1:$K$4997,0),MATCH(K$2,'Data Annex'!$K$1:$AN$1,0)),\"\")","v":4.5065694500000003E-2},{"$f":"IFERROR(INDEX('Data Annex'!$K$1:$AN$4997,MATCH(L$1&\"|\"&$B21,'Data Annex'!$K$1:$K$4997,0),MATCH(L$2,'Data Annex'!$K$1:$AN$1,0)),\"\")","v":4.3632182200000001E-2},{"$f":"IFERROR(INDEX('Data Annex'!$K$1:$AN$4997,MATCH(M$1&\"|\"&$B21,'Data Annex'!$K$1:$K$4997,0),MATCH(M$2,'Data Annex'!$K$1:$AN$1,0)),\"\")","v":9.5899647999999997E-3},{"$f":"IFERROR(INDEX('Data Annex'!$K$1:$AN$4997,MATCH(N$1&\"|\"&$B21,'Data Annex'!$K$1:$K$4997,0),MATCH(N$2,'Data Annex'!$K$1:$AN$1,0)),\"\")","v":1.0277346E-2},{"$f":"IFERROR(INDEX('Data Annex'!$K$1:$AN$4997,MATCH(O$1&\"|\"&$B21,'Data Annex'!$K$1:$K$4997,0),MATCH(O$2,'Data Annex'!$K$1:$AN$1,0)),\"\")","v":4.57259421E-2},{"$f":"IFERROR(INDEX('Data Annex'!$K$1:$AN$4997,MATCH(P$1&\"|\"&$B21,'Data Annex'!$K$1:$K$4997,0),MATCH(P$2,'Data Annex'!$K$1:$AN$1,0)),\"\")","v":4.6953175799999997E-2},{"$f":"IFERROR(INDEX('Data Annex'!$K$1:$AN$4997,MATCH(Q$1&\"|\"&$B21,'Data Annex'!$K$1:$K$4997,0),MATCH(Q$2,'Data Annex'!$K$1:$AN$1,0)),\"\")","v":6.6427195100000003E-2},{"$f":"IFERROR(INDEX('Data Annex'!$K$1:$AN$4997,MATCH(R$1&\"|\"&$B21,'Data Annex'!$K$1:$K$4997,0),MATCH(R$2,'Data Annex'!$K$1:$AN$1,0)),\"\")","v":6.2323494899999998E-2},{"$f":"IFERROR(INDEX('Data Annex'!$K$1:$AN$4997,MATCH(S$1&\"|\"&$B21,'Data Annex'!$K$1:$K$4997,0),MATCH(S$2,'Data Annex'!$K$1:$AN$1,0)),\"\")","v":6.3671553800000003E-2},{"$f":"IFERROR(INDEX('Data Annex'!$K$1:$AN$4997,MATCH(T$1&\"|\"&$B21,'Data Annex'!$K$1:$K$4997,0),MATCH(T$2,'Data Annex'!$K$1:$AN$1,0)),\"\")","v":5.9804507200000002E-2},{"$f":"IFERROR(INDEX('Data Annex'!$K$1:$AN$4997,MATCH(U$1&\"|\"&$B21,'Data Annex'!$K$1:$K$4997,0),MATCH(U$2,'Data Annex'!$K$1:$AN$1,0)),\"\")","v":9.0338798999999997E-3},{"$f":"IFERROR(INDEX('Data Annex'!$K$1:$AN$4997,MATCH(V$1&\"|\"&$B21,'Data Annex'!$K$1:$K$4997,0),MATCH(V$2,'Data Annex'!$K$1:$AN$1,0)),\"\")","v":1.0182337099999999E-2},{"$f":"IFERROR(INDEX('Data Annex'!$K$1:$AN$4997,MATCH(W$1&\"|\"&$B21,'Data Annex'!$K$1:$K$4997,0),MATCH(W$2,'Data Annex'!$K$1:$AN$1,0)),\"\")","v":2.0372092099999999E-2},{"$f":"IFERROR(INDEX('Data Annex'!$K$1:$AN$4997,MATCH(X$1&\"|\"&$B21,'Data Annex'!$K$1:$K$4997,0),MATCH(X$2,'Data Annex'!$K$1:$AN$1,0)),\"\")","v":2.1047455E-2}]
[11,"FR",null,"FR",{"$f":"IFERROR(INDEX('Data Annex'!$K$1:$AN$4997,MATCH(E$1&\"|\"&$B22,'Data Annex'!$K$1:$K$4997,0),MATCH(E$2,'Data Annex'!$K$1:$AN$1,0)),\"\")","v":3.90101791E-2},{"$f":"IFERROR(INDEX('Data Annex'!$K$1:$AN$4997,MATCH(F$1&\"|\"&$B22,'Data Annex'!$K$1:$K$4997,0),MATCH(F$2,'Data Annex'!$K$1:$AN$1,0)),\"\")","v":3.8866200199999999E-2},{"$f":"IFERROR(INDEX('Data Annex'!$K$1:$AN$4997,MATCH(G$1&\"|\"&$B22,'Data Annex'!$K$1:$K$4997,0),MATCH(G$2,'Data Annex'!$K$1:$AN$1,0)),\"\")","v":2.2721462000000001E-2},{"$f":"IFERROR(INDEX('Data Annex'!$K$1:$AN$4997,MATCH(H$1&\"|\"&$B22,'Data Annex'!$K$1:$K$4997,0),MATCH(H$2,'Data Annex'!$K$1:$AN$1,0)),\"\")","v":2.1146027800000002E-2},{"$f":"IFERROR(INDEX('Data Annex'!$K$1:$AN$4997,MATCH(I$1&\"|\"&$B22,'Data Annex'!$K$1:$K$4997,0),MATCH(I$2,'Data Annex'!$K$1:$AN$1,0)),\"\")","v":0.13401616450000001},{"$f":"IFERROR(INDEX('Data Annex'!$K$1:$AN$4997,MATCH(J$1&\"|\"&$B22,'Data Annex'!$K$1:$K$4997,0),MATCH(J$2,'Data Annex'!$K$1:$AN$1,0)),\"\")","v":0.1305042652},{"$f":"IFERROR(INDEX('Data Annex'!$K$1:$AN$4997,MATCH(K$1&\"|\"&$B22,'Data Annex'!$K$1:$K$4997,0),MATCH(K$2,'Data Annex'!$K$1:$AN$1,0)),\"\")","v":4.17934659E-2},{"$f":"IFERROR(INDEX('Data Annex'!$K$1:$AN$4997,MATCH(L$1&\"|\"&$B22,'Data Annex'!$K$1:$K$4997,0),MATCH(L$2,'Data Annex'!$K$1:$AN$1,0)),\"\")","v":4.19612179E-2},{"$f":"IFERROR(INDEX('Data Annex'!$K$1:$AN$4997,MATCH(M$1&\"|\"&$B22,'Data Annex'!$K$1:$K$4997,0),MATCH(M$2,'Data Annex'!$K$1:$AN$1,0)),\"\")","v":5.6339424000000004E-3},{"$f":"IFERROR(INDEX('Data Annex'!$K$1:$AN$4997,MATCH(N$1&\"|\"&$B22,'Data Annex'!$K$1:$K$4997,0),MATCH(N$2,'Data Annex'!$K$1:$AN$1,0)),\"\")","v":5.8304385E-3},{"$f":"IFERROR(INDEX('Data Annex'!$K$1:$AN$4997,MATCH(O$1&\"|\"&$B22,'Data Annex'!$K$1:$K$4997,0),MATCH(O$2,'Data Annex'!$K$1:$AN$1,0)),\"\")","v":4.7355587800000001E-2},{"$f":"IFERROR(INDEX('Data Annex'!$K$1:$AN$4997,MATCH(P$1&\"|\"&$B22,'Data Annex'!$K$1:$K$4997,0),MATCH(P$2,'Data Annex'!$K$1:$AN$1,0)),\"\")","v":4.63966585E-2},{"$f":"IFERROR(INDEX('Data Annex'!$K$1:$AN$4997,MATCH(Q$1&\"|\"&$B22,'Data Annex'!$K$1:$K$4997,0),MATCH(Q$2,'Data Annex'!$K$1:$AN$1,0)),\"\")","v":0.12459040809999999},{"$f":"IFERROR(INDEX('Data Annex'!$K$1:$AN$4997,MATCH(R$1&\"|\"&$B22,'Data Annex'!$K$1:$K$4997,0),MATCH(R$2,'Data Annex'!$K$1:$AN$1,0)),\"\")","v":0.1292198353},{"$f":"IFERROR(INDEX('Data Annex'!$K$1:$AN$4997,MATCH(S$1&\"|\"&$B22,'Data Annex'!$K$1:$K$4997,0),MATCH(S$2,'Data Annex'!$K$1:$AN$1,0)),\"\")","v":6.0113720599999997E-2},{"$f":"IFERROR(INDEX('Data Annex'!$K$1:$AN$4997,MATCH(T$1&\"|\"&$B22,'Data Annex'!$K$1:$K$4997,0),MATCH(T$2,'Data Annex'!$K$1:$AN$1,0)),\"\")","v":5.8336309400000001E-2},{"$f":"IFERROR(INDEX('Data Annex'!$K$1:$AN$4997,MATCH(U$1&\"|\"&$B22,'Data Annex'!$K$1:$K$4997,0),MATCH(U$2,'Data Annex'!$K$1:$AN$1,0)),\"\")","v":2.49166831E-2},{"$f":"IFERROR(INDEX('Data Annex'!$K$1:$AN$4997,MATCH(V$1&\"|\"&$B22,'Data Annex'!$K$1:$K$4997,0),MATCH(V$2,'Data Annex'!$K$1:$AN$1,0)),\"\")","v":2.5784871899999999E-2},{"$f":"IFERROR(INDEX('Data Annex'!$K$1:$AN$4997,MATCH(W$1&\"|\"&$B22,'Data Annex'!$K$1:$K$4997,0),MATCH(W$2,'Data Annex'!$K$1:$AN$1,0)),\"\")","v":2.4054133700000001E-2},{"$f":"IFERROR(INDEX('Data Annex'!$K$1:$AN$4997,MATCH(X$1&\"|\"&$B22,'Data Annex'!$K$1:$K$4997,0),MATCH(X$2,'Data Annex'!$K$1:$AN$1,0)),\"\")","v":2.4650163100000001E-2}]
[13,"GR",null,"GR",{"$f":"IFERROR(INDEX('Data Annex'!$K$1:$AN$4997,MATCH(E$1&\"|\"&$B23,'Data Annex'!$K$1:$K$4997,0),MATCH(E$2,'Data Annex'!$K$1:$AN$1,0)),\"\")","v":1.7429198199999999E-2},{"$f":"IFERROR(INDEX('Data Annex'!$K$1:$AN$4997,MATCH(F$1&\"|\"&$B23,'Data Annex'!$K$1:$K$4997,0),MATCH(F$2,'Data Annex'!$K$1:$AN$1,0)),\"\")","v":1.8946170599999999E-2},{"$f":"IFERROR(INDEX('Data Annex'!$K$1:$AN$4997,MATCH(G$1&\"|\"&$B23,'Data Annex'!$K$1:$K$4997,0),MATCH(G$2,'Data Annex'!$K$1:$AN$1,0)),\"\")","v":1.3499263100000001E-2},{"$f":"IFERROR(INDEX('Data Annex'!$K$1:$AN$4997,MATCH(H$1&\"|\"&$B23,'Data Annex'!$K$1:$K$4997,0),MATCH(H$2,'Data Annex'!$K$1:$AN$1,0)),\"\")","v":1.27134442E-2},{"$f":"IFERROR(INDEX('Data Annex'!$K$1:$AN$4997,MATCH(I$1&\"|\"&$B23,'Data Annex'!$K$1:$K$4997,0),MATCH(I$2,'Data Annex'!$K$1:$AN$1,0)),\"\")","v":0.19303895669999999},{"$f":"IFERROR(INDEX('Data Annex'!$K$1:$AN$4997,MATCH(J$1&\"|\"&$B23,'Data Annex'!$K$1:$K$4997,0),MATCH(J$2,'Data Annex'!$K$1:$AN$1,0)),\"\")","v":0.19031491549999999},{"$f":"IFERROR(INDEX('Data Annex'!$K$1:$AN$4997,MATCH(K$1&\"|\"&$B23,'Data Annex'!$K$1:$K$4997,0),MATCH(K$2,'Data Annex'!$K$1:$AN$1,0)),\"\")","v":6.5358486699999996E-2},{"$f":"IFERROR(INDEX('Data Annex'!$K$1:$AN$4997,MATCH(L$1&\"|\"&$B23,'Data Annex'!$K$1:$K$4997,0),MATCH(L$2,'Data Annex'!$K$1:$AN$1,0)),\"\")","v":6.5245979300000007E-2},{"$f":"IFERROR(INDEX('Data Annex'!$K$1:$AN$4997,MATCH(M$1&\"|\"&$B23,'Data Annex'!$K$1:$K$4997,0),MATCH(M$2,'Data Annex'!$K$1:$AN$1,0)),\"\")","v":1.6991216E-3},{"$f":"IFERROR(INDEX('Data Annex'!$K$1:$AN$4997,MATCH(N$1&\"|\"&$B23,'Data Annex'!$K$1:$K$4997,0),MATCH(N$2,'Data Annex'!$K$1:$AN$1,0)),\"\")","v":1.7452911E-3},{"$f":"IFERROR(INDEX('Data Annex'!$K$1:$AN$4997,MATCH(O$1&\"|\"&$B23,'Data Annex'!$K$1:$K$4997,0),MATCH(O$2,'Data Annex'!$K$1:$AN$1,0)),\"\")","v":8.3853844699999999E-2},{"$f":"IFERROR(INDEX('Data Annex'!$K$1:$AN$4997,MATCH(P$1&\"|\"&$B23,'Data Annex'!$K$1:$K$4997,0),MATCH(P$2,'Data Annex'!$K$1:$AN$1,0)),\"\")","v":7.9876667700000001E-2},{"$f":"IFERROR(INDEX('Data Annex'!$K$1:$AN$4997,MATCH(Q$1&\"|\"&$B23,'Data Annex'!$K$1:$K$4997,0),MATCH(Q$2,'Data Annex'!$K$1:$AN$1,0)),\"\")","v":0.217718036},{"$f":"IFERROR(INDEX('Data Annex'!$K$1:$AN$4997,MATCH(R$1&\"|\"&$B23,'Data Annex'!$K$1:$K$4997,0),MATCH(R$2,'Data Annex'!$K$1:$AN$1,0)),\"\")","v":0.21746030990000001},{"$f":"IFERROR(INDEX('Data Annex'!$K$1:$AN$4997,MATCH(S$1&\"|\"&$B23,'Data Annex'!$K$1:$K$4997,0),MATCH(S$2,'Data Annex'!$K$1:$AN$1,0)),\"\")","v":0.1296204614},{"$f":"IFERROR(INDEX('Data Annex'!$K$1:$AN$4997,MATCH(T$1&\"|\"&$B23,'Data Annex'!$K$1:$K$4997,0),MATCH(T$2,'Data Annex'!$K$1:$AN$1,0)),\"\")","v":0.13415389180000001},{"$f":"IFERROR(INDEX('Data Annex'!$K$1:$AN$4997,MATCH(U$1&\"|\"&$B23,'Data Annex'!$K$1:$K$4997,0),MATCH(U$2,'Data Annex'!$K$1:$AN$1,0)),\"\")","v":0.1021988051},{"$f":"IFERROR(INDEX('Data Annex'!$K$1:$AN$4997,MATCH(V$1&\"|\"&$B23,'Data Annex'!$K$1:$K$4997,0),MATCH(V$2,'Data Annex'!$K$1:$AN$1,0)),\"\")","v":0.10408673240000001},{"$f":"IFERROR(INDEX('Data Annex'!$K$1:$AN$4997,MATCH(W$1&\"|\"&$B23,'Data Annex'!$K$1:$K$4997,0),MATCH(W$2,'Data Annex'!$K$1:$AN$1,0)),\"\")","v":1.21262134E-2},{"$f":"IFERROR(INDEX('Data Annex'!$K$1:$AN$4997,MATCH(X$1&\"|\"&$B23,'Data Annex'!$K$1:$K$4997,0),MATCH(X$2,'Data Annex'!$K$1:$AN$1,0)),\"\")","v":1.26416632E-2}]
[14,"HR",null,"HR",{"$f":"IFERROR(INDEX('Data Annex'!$K$1:$AN$4997,MATCH(E$1&\"|\"&$B24,'Data Annex'!$K$1:$K$4997,0),MATCH(E$2,'Data Annex'!$K$1:$AN$1,0)),\"\")","v":5.1429502699999997E-2},{"$f":"IFERROR(INDEX('Data Annex'!$K$1:$AN$4997,MATCH(F$1&\"|\"&$B24,'Data Annex'!$K$1:$K$4997,0),MATCH(F$2,'Data Annex'!$K$1:$AN$1,0)),\"\")","v":5.0018842899999999E-2},{"$f":"IFERROR(INDEX('Data Annex'!$K$1:$AN$4997,MATCH(G$1&\"|\"&$B24,'Data Annex'!$K$1:$K$4997,0),MATCH(G$2,'Data Annex'!$K$1:$AN$1,0)),\"\")","v":5.9789385999999998E-3},{"$f":"IFERROR(INDEX('Data Annex'!$K$1:$AN$4997,MATCH(H$1&\"|\"&$B24,'Data Annex'!$K$1:$K$4997,0),MATCH(H$2,'Data Annex'!$K$1:$AN$1,0)),\"\")","v":5.4848335000000003E-3},{"$f":"IFERROR(INDEX('Data Annex'!$K$1:$AN$4997,MATCH(I$1&\"|\"&$B24,'Data Annex'!$K$1:$K$4997,0),MATCH(I$2,'Data Annex'!$K$1:$AN$1,0)),\"\")","v":0.18058053600000001},{"$f":"IFERROR(INDEX('Data Annex'!$K$1:$AN$4997,MATCH(J$1&\"|\"&$B24,'Data Annex'!$K$1:$K$4997,0),MATCH(J$2,'Data Annex'!$K$1:$AN$1,0)),\"\")","v":0.17433662229999999},{"$f":"IFERROR(INDEX('Data Annex'!$K$1:$AN$4997,MATCH(K$1&\"|\"&$B24,'Data Annex'!$K$1:$K$4997,0),MATCH(K$2,'Data Annex'!$K$1:$AN$1,0)),\"\")","v":6.3924567200000004E-2},{"$f":"IFERROR(INDEX('Data Annex'!$K$1:$AN$4997,MATCH(L$1&\"|\"&$B24,'Data Annex'!$K$1:$K$4997,0),MATCH(L$2,'Data Annex'!$K$1:$AN$1,0)),\"\")","v":6.5851127100000004E-2},{"$f":"IFERROR(INDEX('Data Annex'!$K$1:$AN$4997,MATCH(M$1&\"|\"&$B24,'Data Annex'!$K$1:$K$4997,0),MATCH(M$2,'Data Annex'!$K$1:$AN$1,0)),\"\")","v":2.1989120000000001E-2},{"$f":"IFERROR(INDEX('Data Annex'!$K$1:$AN$4997,MATCH(N$1&\"|\"&$B24,'Data Annex'!$K$1:$K$4997,0),MATCH(N$2,'Data Annex'!$K$1:$AN$1,0)),\"\")","v":2.21158155E-2},{"$f":"IFERROR(INDEX('Data Annex'!$K$1:$AN$4997,MATCH(O$1&\"|\"&$B24,'Data Annex'!$K$1:$K$4997,0),MATCH(O$2,'Data Annex'!$K$1:$AN$1,0)),\"\")","v":6.6356020500000001E-2},{"$f":"IFERROR(INDEX('Data Annex'!$K$1:$AN$4997,MATCH(P$1&\"|\"&$B24,'Data Annex'!$K$1:$K$4997,0),MATCH(P$2,'Data Annex'!$K$1:$AN$1,0)),\"\")","v":8.4639204699999998E-2},{"$f":"IFERROR(INDEX('Data Annex'!$K$1:$AN$4997,MATCH(Q$1&\"|\"&$B24,'Data Annex'!$K$1:$K$4997,0),MATCH(Q$2,'Data Annex'!$K$1:$AN$1,0)),\"\")","v":0.2042934964},{"$f":"IFERROR(INDEX('Data Annex'!$K$1:$AN$4997,MATCH(R$1&\"|\"&$B24,'Data Annex'!$K$1:$K$4997,0),MATCH(R$2,'Data Annex'!$K$1:$AN$1,0)),\"\")","v":0.1990161744},{"$f":"IFERROR(INDEX('Data Annex'!$K$1:$AN$4997,MATCH(S$1&\"|\"&$B24,'Data Annex'!$K$1:$K$4997,0),MATCH(S$2,'Data Annex'!$K$1:$AN$1,0)),\"\")","v":7.1393691600000003E-2},{"$f":"IFERROR(INDEX('Data Annex'!$K$1:$AN$4997,MATCH(T$1&\"|\"&$B24,'Data Annex'!$K$1:$K$4997,0),MATCH(T$2,'Data Annex'!$K$1:$AN$1,0)),\"\")","v":7.9770435599999995E-2},{"$f":"IFERROR(INDEX('Data Annex'!$K$1:$AN$4997,MATCH(U$1&\"|\"&$B24,'Data Annex'!$K$1:$K$4997,0),MATCH(U$2,'Data Annex'!$K$1:$AN$1,0)),\"\")","v":0.13353638910000001},{"$f":"IFERROR(INDEX('Data Annex'!$K$1:$AN$4997,MATCH(V$1&\"|\"&$B24,'Data Annex'!$K$1:$K$4997,0),MATCH(V$2,'Data Annex'!$K$1:$AN$1,0)),\"\")","v":0.13113916019999999},{"$f":"IFERROR(INDEX('Data Annex'!$K$1:$AN$4997,MATCH(W$1&\"|\"&$B24,'Data Annex'!$K$1:$K$4997,0),MATCH(W$2,'Data Annex'!$K$1:$AN$1,0)),\"\")","v":2.07115639E-2},{"$f":"IFERROR(INDEX('Data Annex'!$K$1:$AN$4997,MATCH(X$1&\"|\"&$B24,'Data Annex'!$K$1:$K$4997,0),MATCH(X$2,'Data Annex'!$K$1:$AN$1,0)),\"\")","v":2.27676939E-2}]
[15,"HU",null,"HU",{"$f":"IFERROR(INDEX('Data Annex'!$K$1:$AN$4997,MATCH(E$1&\"|\"&$B25,'Data Annex'!$K$1:$K$4997,0),MATCH(E$2,'Data Annex'!$K$1:$AN$1,0)),\"\")","v":7.2354000099999996E-2},{"$f":"IFERROR(INDEX('Data Annex'!$K$1:$AN$4997,MATCH(F$1&\"|\"&$B25,'Data Annex'!$K$1:$K$4997,0),MATCH(F$2,'Data Annex'!$K$1:$AN$1,0)),\"\")","v":7.13061163E-2},{"$f":"IFERROR(INDEX('Data Annex'!$K$1:$AN$4997,MATCH(G$1&\"|\"&$B25,'Data Annex'!$K$1:$K$4997,0),MATCH(G$2,'Data Annex'!$K$1:$AN$1,0)),\"\")","v":8.8727041999999996E-3},{"$f":"IFERROR(INDEX('Data Annex'!$K$1:$AN$4997,MATCH(H$1&\"|\"&$B25,'Data Annex'!$K$1:$K$4997,0),MATCH(H$2,'Data Annex'!$K$1:$AN$1,0)),\"\")","v":8.8007994999999995E-3},{"$f":"IFERROR(INDEX('Data Annex'!$K$1:$AN$4997,MATCH(I$1&\"|\"&$B25,'Data Annex'!$K$1:$K$4997,0),MATCH(I$2,'Data Annex'!$K$1:$AN$1,0)),\"\")","v":0.21314145770000001},{"$f":"IFERROR(INDEX('Data Annex'!$K$1:$AN$4997,MATCH(J$1&\"|\"&$B25,'Data Annex'!$K$1:$K$4997,0),MATCH(J$2,'Data Annex'!$K$1:$AN$1,0)),\"\")","v":0.21154763169999999},{"$f":"IFERROR(INDEX('Data Annex'!$K$1:$AN$4997,MATCH(K$1&\"|\"&$B25,'Data Annex'!$K$1:$K$4997,0),MATCH(K$2,'Data Annex'!$K$1:$AN$1,0)),\"\")","v":5.7105783E-2},{"$f":"IFERROR(INDEX('Data Annex'!$K$1:$AN$4997,MATCH(L$1&\"|\"&$B25,'Data Annex'!$K$1:$K$4997,0),MATCH(L$2,'Data Annex'!$K$1:$AN$1,0)),\"\")","v":5.7917090400000003E-2},{"$f":"IFERROR(INDEX('Data Annex'!$K$1:$AN$4997,MATCH(M$1&\"|\"&$B25,'Data Annex'!$K$1:$K$4997,0),MATCH(M$2,'Data Annex'!$K$1:$AN$1,0)),\"\")","v":9.3696742000000006E-3},{"$f":"IFERROR(INDEX('Data Annex'!$K$1:$AN$4997,MATCH(N$1&\"|\"&$B25,'Data Annex'!$K$1:$K$4997,0),MATCH(N$2,'Data Annex'!$K$1:$AN$1,0)),\"\")","v":8.6204717E-3},{"$f":"IFERROR(INDEX('Data Annex'!$K$1:$AN$4997,MATCH(O$1&\"|\"&$B25,'Data Annex'!$K$1:$K$4997,0),MATCH(O$2,'Data Annex'!$K$1:$AN$1,0)),\"\")","v":5.6158526899999998E-2},{"$f":"IFERROR(INDEX('Data Annex'!$K$1:$AN$4997,MATCH(P$1&\"|\"&$B25,'Data Annex'!$K$1:$K$4997,0),MATCH(P$2,'Data Annex'!$K$1:$AN$1,0)),\"\")","v":5.7157196E-2},{"$f":"IFERROR(INDEX('Data Annex'!$K$1:$AN$4997,MATCH(Q$1&\"|\"&$B25,'Data Annex'!$K$1:$K$4997,0),MATCH(Q$2,'Data Annex'!$K$1:$AN$1,0)),\"\")","v":0.19535084799999999},{"$f":"IFERROR(INDEX('Data Annex'!$K$1:$AN$4997,MATCH(R$1&\"|\"&$B25,'Data Annex'!$K$1:$K$4997,0),MATCH(R$2,'Data Annex'!$K$1:$AN$1,0)),\"\")","v":0.21017235070000001},{"$f":"IFERROR(INDEX('Data Annex'!$K$1:$AN$4997,MATCH(S$1&\"|\"&$B25,'Data Annex'!$K$1:$K$4997,0),MATCH(S$2,'Data Annex'!$K$1:$AN$1,0)),\"\")","v":7.5973589499999994E-2},{"$f":"IFERROR(INDEX('Data Annex'!$K$1:$AN$4997,MATCH(T$1&\"|\"&$B25,'Data Annex'!$K$1:$K$4997,0),MATCH(T$2,'Data Annex'!$K$1:$AN$1,0)),\"\")","v":7.4267018200000007E-2},{"$f":"IFERROR(INDEX('Data Annex'!$K$1:$AN$4997,MATCH(U$1&\"|\"&$B25,'Data Annex'!$K$1:$K$4997,0),MATCH(U$2,'Data Annex'!$K$1:$AN$1,0)),\"\")","v":4.50495515E-2},{"$f":"IFERROR(INDEX('Data Annex'!$K$1:$AN$4997,MATCH(V$1&\"|\"&$B25,'Data Annex'!$K$1:$K$4997,0),MATCH(V$2,'Data Annex'!$K$1:$AN$1,0)),\"\")","v":4.5718250500000002E-2},{"$f":"IFERROR(INDEX('Data Annex'!$K$1:$AN$4997,MATCH(W$1&\"|\"&$B25,'Data Annex'!$K$1:$K$4997,0),MATCH(W$2,'Data Annex'!$K$1:$AN$1,0)),\"\")","v":2.10827367E-2},{"$f":"IFERROR(INDEX('Data Annex'!$K$1:$AN$4997,MATCH(X$1&\"|\"&$B25,'Data Annex'!$K$1:$K$4997,0),MATCH(X$2,'Data Annex'!$K$1:$AN$1,0)),\"\")","v":2.27203084E-2}]
[16,"IE",null,"IE",{"$f":"IFERROR(INDEX('Data Annex'!$K$1:$AN$4997,MATCH(E$1&\"|\"&$B26,'Data Annex'!$K$1:$K$4997,0),MATCH(E$2,'Data Annex'!$K$1:$AN$1,0)),\"\")","v":5.2681690900000001E-2},{"$f":"IFERROR(INDEX('Data Annex'!$K$1:$AN$4997,MATCH(F$1&\"|\"&$B26,'Data Annex'!$K$1:$K$4997,0),MATCH(F$2,'Data Annex'!$K$1:$AN$1,0)),\"\")","v":5.1405178900000001E-2},{"$f":"IFERROR(INDEX('Data Annex'!$K$1:$AN$4997,MATCH(G$1&\"|\"&$B26,'Data Annex'!$K$1:$K$4997,0),MATCH(G$2,'Data Annex'!$K$1:$AN$1,0)),\"\")","v":5.5953675999999997E-3},{"$f":"IFERROR(INDEX('Data Annex'!$K$1:$AN$4997,MATCH(H$1&\"|\"&$B26,'Data Annex'!$K$1:$K$4997,0),MATCH(H$2,'Data Annex'!$K$1:$AN$1,0)),\"\")","v":4.7714582000000002E-3},{"$f":"IFERROR(INDEX('Data Annex'!$K$1:$AN$4997,MATCH(I$1&\"|\"&$B26,'Data Annex'!$K$1:$K$4997,0),MATCH(I$2,'Data Annex'!$K$1:$AN$1,0)),\"\")","v":0.19758211379999999},{"$f":"IFERROR(INDEX('Data Annex'!$K$1:$AN$4997,MATCH(J$1&\"|\"&$B26,'Data Annex'!$K$1:$K$4997,0),MATCH(J$2,'Data Annex'!$K$1:$AN$1,0)),\"\")","v":0.19195554149999999},{"$f":"IFERROR(INDEX('Data Annex'!$K$1:$AN$4997,MATCH(K$1&\"|\"&$B26,'Data Annex'!$K$1:$K$4997,0),MATCH(K$2,'Data Annex'!$K$1:$AN$1,0)),\"\")","v":3.0240089299999998E-2},{"$f":"IFERROR(INDEX('Data Annex'!$K$1:$AN$4997,MATCH(L$1&\"|\"&$B26,'Data Annex'!$K$1:$K$4997,0),MATCH(L$2,'Data Annex'!$K$1:$AN$1,0)),\"\")","v":3.1523222699999999E-2},{"$f":"IFERROR(INDEX('Data Annex'!$K$1:$AN$4997,MATCH(M$1&\"|\"&$B26,'Data Annex'!$K$1:$K$4997,0),MATCH(M$2,'Data Annex'!$K$1:$AN$1,0)),\"\")","v":5.5344319999999997E-3},{"$f":"IFERROR(INDEX('Data Annex'!$K$1:$AN$4997,MATCH(N$1&\"|\"&$B26,'Data Annex'!$K$1:$K$4997,0),MATCH(N$2,'Data Annex'!$K$1:$AN$1,0)),\"\")","v":5.5430946000000004E-3},{"$f":"IFERROR(INDEX('Data Annex'!$K$1:$AN$4997,MATCH(O$1&\"|\"&$B26,'Data Annex'!$K$1:$K$4997,0),MATCH(O$2,'Data Annex'!$K$1:$AN$1,0)),\"\")","v":2.56213876E-2},{"$f":"IFERROR(INDEX('Data Annex'!$K$1:$AN$4997,MATCH(P$1&\"|\"&$B26,'Data Annex'!$K$1:$K$4997,0),MATCH(P$2,'Data Annex'!$K$1:$AN$1,0)),\"\")","v":2.4537776899999999E-2},{"$f":"IFERROR(INDEX('Data Annex'!$K$1:$AN$4997,MATCH(Q$1&\"|\"&$B26,'Data Annex'!$K$1:$K$4997,0),MATCH(Q$2,'Data Annex'!$K$1:$AN$1,0)),\"\")","v":9.1026800899999996E-2},{"$f":"IFERROR(INDEX('Data Annex'!$K$1:$AN$4997,MATCH(R$1&\"|\"&$B26,'Data Annex'!$K$1:$K$4997,0),MATCH(R$2,'Data Annex'!$K$1:$AN$1,0)),\"\")","v":9.09359894E-2},{"$f":"IFERROR(INDEX('Data Annex'!$K$1:$AN$4997,MATCH(S$1&\"|\"&$B26,'Data Annex'!$K$1:$K$4997,0),MATCH(S$2,'Data Annex'!$K$1:$AN$1,0)),\"\")","v":4.81985256E-2},{"$f":"IFERROR(INDEX('Data Annex'!$K$1:$AN$4997,MATCH(T$1&\"|\"&$B26,'Data Annex'!$K$1:$K$4997,0),MATCH(T$2,'Data Annex'!$K$1:$AN$1,0)),\"\")","v":4.39208944E-2},{"$f":"IFERROR(INDEX('Data Annex'!$K$1:$AN$4997,MATCH(U$1&\"|\"&$B26,'Data Annex'!$K$1:$K$4997,0),MATCH(U$2,'Data Annex'!$K$1:$AN$1,0)),\"\")","v":8.0078408500000003E-2},{"$f":"IFERROR(INDEX('Data Annex'!$K$1:$AN$4997,MATCH(V$1&\"|\"&$B26,'Data Annex'!$K$1:$K$4997,0),MATCH(V$2,'Data Annex'!$K$1:$AN$1,0)),\"\")","v":7.8623311799999998E-2},{"$f":"IFERROR(INDEX('Data Annex'!$K$1:$AN$4997,MATCH(W$1&\"|\"&$B26,'Data Annex'!$K$1:$K$4997,0),MATCH(W$2,'Data Annex'!$K$1:$AN$1,0)),\"\")","v":4.63607272E-2},{"$f":"IFERROR(INDEX('Data Annex'!$K$1:$AN$4997,MATCH(X$1&\"|\"&$B26,'Data Annex'!$K$1:$K$4997,0),MATCH(X$2,'Data Annex'!$K$1:$AN$1,0)),\"\")","v":4.8000590699999998E-2}]
[17,"IS",null,"IS",{"$f":"IFERROR(INDEX('Data Annex'!$K$1:$AN$4997,MATCH(E$1&\"|\"&$B27,'Data Annex'!$K$1:$K$4997,0),MATCH(E$2,'Data Annex'!$K$1:$AN$1,0)),\"\")","v":0.1336092337},{"$f":"IFERROR(INDEX('Data Annex'!$K$1:$AN$4997,MATCH(F$1&\"|\"&$B27,'Data Annex'!$K$1:$K$4997,0),MATCH(F$2,'Data Annex'!$K$1:$AN$1,0)),\"\")","v":0.1281726718},{"$f":"IFERROR(INDEX('Data Annex'!$K$1:$AN$4997,MATCH(G$1&\"|\"&$B27,'Data Annex'!$K$1:$K$4997,0),MATCH(G$2,'Data Annex'!$K$1:$AN$1,0)),\"\")","v":3.8662465E-3},{"$f":"IFERROR(INDEX('Data Annex'!$K$1:$AN$4997,MATCH(H$1&\"|\"&$B27,'Data Annex'!$K$1:$K$4997,0),MATCH(H$2,'Data Annex'!$K$1:$AN$1,0)),\"\")","v":3.9860175999999999E-3},{"$f":"IFERROR(INDEX('Data Annex'!$K$1:$AN$4997,MATCH(I$1&\"|\"&$B27,'Data Annex'!$K$1:$K$4997,0),MATCH(I$2,'Data Annex'!$K$1:$AN$1,0)),\"\")","v":0.17702568199999999},{"$f":"IFERROR(INDEX('Data Annex'!$K$1:$AN$4997,MATCH(J$1&\"|\"&$B27,'Data Annex'!$K$1:$K$4997,0),MATCH(J$2,'Data Annex'!$K$1:$AN$1,0)),\"\")","v":0.1755032715},{"$f":"IFERROR(INDEX('Data Annex'!$K$1:$AN$4997,MATCH(K$1&\"|\"&$B27,'Data Annex'!$K$1:$K$4997,0),MATCH(K$2,'Data Annex'!$K$1:$AN$1,0)),\"\")","v":7.3318484000000003E-3},{"$f":"IFERROR(INDEX('Data Annex'!$K$1:$AN$4997,MATCH(L$1&\"|\"&$B27,'Data Annex'!$K$1:$K$4997,0),MATCH(L$2,'Data Annex'!$K$1:$AN$1,0)),\"\")","v":9.3438924999999992E-3},{"$f":"IFERROR(INDEX('Data Annex'!$K$1:$AN$4997,MATCH(M$1&\"|\"&$B27,'Data Annex'!$K$1:$K$4997,0),MATCH(M$2,'Data Annex'!$K$1:$AN$1,0)),\"\")","v":5.5656183999999997E-3},{"$f":"IFERROR(INDEX('Data Annex'!$K$1:$AN$4997,MATCH(N$1&\"|\"&$B27,'Data Annex'!$K$1:$K$4997,0),MATCH(N$2,'Data Annex'!$K$1:$AN$1,0)),\"\")","v":6.0020207000000001E-3},{"$f":"IFERROR(INDEX('Data Annex'!$K$1:$AN$4997,MATCH(O$1&\"|\"&$B27,'Data Annex'!$K$1:$K$4997,0),MATCH(O$2,'Data Annex'!$K$1:$AN$1,0)),\"\")","v":0.117108184},{"$f":"IFERROR(INDEX('Data Annex'!$K$1:$AN$4997,MATCH(P$1&\"|\"&$B27,'Data Annex'!$K$1:$K$4997,0),MATCH(P$2,'Data Annex'!$K$1:$AN$1,0)),\"\")","v":0.11036877859999999},{"$f":"IFERROR(INDEX('Data Annex'!$K$1:$AN$4997,MATCH(Q$1&\"|\"&$B27,'Data Annex'!$K$1:$K$4997,0),MATCH(Q$2,'Data Annex'!$K$1:$AN$1,0)),\"\")","v":7.6086448000000001E-2},{"$f":"IFERROR(INDEX('Data Annex'!$K$1:$AN$4997,MATCH(R$1&\"|\"&$B27,'Data Annex'!$K$1:$K$4997,0),MATCH(R$2,'Data Annex'!$K$1:$AN$1,0)),\"\")","v":7.7502545300000003E-2},{"$f":"IFERROR(INDEX('Data Annex'!$K$1:$AN$4997,MATCH(S$1&\"|\"&$B27,'Data Annex'!$K$1:$K$4997,0),MATCH(S$2,'Data Annex'!$K$1:$AN$1,0)),\"\")","v":5.5958124599999999E-2},{"$f":"IFERROR(INDEX('Data Annex'!$K$1:$AN$4997,MATCH(T$1&\"|\"&$B27,'Data Annex'!$K$1:$K$4997,0),MATCH(T$2,'Data Annex'!$K$1:$AN$1,0)),\"\")","v":5.3807308200000001E-2},{"$f":"IFERROR(INDEX('Data Annex'!$K$1:$AN$4997,MATCH(U$1&\"|\"&$B27,'Data Annex'!$K$1:$K$4997,0),MATCH(U$2,'Data Annex'!$K$1:$AN$1,0)),\"\")","v":6.3948369099999999E-2},{"$f":"IFERROR(INDEX('Data Annex'!$K$1:$AN$4997,MATCH(V$1&\"|\"&$B27,'Data Annex'!$K$1:$K$4997,0),MATCH(V$2,'Data Annex'!$K$1:$AN$1,0)),\"\")","v":6.8201352300000004E-2},{"$f":"IFERROR(INDEX('Data Annex'!$K$1:$AN$4997,MATCH(W$1&\"|\"&$B27,'Data Annex'!$K$1:$K$4997,0),MATCH(W$2,'Data Annex'!$K$1:$AN$1,0)),\"\")","v":3.9140475000000001E-2},{"$f":"IFERROR(INDEX('Data Annex'!$K$1:$AN$4997,MATCH(X$1&\"|\"&$B27,'Data Annex'!$K$1:$K$4997,0),MATCH(X$2,'Data Annex'!$K$1:$AN$1,0)),\"\")","v":4.0918297700000002E-2}]
[null,"IT",null,"IT",{"$f":"IFERROR(INDEX('Data Annex'!$K$1:$AN$4997,MATCH(E$1&\"|\"&$B28,'Data Annex'!$K$1:$K$4997,0),MATCH(E$2,'Data Annex'!$K$1:$AN$1,0)),\"\")","v":2.11215256E-2},{"$f":"IFERROR(INDEX('Data Annex'!$K$1:$AN$4997,MATCH(F$1&\"|\"&$B28,'Data Annex'!$K$1:$K$4997,0),MATCH(F$2,'Data Annex'!$K$1:$AN$1,0)),\"\")","v":2.1828787200000001E-2},{"$f":"IFERROR(INDEX('Data Annex'!$K$1:$AN$4997,MATCH(G$1&\"|\"&$B28,'Data Annex'!$K$1:$K$4997,0),MATCH(G$2,'Data Annex'!$K$1:$AN$1,0)),\"\")","v":1.0060611699999999E-2},{"$f":"IFERROR(INDEX('Data Annex'!$K$1:$AN$4997,MATCH(H$1&\"|\"&$B28,'Data Annex'!$K$1:$K$4997,0),MATCH(H$2,'Data Annex'!$K$1:$AN$1,0)),\"\")","v":1.09675216E-2},{"$f":"IFERROR(INDEX('Data Annex'!$K$1:$AN$4997,MATCH(I$1&\"|\"&$B28,'Data Annex'!$K$1:$K$4997,0),MATCH(I$2,'Data Annex'!$K$1:$AN$1,0)),\"\")","v":0.28287734060000003},{"$f":"IFERROR(INDEX('Data Annex'!$K$1:$AN$4997,MATCH(J$1&\"|\"&$B28,'Data Annex'!$K$1:$K$4997,0),MATCH(J$2,'Data Annex'!$K$1:$AN$1,0)),\"\")","v":0.2805052307},{"$f":"IFERROR(INDEX('Data Annex'!$K$1:$AN$4997,MATCH(K$1&\"|\"&$B28,'Data Annex'!$K$1:$K$4997,0),MATCH(K$2,'Data Annex'!$K$1:$AN$1,0)),\"\")","v":3.6437088200000002E-2},{"$f":"IFERROR(INDEX('Data Annex'!$K$1:$AN$4997,MATCH(L$1&\"|\"&$B28,'Data Annex'!$K$1:$K$4997,0),MATCH(L$2,'Data Annex'!$K$1:$AN$1,0)),\"\")","v":4.0093069000000002E-2},{"$f":"IFERROR(INDEX('Data Annex'!$K$1:$AN$4997,MATCH(M$1&\"|\"&$B28,'Data Annex'!$K$1:$K$4997,0),MATCH(M$2,'Data Annex'!$K$1:$AN$1,0)),\"\")","v":1.04224486E-2},{"$f":"IFERROR(INDEX('Data Annex'!$K$1:$AN$4997,MATCH(N$1&\"|\"&$B28,'Data Annex'!$K$1:$K$4997,0),MATCH(N$2,'Data Annex'!$K$1:$AN$1,0)),\"\")","v":1.06271714E-2},{"$f":"IFERROR(INDEX('Data Annex'!$K$1:$AN$4997,MATCH(O$1&\"|\"&$B28,'Data Annex'!$K$1:$K$4997,0),MATCH(O$2,'Data Annex'!$K$1:$AN$1,0)),\"\")","v":8.8730931700000001E-2},{"$f":"IFERROR(INDEX('Data Annex'!$K$1:$AN$4997,MATCH(P$1&\"|\"&$B28,'Data Annex'!$K$1:$K$4997,0),MATCH(P$2,'Data Annex'!$K$1:$AN$1,0)),\"\")","v":8.2929868599999998E-2},{"$f":"IFERROR(INDEX('Data Annex'!$K$1:$AN$4997,MATCH(Q$1&\"|\"&$B28,'Data Annex'!$K$1:$K$4997,0),MATCH(Q$2,'Data Annex'!$K$1:$AN$1,0)),\"\")","v":0.15707464900000001},{"$f":"IFERROR(INDEX('Data Annex'!$K$1:$AN$4997,MATCH(R$1&\"|\"&$B28,'Data Annex'!$K$1:$K$4997,0),MATCH(R$2,'Data Annex'!$K$1:$AN$1,0)),\"\")","v":0.1563894042},{"$f":"IFERROR(INDEX('Data Annex'!$K$1:$AN$4997,MATCH(S$1&\"|\"&$B28,'Data Annex'!$K$1:$K$4997,0),MATCH(S$2,'Data Annex'!$K$1:$AN$1,0)),\"\")","v":5.6321405900000003E-2},{"$f":"IFERROR(INDEX('Data Annex'!$K$1:$AN$4997,MATCH(T$1&\"|\"&$B28,'Data Annex'!$K$1:$K$4997,0),MATCH(T$2,'Data Annex'!$K$1:$AN$1,0)),\"\")","v":5.73380946E-2},{"$f":"IFERROR(INDEX('Data Annex'!$K$1:$AN$4997,MATCH(U$1&\"|\"&$B28,'Data Annex'!$K$1:$K$4997,0),MATCH(U$2,'Data Annex'!$K$1:$AN$1,0)),\"\")","v":3.4416299400000003E-2},{"$f":"IFERROR(INDEX('Data Annex'!$K$1:$AN$4997,MATCH(V$1&\"|\"&$B28,'Data Annex'!$K$1:$K$4997,0),MATCH(V$2,'Data Annex'!$K$1:$AN$1,0)),\"\")","v":3.6167326299999997E-2},{"$f":"IFERROR(INDEX('Data Annex'!$K$1:$AN$4997,MATCH(W$1&\"|\"&$B28,'Data Annex'!$K$1:$K$4997,0),MATCH(W$2,'Data Annex'!$K$1:$AN$1,0)),\"\")","v":2.9991138899999999E-2},{"$f":"IFERROR(INDEX('Data Annex'!$K$1:$AN$4997,MATCH(X$1&\"|\"&$B28,'Data Annex'!$K$1:$K$4997,0),MATCH(X$2,'Data Annex'!$K$1:$AN$1,0)),\"\")","v":3.0617531E-2}]
[null,"LT",null,"LT",{"$f":"IFERROR(INDEX('Data Annex'!$K$1:$AN$4997,MATCH(E$1&\"|\"&$B29,'Data Annex'!$K$1:$K$4997,0),MATCH(E$2,'Data Annex'!$K$1:$AN$1,0)),\"\")","v":3.6030141199999997E-2},{"$f":"IFERROR(INDEX('Data Annex'!$K$1:$AN$4997,MATCH(F$1&\"|\"&$B29,'Data Annex'!$K$1:$K$4997,0),MATCH(F$2,'Data Annex'!$K$1:$AN$1,0)),\"\")","v":3.7072271099999998E-2},{"$f":"IFERROR(INDEX('Data Annex'!$K$1:$AN$4997,MATCH(G$1&\"|\"&$B29,'Data Annex'!$K$1:$K$4997,0),MATCH(G$2,'Data Annex'!$K$1:$AN$1,0)),\"\")","v":3.2017435000000001E-3},{"$f":"IFERROR(INDEX('Data Annex'!$K$1:$AN$4997,MATCH(H$1&\"|\"&$B29,'Data Annex'!$K$1:$K$4997,0),MATCH(H$2,'Data Annex'!$K$1:$AN$1,0)),\"\")","v":3.0404351999999998E-3},{"$f":"IFERROR(INDEX('Data Annex'!$K$1:$AN$4997,MATCH(I$1&\"|\"&$B29,'Data Annex'!$K$1:$K$4997,0),MATCH(I$2,'Data Annex'!$K$1:$AN$1,0)),\"\")","v":0.1584851256},{"$f":"IFERROR(INDEX('Data Annex'!$K$1:$AN$4997,MATCH(J$1&\"|\"&$B29,'Data Annex'!$K$1:$K$4997,0),MATCH(J$2,'Data Annex'!$K$1:$AN$1,0)),\"\")","v":0.16507886020000001},{"$f":"IFERROR(INDEX('Data Annex'!$K$1:$AN$4997,MATCH(K$1&\"|\"&$B29,'Data Annex'!$K$1:$K$4997,0),MATCH(K$2,'Data Annex'!$K$1:$AN$1,0)),\"\")","v":7.2813138400000005E-2},{"$f":"IFERROR(INDEX('Data Annex'!$K$1:$AN$4997,MATCH(L$1&\"|\"&$B29,'Data Annex'!$K$1:$K$4997,0),MATCH(L$2,'Data Annex'!$K$1:$AN$1,0)),\"\")","v":6.8634074399999995E-2},{"$f":"IFERROR(INDEX('Data Annex'!$K$1:$AN$4997,MATCH(M$1&\"|\"&$B29,'Data Annex'!$K$1:$K$4997,0),MATCH(M$2,'Data Annex'!$K$1:$AN$1,0)),\"\")","v":6.1026815000000002E-3},{"$f":"IFERROR(INDEX('Data Annex'!$K$1:$AN$4997,MATCH(N$1&\"|\"&$B29,'Data Annex'!$K$1:$K$4997,0),MATCH(N$2,'Data Annex'!$K$1:$AN$1,0)),\"\")","v":7.2487701000000003E-3},{"$f":"IFERROR(INDEX('Data Annex'!$K$1:$AN$4997,MATCH(O$1&\"|\"&$B29,'Data Annex'!$K$1:$K$4997,0),MATCH(O$2,'Data Annex'!$K$1:$AN$1,0)),\"\")","v":3.4960142399999998E-2},{"$f":"IFERROR(INDEX('Data Annex'!$K$1:$AN$4997,MATCH(P$1&\"|\"&$B29,'Data Annex'!$K$1:$K$4997,0),MATCH(P$2,'Data Annex'!$K$1:$AN$1,0)),\"\")","v":3.0152000500000001E-2},{"$f":"IFERROR(INDEX('Data Annex'!$K$1:$AN$4997,MATCH(Q$1&\"|\"&$B29,'Data Annex'!$K$1:$K$4997,0),MATCH(Q$2,'Data Annex'!$K$1:$AN$1,0)),\"\")","v":0.2099425842},{"$f":"IFERROR(INDEX('Data Annex'!$K$1:$AN$4997,MATCH(R$1&\"|\"&$B29,'Data Annex'!$K$1:$K$4997,0),MATCH(R$2,'Data Annex'!$K$1:$AN$1,0)),\"\")","v":0.1877152181},{"$f":"IFERROR(INDEX('Data Annex'!$K$1:$AN$4997,MATCH(S$1&\"|\"&$B29,'Data Annex'!$K$1:$K$4997,0),MATCH(S$2,'Data Annex'!$K$1:$AN$1,0)),\"\")","v":0.1153911062},{"$f":"IFERROR(INDEX('Data Annex'!$K$1:$AN$4997,MATCH(T$1&\"|\"&$B29,'Data Annex'!$K$1:$K$4997,0),MATCH(T$2,'Data Annex'!$K$1:$AN$1,0)),\"\")","v":0.116976622},{"$f":"IFERROR(INDEX('Data Annex'!$K$1:$AN$4997,MATCH(U$1&\"|\"&$B29,'Data Annex'!$K$1:$K$4997,0),MATCH(U$2,'Data Annex'!$K$1:$AN$1,0)),\"\")","v":2.7627964500000001E-2},{"$f":"IFERROR(INDEX('Data Annex'!$K$1:$AN$4997,MATCH(V$1&\"|\"&$B29,'Data Annex'!$K$1:$K$4997,0),MATCH(V$2,'Data Annex'!$K$1:$AN$1,0)),\"\")","v":2.8141690099999998E-2},{"$f":"IFERROR(INDEX('Data Annex'!$K$1:$AN$4997,MATCH(W$1&\"|\"&$B29,'Data Annex'!$K$1:$K$4997,0),MATCH(W$2,'Data Annex'!$K$1:$AN$1,0)),\"\")","v":1.3202939299999999E-2},{"$f":"IFERROR(INDEX('Data Annex'!$K$1:$AN$4997,MATCH(X$1&\"|\"&$B29,'Data Annex'!$K$1:$K$4997,0),MATCH(X$2,'Data Annex'!$K$1:$AN$1,0)),\"\")","v":1.4122820499999999E-2}]
[null,"LU",null,"LU",{"$f":"IFERROR(INDEX('Data Annex'!$K$1:$AN$4997,MATCH(E$1&\"|\"&$B30,'Data Annex'!$K$1:$K$4997,0),MATCH(E$2,'Data Annex'!$K$1:$AN$1,0)),\"\")","v":0.1458867086},{"$f":"IFERROR(INDEX('Data Annex'!$K$1:$AN$4997,MATCH(F$1&\"|\"&$B30,'Data Annex'!$K$1:$K$4997,0),MATCH(F$2,'Data Annex'!$K$1:$AN$1,0)),\"\")","v":0.13830703729999999},{"$f":"IFERROR(INDEX('Data Annex'!$K$1:$AN$4997,MATCH(G$1&\"|\"&$B30,'Data Annex'!$K$1:$K$4997,0),MATCH(G$2,'Data Annex'!$K$1:$AN$1,0)),\"\")","v":9.4308107000000002E-3},{"$f":"IFERROR(INDEX('Data Annex'!$K$1:$AN$4997,MATCH(H$1&\"|\"&$B30,'Data Annex'!$K$1:$K$4997,0),MATCH(H$2,'Data Annex'!$K$1:$AN$1,0)),\"\")","v":1.1262956100000001E-2},{"$f":"IFERROR(INDEX('Data Annex'!$K$1:$AN$4997,MATCH(I$1&\"|\"&$B30,'Data Annex'!$K$1:$K$4997,0),MATCH(I$2,'Data Annex'!$K$1:$AN$1,0)),\"\")","v":9.70103732E-2},{"$f":"IFERROR(INDEX('Data Annex'!$K$1:$AN$4997,MATCH(J$1&\"|\"&$B30,'Data Annex'!$K$1:$K$4997,0),MATCH(J$2,'Data Annex'!$K$1:$AN$1,0)),\"\")","v":9.7282369600000002E-2},{"$f":"IFERROR(INDEX('Data Annex'!$K$1:$AN$4997,MATCH(K$1&\"|\"&$B30,'Data Annex'!$K$1:$K$4997,0),MATCH(K$2,'Data Annex'!$K$1:$AN$1,0)),\"\")","v":1.16755457E-2},{"$f":"IFERROR(INDEX('Data Annex'!$K$1:$AN$4997,MATCH(L$1&\"|\"&$B30,'Data Annex'!$K$1:$K$4997,0),MATCH(L$2,'Data Annex'!$K$1:$AN$1,0)),\"\")","v":1.47370865E-2},{"$f":"IFERROR(INDEX('Data Annex'!$K$1:$AN$4997,MATCH(M$1&\"|\"&$B30,'Data Annex'!$K$1:$K$4997,0),MATCH(M$2,'Data Annex'!$K$1:$AN$1,0)),\"\")","v":3.8904072999999999E-3},{"$f":"IFERROR(INDEX('Data Annex'!$K$1:$AN$4997,MATCH(N$1&\"|\"&$B30,'Data Annex'!$K$1:$K$4997,0),MATCH(N$2,'Data Annex'!$K$1:$AN$1,0)),\"\")","v":4.4410691999999998E-3},{"$f":"IFERROR(INDEX('Data Annex'!$K$1:$AN$4997,MATCH(O$1&\"|\"&$B30,'Data Annex'!$K$1:$K$4997,0),MATCH(O$2,'Data Annex'!$K$1:$AN$1,0)),\"\")","v":6.5757061300000003E-2},{"$f":"IFERROR(INDEX('Data Annex'!$K$1:$AN$4997,MATCH(P$1&\"|\"&$B30,'Data Annex'!$K$1:$K$4997,0),MATCH(P$2,'Data Annex'!$K$1:$AN$1,0)),\"\")","v":6.9847222700000003E-2},{"$f":"IFERROR(INDEX('Data Annex'!$K$1:$AN$4997,MATCH(Q$1&\"|\"&$B30,'Data Annex'!$K$1:$K$4997,0),MATCH(Q$2,'Data Annex'!$K$1:$AN$1,0)),\"\")","v":7.5708258900000006E-2},{"$f":"IFERROR(INDEX('Data Annex'!$K$1:$AN$4997,MATCH(R$1&\"|\"&$B30,'Data Annex'!$K$1:$K$4997,0),MATCH(R$2,'Data Annex'!$K$1:$AN$1,0)),\"\")","v":7.5467377099999997E-2},{"$f":"IFERROR(INDEX('Data Annex'!$K$1:$AN$4997,MATCH(S$1&\"|\"&$B30,'Data Annex'!$K$1:$K$4997,0),MATCH(S$2,'Data Annex'!$K$1:$AN$1,0)),\"\")","v":5.7735464200000003E-2},{"$f":"IFERROR(INDEX('Data Annex'!$K$1:$AN$4997,MATCH(T$1&\"|\"&$B30,'Data Annex'!$K$1:$K$4997,0),MATCH(T$2,'Data Annex'!$K$1:$AN$1,0)),\"\")","v":6.3533529899999996E-2},{"$f":"IFERROR(INDEX('Data Annex'!$K$1:$AN$4997,MATCH(U$1&\"|\"&$B30,'Data Annex'!$K$1:$K$4997,0),MATCH(U$2,'Data Annex'!$K$1:$AN$1,0)),\"\")","v":1.5667687999999999E-2},{"$f":"IFERROR(INDEX('Data Annex'!$K$1:$AN$4997,MATCH(V$1&\"|\"&$B30,'Data Annex'!$K$1:$K$4997,0),MATCH(V$2,'Data Annex'!$K$1:$AN$1,0)),\"\")","v":1.66213726E-2},{"$f":"IFERROR(INDEX('Data Annex'!$K$1:$AN$4997,MATCH(W$1&\"|\"&$B30,'Data Annex'!$K$1:$K$4997,0),MATCH(W$2,'Data Annex'!$K$1:$AN$1,0)),\"\")","v":1.5655941499999999E-2},{"$f":"IFERROR(INDEX('Data Annex'!$K$1:$AN$4997,MATCH(X$1&\"|\"&$B30,'Data Annex'!$K$1:$K$4997,0),MATCH(X$2,'Data Annex'!$K$1:$AN$1,0)),\"\")","v":1.6738447900000002E-2}]
[null,"LV",null,"LV",{"$f":"IFERROR(INDEX('Data Annex'!$K$1:$AN$4997,MATCH(E$1&\"|\"&$B31,'Data Annex'!$K$1:$K$4997,0),MATCH(E$2,'Data Annex'!$K$1:$AN$1,0)),\"\")","v":0.1215666059},{"$f":"IFERROR(INDEX('Data Annex'!$K$1:$AN$4997,MATCH(F$1&\"|\"&$B31,'Data Annex'!$K$1:$K$4997,0),MATCH(F$2,'Data Annex'!$K$1:$AN$1,0)),\"\")","v":0.1166650402},{"$f":"IFERROR(INDEX('Data Annex'!$K$1:$AN$4997,MATCH(G$1&\"|\"&$B31,'Data Annex'!$K$1:$K$4997,0),MATCH(G$2,'Data Annex'!$K$1:$AN$1,0)),\"\")","v":2.5116972999999999E-3},{"$f":"IFERROR(INDEX('Data Annex'!$K$1:$AN$4997,MATCH(H$1&\"|\"&$B31,'Data Annex'!$K$1:$K$4997,0),MATCH(H$2,'Data Annex'!$K$1:$AN$1,0)),\"\")","v":3.1617521999999999E-3},{"$f":"IFERROR(INDEX('Data Annex'!$K$1:$AN$4997,MATCH(I$1&\"|\"&$B31,'Data Annex'!$K$1:$K$4997,0),MATCH(I$2,'Data Annex'!$K$1:$AN$1,0)),\"\")","v":0.1326490105},{"$f":"IFERROR(INDEX('Data Annex'!$K$1:$AN$4997,MATCH(J$1&\"|\"&$B31,'Data Annex'!$K$1:$K$4997,0),MATCH(J$2,'Data Annex'!$K$1:$AN$1,0)),\"\")","v":0.1078727022},{"$f":"IFERROR(INDEX('Data Annex'!$K$1:$AN$4997,MATCH(K$1&\"|\"&$B31,'Data Annex'!$K$1:$K$4997,0),MATCH(K$2,'Data Annex'!$K$1:$AN$1,0)),\"\")","v":0.1062195278},{"$f":"IFERROR(INDEX('Data Annex'!$K$1:$AN$4997,MATCH(L$1&\"|\"&$B31,'Data Annex'!$K$1:$K$4997,0),MATCH(L$2,'Data Annex'!$K$1:$AN$1,0)),\"\")","v":0.13449250609999999},{"$f":"IFERROR(INDEX('Data Annex'!$K$1:$AN$4997,MATCH(M$1&\"|\"&$B31,'Data Annex'!$K$1:$K$4997,0),MATCH(M$2,'Data Annex'!$K$1:$AN$1,0)),\"\")","v":1.15481579E-2},{"$f":"IFERROR(INDEX('Data Annex'!$K$1:$AN$4997,MATCH(N$1&\"|\"&$B31,'Data Annex'!$K$1:$K$4997,0),MATCH(N$2,'Data Annex'!$K$1:$AN$1,0)),\"\")","v":8.0516067E-3},{"$f":"IFERROR(INDEX('Data Annex'!$K$1:$AN$4997,MATCH(O$1&\"|\"&$B31,'Data Annex'!$K$1:$K$4997,0),MATCH(O$2,'Data Annex'!$K$1:$AN$1,0)),\"\")","v":2.0448156200000001E-2},{"$f":"IFERROR(INDEX('Data Annex'!$K$1:$AN$4997,MATCH(P$1&\"|\"&$B31,'Data Annex'!$K$1:$K$4997,0),MATCH(P$2,'Data Annex'!$K$1:$AN$1,0)),\"\")","v":2.10094241E-2},{"$f":"IFERROR(INDEX('Data Annex'!$K$1:$AN$4997,MATCH(Q$1&\"|\"&$B31,'Data Annex'!$K$1:$K$4997,0),MATCH(Q$2,'Data Annex'!$K$1:$AN$1,0)),\"\")","v":0.12187882210000001},{"$f":"IFERROR(INDEX('Data Annex'!$K$1:$AN$4997,MATCH(R$1&\"|\"&$B31,'Data Annex'!$K$1:$K$4997,0),MATCH(R$2,'Data Annex'!$K$1:$AN$1,0)),\"\")","v":0.1391702065},{"$f":"IFERROR(INDEX('Data Annex'!$K$1:$AN$4997,MATCH(S$1&\"|\"&$B31,'Data Annex'!$K$1:$K$4997,0),MATCH(S$2,'Data Annex'!$K$1:$AN$1,0)),\"\")","v":8.7738512800000001E-2},{"$f":"IFERROR(INDEX('Data Annex'!$K$1:$AN$4997,MATCH(T$1&\"|\"&$B31,'Data Annex'!$K$1:$K$4997,0),MATCH(T$2,'Data Annex'!$K$1:$AN$1,0)),\"\")","v":7.9641195799999995E-2},{"$f":"IFERROR(INDEX('Data Annex'!$K$1:$AN$4997,MATCH(U$1&\"|\"&$B31,'Data Annex'!$K$1:$K$4997,0),MATCH(U$2,'Data Annex'!$K$1:$AN$1,0)),\"\")","v":4.0411167900000003E-2},{"$f":"IFERROR(INDEX('Data Annex'!$K$1:$AN$4997,MATCH(V$1&\"|\"&$B31,'Data Annex'!$K$1:$K$4997,0),MATCH(V$2,'Data Annex'!$K$1:$AN$1,0)),\"\")","v":2.3155014299999999E-2},{"$f":"IFERROR(INDEX('Data Annex'!$K$1:$AN$4997,MATCH(W$1&\"|\"&$B31,'Data Annex'!$K$1:$K$4997,0),MATCH(W$2,'Data Annex'!$K$1:$AN$1,0)),\"\")","v":1.3606730900000001E-2},{"$f":"IFERROR(INDEX('Data Annex'!$K$1:$AN$4997,MATCH(X$1&\"|\"&$B31,'Data Annex'!$K$1:$K$4997,0),MATCH(X$2,'Data Annex'!$K$1:$AN$1,0)),\"\")","v":1.3831657900000001E-2}]
[null,"MT",null,"MT",{"$f":"IFERROR(INDEX('Data Annex'!$K$1:$AN$4997,MATCH(E$1&\"|\"&$B32,'Data Annex'!$K$1:$K$4997,0),MATCH(E$2,'Data Annex'!$K$1:$AN$1,0)),\"\")","v":1.3226297000000001E-3},{"$f":"IFERROR(INDEX('Data Annex'!$K$1:$AN$4997,MATCH(F$1&\"|\"&$B32,'Data Annex'!$K$1:$K$4997,0),MATCH(F$2,'Data Annex'!$K$1:$AN$1,0)),\"\")","v":1.3190096999999999E-3},{"$f":"IFERROR(INDEX('Data Annex'!$K$1:$AN$4997,MATCH(G$1&\"|\"&$B32,'Data Annex'!$K$1:$K$4997,0),MATCH(G$2,'Data Annex'!$K$1:$AN$1,0)),\"\")","v":2.8526799999999999E-5},{"$f":"IFERROR(INDEX('Data Annex'!$K$1:$AN$4997,MATCH(H$1&\"|\"&$B32,'Data Annex'!$K$1:$K$4997,0),MATCH(H$2,'Data Annex'!$K$1:$AN$1,0)),\"\")","v":2.036939E-4},{"$f":"IFERROR(INDEX('Data Annex'!$K$1:$AN$4997,MATCH(I$1&\"|\"&$B32,'Data Annex'!$K$1:$K$4997,0),MATCH(I$2,'Data Annex'!$K$1:$AN$1,0)),\"\")","v":8.1022723099999999E-2},{"$f":"IFERROR(INDEX('Data Annex'!$K$1:$AN$4997,MATCH(J$1&\"|\"&$B32,'Data Annex'!$K$1:$K$4997,0),MATCH(J$2,'Data Annex'!$K$1:$AN$1,0)),\"\")","v":5.8354155800000002E-2},{"$f":"IFERROR(INDEX('Data Annex'!$K$1:$AN$4997,MATCH(K$1&\"|\"&$B32,'Data Annex'!$K$1:$K$4997,0),MATCH(K$2,'Data Annex'!$K$1:$AN$1,0)),\"\")","v":6.8177344200000004E-2},{"$f":"IFERROR(INDEX('Data Annex'!$K$1:$AN$4997,MATCH(L$1&\"|\"&$B32,'Data Annex'!$K$1:$K$4997,0),MATCH(L$2,'Data Annex'!$K$1:$AN$1,0)),\"\")","v":6.23038359E-2},{"$f":"IFERROR(INDEX('Data Annex'!$K$1:$AN$4997,MATCH(M$1&\"|\"&$B32,'Data Annex'!$K$1:$K$4997,0),MATCH(M$2,'Data Annex'!$K$1:$AN$1,0)),\"\")","v":1.09238189E-2},{"$f":"IFERROR(INDEX('Data Annex'!$K$1:$AN$4997,MATCH(N$1&\"|\"&$B32,'Data Annex'!$K$1:$K$4997,0),MATCH(N$2,'Data Annex'!$K$1:$AN$1,0)),\"\")","v":1.02250017E-2},{"$f":"IFERROR(INDEX('Data Annex'!$K$1:$AN$4997,MATCH(O$1&\"|\"&$B32,'Data Annex'!$K$1:$K$4997,0),MATCH(O$2,'Data Annex'!$K$1:$AN$1,0)),\"\")","v":7.2813075000000005E-2},{"$f":"IFERROR(INDEX('Data Annex'!$K$1:$AN$4997,MATCH(P$1&\"|\"&$B32,'Data Annex'!$K$1:$K$4997,0),MATCH(P$2,'Data Annex'!$K$1:$AN$1,0)),\"\")","v":5.5434472700000001E-2},{"$f":"IFERROR(INDEX('Data Annex'!$K$1:$AN$4997,MATCH(Q$1&\"|\"&$B32,'Data Annex'!$K$1:$K$4997,0),MATCH(Q$2,'Data Annex'!$K$1:$AN$1,0)),\"\")","v":0.14837840460000001},{"$f":"IFERROR(INDEX('Data Annex'!$K$1:$AN$4997,MATCH(R$1&\"|\"&$B32,'Data Annex'!$K$1:$K$4997,0),MATCH(R$2,'Data Annex'!$K$1:$AN$1,0)),\"\")","v":0.15193631430000001},{"$f":"IFERROR(INDEX('Data Annex'!$K$1:$AN$4997,MATCH(S$1&\"|\"&$B32,'Data Annex'!$K$1:$K$4997,0),MATCH(S$2,'Data Annex'!$K$1:$AN$1,0)),\"\")","v":5.06232047E-2},{"$f":"IFERROR(INDEX('Data Annex'!$K$1:$AN$4997,MATCH(T$1&\"|\"&$B32,'Data Annex'!$K$1:$K$4997,0),MATCH(T$2,'Data Annex'!$K$1:$AN$1,0)),\"\")","v":7.0308225099999996E-2},{"$f":"IFERROR(INDEX('Data Annex'!$K$1:$AN$4997,MATCH(U$1&\"|\"&$B32,'Data Annex'!$K$1:$K$4997,0),MATCH(U$2,'Data Annex'!$K$1:$AN$1,0)),\"\")","v":9.6803497099999997E-2},{"$f":"IFERROR(INDEX('Data Annex'!$K$1:$AN$4997,MATCH(V$1&\"|\"&$B32,'Data Annex'!$K$1:$K$4997,0),MATCH(V$2,'Data Annex'!$K$1:$AN$1,0)),\"\")","v":0.12786367069999999},{"$f":"IFERROR(INDEX('Data Annex'!$K$1:$AN$4997,MATCH(W$1&\"|\"&$B32,'Data Annex'!$K$1:$K$4997,0),MATCH(W$2,'Data Annex'!$K$1:$AN$1,0)),\"\")","v":4.0924925000000001E-2},{"$f":"IFERROR(INDEX('Data Annex'!$K$1:$AN$4997,MATCH(X$1&\"|\"&$B32,'Data Annex'!$K$1:$K$4997,0),MATCH(X$2,'Data Annex'!$K$1:$AN$1,0)),\"\")","v":3.28637663E-2}]
[null,"NL",null,"NL",{"$f":"IFERROR(INDEX('Data Annex'!$K$1:$AN$4997,MATCH(E$1&\"|\"&$B33,'Data Annex'!$K$1:$K$4997,0),MATCH(E$2,'Data Annex'!$K$1:$AN$1,0)),\"\")","v":0.1418759949},{"$f":"IFERROR(INDEX('Data Annex'!$K$1:$AN$4997,MATCH(F$1&\"|\"&$B33,'Data Annex'!$K$1:$K$4997,0),MATCH(F$2,'Data Annex'!$K$1:$AN$1,0)),\"\")","v":0.14599715860000001},{"$f":"IFERROR(INDEX('Data Annex'!$K$1:$AN$4997,MATCH(G$1&\"|\"&$B33,'Data Annex'!$K$1:$K$4997,0),MATCH(G$2,'Data Annex'!$K$1:$AN$1,0)),\"\")","v":3.1707697399999998E-2},{"$f":"IFERROR(INDEX('Data Annex'!$K$1:$AN$4997,MATCH(H$1&\"|\"&$B33,'Data Annex'!$K$1:$K$4997,0),MATCH(H$2,'Data Annex'!$K$1:$AN$1,0)),\"\")","v":2.9279962100000001E-2},{"$f":"IFERROR(INDEX('Data Annex'!$K$1:$AN$4997,MATCH(I$1&\"|\"&$B33,'Data Annex'!$K$1:$K$4997,0),MATCH(I$2,'Data Annex'!$K$1:$AN$1,0)),\"\")","v":0.14513332509999999},{"$f":"IFERROR(INDEX('Data Annex'!$K$1:$AN$4997,MATCH(J$1&\"|\"&$B33,'Data Annex'!$K$1:$K$4997,0),MATCH(J$2,'Data Annex'!$K$1:$AN$1,0)),\"\")","v":0.1434857926},{"$f":"IFERROR(INDEX('Data Annex'!$K$1:$AN$4997,MATCH(K$1&\"|\"&$B33,'Data Annex'!$K$1:$K$4997,0),MATCH(K$2,'Data Annex'!$K$1:$AN$1,0)),\"\")","v":3.6061962099999997E-2},{"$f":"IFERROR(INDEX('Data Annex'!$K$1:$AN$4997,MATCH(L$1&\"|\"&$B33,'Data Annex'!$K$1:$K$4997,0),MATCH(L$2,'Data Annex'!$K$1:$AN$1,0)),\"\")","v":3.7013549600000001E-2},{"$f":"IFERROR(INDEX('Data Annex'!$K$1:$AN$4997,MATCH(M$1&\"|\"&$B33,'Data Annex'!$K$1:$K$4997,0),MATCH(M$2,'Data Annex'!$K$1:$AN$1,0)),\"\")","v":7.8968844E-3},{"$f":"IFERROR(INDEX('Data Annex'!$K$1:$AN$4997,MATCH(N$1&\"|\"&$B33,'Data Annex'!$K$1:$K$4997,0),MATCH(N$2,'Data Annex'!$K$1:$AN$1,0)),\"\")","v":8.0275807000000001E-3},{"$f":"IFERROR(INDEX('Data Annex'!$K$1:$AN$4997,MATCH(O$1&\"|\"&$B33,'Data Annex'!$K$1:$K$4997,0),MATCH(O$2,'Data Annex'!$K$1:$AN$1,0)),\"\")","v":3.53602524E-2},{"$f":"IFERROR(INDEX('Data Annex'!$K$1:$AN$4997,MATCH(P$1&\"|\"&$B33,'Data Annex'!$K$1:$K$4997,0),MATCH(P$2,'Data Annex'!$K$1:$AN$1,0)),\"\")","v":3.6923511999999999E-2},{"$f":"IFERROR(INDEX('Data Annex'!$K$1:$AN$4997,MATCH(Q$1&\"|\"&$B33,'Data Annex'!$K$1:$K$4997,0),MATCH(Q$2,'Data Annex'!$K$1:$AN$1,0)),\"\")","v":0.1313008081},{"$f":"IFERROR(INDEX('Data Annex'!$K$1:$AN$4997,MATCH(R$1&\"|\"&$B33,'Data Annex'!$K$1:$K$4997,0),MATCH(R$2,'Data Annex'!$K$1:$AN$1,0)),\"\")","v":0.1396016266},{"$f":"IFERROR(INDEX('Data Annex'!$K$1:$AN$4997,MATCH(S$1&\"|\"&$B33,'Data Annex'!$K$1:$K$4997,0),MATCH(S$2,'Data Annex'!$K$1:$AN$1,0)),\"\")","v":7.07416617E-2},{"$f":"IFERROR(INDEX('Data Annex'!$K$1:$AN$4997,MATCH(T$1&\"|\"&$B33,'Data Annex'!$K$1:$K$4997,0),MATCH(T$2,'Data Annex'!$K$1:$AN$1,0)),\"\")","v":7.3113312900000005E-2},{"$f":"IFERROR(INDEX('Data Annex'!$K$1:$AN$4997,MATCH(U$1&\"|\"&$B33,'Data Annex'!$K$1:$K$4997,0),MATCH(U$2,'Data Annex'!$K$1:$AN$1,0)),\"\")","v":1.59388172E-2},{"$f":"IFERROR(INDEX('Data Annex'!$K$1:$AN$4997,MATCH(V$1&\"|\"&$B33,'Data Annex'!$K$1:$K$4997,0),MATCH(V$2,'Data Annex'!$K$1:$AN$1,0)),\"\")","v":1.7263207999999999E-2},{"$f":"IFERROR(INDEX('Data Annex'!$K$1:$AN$4997,MATCH(W$1&\"|\"&$B33,'Data Annex'!$K$1:$K$4997,0),MATCH(W$2,'Data Annex'!$K$1:$AN$1,0)),\"\")","v":2.33914068E-2},{"$f":"IFERROR(INDEX('Data Annex'!$K$1:$AN$4997,MATCH(X$1&\"|\"&$B33,'Data Annex'!$K$1:$K$4997,0),MATCH(X$2,'Data Annex'!$K$1:$AN$1,0)),\"\")","v":2.57064454E-2}]
[null,"NO",null,"NO",{"$f":"IFERROR(INDEX('Data Annex'!$K$1:$AN$4997,MATCH(E$1&\"|\"&$B34,'Data Annex'!$K$1:$K$4997,0),MATCH(E$2,'Data Annex'!$K$1:$AN$1,0)),\"\")","v":4.8549222699999998E-2},{"$f":"IFERROR(INDEX('Data Annex'!$K$1:$AN$4997,MATCH(F$1&\"|\"&$B34,'Data Annex'!$K$1:$K$4997,0),MATCH(F$2,'Data Annex'!$K$1:$AN$1,0)),\"\")","v":5.0864078200000003E-2},{"$f":"IFERROR(INDEX('Data Annex'!$K$1:$AN$4997,MATCH(G$1&\"|\"&$B34,'Data Annex'!$K$1:$K$4997,0),MATCH(G$2,'Data Annex'!$K$1:$AN$1,0)),\"\")","v":5.1274515100000001E-2},{"$f":"IFERROR(INDEX('Data Annex'!$K$1:$AN$4997,MATCH(H$1&\"|\"&$B34,'Data Annex'!$K$1:$K$4997,0),MATCH(H$2,'Data Annex'!$K$1:$AN$1,0)),\"\")","v":4.4266461100000001E-2},{"$f":"IFERROR(INDEX('Data Annex'!$K$1:$AN$4997,MATCH(I$1&\"|\"&$B34,'Data Annex'!$K$1:$K$4997,0),MATCH(I$2,'Data Annex'!$K$1:$AN$1,0)),\"\")","v":8.4891448899999999E-2},{"$f":"IFERROR(INDEX('Data Annex'!$K$1:$AN$4997,MATCH(J$1&\"|\"&$B34,'Data Annex'!$K$1:$K$4997,0),MATCH(J$2,'Data Annex'!$K$1:$AN$1,0)),\"\")","v":8.08749686E-2},{"$f":"IFERROR(INDEX('Data Annex'!$K$1:$AN$4997,MATCH(K$1&\"|\"&$B34,'Data Annex'!$K$1:$K$4997,0),MATCH(K$2,'Data Annex'!$K$1:$AN$1,0)),\"\")","v":4.3854832599999997E-2},{"$f":"IFERROR(INDEX('Data Annex'!$K$1:$AN$4997,MATCH(L$1&\"|\"&$B34,'Data Annex'!$K$1:$K$4997,0),MATCH(L$2,'Data Annex'!$K$1:$AN$1,0)),\"\")","v":4.0279050699999999E-2},{"$f":"IFERROR(INDEX('Data Annex'!$K$1:$AN$4997,MATCH(M$1&\"|\"&$B34,'Data Annex'!$K$1:$K$4997,0),MATCH(M$2,'Data Annex'!$K$1:$AN$1,0)),\"\")","v":4.2523328000000004E-3},{"$f":"IFERROR(INDEX('Data Annex'!$K$1:$AN$4997,MATCH(N$1&\"|\"&$B34,'Data Annex'!$K$1:$K$4997,0),MATCH(N$2,'Data Annex'!$K$1:$AN$1,0)),\"\")","v":5.3834049000000004E-3},{"$f":"IFERROR(INDEX('Data Annex'!$K$1:$AN$4997,MATCH(O$1&\"|\"&$B34,'Data Annex'!$K$1:$K$4997,0),MATCH(O$2,'Data Annex'!$K$1:$AN$1,0)),\"\")","v":0.10050872330000001},{"$f":"IFERROR(INDEX('Data Annex'!$K$1:$AN$4997,MATCH(P$1&\"|\"&$B34,'Data Annex'!$K$1:$K$4997,0),MATCH(P$2,'Data Annex'!$K$1:$AN$1,0)),\"\")","v":0.1026447657},{"$f":"IFERROR(INDEX('Data Annex'!$K$1:$AN$4997,MATCH(Q$1&\"|\"&$B34,'Data Annex'!$K$1:$K$4997,0),MATCH(Q$2,'Data Annex'!$K$1:$AN$1,0)),\"\")","v":5.0777164E-2},{"$f":"IFERROR(INDEX('Data Annex'!$K$1:$AN$4997,MATCH(R$1&\"|\"&$B34,'Data Annex'!$K$1:$K$4997,0),MATCH(R$2,'Data Annex'!$K$1:$AN$1,0)),\"\")","v":5.0745539999999999E-2},{"$f":"IFERROR(INDEX('Data Annex'!$K$1:$AN$4997,MATCH(S$1&\"|\"&$B34,'Data Annex'!$K$1:$K$4997,0),MATCH(S$2,'Data Annex'!$K$1:$AN$1,0)),\"\")","v":0.13631530280000001},{"$f":"IFERROR(INDEX('Data Annex'!$K$1:$AN$4997,MATCH(T$1&\"|\"&$B34,'Data Annex'!$K$1:$K$4997,0),MATCH(T$2,'Data Annex'!$K$1:$AN$1,0)),\"\")","v":0.12731727910000001},{"$f":"IFERROR(INDEX('Data Annex'!$K$1:$AN$4997,MATCH(U$1&\"|\"&$B34,'Data Annex'!$K$1:$K$4997,0),MATCH(U$2,'Data Annex'!$K$1:$AN$1,0)),\"\")","v":1.46568923E-2},{"$f":"IFERROR(INDEX('Data Annex'!$K$1:$AN$4997,MATCH(V$1&\"|\"&$B34,'Data Annex'!$K$1:$K$4997,0),MATCH(V$2,'Data Annex'!$K$1:$AN$1,0)),\"\")","v":1.3958506799999999E-2},{"$f":"IFERROR(INDEX('Data Annex'!$K$1:$AN$4997,MATCH(W$1&\"|\"&$B34,'Data Annex'!$K$1:$K$4997,0),MATCH(W$2,'Data Annex'!$K$1:$AN$1,0)),\"\")","v":3.0502901900000001E-2},{"$f":"IFERROR(INDEX('Data Annex'!$K$1:$AN$4997,MATCH(X$1&\"|\"&$B34,'Data Annex'!$K$1:$K$4997,0),MATCH(X$2,'Data Annex'!$K$1:$AN$1,0)),\"\")","v":3.0299522200000002E-2}]
[null,"PL",null,"PL",{"$f":"IFERROR(INDEX('Data Annex'!$K$1:$AN$4997,MATCH(E$1&\"|\"&$B35,'Data Annex'!$K$1:$K$4997,0),MATCH(E$2,'Data Annex'!$K$1:$AN$1,0)),\"\")","v":1.30507443E-2},{"$f":"IFERROR(INDEX('Data Annex'!$K$1:$AN$4997,MATCH(F$1&\"|\"&$B35,'Data Annex'!$K$1:$K$4997,0),MATCH(F$2,'Data Annex'!$K$1:$AN$1,0)),\"\")","v":1.33387534E-2},{"$f":"IFERROR(INDEX('Data Annex'!$K$1:$AN$4997,MATCH(G$1&\"|\"&$B35,'Data Annex'!$K$1:$K$4997,0),MATCH(G$2,'Data Annex'!$K$1:$AN$1,0)),\"\")","v":1.7941249400000001E-2},{"$f":"IFERROR(INDEX('Data Annex'!$K$1:$AN$4997,MATCH(H$1&\"|\"&$B35,'Data Annex'!$K$1:$K$4997,0),MATCH(H$2,'Data Annex'!$K$1:$AN$1,0)),\"\")","v":1.795298E-2},{"$f":"IFERROR(INDEX('Data Annex'!$K$1:$AN$4997,MATCH(I$1&\"|\"&$B35,'Data Annex'!$K$1:$K$4997,0),MATCH(I$2,'Data Annex'!$K$1:$AN$1,0)),\"\")","v":0.2413945891},{"$f":"IFERROR(INDEX('Data Annex'!$K$1:$AN$4997,MATCH(J$1&\"|\"&$B35,'Data Annex'!$K$1:$K$4997,0),MATCH(J$2,'Data Annex'!$K$1:$AN$1,0)),\"\")","v":0.2370493883},{"$f":"IFERROR(INDEX('Data Annex'!$K$1:$AN$4997,MATCH(K$1&\"|\"&$B35,'Data Annex'!$K$1:$K$4997,0),MATCH(K$2,'Data Annex'!$K$1:$AN$1,0)),\"\")","v":2.5813971299999999E-2},{"$f":"IFERROR(INDEX('Data Annex'!$K$1:$AN$4997,MATCH(L$1&\"|\"&$B35,'Data Annex'!$K$1:$K$4997,0),MATCH(L$2,'Data Annex'!$K$1:$AN$1,0)),\"\")","v":2.7100113299999999E-2},{"$f":"IFERROR(INDEX('Data Annex'!$K$1:$AN$4997,MATCH(M$1&\"|\"&$B35,'Data Annex'!$K$1:$K$4997,0),MATCH(M$2,'Data Annex'!$K$1:$AN$1,0)),\"\")","v":1.0339205400000001E-2},{"$f":"IFERROR(INDEX('Data Annex'!$K$1:$AN$4997,MATCH(N$1&\"|\"&$B35,'Data Annex'!$K$1:$K$4997,0),MATCH(N$2,'Data Annex'!$K$1:$AN$1,0)),\"\")","v":1.04142686E-2},{"$f":"IFERROR(INDEX('Data Annex'!$K$1:$AN$4997,MATCH(O$1&\"|\"&$B35,'Data Annex'!$K$1:$K$4997,0),MATCH(O$2,'Data Annex'!$K$1:$AN$1,0)),\"\")","v":5.4846502900000003E-2},{"$f":"IFERROR(INDEX('Data Annex'!$K$1:$AN$4997,MATCH(P$1&\"|\"&$B35,'Data Annex'!$K$1:$K$4997,0),MATCH(P$2,'Data Annex'!$K$1:$AN$1,0)),\"\")","v":5.4360006900000001E-2},{"$f":"IFERROR(INDEX('Data Annex'!$K$1:$AN$4997,MATCH(Q$1&\"|\"&$B35,'Data Annex'!$K$1:$K$4997,0),MATCH(Q$2,'Data Annex'!$K$1:$AN$1,0)),\"\")","v":0.18265984230000001},{"$f":"IFERROR(INDEX('Data Annex'!$K$1:$AN$4997,MATCH(R$1&\"|\"&$B35,'Data Annex'!$K$1:$K$4997,0),MATCH(R$2,'Data Annex'!$K$1:$AN$1,0)),\"\")","v":0.1879111544},{"$f":"IFERROR(INDEX('Data Annex'!$K$1:$AN$4997,MATCH(S$1&\"|\"&$B35,'Data Annex'!$K$1:$K$4997,0),MATCH(S$2,'Data Annex'!$K$1:$AN$1,0)),\"\")","v":7.6205757299999996E-2},{"$f":"IFERROR(INDEX('Data Annex'!$K$1:$AN$4997,MATCH(T$1&\"|\"&$B35,'Data Annex'!$K$1:$K$4997,0),MATCH(T$2,'Data Annex'!$K$1:$AN$1,0)),\"\")","v":7.5796292599999995E-2},{"$f":"IFERROR(INDEX('Data Annex'!$K$1:$AN$4997,MATCH(U$1&\"|\"&$B35,'Data Annex'!$K$1:$K$4997,0),MATCH(U$2,'Data Annex'!$K$1:$AN$1,0)),\"\")","v":3.99700448E-2},{"$f":"IFERROR(INDEX('Data Annex'!$K$1:$AN$4997,MATCH(V$1&\"|\"&$B35,'Data Annex'!$K$1:$K$4997,0),MATCH(V$2,'Data Annex'!$K$1:$AN$1,0)),\"\")","v":3.9860885800000002E-2},{"$f":"IFERROR(INDEX('Data Annex'!$K$1:$AN$4997,MATCH(W$1&\"|\"&$B35,'Data Annex'!$K$1:$K$4997,0),MATCH(W$2,'Data Annex'!$K$1:$AN$1,0)),\"\")","v":5.2004803299999999E-2},{"$f":"IFERROR(INDEX('Data Annex'!$K$1:$AN$4997,MATCH(X$1&\"|\"&$B35,'Data Annex'!$K$1:$K$4997,0),MATCH(X$2,'Data Annex'!$K$1:$AN$1,0)),\"\")","v":4.81834664E-2}]
[null,"PT",null,"PT",{"$f":"IFERROR(INDEX('Data Annex'!$K$1:$AN$4997,MATCH(E$1&\"|\"&$B36,'Data Annex'!$K$1:$K$4997,0),MATCH(E$2,'Data Annex'!$K$1:$AN$1,0)),\"\")","v":3.6760601099999998E-2},{"$f":"IFERROR(INDEX('Data Annex'!$K$1:$AN$4997,MATCH(F$1&\"|\"&$B36,'Data Annex'!$K$1:$K$4997,0),MATCH(F$2,'Data Annex'!$K$1:$AN$1,0)),\"\")","v":3.6810470999999997E-2},{"$f":"IFERROR(INDEX('Data Annex'!$K$1:$AN$4997,MATCH(G$1&\"|\"&$B36,'Data Annex'!$K$1:$K$4997,0),MATCH(G$2,'Data Annex'!$K$1:$AN$1,0)),\"\")","v":4.2879957999999996E-3},{"$f":"IFERROR(INDEX('Data Annex'!$K$1:$AN$4997,MATCH(H$1&\"|\"&$B36,'Data Annex'!$K$1:$K$4997,0),MATCH(H$2,'Data Annex'!$K$1:$AN$1,0)),\"\")","v":4.2588618000000003E-3},{"$f":"IFERROR(INDEX('Data Annex'!$K$1:$AN$4997,MATCH(I$1&\"|\"&$B36,'Data Annex'!$K$1:$K$4997,0),MATCH(I$2,'Data Annex'!$K$1:$AN$1,0)),\"\")","v":0.17703864280000001},{"$f":"IFERROR(INDEX('Data Annex'!$K$1:$AN$4997,MATCH(J$1&\"|\"&$B36,'Data Annex'!$K$1:$K$4997,0),MATCH(J$2,'Data Annex'!$K$1:$AN$1,0)),\"\")","v":0.17525200730000001},{"$f":"IFERROR(INDEX('Data Annex'!$K$1:$AN$4997,MATCH(K$1&\"|\"&$B36,'Data Annex'!$K$1:$K$4997,0),MATCH(K$2,'Data Annex'!$K$1:$AN$1,0)),\"\")","v":2.7382903900000002E-2},{"$f":"IFERROR(INDEX('Data Annex'!$K$1:$AN$4997,MATCH(L$1&\"|\"&$B36,'Data Annex'!$K$1:$K$4997,0),MATCH(L$2,'Data Annex'!$K$1:$AN$1,0)),\"\")","v":3.0155338100000002E-2},{"$f":"IFERROR(INDEX('Data Annex'!$K$1:$AN$4997,MATCH(M$1&\"|\"&$B36,'Data Annex'!$K$1:$K$4997,0),MATCH(M$2,'Data Annex'!$K$1:$AN$1,0)),\"\")","v":1.32147537E-2},{"$f":"IFERROR(INDEX('Data Annex'!$K$1:$AN$4997,MATCH(N$1&\"|\"&$B36,'Data Annex'!$K$1:$K$4997,0),MATCH(N$2,'Data Annex'!$K$1:$AN$1,0)),\"\")","v":1.3412556799999999E-2},{"$f":"IFERROR(INDEX('Data Annex'!$K$1:$AN$4997,MATCH(O$1&\"|\"&$B36,'Data Annex'!$K$1:$K$4997,0),MATCH(O$2,'Data Annex'!$K$1:$AN$1,0)),\"\")","v":0.1062133896},{"$f":"IFERROR(INDEX('Data Annex'!$K$1:$AN$4997,MATCH(P$1&\"|\"&$B36,'Data Annex'!$K$1:$K$4997,0),MATCH(P$2,'Data Annex'!$K$1:$AN$1,0)),\"\")","v":0.103393244},{"$f":"IFERROR(INDEX('Data Annex'!$K$1:$AN$4997,MATCH(Q$1&\"|\"&$B36,'Data Annex'!$K$1:$K$4997,0),MATCH(Q$2,'Data Annex'!$K$1:$AN$1,0)),\"\")","v":0.1564156163},{"$f":"IFERROR(INDEX('Data Annex'!$K$1:$AN$4997,MATCH(R$1&\"|\"&$B36,'Data Annex'!$K$1:$K$4997,0),MATCH(R$2,'Data Annex'!$K$1:$AN$1,0)),\"\")","v":0.15596582640000001},{"$f":"IFERROR(INDEX('Data Annex'!$K$1:$AN$4997,MATCH(S$1&\"|\"&$B36,'Data Annex'!$K$1:$K$4997,0),MATCH(S$2,'Data Annex'!$K$1:$AN$1,0)),\"\")","v":6.1333630799999997E-2},{"$f":"IFERROR(INDEX('Data Annex'!$K$1:$AN$4997,MATCH(T$1&\"|\"&$B36,'Data Annex'!$K$1:$K$4997,0),MATCH(T$2,'Data Annex'!$K$1:$AN$1,0)),\"\")","v":6.24155032E-2},{"$f":"IFERROR(INDEX('Data Annex'!$K$1:$AN$4997,MATCH(U$1&\"|\"&$B36,'Data Annex'!$K$1:$K$4997,0),MATCH(U$2,'Data Annex'!$K$1:$AN$1,0)),\"\")","v":7.6872958399999997E-2},{"$f":"IFERROR(INDEX('Data Annex'!$K$1:$AN$4997,MATCH(V$1&\"|\"&$B36,'Data Annex'!$K$1:$K$4997,0),MATCH(V$2,'Data Annex'!$K$1:$AN$1,0)),\"\")","v":7.9773686400000002E-2},{"$f":"IFERROR(INDEX('Data Annex'!$K$1:$AN$4997,MATCH(W$1&\"|\"&$B36,'Data Annex'!$K$1:$K$4997,0),MATCH(W$2,'Data Annex'!$K$1:$AN$1,0)),\"\")","v":1.4569189499999999E-2},{"$f":"IFERROR(INDEX('Data Annex'!$K$1:$AN$4997,MATCH(X$1&\"|\"&$B36,'Data Annex'!$K$1:$K$4997,0),MATCH(X$2,'Data Annex'!$K$1:$AN$1,0)),\"\")","v":1.4800847299999999E-2}]
[null,"RO",null,"RO",{"$f":"IFERROR(INDEX('Data Annex'!$K$1:$AN$4997,MATCH(E$1&\"|\"&$B37,'Data Annex'!$K$1:$K$4997,0),MATCH(E$2,'Data Annex'!$K$1:$AN$1,0)),\"\")","v":9.0267381100000002E-2},{"$f":"IFERROR(INDEX('Data Annex'!$K$1:$AN$4997,MATCH(F$1&\"|\"&$B37,'Data Annex'!$K$1:$K$4997,0),MATCH(F$2,'Data Annex'!$K$1:$AN$1,0)),\"\")","v":7.8523859700000004E-2},{"$f":"IFERROR(INDEX('Data Annex'!$K$1:$AN$4997,MATCH(G$1&\"|\"&$B37,'Data Annex'!$K$1:$K$4997,0),MATCH(G$2,'Data Annex'!$K$1:$AN$1,0)),\"\")","v":5.0033698999999996E-3},{"$f":"IFERROR(INDEX('Data Annex'!$K$1:$AN$4997,MATCH(H$1&\"|\"&$B37,'Data Annex'!$K$1:$K$4997,0),MATCH(H$2,'Data Annex'!$K$1:$AN$1,0)),\"\")","v":6.5231645999999999E-3},{"$f":"IFERROR(INDEX('Data Annex'!$K$1:$AN$4997,MATCH(I$1&\"|\"&$B37,'Data Annex'!$K$1:$K$4997,0),MATCH(I$2,'Data Annex'!$K$1:$AN$1,0)),\"\")","v":0.2205226334},{"$f":"IFERROR(INDEX('Data Annex'!$K$1:$AN$4997,MATCH(J$1&\"|\"&$B37,'Data Annex'!$K$1:$K$4997,0),MATCH(J$2,'Data Annex'!$K$1:$AN$1,0)),\"\")","v":0.2173815928},{"$f":"IFERROR(INDEX('Data Annex'!$K$1:$AN$4997,MATCH(K$1&\"|\"&$B37,'Data Annex'!$K$1:$K$4997,0),MATCH(K$2,'Data Annex'!$K$1:$AN$1,0)),\"\")","v":3.0282628999999998E-2},{"$f":"IFERROR(INDEX('Data Annex'!$K$1:$AN$4997,MATCH(L$1&\"|\"&$B37,'Data Annex'!$K$1:$K$4997,0),MATCH(L$2,'Data Annex'!$K$1:$AN$1,0)),\"\")","v":3.10318092E-2},{"$f":"IFERROR(INDEX('Data Annex'!$K$1:$AN$4997,MATCH(M$1&\"|\"&$B37,'Data Annex'!$K$1:$K$4997,0),MATCH(M$2,'Data Annex'!$K$1:$AN$1,0)),\"\")","v":1.2895108400000001E-2},{"$f":"IFERROR(INDEX('Data Annex'!$K$1:$AN$4997,MATCH(N$1&\"|\"&$B37,'Data Annex'!$K$1:$K$4997,0),MATCH(N$2,'Data Annex'!$K$1:$AN$1,0)),\"\")","v":1.3296858599999999E-2},{"$f":"IFERROR(INDEX('Data Annex'!$K$1:$AN$4997,MATCH(O$1&\"|\"&$B37,'Data Annex'!$K$1:$K$4997,0),MATCH(O$2,'Data Annex'!$K$1:$AN$1,0)),\"\")","v":0.1019239339},{"$f":"IFERROR(INDEX('Data Annex'!$K$1:$AN$4997,MATCH(P$1&\"|\"&$B37,'Data Annex'!$K$1:$K$4997,0),MATCH(P$2,'Data Annex'!$K$1:$AN$1,0)),\"\")","v":9.6358904499999995E-2},{"$f":"IFERROR(INDEX('Data Annex'!$K$1:$AN$4997,MATCH(Q$1&\"|\"&$B37,'Data Annex'!$K$1:$K$4997,0),MATCH(Q$2,'Data Annex'!$K$1:$AN$1,0)),\"\")","v":0.23519830280000001},{"$f":"IFERROR(INDEX('Data Annex'!$K$1:$AN$4997,MATCH(R$1&\"|\"&$B37,'Data Annex'!$K$1:$K$4997,0),MATCH(R$2,'Data Annex'!$K$1:$AN$1,0)),\"\")","v":0.23837670150000001},{"$f":"IFERROR(INDEX('Data Annex'!$K$1:$AN$4997,MATCH(S$1&\"|\"&$B37,'Data Annex'!$K$1:$K$4997,0),MATCH(S$2,'Data Annex'!$K$1:$AN$1,0)),\"\")","v":9.2314902000000004E-2},{"$f":"IFERROR(INDEX('Data Annex'!$K$1:$AN$4997,MATCH(T$1&\"|\"&$B37,'Data Annex'!$K$1:$K$4997,0),MATCH(T$2,'Data Annex'!$K$1:$AN$1,0)),\"\")","v":0.10463709559999999},{"$f":"IFERROR(INDEX('Data Annex'!$K$1:$AN$4997,MATCH(U$1&\"|\"&$B37,'Data Annex'!$K$1:$K$4997,0),MATCH(U$2,'Data Annex'!$K$1:$AN$1,0)),\"\")","v":2.6743227299999998E-2},{"$f":"IFERROR(INDEX('Data Annex'!$K$1:$AN$4997,MATCH(V$1&\"|\"&$B37,'Data Annex'!$K$1:$K$4997,0),MATCH(V$2,'Data Annex'!$K$1:$AN$1,0)),\"\")","v":2.7486032300000001E-2},{"$f":"IFERROR(INDEX('Data Annex'!$K$1:$AN$4997,MATCH(W$1&\"|\"&$B37,'Data Annex'!$K$1:$K$4997,0),MATCH(W$2,'Data Annex'!$K$1:$AN$1,0)),\"\")","v":2.4450992000000001E-2},{"$f":"IFERROR(INDEX('Data Annex'!$K$1:$AN$4997,MATCH(X$1&\"|\"&$B37,'Data Annex'!$K$1:$K$4997,0),MATCH(X$2,'Data Annex'!$K$1:$AN$1,0)),\"\")","v":2.1459932000000001E-2}]
[28,"SE",null,"SE",{"$f":"IFERROR(INDEX('Data Annex'!$K$1:$AN$4997,MATCH(E$1&\"|\"&$B38,'Data Annex'!$K$1:$K$4997,0),MATCH(E$2,'Data Annex'!$K$1:$AN$1,0)),\"\")","v":1.26691389E-2},{"$f":"IFERROR(INDEX('Data Annex'!$K$1:$AN$4997,MATCH(F$1&\"|\"&$B38,'Data Annex'!$K$1:$K$4997,0),MATCH(F$2,'Data Annex'!$K$1:$AN$1,0)),\"\")","v":1.26620364E-2},{"$f":"IFERROR(INDEX('Data Annex'!$K$1:$AN$4997,MATCH(G$1&\"|\"&$B38,'Data Annex'!$K$1:$K$4997,0),MATCH(G$2,'Data Annex'!$K$1:$AN$1,0)),\"\")","v":1.4230884799999999E-2},{"$f":"IFERROR(INDEX('Data Annex'!$K$1:$AN$4997,MATCH(H$1&\"|\"&$B38,'Data Annex'!$K$1:$K$4997,0),MATCH(H$2,'Data Annex'!$K$1:$AN$1,0)),\"\")","v":1.24912072E-2},{"$f":"IFERROR(INDEX('Data Annex'!$K$1:$AN$4997,MATCH(I$1&\"|\"&$B38,'Data Annex'!$K$1:$K$4997,0),MATCH(I$2,'Data Annex'!$K$1:$AN$1,0)),\"\")","v":5.3872302300000001E-2},{"$f":"IFERROR(INDEX('Data Annex'!$K$1:$AN$4997,MATCH(J$1&\"|\"&$B38,'Data Annex'!$K$1:$K$4997,0),MATCH(J$2,'Data Annex'!$K$1:$AN$1,0)),\"\")","v":5.1568422199999998E-2},{"$f":"IFERROR(INDEX('Data Annex'!$K$1:$AN$4997,MATCH(K$1&\"|\"&$B38,'Data Annex'!$K$1:$K$4997,0),MATCH(K$2,'Data Annex'!$K$1:$AN$1,0)),\"\")","v":3.2561835400000003E-2},{"$f":"IFERROR(INDEX('Data Annex'!$K$1:$AN$4997,MATCH(L$1&\"|\"&$B38,'Data Annex'!$K$1:$K$4997,0),MATCH(L$2,'Data Annex'!$K$1:$AN$1,0)),\"\")","v":3.2834913899999998E-2},{"$f":"IFERROR(INDEX('Data Annex'!$K$1:$AN$4997,MATCH(M$1&\"|\"&$B38,'Data Annex'!$K$1:$K$4997,0),MATCH(M$2,'Data Annex'!$K$1:$AN$1,0)),\"\")","v":7.4680726000000003E-3},{"$f":"IFERROR(INDEX('Data Annex'!$K$1:$AN$4997,MATCH(N$1&\"|\"&$B38,'Data Annex'!$K$1:$K$4997,0),MATCH(N$2,'Data Annex'!$K$1:$AN$1,0)),\"\")","v":7.1054806000000002E-3},{"$f":"IFERROR(INDEX('Data Annex'!$K$1:$AN$4997,MATCH(O$1&\"|\"&$B38,'Data Annex'!$K$1:$K$4997,0),MATCH(O$2,'Data Annex'!$K$1:$AN$1,0)),\"\")","v":2.7659280200000001E-2},{"$f":"IFERROR(INDEX('Data Annex'!$K$1:$AN$4997,MATCH(P$1&\"|\"&$B38,'Data Annex'!$K$1:$K$4997,0),MATCH(P$2,'Data Annex'!$K$1:$AN$1,0)),\"\")","v":2.7720429800000002E-2},{"$f":"IFERROR(INDEX('Data Annex'!$K$1:$AN$4997,MATCH(Q$1&\"|\"&$B38,'Data Annex'!$K$1:$K$4997,0),MATCH(Q$2,'Data Annex'!$K$1:$AN$1,0)),\"\")","v":4.63803785E-2},{"$f":"IFERROR(INDEX('Data Annex'!$K$1:$AN$4997,MATCH(R$1&\"|\"&$B38,'Data Annex'!$K$1:$K$4997,0),MATCH(R$2,'Data Annex'!$K$1:$AN$1,0)),\"\")","v":4.4997725699999998E-2},{"$f":"IFERROR(INDEX('Data Annex'!$K$1:$AN$4997,MATCH(S$1&\"|\"&$B38,'Data Annex'!$K$1:$K$4997,0),MATCH(S$2,'Data Annex'!$K$1:$AN$1,0)),\"\")","v":4.5019536999999998E-2},{"$f":"IFERROR(INDEX('Data Annex'!$K$1:$AN$4997,MATCH(T$1&\"|\"&$B38,'Data Annex'!$K$1:$K$4997,0),MATCH(T$2,'Data Annex'!$K$1:$AN$1,0)),\"\")","v":4.2270305199999997E-2},{"$f":"IFERROR(INDEX('Data Annex'!$K$1:$AN$4997,MATCH(U$1&\"|\"&$B38,'Data Annex'!$K$1:$K$4997,0),MATCH(U$2,'Data Annex'!$K$1:$AN$1,0)),\"\")","v":9.7117166999999994E-3},{"$f":"IFERROR(INDEX('Data Annex'!$K$1:$AN$4997,MATCH(V$1&\"|\"&$B38,'Data Annex'!$K$1:$K$4997,0),MATCH(V$2,'Data Annex'!$K$1:$AN$1,0)),\"\")","v":9.5243266000000007E-3},{"$f":"IFERROR(INDEX('Data Annex'!$K$1:$AN$4997,MATCH(W$1&\"|\"&$B38,'Data Annex'!$K$1:$K$4997,0),MATCH(W$2,'Data Annex'!$K$1:$AN$1,0)),\"\")","v":1.50839175E-2},{"$f":"IFERROR(INDEX('Data Annex'!$K$1:$AN$4997,MATCH(X$1&\"|\"&$B38,'Data Annex'!$K$1:$K$4997,0),MATCH(X$2,'Data Annex'!$K$1:$AN$1,0)),\"\")","v":1.7477342699999999E-2}]
[29,"SI",null,"SI",{"$f":"IFERROR(INDEX('Data Annex'!$K$1:$AN$4997,MATCH(E$1&\"|\"&$B39,'Data Annex'!$K$1:$K$4997,0),MATCH(E$2,'Data Annex'!$K$1:$AN$1,0)),\"\")","v":1.4090973E-2},{"$f":"IFERROR(INDEX('Data Annex'!$K$1:$AN$4997,MATCH(F$1&\"|\"&$B39,'Data Annex'!$K$1:$K$4997,0),MATCH(F$2,'Data Annex'!$K$1:$AN$1,0)),\"\")","v":1.6436680400000001E-2},{"$f":"IFERROR(INDEX('Data Annex'!$K$1:$AN$4997,MATCH(G$1&\"|\"&$B39,'Data Annex'!$K$1:$K$4997,0),MATCH(G$2,'Data Annex'!$K$1:$AN$1,0)),\"\")","v":8.2518451000000003E-3},{"$f":"IFERROR(INDEX('Data Annex'!$K$1:$AN$4997,MATCH(H$1&\"|\"&$B39,'Data Annex'!$K$1:$K$4997,0),MATCH(H$2,'Data Annex'!$K$1:$AN$1,0)),\"\")","v":1.48994057E-2},{"$f":"IFERROR(INDEX('Data Annex'!$K$1:$AN$4997,MATCH(I$1&\"|\"&$B39,'Data Annex'!$K$1:$K$4997,0),MATCH(I$2,'Data Annex'!$K$1:$AN$1,0)),\"\")","v":0.2952195722},{"$f":"IFERROR(INDEX('Data Annex'!$K$1:$AN$4997,MATCH(J$1&\"|\"&$B39,'Data Annex'!$K$1:$K$4997,0),MATCH(J$2,'Data Annex'!$K$1:$AN$1,0)),\"\")","v":0.26657987509999997},{"$f":"IFERROR(INDEX('Data Annex'!$K$1:$AN$4997,MATCH(K$1&\"|\"&$B39,'Data Annex'!$K$1:$K$4997,0),MATCH(K$2,'Data Annex'!$K$1:$AN$1,0)),\"\")","v":4.0947687699999999E-2},{"$f":"IFERROR(INDEX('Data Annex'!$K$1:$AN$4997,MATCH(L$1&\"|\"&$B39,'Data Annex'!$K$1:$K$4997,0),MATCH(L$2,'Data Annex'!$K$1:$AN$1,0)),\"\")","v":5.1606028900000003E-2},{"$f":"IFERROR(INDEX('Data Annex'!$K$1:$AN$4997,MATCH(M$1&\"|\"&$B39,'Data Annex'!$K$1:$K$4997,0),MATCH(M$2,'Data Annex'!$K$1:$AN$1,0)),\"\")","v":9.4783981000000003E-3},{"$f":"IFERROR(INDEX('Data Annex'!$K$1:$AN$4997,MATCH(N$1&\"|\"&$B39,'Data Annex'!$K$1:$K$4997,0),MATCH(N$2,'Data Annex'!$K$1:$AN$1,0)),\"\")","v":1.1096518600000001E-2},{"$f":"IFERROR(INDEX('Data Annex'!$K$1:$AN$4997,MATCH(O$1&\"|\"&$B39,'Data Annex'!$K$1:$K$4997,0),MATCH(O$2,'Data Annex'!$K$1:$AN$1,0)),\"\")","v":6.4316469000000001E-2},{"$f":"IFERROR(INDEX('Data Annex'!$K$1:$AN$4997,MATCH(P$1&\"|\"&$B39,'Data Annex'!$K$1:$K$4997,0),MATCH(P$2,'Data Annex'!$K$1:$AN$1,0)),\"\")","v":7.0953168900000002E-2},{"$f":"IFERROR(INDEX('Data Annex'!$K$1:$AN$4997,MATCH(Q$1&\"|\"&$B39,'Data Annex'!$K$1:$K$4997,0),MATCH(Q$2,'Data Annex'!$K$1:$AN$1,0)),\"\")","v":0.2044687885},{"$f":"IFERROR(INDEX('Data Annex'!$K$1:$AN$4997,MATCH(R$1&\"|\"&$B39,'Data Annex'!$K$1:$K$4997,0),MATCH(R$2,'Data Annex'!$K$1:$AN$1,0)),\"\")","v":0.2046572747},{"$f":"IFERROR(INDEX('Data Annex'!$K$1:$AN$4997,MATCH(S$1&\"|\"&$B39,'Data Annex'!$K$1:$K$4997,0),MATCH(S$2,'Data Annex'!$K$1:$AN$1,0)),\"\")","v":0.1307966149},{"$f":"IFERROR(INDEX('Data Annex'!$K$1:$AN$4997,MATCH(T$1&\"|\"&$B39,'Data Annex'!$K$1:$K$4997,0),MATCH(T$2,'Data Annex'!$K$1:$AN$1,0)),\"\")","v":0.12420853179999999},{"$f":"IFERROR(INDEX('Data Annex'!$K$1:$AN$4997,MATCH(U$1&\"|\"&$B39,'Data Annex'!$K$1:$K$4997,0),MATCH(U$2,'Data Annex'!$K$1:$AN$1,0)),\"\")","v":3.6147482199999997E-2},{"$f":"IFERROR(INDEX('Data Annex'!$K$1:$AN$4997,MATCH(V$1&\"|\"&$B39,'Data Annex'!$K$1:$K$4997,0),MATCH(V$2,'Data Annex'!$K$1:$AN$1,0)),\"\")","v":3.6671411899999999E-2},{"$f":"IFERROR(INDEX('Data Annex'!$K$1:$AN$4997,MATCH(W$1&\"|\"&$B39,'Data Annex'!$K$1:$K$4997,0),MATCH(W$2,'Data Annex'!$K$1:$AN$1,0)),\"\")","v":4.6641460699999998E-2},{"$f":"IFERROR(INDEX('Data Annex'!$K$1:$AN$4997,MATCH(X$1&\"|\"&$B39,'Data Annex'!$K$1:$K$4997,0),MATCH(X$2,'Data Annex'!$K$1:$AN$1,0)),\"\")","v":5.0057836199999997E-2}]
[30,"SK",null,"SK",{"$f":"IFERROR(INDEX('Data Annex'!$K$1:$AN$4997,MATCH(E$1&\"|\"&$B40,'Data Annex'!$K$1:$K$4997,0),MATCH(E$2,'Data Annex'!$K$1:$AN$1,0)),\"\")","v":4.3127716400000002E-2},{"$f":"IFERROR(INDEX('Data Annex'!$K$1:$AN$4997,MATCH(F$1&\"|\"&$B40,'Data Annex'!$K$1:$K$4997,0),MATCH(F$2,'Data Annex'!$K$1:$AN$1,0)),\"\")","v":3.8725314599999998E-2},{"$f":"IFERROR(INDEX('Data Annex'!$K$1:$AN$4997,MATCH(G$1&\"|\"&$B40,'Data Annex'!$K$1:$K$4997,0),MATCH(G$2,'Data Annex'!$K$1:$AN$1,0)),\"\")","v":7.3514271000000003E-3},{"$f":"IFERROR(INDEX('Data Annex'!$K$1:$AN$4997,MATCH(H$1&\"|\"&$B40,'Data Annex'!$K$1:$K$4997,0),MATCH(H$2,'Data Annex'!$K$1:$AN$1,0)),\"\")","v":7.0391955000000004E-3},{"$f":"IFERROR(INDEX('Data Annex'!$K$1:$AN$4997,MATCH(I$1&\"|\"&$B40,'Data Annex'!$K$1:$K$4997,0),MATCH(I$2,'Data Annex'!$K$1:$AN$1,0)),\"\")","v":0.1895581781},{"$f":"IFERROR(INDEX('Data Annex'!$K$1:$AN$4997,MATCH(J$1&\"|\"&$B40,'Data Annex'!$K$1:$K$4997,0),MATCH(J$2,'Data Annex'!$K$1:$AN$1,0)),\"\")","v":0.19666637540000001},{"$f":"IFERROR(INDEX('Data Annex'!$K$1:$AN$4997,MATCH(K$1&\"|\"&$B40,'Data Annex'!$K$1:$K$4997,0),MATCH(K$2,'Data Annex'!$K$1:$AN$1,0)),\"\")","v":9.8832119900000001E-2},{"$f":"IFERROR(INDEX('Data Annex'!$K$1:$AN$4997,MATCH(L$1&\"|\"&$B40,'Data Annex'!$K$1:$K$4997,0),MATCH(L$2,'Data Annex'!$K$1:$AN$1,0)),\"\")","v":9.6915359300000004E-2},{"$f":"IFERROR(INDEX('Data Annex'!$K$1:$AN$4997,MATCH(M$1&\"|\"&$B40,'Data Annex'!$K$1:$K$4997,0),MATCH(M$2,'Data Annex'!$K$1:$AN$1,0)),\"\")","v":1.6670009999999999E-2},{"$f":"IFERROR(INDEX('Data Annex'!$K$1:$AN$4997,MATCH(N$1&\"|\"&$B40,'Data Annex'!$K$1:$K$4997,0),MATCH(N$2,'Data Annex'!$K$1:$AN$1,0)),\"\")","v":1.5695125099999999E-2},{"$f":"IFERROR(INDEX('Data Annex'!$K$1:$AN$4997,MATCH(O$1&\"|\"&$B40,'Data Annex'!$K$1:$K$4997,0),MATCH(O$2,'Data Annex'!$K$1:$AN$1,0)),\"\")","v":6.0791980299999999E-2},{"$f":"IFERROR(INDEX('Data Annex'!$K$1:$AN$4997,MATCH(P$1&\"|\"&$B40,'Data Annex'!$K$1:$K$4997,0),MATCH(P$2,'Data Annex'!$K$1:$AN$1,0)),\"\")","v":5.7588588699999999E-2},{"$f":"IFERROR(INDEX('Data Annex'!$K$1:$AN$4997,MATCH(Q$1&\"|\"&$B40,'Data Annex'!$K$1:$K$4997,0),MATCH(Q$2,'Data Annex'!$K$1:$AN$1,0)),\"\")","v":0.16805973020000001},{"$f":"IFERROR(INDEX('Data Annex'!$K$1:$AN$4997,MATCH(R$1&\"|\"&$B40,'Data Annex'!$K$1:$K$4997,0),MATCH(R$2,'Data Annex'!$K$1:$AN$1,0)),\"\")","v":0.16379117330000001},{"$f":"IFERROR(INDEX('Data Annex'!$K$1:$AN$4997,MATCH(S$1&\"|\"&$B40,'Data Annex'!$K$1:$K$4997,0),MATCH(S$2,'Data Annex'!$K$1:$AN$1,0)),\"\")","v":9.5686855000000001E-2},{"$f":"IFERROR(INDEX('Data Annex'!$K$1:$AN$4997,MATCH(T$1&\"|\"&$B40,'Data Annex'!$K$1:$K$4997,0),MATCH(T$2,'Data Annex'!$K$1:$AN$1,0)),\"\")","v":9.5690722899999997E-2},{"$f":"IFERROR(INDEX('Data Annex'!$K$1:$AN$4997,MATCH(U$1&\"|\"&$B40,'Data Annex'!$K$1:$K$4997,0),MATCH(U$2,'Data Annex'!$K$1:$AN$1,0)),\"\")","v":1.1143758700000001E-2},{"$f":"IFERROR(INDEX('Data Annex'!$K$1:$AN$4997,MATCH(V$1&\"|\"&$B40,'Data Annex'!$K$1:$K$4997,0),MATCH(V$2,'Data Annex'!$K$1:$AN$1,0)),\"\")","v":1.22880735E-2},{"$f":"IFERROR(INDEX('Data Annex'!$K$1:$AN$4997,MATCH(W$1&\"|\"&$B40,'Data Annex'!$K$1:$K$4997,0),MATCH(W$2,'Data Annex'!$K$1:$AN$1,0)),\"\")","v":2.4733433999999999E-2},{"$f":"IFERROR(INDEX('Data Annex'!$K$1:$AN$4997,MATCH(X$1&\"|\"&$B40,'Data Annex'!$K$1:$K$4997,0),MATCH(X$2,'Data Annex'!$K$1:$AN$1,0)),\"\")","v":2.5961899100000001E-2}]
[99,"EU",null,"EU/EEA",{"$f":"IFERROR(INDEX('Data Annex'!$K$1:$AN$4997,MATCH(E$1&\"|\"&$B41,'Data Annex'!$K$1:$K$4997,0),MATCH(E$2,'Data Annex'!$K$1:$AN$1,0)),\"\")","v":3.8128964799999998E-2},{"$f":"IFERROR(INDEX('Data Annex'!$K$1:$AN$4997,MATCH(F$1&\"|\"&$B41,'Data Annex'!$K$1:$K$4997,0),MATCH(F$2,'Data Annex'!$K$1:$AN$1,0)),\"\")","v":3.92292505E-2},{"$f":"IFERROR(INDEX('Data Annex'!$K$1:$AN$4997,MATCH(G$1&\"|\"&$B41,'Data Annex'!$K$1:$K$4997,0),MATCH(G$2,'Data Annex'!$K$1:$AN$1,0)),\"\")","v":1.7034974099999999E-2},{"$f":"IFERROR(INDEX('Data Annex'!$K$1:$AN$4997,MATCH(H$1&\"|\"&$B41,'Data Annex'!$K$1:$K$4997,0),MATCH(H$2,'Data Annex'!$K$1:$AN$1,0)),\"\")","v":1.6237845399999999E-2},{"$f":"IFERROR(INDEX('Data Annex'!$K$1:$AN$4997,MATCH(I$1&\"|\"&$B41,'Data Annex'!$K$1:$K$4997,0),MATCH(I$2,'Data Annex'!$K$1:$AN$1,0)),\"\")","v":0.15703762969999999},{"$f":"IFERROR(INDEX('Data Annex'!$K$1:$AN$4997,MATCH(J$1&\"|\"&$B41,'Data Annex'!$K$1:$K$4997,0),MATCH(J$2,'Data Annex'!$K$1:$AN$1,0)),\"\")","v":0.15384210309999999},{"$f":"IFERROR(INDEX('Data Annex'!$K$1:$AN$4997,MATCH(K$1&\"|\"&$B41,'Data Annex'!$K$1:$K$4997,0),MATCH(K$2,'Data Annex'!$K$1:$AN$1,0)),\"\")","v":4.6919578599999998E-2},{"$f":"IFERROR(INDEX('Data Annex'!$K$1:$AN$4997,MATCH(L$1&\"|\"&$B41,'Data Annex'!$K$1:$K$4997,0),MATCH(L$2,'Data Annex'!$K$1:$AN$1,0)),\"\")","v":4.7341482300000001E-2},{"$f":"IFERROR(INDEX('Data Annex'!$K$1:$AN$4997,MATCH(M$1&\"|\"&$B41,'Data Annex'!$K$1:$K$4997,0),MATCH(M$2,'Data Annex'!$K$1:$AN$1,0)),\"\")","v":8.5872920999999994E-3},{"$f":"IFERROR(INDEX('Data Annex'!$K$1:$AN$4997,MATCH(N$1&\"|\"&$B41,'Data Annex'!$K$1:$K$4997,0),MATCH(N$2,'Data Annex'!$K$1:$AN$1,0)),\"\")","v":8.9149212999999998E-3},{"$f":"IFERROR(INDEX('Data Annex'!$K$1:$AN$4997,MATCH(O$1&\"|\"&$B41,'Data Annex'!$K$1:$K$4997,0),MATCH(O$2,'Data Annex'!$K$1:$AN$1,0)),\"\")","v":5.4174578199999997E-2},{"$f":"IFERROR(INDEX('Data Annex'!$K$1:$AN$4997,MATCH(P$1&\"|\"&$B41,'Data Annex'!$K$1:$K$4997,0),MATCH(P$2,'Data Annex'!$K$1:$AN$1,0)),\"\")","v":5.31962063E-2},{"$f":"IFERROR(INDEX('Data Annex'!$K$1:$AN$4997,MATCH(Q$1&\"|\"&$B41,'Data Annex'!$K$1:$K$4997,0),MATCH(Q$2,'Data Annex'!$K$1:$AN$1,0)),\"\")","v":0.12346956119999999},{"$f":"IFERROR(INDEX('Data Annex'!$K$1:$AN$4997,MATCH(R$1&\"|\"&$B41,'Data Annex'!$K$1:$K$4997,0),MATCH(R$2,'Data Annex'!$K$1:$AN$1,0)),\"\")","v":0.127188573},{"$f":"IFERROR(INDEX('Data Annex'!$K$1:$AN$4997,MATCH(S$1&\"|\"&$B41,'Data Annex'!$K$1:$K$4997,0),MATCH(S$2,'Data Annex'!$K$1:$AN$1,0)),\"\")","v":6.1313819300000003E-2},{"$f":"IFERROR(INDEX('Data Annex'!$K$1:$AN$4997,MATCH(T$1&\"|\"&$B41,'Data Annex'!$K$1:$K$4997,0),MATCH(T$2,'Data Annex'!$K$1:$AN$1,0)),\"\")","v":5.9925642699999997E-2},{"$f":"IFERROR(INDEX('Data Annex'!$K$1:$AN$4997,MATCH(U$1&\"|\"&$B41,'Data Annex'!$K$1:$K$4997,0),MATCH(U$2,'Data Annex'!$K$1:$AN$1,0)),\"\")","v":2.8586922300000001E-2},{"$f":"IFERROR(INDEX('Data Annex'!$K$1:$AN$4997,MATCH(V$1&\"|\"&$B41,'Data Annex'!$K$1:$K$4997,0),MATCH(V$2,'Data Annex'!$K$1:$AN$1,0)),\"\")","v":2.9259657200000001E-2},{"$f":"IFERROR(INDEX('Data Annex'!$K$1:$AN$4997,MATCH(W$1&\"|\"&$B41,'Data Annex'!$K$1:$K$4997,0),MATCH(W$2,'Data Annex'!$K$1:$AN$1,0)),\"\")","v":2.5684393400000002E-2},{"$f":"IFERROR(INDEX('Data Annex'!$K$1:$AN$4997,MATCH(X$1&\"|\"&$B41,'Data Annex'!$K$1:$K$4997,0),MATCH(X$2,'Data Annex'!$K$1:$AN$1,0)),\"\")","v":2.6476598300000001E-2}]
[12,"GB",null,"GB",{"$f":"IFERROR(INDEX('Data Annex'!$K$1:$AN$4997,MATCH(E$1&\"|\"&$B42,'Data Annex'!$K$1:$K$4997,0),MATCH(E$2,'Data Annex'!$K$1:$AN$1,0)),\"\")","v":2.8679875300000001E-2},{"$f":"IFERROR(INDEX('Data Annex'!$K$1:$AN$4997,MATCH(F$1&\"|\"&$B42,'Data Annex'!$K$1:$K$4997,0),MATCH(F$2,'Data Annex'!$K$1:$AN$1,0)),\"\")","v":3.0338252100000001E-2},{"$f":"IFERROR(INDEX('Data Annex'!$K$1:$AN$4997,MATCH(G$1&\"|\"&$B42,'Data Annex'!$K$1:$K$4997,0),MATCH(G$2,'Data Annex'!$K$1:$AN$1,0)),\"\")","v":2.6713531400000001E-2},{"$f":"IFERROR(INDEX('Data Annex'!$K$1:$AN$4997,MATCH(H$1&\"|\"&$B42,'Data Annex'!$K$1:$K$4997,0),MATCH(H$2,'Data Annex'!$K$1:$AN$1,0)),\"\")","v":2.3331062199999999E-2},{"$f":"IFERROR(INDEX('Data Annex'!$K$1:$AN$4997,MATCH(I$1&\"|\"&$B42,'Data Annex'!$K$1:$K$4997,0),MATCH(I$2,'Data Annex'!$K$1:$AN$1,0)),\"\")","v":0.16937886960000001},{"$f":"IFERROR(INDEX('Data Annex'!$K$1:$AN$4997,MATCH(J$1&\"|\"&$B42,'Data Annex'!$K$1:$K$4997,0),MATCH(J$2,'Data Annex'!$K$1:$AN$1,0)),\"\")","v":0.1636203037},{"$f":"IFERROR(INDEX('Data Annex'!$K$1:$AN$4997,MATCH(K$1&\"|\"&$B42,'Data Annex'!$K$1:$K$4997,0),MATCH(K$2,'Data Annex'!$K$1:$AN$1,0)),\"\")","v":2.8224748899999999E-2},{"$f":"IFERROR(INDEX('Data Annex'!$K$1:$AN$4997,MATCH(L$1&\"|\"&$B42,'Data Annex'!$K$1:$K$4997,0),MATCH(L$2,'Data Annex'!$K$1:$AN$1,0)),\"\")","v":2.9641200400000001E-2},{"$f":"IFERROR(INDEX('Data Annex'!$K$1:$AN$4997,MATCH(M$1&\"|\"&$B42,'Data Annex'!$K$1:$K$4997,0),MATCH(M$2,'Data Annex'!$K$1:$AN$1,0)),\"\")","v":9.7171785999999993E-3},{"$f":"IFERROR(INDEX('Data Annex'!$K$1:$AN$4997,MATCH(N$1&\"|\"&$B42,'Data Annex'!$K$1:$K$4997,0),MATCH(N$2,'Data Annex'!$K$1:$AN$1,0)),\"\")","v":9.7674483000000003E-3},{"$f":"IFERROR(INDEX('Data Annex'!$K$1:$AN$4997,MATCH(O$1&\"|\"&$B42,'Data Annex'!$K$1:$K$4997,0),MATCH(O$2,'Data Annex'!$K$1:$AN$1,0)),\"\")","v":4.5446951899999997E-2},{"$f":"IFERROR(INDEX('Data Annex'!$K$1:$AN$4997,MATCH(P$1&\"|\"&$B42,'Data Annex'!$K$1:$K$4997,0),MATCH(P$2,'Data Annex'!$K$1:$AN$1,0)),\"\")","v":4.5692375299999997E-2},{"$f":"IFERROR(INDEX('Data Annex'!$K$1:$AN$4997,MATCH(Q$1&\"|\"&$B42,'Data Annex'!$K$1:$K$4997,0),MATCH(Q$2,'Data Annex'!$K$1:$AN$1,0)),\"\")","v":0.1536830028},{"$f":"IFERROR(INDEX('Data Annex'!$K$1:$AN$4997,MATCH(R$1&\"|\"&$B42,'Data Annex'!$K$1:$K$4997,0),MATCH(R$2,'Data Annex'!$K$1:$AN$1,0)),\"\")","v":0.15472014000000001},{"$f":"IFERROR(INDEX('Data Annex'!$K$1:$AN$4997,MATCH(S$1&\"|\"&$B42,'Data Annex'!$K$1:$K$4997,0),MATCH(S$2,'Data Annex'!$K$1:$AN$1,0)),\"\")","v":5.4536989700000003E-2},{"$f":"IFERROR(INDEX('Data Annex'!$K$1:$AN$4997,MATCH(T$1&\"|\"&$B42,'Data Annex'!$K$1:$K$4997,0),MATCH(T$2,'Data Annex'!$K$1:$AN$1,0)),\"\")","v":5.4912743E-2},{"$f":"IFERROR(INDEX('Data Annex'!$K$1:$AN$4997,MATCH(U$1&\"|\"&$B42,'Data Annex'!$K$1:$K$4997,0),MATCH(U$2,'Data Annex'!$K$1:$AN$1,0)),\"\")","v":4.5146821400000002E-2},{"$f":"IFERROR(INDEX('Data Annex'!$K$1:$AN$4997,MATCH(V$1&\"|\"&$B42,'Data Annex'!$K$1:$K$4997,0),MATCH(V$2,'Data Annex'!$K$1:$AN$1,0)),\"\")","v":4.6803976599999998E-2},{"$f":"IFERROR(INDEX('Data Annex'!$K$1:$AN$4997,MATCH(W$1&\"|\"&$B42,'Data Annex'!$K$1:$K$4997,0),MATCH(W$2,'Data Annex'!$K$1:$AN$1,0)),\"\")","v":3.8683120100000003E-2},{"$f":"IFERROR(INDEX('Data Annex'!$K$1:$AN$4997,MATCH(X$1&\"|\"&$B42,'Data Annex'!$K$1:$K$4997,0),MATCH(X$2,'Data Annex'!$K$1:$AN$1,0)),\"\")","v":3.7587155099999998E-2}]
[]
[null,null,null,null,"T25_1","T25_1","T25_2","T25_2","T25_3","T25_3","T25_4","T25_4","T25_5","T25_5","T25_6","T25_6","T25_7","T25_7","T25_8","T25_8","T25_9","T25_9","T12_1","T12_1"]
[null,null,null,null,{"$f":"TEXT(E49,\"YYYYMM\")+0","v":202009},{"$f":"TEXT(F49,\"YYYYMM\")+0","v":202012},202009,202012,202009,202012,202009,202012,202009,202012,202009,202012,202009,202012,202009,202012,202009,202012,"T12_1","T12_1"]
[null,null,null,"Distribution of NFC loans and advances by NACE code (other than trading exposures) (2/2)",null,null,null,null,null,null,null,null,null,null,null,null,null,null,null,null,null,null,"T12_1","T12_1"]
[null,null,null,null,null,null,null,null,null,null,null,null,null,null,null,null,null,null,null,null,null,null,"T12_1","T12_1"]
[null,null,null,"%","K Financial and insurance activities",null,"L Real estate activities",null,"M Professional, scientific and technical activities",null,"N Administrative and support service activities",null,"O Public administration and defence, compulsory social security",null,"P Education",null,"Q Human health services and social work activities",null,"R Arts, entertainment and recreation",null,"S Other services",null,"T12_1","T12_1"]
[null,null,null,null,{"$f":"EOMONTH($A$3,-3)","v":"2020-09-30"},{"$f":"EOMONTH($A$3,0)","v":"2020-12-31"},{"$f":"EOMONTH($A$3,-3)","v":"2020-09-30"},{"$f":"EOMONTH($A$3,0)","v":"2020-12-31"},{"$f":"EOMONTH($A$3,-3)","v":"2020-09-30"},{"$f":"EOMONTH($A$3,0)","v":"2020-12-31"},{"$f":"EOMONTH($A$3,-3)","v":"2020-09-30"},{"$f":"EOMONTH($A$3,0)","v":"2020-12-31"},{"$f":"EOMONTH($A$3,-3)","v":"2020-09-30"},{"$f":"EOMONTH($A$3,0)","v":"2020-12-31"},{"$f":"EOMONTH($A$3,-3)","v":"2020-09-30"},{"$f":"EOMONTH($A$3,0)","v":"2020-12-31"},{"$f":"EOMONTH($A$3,-3)","v":"2020-09-30"},{"$f":"EOMONTH($A$3,0)","v":"2020-12-31"},{"$f":"EOMONTH($A$3,-3)","v":"2020-09-30"},{"$f":"EOMONTH($A$3,0)","v":"2020-12-31"},{"$f":"EOMONTH($A$3,-3)","v":"2020-09-30"},{"$f":"EOMONTH($A$3,0)","v":"2020-12-31"},"T12_1","T12_1"]
[null,"AT",null,"AT",{"$f":"IFERROR(INDEX('Data Annex'!$K$1:$AN$4997,MATCH(E$44&\"|\"&$B50,'Data Annex'!$K$1:$K$4997,0),MATCH(E$45,'Data Annex'!$K$1:$AN$1,0)),\"\")","v":1.46996881E-2},{"$f":"IFERROR(INDEX('Data Annex'!$K$1:$AN$4997,MATCH(F$44&\"|\"&$B50,'Data Annex'!$K$1:$K$4997,0),MATCH(F$45,'Data Annex'!$K$1:$AN$1,0)),\"\")","v":1.29716334E-2},{"$f":"IFERROR(INDEX('Data Annex'!$K$1:$AN$4997,MATCH(G$44&\"|\"&$B50,'Data Annex'!$K$1:$K$4997,0),MATCH(G$45,'Data Annex'!$K$1:$AN$1,0)),\"\")","v":0.27481737039999998},{"$f":"IFERROR(INDEX('Data Annex'!$K$1:$AN$4997,MATCH(H$44&\"|\"&$B50,'Data Annex'!$K$1:$K$4997,0),MATCH(H$45,'Data Annex'!$K$1:$AN$1,0)),\"\")","v":0.28046860559999998},{"$f":"IFERROR(INDEX('Data Annex'!$K$1:$AN$4997,MATCH(I$44&\"|\"&$B50,'Data Annex'!$K$1:$K$4997,0),MATCH(I$45,'Data Annex'!$K$1:$AN$1,0)),\"\")","v":8.8552794800000001E-2},{"$f":"IFERROR(INDEX('Data Annex'!$K$1:$AN$4997,MATCH(J$44&\"|\"&$B50,'Data Annex'!$K$1:$K$4997,0),MATCH(J$45,'Data Annex'!$K$1:$AN$1,0)),\"\")","v":8.4128307200000002E-2},{"$f":"IFERROR(INDEX('Data Annex'!$K$1:$AN$4997,MATCH(K$44&\"|\"&$B50,'Data Annex'!$K$1:$K$4997,0),MATCH(K$45,'Data Annex'!$K$1:$AN$1,0)),\"\")","v":2.1732138200000001E-2},{"$f":"IFERROR(INDEX('Data Annex'!$K$1:$AN$4997,MATCH(L$44&\"|\"&$B50,'Data Annex'!$K$1:$K$4997,0),MATCH(L$45,'Data Annex'!$K$1:$AN$1,0)),\"\")","v":2.43061878E-2},{"$f":"IFERROR(INDEX('Data Annex'!$K$1:$AN$4997,MATCH(M$44&\"|\"&$B50,'Data Annex'!$K$1:$K$4997,0),MATCH(M$45,'Data Annex'!$K$1:$AN$1,0)),\"\")","v":4.6727558000000001E-3},{"$f":"IFERROR(INDEX('Data Annex'!$K$1:$AN$4997,MATCH(N$44&\"|\"&$B50,'Data Annex'!$K$1:$K$4997,0),MATCH(N$45,'Data Annex'!$K$1:$AN$1,0)),\"\")","v":5.2694109999999999E-3},{"$f":"IFERROR(INDEX('Data Annex'!$K$1:$AN$4997,MATCH(O$44&\"|\"&$B50,'Data Annex'!$K$1:$K$4997,0),MATCH(O$45,'Data Annex'!$K$1:$AN$1,0)),\"\")","v":1.0369915999999999E-3},{"$f":"IFERROR(INDEX('Data Annex'!$K$1:$AN$4997,MATCH(P$44&\"|\"&$B50,'Data Annex'!$K$1:$K$4997,0),MATCH(P$45,'Data Annex'!$K$1:$AN$1,0)),\"\")","v":1.0959422E-3},{"$f":"IFERROR(INDEX('Data Annex'!$K$1:$AN$4997,MATCH(Q$44&\"|\"&$B50,'Data Annex'!$K$1:$K$4997,0),MATCH(Q$45,'Data Annex'!$K$1:$AN$1,0)),\"\")","v":1.05465608E-2},{"$f":"IFERROR(INDEX('Data Annex'!$K$1:$AN$4997,MATCH(R$44&\"|\"&$B50,'Data Annex'!$K$1:$K$4997,0),MATCH(R$45,'Data Annex'!$K$1:$AN$1,0)),\"\")","v":1.1025202E-2},{"$f":"IFERROR(INDEX('Data Annex'!$K$1:$AN$4997,MATCH(S$44&\"|\"&$B50,'Data Annex'!$K$1:$K$4997,0),MATCH(S$45,'Data Annex'!$K$1:$AN$1,0)),\"\")","v":5.9338630999999998E-3},{"$f":"IFERROR(INDEX('Data Annex'!$K$1:$AN$4997,MATCH(T$44&\"|\"&$B50,'Data Annex'!$K$1:$K$4997,0),MATCH(T$45,'Data Annex'!$K$1:$AN$1,0)),\"\")","v":5.3667729000000004E-3},{"$f":"IFERROR(INDEX('Data Annex'!$K$1:$AN$4997,MATCH(U$44&\"|\"&$B50,'Data Annex'!$K$1:$K$4997,0),MATCH(U$45,'Data Annex'!$K$1:$AN$1,0)),\"\")","v":1.25288286E-2},{"$f":"IFERROR(INDEX('Data Annex'!$K$1:$AN$4997,MATCH(V$44&\"|\"&$B50,'Data Annex'!$K$1:$K$4997,0),MATCH(V$45,'Data Annex'!$K$1:$AN$1,0)),\"\")","v":1.17910072E-2},"T12_1","T12_1"]
["T2_1","BE",null,"BE",{"$f":"IFERROR(INDEX('Data Annex'!$K$1:$AN$4997,MATCH(E$44&\"|\"&$B51,'Data Annex'!$K$1:$K$4997,0),MATCH(E$45,'Data Annex'!$K$1:$AN$1,0)),\"\")","v":2.2287004700000002E-2},{"$f":"IFERROR(INDEX('Data Annex'!$K$1:$AN$4997,MATCH(F$44&\"|\"&$B51,'Data Annex'!$K$1:$K$4997,0),MATCH(F$45,'Data Annex'!$K$1:$AN$1,0)),\"\")","v":2.34686541E-2},{"$f":"IFERROR(INDEX('Data Annex'!$K$1:$AN$4997,MATCH(G$44&\"|\"&$B51,'Data Annex'!$K$1:$K$4997,0),MATCH(G$45,'Data Annex'!$K$1:$AN$1,0)),\"\")","v":0.1430437507},{"$f":"IFERROR(INDEX('Data Annex'!$K$1:$AN$4997,MATCH(H$44&\"|\"&$B51,'Data Annex'!$K$1:$K$4997,0),MATCH(H$45,'Data Annex'!$K$1:$AN$1,0)),\"\")","v":0.14265809879999999},{"$f":"IFERROR(INDEX('Data Annex'!$K$1:$AN$4997,MATCH(I$44&\"|\"&$B51,'Data Annex'!$K$1:$K$4997,0),MATCH(I$45,'Data Annex'!$K$1:$AN$1,0)),\"\")","v":7.3073555299999995E-2},{"$f":"IFERROR(INDEX('Data Annex'!$K$1:$AN$4997,MATCH(J$44&\"|\"&$B51,'Data Annex'!$K$1:$K$4997,0),MATCH(J$45,'Data Annex'!$K$1:$AN$1,0)),\"\")","v":7.3381754100000002E-2},{"$f":"IFERROR(INDEX('Data Annex'!$K$1:$AN$4997,MATCH(K$44&\"|\"&$B51,'Data Annex'!$K$1:$K$4997,0),MATCH(K$45,'Data Annex'!$K$1:$AN$1,0)),\"\")","v":4.9255035699999998E-2},{"$f":"IFERROR(INDEX('Data Annex'!$K$1:$AN$4997,MATCH(L$44&\"|\"&$B51,'Data Annex'!$K$1:$K$4997,0),MATCH(L$45,'Data Annex'!$K$1:$AN$1,0)),\"\")","v":4.8595752200000002E-2},{"$f":"IFERROR(INDEX('Data Annex'!$K$1:$AN$4997,MATCH(M$44&\"|\"&$B51,'Data Annex'!$K$1:$K$4997,0),MATCH(M$45,'Data Annex'!$K$1:$AN$1,0)),\"\")","v":6.3374564000000001E-3},{"$f":"IFERROR(INDEX('Data Annex'!$K$1:$AN$4997,MATCH(N$44&\"|\"&$B51,'Data Annex'!$K$1:$K$4997,0),MATCH(N$45,'Data Annex'!$K$1:$AN$1,0)),\"\")","v":6.4256664999999998E-3},{"$f":"IFERROR(INDEX('Data Annex'!$K$1:$AN$4997,MATCH(O$44&\"|\"&$B51,'Data Annex'!$K$1:$K$4997,0),MATCH(O$45,'Data Annex'!$K$1:$AN$1,0)),\"\")","v":2.5724790999999999E-3},{"$f":"IFERROR(INDEX('Data Annex'!$K$1:$AN$4997,MATCH(P$44&\"|\"&$B51,'Data Annex'!$K$1:$K$4997,0),MATCH(P$45,'Data Annex'!$K$1:$AN$1,0)),\"\")","v":2.4259441999999998E-3},{"$f":"IFERROR(INDEX('Data Annex'!$K$1:$AN$4997,MATCH(Q$44&\"|\"&$B51,'Data Annex'!$K$1:$K$4997,0),MATCH(Q$45,'Data Annex'!$K$1:$AN$1,0)),\"\")","v":6.1516791000000001E-2},{"$f":"IFERROR(INDEX('Data Annex'!$K$1:$AN$4997,MATCH(R$44&\"|\"&$B51,'Data Annex'!$K$1:$K$4997,0),MATCH(R$45,'Data Annex'!$K$1:$AN$1,0)),\"\")","v":6.1395144800000002E-2},{"$f":"IFERROR(INDEX('Data Annex'!$K$1:$AN$4997,MATCH(S$44&\"|\"&$B51,'Data Annex'!$K$1:$K$4997,0),MATCH(S$45,'Data Annex'!$K$1:$AN$1,0)),\"\")","v":7.3156369000000002E-3},{"$f":"IFERROR(INDEX('Data Annex'!$K$1:$AN$4997,MATCH(T$44&\"|\"&$B51,'Data Annex'!$K$1:$K$4997,0),MATCH(T$45,'Data Annex'!$K$1:$AN$1,0)),\"\")","v":7.5236017000000002E-3},{"$f":"IFERROR(INDEX('Data Annex'!$K$1:$AN$4997,MATCH(U$44&\"|\"&$B51,'Data Annex'!$K$1:$K$4997,0),MATCH(U$45,'Data Annex'!$K$1:$AN$1,0)),\"\")","v":1.8166350099999999E-2},{"$f":"IFERROR(INDEX('Data Annex'!$K$1:$AN$4997,MATCH(V$44&\"|\"&$B51,'Data Annex'!$K$1:$K$4997,0),MATCH(V$45,'Data Annex'!$K$1:$AN$1,0)),\"\")","v":1.9864848899999999E-2},"T12_1","T12_1"]
[1,"BG",null,"BG",{"$f":"IFERROR(INDEX('Data Annex'!$K$1:$AN$4997,MATCH(E$44&\"|\"&$B52,'Data Annex'!$K$1:$K$4997,0),MATCH(E$45,'Data Annex'!$K$1:$AN$1,0)),\"\")","v":8.3426791E-3},{"$f":"IFERROR(INDEX('Data Annex'!$K$1:$AN$4997,MATCH(F$44&\"|\"&$B52,'Data Annex'!$K$1:$K$4997,0),MATCH(F$45,'Data Annex'!$K$1:$AN$1,0)),\"\")","v":8.9816848000000005E-3},{"$f":"IFERROR(INDEX('Data Annex'!$K$1:$AN$4997,MATCH(G$44&\"|\"&$B52,'Data Annex'!$K$1:$K$4997,0),MATCH(G$45,'Data Annex'!$K$1:$AN$1,0)),\"\")","v":0.12523583050000001},{"$f":"IFERROR(INDEX('Data Annex'!$K$1:$AN$4997,MATCH(H$44&\"|\"&$B52,'Data Annex'!$K$1:$K$4997,0),MATCH(H$45,'Data Annex'!$K$1:$AN$1,0)),\"\")","v":0.124034293},{"$f":"IFERROR(INDEX('Data Annex'!$K$1:$AN$4997,MATCH(I$44&\"|\"&$B52,'Data Annex'!$K$1:$K$4997,0),MATCH(I$45,'Data Annex'!$K$1:$AN$1,0)),\"\")","v":2.2501187499999999E-2},{"$f":"IFERROR(INDEX('Data Annex'!$K$1:$AN$4997,MATCH(J$44&\"|\"&$B52,'Data Annex'!$K$1:$K$4997,0),MATCH(J$45,'Data Annex'!$K$1:$AN$1,0)),\"\")","v":2.0220582899999999E-2},{"$f":"IFERROR(INDEX('Data Annex'!$K$1:$AN$4997,MATCH(K$44&\"|\"&$B52,'Data Annex'!$K$1:$K$4997,0),MATCH(K$45,'Data Annex'!$K$1:$AN$1,0)),\"\")","v":1.33451E-2},{"$f":"IFERROR(INDEX('Data Annex'!$K$1:$AN$4997,MATCH(L$44&\"|\"&$B52,'Data Annex'!$K$1:$K$4997,0),MATCH(L$45,'Data Annex'!$K$1:$AN$1,0)),\"\")","v":1.3440141399999999E-2},{"$f":"IFERROR(INDEX('Data Annex'!$K$1:$AN$4997,MATCH(M$44&\"|\"&$B52,'Data Annex'!$K$1:$K$4997,0),MATCH(M$45,'Data Annex'!$K$1:$AN$1,0)),\"\")","v":1.83596E-5},{"$f":"IFERROR(INDEX('Data Annex'!$K$1:$AN$4997,MATCH(N$44&\"|\"&$B52,'Data Annex'!$K$1:$K$4997,0),MATCH(N$45,'Data Annex'!$K$1:$AN$1,0)),\"\")","v":1.6113900000000002E-5},{"$f":"IFERROR(INDEX('Data Annex'!$K$1:$AN$4997,MATCH(O$44&\"|\"&$B52,'Data Annex'!$K$1:$K$4997,0),MATCH(O$45,'Data Annex'!$K$1:$AN$1,0)),\"\")","v":2.0355815E-3},{"$f":"IFERROR(INDEX('Data Annex'!$K$1:$AN$4997,MATCH(P$44&\"|\"&$B52,'Data Annex'!$K$1:$K$4997,0),MATCH(P$45,'Data Annex'!$K$1:$AN$1,0)),\"\")","v":1.9859847999999999E-3},{"$f":"IFERROR(INDEX('Data Annex'!$K$1:$AN$4997,MATCH(Q$44&\"|\"&$B52,'Data Annex'!$K$1:$K$4997,0),MATCH(Q$45,'Data Annex'!$K$1:$AN$1,0)),\"\")","v":5.3496966999999999E-3},{"$f":"IFERROR(INDEX('Data Annex'!$K$1:$AN$4997,MATCH(R$44&\"|\"&$B52,'Data Annex'!$K$1:$K$4997,0),MATCH(R$45,'Data Annex'!$K$1:$AN$1,0)),\"\")","v":5.7983497000000002E-3},{"$f":"IFERROR(INDEX('Data Annex'!$K$1:$AN$4997,MATCH(S$44&\"|\"&$B52,'Data Annex'!$K$1:$K$4997,0),MATCH(S$45,'Data Annex'!$K$1:$AN$1,0)),\"\")","v":2.1232589000000001E-3},{"$f":"IFERROR(INDEX('Data Annex'!$K$1:$AN$4997,MATCH(T$44&\"|\"&$B52,'Data Annex'!$K$1:$K$4997,0),MATCH(T$45,'Data Annex'!$K$1:$AN$1,0)),\"\")","v":2.1184169E-3},{"$f":"IFERROR(INDEX('Data Annex'!$K$1:$AN$4997,MATCH(U$44&\"|\"&$B52,'Data Annex'!$K$1:$K$4997,0),MATCH(U$45,'Data Annex'!$K$1:$AN$1,0)),\"\")","v":6.7553285000000003E-3},{"$f":"IFERROR(INDEX('Data Annex'!$K$1:$AN$4997,MATCH(V$44&\"|\"&$B52,'Data Annex'!$K$1:$K$4997,0),MATCH(V$45,'Data Annex'!$K$1:$AN$1,0)),\"\")","v":7.1332777999999998E-3},"T12_1","T12_1"]
[2,"CY",null,"CY",{"$f":"IFERROR(INDEX('Data Annex'!$K$1:$AN$4997,MATCH(E$44&\"|\"&$B53,'Data Annex'!$K$1:$K$4997,0),MATCH(E$45,'Data Annex'!$K$1:$AN$1,0)),\"\")","v":0},{"$f":"IFERROR(INDEX('Data Annex'!$K$1:$AN$4997,MATCH(F$44&\"|\"&$B53,'Data Annex'!$K$1:$K$4997,0),MATCH(F$45,'Data Annex'!$K$1:$AN$1,0)),\"\")","v":0},{"$f":"IFERROR(INDEX('Data Annex'!$K$1:$AN$4997,MATCH(G$44&\"|\"&$B53,'Data Annex'!$K$1:$K$4997,0),MATCH(G$45,'Data Annex'!$K$1:$AN$1,0)),\"\")","v":0.1685550294},{"$f":"IFERROR(INDEX('Data Annex'!$K$1:$AN$4997,MATCH(H$44&\"|\"&$B53,'Data Annex'!$K$1:$K$4997,0),MATCH(H$45,'Data Annex'!$K$1:$AN$1,0)),\"\")","v":9.3905164400000005E-2},{"$f":"IFERROR(INDEX('Data Annex'!$K$1:$AN$4997,MATCH(I$44&\"|\"&$B53,'Data Annex'!$K$1:$K$4997,0),MATCH(I$45,'Data Annex'!$K$1:$AN$1,0)),\"\")","v":4.12619189E-2},{"$f":"IFERROR(INDEX('Data Annex'!$K$1:$AN$4997,MATCH(J$44&\"|\"&$B53,'Data Annex'!$K$1:$K$4997,0),MATCH(J$45,'Data Annex'!$K$1:$AN$1,0)),\"\")","v":2.1682774799999999E-2},{"$f":"IFERROR(INDEX('Data Annex'!$K$1:$AN$4997,MATCH(K$44&\"|\"&$B53,'Data Annex'!$K$1:$K$4997,0),MATCH(K$45,'Data Annex'!$K$1:$AN$1,0)),\"\")","v":1.25138521E-2},{"$f":"IFERROR(INDEX('Data Annex'!$K$1:$AN$4997,MATCH(L$44&\"|\"&$B53,'Data Annex'!$K$1:$K$4997,0),MATCH(L$45,'Data Annex'!$K$1:$AN$1,0)),\"\")","v":1.0976604399999999E-2},{"$f":"IFERROR(INDEX('Data Annex'!$K$1:$AN$4997,MATCH(M$44&\"|\"&$B53,'Data Annex'!$K$1:$K$4997,0),MATCH(M$45,'Data Annex'!$K$1:$AN$1,0)),\"\")","v":0},{"$f":"IFERROR(INDEX('Data Annex'!$K$1:$AN$4997,MATCH(N$44&\"|\"&$B53,'Data Annex'!$K$1:$K$4997,0),MATCH(N$45,'Data Annex'!$K$1:$AN$1,0)),\"\")","v":0},{"$f":"IFERROR(INDEX('Data Annex'!$K$1:$AN$4997,MATCH(O$44&\"|\"&$B53,'Data Annex'!$K$1:$K$4997,0),MATCH(O$45,'Data Annex'!$K$1:$AN$1,0)),\"\")","v":1.30622364E-2},{"$f":"IFERROR(INDEX('Data Annex'!$K$1:$AN$4997,MATCH(P$44&\"|\"&$B53,'Data Annex'!$K$1:$K$4997,0),MATCH(P$45,'Data Annex'!$K$1:$AN$1,0)),\"\")","v":7.4721344000000002E-3},{"$f":"IFERROR(INDEX('Data Annex'!$K$1:$AN$4997,MATCH(Q$44&\"|\"&$B53,'Data Annex'!$K$1:$K$4997,0),MATCH(Q$45,'Data Annex'!$K$1:$AN$1,0)),\"\")","v":2.17463686E-2},{"$f":"IFERROR(INDEX('Data Annex'!$K$1:$AN$4997,MATCH(R$44&\"|\"&$B53,'Data Annex'!$K$1:$K$4997,0),MATCH(R$45,'Data Annex'!$K$1:$AN$1,0)),\"\")","v":3.72579865E-2},{"$f":"IFERROR(INDEX('Data Annex'!$K$1:$AN$4997,MATCH(S$44&\"|\"&$B53,'Data Annex'!$K$1:$K$4997,0),MATCH(S$45,'Data Annex'!$K$1:$AN$1,0)),\"\")","v":6.0550268999999997E-3},{"$f":"IFERROR(INDEX('Data Annex'!$K$1:$AN$4997,MATCH(T$44&\"|\"&$B53,'Data Annex'!$K$1:$K$4997,0),MATCH(T$45,'Data Annex'!$K$1:$AN$1,0)),\"\")","v":1.0247080800000001E-2},{"$f":"IFERROR(INDEX('Data Annex'!$K$1:$AN$4997,MATCH(U$44&\"|\"&$B53,'Data Annex'!$K$1:$K$4997,0),MATCH(U$45,'Data Annex'!$K$1:$AN$1,0)),\"\")","v":9.0014772999999996E-3},{"$f":"IFERROR(INDEX('Data Annex'!$K$1:$AN$4997,MATCH(V$44&\"|\"&$B53,'Data Annex'!$K$1:$K$4997,0),MATCH(V$45,'Data Annex'!$K$1:$AN$1,0)),\"\")","v":6.9900576000000002E-3},"T12_1","T12_1"]
[3,"CZ",null,"CZ",{"$f":"IFERROR(INDEX('Data Annex'!$K$1:$AN$4997,MATCH(E$44&\"|\"&$B54,'Data Annex'!$K$1:$K$4997,0),MATCH(E$45,'Data Annex'!$K$1:$AN$1,0)),\"\")","v":2.24592E-5},{"$f":"IFERROR(INDEX('Data Annex'!$K$1:$AN$4997,MATCH(F$44&\"|\"&$B54,'Data Annex'!$K$1:$K$4997,0),MATCH(F$45,'Data Annex'!$K$1:$AN$1,0)),\"\")","v":1.7902099999999999E-5},{"$f":"IFERROR(INDEX('Data Annex'!$K$1:$AN$4997,MATCH(G$44&\"|\"&$B54,'Data Annex'!$K$1:$K$4997,0),MATCH(G$45,'Data Annex'!$K$1:$AN$1,0)),\"\")","v":0.22592263239999999},{"$f":"IFERROR(INDEX('Data Annex'!$K$1:$AN$4997,MATCH(H$44&\"|\"&$B54,'Data Annex'!$K$1:$K$4997,0),MATCH(H$45,'Data Annex'!$K$1:$AN$1,0)),\"\")","v":0.2402764325},{"$f":"IFERROR(INDEX('Data Annex'!$K$1:$AN$4997,MATCH(I$44&\"|\"&$B54,'Data Annex'!$K$1:$K$4997,0),MATCH(I$45,'Data Annex'!$K$1:$AN$1,0)),\"\")","v":4.4676260699999998E-2},{"$f":"IFERROR(INDEX('Data Annex'!$K$1:$AN$4997,MATCH(J$44&\"|\"&$B54,'Data Annex'!$K$1:$K$4997,0),MATCH(J$45,'Data Annex'!$K$1:$AN$1,0)),\"\")","v":4.00812579E-2},{"$f":"IFERROR(INDEX('Data Annex'!$K$1:$AN$4997,MATCH(K$44&\"|\"&$B54,'Data Annex'!$K$1:$K$4997,0),MATCH(K$45,'Data Annex'!$K$1:$AN$1,0)),\"\")","v":2.11644754E-2},{"$f":"IFERROR(INDEX('Data Annex'!$K$1:$AN$4997,MATCH(L$44&\"|\"&$B54,'Data Annex'!$K$1:$K$4997,0),MATCH(L$45,'Data Annex'!$K$1:$AN$1,0)),\"\")","v":2.0521954500000002E-2},{"$f":"IFERROR(INDEX('Data Annex'!$K$1:$AN$4997,MATCH(M$44&\"|\"&$B54,'Data Annex'!$K$1:$K$4997,0),MATCH(M$45,'Data Annex'!$K$1:$AN$1,0)),\"\")","v":5.8362430000000003E-4},{"$f":"IFERROR(INDEX('Data Annex'!$K$1:$AN$4997,MATCH(N$44&\"|\"&$B54,'Data Annex'!$K$1:$K$4997,0),MATCH(N$45,'Data Annex'!$K$1:$AN$1,0)),\"\")","v":5.2520780000000003E-4},{"$f":"IFERROR(INDEX('Data Annex'!$K$1:$AN$4997,MATCH(O$44&\"|\"&$B54,'Data Annex'!$K$1:$K$4997,0),MATCH(O$45,'Data Annex'!$K$1:$AN$1,0)),\"\")","v":1.5813921000000001E-3},{"$f":"IFERROR(INDEX('Data Annex'!$K$1:$AN$4997,MATCH(P$44&\"|\"&$B54,'Data Annex'!$K$1:$K$4997,0),MATCH(P$45,'Data Annex'!$K$1:$AN$1,0)),\"\")","v":1.5327384E-3},{"$f":"IFERROR(INDEX('Data Annex'!$K$1:$AN$4997,MATCH(Q$44&\"|\"&$B54,'Data Annex'!$K$1:$K$4997,0),MATCH(Q$45,'Data Annex'!$K$1:$AN$1,0)),\"\")","v":6.8574016000000002E-3},{"$f":"IFERROR(INDEX('Data Annex'!$K$1:$AN$4997,MATCH(R$44&\"|\"&$B54,'Data Annex'!$K$1:$K$4997,0),MATCH(R$45,'Data Annex'!$K$1:$AN$1,0)),\"\")","v":8.3154587000000002E-3},{"$f":"IFERROR(INDEX('Data Annex'!$K$1:$AN$4997,MATCH(S$44&\"|\"&$B54,'Data Annex'!$K$1:$K$4997,0),MATCH(S$45,'Data Annex'!$K$1:$AN$1,0)),\"\")","v":1.12322089E-2},{"$f":"IFERROR(INDEX('Data Annex'!$K$1:$AN$4997,MATCH(T$44&\"|\"&$B54,'Data Annex'!$K$1:$K$4997,0),MATCH(T$45,'Data Annex'!$K$1:$AN$1,0)),\"\")","v":6.3867560000000004E-3},{"$f":"IFERROR(INDEX('Data Annex'!$K$1:$AN$4997,MATCH(U$44&\"|\"&$B54,'Data Annex'!$K$1:$K$4997,0),MATCH(U$45,'Data Annex'!$K$1:$AN$1,0)),\"\")","v":3.5690459700000003E-2},{"$f":"IFERROR(INDEX('Data Annex'!$K$1:$AN$4997,MATCH(V$44&\"|\"&$B54,'Data Annex'!$K$1:$K$4997,0),MATCH(V$45,'Data Annex'!$K$1:$AN$1,0)),\"\")","v":3.8155474699999997E-2},"T12_1","T12_1"]
[4,"DE",null,"DE",{"$f":"IFERROR(INDEX('Data Annex'!$K$1:$AN$4997,MATCH(E$44&\"|\"&$B55,'Data Annex'!$K$1:$K$4997,0),MATCH(E$45,'Data Annex'!$K$1:$AN$1,0)),\"\")","v":4.2682046100000003E-2},{"$f":"IFERROR(INDEX('Data Annex'!$K$1:$AN$4997,MATCH(F$44&\"|\"&$B55,'Data Annex'!$K$1:$K$4997,0),MATCH(F$45,'Data Annex'!$K$1:$AN$1,0)),\"\")","v":4.5428624600000002E-2},{"$f":"IFERROR(INDEX('Data Annex'!$K$1:$AN$4997,MATCH(G$44&\"|\"&$B55,'Data Annex'!$K$1:$K$4997,0),MATCH(G$45,'Data Annex'!$K$1:$AN$1,0)),\"\")","v":0.3804664962},{"$f":"IFERROR(INDEX('Data Annex'!$K$1:$AN$4997,MATCH(H$44&\"|\"&$B55,'Data Annex'!$K$1:$K$4997,0),MATCH(H$45,'Data Annex'!$K$1:$AN$1,0)),\"\")","v":0.380325203},{"$f":"IFERROR(INDEX('Data Annex'!$K$1:$AN$4997,MATCH(I$44&\"|\"&$B55,'Data Annex'!$K$1:$K$4997,0),MATCH(I$45,'Data Annex'!$K$1:$AN$1,0)),\"\")","v":4.1125739100000003E-2},{"$f":"IFERROR(INDEX('Data Annex'!$K$1:$AN$4997,MATCH(J$44&\"|\"&$B55,'Data Annex'!$K$1:$K$4997,0),MATCH(J$45,'Data Annex'!$K$1:$AN$1,0)),\"\")","v":4.2725305599999999E-2},{"$f":"IFERROR(INDEX('Data Annex'!$K$1:$AN$4997,MATCH(K$44&\"|\"&$B55,'Data Annex'!$K$1:$K$4997,0),MATCH(K$45,'Data Annex'!$K$1:$AN$1,0)),\"\")","v":4.3851889499999998E-2},{"$f":"IFERROR(INDEX('Data Annex'!$K$1:$AN$4997,MATCH(L$44&\"|\"&$B55,'Data Annex'!$K$1:$K$4997,0),MATCH(L$45,'Data Annex'!$K$1:$AN$1,0)),\"\")","v":4.7775445899999998E-2},{"$f":"IFERROR(INDEX('Data Annex'!$K$1:$AN$4997,MATCH(M$44&\"|\"&$B55,'Data Annex'!$K$1:$K$4997,0),MATCH(M$45,'Data Annex'!$K$1:$AN$1,0)),\"\")","v":2.8673773E-3},{"$f":"IFERROR(INDEX('Data Annex'!$K$1:$AN$4997,MATCH(N$44&\"|\"&$B55,'Data Annex'!$K$1:$K$4997,0),MATCH(N$45,'Data Annex'!$K$1:$AN$1,0)),\"\")","v":3.2043922E-3},{"$f":"IFERROR(INDEX('Data Annex'!$K$1:$AN$4997,MATCH(O$44&\"|\"&$B55,'Data Annex'!$K$1:$K$4997,0),MATCH(O$45,'Data Annex'!$K$1:$AN$1,0)),\"\")","v":1.7930585999999999E-3},{"$f":"IFERROR(INDEX('Data Annex'!$K$1:$AN$4997,MATCH(P$44&\"|\"&$B55,'Data Annex'!$K$1:$K$4997,0),MATCH(P$45,'Data Annex'!$K$1:$AN$1,0)),\"\")","v":1.8218876999999999E-3},{"$f":"IFERROR(INDEX('Data Annex'!$K$1:$AN$4997,MATCH(Q$44&\"|\"&$B55,'Data Annex'!$K$1:$K$4997,0),MATCH(Q$45,'Data Annex'!$K$1:$AN$1,0)),\"\")","v":1.51765892E-2},{"$f":"IFERROR(INDEX('Data Annex'!$K$1:$AN$4997,MATCH(R$44&\"|\"&$B55,'Data Annex'!$K$1:$K$4997,0),MATCH(R$45,'Data Annex'!$K$1:$AN$1,0)),\"\")","v":1.6068051100000001E-2},{"$f":"IFERROR(INDEX('Data Annex'!$K$1:$AN$4997,MATCH(S$44&\"|\"&$B55,'Data Annex'!$K$1:$K$4997,0),MATCH(S$45,'Data Annex'!$K$1:$AN$1,0)),\"\")","v":4.2107530000000002E-3},{"$f":"IFERROR(INDEX('Data Annex'!$K$1:$AN$4997,MATCH(T$44&\"|\"&$B55,'Data Annex'!$K$1:$K$4997,0),MATCH(T$45,'Data Annex'!$K$1:$AN$1,0)),\"\")","v":3.9924091999999998E-3},{"$f":"IFERROR(INDEX('Data Annex'!$K$1:$AN$4997,MATCH(U$44&\"|\"&$B55,'Data Annex'!$K$1:$K$4997,0),MATCH(U$45,'Data Annex'!$K$1:$AN$1,0)),\"\")","v":2.8516558800000001E-2},{"$f":"IFERROR(INDEX('Data Annex'!$K$1:$AN$4997,MATCH(V$44&\"|\"&$B55,'Data Annex'!$K$1:$K$4997,0),MATCH(V$45,'Data Annex'!$K$1:$AN$1,0)),\"\")","v":2.19604568E-2},"T12_1","T12_1"]
[5,"DK",null,"DK",{"$f":"IFERROR(INDEX('Data Annex'!$K$1:$AN$4997,MATCH(E$44&\"|\"&$B56,'Data Annex'!$K$1:$K$4997,0),MATCH(E$45,'Data Annex'!$K$1:$AN$1,0)),\"\")","v":1.4727930700000001E-2},{"$f":"IFERROR(INDEX('Data Annex'!$K$1:$AN$4997,MATCH(F$44&\"|\"&$B56,'Data Annex'!$K$1:$K$4997,0),MATCH(F$45,'Data Annex'!$K$1:$AN$1,0)),\"\")","v":1.3346634600000001E-2},{"$f":"IFERROR(INDEX('Data Annex'!$K$1:$AN$4997,MATCH(G$44&\"|\"&$B56,'Data Annex'!$K$1:$K$4997,0),MATCH(G$45,'Data Annex'!$K$1:$AN$1,0)),\"\")","v":0.61661764090000004},{"$f":"IFERROR(INDEX('Data Annex'!$K$1:$AN$4997,MATCH(H$44&\"|\"&$B56,'Data Annex'!$K$1:$K$4997,0),MATCH(H$45,'Data Annex'!$K$1:$AN$1,0)),\"\")","v":0.62414459280000001},{"$f":"IFERROR(INDEX('Data Annex'!$K$1:$AN$4997,MATCH(I$44&\"|\"&$B56,'Data Annex'!$K$1:$K$4997,0),MATCH(I$45,'Data Annex'!$K$1:$AN$1,0)),\"\")","v":1.91244829E-2},{"$f":"IFERROR(INDEX('Data Annex'!$K$1:$AN$4997,MATCH(J$44&\"|\"&$B56,'Data Annex'!$K$1:$K$4997,0),MATCH(J$45,'Data Annex'!$K$1:$AN$1,0)),\"\")","v":1.90113916E-2},{"$f":"IFERROR(INDEX('Data Annex'!$K$1:$AN$4997,MATCH(K$44&\"|\"&$B56,'Data Annex'!$K$1:$K$4997,0),MATCH(K$45,'Data Annex'!$K$1:$AN$1,0)),\"\")","v":1.9528591599999999E-2},{"$f":"IFERROR(INDEX('Data Annex'!$K$1:$AN$4997,MATCH(L$44&\"|\"&$B56,'Data Annex'!$K$1:$K$4997,0),MATCH(L$45,'Data Annex'!$K$1:$AN$1,0)),\"\")","v":1.9689358899999999E-2},{"$f":"IFERROR(INDEX('Data Annex'!$K$1:$AN$4997,MATCH(M$44&\"|\"&$B56,'Data Annex'!$K$1:$K$4997,0),MATCH(M$45,'Data Annex'!$K$1:$AN$1,0)),\"\")","v":3.6832267000000002E-3},{"$f":"IFERROR(INDEX('Data Annex'!$K$1:$AN$4997,MATCH(N$44&\"|\"&$B56,'Data Annex'!$K$1:$K$4997,0),MATCH(N$45,'Data Annex'!$K$1:$AN$1,0)),\"\")","v":2.2441456000000001E-3},{"$f":"IFERROR(INDEX('Data Annex'!$K$1:$AN$4997,MATCH(O$44&\"|\"&$B56,'Data Annex'!$K$1:$K$4997,0),MATCH(O$45,'Data Annex'!$K$1:$AN$1,0)),\"\")","v":4.0607706999999998E-3},{"$f":"IFERROR(INDEX('Data Annex'!$K$1:$AN$4997,MATCH(P$44&\"|\"&$B56,'Data Annex'!$K$1:$K$4997,0),MATCH(P$45,'Data Annex'!$K$1:$AN$1,0)),\"\")","v":7.2560182000000004E-3},{"$f":"IFERROR(INDEX('Data Annex'!$K$1:$AN$4997,MATCH(Q$44&\"|\"&$B56,'Data Annex'!$K$1:$K$4997,0),MATCH(Q$45,'Data Annex'!$K$1:$AN$1,0)),\"\")","v":6.6670556999999997E-3},{"$f":"IFERROR(INDEX('Data Annex'!$K$1:$AN$4997,MATCH(R$44&\"|\"&$B56,'Data Annex'!$K$1:$K$4997,0),MATCH(R$45,'Data Annex'!$K$1:$AN$1,0)),\"\")","v":9.0144405E-3},{"$f":"IFERROR(INDEX('Data Annex'!$K$1:$AN$4997,MATCH(S$44&\"|\"&$B56,'Data Annex'!$K$1:$K$4997,0),MATCH(S$45,'Data Annex'!$K$1:$AN$1,0)),\"\")","v":8.3071884999999998E-3},{"$f":"IFERROR(INDEX('Data Annex'!$K$1:$AN$4997,MATCH(T$44&\"|\"&$B56,'Data Annex'!$K$1:$K$4997,0),MATCH(T$45,'Data Annex'!$K$1:$AN$1,0)),\"\")","v":3.1084331999999999E-3},{"$f":"IFERROR(INDEX('Data Annex'!$K$1:$AN$4997,MATCH(U$44&\"|\"&$B56,'Data Annex'!$K$1:$K$4997,0),MATCH(U$45,'Data Annex'!$K$1:$AN$1,0)),\"\")","v":1.0218250700000001E-2},{"$f":"IFERROR(INDEX('Data Annex'!$K$1:$AN$4997,MATCH(V$44&\"|\"&$B56,'Data Annex'!$K$1:$K$4997,0),MATCH(V$45,'Data Annex'!$K$1:$AN$1,0)),\"\")","v":1.00371396E-2},"T12_1","T12_1"]
[6,"EE",null,"EE",{"$f":"IFERROR(INDEX('Data Annex'!$K$1:$AN$4997,MATCH(E$44&\"|\"&$B57,'Data Annex'!$K$1:$K$4997,0),MATCH(E$45,'Data Annex'!$K$1:$AN$1,0)),\"\")","v":0},{"$f":"IFERROR(INDEX('Data Annex'!$K$1:$AN$4997,MATCH(F$44&\"|\"&$B57,'Data Annex'!$K$1:$K$4997,0),MATCH(F$45,'Data Annex'!$K$1:$AN$1,0)),\"\")","v":0},{"$f":"IFERROR(INDEX('Data Annex'!$K$1:$AN$4997,MATCH(G$44&\"|\"&$B57,'Data Annex'!$K$1:$K$4997,0),MATCH(G$45,'Data Annex'!$K$1:$AN$1,0)),\"\")","v":0.32901671989999998},{"$f":"IFERROR(INDEX('Data Annex'!$K$1:$AN$4997,MATCH(H$44&\"|\"&$B57,'Data Annex'!$K$1:$K$4997,0),MATCH(H$45,'Data Annex'!$K$1:$AN$1,0)),\"\")","v":0.33988808349999999},{"$f":"IFERROR(INDEX('Data Annex'!$K$1:$AN$4997,MATCH(I$44&\"|\"&$B57,'Data Annex'!$K$1:$K$4997,0),MATCH(I$45,'Data Annex'!$K$1:$AN$1,0)),\"\")","v":3.9254312299999997E-2},{"$f":"IFERROR(INDEX('Data Annex'!$K$1:$AN$4997,MATCH(J$44&\"|\"&$B57,'Data Annex'!$K$1:$K$4997,0),MATCH(J$45,'Data Annex'!$K$1:$AN$1,0)),\"\")","v":3.9272593600000003E-2},{"$f":"IFERROR(INDEX('Data Annex'!$K$1:$AN$4997,MATCH(K$44&\"|\"&$B57,'Data Annex'!$K$1:$K$4997,0),MATCH(K$45,'Data Annex'!$K$1:$AN$1,0)),\"\")","v":3.2974275800000001E-2},{"$f":"IFERROR(INDEX('Data Annex'!$K$1:$AN$4997,MATCH(L$44&\"|\"&$B57,'Data Annex'!$K$1:$K$4997,0),MATCH(L$45,'Data Annex'!$K$1:$AN$1,0)),\"\")","v":3.3253475599999999E-2},{"$f":"IFERROR(INDEX('Data Annex'!$K$1:$AN$4997,MATCH(M$44&\"|\"&$B57,'Data Annex'!$K$1:$K$4997,0),MATCH(M$45,'Data Annex'!$K$1:$AN$1,0)),\"\")","v":1.2606700000000001E-5},{"$f":"IFERROR(INDEX('Data Annex'!$K$1:$AN$4997,MATCH(N$44&\"|\"&$B57,'Data Annex'!$K$1:$K$4997,0),MATCH(N$45,'Data Annex'!$K$1:$AN$1,0)),\"\")","v":8.1939941E-6},{"$f":"IFERROR(INDEX('Data Annex'!$K$1:$AN$4997,MATCH(O$44&\"|\"&$B57,'Data Annex'!$K$1:$K$4997,0),MATCH(O$45,'Data Annex'!$K$1:$AN$1,0)),\"\")","v":1.4823360999999999E-3},{"$f":"IFERROR(INDEX('Data Annex'!$K$1:$AN$4997,MATCH(P$44&\"|\"&$B57,'Data Annex'!$K$1:$K$4997,0),MATCH(P$45,'Data Annex'!$K$1:$AN$1,0)),\"\")","v":1.4973002999999999E-3},{"$f":"IFERROR(INDEX('Data Annex'!$K$1:$AN$4997,MATCH(Q$44&\"|\"&$B57,'Data Annex'!$K$1:$K$4997,0),MATCH(Q$45,'Data Annex'!$K$1:$AN$1,0)),\"\")","v":7.8149710000000004E-3},{"$f":"IFERROR(INDEX('Data Annex'!$K$1:$AN$4997,MATCH(R$44&\"|\"&$B57,'Data Annex'!$K$1:$K$4997,0),MATCH(R$45,'Data Annex'!$K$1:$AN$1,0)),\"\")","v":7.036779E-3},{"$f":"IFERROR(INDEX('Data Annex'!$K$1:$AN$4997,MATCH(S$44&\"|\"&$B57,'Data Annex'!$K$1:$K$4997,0),MATCH(S$45,'Data Annex'!$K$1:$AN$1,0)),\"\")","v":7.6335214999999996E-3},{"$f":"IFERROR(INDEX('Data Annex'!$K$1:$AN$4997,MATCH(T$44&\"|\"&$B57,'Data Annex'!$K$1:$K$4997,0),MATCH(T$45,'Data Annex'!$K$1:$AN$1,0)),\"\")","v":7.2426017999999998E-3},{"$f":"IFERROR(INDEX('Data Annex'!$K$1:$AN$4997,MATCH(U$44&\"|\"&$B57,'Data Annex'!$K$1:$K$4997,0),MATCH(U$45,'Data Annex'!$K$1:$AN$1,0)),\"\")","v":1.1932784700000001E-2},{"$f":"IFERROR(INDEX('Data Annex'!$K$1:$AN$4997,MATCH(V$44&\"|\"&$B57,'Data Annex'!$K$1:$K$4997,0),MATCH(V$45,'Data Annex'!$K$1:$AN$1,0)),\"\")","v":9.5029560999999995E-3},"T12_1","T12_1"]
[7,"ES",null,"ES",{"$f":"IFERROR(INDEX('Data Annex'!$K$1:$AN$4997,MATCH(E$44&\"|\"&$B58,'Data Annex'!$K$1:$K$4997,0),MATCH(E$45,'Data Annex'!$K$1:$AN$1,0)),\"\")","v":2.9331618399999999E-2},{"$f":"IFERROR(INDEX('Data Annex'!$K$1:$AN$4997,MATCH(F$44&\"|\"&$B58,'Data Annex'!$K$1:$K$4997,0),MATCH(F$45,'Data Annex'!$K$1:$AN$1,0)),\"\")","v":3.2652933500000002E-2},{"$f":"IFERROR(INDEX('Data Annex'!$K$1:$AN$4997,MATCH(G$44&\"|\"&$B58,'Data Annex'!$K$1:$K$4997,0),MATCH(G$45,'Data Annex'!$K$1:$AN$1,0)),\"\")","v":0.11955517490000001},{"$f":"IFERROR(INDEX('Data Annex'!$K$1:$AN$4997,MATCH(H$44&\"|\"&$B58,'Data Annex'!$K$1:$K$4997,0),MATCH(H$45,'Data Annex'!$K$1:$AN$1,0)),\"\")","v":0.1127008548},{"$f":"IFERROR(INDEX('Data Annex'!$K$1:$AN$4997,MATCH(I$44&\"|\"&$B58,'Data Annex'!$K$1:$K$4997,0),MATCH(I$45,'Data Annex'!$K$1:$AN$1,0)),\"\")","v":4.6006508199999997E-2},{"$f":"IFERROR(INDEX('Data Annex'!$K$1:$AN$4997,MATCH(J$44&\"|\"&$B58,'Data Annex'!$K$1:$K$4997,0),MATCH(J$45,'Data Annex'!$K$1:$AN$1,0)),\"\")","v":4.4920472099999997E-2},{"$f":"IFERROR(INDEX('Data Annex'!$K$1:$AN$4997,MATCH(K$44&\"|\"&$B58,'Data Annex'!$K$1:$K$4997,0),MATCH(K$45,'Data Annex'!$K$1:$AN$1,0)),\"\")","v":3.0942875799999998E-2},{"$f":"IFERROR(INDEX('Data Annex'!$K$1:$AN$4997,MATCH(L$44&\"|\"&$B58,'Data Annex'!$K$1:$K$4997,0),MATCH(L$45,'Data Annex'!$K$1:$AN$1,0)),\"\")","v":3.1216693699999999E-2},{"$f":"IFERROR(INDEX('Data Annex'!$K$1:$AN$4997,MATCH(M$44&\"|\"&$B58,'Data Annex'!$K$1:$K$4997,0),MATCH(M$45,'Data Annex'!$K$1:$AN$1,0)),\"\")","v":2.6857603999999998E-3},{"$f":"IFERROR(INDEX('Data Annex'!$K$1:$AN$4997,MATCH(N$44&\"|\"&$B58,'Data Annex'!$K$1:$K$4997,0),MATCH(N$45,'Data Annex'!$K$1:$AN$1,0)),\"\")","v":3.1728883000000001E-3},{"$f":"IFERROR(INDEX('Data Annex'!$K$1:$AN$4997,MATCH(O$44&\"|\"&$B58,'Data Annex'!$K$1:$K$4997,0),MATCH(O$45,'Data Annex'!$K$1:$AN$1,0)),\"\")","v":6.3002971000000003E-3},{"$f":"IFERROR(INDEX('Data Annex'!$K$1:$AN$4997,MATCH(P$44&\"|\"&$B58,'Data Annex'!$K$1:$K$4997,0),MATCH(P$45,'Data Annex'!$K$1:$AN$1,0)),\"\")","v":5.9435703000000001E-3},{"$f":"IFERROR(INDEX('Data Annex'!$K$1:$AN$4997,MATCH(Q$44&\"|\"&$B58,'Data Annex'!$K$1:$K$4997,0),MATCH(Q$45,'Data Annex'!$K$1:$AN$1,0)),\"\")","v":1.8588033600000001E-2},{"$f":"IFERROR(INDEX('Data Annex'!$K$1:$AN$4997,MATCH(R$44&\"|\"&$B58,'Data Annex'!$K$1:$K$4997,0),MATCH(R$45,'Data Annex'!$K$1:$AN$1,0)),\"\")","v":1.5466057700000001E-2},{"$f":"IFERROR(INDEX('Data Annex'!$K$1:$AN$4997,MATCH(S$44&\"|\"&$B58,'Data Annex'!$K$1:$K$4997,0),MATCH(S$45,'Data Annex'!$K$1:$AN$1,0)),\"\")","v":7.9547996999999992E-3},{"$f":"IFERROR(INDEX('Data Annex'!$K$1:$AN$4997,MATCH(T$44&\"|\"&$B58,'Data Annex'!$K$1:$K$4997,0),MATCH(T$45,'Data Annex'!$K$1:$AN$1,0)),\"\")","v":7.1945561E-3},{"$f":"IFERROR(INDEX('Data Annex'!$K$1:$AN$4997,MATCH(U$44&\"|\"&$B58,'Data Annex'!$K$1:$K$4997,0),MATCH(U$45,'Data Annex'!$K$1:$AN$1,0)),\"\")","v":4.8469256000000002E-2},{"$f":"IFERROR(INDEX('Data Annex'!$K$1:$AN$4997,MATCH(V$44&\"|\"&$B58,'Data Annex'!$K$1:$K$4997,0),MATCH(V$45,'Data Annex'!$K$1:$AN$1,0)),\"\")","v":4.3907208500000003E-2},"T12_1","T12_1"]
[8,"FI",null,"FI",{"$f":"IFERROR(INDEX('Data Annex'!$K$1:$AN$4997,MATCH(E$44&\"|\"&$B59,'Data Annex'!$K$1:$K$4997,0),MATCH(E$45,'Data Annex'!$K$1:$AN$1,0)),\"\")","v":5.7023968500000001E-2},{"$f":"IFERROR(INDEX('Data Annex'!$K$1:$AN$4997,MATCH(F$44&\"|\"&$B59,'Data Annex'!$K$1:$K$4997,0),MATCH(F$45,'Data Annex'!$K$1:$AN$1,0)),\"\")","v":5.9450848200000003E-2},{"$f":"IFERROR(INDEX('Data Annex'!$K$1:$AN$4997,MATCH(G$44&\"|\"&$B59,'Data Annex'!$K$1:$K$4997,0),MATCH(G$45,'Data Annex'!$K$1:$AN$1,0)),\"\")","v":0.40014936429999998},{"$f":"IFERROR(INDEX('Data Annex'!$K$1:$AN$4997,MATCH(H$44&\"|\"&$B59,'Data Annex'!$K$1:$K$4997,0),MATCH(H$45,'Data Annex'!$K$1:$AN$1,0)),\"\")","v":0.37915814819999999},{"$f":"IFERROR(INDEX('Data Annex'!$K$1:$AN$4997,MATCH(I$44&\"|\"&$B59,'Data Annex'!$K$1:$K$4997,0),MATCH(I$45,'Data Annex'!$K$1:$AN$1,0)),\"\")","v":6.2696329699999997E-2},{"$f":"IFERROR(INDEX('Data Annex'!$K$1:$AN$4997,MATCH(J$44&\"|\"&$B59,'Data Annex'!$K$1:$K$4997,0),MATCH(J$45,'Data Annex'!$K$1:$AN$1,0)),\"\")","v":6.1613502600000002E-2},{"$f":"IFERROR(INDEX('Data Annex'!$K$1:$AN$4997,MATCH(K$44&\"|\"&$B59,'Data Annex'!$K$1:$K$4997,0),MATCH(K$45,'Data Annex'!$K$1:$AN$1,0)),\"\")","v":2.1409641300000001E-2},{"$f":"IFERROR(INDEX('Data Annex'!$K$1:$AN$4997,MATCH(L$44&\"|\"&$B59,'Data Annex'!$K$1:$K$4997,0),MATCH(L$45,'Data Annex'!$K$1:$AN$1,0)),\"\")","v":2.29360043E-2},{"$f":"IFERROR(INDEX('Data Annex'!$K$1:$AN$4997,MATCH(M$44&\"|\"&$B59,'Data Annex'!$K$1:$K$4997,0),MATCH(M$45,'Data Annex'!$K$1:$AN$1,0)),\"\")","v":4.076765E-4},{"$f":"IFERROR(INDEX('Data Annex'!$K$1:$AN$4997,MATCH(N$44&\"|\"&$B59,'Data Annex'!$K$1:$K$4997,0),MATCH(N$45,'Data Annex'!$K$1:$AN$1,0)),\"\")","v":6.0131479999999998E-4},{"$f":"IFERROR(INDEX('Data Annex'!$K$1:$AN$4997,MATCH(O$44&\"|\"&$B59,'Data Annex'!$K$1:$K$4997,0),MATCH(O$45,'Data Annex'!$K$1:$AN$1,0)),\"\")","v":2.6819559000000001E-3},{"$f":"IFERROR(INDEX('Data Annex'!$K$1:$AN$4997,MATCH(P$44&\"|\"&$B59,'Data Annex'!$K$1:$K$4997,0),MATCH(P$45,'Data Annex'!$K$1:$AN$1,0)),\"\")","v":2.6864778999999999E-3},{"$f":"IFERROR(INDEX('Data Annex'!$K$1:$AN$4997,MATCH(Q$44&\"|\"&$B59,'Data Annex'!$K$1:$K$4997,0),MATCH(Q$45,'Data Annex'!$K$1:$AN$1,0)),\"\")","v":9.6327006999999999E-3},{"$f":"IFERROR(INDEX('Data Annex'!$K$1:$AN$4997,MATCH(R$44&\"|\"&$B59,'Data Annex'!$K$1:$K$4997,0),MATCH(R$45,'Data Annex'!$K$1:$AN$1,0)),\"\")","v":9.1512986999999994E-3},{"$f":"IFERROR(INDEX('Data Annex'!$K$1:$AN$4997,MATCH(S$44&\"|\"&$B59,'Data Annex'!$K$1:$K$4997,0),MATCH(S$45,'Data Annex'!$K$1:$AN$1,0)),\"\")","v":6.0735457000000003E-3},{"$f":"IFERROR(INDEX('Data Annex'!$K$1:$AN$4997,MATCH(T$44&\"|\"&$B59,'Data Annex'!$K$1:$K$4997,0),MATCH(T$45,'Data Annex'!$K$1:$AN$1,0)),\"\")","v":6.153716E-3},{"$f":"IFERROR(INDEX('Data Annex'!$K$1:$AN$4997,MATCH(U$44&\"|\"&$B59,'Data Annex'!$K$1:$K$4997,0),MATCH(U$45,'Data Annex'!$K$1:$AN$1,0)),\"\")","v":5.9560708999999998E-3},{"$f":"IFERROR(INDEX('Data Annex'!$K$1:$AN$4997,MATCH(V$44&\"|\"&$B59,'Data Annex'!$K$1:$K$4997,0),MATCH(V$45,'Data Annex'!$K$1:$AN$1,0)),\"\")","v":1.01794546E-2},"T12_1","T12_1"]
[9,"FR",null,"FR",{"$f":"IFERROR(INDEX('Data Annex'!$K$1:$AN$4997,MATCH(E$44&\"|\"&$B60,'Data Annex'!$K$1:$K$4997,0),MATCH(E$45,'Data Annex'!$K$1:$AN$1,0)),\"\")","v":5.2470368500000003E-2},{"$f":"IFERROR(INDEX('Data Annex'!$K$1:$AN$4997,MATCH(F$44&\"|\"&$B60,'Data Annex'!$K$1:$K$4997,0),MATCH(F$45,'Data Annex'!$K$1:$AN$1,0)),\"\")","v":6.5027254600000001E-2},{"$f":"IFERROR(INDEX('Data Annex'!$K$1:$AN$4997,MATCH(G$44&\"|\"&$B60,'Data Annex'!$K$1:$K$4997,0),MATCH(G$45,'Data Annex'!$K$1:$AN$1,0)),\"\")","v":0.22048948509999999},{"$f":"IFERROR(INDEX('Data Annex'!$K$1:$AN$4997,MATCH(H$44&\"|\"&$B60,'Data Annex'!$K$1:$K$4997,0),MATCH(H$45,'Data Annex'!$K$1:$AN$1,0)),\"\")","v":0.22336497499999999},{"$f":"IFERROR(INDEX('Data Annex'!$K$1:$AN$4997,MATCH(I$44&\"|\"&$B60,'Data Annex'!$K$1:$K$4997,0),MATCH(I$45,'Data Annex'!$K$1:$AN$1,0)),\"\")","v":5.2339375799999997E-2},{"$f":"IFERROR(INDEX('Data Annex'!$K$1:$AN$4997,MATCH(J$44&\"|\"&$B60,'Data Annex'!$K$1:$K$4997,0),MATCH(J$45,'Data Annex'!$K$1:$AN$1,0)),\"\")","v":5.2412141299999999E-2},{"$f":"IFERROR(INDEX('Data Annex'!$K$1:$AN$4997,MATCH(K$44&\"|\"&$B60,'Data Annex'!$K$1:$K$4997,0),MATCH(K$45,'Data Annex'!$K$1:$AN$1,0)),\"\")","v":5.7177708299999998E-2},{"$f":"IFERROR(INDEX('Data Annex'!$K$1:$AN$4997,MATCH(L$44&\"|\"&$B60,'Data Annex'!$K$1:$K$4997,0),MATCH(L$45,'Data Annex'!$K$1:$AN$1,0)),\"\")","v":5.5973204300000003E-2},{"$f":"IFERROR(INDEX('Data Annex'!$K$1:$AN$4997,MATCH(M$44&\"|\"&$B60,'Data Annex'!$K$1:$K$4997,0),MATCH(M$45,'Data Annex'!$K$1:$AN$1,0)),\"\")","v":3.7703530000000002E-3},{"$f":"IFERROR(INDEX('Data Annex'!$K$1:$AN$4997,MATCH(N$44&\"|\"&$B60,'Data Annex'!$K$1:$K$4997,0),MATCH(N$45,'Data Annex'!$K$1:$AN$1,0)),\"\")","v":2.8442862999999998E-3},{"$f":"IFERROR(INDEX('Data Annex'!$K$1:$AN$4997,MATCH(O$44&\"|\"&$B60,'Data Annex'!$K$1:$K$4997,0),MATCH(O$45,'Data Annex'!$K$1:$AN$1,0)),\"\")","v":3.4415349999999999E-3},{"$f":"IFERROR(INDEX('Data Annex'!$K$1:$AN$4997,MATCH(P$44&\"|\"&$B60,'Data Annex'!$K$1:$K$4997,0),MATCH(P$45,'Data Annex'!$K$1:$AN$1,0)),\"\")","v":3.5197174E-3},{"$f":"IFERROR(INDEX('Data Annex'!$K$1:$AN$4997,MATCH(Q$44&\"|\"&$B60,'Data Annex'!$K$1:$K$4997,0),MATCH(Q$45,'Data Annex'!$K$1:$AN$1,0)),\"\")","v":1.9357490599999999E-2},{"$f":"IFERROR(INDEX('Data Annex'!$K$1:$AN$4997,MATCH(R$44&\"|\"&$B60,'Data Annex'!$K$1:$K$4997,0),MATCH(R$45,'Data Annex'!$K$1:$AN$1,0)),\"\")","v":1.8534270799999999E-2},{"$f":"IFERROR(INDEX('Data Annex'!$K$1:$AN$4997,MATCH(S$44&\"|\"&$B60,'Data Annex'!$K$1:$K$4997,0),MATCH(S$45,'Data Annex'!$K$1:$AN$1,0)),\"\")","v":6.0322040999999998E-3},{"$f":"IFERROR(INDEX('Data Annex'!$K$1:$AN$4997,MATCH(T$44&\"|\"&$B60,'Data Annex'!$K$1:$K$4997,0),MATCH(T$45,'Data Annex'!$K$1:$AN$1,0)),\"\")","v":6.2526641999999999E-3},{"$f":"IFERROR(INDEX('Data Annex'!$K$1:$AN$4997,MATCH(U$44&\"|\"&$B60,'Data Annex'!$K$1:$K$4997,0),MATCH(U$45,'Data Annex'!$K$1:$AN$1,0)),\"\")","v":6.07157324E-2},{"$f":"IFERROR(INDEX('Data Annex'!$K$1:$AN$4997,MATCH(V$44&\"|\"&$B60,'Data Annex'!$K$1:$K$4997,0),MATCH(V$45,'Data Annex'!$K$1:$AN$1,0)),\"\")","v":4.9375498300000001E-2},"T12_1","T12_1"]
[11,"GR",null,"GR",{"$f":"IFERROR(INDEX('Data Annex'!$K$1:$AN$4997,MATCH(E$44&\"|\"&$B61,'Data Annex'!$K$1:$K$4997,0),MATCH(E$45,'Data Annex'!$K$1:$AN$1,0)),\"\")","v":1.4953540000000001E-4},{"$f":"IFERROR(INDEX('Data Annex'!$K$1:$AN$4997,MATCH(F$44&\"|\"&$B61,'Data Annex'!$K$1:$K$4997,0),MATCH(F$45,'Data Annex'!$K$1:$AN$1,0)),\"\")","v":1.502652E-4},{"$f":"IFERROR(INDEX('Data Annex'!$K$1:$AN$4997,MATCH(G$44&\"|\"&$B61,'Data Annex'!$K$1:$K$4997,0),MATCH(G$45,'Data Annex'!$K$1:$AN$1,0)),\"\")","v":7.1696530800000005E-2},{"$f":"IFERROR(INDEX('Data Annex'!$K$1:$AN$4997,MATCH(H$44&\"|\"&$B61,'Data Annex'!$K$1:$K$4997,0),MATCH(H$45,'Data Annex'!$K$1:$AN$1,0)),\"\")","v":7.0308208699999999E-2},{"$f":"IFERROR(INDEX('Data Annex'!$K$1:$AN$4997,MATCH(I$44&\"|\"&$B61,'Data Annex'!$K$1:$K$4997,0),MATCH(I$45,'Data Annex'!$K$1:$AN$1,0)),\"\")","v":2.0295331900000001E-2},{"$f":"IFERROR(INDEX('Data Annex'!$K$1:$AN$4997,MATCH(J$44&\"|\"&$B61,'Data Annex'!$K$1:$K$4997,0),MATCH(J$45,'Data Annex'!$K$1:$AN$1,0)),\"\")","v":2.0648794099999999E-2},{"$f":"IFERROR(INDEX('Data Annex'!$K$1:$AN$4997,MATCH(K$44&\"|\"&$B61,'Data Annex'!$K$1:$K$4997,0),MATCH(K$45,'Data Annex'!$K$1:$AN$1,0)),\"\")","v":1.3790474400000001E-2},{"$f":"IFERROR(INDEX('Data Annex'!$K$1:$AN$4997,MATCH(L$44&\"|\"&$B61,'Data Annex'!$K$1:$K$4997,0),MATCH(L$45,'Data Annex'!$K$1:$AN$1,0)),\"\")","v":1.4073224400000001E-2},{"$f":"IFERROR(INDEX('Data Annex'!$K$1:$AN$4997,MATCH(M$44&\"|\"&$B61,'Data Annex'!$K$1:$K$4997,0),MATCH(M$45,'Data Annex'!$K$1:$AN$1,0)),\"\")","v":8.7310299999999997E-5},{"$f":"IFERROR(INDEX('Data Annex'!$K$1:$AN$4997,MATCH(N$44&\"|\"&$B61,'Data Annex'!$K$1:$K$4997,0),MATCH(N$45,'Data Annex'!$K$1:$AN$1,0)),\"\")","v":1.0799899999999999E-4},{"$f":"IFERROR(INDEX('Data Annex'!$K$1:$AN$4997,MATCH(O$44&\"|\"&$B61,'Data Annex'!$K$1:$K$4997,0),MATCH(O$45,'Data Annex'!$K$1:$AN$1,0)),\"\")","v":2.3495428999999999E-3},{"$f":"IFERROR(INDEX('Data Annex'!$K$1:$AN$4997,MATCH(P$44&\"|\"&$B61,'Data Annex'!$K$1:$K$4997,0),MATCH(P$45,'Data Annex'!$K$1:$AN$1,0)),\"\")","v":2.6559961999999999E-3},{"$f":"IFERROR(INDEX('Data Annex'!$K$1:$AN$4997,MATCH(Q$44&\"|\"&$B61,'Data Annex'!$K$1:$K$4997,0),MATCH(Q$45,'Data Annex'!$K$1:$AN$1,0)),\"\")","v":1.3927254999999999E-2},{"$f":"IFERROR(INDEX('Data Annex'!$K$1:$AN$4997,MATCH(R$44&\"|\"&$B61,'Data Annex'!$K$1:$K$4997,0),MATCH(R$45,'Data Annex'!$K$1:$AN$1,0)),\"\")","v":1.51726239E-2},{"$f":"IFERROR(INDEX('Data Annex'!$K$1:$AN$4997,MATCH(S$44&\"|\"&$B61,'Data Annex'!$K$1:$K$4997,0),MATCH(S$45,'Data Annex'!$K$1:$AN$1,0)),\"\")","v":1.6355264599999999E-2},{"$f":"IFERROR(INDEX('Data Annex'!$K$1:$AN$4997,MATCH(T$44&\"|\"&$B61,'Data Annex'!$K$1:$K$4997,0),MATCH(T$45,'Data Annex'!$K$1:$AN$1,0)),\"\")","v":1.27942473E-2},{"$f":"IFERROR(INDEX('Data Annex'!$K$1:$AN$4997,MATCH(U$44&\"|\"&$B61,'Data Annex'!$K$1:$K$4997,0),MATCH(U$45,'Data Annex'!$K$1:$AN$1,0)),\"\")","v":2.4806367499999999E-2},{"$f":"IFERROR(INDEX('Data Annex'!$K$1:$AN$4997,MATCH(V$44&\"|\"&$B61,'Data Annex'!$K$1:$K$4997,0),MATCH(V$45,'Data Annex'!$K$1:$AN$1,0)),\"\")","v":2.69035753E-2},"T12_1","T12_1"]
[12,"HR",null,"HR",{"$f":"IFERROR(INDEX('Data Annex'!$K$1:$AN$4997,MATCH(E$44&\"|\"&$B62,'Data Annex'!$K$1:$K$4997,0),MATCH(E$45,'Data Annex'!$K$1:$AN$1,0)),\"\")","v":4.8610785000000002E-3},{"$f":"IFERROR(INDEX('Data Annex'!$K$1:$AN$4997,MATCH(F$44&\"|\"&$B62,'Data Annex'!$K$1:$K$4997,0),MATCH(F$45,'Data Annex'!$K$1:$AN$1,0)),\"\")","v":4.7403677999999999E-3},{"$f":"IFERROR(INDEX('Data Annex'!$K$1:$AN$4997,MATCH(G$44&\"|\"&$B62,'Data Annex'!$K$1:$K$4997,0),MATCH(G$45,'Data Annex'!$K$1:$AN$1,0)),\"\")","v":7.5243732499999993E-2},{"$f":"IFERROR(INDEX('Data Annex'!$K$1:$AN$4997,MATCH(H$44&\"|\"&$B62,'Data Annex'!$K$1:$K$4997,0),MATCH(H$45,'Data Annex'!$K$1:$AN$1,0)),\"\")","v":6.6913075099999997E-2},{"$f":"IFERROR(INDEX('Data Annex'!$K$1:$AN$4997,MATCH(I$44&\"|\"&$B62,'Data Annex'!$K$1:$K$4997,0),MATCH(I$45,'Data Annex'!$K$1:$AN$1,0)),\"\")","v":5.01753141E-2},{"$f":"IFERROR(INDEX('Data Annex'!$K$1:$AN$4997,MATCH(J$44&\"|\"&$B62,'Data Annex'!$K$1:$K$4997,0),MATCH(J$45,'Data Annex'!$K$1:$AN$1,0)),\"\")","v":4.5976216100000002E-2},{"$f":"IFERROR(INDEX('Data Annex'!$K$1:$AN$4997,MATCH(K$44&\"|\"&$B62,'Data Annex'!$K$1:$K$4997,0),MATCH(K$45,'Data Annex'!$K$1:$AN$1,0)),\"\")","v":2.2566899500000001E-2},{"$f":"IFERROR(INDEX('Data Annex'!$K$1:$AN$4997,MATCH(L$44&\"|\"&$B62,'Data Annex'!$K$1:$K$4997,0),MATCH(L$45,'Data Annex'!$K$1:$AN$1,0)),\"\")","v":2.1004960900000001E-2},{"$f":"IFERROR(INDEX('Data Annex'!$K$1:$AN$4997,MATCH(M$44&\"|\"&$B62,'Data Annex'!$K$1:$K$4997,0),MATCH(M$45,'Data Annex'!$K$1:$AN$1,0)),\"\")","v":4.7865039E-3},{"$f":"IFERROR(INDEX('Data Annex'!$K$1:$AN$4997,MATCH(N$44&\"|\"&$B62,'Data Annex'!$K$1:$K$4997,0),MATCH(N$45,'Data Annex'!$K$1:$AN$1,0)),\"\")","v":4.5062694000000004E-3},{"$f":"IFERROR(INDEX('Data Annex'!$K$1:$AN$4997,MATCH(O$44&\"|\"&$B62,'Data Annex'!$K$1:$K$4997,0),MATCH(O$45,'Data Annex'!$K$1:$AN$1,0)),\"\")","v":2.4033313E-3},{"$f":"IFERROR(INDEX('Data Annex'!$K$1:$AN$4997,MATCH(P$44&\"|\"&$B62,'Data Annex'!$K$1:$K$4997,0),MATCH(P$45,'Data Annex'!$K$1:$AN$1,0)),\"\")","v":2.2554465000000001E-3},{"$f":"IFERROR(INDEX('Data Annex'!$K$1:$AN$4997,MATCH(Q$44&\"|\"&$B62,'Data Annex'!$K$1:$K$4997,0),MATCH(Q$45,'Data Annex'!$K$1:$AN$1,0)),\"\")","v":6.9393487000000004E-3},{"$f":"IFERROR(INDEX('Data Annex'!$K$1:$AN$4997,MATCH(R$44&\"|\"&$B62,'Data Annex'!$K$1:$K$4997,0),MATCH(R$45,'Data Annex'!$K$1:$AN$1,0)),\"\")","v":6.9950244E-3},{"$f":"IFERROR(INDEX('Data Annex'!$K$1:$AN$4997,MATCH(S$44&\"|\"&$B62,'Data Annex'!$K$1:$K$4997,0),MATCH(S$45,'Data Annex'!$K$1:$AN$1,0)),\"\")","v":8.7926041999999999E-3},{"$f":"IFERROR(INDEX('Data Annex'!$K$1:$AN$4997,MATCH(T$44&\"|\"&$B62,'Data Annex'!$K$1:$K$4997,0),MATCH(T$45,'Data Annex'!$K$1:$AN$1,0)),\"\")","v":8.6623004999999993E-3},{"$f":"IFERROR(INDEX('Data Annex'!$K$1:$AN$4997,MATCH(U$44&\"|\"&$B62,'Data Annex'!$K$1:$K$4997,0),MATCH(U$45,'Data Annex'!$K$1:$AN$1,0)),\"\")","v":4.0373611999999998E-3},{"$f":"IFERROR(INDEX('Data Annex'!$K$1:$AN$4997,MATCH(V$44&\"|\"&$B62,'Data Annex'!$K$1:$K$4997,0),MATCH(V$45,'Data Annex'!$K$1:$AN$1,0)),\"\")","v":3.8064292000000001E-3},"T12_1","T12_1"]
[13,"HU",null,"HU",{"$f":"IFERROR(INDEX('Data Annex'!$K$1:$AN$4997,MATCH(E$44&\"|\"&$B63,'Data Annex'!$K$1:$K$4997,0),MATCH(E$45,'Data Annex'!$K$1:$AN$1,0)),\"\")","v":2.0806352899999998E-2},{"$f":"IFERROR(INDEX('Data Annex'!$K$1:$AN$4997,MATCH(F$44&\"|\"&$B63,'Data Annex'!$K$1:$K$4997,0),MATCH(F$45,'Data Annex'!$K$1:$AN$1,0)),\"\")","v":1.8884653500000001E-2},{"$f":"IFERROR(INDEX('Data Annex'!$K$1:$AN$4997,MATCH(G$44&\"|\"&$B63,'Data Annex'!$K$1:$K$4997,0),MATCH(G$45,'Data Annex'!$K$1:$AN$1,0)),\"\")","v":0.1342509757},{"$f":"IFERROR(INDEX('Data Annex'!$K$1:$AN$4997,MATCH(H$44&\"|\"&$B63,'Data Annex'!$K$1:$K$4997,0),MATCH(H$45,'Data Annex'!$K$1:$AN$1,0)),\"\")","v":0.1307952024},{"$f":"IFERROR(INDEX('Data Annex'!$K$1:$AN$4997,MATCH(I$44&\"|\"&$B63,'Data Annex'!$K$1:$K$4997,0),MATCH(I$45,'Data Annex'!$K$1:$AN$1,0)),\"\")","v":2.6808273699999999E-2},{"$f":"IFERROR(INDEX('Data Annex'!$K$1:$AN$4997,MATCH(J$44&\"|\"&$B63,'Data Annex'!$K$1:$K$4997,0),MATCH(J$45,'Data Annex'!$K$1:$AN$1,0)),\"\")","v":2.62065075E-2},{"$f":"IFERROR(INDEX('Data Annex'!$K$1:$AN$4997,MATCH(K$44&\"|\"&$B63,'Data Annex'!$K$1:$K$4997,0),MATCH(K$45,'Data Annex'!$K$1:$AN$1,0)),\"\")","v":3.0246655899999999E-2},{"$f":"IFERROR(INDEX('Data Annex'!$K$1:$AN$4997,MATCH(L$44&\"|\"&$B63,'Data Annex'!$K$1:$K$4997,0),MATCH(L$45,'Data Annex'!$K$1:$AN$1,0)),\"\")","v":2.7779589699999999E-2},{"$f":"IFERROR(INDEX('Data Annex'!$K$1:$AN$4997,MATCH(M$44&\"|\"&$B63,'Data Annex'!$K$1:$K$4997,0),MATCH(M$45,'Data Annex'!$K$1:$AN$1,0)),\"\")","v":5.8184799999999999E-5},{"$f":"IFERROR(INDEX('Data Annex'!$K$1:$AN$4997,MATCH(N$44&\"|\"&$B63,'Data Annex'!$K$1:$K$4997,0),MATCH(N$45,'Data Annex'!$K$1:$AN$1,0)),\"\")","v":7.2522999999999997E-5},{"$f":"IFERROR(INDEX('Data Annex'!$K$1:$AN$4997,MATCH(O$44&\"|\"&$B63,'Data Annex'!$K$1:$K$4997,0),MATCH(O$45,'Data Annex'!$K$1:$AN$1,0)),\"\")","v":1.8338929E-3},{"$f":"IFERROR(INDEX('Data Annex'!$K$1:$AN$4997,MATCH(P$44&\"|\"&$B63,'Data Annex'!$K$1:$K$4997,0),MATCH(P$45,'Data Annex'!$K$1:$AN$1,0)),\"\")","v":1.7317489000000001E-3},{"$f":"IFERROR(INDEX('Data Annex'!$K$1:$AN$4997,MATCH(Q$44&\"|\"&$B63,'Data Annex'!$K$1:$K$4997,0),MATCH(Q$45,'Data Annex'!$K$1:$AN$1,0)),\"\")","v":5.0757933E-3},{"$f":"IFERROR(INDEX('Data Annex'!$K$1:$AN$4997,MATCH(R$44&\"|\"&$B63,'Data Annex'!$K$1:$K$4997,0),MATCH(R$45,'Data Annex'!$K$1:$AN$1,0)),\"\")","v":5.3754283000000003E-3},{"$f":"IFERROR(INDEX('Data Annex'!$K$1:$AN$4997,MATCH(S$44&\"|\"&$B63,'Data Annex'!$K$1:$K$4997,0),MATCH(S$45,'Data Annex'!$K$1:$AN$1,0)),\"\")","v":2.2835417999999999E-3},{"$f":"IFERROR(INDEX('Data Annex'!$K$1:$AN$4997,MATCH(T$44&\"|\"&$B63,'Data Annex'!$K$1:$K$4997,0),MATCH(T$45,'Data Annex'!$K$1:$AN$1,0)),\"\")","v":2.1074302E-3},{"$f":"IFERROR(INDEX('Data Annex'!$K$1:$AN$4997,MATCH(U$44&\"|\"&$B63,'Data Annex'!$K$1:$K$4997,0),MATCH(U$45,'Data Annex'!$K$1:$AN$1,0)),\"\")","v":2.41774573E-2},{"$f":"IFERROR(INDEX('Data Annex'!$K$1:$AN$4997,MATCH(V$44&\"|\"&$B63,'Data Annex'!$K$1:$K$4997,0),MATCH(V$45,'Data Annex'!$K$1:$AN$1,0)),\"\")","v":1.8819683300000001E-2},"T12_1","T12_1"]
[14,"IE",null,"IE",{"$f":"IFERROR(INDEX('Data Annex'!$K$1:$AN$4997,MATCH(E$44&\"|\"&$B64,'Data Annex'!$K$1:$K$4997,0),MATCH(E$45,'Data Annex'!$K$1:$AN$1,0)),\"\")","v":1.0712632E-2},{"$f":"IFERROR(INDEX('Data Annex'!$K$1:$AN$4997,MATCH(F$44&\"|\"&$B64,'Data Annex'!$K$1:$K$4997,0),MATCH(F$45,'Data Annex'!$K$1:$AN$1,0)),\"\")","v":1.4001396399999999E-2},{"$f":"IFERROR(INDEX('Data Annex'!$K$1:$AN$4997,MATCH(G$44&\"|\"&$B64,'Data Annex'!$K$1:$K$4997,0),MATCH(G$45,'Data Annex'!$K$1:$AN$1,0)),\"\")","v":0.2271594559},{"$f":"IFERROR(INDEX('Data Annex'!$K$1:$AN$4997,MATCH(H$44&\"|\"&$B64,'Data Annex'!$K$1:$K$4997,0),MATCH(H$45,'Data Annex'!$K$1:$AN$1,0)),\"\")","v":0.2346156509},{"$f":"IFERROR(INDEX('Data Annex'!$K$1:$AN$4997,MATCH(I$44&\"|\"&$B64,'Data Annex'!$K$1:$K$4997,0),MATCH(I$45,'Data Annex'!$K$1:$AN$1,0)),\"\")","v":2.3581477100000001E-2},{"$f":"IFERROR(INDEX('Data Annex'!$K$1:$AN$4997,MATCH(J$44&\"|\"&$B64,'Data Annex'!$K$1:$K$4997,0),MATCH(J$45,'Data Annex'!$K$1:$AN$1,0)),\"\")","v":2.5747944299999999E-2},{"$f":"IFERROR(INDEX('Data Annex'!$K$1:$AN$4997,MATCH(K$44&\"|\"&$B64,'Data Annex'!$K$1:$K$4997,0),MATCH(K$45,'Data Annex'!$K$1:$AN$1,0)),\"\")","v":4.96364875E-2},{"$f":"IFERROR(INDEX('Data Annex'!$K$1:$AN$4997,MATCH(L$44&\"|\"&$B64,'Data Annex'!$K$1:$K$4997,0),MATCH(L$45,'Data Annex'!$K$1:$AN$1,0)),\"\")","v":5.1512539900000001E-2},{"$f":"IFERROR(INDEX('Data Annex'!$K$1:$AN$4997,MATCH(M$44&\"|\"&$B64,'Data Annex'!$K$1:$K$4997,0),MATCH(M$45,'Data Annex'!$K$1:$AN$1,0)),\"\")","v":1.788511E-10},{"$f":"IFERROR(INDEX('Data Annex'!$K$1:$AN$4997,MATCH(N$44&\"|\"&$B64,'Data Annex'!$K$1:$K$4997,0),MATCH(N$45,'Data Annex'!$K$1:$AN$1,0)),\"\")","v":1.764526E-10},{"$f":"IFERROR(INDEX('Data Annex'!$K$1:$AN$4997,MATCH(O$44&\"|\"&$B64,'Data Annex'!$K$1:$K$4997,0),MATCH(O$45,'Data Annex'!$K$1:$AN$1,0)),\"\")","v":1.2587943000000001E-2},{"$f":"IFERROR(INDEX('Data Annex'!$K$1:$AN$4997,MATCH(P$44&\"|\"&$B64,'Data Annex'!$K$1:$K$4997,0),MATCH(P$45,'Data Annex'!$K$1:$AN$1,0)),\"\")","v":1.26934727E-2},{"$f":"IFERROR(INDEX('Data Annex'!$K$1:$AN$4997,MATCH(Q$44&\"|\"&$B64,'Data Annex'!$K$1:$K$4997,0),MATCH(Q$45,'Data Annex'!$K$1:$AN$1,0)),\"\")","v":4.8248661999999998E-2},{"$f":"IFERROR(INDEX('Data Annex'!$K$1:$AN$4997,MATCH(R$44&\"|\"&$B64,'Data Annex'!$K$1:$K$4997,0),MATCH(R$45,'Data Annex'!$K$1:$AN$1,0)),\"\")","v":4.8970861099999999E-2},{"$f":"IFERROR(INDEX('Data Annex'!$K$1:$AN$4997,MATCH(S$44&\"|\"&$B64,'Data Annex'!$K$1:$K$4997,0),MATCH(S$45,'Data Annex'!$K$1:$AN$1,0)),\"\")","v":1.7966524399999999E-2},{"$f":"IFERROR(INDEX('Data Annex'!$K$1:$AN$4997,MATCH(T$44&\"|\"&$B64,'Data Annex'!$K$1:$K$4997,0),MATCH(T$45,'Data Annex'!$K$1:$AN$1,0)),\"\")","v":1.55823049E-2},{"$f":"IFERROR(INDEX('Data Annex'!$K$1:$AN$4997,MATCH(U$44&\"|\"&$B64,'Data Annex'!$K$1:$K$4997,0),MATCH(U$45,'Data Annex'!$K$1:$AN$1,0)),\"\")","v":2.71872747E-2},{"$f":"IFERROR(INDEX('Data Annex'!$K$1:$AN$4997,MATCH(V$44&\"|\"&$B64,'Data Annex'!$K$1:$K$4997,0),MATCH(V$45,'Data Annex'!$K$1:$AN$1,0)),\"\")","v":2.5658770599999998E-2},"T12_1","T12_1"]
[15,"IS",null,"IS",{"$f":"IFERROR(INDEX('Data Annex'!$K$1:$AN$4997,MATCH(E$44&\"|\"&$B65,'Data Annex'!$K$1:$K$4997,0),MATCH(E$45,'Data Annex'!$K$1:$AN$1,0)),\"\")","v":1.8375497800000001E-2},{"$f":"IFERROR(INDEX('Data Annex'!$K$1:$AN$4997,MATCH(F$44&\"|\"&$B65,'Data Annex'!$K$1:$K$4997,0),MATCH(F$45,'Data Annex'!$K$1:$AN$1,0)),\"\")","v":2.0483813300000001E-2},{"$f":"IFERROR(INDEX('Data Annex'!$K$1:$AN$4997,MATCH(G$44&\"|\"&$B65,'Data Annex'!$K$1:$K$4997,0),MATCH(G$45,'Data Annex'!$K$1:$AN$1,0)),\"\")","v":0.2305045926},{"$f":"IFERROR(INDEX('Data Annex'!$K$1:$AN$4997,MATCH(H$44&\"|\"&$B65,'Data Annex'!$K$1:$K$4997,0),MATCH(H$45,'Data Annex'!$K$1:$AN$1,0)),\"\")","v":0.233129062},{"$f":"IFERROR(INDEX('Data Annex'!$K$1:$AN$4997,MATCH(I$44&\"|\"&$B65,'Data Annex'!$K$1:$K$4997,0),MATCH(I$45,'Data Annex'!$K$1:$AN$1,0)),\"\")","v":9.3164340999999998E-3},{"$f":"IFERROR(INDEX('Data Annex'!$K$1:$AN$4997,MATCH(J$44&\"|\"&$B65,'Data Annex'!$K$1:$K$4997,0),MATCH(J$45,'Data Annex'!$K$1:$AN$1,0)),\"\")","v":9.4008706999999993E-3},{"$f":"IFERROR(INDEX('Data Annex'!$K$1:$AN$4997,MATCH(K$44&\"|\"&$B65,'Data Annex'!$K$1:$K$4997,0),MATCH(K$45,'Data Annex'!$K$1:$AN$1,0)),\"\")","v":4.4918469000000003E-2},{"$f":"IFERROR(INDEX('Data Annex'!$K$1:$AN$4997,MATCH(L$44&\"|\"&$B65,'Data Annex'!$K$1:$K$4997,0),MATCH(L$45,'Data Annex'!$K$1:$AN$1,0)),\"\")","v":4.4714308799999998E-2},{"$f":"IFERROR(INDEX('Data Annex'!$K$1:$AN$4997,MATCH(M$44&\"|\"&$B65,'Data Annex'!$K$1:$K$4997,0),MATCH(M$45,'Data Annex'!$K$1:$AN$1,0)),\"\")","v":7.3959299999999995E-5},{"$f":"IFERROR(INDEX('Data Annex'!$K$1:$AN$4997,MATCH(N$44&\"|\"&$B65,'Data Annex'!$K$1:$K$4997,0),MATCH(N$45,'Data Annex'!$K$1:$AN$1,0)),\"\")","v":8.2457600000000001E-5},{"$f":"IFERROR(INDEX('Data Annex'!$K$1:$AN$4997,MATCH(O$44&\"|\"&$B65,'Data Annex'!$K$1:$K$4997,0),MATCH(O$45,'Data Annex'!$K$1:$AN$1,0)),\"\")","v":2.3500799E-3},{"$f":"IFERROR(INDEX('Data Annex'!$K$1:$AN$4997,MATCH(P$44&\"|\"&$B65,'Data Annex'!$K$1:$K$4997,0),MATCH(P$45,'Data Annex'!$K$1:$AN$1,0)),\"\")","v":2.2883876E-3},{"$f":"IFERROR(INDEX('Data Annex'!$K$1:$AN$4997,MATCH(Q$44&\"|\"&$B65,'Data Annex'!$K$1:$K$4997,0),MATCH(Q$45,'Data Annex'!$K$1:$AN$1,0)),\"\")","v":3.6336519999999998E-3},{"$f":"IFERROR(INDEX('Data Annex'!$K$1:$AN$4997,MATCH(R$44&\"|\"&$B65,'Data Annex'!$K$1:$K$4997,0),MATCH(R$45,'Data Annex'!$K$1:$AN$1,0)),\"\")","v":3.7866928000000002E-3},{"$f":"IFERROR(INDEX('Data Annex'!$K$1:$AN$4997,MATCH(S$44&\"|\"&$B65,'Data Annex'!$K$1:$K$4997,0),MATCH(S$45,'Data Annex'!$K$1:$AN$1,0)),\"\")","v":7.4847272999999997E-3},{"$f":"IFERROR(INDEX('Data Annex'!$K$1:$AN$4997,MATCH(T$44&\"|\"&$B65,'Data Annex'!$K$1:$K$4997,0),MATCH(T$45,'Data Annex'!$K$1:$AN$1,0)),\"\")","v":8.0728625999999994E-3},{"$f":"IFERROR(INDEX('Data Annex'!$K$1:$AN$4997,MATCH(U$44&\"|\"&$B65,'Data Annex'!$K$1:$K$4997,0),MATCH(U$45,'Data Annex'!$K$1:$AN$1,0)),\"\")","v":3.7023582999999999E-3},{"$f":"IFERROR(INDEX('Data Annex'!$K$1:$AN$4997,MATCH(V$44&\"|\"&$B65,'Data Annex'!$K$1:$K$4997,0),MATCH(V$45,'Data Annex'!$K$1:$AN$1,0)),\"\")","v":4.2353881999999997E-3},"T12_1","T12_1"]
[16,"IT",null,"IT",{"$f":"IFERROR(INDEX('Data Annex'!$K$1:$AN$4997,MATCH(E$44&\"|\"&$B66,'Data Annex'!$K$1:$K$4997,0),MATCH(E$45,'Data Annex'!$K$1:$AN$1,0)),\"\")","v":1.1892287200000001E-2},{"$f":"IFERROR(INDEX('Data Annex'!$K$1:$AN$4997,MATCH(F$44&\"|\"&$B66,'Data Annex'!$K$1:$K$4997,0),MATCH(F$45,'Data Annex'!$K$1:$AN$1,0)),\"\")","v":1.3335425999999999E-2},{"$f":"IFERROR(INDEX('Data Annex'!$K$1:$AN$4997,MATCH(G$44&\"|\"&$B66,'Data Annex'!$K$1:$K$4997,0),MATCH(G$45,'Data Annex'!$K$1:$AN$1,0)),\"\")","v":0.1310249973},{"$f":"IFERROR(INDEX('Data Annex'!$K$1:$AN$4997,MATCH(H$44&\"|\"&$B66,'Data Annex'!$K$1:$K$4997,0),MATCH(H$45,'Data Annex'!$K$1:$AN$1,0)),\"\")","v":0.12864961859999999},{"$f":"IFERROR(INDEX('Data Annex'!$K$1:$AN$4997,MATCH(I$44&\"|\"&$B66,'Data Annex'!$K$1:$K$4997,0),MATCH(I$45,'Data Annex'!$K$1:$AN$1,0)),\"\")","v":5.6485218400000002E-2},{"$f":"IFERROR(INDEX('Data Annex'!$K$1:$AN$4997,MATCH(J$44&\"|\"&$B66,'Data Annex'!$K$1:$K$4997,0),MATCH(J$45,'Data Annex'!$K$1:$AN$1,0)),\"\")","v":5.7761315899999999E-2},{"$f":"IFERROR(INDEX('Data Annex'!$K$1:$AN$4997,MATCH(K$44&\"|\"&$B66,'Data Annex'!$K$1:$K$4997,0),MATCH(K$45,'Data Annex'!$K$1:$AN$1,0)),\"\")","v":2.37317477E-2},{"$f":"IFERROR(INDEX('Data Annex'!$K$1:$AN$4997,MATCH(L$44&\"|\"&$B66,'Data Annex'!$K$1:$K$4997,0),MATCH(L$45,'Data Annex'!$K$1:$AN$1,0)),\"\")","v":2.4372685700000001E-2},{"$f":"IFERROR(INDEX('Data Annex'!$K$1:$AN$4997,MATCH(M$44&\"|\"&$B66,'Data Annex'!$K$1:$K$4997,0),MATCH(M$45,'Data Annex'!$K$1:$AN$1,0)),\"\")","v":5.1166649999999998E-4},{"$f":"IFERROR(INDEX('Data Annex'!$K$1:$AN$4997,MATCH(N$44&\"|\"&$B66,'Data Annex'!$K$1:$K$4997,0),MATCH(N$45,'Data Annex'!$K$1:$AN$1,0)),\"\")","v":9.2298420000000003E-4},{"$f":"IFERROR(INDEX('Data Annex'!$K$1:$AN$4997,MATCH(O$44&\"|\"&$B66,'Data Annex'!$K$1:$K$4997,0),MATCH(O$45,'Data Annex'!$K$1:$AN$1,0)),\"\")","v":1.2597469E-3},{"$f":"IFERROR(INDEX('Data Annex'!$K$1:$AN$4997,MATCH(P$44&\"|\"&$B66,'Data Annex'!$K$1:$K$4997,0),MATCH(P$45,'Data Annex'!$K$1:$AN$1,0)),\"\")","v":1.3236655999999999E-3},{"$f":"IFERROR(INDEX('Data Annex'!$K$1:$AN$4997,MATCH(Q$44&\"|\"&$B66,'Data Annex'!$K$1:$K$4997,0),MATCH(Q$45,'Data Annex'!$K$1:$AN$1,0)),\"\")","v":1.27328988E-2},{"$f":"IFERROR(INDEX('Data Annex'!$K$1:$AN$4997,MATCH(R$44&\"|\"&$B66,'Data Annex'!$K$1:$K$4997,0),MATCH(R$45,'Data Annex'!$K$1:$AN$1,0)),\"\")","v":1.32991646E-2},{"$f":"IFERROR(INDEX('Data Annex'!$K$1:$AN$4997,MATCH(S$44&\"|\"&$B66,'Data Annex'!$K$1:$K$4997,0),MATCH(S$45,'Data Annex'!$K$1:$AN$1,0)),\"\")","v":5.9755959999999997E-3},{"$f":"IFERROR(INDEX('Data Annex'!$K$1:$AN$4997,MATCH(T$44&\"|\"&$B66,'Data Annex'!$K$1:$K$4997,0),MATCH(T$45,'Data Annex'!$K$1:$AN$1,0)),\"\")","v":5.6791958999999996E-3},{"$f":"IFERROR(INDEX('Data Annex'!$K$1:$AN$4997,MATCH(U$44&\"|\"&$B66,'Data Annex'!$K$1:$K$4997,0),MATCH(U$45,'Data Annex'!$K$1:$AN$1,0)),\"\")","v":2.8932401399999998E-2},{"$f":"IFERROR(INDEX('Data Annex'!$K$1:$AN$4997,MATCH(V$44&\"|\"&$B66,'Data Annex'!$K$1:$K$4997,0),MATCH(V$45,'Data Annex'!$K$1:$AN$1,0)),\"\")","v":2.7191938999999998E-2},"T12_1","T12_1"]
[null,"LT",null,"LT",{"$f":"IFERROR(INDEX('Data Annex'!$K$1:$AN$4997,MATCH(E$44&\"|\"&$B67,'Data Annex'!$K$1:$K$4997,0),MATCH(E$45,'Data Annex'!$K$1:$AN$1,0)),\"\")","v":1.2913080999999999E-3},{"$f":"IFERROR(INDEX('Data Annex'!$K$1:$AN$4997,MATCH(F$44&\"|\"&$B67,'Data Annex'!$K$1:$K$4997,0),MATCH(F$45,'Data Annex'!$K$1:$AN$1,0)),\"\")","v":3.0266223000000002E-3},{"$f":"IFERROR(INDEX('Data Annex'!$K$1:$AN$4997,MATCH(G$44&\"|\"&$B67,'Data Annex'!$K$1:$K$4997,0),MATCH(G$45,'Data Annex'!$K$1:$AN$1,0)),\"\")","v":0.25670437680000002},{"$f":"IFERROR(INDEX('Data Annex'!$K$1:$AN$4997,MATCH(H$44&\"|\"&$B67,'Data Annex'!$K$1:$K$4997,0),MATCH(H$45,'Data Annex'!$K$1:$AN$1,0)),\"\")","v":0.27558236050000001},{"$f":"IFERROR(INDEX('Data Annex'!$K$1:$AN$4997,MATCH(I$44&\"|\"&$B67,'Data Annex'!$K$1:$K$4997,0),MATCH(I$45,'Data Annex'!$K$1:$AN$1,0)),\"\")","v":1.43990878E-2},{"$f":"IFERROR(INDEX('Data Annex'!$K$1:$AN$4997,MATCH(J$44&\"|\"&$B67,'Data Annex'!$K$1:$K$4997,0),MATCH(J$45,'Data Annex'!$K$1:$AN$1,0)),\"\")","v":1.46204397E-2},{"$f":"IFERROR(INDEX('Data Annex'!$K$1:$AN$4997,MATCH(K$44&\"|\"&$B67,'Data Annex'!$K$1:$K$4997,0),MATCH(K$45,'Data Annex'!$K$1:$AN$1,0)),\"\")","v":2.81128577E-2},{"$f":"IFERROR(INDEX('Data Annex'!$K$1:$AN$4997,MATCH(L$44&\"|\"&$B67,'Data Annex'!$K$1:$K$4997,0),MATCH(L$45,'Data Annex'!$K$1:$AN$1,0)),\"\")","v":2.81684304E-2},{"$f":"IFERROR(INDEX('Data Annex'!$K$1:$AN$4997,MATCH(M$44&\"|\"&$B67,'Data Annex'!$K$1:$K$4997,0),MATCH(M$45,'Data Annex'!$K$1:$AN$1,0)),\"\")","v":6.8717100000000007E-5},{"$f":"IFERROR(INDEX('Data Annex'!$K$1:$AN$4997,MATCH(N$44&\"|\"&$B67,'Data Annex'!$K$1:$K$4997,0),MATCH(N$45,'Data Annex'!$K$1:$AN$1,0)),\"\")","v":4.8876499999999999E-5},{"$f":"IFERROR(INDEX('Data Annex'!$K$1:$AN$4997,MATCH(O$44&\"|\"&$B67,'Data Annex'!$K$1:$K$4997,0),MATCH(O$45,'Data Annex'!$K$1:$AN$1,0)),\"\")","v":6.8548640000000004E-4},{"$f":"IFERROR(INDEX('Data Annex'!$K$1:$AN$4997,MATCH(P$44&\"|\"&$B67,'Data Annex'!$K$1:$K$4997,0),MATCH(P$45,'Data Annex'!$K$1:$AN$1,0)),\"\")","v":7.0746920000000003E-4},{"$f":"IFERROR(INDEX('Data Annex'!$K$1:$AN$4997,MATCH(Q$44&\"|\"&$B67,'Data Annex'!$K$1:$K$4997,0),MATCH(Q$45,'Data Annex'!$K$1:$AN$1,0)),\"\")","v":7.1528062000000003E-3},{"$f":"IFERROR(INDEX('Data Annex'!$K$1:$AN$4997,MATCH(R$44&\"|\"&$B67,'Data Annex'!$K$1:$K$4997,0),MATCH(R$45,'Data Annex'!$K$1:$AN$1,0)),\"\")","v":7.7880049999999998E-3},{"$f":"IFERROR(INDEX('Data Annex'!$K$1:$AN$4997,MATCH(S$44&\"|\"&$B67,'Data Annex'!$K$1:$K$4997,0),MATCH(S$45,'Data Annex'!$K$1:$AN$1,0)),\"\")","v":3.5005280000000001E-3},{"$f":"IFERROR(INDEX('Data Annex'!$K$1:$AN$4997,MATCH(T$44&\"|\"&$B67,'Data Annex'!$K$1:$K$4997,0),MATCH(T$45,'Data Annex'!$K$1:$AN$1,0)),\"\")","v":3.5247727E-3},{"$f":"IFERROR(INDEX('Data Annex'!$K$1:$AN$4997,MATCH(U$44&\"|\"&$B67,'Data Annex'!$K$1:$K$4997,0),MATCH(U$45,'Data Annex'!$K$1:$AN$1,0)),\"\")","v":1.0327265E-2},{"$f":"IFERROR(INDEX('Data Annex'!$K$1:$AN$4997,MATCH(V$44&\"|\"&$B67,'Data Annex'!$K$1:$K$4997,0),MATCH(V$45,'Data Annex'!$K$1:$AN$1,0)),\"\")","v":8.3502614999999992E-3},"T12_1","T12_1"]
[null,"LU",null,"LU",{"$f":"IFERROR(INDEX('Data Annex'!$K$1:$AN$4997,MATCH(E$44&\"|\"&$B68,'Data Annex'!$K$1:$K$4997,0),MATCH(E$45,'Data Annex'!$K$1:$AN$1,0)),\"\")","v":1.9916554999999999E-2},{"$f":"IFERROR(INDEX('Data Annex'!$K$1:$AN$4997,MATCH(F$44&\"|\"&$B68,'Data Annex'!$K$1:$K$4997,0),MATCH(F$45,'Data Annex'!$K$1:$AN$1,0)),\"\")","v":2.78447626E-2},{"$f":"IFERROR(INDEX('Data Annex'!$K$1:$AN$4997,MATCH(G$44&\"|\"&$B68,'Data Annex'!$K$1:$K$4997,0),MATCH(G$45,'Data Annex'!$K$1:$AN$1,0)),\"\")","v":0.10891161219999999},{"$f":"IFERROR(INDEX('Data Annex'!$K$1:$AN$4997,MATCH(H$44&\"|\"&$B68,'Data Annex'!$K$1:$K$4997,0),MATCH(H$45,'Data Annex'!$K$1:$AN$1,0)),\"\")","v":0.1176038578},{"$f":"IFERROR(INDEX('Data Annex'!$K$1:$AN$4997,MATCH(I$44&\"|\"&$B68,'Data Annex'!$K$1:$K$4997,0),MATCH(I$45,'Data Annex'!$K$1:$AN$1,0)),\"\")","v":2.5856603200000002E-2},{"$f":"IFERROR(INDEX('Data Annex'!$K$1:$AN$4997,MATCH(J$44&\"|\"&$B68,'Data Annex'!$K$1:$K$4997,0),MATCH(J$45,'Data Annex'!$K$1:$AN$1,0)),\"\")","v":3.5392341700000003E-2},{"$f":"IFERROR(INDEX('Data Annex'!$K$1:$AN$4997,MATCH(K$44&\"|\"&$B68,'Data Annex'!$K$1:$K$4997,0),MATCH(K$45,'Data Annex'!$K$1:$AN$1,0)),\"\")","v":0.21530309540000001},{"$f":"IFERROR(INDEX('Data Annex'!$K$1:$AN$4997,MATCH(L$44&\"|\"&$B68,'Data Annex'!$K$1:$K$4997,0),MATCH(L$45,'Data Annex'!$K$1:$AN$1,0)),\"\")","v":0.20663167900000001},{"$f":"IFERROR(INDEX('Data Annex'!$K$1:$AN$4997,MATCH(M$44&\"|\"&$B68,'Data Annex'!$K$1:$K$4997,0),MATCH(M$45,'Data Annex'!$K$1:$AN$1,0)),\"\")","v":8.4045370000000003E-4},{"$f":"IFERROR(INDEX('Data Annex'!$K$1:$AN$4997,MATCH(N$44&\"|\"&$B68,'Data Annex'!$K$1:$K$4997,0),MATCH(N$45,'Data Annex'!$K$1:$AN$1,0)),\"\")","v":7.0259429999999996E-4},{"$f":"IFERROR(INDEX('Data Annex'!$K$1:$AN$4997,MATCH(O$44&\"|\"&$B68,'Data Annex'!$K$1:$K$4997,0),MATCH(O$45,'Data Annex'!$K$1:$AN$1,0)),\"\")","v":2.9738663E-3},{"$f":"IFERROR(INDEX('Data Annex'!$K$1:$AN$4997,MATCH(P$44&\"|\"&$B68,'Data Annex'!$K$1:$K$4997,0),MATCH(P$45,'Data Annex'!$K$1:$AN$1,0)),\"\")","v":2.6970918999999999E-3},{"$f":"IFERROR(INDEX('Data Annex'!$K$1:$AN$4997,MATCH(Q$44&\"|\"&$B68,'Data Annex'!$K$1:$K$4997,0),MATCH(Q$45,'Data Annex'!$K$1:$AN$1,0)),\"\")","v":2.4942191999999998E-2},{"$f":"IFERROR(INDEX('Data Annex'!$K$1:$AN$4997,MATCH(R$44&\"|\"&$B68,'Data Annex'!$K$1:$K$4997,0),MATCH(R$45,'Data Annex'!$K$1:$AN$1,0)),\"\")","v":2.4623468700000001E-2},{"$f":"IFERROR(INDEX('Data Annex'!$K$1:$AN$4997,MATCH(S$44&\"|\"&$B68,'Data Annex'!$K$1:$K$4997,0),MATCH(S$45,'Data Annex'!$K$1:$AN$1,0)),\"\")","v":3.2375317999999999E-3},{"$f":"IFERROR(INDEX('Data Annex'!$K$1:$AN$4997,MATCH(T$44&\"|\"&$B68,'Data Annex'!$K$1:$K$4997,0),MATCH(T$45,'Data Annex'!$K$1:$AN$1,0)),\"\")","v":2.7201415999999999E-3},{"$f":"IFERROR(INDEX('Data Annex'!$K$1:$AN$4997,MATCH(U$44&\"|\"&$B68,'Data Annex'!$K$1:$K$4997,0),MATCH(U$45,'Data Annex'!$K$1:$AN$1,0)),\"\")","v":9.9599830799999997E-2},{"$f":"IFERROR(INDEX('Data Annex'!$K$1:$AN$4997,MATCH(V$44&\"|\"&$B68,'Data Annex'!$K$1:$K$4997,0),MATCH(V$45,'Data Annex'!$K$1:$AN$1,0)),\"\")","v":7.3545593500000006E-2},"T12_1","T12_1"]
[null,"LV",null,"LV",{"$f":"IFERROR(INDEX('Data Annex'!$K$1:$AN$4997,MATCH(E$44&\"|\"&$B69,'Data Annex'!$K$1:$K$4997,0),MATCH(E$45,'Data Annex'!$K$1:$AN$1,0)),\"\")","v":3.7982709999999999E-4},{"$f":"IFERROR(INDEX('Data Annex'!$K$1:$AN$4997,MATCH(F$44&\"|\"&$B69,'Data Annex'!$K$1:$K$4997,0),MATCH(F$45,'Data Annex'!$K$1:$AN$1,0)),\"\")","v":1.0292522999999999E-3},{"$f":"IFERROR(INDEX('Data Annex'!$K$1:$AN$4997,MATCH(G$44&\"|\"&$B69,'Data Annex'!$K$1:$K$4997,0),MATCH(G$45,'Data Annex'!$K$1:$AN$1,0)),\"\")","v":0.28640785759999998},{"$f":"IFERROR(INDEX('Data Annex'!$K$1:$AN$4997,MATCH(H$44&\"|\"&$B69,'Data Annex'!$K$1:$K$4997,0),MATCH(H$45,'Data Annex'!$K$1:$AN$1,0)),\"\")","v":0.29585877849999997},{"$f":"IFERROR(INDEX('Data Annex'!$K$1:$AN$4997,MATCH(I$44&\"|\"&$B69,'Data Annex'!$K$1:$K$4997,0),MATCH(I$45,'Data Annex'!$K$1:$AN$1,0)),\"\")","v":7.7142901E-3},{"$f":"IFERROR(INDEX('Data Annex'!$K$1:$AN$4997,MATCH(J$44&\"|\"&$B69,'Data Annex'!$K$1:$K$4997,0),MATCH(J$45,'Data Annex'!$K$1:$AN$1,0)),\"\")","v":7.8833510000000002E-3},{"$f":"IFERROR(INDEX('Data Annex'!$K$1:$AN$4997,MATCH(K$44&\"|\"&$B69,'Data Annex'!$K$1:$K$4997,0),MATCH(K$45,'Data Annex'!$K$1:$AN$1,0)),\"\")","v":1.53780145E-2},{"$f":"IFERROR(INDEX('Data Annex'!$K$1:$AN$4997,MATCH(L$44&\"|\"&$B69,'Data Annex'!$K$1:$K$4997,0),MATCH(L$45,'Data Annex'!$K$1:$AN$1,0)),\"\")","v":1.7302239600000002E-2},{"$f":"IFERROR(INDEX('Data Annex'!$K$1:$AN$4997,MATCH(M$44&\"|\"&$B69,'Data Annex'!$K$1:$K$4997,0),MATCH(M$45,'Data Annex'!$K$1:$AN$1,0)),\"\")","v":2.922582E-3},{"$f":"IFERROR(INDEX('Data Annex'!$K$1:$AN$4997,MATCH(N$44&\"|\"&$B69,'Data Annex'!$K$1:$K$4997,0),MATCH(N$45,'Data Annex'!$K$1:$AN$1,0)),\"\")","v":9.8219749999999993E-4},{"$f":"IFERROR(INDEX('Data Annex'!$K$1:$AN$4997,MATCH(O$44&\"|\"&$B69,'Data Annex'!$K$1:$K$4997,0),MATCH(O$45,'Data Annex'!$K$1:$AN$1,0)),\"\")","v":2.1667470000000001E-3},{"$f":"IFERROR(INDEX('Data Annex'!$K$1:$AN$4997,MATCH(P$44&\"|\"&$B69,'Data Annex'!$K$1:$K$4997,0),MATCH(P$45,'Data Annex'!$K$1:$AN$1,0)),\"\")","v":1.9648793999999998E-3},{"$f":"IFERROR(INDEX('Data Annex'!$K$1:$AN$4997,MATCH(Q$44&\"|\"&$B69,'Data Annex'!$K$1:$K$4997,0),MATCH(Q$45,'Data Annex'!$K$1:$AN$1,0)),\"\")","v":6.1227379000000004E-3},{"$f":"IFERROR(INDEX('Data Annex'!$K$1:$AN$4997,MATCH(R$44&\"|\"&$B69,'Data Annex'!$K$1:$K$4997,0),MATCH(R$45,'Data Annex'!$K$1:$AN$1,0)),\"\")","v":7.8705796000000001E-3},{"$f":"IFERROR(INDEX('Data Annex'!$K$1:$AN$4997,MATCH(S$44&\"|\"&$B69,'Data Annex'!$K$1:$K$4997,0),MATCH(S$45,'Data Annex'!$K$1:$AN$1,0)),\"\")","v":2.6605244999999998E-3},{"$f":"IFERROR(INDEX('Data Annex'!$K$1:$AN$4997,MATCH(T$44&\"|\"&$B69,'Data Annex'!$K$1:$K$4997,0),MATCH(T$45,'Data Annex'!$K$1:$AN$1,0)),\"\")","v":1.9546037999999999E-3},{"$f":"IFERROR(INDEX('Data Annex'!$K$1:$AN$4997,MATCH(U$44&\"|\"&$B69,'Data Annex'!$K$1:$K$4997,0),MATCH(U$45,'Data Annex'!$K$1:$AN$1,0)),\"\")","v":1.76690298E-2},{"$f":"IFERROR(INDEX('Data Annex'!$K$1:$AN$4997,MATCH(V$44&\"|\"&$B69,'Data Annex'!$K$1:$K$4997,0),MATCH(V$45,'Data Annex'!$K$1:$AN$1,0)),\"\")","v":1.8103012200000001E-2},"T12_1","T12_1"]
[null,"MT",null,"MT",{"$f":"IFERROR(INDEX('Data Annex'!$K$1:$AN$4997,MATCH(E$44&\"|\"&$B70,'Data Annex'!$K$1:$K$4997,0),MATCH(E$45,'Data Annex'!$K$1:$AN$1,0)),\"\")","v":7.4999660000000005E-4},{"$f":"IFERROR(INDEX('Data Annex'!$K$1:$AN$4997,MATCH(F$44&\"|\"&$B70,'Data Annex'!$K$1:$K$4997,0),MATCH(F$45,'Data Annex'!$K$1:$AN$1,0)),\"\")","v":9.2646456599999996E-2},{"$f":"IFERROR(INDEX('Data Annex'!$K$1:$AN$4997,MATCH(G$44&\"|\"&$B70,'Data Annex'!$K$1:$K$4997,0),MATCH(G$45,'Data Annex'!$K$1:$AN$1,0)),\"\")","v":0.18694220559999999},{"$f":"IFERROR(INDEX('Data Annex'!$K$1:$AN$4997,MATCH(H$44&\"|\"&$B70,'Data Annex'!$K$1:$K$4997,0),MATCH(H$45,'Data Annex'!$K$1:$AN$1,0)),\"\")","v":0.13282688649999999},{"$f":"IFERROR(INDEX('Data Annex'!$K$1:$AN$4997,MATCH(I$44&\"|\"&$B70,'Data Annex'!$K$1:$K$4997,0),MATCH(I$45,'Data Annex'!$K$1:$AN$1,0)),\"\")","v":0.1277842263},{"$f":"IFERROR(INDEX('Data Annex'!$K$1:$AN$4997,MATCH(J$44&\"|\"&$B70,'Data Annex'!$K$1:$K$4997,0),MATCH(J$45,'Data Annex'!$K$1:$AN$1,0)),\"\")","v":8.90345362E-2},{"$f":"IFERROR(INDEX('Data Annex'!$K$1:$AN$4997,MATCH(K$44&\"|\"&$B70,'Data Annex'!$K$1:$K$4997,0),MATCH(K$45,'Data Annex'!$K$1:$AN$1,0)),\"\")","v":6.7004988299999999E-2},{"$f":"IFERROR(INDEX('Data Annex'!$K$1:$AN$4997,MATCH(L$44&\"|\"&$B70,'Data Annex'!$K$1:$K$4997,0),MATCH(L$45,'Data Annex'!$K$1:$AN$1,0)),\"\")","v":3.9790306099999999E-2},{"$f":"IFERROR(INDEX('Data Annex'!$K$1:$AN$4997,MATCH(M$44&\"|\"&$B70,'Data Annex'!$K$1:$K$4997,0),MATCH(M$45,'Data Annex'!$K$1:$AN$1,0)),\"\")","v":2.0009238000000002E-3},{"$f":"IFERROR(INDEX('Data Annex'!$K$1:$AN$4997,MATCH(N$44&\"|\"&$B70,'Data Annex'!$K$1:$K$4997,0),MATCH(N$45,'Data Annex'!$K$1:$AN$1,0)),\"\")","v":1.7415225000000001E-3},{"$f":"IFERROR(INDEX('Data Annex'!$K$1:$AN$4997,MATCH(O$44&\"|\"&$B70,'Data Annex'!$K$1:$K$4997,0),MATCH(O$45,'Data Annex'!$K$1:$AN$1,0)),\"\")","v":5.9693842000000004E-3},{"$f":"IFERROR(INDEX('Data Annex'!$K$1:$AN$4997,MATCH(P$44&\"|\"&$B70,'Data Annex'!$K$1:$K$4997,0),MATCH(P$45,'Data Annex'!$K$1:$AN$1,0)),\"\")","v":6.8121194999999999E-3},{"$f":"IFERROR(INDEX('Data Annex'!$K$1:$AN$4997,MATCH(Q$44&\"|\"&$B70,'Data Annex'!$K$1:$K$4997,0),MATCH(Q$45,'Data Annex'!$K$1:$AN$1,0)),\"\")","v":2.3958992299999999E-2},{"$f":"IFERROR(INDEX('Data Annex'!$K$1:$AN$4997,MATCH(R$44&\"|\"&$B70,'Data Annex'!$K$1:$K$4997,0),MATCH(R$45,'Data Annex'!$K$1:$AN$1,0)),\"\")","v":4.9061160999999999E-2},{"$f":"IFERROR(INDEX('Data Annex'!$K$1:$AN$4997,MATCH(S$44&\"|\"&$B70,'Data Annex'!$K$1:$K$4997,0),MATCH(S$45,'Data Annex'!$K$1:$AN$1,0)),\"\")","v":8.7160086999999997E-3},{"$f":"IFERROR(INDEX('Data Annex'!$K$1:$AN$4997,MATCH(T$44&\"|\"&$B70,'Data Annex'!$K$1:$K$4997,0),MATCH(T$45,'Data Annex'!$K$1:$AN$1,0)),\"\")","v":1.10322272E-2},{"$f":"IFERROR(INDEX('Data Annex'!$K$1:$AN$4997,MATCH(U$44&\"|\"&$B70,'Data Annex'!$K$1:$K$4997,0),MATCH(U$45,'Data Annex'!$K$1:$AN$1,0)),\"\")","v":5.8551250999999997E-3},{"$f":"IFERROR(INDEX('Data Annex'!$K$1:$AN$4997,MATCH(V$44&\"|\"&$B70,'Data Annex'!$K$1:$K$4997,0),MATCH(V$45,'Data Annex'!$K$1:$AN$1,0)),\"\")","v":6.2426384000000001E-3},"T12_1","T12_1"]
[null,"NL",null,"NL",{"$f":"IFERROR(INDEX('Data Annex'!$K$1:$AN$4997,MATCH(E$44&\"|\"&$B71,'Data Annex'!$K$1:$K$4997,0),MATCH(E$45,'Data Annex'!$K$1:$AN$1,0)),\"\")","v":3.0216447399999999E-2},{"$f":"IFERROR(INDEX('Data Annex'!$K$1:$AN$4997,MATCH(F$44&\"|\"&$B71,'Data Annex'!$K$1:$K$4997,0),MATCH(F$45,'Data Annex'!$K$1:$AN$1,0)),\"\")","v":3.2718607900000002E-2},{"$f":"IFERROR(INDEX('Data Annex'!$K$1:$AN$4997,MATCH(G$44&\"|\"&$B71,'Data Annex'!$K$1:$K$4997,0),MATCH(G$45,'Data Annex'!$K$1:$AN$1,0)),\"\")","v":0.19416729660000001},{"$f":"IFERROR(INDEX('Data Annex'!$K$1:$AN$4997,MATCH(H$44&\"|\"&$B71,'Data Annex'!$K$1:$K$4997,0),MATCH(H$45,'Data Annex'!$K$1:$AN$1,0)),\"\")","v":0.19137655079999999},{"$f":"IFERROR(INDEX('Data Annex'!$K$1:$AN$4997,MATCH(I$44&\"|\"&$B71,'Data Annex'!$K$1:$K$4997,0),MATCH(I$45,'Data Annex'!$K$1:$AN$1,0)),\"\")","v":3.4627972299999997E-2},{"$f":"IFERROR(INDEX('Data Annex'!$K$1:$AN$4997,MATCH(J$44&\"|\"&$B71,'Data Annex'!$K$1:$K$4997,0),MATCH(J$45,'Data Annex'!$K$1:$AN$1,0)),\"\")","v":3.0836869699999998E-2},{"$f":"IFERROR(INDEX('Data Annex'!$K$1:$AN$4997,MATCH(K$44&\"|\"&$B71,'Data Annex'!$K$1:$K$4997,0),MATCH(K$45,'Data Annex'!$K$1:$AN$1,0)),\"\")","v":2.96627881E-2},{"$f":"IFERROR(INDEX('Data Annex'!$K$1:$AN$4997,MATCH(L$44&\"|\"&$B71,'Data Annex'!$K$1:$K$4997,0),MATCH(L$45,'Data Annex'!$K$1:$AN$1,0)),\"\")","v":3.20232155E-2},{"$f":"IFERROR(INDEX('Data Annex'!$K$1:$AN$4997,MATCH(M$44&\"|\"&$B71,'Data Annex'!$K$1:$K$4997,0),MATCH(M$45,'Data Annex'!$K$1:$AN$1,0)),\"\")","v":1.4947636000000001E-3},{"$f":"IFERROR(INDEX('Data Annex'!$K$1:$AN$4997,MATCH(N$44&\"|\"&$B71,'Data Annex'!$K$1:$K$4997,0),MATCH(N$45,'Data Annex'!$K$1:$AN$1,0)),\"\")","v":1.6071410000000001E-3},{"$f":"IFERROR(INDEX('Data Annex'!$K$1:$AN$4997,MATCH(O$44&\"|\"&$B71,'Data Annex'!$K$1:$K$4997,0),MATCH(O$45,'Data Annex'!$K$1:$AN$1,0)),\"\")","v":1.8683087E-3},{"$f":"IFERROR(INDEX('Data Annex'!$K$1:$AN$4997,MATCH(P$44&\"|\"&$B71,'Data Annex'!$K$1:$K$4997,0),MATCH(P$45,'Data Annex'!$K$1:$AN$1,0)),\"\")","v":2.1166481000000001E-3},{"$f":"IFERROR(INDEX('Data Annex'!$K$1:$AN$4997,MATCH(Q$44&\"|\"&$B71,'Data Annex'!$K$1:$K$4997,0),MATCH(Q$45,'Data Annex'!$K$1:$AN$1,0)),\"\")","v":3.2333713399999998E-2},{"$f":"IFERROR(INDEX('Data Annex'!$K$1:$AN$4997,MATCH(R$44&\"|\"&$B71,'Data Annex'!$K$1:$K$4997,0),MATCH(R$45,'Data Annex'!$K$1:$AN$1,0)),\"\")","v":3.3601074299999999E-2},{"$f":"IFERROR(INDEX('Data Annex'!$K$1:$AN$4997,MATCH(S$44&\"|\"&$B71,'Data Annex'!$K$1:$K$4997,0),MATCH(S$45,'Data Annex'!$K$1:$AN$1,0)),\"\")","v":5.2132122999999997E-3},{"$f":"IFERROR(INDEX('Data Annex'!$K$1:$AN$4997,MATCH(T$44&\"|\"&$B71,'Data Annex'!$K$1:$K$4997,0),MATCH(T$45,'Data Annex'!$K$1:$AN$1,0)),\"\")","v":5.6061554E-3},{"$f":"IFERROR(INDEX('Data Annex'!$K$1:$AN$4997,MATCH(U$44&\"|\"&$B71,'Data Annex'!$K$1:$K$4997,0),MATCH(U$45,'Data Annex'!$K$1:$AN$1,0)),\"\")","v":3.10066874E-2},{"$f":"IFERROR(INDEX('Data Annex'!$K$1:$AN$4997,MATCH(V$44&\"|\"&$B71,'Data Annex'!$K$1:$K$4997,0),MATCH(V$45,'Data Annex'!$K$1:$AN$1,0)),\"\")","v":1.3701588900000001E-2},"T12_1","T12_1"]
[null,"NO",null,"NO",{"$f":"IFERROR(INDEX('Data Annex'!$K$1:$AN$4997,MATCH(E$44&\"|\"&$B72,'Data Annex'!$K$1:$K$4997,0),MATCH(E$45,'Data Annex'!$K$1:$AN$1,0)),\"\")","v":2.0309187999999999E-3},{"$f":"IFERROR(INDEX('Data Annex'!$K$1:$AN$4997,MATCH(F$44&\"|\"&$B72,'Data Annex'!$K$1:$K$4997,0),MATCH(F$45,'Data Annex'!$K$1:$AN$1,0)),\"\")","v":2.3687763000000001E-3},{"$f":"IFERROR(INDEX('Data Annex'!$K$1:$AN$4997,MATCH(G$44&\"|\"&$B72,'Data Annex'!$K$1:$K$4997,0),MATCH(G$45,'Data Annex'!$K$1:$AN$1,0)),\"\")","v":0.27249917579999999},{"$f":"IFERROR(INDEX('Data Annex'!$K$1:$AN$4997,MATCH(H$44&\"|\"&$B72,'Data Annex'!$K$1:$K$4997,0),MATCH(H$45,'Data Annex'!$K$1:$AN$1,0)),\"\")","v":0.29185322470000002},{"$f":"IFERROR(INDEX('Data Annex'!$K$1:$AN$4997,MATCH(I$44&\"|\"&$B72,'Data Annex'!$K$1:$K$4997,0),MATCH(I$45,'Data Annex'!$K$1:$AN$1,0)),\"\")","v":6.8219730100000001E-2},{"$f":"IFERROR(INDEX('Data Annex'!$K$1:$AN$4997,MATCH(J$44&\"|\"&$B72,'Data Annex'!$K$1:$K$4997,0),MATCH(J$45,'Data Annex'!$K$1:$AN$1,0)),\"\")","v":6.5762373200000002E-2},{"$f":"IFERROR(INDEX('Data Annex'!$K$1:$AN$4997,MATCH(K$44&\"|\"&$B72,'Data Annex'!$K$1:$K$4997,0),MATCH(K$45,'Data Annex'!$K$1:$AN$1,0)),\"\")","v":6.1873601200000003E-2},{"$f":"IFERROR(INDEX('Data Annex'!$K$1:$AN$4997,MATCH(L$44&\"|\"&$B72,'Data Annex'!$K$1:$K$4997,0),MATCH(L$45,'Data Annex'!$K$1:$AN$1,0)),\"\")","v":6.5553304699999995E-2},{"$f":"IFERROR(INDEX('Data Annex'!$K$1:$AN$4997,MATCH(M$44&\"|\"&$B72,'Data Annex'!$K$1:$K$4997,0),MATCH(M$45,'Data Annex'!$K$1:$AN$1,0)),\"\")","v":3.6658669999999998E-4},{"$f":"IFERROR(INDEX('Data Annex'!$K$1:$AN$4997,MATCH(N$44&\"|\"&$B72,'Data Annex'!$K$1:$K$4997,0),MATCH(N$45,'Data Annex'!$K$1:$AN$1,0)),\"\")","v":3.7013470000000001E-4},{"$f":"IFERROR(INDEX('Data Annex'!$K$1:$AN$4997,MATCH(O$44&\"|\"&$B72,'Data Annex'!$K$1:$K$4997,0),MATCH(O$45,'Data Annex'!$K$1:$AN$1,0)),\"\")","v":4.0646253000000002E-3},{"$f":"IFERROR(INDEX('Data Annex'!$K$1:$AN$4997,MATCH(P$44&\"|\"&$B72,'Data Annex'!$K$1:$K$4997,0),MATCH(P$45,'Data Annex'!$K$1:$AN$1,0)),\"\")","v":4.1913519999999998E-3},{"$f":"IFERROR(INDEX('Data Annex'!$K$1:$AN$4997,MATCH(Q$44&\"|\"&$B72,'Data Annex'!$K$1:$K$4997,0),MATCH(Q$45,'Data Annex'!$K$1:$AN$1,0)),\"\")","v":1.51567591E-2},{"$f":"IFERROR(INDEX('Data Annex'!$K$1:$AN$4997,MATCH(R$44&\"|\"&$B72,'Data Annex'!$K$1:$K$4997,0),MATCH(R$45,'Data Annex'!$K$1:$AN$1,0)),\"\")","v":1.36132396E-2},{"$f":"IFERROR(INDEX('Data Annex'!$K$1:$AN$4997,MATCH(S$44&\"|\"&$B72,'Data Annex'!$K$1:$K$4997,0),MATCH(S$45,'Data Annex'!$K$1:$AN$1,0)),\"\")","v":3.8786915999999999E-3},{"$f":"IFERROR(INDEX('Data Annex'!$K$1:$AN$4997,MATCH(T$44&\"|\"&$B72,'Data Annex'!$K$1:$K$4997,0),MATCH(T$45,'Data Annex'!$K$1:$AN$1,0)),\"\")","v":4.0810283999999997E-3},{"$f":"IFERROR(INDEX('Data Annex'!$K$1:$AN$4997,MATCH(U$44&\"|\"&$B72,'Data Annex'!$K$1:$K$4997,0),MATCH(U$45,'Data Annex'!$K$1:$AN$1,0)),\"\")","v":6.3265750999999997E-3},{"$f":"IFERROR(INDEX('Data Annex'!$K$1:$AN$4997,MATCH(V$44&\"|\"&$B72,'Data Annex'!$K$1:$K$4997,0),MATCH(V$45,'Data Annex'!$K$1:$AN$1,0)),\"\")","v":5.5729888000000003E-3},"T12_1","T12_1"]
[null,"PL",null,"PL",{"$f":"IFERROR(INDEX('Data Annex'!$K$1:$AN$4997,MATCH(E$44&\"|\"&$B73,'Data Annex'!$K$1:$K$4997,0),MATCH(E$45,'Data Annex'!$K$1:$AN$1,0)),\"\")","v":4.0457716000000003E-3},{"$f":"IFERROR(INDEX('Data Annex'!$K$1:$AN$4997,MATCH(F$44&\"|\"&$B73,'Data Annex'!$K$1:$K$4997,0),MATCH(F$45,'Data Annex'!$K$1:$AN$1,0)),\"\")","v":4.1242201000000001E-3},{"$f":"IFERROR(INDEX('Data Annex'!$K$1:$AN$4997,MATCH(G$44&\"|\"&$B73,'Data Annex'!$K$1:$K$4997,0),MATCH(G$45,'Data Annex'!$K$1:$AN$1,0)),\"\")","v":0.1484084326},{"$f":"IFERROR(INDEX('Data Annex'!$K$1:$AN$4997,MATCH(H$44&\"|\"&$B73,'Data Annex'!$K$1:$K$4997,0),MATCH(H$45,'Data Annex'!$K$1:$AN$1,0)),\"\")","v":0.14689706890000001},{"$f":"IFERROR(INDEX('Data Annex'!$K$1:$AN$4997,MATCH(I$44&\"|\"&$B73,'Data Annex'!$K$1:$K$4997,0),MATCH(I$45,'Data Annex'!$K$1:$AN$1,0)),\"\")","v":6.8859016999999995E-2},{"$f":"IFERROR(INDEX('Data Annex'!$K$1:$AN$4997,MATCH(J$44&\"|\"&$B73,'Data Annex'!$K$1:$K$4997,0),MATCH(J$45,'Data Annex'!$K$1:$AN$1,0)),\"\")","v":7.0640341400000001E-2},{"$f":"IFERROR(INDEX('Data Annex'!$K$1:$AN$4997,MATCH(K$44&\"|\"&$B73,'Data Annex'!$K$1:$K$4997,0),MATCH(K$45,'Data Annex'!$K$1:$AN$1,0)),\"\")","v":1.94842174E-2},{"$f":"IFERROR(INDEX('Data Annex'!$K$1:$AN$4997,MATCH(L$44&\"|\"&$B73,'Data Annex'!$K$1:$K$4997,0),MATCH(L$45,'Data Annex'!$K$1:$AN$1,0)),\"\")","v":1.99116971E-2},{"$f":"IFERROR(INDEX('Data Annex'!$K$1:$AN$4997,MATCH(M$44&\"|\"&$B73,'Data Annex'!$K$1:$K$4997,0),MATCH(M$45,'Data Annex'!$K$1:$AN$1,0)),\"\")","v":2.7227289999999998E-4},{"$f":"IFERROR(INDEX('Data Annex'!$K$1:$AN$4997,MATCH(N$44&\"|\"&$B73,'Data Annex'!$K$1:$K$4997,0),MATCH(N$45,'Data Annex'!$K$1:$AN$1,0)),\"\")","v":3.4675519999999998E-4},{"$f":"IFERROR(INDEX('Data Annex'!$K$1:$AN$4997,MATCH(O$44&\"|\"&$B73,'Data Annex'!$K$1:$K$4997,0),MATCH(O$45,'Data Annex'!$K$1:$AN$1,0)),\"\")","v":2.596054E-3},{"$f":"IFERROR(INDEX('Data Annex'!$K$1:$AN$4997,MATCH(P$44&\"|\"&$B73,'Data Annex'!$K$1:$K$4997,0),MATCH(P$45,'Data Annex'!$K$1:$AN$1,0)),\"\")","v":2.8042503E-3},{"$f":"IFERROR(INDEX('Data Annex'!$K$1:$AN$4997,MATCH(Q$44&\"|\"&$B73,'Data Annex'!$K$1:$K$4997,0),MATCH(Q$45,'Data Annex'!$K$1:$AN$1,0)),\"\")","v":1.7186627199999999E-2},{"$f":"IFERROR(INDEX('Data Annex'!$K$1:$AN$4997,MATCH(R$44&\"|\"&$B73,'Data Annex'!$K$1:$K$4997,0),MATCH(R$45,'Data Annex'!$K$1:$AN$1,0)),\"\")","v":1.7294482999999999E-2},{"$f":"IFERROR(INDEX('Data Annex'!$K$1:$AN$4997,MATCH(S$44&\"|\"&$B73,'Data Annex'!$K$1:$K$4997,0),MATCH(S$45,'Data Annex'!$K$1:$AN$1,0)),\"\")","v":6.6759625999999999E-3},{"$f":"IFERROR(INDEX('Data Annex'!$K$1:$AN$4997,MATCH(T$44&\"|\"&$B73,'Data Annex'!$K$1:$K$4997,0),MATCH(T$45,'Data Annex'!$K$1:$AN$1,0)),\"\")","v":7.0726065000000001E-3},{"$f":"IFERROR(INDEX('Data Annex'!$K$1:$AN$4997,MATCH(U$44&\"|\"&$B73,'Data Annex'!$K$1:$K$4997,0),MATCH(U$45,'Data Annex'!$K$1:$AN$1,0)),\"\")","v":1.82449347E-2},{"$f":"IFERROR(INDEX('Data Annex'!$K$1:$AN$4997,MATCH(V$44&\"|\"&$B73,'Data Annex'!$K$1:$K$4997,0),MATCH(V$45,'Data Annex'!$K$1:$AN$1,0)),\"\")","v":1.89412677E-2},"T12_1","T12_1"]
[null,"PT",null,"PT",{"$f":"IFERROR(INDEX('Data Annex'!$K$1:$AN$4997,MATCH(E$44&\"|\"&$B74,'Data Annex'!$K$1:$K$4997,0),MATCH(E$45,'Data Annex'!$K$1:$AN$1,0)),\"\")","v":3.2382970499999997E-2},{"$f":"IFERROR(INDEX('Data Annex'!$K$1:$AN$4997,MATCH(F$44&\"|\"&$B74,'Data Annex'!$K$1:$K$4997,0),MATCH(F$45,'Data Annex'!$K$1:$AN$1,0)),\"\")","v":2.2567847299999999E-2},{"$f":"IFERROR(INDEX('Data Annex'!$K$1:$AN$4997,MATCH(G$44&\"|\"&$B74,'Data Annex'!$K$1:$K$4997,0),MATCH(G$45,'Data Annex'!$K$1:$AN$1,0)),\"\")","v":0.1241658194},{"$f":"IFERROR(INDEX('Data Annex'!$K$1:$AN$4997,MATCH(H$44&\"|\"&$B74,'Data Annex'!$K$1:$K$4997,0),MATCH(H$45,'Data Annex'!$K$1:$AN$1,0)),\"\")","v":0.1262731704},{"$f":"IFERROR(INDEX('Data Annex'!$K$1:$AN$4997,MATCH(I$44&\"|\"&$B74,'Data Annex'!$K$1:$K$4997,0),MATCH(I$45,'Data Annex'!$K$1:$AN$1,0)),\"\")","v":4.7020664500000003E-2},{"$f":"IFERROR(INDEX('Data Annex'!$K$1:$AN$4997,MATCH(J$44&\"|\"&$B74,'Data Annex'!$K$1:$K$4997,0),MATCH(J$45,'Data Annex'!$K$1:$AN$1,0)),\"\")","v":5.4967482300000002E-2},{"$f":"IFERROR(INDEX('Data Annex'!$K$1:$AN$4997,MATCH(K$44&\"|\"&$B74,'Data Annex'!$K$1:$K$4997,0),MATCH(K$45,'Data Annex'!$K$1:$AN$1,0)),\"\")","v":2.7262587500000001E-2},{"$f":"IFERROR(INDEX('Data Annex'!$K$1:$AN$4997,MATCH(L$44&\"|\"&$B74,'Data Annex'!$K$1:$K$4997,0),MATCH(L$45,'Data Annex'!$K$1:$AN$1,0)),\"\")","v":2.6531823699999998E-2},{"$f":"IFERROR(INDEX('Data Annex'!$K$1:$AN$4997,MATCH(M$44&\"|\"&$B74,'Data Annex'!$K$1:$K$4997,0),MATCH(M$45,'Data Annex'!$K$1:$AN$1,0)),\"\")","v":1.4274426000000001E-3},{"$f":"IFERROR(INDEX('Data Annex'!$K$1:$AN$4997,MATCH(N$44&\"|\"&$B74,'Data Annex'!$K$1:$K$4997,0),MATCH(N$45,'Data Annex'!$K$1:$AN$1,0)),\"\")","v":1.3167571E-3},{"$f":"IFERROR(INDEX('Data Annex'!$K$1:$AN$4997,MATCH(O$44&\"|\"&$B74,'Data Annex'!$K$1:$K$4997,0),MATCH(O$45,'Data Annex'!$K$1:$AN$1,0)),\"\")","v":6.1240673999999997E-3},{"$f":"IFERROR(INDEX('Data Annex'!$K$1:$AN$4997,MATCH(P$44&\"|\"&$B74,'Data Annex'!$K$1:$K$4997,0),MATCH(P$45,'Data Annex'!$K$1:$AN$1,0)),\"\")","v":6.3842398999999998E-3},{"$f":"IFERROR(INDEX('Data Annex'!$K$1:$AN$4997,MATCH(Q$44&\"|\"&$B74,'Data Annex'!$K$1:$K$4997,0),MATCH(Q$45,'Data Annex'!$K$1:$AN$1,0)),\"\")","v":1.92876617E-2},{"$f":"IFERROR(INDEX('Data Annex'!$K$1:$AN$4997,MATCH(R$44&\"|\"&$B74,'Data Annex'!$K$1:$K$4997,0),MATCH(R$45,'Data Annex'!$K$1:$AN$1,0)),\"\")","v":2.0145595400000001E-2},{"$f":"IFERROR(INDEX('Data Annex'!$K$1:$AN$4997,MATCH(S$44&\"|\"&$B74,'Data Annex'!$K$1:$K$4997,0),MATCH(S$45,'Data Annex'!$K$1:$AN$1,0)),\"\")","v":1.2647819899999999E-2},{"$f":"IFERROR(INDEX('Data Annex'!$K$1:$AN$4997,MATCH(T$44&\"|\"&$B74,'Data Annex'!$K$1:$K$4997,0),MATCH(T$45,'Data Annex'!$K$1:$AN$1,0)),\"\")","v":1.3672312799999999E-2},{"$f":"IFERROR(INDEX('Data Annex'!$K$1:$AN$4997,MATCH(U$44&\"|\"&$B74,'Data Annex'!$K$1:$K$4997,0),MATCH(U$45,'Data Annex'!$K$1:$AN$1,0)),\"\")","v":5.5591284599999999E-2},{"$f":"IFERROR(INDEX('Data Annex'!$K$1:$AN$4997,MATCH(V$44&\"|\"&$B74,'Data Annex'!$K$1:$K$4997,0),MATCH(V$45,'Data Annex'!$K$1:$AN$1,0)),\"\")","v":5.1902428700000003E-2},"T12_1","T12_1"]
[null,"RO",null,"RO",{"$f":"IFERROR(INDEX('Data Annex'!$K$1:$AN$4997,MATCH(E$44&\"|\"&$B75,'Data Annex'!$K$1:$K$4997,0),MATCH(E$45,'Data Annex'!$K$1:$AN$1,0)),\"\")","v":9.6830560000000002E-4},{"$f":"IFERROR(INDEX('Data Annex'!$K$1:$AN$4997,MATCH(F$44&\"|\"&$B75,'Data Annex'!$K$1:$K$4997,0),MATCH(F$45,'Data Annex'!$K$1:$AN$1,0)),\"\")","v":7.8146758000000004E-3},{"$f":"IFERROR(INDEX('Data Annex'!$K$1:$AN$4997,MATCH(G$44&\"|\"&$B75,'Data Annex'!$K$1:$K$4997,0),MATCH(G$45,'Data Annex'!$K$1:$AN$1,0)),\"\")","v":7.20651972E-2},{"$f":"IFERROR(INDEX('Data Annex'!$K$1:$AN$4997,MATCH(H$44&\"|\"&$B75,'Data Annex'!$K$1:$K$4997,0),MATCH(H$45,'Data Annex'!$K$1:$AN$1,0)),\"\")","v":6.8209631500000006E-2},{"$f":"IFERROR(INDEX('Data Annex'!$K$1:$AN$4997,MATCH(I$44&\"|\"&$B75,'Data Annex'!$K$1:$K$4997,0),MATCH(I$45,'Data Annex'!$K$1:$AN$1,0)),\"\")","v":2.0539897200000001E-2},{"$f":"IFERROR(INDEX('Data Annex'!$K$1:$AN$4997,MATCH(J$44&\"|\"&$B75,'Data Annex'!$K$1:$K$4997,0),MATCH(J$45,'Data Annex'!$K$1:$AN$1,0)),\"\")","v":2.1520255499999998E-2},{"$f":"IFERROR(INDEX('Data Annex'!$K$1:$AN$4997,MATCH(K$44&\"|\"&$B75,'Data Annex'!$K$1:$K$4997,0),MATCH(K$45,'Data Annex'!$K$1:$AN$1,0)),\"\")","v":2.20353387E-2},{"$f":"IFERROR(INDEX('Data Annex'!$K$1:$AN$4997,MATCH(L$44&\"|\"&$B75,'Data Annex'!$K$1:$K$4997,0),MATCH(L$45,'Data Annex'!$K$1:$AN$1,0)),\"\")","v":2.2485862400000001E-2},{"$f":"IFERROR(INDEX('Data Annex'!$K$1:$AN$4997,MATCH(M$44&\"|\"&$B75,'Data Annex'!$K$1:$K$4997,0),MATCH(M$45,'Data Annex'!$K$1:$AN$1,0)),\"\")","v":5.3793299999999999E-5},{"$f":"IFERROR(INDEX('Data Annex'!$K$1:$AN$4997,MATCH(N$44&\"|\"&$B75,'Data Annex'!$K$1:$K$4997,0),MATCH(N$45,'Data Annex'!$K$1:$AN$1,0)),\"\")","v":4.9818699999999998E-5},{"$f":"IFERROR(INDEX('Data Annex'!$K$1:$AN$4997,MATCH(O$44&\"|\"&$B75,'Data Annex'!$K$1:$K$4997,0),MATCH(O$45,'Data Annex'!$K$1:$AN$1,0)),\"\")","v":2.1853368999999998E-3},{"$f":"IFERROR(INDEX('Data Annex'!$K$1:$AN$4997,MATCH(P$44&\"|\"&$B75,'Data Annex'!$K$1:$K$4997,0),MATCH(P$45,'Data Annex'!$K$1:$AN$1,0)),\"\")","v":2.0993322999999999E-3},{"$f":"IFERROR(INDEX('Data Annex'!$K$1:$AN$4997,MATCH(Q$44&\"|\"&$B75,'Data Annex'!$K$1:$K$4997,0),MATCH(Q$45,'Data Annex'!$K$1:$AN$1,0)),\"\")","v":2.8784502900000002E-2},{"$f":"IFERROR(INDEX('Data Annex'!$K$1:$AN$4997,MATCH(R$44&\"|\"&$B75,'Data Annex'!$K$1:$K$4997,0),MATCH(R$45,'Data Annex'!$K$1:$AN$1,0)),\"\")","v":2.91097188E-2},{"$f":"IFERROR(INDEX('Data Annex'!$K$1:$AN$4997,MATCH(S$44&\"|\"&$B75,'Data Annex'!$K$1:$K$4997,0),MATCH(S$45,'Data Annex'!$K$1:$AN$1,0)),\"\")","v":6.1855419E-3},{"$f":"IFERROR(INDEX('Data Annex'!$K$1:$AN$4997,MATCH(T$44&\"|\"&$B75,'Data Annex'!$K$1:$K$4997,0),MATCH(T$45,'Data Annex'!$K$1:$AN$1,0)),\"\")","v":6.1327975000000003E-3},{"$f":"IFERROR(INDEX('Data Annex'!$K$1:$AN$4997,MATCH(U$44&\"|\"&$B75,'Data Annex'!$K$1:$K$4997,0),MATCH(U$45,'Data Annex'!$K$1:$AN$1,0)),\"\")","v":7.5796064999999998E-3},{"$f":"IFERROR(INDEX('Data Annex'!$K$1:$AN$4997,MATCH(V$44&\"|\"&$B75,'Data Annex'!$K$1:$K$4997,0),MATCH(V$45,'Data Annex'!$K$1:$AN$1,0)),\"\")","v":7.5019568E-3},"T12_1","T12_1"]
[null,"SE",null,"SE",{"$f":"IFERROR(INDEX('Data Annex'!$K$1:$AN$4997,MATCH(E$44&\"|\"&$B76,'Data Annex'!$K$1:$K$4997,0),MATCH(E$45,'Data Annex'!$K$1:$AN$1,0)),\"\")","v":6.4022708900000003E-2},{"$f":"IFERROR(INDEX('Data Annex'!$K$1:$AN$4997,MATCH(F$44&\"|\"&$B76,'Data Annex'!$K$1:$K$4997,0),MATCH(F$45,'Data Annex'!$K$1:$AN$1,0)),\"\")","v":5.0006339900000002E-2},{"$f":"IFERROR(INDEX('Data Annex'!$K$1:$AN$4997,MATCH(G$44&\"|\"&$B76,'Data Annex'!$K$1:$K$4997,0),MATCH(G$45,'Data Annex'!$K$1:$AN$1,0)),\"\")","v":0.58719015060000002},{"$f":"IFERROR(INDEX('Data Annex'!$K$1:$AN$4997,MATCH(H$44&\"|\"&$B76,'Data Annex'!$K$1:$K$4997,0),MATCH(H$45,'Data Annex'!$K$1:$AN$1,0)),\"\")","v":0.6105008717},{"$f":"IFERROR(INDEX('Data Annex'!$K$1:$AN$4997,MATCH(I$44&\"|\"&$B76,'Data Annex'!$K$1:$K$4997,0),MATCH(I$45,'Data Annex'!$K$1:$AN$1,0)),\"\")","v":4.0450711299999997E-2},{"$f":"IFERROR(INDEX('Data Annex'!$K$1:$AN$4997,MATCH(J$44&\"|\"&$B76,'Data Annex'!$K$1:$K$4997,0),MATCH(J$45,'Data Annex'!$K$1:$AN$1,0)),\"\")","v":3.9761601200000003E-2},{"$f":"IFERROR(INDEX('Data Annex'!$K$1:$AN$4997,MATCH(K$44&\"|\"&$B76,'Data Annex'!$K$1:$K$4997,0),MATCH(K$45,'Data Annex'!$K$1:$AN$1,0)),\"\")","v":1.9137496899999999E-2},{"$f":"IFERROR(INDEX('Data Annex'!$K$1:$AN$4997,MATCH(L$44&\"|\"&$B76,'Data Annex'!$K$1:$K$4997,0),MATCH(L$45,'Data Annex'!$K$1:$AN$1,0)),\"\")","v":1.6207025600000001E-2},{"$f":"IFERROR(INDEX('Data Annex'!$K$1:$AN$4997,MATCH(M$44&\"|\"&$B76,'Data Annex'!$K$1:$K$4997,0),MATCH(M$45,'Data Annex'!$K$1:$AN$1,0)),\"\")","v":1.6031636999999999E-3},{"$f":"IFERROR(INDEX('Data Annex'!$K$1:$AN$4997,MATCH(N$44&\"|\"&$B76,'Data Annex'!$K$1:$K$4997,0),MATCH(N$45,'Data Annex'!$K$1:$AN$1,0)),\"\")","v":1.6048690999999999E-3},{"$f":"IFERROR(INDEX('Data Annex'!$K$1:$AN$4997,MATCH(O$44&\"|\"&$B76,'Data Annex'!$K$1:$K$4997,0),MATCH(O$45,'Data Annex'!$K$1:$AN$1,0)),\"\")","v":1.9271677000000001E-3},{"$f":"IFERROR(INDEX('Data Annex'!$K$1:$AN$4997,MATCH(P$44&\"|\"&$B76,'Data Annex'!$K$1:$K$4997,0),MATCH(P$45,'Data Annex'!$K$1:$AN$1,0)),\"\")","v":2.3700293000000002E-3},{"$f":"IFERROR(INDEX('Data Annex'!$K$1:$AN$4997,MATCH(Q$44&\"|\"&$B76,'Data Annex'!$K$1:$K$4997,0),MATCH(Q$45,'Data Annex'!$K$1:$AN$1,0)),\"\")","v":5.4045828999999997E-3},{"$f":"IFERROR(INDEX('Data Annex'!$K$1:$AN$4997,MATCH(R$44&\"|\"&$B76,'Data Annex'!$K$1:$K$4997,0),MATCH(R$45,'Data Annex'!$K$1:$AN$1,0)),\"\")","v":6.4629754000000003E-3},{"$f":"IFERROR(INDEX('Data Annex'!$K$1:$AN$4997,MATCH(S$44&\"|\"&$B76,'Data Annex'!$K$1:$K$4997,0),MATCH(S$45,'Data Annex'!$K$1:$AN$1,0)),\"\")","v":4.0137232000000004E-3},{"$f":"IFERROR(INDEX('Data Annex'!$K$1:$AN$4997,MATCH(T$44&\"|\"&$B76,'Data Annex'!$K$1:$K$4997,0),MATCH(T$45,'Data Annex'!$K$1:$AN$1,0)),\"\")","v":3.7301925E-3},{"$f":"IFERROR(INDEX('Data Annex'!$K$1:$AN$4997,MATCH(U$44&\"|\"&$B76,'Data Annex'!$K$1:$K$4997,0),MATCH(U$45,'Data Annex'!$K$1:$AN$1,0)),\"\")","v":1.15932308E-2},{"$f":"IFERROR(INDEX('Data Annex'!$K$1:$AN$4997,MATCH(V$44&\"|\"&$B76,'Data Annex'!$K$1:$K$4997,0),MATCH(V$45,'Data Annex'!$K$1:$AN$1,0)),\"\")","v":1.0703905E-2},"T12_1","T12_1"]
[27,"SI",null,"SI",{"$f":"IFERROR(INDEX('Data Annex'!$K$1:$AN$4997,MATCH(E$44&\"|\"&$B77,'Data Annex'!$K$1:$K$4997,0),MATCH(E$45,'Data Annex'!$K$1:$AN$1,0)),\"\")","v":4.8559294999999999E-3},{"$f":"IFERROR(INDEX('Data Annex'!$K$1:$AN$4997,MATCH(F$44&\"|\"&$B77,'Data Annex'!$K$1:$K$4997,0),MATCH(F$45,'Data Annex'!$K$1:$AN$1,0)),\"\")","v":5.0023584000000003E-3},{"$f":"IFERROR(INDEX('Data Annex'!$K$1:$AN$4997,MATCH(G$44&\"|\"&$B77,'Data Annex'!$K$1:$K$4997,0),MATCH(G$45,'Data Annex'!$K$1:$AN$1,0)),\"\")","v":4.6818284199999997E-2},{"$f":"IFERROR(INDEX('Data Annex'!$K$1:$AN$4997,MATCH(H$44&\"|\"&$B77,'Data Annex'!$K$1:$K$4997,0),MATCH(H$45,'Data Annex'!$K$1:$AN$1,0)),\"\")","v":4.9191009600000002E-2},{"$f":"IFERROR(INDEX('Data Annex'!$K$1:$AN$4997,MATCH(I$44&\"|\"&$B77,'Data Annex'!$K$1:$K$4997,0),MATCH(I$45,'Data Annex'!$K$1:$AN$1,0)),\"\")","v":5.1576324600000001E-2},{"$f":"IFERROR(INDEX('Data Annex'!$K$1:$AN$4997,MATCH(J$44&\"|\"&$B77,'Data Annex'!$K$1:$K$4997,0),MATCH(J$45,'Data Annex'!$K$1:$AN$1,0)),\"\")","v":5.3664891399999998E-2},{"$f":"IFERROR(INDEX('Data Annex'!$K$1:$AN$4997,MATCH(K$44&\"|\"&$B77,'Data Annex'!$K$1:$K$4997,0),MATCH(K$45,'Data Annex'!$K$1:$AN$1,0)),\"\")","v":1.7465731000000002E-2},{"$f":"IFERROR(INDEX('Data Annex'!$K$1:$AN$4997,MATCH(L$44&\"|\"&$B77,'Data Annex'!$K$1:$K$4997,0),MATCH(L$45,'Data Annex'!$K$1:$AN$1,0)),\"\")","v":1.8112843199999999E-2},{"$f":"IFERROR(INDEX('Data Annex'!$K$1:$AN$4997,MATCH(M$44&\"|\"&$B77,'Data Annex'!$K$1:$K$4997,0),MATCH(M$45,'Data Annex'!$K$1:$AN$1,0)),\"\")","v":1.6107899999999999E-5},{"$f":"IFERROR(INDEX('Data Annex'!$K$1:$AN$4997,MATCH(N$44&\"|\"&$B77,'Data Annex'!$K$1:$K$4997,0),MATCH(N$45,'Data Annex'!$K$1:$AN$1,0)),\"\")","v":1.38936E-5},{"$f":"IFERROR(INDEX('Data Annex'!$K$1:$AN$4997,MATCH(O$44&\"|\"&$B77,'Data Annex'!$K$1:$K$4997,0),MATCH(O$45,'Data Annex'!$K$1:$AN$1,0)),\"\")","v":2.9228438999999999E-3},{"$f":"IFERROR(INDEX('Data Annex'!$K$1:$AN$4997,MATCH(P$44&\"|\"&$B77,'Data Annex'!$K$1:$K$4997,0),MATCH(P$45,'Data Annex'!$K$1:$AN$1,0)),\"\")","v":2.6823912000000002E-3},{"$f":"IFERROR(INDEX('Data Annex'!$K$1:$AN$4997,MATCH(Q$44&\"|\"&$B77,'Data Annex'!$K$1:$K$4997,0),MATCH(Q$45,'Data Annex'!$K$1:$AN$1,0)),\"\")","v":1.42703091E-2},{"$f":"IFERROR(INDEX('Data Annex'!$K$1:$AN$4997,MATCH(R$44&\"|\"&$B77,'Data Annex'!$K$1:$K$4997,0),MATCH(R$45,'Data Annex'!$K$1:$AN$1,0)),\"\")","v":1.36368802E-2},{"$f":"IFERROR(INDEX('Data Annex'!$K$1:$AN$4997,MATCH(S$44&\"|\"&$B77,'Data Annex'!$K$1:$K$4997,0),MATCH(S$45,'Data Annex'!$K$1:$AN$1,0)),\"\")","v":9.1085908999999996E-3},{"$f":"IFERROR(INDEX('Data Annex'!$K$1:$AN$4997,MATCH(T$44&\"|\"&$B77,'Data Annex'!$K$1:$K$4997,0),MATCH(T$45,'Data Annex'!$K$1:$AN$1,0)),\"\")","v":8.4576051999999992E-3},{"$f":"IFERROR(INDEX('Data Annex'!$K$1:$AN$4997,MATCH(U$44&\"|\"&$B77,'Data Annex'!$K$1:$K$4997,0),MATCH(U$45,'Data Annex'!$K$1:$AN$1,0)),\"\")","v":2.6065874999999998E-3},{"$f":"IFERROR(INDEX('Data Annex'!$K$1:$AN$4997,MATCH(V$44&\"|\"&$B77,'Data Annex'!$K$1:$K$4997,0),MATCH(V$45,'Data Annex'!$K$1:$AN$1,0)),\"\")","v":2.0713949000000001E-3},"T12_1","T12_1"]
[28,"SK",null,"SK",{"$f":"IFERROR(INDEX('Data Annex'!$K$1:$AN$4997,MATCH(E$44&\"|\"&$B78,'Data Annex'!$K$1:$K$4997,0),MATCH(E$45,'Data Annex'!$K$1:$AN$1,0)),\"\")","v":8.3930176000000002E-3},{"$f":"IFERROR(INDEX('Data Annex'!$K$1:$AN$4997,MATCH(F$44&\"|\"&$B78,'Data Annex'!$K$1:$K$4997,0),MATCH(F$45,'Data Annex'!$K$1:$AN$1,0)),\"\")","v":8.4775388E-3},{"$f":"IFERROR(INDEX('Data Annex'!$K$1:$AN$4997,MATCH(G$44&\"|\"&$B78,'Data Annex'!$K$1:$K$4997,0),MATCH(G$45,'Data Annex'!$K$1:$AN$1,0)),\"\")","v":0.16134989690000001},{"$f":"IFERROR(INDEX('Data Annex'!$K$1:$AN$4997,MATCH(H$44&\"|\"&$B78,'Data Annex'!$K$1:$K$4997,0),MATCH(H$45,'Data Annex'!$K$1:$AN$1,0)),\"\")","v":0.16114515909999999},{"$f":"IFERROR(INDEX('Data Annex'!$K$1:$AN$4997,MATCH(I$44&\"|\"&$B78,'Data Annex'!$K$1:$K$4997,0),MATCH(I$45,'Data Annex'!$K$1:$AN$1,0)),\"\")","v":3.1224583399999999E-2},{"$f":"IFERROR(INDEX('Data Annex'!$K$1:$AN$4997,MATCH(J$44&\"|\"&$B78,'Data Annex'!$K$1:$K$4997,0),MATCH(J$45,'Data Annex'!$K$1:$AN$1,0)),\"\")","v":3.6001213300000001E-2},{"$f":"IFERROR(INDEX('Data Annex'!$K$1:$AN$4997,MATCH(K$44&\"|\"&$B78,'Data Annex'!$K$1:$K$4997,0),MATCH(K$45,'Data Annex'!$K$1:$AN$1,0)),\"\")","v":3.2236713700000003E-2},{"$f":"IFERROR(INDEX('Data Annex'!$K$1:$AN$4997,MATCH(L$44&\"|\"&$B78,'Data Annex'!$K$1:$K$4997,0),MATCH(L$45,'Data Annex'!$K$1:$AN$1,0)),\"\")","v":3.2340935299999998E-2},{"$f":"IFERROR(INDEX('Data Annex'!$K$1:$AN$4997,MATCH(M$44&\"|\"&$B78,'Data Annex'!$K$1:$K$4997,0),MATCH(M$45,'Data Annex'!$K$1:$AN$1,0)),\"\")","v":5.2469050000000003E-4},{"$f":"IFERROR(INDEX('Data Annex'!$K$1:$AN$4997,MATCH(N$44&\"|\"&$B78,'Data Annex'!$K$1:$K$4997,0),MATCH(N$45,'Data Annex'!$K$1:$AN$1,0)),\"\")","v":4.700781E-4},{"$f":"IFERROR(INDEX('Data Annex'!$K$1:$AN$4997,MATCH(O$44&\"|\"&$B78,'Data Annex'!$K$1:$K$4997,0),MATCH(O$45,'Data Annex'!$K$1:$AN$1,0)),\"\")","v":1.9841238999999998E-3},{"$f":"IFERROR(INDEX('Data Annex'!$K$1:$AN$4997,MATCH(P$44&\"|\"&$B78,'Data Annex'!$K$1:$K$4997,0),MATCH(P$45,'Data Annex'!$K$1:$AN$1,0)),\"\")","v":2.0395211999999999E-3},{"$f":"IFERROR(INDEX('Data Annex'!$K$1:$AN$4997,MATCH(Q$44&\"|\"&$B78,'Data Annex'!$K$1:$K$4997,0),MATCH(Q$45,'Data Annex'!$K$1:$AN$1,0)),\"\")","v":1.5422649300000001E-2},{"$f":"IFERROR(INDEX('Data Annex'!$K$1:$AN$4997,MATCH(R$44&\"|\"&$B78,'Data Annex'!$K$1:$K$4997,0),MATCH(R$45,'Data Annex'!$K$1:$AN$1,0)),\"\")","v":1.5316105999999999E-2},{"$f":"IFERROR(INDEX('Data Annex'!$K$1:$AN$4997,MATCH(S$44&\"|\"&$B78,'Data Annex'!$K$1:$K$4997,0),MATCH(S$45,'Data Annex'!$K$1:$AN$1,0)),\"\")","v":7.9694963000000001E-3},{"$f":"IFERROR(INDEX('Data Annex'!$K$1:$AN$4997,MATCH(T$44&\"|\"&$B78,'Data Annex'!$K$1:$K$4997,0),MATCH(T$45,'Data Annex'!$K$1:$AN$1,0)),\"\")","v":8.1404842000000009E-3},{"$f":"IFERROR(INDEX('Data Annex'!$K$1:$AN$4997,MATCH(U$44&\"|\"&$B78,'Data Annex'!$K$1:$K$4997,0),MATCH(U$45,'Data Annex'!$K$1:$AN$1,0)),\"\")","v":2.4939618699999999E-2},{"$f":"IFERROR(INDEX('Data Annex'!$K$1:$AN$4997,MATCH(V$44&\"|\"&$B78,'Data Annex'!$K$1:$K$4997,0),MATCH(V$45,'Data Annex'!$K$1:$AN$1,0)),\"\")","v":2.5707136500000002E-2},"T12_1","T12_1"]
[29,"EU",null,"EU/EEA",{"$f":"IFERROR(INDEX('Data Annex'!$K$1:$AN$4997,MATCH(E$44&\"|\"&$B79,'Data Annex'!$K$1:$K$4997,0),MATCH(E$45,'Data Annex'!$K$1:$AN$1,0)),\"\")","v":3.5880457499999997E-2},{"$f":"IFERROR(INDEX('Data Annex'!$K$1:$AN$4997,MATCH(F$44&\"|\"&$B79,'Data Annex'!$K$1:$K$4997,0),MATCH(F$45,'Data Annex'!$K$1:$AN$1,0)),\"\")","v":4.0239596500000002E-2},{"$f":"IFERROR(INDEX('Data Annex'!$K$1:$AN$4997,MATCH(G$44&\"|\"&$B79,'Data Annex'!$K$1:$K$4997,0),MATCH(G$45,'Data Annex'!$K$1:$AN$1,0)),\"\")","v":0.2479605866},{"$f":"IFERROR(INDEX('Data Annex'!$K$1:$AN$4997,MATCH(H$44&\"|\"&$B79,'Data Annex'!$K$1:$K$4997,0),MATCH(H$45,'Data Annex'!$K$1:$AN$1,0)),\"\")","v":0.24954986940000001},{"$f":"IFERROR(INDEX('Data Annex'!$K$1:$AN$4997,MATCH(I$44&\"|\"&$B79,'Data Annex'!$K$1:$K$4997,0),MATCH(I$45,'Data Annex'!$K$1:$AN$1,0)),\"\")","v":4.8151263600000001E-2},{"$f":"IFERROR(INDEX('Data Annex'!$K$1:$AN$4997,MATCH(J$44&\"|\"&$B79,'Data Annex'!$K$1:$K$4997,0),MATCH(J$45,'Data Annex'!$K$1:$AN$1,0)),\"\")","v":4.8087584799999999E-2},{"$f":"IFERROR(INDEX('Data Annex'!$K$1:$AN$4997,MATCH(K$44&\"|\"&$B79,'Data Annex'!$K$1:$K$4997,0),MATCH(K$45,'Data Annex'!$K$1:$AN$1,0)),\"\")","v":3.8612445099999997E-2},{"$f":"IFERROR(INDEX('Data Annex'!$K$1:$AN$4997,MATCH(L$44&\"|\"&$B79,'Data Annex'!$K$1:$K$4997,0),MATCH(L$45,'Data Annex'!$K$1:$AN$1,0)),\"\")","v":3.9086776400000002E-2},{"$f":"IFERROR(INDEX('Data Annex'!$K$1:$AN$4997,MATCH(M$44&\"|\"&$B79,'Data Annex'!$K$1:$K$4997,0),MATCH(M$45,'Data Annex'!$K$1:$AN$1,0)),\"\")","v":2.5146522000000001E-3},{"$f":"IFERROR(INDEX('Data Annex'!$K$1:$AN$4997,MATCH(N$44&\"|\"&$B79,'Data Annex'!$K$1:$K$4997,0),MATCH(N$45,'Data Annex'!$K$1:$AN$1,0)),\"\")","v":2.3767883E-3},{"$f":"IFERROR(INDEX('Data Annex'!$K$1:$AN$4997,MATCH(O$44&\"|\"&$B79,'Data Annex'!$K$1:$K$4997,0),MATCH(O$45,'Data Annex'!$K$1:$AN$1,0)),\"\")","v":3.1161894999999998E-3},{"$f":"IFERROR(INDEX('Data Annex'!$K$1:$AN$4997,MATCH(P$44&\"|\"&$B79,'Data Annex'!$K$1:$K$4997,0),MATCH(P$45,'Data Annex'!$K$1:$AN$1,0)),\"\")","v":3.2473136000000001E-3},{"$f":"IFERROR(INDEX('Data Annex'!$K$1:$AN$4997,MATCH(Q$44&\"|\"&$B79,'Data Annex'!$K$1:$K$4997,0),MATCH(Q$45,'Data Annex'!$K$1:$AN$1,0)),\"\")","v":1.8888055099999999E-2},{"$f":"IFERROR(INDEX('Data Annex'!$K$1:$AN$4997,MATCH(R$44&\"|\"&$B79,'Data Annex'!$K$1:$K$4997,0),MATCH(R$45,'Data Annex'!$K$1:$AN$1,0)),\"\")","v":1.8774808300000001E-2},{"$f":"IFERROR(INDEX('Data Annex'!$K$1:$AN$4997,MATCH(S$44&\"|\"&$B79,'Data Annex'!$K$1:$K$4997,0),MATCH(S$45,'Data Annex'!$K$1:$AN$1,0)),\"\")","v":6.3359532000000001E-3},{"$f":"IFERROR(INDEX('Data Annex'!$K$1:$AN$4997,MATCH(T$44&\"|\"&$B79,'Data Annex'!$K$1:$K$4997,0),MATCH(T$45,'Data Annex'!$K$1:$AN$1,0)),\"\")","v":6.0288080000000001E-3},{"$f":"IFERROR(INDEX('Data Annex'!$K$1:$AN$4997,MATCH(U$44&\"|\"&$B79,'Data Annex'!$K$1:$K$4997,0),MATCH(U$45,'Data Annex'!$K$1:$AN$1,0)),\"\")","v":3.7602683900000003E-2},{"$f":"IFERROR(INDEX('Data Annex'!$K$1:$AN$4997,MATCH(V$44&\"|\"&$B79,'Data Annex'!$K$1:$K$4997,0),MATCH(V$45,'Data Annex'!$K$1:$AN$1,0)),\"\")","v":3.0996174800000002E-2},"T12_1","T12_1"]
[10,"GB",null,"GB",{"$f":"IFERROR(INDEX('Data Annex'!$K$1:$AN$4997,MATCH(E$44&\"|\"&$B80,'Data Annex'!$K$1:$K$4997,0),MATCH(E$45,'Data Annex'!$K$1:$AN$1,0)),\"\")","v":2.1779441999999999E-3},{"$f":"IFERROR(INDEX('Data Annex'!$K$1:$AN$4997,MATCH(F$44&\"|\"&$B80,'Data Annex'!$K$1:$K$4997,0),MATCH(F$45,'Data Annex'!$K$1:$AN$1,0)),\"\")","v":1.1514937E-3},{"$f":"IFERROR(INDEX('Data Annex'!$K$1:$AN$4997,MATCH(G$44&\"|\"&$B80,'Data Annex'!$K$1:$K$4997,0),MATCH(G$45,'Data Annex'!$K$1:$AN$1,0)),\"\")","v":0.24536529739999999},{"$f":"IFERROR(INDEX('Data Annex'!$K$1:$AN$4997,MATCH(H$44&\"|\"&$B80,'Data Annex'!$K$1:$K$4997,0),MATCH(H$45,'Data Annex'!$K$1:$AN$1,0)),\"\")","v":0.2489847838},{"$f":"IFERROR(INDEX('Data Annex'!$K$1:$AN$4997,MATCH(I$44&\"|\"&$B80,'Data Annex'!$K$1:$K$4997,0),MATCH(I$45,'Data Annex'!$K$1:$AN$1,0)),\"\")","v":4.2313157099999998E-2},{"$f":"IFERROR(INDEX('Data Annex'!$K$1:$AN$4997,MATCH(J$44&\"|\"&$B80,'Data Annex'!$K$1:$K$4997,0),MATCH(J$45,'Data Annex'!$K$1:$AN$1,0)),\"\")","v":4.1619902700000003E-2},{"$f":"IFERROR(INDEX('Data Annex'!$K$1:$AN$4997,MATCH(K$44&\"|\"&$B80,'Data Annex'!$K$1:$K$4997,0),MATCH(K$45,'Data Annex'!$K$1:$AN$1,0)),\"\")","v":4.6841880000000002E-2},{"$f":"IFERROR(INDEX('Data Annex'!$K$1:$AN$4997,MATCH(L$44&\"|\"&$B80,'Data Annex'!$K$1:$K$4997,0),MATCH(L$45,'Data Annex'!$K$1:$AN$1,0)),\"\")","v":4.7314670099999998E-2},{"$f":"IFERROR(INDEX('Data Annex'!$K$1:$AN$4997,MATCH(M$44&\"|\"&$B80,'Data Annex'!$K$1:$K$4997,0),MATCH(M$45,'Data Annex'!$K$1:$AN$1,0)),\"\")","v":3.1309904999999999E-3},{"$f":"IFERROR(INDEX('Data Annex'!$K$1:$AN$4997,MATCH(N$44&\"|\"&$B80,'Data Annex'!$K$1:$K$4997,0),MATCH(N$45,'Data Annex'!$K$1:$AN$1,0)),\"\")","v":2.6520858E-3},{"$f":"IFERROR(INDEX('Data Annex'!$K$1:$AN$4997,MATCH(O$44&\"|\"&$B80,'Data Annex'!$K$1:$K$4997,0),MATCH(O$45,'Data Annex'!$K$1:$AN$1,0)),\"\")","v":1.0624697799999999E-2},{"$f":"IFERROR(INDEX('Data Annex'!$K$1:$AN$4997,MATCH(P$44&\"|\"&$B80,'Data Annex'!$K$1:$K$4997,0),MATCH(P$45,'Data Annex'!$K$1:$AN$1,0)),\"\")","v":1.1150673599999999E-2},{"$f":"IFERROR(INDEX('Data Annex'!$K$1:$AN$4997,MATCH(Q$44&\"|\"&$B80,'Data Annex'!$K$1:$K$4997,0),MATCH(Q$45,'Data Annex'!$K$1:$AN$1,0)),\"\")","v":2.30667136E-2},{"$f":"IFERROR(INDEX('Data Annex'!$K$1:$AN$4997,MATCH(R$44&\"|\"&$B80,'Data Annex'!$K$1:$K$4997,0),MATCH(R$45,'Data Annex'!$K$1:$AN$1,0)),\"\")","v":2.3176196900000001E-2},{"$f":"IFERROR(INDEX('Data Annex'!$K$1:$AN$4997,MATCH(S$44&\"|\"&$B80,'Data Annex'!$K$1:$K$4997,0),MATCH(S$45,'Data Annex'!$K$1:$AN$1,0)),\"\")","v":7.8854045000000001E-3},{"$f":"IFERROR(INDEX('Data Annex'!$K$1:$AN$4997,MATCH(T$44&\"|\"&$B80,'Data Annex'!$K$1:$K$4997,0),MATCH(T$45,'Data Annex'!$K$1:$AN$1,0)),\"\")","v":8.7480746000000009E-3},{"$f":"IFERROR(INDEX('Data Annex'!$K$1:$AN$4997,MATCH(U$44&\"|\"&$B80,'Data Annex'!$K$1:$K$4997,0),MATCH(U$45,'Data Annex'!$K$1:$AN$1,0)),\"\")","v":1.8382826200000001E-2},{"$f":"IFERROR(INDEX('Data Annex'!$K$1:$AN$4997,MATCH(V$44&\"|\"&$B80,'Data Annex'!$K$1:$K$4997,0),MATCH(V$45,'Data Annex'!$K$1:$AN$1,0)),\"\")","v":1.8787461200000001E-2},"T12_1","T12_1"]
[null,null,null,null,null,null,null,null,null,null,null,null,null,null,null,null,null,null,null,null,null,null,"T12_1","T12_1"]
[null,null,null,"The data is based on gross carrying amounts, other than held for trading."]
[]
[null,null,null,"Individual country data includes subsidiaries, which are excluded from EU aggregate. For example, at country level the subsidiary in country X of a bank domiciled in country Y is included both in data for countries X and Y (for the latter as part of the consolidated entity). In the EU aggregate, only the consolidated entity domiciled in country Y is considered.  The sample of banks is unbalanced and reviewed annually.\nAs of Q1 2020 onwards UK banks are removed from the EU/EEA aggregate and subsidiaries of UK banks in EU member states are used instead.\n"]

{"sheet":"NPL ratio by NACE","index":7,"n_rows":84,"n_cols":24,"rows_kept":84,"cut":false,"hidden":true,"merged":[[47,16,47,17],[47,18,47,19],[47,20,47,21],[83,3,83,24],[47,4,47,5],[47,6,47,7],[47,8,47,9],[47,10,47,11],[47,12,47,13],[47,14,47,15],[45,3,46,21],[2,3,2,23],[3,3,3,23],[5,3,5,22],[6,3,6,22],[7,3,8,23],[9,4,9,5],[9,6,9,7],[9,8,9,9],[9,10,9,11],[9,12,9,13],[9,14,9,15],[9,16,9,17],[9,18,9,19],[9,20,9,21],[9,22,9,23]]}
[null,null,null,null,"T26_1","T26_1","T26_2","T26_2","T26_3","T26_3","T26_4","T26_4","T26_5","T26_5","T26_6","T26_6","T26_7","T26_7","T26_8","T26_8","T26_9","T26_9","T2610","T2610"]
[{"$f":"'Reference Dates'!$C$8","v":"202012"},null,null,null,{"$f":"TEXT(E11,\"YYYYMM\")+0","v":202009},{"$f":"TEXT(F11,\"YYYYMM\")+0","v":202012},202009,202012,202009,202012,202009,202012,202009,202012,202009,202012,202009,202012,202009,202012,202009,202012,202009,202012]
[{"$f":"DATE(LEFT(A2,4),RIGHT(A2,2),1)","v":"2020-12-01"},null,null,"Statistical Annex"]
[null,null,null,"Non-trading loans and advances to non-financial corporations by sector"]
[]
[]
[]
[null,null,null,"NPL ratios of NFC loans and advances by NACE code (other than trading exposures) (1/2)"]
[]
[null,null,null,"%","A Agriculture, forestry and fishing",null,"B Mining and quarrying",null,"C Manufacturing",null,"D Electricity, gas, steam and air conditioning supply",null,"E Water supply",null,"F Construction",null,"G Wholesale and retail trade",null,"H Transport and storage",null,"I Accommodation and food service activities",null,"J Information and communication"]
[null,null,null,null,{"$f":"EOMONTH($A$3,-3)","v":"2020-09-30"},{"$f":"EOMONTH($A$3,0)","v":"2020-12-31"},{"$f":"EOMONTH($A$3,-3)","v":"2020-09-30"},{"$f":"EOMONTH($A$3,0)","v":"2020-12-31"},{"$f":"EOMONTH($A$3,-3)","v":"2020-09-30"},{"$f":"EOMONTH($A$3,0)","v":"2020-12-31"},{"$f":"EOMONTH($A$3,-3)","v":"2020-09-30"},{"$f":"EOMONTH($A$3,0)","v":"2020-12-31"},{"$f":"EOMONTH($A$3,-3)","v":"2020-09-30"},{"$f":"EOMONTH($A$3,0)","v":"2020-12-31"},{"$f":"EOMONTH($A$3,-3)","v":"2020-09-30"},{"$f":"EOMONTH($A$3,0)","v":"2020-12-31"},{"$f":"EOMONTH($A$3,-3)","v":"2020-09-30"},{"$f":"EOMONTH($A$3,0)","v":"2020-12-31"},{"$f":"EOMONTH($A$3,-3)","v":"2020-09-30"},{"$f":"EOMONTH($A$3,0)","v":"2020-12-31"},{"$f":"EOMONTH($A$3,-3)","v":"2020-09-30"},{"$f":"EOMONTH($A$3,0)","v":"2020-12-31"},{"$f":"EOMONTH($A$3,-3)","v":"2020-09-30"},{"$f":"EOMONTH($A$3,0)","v":"2020-12-31"}]
[null,"AT",null,"AT",{"$f":"IFERROR(INDEX('Data Annex'!$K$1:$AN$4997,MATCH(E$1&\"|\"&$B12,'Data Annex'!$K$1:$K$4997,0),MATCH(E$2,'Data Annex'!$K$1:$AN$1,0)),\"\")","v":3.4314182999999998E-2},{"$f":"IFERROR(INDEX('Data Annex'!$K$1:$AN$4997,MATCH(F$1&\"|\"&$B12,'Data Annex'!$K$1:$K$4997,0),MATCH(F$2,'Data Annex'!$K$1:$AN$1,0)),\"\")","v":3.94215043E-2},{"$f":"IFERROR(INDEX('Data Annex'!$K$1:$AN$4997,MATCH(G$1&\"|\"&$B12,'Data Annex'!$K$1:$K$4997,0),MATCH(G$2,'Data Annex'!$K$1:$AN$1,0)),\"\")","v":5.0332841900000001E-2},{"$f":"IFERROR(INDEX('Data Annex'!$K$1:$AN$4997,MATCH(H$1&\"|\"&$B12,'Data Annex'!$K$1:$K$4997,0),MATCH(H$2,'Data Annex'!$K$1:$AN$1,0)),\"\")","v":4.9296174900000003E-2},{"$f":"IFERROR(INDEX('Data Annex'!$K$1:$AN$4997,MATCH(I$1&\"|\"&$B12,'Data Annex'!$K$1:$K$4997,0),MATCH(I$2,'Data Annex'!$K$1:$AN$1,0)),\"\")","v":3.3440639299999998E-2},{"$f":"IFERROR(INDEX('Data Annex'!$K$1:$AN$4997,MATCH(J$1&\"|\"&$B12,'Data Annex'!$K$1:$K$4997,0),MATCH(J$2,'Data Annex'!$K$1:$AN$1,0)),\"\")","v":3.8169660899999999E-2},{"$f":"IFERROR(INDEX('Data Annex'!$K$1:$AN$4997,MATCH(K$1&\"|\"&$B12,'Data Annex'!$K$1:$K$4997,0),MATCH(K$2,'Data Annex'!$K$1:$AN$1,0)),\"\")","v":3.15819034E-2},{"$f":"IFERROR(INDEX('Data Annex'!$K$1:$AN$4997,MATCH(L$1&\"|\"&$B12,'Data Annex'!$K$1:$K$4997,0),MATCH(L$2,'Data Annex'!$K$1:$AN$1,0)),\"\")","v":2.85779967E-2},{"$f":"IFERROR(INDEX('Data Annex'!$K$1:$AN$4997,MATCH(M$1&\"|\"&$B12,'Data Annex'!$K$1:$K$4997,0),MATCH(M$2,'Data Annex'!$K$1:$AN$1,0)),\"\")","v":1.6505986699999999E-2},{"$f":"IFERROR(INDEX('Data Annex'!$K$1:$AN$4997,MATCH(N$1&\"|\"&$B12,'Data Annex'!$K$1:$K$4997,0),MATCH(N$2,'Data Annex'!$K$1:$AN$1,0)),\"\")","v":1.8734663499999998E-2},{"$f":"IFERROR(INDEX('Data Annex'!$K$1:$AN$4997,MATCH(O$1&\"|\"&$B12,'Data Annex'!$K$1:$K$4997,0),MATCH(O$2,'Data Annex'!$K$1:$AN$1,0)),\"\")","v":3.7377616799999999E-2},{"$f":"IFERROR(INDEX('Data Annex'!$K$1:$AN$4997,MATCH(P$1&\"|\"&$B12,'Data Annex'!$K$1:$K$4997,0),MATCH(P$2,'Data Annex'!$K$1:$AN$1,0)),\"\")","v":3.6709169E-2},{"$f":"IFERROR(INDEX('Data Annex'!$K$1:$AN$4997,MATCH(Q$1&\"|\"&$B12,'Data Annex'!$K$1:$K$4997,0),MATCH(Q$2,'Data Annex'!$K$1:$AN$1,0)),\"\")","v":3.8433765100000003E-2},{"$f":"IFERROR(INDEX('Data Annex'!$K$1:$AN$4997,MATCH(R$1&\"|\"&$B12,'Data Annex'!$K$1:$K$4997,0),MATCH(R$2,'Data Annex'!$K$1:$AN$1,0)),\"\")","v":4.1241186999999999E-2},{"$f":"IFERROR(INDEX('Data Annex'!$K$1:$AN$4997,MATCH(S$1&\"|\"&$B12,'Data Annex'!$K$1:$K$4997,0),MATCH(S$2,'Data Annex'!$K$1:$AN$1,0)),\"\")","v":4.3955341699999997E-2},{"$f":"IFERROR(INDEX('Data Annex'!$K$1:$AN$4997,MATCH(T$1&\"|\"&$B12,'Data Annex'!$K$1:$K$4997,0),MATCH(T$2,'Data Annex'!$K$1:$AN$1,0)),\"\")","v":4.4163507999999997E-2},{"$f":"IFERROR(INDEX('Data Annex'!$K$1:$AN$4997,MATCH(U$1&\"|\"&$B12,'Data Annex'!$K$1:$K$4997,0),MATCH(U$2,'Data Annex'!$K$1:$AN$1,0)),\"\")","v":4.4352341000000003E-2},{"$f":"IFERROR(INDEX('Data Annex'!$K$1:$AN$4997,MATCH(V$1&\"|\"&$B12,'Data Annex'!$K$1:$K$4997,0),MATCH(V$2,'Data Annex'!$K$1:$AN$1,0)),\"\")","v":6.4142221299999996E-2},{"$f":"IFERROR(INDEX('Data Annex'!$K$1:$AN$4997,MATCH(W$1&\"|\"&$B12,'Data Annex'!$K$1:$K$4997,0),MATCH(W$2,'Data Annex'!$K$1:$AN$1,0)),\"\")","v":3.0179375800000002E-2},{"$f":"IFERROR(INDEX('Data Annex'!$K$1:$AN$4997,MATCH(X$1&\"|\"&$B12,'Data Annex'!$K$1:$K$4997,0),MATCH(X$2,'Data Annex'!$K$1:$AN$1,0)),\"\")","v":4.0217412899999999E-2}]
[null,"BE",null,"BE",{"$f":"IFERROR(INDEX('Data Annex'!$K$1:$AN$4997,MATCH(E$1&\"|\"&$B13,'Data Annex'!$K$1:$K$4997,0),MATCH(E$2,'Data Annex'!$K$1:$AN$1,0)),\"\")","v":3.7375971000000001E-2},{"$f":"IFERROR(INDEX('Data Annex'!$K$1:$AN$4997,MATCH(F$1&\"|\"&$B13,'Data Annex'!$K$1:$K$4997,0),MATCH(F$2,'Data Annex'!$K$1:$AN$1,0)),\"\")","v":3.7874924499999997E-2},{"$f":"IFERROR(INDEX('Data Annex'!$K$1:$AN$4997,MATCH(G$1&\"|\"&$B13,'Data Annex'!$K$1:$K$4997,0),MATCH(G$2,'Data Annex'!$K$1:$AN$1,0)),\"\")","v":3.5564998100000002E-2},{"$f":"IFERROR(INDEX('Data Annex'!$K$1:$AN$4997,MATCH(H$1&\"|\"&$B13,'Data Annex'!$K$1:$K$4997,0),MATCH(H$2,'Data Annex'!$K$1:$AN$1,0)),\"\")","v":3.4049603999999997E-2},{"$f":"IFERROR(INDEX('Data Annex'!$K$1:$AN$4997,MATCH(I$1&\"|\"&$B13,'Data Annex'!$K$1:$K$4997,0),MATCH(I$2,'Data Annex'!$K$1:$AN$1,0)),\"\")","v":4.6272629000000003E-2},{"$f":"IFERROR(INDEX('Data Annex'!$K$1:$AN$4997,MATCH(J$1&\"|\"&$B13,'Data Annex'!$K$1:$K$4997,0),MATCH(J$2,'Data Annex'!$K$1:$AN$1,0)),\"\")","v":4.8814817099999998E-2},{"$f":"IFERROR(INDEX('Data Annex'!$K$1:$AN$4997,MATCH(K$1&\"|\"&$B13,'Data Annex'!$K$1:$K$4997,0),MATCH(K$2,'Data Annex'!$K$1:$AN$1,0)),\"\")","v":2.1242968800000001E-2},{"$f":"IFERROR(INDEX('Data Annex'!$K$1:$AN$4997,MATCH(L$1&\"|\"&$B13,'Data Annex'!$K$1:$K$4997,0),MATCH(L$2,'Data Annex'!$K$1:$AN$1,0)),\"\")","v":2.1753176499999999E-2},{"$f":"IFERROR(INDEX('Data Annex'!$K$1:$AN$4997,MATCH(M$1&\"|\"&$B13,'Data Annex'!$K$1:$K$4997,0),MATCH(M$2,'Data Annex'!$K$1:$AN$1,0)),\"\")","v":2.22451766E-2},{"$f":"IFERROR(INDEX('Data Annex'!$K$1:$AN$4997,MATCH(N$1&\"|\"&$B13,'Data Annex'!$K$1:$K$4997,0),MATCH(N$2,'Data Annex'!$K$1:$AN$1,0)),\"\")","v":2.2781659900000001E-2},{"$f":"IFERROR(INDEX('Data Annex'!$K$1:$AN$4997,MATCH(O$1&\"|\"&$B13,'Data Annex'!$K$1:$K$4997,0),MATCH(O$2,'Data Annex'!$K$1:$AN$1,0)),\"\")","v":4.6194706500000002E-2},{"$f":"IFERROR(INDEX('Data Annex'!$K$1:$AN$4997,MATCH(P$1&\"|\"&$B13,'Data Annex'!$K$1:$K$4997,0),MATCH(P$2,'Data Annex'!$K$1:$AN$1,0)),\"\")","v":5.0899592E-2},{"$f":"IFERROR(INDEX('Data Annex'!$K$1:$AN$4997,MATCH(Q$1&\"|\"&$B13,'Data Annex'!$K$1:$K$4997,0),MATCH(Q$2,'Data Annex'!$K$1:$AN$1,0)),\"\")","v":5.8938519799999999E-2},{"$f":"IFERROR(INDEX('Data Annex'!$K$1:$AN$4997,MATCH(R$1&\"|\"&$B13,'Data Annex'!$K$1:$K$4997,0),MATCH(R$2,'Data Annex'!$K$1:$AN$1,0)),\"\")","v":5.8511870399999999E-2},{"$f":"IFERROR(INDEX('Data Annex'!$K$1:$AN$4997,MATCH(S$1&\"|\"&$B13,'Data Annex'!$K$1:$K$4997,0),MATCH(S$2,'Data Annex'!$K$1:$AN$1,0)),\"\")","v":3.0447226800000001E-2},{"$f":"IFERROR(INDEX('Data Annex'!$K$1:$AN$4997,MATCH(T$1&\"|\"&$B13,'Data Annex'!$K$1:$K$4997,0),MATCH(T$2,'Data Annex'!$K$1:$AN$1,0)),\"\")","v":3.18685316E-2},{"$f":"IFERROR(INDEX('Data Annex'!$K$1:$AN$4997,MATCH(U$1&\"|\"&$B13,'Data Annex'!$K$1:$K$4997,0),MATCH(U$2,'Data Annex'!$K$1:$AN$1,0)),\"\")","v":5.3973008199999999E-2},{"$f":"IFERROR(INDEX('Data Annex'!$K$1:$AN$4997,MATCH(V$1&\"|\"&$B13,'Data Annex'!$K$1:$K$4997,0),MATCH(V$2,'Data Annex'!$K$1:$AN$1,0)),\"\")","v":7.3093753100000006E-2},{"$f":"IFERROR(INDEX('Data Annex'!$K$1:$AN$4997,MATCH(W$1&\"|\"&$B13,'Data Annex'!$K$1:$K$4997,0),MATCH(W$2,'Data Annex'!$K$1:$AN$1,0)),\"\")","v":2.2424453399999999E-2},{"$f":"IFERROR(INDEX('Data Annex'!$K$1:$AN$4997,MATCH(X$1&\"|\"&$B13,'Data Annex'!$K$1:$K$4997,0),MATCH(X$2,'Data Annex'!$K$1:$AN$1,0)),\"\")","v":2.31661282E-2}]
[null,"BG",null,"BG",{"$f":"IFERROR(INDEX('Data Annex'!$K$1:$AN$4997,MATCH(E$1&\"|\"&$B14,'Data Annex'!$K$1:$K$4997,0),MATCH(E$2,'Data Annex'!$K$1:$AN$1,0)),\"\")","v":4.9866078199999997E-2},{"$f":"IFERROR(INDEX('Data Annex'!$K$1:$AN$4997,MATCH(F$1&\"|\"&$B14,'Data Annex'!$K$1:$K$4997,0),MATCH(F$2,'Data Annex'!$K$1:$AN$1,0)),\"\")","v":4.7882812400000002E-2},{"$f":"IFERROR(INDEX('Data Annex'!$K$1:$AN$4997,MATCH(G$1&\"|\"&$B14,'Data Annex'!$K$1:$K$4997,0),MATCH(G$2,'Data Annex'!$K$1:$AN$1,0)),\"\")","v":0.55018838189999997},{"$f":"IFERROR(INDEX('Data Annex'!$K$1:$AN$4997,MATCH(H$1&\"|\"&$B14,'Data Annex'!$K$1:$K$4997,0),MATCH(H$2,'Data Annex'!$K$1:$AN$1,0)),\"\")","v":0.55950994070000004},{"$f":"IFERROR(INDEX('Data Annex'!$K$1:$AN$4997,MATCH(I$1&\"|\"&$B14,'Data Annex'!$K$1:$K$4997,0),MATCH(I$2,'Data Annex'!$K$1:$AN$1,0)),\"\")","v":6.8184236800000006E-2},{"$f":"IFERROR(INDEX('Data Annex'!$K$1:$AN$4997,MATCH(J$1&\"|\"&$B14,'Data Annex'!$K$1:$K$4997,0),MATCH(J$2,'Data Annex'!$K$1:$AN$1,0)),\"\")","v":6.5404575300000004E-2},{"$f":"IFERROR(INDEX('Data Annex'!$K$1:$AN$4997,MATCH(K$1&\"|\"&$B14,'Data Annex'!$K$1:$K$4997,0),MATCH(K$2,'Data Annex'!$K$1:$AN$1,0)),\"\")","v":9.5333416500000004E-2},{"$f":"IFERROR(INDEX('Data Annex'!$K$1:$AN$4997,MATCH(L$1&\"|\"&$B14,'Data Annex'!$K$1:$K$4997,0),MATCH(L$2,'Data Annex'!$K$1:$AN$1,0)),\"\")","v":9.0491141999999997E-2},{"$f":"IFERROR(INDEX('Data Annex'!$K$1:$AN$4997,MATCH(M$1&\"|\"&$B14,'Data Annex'!$K$1:$K$4997,0),MATCH(M$2,'Data Annex'!$K$1:$AN$1,0)),\"\")","v":0.2214880598},{"$f":"IFERROR(INDEX('Data Annex'!$K$1:$AN$4997,MATCH(N$1&\"|\"&$B14,'Data Annex'!$K$1:$K$4997,0),MATCH(N$2,'Data Annex'!$K$1:$AN$1,0)),\"\")","v":0.1934119114},{"$f":"IFERROR(INDEX('Data Annex'!$K$1:$AN$4997,MATCH(O$1&\"|\"&$B14,'Data Annex'!$K$1:$K$4997,0),MATCH(O$2,'Data Annex'!$K$1:$AN$1,0)),\"\")","v":0.2286924524},{"$f":"IFERROR(INDEX('Data Annex'!$K$1:$AN$4997,MATCH(P$1&\"|\"&$B14,'Data Annex'!$K$1:$K$4997,0),MATCH(P$2,'Data Annex'!$K$1:$AN$1,0)),\"\")","v":0.25046860160000001},{"$f":"IFERROR(INDEX('Data Annex'!$K$1:$AN$4997,MATCH(Q$1&\"|\"&$B14,'Data Annex'!$K$1:$K$4997,0),MATCH(Q$2,'Data Annex'!$K$1:$AN$1,0)),\"\")","v":0.1080960178},{"$f":"IFERROR(INDEX('Data Annex'!$K$1:$AN$4997,MATCH(R$1&\"|\"&$B14,'Data Annex'!$K$1:$K$4997,0),MATCH(R$2,'Data Annex'!$K$1:$AN$1,0)),\"\")","v":0.112850541},{"$f":"IFERROR(INDEX('Data Annex'!$K$1:$AN$4997,MATCH(S$1&\"|\"&$B14,'Data Annex'!$K$1:$K$4997,0),MATCH(S$2,'Data Annex'!$K$1:$AN$1,0)),\"\")","v":7.3135966499999996E-2},{"$f":"IFERROR(INDEX('Data Annex'!$K$1:$AN$4997,MATCH(T$1&\"|\"&$B14,'Data Annex'!$K$1:$K$4997,0),MATCH(T$2,'Data Annex'!$K$1:$AN$1,0)),\"\")","v":6.5948405700000004E-2},{"$f":"IFERROR(INDEX('Data Annex'!$K$1:$AN$4997,MATCH(U$1&\"|\"&$B14,'Data Annex'!$K$1:$K$4997,0),MATCH(U$2,'Data Annex'!$K$1:$AN$1,0)),\"\")","v":0.1024646483},{"$f":"IFERROR(INDEX('Data Annex'!$K$1:$AN$4997,MATCH(V$1&\"|\"&$B14,'Data Annex'!$K$1:$K$4997,0),MATCH(V$2,'Data Annex'!$K$1:$AN$1,0)),\"\")","v":0.13405421789999999},{"$f":"IFERROR(INDEX('Data Annex'!$K$1:$AN$4997,MATCH(W$1&\"|\"&$B14,'Data Annex'!$K$1:$K$4997,0),MATCH(W$2,'Data Annex'!$K$1:$AN$1,0)),\"\")","v":0.1601854476},{"$f":"IFERROR(INDEX('Data Annex'!$K$1:$AN$4997,MATCH(X$1&\"|\"&$B14,'Data Annex'!$K$1:$K$4997,0),MATCH(X$2,'Data Annex'!$K$1:$AN$1,0)),\"\")","v":0.1628063001}]
[null,"CY",null,"CY",{"$f":"IFERROR(INDEX('Data Annex'!$K$1:$AN$4997,MATCH(E$1&\"|\"&$B15,'Data Annex'!$K$1:$K$4997,0),MATCH(E$2,'Data Annex'!$K$1:$AN$1,0)),\"\")","v":0.23598538050000001},{"$f":"IFERROR(INDEX('Data Annex'!$K$1:$AN$4997,MATCH(F$1&\"|\"&$B15,'Data Annex'!$K$1:$K$4997,0),MATCH(F$2,'Data Annex'!$K$1:$AN$1,0)),\"\")","v":0.31564483129999998},{"$f":"IFERROR(INDEX('Data Annex'!$K$1:$AN$4997,MATCH(G$1&\"|\"&$B15,'Data Annex'!$K$1:$K$4997,0),MATCH(G$2,'Data Annex'!$K$1:$AN$1,0)),\"\")","v":0.1681454715},{"$f":"IFERROR(INDEX('Data Annex'!$K$1:$AN$4997,MATCH(H$1&\"|\"&$B15,'Data Annex'!$K$1:$K$4997,0),MATCH(H$2,'Data Annex'!$K$1:$AN$1,0)),\"\")","v":0.1043463853},{"$f":"IFERROR(INDEX('Data Annex'!$K$1:$AN$4997,MATCH(I$1&\"|\"&$B15,'Data Annex'!$K$1:$K$4997,0),MATCH(I$2,'Data Annex'!$K$1:$AN$1,0)),\"\")","v":0.18234724450000001},{"$f":"IFERROR(INDEX('Data Annex'!$K$1:$AN$4997,MATCH(J$1&\"|\"&$B15,'Data Annex'!$K$1:$K$4997,0),MATCH(J$2,'Data Annex'!$K$1:$AN$1,0)),\"\")","v":0.16195756359999999},{"$f":"IFERROR(INDEX('Data Annex'!$K$1:$AN$4997,MATCH(K$1&\"|\"&$B15,'Data Annex'!$K$1:$K$4997,0),MATCH(K$2,'Data Annex'!$K$1:$AN$1,0)),\"\")","v":2.8726415299999999E-2},{"$f":"IFERROR(INDEX('Data Annex'!$K$1:$AN$4997,MATCH(L$1&\"|\"&$B15,'Data Annex'!$K$1:$K$4997,0),MATCH(L$2,'Data Annex'!$K$1:$AN$1,0)),\"\")","v":1.30849876E-2},{"$f":"IFERROR(INDEX('Data Annex'!$K$1:$AN$4997,MATCH(M$1&\"|\"&$B15,'Data Annex'!$K$1:$K$4997,0),MATCH(M$2,'Data Annex'!$K$1:$AN$1,0)),\"\")","v":5.0601789799999998E-2},{"$f":"IFERROR(INDEX('Data Annex'!$K$1:$AN$4997,MATCH(N$1&\"|\"&$B15,'Data Annex'!$K$1:$K$4997,0),MATCH(N$2,'Data Annex'!$K$1:$AN$1,0)),\"\")","v":1.3120974699999999E-2},{"$f":"IFERROR(INDEX('Data Annex'!$K$1:$AN$4997,MATCH(O$1&\"|\"&$B15,'Data Annex'!$K$1:$K$4997,0),MATCH(O$2,'Data Annex'!$K$1:$AN$1,0)),\"\")","v":0.34606586779999998},{"$f":"IFERROR(INDEX('Data Annex'!$K$1:$AN$4997,MATCH(P$1&\"|\"&$B15,'Data Annex'!$K$1:$K$4997,0),MATCH(P$2,'Data Annex'!$K$1:$AN$1,0)),\"\")","v":0.5946315418},{"$f":"IFERROR(INDEX('Data Annex'!$K$1:$AN$4997,MATCH(Q$1&\"|\"&$B15,'Data Annex'!$K$1:$K$4997,0),MATCH(Q$2,'Data Annex'!$K$1:$AN$1,0)),\"\")","v":0.2686343846},{"$f":"IFERROR(INDEX('Data Annex'!$K$1:$AN$4997,MATCH(R$1&\"|\"&$B15,'Data Annex'!$K$1:$K$4997,0),MATCH(R$2,'Data Annex'!$K$1:$AN$1,0)),\"\")","v":0.3151394387},{"$f":"IFERROR(INDEX('Data Annex'!$K$1:$AN$4997,MATCH(S$1&\"|\"&$B15,'Data Annex'!$K$1:$K$4997,0),MATCH(S$2,'Data Annex'!$K$1:$AN$1,0)),\"\")","v":4.1543045000000001E-2},{"$f":"IFERROR(INDEX('Data Annex'!$K$1:$AN$4997,MATCH(T$1&\"|\"&$B15,'Data Annex'!$K$1:$K$4997,0),MATCH(T$2,'Data Annex'!$K$1:$AN$1,0)),\"\")","v":5.36061091E-2},{"$f":"IFERROR(INDEX('Data Annex'!$K$1:$AN$4997,MATCH(U$1&\"|\"&$B15,'Data Annex'!$K$1:$K$4997,0),MATCH(U$2,'Data Annex'!$K$1:$AN$1,0)),\"\")","v":8.2637993800000004E-2},{"$f":"IFERROR(INDEX('Data Annex'!$K$1:$AN$4997,MATCH(V$1&\"|\"&$B15,'Data Annex'!$K$1:$K$4997,0),MATCH(V$2,'Data Annex'!$K$1:$AN$1,0)),\"\")","v":0.1533171555},{"$f":"IFERROR(INDEX('Data Annex'!$K$1:$AN$4997,MATCH(W$1&\"|\"&$B15,'Data Annex'!$K$1:$K$4997,0),MATCH(W$2,'Data Annex'!$K$1:$AN$1,0)),\"\")","v":0.14222129920000001},{"$f":"IFERROR(INDEX('Data Annex'!$K$1:$AN$4997,MATCH(X$1&\"|\"&$B15,'Data Annex'!$K$1:$K$4997,0),MATCH(X$2,'Data Annex'!$K$1:$AN$1,0)),\"\")","v":0.1592397824}]
[null,"CZ",null,"CZ",{"$f":"IFERROR(INDEX('Data Annex'!$K$1:$AN$4997,MATCH(E$1&\"|\"&$B16,'Data Annex'!$K$1:$K$4997,0),MATCH(E$2,'Data Annex'!$K$1:$AN$1,0)),\"\")","v":1.3563763899999999E-2},{"$f":"IFERROR(INDEX('Data Annex'!$K$1:$AN$4997,MATCH(F$1&\"|\"&$B16,'Data Annex'!$K$1:$K$4997,0),MATCH(F$2,'Data Annex'!$K$1:$AN$1,0)),\"\")","v":1.3395248699999999E-2},{"$f":"IFERROR(INDEX('Data Annex'!$K$1:$AN$4997,MATCH(G$1&\"|\"&$B16,'Data Annex'!$K$1:$K$4997,0),MATCH(G$2,'Data Annex'!$K$1:$AN$1,0)),\"\")","v":2.2011544000000001E-2},{"$f":"IFERROR(INDEX('Data Annex'!$K$1:$AN$4997,MATCH(H$1&\"|\"&$B16,'Data Annex'!$K$1:$K$4997,0),MATCH(H$2,'Data Annex'!$K$1:$AN$1,0)),\"\")","v":5.1045324000000003E-3},{"$f":"IFERROR(INDEX('Data Annex'!$K$1:$AN$4997,MATCH(I$1&\"|\"&$B16,'Data Annex'!$K$1:$K$4997,0),MATCH(I$2,'Data Annex'!$K$1:$AN$1,0)),\"\")","v":5.6034182500000002E-2},{"$f":"IFERROR(INDEX('Data Annex'!$K$1:$AN$4997,MATCH(J$1&\"|\"&$B16,'Data Annex'!$K$1:$K$4997,0),MATCH(J$2,'Data Annex'!$K$1:$AN$1,0)),\"\")","v":5.7176727900000002E-2},{"$f":"IFERROR(INDEX('Data Annex'!$K$1:$AN$4997,MATCH(K$1&\"|\"&$B16,'Data Annex'!$K$1:$K$4997,0),MATCH(K$2,'Data Annex'!$K$1:$AN$1,0)),\"\")","v":5.5532644300000003E-2},{"$f":"IFERROR(INDEX('Data Annex'!$K$1:$AN$4997,MATCH(L$1&\"|\"&$B16,'Data Annex'!$K$1:$K$4997,0),MATCH(L$2,'Data Annex'!$K$1:$AN$1,0)),\"\")","v":5.0444786899999997E-2},{"$f":"IFERROR(INDEX('Data Annex'!$K$1:$AN$4997,MATCH(M$1&\"|\"&$B16,'Data Annex'!$K$1:$K$4997,0),MATCH(M$2,'Data Annex'!$K$1:$AN$1,0)),\"\")","v":2.15061005E-2},{"$f":"IFERROR(INDEX('Data Annex'!$K$1:$AN$4997,MATCH(N$1&\"|\"&$B16,'Data Annex'!$K$1:$K$4997,0),MATCH(N$2,'Data Annex'!$K$1:$AN$1,0)),\"\")","v":2.8547138400000002E-2},{"$f":"IFERROR(INDEX('Data Annex'!$K$1:$AN$4997,MATCH(O$1&\"|\"&$B16,'Data Annex'!$K$1:$K$4997,0),MATCH(O$2,'Data Annex'!$K$1:$AN$1,0)),\"\")","v":4.2032445600000003E-2},{"$f":"IFERROR(INDEX('Data Annex'!$K$1:$AN$4997,MATCH(P$1&\"|\"&$B16,'Data Annex'!$K$1:$K$4997,0),MATCH(P$2,'Data Annex'!$K$1:$AN$1,0)),\"\")","v":4.63723921E-2},{"$f":"IFERROR(INDEX('Data Annex'!$K$1:$AN$4997,MATCH(Q$1&\"|\"&$B16,'Data Annex'!$K$1:$K$4997,0),MATCH(Q$2,'Data Annex'!$K$1:$AN$1,0)),\"\")","v":3.4525903199999999E-2},{"$f":"IFERROR(INDEX('Data Annex'!$K$1:$AN$4997,MATCH(R$1&\"|\"&$B16,'Data Annex'!$K$1:$K$4997,0),MATCH(R$2,'Data Annex'!$K$1:$AN$1,0)),\"\")","v":4.0630573400000002E-2},{"$f":"IFERROR(INDEX('Data Annex'!$K$1:$AN$4997,MATCH(S$1&\"|\"&$B16,'Data Annex'!$K$1:$K$4997,0),MATCH(S$2,'Data Annex'!$K$1:$AN$1,0)),\"\")","v":3.7909468600000003E-2},{"$f":"IFERROR(INDEX('Data Annex'!$K$1:$AN$4997,MATCH(T$1&\"|\"&$B16,'Data Annex'!$K$1:$K$4997,0),MATCH(T$2,'Data Annex'!$K$1:$AN$1,0)),\"\")","v":4.2245150500000002E-2},{"$f":"IFERROR(INDEX('Data Annex'!$K$1:$AN$4997,MATCH(U$1&\"|\"&$B16,'Data Annex'!$K$1:$K$4997,0),MATCH(U$2,'Data Annex'!$K$1:$AN$1,0)),\"\")","v":3.0474435599999999E-2},{"$f":"IFERROR(INDEX('Data Annex'!$K$1:$AN$4997,MATCH(V$1&\"|\"&$B16,'Data Annex'!$K$1:$K$4997,0),MATCH(V$2,'Data Annex'!$K$1:$AN$1,0)),\"\")","v":0.1278833389},{"$f":"IFERROR(INDEX('Data Annex'!$K$1:$AN$4997,MATCH(W$1&\"|\"&$B16,'Data Annex'!$K$1:$K$4997,0),MATCH(W$2,'Data Annex'!$K$1:$AN$1,0)),\"\")","v":9.4718864000000007E-3},{"$f":"IFERROR(INDEX('Data Annex'!$K$1:$AN$4997,MATCH(X$1&\"|\"&$B16,'Data Annex'!$K$1:$K$4997,0),MATCH(X$2,'Data Annex'!$K$1:$AN$1,0)),\"\")","v":8.1084785999999999E-3}]
[null,"DE",null,"DE",{"$f":"IFERROR(INDEX('Data Annex'!$K$1:$AN$4997,MATCH(E$1&\"|\"&$B17,'Data Annex'!$K$1:$K$4997,0),MATCH(E$2,'Data Annex'!$K$1:$AN$1,0)),\"\")","v":3.5382033E-2},{"$f":"IFERROR(INDEX('Data Annex'!$K$1:$AN$4997,MATCH(F$1&\"|\"&$B17,'Data Annex'!$K$1:$K$4997,0),MATCH(F$2,'Data Annex'!$K$1:$AN$1,0)),\"\")","v":3.8543369299999998E-2},{"$f":"IFERROR(INDEX('Data Annex'!$K$1:$AN$4997,MATCH(G$1&\"|\"&$B17,'Data Annex'!$K$1:$K$4997,0),MATCH(G$2,'Data Annex'!$K$1:$AN$1,0)),\"\")","v":6.3098793400000006E-2},{"$f":"IFERROR(INDEX('Data Annex'!$K$1:$AN$4997,MATCH(H$1&\"|\"&$B17,'Data Annex'!$K$1:$K$4997,0),MATCH(H$2,'Data Annex'!$K$1:$AN$1,0)),\"\")","v":3.5270825499999998E-2},{"$f":"IFERROR(INDEX('Data Annex'!$K$1:$AN$4997,MATCH(I$1&\"|\"&$B17,'Data Annex'!$K$1:$K$4997,0),MATCH(I$2,'Data Annex'!$K$1:$AN$1,0)),\"\")","v":3.8390326299999999E-2},{"$f":"IFERROR(INDEX('Data Annex'!$K$1:$AN$4997,MATCH(J$1&\"|\"&$B17,'Data Annex'!$K$1:$K$4997,0),MATCH(J$2,'Data Annex'!$K$1:$AN$1,0)),\"\")","v":3.7853943700000003E-2},{"$f":"IFERROR(INDEX('Data Annex'!$K$1:$AN$4997,MATCH(K$1&\"|\"&$B17,'Data Annex'!$K$1:$K$4997,0),MATCH(K$2,'Data Annex'!$K$1:$AN$1,0)),\"\")","v":1.3874615200000001E-2},{"$f":"IFERROR(INDEX('Data Annex'!$K$1:$AN$4997,MATCH(L$1&\"|\"&$B17,'Data Annex'!$K$1:$K$4997,0),MATCH(L$2,'Data Annex'!$K$1:$AN$1,0)),\"\")","v":1.1198235000000001E-2},{"$f":"IFERROR(INDEX('Data Annex'!$K$1:$AN$4997,MATCH(M$1&\"|\"&$B17,'Data Annex'!$K$1:$K$4997,0),MATCH(M$2,'Data Annex'!$K$1:$AN$1,0)),\"\")","v":1.2343529299999999E-2},{"$f":"IFERROR(INDEX('Data Annex'!$K$1:$AN$4997,MATCH(N$1&\"|\"&$B17,'Data Annex'!$K$1:$K$4997,0),MATCH(N$2,'Data Annex'!$K$1:$AN$1,0)),\"\")","v":7.5677592000000004E-3},{"$f":"IFERROR(INDEX('Data Annex'!$K$1:$AN$4997,MATCH(O$1&\"|\"&$B17,'Data Annex'!$K$1:$K$4997,0),MATCH(O$2,'Data Annex'!$K$1:$AN$1,0)),\"\")","v":6.69994322E-2},{"$f":"IFERROR(INDEX('Data Annex'!$K$1:$AN$4997,MATCH(P$1&\"|\"&$B17,'Data Annex'!$K$1:$K$4997,0),MATCH(P$2,'Data Annex'!$K$1:$AN$1,0)),\"\")","v":6.9941415699999995E-2},{"$f":"IFERROR(INDEX('Data Annex'!$K$1:$AN$4997,MATCH(Q$1&\"|\"&$B17,'Data Annex'!$K$1:$K$4997,0),MATCH(Q$2,'Data Annex'!$K$1:$AN$1,0)),\"\")","v":4.0044649299999999E-2},{"$f":"IFERROR(INDEX('Data Annex'!$K$1:$AN$4997,MATCH(R$1&\"|\"&$B17,'Data Annex'!$K$1:$K$4997,0),MATCH(R$2,'Data Annex'!$K$1:$AN$1,0)),\"\")","v":4.0455809299999999E-2},{"$f":"IFERROR(INDEX('Data Annex'!$K$1:$AN$4997,MATCH(S$1&\"|\"&$B17,'Data Annex'!$K$1:$K$4997,0),MATCH(S$2,'Data Annex'!$K$1:$AN$1,0)),\"\")","v":8.1455494000000003E-2},{"$f":"IFERROR(INDEX('Data Annex'!$K$1:$AN$4997,MATCH(T$1&\"|\"&$B17,'Data Annex'!$K$1:$K$4997,0),MATCH(T$2,'Data Annex'!$K$1:$AN$1,0)),\"\")","v":4.7335918300000002E-2},{"$f":"IFERROR(INDEX('Data Annex'!$K$1:$AN$4997,MATCH(U$1&\"|\"&$B17,'Data Annex'!$K$1:$K$4997,0),MATCH(U$2,'Data Annex'!$K$1:$AN$1,0)),\"\")","v":4.7318707600000003E-2},{"$f":"IFERROR(INDEX('Data Annex'!$K$1:$AN$4997,MATCH(V$1&\"|\"&$B17,'Data Annex'!$K$1:$K$4997,0),MATCH(V$2,'Data Annex'!$K$1:$AN$1,0)),\"\")","v":5.2058818799999997E-2},{"$f":"IFERROR(INDEX('Data Annex'!$K$1:$AN$4997,MATCH(W$1&\"|\"&$B17,'Data Annex'!$K$1:$K$4997,0),MATCH(W$2,'Data Annex'!$K$1:$AN$1,0)),\"\")","v":2.6238670299999999E-2},{"$f":"IFERROR(INDEX('Data Annex'!$K$1:$AN$4997,MATCH(X$1&\"|\"&$B17,'Data Annex'!$K$1:$K$4997,0),MATCH(X$2,'Data Annex'!$K$1:$AN$1,0)),\"\")","v":2.5841624699999999E-2}]
[null,"DK",null,"DK",{"$f":"IFERROR(INDEX('Data Annex'!$K$1:$AN$4997,MATCH(E$1&\"|\"&$B18,'Data Annex'!$K$1:$K$4997,0),MATCH(E$2,'Data Annex'!$K$1:$AN$1,0)),\"\")","v":7.7409817199999995E-2},{"$f":"IFERROR(INDEX('Data Annex'!$K$1:$AN$4997,MATCH(F$1&\"|\"&$B18,'Data Annex'!$K$1:$K$4997,0),MATCH(F$2,'Data Annex'!$K$1:$AN$1,0)),\"\")","v":6.8817110900000006E-2},{"$f":"IFERROR(INDEX('Data Annex'!$K$1:$AN$4997,MATCH(G$1&\"|\"&$B18,'Data Annex'!$K$1:$K$4997,0),MATCH(G$2,'Data Annex'!$K$1:$AN$1,0)),\"\")","v":0.1340878646},{"$f":"IFERROR(INDEX('Data Annex'!$K$1:$AN$4997,MATCH(H$1&\"|\"&$B18,'Data Annex'!$K$1:$K$4997,0),MATCH(H$2,'Data Annex'!$K$1:$AN$1,0)),\"\")","v":0.1373197769},{"$f":"IFERROR(INDEX('Data Annex'!$K$1:$AN$4997,MATCH(I$1&\"|\"&$B18,'Data Annex'!$K$1:$K$4997,0),MATCH(I$2,'Data Annex'!$K$1:$AN$1,0)),\"\")","v":2.8525284500000001E-2},{"$f":"IFERROR(INDEX('Data Annex'!$K$1:$AN$4997,MATCH(J$1&\"|\"&$B18,'Data Annex'!$K$1:$K$4997,0),MATCH(J$2,'Data Annex'!$K$1:$AN$1,0)),\"\")","v":3.9656008899999998E-2},{"$f":"IFERROR(INDEX('Data Annex'!$K$1:$AN$4997,MATCH(K$1&\"|\"&$B18,'Data Annex'!$K$1:$K$4997,0),MATCH(K$2,'Data Annex'!$K$1:$AN$1,0)),\"\")","v":2.1990148999999999E-3},{"$f":"IFERROR(INDEX('Data Annex'!$K$1:$AN$4997,MATCH(L$1&\"|\"&$B18,'Data Annex'!$K$1:$K$4997,0),MATCH(L$2,'Data Annex'!$K$1:$AN$1,0)),\"\")","v":1.5752136E-3},{"$f":"IFERROR(INDEX('Data Annex'!$K$1:$AN$4997,MATCH(M$1&\"|\"&$B18,'Data Annex'!$K$1:$K$4997,0),MATCH(M$2,'Data Annex'!$K$1:$AN$1,0)),\"\")","v":3.9164659599999999E-2},{"$f":"IFERROR(INDEX('Data Annex'!$K$1:$AN$4997,MATCH(N$1&\"|\"&$B18,'Data Annex'!$K$1:$K$4997,0),MATCH(N$2,'Data Annex'!$K$1:$AN$1,0)),\"\")","v":4.0484004400000002E-2},{"$f":"IFERROR(INDEX('Data Annex'!$K$1:$AN$4997,MATCH(O$1&\"|\"&$B18,'Data Annex'!$K$1:$K$4997,0),MATCH(O$2,'Data Annex'!$K$1:$AN$1,0)),\"\")","v":5.1243926099999997E-2},{"$f":"IFERROR(INDEX('Data Annex'!$K$1:$AN$4997,MATCH(P$1&\"|\"&$B18,'Data Annex'!$K$1:$K$4997,0),MATCH(P$2,'Data Annex'!$K$1:$AN$1,0)),\"\")","v":5.2407801300000001E-2},{"$f":"IFERROR(INDEX('Data Annex'!$K$1:$AN$4997,MATCH(Q$1&\"|\"&$B18,'Data Annex'!$K$1:$K$4997,0),MATCH(Q$2,'Data Annex'!$K$1:$AN$1,0)),\"\")","v":5.2863076199999998E-2},{"$f":"IFERROR(INDEX('Data Annex'!$K$1:$AN$4997,MATCH(R$1&\"|\"&$B18,'Data Annex'!$K$1:$K$4997,0),MATCH(R$2,'Data Annex'!$K$1:$AN$1,0)),\"\")","v":5.2685102599999999E-2},{"$f":"IFERROR(INDEX('Data Annex'!$K$1:$AN$4997,MATCH(S$1&\"|\"&$B18,'Data Annex'!$K$1:$K$4997,0),MATCH(S$2,'Data Annex'!$K$1:$AN$1,0)),\"\")","v":0.1518969771},{"$f":"IFERROR(INDEX('Data Annex'!$K$1:$AN$4997,MATCH(T$1&\"|\"&$B18,'Data Annex'!$K$1:$K$4997,0),MATCH(T$2,'Data Annex'!$K$1:$AN$1,0)),\"\")","v":0.167442112},{"$f":"IFERROR(INDEX('Data Annex'!$K$1:$AN$4997,MATCH(U$1&\"|\"&$B18,'Data Annex'!$K$1:$K$4997,0),MATCH(U$2,'Data Annex'!$K$1:$AN$1,0)),\"\")","v":7.1724968099999994E-2},{"$f":"IFERROR(INDEX('Data Annex'!$K$1:$AN$4997,MATCH(V$1&\"|\"&$B18,'Data Annex'!$K$1:$K$4997,0),MATCH(V$2,'Data Annex'!$K$1:$AN$1,0)),\"\")","v":7.4190592700000002E-2},{"$f":"IFERROR(INDEX('Data Annex'!$K$1:$AN$4997,MATCH(W$1&\"|\"&$B18,'Data Annex'!$K$1:$K$4997,0),MATCH(W$2,'Data Annex'!$K$1:$AN$1,0)),\"\")","v":2.4238453100000001E-2},{"$f":"IFERROR(INDEX('Data Annex'!$K$1:$AN$4997,MATCH(X$1&\"|\"&$B18,'Data Annex'!$K$1:$K$4997,0),MATCH(X$2,'Data Annex'!$K$1:$AN$1,0)),\"\")","v":2.4757029E-2}]
[null,"EE",null,"EE",{"$f":"IFERROR(INDEX('Data Annex'!$K$1:$AN$4997,MATCH(E$1&\"|\"&$B19,'Data Annex'!$K$1:$K$4997,0),MATCH(E$2,'Data Annex'!$K$1:$AN$1,0)),\"\")","v":2.4704027999999999E-2},{"$f":"IFERROR(INDEX('Data Annex'!$K$1:$AN$4997,MATCH(F$1&\"|\"&$B19,'Data Annex'!$K$1:$K$4997,0),MATCH(F$2,'Data Annex'!$K$1:$AN$1,0)),\"\")","v":2.5491669099999999E-2},{"$f":"IFERROR(INDEX('Data Annex'!$K$1:$AN$4997,MATCH(G$1&\"|\"&$B19,'Data Annex'!$K$1:$K$4997,0),MATCH(G$2,'Data Annex'!$K$1:$AN$1,0)),\"\")","v":7.8708819999999998E-4},{"$f":"IFERROR(INDEX('Data Annex'!$K$1:$AN$4997,MATCH(H$1&\"|\"&$B19,'Data Annex'!$K$1:$K$4997,0),MATCH(H$2,'Data Annex'!$K$1:$AN$1,0)),\"\")","v":2.149191E-4},{"$f":"IFERROR(INDEX('Data Annex'!$K$1:$AN$4997,MATCH(I$1&\"|\"&$B19,'Data Annex'!$K$1:$K$4997,0),MATCH(I$2,'Data Annex'!$K$1:$AN$1,0)),\"\")","v":2.85553705E-2},{"$f":"IFERROR(INDEX('Data Annex'!$K$1:$AN$4997,MATCH(J$1&\"|\"&$B19,'Data Annex'!$K$1:$K$4997,0),MATCH(J$2,'Data Annex'!$K$1:$AN$1,0)),\"\")","v":2.1174232500000001E-2},{"$f":"IFERROR(INDEX('Data Annex'!$K$1:$AN$4997,MATCH(K$1&\"|\"&$B19,'Data Annex'!$K$1:$K$4997,0),MATCH(K$2,'Data Annex'!$K$1:$AN$1,0)),\"\")","v":2.25510326E-2},{"$f":"IFERROR(INDEX('Data Annex'!$K$1:$AN$4997,MATCH(L$1&\"|\"&$B19,'Data Annex'!$K$1:$K$4997,0),MATCH(L$2,'Data Annex'!$K$1:$AN$1,0)),\"\")","v":1.6635253400000001E-2},{"$f":"IFERROR(INDEX('Data Annex'!$K$1:$AN$4997,MATCH(M$1&\"|\"&$B19,'Data Annex'!$K$1:$K$4997,0),MATCH(M$2,'Data Annex'!$K$1:$AN$1,0)),\"\")","v":1.6569490000000001E-4},{"$f":"IFERROR(INDEX('Data Annex'!$K$1:$AN$4997,MATCH(N$1&\"|\"&$B19,'Data Annex'!$K$1:$K$4997,0),MATCH(N$2,'Data Annex'!$K$1:$AN$1,0)),\"\")","v":1.257303E-4},{"$f":"IFERROR(INDEX('Data Annex'!$K$1:$AN$4997,MATCH(O$1&\"|\"&$B19,'Data Annex'!$K$1:$K$4997,0),MATCH(O$2,'Data Annex'!$K$1:$AN$1,0)),\"\")","v":6.4366674999999998E-2},{"$f":"IFERROR(INDEX('Data Annex'!$K$1:$AN$4997,MATCH(P$1&\"|\"&$B19,'Data Annex'!$K$1:$K$4997,0),MATCH(P$2,'Data Annex'!$K$1:$AN$1,0)),\"\")","v":5.8566525299999998E-2},{"$f":"IFERROR(INDEX('Data Annex'!$K$1:$AN$4997,MATCH(Q$1&\"|\"&$B19,'Data Annex'!$K$1:$K$4997,0),MATCH(Q$2,'Data Annex'!$K$1:$AN$1,0)),\"\")","v":1.81058196E-2},{"$f":"IFERROR(INDEX('Data Annex'!$K$1:$AN$4997,MATCH(R$1&\"|\"&$B19,'Data Annex'!$K$1:$K$4997,0),MATCH(R$2,'Data Annex'!$K$1:$AN$1,0)),\"\")","v":1.4225991800000001E-2},{"$f":"IFERROR(INDEX('Data Annex'!$K$1:$AN$4997,MATCH(S$1&\"|\"&$B19,'Data Annex'!$K$1:$K$4997,0),MATCH(S$2,'Data Annex'!$K$1:$AN$1,0)),\"\")","v":1.222149E-2},{"$f":"IFERROR(INDEX('Data Annex'!$K$1:$AN$4997,MATCH(T$1&\"|\"&$B19,'Data Annex'!$K$1:$K$4997,0),MATCH(T$2,'Data Annex'!$K$1:$AN$1,0)),\"\")","v":1.15794274E-2},{"$f":"IFERROR(INDEX('Data Annex'!$K$1:$AN$4997,MATCH(U$1&\"|\"&$B19,'Data Annex'!$K$1:$K$4997,0),MATCH(U$2,'Data Annex'!$K$1:$AN$1,0)),\"\")","v":6.8623228199999997E-2},{"$f":"IFERROR(INDEX('Data Annex'!$K$1:$AN$4997,MATCH(V$1&\"|\"&$B19,'Data Annex'!$K$1:$K$4997,0),MATCH(V$2,'Data Annex'!$K$1:$AN$1,0)),\"\")","v":7.5074704300000003E-2},{"$f":"IFERROR(INDEX('Data Annex'!$K$1:$AN$4997,MATCH(W$1&\"|\"&$B19,'Data Annex'!$K$1:$K$4997,0),MATCH(W$2,'Data Annex'!$K$1:$AN$1,0)),\"\")","v":1.8252886999999999E-2},{"$f":"IFERROR(INDEX('Data Annex'!$K$1:$AN$4997,MATCH(X$1&\"|\"&$B19,'Data Annex'!$K$1:$K$4997,0),MATCH(X$2,'Data Annex'!$K$1:$AN$1,0)),\"\")","v":1.5169077E-2}]
[null,"ES",null,"ES",{"$f":"IFERROR(INDEX('Data Annex'!$K$1:$AN$4997,MATCH(E$1&\"|\"&$B20,'Data Annex'!$K$1:$K$4997,0),MATCH(E$2,'Data Annex'!$K$1:$AN$1,0)),\"\")","v":5.4740851799999997E-2},{"$f":"IFERROR(INDEX('Data Annex'!$K$1:$AN$4997,MATCH(F$1&\"|\"&$B20,'Data Annex'!$K$1:$K$4997,0),MATCH(F$2,'Data Annex'!$K$1:$AN$1,0)),\"\")","v":5.1155870999999999E-2},{"$f":"IFERROR(INDEX('Data Annex'!$K$1:$AN$4997,MATCH(G$1&\"|\"&$B20,'Data Annex'!$K$1:$K$4997,0),MATCH(G$2,'Data Annex'!$K$1:$AN$1,0)),\"\")","v":3.6542743000000003E-2},{"$f":"IFERROR(INDEX('Data Annex'!$K$1:$AN$4997,MATCH(H$1&\"|\"&$B20,'Data Annex'!$K$1:$K$4997,0),MATCH(H$2,'Data Annex'!$K$1:$AN$1,0)),\"\")","v":1.67637949E-2},{"$f":"IFERROR(INDEX('Data Annex'!$K$1:$AN$4997,MATCH(I$1&\"|\"&$B20,'Data Annex'!$K$1:$K$4997,0),MATCH(I$2,'Data Annex'!$K$1:$AN$1,0)),\"\")","v":4.6131645499999999E-2},{"$f":"IFERROR(INDEX('Data Annex'!$K$1:$AN$4997,MATCH(J$1&\"|\"&$B20,'Data Annex'!$K$1:$K$4997,0),MATCH(J$2,'Data Annex'!$K$1:$AN$1,0)),\"\")","v":4.53428102E-2},{"$f":"IFERROR(INDEX('Data Annex'!$K$1:$AN$4997,MATCH(K$1&\"|\"&$B20,'Data Annex'!$K$1:$K$4997,0),MATCH(K$2,'Data Annex'!$K$1:$AN$1,0)),\"\")","v":3.4322963999999997E-2},{"$f":"IFERROR(INDEX('Data Annex'!$K$1:$AN$4997,MATCH(L$1&\"|\"&$B20,'Data Annex'!$K$1:$K$4997,0),MATCH(L$2,'Data Annex'!$K$1:$AN$1,0)),\"\")","v":2.2298822400000001E-2},{"$f":"IFERROR(INDEX('Data Annex'!$K$1:$AN$4997,MATCH(M$1&\"|\"&$B20,'Data Annex'!$K$1:$K$4997,0),MATCH(M$2,'Data Annex'!$K$1:$AN$1,0)),\"\")","v":2.0346030599999999E-2},{"$f":"IFERROR(INDEX('Data Annex'!$K$1:$AN$4997,MATCH(N$1&\"|\"&$B20,'Data Annex'!$K$1:$K$4997,0),MATCH(N$2,'Data Annex'!$K$1:$AN$1,0)),\"\")","v":1.7826136100000001E-2},{"$f":"IFERROR(INDEX('Data Annex'!$K$1:$AN$4997,MATCH(O$1&\"|\"&$B20,'Data Annex'!$K$1:$K$4997,0),MATCH(O$2,'Data Annex'!$K$1:$AN$1,0)),\"\")","v":8.6601179700000003E-2},{"$f":"IFERROR(INDEX('Data Annex'!$K$1:$AN$4997,MATCH(P$1&\"|\"&$B20,'Data Annex'!$K$1:$K$4997,0),MATCH(P$2,'Data Annex'!$K$1:$AN$1,0)),\"\")","v":8.8100969799999998E-2},{"$f":"IFERROR(INDEX('Data Annex'!$K$1:$AN$4997,MATCH(Q$1&\"|\"&$B20,'Data Annex'!$K$1:$K$4997,0),MATCH(Q$2,'Data Annex'!$K$1:$AN$1,0)),\"\")","v":5.2480481699999998E-2},{"$f":"IFERROR(INDEX('Data Annex'!$K$1:$AN$4997,MATCH(R$1&\"|\"&$B20,'Data Annex'!$K$1:$K$4997,0),MATCH(R$2,'Data Annex'!$K$1:$AN$1,0)),\"\")","v":4.8704439500000002E-2},{"$f":"IFERROR(INDEX('Data Annex'!$K$1:$AN$4997,MATCH(S$1&\"|\"&$B20,'Data Annex'!$K$1:$K$4997,0),MATCH(S$2,'Data Annex'!$K$1:$AN$1,0)),\"\")","v":3.5944072399999999E-2},{"$f":"IFERROR(INDEX('Data Annex'!$K$1:$AN$4997,MATCH(T$1&\"|\"&$B20,'Data Annex'!$K$1:$K$4997,0),MATCH(T$2,'Data Annex'!$K$1:$AN$1,0)),\"\")","v":3.8168917300000001E-2},{"$f":"IFERROR(INDEX('Data Annex'!$K$1:$AN$4997,MATCH(U$1&\"|\"&$B20,'Data Annex'!$K$1:$K$4997,0),MATCH(U$2,'Data Annex'!$K$1:$AN$1,0)),\"\")","v":4.9043852899999997E-2},{"$f":"IFERROR(INDEX('Data Annex'!$K$1:$AN$4997,MATCH(V$1&\"|\"&$B20,'Data Annex'!$K$1:$K$4997,0),MATCH(V$2,'Data Annex'!$K$1:$AN$1,0)),\"\")","v":5.9417040900000002E-2},{"$f":"IFERROR(INDEX('Data Annex'!$K$1:$AN$4997,MATCH(W$1&\"|\"&$B20,'Data Annex'!$K$1:$K$4997,0),MATCH(W$2,'Data Annex'!$K$1:$AN$1,0)),\"\")","v":2.0997071799999999E-2},{"$f":"IFERROR(INDEX('Data Annex'!$K$1:$AN$4997,MATCH(X$1&\"|\"&$B20,'Data Annex'!$K$1:$K$4997,0),MATCH(X$2,'Data Annex'!$K$1:$AN$1,0)),\"\")","v":1.9425600500000001E-2}]
[null,"FI",null,"FI",{"$f":"IFERROR(INDEX('Data Annex'!$K$1:$AN$4997,MATCH(E$1&\"|\"&$B21,'Data Annex'!$K$1:$K$4997,0),MATCH(E$2,'Data Annex'!$K$1:$AN$1,0)),\"\")","v":9.5225616400000004E-2},{"$f":"IFERROR(INDEX('Data Annex'!$K$1:$AN$4997,MATCH(F$1&\"|\"&$B21,'Data Annex'!$K$1:$K$4997,0),MATCH(F$2,'Data Annex'!$K$1:$AN$1,0)),\"\")","v":8.2890138399999994E-2},{"$f":"IFERROR(INDEX('Data Annex'!$K$1:$AN$4997,MATCH(G$1&\"|\"&$B21,'Data Annex'!$K$1:$K$4997,0),MATCH(G$2,'Data Annex'!$K$1:$AN$1,0)),\"\")","v":0.2958825007},{"$f":"IFERROR(INDEX('Data Annex'!$K$1:$AN$4997,MATCH(H$1&\"|\"&$B21,'Data Annex'!$K$1:$K$4997,0),MATCH(H$2,'Data Annex'!$K$1:$AN$1,0)),\"\")","v":0.28216810129999997},{"$f":"IFERROR(INDEX('Data Annex'!$K$1:$AN$4997,MATCH(I$1&\"|\"&$B21,'Data Annex'!$K$1:$K$4997,0),MATCH(I$2,'Data Annex'!$K$1:$AN$1,0)),\"\")","v":4.7717564900000002E-2},{"$f":"IFERROR(INDEX('Data Annex'!$K$1:$AN$4997,MATCH(J$1&\"|\"&$B21,'Data Annex'!$K$1:$K$4997,0),MATCH(J$2,'Data Annex'!$K$1:$AN$1,0)),\"\")","v":3.3429012899999999E-2},{"$f":"IFERROR(INDEX('Data Annex'!$K$1:$AN$4997,MATCH(K$1&\"|\"&$B21,'Data Annex'!$K$1:$K$4997,0),MATCH(K$2,'Data Annex'!$K$1:$AN$1,0)),\"\")","v":2.4889621E-3},{"$f":"IFERROR(INDEX('Data Annex'!$K$1:$AN$4997,MATCH(L$1&\"|\"&$B21,'Data Annex'!$K$1:$K$4997,0),MATCH(L$2,'Data Annex'!$K$1:$AN$1,0)),\"\")","v":2.5186590999999999E-3},{"$f":"IFERROR(INDEX('Data Annex'!$K$1:$AN$4997,MATCH(M$1&\"|\"&$B21,'Data Annex'!$K$1:$K$4997,0),MATCH(M$2,'Data Annex'!$K$1:$AN$1,0)),\"\")","v":1.5224135E-3},{"$f":"IFERROR(INDEX('Data Annex'!$K$1:$AN$4997,MATCH(N$1&\"|\"&$B21,'Data Annex'!$K$1:$K$4997,0),MATCH(N$2,'Data Annex'!$K$1:$AN$1,0)),\"\")","v":1.5586189E-3},{"$f":"IFERROR(INDEX('Data Annex'!$K$1:$AN$4997,MATCH(O$1&\"|\"&$B21,'Data Annex'!$K$1:$K$4997,0),MATCH(O$2,'Data Annex'!$K$1:$AN$1,0)),\"\")","v":2.4989162799999999E-2},{"$f":"IFERROR(INDEX('Data Annex'!$K$1:$AN$4997,MATCH(P$1&\"|\"&$B21,'Data Annex'!$K$1:$K$4997,0),MATCH(P$2,'Data Annex'!$K$1:$AN$1,0)),\"\")","v":2.4356746799999999E-2},{"$f":"IFERROR(INDEX('Data Annex'!$K$1:$AN$4997,MATCH(Q$1&\"|\"&$B21,'Data Annex'!$K$1:$K$4997,0),MATCH(Q$2,'Data Annex'!$K$1:$AN$1,0)),\"\")","v":2.48725097E-2},{"$f":"IFERROR(INDEX('Data Annex'!$K$1:$AN$4997,MATCH(R$1&\"|\"&$B21,'Data Annex'!$K$1:$K$4997,0),MATCH(R$2,'Data Annex'!$K$1:$AN$1,0)),\"\")","v":2.4806378399999999E-2},{"$f":"IFERROR(INDEX('Data Annex'!$K$1:$AN$4997,MATCH(S$1&\"|\"&$B21,'Data Annex'!$K$1:$K$4997,0),MATCH(S$2,'Data Annex'!$K$1:$AN$1,0)),\"\")","v":6.5257578199999999E-2},{"$f":"IFERROR(INDEX('Data Annex'!$K$1:$AN$4997,MATCH(T$1&\"|\"&$B21,'Data Annex'!$K$1:$K$4997,0),MATCH(T$2,'Data Annex'!$K$1:$AN$1,0)),\"\")","v":6.3269810900000001E-2},{"$f":"IFERROR(INDEX('Data Annex'!$K$1:$AN$4997,MATCH(U$1&\"|\"&$B21,'Data Annex'!$K$1:$K$4997,0),MATCH(U$2,'Data Annex'!$K$1:$AN$1,0)),\"\")","v":3.1954624899999999E-2},{"$f":"IFERROR(INDEX('Data Annex'!$K$1:$AN$4997,MATCH(V$1&\"|\"&$B21,'Data Annex'!$K$1:$K$4997,0),MATCH(V$2,'Data Annex'!$K$1:$AN$1,0)),\"\")","v":3.6093088699999998E-2},{"$f":"IFERROR(INDEX('Data Annex'!$K$1:$AN$4997,MATCH(W$1&\"|\"&$B21,'Data Annex'!$K$1:$K$4997,0),MATCH(W$2,'Data Annex'!$K$1:$AN$1,0)),\"\")","v":9.9427132999999994E-3},{"$f":"IFERROR(INDEX('Data Annex'!$K$1:$AN$4997,MATCH(X$1&\"|\"&$B21,'Data Annex'!$K$1:$K$4997,0),MATCH(X$2,'Data Annex'!$K$1:$AN$1,0)),\"\")","v":8.4031378999999996E-3}]
[null,"FR",null,"FR",{"$f":"IFERROR(INDEX('Data Annex'!$K$1:$AN$4997,MATCH(E$1&\"|\"&$B22,'Data Annex'!$K$1:$K$4997,0),MATCH(E$2,'Data Annex'!$K$1:$AN$1,0)),\"\")","v":4.6881139299999999E-2},{"$f":"IFERROR(INDEX('Data Annex'!$K$1:$AN$4997,MATCH(F$1&\"|\"&$B22,'Data Annex'!$K$1:$K$4997,0),MATCH(F$2,'Data Annex'!$K$1:$AN$1,0)),\"\")","v":4.5644180200000002E-2},{"$f":"IFERROR(INDEX('Data Annex'!$K$1:$AN$4997,MATCH(G$1&\"|\"&$B22,'Data Annex'!$K$1:$K$4997,0),MATCH(G$2,'Data Annex'!$K$1:$AN$1,0)),\"\")","v":5.4268648699999998E-2},{"$f":"IFERROR(INDEX('Data Annex'!$K$1:$AN$4997,MATCH(H$1&\"|\"&$B22,'Data Annex'!$K$1:$K$4997,0),MATCH(H$2,'Data Annex'!$K$1:$AN$1,0)),\"\")","v":5.0376838600000001E-2},{"$f":"IFERROR(INDEX('Data Annex'!$K$1:$AN$4997,MATCH(I$1&\"|\"&$B22,'Data Annex'!$K$1:$K$4997,0),MATCH(I$2,'Data Annex'!$K$1:$AN$1,0)),\"\")","v":4.8127301800000001E-2},{"$f":"IFERROR(INDEX('Data Annex'!$K$1:$AN$4997,MATCH(J$1&\"|\"&$B22,'Data Annex'!$K$1:$K$4997,0),MATCH(J$2,'Data Annex'!$K$1:$AN$1,0)),\"\")","v":5.03671994E-2},{"$f":"IFERROR(INDEX('Data Annex'!$K$1:$AN$4997,MATCH(K$1&\"|\"&$B22,'Data Annex'!$K$1:$K$4997,0),MATCH(K$2,'Data Annex'!$K$1:$AN$1,0)),\"\")","v":1.55917755E-2},{"$f":"IFERROR(INDEX('Data Annex'!$K$1:$AN$4997,MATCH(L$1&\"|\"&$B22,'Data Annex'!$K$1:$K$4997,0),MATCH(L$2,'Data Annex'!$K$1:$AN$1,0)),\"\")","v":1.25037988E-2},{"$f":"IFERROR(INDEX('Data Annex'!$K$1:$AN$4997,MATCH(M$1&\"|\"&$B22,'Data Annex'!$K$1:$K$4997,0),MATCH(M$2,'Data Annex'!$K$1:$AN$1,0)),\"\")","v":3.5435160600000001E-2},{"$f":"IFERROR(INDEX('Data Annex'!$K$1:$AN$4997,MATCH(N$1&\"|\"&$B22,'Data Annex'!$K$1:$K$4997,0),MATCH(N$2,'Data Annex'!$K$1:$AN$1,0)),\"\")","v":3.4754592399999999E-2},{"$f":"IFERROR(INDEX('Data Annex'!$K$1:$AN$4997,MATCH(O$1&\"|\"&$B22,'Data Annex'!$K$1:$K$4997,0),MATCH(O$2,'Data Annex'!$K$1:$AN$1,0)),\"\")","v":8.3237914699999999E-2},{"$f":"IFERROR(INDEX('Data Annex'!$K$1:$AN$4997,MATCH(P$1&\"|\"&$B22,'Data Annex'!$K$1:$K$4997,0),MATCH(P$2,'Data Annex'!$K$1:$AN$1,0)),\"\")","v":7.7393323999999999E-2},{"$f":"IFERROR(INDEX('Data Annex'!$K$1:$AN$4997,MATCH(Q$1&\"|\"&$B22,'Data Annex'!$K$1:$K$4997,0),MATCH(Q$2,'Data Annex'!$K$1:$AN$1,0)),\"\")","v":5.2379861999999999E-2},{"$f":"IFERROR(INDEX('Data Annex'!$K$1:$AN$4997,MATCH(R$1&\"|\"&$B22,'Data Annex'!$K$1:$K$4997,0),MATCH(R$2,'Data Annex'!$K$1:$AN$1,0)),\"\")","v":4.8275276700000001E-2},{"$f":"IFERROR(INDEX('Data Annex'!$K$1:$AN$4997,MATCH(S$1&\"|\"&$B22,'Data Annex'!$K$1:$K$4997,0),MATCH(S$2,'Data Annex'!$K$1:$AN$1,0)),\"\")","v":4.6562221199999997E-2},{"$f":"IFERROR(INDEX('Data Annex'!$K$1:$AN$4997,MATCH(T$1&\"|\"&$B22,'Data Annex'!$K$1:$K$4997,0),MATCH(T$2,'Data Annex'!$K$1:$AN$1,0)),\"\")","v":4.2510999000000001E-2},{"$f":"IFERROR(INDEX('Data Annex'!$K$1:$AN$4997,MATCH(U$1&\"|\"&$B22,'Data Annex'!$K$1:$K$4997,0),MATCH(U$2,'Data Annex'!$K$1:$AN$1,0)),\"\")","v":7.7337791200000006E-2},{"$f":"IFERROR(INDEX('Data Annex'!$K$1:$AN$4997,MATCH(V$1&\"|\"&$B22,'Data Annex'!$K$1:$K$4997,0),MATCH(V$2,'Data Annex'!$K$1:$AN$1,0)),\"\")","v":8.3510033299999994E-2},{"$f":"IFERROR(INDEX('Data Annex'!$K$1:$AN$4997,MATCH(W$1&\"|\"&$B22,'Data Annex'!$K$1:$K$4997,0),MATCH(W$2,'Data Annex'!$K$1:$AN$1,0)),\"\")","v":3.3272598200000003E-2},{"$f":"IFERROR(INDEX('Data Annex'!$K$1:$AN$4997,MATCH(X$1&\"|\"&$B22,'Data Annex'!$K$1:$K$4997,0),MATCH(X$2,'Data Annex'!$K$1:$AN$1,0)),\"\")","v":3.2189606400000001E-2}]
[null,"GR",null,"GR",{"$f":"IFERROR(INDEX('Data Annex'!$K$1:$AN$4997,MATCH(E$1&\"|\"&$B23,'Data Annex'!$K$1:$K$4997,0),MATCH(E$2,'Data Annex'!$K$1:$AN$1,0)),\"\")","v":0.40833066220000003},{"$f":"IFERROR(INDEX('Data Annex'!$K$1:$AN$4997,MATCH(F$1&\"|\"&$B23,'Data Annex'!$K$1:$K$4997,0),MATCH(F$2,'Data Annex'!$K$1:$AN$1,0)),\"\")","v":0.3494005241},{"$f":"IFERROR(INDEX('Data Annex'!$K$1:$AN$4997,MATCH(G$1&\"|\"&$B23,'Data Annex'!$K$1:$K$4997,0),MATCH(G$2,'Data Annex'!$K$1:$AN$1,0)),\"\")","v":0.40906370780000001},{"$f":"IFERROR(INDEX('Data Annex'!$K$1:$AN$4997,MATCH(H$1&\"|\"&$B23,'Data Annex'!$K$1:$K$4997,0),MATCH(H$2,'Data Annex'!$K$1:$AN$1,0)),\"\")","v":0.3985322214},{"$f":"IFERROR(INDEX('Data Annex'!$K$1:$AN$4997,MATCH(I$1&\"|\"&$B23,'Data Annex'!$K$1:$K$4997,0),MATCH(I$2,'Data Annex'!$K$1:$AN$1,0)),\"\")","v":0.32886415800000002},{"$f":"IFERROR(INDEX('Data Annex'!$K$1:$AN$4997,MATCH(J$1&\"|\"&$B23,'Data Annex'!$K$1:$K$4997,0),MATCH(J$2,'Data Annex'!$K$1:$AN$1,0)),\"\")","v":0.31566289269999998},{"$f":"IFERROR(INDEX('Data Annex'!$K$1:$AN$4997,MATCH(K$1&\"|\"&$B23,'Data Annex'!$K$1:$K$4997,0),MATCH(K$2,'Data Annex'!$K$1:$AN$1,0)),\"\")","v":1.8186142299999999E-2},{"$f":"IFERROR(INDEX('Data Annex'!$K$1:$AN$4997,MATCH(L$1&\"|\"&$B23,'Data Annex'!$K$1:$K$4997,0),MATCH(L$2,'Data Annex'!$K$1:$AN$1,0)),\"\")","v":2.68079302E-2},{"$f":"IFERROR(INDEX('Data Annex'!$K$1:$AN$4997,MATCH(M$1&\"|\"&$B23,'Data Annex'!$K$1:$K$4997,0),MATCH(M$2,'Data Annex'!$K$1:$AN$1,0)),\"\")","v":0.19311585519999999},{"$f":"IFERROR(INDEX('Data Annex'!$K$1:$AN$4997,MATCH(N$1&\"|\"&$B23,'Data Annex'!$K$1:$K$4997,0),MATCH(N$2,'Data Annex'!$K$1:$AN$1,0)),\"\")","v":0.17602314890000001},{"$f":"IFERROR(INDEX('Data Annex'!$K$1:$AN$4997,MATCH(O$1&\"|\"&$B23,'Data Annex'!$K$1:$K$4997,0),MATCH(O$2,'Data Annex'!$K$1:$AN$1,0)),\"\")","v":0.49159499070000001},{"$f":"IFERROR(INDEX('Data Annex'!$K$1:$AN$4997,MATCH(P$1&\"|\"&$B23,'Data Annex'!$K$1:$K$4997,0),MATCH(P$2,'Data Annex'!$K$1:$AN$1,0)),\"\")","v":0.48875362789999999},{"$f":"IFERROR(INDEX('Data Annex'!$K$1:$AN$4997,MATCH(Q$1&\"|\"&$B23,'Data Annex'!$K$1:$K$4997,0),MATCH(Q$2,'Data Annex'!$K$1:$AN$1,0)),\"\")","v":0.41193039850000002},{"$f":"IFERROR(INDEX('Data Annex'!$K$1:$AN$4997,MATCH(R$1&\"|\"&$B23,'Data Annex'!$K$1:$K$4997,0),MATCH(R$2,'Data Annex'!$K$1:$AN$1,0)),\"\")","v":0.38370719920000002},{"$f":"IFERROR(INDEX('Data Annex'!$K$1:$AN$4997,MATCH(S$1&\"|\"&$B23,'Data Annex'!$K$1:$K$4997,0),MATCH(S$2,'Data Annex'!$K$1:$AN$1,0)),\"\")","v":0.1742000598},{"$f":"IFERROR(INDEX('Data Annex'!$K$1:$AN$4997,MATCH(T$1&\"|\"&$B23,'Data Annex'!$K$1:$K$4997,0),MATCH(T$2,'Data Annex'!$K$1:$AN$1,0)),\"\")","v":0.15322352619999999},{"$f":"IFERROR(INDEX('Data Annex'!$K$1:$AN$4997,MATCH(U$1&\"|\"&$B23,'Data Annex'!$K$1:$K$4997,0),MATCH(U$2,'Data Annex'!$K$1:$AN$1,0)),\"\")","v":0.2462617228},{"$f":"IFERROR(INDEX('Data Annex'!$K$1:$AN$4997,MATCH(V$1&\"|\"&$B23,'Data Annex'!$K$1:$K$4997,0),MATCH(V$2,'Data Annex'!$K$1:$AN$1,0)),\"\")","v":0.23798895910000001},{"$f":"IFERROR(INDEX('Data Annex'!$K$1:$AN$4997,MATCH(W$1&\"|\"&$B23,'Data Annex'!$K$1:$K$4997,0),MATCH(W$2,'Data Annex'!$K$1:$AN$1,0)),\"\")","v":0.36274747019999998},{"$f":"IFERROR(INDEX('Data Annex'!$K$1:$AN$4997,MATCH(X$1&\"|\"&$B23,'Data Annex'!$K$1:$K$4997,0),MATCH(X$2,'Data Annex'!$K$1:$AN$1,0)),\"\")","v":0.34385938389999998}]
[null,"HR",null,"HR",{"$f":"IFERROR(INDEX('Data Annex'!$K$1:$AN$4997,MATCH(E$1&\"|\"&$B24,'Data Annex'!$K$1:$K$4997,0),MATCH(E$2,'Data Annex'!$K$1:$AN$1,0)),\"\")","v":0.1382090651},{"$f":"IFERROR(INDEX('Data Annex'!$K$1:$AN$4997,MATCH(F$1&\"|\"&$B24,'Data Annex'!$K$1:$K$4997,0),MATCH(F$2,'Data Annex'!$K$1:$AN$1,0)),\"\")","v":0.156552571},{"$f":"IFERROR(INDEX('Data Annex'!$K$1:$AN$4997,MATCH(G$1&\"|\"&$B24,'Data Annex'!$K$1:$K$4997,0),MATCH(G$2,'Data Annex'!$K$1:$AN$1,0)),\"\")","v":3.4954185800000002E-2},{"$f":"IFERROR(INDEX('Data Annex'!$K$1:$AN$4997,MATCH(H$1&\"|\"&$B24,'Data Annex'!$K$1:$K$4997,0),MATCH(H$2,'Data Annex'!$K$1:$AN$1,0)),\"\")","v":3.68814986E-2},{"$f":"IFERROR(INDEX('Data Annex'!$K$1:$AN$4997,MATCH(I$1&\"|\"&$B24,'Data Annex'!$K$1:$K$4997,0),MATCH(I$2,'Data Annex'!$K$1:$AN$1,0)),\"\")","v":0.16749459929999999},{"$f":"IFERROR(INDEX('Data Annex'!$K$1:$AN$4997,MATCH(J$1&\"|\"&$B24,'Data Annex'!$K$1:$K$4997,0),MATCH(J$2,'Data Annex'!$K$1:$AN$1,0)),\"\")","v":0.15634818959999999},{"$f":"IFERROR(INDEX('Data Annex'!$K$1:$AN$4997,MATCH(K$1&\"|\"&$B24,'Data Annex'!$K$1:$K$4997,0),MATCH(K$2,'Data Annex'!$K$1:$AN$1,0)),\"\")","v":5.1978408800000001E-2},{"$f":"IFERROR(INDEX('Data Annex'!$K$1:$AN$4997,MATCH(L$1&\"|\"&$B24,'Data Annex'!$K$1:$K$4997,0),MATCH(L$2,'Data Annex'!$K$1:$AN$1,0)),\"\")","v":8.1714591000000003E-3},{"$f":"IFERROR(INDEX('Data Annex'!$K$1:$AN$4997,MATCH(M$1&\"|\"&$B24,'Data Annex'!$K$1:$K$4997,0),MATCH(M$2,'Data Annex'!$K$1:$AN$1,0)),\"\")","v":8.8576304000000002E-3},{"$f":"IFERROR(INDEX('Data Annex'!$K$1:$AN$4997,MATCH(N$1&\"|\"&$B24,'Data Annex'!$K$1:$K$4997,0),MATCH(N$2,'Data Annex'!$K$1:$AN$1,0)),\"\")","v":9.1243908499999998E-2},{"$f":"IFERROR(INDEX('Data Annex'!$K$1:$AN$4997,MATCH(O$1&\"|\"&$B24,'Data Annex'!$K$1:$K$4997,0),MATCH(O$2,'Data Annex'!$K$1:$AN$1,0)),\"\")","v":0.1825001476},{"$f":"IFERROR(INDEX('Data Annex'!$K$1:$AN$4997,MATCH(P$1&\"|\"&$B24,'Data Annex'!$K$1:$K$4997,0),MATCH(P$2,'Data Annex'!$K$1:$AN$1,0)),\"\")","v":0.1264446175},{"$f":"IFERROR(INDEX('Data Annex'!$K$1:$AN$4997,MATCH(Q$1&\"|\"&$B24,'Data Annex'!$K$1:$K$4997,0),MATCH(Q$2,'Data Annex'!$K$1:$AN$1,0)),\"\")","v":7.6076872399999995E-2},{"$f":"IFERROR(INDEX('Data Annex'!$K$1:$AN$4997,MATCH(R$1&\"|\"&$B24,'Data Annex'!$K$1:$K$4997,0),MATCH(R$2,'Data Annex'!$K$1:$AN$1,0)),\"\")","v":7.7434241299999998E-2},{"$f":"IFERROR(INDEX('Data Annex'!$K$1:$AN$4997,MATCH(S$1&\"|\"&$B24,'Data Annex'!$K$1:$K$4997,0),MATCH(S$2,'Data Annex'!$K$1:$AN$1,0)),\"\")","v":4.3226471599999997E-2},{"$f":"IFERROR(INDEX('Data Annex'!$K$1:$AN$4997,MATCH(T$1&\"|\"&$B24,'Data Annex'!$K$1:$K$4997,0),MATCH(T$2,'Data Annex'!$K$1:$AN$1,0)),\"\")","v":5.3484310799999997E-2},{"$f":"IFERROR(INDEX('Data Annex'!$K$1:$AN$4997,MATCH(U$1&\"|\"&$B24,'Data Annex'!$K$1:$K$4997,0),MATCH(U$2,'Data Annex'!$K$1:$AN$1,0)),\"\")","v":6.7508626399999994E-2},{"$f":"IFERROR(INDEX('Data Annex'!$K$1:$AN$4997,MATCH(V$1&\"|\"&$B24,'Data Annex'!$K$1:$K$4997,0),MATCH(V$2,'Data Annex'!$K$1:$AN$1,0)),\"\")","v":7.5962831100000003E-2},{"$f":"IFERROR(INDEX('Data Annex'!$K$1:$AN$4997,MATCH(W$1&\"|\"&$B24,'Data Annex'!$K$1:$K$4997,0),MATCH(W$2,'Data Annex'!$K$1:$AN$1,0)),\"\")","v":1.6026467799999999E-2},{"$f":"IFERROR(INDEX('Data Annex'!$K$1:$AN$4997,MATCH(X$1&\"|\"&$B24,'Data Annex'!$K$1:$K$4997,0),MATCH(X$2,'Data Annex'!$K$1:$AN$1,0)),\"\")","v":0.1118175211}]
[null,"HU",null,"HU",{"$f":"IFERROR(INDEX('Data Annex'!$K$1:$AN$4997,MATCH(E$1&\"|\"&$B25,'Data Annex'!$K$1:$K$4997,0),MATCH(E$2,'Data Annex'!$K$1:$AN$1,0)),\"\")","v":1.9670628900000001E-2},{"$f":"IFERROR(INDEX('Data Annex'!$K$1:$AN$4997,MATCH(F$1&\"|\"&$B25,'Data Annex'!$K$1:$K$4997,0),MATCH(F$2,'Data Annex'!$K$1:$AN$1,0)),\"\")","v":2.2616488000000001E-2},{"$f":"IFERROR(INDEX('Data Annex'!$K$1:$AN$4997,MATCH(G$1&\"|\"&$B25,'Data Annex'!$K$1:$K$4997,0),MATCH(G$2,'Data Annex'!$K$1:$AN$1,0)),\"\")","v":1.91493997E-2},{"$f":"IFERROR(INDEX('Data Annex'!$K$1:$AN$4997,MATCH(H$1&\"|\"&$B25,'Data Annex'!$K$1:$K$4997,0),MATCH(H$2,'Data Annex'!$K$1:$AN$1,0)),\"\")","v":2.32255894E-2},{"$f":"IFERROR(INDEX('Data Annex'!$K$1:$AN$4997,MATCH(I$1&\"|\"&$B25,'Data Annex'!$K$1:$K$4997,0),MATCH(I$2,'Data Annex'!$K$1:$AN$1,0)),\"\")","v":5.4393434900000003E-2},{"$f":"IFERROR(INDEX('Data Annex'!$K$1:$AN$4997,MATCH(J$1&\"|\"&$B25,'Data Annex'!$K$1:$K$4997,0),MATCH(J$2,'Data Annex'!$K$1:$AN$1,0)),\"\")","v":5.2233283700000001E-2},{"$f":"IFERROR(INDEX('Data Annex'!$K$1:$AN$4997,MATCH(K$1&\"|\"&$B25,'Data Annex'!$K$1:$K$4997,0),MATCH(K$2,'Data Annex'!$K$1:$AN$1,0)),\"\")","v":1.6713719799999999E-2},{"$f":"IFERROR(INDEX('Data Annex'!$K$1:$AN$4997,MATCH(L$1&\"|\"&$B25,'Data Annex'!$K$1:$K$4997,0),MATCH(L$2,'Data Annex'!$K$1:$AN$1,0)),\"\")","v":1.5158671800000001E-2},{"$f":"IFERROR(INDEX('Data Annex'!$K$1:$AN$4997,MATCH(M$1&\"|\"&$B25,'Data Annex'!$K$1:$K$4997,0),MATCH(M$2,'Data Annex'!$K$1:$AN$1,0)),\"\")","v":6.0866037099999999E-2},{"$f":"IFERROR(INDEX('Data Annex'!$K$1:$AN$4997,MATCH(N$1&\"|\"&$B25,'Data Annex'!$K$1:$K$4997,0),MATCH(N$2,'Data Annex'!$K$1:$AN$1,0)),\"\")","v":1.47081235E-2},{"$f":"IFERROR(INDEX('Data Annex'!$K$1:$AN$4997,MATCH(O$1&\"|\"&$B25,'Data Annex'!$K$1:$K$4997,0),MATCH(O$2,'Data Annex'!$K$1:$AN$1,0)),\"\")","v":5.6662424500000003E-2},{"$f":"IFERROR(INDEX('Data Annex'!$K$1:$AN$4997,MATCH(P$1&\"|\"&$B25,'Data Annex'!$K$1:$K$4997,0),MATCH(P$2,'Data Annex'!$K$1:$AN$1,0)),\"\")","v":5.3754830099999998E-2},{"$f":"IFERROR(INDEX('Data Annex'!$K$1:$AN$4997,MATCH(Q$1&\"|\"&$B25,'Data Annex'!$K$1:$K$4997,0),MATCH(Q$2,'Data Annex'!$K$1:$AN$1,0)),\"\")","v":3.6880484800000002E-2},{"$f":"IFERROR(INDEX('Data Annex'!$K$1:$AN$4997,MATCH(R$1&\"|\"&$B25,'Data Annex'!$K$1:$K$4997,0),MATCH(R$2,'Data Annex'!$K$1:$AN$1,0)),\"\")","v":3.30145622E-2},{"$f":"IFERROR(INDEX('Data Annex'!$K$1:$AN$4997,MATCH(S$1&\"|\"&$B25,'Data Annex'!$K$1:$K$4997,0),MATCH(S$2,'Data Annex'!$K$1:$AN$1,0)),\"\")","v":4.5928682899999997E-2},{"$f":"IFERROR(INDEX('Data Annex'!$K$1:$AN$4997,MATCH(T$1&\"|\"&$B25,'Data Annex'!$K$1:$K$4997,0),MATCH(T$2,'Data Annex'!$K$1:$AN$1,0)),\"\")","v":6.6289058400000003E-2},{"$f":"IFERROR(INDEX('Data Annex'!$K$1:$AN$4997,MATCH(U$1&\"|\"&$B25,'Data Annex'!$K$1:$K$4997,0),MATCH(U$2,'Data Annex'!$K$1:$AN$1,0)),\"\")","v":3.0064103299999999E-2},{"$f":"IFERROR(INDEX('Data Annex'!$K$1:$AN$4997,MATCH(V$1&\"|\"&$B25,'Data Annex'!$K$1:$K$4997,0),MATCH(V$2,'Data Annex'!$K$1:$AN$1,0)),\"\")","v":4.0963148200000001E-2},{"$f":"IFERROR(INDEX('Data Annex'!$K$1:$AN$4997,MATCH(W$1&\"|\"&$B25,'Data Annex'!$K$1:$K$4997,0),MATCH(W$2,'Data Annex'!$K$1:$AN$1,0)),\"\")","v":2.2620989500000001E-2},{"$f":"IFERROR(INDEX('Data Annex'!$K$1:$AN$4997,MATCH(X$1&\"|\"&$B25,'Data Annex'!$K$1:$K$4997,0),MATCH(X$2,'Data Annex'!$K$1:$AN$1,0)),\"\")","v":2.05925437E-2}]
[null,"IE",null,"IE",{"$f":"IFERROR(INDEX('Data Annex'!$K$1:$AN$4997,MATCH(E$1&\"|\"&$B26,'Data Annex'!$K$1:$K$4997,0),MATCH(E$2,'Data Annex'!$K$1:$AN$1,0)),\"\")","v":6.47305715E-2},{"$f":"IFERROR(INDEX('Data Annex'!$K$1:$AN$4997,MATCH(F$1&\"|\"&$B26,'Data Annex'!$K$1:$K$4997,0),MATCH(F$2,'Data Annex'!$K$1:$AN$1,0)),\"\")","v":6.8105805899999997E-2},{"$f":"IFERROR(INDEX('Data Annex'!$K$1:$AN$4997,MATCH(G$1&\"|\"&$B26,'Data Annex'!$K$1:$K$4997,0),MATCH(G$2,'Data Annex'!$K$1:$AN$1,0)),\"\")","v":1.91219057E-2},{"$f":"IFERROR(INDEX('Data Annex'!$K$1:$AN$4997,MATCH(H$1&\"|\"&$B26,'Data Annex'!$K$1:$K$4997,0),MATCH(H$2,'Data Annex'!$K$1:$AN$1,0)),\"\")","v":1.6245925000000001E-2},{"$f":"IFERROR(INDEX('Data Annex'!$K$1:$AN$4997,MATCH(I$1&\"|\"&$B26,'Data Annex'!$K$1:$K$4997,0),MATCH(I$2,'Data Annex'!$K$1:$AN$1,0)),\"\")","v":1.45108288E-2},{"$f":"IFERROR(INDEX('Data Annex'!$K$1:$AN$4997,MATCH(J$1&\"|\"&$B26,'Data Annex'!$K$1:$K$4997,0),MATCH(J$2,'Data Annex'!$K$1:$AN$1,0)),\"\")","v":1.47060935E-2},{"$f":"IFERROR(INDEX('Data Annex'!$K$1:$AN$4997,MATCH(K$1&\"|\"&$B26,'Data Annex'!$K$1:$K$4997,0),MATCH(K$2,'Data Annex'!$K$1:$AN$1,0)),\"\")","v":4.1240557000000004E-3},{"$f":"IFERROR(INDEX('Data Annex'!$K$1:$AN$4997,MATCH(L$1&\"|\"&$B26,'Data Annex'!$K$1:$K$4997,0),MATCH(L$2,'Data Annex'!$K$1:$AN$1,0)),\"\")","v":7.4916490000000004E-3},{"$f":"IFERROR(INDEX('Data Annex'!$K$1:$AN$4997,MATCH(M$1&\"|\"&$B26,'Data Annex'!$K$1:$K$4997,0),MATCH(M$2,'Data Annex'!$K$1:$AN$1,0)),\"\")","v":1.24001E-5},{"$f":"IFERROR(INDEX('Data Annex'!$K$1:$AN$4997,MATCH(N$1&\"|\"&$B26,'Data Annex'!$K$1:$K$4997,0),MATCH(N$2,'Data Annex'!$K$1:$AN$1,0)),\"\")","v":3.8509302999999999E-3},{"$f":"IFERROR(INDEX('Data Annex'!$K$1:$AN$4997,MATCH(O$1&\"|\"&$B26,'Data Annex'!$K$1:$K$4997,0),MATCH(O$2,'Data Annex'!$K$1:$AN$1,0)),\"\")","v":5.2150778100000003E-2},{"$f":"IFERROR(INDEX('Data Annex'!$K$1:$AN$4997,MATCH(P$1&\"|\"&$B26,'Data Annex'!$K$1:$K$4997,0),MATCH(P$2,'Data Annex'!$K$1:$AN$1,0)),\"\")","v":4.1216522800000002E-2},{"$f":"IFERROR(INDEX('Data Annex'!$K$1:$AN$4997,MATCH(Q$1&\"|\"&$B26,'Data Annex'!$K$1:$K$4997,0),MATCH(Q$2,'Data Annex'!$K$1:$AN$1,0)),\"\")","v":5.40226153E-2},{"$f":"IFERROR(INDEX('Data Annex'!$K$1:$AN$4997,MATCH(R$1&\"|\"&$B26,'Data Annex'!$K$1:$K$4997,0),MATCH(R$2,'Data Annex'!$K$1:$AN$1,0)),\"\")","v":5.0541930700000001E-2},{"$f":"IFERROR(INDEX('Data Annex'!$K$1:$AN$4997,MATCH(S$1&\"|\"&$B26,'Data Annex'!$K$1:$K$4997,0),MATCH(S$2,'Data Annex'!$K$1:$AN$1,0)),\"\")","v":3.5514888600000002E-2},{"$f":"IFERROR(INDEX('Data Annex'!$K$1:$AN$4997,MATCH(T$1&\"|\"&$B26,'Data Annex'!$K$1:$K$4997,0),MATCH(T$2,'Data Annex'!$K$1:$AN$1,0)),\"\")","v":4.4204936399999999E-2},{"$f":"IFERROR(INDEX('Data Annex'!$K$1:$AN$4997,MATCH(U$1&\"|\"&$B26,'Data Annex'!$K$1:$K$4997,0),MATCH(U$2,'Data Annex'!$K$1:$AN$1,0)),\"\")","v":7.0461893400000003E-2},{"$f":"IFERROR(INDEX('Data Annex'!$K$1:$AN$4997,MATCH(V$1&\"|\"&$B26,'Data Annex'!$K$1:$K$4997,0),MATCH(V$2,'Data Annex'!$K$1:$AN$1,0)),\"\")","v":0.10718091020000001},{"$f":"IFERROR(INDEX('Data Annex'!$K$1:$AN$4997,MATCH(W$1&\"|\"&$B26,'Data Annex'!$K$1:$K$4997,0),MATCH(W$2,'Data Annex'!$K$1:$AN$1,0)),\"\")","v":9.1895264999999997E-3},{"$f":"IFERROR(INDEX('Data Annex'!$K$1:$AN$4997,MATCH(X$1&\"|\"&$B26,'Data Annex'!$K$1:$K$4997,0),MATCH(X$2,'Data Annex'!$K$1:$AN$1,0)),\"\")","v":1.3195028100000001E-2}]
[null,"IS",null,"IS",{"$f":"IFERROR(INDEX('Data Annex'!$K$1:$AN$4997,MATCH(E$1&\"|\"&$B27,'Data Annex'!$K$1:$K$4997,0),MATCH(E$2,'Data Annex'!$K$1:$AN$1,0)),\"\")","v":1.04446153E-2},{"$f":"IFERROR(INDEX('Data Annex'!$K$1:$AN$4997,MATCH(F$1&\"|\"&$B27,'Data Annex'!$K$1:$K$4997,0),MATCH(F$2,'Data Annex'!$K$1:$AN$1,0)),\"\")","v":9.1642263999999994E-3},{"$f":"IFERROR(INDEX('Data Annex'!$K$1:$AN$4997,MATCH(G$1&\"|\"&$B27,'Data Annex'!$K$1:$K$4997,0),MATCH(G$2,'Data Annex'!$K$1:$AN$1,0)),\"\")","v":0.5029479362},{"$f":"IFERROR(INDEX('Data Annex'!$K$1:$AN$4997,MATCH(H$1&\"|\"&$B27,'Data Annex'!$K$1:$K$4997,0),MATCH(H$2,'Data Annex'!$K$1:$AN$1,0)),\"\")","v":0.50205020249999999},{"$f":"IFERROR(INDEX('Data Annex'!$K$1:$AN$4997,MATCH(I$1&\"|\"&$B27,'Data Annex'!$K$1:$K$4997,0),MATCH(I$2,'Data Annex'!$K$1:$AN$1,0)),\"\")","v":2.6873510199999999E-2},{"$f":"IFERROR(INDEX('Data Annex'!$K$1:$AN$4997,MATCH(J$1&\"|\"&$B27,'Data Annex'!$K$1:$K$4997,0),MATCH(J$2,'Data Annex'!$K$1:$AN$1,0)),\"\")","v":2.8721272700000001E-2},{"$f":"IFERROR(INDEX('Data Annex'!$K$1:$AN$4997,MATCH(K$1&\"|\"&$B27,'Data Annex'!$K$1:$K$4997,0),MATCH(K$2,'Data Annex'!$K$1:$AN$1,0)),\"\")","v":2.3548920000000001E-4},{"$f":"IFERROR(INDEX('Data Annex'!$K$1:$AN$4997,MATCH(L$1&\"|\"&$B27,'Data Annex'!$K$1:$K$4997,0),MATCH(L$2,'Data Annex'!$K$1:$AN$1,0)),\"\")","v":0},{"$f":"IFERROR(INDEX('Data Annex'!$K$1:$AN$4997,MATCH(M$1&\"|\"&$B27,'Data Annex'!$K$1:$K$4997,0),MATCH(M$2,'Data Annex'!$K$1:$AN$1,0)),\"\")","v":0.12808732819999999},{"$f":"IFERROR(INDEX('Data Annex'!$K$1:$AN$4997,MATCH(N$1&\"|\"&$B27,'Data Annex'!$K$1:$K$4997,0),MATCH(N$2,'Data Annex'!$K$1:$AN$1,0)),\"\")","v":0.11831198950000001},{"$f":"IFERROR(INDEX('Data Annex'!$K$1:$AN$4997,MATCH(O$1&\"|\"&$B27,'Data Annex'!$K$1:$K$4997,0),MATCH(O$2,'Data Annex'!$K$1:$AN$1,0)),\"\")","v":3.8774084600000001E-2},{"$f":"IFERROR(INDEX('Data Annex'!$K$1:$AN$4997,MATCH(P$1&\"|\"&$B27,'Data Annex'!$K$1:$K$4997,0),MATCH(P$2,'Data Annex'!$K$1:$AN$1,0)),\"\")","v":3.0043346200000001E-2},{"$f":"IFERROR(INDEX('Data Annex'!$K$1:$AN$4997,MATCH(Q$1&\"|\"&$B27,'Data Annex'!$K$1:$K$4997,0),MATCH(Q$2,'Data Annex'!$K$1:$AN$1,0)),\"\")","v":3.5993374500000001E-2},{"$f":"IFERROR(INDEX('Data Annex'!$K$1:$AN$4997,MATCH(R$1&\"|\"&$B27,'Data Annex'!$K$1:$K$4997,0),MATCH(R$2,'Data Annex'!$K$1:$AN$1,0)),\"\")","v":3.2532196399999998E-2},{"$f":"IFERROR(INDEX('Data Annex'!$K$1:$AN$4997,MATCH(S$1&\"|\"&$B27,'Data Annex'!$K$1:$K$4997,0),MATCH(S$2,'Data Annex'!$K$1:$AN$1,0)),\"\")","v":5.3516171299999998E-2},{"$f":"IFERROR(INDEX('Data Annex'!$K$1:$AN$4997,MATCH(T$1&\"|\"&$B27,'Data Annex'!$K$1:$K$4997,0),MATCH(T$2,'Data Annex'!$K$1:$AN$1,0)),\"\")","v":5.5651345200000001E-2},{"$f":"IFERROR(INDEX('Data Annex'!$K$1:$AN$4997,MATCH(U$1&\"|\"&$B27,'Data Annex'!$K$1:$K$4997,0),MATCH(U$2,'Data Annex'!$K$1:$AN$1,0)),\"\")","v":0.14633630480000001},{"$f":"IFERROR(INDEX('Data Annex'!$K$1:$AN$4997,MATCH(V$1&\"|\"&$B27,'Data Annex'!$K$1:$K$4997,0),MATCH(V$2,'Data Annex'!$K$1:$AN$1,0)),\"\")","v":0.1700434693},{"$f":"IFERROR(INDEX('Data Annex'!$K$1:$AN$4997,MATCH(W$1&\"|\"&$B27,'Data Annex'!$K$1:$K$4997,0),MATCH(W$2,'Data Annex'!$K$1:$AN$1,0)),\"\")","v":1.0811541399999999E-2},{"$f":"IFERROR(INDEX('Data Annex'!$K$1:$AN$4997,MATCH(X$1&\"|\"&$B27,'Data Annex'!$K$1:$K$4997,0),MATCH(X$2,'Data Annex'!$K$1:$AN$1,0)),\"\")","v":7.3651200000000002E-3}]
[null,"IT",null,"IT",{"$f":"IFERROR(INDEX('Data Annex'!$K$1:$AN$4997,MATCH(E$1&\"|\"&$B28,'Data Annex'!$K$1:$K$4997,0),MATCH(E$2,'Data Annex'!$K$1:$AN$1,0)),\"\")","v":8.8160823700000002E-2},{"$f":"IFERROR(INDEX('Data Annex'!$K$1:$AN$4997,MATCH(F$1&\"|\"&$B28,'Data Annex'!$K$1:$K$4997,0),MATCH(F$2,'Data Annex'!$K$1:$AN$1,0)),\"\")","v":7.3413065999999999E-2},{"$f":"IFERROR(INDEX('Data Annex'!$K$1:$AN$4997,MATCH(G$1&\"|\"&$B28,'Data Annex'!$K$1:$K$4997,0),MATCH(G$2,'Data Annex'!$K$1:$AN$1,0)),\"\")","v":6.2901766200000001E-2},{"$f":"IFERROR(INDEX('Data Annex'!$K$1:$AN$4997,MATCH(H$1&\"|\"&$B28,'Data Annex'!$K$1:$K$4997,0),MATCH(H$2,'Data Annex'!$K$1:$AN$1,0)),\"\")","v":4.5191311499999998E-2},{"$f":"IFERROR(INDEX('Data Annex'!$K$1:$AN$4997,MATCH(I$1&\"|\"&$B28,'Data Annex'!$K$1:$K$4997,0),MATCH(I$2,'Data Annex'!$K$1:$AN$1,0)),\"\")","v":7.0405853099999999E-2},{"$f":"IFERROR(INDEX('Data Annex'!$K$1:$AN$4997,MATCH(J$1&\"|\"&$B28,'Data Annex'!$K$1:$K$4997,0),MATCH(J$2,'Data Annex'!$K$1:$AN$1,0)),\"\")","v":6.0617905299999997E-2},{"$f":"IFERROR(INDEX('Data Annex'!$K$1:$AN$4997,MATCH(K$1&\"|\"&$B28,'Data Annex'!$K$1:$K$4997,0),MATCH(K$2,'Data Annex'!$K$1:$AN$1,0)),\"\")","v":2.75751851E-2},{"$f":"IFERROR(INDEX('Data Annex'!$K$1:$AN$4997,MATCH(L$1&\"|\"&$B28,'Data Annex'!$K$1:$K$4997,0),MATCH(L$2,'Data Annex'!$K$1:$AN$1,0)),\"\")","v":2.2438473E-2},{"$f":"IFERROR(INDEX('Data Annex'!$K$1:$AN$4997,MATCH(M$1&\"|\"&$B28,'Data Annex'!$K$1:$K$4997,0),MATCH(M$2,'Data Annex'!$K$1:$AN$1,0)),\"\")","v":5.5299589500000003E-2},{"$f":"IFERROR(INDEX('Data Annex'!$K$1:$AN$4997,MATCH(N$1&\"|\"&$B28,'Data Annex'!$K$1:$K$4997,0),MATCH(N$2,'Data Annex'!$K$1:$AN$1,0)),\"\")","v":4.9820466600000002E-2},{"$f":"IFERROR(INDEX('Data Annex'!$K$1:$AN$4997,MATCH(O$1&\"|\"&$B28,'Data Annex'!$K$1:$K$4997,0),MATCH(O$2,'Data Annex'!$K$1:$AN$1,0)),\"\")","v":0.26031200539999999},{"$f":"IFERROR(INDEX('Data Annex'!$K$1:$AN$4997,MATCH(P$1&\"|\"&$B28,'Data Annex'!$K$1:$K$4997,0),MATCH(P$2,'Data Annex'!$K$1:$AN$1,0)),\"\")","v":0.19525537800000001},{"$f":"IFERROR(INDEX('Data Annex'!$K$1:$AN$4997,MATCH(Q$1&\"|\"&$B28,'Data Annex'!$K$1:$K$4997,0),MATCH(Q$2,'Data Annex'!$K$1:$AN$1,0)),\"\")","v":7.6980633300000004E-2},{"$f":"IFERROR(INDEX('Data Annex'!$K$1:$AN$4997,MATCH(R$1&\"|\"&$B28,'Data Annex'!$K$1:$K$4997,0),MATCH(R$2,'Data Annex'!$K$1:$AN$1,0)),\"\")","v":6.0805373599999997E-2},{"$f":"IFERROR(INDEX('Data Annex'!$K$1:$AN$4997,MATCH(S$1&\"|\"&$B28,'Data Annex'!$K$1:$K$4997,0),MATCH(S$2,'Data Annex'!$K$1:$AN$1,0)),\"\")","v":6.9463538000000005E-2},{"$f":"IFERROR(INDEX('Data Annex'!$K$1:$AN$4997,MATCH(T$1&\"|\"&$B28,'Data Annex'!$K$1:$K$4997,0),MATCH(T$2,'Data Annex'!$K$1:$AN$1,0)),\"\")","v":5.4147784099999999E-2},{"$f":"IFERROR(INDEX('Data Annex'!$K$1:$AN$4997,MATCH(U$1&\"|\"&$B28,'Data Annex'!$K$1:$K$4997,0),MATCH(U$2,'Data Annex'!$K$1:$AN$1,0)),\"\")","v":0.1091571704},{"$f":"IFERROR(INDEX('Data Annex'!$K$1:$AN$4997,MATCH(V$1&\"|\"&$B28,'Data Annex'!$K$1:$K$4997,0),MATCH(V$2,'Data Annex'!$K$1:$AN$1,0)),\"\")","v":8.8231352200000002E-2},{"$f":"IFERROR(INDEX('Data Annex'!$K$1:$AN$4997,MATCH(W$1&\"|\"&$B28,'Data Annex'!$K$1:$K$4997,0),MATCH(W$2,'Data Annex'!$K$1:$AN$1,0)),\"\")","v":3.1499910200000002E-2},{"$f":"IFERROR(INDEX('Data Annex'!$K$1:$AN$4997,MATCH(X$1&\"|\"&$B28,'Data Annex'!$K$1:$K$4997,0),MATCH(X$2,'Data Annex'!$K$1:$AN$1,0)),\"\")","v":3.1036857899999999E-2}]
[null,"LT",null,"LT",{"$f":"IFERROR(INDEX('Data Annex'!$K$1:$AN$4997,MATCH(E$1&\"|\"&$B29,'Data Annex'!$K$1:$K$4997,0),MATCH(E$2,'Data Annex'!$K$1:$AN$1,0)),\"\")","v":3.0725721599999999E-2},{"$f":"IFERROR(INDEX('Data Annex'!$K$1:$AN$4997,MATCH(F$1&\"|\"&$B29,'Data Annex'!$K$1:$K$4997,0),MATCH(F$2,'Data Annex'!$K$1:$AN$1,0)),\"\")","v":4.7758941100000001E-2},{"$f":"IFERROR(INDEX('Data Annex'!$K$1:$AN$4997,MATCH(G$1&\"|\"&$B29,'Data Annex'!$K$1:$K$4997,0),MATCH(G$2,'Data Annex'!$K$1:$AN$1,0)),\"\")","v":9.2688058899999995E-2},{"$f":"IFERROR(INDEX('Data Annex'!$K$1:$AN$4997,MATCH(H$1&\"|\"&$B29,'Data Annex'!$K$1:$K$4997,0),MATCH(H$2,'Data Annex'!$K$1:$AN$1,0)),\"\")","v":9.9481623899999996E-2},{"$f":"IFERROR(INDEX('Data Annex'!$K$1:$AN$4997,MATCH(I$1&\"|\"&$B29,'Data Annex'!$K$1:$K$4997,0),MATCH(I$2,'Data Annex'!$K$1:$AN$1,0)),\"\")","v":5.05915059E-2},{"$f":"IFERROR(INDEX('Data Annex'!$K$1:$AN$4997,MATCH(J$1&\"|\"&$B29,'Data Annex'!$K$1:$K$4997,0),MATCH(J$2,'Data Annex'!$K$1:$AN$1,0)),\"\")","v":5.2782611100000001E-2},{"$f":"IFERROR(INDEX('Data Annex'!$K$1:$AN$4997,MATCH(K$1&\"|\"&$B29,'Data Annex'!$K$1:$K$4997,0),MATCH(K$2,'Data Annex'!$K$1:$AN$1,0)),\"\")","v":6.014064E-4},{"$f":"IFERROR(INDEX('Data Annex'!$K$1:$AN$4997,MATCH(L$1&\"|\"&$B29,'Data Annex'!$K$1:$K$4997,0),MATCH(L$2,'Data Annex'!$K$1:$AN$1,0)),\"\")","v":1.2539703E-3},{"$f":"IFERROR(INDEX('Data Annex'!$K$1:$AN$4997,MATCH(M$1&\"|\"&$B29,'Data Annex'!$K$1:$K$4997,0),MATCH(M$2,'Data Annex'!$K$1:$AN$1,0)),\"\")","v":3.2842081999999999E-3},{"$f":"IFERROR(INDEX('Data Annex'!$K$1:$AN$4997,MATCH(N$1&\"|\"&$B29,'Data Annex'!$K$1:$K$4997,0),MATCH(N$2,'Data Annex'!$K$1:$AN$1,0)),\"\")","v":2.6140277999999999E-3},{"$f":"IFERROR(INDEX('Data Annex'!$K$1:$AN$4997,MATCH(O$1&\"|\"&$B29,'Data Annex'!$K$1:$K$4997,0),MATCH(O$2,'Data Annex'!$K$1:$AN$1,0)),\"\")","v":9.2131886800000007E-2},{"$f":"IFERROR(INDEX('Data Annex'!$K$1:$AN$4997,MATCH(P$1&\"|\"&$B29,'Data Annex'!$K$1:$K$4997,0),MATCH(P$2,'Data Annex'!$K$1:$AN$1,0)),\"\")","v":8.8749889900000004E-2},{"$f":"IFERROR(INDEX('Data Annex'!$K$1:$AN$4997,MATCH(Q$1&\"|\"&$B29,'Data Annex'!$K$1:$K$4997,0),MATCH(Q$2,'Data Annex'!$K$1:$AN$1,0)),\"\")","v":1.7406184099999999E-2},{"$f":"IFERROR(INDEX('Data Annex'!$K$1:$AN$4997,MATCH(R$1&\"|\"&$B29,'Data Annex'!$K$1:$K$4997,0),MATCH(R$2,'Data Annex'!$K$1:$AN$1,0)),\"\")","v":2.6818690799999999E-2},{"$f":"IFERROR(INDEX('Data Annex'!$K$1:$AN$4997,MATCH(S$1&\"|\"&$B29,'Data Annex'!$K$1:$K$4997,0),MATCH(S$2,'Data Annex'!$K$1:$AN$1,0)),\"\")","v":4.1744390000000003E-3},{"$f":"IFERROR(INDEX('Data Annex'!$K$1:$AN$4997,MATCH(T$1&\"|\"&$B29,'Data Annex'!$K$1:$K$4997,0),MATCH(T$2,'Data Annex'!$K$1:$AN$1,0)),\"\")","v":1.29724443E-2},{"$f":"IFERROR(INDEX('Data Annex'!$K$1:$AN$4997,MATCH(U$1&\"|\"&$B29,'Data Annex'!$K$1:$K$4997,0),MATCH(U$2,'Data Annex'!$K$1:$AN$1,0)),\"\")","v":8.99547666E-2},{"$f":"IFERROR(INDEX('Data Annex'!$K$1:$AN$4997,MATCH(V$1&\"|\"&$B29,'Data Annex'!$K$1:$K$4997,0),MATCH(V$2,'Data Annex'!$K$1:$AN$1,0)),\"\")","v":0.16323397079999999},{"$f":"IFERROR(INDEX('Data Annex'!$K$1:$AN$4997,MATCH(W$1&\"|\"&$B29,'Data Annex'!$K$1:$K$4997,0),MATCH(W$2,'Data Annex'!$K$1:$AN$1,0)),\"\")","v":2.5385567000000002E-3},{"$f":"IFERROR(INDEX('Data Annex'!$K$1:$AN$4997,MATCH(X$1&\"|\"&$B29,'Data Annex'!$K$1:$K$4997,0),MATCH(X$2,'Data Annex'!$K$1:$AN$1,0)),\"\")","v":1.8934169000000001E-3}]
[null,"LU",null,"LU",{"$f":"IFERROR(INDEX('Data Annex'!$K$1:$AN$4997,MATCH(E$1&\"|\"&$B30,'Data Annex'!$K$1:$K$4997,0),MATCH(E$2,'Data Annex'!$K$1:$AN$1,0)),\"\")","v":4.1048241499999999E-2},{"$f":"IFERROR(INDEX('Data Annex'!$K$1:$AN$4997,MATCH(F$1&\"|\"&$B30,'Data Annex'!$K$1:$K$4997,0),MATCH(F$2,'Data Annex'!$K$1:$AN$1,0)),\"\")","v":4.2371276999999999E-2},{"$f":"IFERROR(INDEX('Data Annex'!$K$1:$AN$4997,MATCH(G$1&\"|\"&$B30,'Data Annex'!$K$1:$K$4997,0),MATCH(G$2,'Data Annex'!$K$1:$AN$1,0)),\"\")","v":5.7335874000000002E-3},{"$f":"IFERROR(INDEX('Data Annex'!$K$1:$AN$4997,MATCH(H$1&\"|\"&$B30,'Data Annex'!$K$1:$K$4997,0),MATCH(H$2,'Data Annex'!$K$1:$AN$1,0)),\"\")","v":3.5035039000000001E-3},{"$f":"IFERROR(INDEX('Data Annex'!$K$1:$AN$4997,MATCH(I$1&\"|\"&$B30,'Data Annex'!$K$1:$K$4997,0),MATCH(I$2,'Data Annex'!$K$1:$AN$1,0)),\"\")","v":3.4601243099999998E-2},{"$f":"IFERROR(INDEX('Data Annex'!$K$1:$AN$4997,MATCH(J$1&\"|\"&$B30,'Data Annex'!$K$1:$K$4997,0),MATCH(J$2,'Data Annex'!$K$1:$AN$1,0)),\"\")","v":3.4975973E-2},{"$f":"IFERROR(INDEX('Data Annex'!$K$1:$AN$4997,MATCH(K$1&\"|\"&$B30,'Data Annex'!$K$1:$K$4997,0),MATCH(K$2,'Data Annex'!$K$1:$AN$1,0)),\"\")","v":5.7679292700000002E-2},{"$f":"IFERROR(INDEX('Data Annex'!$K$1:$AN$4997,MATCH(L$1&\"|\"&$B30,'Data Annex'!$K$1:$K$4997,0),MATCH(L$2,'Data Annex'!$K$1:$AN$1,0)),\"\")","v":4.4104145499999997E-2},{"$f":"IFERROR(INDEX('Data Annex'!$K$1:$AN$4997,MATCH(M$1&\"|\"&$B30,'Data Annex'!$K$1:$K$4997,0),MATCH(M$2,'Data Annex'!$K$1:$AN$1,0)),\"\")","v":5.6580393600000001E-2},{"$f":"IFERROR(INDEX('Data Annex'!$K$1:$AN$4997,MATCH(N$1&\"|\"&$B30,'Data Annex'!$K$1:$K$4997,0),MATCH(N$2,'Data Annex'!$K$1:$AN$1,0)),\"\")","v":4.5838237699999999E-2},{"$f":"IFERROR(INDEX('Data Annex'!$K$1:$AN$4997,MATCH(O$1&\"|\"&$B30,'Data Annex'!$K$1:$K$4997,0),MATCH(O$2,'Data Annex'!$K$1:$AN$1,0)),\"\")","v":4.7195092000000001E-2},{"$f":"IFERROR(INDEX('Data Annex'!$K$1:$AN$4997,MATCH(P$1&\"|\"&$B30,'Data Annex'!$K$1:$K$4997,0),MATCH(P$2,'Data Annex'!$K$1:$AN$1,0)),\"\")","v":4.4288313900000001E-2},{"$f":"IFERROR(INDEX('Data Annex'!$K$1:$AN$4997,MATCH(Q$1&\"|\"&$B30,'Data Annex'!$K$1:$K$4997,0),MATCH(Q$2,'Data Annex'!$K$1:$AN$1,0)),\"\")","v":3.88862045E-2},{"$f":"IFERROR(INDEX('Data Annex'!$K$1:$AN$4997,MATCH(R$1&\"|\"&$B30,'Data Annex'!$K$1:$K$4997,0),MATCH(R$2,'Data Annex'!$K$1:$AN$1,0)),\"\")","v":3.6765494599999997E-2},{"$f":"IFERROR(INDEX('Data Annex'!$K$1:$AN$4997,MATCH(S$1&\"|\"&$B30,'Data Annex'!$K$1:$K$4997,0),MATCH(S$2,'Data Annex'!$K$1:$AN$1,0)),\"\")","v":4.5899954299999997E-2},{"$f":"IFERROR(INDEX('Data Annex'!$K$1:$AN$4997,MATCH(T$1&\"|\"&$B30,'Data Annex'!$K$1:$K$4997,0),MATCH(T$2,'Data Annex'!$K$1:$AN$1,0)),\"\")","v":4.56501146E-2},{"$f":"IFERROR(INDEX('Data Annex'!$K$1:$AN$4997,MATCH(U$1&\"|\"&$B30,'Data Annex'!$K$1:$K$4997,0),MATCH(U$2,'Data Annex'!$K$1:$AN$1,0)),\"\")","v":0.34684075489999999},{"$f":"IFERROR(INDEX('Data Annex'!$K$1:$AN$4997,MATCH(V$1&\"|\"&$B30,'Data Annex'!$K$1:$K$4997,0),MATCH(V$2,'Data Annex'!$K$1:$AN$1,0)),\"\")","v":0.35453333310000001},{"$f":"IFERROR(INDEX('Data Annex'!$K$1:$AN$4997,MATCH(W$1&\"|\"&$B30,'Data Annex'!$K$1:$K$4997,0),MATCH(W$2,'Data Annex'!$K$1:$AN$1,0)),\"\")","v":3.4793071600000003E-2},{"$f":"IFERROR(INDEX('Data Annex'!$K$1:$AN$4997,MATCH(X$1&\"|\"&$B30,'Data Annex'!$K$1:$K$4997,0),MATCH(X$2,'Data Annex'!$K$1:$AN$1,0)),\"\")","v":3.3797655099999997E-2}]
[null,"LV",null,"LV",{"$f":"IFERROR(INDEX('Data Annex'!$K$1:$AN$4997,MATCH(E$1&\"|\"&$B31,'Data Annex'!$K$1:$K$4997,0),MATCH(E$2,'Data Annex'!$K$1:$AN$1,0)),\"\")","v":1.4486101100000001E-2},{"$f":"IFERROR(INDEX('Data Annex'!$K$1:$AN$4997,MATCH(F$1&\"|\"&$B31,'Data Annex'!$K$1:$K$4997,0),MATCH(F$2,'Data Annex'!$K$1:$AN$1,0)),\"\")","v":1.7559298300000001E-2},{"$f":"IFERROR(INDEX('Data Annex'!$K$1:$AN$4997,MATCH(G$1&\"|\"&$B31,'Data Annex'!$K$1:$K$4997,0),MATCH(G$2,'Data Annex'!$K$1:$AN$1,0)),\"\")","v":3.6643074400000003E-2},{"$f":"IFERROR(INDEX('Data Annex'!$K$1:$AN$4997,MATCH(H$1&\"|\"&$B31,'Data Annex'!$K$1:$K$4997,0),MATCH(H$2,'Data Annex'!$K$1:$AN$1,0)),\"\")","v":3.4388589599999998E-2},{"$f":"IFERROR(INDEX('Data Annex'!$K$1:$AN$4997,MATCH(I$1&\"|\"&$B31,'Data Annex'!$K$1:$K$4997,0),MATCH(I$2,'Data Annex'!$K$1:$AN$1,0)),\"\")","v":8.8859978699999995E-2},{"$f":"IFERROR(INDEX('Data Annex'!$K$1:$AN$4997,MATCH(J$1&\"|\"&$B31,'Data Annex'!$K$1:$K$4997,0),MATCH(J$2,'Data Annex'!$K$1:$AN$1,0)),\"\")","v":0.16742270779999999},{"$f":"IFERROR(INDEX('Data Annex'!$K$1:$AN$4997,MATCH(K$1&\"|\"&$B31,'Data Annex'!$K$1:$K$4997,0),MATCH(K$2,'Data Annex'!$K$1:$AN$1,0)),\"\")","v":9.1593572000000009E-3},{"$f":"IFERROR(INDEX('Data Annex'!$K$1:$AN$4997,MATCH(L$1&\"|\"&$B31,'Data Annex'!$K$1:$K$4997,0),MATCH(L$2,'Data Annex'!$K$1:$AN$1,0)),\"\")","v":1.14156087E-2},{"$f":"IFERROR(INDEX('Data Annex'!$K$1:$AN$4997,MATCH(M$1&\"|\"&$B31,'Data Annex'!$K$1:$K$4997,0),MATCH(M$2,'Data Annex'!$K$1:$AN$1,0)),\"\")","v":1.6837779999999999E-4},{"$f":"IFERROR(INDEX('Data Annex'!$K$1:$AN$4997,MATCH(N$1&\"|\"&$B31,'Data Annex'!$K$1:$K$4997,0),MATCH(N$2,'Data Annex'!$K$1:$AN$1,0)),\"\")","v":3.925186E-4},{"$f":"IFERROR(INDEX('Data Annex'!$K$1:$AN$4997,MATCH(O$1&\"|\"&$B31,'Data Annex'!$K$1:$K$4997,0),MATCH(O$2,'Data Annex'!$K$1:$AN$1,0)),\"\")","v":4.5868951200000001E-2},{"$f":"IFERROR(INDEX('Data Annex'!$K$1:$AN$4997,MATCH(P$1&\"|\"&$B31,'Data Annex'!$K$1:$K$4997,0),MATCH(P$2,'Data Annex'!$K$1:$AN$1,0)),\"\")","v":3.4915806700000003E-2},{"$f":"IFERROR(INDEX('Data Annex'!$K$1:$AN$4997,MATCH(Q$1&\"|\"&$B31,'Data Annex'!$K$1:$K$4997,0),MATCH(Q$2,'Data Annex'!$K$1:$AN$1,0)),\"\")","v":1.79797012E-2},{"$f":"IFERROR(INDEX('Data Annex'!$K$1:$AN$4997,MATCH(R$1&\"|\"&$B31,'Data Annex'!$K$1:$K$4997,0),MATCH(R$2,'Data Annex'!$K$1:$AN$1,0)),\"\")","v":9.0401011999999992E-3},{"$f":"IFERROR(INDEX('Data Annex'!$K$1:$AN$4997,MATCH(S$1&\"|\"&$B31,'Data Annex'!$K$1:$K$4997,0),MATCH(S$2,'Data Annex'!$K$1:$AN$1,0)),\"\")","v":4.2620514200000001E-2},{"$f":"IFERROR(INDEX('Data Annex'!$K$1:$AN$4997,MATCH(T$1&\"|\"&$B31,'Data Annex'!$K$1:$K$4997,0),MATCH(T$2,'Data Annex'!$K$1:$AN$1,0)),\"\")","v":7.7871202700000003E-2},{"$f":"IFERROR(INDEX('Data Annex'!$K$1:$AN$4997,MATCH(U$1&\"|\"&$B31,'Data Annex'!$K$1:$K$4997,0),MATCH(U$2,'Data Annex'!$K$1:$AN$1,0)),\"\")","v":0.1314917102},{"$f":"IFERROR(INDEX('Data Annex'!$K$1:$AN$4997,MATCH(V$1&\"|\"&$B31,'Data Annex'!$K$1:$K$4997,0),MATCH(V$2,'Data Annex'!$K$1:$AN$1,0)),\"\")","v":7.0455279999999997E-3},{"$f":"IFERROR(INDEX('Data Annex'!$K$1:$AN$4997,MATCH(W$1&\"|\"&$B31,'Data Annex'!$K$1:$K$4997,0),MATCH(W$2,'Data Annex'!$K$1:$AN$1,0)),\"\")","v":4.1684234000000002E-3},{"$f":"IFERROR(INDEX('Data Annex'!$K$1:$AN$4997,MATCH(X$1&\"|\"&$B31,'Data Annex'!$K$1:$K$4997,0),MATCH(X$2,'Data Annex'!$K$1:$AN$1,0)),\"\")","v":4.5961737999999997E-3}]
[null,"MT",null,"MT",{"$f":"IFERROR(INDEX('Data Annex'!$K$1:$AN$4997,MATCH(E$1&\"|\"&$B32,'Data Annex'!$K$1:$K$4997,0),MATCH(E$2,'Data Annex'!$K$1:$AN$1,0)),\"\")","v":0.11465517109999999},{"$f":"IFERROR(INDEX('Data Annex'!$K$1:$AN$4997,MATCH(F$1&\"|\"&$B32,'Data Annex'!$K$1:$K$4997,0),MATCH(F$2,'Data Annex'!$K$1:$AN$1,0)),\"\")","v":8.9936329400000001E-2},{"$f":"IFERROR(INDEX('Data Annex'!$K$1:$AN$4997,MATCH(G$1&\"|\"&$B32,'Data Annex'!$K$1:$K$4997,0),MATCH(G$2,'Data Annex'!$K$1:$AN$1,0)),\"\")","v":0},{"$f":"IFERROR(INDEX('Data Annex'!$K$1:$AN$4997,MATCH(H$1&\"|\"&$B32,'Data Annex'!$K$1:$K$4997,0),MATCH(H$2,'Data Annex'!$K$1:$AN$1,0)),\"\")","v":0},{"$f":"IFERROR(INDEX('Data Annex'!$K$1:$AN$4997,MATCH(I$1&\"|\"&$B32,'Data Annex'!$K$1:$K$4997,0),MATCH(I$2,'Data Annex'!$K$1:$AN$1,0)),\"\")","v":0.1346825861},{"$f":"IFERROR(INDEX('Data Annex'!$K$1:$AN$4997,MATCH(J$1&\"|\"&$B32,'Data Annex'!$K$1:$K$4997,0),MATCH(J$2,'Data Annex'!$K$1:$AN$1,0)),\"\")","v":0.1383823941},{"$f":"IFERROR(INDEX('Data Annex'!$K$1:$AN$4997,MATCH(K$1&\"|\"&$B32,'Data Annex'!$K$1:$K$4997,0),MATCH(K$2,'Data Annex'!$K$1:$AN$1,0)),\"\")","v":6.8295533E-3},{"$f":"IFERROR(INDEX('Data Annex'!$K$1:$AN$4997,MATCH(L$1&\"|\"&$B32,'Data Annex'!$K$1:$K$4997,0),MATCH(L$2,'Data Annex'!$K$1:$AN$1,0)),\"\")","v":3.6530096999999998E-3},{"$f":"IFERROR(INDEX('Data Annex'!$K$1:$AN$4997,MATCH(M$1&\"|\"&$B32,'Data Annex'!$K$1:$K$4997,0),MATCH(M$2,'Data Annex'!$K$1:$AN$1,0)),\"\")","v":6.7833599999999998E-4},{"$f":"IFERROR(INDEX('Data Annex'!$K$1:$AN$4997,MATCH(N$1&\"|\"&$B32,'Data Annex'!$K$1:$K$4997,0),MATCH(N$2,'Data Annex'!$K$1:$AN$1,0)),\"\")","v":5.6538479999999999E-4},{"$f":"IFERROR(INDEX('Data Annex'!$K$1:$AN$4997,MATCH(O$1&\"|\"&$B32,'Data Annex'!$K$1:$K$4997,0),MATCH(O$2,'Data Annex'!$K$1:$AN$1,0)),\"\")","v":0.26480464679999999},{"$f":"IFERROR(INDEX('Data Annex'!$K$1:$AN$4997,MATCH(P$1&\"|\"&$B32,'Data Annex'!$K$1:$K$4997,0),MATCH(P$2,'Data Annex'!$K$1:$AN$1,0)),\"\")","v":0.27780234059999998},{"$f":"IFERROR(INDEX('Data Annex'!$K$1:$AN$4997,MATCH(Q$1&\"|\"&$B32,'Data Annex'!$K$1:$K$4997,0),MATCH(Q$2,'Data Annex'!$K$1:$AN$1,0)),\"\")","v":0.1001428147},{"$f":"IFERROR(INDEX('Data Annex'!$K$1:$AN$4997,MATCH(R$1&\"|\"&$B32,'Data Annex'!$K$1:$K$4997,0),MATCH(R$2,'Data Annex'!$K$1:$AN$1,0)),\"\")","v":8.4453185299999997E-2},{"$f":"IFERROR(INDEX('Data Annex'!$K$1:$AN$4997,MATCH(S$1&\"|\"&$B32,'Data Annex'!$K$1:$K$4997,0),MATCH(S$2,'Data Annex'!$K$1:$AN$1,0)),\"\")","v":8.1850447999999992E-3},{"$f":"IFERROR(INDEX('Data Annex'!$K$1:$AN$4997,MATCH(T$1&\"|\"&$B32,'Data Annex'!$K$1:$K$4997,0),MATCH(T$2,'Data Annex'!$K$1:$AN$1,0)),\"\")","v":6.7503200099999994E-2},{"$f":"IFERROR(INDEX('Data Annex'!$K$1:$AN$4997,MATCH(U$1&\"|\"&$B32,'Data Annex'!$K$1:$K$4997,0),MATCH(U$2,'Data Annex'!$K$1:$AN$1,0)),\"\")","v":9.5271405599999998E-2},{"$f":"IFERROR(INDEX('Data Annex'!$K$1:$AN$4997,MATCH(V$1&\"|\"&$B32,'Data Annex'!$K$1:$K$4997,0),MATCH(V$2,'Data Annex'!$K$1:$AN$1,0)),\"\")","v":0.11904404189999999},{"$f":"IFERROR(INDEX('Data Annex'!$K$1:$AN$4997,MATCH(W$1&\"|\"&$B32,'Data Annex'!$K$1:$K$4997,0),MATCH(W$2,'Data Annex'!$K$1:$AN$1,0)),\"\")","v":2.2301802000000001E-3},{"$f":"IFERROR(INDEX('Data Annex'!$K$1:$AN$4997,MATCH(X$1&\"|\"&$B32,'Data Annex'!$K$1:$K$4997,0),MATCH(X$2,'Data Annex'!$K$1:$AN$1,0)),\"\")","v":0.1125894021}]
[null,"NL",null,"NL",{"$f":"IFERROR(INDEX('Data Annex'!$K$1:$AN$4997,MATCH(E$1&\"|\"&$B33,'Data Annex'!$K$1:$K$4997,0),MATCH(E$2,'Data Annex'!$K$1:$AN$1,0)),\"\")","v":6.8323279299999998E-2},{"$f":"IFERROR(INDEX('Data Annex'!$K$1:$AN$4997,MATCH(F$1&\"|\"&$B33,'Data Annex'!$K$1:$K$4997,0),MATCH(F$2,'Data Annex'!$K$1:$AN$1,0)),\"\")","v":6.6756637300000005E-2},{"$f":"IFERROR(INDEX('Data Annex'!$K$1:$AN$4997,MATCH(G$1&\"|\"&$B33,'Data Annex'!$K$1:$K$4997,0),MATCH(G$2,'Data Annex'!$K$1:$AN$1,0)),\"\")","v":0.124619199},{"$f":"IFERROR(INDEX('Data Annex'!$K$1:$AN$4997,MATCH(H$1&\"|\"&$B33,'Data Annex'!$K$1:$K$4997,0),MATCH(H$2,'Data Annex'!$K$1:$AN$1,0)),\"\")","v":0.12675185250000001},{"$f":"IFERROR(INDEX('Data Annex'!$K$1:$AN$4997,MATCH(I$1&\"|\"&$B33,'Data Annex'!$K$1:$K$4997,0),MATCH(I$2,'Data Annex'!$K$1:$AN$1,0)),\"\")","v":5.1927292E-2},{"$f":"IFERROR(INDEX('Data Annex'!$K$1:$AN$4997,MATCH(J$1&\"|\"&$B33,'Data Annex'!$K$1:$K$4997,0),MATCH(J$2,'Data Annex'!$K$1:$AN$1,0)),\"\")","v":5.1178432500000003E-2},{"$f":"IFERROR(INDEX('Data Annex'!$K$1:$AN$4997,MATCH(K$1&\"|\"&$B33,'Data Annex'!$K$1:$K$4997,0),MATCH(K$2,'Data Annex'!$K$1:$AN$1,0)),\"\")","v":1.3746268900000001E-2},{"$f":"IFERROR(INDEX('Data Annex'!$K$1:$AN$4997,MATCH(L$1&\"|\"&$B33,'Data Annex'!$K$1:$K$4997,0),MATCH(L$2,'Data Annex'!$K$1:$AN$1,0)),\"\")","v":1.64128737E-2},{"$f":"IFERROR(INDEX('Data Annex'!$K$1:$AN$4997,MATCH(M$1&\"|\"&$B33,'Data Annex'!$K$1:$K$4997,0),MATCH(M$2,'Data Annex'!$K$1:$AN$1,0)),\"\")","v":4.4024980599999999E-2},{"$f":"IFERROR(INDEX('Data Annex'!$K$1:$AN$4997,MATCH(N$1&\"|\"&$B33,'Data Annex'!$K$1:$K$4997,0),MATCH(N$2,'Data Annex'!$K$1:$AN$1,0)),\"\")","v":4.2689081500000003E-2},{"$f":"IFERROR(INDEX('Data Annex'!$K$1:$AN$4997,MATCH(O$1&\"|\"&$B33,'Data Annex'!$K$1:$K$4997,0),MATCH(O$2,'Data Annex'!$K$1:$AN$1,0)),\"\")","v":6.1993448399999998E-2},{"$f":"IFERROR(INDEX('Data Annex'!$K$1:$AN$4997,MATCH(P$1&\"|\"&$B33,'Data Annex'!$K$1:$K$4997,0),MATCH(P$2,'Data Annex'!$K$1:$AN$1,0)),\"\")","v":6.1720939500000002E-2},{"$f":"IFERROR(INDEX('Data Annex'!$K$1:$AN$4997,MATCH(Q$1&\"|\"&$B33,'Data Annex'!$K$1:$K$4997,0),MATCH(Q$2,'Data Annex'!$K$1:$AN$1,0)),\"\")","v":5.0648017500000003E-2},{"$f":"IFERROR(INDEX('Data Annex'!$K$1:$AN$4997,MATCH(R$1&\"|\"&$B33,'Data Annex'!$K$1:$K$4997,0),MATCH(R$2,'Data Annex'!$K$1:$AN$1,0)),\"\")","v":4.3644978899999999E-2},{"$f":"IFERROR(INDEX('Data Annex'!$K$1:$AN$4997,MATCH(S$1&\"|\"&$B33,'Data Annex'!$K$1:$K$4997,0),MATCH(S$2,'Data Annex'!$K$1:$AN$1,0)),\"\")","v":6.1870924899999999E-2},{"$f":"IFERROR(INDEX('Data Annex'!$K$1:$AN$4997,MATCH(T$1&\"|\"&$B33,'Data Annex'!$K$1:$K$4997,0),MATCH(T$2,'Data Annex'!$K$1:$AN$1,0)),\"\")","v":5.7342543199999998E-2},{"$f":"IFERROR(INDEX('Data Annex'!$K$1:$AN$4997,MATCH(U$1&\"|\"&$B33,'Data Annex'!$K$1:$K$4997,0),MATCH(U$2,'Data Annex'!$K$1:$AN$1,0)),\"\")","v":4.4710021400000001E-2},{"$f":"IFERROR(INDEX('Data Annex'!$K$1:$AN$4997,MATCH(V$1&\"|\"&$B33,'Data Annex'!$K$1:$K$4997,0),MATCH(V$2,'Data Annex'!$K$1:$AN$1,0)),\"\")","v":7.6006865800000004E-2},{"$f":"IFERROR(INDEX('Data Annex'!$K$1:$AN$4997,MATCH(W$1&\"|\"&$B33,'Data Annex'!$K$1:$K$4997,0),MATCH(W$2,'Data Annex'!$K$1:$AN$1,0)),\"\")","v":2.90286711E-2},{"$f":"IFERROR(INDEX('Data Annex'!$K$1:$AN$4997,MATCH(X$1&\"|\"&$B33,'Data Annex'!$K$1:$K$4997,0),MATCH(X$2,'Data Annex'!$K$1:$AN$1,0)),\"\")","v":2.2391010999999999E-2}]
[null,"NO",null,"NO",{"$f":"IFERROR(INDEX('Data Annex'!$K$1:$AN$4997,MATCH(E$1&\"|\"&$B34,'Data Annex'!$K$1:$K$4997,0),MATCH(E$2,'Data Annex'!$K$1:$AN$1,0)),\"\")","v":2.8819682E-3},{"$f":"IFERROR(INDEX('Data Annex'!$K$1:$AN$4997,MATCH(F$1&\"|\"&$B34,'Data Annex'!$K$1:$K$4997,0),MATCH(F$2,'Data Annex'!$K$1:$AN$1,0)),\"\")","v":2.4838401000000002E-3},{"$f":"IFERROR(INDEX('Data Annex'!$K$1:$AN$4997,MATCH(G$1&\"|\"&$B34,'Data Annex'!$K$1:$K$4997,0),MATCH(G$2,'Data Annex'!$K$1:$AN$1,0)),\"\")","v":0.26764301750000002},{"$f":"IFERROR(INDEX('Data Annex'!$K$1:$AN$4997,MATCH(H$1&\"|\"&$B34,'Data Annex'!$K$1:$K$4997,0),MATCH(H$2,'Data Annex'!$K$1:$AN$1,0)),\"\")","v":0.25232153260000001},{"$f":"IFERROR(INDEX('Data Annex'!$K$1:$AN$4997,MATCH(I$1&\"|\"&$B34,'Data Annex'!$K$1:$K$4997,0),MATCH(I$2,'Data Annex'!$K$1:$AN$1,0)),\"\")","v":1.77836595E-2},{"$f":"IFERROR(INDEX('Data Annex'!$K$1:$AN$4997,MATCH(J$1&\"|\"&$B34,'Data Annex'!$K$1:$K$4997,0),MATCH(J$2,'Data Annex'!$K$1:$AN$1,0)),\"\")","v":1.7195346699999999E-2},{"$f":"IFERROR(INDEX('Data Annex'!$K$1:$AN$4997,MATCH(K$1&\"|\"&$B34,'Data Annex'!$K$1:$K$4997,0),MATCH(K$2,'Data Annex'!$K$1:$AN$1,0)),\"\")","v":1.69051772E-2},{"$f":"IFERROR(INDEX('Data Annex'!$K$1:$AN$4997,MATCH(L$1&\"|\"&$B34,'Data Annex'!$K$1:$K$4997,0),MATCH(L$2,'Data Annex'!$K$1:$AN$1,0)),\"\")","v":1.66510154E-2},{"$f":"IFERROR(INDEX('Data Annex'!$K$1:$AN$4997,MATCH(M$1&\"|\"&$B34,'Data Annex'!$K$1:$K$4997,0),MATCH(M$2,'Data Annex'!$K$1:$AN$1,0)),\"\")","v":4.7801085E-2},{"$f":"IFERROR(INDEX('Data Annex'!$K$1:$AN$4997,MATCH(N$1&\"|\"&$B34,'Data Annex'!$K$1:$K$4997,0),MATCH(N$2,'Data Annex'!$K$1:$AN$1,0)),\"\")","v":3.8045629999999997E-2},{"$f":"IFERROR(INDEX('Data Annex'!$K$1:$AN$4997,MATCH(O$1&\"|\"&$B34,'Data Annex'!$K$1:$K$4997,0),MATCH(O$2,'Data Annex'!$K$1:$AN$1,0)),\"\")","v":1.0205461399999999E-2},{"$f":"IFERROR(INDEX('Data Annex'!$K$1:$AN$4997,MATCH(P$1&\"|\"&$B34,'Data Annex'!$K$1:$K$4997,0),MATCH(P$2,'Data Annex'!$K$1:$AN$1,0)),\"\")","v":8.0164817999999992E-3},{"$f":"IFERROR(INDEX('Data Annex'!$K$1:$AN$4997,MATCH(Q$1&\"|\"&$B34,'Data Annex'!$K$1:$K$4997,0),MATCH(Q$2,'Data Annex'!$K$1:$AN$1,0)),\"\")","v":5.6453418700000001E-2},{"$f":"IFERROR(INDEX('Data Annex'!$K$1:$AN$4997,MATCH(R$1&\"|\"&$B34,'Data Annex'!$K$1:$K$4997,0),MATCH(R$2,'Data Annex'!$K$1:$AN$1,0)),\"\")","v":5.1163747799999999E-2},{"$f":"IFERROR(INDEX('Data Annex'!$K$1:$AN$4997,MATCH(S$1&\"|\"&$B34,'Data Annex'!$K$1:$K$4997,0),MATCH(S$2,'Data Annex'!$K$1:$AN$1,0)),\"\")","v":0.12588452450000001},{"$f":"IFERROR(INDEX('Data Annex'!$K$1:$AN$4997,MATCH(T$1&\"|\"&$B34,'Data Annex'!$K$1:$K$4997,0),MATCH(T$2,'Data Annex'!$K$1:$AN$1,0)),\"\")","v":0.1347778131},{"$f":"IFERROR(INDEX('Data Annex'!$K$1:$AN$4997,MATCH(U$1&\"|\"&$B34,'Data Annex'!$K$1:$K$4997,0),MATCH(U$2,'Data Annex'!$K$1:$AN$1,0)),\"\")","v":1.20138259E-2},{"$f":"IFERROR(INDEX('Data Annex'!$K$1:$AN$4997,MATCH(V$1&\"|\"&$B34,'Data Annex'!$K$1:$K$4997,0),MATCH(V$2,'Data Annex'!$K$1:$AN$1,0)),\"\")","v":2.4481776600000001E-2},{"$f":"IFERROR(INDEX('Data Annex'!$K$1:$AN$4997,MATCH(W$1&\"|\"&$B34,'Data Annex'!$K$1:$K$4997,0),MATCH(W$2,'Data Annex'!$K$1:$AN$1,0)),\"\")","v":3.1065715E-3},{"$f":"IFERROR(INDEX('Data Annex'!$K$1:$AN$4997,MATCH(X$1&\"|\"&$B34,'Data Annex'!$K$1:$K$4997,0),MATCH(X$2,'Data Annex'!$K$1:$AN$1,0)),\"\")","v":2.5729084000000002E-3}]
[null,"PL",null,"PL",{"$f":"IFERROR(INDEX('Data Annex'!$K$1:$AN$4997,MATCH(E$1&\"|\"&$B35,'Data Annex'!$K$1:$K$4997,0),MATCH(E$2,'Data Annex'!$K$1:$AN$1,0)),\"\")","v":7.2293234999999997E-2},{"$f":"IFERROR(INDEX('Data Annex'!$K$1:$AN$4997,MATCH(F$1&\"|\"&$B35,'Data Annex'!$K$1:$K$4997,0),MATCH(F$2,'Data Annex'!$K$1:$AN$1,0)),\"\")","v":6.7908027999999995E-2},{"$f":"IFERROR(INDEX('Data Annex'!$K$1:$AN$4997,MATCH(G$1&\"|\"&$B35,'Data Annex'!$K$1:$K$4997,0),MATCH(G$2,'Data Annex'!$K$1:$AN$1,0)),\"\")","v":2.31136313E-2},{"$f":"IFERROR(INDEX('Data Annex'!$K$1:$AN$4997,MATCH(H$1&\"|\"&$B35,'Data Annex'!$K$1:$K$4997,0),MATCH(H$2,'Data Annex'!$K$1:$AN$1,0)),\"\")","v":1.78340606E-2},{"$f":"IFERROR(INDEX('Data Annex'!$K$1:$AN$4997,MATCH(I$1&\"|\"&$B35,'Data Annex'!$K$1:$K$4997,0),MATCH(I$2,'Data Annex'!$K$1:$AN$1,0)),\"\")","v":7.9831904600000003E-2},{"$f":"IFERROR(INDEX('Data Annex'!$K$1:$AN$4997,MATCH(J$1&\"|\"&$B35,'Data Annex'!$K$1:$K$4997,0),MATCH(J$2,'Data Annex'!$K$1:$AN$1,0)),\"\")","v":8.8002342299999994E-2},{"$f":"IFERROR(INDEX('Data Annex'!$K$1:$AN$4997,MATCH(K$1&\"|\"&$B35,'Data Annex'!$K$1:$K$4997,0),MATCH(K$2,'Data Annex'!$K$1:$AN$1,0)),\"\")","v":4.5729148999999997E-2},{"$f":"IFERROR(INDEX('Data Annex'!$K$1:$AN$4997,MATCH(L$1&\"|\"&$B35,'Data Annex'!$K$1:$K$4997,0),MATCH(L$2,'Data Annex'!$K$1:$AN$1,0)),\"\")","v":8.8599447000000005E-3},{"$f":"IFERROR(INDEX('Data Annex'!$K$1:$AN$4997,MATCH(M$1&\"|\"&$B35,'Data Annex'!$K$1:$K$4997,0),MATCH(M$2,'Data Annex'!$K$1:$AN$1,0)),\"\")","v":2.76502213E-2},{"$f":"IFERROR(INDEX('Data Annex'!$K$1:$AN$4997,MATCH(N$1&\"|\"&$B35,'Data Annex'!$K$1:$K$4997,0),MATCH(N$2,'Data Annex'!$K$1:$AN$1,0)),\"\")","v":2.20390658E-2},{"$f":"IFERROR(INDEX('Data Annex'!$K$1:$AN$4997,MATCH(O$1&\"|\"&$B35,'Data Annex'!$K$1:$K$4997,0),MATCH(O$2,'Data Annex'!$K$1:$AN$1,0)),\"\")","v":0.16915344090000001},{"$f":"IFERROR(INDEX('Data Annex'!$K$1:$AN$4997,MATCH(P$1&\"|\"&$B35,'Data Annex'!$K$1:$K$4997,0),MATCH(P$2,'Data Annex'!$K$1:$AN$1,0)),\"\")","v":0.1655764626},{"$f":"IFERROR(INDEX('Data Annex'!$K$1:$AN$4997,MATCH(Q$1&\"|\"&$B35,'Data Annex'!$K$1:$K$4997,0),MATCH(Q$2,'Data Annex'!$K$1:$AN$1,0)),\"\")","v":7.4755110099999994E-2},{"$f":"IFERROR(INDEX('Data Annex'!$K$1:$AN$4997,MATCH(R$1&\"|\"&$B35,'Data Annex'!$K$1:$K$4997,0),MATCH(R$2,'Data Annex'!$K$1:$AN$1,0)),\"\")","v":6.9987264499999993E-2},{"$f":"IFERROR(INDEX('Data Annex'!$K$1:$AN$4997,MATCH(S$1&\"|\"&$B35,'Data Annex'!$K$1:$K$4997,0),MATCH(S$2,'Data Annex'!$K$1:$AN$1,0)),\"\")","v":5.7298045999999998E-2},{"$f":"IFERROR(INDEX('Data Annex'!$K$1:$AN$4997,MATCH(T$1&\"|\"&$B35,'Data Annex'!$K$1:$K$4997,0),MATCH(T$2,'Data Annex'!$K$1:$AN$1,0)),\"\")","v":6.3487061499999997E-2},{"$f":"IFERROR(INDEX('Data Annex'!$K$1:$AN$4997,MATCH(U$1&\"|\"&$B35,'Data Annex'!$K$1:$K$4997,0),MATCH(U$2,'Data Annex'!$K$1:$AN$1,0)),\"\")","v":0.15379693999999999},{"$f":"IFERROR(INDEX('Data Annex'!$K$1:$AN$4997,MATCH(V$1&\"|\"&$B35,'Data Annex'!$K$1:$K$4997,0),MATCH(V$2,'Data Annex'!$K$1:$AN$1,0)),\"\")","v":0.17556003580000001},{"$f":"IFERROR(INDEX('Data Annex'!$K$1:$AN$4997,MATCH(W$1&\"|\"&$B35,'Data Annex'!$K$1:$K$4997,0),MATCH(W$2,'Data Annex'!$K$1:$AN$1,0)),\"\")","v":2.3330650000000001E-2},{"$f":"IFERROR(INDEX('Data Annex'!$K$1:$AN$4997,MATCH(X$1&\"|\"&$B35,'Data Annex'!$K$1:$K$4997,0),MATCH(X$2,'Data Annex'!$K$1:$AN$1,0)),\"\")","v":2.56411494E-2}]
[null,"PT",null,"PT",{"$f":"IFERROR(INDEX('Data Annex'!$K$1:$AN$4997,MATCH(E$1&\"|\"&$B36,'Data Annex'!$K$1:$K$4997,0),MATCH(E$2,'Data Annex'!$K$1:$AN$1,0)),\"\")","v":7.6787738800000005E-2},{"$f":"IFERROR(INDEX('Data Annex'!$K$1:$AN$4997,MATCH(F$1&\"|\"&$B36,'Data Annex'!$K$1:$K$4997,0),MATCH(F$2,'Data Annex'!$K$1:$AN$1,0)),\"\")","v":6.8060547900000004E-2},{"$f":"IFERROR(INDEX('Data Annex'!$K$1:$AN$4997,MATCH(G$1&\"|\"&$B36,'Data Annex'!$K$1:$K$4997,0),MATCH(G$2,'Data Annex'!$K$1:$AN$1,0)),\"\")","v":0.1626154917},{"$f":"IFERROR(INDEX('Data Annex'!$K$1:$AN$4997,MATCH(H$1&\"|\"&$B36,'Data Annex'!$K$1:$K$4997,0),MATCH(H$2,'Data Annex'!$K$1:$AN$1,0)),\"\")","v":0.17362798700000001},{"$f":"IFERROR(INDEX('Data Annex'!$K$1:$AN$4997,MATCH(I$1&\"|\"&$B36,'Data Annex'!$K$1:$K$4997,0),MATCH(I$2,'Data Annex'!$K$1:$AN$1,0)),\"\")","v":7.9467822399999999E-2},{"$f":"IFERROR(INDEX('Data Annex'!$K$1:$AN$4997,MATCH(J$1&\"|\"&$B36,'Data Annex'!$K$1:$K$4997,0),MATCH(J$2,'Data Annex'!$K$1:$AN$1,0)),\"\")","v":7.8168943399999996E-2},{"$f":"IFERROR(INDEX('Data Annex'!$K$1:$AN$4997,MATCH(K$1&\"|\"&$B36,'Data Annex'!$K$1:$K$4997,0),MATCH(K$2,'Data Annex'!$K$1:$AN$1,0)),\"\")","v":2.2326834800000001E-2},{"$f":"IFERROR(INDEX('Data Annex'!$K$1:$AN$4997,MATCH(L$1&\"|\"&$B36,'Data Annex'!$K$1:$K$4997,0),MATCH(L$2,'Data Annex'!$K$1:$AN$1,0)),\"\")","v":1.9229724100000001E-2},{"$f":"IFERROR(INDEX('Data Annex'!$K$1:$AN$4997,MATCH(M$1&\"|\"&$B36,'Data Annex'!$K$1:$K$4997,0),MATCH(M$2,'Data Annex'!$K$1:$AN$1,0)),\"\")","v":5.7164749100000002E-2},{"$f":"IFERROR(INDEX('Data Annex'!$K$1:$AN$4997,MATCH(N$1&\"|\"&$B36,'Data Annex'!$K$1:$K$4997,0),MATCH(N$2,'Data Annex'!$K$1:$AN$1,0)),\"\")","v":5.6781094900000002E-2},{"$f":"IFERROR(INDEX('Data Annex'!$K$1:$AN$4997,MATCH(O$1&\"|\"&$B36,'Data Annex'!$K$1:$K$4997,0),MATCH(O$2,'Data Annex'!$K$1:$AN$1,0)),\"\")","v":0.19308527070000001},{"$f":"IFERROR(INDEX('Data Annex'!$K$1:$AN$4997,MATCH(P$1&\"|\"&$B36,'Data Annex'!$K$1:$K$4997,0),MATCH(P$2,'Data Annex'!$K$1:$AN$1,0)),\"\")","v":0.16200554},{"$f":"IFERROR(INDEX('Data Annex'!$K$1:$AN$4997,MATCH(Q$1&\"|\"&$B36,'Data Annex'!$K$1:$K$4997,0),MATCH(Q$2,'Data Annex'!$K$1:$AN$1,0)),\"\")","v":7.4237680799999997E-2},{"$f":"IFERROR(INDEX('Data Annex'!$K$1:$AN$4997,MATCH(R$1&\"|\"&$B36,'Data Annex'!$K$1:$K$4997,0),MATCH(R$2,'Data Annex'!$K$1:$AN$1,0)),\"\")","v":6.7527120800000007E-2},{"$f":"IFERROR(INDEX('Data Annex'!$K$1:$AN$4997,MATCH(S$1&\"|\"&$B36,'Data Annex'!$K$1:$K$4997,0),MATCH(S$2,'Data Annex'!$K$1:$AN$1,0)),\"\")","v":9.1510787499999996E-2},{"$f":"IFERROR(INDEX('Data Annex'!$K$1:$AN$4997,MATCH(T$1&\"|\"&$B36,'Data Annex'!$K$1:$K$4997,0),MATCH(T$2,'Data Annex'!$K$1:$AN$1,0)),\"\")","v":8.1413162100000006E-2},{"$f":"IFERROR(INDEX('Data Annex'!$K$1:$AN$4997,MATCH(U$1&\"|\"&$B36,'Data Annex'!$K$1:$K$4997,0),MATCH(U$2,'Data Annex'!$K$1:$AN$1,0)),\"\")","v":0.10430714570000001},{"$f":"IFERROR(INDEX('Data Annex'!$K$1:$AN$4997,MATCH(V$1&\"|\"&$B36,'Data Annex'!$K$1:$K$4997,0),MATCH(V$2,'Data Annex'!$K$1:$AN$1,0)),\"\")","v":0.1024972796},{"$f":"IFERROR(INDEX('Data Annex'!$K$1:$AN$4997,MATCH(W$1&\"|\"&$B36,'Data Annex'!$K$1:$K$4997,0),MATCH(W$2,'Data Annex'!$K$1:$AN$1,0)),\"\")","v":5.7693270300000002E-2},{"$f":"IFERROR(INDEX('Data Annex'!$K$1:$AN$4997,MATCH(X$1&\"|\"&$B36,'Data Annex'!$K$1:$K$4997,0),MATCH(X$2,'Data Annex'!$K$1:$AN$1,0)),\"\")","v":7.3377139800000005E-2}]
[null,"RO",null,"RO",{"$f":"IFERROR(INDEX('Data Annex'!$K$1:$AN$4997,MATCH(E$1&\"|\"&$B37,'Data Annex'!$K$1:$K$4997,0),MATCH(E$2,'Data Annex'!$K$1:$AN$1,0)),\"\")","v":4.3827120900000002E-2},{"$f":"IFERROR(INDEX('Data Annex'!$K$1:$AN$4997,MATCH(F$1&\"|\"&$B37,'Data Annex'!$K$1:$K$4997,0),MATCH(F$2,'Data Annex'!$K$1:$AN$1,0)),\"\")","v":5.4983562800000003E-2},{"$f":"IFERROR(INDEX('Data Annex'!$K$1:$AN$4997,MATCH(G$1&\"|\"&$B37,'Data Annex'!$K$1:$K$4997,0),MATCH(G$2,'Data Annex'!$K$1:$AN$1,0)),\"\")","v":0.51956712729999999},{"$f":"IFERROR(INDEX('Data Annex'!$K$1:$AN$4997,MATCH(H$1&\"|\"&$B37,'Data Annex'!$K$1:$K$4997,0),MATCH(H$2,'Data Annex'!$K$1:$AN$1,0)),\"\")","v":0.36593151509999999},{"$f":"IFERROR(INDEX('Data Annex'!$K$1:$AN$4997,MATCH(I$1&\"|\"&$B37,'Data Annex'!$K$1:$K$4997,0),MATCH(I$2,'Data Annex'!$K$1:$AN$1,0)),\"\")","v":0.113884163},{"$f":"IFERROR(INDEX('Data Annex'!$K$1:$AN$4997,MATCH(J$1&\"|\"&$B37,'Data Annex'!$K$1:$K$4997,0),MATCH(J$2,'Data Annex'!$K$1:$AN$1,0)),\"\")","v":0.11122948270000001},{"$f":"IFERROR(INDEX('Data Annex'!$K$1:$AN$4997,MATCH(K$1&\"|\"&$B37,'Data Annex'!$K$1:$K$4997,0),MATCH(K$2,'Data Annex'!$K$1:$AN$1,0)),\"\")","v":7.0743562600000004E-2},{"$f":"IFERROR(INDEX('Data Annex'!$K$1:$AN$4997,MATCH(L$1&\"|\"&$B37,'Data Annex'!$K$1:$K$4997,0),MATCH(L$2,'Data Annex'!$K$1:$AN$1,0)),\"\")","v":6.9079763500000002E-2},{"$f":"IFERROR(INDEX('Data Annex'!$K$1:$AN$4997,MATCH(M$1&\"|\"&$B37,'Data Annex'!$K$1:$K$4997,0),MATCH(M$2,'Data Annex'!$K$1:$AN$1,0)),\"\")","v":3.34364578E-2},{"$f":"IFERROR(INDEX('Data Annex'!$K$1:$AN$4997,MATCH(N$1&\"|\"&$B37,'Data Annex'!$K$1:$K$4997,0),MATCH(N$2,'Data Annex'!$K$1:$AN$1,0)),\"\")","v":3.3623110999999997E-2},{"$f":"IFERROR(INDEX('Data Annex'!$K$1:$AN$4997,MATCH(O$1&\"|\"&$B37,'Data Annex'!$K$1:$K$4997,0),MATCH(O$2,'Data Annex'!$K$1:$AN$1,0)),\"\")","v":0.14213850959999999},{"$f":"IFERROR(INDEX('Data Annex'!$K$1:$AN$4997,MATCH(P$1&\"|\"&$B37,'Data Annex'!$K$1:$K$4997,0),MATCH(P$2,'Data Annex'!$K$1:$AN$1,0)),\"\")","v":0.13944296519999999},{"$f":"IFERROR(INDEX('Data Annex'!$K$1:$AN$4997,MATCH(Q$1&\"|\"&$B37,'Data Annex'!$K$1:$K$4997,0),MATCH(Q$2,'Data Annex'!$K$1:$AN$1,0)),\"\")","v":4.3551882200000003E-2},{"$f":"IFERROR(INDEX('Data Annex'!$K$1:$AN$4997,MATCH(R$1&\"|\"&$B37,'Data Annex'!$K$1:$K$4997,0),MATCH(R$2,'Data Annex'!$K$1:$AN$1,0)),\"\")","v":4.4431406999999999E-2},{"$f":"IFERROR(INDEX('Data Annex'!$K$1:$AN$4997,MATCH(S$1&\"|\"&$B37,'Data Annex'!$K$1:$K$4997,0),MATCH(S$2,'Data Annex'!$K$1:$AN$1,0)),\"\")","v":4.9819365999999997E-2},{"$f":"IFERROR(INDEX('Data Annex'!$K$1:$AN$4997,MATCH(T$1&\"|\"&$B37,'Data Annex'!$K$1:$K$4997,0),MATCH(T$2,'Data Annex'!$K$1:$AN$1,0)),\"\")","v":4.7880536600000002E-2},{"$f":"IFERROR(INDEX('Data Annex'!$K$1:$AN$4997,MATCH(U$1&\"|\"&$B37,'Data Annex'!$K$1:$K$4997,0),MATCH(U$2,'Data Annex'!$K$1:$AN$1,0)),\"\")","v":0.1007228624},{"$f":"IFERROR(INDEX('Data Annex'!$K$1:$AN$4997,MATCH(V$1&\"|\"&$B37,'Data Annex'!$K$1:$K$4997,0),MATCH(V$2,'Data Annex'!$K$1:$AN$1,0)),\"\")","v":9.5346452999999998E-2},{"$f":"IFERROR(INDEX('Data Annex'!$K$1:$AN$4997,MATCH(W$1&\"|\"&$B37,'Data Annex'!$K$1:$K$4997,0),MATCH(W$2,'Data Annex'!$K$1:$AN$1,0)),\"\")","v":4.9066234E-2},{"$f":"IFERROR(INDEX('Data Annex'!$K$1:$AN$4997,MATCH(X$1&\"|\"&$B37,'Data Annex'!$K$1:$K$4997,0),MATCH(X$2,'Data Annex'!$K$1:$AN$1,0)),\"\")","v":4.6720457200000003E-2}]
[null,"SE",null,"SE",{"$f":"IFERROR(INDEX('Data Annex'!$K$1:$AN$4997,MATCH(E$1&\"|\"&$B38,'Data Annex'!$K$1:$K$4997,0),MATCH(E$2,'Data Annex'!$K$1:$AN$1,0)),\"\")","v":6.2836625000000004E-3},{"$f":"IFERROR(INDEX('Data Annex'!$K$1:$AN$4997,MATCH(F$1&\"|\"&$B38,'Data Annex'!$K$1:$K$4997,0),MATCH(F$2,'Data Annex'!$K$1:$AN$1,0)),\"\")","v":7.6815685000000003E-3},{"$f":"IFERROR(INDEX('Data Annex'!$K$1:$AN$4997,MATCH(G$1&\"|\"&$B38,'Data Annex'!$K$1:$K$4997,0),MATCH(G$2,'Data Annex'!$K$1:$AN$1,0)),\"\")","v":0.27632489939999999},{"$f":"IFERROR(INDEX('Data Annex'!$K$1:$AN$4997,MATCH(H$1&\"|\"&$B38,'Data Annex'!$K$1:$K$4997,0),MATCH(H$2,'Data Annex'!$K$1:$AN$1,0)),\"\")","v":0.26545687089999997},{"$f":"IFERROR(INDEX('Data Annex'!$K$1:$AN$4997,MATCH(I$1&\"|\"&$B38,'Data Annex'!$K$1:$K$4997,0),MATCH(I$2,'Data Annex'!$K$1:$AN$1,0)),\"\")","v":2.4892064299999999E-2},{"$f":"IFERROR(INDEX('Data Annex'!$K$1:$AN$4997,MATCH(J$1&\"|\"&$B38,'Data Annex'!$K$1:$K$4997,0),MATCH(J$2,'Data Annex'!$K$1:$AN$1,0)),\"\")","v":2.31015896E-2},{"$f":"IFERROR(INDEX('Data Annex'!$K$1:$AN$4997,MATCH(K$1&\"|\"&$B38,'Data Annex'!$K$1:$K$4997,0),MATCH(K$2,'Data Annex'!$K$1:$AN$1,0)),\"\")","v":1.1128676E-3},{"$f":"IFERROR(INDEX('Data Annex'!$K$1:$AN$4997,MATCH(L$1&\"|\"&$B38,'Data Annex'!$K$1:$K$4997,0),MATCH(L$2,'Data Annex'!$K$1:$AN$1,0)),\"\")","v":2.0600725000000002E-3},{"$f":"IFERROR(INDEX('Data Annex'!$K$1:$AN$4997,MATCH(M$1&\"|\"&$B38,'Data Annex'!$K$1:$K$4997,0),MATCH(M$2,'Data Annex'!$K$1:$AN$1,0)),\"\")","v":3.0804820000000002E-4},{"$f":"IFERROR(INDEX('Data Annex'!$K$1:$AN$4997,MATCH(N$1&\"|\"&$B38,'Data Annex'!$K$1:$K$4997,0),MATCH(N$2,'Data Annex'!$K$1:$AN$1,0)),\"\")","v":2.805862E-4},{"$f":"IFERROR(INDEX('Data Annex'!$K$1:$AN$4997,MATCH(O$1&\"|\"&$B38,'Data Annex'!$K$1:$K$4997,0),MATCH(O$2,'Data Annex'!$K$1:$AN$1,0)),\"\")","v":1.2479525300000001E-2},{"$f":"IFERROR(INDEX('Data Annex'!$K$1:$AN$4997,MATCH(P$1&\"|\"&$B38,'Data Annex'!$K$1:$K$4997,0),MATCH(P$2,'Data Annex'!$K$1:$AN$1,0)),\"\")","v":9.6659061999999994E-3},{"$f":"IFERROR(INDEX('Data Annex'!$K$1:$AN$4997,MATCH(Q$1&\"|\"&$B38,'Data Annex'!$K$1:$K$4997,0),MATCH(Q$2,'Data Annex'!$K$1:$AN$1,0)),\"\")","v":1.32693316E-2},{"$f":"IFERROR(INDEX('Data Annex'!$K$1:$AN$4997,MATCH(R$1&\"|\"&$B38,'Data Annex'!$K$1:$K$4997,0),MATCH(R$2,'Data Annex'!$K$1:$AN$1,0)),\"\")","v":9.8126575000000004E-3},{"$f":"IFERROR(INDEX('Data Annex'!$K$1:$AN$4997,MATCH(S$1&\"|\"&$B38,'Data Annex'!$K$1:$K$4997,0),MATCH(S$2,'Data Annex'!$K$1:$AN$1,0)),\"\")","v":3.7179859099999997E-2},{"$f":"IFERROR(INDEX('Data Annex'!$K$1:$AN$4997,MATCH(T$1&\"|\"&$B38,'Data Annex'!$K$1:$K$4997,0),MATCH(T$2,'Data Annex'!$K$1:$AN$1,0)),\"\")","v":4.8922273099999997E-2},{"$f":"IFERROR(INDEX('Data Annex'!$K$1:$AN$4997,MATCH(U$1&\"|\"&$B38,'Data Annex'!$K$1:$K$4997,0),MATCH(U$2,'Data Annex'!$K$1:$AN$1,0)),\"\")","v":1.5157586900000001E-2},{"$f":"IFERROR(INDEX('Data Annex'!$K$1:$AN$4997,MATCH(V$1&\"|\"&$B38,'Data Annex'!$K$1:$K$4997,0),MATCH(V$2,'Data Annex'!$K$1:$AN$1,0)),\"\")","v":1.6728855399999999E-2},{"$f":"IFERROR(INDEX('Data Annex'!$K$1:$AN$4997,MATCH(W$1&\"|\"&$B38,'Data Annex'!$K$1:$K$4997,0),MATCH(W$2,'Data Annex'!$K$1:$AN$1,0)),\"\")","v":3.4882607999999998E-3},{"$f":"IFERROR(INDEX('Data Annex'!$K$1:$AN$4997,MATCH(X$1&\"|\"&$B38,'Data Annex'!$K$1:$K$4997,0),MATCH(X$2,'Data Annex'!$K$1:$AN$1,0)),\"\")","v":2.8223154999999999E-3}]
[null,"SI",null,"SI",{"$f":"IFERROR(INDEX('Data Annex'!$K$1:$AN$4997,MATCH(E$1&\"|\"&$B39,'Data Annex'!$K$1:$K$4997,0),MATCH(E$2,'Data Annex'!$K$1:$AN$1,0)),\"\")","v":7.77077657E-2},{"$f":"IFERROR(INDEX('Data Annex'!$K$1:$AN$4997,MATCH(F$1&\"|\"&$B39,'Data Annex'!$K$1:$K$4997,0),MATCH(F$2,'Data Annex'!$K$1:$AN$1,0)),\"\")","v":6.3137177700000005E-2},{"$f":"IFERROR(INDEX('Data Annex'!$K$1:$AN$4997,MATCH(G$1&\"|\"&$B39,'Data Annex'!$K$1:$K$4997,0),MATCH(G$2,'Data Annex'!$K$1:$AN$1,0)),\"\")","v":1.7201479000000001E-3},{"$f":"IFERROR(INDEX('Data Annex'!$K$1:$AN$4997,MATCH(H$1&\"|\"&$B39,'Data Annex'!$K$1:$K$4997,0),MATCH(H$2,'Data Annex'!$K$1:$AN$1,0)),\"\")","v":1.01957599E-2},{"$f":"IFERROR(INDEX('Data Annex'!$K$1:$AN$4997,MATCH(I$1&\"|\"&$B39,'Data Annex'!$K$1:$K$4997,0),MATCH(I$2,'Data Annex'!$K$1:$AN$1,0)),\"\")","v":2.8370539600000001E-2},{"$f":"IFERROR(INDEX('Data Annex'!$K$1:$AN$4997,MATCH(J$1&\"|\"&$B39,'Data Annex'!$K$1:$K$4997,0),MATCH(J$2,'Data Annex'!$K$1:$AN$1,0)),\"\")","v":3.47386217E-2},{"$f":"IFERROR(INDEX('Data Annex'!$K$1:$AN$4997,MATCH(K$1&\"|\"&$B39,'Data Annex'!$K$1:$K$4997,0),MATCH(K$2,'Data Annex'!$K$1:$AN$1,0)),\"\")","v":1.11329467E-2},{"$f":"IFERROR(INDEX('Data Annex'!$K$1:$AN$4997,MATCH(L$1&\"|\"&$B39,'Data Annex'!$K$1:$K$4997,0),MATCH(L$2,'Data Annex'!$K$1:$AN$1,0)),\"\")","v":6.6241749999999995E-4},{"$f":"IFERROR(INDEX('Data Annex'!$K$1:$AN$4997,MATCH(M$1&\"|\"&$B39,'Data Annex'!$K$1:$K$4997,0),MATCH(M$2,'Data Annex'!$K$1:$AN$1,0)),\"\")","v":4.6942656700000002E-2},{"$f":"IFERROR(INDEX('Data Annex'!$K$1:$AN$4997,MATCH(N$1&\"|\"&$B39,'Data Annex'!$K$1:$K$4997,0),MATCH(N$2,'Data Annex'!$K$1:$AN$1,0)),\"\")","v":4.0837146900000003E-2},{"$f":"IFERROR(INDEX('Data Annex'!$K$1:$AN$4997,MATCH(O$1&\"|\"&$B39,'Data Annex'!$K$1:$K$4997,0),MATCH(O$2,'Data Annex'!$K$1:$AN$1,0)),\"\")","v":0.1200181097},{"$f":"IFERROR(INDEX('Data Annex'!$K$1:$AN$4997,MATCH(P$1&\"|\"&$B39,'Data Annex'!$K$1:$K$4997,0),MATCH(P$2,'Data Annex'!$K$1:$AN$1,0)),\"\")","v":9.4941573200000004E-2},{"$f":"IFERROR(INDEX('Data Annex'!$K$1:$AN$4997,MATCH(Q$1&\"|\"&$B39,'Data Annex'!$K$1:$K$4997,0),MATCH(Q$2,'Data Annex'!$K$1:$AN$1,0)),\"\")","v":0.1422605814},{"$f":"IFERROR(INDEX('Data Annex'!$K$1:$AN$4997,MATCH(R$1&\"|\"&$B39,'Data Annex'!$K$1:$K$4997,0),MATCH(R$2,'Data Annex'!$K$1:$AN$1,0)),\"\")","v":0.1314087937},{"$f":"IFERROR(INDEX('Data Annex'!$K$1:$AN$4997,MATCH(S$1&\"|\"&$B39,'Data Annex'!$K$1:$K$4997,0),MATCH(S$2,'Data Annex'!$K$1:$AN$1,0)),\"\")","v":2.6313877900000001E-2},{"$f":"IFERROR(INDEX('Data Annex'!$K$1:$AN$4997,MATCH(T$1&\"|\"&$B39,'Data Annex'!$K$1:$K$4997,0),MATCH(T$2,'Data Annex'!$K$1:$AN$1,0)),\"\")","v":4.0836416899999999E-2},{"$f":"IFERROR(INDEX('Data Annex'!$K$1:$AN$4997,MATCH(U$1&\"|\"&$B39,'Data Annex'!$K$1:$K$4997,0),MATCH(U$2,'Data Annex'!$K$1:$AN$1,0)),\"\")","v":0.1241585115},{"$f":"IFERROR(INDEX('Data Annex'!$K$1:$AN$4997,MATCH(V$1&\"|\"&$B39,'Data Annex'!$K$1:$K$4997,0),MATCH(V$2,'Data Annex'!$K$1:$AN$1,0)),\"\")","v":0.1758167725},{"$f":"IFERROR(INDEX('Data Annex'!$K$1:$AN$4997,MATCH(W$1&\"|\"&$B39,'Data Annex'!$K$1:$K$4997,0),MATCH(W$2,'Data Annex'!$K$1:$AN$1,0)),\"\")","v":2.70050033E-2},{"$f":"IFERROR(INDEX('Data Annex'!$K$1:$AN$4997,MATCH(X$1&\"|\"&$B39,'Data Annex'!$K$1:$K$4997,0),MATCH(X$2,'Data Annex'!$K$1:$AN$1,0)),\"\")","v":2.83081016E-2}]
[null,"SK",null,"SK",{"$f":"IFERROR(INDEX('Data Annex'!$K$1:$AN$4997,MATCH(E$1&\"|\"&$B40,'Data Annex'!$K$1:$K$4997,0),MATCH(E$2,'Data Annex'!$K$1:$AN$1,0)),\"\")","v":4.6373718299999998E-2},{"$f":"IFERROR(INDEX('Data Annex'!$K$1:$AN$4997,MATCH(F$1&\"|\"&$B40,'Data Annex'!$K$1:$K$4997,0),MATCH(F$2,'Data Annex'!$K$1:$AN$1,0)),\"\")","v":4.7595765399999997E-2},{"$f":"IFERROR(INDEX('Data Annex'!$K$1:$AN$4997,MATCH(G$1&\"|\"&$B40,'Data Annex'!$K$1:$K$4997,0),MATCH(G$2,'Data Annex'!$K$1:$AN$1,0)),\"\")","v":1.8701245000000001E-3},{"$f":"IFERROR(INDEX('Data Annex'!$K$1:$AN$4997,MATCH(H$1&\"|\"&$B40,'Data Annex'!$K$1:$K$4997,0),MATCH(H$2,'Data Annex'!$K$1:$AN$1,0)),\"\")","v":1.7767010999999999E-3},{"$f":"IFERROR(INDEX('Data Annex'!$K$1:$AN$4997,MATCH(I$1&\"|\"&$B40,'Data Annex'!$K$1:$K$4997,0),MATCH(I$2,'Data Annex'!$K$1:$AN$1,0)),\"\")","v":1.8780925899999999E-2},{"$f":"IFERROR(INDEX('Data Annex'!$K$1:$AN$4997,MATCH(J$1&\"|\"&$B40,'Data Annex'!$K$1:$K$4997,0),MATCH(J$2,'Data Annex'!$K$1:$AN$1,0)),\"\")","v":1.88153787E-2},{"$f":"IFERROR(INDEX('Data Annex'!$K$1:$AN$4997,MATCH(K$1&\"|\"&$B40,'Data Annex'!$K$1:$K$4997,0),MATCH(K$2,'Data Annex'!$K$1:$AN$1,0)),\"\")","v":7.7485692000000004E-3},{"$f":"IFERROR(INDEX('Data Annex'!$K$1:$AN$4997,MATCH(L$1&\"|\"&$B40,'Data Annex'!$K$1:$K$4997,0),MATCH(L$2,'Data Annex'!$K$1:$AN$1,0)),\"\")","v":7.8363207999999993E-3},{"$f":"IFERROR(INDEX('Data Annex'!$K$1:$AN$4997,MATCH(M$1&\"|\"&$B40,'Data Annex'!$K$1:$K$4997,0),MATCH(M$2,'Data Annex'!$K$1:$AN$1,0)),\"\")","v":1.4973928799999999E-2},{"$f":"IFERROR(INDEX('Data Annex'!$K$1:$AN$4997,MATCH(N$1&\"|\"&$B40,'Data Annex'!$K$1:$K$4997,0),MATCH(N$2,'Data Annex'!$K$1:$AN$1,0)),\"\")","v":1.48552505E-2},{"$f":"IFERROR(INDEX('Data Annex'!$K$1:$AN$4997,MATCH(O$1&\"|\"&$B40,'Data Annex'!$K$1:$K$4997,0),MATCH(O$2,'Data Annex'!$K$1:$AN$1,0)),\"\")","v":2.8118015499999999E-2},{"$f":"IFERROR(INDEX('Data Annex'!$K$1:$AN$4997,MATCH(P$1&\"|\"&$B40,'Data Annex'!$K$1:$K$4997,0),MATCH(P$2,'Data Annex'!$K$1:$AN$1,0)),\"\")","v":3.10364154E-2},{"$f":"IFERROR(INDEX('Data Annex'!$K$1:$AN$4997,MATCH(Q$1&\"|\"&$B40,'Data Annex'!$K$1:$K$4997,0),MATCH(Q$2,'Data Annex'!$K$1:$AN$1,0)),\"\")","v":3.03549106E-2},{"$f":"IFERROR(INDEX('Data Annex'!$K$1:$AN$4997,MATCH(R$1&\"|\"&$B40,'Data Annex'!$K$1:$K$4997,0),MATCH(R$2,'Data Annex'!$K$1:$AN$1,0)),\"\")","v":3.1272098599999999E-2},{"$f":"IFERROR(INDEX('Data Annex'!$K$1:$AN$4997,MATCH(S$1&\"|\"&$B40,'Data Annex'!$K$1:$K$4997,0),MATCH(S$2,'Data Annex'!$K$1:$AN$1,0)),\"\")","v":1.5862066399999999E-2},{"$f":"IFERROR(INDEX('Data Annex'!$K$1:$AN$4997,MATCH(T$1&\"|\"&$B40,'Data Annex'!$K$1:$K$4997,0),MATCH(T$2,'Data Annex'!$K$1:$AN$1,0)),\"\")","v":1.50006515E-2},{"$f":"IFERROR(INDEX('Data Annex'!$K$1:$AN$4997,MATCH(U$1&\"|\"&$B40,'Data Annex'!$K$1:$K$4997,0),MATCH(U$2,'Data Annex'!$K$1:$AN$1,0)),\"\")","v":3.8561426000000003E-2},{"$f":"IFERROR(INDEX('Data Annex'!$K$1:$AN$4997,MATCH(V$1&\"|\"&$B40,'Data Annex'!$K$1:$K$4997,0),MATCH(V$2,'Data Annex'!$K$1:$AN$1,0)),\"\")","v":3.6679074499999999E-2},{"$f":"IFERROR(INDEX('Data Annex'!$K$1:$AN$4997,MATCH(W$1&\"|\"&$B40,'Data Annex'!$K$1:$K$4997,0),MATCH(W$2,'Data Annex'!$K$1:$AN$1,0)),\"\")","v":6.0649479000000001E-3},{"$f":"IFERROR(INDEX('Data Annex'!$K$1:$AN$4997,MATCH(X$1&\"|\"&$B40,'Data Annex'!$K$1:$K$4997,0),MATCH(X$2,'Data Annex'!$K$1:$AN$1,0)),\"\")","v":4.7746923999999998E-3}]
[null,"EU",null,"EU/EEA",{"$f":"IFERROR(INDEX('Data Annex'!$K$1:$AN$4997,MATCH(E$1&\"|\"&$B41,'Data Annex'!$K$1:$K$4997,0),MATCH(E$2,'Data Annex'!$K$1:$AN$1,0)),\"\")","v":6.1673560600000003E-2},{"$f":"IFERROR(INDEX('Data Annex'!$K$1:$AN$4997,MATCH(F$1&\"|\"&$B41,'Data Annex'!$K$1:$K$4997,0),MATCH(F$2,'Data Annex'!$K$1:$AN$1,0)),\"\")","v":5.8680710400000002E-2},{"$f":"IFERROR(INDEX('Data Annex'!$K$1:$AN$4997,MATCH(G$1&\"|\"&$B41,'Data Annex'!$K$1:$K$4997,0),MATCH(G$2,'Data Annex'!$K$1:$AN$1,0)),\"\")","v":9.2974686700000003E-2},{"$f":"IFERROR(INDEX('Data Annex'!$K$1:$AN$4997,MATCH(H$1&\"|\"&$B41,'Data Annex'!$K$1:$K$4997,0),MATCH(H$2,'Data Annex'!$K$1:$AN$1,0)),\"\")","v":8.3749864300000004E-2},{"$f":"IFERROR(INDEX('Data Annex'!$K$1:$AN$4997,MATCH(I$1&\"|\"&$B41,'Data Annex'!$K$1:$K$4997,0),MATCH(I$2,'Data Annex'!$K$1:$AN$1,0)),\"\")","v":5.6466445099999998E-2},{"$f":"IFERROR(INDEX('Data Annex'!$K$1:$AN$4997,MATCH(J$1&\"|\"&$B41,'Data Annex'!$K$1:$K$4997,0),MATCH(J$2,'Data Annex'!$K$1:$AN$1,0)),\"\")","v":5.4528700300000003E-2},{"$f":"IFERROR(INDEX('Data Annex'!$K$1:$AN$4997,MATCH(K$1&\"|\"&$B41,'Data Annex'!$K$1:$K$4997,0),MATCH(K$2,'Data Annex'!$K$1:$AN$1,0)),\"\")","v":1.9568525E-2},{"$f":"IFERROR(INDEX('Data Annex'!$K$1:$AN$4997,MATCH(L$1&\"|\"&$B41,'Data Annex'!$K$1:$K$4997,0),MATCH(L$2,'Data Annex'!$K$1:$AN$1,0)),\"\")","v":1.57784238E-2},{"$f":"IFERROR(INDEX('Data Annex'!$K$1:$AN$4997,MATCH(M$1&\"|\"&$B41,'Data Annex'!$K$1:$K$4997,0),MATCH(M$2,'Data Annex'!$K$1:$AN$1,0)),\"\")","v":2.89394163E-2},{"$f":"IFERROR(INDEX('Data Annex'!$K$1:$AN$4997,MATCH(N$1&\"|\"&$B41,'Data Annex'!$K$1:$K$4997,0),MATCH(N$2,'Data Annex'!$K$1:$AN$1,0)),\"\")","v":2.6139397700000001E-2},{"$f":"IFERROR(INDEX('Data Annex'!$K$1:$AN$4997,MATCH(O$1&\"|\"&$B41,'Data Annex'!$K$1:$K$4997,0),MATCH(O$2,'Data Annex'!$K$1:$AN$1,0)),\"\")","v":0.12372401249999999},{"$f":"IFERROR(INDEX('Data Annex'!$K$1:$AN$4997,MATCH(P$1&\"|\"&$B41,'Data Annex'!$K$1:$K$4997,0),MATCH(P$2,'Data Annex'!$K$1:$AN$1,0)),\"\")","v":0.1058661332},{"$f":"IFERROR(INDEX('Data Annex'!$K$1:$AN$4997,MATCH(Q$1&\"|\"&$B41,'Data Annex'!$K$1:$K$4997,0),MATCH(Q$2,'Data Annex'!$K$1:$AN$1,0)),\"\")","v":6.4906895199999995E-2},{"$f":"IFERROR(INDEX('Data Annex'!$K$1:$AN$4997,MATCH(R$1&\"|\"&$B41,'Data Annex'!$K$1:$K$4997,0),MATCH(R$2,'Data Annex'!$K$1:$AN$1,0)),\"\")","v":5.8487217299999998E-2},{"$f":"IFERROR(INDEX('Data Annex'!$K$1:$AN$4997,MATCH(S$1&\"|\"&$B41,'Data Annex'!$K$1:$K$4997,0),MATCH(S$2,'Data Annex'!$K$1:$AN$1,0)),\"\")","v":6.3049253299999997E-2},{"$f":"IFERROR(INDEX('Data Annex'!$K$1:$AN$4997,MATCH(T$1&\"|\"&$B41,'Data Annex'!$K$1:$K$4997,0),MATCH(T$2,'Data Annex'!$K$1:$AN$1,0)),\"\")","v":5.6720899300000002E-2},{"$f":"IFERROR(INDEX('Data Annex'!$K$1:$AN$4997,MATCH(U$1&\"|\"&$B41,'Data Annex'!$K$1:$K$4997,0),MATCH(U$2,'Data Annex'!$K$1:$AN$1,0)),\"\")","v":7.8413021799999996E-2},{"$f":"IFERROR(INDEX('Data Annex'!$K$1:$AN$4997,MATCH(V$1&\"|\"&$B41,'Data Annex'!$K$1:$K$4997,0),MATCH(V$2,'Data Annex'!$K$1:$AN$1,0)),\"\")","v":8.4736440999999996E-2},{"$f":"IFERROR(INDEX('Data Annex'!$K$1:$AN$4997,MATCH(W$1&\"|\"&$B41,'Data Annex'!$K$1:$K$4997,0),MATCH(W$2,'Data Annex'!$K$1:$AN$1,0)),\"\")","v":2.9130788899999999E-2},{"$f":"IFERROR(INDEX('Data Annex'!$K$1:$AN$4997,MATCH(X$1&\"|\"&$B41,'Data Annex'!$K$1:$K$4997,0),MATCH(X$2,'Data Annex'!$K$1:$AN$1,0)),\"\")","v":2.8194497700000001E-2}]
[null,"GB",null,"GB",{"$f":"IFERROR(INDEX('Data Annex'!$K$1:$AN$4997,MATCH(E$1&\"|\"&$B42,'Data Annex'!$K$1:$K$4997,0),MATCH(E$2,'Data Annex'!$K$1:$AN$1,0)),\"\")","v":4.6805216500000003E-2},{"$f":"IFERROR(INDEX('Data Annex'!$K$1:$AN$4997,MATCH(F$1&\"|\"&$B42,'Data Annex'!$K$1:$K$4997,0),MATCH(F$2,'Data Annex'!$K$1:$AN$1,0)),\"\")","v":4.6058175799999997E-2},{"$f":"IFERROR(INDEX('Data Annex'!$K$1:$AN$4997,MATCH(G$1&\"|\"&$B42,'Data Annex'!$K$1:$K$4997,0),MATCH(G$2,'Data Annex'!$K$1:$AN$1,0)),\"\")","v":8.8109061700000005E-2},{"$f":"IFERROR(INDEX('Data Annex'!$K$1:$AN$4997,MATCH(H$1&\"|\"&$B42,'Data Annex'!$K$1:$K$4997,0),MATCH(H$2,'Data Annex'!$K$1:$AN$1,0)),\"\")","v":8.7016175400000007E-2},{"$f":"IFERROR(INDEX('Data Annex'!$K$1:$AN$4997,MATCH(I$1&\"|\"&$B42,'Data Annex'!$K$1:$K$4997,0),MATCH(I$2,'Data Annex'!$K$1:$AN$1,0)),\"\")","v":2.86650224E-2},{"$f":"IFERROR(INDEX('Data Annex'!$K$1:$AN$4997,MATCH(J$1&\"|\"&$B42,'Data Annex'!$K$1:$K$4997,0),MATCH(J$2,'Data Annex'!$K$1:$AN$1,0)),\"\")","v":3.0775642299999999E-2},{"$f":"IFERROR(INDEX('Data Annex'!$K$1:$AN$4997,MATCH(K$1&\"|\"&$B42,'Data Annex'!$K$1:$K$4997,0),MATCH(K$2,'Data Annex'!$K$1:$AN$1,0)),\"\")","v":2.2908806600000001E-2},{"$f":"IFERROR(INDEX('Data Annex'!$K$1:$AN$4997,MATCH(L$1&\"|\"&$B42,'Data Annex'!$K$1:$K$4997,0),MATCH(L$2,'Data Annex'!$K$1:$AN$1,0)),\"\")","v":1.6327641E-2},{"$f":"IFERROR(INDEX('Data Annex'!$K$1:$AN$4997,MATCH(M$1&\"|\"&$B42,'Data Annex'!$K$1:$K$4997,0),MATCH(M$2,'Data Annex'!$K$1:$AN$1,0)),\"\")","v":8.6865378999999993E-3},{"$f":"IFERROR(INDEX('Data Annex'!$K$1:$AN$4997,MATCH(N$1&\"|\"&$B42,'Data Annex'!$K$1:$K$4997,0),MATCH(N$2,'Data Annex'!$K$1:$AN$1,0)),\"\")","v":9.5513990999999999E-3},{"$f":"IFERROR(INDEX('Data Annex'!$K$1:$AN$4997,MATCH(O$1&\"|\"&$B42,'Data Annex'!$K$1:$K$4997,0),MATCH(O$2,'Data Annex'!$K$1:$AN$1,0)),\"\")","v":5.4631069300000001E-2},{"$f":"IFERROR(INDEX('Data Annex'!$K$1:$AN$4997,MATCH(P$1&\"|\"&$B42,'Data Annex'!$K$1:$K$4997,0),MATCH(P$2,'Data Annex'!$K$1:$AN$1,0)),\"\")","v":5.2567019600000001E-2},{"$f":"IFERROR(INDEX('Data Annex'!$K$1:$AN$4997,MATCH(Q$1&\"|\"&$B42,'Data Annex'!$K$1:$K$4997,0),MATCH(Q$2,'Data Annex'!$K$1:$AN$1,0)),\"\")","v":3.69446945E-2},{"$f":"IFERROR(INDEX('Data Annex'!$K$1:$AN$4997,MATCH(R$1&\"|\"&$B42,'Data Annex'!$K$1:$K$4997,0),MATCH(R$2,'Data Annex'!$K$1:$AN$1,0)),\"\")","v":3.8221640199999997E-2},{"$f":"IFERROR(INDEX('Data Annex'!$K$1:$AN$4997,MATCH(S$1&\"|\"&$B42,'Data Annex'!$K$1:$K$4997,0),MATCH(S$2,'Data Annex'!$K$1:$AN$1,0)),\"\")","v":3.2701357700000003E-2},{"$f":"IFERROR(INDEX('Data Annex'!$K$1:$AN$4997,MATCH(T$1&\"|\"&$B42,'Data Annex'!$K$1:$K$4997,0),MATCH(T$2,'Data Annex'!$K$1:$AN$1,0)),\"\")","v":3.0760205700000001E-2},{"$f":"IFERROR(INDEX('Data Annex'!$K$1:$AN$4997,MATCH(U$1&\"|\"&$B42,'Data Annex'!$K$1:$K$4997,0),MATCH(U$2,'Data Annex'!$K$1:$AN$1,0)),\"\")","v":5.6251525099999998E-2},{"$f":"IFERROR(INDEX('Data Annex'!$K$1:$AN$4997,MATCH(V$1&\"|\"&$B42,'Data Annex'!$K$1:$K$4997,0),MATCH(V$2,'Data Annex'!$K$1:$AN$1,0)),\"\")","v":6.02368031E-2},{"$f":"IFERROR(INDEX('Data Annex'!$K$1:$AN$4997,MATCH(W$1&\"|\"&$B42,'Data Annex'!$K$1:$K$4997,0),MATCH(W$2,'Data Annex'!$K$1:$AN$1,0)),\"\")","v":1.50870838E-2},{"$f":"IFERROR(INDEX('Data Annex'!$K$1:$AN$4997,MATCH(X$1&\"|\"&$B42,'Data Annex'!$K$1:$K$4997,0),MATCH(X$2,'Data Annex'!$K$1:$AN$1,0)),\"\")","v":1.64576403E-2}]
[]
[null,null,null,null,"T27_1","T27_1","T27_2","T27_2","T27_3","T27_3","T27_4","T27_4","T27_5","T27_5","T27_6","T27_6","T27_7","T27_7","T27_8","T27_8","T27_9","T27_9","T12_1","T12_1"]
[null,null,null,null,{"$f":"TEXT(E49,\"YYYYMM\")+0","v":202009},{"$f":"TEXT(F49,\"YYYYMM\")+0","v":202012},202009,202012,202009,202012,202009,202012,202009,202012,202009,202012,202009,202012,202009,202012,202009,202012,"T12_1","T12_1"]
[null,null,null,"NPL ratios of NFC loans and advances by NACE code (other than trading exposures) (2/2)",null,null,null,null,null,null,null,null,null,null,null,null,null,null,null,null,null,null,"T12_1","T12_1"]
[null,null,null,null,null,null,null,null,null,null,null,null,null,null,null,null,null,null,null,null,null,null,"T12_1","T12_1"]
[null,null,null,"%","K Financial and insurance activities",null,"L Real estate activities",null,"M Professional, scientific and technical activities",null,"N Administrative and support service activities",null,"O Public administration and defence, compulsory social security",null,"P Education",null,"Q Human health services and social work activities",null,"R Arts, entertainment and recreation",null,"S Other services",null,"T12_1","T12_1"]
[null,null,null,null,{"$f":"EOMONTH($A$3,-3)","v":"2020-09-30"},{"$f":"EOMONTH($A$3,0)","v":"2020-12-31"},{"$f":"EOMONTH($A$3,-3)","v":"2020-09-30"},{"$f":"EOMONTH($A$3,0)","v":"2020-12-31"},{"$f":"EOMONTH($A$3,-3)","v":"2020-09-30"},{"$f":"EOMONTH($A$3,0)","v":"2020-12-31"},{"$f":"EOMONTH($A$3,-3)","v":"2020-09-30"},{"$f":"EOMONTH($A$3,0)","v":"2020-12-31"},{"$f":"EOMONTH($A$3,-3)","v":"2020-09-30"},{"$f":"EOMONTH($A$3,0)","v":"2020-12-31"},{"$f":"EOMONTH($A$3,-3)","v":"2020-09-30"},{"$f":"EOMONTH($A$3,0)","v":"2020-12-31"},{"$f":"EOMONTH($A$3,-3)","v":"2020-09-30"},{"$f":"EOMONTH($A$3,0)","v":"2020-12-31"},{"$f":"EOMONTH($A$3,-3)","v":"2020-09-30"},{"$f":"EOMONTH($A$3,0)","v":"2020-12-31"},{"$f":"EOMONTH($A$3,-3)","v":"2020-09-30"},{"$f":"EOMONTH($A$3,0)","v":"2020-12-31"},"T12_1","T12_1"]
[null,"AT",null,"AT",{"$f":"IFERROR(INDEX('Data Annex'!$K$1:$AN$4997,MATCH(E$44&\"|\"&$B50,'Data Annex'!$K$1:$K$4997,0),MATCH(E$45,'Data Annex'!$K$1:$AN$1,0)),\"\")","v":1.73835985E-2},{"$f":"IFERROR(INDEX('Data Annex'!$K$1:$AN$4997,MATCH(F$44&\"|\"&$B50,'Data Annex'!$K$1:$K$4997,0),MATCH(F$45,'Data Annex'!$K$1:$AN$1,0)),\"\")","v":2.2860410000000001E-2},{"$f":"IFERROR(INDEX('Data Annex'!$K$1:$AN$4997,MATCH(G$44&\"|\"&$B50,'Data Annex'!$K$1:$K$4997,0),MATCH(G$45,'Data Annex'!$K$1:$AN$1,0)),\"\")","v":1.46598444E-2},{"$f":"IFERROR(INDEX('Data Annex'!$K$1:$AN$4997,MATCH(H$44&\"|\"&$B50,'Data Annex'!$K$1:$K$4997,0),MATCH(H$45,'Data Annex'!$K$1:$AN$1,0)),\"\")","v":1.5188757299999999E-2},{"$f":"IFERROR(INDEX('Data Annex'!$K$1:$AN$4997,MATCH(I$44&\"|\"&$B50,'Data Annex'!$K$1:$K$4997,0),MATCH(I$45,'Data Annex'!$K$1:$AN$1,0)),\"\")","v":2.3770995100000001E-2},{"$f":"IFERROR(INDEX('Data Annex'!$K$1:$AN$4997,MATCH(J$44&\"|\"&$B50,'Data Annex'!$K$1:$K$4997,0),MATCH(J$45,'Data Annex'!$K$1:$AN$1,0)),\"\")","v":4.0019599699999998E-2},{"$f":"IFERROR(INDEX('Data Annex'!$K$1:$AN$4997,MATCH(K$44&\"|\"&$B50,'Data Annex'!$K$1:$K$4997,0),MATCH(K$45,'Data Annex'!$K$1:$AN$1,0)),\"\")","v":2.7965863699999999E-2},{"$f":"IFERROR(INDEX('Data Annex'!$K$1:$AN$4997,MATCH(L$44&\"|\"&$B50,'Data Annex'!$K$1:$K$4997,0),MATCH(L$45,'Data Annex'!$K$1:$AN$1,0)),\"\")","v":4.6318272200000003E-2},{"$f":"IFERROR(INDEX('Data Annex'!$K$1:$AN$4997,MATCH(M$44&\"|\"&$B50,'Data Annex'!$K$1:$K$4997,0),MATCH(M$45,'Data Annex'!$K$1:$AN$1,0)),\"\")","v":4.7139209999999998E-4},{"$f":"IFERROR(INDEX('Data Annex'!$K$1:$AN$4997,MATCH(N$44&\"|\"&$B50,'Data Annex'!$K$1:$K$4997,0),MATCH(N$45,'Data Annex'!$K$1:$AN$1,0)),\"\")","v":5.2207699999999998E-5},{"$f":"IFERROR(INDEX('Data Annex'!$K$1:$AN$4997,MATCH(O$44&\"|\"&$B50,'Data Annex'!$K$1:$K$4997,0),MATCH(O$45,'Data Annex'!$K$1:$AN$1,0)),\"\")","v":1.4506030200000001E-2},{"$f":"IFERROR(INDEX('Data Annex'!$K$1:$AN$4997,MATCH(P$44&\"|\"&$B50,'Data Annex'!$K$1:$K$4997,0),MATCH(P$45,'Data Annex'!$K$1:$AN$1,0)),\"\")","v":1.7019408600000001E-2},{"$f":"IFERROR(INDEX('Data Annex'!$K$1:$AN$4997,MATCH(Q$44&\"|\"&$B50,'Data Annex'!$K$1:$K$4997,0),MATCH(Q$45,'Data Annex'!$K$1:$AN$1,0)),\"\")","v":5.9687344500000003E-2},{"$f":"IFERROR(INDEX('Data Annex'!$K$1:$AN$4997,MATCH(R$44&\"|\"&$B50,'Data Annex'!$K$1:$K$4997,0),MATCH(R$45,'Data Annex'!$K$1:$AN$1,0)),\"\")","v":8.5008685999999993E-3},{"$f":"IFERROR(INDEX('Data Annex'!$K$1:$AN$4997,MATCH(S$44&\"|\"&$B50,'Data Annex'!$K$1:$K$4997,0),MATCH(S$45,'Data Annex'!$K$1:$AN$1,0)),\"\")","v":6.7788174899999998E-2},{"$f":"IFERROR(INDEX('Data Annex'!$K$1:$AN$4997,MATCH(T$44&\"|\"&$B50,'Data Annex'!$K$1:$K$4997,0),MATCH(T$45,'Data Annex'!$K$1:$AN$1,0)),\"\")","v":8.6794099299999997E-2},{"$f":"IFERROR(INDEX('Data Annex'!$K$1:$AN$4997,MATCH(U$44&\"|\"&$B50,'Data Annex'!$K$1:$K$4997,0),MATCH(U$45,'Data Annex'!$K$1:$AN$1,0)),\"\")","v":0.1222903412},{"$f":"IFERROR(INDEX('Data Annex'!$K$1:$AN$4997,MATCH(V$44&\"|\"&$B50,'Data Annex'!$K$1:$K$4997,0),MATCH(V$45,'Data Annex'!$K$1:$AN$1,0)),\"\")","v":0.12544411320000001},"T12_1","T12_1"]
[null,"BE",null,"BE",{"$f":"IFERROR(INDEX('Data Annex'!$K$1:$AN$4997,MATCH(E$44&\"|\"&$B51,'Data Annex'!$K$1:$K$4997,0),MATCH(E$45,'Data Annex'!$K$1:$AN$1,0)),\"\")","v":4.5608850899999998E-2},{"$f":"IFERROR(INDEX('Data Annex'!$K$1:$AN$4997,MATCH(F$44&\"|\"&$B51,'Data Annex'!$K$1:$K$4997,0),MATCH(F$45,'Data Annex'!$K$1:$AN$1,0)),\"\")","v":4.3894683599999998E-2},{"$f":"IFERROR(INDEX('Data Annex'!$K$1:$AN$4997,MATCH(G$44&\"|\"&$B51,'Data Annex'!$K$1:$K$4997,0),MATCH(G$45,'Data Annex'!$K$1:$AN$1,0)),\"\")","v":2.8955360400000001E-2},{"$f":"IFERROR(INDEX('Data Annex'!$K$1:$AN$4997,MATCH(H$44&\"|\"&$B51,'Data Annex'!$K$1:$K$4997,0),MATCH(H$45,'Data Annex'!$K$1:$AN$1,0)),\"\")","v":3.63007724E-2},{"$f":"IFERROR(INDEX('Data Annex'!$K$1:$AN$4997,MATCH(I$44&\"|\"&$B51,'Data Annex'!$K$1:$K$4997,0),MATCH(I$45,'Data Annex'!$K$1:$AN$1,0)),\"\")","v":2.90951419E-2},{"$f":"IFERROR(INDEX('Data Annex'!$K$1:$AN$4997,MATCH(J$44&\"|\"&$B51,'Data Annex'!$K$1:$K$4997,0),MATCH(J$45,'Data Annex'!$K$1:$AN$1,0)),\"\")","v":3.5174602399999998E-2},{"$f":"IFERROR(INDEX('Data Annex'!$K$1:$AN$4997,MATCH(K$44&\"|\"&$B51,'Data Annex'!$K$1:$K$4997,0),MATCH(K$45,'Data Annex'!$K$1:$AN$1,0)),\"\")","v":2.4312705899999999E-2},{"$f":"IFERROR(INDEX('Data Annex'!$K$1:$AN$4997,MATCH(L$44&\"|\"&$B51,'Data Annex'!$K$1:$K$4997,0),MATCH(L$45,'Data Annex'!$K$1:$AN$1,0)),\"\")","v":3.2962984299999998E-2},{"$f":"IFERROR(INDEX('Data Annex'!$K$1:$AN$4997,MATCH(M$44&\"|\"&$B51,'Data Annex'!$K$1:$K$4997,0),MATCH(M$45,'Data Annex'!$K$1:$AN$1,0)),\"\")","v":2.99046E-2},{"$f":"IFERROR(INDEX('Data Annex'!$K$1:$AN$4997,MATCH(N$44&\"|\"&$B51,'Data Annex'!$K$1:$K$4997,0),MATCH(N$45,'Data Annex'!$K$1:$AN$1,0)),\"\")","v":2.9220502999999998E-2},{"$f":"IFERROR(INDEX('Data Annex'!$K$1:$AN$4997,MATCH(O$44&\"|\"&$B51,'Data Annex'!$K$1:$K$4997,0),MATCH(O$45,'Data Annex'!$K$1:$AN$1,0)),\"\")","v":1.9320730899999999E-2},{"$f":"IFERROR(INDEX('Data Annex'!$K$1:$AN$4997,MATCH(P$44&\"|\"&$B51,'Data Annex'!$K$1:$K$4997,0),MATCH(P$45,'Data Annex'!$K$1:$AN$1,0)),\"\")","v":2.3750504700000001E-2},{"$f":"IFERROR(INDEX('Data Annex'!$K$1:$AN$4997,MATCH(Q$44&\"|\"&$B51,'Data Annex'!$K$1:$K$4997,0),MATCH(Q$45,'Data Annex'!$K$1:$AN$1,0)),\"\")","v":1.2750957E-2},{"$f":"IFERROR(INDEX('Data Annex'!$K$1:$AN$4997,MATCH(R$44&\"|\"&$B51,'Data Annex'!$K$1:$K$4997,0),MATCH(R$45,'Data Annex'!$K$1:$AN$1,0)),\"\")","v":1.20992363E-2},{"$f":"IFERROR(INDEX('Data Annex'!$K$1:$AN$4997,MATCH(S$44&\"|\"&$B51,'Data Annex'!$K$1:$K$4997,0),MATCH(S$45,'Data Annex'!$K$1:$AN$1,0)),\"\")","v":3.8990736099999999E-2},{"$f":"IFERROR(INDEX('Data Annex'!$K$1:$AN$4997,MATCH(T$44&\"|\"&$B51,'Data Annex'!$K$1:$K$4997,0),MATCH(T$45,'Data Annex'!$K$1:$AN$1,0)),\"\")","v":4.5327938999999998E-2},{"$f":"IFERROR(INDEX('Data Annex'!$K$1:$AN$4997,MATCH(U$44&\"|\"&$B51,'Data Annex'!$K$1:$K$4997,0),MATCH(U$45,'Data Annex'!$K$1:$AN$1,0)),\"\")","v":3.3410125899999997E-2},{"$f":"IFERROR(INDEX('Data Annex'!$K$1:$AN$4997,MATCH(V$44&\"|\"&$B51,'Data Annex'!$K$1:$K$4997,0),MATCH(V$45,'Data Annex'!$K$1:$AN$1,0)),\"\")","v":2.8866742899999999E-2},"T12_1","T12_1"]
[null,"BG",null,"BG",{"$f":"IFERROR(INDEX('Data Annex'!$K$1:$AN$4997,MATCH(E$44&\"|\"&$B52,'Data Annex'!$K$1:$K$4997,0),MATCH(E$45,'Data Annex'!$K$1:$AN$1,0)),\"\")","v":2.2500769999999999E-4},{"$f":"IFERROR(INDEX('Data Annex'!$K$1:$AN$4997,MATCH(F$44&\"|\"&$B52,'Data Annex'!$K$1:$K$4997,0),MATCH(F$45,'Data Annex'!$K$1:$AN$1,0)),\"\")","v":3.01527E-5},{"$f":"IFERROR(INDEX('Data Annex'!$K$1:$AN$4997,MATCH(G$44&\"|\"&$B52,'Data Annex'!$K$1:$K$4997,0),MATCH(G$45,'Data Annex'!$K$1:$AN$1,0)),\"\")","v":0.1806576101},{"$f":"IFERROR(INDEX('Data Annex'!$K$1:$AN$4997,MATCH(H$44&\"|\"&$B52,'Data Annex'!$K$1:$K$4997,0),MATCH(H$45,'Data Annex'!$K$1:$AN$1,0)),\"\")","v":0.18295426879999999},{"$f":"IFERROR(INDEX('Data Annex'!$K$1:$AN$4997,MATCH(I$44&\"|\"&$B52,'Data Annex'!$K$1:$K$4997,0),MATCH(I$45,'Data Annex'!$K$1:$AN$1,0)),\"\")","v":0.15317280420000001},{"$f":"IFERROR(INDEX('Data Annex'!$K$1:$AN$4997,MATCH(J$44&\"|\"&$B52,'Data Annex'!$K$1:$K$4997,0),MATCH(J$45,'Data Annex'!$K$1:$AN$1,0)),\"\")","v":0.1031179824},{"$f":"IFERROR(INDEX('Data Annex'!$K$1:$AN$4997,MATCH(K$44&\"|\"&$B52,'Data Annex'!$K$1:$K$4997,0),MATCH(K$45,'Data Annex'!$K$1:$AN$1,0)),\"\")","v":0.16848385460000001},{"$f":"IFERROR(INDEX('Data Annex'!$K$1:$AN$4997,MATCH(L$44&\"|\"&$B52,'Data Annex'!$K$1:$K$4997,0),MATCH(L$45,'Data Annex'!$K$1:$AN$1,0)),\"\")","v":0.16754935970000001},{"$f":"IFERROR(INDEX('Data Annex'!$K$1:$AN$4997,MATCH(M$44&\"|\"&$B52,'Data Annex'!$K$1:$K$4997,0),MATCH(M$45,'Data Annex'!$K$1:$AN$1,0)),\"\")","v":8.4788029900000006E-2},{"$f":"IFERROR(INDEX('Data Annex'!$K$1:$AN$4997,MATCH(N$44&\"|\"&$B52,'Data Annex'!$K$1:$K$4997,0),MATCH(N$45,'Data Annex'!$K$1:$AN$1,0)),\"\")","v":9.5238095199999998E-2},{"$f":"IFERROR(INDEX('Data Annex'!$K$1:$AN$4997,MATCH(O$44&\"|\"&$B52,'Data Annex'!$K$1:$K$4997,0),MATCH(O$45,'Data Annex'!$K$1:$AN$1,0)),\"\")","v":7.2986954600000001E-2},{"$f":"IFERROR(INDEX('Data Annex'!$K$1:$AN$4997,MATCH(P$44&\"|\"&$B52,'Data Annex'!$K$1:$K$4997,0),MATCH(P$45,'Data Annex'!$K$1:$AN$1,0)),\"\")","v":7.4297143100000004E-2},{"$f":"IFERROR(INDEX('Data Annex'!$K$1:$AN$4997,MATCH(Q$44&\"|\"&$B52,'Data Annex'!$K$1:$K$4997,0),MATCH(Q$45,'Data Annex'!$K$1:$AN$1,0)),\"\")","v":2.5058838600000001E-2},{"$f":"IFERROR(INDEX('Data Annex'!$K$1:$AN$4997,MATCH(R$44&\"|\"&$B52,'Data Annex'!$K$1:$K$4997,0),MATCH(R$45,'Data Annex'!$K$1:$AN$1,0)),\"\")","v":2.25282381E-2},{"$f":"IFERROR(INDEX('Data Annex'!$K$1:$AN$4997,MATCH(S$44&\"|\"&$B52,'Data Annex'!$K$1:$K$4997,0),MATCH(S$45,'Data Annex'!$K$1:$AN$1,0)),\"\")","v":0.403902965},{"$f":"IFERROR(INDEX('Data Annex'!$K$1:$AN$4997,MATCH(T$44&\"|\"&$B52,'Data Annex'!$K$1:$K$4997,0),MATCH(T$45,'Data Annex'!$K$1:$AN$1,0)),\"\")","v":0.39635224679999997},{"$f":"IFERROR(INDEX('Data Annex'!$K$1:$AN$4997,MATCH(U$44&\"|\"&$B52,'Data Annex'!$K$1:$K$4997,0),MATCH(U$45,'Data Annex'!$K$1:$AN$1,0)),\"\")","v":8.0530817500000004E-2},{"$f":"IFERROR(INDEX('Data Annex'!$K$1:$AN$4997,MATCH(V$44&\"|\"&$B52,'Data Annex'!$K$1:$K$4997,0),MATCH(V$45,'Data Annex'!$K$1:$AN$1,0)),\"\")","v":7.1781113199999996E-2},"T12_1","T12_1"]
[null,"CY",null,"CY",{"$f":"IFERROR(INDEX('Data Annex'!$K$1:$AN$4997,MATCH(E$44&\"|\"&$B53,'Data Annex'!$K$1:$K$4997,0),MATCH(E$45,'Data Annex'!$K$1:$AN$1,0)),\"\")","v":0},{"$f":"IFERROR(INDEX('Data Annex'!$K$1:$AN$4997,MATCH(F$44&\"|\"&$B53,'Data Annex'!$K$1:$K$4997,0),MATCH(F$45,'Data Annex'!$K$1:$AN$1,0)),\"\")","v":0},{"$f":"IFERROR(INDEX('Data Annex'!$K$1:$AN$4997,MATCH(G$44&\"|\"&$B53,'Data Annex'!$K$1:$K$4997,0),MATCH(G$45,'Data Annex'!$K$1:$AN$1,0)),\"\")","v":0.2040024993},{"$f":"IFERROR(INDEX('Data Annex'!$K$1:$AN$4997,MATCH(H$44&\"|\"&$B53,'Data Annex'!$K$1:$K$4997,0),MATCH(H$45,'Data Annex'!$K$1:$AN$1,0)),\"\")","v":0.43851273390000001},{"$f":"IFERROR(INDEX('Data Annex'!$K$1:$AN$4997,MATCH(I$44&\"|\"&$B53,'Data Annex'!$K$1:$K$4997,0),MATCH(I$45,'Data Annex'!$K$1:$AN$1,0)),\"\")","v":0.1722362576},{"$f":"IFERROR(INDEX('Data Annex'!$K$1:$AN$4997,MATCH(J$44&\"|\"&$B53,'Data Annex'!$K$1:$K$4997,0),MATCH(J$45,'Data Annex'!$K$1:$AN$1,0)),\"\")","v":0.1181035107},{"$f":"IFERROR(INDEX('Data Annex'!$K$1:$AN$4997,MATCH(K$44&\"|\"&$B53,'Data Annex'!$K$1:$K$4997,0),MATCH(K$45,'Data Annex'!$K$1:$AN$1,0)),\"\")","v":0.2700873936},{"$f":"IFERROR(INDEX('Data Annex'!$K$1:$AN$4997,MATCH(L$44&\"|\"&$B53,'Data Annex'!$K$1:$K$4997,0),MATCH(L$45,'Data Annex'!$K$1:$AN$1,0)),\"\")","v":0.18059865150000001},{"$f":"IFERROR(INDEX('Data Annex'!$K$1:$AN$4997,MATCH(M$44&\"|\"&$B53,'Data Annex'!$K$1:$K$4997,0),MATCH(M$45,'Data Annex'!$K$1:$AN$1,0)),\"\")","v":0},{"$f":"IFERROR(INDEX('Data Annex'!$K$1:$AN$4997,MATCH(N$44&\"|\"&$B53,'Data Annex'!$K$1:$K$4997,0),MATCH(N$45,'Data Annex'!$K$1:$AN$1,0)),\"\")","v":0},{"$f":"IFERROR(INDEX('Data Annex'!$K$1:$AN$4997,MATCH(O$44&\"|\"&$B53,'Data Annex'!$K$1:$K$4997,0),MATCH(O$45,'Data Annex'!$K$1:$AN$1,0)),\"\")","v":0.11504095860000001},{"$f":"IFERROR(INDEX('Data Annex'!$K$1:$AN$4997,MATCH(P$44&\"|\"&$B53,'Data Annex'!$K$1:$K$4997,0),MATCH(P$45,'Data Annex'!$K$1:$AN$1,0)),\"\")","v":0.44707313900000001},{"$f":"IFERROR(INDEX('Data Annex'!$K$1:$AN$4997,MATCH(Q$44&\"|\"&$B53,'Data Annex'!$K$1:$K$4997,0),MATCH(Q$45,'Data Annex'!$K$1:$AN$1,0)),\"\")","v":2.7761736700000001E-2},{"$f":"IFERROR(INDEX('Data Annex'!$K$1:$AN$4997,MATCH(R$44&\"|\"&$B53,'Data Annex'!$K$1:$K$4997,0),MATCH(R$45,'Data Annex'!$K$1:$AN$1,0)),\"\")","v":2.3653399299999999E-2},{"$f":"IFERROR(INDEX('Data Annex'!$K$1:$AN$4997,MATCH(S$44&\"|\"&$B53,'Data Annex'!$K$1:$K$4997,0),MATCH(S$45,'Data Annex'!$K$1:$AN$1,0)),\"\")","v":0.37615171679999998},{"$f":"IFERROR(INDEX('Data Annex'!$K$1:$AN$4997,MATCH(T$44&\"|\"&$B53,'Data Annex'!$K$1:$K$4997,0),MATCH(T$45,'Data Annex'!$K$1:$AN$1,0)),\"\")","v":0.48303717730000001},{"$f":"IFERROR(INDEX('Data Annex'!$K$1:$AN$4997,MATCH(U$44&\"|\"&$B53,'Data Annex'!$K$1:$K$4997,0),MATCH(U$45,'Data Annex'!$K$1:$AN$1,0)),\"\")","v":0.41179069530000001},{"$f":"IFERROR(INDEX('Data Annex'!$K$1:$AN$4997,MATCH(V$44&\"|\"&$B53,'Data Annex'!$K$1:$K$4997,0),MATCH(V$45,'Data Annex'!$K$1:$AN$1,0)),\"\")","v":9.8349947500000007E-2},"T12_1","T12_1"]
[null,"CZ",null,"CZ",{"$f":"IFERROR(INDEX('Data Annex'!$K$1:$AN$4997,MATCH(E$44&\"|\"&$B54,'Data Annex'!$K$1:$K$4997,0),MATCH(E$45,'Data Annex'!$K$1:$AN$1,0)),\"\")","v":0},{"$f":"IFERROR(INDEX('Data Annex'!$K$1:$AN$4997,MATCH(F$44&\"|\"&$B54,'Data Annex'!$K$1:$K$4997,0),MATCH(F$45,'Data Annex'!$K$1:$AN$1,0)),\"\")","v":0},{"$f":"IFERROR(INDEX('Data Annex'!$K$1:$AN$4997,MATCH(G$44&\"|\"&$B54,'Data Annex'!$K$1:$K$4997,0),MATCH(G$45,'Data Annex'!$K$1:$AN$1,0)),\"\")","v":3.8565753000000002E-3},{"$f":"IFERROR(INDEX('Data Annex'!$K$1:$AN$4997,MATCH(H$44&\"|\"&$B54,'Data Annex'!$K$1:$K$4997,0),MATCH(H$45,'Data Annex'!$K$1:$AN$1,0)),\"\")","v":5.6870946000000004E-3},{"$f":"IFERROR(INDEX('Data Annex'!$K$1:$AN$4997,MATCH(I$44&\"|\"&$B54,'Data Annex'!$K$1:$K$4997,0),MATCH(I$45,'Data Annex'!$K$1:$AN$1,0)),\"\")","v":3.7289444099999999E-2},{"$f":"IFERROR(INDEX('Data Annex'!$K$1:$AN$4997,MATCH(J$44&\"|\"&$B54,'Data Annex'!$K$1:$K$4997,0),MATCH(J$45,'Data Annex'!$K$1:$AN$1,0)),\"\")","v":9.0853530700000004E-2},{"$f":"IFERROR(INDEX('Data Annex'!$K$1:$AN$4997,MATCH(K$44&\"|\"&$B54,'Data Annex'!$K$1:$K$4997,0),MATCH(K$45,'Data Annex'!$K$1:$AN$1,0)),\"\")","v":3.06257596E-2},{"$f":"IFERROR(INDEX('Data Annex'!$K$1:$AN$4997,MATCH(L$44&\"|\"&$B54,'Data Annex'!$K$1:$K$4997,0),MATCH(L$45,'Data Annex'!$K$1:$AN$1,0)),\"\")","v":5.6837898400000003E-2},{"$f":"IFERROR(INDEX('Data Annex'!$K$1:$AN$4997,MATCH(M$44&\"|\"&$B54,'Data Annex'!$K$1:$K$4997,0),MATCH(M$45,'Data Annex'!$K$1:$AN$1,0)),\"\")","v":0},{"$f":"IFERROR(INDEX('Data Annex'!$K$1:$AN$4997,MATCH(N$44&\"|\"&$B54,'Data Annex'!$K$1:$K$4997,0),MATCH(N$45,'Data Annex'!$K$1:$AN$1,0)),\"\")","v":0},{"$f":"IFERROR(INDEX('Data Annex'!$K$1:$AN$4997,MATCH(O$44&\"|\"&$B54,'Data Annex'!$K$1:$K$4997,0),MATCH(O$45,'Data Annex'!$K$1:$AN$1,0)),\"\")","v":1.04655693E-2},{"$f":"IFERROR(INDEX('Data Annex'!$K$1:$AN$4997,MATCH(P$44&\"|\"&$B54,'Data Annex'!$K$1:$K$4997,0),MATCH(P$45,'Data Annex'!$K$1:$AN$1,0)),\"\")","v":1.5545966899999999E-2},{"$f":"IFERROR(INDEX('Data Annex'!$K$1:$AN$4997,MATCH(Q$44&\"|\"&$B54,'Data Annex'!$K$1:$K$4997,0),MATCH(Q$45,'Data Annex'!$K$1:$AN$1,0)),\"\")","v":7.8815945999999998E-3},{"$f":"IFERROR(INDEX('Data Annex'!$K$1:$AN$4997,MATCH(R$44&\"|\"&$B54,'Data Annex'!$K$1:$K$4997,0),MATCH(R$45,'Data Annex'!$K$1:$AN$1,0)),\"\")","v":4.5690944000000002E-3},{"$f":"IFERROR(INDEX('Data Annex'!$K$1:$AN$4997,MATCH(S$44&\"|\"&$B54,'Data Annex'!$K$1:$K$4997,0),MATCH(S$45,'Data Annex'!$K$1:$AN$1,0)),\"\")","v":2.44363641E-2},{"$f":"IFERROR(INDEX('Data Annex'!$K$1:$AN$4997,MATCH(T$44&\"|\"&$B54,'Data Annex'!$K$1:$K$4997,0),MATCH(T$45,'Data Annex'!$K$1:$AN$1,0)),\"\")","v":0.11079201449999999},{"$f":"IFERROR(INDEX('Data Annex'!$K$1:$AN$4997,MATCH(U$44&\"|\"&$B54,'Data Annex'!$K$1:$K$4997,0),MATCH(U$45,'Data Annex'!$K$1:$AN$1,0)),\"\")","v":3.2433343000000003E-2},{"$f":"IFERROR(INDEX('Data Annex'!$K$1:$AN$4997,MATCH(V$44&\"|\"&$B54,'Data Annex'!$K$1:$K$4997,0),MATCH(V$45,'Data Annex'!$K$1:$AN$1,0)),\"\")","v":3.2695387399999998E-2},"T12_1","T12_1"]
[null,"DE",null,"DE",{"$f":"IFERROR(INDEX('Data Annex'!$K$1:$AN$4997,MATCH(E$44&\"|\"&$B55,'Data Annex'!$K$1:$K$4997,0),MATCH(E$45,'Data Annex'!$K$1:$AN$1,0)),\"\")","v":2.91045227E-2},{"$f":"IFERROR(INDEX('Data Annex'!$K$1:$AN$4997,MATCH(F$44&\"|\"&$B55,'Data Annex'!$K$1:$K$4997,0),MATCH(F$45,'Data Annex'!$K$1:$AN$1,0)),\"\")","v":3.0107419999999999E-2},{"$f":"IFERROR(INDEX('Data Annex'!$K$1:$AN$4997,MATCH(G$44&\"|\"&$B55,'Data Annex'!$K$1:$K$4997,0),MATCH(G$45,'Data Annex'!$K$1:$AN$1,0)),\"\")","v":1.1257088E-2},{"$f":"IFERROR(INDEX('Data Annex'!$K$1:$AN$4997,MATCH(H$44&\"|\"&$B55,'Data Annex'!$K$1:$K$4997,0),MATCH(H$45,'Data Annex'!$K$1:$AN$1,0)),\"\")","v":1.56952855E-2},{"$f":"IFERROR(INDEX('Data Annex'!$K$1:$AN$4997,MATCH(I$44&\"|\"&$B55,'Data Annex'!$K$1:$K$4997,0),MATCH(I$45,'Data Annex'!$K$1:$AN$1,0)),\"\")","v":2.68875472E-2},{"$f":"IFERROR(INDEX('Data Annex'!$K$1:$AN$4997,MATCH(J$44&\"|\"&$B55,'Data Annex'!$K$1:$K$4997,0),MATCH(J$45,'Data Annex'!$K$1:$AN$1,0)),\"\")","v":2.58962997E-2},{"$f":"IFERROR(INDEX('Data Annex'!$K$1:$AN$4997,MATCH(K$44&\"|\"&$B55,'Data Annex'!$K$1:$K$4997,0),MATCH(K$45,'Data Annex'!$K$1:$AN$1,0)),\"\")","v":4.2574531800000003E-2},{"$f":"IFERROR(INDEX('Data Annex'!$K$1:$AN$4997,MATCH(L$44&\"|\"&$B55,'Data Annex'!$K$1:$K$4997,0),MATCH(L$45,'Data Annex'!$K$1:$AN$1,0)),\"\")","v":4.5822526000000002E-2},{"$f":"IFERROR(INDEX('Data Annex'!$K$1:$AN$4997,MATCH(M$44&\"|\"&$B55,'Data Annex'!$K$1:$K$4997,0),MATCH(M$45,'Data Annex'!$K$1:$AN$1,0)),\"\")","v":3.1860000000000003E-5},{"$f":"IFERROR(INDEX('Data Annex'!$K$1:$AN$4997,MATCH(N$44&\"|\"&$B55,'Data Annex'!$K$1:$K$4997,0),MATCH(N$45,'Data Annex'!$K$1:$AN$1,0)),\"\")","v":4.1686800000000002E-5},{"$f":"IFERROR(INDEX('Data Annex'!$K$1:$AN$4997,MATCH(O$44&\"|\"&$B55,'Data Annex'!$K$1:$K$4997,0),MATCH(O$45,'Data Annex'!$K$1:$AN$1,0)),\"\")","v":1.34768743E-2},{"$f":"IFERROR(INDEX('Data Annex'!$K$1:$AN$4997,MATCH(P$44&\"|\"&$B55,'Data Annex'!$K$1:$K$4997,0),MATCH(P$45,'Data Annex'!$K$1:$AN$1,0)),\"\")","v":1.4040325399999999E-2},{"$f":"IFERROR(INDEX('Data Annex'!$K$1:$AN$4997,MATCH(Q$44&\"|\"&$B55,'Data Annex'!$K$1:$K$4997,0),MATCH(Q$45,'Data Annex'!$K$1:$AN$1,0)),\"\")","v":6.9488922999999996E-3},{"$f":"IFERROR(INDEX('Data Annex'!$K$1:$AN$4997,MATCH(R$44&\"|\"&$B55,'Data Annex'!$K$1:$K$4997,0),MATCH(R$45,'Data Annex'!$K$1:$AN$1,0)),\"\")","v":5.2352366999999997E-3},{"$f":"IFERROR(INDEX('Data Annex'!$K$1:$AN$4997,MATCH(S$44&\"|\"&$B55,'Data Annex'!$K$1:$K$4997,0),MATCH(S$45,'Data Annex'!$K$1:$AN$1,0)),\"\")","v":2.7064350300000001E-2},{"$f":"IFERROR(INDEX('Data Annex'!$K$1:$AN$4997,MATCH(T$44&\"|\"&$B55,'Data Annex'!$K$1:$K$4997,0),MATCH(T$45,'Data Annex'!$K$1:$AN$1,0)),\"\")","v":3.1903828400000001E-2},{"$f":"IFERROR(INDEX('Data Annex'!$K$1:$AN$4997,MATCH(U$44&\"|\"&$B55,'Data Annex'!$K$1:$K$4997,0),MATCH(U$45,'Data Annex'!$K$1:$AN$1,0)),\"\")","v":2.0979277599999999E-2},{"$f":"IFERROR(INDEX('Data Annex'!$K$1:$AN$4997,MATCH(V$44&\"|\"&$B55,'Data Annex'!$K$1:$K$4997,0),MATCH(V$45,'Data Annex'!$K$1:$AN$1,0)),\"\")","v":2.5573600500000002E-2},"T12_1","T12_1"]
[null,"DK",null,"DK",{"$f":"IFERROR(INDEX('Data Annex'!$K$1:$AN$4997,MATCH(E$44&\"|\"&$B56,'Data Annex'!$K$1:$K$4997,0),MATCH(E$45,'Data Annex'!$K$1:$AN$1,0)),\"\")","v":3.8455085200000003E-2},{"$f":"IFERROR(INDEX('Data Annex'!$K$1:$AN$4997,MATCH(F$44&\"|\"&$B56,'Data Annex'!$K$1:$K$4997,0),MATCH(F$45,'Data Annex'!$K$1:$AN$1,0)),\"\")","v":4.5006318900000002E-2},{"$f":"IFERROR(INDEX('Data Annex'!$K$1:$AN$4997,MATCH(G$44&\"|\"&$B56,'Data Annex'!$K$1:$K$4997,0),MATCH(G$45,'Data Annex'!$K$1:$AN$1,0)),\"\")","v":1.6930952499999999E-2},{"$f":"IFERROR(INDEX('Data Annex'!$K$1:$AN$4997,MATCH(H$44&\"|\"&$B56,'Data Annex'!$K$1:$K$4997,0),MATCH(H$45,'Data Annex'!$K$1:$AN$1,0)),\"\")","v":1.68535475E-2},{"$f":"IFERROR(INDEX('Data Annex'!$K$1:$AN$4997,MATCH(I$44&\"|\"&$B56,'Data Annex'!$K$1:$K$4997,0),MATCH(I$45,'Data Annex'!$K$1:$AN$1,0)),\"\")","v":2.8173387000000001E-2},{"$f":"IFERROR(INDEX('Data Annex'!$K$1:$AN$4997,MATCH(J$44&\"|\"&$B56,'Data Annex'!$K$1:$K$4997,0),MATCH(J$45,'Data Annex'!$K$1:$AN$1,0)),\"\")","v":4.1461689599999997E-2},{"$f":"IFERROR(INDEX('Data Annex'!$K$1:$AN$4997,MATCH(K$44&\"|\"&$B56,'Data Annex'!$K$1:$K$4997,0),MATCH(K$45,'Data Annex'!$K$1:$AN$1,0)),\"\")","v":2.4389335500000001E-2},{"$f":"IFERROR(INDEX('Data Annex'!$K$1:$AN$4997,MATCH(L$44&\"|\"&$B56,'Data Annex'!$K$1:$K$4997,0),MATCH(L$45,'Data Annex'!$K$1:$AN$1,0)),\"\")","v":2.9856148200000002E-2},{"$f":"IFERROR(INDEX('Data Annex'!$K$1:$AN$4997,MATCH(M$44&\"|\"&$B56,'Data Annex'!$K$1:$K$4997,0),MATCH(M$45,'Data Annex'!$K$1:$AN$1,0)),\"\")","v":9.2289599999999998E-5},{"$f":"IFERROR(INDEX('Data Annex'!$K$1:$AN$4997,MATCH(N$44&\"|\"&$B56,'Data Annex'!$K$1:$K$4997,0),MATCH(N$45,'Data Annex'!$K$1:$AN$1,0)),\"\")","v":1.535141E-4},{"$f":"IFERROR(INDEX('Data Annex'!$K$1:$AN$4997,MATCH(O$44&\"|\"&$B56,'Data Annex'!$K$1:$K$4997,0),MATCH(O$45,'Data Annex'!$K$1:$AN$1,0)),\"\")","v":6.2911575000000001E-3},{"$f":"IFERROR(INDEX('Data Annex'!$K$1:$AN$4997,MATCH(P$44&\"|\"&$B56,'Data Annex'!$K$1:$K$4997,0),MATCH(P$45,'Data Annex'!$K$1:$AN$1,0)),\"\")","v":2.3609458E-3},{"$f":"IFERROR(INDEX('Data Annex'!$K$1:$AN$4997,MATCH(Q$44&\"|\"&$B56,'Data Annex'!$K$1:$K$4997,0),MATCH(Q$45,'Data Annex'!$K$1:$AN$1,0)),\"\")","v":6.5089251200000003E-2},{"$f":"IFERROR(INDEX('Data Annex'!$K$1:$AN$4997,MATCH(R$44&\"|\"&$B56,'Data Annex'!$K$1:$K$4997,0),MATCH(R$45,'Data Annex'!$K$1:$AN$1,0)),\"\")","v":5.7414995400000002E-2},{"$f":"IFERROR(INDEX('Data Annex'!$K$1:$AN$4997,MATCH(S$44&\"|\"&$B56,'Data Annex'!$K$1:$K$4997,0),MATCH(S$45,'Data Annex'!$K$1:$AN$1,0)),\"\")","v":2.9780179300000001E-2},{"$f":"IFERROR(INDEX('Data Annex'!$K$1:$AN$4997,MATCH(T$44&\"|\"&$B56,'Data Annex'!$K$1:$K$4997,0),MATCH(T$45,'Data Annex'!$K$1:$AN$1,0)),\"\")","v":7.0031336700000002E-2},{"$f":"IFERROR(INDEX('Data Annex'!$K$1:$AN$4997,MATCH(U$44&\"|\"&$B56,'Data Annex'!$K$1:$K$4997,0),MATCH(U$45,'Data Annex'!$K$1:$AN$1,0)),\"\")","v":1.75057661E-2},{"$f":"IFERROR(INDEX('Data Annex'!$K$1:$AN$4997,MATCH(V$44&\"|\"&$B56,'Data Annex'!$K$1:$K$4997,0),MATCH(V$45,'Data Annex'!$K$1:$AN$1,0)),\"\")","v":2.8018075100000001E-2},"T12_1","T12_1"]
[null,"EE",null,"EE",{"$f":"IFERROR(INDEX('Data Annex'!$K$1:$AN$4997,MATCH(E$44&\"|\"&$B57,'Data Annex'!$K$1:$K$4997,0),MATCH(E$45,'Data Annex'!$K$1:$AN$1,0)),\"\")","v":0},{"$f":"IFERROR(INDEX('Data Annex'!$K$1:$AN$4997,MATCH(F$44&\"|\"&$B57,'Data Annex'!$K$1:$K$4997,0),MATCH(F$45,'Data Annex'!$K$1:$AN$1,0)),\"\")","v":0},{"$f":"IFERROR(INDEX('Data Annex'!$K$1:$AN$4997,MATCH(G$44&\"|\"&$B57,'Data Annex'!$K$1:$K$4997,0),MATCH(G$45,'Data Annex'!$K$1:$AN$1,0)),\"\")","v":9.7789709999999992E-3},{"$f":"IFERROR(INDEX('Data Annex'!$K$1:$AN$4997,MATCH(H$44&\"|\"&$B57,'Data Annex'!$K$1:$K$4997,0),MATCH(H$45,'Data Annex'!$K$1:$AN$1,0)),\"\")","v":1.05778312E-2},{"$f":"IFERROR(INDEX('Data Annex'!$K$1:$AN$4997,MATCH(I$44&\"|\"&$B57,'Data Annex'!$K$1:$K$4997,0),MATCH(I$45,'Data Annex'!$K$1:$AN$1,0)),\"\")","v":9.6475173999999997E-2},{"$f":"IFERROR(INDEX('Data Annex'!$K$1:$AN$4997,MATCH(J$44&\"|\"&$B57,'Data Annex'!$K$1:$K$4997,0),MATCH(J$45,'Data Annex'!$K$1:$AN$1,0)),\"\")","v":2.3887728000000002E-3},{"$f":"IFERROR(INDEX('Data Annex'!$K$1:$AN$4997,MATCH(K$44&\"|\"&$B57,'Data Annex'!$K$1:$K$4997,0),MATCH(K$45,'Data Annex'!$K$1:$AN$1,0)),\"\")","v":5.1047898000000001E-2},{"$f":"IFERROR(INDEX('Data Annex'!$K$1:$AN$4997,MATCH(L$44&\"|\"&$B57,'Data Annex'!$K$1:$K$4997,0),MATCH(L$45,'Data Annex'!$K$1:$AN$1,0)),\"\")","v":5.7849879600000001E-2},{"$f":"IFERROR(INDEX('Data Annex'!$K$1:$AN$4997,MATCH(M$44&\"|\"&$B57,'Data Annex'!$K$1:$K$4997,0),MATCH(M$45,'Data Annex'!$K$1:$AN$1,0)),\"\")","v":0},{"$f":"IFERROR(INDEX('Data Annex'!$K$1:$AN$4997,MATCH(N$44&\"|\"&$B57,'Data Annex'!$K$1:$K$4997,0),MATCH(N$45,'Data Annex'!$K$1:$AN$1,0)),\"\")","v":0},{"$f":"IFERROR(INDEX('Data Annex'!$K$1:$AN$4997,MATCH(O$44&\"|\"&$B57,'Data Annex'!$K$1:$K$4997,0),MATCH(O$45,'Data Annex'!$K$1:$AN$1,0)),\"\")","v":1.1880902699999999E-2},{"$f":"IFERROR(INDEX('Data Annex'!$K$1:$AN$4997,MATCH(P$44&\"|\"&$B57,'Data Annex'!$K$1:$K$4997,0),MATCH(P$45,'Data Annex'!$K$1:$AN$1,0)),\"\")","v":9.2446053999999996E-3},{"$f":"IFERROR(INDEX('Data Annex'!$K$1:$AN$4997,MATCH(Q$44&\"|\"&$B57,'Data Annex'!$K$1:$K$4997,0),MATCH(Q$45,'Data Annex'!$K$1:$AN$1,0)),\"\")","v":3.7036942199999999E-2},{"$f":"IFERROR(INDEX('Data Annex'!$K$1:$AN$4997,MATCH(R$44&\"|\"&$B57,'Data Annex'!$K$1:$K$4997,0),MATCH(R$45,'Data Annex'!$K$1:$AN$1,0)),\"\")","v":2.25593363E-2},{"$f":"IFERROR(INDEX('Data Annex'!$K$1:$AN$4997,MATCH(S$44&\"|\"&$B57,'Data Annex'!$K$1:$K$4997,0),MATCH(S$45,'Data Annex'!$K$1:$AN$1,0)),\"\")","v":4.35816906E-2},{"$f":"IFERROR(INDEX('Data Annex'!$K$1:$AN$4997,MATCH(T$44&\"|\"&$B57,'Data Annex'!$K$1:$K$4997,0),MATCH(T$45,'Data Annex'!$K$1:$AN$1,0)),\"\")","v":4.7329176299999998E-2},{"$f":"IFERROR(INDEX('Data Annex'!$K$1:$AN$4997,MATCH(U$44&\"|\"&$B57,'Data Annex'!$K$1:$K$4997,0),MATCH(U$45,'Data Annex'!$K$1:$AN$1,0)),\"\")","v":7.5525690999999999E-3},{"$f":"IFERROR(INDEX('Data Annex'!$K$1:$AN$4997,MATCH(V$44&\"|\"&$B57,'Data Annex'!$K$1:$K$4997,0),MATCH(V$45,'Data Annex'!$K$1:$AN$1,0)),\"\")","v":1.48076215E-2},"T12_1","T12_1"]
[null,"ES",null,"ES",{"$f":"IFERROR(INDEX('Data Annex'!$K$1:$AN$4997,MATCH(E$44&\"|\"&$B58,'Data Annex'!$K$1:$K$4997,0),MATCH(E$45,'Data Annex'!$K$1:$AN$1,0)),\"\")","v":2.6902989499999998E-2},{"$f":"IFERROR(INDEX('Data Annex'!$K$1:$AN$4997,MATCH(F$44&\"|\"&$B58,'Data Annex'!$K$1:$K$4997,0),MATCH(F$45,'Data Annex'!$K$1:$AN$1,0)),\"\")","v":2.3979907299999999E-2},{"$f":"IFERROR(INDEX('Data Annex'!$K$1:$AN$4997,MATCH(G$44&\"|\"&$B58,'Data Annex'!$K$1:$K$4997,0),MATCH(G$45,'Data Annex'!$K$1:$AN$1,0)),\"\")","v":3.2895837400000003E-2},{"$f":"IFERROR(INDEX('Data Annex'!$K$1:$AN$4997,MATCH(H$44&\"|\"&$B58,'Data Annex'!$K$1:$K$4997,0),MATCH(H$45,'Data Annex'!$K$1:$AN$1,0)),\"\")","v":3.7378692499999998E-2},{"$f":"IFERROR(INDEX('Data Annex'!$K$1:$AN$4997,MATCH(I$44&\"|\"&$B58,'Data Annex'!$K$1:$K$4997,0),MATCH(I$45,'Data Annex'!$K$1:$AN$1,0)),\"\")","v":4.7053353899999997E-2},{"$f":"IFERROR(INDEX('Data Annex'!$K$1:$AN$4997,MATCH(J$44&\"|\"&$B58,'Data Annex'!$K$1:$K$4997,0),MATCH(J$45,'Data Annex'!$K$1:$AN$1,0)),\"\")","v":7.6621539500000002E-2},{"$f":"IFERROR(INDEX('Data Annex'!$K$1:$AN$4997,MATCH(K$44&\"|\"&$B58,'Data Annex'!$K$1:$K$4997,0),MATCH(K$45,'Data Annex'!$K$1:$AN$1,0)),\"\")","v":3.5565830800000003E-2},{"$f":"IFERROR(INDEX('Data Annex'!$K$1:$AN$4997,MATCH(L$44&\"|\"&$B58,'Data Annex'!$K$1:$K$4997,0),MATCH(L$45,'Data Annex'!$K$1:$AN$1,0)),\"\")","v":3.7306329899999997E-2},{"$f":"IFERROR(INDEX('Data Annex'!$K$1:$AN$4997,MATCH(M$44&\"|\"&$B58,'Data Annex'!$K$1:$K$4997,0),MATCH(M$45,'Data Annex'!$K$1:$AN$1,0)),\"\")","v":6.4536791E-3},{"$f":"IFERROR(INDEX('Data Annex'!$K$1:$AN$4997,MATCH(N$44&\"|\"&$B58,'Data Annex'!$K$1:$K$4997,0),MATCH(N$45,'Data Annex'!$K$1:$AN$1,0)),\"\")","v":6.1275859000000004E-3},{"$f":"IFERROR(INDEX('Data Annex'!$K$1:$AN$4997,MATCH(O$44&\"|\"&$B58,'Data Annex'!$K$1:$K$4997,0),MATCH(O$45,'Data Annex'!$K$1:$AN$1,0)),\"\")","v":5.8974038899999998E-2},{"$f":"IFERROR(INDEX('Data Annex'!$K$1:$AN$4997,MATCH(P$44&\"|\"&$B58,'Data Annex'!$K$1:$K$4997,0),MATCH(P$45,'Data Annex'!$K$1:$AN$1,0)),\"\")","v":5.8615869700000003E-2},{"$f":"IFERROR(INDEX('Data Annex'!$K$1:$AN$4997,MATCH(Q$44&\"|\"&$B58,'Data Annex'!$K$1:$K$4997,0),MATCH(Q$45,'Data Annex'!$K$1:$AN$1,0)),\"\")","v":5.1016950399999997E-2},{"$f":"IFERROR(INDEX('Data Annex'!$K$1:$AN$4997,MATCH(R$44&\"|\"&$B58,'Data Annex'!$K$1:$K$4997,0),MATCH(R$45,'Data Annex'!$K$1:$AN$1,0)),\"\")","v":5.6610461399999999E-2},{"$f":"IFERROR(INDEX('Data Annex'!$K$1:$AN$4997,MATCH(S$44&\"|\"&$B58,'Data Annex'!$K$1:$K$4997,0),MATCH(S$45,'Data Annex'!$K$1:$AN$1,0)),\"\")","v":5.3892308299999997E-2},{"$f":"IFERROR(INDEX('Data Annex'!$K$1:$AN$4997,MATCH(T$44&\"|\"&$B58,'Data Annex'!$K$1:$K$4997,0),MATCH(T$45,'Data Annex'!$K$1:$AN$1,0)),\"\")","v":5.93974133E-2},{"$f":"IFERROR(INDEX('Data Annex'!$K$1:$AN$4997,MATCH(U$44&\"|\"&$B58,'Data Annex'!$K$1:$K$4997,0),MATCH(U$45,'Data Annex'!$K$1:$AN$1,0)),\"\")","v":3.3076372700000002E-2},{"$f":"IFERROR(INDEX('Data Annex'!$K$1:$AN$4997,MATCH(V$44&\"|\"&$B58,'Data Annex'!$K$1:$K$4997,0),MATCH(V$45,'Data Annex'!$K$1:$AN$1,0)),\"\")","v":3.5446542900000003E-2},"T12_1","T12_1"]
[null,"FI",null,"FI",{"$f":"IFERROR(INDEX('Data Annex'!$K$1:$AN$4997,MATCH(E$44&\"|\"&$B59,'Data Annex'!$K$1:$K$4997,0),MATCH(E$45,'Data Annex'!$K$1:$AN$1,0)),\"\")","v":5.4818999E-3},{"$f":"IFERROR(INDEX('Data Annex'!$K$1:$AN$4997,MATCH(F$44&\"|\"&$B59,'Data Annex'!$K$1:$K$4997,0),MATCH(F$45,'Data Annex'!$K$1:$AN$1,0)),\"\")","v":5.2506679000000004E-3},{"$f":"IFERROR(INDEX('Data Annex'!$K$1:$AN$4997,MATCH(G$44&\"|\"&$B59,'Data Annex'!$K$1:$K$4997,0),MATCH(G$45,'Data Annex'!$K$1:$AN$1,0)),\"\")","v":7.5783318999999997E-3},{"$f":"IFERROR(INDEX('Data Annex'!$K$1:$AN$4997,MATCH(H$44&\"|\"&$B59,'Data Annex'!$K$1:$K$4997,0),MATCH(H$45,'Data Annex'!$K$1:$AN$1,0)),\"\")","v":8.7236251000000001E-3},{"$f":"IFERROR(INDEX('Data Annex'!$K$1:$AN$4997,MATCH(I$44&\"|\"&$B59,'Data Annex'!$K$1:$K$4997,0),MATCH(I$45,'Data Annex'!$K$1:$AN$1,0)),\"\")","v":1.45137878E-2},{"$f":"IFERROR(INDEX('Data Annex'!$K$1:$AN$4997,MATCH(J$44&\"|\"&$B59,'Data Annex'!$K$1:$K$4997,0),MATCH(J$45,'Data Annex'!$K$1:$AN$1,0)),\"\")","v":1.52135919E-2},{"$f":"IFERROR(INDEX('Data Annex'!$K$1:$AN$4997,MATCH(K$44&\"|\"&$B59,'Data Annex'!$K$1:$K$4997,0),MATCH(K$45,'Data Annex'!$K$1:$AN$1,0)),\"\")","v":7.8923646E-3},{"$f":"IFERROR(INDEX('Data Annex'!$K$1:$AN$4997,MATCH(L$44&\"|\"&$B59,'Data Annex'!$K$1:$K$4997,0),MATCH(L$45,'Data Annex'!$K$1:$AN$1,0)),\"\")","v":1.0937998799999999E-2},{"$f":"IFERROR(INDEX('Data Annex'!$K$1:$AN$4997,MATCH(M$44&\"|\"&$B59,'Data Annex'!$K$1:$K$4997,0),MATCH(M$45,'Data Annex'!$K$1:$AN$1,0)),\"\")","v":0},{"$f":"IFERROR(INDEX('Data Annex'!$K$1:$AN$4997,MATCH(N$44&\"|\"&$B59,'Data Annex'!$K$1:$K$4997,0),MATCH(N$45,'Data Annex'!$K$1:$AN$1,0)),\"\")","v":0},{"$f":"IFERROR(INDEX('Data Annex'!$K$1:$AN$4997,MATCH(O$44&\"|\"&$B59,'Data Annex'!$K$1:$K$4997,0),MATCH(O$45,'Data Annex'!$K$1:$AN$1,0)),\"\")","v":1.1608317199999999E-2},{"$f":"IFERROR(INDEX('Data Annex'!$K$1:$AN$4997,MATCH(P$44&\"|\"&$B59,'Data Annex'!$K$1:$K$4997,0),MATCH(P$45,'Data Annex'!$K$1:$AN$1,0)),\"\")","v":9.3201025E-3},{"$f":"IFERROR(INDEX('Data Annex'!$K$1:$AN$4997,MATCH(Q$44&\"|\"&$B59,'Data Annex'!$K$1:$K$4997,0),MATCH(Q$45,'Data Annex'!$K$1:$AN$1,0)),\"\")","v":3.13201637E-2},{"$f":"IFERROR(INDEX('Data Annex'!$K$1:$AN$4997,MATCH(R$44&\"|\"&$B59,'Data Annex'!$K$1:$K$4997,0),MATCH(R$45,'Data Annex'!$K$1:$AN$1,0)),\"\")","v":2.7292670099999999E-2},{"$f":"IFERROR(INDEX('Data Annex'!$K$1:$AN$4997,MATCH(S$44&\"|\"&$B59,'Data Annex'!$K$1:$K$4997,0),MATCH(S$45,'Data Annex'!$K$1:$AN$1,0)),\"\")","v":4.22606045E-2},{"$f":"IFERROR(INDEX('Data Annex'!$K$1:$AN$4997,MATCH(T$44&\"|\"&$B59,'Data Annex'!$K$1:$K$4997,0),MATCH(T$45,'Data Annex'!$K$1:$AN$1,0)),\"\")","v":3.4959793500000003E-2},{"$f":"IFERROR(INDEX('Data Annex'!$K$1:$AN$4997,MATCH(U$44&\"|\"&$B59,'Data Annex'!$K$1:$K$4997,0),MATCH(U$45,'Data Annex'!$K$1:$AN$1,0)),\"\")","v":6.0511875000000001E-3},{"$f":"IFERROR(INDEX('Data Annex'!$K$1:$AN$4997,MATCH(V$44&\"|\"&$B59,'Data Annex'!$K$1:$K$4997,0),MATCH(V$45,'Data Annex'!$K$1:$AN$1,0)),\"\")","v":3.4146700999999999E-3},"T12_1","T12_1"]
[null,"FR",null,"FR",{"$f":"IFERROR(INDEX('Data Annex'!$K$1:$AN$4997,MATCH(E$44&\"|\"&$B60,'Data Annex'!$K$1:$K$4997,0),MATCH(E$45,'Data Annex'!$K$1:$AN$1,0)),\"\")","v":3.4964287400000002E-2},{"$f":"IFERROR(INDEX('Data Annex'!$K$1:$AN$4997,MATCH(F$44&\"|\"&$B60,'Data Annex'!$K$1:$K$4997,0),MATCH(F$45,'Data Annex'!$K$1:$AN$1,0)),\"\")","v":2.6623631500000002E-2},{"$f":"IFERROR(INDEX('Data Annex'!$K$1:$AN$4997,MATCH(G$44&\"|\"&$B60,'Data Annex'!$K$1:$K$4997,0),MATCH(G$45,'Data Annex'!$K$1:$AN$1,0)),\"\")","v":2.4344199399999999E-2},{"$f":"IFERROR(INDEX('Data Annex'!$K$1:$AN$4997,MATCH(H$44&\"|\"&$B60,'Data Annex'!$K$1:$K$4997,0),MATCH(H$45,'Data Annex'!$K$1:$AN$1,0)),\"\")","v":2.3967351200000001E-2},{"$f":"IFERROR(INDEX('Data Annex'!$K$1:$AN$4997,MATCH(I$44&\"|\"&$B60,'Data Annex'!$K$1:$K$4997,0),MATCH(I$45,'Data Annex'!$K$1:$AN$1,0)),\"\")","v":4.0634002400000001E-2},{"$f":"IFERROR(INDEX('Data Annex'!$K$1:$AN$4997,MATCH(J$44&\"|\"&$B60,'Data Annex'!$K$1:$K$4997,0),MATCH(J$45,'Data Annex'!$K$1:$AN$1,0)),\"\")","v":3.9817821400000002E-2},{"$f":"IFERROR(INDEX('Data Annex'!$K$1:$AN$4997,MATCH(K$44&\"|\"&$B60,'Data Annex'!$K$1:$K$4997,0),MATCH(K$45,'Data Annex'!$K$1:$AN$1,0)),\"\")","v":2.6697433699999999E-2},{"$f":"IFERROR(INDEX('Data Annex'!$K$1:$AN$4997,MATCH(L$44&\"|\"&$B60,'Data Annex'!$K$1:$K$4997,0),MATCH(L$45,'Data Annex'!$K$1:$AN$1,0)),\"\")","v":2.6757916100000001E-2},{"$f":"IFERROR(INDEX('Data Annex'!$K$1:$AN$4997,MATCH(M$44&\"|\"&$B60,'Data Annex'!$K$1:$K$4997,0),MATCH(M$45,'Data Annex'!$K$1:$AN$1,0)),\"\")","v":2.2308919600000001E-2},{"$f":"IFERROR(INDEX('Data Annex'!$K$1:$AN$4997,MATCH(N$44&\"|\"&$B60,'Data Annex'!$K$1:$K$4997,0),MATCH(N$45,'Data Annex'!$K$1:$AN$1,0)),\"\")","v":2.9613641699999999E-2},{"$f":"IFERROR(INDEX('Data Annex'!$K$1:$AN$4997,MATCH(O$44&\"|\"&$B60,'Data Annex'!$K$1:$K$4997,0),MATCH(O$45,'Data Annex'!$K$1:$AN$1,0)),\"\")","v":3.2965822499999999E-2},{"$f":"IFERROR(INDEX('Data Annex'!$K$1:$AN$4997,MATCH(P$44&\"|\"&$B60,'Data Annex'!$K$1:$K$4997,0),MATCH(P$45,'Data Annex'!$K$1:$AN$1,0)),\"\")","v":3.3463330299999997E-2},{"$f":"IFERROR(INDEX('Data Annex'!$K$1:$AN$4997,MATCH(Q$44&\"|\"&$B60,'Data Annex'!$K$1:$K$4997,0),MATCH(Q$45,'Data Annex'!$K$1:$AN$1,0)),\"\")","v":2.4682063300000001E-2},{"$f":"IFERROR(INDEX('Data Annex'!$K$1:$AN$4997,MATCH(R$44&\"|\"&$B60,'Data Annex'!$K$1:$K$4997,0),MATCH(R$45,'Data Annex'!$K$1:$AN$1,0)),\"\")","v":2.2133762099999999E-2},{"$f":"IFERROR(INDEX('Data Annex'!$K$1:$AN$4997,MATCH(S$44&\"|\"&$B60,'Data Annex'!$K$1:$K$4997,0),MATCH(S$45,'Data Annex'!$K$1:$AN$1,0)),\"\")","v":4.2806678600000002E-2},{"$f":"IFERROR(INDEX('Data Annex'!$K$1:$AN$4997,MATCH(T$44&\"|\"&$B60,'Data Annex'!$K$1:$K$4997,0),MATCH(T$45,'Data Annex'!$K$1:$AN$1,0)),\"\")","v":4.7151171899999997E-2},{"$f":"IFERROR(INDEX('Data Annex'!$K$1:$AN$4997,MATCH(U$44&\"|\"&$B60,'Data Annex'!$K$1:$K$4997,0),MATCH(U$45,'Data Annex'!$K$1:$AN$1,0)),\"\")","v":3.0943566299999999E-2},{"$f":"IFERROR(INDEX('Data Annex'!$K$1:$AN$4997,MATCH(V$44&\"|\"&$B60,'Data Annex'!$K$1:$K$4997,0),MATCH(V$45,'Data Annex'!$K$1:$AN$1,0)),\"\")","v":2.9970873499999998E-2},"T12_1","T12_1"]
[null,"GR",null,"GR",{"$f":"IFERROR(INDEX('Data Annex'!$K$1:$AN$4997,MATCH(E$44&\"|\"&$B61,'Data Annex'!$K$1:$K$4997,0),MATCH(E$45,'Data Annex'!$K$1:$AN$1,0)),\"\")","v":0.37309629640000003},{"$f":"IFERROR(INDEX('Data Annex'!$K$1:$AN$4997,MATCH(F$44&\"|\"&$B61,'Data Annex'!$K$1:$K$4997,0),MATCH(F$45,'Data Annex'!$K$1:$AN$1,0)),\"\")","v":0.35733442300000001},{"$f":"IFERROR(INDEX('Data Annex'!$K$1:$AN$4997,MATCH(G$44&\"|\"&$B61,'Data Annex'!$K$1:$K$4997,0),MATCH(G$45,'Data Annex'!$K$1:$AN$1,0)),\"\")","v":0.30529867859999998},{"$f":"IFERROR(INDEX('Data Annex'!$K$1:$AN$4997,MATCH(H$44&\"|\"&$B61,'Data Annex'!$K$1:$K$4997,0),MATCH(H$45,'Data Annex'!$K$1:$AN$1,0)),\"\")","v":0.3059650451},{"$f":"IFERROR(INDEX('Data Annex'!$K$1:$AN$4997,MATCH(I$44&\"|\"&$B61,'Data Annex'!$K$1:$K$4997,0),MATCH(I$45,'Data Annex'!$K$1:$AN$1,0)),\"\")","v":0.40105741080000001},{"$f":"IFERROR(INDEX('Data Annex'!$K$1:$AN$4997,MATCH(J$44&\"|\"&$B61,'Data Annex'!$K$1:$K$4997,0),MATCH(J$45,'Data Annex'!$K$1:$AN$1,0)),\"\")","v":0.37148855060000002},{"$f":"IFERROR(INDEX('Data Annex'!$K$1:$AN$4997,MATCH(K$44&\"|\"&$B61,'Data Annex'!$K$1:$K$4997,0),MATCH(K$45,'Data Annex'!$K$1:$AN$1,0)),\"\")","v":0.2287011159},{"$f":"IFERROR(INDEX('Data Annex'!$K$1:$AN$4997,MATCH(L$44&\"|\"&$B61,'Data Annex'!$K$1:$K$4997,0),MATCH(L$45,'Data Annex'!$K$1:$AN$1,0)),\"\")","v":0.2496138648},{"$f":"IFERROR(INDEX('Data Annex'!$K$1:$AN$4997,MATCH(M$44&\"|\"&$B61,'Data Annex'!$K$1:$K$4997,0),MATCH(M$45,'Data Annex'!$K$1:$AN$1,0)),\"\")","v":0.35213834989999998},{"$f":"IFERROR(INDEX('Data Annex'!$K$1:$AN$4997,MATCH(N$44&\"|\"&$B61,'Data Annex'!$K$1:$K$4997,0),MATCH(N$45,'Data Annex'!$K$1:$AN$1,0)),\"\")","v":0.3017315076},{"$f":"IFERROR(INDEX('Data Annex'!$K$1:$AN$4997,MATCH(O$44&\"|\"&$B61,'Data Annex'!$K$1:$K$4997,0),MATCH(O$45,'Data Annex'!$K$1:$AN$1,0)),\"\")","v":0.46711507250000001},{"$f":"IFERROR(INDEX('Data Annex'!$K$1:$AN$4997,MATCH(P$44&\"|\"&$B61,'Data Annex'!$K$1:$K$4997,0),MATCH(P$45,'Data Annex'!$K$1:$AN$1,0)),\"\")","v":0.50899009719999999},{"$f":"IFERROR(INDEX('Data Annex'!$K$1:$AN$4997,MATCH(Q$44&\"|\"&$B61,'Data Annex'!$K$1:$K$4997,0),MATCH(Q$45,'Data Annex'!$K$1:$AN$1,0)),\"\")","v":0.28319944530000002},{"$f":"IFERROR(INDEX('Data Annex'!$K$1:$AN$4997,MATCH(R$44&\"|\"&$B61,'Data Annex'!$K$1:$K$4997,0),MATCH(R$45,'Data Annex'!$K$1:$AN$1,0)),\"\")","v":0.24428917159999999},{"$f":"IFERROR(INDEX('Data Annex'!$K$1:$AN$4997,MATCH(S$44&\"|\"&$B61,'Data Annex'!$K$1:$K$4997,0),MATCH(S$45,'Data Annex'!$K$1:$AN$1,0)),\"\")","v":0.21893235599999999},{"$f":"IFERROR(INDEX('Data Annex'!$K$1:$AN$4997,MATCH(T$44&\"|\"&$B61,'Data Annex'!$K$1:$K$4997,0),MATCH(T$45,'Data Annex'!$K$1:$AN$1,0)),\"\")","v":0.22487428649999999},{"$f":"IFERROR(INDEX('Data Annex'!$K$1:$AN$4997,MATCH(U$44&\"|\"&$B61,'Data Annex'!$K$1:$K$4997,0),MATCH(U$45,'Data Annex'!$K$1:$AN$1,0)),\"\")","v":0.34847263290000002},{"$f":"IFERROR(INDEX('Data Annex'!$K$1:$AN$4997,MATCH(V$44&\"|\"&$B61,'Data Annex'!$K$1:$K$4997,0),MATCH(V$45,'Data Annex'!$K$1:$AN$1,0)),\"\")","v":0.29193814829999998},"T12_1","T12_1"]
[null,"HR",null,"HR",{"$f":"IFERROR(INDEX('Data Annex'!$K$1:$AN$4997,MATCH(E$44&\"|\"&$B62,'Data Annex'!$K$1:$K$4997,0),MATCH(E$45,'Data Annex'!$K$1:$AN$1,0)),\"\")","v":0.77029055130000001},{"$f":"IFERROR(INDEX('Data Annex'!$K$1:$AN$4997,MATCH(F$44&\"|\"&$B62,'Data Annex'!$K$1:$K$4997,0),MATCH(F$45,'Data Annex'!$K$1:$AN$1,0)),\"\")","v":0.77179671800000005},{"$f":"IFERROR(INDEX('Data Annex'!$K$1:$AN$4997,MATCH(G$44&\"|\"&$B62,'Data Annex'!$K$1:$K$4997,0),MATCH(G$45,'Data Annex'!$K$1:$AN$1,0)),\"\")","v":0.12727653950000001},{"$f":"IFERROR(INDEX('Data Annex'!$K$1:$AN$4997,MATCH(H$44&\"|\"&$B62,'Data Annex'!$K$1:$K$4997,0),MATCH(H$45,'Data Annex'!$K$1:$AN$1,0)),\"\")","v":5.3442024499999997E-2},{"$f":"IFERROR(INDEX('Data Annex'!$K$1:$AN$4997,MATCH(I$44&\"|\"&$B62,'Data Annex'!$K$1:$K$4997,0),MATCH(I$45,'Data Annex'!$K$1:$AN$1,0)),\"\")","v":5.0209399299999999E-2},{"$f":"IFERROR(INDEX('Data Annex'!$K$1:$AN$4997,MATCH(J$44&\"|\"&$B62,'Data Annex'!$K$1:$K$4997,0),MATCH(J$45,'Data Annex'!$K$1:$AN$1,0)),\"\")","v":5.4219222599999999E-2},{"$f":"IFERROR(INDEX('Data Annex'!$K$1:$AN$4997,MATCH(K$44&\"|\"&$B62,'Data Annex'!$K$1:$K$4997,0),MATCH(K$45,'Data Annex'!$K$1:$AN$1,0)),\"\")","v":0.15200458250000001},{"$f":"IFERROR(INDEX('Data Annex'!$K$1:$AN$4997,MATCH(L$44&\"|\"&$B62,'Data Annex'!$K$1:$K$4997,0),MATCH(L$45,'Data Annex'!$K$1:$AN$1,0)),\"\")","v":0.17650969859999999},{"$f":"IFERROR(INDEX('Data Annex'!$K$1:$AN$4997,MATCH(M$44&\"|\"&$B62,'Data Annex'!$K$1:$K$4997,0),MATCH(M$45,'Data Annex'!$K$1:$AN$1,0)),\"\")","v":2.8254863000000001E-7},{"$f":"IFERROR(INDEX('Data Annex'!$K$1:$AN$4997,MATCH(N$44&\"|\"&$B62,'Data Annex'!$K$1:$K$4997,0),MATCH(N$45,'Data Annex'!$K$1:$AN$1,0)),\"\")","v":2.9107223000000001E-7},{"$f":"IFERROR(INDEX('Data Annex'!$K$1:$AN$4997,MATCH(O$44&\"|\"&$B62,'Data Annex'!$K$1:$K$4997,0),MATCH(O$45,'Data Annex'!$K$1:$AN$1,0)),\"\")","v":0.13721756630000001},{"$f":"IFERROR(INDEX('Data Annex'!$K$1:$AN$4997,MATCH(P$44&\"|\"&$B62,'Data Annex'!$K$1:$K$4997,0),MATCH(P$45,'Data Annex'!$K$1:$AN$1,0)),\"\")","v":0.14595090499999999},{"$f":"IFERROR(INDEX('Data Annex'!$K$1:$AN$4997,MATCH(Q$44&\"|\"&$B62,'Data Annex'!$K$1:$K$4997,0),MATCH(Q$45,'Data Annex'!$K$1:$AN$1,0)),\"\")","v":9.5924671E-3},{"$f":"IFERROR(INDEX('Data Annex'!$K$1:$AN$4997,MATCH(R$44&\"|\"&$B62,'Data Annex'!$K$1:$K$4997,0),MATCH(R$45,'Data Annex'!$K$1:$AN$1,0)),\"\")","v":1.04086318E-2},{"$f":"IFERROR(INDEX('Data Annex'!$K$1:$AN$4997,MATCH(S$44&\"|\"&$B62,'Data Annex'!$K$1:$K$4997,0),MATCH(S$45,'Data Annex'!$K$1:$AN$1,0)),\"\")","v":7.1346242300000001E-2},{"$f":"IFERROR(INDEX('Data Annex'!$K$1:$AN$4997,MATCH(T$44&\"|\"&$B62,'Data Annex'!$K$1:$K$4997,0),MATCH(T$45,'Data Annex'!$K$1:$AN$1,0)),\"\")","v":8.5250310999999995E-2},{"$f":"IFERROR(INDEX('Data Annex'!$K$1:$AN$4997,MATCH(U$44&\"|\"&$B62,'Data Annex'!$K$1:$K$4997,0),MATCH(U$45,'Data Annex'!$K$1:$AN$1,0)),\"\")","v":0.11997573960000001},{"$f":"IFERROR(INDEX('Data Annex'!$K$1:$AN$4997,MATCH(V$44&\"|\"&$B62,'Data Annex'!$K$1:$K$4997,0),MATCH(V$45,'Data Annex'!$K$1:$AN$1,0)),\"\")","v":0.1142251158},"T12_1","T12_1"]
[null,"HU",null,"HU",{"$f":"IFERROR(INDEX('Data Annex'!$K$1:$AN$4997,MATCH(E$44&\"|\"&$B63,'Data Annex'!$K$1:$K$4997,0),MATCH(E$45,'Data Annex'!$K$1:$AN$1,0)),\"\")","v":6.5798135899999999E-2},{"$f":"IFERROR(INDEX('Data Annex'!$K$1:$AN$4997,MATCH(F$44&\"|\"&$B63,'Data Annex'!$K$1:$K$4997,0),MATCH(F$45,'Data Annex'!$K$1:$AN$1,0)),\"\")","v":7.0878400600000002E-2},{"$f":"IFERROR(INDEX('Data Annex'!$K$1:$AN$4997,MATCH(G$44&\"|\"&$B63,'Data Annex'!$K$1:$K$4997,0),MATCH(G$45,'Data Annex'!$K$1:$AN$1,0)),\"\")","v":3.1524922900000002E-2},{"$f":"IFERROR(INDEX('Data Annex'!$K$1:$AN$4997,MATCH(H$44&\"|\"&$B63,'Data Annex'!$K$1:$K$4997,0),MATCH(H$45,'Data Annex'!$K$1:$AN$1,0)),\"\")","v":2.2776169400000001E-2},{"$f":"IFERROR(INDEX('Data Annex'!$K$1:$AN$4997,MATCH(I$44&\"|\"&$B63,'Data Annex'!$K$1:$K$4997,0),MATCH(I$45,'Data Annex'!$K$1:$AN$1,0)),\"\")","v":3.6170034199999999E-2},{"$f":"IFERROR(INDEX('Data Annex'!$K$1:$AN$4997,MATCH(J$44&\"|\"&$B63,'Data Annex'!$K$1:$K$4997,0),MATCH(J$45,'Data Annex'!$K$1:$AN$1,0)),\"\")","v":3.4640337399999999E-2},{"$f":"IFERROR(INDEX('Data Annex'!$K$1:$AN$4997,MATCH(K$44&\"|\"&$B63,'Data Annex'!$K$1:$K$4997,0),MATCH(K$45,'Data Annex'!$K$1:$AN$1,0)),\"\")","v":2.4566442099999999E-2},{"$f":"IFERROR(INDEX('Data Annex'!$K$1:$AN$4997,MATCH(L$44&\"|\"&$B63,'Data Annex'!$K$1:$K$4997,0),MATCH(L$45,'Data Annex'!$K$1:$AN$1,0)),\"\")","v":2.94559431E-2},{"$f":"IFERROR(INDEX('Data Annex'!$K$1:$AN$4997,MATCH(M$44&\"|\"&$B63,'Data Annex'!$K$1:$K$4997,0),MATCH(M$45,'Data Annex'!$K$1:$AN$1,0)),\"\")","v":1.4495296499999999E-2},{"$f":"IFERROR(INDEX('Data Annex'!$K$1:$AN$4997,MATCH(N$44&\"|\"&$B63,'Data Annex'!$K$1:$K$4997,0),MATCH(N$45,'Data Annex'!$K$1:$AN$1,0)),\"\")","v":1.16948669E-2},{"$f":"IFERROR(INDEX('Data Annex'!$K$1:$AN$4997,MATCH(O$44&\"|\"&$B63,'Data Annex'!$K$1:$K$4997,0),MATCH(O$45,'Data Annex'!$K$1:$AN$1,0)),\"\")","v":1.2940038500000001E-2},{"$f":"IFERROR(INDEX('Data Annex'!$K$1:$AN$4997,MATCH(P$44&\"|\"&$B63,'Data Annex'!$K$1:$K$4997,0),MATCH(P$45,'Data Annex'!$K$1:$AN$1,0)),\"\")","v":1.32435625E-2},{"$f":"IFERROR(INDEX('Data Annex'!$K$1:$AN$4997,MATCH(Q$44&\"|\"&$B63,'Data Annex'!$K$1:$K$4997,0),MATCH(Q$45,'Data Annex'!$K$1:$AN$1,0)),\"\")","v":3.1127334100000001E-2},{"$f":"IFERROR(INDEX('Data Annex'!$K$1:$AN$4997,MATCH(R$44&\"|\"&$B63,'Data Annex'!$K$1:$K$4997,0),MATCH(R$45,'Data Annex'!$K$1:$AN$1,0)),\"\")","v":2.8605993400000002E-2},{"$f":"IFERROR(INDEX('Data Annex'!$K$1:$AN$4997,MATCH(S$44&\"|\"&$B63,'Data Annex'!$K$1:$K$4997,0),MATCH(S$45,'Data Annex'!$K$1:$AN$1,0)),\"\")","v":2.7501323099999999E-2},{"$f":"IFERROR(INDEX('Data Annex'!$K$1:$AN$4997,MATCH(T$44&\"|\"&$B63,'Data Annex'!$K$1:$K$4997,0),MATCH(T$45,'Data Annex'!$K$1:$AN$1,0)),\"\")","v":2.4123053200000001E-2},{"$f":"IFERROR(INDEX('Data Annex'!$K$1:$AN$4997,MATCH(U$44&\"|\"&$B63,'Data Annex'!$K$1:$K$4997,0),MATCH(U$45,'Data Annex'!$K$1:$AN$1,0)),\"\")","v":0.13173661950000001},{"$f":"IFERROR(INDEX('Data Annex'!$K$1:$AN$4997,MATCH(V$44&\"|\"&$B63,'Data Annex'!$K$1:$K$4997,0),MATCH(V$45,'Data Annex'!$K$1:$AN$1,0)),\"\")","v":0.15960505659999999},"T12_1","T12_1"]
[null,"IE",null,"IE",{"$f":"IFERROR(INDEX('Data Annex'!$K$1:$AN$4997,MATCH(E$44&\"|\"&$B64,'Data Annex'!$K$1:$K$4997,0),MATCH(E$45,'Data Annex'!$K$1:$AN$1,0)),\"\")","v":8.0870460000000003E-4},{"$f":"IFERROR(INDEX('Data Annex'!$K$1:$AN$4997,MATCH(F$44&\"|\"&$B64,'Data Annex'!$K$1:$K$4997,0),MATCH(F$45,'Data Annex'!$K$1:$AN$1,0)),\"\")","v":8.8168741999999998E-3},{"$f":"IFERROR(INDEX('Data Annex'!$K$1:$AN$4997,MATCH(G$44&\"|\"&$B64,'Data Annex'!$K$1:$K$4997,0),MATCH(G$45,'Data Annex'!$K$1:$AN$1,0)),\"\")","v":0.12671712269999999},{"$f":"IFERROR(INDEX('Data Annex'!$K$1:$AN$4997,MATCH(H$44&\"|\"&$B64,'Data Annex'!$K$1:$K$4997,0),MATCH(H$45,'Data Annex'!$K$1:$AN$1,0)),\"\")","v":0.14207031319999999},{"$f":"IFERROR(INDEX('Data Annex'!$K$1:$AN$4997,MATCH(I$44&\"|\"&$B64,'Data Annex'!$K$1:$K$4997,0),MATCH(I$45,'Data Annex'!$K$1:$AN$1,0)),\"\")","v":5.29622389E-2},{"$f":"IFERROR(INDEX('Data Annex'!$K$1:$AN$4997,MATCH(J$44&\"|\"&$B64,'Data Annex'!$K$1:$K$4997,0),MATCH(J$45,'Data Annex'!$K$1:$AN$1,0)),\"\")","v":4.3931469700000003E-2},{"$f":"IFERROR(INDEX('Data Annex'!$K$1:$AN$4997,MATCH(K$44&\"|\"&$B64,'Data Annex'!$K$1:$K$4997,0),MATCH(K$45,'Data Annex'!$K$1:$AN$1,0)),\"\")","v":7.5828549100000003E-2},{"$f":"IFERROR(INDEX('Data Annex'!$K$1:$AN$4997,MATCH(L$44&\"|\"&$B64,'Data Annex'!$K$1:$K$4997,0),MATCH(L$45,'Data Annex'!$K$1:$AN$1,0)),\"\")","v":0.10961996910000001},{"$f":"IFERROR(INDEX('Data Annex'!$K$1:$AN$4997,MATCH(M$44&\"|\"&$B64,'Data Annex'!$K$1:$K$4997,0),MATCH(M$45,'Data Annex'!$K$1:$AN$1,0)),\"\")","v":0},{"$f":"IFERROR(INDEX('Data Annex'!$K$1:$AN$4997,MATCH(N$44&\"|\"&$B64,'Data Annex'!$K$1:$K$4997,0),MATCH(N$45,'Data Annex'!$K$1:$AN$1,0)),\"\")","v":0},{"$f":"IFERROR(INDEX('Data Annex'!$K$1:$AN$4997,MATCH(O$44&\"|\"&$B64,'Data Annex'!$K$1:$K$4997,0),MATCH(O$45,'Data Annex'!$K$1:$AN$1,0)),\"\")","v":7.7620824000000001E-3},{"$f":"IFERROR(INDEX('Data Annex'!$K$1:$AN$4997,MATCH(P$44&\"|\"&$B64,'Data Annex'!$K$1:$K$4997,0),MATCH(P$45,'Data Annex'!$K$1:$AN$1,0)),\"\")","v":9.2653313000000005E-3},{"$f":"IFERROR(INDEX('Data Annex'!$K$1:$AN$4997,MATCH(Q$44&\"|\"&$B64,'Data Annex'!$K$1:$K$4997,0),MATCH(Q$45,'Data Annex'!$K$1:$AN$1,0)),\"\")","v":2.06835304E-2},{"$f":"IFERROR(INDEX('Data Annex'!$K$1:$AN$4997,MATCH(R$44&\"|\"&$B64,'Data Annex'!$K$1:$K$4997,0),MATCH(R$45,'Data Annex'!$K$1:$AN$1,0)),\"\")","v":1.80950673E-2},{"$f":"IFERROR(INDEX('Data Annex'!$K$1:$AN$4997,MATCH(S$44&\"|\"&$B64,'Data Annex'!$K$1:$K$4997,0),MATCH(S$45,'Data Annex'!$K$1:$AN$1,0)),\"\")","v":6.1436162900000001E-2},{"$f":"IFERROR(INDEX('Data Annex'!$K$1:$AN$4997,MATCH(T$44&\"|\"&$B64,'Data Annex'!$K$1:$K$4997,0),MATCH(T$45,'Data Annex'!$K$1:$AN$1,0)),\"\")","v":0.10574249249999999},{"$f":"IFERROR(INDEX('Data Annex'!$K$1:$AN$4997,MATCH(U$44&\"|\"&$B64,'Data Annex'!$K$1:$K$4997,0),MATCH(U$45,'Data Annex'!$K$1:$AN$1,0)),\"\")","v":5.8675834699999999E-2},{"$f":"IFERROR(INDEX('Data Annex'!$K$1:$AN$4997,MATCH(V$44&\"|\"&$B64,'Data Annex'!$K$1:$K$4997,0),MATCH(V$45,'Data Annex'!$K$1:$AN$1,0)),\"\")","v":5.1388242600000002E-2},"T12_1","T12_1"]
[null,"IS",null,"IS",{"$f":"IFERROR(INDEX('Data Annex'!$K$1:$AN$4997,MATCH(E$44&\"|\"&$B65,'Data Annex'!$K$1:$K$4997,0),MATCH(E$45,'Data Annex'!$K$1:$AN$1,0)),\"\")","v":5.3165267999999996E-3},{"$f":"IFERROR(INDEX('Data Annex'!$K$1:$AN$4997,MATCH(F$44&\"|\"&$B65,'Data Annex'!$K$1:$K$4997,0),MATCH(F$45,'Data Annex'!$K$1:$AN$1,0)),\"\")","v":2.333948E-4},{"$f":"IFERROR(INDEX('Data Annex'!$K$1:$AN$4997,MATCH(G$44&\"|\"&$B65,'Data Annex'!$K$1:$K$4997,0),MATCH(G$45,'Data Annex'!$K$1:$AN$1,0)),\"\")","v":4.3018965700000002E-2},{"$f":"IFERROR(INDEX('Data Annex'!$K$1:$AN$4997,MATCH(H$44&\"|\"&$B65,'Data Annex'!$K$1:$K$4997,0),MATCH(H$45,'Data Annex'!$K$1:$AN$1,0)),\"\")","v":3.7142028299999998E-2},{"$f":"IFERROR(INDEX('Data Annex'!$K$1:$AN$4997,MATCH(I$44&\"|\"&$B65,'Data Annex'!$K$1:$K$4997,0),MATCH(I$45,'Data Annex'!$K$1:$AN$1,0)),\"\")","v":8.14834745E-2},{"$f":"IFERROR(INDEX('Data Annex'!$K$1:$AN$4997,MATCH(J$44&\"|\"&$B65,'Data Annex'!$K$1:$K$4997,0),MATCH(J$45,'Data Annex'!$K$1:$AN$1,0)),\"\")","v":7.9145400300000002E-2},{"$f":"IFERROR(INDEX('Data Annex'!$K$1:$AN$4997,MATCH(K$44&\"|\"&$B65,'Data Annex'!$K$1:$K$4997,0),MATCH(K$45,'Data Annex'!$K$1:$AN$1,0)),\"\")","v":0.1148959999},{"$f":"IFERROR(INDEX('Data Annex'!$K$1:$AN$4997,MATCH(L$44&\"|\"&$B65,'Data Annex'!$K$1:$K$4997,0),MATCH(L$45,'Data Annex'!$K$1:$AN$1,0)),\"\")","v":9.6446125899999999E-2},{"$f":"IFERROR(INDEX('Data Annex'!$K$1:$AN$4997,MATCH(M$44&\"|\"&$B65,'Data Annex'!$K$1:$K$4997,0),MATCH(M$45,'Data Annex'!$K$1:$AN$1,0)),\"\")","v":0},{"$f":"IFERROR(INDEX('Data Annex'!$K$1:$AN$4997,MATCH(N$44&\"|\"&$B65,'Data Annex'!$K$1:$K$4997,0),MATCH(N$45,'Data Annex'!$K$1:$AN$1,0)),\"\")","v":0},{"$f":"IFERROR(INDEX('Data Annex'!$K$1:$AN$4997,MATCH(O$44&\"|\"&$B65,'Data Annex'!$K$1:$K$4997,0),MATCH(O$45,'Data Annex'!$K$1:$AN$1,0)),\"\")","v":4.4713560999999997E-3},{"$f":"IFERROR(INDEX('Data Annex'!$K$1:$AN$4997,MATCH(P$44&\"|\"&$B65,'Data Annex'!$K$1:$K$4997,0),MATCH(P$45,'Data Annex'!$K$1:$AN$1,0)),\"\")","v":3.8434932E-3},{"$f":"IFERROR(INDEX('Data Annex'!$K$1:$AN$4997,MATCH(Q$44&\"|\"&$B65,'Data Annex'!$K$1:$K$4997,0),MATCH(Q$45,'Data Annex'!$K$1:$AN$1,0)),\"\")","v":5.3241241999999996E-3},{"$f":"IFERROR(INDEX('Data Annex'!$K$1:$AN$4997,MATCH(R$44&\"|\"&$B65,'Data Annex'!$K$1:$K$4997,0),MATCH(R$45,'Data Annex'!$K$1:$AN$1,0)),\"\")","v":3.7433569000000001E-3},{"$f":"IFERROR(INDEX('Data Annex'!$K$1:$AN$4997,MATCH(S$44&\"|\"&$B65,'Data Annex'!$K$1:$K$4997,0),MATCH(S$45,'Data Annex'!$K$1:$AN$1,0)),\"\")","v":7.7780773299999995E-2},{"$f":"IFERROR(INDEX('Data Annex'!$K$1:$AN$4997,MATCH(T$44&\"|\"&$B65,'Data Annex'!$K$1:$K$4997,0),MATCH(T$45,'Data Annex'!$K$1:$AN$1,0)),\"\")","v":7.4813391500000007E-2},{"$f":"IFERROR(INDEX('Data Annex'!$K$1:$AN$4997,MATCH(U$44&\"|\"&$B65,'Data Annex'!$K$1:$K$4997,0),MATCH(U$45,'Data Annex'!$K$1:$AN$1,0)),\"\")","v":4.22321934E-2},{"$f":"IFERROR(INDEX('Data Annex'!$K$1:$AN$4997,MATCH(V$44&\"|\"&$B65,'Data Annex'!$K$1:$K$4997,0),MATCH(V$45,'Data Annex'!$K$1:$AN$1,0)),\"\")","v":4.6287910100000003E-2},"T12_1","T12_1"]
[null,"IT",null,"IT",{"$f":"IFERROR(INDEX('Data Annex'!$K$1:$AN$4997,MATCH(E$44&\"|\"&$B66,'Data Annex'!$K$1:$K$4997,0),MATCH(E$45,'Data Annex'!$K$1:$AN$1,0)),\"\")","v":4.4433908500000001E-2},{"$f":"IFERROR(INDEX('Data Annex'!$K$1:$AN$4997,MATCH(F$44&\"|\"&$B66,'Data Annex'!$K$1:$K$4997,0),MATCH(F$45,'Data Annex'!$K$1:$AN$1,0)),\"\")","v":2.52711664E-2},{"$f":"IFERROR(INDEX('Data Annex'!$K$1:$AN$4997,MATCH(G$44&\"|\"&$B66,'Data Annex'!$K$1:$K$4997,0),MATCH(G$45,'Data Annex'!$K$1:$AN$1,0)),\"\")","v":0.1419096587},{"$f":"IFERROR(INDEX('Data Annex'!$K$1:$AN$4997,MATCH(H$44&\"|\"&$B66,'Data Annex'!$K$1:$K$4997,0),MATCH(H$45,'Data Annex'!$K$1:$AN$1,0)),\"\")","v":0.1080316399},{"$f":"IFERROR(INDEX('Data Annex'!$K$1:$AN$4997,MATCH(I$44&\"|\"&$B66,'Data Annex'!$K$1:$K$4997,0),MATCH(I$45,'Data Annex'!$K$1:$AN$1,0)),\"\")","v":4.5398677999999998E-2},{"$f":"IFERROR(INDEX('Data Annex'!$K$1:$AN$4997,MATCH(J$44&\"|\"&$B66,'Data Annex'!$K$1:$K$4997,0),MATCH(J$45,'Data Annex'!$K$1:$AN$1,0)),\"\")","v":3.9556939800000003E-2},{"$f":"IFERROR(INDEX('Data Annex'!$K$1:$AN$4997,MATCH(K$44&\"|\"&$B66,'Data Annex'!$K$1:$K$4997,0),MATCH(K$45,'Data Annex'!$K$1:$AN$1,0)),\"\")","v":9.6692972299999999E-2},{"$f":"IFERROR(INDEX('Data Annex'!$K$1:$AN$4997,MATCH(L$44&\"|\"&$B66,'Data Annex'!$K$1:$K$4997,0),MATCH(L$45,'Data Annex'!$K$1:$AN$1,0)),\"\")","v":7.8951146200000002E-2},{"$f":"IFERROR(INDEX('Data Annex'!$K$1:$AN$4997,MATCH(M$44&\"|\"&$B66,'Data Annex'!$K$1:$K$4997,0),MATCH(M$45,'Data Annex'!$K$1:$AN$1,0)),\"\")","v":4.4895292E-3},{"$f":"IFERROR(INDEX('Data Annex'!$K$1:$AN$4997,MATCH(N$44&\"|\"&$B66,'Data Annex'!$K$1:$K$4997,0),MATCH(N$45,'Data Annex'!$K$1:$AN$1,0)),\"\")","v":1.6138209999999999E-4},{"$f":"IFERROR(INDEX('Data Annex'!$K$1:$AN$4997,MATCH(O$44&\"|\"&$B66,'Data Annex'!$K$1:$K$4997,0),MATCH(O$45,'Data Annex'!$K$1:$AN$1,0)),\"\")","v":5.6276844600000001E-2},{"$f":"IFERROR(INDEX('Data Annex'!$K$1:$AN$4997,MATCH(P$44&\"|\"&$B66,'Data Annex'!$K$1:$K$4997,0),MATCH(P$45,'Data Annex'!$K$1:$AN$1,0)),\"\")","v":4.6702858799999997E-2},{"$f":"IFERROR(INDEX('Data Annex'!$K$1:$AN$4997,MATCH(Q$44&\"|\"&$B66,'Data Annex'!$K$1:$K$4997,0),MATCH(Q$45,'Data Annex'!$K$1:$AN$1,0)),\"\")","v":4.5975729600000001E-2},{"$f":"IFERROR(INDEX('Data Annex'!$K$1:$AN$4997,MATCH(R$44&\"|\"&$B66,'Data Annex'!$K$1:$K$4997,0),MATCH(R$45,'Data Annex'!$K$1:$AN$1,0)),\"\")","v":3.80608962E-2},{"$f":"IFERROR(INDEX('Data Annex'!$K$1:$AN$4997,MATCH(S$44&\"|\"&$B66,'Data Annex'!$K$1:$K$4997,0),MATCH(S$45,'Data Annex'!$K$1:$AN$1,0)),\"\")","v":0.1249377245},{"$f":"IFERROR(INDEX('Data Annex'!$K$1:$AN$4997,MATCH(T$44&\"|\"&$B66,'Data Annex'!$K$1:$K$4997,0),MATCH(T$45,'Data Annex'!$K$1:$AN$1,0)),\"\")","v":0.11080121580000001},{"$f":"IFERROR(INDEX('Data Annex'!$K$1:$AN$4997,MATCH(U$44&\"|\"&$B66,'Data Annex'!$K$1:$K$4997,0),MATCH(U$45,'Data Annex'!$K$1:$AN$1,0)),\"\")","v":6.6618012899999995E-2},{"$f":"IFERROR(INDEX('Data Annex'!$K$1:$AN$4997,MATCH(V$44&\"|\"&$B66,'Data Annex'!$K$1:$K$4997,0),MATCH(V$45,'Data Annex'!$K$1:$AN$1,0)),\"\")","v":7.3846906099999998E-2},"T12_1","T12_1"]
[null,"LT",null,"LT",{"$f":"IFERROR(INDEX('Data Annex'!$K$1:$AN$4997,MATCH(E$44&\"|\"&$B67,'Data Annex'!$K$1:$K$4997,0),MATCH(E$45,'Data Annex'!$K$1:$AN$1,0)),\"\")","v":1.304291E-4},{"$f":"IFERROR(INDEX('Data Annex'!$K$1:$AN$4997,MATCH(F$44&\"|\"&$B67,'Data Annex'!$K$1:$K$4997,0),MATCH(F$45,'Data Annex'!$K$1:$AN$1,0)),\"\")","v":0},{"$f":"IFERROR(INDEX('Data Annex'!$K$1:$AN$4997,MATCH(G$44&\"|\"&$B67,'Data Annex'!$K$1:$K$4997,0),MATCH(G$45,'Data Annex'!$K$1:$AN$1,0)),\"\")","v":1.8820276699999999E-2},{"$f":"IFERROR(INDEX('Data Annex'!$K$1:$AN$4997,MATCH(H$44&\"|\"&$B67,'Data Annex'!$K$1:$K$4997,0),MATCH(H$45,'Data Annex'!$K$1:$AN$1,0)),\"\")","v":2.6288682000000001E-2},{"$f":"IFERROR(INDEX('Data Annex'!$K$1:$AN$4997,MATCH(I$44&\"|\"&$B67,'Data Annex'!$K$1:$K$4997,0),MATCH(I$45,'Data Annex'!$K$1:$AN$1,0)),\"\")","v":2.38031184E-2},{"$f":"IFERROR(INDEX('Data Annex'!$K$1:$AN$4997,MATCH(J$44&\"|\"&$B67,'Data Annex'!$K$1:$K$4997,0),MATCH(J$45,'Data Annex'!$K$1:$AN$1,0)),\"\")","v":3.0390019399999999E-2},{"$f":"IFERROR(INDEX('Data Annex'!$K$1:$AN$4997,MATCH(K$44&\"|\"&$B67,'Data Annex'!$K$1:$K$4997,0),MATCH(K$45,'Data Annex'!$K$1:$AN$1,0)),\"\")","v":1.9914088999999999E-2},{"$f":"IFERROR(INDEX('Data Annex'!$K$1:$AN$4997,MATCH(L$44&\"|\"&$B67,'Data Annex'!$K$1:$K$4997,0),MATCH(L$45,'Data Annex'!$K$1:$AN$1,0)),\"\")","v":1.4107529000000001E-2},{"$f":"IFERROR(INDEX('Data Annex'!$K$1:$AN$4997,MATCH(M$44&\"|\"&$B67,'Data Annex'!$K$1:$K$4997,0),MATCH(M$45,'Data Annex'!$K$1:$AN$1,0)),\"\")","v":0},{"$f":"IFERROR(INDEX('Data Annex'!$K$1:$AN$4997,MATCH(N$44&\"|\"&$B67,'Data Annex'!$K$1:$K$4997,0),MATCH(N$45,'Data Annex'!$K$1:$AN$1,0)),\"\")","v":0},{"$f":"IFERROR(INDEX('Data Annex'!$K$1:$AN$4997,MATCH(O$44&\"|\"&$B67,'Data Annex'!$K$1:$K$4997,0),MATCH(O$45,'Data Annex'!$K$1:$AN$1,0)),\"\")","v":4.84029484E-2},{"$f":"IFERROR(INDEX('Data Annex'!$K$1:$AN$4997,MATCH(P$44&\"|\"&$B67,'Data Annex'!$K$1:$K$4997,0),MATCH(P$45,'Data Annex'!$K$1:$AN$1,0)),\"\")","v":4.4806007500000002E-2},{"$f":"IFERROR(INDEX('Data Annex'!$K$1:$AN$4997,MATCH(Q$44&\"|\"&$B67,'Data Annex'!$K$1:$K$4997,0),MATCH(Q$45,'Data Annex'!$K$1:$AN$1,0)),\"\")","v":3.5602439399999998E-2},{"$f":"IFERROR(INDEX('Data Annex'!$K$1:$AN$4997,MATCH(R$44&\"|\"&$B67,'Data Annex'!$K$1:$K$4997,0),MATCH(R$45,'Data Annex'!$K$1:$AN$1,0)),\"\")","v":3.4517258600000003E-2},{"$f":"IFERROR(INDEX('Data Annex'!$K$1:$AN$4997,MATCH(S$44&\"|\"&$B67,'Data Annex'!$K$1:$K$4997,0),MATCH(S$45,'Data Annex'!$K$1:$AN$1,0)),\"\")","v":8.0831409000000007E-3},{"$f":"IFERROR(INDEX('Data Annex'!$K$1:$AN$4997,MATCH(T$44&\"|\"&$B67,'Data Annex'!$K$1:$K$4997,0),MATCH(T$45,'Data Annex'!$K$1:$AN$1,0)),\"\")","v":5.0241160000000001E-4},{"$f":"IFERROR(INDEX('Data Annex'!$K$1:$AN$4997,MATCH(U$44&\"|\"&$B67,'Data Annex'!$K$1:$K$4997,0),MATCH(U$45,'Data Annex'!$K$1:$AN$1,0)),\"\")","v":1.9081167999999999E-3},{"$f":"IFERROR(INDEX('Data Annex'!$K$1:$AN$4997,MATCH(V$44&\"|\"&$B67,'Data Annex'!$K$1:$K$4997,0),MATCH(V$45,'Data Annex'!$K$1:$AN$1,0)),\"\")","v":2.3328314000000002E-3},"T12_1","T12_1"]
[null,"LU",null,"LU",{"$f":"IFERROR(INDEX('Data Annex'!$K$1:$AN$4997,MATCH(E$44&\"|\"&$B68,'Data Annex'!$K$1:$K$4997,0),MATCH(E$45,'Data Annex'!$K$1:$AN$1,0)),\"\")","v":1.0639894800000001E-2},{"$f":"IFERROR(INDEX('Data Annex'!$K$1:$AN$4997,MATCH(F$44&\"|\"&$B68,'Data Annex'!$K$1:$K$4997,0),MATCH(F$45,'Data Annex'!$K$1:$AN$1,0)),\"\")","v":8.1424870000000003E-3},{"$f":"IFERROR(INDEX('Data Annex'!$K$1:$AN$4997,MATCH(G$44&\"|\"&$B68,'Data Annex'!$K$1:$K$4997,0),MATCH(G$45,'Data Annex'!$K$1:$AN$1,0)),\"\")","v":4.7376130400000001E-2},{"$f":"IFERROR(INDEX('Data Annex'!$K$1:$AN$4997,MATCH(H$44&\"|\"&$B68,'Data Annex'!$K$1:$K$4997,0),MATCH(H$45,'Data Annex'!$K$1:$AN$1,0)),\"\")","v":4.3983277799999998E-2},{"$f":"IFERROR(INDEX('Data Annex'!$K$1:$AN$4997,MATCH(I$44&\"|\"&$B68,'Data Annex'!$K$1:$K$4997,0),MATCH(I$45,'Data Annex'!$K$1:$AN$1,0)),\"\")","v":5.0363838700000003E-2},{"$f":"IFERROR(INDEX('Data Annex'!$K$1:$AN$4997,MATCH(J$44&\"|\"&$B68,'Data Annex'!$K$1:$K$4997,0),MATCH(J$45,'Data Annex'!$K$1:$AN$1,0)),\"\")","v":4.9299012199999999E-2},{"$f":"IFERROR(INDEX('Data Annex'!$K$1:$AN$4997,MATCH(K$44&\"|\"&$B68,'Data Annex'!$K$1:$K$4997,0),MATCH(K$45,'Data Annex'!$K$1:$AN$1,0)),\"\")","v":5.6723316000000003E-3},{"$f":"IFERROR(INDEX('Data Annex'!$K$1:$AN$4997,MATCH(L$44&\"|\"&$B68,'Data Annex'!$K$1:$K$4997,0),MATCH(L$45,'Data Annex'!$K$1:$AN$1,0)),\"\")","v":7.1929066999999996E-3},{"$f":"IFERROR(INDEX('Data Annex'!$K$1:$AN$4997,MATCH(M$44&\"|\"&$B68,'Data Annex'!$K$1:$K$4997,0),MATCH(M$45,'Data Annex'!$K$1:$AN$1,0)),\"\")","v":6.7339601999999998E-3},{"$f":"IFERROR(INDEX('Data Annex'!$K$1:$AN$4997,MATCH(N$44&\"|\"&$B68,'Data Annex'!$K$1:$K$4997,0),MATCH(N$45,'Data Annex'!$K$1:$AN$1,0)),\"\")","v":2.5329630000000001E-3},{"$f":"IFERROR(INDEX('Data Annex'!$K$1:$AN$4997,MATCH(O$44&\"|\"&$B68,'Data Annex'!$K$1:$K$4997,0),MATCH(O$45,'Data Annex'!$K$1:$AN$1,0)),\"\")","v":2.69681108E-2},{"$f":"IFERROR(INDEX('Data Annex'!$K$1:$AN$4997,MATCH(P$44&\"|\"&$B68,'Data Annex'!$K$1:$K$4997,0),MATCH(P$45,'Data Annex'!$K$1:$AN$1,0)),\"\")","v":3.7792249700000002E-2},{"$f":"IFERROR(INDEX('Data Annex'!$K$1:$AN$4997,MATCH(Q$44&\"|\"&$B68,'Data Annex'!$K$1:$K$4997,0),MATCH(Q$45,'Data Annex'!$K$1:$AN$1,0)),\"\")","v":3.8293347499999998E-2},{"$f":"IFERROR(INDEX('Data Annex'!$K$1:$AN$4997,MATCH(R$44&\"|\"&$B68,'Data Annex'!$K$1:$K$4997,0),MATCH(R$45,'Data Annex'!$K$1:$AN$1,0)),\"\")","v":3.6177194699999998E-2},{"$f":"IFERROR(INDEX('Data Annex'!$K$1:$AN$4997,MATCH(S$44&\"|\"&$B68,'Data Annex'!$K$1:$K$4997,0),MATCH(S$45,'Data Annex'!$K$1:$AN$1,0)),\"\")","v":7.3828897599999999E-2},{"$f":"IFERROR(INDEX('Data Annex'!$K$1:$AN$4997,MATCH(T$44&\"|\"&$B68,'Data Annex'!$K$1:$K$4997,0),MATCH(T$45,'Data Annex'!$K$1:$AN$1,0)),\"\")","v":8.6651369199999995E-2},{"$f":"IFERROR(INDEX('Data Annex'!$K$1:$AN$4997,MATCH(U$44&\"|\"&$B68,'Data Annex'!$K$1:$K$4997,0),MATCH(U$45,'Data Annex'!$K$1:$AN$1,0)),\"\")","v":2.5575065000000001E-2},{"$f":"IFERROR(INDEX('Data Annex'!$K$1:$AN$4997,MATCH(V$44&\"|\"&$B68,'Data Annex'!$K$1:$K$4997,0),MATCH(V$45,'Data Annex'!$K$1:$AN$1,0)),\"\")","v":3.5600327399999999E-2},"T12_1","T12_1"]
[null,"LV",null,"LV",{"$f":"IFERROR(INDEX('Data Annex'!$K$1:$AN$4997,MATCH(E$44&\"|\"&$B69,'Data Annex'!$K$1:$K$4997,0),MATCH(E$45,'Data Annex'!$K$1:$AN$1,0)),\"\")","v":1.63093E-5},{"$f":"IFERROR(INDEX('Data Annex'!$K$1:$AN$4997,MATCH(F$44&\"|\"&$B69,'Data Annex'!$K$1:$K$4997,0),MATCH(F$45,'Data Annex'!$K$1:$AN$1,0)),\"\")","v":0},{"$f":"IFERROR(INDEX('Data Annex'!$K$1:$AN$4997,MATCH(G$44&\"|\"&$B69,'Data Annex'!$K$1:$K$4997,0),MATCH(G$45,'Data Annex'!$K$1:$AN$1,0)),\"\")","v":1.83611318E-2},{"$f":"IFERROR(INDEX('Data Annex'!$K$1:$AN$4997,MATCH(H$44&\"|\"&$B69,'Data Annex'!$K$1:$K$4997,0),MATCH(H$45,'Data Annex'!$K$1:$AN$1,0)),\"\")","v":2.3252910599999999E-2},{"$f":"IFERROR(INDEX('Data Annex'!$K$1:$AN$4997,MATCH(I$44&\"|\"&$B69,'Data Annex'!$K$1:$K$4997,0),MATCH(I$45,'Data Annex'!$K$1:$AN$1,0)),\"\")","v":2.0909385900000001E-2},{"$f":"IFERROR(INDEX('Data Annex'!$K$1:$AN$4997,MATCH(J$44&\"|\"&$B69,'Data Annex'!$K$1:$K$4997,0),MATCH(J$45,'Data Annex'!$K$1:$AN$1,0)),\"\")","v":2.0495509200000001E-2},{"$f":"IFERROR(INDEX('Data Annex'!$K$1:$AN$4997,MATCH(K$44&\"|\"&$B69,'Data Annex'!$K$1:$K$4997,0),MATCH(K$45,'Data Annex'!$K$1:$AN$1,0)),\"\")","v":9.8690406000000001E-3},{"$f":"IFERROR(INDEX('Data Annex'!$K$1:$AN$4997,MATCH(L$44&\"|\"&$B69,'Data Annex'!$K$1:$K$4997,0),MATCH(L$45,'Data Annex'!$K$1:$AN$1,0)),\"\")","v":1.27781018E-2},{"$f":"IFERROR(INDEX('Data Annex'!$K$1:$AN$4997,MATCH(M$44&\"|\"&$B69,'Data Annex'!$K$1:$K$4997,0),MATCH(M$45,'Data Annex'!$K$1:$AN$1,0)),\"\")","v":8.7924345000000001E-6},{"$f":"IFERROR(INDEX('Data Annex'!$K$1:$AN$4997,MATCH(N$44&\"|\"&$B69,'Data Annex'!$K$1:$K$4997,0),MATCH(N$45,'Data Annex'!$K$1:$AN$1,0)),\"\")","v":3.3404200000000001E-5},{"$f":"IFERROR(INDEX('Data Annex'!$K$1:$AN$4997,MATCH(O$44&\"|\"&$B69,'Data Annex'!$K$1:$K$4997,0),MATCH(O$45,'Data Annex'!$K$1:$AN$1,0)),\"\")","v":5.5391440000000002E-3},{"$f":"IFERROR(INDEX('Data Annex'!$K$1:$AN$4997,MATCH(P$44&\"|\"&$B69,'Data Annex'!$K$1:$K$4997,0),MATCH(P$45,'Data Annex'!$K$1:$AN$1,0)),\"\")","v":2.1039087500000001E-2},{"$f":"IFERROR(INDEX('Data Annex'!$K$1:$AN$4997,MATCH(Q$44&\"|\"&$B69,'Data Annex'!$K$1:$K$4997,0),MATCH(Q$45,'Data Annex'!$K$1:$AN$1,0)),\"\")","v":2.9315451999999999E-3},{"$f":"IFERROR(INDEX('Data Annex'!$K$1:$AN$4997,MATCH(R$44&\"|\"&$B69,'Data Annex'!$K$1:$K$4997,0),MATCH(R$45,'Data Annex'!$K$1:$AN$1,0)),\"\")","v":1.8790214E-3},{"$f":"IFERROR(INDEX('Data Annex'!$K$1:$AN$4997,MATCH(S$44&\"|\"&$B69,'Data Annex'!$K$1:$K$4997,0),MATCH(S$45,'Data Annex'!$K$1:$AN$1,0)),\"\")","v":2.0104978999999999E-2},{"$f":"IFERROR(INDEX('Data Annex'!$K$1:$AN$4997,MATCH(T$44&\"|\"&$B69,'Data Annex'!$K$1:$K$4997,0),MATCH(T$45,'Data Annex'!$K$1:$AN$1,0)),\"\")","v":3.8591051500000001E-2},{"$f":"IFERROR(INDEX('Data Annex'!$K$1:$AN$4997,MATCH(U$44&\"|\"&$B69,'Data Annex'!$K$1:$K$4997,0),MATCH(U$45,'Data Annex'!$K$1:$AN$1,0)),\"\")","v":6.9899024999999998E-3},{"$f":"IFERROR(INDEX('Data Annex'!$K$1:$AN$4997,MATCH(V$44&\"|\"&$B69,'Data Annex'!$K$1:$K$4997,0),MATCH(V$45,'Data Annex'!$K$1:$AN$1,0)),\"\")","v":9.9768645E-3},"T12_1","T12_1"]
[null,"MT",null,"MT",{"$f":"IFERROR(INDEX('Data Annex'!$K$1:$AN$4997,MATCH(E$44&\"|\"&$B70,'Data Annex'!$K$1:$K$4997,0),MATCH(E$45,'Data Annex'!$K$1:$AN$1,0)),\"\")","v":2.9021558999999999E-3},{"$f":"IFERROR(INDEX('Data Annex'!$K$1:$AN$4997,MATCH(F$44&\"|\"&$B70,'Data Annex'!$K$1:$K$4997,0),MATCH(F$45,'Data Annex'!$K$1:$AN$1,0)),\"\")","v":5.7127897999999996E-3},{"$f":"IFERROR(INDEX('Data Annex'!$K$1:$AN$4997,MATCH(G$44&\"|\"&$B70,'Data Annex'!$K$1:$K$4997,0),MATCH(G$45,'Data Annex'!$K$1:$AN$1,0)),\"\")","v":4.6608057100000003E-2},{"$f":"IFERROR(INDEX('Data Annex'!$K$1:$AN$4997,MATCH(H$44&\"|\"&$B70,'Data Annex'!$K$1:$K$4997,0),MATCH(H$45,'Data Annex'!$K$1:$AN$1,0)),\"\")","v":8.1180227199999996E-2},{"$f":"IFERROR(INDEX('Data Annex'!$K$1:$AN$4997,MATCH(I$44&\"|\"&$B70,'Data Annex'!$K$1:$K$4997,0),MATCH(I$45,'Data Annex'!$K$1:$AN$1,0)),\"\")","v":8.5484761399999998E-2},{"$f":"IFERROR(INDEX('Data Annex'!$K$1:$AN$4997,MATCH(J$44&\"|\"&$B70,'Data Annex'!$K$1:$K$4997,0),MATCH(J$45,'Data Annex'!$K$1:$AN$1,0)),\"\")","v":9.5451143599999996E-2},{"$f":"IFERROR(INDEX('Data Annex'!$K$1:$AN$4997,MATCH(K$44&\"|\"&$B70,'Data Annex'!$K$1:$K$4997,0),MATCH(K$45,'Data Annex'!$K$1:$AN$1,0)),\"\")","v":0.25687750549999999},{"$f":"IFERROR(INDEX('Data Annex'!$K$1:$AN$4997,MATCH(L$44&\"|\"&$B70,'Data Annex'!$K$1:$K$4997,0),MATCH(L$45,'Data Annex'!$K$1:$AN$1,0)),\"\")","v":0.31048187519999998},{"$f":"IFERROR(INDEX('Data Annex'!$K$1:$AN$4997,MATCH(M$44&\"|\"&$B70,'Data Annex'!$K$1:$K$4997,0),MATCH(M$45,'Data Annex'!$K$1:$AN$1,0)),\"\")","v":0},{"$f":"IFERROR(INDEX('Data Annex'!$K$1:$AN$4997,MATCH(N$44&\"|\"&$B70,'Data Annex'!$K$1:$K$4997,0),MATCH(N$45,'Data Annex'!$K$1:$AN$1,0)),\"\")","v":0},{"$f":"IFERROR(INDEX('Data Annex'!$K$1:$AN$4997,MATCH(O$44&\"|\"&$B70,'Data Annex'!$K$1:$K$4997,0),MATCH(O$45,'Data Annex'!$K$1:$AN$1,0)),\"\")","v":4.4293798099999997E-2},{"$f":"IFERROR(INDEX('Data Annex'!$K$1:$AN$4997,MATCH(P$44&\"|\"&$B70,'Data Annex'!$K$1:$K$4997,0),MATCH(P$45,'Data Annex'!$K$1:$AN$1,0)),\"\")","v":1.5594083700000001E-2},{"$f":"IFERROR(INDEX('Data Annex'!$K$1:$AN$4997,MATCH(Q$44&\"|\"&$B70,'Data Annex'!$K$1:$K$4997,0),MATCH(Q$45,'Data Annex'!$K$1:$AN$1,0)),\"\")","v":6.5477983300000001E-2},{"$f":"IFERROR(INDEX('Data Annex'!$K$1:$AN$4997,MATCH(R$44&\"|\"&$B70,'Data Annex'!$K$1:$K$4997,0),MATCH(R$45,'Data Annex'!$K$1:$AN$1,0)),\"\")","v":2.83200773E-2},{"$f":"IFERROR(INDEX('Data Annex'!$K$1:$AN$4997,MATCH(S$44&\"|\"&$B70,'Data Annex'!$K$1:$K$4997,0),MATCH(S$45,'Data Annex'!$K$1:$AN$1,0)),\"\")","v":2.55989865E-2},{"$f":"IFERROR(INDEX('Data Annex'!$K$1:$AN$4997,MATCH(T$44&\"|\"&$B70,'Data Annex'!$K$1:$K$4997,0),MATCH(T$45,'Data Annex'!$K$1:$AN$1,0)),\"\")","v":3.31458086E-2},{"$f":"IFERROR(INDEX('Data Annex'!$K$1:$AN$4997,MATCH(U$44&\"|\"&$B70,'Data Annex'!$K$1:$K$4997,0),MATCH(U$45,'Data Annex'!$K$1:$AN$1,0)),\"\")","v":0.20837409409999999},{"$f":"IFERROR(INDEX('Data Annex'!$K$1:$AN$4997,MATCH(V$44&\"|\"&$B70,'Data Annex'!$K$1:$K$4997,0),MATCH(V$45,'Data Annex'!$K$1:$AN$1,0)),\"\")","v":0.2155528974},"T12_1","T12_1"]
[null,"NL",null,"NL",{"$f":"IFERROR(INDEX('Data Annex'!$K$1:$AN$4997,MATCH(E$44&\"|\"&$B71,'Data Annex'!$K$1:$K$4997,0),MATCH(E$45,'Data Annex'!$K$1:$AN$1,0)),\"\")","v":9.7327860200000005E-2},{"$f":"IFERROR(INDEX('Data Annex'!$K$1:$AN$4997,MATCH(F$44&\"|\"&$B71,'Data Annex'!$K$1:$K$4997,0),MATCH(F$45,'Data Annex'!$K$1:$AN$1,0)),\"\")","v":0.1071320489},{"$f":"IFERROR(INDEX('Data Annex'!$K$1:$AN$4997,MATCH(G$44&\"|\"&$B71,'Data Annex'!$K$1:$K$4997,0),MATCH(G$45,'Data Annex'!$K$1:$AN$1,0)),\"\")","v":1.47596034E-2},{"$f":"IFERROR(INDEX('Data Annex'!$K$1:$AN$4997,MATCH(H$44&\"|\"&$B71,'Data Annex'!$K$1:$K$4997,0),MATCH(H$45,'Data Annex'!$K$1:$AN$1,0)),\"\")","v":1.62808248E-2},{"$f":"IFERROR(INDEX('Data Annex'!$K$1:$AN$4997,MATCH(I$44&\"|\"&$B71,'Data Annex'!$K$1:$K$4997,0),MATCH(I$45,'Data Annex'!$K$1:$AN$1,0)),\"\")","v":6.4254721700000003E-2},{"$f":"IFERROR(INDEX('Data Annex'!$K$1:$AN$4997,MATCH(J$44&\"|\"&$B71,'Data Annex'!$K$1:$K$4997,0),MATCH(J$45,'Data Annex'!$K$1:$AN$1,0)),\"\")","v":6.4037311499999999E-2},{"$f":"IFERROR(INDEX('Data Annex'!$K$1:$AN$4997,MATCH(K$44&\"|\"&$B71,'Data Annex'!$K$1:$K$4997,0),MATCH(K$45,'Data Annex'!$K$1:$AN$1,0)),\"\")","v":3.7210663400000003E-2},{"$f":"IFERROR(INDEX('Data Annex'!$K$1:$AN$4997,MATCH(L$44&\"|\"&$B71,'Data Annex'!$K$1:$K$4997,0),MATCH(L$45,'Data Annex'!$K$1:$AN$1,0)),\"\")","v":3.89723524E-2},{"$f":"IFERROR(INDEX('Data Annex'!$K$1:$AN$4997,MATCH(M$44&\"|\"&$B71,'Data Annex'!$K$1:$K$4997,0),MATCH(M$45,'Data Annex'!$K$1:$AN$1,0)),\"\")","v":7.3094309999999999E-4},{"$f":"IFERROR(INDEX('Data Annex'!$K$1:$AN$4997,MATCH(N$44&\"|\"&$B71,'Data Annex'!$K$1:$K$4997,0),MATCH(N$45,'Data Annex'!$K$1:$AN$1,0)),\"\")","v":0},{"$f":"IFERROR(INDEX('Data Annex'!$K$1:$AN$4997,MATCH(O$44&\"|\"&$B71,'Data Annex'!$K$1:$K$4997,0),MATCH(O$45,'Data Annex'!$K$1:$AN$1,0)),\"\")","v":4.81143152E-2},{"$f":"IFERROR(INDEX('Data Annex'!$K$1:$AN$4997,MATCH(P$44&\"|\"&$B71,'Data Annex'!$K$1:$K$4997,0),MATCH(P$45,'Data Annex'!$K$1:$AN$1,0)),\"\")","v":4.8935684700000003E-2},{"$f":"IFERROR(INDEX('Data Annex'!$K$1:$AN$4997,MATCH(Q$44&\"|\"&$B71,'Data Annex'!$K$1:$K$4997,0),MATCH(Q$45,'Data Annex'!$K$1:$AN$1,0)),\"\")","v":3.0475029000000001E-2},{"$f":"IFERROR(INDEX('Data Annex'!$K$1:$AN$4997,MATCH(R$44&\"|\"&$B71,'Data Annex'!$K$1:$K$4997,0),MATCH(R$45,'Data Annex'!$K$1:$AN$1,0)),\"\")","v":3.4148744299999999E-2},{"$f":"IFERROR(INDEX('Data Annex'!$K$1:$AN$4997,MATCH(S$44&\"|\"&$B71,'Data Annex'!$K$1:$K$4997,0),MATCH(S$45,'Data Annex'!$K$1:$AN$1,0)),\"\")","v":5.3417497500000001E-2},{"$f":"IFERROR(INDEX('Data Annex'!$K$1:$AN$4997,MATCH(T$44&\"|\"&$B71,'Data Annex'!$K$1:$K$4997,0),MATCH(T$45,'Data Annex'!$K$1:$AN$1,0)),\"\")","v":5.9869494099999997E-2},{"$f":"IFERROR(INDEX('Data Annex'!$K$1:$AN$4997,MATCH(U$44&\"|\"&$B71,'Data Annex'!$K$1:$K$4997,0),MATCH(U$45,'Data Annex'!$K$1:$AN$1,0)),\"\")","v":5.1372138400000003E-2},{"$f":"IFERROR(INDEX('Data Annex'!$K$1:$AN$4997,MATCH(V$44&\"|\"&$B71,'Data Annex'!$K$1:$K$4997,0),MATCH(V$45,'Data Annex'!$K$1:$AN$1,0)),\"\")","v":4.3310332200000003E-2},"T12_1","T12_1"]
[null,"NO",null,"NO",{"$f":"IFERROR(INDEX('Data Annex'!$K$1:$AN$4997,MATCH(E$44&\"|\"&$B72,'Data Annex'!$K$1:$K$4997,0),MATCH(E$45,'Data Annex'!$K$1:$AN$1,0)),\"\")","v":0.1585808682},{"$f":"IFERROR(INDEX('Data Annex'!$K$1:$AN$4997,MATCH(F$44&\"|\"&$B72,'Data Annex'!$K$1:$K$4997,0),MATCH(F$45,'Data Annex'!$K$1:$AN$1,0)),\"\")","v":0.14341665000000001},{"$f":"IFERROR(INDEX('Data Annex'!$K$1:$AN$4997,MATCH(G$44&\"|\"&$B72,'Data Annex'!$K$1:$K$4997,0),MATCH(G$45,'Data Annex'!$K$1:$AN$1,0)),\"\")","v":7.1779221000000002E-3},{"$f":"IFERROR(INDEX('Data Annex'!$K$1:$AN$4997,MATCH(H$44&\"|\"&$B72,'Data Annex'!$K$1:$K$4997,0),MATCH(H$45,'Data Annex'!$K$1:$AN$1,0)),\"\")","v":6.7094340999999998E-3},{"$f":"IFERROR(INDEX('Data Annex'!$K$1:$AN$4997,MATCH(I$44&\"|\"&$B72,'Data Annex'!$K$1:$K$4997,0),MATCH(I$45,'Data Annex'!$K$1:$AN$1,0)),\"\")","v":4.7531199400000002E-2},{"$f":"IFERROR(INDEX('Data Annex'!$K$1:$AN$4997,MATCH(J$44&\"|\"&$B72,'Data Annex'!$K$1:$K$4997,0),MATCH(J$45,'Data Annex'!$K$1:$AN$1,0)),\"\")","v":4.0252773399999997E-2},{"$f":"IFERROR(INDEX('Data Annex'!$K$1:$AN$4997,MATCH(K$44&\"|\"&$B72,'Data Annex'!$K$1:$K$4997,0),MATCH(K$45,'Data Annex'!$K$1:$AN$1,0)),\"\")","v":1.35987551E-2},{"$f":"IFERROR(INDEX('Data Annex'!$K$1:$AN$4997,MATCH(L$44&\"|\"&$B72,'Data Annex'!$K$1:$K$4997,0),MATCH(L$45,'Data Annex'!$K$1:$AN$1,0)),\"\")","v":1.2742097000000001E-2},{"$f":"IFERROR(INDEX('Data Annex'!$K$1:$AN$4997,MATCH(M$44&\"|\"&$B72,'Data Annex'!$K$1:$K$4997,0),MATCH(M$45,'Data Annex'!$K$1:$AN$1,0)),\"\")","v":0},{"$f":"IFERROR(INDEX('Data Annex'!$K$1:$AN$4997,MATCH(N$44&\"|\"&$B72,'Data Annex'!$K$1:$K$4997,0),MATCH(N$45,'Data Annex'!$K$1:$AN$1,0)),\"\")","v":0},{"$f":"IFERROR(INDEX('Data Annex'!$K$1:$AN$4997,MATCH(O$44&\"|\"&$B72,'Data Annex'!$K$1:$K$4997,0),MATCH(O$45,'Data Annex'!$K$1:$AN$1,0)),\"\")","v":9.8237340000000006E-4},{"$f":"IFERROR(INDEX('Data Annex'!$K$1:$AN$4997,MATCH(P$44&\"|\"&$B72,'Data Annex'!$K$1:$K$4997,0),MATCH(P$45,'Data Annex'!$K$1:$AN$1,0)),\"\")","v":1.0698153999999999E-3},{"$f":"IFERROR(INDEX('Data Annex'!$K$1:$AN$4997,MATCH(Q$44&\"|\"&$B72,'Data Annex'!$K$1:$K$4997,0),MATCH(Q$45,'Data Annex'!$K$1:$AN$1,0)),\"\")","v":2.9046497599999999E-2},{"$f":"IFERROR(INDEX('Data Annex'!$K$1:$AN$4997,MATCH(R$44&\"|\"&$B72,'Data Annex'!$K$1:$K$4997,0),MATCH(R$45,'Data Annex'!$K$1:$AN$1,0)),\"\")","v":2.9560830999999999E-2},{"$f":"IFERROR(INDEX('Data Annex'!$K$1:$AN$4997,MATCH(S$44&\"|\"&$B72,'Data Annex'!$K$1:$K$4997,0),MATCH(S$45,'Data Annex'!$K$1:$AN$1,0)),\"\")","v":2.2236610399999999E-2},{"$f":"IFERROR(INDEX('Data Annex'!$K$1:$AN$4997,MATCH(T$44&\"|\"&$B72,'Data Annex'!$K$1:$K$4997,0),MATCH(T$45,'Data Annex'!$K$1:$AN$1,0)),\"\")","v":1.9767399200000001E-2},{"$f":"IFERROR(INDEX('Data Annex'!$K$1:$AN$4997,MATCH(U$44&\"|\"&$B72,'Data Annex'!$K$1:$K$4997,0),MATCH(U$45,'Data Annex'!$K$1:$AN$1,0)),\"\")","v":3.5241333000000001E-3},{"$f":"IFERROR(INDEX('Data Annex'!$K$1:$AN$4997,MATCH(V$44&\"|\"&$B72,'Data Annex'!$K$1:$K$4997,0),MATCH(V$45,'Data Annex'!$K$1:$AN$1,0)),\"\")","v":3.0536264E-3},"T12_1","T12_1"]
[null,"PL",null,"PL",{"$f":"IFERROR(INDEX('Data Annex'!$K$1:$AN$4997,MATCH(E$44&\"|\"&$B73,'Data Annex'!$K$1:$K$4997,0),MATCH(E$45,'Data Annex'!$K$1:$AN$1,0)),\"\")","v":1.2626857199999999E-2},{"$f":"IFERROR(INDEX('Data Annex'!$K$1:$AN$4997,MATCH(F$44&\"|\"&$B73,'Data Annex'!$K$1:$K$4997,0),MATCH(F$45,'Data Annex'!$K$1:$AN$1,0)),\"\")","v":1.3560937800000001E-2},{"$f":"IFERROR(INDEX('Data Annex'!$K$1:$AN$4997,MATCH(G$44&\"|\"&$B73,'Data Annex'!$K$1:$K$4997,0),MATCH(G$45,'Data Annex'!$K$1:$AN$1,0)),\"\")","v":8.6377900800000004E-2},{"$f":"IFERROR(INDEX('Data Annex'!$K$1:$AN$4997,MATCH(H$44&\"|\"&$B73,'Data Annex'!$K$1:$K$4997,0),MATCH(H$45,'Data Annex'!$K$1:$AN$1,0)),\"\")","v":8.0008899699999997E-2},{"$f":"IFERROR(INDEX('Data Annex'!$K$1:$AN$4997,MATCH(I$44&\"|\"&$B73,'Data Annex'!$K$1:$K$4997,0),MATCH(I$45,'Data Annex'!$K$1:$AN$1,0)),\"\")","v":3.8088530600000003E-2},{"$f":"IFERROR(INDEX('Data Annex'!$K$1:$AN$4997,MATCH(J$44&\"|\"&$B73,'Data Annex'!$K$1:$K$4997,0),MATCH(J$45,'Data Annex'!$K$1:$AN$1,0)),\"\")","v":5.9259645600000001E-2},{"$f":"IFERROR(INDEX('Data Annex'!$K$1:$AN$4997,MATCH(K$44&\"|\"&$B73,'Data Annex'!$K$1:$K$4997,0),MATCH(K$45,'Data Annex'!$K$1:$AN$1,0)),\"\")","v":8.2478598200000003E-2},{"$f":"IFERROR(INDEX('Data Annex'!$K$1:$AN$4997,MATCH(L$44&\"|\"&$B73,'Data Annex'!$K$1:$K$4997,0),MATCH(L$45,'Data Annex'!$K$1:$AN$1,0)),\"\")","v":8.7655451199999998E-2},{"$f":"IFERROR(INDEX('Data Annex'!$K$1:$AN$4997,MATCH(M$44&\"|\"&$B73,'Data Annex'!$K$1:$K$4997,0),MATCH(M$45,'Data Annex'!$K$1:$AN$1,0)),\"\")","v":1.05423E-4},{"$f":"IFERROR(INDEX('Data Annex'!$K$1:$AN$4997,MATCH(N$44&\"|\"&$B73,'Data Annex'!$K$1:$K$4997,0),MATCH(N$45,'Data Annex'!$K$1:$AN$1,0)),\"\")","v":2.808509E-4},{"$f":"IFERROR(INDEX('Data Annex'!$K$1:$AN$4997,MATCH(O$44&\"|\"&$B73,'Data Annex'!$K$1:$K$4997,0),MATCH(O$45,'Data Annex'!$K$1:$AN$1,0)),\"\")","v":6.9970201800000006E-2},{"$f":"IFERROR(INDEX('Data Annex'!$K$1:$AN$4997,MATCH(P$44&\"|\"&$B73,'Data Annex'!$K$1:$K$4997,0),MATCH(P$45,'Data Annex'!$K$1:$AN$1,0)),\"\")","v":7.0077335399999996E-2},{"$f":"IFERROR(INDEX('Data Annex'!$K$1:$AN$4997,MATCH(Q$44&\"|\"&$B73,'Data Annex'!$K$1:$K$4997,0),MATCH(Q$45,'Data Annex'!$K$1:$AN$1,0)),\"\")","v":3.0639286599999999E-2},{"$f":"IFERROR(INDEX('Data Annex'!$K$1:$AN$4997,MATCH(R$44&\"|\"&$B73,'Data Annex'!$K$1:$K$4997,0),MATCH(R$45,'Data Annex'!$K$1:$AN$1,0)),\"\")","v":2.9596587899999999E-2},{"$f":"IFERROR(INDEX('Data Annex'!$K$1:$AN$4997,MATCH(S$44&\"|\"&$B73,'Data Annex'!$K$1:$K$4997,0),MATCH(S$45,'Data Annex'!$K$1:$AN$1,0)),\"\")","v":2.7340776000000001E-2},{"$f":"IFERROR(INDEX('Data Annex'!$K$1:$AN$4997,MATCH(T$44&\"|\"&$B73,'Data Annex'!$K$1:$K$4997,0),MATCH(T$45,'Data Annex'!$K$1:$AN$1,0)),\"\")","v":3.72464505E-2},{"$f":"IFERROR(INDEX('Data Annex'!$K$1:$AN$4997,MATCH(U$44&\"|\"&$B73,'Data Annex'!$K$1:$K$4997,0),MATCH(U$45,'Data Annex'!$K$1:$AN$1,0)),\"\")","v":4.3562238199999999E-2},{"$f":"IFERROR(INDEX('Data Annex'!$K$1:$AN$4997,MATCH(V$44&\"|\"&$B73,'Data Annex'!$K$1:$K$4997,0),MATCH(V$45,'Data Annex'!$K$1:$AN$1,0)),\"\")","v":4.4925968699999999E-2},"T12_1","T12_1"]
[null,"PT",null,"PT",{"$f":"IFERROR(INDEX('Data Annex'!$K$1:$AN$4997,MATCH(E$44&\"|\"&$B74,'Data Annex'!$K$1:$K$4997,0),MATCH(E$45,'Data Annex'!$K$1:$AN$1,0)),\"\")","v":0.1343421108},{"$f":"IFERROR(INDEX('Data Annex'!$K$1:$AN$4997,MATCH(F$44&\"|\"&$B74,'Data Annex'!$K$1:$K$4997,0),MATCH(F$45,'Data Annex'!$K$1:$AN$1,0)),\"\")","v":0.1245316657},{"$f":"IFERROR(INDEX('Data Annex'!$K$1:$AN$4997,MATCH(G$44&\"|\"&$B74,'Data Annex'!$K$1:$K$4997,0),MATCH(G$45,'Data Annex'!$K$1:$AN$1,0)),\"\")","v":0.12291617520000001},{"$f":"IFERROR(INDEX('Data Annex'!$K$1:$AN$4997,MATCH(H$44&\"|\"&$B74,'Data Annex'!$K$1:$K$4997,0),MATCH(H$45,'Data Annex'!$K$1:$AN$1,0)),\"\")","v":0.11544053360000001},{"$f":"IFERROR(INDEX('Data Annex'!$K$1:$AN$4997,MATCH(I$44&\"|\"&$B74,'Data Annex'!$K$1:$K$4997,0),MATCH(I$45,'Data Annex'!$K$1:$AN$1,0)),\"\")","v":0.15807733339999999},{"$f":"IFERROR(INDEX('Data Annex'!$K$1:$AN$4997,MATCH(J$44&\"|\"&$B74,'Data Annex'!$K$1:$K$4997,0),MATCH(J$45,'Data Annex'!$K$1:$AN$1,0)),\"\")","v":0.1098901305},{"$f":"IFERROR(INDEX('Data Annex'!$K$1:$AN$4997,MATCH(K$44&\"|\"&$B74,'Data Annex'!$K$1:$K$4997,0),MATCH(K$45,'Data Annex'!$K$1:$AN$1,0)),\"\")","v":9.7320721400000004E-2},{"$f":"IFERROR(INDEX('Data Annex'!$K$1:$AN$4997,MATCH(L$44&\"|\"&$B74,'Data Annex'!$K$1:$K$4997,0),MATCH(L$45,'Data Annex'!$K$1:$AN$1,0)),\"\")","v":8.4128273500000003E-2},{"$f":"IFERROR(INDEX('Data Annex'!$K$1:$AN$4997,MATCH(M$44&\"|\"&$B74,'Data Annex'!$K$1:$K$4997,0),MATCH(M$45,'Data Annex'!$K$1:$AN$1,0)),\"\")","v":4.8344080000000002E-4},{"$f":"IFERROR(INDEX('Data Annex'!$K$1:$AN$4997,MATCH(N$44&\"|\"&$B74,'Data Annex'!$K$1:$K$4997,0),MATCH(N$45,'Data Annex'!$K$1:$AN$1,0)),\"\")","v":5.8603500000000005E-4},{"$f":"IFERROR(INDEX('Data Annex'!$K$1:$AN$4997,MATCH(O$44&\"|\"&$B74,'Data Annex'!$K$1:$K$4997,0),MATCH(O$45,'Data Annex'!$K$1:$AN$1,0)),\"\")","v":0.1385554447},{"$f":"IFERROR(INDEX('Data Annex'!$K$1:$AN$4997,MATCH(P$44&\"|\"&$B74,'Data Annex'!$K$1:$K$4997,0),MATCH(P$45,'Data Annex'!$K$1:$AN$1,0)),\"\")","v":0.1114569673},{"$f":"IFERROR(INDEX('Data Annex'!$K$1:$AN$4997,MATCH(Q$44&\"|\"&$B74,'Data Annex'!$K$1:$K$4997,0),MATCH(Q$45,'Data Annex'!$K$1:$AN$1,0)),\"\")","v":6.4084767900000006E-2},{"$f":"IFERROR(INDEX('Data Annex'!$K$1:$AN$4997,MATCH(R$44&\"|\"&$B74,'Data Annex'!$K$1:$K$4997,0),MATCH(R$45,'Data Annex'!$K$1:$AN$1,0)),\"\")","v":6.6206135999999999E-2},{"$f":"IFERROR(INDEX('Data Annex'!$K$1:$AN$4997,MATCH(S$44&\"|\"&$B74,'Data Annex'!$K$1:$K$4997,0),MATCH(S$45,'Data Annex'!$K$1:$AN$1,0)),\"\")","v":0.321925399},{"$f":"IFERROR(INDEX('Data Annex'!$K$1:$AN$4997,MATCH(T$44&\"|\"&$B74,'Data Annex'!$K$1:$K$4997,0),MATCH(T$45,'Data Annex'!$K$1:$AN$1,0)),\"\")","v":0.3375663773},{"$f":"IFERROR(INDEX('Data Annex'!$K$1:$AN$4997,MATCH(U$44&\"|\"&$B74,'Data Annex'!$K$1:$K$4997,0),MATCH(U$45,'Data Annex'!$K$1:$AN$1,0)),\"\")","v":0.18424729449999999},{"$f":"IFERROR(INDEX('Data Annex'!$K$1:$AN$4997,MATCH(V$44&\"|\"&$B74,'Data Annex'!$K$1:$K$4997,0),MATCH(V$45,'Data Annex'!$K$1:$AN$1,0)),\"\")","v":0.18024244919999999},"T12_1","T12_1"]
[null,"RO",null,"RO",{"$f":"IFERROR(INDEX('Data Annex'!$K$1:$AN$4997,MATCH(E$44&\"|\"&$B75,'Data Annex'!$K$1:$K$4997,0),MATCH(E$45,'Data Annex'!$K$1:$AN$1,0)),\"\")","v":6.9265350599999997E-2},{"$f":"IFERROR(INDEX('Data Annex'!$K$1:$AN$4997,MATCH(F$44&\"|\"&$B75,'Data Annex'!$K$1:$K$4997,0),MATCH(F$45,'Data Annex'!$K$1:$AN$1,0)),\"\")","v":1.40753375E-2},{"$f":"IFERROR(INDEX('Data Annex'!$K$1:$AN$4997,MATCH(G$44&\"|\"&$B75,'Data Annex'!$K$1:$K$4997,0),MATCH(G$45,'Data Annex'!$K$1:$AN$1,0)),\"\")","v":3.0873184099999999E-2},{"$f":"IFERROR(INDEX('Data Annex'!$K$1:$AN$4997,MATCH(H$44&\"|\"&$B75,'Data Annex'!$K$1:$K$4997,0),MATCH(H$45,'Data Annex'!$K$1:$AN$1,0)),\"\")","v":3.2032965900000002E-2},{"$f":"IFERROR(INDEX('Data Annex'!$K$1:$AN$4997,MATCH(I$44&\"|\"&$B75,'Data Annex'!$K$1:$K$4997,0),MATCH(I$45,'Data Annex'!$K$1:$AN$1,0)),\"\")","v":0.1090563605},{"$f":"IFERROR(INDEX('Data Annex'!$K$1:$AN$4997,MATCH(J$44&\"|\"&$B75,'Data Annex'!$K$1:$K$4997,0),MATCH(J$45,'Data Annex'!$K$1:$AN$1,0)),\"\")","v":9.80557648E-2},{"$f":"IFERROR(INDEX('Data Annex'!$K$1:$AN$4997,MATCH(K$44&\"|\"&$B75,'Data Annex'!$K$1:$K$4997,0),MATCH(K$45,'Data Annex'!$K$1:$AN$1,0)),\"\")","v":3.6310794299999997E-2},{"$f":"IFERROR(INDEX('Data Annex'!$K$1:$AN$4997,MATCH(L$44&\"|\"&$B75,'Data Annex'!$K$1:$K$4997,0),MATCH(L$45,'Data Annex'!$K$1:$AN$1,0)),\"\")","v":3.4510915000000003E-2},{"$f":"IFERROR(INDEX('Data Annex'!$K$1:$AN$4997,MATCH(M$44&\"|\"&$B75,'Data Annex'!$K$1:$K$4997,0),MATCH(M$45,'Data Annex'!$K$1:$AN$1,0)),\"\")","v":2.1621591499999999E-2},{"$f":"IFERROR(INDEX('Data Annex'!$K$1:$AN$4997,MATCH(N$44&\"|\"&$B75,'Data Annex'!$K$1:$K$4997,0),MATCH(N$45,'Data Annex'!$K$1:$AN$1,0)),\"\")","v":1.7646241900000002E-2},{"$f":"IFERROR(INDEX('Data Annex'!$K$1:$AN$4997,MATCH(O$44&\"|\"&$B75,'Data Annex'!$K$1:$K$4997,0),MATCH(O$45,'Data Annex'!$K$1:$AN$1,0)),\"\")","v":1.9316859499999998E-2},{"$f":"IFERROR(INDEX('Data Annex'!$K$1:$AN$4997,MATCH(P$44&\"|\"&$B75,'Data Annex'!$K$1:$K$4997,0),MATCH(P$45,'Data Annex'!$K$1:$AN$1,0)),\"\")","v":2.0861762400000001E-2},{"$f":"IFERROR(INDEX('Data Annex'!$K$1:$AN$4997,MATCH(Q$44&\"|\"&$B75,'Data Annex'!$K$1:$K$4997,0),MATCH(Q$45,'Data Annex'!$K$1:$AN$1,0)),\"\")","v":1.7510500500000001E-2},{"$f":"IFERROR(INDEX('Data Annex'!$K$1:$AN$4997,MATCH(R$44&\"|\"&$B75,'Data Annex'!$K$1:$K$4997,0),MATCH(R$45,'Data Annex'!$K$1:$AN$1,0)),\"\")","v":1.78818226E-2},{"$f":"IFERROR(INDEX('Data Annex'!$K$1:$AN$4997,MATCH(S$44&\"|\"&$B75,'Data Annex'!$K$1:$K$4997,0),MATCH(S$45,'Data Annex'!$K$1:$AN$1,0)),\"\")","v":3.3142486700000001E-2},{"$f":"IFERROR(INDEX('Data Annex'!$K$1:$AN$4997,MATCH(T$44&\"|\"&$B75,'Data Annex'!$K$1:$K$4997,0),MATCH(T$45,'Data Annex'!$K$1:$AN$1,0)),\"\")","v":4.7038458200000001E-2},{"$f":"IFERROR(INDEX('Data Annex'!$K$1:$AN$4997,MATCH(U$44&\"|\"&$B75,'Data Annex'!$K$1:$K$4997,0),MATCH(U$45,'Data Annex'!$K$1:$AN$1,0)),\"\")","v":9.0306383099999998E-2},{"$f":"IFERROR(INDEX('Data Annex'!$K$1:$AN$4997,MATCH(V$44&\"|\"&$B75,'Data Annex'!$K$1:$K$4997,0),MATCH(V$45,'Data Annex'!$K$1:$AN$1,0)),\"\")","v":7.7756981399999994E-2},"T12_1","T12_1"]
[null,"SE",null,"SE",{"$f":"IFERROR(INDEX('Data Annex'!$K$1:$AN$4997,MATCH(E$44&\"|\"&$B76,'Data Annex'!$K$1:$K$4997,0),MATCH(E$45,'Data Annex'!$K$1:$AN$1,0)),\"\")","v":6.2007295E-3},{"$f":"IFERROR(INDEX('Data Annex'!$K$1:$AN$4997,MATCH(F$44&\"|\"&$B76,'Data Annex'!$K$1:$K$4997,0),MATCH(F$45,'Data Annex'!$K$1:$AN$1,0)),\"\")","v":2.4319586999999999E-3},{"$f":"IFERROR(INDEX('Data Annex'!$K$1:$AN$4997,MATCH(G$44&\"|\"&$B76,'Data Annex'!$K$1:$K$4997,0),MATCH(G$45,'Data Annex'!$K$1:$AN$1,0)),\"\")","v":1.6927025999999999E-3},{"$f":"IFERROR(INDEX('Data Annex'!$K$1:$AN$4997,MATCH(H$44&\"|\"&$B76,'Data Annex'!$K$1:$K$4997,0),MATCH(H$45,'Data Annex'!$K$1:$AN$1,0)),\"\")","v":1.3190267999999999E-3},{"$f":"IFERROR(INDEX('Data Annex'!$K$1:$AN$4997,MATCH(I$44&\"|\"&$B76,'Data Annex'!$K$1:$K$4997,0),MATCH(I$45,'Data Annex'!$K$1:$AN$1,0)),\"\")","v":3.5909979000000002E-3},{"$f":"IFERROR(INDEX('Data Annex'!$K$1:$AN$4997,MATCH(J$44&\"|\"&$B76,'Data Annex'!$K$1:$K$4997,0),MATCH(J$45,'Data Annex'!$K$1:$AN$1,0)),\"\")","v":1.8671862999999999E-3},{"$f":"IFERROR(INDEX('Data Annex'!$K$1:$AN$4997,MATCH(K$44&\"|\"&$B76,'Data Annex'!$K$1:$K$4997,0),MATCH(K$45,'Data Annex'!$K$1:$AN$1,0)),\"\")","v":8.3291215999999994E-3},{"$f":"IFERROR(INDEX('Data Annex'!$K$1:$AN$4997,MATCH(L$44&\"|\"&$B76,'Data Annex'!$K$1:$K$4997,0),MATCH(L$45,'Data Annex'!$K$1:$AN$1,0)),\"\")","v":1.2257045499999999E-2},{"$f":"IFERROR(INDEX('Data Annex'!$K$1:$AN$4997,MATCH(M$44&\"|\"&$B76,'Data Annex'!$K$1:$K$4997,0),MATCH(M$45,'Data Annex'!$K$1:$AN$1,0)),\"\")","v":4.2434300000000001E-5},{"$f":"IFERROR(INDEX('Data Annex'!$K$1:$AN$4997,MATCH(N$44&\"|\"&$B76,'Data Annex'!$K$1:$K$4997,0),MATCH(N$45,'Data Annex'!$K$1:$AN$1,0)),\"\")","v":2.9249400000000002E-5},{"$f":"IFERROR(INDEX('Data Annex'!$K$1:$AN$4997,MATCH(O$44&\"|\"&$B76,'Data Annex'!$K$1:$K$4997,0),MATCH(O$45,'Data Annex'!$K$1:$AN$1,0)),\"\")","v":6.7792598000000004E-3},{"$f":"IFERROR(INDEX('Data Annex'!$K$1:$AN$4997,MATCH(P$44&\"|\"&$B76,'Data Annex'!$K$1:$K$4997,0),MATCH(P$45,'Data Annex'!$K$1:$AN$1,0)),\"\")","v":5.3165727000000001E-3},{"$f":"IFERROR(INDEX('Data Annex'!$K$1:$AN$4997,MATCH(Q$44&\"|\"&$B76,'Data Annex'!$K$1:$K$4997,0),MATCH(Q$45,'Data Annex'!$K$1:$AN$1,0)),\"\")","v":7.1892668E-3},{"$f":"IFERROR(INDEX('Data Annex'!$K$1:$AN$4997,MATCH(R$44&\"|\"&$B76,'Data Annex'!$K$1:$K$4997,0),MATCH(R$45,'Data Annex'!$K$1:$AN$1,0)),\"\")","v":1.38941749E-2},{"$f":"IFERROR(INDEX('Data Annex'!$K$1:$AN$4997,MATCH(S$44&\"|\"&$B76,'Data Annex'!$K$1:$K$4997,0),MATCH(S$45,'Data Annex'!$K$1:$AN$1,0)),\"\")","v":2.1275769600000001E-2},{"$f":"IFERROR(INDEX('Data Annex'!$K$1:$AN$4997,MATCH(T$44&\"|\"&$B76,'Data Annex'!$K$1:$K$4997,0),MATCH(T$45,'Data Annex'!$K$1:$AN$1,0)),\"\")","v":2.0648894000000001E-2},{"$f":"IFERROR(INDEX('Data Annex'!$K$1:$AN$4997,MATCH(U$44&\"|\"&$B76,'Data Annex'!$K$1:$K$4997,0),MATCH(U$45,'Data Annex'!$K$1:$AN$1,0)),\"\")","v":2.91027973E-2},{"$f":"IFERROR(INDEX('Data Annex'!$K$1:$AN$4997,MATCH(V$44&\"|\"&$B76,'Data Annex'!$K$1:$K$4997,0),MATCH(V$45,'Data Annex'!$K$1:$AN$1,0)),\"\")","v":3.1397254999999999E-2},"T12_1","T12_1"]
[null,"SI",null,"SI",{"$f":"IFERROR(INDEX('Data Annex'!$K$1:$AN$4997,MATCH(E$44&\"|\"&$B77,'Data Annex'!$K$1:$K$4997,0),MATCH(E$45,'Data Annex'!$K$1:$AN$1,0)),\"\")","v":7.1678949999999996E-4},{"$f":"IFERROR(INDEX('Data Annex'!$K$1:$AN$4997,MATCH(F$44&\"|\"&$B77,'Data Annex'!$K$1:$K$4997,0),MATCH(F$45,'Data Annex'!$K$1:$AN$1,0)),\"\")","v":7.9385700000000003E-4},{"$f":"IFERROR(INDEX('Data Annex'!$K$1:$AN$4997,MATCH(G$44&\"|\"&$B77,'Data Annex'!$K$1:$K$4997,0),MATCH(G$45,'Data Annex'!$K$1:$AN$1,0)),\"\")","v":4.8586736300000002E-2},{"$f":"IFERROR(INDEX('Data Annex'!$K$1:$AN$4997,MATCH(H$44&\"|\"&$B77,'Data Annex'!$K$1:$K$4997,0),MATCH(H$45,'Data Annex'!$K$1:$AN$1,0)),\"\")","v":5.0661703799999999E-2},{"$f":"IFERROR(INDEX('Data Annex'!$K$1:$AN$4997,MATCH(I$44&\"|\"&$B77,'Data Annex'!$K$1:$K$4997,0),MATCH(I$45,'Data Annex'!$K$1:$AN$1,0)),\"\")","v":0.1237744893},{"$f":"IFERROR(INDEX('Data Annex'!$K$1:$AN$4997,MATCH(J$44&\"|\"&$B77,'Data Annex'!$K$1:$K$4997,0),MATCH(J$45,'Data Annex'!$K$1:$AN$1,0)),\"\")","v":0.13432884449999999},{"$f":"IFERROR(INDEX('Data Annex'!$K$1:$AN$4997,MATCH(K$44&\"|\"&$B77,'Data Annex'!$K$1:$K$4997,0),MATCH(K$45,'Data Annex'!$K$1:$AN$1,0)),\"\")","v":8.5732734300000002E-2},{"$f":"IFERROR(INDEX('Data Annex'!$K$1:$AN$4997,MATCH(L$44&\"|\"&$B77,'Data Annex'!$K$1:$K$4997,0),MATCH(L$45,'Data Annex'!$K$1:$AN$1,0)),\"\")","v":7.7810802900000003E-2},{"$f":"IFERROR(INDEX('Data Annex'!$K$1:$AN$4997,MATCH(M$44&\"|\"&$B77,'Data Annex'!$K$1:$K$4997,0),MATCH(M$45,'Data Annex'!$K$1:$AN$1,0)),\"\")","v":1.9802360599999999E-2},{"$f":"IFERROR(INDEX('Data Annex'!$K$1:$AN$4997,MATCH(N$44&\"|\"&$B77,'Data Annex'!$K$1:$K$4997,0),MATCH(N$45,'Data Annex'!$K$1:$AN$1,0)),\"\")","v":0.38358894529999998},{"$f":"IFERROR(INDEX('Data Annex'!$K$1:$AN$4997,MATCH(O$44&\"|\"&$B77,'Data Annex'!$K$1:$K$4997,0),MATCH(O$45,'Data Annex'!$K$1:$AN$1,0)),\"\")","v":6.1581106199999999E-2},{"$f":"IFERROR(INDEX('Data Annex'!$K$1:$AN$4997,MATCH(P$44&\"|\"&$B77,'Data Annex'!$K$1:$K$4997,0),MATCH(P$45,'Data Annex'!$K$1:$AN$1,0)),\"\")","v":6.20118224E-2},{"$f":"IFERROR(INDEX('Data Annex'!$K$1:$AN$4997,MATCH(Q$44&\"|\"&$B77,'Data Annex'!$K$1:$K$4997,0),MATCH(Q$45,'Data Annex'!$K$1:$AN$1,0)),\"\")","v":0.1079065849},{"$f":"IFERROR(INDEX('Data Annex'!$K$1:$AN$4997,MATCH(R$44&\"|\"&$B77,'Data Annex'!$K$1:$K$4997,0),MATCH(R$45,'Data Annex'!$K$1:$AN$1,0)),\"\")","v":3.00924534E-2},{"$f":"IFERROR(INDEX('Data Annex'!$K$1:$AN$4997,MATCH(S$44&\"|\"&$B77,'Data Annex'!$K$1:$K$4997,0),MATCH(S$45,'Data Annex'!$K$1:$AN$1,0)),\"\")","v":8.88068635E-2},{"$f":"IFERROR(INDEX('Data Annex'!$K$1:$AN$4997,MATCH(T$44&\"|\"&$B77,'Data Annex'!$K$1:$K$4997,0),MATCH(T$45,'Data Annex'!$K$1:$AN$1,0)),\"\")","v":8.8271038800000007E-2},{"$f":"IFERROR(INDEX('Data Annex'!$K$1:$AN$4997,MATCH(U$44&\"|\"&$B77,'Data Annex'!$K$1:$K$4997,0),MATCH(U$45,'Data Annex'!$K$1:$AN$1,0)),\"\")","v":4.6795142099999999E-2},{"$f":"IFERROR(INDEX('Data Annex'!$K$1:$AN$4997,MATCH(V$44&\"|\"&$B77,'Data Annex'!$K$1:$K$4997,0),MATCH(V$45,'Data Annex'!$K$1:$AN$1,0)),\"\")","v":8.41275727E-2},"T12_1","T12_1"]
[null,"SK",null,"SK",{"$f":"IFERROR(INDEX('Data Annex'!$K$1:$AN$4997,MATCH(E$44&\"|\"&$B78,'Data Annex'!$K$1:$K$4997,0),MATCH(E$45,'Data Annex'!$K$1:$AN$1,0)),\"\")","v":1.8876019999999999E-4},{"$f":"IFERROR(INDEX('Data Annex'!$K$1:$AN$4997,MATCH(F$44&\"|\"&$B78,'Data Annex'!$K$1:$K$4997,0),MATCH(F$45,'Data Annex'!$K$1:$AN$1,0)),\"\")","v":1.6987339999999999E-4},{"$f":"IFERROR(INDEX('Data Annex'!$K$1:$AN$4997,MATCH(G$44&\"|\"&$B78,'Data Annex'!$K$1:$K$4997,0),MATCH(G$45,'Data Annex'!$K$1:$AN$1,0)),\"\")","v":3.09515343E-2},{"$f":"IFERROR(INDEX('Data Annex'!$K$1:$AN$4997,MATCH(H$44&\"|\"&$B78,'Data Annex'!$K$1:$K$4997,0),MATCH(H$45,'Data Annex'!$K$1:$AN$1,0)),\"\")","v":3.11370412E-2},{"$f":"IFERROR(INDEX('Data Annex'!$K$1:$AN$4997,MATCH(I$44&\"|\"&$B78,'Data Annex'!$K$1:$K$4997,0),MATCH(I$45,'Data Annex'!$K$1:$AN$1,0)),\"\")","v":1.9439653099999999E-2},{"$f":"IFERROR(INDEX('Data Annex'!$K$1:$AN$4997,MATCH(J$44&\"|\"&$B78,'Data Annex'!$K$1:$K$4997,0),MATCH(J$45,'Data Annex'!$K$1:$AN$1,0)),\"\")","v":1.3280922800000001E-2},{"$f":"IFERROR(INDEX('Data Annex'!$K$1:$AN$4997,MATCH(K$44&\"|\"&$B78,'Data Annex'!$K$1:$K$4997,0),MATCH(K$45,'Data Annex'!$K$1:$AN$1,0)),\"\")","v":2.3444594799999999E-2},{"$f":"IFERROR(INDEX('Data Annex'!$K$1:$AN$4997,MATCH(L$44&\"|\"&$B78,'Data Annex'!$K$1:$K$4997,0),MATCH(L$45,'Data Annex'!$K$1:$AN$1,0)),\"\")","v":3.6722753400000002E-2},{"$f":"IFERROR(INDEX('Data Annex'!$K$1:$AN$4997,MATCH(M$44&\"|\"&$B78,'Data Annex'!$K$1:$K$4997,0),MATCH(M$45,'Data Annex'!$K$1:$AN$1,0)),\"\")","v":3.6352E-5},{"$f":"IFERROR(INDEX('Data Annex'!$K$1:$AN$4997,MATCH(N$44&\"|\"&$B78,'Data Annex'!$K$1:$K$4997,0),MATCH(N$45,'Data Annex'!$K$1:$AN$1,0)),\"\")","v":4.0334199999999997E-5},{"$f":"IFERROR(INDEX('Data Annex'!$K$1:$AN$4997,MATCH(O$44&\"|\"&$B78,'Data Annex'!$K$1:$K$4997,0),MATCH(O$45,'Data Annex'!$K$1:$AN$1,0)),\"\")","v":6.6173463000000002E-3},{"$f":"IFERROR(INDEX('Data Annex'!$K$1:$AN$4997,MATCH(P$44&\"|\"&$B78,'Data Annex'!$K$1:$K$4997,0),MATCH(P$45,'Data Annex'!$K$1:$AN$1,0)),\"\")","v":6.6323116999999999E-3},{"$f":"IFERROR(INDEX('Data Annex'!$K$1:$AN$4997,MATCH(Q$44&\"|\"&$B78,'Data Annex'!$K$1:$K$4997,0),MATCH(Q$45,'Data Annex'!$K$1:$AN$1,0)),\"\")","v":1.2653930000000001E-3},{"$f":"IFERROR(INDEX('Data Annex'!$K$1:$AN$4997,MATCH(R$44&\"|\"&$B78,'Data Annex'!$K$1:$K$4997,0),MATCH(R$45,'Data Annex'!$K$1:$AN$1,0)),\"\")","v":1.6691493000000001E-3},{"$f":"IFERROR(INDEX('Data Annex'!$K$1:$AN$4997,MATCH(S$44&\"|\"&$B78,'Data Annex'!$K$1:$K$4997,0),MATCH(S$45,'Data Annex'!$K$1:$AN$1,0)),\"\")","v":1.03335917E-2},{"$f":"IFERROR(INDEX('Data Annex'!$K$1:$AN$4997,MATCH(T$44&\"|\"&$B78,'Data Annex'!$K$1:$K$4997,0),MATCH(T$45,'Data Annex'!$K$1:$AN$1,0)),\"\")","v":1.22840334E-2},{"$f":"IFERROR(INDEX('Data Annex'!$K$1:$AN$4997,MATCH(U$44&\"|\"&$B78,'Data Annex'!$K$1:$K$4997,0),MATCH(U$45,'Data Annex'!$K$1:$AN$1,0)),\"\")","v":6.1412615999999996E-3},{"$f":"IFERROR(INDEX('Data Annex'!$K$1:$AN$4997,MATCH(V$44&\"|\"&$B78,'Data Annex'!$K$1:$K$4997,0),MATCH(V$45,'Data Annex'!$K$1:$AN$1,0)),\"\")","v":4.4796428000000001E-3},"T12_1","T12_1"]
[null,"EU",null,"EU/EEA",{"$f":"IFERROR(INDEX('Data Annex'!$K$1:$AN$4997,MATCH(E$44&\"|\"&$B79,'Data Annex'!$K$1:$K$4997,0),MATCH(E$45,'Data Annex'!$K$1:$AN$1,0)),\"\")","v":3.6266148400000003E-2},{"$f":"IFERROR(INDEX('Data Annex'!$K$1:$AN$4997,MATCH(F$44&\"|\"&$B79,'Data Annex'!$K$1:$K$4997,0),MATCH(F$45,'Data Annex'!$K$1:$AN$1,0)),\"\")","v":3.1997527200000001E-2},{"$f":"IFERROR(INDEX('Data Annex'!$K$1:$AN$4997,MATCH(G$44&\"|\"&$B79,'Data Annex'!$K$1:$K$4997,0),MATCH(G$45,'Data Annex'!$K$1:$AN$1,0)),\"\")","v":2.84320115E-2},{"$f":"IFERROR(INDEX('Data Annex'!$K$1:$AN$4997,MATCH(H$44&\"|\"&$B79,'Data Annex'!$K$1:$K$4997,0),MATCH(H$45,'Data Annex'!$K$1:$AN$1,0)),\"\")","v":2.7061724799999999E-2},{"$f":"IFERROR(INDEX('Data Annex'!$K$1:$AN$4997,MATCH(I$44&\"|\"&$B79,'Data Annex'!$K$1:$K$4997,0),MATCH(I$45,'Data Annex'!$K$1:$AN$1,0)),\"\")","v":4.2841155999999998E-2},{"$f":"IFERROR(INDEX('Data Annex'!$K$1:$AN$4997,MATCH(J$44&\"|\"&$B79,'Data Annex'!$K$1:$K$4997,0),MATCH(J$45,'Data Annex'!$K$1:$AN$1,0)),\"\")","v":4.4928600800000003E-2},{"$f":"IFERROR(INDEX('Data Annex'!$K$1:$AN$4997,MATCH(K$44&\"|\"&$B79,'Data Annex'!$K$1:$K$4997,0),MATCH(K$45,'Data Annex'!$K$1:$AN$1,0)),\"\")","v":3.8054298399999999E-2},{"$f":"IFERROR(INDEX('Data Annex'!$K$1:$AN$4997,MATCH(L$44&\"|\"&$B79,'Data Annex'!$K$1:$K$4997,0),MATCH(L$45,'Data Annex'!$K$1:$AN$1,0)),\"\")","v":3.8893602100000001E-2},{"$f":"IFERROR(INDEX('Data Annex'!$K$1:$AN$4997,MATCH(M$44&\"|\"&$B79,'Data Annex'!$K$1:$K$4997,0),MATCH(M$45,'Data Annex'!$K$1:$AN$1,0)),\"\")","v":1.41091224E-2},{"$f":"IFERROR(INDEX('Data Annex'!$K$1:$AN$4997,MATCH(N$44&\"|\"&$B79,'Data Annex'!$K$1:$K$4997,0),MATCH(N$45,'Data Annex'!$K$1:$AN$1,0)),\"\")","v":1.52778729E-2},{"$f":"IFERROR(INDEX('Data Annex'!$K$1:$AN$4997,MATCH(O$44&\"|\"&$B79,'Data Annex'!$K$1:$K$4997,0),MATCH(O$45,'Data Annex'!$K$1:$AN$1,0)),\"\")","v":4.4449835299999997E-2},{"$f":"IFERROR(INDEX('Data Annex'!$K$1:$AN$4997,MATCH(P$44&\"|\"&$B79,'Data Annex'!$K$1:$K$4997,0),MATCH(P$45,'Data Annex'!$K$1:$AN$1,0)),\"\")","v":4.24762552E-2},{"$f":"IFERROR(INDEX('Data Annex'!$K$1:$AN$4997,MATCH(Q$44&\"|\"&$B79,'Data Annex'!$K$1:$K$4997,0),MATCH(Q$45,'Data Annex'!$K$1:$AN$1,0)),\"\")","v":3.2379091200000001E-2},{"$f":"IFERROR(INDEX('Data Annex'!$K$1:$AN$4997,MATCH(R$44&\"|\"&$B79,'Data Annex'!$K$1:$K$4997,0),MATCH(R$45,'Data Annex'!$K$1:$AN$1,0)),\"\")","v":3.0103590199999999E-2},{"$f":"IFERROR(INDEX('Data Annex'!$K$1:$AN$4997,MATCH(S$44&\"|\"&$B79,'Data Annex'!$K$1:$K$4997,0),MATCH(S$45,'Data Annex'!$K$1:$AN$1,0)),\"\")","v":6.7494642399999999E-2},{"$f":"IFERROR(INDEX('Data Annex'!$K$1:$AN$4997,MATCH(T$44&\"|\"&$B79,'Data Annex'!$K$1:$K$4997,0),MATCH(T$45,'Data Annex'!$K$1:$AN$1,0)),\"\")","v":7.2621243299999999E-2},{"$f":"IFERROR(INDEX('Data Annex'!$K$1:$AN$4997,MATCH(U$44&\"|\"&$B79,'Data Annex'!$K$1:$K$4997,0),MATCH(U$45,'Data Annex'!$K$1:$AN$1,0)),\"\")","v":4.3024342399999999E-2},{"$f":"IFERROR(INDEX('Data Annex'!$K$1:$AN$4997,MATCH(V$44&\"|\"&$B79,'Data Annex'!$K$1:$K$4997,0),MATCH(V$45,'Data Annex'!$K$1:$AN$1,0)),\"\")","v":4.46854031E-2},"T12_1","T12_1"]
[null,"GB",null,"GB",{"$f":"IFERROR(INDEX('Data Annex'!$K$1:$AN$4997,MATCH(E$44&\"|\"&$B80,'Data Annex'!$K$1:$K$4997,0),MATCH(E$45,'Data Annex'!$K$1:$AN$1,0)),\"\")","v":5.3236114700000003E-2},{"$f":"IFERROR(INDEX('Data Annex'!$K$1:$AN$4997,MATCH(F$44&\"|\"&$B80,'Data Annex'!$K$1:$K$4997,0),MATCH(F$45,'Data Annex'!$K$1:$AN$1,0)),\"\")","v":2.58631808E-2},{"$f":"IFERROR(INDEX('Data Annex'!$K$1:$AN$4997,MATCH(G$44&\"|\"&$B80,'Data Annex'!$K$1:$K$4997,0),MATCH(G$45,'Data Annex'!$K$1:$AN$1,0)),\"\")","v":1.7556962299999999E-2},{"$f":"IFERROR(INDEX('Data Annex'!$K$1:$AN$4997,MATCH(H$44&\"|\"&$B80,'Data Annex'!$K$1:$K$4997,0),MATCH(H$45,'Data Annex'!$K$1:$AN$1,0)),\"\")","v":1.9029284899999999E-2},{"$f":"IFERROR(INDEX('Data Annex'!$K$1:$AN$4997,MATCH(I$44&\"|\"&$B80,'Data Annex'!$K$1:$K$4997,0),MATCH(I$45,'Data Annex'!$K$1:$AN$1,0)),\"\")","v":1.9607385299999999E-2},{"$f":"IFERROR(INDEX('Data Annex'!$K$1:$AN$4997,MATCH(J$44&\"|\"&$B80,'Data Annex'!$K$1:$K$4997,0),MATCH(J$45,'Data Annex'!$K$1:$AN$1,0)),\"\")","v":1.99227173E-2},{"$f":"IFERROR(INDEX('Data Annex'!$K$1:$AN$4997,MATCH(K$44&\"|\"&$B80,'Data Annex'!$K$1:$K$4997,0),MATCH(K$45,'Data Annex'!$K$1:$AN$1,0)),\"\")","v":3.6054572999999999E-2},{"$f":"IFERROR(INDEX('Data Annex'!$K$1:$AN$4997,MATCH(L$44&\"|\"&$B80,'Data Annex'!$K$1:$K$4997,0),MATCH(L$45,'Data Annex'!$K$1:$AN$1,0)),\"\")","v":3.9140764500000001E-2},{"$f":"IFERROR(INDEX('Data Annex'!$K$1:$AN$4997,MATCH(M$44&\"|\"&$B80,'Data Annex'!$K$1:$K$4997,0),MATCH(M$45,'Data Annex'!$K$1:$AN$1,0)),\"\")","v":2.2398648000000001E-3},{"$f":"IFERROR(INDEX('Data Annex'!$K$1:$AN$4997,MATCH(N$44&\"|\"&$B80,'Data Annex'!$K$1:$K$4997,0),MATCH(N$45,'Data Annex'!$K$1:$AN$1,0)),\"\")","v":2.3524255000000002E-3},{"$f":"IFERROR(INDEX('Data Annex'!$K$1:$AN$4997,MATCH(O$44&\"|\"&$B80,'Data Annex'!$K$1:$K$4997,0),MATCH(O$45,'Data Annex'!$K$1:$AN$1,0)),\"\")","v":2.0396768700000002E-2},{"$f":"IFERROR(INDEX('Data Annex'!$K$1:$AN$4997,MATCH(P$44&\"|\"&$B80,'Data Annex'!$K$1:$K$4997,0),MATCH(P$45,'Data Annex'!$K$1:$AN$1,0)),\"\")","v":2.40578706E-2},{"$f":"IFERROR(INDEX('Data Annex'!$K$1:$AN$4997,MATCH(Q$44&\"|\"&$B80,'Data Annex'!$K$1:$K$4997,0),MATCH(Q$45,'Data Annex'!$K$1:$AN$1,0)),\"\")","v":4.9196066900000002E-2},{"$f":"IFERROR(INDEX('Data Annex'!$K$1:$AN$4997,MATCH(R$44&\"|\"&$B80,'Data Annex'!$K$1:$K$4997,0),MATCH(R$45,'Data Annex'!$K$1:$AN$1,0)),\"\")","v":4.8940956799999998E-2},{"$f":"IFERROR(INDEX('Data Annex'!$K$1:$AN$4997,MATCH(S$44&\"|\"&$B80,'Data Annex'!$K$1:$K$4997,0),MATCH(S$45,'Data Annex'!$K$1:$AN$1,0)),\"\")","v":3.5263341599999998E-2},{"$f":"IFERROR(INDEX('Data Annex'!$K$1:$AN$4997,MATCH(T$44&\"|\"&$B80,'Data Annex'!$K$1:$K$4997,0),MATCH(T$45,'Data Annex'!$K$1:$AN$1,0)),\"\")","v":4.4249835799999998E-2},{"$f":"IFERROR(INDEX('Data Annex'!$K$1:$AN$4997,MATCH(U$44&\"|\"&$B80,'Data Annex'!$K$1:$K$4997,0),MATCH(U$45,'Data Annex'!$K$1:$AN$1,0)),\"\")","v":5.73390389E-2},{"$f":"IFERROR(INDEX('Data Annex'!$K$1:$AN$4997,MATCH(V$44&\"|\"&$B80,'Data Annex'!$K$1:$K$4997,0),MATCH(V$45,'Data Annex'!$K$1:$AN$1,0)),\"\")","v":8.8299822799999997E-2},"T12_1","T12_1"]
[null,null,null,null,null,null,null,null,null,null,null,null,null,null,null,null,null,null,null,null,null,null,"T12_1","T12_1"]
[null,null,null,"The data is based on gross carrying amounts, other than held for trading."]
[]
[null,null,null,"Individual country data includes subsidiaries, which are excluded from EU aggregate. For example, at country level the subsidiary in country X of a bank domiciled in country Y is included both in data for countries X and Y (for the latter as part of the consolidated entity). In the EU aggregate, only the consolidated entity domiciled in country Y is considered.  The sample of banks is unbalanced and reviewed annually.\nAs of Q1 2020 onwards UK banks are removed from the EU/EEA aggregate and subsidiaries of UK banks in EU member states are used instead.\n"]

{"sheet":"IFRS9","index":8,"n_rows":87,"n_cols":29,"rows_kept":87,"cut":false,"hidden":true,"merged":[[82,3,82,4],[83,3,83,4],[83,18,83,19],[85,3,85,27],[86,3,86,27],[81,3,81,4],[70,3,70,4],[71,3,71,4],[72,3,72,4],[73,3,73,4],[74,3,74,4],[75,3,75,4],[76,3,76,4],[77,3,77,4],[78,3,78,4],[79,3,79,4],[80,3,80,4],[69,3,69,4],[58,3,58,4],[59,3,59,4],[60,3,60,4],[61,3,61,4],[62,3,62,4],[63,3,63,4],[64,3,64,4],[65,3,65,4],[66,3,66,4],[67,3,67,4],[68,3,68,4],[57,3,57,4],[47,3,48,20],[50,5,50,8],[50,9,50,12],[50,13,50,16],[50,17,50,20],[51,3,51,4],[52,3,52,4],[53,3,53,4],[54,3,54,4],[55,3,55,4],[56,3,56,4],[3,3,3,27],[4,3,4,27],[6,3,6,25],[7,3,8,27],[10,4,10,7],[10,8,10,11],[10,12,10,15],[10,16,10,19],[10,20,10,23],[10,24,10,27]]}
[null,null,null,null,"T13_1","T13_1","T13_1","T13_1","T13_2","T13_2","T13_2","T13_2","T13_3","T13_3","T13_3","T13_3","T13_4","T13_4","T13_4","T13_4","T13_5","T13_5","T13_5","T13_5","T13_6","T13_6","T13_6","T13_6"]
[{"$f":"'Reference Dates'!$C$8","v":"202012"},null,null,null,{"$f":"TEXT(E12,\"YYYYMM\")+0","v":202003},{"$f":"TEXT(F12,\"YYYYMM\")+0","v":202006},202009,202012,202003,202006,202009,202012,202003,202006,202009,202012,202003,202006,202009,202012,202003,202006,202009,202012,202003,202006,202009,202012]
[{"$f":"DATE(LEFT(A2,4),RIGHT(A2,2),1)","v":"2020-12-01"}]
[null,null,null,"Statistical Annex"]
[null,null,null,"IFRS 9 specific data (1)"]
[]
[]
[null,"CH_1",null,"Loans and advances at amortised cost: distribution among stages according to IFRS 9"]
[]
[null,null,null,"% of loans and advances at amortised cost"]
[null,null,null,null,"Stage 1",null,null,null,"Stage 2",null,null,null,"Stage 3",null,null,null,"Coverage ratio of stage 1 loans and advances",null,null,null,"Coverage ratio of stage 2 loans and advances",null,null,null,"Coverage ratio of stage 3 loans and advances"]
[null,null,null,null,{"$f":"EOMONTH($A$3,-9)","v":"2020-03-31"},{"$f":"EOMONTH($A$3,-6)","v":"2020-06-30"},{"$f":"EOMONTH($A$3,-3)","v":"2020-09-30"},{"$f":"$A$3","v":"2020-12-01"},{"$f":"EOMONTH($A$3,-9)","v":"2020-03-31"},{"$f":"EOMONTH($A$3,-6)","v":"2020-06-30"},{"$f":"EOMONTH($A$3,-3)","v":"2020-09-30"},{"$f":"$A$3","v":"2020-12-01"},{"$f":"EOMONTH($A$3,-9)","v":"2020-03-31"},{"$f":"EOMONTH($A$3,-6)","v":"2020-06-30"},{"$f":"EOMONTH($A$3,-3)","v":"2020-09-30"},{"$f":"$A$3","v":"2020-12-01"},{"$f":"EOMONTH($A$3,-9)","v":"2020-03-31"},{"$f":"EOMONTH($A$3,-6)","v":"2020-06-30"},{"$f":"EOMONTH($A$3,-3)","v":"2020-09-30"},{"$f":"$A$3","v":"2020-12-01"},{"$f":"EOMONTH($A$3,-9)","v":"2020-03-31"},{"$f":"EOMONTH($A$3,-6)","v":"2020-06-30"},{"$f":"EOMONTH($A$3,-3)","v":"2020-09-30"},{"$f":"$A$3","v":"2020-12-01"},{"$f":"EOMONTH($A$3,-9)","v":"2020-03-31"},{"$f":"EOMONTH($A$3,-6)","v":"2020-06-30"},{"$f":"EOMONTH($A$3,-3)","v":"2020-09-30"},{"$f":"$A$3","v":"2020-12-01"}]
[1,"AT",null,{"$f":"IF(OR(E13=\"n.a.\",F13=\"n.a.\",G13=\"n.a.\",H13=\"n.a.\",I13=\"n.a.\",J13=\"n.a.\",K13=\"n.a.\",L13=\"n.a.\",M13=\"n.a.\",N13=\"n.a.\",O13=\"n.a.\",P13=\"n.a.\",Q13=\"n.a.\",R13=\"n.a.\",S13=\"n.a.\",T13=\"n.a.\",U13=\"n.a.\",V13=\"n.a.\",W13=\"n.a.\",X13=\"n.a.\",Y13=\"n.a.\",Z13=\"n.a.\",AA13=\"n.a.\",AB13=\"n.a.\"),$B13&\"*\",$B13)","v":"AT"},{"$f":"IFERROR(INDEX('Data Annex'!$K$1:$AN$1498,MATCH(IFRS9!E$1&\"|\"&IFRS9!$B13,'Data Annex'!$K$1:$K$1498,0),MATCH(IFRS9!E$2,'Data Annex'!$K$1:$AN$1,0)),\"\")","v":0.82983145690000004},{"$f":"IFERROR(INDEX('Data Annex'!$K$1:$AN$1498,MATCH(IFRS9!F$1&\"|\"&IFRS9!$B13,'Data Annex'!$K$1:$K$1498,0),MATCH(IFRS9!F$2,'Data Annex'!$K$1:$AN$1,0)),\"\")","v":0.79759604880000001},{"$f":"IFERROR(INDEX('Data Annex'!$K$1:$AN$1498,MATCH(IFRS9!G$1&\"|\"&IFRS9!$B13,'Data Annex'!$K$1:$K$1498,0),MATCH(IFRS9!G$2,'Data Annex'!$K$1:$AN$1,0)),\"\")","v":0.79965213369999999},{"$f":"IFERROR(INDEX('Data Annex'!$K$1:$AN$1498,MATCH(IFRS9!H$1&\"|\"&IFRS9!$B13,'Data Annex'!$K$1:$K$1498,0),MATCH(IFRS9!H$2,'Data Annex'!$K$1:$AN$1,0)),\"\")","v":0.79252662900000004},{"$f":"IFERROR(INDEX('Data Annex'!$K$1:$AN$1498,MATCH(IFRS9!I$1&\"|\"&IFRS9!$B13,'Data Annex'!$K$1:$K$1498,0),MATCH(IFRS9!I$2,'Data Annex'!$K$1:$AN$1,0)),\"\")","v":0.14615400670000001},{"$f":"IFERROR(INDEX('Data Annex'!$K$1:$AN$1498,MATCH(IFRS9!J$1&\"|\"&IFRS9!$B13,'Data Annex'!$K$1:$K$1498,0),MATCH(IFRS9!J$2,'Data Annex'!$K$1:$AN$1,0)),\"\")","v":0.1783754099},{"$f":"IFERROR(INDEX('Data Annex'!$K$1:$AN$1498,MATCH(IFRS9!K$1&\"|\"&IFRS9!$B13,'Data Annex'!$K$1:$K$1498,0),MATCH(IFRS9!K$2,'Data Annex'!$K$1:$AN$1,0)),\"\")","v":0.1764531174},{"$f":"IFERROR(INDEX('Data Annex'!$K$1:$AN$1498,MATCH(IFRS9!L$1&\"|\"&IFRS9!$B13,'Data Annex'!$K$1:$K$1498,0),MATCH(IFRS9!L$2,'Data Annex'!$K$1:$AN$1,0)),\"\")","v":0.18140817109999999},{"$f":"IFERROR(INDEX('Data Annex'!$K$1:$AN$1498,MATCH(IFRS9!M$1&\"|\"&IFRS9!$B13,'Data Annex'!$K$1:$K$1498,0),MATCH(IFRS9!M$2,'Data Annex'!$K$1:$AN$1,0)),\"\")","v":2.4014536400000001E-2},{"$f":"IFERROR(INDEX('Data Annex'!$K$1:$AN$1498,MATCH(IFRS9!N$1&\"|\"&IFRS9!$B13,'Data Annex'!$K$1:$K$1498,0),MATCH(IFRS9!N$2,'Data Annex'!$K$1:$AN$1,0)),\"\")","v":2.4028541300000001E-2},{"$f":"IFERROR(INDEX('Data Annex'!$K$1:$AN$1498,MATCH(IFRS9!O$1&\"|\"&IFRS9!$B13,'Data Annex'!$K$1:$K$1498,0),MATCH(IFRS9!O$2,'Data Annex'!$K$1:$AN$1,0)),\"\")","v":2.3894748899999999E-2},{"$f":"IFERROR(INDEX('Data Annex'!$K$1:$AN$1498,MATCH(IFRS9!P$1&\"|\"&IFRS9!$B13,'Data Annex'!$K$1:$K$1498,0),MATCH(IFRS9!P$2,'Data Annex'!$K$1:$AN$1,0)),\"\")","v":2.6065199899999999E-2},{"$f":"IFERROR(INDEX('Data Annex'!$K$1:$AN$1498,MATCH(IFRS9!Q$1&\"|\"&IFRS9!$B13,'Data Annex'!$K$1:$K$1498,0),MATCH(IFRS9!Q$2,'Data Annex'!$K$1:$AN$1,0)),\"\")","v":1.9398624E-3},{"$f":"IFERROR(INDEX('Data Annex'!$K$1:$AN$1498,MATCH(IFRS9!R$1&\"|\"&IFRS9!$B13,'Data Annex'!$K$1:$K$1498,0),MATCH(IFRS9!R$2,'Data Annex'!$K$1:$AN$1,0)),\"\")","v":2.1323521000000002E-3},{"$f":"IFERROR(INDEX('Data Annex'!$K$1:$AN$1498,MATCH(IFRS9!S$1&\"|\"&IFRS9!$B13,'Data Annex'!$K$1:$K$1498,0),MATCH(IFRS9!S$2,'Data Annex'!$K$1:$AN$1,0)),\"\")","v":2.1585452000000001E-3},{"$f":"IFERROR(INDEX('Data Annex'!$K$1:$AN$1498,MATCH(IFRS9!T$1&\"|\"&IFRS9!$B13,'Data Annex'!$K$1:$K$1498,0),MATCH(IFRS9!T$2,'Data Annex'!$K$1:$AN$1,0)),\"\")","v":2.3824152000000002E-3},{"$f":"IFERROR(INDEX('Data Annex'!$K$1:$AN$1498,MATCH(IFRS9!U$1&\"|\"&IFRS9!$B13,'Data Annex'!$K$1:$K$1498,0),MATCH(IFRS9!U$2,'Data Annex'!$K$1:$AN$1,0)),\"\")","v":2.3471699299999999E-2},{"$f":"IFERROR(INDEX('Data Annex'!$K$1:$AN$1498,MATCH(IFRS9!V$1&\"|\"&IFRS9!$B13,'Data Annex'!$K$1:$K$1498,0),MATCH(IFRS9!V$2,'Data Annex'!$K$1:$AN$1,0)),\"\")","v":2.5958822699999998E-2},{"$f":"IFERROR(INDEX('Data Annex'!$K$1:$AN$1498,MATCH(IFRS9!W$1&\"|\"&IFRS9!$B13,'Data Annex'!$K$1:$K$1498,0),MATCH(IFRS9!W$2,'Data Annex'!$K$1:$AN$1,0)),\"\")","v":2.8366015800000002E-2},{"$f":"IFERROR(INDEX('Data Annex'!$K$1:$AN$1498,MATCH(IFRS9!X$1&\"|\"&IFRS9!$B13,'Data Annex'!$K$1:$K$1498,0),MATCH(IFRS9!X$2,'Data Annex'!$K$1:$AN$1,0)),\"\")","v":3.0006649100000001E-2},{"$f":"IFERROR(INDEX('Data Annex'!$K$1:$AN$1498,MATCH(IFRS9!Y$1&\"|\"&IFRS9!$B13,'Data Annex'!$K$1:$K$1498,0),MATCH(IFRS9!Y$2,'Data Annex'!$K$1:$AN$1,0)),\"\")","v":0.53591754739999997},{"$f":"IFERROR(INDEX('Data Annex'!$K$1:$AN$1498,MATCH(IFRS9!Z$1&\"|\"&IFRS9!$B13,'Data Annex'!$K$1:$K$1498,0),MATCH(IFRS9!Z$2,'Data Annex'!$K$1:$AN$1,0)),\"\")","v":0.53644416080000001},{"$f":"IFERROR(INDEX('Data Annex'!$K$1:$AN$1498,MATCH(IFRS9!AA$1&\"|\"&IFRS9!$B13,'Data Annex'!$K$1:$K$1498,0),MATCH(IFRS9!AA$2,'Data Annex'!$K$1:$AN$1,0)),\"\")","v":0.54181874949999997},{"$f":"IFERROR(INDEX('Data Annex'!$K$1:$AN$1498,MATCH(IFRS9!AB$1&\"|\"&IFRS9!$B13,'Data Annex'!$K$1:$K$1498,0),MATCH(IFRS9!AB$2,'Data Annex'!$K$1:$AN$1,0)),\"\")","v":0.51571484369999998},{"$f":"IFERROR(INDEX('Data Annex'!$K$1:$AH$869,MATCH(IFRS9!AC$1&\"|\"&IFRS9!$B13,'Data Annex'!$K$1:$K$869,0),MATCH(IFRS9!AC$2,'Data Annex'!$K$1:$AH$1,0)),\"\")","v":""}]
[2,"BE",null,{"$f":"IF(OR(E14=\"n.a.\",F14=\"n.a.\",G14=\"n.a.\",H14=\"n.a.\",I14=\"n.a.\",J14=\"n.a.\",K14=\"n.a.\",L14=\"n.a.\",M14=\"n.a.\",N14=\"n.a.\",O14=\"n.a.\",P14=\"n.a.\",Q14=\"n.a.\",R14=\"n.a.\",S14=\"n.a.\",T14=\"n.a.\",U14=\"n.a.\",V14=\"n.a.\",W14=\"n.a.\",X14=\"n.a.\",Y14=\"n.a.\",Z14=\"n.a.\",AA14=\"n.a.\",AB14=\"n.a.\"),$B14&\"*\",$B14)","v":"BE"},{"$f":"IFERROR(INDEX('Data Annex'!$K$1:$AN$1498,MATCH(IFRS9!E$1&\"|\"&IFRS9!$B14,'Data Annex'!$K$1:$K$1498,0),MATCH(IFRS9!E$2,'Data Annex'!$K$1:$AN$1,0)),\"\")","v":0.88423261580000001},{"$f":"IFERROR(INDEX('Data Annex'!$K$1:$AN$1498,MATCH(IFRS9!F$1&\"|\"&IFRS9!$B14,'Data Annex'!$K$1:$K$1498,0),MATCH(IFRS9!F$2,'Data Annex'!$K$1:$AN$1,0)),\"\")","v":0.87443357820000001},{"$f":"IFERROR(INDEX('Data Annex'!$K$1:$AN$1498,MATCH(IFRS9!G$1&\"|\"&IFRS9!$B14,'Data Annex'!$K$1:$K$1498,0),MATCH(IFRS9!G$2,'Data Annex'!$K$1:$AN$1,0)),\"\")","v":0.86550425080000004},{"$f":"IFERROR(INDEX('Data Annex'!$K$1:$AN$1498,MATCH(IFRS9!H$1&\"|\"&IFRS9!$B14,'Data Annex'!$K$1:$K$1498,0),MATCH(IFRS9!H$2,'Data Annex'!$K$1:$AN$1,0)),\"\")","v":0.8622527619},{"$f":"IFERROR(INDEX('Data Annex'!$K$1:$AN$1498,MATCH(IFRS9!I$1&\"|\"&IFRS9!$B14,'Data Annex'!$K$1:$K$1498,0),MATCH(IFRS9!I$2,'Data Annex'!$K$1:$AN$1,0)),\"\")","v":9.4269925199999993E-2},{"$f":"IFERROR(INDEX('Data Annex'!$K$1:$AN$1498,MATCH(IFRS9!J$1&\"|\"&IFRS9!$B14,'Data Annex'!$K$1:$K$1498,0),MATCH(IFRS9!J$2,'Data Annex'!$K$1:$AN$1,0)),\"\")","v":0.1025342957},{"$f":"IFERROR(INDEX('Data Annex'!$K$1:$AN$1498,MATCH(IFRS9!K$1&\"|\"&IFRS9!$B14,'Data Annex'!$K$1:$K$1498,0),MATCH(IFRS9!K$2,'Data Annex'!$K$1:$AN$1,0)),\"\")","v":0.1116465614},{"$f":"IFERROR(INDEX('Data Annex'!$K$1:$AN$1498,MATCH(IFRS9!L$1&\"|\"&IFRS9!$B14,'Data Annex'!$K$1:$K$1498,0),MATCH(IFRS9!L$2,'Data Annex'!$K$1:$AN$1,0)),\"\")","v":0.1135495183},{"$f":"IFERROR(INDEX('Data Annex'!$K$1:$AN$1498,MATCH(IFRS9!M$1&\"|\"&IFRS9!$B14,'Data Annex'!$K$1:$K$1498,0),MATCH(IFRS9!M$2,'Data Annex'!$K$1:$AN$1,0)),\"\")","v":2.1497459E-2},{"$f":"IFERROR(INDEX('Data Annex'!$K$1:$AN$1498,MATCH(IFRS9!N$1&\"|\"&IFRS9!$B14,'Data Annex'!$K$1:$K$1498,0),MATCH(IFRS9!N$2,'Data Annex'!$K$1:$AN$1,0)),\"\")","v":2.3032126100000001E-2},{"$f":"IFERROR(INDEX('Data Annex'!$K$1:$AN$1498,MATCH(IFRS9!O$1&\"|\"&IFRS9!$B14,'Data Annex'!$K$1:$K$1498,0),MATCH(IFRS9!O$2,'Data Annex'!$K$1:$AN$1,0)),\"\")","v":2.28491878E-2},{"$f":"IFERROR(INDEX('Data Annex'!$K$1:$AN$1498,MATCH(IFRS9!P$1&\"|\"&IFRS9!$B14,'Data Annex'!$K$1:$K$1498,0),MATCH(IFRS9!P$2,'Data Annex'!$K$1:$AN$1,0)),\"\")","v":2.41977198E-2},{"$f":"IFERROR(INDEX('Data Annex'!$K$1:$AN$1498,MATCH(IFRS9!Q$1&\"|\"&IFRS9!$B14,'Data Annex'!$K$1:$K$1498,0),MATCH(IFRS9!Q$2,'Data Annex'!$K$1:$AN$1,0)),\"\")","v":9.8115490000000001E-4},{"$f":"IFERROR(INDEX('Data Annex'!$K$1:$AN$1498,MATCH(IFRS9!R$1&\"|\"&IFRS9!$B14,'Data Annex'!$K$1:$K$1498,0),MATCH(IFRS9!R$2,'Data Annex'!$K$1:$AN$1,0)),\"\")","v":1.0771779E-3},{"$f":"IFERROR(INDEX('Data Annex'!$K$1:$AN$1498,MATCH(IFRS9!S$1&\"|\"&IFRS9!$B14,'Data Annex'!$K$1:$K$1498,0),MATCH(IFRS9!S$2,'Data Annex'!$K$1:$AN$1,0)),\"\")","v":1.0781409999999999E-3},{"$f":"IFERROR(INDEX('Data Annex'!$K$1:$AN$1498,MATCH(IFRS9!T$1&\"|\"&IFRS9!$B14,'Data Annex'!$K$1:$K$1498,0),MATCH(IFRS9!T$2,'Data Annex'!$K$1:$AN$1,0)),\"\")","v":1.075023E-3},{"$f":"IFERROR(INDEX('Data Annex'!$K$1:$AN$1498,MATCH(IFRS9!U$1&\"|\"&IFRS9!$B14,'Data Annex'!$K$1:$K$1498,0),MATCH(IFRS9!U$2,'Data Annex'!$K$1:$AN$1,0)),\"\")","v":1.6205361599999999E-2},{"$f":"IFERROR(INDEX('Data Annex'!$K$1:$AN$1498,MATCH(IFRS9!V$1&\"|\"&IFRS9!$B14,'Data Annex'!$K$1:$K$1498,0),MATCH(IFRS9!V$2,'Data Annex'!$K$1:$AN$1,0)),\"\")","v":2.8160120100000002E-2},{"$f":"IFERROR(INDEX('Data Annex'!$K$1:$AN$1498,MATCH(IFRS9!W$1&\"|\"&IFRS9!$B14,'Data Annex'!$K$1:$K$1498,0),MATCH(IFRS9!W$2,'Data Annex'!$K$1:$AN$1,0)),\"\")","v":2.8930880799999999E-2},{"$f":"IFERROR(INDEX('Data Annex'!$K$1:$AN$1498,MATCH(IFRS9!X$1&\"|\"&IFRS9!$B14,'Data Annex'!$K$1:$K$1498,0),MATCH(IFRS9!X$2,'Data Annex'!$K$1:$AN$1,0)),\"\")","v":3.0262897099999998E-2},{"$f":"IFERROR(INDEX('Data Annex'!$K$1:$AN$1498,MATCH(IFRS9!Y$1&\"|\"&IFRS9!$B14,'Data Annex'!$K$1:$K$1498,0),MATCH(IFRS9!Y$2,'Data Annex'!$K$1:$AN$1,0)),\"\")","v":0.42009401280000003},{"$f":"IFERROR(INDEX('Data Annex'!$K$1:$AN$1498,MATCH(IFRS9!Z$1&\"|\"&IFRS9!$B14,'Data Annex'!$K$1:$K$1498,0),MATCH(IFRS9!Z$2,'Data Annex'!$K$1:$AN$1,0)),\"\")","v":0.43053204029999997},{"$f":"IFERROR(INDEX('Data Annex'!$K$1:$AN$1498,MATCH(IFRS9!AA$1&\"|\"&IFRS9!$B14,'Data Annex'!$K$1:$K$1498,0),MATCH(IFRS9!AA$2,'Data Annex'!$K$1:$AN$1,0)),\"\")","v":0.42963531729999999},{"$f":"IFERROR(INDEX('Data Annex'!$K$1:$AN$1498,MATCH(IFRS9!AB$1&\"|\"&IFRS9!$B14,'Data Annex'!$K$1:$K$1498,0),MATCH(IFRS9!AB$2,'Data Annex'!$K$1:$AN$1,0)),\"\")","v":0.41197571150000001},{"$f":"IFERROR(INDEX('Data Annex'!$K$1:$AH$869,MATCH(IFRS9!AC$1&\"|\"&IFRS9!$B14,'Data Annex'!$K$1:$K$869,0),MATCH(IFRS9!AC$2,'Data Annex'!$K$1:$AH$1,0)),\"\")","v":""}]
[3,"BG",null,"BG",{"$f":"IFERROR(INDEX('Data Annex'!$K$1:$AN$1498,MATCH(IFRS9!E$1&\"|\"&IFRS9!$B15,'Data Annex'!$K$1:$K$1498,0),MATCH(IFRS9!E$2,'Data Annex'!$K$1:$AN$1,0)),\"\")","v":0.81875284589999997},{"$f":"IFERROR(INDEX('Data Annex'!$K$1:$AN$1498,MATCH(IFRS9!F$1&\"|\"&IFRS9!$B15,'Data Annex'!$K$1:$K$1498,0),MATCH(IFRS9!F$2,'Data Annex'!$K$1:$AN$1,0)),\"\")","v":0.80949261689999996},{"$f":"IFERROR(INDEX('Data Annex'!$K$1:$AN$1498,MATCH(IFRS9!G$1&\"|\"&IFRS9!$B15,'Data Annex'!$K$1:$K$1498,0),MATCH(IFRS9!G$2,'Data Annex'!$K$1:$AN$1,0)),\"\")","v":0.79770748930000002},{"$f":"IFERROR(INDEX('Data Annex'!$K$1:$AN$1498,MATCH(IFRS9!H$1&\"|\"&IFRS9!$B15,'Data Annex'!$K$1:$K$1498,0),MATCH(IFRS9!H$2,'Data Annex'!$K$1:$AN$1,0)),\"\")","v":0.80184843009999995},{"$f":"IFERROR(INDEX('Data Annex'!$K$1:$AN$1498,MATCH(IFRS9!I$1&\"|\"&IFRS9!$B15,'Data Annex'!$K$1:$K$1498,0),MATCH(IFRS9!I$2,'Data Annex'!$K$1:$AN$1,0)),\"\")","v":9.1206933899999995E-2},{"$f":"IFERROR(INDEX('Data Annex'!$K$1:$AN$1498,MATCH(IFRS9!J$1&\"|\"&IFRS9!$B15,'Data Annex'!$K$1:$K$1498,0),MATCH(IFRS9!J$2,'Data Annex'!$K$1:$AN$1,0)),\"\")","v":9.6363789500000005E-2},{"$f":"IFERROR(INDEX('Data Annex'!$K$1:$AN$1498,MATCH(IFRS9!K$1&\"|\"&IFRS9!$B15,'Data Annex'!$K$1:$K$1498,0),MATCH(IFRS9!K$2,'Data Annex'!$K$1:$AN$1,0)),\"\")","v":0.11218181839999999},{"$f":"IFERROR(INDEX('Data Annex'!$K$1:$AN$1498,MATCH(IFRS9!L$1&\"|\"&IFRS9!$B15,'Data Annex'!$K$1:$K$1498,0),MATCH(IFRS9!L$2,'Data Annex'!$K$1:$AN$1,0)),\"\")","v":0.1077887886},{"$f":"IFERROR(INDEX('Data Annex'!$K$1:$AN$1498,MATCH(IFRS9!M$1&\"|\"&IFRS9!$B15,'Data Annex'!$K$1:$K$1498,0),MATCH(IFRS9!M$2,'Data Annex'!$K$1:$AN$1,0)),\"\")","v":9.0040220200000007E-2},{"$f":"IFERROR(INDEX('Data Annex'!$K$1:$AN$1498,MATCH(IFRS9!N$1&\"|\"&IFRS9!$B15,'Data Annex'!$K$1:$K$1498,0),MATCH(IFRS9!N$2,'Data Annex'!$K$1:$AN$1,0)),\"\")","v":9.4143593499999997E-2},{"$f":"IFERROR(INDEX('Data Annex'!$K$1:$AN$1498,MATCH(IFRS9!O$1&\"|\"&IFRS9!$B15,'Data Annex'!$K$1:$K$1498,0),MATCH(IFRS9!O$2,'Data Annex'!$K$1:$AN$1,0)),\"\")","v":9.0110692300000003E-2},{"$f":"IFERROR(INDEX('Data Annex'!$K$1:$AN$1498,MATCH(IFRS9!P$1&\"|\"&IFRS9!$B15,'Data Annex'!$K$1:$K$1498,0),MATCH(IFRS9!P$2,'Data Annex'!$K$1:$AN$1,0)),\"\")","v":9.03627813E-2},{"$f":"IFERROR(INDEX('Data Annex'!$K$1:$AN$1498,MATCH(IFRS9!Q$1&\"|\"&IFRS9!$B15,'Data Annex'!$K$1:$K$1498,0),MATCH(IFRS9!Q$2,'Data Annex'!$K$1:$AN$1,0)),\"\")","v":6.0507646000000003E-3},{"$f":"IFERROR(INDEX('Data Annex'!$K$1:$AN$1498,MATCH(IFRS9!R$1&\"|\"&IFRS9!$B15,'Data Annex'!$K$1:$K$1498,0),MATCH(IFRS9!R$2,'Data Annex'!$K$1:$AN$1,0)),\"\")","v":6.6714312999999999E-3},{"$f":"IFERROR(INDEX('Data Annex'!$K$1:$AN$1498,MATCH(IFRS9!S$1&\"|\"&IFRS9!$B15,'Data Annex'!$K$1:$K$1498,0),MATCH(IFRS9!S$2,'Data Annex'!$K$1:$AN$1,0)),\"\")","v":6.0272032999999997E-3},{"$f":"IFERROR(INDEX('Data Annex'!$K$1:$AN$1498,MATCH(IFRS9!T$1&\"|\"&IFRS9!$B15,'Data Annex'!$K$1:$K$1498,0),MATCH(IFRS9!T$2,'Data Annex'!$K$1:$AN$1,0)),\"\")","v":5.8938313999999997E-3},{"$f":"IFERROR(INDEX('Data Annex'!$K$1:$AN$1498,MATCH(IFRS9!U$1&\"|\"&IFRS9!$B15,'Data Annex'!$K$1:$K$1498,0),MATCH(IFRS9!U$2,'Data Annex'!$K$1:$AN$1,0)),\"\")","v":7.09559087E-2},{"$f":"IFERROR(INDEX('Data Annex'!$K$1:$AN$1498,MATCH(IFRS9!V$1&\"|\"&IFRS9!$B15,'Data Annex'!$K$1:$K$1498,0),MATCH(IFRS9!V$2,'Data Annex'!$K$1:$AN$1,0)),\"\")","v":7.9623580400000005E-2},{"$f":"IFERROR(INDEX('Data Annex'!$K$1:$AN$1498,MATCH(IFRS9!W$1&\"|\"&IFRS9!$B15,'Data Annex'!$K$1:$K$1498,0),MATCH(IFRS9!W$2,'Data Annex'!$K$1:$AN$1,0)),\"\")","v":9.6491516499999999E-2},{"$f":"IFERROR(INDEX('Data Annex'!$K$1:$AN$1498,MATCH(IFRS9!X$1&\"|\"&IFRS9!$B15,'Data Annex'!$K$1:$K$1498,0),MATCH(IFRS9!X$2,'Data Annex'!$K$1:$AN$1,0)),\"\")","v":8.48348305E-2},{"$f":"IFERROR(INDEX('Data Annex'!$K$1:$AN$1498,MATCH(IFRS9!Y$1&\"|\"&IFRS9!$B15,'Data Annex'!$K$1:$K$1498,0),MATCH(IFRS9!Y$2,'Data Annex'!$K$1:$AN$1,0)),\"\")","v":0.49098707679999998},{"$f":"IFERROR(INDEX('Data Annex'!$K$1:$AN$1498,MATCH(IFRS9!Z$1&\"|\"&IFRS9!$B15,'Data Annex'!$K$1:$K$1498,0),MATCH(IFRS9!Z$2,'Data Annex'!$K$1:$AN$1,0)),\"\")","v":0.48725846439999998},{"$f":"IFERROR(INDEX('Data Annex'!$K$1:$AN$1498,MATCH(IFRS9!AA$1&\"|\"&IFRS9!$B15,'Data Annex'!$K$1:$K$1498,0),MATCH(IFRS9!AA$2,'Data Annex'!$K$1:$AN$1,0)),\"\")","v":0.4954397237},{"$f":"IFERROR(INDEX('Data Annex'!$K$1:$AN$1498,MATCH(IFRS9!AB$1&\"|\"&IFRS9!$B15,'Data Annex'!$K$1:$K$1498,0),MATCH(IFRS9!AB$2,'Data Annex'!$K$1:$AN$1,0)),\"\")","v":0.50549585779999995},{"$f":"IFERROR(INDEX('Data Annex'!$K$1:$AH$869,MATCH(IFRS9!AC$1&\"|\"&IFRS9!$B15,'Data Annex'!$K$1:$K$869,0),MATCH(IFRS9!AC$2,'Data Annex'!$K$1:$AH$1,0)),\"\")","v":""}]
[4,"CY",null,"CY",{"$f":"IFERROR(INDEX('Data Annex'!$K$1:$AN$1498,MATCH(IFRS9!E$1&\"|\"&IFRS9!$B16,'Data Annex'!$K$1:$K$1498,0),MATCH(IFRS9!E$2,'Data Annex'!$K$1:$AN$1,0)),\"\")","v":0.57366558180000005},{"$f":"IFERROR(INDEX('Data Annex'!$K$1:$AN$1498,MATCH(IFRS9!F$1&\"|\"&IFRS9!$B16,'Data Annex'!$K$1:$K$1498,0),MATCH(IFRS9!F$2,'Data Annex'!$K$1:$AN$1,0)),\"\")","v":0.63560534030000004},{"$f":"IFERROR(INDEX('Data Annex'!$K$1:$AN$1498,MATCH(IFRS9!G$1&\"|\"&IFRS9!$B16,'Data Annex'!$K$1:$K$1498,0),MATCH(IFRS9!G$2,'Data Annex'!$K$1:$AN$1,0)),\"\")","v":0.62963063819999998},{"$f":"IFERROR(INDEX('Data Annex'!$K$1:$AN$1498,MATCH(IFRS9!H$1&\"|\"&IFRS9!$B16,'Data Annex'!$K$1:$K$1498,0),MATCH(IFRS9!H$2,'Data Annex'!$K$1:$AN$1,0)),\"\")","v":0.64448098740000004},{"$f":"IFERROR(INDEX('Data Annex'!$K$1:$AN$1498,MATCH(IFRS9!I$1&\"|\"&IFRS9!$B16,'Data Annex'!$K$1:$K$1498,0),MATCH(IFRS9!I$2,'Data Annex'!$K$1:$AN$1,0)),\"\")","v":0.1412871688},{"$f":"IFERROR(INDEX('Data Annex'!$K$1:$AN$1498,MATCH(IFRS9!J$1&\"|\"&IFRS9!$B16,'Data Annex'!$K$1:$K$1498,0),MATCH(IFRS9!J$2,'Data Annex'!$K$1:$AN$1,0)),\"\")","v":0.1395982194},{"$f":"IFERROR(INDEX('Data Annex'!$K$1:$AN$1498,MATCH(IFRS9!K$1&\"|\"&IFRS9!$B16,'Data Annex'!$K$1:$K$1498,0),MATCH(IFRS9!K$2,'Data Annex'!$K$1:$AN$1,0)),\"\")","v":0.16098310129999999},{"$f":"IFERROR(INDEX('Data Annex'!$K$1:$AN$1498,MATCH(IFRS9!L$1&\"|\"&IFRS9!$B16,'Data Annex'!$K$1:$K$1498,0),MATCH(IFRS9!L$2,'Data Annex'!$K$1:$AN$1,0)),\"\")","v":0.1822073263},{"$f":"IFERROR(INDEX('Data Annex'!$K$1:$AN$1498,MATCH(IFRS9!M$1&\"|\"&IFRS9!$B16,'Data Annex'!$K$1:$K$1498,0),MATCH(IFRS9!M$2,'Data Annex'!$K$1:$AN$1,0)),\"\")","v":0.28504724939999998},{"$f":"IFERROR(INDEX('Data Annex'!$K$1:$AN$1498,MATCH(IFRS9!N$1&\"|\"&IFRS9!$B16,'Data Annex'!$K$1:$K$1498,0),MATCH(IFRS9!N$2,'Data Annex'!$K$1:$AN$1,0)),\"\")","v":0.22479644030000001},{"$f":"IFERROR(INDEX('Data Annex'!$K$1:$AN$1498,MATCH(IFRS9!O$1&\"|\"&IFRS9!$B16,'Data Annex'!$K$1:$K$1498,0),MATCH(IFRS9!O$2,'Data Annex'!$K$1:$AN$1,0)),\"\")","v":0.20938626060000001},{"$f":"IFERROR(INDEX('Data Annex'!$K$1:$AN$1498,MATCH(IFRS9!P$1&\"|\"&IFRS9!$B16,'Data Annex'!$K$1:$K$1498,0),MATCH(IFRS9!P$2,'Data Annex'!$K$1:$AN$1,0)),\"\")","v":0.17331168629999999},{"$f":"IFERROR(INDEX('Data Annex'!$K$1:$AN$1498,MATCH(IFRS9!Q$1&\"|\"&IFRS9!$B16,'Data Annex'!$K$1:$K$1498,0),MATCH(IFRS9!Q$2,'Data Annex'!$K$1:$AN$1,0)),\"\")","v":5.7362912000000002E-3},{"$f":"IFERROR(INDEX('Data Annex'!$K$1:$AN$1498,MATCH(IFRS9!R$1&\"|\"&IFRS9!$B16,'Data Annex'!$K$1:$K$1498,0),MATCH(IFRS9!R$2,'Data Annex'!$K$1:$AN$1,0)),\"\")","v":4.4630833000000002E-3},{"$f":"IFERROR(INDEX('Data Annex'!$K$1:$AN$1498,MATCH(IFRS9!S$1&\"|\"&IFRS9!$B16,'Data Annex'!$K$1:$K$1498,0),MATCH(IFRS9!S$2,'Data Annex'!$K$1:$AN$1,0)),\"\")","v":4.3058115999999999E-3},{"$f":"IFERROR(INDEX('Data Annex'!$K$1:$AN$1498,MATCH(IFRS9!T$1&\"|\"&IFRS9!$B16,'Data Annex'!$K$1:$K$1498,0),MATCH(IFRS9!T$2,'Data Annex'!$K$1:$AN$1,0)),\"\")","v":4.3442999999999997E-3},{"$f":"IFERROR(INDEX('Data Annex'!$K$1:$AN$1498,MATCH(IFRS9!U$1&\"|\"&IFRS9!$B16,'Data Annex'!$K$1:$K$1498,0),MATCH(IFRS9!U$2,'Data Annex'!$K$1:$AN$1,0)),\"\")","v":2.38644311E-2},{"$f":"IFERROR(INDEX('Data Annex'!$K$1:$AN$1498,MATCH(IFRS9!V$1&\"|\"&IFRS9!$B16,'Data Annex'!$K$1:$K$1498,0),MATCH(IFRS9!V$2,'Data Annex'!$K$1:$AN$1,0)),\"\")","v":1.7402736299999999E-2},{"$f":"IFERROR(INDEX('Data Annex'!$K$1:$AN$1498,MATCH(IFRS9!W$1&\"|\"&IFRS9!$B16,'Data Annex'!$K$1:$K$1498,0),MATCH(IFRS9!W$2,'Data Annex'!$K$1:$AN$1,0)),\"\")","v":1.6833718399999999E-2},{"$f":"IFERROR(INDEX('Data Annex'!$K$1:$AN$1498,MATCH(IFRS9!X$1&\"|\"&IFRS9!$B16,'Data Annex'!$K$1:$K$1498,0),MATCH(IFRS9!X$2,'Data Annex'!$K$1:$AN$1,0)),\"\")","v":2.1140667799999999E-2},{"$f":"IFERROR(INDEX('Data Annex'!$K$1:$AN$1498,MATCH(IFRS9!Y$1&\"|\"&IFRS9!$B16,'Data Annex'!$K$1:$K$1498,0),MATCH(IFRS9!Y$2,'Data Annex'!$K$1:$AN$1,0)),\"\")","v":0.51292872810000001},{"$f":"IFERROR(INDEX('Data Annex'!$K$1:$AN$1498,MATCH(IFRS9!Z$1&\"|\"&IFRS9!$B16,'Data Annex'!$K$1:$K$1498,0),MATCH(IFRS9!Z$2,'Data Annex'!$K$1:$AN$1,0)),\"\")","v":0.47425505829999998},{"$f":"IFERROR(INDEX('Data Annex'!$K$1:$AN$1498,MATCH(IFRS9!AA$1&\"|\"&IFRS9!$B16,'Data Annex'!$K$1:$K$1498,0),MATCH(IFRS9!AA$2,'Data Annex'!$K$1:$AN$1,0)),\"\")","v":0.47143533679999999},{"$f":"IFERROR(INDEX('Data Annex'!$K$1:$AN$1498,MATCH(IFRS9!AB$1&\"|\"&IFRS9!$B16,'Data Annex'!$K$1:$K$1498,0),MATCH(IFRS9!AB$2,'Data Annex'!$K$1:$AN$1,0)),\"\")","v":0.45167220130000002},{"$f":"IFERROR(INDEX('Data Annex'!$K$1:$AH$869,MATCH(IFRS9!AC$1&\"|\"&IFRS9!$B16,'Data Annex'!$K$1:$K$869,0),MATCH(IFRS9!AC$2,'Data Annex'!$K$1:$AH$1,0)),\"\")","v":""}]
[5,"CZ",null,"CZ",{"$f":"IFERROR(INDEX('Data Annex'!$K$1:$AN$1498,MATCH(IFRS9!E$1&\"|\"&IFRS9!$B17,'Data Annex'!$K$1:$K$1498,0),MATCH(IFRS9!E$2,'Data Annex'!$K$1:$AN$1,0)),\"\")","v":0.95129974740000001},{"$f":"IFERROR(INDEX('Data Annex'!$K$1:$AN$1498,MATCH(IFRS9!F$1&\"|\"&IFRS9!$B17,'Data Annex'!$K$1:$K$1498,0),MATCH(IFRS9!F$2,'Data Annex'!$K$1:$AN$1,0)),\"\")","v":0.9388945863},{"$f":"IFERROR(INDEX('Data Annex'!$K$1:$AN$1498,MATCH(IFRS9!G$1&\"|\"&IFRS9!$B17,'Data Annex'!$K$1:$K$1498,0),MATCH(IFRS9!G$2,'Data Annex'!$K$1:$AN$1,0)),\"\")","v":0.93464630719999997},{"$f":"IFERROR(INDEX('Data Annex'!$K$1:$AN$1498,MATCH(IFRS9!H$1&\"|\"&IFRS9!$B17,'Data Annex'!$K$1:$K$1498,0),MATCH(IFRS9!H$2,'Data Annex'!$K$1:$AN$1,0)),\"\")","v":0.92717722250000001},{"$f":"IFERROR(INDEX('Data Annex'!$K$1:$AN$1498,MATCH(IFRS9!I$1&\"|\"&IFRS9!$B17,'Data Annex'!$K$1:$K$1498,0),MATCH(IFRS9!I$2,'Data Annex'!$K$1:$AN$1,0)),\"\")","v":3.6787225200000002E-2},{"$f":"IFERROR(INDEX('Data Annex'!$K$1:$AN$1498,MATCH(IFRS9!J$1&\"|\"&IFRS9!$B17,'Data Annex'!$K$1:$K$1498,0),MATCH(IFRS9!J$2,'Data Annex'!$K$1:$AN$1,0)),\"\")","v":4.8411903100000001E-2},{"$f":"IFERROR(INDEX('Data Annex'!$K$1:$AN$1498,MATCH(IFRS9!K$1&\"|\"&IFRS9!$B17,'Data Annex'!$K$1:$K$1498,0),MATCH(IFRS9!K$2,'Data Annex'!$K$1:$AN$1,0)),\"\")","v":5.2493825899999999E-2},{"$f":"IFERROR(INDEX('Data Annex'!$K$1:$AN$1498,MATCH(IFRS9!L$1&\"|\"&IFRS9!$B17,'Data Annex'!$K$1:$K$1498,0),MATCH(IFRS9!L$2,'Data Annex'!$K$1:$AN$1,0)),\"\")","v":5.7802569900000003E-2},{"$f":"IFERROR(INDEX('Data Annex'!$K$1:$AN$1498,MATCH(IFRS9!M$1&\"|\"&IFRS9!$B17,'Data Annex'!$K$1:$K$1498,0),MATCH(IFRS9!M$2,'Data Annex'!$K$1:$AN$1,0)),\"\")","v":1.19130274E-2},{"$f":"IFERROR(INDEX('Data Annex'!$K$1:$AN$1498,MATCH(IFRS9!N$1&\"|\"&IFRS9!$B17,'Data Annex'!$K$1:$K$1498,0),MATCH(IFRS9!N$2,'Data Annex'!$K$1:$AN$1,0)),\"\")","v":1.2693510700000001E-2},{"$f":"IFERROR(INDEX('Data Annex'!$K$1:$AN$1498,MATCH(IFRS9!O$1&\"|\"&IFRS9!$B17,'Data Annex'!$K$1:$K$1498,0),MATCH(IFRS9!O$2,'Data Annex'!$K$1:$AN$1,0)),\"\")","v":1.2859866899999999E-2},{"$f":"IFERROR(INDEX('Data Annex'!$K$1:$AN$1498,MATCH(IFRS9!P$1&\"|\"&IFRS9!$B17,'Data Annex'!$K$1:$K$1498,0),MATCH(IFRS9!P$2,'Data Annex'!$K$1:$AN$1,0)),\"\")","v":1.50202076E-2},{"$f":"IFERROR(INDEX('Data Annex'!$K$1:$AN$1498,MATCH(IFRS9!Q$1&\"|\"&IFRS9!$B17,'Data Annex'!$K$1:$K$1498,0),MATCH(IFRS9!Q$2,'Data Annex'!$K$1:$AN$1,0)),\"\")","v":9.8128509999999996E-4},{"$f":"IFERROR(INDEX('Data Annex'!$K$1:$AN$1498,MATCH(IFRS9!R$1&\"|\"&IFRS9!$B17,'Data Annex'!$K$1:$K$1498,0),MATCH(IFRS9!R$2,'Data Annex'!$K$1:$AN$1,0)),\"\")","v":1.1446061000000001E-3},{"$f":"IFERROR(INDEX('Data Annex'!$K$1:$AN$1498,MATCH(IFRS9!S$1&\"|\"&IFRS9!$B17,'Data Annex'!$K$1:$K$1498,0),MATCH(IFRS9!S$2,'Data Annex'!$K$1:$AN$1,0)),\"\")","v":1.116382E-3},{"$f":"IFERROR(INDEX('Data Annex'!$K$1:$AN$1498,MATCH(IFRS9!T$1&\"|\"&IFRS9!$B17,'Data Annex'!$K$1:$K$1498,0),MATCH(IFRS9!T$2,'Data Annex'!$K$1:$AN$1,0)),\"\")","v":1.2624227E-3},{"$f":"IFERROR(INDEX('Data Annex'!$K$1:$AN$1498,MATCH(IFRS9!U$1&\"|\"&IFRS9!$B17,'Data Annex'!$K$1:$K$1498,0),MATCH(IFRS9!U$2,'Data Annex'!$K$1:$AN$1,0)),\"\")","v":3.80565291E-2},{"$f":"IFERROR(INDEX('Data Annex'!$K$1:$AN$1498,MATCH(IFRS9!V$1&\"|\"&IFRS9!$B17,'Data Annex'!$K$1:$K$1498,0),MATCH(IFRS9!V$2,'Data Annex'!$K$1:$AN$1,0)),\"\")","v":6.7930018100000003E-2},{"$f":"IFERROR(INDEX('Data Annex'!$K$1:$AN$1498,MATCH(IFRS9!W$1&\"|\"&IFRS9!$B17,'Data Annex'!$K$1:$K$1498,0),MATCH(IFRS9!W$2,'Data Annex'!$K$1:$AN$1,0)),\"\")","v":7.1895105799999998E-2},{"$f":"IFERROR(INDEX('Data Annex'!$K$1:$AN$1498,MATCH(IFRS9!X$1&\"|\"&IFRS9!$B17,'Data Annex'!$K$1:$K$1498,0),MATCH(IFRS9!X$2,'Data Annex'!$K$1:$AN$1,0)),\"\")","v":7.1770817700000003E-2},{"$f":"IFERROR(INDEX('Data Annex'!$K$1:$AN$1498,MATCH(IFRS9!Y$1&\"|\"&IFRS9!$B17,'Data Annex'!$K$1:$K$1498,0),MATCH(IFRS9!Y$2,'Data Annex'!$K$1:$AN$1,0)),\"\")","v":0.56897756050000003},{"$f":"IFERROR(INDEX('Data Annex'!$K$1:$AN$1498,MATCH(IFRS9!Z$1&\"|\"&IFRS9!$B17,'Data Annex'!$K$1:$K$1498,0),MATCH(IFRS9!Z$2,'Data Annex'!$K$1:$AN$1,0)),\"\")","v":0.55993847969999999},{"$f":"IFERROR(INDEX('Data Annex'!$K$1:$AN$1498,MATCH(IFRS9!AA$1&\"|\"&IFRS9!$B17,'Data Annex'!$K$1:$K$1498,0),MATCH(IFRS9!AA$2,'Data Annex'!$K$1:$AN$1,0)),\"\")","v":0.56918304050000001},{"$f":"IFERROR(INDEX('Data Annex'!$K$1:$AN$1498,MATCH(IFRS9!AB$1&\"|\"&IFRS9!$B17,'Data Annex'!$K$1:$K$1498,0),MATCH(IFRS9!AB$2,'Data Annex'!$K$1:$AN$1,0)),\"\")","v":0.54732337669999997},{"$f":"IFERROR(INDEX('Data Annex'!$K$1:$AH$869,MATCH(IFRS9!AC$1&\"|\"&IFRS9!$B17,'Data Annex'!$K$1:$K$869,0),MATCH(IFRS9!AC$2,'Data Annex'!$K$1:$AH$1,0)),\"\")","v":""}]
[6,"DE",null,"DE",{"$f":"IFERROR(INDEX('Data Annex'!$K$1:$AN$1498,MATCH(IFRS9!E$1&\"|\"&IFRS9!$B18,'Data Annex'!$K$1:$K$1498,0),MATCH(IFRS9!E$2,'Data Annex'!$K$1:$AN$1,0)),\"\")","v":0.93055005570000005},{"$f":"IFERROR(INDEX('Data Annex'!$K$1:$AN$1498,MATCH(IFRS9!F$1&\"|\"&IFRS9!$B18,'Data Annex'!$K$1:$K$1498,0),MATCH(IFRS9!F$2,'Data Annex'!$K$1:$AN$1,0)),\"\")","v":0.91318434130000004},{"$f":"IFERROR(INDEX('Data Annex'!$K$1:$AN$1498,MATCH(IFRS9!G$1&\"|\"&IFRS9!$B18,'Data Annex'!$K$1:$K$1498,0),MATCH(IFRS9!G$2,'Data Annex'!$K$1:$AN$1,0)),\"\")","v":0.91605129590000001},{"$f":"IFERROR(INDEX('Data Annex'!$K$1:$AN$1498,MATCH(IFRS9!H$1&\"|\"&IFRS9!$B18,'Data Annex'!$K$1:$K$1498,0),MATCH(IFRS9!H$2,'Data Annex'!$K$1:$AN$1,0)),\"\")","v":0.89185587460000004},{"$f":"IFERROR(INDEX('Data Annex'!$K$1:$AN$1498,MATCH(IFRS9!I$1&\"|\"&IFRS9!$B18,'Data Annex'!$K$1:$K$1498,0),MATCH(IFRS9!I$2,'Data Annex'!$K$1:$AN$1,0)),\"\")","v":5.5998686300000003E-2},{"$f":"IFERROR(INDEX('Data Annex'!$K$1:$AN$1498,MATCH(IFRS9!J$1&\"|\"&IFRS9!$B18,'Data Annex'!$K$1:$K$1498,0),MATCH(IFRS9!J$2,'Data Annex'!$K$1:$AN$1,0)),\"\")","v":7.10338893E-2},{"$f":"IFERROR(INDEX('Data Annex'!$K$1:$AN$1498,MATCH(IFRS9!K$1&\"|\"&IFRS9!$B18,'Data Annex'!$K$1:$K$1498,0),MATCH(IFRS9!K$2,'Data Annex'!$K$1:$AN$1,0)),\"\")","v":6.8013449500000003E-2},{"$f":"IFERROR(INDEX('Data Annex'!$K$1:$AN$1498,MATCH(IFRS9!L$1&\"|\"&IFRS9!$B18,'Data Annex'!$K$1:$K$1498,0),MATCH(IFRS9!L$2,'Data Annex'!$K$1:$AN$1,0)),\"\")","v":9.2117501000000004E-2},{"$f":"IFERROR(INDEX('Data Annex'!$K$1:$AN$1498,MATCH(IFRS9!M$1&\"|\"&IFRS9!$B18,'Data Annex'!$K$1:$K$1498,0),MATCH(IFRS9!M$2,'Data Annex'!$K$1:$AN$1,0)),\"\")","v":1.3451257899999999E-2},{"$f":"IFERROR(INDEX('Data Annex'!$K$1:$AN$1498,MATCH(IFRS9!N$1&\"|\"&IFRS9!$B18,'Data Annex'!$K$1:$K$1498,0),MATCH(IFRS9!N$2,'Data Annex'!$K$1:$AN$1,0)),\"\")","v":1.5781769399999999E-2},{"$f":"IFERROR(INDEX('Data Annex'!$K$1:$AN$1498,MATCH(IFRS9!O$1&\"|\"&IFRS9!$B18,'Data Annex'!$K$1:$K$1498,0),MATCH(IFRS9!O$2,'Data Annex'!$K$1:$AN$1,0)),\"\")","v":1.59352546E-2},{"$f":"IFERROR(INDEX('Data Annex'!$K$1:$AN$1498,MATCH(IFRS9!P$1&\"|\"&IFRS9!$B18,'Data Annex'!$K$1:$K$1498,0),MATCH(IFRS9!P$2,'Data Annex'!$K$1:$AN$1,0)),\"\")","v":1.6026624400000002E-2},{"$f":"IFERROR(INDEX('Data Annex'!$K$1:$AN$1498,MATCH(IFRS9!Q$1&\"|\"&IFRS9!$B18,'Data Annex'!$K$1:$K$1498,0),MATCH(IFRS9!Q$2,'Data Annex'!$K$1:$AN$1,0)),\"\")","v":1.0054987999999999E-3},{"$f":"IFERROR(INDEX('Data Annex'!$K$1:$AN$1498,MATCH(IFRS9!R$1&\"|\"&IFRS9!$B18,'Data Annex'!$K$1:$K$1498,0),MATCH(IFRS9!R$2,'Data Annex'!$K$1:$AN$1,0)),\"\")","v":1.1005975E-3},{"$f":"IFERROR(INDEX('Data Annex'!$K$1:$AN$1498,MATCH(IFRS9!S$1&\"|\"&IFRS9!$B18,'Data Annex'!$K$1:$K$1498,0),MATCH(IFRS9!S$2,'Data Annex'!$K$1:$AN$1,0)),\"\")","v":1.0512888000000001E-3},{"$f":"IFERROR(INDEX('Data Annex'!$K$1:$AN$1498,MATCH(IFRS9!T$1&\"|\"&IFRS9!$B18,'Data Annex'!$K$1:$K$1498,0),MATCH(IFRS9!T$2,'Data Annex'!$K$1:$AN$1,0)),\"\")","v":1.1569644E-3},{"$f":"IFERROR(INDEX('Data Annex'!$K$1:$AN$1498,MATCH(IFRS9!U$1&\"|\"&IFRS9!$B18,'Data Annex'!$K$1:$K$1498,0),MATCH(IFRS9!U$2,'Data Annex'!$K$1:$AN$1,0)),\"\")","v":2.3448364999999999E-2},{"$f":"IFERROR(INDEX('Data Annex'!$K$1:$AN$1498,MATCH(IFRS9!V$1&\"|\"&IFRS9!$B18,'Data Annex'!$K$1:$K$1498,0),MATCH(IFRS9!V$2,'Data Annex'!$K$1:$AN$1,0)),\"\")","v":2.2726870499999999E-2},{"$f":"IFERROR(INDEX('Data Annex'!$K$1:$AN$1498,MATCH(IFRS9!W$1&\"|\"&IFRS9!$B18,'Data Annex'!$K$1:$K$1498,0),MATCH(IFRS9!W$2,'Data Annex'!$K$1:$AN$1,0)),\"\")","v":2.4379020500000001E-2},{"$f":"IFERROR(INDEX('Data Annex'!$K$1:$AN$1498,MATCH(IFRS9!X$1&\"|\"&IFRS9!$B18,'Data Annex'!$K$1:$K$1498,0),MATCH(IFRS9!X$2,'Data Annex'!$K$1:$AN$1,0)),\"\")","v":2.35797391E-2},{"$f":"IFERROR(INDEX('Data Annex'!$K$1:$AN$1498,MATCH(IFRS9!Y$1&\"|\"&IFRS9!$B18,'Data Annex'!$K$1:$K$1498,0),MATCH(IFRS9!Y$2,'Data Annex'!$K$1:$AN$1,0)),\"\")","v":0.40671044340000001},{"$f":"IFERROR(INDEX('Data Annex'!$K$1:$AN$1498,MATCH(IFRS9!Z$1&\"|\"&IFRS9!$B18,'Data Annex'!$K$1:$K$1498,0),MATCH(IFRS9!Z$2,'Data Annex'!$K$1:$AN$1,0)),\"\")","v":0.39509558299999997},{"$f":"IFERROR(INDEX('Data Annex'!$K$1:$AN$1498,MATCH(IFRS9!AA$1&\"|\"&IFRS9!$B18,'Data Annex'!$K$1:$K$1498,0),MATCH(IFRS9!AA$2,'Data Annex'!$K$1:$AN$1,0)),\"\")","v":0.3903101618},{"$f":"IFERROR(INDEX('Data Annex'!$K$1:$AN$1498,MATCH(IFRS9!AB$1&\"|\"&IFRS9!$B18,'Data Annex'!$K$1:$K$1498,0),MATCH(IFRS9!AB$2,'Data Annex'!$K$1:$AN$1,0)),\"\")","v":0.38008629170000002},{"$f":"IFERROR(INDEX('Data Annex'!$K$1:$AH$869,MATCH(IFRS9!AC$1&\"|\"&IFRS9!$B18,'Data Annex'!$K$1:$K$869,0),MATCH(IFRS9!AC$2,'Data Annex'!$K$1:$AH$1,0)),\"\")","v":""}]
[7,"DK",null,"DK",{"$f":"IFERROR(INDEX('Data Annex'!$K$1:$AN$1498,MATCH(IFRS9!E$1&\"|\"&IFRS9!$B19,'Data Annex'!$K$1:$K$1498,0),MATCH(IFRS9!E$2,'Data Annex'!$K$1:$AN$1,0)),\"\")","v":0.86822620839999998},{"$f":"IFERROR(INDEX('Data Annex'!$K$1:$AN$1498,MATCH(IFRS9!F$1&\"|\"&IFRS9!$B19,'Data Annex'!$K$1:$K$1498,0),MATCH(IFRS9!F$2,'Data Annex'!$K$1:$AN$1,0)),\"\")","v":0.8480829795},{"$f":"IFERROR(INDEX('Data Annex'!$K$1:$AN$1498,MATCH(IFRS9!G$1&\"|\"&IFRS9!$B19,'Data Annex'!$K$1:$K$1498,0),MATCH(IFRS9!G$2,'Data Annex'!$K$1:$AN$1,0)),\"\")","v":0.88866977820000004},{"$f":"IFERROR(INDEX('Data Annex'!$K$1:$AN$1498,MATCH(IFRS9!H$1&\"|\"&IFRS9!$B19,'Data Annex'!$K$1:$K$1498,0),MATCH(IFRS9!H$2,'Data Annex'!$K$1:$AN$1,0)),\"\")","v":0.89326888309999997},{"$f":"IFERROR(INDEX('Data Annex'!$K$1:$AN$1498,MATCH(IFRS9!I$1&\"|\"&IFRS9!$B19,'Data Annex'!$K$1:$K$1498,0),MATCH(IFRS9!I$2,'Data Annex'!$K$1:$AN$1,0)),\"\")","v":0.1054675927},{"$f":"IFERROR(INDEX('Data Annex'!$K$1:$AN$1498,MATCH(IFRS9!J$1&\"|\"&IFRS9!$B19,'Data Annex'!$K$1:$K$1498,0),MATCH(IFRS9!J$2,'Data Annex'!$K$1:$AN$1,0)),\"\")","v":0.12333599789999999},{"$f":"IFERROR(INDEX('Data Annex'!$K$1:$AN$1498,MATCH(IFRS9!K$1&\"|\"&IFRS9!$B19,'Data Annex'!$K$1:$K$1498,0),MATCH(IFRS9!K$2,'Data Annex'!$K$1:$AN$1,0)),\"\")","v":8.1260349699999998E-2},{"$f":"IFERROR(INDEX('Data Annex'!$K$1:$AN$1498,MATCH(IFRS9!L$1&\"|\"&IFRS9!$B19,'Data Annex'!$K$1:$K$1498,0),MATCH(IFRS9!L$2,'Data Annex'!$K$1:$AN$1,0)),\"\")","v":7.5770941100000003E-2},{"$f":"IFERROR(INDEX('Data Annex'!$K$1:$AN$1498,MATCH(IFRS9!M$1&\"|\"&IFRS9!$B19,'Data Annex'!$K$1:$K$1498,0),MATCH(IFRS9!M$2,'Data Annex'!$K$1:$AN$1,0)),\"\")","v":2.6306198900000001E-2},{"$f":"IFERROR(INDEX('Data Annex'!$K$1:$AN$1498,MATCH(IFRS9!N$1&\"|\"&IFRS9!$B19,'Data Annex'!$K$1:$K$1498,0),MATCH(IFRS9!N$2,'Data Annex'!$K$1:$AN$1,0)),\"\")","v":2.8581022500000001E-2},{"$f":"IFERROR(INDEX('Data Annex'!$K$1:$AN$1498,MATCH(IFRS9!O$1&\"|\"&IFRS9!$B19,'Data Annex'!$K$1:$K$1498,0),MATCH(IFRS9!O$2,'Data Annex'!$K$1:$AN$1,0)),\"\")","v":3.0069872099999999E-2},{"$f":"IFERROR(INDEX('Data Annex'!$K$1:$AN$1498,MATCH(IFRS9!P$1&\"|\"&IFRS9!$B19,'Data Annex'!$K$1:$K$1498,0),MATCH(IFRS9!P$2,'Data Annex'!$K$1:$AN$1,0)),\"\")","v":3.09601758E-2},{"$f":"IFERROR(INDEX('Data Annex'!$K$1:$AN$1498,MATCH(IFRS9!Q$1&\"|\"&IFRS9!$B19,'Data Annex'!$K$1:$K$1498,0),MATCH(IFRS9!Q$2,'Data Annex'!$K$1:$AN$1,0)),\"\")","v":1.2910738000000001E-3},{"$f":"IFERROR(INDEX('Data Annex'!$K$1:$AN$1498,MATCH(IFRS9!R$1&\"|\"&IFRS9!$B19,'Data Annex'!$K$1:$K$1498,0),MATCH(IFRS9!R$2,'Data Annex'!$K$1:$AN$1,0)),\"\")","v":1.4056912E-3},{"$f":"IFERROR(INDEX('Data Annex'!$K$1:$AN$1498,MATCH(IFRS9!S$1&\"|\"&IFRS9!$B19,'Data Annex'!$K$1:$K$1498,0),MATCH(IFRS9!S$2,'Data Annex'!$K$1:$AN$1,0)),\"\")","v":1.8700768000000001E-3},{"$f":"IFERROR(INDEX('Data Annex'!$K$1:$AN$1498,MATCH(IFRS9!T$1&\"|\"&IFRS9!$B19,'Data Annex'!$K$1:$K$1498,0),MATCH(IFRS9!T$2,'Data Annex'!$K$1:$AN$1,0)),\"\")","v":1.8380839E-3},{"$f":"IFERROR(INDEX('Data Annex'!$K$1:$AN$1498,MATCH(IFRS9!U$1&\"|\"&IFRS9!$B19,'Data Annex'!$K$1:$K$1498,0),MATCH(IFRS9!U$2,'Data Annex'!$K$1:$AN$1,0)),\"\")","v":4.5985337799999998E-2},{"$f":"IFERROR(INDEX('Data Annex'!$K$1:$AN$1498,MATCH(IFRS9!V$1&\"|\"&IFRS9!$B19,'Data Annex'!$K$1:$K$1498,0),MATCH(IFRS9!V$2,'Data Annex'!$K$1:$AN$1,0)),\"\")","v":3.7730310500000003E-2},{"$f":"IFERROR(INDEX('Data Annex'!$K$1:$AN$1498,MATCH(IFRS9!W$1&\"|\"&IFRS9!$B19,'Data Annex'!$K$1:$K$1498,0),MATCH(IFRS9!W$2,'Data Annex'!$K$1:$AN$1,0)),\"\")","v":5.6464181699999998E-2},{"$f":"IFERROR(INDEX('Data Annex'!$K$1:$AN$1498,MATCH(IFRS9!X$1&\"|\"&IFRS9!$B19,'Data Annex'!$K$1:$K$1498,0),MATCH(IFRS9!X$2,'Data Annex'!$K$1:$AN$1,0)),\"\")","v":6.4209497599999998E-2},{"$f":"IFERROR(INDEX('Data Annex'!$K$1:$AN$1498,MATCH(IFRS9!Y$1&\"|\"&IFRS9!$B19,'Data Annex'!$K$1:$K$1498,0),MATCH(IFRS9!Y$2,'Data Annex'!$K$1:$AN$1,0)),\"\")","v":0.5072772887},{"$f":"IFERROR(INDEX('Data Annex'!$K$1:$AN$1498,MATCH(IFRS9!Z$1&\"|\"&IFRS9!$B19,'Data Annex'!$K$1:$K$1498,0),MATCH(IFRS9!Z$2,'Data Annex'!$K$1:$AN$1,0)),\"\")","v":0.50087696670000004},{"$f":"IFERROR(INDEX('Data Annex'!$K$1:$AN$1498,MATCH(IFRS9!AA$1&\"|\"&IFRS9!$B19,'Data Annex'!$K$1:$K$1498,0),MATCH(IFRS9!AA$2,'Data Annex'!$K$1:$AN$1,0)),\"\")","v":0.43898151940000002},{"$f":"IFERROR(INDEX('Data Annex'!$K$1:$AN$1498,MATCH(IFRS9!AB$1&\"|\"&IFRS9!$B19,'Data Annex'!$K$1:$K$1498,0),MATCH(IFRS9!AB$2,'Data Annex'!$K$1:$AN$1,0)),\"\")","v":0.38820106310000002},{"$f":"IFERROR(INDEX('Data Annex'!$K$1:$AH$869,MATCH(IFRS9!AC$1&\"|\"&IFRS9!$B19,'Data Annex'!$K$1:$K$869,0),MATCH(IFRS9!AC$2,'Data Annex'!$K$1:$AH$1,0)),\"\")","v":""}]
[8,"EE",null,"EE",{"$f":"IFERROR(INDEX('Data Annex'!$K$1:$AN$1498,MATCH(IFRS9!E$1&\"|\"&IFRS9!$B20,'Data Annex'!$K$1:$K$1498,0),MATCH(IFRS9!E$2,'Data Annex'!$K$1:$AN$1,0)),\"\")","v":0.88029164869999998},{"$f":"IFERROR(INDEX('Data Annex'!$K$1:$AN$1498,MATCH(IFRS9!F$1&\"|\"&IFRS9!$B20,'Data Annex'!$K$1:$K$1498,0),MATCH(IFRS9!F$2,'Data Annex'!$K$1:$AN$1,0)),\"\")","v":0.86644006880000002},{"$f":"IFERROR(INDEX('Data Annex'!$K$1:$AN$1498,MATCH(IFRS9!G$1&\"|\"&IFRS9!$B20,'Data Annex'!$K$1:$K$1498,0),MATCH(IFRS9!G$2,'Data Annex'!$K$1:$AN$1,0)),\"\")","v":0.86622836240000001},{"$f":"IFERROR(INDEX('Data Annex'!$K$1:$AN$1498,MATCH(IFRS9!H$1&\"|\"&IFRS9!$B20,'Data Annex'!$K$1:$K$1498,0),MATCH(IFRS9!H$2,'Data Annex'!$K$1:$AN$1,0)),\"\")","v":0.87815929940000004},{"$f":"IFERROR(INDEX('Data Annex'!$K$1:$AN$1498,MATCH(IFRS9!I$1&\"|\"&IFRS9!$B20,'Data Annex'!$K$1:$K$1498,0),MATCH(IFRS9!I$2,'Data Annex'!$K$1:$AN$1,0)),\"\")","v":0.1010568325},{"$f":"IFERROR(INDEX('Data Annex'!$K$1:$AN$1498,MATCH(IFRS9!J$1&\"|\"&IFRS9!$B20,'Data Annex'!$K$1:$K$1498,0),MATCH(IFRS9!J$2,'Data Annex'!$K$1:$AN$1,0)),\"\")","v":0.1142669414},{"$f":"IFERROR(INDEX('Data Annex'!$K$1:$AN$1498,MATCH(IFRS9!K$1&\"|\"&IFRS9!$B20,'Data Annex'!$K$1:$K$1498,0),MATCH(IFRS9!K$2,'Data Annex'!$K$1:$AN$1,0)),\"\")","v":0.1160375461},{"$f":"IFERROR(INDEX('Data Annex'!$K$1:$AN$1498,MATCH(IFRS9!L$1&\"|\"&IFRS9!$B20,'Data Annex'!$K$1:$K$1498,0),MATCH(IFRS9!L$2,'Data Annex'!$K$1:$AN$1,0)),\"\")","v":0.1068018486},{"$f":"IFERROR(INDEX('Data Annex'!$K$1:$AN$1498,MATCH(IFRS9!M$1&\"|\"&IFRS9!$B20,'Data Annex'!$K$1:$K$1498,0),MATCH(IFRS9!M$2,'Data Annex'!$K$1:$AN$1,0)),\"\")","v":1.8651518799999999E-2},{"$f":"IFERROR(INDEX('Data Annex'!$K$1:$AN$1498,MATCH(IFRS9!N$1&\"|\"&IFRS9!$B20,'Data Annex'!$K$1:$K$1498,0),MATCH(IFRS9!N$2,'Data Annex'!$K$1:$AN$1,0)),\"\")","v":1.92929898E-2},{"$f":"IFERROR(INDEX('Data Annex'!$K$1:$AN$1498,MATCH(IFRS9!O$1&\"|\"&IFRS9!$B20,'Data Annex'!$K$1:$K$1498,0),MATCH(IFRS9!O$2,'Data Annex'!$K$1:$AN$1,0)),\"\")","v":1.7734091399999999E-2},{"$f":"IFERROR(INDEX('Data Annex'!$K$1:$AN$1498,MATCH(IFRS9!P$1&\"|\"&IFRS9!$B20,'Data Annex'!$K$1:$K$1498,0),MATCH(IFRS9!P$2,'Data Annex'!$K$1:$AN$1,0)),\"\")","v":1.5038852E-2},{"$f":"IFERROR(INDEX('Data Annex'!$K$1:$AN$1498,MATCH(IFRS9!Q$1&\"|\"&IFRS9!$B20,'Data Annex'!$K$1:$K$1498,0),MATCH(IFRS9!Q$2,'Data Annex'!$K$1:$AN$1,0)),\"\")","v":1.2541716000000001E-3},{"$f":"IFERROR(INDEX('Data Annex'!$K$1:$AN$1498,MATCH(IFRS9!R$1&\"|\"&IFRS9!$B20,'Data Annex'!$K$1:$K$1498,0),MATCH(IFRS9!R$2,'Data Annex'!$K$1:$AN$1,0)),\"\")","v":1.5593077E-3},{"$f":"IFERROR(INDEX('Data Annex'!$K$1:$AN$1498,MATCH(IFRS9!S$1&\"|\"&IFRS9!$B20,'Data Annex'!$K$1:$K$1498,0),MATCH(IFRS9!S$2,'Data Annex'!$K$1:$AN$1,0)),\"\")","v":1.5261951E-3},{"$f":"IFERROR(INDEX('Data Annex'!$K$1:$AN$1498,MATCH(IFRS9!T$1&\"|\"&IFRS9!$B20,'Data Annex'!$K$1:$K$1498,0),MATCH(IFRS9!T$2,'Data Annex'!$K$1:$AN$1,0)),\"\")","v":1.6045461999999999E-3},{"$f":"IFERROR(INDEX('Data Annex'!$K$1:$AN$1498,MATCH(IFRS9!U$1&\"|\"&IFRS9!$B20,'Data Annex'!$K$1:$K$1498,0),MATCH(IFRS9!U$2,'Data Annex'!$K$1:$AN$1,0)),\"\")","v":1.8234570200000001E-2},{"$f":"IFERROR(INDEX('Data Annex'!$K$1:$AN$1498,MATCH(IFRS9!V$1&\"|\"&IFRS9!$B20,'Data Annex'!$K$1:$K$1498,0),MATCH(IFRS9!V$2,'Data Annex'!$K$1:$AN$1,0)),\"\")","v":1.9528381899999999E-2},{"$f":"IFERROR(INDEX('Data Annex'!$K$1:$AN$1498,MATCH(IFRS9!W$1&\"|\"&IFRS9!$B20,'Data Annex'!$K$1:$K$1498,0),MATCH(IFRS9!W$2,'Data Annex'!$K$1:$AN$1,0)),\"\")","v":1.84132737E-2},{"$f":"IFERROR(INDEX('Data Annex'!$K$1:$AN$1498,MATCH(IFRS9!X$1&\"|\"&IFRS9!$B20,'Data Annex'!$K$1:$K$1498,0),MATCH(IFRS9!X$2,'Data Annex'!$K$1:$AN$1,0)),\"\")","v":1.94183894E-2},{"$f":"IFERROR(INDEX('Data Annex'!$K$1:$AN$1498,MATCH(IFRS9!Y$1&\"|\"&IFRS9!$B20,'Data Annex'!$K$1:$K$1498,0),MATCH(IFRS9!Y$2,'Data Annex'!$K$1:$AN$1,0)),\"\")","v":0.352827377},{"$f":"IFERROR(INDEX('Data Annex'!$K$1:$AN$1498,MATCH(IFRS9!Z$1&\"|\"&IFRS9!$B20,'Data Annex'!$K$1:$K$1498,0),MATCH(IFRS9!Z$2,'Data Annex'!$K$1:$AN$1,0)),\"\")","v":0.3383063945},{"$f":"IFERROR(INDEX('Data Annex'!$K$1:$AN$1498,MATCH(IFRS9!AA$1&\"|\"&IFRS9!$B20,'Data Annex'!$K$1:$K$1498,0),MATCH(IFRS9!AA$2,'Data Annex'!$K$1:$AN$1,0)),\"\")","v":0.34643561779999998},{"$f":"IFERROR(INDEX('Data Annex'!$K$1:$AN$1498,MATCH(IFRS9!AB$1&\"|\"&IFRS9!$B20,'Data Annex'!$K$1:$K$1498,0),MATCH(IFRS9!AB$2,'Data Annex'!$K$1:$AN$1,0)),\"\")","v":0.29713743129999998},{"$f":"IFERROR(INDEX('Data Annex'!$K$1:$AH$869,MATCH(IFRS9!AC$1&\"|\"&IFRS9!$B20,'Data Annex'!$K$1:$K$869,0),MATCH(IFRS9!AC$2,'Data Annex'!$K$1:$AH$1,0)),\"\")","v":""}]
[9,"ES",null,"ES",{"$f":"IFERROR(INDEX('Data Annex'!$K$1:$AN$1498,MATCH(IFRS9!E$1&\"|\"&IFRS9!$B21,'Data Annex'!$K$1:$K$1498,0),MATCH(IFRS9!E$2,'Data Annex'!$K$1:$AN$1,0)),\"\")","v":0.90761098829999998},{"$f":"IFERROR(INDEX('Data Annex'!$K$1:$AN$1498,MATCH(IFRS9!F$1&\"|\"&IFRS9!$B21,'Data Annex'!$K$1:$K$1498,0),MATCH(IFRS9!F$2,'Data Annex'!$K$1:$AN$1,0)),\"\")","v":0.90410227659999998},{"$f":"IFERROR(INDEX('Data Annex'!$K$1:$AN$1498,MATCH(IFRS9!G$1&\"|\"&IFRS9!$B21,'Data Annex'!$K$1:$K$1498,0),MATCH(IFRS9!G$2,'Data Annex'!$K$1:$AN$1,0)),\"\")","v":0.90510828720000003},{"$f":"IFERROR(INDEX('Data Annex'!$K$1:$AN$1498,MATCH(IFRS9!H$1&\"|\"&IFRS9!$B21,'Data Annex'!$K$1:$K$1498,0),MATCH(IFRS9!H$2,'Data Annex'!$K$1:$AN$1,0)),\"\")","v":0.89508145930000005},{"$f":"IFERROR(INDEX('Data Annex'!$K$1:$AN$1498,MATCH(IFRS9!I$1&\"|\"&IFRS9!$B21,'Data Annex'!$K$1:$K$1498,0),MATCH(IFRS9!I$2,'Data Annex'!$K$1:$AN$1,0)),\"\")","v":5.7169383999999997E-2},{"$f":"IFERROR(INDEX('Data Annex'!$K$1:$AN$1498,MATCH(IFRS9!J$1&\"|\"&IFRS9!$B21,'Data Annex'!$K$1:$K$1498,0),MATCH(IFRS9!J$2,'Data Annex'!$K$1:$AN$1,0)),\"\")","v":6.0584228400000002E-2},{"$f":"IFERROR(INDEX('Data Annex'!$K$1:$AN$1498,MATCH(IFRS9!K$1&\"|\"&IFRS9!$B21,'Data Annex'!$K$1:$K$1498,0),MATCH(IFRS9!K$2,'Data Annex'!$K$1:$AN$1,0)),\"\")","v":6.0016910499999999E-2},{"$f":"IFERROR(INDEX('Data Annex'!$K$1:$AN$1498,MATCH(IFRS9!L$1&\"|\"&IFRS9!$B21,'Data Annex'!$K$1:$K$1498,0),MATCH(IFRS9!L$2,'Data Annex'!$K$1:$AN$1,0)),\"\")","v":7.0735680699999998E-2},{"$f":"IFERROR(INDEX('Data Annex'!$K$1:$AN$1498,MATCH(IFRS9!M$1&\"|\"&IFRS9!$B21,'Data Annex'!$K$1:$K$1498,0),MATCH(IFRS9!M$2,'Data Annex'!$K$1:$AN$1,0)),\"\")","v":3.5219627699999999E-2},{"$f":"IFERROR(INDEX('Data Annex'!$K$1:$AN$1498,MATCH(IFRS9!N$1&\"|\"&IFRS9!$B21,'Data Annex'!$K$1:$K$1498,0),MATCH(IFRS9!N$2,'Data Annex'!$K$1:$AN$1,0)),\"\")","v":3.5313495E-2},{"$f":"IFERROR(INDEX('Data Annex'!$K$1:$AN$1498,MATCH(IFRS9!O$1&\"|\"&IFRS9!$B21,'Data Annex'!$K$1:$K$1498,0),MATCH(IFRS9!O$2,'Data Annex'!$K$1:$AN$1,0)),\"\")","v":3.48748023E-2},{"$f":"IFERROR(INDEX('Data Annex'!$K$1:$AN$1498,MATCH(IFRS9!P$1&\"|\"&IFRS9!$B21,'Data Annex'!$K$1:$K$1498,0),MATCH(IFRS9!P$2,'Data Annex'!$K$1:$AN$1,0)),\"\")","v":3.4182860000000002E-2},{"$f":"IFERROR(INDEX('Data Annex'!$K$1:$AN$1498,MATCH(IFRS9!Q$1&\"|\"&IFRS9!$B21,'Data Annex'!$K$1:$K$1498,0),MATCH(IFRS9!Q$2,'Data Annex'!$K$1:$AN$1,0)),\"\")","v":5.1061622000000001E-3},{"$f":"IFERROR(INDEX('Data Annex'!$K$1:$AN$1498,MATCH(IFRS9!R$1&\"|\"&IFRS9!$B21,'Data Annex'!$K$1:$K$1498,0),MATCH(IFRS9!R$2,'Data Annex'!$K$1:$AN$1,0)),\"\")","v":5.2057685000000001E-3},{"$f":"IFERROR(INDEX('Data Annex'!$K$1:$AN$1498,MATCH(IFRS9!S$1&\"|\"&IFRS9!$B21,'Data Annex'!$K$1:$K$1498,0),MATCH(IFRS9!S$2,'Data Annex'!$K$1:$AN$1,0)),\"\")","v":5.0888716000000002E-3},{"$f":"IFERROR(INDEX('Data Annex'!$K$1:$AN$1498,MATCH(IFRS9!T$1&\"|\"&IFRS9!$B21,'Data Annex'!$K$1:$K$1498,0),MATCH(IFRS9!T$2,'Data Annex'!$K$1:$AN$1,0)),\"\")","v":4.7147917999999997E-3},{"$f":"IFERROR(INDEX('Data Annex'!$K$1:$AN$1498,MATCH(IFRS9!U$1&\"|\"&IFRS9!$B21,'Data Annex'!$K$1:$K$1498,0),MATCH(IFRS9!U$2,'Data Annex'!$K$1:$AN$1,0)),\"\")","v":7.1011379799999996E-2},{"$f":"IFERROR(INDEX('Data Annex'!$K$1:$AN$1498,MATCH(IFRS9!V$1&\"|\"&IFRS9!$B21,'Data Annex'!$K$1:$K$1498,0),MATCH(IFRS9!V$2,'Data Annex'!$K$1:$AN$1,0)),\"\")","v":7.27670178E-2},{"$f":"IFERROR(INDEX('Data Annex'!$K$1:$AN$1498,MATCH(IFRS9!W$1&\"|\"&IFRS9!$B21,'Data Annex'!$K$1:$K$1498,0),MATCH(IFRS9!W$2,'Data Annex'!$K$1:$AN$1,0)),\"\")","v":8.0345877699999999E-2},{"$f":"IFERROR(INDEX('Data Annex'!$K$1:$AN$1498,MATCH(IFRS9!X$1&\"|\"&IFRS9!$B21,'Data Annex'!$K$1:$K$1498,0),MATCH(IFRS9!X$2,'Data Annex'!$K$1:$AN$1,0)),\"\")","v":7.3444849300000004E-2},{"$f":"IFERROR(INDEX('Data Annex'!$K$1:$AN$1498,MATCH(IFRS9!Y$1&\"|\"&IFRS9!$B21,'Data Annex'!$K$1:$K$1498,0),MATCH(IFRS9!Y$2,'Data Annex'!$K$1:$AN$1,0)),\"\")","v":0.43485757400000002},{"$f":"IFERROR(INDEX('Data Annex'!$K$1:$AN$1498,MATCH(IFRS9!Z$1&\"|\"&IFRS9!$B21,'Data Annex'!$K$1:$K$1498,0),MATCH(IFRS9!Z$2,'Data Annex'!$K$1:$AN$1,0)),\"\")","v":0.43817439070000003},{"$f":"IFERROR(INDEX('Data Annex'!$K$1:$AN$1498,MATCH(IFRS9!AA$1&\"|\"&IFRS9!$B21,'Data Annex'!$K$1:$K$1498,0),MATCH(IFRS9!AA$2,'Data Annex'!$K$1:$AN$1,0)),\"\")","v":0.45007655130000002},{"$f":"IFERROR(INDEX('Data Annex'!$K$1:$AN$1498,MATCH(IFRS9!AB$1&\"|\"&IFRS9!$B21,'Data Annex'!$K$1:$K$1498,0),MATCH(IFRS9!AB$2,'Data Annex'!$K$1:$AN$1,0)),\"\")","v":0.45849655900000003},{"$f":"IFERROR(INDEX('Data Annex'!$K$1:$AH$869,MATCH(IFRS9!AC$1&\"|\"&IFRS9!$B21,'Data Annex'!$K$1:$K$869,0),MATCH(IFRS9!AC$2,'Data Annex'!$K$1:$AH$1,0)),\"\")","v":""}]
[10,"FI",null,"FI",{"$f":"IFERROR(INDEX('Data Annex'!$K$1:$AN$1498,MATCH(IFRS9!E$1&\"|\"&IFRS9!$B22,'Data Annex'!$K$1:$K$1498,0),MATCH(IFRS9!E$2,'Data Annex'!$K$1:$AN$1,0)),\"\")","v":0.93733614700000001},{"$f":"IFERROR(INDEX('Data Annex'!$K$1:$AN$1498,MATCH(IFRS9!F$1&\"|\"&IFRS9!$B22,'Data Annex'!$K$1:$K$1498,0),MATCH(IFRS9!F$2,'Data Annex'!$K$1:$AN$1,0)),\"\")","v":0.92428456680000004},{"$f":"IFERROR(INDEX('Data Annex'!$K$1:$AN$1498,MATCH(IFRS9!G$1&\"|\"&IFRS9!$B22,'Data Annex'!$K$1:$K$1498,0),MATCH(IFRS9!G$2,'Data Annex'!$K$1:$AN$1,0)),\"\")","v":0.92236265650000004},{"$f":"IFERROR(INDEX('Data Annex'!$K$1:$AN$1498,MATCH(IFRS9!H$1&\"|\"&IFRS9!$B22,'Data Annex'!$K$1:$K$1498,0),MATCH(IFRS9!H$2,'Data Annex'!$K$1:$AN$1,0)),\"\")","v":0.92690694640000004},{"$f":"IFERROR(INDEX('Data Annex'!$K$1:$AN$1498,MATCH(IFRS9!I$1&\"|\"&IFRS9!$B22,'Data Annex'!$K$1:$K$1498,0),MATCH(IFRS9!I$2,'Data Annex'!$K$1:$AN$1,0)),\"\")","v":4.5302140499999997E-2},{"$f":"IFERROR(INDEX('Data Annex'!$K$1:$AN$1498,MATCH(IFRS9!J$1&\"|\"&IFRS9!$B22,'Data Annex'!$K$1:$K$1498,0),MATCH(IFRS9!J$2,'Data Annex'!$K$1:$AN$1,0)),\"\")","v":5.7564525300000002E-2},{"$f":"IFERROR(INDEX('Data Annex'!$K$1:$AN$1498,MATCH(IFRS9!K$1&\"|\"&IFRS9!$B22,'Data Annex'!$K$1:$K$1498,0),MATCH(IFRS9!K$2,'Data Annex'!$K$1:$AN$1,0)),\"\")","v":5.9688276200000001E-2},{"$f":"IFERROR(INDEX('Data Annex'!$K$1:$AN$1498,MATCH(IFRS9!L$1&\"|\"&IFRS9!$B22,'Data Annex'!$K$1:$K$1498,0),MATCH(IFRS9!L$2,'Data Annex'!$K$1:$AN$1,0)),\"\")","v":5.6207320800000002E-2},{"$f":"IFERROR(INDEX('Data Annex'!$K$1:$AN$1498,MATCH(IFRS9!M$1&\"|\"&IFRS9!$B22,'Data Annex'!$K$1:$K$1498,0),MATCH(IFRS9!M$2,'Data Annex'!$K$1:$AN$1,0)),\"\")","v":1.7361712500000001E-2},{"$f":"IFERROR(INDEX('Data Annex'!$K$1:$AN$1498,MATCH(IFRS9!N$1&\"|\"&IFRS9!$B22,'Data Annex'!$K$1:$K$1498,0),MATCH(IFRS9!N$2,'Data Annex'!$K$1:$AN$1,0)),\"\")","v":1.8150907899999999E-2},{"$f":"IFERROR(INDEX('Data Annex'!$K$1:$AN$1498,MATCH(IFRS9!O$1&\"|\"&IFRS9!$B22,'Data Annex'!$K$1:$K$1498,0),MATCH(IFRS9!O$2,'Data Annex'!$K$1:$AN$1,0)),\"\")","v":1.79490673E-2},{"$f":"IFERROR(INDEX('Data Annex'!$K$1:$AN$1498,MATCH(IFRS9!P$1&\"|\"&IFRS9!$B22,'Data Annex'!$K$1:$K$1498,0),MATCH(IFRS9!P$2,'Data Annex'!$K$1:$AN$1,0)),\"\")","v":1.6885732800000001E-2},{"$f":"IFERROR(INDEX('Data Annex'!$K$1:$AN$1498,MATCH(IFRS9!Q$1&\"|\"&IFRS9!$B22,'Data Annex'!$K$1:$K$1498,0),MATCH(IFRS9!Q$2,'Data Annex'!$K$1:$AN$1,0)),\"\")","v":6.3451849999999999E-4},{"$f":"IFERROR(INDEX('Data Annex'!$K$1:$AN$1498,MATCH(IFRS9!R$1&\"|\"&IFRS9!$B22,'Data Annex'!$K$1:$K$1498,0),MATCH(IFRS9!R$2,'Data Annex'!$K$1:$AN$1,0)),\"\")","v":1.100413E-3},{"$f":"IFERROR(INDEX('Data Annex'!$K$1:$AN$1498,MATCH(IFRS9!S$1&\"|\"&IFRS9!$B22,'Data Annex'!$K$1:$K$1498,0),MATCH(IFRS9!S$2,'Data Annex'!$K$1:$AN$1,0)),\"\")","v":8.8356000000000003E-4},{"$f":"IFERROR(INDEX('Data Annex'!$K$1:$AN$1498,MATCH(IFRS9!T$1&\"|\"&IFRS9!$B22,'Data Annex'!$K$1:$K$1498,0),MATCH(IFRS9!T$2,'Data Annex'!$K$1:$AN$1,0)),\"\")","v":9.4917099999999996E-4},{"$f":"IFERROR(INDEX('Data Annex'!$K$1:$AN$1498,MATCH(IFRS9!U$1&\"|\"&IFRS9!$B22,'Data Annex'!$K$1:$K$1498,0),MATCH(IFRS9!U$2,'Data Annex'!$K$1:$AN$1,0)),\"\")","v":2.25957374E-2},{"$f":"IFERROR(INDEX('Data Annex'!$K$1:$AN$1498,MATCH(IFRS9!V$1&\"|\"&IFRS9!$B22,'Data Annex'!$K$1:$K$1498,0),MATCH(IFRS9!V$2,'Data Annex'!$K$1:$AN$1,0)),\"\")","v":2.5098242199999999E-2},{"$f":"IFERROR(INDEX('Data Annex'!$K$1:$AN$1498,MATCH(IFRS9!W$1&\"|\"&IFRS9!$B22,'Data Annex'!$K$1:$K$1498,0),MATCH(IFRS9!W$2,'Data Annex'!$K$1:$AN$1,0)),\"\")","v":2.4021407299999999E-2},{"$f":"IFERROR(INDEX('Data Annex'!$K$1:$AN$1498,MATCH(IFRS9!X$1&\"|\"&IFRS9!$B22,'Data Annex'!$K$1:$K$1498,0),MATCH(IFRS9!X$2,'Data Annex'!$K$1:$AN$1,0)),\"\")","v":2.62028344E-2},{"$f":"IFERROR(INDEX('Data Annex'!$K$1:$AN$1498,MATCH(IFRS9!Y$1&\"|\"&IFRS9!$B22,'Data Annex'!$K$1:$K$1498,0),MATCH(IFRS9!Y$2,'Data Annex'!$K$1:$AN$1,0)),\"\")","v":0.34531256469999999},{"$f":"IFERROR(INDEX('Data Annex'!$K$1:$AN$1498,MATCH(IFRS9!Z$1&\"|\"&IFRS9!$B22,'Data Annex'!$K$1:$K$1498,0),MATCH(IFRS9!Z$2,'Data Annex'!$K$1:$AN$1,0)),\"\")","v":0.35891960760000002},{"$f":"IFERROR(INDEX('Data Annex'!$K$1:$AN$1498,MATCH(IFRS9!AA$1&\"|\"&IFRS9!$B22,'Data Annex'!$K$1:$K$1498,0),MATCH(IFRS9!AA$2,'Data Annex'!$K$1:$AN$1,0)),\"\")","v":0.3467335459},{"$f":"IFERROR(INDEX('Data Annex'!$K$1:$AN$1498,MATCH(IFRS9!AB$1&\"|\"&IFRS9!$B22,'Data Annex'!$K$1:$K$1498,0),MATCH(IFRS9!AB$2,'Data Annex'!$K$1:$AN$1,0)),\"\")","v":0.33361598129999998},{"$f":"IFERROR(INDEX('Data Annex'!$K$1:$AH$869,MATCH(IFRS9!AC$1&\"|\"&IFRS9!$B22,'Data Annex'!$K$1:$K$869,0),MATCH(IFRS9!AC$2,'Data Annex'!$K$1:$AH$1,0)),\"\")","v":""}]
[11,"FR",null,"FR",{"$f":"IFERROR(INDEX('Data Annex'!$K$1:$AN$1498,MATCH(IFRS9!E$1&\"|\"&IFRS9!$B23,'Data Annex'!$K$1:$K$1498,0),MATCH(IFRS9!E$2,'Data Annex'!$K$1:$AN$1,0)),\"\")","v":0.90476265659999999},{"$f":"IFERROR(INDEX('Data Annex'!$K$1:$AN$1498,MATCH(IFRS9!F$1&\"|\"&IFRS9!$B23,'Data Annex'!$K$1:$K$1498,0),MATCH(IFRS9!F$2,'Data Annex'!$K$1:$AN$1,0)),\"\")","v":0.90002165430000003},{"$f":"IFERROR(INDEX('Data Annex'!$K$1:$AN$1498,MATCH(IFRS9!G$1&\"|\"&IFRS9!$B23,'Data Annex'!$K$1:$K$1498,0),MATCH(IFRS9!G$2,'Data Annex'!$K$1:$AN$1,0)),\"\")","v":0.90112686340000003},{"$f":"IFERROR(INDEX('Data Annex'!$K$1:$AN$1498,MATCH(IFRS9!H$1&\"|\"&IFRS9!$B23,'Data Annex'!$K$1:$K$1498,0),MATCH(IFRS9!H$2,'Data Annex'!$K$1:$AN$1,0)),\"\")","v":0.88985729359999999},{"$f":"IFERROR(INDEX('Data Annex'!$K$1:$AN$1498,MATCH(IFRS9!I$1&\"|\"&IFRS9!$B23,'Data Annex'!$K$1:$K$1498,0),MATCH(IFRS9!I$2,'Data Annex'!$K$1:$AN$1,0)),\"\")","v":6.8707833100000004E-2},{"$f":"IFERROR(INDEX('Data Annex'!$K$1:$AN$1498,MATCH(IFRS9!J$1&\"|\"&IFRS9!$B23,'Data Annex'!$K$1:$K$1498,0),MATCH(IFRS9!J$2,'Data Annex'!$K$1:$AN$1,0)),\"\")","v":7.2802045900000001E-2},{"$f":"IFERROR(INDEX('Data Annex'!$K$1:$AN$1498,MATCH(IFRS9!K$1&\"|\"&IFRS9!$B23,'Data Annex'!$K$1:$K$1498,0),MATCH(IFRS9!K$2,'Data Annex'!$K$1:$AN$1,0)),\"\")","v":7.1441428400000007E-2},{"$f":"IFERROR(INDEX('Data Annex'!$K$1:$AN$1498,MATCH(IFRS9!L$1&\"|\"&IFRS9!$B23,'Data Annex'!$K$1:$K$1498,0),MATCH(IFRS9!L$2,'Data Annex'!$K$1:$AN$1,0)),\"\")","v":8.3840368299999996E-2},{"$f":"IFERROR(INDEX('Data Annex'!$K$1:$AN$1498,MATCH(IFRS9!M$1&\"|\"&IFRS9!$B23,'Data Annex'!$K$1:$K$1498,0),MATCH(IFRS9!M$2,'Data Annex'!$K$1:$AN$1,0)),\"\")","v":2.65295103E-2},{"$f":"IFERROR(INDEX('Data Annex'!$K$1:$AN$1498,MATCH(IFRS9!N$1&\"|\"&IFRS9!$B23,'Data Annex'!$K$1:$K$1498,0),MATCH(IFRS9!N$2,'Data Annex'!$K$1:$AN$1,0)),\"\")","v":2.7176299800000001E-2},{"$f":"IFERROR(INDEX('Data Annex'!$K$1:$AN$1498,MATCH(IFRS9!O$1&\"|\"&IFRS9!$B23,'Data Annex'!$K$1:$K$1498,0),MATCH(IFRS9!O$2,'Data Annex'!$K$1:$AN$1,0)),\"\")","v":2.7431708199999998E-2},{"$f":"IFERROR(INDEX('Data Annex'!$K$1:$AN$1498,MATCH(IFRS9!P$1&\"|\"&IFRS9!$B23,'Data Annex'!$K$1:$K$1498,0),MATCH(IFRS9!P$2,'Data Annex'!$K$1:$AN$1,0)),\"\")","v":2.6302338200000001E-2},{"$f":"IFERROR(INDEX('Data Annex'!$K$1:$AN$1498,MATCH(IFRS9!Q$1&\"|\"&IFRS9!$B23,'Data Annex'!$K$1:$K$1498,0),MATCH(IFRS9!Q$2,'Data Annex'!$K$1:$AN$1,0)),\"\")","v":1.8900156999999999E-3},{"$f":"IFERROR(INDEX('Data Annex'!$K$1:$AN$1498,MATCH(IFRS9!R$1&\"|\"&IFRS9!$B23,'Data Annex'!$K$1:$K$1498,0),MATCH(IFRS9!R$2,'Data Annex'!$K$1:$AN$1,0)),\"\")","v":2.2727975000000002E-3},{"$f":"IFERROR(INDEX('Data Annex'!$K$1:$AN$1498,MATCH(IFRS9!S$1&\"|\"&IFRS9!$B23,'Data Annex'!$K$1:$K$1498,0),MATCH(IFRS9!S$2,'Data Annex'!$K$1:$AN$1,0)),\"\")","v":2.3328481999999998E-3},{"$f":"IFERROR(INDEX('Data Annex'!$K$1:$AN$1498,MATCH(IFRS9!T$1&\"|\"&IFRS9!$B23,'Data Annex'!$K$1:$K$1498,0),MATCH(IFRS9!T$2,'Data Annex'!$K$1:$AN$1,0)),\"\")","v":2.4411617000000001E-3},{"$f":"IFERROR(INDEX('Data Annex'!$K$1:$AN$1498,MATCH(IFRS9!U$1&\"|\"&IFRS9!$B23,'Data Annex'!$K$1:$K$1498,0),MATCH(IFRS9!U$2,'Data Annex'!$K$1:$AN$1,0)),\"\")","v":4.2052728999999997E-2},{"$f":"IFERROR(INDEX('Data Annex'!$K$1:$AN$1498,MATCH(IFRS9!V$1&\"|\"&IFRS9!$B23,'Data Annex'!$K$1:$K$1498,0),MATCH(IFRS9!V$2,'Data Annex'!$K$1:$AN$1,0)),\"\")","v":4.1743511300000001E-2},{"$f":"IFERROR(INDEX('Data Annex'!$K$1:$AN$1498,MATCH(IFRS9!W$1&\"|\"&IFRS9!$B23,'Data Annex'!$K$1:$K$1498,0),MATCH(IFRS9!W$2,'Data Annex'!$K$1:$AN$1,0)),\"\")","v":4.28167084E-2},{"$f":"IFERROR(INDEX('Data Annex'!$K$1:$AN$1498,MATCH(IFRS9!X$1&\"|\"&IFRS9!$B23,'Data Annex'!$K$1:$K$1498,0),MATCH(IFRS9!X$2,'Data Annex'!$K$1:$AN$1,0)),\"\")","v":4.3157792600000001E-2},{"$f":"IFERROR(INDEX('Data Annex'!$K$1:$AN$1498,MATCH(IFRS9!Y$1&\"|\"&IFRS9!$B23,'Data Annex'!$K$1:$K$1498,0),MATCH(IFRS9!Y$2,'Data Annex'!$K$1:$AN$1,0)),\"\")","v":0.52813784880000003},{"$f":"IFERROR(INDEX('Data Annex'!$K$1:$AN$1498,MATCH(IFRS9!Z$1&\"|\"&IFRS9!$B23,'Data Annex'!$K$1:$K$1498,0),MATCH(IFRS9!Z$2,'Data Annex'!$K$1:$AN$1,0)),\"\")","v":0.5174405769},{"$f":"IFERROR(INDEX('Data Annex'!$K$1:$AN$1498,MATCH(IFRS9!AA$1&\"|\"&IFRS9!$B23,'Data Annex'!$K$1:$K$1498,0),MATCH(IFRS9!AA$2,'Data Annex'!$K$1:$AN$1,0)),\"\")","v":0.50482645500000001},{"$f":"IFERROR(INDEX('Data Annex'!$K$1:$AN$1498,MATCH(IFRS9!AB$1&\"|\"&IFRS9!$B23,'Data Annex'!$K$1:$K$1498,0),MATCH(IFRS9!AB$2,'Data Annex'!$K$1:$AN$1,0)),\"\")","v":0.50491696559999999},{"$f":"IFERROR(INDEX('Data Annex'!$K$1:$AH$869,MATCH(IFRS9!AC$1&\"|\"&IFRS9!$B23,'Data Annex'!$K$1:$K$869,0),MATCH(IFRS9!AC$2,'Data Annex'!$K$1:$AH$1,0)),\"\")","v":""}]
[13,"GR",null,"GR",{"$f":"IFERROR(INDEX('Data Annex'!$K$1:$AN$1498,MATCH(IFRS9!E$1&\"|\"&IFRS9!$B24,'Data Annex'!$K$1:$K$1498,0),MATCH(IFRS9!E$2,'Data Annex'!$K$1:$AN$1,0)),\"\")","v":0.49944447050000002},{"$f":"IFERROR(INDEX('Data Annex'!$K$1:$AN$1498,MATCH(IFRS9!F$1&\"|\"&IFRS9!$B24,'Data Annex'!$K$1:$K$1498,0),MATCH(IFRS9!F$2,'Data Annex'!$K$1:$AN$1,0)),\"\")","v":0.52106818160000001},{"$f":"IFERROR(INDEX('Data Annex'!$K$1:$AN$1498,MATCH(IFRS9!G$1&\"|\"&IFRS9!$B24,'Data Annex'!$K$1:$K$1498,0),MATCH(IFRS9!G$2,'Data Annex'!$K$1:$AN$1,0)),\"\")","v":0.54157890099999995},{"$f":"IFERROR(INDEX('Data Annex'!$K$1:$AN$1498,MATCH(IFRS9!H$1&\"|\"&IFRS9!$B24,'Data Annex'!$K$1:$K$1498,0),MATCH(IFRS9!H$2,'Data Annex'!$K$1:$AN$1,0)),\"\")","v":0.56092999509999997},{"$f":"IFERROR(INDEX('Data Annex'!$K$1:$AN$1498,MATCH(IFRS9!I$1&\"|\"&IFRS9!$B24,'Data Annex'!$K$1:$K$1498,0),MATCH(IFRS9!I$2,'Data Annex'!$K$1:$AN$1,0)),\"\")","v":0.12828288860000001},{"$f":"IFERROR(INDEX('Data Annex'!$K$1:$AN$1498,MATCH(IFRS9!J$1&\"|\"&IFRS9!$B24,'Data Annex'!$K$1:$K$1498,0),MATCH(IFRS9!J$2,'Data Annex'!$K$1:$AN$1,0)),\"\")","v":0.13633038650000001},{"$f":"IFERROR(INDEX('Data Annex'!$K$1:$AN$1498,MATCH(IFRS9!K$1&\"|\"&IFRS9!$B24,'Data Annex'!$K$1:$K$1498,0),MATCH(IFRS9!K$2,'Data Annex'!$K$1:$AN$1,0)),\"\")","v":0.1286402203},{"$f":"IFERROR(INDEX('Data Annex'!$K$1:$AN$1498,MATCH(IFRS9!L$1&\"|\"&IFRS9!$B24,'Data Annex'!$K$1:$K$1498,0),MATCH(IFRS9!L$2,'Data Annex'!$K$1:$AN$1,0)),\"\")","v":0.13656408950000001},{"$f":"IFERROR(INDEX('Data Annex'!$K$1:$AN$1498,MATCH(IFRS9!M$1&\"|\"&IFRS9!$B24,'Data Annex'!$K$1:$K$1498,0),MATCH(IFRS9!M$2,'Data Annex'!$K$1:$AN$1,0)),\"\")","v":0.37227264090000001},{"$f":"IFERROR(INDEX('Data Annex'!$K$1:$AN$1498,MATCH(IFRS9!N$1&\"|\"&IFRS9!$B24,'Data Annex'!$K$1:$K$1498,0),MATCH(IFRS9!N$2,'Data Annex'!$K$1:$AN$1,0)),\"\")","v":0.34260143189999998},{"$f":"IFERROR(INDEX('Data Annex'!$K$1:$AN$1498,MATCH(IFRS9!O$1&\"|\"&IFRS9!$B24,'Data Annex'!$K$1:$K$1498,0),MATCH(IFRS9!O$2,'Data Annex'!$K$1:$AN$1,0)),\"\")","v":0.32978087880000001},{"$f":"IFERROR(INDEX('Data Annex'!$K$1:$AN$1498,MATCH(IFRS9!P$1&\"|\"&IFRS9!$B24,'Data Annex'!$K$1:$K$1498,0),MATCH(IFRS9!P$2,'Data Annex'!$K$1:$AN$1,0)),\"\")","v":0.30250591539999999},{"$f":"IFERROR(INDEX('Data Annex'!$K$1:$AN$1498,MATCH(IFRS9!Q$1&\"|\"&IFRS9!$B24,'Data Annex'!$K$1:$K$1498,0),MATCH(IFRS9!Q$2,'Data Annex'!$K$1:$AN$1,0)),\"\")","v":7.3898337999999996E-3},{"$f":"IFERROR(INDEX('Data Annex'!$K$1:$AN$1498,MATCH(IFRS9!R$1&\"|\"&IFRS9!$B24,'Data Annex'!$K$1:$K$1498,0),MATCH(IFRS9!R$2,'Data Annex'!$K$1:$AN$1,0)),\"\")","v":7.4954438999999999E-3},{"$f":"IFERROR(INDEX('Data Annex'!$K$1:$AN$1498,MATCH(IFRS9!S$1&\"|\"&IFRS9!$B24,'Data Annex'!$K$1:$K$1498,0),MATCH(IFRS9!S$2,'Data Annex'!$K$1:$AN$1,0)),\"\")","v":7.1363047000000002E-3},{"$f":"IFERROR(INDEX('Data Annex'!$K$1:$AN$1498,MATCH(IFRS9!T$1&\"|\"&IFRS9!$B24,'Data Annex'!$K$1:$K$1498,0),MATCH(IFRS9!T$2,'Data Annex'!$K$1:$AN$1,0)),\"\")","v":6.1604190000000003E-3},{"$f":"IFERROR(INDEX('Data Annex'!$K$1:$AN$1498,MATCH(IFRS9!U$1&\"|\"&IFRS9!$B24,'Data Annex'!$K$1:$K$1498,0),MATCH(IFRS9!U$2,'Data Annex'!$K$1:$AN$1,0)),\"\")","v":6.6633378500000007E-2},{"$f":"IFERROR(INDEX('Data Annex'!$K$1:$AN$1498,MATCH(IFRS9!V$1&\"|\"&IFRS9!$B24,'Data Annex'!$K$1:$K$1498,0),MATCH(IFRS9!V$2,'Data Annex'!$K$1:$AN$1,0)),\"\")","v":6.4684927200000006E-2},{"$f":"IFERROR(INDEX('Data Annex'!$K$1:$AN$1498,MATCH(IFRS9!W$1&\"|\"&IFRS9!$B24,'Data Annex'!$K$1:$K$1498,0),MATCH(IFRS9!W$2,'Data Annex'!$K$1:$AN$1,0)),\"\")","v":6.3296062700000003E-2},{"$f":"IFERROR(INDEX('Data Annex'!$K$1:$AN$1498,MATCH(IFRS9!X$1&\"|\"&IFRS9!$B24,'Data Annex'!$K$1:$K$1498,0),MATCH(IFRS9!X$2,'Data Annex'!$K$1:$AN$1,0)),\"\")","v":5.76984049E-2},{"$f":"IFERROR(INDEX('Data Annex'!$K$1:$AN$1498,MATCH(IFRS9!Y$1&\"|\"&IFRS9!$B24,'Data Annex'!$K$1:$K$1498,0),MATCH(IFRS9!Y$2,'Data Annex'!$K$1:$AN$1,0)),\"\")","v":0.45092234650000002},{"$f":"IFERROR(INDEX('Data Annex'!$K$1:$AN$1498,MATCH(IFRS9!Z$1&\"|\"&IFRS9!$B24,'Data Annex'!$K$1:$K$1498,0),MATCH(IFRS9!Z$2,'Data Annex'!$K$1:$AN$1,0)),\"\")","v":0.44476321190000001},{"$f":"IFERROR(INDEX('Data Annex'!$K$1:$AN$1498,MATCH(IFRS9!AA$1&\"|\"&IFRS9!$B24,'Data Annex'!$K$1:$K$1498,0),MATCH(IFRS9!AA$2,'Data Annex'!$K$1:$AN$1,0)),\"\")","v":0.44772768060000001},{"$f":"IFERROR(INDEX('Data Annex'!$K$1:$AN$1498,MATCH(IFRS9!AB$1&\"|\"&IFRS9!$B24,'Data Annex'!$K$1:$K$1498,0),MATCH(IFRS9!AB$2,'Data Annex'!$K$1:$AN$1,0)),\"\")","v":0.44629102650000002},{"$f":"IFERROR(INDEX('Data Annex'!$K$1:$AH$869,MATCH(IFRS9!AC$1&\"|\"&IFRS9!$B24,'Data Annex'!$K$1:$K$869,0),MATCH(IFRS9!AC$2,'Data Annex'!$K$1:$AH$1,0)),\"\")","v":""}]
[14,"HR",null,"HR",{"$f":"IFERROR(INDEX('Data Annex'!$K$1:$AN$1498,MATCH(IFRS9!E$1&\"|\"&IFRS9!$B25,'Data Annex'!$K$1:$K$1498,0),MATCH(IFRS9!E$2,'Data Annex'!$K$1:$AN$1,0)),\"\")","v":0.87585234940000001},{"$f":"IFERROR(INDEX('Data Annex'!$K$1:$AN$1498,MATCH(IFRS9!F$1&\"|\"&IFRS9!$B25,'Data Annex'!$K$1:$K$1498,0),MATCH(IFRS9!F$2,'Data Annex'!$K$1:$AN$1,0)),\"\")","v":0.86245149409999999},{"$f":"IFERROR(INDEX('Data Annex'!$K$1:$AN$1498,MATCH(IFRS9!G$1&\"|\"&IFRS9!$B25,'Data Annex'!$K$1:$K$1498,0),MATCH(IFRS9!G$2,'Data Annex'!$K$1:$AN$1,0)),\"\")","v":0.84409313939999997},{"$f":"IFERROR(INDEX('Data Annex'!$K$1:$AN$1498,MATCH(IFRS9!H$1&\"|\"&IFRS9!$B25,'Data Annex'!$K$1:$K$1498,0),MATCH(IFRS9!H$2,'Data Annex'!$K$1:$AN$1,0)),\"\")","v":0.83416993289999997},{"$f":"IFERROR(INDEX('Data Annex'!$K$1:$AN$1498,MATCH(IFRS9!I$1&\"|\"&IFRS9!$B25,'Data Annex'!$K$1:$K$1498,0),MATCH(IFRS9!I$2,'Data Annex'!$K$1:$AN$1,0)),\"\")","v":7.5413901800000002E-2},{"$f":"IFERROR(INDEX('Data Annex'!$K$1:$AN$1498,MATCH(IFRS9!J$1&\"|\"&IFRS9!$B25,'Data Annex'!$K$1:$K$1498,0),MATCH(IFRS9!J$2,'Data Annex'!$K$1:$AN$1,0)),\"\")","v":8.7017085800000005E-2},{"$f":"IFERROR(INDEX('Data Annex'!$K$1:$AN$1498,MATCH(IFRS9!K$1&\"|\"&IFRS9!$B25,'Data Annex'!$K$1:$K$1498,0),MATCH(IFRS9!K$2,'Data Annex'!$K$1:$AN$1,0)),\"\")","v":0.1036714877},{"$f":"IFERROR(INDEX('Data Annex'!$K$1:$AN$1498,MATCH(IFRS9!L$1&\"|\"&IFRS9!$B25,'Data Annex'!$K$1:$K$1498,0),MATCH(IFRS9!L$2,'Data Annex'!$K$1:$AN$1,0)),\"\")","v":0.1129819242},{"$f":"IFERROR(INDEX('Data Annex'!$K$1:$AN$1498,MATCH(IFRS9!M$1&\"|\"&IFRS9!$B25,'Data Annex'!$K$1:$K$1498,0),MATCH(IFRS9!M$2,'Data Annex'!$K$1:$AN$1,0)),\"\")","v":4.8733748799999997E-2},{"$f":"IFERROR(INDEX('Data Annex'!$K$1:$AN$1498,MATCH(IFRS9!N$1&\"|\"&IFRS9!$B25,'Data Annex'!$K$1:$K$1498,0),MATCH(IFRS9!N$2,'Data Annex'!$K$1:$AN$1,0)),\"\")","v":5.0531420100000002E-2},{"$f":"IFERROR(INDEX('Data Annex'!$K$1:$AN$1498,MATCH(IFRS9!O$1&\"|\"&IFRS9!$B25,'Data Annex'!$K$1:$K$1498,0),MATCH(IFRS9!O$2,'Data Annex'!$K$1:$AN$1,0)),\"\")","v":5.22353729E-2},{"$f":"IFERROR(INDEX('Data Annex'!$K$1:$AN$1498,MATCH(IFRS9!P$1&\"|\"&IFRS9!$B25,'Data Annex'!$K$1:$K$1498,0),MATCH(IFRS9!P$2,'Data Annex'!$K$1:$AN$1,0)),\"\")","v":5.2848142899999999E-2},{"$f":"IFERROR(INDEX('Data Annex'!$K$1:$AN$1498,MATCH(IFRS9!Q$1&\"|\"&IFRS9!$B25,'Data Annex'!$K$1:$K$1498,0),MATCH(IFRS9!Q$2,'Data Annex'!$K$1:$AN$1,0)),\"\")","v":6.7865388000000002E-3},{"$f":"IFERROR(INDEX('Data Annex'!$K$1:$AN$1498,MATCH(IFRS9!R$1&\"|\"&IFRS9!$B25,'Data Annex'!$K$1:$K$1498,0),MATCH(IFRS9!R$2,'Data Annex'!$K$1:$AN$1,0)),\"\")","v":6.3508202999999997E-3},{"$f":"IFERROR(INDEX('Data Annex'!$K$1:$AN$1498,MATCH(IFRS9!S$1&\"|\"&IFRS9!$B25,'Data Annex'!$K$1:$K$1498,0),MATCH(IFRS9!S$2,'Data Annex'!$K$1:$AN$1,0)),\"\")","v":5.6870823999999997E-3},{"$f":"IFERROR(INDEX('Data Annex'!$K$1:$AN$1498,MATCH(IFRS9!T$1&\"|\"&IFRS9!$B25,'Data Annex'!$K$1:$K$1498,0),MATCH(IFRS9!T$2,'Data Annex'!$K$1:$AN$1,0)),\"\")","v":5.7085861999999999E-3},{"$f":"IFERROR(INDEX('Data Annex'!$K$1:$AN$1498,MATCH(IFRS9!U$1&\"|\"&IFRS9!$B25,'Data Annex'!$K$1:$K$1498,0),MATCH(IFRS9!U$2,'Data Annex'!$K$1:$AN$1,0)),\"\")","v":7.23871715E-2},{"$f":"IFERROR(INDEX('Data Annex'!$K$1:$AN$1498,MATCH(IFRS9!V$1&\"|\"&IFRS9!$B25,'Data Annex'!$K$1:$K$1498,0),MATCH(IFRS9!V$2,'Data Annex'!$K$1:$AN$1,0)),\"\")","v":7.6393168900000002E-2},{"$f":"IFERROR(INDEX('Data Annex'!$K$1:$AN$1498,MATCH(IFRS9!W$1&\"|\"&IFRS9!$B25,'Data Annex'!$K$1:$K$1498,0),MATCH(IFRS9!W$2,'Data Annex'!$K$1:$AN$1,0)),\"\")","v":7.0913919199999995E-2},{"$f":"IFERROR(INDEX('Data Annex'!$K$1:$AN$1498,MATCH(IFRS9!X$1&\"|\"&IFRS9!$B25,'Data Annex'!$K$1:$K$1498,0),MATCH(IFRS9!X$2,'Data Annex'!$K$1:$AN$1,0)),\"\")","v":7.7521426599999999E-2},{"$f":"IFERROR(INDEX('Data Annex'!$K$1:$AN$1498,MATCH(IFRS9!Y$1&\"|\"&IFRS9!$B25,'Data Annex'!$K$1:$K$1498,0),MATCH(IFRS9!Y$2,'Data Annex'!$K$1:$AN$1,0)),\"\")","v":0.67834791849999998},{"$f":"IFERROR(INDEX('Data Annex'!$K$1:$AN$1498,MATCH(IFRS9!Z$1&\"|\"&IFRS9!$B25,'Data Annex'!$K$1:$K$1498,0),MATCH(IFRS9!Z$2,'Data Annex'!$K$1:$AN$1,0)),\"\")","v":0.67504286160000004},{"$f":"IFERROR(INDEX('Data Annex'!$K$1:$AN$1498,MATCH(IFRS9!AA$1&\"|\"&IFRS9!$B25,'Data Annex'!$K$1:$K$1498,0),MATCH(IFRS9!AA$2,'Data Annex'!$K$1:$AN$1,0)),\"\")","v":0.67534638879999997},{"$f":"IFERROR(INDEX('Data Annex'!$K$1:$AN$1498,MATCH(IFRS9!AB$1&\"|\"&IFRS9!$B25,'Data Annex'!$K$1:$K$1498,0),MATCH(IFRS9!AB$2,'Data Annex'!$K$1:$AN$1,0)),\"\")","v":0.62885542859999999},{"$f":"IFERROR(INDEX('Data Annex'!$K$1:$AH$869,MATCH(IFRS9!AC$1&\"|\"&IFRS9!$B25,'Data Annex'!$K$1:$K$869,0),MATCH(IFRS9!AC$2,'Data Annex'!$K$1:$AH$1,0)),\"\")","v":""}]
[15,"HU",null,"HU",{"$f":"IFERROR(INDEX('Data Annex'!$K$1:$AN$1498,MATCH(IFRS9!E$1&\"|\"&IFRS9!$B26,'Data Annex'!$K$1:$K$1498,0),MATCH(IFRS9!E$2,'Data Annex'!$K$1:$AN$1,0)),\"\")","v":0.86760678719999995},{"$f":"IFERROR(INDEX('Data Annex'!$K$1:$AN$1498,MATCH(IFRS9!F$1&\"|\"&IFRS9!$B26,'Data Annex'!$K$1:$K$1498,0),MATCH(IFRS9!F$2,'Data Annex'!$K$1:$AN$1,0)),\"\")","v":0.86929225359999995},{"$f":"IFERROR(INDEX('Data Annex'!$K$1:$AN$1498,MATCH(IFRS9!G$1&\"|\"&IFRS9!$B26,'Data Annex'!$K$1:$K$1498,0),MATCH(IFRS9!G$2,'Data Annex'!$K$1:$AN$1,0)),\"\")","v":0.85054079270000005},{"$f":"IFERROR(INDEX('Data Annex'!$K$1:$AN$1498,MATCH(IFRS9!H$1&\"|\"&IFRS9!$B26,'Data Annex'!$K$1:$K$1498,0),MATCH(IFRS9!H$2,'Data Annex'!$K$1:$AN$1,0)),\"\")","v":0.83349088579999997},{"$f":"IFERROR(INDEX('Data Annex'!$K$1:$AN$1498,MATCH(IFRS9!I$1&\"|\"&IFRS9!$B26,'Data Annex'!$K$1:$K$1498,0),MATCH(IFRS9!I$2,'Data Annex'!$K$1:$AN$1,0)),\"\")","v":8.26199975E-2},{"$f":"IFERROR(INDEX('Data Annex'!$K$1:$AN$1498,MATCH(IFRS9!J$1&\"|\"&IFRS9!$B26,'Data Annex'!$K$1:$K$1498,0),MATCH(IFRS9!J$2,'Data Annex'!$K$1:$AN$1,0)),\"\")","v":8.1450597400000005E-2},{"$f":"IFERROR(INDEX('Data Annex'!$K$1:$AN$1498,MATCH(IFRS9!K$1&\"|\"&IFRS9!$B26,'Data Annex'!$K$1:$K$1498,0),MATCH(IFRS9!K$2,'Data Annex'!$K$1:$AN$1,0)),\"\")","v":0.10258663480000001},{"$f":"IFERROR(INDEX('Data Annex'!$K$1:$AN$1498,MATCH(IFRS9!L$1&\"|\"&IFRS9!$B26,'Data Annex'!$K$1:$K$1498,0),MATCH(IFRS9!L$2,'Data Annex'!$K$1:$AN$1,0)),\"\")","v":0.1200414271},{"$f":"IFERROR(INDEX('Data Annex'!$K$1:$AN$1498,MATCH(IFRS9!M$1&\"|\"&IFRS9!$B26,'Data Annex'!$K$1:$K$1498,0),MATCH(IFRS9!M$2,'Data Annex'!$K$1:$AN$1,0)),\"\")","v":4.9773215199999998E-2},{"$f":"IFERROR(INDEX('Data Annex'!$K$1:$AN$1498,MATCH(IFRS9!N$1&\"|\"&IFRS9!$B26,'Data Annex'!$K$1:$K$1498,0),MATCH(IFRS9!N$2,'Data Annex'!$K$1:$AN$1,0)),\"\")","v":4.9257149E-2},{"$f":"IFERROR(INDEX('Data Annex'!$K$1:$AN$1498,MATCH(IFRS9!O$1&\"|\"&IFRS9!$B26,'Data Annex'!$K$1:$K$1498,0),MATCH(IFRS9!O$2,'Data Annex'!$K$1:$AN$1,0)),\"\")","v":4.6872572500000001E-2},{"$f":"IFERROR(INDEX('Data Annex'!$K$1:$AN$1498,MATCH(IFRS9!P$1&\"|\"&IFRS9!$B26,'Data Annex'!$K$1:$K$1498,0),MATCH(IFRS9!P$2,'Data Annex'!$K$1:$AN$1,0)),\"\")","v":4.6467687100000002E-2},{"$f":"IFERROR(INDEX('Data Annex'!$K$1:$AN$1498,MATCH(IFRS9!Q$1&\"|\"&IFRS9!$B26,'Data Annex'!$K$1:$K$1498,0),MATCH(IFRS9!Q$2,'Data Annex'!$K$1:$AN$1,0)),\"\")","v":1.0335486E-2},{"$f":"IFERROR(INDEX('Data Annex'!$K$1:$AN$1498,MATCH(IFRS9!R$1&\"|\"&IFRS9!$B26,'Data Annex'!$K$1:$K$1498,0),MATCH(IFRS9!R$2,'Data Annex'!$K$1:$AN$1,0)),\"\")","v":8.9675998E-3},{"$f":"IFERROR(INDEX('Data Annex'!$K$1:$AN$1498,MATCH(IFRS9!S$1&\"|\"&IFRS9!$B26,'Data Annex'!$K$1:$K$1498,0),MATCH(IFRS9!S$2,'Data Annex'!$K$1:$AN$1,0)),\"\")","v":7.0515952E-3},{"$f":"IFERROR(INDEX('Data Annex'!$K$1:$AN$1498,MATCH(IFRS9!T$1&\"|\"&IFRS9!$B26,'Data Annex'!$K$1:$K$1498,0),MATCH(IFRS9!T$2,'Data Annex'!$K$1:$AN$1,0)),\"\")","v":7.5181618999999996E-3},{"$f":"IFERROR(INDEX('Data Annex'!$K$1:$AN$1498,MATCH(IFRS9!U$1&\"|\"&IFRS9!$B26,'Data Annex'!$K$1:$K$1498,0),MATCH(IFRS9!U$2,'Data Annex'!$K$1:$AN$1,0)),\"\")","v":8.7719308900000001E-2},{"$f":"IFERROR(INDEX('Data Annex'!$K$1:$AN$1498,MATCH(IFRS9!V$1&\"|\"&IFRS9!$B26,'Data Annex'!$K$1:$K$1498,0),MATCH(IFRS9!V$2,'Data Annex'!$K$1:$AN$1,0)),\"\")","v":0.1126264823},{"$f":"IFERROR(INDEX('Data Annex'!$K$1:$AN$1498,MATCH(IFRS9!W$1&\"|\"&IFRS9!$B26,'Data Annex'!$K$1:$K$1498,0),MATCH(IFRS9!W$2,'Data Annex'!$K$1:$AN$1,0)),\"\")","v":0.1046897712},{"$f":"IFERROR(INDEX('Data Annex'!$K$1:$AN$1498,MATCH(IFRS9!X$1&\"|\"&IFRS9!$B26,'Data Annex'!$K$1:$K$1498,0),MATCH(IFRS9!X$2,'Data Annex'!$K$1:$AN$1,0)),\"\")","v":9.8871495000000004E-2},{"$f":"IFERROR(INDEX('Data Annex'!$K$1:$AN$1498,MATCH(IFRS9!Y$1&\"|\"&IFRS9!$B26,'Data Annex'!$K$1:$K$1498,0),MATCH(IFRS9!Y$2,'Data Annex'!$K$1:$AN$1,0)),\"\")","v":0.65275734890000003},{"$f":"IFERROR(INDEX('Data Annex'!$K$1:$AN$1498,MATCH(IFRS9!Z$1&\"|\"&IFRS9!$B26,'Data Annex'!$K$1:$K$1498,0),MATCH(IFRS9!Z$2,'Data Annex'!$K$1:$AN$1,0)),\"\")","v":0.66571074600000002},{"$f":"IFERROR(INDEX('Data Annex'!$K$1:$AN$1498,MATCH(IFRS9!AA$1&\"|\"&IFRS9!$B26,'Data Annex'!$K$1:$K$1498,0),MATCH(IFRS9!AA$2,'Data Annex'!$K$1:$AN$1,0)),\"\")","v":0.65626748550000003},{"$f":"IFERROR(INDEX('Data Annex'!$K$1:$AN$1498,MATCH(IFRS9!AB$1&\"|\"&IFRS9!$B26,'Data Annex'!$K$1:$K$1498,0),MATCH(IFRS9!AB$2,'Data Annex'!$K$1:$AN$1,0)),\"\")","v":0.62865375680000002},{"$f":"IFERROR(INDEX('Data Annex'!$K$1:$AH$869,MATCH(IFRS9!AC$1&\"|\"&IFRS9!$B26,'Data Annex'!$K$1:$K$869,0),MATCH(IFRS9!AC$2,'Data Annex'!$K$1:$AH$1,0)),\"\")","v":""}]
[16,"IE",null,"IE",{"$f":"IFERROR(INDEX('Data Annex'!$K$1:$AN$1498,MATCH(IFRS9!E$1&\"|\"&IFRS9!$B27,'Data Annex'!$K$1:$K$1498,0),MATCH(IFRS9!E$2,'Data Annex'!$K$1:$AN$1,0)),\"\")","v":0.8904251125},{"$f":"IFERROR(INDEX('Data Annex'!$K$1:$AN$1498,MATCH(IFRS9!F$1&\"|\"&IFRS9!$B27,'Data Annex'!$K$1:$K$1498,0),MATCH(IFRS9!F$2,'Data Annex'!$K$1:$AN$1,0)),\"\")","v":0.80503756950000005},{"$f":"IFERROR(INDEX('Data Annex'!$K$1:$AN$1498,MATCH(IFRS9!G$1&\"|\"&IFRS9!$B27,'Data Annex'!$K$1:$K$1498,0),MATCH(IFRS9!G$2,'Data Annex'!$K$1:$AN$1,0)),\"\")","v":0.80446923370000001},{"$f":"IFERROR(INDEX('Data Annex'!$K$1:$AN$1498,MATCH(IFRS9!H$1&\"|\"&IFRS9!$B27,'Data Annex'!$K$1:$K$1498,0),MATCH(IFRS9!H$2,'Data Annex'!$K$1:$AN$1,0)),\"\")","v":0.78962273650000003},{"$f":"IFERROR(INDEX('Data Annex'!$K$1:$AN$1498,MATCH(IFRS9!I$1&\"|\"&IFRS9!$B27,'Data Annex'!$K$1:$K$1498,0),MATCH(IFRS9!I$2,'Data Annex'!$K$1:$AN$1,0)),\"\")","v":7.1367046200000006E-2},{"$f":"IFERROR(INDEX('Data Annex'!$K$1:$AN$1498,MATCH(IFRS9!J$1&\"|\"&IFRS9!$B27,'Data Annex'!$K$1:$K$1498,0),MATCH(IFRS9!J$2,'Data Annex'!$K$1:$AN$1,0)),\"\")","v":0.14539342920000001},{"$f":"IFERROR(INDEX('Data Annex'!$K$1:$AN$1498,MATCH(IFRS9!K$1&\"|\"&IFRS9!$B27,'Data Annex'!$K$1:$K$1498,0),MATCH(IFRS9!K$2,'Data Annex'!$K$1:$AN$1,0)),\"\")","v":0.1437276233},{"$f":"IFERROR(INDEX('Data Annex'!$K$1:$AN$1498,MATCH(IFRS9!L$1&\"|\"&IFRS9!$B27,'Data Annex'!$K$1:$K$1498,0),MATCH(IFRS9!L$2,'Data Annex'!$K$1:$AN$1,0)),\"\")","v":0.15606161220000001},{"$f":"IFERROR(INDEX('Data Annex'!$K$1:$AN$1498,MATCH(IFRS9!M$1&\"|\"&IFRS9!$B27,'Data Annex'!$K$1:$K$1498,0),MATCH(IFRS9!M$2,'Data Annex'!$K$1:$AN$1,0)),\"\")","v":3.8207841300000003E-2},{"$f":"IFERROR(INDEX('Data Annex'!$K$1:$AN$1498,MATCH(IFRS9!N$1&\"|\"&IFRS9!$B27,'Data Annex'!$K$1:$K$1498,0),MATCH(IFRS9!N$2,'Data Annex'!$K$1:$AN$1,0)),\"\")","v":4.9569001299999998E-2},{"$f":"IFERROR(INDEX('Data Annex'!$K$1:$AN$1498,MATCH(IFRS9!O$1&\"|\"&IFRS9!$B27,'Data Annex'!$K$1:$K$1498,0),MATCH(IFRS9!O$2,'Data Annex'!$K$1:$AN$1,0)),\"\")","v":5.1803143000000003E-2},{"$f":"IFERROR(INDEX('Data Annex'!$K$1:$AN$1498,MATCH(IFRS9!P$1&\"|\"&IFRS9!$B27,'Data Annex'!$K$1:$K$1498,0),MATCH(IFRS9!P$2,'Data Annex'!$K$1:$AN$1,0)),\"\")","v":5.4315651299999997E-2},{"$f":"IFERROR(INDEX('Data Annex'!$K$1:$AN$1498,MATCH(IFRS9!Q$1&\"|\"&IFRS9!$B27,'Data Annex'!$K$1:$K$1498,0),MATCH(IFRS9!Q$2,'Data Annex'!$K$1:$AN$1,0)),\"\")","v":2.0391266999999999E-3},{"$f":"IFERROR(INDEX('Data Annex'!$K$1:$AN$1498,MATCH(IFRS9!R$1&\"|\"&IFRS9!$B27,'Data Annex'!$K$1:$K$1498,0),MATCH(IFRS9!R$2,'Data Annex'!$K$1:$AN$1,0)),\"\")","v":6.9551101999999997E-3},{"$f":"IFERROR(INDEX('Data Annex'!$K$1:$AN$1498,MATCH(IFRS9!S$1&\"|\"&IFRS9!$B27,'Data Annex'!$K$1:$K$1498,0),MATCH(IFRS9!S$2,'Data Annex'!$K$1:$AN$1,0)),\"\")","v":7.2167589999999997E-3},{"$f":"IFERROR(INDEX('Data Annex'!$K$1:$AN$1498,MATCH(IFRS9!T$1&\"|\"&IFRS9!$B27,'Data Annex'!$K$1:$K$1498,0),MATCH(IFRS9!T$2,'Data Annex'!$K$1:$AN$1,0)),\"\")","v":4.9133878999999998E-3},{"$f":"IFERROR(INDEX('Data Annex'!$K$1:$AN$1498,MATCH(IFRS9!U$1&\"|\"&IFRS9!$B27,'Data Annex'!$K$1:$K$1498,0),MATCH(IFRS9!U$2,'Data Annex'!$K$1:$AN$1,0)),\"\")","v":4.44067379E-2},{"$f":"IFERROR(INDEX('Data Annex'!$K$1:$AN$1498,MATCH(IFRS9!V$1&\"|\"&IFRS9!$B27,'Data Annex'!$K$1:$K$1498,0),MATCH(IFRS9!V$2,'Data Annex'!$K$1:$AN$1,0)),\"\")","v":5.3782351999999999E-2},{"$f":"IFERROR(INDEX('Data Annex'!$K$1:$AN$1498,MATCH(IFRS9!W$1&\"|\"&IFRS9!$B27,'Data Annex'!$K$1:$K$1498,0),MATCH(IFRS9!W$2,'Data Annex'!$K$1:$AN$1,0)),\"\")","v":5.4961659699999998E-2},{"$f":"IFERROR(INDEX('Data Annex'!$K$1:$AN$1498,MATCH(IFRS9!X$1&\"|\"&IFRS9!$B27,'Data Annex'!$K$1:$K$1498,0),MATCH(IFRS9!X$2,'Data Annex'!$K$1:$AN$1,0)),\"\")","v":5.9407257900000003E-2},{"$f":"IFERROR(INDEX('Data Annex'!$K$1:$AN$1498,MATCH(IFRS9!Y$1&\"|\"&IFRS9!$B27,'Data Annex'!$K$1:$K$1498,0),MATCH(IFRS9!Y$2,'Data Annex'!$K$1:$AN$1,0)),\"\")","v":0.29275891539999999},{"$f":"IFERROR(INDEX('Data Annex'!$K$1:$AN$1498,MATCH(IFRS9!Z$1&\"|\"&IFRS9!$B27,'Data Annex'!$K$1:$K$1498,0),MATCH(IFRS9!Z$2,'Data Annex'!$K$1:$AN$1,0)),\"\")","v":0.29970125390000002},{"$f":"IFERROR(INDEX('Data Annex'!$K$1:$AN$1498,MATCH(IFRS9!AA$1&\"|\"&IFRS9!$B27,'Data Annex'!$K$1:$K$1498,0),MATCH(IFRS9!AA$2,'Data Annex'!$K$1:$AN$1,0)),\"\")","v":0.29947297070000001},{"$f":"IFERROR(INDEX('Data Annex'!$K$1:$AN$1498,MATCH(IFRS9!AB$1&\"|\"&IFRS9!$B27,'Data Annex'!$K$1:$K$1498,0),MATCH(IFRS9!AB$2,'Data Annex'!$K$1:$AN$1,0)),\"\")","v":0.3097917617},{"$f":"IFERROR(INDEX('Data Annex'!$K$1:$AH$869,MATCH(IFRS9!AC$1&\"|\"&IFRS9!$B27,'Data Annex'!$K$1:$K$869,0),MATCH(IFRS9!AC$2,'Data Annex'!$K$1:$AH$1,0)),\"\")","v":""}]
[17,"IS",null,"IS",{"$f":"IFERROR(INDEX('Data Annex'!$K$1:$AN$1498,MATCH(IFRS9!E$1&\"|\"&IFRS9!$B28,'Data Annex'!$K$1:$K$1498,0),MATCH(IFRS9!E$2,'Data Annex'!$K$1:$AN$1,0)),\"\")","v":0.84732752739999995},{"$f":"IFERROR(INDEX('Data Annex'!$K$1:$AN$1498,MATCH(IFRS9!F$1&\"|\"&IFRS9!$B28,'Data Annex'!$K$1:$K$1498,0),MATCH(IFRS9!F$2,'Data Annex'!$K$1:$AN$1,0)),\"\")","v":0.82464789390000004},{"$f":"IFERROR(INDEX('Data Annex'!$K$1:$AN$1498,MATCH(IFRS9!G$1&\"|\"&IFRS9!$B28,'Data Annex'!$K$1:$K$1498,0),MATCH(IFRS9!G$2,'Data Annex'!$K$1:$AN$1,0)),\"\")","v":0.82698967990000005},{"$f":"IFERROR(INDEX('Data Annex'!$K$1:$AN$1498,MATCH(IFRS9!H$1&\"|\"&IFRS9!$B28,'Data Annex'!$K$1:$K$1498,0),MATCH(IFRS9!H$2,'Data Annex'!$K$1:$AN$1,0)),\"\")","v":0.83307332619999996},{"$f":"IFERROR(INDEX('Data Annex'!$K$1:$AN$1498,MATCH(IFRS9!I$1&\"|\"&IFRS9!$B28,'Data Annex'!$K$1:$K$1498,0),MATCH(IFRS9!I$2,'Data Annex'!$K$1:$AN$1,0)),\"\")","v":0.1242898494},{"$f":"IFERROR(INDEX('Data Annex'!$K$1:$AN$1498,MATCH(IFRS9!J$1&\"|\"&IFRS9!$B28,'Data Annex'!$K$1:$K$1498,0),MATCH(IFRS9!J$2,'Data Annex'!$K$1:$AN$1,0)),\"\")","v":0.14266588960000001},{"$f":"IFERROR(INDEX('Data Annex'!$K$1:$AN$1498,MATCH(IFRS9!K$1&\"|\"&IFRS9!$B28,'Data Annex'!$K$1:$K$1498,0),MATCH(IFRS9!K$2,'Data Annex'!$K$1:$AN$1,0)),\"\")","v":0.14226614630000001},{"$f":"IFERROR(INDEX('Data Annex'!$K$1:$AN$1498,MATCH(IFRS9!L$1&\"|\"&IFRS9!$B28,'Data Annex'!$K$1:$K$1498,0),MATCH(IFRS9!L$2,'Data Annex'!$K$1:$AN$1,0)),\"\")","v":0.13856649709999999},{"$f":"IFERROR(INDEX('Data Annex'!$K$1:$AN$1498,MATCH(IFRS9!M$1&\"|\"&IFRS9!$B28,'Data Annex'!$K$1:$K$1498,0),MATCH(IFRS9!M$2,'Data Annex'!$K$1:$AN$1,0)),\"\")","v":2.8382623199999998E-2},{"$f":"IFERROR(INDEX('Data Annex'!$K$1:$AN$1498,MATCH(IFRS9!N$1&\"|\"&IFRS9!$B28,'Data Annex'!$K$1:$K$1498,0),MATCH(IFRS9!N$2,'Data Annex'!$K$1:$AN$1,0)),\"\")","v":3.2686216599999998E-2},{"$f":"IFERROR(INDEX('Data Annex'!$K$1:$AN$1498,MATCH(IFRS9!O$1&\"|\"&IFRS9!$B28,'Data Annex'!$K$1:$K$1498,0),MATCH(IFRS9!O$2,'Data Annex'!$K$1:$AN$1,0)),\"\")","v":3.07441738E-2},{"$f":"IFERROR(INDEX('Data Annex'!$K$1:$AN$1498,MATCH(IFRS9!P$1&\"|\"&IFRS9!$B28,'Data Annex'!$K$1:$K$1498,0),MATCH(IFRS9!P$2,'Data Annex'!$K$1:$AN$1,0)),\"\")","v":2.83601767E-2},{"$f":"IFERROR(INDEX('Data Annex'!$K$1:$AN$1498,MATCH(IFRS9!Q$1&\"|\"&IFRS9!$B28,'Data Annex'!$K$1:$K$1498,0),MATCH(IFRS9!Q$2,'Data Annex'!$K$1:$AN$1,0)),\"\")","v":3.6230170000000001E-3},{"$f":"IFERROR(INDEX('Data Annex'!$K$1:$AN$1498,MATCH(IFRS9!R$1&\"|\"&IFRS9!$B28,'Data Annex'!$K$1:$K$1498,0),MATCH(IFRS9!R$2,'Data Annex'!$K$1:$AN$1,0)),\"\")","v":4.4509336999999996E-3},{"$f":"IFERROR(INDEX('Data Annex'!$K$1:$AN$1498,MATCH(IFRS9!S$1&\"|\"&IFRS9!$B28,'Data Annex'!$K$1:$K$1498,0),MATCH(IFRS9!S$2,'Data Annex'!$K$1:$AN$1,0)),\"\")","v":4.4237267E-3},{"$f":"IFERROR(INDEX('Data Annex'!$K$1:$AN$1498,MATCH(IFRS9!T$1&\"|\"&IFRS9!$B28,'Data Annex'!$K$1:$K$1498,0),MATCH(IFRS9!T$2,'Data Annex'!$K$1:$AN$1,0)),\"\")","v":3.5881801999999999E-3},{"$f":"IFERROR(INDEX('Data Annex'!$K$1:$AN$1498,MATCH(IFRS9!U$1&\"|\"&IFRS9!$B28,'Data Annex'!$K$1:$K$1498,0),MATCH(IFRS9!U$2,'Data Annex'!$K$1:$AN$1,0)),\"\")","v":2.79124652E-2},{"$f":"IFERROR(INDEX('Data Annex'!$K$1:$AN$1498,MATCH(IFRS9!V$1&\"|\"&IFRS9!$B28,'Data Annex'!$K$1:$K$1498,0),MATCH(IFRS9!V$2,'Data Annex'!$K$1:$AN$1,0)),\"\")","v":3.5003272000000002E-2},{"$f":"IFERROR(INDEX('Data Annex'!$K$1:$AN$1498,MATCH(IFRS9!W$1&\"|\"&IFRS9!$B28,'Data Annex'!$K$1:$K$1498,0),MATCH(IFRS9!W$2,'Data Annex'!$K$1:$AN$1,0)),\"\")","v":3.5736829599999999E-2},{"$f":"IFERROR(INDEX('Data Annex'!$K$1:$AN$1498,MATCH(IFRS9!X$1&\"|\"&IFRS9!$B28,'Data Annex'!$K$1:$K$1498,0),MATCH(IFRS9!X$2,'Data Annex'!$K$1:$AN$1,0)),\"\")","v":3.7140565700000003E-2},{"$f":"IFERROR(INDEX('Data Annex'!$K$1:$AN$1498,MATCH(IFRS9!Y$1&\"|\"&IFRS9!$B28,'Data Annex'!$K$1:$K$1498,0),MATCH(IFRS9!Y$2,'Data Annex'!$K$1:$AN$1,0)),\"\")","v":0.3072294129},{"$f":"IFERROR(INDEX('Data Annex'!$K$1:$AN$1498,MATCH(IFRS9!Z$1&\"|\"&IFRS9!$B28,'Data Annex'!$K$1:$K$1498,0),MATCH(IFRS9!Z$2,'Data Annex'!$K$1:$AN$1,0)),\"\")","v":0.29594779189999998},{"$f":"IFERROR(INDEX('Data Annex'!$K$1:$AN$1498,MATCH(IFRS9!AA$1&\"|\"&IFRS9!$B28,'Data Annex'!$K$1:$K$1498,0),MATCH(IFRS9!AA$2,'Data Annex'!$K$1:$AN$1,0)),\"\")","v":0.3099094651},{"$f":"IFERROR(INDEX('Data Annex'!$K$1:$AN$1498,MATCH(IFRS9!AB$1&\"|\"&IFRS9!$B28,'Data Annex'!$K$1:$K$1498,0),MATCH(IFRS9!AB$2,'Data Annex'!$K$1:$AN$1,0)),\"\")","v":0.31271281099999998},{"$f":"IFERROR(INDEX('Data Annex'!$K$1:$AH$869,MATCH(IFRS9!AC$1&\"|\"&IFRS9!$B28,'Data Annex'!$K$1:$K$869,0),MATCH(IFRS9!AC$2,'Data Annex'!$K$1:$AH$1,0)),\"\")","v":""}]
[18,"IT",null,"IT",{"$f":"IFERROR(INDEX('Data Annex'!$K$1:$AN$1498,MATCH(IFRS9!E$1&\"|\"&IFRS9!$B29,'Data Annex'!$K$1:$K$1498,0),MATCH(IFRS9!E$2,'Data Annex'!$K$1:$AN$1,0)),\"\")","v":0.84072789120000002},{"$f":"IFERROR(INDEX('Data Annex'!$K$1:$AN$1498,MATCH(IFRS9!F$1&\"|\"&IFRS9!$B29,'Data Annex'!$K$1:$K$1498,0),MATCH(IFRS9!F$2,'Data Annex'!$K$1:$AN$1,0)),\"\")","v":0.82112368099999999},{"$f":"IFERROR(INDEX('Data Annex'!$K$1:$AN$1498,MATCH(IFRS9!G$1&\"|\"&IFRS9!$B29,'Data Annex'!$K$1:$K$1498,0),MATCH(IFRS9!G$2,'Data Annex'!$K$1:$AN$1,0)),\"\")","v":0.82671589040000004},{"$f":"IFERROR(INDEX('Data Annex'!$K$1:$AN$1498,MATCH(IFRS9!H$1&\"|\"&IFRS9!$B29,'Data Annex'!$K$1:$K$1498,0),MATCH(IFRS9!H$2,'Data Annex'!$K$1:$AN$1,0)),\"\")","v":0.81200322459999996},{"$f":"IFERROR(INDEX('Data Annex'!$K$1:$AN$1498,MATCH(IFRS9!I$1&\"|\"&IFRS9!$B29,'Data Annex'!$K$1:$K$1498,0),MATCH(IFRS9!I$2,'Data Annex'!$K$1:$AN$1,0)),\"\")","v":9.1486933199999995E-2},{"$f":"IFERROR(INDEX('Data Annex'!$K$1:$AN$1498,MATCH(IFRS9!J$1&\"|\"&IFRS9!$B29,'Data Annex'!$K$1:$K$1498,0),MATCH(IFRS9!J$2,'Data Annex'!$K$1:$AN$1,0)),\"\")","v":0.1135727519},{"$f":"IFERROR(INDEX('Data Annex'!$K$1:$AN$1498,MATCH(IFRS9!K$1&\"|\"&IFRS9!$B29,'Data Annex'!$K$1:$K$1498,0),MATCH(IFRS9!K$2,'Data Annex'!$K$1:$AN$1,0)),\"\")","v":0.113926336},{"$f":"IFERROR(INDEX('Data Annex'!$K$1:$AN$1498,MATCH(IFRS9!L$1&\"|\"&IFRS9!$B29,'Data Annex'!$K$1:$K$1498,0),MATCH(IFRS9!L$2,'Data Annex'!$K$1:$AN$1,0)),\"\")","v":0.1374274295},{"$f":"IFERROR(INDEX('Data Annex'!$K$1:$AN$1498,MATCH(IFRS9!M$1&\"|\"&IFRS9!$B29,'Data Annex'!$K$1:$K$1498,0),MATCH(IFRS9!M$2,'Data Annex'!$K$1:$AN$1,0)),\"\")","v":6.7785175599999997E-2},{"$f":"IFERROR(INDEX('Data Annex'!$K$1:$AN$1498,MATCH(IFRS9!N$1&\"|\"&IFRS9!$B29,'Data Annex'!$K$1:$K$1498,0),MATCH(IFRS9!N$2,'Data Annex'!$K$1:$AN$1,0)),\"\")","v":6.5303567100000001E-2},{"$f":"IFERROR(INDEX('Data Annex'!$K$1:$AN$1498,MATCH(IFRS9!O$1&\"|\"&IFRS9!$B29,'Data Annex'!$K$1:$K$1498,0),MATCH(IFRS9!O$2,'Data Annex'!$K$1:$AN$1,0)),\"\")","v":5.9357773599999997E-2},{"$f":"IFERROR(INDEX('Data Annex'!$K$1:$AN$1498,MATCH(IFRS9!P$1&\"|\"&IFRS9!$B29,'Data Annex'!$K$1:$K$1498,0),MATCH(IFRS9!P$2,'Data Annex'!$K$1:$AN$1,0)),\"\")","v":5.05693459E-2},{"$f":"IFERROR(INDEX('Data Annex'!$K$1:$AN$1498,MATCH(IFRS9!Q$1&\"|\"&IFRS9!$B29,'Data Annex'!$K$1:$K$1498,0),MATCH(IFRS9!Q$2,'Data Annex'!$K$1:$AN$1,0)),\"\")","v":2.2365880999999999E-3},{"$f":"IFERROR(INDEX('Data Annex'!$K$1:$AN$1498,MATCH(IFRS9!R$1&\"|\"&IFRS9!$B29,'Data Annex'!$K$1:$K$1498,0),MATCH(IFRS9!R$2,'Data Annex'!$K$1:$AN$1,0)),\"\")","v":2.3684956000000002E-3},{"$f":"IFERROR(INDEX('Data Annex'!$K$1:$AN$1498,MATCH(IFRS9!S$1&\"|\"&IFRS9!$B29,'Data Annex'!$K$1:$K$1498,0),MATCH(IFRS9!S$2,'Data Annex'!$K$1:$AN$1,0)),\"\")","v":2.2796346000000002E-3},{"$f":"IFERROR(INDEX('Data Annex'!$K$1:$AN$1498,MATCH(IFRS9!T$1&\"|\"&IFRS9!$B29,'Data Annex'!$K$1:$K$1498,0),MATCH(IFRS9!T$2,'Data Annex'!$K$1:$AN$1,0)),\"\")","v":2.5844302E-3},{"$f":"IFERROR(INDEX('Data Annex'!$K$1:$AN$1498,MATCH(IFRS9!U$1&\"|\"&IFRS9!$B29,'Data Annex'!$K$1:$K$1498,0),MATCH(IFRS9!U$2,'Data Annex'!$K$1:$AN$1,0)),\"\")","v":3.5085142100000001E-2},{"$f":"IFERROR(INDEX('Data Annex'!$K$1:$AN$1498,MATCH(IFRS9!V$1&\"|\"&IFRS9!$B29,'Data Annex'!$K$1:$K$1498,0),MATCH(IFRS9!V$2,'Data Annex'!$K$1:$AN$1,0)),\"\")","v":3.3887789000000001E-2},{"$f":"IFERROR(INDEX('Data Annex'!$K$1:$AN$1498,MATCH(IFRS9!W$1&\"|\"&IFRS9!$B29,'Data Annex'!$K$1:$K$1498,0),MATCH(IFRS9!W$2,'Data Annex'!$K$1:$AN$1,0)),\"\")","v":3.5236872599999997E-2},{"$f":"IFERROR(INDEX('Data Annex'!$K$1:$AN$1498,MATCH(IFRS9!X$1&\"|\"&IFRS9!$B29,'Data Annex'!$K$1:$K$1498,0),MATCH(IFRS9!X$2,'Data Annex'!$K$1:$AN$1,0)),\"\")","v":3.4695970600000001E-2},{"$f":"IFERROR(INDEX('Data Annex'!$K$1:$AN$1498,MATCH(IFRS9!Y$1&\"|\"&IFRS9!$B29,'Data Annex'!$K$1:$K$1498,0),MATCH(IFRS9!Y$2,'Data Annex'!$K$1:$AN$1,0)),\"\")","v":0.53724197149999997},{"$f":"IFERROR(INDEX('Data Annex'!$K$1:$AN$1498,MATCH(IFRS9!Z$1&\"|\"&IFRS9!$B29,'Data Annex'!$K$1:$K$1498,0),MATCH(IFRS9!Z$2,'Data Annex'!$K$1:$AN$1,0)),\"\")","v":0.52612861899999996},{"$f":"IFERROR(INDEX('Data Annex'!$K$1:$AN$1498,MATCH(IFRS9!AA$1&\"|\"&IFRS9!$B29,'Data Annex'!$K$1:$K$1498,0),MATCH(IFRS9!AA$2,'Data Annex'!$K$1:$AN$1,0)),\"\")","v":0.53776786980000002},{"$f":"IFERROR(INDEX('Data Annex'!$K$1:$AN$1498,MATCH(IFRS9!AB$1&\"|\"&IFRS9!$B29,'Data Annex'!$K$1:$K$1498,0),MATCH(IFRS9!AB$2,'Data Annex'!$K$1:$AN$1,0)),\"\")","v":0.53475177240000005},{"$f":"IFERROR(INDEX('Data Annex'!$K$1:$AH$869,MATCH(IFRS9!AC$1&\"|\"&IFRS9!$B29,'Data Annex'!$K$1:$K$869,0),MATCH(IFRS9!AC$2,'Data Annex'!$K$1:$AH$1,0)),\"\")","v":""}]
[19,"LT",null,"LT",{"$f":"IFERROR(INDEX('Data Annex'!$K$1:$AN$1498,MATCH(IFRS9!E$1&\"|\"&IFRS9!$B30,'Data Annex'!$K$1:$K$1498,0),MATCH(IFRS9!E$2,'Data Annex'!$K$1:$AN$1,0)),\"\")","v":0.88087043730000003},{"$f":"IFERROR(INDEX('Data Annex'!$K$1:$AN$1498,MATCH(IFRS9!F$1&\"|\"&IFRS9!$B30,'Data Annex'!$K$1:$K$1498,0),MATCH(IFRS9!F$2,'Data Annex'!$K$1:$AN$1,0)),\"\")","v":0.88153715089999996},{"$f":"IFERROR(INDEX('Data Annex'!$K$1:$AN$1498,MATCH(IFRS9!G$1&\"|\"&IFRS9!$B30,'Data Annex'!$K$1:$K$1498,0),MATCH(IFRS9!G$2,'Data Annex'!$K$1:$AN$1,0)),\"\")","v":0.87553862930000004},{"$f":"IFERROR(INDEX('Data Annex'!$K$1:$AN$1498,MATCH(IFRS9!H$1&\"|\"&IFRS9!$B30,'Data Annex'!$K$1:$K$1498,0),MATCH(IFRS9!H$2,'Data Annex'!$K$1:$AN$1,0)),\"\")","v":0.89668119999999996},{"$f":"IFERROR(INDEX('Data Annex'!$K$1:$AN$1498,MATCH(IFRS9!I$1&\"|\"&IFRS9!$B30,'Data Annex'!$K$1:$K$1498,0),MATCH(IFRS9!I$2,'Data Annex'!$K$1:$AN$1,0)),\"\")","v":0.1001649899},{"$f":"IFERROR(INDEX('Data Annex'!$K$1:$AN$1498,MATCH(IFRS9!J$1&\"|\"&IFRS9!$B30,'Data Annex'!$K$1:$K$1498,0),MATCH(IFRS9!J$2,'Data Annex'!$K$1:$AN$1,0)),\"\")","v":9.8735737899999995E-2},{"$f":"IFERROR(INDEX('Data Annex'!$K$1:$AN$1498,MATCH(IFRS9!K$1&\"|\"&IFRS9!$B30,'Data Annex'!$K$1:$K$1498,0),MATCH(IFRS9!K$2,'Data Annex'!$K$1:$AN$1,0)),\"\")","v":0.1051984564},{"$f":"IFERROR(INDEX('Data Annex'!$K$1:$AN$1498,MATCH(IFRS9!L$1&\"|\"&IFRS9!$B30,'Data Annex'!$K$1:$K$1498,0),MATCH(IFRS9!L$2,'Data Annex'!$K$1:$AN$1,0)),\"\")","v":8.4098835400000002E-2},{"$f":"IFERROR(INDEX('Data Annex'!$K$1:$AN$1498,MATCH(IFRS9!M$1&\"|\"&IFRS9!$B30,'Data Annex'!$K$1:$K$1498,0),MATCH(IFRS9!M$2,'Data Annex'!$K$1:$AN$1,0)),\"\")","v":1.8964572700000001E-2},{"$f":"IFERROR(INDEX('Data Annex'!$K$1:$AN$1498,MATCH(IFRS9!N$1&\"|\"&IFRS9!$B30,'Data Annex'!$K$1:$K$1498,0),MATCH(IFRS9!N$2,'Data Annex'!$K$1:$AN$1,0)),\"\")","v":1.9727111200000001E-2},{"$f":"IFERROR(INDEX('Data Annex'!$K$1:$AN$1498,MATCH(IFRS9!O$1&\"|\"&IFRS9!$B30,'Data Annex'!$K$1:$K$1498,0),MATCH(IFRS9!O$2,'Data Annex'!$K$1:$AN$1,0)),\"\")","v":1.9262914400000001E-2},{"$f":"IFERROR(INDEX('Data Annex'!$K$1:$AN$1498,MATCH(IFRS9!P$1&\"|\"&IFRS9!$B30,'Data Annex'!$K$1:$K$1498,0),MATCH(IFRS9!P$2,'Data Annex'!$K$1:$AN$1,0)),\"\")","v":1.92199646E-2},{"$f":"IFERROR(INDEX('Data Annex'!$K$1:$AN$1498,MATCH(IFRS9!Q$1&\"|\"&IFRS9!$B30,'Data Annex'!$K$1:$K$1498,0),MATCH(IFRS9!Q$2,'Data Annex'!$K$1:$AN$1,0)),\"\")","v":1.3047779999999999E-3},{"$f":"IFERROR(INDEX('Data Annex'!$K$1:$AN$1498,MATCH(IFRS9!R$1&\"|\"&IFRS9!$B30,'Data Annex'!$K$1:$K$1498,0),MATCH(IFRS9!R$2,'Data Annex'!$K$1:$AN$1,0)),\"\")","v":1.7043446E-3},{"$f":"IFERROR(INDEX('Data Annex'!$K$1:$AN$1498,MATCH(IFRS9!S$1&\"|\"&IFRS9!$B30,'Data Annex'!$K$1:$K$1498,0),MATCH(IFRS9!S$2,'Data Annex'!$K$1:$AN$1,0)),\"\")","v":1.6119961999999999E-3},{"$f":"IFERROR(INDEX('Data Annex'!$K$1:$AN$1498,MATCH(IFRS9!T$1&\"|\"&IFRS9!$B30,'Data Annex'!$K$1:$K$1498,0),MATCH(IFRS9!T$2,'Data Annex'!$K$1:$AN$1,0)),\"\")","v":1.4203885E-3},{"$f":"IFERROR(INDEX('Data Annex'!$K$1:$AN$1498,MATCH(IFRS9!U$1&\"|\"&IFRS9!$B30,'Data Annex'!$K$1:$K$1498,0),MATCH(IFRS9!U$2,'Data Annex'!$K$1:$AN$1,0)),\"\")","v":1.25638074E-2},{"$f":"IFERROR(INDEX('Data Annex'!$K$1:$AN$1498,MATCH(IFRS9!V$1&\"|\"&IFRS9!$B30,'Data Annex'!$K$1:$K$1498,0),MATCH(IFRS9!V$2,'Data Annex'!$K$1:$AN$1,0)),\"\")","v":1.52291406E-2},{"$f":"IFERROR(INDEX('Data Annex'!$K$1:$AN$1498,MATCH(IFRS9!W$1&\"|\"&IFRS9!$B30,'Data Annex'!$K$1:$K$1498,0),MATCH(IFRS9!W$2,'Data Annex'!$K$1:$AN$1,0)),\"\")","v":1.51032379E-2},{"$f":"IFERROR(INDEX('Data Annex'!$K$1:$AN$1498,MATCH(IFRS9!X$1&\"|\"&IFRS9!$B30,'Data Annex'!$K$1:$K$1498,0),MATCH(IFRS9!X$2,'Data Annex'!$K$1:$AN$1,0)),\"\")","v":1.7924646900000001E-2},{"$f":"IFERROR(INDEX('Data Annex'!$K$1:$AN$1498,MATCH(IFRS9!Y$1&\"|\"&IFRS9!$B30,'Data Annex'!$K$1:$K$1498,0),MATCH(IFRS9!Y$2,'Data Annex'!$K$1:$AN$1,0)),\"\")","v":0.34477868900000003},{"$f":"IFERROR(INDEX('Data Annex'!$K$1:$AN$1498,MATCH(IFRS9!Z$1&\"|\"&IFRS9!$B30,'Data Annex'!$K$1:$K$1498,0),MATCH(IFRS9!Z$2,'Data Annex'!$K$1:$AN$1,0)),\"\")","v":0.33338778349999998},{"$f":"IFERROR(INDEX('Data Annex'!$K$1:$AN$1498,MATCH(IFRS9!AA$1&\"|\"&IFRS9!$B30,'Data Annex'!$K$1:$K$1498,0),MATCH(IFRS9!AA$2,'Data Annex'!$K$1:$AN$1,0)),\"\")","v":0.33695221669999997},{"$f":"IFERROR(INDEX('Data Annex'!$K$1:$AN$1498,MATCH(IFRS9!AB$1&\"|\"&IFRS9!$B30,'Data Annex'!$K$1:$K$1498,0),MATCH(IFRS9!AB$2,'Data Annex'!$K$1:$AN$1,0)),\"\")","v":0.31145453880000001},{"$f":"IFERROR(INDEX('Data Annex'!$K$1:$AH$869,MATCH(IFRS9!AC$1&\"|\"&IFRS9!$B30,'Data Annex'!$K$1:$K$869,0),MATCH(IFRS9!AC$2,'Data Annex'!$K$1:$AH$1,0)),\"\")","v":""}]
[20,"LU",null,"LU",{"$f":"IFERROR(INDEX('Data Annex'!$K$1:$AN$1498,MATCH(IFRS9!E$1&\"|\"&IFRS9!$B31,'Data Annex'!$K$1:$K$1498,0),MATCH(IFRS9!E$2,'Data Annex'!$K$1:$AN$1,0)),\"\")","v":0.92779247330000003},{"$f":"IFERROR(INDEX('Data Annex'!$K$1:$AN$1498,MATCH(IFRS9!F$1&\"|\"&IFRS9!$B31,'Data Annex'!$K$1:$K$1498,0),MATCH(IFRS9!F$2,'Data Annex'!$K$1:$AN$1,0)),\"\")","v":0.92511375740000001},{"$f":"IFERROR(INDEX('Data Annex'!$K$1:$AN$1498,MATCH(IFRS9!G$1&\"|\"&IFRS9!$B31,'Data Annex'!$K$1:$K$1498,0),MATCH(IFRS9!G$2,'Data Annex'!$K$1:$AN$1,0)),\"\")","v":0.9186282711},{"$f":"IFERROR(INDEX('Data Annex'!$K$1:$AN$1498,MATCH(IFRS9!H$1&\"|\"&IFRS9!$B31,'Data Annex'!$K$1:$K$1498,0),MATCH(IFRS9!H$2,'Data Annex'!$K$1:$AN$1,0)),\"\")","v":0.91848817000000005},{"$f":"IFERROR(INDEX('Data Annex'!$K$1:$AN$1498,MATCH(IFRS9!I$1&\"|\"&IFRS9!$B31,'Data Annex'!$K$1:$K$1498,0),MATCH(IFRS9!I$2,'Data Annex'!$K$1:$AN$1,0)),\"\")","v":5.5095531699999999E-2},{"$f":"IFERROR(INDEX('Data Annex'!$K$1:$AN$1498,MATCH(IFRS9!J$1&\"|\"&IFRS9!$B31,'Data Annex'!$K$1:$K$1498,0),MATCH(IFRS9!J$2,'Data Annex'!$K$1:$AN$1,0)),\"\")","v":5.5896280899999998E-2},{"$f":"IFERROR(INDEX('Data Annex'!$K$1:$AN$1498,MATCH(IFRS9!K$1&\"|\"&IFRS9!$B31,'Data Annex'!$K$1:$K$1498,0),MATCH(IFRS9!K$2,'Data Annex'!$K$1:$AN$1,0)),\"\")","v":5.8144924100000002E-2},{"$f":"IFERROR(INDEX('Data Annex'!$K$1:$AN$1498,MATCH(IFRS9!L$1&\"|\"&IFRS9!$B31,'Data Annex'!$K$1:$K$1498,0),MATCH(IFRS9!L$2,'Data Annex'!$K$1:$AN$1,0)),\"\")","v":5.8038016999999997E-2},{"$f":"IFERROR(INDEX('Data Annex'!$K$1:$AN$1498,MATCH(IFRS9!M$1&\"|\"&IFRS9!$B31,'Data Annex'!$K$1:$K$1498,0),MATCH(IFRS9!M$2,'Data Annex'!$K$1:$AN$1,0)),\"\")","v":1.7111995000000001E-2},{"$f":"IFERROR(INDEX('Data Annex'!$K$1:$AN$1498,MATCH(IFRS9!N$1&\"|\"&IFRS9!$B31,'Data Annex'!$K$1:$K$1498,0),MATCH(IFRS9!N$2,'Data Annex'!$K$1:$AN$1,0)),\"\")","v":1.8989961699999999E-2},{"$f":"IFERROR(INDEX('Data Annex'!$K$1:$AN$1498,MATCH(IFRS9!O$1&\"|\"&IFRS9!$B31,'Data Annex'!$K$1:$K$1498,0),MATCH(IFRS9!O$2,'Data Annex'!$K$1:$AN$1,0)),\"\")","v":2.32268048E-2},{"$f":"IFERROR(INDEX('Data Annex'!$K$1:$AN$1498,MATCH(IFRS9!P$1&\"|\"&IFRS9!$B31,'Data Annex'!$K$1:$K$1498,0),MATCH(IFRS9!P$2,'Data Annex'!$K$1:$AN$1,0)),\"\")","v":2.3473813E-2},{"$f":"IFERROR(INDEX('Data Annex'!$K$1:$AN$1498,MATCH(IFRS9!Q$1&\"|\"&IFRS9!$B31,'Data Annex'!$K$1:$K$1498,0),MATCH(IFRS9!Q$2,'Data Annex'!$K$1:$AN$1,0)),\"\")","v":1.3852013000000001E-3},{"$f":"IFERROR(INDEX('Data Annex'!$K$1:$AN$1498,MATCH(IFRS9!R$1&\"|\"&IFRS9!$B31,'Data Annex'!$K$1:$K$1498,0),MATCH(IFRS9!R$2,'Data Annex'!$K$1:$AN$1,0)),\"\")","v":1.7460923E-3},{"$f":"IFERROR(INDEX('Data Annex'!$K$1:$AN$1498,MATCH(IFRS9!S$1&\"|\"&IFRS9!$B31,'Data Annex'!$K$1:$K$1498,0),MATCH(IFRS9!S$2,'Data Annex'!$K$1:$AN$1,0)),\"\")","v":1.7791831E-3},{"$f":"IFERROR(INDEX('Data Annex'!$K$1:$AN$1498,MATCH(IFRS9!T$1&\"|\"&IFRS9!$B31,'Data Annex'!$K$1:$K$1498,0),MATCH(IFRS9!T$2,'Data Annex'!$K$1:$AN$1,0)),\"\")","v":1.5564271E-3},{"$f":"IFERROR(INDEX('Data Annex'!$K$1:$AN$1498,MATCH(IFRS9!U$1&\"|\"&IFRS9!$B31,'Data Annex'!$K$1:$K$1498,0),MATCH(IFRS9!U$2,'Data Annex'!$K$1:$AN$1,0)),\"\")","v":1.8671374300000002E-2},{"$f":"IFERROR(INDEX('Data Annex'!$K$1:$AN$1498,MATCH(IFRS9!V$1&\"|\"&IFRS9!$B31,'Data Annex'!$K$1:$K$1498,0),MATCH(IFRS9!V$2,'Data Annex'!$K$1:$AN$1,0)),\"\")","v":2.0204527199999999E-2},{"$f":"IFERROR(INDEX('Data Annex'!$K$1:$AN$1498,MATCH(IFRS9!W$1&\"|\"&IFRS9!$B31,'Data Annex'!$K$1:$K$1498,0),MATCH(IFRS9!W$2,'Data Annex'!$K$1:$AN$1,0)),\"\")","v":1.8972704199999999E-2},{"$f":"IFERROR(INDEX('Data Annex'!$K$1:$AN$1498,MATCH(IFRS9!X$1&\"|\"&IFRS9!$B31,'Data Annex'!$K$1:$K$1498,0),MATCH(IFRS9!X$2,'Data Annex'!$K$1:$AN$1,0)),\"\")","v":2.4204095200000001E-2},{"$f":"IFERROR(INDEX('Data Annex'!$K$1:$AN$1498,MATCH(IFRS9!Y$1&\"|\"&IFRS9!$B31,'Data Annex'!$K$1:$K$1498,0),MATCH(IFRS9!Y$2,'Data Annex'!$K$1:$AN$1,0)),\"\")","v":0.41695206429999998},{"$f":"IFERROR(INDEX('Data Annex'!$K$1:$AN$1498,MATCH(IFRS9!Z$1&\"|\"&IFRS9!$B31,'Data Annex'!$K$1:$K$1498,0),MATCH(IFRS9!Z$2,'Data Annex'!$K$1:$AN$1,0)),\"\")","v":0.39695937710000001},{"$f":"IFERROR(INDEX('Data Annex'!$K$1:$AN$1498,MATCH(IFRS9!AA$1&\"|\"&IFRS9!$B31,'Data Annex'!$K$1:$K$1498,0),MATCH(IFRS9!AA$2,'Data Annex'!$K$1:$AN$1,0)),\"\")","v":0.34033977209999999},{"$f":"IFERROR(INDEX('Data Annex'!$K$1:$AN$1498,MATCH(IFRS9!AB$1&\"|\"&IFRS9!$B31,'Data Annex'!$K$1:$K$1498,0),MATCH(IFRS9!AB$2,'Data Annex'!$K$1:$AN$1,0)),\"\")","v":0.34696355680000002},{"$f":"IFERROR(INDEX('Data Annex'!$K$1:$AH$869,MATCH(IFRS9!AC$1&\"|\"&IFRS9!$B31,'Data Annex'!$K$1:$K$869,0),MATCH(IFRS9!AC$2,'Data Annex'!$K$1:$AH$1,0)),\"\")","v":""}]
[21,"LV",null,"LV",{"$f":"IFERROR(INDEX('Data Annex'!$K$1:$AN$1498,MATCH(IFRS9!E$1&\"|\"&IFRS9!$B32,'Data Annex'!$K$1:$K$1498,0),MATCH(IFRS9!E$2,'Data Annex'!$K$1:$AN$1,0)),\"\")","v":0.85524943040000001},{"$f":"IFERROR(INDEX('Data Annex'!$K$1:$AN$1498,MATCH(IFRS9!F$1&\"|\"&IFRS9!$B32,'Data Annex'!$K$1:$K$1498,0),MATCH(IFRS9!F$2,'Data Annex'!$K$1:$AN$1,0)),\"\")","v":0.86517193739999998},{"$f":"IFERROR(INDEX('Data Annex'!$K$1:$AN$1498,MATCH(IFRS9!G$1&\"|\"&IFRS9!$B32,'Data Annex'!$K$1:$K$1498,0),MATCH(IFRS9!G$2,'Data Annex'!$K$1:$AN$1,0)),\"\")","v":0.87016402209999999},{"$f":"IFERROR(INDEX('Data Annex'!$K$1:$AN$1498,MATCH(IFRS9!H$1&\"|\"&IFRS9!$B32,'Data Annex'!$K$1:$K$1498,0),MATCH(IFRS9!H$2,'Data Annex'!$K$1:$AN$1,0)),\"\")","v":0.91870597779999996},{"$f":"IFERROR(INDEX('Data Annex'!$K$1:$AN$1498,MATCH(IFRS9!I$1&\"|\"&IFRS9!$B32,'Data Annex'!$K$1:$K$1498,0),MATCH(IFRS9!I$2,'Data Annex'!$K$1:$AN$1,0)),\"\")","v":0.12083168950000001},{"$f":"IFERROR(INDEX('Data Annex'!$K$1:$AN$1498,MATCH(IFRS9!J$1&\"|\"&IFRS9!$B32,'Data Annex'!$K$1:$K$1498,0),MATCH(IFRS9!J$2,'Data Annex'!$K$1:$AN$1,0)),\"\")","v":0.1090895699},{"$f":"IFERROR(INDEX('Data Annex'!$K$1:$AN$1498,MATCH(IFRS9!K$1&\"|\"&IFRS9!$B32,'Data Annex'!$K$1:$K$1498,0),MATCH(IFRS9!K$2,'Data Annex'!$K$1:$AN$1,0)),\"\")","v":0.1046326159},{"$f":"IFERROR(INDEX('Data Annex'!$K$1:$AN$1498,MATCH(IFRS9!L$1&\"|\"&IFRS9!$B32,'Data Annex'!$K$1:$K$1498,0),MATCH(IFRS9!L$2,'Data Annex'!$K$1:$AN$1,0)),\"\")","v":5.10026591E-2},{"$f":"IFERROR(INDEX('Data Annex'!$K$1:$AN$1498,MATCH(IFRS9!M$1&\"|\"&IFRS9!$B32,'Data Annex'!$K$1:$K$1498,0),MATCH(IFRS9!M$2,'Data Annex'!$K$1:$AN$1,0)),\"\")","v":2.3918880100000001E-2},{"$f":"IFERROR(INDEX('Data Annex'!$K$1:$AN$1498,MATCH(IFRS9!N$1&\"|\"&IFRS9!$B32,'Data Annex'!$K$1:$K$1498,0),MATCH(IFRS9!N$2,'Data Annex'!$K$1:$AN$1,0)),\"\")","v":2.5738492700000001E-2},{"$f":"IFERROR(INDEX('Data Annex'!$K$1:$AN$1498,MATCH(IFRS9!O$1&\"|\"&IFRS9!$B32,'Data Annex'!$K$1:$K$1498,0),MATCH(IFRS9!O$2,'Data Annex'!$K$1:$AN$1,0)),\"\")","v":2.5203361899999999E-2},{"$f":"IFERROR(INDEX('Data Annex'!$K$1:$AN$1498,MATCH(IFRS9!P$1&\"|\"&IFRS9!$B32,'Data Annex'!$K$1:$K$1498,0),MATCH(IFRS9!P$2,'Data Annex'!$K$1:$AN$1,0)),\"\")","v":3.02913631E-2},{"$f":"IFERROR(INDEX('Data Annex'!$K$1:$AN$1498,MATCH(IFRS9!Q$1&\"|\"&IFRS9!$B32,'Data Annex'!$K$1:$K$1498,0),MATCH(IFRS9!Q$2,'Data Annex'!$K$1:$AN$1,0)),\"\")","v":3.5423405999999999E-3},{"$f":"IFERROR(INDEX('Data Annex'!$K$1:$AN$1498,MATCH(IFRS9!R$1&\"|\"&IFRS9!$B32,'Data Annex'!$K$1:$K$1498,0),MATCH(IFRS9!R$2,'Data Annex'!$K$1:$AN$1,0)),\"\")","v":3.5201616000000002E-3},{"$f":"IFERROR(INDEX('Data Annex'!$K$1:$AN$1498,MATCH(IFRS9!S$1&\"|\"&IFRS9!$B32,'Data Annex'!$K$1:$K$1498,0),MATCH(IFRS9!S$2,'Data Annex'!$K$1:$AN$1,0)),\"\")","v":3.3121937E-3},{"$f":"IFERROR(INDEX('Data Annex'!$K$1:$AN$1498,MATCH(IFRS9!T$1&\"|\"&IFRS9!$B32,'Data Annex'!$K$1:$K$1498,0),MATCH(IFRS9!T$2,'Data Annex'!$K$1:$AN$1,0)),\"\")","v":5.8723828999999996E-3},{"$f":"IFERROR(INDEX('Data Annex'!$K$1:$AN$1498,MATCH(IFRS9!U$1&\"|\"&IFRS9!$B32,'Data Annex'!$K$1:$K$1498,0),MATCH(IFRS9!U$2,'Data Annex'!$K$1:$AN$1,0)),\"\")","v":2.06446804E-2},{"$f":"IFERROR(INDEX('Data Annex'!$K$1:$AN$1498,MATCH(IFRS9!V$1&\"|\"&IFRS9!$B32,'Data Annex'!$K$1:$K$1498,0),MATCH(IFRS9!V$2,'Data Annex'!$K$1:$AN$1,0)),\"\")","v":2.2415584999999998E-2},{"$f":"IFERROR(INDEX('Data Annex'!$K$1:$AN$1498,MATCH(IFRS9!W$1&\"|\"&IFRS9!$B32,'Data Annex'!$K$1:$K$1498,0),MATCH(IFRS9!W$2,'Data Annex'!$K$1:$AN$1,0)),\"\")","v":2.0786977299999999E-2},{"$f":"IFERROR(INDEX('Data Annex'!$K$1:$AN$1498,MATCH(IFRS9!X$1&\"|\"&IFRS9!$B32,'Data Annex'!$K$1:$K$1498,0),MATCH(IFRS9!X$2,'Data Annex'!$K$1:$AN$1,0)),\"\")","v":4.2733914099999999E-2},{"$f":"IFERROR(INDEX('Data Annex'!$K$1:$AN$1498,MATCH(IFRS9!Y$1&\"|\"&IFRS9!$B32,'Data Annex'!$K$1:$K$1498,0),MATCH(IFRS9!Y$2,'Data Annex'!$K$1:$AN$1,0)),\"\")","v":0.41816724789999998},{"$f":"IFERROR(INDEX('Data Annex'!$K$1:$AN$1498,MATCH(IFRS9!Z$1&\"|\"&IFRS9!$B32,'Data Annex'!$K$1:$K$1498,0),MATCH(IFRS9!Z$2,'Data Annex'!$K$1:$AN$1,0)),\"\")","v":0.39153614959999999},{"$f":"IFERROR(INDEX('Data Annex'!$K$1:$AN$1498,MATCH(IFRS9!AA$1&\"|\"&IFRS9!$B32,'Data Annex'!$K$1:$K$1498,0),MATCH(IFRS9!AA$2,'Data Annex'!$K$1:$AN$1,0)),\"\")","v":0.39434016789999998},{"$f":"IFERROR(INDEX('Data Annex'!$K$1:$AN$1498,MATCH(IFRS9!AB$1&\"|\"&IFRS9!$B32,'Data Annex'!$K$1:$K$1498,0),MATCH(IFRS9!AB$2,'Data Annex'!$K$1:$AN$1,0)),\"\")","v":0.46167976040000003},{"$f":"IFERROR(INDEX('Data Annex'!$K$1:$AH$869,MATCH(IFRS9!AC$1&\"|\"&IFRS9!$B32,'Data Annex'!$K$1:$K$869,0),MATCH(IFRS9!AC$2,'Data Annex'!$K$1:$AH$1,0)),\"\")","v":""}]
[22,"MT",null,"MT",{"$f":"IFERROR(INDEX('Data Annex'!$K$1:$AN$1498,MATCH(IFRS9!E$1&\"|\"&IFRS9!$B33,'Data Annex'!$K$1:$K$1498,0),MATCH(IFRS9!E$2,'Data Annex'!$K$1:$AN$1,0)),\"\")","v":0.88528162050000003},{"$f":"IFERROR(INDEX('Data Annex'!$K$1:$AN$1498,MATCH(IFRS9!F$1&\"|\"&IFRS9!$B33,'Data Annex'!$K$1:$K$1498,0),MATCH(IFRS9!F$2,'Data Annex'!$K$1:$AN$1,0)),\"\")","v":0.868949576},{"$f":"IFERROR(INDEX('Data Annex'!$K$1:$AN$1498,MATCH(IFRS9!G$1&\"|\"&IFRS9!$B33,'Data Annex'!$K$1:$K$1498,0),MATCH(IFRS9!G$2,'Data Annex'!$K$1:$AN$1,0)),\"\")","v":0.8821537357},{"$f":"IFERROR(INDEX('Data Annex'!$K$1:$AN$1498,MATCH(IFRS9!H$1&\"|\"&IFRS9!$B33,'Data Annex'!$K$1:$K$1498,0),MATCH(IFRS9!H$2,'Data Annex'!$K$1:$AN$1,0)),\"\")","v":0.85273238969999998},{"$f":"IFERROR(INDEX('Data Annex'!$K$1:$AN$1498,MATCH(IFRS9!I$1&\"|\"&IFRS9!$B33,'Data Annex'!$K$1:$K$1498,0),MATCH(IFRS9!I$2,'Data Annex'!$K$1:$AN$1,0)),\"\")","v":7.2894339000000002E-2},{"$f":"IFERROR(INDEX('Data Annex'!$K$1:$AN$1498,MATCH(IFRS9!J$1&\"|\"&IFRS9!$B33,'Data Annex'!$K$1:$K$1498,0),MATCH(IFRS9!J$2,'Data Annex'!$K$1:$AN$1,0)),\"\")","v":8.1131500499999995E-2},{"$f":"IFERROR(INDEX('Data Annex'!$K$1:$AN$1498,MATCH(IFRS9!K$1&\"|\"&IFRS9!$B33,'Data Annex'!$K$1:$K$1498,0),MATCH(IFRS9!K$2,'Data Annex'!$K$1:$AN$1,0)),\"\")","v":7.4885095299999996E-2},{"$f":"IFERROR(INDEX('Data Annex'!$K$1:$AN$1498,MATCH(IFRS9!L$1&\"|\"&IFRS9!$B33,'Data Annex'!$K$1:$K$1498,0),MATCH(IFRS9!L$2,'Data Annex'!$K$1:$AN$1,0)),\"\")","v":9.9065500099999995E-2},{"$f":"IFERROR(INDEX('Data Annex'!$K$1:$AN$1498,MATCH(IFRS9!M$1&\"|\"&IFRS9!$B33,'Data Annex'!$K$1:$K$1498,0),MATCH(IFRS9!M$2,'Data Annex'!$K$1:$AN$1,0)),\"\")","v":4.18240405E-2},{"$f":"IFERROR(INDEX('Data Annex'!$K$1:$AN$1498,MATCH(IFRS9!N$1&\"|\"&IFRS9!$B33,'Data Annex'!$K$1:$K$1498,0),MATCH(IFRS9!N$2,'Data Annex'!$K$1:$AN$1,0)),\"\")","v":4.9918923499999997E-2},{"$f":"IFERROR(INDEX('Data Annex'!$K$1:$AN$1498,MATCH(IFRS9!O$1&\"|\"&IFRS9!$B33,'Data Annex'!$K$1:$K$1498,0),MATCH(IFRS9!O$2,'Data Annex'!$K$1:$AN$1,0)),\"\")","v":4.2961169E-2},{"$f":"IFERROR(INDEX('Data Annex'!$K$1:$AN$1498,MATCH(IFRS9!P$1&\"|\"&IFRS9!$B33,'Data Annex'!$K$1:$K$1498,0),MATCH(IFRS9!P$2,'Data Annex'!$K$1:$AN$1,0)),\"\")","v":4.8202110200000002E-2},{"$f":"IFERROR(INDEX('Data Annex'!$K$1:$AN$1498,MATCH(IFRS9!Q$1&\"|\"&IFRS9!$B33,'Data Annex'!$K$1:$K$1498,0),MATCH(IFRS9!Q$2,'Data Annex'!$K$1:$AN$1,0)),\"\")","v":2.9489057000000002E-3},{"$f":"IFERROR(INDEX('Data Annex'!$K$1:$AN$1498,MATCH(IFRS9!R$1&\"|\"&IFRS9!$B33,'Data Annex'!$K$1:$K$1498,0),MATCH(IFRS9!R$2,'Data Annex'!$K$1:$AN$1,0)),\"\")","v":3.5992634999999999E-3},{"$f":"IFERROR(INDEX('Data Annex'!$K$1:$AN$1498,MATCH(IFRS9!S$1&\"|\"&IFRS9!$B33,'Data Annex'!$K$1:$K$1498,0),MATCH(IFRS9!S$2,'Data Annex'!$K$1:$AN$1,0)),\"\")","v":3.3745536E-3},{"$f":"IFERROR(INDEX('Data Annex'!$K$1:$AN$1498,MATCH(IFRS9!T$1&\"|\"&IFRS9!$B33,'Data Annex'!$K$1:$K$1498,0),MATCH(IFRS9!T$2,'Data Annex'!$K$1:$AN$1,0)),\"\")","v":4.1339124000000001E-3},{"$f":"IFERROR(INDEX('Data Annex'!$K$1:$AN$1498,MATCH(IFRS9!U$1&\"|\"&IFRS9!$B33,'Data Annex'!$K$1:$K$1498,0),MATCH(IFRS9!U$2,'Data Annex'!$K$1:$AN$1,0)),\"\")","v":3.8200677199999998E-2},{"$f":"IFERROR(INDEX('Data Annex'!$K$1:$AN$1498,MATCH(IFRS9!V$1&\"|\"&IFRS9!$B33,'Data Annex'!$K$1:$K$1498,0),MATCH(IFRS9!V$2,'Data Annex'!$K$1:$AN$1,0)),\"\")","v":4.00004313E-2},{"$f":"IFERROR(INDEX('Data Annex'!$K$1:$AN$1498,MATCH(IFRS9!W$1&\"|\"&IFRS9!$B33,'Data Annex'!$K$1:$K$1498,0),MATCH(IFRS9!W$2,'Data Annex'!$K$1:$AN$1,0)),\"\")","v":4.2947655799999998E-2},{"$f":"IFERROR(INDEX('Data Annex'!$K$1:$AN$1498,MATCH(IFRS9!X$1&\"|\"&IFRS9!$B33,'Data Annex'!$K$1:$K$1498,0),MATCH(IFRS9!X$2,'Data Annex'!$K$1:$AN$1,0)),\"\")","v":4.9591067799999999E-2},{"$f":"IFERROR(INDEX('Data Annex'!$K$1:$AN$1498,MATCH(IFRS9!Y$1&\"|\"&IFRS9!$B33,'Data Annex'!$K$1:$K$1498,0),MATCH(IFRS9!Y$2,'Data Annex'!$K$1:$AN$1,0)),\"\")","v":0.27293753640000001},{"$f":"IFERROR(INDEX('Data Annex'!$K$1:$AN$1498,MATCH(IFRS9!Z$1&\"|\"&IFRS9!$B33,'Data Annex'!$K$1:$K$1498,0),MATCH(IFRS9!Z$2,'Data Annex'!$K$1:$AN$1,0)),\"\")","v":0.30738205660000001},{"$f":"IFERROR(INDEX('Data Annex'!$K$1:$AN$1498,MATCH(IFRS9!AA$1&\"|\"&IFRS9!$B33,'Data Annex'!$K$1:$K$1498,0),MATCH(IFRS9!AA$2,'Data Annex'!$K$1:$AN$1,0)),\"\")","v":0.30808343269999999},{"$f":"IFERROR(INDEX('Data Annex'!$K$1:$AN$1498,MATCH(IFRS9!AB$1&\"|\"&IFRS9!$B33,'Data Annex'!$K$1:$K$1498,0),MATCH(IFRS9!AB$2,'Data Annex'!$K$1:$AN$1,0)),\"\")","v":0.35194383839999999},{"$f":"IFERROR(INDEX('Data Annex'!$K$1:$AH$869,MATCH(IFRS9!AC$1&\"|\"&IFRS9!$B33,'Data Annex'!$K$1:$K$869,0),MATCH(IFRS9!AC$2,'Data Annex'!$K$1:$AH$1,0)),\"\")","v":""}]
[23,"NL",null,"NL",{"$f":"IFERROR(INDEX('Data Annex'!$K$1:$AN$1498,MATCH(IFRS9!E$1&\"|\"&IFRS9!$B34,'Data Annex'!$K$1:$K$1498,0),MATCH(IFRS9!E$2,'Data Annex'!$K$1:$AN$1,0)),\"\")","v":0.91332866550000003},{"$f":"IFERROR(INDEX('Data Annex'!$K$1:$AN$1498,MATCH(IFRS9!F$1&\"|\"&IFRS9!$B34,'Data Annex'!$K$1:$K$1498,0),MATCH(IFRS9!F$2,'Data Annex'!$K$1:$AN$1,0)),\"\")","v":0.88837969189999999},{"$f":"IFERROR(INDEX('Data Annex'!$K$1:$AN$1498,MATCH(IFRS9!G$1&\"|\"&IFRS9!$B34,'Data Annex'!$K$1:$K$1498,0),MATCH(IFRS9!G$2,'Data Annex'!$K$1:$AN$1,0)),\"\")","v":0.89534360820000003},{"$f":"IFERROR(INDEX('Data Annex'!$K$1:$AN$1498,MATCH(IFRS9!H$1&\"|\"&IFRS9!$B34,'Data Annex'!$K$1:$K$1498,0),MATCH(IFRS9!H$2,'Data Annex'!$K$1:$AN$1,0)),\"\")","v":0.89881469530000002},{"$f":"IFERROR(INDEX('Data Annex'!$K$1:$AN$1498,MATCH(IFRS9!I$1&\"|\"&IFRS9!$B34,'Data Annex'!$K$1:$K$1498,0),MATCH(IFRS9!I$2,'Data Annex'!$K$1:$AN$1,0)),\"\")","v":6.46624752E-2},{"$f":"IFERROR(INDEX('Data Annex'!$K$1:$AN$1498,MATCH(IFRS9!J$1&\"|\"&IFRS9!$B34,'Data Annex'!$K$1:$K$1498,0),MATCH(IFRS9!J$2,'Data Annex'!$K$1:$AN$1,0)),\"\")","v":8.8159947799999999E-2},{"$f":"IFERROR(INDEX('Data Annex'!$K$1:$AN$1498,MATCH(IFRS9!K$1&\"|\"&IFRS9!$B34,'Data Annex'!$K$1:$K$1498,0),MATCH(IFRS9!K$2,'Data Annex'!$K$1:$AN$1,0)),\"\")","v":8.1008188699999997E-2},{"$f":"IFERROR(INDEX('Data Annex'!$K$1:$AN$1498,MATCH(IFRS9!L$1&\"|\"&IFRS9!$B34,'Data Annex'!$K$1:$K$1498,0),MATCH(IFRS9!L$2,'Data Annex'!$K$1:$AN$1,0)),\"\")","v":7.7440064200000006E-2},{"$f":"IFERROR(INDEX('Data Annex'!$K$1:$AN$1498,MATCH(IFRS9!M$1&\"|\"&IFRS9!$B34,'Data Annex'!$K$1:$K$1498,0),MATCH(IFRS9!M$2,'Data Annex'!$K$1:$AN$1,0)),\"\")","v":2.2008859200000001E-2},{"$f":"IFERROR(INDEX('Data Annex'!$K$1:$AN$1498,MATCH(IFRS9!N$1&\"|\"&IFRS9!$B34,'Data Annex'!$K$1:$K$1498,0),MATCH(IFRS9!N$2,'Data Annex'!$K$1:$AN$1,0)),\"\")","v":2.34603603E-2},{"$f":"IFERROR(INDEX('Data Annex'!$K$1:$AN$1498,MATCH(IFRS9!O$1&\"|\"&IFRS9!$B34,'Data Annex'!$K$1:$K$1498,0),MATCH(IFRS9!O$2,'Data Annex'!$K$1:$AN$1,0)),\"\")","v":2.3648203100000001E-2},{"$f":"IFERROR(INDEX('Data Annex'!$K$1:$AN$1498,MATCH(IFRS9!P$1&\"|\"&IFRS9!$B34,'Data Annex'!$K$1:$K$1498,0),MATCH(IFRS9!P$2,'Data Annex'!$K$1:$AN$1,0)),\"\")","v":2.3745240500000001E-2},{"$f":"IFERROR(INDEX('Data Annex'!$K$1:$AN$1498,MATCH(IFRS9!Q$1&\"|\"&IFRS9!$B34,'Data Annex'!$K$1:$K$1498,0),MATCH(IFRS9!Q$2,'Data Annex'!$K$1:$AN$1,0)),\"\")","v":7.8682280000000001E-4},{"$f":"IFERROR(INDEX('Data Annex'!$K$1:$AN$1498,MATCH(IFRS9!R$1&\"|\"&IFRS9!$B34,'Data Annex'!$K$1:$K$1498,0),MATCH(IFRS9!R$2,'Data Annex'!$K$1:$AN$1,0)),\"\")","v":1.1792949999999999E-3},{"$f":"IFERROR(INDEX('Data Annex'!$K$1:$AN$1498,MATCH(IFRS9!S$1&\"|\"&IFRS9!$B34,'Data Annex'!$K$1:$K$1498,0),MATCH(IFRS9!S$2,'Data Annex'!$K$1:$AN$1,0)),\"\")","v":1.2787168999999999E-3},{"$f":"IFERROR(INDEX('Data Annex'!$K$1:$AN$1498,MATCH(IFRS9!T$1&\"|\"&IFRS9!$B34,'Data Annex'!$K$1:$K$1498,0),MATCH(IFRS9!T$2,'Data Annex'!$K$1:$AN$1,0)),\"\")","v":1.1745968E-3},{"$f":"IFERROR(INDEX('Data Annex'!$K$1:$AN$1498,MATCH(IFRS9!U$1&\"|\"&IFRS9!$B34,'Data Annex'!$K$1:$K$1498,0),MATCH(IFRS9!U$2,'Data Annex'!$K$1:$AN$1,0)),\"\")","v":2.2298678999999998E-2},{"$f":"IFERROR(INDEX('Data Annex'!$K$1:$AN$1498,MATCH(IFRS9!V$1&\"|\"&IFRS9!$B34,'Data Annex'!$K$1:$K$1498,0),MATCH(IFRS9!V$2,'Data Annex'!$K$1:$AN$1,0)),\"\")","v":1.9765832800000001E-2},{"$f":"IFERROR(INDEX('Data Annex'!$K$1:$AN$1498,MATCH(IFRS9!W$1&\"|\"&IFRS9!$B34,'Data Annex'!$K$1:$K$1498,0),MATCH(IFRS9!W$2,'Data Annex'!$K$1:$AN$1,0)),\"\")","v":2.2037685800000002E-2},{"$f":"IFERROR(INDEX('Data Annex'!$K$1:$AN$1498,MATCH(IFRS9!X$1&\"|\"&IFRS9!$B34,'Data Annex'!$K$1:$K$1498,0),MATCH(IFRS9!X$2,'Data Annex'!$K$1:$AN$1,0)),\"\")","v":2.3870827000000001E-2},{"$f":"IFERROR(INDEX('Data Annex'!$K$1:$AN$1498,MATCH(IFRS9!Y$1&\"|\"&IFRS9!$B34,'Data Annex'!$K$1:$K$1498,0),MATCH(IFRS9!Y$2,'Data Annex'!$K$1:$AN$1,0)),\"\")","v":0.26339626690000001},{"$f":"IFERROR(INDEX('Data Annex'!$K$1:$AN$1498,MATCH(IFRS9!Z$1&\"|\"&IFRS9!$B34,'Data Annex'!$K$1:$K$1498,0),MATCH(IFRS9!Z$2,'Data Annex'!$K$1:$AN$1,0)),\"\")","v":0.28412389910000002},{"$f":"IFERROR(INDEX('Data Annex'!$K$1:$AN$1498,MATCH(IFRS9!AA$1&\"|\"&IFRS9!$B34,'Data Annex'!$K$1:$K$1498,0),MATCH(IFRS9!AA$2,'Data Annex'!$K$1:$AN$1,0)),\"\")","v":0.27843069869999998},{"$f":"IFERROR(INDEX('Data Annex'!$K$1:$AN$1498,MATCH(IFRS9!AB$1&\"|\"&IFRS9!$B34,'Data Annex'!$K$1:$K$1498,0),MATCH(IFRS9!AB$2,'Data Annex'!$K$1:$AN$1,0)),\"\")","v":0.27650499099999998},{"$f":"IFERROR(INDEX('Data Annex'!$K$1:$AH$869,MATCH(IFRS9!AC$1&\"|\"&IFRS9!$B34,'Data Annex'!$K$1:$K$869,0),MATCH(IFRS9!AC$2,'Data Annex'!$K$1:$AH$1,0)),\"\")","v":""}]
[24,"NO",null,"NO",{"$f":"IFERROR(INDEX('Data Annex'!$K$1:$AN$1498,MATCH(IFRS9!E$1&\"|\"&IFRS9!$B35,'Data Annex'!$K$1:$K$1498,0),MATCH(IFRS9!E$2,'Data Annex'!$K$1:$AN$1,0)),\"\")","v":0.90131143680000003},{"$f":"IFERROR(INDEX('Data Annex'!$K$1:$AN$1498,MATCH(IFRS9!F$1&\"|\"&IFRS9!$B35,'Data Annex'!$K$1:$K$1498,0),MATCH(IFRS9!F$2,'Data Annex'!$K$1:$AN$1,0)),\"\")","v":0.89690755580000003},{"$f":"IFERROR(INDEX('Data Annex'!$K$1:$AN$1498,MATCH(IFRS9!G$1&\"|\"&IFRS9!$B35,'Data Annex'!$K$1:$K$1498,0),MATCH(IFRS9!G$2,'Data Annex'!$K$1:$AN$1,0)),\"\")","v":0.88807878490000003},{"$f":"IFERROR(INDEX('Data Annex'!$K$1:$AN$1498,MATCH(IFRS9!H$1&\"|\"&IFRS9!$B35,'Data Annex'!$K$1:$K$1498,0),MATCH(IFRS9!H$2,'Data Annex'!$K$1:$AN$1,0)),\"\")","v":0.90360090370000001},{"$f":"IFERROR(INDEX('Data Annex'!$K$1:$AN$1498,MATCH(IFRS9!I$1&\"|\"&IFRS9!$B35,'Data Annex'!$K$1:$K$1498,0),MATCH(IFRS9!I$2,'Data Annex'!$K$1:$AN$1,0)),\"\")","v":8.06845811E-2},{"$f":"IFERROR(INDEX('Data Annex'!$K$1:$AN$1498,MATCH(IFRS9!J$1&\"|\"&IFRS9!$B35,'Data Annex'!$K$1:$K$1498,0),MATCH(IFRS9!J$2,'Data Annex'!$K$1:$AN$1,0)),\"\")","v":8.2932746200000004E-2},{"$f":"IFERROR(INDEX('Data Annex'!$K$1:$AN$1498,MATCH(IFRS9!K$1&\"|\"&IFRS9!$B35,'Data Annex'!$K$1:$K$1498,0),MATCH(IFRS9!K$2,'Data Annex'!$K$1:$AN$1,0)),\"\")","v":9.1819517899999994E-2},{"$f":"IFERROR(INDEX('Data Annex'!$K$1:$AN$1498,MATCH(IFRS9!L$1&\"|\"&IFRS9!$B35,'Data Annex'!$K$1:$K$1498,0),MATCH(IFRS9!L$2,'Data Annex'!$K$1:$AN$1,0)),\"\")","v":7.7791763799999997E-2},{"$f":"IFERROR(INDEX('Data Annex'!$K$1:$AN$1498,MATCH(IFRS9!M$1&\"|\"&IFRS9!$B35,'Data Annex'!$K$1:$K$1498,0),MATCH(IFRS9!M$2,'Data Annex'!$K$1:$AN$1,0)),\"\")","v":1.80039821E-2},{"$f":"IFERROR(INDEX('Data Annex'!$K$1:$AN$1498,MATCH(IFRS9!N$1&\"|\"&IFRS9!$B35,'Data Annex'!$K$1:$K$1498,0),MATCH(IFRS9!N$2,'Data Annex'!$K$1:$AN$1,0)),\"\")","v":2.0159698E-2},{"$f":"IFERROR(INDEX('Data Annex'!$K$1:$AN$1498,MATCH(IFRS9!O$1&\"|\"&IFRS9!$B35,'Data Annex'!$K$1:$K$1498,0),MATCH(IFRS9!O$2,'Data Annex'!$K$1:$AN$1,0)),\"\")","v":2.01016971E-2},{"$f":"IFERROR(INDEX('Data Annex'!$K$1:$AN$1498,MATCH(IFRS9!P$1&\"|\"&IFRS9!$B35,'Data Annex'!$K$1:$K$1498,0),MATCH(IFRS9!P$2,'Data Annex'!$K$1:$AN$1,0)),\"\")","v":1.8607332399999999E-2},{"$f":"IFERROR(INDEX('Data Annex'!$K$1:$AN$1498,MATCH(IFRS9!Q$1&\"|\"&IFRS9!$B35,'Data Annex'!$K$1:$K$1498,0),MATCH(IFRS9!Q$2,'Data Annex'!$K$1:$AN$1,0)),\"\")","v":6.0840220000000003E-4},{"$f":"IFERROR(INDEX('Data Annex'!$K$1:$AN$1498,MATCH(IFRS9!R$1&\"|\"&IFRS9!$B35,'Data Annex'!$K$1:$K$1498,0),MATCH(IFRS9!R$2,'Data Annex'!$K$1:$AN$1,0)),\"\")","v":7.1290500000000001E-4},{"$f":"IFERROR(INDEX('Data Annex'!$K$1:$AN$1498,MATCH(IFRS9!S$1&\"|\"&IFRS9!$B35,'Data Annex'!$K$1:$K$1498,0),MATCH(IFRS9!S$2,'Data Annex'!$K$1:$AN$1,0)),\"\")","v":6.4067020000000004E-4},{"$f":"IFERROR(INDEX('Data Annex'!$K$1:$AN$1498,MATCH(IFRS9!T$1&\"|\"&IFRS9!$B35,'Data Annex'!$K$1:$K$1498,0),MATCH(IFRS9!T$2,'Data Annex'!$K$1:$AN$1,0)),\"\")","v":6.6109749999999998E-4},{"$f":"IFERROR(INDEX('Data Annex'!$K$1:$AN$1498,MATCH(IFRS9!U$1&\"|\"&IFRS9!$B35,'Data Annex'!$K$1:$K$1498,0),MATCH(IFRS9!U$2,'Data Annex'!$K$1:$AN$1,0)),\"\")","v":1.7079911400000002E-2},{"$f":"IFERROR(INDEX('Data Annex'!$K$1:$AN$1498,MATCH(IFRS9!V$1&\"|\"&IFRS9!$B35,'Data Annex'!$K$1:$K$1498,0),MATCH(IFRS9!V$2,'Data Annex'!$K$1:$AN$1,0)),\"\")","v":1.5286454999999999E-2},{"$f":"IFERROR(INDEX('Data Annex'!$K$1:$AN$1498,MATCH(IFRS9!W$1&\"|\"&IFRS9!$B35,'Data Annex'!$K$1:$K$1498,0),MATCH(IFRS9!W$2,'Data Annex'!$K$1:$AN$1,0)),\"\")","v":1.2619215099999999E-2},{"$f":"IFERROR(INDEX('Data Annex'!$K$1:$AN$1498,MATCH(IFRS9!X$1&\"|\"&IFRS9!$B35,'Data Annex'!$K$1:$K$1498,0),MATCH(IFRS9!X$2,'Data Annex'!$K$1:$AN$1,0)),\"\")","v":1.2553829400000001E-2},{"$f":"IFERROR(INDEX('Data Annex'!$K$1:$AN$1498,MATCH(IFRS9!Y$1&\"|\"&IFRS9!$B35,'Data Annex'!$K$1:$K$1498,0),MATCH(IFRS9!Y$2,'Data Annex'!$K$1:$AN$1,0)),\"\")","v":0.32864266539999998},{"$f":"IFERROR(INDEX('Data Annex'!$K$1:$AN$1498,MATCH(IFRS9!Z$1&\"|\"&IFRS9!$B35,'Data Annex'!$K$1:$K$1498,0),MATCH(IFRS9!Z$2,'Data Annex'!$K$1:$AN$1,0)),\"\")","v":0.36427717570000001},{"$f":"IFERROR(INDEX('Data Annex'!$K$1:$AN$1498,MATCH(IFRS9!AA$1&\"|\"&IFRS9!$B35,'Data Annex'!$K$1:$K$1498,0),MATCH(IFRS9!AA$2,'Data Annex'!$K$1:$AN$1,0)),\"\")","v":0.38186495009999999},{"$f":"IFERROR(INDEX('Data Annex'!$K$1:$AN$1498,MATCH(IFRS9!AB$1&\"|\"&IFRS9!$B35,'Data Annex'!$K$1:$K$1498,0),MATCH(IFRS9!AB$2,'Data Annex'!$K$1:$AN$1,0)),\"\")","v":0.37424364440000002},{"$f":"IFERROR(INDEX('Data Annex'!$K$1:$AH$869,MATCH(IFRS9!AC$1&\"|\"&IFRS9!$B35,'Data Annex'!$K$1:$K$869,0),MATCH(IFRS9!AC$2,'Data Annex'!$K$1:$AH$1,0)),\"\")","v":""}]
[25,"PL",null,"PL",{"$f":"IFERROR(INDEX('Data Annex'!$K$1:$AN$1498,MATCH(IFRS9!E$1&\"|\"&IFRS9!$B36,'Data Annex'!$K$1:$K$1498,0),MATCH(IFRS9!E$2,'Data Annex'!$K$1:$AN$1,0)),\"\")","v":0.87128293140000002},{"$f":"IFERROR(INDEX('Data Annex'!$K$1:$AN$1498,MATCH(IFRS9!F$1&\"|\"&IFRS9!$B36,'Data Annex'!$K$1:$K$1498,0),MATCH(IFRS9!F$2,'Data Annex'!$K$1:$AN$1,0)),\"\")","v":0.85424140339999999},{"$f":"IFERROR(INDEX('Data Annex'!$K$1:$AN$1498,MATCH(IFRS9!G$1&\"|\"&IFRS9!$B36,'Data Annex'!$K$1:$K$1498,0),MATCH(IFRS9!G$2,'Data Annex'!$K$1:$AN$1,0)),\"\")","v":0.84840293180000004},{"$f":"IFERROR(INDEX('Data Annex'!$K$1:$AN$1498,MATCH(IFRS9!H$1&\"|\"&IFRS9!$B36,'Data Annex'!$K$1:$K$1498,0),MATCH(IFRS9!H$2,'Data Annex'!$K$1:$AN$1,0)),\"\")","v":0.8227689561},{"$f":"IFERROR(INDEX('Data Annex'!$K$1:$AN$1498,MATCH(IFRS9!I$1&\"|\"&IFRS9!$B36,'Data Annex'!$K$1:$K$1498,0),MATCH(IFRS9!I$2,'Data Annex'!$K$1:$AN$1,0)),\"\")","v":8.0554530999999999E-2},{"$f":"IFERROR(INDEX('Data Annex'!$K$1:$AN$1498,MATCH(IFRS9!J$1&\"|\"&IFRS9!$B36,'Data Annex'!$K$1:$K$1498,0),MATCH(IFRS9!J$2,'Data Annex'!$K$1:$AN$1,0)),\"\")","v":9.5488773799999996E-2},{"$f":"IFERROR(INDEX('Data Annex'!$K$1:$AN$1498,MATCH(IFRS9!K$1&\"|\"&IFRS9!$B36,'Data Annex'!$K$1:$K$1498,0),MATCH(IFRS9!K$2,'Data Annex'!$K$1:$AN$1,0)),\"\")","v":0.1010311072},{"$f":"IFERROR(INDEX('Data Annex'!$K$1:$AN$1498,MATCH(IFRS9!L$1&\"|\"&IFRS9!$B36,'Data Annex'!$K$1:$K$1498,0),MATCH(IFRS9!L$2,'Data Annex'!$K$1:$AN$1,0)),\"\")","v":0.1255794304},{"$f":"IFERROR(INDEX('Data Annex'!$K$1:$AN$1498,MATCH(IFRS9!M$1&\"|\"&IFRS9!$B36,'Data Annex'!$K$1:$K$1498,0),MATCH(IFRS9!M$2,'Data Annex'!$K$1:$AN$1,0)),\"\")","v":4.8162537499999998E-2},{"$f":"IFERROR(INDEX('Data Annex'!$K$1:$AN$1498,MATCH(IFRS9!N$1&\"|\"&IFRS9!$B36,'Data Annex'!$K$1:$K$1498,0),MATCH(IFRS9!N$2,'Data Annex'!$K$1:$AN$1,0)),\"\")","v":5.0269822800000002E-2},{"$f":"IFERROR(INDEX('Data Annex'!$K$1:$AN$1498,MATCH(IFRS9!O$1&\"|\"&IFRS9!$B36,'Data Annex'!$K$1:$K$1498,0),MATCH(IFRS9!O$2,'Data Annex'!$K$1:$AN$1,0)),\"\")","v":5.0565961E-2},{"$f":"IFERROR(INDEX('Data Annex'!$K$1:$AN$1498,MATCH(IFRS9!P$1&\"|\"&IFRS9!$B36,'Data Annex'!$K$1:$K$1498,0),MATCH(IFRS9!P$2,'Data Annex'!$K$1:$AN$1,0)),\"\")","v":5.16516136E-2},{"$f":"IFERROR(INDEX('Data Annex'!$K$1:$AN$1498,MATCH(IFRS9!Q$1&\"|\"&IFRS9!$B36,'Data Annex'!$K$1:$K$1498,0),MATCH(IFRS9!Q$2,'Data Annex'!$K$1:$AN$1,0)),\"\")","v":3.4495163999999998E-3},{"$f":"IFERROR(INDEX('Data Annex'!$K$1:$AN$1498,MATCH(IFRS9!R$1&\"|\"&IFRS9!$B36,'Data Annex'!$K$1:$K$1498,0),MATCH(IFRS9!R$2,'Data Annex'!$K$1:$AN$1,0)),\"\")","v":3.7024324E-3},{"$f":"IFERROR(INDEX('Data Annex'!$K$1:$AN$1498,MATCH(IFRS9!S$1&\"|\"&IFRS9!$B36,'Data Annex'!$K$1:$K$1498,0),MATCH(IFRS9!S$2,'Data Annex'!$K$1:$AN$1,0)),\"\")","v":3.7018278999999999E-3},{"$f":"IFERROR(INDEX('Data Annex'!$K$1:$AN$1498,MATCH(IFRS9!T$1&\"|\"&IFRS9!$B36,'Data Annex'!$K$1:$K$1498,0),MATCH(IFRS9!T$2,'Data Annex'!$K$1:$AN$1,0)),\"\")","v":3.7162565E-3},{"$f":"IFERROR(INDEX('Data Annex'!$K$1:$AN$1498,MATCH(IFRS9!U$1&\"|\"&IFRS9!$B36,'Data Annex'!$K$1:$K$1498,0),MATCH(IFRS9!U$2,'Data Annex'!$K$1:$AN$1,0)),\"\")","v":6.3930767200000002E-2},{"$f":"IFERROR(INDEX('Data Annex'!$K$1:$AN$1498,MATCH(IFRS9!V$1&\"|\"&IFRS9!$B36,'Data Annex'!$K$1:$K$1498,0),MATCH(IFRS9!V$2,'Data Annex'!$K$1:$AN$1,0)),\"\")","v":6.0131771299999998E-2},{"$f":"IFERROR(INDEX('Data Annex'!$K$1:$AN$1498,MATCH(IFRS9!W$1&\"|\"&IFRS9!$B36,'Data Annex'!$K$1:$K$1498,0),MATCH(IFRS9!W$2,'Data Annex'!$K$1:$AN$1,0)),\"\")","v":6.1201308500000003E-2},{"$f":"IFERROR(INDEX('Data Annex'!$K$1:$AN$1498,MATCH(IFRS9!X$1&\"|\"&IFRS9!$B36,'Data Annex'!$K$1:$K$1498,0),MATCH(IFRS9!X$2,'Data Annex'!$K$1:$AN$1,0)),\"\")","v":5.4177590599999999E-2},{"$f":"IFERROR(INDEX('Data Annex'!$K$1:$AN$1498,MATCH(IFRS9!Y$1&\"|\"&IFRS9!$B36,'Data Annex'!$K$1:$K$1498,0),MATCH(IFRS9!Y$2,'Data Annex'!$K$1:$AN$1,0)),\"\")","v":0.61801550419999995},{"$f":"IFERROR(INDEX('Data Annex'!$K$1:$AN$1498,MATCH(IFRS9!Z$1&\"|\"&IFRS9!$B36,'Data Annex'!$K$1:$K$1498,0),MATCH(IFRS9!Z$2,'Data Annex'!$K$1:$AN$1,0)),\"\")","v":0.62629891500000001},{"$f":"IFERROR(INDEX('Data Annex'!$K$1:$AN$1498,MATCH(IFRS9!AA$1&\"|\"&IFRS9!$B36,'Data Annex'!$K$1:$K$1498,0),MATCH(IFRS9!AA$2,'Data Annex'!$K$1:$AN$1,0)),\"\")","v":0.64125173449999995},{"$f":"IFERROR(INDEX('Data Annex'!$K$1:$AN$1498,MATCH(IFRS9!AB$1&\"|\"&IFRS9!$B36,'Data Annex'!$K$1:$K$1498,0),MATCH(IFRS9!AB$2,'Data Annex'!$K$1:$AN$1,0)),\"\")","v":0.63857614819999997},{"$f":"IFERROR(INDEX('Data Annex'!$K$1:$AH$869,MATCH(IFRS9!AC$1&\"|\"&IFRS9!$B36,'Data Annex'!$K$1:$K$869,0),MATCH(IFRS9!AC$2,'Data Annex'!$K$1:$AH$1,0)),\"\")","v":""}]
[26,"PT",null,"PT",{"$f":"IFERROR(INDEX('Data Annex'!$K$1:$AN$1498,MATCH(IFRS9!E$1&\"|\"&IFRS9!$B37,'Data Annex'!$K$1:$K$1498,0),MATCH(IFRS9!E$2,'Data Annex'!$K$1:$AN$1,0)),\"\")","v":0.83891300499999999},{"$f":"IFERROR(INDEX('Data Annex'!$K$1:$AN$1498,MATCH(IFRS9!F$1&\"|\"&IFRS9!$B37,'Data Annex'!$K$1:$K$1498,0),MATCH(IFRS9!F$2,'Data Annex'!$K$1:$AN$1,0)),\"\")","v":0.84154595889999995},{"$f":"IFERROR(INDEX('Data Annex'!$K$1:$AN$1498,MATCH(IFRS9!G$1&\"|\"&IFRS9!$B37,'Data Annex'!$K$1:$K$1498,0),MATCH(IFRS9!G$2,'Data Annex'!$K$1:$AN$1,0)),\"\")","v":0.8449466135},{"$f":"IFERROR(INDEX('Data Annex'!$K$1:$AN$1498,MATCH(IFRS9!H$1&\"|\"&IFRS9!$B37,'Data Annex'!$K$1:$K$1498,0),MATCH(IFRS9!H$2,'Data Annex'!$K$1:$AN$1,0)),\"\")","v":0.82763986040000004},{"$f":"IFERROR(INDEX('Data Annex'!$K$1:$AN$1498,MATCH(IFRS9!I$1&\"|\"&IFRS9!$B37,'Data Annex'!$K$1:$K$1498,0),MATCH(IFRS9!I$2,'Data Annex'!$K$1:$AN$1,0)),\"\")","v":9.6609867000000002E-2},{"$f":"IFERROR(INDEX('Data Annex'!$K$1:$AN$1498,MATCH(IFRS9!J$1&\"|\"&IFRS9!$B37,'Data Annex'!$K$1:$K$1498,0),MATCH(IFRS9!J$2,'Data Annex'!$K$1:$AN$1,0)),\"\")","v":9.48150346E-2},{"$f":"IFERROR(INDEX('Data Annex'!$K$1:$AN$1498,MATCH(IFRS9!K$1&\"|\"&IFRS9!$B37,'Data Annex'!$K$1:$K$1498,0),MATCH(IFRS9!K$2,'Data Annex'!$K$1:$AN$1,0)),\"\")","v":9.3267776299999994E-2},{"$f":"IFERROR(INDEX('Data Annex'!$K$1:$AN$1498,MATCH(IFRS9!L$1&\"|\"&IFRS9!$B37,'Data Annex'!$K$1:$K$1498,0),MATCH(IFRS9!L$2,'Data Annex'!$K$1:$AN$1,0)),\"\")","v":0.1156885958},{"$f":"IFERROR(INDEX('Data Annex'!$K$1:$AN$1498,MATCH(IFRS9!M$1&\"|\"&IFRS9!$B37,'Data Annex'!$K$1:$K$1498,0),MATCH(IFRS9!M$2,'Data Annex'!$K$1:$AN$1,0)),\"\")","v":6.4477127999999995E-2},{"$f":"IFERROR(INDEX('Data Annex'!$K$1:$AN$1498,MATCH(IFRS9!N$1&\"|\"&IFRS9!$B37,'Data Annex'!$K$1:$K$1498,0),MATCH(IFRS9!N$2,'Data Annex'!$K$1:$AN$1,0)),\"\")","v":6.3639006400000003E-2},{"$f":"IFERROR(INDEX('Data Annex'!$K$1:$AN$1498,MATCH(IFRS9!O$1&\"|\"&IFRS9!$B37,'Data Annex'!$K$1:$K$1498,0),MATCH(IFRS9!O$2,'Data Annex'!$K$1:$AN$1,0)),\"\")","v":6.17856102E-2},{"$f":"IFERROR(INDEX('Data Annex'!$K$1:$AN$1498,MATCH(IFRS9!P$1&\"|\"&IFRS9!$B37,'Data Annex'!$K$1:$K$1498,0),MATCH(IFRS9!P$2,'Data Annex'!$K$1:$AN$1,0)),\"\")","v":5.6671543800000002E-2},{"$f":"IFERROR(INDEX('Data Annex'!$K$1:$AN$1498,MATCH(IFRS9!Q$1&\"|\"&IFRS9!$B37,'Data Annex'!$K$1:$K$1498,0),MATCH(IFRS9!Q$2,'Data Annex'!$K$1:$AN$1,0)),\"\")","v":3.1381657999999999E-3},{"$f":"IFERROR(INDEX('Data Annex'!$K$1:$AN$1498,MATCH(IFRS9!R$1&\"|\"&IFRS9!$B37,'Data Annex'!$K$1:$K$1498,0),MATCH(IFRS9!R$2,'Data Annex'!$K$1:$AN$1,0)),\"\")","v":3.5161872000000001E-3},{"$f":"IFERROR(INDEX('Data Annex'!$K$1:$AN$1498,MATCH(IFRS9!S$1&\"|\"&IFRS9!$B37,'Data Annex'!$K$1:$K$1498,0),MATCH(IFRS9!S$2,'Data Annex'!$K$1:$AN$1,0)),\"\")","v":3.4578436000000001E-3},{"$f":"IFERROR(INDEX('Data Annex'!$K$1:$AN$1498,MATCH(IFRS9!T$1&\"|\"&IFRS9!$B37,'Data Annex'!$K$1:$K$1498,0),MATCH(IFRS9!T$2,'Data Annex'!$K$1:$AN$1,0)),\"\")","v":3.7458677000000002E-3},{"$f":"IFERROR(INDEX('Data Annex'!$K$1:$AN$1498,MATCH(IFRS9!U$1&\"|\"&IFRS9!$B37,'Data Annex'!$K$1:$K$1498,0),MATCH(IFRS9!U$2,'Data Annex'!$K$1:$AN$1,0)),\"\")","v":4.9672392400000001E-2},{"$f":"IFERROR(INDEX('Data Annex'!$K$1:$AN$1498,MATCH(IFRS9!V$1&\"|\"&IFRS9!$B37,'Data Annex'!$K$1:$K$1498,0),MATCH(IFRS9!V$2,'Data Annex'!$K$1:$AN$1,0)),\"\")","v":6.0917144899999998E-2},{"$f":"IFERROR(INDEX('Data Annex'!$K$1:$AN$1498,MATCH(IFRS9!W$1&\"|\"&IFRS9!$B37,'Data Annex'!$K$1:$K$1498,0),MATCH(IFRS9!W$2,'Data Annex'!$K$1:$AN$1,0)),\"\")","v":6.9551332399999999E-2},{"$f":"IFERROR(INDEX('Data Annex'!$K$1:$AN$1498,MATCH(IFRS9!X$1&\"|\"&IFRS9!$B37,'Data Annex'!$K$1:$K$1498,0),MATCH(IFRS9!X$2,'Data Annex'!$K$1:$AN$1,0)),\"\")","v":6.08989723E-2},{"$f":"IFERROR(INDEX('Data Annex'!$K$1:$AN$1498,MATCH(IFRS9!Y$1&\"|\"&IFRS9!$B37,'Data Annex'!$K$1:$K$1498,0),MATCH(IFRS9!Y$2,'Data Annex'!$K$1:$AN$1,0)),\"\")","v":0.52283570099999999},{"$f":"IFERROR(INDEX('Data Annex'!$K$1:$AN$1498,MATCH(IFRS9!Z$1&\"|\"&IFRS9!$B37,'Data Annex'!$K$1:$K$1498,0),MATCH(IFRS9!Z$2,'Data Annex'!$K$1:$AN$1,0)),\"\")","v":0.52676358359999997},{"$f":"IFERROR(INDEX('Data Annex'!$K$1:$AN$1498,MATCH(IFRS9!AA$1&\"|\"&IFRS9!$B37,'Data Annex'!$K$1:$K$1498,0),MATCH(IFRS9!AA$2,'Data Annex'!$K$1:$AN$1,0)),\"\")","v":0.54952336820000003},{"$f":"IFERROR(INDEX('Data Annex'!$K$1:$AN$1498,MATCH(IFRS9!AB$1&\"|\"&IFRS9!$B37,'Data Annex'!$K$1:$K$1498,0),MATCH(IFRS9!AB$2,'Data Annex'!$K$1:$AN$1,0)),\"\")","v":0.5414304633},{"$f":"IFERROR(INDEX('Data Annex'!$K$1:$AH$869,MATCH(IFRS9!AC$1&\"|\"&IFRS9!$B37,'Data Annex'!$K$1:$K$869,0),MATCH(IFRS9!AC$2,'Data Annex'!$K$1:$AH$1,0)),\"\")","v":""}]
[27,"RO",null,"RO",{"$f":"IFERROR(INDEX('Data Annex'!$K$1:$AN$1498,MATCH(IFRS9!E$1&\"|\"&IFRS9!$B38,'Data Annex'!$K$1:$K$1498,0),MATCH(IFRS9!E$2,'Data Annex'!$K$1:$AN$1,0)),\"\")","v":0.7972072026},{"$f":"IFERROR(INDEX('Data Annex'!$K$1:$AN$1498,MATCH(IFRS9!F$1&\"|\"&IFRS9!$B38,'Data Annex'!$K$1:$K$1498,0),MATCH(IFRS9!F$2,'Data Annex'!$K$1:$AN$1,0)),\"\")","v":0.78750530829999998},{"$f":"IFERROR(INDEX('Data Annex'!$K$1:$AN$1498,MATCH(IFRS9!G$1&\"|\"&IFRS9!$B38,'Data Annex'!$K$1:$K$1498,0),MATCH(IFRS9!G$2,'Data Annex'!$K$1:$AN$1,0)),\"\")","v":0.78840050449999999},{"$f":"IFERROR(INDEX('Data Annex'!$K$1:$AN$1498,MATCH(IFRS9!H$1&\"|\"&IFRS9!$B38,'Data Annex'!$K$1:$K$1498,0),MATCH(IFRS9!H$2,'Data Annex'!$K$1:$AN$1,0)),\"\")","v":0.75708885640000001},{"$f":"IFERROR(INDEX('Data Annex'!$K$1:$AN$1498,MATCH(IFRS9!I$1&\"|\"&IFRS9!$B38,'Data Annex'!$K$1:$K$1498,0),MATCH(IFRS9!I$2,'Data Annex'!$K$1:$AN$1,0)),\"\")","v":0.15592303399999999},{"$f":"IFERROR(INDEX('Data Annex'!$K$1:$AN$1498,MATCH(IFRS9!J$1&\"|\"&IFRS9!$B38,'Data Annex'!$K$1:$K$1498,0),MATCH(IFRS9!J$2,'Data Annex'!$K$1:$AN$1,0)),\"\")","v":0.16101878829999999},{"$f":"IFERROR(INDEX('Data Annex'!$K$1:$AN$1498,MATCH(IFRS9!K$1&\"|\"&IFRS9!$B38,'Data Annex'!$K$1:$K$1498,0),MATCH(IFRS9!K$2,'Data Annex'!$K$1:$AN$1,0)),\"\")","v":0.16545220760000001},{"$f":"IFERROR(INDEX('Data Annex'!$K$1:$AN$1498,MATCH(IFRS9!L$1&\"|\"&IFRS9!$B38,'Data Annex'!$K$1:$K$1498,0),MATCH(IFRS9!L$2,'Data Annex'!$K$1:$AN$1,0)),\"\")","v":0.19678244889999999},{"$f":"IFERROR(INDEX('Data Annex'!$K$1:$AN$1498,MATCH(IFRS9!M$1&\"|\"&IFRS9!$B38,'Data Annex'!$K$1:$K$1498,0),MATCH(IFRS9!M$2,'Data Annex'!$K$1:$AN$1,0)),\"\")","v":4.68697634E-2},{"$f":"IFERROR(INDEX('Data Annex'!$K$1:$AN$1498,MATCH(IFRS9!N$1&\"|\"&IFRS9!$B38,'Data Annex'!$K$1:$K$1498,0),MATCH(IFRS9!N$2,'Data Annex'!$K$1:$AN$1,0)),\"\")","v":5.1475903400000002E-2},{"$f":"IFERROR(INDEX('Data Annex'!$K$1:$AN$1498,MATCH(IFRS9!O$1&\"|\"&IFRS9!$B38,'Data Annex'!$K$1:$K$1498,0),MATCH(IFRS9!O$2,'Data Annex'!$K$1:$AN$1,0)),\"\")","v":4.61472879E-2},{"$f":"IFERROR(INDEX('Data Annex'!$K$1:$AN$1498,MATCH(IFRS9!P$1&\"|\"&IFRS9!$B38,'Data Annex'!$K$1:$K$1498,0),MATCH(IFRS9!P$2,'Data Annex'!$K$1:$AN$1,0)),\"\")","v":4.61286947E-2},{"$f":"IFERROR(INDEX('Data Annex'!$K$1:$AN$1498,MATCH(IFRS9!Q$1&\"|\"&IFRS9!$B38,'Data Annex'!$K$1:$K$1498,0),MATCH(IFRS9!Q$2,'Data Annex'!$K$1:$AN$1,0)),\"\")","v":8.5979620000000007E-3},{"$f":"IFERROR(INDEX('Data Annex'!$K$1:$AN$1498,MATCH(IFRS9!R$1&\"|\"&IFRS9!$B38,'Data Annex'!$K$1:$K$1498,0),MATCH(IFRS9!R$2,'Data Annex'!$K$1:$AN$1,0)),\"\")","v":8.6398484000000005E-3},{"$f":"IFERROR(INDEX('Data Annex'!$K$1:$AN$1498,MATCH(IFRS9!S$1&\"|\"&IFRS9!$B38,'Data Annex'!$K$1:$K$1498,0),MATCH(IFRS9!S$2,'Data Annex'!$K$1:$AN$1,0)),\"\")","v":1.04325623E-2},{"$f":"IFERROR(INDEX('Data Annex'!$K$1:$AN$1498,MATCH(IFRS9!T$1&\"|\"&IFRS9!$B38,'Data Annex'!$K$1:$K$1498,0),MATCH(IFRS9!T$2,'Data Annex'!$K$1:$AN$1,0)),\"\")","v":1.06225494E-2},{"$f":"IFERROR(INDEX('Data Annex'!$K$1:$AN$1498,MATCH(IFRS9!U$1&\"|\"&IFRS9!$B38,'Data Annex'!$K$1:$K$1498,0),MATCH(IFRS9!U$2,'Data Annex'!$K$1:$AN$1,0)),\"\")","v":9.1234569000000001E-2},{"$f":"IFERROR(INDEX('Data Annex'!$K$1:$AN$1498,MATCH(IFRS9!V$1&\"|\"&IFRS9!$B38,'Data Annex'!$K$1:$K$1498,0),MATCH(IFRS9!V$2,'Data Annex'!$K$1:$AN$1,0)),\"\")","v":0.10266480529999999},{"$f":"IFERROR(INDEX('Data Annex'!$K$1:$AN$1498,MATCH(IFRS9!W$1&\"|\"&IFRS9!$B38,'Data Annex'!$K$1:$K$1498,0),MATCH(IFRS9!W$2,'Data Annex'!$K$1:$AN$1,0)),\"\")","v":0.104226955},{"$f":"IFERROR(INDEX('Data Annex'!$K$1:$AN$1498,MATCH(IFRS9!X$1&\"|\"&IFRS9!$B38,'Data Annex'!$K$1:$K$1498,0),MATCH(IFRS9!X$2,'Data Annex'!$K$1:$AN$1,0)),\"\")","v":0.1031485493},{"$f":"IFERROR(INDEX('Data Annex'!$K$1:$AN$1498,MATCH(IFRS9!Y$1&\"|\"&IFRS9!$B38,'Data Annex'!$K$1:$K$1498,0),MATCH(IFRS9!Y$2,'Data Annex'!$K$1:$AN$1,0)),\"\")","v":0.65695141700000004},{"$f":"IFERROR(INDEX('Data Annex'!$K$1:$AN$1498,MATCH(IFRS9!Z$1&\"|\"&IFRS9!$B38,'Data Annex'!$K$1:$K$1498,0),MATCH(IFRS9!Z$2,'Data Annex'!$K$1:$AN$1,0)),\"\")","v":0.65494245409999996},{"$f":"IFERROR(INDEX('Data Annex'!$K$1:$AN$1498,MATCH(IFRS9!AA$1&\"|\"&IFRS9!$B38,'Data Annex'!$K$1:$K$1498,0),MATCH(IFRS9!AA$2,'Data Annex'!$K$1:$AN$1,0)),\"\")","v":0.65369949059999999},{"$f":"IFERROR(INDEX('Data Annex'!$K$1:$AN$1498,MATCH(IFRS9!AB$1&\"|\"&IFRS9!$B38,'Data Annex'!$K$1:$K$1498,0),MATCH(IFRS9!AB$2,'Data Annex'!$K$1:$AN$1,0)),\"\")","v":0.65923516459999998}]
[28,"SE",null,"SE",{"$f":"IFERROR(INDEX('Data Annex'!$K$1:$AN$1498,MATCH(IFRS9!E$1&\"|\"&IFRS9!$B39,'Data Annex'!$K$1:$K$1498,0),MATCH(IFRS9!E$2,'Data Annex'!$K$1:$AN$1,0)),\"\")","v":0.95438086180000004},{"$f":"IFERROR(INDEX('Data Annex'!$K$1:$AN$1498,MATCH(IFRS9!F$1&\"|\"&IFRS9!$B39,'Data Annex'!$K$1:$K$1498,0),MATCH(IFRS9!F$2,'Data Annex'!$K$1:$AN$1,0)),\"\")","v":0.95011204439999997},{"$f":"IFERROR(INDEX('Data Annex'!$K$1:$AN$1498,MATCH(IFRS9!G$1&\"|\"&IFRS9!$B39,'Data Annex'!$K$1:$K$1498,0),MATCH(IFRS9!G$2,'Data Annex'!$K$1:$AN$1,0)),\"\")","v":0.95200361410000001},{"$f":"IFERROR(INDEX('Data Annex'!$K$1:$AN$1498,MATCH(IFRS9!H$1&\"|\"&IFRS9!$B39,'Data Annex'!$K$1:$K$1498,0),MATCH(IFRS9!H$2,'Data Annex'!$K$1:$AN$1,0)),\"\")","v":0.95492319329999997},{"$f":"IFERROR(INDEX('Data Annex'!$K$1:$AN$1498,MATCH(IFRS9!I$1&\"|\"&IFRS9!$B39,'Data Annex'!$K$1:$K$1498,0),MATCH(IFRS9!I$2,'Data Annex'!$K$1:$AN$1,0)),\"\")","v":4.0329750599999999E-2},{"$f":"IFERROR(INDEX('Data Annex'!$K$1:$AN$1498,MATCH(IFRS9!J$1&\"|\"&IFRS9!$B39,'Data Annex'!$K$1:$K$1498,0),MATCH(IFRS9!J$2,'Data Annex'!$K$1:$AN$1,0)),\"\")","v":4.4184269200000001E-2},{"$f":"IFERROR(INDEX('Data Annex'!$K$1:$AN$1498,MATCH(IFRS9!K$1&\"|\"&IFRS9!$B39,'Data Annex'!$K$1:$K$1498,0),MATCH(IFRS9!K$2,'Data Annex'!$K$1:$AN$1,0)),\"\")","v":4.2310037600000003E-2},{"$f":"IFERROR(INDEX('Data Annex'!$K$1:$AN$1498,MATCH(IFRS9!L$1&\"|\"&IFRS9!$B39,'Data Annex'!$K$1:$K$1498,0),MATCH(IFRS9!L$2,'Data Annex'!$K$1:$AN$1,0)),\"\")","v":3.9983057000000002E-2},{"$f":"IFERROR(INDEX('Data Annex'!$K$1:$AN$1498,MATCH(IFRS9!M$1&\"|\"&IFRS9!$B39,'Data Annex'!$K$1:$K$1498,0),MATCH(IFRS9!M$2,'Data Annex'!$K$1:$AN$1,0)),\"\")","v":5.2893875999999998E-3},{"$f":"IFERROR(INDEX('Data Annex'!$K$1:$AN$1498,MATCH(IFRS9!N$1&\"|\"&IFRS9!$B39,'Data Annex'!$K$1:$K$1498,0),MATCH(IFRS9!N$2,'Data Annex'!$K$1:$AN$1,0)),\"\")","v":5.7036863999999996E-3},{"$f":"IFERROR(INDEX('Data Annex'!$K$1:$AN$1498,MATCH(IFRS9!O$1&\"|\"&IFRS9!$B39,'Data Annex'!$K$1:$K$1498,0),MATCH(IFRS9!O$2,'Data Annex'!$K$1:$AN$1,0)),\"\")","v":5.6863482999999996E-3},{"$f":"IFERROR(INDEX('Data Annex'!$K$1:$AN$1498,MATCH(IFRS9!P$1&\"|\"&IFRS9!$B39,'Data Annex'!$K$1:$K$1498,0),MATCH(IFRS9!P$2,'Data Annex'!$K$1:$AN$1,0)),\"\")","v":5.0937496999999997E-3},{"$f":"IFERROR(INDEX('Data Annex'!$K$1:$AN$1498,MATCH(IFRS9!Q$1&\"|\"&IFRS9!$B39,'Data Annex'!$K$1:$K$1498,0),MATCH(IFRS9!Q$2,'Data Annex'!$K$1:$AN$1,0)),\"\")","v":4.1753770000000002E-4},{"$f":"IFERROR(INDEX('Data Annex'!$K$1:$AN$1498,MATCH(IFRS9!R$1&\"|\"&IFRS9!$B39,'Data Annex'!$K$1:$K$1498,0),MATCH(IFRS9!R$2,'Data Annex'!$K$1:$AN$1,0)),\"\")","v":4.9201989999999999E-4},{"$f":"IFERROR(INDEX('Data Annex'!$K$1:$AN$1498,MATCH(IFRS9!S$1&\"|\"&IFRS9!$B39,'Data Annex'!$K$1:$K$1498,0),MATCH(IFRS9!S$2,'Data Annex'!$K$1:$AN$1,0)),\"\")","v":4.3878569999999999E-4},{"$f":"IFERROR(INDEX('Data Annex'!$K$1:$AN$1498,MATCH(IFRS9!T$1&\"|\"&IFRS9!$B39,'Data Annex'!$K$1:$K$1498,0),MATCH(IFRS9!T$2,'Data Annex'!$K$1:$AN$1,0)),\"\")","v":4.2065039999999998E-4},{"$f":"IFERROR(INDEX('Data Annex'!$K$1:$AN$1498,MATCH(IFRS9!U$1&\"|\"&IFRS9!$B39,'Data Annex'!$K$1:$K$1498,0),MATCH(IFRS9!U$2,'Data Annex'!$K$1:$AN$1,0)),\"\")","v":1.58701461E-2},{"$f":"IFERROR(INDEX('Data Annex'!$K$1:$AN$1498,MATCH(IFRS9!V$1&\"|\"&IFRS9!$B39,'Data Annex'!$K$1:$K$1498,0),MATCH(IFRS9!V$2,'Data Annex'!$K$1:$AN$1,0)),\"\")","v":1.6877820299999999E-2},{"$f":"IFERROR(INDEX('Data Annex'!$K$1:$AN$1498,MATCH(IFRS9!W$1&\"|\"&IFRS9!$B39,'Data Annex'!$K$1:$K$1498,0),MATCH(IFRS9!W$2,'Data Annex'!$K$1:$AN$1,0)),\"\")","v":1.60990048E-2},{"$f":"IFERROR(INDEX('Data Annex'!$K$1:$AN$1498,MATCH(IFRS9!X$1&\"|\"&IFRS9!$B39,'Data Annex'!$K$1:$K$1498,0),MATCH(IFRS9!X$2,'Data Annex'!$K$1:$AN$1,0)),\"\")","v":1.7798795499999999E-2},{"$f":"IFERROR(INDEX('Data Annex'!$K$1:$AN$1498,MATCH(IFRS9!Y$1&\"|\"&IFRS9!$B39,'Data Annex'!$K$1:$K$1498,0),MATCH(IFRS9!Y$2,'Data Annex'!$K$1:$AN$1,0)),\"\")","v":0.44246746219999999},{"$f":"IFERROR(INDEX('Data Annex'!$K$1:$AN$1498,MATCH(IFRS9!Z$1&\"|\"&IFRS9!$B39,'Data Annex'!$K$1:$K$1498,0),MATCH(IFRS9!Z$2,'Data Annex'!$K$1:$AN$1,0)),\"\")","v":0.4296103872},{"$f":"IFERROR(INDEX('Data Annex'!$K$1:$AN$1498,MATCH(IFRS9!AA$1&\"|\"&IFRS9!$B39,'Data Annex'!$K$1:$K$1498,0),MATCH(IFRS9!AA$2,'Data Annex'!$K$1:$AN$1,0)),\"\")","v":0.44099972370000001},{"$f":"IFERROR(INDEX('Data Annex'!$K$1:$AN$1498,MATCH(IFRS9!AB$1&\"|\"&IFRS9!$B39,'Data Annex'!$K$1:$K$1498,0),MATCH(IFRS9!AB$2,'Data Annex'!$K$1:$AN$1,0)),\"\")","v":0.44901065029999998}]
[29,"SI",null,"SI",{"$f":"IFERROR(INDEX('Data Annex'!$K$1:$AN$1498,MATCH(IFRS9!E$1&\"|\"&IFRS9!$B40,'Data Annex'!$K$1:$K$1498,0),MATCH(IFRS9!E$2,'Data Annex'!$K$1:$AN$1,0)),\"\")","v":0.91625309700000002},{"$f":"IFERROR(INDEX('Data Annex'!$K$1:$AN$1498,MATCH(IFRS9!F$1&\"|\"&IFRS9!$B40,'Data Annex'!$K$1:$K$1498,0),MATCH(IFRS9!F$2,'Data Annex'!$K$1:$AN$1,0)),\"\")","v":0.90194270089999995},{"$f":"IFERROR(INDEX('Data Annex'!$K$1:$AN$1498,MATCH(IFRS9!G$1&\"|\"&IFRS9!$B40,'Data Annex'!$K$1:$K$1498,0),MATCH(IFRS9!G$2,'Data Annex'!$K$1:$AN$1,0)),\"\")","v":0.90038972480000001},{"$f":"IFERROR(INDEX('Data Annex'!$K$1:$AN$1498,MATCH(IFRS9!H$1&\"|\"&IFRS9!$B40,'Data Annex'!$K$1:$K$1498,0),MATCH(IFRS9!H$2,'Data Annex'!$K$1:$AN$1,0)),\"\")","v":0.88133119920000003},{"$f":"IFERROR(INDEX('Data Annex'!$K$1:$AN$1498,MATCH(IFRS9!I$1&\"|\"&IFRS9!$B40,'Data Annex'!$K$1:$K$1498,0),MATCH(IFRS9!I$2,'Data Annex'!$K$1:$AN$1,0)),\"\")","v":4.7706593700000001E-2},{"$f":"IFERROR(INDEX('Data Annex'!$K$1:$AN$1498,MATCH(IFRS9!J$1&\"|\"&IFRS9!$B40,'Data Annex'!$K$1:$K$1498,0),MATCH(IFRS9!J$2,'Data Annex'!$K$1:$AN$1,0)),\"\")","v":6.1189684799999998E-2},{"$f":"IFERROR(INDEX('Data Annex'!$K$1:$AN$1498,MATCH(IFRS9!K$1&\"|\"&IFRS9!$B40,'Data Annex'!$K$1:$K$1498,0),MATCH(IFRS9!K$2,'Data Annex'!$K$1:$AN$1,0)),\"\")","v":6.3637071700000006E-2},{"$f":"IFERROR(INDEX('Data Annex'!$K$1:$AN$1498,MATCH(IFRS9!L$1&\"|\"&IFRS9!$B40,'Data Annex'!$K$1:$K$1498,0),MATCH(IFRS9!L$2,'Data Annex'!$K$1:$AN$1,0)),\"\")","v":8.1253587200000005E-2},{"$f":"IFERROR(INDEX('Data Annex'!$K$1:$AN$1498,MATCH(IFRS9!M$1&\"|\"&IFRS9!$B40,'Data Annex'!$K$1:$K$1498,0),MATCH(IFRS9!M$2,'Data Annex'!$K$1:$AN$1,0)),\"\")","v":3.6040309299999997E-2},{"$f":"IFERROR(INDEX('Data Annex'!$K$1:$AN$1498,MATCH(IFRS9!N$1&\"|\"&IFRS9!$B40,'Data Annex'!$K$1:$K$1498,0),MATCH(IFRS9!N$2,'Data Annex'!$K$1:$AN$1,0)),\"\")","v":3.6867614299999997E-2},{"$f":"IFERROR(INDEX('Data Annex'!$K$1:$AN$1498,MATCH(IFRS9!O$1&\"|\"&IFRS9!$B40,'Data Annex'!$K$1:$K$1498,0),MATCH(IFRS9!O$2,'Data Annex'!$K$1:$AN$1,0)),\"\")","v":3.5973203500000002E-2},{"$f":"IFERROR(INDEX('Data Annex'!$K$1:$AN$1498,MATCH(IFRS9!P$1&\"|\"&IFRS9!$B40,'Data Annex'!$K$1:$K$1498,0),MATCH(IFRS9!P$2,'Data Annex'!$K$1:$AN$1,0)),\"\")","v":3.7415213699999998E-2},{"$f":"IFERROR(INDEX('Data Annex'!$K$1:$AN$1498,MATCH(IFRS9!Q$1&\"|\"&IFRS9!$B40,'Data Annex'!$K$1:$K$1498,0),MATCH(IFRS9!Q$2,'Data Annex'!$K$1:$AN$1,0)),\"\")","v":6.0354746999999997E-3},{"$f":"IFERROR(INDEX('Data Annex'!$K$1:$AN$1498,MATCH(IFRS9!R$1&\"|\"&IFRS9!$B40,'Data Annex'!$K$1:$K$1498,0),MATCH(IFRS9!R$2,'Data Annex'!$K$1:$AN$1,0)),\"\")","v":7.2551834999999999E-3},{"$f":"IFERROR(INDEX('Data Annex'!$K$1:$AN$1498,MATCH(IFRS9!S$1&\"|\"&IFRS9!$B40,'Data Annex'!$K$1:$K$1498,0),MATCH(IFRS9!S$2,'Data Annex'!$K$1:$AN$1,0)),\"\")","v":6.8597626000000004E-3},{"$f":"IFERROR(INDEX('Data Annex'!$K$1:$AN$1498,MATCH(IFRS9!T$1&\"|\"&IFRS9!$B40,'Data Annex'!$K$1:$K$1498,0),MATCH(IFRS9!T$2,'Data Annex'!$K$1:$AN$1,0)),\"\")","v":7.0112584000000004E-3},{"$f":"IFERROR(INDEX('Data Annex'!$K$1:$AN$1498,MATCH(IFRS9!U$1&\"|\"&IFRS9!$B40,'Data Annex'!$K$1:$K$1498,0),MATCH(IFRS9!U$2,'Data Annex'!$K$1:$AN$1,0)),\"\")","v":8.2870338700000004E-2},{"$f":"IFERROR(INDEX('Data Annex'!$K$1:$AN$1498,MATCH(IFRS9!V$1&\"|\"&IFRS9!$B40,'Data Annex'!$K$1:$K$1498,0),MATCH(IFRS9!V$2,'Data Annex'!$K$1:$AN$1,0)),\"\")","v":7.6817783799999997E-2},{"$f":"IFERROR(INDEX('Data Annex'!$K$1:$AN$1498,MATCH(IFRS9!W$1&\"|\"&IFRS9!$B40,'Data Annex'!$K$1:$K$1498,0),MATCH(IFRS9!W$2,'Data Annex'!$K$1:$AN$1,0)),\"\")","v":7.7279707000000003E-2},{"$f":"IFERROR(INDEX('Data Annex'!$K$1:$AN$1498,MATCH(IFRS9!X$1&\"|\"&IFRS9!$B40,'Data Annex'!$K$1:$K$1498,0),MATCH(IFRS9!X$2,'Data Annex'!$K$1:$AN$1,0)),\"\")","v":5.9011341100000003E-2},{"$f":"IFERROR(INDEX('Data Annex'!$K$1:$AN$1498,MATCH(IFRS9!Y$1&\"|\"&IFRS9!$B40,'Data Annex'!$K$1:$K$1498,0),MATCH(IFRS9!Y$2,'Data Annex'!$K$1:$AN$1,0)),\"\")","v":0.58678952780000004},{"$f":"IFERROR(INDEX('Data Annex'!$K$1:$AN$1498,MATCH(IFRS9!Z$1&\"|\"&IFRS9!$B40,'Data Annex'!$K$1:$K$1498,0),MATCH(IFRS9!Z$2,'Data Annex'!$K$1:$AN$1,0)),\"\")","v":0.57951559909999995},{"$f":"IFERROR(INDEX('Data Annex'!$K$1:$AN$1498,MATCH(IFRS9!AA$1&\"|\"&IFRS9!$B40,'Data Annex'!$K$1:$K$1498,0),MATCH(IFRS9!AA$2,'Data Annex'!$K$1:$AN$1,0)),\"\")","v":0.58867395659999999},{"$f":"IFERROR(INDEX('Data Annex'!$K$1:$AN$1498,MATCH(IFRS9!AB$1&\"|\"&IFRS9!$B40,'Data Annex'!$K$1:$K$1498,0),MATCH(IFRS9!AB$2,'Data Annex'!$K$1:$AN$1,0)),\"\")","v":0.55495807610000003}]
[30,"SK",null,{"$f":"IF(OR(E41=\"n.a.\",F41=\"n.a.\",G41=\"n.a.\",H41=\"n.a.\",I41=\"n.a.\",J41=\"n.a.\",K41=\"n.a.\",L41=\"n.a.\",M41=\"n.a.\",N41=\"n.a.\",O41=\"n.a.\",P41=\"n.a.\",Q41=\"n.a.\",R41=\"n.a.\",S41=\"n.a.\",T41=\"n.a.\",U41=\"n.a.\",V41=\"n.a.\",W41=\"n.a.\",X41=\"n.a.\",Y41=\"n.a.\",Z41=\"n.a.\",AA41=\"n.a.\",AB41=\"n.a.\"),$B41&\"*\",$B41)","v":"SK"},{"$f":"IFERROR(INDEX('Data Annex'!$K$1:$AN$1498,MATCH(IFRS9!E$1&\"|\"&IFRS9!$B41,'Data Annex'!$K$1:$K$1498,0),MATCH(IFRS9!E$2,'Data Annex'!$K$1:$AN$1,0)),\"\")","v":0.86098688420000002},{"$f":"IFERROR(INDEX('Data Annex'!$K$1:$AN$1498,MATCH(IFRS9!F$1&\"|\"&IFRS9!$B41,'Data Annex'!$K$1:$K$1498,0),MATCH(IFRS9!F$2,'Data Annex'!$K$1:$AN$1,0)),\"\")","v":0.8110177663},{"$f":"IFERROR(INDEX('Data Annex'!$K$1:$AN$1498,MATCH(IFRS9!G$1&\"|\"&IFRS9!$B41,'Data Annex'!$K$1:$K$1498,0),MATCH(IFRS9!G$2,'Data Annex'!$K$1:$AN$1,0)),\"\")","v":0.80911134250000005},{"$f":"IFERROR(INDEX('Data Annex'!$K$1:$AN$1498,MATCH(IFRS9!H$1&\"|\"&IFRS9!$B41,'Data Annex'!$K$1:$K$1498,0),MATCH(IFRS9!H$2,'Data Annex'!$K$1:$AN$1,0)),\"\")","v":0.81600582690000001},{"$f":"IFERROR(INDEX('Data Annex'!$K$1:$AN$1498,MATCH(IFRS9!I$1&\"|\"&IFRS9!$B41,'Data Annex'!$K$1:$K$1498,0),MATCH(IFRS9!I$2,'Data Annex'!$K$1:$AN$1,0)),\"\")","v":0.1125957118},{"$f":"IFERROR(INDEX('Data Annex'!$K$1:$AN$1498,MATCH(IFRS9!J$1&\"|\"&IFRS9!$B41,'Data Annex'!$K$1:$K$1498,0),MATCH(IFRS9!J$2,'Data Annex'!$K$1:$AN$1,0)),\"\")","v":0.16284424780000001},{"$f":"IFERROR(INDEX('Data Annex'!$K$1:$AN$1498,MATCH(IFRS9!K$1&\"|\"&IFRS9!$B41,'Data Annex'!$K$1:$K$1498,0),MATCH(IFRS9!K$2,'Data Annex'!$K$1:$AN$1,0)),\"\")","v":0.1663153966},{"$f":"IFERROR(INDEX('Data Annex'!$K$1:$AN$1498,MATCH(IFRS9!L$1&\"|\"&IFRS9!$B41,'Data Annex'!$K$1:$K$1498,0),MATCH(IFRS9!L$2,'Data Annex'!$K$1:$AN$1,0)),\"\")","v":0.16062414659999999},{"$f":"IFERROR(INDEX('Data Annex'!$K$1:$AN$1498,MATCH(IFRS9!M$1&\"|\"&IFRS9!$B41,'Data Annex'!$K$1:$K$1498,0),MATCH(IFRS9!M$2,'Data Annex'!$K$1:$AN$1,0)),\"\")","v":2.64174041E-2},{"$f":"IFERROR(INDEX('Data Annex'!$K$1:$AN$1498,MATCH(IFRS9!N$1&\"|\"&IFRS9!$B41,'Data Annex'!$K$1:$K$1498,0),MATCH(IFRS9!N$2,'Data Annex'!$K$1:$AN$1,0)),\"\")","v":2.6137985900000001E-2},{"$f":"IFERROR(INDEX('Data Annex'!$K$1:$AN$1498,MATCH(IFRS9!O$1&\"|\"&IFRS9!$B41,'Data Annex'!$K$1:$K$1498,0),MATCH(IFRS9!O$2,'Data Annex'!$K$1:$AN$1,0)),\"\")","v":2.4573260900000001E-2},{"$f":"IFERROR(INDEX('Data Annex'!$K$1:$AN$1498,MATCH(IFRS9!P$1&\"|\"&IFRS9!$B41,'Data Annex'!$K$1:$K$1498,0),MATCH(IFRS9!P$2,'Data Annex'!$K$1:$AN$1,0)),\"\")","v":2.3370026499999998E-2},{"$f":"IFERROR(INDEX('Data Annex'!$K$1:$AN$1498,MATCH(IFRS9!Q$1&\"|\"&IFRS9!$B41,'Data Annex'!$K$1:$K$1498,0),MATCH(IFRS9!Q$2,'Data Annex'!$K$1:$AN$1,0)),\"\")","v":2.4054515E-3},{"$f":"IFERROR(INDEX('Data Annex'!$K$1:$AN$1498,MATCH(IFRS9!R$1&\"|\"&IFRS9!$B41,'Data Annex'!$K$1:$K$1498,0),MATCH(IFRS9!R$2,'Data Annex'!$K$1:$AN$1,0)),\"\")","v":2.2453425000000002E-3},{"$f":"IFERROR(INDEX('Data Annex'!$K$1:$AN$1498,MATCH(IFRS9!S$1&\"|\"&IFRS9!$B41,'Data Annex'!$K$1:$K$1498,0),MATCH(IFRS9!S$2,'Data Annex'!$K$1:$AN$1,0)),\"\")","v":2.3413682E-3},{"$f":"IFERROR(INDEX('Data Annex'!$K$1:$AN$1498,MATCH(IFRS9!T$1&\"|\"&IFRS9!$B41,'Data Annex'!$K$1:$K$1498,0),MATCH(IFRS9!T$2,'Data Annex'!$K$1:$AN$1,0)),\"\")","v":2.5224692999999999E-3},{"$f":"IFERROR(INDEX('Data Annex'!$K$1:$AN$1498,MATCH(IFRS9!U$1&\"|\"&IFRS9!$B41,'Data Annex'!$K$1:$K$1498,0),MATCH(IFRS9!U$2,'Data Annex'!$K$1:$AN$1,0)),\"\")","v":3.03547461E-2},{"$f":"IFERROR(INDEX('Data Annex'!$K$1:$AN$1498,MATCH(IFRS9!V$1&\"|\"&IFRS9!$B41,'Data Annex'!$K$1:$K$1498,0),MATCH(IFRS9!V$2,'Data Annex'!$K$1:$AN$1,0)),\"\")","v":3.03560327E-2},{"$f":"IFERROR(INDEX('Data Annex'!$K$1:$AN$1498,MATCH(IFRS9!W$1&\"|\"&IFRS9!$B41,'Data Annex'!$K$1:$K$1498,0),MATCH(IFRS9!W$2,'Data Annex'!$K$1:$AN$1,0)),\"\")","v":3.0495780699999999E-2},{"$f":"IFERROR(INDEX('Data Annex'!$K$1:$AN$1498,MATCH(IFRS9!X$1&\"|\"&IFRS9!$B41,'Data Annex'!$K$1:$K$1498,0),MATCH(IFRS9!X$2,'Data Annex'!$K$1:$AN$1,0)),\"\")","v":3.3003362600000002E-2},{"$f":"IFERROR(INDEX('Data Annex'!$K$1:$AN$1498,MATCH(IFRS9!Y$1&\"|\"&IFRS9!$B41,'Data Annex'!$K$1:$K$1498,0),MATCH(IFRS9!Y$2,'Data Annex'!$K$1:$AN$1,0)),\"\")","v":0.61262576339999997},{"$f":"IFERROR(INDEX('Data Annex'!$K$1:$AN$1498,MATCH(IFRS9!Z$1&\"|\"&IFRS9!$B41,'Data Annex'!$K$1:$K$1498,0),MATCH(IFRS9!Z$2,'Data Annex'!$K$1:$AN$1,0)),\"\")","v":0.62644804590000003},{"$f":"IFERROR(INDEX('Data Annex'!$K$1:$AN$1498,MATCH(IFRS9!AA$1&\"|\"&IFRS9!$B41,'Data Annex'!$K$1:$K$1498,0),MATCH(IFRS9!AA$2,'Data Annex'!$K$1:$AN$1,0)),\"\")","v":0.64798010289999997},{"$f":"IFERROR(INDEX('Data Annex'!$K$1:$AN$1498,MATCH(IFRS9!AB$1&\"|\"&IFRS9!$B41,'Data Annex'!$K$1:$K$1498,0),MATCH(IFRS9!AB$2,'Data Annex'!$K$1:$AN$1,0)),\"\")","v":0.62389306970000002}]
[99,"EU",null,"EU/EEA",{"$f":"IFERROR(INDEX('Data Annex'!$K$1:$AN$1498,MATCH(IFRS9!E$1&\"|\"&IFRS9!$B42,'Data Annex'!$K$1:$K$1498,0),MATCH(IFRS9!E$2,'Data Annex'!$K$1:$AN$1,0)),\"\")","v":0.89561318450000005},{"$f":"IFERROR(INDEX('Data Annex'!$K$1:$AN$1498,MATCH(IFRS9!F$1&\"|\"&IFRS9!$B42,'Data Annex'!$K$1:$K$1498,0),MATCH(IFRS9!F$2,'Data Annex'!$K$1:$AN$1,0)),\"\")","v":0.88367262449999995},{"$f":"IFERROR(INDEX('Data Annex'!$K$1:$AN$1498,MATCH(IFRS9!G$1&\"|\"&IFRS9!$B42,'Data Annex'!$K$1:$K$1498,0),MATCH(IFRS9!G$2,'Data Annex'!$K$1:$AN$1,0)),\"\")","v":0.88623255820000002},{"$f":"IFERROR(INDEX('Data Annex'!$K$1:$AN$1498,MATCH(IFRS9!H$1&\"|\"&IFRS9!$B42,'Data Annex'!$K$1:$K$1498,0),MATCH(IFRS9!H$2,'Data Annex'!$K$1:$AN$1,0)),\"\")","v":0.87775868359999998},{"$f":"IFERROR(INDEX('Data Annex'!$K$1:$AN$1498,MATCH(IFRS9!I$1&\"|\"&IFRS9!$B42,'Data Annex'!$K$1:$K$1498,0),MATCH(IFRS9!I$2,'Data Annex'!$K$1:$AN$1,0)),\"\")","v":7.0140348699999994E-2},{"$f":"IFERROR(INDEX('Data Annex'!$K$1:$AN$1498,MATCH(IFRS9!J$1&\"|\"&IFRS9!$B42,'Data Annex'!$K$1:$K$1498,0),MATCH(IFRS9!J$2,'Data Annex'!$K$1:$AN$1,0)),\"\")","v":8.1973492999999995E-2},{"$f":"IFERROR(INDEX('Data Annex'!$K$1:$AN$1498,MATCH(IFRS9!K$1&\"|\"&IFRS9!$B42,'Data Annex'!$K$1:$K$1498,0),MATCH(IFRS9!K$2,'Data Annex'!$K$1:$AN$1,0)),\"\")","v":8.0097966800000003E-2},{"$f":"IFERROR(INDEX('Data Annex'!$K$1:$AN$1498,MATCH(IFRS9!L$1&\"|\"&IFRS9!$B42,'Data Annex'!$K$1:$K$1498,0),MATCH(IFRS9!L$2,'Data Annex'!$K$1:$AN$1,0)),\"\")","v":9.0678727599999995E-2},{"$f":"IFERROR(INDEX('Data Annex'!$K$1:$AN$1498,MATCH(IFRS9!M$1&\"|\"&IFRS9!$B42,'Data Annex'!$K$1:$K$1498,0),MATCH(IFRS9!M$2,'Data Annex'!$K$1:$AN$1,0)),\"\")","v":3.42464668E-2},{"$f":"IFERROR(INDEX('Data Annex'!$K$1:$AN$1498,MATCH(IFRS9!N$1&\"|\"&IFRS9!$B42,'Data Annex'!$K$1:$K$1498,0),MATCH(IFRS9!N$2,'Data Annex'!$K$1:$AN$1,0)),\"\")","v":3.4353882400000001E-2},{"$f":"IFERROR(INDEX('Data Annex'!$K$1:$AN$1498,MATCH(IFRS9!O$1&\"|\"&IFRS9!$B42,'Data Annex'!$K$1:$K$1498,0),MATCH(IFRS9!O$2,'Data Annex'!$K$1:$AN$1,0)),\"\")","v":3.3669474999999997E-2},{"$f":"IFERROR(INDEX('Data Annex'!$K$1:$AN$1498,MATCH(IFRS9!P$1&\"|\"&IFRS9!$B42,'Data Annex'!$K$1:$K$1498,0),MATCH(IFRS9!P$2,'Data Annex'!$K$1:$AN$1,0)),\"\")","v":3.1562588799999999E-2},{"$f":"IFERROR(INDEX('Data Annex'!$K$1:$AN$1498,MATCH(IFRS9!Q$1&\"|\"&IFRS9!$B42,'Data Annex'!$K$1:$K$1498,0),MATCH(IFRS9!Q$2,'Data Annex'!$K$1:$AN$1,0)),\"\")","v":2.1293976000000001E-3},{"$f":"IFERROR(INDEX('Data Annex'!$K$1:$AN$1498,MATCH(IFRS9!R$1&\"|\"&IFRS9!$B42,'Data Annex'!$K$1:$K$1498,0),MATCH(IFRS9!R$2,'Data Annex'!$K$1:$AN$1,0)),\"\")","v":2.4226540999999998E-3},{"$f":"IFERROR(INDEX('Data Annex'!$K$1:$AN$1498,MATCH(IFRS9!S$1&\"|\"&IFRS9!$B42,'Data Annex'!$K$1:$K$1498,0),MATCH(IFRS9!S$2,'Data Annex'!$K$1:$AN$1,0)),\"\")","v":2.4050473000000001E-3},{"$f":"IFERROR(INDEX('Data Annex'!$K$1:$AN$1498,MATCH(IFRS9!T$1&\"|\"&IFRS9!$B42,'Data Annex'!$K$1:$K$1498,0),MATCH(IFRS9!T$2,'Data Annex'!$K$1:$AN$1,0)),\"\")","v":2.3611882999999998E-3},{"$f":"IFERROR(INDEX('Data Annex'!$K$1:$AN$1498,MATCH(IFRS9!U$1&\"|\"&IFRS9!$B42,'Data Annex'!$K$1:$K$1498,0),MATCH(IFRS9!U$2,'Data Annex'!$K$1:$AN$1,0)),\"\")","v":3.84752462E-2},{"$f":"IFERROR(INDEX('Data Annex'!$K$1:$AN$1498,MATCH(IFRS9!V$1&\"|\"&IFRS9!$B42,'Data Annex'!$K$1:$K$1498,0),MATCH(IFRS9!V$2,'Data Annex'!$K$1:$AN$1,0)),\"\")","v":3.8271880500000001E-2},{"$f":"IFERROR(INDEX('Data Annex'!$K$1:$AN$1498,MATCH(IFRS9!W$1&\"|\"&IFRS9!$B42,'Data Annex'!$K$1:$K$1498,0),MATCH(IFRS9!W$2,'Data Annex'!$K$1:$AN$1,0)),\"\")","v":4.0647525400000002E-2},{"$f":"IFERROR(INDEX('Data Annex'!$K$1:$AN$1498,MATCH(IFRS9!X$1&\"|\"&IFRS9!$B42,'Data Annex'!$K$1:$K$1498,0),MATCH(IFRS9!X$2,'Data Annex'!$K$1:$AN$1,0)),\"\")","v":4.0408656699999997E-2},{"$f":"IFERROR(INDEX('Data Annex'!$K$1:$AN$1498,MATCH(IFRS9!Y$1&\"|\"&IFRS9!$B42,'Data Annex'!$K$1:$K$1498,0),MATCH(IFRS9!Y$2,'Data Annex'!$K$1:$AN$1,0)),\"\")","v":0.4720975415},{"$f":"IFERROR(INDEX('Data Annex'!$K$1:$AN$1498,MATCH(IFRS9!Z$1&\"|\"&IFRS9!$B42,'Data Annex'!$K$1:$K$1498,0),MATCH(IFRS9!Z$2,'Data Annex'!$K$1:$AN$1,0)),\"\")","v":0.46669074929999999},{"$f":"IFERROR(INDEX('Data Annex'!$K$1:$AN$1498,MATCH(IFRS9!AA$1&\"|\"&IFRS9!$B42,'Data Annex'!$K$1:$K$1498,0),MATCH(IFRS9!AA$2,'Data Annex'!$K$1:$AN$1,0)),\"\")","v":0.46639574969999997},{"$f":"IFERROR(INDEX('Data Annex'!$K$1:$AN$1498,MATCH(IFRS9!AB$1&\"|\"&IFRS9!$B42,'Data Annex'!$K$1:$K$1498,0),MATCH(IFRS9!AB$2,'Data Annex'!$K$1:$AN$1,0)),\"\")","v":0.4609788695}]
[12,"GB",null,{"$f":"IF(OR(E43=\"n.a.\",F43=\"n.a.\",G43=\"n.a.\",H43=\"n.a.\",I43=\"n.a.\",J43=\"n.a.\",K43=\"n.a.\",L43=\"n.a.\",M43=\"n.a.\",N43=\"n.a.\",O43=\"n.a.\",P43=\"n.a.\",Q43=\"n.a.\",R43=\"n.a.\",S43=\"n.a.\",T43=\"n.a.\",U43=\"n.a.\",V43=\"n.a.\",W43=\"n.a.\",X43=\"n.a.\",Y43=\"n.a.\",Z43=\"n.a.\",AA43=\"n.a.\",AB43=\"n.a.\"),$B43&\"*\",$B43)","v":"GB"},{"$f":"IFERROR(INDEX('Data Annex'!$K$1:$AN$1498,MATCH(IFRS9!E$1&\"|\"&IFRS9!$B43,'Data Annex'!$K$1:$K$1498,0),MATCH(IFRS9!E$2,'Data Annex'!$K$1:$AN$1,0)),\"\")","v":0.90213828549999997},{"$f":"IFERROR(INDEX('Data Annex'!$K$1:$AN$1498,MATCH(IFRS9!F$1&\"|\"&IFRS9!$B43,'Data Annex'!$K$1:$K$1498,0),MATCH(IFRS9!F$2,'Data Annex'!$K$1:$AN$1,0)),\"\")","v":0.84334876879999998},{"$f":"IFERROR(INDEX('Data Annex'!$K$1:$AN$1498,MATCH(IFRS9!G$1&\"|\"&IFRS9!$B43,'Data Annex'!$K$1:$K$1498,0),MATCH(IFRS9!G$2,'Data Annex'!$K$1:$AN$1,0)),\"\")","v":0.84387415649999997},{"$f":"IFERROR(INDEX('Data Annex'!$K$1:$AN$1498,MATCH(IFRS9!H$1&\"|\"&IFRS9!$B43,'Data Annex'!$K$1:$K$1498,0),MATCH(IFRS9!H$2,'Data Annex'!$K$1:$AN$1,0)),\"\")","v":0.84990780519999998},{"$f":"IFERROR(INDEX('Data Annex'!$K$1:$AN$1498,MATCH(IFRS9!I$1&\"|\"&IFRS9!$B43,'Data Annex'!$K$1:$K$1498,0),MATCH(IFRS9!I$2,'Data Annex'!$K$1:$AN$1,0)),\"\")","v":8.3883647199999994E-2},{"$f":"IFERROR(INDEX('Data Annex'!$K$1:$AN$1498,MATCH(IFRS9!J$1&\"|\"&IFRS9!$B43,'Data Annex'!$K$1:$K$1498,0),MATCH(IFRS9!J$2,'Data Annex'!$K$1:$AN$1,0)),\"\")","v":0.1408134607},{"$f":"IFERROR(INDEX('Data Annex'!$K$1:$AN$1498,MATCH(IFRS9!K$1&\"|\"&IFRS9!$B43,'Data Annex'!$K$1:$K$1498,0),MATCH(IFRS9!K$2,'Data Annex'!$K$1:$AN$1,0)),\"\")","v":0.14005249889999999},{"$f":"IFERROR(INDEX('Data Annex'!$K$1:$AN$1498,MATCH(IFRS9!L$1&\"|\"&IFRS9!$B43,'Data Annex'!$K$1:$K$1498,0),MATCH(IFRS9!L$2,'Data Annex'!$K$1:$AN$1,0)),\"\")","v":0.13351754069999999},{"$f":"IFERROR(INDEX('Data Annex'!$K$1:$AN$1498,MATCH(IFRS9!M$1&\"|\"&IFRS9!$B43,'Data Annex'!$K$1:$K$1498,0),MATCH(IFRS9!M$2,'Data Annex'!$K$1:$AN$1,0)),\"\")","v":1.3978067300000001E-2},{"$f":"IFERROR(INDEX('Data Annex'!$K$1:$AN$1498,MATCH(IFRS9!N$1&\"|\"&IFRS9!$B43,'Data Annex'!$K$1:$K$1498,0),MATCH(IFRS9!N$2,'Data Annex'!$K$1:$AN$1,0)),\"\")","v":1.5837770500000001E-2},{"$f":"IFERROR(INDEX('Data Annex'!$K$1:$AN$1498,MATCH(IFRS9!O$1&\"|\"&IFRS9!$B43,'Data Annex'!$K$1:$K$1498,0),MATCH(IFRS9!O$2,'Data Annex'!$K$1:$AN$1,0)),\"\")","v":1.6073344699999999E-2},{"$f":"IFERROR(INDEX('Data Annex'!$K$1:$AN$1498,MATCH(IFRS9!P$1&\"|\"&IFRS9!$B43,'Data Annex'!$K$1:$K$1498,0),MATCH(IFRS9!P$2,'Data Annex'!$K$1:$AN$1,0)),\"\")","v":1.6574654099999999E-2},{"$f":"IFERROR(INDEX('Data Annex'!$K$1:$AN$1498,MATCH(IFRS9!Q$1&\"|\"&IFRS9!$B43,'Data Annex'!$K$1:$K$1498,0),MATCH(IFRS9!Q$2,'Data Annex'!$K$1:$AN$1,0)),\"\")","v":1.5425797999999999E-3},{"$f":"IFERROR(INDEX('Data Annex'!$K$1:$AN$1498,MATCH(IFRS9!R$1&\"|\"&IFRS9!$B43,'Data Annex'!$K$1:$K$1498,0),MATCH(IFRS9!R$2,'Data Annex'!$K$1:$AN$1,0)),\"\")","v":1.9118653000000001E-3},{"$f":"IFERROR(INDEX('Data Annex'!$K$1:$AN$1498,MATCH(IFRS9!S$1&\"|\"&IFRS9!$B43,'Data Annex'!$K$1:$K$1498,0),MATCH(IFRS9!S$2,'Data Annex'!$K$1:$AN$1,0)),\"\")","v":1.9374314E-3},{"$f":"IFERROR(INDEX('Data Annex'!$K$1:$AN$1498,MATCH(IFRS9!T$1&\"|\"&IFRS9!$B43,'Data Annex'!$K$1:$K$1498,0),MATCH(IFRS9!T$2,'Data Annex'!$K$1:$AN$1,0)),\"\")","v":2.0181007999999999E-3},{"$f":"IFERROR(INDEX('Data Annex'!$K$1:$AN$1498,MATCH(IFRS9!U$1&\"|\"&IFRS9!$B43,'Data Annex'!$K$1:$K$1498,0),MATCH(IFRS9!U$2,'Data Annex'!$K$1:$AN$1,0)),\"\")","v":3.4290978600000001E-2},{"$f":"IFERROR(INDEX('Data Annex'!$K$1:$AN$1498,MATCH(IFRS9!V$1&\"|\"&IFRS9!$B43,'Data Annex'!$K$1:$K$1498,0),MATCH(IFRS9!V$2,'Data Annex'!$K$1:$AN$1,0)),\"\")","v":3.1567975900000003E-2},{"$f":"IFERROR(INDEX('Data Annex'!$K$1:$AN$1498,MATCH(IFRS9!W$1&\"|\"&IFRS9!$B43,'Data Annex'!$K$1:$K$1498,0),MATCH(IFRS9!W$2,'Data Annex'!$K$1:$AN$1,0)),\"\")","v":3.2670715900000001E-2},{"$f":"IFERROR(INDEX('Data Annex'!$K$1:$AN$1498,MATCH(IFRS9!X$1&\"|\"&IFRS9!$B43,'Data Annex'!$K$1:$K$1498,0),MATCH(IFRS9!X$2,'Data Annex'!$K$1:$AN$1,0)),\"\")","v":3.4940461999999999E-2},{"$f":"IFERROR(INDEX('Data Annex'!$K$1:$AN$1498,MATCH(IFRS9!Y$1&\"|\"&IFRS9!$B43,'Data Annex'!$K$1:$K$1498,0),MATCH(IFRS9!Y$2,'Data Annex'!$K$1:$AN$1,0)),\"\")","v":0.39036688689999999},{"$f":"IFERROR(INDEX('Data Annex'!$K$1:$AN$1498,MATCH(IFRS9!Z$1&\"|\"&IFRS9!$B43,'Data Annex'!$K$1:$K$1498,0),MATCH(IFRS9!Z$2,'Data Annex'!$K$1:$AN$1,0)),\"\")","v":0.38843607530000002},{"$f":"IFERROR(INDEX('Data Annex'!$K$1:$AN$1498,MATCH(IFRS9!AA$1&\"|\"&IFRS9!$B43,'Data Annex'!$K$1:$K$1498,0),MATCH(IFRS9!AA$2,'Data Annex'!$K$1:$AN$1,0)),\"\")","v":0.38544192770000002},{"$f":"IFERROR(INDEX('Data Annex'!$K$1:$AN$1498,MATCH(IFRS9!AB$1&\"|\"&IFRS9!$B43,'Data Annex'!$K$1:$K$1498,0),MATCH(IFRS9!AB$2,'Data Annex'!$K$1:$AN$1,0)),\"\")","v":0.37773825640000003},{"$f":"IFERROR(INDEX('Data Annex'!$K$1:$AH$869,MATCH(IFRS9!AC$1&\"|\"&IFRS9!$B43,'Data Annex'!$K$1:$K$869,0),MATCH(IFRS9!AC$2,'Data Annex'!$K$1:$AH$1,0)),\"\")","v":""}]
[]
[]
[null,null,null,null,null,"T14_0","T14_0","T14_0","T14_0","T14_1","T14_1","T14_1","T14_1","T14_2","T14_2","T14_2","T14_2","T14_3","T14_3","T14_3","T14_3"]
[null,null,null,null,null,{"$f":"TEXT(F52,\"YYYYMM\")+0","v":202003},{"$f":"TEXT(G52,\"YYYYMM\")+0","v":202006},{"$f":"TEXT(H52,\"YYYYMM\")+0","v":202009},{"$f":"TEXT(I52,\"YYYYMM\")+0","v":202012},{"$f":"TEXT(J52,\"YYYYMM\")+0","v":202003},202006,202009,202012,202003,202006,202009,202012,202003,202006,202009,202012]
[null,null,null,"Fair valued financial assets"]
[]
[null,null,null,"Volumes bn EUR, % as share of fair value financial assets"]
[null,null,null,null,null,"Total fair valued financial assets",null,null,null,"Level 1 financial assets",null,null,null,"Level 2 financial assets",null,null,null,"Level 3 financial assets"]
[null,null,null,null,null,{"$f":"EOMONTH($A$3,-9)","v":"2020-03-31"},{"$f":"EOMONTH($A$3,-6)","v":"2020-06-30"},{"$f":"EOMONTH($A$3,-3)","v":"2020-09-30"},{"$f":"$A$3","v":"2020-12-01"},{"$f":"EOMONTH($A$3,-9)","v":"2020-03-31"},{"$f":"EOMONTH($A$3,-6)","v":"2020-06-30"},{"$f":"EOMONTH($A$3,-3)","v":"2020-09-30"},{"$f":"$A$3","v":"2020-12-01"},{"$f":"EOMONTH($A$3,-9)","v":"2020-03-31"},{"$f":"EOMONTH($A$3,-6)","v":"2020-06-30"},{"$f":"EOMONTH($A$3,-3)","v":"2020-09-30"},{"$f":"$A$3","v":"2020-12-01"},{"$f":"EOMONTH($A$3,-9)","v":"2020-03-31"},{"$f":"EOMONTH($A$3,-6)","v":"2020-06-30"},{"$f":"EOMONTH($A$3,-3)","v":"2020-09-30"},{"$f":"$A$3","v":"2020-12-01"}]
[1,"AT",null,{"$f":"IF(OR(J53=\"n.a.\",K53=\"n.a.\",L53=\"n.a.\",M53=\"n.a.\",N53=\"n.a.\",O53=\"n.a.\",P53=\"n.a.\",Q53=\"n.a.\"),$B53&\"*\",$B53)","v":"AT"},null,{"$f":"IFERROR(INDEX('Data Annex'!$K$1:$AN$1498,MATCH(IFRS9!F$46&\"|\"&IFRS9!$B53,'Data Annex'!$K$1:$K$1498,0),MATCH(IFRS9!F$47,'Data Annex'!$K$1:$AN$1,0)),\"\")","v":68.652129435999996},{"$f":"IFERROR(INDEX('Data Annex'!$K$1:$AN$1498,MATCH(IFRS9!G$46&\"|\"&IFRS9!$B53,'Data Annex'!$K$1:$K$1498,0),MATCH(IFRS9!G$47,'Data Annex'!$K$1:$AN$1,0)),\"\")","v":68.115515564999995},{"$f":"IFERROR(INDEX('Data Annex'!$K$1:$AN$1498,MATCH(IFRS9!H$46&\"|\"&IFRS9!$B53,'Data Annex'!$K$1:$K$1498,0),MATCH(IFRS9!H$47,'Data Annex'!$K$1:$AN$1,0)),\"\")","v":64.176216578999998},{"$f":"IFERROR(INDEX('Data Annex'!$K$1:$AN$1498,MATCH(IFRS9!I$46&\"|\"&IFRS9!$B53,'Data Annex'!$K$1:$K$1498,0),MATCH(IFRS9!I$47,'Data Annex'!$K$1:$AN$1,0)),\"\")","v":62.899641303000003},{"$f":"IFERROR(INDEX('Data Annex'!$K$1:$AN$1498,MATCH(IFRS9!J$46&\"|\"&IFRS9!$B53,'Data Annex'!$K$1:$K$1498,0),MATCH(IFRS9!J$47,'Data Annex'!$K$1:$AN$1,0)),\"\")","v":0.61828723819999998},{"$f":"IFERROR(INDEX('Data Annex'!$K$1:$AN$1498,MATCH(IFRS9!K$46&\"|\"&IFRS9!$B53,'Data Annex'!$K$1:$K$1498,0),MATCH(IFRS9!K$47,'Data Annex'!$K$1:$AN$1,0)),\"\")","v":0.61721219679999995},{"$f":"IFERROR(INDEX('Data Annex'!$K$1:$AN$1498,MATCH(IFRS9!L$46&\"|\"&IFRS9!$B53,'Data Annex'!$K$1:$K$1498,0),MATCH(IFRS9!L$47,'Data Annex'!$K$1:$AN$1,0)),\"\")","v":0.59013096850000002},{"$f":"IFERROR(INDEX('Data Annex'!$K$1:$AN$1498,MATCH(IFRS9!M$46&\"|\"&IFRS9!$B53,'Data Annex'!$K$1:$K$1498,0),MATCH(IFRS9!M$47,'Data Annex'!$K$1:$AN$1,0)),\"\")","v":0.6108199151},{"$f":"IFERROR(INDEX('Data Annex'!$K$1:$AN$1498,MATCH(IFRS9!N$46&\"|\"&IFRS9!$B53,'Data Annex'!$K$1:$K$1498,0),MATCH(IFRS9!N$47,'Data Annex'!$K$1:$AN$1,0)),\"\")","v":0.30975193379999999},{"$f":"IFERROR(INDEX('Data Annex'!$K$1:$AN$1498,MATCH(IFRS9!O$46&\"|\"&IFRS9!$B53,'Data Annex'!$K$1:$K$1498,0),MATCH(IFRS9!O$47,'Data Annex'!$K$1:$AN$1,0)),\"\")","v":0.30655016340000002},{"$f":"IFERROR(INDEX('Data Annex'!$K$1:$AN$1498,MATCH(IFRS9!P$46&\"|\"&IFRS9!$B53,'Data Annex'!$K$1:$K$1498,0),MATCH(IFRS9!P$47,'Data Annex'!$K$1:$AN$1,0)),\"\")","v":0.33309078939999998},{"$f":"IFERROR(INDEX('Data Annex'!$K$1:$AN$1498,MATCH(IFRS9!Q$46&\"|\"&IFRS9!$B53,'Data Annex'!$K$1:$K$1498,0),MATCH(IFRS9!Q$47,'Data Annex'!$K$1:$AN$1,0)),\"\")","v":0.31340664579999999},{"$f":"IFERROR(INDEX('Data Annex'!$K$1:$AN$1498,MATCH(IFRS9!R$46&\"|\"&IFRS9!$B53,'Data Annex'!$K$1:$K$1498,0),MATCH(IFRS9!R$47,'Data Annex'!$K$1:$AN$1,0)),\"\")","v":7.1960828000000004E-2},{"$f":"IFERROR(INDEX('Data Annex'!$K$1:$AN$1498,MATCH(IFRS9!S$46&\"|\"&IFRS9!$B53,'Data Annex'!$K$1:$K$1498,0),MATCH(IFRS9!S$47,'Data Annex'!$K$1:$AN$1,0)),\"\")","v":7.6237639800000007E-2},{"$f":"IFERROR(INDEX('Data Annex'!$K$1:$AN$1498,MATCH(IFRS9!T$46&\"|\"&IFRS9!$B53,'Data Annex'!$K$1:$K$1498,0),MATCH(IFRS9!T$47,'Data Annex'!$K$1:$AN$1,0)),\"\")","v":7.6778242199999999E-2},{"$f":"IFERROR(INDEX('Data Annex'!$K$1:$AN$1498,MATCH(IFRS9!U$46&\"|\"&IFRS9!$B53,'Data Annex'!$K$1:$K$1498,0),MATCH(IFRS9!U$47,'Data Annex'!$K$1:$AN$1,0)),\"\")","v":7.5773439100000006E-2}]
[2,"BE",null,"BE",null,{"$f":"IFERROR(INDEX('Data Annex'!$K$1:$AN$1498,MATCH(IFRS9!F$46&\"|\"&IFRS9!$B54,'Data Annex'!$K$1:$K$1498,0),MATCH(IFRS9!F$47,'Data Annex'!$K$1:$AN$1,0)),\"\")","v":128.84207545000001},{"$f":"IFERROR(INDEX('Data Annex'!$K$1:$AN$1498,MATCH(IFRS9!G$46&\"|\"&IFRS9!$B54,'Data Annex'!$K$1:$K$1498,0),MATCH(IFRS9!G$47,'Data Annex'!$K$1:$AN$1,0)),\"\")","v":128.26534746999999},{"$f":"IFERROR(INDEX('Data Annex'!$K$1:$AN$1498,MATCH(IFRS9!H$46&\"|\"&IFRS9!$B54,'Data Annex'!$K$1:$K$1498,0),MATCH(IFRS9!H$47,'Data Annex'!$K$1:$AN$1,0)),\"\")","v":121.21322059000001},{"$f":"IFERROR(INDEX('Data Annex'!$K$1:$AN$1498,MATCH(IFRS9!I$46&\"|\"&IFRS9!$B54,'Data Annex'!$K$1:$K$1498,0),MATCH(IFRS9!I$47,'Data Annex'!$K$1:$AN$1,0)),\"\")","v":110.10655807000001},{"$f":"IFERROR(INDEX('Data Annex'!$K$1:$AN$1498,MATCH(IFRS9!J$46&\"|\"&IFRS9!$B54,'Data Annex'!$K$1:$K$1498,0),MATCH(IFRS9!J$47,'Data Annex'!$K$1:$AN$1,0)),\"\")","v":0.30984338480000001},{"$f":"IFERROR(INDEX('Data Annex'!$K$1:$AN$1498,MATCH(IFRS9!K$46&\"|\"&IFRS9!$B54,'Data Annex'!$K$1:$K$1498,0),MATCH(IFRS9!K$47,'Data Annex'!$K$1:$AN$1,0)),\"\")","v":0.33222986069999999},{"$f":"IFERROR(INDEX('Data Annex'!$K$1:$AN$1498,MATCH(IFRS9!L$46&\"|\"&IFRS9!$B54,'Data Annex'!$K$1:$K$1498,0),MATCH(IFRS9!L$47,'Data Annex'!$K$1:$AN$1,0)),\"\")","v":0.33429803120000001},{"$f":"IFERROR(INDEX('Data Annex'!$K$1:$AN$1498,MATCH(IFRS9!M$46&\"|\"&IFRS9!$B54,'Data Annex'!$K$1:$K$1498,0),MATCH(IFRS9!M$47,'Data Annex'!$K$1:$AN$1,0)),\"\")","v":0.35534477279999999},{"$f":"IFERROR(INDEX('Data Annex'!$K$1:$AN$1498,MATCH(IFRS9!N$46&\"|\"&IFRS9!$B54,'Data Annex'!$K$1:$K$1498,0),MATCH(IFRS9!N$47,'Data Annex'!$K$1:$AN$1,0)),\"\")","v":0.59602331590000002},{"$f":"IFERROR(INDEX('Data Annex'!$K$1:$AN$1498,MATCH(IFRS9!O$46&\"|\"&IFRS9!$B54,'Data Annex'!$K$1:$K$1498,0),MATCH(IFRS9!O$47,'Data Annex'!$K$1:$AN$1,0)),\"\")","v":0.57537574420000004},{"$f":"IFERROR(INDEX('Data Annex'!$K$1:$AN$1498,MATCH(IFRS9!P$46&\"|\"&IFRS9!$B54,'Data Annex'!$K$1:$K$1498,0),MATCH(IFRS9!P$47,'Data Annex'!$K$1:$AN$1,0)),\"\")","v":0.5544711202},{"$f":"IFERROR(INDEX('Data Annex'!$K$1:$AN$1498,MATCH(IFRS9!Q$46&\"|\"&IFRS9!$B54,'Data Annex'!$K$1:$K$1498,0),MATCH(IFRS9!Q$47,'Data Annex'!$K$1:$AN$1,0)),\"\")","v":0.5485372583},{"$f":"IFERROR(INDEX('Data Annex'!$K$1:$AN$1498,MATCH(IFRS9!R$46&\"|\"&IFRS9!$B54,'Data Annex'!$K$1:$K$1498,0),MATCH(IFRS9!R$47,'Data Annex'!$K$1:$AN$1,0)),\"\")","v":9.4133299300000001E-2},{"$f":"IFERROR(INDEX('Data Annex'!$K$1:$AN$1498,MATCH(IFRS9!S$46&\"|\"&IFRS9!$B54,'Data Annex'!$K$1:$K$1498,0),MATCH(IFRS9!S$47,'Data Annex'!$K$1:$AN$1,0)),\"\")","v":9.2394395099999999E-2},{"$f":"IFERROR(INDEX('Data Annex'!$K$1:$AN$1498,MATCH(IFRS9!T$46&\"|\"&IFRS9!$B54,'Data Annex'!$K$1:$K$1498,0),MATCH(IFRS9!T$47,'Data Annex'!$K$1:$AN$1,0)),\"\")","v":0.1112308486},{"$f":"IFERROR(INDEX('Data Annex'!$K$1:$AN$1498,MATCH(IFRS9!U$46&\"|\"&IFRS9!$B54,'Data Annex'!$K$1:$K$1498,0),MATCH(IFRS9!U$47,'Data Annex'!$K$1:$AN$1,0)),\"\")","v":9.6117968900000003E-2}]
[3,"BG",null,"BG",null,{"$f":"IFERROR(INDEX('Data Annex'!$K$1:$AN$1498,MATCH(IFRS9!F$46&\"|\"&IFRS9!$B55,'Data Annex'!$K$1:$K$1498,0),MATCH(IFRS9!F$47,'Data Annex'!$K$1:$AN$1,0)),\"\")","v":4.1283878720000002},{"$f":"IFERROR(INDEX('Data Annex'!$K$1:$AN$1498,MATCH(IFRS9!G$46&\"|\"&IFRS9!$B55,'Data Annex'!$K$1:$K$1498,0),MATCH(IFRS9!G$47,'Data Annex'!$K$1:$AN$1,0)),\"\")","v":4.0623284588999997},{"$f":"IFERROR(INDEX('Data Annex'!$K$1:$AN$1498,MATCH(IFRS9!H$46&\"|\"&IFRS9!$B55,'Data Annex'!$K$1:$K$1498,0),MATCH(IFRS9!H$47,'Data Annex'!$K$1:$AN$1,0)),\"\")","v":4.0701830453000003},{"$f":"IFERROR(INDEX('Data Annex'!$K$1:$AN$1498,MATCH(IFRS9!I$46&\"|\"&IFRS9!$B55,'Data Annex'!$K$1:$K$1498,0),MATCH(IFRS9!I$47,'Data Annex'!$K$1:$AN$1,0)),\"\")","v":4.0983316289999996},{"$f":"IFERROR(INDEX('Data Annex'!$K$1:$AN$1498,MATCH(IFRS9!J$46&\"|\"&IFRS9!$B55,'Data Annex'!$K$1:$K$1498,0),MATCH(IFRS9!J$47,'Data Annex'!$K$1:$AN$1,0)),\"\")","v":0.76209098470000003},{"$f":"IFERROR(INDEX('Data Annex'!$K$1:$AN$1498,MATCH(IFRS9!K$46&\"|\"&IFRS9!$B55,'Data Annex'!$K$1:$K$1498,0),MATCH(IFRS9!K$47,'Data Annex'!$K$1:$AN$1,0)),\"\")","v":0.73774056020000001},{"$f":"IFERROR(INDEX('Data Annex'!$K$1:$AN$1498,MATCH(IFRS9!L$46&\"|\"&IFRS9!$B55,'Data Annex'!$K$1:$K$1498,0),MATCH(IFRS9!L$47,'Data Annex'!$K$1:$AN$1,0)),\"\")","v":0.77589597789999998},{"$f":"IFERROR(INDEX('Data Annex'!$K$1:$AN$1498,MATCH(IFRS9!M$46&\"|\"&IFRS9!$B55,'Data Annex'!$K$1:$K$1498,0),MATCH(IFRS9!M$47,'Data Annex'!$K$1:$AN$1,0)),\"\")","v":0.77653281750000003},{"$f":"IFERROR(INDEX('Data Annex'!$K$1:$AN$1498,MATCH(IFRS9!N$46&\"|\"&IFRS9!$B55,'Data Annex'!$K$1:$K$1498,0),MATCH(IFRS9!N$47,'Data Annex'!$K$1:$AN$1,0)),\"\")","v":0.22610737450000001},{"$f":"IFERROR(INDEX('Data Annex'!$K$1:$AN$1498,MATCH(IFRS9!O$46&\"|\"&IFRS9!$B55,'Data Annex'!$K$1:$K$1498,0),MATCH(IFRS9!O$47,'Data Annex'!$K$1:$AN$1,0)),\"\")","v":0.249874451},{"$f":"IFERROR(INDEX('Data Annex'!$K$1:$AN$1498,MATCH(IFRS9!P$46&\"|\"&IFRS9!$B55,'Data Annex'!$K$1:$K$1498,0),MATCH(IFRS9!P$47,'Data Annex'!$K$1:$AN$1,0)),\"\")","v":0.2135609181},{"$f":"IFERROR(INDEX('Data Annex'!$K$1:$AN$1498,MATCH(IFRS9!Q$46&\"|\"&IFRS9!$B55,'Data Annex'!$K$1:$K$1498,0),MATCH(IFRS9!Q$47,'Data Annex'!$K$1:$AN$1,0)),\"\")","v":0.21252353399999999},{"$f":"IFERROR(INDEX('Data Annex'!$K$1:$AN$1498,MATCH(IFRS9!R$46&\"|\"&IFRS9!$B55,'Data Annex'!$K$1:$K$1498,0),MATCH(IFRS9!R$47,'Data Annex'!$K$1:$AN$1,0)),\"\")","v":1.1801640800000001E-2},{"$f":"IFERROR(INDEX('Data Annex'!$K$1:$AN$1498,MATCH(IFRS9!S$46&\"|\"&IFRS9!$B55,'Data Annex'!$K$1:$K$1498,0),MATCH(IFRS9!S$47,'Data Annex'!$K$1:$AN$1,0)),\"\")","v":1.2384988899999999E-2},{"$f":"IFERROR(INDEX('Data Annex'!$K$1:$AN$1498,MATCH(IFRS9!T$46&\"|\"&IFRS9!$B55,'Data Annex'!$K$1:$K$1498,0),MATCH(IFRS9!T$47,'Data Annex'!$K$1:$AN$1,0)),\"\")","v":1.0543103999999999E-2},{"$f":"IFERROR(INDEX('Data Annex'!$K$1:$AN$1498,MATCH(IFRS9!U$46&\"|\"&IFRS9!$B55,'Data Annex'!$K$1:$K$1498,0),MATCH(IFRS9!U$47,'Data Annex'!$K$1:$AN$1,0)),\"\")","v":1.09436484E-2}]
[4,"CY",null,"CY",null,{"$f":"IFERROR(INDEX('Data Annex'!$K$1:$AN$1498,MATCH(IFRS9!F$46&\"|\"&IFRS9!$B56,'Data Annex'!$K$1:$K$1498,0),MATCH(IFRS9!F$47,'Data Annex'!$K$1:$AN$1,0)),\"\")","v":1.670129},{"$f":"IFERROR(INDEX('Data Annex'!$K$1:$AN$1498,MATCH(IFRS9!G$46&\"|\"&IFRS9!$B56,'Data Annex'!$K$1:$K$1498,0),MATCH(IFRS9!G$47,'Data Annex'!$K$1:$AN$1,0)),\"\")","v":1.507760373},{"$f":"IFERROR(INDEX('Data Annex'!$K$1:$AN$1498,MATCH(IFRS9!H$46&\"|\"&IFRS9!$B56,'Data Annex'!$K$1:$K$1498,0),MATCH(IFRS9!H$47,'Data Annex'!$K$1:$AN$1,0)),\"\")","v":1.4569516245},{"$f":"IFERROR(INDEX('Data Annex'!$K$1:$AN$1498,MATCH(IFRS9!I$46&\"|\"&IFRS9!$B56,'Data Annex'!$K$1:$K$1498,0),MATCH(IFRS9!I$47,'Data Annex'!$K$1:$AN$1,0)),\"\")","v":1.2788481067999999},{"$f":"IFERROR(INDEX('Data Annex'!$K$1:$AN$1498,MATCH(IFRS9!J$46&\"|\"&IFRS9!$B56,'Data Annex'!$K$1:$K$1498,0),MATCH(IFRS9!J$47,'Data Annex'!$K$1:$AN$1,0)),\"\")","v":0.78374245340000004},{"$f":"IFERROR(INDEX('Data Annex'!$K$1:$AN$1498,MATCH(IFRS9!K$46&\"|\"&IFRS9!$B56,'Data Annex'!$K$1:$K$1498,0),MATCH(IFRS9!K$47,'Data Annex'!$K$1:$AN$1,0)),\"\")","v":0.75653863200000004},{"$f":"IFERROR(INDEX('Data Annex'!$K$1:$AN$1498,MATCH(IFRS9!L$46&\"|\"&IFRS9!$B56,'Data Annex'!$K$1:$K$1498,0),MATCH(IFRS9!L$47,'Data Annex'!$K$1:$AN$1,0)),\"\")","v":0.74449581099999995},{"$f":"IFERROR(INDEX('Data Annex'!$K$1:$AN$1498,MATCH(IFRS9!M$46&\"|\"&IFRS9!$B56,'Data Annex'!$K$1:$K$1498,0),MATCH(IFRS9!M$47,'Data Annex'!$K$1:$AN$1,0)),\"\")","v":0.7105018729},{"$f":"IFERROR(INDEX('Data Annex'!$K$1:$AN$1498,MATCH(IFRS9!N$46&\"|\"&IFRS9!$B56,'Data Annex'!$K$1:$K$1498,0),MATCH(IFRS9!N$47,'Data Annex'!$K$1:$AN$1,0)),\"\")","v":1.5461679900000001E-2},{"$f":"IFERROR(INDEX('Data Annex'!$K$1:$AN$1498,MATCH(IFRS9!O$46&\"|\"&IFRS9!$B56,'Data Annex'!$K$1:$K$1498,0),MATCH(IFRS9!O$47,'Data Annex'!$K$1:$AN$1,0)),\"\")","v":1.2271856500000001E-2},{"$f":"IFERROR(INDEX('Data Annex'!$K$1:$AN$1498,MATCH(IFRS9!P$46&\"|\"&IFRS9!$B56,'Data Annex'!$K$1:$K$1498,0),MATCH(IFRS9!P$47,'Data Annex'!$K$1:$AN$1,0)),\"\")","v":1.57233141E-2},{"$f":"IFERROR(INDEX('Data Annex'!$K$1:$AN$1498,MATCH(IFRS9!Q$46&\"|\"&IFRS9!$B56,'Data Annex'!$K$1:$K$1498,0),MATCH(IFRS9!Q$47,'Data Annex'!$K$1:$AN$1,0)),\"\")","v":2.0308385200000001E-2},{"$f":"IFERROR(INDEX('Data Annex'!$K$1:$AN$1498,MATCH(IFRS9!R$46&\"|\"&IFRS9!$B56,'Data Annex'!$K$1:$K$1498,0),MATCH(IFRS9!R$47,'Data Annex'!$K$1:$AN$1,0)),\"\")","v":0.20079586669999999},{"$f":"IFERROR(INDEX('Data Annex'!$K$1:$AN$1498,MATCH(IFRS9!S$46&\"|\"&IFRS9!$B56,'Data Annex'!$K$1:$K$1498,0),MATCH(IFRS9!S$47,'Data Annex'!$K$1:$AN$1,0)),\"\")","v":0.23118951139999999},{"$f":"IFERROR(INDEX('Data Annex'!$K$1:$AN$1498,MATCH(IFRS9!T$46&\"|\"&IFRS9!$B56,'Data Annex'!$K$1:$K$1498,0),MATCH(IFRS9!T$47,'Data Annex'!$K$1:$AN$1,0)),\"\")","v":0.2397808749},{"$f":"IFERROR(INDEX('Data Annex'!$K$1:$AN$1498,MATCH(IFRS9!U$46&\"|\"&IFRS9!$B56,'Data Annex'!$K$1:$K$1498,0),MATCH(IFRS9!U$47,'Data Annex'!$K$1:$AN$1,0)),\"\")","v":0.2691897419}]
[5,"CZ",null,"CZ",null,{"$f":"IFERROR(INDEX('Data Annex'!$K$1:$AN$1498,MATCH(IFRS9!F$46&\"|\"&IFRS9!$B57,'Data Annex'!$K$1:$K$1498,0),MATCH(IFRS9!F$47,'Data Annex'!$K$1:$AN$1,0)),\"\")","v":8.6582926925999999},{"$f":"IFERROR(INDEX('Data Annex'!$K$1:$AN$1498,MATCH(IFRS9!G$46&\"|\"&IFRS9!$B57,'Data Annex'!$K$1:$K$1498,0),MATCH(IFRS9!G$47,'Data Annex'!$K$1:$AN$1,0)),\"\")","v":10.042758150999999},{"$f":"IFERROR(INDEX('Data Annex'!$K$1:$AN$1498,MATCH(IFRS9!H$46&\"|\"&IFRS9!$B57,'Data Annex'!$K$1:$K$1498,0),MATCH(IFRS9!H$47,'Data Annex'!$K$1:$AN$1,0)),\"\")","v":9.2467788022999997},{"$f":"IFERROR(INDEX('Data Annex'!$K$1:$AN$1498,MATCH(IFRS9!I$46&\"|\"&IFRS9!$B57,'Data Annex'!$K$1:$K$1498,0),MATCH(IFRS9!I$47,'Data Annex'!$K$1:$AN$1,0)),\"\")","v":7.1251973666000001},{"$f":"IFERROR(INDEX('Data Annex'!$K$1:$AN$1498,MATCH(IFRS9!J$46&\"|\"&IFRS9!$B57,'Data Annex'!$K$1:$K$1498,0),MATCH(IFRS9!J$47,'Data Annex'!$K$1:$AN$1,0)),\"\")","v":0.27203941640000001},{"$f":"IFERROR(INDEX('Data Annex'!$K$1:$AN$1498,MATCH(IFRS9!K$46&\"|\"&IFRS9!$B57,'Data Annex'!$K$1:$K$1498,0),MATCH(IFRS9!K$47,'Data Annex'!$K$1:$AN$1,0)),\"\")","v":0.30885659500000001},{"$f":"IFERROR(INDEX('Data Annex'!$K$1:$AN$1498,MATCH(IFRS9!L$46&\"|\"&IFRS9!$B57,'Data Annex'!$K$1:$K$1498,0),MATCH(IFRS9!L$47,'Data Annex'!$K$1:$AN$1,0)),\"\")","v":0.32448290730000001},{"$f":"IFERROR(INDEX('Data Annex'!$K$1:$AN$1498,MATCH(IFRS9!M$46&\"|\"&IFRS9!$B57,'Data Annex'!$K$1:$K$1498,0),MATCH(IFRS9!M$47,'Data Annex'!$K$1:$AN$1,0)),\"\")","v":0.39451837249999999},{"$f":"IFERROR(INDEX('Data Annex'!$K$1:$AN$1498,MATCH(IFRS9!N$46&\"|\"&IFRS9!$B57,'Data Annex'!$K$1:$K$1498,0),MATCH(IFRS9!N$47,'Data Annex'!$K$1:$AN$1,0)),\"\")","v":0.68773167800000001},{"$f":"IFERROR(INDEX('Data Annex'!$K$1:$AN$1498,MATCH(IFRS9!O$46&\"|\"&IFRS9!$B57,'Data Annex'!$K$1:$K$1498,0),MATCH(IFRS9!O$47,'Data Annex'!$K$1:$AN$1,0)),\"\")","v":0.65288101210000005},{"$f":"IFERROR(INDEX('Data Annex'!$K$1:$AN$1498,MATCH(IFRS9!P$46&\"|\"&IFRS9!$B57,'Data Annex'!$K$1:$K$1498,0),MATCH(IFRS9!P$47,'Data Annex'!$K$1:$AN$1,0)),\"\")","v":0.63551317549999997},{"$f":"IFERROR(INDEX('Data Annex'!$K$1:$AN$1498,MATCH(IFRS9!Q$46&\"|\"&IFRS9!$B57,'Data Annex'!$K$1:$K$1498,0),MATCH(IFRS9!Q$47,'Data Annex'!$K$1:$AN$1,0)),\"\")","v":0.55551088289999995},{"$f":"IFERROR(INDEX('Data Annex'!$K$1:$AN$1498,MATCH(IFRS9!R$46&\"|\"&IFRS9!$B57,'Data Annex'!$K$1:$K$1498,0),MATCH(IFRS9!R$47,'Data Annex'!$K$1:$AN$1,0)),\"\")","v":4.0228905600000003E-2},{"$f":"IFERROR(INDEX('Data Annex'!$K$1:$AN$1498,MATCH(IFRS9!S$46&\"|\"&IFRS9!$B57,'Data Annex'!$K$1:$K$1498,0),MATCH(IFRS9!S$47,'Data Annex'!$K$1:$AN$1,0)),\"\")","v":3.8262392899999997E-2},{"$f":"IFERROR(INDEX('Data Annex'!$K$1:$AN$1498,MATCH(IFRS9!T$46&\"|\"&IFRS9!$B57,'Data Annex'!$K$1:$K$1498,0),MATCH(IFRS9!T$47,'Data Annex'!$K$1:$AN$1,0)),\"\")","v":4.0003917299999997E-2},{"$f":"IFERROR(INDEX('Data Annex'!$K$1:$AN$1498,MATCH(IFRS9!U$46&\"|\"&IFRS9!$B57,'Data Annex'!$K$1:$K$1498,0),MATCH(IFRS9!U$47,'Data Annex'!$K$1:$AN$1,0)),\"\")","v":4.9970744599999999E-2}]
[6,"DE",null,"DE",null,{"$f":"IFERROR(INDEX('Data Annex'!$K$1:$AN$1498,MATCH(IFRS9!F$46&\"|\"&IFRS9!$B58,'Data Annex'!$K$1:$K$1498,0),MATCH(IFRS9!F$47,'Data Annex'!$K$1:$AN$1,0)),\"\")","v":1218.0500347},{"$f":"IFERROR(INDEX('Data Annex'!$K$1:$AN$1498,MATCH(IFRS9!G$46&\"|\"&IFRS9!$B58,'Data Annex'!$K$1:$K$1498,0),MATCH(IFRS9!G$47,'Data Annex'!$K$1:$AN$1,0)),\"\")","v":1163.2747072},{"$f":"IFERROR(INDEX('Data Annex'!$K$1:$AN$1498,MATCH(IFRS9!H$46&\"|\"&IFRS9!$B58,'Data Annex'!$K$1:$K$1498,0),MATCH(IFRS9!H$47,'Data Annex'!$K$1:$AN$1,0)),\"\")","v":1125.7513629},{"$f":"IFERROR(INDEX('Data Annex'!$K$1:$AN$1498,MATCH(IFRS9!I$46&\"|\"&IFRS9!$B58,'Data Annex'!$K$1:$K$1498,0),MATCH(IFRS9!I$47,'Data Annex'!$K$1:$AN$1,0)),\"\")","v":1085.6724108000001},{"$f":"IFERROR(INDEX('Data Annex'!$K$1:$AN$1498,MATCH(IFRS9!J$46&\"|\"&IFRS9!$B58,'Data Annex'!$K$1:$K$1498,0),MATCH(IFRS9!J$47,'Data Annex'!$K$1:$AN$1,0)),\"\")","v":0.1968057554},{"$f":"IFERROR(INDEX('Data Annex'!$K$1:$AN$1498,MATCH(IFRS9!K$46&\"|\"&IFRS9!$B58,'Data Annex'!$K$1:$K$1498,0),MATCH(IFRS9!K$47,'Data Annex'!$K$1:$AN$1,0)),\"\")","v":0.21561527589999999},{"$f":"IFERROR(INDEX('Data Annex'!$K$1:$AN$1498,MATCH(IFRS9!L$46&\"|\"&IFRS9!$B58,'Data Annex'!$K$1:$K$1498,0),MATCH(IFRS9!L$47,'Data Annex'!$K$1:$AN$1,0)),\"\")","v":0.21007500009999999},{"$f":"IFERROR(INDEX('Data Annex'!$K$1:$AN$1498,MATCH(IFRS9!M$46&\"|\"&IFRS9!$B58,'Data Annex'!$K$1:$K$1498,0),MATCH(IFRS9!M$47,'Data Annex'!$K$1:$AN$1,0)),\"\")","v":0.21071146539999999},{"$f":"IFERROR(INDEX('Data Annex'!$K$1:$AN$1498,MATCH(IFRS9!N$46&\"|\"&IFRS9!$B58,'Data Annex'!$K$1:$K$1498,0),MATCH(IFRS9!N$47,'Data Annex'!$K$1:$AN$1,0)),\"\")","v":0.74514184080000001},{"$f":"IFERROR(INDEX('Data Annex'!$K$1:$AN$1498,MATCH(IFRS9!O$46&\"|\"&IFRS9!$B58,'Data Annex'!$K$1:$K$1498,0),MATCH(IFRS9!O$47,'Data Annex'!$K$1:$AN$1,0)),\"\")","v":0.73409602060000001},{"$f":"IFERROR(INDEX('Data Annex'!$K$1:$AN$1498,MATCH(IFRS9!P$46&\"|\"&IFRS9!$B58,'Data Annex'!$K$1:$K$1498,0),MATCH(IFRS9!P$47,'Data Annex'!$K$1:$AN$1,0)),\"\")","v":0.74041409459999996},{"$f":"IFERROR(INDEX('Data Annex'!$K$1:$AN$1498,MATCH(IFRS9!Q$46&\"|\"&IFRS9!$B58,'Data Annex'!$K$1:$K$1498,0),MATCH(IFRS9!Q$47,'Data Annex'!$K$1:$AN$1,0)),\"\")","v":0.73442009119999996},{"$f":"IFERROR(INDEX('Data Annex'!$K$1:$AN$1498,MATCH(IFRS9!R$46&\"|\"&IFRS9!$B58,'Data Annex'!$K$1:$K$1498,0),MATCH(IFRS9!R$47,'Data Annex'!$K$1:$AN$1,0)),\"\")","v":5.8052403799999999E-2},{"$f":"IFERROR(INDEX('Data Annex'!$K$1:$AN$1498,MATCH(IFRS9!S$46&\"|\"&IFRS9!$B58,'Data Annex'!$K$1:$K$1498,0),MATCH(IFRS9!S$47,'Data Annex'!$K$1:$AN$1,0)),\"\")","v":5.0288703400000002E-2},{"$f":"IFERROR(INDEX('Data Annex'!$K$1:$AN$1498,MATCH(IFRS9!T$46&\"|\"&IFRS9!$B58,'Data Annex'!$K$1:$K$1498,0),MATCH(IFRS9!T$47,'Data Annex'!$K$1:$AN$1,0)),\"\")","v":4.9510905299999998E-2},{"$f":"IFERROR(INDEX('Data Annex'!$K$1:$AN$1498,MATCH(IFRS9!U$46&\"|\"&IFRS9!$B58,'Data Annex'!$K$1:$K$1498,0),MATCH(IFRS9!U$47,'Data Annex'!$K$1:$AN$1,0)),\"\")","v":5.48684433E-2}]
[7,"DK",null,"DK",null,{"$f":"IFERROR(INDEX('Data Annex'!$K$1:$AN$1498,MATCH(IFRS9!F$46&\"|\"&IFRS9!$B59,'Data Annex'!$K$1:$K$1498,0),MATCH(IFRS9!F$47,'Data Annex'!$K$1:$AN$1,0)),\"\")","v":528.42499133000001},{"$f":"IFERROR(INDEX('Data Annex'!$K$1:$AN$1498,MATCH(IFRS9!G$46&\"|\"&IFRS9!$B59,'Data Annex'!$K$1:$K$1498,0),MATCH(IFRS9!G$47,'Data Annex'!$K$1:$AN$1,0)),\"\")","v":527.80693728000006},{"$f":"IFERROR(INDEX('Data Annex'!$K$1:$AN$1498,MATCH(IFRS9!H$46&\"|\"&IFRS9!$B59,'Data Annex'!$K$1:$K$1498,0),MATCH(IFRS9!H$47,'Data Annex'!$K$1:$AN$1,0)),\"\")","v":531.15687176999995},{"$f":"IFERROR(INDEX('Data Annex'!$K$1:$AN$1498,MATCH(IFRS9!I$46&\"|\"&IFRS9!$B59,'Data Annex'!$K$1:$K$1498,0),MATCH(IFRS9!I$47,'Data Annex'!$K$1:$AN$1,0)),\"\")","v":529.71718647},{"$f":"IFERROR(INDEX('Data Annex'!$K$1:$AN$1498,MATCH(IFRS9!J$46&\"|\"&IFRS9!$B59,'Data Annex'!$K$1:$K$1498,0),MATCH(IFRS9!J$47,'Data Annex'!$K$1:$AN$1,0)),\"\")","v":0.12332114030000001},{"$f":"IFERROR(INDEX('Data Annex'!$K$1:$AN$1498,MATCH(IFRS9!K$46&\"|\"&IFRS9!$B59,'Data Annex'!$K$1:$K$1498,0),MATCH(IFRS9!K$47,'Data Annex'!$K$1:$AN$1,0)),\"\")","v":0.1201792756},{"$f":"IFERROR(INDEX('Data Annex'!$K$1:$AN$1498,MATCH(IFRS9!L$46&\"|\"&IFRS9!$B59,'Data Annex'!$K$1:$K$1498,0),MATCH(IFRS9!L$47,'Data Annex'!$K$1:$AN$1,0)),\"\")","v":0.1281743481},{"$f":"IFERROR(INDEX('Data Annex'!$K$1:$AN$1498,MATCH(IFRS9!M$46&\"|\"&IFRS9!$B59,'Data Annex'!$K$1:$K$1498,0),MATCH(IFRS9!M$47,'Data Annex'!$K$1:$AN$1,0)),\"\")","v":0.129629674},{"$f":"IFERROR(INDEX('Data Annex'!$K$1:$AN$1498,MATCH(IFRS9!N$46&\"|\"&IFRS9!$B59,'Data Annex'!$K$1:$K$1498,0),MATCH(IFRS9!N$47,'Data Annex'!$K$1:$AN$1,0)),\"\")","v":0.87318029379999995},{"$f":"IFERROR(INDEX('Data Annex'!$K$1:$AN$1498,MATCH(IFRS9!O$46&\"|\"&IFRS9!$B59,'Data Annex'!$K$1:$K$1498,0),MATCH(IFRS9!O$47,'Data Annex'!$K$1:$AN$1,0)),\"\")","v":0.87699590729999999},{"$f":"IFERROR(INDEX('Data Annex'!$K$1:$AN$1498,MATCH(IFRS9!P$46&\"|\"&IFRS9!$B59,'Data Annex'!$K$1:$K$1498,0),MATCH(IFRS9!P$47,'Data Annex'!$K$1:$AN$1,0)),\"\")","v":0.86929291419999999},{"$f":"IFERROR(INDEX('Data Annex'!$K$1:$AN$1498,MATCH(IFRS9!Q$46&\"|\"&IFRS9!$B59,'Data Annex'!$K$1:$K$1498,0),MATCH(IFRS9!Q$47,'Data Annex'!$K$1:$AN$1,0)),\"\")","v":0.86793725499999996},{"$f":"IFERROR(INDEX('Data Annex'!$K$1:$AN$1498,MATCH(IFRS9!R$46&\"|\"&IFRS9!$B59,'Data Annex'!$K$1:$K$1498,0),MATCH(IFRS9!R$47,'Data Annex'!$K$1:$AN$1,0)),\"\")","v":3.4985658999999998E-3},{"$f":"IFERROR(INDEX('Data Annex'!$K$1:$AN$1498,MATCH(IFRS9!S$46&\"|\"&IFRS9!$B59,'Data Annex'!$K$1:$K$1498,0),MATCH(IFRS9!S$47,'Data Annex'!$K$1:$AN$1,0)),\"\")","v":2.8248171999999999E-3},{"$f":"IFERROR(INDEX('Data Annex'!$K$1:$AN$1498,MATCH(IFRS9!T$46&\"|\"&IFRS9!$B59,'Data Annex'!$K$1:$K$1498,0),MATCH(IFRS9!T$47,'Data Annex'!$K$1:$AN$1,0)),\"\")","v":2.5327377E-3},{"$f":"IFERROR(INDEX('Data Annex'!$K$1:$AN$1498,MATCH(IFRS9!U$46&\"|\"&IFRS9!$B59,'Data Annex'!$K$1:$K$1498,0),MATCH(IFRS9!U$47,'Data Annex'!$K$1:$AN$1,0)),\"\")","v":2.4330710000000002E-3}]
[8,"EE",null,"EE",null,{"$f":"IFERROR(INDEX('Data Annex'!$K$1:$AN$1498,MATCH(IFRS9!F$46&\"|\"&IFRS9!$B60,'Data Annex'!$K$1:$K$1498,0),MATCH(IFRS9!F$47,'Data Annex'!$K$1:$AN$1,0)),\"\")","v":0.85317748069999999},{"$f":"IFERROR(INDEX('Data Annex'!$K$1:$AN$1498,MATCH(IFRS9!G$46&\"|\"&IFRS9!$B60,'Data Annex'!$K$1:$K$1498,0),MATCH(IFRS9!G$47,'Data Annex'!$K$1:$AN$1,0)),\"\")","v":3.1236931351999999},{"$f":"IFERROR(INDEX('Data Annex'!$K$1:$AN$1498,MATCH(IFRS9!H$46&\"|\"&IFRS9!$B60,'Data Annex'!$K$1:$K$1498,0),MATCH(IFRS9!H$47,'Data Annex'!$K$1:$AN$1,0)),\"\")","v":3.1616566179999999},{"$f":"IFERROR(INDEX('Data Annex'!$K$1:$AN$1498,MATCH(IFRS9!I$46&\"|\"&IFRS9!$B60,'Data Annex'!$K$1:$K$1498,0),MATCH(IFRS9!I$47,'Data Annex'!$K$1:$AN$1,0)),\"\")","v":2.9657086131999999},{"$f":"IFERROR(INDEX('Data Annex'!$K$1:$AN$1498,MATCH(IFRS9!J$46&\"|\"&IFRS9!$B60,'Data Annex'!$K$1:$K$1498,0),MATCH(IFRS9!J$47,'Data Annex'!$K$1:$AN$1,0)),\"\")","v":0.8729358505},{"$f":"IFERROR(INDEX('Data Annex'!$K$1:$AN$1498,MATCH(IFRS9!K$46&\"|\"&IFRS9!$B60,'Data Annex'!$K$1:$K$1498,0),MATCH(IFRS9!K$47,'Data Annex'!$K$1:$AN$1,0)),\"\")","v":0.35837739699999999},{"$f":"IFERROR(INDEX('Data Annex'!$K$1:$AN$1498,MATCH(IFRS9!L$46&\"|\"&IFRS9!$B60,'Data Annex'!$K$1:$K$1498,0),MATCH(IFRS9!L$47,'Data Annex'!$K$1:$AN$1,0)),\"\")","v":0.36813928150000003},{"$f":"IFERROR(INDEX('Data Annex'!$K$1:$AN$1498,MATCH(IFRS9!M$46&\"|\"&IFRS9!$B60,'Data Annex'!$K$1:$K$1498,0),MATCH(IFRS9!M$47,'Data Annex'!$K$1:$AN$1,0)),\"\")","v":0.33690679820000002},{"$f":"IFERROR(INDEX('Data Annex'!$K$1:$AN$1498,MATCH(IFRS9!N$46&\"|\"&IFRS9!$B60,'Data Annex'!$K$1:$K$1498,0),MATCH(IFRS9!N$47,'Data Annex'!$K$1:$AN$1,0)),\"\")","v":0.10241280260000001},{"$f":"IFERROR(INDEX('Data Annex'!$K$1:$AN$1498,MATCH(IFRS9!O$46&\"|\"&IFRS9!$B60,'Data Annex'!$K$1:$K$1498,0),MATCH(IFRS9!O$47,'Data Annex'!$K$1:$AN$1,0)),\"\")","v":0.63409435110000001},{"$f":"IFERROR(INDEX('Data Annex'!$K$1:$AN$1498,MATCH(IFRS9!P$46&\"|\"&IFRS9!$B60,'Data Annex'!$K$1:$K$1498,0),MATCH(IFRS9!P$47,'Data Annex'!$K$1:$AN$1,0)),\"\")","v":0.62600854449999999},{"$f":"IFERROR(INDEX('Data Annex'!$K$1:$AN$1498,MATCH(IFRS9!Q$46&\"|\"&IFRS9!$B60,'Data Annex'!$K$1:$K$1498,0),MATCH(IFRS9!Q$47,'Data Annex'!$K$1:$AN$1,0)),\"\")","v":0.65939215640000004},{"$f":"IFERROR(INDEX('Data Annex'!$K$1:$AN$1498,MATCH(IFRS9!R$46&\"|\"&IFRS9!$B60,'Data Annex'!$K$1:$K$1498,0),MATCH(IFRS9!R$47,'Data Annex'!$K$1:$AN$1,0)),\"\")","v":2.4651346800000001E-2},{"$f":"IFERROR(INDEX('Data Annex'!$K$1:$AN$1498,MATCH(IFRS9!S$46&\"|\"&IFRS9!$B60,'Data Annex'!$K$1:$K$1498,0),MATCH(IFRS9!S$47,'Data Annex'!$K$1:$AN$1,0)),\"\")","v":7.5282518999999996E-3},{"$f":"IFERROR(INDEX('Data Annex'!$K$1:$AN$1498,MATCH(IFRS9!T$46&\"|\"&IFRS9!$B60,'Data Annex'!$K$1:$K$1498,0),MATCH(IFRS9!T$47,'Data Annex'!$K$1:$AN$1,0)),\"\")","v":5.8521739000000003E-3},{"$f":"IFERROR(INDEX('Data Annex'!$K$1:$AN$1498,MATCH(IFRS9!U$46&\"|\"&IFRS9!$B60,'Data Annex'!$K$1:$K$1498,0),MATCH(IFRS9!U$47,'Data Annex'!$K$1:$AN$1,0)),\"\")","v":3.7010454000000002E-3}]
[9,"ES",null,"ES",null,{"$f":"IFERROR(INDEX('Data Annex'!$K$1:$AN$1498,MATCH(IFRS9!F$46&\"|\"&IFRS9!$B61,'Data Annex'!$K$1:$K$1498,0),MATCH(IFRS9!F$47,'Data Annex'!$K$1:$AN$1,0)),\"\")","v":568.39417874000003},{"$f":"IFERROR(INDEX('Data Annex'!$K$1:$AN$1498,MATCH(IFRS9!G$46&\"|\"&IFRS9!$B61,'Data Annex'!$K$1:$K$1498,0),MATCH(IFRS9!G$47,'Data Annex'!$K$1:$AN$1,0)),\"\")","v":611.54145860000006},{"$f":"IFERROR(INDEX('Data Annex'!$K$1:$AN$1498,MATCH(IFRS9!H$46&\"|\"&IFRS9!$B61,'Data Annex'!$K$1:$K$1498,0),MATCH(IFRS9!H$47,'Data Annex'!$K$1:$AN$1,0)),\"\")","v":554.17222232999995},{"$f":"IFERROR(INDEX('Data Annex'!$K$1:$AN$1498,MATCH(IFRS9!I$46&\"|\"&IFRS9!$B61,'Data Annex'!$K$1:$K$1498,0),MATCH(IFRS9!I$47,'Data Annex'!$K$1:$AN$1,0)),\"\")","v":512.7623284},{"$f":"IFERROR(INDEX('Data Annex'!$K$1:$AN$1498,MATCH(IFRS9!J$46&\"|\"&IFRS9!$B61,'Data Annex'!$K$1:$K$1498,0),MATCH(IFRS9!J$47,'Data Annex'!$K$1:$AN$1,0)),\"\")","v":0.40577406859999998},{"$f":"IFERROR(INDEX('Data Annex'!$K$1:$AN$1498,MATCH(IFRS9!K$46&\"|\"&IFRS9!$B61,'Data Annex'!$K$1:$K$1498,0),MATCH(IFRS9!K$47,'Data Annex'!$K$1:$AN$1,0)),\"\")","v":0.41846287669999999},{"$f":"IFERROR(INDEX('Data Annex'!$K$1:$AN$1498,MATCH(IFRS9!L$46&\"|\"&IFRS9!$B61,'Data Annex'!$K$1:$K$1498,0),MATCH(IFRS9!L$47,'Data Annex'!$K$1:$AN$1,0)),\"\")","v":0.44224103009999999},{"$f":"IFERROR(INDEX('Data Annex'!$K$1:$AN$1498,MATCH(IFRS9!M$46&\"|\"&IFRS9!$B61,'Data Annex'!$K$1:$K$1498,0),MATCH(IFRS9!M$47,'Data Annex'!$K$1:$AN$1,0)),\"\")","v":0.48622841919999998},{"$f":"IFERROR(INDEX('Data Annex'!$K$1:$AN$1498,MATCH(IFRS9!N$46&\"|\"&IFRS9!$B61,'Data Annex'!$K$1:$K$1498,0),MATCH(IFRS9!N$47,'Data Annex'!$K$1:$AN$1,0)),\"\")","v":0.57062034689999996},{"$f":"IFERROR(INDEX('Data Annex'!$K$1:$AN$1498,MATCH(IFRS9!O$46&\"|\"&IFRS9!$B61,'Data Annex'!$K$1:$K$1498,0),MATCH(IFRS9!O$47,'Data Annex'!$K$1:$AN$1,0)),\"\")","v":0.55737764999999995},{"$f":"IFERROR(INDEX('Data Annex'!$K$1:$AN$1498,MATCH(IFRS9!P$46&\"|\"&IFRS9!$B61,'Data Annex'!$K$1:$K$1498,0),MATCH(IFRS9!P$47,'Data Annex'!$K$1:$AN$1,0)),\"\")","v":0.53110278830000002},{"$f":"IFERROR(INDEX('Data Annex'!$K$1:$AN$1498,MATCH(IFRS9!Q$46&\"|\"&IFRS9!$B61,'Data Annex'!$K$1:$K$1498,0),MATCH(IFRS9!Q$47,'Data Annex'!$K$1:$AN$1,0)),\"\")","v":0.486964287},{"$f":"IFERROR(INDEX('Data Annex'!$K$1:$AN$1498,MATCH(IFRS9!R$46&\"|\"&IFRS9!$B61,'Data Annex'!$K$1:$K$1498,0),MATCH(IFRS9!R$47,'Data Annex'!$K$1:$AN$1,0)),\"\")","v":2.36055846E-2},{"$f":"IFERROR(INDEX('Data Annex'!$K$1:$AN$1498,MATCH(IFRS9!S$46&\"|\"&IFRS9!$B61,'Data Annex'!$K$1:$K$1498,0),MATCH(IFRS9!S$47,'Data Annex'!$K$1:$AN$1,0)),\"\")","v":2.4159473300000001E-2},{"$f":"IFERROR(INDEX('Data Annex'!$K$1:$AN$1498,MATCH(IFRS9!T$46&\"|\"&IFRS9!$B61,'Data Annex'!$K$1:$K$1498,0),MATCH(IFRS9!T$47,'Data Annex'!$K$1:$AN$1,0)),\"\")","v":2.6656181599999999E-2},{"$f":"IFERROR(INDEX('Data Annex'!$K$1:$AN$1498,MATCH(IFRS9!U$46&\"|\"&IFRS9!$B61,'Data Annex'!$K$1:$K$1498,0),MATCH(IFRS9!U$47,'Data Annex'!$K$1:$AN$1,0)),\"\")","v":2.68072938E-2}]
[10,"FI",null,"FI",null,{"$f":"IFERROR(INDEX('Data Annex'!$K$1:$AN$1498,MATCH(IFRS9!F$46&\"|\"&IFRS9!$B62,'Data Annex'!$K$1:$K$1498,0),MATCH(IFRS9!F$47,'Data Annex'!$K$1:$AN$1,0)),\"\")","v":277.10977702999998},{"$f":"IFERROR(INDEX('Data Annex'!$K$1:$AN$1498,MATCH(IFRS9!G$46&\"|\"&IFRS9!$B62,'Data Annex'!$K$1:$K$1498,0),MATCH(IFRS9!G$47,'Data Annex'!$K$1:$AN$1,0)),\"\")","v":259.89519116999998},{"$f":"IFERROR(INDEX('Data Annex'!$K$1:$AN$1498,MATCH(IFRS9!H$46&\"|\"&IFRS9!$B62,'Data Annex'!$K$1:$K$1498,0),MATCH(IFRS9!H$47,'Data Annex'!$K$1:$AN$1,0)),\"\")","v":247.88823285999999},{"$f":"IFERROR(INDEX('Data Annex'!$K$1:$AN$1498,MATCH(IFRS9!I$46&\"|\"&IFRS9!$B62,'Data Annex'!$K$1:$K$1498,0),MATCH(IFRS9!I$47,'Data Annex'!$K$1:$AN$1,0)),\"\")","v":222.87078804999999},{"$f":"IFERROR(INDEX('Data Annex'!$K$1:$AN$1498,MATCH(IFRS9!J$46&\"|\"&IFRS9!$B62,'Data Annex'!$K$1:$K$1498,0),MATCH(IFRS9!J$47,'Data Annex'!$K$1:$AN$1,0)),\"\")","v":0.2154531844},{"$f":"IFERROR(INDEX('Data Annex'!$K$1:$AN$1498,MATCH(IFRS9!K$46&\"|\"&IFRS9!$B62,'Data Annex'!$K$1:$K$1498,0),MATCH(IFRS9!K$47,'Data Annex'!$K$1:$AN$1,0)),\"\")","v":0.2235778199},{"$f":"IFERROR(INDEX('Data Annex'!$K$1:$AN$1498,MATCH(IFRS9!L$46&\"|\"&IFRS9!$B62,'Data Annex'!$K$1:$K$1498,0),MATCH(IFRS9!L$47,'Data Annex'!$K$1:$AN$1,0)),\"\")","v":0.23410048059999999},{"$f":"IFERROR(INDEX('Data Annex'!$K$1:$AN$1498,MATCH(IFRS9!M$46&\"|\"&IFRS9!$B62,'Data Annex'!$K$1:$K$1498,0),MATCH(IFRS9!M$47,'Data Annex'!$K$1:$AN$1,0)),\"\")","v":0.22482359769999999},{"$f":"IFERROR(INDEX('Data Annex'!$K$1:$AN$1498,MATCH(IFRS9!N$46&\"|\"&IFRS9!$B62,'Data Annex'!$K$1:$K$1498,0),MATCH(IFRS9!N$47,'Data Annex'!$K$1:$AN$1,0)),\"\")","v":0.76966637940000004},{"$f":"IFERROR(INDEX('Data Annex'!$K$1:$AN$1498,MATCH(IFRS9!O$46&\"|\"&IFRS9!$B62,'Data Annex'!$K$1:$K$1498,0),MATCH(IFRS9!O$47,'Data Annex'!$K$1:$AN$1,0)),\"\")","v":0.75825722230000003},{"$f":"IFERROR(INDEX('Data Annex'!$K$1:$AN$1498,MATCH(IFRS9!P$46&\"|\"&IFRS9!$B62,'Data Annex'!$K$1:$K$1498,0),MATCH(IFRS9!P$47,'Data Annex'!$K$1:$AN$1,0)),\"\")","v":0.74526504709999997},{"$f":"IFERROR(INDEX('Data Annex'!$K$1:$AN$1498,MATCH(IFRS9!Q$46&\"|\"&IFRS9!$B62,'Data Annex'!$K$1:$K$1498,0),MATCH(IFRS9!Q$47,'Data Annex'!$K$1:$AN$1,0)),\"\")","v":0.75558989919999997},{"$f":"IFERROR(INDEX('Data Annex'!$K$1:$AN$1498,MATCH(IFRS9!R$46&\"|\"&IFRS9!$B62,'Data Annex'!$K$1:$K$1498,0),MATCH(IFRS9!R$47,'Data Annex'!$K$1:$AN$1,0)),\"\")","v":1.48804362E-2},{"$f":"IFERROR(INDEX('Data Annex'!$K$1:$AN$1498,MATCH(IFRS9!S$46&\"|\"&IFRS9!$B62,'Data Annex'!$K$1:$K$1498,0),MATCH(IFRS9!S$47,'Data Annex'!$K$1:$AN$1,0)),\"\")","v":1.8164957900000001E-2},{"$f":"IFERROR(INDEX('Data Annex'!$K$1:$AN$1498,MATCH(IFRS9!T$46&\"|\"&IFRS9!$B62,'Data Annex'!$K$1:$K$1498,0),MATCH(IFRS9!T$47,'Data Annex'!$K$1:$AN$1,0)),\"\")","v":2.0634472300000001E-2},{"$f":"IFERROR(INDEX('Data Annex'!$K$1:$AN$1498,MATCH(IFRS9!U$46&\"|\"&IFRS9!$B62,'Data Annex'!$K$1:$K$1498,0),MATCH(IFRS9!U$47,'Data Annex'!$K$1:$AN$1,0)),\"\")","v":1.9586503099999999E-2}]
[11,"FR",null,"FR",null,{"$f":"IFERROR(INDEX('Data Annex'!$K$1:$AN$1498,MATCH(IFRS9!F$46&\"|\"&IFRS9!$B63,'Data Annex'!$K$1:$K$1498,0),MATCH(IFRS9!F$47,'Data Annex'!$K$1:$AN$1,0)),\"\")","v":2449.5829997000001},{"$f":"IFERROR(INDEX('Data Annex'!$K$1:$AN$1498,MATCH(IFRS9!G$46&\"|\"&IFRS9!$B63,'Data Annex'!$K$1:$K$1498,0),MATCH(IFRS9!G$47,'Data Annex'!$K$1:$AN$1,0)),\"\")","v":2256.3301958000002},{"$f":"IFERROR(INDEX('Data Annex'!$K$1:$AN$1498,MATCH(IFRS9!H$46&\"|\"&IFRS9!$B63,'Data Annex'!$K$1:$K$1498,0),MATCH(IFRS9!H$47,'Data Annex'!$K$1:$AN$1,0)),\"\")","v":2235.4395221},{"$f":"IFERROR(INDEX('Data Annex'!$K$1:$AN$1498,MATCH(IFRS9!I$46&\"|\"&IFRS9!$B63,'Data Annex'!$K$1:$K$1498,0),MATCH(IFRS9!I$47,'Data Annex'!$K$1:$AN$1,0)),\"\")","v":2105.3882683000002},{"$f":"IFERROR(INDEX('Data Annex'!$K$1:$AN$1498,MATCH(IFRS9!J$46&\"|\"&IFRS9!$B63,'Data Annex'!$K$1:$K$1498,0),MATCH(IFRS9!J$47,'Data Annex'!$K$1:$AN$1,0)),\"\")","v":0.2538935524},{"$f":"IFERROR(INDEX('Data Annex'!$K$1:$AN$1498,MATCH(IFRS9!K$46&\"|\"&IFRS9!$B63,'Data Annex'!$K$1:$K$1498,0),MATCH(IFRS9!K$47,'Data Annex'!$K$1:$AN$1,0)),\"\")","v":0.29471880690000002},{"$f":"IFERROR(INDEX('Data Annex'!$K$1:$AN$1498,MATCH(IFRS9!L$46&\"|\"&IFRS9!$B63,'Data Annex'!$K$1:$K$1498,0),MATCH(IFRS9!L$47,'Data Annex'!$K$1:$AN$1,0)),\"\")","v":0.29469008460000001},{"$f":"IFERROR(INDEX('Data Annex'!$K$1:$AN$1498,MATCH(IFRS9!M$46&\"|\"&IFRS9!$B63,'Data Annex'!$K$1:$K$1498,0),MATCH(IFRS9!M$47,'Data Annex'!$K$1:$AN$1,0)),\"\")","v":0.29198577329999997},{"$f":"IFERROR(INDEX('Data Annex'!$K$1:$AN$1498,MATCH(IFRS9!N$46&\"|\"&IFRS9!$B63,'Data Annex'!$K$1:$K$1498,0),MATCH(IFRS9!N$47,'Data Annex'!$K$1:$AN$1,0)),\"\")","v":0.71121711180000002},{"$f":"IFERROR(INDEX('Data Annex'!$K$1:$AN$1498,MATCH(IFRS9!O$46&\"|\"&IFRS9!$B63,'Data Annex'!$K$1:$K$1498,0),MATCH(IFRS9!O$47,'Data Annex'!$K$1:$AN$1,0)),\"\")","v":0.66991253829999997},{"$f":"IFERROR(INDEX('Data Annex'!$K$1:$AN$1498,MATCH(IFRS9!P$46&\"|\"&IFRS9!$B63,'Data Annex'!$K$1:$K$1498,0),MATCH(IFRS9!P$47,'Data Annex'!$K$1:$AN$1,0)),\"\")","v":0.67144717369999996},{"$f":"IFERROR(INDEX('Data Annex'!$K$1:$AN$1498,MATCH(IFRS9!Q$46&\"|\"&IFRS9!$B63,'Data Annex'!$K$1:$K$1498,0),MATCH(IFRS9!Q$47,'Data Annex'!$K$1:$AN$1,0)),\"\")","v":0.67353855470000001},{"$f":"IFERROR(INDEX('Data Annex'!$K$1:$AN$1498,MATCH(IFRS9!R$46&\"|\"&IFRS9!$B63,'Data Annex'!$K$1:$K$1498,0),MATCH(IFRS9!R$47,'Data Annex'!$K$1:$AN$1,0)),\"\")","v":3.4889335700000003E-2},{"$f":"IFERROR(INDEX('Data Annex'!$K$1:$AN$1498,MATCH(IFRS9!S$46&\"|\"&IFRS9!$B63,'Data Annex'!$K$1:$K$1498,0),MATCH(IFRS9!S$47,'Data Annex'!$K$1:$AN$1,0)),\"\")","v":3.5368654899999998E-2},{"$f":"IFERROR(INDEX('Data Annex'!$K$1:$AN$1498,MATCH(IFRS9!T$46&\"|\"&IFRS9!$B63,'Data Annex'!$K$1:$K$1498,0),MATCH(IFRS9!T$47,'Data Annex'!$K$1:$AN$1,0)),\"\")","v":3.3862741600000003E-2},{"$f":"IFERROR(INDEX('Data Annex'!$K$1:$AN$1498,MATCH(IFRS9!U$46&\"|\"&IFRS9!$B63,'Data Annex'!$K$1:$K$1498,0),MATCH(IFRS9!U$47,'Data Annex'!$K$1:$AN$1,0)),\"\")","v":3.44756721E-2}]
[13,"GR",null,"GR",null,{"$f":"IFERROR(INDEX('Data Annex'!$K$1:$AN$1498,MATCH(IFRS9!F$46&\"|\"&IFRS9!$B64,'Data Annex'!$K$1:$K$1498,0),MATCH(IFRS9!F$47,'Data Annex'!$K$1:$AN$1,0)),\"\")","v":27.551318469999998},{"$f":"IFERROR(INDEX('Data Annex'!$K$1:$AN$1498,MATCH(IFRS9!G$46&\"|\"&IFRS9!$B64,'Data Annex'!$K$1:$K$1498,0),MATCH(IFRS9!G$47,'Data Annex'!$K$1:$AN$1,0)),\"\")","v":29.548851470999999},{"$f":"IFERROR(INDEX('Data Annex'!$K$1:$AN$1498,MATCH(IFRS9!H$46&\"|\"&IFRS9!$B64,'Data Annex'!$K$1:$K$1498,0),MATCH(IFRS9!H$47,'Data Annex'!$K$1:$AN$1,0)),\"\")","v":27.935014238000001},{"$f":"IFERROR(INDEX('Data Annex'!$K$1:$AN$1498,MATCH(IFRS9!I$46&\"|\"&IFRS9!$B64,'Data Annex'!$K$1:$K$1498,0),MATCH(IFRS9!I$47,'Data Annex'!$K$1:$AN$1,0)),\"\")","v":28.986606587000001},{"$f":"IFERROR(INDEX('Data Annex'!$K$1:$AN$1498,MATCH(IFRS9!J$46&\"|\"&IFRS9!$B64,'Data Annex'!$K$1:$K$1498,0),MATCH(IFRS9!J$47,'Data Annex'!$K$1:$AN$1,0)),\"\")","v":0.55159003949999996},{"$f":"IFERROR(INDEX('Data Annex'!$K$1:$AN$1498,MATCH(IFRS9!K$46&\"|\"&IFRS9!$B64,'Data Annex'!$K$1:$K$1498,0),MATCH(IFRS9!K$47,'Data Annex'!$K$1:$AN$1,0)),\"\")","v":0.53698359880000002},{"$f":"IFERROR(INDEX('Data Annex'!$K$1:$AN$1498,MATCH(IFRS9!L$46&\"|\"&IFRS9!$B64,'Data Annex'!$K$1:$K$1498,0),MATCH(IFRS9!L$47,'Data Annex'!$K$1:$AN$1,0)),\"\")","v":0.53763830180000005},{"$f":"IFERROR(INDEX('Data Annex'!$K$1:$AN$1498,MATCH(IFRS9!M$46&\"|\"&IFRS9!$B64,'Data Annex'!$K$1:$K$1498,0),MATCH(IFRS9!M$47,'Data Annex'!$K$1:$AN$1,0)),\"\")","v":0.53541541189999997},{"$f":"IFERROR(INDEX('Data Annex'!$K$1:$AN$1498,MATCH(IFRS9!N$46&\"|\"&IFRS9!$B64,'Data Annex'!$K$1:$K$1498,0),MATCH(IFRS9!N$47,'Data Annex'!$K$1:$AN$1,0)),\"\")","v":0.41826527000000002},{"$f":"IFERROR(INDEX('Data Annex'!$K$1:$AN$1498,MATCH(IFRS9!O$46&\"|\"&IFRS9!$B64,'Data Annex'!$K$1:$K$1498,0),MATCH(IFRS9!O$47,'Data Annex'!$K$1:$AN$1,0)),\"\")","v":0.4351376381},{"$f":"IFERROR(INDEX('Data Annex'!$K$1:$AN$1498,MATCH(IFRS9!P$46&\"|\"&IFRS9!$B64,'Data Annex'!$K$1:$K$1498,0),MATCH(IFRS9!P$47,'Data Annex'!$K$1:$AN$1,0)),\"\")","v":0.4337432926},{"$f":"IFERROR(INDEX('Data Annex'!$K$1:$AN$1498,MATCH(IFRS9!Q$46&\"|\"&IFRS9!$B64,'Data Annex'!$K$1:$K$1498,0),MATCH(IFRS9!Q$47,'Data Annex'!$K$1:$AN$1,0)),\"\")","v":0.43908584319999999},{"$f":"IFERROR(INDEX('Data Annex'!$K$1:$AN$1498,MATCH(IFRS9!R$46&\"|\"&IFRS9!$B64,'Data Annex'!$K$1:$K$1498,0),MATCH(IFRS9!R$47,'Data Annex'!$K$1:$AN$1,0)),\"\")","v":3.0144690599999999E-2},{"$f":"IFERROR(INDEX('Data Annex'!$K$1:$AN$1498,MATCH(IFRS9!S$46&\"|\"&IFRS9!$B64,'Data Annex'!$K$1:$K$1498,0),MATCH(IFRS9!S$47,'Data Annex'!$K$1:$AN$1,0)),\"\")","v":2.7878763099999999E-2},{"$f":"IFERROR(INDEX('Data Annex'!$K$1:$AN$1498,MATCH(IFRS9!T$46&\"|\"&IFRS9!$B64,'Data Annex'!$K$1:$K$1498,0),MATCH(IFRS9!T$47,'Data Annex'!$K$1:$AN$1,0)),\"\")","v":2.8618405600000001E-2},{"$f":"IFERROR(INDEX('Data Annex'!$K$1:$AN$1498,MATCH(IFRS9!U$46&\"|\"&IFRS9!$B64,'Data Annex'!$K$1:$K$1498,0),MATCH(IFRS9!U$47,'Data Annex'!$K$1:$AN$1,0)),\"\")","v":2.5498744899999998E-2}]
[14,"HR",null,"HR",null,{"$f":"IFERROR(INDEX('Data Annex'!$K$1:$AN$1498,MATCH(IFRS9!F$46&\"|\"&IFRS9!$B65,'Data Annex'!$K$1:$K$1498,0),MATCH(IFRS9!F$47,'Data Annex'!$K$1:$AN$1,0)),\"\")","v":5.1468667228999996},{"$f":"IFERROR(INDEX('Data Annex'!$K$1:$AN$1498,MATCH(IFRS9!G$46&\"|\"&IFRS9!$B65,'Data Annex'!$K$1:$K$1498,0),MATCH(IFRS9!G$47,'Data Annex'!$K$1:$AN$1,0)),\"\")","v":5.0649732111999999},{"$f":"IFERROR(INDEX('Data Annex'!$K$1:$AN$1498,MATCH(IFRS9!H$46&\"|\"&IFRS9!$B65,'Data Annex'!$K$1:$K$1498,0),MATCH(IFRS9!H$47,'Data Annex'!$K$1:$AN$1,0)),\"\")","v":5.0527410968000002},{"$f":"IFERROR(INDEX('Data Annex'!$K$1:$AN$1498,MATCH(IFRS9!I$46&\"|\"&IFRS9!$B65,'Data Annex'!$K$1:$K$1498,0),MATCH(IFRS9!I$47,'Data Annex'!$K$1:$AN$1,0)),\"\")","v":4.9972479510000003},{"$f":"IFERROR(INDEX('Data Annex'!$K$1:$AN$1498,MATCH(IFRS9!J$46&\"|\"&IFRS9!$B65,'Data Annex'!$K$1:$K$1498,0),MATCH(IFRS9!J$47,'Data Annex'!$K$1:$AN$1,0)),\"\")","v":0.42596616199999998},{"$f":"IFERROR(INDEX('Data Annex'!$K$1:$AN$1498,MATCH(IFRS9!K$46&\"|\"&IFRS9!$B65,'Data Annex'!$K$1:$K$1498,0),MATCH(IFRS9!K$47,'Data Annex'!$K$1:$AN$1,0)),\"\")","v":0.43417529640000002},{"$f":"IFERROR(INDEX('Data Annex'!$K$1:$AN$1498,MATCH(IFRS9!L$46&\"|\"&IFRS9!$B65,'Data Annex'!$K$1:$K$1498,0),MATCH(IFRS9!L$47,'Data Annex'!$K$1:$AN$1,0)),\"\")","v":0.40496671499999998},{"$f":"IFERROR(INDEX('Data Annex'!$K$1:$AN$1498,MATCH(IFRS9!M$46&\"|\"&IFRS9!$B65,'Data Annex'!$K$1:$K$1498,0),MATCH(IFRS9!M$47,'Data Annex'!$K$1:$AN$1,0)),\"\")","v":0.44101975500000001},{"$f":"IFERROR(INDEX('Data Annex'!$K$1:$AN$1498,MATCH(IFRS9!N$46&\"|\"&IFRS9!$B65,'Data Annex'!$K$1:$K$1498,0),MATCH(IFRS9!N$47,'Data Annex'!$K$1:$AN$1,0)),\"\")","v":0.55154733509999998},{"$f":"IFERROR(INDEX('Data Annex'!$K$1:$AN$1498,MATCH(IFRS9!O$46&\"|\"&IFRS9!$B65,'Data Annex'!$K$1:$K$1498,0),MATCH(IFRS9!O$47,'Data Annex'!$K$1:$AN$1,0)),\"\")","v":0.54302782589999998},{"$f":"IFERROR(INDEX('Data Annex'!$K$1:$AN$1498,MATCH(IFRS9!P$46&\"|\"&IFRS9!$B65,'Data Annex'!$K$1:$K$1498,0),MATCH(IFRS9!P$47,'Data Annex'!$K$1:$AN$1,0)),\"\")","v":0.57872383920000003},{"$f":"IFERROR(INDEX('Data Annex'!$K$1:$AN$1498,MATCH(IFRS9!Q$46&\"|\"&IFRS9!$B65,'Data Annex'!$K$1:$K$1498,0),MATCH(IFRS9!Q$47,'Data Annex'!$K$1:$AN$1,0)),\"\")","v":0.52950267520000005},{"$f":"IFERROR(INDEX('Data Annex'!$K$1:$AN$1498,MATCH(IFRS9!R$46&\"|\"&IFRS9!$B65,'Data Annex'!$K$1:$K$1498,0),MATCH(IFRS9!R$47,'Data Annex'!$K$1:$AN$1,0)),\"\")","v":2.24865029E-2},{"$f":"IFERROR(INDEX('Data Annex'!$K$1:$AN$1498,MATCH(IFRS9!S$46&\"|\"&IFRS9!$B65,'Data Annex'!$K$1:$K$1498,0),MATCH(IFRS9!S$47,'Data Annex'!$K$1:$AN$1,0)),\"\")","v":2.2796877699999999E-2},{"$f":"IFERROR(INDEX('Data Annex'!$K$1:$AN$1498,MATCH(IFRS9!T$46&\"|\"&IFRS9!$B65,'Data Annex'!$K$1:$K$1498,0),MATCH(IFRS9!T$47,'Data Annex'!$K$1:$AN$1,0)),\"\")","v":1.6309445799999999E-2},{"$f":"IFERROR(INDEX('Data Annex'!$K$1:$AN$1498,MATCH(IFRS9!U$46&\"|\"&IFRS9!$B65,'Data Annex'!$K$1:$K$1498,0),MATCH(IFRS9!U$47,'Data Annex'!$K$1:$AN$1,0)),\"\")","v":2.9477569799999999E-2}]
[15,"HU",null,"HU",null,{"$f":"IFERROR(INDEX('Data Annex'!$K$1:$AN$1498,MATCH(IFRS9!F$46&\"|\"&IFRS9!$B66,'Data Annex'!$K$1:$K$1498,0),MATCH(IFRS9!F$47,'Data Annex'!$K$1:$AN$1,0)),\"\")","v":10.639157008},{"$f":"IFERROR(INDEX('Data Annex'!$K$1:$AN$1498,MATCH(IFRS9!G$46&\"|\"&IFRS9!$B66,'Data Annex'!$K$1:$K$1498,0),MATCH(IFRS9!G$47,'Data Annex'!$K$1:$AN$1,0)),\"\")","v":9.0439764800999995},{"$f":"IFERROR(INDEX('Data Annex'!$K$1:$AN$1498,MATCH(IFRS9!H$46&\"|\"&IFRS9!$B66,'Data Annex'!$K$1:$K$1498,0),MATCH(IFRS9!H$47,'Data Annex'!$K$1:$AN$1,0)),\"\")","v":9.1761194462999995},{"$f":"IFERROR(INDEX('Data Annex'!$K$1:$AN$1498,MATCH(IFRS9!I$46&\"|\"&IFRS9!$B66,'Data Annex'!$K$1:$K$1498,0),MATCH(IFRS9!I$47,'Data Annex'!$K$1:$AN$1,0)),\"\")","v":11.271347234},{"$f":"IFERROR(INDEX('Data Annex'!$K$1:$AN$1498,MATCH(IFRS9!J$46&\"|\"&IFRS9!$B66,'Data Annex'!$K$1:$K$1498,0),MATCH(IFRS9!J$47,'Data Annex'!$K$1:$AN$1,0)),\"\")","v":0.58172351550000001},{"$f":"IFERROR(INDEX('Data Annex'!$K$1:$AN$1498,MATCH(IFRS9!K$46&\"|\"&IFRS9!$B66,'Data Annex'!$K$1:$K$1498,0),MATCH(IFRS9!K$47,'Data Annex'!$K$1:$AN$1,0)),\"\")","v":0.5456169528},{"$f":"IFERROR(INDEX('Data Annex'!$K$1:$AN$1498,MATCH(IFRS9!L$46&\"|\"&IFRS9!$B66,'Data Annex'!$K$1:$K$1498,0),MATCH(IFRS9!L$47,'Data Annex'!$K$1:$AN$1,0)),\"\")","v":0.49720465889999998},{"$f":"IFERROR(INDEX('Data Annex'!$K$1:$AN$1498,MATCH(IFRS9!M$46&\"|\"&IFRS9!$B66,'Data Annex'!$K$1:$K$1498,0),MATCH(IFRS9!M$47,'Data Annex'!$K$1:$AN$1,0)),\"\")","v":0.3988263145},{"$f":"IFERROR(INDEX('Data Annex'!$K$1:$AN$1498,MATCH(IFRS9!N$46&\"|\"&IFRS9!$B66,'Data Annex'!$K$1:$K$1498,0),MATCH(IFRS9!N$47,'Data Annex'!$K$1:$AN$1,0)),\"\")","v":0.36727070699999997},{"$f":"IFERROR(INDEX('Data Annex'!$K$1:$AN$1498,MATCH(IFRS9!O$46&\"|\"&IFRS9!$B66,'Data Annex'!$K$1:$K$1498,0),MATCH(IFRS9!O$47,'Data Annex'!$K$1:$AN$1,0)),\"\")","v":0.39434720150000002},{"$f":"IFERROR(INDEX('Data Annex'!$K$1:$AN$1498,MATCH(IFRS9!P$46&\"|\"&IFRS9!$B66,'Data Annex'!$K$1:$K$1498,0),MATCH(IFRS9!P$47,'Data Annex'!$K$1:$AN$1,0)),\"\")","v":0.4351180368},{"$f":"IFERROR(INDEX('Data Annex'!$K$1:$AN$1498,MATCH(IFRS9!Q$46&\"|\"&IFRS9!$B66,'Data Annex'!$K$1:$K$1498,0),MATCH(IFRS9!Q$47,'Data Annex'!$K$1:$AN$1,0)),\"\")","v":0.35239023400000002},{"$f":"IFERROR(INDEX('Data Annex'!$K$1:$AN$1498,MATCH(IFRS9!R$46&\"|\"&IFRS9!$B66,'Data Annex'!$K$1:$K$1498,0),MATCH(IFRS9!R$47,'Data Annex'!$K$1:$AN$1,0)),\"\")","v":5.1005777500000002E-2},{"$f":"IFERROR(INDEX('Data Annex'!$K$1:$AN$1498,MATCH(IFRS9!S$46&\"|\"&IFRS9!$B66,'Data Annex'!$K$1:$K$1498,0),MATCH(IFRS9!S$47,'Data Annex'!$K$1:$AN$1,0)),\"\")","v":6.0035845800000001E-2},{"$f":"IFERROR(INDEX('Data Annex'!$K$1:$AN$1498,MATCH(IFRS9!T$46&\"|\"&IFRS9!$B66,'Data Annex'!$K$1:$K$1498,0),MATCH(IFRS9!T$47,'Data Annex'!$K$1:$AN$1,0)),\"\")","v":6.7677304199999996E-2},{"$f":"IFERROR(INDEX('Data Annex'!$K$1:$AN$1498,MATCH(IFRS9!U$46&\"|\"&IFRS9!$B66,'Data Annex'!$K$1:$K$1498,0),MATCH(IFRS9!U$47,'Data Annex'!$K$1:$AN$1,0)),\"\")","v":0.2487834515}]
[16,"IE",null,"IE",null,{"$f":"IFERROR(INDEX('Data Annex'!$K$1:$AN$1498,MATCH(IFRS9!F$46&\"|\"&IFRS9!$B67,'Data Annex'!$K$1:$K$1498,0),MATCH(IFRS9!F$47,'Data Annex'!$K$1:$AN$1,0)),\"\")","v":41.968966219000002},{"$f":"IFERROR(INDEX('Data Annex'!$K$1:$AN$1498,MATCH(IFRS9!G$46&\"|\"&IFRS9!$B67,'Data Annex'!$K$1:$K$1498,0),MATCH(IFRS9!G$47,'Data Annex'!$K$1:$AN$1,0)),\"\")","v":43.759795255},{"$f":"IFERROR(INDEX('Data Annex'!$K$1:$AN$1498,MATCH(IFRS9!H$46&\"|\"&IFRS9!$B67,'Data Annex'!$K$1:$K$1498,0),MATCH(IFRS9!H$47,'Data Annex'!$K$1:$AN$1,0)),\"\")","v":42.319344885},{"$f":"IFERROR(INDEX('Data Annex'!$K$1:$AN$1498,MATCH(IFRS9!I$46&\"|\"&IFRS9!$B67,'Data Annex'!$K$1:$K$1498,0),MATCH(IFRS9!I$47,'Data Annex'!$K$1:$AN$1,0)),\"\")","v":44.484399430000003},{"$f":"IFERROR(INDEX('Data Annex'!$K$1:$AN$1498,MATCH(IFRS9!J$46&\"|\"&IFRS9!$B67,'Data Annex'!$K$1:$K$1498,0),MATCH(IFRS9!J$47,'Data Annex'!$K$1:$AN$1,0)),\"\")","v":0.66656393859999996},{"$f":"IFERROR(INDEX('Data Annex'!$K$1:$AN$1498,MATCH(IFRS9!K$46&\"|\"&IFRS9!$B67,'Data Annex'!$K$1:$K$1498,0),MATCH(IFRS9!K$47,'Data Annex'!$K$1:$AN$1,0)),\"\")","v":0.6638656235},{"$f":"IFERROR(INDEX('Data Annex'!$K$1:$AN$1498,MATCH(IFRS9!L$46&\"|\"&IFRS9!$B67,'Data Annex'!$K$1:$K$1498,0),MATCH(IFRS9!L$47,'Data Annex'!$K$1:$AN$1,0)),\"\")","v":0.66447863009999997},{"$f":"IFERROR(INDEX('Data Annex'!$K$1:$AN$1498,MATCH(IFRS9!M$46&\"|\"&IFRS9!$B67,'Data Annex'!$K$1:$K$1498,0),MATCH(IFRS9!M$47,'Data Annex'!$K$1:$AN$1,0)),\"\")","v":0.61661502899999998},{"$f":"IFERROR(INDEX('Data Annex'!$K$1:$AN$1498,MATCH(IFRS9!N$46&\"|\"&IFRS9!$B67,'Data Annex'!$K$1:$K$1498,0),MATCH(IFRS9!N$47,'Data Annex'!$K$1:$AN$1,0)),\"\")","v":0.29349108779999999},{"$f":"IFERROR(INDEX('Data Annex'!$K$1:$AN$1498,MATCH(IFRS9!O$46&\"|\"&IFRS9!$B67,'Data Annex'!$K$1:$K$1498,0),MATCH(IFRS9!O$47,'Data Annex'!$K$1:$AN$1,0)),\"\")","v":0.29883992970000001},{"$f":"IFERROR(INDEX('Data Annex'!$K$1:$AN$1498,MATCH(IFRS9!P$46&\"|\"&IFRS9!$B67,'Data Annex'!$K$1:$K$1498,0),MATCH(IFRS9!P$47,'Data Annex'!$K$1:$AN$1,0)),\"\")","v":0.2988672496},{"$f":"IFERROR(INDEX('Data Annex'!$K$1:$AN$1498,MATCH(IFRS9!Q$46&\"|\"&IFRS9!$B67,'Data Annex'!$K$1:$K$1498,0),MATCH(IFRS9!Q$47,'Data Annex'!$K$1:$AN$1,0)),\"\")","v":0.34675499799999998},{"$f":"IFERROR(INDEX('Data Annex'!$K$1:$AN$1498,MATCH(IFRS9!R$46&\"|\"&IFRS9!$B67,'Data Annex'!$K$1:$K$1498,0),MATCH(IFRS9!R$47,'Data Annex'!$K$1:$AN$1,0)),\"\")","v":3.9944973600000003E-2},{"$f":"IFERROR(INDEX('Data Annex'!$K$1:$AN$1498,MATCH(IFRS9!S$46&\"|\"&IFRS9!$B67,'Data Annex'!$K$1:$K$1498,0),MATCH(IFRS9!S$47,'Data Annex'!$K$1:$AN$1,0)),\"\")","v":3.7294446799999999E-2},{"$f":"IFERROR(INDEX('Data Annex'!$K$1:$AN$1498,MATCH(IFRS9!T$46&\"|\"&IFRS9!$B67,'Data Annex'!$K$1:$K$1498,0),MATCH(IFRS9!T$47,'Data Annex'!$K$1:$AN$1,0)),\"\")","v":3.6654120300000002E-2},{"$f":"IFERROR(INDEX('Data Annex'!$K$1:$AN$1498,MATCH(IFRS9!U$46&\"|\"&IFRS9!$B67,'Data Annex'!$K$1:$K$1498,0),MATCH(IFRS9!U$47,'Data Annex'!$K$1:$AN$1,0)),\"\")","v":3.6629973000000003E-2}]
[17,"IS",null,"IS",null,{"$f":"IFERROR(INDEX('Data Annex'!$K$1:$AN$1498,MATCH(IFRS9!F$46&\"|\"&IFRS9!$B68,'Data Annex'!$K$1:$K$1498,0),MATCH(IFRS9!F$47,'Data Annex'!$K$1:$AN$1,0)),\"\")","v":2.7874216345999998},{"$f":"IFERROR(INDEX('Data Annex'!$K$1:$AN$1498,MATCH(IFRS9!G$46&\"|\"&IFRS9!$B68,'Data Annex'!$K$1:$K$1498,0),MATCH(IFRS9!G$47,'Data Annex'!$K$1:$AN$1,0)),\"\")","v":3.1901254828000001},{"$f":"IFERROR(INDEX('Data Annex'!$K$1:$AN$1498,MATCH(IFRS9!H$46&\"|\"&IFRS9!$B68,'Data Annex'!$K$1:$K$1498,0),MATCH(IFRS9!H$47,'Data Annex'!$K$1:$AN$1,0)),\"\")","v":3.3548627890999998},{"$f":"IFERROR(INDEX('Data Annex'!$K$1:$AN$1498,MATCH(IFRS9!I$46&\"|\"&IFRS9!$B68,'Data Annex'!$K$1:$K$1498,0),MATCH(IFRS9!I$47,'Data Annex'!$K$1:$AN$1,0)),\"\")","v":3.4504190811000002},{"$f":"IFERROR(INDEX('Data Annex'!$K$1:$AN$1498,MATCH(IFRS9!J$46&\"|\"&IFRS9!$B68,'Data Annex'!$K$1:$K$1498,0),MATCH(IFRS9!J$47,'Data Annex'!$K$1:$AN$1,0)),\"\")","v":0.82404377880000002},{"$f":"IFERROR(INDEX('Data Annex'!$K$1:$AN$1498,MATCH(IFRS9!K$46&\"|\"&IFRS9!$B68,'Data Annex'!$K$1:$K$1498,0),MATCH(IFRS9!K$47,'Data Annex'!$K$1:$AN$1,0)),\"\")","v":0.84773628499999998},{"$f":"IFERROR(INDEX('Data Annex'!$K$1:$AN$1498,MATCH(IFRS9!L$46&\"|\"&IFRS9!$B68,'Data Annex'!$K$1:$K$1498,0),MATCH(IFRS9!L$47,'Data Annex'!$K$1:$AN$1,0)),\"\")","v":0.8564105246},{"$f":"IFERROR(INDEX('Data Annex'!$K$1:$AN$1498,MATCH(IFRS9!M$46&\"|\"&IFRS9!$B68,'Data Annex'!$K$1:$K$1498,0),MATCH(IFRS9!M$47,'Data Annex'!$K$1:$AN$1,0)),\"\")","v":0.86972063290000001},{"$f":"IFERROR(INDEX('Data Annex'!$K$1:$AN$1498,MATCH(IFRS9!N$46&\"|\"&IFRS9!$B68,'Data Annex'!$K$1:$K$1498,0),MATCH(IFRS9!N$47,'Data Annex'!$K$1:$AN$1,0)),\"\")","v":9.4556180399999995E-2},{"$f":"IFERROR(INDEX('Data Annex'!$K$1:$AN$1498,MATCH(IFRS9!O$46&\"|\"&IFRS9!$B68,'Data Annex'!$K$1:$K$1498,0),MATCH(IFRS9!O$47,'Data Annex'!$K$1:$AN$1,0)),\"\")","v":7.9909152499999997E-2},{"$f":"IFERROR(INDEX('Data Annex'!$K$1:$AN$1498,MATCH(IFRS9!P$46&\"|\"&IFRS9!$B68,'Data Annex'!$K$1:$K$1498,0),MATCH(IFRS9!P$47,'Data Annex'!$K$1:$AN$1,0)),\"\")","v":7.8041039899999998E-2},{"$f":"IFERROR(INDEX('Data Annex'!$K$1:$AN$1498,MATCH(IFRS9!Q$46&\"|\"&IFRS9!$B68,'Data Annex'!$K$1:$K$1498,0),MATCH(IFRS9!Q$47,'Data Annex'!$K$1:$AN$1,0)),\"\")","v":5.6638989700000003E-2},{"$f":"IFERROR(INDEX('Data Annex'!$K$1:$AN$1498,MATCH(IFRS9!R$46&\"|\"&IFRS9!$B68,'Data Annex'!$K$1:$K$1498,0),MATCH(IFRS9!R$47,'Data Annex'!$K$1:$AN$1,0)),\"\")","v":8.1400040800000004E-2},{"$f":"IFERROR(INDEX('Data Annex'!$K$1:$AN$1498,MATCH(IFRS9!S$46&\"|\"&IFRS9!$B68,'Data Annex'!$K$1:$K$1498,0),MATCH(IFRS9!S$47,'Data Annex'!$K$1:$AN$1,0)),\"\")","v":7.2354562400000003E-2},{"$f":"IFERROR(INDEX('Data Annex'!$K$1:$AN$1498,MATCH(IFRS9!T$46&\"|\"&IFRS9!$B68,'Data Annex'!$K$1:$K$1498,0),MATCH(IFRS9!T$47,'Data Annex'!$K$1:$AN$1,0)),\"\")","v":6.5548435500000002E-2},{"$f":"IFERROR(INDEX('Data Annex'!$K$1:$AN$1498,MATCH(IFRS9!U$46&\"|\"&IFRS9!$B68,'Data Annex'!$K$1:$K$1498,0),MATCH(IFRS9!U$47,'Data Annex'!$K$1:$AN$1,0)),\"\")","v":7.3640377300000004E-2}]
[18,"IT",null,"IT",null,{"$f":"IFERROR(INDEX('Data Annex'!$K$1:$AN$1498,MATCH(IFRS9!F$46&\"|\"&IFRS9!$B69,'Data Annex'!$K$1:$K$1498,0),MATCH(IFRS9!F$47,'Data Annex'!$K$1:$AN$1,0)),\"\")","v":411.04930968999997},{"$f":"IFERROR(INDEX('Data Annex'!$K$1:$AN$1498,MATCH(IFRS9!G$46&\"|\"&IFRS9!$B69,'Data Annex'!$K$1:$K$1498,0),MATCH(IFRS9!G$47,'Data Annex'!$K$1:$AN$1,0)),\"\")","v":413.0800433},{"$f":"IFERROR(INDEX('Data Annex'!$K$1:$AN$1498,MATCH(IFRS9!H$46&\"|\"&IFRS9!$B69,'Data Annex'!$K$1:$K$1498,0),MATCH(IFRS9!H$47,'Data Annex'!$K$1:$AN$1,0)),\"\")","v":403.81399878000002},{"$f":"IFERROR(INDEX('Data Annex'!$K$1:$AN$1498,MATCH(IFRS9!I$46&\"|\"&IFRS9!$B69,'Data Annex'!$K$1:$K$1498,0),MATCH(IFRS9!I$47,'Data Annex'!$K$1:$AN$1,0)),\"\")","v":369.87281421},{"$f":"IFERROR(INDEX('Data Annex'!$K$1:$AN$1498,MATCH(IFRS9!J$46&\"|\"&IFRS9!$B69,'Data Annex'!$K$1:$K$1498,0),MATCH(IFRS9!J$47,'Data Annex'!$K$1:$AN$1,0)),\"\")","v":0.62945255280000001},{"$f":"IFERROR(INDEX('Data Annex'!$K$1:$AN$1498,MATCH(IFRS9!K$46&\"|\"&IFRS9!$B69,'Data Annex'!$K$1:$K$1498,0),MATCH(IFRS9!K$47,'Data Annex'!$K$1:$AN$1,0)),\"\")","v":0.62917434989999999},{"$f":"IFERROR(INDEX('Data Annex'!$K$1:$AN$1498,MATCH(IFRS9!L$46&\"|\"&IFRS9!$B69,'Data Annex'!$K$1:$K$1498,0),MATCH(IFRS9!L$47,'Data Annex'!$K$1:$AN$1,0)),\"\")","v":0.63192895199999999},{"$f":"IFERROR(INDEX('Data Annex'!$K$1:$AN$1498,MATCH(IFRS9!M$46&\"|\"&IFRS9!$B69,'Data Annex'!$K$1:$K$1498,0),MATCH(IFRS9!M$47,'Data Annex'!$K$1:$AN$1,0)),\"\")","v":0.60644143839999998},{"$f":"IFERROR(INDEX('Data Annex'!$K$1:$AN$1498,MATCH(IFRS9!N$46&\"|\"&IFRS9!$B69,'Data Annex'!$K$1:$K$1498,0),MATCH(IFRS9!N$47,'Data Annex'!$K$1:$AN$1,0)),\"\")","v":0.33482553120000003},{"$f":"IFERROR(INDEX('Data Annex'!$K$1:$AN$1498,MATCH(IFRS9!O$46&\"|\"&IFRS9!$B69,'Data Annex'!$K$1:$K$1498,0),MATCH(IFRS9!O$47,'Data Annex'!$K$1:$AN$1,0)),\"\")","v":0.3344878738},{"$f":"IFERROR(INDEX('Data Annex'!$K$1:$AN$1498,MATCH(IFRS9!P$46&\"|\"&IFRS9!$B69,'Data Annex'!$K$1:$K$1498,0),MATCH(IFRS9!P$47,'Data Annex'!$K$1:$AN$1,0)),\"\")","v":0.33186156729999999},{"$f":"IFERROR(INDEX('Data Annex'!$K$1:$AN$1498,MATCH(IFRS9!Q$46&\"|\"&IFRS9!$B69,'Data Annex'!$K$1:$K$1498,0),MATCH(IFRS9!Q$47,'Data Annex'!$K$1:$AN$1,0)),\"\")","v":0.35598618869999998},{"$f":"IFERROR(INDEX('Data Annex'!$K$1:$AN$1498,MATCH(IFRS9!R$46&\"|\"&IFRS9!$B69,'Data Annex'!$K$1:$K$1498,0),MATCH(IFRS9!R$47,'Data Annex'!$K$1:$AN$1,0)),\"\")","v":3.5721915999999999E-2},{"$f":"IFERROR(INDEX('Data Annex'!$K$1:$AN$1498,MATCH(IFRS9!S$46&\"|\"&IFRS9!$B69,'Data Annex'!$K$1:$K$1498,0),MATCH(IFRS9!S$47,'Data Annex'!$K$1:$AN$1,0)),\"\")","v":3.6337776299999999E-2},{"$f":"IFERROR(INDEX('Data Annex'!$K$1:$AN$1498,MATCH(IFRS9!T$46&\"|\"&IFRS9!$B69,'Data Annex'!$K$1:$K$1498,0),MATCH(IFRS9!T$47,'Data Annex'!$K$1:$AN$1,0)),\"\")","v":3.6209480699999998E-2},{"$f":"IFERROR(INDEX('Data Annex'!$K$1:$AN$1498,MATCH(IFRS9!U$46&\"|\"&IFRS9!$B69,'Data Annex'!$K$1:$K$1498,0),MATCH(IFRS9!U$47,'Data Annex'!$K$1:$AN$1,0)),\"\")","v":3.7572372899999998E-2}]
[19,"LT",null,"LT",null,{"$f":"IFERROR(INDEX('Data Annex'!$K$1:$AN$1498,MATCH(IFRS9!F$46&\"|\"&IFRS9!$B70,'Data Annex'!$K$1:$K$1498,0),MATCH(IFRS9!F$47,'Data Annex'!$K$1:$AN$1,0)),\"\")","v":0.50213799999999997},{"$f":"IFERROR(INDEX('Data Annex'!$K$1:$AN$1498,MATCH(IFRS9!G$46&\"|\"&IFRS9!$B70,'Data Annex'!$K$1:$K$1498,0),MATCH(IFRS9!G$47,'Data Annex'!$K$1:$AN$1,0)),\"\")","v":0.72859600000000002},{"$f":"IFERROR(INDEX('Data Annex'!$K$1:$AN$1498,MATCH(IFRS9!H$46&\"|\"&IFRS9!$B70,'Data Annex'!$K$1:$K$1498,0),MATCH(IFRS9!H$47,'Data Annex'!$K$1:$AN$1,0)),\"\")","v":0.74307500000000004},{"$f":"IFERROR(INDEX('Data Annex'!$K$1:$AN$1498,MATCH(IFRS9!I$46&\"|\"&IFRS9!$B70,'Data Annex'!$K$1:$K$1498,0),MATCH(IFRS9!I$47,'Data Annex'!$K$1:$AN$1,0)),\"\")","v":0.82428000000000001},{"$f":"IFERROR(INDEX('Data Annex'!$K$1:$AN$1498,MATCH(IFRS9!J$46&\"|\"&IFRS9!$B70,'Data Annex'!$K$1:$K$1498,0),MATCH(IFRS9!J$47,'Data Annex'!$K$1:$AN$1,0)),\"\")","v":0.91909976760000001},{"$f":"IFERROR(INDEX('Data Annex'!$K$1:$AN$1498,MATCH(IFRS9!K$46&\"|\"&IFRS9!$B70,'Data Annex'!$K$1:$K$1498,0),MATCH(IFRS9!K$47,'Data Annex'!$K$1:$AN$1,0)),\"\")","v":0.94796567649999997},{"$f":"IFERROR(INDEX('Data Annex'!$K$1:$AN$1498,MATCH(IFRS9!L$46&\"|\"&IFRS9!$B70,'Data Annex'!$K$1:$K$1498,0),MATCH(IFRS9!L$47,'Data Annex'!$K$1:$AN$1,0)),\"\")","v":0.94444975269999998},{"$f":"IFERROR(INDEX('Data Annex'!$K$1:$AN$1498,MATCH(IFRS9!M$46&\"|\"&IFRS9!$B70,'Data Annex'!$K$1:$K$1498,0),MATCH(IFRS9!M$47,'Data Annex'!$K$1:$AN$1,0)),\"\")","v":0.95268598049999997},{"$f":"IFERROR(INDEX('Data Annex'!$K$1:$AN$1498,MATCH(IFRS9!N$46&\"|\"&IFRS9!$B70,'Data Annex'!$K$1:$K$1498,0),MATCH(IFRS9!N$47,'Data Annex'!$K$1:$AN$1,0)),\"\")","v":5.0310970900000002E-2},{"$f":"IFERROR(INDEX('Data Annex'!$K$1:$AN$1498,MATCH(IFRS9!O$46&\"|\"&IFRS9!$B70,'Data Annex'!$K$1:$K$1498,0),MATCH(IFRS9!O$47,'Data Annex'!$K$1:$AN$1,0)),\"\")","v":4.6424904900000001E-2},{"$f":"IFERROR(INDEX('Data Annex'!$K$1:$AN$1498,MATCH(IFRS9!P$46&\"|\"&IFRS9!$B70,'Data Annex'!$K$1:$K$1498,0),MATCH(IFRS9!P$47,'Data Annex'!$K$1:$AN$1,0)),\"\")","v":3.4888806600000002E-2},{"$f":"IFERROR(INDEX('Data Annex'!$K$1:$AN$1498,MATCH(IFRS9!Q$46&\"|\"&IFRS9!$B70,'Data Annex'!$K$1:$K$1498,0),MATCH(IFRS9!Q$47,'Data Annex'!$K$1:$AN$1,0)),\"\")","v":3.3642694200000003E-2},{"$f":"IFERROR(INDEX('Data Annex'!$K$1:$AN$1498,MATCH(IFRS9!R$46&\"|\"&IFRS9!$B70,'Data Annex'!$K$1:$K$1498,0),MATCH(IFRS9!R$47,'Data Annex'!$K$1:$AN$1,0)),\"\")","v":3.0589261499999999E-2},{"$f":"IFERROR(INDEX('Data Annex'!$K$1:$AN$1498,MATCH(IFRS9!S$46&\"|\"&IFRS9!$B70,'Data Annex'!$K$1:$K$1498,0),MATCH(IFRS9!S$47,'Data Annex'!$K$1:$AN$1,0)),\"\")","v":2.0061435200000002E-2},{"$f":"IFERROR(INDEX('Data Annex'!$K$1:$AN$1498,MATCH(IFRS9!T$46&\"|\"&IFRS9!$B70,'Data Annex'!$K$1:$K$1498,0),MATCH(IFRS9!T$47,'Data Annex'!$K$1:$AN$1,0)),\"\")","v":2.0661440600000001E-2},{"$f":"IFERROR(INDEX('Data Annex'!$K$1:$AN$1498,MATCH(IFRS9!U$46&\"|\"&IFRS9!$B70,'Data Annex'!$K$1:$K$1498,0),MATCH(IFRS9!U$47,'Data Annex'!$K$1:$AN$1,0)),\"\")","v":1.36713253E-2}]
[20,"LU",null,"LU",null,{"$f":"IFERROR(INDEX('Data Annex'!$K$1:$AN$1498,MATCH(IFRS9!F$46&\"|\"&IFRS9!$B71,'Data Annex'!$K$1:$K$1498,0),MATCH(IFRS9!F$47,'Data Annex'!$K$1:$AN$1,0)),\"\")","v":66.841242923999999},{"$f":"IFERROR(INDEX('Data Annex'!$K$1:$AN$1498,MATCH(IFRS9!G$46&\"|\"&IFRS9!$B71,'Data Annex'!$K$1:$K$1498,0),MATCH(IFRS9!G$47,'Data Annex'!$K$1:$AN$1,0)),\"\")","v":60.170920989000003},{"$f":"IFERROR(INDEX('Data Annex'!$K$1:$AN$1498,MATCH(IFRS9!H$46&\"|\"&IFRS9!$B71,'Data Annex'!$K$1:$K$1498,0),MATCH(IFRS9!H$47,'Data Annex'!$K$1:$AN$1,0)),\"\")","v":57.505482934},{"$f":"IFERROR(INDEX('Data Annex'!$K$1:$AN$1498,MATCH(IFRS9!I$46&\"|\"&IFRS9!$B71,'Data Annex'!$K$1:$K$1498,0),MATCH(IFRS9!I$47,'Data Annex'!$K$1:$AN$1,0)),\"\")","v":14.048064928000001},{"$f":"IFERROR(INDEX('Data Annex'!$K$1:$AN$1498,MATCH(IFRS9!J$46&\"|\"&IFRS9!$B71,'Data Annex'!$K$1:$K$1498,0),MATCH(IFRS9!J$47,'Data Annex'!$K$1:$AN$1,0)),\"\")","v":0.1037044251},{"$f":"IFERROR(INDEX('Data Annex'!$K$1:$AN$1498,MATCH(IFRS9!K$46&\"|\"&IFRS9!$B71,'Data Annex'!$K$1:$K$1498,0),MATCH(IFRS9!K$47,'Data Annex'!$K$1:$AN$1,0)),\"\")","v":0.14396591889999999},{"$f":"IFERROR(INDEX('Data Annex'!$K$1:$AN$1498,MATCH(IFRS9!L$46&\"|\"&IFRS9!$B71,'Data Annex'!$K$1:$K$1498,0),MATCH(IFRS9!L$47,'Data Annex'!$K$1:$AN$1,0)),\"\")","v":0.14214835519999999},{"$f":"IFERROR(INDEX('Data Annex'!$K$1:$AN$1498,MATCH(IFRS9!M$46&\"|\"&IFRS9!$B71,'Data Annex'!$K$1:$K$1498,0),MATCH(IFRS9!M$47,'Data Annex'!$K$1:$AN$1,0)),\"\")","v":0.5829781664},{"$f":"IFERROR(INDEX('Data Annex'!$K$1:$AN$1498,MATCH(IFRS9!N$46&\"|\"&IFRS9!$B71,'Data Annex'!$K$1:$K$1498,0),MATCH(IFRS9!N$47,'Data Annex'!$K$1:$AN$1,0)),\"\")","v":0.53804039889999999},{"$f":"IFERROR(INDEX('Data Annex'!$K$1:$AN$1498,MATCH(IFRS9!O$46&\"|\"&IFRS9!$B71,'Data Annex'!$K$1:$K$1498,0),MATCH(IFRS9!O$47,'Data Annex'!$K$1:$AN$1,0)),\"\")","v":0.4173267068},{"$f":"IFERROR(INDEX('Data Annex'!$K$1:$AN$1498,MATCH(IFRS9!P$46&\"|\"&IFRS9!$B71,'Data Annex'!$K$1:$K$1498,0),MATCH(IFRS9!P$47,'Data Annex'!$K$1:$AN$1,0)),\"\")","v":0.40735459200000002},{"$f":"IFERROR(INDEX('Data Annex'!$K$1:$AN$1498,MATCH(IFRS9!Q$46&\"|\"&IFRS9!$B71,'Data Annex'!$K$1:$K$1498,0),MATCH(IFRS9!Q$47,'Data Annex'!$K$1:$AN$1,0)),\"\")","v":0.370404126},{"$f":"IFERROR(INDEX('Data Annex'!$K$1:$AN$1498,MATCH(IFRS9!R$46&\"|\"&IFRS9!$B71,'Data Annex'!$K$1:$K$1498,0),MATCH(IFRS9!R$47,'Data Annex'!$K$1:$AN$1,0)),\"\")","v":0.35825517600000001},{"$f":"IFERROR(INDEX('Data Annex'!$K$1:$AN$1498,MATCH(IFRS9!S$46&\"|\"&IFRS9!$B71,'Data Annex'!$K$1:$K$1498,0),MATCH(IFRS9!S$47,'Data Annex'!$K$1:$AN$1,0)),\"\")","v":0.43870737430000001},{"$f":"IFERROR(INDEX('Data Annex'!$K$1:$AN$1498,MATCH(IFRS9!T$46&\"|\"&IFRS9!$B71,'Data Annex'!$K$1:$K$1498,0),MATCH(IFRS9!T$47,'Data Annex'!$K$1:$AN$1,0)),\"\")","v":0.45049705270000001},{"$f":"IFERROR(INDEX('Data Annex'!$K$1:$AN$1498,MATCH(IFRS9!U$46&\"|\"&IFRS9!$B71,'Data Annex'!$K$1:$K$1498,0),MATCH(IFRS9!U$47,'Data Annex'!$K$1:$AN$1,0)),\"\")","v":4.6617707699999997E-2}]
[21,"LV",null,"LV",null,{"$f":"IFERROR(INDEX('Data Annex'!$K$1:$AN$1498,MATCH(IFRS9!F$46&\"|\"&IFRS9!$B72,'Data Annex'!$K$1:$K$1498,0),MATCH(IFRS9!F$47,'Data Annex'!$K$1:$AN$1,0)),\"\")","v":0.59023957199999999},{"$f":"IFERROR(INDEX('Data Annex'!$K$1:$AN$1498,MATCH(IFRS9!G$46&\"|\"&IFRS9!$B72,'Data Annex'!$K$1:$K$1498,0),MATCH(IFRS9!G$47,'Data Annex'!$K$1:$AN$1,0)),\"\")","v":1.6643622},{"$f":"IFERROR(INDEX('Data Annex'!$K$1:$AN$1498,MATCH(IFRS9!H$46&\"|\"&IFRS9!$B72,'Data Annex'!$K$1:$K$1498,0),MATCH(IFRS9!H$47,'Data Annex'!$K$1:$AN$1,0)),\"\")","v":1.772444871},{"$f":"IFERROR(INDEX('Data Annex'!$K$1:$AN$1498,MATCH(IFRS9!I$46&\"|\"&IFRS9!$B72,'Data Annex'!$K$1:$K$1498,0),MATCH(IFRS9!I$47,'Data Annex'!$K$1:$AN$1,0)),\"\")","v":0.66970781199999996},{"$f":"IFERROR(INDEX('Data Annex'!$K$1:$AN$1498,MATCH(IFRS9!J$46&\"|\"&IFRS9!$B72,'Data Annex'!$K$1:$K$1498,0),MATCH(IFRS9!J$47,'Data Annex'!$K$1:$AN$1,0)),\"\")","v":0.86840141069999999},{"$f":"IFERROR(INDEX('Data Annex'!$K$1:$AN$1498,MATCH(IFRS9!K$46&\"|\"&IFRS9!$B72,'Data Annex'!$K$1:$K$1498,0),MATCH(IFRS9!K$47,'Data Annex'!$K$1:$AN$1,0)),\"\")","v":0.44143202180000002},{"$f":"IFERROR(INDEX('Data Annex'!$K$1:$AN$1498,MATCH(IFRS9!L$46&\"|\"&IFRS9!$B72,'Data Annex'!$K$1:$K$1498,0),MATCH(IFRS9!L$47,'Data Annex'!$K$1:$AN$1,0)),\"\")","v":0.47960333430000002},{"$f":"IFERROR(INDEX('Data Annex'!$K$1:$AN$1498,MATCH(IFRS9!M$46&\"|\"&IFRS9!$B72,'Data Annex'!$K$1:$K$1498,0),MATCH(IFRS9!M$47,'Data Annex'!$K$1:$AN$1,0)),\"\")","v":0.93729468549999995},{"$f":"IFERROR(INDEX('Data Annex'!$K$1:$AN$1498,MATCH(IFRS9!N$46&\"|\"&IFRS9!$B72,'Data Annex'!$K$1:$K$1498,0),MATCH(IFRS9!N$47,'Data Annex'!$K$1:$AN$1,0)),\"\")","v":0.110188593},{"$f":"IFERROR(INDEX('Data Annex'!$K$1:$AN$1498,MATCH(IFRS9!O$46&\"|\"&IFRS9!$B72,'Data Annex'!$K$1:$K$1498,0),MATCH(IFRS9!O$47,'Data Annex'!$K$1:$AN$1,0)),\"\")","v":0.55041465190000005},{"$f":"IFERROR(INDEX('Data Annex'!$K$1:$AN$1498,MATCH(IFRS9!P$46&\"|\"&IFRS9!$B72,'Data Annex'!$K$1:$K$1498,0),MATCH(IFRS9!P$47,'Data Annex'!$K$1:$AN$1,0)),\"\")","v":0.51463520409999997},{"$f":"IFERROR(INDEX('Data Annex'!$K$1:$AN$1498,MATCH(IFRS9!Q$46&\"|\"&IFRS9!$B72,'Data Annex'!$K$1:$K$1498,0),MATCH(IFRS9!Q$47,'Data Annex'!$K$1:$AN$1,0)),\"\")","v":5.4318589899999999E-2},{"$f":"IFERROR(INDEX('Data Annex'!$K$1:$AN$1498,MATCH(IFRS9!R$46&\"|\"&IFRS9!$B72,'Data Annex'!$K$1:$K$1498,0),MATCH(IFRS9!R$47,'Data Annex'!$K$1:$AN$1,0)),\"\")","v":2.14099962E-2},{"$f":"IFERROR(INDEX('Data Annex'!$K$1:$AN$1498,MATCH(IFRS9!S$46&\"|\"&IFRS9!$B72,'Data Annex'!$K$1:$K$1498,0),MATCH(IFRS9!S$47,'Data Annex'!$K$1:$AN$1,0)),\"\")","v":8.1533261999999999E-3},{"$f":"IFERROR(INDEX('Data Annex'!$K$1:$AN$1498,MATCH(IFRS9!T$46&\"|\"&IFRS9!$B72,'Data Annex'!$K$1:$K$1498,0),MATCH(IFRS9!T$47,'Data Annex'!$K$1:$AN$1,0)),\"\")","v":5.7614616E-3},{"$f":"IFERROR(INDEX('Data Annex'!$K$1:$AN$1498,MATCH(IFRS9!U$46&\"|\"&IFRS9!$B72,'Data Annex'!$K$1:$K$1498,0),MATCH(IFRS9!U$47,'Data Annex'!$K$1:$AN$1,0)),\"\")","v":8.3867245999999993E-3}]
[22,"MT",null,"MT",null,{"$f":"IFERROR(INDEX('Data Annex'!$K$1:$AN$1498,MATCH(IFRS9!F$46&\"|\"&IFRS9!$B73,'Data Annex'!$K$1:$K$1498,0),MATCH(IFRS9!F$47,'Data Annex'!$K$1:$AN$1,0)),\"\")","v":2.0105126383999998},{"$f":"IFERROR(INDEX('Data Annex'!$K$1:$AN$1498,MATCH(IFRS9!G$46&\"|\"&IFRS9!$B73,'Data Annex'!$K$1:$K$1498,0),MATCH(IFRS9!G$47,'Data Annex'!$K$1:$AN$1,0)),\"\")","v":2.6036003951},{"$f":"IFERROR(INDEX('Data Annex'!$K$1:$AN$1498,MATCH(IFRS9!H$46&\"|\"&IFRS9!$B73,'Data Annex'!$K$1:$K$1498,0),MATCH(IFRS9!H$47,'Data Annex'!$K$1:$AN$1,0)),\"\")","v":2.4362537705},{"$f":"IFERROR(INDEX('Data Annex'!$K$1:$AN$1498,MATCH(IFRS9!I$46&\"|\"&IFRS9!$B73,'Data Annex'!$K$1:$K$1498,0),MATCH(IFRS9!I$47,'Data Annex'!$K$1:$AN$1,0)),\"\")","v":2.2784051477},{"$f":"IFERROR(INDEX('Data Annex'!$K$1:$AN$1498,MATCH(IFRS9!J$46&\"|\"&IFRS9!$B73,'Data Annex'!$K$1:$K$1498,0),MATCH(IFRS9!J$47,'Data Annex'!$K$1:$AN$1,0)),\"\")","v":0.70518516929999997},{"$f":"IFERROR(INDEX('Data Annex'!$K$1:$AN$1498,MATCH(IFRS9!K$46&\"|\"&IFRS9!$B73,'Data Annex'!$K$1:$K$1498,0),MATCH(IFRS9!K$47,'Data Annex'!$K$1:$AN$1,0)),\"\")","v":0.67138733559999997},{"$f":"IFERROR(INDEX('Data Annex'!$K$1:$AN$1498,MATCH(IFRS9!L$46&\"|\"&IFRS9!$B73,'Data Annex'!$K$1:$K$1498,0),MATCH(IFRS9!L$47,'Data Annex'!$K$1:$AN$1,0)),\"\")","v":0.65564187380000005},{"$f":"IFERROR(INDEX('Data Annex'!$K$1:$AN$1498,MATCH(IFRS9!M$46&\"|\"&IFRS9!$B73,'Data Annex'!$K$1:$K$1498,0),MATCH(IFRS9!M$47,'Data Annex'!$K$1:$AN$1,0)),\"\")","v":0.71798417530000003},{"$f":"IFERROR(INDEX('Data Annex'!$K$1:$AN$1498,MATCH(IFRS9!N$46&\"|\"&IFRS9!$B73,'Data Annex'!$K$1:$K$1498,0),MATCH(IFRS9!N$47,'Data Annex'!$K$1:$AN$1,0)),\"\")","v":0.28467692459999999},{"$f":"IFERROR(INDEX('Data Annex'!$K$1:$AN$1498,MATCH(IFRS9!O$46&\"|\"&IFRS9!$B73,'Data Annex'!$K$1:$K$1498,0),MATCH(IFRS9!O$47,'Data Annex'!$K$1:$AN$1,0)),\"\")","v":0.32098432840000002},{"$f":"IFERROR(INDEX('Data Annex'!$K$1:$AN$1498,MATCH(IFRS9!P$46&\"|\"&IFRS9!$B73,'Data Annex'!$K$1:$K$1498,0),MATCH(IFRS9!P$47,'Data Annex'!$K$1:$AN$1,0)),\"\")","v":0.3355506862},{"$f":"IFERROR(INDEX('Data Annex'!$K$1:$AN$1498,MATCH(IFRS9!Q$46&\"|\"&IFRS9!$B73,'Data Annex'!$K$1:$K$1498,0),MATCH(IFRS9!Q$47,'Data Annex'!$K$1:$AN$1,0)),\"\")","v":0.27271825},{"$f":"IFERROR(INDEX('Data Annex'!$K$1:$AN$1498,MATCH(IFRS9!R$46&\"|\"&IFRS9!$B73,'Data Annex'!$K$1:$K$1498,0),MATCH(IFRS9!R$47,'Data Annex'!$K$1:$AN$1,0)),\"\")","v":1.01379061E-2},{"$f":"IFERROR(INDEX('Data Annex'!$K$1:$AN$1498,MATCH(IFRS9!S$46&\"|\"&IFRS9!$B73,'Data Annex'!$K$1:$K$1498,0),MATCH(IFRS9!S$47,'Data Annex'!$K$1:$AN$1,0)),\"\")","v":7.6283360999999999E-3},{"$f":"IFERROR(INDEX('Data Annex'!$K$1:$AN$1498,MATCH(IFRS9!T$46&\"|\"&IFRS9!$B73,'Data Annex'!$K$1:$K$1498,0),MATCH(IFRS9!T$47,'Data Annex'!$K$1:$AN$1,0)),\"\")","v":8.8074399000000001E-3},{"$f":"IFERROR(INDEX('Data Annex'!$K$1:$AN$1498,MATCH(IFRS9!U$46&\"|\"&IFRS9!$B73,'Data Annex'!$K$1:$K$1498,0),MATCH(IFRS9!U$47,'Data Annex'!$K$1:$AN$1,0)),\"\")","v":9.2975747000000001E-3}]
[23,"NL",null,"NL",null,{"$f":"IFERROR(INDEX('Data Annex'!$K$1:$AN$1498,MATCH(IFRS9!F$46&\"|\"&IFRS9!$B74,'Data Annex'!$K$1:$K$1498,0),MATCH(IFRS9!F$47,'Data Annex'!$K$1:$AN$1,0)),\"\")","v":292.53534507000001},{"$f":"IFERROR(INDEX('Data Annex'!$K$1:$AN$1498,MATCH(IFRS9!G$46&\"|\"&IFRS9!$B74,'Data Annex'!$K$1:$K$1498,0),MATCH(IFRS9!G$47,'Data Annex'!$K$1:$AN$1,0)),\"\")","v":287.58546514},{"$f":"IFERROR(INDEX('Data Annex'!$K$1:$AN$1498,MATCH(IFRS9!H$46&\"|\"&IFRS9!$B74,'Data Annex'!$K$1:$K$1498,0),MATCH(IFRS9!H$47,'Data Annex'!$K$1:$AN$1,0)),\"\")","v":281.76387813000002},{"$f":"IFERROR(INDEX('Data Annex'!$K$1:$AN$1498,MATCH(IFRS9!I$46&\"|\"&IFRS9!$B74,'Data Annex'!$K$1:$K$1498,0),MATCH(IFRS9!I$47,'Data Annex'!$K$1:$AN$1,0)),\"\")","v":267.15766095999999},{"$f":"IFERROR(INDEX('Data Annex'!$K$1:$AN$1498,MATCH(IFRS9!J$46&\"|\"&IFRS9!$B74,'Data Annex'!$K$1:$K$1498,0),MATCH(IFRS9!J$47,'Data Annex'!$K$1:$AN$1,0)),\"\")","v":0.40616787710000002},{"$f":"IFERROR(INDEX('Data Annex'!$K$1:$AN$1498,MATCH(IFRS9!K$46&\"|\"&IFRS9!$B74,'Data Annex'!$K$1:$K$1498,0),MATCH(IFRS9!K$47,'Data Annex'!$K$1:$AN$1,0)),\"\")","v":0.43683969410000001},{"$f":"IFERROR(INDEX('Data Annex'!$K$1:$AN$1498,MATCH(IFRS9!L$46&\"|\"&IFRS9!$B74,'Data Annex'!$K$1:$K$1498,0),MATCH(IFRS9!L$47,'Data Annex'!$K$1:$AN$1,0)),\"\")","v":0.43553138769999999},{"$f":"IFERROR(INDEX('Data Annex'!$K$1:$AN$1498,MATCH(IFRS9!M$46&\"|\"&IFRS9!$B74,'Data Annex'!$K$1:$K$1498,0),MATCH(IFRS9!M$47,'Data Annex'!$K$1:$AN$1,0)),\"\")","v":0.44141847829999997},{"$f":"IFERROR(INDEX('Data Annex'!$K$1:$AN$1498,MATCH(IFRS9!N$46&\"|\"&IFRS9!$B74,'Data Annex'!$K$1:$K$1498,0),MATCH(IFRS9!N$47,'Data Annex'!$K$1:$AN$1,0)),\"\")","v":0.56274613979999999},{"$f":"IFERROR(INDEX('Data Annex'!$K$1:$AN$1498,MATCH(IFRS9!O$46&\"|\"&IFRS9!$B74,'Data Annex'!$K$1:$K$1498,0),MATCH(IFRS9!O$47,'Data Annex'!$K$1:$AN$1,0)),\"\")","v":0.53322021829999999},{"$f":"IFERROR(INDEX('Data Annex'!$K$1:$AN$1498,MATCH(IFRS9!P$46&\"|\"&IFRS9!$B74,'Data Annex'!$K$1:$K$1498,0),MATCH(IFRS9!P$47,'Data Annex'!$K$1:$AN$1,0)),\"\")","v":0.53529618180000005},{"$f":"IFERROR(INDEX('Data Annex'!$K$1:$AN$1498,MATCH(IFRS9!Q$46&\"|\"&IFRS9!$B74,'Data Annex'!$K$1:$K$1498,0),MATCH(IFRS9!Q$47,'Data Annex'!$K$1:$AN$1,0)),\"\")","v":0.5283930228},{"$f":"IFERROR(INDEX('Data Annex'!$K$1:$AN$1498,MATCH(IFRS9!R$46&\"|\"&IFRS9!$B74,'Data Annex'!$K$1:$K$1498,0),MATCH(IFRS9!R$47,'Data Annex'!$K$1:$AN$1,0)),\"\")","v":3.1085983099999999E-2},{"$f":"IFERROR(INDEX('Data Annex'!$K$1:$AN$1498,MATCH(IFRS9!S$46&\"|\"&IFRS9!$B74,'Data Annex'!$K$1:$K$1498,0),MATCH(IFRS9!S$47,'Data Annex'!$K$1:$AN$1,0)),\"\")","v":2.9940087600000002E-2},{"$f":"IFERROR(INDEX('Data Annex'!$K$1:$AN$1498,MATCH(IFRS9!T$46&\"|\"&IFRS9!$B74,'Data Annex'!$K$1:$K$1498,0),MATCH(IFRS9!T$47,'Data Annex'!$K$1:$AN$1,0)),\"\")","v":2.9172430499999999E-2},{"$f":"IFERROR(INDEX('Data Annex'!$K$1:$AN$1498,MATCH(IFRS9!U$46&\"|\"&IFRS9!$B74,'Data Annex'!$K$1:$K$1498,0),MATCH(IFRS9!U$47,'Data Annex'!$K$1:$AN$1,0)),\"\")","v":3.0188498899999999E-2}]
[24,"NO",null,"NO",null,{"$f":"IFERROR(INDEX('Data Annex'!$K$1:$AN$1498,MATCH(IFRS9!F$46&\"|\"&IFRS9!$B75,'Data Annex'!$K$1:$K$1498,0),MATCH(IFRS9!F$47,'Data Annex'!$K$1:$AN$1,0)),\"\")","v":66.096563958999994},{"$f":"IFERROR(INDEX('Data Annex'!$K$1:$AN$1498,MATCH(IFRS9!G$46&\"|\"&IFRS9!$B75,'Data Annex'!$K$1:$K$1498,0),MATCH(IFRS9!G$47,'Data Annex'!$K$1:$AN$1,0)),\"\")","v":69.804076514000002},{"$f":"IFERROR(INDEX('Data Annex'!$K$1:$AN$1498,MATCH(IFRS9!H$46&\"|\"&IFRS9!$B75,'Data Annex'!$K$1:$K$1498,0),MATCH(IFRS9!H$47,'Data Annex'!$K$1:$AN$1,0)),\"\")","v":64.560216796000006},{"$f":"IFERROR(INDEX('Data Annex'!$K$1:$AN$1498,MATCH(IFRS9!I$46&\"|\"&IFRS9!$B75,'Data Annex'!$K$1:$K$1498,0),MATCH(IFRS9!I$47,'Data Annex'!$K$1:$AN$1,0)),\"\")","v":68.874478147999994},{"$f":"IFERROR(INDEX('Data Annex'!$K$1:$AN$1498,MATCH(IFRS9!J$46&\"|\"&IFRS9!$B75,'Data Annex'!$K$1:$K$1498,0),MATCH(IFRS9!J$47,'Data Annex'!$K$1:$AN$1,0)),\"\")","v":6.2380570400000002E-2},{"$f":"IFERROR(INDEX('Data Annex'!$K$1:$AN$1498,MATCH(IFRS9!K$46&\"|\"&IFRS9!$B75,'Data Annex'!$K$1:$K$1498,0),MATCH(IFRS9!K$47,'Data Annex'!$K$1:$AN$1,0)),\"\")","v":7.87606795E-2},{"$f":"IFERROR(INDEX('Data Annex'!$K$1:$AN$1498,MATCH(IFRS9!L$46&\"|\"&IFRS9!$B75,'Data Annex'!$K$1:$K$1498,0),MATCH(IFRS9!L$47,'Data Annex'!$K$1:$AN$1,0)),\"\")","v":8.3548962300000001E-2},{"$f":"IFERROR(INDEX('Data Annex'!$K$1:$AN$1498,MATCH(IFRS9!M$46&\"|\"&IFRS9!$B75,'Data Annex'!$K$1:$K$1498,0),MATCH(IFRS9!M$47,'Data Annex'!$K$1:$AN$1,0)),\"\")","v":0.10391488760000001},{"$f":"IFERROR(INDEX('Data Annex'!$K$1:$AN$1498,MATCH(IFRS9!N$46&\"|\"&IFRS9!$B75,'Data Annex'!$K$1:$K$1498,0),MATCH(IFRS9!N$47,'Data Annex'!$K$1:$AN$1,0)),\"\")","v":0.73640468729999997},{"$f":"IFERROR(INDEX('Data Annex'!$K$1:$AN$1498,MATCH(IFRS9!O$46&\"|\"&IFRS9!$B75,'Data Annex'!$K$1:$K$1498,0),MATCH(IFRS9!O$47,'Data Annex'!$K$1:$AN$1,0)),\"\")","v":0.71902938709999997},{"$f":"IFERROR(INDEX('Data Annex'!$K$1:$AN$1498,MATCH(IFRS9!P$46&\"|\"&IFRS9!$B75,'Data Annex'!$K$1:$K$1498,0),MATCH(IFRS9!P$47,'Data Annex'!$K$1:$AN$1,0)),\"\")","v":0.69929603289999998},{"$f":"IFERROR(INDEX('Data Annex'!$K$1:$AN$1498,MATCH(IFRS9!Q$46&\"|\"&IFRS9!$B75,'Data Annex'!$K$1:$K$1498,0),MATCH(IFRS9!Q$47,'Data Annex'!$K$1:$AN$1,0)),\"\")","v":0.68021273380000002},{"$f":"IFERROR(INDEX('Data Annex'!$K$1:$AN$1498,MATCH(IFRS9!R$46&\"|\"&IFRS9!$B75,'Data Annex'!$K$1:$K$1498,0),MATCH(IFRS9!R$47,'Data Annex'!$K$1:$AN$1,0)),\"\")","v":0.20121474219999999},{"$f":"IFERROR(INDEX('Data Annex'!$K$1:$AN$1498,MATCH(IFRS9!S$46&\"|\"&IFRS9!$B75,'Data Annex'!$K$1:$K$1498,0),MATCH(IFRS9!S$47,'Data Annex'!$K$1:$AN$1,0)),\"\")","v":0.20220993340000001},{"$f":"IFERROR(INDEX('Data Annex'!$K$1:$AN$1498,MATCH(IFRS9!T$46&\"|\"&IFRS9!$B75,'Data Annex'!$K$1:$K$1498,0),MATCH(IFRS9!T$47,'Data Annex'!$K$1:$AN$1,0)),\"\")","v":0.2171550048},{"$f":"IFERROR(INDEX('Data Annex'!$K$1:$AN$1498,MATCH(IFRS9!U$46&\"|\"&IFRS9!$B75,'Data Annex'!$K$1:$K$1498,0),MATCH(IFRS9!U$47,'Data Annex'!$K$1:$AN$1,0)),\"\")","v":0.21587237870000001}]
[25,"PL",null,"PL",null,{"$f":"IFERROR(INDEX('Data Annex'!$K$1:$AN$1498,MATCH(IFRS9!F$46&\"|\"&IFRS9!$B76,'Data Annex'!$K$1:$K$1498,0),MATCH(IFRS9!F$47,'Data Annex'!$K$1:$AN$1,0)),\"\")","v":36.76509386},{"$f":"IFERROR(INDEX('Data Annex'!$K$1:$AN$1498,MATCH(IFRS9!G$46&\"|\"&IFRS9!$B76,'Data Annex'!$K$1:$K$1498,0),MATCH(IFRS9!G$47,'Data Annex'!$K$1:$AN$1,0)),\"\")","v":46.254201688000002},{"$f":"IFERROR(INDEX('Data Annex'!$K$1:$AN$1498,MATCH(IFRS9!H$46&\"|\"&IFRS9!$B76,'Data Annex'!$K$1:$K$1498,0),MATCH(IFRS9!H$47,'Data Annex'!$K$1:$AN$1,0)),\"\")","v":46.958883471},{"$f":"IFERROR(INDEX('Data Annex'!$K$1:$AN$1498,MATCH(IFRS9!I$46&\"|\"&IFRS9!$B76,'Data Annex'!$K$1:$K$1498,0),MATCH(IFRS9!I$47,'Data Annex'!$K$1:$AN$1,0)),\"\")","v":46.502151728999998},{"$f":"IFERROR(INDEX('Data Annex'!$K$1:$AN$1498,MATCH(IFRS9!J$46&\"|\"&IFRS9!$B76,'Data Annex'!$K$1:$K$1498,0),MATCH(IFRS9!J$47,'Data Annex'!$K$1:$AN$1,0)),\"\")","v":0.69231874179999997},{"$f":"IFERROR(INDEX('Data Annex'!$K$1:$AN$1498,MATCH(IFRS9!K$46&\"|\"&IFRS9!$B76,'Data Annex'!$K$1:$K$1498,0),MATCH(IFRS9!K$47,'Data Annex'!$K$1:$AN$1,0)),\"\")","v":0.65096599840000002},{"$f":"IFERROR(INDEX('Data Annex'!$K$1:$AN$1498,MATCH(IFRS9!L$46&\"|\"&IFRS9!$B76,'Data Annex'!$K$1:$K$1498,0),MATCH(IFRS9!L$47,'Data Annex'!$K$1:$AN$1,0)),\"\")","v":0.64344528050000005},{"$f":"IFERROR(INDEX('Data Annex'!$K$1:$AN$1498,MATCH(IFRS9!M$46&\"|\"&IFRS9!$B76,'Data Annex'!$K$1:$K$1498,0),MATCH(IFRS9!M$47,'Data Annex'!$K$1:$AN$1,0)),\"\")","v":0.69558742330000001},{"$f":"IFERROR(INDEX('Data Annex'!$K$1:$AN$1498,MATCH(IFRS9!N$46&\"|\"&IFRS9!$B76,'Data Annex'!$K$1:$K$1498,0),MATCH(IFRS9!N$47,'Data Annex'!$K$1:$AN$1,0)),\"\")","v":0.1830182816},{"$f":"IFERROR(INDEX('Data Annex'!$K$1:$AN$1498,MATCH(IFRS9!O$46&\"|\"&IFRS9!$B76,'Data Annex'!$K$1:$K$1498,0),MATCH(IFRS9!O$47,'Data Annex'!$K$1:$AN$1,0)),\"\")","v":0.2460144112},{"$f":"IFERROR(INDEX('Data Annex'!$K$1:$AN$1498,MATCH(IFRS9!P$46&\"|\"&IFRS9!$B76,'Data Annex'!$K$1:$K$1498,0),MATCH(IFRS9!P$47,'Data Annex'!$K$1:$AN$1,0)),\"\")","v":0.24092532550000001},{"$f":"IFERROR(INDEX('Data Annex'!$K$1:$AN$1498,MATCH(IFRS9!Q$46&\"|\"&IFRS9!$B76,'Data Annex'!$K$1:$K$1498,0),MATCH(IFRS9!Q$47,'Data Annex'!$K$1:$AN$1,0)),\"\")","v":0.1953396657},{"$f":"IFERROR(INDEX('Data Annex'!$K$1:$AN$1498,MATCH(IFRS9!R$46&\"|\"&IFRS9!$B76,'Data Annex'!$K$1:$K$1498,0),MATCH(IFRS9!R$47,'Data Annex'!$K$1:$AN$1,0)),\"\")","v":0.1246629767},{"$f":"IFERROR(INDEX('Data Annex'!$K$1:$AN$1498,MATCH(IFRS9!S$46&\"|\"&IFRS9!$B76,'Data Annex'!$K$1:$K$1498,0),MATCH(IFRS9!S$47,'Data Annex'!$K$1:$AN$1,0)),\"\")","v":0.1030195904},{"$f":"IFERROR(INDEX('Data Annex'!$K$1:$AN$1498,MATCH(IFRS9!T$46&\"|\"&IFRS9!$B76,'Data Annex'!$K$1:$K$1498,0),MATCH(IFRS9!T$47,'Data Annex'!$K$1:$AN$1,0)),\"\")","v":0.115629394},{"$f":"IFERROR(INDEX('Data Annex'!$K$1:$AN$1498,MATCH(IFRS9!U$46&\"|\"&IFRS9!$B76,'Data Annex'!$K$1:$K$1498,0),MATCH(IFRS9!U$47,'Data Annex'!$K$1:$AN$1,0)),\"\")","v":0.1090729111}]
[26,"PT",null,"PT",null,{"$f":"IFERROR(INDEX('Data Annex'!$K$1:$AN$1498,MATCH(IFRS9!F$46&\"|\"&IFRS9!$B77,'Data Annex'!$K$1:$K$1498,0),MATCH(IFRS9!F$47,'Data Annex'!$K$1:$AN$1,0)),\"\")","v":52.274652160000002},{"$f":"IFERROR(INDEX('Data Annex'!$K$1:$AN$1498,MATCH(IFRS9!G$46&\"|\"&IFRS9!$B77,'Data Annex'!$K$1:$K$1498,0),MATCH(IFRS9!G$47,'Data Annex'!$K$1:$AN$1,0)),\"\")","v":56.317454161999997},{"$f":"IFERROR(INDEX('Data Annex'!$K$1:$AN$1498,MATCH(IFRS9!H$46&\"|\"&IFRS9!$B77,'Data Annex'!$K$1:$K$1498,0),MATCH(IFRS9!H$47,'Data Annex'!$K$1:$AN$1,0)),\"\")","v":53.998454115000001},{"$f":"IFERROR(INDEX('Data Annex'!$K$1:$AN$1498,MATCH(IFRS9!I$46&\"|\"&IFRS9!$B77,'Data Annex'!$K$1:$K$1498,0),MATCH(IFRS9!I$47,'Data Annex'!$K$1:$AN$1,0)),\"\")","v":50.080327820000001},{"$f":"IFERROR(INDEX('Data Annex'!$K$1:$AN$1498,MATCH(IFRS9!J$46&\"|\"&IFRS9!$B77,'Data Annex'!$K$1:$K$1498,0),MATCH(IFRS9!J$47,'Data Annex'!$K$1:$AN$1,0)),\"\")","v":0.68734286},{"$f":"IFERROR(INDEX('Data Annex'!$K$1:$AN$1498,MATCH(IFRS9!K$46&\"|\"&IFRS9!$B77,'Data Annex'!$K$1:$K$1498,0),MATCH(IFRS9!K$47,'Data Annex'!$K$1:$AN$1,0)),\"\")","v":0.71720752219999995},{"$f":"IFERROR(INDEX('Data Annex'!$K$1:$AN$1498,MATCH(IFRS9!L$46&\"|\"&IFRS9!$B77,'Data Annex'!$K$1:$K$1498,0),MATCH(IFRS9!L$47,'Data Annex'!$K$1:$AN$1,0)),\"\")","v":0.70971330420000001},{"$f":"IFERROR(INDEX('Data Annex'!$K$1:$AN$1498,MATCH(IFRS9!M$46&\"|\"&IFRS9!$B77,'Data Annex'!$K$1:$K$1498,0),MATCH(IFRS9!M$47,'Data Annex'!$K$1:$AN$1,0)),\"\")","v":0.70313313},{"$f":"IFERROR(INDEX('Data Annex'!$K$1:$AN$1498,MATCH(IFRS9!N$46&\"|\"&IFRS9!$B77,'Data Annex'!$K$1:$K$1498,0),MATCH(IFRS9!N$47,'Data Annex'!$K$1:$AN$1,0)),\"\")","v":0.17360323890000001},{"$f":"IFERROR(INDEX('Data Annex'!$K$1:$AN$1498,MATCH(IFRS9!O$46&\"|\"&IFRS9!$B77,'Data Annex'!$K$1:$K$1498,0),MATCH(IFRS9!O$47,'Data Annex'!$K$1:$AN$1,0)),\"\")","v":0.16047214539999999},{"$f":"IFERROR(INDEX('Data Annex'!$K$1:$AN$1498,MATCH(IFRS9!P$46&\"|\"&IFRS9!$B77,'Data Annex'!$K$1:$K$1498,0),MATCH(IFRS9!P$47,'Data Annex'!$K$1:$AN$1,0)),\"\")","v":0.1644149734},{"$f":"IFERROR(INDEX('Data Annex'!$K$1:$AN$1498,MATCH(IFRS9!Q$46&\"|\"&IFRS9!$B77,'Data Annex'!$K$1:$K$1498,0),MATCH(IFRS9!Q$47,'Data Annex'!$K$1:$AN$1,0)),\"\")","v":0.1679144129},{"$f":"IFERROR(INDEX('Data Annex'!$K$1:$AN$1498,MATCH(IFRS9!R$46&\"|\"&IFRS9!$B77,'Data Annex'!$K$1:$K$1498,0),MATCH(IFRS9!R$47,'Data Annex'!$K$1:$AN$1,0)),\"\")","v":0.13905390109999999},{"$f":"IFERROR(INDEX('Data Annex'!$K$1:$AN$1498,MATCH(IFRS9!S$46&\"|\"&IFRS9!$B77,'Data Annex'!$K$1:$K$1498,0),MATCH(IFRS9!S$47,'Data Annex'!$K$1:$AN$1,0)),\"\")","v":0.1223203324},{"$f":"IFERROR(INDEX('Data Annex'!$K$1:$AN$1498,MATCH(IFRS9!T$46&\"|\"&IFRS9!$B77,'Data Annex'!$K$1:$K$1498,0),MATCH(IFRS9!T$47,'Data Annex'!$K$1:$AN$1,0)),\"\")","v":0.1258717224},{"$f":"IFERROR(INDEX('Data Annex'!$K$1:$AN$1498,MATCH(IFRS9!U$46&\"|\"&IFRS9!$B77,'Data Annex'!$K$1:$K$1498,0),MATCH(IFRS9!U$47,'Data Annex'!$K$1:$AN$1,0)),\"\")","v":0.1289524571}]
[27,"RO",null,"RO",null,{"$f":"IFERROR(INDEX('Data Annex'!$K$1:$AN$1498,MATCH(IFRS9!F$46&\"|\"&IFRS9!$B78,'Data Annex'!$K$1:$K$1498,0),MATCH(IFRS9!F$47,'Data Annex'!$K$1:$AN$1,0)),\"\")","v":10.093566132999999},{"$f":"IFERROR(INDEX('Data Annex'!$K$1:$AN$1498,MATCH(IFRS9!G$46&\"|\"&IFRS9!$B78,'Data Annex'!$K$1:$K$1498,0),MATCH(IFRS9!G$47,'Data Annex'!$K$1:$AN$1,0)),\"\")","v":10.588039772},{"$f":"IFERROR(INDEX('Data Annex'!$K$1:$AN$1498,MATCH(IFRS9!H$46&\"|\"&IFRS9!$B78,'Data Annex'!$K$1:$K$1498,0),MATCH(IFRS9!H$47,'Data Annex'!$K$1:$AN$1,0)),\"\")","v":10.902048034},{"$f":"IFERROR(INDEX('Data Annex'!$K$1:$AN$1498,MATCH(IFRS9!I$46&\"|\"&IFRS9!$B78,'Data Annex'!$K$1:$K$1498,0),MATCH(IFRS9!I$47,'Data Annex'!$K$1:$AN$1,0)),\"\")","v":12.245197489000001},{"$f":"IFERROR(INDEX('Data Annex'!$K$1:$AN$1498,MATCH(IFRS9!J$46&\"|\"&IFRS9!$B78,'Data Annex'!$K$1:$K$1498,0),MATCH(IFRS9!J$47,'Data Annex'!$K$1:$AN$1,0)),\"\")","v":0.94815826469999998},{"$f":"IFERROR(INDEX('Data Annex'!$K$1:$AN$1498,MATCH(IFRS9!K$46&\"|\"&IFRS9!$B78,'Data Annex'!$K$1:$K$1498,0),MATCH(IFRS9!K$47,'Data Annex'!$K$1:$AN$1,0)),\"\")","v":0.94938972690000001},{"$f":"IFERROR(INDEX('Data Annex'!$K$1:$AN$1498,MATCH(IFRS9!L$46&\"|\"&IFRS9!$B78,'Data Annex'!$K$1:$K$1498,0),MATCH(IFRS9!L$47,'Data Annex'!$K$1:$AN$1,0)),\"\")","v":0.96737639330000003},{"$f":"IFERROR(INDEX('Data Annex'!$K$1:$AN$1498,MATCH(IFRS9!M$46&\"|\"&IFRS9!$B78,'Data Annex'!$K$1:$K$1498,0),MATCH(IFRS9!M$47,'Data Annex'!$K$1:$AN$1,0)),\"\")","v":0.9668655129},{"$f":"IFERROR(INDEX('Data Annex'!$K$1:$AN$1498,MATCH(IFRS9!N$46&\"|\"&IFRS9!$B78,'Data Annex'!$K$1:$K$1498,0),MATCH(IFRS9!N$47,'Data Annex'!$K$1:$AN$1,0)),\"\")","v":4.07801416E-2},{"$f":"IFERROR(INDEX('Data Annex'!$K$1:$AN$1498,MATCH(IFRS9!O$46&\"|\"&IFRS9!$B78,'Data Annex'!$K$1:$K$1498,0),MATCH(IFRS9!O$47,'Data Annex'!$K$1:$AN$1,0)),\"\")","v":3.9134886000000001E-2},{"$f":"IFERROR(INDEX('Data Annex'!$K$1:$AN$1498,MATCH(IFRS9!P$46&\"|\"&IFRS9!$B78,'Data Annex'!$K$1:$K$1498,0),MATCH(IFRS9!P$47,'Data Annex'!$K$1:$AN$1,0)),\"\")","v":2.2252836799999998E-2},{"$f":"IFERROR(INDEX('Data Annex'!$K$1:$AN$1498,MATCH(IFRS9!Q$46&\"|\"&IFRS9!$B78,'Data Annex'!$K$1:$K$1498,0),MATCH(IFRS9!Q$47,'Data Annex'!$K$1:$AN$1,0)),\"\")","v":2.5031755999999999E-2},{"$f":"IFERROR(INDEX('Data Annex'!$K$1:$AN$1498,MATCH(IFRS9!R$46&\"|\"&IFRS9!$B78,'Data Annex'!$K$1:$K$1498,0),MATCH(IFRS9!R$47,'Data Annex'!$K$1:$AN$1,0)),\"\")","v":1.1061593600000001E-2},{"$f":"IFERROR(INDEX('Data Annex'!$K$1:$AN$1498,MATCH(IFRS9!S$46&\"|\"&IFRS9!$B78,'Data Annex'!$K$1:$K$1498,0),MATCH(IFRS9!S$47,'Data Annex'!$K$1:$AN$1,0)),\"\")","v":1.14753871E-2},{"$f":"IFERROR(INDEX('Data Annex'!$K$1:$AN$1498,MATCH(IFRS9!T$46&\"|\"&IFRS9!$B78,'Data Annex'!$K$1:$K$1498,0),MATCH(IFRS9!T$47,'Data Annex'!$K$1:$AN$1,0)),\"\")","v":1.03707699E-2},{"$f":"IFERROR(INDEX('Data Annex'!$K$1:$AN$1498,MATCH(IFRS9!U$46&\"|\"&IFRS9!$B78,'Data Annex'!$K$1:$K$1498,0),MATCH(IFRS9!U$47,'Data Annex'!$K$1:$AN$1,0)),\"\")","v":8.1027310999999998E-3}]
[28,"SE",null,"SE",null,{"$f":"IFERROR(INDEX('Data Annex'!$K$1:$AN$1498,MATCH(IFRS9!F$46&\"|\"&IFRS9!$B79,'Data Annex'!$K$1:$K$1498,0),MATCH(IFRS9!F$47,'Data Annex'!$K$1:$AN$1,0)),\"\")","v":159.42303736},{"$f":"IFERROR(INDEX('Data Annex'!$K$1:$AN$1498,MATCH(IFRS9!G$46&\"|\"&IFRS9!$B79,'Data Annex'!$K$1:$K$1498,0),MATCH(IFRS9!G$47,'Data Annex'!$K$1:$AN$1,0)),\"\")","v":153.80799304999999},{"$f":"IFERROR(INDEX('Data Annex'!$K$1:$AN$1498,MATCH(IFRS9!H$46&\"|\"&IFRS9!$B79,'Data Annex'!$K$1:$K$1498,0),MATCH(IFRS9!H$47,'Data Annex'!$K$1:$AN$1,0)),\"\")","v":136.35014471},{"$f":"IFERROR(INDEX('Data Annex'!$K$1:$AN$1498,MATCH(IFRS9!I$46&\"|\"&IFRS9!$B79,'Data Annex'!$K$1:$K$1498,0),MATCH(IFRS9!I$47,'Data Annex'!$K$1:$AN$1,0)),\"\")","v":120.25003966},{"$f":"IFERROR(INDEX('Data Annex'!$K$1:$AN$1498,MATCH(IFRS9!J$46&\"|\"&IFRS9!$B79,'Data Annex'!$K$1:$K$1498,0),MATCH(IFRS9!J$47,'Data Annex'!$K$1:$AN$1,0)),\"\")","v":0.36193015899999997},{"$f":"IFERROR(INDEX('Data Annex'!$K$1:$AN$1498,MATCH(IFRS9!K$46&\"|\"&IFRS9!$B79,'Data Annex'!$K$1:$K$1498,0),MATCH(IFRS9!K$47,'Data Annex'!$K$1:$AN$1,0)),\"\")","v":0.36972703029999998},{"$f":"IFERROR(INDEX('Data Annex'!$K$1:$AN$1498,MATCH(IFRS9!L$46&\"|\"&IFRS9!$B79,'Data Annex'!$K$1:$K$1498,0),MATCH(IFRS9!L$47,'Data Annex'!$K$1:$AN$1,0)),\"\")","v":0.34805100509999998},{"$f":"IFERROR(INDEX('Data Annex'!$K$1:$AN$1498,MATCH(IFRS9!M$46&\"|\"&IFRS9!$B79,'Data Annex'!$K$1:$K$1498,0),MATCH(IFRS9!M$47,'Data Annex'!$K$1:$AN$1,0)),\"\")","v":0.38423655509999999},{"$f":"IFERROR(INDEX('Data Annex'!$K$1:$AN$1498,MATCH(IFRS9!N$46&\"|\"&IFRS9!$B79,'Data Annex'!$K$1:$K$1498,0),MATCH(IFRS9!N$47,'Data Annex'!$K$1:$AN$1,0)),\"\")","v":0.63382528159999996},{"$f":"IFERROR(INDEX('Data Annex'!$K$1:$AN$1498,MATCH(IFRS9!O$46&\"|\"&IFRS9!$B79,'Data Annex'!$K$1:$K$1498,0),MATCH(IFRS9!O$47,'Data Annex'!$K$1:$AN$1,0)),\"\")","v":0.62585369800000001},{"$f":"IFERROR(INDEX('Data Annex'!$K$1:$AN$1498,MATCH(IFRS9!P$46&\"|\"&IFRS9!$B79,'Data Annex'!$K$1:$K$1498,0),MATCH(IFRS9!P$47,'Data Annex'!$K$1:$AN$1,0)),\"\")","v":0.64744390500000004},{"$f":"IFERROR(INDEX('Data Annex'!$K$1:$AN$1498,MATCH(IFRS9!Q$46&\"|\"&IFRS9!$B79,'Data Annex'!$K$1:$K$1498,0),MATCH(IFRS9!Q$47,'Data Annex'!$K$1:$AN$1,0)),\"\")","v":0.61052948650000005},{"$f":"IFERROR(INDEX('Data Annex'!$K$1:$AN$1498,MATCH(IFRS9!R$46&\"|\"&IFRS9!$B79,'Data Annex'!$K$1:$K$1498,0),MATCH(IFRS9!R$47,'Data Annex'!$K$1:$AN$1,0)),\"\")","v":4.2445594000000003E-3},{"$f":"IFERROR(INDEX('Data Annex'!$K$1:$AN$1498,MATCH(IFRS9!S$46&\"|\"&IFRS9!$B79,'Data Annex'!$K$1:$K$1498,0),MATCH(IFRS9!S$47,'Data Annex'!$K$1:$AN$1,0)),\"\")","v":4.4192716999999996E-3},{"$f":"IFERROR(INDEX('Data Annex'!$K$1:$AN$1498,MATCH(IFRS9!T$46&\"|\"&IFRS9!$B79,'Data Annex'!$K$1:$K$1498,0),MATCH(IFRS9!T$47,'Data Annex'!$K$1:$AN$1,0)),\"\")","v":4.5050899000000002E-3},{"$f":"IFERROR(INDEX('Data Annex'!$K$1:$AN$1498,MATCH(IFRS9!U$46&\"|\"&IFRS9!$B79,'Data Annex'!$K$1:$K$1498,0),MATCH(IFRS9!U$47,'Data Annex'!$K$1:$AN$1,0)),\"\")","v":5.2339583999999996E-3}]
[29,"SI",null,"SI",null,{"$f":"IFERROR(INDEX('Data Annex'!$K$1:$AN$1498,MATCH(IFRS9!F$46&\"|\"&IFRS9!$B80,'Data Annex'!$K$1:$K$1498,0),MATCH(IFRS9!F$47,'Data Annex'!$K$1:$AN$1,0)),\"\")","v":4.7519172522000002},{"$f":"IFERROR(INDEX('Data Annex'!$K$1:$AN$1498,MATCH(IFRS9!G$46&\"|\"&IFRS9!$B80,'Data Annex'!$K$1:$K$1498,0),MATCH(IFRS9!G$47,'Data Annex'!$K$1:$AN$1,0)),\"\")","v":4.5384459767000003},{"$f":"IFERROR(INDEX('Data Annex'!$K$1:$AN$1498,MATCH(IFRS9!H$46&\"|\"&IFRS9!$B80,'Data Annex'!$K$1:$K$1498,0),MATCH(IFRS9!H$47,'Data Annex'!$K$1:$AN$1,0)),\"\")","v":4.6728201},{"$f":"IFERROR(INDEX('Data Annex'!$K$1:$AN$1498,MATCH(IFRS9!I$46&\"|\"&IFRS9!$B80,'Data Annex'!$K$1:$K$1498,0),MATCH(IFRS9!I$47,'Data Annex'!$K$1:$AN$1,0)),\"\")","v":5.9603892592000003},{"$f":"IFERROR(INDEX('Data Annex'!$K$1:$AN$1498,MATCH(IFRS9!J$46&\"|\"&IFRS9!$B80,'Data Annex'!$K$1:$K$1498,0),MATCH(IFRS9!J$47,'Data Annex'!$K$1:$AN$1,0)),\"\")","v":0.62370580529999997},{"$f":"IFERROR(INDEX('Data Annex'!$K$1:$AN$1498,MATCH(IFRS9!K$46&\"|\"&IFRS9!$B80,'Data Annex'!$K$1:$K$1498,0),MATCH(IFRS9!K$47,'Data Annex'!$K$1:$AN$1,0)),\"\")","v":0.8020807163},{"$f":"IFERROR(INDEX('Data Annex'!$K$1:$AN$1498,MATCH(IFRS9!L$46&\"|\"&IFRS9!$B80,'Data Annex'!$K$1:$K$1498,0),MATCH(IFRS9!L$47,'Data Annex'!$K$1:$AN$1,0)),\"\")","v":0.82030652540000004},{"$f":"IFERROR(INDEX('Data Annex'!$K$1:$AN$1498,MATCH(IFRS9!M$46&\"|\"&IFRS9!$B80,'Data Annex'!$K$1:$K$1498,0),MATCH(IFRS9!M$47,'Data Annex'!$K$1:$AN$1,0)),\"\")","v":0.6438870928},{"$f":"IFERROR(INDEX('Data Annex'!$K$1:$AN$1498,MATCH(IFRS9!N$46&\"|\"&IFRS9!$B80,'Data Annex'!$K$1:$K$1498,0),MATCH(IFRS9!N$47,'Data Annex'!$K$1:$AN$1,0)),\"\")","v":0.35713158039999998},{"$f":"IFERROR(INDEX('Data Annex'!$K$1:$AN$1498,MATCH(IFRS9!O$46&\"|\"&IFRS9!$B80,'Data Annex'!$K$1:$K$1498,0),MATCH(IFRS9!O$47,'Data Annex'!$K$1:$AN$1,0)),\"\")","v":0.17916987000000001},{"$f":"IFERROR(INDEX('Data Annex'!$K$1:$AN$1498,MATCH(IFRS9!P$46&\"|\"&IFRS9!$B80,'Data Annex'!$K$1:$K$1498,0),MATCH(IFRS9!P$47,'Data Annex'!$K$1:$AN$1,0)),\"\")","v":0.1611493796},{"$f":"IFERROR(INDEX('Data Annex'!$K$1:$AN$1498,MATCH(IFRS9!Q$46&\"|\"&IFRS9!$B80,'Data Annex'!$K$1:$K$1498,0),MATCH(IFRS9!Q$47,'Data Annex'!$K$1:$AN$1,0)),\"\")","v":0.34065498309999998},{"$f":"IFERROR(INDEX('Data Annex'!$K$1:$AN$1498,MATCH(IFRS9!R$46&\"|\"&IFRS9!$B80,'Data Annex'!$K$1:$K$1498,0),MATCH(IFRS9!R$47,'Data Annex'!$K$1:$AN$1,0)),\"\")","v":1.91626144E-2},{"$f":"IFERROR(INDEX('Data Annex'!$K$1:$AN$1498,MATCH(IFRS9!S$46&\"|\"&IFRS9!$B80,'Data Annex'!$K$1:$K$1498,0),MATCH(IFRS9!S$47,'Data Annex'!$K$1:$AN$1,0)),\"\")","v":1.8749413600000001E-2},{"$f":"IFERROR(INDEX('Data Annex'!$K$1:$AN$1498,MATCH(IFRS9!T$46&\"|\"&IFRS9!$B80,'Data Annex'!$K$1:$K$1498,0),MATCH(IFRS9!T$47,'Data Annex'!$K$1:$AN$1,0)),\"\")","v":1.8544094899999999E-2},{"$f":"IFERROR(INDEX('Data Annex'!$K$1:$AN$1498,MATCH(IFRS9!U$46&\"|\"&IFRS9!$B80,'Data Annex'!$K$1:$K$1498,0),MATCH(IFRS9!U$47,'Data Annex'!$K$1:$AN$1,0)),\"\")","v":1.5457924E-2}]
[30,"SK",null,"SK",null,{"$f":"IFERROR(INDEX('Data Annex'!$K$1:$AN$1498,MATCH(IFRS9!F$46&\"|\"&IFRS9!$B81,'Data Annex'!$K$1:$K$1498,0),MATCH(IFRS9!F$47,'Data Annex'!$K$1:$AN$1,0)),\"\")","v":1.9973038466999999},{"$f":"IFERROR(INDEX('Data Annex'!$K$1:$AN$1498,MATCH(IFRS9!G$46&\"|\"&IFRS9!$B81,'Data Annex'!$K$1:$K$1498,0),MATCH(IFRS9!G$47,'Data Annex'!$K$1:$AN$1,0)),\"\")","v":2.6810376500999999},{"$f":"IFERROR(INDEX('Data Annex'!$K$1:$AN$1498,MATCH(IFRS9!H$46&\"|\"&IFRS9!$B81,'Data Annex'!$K$1:$K$1498,0),MATCH(IFRS9!H$47,'Data Annex'!$K$1:$AN$1,0)),\"\")","v":2.4266548744000001},{"$f":"IFERROR(INDEX('Data Annex'!$K$1:$AN$1498,MATCH(IFRS9!I$46&\"|\"&IFRS9!$B81,'Data Annex'!$K$1:$K$1498,0),MATCH(IFRS9!I$47,'Data Annex'!$K$1:$AN$1,0)),\"\")","v":2.2088615892000001},{"$f":"IFERROR(INDEX('Data Annex'!$K$1:$AN$1498,MATCH(IFRS9!J$46&\"|\"&IFRS9!$B81,'Data Annex'!$K$1:$K$1498,0),MATCH(IFRS9!J$47,'Data Annex'!$K$1:$AN$1,0)),\"\")","v":0.51143957019999997},{"$f":"IFERROR(INDEX('Data Annex'!$K$1:$AN$1498,MATCH(IFRS9!K$46&\"|\"&IFRS9!$B81,'Data Annex'!$K$1:$K$1498,0),MATCH(IFRS9!K$47,'Data Annex'!$K$1:$AN$1,0)),\"\")","v":0.36347817119999998},{"$f":"IFERROR(INDEX('Data Annex'!$K$1:$AN$1498,MATCH(IFRS9!L$46&\"|\"&IFRS9!$B81,'Data Annex'!$K$1:$K$1498,0),MATCH(IFRS9!L$47,'Data Annex'!$K$1:$AN$1,0)),\"\")","v":0.33477454610000001},{"$f":"IFERROR(INDEX('Data Annex'!$K$1:$AN$1498,MATCH(IFRS9!M$46&\"|\"&IFRS9!$B81,'Data Annex'!$K$1:$K$1498,0),MATCH(IFRS9!M$47,'Data Annex'!$K$1:$AN$1,0)),\"\")","v":0.48334546639999998},{"$f":"IFERROR(INDEX('Data Annex'!$K$1:$AN$1498,MATCH(IFRS9!N$46&\"|\"&IFRS9!$B81,'Data Annex'!$K$1:$K$1498,0),MATCH(IFRS9!N$47,'Data Annex'!$K$1:$AN$1,0)),\"\")","v":0.4676338927},{"$f":"IFERROR(INDEX('Data Annex'!$K$1:$AN$1498,MATCH(IFRS9!O$46&\"|\"&IFRS9!$B81,'Data Annex'!$K$1:$K$1498,0),MATCH(IFRS9!O$47,'Data Annex'!$K$1:$AN$1,0)),\"\")","v":0.61702664409999997},{"$f":"IFERROR(INDEX('Data Annex'!$K$1:$AN$1498,MATCH(IFRS9!P$46&\"|\"&IFRS9!$B81,'Data Annex'!$K$1:$K$1498,0),MATCH(IFRS9!P$47,'Data Annex'!$K$1:$AN$1,0)),\"\")","v":0.64150677180000004},{"$f":"IFERROR(INDEX('Data Annex'!$K$1:$AN$1498,MATCH(IFRS9!Q$46&\"|\"&IFRS9!$B81,'Data Annex'!$K$1:$K$1498,0),MATCH(IFRS9!Q$47,'Data Annex'!$K$1:$AN$1,0)),\"\")","v":0.50405481330000002},{"$f":"IFERROR(INDEX('Data Annex'!$K$1:$AN$1498,MATCH(IFRS9!R$46&\"|\"&IFRS9!$B81,'Data Annex'!$K$1:$K$1498,0),MATCH(IFRS9!R$47,'Data Annex'!$K$1:$AN$1,0)),\"\")","v":2.09265371E-2},{"$f":"IFERROR(INDEX('Data Annex'!$K$1:$AN$1498,MATCH(IFRS9!S$46&\"|\"&IFRS9!$B81,'Data Annex'!$K$1:$K$1498,0),MATCH(IFRS9!S$47,'Data Annex'!$K$1:$AN$1,0)),\"\")","v":1.9495184700000001E-2},{"$f":"IFERROR(INDEX('Data Annex'!$K$1:$AN$1498,MATCH(IFRS9!T$46&\"|\"&IFRS9!$B81,'Data Annex'!$K$1:$K$1498,0),MATCH(IFRS9!T$47,'Data Annex'!$K$1:$AN$1,0)),\"\")","v":2.3718682200000001E-2},{"$f":"IFERROR(INDEX('Data Annex'!$K$1:$AN$1498,MATCH(IFRS9!U$46&\"|\"&IFRS9!$B81,'Data Annex'!$K$1:$K$1498,0),MATCH(IFRS9!U$47,'Data Annex'!$K$1:$AN$1,0)),\"\")","v":1.25997204E-2}]
[99,"EU",null,{"$f":"+D42","v":"EU/EEA"},null,{"$f":"IFERROR(INDEX('Data Annex'!$K$1:$AN$1498,MATCH(IFRS9!F$46&\"|\"&IFRS9!$B82,'Data Annex'!$K$1:$K$1498,0),MATCH(IFRS9!F$47,'Data Annex'!$K$1:$AN$1,0)),\"\")","v":6269.4026395000001},{"$f":"IFERROR(INDEX('Data Annex'!$K$1:$AN$1498,MATCH(IFRS9!G$46&\"|\"&IFRS9!$B82,'Data Annex'!$K$1:$K$1498,0),MATCH(IFRS9!G$47,'Data Annex'!$K$1:$AN$1,0)),\"\")","v":6053.0494606000002},{"$f":"IFERROR(INDEX('Data Annex'!$K$1:$AN$1498,MATCH(IFRS9!H$46&\"|\"&IFRS9!$B82,'Data Annex'!$K$1:$K$1498,0),MATCH(IFRS9!H$47,'Data Annex'!$K$1:$AN$1,0)),\"\")","v":5879.0574496999998},{"$f":"IFERROR(INDEX('Data Annex'!$K$1:$AN$1498,MATCH(IFRS9!I$46&\"|\"&IFRS9!$B82,'Data Annex'!$K$1:$K$1498,0),MATCH(IFRS9!I$47,'Data Annex'!$K$1:$AN$1,0)),\"\")","v":5573.2307446000004},{"$f":"IFERROR(INDEX('Data Annex'!$K$1:$AN$1498,MATCH(IFRS9!J$46&\"|\"&IFRS9!$B82,'Data Annex'!$K$1:$K$1498,0),MATCH(IFRS9!J$47,'Data Annex'!$K$1:$AN$1,0)),\"\")","v":0.29109277459999999},{"$f":"IFERROR(INDEX('Data Annex'!$K$1:$AN$1498,MATCH(IFRS9!K$46&\"|\"&IFRS9!$B82,'Data Annex'!$K$1:$K$1498,0),MATCH(IFRS9!K$47,'Data Annex'!$K$1:$AN$1,0)),\"\")","v":0.31715758649999998},{"$f":"IFERROR(INDEX('Data Annex'!$K$1:$AN$1498,MATCH(IFRS9!L$46&\"|\"&IFRS9!$B82,'Data Annex'!$K$1:$K$1498,0),MATCH(IFRS9!L$47,'Data Annex'!$K$1:$AN$1,0)),\"\")","v":0.31770257229999999},{"$f":"IFERROR(INDEX('Data Annex'!$K$1:$AN$1498,MATCH(IFRS9!M$46&\"|\"&IFRS9!$B82,'Data Annex'!$K$1:$K$1498,0),MATCH(IFRS9!M$47,'Data Annex'!$K$1:$AN$1,0)),\"\")","v":0.31860268580000001},{"$f":"IFERROR(INDEX('Data Annex'!$K$1:$AN$1498,MATCH(IFRS9!N$46&\"|\"&IFRS9!$B82,'Data Annex'!$K$1:$K$1498,0),MATCH(IFRS9!N$47,'Data Annex'!$K$1:$AN$1,0)),\"\")","v":0.67015765760000001},{"$f":"IFERROR(INDEX('Data Annex'!$K$1:$AN$1498,MATCH(IFRS9!O$46&\"|\"&IFRS9!$B82,'Data Annex'!$K$1:$K$1498,0),MATCH(IFRS9!O$47,'Data Annex'!$K$1:$AN$1,0)),\"\")","v":0.64534598529999998},{"$f":"IFERROR(INDEX('Data Annex'!$K$1:$AN$1498,MATCH(IFRS9!P$46&\"|\"&IFRS9!$B82,'Data Annex'!$K$1:$K$1498,0),MATCH(IFRS9!P$47,'Data Annex'!$K$1:$AN$1,0)),\"\")","v":0.64464568639999997},{"$f":"IFERROR(INDEX('Data Annex'!$K$1:$AN$1498,MATCH(IFRS9!Q$46&\"|\"&IFRS9!$B82,'Data Annex'!$K$1:$K$1498,0),MATCH(IFRS9!Q$47,'Data Annex'!$K$1:$AN$1,0)),\"\")","v":0.64218832609999998},{"$f":"IFERROR(INDEX('Data Annex'!$K$1:$AN$1498,MATCH(IFRS9!R$46&\"|\"&IFRS9!$B82,'Data Annex'!$K$1:$K$1498,0),MATCH(IFRS9!R$47,'Data Annex'!$K$1:$AN$1,0)),\"\")","v":3.8749567800000002E-2},{"$f":"IFERROR(INDEX('Data Annex'!$K$1:$AN$1498,MATCH(IFRS9!S$46&\"|\"&IFRS9!$B82,'Data Annex'!$K$1:$K$1498,0),MATCH(IFRS9!S$47,'Data Annex'!$K$1:$AN$1,0)),\"\")","v":3.7496428200000001E-2},{"$f":"IFERROR(INDEX('Data Annex'!$K$1:$AN$1498,MATCH(IFRS9!T$46&\"|\"&IFRS9!$B82,'Data Annex'!$K$1:$K$1498,0),MATCH(IFRS9!T$47,'Data Annex'!$K$1:$AN$1,0)),\"\")","v":3.76517413E-2},{"$f":"IFERROR(INDEX('Data Annex'!$K$1:$AN$1498,MATCH(IFRS9!U$46&\"|\"&IFRS9!$B82,'Data Annex'!$K$1:$K$1498,0),MATCH(IFRS9!U$47,'Data Annex'!$K$1:$AN$1,0)),\"\")","v":3.9208988200000003E-2}]
[12,"GB",null,{"$f":"IF(OR(J83=\"n.a.\",K83=\"n.a.\",L83=\"n.a.\",M83=\"n.a.\",N83=\"n.a.\",O83=\"n.a.\",P83=\"n.a.\",Q83=\"n.a.\"),$B83&\"*\",$B83)","v":"GB"},null,{"$f":"IFERROR(INDEX('Data Annex'!$K$1:$AN$1498,MATCH(IFRS9!F$46&\"|\"&IFRS9!$B83,'Data Annex'!$K$1:$K$1498,0),MATCH(IFRS9!F$47,'Data Annex'!$K$1:$AN$1,0)),\"\")","v":2911.9378538999999},{"$f":"IFERROR(INDEX('Data Annex'!$K$1:$AN$1498,MATCH(IFRS9!G$46&\"|\"&IFRS9!$B83,'Data Annex'!$K$1:$K$1498,0),MATCH(IFRS9!G$47,'Data Annex'!$K$1:$AN$1,0)),\"\")","v":2651.2717647999998},{"$f":"IFERROR(INDEX('Data Annex'!$K$1:$AN$1498,MATCH(IFRS9!H$46&\"|\"&IFRS9!$B83,'Data Annex'!$K$1:$K$1498,0),MATCH(IFRS9!H$47,'Data Annex'!$K$1:$AN$1,0)),\"\")","v":2562.5385345},{"$f":"IFERROR(INDEX('Data Annex'!$K$1:$AN$1498,MATCH(IFRS9!I$46&\"|\"&IFRS9!$B83,'Data Annex'!$K$1:$K$1498,0),MATCH(IFRS9!I$47,'Data Annex'!$K$1:$AN$1,0)),\"\")","v":2621.9658995999998},{"$f":"IFERROR(INDEX('Data Annex'!$K$1:$AN$1498,MATCH(IFRS9!J$46&\"|\"&IFRS9!$B83,'Data Annex'!$K$1:$K$1498,0),MATCH(IFRS9!J$47,'Data Annex'!$K$1:$AN$1,0)),\"\")","v":0.24974592709999999},{"$f":"IFERROR(INDEX('Data Annex'!$K$1:$AN$1498,MATCH(IFRS9!K$46&\"|\"&IFRS9!$B83,'Data Annex'!$K$1:$K$1498,0),MATCH(IFRS9!K$47,'Data Annex'!$K$1:$AN$1,0)),\"\")","v":0.28679020049999998},{"$f":"IFERROR(INDEX('Data Annex'!$K$1:$AN$1498,MATCH(IFRS9!L$46&\"|\"&IFRS9!$B83,'Data Annex'!$K$1:$K$1498,0),MATCH(IFRS9!L$47,'Data Annex'!$K$1:$AN$1,0)),\"\")","v":0.28820703009999998},{"$f":"IFERROR(INDEX('Data Annex'!$K$1:$AN$1498,MATCH(IFRS9!M$46&\"|\"&IFRS9!$B83,'Data Annex'!$K$1:$K$1498,0),MATCH(IFRS9!M$47,'Data Annex'!$K$1:$AN$1,0)),\"\")","v":0.2848163917},{"$f":"IFERROR(INDEX('Data Annex'!$K$1:$AN$1498,MATCH(IFRS9!N$46&\"|\"&IFRS9!$B83,'Data Annex'!$K$1:$K$1498,0),MATCH(IFRS9!N$47,'Data Annex'!$K$1:$AN$1,0)),\"\")","v":0.73341873580000005},{"$f":"IFERROR(INDEX('Data Annex'!$K$1:$AN$1498,MATCH(IFRS9!O$46&\"|\"&IFRS9!$B83,'Data Annex'!$K$1:$K$1498,0),MATCH(IFRS9!O$47,'Data Annex'!$K$1:$AN$1,0)),\"\")","v":0.69395730850000004},{"$f":"IFERROR(INDEX('Data Annex'!$K$1:$AN$1498,MATCH(IFRS9!P$46&\"|\"&IFRS9!$B83,'Data Annex'!$K$1:$K$1498,0),MATCH(IFRS9!P$47,'Data Annex'!$K$1:$AN$1,0)),\"\")","v":0.69420941660000002},{"$f":"IFERROR(INDEX('Data Annex'!$K$1:$AN$1498,MATCH(IFRS9!Q$46&\"|\"&IFRS9!$B83,'Data Annex'!$K$1:$K$1498,0),MATCH(IFRS9!Q$47,'Data Annex'!$K$1:$AN$1,0)),\"\")","v":0.69896108440000004},{"$f":"IFERROR(INDEX('Data Annex'!$K$1:$AN$1498,MATCH(IFRS9!R$46&\"|\"&IFRS9!$B83,'Data Annex'!$K$1:$K$1498,0),MATCH(IFRS9!R$47,'Data Annex'!$K$1:$AN$1,0)),\"\")","v":1.6835336999999999E-2},{"$f":"IFERROR(INDEX('Data Annex'!$K$1:$AN$1498,MATCH(IFRS9!S$46&\"|\"&IFRS9!$B83,'Data Annex'!$K$1:$K$1498,0),MATCH(IFRS9!S$47,'Data Annex'!$K$1:$AN$1,0)),\"\")","v":1.9252491E-2},{"$f":"IFERROR(INDEX('Data Annex'!$K$1:$AN$1498,MATCH(IFRS9!T$46&\"|\"&IFRS9!$B83,'Data Annex'!$K$1:$K$1498,0),MATCH(IFRS9!T$47,'Data Annex'!$K$1:$AN$1,0)),\"\")","v":1.75835534E-2},{"$f":"IFERROR(INDEX('Data Annex'!$K$1:$AN$1498,MATCH(IFRS9!U$46&\"|\"&IFRS9!$B83,'Data Annex'!$K$1:$K$1498,0),MATCH(IFRS9!U$47,'Data Annex'!$K$1:$AN$1,0)),\"\")","v":1.6222523799999999E-2}]
[]
[]
[null,null,null,"(1) Applicable only to IFRS reporting banks."]
[null,null,null,"Individual country data includes subsidiaries, which are excluded from EU aggregate. For example, at country level the subsidiary in country X of a bank domiciled in country Y is included both in data for countries X and Y (for the latter as part of the consolidated entity). In the EU aggregate, only the consolidated entity domiciled in country Y is considered.  The sample of banks is unbalanced and reviewed annually.\nAs of Q1 2020 onwards UK banks are removed from the EU/EEA aggregate and subsidiaries of UK banks in EU member states are used instead.\n"]

{"sheet":"Sovereigns","index":9,"n_rows":87,"n_cols":23,"rows_kept":87,"cut":false,"hidden":true,"merged":[[76,3,76,4],[65,3,65,4],[66,3,66,4],[67,3,67,4],[68,3,68,4],[74,3,74,4],[75,3,75,4],[71,3,71,4],[72,3,72,4],[73,3,73,4],[83,3,83,4],[84,3,84,4],[85,3,85,4],[86,3,86,27],[77,3,77,4],[78,3,78,4],[79,3,79,4],[80,3,80,4],[81,3,81,4],[82,3,82,4],[55,3,55,4],[56,3,56,4],[57,3,57,4],[69,3,69,4],[70,3,70,4],[64,3,64,4],[44,3,44,4],[49,3,50,14],[51,3,51,14],[52,11,52,12],[63,3,63,4],[59,3,59,4],[60,3,60,4],[61,3,61,4],[62,3,62,4],[58,3,58,4],[52,3,52,4],[52,5,52,6],[52,7,52,8],[52,9,52,10],[52,13,52,14],[54,3,54,4],[36,3,36,4],[37,3,37,4],[38,3,38,4],[39,3,39,4],[40,3,40,4],[31,3,31,4],[32,3,32,4],[33,3,33,4],[34,3,34,4],[35,3,35,4],[42,3,42,4],[43,3,43,4],[29,3,29,4],[18,3,18,4],[19,3,19,4],[20,3,20,4],[21,3,21,4],[22,3,22,4],[23,3,23,4],[24,3,24,4],[25,3,25,4],[26,3,26,4],[27,3,27,4],[28,3,28,4],[41,3,41,4],[30,3,30,4],[12,19,12,20],[12,21,12,22],[14,3,14,4],[15,3,15,4],[16,3,16,4],[12,15,12,16],[12,17,12,18],[17,3,17,4],[12,3,12,4],[12,7,12,8],[12,9,12,10],[12,13,12,14],[11,5,11,10],[11,11,11,22],[3,3,3,27],[4,3,4,27],[8,3,9,22],[10,3,11,4],[10,5,10,22]]}
[]
[{"$f":"'Reference Dates'!$C$8","v":"202012"}]
[{"$f":"DATE(LEFT(A2,4),RIGHT(A2,2),1)","v":"2020-12-01"}]
[null,null,null,"Statistical Annex"]
[null,null,null,"Sovereign exposures"]
[]
[null,null,null,null,null,"T15_1","T15_1","T15_2","T15_2","T15_3","T15_3","T15_4","T15_4","T15_5","T15_5","T15_6","T15_6","T15_7","T15_7","T15_8","T15_8","T15_9","T15_9"]
[43921,null,null,null,null,{"$f":"TEXT(F14,\"YYYYMM\")+0","v":202006},{"$f":"TEXT(G14,\"YYYYMM\")+0","v":202012},{"$f":"TEXT(F14,\"YYYYMM\")+0","v":202006},{"$f":"TEXT(G14,\"YYYYMM\")+0","v":202012},{"$f":"TEXT(H14,\"YYYYMM\")+0","v":202006},{"$f":"TEXT(I14,\"YYYYMM\")+0","v":202012},{"$f":"TEXT(F14,\"YYYYMM\")+0","v":202006},{"$f":"TEXT(G14,\"YYYYMM\")+0","v":202012},{"$f":"TEXT(F14,\"YYYYMM\")+0","v":202006},202012,202006,202012,202006,202012,{"$f":"TEXT(J14,\"YYYYMM\")+0","v":202006},{"$f":"TEXT(K14,\"YYYYMM\")+0","v":202012},{"$f":"TEXT(L14,\"YYYYMM\")+0","v":202006},{"$f":"TEXT(M14,\"YYYYMM\")+0","v":202012}]
[null,null,null,"Sovereign exposure"]
[]
[null,null,null,null,null,"Direct exposures towards General governments (1)"]
[null,null,null,null,null,"Total gross carrying amount\nof which:",null,null,null,null,null,"Total carrying amount (net of short positions)\nof which (2):"]
[null,null,null,"Volumes bn EUR, % of total sov exposure",null,null,null,"to home country",null,"to other EU/EEA countries",null,null,null,"Financial assets held for trading",null,"Fair value through P&L",null,"Fair value through OCI",null,"Amortised cost",null,"Other financial assets"]
[null,null,null,null,null,{"$f":"IF(OR(MONTH($A$3)=9,MONTH($A$3)=3),EOMONTH($A$3,-9),EOMONTH($A$3,-6))","v":"2020-06-30"},{"$f":"EOMONTH(F$14,6)","v":"2020-12-31"},{"$f":"IF(OR(MONTH($A$3)=9,MONTH($A$3)=3),EOMONTH($A$3,-9),EOMONTH($A$3,-6))","v":"2020-06-30"},{"$f":"EOMONTH(H$14,6)","v":"2020-12-31"},{"$f":"IF(OR(MONTH($A$3)=9,MONTH($A$3)=3),EOMONTH($A$3,-9),EOMONTH($A$3,-6))","v":"2020-06-30"},{"$f":"EOMONTH(J$14,6)","v":"2020-12-31"},{"$f":"IF(OR(MONTH($A$3)=9,MONTH($A$3)=3),EOMONTH($A$3,-9),EOMONTH($A$3,-6))","v":"2020-06-30"},{"$f":"EOMONTH(L$14,6)","v":"2020-12-31"},{"$f":"IF(OR(MONTH($A$3)=9,MONTH($A$3)=3),EOMONTH($A$3,-9),EOMONTH($A$3,-6))","v":"2020-06-30"},{"$f":"EOMONTH(N$14,6)","v":"2020-12-31"},{"$f":"IF(OR(MONTH($A$3)=9,MONTH($A$3)=3),EOMONTH($A$3,-9),EOMONTH($A$3,-6))","v":"2020-06-30"},{"$f":"EOMONTH(P$14,6)","v":"2020-12-31"},{"$f":"IF(OR(MONTH($A$3)=9,MONTH($A$3)=3),EOMONTH($A$3,-9),EOMONTH($A$3,-6))","v":"2020-06-30"},{"$f":"EOMONTH(R$14,6)","v":"2020-12-31"},{"$f":"IF(OR(MONTH($A$3)=9,MONTH($A$3)=3),EOMONTH($A$3,-9),EOMONTH($A$3,-6))","v":"2020-06-30"},{"$f":"EOMONTH(T$14,6)","v":"2020-12-31"},{"$f":"IF(OR(MONTH($A$3)=9,MONTH($A$3)=3),EOMONTH($A$3,-9),EOMONTH($A$3,-6))","v":"2020-06-30"},{"$f":"EOMONTH(V$14,6)","v":"2020-12-31"}]
[1,"AT",null,{"$f":"IF(OR(F15=\"n.a.\",G15=\"n.a.\",H15=\"n.a.\",I15=\"n.a.\",J15=\"n.a.\",K15=\"n.a.\",T15=\"n.a.\",U15=\"n.a.\"),$B15&\"*\",$B15)","v":"AT"},null,{"$f":"IFERROR(INDEX('Data Annex'!$K$1:$AN$1998,MATCH(Sovereigns!F$7&\"|\"&Sovereigns!$B15,'Data Annex'!$K$1:$K$1998,0),MATCH(Sovereigns!F$8,'Data Annex'!$K$1:$AN$1,0)),\"\")","v":92.136823681999999},{"$f":"IFERROR(INDEX('Data Annex'!$K$1:$AN$1998,MATCH(Sovereigns!G$7&\"|\"&Sovereigns!$B15,'Data Annex'!$K$1:$K$1998,0),MATCH(Sovereigns!G$8,'Data Annex'!$K$1:$AN$1,0)),\"\")","v":93.883978573999997},{"$f":"IFERROR(INDEX('Data Annex'!$K$1:$AN$1998,MATCH(Sovereigns!H$7&\"|\"&Sovereigns!$B15,'Data Annex'!$K$1:$K$1998,0),MATCH(Sovereigns!H$8,'Data Annex'!$K$1:$AN$1,0)),\"\")","v":0.3042518219},{"$f":"IFERROR(INDEX('Data Annex'!$K$1:$AN$1998,MATCH(Sovereigns!I$7&\"|\"&Sovereigns!$B15,'Data Annex'!$K$1:$K$1998,0),MATCH(Sovereigns!I$8,'Data Annex'!$K$1:$AN$1,0)),\"\")","v":0.27218047820000002},{"$f":"IFERROR(INDEX('Data Annex'!$K$1:$AN$1998,MATCH(Sovereigns!J$7&\"|\"&Sovereigns!$B15,'Data Annex'!$K$1:$K$1998,0),MATCH(Sovereigns!J$8,'Data Annex'!$K$1:$AN$1,0)),\"\")","v":0.59024773870000002},{"$f":"IFERROR(INDEX('Data Annex'!$K$1:$AN$1998,MATCH(Sovereigns!K$7&\"|\"&Sovereigns!$B15,'Data Annex'!$K$1:$K$1998,0),MATCH(Sovereigns!K$8,'Data Annex'!$K$1:$AN$1,0)),\"\")","v":0.60823440819999997},{"$f":"IFERROR(INDEX('Data Annex'!$K$1:$AN$1998,MATCH(Sovereigns!L$7&\"|\"&Sovereigns!$B15,'Data Annex'!$K$1:$K$1998,0),MATCH(Sovereigns!L$8,'Data Annex'!$K$1:$AN$1,0)),\"\")","v":91.725654202000001},{"$f":"IFERROR(INDEX('Data Annex'!$K$1:$AN$1998,MATCH(Sovereigns!M$7&\"|\"&Sovereigns!$B15,'Data Annex'!$K$1:$K$1998,0),MATCH(Sovereigns!M$8,'Data Annex'!$K$1:$AN$1,0)),\"\")","v":93.466801507},{"$f":"IFERROR(INDEX('Data Annex'!$K$1:$AN$1998,MATCH(Sovereigns!N$7&\"|\"&Sovereigns!$B15,'Data Annex'!$K$1:$K$1998,0),MATCH(Sovereigns!N$8,'Data Annex'!$K$1:$AN$1,0)),\"\")","v":4.7539203000000002E-2},{"$f":"IFERROR(INDEX('Data Annex'!$K$1:$AN$1998,MATCH(Sovereigns!O$7&\"|\"&Sovereigns!$B15,'Data Annex'!$K$1:$K$1998,0),MATCH(Sovereigns!O$8,'Data Annex'!$K$1:$AN$1,0)),\"\")","v":4.6546806400000001E-2},{"$f":"IFERROR(INDEX('Data Annex'!$K$1:$AN$1998,MATCH(Sovereigns!P$7&\"|\"&Sovereigns!$B15,'Data Annex'!$K$1:$K$1998,0),MATCH(Sovereigns!P$8,'Data Annex'!$K$1:$AN$1,0)),\"\")","v":8.3482628000000007E-3},{"$f":"IFERROR(INDEX('Data Annex'!$K$1:$AN$1998,MATCH(Sovereigns!Q$7&\"|\"&Sovereigns!$B15,'Data Annex'!$K$1:$K$1998,0),MATCH(Sovereigns!Q$8,'Data Annex'!$K$1:$AN$1,0)),\"\")","v":5.8317585999999996E-3},{"$f":"IFERROR(INDEX('Data Annex'!$K$1:$AN$1998,MATCH(Sovereigns!R$7&\"|\"&Sovereigns!$B15,'Data Annex'!$K$1:$K$1998,0),MATCH(Sovereigns!R$8,'Data Annex'!$K$1:$AN$1,0)),\"\")","v":0.2942925864},{"$f":"IFERROR(INDEX('Data Annex'!$K$1:$AN$1998,MATCH(Sovereigns!S$7&\"|\"&Sovereigns!$B15,'Data Annex'!$K$1:$K$1998,0),MATCH(Sovereigns!S$8,'Data Annex'!$K$1:$AN$1,0)),\"\")","v":0.33121905299999999},{"$f":"IFERROR(INDEX('Data Annex'!$K$1:$AN$1998,MATCH(Sovereigns!T$7&\"|\"&Sovereigns!$B15,'Data Annex'!$K$1:$K$1998,0),MATCH(Sovereigns!T$8,'Data Annex'!$K$1:$AN$1,0)),\"\")","v":0.5972841713},{"$f":"IFERROR(INDEX('Data Annex'!$K$1:$AN$1998,MATCH(Sovereigns!U$7&\"|\"&Sovereigns!$B15,'Data Annex'!$K$1:$K$1998,0),MATCH(Sovereigns!U$8,'Data Annex'!$K$1:$AN$1,0)),\"\")","v":0.56765544290000003},{"$f":"IFERROR(INDEX('Data Annex'!$K$1:$AN$1998,MATCH(Sovereigns!V$7&\"|\"&Sovereigns!$B15,'Data Annex'!$K$1:$K$1998,0),MATCH(Sovereigns!V$8,'Data Annex'!$K$1:$AN$1,0)),\"\")","v":5.25357766E-2},{"$f":"IFERROR(INDEX('Data Annex'!$K$1:$AN$1998,MATCH(Sovereigns!W$7&\"|\"&Sovereigns!$B15,'Data Annex'!$K$1:$K$1998,0),MATCH(Sovereigns!W$8,'Data Annex'!$K$1:$AN$1,0)),\"\")","v":4.8746939099999997E-2}]
[2,"BE",null,"BE",null,{"$f":"IFERROR(INDEX('Data Annex'!$K$1:$AN$1998,MATCH(Sovereigns!F$7&\"|\"&Sovereigns!$B16,'Data Annex'!$K$1:$K$1998,0),MATCH(Sovereigns!F$8,'Data Annex'!$K$1:$AN$1,0)),\"\")","v":194.73233146999999},{"$f":"IFERROR(INDEX('Data Annex'!$K$1:$AN$1998,MATCH(Sovereigns!G$7&\"|\"&Sovereigns!$B16,'Data Annex'!$K$1:$K$1998,0),MATCH(Sovereigns!G$8,'Data Annex'!$K$1:$AN$1,0)),\"\")","v":183.19299483},{"$f":"IFERROR(INDEX('Data Annex'!$K$1:$AN$1998,MATCH(Sovereigns!H$7&\"|\"&Sovereigns!$B16,'Data Annex'!$K$1:$K$1998,0),MATCH(Sovereigns!H$8,'Data Annex'!$K$1:$AN$1,0)),\"\")","v":0.40851796750000002},{"$f":"IFERROR(INDEX('Data Annex'!$K$1:$AN$1998,MATCH(Sovereigns!I$7&\"|\"&Sovereigns!$B16,'Data Annex'!$K$1:$K$1998,0),MATCH(Sovereigns!I$8,'Data Annex'!$K$1:$AN$1,0)),\"\")","v":0.414673978},{"$f":"IFERROR(INDEX('Data Annex'!$K$1:$AN$1998,MATCH(Sovereigns!J$7&\"|\"&Sovereigns!$B16,'Data Annex'!$K$1:$K$1998,0),MATCH(Sovereigns!J$8,'Data Annex'!$K$1:$AN$1,0)),\"\")","v":0.49510048760000003},{"$f":"IFERROR(INDEX('Data Annex'!$K$1:$AN$1998,MATCH(Sovereigns!K$7&\"|\"&Sovereigns!$B16,'Data Annex'!$K$1:$K$1998,0),MATCH(Sovereigns!K$8,'Data Annex'!$K$1:$AN$1,0)),\"\")","v":0.49085245669999999},{"$f":"IFERROR(INDEX('Data Annex'!$K$1:$AN$1998,MATCH(Sovereigns!L$7&\"|\"&Sovereigns!$B16,'Data Annex'!$K$1:$K$1998,0),MATCH(Sovereigns!L$8,'Data Annex'!$K$1:$AN$1,0)),\"\")","v":197.89707131},{"$f":"IFERROR(INDEX('Data Annex'!$K$1:$AN$1998,MATCH(Sovereigns!M$7&\"|\"&Sovereigns!$B16,'Data Annex'!$K$1:$K$1998,0),MATCH(Sovereigns!M$8,'Data Annex'!$K$1:$AN$1,0)),\"\")","v":175.40331347},{"$f":"IFERROR(INDEX('Data Annex'!$K$1:$AN$1998,MATCH(Sovereigns!N$7&\"|\"&Sovereigns!$B16,'Data Annex'!$K$1:$K$1998,0),MATCH(Sovereigns!N$8,'Data Annex'!$K$1:$AN$1,0)),\"\")","v":9.2002117000000005E-3},{"$f":"IFERROR(INDEX('Data Annex'!$K$1:$AN$1998,MATCH(Sovereigns!O$7&\"|\"&Sovereigns!$B16,'Data Annex'!$K$1:$K$1998,0),MATCH(Sovereigns!O$8,'Data Annex'!$K$1:$AN$1,0)),\"\")","v":1.5957453900000002E-2},{"$f":"IFERROR(INDEX('Data Annex'!$K$1:$AN$1998,MATCH(Sovereigns!P$7&\"|\"&Sovereigns!$B16,'Data Annex'!$K$1:$K$1998,0),MATCH(Sovereigns!P$8,'Data Annex'!$K$1:$AN$1,0)),\"\")","v":3.4495879999999997E-4},{"$f":"IFERROR(INDEX('Data Annex'!$K$1:$AN$1998,MATCH(Sovereigns!Q$7&\"|\"&Sovereigns!$B16,'Data Annex'!$K$1:$K$1998,0),MATCH(Sovereigns!Q$8,'Data Annex'!$K$1:$AN$1,0)),\"\")","v":3.4992759999999997E-4},{"$f":"IFERROR(INDEX('Data Annex'!$K$1:$AN$1998,MATCH(Sovereigns!R$7&\"|\"&Sovereigns!$B16,'Data Annex'!$K$1:$K$1998,0),MATCH(Sovereigns!R$8,'Data Annex'!$K$1:$AN$1,0)),\"\")","v":0.1299987937},{"$f":"IFERROR(INDEX('Data Annex'!$K$1:$AN$1998,MATCH(Sovereigns!S$7&\"|\"&Sovereigns!$B16,'Data Annex'!$K$1:$K$1998,0),MATCH(Sovereigns!S$8,'Data Annex'!$K$1:$AN$1,0)),\"\")","v":0.1222143041},{"$f":"IFERROR(INDEX('Data Annex'!$K$1:$AN$1998,MATCH(Sovereigns!T$7&\"|\"&Sovereigns!$B16,'Data Annex'!$K$1:$K$1998,0),MATCH(Sovereigns!T$8,'Data Annex'!$K$1:$AN$1,0)),\"\")","v":0.82372298610000005},{"$f":"IFERROR(INDEX('Data Annex'!$K$1:$AN$1998,MATCH(Sovereigns!U$7&\"|\"&Sovereigns!$B16,'Data Annex'!$K$1:$K$1998,0),MATCH(Sovereigns!U$8,'Data Annex'!$K$1:$AN$1,0)),\"\")","v":0.84457525359999996},{"$f":"IFERROR(INDEX('Data Annex'!$K$1:$AN$1998,MATCH(Sovereigns!V$7&\"|\"&Sovereigns!$B16,'Data Annex'!$K$1:$K$1998,0),MATCH(Sovereigns!V$8,'Data Annex'!$K$1:$AN$1,0)),\"\")","v":3.6733049699999999E-2},{"$f":"IFERROR(INDEX('Data Annex'!$K$1:$AN$1998,MATCH(Sovereigns!W$7&\"|\"&Sovereigns!$B16,'Data Annex'!$K$1:$K$1998,0),MATCH(Sovereigns!W$8,'Data Annex'!$K$1:$AN$1,0)),\"\")","v":1.6903060899999999E-2}]
[3,"BG",null,"BG",null,{"$f":"IFERROR(INDEX('Data Annex'!$K$1:$AN$1998,MATCH(Sovereigns!F$7&\"|\"&Sovereigns!$B17,'Data Annex'!$K$1:$K$1998,0),MATCH(Sovereigns!F$8,'Data Annex'!$K$1:$AN$1,0)),\"\")","v":5.0425534308},{"$f":"IFERROR(INDEX('Data Annex'!$K$1:$AN$1998,MATCH(Sovereigns!G$7&\"|\"&Sovereigns!$B17,'Data Annex'!$K$1:$K$1998,0),MATCH(Sovereigns!G$8,'Data Annex'!$K$1:$AN$1,0)),\"\")","v":5.5004719295999998},{"$f":"IFERROR(INDEX('Data Annex'!$K$1:$AN$1998,MATCH(Sovereigns!H$7&\"|\"&Sovereigns!$B17,'Data Annex'!$K$1:$K$1998,0),MATCH(Sovereigns!H$8,'Data Annex'!$K$1:$AN$1,0)),\"\")","v":0.74690267690000001},{"$f":"IFERROR(INDEX('Data Annex'!$K$1:$AN$1998,MATCH(Sovereigns!I$7&\"|\"&Sovereigns!$B17,'Data Annex'!$K$1:$K$1998,0),MATCH(Sovereigns!I$8,'Data Annex'!$K$1:$AN$1,0)),\"\")","v":0.75097322200000005},{"$f":"IFERROR(INDEX('Data Annex'!$K$1:$AN$1998,MATCH(Sovereigns!J$7&\"|\"&Sovereigns!$B17,'Data Annex'!$K$1:$K$1998,0),MATCH(Sovereigns!J$8,'Data Annex'!$K$1:$AN$1,0)),\"\")","v":0.20074281399999999},{"$f":"IFERROR(INDEX('Data Annex'!$K$1:$AN$1998,MATCH(Sovereigns!K$7&\"|\"&Sovereigns!$B17,'Data Annex'!$K$1:$K$1998,0),MATCH(Sovereigns!K$8,'Data Annex'!$K$1:$AN$1,0)),\"\")","v":0.19453861619999999},{"$f":"IFERROR(INDEX('Data Annex'!$K$1:$AN$1998,MATCH(Sovereigns!L$7&\"|\"&Sovereigns!$B17,'Data Annex'!$K$1:$K$1998,0),MATCH(Sovereigns!L$8,'Data Annex'!$K$1:$AN$1,0)),\"\")","v":5.0390985786},{"$f":"IFERROR(INDEX('Data Annex'!$K$1:$AN$1998,MATCH(Sovereigns!M$7&\"|\"&Sovereigns!$B17,'Data Annex'!$K$1:$K$1998,0),MATCH(Sovereigns!M$8,'Data Annex'!$K$1:$AN$1,0)),\"\")","v":5.4958635852000004},{"$f":"IFERROR(INDEX('Data Annex'!$K$1:$AN$1998,MATCH(Sovereigns!N$7&\"|\"&Sovereigns!$B17,'Data Annex'!$K$1:$K$1998,0),MATCH(Sovereigns!N$8,'Data Annex'!$K$1:$AN$1,0)),\"\")","v":5.2487608999999998E-3},{"$f":"IFERROR(INDEX('Data Annex'!$K$1:$AN$1998,MATCH(Sovereigns!O$7&\"|\"&Sovereigns!$B17,'Data Annex'!$K$1:$K$1998,0),MATCH(Sovereigns!O$8,'Data Annex'!$K$1:$AN$1,0)),\"\")","v":8.8862860000000002E-3},{"$f":"IFERROR(INDEX('Data Annex'!$K$1:$AN$1998,MATCH(Sovereigns!P$7&\"|\"&Sovereigns!$B17,'Data Annex'!$K$1:$K$1998,0),MATCH(Sovereigns!P$8,'Data Annex'!$K$1:$AN$1,0)),\"\")","v":0},{"$f":"IFERROR(INDEX('Data Annex'!$K$1:$AN$1998,MATCH(Sovereigns!Q$7&\"|\"&Sovereigns!$B17,'Data Annex'!$K$1:$K$1998,0),MATCH(Sovereigns!Q$8,'Data Annex'!$K$1:$AN$1,0)),\"\")","v":0},{"$f":"IFERROR(INDEX('Data Annex'!$K$1:$AN$1998,MATCH(Sovereigns!R$7&\"|\"&Sovereigns!$B17,'Data Annex'!$K$1:$K$1998,0),MATCH(Sovereigns!R$8,'Data Annex'!$K$1:$AN$1,0)),\"\")","v":0.69207665309999999},{"$f":"IFERROR(INDEX('Data Annex'!$K$1:$AN$1998,MATCH(Sovereigns!S$7&\"|\"&Sovereigns!$B17,'Data Annex'!$K$1:$K$1998,0),MATCH(Sovereigns!S$8,'Data Annex'!$K$1:$AN$1,0)),\"\")","v":0.66172711210000001},{"$f":"IFERROR(INDEX('Data Annex'!$K$1:$AN$1998,MATCH(Sovereigns!T$7&\"|\"&Sovereigns!$B17,'Data Annex'!$K$1:$K$1998,0),MATCH(Sovereigns!T$8,'Data Annex'!$K$1:$AN$1,0)),\"\")","v":0.25638313099999999},{"$f":"IFERROR(INDEX('Data Annex'!$K$1:$AN$1998,MATCH(Sovereigns!U$7&\"|\"&Sovereigns!$B17,'Data Annex'!$K$1:$K$1998,0),MATCH(Sovereigns!U$8,'Data Annex'!$K$1:$AN$1,0)),\"\")","v":0.2863456513},{"$f":"IFERROR(INDEX('Data Annex'!$K$1:$AN$1998,MATCH(Sovereigns!V$7&\"|\"&Sovereigns!$B17,'Data Annex'!$K$1:$K$1998,0),MATCH(Sovereigns!V$8,'Data Annex'!$K$1:$AN$1,0)),\"\")","v":4.6291455000000002E-2},{"$f":"IFERROR(INDEX('Data Annex'!$K$1:$AN$1998,MATCH(Sovereigns!W$7&\"|\"&Sovereigns!$B17,'Data Annex'!$K$1:$K$1998,0),MATCH(Sovereigns!W$8,'Data Annex'!$K$1:$AN$1,0)),\"\")","v":4.3040950600000003E-2}]
[4,"CY",null,"CY",null,{"$f":"IFERROR(INDEX('Data Annex'!$K$1:$AN$1998,MATCH(Sovereigns!F$7&\"|\"&Sovereigns!$B18,'Data Annex'!$K$1:$K$1998,0),MATCH(Sovereigns!F$8,'Data Annex'!$K$1:$AN$1,0)),\"\")","v":4.6270253959999996},{"$f":"IFERROR(INDEX('Data Annex'!$K$1:$AN$1998,MATCH(Sovereigns!G$7&\"|\"&Sovereigns!$B18,'Data Annex'!$K$1:$K$1998,0),MATCH(Sovereigns!G$8,'Data Annex'!$K$1:$AN$1,0)),\"\")","v":3.6926669369999998},{"$f":"IFERROR(INDEX('Data Annex'!$K$1:$AN$1998,MATCH(Sovereigns!H$7&\"|\"&Sovereigns!$B18,'Data Annex'!$K$1:$K$1998,0),MATCH(Sovereigns!H$8,'Data Annex'!$K$1:$AN$1,0)),\"\")","v":0.91186402769999997},{"$f":"IFERROR(INDEX('Data Annex'!$K$1:$AN$1998,MATCH(Sovereigns!I$7&\"|\"&Sovereigns!$B18,'Data Annex'!$K$1:$K$1998,0),MATCH(Sovereigns!I$8,'Data Annex'!$K$1:$AN$1,0)),\"\")","v":0.9257265885},{"$f":"IFERROR(INDEX('Data Annex'!$K$1:$AN$1998,MATCH(Sovereigns!J$7&\"|\"&Sovereigns!$B18,'Data Annex'!$K$1:$K$1998,0),MATCH(Sovereigns!J$8,'Data Annex'!$K$1:$AN$1,0)),\"\")","v":4.9156129600000001E-2},{"$f":"IFERROR(INDEX('Data Annex'!$K$1:$AN$1998,MATCH(Sovereigns!K$7&\"|\"&Sovereigns!$B18,'Data Annex'!$K$1:$K$1998,0),MATCH(Sovereigns!K$8,'Data Annex'!$K$1:$AN$1,0)),\"\")","v":1.8780136499999999E-2},{"$f":"IFERROR(INDEX('Data Annex'!$K$1:$AN$1998,MATCH(Sovereigns!L$7&\"|\"&Sovereigns!$B18,'Data Annex'!$K$1:$K$1998,0),MATCH(Sovereigns!L$8,'Data Annex'!$K$1:$AN$1,0)),\"\")","v":4.4904923830000003},{"$f":"IFERROR(INDEX('Data Annex'!$K$1:$AN$1998,MATCH(Sovereigns!M$7&\"|\"&Sovereigns!$B18,'Data Annex'!$K$1:$K$1998,0),MATCH(Sovereigns!M$8,'Data Annex'!$K$1:$AN$1,0)),\"\")","v":3.6423018859999998},{"$f":"IFERROR(INDEX('Data Annex'!$K$1:$AN$1998,MATCH(Sovereigns!N$7&\"|\"&Sovereigns!$B18,'Data Annex'!$K$1:$K$1998,0),MATCH(Sovereigns!N$8,'Data Annex'!$K$1:$AN$1,0)),\"\")","v":0},{"$f":"IFERROR(INDEX('Data Annex'!$K$1:$AN$1998,MATCH(Sovereigns!O$7&\"|\"&Sovereigns!$B18,'Data Annex'!$K$1:$K$1998,0),MATCH(Sovereigns!O$8,'Data Annex'!$K$1:$AN$1,0)),\"\")","v":0},{"$f":"IFERROR(INDEX('Data Annex'!$K$1:$AN$1998,MATCH(Sovereigns!P$7&\"|\"&Sovereigns!$B18,'Data Annex'!$K$1:$K$1998,0),MATCH(Sovereigns!P$8,'Data Annex'!$K$1:$AN$1,0)),\"\")","v":0},{"$f":"IFERROR(INDEX('Data Annex'!$K$1:$AN$1998,MATCH(Sovereigns!Q$7&\"|\"&Sovereigns!$B18,'Data Annex'!$K$1:$K$1998,0),MATCH(Sovereigns!Q$8,'Data Annex'!$K$1:$AN$1,0)),\"\")","v":0},{"$f":"IFERROR(INDEX('Data Annex'!$K$1:$AN$1998,MATCH(Sovereigns!R$7&\"|\"&Sovereigns!$B18,'Data Annex'!$K$1:$K$1998,0),MATCH(Sovereigns!R$8,'Data Annex'!$K$1:$AN$1,0)),\"\")","v":0.1626322321},{"$f":"IFERROR(INDEX('Data Annex'!$K$1:$AN$1998,MATCH(Sovereigns!S$7&\"|\"&Sovereigns!$B18,'Data Annex'!$K$1:$K$1998,0),MATCH(Sovereigns!S$8,'Data Annex'!$K$1:$AN$1,0)),\"\")","v":0.1671595854},{"$f":"IFERROR(INDEX('Data Annex'!$K$1:$AN$1998,MATCH(Sovereigns!T$7&\"|\"&Sovereigns!$B18,'Data Annex'!$K$1:$K$1998,0),MATCH(Sovereigns!T$8,'Data Annex'!$K$1:$AN$1,0)),\"\")","v":0.8373677679},{"$f":"IFERROR(INDEX('Data Annex'!$K$1:$AN$1998,MATCH(Sovereigns!U$7&\"|\"&Sovereigns!$B18,'Data Annex'!$K$1:$K$1998,0),MATCH(Sovereigns!U$8,'Data Annex'!$K$1:$AN$1,0)),\"\")","v":0.83284041460000002},{"$f":"IFERROR(INDEX('Data Annex'!$K$1:$AN$1998,MATCH(Sovereigns!V$7&\"|\"&Sovereigns!$B18,'Data Annex'!$K$1:$K$1998,0),MATCH(Sovereigns!V$8,'Data Annex'!$K$1:$AN$1,0)),\"\")","v":0},{"$f":"IFERROR(INDEX('Data Annex'!$K$1:$AN$1998,MATCH(Sovereigns!W$7&\"|\"&Sovereigns!$B18,'Data Annex'!$K$1:$K$1998,0),MATCH(Sovereigns!W$8,'Data Annex'!$K$1:$AN$1,0)),\"\")","v":0}]
[5,"CZ",null,"CZ",null,{"$f":"IFERROR(INDEX('Data Annex'!$K$1:$AN$1998,MATCH(Sovereigns!F$7&\"|\"&Sovereigns!$B19,'Data Annex'!$K$1:$K$1998,0),MATCH(Sovereigns!F$8,'Data Annex'!$K$1:$AN$1,0)),\"\")","v":27.994285055999999},{"$f":"IFERROR(INDEX('Data Annex'!$K$1:$AN$1998,MATCH(Sovereigns!G$7&\"|\"&Sovereigns!$B19,'Data Annex'!$K$1:$K$1998,0),MATCH(Sovereigns!G$8,'Data Annex'!$K$1:$AN$1,0)),\"\")","v":26.015510943999999},{"$f":"IFERROR(INDEX('Data Annex'!$K$1:$AN$1998,MATCH(Sovereigns!H$7&\"|\"&Sovereigns!$B19,'Data Annex'!$K$1:$K$1998,0),MATCH(Sovereigns!H$8,'Data Annex'!$K$1:$AN$1,0)),\"\")","v":0.9609287312},{"$f":"IFERROR(INDEX('Data Annex'!$K$1:$AN$1998,MATCH(Sovereigns!I$7&\"|\"&Sovereigns!$B19,'Data Annex'!$K$1:$K$1998,0),MATCH(Sovereigns!I$8,'Data Annex'!$K$1:$AN$1,0)),\"\")","v":0.94530202500000005},{"$f":"IFERROR(INDEX('Data Annex'!$K$1:$AN$1998,MATCH(Sovereigns!J$7&\"|\"&Sovereigns!$B19,'Data Annex'!$K$1:$K$1998,0),MATCH(Sovereigns!J$8,'Data Annex'!$K$1:$AN$1,0)),\"\")","v":3.4976853699999998E-2},{"$f":"IFERROR(INDEX('Data Annex'!$K$1:$AN$1998,MATCH(Sovereigns!K$7&\"|\"&Sovereigns!$B19,'Data Annex'!$K$1:$K$1998,0),MATCH(Sovereigns!K$8,'Data Annex'!$K$1:$AN$1,0)),\"\")","v":4.92399663E-2},{"$f":"IFERROR(INDEX('Data Annex'!$K$1:$AN$1998,MATCH(Sovereigns!L$7&\"|\"&Sovereigns!$B19,'Data Annex'!$K$1:$K$1998,0),MATCH(Sovereigns!L$8,'Data Annex'!$K$1:$AN$1,0)),\"\")","v":27.992964243999999},{"$f":"IFERROR(INDEX('Data Annex'!$K$1:$AN$1998,MATCH(Sovereigns!M$7&\"|\"&Sovereigns!$B19,'Data Annex'!$K$1:$K$1998,0),MATCH(Sovereigns!M$8,'Data Annex'!$K$1:$AN$1,0)),\"\")","v":26.014053516000001},{"$f":"IFERROR(INDEX('Data Annex'!$K$1:$AN$1998,MATCH(Sovereigns!N$7&\"|\"&Sovereigns!$B19,'Data Annex'!$K$1:$K$1998,0),MATCH(Sovereigns!N$8,'Data Annex'!$K$1:$AN$1,0)),\"\")","v":2.3945178300000002E-2},{"$f":"IFERROR(INDEX('Data Annex'!$K$1:$AN$1998,MATCH(Sovereigns!O$7&\"|\"&Sovereigns!$B19,'Data Annex'!$K$1:$K$1998,0),MATCH(Sovereigns!O$8,'Data Annex'!$K$1:$AN$1,0)),\"\")","v":2.18934075E-2},{"$f":"IFERROR(INDEX('Data Annex'!$K$1:$AN$1998,MATCH(Sovereigns!P$7&\"|\"&Sovereigns!$B19,'Data Annex'!$K$1:$K$1998,0),MATCH(Sovereigns!P$8,'Data Annex'!$K$1:$AN$1,0)),\"\")","v":0.11155223190000001},{"$f":"IFERROR(INDEX('Data Annex'!$K$1:$AN$1998,MATCH(Sovereigns!Q$7&\"|\"&Sovereigns!$B19,'Data Annex'!$K$1:$K$1998,0),MATCH(Sovereigns!Q$8,'Data Annex'!$K$1:$AN$1,0)),\"\")","v":0.1223160917},{"$f":"IFERROR(INDEX('Data Annex'!$K$1:$AN$1998,MATCH(Sovereigns!R$7&\"|\"&Sovereigns!$B19,'Data Annex'!$K$1:$K$1998,0),MATCH(Sovereigns!R$8,'Data Annex'!$K$1:$AN$1,0)),\"\")","v":7.6976249299999994E-2},{"$f":"IFERROR(INDEX('Data Annex'!$K$1:$AN$1998,MATCH(Sovereigns!S$7&\"|\"&Sovereigns!$B19,'Data Annex'!$K$1:$K$1998,0),MATCH(Sovereigns!S$8,'Data Annex'!$K$1:$AN$1,0)),\"\")","v":0.1002486618},{"$f":"IFERROR(INDEX('Data Annex'!$K$1:$AN$1998,MATCH(Sovereigns!T$7&\"|\"&Sovereigns!$B19,'Data Annex'!$K$1:$K$1998,0),MATCH(Sovereigns!T$8,'Data Annex'!$K$1:$AN$1,0)),\"\")","v":0.78752634040000002},{"$f":"IFERROR(INDEX('Data Annex'!$K$1:$AN$1998,MATCH(Sovereigns!U$7&\"|\"&Sovereigns!$B19,'Data Annex'!$K$1:$K$1998,0),MATCH(Sovereigns!U$8,'Data Annex'!$K$1:$AN$1,0)),\"\")","v":0.75554183890000004},{"$f":"IFERROR(INDEX('Data Annex'!$K$1:$AN$1998,MATCH(Sovereigns!V$7&\"|\"&Sovereigns!$B19,'Data Annex'!$K$1:$K$1998,0),MATCH(Sovereigns!V$8,'Data Annex'!$K$1:$AN$1,0)),\"\")","v":0},{"$f":"IFERROR(INDEX('Data Annex'!$K$1:$AN$1998,MATCH(Sovereigns!W$7&\"|\"&Sovereigns!$B19,'Data Annex'!$K$1:$K$1998,0),MATCH(Sovereigns!W$8,'Data Annex'!$K$1:$AN$1,0)),\"\")","v":0}]
[6,"DE",null,"DE",null,{"$f":"IFERROR(INDEX('Data Annex'!$K$1:$AN$1998,MATCH(Sovereigns!F$7&\"|\"&Sovereigns!$B20,'Data Annex'!$K$1:$K$1998,0),MATCH(Sovereigns!F$8,'Data Annex'!$K$1:$AN$1,0)),\"\")","v":539.10432548000006},{"$f":"IFERROR(INDEX('Data Annex'!$K$1:$AN$1998,MATCH(Sovereigns!G$7&\"|\"&Sovereigns!$B20,'Data Annex'!$K$1:$K$1998,0),MATCH(Sovereigns!G$8,'Data Annex'!$K$1:$AN$1,0)),\"\")","v":476.36161038},{"$f":"IFERROR(INDEX('Data Annex'!$K$1:$AN$1998,MATCH(Sovereigns!H$7&\"|\"&Sovereigns!$B20,'Data Annex'!$K$1:$K$1998,0),MATCH(Sovereigns!H$8,'Data Annex'!$K$1:$AN$1,0)),\"\")","v":0.38446684869999997},{"$f":"IFERROR(INDEX('Data Annex'!$K$1:$AN$1998,MATCH(Sovereigns!I$7&\"|\"&Sovereigns!$B20,'Data Annex'!$K$1:$K$1998,0),MATCH(Sovereigns!I$8,'Data Annex'!$K$1:$AN$1,0)),\"\")","v":0.38043477209999998},{"$f":"IFERROR(INDEX('Data Annex'!$K$1:$AN$1998,MATCH(Sovereigns!J$7&\"|\"&Sovereigns!$B20,'Data Annex'!$K$1:$K$1998,0),MATCH(Sovereigns!J$8,'Data Annex'!$K$1:$AN$1,0)),\"\")","v":0.29395722660000001},{"$f":"IFERROR(INDEX('Data Annex'!$K$1:$AN$1998,MATCH(Sovereigns!K$7&\"|\"&Sovereigns!$B20,'Data Annex'!$K$1:$K$1998,0),MATCH(Sovereigns!K$8,'Data Annex'!$K$1:$AN$1,0)),\"\")","v":0.30041841159999999},{"$f":"IFERROR(INDEX('Data Annex'!$K$1:$AN$1998,MATCH(Sovereigns!L$7&\"|\"&Sovereigns!$B20,'Data Annex'!$K$1:$K$1998,0),MATCH(Sovereigns!L$8,'Data Annex'!$K$1:$AN$1,0)),\"\")","v":478.27573520999999},{"$f":"IFERROR(INDEX('Data Annex'!$K$1:$AN$1998,MATCH(Sovereigns!M$7&\"|\"&Sovereigns!$B20,'Data Annex'!$K$1:$K$1998,0),MATCH(Sovereigns!M$8,'Data Annex'!$K$1:$AN$1,0)),\"\")","v":415.95303746000002},{"$f":"IFERROR(INDEX('Data Annex'!$K$1:$AN$1998,MATCH(Sovereigns!N$7&\"|\"&Sovereigns!$B20,'Data Annex'!$K$1:$K$1998,0),MATCH(Sovereigns!N$8,'Data Annex'!$K$1:$AN$1,0)),\"\")","v":0.29232182159999998},{"$f":"IFERROR(INDEX('Data Annex'!$K$1:$AN$1998,MATCH(Sovereigns!O$7&\"|\"&Sovereigns!$B20,'Data Annex'!$K$1:$K$1998,0),MATCH(Sovereigns!O$8,'Data Annex'!$K$1:$AN$1,0)),\"\")","v":0.27912915469999999},{"$f":"IFERROR(INDEX('Data Annex'!$K$1:$AN$1998,MATCH(Sovereigns!P$7&\"|\"&Sovereigns!$B20,'Data Annex'!$K$1:$K$1998,0),MATCH(Sovereigns!P$8,'Data Annex'!$K$1:$AN$1,0)),\"\")","v":3.1846480599999998E-2},{"$f":"IFERROR(INDEX('Data Annex'!$K$1:$AN$1998,MATCH(Sovereigns!Q$7&\"|\"&Sovereigns!$B20,'Data Annex'!$K$1:$K$1998,0),MATCH(Sovereigns!Q$8,'Data Annex'!$K$1:$AN$1,0)),\"\")","v":1.0729045899999999E-2},{"$f":"IFERROR(INDEX('Data Annex'!$K$1:$AN$1998,MATCH(Sovereigns!R$7&\"|\"&Sovereigns!$B20,'Data Annex'!$K$1:$K$1998,0),MATCH(Sovereigns!R$8,'Data Annex'!$K$1:$AN$1,0)),\"\")","v":0.2411532035},{"$f":"IFERROR(INDEX('Data Annex'!$K$1:$AN$1998,MATCH(Sovereigns!S$7&\"|\"&Sovereigns!$B20,'Data Annex'!$K$1:$K$1998,0),MATCH(Sovereigns!S$8,'Data Annex'!$K$1:$AN$1,0)),\"\")","v":0.26040120319999999},{"$f":"IFERROR(INDEX('Data Annex'!$K$1:$AN$1998,MATCH(Sovereigns!T$7&\"|\"&Sovereigns!$B20,'Data Annex'!$K$1:$K$1998,0),MATCH(Sovereigns!T$8,'Data Annex'!$K$1:$AN$1,0)),\"\")","v":0.34675628559999999},{"$f":"IFERROR(INDEX('Data Annex'!$K$1:$AN$1998,MATCH(Sovereigns!U$7&\"|\"&Sovereigns!$B20,'Data Annex'!$K$1:$K$1998,0),MATCH(Sovereigns!U$8,'Data Annex'!$K$1:$AN$1,0)),\"\")","v":0.36112408039999999},{"$f":"IFERROR(INDEX('Data Annex'!$K$1:$AN$1998,MATCH(Sovereigns!V$7&\"|\"&Sovereigns!$B20,'Data Annex'!$K$1:$K$1998,0),MATCH(Sovereigns!V$8,'Data Annex'!$K$1:$AN$1,0)),\"\")","v":8.7922208700000004E-2},{"$f":"IFERROR(INDEX('Data Annex'!$K$1:$AN$1998,MATCH(Sovereigns!W$7&\"|\"&Sovereigns!$B20,'Data Annex'!$K$1:$K$1998,0),MATCH(Sovereigns!W$8,'Data Annex'!$K$1:$AN$1,0)),\"\")","v":8.8616515800000004E-2}]
[7,"DK",null,"DK",null,{"$f":"IFERROR(INDEX('Data Annex'!$K$1:$AN$1998,MATCH(Sovereigns!F$7&\"|\"&Sovereigns!$B21,'Data Annex'!$K$1:$K$1998,0),MATCH(Sovereigns!F$8,'Data Annex'!$K$1:$AN$1,0)),\"\")","v":42.119685855999997},{"$f":"IFERROR(INDEX('Data Annex'!$K$1:$AN$1998,MATCH(Sovereigns!G$7&\"|\"&Sovereigns!$B21,'Data Annex'!$K$1:$K$1998,0),MATCH(Sovereigns!G$8,'Data Annex'!$K$1:$AN$1,0)),\"\")","v":47.313115863999997},{"$f":"IFERROR(INDEX('Data Annex'!$K$1:$AN$1998,MATCH(Sovereigns!H$7&\"|\"&Sovereigns!$B21,'Data Annex'!$K$1:$K$1998,0),MATCH(Sovereigns!H$8,'Data Annex'!$K$1:$AN$1,0)),\"\")","v":0.38894571439999998},{"$f":"IFERROR(INDEX('Data Annex'!$K$1:$AN$1998,MATCH(Sovereigns!I$7&\"|\"&Sovereigns!$B21,'Data Annex'!$K$1:$K$1998,0),MATCH(Sovereigns!I$8,'Data Annex'!$K$1:$AN$1,0)),\"\")","v":0.47692764920000003},{"$f":"IFERROR(INDEX('Data Annex'!$K$1:$AN$1998,MATCH(Sovereigns!J$7&\"|\"&Sovereigns!$B21,'Data Annex'!$K$1:$K$1998,0),MATCH(Sovereigns!J$8,'Data Annex'!$K$1:$AN$1,0)),\"\")","v":0.54258628610000004},{"$f":"IFERROR(INDEX('Data Annex'!$K$1:$AN$1998,MATCH(Sovereigns!K$7&\"|\"&Sovereigns!$B21,'Data Annex'!$K$1:$K$1998,0),MATCH(Sovereigns!K$8,'Data Annex'!$K$1:$AN$1,0)),\"\")","v":0.47329138900000001},{"$f":"IFERROR(INDEX('Data Annex'!$K$1:$AN$1998,MATCH(Sovereigns!L$7&\"|\"&Sovereigns!$B21,'Data Annex'!$K$1:$K$1998,0),MATCH(Sovereigns!L$8,'Data Annex'!$K$1:$AN$1,0)),\"\")","v":41.938787945000001},{"$f":"IFERROR(INDEX('Data Annex'!$K$1:$AN$1998,MATCH(Sovereigns!M$7&\"|\"&Sovereigns!$B21,'Data Annex'!$K$1:$K$1998,0),MATCH(Sovereigns!M$8,'Data Annex'!$K$1:$AN$1,0)),\"\")","v":46.749511476000002},{"$f":"IFERROR(INDEX('Data Annex'!$K$1:$AN$1998,MATCH(Sovereigns!N$7&\"|\"&Sovereigns!$B21,'Data Annex'!$K$1:$K$1998,0),MATCH(Sovereigns!N$8,'Data Annex'!$K$1:$AN$1,0)),\"\")","v":0.47109296179999999},{"$f":"IFERROR(INDEX('Data Annex'!$K$1:$AN$1998,MATCH(Sovereigns!O$7&\"|\"&Sovereigns!$B21,'Data Annex'!$K$1:$K$1998,0),MATCH(Sovereigns!O$8,'Data Annex'!$K$1:$AN$1,0)),\"\")","v":0.47040896900000001},{"$f":"IFERROR(INDEX('Data Annex'!$K$1:$AN$1998,MATCH(Sovereigns!P$7&\"|\"&Sovereigns!$B21,'Data Annex'!$K$1:$K$1998,0),MATCH(Sovereigns!P$8,'Data Annex'!$K$1:$AN$1,0)),\"\")","v":1.2657771599999999E-2},{"$f":"IFERROR(INDEX('Data Annex'!$K$1:$AN$1998,MATCH(Sovereigns!Q$7&\"|\"&Sovereigns!$B21,'Data Annex'!$K$1:$K$1998,0),MATCH(Sovereigns!Q$8,'Data Annex'!$K$1:$AN$1,0)),\"\")","v":5.2141150000000001E-3},{"$f":"IFERROR(INDEX('Data Annex'!$K$1:$AN$1998,MATCH(Sovereigns!R$7&\"|\"&Sovereigns!$B21,'Data Annex'!$K$1:$K$1998,0),MATCH(Sovereigns!R$8,'Data Annex'!$K$1:$AN$1,0)),\"\")","v":1.9183702699999999E-2},{"$f":"IFERROR(INDEX('Data Annex'!$K$1:$AN$1998,MATCH(Sovereigns!S$7&\"|\"&Sovereigns!$B21,'Data Annex'!$K$1:$K$1998,0),MATCH(Sovereigns!S$8,'Data Annex'!$K$1:$AN$1,0)),\"\")","v":2.1652377300000001E-2},{"$f":"IFERROR(INDEX('Data Annex'!$K$1:$AN$1998,MATCH(Sovereigns!T$7&\"|\"&Sovereigns!$B21,'Data Annex'!$K$1:$K$1998,0),MATCH(Sovereigns!T$8,'Data Annex'!$K$1:$AN$1,0)),\"\")","v":0.26857414559999998},{"$f":"IFERROR(INDEX('Data Annex'!$K$1:$AN$1998,MATCH(Sovereigns!U$7&\"|\"&Sovereigns!$B21,'Data Annex'!$K$1:$K$1998,0),MATCH(Sovereigns!U$8,'Data Annex'!$K$1:$AN$1,0)),\"\")","v":0.25414385420000002},{"$f":"IFERROR(INDEX('Data Annex'!$K$1:$AN$1998,MATCH(Sovereigns!V$7&\"|\"&Sovereigns!$B21,'Data Annex'!$K$1:$K$1998,0),MATCH(Sovereigns!V$8,'Data Annex'!$K$1:$AN$1,0)),\"\")","v":0.22849141840000001},{"$f":"IFERROR(INDEX('Data Annex'!$K$1:$AN$1998,MATCH(Sovereigns!W$7&\"|\"&Sovereigns!$B21,'Data Annex'!$K$1:$K$1998,0),MATCH(Sovereigns!W$8,'Data Annex'!$K$1:$AN$1,0)),\"\")","v":0.24858068450000001}]
[8,"EE",null,"EE",null,{"$f":"IFERROR(INDEX('Data Annex'!$K$1:$AN$1998,MATCH(Sovereigns!F$7&\"|\"&Sovereigns!$B22,'Data Annex'!$K$1:$K$1998,0),MATCH(Sovereigns!F$8,'Data Annex'!$K$1:$AN$1,0)),\"\")","v":3.1056057739999998},{"$f":"IFERROR(INDEX('Data Annex'!$K$1:$AN$1998,MATCH(Sovereigns!G$7&\"|\"&Sovereigns!$B22,'Data Annex'!$K$1:$K$1998,0),MATCH(Sovereigns!G$8,'Data Annex'!$K$1:$AN$1,0)),\"\")","v":4.1092498084000004},{"$f":"IFERROR(INDEX('Data Annex'!$K$1:$AN$1998,MATCH(Sovereigns!H$7&\"|\"&Sovereigns!$B22,'Data Annex'!$K$1:$K$1998,0),MATCH(Sovereigns!H$8,'Data Annex'!$K$1:$AN$1,0)),\"\")","v":0.79363953570000001},{"$f":"IFERROR(INDEX('Data Annex'!$K$1:$AN$1998,MATCH(Sovereigns!I$7&\"|\"&Sovereigns!$B22,'Data Annex'!$K$1:$K$1998,0),MATCH(Sovereigns!I$8,'Data Annex'!$K$1:$AN$1,0)),\"\")","v":0.82042956580000004},{"$f":"IFERROR(INDEX('Data Annex'!$K$1:$AN$1998,MATCH(Sovereigns!J$7&\"|\"&Sovereigns!$B22,'Data Annex'!$K$1:$K$1998,0),MATCH(Sovereigns!J$8,'Data Annex'!$K$1:$AN$1,0)),\"\")","v":0.20636046429999999},{"$f":"IFERROR(INDEX('Data Annex'!$K$1:$AN$1998,MATCH(Sovereigns!K$7&\"|\"&Sovereigns!$B22,'Data Annex'!$K$1:$K$1998,0),MATCH(Sovereigns!K$8,'Data Annex'!$K$1:$AN$1,0)),\"\")","v":0.17957043419999999},{"$f":"IFERROR(INDEX('Data Annex'!$K$1:$AN$1998,MATCH(Sovereigns!L$7&\"|\"&Sovereigns!$B22,'Data Annex'!$K$1:$K$1998,0),MATCH(Sovereigns!L$8,'Data Annex'!$K$1:$AN$1,0)),\"\")","v":3.1055240024000001},{"$f":"IFERROR(INDEX('Data Annex'!$K$1:$AN$1998,MATCH(Sovereigns!M$7&\"|\"&Sovereigns!$B22,'Data Annex'!$K$1:$K$1998,0),MATCH(Sovereigns!M$8,'Data Annex'!$K$1:$AN$1,0)),\"\")","v":4.1093640646000003},{"$f":"IFERROR(INDEX('Data Annex'!$K$1:$AN$1998,MATCH(Sovereigns!N$7&\"|\"&Sovereigns!$B22,'Data Annex'!$K$1:$K$1998,0),MATCH(Sovereigns!N$8,'Data Annex'!$K$1:$AN$1,0)),\"\")","v":2.6543762E-3},{"$f":"IFERROR(INDEX('Data Annex'!$K$1:$AN$1998,MATCH(Sovereigns!O$7&\"|\"&Sovereigns!$B22,'Data Annex'!$K$1:$K$1998,0),MATCH(Sovereigns!O$8,'Data Annex'!$K$1:$AN$1,0)),\"\")","v":6.2335470000000003E-4},{"$f":"IFERROR(INDEX('Data Annex'!$K$1:$AN$1998,MATCH(Sovereigns!P$7&\"|\"&Sovereigns!$B22,'Data Annex'!$K$1:$K$1998,0),MATCH(Sovereigns!P$8,'Data Annex'!$K$1:$AN$1,0)),\"\")","v":6.8664630599999998E-2},{"$f":"IFERROR(INDEX('Data Annex'!$K$1:$AN$1998,MATCH(Sovereigns!Q$7&\"|\"&Sovereigns!$B22,'Data Annex'!$K$1:$K$1998,0),MATCH(Sovereigns!Q$8,'Data Annex'!$K$1:$AN$1,0)),\"\")","v":6.11167346E-2},{"$f":"IFERROR(INDEX('Data Annex'!$K$1:$AN$1998,MATCH(Sovereigns!R$7&\"|\"&Sovereigns!$B22,'Data Annex'!$K$1:$K$1998,0),MATCH(Sovereigns!R$8,'Data Annex'!$K$1:$AN$1,0)),\"\")","v":0},{"$f":"IFERROR(INDEX('Data Annex'!$K$1:$AN$1998,MATCH(Sovereigns!S$7&\"|\"&Sovereigns!$B22,'Data Annex'!$K$1:$K$1998,0),MATCH(Sovereigns!S$8,'Data Annex'!$K$1:$AN$1,0)),\"\")","v":0},{"$f":"IFERROR(INDEX('Data Annex'!$K$1:$AN$1998,MATCH(Sovereigns!T$7&\"|\"&Sovereigns!$B22,'Data Annex'!$K$1:$K$1998,0),MATCH(Sovereigns!T$8,'Data Annex'!$K$1:$AN$1,0)),\"\")","v":0.65764102629999999},{"$f":"IFERROR(INDEX('Data Annex'!$K$1:$AN$1998,MATCH(Sovereigns!U$7&\"|\"&Sovereigns!$B22,'Data Annex'!$K$1:$K$1998,0),MATCH(Sovereigns!U$8,'Data Annex'!$K$1:$AN$1,0)),\"\")","v":0.77195756930000003},{"$f":"IFERROR(INDEX('Data Annex'!$K$1:$AN$1998,MATCH(Sovereigns!V$7&\"|\"&Sovereigns!$B22,'Data Annex'!$K$1:$K$1998,0),MATCH(Sovereigns!V$8,'Data Annex'!$K$1:$AN$1,0)),\"\")","v":0.27103996679999998},{"$f":"IFERROR(INDEX('Data Annex'!$K$1:$AN$1998,MATCH(Sovereigns!W$7&\"|\"&Sovereigns!$B22,'Data Annex'!$K$1:$K$1998,0),MATCH(Sovereigns!W$8,'Data Annex'!$K$1:$AN$1,0)),\"\")","v":0.1663023414}]
[9,"ES",null,"ES",null,{"$f":"IFERROR(INDEX('Data Annex'!$K$1:$AN$1998,MATCH(Sovereigns!F$7&\"|\"&Sovereigns!$B23,'Data Annex'!$K$1:$K$1998,0),MATCH(Sovereigns!F$8,'Data Annex'!$K$1:$AN$1,0)),\"\")","v":469.44244329000003},{"$f":"IFERROR(INDEX('Data Annex'!$K$1:$AN$1998,MATCH(Sovereigns!G$7&\"|\"&Sovereigns!$B23,'Data Annex'!$K$1:$K$1998,0),MATCH(Sovereigns!G$8,'Data Annex'!$K$1:$AN$1,0)),\"\")","v":453.54164508000002},{"$f":"IFERROR(INDEX('Data Annex'!$K$1:$AN$1998,MATCH(Sovereigns!H$7&\"|\"&Sovereigns!$B23,'Data Annex'!$K$1:$K$1998,0),MATCH(Sovereigns!H$8,'Data Annex'!$K$1:$AN$1,0)),\"\")","v":0.50711293189999995},{"$f":"IFERROR(INDEX('Data Annex'!$K$1:$AN$1998,MATCH(Sovereigns!I$7&\"|\"&Sovereigns!$B23,'Data Annex'!$K$1:$K$1998,0),MATCH(Sovereigns!I$8,'Data Annex'!$K$1:$AN$1,0)),\"\")","v":0.5176700649},{"$f":"IFERROR(INDEX('Data Annex'!$K$1:$AN$1998,MATCH(Sovereigns!J$7&\"|\"&Sovereigns!$B23,'Data Annex'!$K$1:$K$1998,0),MATCH(Sovereigns!J$8,'Data Annex'!$K$1:$AN$1,0)),\"\")","v":0.179205159},{"$f":"IFERROR(INDEX('Data Annex'!$K$1:$AN$1998,MATCH(Sovereigns!K$7&\"|\"&Sovereigns!$B23,'Data Annex'!$K$1:$K$1998,0),MATCH(Sovereigns!K$8,'Data Annex'!$K$1:$AN$1,0)),\"\")","v":0.1848307518},{"$f":"IFERROR(INDEX('Data Annex'!$K$1:$AN$1998,MATCH(Sovereigns!L$7&\"|\"&Sovereigns!$B23,'Data Annex'!$K$1:$K$1998,0),MATCH(Sovereigns!L$8,'Data Annex'!$K$1:$AN$1,0)),\"\")","v":450.28435813999999},{"$f":"IFERROR(INDEX('Data Annex'!$K$1:$AN$1998,MATCH(Sovereigns!M$7&\"|\"&Sovereigns!$B23,'Data Annex'!$K$1:$K$1998,0),MATCH(Sovereigns!M$8,'Data Annex'!$K$1:$AN$1,0)),\"\")","v":437.18768181000002},{"$f":"IFERROR(INDEX('Data Annex'!$K$1:$AN$1998,MATCH(Sovereigns!N$7&\"|\"&Sovereigns!$B23,'Data Annex'!$K$1:$K$1998,0),MATCH(Sovereigns!N$8,'Data Annex'!$K$1:$AN$1,0)),\"\")","v":0.1171302717},{"$f":"IFERROR(INDEX('Data Annex'!$K$1:$AN$1998,MATCH(Sovereigns!O$7&\"|\"&Sovereigns!$B23,'Data Annex'!$K$1:$K$1998,0),MATCH(Sovereigns!O$8,'Data Annex'!$K$1:$AN$1,0)),\"\")","v":0.1205190516},{"$f":"IFERROR(INDEX('Data Annex'!$K$1:$AN$1998,MATCH(Sovereigns!P$7&\"|\"&Sovereigns!$B23,'Data Annex'!$K$1:$K$1998,0),MATCH(Sovereigns!P$8,'Data Annex'!$K$1:$AN$1,0)),\"\")","v":4.5077540000000002E-4},{"$f":"IFERROR(INDEX('Data Annex'!$K$1:$AN$1998,MATCH(Sovereigns!Q$7&\"|\"&Sovereigns!$B23,'Data Annex'!$K$1:$K$1998,0),MATCH(Sovereigns!Q$8,'Data Annex'!$K$1:$AN$1,0)),\"\")","v":5.4715019999999996E-3},{"$f":"IFERROR(INDEX('Data Annex'!$K$1:$AN$1998,MATCH(Sovereigns!R$7&\"|\"&Sovereigns!$B23,'Data Annex'!$K$1:$K$1998,0),MATCH(Sovereigns!R$8,'Data Annex'!$K$1:$AN$1,0)),\"\")","v":0.36381700490000002},{"$f":"IFERROR(INDEX('Data Annex'!$K$1:$AN$1998,MATCH(Sovereigns!S$7&\"|\"&Sovereigns!$B23,'Data Annex'!$K$1:$K$1998,0),MATCH(Sovereigns!S$8,'Data Annex'!$K$1:$AN$1,0)),\"\")","v":0.35461803790000002},{"$f":"IFERROR(INDEX('Data Annex'!$K$1:$AN$1998,MATCH(Sovereigns!T$7&\"|\"&Sovereigns!$B23,'Data Annex'!$K$1:$K$1998,0),MATCH(Sovereigns!T$8,'Data Annex'!$K$1:$AN$1,0)),\"\")","v":0.51790150059999995},{"$f":"IFERROR(INDEX('Data Annex'!$K$1:$AN$1998,MATCH(Sovereigns!U$7&\"|\"&Sovereigns!$B23,'Data Annex'!$K$1:$K$1998,0),MATCH(Sovereigns!U$8,'Data Annex'!$K$1:$AN$1,0)),\"\")","v":0.51858703589999999},{"$f":"IFERROR(INDEX('Data Annex'!$K$1:$AN$1998,MATCH(Sovereigns!V$7&\"|\"&Sovereigns!$B23,'Data Annex'!$K$1:$K$1998,0),MATCH(Sovereigns!V$8,'Data Annex'!$K$1:$AN$1,0)),\"\")","v":7.0044729999999998E-4},{"$f":"IFERROR(INDEX('Data Annex'!$K$1:$AN$1998,MATCH(Sovereigns!W$7&\"|\"&Sovereigns!$B23,'Data Annex'!$K$1:$K$1998,0),MATCH(Sovereigns!W$8,'Data Annex'!$K$1:$AN$1,0)),\"\")","v":8.0437260000000002E-4}]
[10,"FI",null,"FI",null,{"$f":"IFERROR(INDEX('Data Annex'!$K$1:$AN$1998,MATCH(Sovereigns!F$7&\"|\"&Sovereigns!$B24,'Data Annex'!$K$1:$K$1998,0),MATCH(Sovereigns!F$8,'Data Annex'!$K$1:$AN$1,0)),\"\")","v":44.372163872999998},{"$f":"IFERROR(INDEX('Data Annex'!$K$1:$AN$1998,MATCH(Sovereigns!G$7&\"|\"&Sovereigns!$B24,'Data Annex'!$K$1:$K$1998,0),MATCH(Sovereigns!G$8,'Data Annex'!$K$1:$AN$1,0)),\"\")","v":21.387012949999999},{"$f":"IFERROR(INDEX('Data Annex'!$K$1:$AN$1998,MATCH(Sovereigns!H$7&\"|\"&Sovereigns!$B24,'Data Annex'!$K$1:$K$1998,0),MATCH(Sovereigns!H$8,'Data Annex'!$K$1:$AN$1,0)),\"\")","v":0.40593231210000003},{"$f":"IFERROR(INDEX('Data Annex'!$K$1:$AN$1998,MATCH(Sovereigns!I$7&\"|\"&Sovereigns!$B24,'Data Annex'!$K$1:$K$1998,0),MATCH(Sovereigns!I$8,'Data Annex'!$K$1:$AN$1,0)),\"\")","v":0.80740272260000001},{"$f":"IFERROR(INDEX('Data Annex'!$K$1:$AN$1998,MATCH(Sovereigns!J$7&\"|\"&Sovereigns!$B24,'Data Annex'!$K$1:$K$1998,0),MATCH(Sovereigns!J$8,'Data Annex'!$K$1:$AN$1,0)),\"\")","v":0.4357036554},{"$f":"IFERROR(INDEX('Data Annex'!$K$1:$AN$1998,MATCH(Sovereigns!K$7&\"|\"&Sovereigns!$B24,'Data Annex'!$K$1:$K$1998,0),MATCH(Sovereigns!K$8,'Data Annex'!$K$1:$AN$1,0)),\"\")","v":0.19111126389999999},{"$f":"IFERROR(INDEX('Data Annex'!$K$1:$AN$1998,MATCH(Sovereigns!L$7&\"|\"&Sovereigns!$B24,'Data Annex'!$K$1:$K$1998,0),MATCH(Sovereigns!L$8,'Data Annex'!$K$1:$AN$1,0)),\"\")","v":43.228096557999997},{"$f":"IFERROR(INDEX('Data Annex'!$K$1:$AN$1998,MATCH(Sovereigns!M$7&\"|\"&Sovereigns!$B24,'Data Annex'!$K$1:$K$1998,0),MATCH(Sovereigns!M$8,'Data Annex'!$K$1:$AN$1,0)),\"\")","v":20.165914092000001},{"$f":"IFERROR(INDEX('Data Annex'!$K$1:$AN$1998,MATCH(Sovereigns!N$7&\"|\"&Sovereigns!$B24,'Data Annex'!$K$1:$K$1998,0),MATCH(Sovereigns!N$8,'Data Annex'!$K$1:$AN$1,0)),\"\")","v":9.0668277699999994E-2},{"$f":"IFERROR(INDEX('Data Annex'!$K$1:$AN$1998,MATCH(Sovereigns!O$7&\"|\"&Sovereigns!$B24,'Data Annex'!$K$1:$K$1998,0),MATCH(Sovereigns!O$8,'Data Annex'!$K$1:$AN$1,0)),\"\")","v":3.7747809999999997E-4},{"$f":"IFERROR(INDEX('Data Annex'!$K$1:$AN$1998,MATCH(Sovereigns!P$7&\"|\"&Sovereigns!$B24,'Data Annex'!$K$1:$K$1998,0),MATCH(Sovereigns!P$8,'Data Annex'!$K$1:$AN$1,0)),\"\")","v":2.6395269E-3},{"$f":"IFERROR(INDEX('Data Annex'!$K$1:$AN$1998,MATCH(Sovereigns!Q$7&\"|\"&Sovereigns!$B24,'Data Annex'!$K$1:$K$1998,0),MATCH(Sovereigns!Q$8,'Data Annex'!$K$1:$AN$1,0)),\"\")","v":5.8624443999999998E-3},{"$f":"IFERROR(INDEX('Data Annex'!$K$1:$AN$1998,MATCH(Sovereigns!R$7&\"|\"&Sovereigns!$B24,'Data Annex'!$K$1:$K$1998,0),MATCH(Sovereigns!R$8,'Data Annex'!$K$1:$AN$1,0)),\"\")","v":0.10003678890000001},{"$f":"IFERROR(INDEX('Data Annex'!$K$1:$AN$1998,MATCH(Sovereigns!S$7&\"|\"&Sovereigns!$B24,'Data Annex'!$K$1:$K$1998,0),MATCH(Sovereigns!S$8,'Data Annex'!$K$1:$AN$1,0)),\"\")","v":0.2024978083},{"$f":"IFERROR(INDEX('Data Annex'!$K$1:$AN$1998,MATCH(Sovereigns!T$7&\"|\"&Sovereigns!$B24,'Data Annex'!$K$1:$K$1998,0),MATCH(Sovereigns!T$8,'Data Annex'!$K$1:$AN$1,0)),\"\")","v":0.45277780750000002},{"$f":"IFERROR(INDEX('Data Annex'!$K$1:$AN$1998,MATCH(Sovereigns!U$7&\"|\"&Sovereigns!$B24,'Data Annex'!$K$1:$K$1998,0),MATCH(Sovereigns!U$8,'Data Annex'!$K$1:$AN$1,0)),\"\")","v":0.79098770650000005},{"$f":"IFERROR(INDEX('Data Annex'!$K$1:$AN$1998,MATCH(Sovereigns!V$7&\"|\"&Sovereigns!$B24,'Data Annex'!$K$1:$K$1998,0),MATCH(Sovereigns!V$8,'Data Annex'!$K$1:$AN$1,0)),\"\")","v":0.35387759899999999},{"$f":"IFERROR(INDEX('Data Annex'!$K$1:$AN$1998,MATCH(Sovereigns!W$7&\"|\"&Sovereigns!$B24,'Data Annex'!$K$1:$K$1998,0),MATCH(Sovereigns!W$8,'Data Annex'!$K$1:$AN$1,0)),\"\")","v":2.7456259999999999E-4}]
[11,"FR",null,"FR",null,{"$f":"IFERROR(INDEX('Data Annex'!$K$1:$AN$1998,MATCH(Sovereigns!F$7&\"|\"&Sovereigns!$B25,'Data Annex'!$K$1:$K$1998,0),MATCH(Sovereigns!F$8,'Data Annex'!$K$1:$AN$1,0)),\"\")","v":1072.4173217},{"$f":"IFERROR(INDEX('Data Annex'!$K$1:$AN$1998,MATCH(Sovereigns!G$7&\"|\"&Sovereigns!$B25,'Data Annex'!$K$1:$K$1998,0),MATCH(Sovereigns!G$8,'Data Annex'!$K$1:$AN$1,0)),\"\")","v":1008.8381154},{"$f":"IFERROR(INDEX('Data Annex'!$K$1:$AN$1998,MATCH(Sovereigns!H$7&\"|\"&Sovereigns!$B25,'Data Annex'!$K$1:$K$1998,0),MATCH(Sovereigns!H$8,'Data Annex'!$K$1:$AN$1,0)),\"\")","v":0.5106979801},{"$f":"IFERROR(INDEX('Data Annex'!$K$1:$AN$1998,MATCH(Sovereigns!I$7&\"|\"&Sovereigns!$B25,'Data Annex'!$K$1:$K$1998,0),MATCH(Sovereigns!I$8,'Data Annex'!$K$1:$AN$1,0)),\"\")","v":0.53261420670000004},{"$f":"IFERROR(INDEX('Data Annex'!$K$1:$AN$1998,MATCH(Sovereigns!J$7&\"|\"&Sovereigns!$B25,'Data Annex'!$K$1:$K$1998,0),MATCH(Sovereigns!J$8,'Data Annex'!$K$1:$AN$1,0)),\"\")","v":0.2367557129},{"$f":"IFERROR(INDEX('Data Annex'!$K$1:$AN$1998,MATCH(Sovereigns!K$7&\"|\"&Sovereigns!$B25,'Data Annex'!$K$1:$K$1998,0),MATCH(Sovereigns!K$8,'Data Annex'!$K$1:$AN$1,0)),\"\")","v":0.2225587835},{"$f":"IFERROR(INDEX('Data Annex'!$K$1:$AN$1998,MATCH(Sovereigns!L$7&\"|\"&Sovereigns!$B25,'Data Annex'!$K$1:$K$1998,0),MATCH(Sovereigns!L$8,'Data Annex'!$K$1:$AN$1,0)),\"\")","v":966.94726418000005},{"$f":"IFERROR(INDEX('Data Annex'!$K$1:$AN$1998,MATCH(Sovereigns!M$7&\"|\"&Sovereigns!$B25,'Data Annex'!$K$1:$K$1998,0),MATCH(Sovereigns!M$8,'Data Annex'!$K$1:$AN$1,0)),\"\")","v":927.46366680999995},{"$f":"IFERROR(INDEX('Data Annex'!$K$1:$AN$1998,MATCH(Sovereigns!N$7&\"|\"&Sovereigns!$B25,'Data Annex'!$K$1:$K$1998,0),MATCH(Sovereigns!N$8,'Data Annex'!$K$1:$AN$1,0)),\"\")","v":0.21447763710000001},{"$f":"IFERROR(INDEX('Data Annex'!$K$1:$AN$1998,MATCH(Sovereigns!O$7&\"|\"&Sovereigns!$B25,'Data Annex'!$K$1:$K$1998,0),MATCH(Sovereigns!O$8,'Data Annex'!$K$1:$AN$1,0)),\"\")","v":0.19133569619999999},{"$f":"IFERROR(INDEX('Data Annex'!$K$1:$AN$1998,MATCH(Sovereigns!P$7&\"|\"&Sovereigns!$B25,'Data Annex'!$K$1:$K$1998,0),MATCH(Sovereigns!P$8,'Data Annex'!$K$1:$AN$1,0)),\"\")","v":1.6357933000000001E-3},{"$f":"IFERROR(INDEX('Data Annex'!$K$1:$AN$1998,MATCH(Sovereigns!Q$7&\"|\"&Sovereigns!$B25,'Data Annex'!$K$1:$K$1998,0),MATCH(Sovereigns!Q$8,'Data Annex'!$K$1:$AN$1,0)),\"\")","v":1.6336033000000001E-3},{"$f":"IFERROR(INDEX('Data Annex'!$K$1:$AN$1998,MATCH(Sovereigns!R$7&\"|\"&Sovereigns!$B25,'Data Annex'!$K$1:$K$1998,0),MATCH(Sovereigns!R$8,'Data Annex'!$K$1:$AN$1,0)),\"\")","v":0.18673166059999999},{"$f":"IFERROR(INDEX('Data Annex'!$K$1:$AN$1998,MATCH(Sovereigns!S$7&\"|\"&Sovereigns!$B25,'Data Annex'!$K$1:$K$1998,0),MATCH(Sovereigns!S$8,'Data Annex'!$K$1:$AN$1,0)),\"\")","v":0.1866171022},{"$f":"IFERROR(INDEX('Data Annex'!$K$1:$AN$1998,MATCH(Sovereigns!T$7&\"|\"&Sovereigns!$B25,'Data Annex'!$K$1:$K$1998,0),MATCH(Sovereigns!T$8,'Data Annex'!$K$1:$AN$1,0)),\"\")","v":0.58751290560000002},{"$f":"IFERROR(INDEX('Data Annex'!$K$1:$AN$1998,MATCH(Sovereigns!U$7&\"|\"&Sovereigns!$B25,'Data Annex'!$K$1:$K$1998,0),MATCH(Sovereigns!U$8,'Data Annex'!$K$1:$AN$1,0)),\"\")","v":0.60874820340000002},{"$f":"IFERROR(INDEX('Data Annex'!$K$1:$AN$1998,MATCH(Sovereigns!V$7&\"|\"&Sovereigns!$B25,'Data Annex'!$K$1:$K$1998,0),MATCH(Sovereigns!V$8,'Data Annex'!$K$1:$AN$1,0)),\"\")","v":9.6420033999999998E-3},{"$f":"IFERROR(INDEX('Data Annex'!$K$1:$AN$1998,MATCH(Sovereigns!W$7&\"|\"&Sovereigns!$B25,'Data Annex'!$K$1:$K$1998,0),MATCH(Sovereigns!W$8,'Data Annex'!$K$1:$AN$1,0)),\"\")","v":1.1665395E-2}]
[13,"GR",null,"GR",null,{"$f":"IFERROR(INDEX('Data Annex'!$K$1:$AN$1998,MATCH(Sovereigns!F$7&\"|\"&Sovereigns!$B26,'Data Annex'!$K$1:$K$1998,0),MATCH(Sovereigns!F$8,'Data Annex'!$K$1:$AN$1,0)),\"\")","v":37.327273271000003},{"$f":"IFERROR(INDEX('Data Annex'!$K$1:$AN$1998,MATCH(Sovereigns!G$7&\"|\"&Sovereigns!$B26,'Data Annex'!$K$1:$K$1998,0),MATCH(Sovereigns!G$8,'Data Annex'!$K$1:$AN$1,0)),\"\")","v":40.046957331000002},{"$f":"IFERROR(INDEX('Data Annex'!$K$1:$AN$1998,MATCH(Sovereigns!H$7&\"|\"&Sovereigns!$B26,'Data Annex'!$K$1:$K$1998,0),MATCH(Sovereigns!H$8,'Data Annex'!$K$1:$AN$1,0)),\"\")","v":0.64636058659999995},{"$f":"IFERROR(INDEX('Data Annex'!$K$1:$AN$1998,MATCH(Sovereigns!I$7&\"|\"&Sovereigns!$B26,'Data Annex'!$K$1:$K$1998,0),MATCH(Sovereigns!I$8,'Data Annex'!$K$1:$AN$1,0)),\"\")","v":0.66631671290000005},{"$f":"IFERROR(INDEX('Data Annex'!$K$1:$AN$1998,MATCH(Sovereigns!J$7&\"|\"&Sovereigns!$B26,'Data Annex'!$K$1:$K$1998,0),MATCH(Sovereigns!J$8,'Data Annex'!$K$1:$AN$1,0)),\"\")","v":0.303961182},{"$f":"IFERROR(INDEX('Data Annex'!$K$1:$AN$1998,MATCH(Sovereigns!K$7&\"|\"&Sovereigns!$B26,'Data Annex'!$K$1:$K$1998,0),MATCH(Sovereigns!K$8,'Data Annex'!$K$1:$AN$1,0)),\"\")","v":0.28550061570000002},{"$f":"IFERROR(INDEX('Data Annex'!$K$1:$AN$1998,MATCH(Sovereigns!L$7&\"|\"&Sovereigns!$B26,'Data Annex'!$K$1:$K$1998,0),MATCH(Sovereigns!L$8,'Data Annex'!$K$1:$AN$1,0)),\"\")","v":37.087005253000001},{"$f":"IFERROR(INDEX('Data Annex'!$K$1:$AN$1998,MATCH(Sovereigns!M$7&\"|\"&Sovereigns!$B26,'Data Annex'!$K$1:$K$1998,0),MATCH(Sovereigns!M$8,'Data Annex'!$K$1:$AN$1,0)),\"\")","v":39.866194581000002},{"$f":"IFERROR(INDEX('Data Annex'!$K$1:$AN$1998,MATCH(Sovereigns!N$7&\"|\"&Sovereigns!$B26,'Data Annex'!$K$1:$K$1998,0),MATCH(Sovereigns!N$8,'Data Annex'!$K$1:$AN$1,0)),\"\")","v":2.6531244499999999E-2},{"$f":"IFERROR(INDEX('Data Annex'!$K$1:$AN$1998,MATCH(Sovereigns!O$7&\"|\"&Sovereigns!$B26,'Data Annex'!$K$1:$K$1998,0),MATCH(Sovereigns!O$8,'Data Annex'!$K$1:$AN$1,0)),\"\")","v":2.0707544800000002E-2},{"$f":"IFERROR(INDEX('Data Annex'!$K$1:$AN$1998,MATCH(Sovereigns!P$7&\"|\"&Sovereigns!$B26,'Data Annex'!$K$1:$K$1998,0),MATCH(Sovereigns!P$8,'Data Annex'!$K$1:$AN$1,0)),\"\")","v":0},{"$f":"IFERROR(INDEX('Data Annex'!$K$1:$AN$1998,MATCH(Sovereigns!Q$7&\"|\"&Sovereigns!$B26,'Data Annex'!$K$1:$K$1998,0),MATCH(Sovereigns!Q$8,'Data Annex'!$K$1:$AN$1,0)),\"\")","v":0},{"$f":"IFERROR(INDEX('Data Annex'!$K$1:$AN$1998,MATCH(Sovereigns!R$7&\"|\"&Sovereigns!$B26,'Data Annex'!$K$1:$K$1998,0),MATCH(Sovereigns!R$8,'Data Annex'!$K$1:$AN$1,0)),\"\")","v":0.3894169831},{"$f":"IFERROR(INDEX('Data Annex'!$K$1:$AN$1998,MATCH(Sovereigns!S$7&\"|\"&Sovereigns!$B26,'Data Annex'!$K$1:$K$1998,0),MATCH(Sovereigns!S$8,'Data Annex'!$K$1:$AN$1,0)),\"\")","v":0.34898618590000002},{"$f":"IFERROR(INDEX('Data Annex'!$K$1:$AN$1998,MATCH(Sovereigns!T$7&\"|\"&Sovereigns!$B26,'Data Annex'!$K$1:$K$1998,0),MATCH(Sovereigns!T$8,'Data Annex'!$K$1:$AN$1,0)),\"\")","v":0.58405109980000003},{"$f":"IFERROR(INDEX('Data Annex'!$K$1:$AN$1998,MATCH(Sovereigns!U$7&\"|\"&Sovereigns!$B26,'Data Annex'!$K$1:$K$1998,0),MATCH(Sovereigns!U$8,'Data Annex'!$K$1:$AN$1,0)),\"\")","v":0.63030581819999998},{"$f":"IFERROR(INDEX('Data Annex'!$K$1:$AN$1998,MATCH(Sovereigns!V$7&\"|\"&Sovereigns!$B26,'Data Annex'!$K$1:$K$1998,0),MATCH(Sovereigns!V$8,'Data Annex'!$K$1:$AN$1,0)),\"\")","v":6.7260636000000002E-7},{"$f":"IFERROR(INDEX('Data Annex'!$K$1:$AN$1998,MATCH(Sovereigns!W$7&\"|\"&Sovereigns!$B26,'Data Annex'!$K$1:$K$1998,0),MATCH(Sovereigns!W$8,'Data Annex'!$K$1:$AN$1,0)),\"\")","v":4.5108627000000002E-7}]
[14,"HR",null,"HR",null,{"$f":"IFERROR(INDEX('Data Annex'!$K$1:$AN$1998,MATCH(Sovereigns!F$7&\"|\"&Sovereigns!$B27,'Data Annex'!$K$1:$K$1998,0),MATCH(Sovereigns!F$8,'Data Annex'!$K$1:$AN$1,0)),\"\")","v":11.139261107999999},{"$f":"IFERROR(INDEX('Data Annex'!$K$1:$AN$1998,MATCH(Sovereigns!G$7&\"|\"&Sovereigns!$B27,'Data Annex'!$K$1:$K$1998,0),MATCH(Sovereigns!G$8,'Data Annex'!$K$1:$AN$1,0)),\"\")","v":7.6645723694000001},{"$f":"IFERROR(INDEX('Data Annex'!$K$1:$AN$1998,MATCH(Sovereigns!H$7&\"|\"&Sovereigns!$B27,'Data Annex'!$K$1:$K$1998,0),MATCH(Sovereigns!H$8,'Data Annex'!$K$1:$AN$1,0)),\"\")","v":0.86543074419999999},{"$f":"IFERROR(INDEX('Data Annex'!$K$1:$AN$1998,MATCH(Sovereigns!I$7&\"|\"&Sovereigns!$B27,'Data Annex'!$K$1:$K$1998,0),MATCH(Sovereigns!I$8,'Data Annex'!$K$1:$AN$1,0)),\"\")","v":0.87065180350000004},{"$f":"IFERROR(INDEX('Data Annex'!$K$1:$AN$1998,MATCH(Sovereigns!J$7&\"|\"&Sovereigns!$B27,'Data Annex'!$K$1:$K$1998,0),MATCH(Sovereigns!J$8,'Data Annex'!$K$1:$AN$1,0)),\"\")","v":8.3674737999999999E-2},{"$f":"IFERROR(INDEX('Data Annex'!$K$1:$AN$1998,MATCH(Sovereigns!K$7&\"|\"&Sovereigns!$B27,'Data Annex'!$K$1:$K$1998,0),MATCH(Sovereigns!K$8,'Data Annex'!$K$1:$AN$1,0)),\"\")","v":6.5644296699999993E-2},{"$f":"IFERROR(INDEX('Data Annex'!$K$1:$AN$1998,MATCH(Sovereigns!L$7&\"|\"&Sovereigns!$B27,'Data Annex'!$K$1:$K$1998,0),MATCH(Sovereigns!L$8,'Data Annex'!$K$1:$AN$1,0)),\"\")","v":11.119616455999999},{"$f":"IFERROR(INDEX('Data Annex'!$K$1:$AN$1998,MATCH(Sovereigns!M$7&\"|\"&Sovereigns!$B27,'Data Annex'!$K$1:$K$1998,0),MATCH(Sovereigns!M$8,'Data Annex'!$K$1:$AN$1,0)),\"\")","v":7.6514296057999998},{"$f":"IFERROR(INDEX('Data Annex'!$K$1:$AN$1998,MATCH(Sovereigns!N$7&\"|\"&Sovereigns!$B27,'Data Annex'!$K$1:$K$1998,0),MATCH(Sovereigns!N$8,'Data Annex'!$K$1:$AN$1,0)),\"\")","v":8.5799260000000001E-4},{"$f":"IFERROR(INDEX('Data Annex'!$K$1:$AN$1998,MATCH(Sovereigns!O$7&\"|\"&Sovereigns!$B27,'Data Annex'!$K$1:$K$1998,0),MATCH(Sovereigns!O$8,'Data Annex'!$K$1:$AN$1,0)),\"\")","v":2.2321306900000001E-2},{"$f":"IFERROR(INDEX('Data Annex'!$K$1:$AN$1998,MATCH(Sovereigns!P$7&\"|\"&Sovereigns!$B27,'Data Annex'!$K$1:$K$1998,0),MATCH(Sovereigns!P$8,'Data Annex'!$K$1:$AN$1,0)),\"\")","v":0},{"$f":"IFERROR(INDEX('Data Annex'!$K$1:$AN$1998,MATCH(Sovereigns!Q$7&\"|\"&Sovereigns!$B27,'Data Annex'!$K$1:$K$1998,0),MATCH(Sovereigns!Q$8,'Data Annex'!$K$1:$AN$1,0)),\"\")","v":0},{"$f":"IFERROR(INDEX('Data Annex'!$K$1:$AN$1998,MATCH(Sovereigns!R$7&\"|\"&Sovereigns!$B27,'Data Annex'!$K$1:$K$1998,0),MATCH(Sovereigns!R$8,'Data Annex'!$K$1:$AN$1,0)),\"\")","v":0.38814326560000001},{"$f":"IFERROR(INDEX('Data Annex'!$K$1:$AN$1998,MATCH(Sovereigns!S$7&\"|\"&Sovereigns!$B27,'Data Annex'!$K$1:$K$1998,0),MATCH(Sovereigns!S$8,'Data Annex'!$K$1:$AN$1,0)),\"\")","v":0.40590035470000002},{"$f":"IFERROR(INDEX('Data Annex'!$K$1:$AN$1998,MATCH(Sovereigns!T$7&\"|\"&Sovereigns!$B27,'Data Annex'!$K$1:$K$1998,0),MATCH(Sovereigns!T$8,'Data Annex'!$K$1:$AN$1,0)),\"\")","v":0.61099874180000002},{"$f":"IFERROR(INDEX('Data Annex'!$K$1:$AN$1998,MATCH(Sovereigns!U$7&\"|\"&Sovereigns!$B27,'Data Annex'!$K$1:$K$1998,0),MATCH(Sovereigns!U$8,'Data Annex'!$K$1:$AN$1,0)),\"\")","v":0.57177833840000003},{"$f":"IFERROR(INDEX('Data Annex'!$K$1:$AN$1998,MATCH(Sovereigns!V$7&\"|\"&Sovereigns!$B27,'Data Annex'!$K$1:$K$1998,0),MATCH(Sovereigns!V$8,'Data Annex'!$K$1:$AN$1,0)),\"\")","v":0},{"$f":"IFERROR(INDEX('Data Annex'!$K$1:$AN$1998,MATCH(Sovereigns!W$7&\"|\"&Sovereigns!$B27,'Data Annex'!$K$1:$K$1998,0),MATCH(Sovereigns!W$8,'Data Annex'!$K$1:$AN$1,0)),\"\")","v":0}]
[15,"HU",null,"HU",null,{"$f":"IFERROR(INDEX('Data Annex'!$K$1:$AN$1998,MATCH(Sovereigns!F$7&\"|\"&Sovereigns!$B28,'Data Annex'!$K$1:$K$1998,0),MATCH(Sovereigns!F$8,'Data Annex'!$K$1:$AN$1,0)),\"\")","v":6.8172701534},{"$f":"IFERROR(INDEX('Data Annex'!$K$1:$AN$1998,MATCH(Sovereigns!G$7&\"|\"&Sovereigns!$B28,'Data Annex'!$K$1:$K$1998,0),MATCH(Sovereigns!G$8,'Data Annex'!$K$1:$AN$1,0)),\"\")","v":7.6068184318999998},{"$f":"IFERROR(INDEX('Data Annex'!$K$1:$AN$1998,MATCH(Sovereigns!H$7&\"|\"&Sovereigns!$B28,'Data Annex'!$K$1:$K$1998,0),MATCH(Sovereigns!H$8,'Data Annex'!$K$1:$AN$1,0)),\"\")","v":0.9841763067},{"$f":"IFERROR(INDEX('Data Annex'!$K$1:$AN$1998,MATCH(Sovereigns!I$7&\"|\"&Sovereigns!$B28,'Data Annex'!$K$1:$K$1998,0),MATCH(Sovereigns!I$8,'Data Annex'!$K$1:$AN$1,0)),\"\")","v":0.98865663280000005},{"$f":"IFERROR(INDEX('Data Annex'!$K$1:$AN$1998,MATCH(Sovereigns!J$7&\"|\"&Sovereigns!$B28,'Data Annex'!$K$1:$K$1998,0),MATCH(Sovereigns!J$8,'Data Annex'!$K$1:$AN$1,0)),\"\")","v":4.3411698E-3},{"$f":"IFERROR(INDEX('Data Annex'!$K$1:$AN$1998,MATCH(Sovereigns!K$7&\"|\"&Sovereigns!$B28,'Data Annex'!$K$1:$K$1998,0),MATCH(Sovereigns!K$8,'Data Annex'!$K$1:$AN$1,0)),\"\")","v":4.0041672000000004E-3},{"$f":"IFERROR(INDEX('Data Annex'!$K$1:$AN$1998,MATCH(Sovereigns!L$7&\"|\"&Sovereigns!$B28,'Data Annex'!$K$1:$K$1998,0),MATCH(Sovereigns!L$8,'Data Annex'!$K$1:$AN$1,0)),\"\")","v":6.6924710088000001},{"$f":"IFERROR(INDEX('Data Annex'!$K$1:$AN$1998,MATCH(Sovereigns!M$7&\"|\"&Sovereigns!$B28,'Data Annex'!$K$1:$K$1998,0),MATCH(Sovereigns!M$8,'Data Annex'!$K$1:$AN$1,0)),\"\")","v":7.5754980671999999},{"$f":"IFERROR(INDEX('Data Annex'!$K$1:$AN$1998,MATCH(Sovereigns!N$7&\"|\"&Sovereigns!$B28,'Data Annex'!$K$1:$K$1998,0),MATCH(Sovereigns!N$8,'Data Annex'!$K$1:$AN$1,0)),\"\")","v":2.3992095599999999E-2},{"$f":"IFERROR(INDEX('Data Annex'!$K$1:$AN$1998,MATCH(Sovereigns!O$7&\"|\"&Sovereigns!$B28,'Data Annex'!$K$1:$K$1998,0),MATCH(Sovereigns!O$8,'Data Annex'!$K$1:$AN$1,0)),\"\")","v":7.5626050999999996E-3},{"$f":"IFERROR(INDEX('Data Annex'!$K$1:$AN$1998,MATCH(Sovereigns!P$7&\"|\"&Sovereigns!$B28,'Data Annex'!$K$1:$K$1998,0),MATCH(Sovereigns!P$8,'Data Annex'!$K$1:$AN$1,0)),\"\")","v":0},{"$f":"IFERROR(INDEX('Data Annex'!$K$1:$AN$1998,MATCH(Sovereigns!Q$7&\"|\"&Sovereigns!$B28,'Data Annex'!$K$1:$K$1998,0),MATCH(Sovereigns!Q$8,'Data Annex'!$K$1:$AN$1,0)),\"\")","v":0},{"$f":"IFERROR(INDEX('Data Annex'!$K$1:$AN$1998,MATCH(Sovereigns!R$7&\"|\"&Sovereigns!$B28,'Data Annex'!$K$1:$K$1998,0),MATCH(Sovereigns!R$8,'Data Annex'!$K$1:$AN$1,0)),\"\")","v":0.35062997159999998},{"$f":"IFERROR(INDEX('Data Annex'!$K$1:$AN$1998,MATCH(Sovereigns!S$7&\"|\"&Sovereigns!$B28,'Data Annex'!$K$1:$K$1998,0),MATCH(Sovereigns!S$8,'Data Annex'!$K$1:$AN$1,0)),\"\")","v":0.2463734534},{"$f":"IFERROR(INDEX('Data Annex'!$K$1:$AN$1998,MATCH(Sovereigns!T$7&\"|\"&Sovereigns!$B28,'Data Annex'!$K$1:$K$1998,0),MATCH(Sovereigns!T$8,'Data Annex'!$K$1:$AN$1,0)),\"\")","v":0.60664034369999997},{"$f":"IFERROR(INDEX('Data Annex'!$K$1:$AN$1998,MATCH(Sovereigns!U$7&\"|\"&Sovereigns!$B28,'Data Annex'!$K$1:$K$1998,0),MATCH(Sovereigns!U$8,'Data Annex'!$K$1:$AN$1,0)),\"\")","v":0.73074101449999995},{"$f":"IFERROR(INDEX('Data Annex'!$K$1:$AN$1998,MATCH(Sovereigns!V$7&\"|\"&Sovereigns!$B28,'Data Annex'!$K$1:$K$1998,0),MATCH(Sovereigns!V$8,'Data Annex'!$K$1:$AN$1,0)),\"\")","v":1.87375891E-2},{"$f":"IFERROR(INDEX('Data Annex'!$K$1:$AN$1998,MATCH(Sovereigns!W$7&\"|\"&Sovereigns!$B28,'Data Annex'!$K$1:$K$1998,0),MATCH(Sovereigns!W$8,'Data Annex'!$K$1:$AN$1,0)),\"\")","v":1.53229271E-2}]
[16,"IE",null,"IE",null,{"$f":"IFERROR(INDEX('Data Annex'!$K$1:$AN$1998,MATCH(Sovereigns!F$7&\"|\"&Sovereigns!$B29,'Data Annex'!$K$1:$K$1998,0),MATCH(Sovereigns!F$8,'Data Annex'!$K$1:$AN$1,0)),\"\")","v":34.812537243000001},{"$f":"IFERROR(INDEX('Data Annex'!$K$1:$AN$1998,MATCH(Sovereigns!G$7&\"|\"&Sovereigns!$B29,'Data Annex'!$K$1:$K$1998,0),MATCH(Sovereigns!G$8,'Data Annex'!$K$1:$AN$1,0)),\"\")","v":38.599821915},{"$f":"IFERROR(INDEX('Data Annex'!$K$1:$AN$1998,MATCH(Sovereigns!H$7&\"|\"&Sovereigns!$B29,'Data Annex'!$K$1:$K$1998,0),MATCH(Sovereigns!H$8,'Data Annex'!$K$1:$AN$1,0)),\"\")","v":0.44071194200000002},{"$f":"IFERROR(INDEX('Data Annex'!$K$1:$AN$1998,MATCH(Sovereigns!I$7&\"|\"&Sovereigns!$B29,'Data Annex'!$K$1:$K$1998,0),MATCH(Sovereigns!I$8,'Data Annex'!$K$1:$AN$1,0)),\"\")","v":0.40549408640000001},{"$f":"IFERROR(INDEX('Data Annex'!$K$1:$AN$1998,MATCH(Sovereigns!J$7&\"|\"&Sovereigns!$B29,'Data Annex'!$K$1:$K$1998,0),MATCH(Sovereigns!J$8,'Data Annex'!$K$1:$AN$1,0)),\"\")","v":0.46045264720000001},{"$f":"IFERROR(INDEX('Data Annex'!$K$1:$AN$1998,MATCH(Sovereigns!K$7&\"|\"&Sovereigns!$B29,'Data Annex'!$K$1:$K$1998,0),MATCH(Sovereigns!K$8,'Data Annex'!$K$1:$AN$1,0)),\"\")","v":0.52058028670000001},{"$f":"IFERROR(INDEX('Data Annex'!$K$1:$AN$1998,MATCH(Sovereigns!L$7&\"|\"&Sovereigns!$B29,'Data Annex'!$K$1:$K$1998,0),MATCH(Sovereigns!L$8,'Data Annex'!$K$1:$AN$1,0)),\"\")","v":34.250264033999997},{"$f":"IFERROR(INDEX('Data Annex'!$K$1:$AN$1998,MATCH(Sovereigns!M$7&\"|\"&Sovereigns!$B29,'Data Annex'!$K$1:$K$1998,0),MATCH(Sovereigns!M$8,'Data Annex'!$K$1:$AN$1,0)),\"\")","v":33.699940810999998},{"$f":"IFERROR(INDEX('Data Annex'!$K$1:$AN$1998,MATCH(Sovereigns!N$7&\"|\"&Sovereigns!$B29,'Data Annex'!$K$1:$K$1998,0),MATCH(Sovereigns!N$8,'Data Annex'!$K$1:$AN$1,0)),\"\")","v":4.5446152199999999E-2},{"$f":"IFERROR(INDEX('Data Annex'!$K$1:$AN$1998,MATCH(Sovereigns!O$7&\"|\"&Sovereigns!$B29,'Data Annex'!$K$1:$K$1998,0),MATCH(Sovereigns!O$8,'Data Annex'!$K$1:$AN$1,0)),\"\")","v":0.1702983666},{"$f":"IFERROR(INDEX('Data Annex'!$K$1:$AN$1998,MATCH(Sovereigns!P$7&\"|\"&Sovereigns!$B29,'Data Annex'!$K$1:$K$1998,0),MATCH(Sovereigns!P$8,'Data Annex'!$K$1:$AN$1,0)),\"\")","v":2.9416939999999999E-3},{"$f":"IFERROR(INDEX('Data Annex'!$K$1:$AN$1998,MATCH(Sovereigns!Q$7&\"|\"&Sovereigns!$B29,'Data Annex'!$K$1:$K$1998,0),MATCH(Sovereigns!Q$8,'Data Annex'!$K$1:$AN$1,0)),\"\")","v":2.6132331E-3},{"$f":"IFERROR(INDEX('Data Annex'!$K$1:$AN$1998,MATCH(Sovereigns!R$7&\"|\"&Sovereigns!$B29,'Data Annex'!$K$1:$K$1998,0),MATCH(Sovereigns!R$8,'Data Annex'!$K$1:$AN$1,0)),\"\")","v":0.76421415609999999},{"$f":"IFERROR(INDEX('Data Annex'!$K$1:$AN$1998,MATCH(Sovereigns!S$7&\"|\"&Sovereigns!$B29,'Data Annex'!$K$1:$K$1998,0),MATCH(Sovereigns!S$8,'Data Annex'!$K$1:$AN$1,0)),\"\")","v":0.62643814909999995},{"$f":"IFERROR(INDEX('Data Annex'!$K$1:$AN$1998,MATCH(Sovereigns!T$7&\"|\"&Sovereigns!$B29,'Data Annex'!$K$1:$K$1998,0),MATCH(Sovereigns!T$8,'Data Annex'!$K$1:$AN$1,0)),\"\")","v":0.1766747696},{"$f":"IFERROR(INDEX('Data Annex'!$K$1:$AN$1998,MATCH(Sovereigns!U$7&\"|\"&Sovereigns!$B29,'Data Annex'!$K$1:$K$1998,0),MATCH(Sovereigns!U$8,'Data Annex'!$K$1:$AN$1,0)),\"\")","v":0.19067613110000001},{"$f":"IFERROR(INDEX('Data Annex'!$K$1:$AN$1998,MATCH(Sovereigns!V$7&\"|\"&Sovereigns!$B29,'Data Annex'!$K$1:$K$1998,0),MATCH(Sovereigns!V$8,'Data Annex'!$K$1:$AN$1,0)),\"\")","v":1.0723228099999999E-2},{"$f":"IFERROR(INDEX('Data Annex'!$K$1:$AN$1998,MATCH(Sovereigns!W$7&\"|\"&Sovereigns!$B29,'Data Annex'!$K$1:$K$1998,0),MATCH(Sovereigns!W$8,'Data Annex'!$K$1:$AN$1,0)),\"\")","v":9.9741201000000008E-3}]
[17,"IS",null,"IS",null,{"$f":"IFERROR(INDEX('Data Annex'!$K$1:$AN$1998,MATCH(Sovereigns!F$7&\"|\"&Sovereigns!$B30,'Data Annex'!$K$1:$K$1998,0),MATCH(Sovereigns!F$8,'Data Annex'!$K$1:$AN$1,0)),\"\")","v":1.7563196101},{"$f":"IFERROR(INDEX('Data Annex'!$K$1:$AN$1998,MATCH(Sovereigns!G$7&\"|\"&Sovereigns!$B30,'Data Annex'!$K$1:$K$1998,0),MATCH(Sovereigns!G$8,'Data Annex'!$K$1:$AN$1,0)),\"\")","v":1.2805273395000001},{"$f":"IFERROR(INDEX('Data Annex'!$K$1:$AN$1998,MATCH(Sovereigns!H$7&\"|\"&Sovereigns!$B30,'Data Annex'!$K$1:$K$1998,0),MATCH(Sovereigns!H$8,'Data Annex'!$K$1:$AN$1,0)),\"\")","v":0.71094867530000005},{"$f":"IFERROR(INDEX('Data Annex'!$K$1:$AN$1998,MATCH(Sovereigns!I$7&\"|\"&Sovereigns!$B30,'Data Annex'!$K$1:$K$1998,0),MATCH(Sovereigns!I$8,'Data Annex'!$K$1:$AN$1,0)),\"\")","v":0.66812961299999996},{"$f":"IFERROR(INDEX('Data Annex'!$K$1:$AN$1998,MATCH(Sovereigns!J$7&\"|\"&Sovereigns!$B30,'Data Annex'!$K$1:$K$1998,0),MATCH(Sovereigns!J$8,'Data Annex'!$K$1:$AN$1,0)),\"\")","v":0.1344279535},{"$f":"IFERROR(INDEX('Data Annex'!$K$1:$AN$1998,MATCH(Sovereigns!K$7&\"|\"&Sovereigns!$B30,'Data Annex'!$K$1:$K$1998,0),MATCH(Sovereigns!K$8,'Data Annex'!$K$1:$AN$1,0)),\"\")","v":0.20464464869999999},{"$f":"IFERROR(INDEX('Data Annex'!$K$1:$AN$1998,MATCH(Sovereigns!L$7&\"|\"&Sovereigns!$B30,'Data Annex'!$K$1:$K$1998,0),MATCH(Sovereigns!L$8,'Data Annex'!$K$1:$AN$1,0)),\"\")","v":1.7560651598000001},{"$f":"IFERROR(INDEX('Data Annex'!$K$1:$AN$1998,MATCH(Sovereigns!M$7&\"|\"&Sovereigns!$B30,'Data Annex'!$K$1:$K$1998,0),MATCH(Sovereigns!M$8,'Data Annex'!$K$1:$AN$1,0)),\"\")","v":0.69958384659999995},{"$f":"IFERROR(INDEX('Data Annex'!$K$1:$AN$1998,MATCH(Sovereigns!N$7&\"|\"&Sovereigns!$B30,'Data Annex'!$K$1:$K$1998,0),MATCH(Sovereigns!N$8,'Data Annex'!$K$1:$AN$1,0)),\"\")","v":0.39190129150000003},{"$f":"IFERROR(INDEX('Data Annex'!$K$1:$AN$1998,MATCH(Sovereigns!O$7&\"|\"&Sovereigns!$B30,'Data Annex'!$K$1:$K$1998,0),MATCH(Sovereigns!O$8,'Data Annex'!$K$1:$AN$1,0)),\"\")","v":0.99953114730000003},{"$f":"IFERROR(INDEX('Data Annex'!$K$1:$AN$1998,MATCH(Sovereigns!P$7&\"|\"&Sovereigns!$B30,'Data Annex'!$K$1:$K$1998,0),MATCH(Sovereigns!P$8,'Data Annex'!$K$1:$AN$1,0)),\"\")","v":0},{"$f":"IFERROR(INDEX('Data Annex'!$K$1:$AN$1998,MATCH(Sovereigns!Q$7&\"|\"&Sovereigns!$B30,'Data Annex'!$K$1:$K$1998,0),MATCH(Sovereigns!Q$8,'Data Annex'!$K$1:$AN$1,0)),\"\")","v":0},{"$f":"IFERROR(INDEX('Data Annex'!$K$1:$AN$1998,MATCH(Sovereigns!R$7&\"|\"&Sovereigns!$B30,'Data Annex'!$K$1:$K$1998,0),MATCH(Sovereigns!R$8,'Data Annex'!$K$1:$AN$1,0)),\"\")","v":0},{"$f":"IFERROR(INDEX('Data Annex'!$K$1:$AN$1998,MATCH(Sovereigns!S$7&\"|\"&Sovereigns!$B30,'Data Annex'!$K$1:$K$1998,0),MATCH(Sovereigns!S$8,'Data Annex'!$K$1:$AN$1,0)),\"\")","v":0},{"$f":"IFERROR(INDEX('Data Annex'!$K$1:$AN$1998,MATCH(Sovereigns!T$7&\"|\"&Sovereigns!$B30,'Data Annex'!$K$1:$K$1998,0),MATCH(Sovereigns!T$8,'Data Annex'!$K$1:$AN$1,0)),\"\")","v":0.60809870850000003},{"$f":"IFERROR(INDEX('Data Annex'!$K$1:$AN$1998,MATCH(Sovereigns!U$7&\"|\"&Sovereigns!$B30,'Data Annex'!$K$1:$K$1998,0),MATCH(Sovereigns!U$8,'Data Annex'!$K$1:$AN$1,0)),\"\")","v":4.6885269999999998E-4},{"$f":"IFERROR(INDEX('Data Annex'!$K$1:$AN$1998,MATCH(Sovereigns!V$7&\"|\"&Sovereigns!$B30,'Data Annex'!$K$1:$K$1998,0),MATCH(Sovereigns!V$8,'Data Annex'!$K$1:$AN$1,0)),\"\")","v":0},{"$f":"IFERROR(INDEX('Data Annex'!$K$1:$AN$1998,MATCH(Sovereigns!W$7&\"|\"&Sovereigns!$B30,'Data Annex'!$K$1:$K$1998,0),MATCH(Sovereigns!W$8,'Data Annex'!$K$1:$AN$1,0)),\"\")","v":0}]
[18,"IT",null,"IT",null,{"$f":"IFERROR(INDEX('Data Annex'!$K$1:$AN$1998,MATCH(Sovereigns!F$7&\"|\"&Sovereigns!$B31,'Data Annex'!$K$1:$K$1998,0),MATCH(Sovereigns!F$8,'Data Annex'!$K$1:$AN$1,0)),\"\")","v":470.45444168},{"$f":"IFERROR(INDEX('Data Annex'!$K$1:$AN$1998,MATCH(Sovereigns!G$7&\"|\"&Sovereigns!$B31,'Data Annex'!$K$1:$K$1998,0),MATCH(Sovereigns!G$8,'Data Annex'!$K$1:$AN$1,0)),\"\")","v":440.36571518},{"$f":"IFERROR(INDEX('Data Annex'!$K$1:$AN$1998,MATCH(Sovereigns!H$7&\"|\"&Sovereigns!$B31,'Data Annex'!$K$1:$K$1998,0),MATCH(Sovereigns!H$8,'Data Annex'!$K$1:$AN$1,0)),\"\")","v":0.61802127979999999},{"$f":"IFERROR(INDEX('Data Annex'!$K$1:$AN$1998,MATCH(Sovereigns!I$7&\"|\"&Sovereigns!$B31,'Data Annex'!$K$1:$K$1998,0),MATCH(Sovereigns!I$8,'Data Annex'!$K$1:$AN$1,0)),\"\")","v":0.62539154620000004},{"$f":"IFERROR(INDEX('Data Annex'!$K$1:$AN$1998,MATCH(Sovereigns!J$7&\"|\"&Sovereigns!$B31,'Data Annex'!$K$1:$K$1998,0),MATCH(Sovereigns!J$8,'Data Annex'!$K$1:$AN$1,0)),\"\")","v":0.27646146500000002},{"$f":"IFERROR(INDEX('Data Annex'!$K$1:$AN$1998,MATCH(Sovereigns!K$7&\"|\"&Sovereigns!$B31,'Data Annex'!$K$1:$K$1998,0),MATCH(Sovereigns!K$8,'Data Annex'!$K$1:$AN$1,0)),\"\")","v":0.27266291310000002},{"$f":"IFERROR(INDEX('Data Annex'!$K$1:$AN$1998,MATCH(Sovereigns!L$7&\"|\"&Sovereigns!$B31,'Data Annex'!$K$1:$K$1998,0),MATCH(Sovereigns!L$8,'Data Annex'!$K$1:$AN$1,0)),\"\")","v":429.72454092999999},{"$f":"IFERROR(INDEX('Data Annex'!$K$1:$AN$1998,MATCH(Sovereigns!M$7&\"|\"&Sovereigns!$B31,'Data Annex'!$K$1:$K$1998,0),MATCH(Sovereigns!M$8,'Data Annex'!$K$1:$AN$1,0)),\"\")","v":426.77090837999998},{"$f":"IFERROR(INDEX('Data Annex'!$K$1:$AN$1998,MATCH(Sovereigns!N$7&\"|\"&Sovereigns!$B31,'Data Annex'!$K$1:$K$1998,0),MATCH(Sovereigns!N$8,'Data Annex'!$K$1:$AN$1,0)),\"\")","v":9.2654028599999994E-2},{"$f":"IFERROR(INDEX('Data Annex'!$K$1:$AN$1998,MATCH(Sovereigns!O$7&\"|\"&Sovereigns!$B31,'Data Annex'!$K$1:$K$1998,0),MATCH(Sovereigns!O$8,'Data Annex'!$K$1:$AN$1,0)),\"\")","v":8.7268760400000006E-2},{"$f":"IFERROR(INDEX('Data Annex'!$K$1:$AN$1998,MATCH(Sovereigns!P$7&\"|\"&Sovereigns!$B31,'Data Annex'!$K$1:$K$1998,0),MATCH(Sovereigns!P$8,'Data Annex'!$K$1:$AN$1,0)),\"\")","v":9.7220770000000002E-4},{"$f":"IFERROR(INDEX('Data Annex'!$K$1:$AN$1998,MATCH(Sovereigns!Q$7&\"|\"&Sovereigns!$B31,'Data Annex'!$K$1:$K$1998,0),MATCH(Sovereigns!Q$8,'Data Annex'!$K$1:$AN$1,0)),\"\")","v":1.7902352999999999E-3},{"$f":"IFERROR(INDEX('Data Annex'!$K$1:$AN$1998,MATCH(Sovereigns!R$7&\"|\"&Sovereigns!$B31,'Data Annex'!$K$1:$K$1998,0),MATCH(Sovereigns!R$8,'Data Annex'!$K$1:$AN$1,0)),\"\")","v":0.3556234077},{"$f":"IFERROR(INDEX('Data Annex'!$K$1:$AN$1998,MATCH(Sovereigns!S$7&\"|\"&Sovereigns!$B31,'Data Annex'!$K$1:$K$1998,0),MATCH(Sovereigns!S$8,'Data Annex'!$K$1:$AN$1,0)),\"\")","v":0.30693350650000001},{"$f":"IFERROR(INDEX('Data Annex'!$K$1:$AN$1998,MATCH(Sovereigns!T$7&\"|\"&Sovereigns!$B31,'Data Annex'!$K$1:$K$1998,0),MATCH(Sovereigns!T$8,'Data Annex'!$K$1:$AN$1,0)),\"\")","v":0.53168338550000005},{"$f":"IFERROR(INDEX('Data Annex'!$K$1:$AN$1998,MATCH(Sovereigns!U$7&\"|\"&Sovereigns!$B31,'Data Annex'!$K$1:$K$1998,0),MATCH(Sovereigns!U$8,'Data Annex'!$K$1:$AN$1,0)),\"\")","v":0.58734193170000004},{"$f":"IFERROR(INDEX('Data Annex'!$K$1:$AN$1998,MATCH(Sovereigns!V$7&\"|\"&Sovereigns!$B31,'Data Annex'!$K$1:$K$1998,0),MATCH(Sovereigns!V$8,'Data Annex'!$K$1:$AN$1,0)),\"\")","v":1.9066970499999999E-2},{"$f":"IFERROR(INDEX('Data Annex'!$K$1:$AN$1998,MATCH(Sovereigns!W$7&\"|\"&Sovereigns!$B31,'Data Annex'!$K$1:$K$1998,0),MATCH(Sovereigns!W$8,'Data Annex'!$K$1:$AN$1,0)),\"\")","v":1.66655663E-2}]
[19,"LT",null,"LT",null,{"$f":"IFERROR(INDEX('Data Annex'!$K$1:$AN$1998,MATCH(Sovereigns!F$7&\"|\"&Sovereigns!$B32,'Data Annex'!$K$1:$K$1998,0),MATCH(Sovereigns!F$8,'Data Annex'!$K$1:$AN$1,0)),\"\")","v":1.4624699999999999},{"$f":"IFERROR(INDEX('Data Annex'!$K$1:$AN$1998,MATCH(Sovereigns!G$7&\"|\"&Sovereigns!$B32,'Data Annex'!$K$1:$K$1998,0),MATCH(Sovereigns!G$8,'Data Annex'!$K$1:$AN$1,0)),\"\")","v":1.826022},{"$f":"IFERROR(INDEX('Data Annex'!$K$1:$AN$1998,MATCH(Sovereigns!H$7&\"|\"&Sovereigns!$B32,'Data Annex'!$K$1:$K$1998,0),MATCH(Sovereigns!H$8,'Data Annex'!$K$1:$AN$1,0)),\"\")","v":0.82862007429999995},{"$f":"IFERROR(INDEX('Data Annex'!$K$1:$AN$1998,MATCH(Sovereigns!I$7&\"|\"&Sovereigns!$B32,'Data Annex'!$K$1:$K$1998,0),MATCH(Sovereigns!I$8,'Data Annex'!$K$1:$AN$1,0)),\"\")","v":0.88415254580000002},{"$f":"IFERROR(INDEX('Data Annex'!$K$1:$AN$1998,MATCH(Sovereigns!J$7&\"|\"&Sovereigns!$B32,'Data Annex'!$K$1:$K$1998,0),MATCH(Sovereigns!J$8,'Data Annex'!$K$1:$AN$1,0)),\"\")","v":0.1637968642},{"$f":"IFERROR(INDEX('Data Annex'!$K$1:$AN$1998,MATCH(Sovereigns!K$7&\"|\"&Sovereigns!$B32,'Data Annex'!$K$1:$K$1998,0),MATCH(Sovereigns!K$8,'Data Annex'!$K$1:$AN$1,0)),\"\")","v":0.1120775106},{"$f":"IFERROR(INDEX('Data Annex'!$K$1:$AN$1998,MATCH(Sovereigns!L$7&\"|\"&Sovereigns!$B32,'Data Annex'!$K$1:$K$1998,0),MATCH(Sovereigns!L$8,'Data Annex'!$K$1:$AN$1,0)),\"\")","v":1.46027},{"$f":"IFERROR(INDEX('Data Annex'!$K$1:$AN$1998,MATCH(Sovereigns!M$7&\"|\"&Sovereigns!$B32,'Data Annex'!$K$1:$K$1998,0),MATCH(Sovereigns!M$8,'Data Annex'!$K$1:$AN$1,0)),\"\")","v":1.821839},{"$f":"IFERROR(INDEX('Data Annex'!$K$1:$AN$1998,MATCH(Sovereigns!N$7&\"|\"&Sovereigns!$B32,'Data Annex'!$K$1:$K$1998,0),MATCH(Sovereigns!N$8,'Data Annex'!$K$1:$AN$1,0)),\"\")","v":2.08599293E-2},{"$f":"IFERROR(INDEX('Data Annex'!$K$1:$AN$1998,MATCH(Sovereigns!O$7&\"|\"&Sovereigns!$B32,'Data Annex'!$K$1:$K$1998,0),MATCH(Sovereigns!O$8,'Data Annex'!$K$1:$AN$1,0)),\"\")","v":6.1873648000000002E-3},{"$f":"IFERROR(INDEX('Data Annex'!$K$1:$AN$1998,MATCH(Sovereigns!P$7&\"|\"&Sovereigns!$B32,'Data Annex'!$K$1:$K$1998,0),MATCH(Sovereigns!P$8,'Data Annex'!$K$1:$AN$1,0)),\"\")","v":0},{"$f":"IFERROR(INDEX('Data Annex'!$K$1:$AN$1998,MATCH(Sovereigns!Q$7&\"|\"&Sovereigns!$B32,'Data Annex'!$K$1:$K$1998,0),MATCH(Sovereigns!Q$8,'Data Annex'!$K$1:$AN$1,0)),\"\")","v":0},{"$f":"IFERROR(INDEX('Data Annex'!$K$1:$AN$1998,MATCH(Sovereigns!R$7&\"|\"&Sovereigns!$B32,'Data Annex'!$K$1:$K$1998,0),MATCH(Sovereigns!R$8,'Data Annex'!$K$1:$AN$1,0)),\"\")","v":1.21000855E-2},{"$f":"IFERROR(INDEX('Data Annex'!$K$1:$AN$1998,MATCH(Sovereigns!S$7&\"|\"&Sovereigns!$B32,'Data Annex'!$K$1:$K$1998,0),MATCH(Sovereigns!S$8,'Data Annex'!$K$1:$AN$1,0)),\"\")","v":9.8226219E-3},{"$f":"IFERROR(INDEX('Data Annex'!$K$1:$AN$1998,MATCH(Sovereigns!T$7&\"|\"&Sovereigns!$B32,'Data Annex'!$K$1:$K$1998,0),MATCH(Sovereigns!T$8,'Data Annex'!$K$1:$AN$1,0)),\"\")","v":0.55350916839999997},{"$f":"IFERROR(INDEX('Data Annex'!$K$1:$AN$1998,MATCH(Sovereigns!U$7&\"|\"&Sovereigns!$B32,'Data Annex'!$K$1:$K$1998,0),MATCH(Sovereigns!U$8,'Data Annex'!$K$1:$AN$1,0)),\"\")","v":0.58000032150000003},{"$f":"IFERROR(INDEX('Data Annex'!$K$1:$AN$1998,MATCH(Sovereigns!V$7&\"|\"&Sovereigns!$B32,'Data Annex'!$K$1:$K$1998,0),MATCH(Sovereigns!V$8,'Data Annex'!$K$1:$AN$1,0)),\"\")","v":0.41353081670000003},{"$f":"IFERROR(INDEX('Data Annex'!$K$1:$AN$1998,MATCH(Sovereigns!W$7&\"|\"&Sovereigns!$B32,'Data Annex'!$K$1:$K$1998,0),MATCH(Sovereigns!W$8,'Data Annex'!$K$1:$AN$1,0)),\"\")","v":0.40398969179999999}]
[20,"LU",null,"LU",null,{"$f":"IFERROR(INDEX('Data Annex'!$K$1:$AN$1998,MATCH(Sovereigns!F$7&\"|\"&Sovereigns!$B33,'Data Annex'!$K$1:$K$1998,0),MATCH(Sovereigns!F$8,'Data Annex'!$K$1:$AN$1,0)),\"\")","v":20.486232400999999},{"$f":"IFERROR(INDEX('Data Annex'!$K$1:$AN$1998,MATCH(Sovereigns!G$7&\"|\"&Sovereigns!$B33,'Data Annex'!$K$1:$K$1998,0),MATCH(Sovereigns!G$8,'Data Annex'!$K$1:$AN$1,0)),\"\")","v":23.854812281000001},{"$f":"IFERROR(INDEX('Data Annex'!$K$1:$AN$1998,MATCH(Sovereigns!H$7&\"|\"&Sovereigns!$B33,'Data Annex'!$K$1:$K$1998,0),MATCH(Sovereigns!H$8,'Data Annex'!$K$1:$AN$1,0)),\"\")","v":0.18384711070000001},{"$f":"IFERROR(INDEX('Data Annex'!$K$1:$AN$1998,MATCH(Sovereigns!I$7&\"|\"&Sovereigns!$B33,'Data Annex'!$K$1:$K$1998,0),MATCH(Sovereigns!I$8,'Data Annex'!$K$1:$AN$1,0)),\"\")","v":0.18490522549999999},{"$f":"IFERROR(INDEX('Data Annex'!$K$1:$AN$1998,MATCH(Sovereigns!J$7&\"|\"&Sovereigns!$B33,'Data Annex'!$K$1:$K$1998,0),MATCH(Sovereigns!J$8,'Data Annex'!$K$1:$AN$1,0)),\"\")","v":0.64071446219999995},{"$f":"IFERROR(INDEX('Data Annex'!$K$1:$AN$1998,MATCH(Sovereigns!K$7&\"|\"&Sovereigns!$B33,'Data Annex'!$K$1:$K$1998,0),MATCH(Sovereigns!K$8,'Data Annex'!$K$1:$AN$1,0)),\"\")","v":0.53968403600000003},{"$f":"IFERROR(INDEX('Data Annex'!$K$1:$AN$1998,MATCH(Sovereigns!L$7&\"|\"&Sovereigns!$B33,'Data Annex'!$K$1:$K$1998,0),MATCH(Sovereigns!L$8,'Data Annex'!$K$1:$AN$1,0)),\"\")","v":21.839982118000002},{"$f":"IFERROR(INDEX('Data Annex'!$K$1:$AN$1998,MATCH(Sovereigns!M$7&\"|\"&Sovereigns!$B33,'Data Annex'!$K$1:$K$1998,0),MATCH(Sovereigns!M$8,'Data Annex'!$K$1:$AN$1,0)),\"\")","v":25.523206700999999},{"$f":"IFERROR(INDEX('Data Annex'!$K$1:$AN$1998,MATCH(Sovereigns!N$7&\"|\"&Sovereigns!$B33,'Data Annex'!$K$1:$K$1998,0),MATCH(Sovereigns!N$8,'Data Annex'!$K$1:$AN$1,0)),\"\")","v":9.0286380000000001E-4},{"$f":"IFERROR(INDEX('Data Annex'!$K$1:$AN$1998,MATCH(Sovereigns!O$7&\"|\"&Sovereigns!$B33,'Data Annex'!$K$1:$K$1998,0),MATCH(Sovereigns!O$8,'Data Annex'!$K$1:$AN$1,0)),\"\")","v":6.566136E-4},{"$f":"IFERROR(INDEX('Data Annex'!$K$1:$AN$1998,MATCH(Sovereigns!P$7&\"|\"&Sovereigns!$B33,'Data Annex'!$K$1:$K$1998,0),MATCH(Sovereigns!P$8,'Data Annex'!$K$1:$AN$1,0)),\"\")","v":0},{"$f":"IFERROR(INDEX('Data Annex'!$K$1:$AN$1998,MATCH(Sovereigns!Q$7&\"|\"&Sovereigns!$B33,'Data Annex'!$K$1:$K$1998,0),MATCH(Sovereigns!Q$8,'Data Annex'!$K$1:$AN$1,0)),\"\")","v":0},{"$f":"IFERROR(INDEX('Data Annex'!$K$1:$AN$1998,MATCH(Sovereigns!R$7&\"|\"&Sovereigns!$B33,'Data Annex'!$K$1:$K$1998,0),MATCH(Sovereigns!R$8,'Data Annex'!$K$1:$AN$1,0)),\"\")","v":0.38182379519999998},{"$f":"IFERROR(INDEX('Data Annex'!$K$1:$AN$1998,MATCH(Sovereigns!S$7&\"|\"&Sovereigns!$B33,'Data Annex'!$K$1:$K$1998,0),MATCH(Sovereigns!S$8,'Data Annex'!$K$1:$AN$1,0)),\"\")","v":0.30814123030000001},{"$f":"IFERROR(INDEX('Data Annex'!$K$1:$AN$1998,MATCH(Sovereigns!T$7&\"|\"&Sovereigns!$B33,'Data Annex'!$K$1:$K$1998,0),MATCH(Sovereigns!T$8,'Data Annex'!$K$1:$AN$1,0)),\"\")","v":0.60344586479999995},{"$f":"IFERROR(INDEX('Data Annex'!$K$1:$AN$1998,MATCH(Sovereigns!U$7&\"|\"&Sovereigns!$B33,'Data Annex'!$K$1:$K$1998,0),MATCH(Sovereigns!U$8,'Data Annex'!$K$1:$AN$1,0)),\"\")","v":0.68479338940000001},{"$f":"IFERROR(INDEX('Data Annex'!$K$1:$AN$1998,MATCH(Sovereigns!V$7&\"|\"&Sovereigns!$B33,'Data Annex'!$K$1:$K$1998,0),MATCH(Sovereigns!V$8,'Data Annex'!$K$1:$AN$1,0)),\"\")","v":1.3827476199999999E-2},{"$f":"IFERROR(INDEX('Data Annex'!$K$1:$AN$1998,MATCH(Sovereigns!W$7&\"|\"&Sovereigns!$B33,'Data Annex'!$K$1:$K$1998,0),MATCH(Sovereigns!W$8,'Data Annex'!$K$1:$AN$1,0)),\"\")","v":6.4087666999999996E-3}]
[21,"LV",null,"LV",null,{"$f":"IFERROR(INDEX('Data Annex'!$K$1:$AN$1998,MATCH(Sovereigns!F$7&\"|\"&Sovereigns!$B34,'Data Annex'!$K$1:$K$1998,0),MATCH(Sovereigns!F$8,'Data Annex'!$K$1:$AN$1,0)),\"\")","v":1.49262568},{"$f":"IFERROR(INDEX('Data Annex'!$K$1:$AN$1998,MATCH(Sovereigns!G$7&\"|\"&Sovereigns!$B34,'Data Annex'!$K$1:$K$1998,0),MATCH(Sovereigns!G$8,'Data Annex'!$K$1:$AN$1,0)),\"\")","v":1.7796004700000001},{"$f":"IFERROR(INDEX('Data Annex'!$K$1:$AN$1998,MATCH(Sovereigns!H$7&\"|\"&Sovereigns!$B34,'Data Annex'!$K$1:$K$1998,0),MATCH(Sovereigns!H$8,'Data Annex'!$K$1:$AN$1,0)),\"\")","v":0.5510693887},{"$f":"IFERROR(INDEX('Data Annex'!$K$1:$AN$1998,MATCH(Sovereigns!I$7&\"|\"&Sovereigns!$B34,'Data Annex'!$K$1:$K$1998,0),MATCH(Sovereigns!I$8,'Data Annex'!$K$1:$AN$1,0)),\"\")","v":0.48865206300000003},{"$f":"IFERROR(INDEX('Data Annex'!$K$1:$AN$1998,MATCH(Sovereigns!J$7&\"|\"&Sovereigns!$B34,'Data Annex'!$K$1:$K$1998,0),MATCH(Sovereigns!J$8,'Data Annex'!$K$1:$AN$1,0)),\"\")","v":0.4062004447},{"$f":"IFERROR(INDEX('Data Annex'!$K$1:$AN$1998,MATCH(Sovereigns!K$7&\"|\"&Sovereigns!$B34,'Data Annex'!$K$1:$K$1998,0),MATCH(Sovereigns!K$8,'Data Annex'!$K$1:$AN$1,0)),\"\")","v":0.48131556739999998},{"$f":"IFERROR(INDEX('Data Annex'!$K$1:$AN$1998,MATCH(Sovereigns!L$7&\"|\"&Sovereigns!$B34,'Data Annex'!$K$1:$K$1998,0),MATCH(Sovereigns!L$8,'Data Annex'!$K$1:$AN$1,0)),\"\")","v":1.492598487},{"$f":"IFERROR(INDEX('Data Annex'!$K$1:$AN$1998,MATCH(Sovereigns!M$7&\"|\"&Sovereigns!$B34,'Data Annex'!$K$1:$K$1998,0),MATCH(Sovereigns!M$8,'Data Annex'!$K$1:$AN$1,0)),\"\")","v":1.7795968339999999},{"$f":"IFERROR(INDEX('Data Annex'!$K$1:$AN$1998,MATCH(Sovereigns!N$7&\"|\"&Sovereigns!$B34,'Data Annex'!$K$1:$K$1998,0),MATCH(Sovereigns!N$8,'Data Annex'!$K$1:$AN$1,0)),\"\")","v":3.251417E-4},{"$f":"IFERROR(INDEX('Data Annex'!$K$1:$AN$1998,MATCH(Sovereigns!O$7&\"|\"&Sovereigns!$B34,'Data Annex'!$K$1:$K$1998,0),MATCH(Sovereigns!O$8,'Data Annex'!$K$1:$AN$1,0)),\"\")","v":7.8181200000000003E-5},{"$f":"IFERROR(INDEX('Data Annex'!$K$1:$AN$1998,MATCH(Sovereigns!P$7&\"|\"&Sovereigns!$B34,'Data Annex'!$K$1:$K$1998,0),MATCH(Sovereigns!P$8,'Data Annex'!$K$1:$AN$1,0)),\"\")","v":0},{"$f":"IFERROR(INDEX('Data Annex'!$K$1:$AN$1998,MATCH(Sovereigns!Q$7&\"|\"&Sovereigns!$B34,'Data Annex'!$K$1:$K$1998,0),MATCH(Sovereigns!Q$8,'Data Annex'!$K$1:$AN$1,0)),\"\")","v":0},{"$f":"IFERROR(INDEX('Data Annex'!$K$1:$AN$1998,MATCH(Sovereigns!R$7&\"|\"&Sovereigns!$B34,'Data Annex'!$K$1:$K$1998,0),MATCH(Sovereigns!R$8,'Data Annex'!$K$1:$AN$1,0)),\"\")","v":0.1170613059},{"$f":"IFERROR(INDEX('Data Annex'!$K$1:$AN$1998,MATCH(Sovereigns!S$7&\"|\"&Sovereigns!$B34,'Data Annex'!$K$1:$K$1998,0),MATCH(Sovereigns!S$8,'Data Annex'!$K$1:$AN$1,0)),\"\")","v":0.10019415330000001},{"$f":"IFERROR(INDEX('Data Annex'!$K$1:$AN$1998,MATCH(Sovereigns!T$7&\"|\"&Sovereigns!$B34,'Data Annex'!$K$1:$K$1998,0),MATCH(Sovereigns!T$8,'Data Annex'!$K$1:$AN$1,0)),\"\")","v":0.64490505949999999},{"$f":"IFERROR(INDEX('Data Annex'!$K$1:$AN$1998,MATCH(Sovereigns!U$7&\"|\"&Sovereigns!$B34,'Data Annex'!$K$1:$K$1998,0),MATCH(Sovereigns!U$8,'Data Annex'!$K$1:$AN$1,0)),\"\")","v":0.69168893399999998},{"$f":"IFERROR(INDEX('Data Annex'!$K$1:$AN$1998,MATCH(Sovereigns!V$7&\"|\"&Sovereigns!$B34,'Data Annex'!$K$1:$K$1998,0),MATCH(Sovereigns!V$8,'Data Annex'!$K$1:$AN$1,0)),\"\")","v":0.23770849299999999},{"$f":"IFERROR(INDEX('Data Annex'!$K$1:$AN$1998,MATCH(Sovereigns!W$7&\"|\"&Sovereigns!$B34,'Data Annex'!$K$1:$K$1998,0),MATCH(Sovereigns!W$8,'Data Annex'!$K$1:$AN$1,0)),\"\")","v":0.20803873149999999}]
[22,"MT",null,"MT",null,{"$f":"IFERROR(INDEX('Data Annex'!$K$1:$AN$1998,MATCH(Sovereigns!F$7&\"|\"&Sovereigns!$B35,'Data Annex'!$K$1:$K$1998,0),MATCH(Sovereigns!F$8,'Data Annex'!$K$1:$AN$1,0)),\"\")","v":3.6225271657999998},{"$f":"IFERROR(INDEX('Data Annex'!$K$1:$AN$1998,MATCH(Sovereigns!G$7&\"|\"&Sovereigns!$B35,'Data Annex'!$K$1:$K$1998,0),MATCH(Sovereigns!G$8,'Data Annex'!$K$1:$AN$1,0)),\"\")","v":3.1241212545999999},{"$f":"IFERROR(INDEX('Data Annex'!$K$1:$AN$1998,MATCH(Sovereigns!H$7&\"|\"&Sovereigns!$B35,'Data Annex'!$K$1:$K$1998,0),MATCH(Sovereigns!H$8,'Data Annex'!$K$1:$AN$1,0)),\"\")","v":0.60668577530000001},{"$f":"IFERROR(INDEX('Data Annex'!$K$1:$AN$1998,MATCH(Sovereigns!I$7&\"|\"&Sovereigns!$B35,'Data Annex'!$K$1:$K$1998,0),MATCH(Sovereigns!I$8,'Data Annex'!$K$1:$AN$1,0)),\"\")","v":0.59660671700000001},{"$f":"IFERROR(INDEX('Data Annex'!$K$1:$AN$1998,MATCH(Sovereigns!J$7&\"|\"&Sovereigns!$B35,'Data Annex'!$K$1:$K$1998,0),MATCH(Sovereigns!J$8,'Data Annex'!$K$1:$AN$1,0)),\"\")","v":0.36822150279999999},{"$f":"IFERROR(INDEX('Data Annex'!$K$1:$AN$1998,MATCH(Sovereigns!K$7&\"|\"&Sovereigns!$B35,'Data Annex'!$K$1:$K$1998,0),MATCH(Sovereigns!K$8,'Data Annex'!$K$1:$AN$1,0)),\"\")","v":0.37730626350000002},{"$f":"IFERROR(INDEX('Data Annex'!$K$1:$AN$1998,MATCH(Sovereigns!L$7&\"|\"&Sovereigns!$B35,'Data Annex'!$K$1:$K$1998,0),MATCH(Sovereigns!L$8,'Data Annex'!$K$1:$AN$1,0)),\"\")","v":3.6222583728000002},{"$f":"IFERROR(INDEX('Data Annex'!$K$1:$AN$1998,MATCH(Sovereigns!M$7&\"|\"&Sovereigns!$B35,'Data Annex'!$K$1:$K$1998,0),MATCH(Sovereigns!M$8,'Data Annex'!$K$1:$AN$1,0)),\"\")","v":3.1234680396000001},{"$f":"IFERROR(INDEX('Data Annex'!$K$1:$AN$1998,MATCH(Sovereigns!N$7&\"|\"&Sovereigns!$B35,'Data Annex'!$K$1:$K$1998,0),MATCH(Sovereigns!N$8,'Data Annex'!$K$1:$AN$1,0)),\"\")","v":0},{"$f":"IFERROR(INDEX('Data Annex'!$K$1:$AN$1998,MATCH(Sovereigns!O$7&\"|\"&Sovereigns!$B35,'Data Annex'!$K$1:$K$1998,0),MATCH(Sovereigns!O$8,'Data Annex'!$K$1:$AN$1,0)),\"\")","v":0},{"$f":"IFERROR(INDEX('Data Annex'!$K$1:$AN$1998,MATCH(Sovereigns!P$7&\"|\"&Sovereigns!$B35,'Data Annex'!$K$1:$K$1998,0),MATCH(Sovereigns!P$8,'Data Annex'!$K$1:$AN$1,0)),\"\")","v":2.6753551E-3},{"$f":"IFERROR(INDEX('Data Annex'!$K$1:$AN$1998,MATCH(Sovereigns!Q$7&\"|\"&Sovereigns!$B35,'Data Annex'!$K$1:$K$1998,0),MATCH(Sovereigns!Q$8,'Data Annex'!$K$1:$AN$1,0)),\"\")","v":3.0366242E-3},{"$f":"IFERROR(INDEX('Data Annex'!$K$1:$AN$1998,MATCH(Sovereigns!R$7&\"|\"&Sovereigns!$B35,'Data Annex'!$K$1:$K$1998,0),MATCH(Sovereigns!R$8,'Data Annex'!$K$1:$AN$1,0)),\"\")","v":0.42897109630000002},{"$f":"IFERROR(INDEX('Data Annex'!$K$1:$AN$1998,MATCH(Sovereigns!S$7&\"|\"&Sovereigns!$B35,'Data Annex'!$K$1:$K$1998,0),MATCH(Sovereigns!S$8,'Data Annex'!$K$1:$AN$1,0)),\"\")","v":0.36279074030000003},{"$f":"IFERROR(INDEX('Data Annex'!$K$1:$AN$1998,MATCH(Sovereigns!T$7&\"|\"&Sovereigns!$B35,'Data Annex'!$K$1:$K$1998,0),MATCH(Sovereigns!T$8,'Data Annex'!$K$1:$AN$1,0)),\"\")","v":0.56835354859999998},{"$f":"IFERROR(INDEX('Data Annex'!$K$1:$AN$1998,MATCH(Sovereigns!U$7&\"|\"&Sovereigns!$B35,'Data Annex'!$K$1:$K$1998,0),MATCH(Sovereigns!U$8,'Data Annex'!$K$1:$AN$1,0)),\"\")","v":0.63417263550000003},{"$f":"IFERROR(INDEX('Data Annex'!$K$1:$AN$1998,MATCH(Sovereigns!V$7&\"|\"&Sovereigns!$B35,'Data Annex'!$K$1:$K$1998,0),MATCH(Sovereigns!V$8,'Data Annex'!$K$1:$AN$1,0)),\"\")","v":0},{"$f":"IFERROR(INDEX('Data Annex'!$K$1:$AN$1998,MATCH(Sovereigns!W$7&\"|\"&Sovereigns!$B35,'Data Annex'!$K$1:$K$1998,0),MATCH(Sovereigns!W$8,'Data Annex'!$K$1:$AN$1,0)),\"\")","v":0}]
[23,"NL",null,"NL",null,{"$f":"IFERROR(INDEX('Data Annex'!$K$1:$AN$1998,MATCH(Sovereigns!F$7&\"|\"&Sovereigns!$B36,'Data Annex'!$K$1:$K$1998,0),MATCH(Sovereigns!F$8,'Data Annex'!$K$1:$AN$1,0)),\"\")","v":262.3090042},{"$f":"IFERROR(INDEX('Data Annex'!$K$1:$AN$1998,MATCH(Sovereigns!G$7&\"|\"&Sovereigns!$B36,'Data Annex'!$K$1:$K$1998,0),MATCH(Sovereigns!G$8,'Data Annex'!$K$1:$AN$1,0)),\"\")","v":252.13516663999999},{"$f":"IFERROR(INDEX('Data Annex'!$K$1:$AN$1998,MATCH(Sovereigns!H$7&\"|\"&Sovereigns!$B36,'Data Annex'!$K$1:$K$1998,0),MATCH(Sovereigns!H$8,'Data Annex'!$K$1:$AN$1,0)),\"\")","v":0.51112809989999997},{"$f":"IFERROR(INDEX('Data Annex'!$K$1:$AN$1998,MATCH(Sovereigns!I$7&\"|\"&Sovereigns!$B36,'Data Annex'!$K$1:$K$1998,0),MATCH(Sovereigns!I$8,'Data Annex'!$K$1:$AN$1,0)),\"\")","v":0.50461525070000002},{"$f":"IFERROR(INDEX('Data Annex'!$K$1:$AN$1998,MATCH(Sovereigns!J$7&\"|\"&Sovereigns!$B36,'Data Annex'!$K$1:$K$1998,0),MATCH(Sovereigns!J$8,'Data Annex'!$K$1:$AN$1,0)),\"\")","v":0.34093067960000001},{"$f":"IFERROR(INDEX('Data Annex'!$K$1:$AN$1998,MATCH(Sovereigns!K$7&\"|\"&Sovereigns!$B36,'Data Annex'!$K$1:$K$1998,0),MATCH(Sovereigns!K$8,'Data Annex'!$K$1:$AN$1,0)),\"\")","v":0.34508103680000002},{"$f":"IFERROR(INDEX('Data Annex'!$K$1:$AN$1998,MATCH(Sovereigns!L$7&\"|\"&Sovereigns!$B36,'Data Annex'!$K$1:$K$1998,0),MATCH(Sovereigns!L$8,'Data Annex'!$K$1:$AN$1,0)),\"\")","v":262.02746479000001},{"$f":"IFERROR(INDEX('Data Annex'!$K$1:$AN$1998,MATCH(Sovereigns!M$7&\"|\"&Sovereigns!$B36,'Data Annex'!$K$1:$K$1998,0),MATCH(Sovereigns!M$8,'Data Annex'!$K$1:$AN$1,0)),\"\")","v":251.44863615},{"$f":"IFERROR(INDEX('Data Annex'!$K$1:$AN$1998,MATCH(Sovereigns!N$7&\"|\"&Sovereigns!$B36,'Data Annex'!$K$1:$K$1998,0),MATCH(Sovereigns!N$8,'Data Annex'!$K$1:$AN$1,0)),\"\")","v":1.8355751300000001E-2},{"$f":"IFERROR(INDEX('Data Annex'!$K$1:$AN$1998,MATCH(Sovereigns!O$7&\"|\"&Sovereigns!$B36,'Data Annex'!$K$1:$K$1998,0),MATCH(Sovereigns!O$8,'Data Annex'!$K$1:$AN$1,0)),\"\")","v":1.1359359899999999E-2},{"$f":"IFERROR(INDEX('Data Annex'!$K$1:$AN$1998,MATCH(Sovereigns!P$7&\"|\"&Sovereigns!$B36,'Data Annex'!$K$1:$K$1998,0),MATCH(Sovereigns!P$8,'Data Annex'!$K$1:$AN$1,0)),\"\")","v":7.1615510000000004E-3},{"$f":"IFERROR(INDEX('Data Annex'!$K$1:$AN$1998,MATCH(Sovereigns!Q$7&\"|\"&Sovereigns!$B36,'Data Annex'!$K$1:$K$1998,0),MATCH(Sovereigns!Q$8,'Data Annex'!$K$1:$AN$1,0)),\"\")","v":1.0310760400000001E-2},{"$f":"IFERROR(INDEX('Data Annex'!$K$1:$AN$1998,MATCH(Sovereigns!R$7&\"|\"&Sovereigns!$B36,'Data Annex'!$K$1:$K$1998,0),MATCH(Sovereigns!R$8,'Data Annex'!$K$1:$AN$1,0)),\"\")","v":0.33023613540000002},{"$f":"IFERROR(INDEX('Data Annex'!$K$1:$AN$1998,MATCH(Sovereigns!S$7&\"|\"&Sovereigns!$B36,'Data Annex'!$K$1:$K$1998,0),MATCH(Sovereigns!S$8,'Data Annex'!$K$1:$AN$1,0)),\"\")","v":0.32351593299999998},{"$f":"IFERROR(INDEX('Data Annex'!$K$1:$AN$1998,MATCH(Sovereigns!T$7&\"|\"&Sovereigns!$B36,'Data Annex'!$K$1:$K$1998,0),MATCH(Sovereigns!T$8,'Data Annex'!$K$1:$AN$1,0)),\"\")","v":0.34711466169999999},{"$f":"IFERROR(INDEX('Data Annex'!$K$1:$AN$1998,MATCH(Sovereigns!U$7&\"|\"&Sovereigns!$B36,'Data Annex'!$K$1:$K$1998,0),MATCH(Sovereigns!U$8,'Data Annex'!$K$1:$AN$1,0)),\"\")","v":0.3559611446},{"$f":"IFERROR(INDEX('Data Annex'!$K$1:$AN$1998,MATCH(Sovereigns!V$7&\"|\"&Sovereigns!$B36,'Data Annex'!$K$1:$K$1998,0),MATCH(Sovereigns!V$8,'Data Annex'!$K$1:$AN$1,0)),\"\")","v":0.2971319006},{"$f":"IFERROR(INDEX('Data Annex'!$K$1:$AN$1998,MATCH(Sovereigns!W$7&\"|\"&Sovereigns!$B36,'Data Annex'!$K$1:$K$1998,0),MATCH(Sovereigns!W$8,'Data Annex'!$K$1:$AN$1,0)),\"\")","v":0.29885280219999999}]
[24,"NO",null,"NO",null,{"$f":"IFERROR(INDEX('Data Annex'!$K$1:$AN$1998,MATCH(Sovereigns!F$7&\"|\"&Sovereigns!$B37,'Data Annex'!$K$1:$K$1998,0),MATCH(Sovereigns!F$8,'Data Annex'!$K$1:$AN$1,0)),\"\")","v":26.892078965},{"$f":"IFERROR(INDEX('Data Annex'!$K$1:$AN$1998,MATCH(Sovereigns!G$7&\"|\"&Sovereigns!$B37,'Data Annex'!$K$1:$K$1998,0),MATCH(Sovereigns!G$8,'Data Annex'!$K$1:$AN$1,0)),\"\")","v":18.481740533},{"$f":"IFERROR(INDEX('Data Annex'!$K$1:$AN$1998,MATCH(Sovereigns!H$7&\"|\"&Sovereigns!$B37,'Data Annex'!$K$1:$K$1998,0),MATCH(Sovereigns!H$8,'Data Annex'!$K$1:$AN$1,0)),\"\")","v":0.28625575780000001},{"$f":"IFERROR(INDEX('Data Annex'!$K$1:$AN$1998,MATCH(Sovereigns!I$7&\"|\"&Sovereigns!$B37,'Data Annex'!$K$1:$K$1998,0),MATCH(Sovereigns!I$8,'Data Annex'!$K$1:$AN$1,0)),\"\")","v":0.36740920649999997},{"$f":"IFERROR(INDEX('Data Annex'!$K$1:$AN$1998,MATCH(Sovereigns!J$7&\"|\"&Sovereigns!$B37,'Data Annex'!$K$1:$K$1998,0),MATCH(Sovereigns!J$8,'Data Annex'!$K$1:$AN$1,0)),\"\")","v":4.5723782900000003E-2},{"$f":"IFERROR(INDEX('Data Annex'!$K$1:$AN$1998,MATCH(Sovereigns!K$7&\"|\"&Sovereigns!$B37,'Data Annex'!$K$1:$K$1998,0),MATCH(Sovereigns!K$8,'Data Annex'!$K$1:$AN$1,0)),\"\")","v":6.8468779100000002E-2},{"$f":"IFERROR(INDEX('Data Annex'!$K$1:$AN$1998,MATCH(Sovereigns!L$7&\"|\"&Sovereigns!$B37,'Data Annex'!$K$1:$K$1998,0),MATCH(Sovereigns!L$8,'Data Annex'!$K$1:$AN$1,0)),\"\")","v":25.565556833999999},{"$f":"IFERROR(INDEX('Data Annex'!$K$1:$AN$1998,MATCH(Sovereigns!M$7&\"|\"&Sovereigns!$B37,'Data Annex'!$K$1:$K$1998,0),MATCH(Sovereigns!M$8,'Data Annex'!$K$1:$AN$1,0)),\"\")","v":16.970172603000002},{"$f":"IFERROR(INDEX('Data Annex'!$K$1:$AN$1998,MATCH(Sovereigns!N$7&\"|\"&Sovereigns!$B37,'Data Annex'!$K$1:$K$1998,0),MATCH(Sovereigns!N$8,'Data Annex'!$K$1:$AN$1,0)),\"\")","v":0.2663514736},{"$f":"IFERROR(INDEX('Data Annex'!$K$1:$AN$1998,MATCH(Sovereigns!O$7&\"|\"&Sovereigns!$B37,'Data Annex'!$K$1:$K$1998,0),MATCH(Sovereigns!O$8,'Data Annex'!$K$1:$AN$1,0)),\"\")","v":0.27316220079999998},{"$f":"IFERROR(INDEX('Data Annex'!$K$1:$AN$1998,MATCH(Sovereigns!P$7&\"|\"&Sovereigns!$B37,'Data Annex'!$K$1:$K$1998,0),MATCH(Sovereigns!P$8,'Data Annex'!$K$1:$AN$1,0)),\"\")","v":0.38539308690000001},{"$f":"IFERROR(INDEX('Data Annex'!$K$1:$AN$1998,MATCH(Sovereigns!Q$7&\"|\"&Sovereigns!$B37,'Data Annex'!$K$1:$K$1998,0),MATCH(Sovereigns!Q$8,'Data Annex'!$K$1:$AN$1,0)),\"\")","v":0.29976326660000002},{"$f":"IFERROR(INDEX('Data Annex'!$K$1:$AN$1998,MATCH(Sovereigns!R$7&\"|\"&Sovereigns!$B37,'Data Annex'!$K$1:$K$1998,0),MATCH(Sovereigns!R$8,'Data Annex'!$K$1:$AN$1,0)),\"\")","v":0.17399482429999999},{"$f":"IFERROR(INDEX('Data Annex'!$K$1:$AN$1998,MATCH(Sovereigns!S$7&\"|\"&Sovereigns!$B37,'Data Annex'!$K$1:$K$1998,0),MATCH(Sovereigns!S$8,'Data Annex'!$K$1:$AN$1,0)),\"\")","v":0.30276745399999999},{"$f":"IFERROR(INDEX('Data Annex'!$K$1:$AN$1998,MATCH(Sovereigns!T$7&\"|\"&Sovereigns!$B37,'Data Annex'!$K$1:$K$1998,0),MATCH(Sovereigns!T$8,'Data Annex'!$K$1:$AN$1,0)),\"\")","v":0.1407091043},{"$f":"IFERROR(INDEX('Data Annex'!$K$1:$AN$1998,MATCH(Sovereigns!U$7&\"|\"&Sovereigns!$B37,'Data Annex'!$K$1:$K$1998,0),MATCH(Sovereigns!U$8,'Data Annex'!$K$1:$AN$1,0)),\"\")","v":7.7968603499999997E-2},{"$f":"IFERROR(INDEX('Data Annex'!$K$1:$AN$1998,MATCH(Sovereigns!V$7&\"|\"&Sovereigns!$B37,'Data Annex'!$K$1:$K$1998,0),MATCH(Sovereigns!V$8,'Data Annex'!$K$1:$AN$1,0)),\"\")","v":3.3551510899999998E-2},{"$f":"IFERROR(INDEX('Data Annex'!$K$1:$AN$1998,MATCH(Sovereigns!W$7&\"|\"&Sovereigns!$B37,'Data Annex'!$K$1:$K$1998,0),MATCH(Sovereigns!W$8,'Data Annex'!$K$1:$AN$1,0)),\"\")","v":4.63384752E-2}]
[25,"PL",null,"PL",null,{"$f":"IFERROR(INDEX('Data Annex'!$K$1:$AN$1998,MATCH(Sovereigns!F$7&\"|\"&Sovereigns!$B38,'Data Annex'!$K$1:$K$1998,0),MATCH(Sovereigns!F$8,'Data Annex'!$K$1:$AN$1,0)),\"\")","v":46.263576348000001},{"$f":"IFERROR(INDEX('Data Annex'!$K$1:$AN$1998,MATCH(Sovereigns!G$7&\"|\"&Sovereigns!$B38,'Data Annex'!$K$1:$K$1998,0),MATCH(Sovereigns!G$8,'Data Annex'!$K$1:$AN$1,0)),\"\")","v":47.038489708999997},{"$f":"IFERROR(INDEX('Data Annex'!$K$1:$AN$1998,MATCH(Sovereigns!H$7&\"|\"&Sovereigns!$B38,'Data Annex'!$K$1:$K$1998,0),MATCH(Sovereigns!H$8,'Data Annex'!$K$1:$AN$1,0)),\"\")","v":1},{"$f":"IFERROR(INDEX('Data Annex'!$K$1:$AN$1998,MATCH(Sovereigns!I$7&\"|\"&Sovereigns!$B38,'Data Annex'!$K$1:$K$1998,0),MATCH(Sovereigns!I$8,'Data Annex'!$K$1:$AN$1,0)),\"\")","v":0.97199505100000005},{"$f":"IFERROR(INDEX('Data Annex'!$K$1:$AN$1998,MATCH(Sovereigns!J$7&\"|\"&Sovereigns!$B38,'Data Annex'!$K$1:$K$1998,0),MATCH(Sovereigns!J$8,'Data Annex'!$K$1:$AN$1,0)),\"\")","v":0},{"$f":"IFERROR(INDEX('Data Annex'!$K$1:$AN$1998,MATCH(Sovereigns!K$7&\"|\"&Sovereigns!$B38,'Data Annex'!$K$1:$K$1998,0),MATCH(Sovereigns!K$8,'Data Annex'!$K$1:$AN$1,0)),\"\")","v":2.8004949000000001E-2},{"$f":"IFERROR(INDEX('Data Annex'!$K$1:$AN$1998,MATCH(Sovereigns!L$7&\"|\"&Sovereigns!$B38,'Data Annex'!$K$1:$K$1998,0),MATCH(Sovereigns!L$8,'Data Annex'!$K$1:$AN$1,0)),\"\")","v":46.215810161999997},{"$f":"IFERROR(INDEX('Data Annex'!$K$1:$AN$1998,MATCH(Sovereigns!M$7&\"|\"&Sovereigns!$B38,'Data Annex'!$K$1:$K$1998,0),MATCH(Sovereigns!M$8,'Data Annex'!$K$1:$AN$1,0)),\"\")","v":47.038489708999997},{"$f":"IFERROR(INDEX('Data Annex'!$K$1:$AN$1998,MATCH(Sovereigns!N$7&\"|\"&Sovereigns!$B38,'Data Annex'!$K$1:$K$1998,0),MATCH(Sovereigns!N$8,'Data Annex'!$K$1:$AN$1,0)),\"\")","v":1.35748812E-2},{"$f":"IFERROR(INDEX('Data Annex'!$K$1:$AN$1998,MATCH(Sovereigns!O$7&\"|\"&Sovereigns!$B38,'Data Annex'!$K$1:$K$1998,0),MATCH(Sovereigns!O$8,'Data Annex'!$K$1:$AN$1,0)),\"\")","v":1.17837371E-2},{"$f":"IFERROR(INDEX('Data Annex'!$K$1:$AN$1998,MATCH(Sovereigns!P$7&\"|\"&Sovereigns!$B38,'Data Annex'!$K$1:$K$1998,0),MATCH(Sovereigns!P$8,'Data Annex'!$K$1:$AN$1,0)),\"\")","v":0},{"$f":"IFERROR(INDEX('Data Annex'!$K$1:$AN$1998,MATCH(Sovereigns!Q$7&\"|\"&Sovereigns!$B38,'Data Annex'!$K$1:$K$1998,0),MATCH(Sovereigns!Q$8,'Data Annex'!$K$1:$AN$1,0)),\"\")","v":0},{"$f":"IFERROR(INDEX('Data Annex'!$K$1:$AN$1998,MATCH(Sovereigns!R$7&\"|\"&Sovereigns!$B38,'Data Annex'!$K$1:$K$1998,0),MATCH(Sovereigns!R$8,'Data Annex'!$K$1:$AN$1,0)),\"\")","v":0.67326810510000001},{"$f":"IFERROR(INDEX('Data Annex'!$K$1:$AN$1998,MATCH(Sovereigns!S$7&\"|\"&Sovereigns!$B38,'Data Annex'!$K$1:$K$1998,0),MATCH(Sovereigns!S$8,'Data Annex'!$K$1:$AN$1,0)),\"\")","v":0.63156098019999996},{"$f":"IFERROR(INDEX('Data Annex'!$K$1:$AN$1998,MATCH(Sovereigns!T$7&\"|\"&Sovereigns!$B38,'Data Annex'!$K$1:$K$1998,0),MATCH(Sovereigns!T$8,'Data Annex'!$K$1:$AN$1,0)),\"\")","v":0.31180579250000001},{"$f":"IFERROR(INDEX('Data Annex'!$K$1:$AN$1998,MATCH(Sovereigns!U$7&\"|\"&Sovereigns!$B38,'Data Annex'!$K$1:$K$1998,0),MATCH(Sovereigns!U$8,'Data Annex'!$K$1:$AN$1,0)),\"\")","v":0.35382623369999999},{"$f":"IFERROR(INDEX('Data Annex'!$K$1:$AN$1998,MATCH(Sovereigns!V$7&\"|\"&Sovereigns!$B38,'Data Annex'!$K$1:$K$1998,0),MATCH(Sovereigns!V$8,'Data Annex'!$K$1:$AN$1,0)),\"\")","v":1.3512212E-3},{"$f":"IFERROR(INDEX('Data Annex'!$K$1:$AN$1998,MATCH(Sovereigns!W$7&\"|\"&Sovereigns!$B38,'Data Annex'!$K$1:$K$1998,0),MATCH(Sovereigns!W$8,'Data Annex'!$K$1:$AN$1,0)),\"\")","v":2.8290490000000001E-3}]
[26,"PT",null,"PT",null,{"$f":"IFERROR(INDEX('Data Annex'!$K$1:$AN$1998,MATCH(Sovereigns!F$7&\"|\"&Sovereigns!$B39,'Data Annex'!$K$1:$K$1998,0),MATCH(Sovereigns!F$8,'Data Annex'!$K$1:$AN$1,0)),\"\")","v":74.635581340000002},{"$f":"IFERROR(INDEX('Data Annex'!$K$1:$AN$1998,MATCH(Sovereigns!G$7&\"|\"&Sovereigns!$B39,'Data Annex'!$K$1:$K$1998,0),MATCH(Sovereigns!G$8,'Data Annex'!$K$1:$AN$1,0)),\"\")","v":84.301551410000002},{"$f":"IFERROR(INDEX('Data Annex'!$K$1:$AN$1998,MATCH(Sovereigns!H$7&\"|\"&Sovereigns!$B39,'Data Annex'!$K$1:$K$1998,0),MATCH(Sovereigns!H$8,'Data Annex'!$K$1:$AN$1,0)),\"\")","v":0.5709912184},{"$f":"IFERROR(INDEX('Data Annex'!$K$1:$AN$1998,MATCH(Sovereigns!I$7&\"|\"&Sovereigns!$B39,'Data Annex'!$K$1:$K$1998,0),MATCH(Sovereigns!I$8,'Data Annex'!$K$1:$AN$1,0)),\"\")","v":0.60956878640000001},{"$f":"IFERROR(INDEX('Data Annex'!$K$1:$AN$1998,MATCH(Sovereigns!J$7&\"|\"&Sovereigns!$B39,'Data Annex'!$K$1:$K$1998,0),MATCH(Sovereigns!J$8,'Data Annex'!$K$1:$AN$1,0)),\"\")","v":0.38031506659999997},{"$f":"IFERROR(INDEX('Data Annex'!$K$1:$AN$1998,MATCH(Sovereigns!K$7&\"|\"&Sovereigns!$B39,'Data Annex'!$K$1:$K$1998,0),MATCH(Sovereigns!K$8,'Data Annex'!$K$1:$AN$1,0)),\"\")","v":0.34515709750000001},{"$f":"IFERROR(INDEX('Data Annex'!$K$1:$AN$1998,MATCH(Sovereigns!L$7&\"|\"&Sovereigns!$B39,'Data Annex'!$K$1:$K$1998,0),MATCH(Sovereigns!L$8,'Data Annex'!$K$1:$AN$1,0)),\"\")","v":74.62916027},{"$f":"IFERROR(INDEX('Data Annex'!$K$1:$AN$1998,MATCH(Sovereigns!M$7&\"|\"&Sovereigns!$B39,'Data Annex'!$K$1:$K$1998,0),MATCH(Sovereigns!M$8,'Data Annex'!$K$1:$AN$1,0)),\"\")","v":84.292208035000002},{"$f":"IFERROR(INDEX('Data Annex'!$K$1:$AN$1998,MATCH(Sovereigns!N$7&\"|\"&Sovereigns!$B39,'Data Annex'!$K$1:$K$1998,0),MATCH(Sovereigns!N$8,'Data Annex'!$K$1:$AN$1,0)),\"\")","v":0.15488495720000001},{"$f":"IFERROR(INDEX('Data Annex'!$K$1:$AN$1998,MATCH(Sovereigns!O$7&\"|\"&Sovereigns!$B39,'Data Annex'!$K$1:$K$1998,0),MATCH(Sovereigns!O$8,'Data Annex'!$K$1:$AN$1,0)),\"\")","v":3.84900455E-2},{"$f":"IFERROR(INDEX('Data Annex'!$K$1:$AN$1998,MATCH(Sovereigns!P$7&\"|\"&Sovereigns!$B39,'Data Annex'!$K$1:$K$1998,0),MATCH(Sovereigns!P$8,'Data Annex'!$K$1:$AN$1,0)),\"\")","v":1.8171991000000001E-6},{"$f":"IFERROR(INDEX('Data Annex'!$K$1:$AN$1998,MATCH(Sovereigns!Q$7&\"|\"&Sovereigns!$B39,'Data Annex'!$K$1:$K$1998,0),MATCH(Sovereigns!Q$8,'Data Annex'!$K$1:$AN$1,0)),\"\")","v":5.3365016000000002E-7},{"$f":"IFERROR(INDEX('Data Annex'!$K$1:$AN$1998,MATCH(Sovereigns!R$7&\"|\"&Sovereigns!$B39,'Data Annex'!$K$1:$K$1998,0),MATCH(Sovereigns!R$8,'Data Annex'!$K$1:$AN$1,0)),\"\")","v":0.35627234130000002},{"$f":"IFERROR(INDEX('Data Annex'!$K$1:$AN$1998,MATCH(Sovereigns!S$7&\"|\"&Sovereigns!$B39,'Data Annex'!$K$1:$K$1998,0),MATCH(Sovereigns!S$8,'Data Annex'!$K$1:$AN$1,0)),\"\")","v":0.39688134749999998},{"$f":"IFERROR(INDEX('Data Annex'!$K$1:$AN$1998,MATCH(Sovereigns!T$7&\"|\"&Sovereigns!$B39,'Data Annex'!$K$1:$K$1998,0),MATCH(Sovereigns!T$8,'Data Annex'!$K$1:$AN$1,0)),\"\")","v":0.4888408843},{"$f":"IFERROR(INDEX('Data Annex'!$K$1:$AN$1998,MATCH(Sovereigns!U$7&\"|\"&Sovereigns!$B39,'Data Annex'!$K$1:$K$1998,0),MATCH(Sovereigns!U$8,'Data Annex'!$K$1:$AN$1,0)),\"\")","v":0.51598569360000002},{"$f":"IFERROR(INDEX('Data Annex'!$K$1:$AN$1998,MATCH(Sovereigns!V$7&\"|\"&Sovereigns!$B39,'Data Annex'!$K$1:$K$1998,0),MATCH(Sovereigns!V$8,'Data Annex'!$K$1:$AN$1,0)),\"\")","v":0},{"$f":"IFERROR(INDEX('Data Annex'!$K$1:$AN$1998,MATCH(Sovereigns!W$7&\"|\"&Sovereigns!$B39,'Data Annex'!$K$1:$K$1998,0),MATCH(Sovereigns!W$8,'Data Annex'!$K$1:$AN$1,0)),\"\")","v":4.8642379800000003E-2}]
[27,"RO",null,"RO",null,{"$f":"IFERROR(INDEX('Data Annex'!$K$1:$AN$1998,MATCH(Sovereigns!F$7&\"|\"&Sovereigns!$B40,'Data Annex'!$K$1:$K$1998,0),MATCH(Sovereigns!F$8,'Data Annex'!$K$1:$AN$1,0)),\"\")","v":16.096029676000001},{"$f":"IFERROR(INDEX('Data Annex'!$K$1:$AN$1998,MATCH(Sovereigns!G$7&\"|\"&Sovereigns!$B40,'Data Annex'!$K$1:$K$1998,0),MATCH(Sovereigns!G$8,'Data Annex'!$K$1:$AN$1,0)),\"\")","v":19.200151669},{"$f":"IFERROR(INDEX('Data Annex'!$K$1:$AN$1998,MATCH(Sovereigns!H$7&\"|\"&Sovereigns!$B40,'Data Annex'!$K$1:$K$1998,0),MATCH(Sovereigns!H$8,'Data Annex'!$K$1:$AN$1,0)),\"\")","v":0.96789359320000001},{"$f":"IFERROR(INDEX('Data Annex'!$K$1:$AN$1998,MATCH(Sovereigns!I$7&\"|\"&Sovereigns!$B40,'Data Annex'!$K$1:$K$1998,0),MATCH(Sovereigns!I$8,'Data Annex'!$K$1:$AN$1,0)),\"\")","v":0.9771566625},{"$f":"IFERROR(INDEX('Data Annex'!$K$1:$AN$1998,MATCH(Sovereigns!J$7&\"|\"&Sovereigns!$B40,'Data Annex'!$K$1:$K$1998,0),MATCH(Sovereigns!J$8,'Data Annex'!$K$1:$AN$1,0)),\"\")","v":9.0338929999999994E-3},{"$f":"IFERROR(INDEX('Data Annex'!$K$1:$AN$1998,MATCH(Sovereigns!K$7&\"|\"&Sovereigns!$B40,'Data Annex'!$K$1:$K$1998,0),MATCH(Sovereigns!K$8,'Data Annex'!$K$1:$AN$1,0)),\"\")","v":5.7911307999999996E-3},{"$f":"IFERROR(INDEX('Data Annex'!$K$1:$AN$1998,MATCH(Sovereigns!L$7&\"|\"&Sovereigns!$B40,'Data Annex'!$K$1:$K$1998,0),MATCH(Sovereigns!L$8,'Data Annex'!$K$1:$AN$1,0)),\"\")","v":16.017571703000002},{"$f":"IFERROR(INDEX('Data Annex'!$K$1:$AN$1998,MATCH(Sovereigns!M$7&\"|\"&Sovereigns!$B40,'Data Annex'!$K$1:$K$1998,0),MATCH(Sovereigns!M$8,'Data Annex'!$K$1:$AN$1,0)),\"\")","v":19.186287658000001},{"$f":"IFERROR(INDEX('Data Annex'!$K$1:$AN$1998,MATCH(Sovereigns!N$7&\"|\"&Sovereigns!$B40,'Data Annex'!$K$1:$K$1998,0),MATCH(Sovereigns!N$8,'Data Annex'!$K$1:$AN$1,0)),\"\")","v":0.34326032969999998},{"$f":"IFERROR(INDEX('Data Annex'!$K$1:$AN$1998,MATCH(Sovereigns!O$7&\"|\"&Sovereigns!$B40,'Data Annex'!$K$1:$K$1998,0),MATCH(Sovereigns!O$8,'Data Annex'!$K$1:$AN$1,0)),\"\")","v":0.34088967240000001},{"$f":"IFERROR(INDEX('Data Annex'!$K$1:$AN$1998,MATCH(Sovereigns!P$7&\"|\"&Sovereigns!$B40,'Data Annex'!$K$1:$K$1998,0),MATCH(Sovereigns!P$8,'Data Annex'!$K$1:$AN$1,0)),\"\")","v":0},{"$f":"IFERROR(INDEX('Data Annex'!$K$1:$AN$1998,MATCH(Sovereigns!Q$7&\"|\"&Sovereigns!$B40,'Data Annex'!$K$1:$K$1998,0),MATCH(Sovereigns!Q$8,'Data Annex'!$K$1:$AN$1,0)),\"\")","v":0},{"$f":"IFERROR(INDEX('Data Annex'!$K$1:$AN$1998,MATCH(Sovereigns!R$7&\"|\"&Sovereigns!$B40,'Data Annex'!$K$1:$K$1998,0),MATCH(Sovereigns!R$8,'Data Annex'!$K$1:$AN$1,0)),\"\")","v":0.24428872609999999},{"$f":"IFERROR(INDEX('Data Annex'!$K$1:$AN$1998,MATCH(Sovereigns!S$7&\"|\"&Sovereigns!$B40,'Data Annex'!$K$1:$K$1998,0),MATCH(Sovereigns!S$8,'Data Annex'!$K$1:$AN$1,0)),\"\")","v":0.23515607760000001},{"$f":"IFERROR(INDEX('Data Annex'!$K$1:$AN$1998,MATCH(Sovereigns!T$7&\"|\"&Sovereigns!$B40,'Data Annex'!$K$1:$K$1998,0),MATCH(Sovereigns!T$8,'Data Annex'!$K$1:$AN$1,0)),\"\")","v":0.242079409},{"$f":"IFERROR(INDEX('Data Annex'!$K$1:$AN$1998,MATCH(Sovereigns!U$7&\"|\"&Sovereigns!$B40,'Data Annex'!$K$1:$K$1998,0),MATCH(Sovereigns!U$8,'Data Annex'!$K$1:$AN$1,0)),\"\")","v":0.20838061990000001},{"$f":"IFERROR(INDEX('Data Annex'!$K$1:$AN$1998,MATCH(Sovereigns!V$7&\"|\"&Sovereigns!$B40,'Data Annex'!$K$1:$K$1998,0),MATCH(Sovereigns!V$8,'Data Annex'!$K$1:$AN$1,0)),\"\")","v":0.17037153520000001},{"$f":"IFERROR(INDEX('Data Annex'!$K$1:$AN$1998,MATCH(Sovereigns!W$7&\"|\"&Sovereigns!$B40,'Data Annex'!$K$1:$K$1998,0),MATCH(Sovereigns!W$8,'Data Annex'!$K$1:$AN$1,0)),\"\")","v":0.21557362999999999}]
[28,"SE",null,"SE",null,{"$f":"IFERROR(INDEX('Data Annex'!$K$1:$AN$1998,MATCH(Sovereigns!F$7&\"|\"&Sovereigns!$B41,'Data Annex'!$K$1:$K$1998,0),MATCH(Sovereigns!F$8,'Data Annex'!$K$1:$AN$1,0)),\"\")","v":57.707616465000001},{"$f":"IFERROR(INDEX('Data Annex'!$K$1:$AN$1998,MATCH(Sovereigns!G$7&\"|\"&Sovereigns!$B41,'Data Annex'!$K$1:$K$1998,0),MATCH(Sovereigns!G$8,'Data Annex'!$K$1:$AN$1,0)),\"\")","v":57.616846881000001},{"$f":"IFERROR(INDEX('Data Annex'!$K$1:$AN$1998,MATCH(Sovereigns!H$7&\"|\"&Sovereigns!$B41,'Data Annex'!$K$1:$K$1998,0),MATCH(Sovereigns!H$8,'Data Annex'!$K$1:$AN$1,0)),\"\")","v":0.73801071480000002},{"$f":"IFERROR(INDEX('Data Annex'!$K$1:$AN$1998,MATCH(Sovereigns!I$7&\"|\"&Sovereigns!$B41,'Data Annex'!$K$1:$K$1998,0),MATCH(Sovereigns!I$8,'Data Annex'!$K$1:$AN$1,0)),\"\")","v":0.78337427999999998},{"$f":"IFERROR(INDEX('Data Annex'!$K$1:$AN$1998,MATCH(Sovereigns!J$7&\"|\"&Sovereigns!$B41,'Data Annex'!$K$1:$K$1998,0),MATCH(Sovereigns!J$8,'Data Annex'!$K$1:$AN$1,0)),\"\")","v":0.1968275012},{"$f":"IFERROR(INDEX('Data Annex'!$K$1:$AN$1998,MATCH(Sovereigns!K$7&\"|\"&Sovereigns!$B41,'Data Annex'!$K$1:$K$1998,0),MATCH(Sovereigns!K$8,'Data Annex'!$K$1:$AN$1,0)),\"\")","v":0.1575970266},{"$f":"IFERROR(INDEX('Data Annex'!$K$1:$AN$1998,MATCH(Sovereigns!L$7&\"|\"&Sovereigns!$B41,'Data Annex'!$K$1:$K$1998,0),MATCH(Sovereigns!L$8,'Data Annex'!$K$1:$AN$1,0)),\"\")","v":56.810430082000003},{"$f":"IFERROR(INDEX('Data Annex'!$K$1:$AN$1998,MATCH(Sovereigns!M$7&\"|\"&Sovereigns!$B41,'Data Annex'!$K$1:$K$1998,0),MATCH(Sovereigns!M$8,'Data Annex'!$K$1:$AN$1,0)),\"\")","v":56.506675792000003},{"$f":"IFERROR(INDEX('Data Annex'!$K$1:$AN$1998,MATCH(Sovereigns!N$7&\"|\"&Sovereigns!$B41,'Data Annex'!$K$1:$K$1998,0),MATCH(Sovereigns!N$8,'Data Annex'!$K$1:$AN$1,0)),\"\")","v":0.14818772490000001},{"$f":"IFERROR(INDEX('Data Annex'!$K$1:$AN$1998,MATCH(Sovereigns!O$7&\"|\"&Sovereigns!$B41,'Data Annex'!$K$1:$K$1998,0),MATCH(Sovereigns!O$8,'Data Annex'!$K$1:$AN$1,0)),\"\")","v":0.16225178179999999},{"$f":"IFERROR(INDEX('Data Annex'!$K$1:$AN$1998,MATCH(Sovereigns!P$7&\"|\"&Sovereigns!$B41,'Data Annex'!$K$1:$K$1998,0),MATCH(Sovereigns!P$8,'Data Annex'!$K$1:$AN$1,0)),\"\")","v":0.15961087130000001},{"$f":"IFERROR(INDEX('Data Annex'!$K$1:$AN$1998,MATCH(Sovereigns!Q$7&\"|\"&Sovereigns!$B41,'Data Annex'!$K$1:$K$1998,0),MATCH(Sovereigns!Q$8,'Data Annex'!$K$1:$AN$1,0)),\"\")","v":0.14197728700000001},{"$f":"IFERROR(INDEX('Data Annex'!$K$1:$AN$1998,MATCH(Sovereigns!R$7&\"|\"&Sovereigns!$B41,'Data Annex'!$K$1:$K$1998,0),MATCH(Sovereigns!R$8,'Data Annex'!$K$1:$AN$1,0)),\"\")","v":2.88475209E-2},{"$f":"IFERROR(INDEX('Data Annex'!$K$1:$AN$1998,MATCH(Sovereigns!S$7&\"|\"&Sovereigns!$B41,'Data Annex'!$K$1:$K$1998,0),MATCH(Sovereigns!S$8,'Data Annex'!$K$1:$AN$1,0)),\"\")","v":3.1389811099999998E-2},{"$f":"IFERROR(INDEX('Data Annex'!$K$1:$AN$1998,MATCH(Sovereigns!T$7&\"|\"&Sovereigns!$B41,'Data Annex'!$K$1:$K$1998,0),MATCH(Sovereigns!T$8,'Data Annex'!$K$1:$AN$1,0)),\"\")","v":0.5160286919},{"$f":"IFERROR(INDEX('Data Annex'!$K$1:$AN$1998,MATCH(Sovereigns!U$7&\"|\"&Sovereigns!$B41,'Data Annex'!$K$1:$K$1998,0),MATCH(Sovereigns!U$8,'Data Annex'!$K$1:$AN$1,0)),\"\")","v":0.53070545400000002},{"$f":"IFERROR(INDEX('Data Annex'!$K$1:$AN$1998,MATCH(Sovereigns!V$7&\"|\"&Sovereigns!$B41,'Data Annex'!$K$1:$K$1998,0),MATCH(Sovereigns!V$8,'Data Annex'!$K$1:$AN$1,0)),\"\")","v":0.14732519099999999},{"$f":"IFERROR(INDEX('Data Annex'!$K$1:$AN$1998,MATCH(Sovereigns!W$7&\"|\"&Sovereigns!$B41,'Data Annex'!$K$1:$K$1998,0),MATCH(Sovereigns!W$8,'Data Annex'!$K$1:$AN$1,0)),\"\")","v":0.13367566610000001}]
[29,"SI",null,"SI",null,{"$f":"IFERROR(INDEX('Data Annex'!$K$1:$AN$1998,MATCH(Sovereigns!F$7&\"|\"&Sovereigns!$B42,'Data Annex'!$K$1:$K$1998,0),MATCH(Sovereigns!F$8,'Data Annex'!$K$1:$AN$1,0)),\"\")","v":5.0029001230999999},{"$f":"IFERROR(INDEX('Data Annex'!$K$1:$AN$1998,MATCH(Sovereigns!G$7&\"|\"&Sovereigns!$B42,'Data Annex'!$K$1:$K$1998,0),MATCH(Sovereigns!G$8,'Data Annex'!$K$1:$AN$1,0)),\"\")","v":6.6137783787000002},{"$f":"IFERROR(INDEX('Data Annex'!$K$1:$AN$1998,MATCH(Sovereigns!H$7&\"|\"&Sovereigns!$B42,'Data Annex'!$K$1:$K$1998,0),MATCH(Sovereigns!H$8,'Data Annex'!$K$1:$AN$1,0)),\"\")","v":0.45127079269999998},{"$f":"IFERROR(INDEX('Data Annex'!$K$1:$AN$1998,MATCH(Sovereigns!I$7&\"|\"&Sovereigns!$B42,'Data Annex'!$K$1:$K$1998,0),MATCH(Sovereigns!I$8,'Data Annex'!$K$1:$AN$1,0)),\"\")","v":0.33802850899999998},{"$f":"IFERROR(INDEX('Data Annex'!$K$1:$AN$1998,MATCH(Sovereigns!J$7&\"|\"&Sovereigns!$B42,'Data Annex'!$K$1:$K$1998,0),MATCH(Sovereigns!J$8,'Data Annex'!$K$1:$AN$1,0)),\"\")","v":0.37773001010000001},{"$f":"IFERROR(INDEX('Data Annex'!$K$1:$AN$1998,MATCH(Sovereigns!K$7&\"|\"&Sovereigns!$B42,'Data Annex'!$K$1:$K$1998,0),MATCH(Sovereigns!K$8,'Data Annex'!$K$1:$AN$1,0)),\"\")","v":0.3053699782},{"$f":"IFERROR(INDEX('Data Annex'!$K$1:$AN$1998,MATCH(Sovereigns!L$7&\"|\"&Sovereigns!$B42,'Data Annex'!$K$1:$K$1998,0),MATCH(Sovereigns!L$8,'Data Annex'!$K$1:$AN$1,0)),\"\")","v":5.0029223749999998},{"$f":"IFERROR(INDEX('Data Annex'!$K$1:$AN$1998,MATCH(Sovereigns!M$7&\"|\"&Sovereigns!$B42,'Data Annex'!$K$1:$K$1998,0),MATCH(Sovereigns!M$8,'Data Annex'!$K$1:$AN$1,0)),\"\")","v":6.6132532566000002},{"$f":"IFERROR(INDEX('Data Annex'!$K$1:$AN$1998,MATCH(Sovereigns!N$7&\"|\"&Sovereigns!$B42,'Data Annex'!$K$1:$K$1998,0),MATCH(Sovereigns!N$8,'Data Annex'!$K$1:$AN$1,0)),\"\")","v":5.5487579999999998E-4},{"$f":"IFERROR(INDEX('Data Annex'!$K$1:$AN$1998,MATCH(Sovereigns!O$7&\"|\"&Sovereigns!$B42,'Data Annex'!$K$1:$K$1998,0),MATCH(Sovereigns!O$8,'Data Annex'!$K$1:$AN$1,0)),\"\")","v":1.0404712700000001E-2},{"$f":"IFERROR(INDEX('Data Annex'!$K$1:$AN$1998,MATCH(Sovereigns!P$7&\"|\"&Sovereigns!$B42,'Data Annex'!$K$1:$K$1998,0),MATCH(Sovereigns!P$8,'Data Annex'!$K$1:$AN$1,0)),\"\")","v":0},{"$f":"IFERROR(INDEX('Data Annex'!$K$1:$AN$1998,MATCH(Sovereigns!Q$7&\"|\"&Sovereigns!$B42,'Data Annex'!$K$1:$K$1998,0),MATCH(Sovereigns!Q$8,'Data Annex'!$K$1:$AN$1,0)),\"\")","v":0},{"$f":"IFERROR(INDEX('Data Annex'!$K$1:$AN$1998,MATCH(Sovereigns!R$7&\"|\"&Sovereigns!$B42,'Data Annex'!$K$1:$K$1998,0),MATCH(Sovereigns!R$8,'Data Annex'!$K$1:$AN$1,0)),\"\")","v":0.59700657300000004},{"$f":"IFERROR(INDEX('Data Annex'!$K$1:$AN$1998,MATCH(Sovereigns!S$7&\"|\"&Sovereigns!$B42,'Data Annex'!$K$1:$K$1998,0),MATCH(Sovereigns!S$8,'Data Annex'!$K$1:$AN$1,0)),\"\")","v":0.64158013020000004},{"$f":"IFERROR(INDEX('Data Annex'!$K$1:$AN$1998,MATCH(Sovereigns!T$7&\"|\"&Sovereigns!$B42,'Data Annex'!$K$1:$K$1998,0),MATCH(Sovereigns!T$8,'Data Annex'!$K$1:$AN$1,0)),\"\")","v":0.3998257087},{"$f":"IFERROR(INDEX('Data Annex'!$K$1:$AN$1998,MATCH(Sovereigns!U$7&\"|\"&Sovereigns!$B42,'Data Annex'!$K$1:$K$1998,0),MATCH(Sovereigns!U$8,'Data Annex'!$K$1:$AN$1,0)),\"\")","v":0.34602835009999999},{"$f":"IFERROR(INDEX('Data Annex'!$K$1:$AN$1998,MATCH(Sovereigns!V$7&\"|\"&Sovereigns!$B42,'Data Annex'!$K$1:$K$1998,0),MATCH(Sovereigns!V$8,'Data Annex'!$K$1:$AN$1,0)),\"\")","v":2.6128424999999999E-3},{"$f":"IFERROR(INDEX('Data Annex'!$K$1:$AN$1998,MATCH(Sovereigns!W$7&\"|\"&Sovereigns!$B42,'Data Annex'!$K$1:$K$1998,0),MATCH(Sovereigns!W$8,'Data Annex'!$K$1:$AN$1,0)),\"\")","v":1.9868071000000002E-3}]
[30,"SK",null,"SK",null,{"$f":"IFERROR(INDEX('Data Annex'!$K$1:$AN$1998,MATCH(Sovereigns!F$7&\"|\"&Sovereigns!$B43,'Data Annex'!$K$1:$K$1998,0),MATCH(Sovereigns!F$8,'Data Annex'!$K$1:$AN$1,0)),\"\")","v":7.2369769945},{"$f":"IFERROR(INDEX('Data Annex'!$K$1:$AN$1998,MATCH(Sovereigns!G$7&\"|\"&Sovereigns!$B43,'Data Annex'!$K$1:$K$1998,0),MATCH(Sovereigns!G$8,'Data Annex'!$K$1:$AN$1,0)),\"\")","v":6.8452839739},{"$f":"IFERROR(INDEX('Data Annex'!$K$1:$AN$1998,MATCH(Sovereigns!H$7&\"|\"&Sovereigns!$B43,'Data Annex'!$K$1:$K$1998,0),MATCH(Sovereigns!H$8,'Data Annex'!$K$1:$AN$1,0)),\"\")","v":0.84068839149999997},{"$f":"IFERROR(INDEX('Data Annex'!$K$1:$AN$1998,MATCH(Sovereigns!I$7&\"|\"&Sovereigns!$B43,'Data Annex'!$K$1:$K$1998,0),MATCH(Sovereigns!I$8,'Data Annex'!$K$1:$AN$1,0)),\"\")","v":0.80338767899999997},{"$f":"IFERROR(INDEX('Data Annex'!$K$1:$AN$1998,MATCH(Sovereigns!J$7&\"|\"&Sovereigns!$B43,'Data Annex'!$K$1:$K$1998,0),MATCH(Sovereigns!J$8,'Data Annex'!$K$1:$AN$1,0)),\"\")","v":0.15931160680000001},{"$f":"IFERROR(INDEX('Data Annex'!$K$1:$AN$1998,MATCH(Sovereigns!K$7&\"|\"&Sovereigns!$B43,'Data Annex'!$K$1:$K$1998,0),MATCH(Sovereigns!K$8,'Data Annex'!$K$1:$AN$1,0)),\"\")","v":0.1918375118},{"$f":"IFERROR(INDEX('Data Annex'!$K$1:$AN$1998,MATCH(Sovereigns!L$7&\"|\"&Sovereigns!$B43,'Data Annex'!$K$1:$K$1998,0),MATCH(Sovereigns!L$8,'Data Annex'!$K$1:$AN$1,0)),\"\")","v":7.2337108455000001},{"$f":"IFERROR(INDEX('Data Annex'!$K$1:$AN$1998,MATCH(Sovereigns!M$7&\"|\"&Sovereigns!$B43,'Data Annex'!$K$1:$K$1998,0),MATCH(Sovereigns!M$8,'Data Annex'!$K$1:$AN$1,0)),\"\")","v":6.8424870688999997},{"$f":"IFERROR(INDEX('Data Annex'!$K$1:$AN$1998,MATCH(Sovereigns!N$7&\"|\"&Sovereigns!$B43,'Data Annex'!$K$1:$K$1998,0),MATCH(Sovereigns!N$8,'Data Annex'!$K$1:$AN$1,0)),\"\")","v":6.9502410000000002E-3},{"$f":"IFERROR(INDEX('Data Annex'!$K$1:$AN$1998,MATCH(Sovereigns!O$7&\"|\"&Sovereigns!$B43,'Data Annex'!$K$1:$K$1998,0),MATCH(Sovereigns!O$8,'Data Annex'!$K$1:$AN$1,0)),\"\")","v":2.9369897999999999E-3},{"$f":"IFERROR(INDEX('Data Annex'!$K$1:$AN$1998,MATCH(Sovereigns!P$7&\"|\"&Sovereigns!$B43,'Data Annex'!$K$1:$K$1998,0),MATCH(Sovereigns!P$8,'Data Annex'!$K$1:$AN$1,0)),\"\")","v":0},{"$f":"IFERROR(INDEX('Data Annex'!$K$1:$AN$1998,MATCH(Sovereigns!Q$7&\"|\"&Sovereigns!$B43,'Data Annex'!$K$1:$K$1998,0),MATCH(Sovereigns!Q$8,'Data Annex'!$K$1:$AN$1,0)),\"\")","v":0},{"$f":"IFERROR(INDEX('Data Annex'!$K$1:$AN$1998,MATCH(Sovereigns!R$7&\"|\"&Sovereigns!$B43,'Data Annex'!$K$1:$K$1998,0),MATCH(Sovereigns!R$8,'Data Annex'!$K$1:$AN$1,0)),\"\")","v":2.77750605E-2},{"$f":"IFERROR(INDEX('Data Annex'!$K$1:$AN$1998,MATCH(Sovereigns!S$7&\"|\"&Sovereigns!$B43,'Data Annex'!$K$1:$K$1998,0),MATCH(Sovereigns!S$8,'Data Annex'!$K$1:$AN$1,0)),\"\")","v":1.42196244E-2},{"$f":"IFERROR(INDEX('Data Annex'!$K$1:$AN$1998,MATCH(Sovereigns!T$7&\"|\"&Sovereigns!$B43,'Data Annex'!$K$1:$K$1998,0),MATCH(Sovereigns!T$8,'Data Annex'!$K$1:$AN$1,0)),\"\")","v":0.96527469840000002},{"$f":"IFERROR(INDEX('Data Annex'!$K$1:$AN$1998,MATCH(Sovereigns!U$7&\"|\"&Sovereigns!$B43,'Data Annex'!$K$1:$K$1998,0),MATCH(Sovereigns!U$8,'Data Annex'!$K$1:$AN$1,0)),\"\")","v":0.98284338579999997},{"$f":"IFERROR(INDEX('Data Annex'!$K$1:$AN$1998,MATCH(Sovereigns!V$7&\"|\"&Sovereigns!$B43,'Data Annex'!$K$1:$K$1998,0),MATCH(Sovereigns!V$8,'Data Annex'!$K$1:$AN$1,0)),\"\")","v":0},{"$f":"IFERROR(INDEX('Data Annex'!$K$1:$AN$1998,MATCH(Sovereigns!W$7&\"|\"&Sovereigns!$B43,'Data Annex'!$K$1:$K$1998,0),MATCH(Sovereigns!W$8,'Data Annex'!$K$1:$AN$1,0)),\"\")","v":0}]
[99,"EU",null,"EU/EEA",null,{"$f":"IFERROR(INDEX('Data Annex'!$K$1:$AN$1998,MATCH(Sovereigns!F$7&\"|\"&Sovereigns!$B44,'Data Annex'!$K$1:$K$1998,0),MATCH(Sovereigns!F$8,'Data Annex'!$K$1:$AN$1,0)),\"\")","v":3416.7419860999998},{"$f":"IFERROR(INDEX('Data Annex'!$K$1:$AN$1998,MATCH(Sovereigns!G$7&\"|\"&Sovereigns!$B44,'Data Annex'!$K$1:$K$1998,0),MATCH(Sovereigns!G$8,'Data Annex'!$K$1:$AN$1,0)),\"\")","v":3217.6724273},{"$f":"IFERROR(INDEX('Data Annex'!$K$1:$AN$1998,MATCH(Sovereigns!H$7&\"|\"&Sovereigns!$B44,'Data Annex'!$K$1:$K$1998,0),MATCH(Sovereigns!H$8,'Data Annex'!$K$1:$AN$1,0)),\"\")","v":0.49817549779999998},{"$f":"IFERROR(INDEX('Data Annex'!$K$1:$AN$1998,MATCH(Sovereigns!I$7&\"|\"&Sovereigns!$B44,'Data Annex'!$K$1:$K$1998,0),MATCH(Sovereigns!I$8,'Data Annex'!$K$1:$AN$1,0)),\"\")","v":0.51272690369999996},{"$f":"IFERROR(INDEX('Data Annex'!$K$1:$AN$1998,MATCH(Sovereigns!J$7&\"|\"&Sovereigns!$B44,'Data Annex'!$K$1:$K$1998,0),MATCH(Sovereigns!J$8,'Data Annex'!$K$1:$AN$1,0)),\"\")","v":0.2840636003},{"$f":"IFERROR(INDEX('Data Annex'!$K$1:$AN$1998,MATCH(Sovereigns!K$7&\"|\"&Sovereigns!$B44,'Data Annex'!$K$1:$K$1998,0),MATCH(Sovereigns!K$8,'Data Annex'!$K$1:$AN$1,0)),\"\")","v":0.27911407469999999},{"$f":"IFERROR(INDEX('Data Annex'!$K$1:$AN$1998,MATCH(Sovereigns!L$7&\"|\"&Sovereigns!$B44,'Data Annex'!$K$1:$K$1998,0),MATCH(Sovereigns!L$8,'Data Annex'!$K$1:$AN$1,0)),\"\")","v":3184.0474631000002},{"$f":"IFERROR(INDEX('Data Annex'!$K$1:$AN$1998,MATCH(Sovereigns!M$7&\"|\"&Sovereigns!$B44,'Data Annex'!$K$1:$K$1998,0),MATCH(Sovereigns!M$8,'Data Annex'!$K$1:$AN$1,0)),\"\")","v":3033.0011933000001},{"$f":"IFERROR(INDEX('Data Annex'!$K$1:$AN$1998,MATCH(Sovereigns!N$7&\"|\"&Sovereigns!$B44,'Data Annex'!$K$1:$K$1998,0),MATCH(Sovereigns!N$8,'Data Annex'!$K$1:$AN$1,0)),\"\")","v":0.16215029919999999},{"$f":"IFERROR(INDEX('Data Annex'!$K$1:$AN$1998,MATCH(Sovereigns!O$7&\"|\"&Sovereigns!$B44,'Data Annex'!$K$1:$K$1998,0),MATCH(Sovereigns!O$8,'Data Annex'!$K$1:$AN$1,0)),\"\")","v":0.14948908159999999},{"$f":"IFERROR(INDEX('Data Annex'!$K$1:$AN$1998,MATCH(Sovereigns!P$7&\"|\"&Sovereigns!$B44,'Data Annex'!$K$1:$K$1998,0),MATCH(Sovereigns!P$8,'Data Annex'!$K$1:$AN$1,0)),\"\")","v":1.25994374E-2},{"$f":"IFERROR(INDEX('Data Annex'!$K$1:$AN$1998,MATCH(Sovereigns!Q$7&\"|\"&Sovereigns!$B44,'Data Annex'!$K$1:$K$1998,0),MATCH(Sovereigns!Q$8,'Data Annex'!$K$1:$AN$1,0)),\"\")","v":8.5569818000000002E-3},{"$f":"IFERROR(INDEX('Data Annex'!$K$1:$AN$1998,MATCH(Sovereigns!R$7&\"|\"&Sovereigns!$B44,'Data Annex'!$K$1:$K$1998,0),MATCH(Sovereigns!R$8,'Data Annex'!$K$1:$AN$1,0)),\"\")","v":0.2607904063},{"$f":"IFERROR(INDEX('Data Annex'!$K$1:$AN$1998,MATCH(Sovereigns!S$7&\"|\"&Sovereigns!$B44,'Data Annex'!$K$1:$K$1998,0),MATCH(Sovereigns!S$8,'Data Annex'!$K$1:$AN$1,0)),\"\")","v":0.2574021749},{"$f":"IFERROR(INDEX('Data Annex'!$K$1:$AN$1998,MATCH(Sovereigns!T$7&\"|\"&Sovereigns!$B44,'Data Annex'!$K$1:$K$1998,0),MATCH(Sovereigns!T$8,'Data Annex'!$K$1:$AN$1,0)),\"\")","v":0.50691029509999996},{"$f":"IFERROR(INDEX('Data Annex'!$K$1:$AN$1998,MATCH(Sovereigns!U$7&\"|\"&Sovereigns!$B44,'Data Annex'!$K$1:$K$1998,0),MATCH(Sovereigns!U$8,'Data Annex'!$K$1:$AN$1,0)),\"\")","v":0.53174281680000002},{"$f":"IFERROR(INDEX('Data Annex'!$K$1:$AN$1998,MATCH(Sovereigns!V$7&\"|\"&Sovereigns!$B44,'Data Annex'!$K$1:$K$1998,0),MATCH(Sovereigns!V$8,'Data Annex'!$K$1:$AN$1,0)),\"\")","v":5.75495621E-2},{"$f":"IFERROR(INDEX('Data Annex'!$K$1:$AN$1998,MATCH(Sovereigns!W$7&\"|\"&Sovereigns!$B44,'Data Annex'!$K$1:$K$1998,0),MATCH(Sovereigns!W$8,'Data Annex'!$K$1:$AN$1,0)),\"\")","v":5.2808945000000003E-2}]
[12,"GB",null,{"$f":"IF(OR(F45=\"n.a.\",G45=\"n.a.\",H45=\"n.a.\",I45=\"n.a.\",J45=\"n.a.\",K45=\"n.a.\",T45=\"n.a.\",U45=\"n.a.\"),$B45&\"*\",$B45)","v":"GB"},null,{"$f":"IFERROR(INDEX('Data Annex'!$K$1:$AN$1998,MATCH(Sovereigns!F$7&\"|\"&Sovereigns!$B45,'Data Annex'!$K$1:$K$1998,0),MATCH(Sovereigns!F$8,'Data Annex'!$K$1:$AN$1,0)),\"\")","v":919.62298770999996},{"$f":"IFERROR(INDEX('Data Annex'!$K$1:$AN$1998,MATCH(Sovereigns!G$7&\"|\"&Sovereigns!$B45,'Data Annex'!$K$1:$K$1998,0),MATCH(Sovereigns!G$8,'Data Annex'!$K$1:$AN$1,0)),\"\")","v":836.93944299999998},{"$f":"IFERROR(INDEX('Data Annex'!$K$1:$AN$1998,MATCH(Sovereigns!H$7&\"|\"&Sovereigns!$B45,'Data Annex'!$K$1:$K$1998,0),MATCH(Sovereigns!H$8,'Data Annex'!$K$1:$AN$1,0)),\"\")","v":0.21186792630000001},{"$f":"IFERROR(INDEX('Data Annex'!$K$1:$AN$1998,MATCH(Sovereigns!I$7&\"|\"&Sovereigns!$B45,'Data Annex'!$K$1:$K$1998,0),MATCH(Sovereigns!I$8,'Data Annex'!$K$1:$AN$1,0)),\"\")","v":0.19828352269999999},{"$f":"IFERROR(INDEX('Data Annex'!$K$1:$AN$1998,MATCH(Sovereigns!J$7&\"|\"&Sovereigns!$B45,'Data Annex'!$K$1:$K$1998,0),MATCH(Sovereigns!J$8,'Data Annex'!$K$1:$AN$1,0)),\"\")","v":0.2186956514},{"$f":"IFERROR(INDEX('Data Annex'!$K$1:$AN$1998,MATCH(Sovereigns!K$7&\"|\"&Sovereigns!$B45,'Data Annex'!$K$1:$K$1998,0),MATCH(Sovereigns!K$8,'Data Annex'!$K$1:$AN$1,0)),\"\")","v":0.2033550962},{"$f":"IFERROR(INDEX('Data Annex'!$K$1:$AN$1998,MATCH(Sovereigns!L$7&\"|\"&Sovereigns!$B45,'Data Annex'!$K$1:$K$1998,0),MATCH(Sovereigns!L$8,'Data Annex'!$K$1:$AN$1,0)),\"\")","v":860.25440457000002},{"$f":"IFERROR(INDEX('Data Annex'!$K$1:$AN$1998,MATCH(Sovereigns!M$7&\"|\"&Sovereigns!$B45,'Data Annex'!$K$1:$K$1998,0),MATCH(Sovereigns!M$8,'Data Annex'!$K$1:$AN$1,0)),\"\")","v":782.28844256000002},{"$f":"IFERROR(INDEX('Data Annex'!$K$1:$AN$1998,MATCH(Sovereigns!N$7&\"|\"&Sovereigns!$B45,'Data Annex'!$K$1:$K$1998,0),MATCH(Sovereigns!N$8,'Data Annex'!$K$1:$AN$1,0)),\"\")","v":0.35701690780000001},{"$f":"IFERROR(INDEX('Data Annex'!$K$1:$AN$1998,MATCH(Sovereigns!O$7&\"|\"&Sovereigns!$B45,'Data Annex'!$K$1:$K$1998,0),MATCH(Sovereigns!O$8,'Data Annex'!$K$1:$AN$1,0)),\"\")","v":0.3449271397},{"$f":"IFERROR(INDEX('Data Annex'!$K$1:$AN$1998,MATCH(Sovereigns!P$7&\"|\"&Sovereigns!$B45,'Data Annex'!$K$1:$K$1998,0),MATCH(Sovereigns!P$8,'Data Annex'!$K$1:$AN$1,0)),\"\")","v":3.7662637E-3},{"$f":"IFERROR(INDEX('Data Annex'!$K$1:$AN$1998,MATCH(Sovereigns!Q$7&\"|\"&Sovereigns!$B45,'Data Annex'!$K$1:$K$1998,0),MATCH(Sovereigns!Q$8,'Data Annex'!$K$1:$AN$1,0)),\"\")","v":3.3699259000000001E-3},{"$f":"IFERROR(INDEX('Data Annex'!$K$1:$AN$1998,MATCH(Sovereigns!R$7&\"|\"&Sovereigns!$B45,'Data Annex'!$K$1:$K$1998,0),MATCH(Sovereigns!R$8,'Data Annex'!$K$1:$AN$1,0)),\"\")","v":0.52476836459999998},{"$f":"IFERROR(INDEX('Data Annex'!$K$1:$AN$1998,MATCH(Sovereigns!S$7&\"|\"&Sovereigns!$B45,'Data Annex'!$K$1:$K$1998,0),MATCH(Sovereigns!S$8,'Data Annex'!$K$1:$AN$1,0)),\"\")","v":0.53629678579999995},{"$f":"IFERROR(INDEX('Data Annex'!$K$1:$AN$1998,MATCH(Sovereigns!T$7&\"|\"&Sovereigns!$B45,'Data Annex'!$K$1:$K$1998,0),MATCH(Sovereigns!T$8,'Data Annex'!$K$1:$AN$1,0)),\"\")","v":0.1073154796},{"$f":"IFERROR(INDEX('Data Annex'!$K$1:$AN$1998,MATCH(Sovereigns!U$7&\"|\"&Sovereigns!$B45,'Data Annex'!$K$1:$K$1998,0),MATCH(Sovereigns!U$8,'Data Annex'!$K$1:$AN$1,0)),\"\")","v":0.1103021674},{"$f":"IFERROR(INDEX('Data Annex'!$K$1:$AN$1998,MATCH(Sovereigns!V$7&\"|\"&Sovereigns!$B45,'Data Annex'!$K$1:$K$1998,0),MATCH(Sovereigns!V$8,'Data Annex'!$K$1:$AN$1,0)),\"\")","v":7.1329844000000003E-3},{"$f":"IFERROR(INDEX('Data Annex'!$K$1:$AN$1998,MATCH(Sovereigns!W$7&\"|\"&Sovereigns!$B45,'Data Annex'!$K$1:$K$1998,0),MATCH(Sovereigns!W$8,'Data Annex'!$K$1:$AN$1,0)),\"\")","v":5.1039811999999997E-3}]
[null,null,null,"(1) Direct exposures through Non-derivative financial assets. Information on sovereign exposures is only available for institutions that have sovereign exposures of at least 1% of total “Debt securities and loans receivables”."]
[null,null,null,"(2) The breakdown by accounting portfolios refers to the Total carrying amount of General governments exposures through Non-derivative financial assets."]
[null,null,null,null,null,"T16_1","T16_1","T16_2","T16_2","T16_3","T16_3","T16_4","T16_4","T16_5","T16_5"]
[null,null,null,null,null,{"$f":"TEXT(F54,\"YYYYMM\")+0","v":202006},{"$f":"TEXT(G54,\"YYYYMM\")+0","v":202012},{"$f":"TEXT(F54,\"YYYYMM\")+0","v":202006},{"$f":"TEXT(G54,\"YYYYMM\")+0","v":202012},{"$f":"TEXT(H54,\"YYYYMM\")+0","v":202006},{"$f":"TEXT(I54,\"YYYYMM\")+0","v":202012},{"$f":"TEXT(H54,\"YYYYMM\")+0","v":202006},{"$f":"TEXT(I54,\"YYYYMM\")+0","v":202012},{"$f":"TEXT(J54,\"YYYYMM\")+0","v":202006},{"$f":"TEXT(K54,\"YYYYMM\")+0","v":202012}]
[null,null,null,"Sovereign exposure"]
[]
[null,null,null,"Total gross carrying amount by maturity"]
[null,null,null,"% of total sov exposure",null,"0 - 3M",null,"3M - 1Y",null,"1Y - 5Y",null,"5Y - 10Y",null,"10Y - more"]
[null,null,null,null,null,{"$f":"IF(OR(MONTH($A$3)=9,MONTH($A$3)=3),EOMONTH($A$3,-9),EOMONTH($A$3,-6))","v":"2020-06-30"},{"$f":"EOMONTH(F$14,6)","v":"2020-12-31"},{"$f":"IF(OR(MONTH($A$3)=9,MONTH($A$3)=3),EOMONTH($A$3,-9),EOMONTH($A$3,-6))","v":"2020-06-30"},{"$f":"EOMONTH(H$14,6)","v":"2020-12-31"},{"$f":"IF(OR(MONTH($A$3)=9,MONTH($A$3)=3),EOMONTH($A$3,-9),EOMONTH($A$3,-6))","v":"2020-06-30"},{"$f":"EOMONTH(J$14,6)","v":"2020-12-31"},{"$f":"IF(OR(MONTH($A$3)=9,MONTH($A$3)=3),EOMONTH($A$3,-9),EOMONTH($A$3,-6))","v":"2020-06-30"},{"$f":"EOMONTH(L$14,6)","v":"2020-12-31"},{"$f":"IF(OR(MONTH($A$3)=9,MONTH($A$3)=3),EOMONTH($A$3,-9),EOMONTH($A$3,-6))","v":"2020-06-30"},{"$f":"EOMONTH(N$14,6)","v":"2020-12-31"}]
[1,"AT",null,{"$f":"IF(OR(F55=\"n.a.\",G55=\"n.a.\",H55=\"n.a.\",I55=\"n.a.\",J55=\"n.a.\",K55=\"n.a.\",T55=\"n.a.\",U55=\"n.a.\"),$B55&\"*\",$B55)","v":"AT"},null,{"$f":"IFERROR(INDEX('Data Annex'!$K$1:$AN$1998,MATCH(Sovereigns!F$48&\"|\"&Sovereigns!$B55,'Data Annex'!$K$1:$K$1998,0),MATCH(Sovereigns!F$49,'Data Annex'!$K$1:$AN$1,0)),\"\")","v":0.1467157151},{"$f":"IFERROR(INDEX('Data Annex'!$K$1:$AN$1998,MATCH(Sovereigns!G$48&\"|\"&Sovereigns!$B55,'Data Annex'!$K$1:$K$1998,0),MATCH(Sovereigns!G$49,'Data Annex'!$K$1:$AN$1,0)),\"\")","v":0.1129503308},{"$f":"IFERROR(INDEX('Data Annex'!$K$1:$AN$1998,MATCH(Sovereigns!H$48&\"|\"&Sovereigns!$B55,'Data Annex'!$K$1:$K$1998,0),MATCH(Sovereigns!H$49,'Data Annex'!$K$1:$AN$1,0)),\"\")","v":9.0171383100000002E-2},{"$f":"IFERROR(INDEX('Data Annex'!$K$1:$AN$1998,MATCH(Sovereigns!I$48&\"|\"&Sovereigns!$B55,'Data Annex'!$K$1:$K$1998,0),MATCH(Sovereigns!I$49,'Data Annex'!$K$1:$AN$1,0)),\"\")","v":8.2635258599999997E-2},{"$f":"IFERROR(INDEX('Data Annex'!$K$1:$AN$1998,MATCH(Sovereigns!J$48&\"|\"&Sovereigns!$B55,'Data Annex'!$K$1:$K$1998,0),MATCH(Sovereigns!J$49,'Data Annex'!$K$1:$AN$1,0)),\"\")","v":0.3519091459},{"$f":"IFERROR(INDEX('Data Annex'!$K$1:$AN$1998,MATCH(Sovereigns!K$48&\"|\"&Sovereigns!$B55,'Data Annex'!$K$1:$K$1998,0),MATCH(Sovereigns!K$49,'Data Annex'!$K$1:$AN$1,0)),\"\")","v":0.3851824647},{"$f":"IFERROR(INDEX('Data Annex'!$K$1:$AN$1998,MATCH(Sovereigns!L$48&\"|\"&Sovereigns!$B55,'Data Annex'!$K$1:$K$1998,0),MATCH(Sovereigns!L$49,'Data Annex'!$K$1:$AN$1,0)),\"\")","v":0.27537246059999998},{"$f":"IFERROR(INDEX('Data Annex'!$K$1:$AN$1998,MATCH(Sovereigns!M$48&\"|\"&Sovereigns!$B55,'Data Annex'!$K$1:$K$1998,0),MATCH(Sovereigns!M$49,'Data Annex'!$K$1:$AN$1,0)),\"\")","v":0.28434622580000002},{"$f":"IFERROR(INDEX('Data Annex'!$K$1:$AN$1998,MATCH(Sovereigns!N$48&\"|\"&Sovereigns!$B55,'Data Annex'!$K$1:$K$1998,0),MATCH(Sovereigns!N$49,'Data Annex'!$K$1:$AN$1,0)),\"\")","v":0.13583129520000001},{"$f":"IFERROR(INDEX('Data Annex'!$K$1:$AN$1998,MATCH(Sovereigns!O$48&\"|\"&Sovereigns!$B55,'Data Annex'!$K$1:$K$1998,0),MATCH(Sovereigns!O$49,'Data Annex'!$K$1:$AN$1,0)),\"\")","v":0.1348857202}]
[2,"BE",null,{"$f":"IF(OR(F56=\"n.a.\",G56=\"n.a.\",H56=\"n.a.\",I56=\"n.a.\",J56=\"n.a.\",K56=\"n.a.\",T56=\"n.a.\",U56=\"n.a.\"),$B56&\"*\",$B56)","v":"BE"},null,{"$f":"IFERROR(INDEX('Data Annex'!$K$1:$AN$1998,MATCH(Sovereigns!F$48&\"|\"&Sovereigns!$B56,'Data Annex'!$K$1:$K$1998,0),MATCH(Sovereigns!F$49,'Data Annex'!$K$1:$AN$1,0)),\"\")","v":5.94344443E-2},{"$f":"IFERROR(INDEX('Data Annex'!$K$1:$AN$1998,MATCH(Sovereigns!G$48&\"|\"&Sovereigns!$B56,'Data Annex'!$K$1:$K$1998,0),MATCH(Sovereigns!G$49,'Data Annex'!$K$1:$AN$1,0)),\"\")","v":5.2892549599999998E-2},{"$f":"IFERROR(INDEX('Data Annex'!$K$1:$AN$1998,MATCH(Sovereigns!H$48&\"|\"&Sovereigns!$B56,'Data Annex'!$K$1:$K$1998,0),MATCH(Sovereigns!H$49,'Data Annex'!$K$1:$AN$1,0)),\"\")","v":6.1540043599999997E-2},{"$f":"IFERROR(INDEX('Data Annex'!$K$1:$AN$1998,MATCH(Sovereigns!I$48&\"|\"&Sovereigns!$B56,'Data Annex'!$K$1:$K$1998,0),MATCH(Sovereigns!I$49,'Data Annex'!$K$1:$AN$1,0)),\"\")","v":5.22874755E-2},{"$f":"IFERROR(INDEX('Data Annex'!$K$1:$AN$1998,MATCH(Sovereigns!J$48&\"|\"&Sovereigns!$B56,'Data Annex'!$K$1:$K$1998,0),MATCH(Sovereigns!J$49,'Data Annex'!$K$1:$AN$1,0)),\"\")","v":0.27436414310000001},{"$f":"IFERROR(INDEX('Data Annex'!$K$1:$AN$1998,MATCH(Sovereigns!K$48&\"|\"&Sovereigns!$B56,'Data Annex'!$K$1:$K$1998,0),MATCH(Sovereigns!K$49,'Data Annex'!$K$1:$AN$1,0)),\"\")","v":0.26120291680000002},{"$f":"IFERROR(INDEX('Data Annex'!$K$1:$AN$1998,MATCH(Sovereigns!L$48&\"|\"&Sovereigns!$B56,'Data Annex'!$K$1:$K$1998,0),MATCH(Sovereigns!L$49,'Data Annex'!$K$1:$AN$1,0)),\"\")","v":0.28256875570000001},{"$f":"IFERROR(INDEX('Data Annex'!$K$1:$AN$1998,MATCH(Sovereigns!M$48&\"|\"&Sovereigns!$B56,'Data Annex'!$K$1:$K$1998,0),MATCH(Sovereigns!M$49,'Data Annex'!$K$1:$AN$1,0)),\"\")","v":0.29946861809999997},{"$f":"IFERROR(INDEX('Data Annex'!$K$1:$AN$1998,MATCH(Sovereigns!N$48&\"|\"&Sovereigns!$B56,'Data Annex'!$K$1:$K$1998,0),MATCH(Sovereigns!N$49,'Data Annex'!$K$1:$AN$1,0)),\"\")","v":0.3220926133},{"$f":"IFERROR(INDEX('Data Annex'!$K$1:$AN$1998,MATCH(Sovereigns!O$48&\"|\"&Sovereigns!$B56,'Data Annex'!$K$1:$K$1998,0),MATCH(Sovereigns!O$49,'Data Annex'!$K$1:$AN$1,0)),\"\")","v":0.3341484401}]
[3,"BG",null,"BG",null,{"$f":"IFERROR(INDEX('Data Annex'!$K$1:$AN$1998,MATCH(Sovereigns!F$48&\"|\"&Sovereigns!$B57,'Data Annex'!$K$1:$K$1998,0),MATCH(Sovereigns!F$49,'Data Annex'!$K$1:$AN$1,0)),\"\")","v":3.8585406599999997E-2},{"$f":"IFERROR(INDEX('Data Annex'!$K$1:$AN$1998,MATCH(Sovereigns!G$48&\"|\"&Sovereigns!$B57,'Data Annex'!$K$1:$K$1998,0),MATCH(Sovereigns!G$49,'Data Annex'!$K$1:$AN$1,0)),\"\")","v":5.9243956700000003E-2},{"$f":"IFERROR(INDEX('Data Annex'!$K$1:$AN$1998,MATCH(Sovereigns!H$48&\"|\"&Sovereigns!$B57,'Data Annex'!$K$1:$K$1998,0),MATCH(Sovereigns!H$49,'Data Annex'!$K$1:$AN$1,0)),\"\")","v":6.1883392199999998E-2},{"$f":"IFERROR(INDEX('Data Annex'!$K$1:$AN$1998,MATCH(Sovereigns!I$48&\"|\"&Sovereigns!$B57,'Data Annex'!$K$1:$K$1998,0),MATCH(Sovereigns!I$49,'Data Annex'!$K$1:$AN$1,0)),\"\")","v":2.9484125199999999E-2},{"$f":"IFERROR(INDEX('Data Annex'!$K$1:$AN$1998,MATCH(Sovereigns!J$48&\"|\"&Sovereigns!$B57,'Data Annex'!$K$1:$K$1998,0),MATCH(Sovereigns!J$49,'Data Annex'!$K$1:$AN$1,0)),\"\")","v":0.48764589250000001},{"$f":"IFERROR(INDEX('Data Annex'!$K$1:$AN$1998,MATCH(Sovereigns!K$48&\"|\"&Sovereigns!$B57,'Data Annex'!$K$1:$K$1998,0),MATCH(Sovereigns!K$49,'Data Annex'!$K$1:$AN$1,0)),\"\")","v":0.48775054210000002},{"$f":"IFERROR(INDEX('Data Annex'!$K$1:$AN$1998,MATCH(Sovereigns!L$48&\"|\"&Sovereigns!$B57,'Data Annex'!$K$1:$K$1998,0),MATCH(Sovereigns!L$49,'Data Annex'!$K$1:$AN$1,0)),\"\")","v":0.37651824239999998},{"$f":"IFERROR(INDEX('Data Annex'!$K$1:$AN$1998,MATCH(Sovereigns!M$48&\"|\"&Sovereigns!$B57,'Data Annex'!$K$1:$K$1998,0),MATCH(Sovereigns!M$49,'Data Annex'!$K$1:$AN$1,0)),\"\")","v":0.38621736010000002},{"$f":"IFERROR(INDEX('Data Annex'!$K$1:$AN$1998,MATCH(Sovereigns!N$48&\"|\"&Sovereigns!$B57,'Data Annex'!$K$1:$K$1998,0),MATCH(Sovereigns!N$49,'Data Annex'!$K$1:$AN$1,0)),\"\")","v":3.5367066199999998E-2},{"$f":"IFERROR(INDEX('Data Annex'!$K$1:$AN$1998,MATCH(Sovereigns!O$48&\"|\"&Sovereigns!$B57,'Data Annex'!$K$1:$K$1998,0),MATCH(Sovereigns!O$49,'Data Annex'!$K$1:$AN$1,0)),\"\")","v":3.7304015900000001E-2}]
[4,"CY",null,"CY",null,{"$f":"IFERROR(INDEX('Data Annex'!$K$1:$AN$1998,MATCH(Sovereigns!F$48&\"|\"&Sovereigns!$B58,'Data Annex'!$K$1:$K$1998,0),MATCH(Sovereigns!F$49,'Data Annex'!$K$1:$AN$1,0)),\"\")","v":9.6149822800000007E-2},{"$f":"IFERROR(INDEX('Data Annex'!$K$1:$AN$1998,MATCH(Sovereigns!G$48&\"|\"&Sovereigns!$B58,'Data Annex'!$K$1:$K$1998,0),MATCH(Sovereigns!G$49,'Data Annex'!$K$1:$AN$1,0)),\"\")","v":2.4080983899999998E-2},{"$f":"IFERROR(INDEX('Data Annex'!$K$1:$AN$1998,MATCH(Sovereigns!H$48&\"|\"&Sovereigns!$B58,'Data Annex'!$K$1:$K$1998,0),MATCH(Sovereigns!H$49,'Data Annex'!$K$1:$AN$1,0)),\"\")","v":0.2656470004},{"$f":"IFERROR(INDEX('Data Annex'!$K$1:$AN$1998,MATCH(Sovereigns!I$48&\"|\"&Sovereigns!$B58,'Data Annex'!$K$1:$K$1998,0),MATCH(Sovereigns!I$49,'Data Annex'!$K$1:$AN$1,0)),\"\")","v":0.33220176379999999},{"$f":"IFERROR(INDEX('Data Annex'!$K$1:$AN$1998,MATCH(Sovereigns!J$48&\"|\"&Sovereigns!$B58,'Data Annex'!$K$1:$K$1998,0),MATCH(Sovereigns!J$49,'Data Annex'!$K$1:$AN$1,0)),\"\")","v":0.51248678219999999},{"$f":"IFERROR(INDEX('Data Annex'!$K$1:$AN$1998,MATCH(Sovereigns!K$48&\"|\"&Sovereigns!$B58,'Data Annex'!$K$1:$K$1998,0),MATCH(Sovereigns!K$49,'Data Annex'!$K$1:$AN$1,0)),\"\")","v":0.54120856029999997},{"$f":"IFERROR(INDEX('Data Annex'!$K$1:$AN$1998,MATCH(Sovereigns!L$48&\"|\"&Sovereigns!$B58,'Data Annex'!$K$1:$K$1998,0),MATCH(Sovereigns!L$49,'Data Annex'!$K$1:$AN$1,0)),\"\")","v":0.1095170637},{"$f":"IFERROR(INDEX('Data Annex'!$K$1:$AN$1998,MATCH(Sovereigns!M$48&\"|\"&Sovereigns!$B58,'Data Annex'!$K$1:$K$1998,0),MATCH(Sovereigns!M$49,'Data Annex'!$K$1:$AN$1,0)),\"\")","v":8.2832024700000007E-2},{"$f":"IFERROR(INDEX('Data Annex'!$K$1:$AN$1998,MATCH(Sovereigns!N$48&\"|\"&Sovereigns!$B58,'Data Annex'!$K$1:$K$1998,0),MATCH(Sovereigns!N$49,'Data Annex'!$K$1:$AN$1,0)),\"\")","v":1.6199330800000002E-2},{"$f":"IFERROR(INDEX('Data Annex'!$K$1:$AN$1998,MATCH(Sovereigns!O$48&\"|\"&Sovereigns!$B58,'Data Annex'!$K$1:$K$1998,0),MATCH(Sovereigns!O$49,'Data Annex'!$K$1:$AN$1,0)),\"\")","v":1.96766674E-2}]
[5,"CZ",null,"CZ",null,{"$f":"IFERROR(INDEX('Data Annex'!$K$1:$AN$1998,MATCH(Sovereigns!F$48&\"|\"&Sovereigns!$B59,'Data Annex'!$K$1:$K$1998,0),MATCH(Sovereigns!F$49,'Data Annex'!$K$1:$AN$1,0)),\"\")","v":0.194524529},{"$f":"IFERROR(INDEX('Data Annex'!$K$1:$AN$1998,MATCH(Sovereigns!G$48&\"|\"&Sovereigns!$B59,'Data Annex'!$K$1:$K$1998,0),MATCH(Sovereigns!G$49,'Data Annex'!$K$1:$AN$1,0)),\"\")","v":4.4265893700000003E-2},{"$f":"IFERROR(INDEX('Data Annex'!$K$1:$AN$1998,MATCH(Sovereigns!H$48&\"|\"&Sovereigns!$B59,'Data Annex'!$K$1:$K$1998,0),MATCH(Sovereigns!H$49,'Data Annex'!$K$1:$AN$1,0)),\"\")","v":6.5161958399999997E-2},{"$f":"IFERROR(INDEX('Data Annex'!$K$1:$AN$1998,MATCH(Sovereigns!I$48&\"|\"&Sovereigns!$B59,'Data Annex'!$K$1:$K$1998,0),MATCH(Sovereigns!I$49,'Data Annex'!$K$1:$AN$1,0)),\"\")","v":5.1826252199999999E-2},{"$f":"IFERROR(INDEX('Data Annex'!$K$1:$AN$1998,MATCH(Sovereigns!J$48&\"|\"&Sovereigns!$B59,'Data Annex'!$K$1:$K$1998,0),MATCH(Sovereigns!J$49,'Data Annex'!$K$1:$AN$1,0)),\"\")","v":0.268722462},{"$f":"IFERROR(INDEX('Data Annex'!$K$1:$AN$1998,MATCH(Sovereigns!K$48&\"|\"&Sovereigns!$B59,'Data Annex'!$K$1:$K$1998,0),MATCH(Sovereigns!K$49,'Data Annex'!$K$1:$AN$1,0)),\"\")","v":0.32433456490000001},{"$f":"IFERROR(INDEX('Data Annex'!$K$1:$AN$1998,MATCH(Sovereigns!L$48&\"|\"&Sovereigns!$B59,'Data Annex'!$K$1:$K$1998,0),MATCH(Sovereigns!L$49,'Data Annex'!$K$1:$AN$1,0)),\"\")","v":0.33002385280000002},{"$f":"IFERROR(INDEX('Data Annex'!$K$1:$AN$1998,MATCH(Sovereigns!M$48&\"|\"&Sovereigns!$B59,'Data Annex'!$K$1:$K$1998,0),MATCH(Sovereigns!M$49,'Data Annex'!$K$1:$AN$1,0)),\"\")","v":0.38454008629999997},{"$f":"IFERROR(INDEX('Data Annex'!$K$1:$AN$1998,MATCH(Sovereigns!N$48&\"|\"&Sovereigns!$B59,'Data Annex'!$K$1:$K$1998,0),MATCH(Sovereigns!N$49,'Data Annex'!$K$1:$AN$1,0)),\"\")","v":0.1415671979},{"$f":"IFERROR(INDEX('Data Annex'!$K$1:$AN$1998,MATCH(Sovereigns!O$48&\"|\"&Sovereigns!$B59,'Data Annex'!$K$1:$K$1998,0),MATCH(Sovereigns!O$49,'Data Annex'!$K$1:$AN$1,0)),\"\")","v":0.19503320290000001}]
[6,"DE",null,"DE",null,{"$f":"IFERROR(INDEX('Data Annex'!$K$1:$AN$1998,MATCH(Sovereigns!F$48&\"|\"&Sovereigns!$B60,'Data Annex'!$K$1:$K$1998,0),MATCH(Sovereigns!F$49,'Data Annex'!$K$1:$AN$1,0)),\"\")","v":8.7241127900000007E-2},{"$f":"IFERROR(INDEX('Data Annex'!$K$1:$AN$1998,MATCH(Sovereigns!G$48&\"|\"&Sovereigns!$B60,'Data Annex'!$K$1:$K$1998,0),MATCH(Sovereigns!G$49,'Data Annex'!$K$1:$AN$1,0)),\"\")","v":8.7622820399999995E-2},{"$f":"IFERROR(INDEX('Data Annex'!$K$1:$AN$1998,MATCH(Sovereigns!H$48&\"|\"&Sovereigns!$B60,'Data Annex'!$K$1:$K$1998,0),MATCH(Sovereigns!H$49,'Data Annex'!$K$1:$AN$1,0)),\"\")","v":9.4718171000000004E-2},{"$f":"IFERROR(INDEX('Data Annex'!$K$1:$AN$1998,MATCH(Sovereigns!I$48&\"|\"&Sovereigns!$B60,'Data Annex'!$K$1:$K$1998,0),MATCH(Sovereigns!I$49,'Data Annex'!$K$1:$AN$1,0)),\"\")","v":8.8244016699999997E-2},{"$f":"IFERROR(INDEX('Data Annex'!$K$1:$AN$1998,MATCH(Sovereigns!J$48&\"|\"&Sovereigns!$B60,'Data Annex'!$K$1:$K$1998,0),MATCH(Sovereigns!J$49,'Data Annex'!$K$1:$AN$1,0)),\"\")","v":0.28638692310000002},{"$f":"IFERROR(INDEX('Data Annex'!$K$1:$AN$1998,MATCH(Sovereigns!K$48&\"|\"&Sovereigns!$B60,'Data Annex'!$K$1:$K$1998,0),MATCH(Sovereigns!K$49,'Data Annex'!$K$1:$AN$1,0)),\"\")","v":0.29027402050000001},{"$f":"IFERROR(INDEX('Data Annex'!$K$1:$AN$1998,MATCH(Sovereigns!L$48&\"|\"&Sovereigns!$B60,'Data Annex'!$K$1:$K$1998,0),MATCH(Sovereigns!L$49,'Data Annex'!$K$1:$AN$1,0)),\"\")","v":0.15225439609999999},{"$f":"IFERROR(INDEX('Data Annex'!$K$1:$AN$1998,MATCH(Sovereigns!M$48&\"|\"&Sovereigns!$B60,'Data Annex'!$K$1:$K$1998,0),MATCH(Sovereigns!M$49,'Data Annex'!$K$1:$AN$1,0)),\"\")","v":0.14272900529999999},{"$f":"IFERROR(INDEX('Data Annex'!$K$1:$AN$1998,MATCH(Sovereigns!N$48&\"|\"&Sovereigns!$B60,'Data Annex'!$K$1:$K$1998,0),MATCH(Sovereigns!N$49,'Data Annex'!$K$1:$AN$1,0)),\"\")","v":0.3793993819},{"$f":"IFERROR(INDEX('Data Annex'!$K$1:$AN$1998,MATCH(Sovereigns!O$48&\"|\"&Sovereigns!$B60,'Data Annex'!$K$1:$K$1998,0),MATCH(Sovereigns!O$49,'Data Annex'!$K$1:$AN$1,0)),\"\")","v":0.3911301371}]
[7,"DK",null,"DK",null,{"$f":"IFERROR(INDEX('Data Annex'!$K$1:$AN$1998,MATCH(Sovereigns!F$48&\"|\"&Sovereigns!$B61,'Data Annex'!$K$1:$K$1998,0),MATCH(Sovereigns!F$49,'Data Annex'!$K$1:$AN$1,0)),\"\")","v":0.31889629759999999},{"$f":"IFERROR(INDEX('Data Annex'!$K$1:$AN$1998,MATCH(Sovereigns!G$48&\"|\"&Sovereigns!$B61,'Data Annex'!$K$1:$K$1998,0),MATCH(Sovereigns!G$49,'Data Annex'!$K$1:$AN$1,0)),\"\")","v":0.36698827449999999},{"$f":"IFERROR(INDEX('Data Annex'!$K$1:$AN$1998,MATCH(Sovereigns!H$48&\"|\"&Sovereigns!$B61,'Data Annex'!$K$1:$K$1998,0),MATCH(Sovereigns!H$49,'Data Annex'!$K$1:$AN$1,0)),\"\")","v":0.20982614790000001},{"$f":"IFERROR(INDEX('Data Annex'!$K$1:$AN$1998,MATCH(Sovereigns!I$48&\"|\"&Sovereigns!$B61,'Data Annex'!$K$1:$K$1998,0),MATCH(Sovereigns!I$49,'Data Annex'!$K$1:$AN$1,0)),\"\")","v":0.123733916},{"$f":"IFERROR(INDEX('Data Annex'!$K$1:$AN$1998,MATCH(Sovereigns!J$48&\"|\"&Sovereigns!$B61,'Data Annex'!$K$1:$K$1998,0),MATCH(Sovereigns!J$49,'Data Annex'!$K$1:$AN$1,0)),\"\")","v":0.30569596760000001},{"$f":"IFERROR(INDEX('Data Annex'!$K$1:$AN$1998,MATCH(Sovereigns!K$48&\"|\"&Sovereigns!$B61,'Data Annex'!$K$1:$K$1998,0),MATCH(Sovereigns!K$49,'Data Annex'!$K$1:$AN$1,0)),\"\")","v":0.34434038579999998},{"$f":"IFERROR(INDEX('Data Annex'!$K$1:$AN$1998,MATCH(Sovereigns!L$48&\"|\"&Sovereigns!$B61,'Data Annex'!$K$1:$K$1998,0),MATCH(Sovereigns!L$49,'Data Annex'!$K$1:$AN$1,0)),\"\")","v":8.5574856099999999E-2},{"$f":"IFERROR(INDEX('Data Annex'!$K$1:$AN$1998,MATCH(Sovereigns!M$48&\"|\"&Sovereigns!$B61,'Data Annex'!$K$1:$K$1998,0),MATCH(Sovereigns!M$49,'Data Annex'!$K$1:$AN$1,0)),\"\")","v":9.4400163499999995E-2},{"$f":"IFERROR(INDEX('Data Annex'!$K$1:$AN$1998,MATCH(Sovereigns!N$48&\"|\"&Sovereigns!$B61,'Data Annex'!$K$1:$K$1998,0),MATCH(Sovereigns!N$49,'Data Annex'!$K$1:$AN$1,0)),\"\")","v":8.0006730799999995E-2},{"$f":"IFERROR(INDEX('Data Annex'!$K$1:$AN$1998,MATCH(Sovereigns!O$48&\"|\"&Sovereigns!$B61,'Data Annex'!$K$1:$K$1998,0),MATCH(Sovereigns!O$49,'Data Annex'!$K$1:$AN$1,0)),\"\")","v":7.0537260099999999E-2}]
[8,"EE",null,"EE",null,{"$f":"IFERROR(INDEX('Data Annex'!$K$1:$AN$1998,MATCH(Sovereigns!F$48&\"|\"&Sovereigns!$B62,'Data Annex'!$K$1:$K$1998,0),MATCH(Sovereigns!F$49,'Data Annex'!$K$1:$AN$1,0)),\"\")","v":0.45590302999999999},{"$f":"IFERROR(INDEX('Data Annex'!$K$1:$AN$1998,MATCH(Sovereigns!G$48&\"|\"&Sovereigns!$B62,'Data Annex'!$K$1:$K$1998,0),MATCH(Sovereigns!G$49,'Data Annex'!$K$1:$AN$1,0)),\"\")","v":0.61977762140000003},{"$f":"IFERROR(INDEX('Data Annex'!$K$1:$AN$1998,MATCH(Sovereigns!H$48&\"|\"&Sovereigns!$B62,'Data Annex'!$K$1:$K$1998,0),MATCH(Sovereigns!H$49,'Data Annex'!$K$1:$AN$1,0)),\"\")","v":0.19700942900000001},{"$f":"IFERROR(INDEX('Data Annex'!$K$1:$AN$1998,MATCH(Sovereigns!I$48&\"|\"&Sovereigns!$B62,'Data Annex'!$K$1:$K$1998,0),MATCH(Sovereigns!I$49,'Data Annex'!$K$1:$AN$1,0)),\"\")","v":6.45181856E-2},{"$f":"IFERROR(INDEX('Data Annex'!$K$1:$AN$1998,MATCH(Sovereigns!J$48&\"|\"&Sovereigns!$B62,'Data Annex'!$K$1:$K$1998,0),MATCH(Sovereigns!J$49,'Data Annex'!$K$1:$AN$1,0)),\"\")","v":0.23002608150000001},{"$f":"IFERROR(INDEX('Data Annex'!$K$1:$AN$1998,MATCH(Sovereigns!K$48&\"|\"&Sovereigns!$B62,'Data Annex'!$K$1:$K$1998,0),MATCH(Sovereigns!K$49,'Data Annex'!$K$1:$AN$1,0)),\"\")","v":0.1869626882},{"$f":"IFERROR(INDEX('Data Annex'!$K$1:$AN$1998,MATCH(Sovereigns!L$48&\"|\"&Sovereigns!$B62,'Data Annex'!$K$1:$K$1998,0),MATCH(Sovereigns!L$49,'Data Annex'!$K$1:$AN$1,0)),\"\")","v":9.9476474199999998E-2},{"$f":"IFERROR(INDEX('Data Annex'!$K$1:$AN$1998,MATCH(Sovereigns!M$48&\"|\"&Sovereigns!$B62,'Data Annex'!$K$1:$K$1998,0),MATCH(Sovereigns!M$49,'Data Annex'!$K$1:$AN$1,0)),\"\")","v":0.1135591455},{"$f":"IFERROR(INDEX('Data Annex'!$K$1:$AN$1998,MATCH(Sovereigns!N$48&\"|\"&Sovereigns!$B62,'Data Annex'!$K$1:$K$1998,0),MATCH(Sovereigns!N$49,'Data Annex'!$K$1:$AN$1,0)),\"\")","v":1.7584985300000001E-2},{"$f":"IFERROR(INDEX('Data Annex'!$K$1:$AN$1998,MATCH(Sovereigns!O$48&\"|\"&Sovereigns!$B62,'Data Annex'!$K$1:$K$1998,0),MATCH(Sovereigns!O$49,'Data Annex'!$K$1:$AN$1,0)),\"\")","v":1.51823593E-2}]
[9,"ES",null,"ES",null,{"$f":"IFERROR(INDEX('Data Annex'!$K$1:$AN$1998,MATCH(Sovereigns!F$48&\"|\"&Sovereigns!$B63,'Data Annex'!$K$1:$K$1998,0),MATCH(Sovereigns!F$49,'Data Annex'!$K$1:$AN$1,0)),\"\")","v":6.1057477200000002E-2},{"$f":"IFERROR(INDEX('Data Annex'!$K$1:$AN$1998,MATCH(Sovereigns!G$48&\"|\"&Sovereigns!$B63,'Data Annex'!$K$1:$K$1998,0),MATCH(Sovereigns!G$49,'Data Annex'!$K$1:$AN$1,0)),\"\")","v":6.4508684499999996E-2},{"$f":"IFERROR(INDEX('Data Annex'!$K$1:$AN$1998,MATCH(Sovereigns!H$48&\"|\"&Sovereigns!$B63,'Data Annex'!$K$1:$K$1998,0),MATCH(Sovereigns!H$49,'Data Annex'!$K$1:$AN$1,0)),\"\")","v":0.12550065399999999},{"$f":"IFERROR(INDEX('Data Annex'!$K$1:$AN$1998,MATCH(Sovereigns!I$48&\"|\"&Sovereigns!$B63,'Data Annex'!$K$1:$K$1998,0),MATCH(Sovereigns!I$49,'Data Annex'!$K$1:$AN$1,0)),\"\")","v":0.14244226060000001},{"$f":"IFERROR(INDEX('Data Annex'!$K$1:$AN$1998,MATCH(Sovereigns!J$48&\"|\"&Sovereigns!$B63,'Data Annex'!$K$1:$K$1998,0),MATCH(Sovereigns!J$49,'Data Annex'!$K$1:$AN$1,0)),\"\")","v":0.35971121960000002},{"$f":"IFERROR(INDEX('Data Annex'!$K$1:$AN$1998,MATCH(Sovereigns!K$48&\"|\"&Sovereigns!$B63,'Data Annex'!$K$1:$K$1998,0),MATCH(Sovereigns!K$49,'Data Annex'!$K$1:$AN$1,0)),\"\")","v":0.3745035035},{"$f":"IFERROR(INDEX('Data Annex'!$K$1:$AN$1998,MATCH(Sovereigns!L$48&\"|\"&Sovereigns!$B63,'Data Annex'!$K$1:$K$1998,0),MATCH(Sovereigns!L$49,'Data Annex'!$K$1:$AN$1,0)),\"\")","v":0.27969530450000002},{"$f":"IFERROR(INDEX('Data Annex'!$K$1:$AN$1998,MATCH(Sovereigns!M$48&\"|\"&Sovereigns!$B63,'Data Annex'!$K$1:$K$1998,0),MATCH(Sovereigns!M$49,'Data Annex'!$K$1:$AN$1,0)),\"\")","v":0.28934309130000002},{"$f":"IFERROR(INDEX('Data Annex'!$K$1:$AN$1998,MATCH(Sovereigns!N$48&\"|\"&Sovereigns!$B63,'Data Annex'!$K$1:$K$1998,0),MATCH(Sovereigns!N$49,'Data Annex'!$K$1:$AN$1,0)),\"\")","v":0.17403534470000001},{"$f":"IFERROR(INDEX('Data Annex'!$K$1:$AN$1998,MATCH(Sovereigns!O$48&\"|\"&Sovereigns!$B63,'Data Annex'!$K$1:$K$1998,0),MATCH(Sovereigns!O$49,'Data Annex'!$K$1:$AN$1,0)),\"\")","v":0.12920245999999999}]
[10,"FI",null,"FI",null,{"$f":"IFERROR(INDEX('Data Annex'!$K$1:$AN$1998,MATCH(Sovereigns!F$48&\"|\"&Sovereigns!$B64,'Data Annex'!$K$1:$K$1998,0),MATCH(Sovereigns!F$49,'Data Annex'!$K$1:$AN$1,0)),\"\")","v":0.23861455670000001},{"$f":"IFERROR(INDEX('Data Annex'!$K$1:$AN$1998,MATCH(Sovereigns!G$48&\"|\"&Sovereigns!$B64,'Data Annex'!$K$1:$K$1998,0),MATCH(Sovereigns!G$49,'Data Annex'!$K$1:$AN$1,0)),\"\")","v":0.1078509808},{"$f":"IFERROR(INDEX('Data Annex'!$K$1:$AN$1998,MATCH(Sovereigns!H$48&\"|\"&Sovereigns!$B64,'Data Annex'!$K$1:$K$1998,0),MATCH(Sovereigns!H$49,'Data Annex'!$K$1:$AN$1,0)),\"\")","v":9.1699769900000005E-2},{"$f":"IFERROR(INDEX('Data Annex'!$K$1:$AN$1998,MATCH(Sovereigns!I$48&\"|\"&Sovereigns!$B64,'Data Annex'!$K$1:$K$1998,0),MATCH(Sovereigns!I$49,'Data Annex'!$K$1:$AN$1,0)),\"\")","v":2.0284185600000001E-2},{"$f":"IFERROR(INDEX('Data Annex'!$K$1:$AN$1998,MATCH(Sovereigns!J$48&\"|\"&Sovereigns!$B64,'Data Annex'!$K$1:$K$1998,0),MATCH(Sovereigns!J$49,'Data Annex'!$K$1:$AN$1,0)),\"\")","v":0.30074551890000001},{"$f":"IFERROR(INDEX('Data Annex'!$K$1:$AN$1998,MATCH(Sovereigns!K$48&\"|\"&Sovereigns!$B64,'Data Annex'!$K$1:$K$1998,0),MATCH(Sovereigns!K$49,'Data Annex'!$K$1:$AN$1,0)),\"\")","v":0.22983005770000001},{"$f":"IFERROR(INDEX('Data Annex'!$K$1:$AN$1998,MATCH(Sovereigns!L$48&\"|\"&Sovereigns!$B64,'Data Annex'!$K$1:$K$1998,0),MATCH(Sovereigns!L$49,'Data Annex'!$K$1:$AN$1,0)),\"\")","v":0.24597160300000001},{"$f":"IFERROR(INDEX('Data Annex'!$K$1:$AN$1998,MATCH(Sovereigns!M$48&\"|\"&Sovereigns!$B64,'Data Annex'!$K$1:$K$1998,0),MATCH(Sovereigns!M$49,'Data Annex'!$K$1:$AN$1,0)),\"\")","v":0.37769569390000002},{"$f":"IFERROR(INDEX('Data Annex'!$K$1:$AN$1998,MATCH(Sovereigns!N$48&\"|\"&Sovereigns!$B64,'Data Annex'!$K$1:$K$1998,0),MATCH(Sovereigns!N$49,'Data Annex'!$K$1:$AN$1,0)),\"\")","v":0.1229685515},{"$f":"IFERROR(INDEX('Data Annex'!$K$1:$AN$1998,MATCH(Sovereigns!O$48&\"|\"&Sovereigns!$B64,'Data Annex'!$K$1:$K$1998,0),MATCH(Sovereigns!O$49,'Data Annex'!$K$1:$AN$1,0)),\"\")","v":0.26433908189999999}]
[11,"FR",null,"FR",null,{"$f":"IFERROR(INDEX('Data Annex'!$K$1:$AN$1998,MATCH(Sovereigns!F$48&\"|\"&Sovereigns!$B65,'Data Annex'!$K$1:$K$1998,0),MATCH(Sovereigns!F$49,'Data Annex'!$K$1:$AN$1,0)),\"\")","v":0.1721207377},{"$f":"IFERROR(INDEX('Data Annex'!$K$1:$AN$1998,MATCH(Sovereigns!G$48&\"|\"&Sovereigns!$B65,'Data Annex'!$K$1:$K$1998,0),MATCH(Sovereigns!G$49,'Data Annex'!$K$1:$AN$1,0)),\"\")","v":0.16827767460000001},{"$f":"IFERROR(INDEX('Data Annex'!$K$1:$AN$1998,MATCH(Sovereigns!H$48&\"|\"&Sovereigns!$B65,'Data Annex'!$K$1:$K$1998,0),MATCH(Sovereigns!H$49,'Data Annex'!$K$1:$AN$1,0)),\"\")","v":0.15931282729999999},{"$f":"IFERROR(INDEX('Data Annex'!$K$1:$AN$1998,MATCH(Sovereigns!I$48&\"|\"&Sovereigns!$B65,'Data Annex'!$K$1:$K$1998,0),MATCH(Sovereigns!I$49,'Data Annex'!$K$1:$AN$1,0)),\"\")","v":8.6518519299999999E-2},{"$f":"IFERROR(INDEX('Data Annex'!$K$1:$AN$1998,MATCH(Sovereigns!J$48&\"|\"&Sovereigns!$B65,'Data Annex'!$K$1:$K$1998,0),MATCH(Sovereigns!J$49,'Data Annex'!$K$1:$AN$1,0)),\"\")","v":0.26589475550000002},{"$f":"IFERROR(INDEX('Data Annex'!$K$1:$AN$1998,MATCH(Sovereigns!K$48&\"|\"&Sovereigns!$B65,'Data Annex'!$K$1:$K$1998,0),MATCH(Sovereigns!K$49,'Data Annex'!$K$1:$AN$1,0)),\"\")","v":0.32456726660000002},{"$f":"IFERROR(INDEX('Data Annex'!$K$1:$AN$1998,MATCH(Sovereigns!L$48&\"|\"&Sovereigns!$B65,'Data Annex'!$K$1:$K$1998,0),MATCH(Sovereigns!L$49,'Data Annex'!$K$1:$AN$1,0)),\"\")","v":0.1856750144},{"$f":"IFERROR(INDEX('Data Annex'!$K$1:$AN$1998,MATCH(Sovereigns!M$48&\"|\"&Sovereigns!$B65,'Data Annex'!$K$1:$K$1998,0),MATCH(Sovereigns!M$49,'Data Annex'!$K$1:$AN$1,0)),\"\")","v":0.1909678594},{"$f":"IFERROR(INDEX('Data Annex'!$K$1:$AN$1998,MATCH(Sovereigns!N$48&\"|\"&Sovereigns!$B65,'Data Annex'!$K$1:$K$1998,0),MATCH(Sovereigns!N$49,'Data Annex'!$K$1:$AN$1,0)),\"\")","v":0.21699666510000001},{"$f":"IFERROR(INDEX('Data Annex'!$K$1:$AN$1998,MATCH(Sovereigns!O$48&\"|\"&Sovereigns!$B65,'Data Annex'!$K$1:$K$1998,0),MATCH(Sovereigns!O$49,'Data Annex'!$K$1:$AN$1,0)),\"\")","v":0.22966868009999999}]
[13,"GR",null,"GR",null,{"$f":"IFERROR(INDEX('Data Annex'!$K$1:$AN$1998,MATCH(Sovereigns!F$48&\"|\"&Sovereigns!$B66,'Data Annex'!$K$1:$K$1998,0),MATCH(Sovereigns!F$49,'Data Annex'!$K$1:$AN$1,0)),\"\")","v":2.3639106199999999E-2},{"$f":"IFERROR(INDEX('Data Annex'!$K$1:$AN$1998,MATCH(Sovereigns!G$48&\"|\"&Sovereigns!$B66,'Data Annex'!$K$1:$K$1998,0),MATCH(Sovereigns!G$49,'Data Annex'!$K$1:$AN$1,0)),\"\")","v":3.8514329E-2},{"$f":"IFERROR(INDEX('Data Annex'!$K$1:$AN$1998,MATCH(Sovereigns!H$48&\"|\"&Sovereigns!$B66,'Data Annex'!$K$1:$K$1998,0),MATCH(Sovereigns!H$49,'Data Annex'!$K$1:$AN$1,0)),\"\")","v":5.39863914E-2},{"$f":"IFERROR(INDEX('Data Annex'!$K$1:$AN$1998,MATCH(Sovereigns!I$48&\"|\"&Sovereigns!$B66,'Data Annex'!$K$1:$K$1998,0),MATCH(Sovereigns!I$49,'Data Annex'!$K$1:$AN$1,0)),\"\")","v":0.117866839},{"$f":"IFERROR(INDEX('Data Annex'!$K$1:$AN$1998,MATCH(Sovereigns!J$48&\"|\"&Sovereigns!$B66,'Data Annex'!$K$1:$K$1998,0),MATCH(Sovereigns!J$49,'Data Annex'!$K$1:$AN$1,0)),\"\")","v":0.24427569469999999},{"$f":"IFERROR(INDEX('Data Annex'!$K$1:$AN$1998,MATCH(Sovereigns!K$48&\"|\"&Sovereigns!$B66,'Data Annex'!$K$1:$K$1998,0),MATCH(Sovereigns!K$49,'Data Annex'!$K$1:$AN$1,0)),\"\")","v":0.19531447139999999},{"$f":"IFERROR(INDEX('Data Annex'!$K$1:$AN$1998,MATCH(Sovereigns!L$48&\"|\"&Sovereigns!$B66,'Data Annex'!$K$1:$K$1998,0),MATCH(Sovereigns!L$49,'Data Annex'!$K$1:$AN$1,0)),\"\")","v":0.20698918690000001},{"$f":"IFERROR(INDEX('Data Annex'!$K$1:$AN$1998,MATCH(Sovereigns!M$48&\"|\"&Sovereigns!$B66,'Data Annex'!$K$1:$K$1998,0),MATCH(Sovereigns!M$49,'Data Annex'!$K$1:$AN$1,0)),\"\")","v":0.18921230380000001},{"$f":"IFERROR(INDEX('Data Annex'!$K$1:$AN$1998,MATCH(Sovereigns!N$48&\"|\"&Sovereigns!$B66,'Data Annex'!$K$1:$K$1998,0),MATCH(Sovereigns!N$49,'Data Annex'!$K$1:$AN$1,0)),\"\")","v":0.47110962080000002},{"$f":"IFERROR(INDEX('Data Annex'!$K$1:$AN$1998,MATCH(Sovereigns!O$48&\"|\"&Sovereigns!$B66,'Data Annex'!$K$1:$K$1998,0),MATCH(Sovereigns!O$49,'Data Annex'!$K$1:$AN$1,0)),\"\")","v":0.45909205679999998}]
[14,"HR",null,"HR",null,{"$f":"IFERROR(INDEX('Data Annex'!$K$1:$AN$1998,MATCH(Sovereigns!F$48&\"|\"&Sovereigns!$B67,'Data Annex'!$K$1:$K$1998,0),MATCH(Sovereigns!F$49,'Data Annex'!$K$1:$AN$1,0)),\"\")","v":2.5165374800000001E-2},{"$f":"IFERROR(INDEX('Data Annex'!$K$1:$AN$1998,MATCH(Sovereigns!G$48&\"|\"&Sovereigns!$B67,'Data Annex'!$K$1:$K$1998,0),MATCH(Sovereigns!G$49,'Data Annex'!$K$1:$AN$1,0)),\"\")","v":6.8142670399999994E-2},{"$f":"IFERROR(INDEX('Data Annex'!$K$1:$AN$1998,MATCH(Sovereigns!H$48&\"|\"&Sovereigns!$B67,'Data Annex'!$K$1:$K$1998,0),MATCH(Sovereigns!H$49,'Data Annex'!$K$1:$AN$1,0)),\"\")","v":0.23380869360000001},{"$f":"IFERROR(INDEX('Data Annex'!$K$1:$AN$1998,MATCH(Sovereigns!I$48&\"|\"&Sovereigns!$B67,'Data Annex'!$K$1:$K$1998,0),MATCH(Sovereigns!I$49,'Data Annex'!$K$1:$AN$1,0)),\"\")","v":0.25680355319999998},{"$f":"IFERROR(INDEX('Data Annex'!$K$1:$AN$1998,MATCH(Sovereigns!J$48&\"|\"&Sovereigns!$B67,'Data Annex'!$K$1:$K$1998,0),MATCH(Sovereigns!J$49,'Data Annex'!$K$1:$AN$1,0)),\"\")","v":0.44035652669999997},{"$f":"IFERROR(INDEX('Data Annex'!$K$1:$AN$1998,MATCH(Sovereigns!K$48&\"|\"&Sovereigns!$B67,'Data Annex'!$K$1:$K$1998,0),MATCH(Sovereigns!K$49,'Data Annex'!$K$1:$AN$1,0)),\"\")","v":0.32758231780000002},{"$f":"IFERROR(INDEX('Data Annex'!$K$1:$AN$1998,MATCH(Sovereigns!L$48&\"|\"&Sovereigns!$B67,'Data Annex'!$K$1:$K$1998,0),MATCH(Sovereigns!L$49,'Data Annex'!$K$1:$AN$1,0)),\"\")","v":0.27592223770000002},{"$f":"IFERROR(INDEX('Data Annex'!$K$1:$AN$1998,MATCH(Sovereigns!M$48&\"|\"&Sovereigns!$B67,'Data Annex'!$K$1:$K$1998,0),MATCH(Sovereigns!M$49,'Data Annex'!$K$1:$AN$1,0)),\"\")","v":0.31319178660000002},{"$f":"IFERROR(INDEX('Data Annex'!$K$1:$AN$1998,MATCH(Sovereigns!N$48&\"|\"&Sovereigns!$B67,'Data Annex'!$K$1:$K$1998,0),MATCH(Sovereigns!N$49,'Data Annex'!$K$1:$AN$1,0)),\"\")","v":2.4747167300000001E-2},{"$f":"IFERROR(INDEX('Data Annex'!$K$1:$AN$1998,MATCH(Sovereigns!O$48&\"|\"&Sovereigns!$B67,'Data Annex'!$K$1:$K$1998,0),MATCH(Sovereigns!O$49,'Data Annex'!$K$1:$AN$1,0)),\"\")","v":3.4279671999999997E-2}]
[15,"HU",null,"HU",null,{"$f":"IFERROR(INDEX('Data Annex'!$K$1:$AN$1998,MATCH(Sovereigns!F$48&\"|\"&Sovereigns!$B68,'Data Annex'!$K$1:$K$1998,0),MATCH(Sovereigns!F$49,'Data Annex'!$K$1:$AN$1,0)),\"\")","v":0.1935581328},{"$f":"IFERROR(INDEX('Data Annex'!$K$1:$AN$1998,MATCH(Sovereigns!G$48&\"|\"&Sovereigns!$B68,'Data Annex'!$K$1:$K$1998,0),MATCH(Sovereigns!G$49,'Data Annex'!$K$1:$AN$1,0)),\"\")","v":0.27996886809999999},{"$f":"IFERROR(INDEX('Data Annex'!$K$1:$AN$1998,MATCH(Sovereigns!H$48&\"|\"&Sovereigns!$B68,'Data Annex'!$K$1:$K$1998,0),MATCH(Sovereigns!H$49,'Data Annex'!$K$1:$AN$1,0)),\"\")","v":3.4998040399999999E-2},{"$f":"IFERROR(INDEX('Data Annex'!$K$1:$AN$1998,MATCH(Sovereigns!I$48&\"|\"&Sovereigns!$B68,'Data Annex'!$K$1:$K$1998,0),MATCH(Sovereigns!I$49,'Data Annex'!$K$1:$AN$1,0)),\"\")","v":2.61729588E-2},{"$f":"IFERROR(INDEX('Data Annex'!$K$1:$AN$1998,MATCH(Sovereigns!J$48&\"|\"&Sovereigns!$B68,'Data Annex'!$K$1:$K$1998,0),MATCH(Sovereigns!J$49,'Data Annex'!$K$1:$AN$1,0)),\"\")","v":0.34331536060000001},{"$f":"IFERROR(INDEX('Data Annex'!$K$1:$AN$1998,MATCH(Sovereigns!K$48&\"|\"&Sovereigns!$B68,'Data Annex'!$K$1:$K$1998,0),MATCH(Sovereigns!K$49,'Data Annex'!$K$1:$AN$1,0)),\"\")","v":0.2662638819},{"$f":"IFERROR(INDEX('Data Annex'!$K$1:$AN$1998,MATCH(Sovereigns!L$48&\"|\"&Sovereigns!$B68,'Data Annex'!$K$1:$K$1998,0),MATCH(Sovereigns!L$49,'Data Annex'!$K$1:$AN$1,0)),\"\")","v":0.2996407317},{"$f":"IFERROR(INDEX('Data Annex'!$K$1:$AN$1998,MATCH(Sovereigns!M$48&\"|\"&Sovereigns!$B68,'Data Annex'!$K$1:$K$1998,0),MATCH(Sovereigns!M$49,'Data Annex'!$K$1:$AN$1,0)),\"\")","v":0.35761716059999998},{"$f":"IFERROR(INDEX('Data Annex'!$K$1:$AN$1998,MATCH(Sovereigns!N$48&\"|\"&Sovereigns!$B68,'Data Annex'!$K$1:$K$1998,0),MATCH(Sovereigns!N$49,'Data Annex'!$K$1:$AN$1,0)),\"\")","v":0.12848773450000001},{"$f":"IFERROR(INDEX('Data Annex'!$K$1:$AN$1998,MATCH(Sovereigns!O$48&\"|\"&Sovereigns!$B68,'Data Annex'!$K$1:$K$1998,0),MATCH(Sovereigns!O$49,'Data Annex'!$K$1:$AN$1,0)),\"\")","v":6.9977130700000001E-2}]
[16,"IE",null,"IE",null,{"$f":"IFERROR(INDEX('Data Annex'!$K$1:$AN$1998,MATCH(Sovereigns!F$48&\"|\"&Sovereigns!$B69,'Data Annex'!$K$1:$K$1998,0),MATCH(Sovereigns!F$49,'Data Annex'!$K$1:$AN$1,0)),\"\")","v":8.7494286399999996E-2},{"$f":"IFERROR(INDEX('Data Annex'!$K$1:$AN$1998,MATCH(Sovereigns!G$48&\"|\"&Sovereigns!$B69,'Data Annex'!$K$1:$K$1998,0),MATCH(Sovereigns!G$49,'Data Annex'!$K$1:$AN$1,0)),\"\")","v":0.23488244350000001},{"$f":"IFERROR(INDEX('Data Annex'!$K$1:$AN$1998,MATCH(Sovereigns!H$48&\"|\"&Sovereigns!$B69,'Data Annex'!$K$1:$K$1998,0),MATCH(Sovereigns!H$49,'Data Annex'!$K$1:$AN$1,0)),\"\")","v":0.1986847564},{"$f":"IFERROR(INDEX('Data Annex'!$K$1:$AN$1998,MATCH(Sovereigns!I$48&\"|\"&Sovereigns!$B69,'Data Annex'!$K$1:$K$1998,0),MATCH(Sovereigns!I$49,'Data Annex'!$K$1:$AN$1,0)),\"\")","v":8.3964618899999996E-2},{"$f":"IFERROR(INDEX('Data Annex'!$K$1:$AN$1998,MATCH(Sovereigns!J$48&\"|\"&Sovereigns!$B69,'Data Annex'!$K$1:$K$1998,0),MATCH(Sovereigns!J$49,'Data Annex'!$K$1:$AN$1,0)),\"\")","v":0.33554046599999998},{"$f":"IFERROR(INDEX('Data Annex'!$K$1:$AN$1998,MATCH(Sovereigns!K$48&\"|\"&Sovereigns!$B69,'Data Annex'!$K$1:$K$1998,0),MATCH(Sovereigns!K$49,'Data Annex'!$K$1:$AN$1,0)),\"\")","v":0.29175974500000001},{"$f":"IFERROR(INDEX('Data Annex'!$K$1:$AN$1998,MATCH(Sovereigns!L$48&\"|\"&Sovereigns!$B69,'Data Annex'!$K$1:$K$1998,0),MATCH(Sovereigns!L$49,'Data Annex'!$K$1:$AN$1,0)),\"\")","v":0.29716025670000001},{"$f":"IFERROR(INDEX('Data Annex'!$K$1:$AN$1998,MATCH(Sovereigns!M$48&\"|\"&Sovereigns!$B69,'Data Annex'!$K$1:$K$1998,0),MATCH(Sovereigns!M$49,'Data Annex'!$K$1:$AN$1,0)),\"\")","v":0.30803030869999998},{"$f":"IFERROR(INDEX('Data Annex'!$K$1:$AN$1998,MATCH(Sovereigns!N$48&\"|\"&Sovereigns!$B69,'Data Annex'!$K$1:$K$1998,0),MATCH(Sovereigns!N$49,'Data Annex'!$K$1:$AN$1,0)),\"\")","v":8.1120234499999999E-2},{"$f":"IFERROR(INDEX('Data Annex'!$K$1:$AN$1998,MATCH(Sovereigns!O$48&\"|\"&Sovereigns!$B69,'Data Annex'!$K$1:$K$1998,0),MATCH(Sovereigns!O$49,'Data Annex'!$K$1:$AN$1,0)),\"\")","v":8.1362883900000002E-2}]
[17,"IS",null,"IS",null,{"$f":"IFERROR(INDEX('Data Annex'!$K$1:$AN$1998,MATCH(Sovereigns!F$48&\"|\"&Sovereigns!$B70,'Data Annex'!$K$1:$K$1998,0),MATCH(Sovereigns!F$49,'Data Annex'!$K$1:$AN$1,0)),\"\")","v":0.2861611422},{"$f":"IFERROR(INDEX('Data Annex'!$K$1:$AN$1998,MATCH(Sovereigns!G$48&\"|\"&Sovereigns!$B70,'Data Annex'!$K$1:$K$1998,0),MATCH(Sovereigns!G$49,'Data Annex'!$K$1:$AN$1,0)),\"\")","v":0.26250908509999998},{"$f":"IFERROR(INDEX('Data Annex'!$K$1:$AN$1998,MATCH(Sovereigns!H$48&\"|\"&Sovereigns!$B70,'Data Annex'!$K$1:$K$1998,0),MATCH(Sovereigns!H$49,'Data Annex'!$K$1:$AN$1,0)),\"\")","v":0.6698469963},{"$f":"IFERROR(INDEX('Data Annex'!$K$1:$AN$1998,MATCH(Sovereigns!I$48&\"|\"&Sovereigns!$B70,'Data Annex'!$K$1:$K$1998,0),MATCH(Sovereigns!I$49,'Data Annex'!$K$1:$AN$1,0)),\"\")","v":0.2208487321},{"$f":"IFERROR(INDEX('Data Annex'!$K$1:$AN$1998,MATCH(Sovereigns!J$48&\"|\"&Sovereigns!$B70,'Data Annex'!$K$1:$K$1998,0),MATCH(Sovereigns!J$49,'Data Annex'!$K$1:$AN$1,0)),\"\")","v":4.3399230099999998E-2},{"$f":"IFERROR(INDEX('Data Annex'!$K$1:$AN$1998,MATCH(Sovereigns!K$48&\"|\"&Sovereigns!$B70,'Data Annex'!$K$1:$K$1998,0),MATCH(Sovereigns!K$49,'Data Annex'!$K$1:$AN$1,0)),\"\")","v":0.51536426639999999},{"$f":"IFERROR(INDEX('Data Annex'!$K$1:$AN$1998,MATCH(Sovereigns!L$48&\"|\"&Sovereigns!$B70,'Data Annex'!$K$1:$K$1998,0),MATCH(Sovereigns!L$49,'Data Annex'!$K$1:$AN$1,0)),\"\")","v":4.0524289999999998E-4},{"$f":"IFERROR(INDEX('Data Annex'!$K$1:$AN$1998,MATCH(Sovereigns!M$48&\"|\"&Sovereigns!$B70,'Data Annex'!$K$1:$K$1998,0),MATCH(Sovereigns!M$49,'Data Annex'!$K$1:$AN$1,0)),\"\")","v":0},{"$f":"IFERROR(INDEX('Data Annex'!$K$1:$AN$1998,MATCH(Sovereigns!N$48&\"|\"&Sovereigns!$B70,'Data Annex'!$K$1:$K$1998,0),MATCH(Sovereigns!N$49,'Data Annex'!$K$1:$AN$1,0)),\"\")","v":1.8738850000000001E-4},{"$f":"IFERROR(INDEX('Data Annex'!$K$1:$AN$1998,MATCH(Sovereigns!O$48&\"|\"&Sovereigns!$B70,'Data Annex'!$K$1:$K$1998,0),MATCH(Sovereigns!O$49,'Data Annex'!$K$1:$AN$1,0)),\"\")","v":1.2779165E-3}]
[18,"IT",null,"IT",null,{"$f":"IFERROR(INDEX('Data Annex'!$K$1:$AN$1998,MATCH(Sovereigns!F$48&\"|\"&Sovereigns!$B71,'Data Annex'!$K$1:$K$1998,0),MATCH(Sovereigns!F$49,'Data Annex'!$K$1:$AN$1,0)),\"\")","v":4.0054207100000003E-2},{"$f":"IFERROR(INDEX('Data Annex'!$K$1:$AN$1998,MATCH(Sovereigns!G$48&\"|\"&Sovereigns!$B71,'Data Annex'!$K$1:$K$1998,0),MATCH(Sovereigns!G$49,'Data Annex'!$K$1:$AN$1,0)),\"\")","v":3.9692214699999999E-2},{"$f":"IFERROR(INDEX('Data Annex'!$K$1:$AN$1998,MATCH(Sovereigns!H$48&\"|\"&Sovereigns!$B71,'Data Annex'!$K$1:$K$1998,0),MATCH(Sovereigns!H$49,'Data Annex'!$K$1:$AN$1,0)),\"\")","v":0.10279670539999999},{"$f":"IFERROR(INDEX('Data Annex'!$K$1:$AN$1998,MATCH(Sovereigns!I$48&\"|\"&Sovereigns!$B71,'Data Annex'!$K$1:$K$1998,0),MATCH(Sovereigns!I$49,'Data Annex'!$K$1:$AN$1,0)),\"\")","v":9.7614409499999999E-2},{"$f":"IFERROR(INDEX('Data Annex'!$K$1:$AN$1998,MATCH(Sovereigns!J$48&\"|\"&Sovereigns!$B71,'Data Annex'!$K$1:$K$1998,0),MATCH(Sovereigns!J$49,'Data Annex'!$K$1:$AN$1,0)),\"\")","v":0.459668454},{"$f":"IFERROR(INDEX('Data Annex'!$K$1:$AN$1998,MATCH(Sovereigns!K$48&\"|\"&Sovereigns!$B71,'Data Annex'!$K$1:$K$1998,0),MATCH(Sovereigns!K$49,'Data Annex'!$K$1:$AN$1,0)),\"\")","v":0.47671783760000003},{"$f":"IFERROR(INDEX('Data Annex'!$K$1:$AN$1998,MATCH(Sovereigns!L$48&\"|\"&Sovereigns!$B71,'Data Annex'!$K$1:$K$1998,0),MATCH(Sovereigns!L$49,'Data Annex'!$K$1:$AN$1,0)),\"\")","v":0.25202146720000002},{"$f":"IFERROR(INDEX('Data Annex'!$K$1:$AN$1998,MATCH(Sovereigns!M$48&\"|\"&Sovereigns!$B71,'Data Annex'!$K$1:$K$1998,0),MATCH(Sovereigns!M$49,'Data Annex'!$K$1:$AN$1,0)),\"\")","v":0.2260599613},{"$f":"IFERROR(INDEX('Data Annex'!$K$1:$AN$1998,MATCH(Sovereigns!N$48&\"|\"&Sovereigns!$B71,'Data Annex'!$K$1:$K$1998,0),MATCH(Sovereigns!N$49,'Data Annex'!$K$1:$AN$1,0)),\"\")","v":0.14545916640000001},{"$f":"IFERROR(INDEX('Data Annex'!$K$1:$AN$1998,MATCH(Sovereigns!O$48&\"|\"&Sovereigns!$B71,'Data Annex'!$K$1:$K$1998,0),MATCH(Sovereigns!O$49,'Data Annex'!$K$1:$AN$1,0)),\"\")","v":0.15991557679999999}]
[19,"LT",null,"LT",null,{"$f":"IFERROR(INDEX('Data Annex'!$K$1:$AN$1998,MATCH(Sovereigns!F$48&\"|\"&Sovereigns!$B72,'Data Annex'!$K$1:$K$1998,0),MATCH(Sovereigns!F$49,'Data Annex'!$K$1:$AN$1,0)),\"\")","v":0.12702718039999999},{"$f":"IFERROR(INDEX('Data Annex'!$K$1:$AN$1998,MATCH(Sovereigns!G$48&\"|\"&Sovereigns!$B72,'Data Annex'!$K$1:$K$1998,0),MATCH(Sovereigns!G$49,'Data Annex'!$K$1:$AN$1,0)),\"\")","v":0.23355178670000001},{"$f":"IFERROR(INDEX('Data Annex'!$K$1:$AN$1998,MATCH(Sovereigns!H$48&\"|\"&Sovereigns!$B72,'Data Annex'!$K$1:$K$1998,0),MATCH(Sovereigns!H$49,'Data Annex'!$K$1:$AN$1,0)),\"\")","v":0.1105908872},{"$f":"IFERROR(INDEX('Data Annex'!$K$1:$AN$1998,MATCH(Sovereigns!I$48&\"|\"&Sovereigns!$B72,'Data Annex'!$K$1:$K$1998,0),MATCH(Sovereigns!I$49,'Data Annex'!$K$1:$AN$1,0)),\"\")","v":5.64807924E-2},{"$f":"IFERROR(INDEX('Data Annex'!$K$1:$AN$1998,MATCH(Sovereigns!J$48&\"|\"&Sovereigns!$B72,'Data Annex'!$K$1:$K$1998,0),MATCH(Sovereigns!J$49,'Data Annex'!$K$1:$AN$1,0)),\"\")","v":0.6747483742},{"$f":"IFERROR(INDEX('Data Annex'!$K$1:$AN$1998,MATCH(Sovereigns!K$48&\"|\"&Sovereigns!$B72,'Data Annex'!$K$1:$K$1998,0),MATCH(Sovereigns!K$49,'Data Annex'!$K$1:$AN$1,0)),\"\")","v":0.65090177049999998},{"$f":"IFERROR(INDEX('Data Annex'!$K$1:$AN$1998,MATCH(Sovereigns!L$48&\"|\"&Sovereigns!$B72,'Data Annex'!$K$1:$K$1998,0),MATCH(Sovereigns!L$49,'Data Annex'!$K$1:$AN$1,0)),\"\")","v":8.3657333400000006E-2},{"$f":"IFERROR(INDEX('Data Annex'!$K$1:$AN$1998,MATCH(Sovereigns!M$48&\"|\"&Sovereigns!$B72,'Data Annex'!$K$1:$K$1998,0),MATCH(Sovereigns!M$49,'Data Annex'!$K$1:$AN$1,0)),\"\")","v":5.7637406799999999E-2},{"$f":"IFERROR(INDEX('Data Annex'!$K$1:$AN$1998,MATCH(Sovereigns!N$48&\"|\"&Sovereigns!$B72,'Data Annex'!$K$1:$K$1998,0),MATCH(Sovereigns!N$49,'Data Annex'!$K$1:$AN$1,0)),\"\")","v":3.9762247000000002E-3},{"$f":"IFERROR(INDEX('Data Annex'!$K$1:$AN$1998,MATCH(Sovereigns!O$48&\"|\"&Sovereigns!$B72,'Data Annex'!$K$1:$K$1998,0),MATCH(Sovereigns!O$49,'Data Annex'!$K$1:$AN$1,0)),\"\")","v":1.4282436E-3}]
[20,"LU",null,"LU",null,{"$f":"IFERROR(INDEX('Data Annex'!$K$1:$AN$1998,MATCH(Sovereigns!F$48&\"|\"&Sovereigns!$B73,'Data Annex'!$K$1:$K$1998,0),MATCH(Sovereigns!F$49,'Data Annex'!$K$1:$AN$1,0)),\"\")","v":5.95018883E-2},{"$f":"IFERROR(INDEX('Data Annex'!$K$1:$AN$1998,MATCH(Sovereigns!G$48&\"|\"&Sovereigns!$B73,'Data Annex'!$K$1:$K$1998,0),MATCH(Sovereigns!G$49,'Data Annex'!$K$1:$AN$1,0)),\"\")","v":9.2623265600000004E-2},{"$f":"IFERROR(INDEX('Data Annex'!$K$1:$AN$1998,MATCH(Sovereigns!H$48&\"|\"&Sovereigns!$B73,'Data Annex'!$K$1:$K$1998,0),MATCH(Sovereigns!H$49,'Data Annex'!$K$1:$AN$1,0)),\"\")","v":0.11537034879999999},{"$f":"IFERROR(INDEX('Data Annex'!$K$1:$AN$1998,MATCH(Sovereigns!I$48&\"|\"&Sovereigns!$B73,'Data Annex'!$K$1:$K$1998,0),MATCH(Sovereigns!I$49,'Data Annex'!$K$1:$AN$1,0)),\"\")","v":6.5401788200000005E-2},{"$f":"IFERROR(INDEX('Data Annex'!$K$1:$AN$1998,MATCH(Sovereigns!J$48&\"|\"&Sovereigns!$B73,'Data Annex'!$K$1:$K$1998,0),MATCH(Sovereigns!J$49,'Data Annex'!$K$1:$AN$1,0)),\"\")","v":0.44727197489999998},{"$f":"IFERROR(INDEX('Data Annex'!$K$1:$AN$1998,MATCH(Sovereigns!K$48&\"|\"&Sovereigns!$B73,'Data Annex'!$K$1:$K$1998,0),MATCH(Sovereigns!K$49,'Data Annex'!$K$1:$AN$1,0)),\"\")","v":0.49348227950000001},{"$f":"IFERROR(INDEX('Data Annex'!$K$1:$AN$1998,MATCH(Sovereigns!L$48&\"|\"&Sovereigns!$B73,'Data Annex'!$K$1:$K$1998,0),MATCH(Sovereigns!L$49,'Data Annex'!$K$1:$AN$1,0)),\"\")","v":0.32432148929999999},{"$f":"IFERROR(INDEX('Data Annex'!$K$1:$AN$1998,MATCH(Sovereigns!M$48&\"|\"&Sovereigns!$B73,'Data Annex'!$K$1:$K$1998,0),MATCH(Sovereigns!M$49,'Data Annex'!$K$1:$AN$1,0)),\"\")","v":0.30276131179999999},{"$f":"IFERROR(INDEX('Data Annex'!$K$1:$AN$1998,MATCH(Sovereigns!N$48&\"|\"&Sovereigns!$B73,'Data Annex'!$K$1:$K$1998,0),MATCH(Sovereigns!N$49,'Data Annex'!$K$1:$AN$1,0)),\"\")","v":5.3534298799999998E-2},{"$f":"IFERROR(INDEX('Data Annex'!$K$1:$AN$1998,MATCH(Sovereigns!O$48&\"|\"&Sovereigns!$B73,'Data Annex'!$K$1:$K$1998,0),MATCH(Sovereigns!O$49,'Data Annex'!$K$1:$AN$1,0)),\"\")","v":4.57313549E-2}]
[21,"LV",null,"LV",null,{"$f":"IFERROR(INDEX('Data Annex'!$K$1:$AN$1998,MATCH(Sovereigns!F$48&\"|\"&Sovereigns!$B74,'Data Annex'!$K$1:$K$1998,0),MATCH(Sovereigns!F$49,'Data Annex'!$K$1:$AN$1,0)),\"\")","v":2.3803238399999999E-2},{"$f":"IFERROR(INDEX('Data Annex'!$K$1:$AN$1998,MATCH(Sovereigns!G$48&\"|\"&Sovereigns!$B74,'Data Annex'!$K$1:$K$1998,0),MATCH(Sovereigns!G$49,'Data Annex'!$K$1:$AN$1,0)),\"\")","v":6.7832069100000003E-2},{"$f":"IFERROR(INDEX('Data Annex'!$K$1:$AN$1998,MATCH(Sovereigns!H$48&\"|\"&Sovereigns!$B74,'Data Annex'!$K$1:$K$1998,0),MATCH(Sovereigns!H$49,'Data Annex'!$K$1:$AN$1,0)),\"\")","v":0.14193217329999999},{"$f":"IFERROR(INDEX('Data Annex'!$K$1:$AN$1998,MATCH(Sovereigns!I$48&\"|\"&Sovereigns!$B74,'Data Annex'!$K$1:$K$1998,0),MATCH(Sovereigns!I$49,'Data Annex'!$K$1:$AN$1,0)),\"\")","v":4.93663373E-2},{"$f":"IFERROR(INDEX('Data Annex'!$K$1:$AN$1998,MATCH(Sovereigns!J$48&\"|\"&Sovereigns!$B74,'Data Annex'!$K$1:$K$1998,0),MATCH(Sovereigns!J$49,'Data Annex'!$K$1:$AN$1,0)),\"\")","v":0.64731526039999998},{"$f":"IFERROR(INDEX('Data Annex'!$K$1:$AN$1998,MATCH(Sovereigns!K$48&\"|\"&Sovereigns!$B74,'Data Annex'!$K$1:$K$1998,0),MATCH(Sovereigns!K$49,'Data Annex'!$K$1:$AN$1,0)),\"\")","v":0.69090701180000003},{"$f":"IFERROR(INDEX('Data Annex'!$K$1:$AN$1998,MATCH(Sovereigns!L$48&\"|\"&Sovereigns!$B74,'Data Annex'!$K$1:$K$1998,0),MATCH(Sovereigns!L$49,'Data Annex'!$K$1:$AN$1,0)),\"\")","v":0.15007624659999999},{"$f":"IFERROR(INDEX('Data Annex'!$K$1:$AN$1998,MATCH(Sovereigns!M$48&\"|\"&Sovereigns!$B74,'Data Annex'!$K$1:$K$1998,0),MATCH(Sovereigns!M$49,'Data Annex'!$K$1:$AN$1,0)),\"\")","v":0.1651410589},{"$f":"IFERROR(INDEX('Data Annex'!$K$1:$AN$1998,MATCH(Sovereigns!N$48&\"|\"&Sovereigns!$B74,'Data Annex'!$K$1:$K$1998,0),MATCH(Sovereigns!N$49,'Data Annex'!$K$1:$AN$1,0)),\"\")","v":3.6873081199999998E-2},{"$f":"IFERROR(INDEX('Data Annex'!$K$1:$AN$1998,MATCH(Sovereigns!O$48&\"|\"&Sovereigns!$B74,'Data Annex'!$K$1:$K$1998,0),MATCH(Sovereigns!O$49,'Data Annex'!$K$1:$AN$1,0)),\"\")","v":2.67535229E-2}]
[22,"MT",null,"MT",null,{"$f":"IFERROR(INDEX('Data Annex'!$K$1:$AN$1998,MATCH(Sovereigns!F$48&\"|\"&Sovereigns!$B75,'Data Annex'!$K$1:$K$1998,0),MATCH(Sovereigns!F$49,'Data Annex'!$K$1:$AN$1,0)),\"\")","v":0.252043305},{"$f":"IFERROR(INDEX('Data Annex'!$K$1:$AN$1998,MATCH(Sovereigns!G$48&\"|\"&Sovereigns!$B75,'Data Annex'!$K$1:$K$1998,0),MATCH(Sovereigns!G$49,'Data Annex'!$K$1:$AN$1,0)),\"\")","v":7.68895156E-2},{"$f":"IFERROR(INDEX('Data Annex'!$K$1:$AN$1998,MATCH(Sovereigns!H$48&\"|\"&Sovereigns!$B75,'Data Annex'!$K$1:$K$1998,0),MATCH(Sovereigns!H$49,'Data Annex'!$K$1:$AN$1,0)),\"\")","v":0.11146651589999999},{"$f":"IFERROR(INDEX('Data Annex'!$K$1:$AN$1998,MATCH(Sovereigns!I$48&\"|\"&Sovereigns!$B75,'Data Annex'!$K$1:$K$1998,0),MATCH(Sovereigns!I$49,'Data Annex'!$K$1:$AN$1,0)),\"\")","v":0.12813009289999999},{"$f":"IFERROR(INDEX('Data Annex'!$K$1:$AN$1998,MATCH(Sovereigns!J$48&\"|\"&Sovereigns!$B75,'Data Annex'!$K$1:$K$1998,0),MATCH(Sovereigns!J$49,'Data Annex'!$K$1:$AN$1,0)),\"\")","v":0.29542883260000002},{"$f":"IFERROR(INDEX('Data Annex'!$K$1:$AN$1998,MATCH(Sovereigns!K$48&\"|\"&Sovereigns!$B75,'Data Annex'!$K$1:$K$1998,0),MATCH(Sovereigns!K$49,'Data Annex'!$K$1:$AN$1,0)),\"\")","v":0.44019280910000003},{"$f":"IFERROR(INDEX('Data Annex'!$K$1:$AN$1998,MATCH(Sovereigns!L$48&\"|\"&Sovereigns!$B75,'Data Annex'!$K$1:$K$1998,0),MATCH(Sovereigns!L$49,'Data Annex'!$K$1:$AN$1,0)),\"\")","v":0.3338939695},{"$f":"IFERROR(INDEX('Data Annex'!$K$1:$AN$1998,MATCH(Sovereigns!M$48&\"|\"&Sovereigns!$B75,'Data Annex'!$K$1:$K$1998,0),MATCH(Sovereigns!M$49,'Data Annex'!$K$1:$AN$1,0)),\"\")","v":0.34642395609999999},{"$f":"IFERROR(INDEX('Data Annex'!$K$1:$AN$1998,MATCH(Sovereigns!N$48&\"|\"&Sovereigns!$B75,'Data Annex'!$K$1:$K$1998,0),MATCH(Sovereigns!N$49,'Data Annex'!$K$1:$AN$1,0)),\"\")","v":7.1673771000000004E-3},{"$f":"IFERROR(INDEX('Data Annex'!$K$1:$AN$1998,MATCH(Sovereigns!O$48&\"|\"&Sovereigns!$B75,'Data Annex'!$K$1:$K$1998,0),MATCH(Sovereigns!O$49,'Data Annex'!$K$1:$AN$1,0)),\"\")","v":8.3636263999999991E-3}]
[23,"NL",null,"NL",null,{"$f":"IFERROR(INDEX('Data Annex'!$K$1:$AN$1998,MATCH(Sovereigns!F$48&\"|\"&Sovereigns!$B76,'Data Annex'!$K$1:$K$1998,0),MATCH(Sovereigns!F$49,'Data Annex'!$K$1:$AN$1,0)),\"\")","v":7.0558609899999999E-2},{"$f":"IFERROR(INDEX('Data Annex'!$K$1:$AN$1998,MATCH(Sovereigns!G$48&\"|\"&Sovereigns!$B76,'Data Annex'!$K$1:$K$1998,0),MATCH(Sovereigns!G$49,'Data Annex'!$K$1:$AN$1,0)),\"\")","v":6.3004247999999999E-2},{"$f":"IFERROR(INDEX('Data Annex'!$K$1:$AN$1998,MATCH(Sovereigns!H$48&\"|\"&Sovereigns!$B76,'Data Annex'!$K$1:$K$1998,0),MATCH(Sovereigns!H$49,'Data Annex'!$K$1:$AN$1,0)),\"\")","v":0.12199130010000001},{"$f":"IFERROR(INDEX('Data Annex'!$K$1:$AN$1998,MATCH(Sovereigns!I$48&\"|\"&Sovereigns!$B76,'Data Annex'!$K$1:$K$1998,0),MATCH(Sovereigns!I$49,'Data Annex'!$K$1:$AN$1,0)),\"\")","v":0.101363968},{"$f":"IFERROR(INDEX('Data Annex'!$K$1:$AN$1998,MATCH(Sovereigns!J$48&\"|\"&Sovereigns!$B76,'Data Annex'!$K$1:$K$1998,0),MATCH(Sovereigns!J$49,'Data Annex'!$K$1:$AN$1,0)),\"\")","v":0.32330684580000002},{"$f":"IFERROR(INDEX('Data Annex'!$K$1:$AN$1998,MATCH(Sovereigns!K$48&\"|\"&Sovereigns!$B76,'Data Annex'!$K$1:$K$1998,0),MATCH(Sovereigns!K$49,'Data Annex'!$K$1:$AN$1,0)),\"\")","v":0.32469573819999997},{"$f":"IFERROR(INDEX('Data Annex'!$K$1:$AN$1998,MATCH(Sovereigns!L$48&\"|\"&Sovereigns!$B76,'Data Annex'!$K$1:$K$1998,0),MATCH(Sovereigns!L$49,'Data Annex'!$K$1:$AN$1,0)),\"\")","v":0.2106866641},{"$f":"IFERROR(INDEX('Data Annex'!$K$1:$AN$1998,MATCH(Sovereigns!M$48&\"|\"&Sovereigns!$B76,'Data Annex'!$K$1:$K$1998,0),MATCH(Sovereigns!M$49,'Data Annex'!$K$1:$AN$1,0)),\"\")","v":0.2196422163},{"$f":"IFERROR(INDEX('Data Annex'!$K$1:$AN$1998,MATCH(Sovereigns!N$48&\"|\"&Sovereigns!$B76,'Data Annex'!$K$1:$K$1998,0),MATCH(Sovereigns!N$49,'Data Annex'!$K$1:$AN$1,0)),\"\")","v":0.27345658020000002},{"$f":"IFERROR(INDEX('Data Annex'!$K$1:$AN$1998,MATCH(Sovereigns!O$48&\"|\"&Sovereigns!$B76,'Data Annex'!$K$1:$K$1998,0),MATCH(Sovereigns!O$49,'Data Annex'!$K$1:$AN$1,0)),\"\")","v":0.29129382949999999}]
[24,"NO",null,"NO",null,{"$f":"IFERROR(INDEX('Data Annex'!$K$1:$AN$1998,MATCH(Sovereigns!F$48&\"|\"&Sovereigns!$B77,'Data Annex'!$K$1:$K$1998,0),MATCH(Sovereigns!F$49,'Data Annex'!$K$1:$AN$1,0)),\"\")","v":0.29616096009999998},{"$f":"IFERROR(INDEX('Data Annex'!$K$1:$AN$1998,MATCH(Sovereigns!G$48&\"|\"&Sovereigns!$B77,'Data Annex'!$K$1:$K$1998,0),MATCH(Sovereigns!G$49,'Data Annex'!$K$1:$AN$1,0)),\"\")","v":0.18715995769999999},{"$f":"IFERROR(INDEX('Data Annex'!$K$1:$AN$1998,MATCH(Sovereigns!H$48&\"|\"&Sovereigns!$B77,'Data Annex'!$K$1:$K$1998,0),MATCH(Sovereigns!H$49,'Data Annex'!$K$1:$AN$1,0)),\"\")","v":7.7631024899999998E-2},{"$f":"IFERROR(INDEX('Data Annex'!$K$1:$AN$1998,MATCH(Sovereigns!I$48&\"|\"&Sovereigns!$B77,'Data Annex'!$K$1:$K$1998,0),MATCH(Sovereigns!I$49,'Data Annex'!$K$1:$AN$1,0)),\"\")","v":0.152350227},{"$f":"IFERROR(INDEX('Data Annex'!$K$1:$AN$1998,MATCH(Sovereigns!J$48&\"|\"&Sovereigns!$B77,'Data Annex'!$K$1:$K$1998,0),MATCH(Sovereigns!J$49,'Data Annex'!$K$1:$AN$1,0)),\"\")","v":0.35738336510000002},{"$f":"IFERROR(INDEX('Data Annex'!$K$1:$AN$1998,MATCH(Sovereigns!K$48&\"|\"&Sovereigns!$B77,'Data Annex'!$K$1:$K$1998,0),MATCH(Sovereigns!K$49,'Data Annex'!$K$1:$AN$1,0)),\"\")","v":0.4325561886},{"$f":"IFERROR(INDEX('Data Annex'!$K$1:$AN$1998,MATCH(Sovereigns!L$48&\"|\"&Sovereigns!$B77,'Data Annex'!$K$1:$K$1998,0),MATCH(Sovereigns!L$49,'Data Annex'!$K$1:$AN$1,0)),\"\")","v":8.7222701700000002E-2},{"$f":"IFERROR(INDEX('Data Annex'!$K$1:$AN$1998,MATCH(Sovereigns!M$48&\"|\"&Sovereigns!$B77,'Data Annex'!$K$1:$K$1998,0),MATCH(Sovereigns!M$49,'Data Annex'!$K$1:$AN$1,0)),\"\")","v":9.2915553200000001E-2},{"$f":"IFERROR(INDEX('Data Annex'!$K$1:$AN$1998,MATCH(Sovereigns!N$48&\"|\"&Sovereigns!$B77,'Data Annex'!$K$1:$K$1998,0),MATCH(Sovereigns!N$49,'Data Annex'!$K$1:$AN$1,0)),\"\")","v":0.18160194830000001},{"$f":"IFERROR(INDEX('Data Annex'!$K$1:$AN$1998,MATCH(Sovereigns!O$48&\"|\"&Sovereigns!$B77,'Data Annex'!$K$1:$K$1998,0),MATCH(Sovereigns!O$49,'Data Annex'!$K$1:$AN$1,0)),\"\")","v":0.13501807339999999}]
[25,"PL",null,"PL",null,{"$f":"IFERROR(INDEX('Data Annex'!$K$1:$AN$1998,MATCH(Sovereigns!F$48&\"|\"&Sovereigns!$B78,'Data Annex'!$K$1:$K$1998,0),MATCH(Sovereigns!F$49,'Data Annex'!$K$1:$AN$1,0)),\"\")","v":6.8810852300000003E-2},{"$f":"IFERROR(INDEX('Data Annex'!$K$1:$AN$1998,MATCH(Sovereigns!G$48&\"|\"&Sovereigns!$B78,'Data Annex'!$K$1:$K$1998,0),MATCH(Sovereigns!G$49,'Data Annex'!$K$1:$AN$1,0)),\"\")","v":6.2741313899999998E-2},{"$f":"IFERROR(INDEX('Data Annex'!$K$1:$AN$1998,MATCH(Sovereigns!H$48&\"|\"&Sovereigns!$B78,'Data Annex'!$K$1:$K$1998,0),MATCH(Sovereigns!H$49,'Data Annex'!$K$1:$AN$1,0)),\"\")","v":0.1016471226},{"$f":"IFERROR(INDEX('Data Annex'!$K$1:$AN$1998,MATCH(Sovereigns!I$48&\"|\"&Sovereigns!$B78,'Data Annex'!$K$1:$K$1998,0),MATCH(Sovereigns!I$49,'Data Annex'!$K$1:$AN$1,0)),\"\")","v":0.1129806835},{"$f":"IFERROR(INDEX('Data Annex'!$K$1:$AN$1998,MATCH(Sovereigns!J$48&\"|\"&Sovereigns!$B78,'Data Annex'!$K$1:$K$1998,0),MATCH(Sovereigns!J$49,'Data Annex'!$K$1:$AN$1,0)),\"\")","v":0.54570914690000005},{"$f":"IFERROR(INDEX('Data Annex'!$K$1:$AN$1998,MATCH(Sovereigns!K$48&\"|\"&Sovereigns!$B78,'Data Annex'!$K$1:$K$1998,0),MATCH(Sovereigns!K$49,'Data Annex'!$K$1:$AN$1,0)),\"\")","v":0.55210938919999997},{"$f":"IFERROR(INDEX('Data Annex'!$K$1:$AN$1998,MATCH(Sovereigns!L$48&\"|\"&Sovereigns!$B78,'Data Annex'!$K$1:$K$1998,0),MATCH(Sovereigns!L$49,'Data Annex'!$K$1:$AN$1,0)),\"\")","v":0.25083920059999998},{"$f":"IFERROR(INDEX('Data Annex'!$K$1:$AN$1998,MATCH(Sovereigns!M$48&\"|\"&Sovereigns!$B78,'Data Annex'!$K$1:$K$1998,0),MATCH(Sovereigns!M$49,'Data Annex'!$K$1:$AN$1,0)),\"\")","v":0.2387847092},{"$f":"IFERROR(INDEX('Data Annex'!$K$1:$AN$1998,MATCH(Sovereigns!N$48&\"|\"&Sovereigns!$B78,'Data Annex'!$K$1:$K$1998,0),MATCH(Sovereigns!N$49,'Data Annex'!$K$1:$AN$1,0)),\"\")","v":3.2993677700000001E-2},{"$f":"IFERROR(INDEX('Data Annex'!$K$1:$AN$1998,MATCH(Sovereigns!O$48&\"|\"&Sovereigns!$B78,'Data Annex'!$K$1:$K$1998,0),MATCH(Sovereigns!O$49,'Data Annex'!$K$1:$AN$1,0)),\"\")","v":3.3383904300000003E-2}]
[26,"PT",null,"PT",null,{"$f":"IFERROR(INDEX('Data Annex'!$K$1:$AN$1998,MATCH(Sovereigns!F$48&\"|\"&Sovereigns!$B79,'Data Annex'!$K$1:$K$1998,0),MATCH(Sovereigns!F$49,'Data Annex'!$K$1:$AN$1,0)),\"\")","v":0.22595800639999999},{"$f":"IFERROR(INDEX('Data Annex'!$K$1:$AN$1998,MATCH(Sovereigns!G$48&\"|\"&Sovereigns!$B79,'Data Annex'!$K$1:$K$1998,0),MATCH(Sovereigns!G$49,'Data Annex'!$K$1:$AN$1,0)),\"\")","v":0.2296641442},{"$f":"IFERROR(INDEX('Data Annex'!$K$1:$AN$1998,MATCH(Sovereigns!H$48&\"|\"&Sovereigns!$B79,'Data Annex'!$K$1:$K$1998,0),MATCH(Sovereigns!H$49,'Data Annex'!$K$1:$AN$1,0)),\"\")","v":0.26753313969999998},{"$f":"IFERROR(INDEX('Data Annex'!$K$1:$AN$1998,MATCH(Sovereigns!I$48&\"|\"&Sovereigns!$B79,'Data Annex'!$K$1:$K$1998,0),MATCH(Sovereigns!I$49,'Data Annex'!$K$1:$AN$1,0)),\"\")","v":0.26588100329999997},{"$f":"IFERROR(INDEX('Data Annex'!$K$1:$AN$1998,MATCH(Sovereigns!J$48&\"|\"&Sovereigns!$B79,'Data Annex'!$K$1:$K$1998,0),MATCH(Sovereigns!J$49,'Data Annex'!$K$1:$AN$1,0)),\"\")","v":0.16370569809999999},{"$f":"IFERROR(INDEX('Data Annex'!$K$1:$AN$1998,MATCH(Sovereigns!K$48&\"|\"&Sovereigns!$B79,'Data Annex'!$K$1:$K$1998,0),MATCH(Sovereigns!K$49,'Data Annex'!$K$1:$AN$1,0)),\"\")","v":0.1557182775},{"$f":"IFERROR(INDEX('Data Annex'!$K$1:$AN$1998,MATCH(Sovereigns!L$48&\"|\"&Sovereigns!$B79,'Data Annex'!$K$1:$K$1998,0),MATCH(Sovereigns!L$49,'Data Annex'!$K$1:$AN$1,0)),\"\")","v":0.244899849},{"$f":"IFERROR(INDEX('Data Annex'!$K$1:$AN$1998,MATCH(Sovereigns!M$48&\"|\"&Sovereigns!$B79,'Data Annex'!$K$1:$K$1998,0),MATCH(Sovereigns!M$49,'Data Annex'!$K$1:$AN$1,0)),\"\")","v":0.25135633060000001},{"$f":"IFERROR(INDEX('Data Annex'!$K$1:$AN$1998,MATCH(Sovereigns!N$48&\"|\"&Sovereigns!$B79,'Data Annex'!$K$1:$K$1998,0),MATCH(Sovereigns!N$49,'Data Annex'!$K$1:$AN$1,0)),\"\")","v":9.7903306800000006E-2},{"$f":"IFERROR(INDEX('Data Annex'!$K$1:$AN$1998,MATCH(Sovereigns!O$48&\"|\"&Sovereigns!$B79,'Data Annex'!$K$1:$K$1998,0),MATCH(Sovereigns!O$49,'Data Annex'!$K$1:$AN$1,0)),\"\")","v":9.7380244399999996E-2}]
[27,"RO",null,"RO",null,{"$f":"IFERROR(INDEX('Data Annex'!$K$1:$AN$1998,MATCH(Sovereigns!F$48&\"|\"&Sovereigns!$B80,'Data Annex'!$K$1:$K$1998,0),MATCH(Sovereigns!F$49,'Data Annex'!$K$1:$AN$1,0)),\"\")","v":0.2087400687},{"$f":"IFERROR(INDEX('Data Annex'!$K$1:$AN$1998,MATCH(Sovereigns!G$48&\"|\"&Sovereigns!$B80,'Data Annex'!$K$1:$K$1998,0),MATCH(Sovereigns!G$49,'Data Annex'!$K$1:$AN$1,0)),\"\")","v":0.27476401839999998},{"$f":"IFERROR(INDEX('Data Annex'!$K$1:$AN$1998,MATCH(Sovereigns!H$48&\"|\"&Sovereigns!$B80,'Data Annex'!$K$1:$K$1998,0),MATCH(Sovereigns!H$49,'Data Annex'!$K$1:$AN$1,0)),\"\")","v":0.1620065581},{"$f":"IFERROR(INDEX('Data Annex'!$K$1:$AN$1998,MATCH(Sovereigns!I$48&\"|\"&Sovereigns!$B80,'Data Annex'!$K$1:$K$1998,0),MATCH(Sovereigns!I$49,'Data Annex'!$K$1:$AN$1,0)),\"\")","v":8.5986001699999995E-2},{"$f":"IFERROR(INDEX('Data Annex'!$K$1:$AN$1998,MATCH(Sovereigns!J$48&\"|\"&Sovereigns!$B80,'Data Annex'!$K$1:$K$1998,0),MATCH(Sovereigns!J$49,'Data Annex'!$K$1:$AN$1,0)),\"\")","v":0.39814464919999998},{"$f":"IFERROR(INDEX('Data Annex'!$K$1:$AN$1998,MATCH(Sovereigns!K$48&\"|\"&Sovereigns!$B80,'Data Annex'!$K$1:$K$1998,0),MATCH(Sovereigns!K$49,'Data Annex'!$K$1:$AN$1,0)),\"\")","v":0.46530533149999997},{"$f":"IFERROR(INDEX('Data Annex'!$K$1:$AN$1998,MATCH(Sovereigns!L$48&\"|\"&Sovereigns!$B80,'Data Annex'!$K$1:$K$1998,0),MATCH(Sovereigns!L$49,'Data Annex'!$K$1:$AN$1,0)),\"\")","v":0.16864047679999999},{"$f":"IFERROR(INDEX('Data Annex'!$K$1:$AN$1998,MATCH(Sovereigns!M$48&\"|\"&Sovereigns!$B80,'Data Annex'!$K$1:$K$1998,0),MATCH(Sovereigns!M$49,'Data Annex'!$K$1:$AN$1,0)),\"\")","v":0.122482824},{"$f":"IFERROR(INDEX('Data Annex'!$K$1:$AN$1998,MATCH(Sovereigns!N$48&\"|\"&Sovereigns!$B80,'Data Annex'!$K$1:$K$1998,0),MATCH(Sovereigns!N$49,'Data Annex'!$K$1:$AN$1,0)),\"\")","v":6.2468247300000002E-2},{"$f":"IFERROR(INDEX('Data Annex'!$K$1:$AN$1998,MATCH(Sovereigns!O$48&\"|\"&Sovereigns!$B80,'Data Annex'!$K$1:$K$1998,0),MATCH(Sovereigns!O$49,'Data Annex'!$K$1:$AN$1,0)),\"\")","v":5.1461824400000002E-2}]
[28,"SE",null,"SE",null,{"$f":"IFERROR(INDEX('Data Annex'!$K$1:$AN$1998,MATCH(Sovereigns!F$48&\"|\"&Sovereigns!$B81,'Data Annex'!$K$1:$K$1998,0),MATCH(Sovereigns!F$49,'Data Annex'!$K$1:$AN$1,0)),\"\")","v":0.27195718600000002},{"$f":"IFERROR(INDEX('Data Annex'!$K$1:$AN$1998,MATCH(Sovereigns!G$48&\"|\"&Sovereigns!$B81,'Data Annex'!$K$1:$K$1998,0),MATCH(Sovereigns!G$49,'Data Annex'!$K$1:$AN$1,0)),\"\")","v":0.28198124120000001},{"$f":"IFERROR(INDEX('Data Annex'!$K$1:$AN$1998,MATCH(Sovereigns!H$48&\"|\"&Sovereigns!$B81,'Data Annex'!$K$1:$K$1998,0),MATCH(Sovereigns!H$49,'Data Annex'!$K$1:$AN$1,0)),\"\")","v":0.1749585793},{"$f":"IFERROR(INDEX('Data Annex'!$K$1:$AN$1998,MATCH(Sovereigns!I$48&\"|\"&Sovereigns!$B81,'Data Annex'!$K$1:$K$1998,0),MATCH(Sovereigns!I$49,'Data Annex'!$K$1:$AN$1,0)),\"\")","v":0.164973388},{"$f":"IFERROR(INDEX('Data Annex'!$K$1:$AN$1998,MATCH(Sovereigns!J$48&\"|\"&Sovereigns!$B81,'Data Annex'!$K$1:$K$1998,0),MATCH(Sovereigns!J$49,'Data Annex'!$K$1:$AN$1,0)),\"\")","v":0.41941336369999999},{"$f":"IFERROR(INDEX('Data Annex'!$K$1:$AN$1998,MATCH(Sovereigns!K$48&\"|\"&Sovereigns!$B81,'Data Annex'!$K$1:$K$1998,0),MATCH(Sovereigns!K$49,'Data Annex'!$K$1:$AN$1,0)),\"\")","v":0.40052663799999999},{"$f":"IFERROR(INDEX('Data Annex'!$K$1:$AN$1998,MATCH(Sovereigns!L$48&\"|\"&Sovereigns!$B81,'Data Annex'!$K$1:$K$1998,0),MATCH(Sovereigns!L$49,'Data Annex'!$K$1:$AN$1,0)),\"\")","v":8.33583304E-2},{"$f":"IFERROR(INDEX('Data Annex'!$K$1:$AN$1998,MATCH(Sovereigns!M$48&\"|\"&Sovereigns!$B81,'Data Annex'!$K$1:$K$1998,0),MATCH(Sovereigns!M$49,'Data Annex'!$K$1:$AN$1,0)),\"\")","v":9.9193687399999994E-2},{"$f":"IFERROR(INDEX('Data Annex'!$K$1:$AN$1998,MATCH(Sovereigns!N$48&\"|\"&Sovereigns!$B81,'Data Annex'!$K$1:$K$1998,0),MATCH(Sovereigns!N$49,'Data Annex'!$K$1:$AN$1,0)),\"\")","v":5.0312540500000003E-2},{"$f":"IFERROR(INDEX('Data Annex'!$K$1:$AN$1998,MATCH(Sovereigns!O$48&\"|\"&Sovereigns!$B81,'Data Annex'!$K$1:$K$1998,0),MATCH(Sovereigns!O$49,'Data Annex'!$K$1:$AN$1,0)),\"\")","v":5.33250454E-2}]
[29,"SI",null,"SI",null,{"$f":"IFERROR(INDEX('Data Annex'!$K$1:$AN$1998,MATCH(Sovereigns!F$48&\"|\"&Sovereigns!$B82,'Data Annex'!$K$1:$K$1998,0),MATCH(Sovereigns!F$49,'Data Annex'!$K$1:$AN$1,0)),\"\")","v":6.5070667499999998E-2},{"$f":"IFERROR(INDEX('Data Annex'!$K$1:$AN$1998,MATCH(Sovereigns!G$48&\"|\"&Sovereigns!$B82,'Data Annex'!$K$1:$K$1998,0),MATCH(Sovereigns!G$49,'Data Annex'!$K$1:$AN$1,0)),\"\")","v":7.7406710899999995E-2},{"$f":"IFERROR(INDEX('Data Annex'!$K$1:$AN$1998,MATCH(Sovereigns!H$48&\"|\"&Sovereigns!$B82,'Data Annex'!$K$1:$K$1998,0),MATCH(Sovereigns!H$49,'Data Annex'!$K$1:$AN$1,0)),\"\")","v":0.161561652},{"$f":"IFERROR(INDEX('Data Annex'!$K$1:$AN$1998,MATCH(Sovereigns!I$48&\"|\"&Sovereigns!$B82,'Data Annex'!$K$1:$K$1998,0),MATCH(Sovereigns!I$49,'Data Annex'!$K$1:$AN$1,0)),\"\")","v":9.8802706300000001E-2},{"$f":"IFERROR(INDEX('Data Annex'!$K$1:$AN$1998,MATCH(Sovereigns!J$48&\"|\"&Sovereigns!$B82,'Data Annex'!$K$1:$K$1998,0),MATCH(Sovereigns!J$49,'Data Annex'!$K$1:$AN$1,0)),\"\")","v":0.41752202939999999},{"$f":"IFERROR(INDEX('Data Annex'!$K$1:$AN$1998,MATCH(Sovereigns!K$48&\"|\"&Sovereigns!$B82,'Data Annex'!$K$1:$K$1998,0),MATCH(Sovereigns!K$49,'Data Annex'!$K$1:$AN$1,0)),\"\")","v":0.49164262959999999},{"$f":"IFERROR(INDEX('Data Annex'!$K$1:$AN$1998,MATCH(Sovereigns!L$48&\"|\"&Sovereigns!$B82,'Data Annex'!$K$1:$K$1998,0),MATCH(Sovereigns!L$49,'Data Annex'!$K$1:$AN$1,0)),\"\")","v":0.2297909769},{"$f":"IFERROR(INDEX('Data Annex'!$K$1:$AN$1998,MATCH(Sovereigns!M$48&\"|\"&Sovereigns!$B82,'Data Annex'!$K$1:$K$1998,0),MATCH(Sovereigns!M$49,'Data Annex'!$K$1:$AN$1,0)),\"\")","v":0.2270513096},{"$f":"IFERROR(INDEX('Data Annex'!$K$1:$AN$1998,MATCH(Sovereigns!N$48&\"|\"&Sovereigns!$B82,'Data Annex'!$K$1:$K$1998,0),MATCH(Sovereigns!N$49,'Data Annex'!$K$1:$AN$1,0)),\"\")","v":0.12605467419999999},{"$f":"IFERROR(INDEX('Data Annex'!$K$1:$AN$1998,MATCH(Sovereigns!O$48&\"|\"&Sovereigns!$B82,'Data Annex'!$K$1:$K$1998,0),MATCH(Sovereigns!O$49,'Data Annex'!$K$1:$AN$1,0)),\"\")","v":0.1050966436}]
[30,"SK",null,"SK",null,{"$f":"IFERROR(INDEX('Data Annex'!$K$1:$AN$1998,MATCH(Sovereigns!F$48&\"|\"&Sovereigns!$B83,'Data Annex'!$K$1:$K$1998,0),MATCH(Sovereigns!F$49,'Data Annex'!$K$1:$AN$1,0)),\"\")","v":4.2840062700000001E-2},{"$f":"IFERROR(INDEX('Data Annex'!$K$1:$AN$1998,MATCH(Sovereigns!G$48&\"|\"&Sovereigns!$B83,'Data Annex'!$K$1:$K$1998,0),MATCH(Sovereigns!G$49,'Data Annex'!$K$1:$AN$1,0)),\"\")","v":7.1337657400000004E-2},{"$f":"IFERROR(INDEX('Data Annex'!$K$1:$AN$1998,MATCH(Sovereigns!H$48&\"|\"&Sovereigns!$B83,'Data Annex'!$K$1:$K$1998,0),MATCH(Sovereigns!H$49,'Data Annex'!$K$1:$AN$1,0)),\"\")","v":0.1375621256},{"$f":"IFERROR(INDEX('Data Annex'!$K$1:$AN$1998,MATCH(Sovereigns!I$48&\"|\"&Sovereigns!$B83,'Data Annex'!$K$1:$K$1998,0),MATCH(Sovereigns!I$49,'Data Annex'!$K$1:$AN$1,0)),\"\")","v":0.1171033812},{"$f":"IFERROR(INDEX('Data Annex'!$K$1:$AN$1998,MATCH(Sovereigns!J$48&\"|\"&Sovereigns!$B83,'Data Annex'!$K$1:$K$1998,0),MATCH(Sovereigns!J$49,'Data Annex'!$K$1:$AN$1,0)),\"\")","v":0.21060367269999999},{"$f":"IFERROR(INDEX('Data Annex'!$K$1:$AN$1998,MATCH(Sovereigns!K$48&\"|\"&Sovereigns!$B83,'Data Annex'!$K$1:$K$1998,0),MATCH(Sovereigns!K$49,'Data Annex'!$K$1:$AN$1,0)),\"\")","v":0.24856687299999999},{"$f":"IFERROR(INDEX('Data Annex'!$K$1:$AN$1998,MATCH(Sovereigns!L$48&\"|\"&Sovereigns!$B83,'Data Annex'!$K$1:$K$1998,0),MATCH(Sovereigns!L$49,'Data Annex'!$K$1:$AN$1,0)),\"\")","v":0.42713703469999997},{"$f":"IFERROR(INDEX('Data Annex'!$K$1:$AN$1998,MATCH(Sovereigns!M$48&\"|\"&Sovereigns!$B83,'Data Annex'!$K$1:$K$1998,0),MATCH(Sovereigns!M$49,'Data Annex'!$K$1:$AN$1,0)),\"\")","v":0.48563132920000002},{"$f":"IFERROR(INDEX('Data Annex'!$K$1:$AN$1998,MATCH(Sovereigns!N$48&\"|\"&Sovereigns!$B83,'Data Annex'!$K$1:$K$1998,0),MATCH(Sovereigns!N$49,'Data Annex'!$K$1:$AN$1,0)),\"\")","v":0.18185710429999999},{"$f":"IFERROR(INDEX('Data Annex'!$K$1:$AN$1998,MATCH(Sovereigns!O$48&\"|\"&Sovereigns!$B83,'Data Annex'!$K$1:$K$1998,0),MATCH(Sovereigns!O$49,'Data Annex'!$K$1:$AN$1,0)),\"\")","v":7.7360759200000004E-2}]
[99,"EU",null,"EU/EEA",null,{"$f":"IFERROR(INDEX('Data Annex'!$K$1:$AN$1998,MATCH(Sovereigns!F$48&\"|\"&Sovereigns!$B84,'Data Annex'!$K$1:$K$1998,0),MATCH(Sovereigns!F$49,'Data Annex'!$K$1:$AN$1,0)),\"\")","v":0.11669271270000001},{"$f":"IFERROR(INDEX('Data Annex'!$K$1:$AN$1998,MATCH(Sovereigns!G$48&\"|\"&Sovereigns!$B84,'Data Annex'!$K$1:$K$1998,0),MATCH(Sovereigns!G$49,'Data Annex'!$K$1:$AN$1,0)),\"\")","v":0.11524108769999999},{"$f":"IFERROR(INDEX('Data Annex'!$K$1:$AN$1998,MATCH(Sovereigns!H$48&\"|\"&Sovereigns!$B84,'Data Annex'!$K$1:$K$1998,0),MATCH(Sovereigns!H$49,'Data Annex'!$K$1:$AN$1,0)),\"\")","v":0.1300134963},{"$f":"IFERROR(INDEX('Data Annex'!$K$1:$AN$1998,MATCH(Sovereigns!I$48&\"|\"&Sovereigns!$B84,'Data Annex'!$K$1:$K$1998,0),MATCH(Sovereigns!I$49,'Data Annex'!$K$1:$AN$1,0)),\"\")","v":0.1033614118},{"$f":"IFERROR(INDEX('Data Annex'!$K$1:$AN$1998,MATCH(Sovereigns!J$48&\"|\"&Sovereigns!$B84,'Data Annex'!$K$1:$K$1998,0),MATCH(Sovereigns!J$49,'Data Annex'!$K$1:$AN$1,0)),\"\")","v":0.32161688970000002},{"$f":"IFERROR(INDEX('Data Annex'!$K$1:$AN$1998,MATCH(Sovereigns!K$48&\"|\"&Sovereigns!$B84,'Data Annex'!$K$1:$K$1998,0),MATCH(Sovereigns!K$49,'Data Annex'!$K$1:$AN$1,0)),\"\")","v":0.34757390849999997},{"$f":"IFERROR(INDEX('Data Annex'!$K$1:$AN$1998,MATCH(Sovereigns!L$48&\"|\"&Sovereigns!$B84,'Data Annex'!$K$1:$K$1998,0),MATCH(Sovereigns!L$49,'Data Annex'!$K$1:$AN$1,0)),\"\")","v":0.21403650860000001},{"$f":"IFERROR(INDEX('Data Annex'!$K$1:$AN$1998,MATCH(Sovereigns!M$48&\"|\"&Sovereigns!$B84,'Data Annex'!$K$1:$K$1998,0),MATCH(Sovereigns!M$49,'Data Annex'!$K$1:$AN$1,0)),\"\")","v":0.2154090816},{"$f":"IFERROR(INDEX('Data Annex'!$K$1:$AN$1998,MATCH(Sovereigns!N$48&\"|\"&Sovereigns!$B84,'Data Annex'!$K$1:$K$1998,0),MATCH(Sovereigns!N$49,'Data Annex'!$K$1:$AN$1,0)),\"\")","v":0.21764039269999999},{"$f":"IFERROR(INDEX('Data Annex'!$K$1:$AN$1998,MATCH(Sovereigns!O$48&\"|\"&Sovereigns!$B84,'Data Annex'!$K$1:$K$1998,0),MATCH(Sovereigns!O$49,'Data Annex'!$K$1:$AN$1,0)),\"\")","v":0.2184145103}]
[12,"GB",null,{"$f":"IF(OR(F85=\"n.a.\",G85=\"n.a.\",H85=\"n.a.\",I85=\"n.a.\",J85=\"n.a.\",K85=\"n.a.\",T85=\"n.a.\",U85=\"n.a.\"),$B85&\"*\",$B85)","v":"GB"},null,{"$f":"IFERROR(INDEX('Data Annex'!$K$1:$AN$1998,MATCH(Sovereigns!F$48&\"|\"&Sovereigns!$B85,'Data Annex'!$K$1:$K$1998,0),MATCH(Sovereigns!F$49,'Data Annex'!$K$1:$AN$1,0)),\"\")","v":0.23795738150000001},{"$f":"IFERROR(INDEX('Data Annex'!$K$1:$AN$1998,MATCH(Sovereigns!G$48&\"|\"&Sovereigns!$B85,'Data Annex'!$K$1:$K$1998,0),MATCH(Sovereigns!G$49,'Data Annex'!$K$1:$AN$1,0)),\"\")","v":0.25183616619999999},{"$f":"IFERROR(INDEX('Data Annex'!$K$1:$AN$1998,MATCH(Sovereigns!H$48&\"|\"&Sovereigns!$B85,'Data Annex'!$K$1:$K$1998,0),MATCH(Sovereigns!H$49,'Data Annex'!$K$1:$AN$1,0)),\"\")","v":0.14229838910000001},{"$f":"IFERROR(INDEX('Data Annex'!$K$1:$AN$1998,MATCH(Sovereigns!I$48&\"|\"&Sovereigns!$B85,'Data Annex'!$K$1:$K$1998,0),MATCH(Sovereigns!I$49,'Data Annex'!$K$1:$AN$1,0)),\"\")","v":0.1235514073},{"$f":"IFERROR(INDEX('Data Annex'!$K$1:$AN$1998,MATCH(Sovereigns!J$48&\"|\"&Sovereigns!$B85,'Data Annex'!$K$1:$K$1998,0),MATCH(Sovereigns!J$49,'Data Annex'!$K$1:$AN$1,0)),\"\")","v":0.2935430423},{"$f":"IFERROR(INDEX('Data Annex'!$K$1:$AN$1998,MATCH(Sovereigns!K$48&\"|\"&Sovereigns!$B85,'Data Annex'!$K$1:$K$1998,0),MATCH(Sovereigns!K$49,'Data Annex'!$K$1:$AN$1,0)),\"\")","v":0.30678453309999998},{"$f":"IFERROR(INDEX('Data Annex'!$K$1:$AN$1998,MATCH(Sovereigns!L$48&\"|\"&Sovereigns!$B85,'Data Annex'!$K$1:$K$1998,0),MATCH(Sovereigns!L$49,'Data Annex'!$K$1:$AN$1,0)),\"\")","v":0.16021856749999999},{"$f":"IFERROR(INDEX('Data Annex'!$K$1:$AN$1998,MATCH(Sovereigns!M$48&\"|\"&Sovereigns!$B85,'Data Annex'!$K$1:$K$1998,0),MATCH(Sovereigns!M$49,'Data Annex'!$K$1:$AN$1,0)),\"\")","v":0.1638554807},{"$f":"IFERROR(INDEX('Data Annex'!$K$1:$AN$1998,MATCH(Sovereigns!N$48&\"|\"&Sovereigns!$B85,'Data Annex'!$K$1:$K$1998,0),MATCH(Sovereigns!N$49,'Data Annex'!$K$1:$AN$1,0)),\"\")","v":0.16598261959999999},{"$f":"IFERROR(INDEX('Data Annex'!$K$1:$AN$1998,MATCH(Sovereigns!O$48&\"|\"&Sovereigns!$B85,'Data Annex'!$K$1:$K$1998,0),MATCH(Sovereigns!O$49,'Data Annex'!$K$1:$AN$1,0)),\"\")","v":0.15397241270000001}]
[]
[null,null,null,"Individual country data includes subsidiaries, which are excluded from EU aggregate. For example, at country level the subsidiary in country X of a bank domiciled in country Y is included both in data for countries X and Y (for the latter as part of the consolidated entity). In the EU aggregate, only the consolidated entity domiciled in country Y is considered.  The sample of banks is unbalanced and reviewed annually.\nAs of Q1 2020 onwards UK banks are removed from the EU/EEA aggregate and subsidiaries of UK banks in EU member states are used instead.\n"]

{"sheet":"Liabilities","index":10,"n_rows":85,"n_cols":29,"rows_kept":85,"cut":false,"hidden":true,"merged":[[84,3,84,28],[78,3,78,4],[79,3,79,4],[80,3,80,4],[81,3,81,4],[82,3,82,4],[77,3,77,4],[66,3,66,4],[67,3,67,4],[68,3,68,4],[69,3,69,4],[70,3,70,4],[71,3,71,4],[72,3,72,4],[73,3,73,4],[74,3,74,4],[75,3,75,4],[76,3,76,4],[50,17,50,20],[50,21,50,24],[50,25,50,28],[52,3,52,4],[65,3,65,4],[54,3,54,4],[55,3,55,4],[56,3,56,4],[57,3,57,4],[58,3,58,4],[59,3,59,4],[60,3,60,4],[61,3,61,4],[62,3,62,4],[63,3,63,4],[64,3,64,4],[53,3,53,4],[40,3,40,4],[41,3,41,4],[47,3,48,8],[47,10,48,14],[50,5,50,8],[47,16,48,28],[49,5,49,8],[34,3,34,4],[35,3,35,4],[36,3,36,4],[37,3,37,4],[38,3,38,4],[39,3,39,4],[33,3,33,4],[22,3,22,4],[23,3,23,4],[24,3,24,4],[25,3,25,4],[26,3,26,4],[27,3,27,4],[28,3,28,4],[29,3,29,4],[30,3,30,4],[31,3,31,4],[32,3,32,4],[21,3,21,4],[9,25,9,28],[11,3,11,4],[12,3,12,4],[13,3,13,4],[14,3,14,4],[15,3,15,4],[16,3,16,4],[17,3,17,4],[18,3,18,4],[19,3,19,4],[20,3,20,4],[2,3,2,28],[3,3,3,28],[5,3,5,28],[6,3,7,28],[8,3,9,4],[9,5,9,8],[9,9,9,12],[9,13,9,16],[9,17,9,20],[9,21,9,24]]}
[null,null,null,null,null,"T04_3","T04_3","T04_3","T04_3","T04_4","T04_4","T04_4","T04_4","T04_6","T04_6","T04_6","T04_6","T04_7","T04_7","T04_7","T04_7","T04_8","T04_8","T04_8","T04_8"]
[{"$f":"'Reference Dates'!$C$8","v":"202012"},null,null,null,null,{"$f":"TEXT(F11,\"YYYYMM\")+0","v":202003},202006,202009,202012,202003,202006,202009,202012,202003,202006,202009,202012,{"$f":"TEXT(N11,\"YYYYMM\")+0","v":202003},202006,202009,202012,{"$f":"TEXT(N11,\"YYYYMM\")+0","v":202003},{"$f":"TEXT(O11,\"YYYYMM\")+0","v":202006},{"$f":"TEXT(P11,\"YYYYMM\")+0","v":202009},{"$f":"TEXT(Q11,\"YYYYMM\")+0","v":202012}]
[{"$f":"DATE(LEFT(A2,4),RIGHT(A2,2),1)","v":"2020-12-01"},null,null,"Statistical Annex"]
[null,null,null,"Liability composition and volumes"]
[]
[]
[null,"CH_1",null,"Liabilities composition"]
[]
[null,null,null,"% of total liabilities"]
[null,null,null,null,null,"Debt securities issued",null,null,null,"Deposits from credit institutions",null,null,null,"Customer deposits from HHs",null,null,null,"Customer deposits from NFCs",null,null,null,"Other deposits (1)",null,null,null,"Other liabilities (2)"]
[null,null,null,null,null,{"$f":"EOMONTH($A$3,-9)","v":"2020-03-31"},{"$f":"EOMONTH($A$3,-6)","v":"2020-06-30"},{"$f":"EOMONTH($A$3,-3)","v":"2020-09-30"},{"$f":"$A$3","v":"2020-12-01"},{"$f":"EOMONTH($A$3,-9)","v":"2020-03-31"},{"$f":"EOMONTH($A$3,-6)","v":"2020-06-30"},{"$f":"EOMONTH($A$3,-3)","v":"2020-09-30"},{"$f":"$A$3","v":"2020-12-01"},{"$f":"EOMONTH($A$3,-9)","v":"2020-03-31"},{"$f":"EOMONTH($A$3,-6)","v":"2020-06-30"},{"$f":"EOMONTH($A$3,-3)","v":"2020-09-30"},{"$f":"$A$3","v":"2020-12-01"},{"$f":"EOMONTH($A$3,-9)","v":"2020-03-31"},{"$f":"EOMONTH($A$3,-6)","v":"2020-06-30"},{"$f":"EOMONTH($A$3,-3)","v":"2020-09-30"},{"$f":"$A$3","v":"2020-12-01"},{"$f":"EOMONTH($A$3,-9)","v":"2020-03-31"},{"$f":"EOMONTH($A$3,-6)","v":"2020-06-30"},{"$f":"EOMONTH($A$3,-3)","v":"2020-09-30"},{"$f":"$A$3","v":"2020-12-01"},{"$f":"EOMONTH($A$3,-9)","v":"2020-03-31"},{"$f":"EOMONTH($A$3,-6)","v":"2020-06-30"},{"$f":"EOMONTH($A$3,-3)","v":"2020-09-30"},{"$f":"$A$3","v":"2020-12-01"}]
[1,"AT",null,"AT",null,{"$f":"IFERROR(INDEX('Data Annex'!$K$1:$AN$4997,MATCH(F$1&\"|\"&$B12,'Data Annex'!$K$1:$K$4997,0),MATCH(F$2,'Data Annex'!$K$1:$AN$1,0)),\"\")","v":0.1235871122},{"$f":"IFERROR(INDEX('Data Annex'!$K$1:$AN$4997,MATCH(G$1&\"|\"&$B12,'Data Annex'!$K$1:$K$4997,0),MATCH(G$2,'Data Annex'!$K$1:$AN$1,0)),\"\")","v":0.1195961017},{"$f":"IFERROR(INDEX('Data Annex'!$K$1:$AN$4997,MATCH(H$1&\"|\"&$B12,'Data Annex'!$K$1:$K$4997,0),MATCH(H$2,'Data Annex'!$K$1:$AN$1,0)),\"\")","v":0.1208092985},{"$f":"IFERROR(INDEX('Data Annex'!$K$1:$AN$4997,MATCH(I$1&\"|\"&$B12,'Data Annex'!$K$1:$K$4997,0),MATCH(I$2,'Data Annex'!$K$1:$AN$1,0)),\"\")","v":0.1194477529},{"$f":"IFERROR(INDEX('Data Annex'!$K$1:$AN$4997,MATCH(J$1&\"|\"&$B12,'Data Annex'!$K$1:$K$4997,0),MATCH(J$2,'Data Annex'!$K$1:$AN$1,0)),\"\")","v":0.10452487019999999},{"$f":"IFERROR(INDEX('Data Annex'!$K$1:$AN$4997,MATCH(K$1&\"|\"&$B12,'Data Annex'!$K$1:$K$4997,0),MATCH(K$2,'Data Annex'!$K$1:$AN$1,0)),\"\")","v":9.8476219300000001E-2},{"$f":"IFERROR(INDEX('Data Annex'!$K$1:$AN$4997,MATCH(L$1&\"|\"&$B12,'Data Annex'!$K$1:$K$4997,0),MATCH(L$2,'Data Annex'!$K$1:$AN$1,0)),\"\")","v":9.4915476600000007E-2},{"$f":"IFERROR(INDEX('Data Annex'!$K$1:$AN$4997,MATCH(M$1&\"|\"&$B12,'Data Annex'!$K$1:$K$4997,0),MATCH(M$2,'Data Annex'!$K$1:$AN$1,0)),\"\")","v":8.8630275300000005E-2},{"$f":"IFERROR(INDEX('Data Annex'!$K$1:$AN$4997,MATCH(N$1&\"|\"&$B12,'Data Annex'!$K$1:$K$4997,0),MATCH(N$2,'Data Annex'!$K$1:$AN$1,0)),\"\")","v":0.40223880280000002},{"$f":"IFERROR(INDEX('Data Annex'!$K$1:$AN$4997,MATCH(O$1&\"|\"&$B12,'Data Annex'!$K$1:$K$4997,0),MATCH(O$2,'Data Annex'!$K$1:$AN$1,0)),\"\")","v":0.39531898830000001},{"$f":"IFERROR(INDEX('Data Annex'!$K$1:$AN$4997,MATCH(P$1&\"|\"&$B12,'Data Annex'!$K$1:$K$4997,0),MATCH(P$2,'Data Annex'!$K$1:$AN$1,0)),\"\")","v":0.39171852740000002},{"$f":"IFERROR(INDEX('Data Annex'!$K$1:$AN$4997,MATCH(Q$1&\"|\"&$B12,'Data Annex'!$K$1:$K$4997,0),MATCH(Q$2,'Data Annex'!$K$1:$AN$1,0)),\"\")","v":0.40414835430000001},{"$f":"IFERROR(INDEX('Data Annex'!$K$1:$AN$4997,MATCH(R$1&\"|\"&$B12,'Data Annex'!$K$1:$K$4997,0),MATCH(R$2,'Data Annex'!$K$1:$AN$1,0)),\"\")","v":0.1730104224},{"$f":"IFERROR(INDEX('Data Annex'!$K$1:$AN$4997,MATCH(S$1&\"|\"&$B12,'Data Annex'!$K$1:$K$4997,0),MATCH(S$2,'Data Annex'!$K$1:$AN$1,0)),\"\")","v":0.17038845729999999},{"$f":"IFERROR(INDEX('Data Annex'!$K$1:$AN$4997,MATCH(T$1&\"|\"&$B12,'Data Annex'!$K$1:$K$4997,0),MATCH(T$2,'Data Annex'!$K$1:$AN$1,0)),\"\")","v":0.17375750570000001},{"$f":"IFERROR(INDEX('Data Annex'!$K$1:$AN$4997,MATCH(U$1&\"|\"&$B12,'Data Annex'!$K$1:$K$4997,0),MATCH(U$2,'Data Annex'!$K$1:$AN$1,0)),\"\")","v":0.17523262649999999},{"$f":"IFERROR(INDEX('Data Annex'!$K$1:$AN$4997,MATCH(V$1&\"|\"&$B12,'Data Annex'!$K$1:$K$4997,0),MATCH(V$2,'Data Annex'!$K$1:$AN$1,0)),\"\")","v":0.1108172473},{"$f":"IFERROR(INDEX('Data Annex'!$K$1:$AN$4997,MATCH(W$1&\"|\"&$B12,'Data Annex'!$K$1:$K$4997,0),MATCH(W$2,'Data Annex'!$K$1:$AN$1,0)),\"\")","v":9.5099234000000005E-2},{"$f":"IFERROR(INDEX('Data Annex'!$K$1:$AN$4997,MATCH(X$1&\"|\"&$B12,'Data Annex'!$K$1:$K$4997,0),MATCH(X$2,'Data Annex'!$K$1:$AN$1,0)),\"\")","v":9.0328776900000005E-2},{"$f":"IFERROR(INDEX('Data Annex'!$K$1:$AN$4997,MATCH(Y$1&\"|\"&$B12,'Data Annex'!$K$1:$K$4997,0),MATCH(Y$2,'Data Annex'!$K$1:$AN$1,0)),\"\")","v":8.9030399199999999E-2},{"$f":"1-F12-J12-N12-R12-V12","v":8.5821545100000007E-2},{"$f":"1-G12-K12-O12-S12-W12","v":0.12112099940000004},0.1284704149,0.12351059180000001]
[2,"BE",null,"BE",null,{"$f":"IFERROR(INDEX('Data Annex'!$K$1:$AN$4997,MATCH(F$1&\"|\"&$B13,'Data Annex'!$K$1:$K$4997,0),MATCH(F$2,'Data Annex'!$K$1:$AN$1,0)),\"\")","v":0.1394275743},{"$f":"IFERROR(INDEX('Data Annex'!$K$1:$AN$4997,MATCH(G$1&\"|\"&$B13,'Data Annex'!$K$1:$K$4997,0),MATCH(G$2,'Data Annex'!$K$1:$AN$1,0)),\"\")","v":0.13333998080000001},{"$f":"IFERROR(INDEX('Data Annex'!$K$1:$AN$4997,MATCH(H$1&\"|\"&$B13,'Data Annex'!$K$1:$K$4997,0),MATCH(H$2,'Data Annex'!$K$1:$AN$1,0)),\"\")","v":0.1302974435},{"$f":"IFERROR(INDEX('Data Annex'!$K$1:$AN$4997,MATCH(I$1&\"|\"&$B13,'Data Annex'!$K$1:$K$4997,0),MATCH(I$2,'Data Annex'!$K$1:$AN$1,0)),\"\")","v":0.12788839969999999},{"$f":"IFERROR(INDEX('Data Annex'!$K$1:$AN$4997,MATCH(J$1&\"|\"&$B13,'Data Annex'!$K$1:$K$4997,0),MATCH(J$2,'Data Annex'!$K$1:$AN$1,0)),\"\")","v":0.1069756545},{"$f":"IFERROR(INDEX('Data Annex'!$K$1:$AN$4997,MATCH(K$1&\"|\"&$B13,'Data Annex'!$K$1:$K$4997,0),MATCH(K$2,'Data Annex'!$K$1:$AN$1,0)),\"\")","v":8.3624173199999999E-2},{"$f":"IFERROR(INDEX('Data Annex'!$K$1:$AN$4997,MATCH(L$1&\"|\"&$B13,'Data Annex'!$K$1:$K$4997,0),MATCH(L$2,'Data Annex'!$K$1:$AN$1,0)),\"\")","v":8.6464095000000005E-2},{"$f":"IFERROR(INDEX('Data Annex'!$K$1:$AN$4997,MATCH(M$1&\"|\"&$B13,'Data Annex'!$K$1:$K$4997,0),MATCH(M$2,'Data Annex'!$K$1:$AN$1,0)),\"\")","v":7.1249702100000006E-2},{"$f":"IFERROR(INDEX('Data Annex'!$K$1:$AN$4997,MATCH(N$1&\"|\"&$B13,'Data Annex'!$K$1:$K$4997,0),MATCH(N$2,'Data Annex'!$K$1:$AN$1,0)),\"\")","v":0.34786227419999999},{"$f":"IFERROR(INDEX('Data Annex'!$K$1:$AN$4997,MATCH(O$1&\"|\"&$B13,'Data Annex'!$K$1:$K$4997,0),MATCH(O$2,'Data Annex'!$K$1:$AN$1,0)),\"\")","v":0.35476250269999998},{"$f":"IFERROR(INDEX('Data Annex'!$K$1:$AN$4997,MATCH(P$1&\"|\"&$B13,'Data Annex'!$K$1:$K$4997,0),MATCH(P$2,'Data Annex'!$K$1:$AN$1,0)),\"\")","v":0.35777811409999999},{"$f":"IFERROR(INDEX('Data Annex'!$K$1:$AN$4997,MATCH(Q$1&\"|\"&$B13,'Data Annex'!$K$1:$K$4997,0),MATCH(Q$2,'Data Annex'!$K$1:$AN$1,0)),\"\")","v":0.36847541719999999},{"$f":"IFERROR(INDEX('Data Annex'!$K$1:$AN$4997,MATCH(R$1&\"|\"&$B13,'Data Annex'!$K$1:$K$4997,0),MATCH(R$2,'Data Annex'!$K$1:$AN$1,0)),\"\")","v":0.1359107648},{"$f":"IFERROR(INDEX('Data Annex'!$K$1:$AN$4997,MATCH(S$1&\"|\"&$B13,'Data Annex'!$K$1:$K$4997,0),MATCH(S$2,'Data Annex'!$K$1:$AN$1,0)),\"\")","v":0.13586439980000001},{"$f":"IFERROR(INDEX('Data Annex'!$K$1:$AN$4997,MATCH(T$1&\"|\"&$B13,'Data Annex'!$K$1:$K$4997,0),MATCH(T$2,'Data Annex'!$K$1:$AN$1,0)),\"\")","v":0.13736773150000001},{"$f":"IFERROR(INDEX('Data Annex'!$K$1:$AN$4997,MATCH(U$1&\"|\"&$B13,'Data Annex'!$K$1:$K$4997,0),MATCH(U$2,'Data Annex'!$K$1:$AN$1,0)),\"\")","v":0.14005132519999999},{"$f":"IFERROR(INDEX('Data Annex'!$K$1:$AN$4997,MATCH(V$1&\"|\"&$B13,'Data Annex'!$K$1:$K$4997,0),MATCH(V$2,'Data Annex'!$K$1:$AN$1,0)),\"\")","v":0.1136835501},{"$f":"IFERROR(INDEX('Data Annex'!$K$1:$AN$4997,MATCH(W$1&\"|\"&$B13,'Data Annex'!$K$1:$K$4997,0),MATCH(W$2,'Data Annex'!$K$1:$AN$1,0)),\"\")","v":0.1057039098},{"$f":"IFERROR(INDEX('Data Annex'!$K$1:$AN$4997,MATCH(X$1&\"|\"&$B13,'Data Annex'!$K$1:$K$4997,0),MATCH(X$2,'Data Annex'!$K$1:$AN$1,0)),\"\")","v":0.10610434790000001},{"$f":"IFERROR(INDEX('Data Annex'!$K$1:$AN$4997,MATCH(Y$1&\"|\"&$B13,'Data Annex'!$K$1:$K$4997,0),MATCH(Y$2,'Data Annex'!$K$1:$AN$1,0)),\"\")","v":0.11349846619999999},{"$f":"1-F13-J13-N13-R13-V13","v":0.1561401821},0.18670503370000002,0.18198826800000012,0.17883668960000004]
[3,"BG",null,"BG",null,{"$f":"IFERROR(INDEX('Data Annex'!$K$1:$AN$4997,MATCH(F$1&\"|\"&$B14,'Data Annex'!$K$1:$K$4997,0),MATCH(F$2,'Data Annex'!$K$1:$AN$1,0)),\"\")","v":4.7644339999999997E-3},{"$f":"IFERROR(INDEX('Data Annex'!$K$1:$AN$4997,MATCH(G$1&\"|\"&$B14,'Data Annex'!$K$1:$K$4997,0),MATCH(G$2,'Data Annex'!$K$1:$AN$1,0)),\"\")","v":4.8585149000000003E-3},{"$f":"IFERROR(INDEX('Data Annex'!$K$1:$AN$4997,MATCH(H$1&\"|\"&$B14,'Data Annex'!$K$1:$K$4997,0),MATCH(H$2,'Data Annex'!$K$1:$AN$1,0)),\"\")","v":4.6138280000000004E-3},{"$f":"IFERROR(INDEX('Data Annex'!$K$1:$AN$4997,MATCH(I$1&\"|\"&$B14,'Data Annex'!$K$1:$K$4997,0),MATCH(I$2,'Data Annex'!$K$1:$AN$1,0)),\"\")","v":4.4521661999999997E-3},{"$f":"IFERROR(INDEX('Data Annex'!$K$1:$AN$4997,MATCH(J$1&\"|\"&$B14,'Data Annex'!$K$1:$K$4997,0),MATCH(J$2,'Data Annex'!$K$1:$AN$1,0)),\"\")","v":3.7473570300000002E-2},{"$f":"IFERROR(INDEX('Data Annex'!$K$1:$AN$4997,MATCH(K$1&\"|\"&$B14,'Data Annex'!$K$1:$K$4997,0),MATCH(K$2,'Data Annex'!$K$1:$AN$1,0)),\"\")","v":3.1710492600000001E-2},{"$f":"IFERROR(INDEX('Data Annex'!$K$1:$AN$4997,MATCH(L$1&\"|\"&$B14,'Data Annex'!$K$1:$K$4997,0),MATCH(L$2,'Data Annex'!$K$1:$AN$1,0)),\"\")","v":3.08264483E-2},{"$f":"IFERROR(INDEX('Data Annex'!$K$1:$AN$4997,MATCH(M$1&\"|\"&$B14,'Data Annex'!$K$1:$K$4997,0),MATCH(M$2,'Data Annex'!$K$1:$AN$1,0)),\"\")","v":4.1180039699999997E-2},{"$f":"IFERROR(INDEX('Data Annex'!$K$1:$AN$4997,MATCH(N$1&\"|\"&$B14,'Data Annex'!$K$1:$K$4997,0),MATCH(N$2,'Data Annex'!$K$1:$AN$1,0)),\"\")","v":0.63663787449999998},{"$f":"IFERROR(INDEX('Data Annex'!$K$1:$AN$4997,MATCH(O$1&\"|\"&$B14,'Data Annex'!$K$1:$K$4997,0),MATCH(O$2,'Data Annex'!$K$1:$AN$1,0)),\"\")","v":0.64402622850000002},{"$f":"IFERROR(INDEX('Data Annex'!$K$1:$AN$4997,MATCH(P$1&\"|\"&$B14,'Data Annex'!$K$1:$K$4997,0),MATCH(P$2,'Data Annex'!$K$1:$AN$1,0)),\"\")","v":0.63142446080000003},{"$f":"IFERROR(INDEX('Data Annex'!$K$1:$AN$4997,MATCH(Q$1&\"|\"&$B14,'Data Annex'!$K$1:$K$4997,0),MATCH(Q$2,'Data Annex'!$K$1:$AN$1,0)),\"\")","v":0.63310353450000001},{"$f":"IFERROR(INDEX('Data Annex'!$K$1:$AN$4997,MATCH(R$1&\"|\"&$B14,'Data Annex'!$K$1:$K$4997,0),MATCH(R$2,'Data Annex'!$K$1:$AN$1,0)),\"\")","v":0.24346005609999999},{"$f":"IFERROR(INDEX('Data Annex'!$K$1:$AN$4997,MATCH(S$1&\"|\"&$B14,'Data Annex'!$K$1:$K$4997,0),MATCH(S$2,'Data Annex'!$K$1:$AN$1,0)),\"\")","v":0.2511109627},{"$f":"IFERROR(INDEX('Data Annex'!$K$1:$AN$4997,MATCH(T$1&\"|\"&$B14,'Data Annex'!$K$1:$K$4997,0),MATCH(T$2,'Data Annex'!$K$1:$AN$1,0)),\"\")","v":0.26549829899999999},{"$f":"IFERROR(INDEX('Data Annex'!$K$1:$AN$4997,MATCH(U$1&\"|\"&$B14,'Data Annex'!$K$1:$K$4997,0),MATCH(U$2,'Data Annex'!$K$1:$AN$1,0)),\"\")","v":0.25877094499999997},{"$f":"IFERROR(INDEX('Data Annex'!$K$1:$AN$4997,MATCH(V$1&\"|\"&$B14,'Data Annex'!$K$1:$K$4997,0),MATCH(V$2,'Data Annex'!$K$1:$AN$1,0)),\"\")","v":5.3307981099999999E-2},{"$f":"IFERROR(INDEX('Data Annex'!$K$1:$AN$4997,MATCH(W$1&\"|\"&$B14,'Data Annex'!$K$1:$K$4997,0),MATCH(W$2,'Data Annex'!$K$1:$AN$1,0)),\"\")","v":4.6991825500000001E-2},{"$f":"IFERROR(INDEX('Data Annex'!$K$1:$AN$4997,MATCH(X$1&\"|\"&$B14,'Data Annex'!$K$1:$K$4997,0),MATCH(X$2,'Data Annex'!$K$1:$AN$1,0)),\"\")","v":4.5602107900000001E-2},{"$f":"IFERROR(INDEX('Data Annex'!$K$1:$AN$4997,MATCH(Y$1&\"|\"&$B14,'Data Annex'!$K$1:$K$4997,0),MATCH(Y$2,'Data Annex'!$K$1:$AN$1,0)),\"\")","v":4.2894207699999999E-2},2.4356084000000014E-2,2.1301975799999956E-2,2.2034855999999957E-2,1.9599106900000073E-2]
[4,"CY",null,"CY",null,{"$f":"IFERROR(INDEX('Data Annex'!$K$1:$AN$4997,MATCH(F$1&\"|\"&$B15,'Data Annex'!$K$1:$K$4997,0),MATCH(F$2,'Data Annex'!$K$1:$AN$1,0)),\"\")","v":1.19299756E-2},{"$f":"IFERROR(INDEX('Data Annex'!$K$1:$AN$4997,MATCH(G$1&\"|\"&$B15,'Data Annex'!$K$1:$K$4997,0),MATCH(G$2,'Data Annex'!$K$1:$AN$1,0)),\"\")","v":1.17172305E-2},{"$f":"IFERROR(INDEX('Data Annex'!$K$1:$AN$4997,MATCH(H$1&\"|\"&$B15,'Data Annex'!$K$1:$K$4997,0),MATCH(H$2,'Data Annex'!$K$1:$AN$1,0)),\"\")","v":1.1910464799999999E-2},{"$f":"IFERROR(INDEX('Data Annex'!$K$1:$AN$4997,MATCH(I$1&\"|\"&$B15,'Data Annex'!$K$1:$K$4997,0),MATCH(I$2,'Data Annex'!$K$1:$AN$1,0)),\"\")","v":1.20453947E-2},{"$f":"IFERROR(INDEX('Data Annex'!$K$1:$AN$4997,MATCH(J$1&\"|\"&$B15,'Data Annex'!$K$1:$K$4997,0),MATCH(J$2,'Data Annex'!$K$1:$AN$1,0)),\"\")","v":1.9185500099999999E-2},{"$f":"IFERROR(INDEX('Data Annex'!$K$1:$AN$4997,MATCH(K$1&\"|\"&$B15,'Data Annex'!$K$1:$K$4997,0),MATCH(K$2,'Data Annex'!$K$1:$AN$1,0)),\"\")","v":1.7277039800000001E-2},{"$f":"IFERROR(INDEX('Data Annex'!$K$1:$AN$4997,MATCH(L$1&\"|\"&$B15,'Data Annex'!$K$1:$K$4997,0),MATCH(L$2,'Data Annex'!$K$1:$AN$1,0)),\"\")","v":1.6696067500000002E-2},{"$f":"IFERROR(INDEX('Data Annex'!$K$1:$AN$4997,MATCH(M$1&\"|\"&$B15,'Data Annex'!$K$1:$K$4997,0),MATCH(M$2,'Data Annex'!$K$1:$AN$1,0)),\"\")","v":1.61103246E-2},{"$f":"IFERROR(INDEX('Data Annex'!$K$1:$AN$4997,MATCH(N$1&\"|\"&$B15,'Data Annex'!$K$1:$K$4997,0),MATCH(N$2,'Data Annex'!$K$1:$AN$1,0)),\"\")","v":0.66427467529999995},{"$f":"IFERROR(INDEX('Data Annex'!$K$1:$AN$4997,MATCH(O$1&\"|\"&$B15,'Data Annex'!$K$1:$K$4997,0),MATCH(O$2,'Data Annex'!$K$1:$AN$1,0)),\"\")","v":0.64990651129999999},{"$f":"IFERROR(INDEX('Data Annex'!$K$1:$AN$4997,MATCH(P$1&\"|\"&$B15,'Data Annex'!$K$1:$K$4997,0),MATCH(P$2,'Data Annex'!$K$1:$AN$1,0)),\"\")","v":0.64613691539999996},{"$f":"IFERROR(INDEX('Data Annex'!$K$1:$AN$4997,MATCH(Q$1&\"|\"&$B15,'Data Annex'!$K$1:$K$4997,0),MATCH(Q$2,'Data Annex'!$K$1:$AN$1,0)),\"\")","v":0.76135160989999995},{"$f":"IFERROR(INDEX('Data Annex'!$K$1:$AN$4997,MATCH(R$1&\"|\"&$B15,'Data Annex'!$K$1:$K$4997,0),MATCH(R$2,'Data Annex'!$K$1:$AN$1,0)),\"\")","v":0.19449859150000001},{"$f":"IFERROR(INDEX('Data Annex'!$K$1:$AN$4997,MATCH(S$1&\"|\"&$B15,'Data Annex'!$K$1:$K$4997,0),MATCH(S$2,'Data Annex'!$K$1:$AN$1,0)),\"\")","v":0.18806436100000001},{"$f":"IFERROR(INDEX('Data Annex'!$K$1:$AN$4997,MATCH(T$1&\"|\"&$B15,'Data Annex'!$K$1:$K$4997,0),MATCH(T$2,'Data Annex'!$K$1:$AN$1,0)),\"\")","v":0.19063582709999999},{"$f":"IFERROR(INDEX('Data Annex'!$K$1:$AN$4997,MATCH(U$1&\"|\"&$B15,'Data Annex'!$K$1:$K$4997,0),MATCH(U$2,'Data Annex'!$K$1:$AN$1,0)),\"\")","v":0.13065284529999999},{"$f":"IFERROR(INDEX('Data Annex'!$K$1:$AN$4997,MATCH(V$1&\"|\"&$B15,'Data Annex'!$K$1:$K$4997,0),MATCH(V$2,'Data Annex'!$K$1:$AN$1,0)),\"\")","v":8.8736696000000004E-2},{"$f":"IFERROR(INDEX('Data Annex'!$K$1:$AN$4997,MATCH(W$1&\"|\"&$B15,'Data Annex'!$K$1:$K$4997,0),MATCH(W$2,'Data Annex'!$K$1:$AN$1,0)),\"\")","v":8.2983245900000002E-2},{"$f":"IFERROR(INDEX('Data Annex'!$K$1:$AN$4997,MATCH(X$1&\"|\"&$B15,'Data Annex'!$K$1:$K$4997,0),MATCH(X$2,'Data Annex'!$K$1:$AN$1,0)),\"\")","v":8.3960892499999995E-2},{"$f":"IFERROR(INDEX('Data Annex'!$K$1:$AN$4997,MATCH(Y$1&\"|\"&$B15,'Data Annex'!$K$1:$K$4997,0),MATCH(Y$2,'Data Annex'!$K$1:$AN$1,0)),\"\")","v":7.6991205600000001E-2},2.1374561500000083E-2,5.0051611500000093E-2,5.0659832700000074E-2,2.8486199000001267E-3]
[5,"CZ",null,"CZ",null,{"$f":"IFERROR(INDEX('Data Annex'!$K$1:$AN$4997,MATCH(F$1&\"|\"&$B16,'Data Annex'!$K$1:$K$4997,0),MATCH(F$2,'Data Annex'!$K$1:$AN$1,0)),\"\")","v":9.5934199299999995E-2},{"$f":"IFERROR(INDEX('Data Annex'!$K$1:$AN$4997,MATCH(G$1&\"|\"&$B16,'Data Annex'!$K$1:$K$4997,0),MATCH(G$2,'Data Annex'!$K$1:$AN$1,0)),\"\")","v":8.8420857399999997E-2},{"$f":"IFERROR(INDEX('Data Annex'!$K$1:$AN$4997,MATCH(H$1&\"|\"&$B16,'Data Annex'!$K$1:$K$4997,0),MATCH(H$2,'Data Annex'!$K$1:$AN$1,0)),\"\")","v":9.1457776500000004E-2},{"$f":"IFERROR(INDEX('Data Annex'!$K$1:$AN$4997,MATCH(I$1&\"|\"&$B16,'Data Annex'!$K$1:$K$4997,0),MATCH(I$2,'Data Annex'!$K$1:$AN$1,0)),\"\")","v":0.1525860091},{"$f":"IFERROR(INDEX('Data Annex'!$K$1:$AN$4997,MATCH(J$1&\"|\"&$B16,'Data Annex'!$K$1:$K$4997,0),MATCH(J$2,'Data Annex'!$K$1:$AN$1,0)),\"\")","v":0.13502979549999999},{"$f":"IFERROR(INDEX('Data Annex'!$K$1:$AN$4997,MATCH(K$1&\"|\"&$B16,'Data Annex'!$K$1:$K$4997,0),MATCH(K$2,'Data Annex'!$K$1:$AN$1,0)),\"\")","v":0.13504761679999999},{"$f":"IFERROR(INDEX('Data Annex'!$K$1:$AN$4997,MATCH(L$1&\"|\"&$B16,'Data Annex'!$K$1:$K$4997,0),MATCH(L$2,'Data Annex'!$K$1:$AN$1,0)),\"\")","v":0.12027137609999999},{"$f":"IFERROR(INDEX('Data Annex'!$K$1:$AN$4997,MATCH(M$1&\"|\"&$B16,'Data Annex'!$K$1:$K$4997,0),MATCH(M$2,'Data Annex'!$K$1:$AN$1,0)),\"\")","v":5.8316662399999997E-2},{"$f":"IFERROR(INDEX('Data Annex'!$K$1:$AN$4997,MATCH(N$1&\"|\"&$B16,'Data Annex'!$K$1:$K$4997,0),MATCH(N$2,'Data Annex'!$K$1:$AN$1,0)),\"\")","v":0.41145713909999998},{"$f":"IFERROR(INDEX('Data Annex'!$K$1:$AN$4997,MATCH(O$1&\"|\"&$B16,'Data Annex'!$K$1:$K$4997,0),MATCH(O$2,'Data Annex'!$K$1:$AN$1,0)),\"\")","v":0.43448277089999998},{"$f":"IFERROR(INDEX('Data Annex'!$K$1:$AN$4997,MATCH(P$1&\"|\"&$B16,'Data Annex'!$K$1:$K$4997,0),MATCH(P$2,'Data Annex'!$K$1:$AN$1,0)),\"\")","v":0.44352128210000002},{"$f":"IFERROR(INDEX('Data Annex'!$K$1:$AN$4997,MATCH(Q$1&\"|\"&$B16,'Data Annex'!$K$1:$K$4997,0),MATCH(Q$2,'Data Annex'!$K$1:$AN$1,0)),\"\")","v":0.48157632620000002},{"$f":"IFERROR(INDEX('Data Annex'!$K$1:$AN$4997,MATCH(R$1&\"|\"&$B16,'Data Annex'!$K$1:$K$4997,0),MATCH(R$2,'Data Annex'!$K$1:$AN$1,0)),\"\")","v":0.15676368569999999},{"$f":"IFERROR(INDEX('Data Annex'!$K$1:$AN$4997,MATCH(S$1&\"|\"&$B16,'Data Annex'!$K$1:$K$4997,0),MATCH(S$2,'Data Annex'!$K$1:$AN$1,0)),\"\")","v":0.15965665339999999},{"$f":"IFERROR(INDEX('Data Annex'!$K$1:$AN$4997,MATCH(T$1&\"|\"&$B16,'Data Annex'!$K$1:$K$4997,0),MATCH(T$2,'Data Annex'!$K$1:$AN$1,0)),\"\")","v":0.16478001},{"$f":"IFERROR(INDEX('Data Annex'!$K$1:$AN$4997,MATCH(U$1&\"|\"&$B16,'Data Annex'!$K$1:$K$4997,0),MATCH(U$2,'Data Annex'!$K$1:$AN$1,0)),\"\")","v":0.17894775979999999},{"$f":"IFERROR(INDEX('Data Annex'!$K$1:$AN$4997,MATCH(V$1&\"|\"&$B16,'Data Annex'!$K$1:$K$4997,0),MATCH(V$2,'Data Annex'!$K$1:$AN$1,0)),\"\")","v":0.14730954060000001},{"$f":"IFERROR(INDEX('Data Annex'!$K$1:$AN$4997,MATCH(W$1&\"|\"&$B16,'Data Annex'!$K$1:$K$4997,0),MATCH(W$2,'Data Annex'!$K$1:$AN$1,0)),\"\")","v":0.13292298820000001},{"$f":"IFERROR(INDEX('Data Annex'!$K$1:$AN$4997,MATCH(X$1&\"|\"&$B16,'Data Annex'!$K$1:$K$4997,0),MATCH(X$2,'Data Annex'!$K$1:$AN$1,0)),\"\")","v":0.12954264230000001},{"$f":"IFERROR(INDEX('Data Annex'!$K$1:$AN$4997,MATCH(Y$1&\"|\"&$B16,'Data Annex'!$K$1:$K$4997,0),MATCH(Y$2,'Data Annex'!$K$1:$AN$1,0)),\"\")","v":9.0241105200000005E-2},5.350563980000006E-2,4.9469113299999978E-2,5.0426912999999934E-2,3.8332137300000013E-2]
[6,"DE",null,"DE",null,{"$f":"IFERROR(INDEX('Data Annex'!$K$1:$AN$4997,MATCH(F$1&\"|\"&$B17,'Data Annex'!$K$1:$K$4997,0),MATCH(F$2,'Data Annex'!$K$1:$AN$1,0)),\"\")","v":0.15756835969999999},{"$f":"IFERROR(INDEX('Data Annex'!$K$1:$AN$4997,MATCH(G$1&\"|\"&$B17,'Data Annex'!$K$1:$K$4997,0),MATCH(G$2,'Data Annex'!$K$1:$AN$1,0)),\"\")","v":0.16073908640000001},{"$f":"IFERROR(INDEX('Data Annex'!$K$1:$AN$4997,MATCH(H$1&\"|\"&$B17,'Data Annex'!$K$1:$K$4997,0),MATCH(H$2,'Data Annex'!$K$1:$AN$1,0)),\"\")","v":0.15917948100000001},{"$f":"IFERROR(INDEX('Data Annex'!$K$1:$AN$4997,MATCH(I$1&\"|\"&$B17,'Data Annex'!$K$1:$K$4997,0),MATCH(I$2,'Data Annex'!$K$1:$AN$1,0)),\"\")","v":0.16160830879999999},{"$f":"IFERROR(INDEX('Data Annex'!$K$1:$AN$4997,MATCH(J$1&\"|\"&$B17,'Data Annex'!$K$1:$K$4997,0),MATCH(J$2,'Data Annex'!$K$1:$AN$1,0)),\"\")","v":0.1200967611},{"$f":"IFERROR(INDEX('Data Annex'!$K$1:$AN$4997,MATCH(K$1&\"|\"&$B17,'Data Annex'!$K$1:$K$4997,0),MATCH(K$2,'Data Annex'!$K$1:$AN$1,0)),\"\")","v":0.1210955628},{"$f":"IFERROR(INDEX('Data Annex'!$K$1:$AN$4997,MATCH(L$1&\"|\"&$B17,'Data Annex'!$K$1:$K$4997,0),MATCH(L$2,'Data Annex'!$K$1:$AN$1,0)),\"\")","v":0.12258964059999999},{"$f":"IFERROR(INDEX('Data Annex'!$K$1:$AN$4997,MATCH(M$1&\"|\"&$B17,'Data Annex'!$K$1:$K$4997,0),MATCH(M$2,'Data Annex'!$K$1:$AN$1,0)),\"\")","v":0.1176328946},{"$f":"IFERROR(INDEX('Data Annex'!$K$1:$AN$4997,MATCH(N$1&\"|\"&$B17,'Data Annex'!$K$1:$K$4997,0),MATCH(N$2,'Data Annex'!$K$1:$AN$1,0)),\"\")","v":0.16586687059999999},{"$f":"IFERROR(INDEX('Data Annex'!$K$1:$AN$4997,MATCH(O$1&\"|\"&$B17,'Data Annex'!$K$1:$K$4997,0),MATCH(O$2,'Data Annex'!$K$1:$AN$1,0)),\"\")","v":0.17177175820000001},{"$f":"IFERROR(INDEX('Data Annex'!$K$1:$AN$4997,MATCH(P$1&\"|\"&$B17,'Data Annex'!$K$1:$K$4997,0),MATCH(P$2,'Data Annex'!$K$1:$AN$1,0)),\"\")","v":0.1751302072},{"$f":"IFERROR(INDEX('Data Annex'!$K$1:$AN$4997,MATCH(Q$1&\"|\"&$B17,'Data Annex'!$K$1:$K$4997,0),MATCH(Q$2,'Data Annex'!$K$1:$AN$1,0)),\"\")","v":0.19315179369999999},{"$f":"IFERROR(INDEX('Data Annex'!$K$1:$AN$4997,MATCH(R$1&\"|\"&$B17,'Data Annex'!$K$1:$K$4997,0),MATCH(R$2,'Data Annex'!$K$1:$AN$1,0)),\"\")","v":0.10122452429999999},{"$f":"IFERROR(INDEX('Data Annex'!$K$1:$AN$4997,MATCH(S$1&\"|\"&$B17,'Data Annex'!$K$1:$K$4997,0),MATCH(S$2,'Data Annex'!$K$1:$AN$1,0)),\"\")","v":0.1077217295},{"$f":"IFERROR(INDEX('Data Annex'!$K$1:$AN$4997,MATCH(T$1&\"|\"&$B17,'Data Annex'!$K$1:$K$4997,0),MATCH(T$2,'Data Annex'!$K$1:$AN$1,0)),\"\")","v":0.1104486878},{"$f":"IFERROR(INDEX('Data Annex'!$K$1:$AN$4997,MATCH(U$1&\"|\"&$B17,'Data Annex'!$K$1:$K$4997,0),MATCH(U$2,'Data Annex'!$K$1:$AN$1,0)),\"\")","v":0.1278603207},{"$f":"IFERROR(INDEX('Data Annex'!$K$1:$AN$4997,MATCH(V$1&\"|\"&$B17,'Data Annex'!$K$1:$K$4997,0),MATCH(V$2,'Data Annex'!$K$1:$AN$1,0)),\"\")","v":0.17776002029999999},{"$f":"IFERROR(INDEX('Data Annex'!$K$1:$AN$4997,MATCH(W$1&\"|\"&$B17,'Data Annex'!$K$1:$K$4997,0),MATCH(W$2,'Data Annex'!$K$1:$AN$1,0)),\"\")","v":0.16840683309999999},{"$f":"IFERROR(INDEX('Data Annex'!$K$1:$AN$4997,MATCH(X$1&\"|\"&$B17,'Data Annex'!$K$1:$K$4997,0),MATCH(X$2,'Data Annex'!$K$1:$AN$1,0)),\"\")","v":0.16542230690000001},{"$f":"IFERROR(INDEX('Data Annex'!$K$1:$AN$4997,MATCH(Y$1&\"|\"&$B17,'Data Annex'!$K$1:$K$4997,0),MATCH(Y$2,'Data Annex'!$K$1:$AN$1,0)),\"\")","v":0.14580204390000001},0.27748346400000001,0.27026502999999996,0.26722967649999996,0.25394463829999997]
[7,"DK",null,"DK",null,{"$f":"IFERROR(INDEX('Data Annex'!$K$1:$AN$4997,MATCH(F$1&\"|\"&$B18,'Data Annex'!$K$1:$K$4997,0),MATCH(F$2,'Data Annex'!$K$1:$AN$1,0)),\"\")","v":0.52875040360000003},{"$f":"IFERROR(INDEX('Data Annex'!$K$1:$AN$4997,MATCH(G$1&\"|\"&$B18,'Data Annex'!$K$1:$K$4997,0),MATCH(G$2,'Data Annex'!$K$1:$AN$1,0)),\"\")","v":0.53081324409999997},{"$f":"IFERROR(INDEX('Data Annex'!$K$1:$AN$4997,MATCH(H$1&\"|\"&$B18,'Data Annex'!$K$1:$K$4997,0),MATCH(H$2,'Data Annex'!$K$1:$AN$1,0)),\"\")","v":0.54058289599999998},{"$f":"IFERROR(INDEX('Data Annex'!$K$1:$AN$4997,MATCH(I$1&\"|\"&$B18,'Data Annex'!$K$1:$K$4997,0),MATCH(I$2,'Data Annex'!$K$1:$AN$1,0)),\"\")","v":0.53561019929999998},{"$f":"IFERROR(INDEX('Data Annex'!$K$1:$AN$4997,MATCH(J$1&\"|\"&$B18,'Data Annex'!$K$1:$K$4997,0),MATCH(J$2,'Data Annex'!$K$1:$AN$1,0)),\"\")","v":2.9228782799999999E-2},{"$f":"IFERROR(INDEX('Data Annex'!$K$1:$AN$4997,MATCH(K$1&\"|\"&$B18,'Data Annex'!$K$1:$K$4997,0),MATCH(K$2,'Data Annex'!$K$1:$AN$1,0)),\"\")","v":2.6860699299999999E-2},{"$f":"IFERROR(INDEX('Data Annex'!$K$1:$AN$4997,MATCH(L$1&\"|\"&$B18,'Data Annex'!$K$1:$K$4997,0),MATCH(L$2,'Data Annex'!$K$1:$AN$1,0)),\"\")","v":2.5366631800000001E-2},{"$f":"IFERROR(INDEX('Data Annex'!$K$1:$AN$4997,MATCH(M$1&\"|\"&$B18,'Data Annex'!$K$1:$K$4997,0),MATCH(M$2,'Data Annex'!$K$1:$AN$1,0)),\"\")","v":2.8119070499999999E-2},{"$f":"IFERROR(INDEX('Data Annex'!$K$1:$AN$4997,MATCH(N$1&\"|\"&$B18,'Data Annex'!$K$1:$K$4997,0),MATCH(N$2,'Data Annex'!$K$1:$AN$1,0)),\"\")","v":0.1066310982},{"$f":"IFERROR(INDEX('Data Annex'!$K$1:$AN$4997,MATCH(O$1&\"|\"&$B18,'Data Annex'!$K$1:$K$4997,0),MATCH(O$2,'Data Annex'!$K$1:$AN$1,0)),\"\")","v":0.1113462519},{"$f":"IFERROR(INDEX('Data Annex'!$K$1:$AN$4997,MATCH(P$1&\"|\"&$B18,'Data Annex'!$K$1:$K$4997,0),MATCH(P$2,'Data Annex'!$K$1:$AN$1,0)),\"\")","v":0.1109984451},{"$f":"IFERROR(INDEX('Data Annex'!$K$1:$AN$4997,MATCH(Q$1&\"|\"&$B18,'Data Annex'!$K$1:$K$4997,0),MATCH(Q$2,'Data Annex'!$K$1:$AN$1,0)),\"\")","v":0.11243234489999999},{"$f":"IFERROR(INDEX('Data Annex'!$K$1:$AN$4997,MATCH(R$1&\"|\"&$B18,'Data Annex'!$K$1:$K$4997,0),MATCH(R$2,'Data Annex'!$K$1:$AN$1,0)),\"\")","v":7.7276470400000005E-2},{"$f":"IFERROR(INDEX('Data Annex'!$K$1:$AN$4997,MATCH(S$1&\"|\"&$B18,'Data Annex'!$K$1:$K$4997,0),MATCH(S$2,'Data Annex'!$K$1:$AN$1,0)),\"\")","v":9.2892349999999999E-2},{"$f":"IFERROR(INDEX('Data Annex'!$K$1:$AN$4997,MATCH(T$1&\"|\"&$B18,'Data Annex'!$K$1:$K$4997,0),MATCH(T$2,'Data Annex'!$K$1:$AN$1,0)),\"\")","v":9.5658579800000004E-2},{"$f":"IFERROR(INDEX('Data Annex'!$K$1:$AN$4997,MATCH(U$1&\"|\"&$B18,'Data Annex'!$K$1:$K$4997,0),MATCH(U$2,'Data Annex'!$K$1:$AN$1,0)),\"\")","v":0.1018430939},{"$f":"IFERROR(INDEX('Data Annex'!$K$1:$AN$4997,MATCH(V$1&\"|\"&$B18,'Data Annex'!$K$1:$K$4997,0),MATCH(V$2,'Data Annex'!$K$1:$AN$1,0)),\"\")","v":7.5373261100000005E-2},{"$f":"IFERROR(INDEX('Data Annex'!$K$1:$AN$4997,MATCH(W$1&\"|\"&$B18,'Data Annex'!$K$1:$K$4997,0),MATCH(W$2,'Data Annex'!$K$1:$AN$1,0)),\"\")","v":7.9985243600000006E-2},{"$f":"IFERROR(INDEX('Data Annex'!$K$1:$AN$4997,MATCH(X$1&\"|\"&$B18,'Data Annex'!$K$1:$K$4997,0),MATCH(X$2,'Data Annex'!$K$1:$AN$1,0)),\"\")","v":7.73828981E-2},{"$f":"IFERROR(INDEX('Data Annex'!$K$1:$AN$4997,MATCH(Y$1&\"|\"&$B18,'Data Annex'!$K$1:$K$4997,0),MATCH(Y$2,'Data Annex'!$K$1:$AN$1,0)),\"\")","v":7.4392569800000002E-2},0.18273998389999993,0.15810221109999997,0.15001054920000001,0.14760272160000001]
[8,"EE",null,"EE",null,{"$f":"IFERROR(INDEX('Data Annex'!$K$1:$AN$4997,MATCH(F$1&\"|\"&$B19,'Data Annex'!$K$1:$K$4997,0),MATCH(F$2,'Data Annex'!$K$1:$AN$1,0)),\"\")","v":4.05173562E-2},{"$f":"IFERROR(INDEX('Data Annex'!$K$1:$AN$4997,MATCH(G$1&\"|\"&$B19,'Data Annex'!$K$1:$K$4997,0),MATCH(G$2,'Data Annex'!$K$1:$AN$1,0)),\"\")","v":4.4875441699999997E-2},{"$f":"IFERROR(INDEX('Data Annex'!$K$1:$AN$4997,MATCH(H$1&\"|\"&$B19,'Data Annex'!$K$1:$K$4997,0),MATCH(H$2,'Data Annex'!$K$1:$AN$1,0)),\"\")","v":4.4541157300000002E-2},{"$f":"IFERROR(INDEX('Data Annex'!$K$1:$AN$4997,MATCH(I$1&\"|\"&$B19,'Data Annex'!$K$1:$K$4997,0),MATCH(I$2,'Data Annex'!$K$1:$AN$1,0)),\"\")","v":4.2381725699999998E-2},{"$f":"IFERROR(INDEX('Data Annex'!$K$1:$AN$4997,MATCH(J$1&\"|\"&$B19,'Data Annex'!$K$1:$K$4997,0),MATCH(J$2,'Data Annex'!$K$1:$AN$1,0)),\"\")","v":5.0706664300000003E-2},{"$f":"IFERROR(INDEX('Data Annex'!$K$1:$AN$4997,MATCH(K$1&\"|\"&$B19,'Data Annex'!$K$1:$K$4997,0),MATCH(K$2,'Data Annex'!$K$1:$AN$1,0)),\"\")","v":3.80976357E-2},{"$f":"IFERROR(INDEX('Data Annex'!$K$1:$AN$4997,MATCH(L$1&\"|\"&$B19,'Data Annex'!$K$1:$K$4997,0),MATCH(L$2,'Data Annex'!$K$1:$AN$1,0)),\"\")","v":3.4323571400000003E-2},{"$f":"IFERROR(INDEX('Data Annex'!$K$1:$AN$4997,MATCH(M$1&\"|\"&$B19,'Data Annex'!$K$1:$K$4997,0),MATCH(M$2,'Data Annex'!$K$1:$AN$1,0)),\"\")","v":2.9156992900000001E-2},{"$f":"IFERROR(INDEX('Data Annex'!$K$1:$AN$4997,MATCH(N$1&\"|\"&$B19,'Data Annex'!$K$1:$K$4997,0),MATCH(N$2,'Data Annex'!$K$1:$AN$1,0)),\"\")","v":0.39778875409999997},{"$f":"IFERROR(INDEX('Data Annex'!$K$1:$AN$4997,MATCH(O$1&\"|\"&$B19,'Data Annex'!$K$1:$K$4997,0),MATCH(O$2,'Data Annex'!$K$1:$AN$1,0)),\"\")","v":0.3736192458},{"$f":"IFERROR(INDEX('Data Annex'!$K$1:$AN$4997,MATCH(P$1&\"|\"&$B19,'Data Annex'!$K$1:$K$4997,0),MATCH(P$2,'Data Annex'!$K$1:$AN$1,0)),\"\")","v":0.36458828230000001},{"$f":"IFERROR(INDEX('Data Annex'!$K$1:$AN$4997,MATCH(Q$1&\"|\"&$B19,'Data Annex'!$K$1:$K$4997,0),MATCH(Q$2,'Data Annex'!$K$1:$AN$1,0)),\"\")","v":0.36170224579999999},{"$f":"IFERROR(INDEX('Data Annex'!$K$1:$AN$4997,MATCH(R$1&\"|\"&$B19,'Data Annex'!$K$1:$K$4997,0),MATCH(R$2,'Data Annex'!$K$1:$AN$1,0)),\"\")","v":0.33300434620000002},{"$f":"IFERROR(INDEX('Data Annex'!$K$1:$AN$4997,MATCH(S$1&\"|\"&$B19,'Data Annex'!$K$1:$K$4997,0),MATCH(S$2,'Data Annex'!$K$1:$AN$1,0)),\"\")","v":0.30674175939999998},{"$f":"IFERROR(INDEX('Data Annex'!$K$1:$AN$4997,MATCH(T$1&\"|\"&$B19,'Data Annex'!$K$1:$K$4997,0),MATCH(T$2,'Data Annex'!$K$1:$AN$1,0)),\"\")","v":0.30695242779999998},{"$f":"IFERROR(INDEX('Data Annex'!$K$1:$AN$4997,MATCH(U$1&\"|\"&$B19,'Data Annex'!$K$1:$K$4997,0),MATCH(U$2,'Data Annex'!$K$1:$AN$1,0)),\"\")","v":0.32111505800000001},{"$f":"IFERROR(INDEX('Data Annex'!$K$1:$AN$4997,MATCH(V$1&\"|\"&$B19,'Data Annex'!$K$1:$K$4997,0),MATCH(V$2,'Data Annex'!$K$1:$AN$1,0)),\"\")","v":0.15442905409999999},{"$f":"IFERROR(INDEX('Data Annex'!$K$1:$AN$4997,MATCH(W$1&\"|\"&$B19,'Data Annex'!$K$1:$K$4997,0),MATCH(W$2,'Data Annex'!$K$1:$AN$1,0)),\"\")","v":0.16891576019999999},{"$f":"IFERROR(INDEX('Data Annex'!$K$1:$AN$4997,MATCH(X$1&\"|\"&$B19,'Data Annex'!$K$1:$K$4997,0),MATCH(X$2,'Data Annex'!$K$1:$AN$1,0)),\"\")","v":0.17908140880000001},{"$f":"IFERROR(INDEX('Data Annex'!$K$1:$AN$4997,MATCH(Y$1&\"|\"&$B19,'Data Annex'!$K$1:$K$4997,0),MATCH(Y$2,'Data Annex'!$K$1:$AN$1,0)),\"\")","v":0.18020982029999999},2.3553825100000064E-2,6.775015720000005E-2,7.0513152400000112E-2,6.5434157300000073E-2]
[9,"ES",null,"ES",null,{"$f":"IFERROR(INDEX('Data Annex'!$K$1:$AN$4997,MATCH(F$1&\"|\"&$B20,'Data Annex'!$K$1:$K$4997,0),MATCH(F$2,'Data Annex'!$K$1:$AN$1,0)),\"\")","v":0.1349244913},{"$f":"IFERROR(INDEX('Data Annex'!$K$1:$AN$4997,MATCH(G$1&\"|\"&$B20,'Data Annex'!$K$1:$K$4997,0),MATCH(G$2,'Data Annex'!$K$1:$AN$1,0)),\"\")","v":0.12738389159999999},{"$f":"IFERROR(INDEX('Data Annex'!$K$1:$AN$4997,MATCH(H$1&\"|\"&$B20,'Data Annex'!$K$1:$K$4997,0),MATCH(H$2,'Data Annex'!$K$1:$AN$1,0)),\"\")","v":0.12714136879999999},{"$f":"IFERROR(INDEX('Data Annex'!$K$1:$AN$4997,MATCH(I$1&\"|\"&$B20,'Data Annex'!$K$1:$K$4997,0),MATCH(I$2,'Data Annex'!$K$1:$AN$1,0)),\"\")","v":0.1162665444},{"$f":"IFERROR(INDEX('Data Annex'!$K$1:$AN$4997,MATCH(J$1&\"|\"&$B20,'Data Annex'!$K$1:$K$4997,0),MATCH(J$2,'Data Annex'!$K$1:$AN$1,0)),\"\")","v":7.3705536500000002E-2},{"$f":"IFERROR(INDEX('Data Annex'!$K$1:$AN$4997,MATCH(K$1&\"|\"&$B20,'Data Annex'!$K$1:$K$4997,0),MATCH(K$2,'Data Annex'!$K$1:$AN$1,0)),\"\")","v":6.2636170099999999E-2},{"$f":"IFERROR(INDEX('Data Annex'!$K$1:$AN$4997,MATCH(L$1&\"|\"&$B20,'Data Annex'!$K$1:$K$4997,0),MATCH(L$2,'Data Annex'!$K$1:$AN$1,0)),\"\")","v":5.6079523800000003E-2},{"$f":"IFERROR(INDEX('Data Annex'!$K$1:$AN$4997,MATCH(M$1&\"|\"&$B20,'Data Annex'!$K$1:$K$4997,0),MATCH(M$2,'Data Annex'!$K$1:$AN$1,0)),\"\")","v":4.3565790600000001E-2},{"$f":"IFERROR(INDEX('Data Annex'!$K$1:$AN$4997,MATCH(N$1&\"|\"&$B20,'Data Annex'!$K$1:$K$4997,0),MATCH(N$2,'Data Annex'!$K$1:$AN$1,0)),\"\")","v":0.38185780559999999},{"$f":"IFERROR(INDEX('Data Annex'!$K$1:$AN$4997,MATCH(O$1&\"|\"&$B20,'Data Annex'!$K$1:$K$4997,0),MATCH(O$2,'Data Annex'!$K$1:$AN$1,0)),\"\")","v":0.37462558439999999},{"$f":"IFERROR(INDEX('Data Annex'!$K$1:$AN$4997,MATCH(P$1&\"|\"&$B20,'Data Annex'!$K$1:$K$4997,0),MATCH(P$2,'Data Annex'!$K$1:$AN$1,0)),\"\")","v":0.38160968839999998},{"$f":"IFERROR(INDEX('Data Annex'!$K$1:$AN$4997,MATCH(Q$1&\"|\"&$B20,'Data Annex'!$K$1:$K$4997,0),MATCH(Q$2,'Data Annex'!$K$1:$AN$1,0)),\"\")","v":0.35313755790000001},{"$f":"IFERROR(INDEX('Data Annex'!$K$1:$AN$4997,MATCH(R$1&\"|\"&$B20,'Data Annex'!$K$1:$K$4997,0),MATCH(R$2,'Data Annex'!$K$1:$AN$1,0)),\"\")","v":0.14687343520000001},{"$f":"IFERROR(INDEX('Data Annex'!$K$1:$AN$4997,MATCH(S$1&\"|\"&$B20,'Data Annex'!$K$1:$K$4997,0),MATCH(S$2,'Data Annex'!$K$1:$AN$1,0)),\"\")","v":0.1552906473},{"$f":"IFERROR(INDEX('Data Annex'!$K$1:$AN$4997,MATCH(T$1&\"|\"&$B20,'Data Annex'!$K$1:$K$4997,0),MATCH(T$2,'Data Annex'!$K$1:$AN$1,0)),\"\")","v":0.1589575701},{"$f":"IFERROR(INDEX('Data Annex'!$K$1:$AN$4997,MATCH(U$1&\"|\"&$B20,'Data Annex'!$K$1:$K$4997,0),MATCH(U$2,'Data Annex'!$K$1:$AN$1,0)),\"\")","v":0.1482008641},{"$f":"IFERROR(INDEX('Data Annex'!$K$1:$AN$4997,MATCH(V$1&\"|\"&$B20,'Data Annex'!$K$1:$K$4997,0),MATCH(V$2,'Data Annex'!$K$1:$AN$1,0)),\"\")","v":8.8574182599999995E-2},{"$f":"IFERROR(INDEX('Data Annex'!$K$1:$AN$4997,MATCH(W$1&\"|\"&$B20,'Data Annex'!$K$1:$K$4997,0),MATCH(W$2,'Data Annex'!$K$1:$AN$1,0)),\"\")","v":8.6765024199999999E-2},{"$f":"IFERROR(INDEX('Data Annex'!$K$1:$AN$4997,MATCH(X$1&\"|\"&$B20,'Data Annex'!$K$1:$K$4997,0),MATCH(X$2,'Data Annex'!$K$1:$AN$1,0)),\"\")","v":8.8818354500000002E-2},{"$f":"IFERROR(INDEX('Data Annex'!$K$1:$AN$4997,MATCH(Y$1&\"|\"&$B20,'Data Annex'!$K$1:$K$4997,0),MATCH(Y$2,'Data Annex'!$K$1:$AN$1,0)),\"\")","v":7.94579807E-2},0.17406454879999994,0.19329868240000003,0.18739349439999994,0.25937126230000007]
[10,"FI",null,"FI",null,{"$f":"IFERROR(INDEX('Data Annex'!$K$1:$AN$4997,MATCH(F$1&\"|\"&$B21,'Data Annex'!$K$1:$K$4997,0),MATCH(F$2,'Data Annex'!$K$1:$AN$1,0)),\"\")","v":0.37375757859999997},{"$f":"IFERROR(INDEX('Data Annex'!$K$1:$AN$4997,MATCH(G$1&\"|\"&$B21,'Data Annex'!$K$1:$K$4997,0),MATCH(G$2,'Data Annex'!$K$1:$AN$1,0)),\"\")","v":0.38105646659999998},{"$f":"IFERROR(INDEX('Data Annex'!$K$1:$AN$4997,MATCH(H$1&\"|\"&$B21,'Data Annex'!$K$1:$K$4997,0),MATCH(H$2,'Data Annex'!$K$1:$AN$1,0)),\"\")","v":0.38479375300000002},{"$f":"IFERROR(INDEX('Data Annex'!$K$1:$AN$4997,MATCH(I$1&\"|\"&$B21,'Data Annex'!$K$1:$K$4997,0),MATCH(I$2,'Data Annex'!$K$1:$AN$1,0)),\"\")","v":0.39179296600000002},{"$f":"IFERROR(INDEX('Data Annex'!$K$1:$AN$4997,MATCH(J$1&\"|\"&$B21,'Data Annex'!$K$1:$K$4997,0),MATCH(J$2,'Data Annex'!$K$1:$AN$1,0)),\"\")","v":4.10662049E-2},{"$f":"IFERROR(INDEX('Data Annex'!$K$1:$AN$4997,MATCH(K$1&\"|\"&$B21,'Data Annex'!$K$1:$K$4997,0),MATCH(K$2,'Data Annex'!$K$1:$AN$1,0)),\"\")","v":3.4812668900000003E-2},{"$f":"IFERROR(INDEX('Data Annex'!$K$1:$AN$4997,MATCH(L$1&\"|\"&$B21,'Data Annex'!$K$1:$K$4997,0),MATCH(L$2,'Data Annex'!$K$1:$AN$1,0)),\"\")","v":2.6692830300000001E-2},{"$f":"IFERROR(INDEX('Data Annex'!$K$1:$AN$4997,MATCH(M$1&\"|\"&$B21,'Data Annex'!$K$1:$K$4997,0),MATCH(M$2,'Data Annex'!$K$1:$AN$1,0)),\"\")","v":1.51923226E-2},{"$f":"IFERROR(INDEX('Data Annex'!$K$1:$AN$4997,MATCH(N$1&\"|\"&$B21,'Data Annex'!$K$1:$K$4997,0),MATCH(N$2,'Data Annex'!$K$1:$AN$1,0)),\"\")","v":0.18945963590000001},{"$f":"IFERROR(INDEX('Data Annex'!$K$1:$AN$4997,MATCH(O$1&\"|\"&$B21,'Data Annex'!$K$1:$K$4997,0),MATCH(O$2,'Data Annex'!$K$1:$AN$1,0)),\"\")","v":0.20221163680000001},{"$f":"IFERROR(INDEX('Data Annex'!$K$1:$AN$4997,MATCH(P$1&\"|\"&$B21,'Data Annex'!$K$1:$K$4997,0),MATCH(P$2,'Data Annex'!$K$1:$AN$1,0)),\"\")","v":0.20753973070000001},{"$f":"IFERROR(INDEX('Data Annex'!$K$1:$AN$4997,MATCH(Q$1&\"|\"&$B21,'Data Annex'!$K$1:$K$4997,0),MATCH(Q$2,'Data Annex'!$K$1:$AN$1,0)),\"\")","v":0.21798849789999999},{"$f":"IFERROR(INDEX('Data Annex'!$K$1:$AN$4997,MATCH(R$1&\"|\"&$B21,'Data Annex'!$K$1:$K$4997,0),MATCH(R$2,'Data Annex'!$K$1:$AN$1,0)),\"\")","v":0.114267853},{"$f":"IFERROR(INDEX('Data Annex'!$K$1:$AN$4997,MATCH(S$1&\"|\"&$B21,'Data Annex'!$K$1:$K$4997,0),MATCH(S$2,'Data Annex'!$K$1:$AN$1,0)),\"\")","v":0.14051290759999999},{"$f":"IFERROR(INDEX('Data Annex'!$K$1:$AN$4997,MATCH(T$1&\"|\"&$B21,'Data Annex'!$K$1:$K$4997,0),MATCH(T$2,'Data Annex'!$K$1:$AN$1,0)),\"\")","v":0.1406308439},{"$f":"IFERROR(INDEX('Data Annex'!$K$1:$AN$4997,MATCH(U$1&\"|\"&$B21,'Data Annex'!$K$1:$K$4997,0),MATCH(U$2,'Data Annex'!$K$1:$AN$1,0)),\"\")","v":0.13135708069999999},{"$f":"IFERROR(INDEX('Data Annex'!$K$1:$AN$4997,MATCH(V$1&\"|\"&$B21,'Data Annex'!$K$1:$K$4997,0),MATCH(V$2,'Data Annex'!$K$1:$AN$1,0)),\"\")","v":7.0438633400000006E-2},{"$f":"IFERROR(INDEX('Data Annex'!$K$1:$AN$4997,MATCH(W$1&\"|\"&$B21,'Data Annex'!$K$1:$K$4997,0),MATCH(W$2,'Data Annex'!$K$1:$AN$1,0)),\"\")","v":5.7857365299999998E-2},{"$f":"IFERROR(INDEX('Data Annex'!$K$1:$AN$4997,MATCH(X$1&\"|\"&$B21,'Data Annex'!$K$1:$K$4997,0),MATCH(X$2,'Data Annex'!$K$1:$AN$1,0)),\"\")","v":6.5117928699999994E-2},{"$f":"IFERROR(INDEX('Data Annex'!$K$1:$AN$4997,MATCH(Y$1&\"|\"&$B21,'Data Annex'!$K$1:$K$4997,0),MATCH(Y$2,'Data Annex'!$K$1:$AN$1,0)),\"\")","v":7.1635011100000007E-2},0.21101009419999994,0.1835489548,0.17522491339999993,0.17203412169999999]
[11,"FR",null,"FR",null,{"$f":"IFERROR(INDEX('Data Annex'!$K$1:$AN$4997,MATCH(F$1&\"|\"&$B22,'Data Annex'!$K$1:$K$4997,0),MATCH(F$2,'Data Annex'!$K$1:$AN$1,0)),\"\")","v":0.1676120918},{"$f":"IFERROR(INDEX('Data Annex'!$K$1:$AN$4997,MATCH(G$1&\"|\"&$B22,'Data Annex'!$K$1:$K$4997,0),MATCH(G$2,'Data Annex'!$K$1:$AN$1,0)),\"\")","v":0.1684457583},{"$f":"IFERROR(INDEX('Data Annex'!$K$1:$AN$4997,MATCH(H$1&\"|\"&$B22,'Data Annex'!$K$1:$K$4997,0),MATCH(H$2,'Data Annex'!$K$1:$AN$1,0)),\"\")","v":0.16290656279999999},{"$f":"IFERROR(INDEX('Data Annex'!$K$1:$AN$4997,MATCH(I$1&\"|\"&$B22,'Data Annex'!$K$1:$K$4997,0),MATCH(I$2,'Data Annex'!$K$1:$AN$1,0)),\"\")","v":0.16382852170000001},{"$f":"IFERROR(INDEX('Data Annex'!$K$1:$AN$4997,MATCH(J$1&\"|\"&$B22,'Data Annex'!$K$1:$K$4997,0),MATCH(J$2,'Data Annex'!$K$1:$AN$1,0)),\"\")","v":5.2592758900000001E-2},{"$f":"IFERROR(INDEX('Data Annex'!$K$1:$AN$4997,MATCH(K$1&\"|\"&$B22,'Data Annex'!$K$1:$K$4997,0),MATCH(K$2,'Data Annex'!$K$1:$AN$1,0)),\"\")","v":5.3959744400000002E-2},{"$f":"IFERROR(INDEX('Data Annex'!$K$1:$AN$4997,MATCH(L$1&\"|\"&$B22,'Data Annex'!$K$1:$K$4997,0),MATCH(L$2,'Data Annex'!$K$1:$AN$1,0)),\"\")","v":5.4029492599999999E-2},{"$f":"IFERROR(INDEX('Data Annex'!$K$1:$AN$4997,MATCH(M$1&\"|\"&$B22,'Data Annex'!$K$1:$K$4997,0),MATCH(M$2,'Data Annex'!$K$1:$AN$1,0)),\"\")","v":4.49813809E-2},{"$f":"IFERROR(INDEX('Data Annex'!$K$1:$AN$4997,MATCH(N$1&\"|\"&$B22,'Data Annex'!$K$1:$K$4997,0),MATCH(N$2,'Data Annex'!$K$1:$AN$1,0)),\"\")","v":0.23537377700000001},{"$f":"IFERROR(INDEX('Data Annex'!$K$1:$AN$4997,MATCH(O$1&\"|\"&$B22,'Data Annex'!$K$1:$K$4997,0),MATCH(O$2,'Data Annex'!$K$1:$AN$1,0)),\"\")","v":0.2401482566},{"$f":"IFERROR(INDEX('Data Annex'!$K$1:$AN$4997,MATCH(P$1&\"|\"&$B22,'Data Annex'!$K$1:$K$4997,0),MATCH(P$2,'Data Annex'!$K$1:$AN$1,0)),\"\")","v":0.24222372410000001},{"$f":"IFERROR(INDEX('Data Annex'!$K$1:$AN$4997,MATCH(Q$1&\"|\"&$B22,'Data Annex'!$K$1:$K$4997,0),MATCH(Q$2,'Data Annex'!$K$1:$AN$1,0)),\"\")","v":0.25148203520000001},{"$f":"IFERROR(INDEX('Data Annex'!$K$1:$AN$4997,MATCH(R$1&\"|\"&$B22,'Data Annex'!$K$1:$K$4997,0),MATCH(R$2,'Data Annex'!$K$1:$AN$1,0)),\"\")","v":0.1508507912},{"$f":"IFERROR(INDEX('Data Annex'!$K$1:$AN$4997,MATCH(S$1&\"|\"&$B22,'Data Annex'!$K$1:$K$4997,0),MATCH(S$2,'Data Annex'!$K$1:$AN$1,0)),\"\")","v":0.16848170100000001},{"$f":"IFERROR(INDEX('Data Annex'!$K$1:$AN$4997,MATCH(T$1&\"|\"&$B22,'Data Annex'!$K$1:$K$4997,0),MATCH(T$2,'Data Annex'!$K$1:$AN$1,0)),\"\")","v":0.1721621572},{"$f":"IFERROR(INDEX('Data Annex'!$K$1:$AN$4997,MATCH(U$1&\"|\"&$B22,'Data Annex'!$K$1:$K$4997,0),MATCH(U$2,'Data Annex'!$K$1:$AN$1,0)),\"\")","v":0.1747919319},{"$f":"IFERROR(INDEX('Data Annex'!$K$1:$AN$4997,MATCH(V$1&\"|\"&$B22,'Data Annex'!$K$1:$K$4997,0),MATCH(V$2,'Data Annex'!$K$1:$AN$1,0)),\"\")","v":0.13464156259999999},{"$f":"IFERROR(INDEX('Data Annex'!$K$1:$AN$4997,MATCH(W$1&\"|\"&$B22,'Data Annex'!$K$1:$K$4997,0),MATCH(W$2,'Data Annex'!$K$1:$AN$1,0)),\"\")","v":0.1262320059},{"$f":"IFERROR(INDEX('Data Annex'!$K$1:$AN$4997,MATCH(X$1&\"|\"&$B22,'Data Annex'!$K$1:$K$4997,0),MATCH(X$2,'Data Annex'!$K$1:$AN$1,0)),\"\")","v":0.1264571182},{"$f":"IFERROR(INDEX('Data Annex'!$K$1:$AN$4997,MATCH(Y$1&\"|\"&$B22,'Data Annex'!$K$1:$K$4997,0),MATCH(Y$2,'Data Annex'!$K$1:$AN$1,0)),\"\")","v":0.12395732199999999},0.2589290185,0.24273253379999998,0.24222094510000003,0.24095880830000005]
[13,"GR",null,"GR",null,{"$f":"IFERROR(INDEX('Data Annex'!$K$1:$AN$4997,MATCH(F$1&\"|\"&$B23,'Data Annex'!$K$1:$K$4997,0),MATCH(F$2,'Data Annex'!$K$1:$AN$1,0)),\"\")","v":2.8212201700000002E-2},{"$f":"IFERROR(INDEX('Data Annex'!$K$1:$AN$4997,MATCH(G$1&\"|\"&$B23,'Data Annex'!$K$1:$K$4997,0),MATCH(G$2,'Data Annex'!$K$1:$AN$1,0)),\"\")","v":2.58083531E-2},{"$f":"IFERROR(INDEX('Data Annex'!$K$1:$AN$4997,MATCH(H$1&\"|\"&$B23,'Data Annex'!$K$1:$K$4997,0),MATCH(H$2,'Data Annex'!$K$1:$AN$1,0)),\"\")","v":2.56846963E-2},{"$f":"IFERROR(INDEX('Data Annex'!$K$1:$AN$4997,MATCH(I$1&\"|\"&$B23,'Data Annex'!$K$1:$K$4997,0),MATCH(I$2,'Data Annex'!$K$1:$AN$1,0)),\"\")","v":1.9829075099999999E-2},{"$f":"IFERROR(INDEX('Data Annex'!$K$1:$AN$4997,MATCH(J$1&\"|\"&$B23,'Data Annex'!$K$1:$K$4997,0),MATCH(J$2,'Data Annex'!$K$1:$AN$1,0)),\"\")","v":7.0297095800000001E-2},{"$f":"IFERROR(INDEX('Data Annex'!$K$1:$AN$4997,MATCH(K$1&\"|\"&$B23,'Data Annex'!$K$1:$K$4997,0),MATCH(K$2,'Data Annex'!$K$1:$AN$1,0)),\"\")","v":2.8654406899999998E-2},{"$f":"IFERROR(INDEX('Data Annex'!$K$1:$AN$4997,MATCH(L$1&\"|\"&$B23,'Data Annex'!$K$1:$K$4997,0),MATCH(L$2,'Data Annex'!$K$1:$AN$1,0)),\"\")","v":2.23661203E-2},{"$f":"IFERROR(INDEX('Data Annex'!$K$1:$AN$4997,MATCH(M$1&\"|\"&$B23,'Data Annex'!$K$1:$K$4997,0),MATCH(M$2,'Data Annex'!$K$1:$AN$1,0)),\"\")","v":2.0585803600000001E-2},{"$f":"IFERROR(INDEX('Data Annex'!$K$1:$AN$4997,MATCH(N$1&\"|\"&$B23,'Data Annex'!$K$1:$K$4997,0),MATCH(N$2,'Data Annex'!$K$1:$AN$1,0)),\"\")","v":0.53513590249999998},{"$f":"IFERROR(INDEX('Data Annex'!$K$1:$AN$4997,MATCH(O$1&\"|\"&$B23,'Data Annex'!$K$1:$K$4997,0),MATCH(O$2,'Data Annex'!$K$1:$AN$1,0)),\"\")","v":0.51530518950000004},{"$f":"IFERROR(INDEX('Data Annex'!$K$1:$AN$4997,MATCH(P$1&\"|\"&$B23,'Data Annex'!$K$1:$K$4997,0),MATCH(P$2,'Data Annex'!$K$1:$AN$1,0)),\"\")","v":0.50970582099999995},{"$f":"IFERROR(INDEX('Data Annex'!$K$1:$AN$4997,MATCH(Q$1&\"|\"&$B23,'Data Annex'!$K$1:$K$4997,0),MATCH(Q$2,'Data Annex'!$K$1:$AN$1,0)),\"\")","v":0.51236870030000004},{"$f":"IFERROR(INDEX('Data Annex'!$K$1:$AN$4997,MATCH(R$1&\"|\"&$B23,'Data Annex'!$K$1:$K$4997,0),MATCH(R$2,'Data Annex'!$K$1:$AN$1,0)),\"\")","v":0.14005065529999999},{"$f":"IFERROR(INDEX('Data Annex'!$K$1:$AN$4997,MATCH(S$1&\"|\"&$B23,'Data Annex'!$K$1:$K$4997,0),MATCH(S$2,'Data Annex'!$K$1:$AN$1,0)),\"\")","v":0.1400918461},{"$f":"IFERROR(INDEX('Data Annex'!$K$1:$AN$4997,MATCH(T$1&\"|\"&$B23,'Data Annex'!$K$1:$K$4997,0),MATCH(T$2,'Data Annex'!$K$1:$AN$1,0)),\"\")","v":0.1524700598},{"$f":"IFERROR(INDEX('Data Annex'!$K$1:$AN$4997,MATCH(U$1&\"|\"&$B23,'Data Annex'!$K$1:$K$4997,0),MATCH(U$2,'Data Annex'!$K$1:$AN$1,0)),\"\")","v":0.16039522349999999},{"$f":"IFERROR(INDEX('Data Annex'!$K$1:$AN$4997,MATCH(V$1&\"|\"&$B23,'Data Annex'!$K$1:$K$4997,0),MATCH(V$2,'Data Annex'!$K$1:$AN$1,0)),\"\")","v":0.1022159718},{"$f":"IFERROR(INDEX('Data Annex'!$K$1:$AN$4997,MATCH(W$1&\"|\"&$B23,'Data Annex'!$K$1:$K$4997,0),MATCH(W$2,'Data Annex'!$K$1:$AN$1,0)),\"\")","v":6.7837725599999996E-2},{"$f":"IFERROR(INDEX('Data Annex'!$K$1:$AN$4997,MATCH(X$1&\"|\"&$B23,'Data Annex'!$K$1:$K$4997,0),MATCH(X$2,'Data Annex'!$K$1:$AN$1,0)),\"\")","v":6.4170716799999999E-2},{"$f":"IFERROR(INDEX('Data Annex'!$K$1:$AN$4997,MATCH(Y$1&\"|\"&$B23,'Data Annex'!$K$1:$K$4997,0),MATCH(Y$2,'Data Annex'!$K$1:$AN$1,0)),\"\")","v":6.3036235499999996E-2},0.12408817289999999,0.22230247879999998,0.22560258580000006,0.22378496200000003]
[14,"HR",null,"HR",null,{"$f":"IFERROR(INDEX('Data Annex'!$K$1:$AN$4997,MATCH(F$1&\"|\"&$B24,'Data Annex'!$K$1:$K$4997,0),MATCH(F$2,'Data Annex'!$K$1:$AN$1,0)),\"\")","v":2.4667117000000001E-3},{"$f":"IFERROR(INDEX('Data Annex'!$K$1:$AN$4997,MATCH(G$1&\"|\"&$B24,'Data Annex'!$K$1:$K$4997,0),MATCH(G$2,'Data Annex'!$K$1:$AN$1,0)),\"\")","v":2.4013302000000002E-3},{"$f":"IFERROR(INDEX('Data Annex'!$K$1:$AN$4997,MATCH(H$1&\"|\"&$B24,'Data Annex'!$K$1:$K$4997,0),MATCH(H$2,'Data Annex'!$K$1:$AN$1,0)),\"\")","v":2.4184672000000002E-3},{"$f":"IFERROR(INDEX('Data Annex'!$K$1:$AN$4997,MATCH(I$1&\"|\"&$B24,'Data Annex'!$K$1:$K$4997,0),MATCH(I$2,'Data Annex'!$K$1:$AN$1,0)),\"\")","v":2.3526236000000001E-3},{"$f":"IFERROR(INDEX('Data Annex'!$K$1:$AN$4997,MATCH(J$1&\"|\"&$B24,'Data Annex'!$K$1:$K$4997,0),MATCH(J$2,'Data Annex'!$K$1:$AN$1,0)),\"\")","v":8.0014143699999998E-2},{"$f":"IFERROR(INDEX('Data Annex'!$K$1:$AN$4997,MATCH(K$1&\"|\"&$B24,'Data Annex'!$K$1:$K$4997,0),MATCH(K$2,'Data Annex'!$K$1:$AN$1,0)),\"\")","v":7.2520182799999999E-2},{"$f":"IFERROR(INDEX('Data Annex'!$K$1:$AN$4997,MATCH(L$1&\"|\"&$B24,'Data Annex'!$K$1:$K$4997,0),MATCH(L$2,'Data Annex'!$K$1:$AN$1,0)),\"\")","v":6.2129651000000001E-2},{"$f":"IFERROR(INDEX('Data Annex'!$K$1:$AN$4997,MATCH(M$1&\"|\"&$B24,'Data Annex'!$K$1:$K$4997,0),MATCH(M$2,'Data Annex'!$K$1:$AN$1,0)),\"\")","v":6.7131834500000001E-2},{"$f":"IFERROR(INDEX('Data Annex'!$K$1:$AN$4997,MATCH(N$1&\"|\"&$B24,'Data Annex'!$K$1:$K$4997,0),MATCH(N$2,'Data Annex'!$K$1:$AN$1,0)),\"\")","v":0.57153314820000001},{"$f":"IFERROR(INDEX('Data Annex'!$K$1:$AN$4997,MATCH(O$1&\"|\"&$B24,'Data Annex'!$K$1:$K$4997,0),MATCH(O$2,'Data Annex'!$K$1:$AN$1,0)),\"\")","v":0.564117223},{"$f":"IFERROR(INDEX('Data Annex'!$K$1:$AN$4997,MATCH(P$1&\"|\"&$B24,'Data Annex'!$K$1:$K$4997,0),MATCH(P$2,'Data Annex'!$K$1:$AN$1,0)),\"\")","v":0.57431661089999997},{"$f":"IFERROR(INDEX('Data Annex'!$K$1:$AN$4997,MATCH(Q$1&\"|\"&$B24,'Data Annex'!$K$1:$K$4997,0),MATCH(Q$2,'Data Annex'!$K$1:$AN$1,0)),\"\")","v":0.57116666729999999},{"$f":"IFERROR(INDEX('Data Annex'!$K$1:$AN$4997,MATCH(R$1&\"|\"&$B24,'Data Annex'!$K$1:$K$4997,0),MATCH(R$2,'Data Annex'!$K$1:$AN$1,0)),\"\")","v":0.20103076040000001},{"$f":"IFERROR(INDEX('Data Annex'!$K$1:$AN$4997,MATCH(S$1&\"|\"&$B24,'Data Annex'!$K$1:$K$4997,0),MATCH(S$2,'Data Annex'!$K$1:$AN$1,0)),\"\")","v":0.21292555630000001},{"$f":"IFERROR(INDEX('Data Annex'!$K$1:$AN$4997,MATCH(T$1&\"|\"&$B24,'Data Annex'!$K$1:$K$4997,0),MATCH(T$2,'Data Annex'!$K$1:$AN$1,0)),\"\")","v":0.22123038449999999},{"$f":"IFERROR(INDEX('Data Annex'!$K$1:$AN$4997,MATCH(U$1&\"|\"&$B24,'Data Annex'!$K$1:$K$4997,0),MATCH(U$2,'Data Annex'!$K$1:$AN$1,0)),\"\")","v":0.2234516346},{"$f":"IFERROR(INDEX('Data Annex'!$K$1:$AN$4997,MATCH(V$1&\"|\"&$B24,'Data Annex'!$K$1:$K$4997,0),MATCH(V$2,'Data Annex'!$K$1:$AN$1,0)),\"\")","v":0.1042053501},{"$f":"IFERROR(INDEX('Data Annex'!$K$1:$AN$4997,MATCH(W$1&\"|\"&$B24,'Data Annex'!$K$1:$K$4997,0),MATCH(W$2,'Data Annex'!$K$1:$AN$1,0)),\"\")","v":0.10801325069999999},{"$f":"IFERROR(INDEX('Data Annex'!$K$1:$AN$4997,MATCH(X$1&\"|\"&$B24,'Data Annex'!$K$1:$K$4997,0),MATCH(X$2,'Data Annex'!$K$1:$AN$1,0)),\"\")","v":0.10390568610000001},{"$f":"IFERROR(INDEX('Data Annex'!$K$1:$AN$4997,MATCH(Y$1&\"|\"&$B24,'Data Annex'!$K$1:$K$4997,0),MATCH(Y$2,'Data Annex'!$K$1:$AN$1,0)),\"\")","v":9.99921644E-2},4.0749885899999935E-2,4.0022456999999942E-2,3.5999200299999978E-2,3.5905075599999975E-2]
[15,"HU",null,"HU",null,{"$f":"IFERROR(INDEX('Data Annex'!$K$1:$AN$4997,MATCH(F$1&\"|\"&$B25,'Data Annex'!$K$1:$K$4997,0),MATCH(F$2,'Data Annex'!$K$1:$AN$1,0)),\"\")","v":3.7982795600000001E-2},{"$f":"IFERROR(INDEX('Data Annex'!$K$1:$AN$4997,MATCH(G$1&\"|\"&$B25,'Data Annex'!$K$1:$K$4997,0),MATCH(G$2,'Data Annex'!$K$1:$AN$1,0)),\"\")","v":3.8412599899999997E-2},{"$f":"IFERROR(INDEX('Data Annex'!$K$1:$AN$4997,MATCH(H$1&\"|\"&$B25,'Data Annex'!$K$1:$K$4997,0),MATCH(H$2,'Data Annex'!$K$1:$AN$1,0)),\"\")","v":3.8834563799999999E-2},{"$f":"IFERROR(INDEX('Data Annex'!$K$1:$AN$4997,MATCH(I$1&\"|\"&$B25,'Data Annex'!$K$1:$K$4997,0),MATCH(I$2,'Data Annex'!$K$1:$AN$1,0)),\"\")","v":3.8799481900000002E-2},{"$f":"IFERROR(INDEX('Data Annex'!$K$1:$AN$4997,MATCH(J$1&\"|\"&$B25,'Data Annex'!$K$1:$K$4997,0),MATCH(J$2,'Data Annex'!$K$1:$AN$1,0)),\"\")","v":5.2817779400000001E-2},{"$f":"IFERROR(INDEX('Data Annex'!$K$1:$AN$4997,MATCH(K$1&\"|\"&$B25,'Data Annex'!$K$1:$K$4997,0),MATCH(K$2,'Data Annex'!$K$1:$AN$1,0)),\"\")","v":5.3387776599999999E-2},{"$f":"IFERROR(INDEX('Data Annex'!$K$1:$AN$4997,MATCH(L$1&\"|\"&$B25,'Data Annex'!$K$1:$K$4997,0),MATCH(L$2,'Data Annex'!$K$1:$AN$1,0)),\"\")","v":5.1658389899999997E-2},{"$f":"IFERROR(INDEX('Data Annex'!$K$1:$AN$4997,MATCH(M$1&\"|\"&$B25,'Data Annex'!$K$1:$K$4997,0),MATCH(M$2,'Data Annex'!$K$1:$AN$1,0)),\"\")","v":3.3116222399999999E-2},{"$f":"IFERROR(INDEX('Data Annex'!$K$1:$AN$4997,MATCH(N$1&\"|\"&$B25,'Data Annex'!$K$1:$K$4997,0),MATCH(N$2,'Data Annex'!$K$1:$AN$1,0)),\"\")","v":0.46626333240000001},{"$f":"IFERROR(INDEX('Data Annex'!$K$1:$AN$4997,MATCH(O$1&\"|\"&$B25,'Data Annex'!$K$1:$K$4997,0),MATCH(O$2,'Data Annex'!$K$1:$AN$1,0)),\"\")","v":0.4741994886},{"$f":"IFERROR(INDEX('Data Annex'!$K$1:$AN$4997,MATCH(P$1&\"|\"&$B25,'Data Annex'!$K$1:$K$4997,0),MATCH(P$2,'Data Annex'!$K$1:$AN$1,0)),\"\")","v":0.46675949550000001},{"$f":"IFERROR(INDEX('Data Annex'!$K$1:$AN$4997,MATCH(Q$1&\"|\"&$B25,'Data Annex'!$K$1:$K$4997,0),MATCH(Q$2,'Data Annex'!$K$1:$AN$1,0)),\"\")","v":0.4673638148},{"$f":"IFERROR(INDEX('Data Annex'!$K$1:$AN$4997,MATCH(R$1&\"|\"&$B25,'Data Annex'!$K$1:$K$4997,0),MATCH(R$2,'Data Annex'!$K$1:$AN$1,0)),\"\")","v":0.25461141370000001},{"$f":"IFERROR(INDEX('Data Annex'!$K$1:$AN$4997,MATCH(S$1&\"|\"&$B25,'Data Annex'!$K$1:$K$4997,0),MATCH(S$2,'Data Annex'!$K$1:$AN$1,0)),\"\")","v":0.26071317550000001},{"$f":"IFERROR(INDEX('Data Annex'!$K$1:$AN$4997,MATCH(T$1&\"|\"&$B25,'Data Annex'!$K$1:$K$4997,0),MATCH(T$2,'Data Annex'!$K$1:$AN$1,0)),\"\")","v":0.27410894699999999},{"$f":"IFERROR(INDEX('Data Annex'!$K$1:$AN$4997,MATCH(U$1&\"|\"&$B25,'Data Annex'!$K$1:$K$4997,0),MATCH(U$2,'Data Annex'!$K$1:$AN$1,0)),\"\")","v":0.28713199029999997},{"$f":"IFERROR(INDEX('Data Annex'!$K$1:$AN$4997,MATCH(V$1&\"|\"&$B25,'Data Annex'!$K$1:$K$4997,0),MATCH(V$2,'Data Annex'!$K$1:$AN$1,0)),\"\")","v":9.1345558300000004E-2},{"$f":"IFERROR(INDEX('Data Annex'!$K$1:$AN$4997,MATCH(W$1&\"|\"&$B25,'Data Annex'!$K$1:$K$4997,0),MATCH(W$2,'Data Annex'!$K$1:$AN$1,0)),\"\")","v":8.6968420300000002E-2},{"$f":"IFERROR(INDEX('Data Annex'!$K$1:$AN$4997,MATCH(X$1&\"|\"&$B25,'Data Annex'!$K$1:$K$4997,0),MATCH(X$2,'Data Annex'!$K$1:$AN$1,0)),\"\")","v":8.0133340900000002E-2},{"$f":"IFERROR(INDEX('Data Annex'!$K$1:$AN$4997,MATCH(Y$1&\"|\"&$B25,'Data Annex'!$K$1:$K$4997,0),MATCH(Y$2,'Data Annex'!$K$1:$AN$1,0)),\"\")","v":8.1024684599999994E-2},9.6979120600000038E-2,8.6318539099999939E-2,8.8505262899999895E-2,9.2563805999999985E-2]
[16,"IE",null,"IE",null,{"$f":"IFERROR(INDEX('Data Annex'!$K$1:$AN$4997,MATCH(F$1&\"|\"&$B26,'Data Annex'!$K$1:$K$4997,0),MATCH(F$2,'Data Annex'!$K$1:$AN$1,0)),\"\")","v":7.1324448400000004E-2},{"$f":"IFERROR(INDEX('Data Annex'!$K$1:$AN$4997,MATCH(G$1&\"|\"&$B26,'Data Annex'!$K$1:$K$4997,0),MATCH(G$2,'Data Annex'!$K$1:$AN$1,0)),\"\")","v":6.9001834900000003E-2},{"$f":"IFERROR(INDEX('Data Annex'!$K$1:$AN$4997,MATCH(H$1&\"|\"&$B26,'Data Annex'!$K$1:$K$4997,0),MATCH(H$2,'Data Annex'!$K$1:$AN$1,0)),\"\")","v":6.6278330900000001E-2},{"$f":"IFERROR(INDEX('Data Annex'!$K$1:$AN$4997,MATCH(I$1&\"|\"&$B26,'Data Annex'!$K$1:$K$4997,0),MATCH(I$2,'Data Annex'!$K$1:$AN$1,0)),\"\")","v":5.8767468500000003E-2},{"$f":"IFERROR(INDEX('Data Annex'!$K$1:$AN$4997,MATCH(J$1&\"|\"&$B26,'Data Annex'!$K$1:$K$4997,0),MATCH(J$2,'Data Annex'!$K$1:$AN$1,0)),\"\")","v":6.8837806000000001E-2},{"$f":"IFERROR(INDEX('Data Annex'!$K$1:$AN$4997,MATCH(K$1&\"|\"&$B26,'Data Annex'!$K$1:$K$4997,0),MATCH(K$2,'Data Annex'!$K$1:$AN$1,0)),\"\")","v":6.9551673999999994E-2},{"$f":"IFERROR(INDEX('Data Annex'!$K$1:$AN$4997,MATCH(L$1&\"|\"&$B26,'Data Annex'!$K$1:$K$4997,0),MATCH(L$2,'Data Annex'!$K$1:$AN$1,0)),\"\")","v":5.5653811900000003E-2},{"$f":"IFERROR(INDEX('Data Annex'!$K$1:$AN$4997,MATCH(M$1&\"|\"&$B26,'Data Annex'!$K$1:$K$4997,0),MATCH(M$2,'Data Annex'!$K$1:$AN$1,0)),\"\")","v":5.1405711299999997E-2},{"$f":"IFERROR(INDEX('Data Annex'!$K$1:$AN$4997,MATCH(N$1&\"|\"&$B26,'Data Annex'!$K$1:$K$4997,0),MATCH(N$2,'Data Annex'!$K$1:$AN$1,0)),\"\")","v":0.38183903590000001},{"$f":"IFERROR(INDEX('Data Annex'!$K$1:$AN$4997,MATCH(O$1&\"|\"&$B26,'Data Annex'!$K$1:$K$4997,0),MATCH(O$2,'Data Annex'!$K$1:$AN$1,0)),\"\")","v":0.39200610730000002},{"$f":"IFERROR(INDEX('Data Annex'!$K$1:$AN$4997,MATCH(P$1&\"|\"&$B26,'Data Annex'!$K$1:$K$4997,0),MATCH(P$2,'Data Annex'!$K$1:$AN$1,0)),\"\")","v":0.38601697200000001},{"$f":"IFERROR(INDEX('Data Annex'!$K$1:$AN$4997,MATCH(Q$1&\"|\"&$B26,'Data Annex'!$K$1:$K$4997,0),MATCH(Q$2,'Data Annex'!$K$1:$AN$1,0)),\"\")","v":0.38906465309999999},{"$f":"IFERROR(INDEX('Data Annex'!$K$1:$AN$4997,MATCH(R$1&\"|\"&$B26,'Data Annex'!$K$1:$K$4997,0),MATCH(R$2,'Data Annex'!$K$1:$AN$1,0)),\"\")","v":0.29155548240000001},{"$f":"IFERROR(INDEX('Data Annex'!$K$1:$AN$4997,MATCH(S$1&\"|\"&$B26,'Data Annex'!$K$1:$K$4997,0),MATCH(S$2,'Data Annex'!$K$1:$AN$1,0)),\"\")","v":0.29651402719999997},{"$f":"IFERROR(INDEX('Data Annex'!$K$1:$AN$4997,MATCH(T$1&\"|\"&$B26,'Data Annex'!$K$1:$K$4997,0),MATCH(T$2,'Data Annex'!$K$1:$AN$1,0)),\"\")","v":0.30865726339999999},{"$f":"IFERROR(INDEX('Data Annex'!$K$1:$AN$4997,MATCH(U$1&\"|\"&$B26,'Data Annex'!$K$1:$K$4997,0),MATCH(U$2,'Data Annex'!$K$1:$AN$1,0)),\"\")","v":0.3145897909},{"$f":"IFERROR(INDEX('Data Annex'!$K$1:$AN$4997,MATCH(V$1&\"|\"&$B26,'Data Annex'!$K$1:$K$4997,0),MATCH(V$2,'Data Annex'!$K$1:$AN$1,0)),\"\")","v":8.3265077500000007E-2},{"$f":"IFERROR(INDEX('Data Annex'!$K$1:$AN$4997,MATCH(W$1&\"|\"&$B26,'Data Annex'!$K$1:$K$4997,0),MATCH(W$2,'Data Annex'!$K$1:$AN$1,0)),\"\")","v":7.7783233300000004E-2},{"$f":"IFERROR(INDEX('Data Annex'!$K$1:$AN$4997,MATCH(X$1&\"|\"&$B26,'Data Annex'!$K$1:$K$4997,0),MATCH(X$2,'Data Annex'!$K$1:$AN$1,0)),\"\")","v":7.3409740299999998E-2},{"$f":"IFERROR(INDEX('Data Annex'!$K$1:$AN$4997,MATCH(Y$1&\"|\"&$B26,'Data Annex'!$K$1:$K$4997,0),MATCH(Y$2,'Data Annex'!$K$1:$AN$1,0)),\"\")","v":7.1709263800000006E-2},0.10317814980000001,9.5143123300000049E-2,0.10998388150000002,0.11446311239999998]
[17,"IS",null,"IS",null,{"$f":"IFERROR(INDEX('Data Annex'!$K$1:$AN$4997,MATCH(F$1&\"|\"&$B27,'Data Annex'!$K$1:$K$4997,0),MATCH(F$2,'Data Annex'!$K$1:$AN$1,0)),\"\")","v":0.33221636469999999},{"$f":"IFERROR(INDEX('Data Annex'!$K$1:$AN$4997,MATCH(G$1&\"|\"&$B27,'Data Annex'!$K$1:$K$4997,0),MATCH(G$2,'Data Annex'!$K$1:$AN$1,0)),\"\")","v":0.32811078500000002},{"$f":"IFERROR(INDEX('Data Annex'!$K$1:$AN$4997,MATCH(H$1&\"|\"&$B27,'Data Annex'!$K$1:$K$4997,0),MATCH(H$2,'Data Annex'!$K$1:$AN$1,0)),\"\")","v":0.31984593989999999},{"$f":"IFERROR(INDEX('Data Annex'!$K$1:$AN$4997,MATCH(I$1&\"|\"&$B27,'Data Annex'!$K$1:$K$4997,0),MATCH(I$2,'Data Annex'!$K$1:$AN$1,0)),\"\")","v":0.34077996249999998},{"$f":"IFERROR(INDEX('Data Annex'!$K$1:$AN$4997,MATCH(J$1&\"|\"&$B27,'Data Annex'!$K$1:$K$4997,0),MATCH(J$2,'Data Annex'!$K$1:$AN$1,0)),\"\")","v":1.45430466E-2},{"$f":"IFERROR(INDEX('Data Annex'!$K$1:$AN$4997,MATCH(K$1&\"|\"&$B27,'Data Annex'!$K$1:$K$4997,0),MATCH(K$2,'Data Annex'!$K$1:$AN$1,0)),\"\")","v":1.47272355E-2},{"$f":"IFERROR(INDEX('Data Annex'!$K$1:$AN$4997,MATCH(L$1&\"|\"&$B27,'Data Annex'!$K$1:$K$4997,0),MATCH(L$2,'Data Annex'!$K$1:$AN$1,0)),\"\")","v":1.54386096E-2},{"$f":"IFERROR(INDEX('Data Annex'!$K$1:$AN$4997,MATCH(M$1&\"|\"&$B27,'Data Annex'!$K$1:$K$4997,0),MATCH(M$2,'Data Annex'!$K$1:$AN$1,0)),\"\")","v":1.6884086699999998E-2},{"$f":"IFERROR(INDEX('Data Annex'!$K$1:$AN$4997,MATCH(N$1&\"|\"&$B27,'Data Annex'!$K$1:$K$4997,0),MATCH(N$2,'Data Annex'!$K$1:$AN$1,0)),\"\")","v":0.29167104599999999},{"$f":"IFERROR(INDEX('Data Annex'!$K$1:$AN$4997,MATCH(O$1&\"|\"&$B27,'Data Annex'!$K$1:$K$4997,0),MATCH(O$2,'Data Annex'!$K$1:$AN$1,0)),\"\")","v":0.30324209149999998},{"$f":"IFERROR(INDEX('Data Annex'!$K$1:$AN$4997,MATCH(P$1&\"|\"&$B27,'Data Annex'!$K$1:$K$4997,0),MATCH(P$2,'Data Annex'!$K$1:$AN$1,0)),\"\")","v":0.29024423630000001},{"$f":"IFERROR(INDEX('Data Annex'!$K$1:$AN$4997,MATCH(Q$1&\"|\"&$B27,'Data Annex'!$K$1:$K$4997,0),MATCH(Q$2,'Data Annex'!$K$1:$AN$1,0)),\"\")","v":0.31349557709999998},{"$f":"IFERROR(INDEX('Data Annex'!$K$1:$AN$4997,MATCH(R$1&\"|\"&$B27,'Data Annex'!$K$1:$K$4997,0),MATCH(R$2,'Data Annex'!$K$1:$AN$1,0)),\"\")","v":0.18702286460000001},{"$f":"IFERROR(INDEX('Data Annex'!$K$1:$AN$4997,MATCH(S$1&\"|\"&$B27,'Data Annex'!$K$1:$K$4997,0),MATCH(S$2,'Data Annex'!$K$1:$AN$1,0)),\"\")","v":0.1833340259},{"$f":"IFERROR(INDEX('Data Annex'!$K$1:$AN$4997,MATCH(T$1&\"|\"&$B27,'Data Annex'!$K$1:$K$4997,0),MATCH(T$2,'Data Annex'!$K$1:$AN$1,0)),\"\")","v":0.19424597090000001},{"$f":"IFERROR(INDEX('Data Annex'!$K$1:$AN$4997,MATCH(U$1&\"|\"&$B27,'Data Annex'!$K$1:$K$4997,0),MATCH(U$2,'Data Annex'!$K$1:$AN$1,0)),\"\")","v":0.18639036070000001},{"$f":"IFERROR(INDEX('Data Annex'!$K$1:$AN$4997,MATCH(V$1&\"|\"&$B27,'Data Annex'!$K$1:$K$4997,0),MATCH(V$2,'Data Annex'!$K$1:$AN$1,0)),\"\")","v":0.1098295232},{"$f":"IFERROR(INDEX('Data Annex'!$K$1:$AN$4997,MATCH(W$1&\"|\"&$B27,'Data Annex'!$K$1:$K$4997,0),MATCH(W$2,'Data Annex'!$K$1:$AN$1,0)),\"\")","v":0.1141019167},{"$f":"IFERROR(INDEX('Data Annex'!$K$1:$AN$4997,MATCH(X$1&\"|\"&$B27,'Data Annex'!$K$1:$K$4997,0),MATCH(X$2,'Data Annex'!$K$1:$AN$1,0)),\"\")","v":0.12170051549999999},{"$f":"IFERROR(INDEX('Data Annex'!$K$1:$AN$4997,MATCH(Y$1&\"|\"&$B27,'Data Annex'!$K$1:$K$4997,0),MATCH(Y$2,'Data Annex'!$K$1:$AN$1,0)),\"\")","v":0.1055041526},6.4717154899999907E-2,5.6483945400000013E-2,5.8524727800000009E-2,3.6945860400000072E-2]
[18,"IT",null,"IT",null,{"$f":"IFERROR(INDEX('Data Annex'!$K$1:$AN$4997,MATCH(F$1&\"|\"&$B28,'Data Annex'!$K$1:$K$4997,0),MATCH(F$2,'Data Annex'!$K$1:$AN$1,0)),\"\")","v":0.12246954979999999},{"$f":"IFERROR(INDEX('Data Annex'!$K$1:$AN$4997,MATCH(G$1&\"|\"&$B28,'Data Annex'!$K$1:$K$4997,0),MATCH(G$2,'Data Annex'!$K$1:$AN$1,0)),\"\")","v":0.1186440421},{"$f":"IFERROR(INDEX('Data Annex'!$K$1:$AN$4997,MATCH(H$1&\"|\"&$B28,'Data Annex'!$K$1:$K$4997,0),MATCH(H$2,'Data Annex'!$K$1:$AN$1,0)),\"\")","v":0.1178601582},{"$f":"IFERROR(INDEX('Data Annex'!$K$1:$AN$4997,MATCH(I$1&\"|\"&$B28,'Data Annex'!$K$1:$K$4997,0),MATCH(I$2,'Data Annex'!$K$1:$AN$1,0)),\"\")","v":0.11357005050000001},{"$f":"IFERROR(INDEX('Data Annex'!$K$1:$AN$4997,MATCH(J$1&\"|\"&$B28,'Data Annex'!$K$1:$K$4997,0),MATCH(J$2,'Data Annex'!$K$1:$AN$1,0)),\"\")","v":7.1933932699999995E-2},{"$f":"IFERROR(INDEX('Data Annex'!$K$1:$AN$4997,MATCH(K$1&\"|\"&$B28,'Data Annex'!$K$1:$K$4997,0),MATCH(K$2,'Data Annex'!$K$1:$AN$1,0)),\"\")","v":5.5489563800000002E-2},{"$f":"IFERROR(INDEX('Data Annex'!$K$1:$AN$4997,MATCH(L$1&\"|\"&$B28,'Data Annex'!$K$1:$K$4997,0),MATCH(L$2,'Data Annex'!$K$1:$AN$1,0)),\"\")","v":5.1023124199999999E-2},{"$f":"IFERROR(INDEX('Data Annex'!$K$1:$AN$4997,MATCH(M$1&\"|\"&$B28,'Data Annex'!$K$1:$K$4997,0),MATCH(M$2,'Data Annex'!$K$1:$AN$1,0)),\"\")","v":5.3737907799999998E-2},{"$f":"IFERROR(INDEX('Data Annex'!$K$1:$AN$4997,MATCH(N$1&\"|\"&$B28,'Data Annex'!$K$1:$K$4997,0),MATCH(N$2,'Data Annex'!$K$1:$AN$1,0)),\"\")","v":0.33615566609999997},{"$f":"IFERROR(INDEX('Data Annex'!$K$1:$AN$4997,MATCH(O$1&\"|\"&$B28,'Data Annex'!$K$1:$K$4997,0),MATCH(O$2,'Data Annex'!$K$1:$AN$1,0)),\"\")","v":0.32916839120000002},{"$f":"IFERROR(INDEX('Data Annex'!$K$1:$AN$4997,MATCH(P$1&\"|\"&$B28,'Data Annex'!$K$1:$K$4997,0),MATCH(P$2,'Data Annex'!$K$1:$AN$1,0)),\"\")","v":0.32936130609999997},{"$f":"IFERROR(INDEX('Data Annex'!$K$1:$AN$4997,MATCH(Q$1&\"|\"&$B28,'Data Annex'!$K$1:$K$4997,0),MATCH(Q$2,'Data Annex'!$K$1:$AN$1,0)),\"\")","v":0.325247542},{"$f":"IFERROR(INDEX('Data Annex'!$K$1:$AN$4997,MATCH(R$1&\"|\"&$B28,'Data Annex'!$K$1:$K$4997,0),MATCH(R$2,'Data Annex'!$K$1:$AN$1,0)),\"\")","v":0.14909086439999999},{"$f":"IFERROR(INDEX('Data Annex'!$K$1:$AN$4997,MATCH(S$1&\"|\"&$B28,'Data Annex'!$K$1:$K$4997,0),MATCH(S$2,'Data Annex'!$K$1:$AN$1,0)),\"\")","v":0.15891025289999999},{"$f":"IFERROR(INDEX('Data Annex'!$K$1:$AN$4997,MATCH(T$1&\"|\"&$B28,'Data Annex'!$K$1:$K$4997,0),MATCH(T$2,'Data Annex'!$K$1:$AN$1,0)),\"\")","v":0.17020873619999999},{"$f":"IFERROR(INDEX('Data Annex'!$K$1:$AN$4997,MATCH(U$1&\"|\"&$B28,'Data Annex'!$K$1:$K$4997,0),MATCH(U$2,'Data Annex'!$K$1:$AN$1,0)),\"\")","v":0.17244543849999999},{"$f":"IFERROR(INDEX('Data Annex'!$K$1:$AN$4997,MATCH(V$1&\"|\"&$B28,'Data Annex'!$K$1:$K$4997,0),MATCH(V$2,'Data Annex'!$K$1:$AN$1,0)),\"\")","v":0.1126284212},{"$f":"IFERROR(INDEX('Data Annex'!$K$1:$AN$4997,MATCH(W$1&\"|\"&$B28,'Data Annex'!$K$1:$K$4997,0),MATCH(W$2,'Data Annex'!$K$1:$AN$1,0)),\"\")","v":0.10572943949999999},{"$f":"IFERROR(INDEX('Data Annex'!$K$1:$AN$4997,MATCH(X$1&\"|\"&$B28,'Data Annex'!$K$1:$K$4997,0),MATCH(X$2,'Data Annex'!$K$1:$AN$1,0)),\"\")","v":9.9362472800000004E-2},{"$f":"IFERROR(INDEX('Data Annex'!$K$1:$AN$4997,MATCH(Y$1&\"|\"&$B28,'Data Annex'!$K$1:$K$4997,0),MATCH(Y$2,'Data Annex'!$K$1:$AN$1,0)),\"\")","v":9.6783011799999999E-2},0.20772156579999995,0.23205831049999995,0.23218420250000005,0.23821604940000007]
[19,"LT",null,"LT",null,{"$f":"IFERROR(INDEX('Data Annex'!$K$1:$AN$4997,MATCH(F$1&\"|\"&$B29,'Data Annex'!$K$1:$K$4997,0),MATCH(F$2,'Data Annex'!$K$1:$AN$1,0)),\"\")","v":1.0151887E-3},{"$f":"IFERROR(INDEX('Data Annex'!$K$1:$AN$4997,MATCH(G$1&\"|\"&$B29,'Data Annex'!$K$1:$K$4997,0),MATCH(G$2,'Data Annex'!$K$1:$AN$1,0)),\"\")","v":9.7178330000000004E-4},{"$f":"IFERROR(INDEX('Data Annex'!$K$1:$AN$4997,MATCH(H$1&\"|\"&$B29,'Data Annex'!$K$1:$K$4997,0),MATCH(H$2,'Data Annex'!$K$1:$AN$1,0)),\"\")","v":9.1371390000000001E-4},{"$f":"IFERROR(INDEX('Data Annex'!$K$1:$AN$4997,MATCH(I$1&\"|\"&$B29,'Data Annex'!$K$1:$K$4997,0),MATCH(I$2,'Data Annex'!$K$1:$AN$1,0)),\"\")","v":7.9960589999999998E-4},{"$f":"IFERROR(INDEX('Data Annex'!$K$1:$AN$4997,MATCH(J$1&\"|\"&$B29,'Data Annex'!$K$1:$K$4997,0),MATCH(J$2,'Data Annex'!$K$1:$AN$1,0)),\"\")","v":2.64211232E-2},{"$f":"IFERROR(INDEX('Data Annex'!$K$1:$AN$4997,MATCH(K$1&\"|\"&$B29,'Data Annex'!$K$1:$K$4997,0),MATCH(K$2,'Data Annex'!$K$1:$AN$1,0)),\"\")","v":2.4917103900000001E-2},{"$f":"IFERROR(INDEX('Data Annex'!$K$1:$AN$4997,MATCH(L$1&\"|\"&$B29,'Data Annex'!$K$1:$K$4997,0),MATCH(L$2,'Data Annex'!$K$1:$AN$1,0)),\"\")","v":6.4348193799999995E-2},{"$f":"IFERROR(INDEX('Data Annex'!$K$1:$AN$4997,MATCH(M$1&\"|\"&$B29,'Data Annex'!$K$1:$K$4997,0),MATCH(M$2,'Data Annex'!$K$1:$AN$1,0)),\"\")","v":5.1920521400000003E-2},{"$f":"IFERROR(INDEX('Data Annex'!$K$1:$AN$4997,MATCH(N$1&\"|\"&$B29,'Data Annex'!$K$1:$K$4997,0),MATCH(N$2,'Data Annex'!$K$1:$AN$1,0)),\"\")","v":0.60795853040000003},{"$f":"IFERROR(INDEX('Data Annex'!$K$1:$AN$4997,MATCH(O$1&\"|\"&$B29,'Data Annex'!$K$1:$K$4997,0),MATCH(O$2,'Data Annex'!$K$1:$AN$1,0)),\"\")","v":0.59948043470000001},{"$f":"IFERROR(INDEX('Data Annex'!$K$1:$AN$4997,MATCH(P$1&\"|\"&$B29,'Data Annex'!$K$1:$K$4997,0),MATCH(P$2,'Data Annex'!$K$1:$AN$1,0)),\"\")","v":0.57808354230000003},{"$f":"IFERROR(INDEX('Data Annex'!$K$1:$AN$4997,MATCH(Q$1&\"|\"&$B29,'Data Annex'!$K$1:$K$4997,0),MATCH(Q$2,'Data Annex'!$K$1:$AN$1,0)),\"\")","v":0.58575177150000002},{"$f":"IFERROR(INDEX('Data Annex'!$K$1:$AN$4997,MATCH(R$1&\"|\"&$B29,'Data Annex'!$K$1:$K$4997,0),MATCH(R$2,'Data Annex'!$K$1:$AN$1,0)),\"\")","v":0.2357131411},{"$f":"IFERROR(INDEX('Data Annex'!$K$1:$AN$4997,MATCH(S$1&\"|\"&$B29,'Data Annex'!$K$1:$K$4997,0),MATCH(S$2,'Data Annex'!$K$1:$AN$1,0)),\"\")","v":0.24618373630000001},{"$f":"IFERROR(INDEX('Data Annex'!$K$1:$AN$4997,MATCH(T$1&\"|\"&$B29,'Data Annex'!$K$1:$K$4997,0),MATCH(T$2,'Data Annex'!$K$1:$AN$1,0)),\"\")","v":0.25179075410000001},{"$f":"IFERROR(INDEX('Data Annex'!$K$1:$AN$4997,MATCH(U$1&\"|\"&$B29,'Data Annex'!$K$1:$K$4997,0),MATCH(U$2,'Data Annex'!$K$1:$AN$1,0)),\"\")","v":0.26594874750000003},{"$f":"IFERROR(INDEX('Data Annex'!$K$1:$AN$4997,MATCH(V$1&\"|\"&$B29,'Data Annex'!$K$1:$K$4997,0),MATCH(V$2,'Data Annex'!$K$1:$AN$1,0)),\"\")","v":0.1041581142},{"$f":"IFERROR(INDEX('Data Annex'!$K$1:$AN$4997,MATCH(W$1&\"|\"&$B29,'Data Annex'!$K$1:$K$4997,0),MATCH(W$2,'Data Annex'!$K$1:$AN$1,0)),\"\")","v":9.9831344700000005E-2},{"$f":"IFERROR(INDEX('Data Annex'!$K$1:$AN$4997,MATCH(X$1&\"|\"&$B29,'Data Annex'!$K$1:$K$4997,0),MATCH(X$2,'Data Annex'!$K$1:$AN$1,0)),\"\")","v":7.9542356999999994E-2},{"$f":"IFERROR(INDEX('Data Annex'!$K$1:$AN$4997,MATCH(Y$1&\"|\"&$B29,'Data Annex'!$K$1:$K$4997,0),MATCH(Y$2,'Data Annex'!$K$1:$AN$1,0)),\"\")","v":7.5627456199999998E-2},2.4733902400000021E-2,2.8615597099999932E-2,2.5321438900000007E-2,1.9951897499999982E-2]
[20,"LU",null,"LU",null,{"$f":"IFERROR(INDEX('Data Annex'!$K$1:$AN$4997,MATCH(F$1&\"|\"&$B30,'Data Annex'!$K$1:$K$4997,0),MATCH(F$2,'Data Annex'!$K$1:$AN$1,0)),\"\")","v":0.22929340009999999},{"$f":"IFERROR(INDEX('Data Annex'!$K$1:$AN$4997,MATCH(G$1&\"|\"&$B30,'Data Annex'!$K$1:$K$4997,0),MATCH(G$2,'Data Annex'!$K$1:$AN$1,0)),\"\")","v":0.2397234194},{"$f":"IFERROR(INDEX('Data Annex'!$K$1:$AN$4997,MATCH(H$1&\"|\"&$B30,'Data Annex'!$K$1:$K$4997,0),MATCH(H$2,'Data Annex'!$K$1:$AN$1,0)),\"\")","v":0.24063003729999999},{"$f":"IFERROR(INDEX('Data Annex'!$K$1:$AN$4997,MATCH(I$1&\"|\"&$B30,'Data Annex'!$K$1:$K$4997,0),MATCH(I$2,'Data Annex'!$K$1:$AN$1,0)),\"\")","v":3.8968713000000002E-2},{"$f":"IFERROR(INDEX('Data Annex'!$K$1:$AN$4997,MATCH(J$1&\"|\"&$B30,'Data Annex'!$K$1:$K$4997,0),MATCH(J$2,'Data Annex'!$K$1:$AN$1,0)),\"\")","v":0.19028651229999999},{"$f":"IFERROR(INDEX('Data Annex'!$K$1:$AN$4997,MATCH(K$1&\"|\"&$B30,'Data Annex'!$K$1:$K$4997,0),MATCH(K$2,'Data Annex'!$K$1:$AN$1,0)),\"\")","v":0.19993136289999999},{"$f":"IFERROR(INDEX('Data Annex'!$K$1:$AN$4997,MATCH(L$1&\"|\"&$B30,'Data Annex'!$K$1:$K$4997,0),MATCH(L$2,'Data Annex'!$K$1:$AN$1,0)),\"\")","v":0.1927968994},{"$f":"IFERROR(INDEX('Data Annex'!$K$1:$AN$4997,MATCH(M$1&\"|\"&$B30,'Data Annex'!$K$1:$K$4997,0),MATCH(M$2,'Data Annex'!$K$1:$AN$1,0)),\"\")","v":0.25715932809999997},{"$f":"IFERROR(INDEX('Data Annex'!$K$1:$AN$4997,MATCH(N$1&\"|\"&$B30,'Data Annex'!$K$1:$K$4997,0),MATCH(N$2,'Data Annex'!$K$1:$AN$1,0)),\"\")","v":0.12813913399999999},{"$f":"IFERROR(INDEX('Data Annex'!$K$1:$AN$4997,MATCH(O$1&\"|\"&$B30,'Data Annex'!$K$1:$K$4997,0),MATCH(O$2,'Data Annex'!$K$1:$AN$1,0)),\"\")","v":0.1356590201},{"$f":"IFERROR(INDEX('Data Annex'!$K$1:$AN$4997,MATCH(P$1&\"|\"&$B30,'Data Annex'!$K$1:$K$4997,0),MATCH(P$2,'Data Annex'!$K$1:$AN$1,0)),\"\")","v":0.13434733709999999},{"$f":"IFERROR(INDEX('Data Annex'!$K$1:$AN$4997,MATCH(Q$1&\"|\"&$B30,'Data Annex'!$K$1:$K$4997,0),MATCH(Q$2,'Data Annex'!$K$1:$AN$1,0)),\"\")","v":0.1663422678},{"$f":"IFERROR(INDEX('Data Annex'!$K$1:$AN$4997,MATCH(R$1&\"|\"&$B30,'Data Annex'!$K$1:$K$4997,0),MATCH(R$2,'Data Annex'!$K$1:$AN$1,0)),\"\")","v":8.55274231E-2},{"$f":"IFERROR(INDEX('Data Annex'!$K$1:$AN$4997,MATCH(S$1&\"|\"&$B30,'Data Annex'!$K$1:$K$4997,0),MATCH(S$2,'Data Annex'!$K$1:$AN$1,0)),\"\")","v":9.5206687700000001E-2},{"$f":"IFERROR(INDEX('Data Annex'!$K$1:$AN$4997,MATCH(T$1&\"|\"&$B30,'Data Annex'!$K$1:$K$4997,0),MATCH(T$2,'Data Annex'!$K$1:$AN$1,0)),\"\")","v":0.1002203393},{"$f":"IFERROR(INDEX('Data Annex'!$K$1:$AN$4997,MATCH(U$1&\"|\"&$B30,'Data Annex'!$K$1:$K$4997,0),MATCH(U$2,'Data Annex'!$K$1:$AN$1,0)),\"\")","v":0.117137228},{"$f":"IFERROR(INDEX('Data Annex'!$K$1:$AN$4997,MATCH(V$1&\"|\"&$B30,'Data Annex'!$K$1:$K$4997,0),MATCH(V$2,'Data Annex'!$K$1:$AN$1,0)),\"\")","v":0.28723917739999999},{"$f":"IFERROR(INDEX('Data Annex'!$K$1:$AN$4997,MATCH(W$1&\"|\"&$B30,'Data Annex'!$K$1:$K$4997,0),MATCH(W$2,'Data Annex'!$K$1:$AN$1,0)),\"\")","v":0.27826990639999999},{"$f":"IFERROR(INDEX('Data Annex'!$K$1:$AN$4997,MATCH(X$1&\"|\"&$B30,'Data Annex'!$K$1:$K$4997,0),MATCH(X$2,'Data Annex'!$K$1:$AN$1,0)),\"\")","v":0.28379100759999998},{"$f":"IFERROR(INDEX('Data Annex'!$K$1:$AN$4997,MATCH(Y$1&\"|\"&$B30,'Data Annex'!$K$1:$K$4997,0),MATCH(Y$2,'Data Annex'!$K$1:$AN$1,0)),\"\")","v":0.36808447719999998},7.9514353100000101E-2,5.1209603500000034E-2,4.8214379299999999E-2,5.2307985900000076E-2]
[21,"LV",null,"LV",null,{"$f":"IFERROR(INDEX('Data Annex'!$K$1:$AN$4997,MATCH(F$1&\"|\"&$B31,'Data Annex'!$K$1:$K$4997,0),MATCH(F$2,'Data Annex'!$K$1:$AN$1,0)),\"\")","v":4.9383079000000002E-3},{"$f":"IFERROR(INDEX('Data Annex'!$K$1:$AN$4997,MATCH(G$1&\"|\"&$B31,'Data Annex'!$K$1:$K$4997,0),MATCH(G$2,'Data Annex'!$K$1:$AN$1,0)),\"\")","v":4.3271941E-3},{"$f":"IFERROR(INDEX('Data Annex'!$K$1:$AN$4997,MATCH(H$1&\"|\"&$B31,'Data Annex'!$K$1:$K$4997,0),MATCH(H$2,'Data Annex'!$K$1:$AN$1,0)),\"\")","v":4.3153788999999998E-3},{"$f":"IFERROR(INDEX('Data Annex'!$K$1:$AN$4997,MATCH(I$1&\"|\"&$B31,'Data Annex'!$K$1:$K$4997,0),MATCH(I$2,'Data Annex'!$K$1:$AN$1,0)),\"\")","v":7.4859797E-3},{"$f":"IFERROR(INDEX('Data Annex'!$K$1:$AN$4997,MATCH(J$1&\"|\"&$B31,'Data Annex'!$K$1:$K$4997,0),MATCH(J$2,'Data Annex'!$K$1:$AN$1,0)),\"\")","v":2.8558771100000001E-2},{"$f":"IFERROR(INDEX('Data Annex'!$K$1:$AN$4997,MATCH(K$1&\"|\"&$B31,'Data Annex'!$K$1:$K$4997,0),MATCH(K$2,'Data Annex'!$K$1:$AN$1,0)),\"\")","v":2.64886885E-2},{"$f":"IFERROR(INDEX('Data Annex'!$K$1:$AN$4997,MATCH(L$1&\"|\"&$B31,'Data Annex'!$K$1:$K$4997,0),MATCH(L$2,'Data Annex'!$K$1:$AN$1,0)),\"\")","v":3.3001532799999997E-2},{"$f":"IFERROR(INDEX('Data Annex'!$K$1:$AN$4997,MATCH(M$1&\"|\"&$B31,'Data Annex'!$K$1:$K$4997,0),MATCH(M$2,'Data Annex'!$K$1:$AN$1,0)),\"\")","v":3.0731039799999998E-2},{"$f":"IFERROR(INDEX('Data Annex'!$K$1:$AN$4997,MATCH(N$1&\"|\"&$B31,'Data Annex'!$K$1:$K$4997,0),MATCH(N$2,'Data Annex'!$K$1:$AN$1,0)),\"\")","v":0.56100301029999999},{"$f":"IFERROR(INDEX('Data Annex'!$K$1:$AN$4997,MATCH(O$1&\"|\"&$B31,'Data Annex'!$K$1:$K$4997,0),MATCH(O$2,'Data Annex'!$K$1:$AN$1,0)),\"\")","v":0.51556780479999997},{"$f":"IFERROR(INDEX('Data Annex'!$K$1:$AN$4997,MATCH(P$1&\"|\"&$B31,'Data Annex'!$K$1:$K$4997,0),MATCH(P$2,'Data Annex'!$K$1:$AN$1,0)),\"\")","v":0.51093652899999997},{"$f":"IFERROR(INDEX('Data Annex'!$K$1:$AN$4997,MATCH(Q$1&\"|\"&$B31,'Data Annex'!$K$1:$K$4997,0),MATCH(Q$2,'Data Annex'!$K$1:$AN$1,0)),\"\")","v":0.50323293150000004},{"$f":"IFERROR(INDEX('Data Annex'!$K$1:$AN$4997,MATCH(R$1&\"|\"&$B31,'Data Annex'!$K$1:$K$4997,0),MATCH(R$2,'Data Annex'!$K$1:$AN$1,0)),\"\")","v":0.3031102249},{"$f":"IFERROR(INDEX('Data Annex'!$K$1:$AN$4997,MATCH(S$1&\"|\"&$B31,'Data Annex'!$K$1:$K$4997,0),MATCH(S$2,'Data Annex'!$K$1:$AN$1,0)),\"\")","v":0.2744284723},{"$f":"IFERROR(INDEX('Data Annex'!$K$1:$AN$4997,MATCH(T$1&\"|\"&$B31,'Data Annex'!$K$1:$K$4997,0),MATCH(T$2,'Data Annex'!$K$1:$AN$1,0)),\"\")","v":0.28733674920000002},{"$f":"IFERROR(INDEX('Data Annex'!$K$1:$AN$4997,MATCH(U$1&\"|\"&$B31,'Data Annex'!$K$1:$K$4997,0),MATCH(U$2,'Data Annex'!$K$1:$AN$1,0)),\"\")","v":0.30761910920000002},{"$f":"IFERROR(INDEX('Data Annex'!$K$1:$AN$4997,MATCH(V$1&\"|\"&$B31,'Data Annex'!$K$1:$K$4997,0),MATCH(V$2,'Data Annex'!$K$1:$AN$1,0)),\"\")","v":8.2072209199999996E-2},{"$f":"IFERROR(INDEX('Data Annex'!$K$1:$AN$4997,MATCH(W$1&\"|\"&$B31,'Data Annex'!$K$1:$K$4997,0),MATCH(W$2,'Data Annex'!$K$1:$AN$1,0)),\"\")","v":7.6030513699999996E-2},{"$f":"IFERROR(INDEX('Data Annex'!$K$1:$AN$4997,MATCH(X$1&\"|\"&$B31,'Data Annex'!$K$1:$K$4997,0),MATCH(X$2,'Data Annex'!$K$1:$AN$1,0)),\"\")","v":6.4536249300000001E-2},{"$f":"IFERROR(INDEX('Data Annex'!$K$1:$AN$4997,MATCH(Y$1&\"|\"&$B31,'Data Annex'!$K$1:$K$4997,0),MATCH(Y$2,'Data Annex'!$K$1:$AN$1,0)),\"\")","v":7.7098654000000003E-2},2.0317476599999912E-2,0.10315732660000002,9.9873560800000052E-2,7.3832285799999939E-2]
[22,"MT",null,"MT",null,{"$f":"IFERROR(INDEX('Data Annex'!$K$1:$AN$4997,MATCH(F$1&\"|\"&$B32,'Data Annex'!$K$1:$K$4997,0),MATCH(F$2,'Data Annex'!$K$1:$AN$1,0)),\"\")","v":1.0967504600000001E-2},{"$f":"IFERROR(INDEX('Data Annex'!$K$1:$AN$4997,MATCH(G$1&\"|\"&$B32,'Data Annex'!$K$1:$K$4997,0),MATCH(G$2,'Data Annex'!$K$1:$AN$1,0)),\"\")","v":2.7648932399999999E-2},{"$f":"IFERROR(INDEX('Data Annex'!$K$1:$AN$4997,MATCH(H$1&\"|\"&$B32,'Data Annex'!$K$1:$K$4997,0),MATCH(H$2,'Data Annex'!$K$1:$AN$1,0)),\"\")","v":3.2681902999999998E-2},{"$f":"IFERROR(INDEX('Data Annex'!$K$1:$AN$4997,MATCH(I$1&\"|\"&$B32,'Data Annex'!$K$1:$K$4997,0),MATCH(I$2,'Data Annex'!$K$1:$AN$1,0)),\"\")","v":3.6648953200000001E-2},{"$f":"IFERROR(INDEX('Data Annex'!$K$1:$AN$4997,MATCH(J$1&\"|\"&$B32,'Data Annex'!$K$1:$K$4997,0),MATCH(J$2,'Data Annex'!$K$1:$AN$1,0)),\"\")","v":1.1595995200000001E-2},{"$f":"IFERROR(INDEX('Data Annex'!$K$1:$AN$4997,MATCH(K$1&\"|\"&$B32,'Data Annex'!$K$1:$K$4997,0),MATCH(K$2,'Data Annex'!$K$1:$AN$1,0)),\"\")","v":1.17934258E-2},{"$f":"IFERROR(INDEX('Data Annex'!$K$1:$AN$4997,MATCH(L$1&\"|\"&$B32,'Data Annex'!$K$1:$K$4997,0),MATCH(L$2,'Data Annex'!$K$1:$AN$1,0)),\"\")","v":1.1415842900000001E-2},{"$f":"IFERROR(INDEX('Data Annex'!$K$1:$AN$4997,MATCH(M$1&\"|\"&$B32,'Data Annex'!$K$1:$K$4997,0),MATCH(M$2,'Data Annex'!$K$1:$AN$1,0)),\"\")","v":1.13109035E-2},{"$f":"IFERROR(INDEX('Data Annex'!$K$1:$AN$4997,MATCH(N$1&\"|\"&$B32,'Data Annex'!$K$1:$K$4997,0),MATCH(N$2,'Data Annex'!$K$1:$AN$1,0)),\"\")","v":0.66466692189999999},{"$f":"IFERROR(INDEX('Data Annex'!$K$1:$AN$4997,MATCH(O$1&\"|\"&$B32,'Data Annex'!$K$1:$K$4997,0),MATCH(O$2,'Data Annex'!$K$1:$AN$1,0)),\"\")","v":0.6632991989},{"$f":"IFERROR(INDEX('Data Annex'!$K$1:$AN$4997,MATCH(P$1&\"|\"&$B32,'Data Annex'!$K$1:$K$4997,0),MATCH(P$2,'Data Annex'!$K$1:$AN$1,0)),\"\")","v":0.66730833680000001},{"$f":"IFERROR(INDEX('Data Annex'!$K$1:$AN$4997,MATCH(Q$1&\"|\"&$B32,'Data Annex'!$K$1:$K$4997,0),MATCH(Q$2,'Data Annex'!$K$1:$AN$1,0)),\"\")","v":0.6705650205},{"$f":"IFERROR(INDEX('Data Annex'!$K$1:$AN$4997,MATCH(R$1&\"|\"&$B32,'Data Annex'!$K$1:$K$4997,0),MATCH(R$2,'Data Annex'!$K$1:$AN$1,0)),\"\")","v":0.14124547700000001},{"$f":"IFERROR(INDEX('Data Annex'!$K$1:$AN$4997,MATCH(S$1&\"|\"&$B32,'Data Annex'!$K$1:$K$4997,0),MATCH(S$2,'Data Annex'!$K$1:$AN$1,0)),\"\")","v":0.14433098120000001},{"$f":"IFERROR(INDEX('Data Annex'!$K$1:$AN$4997,MATCH(T$1&\"|\"&$B32,'Data Annex'!$K$1:$K$4997,0),MATCH(T$2,'Data Annex'!$K$1:$AN$1,0)),\"\")","v":0.14214812490000001},{"$f":"IFERROR(INDEX('Data Annex'!$K$1:$AN$4997,MATCH(U$1&\"|\"&$B32,'Data Annex'!$K$1:$K$4997,0),MATCH(U$2,'Data Annex'!$K$1:$AN$1,0)),\"\")","v":0.14898876829999999},{"$f":"IFERROR(INDEX('Data Annex'!$K$1:$AN$4997,MATCH(V$1&\"|\"&$B32,'Data Annex'!$K$1:$K$4997,0),MATCH(V$2,'Data Annex'!$K$1:$AN$1,0)),\"\")","v":0.1437159948},{"$f":"IFERROR(INDEX('Data Annex'!$K$1:$AN$4997,MATCH(W$1&\"|\"&$B32,'Data Annex'!$K$1:$K$4997,0),MATCH(W$2,'Data Annex'!$K$1:$AN$1,0)),\"\")","v":0.1271572926},{"$f":"IFERROR(INDEX('Data Annex'!$K$1:$AN$4997,MATCH(X$1&\"|\"&$B32,'Data Annex'!$K$1:$K$4997,0),MATCH(X$2,'Data Annex'!$K$1:$AN$1,0)),\"\")","v":0.1226736588},{"$f":"IFERROR(INDEX('Data Annex'!$K$1:$AN$4997,MATCH(Y$1&\"|\"&$B32,'Data Annex'!$K$1:$K$4997,0),MATCH(Y$2,'Data Annex'!$K$1:$AN$1,0)),\"\")","v":0.1109997886},2.7808106500000068E-2,2.5770169100000018E-2,2.377213360000005E-2,2.148656589999999E-2]
[23,"NL",null,"NL",null,{"$f":"IFERROR(INDEX('Data Annex'!$K$1:$AN$4997,MATCH(F$1&\"|\"&$B33,'Data Annex'!$K$1:$K$4997,0),MATCH(F$2,'Data Annex'!$K$1:$AN$1,0)),\"\")","v":0.24469067880000001},{"$f":"IFERROR(INDEX('Data Annex'!$K$1:$AN$4997,MATCH(G$1&\"|\"&$B33,'Data Annex'!$K$1:$K$4997,0),MATCH(G$2,'Data Annex'!$K$1:$AN$1,0)),\"\")","v":0.2292914979},{"$f":"IFERROR(INDEX('Data Annex'!$K$1:$AN$4997,MATCH(H$1&\"|\"&$B33,'Data Annex'!$K$1:$K$4997,0),MATCH(H$2,'Data Annex'!$K$1:$AN$1,0)),\"\")","v":0.21614595850000001},{"$f":"IFERROR(INDEX('Data Annex'!$K$1:$AN$4997,MATCH(I$1&\"|\"&$B33,'Data Annex'!$K$1:$K$4997,0),MATCH(I$2,'Data Annex'!$K$1:$AN$1,0)),\"\")","v":0.20625914170000001},{"$f":"IFERROR(INDEX('Data Annex'!$K$1:$AN$4997,MATCH(J$1&\"|\"&$B33,'Data Annex'!$K$1:$K$4997,0),MATCH(J$2,'Data Annex'!$K$1:$AN$1,0)),\"\")","v":3.7474045599999999E-2},{"$f":"IFERROR(INDEX('Data Annex'!$K$1:$AN$4997,MATCH(K$1&\"|\"&$B33,'Data Annex'!$K$1:$K$4997,0),MATCH(K$2,'Data Annex'!$K$1:$AN$1,0)),\"\")","v":3.0789305900000001E-2},{"$f":"IFERROR(INDEX('Data Annex'!$K$1:$AN$4997,MATCH(L$1&\"|\"&$B33,'Data Annex'!$K$1:$K$4997,0),MATCH(L$2,'Data Annex'!$K$1:$AN$1,0)),\"\")","v":3.3996175199999999E-2},{"$f":"IFERROR(INDEX('Data Annex'!$K$1:$AN$4997,MATCH(M$1&\"|\"&$B33,'Data Annex'!$K$1:$K$4997,0),MATCH(M$2,'Data Annex'!$K$1:$AN$1,0)),\"\")","v":2.85551026E-2},{"$f":"IFERROR(INDEX('Data Annex'!$K$1:$AN$4997,MATCH(N$1&\"|\"&$B33,'Data Annex'!$K$1:$K$4997,0),MATCH(N$2,'Data Annex'!$K$1:$AN$1,0)),\"\")","v":0.36638794460000002},{"$f":"IFERROR(INDEX('Data Annex'!$K$1:$AN$4997,MATCH(O$1&\"|\"&$B33,'Data Annex'!$K$1:$K$4997,0),MATCH(O$2,'Data Annex'!$K$1:$AN$1,0)),\"\")","v":0.37369192769999998},{"$f":"IFERROR(INDEX('Data Annex'!$K$1:$AN$4997,MATCH(P$1&\"|\"&$B33,'Data Annex'!$K$1:$K$4997,0),MATCH(P$2,'Data Annex'!$K$1:$AN$1,0)),\"\")","v":0.3693310527},{"$f":"IFERROR(INDEX('Data Annex'!$K$1:$AN$4997,MATCH(Q$1&\"|\"&$B33,'Data Annex'!$K$1:$K$4997,0),MATCH(Q$2,'Data Annex'!$K$1:$AN$1,0)),\"\")","v":0.38973780600000002},{"$f":"IFERROR(INDEX('Data Annex'!$K$1:$AN$4997,MATCH(R$1&\"|\"&$B33,'Data Annex'!$K$1:$K$4997,0),MATCH(R$2,'Data Annex'!$K$1:$AN$1,0)),\"\")","v":0.13948932459999999},{"$f":"IFERROR(INDEX('Data Annex'!$K$1:$AN$4997,MATCH(S$1&\"|\"&$B33,'Data Annex'!$K$1:$K$4997,0),MATCH(S$2,'Data Annex'!$K$1:$AN$1,0)),\"\")","v":0.14296305400000001},{"$f":"IFERROR(INDEX('Data Annex'!$K$1:$AN$4997,MATCH(T$1&\"|\"&$B33,'Data Annex'!$K$1:$K$4997,0),MATCH(T$2,'Data Annex'!$K$1:$AN$1,0)),\"\")","v":0.1435000508},{"$f":"IFERROR(INDEX('Data Annex'!$K$1:$AN$4997,MATCH(U$1&\"|\"&$B33,'Data Annex'!$K$1:$K$4997,0),MATCH(U$2,'Data Annex'!$K$1:$AN$1,0)),\"\")","v":0.15194888379999999},{"$f":"IFERROR(INDEX('Data Annex'!$K$1:$AN$4997,MATCH(V$1&\"|\"&$B33,'Data Annex'!$K$1:$K$4997,0),MATCH(V$2,'Data Annex'!$K$1:$AN$1,0)),\"\")","v":0.10855257929999999},{"$f":"IFERROR(INDEX('Data Annex'!$K$1:$AN$4997,MATCH(W$1&\"|\"&$B33,'Data Annex'!$K$1:$K$4997,0),MATCH(W$2,'Data Annex'!$K$1:$AN$1,0)),\"\")","v":9.4920248400000004E-2},{"$f":"IFERROR(INDEX('Data Annex'!$K$1:$AN$4997,MATCH(X$1&\"|\"&$B33,'Data Annex'!$K$1:$K$4997,0),MATCH(X$2,'Data Annex'!$K$1:$AN$1,0)),\"\")","v":0.1048527611},{"$f":"IFERROR(INDEX('Data Annex'!$K$1:$AN$4997,MATCH(Y$1&\"|\"&$B33,'Data Annex'!$K$1:$K$4997,0),MATCH(Y$2,'Data Annex'!$K$1:$AN$1,0)),\"\")","v":8.6685494900000007E-2},0.10340542709999993,0.12834396610000004,0.13217400169999996,0.13681357099999991]
[24,"NO",null,"NO",null,{"$f":"IFERROR(INDEX('Data Annex'!$K$1:$AN$4997,MATCH(F$1&\"|\"&$B34,'Data Annex'!$K$1:$K$4997,0),MATCH(F$2,'Data Annex'!$K$1:$AN$1,0)),\"\")","v":0.37915211830000001},{"$f":"IFERROR(INDEX('Data Annex'!$K$1:$AN$4997,MATCH(G$1&\"|\"&$B34,'Data Annex'!$K$1:$K$4997,0),MATCH(G$2,'Data Annex'!$K$1:$AN$1,0)),\"\")","v":0.36665741880000002},{"$f":"IFERROR(INDEX('Data Annex'!$K$1:$AN$4997,MATCH(H$1&\"|\"&$B34,'Data Annex'!$K$1:$K$4997,0),MATCH(H$2,'Data Annex'!$K$1:$AN$1,0)),\"\")","v":0.39451692710000003},{"$f":"IFERROR(INDEX('Data Annex'!$K$1:$AN$4997,MATCH(I$1&\"|\"&$B34,'Data Annex'!$K$1:$K$4997,0),MATCH(I$2,'Data Annex'!$K$1:$AN$1,0)),\"\")","v":0.3694912293},{"$f":"IFERROR(INDEX('Data Annex'!$K$1:$AN$4997,MATCH(J$1&\"|\"&$B34,'Data Annex'!$K$1:$K$4997,0),MATCH(J$2,'Data Annex'!$K$1:$AN$1,0)),\"\")","v":8.0997269799999994E-2},{"$f":"IFERROR(INDEX('Data Annex'!$K$1:$AN$4997,MATCH(K$1&\"|\"&$B34,'Data Annex'!$K$1:$K$4997,0),MATCH(K$2,'Data Annex'!$K$1:$AN$1,0)),\"\")","v":8.7174240400000005E-2},{"$f":"IFERROR(INDEX('Data Annex'!$K$1:$AN$4997,MATCH(L$1&\"|\"&$B34,'Data Annex'!$K$1:$K$4997,0),MATCH(L$2,'Data Annex'!$K$1:$AN$1,0)),\"\")","v":5.4676037099999998E-2},{"$f":"IFERROR(INDEX('Data Annex'!$K$1:$AN$4997,MATCH(M$1&\"|\"&$B34,'Data Annex'!$K$1:$K$4997,0),MATCH(M$2,'Data Annex'!$K$1:$AN$1,0)),\"\")","v":5.1864291600000001E-2},{"$f":"IFERROR(INDEX('Data Annex'!$K$1:$AN$4997,MATCH(N$1&\"|\"&$B34,'Data Annex'!$K$1:$K$4997,0),MATCH(N$2,'Data Annex'!$K$1:$AN$1,0)),\"\")","v":0.1630911515},{"$f":"IFERROR(INDEX('Data Annex'!$K$1:$AN$4997,MATCH(O$1&\"|\"&$B34,'Data Annex'!$K$1:$K$4997,0),MATCH(O$2,'Data Annex'!$K$1:$AN$1,0)),\"\")","v":0.17264104760000001},{"$f":"IFERROR(INDEX('Data Annex'!$K$1:$AN$4997,MATCH(P$1&\"|\"&$B34,'Data Annex'!$K$1:$K$4997,0),MATCH(P$2,'Data Annex'!$K$1:$AN$1,0)),\"\")","v":0.1819803217},{"$f":"IFERROR(INDEX('Data Annex'!$K$1:$AN$4997,MATCH(Q$1&\"|\"&$B34,'Data Annex'!$K$1:$K$4997,0),MATCH(Q$2,'Data Annex'!$K$1:$AN$1,0)),\"\")","v":0.18981858779999999},{"$f":"IFERROR(INDEX('Data Annex'!$K$1:$AN$4997,MATCH(R$1&\"|\"&$B34,'Data Annex'!$K$1:$K$4997,0),MATCH(R$2,'Data Annex'!$K$1:$AN$1,0)),\"\")","v":0.17825910180000001},{"$f":"IFERROR(INDEX('Data Annex'!$K$1:$AN$4997,MATCH(S$1&\"|\"&$B34,'Data Annex'!$K$1:$K$4997,0),MATCH(S$2,'Data Annex'!$K$1:$AN$1,0)),\"\")","v":0.18868398210000001},{"$f":"IFERROR(INDEX('Data Annex'!$K$1:$AN$4997,MATCH(T$1&\"|\"&$B34,'Data Annex'!$K$1:$K$4997,0),MATCH(T$2,'Data Annex'!$K$1:$AN$1,0)),\"\")","v":0.2007487312},{"$f":"IFERROR(INDEX('Data Annex'!$K$1:$AN$4997,MATCH(U$1&\"|\"&$B34,'Data Annex'!$K$1:$K$4997,0),MATCH(U$2,'Data Annex'!$K$1:$AN$1,0)),\"\")","v":0.21690931769999999},{"$f":"IFERROR(INDEX('Data Annex'!$K$1:$AN$4997,MATCH(V$1&\"|\"&$B34,'Data Annex'!$K$1:$K$4997,0),MATCH(V$2,'Data Annex'!$K$1:$AN$1,0)),\"\")","v":6.9844806800000006E-2},{"$f":"IFERROR(INDEX('Data Annex'!$K$1:$AN$4997,MATCH(W$1&\"|\"&$B34,'Data Annex'!$K$1:$K$4997,0),MATCH(W$2,'Data Annex'!$K$1:$AN$1,0)),\"\")","v":6.6054417700000007E-2},{"$f":"IFERROR(INDEX('Data Annex'!$K$1:$AN$4997,MATCH(X$1&\"|\"&$B34,'Data Annex'!$K$1:$K$4997,0),MATCH(X$2,'Data Annex'!$K$1:$AN$1,0)),\"\")","v":6.3245841799999994E-2},{"$f":"IFERROR(INDEX('Data Annex'!$K$1:$AN$4997,MATCH(Y$1&\"|\"&$B34,'Data Annex'!$K$1:$K$4997,0),MATCH(Y$2,'Data Annex'!$K$1:$AN$1,0)),\"\")","v":6.5383180099999993E-2},0.12865555180000005,0.11878889339999998,0.10483214110000001,0.10653339350000007]
[25,"PL",null,"PL",null,{"$f":"IFERROR(INDEX('Data Annex'!$K$1:$AN$4997,MATCH(F$1&\"|\"&$B35,'Data Annex'!$K$1:$K$4997,0),MATCH(F$2,'Data Annex'!$K$1:$AN$1,0)),\"\")","v":8.2882617000000006E-2},{"$f":"IFERROR(INDEX('Data Annex'!$K$1:$AN$4997,MATCH(G$1&\"|\"&$B35,'Data Annex'!$K$1:$K$4997,0),MATCH(G$2,'Data Annex'!$K$1:$AN$1,0)),\"\")","v":7.1545155200000002E-2},{"$f":"IFERROR(INDEX('Data Annex'!$K$1:$AN$4997,MATCH(H$1&\"|\"&$B35,'Data Annex'!$K$1:$K$4997,0),MATCH(H$2,'Data Annex'!$K$1:$AN$1,0)),\"\")","v":7.3661760100000001E-2},{"$f":"IFERROR(INDEX('Data Annex'!$K$1:$AN$4997,MATCH(I$1&\"|\"&$B35,'Data Annex'!$K$1:$K$4997,0),MATCH(I$2,'Data Annex'!$K$1:$AN$1,0)),\"\")","v":7.8007443900000001E-2},{"$f":"IFERROR(INDEX('Data Annex'!$K$1:$AN$4997,MATCH(J$1&\"|\"&$B35,'Data Annex'!$K$1:$K$4997,0),MATCH(J$2,'Data Annex'!$K$1:$AN$1,0)),\"\")","v":2.2177318599999999E-2},{"$f":"IFERROR(INDEX('Data Annex'!$K$1:$AN$4997,MATCH(K$1&\"|\"&$B35,'Data Annex'!$K$1:$K$4997,0),MATCH(K$2,'Data Annex'!$K$1:$AN$1,0)),\"\")","v":2.0517659600000002E-2},{"$f":"IFERROR(INDEX('Data Annex'!$K$1:$AN$4997,MATCH(L$1&\"|\"&$B35,'Data Annex'!$K$1:$K$4997,0),MATCH(L$2,'Data Annex'!$K$1:$AN$1,0)),\"\")","v":1.93354471E-2},{"$f":"IFERROR(INDEX('Data Annex'!$K$1:$AN$4997,MATCH(M$1&\"|\"&$B35,'Data Annex'!$K$1:$K$4997,0),MATCH(M$2,'Data Annex'!$K$1:$AN$1,0)),\"\")","v":2.1894696299999999E-2},{"$f":"IFERROR(INDEX('Data Annex'!$K$1:$AN$4997,MATCH(N$1&\"|\"&$B35,'Data Annex'!$K$1:$K$4997,0),MATCH(N$2,'Data Annex'!$K$1:$AN$1,0)),\"\")","v":0.58376614059999998},{"$f":"IFERROR(INDEX('Data Annex'!$K$1:$AN$4997,MATCH(O$1&\"|\"&$B35,'Data Annex'!$K$1:$K$4997,0),MATCH(O$2,'Data Annex'!$K$1:$AN$1,0)),\"\")","v":0.57830561489999999},{"$f":"IFERROR(INDEX('Data Annex'!$K$1:$AN$4997,MATCH(P$1&\"|\"&$B35,'Data Annex'!$K$1:$K$4997,0),MATCH(P$2,'Data Annex'!$K$1:$AN$1,0)),\"\")","v":0.58692742840000001},{"$f":"IFERROR(INDEX('Data Annex'!$K$1:$AN$4997,MATCH(Q$1&\"|\"&$B35,'Data Annex'!$K$1:$K$4997,0),MATCH(Q$2,'Data Annex'!$K$1:$AN$1,0)),\"\")","v":0.59562184490000003},{"$f":"IFERROR(INDEX('Data Annex'!$K$1:$AN$4997,MATCH(R$1&\"|\"&$B35,'Data Annex'!$K$1:$K$4997,0),MATCH(R$2,'Data Annex'!$K$1:$AN$1,0)),\"\")","v":0.18479918619999999},{"$f":"IFERROR(INDEX('Data Annex'!$K$1:$AN$4997,MATCH(S$1&\"|\"&$B35,'Data Annex'!$K$1:$K$4997,0),MATCH(S$2,'Data Annex'!$K$1:$AN$1,0)),\"\")","v":0.20397511569999999},{"$f":"IFERROR(INDEX('Data Annex'!$K$1:$AN$4997,MATCH(T$1&\"|\"&$B35,'Data Annex'!$K$1:$K$4997,0),MATCH(T$2,'Data Annex'!$K$1:$AN$1,0)),\"\")","v":0.199543052},{"$f":"IFERROR(INDEX('Data Annex'!$K$1:$AN$4997,MATCH(U$1&\"|\"&$B35,'Data Annex'!$K$1:$K$4997,0),MATCH(U$2,'Data Annex'!$K$1:$AN$1,0)),\"\")","v":0.19191276030000001},{"$f":"IFERROR(INDEX('Data Annex'!$K$1:$AN$4997,MATCH(V$1&\"|\"&$B35,'Data Annex'!$K$1:$K$4997,0),MATCH(V$2,'Data Annex'!$K$1:$AN$1,0)),\"\")","v":6.2987651500000005E-2},{"$f":"IFERROR(INDEX('Data Annex'!$K$1:$AN$4997,MATCH(W$1&\"|\"&$B35,'Data Annex'!$K$1:$K$4997,0),MATCH(W$2,'Data Annex'!$K$1:$AN$1,0)),\"\")","v":6.6126746599999994E-2},{"$f":"IFERROR(INDEX('Data Annex'!$K$1:$AN$4997,MATCH(X$1&\"|\"&$B35,'Data Annex'!$K$1:$K$4997,0),MATCH(X$2,'Data Annex'!$K$1:$AN$1,0)),\"\")","v":6.1837660199999998E-2},{"$f":"IFERROR(INDEX('Data Annex'!$K$1:$AN$4997,MATCH(Y$1&\"|\"&$B35,'Data Annex'!$K$1:$K$4997,0),MATCH(Y$2,'Data Annex'!$K$1:$AN$1,0)),\"\")","v":5.4271824000000003E-2},6.3387086099999976E-2,5.9529708000000028E-2,5.8694652199999954E-2,5.8291430599999965E-2]
[26,"PT",null,"PT",null,{"$f":"IFERROR(INDEX('Data Annex'!$K$1:$AN$4997,MATCH(F$1&\"|\"&$B36,'Data Annex'!$K$1:$K$4997,0),MATCH(F$2,'Data Annex'!$K$1:$AN$1,0)),\"\")","v":4.7810918399999999E-2},{"$f":"IFERROR(INDEX('Data Annex'!$K$1:$AN$4997,MATCH(G$1&\"|\"&$B36,'Data Annex'!$K$1:$K$4997,0),MATCH(G$2,'Data Annex'!$K$1:$AN$1,0)),\"\")","v":4.4726430900000003E-2},{"$f":"IFERROR(INDEX('Data Annex'!$K$1:$AN$4997,MATCH(H$1&\"|\"&$B36,'Data Annex'!$K$1:$K$4997,0),MATCH(H$2,'Data Annex'!$K$1:$AN$1,0)),\"\")","v":4.4589891499999999E-2},{"$f":"IFERROR(INDEX('Data Annex'!$K$1:$AN$4997,MATCH(I$1&\"|\"&$B36,'Data Annex'!$K$1:$K$4997,0),MATCH(I$2,'Data Annex'!$K$1:$AN$1,0)),\"\")","v":4.1717482200000003E-2},{"$f":"IFERROR(INDEX('Data Annex'!$K$1:$AN$4997,MATCH(J$1&\"|\"&$B36,'Data Annex'!$K$1:$K$4997,0),MATCH(J$2,'Data Annex'!$K$1:$AN$1,0)),\"\")","v":3.8897466200000001E-2},{"$f":"IFERROR(INDEX('Data Annex'!$K$1:$AN$4997,MATCH(K$1&\"|\"&$B36,'Data Annex'!$K$1:$K$4997,0),MATCH(K$2,'Data Annex'!$K$1:$AN$1,0)),\"\")","v":3.1392349799999997E-2},{"$f":"IFERROR(INDEX('Data Annex'!$K$1:$AN$4997,MATCH(L$1&\"|\"&$B36,'Data Annex'!$K$1:$K$4997,0),MATCH(L$2,'Data Annex'!$K$1:$AN$1,0)),\"\")","v":2.6696588899999998E-2},{"$f":"IFERROR(INDEX('Data Annex'!$K$1:$AN$4997,MATCH(M$1&\"|\"&$B36,'Data Annex'!$K$1:$K$4997,0),MATCH(M$2,'Data Annex'!$K$1:$AN$1,0)),\"\")","v":2.714275E-2},{"$f":"IFERROR(INDEX('Data Annex'!$K$1:$AN$4997,MATCH(N$1&\"|\"&$B36,'Data Annex'!$K$1:$K$4997,0),MATCH(N$2,'Data Annex'!$K$1:$AN$1,0)),\"\")","v":0.55549773619999998},{"$f":"IFERROR(INDEX('Data Annex'!$K$1:$AN$4997,MATCH(O$1&\"|\"&$B36,'Data Annex'!$K$1:$K$4997,0),MATCH(O$2,'Data Annex'!$K$1:$AN$1,0)),\"\")","v":0.54069396989999996},{"$f":"IFERROR(INDEX('Data Annex'!$K$1:$AN$4997,MATCH(P$1&\"|\"&$B36,'Data Annex'!$K$1:$K$4997,0),MATCH(P$2,'Data Annex'!$K$1:$AN$1,0)),\"\")","v":0.54156770909999996},{"$f":"IFERROR(INDEX('Data Annex'!$K$1:$AN$4997,MATCH(Q$1&\"|\"&$B36,'Data Annex'!$K$1:$K$4997,0),MATCH(Q$2,'Data Annex'!$K$1:$AN$1,0)),\"\")","v":0.54828191520000003},{"$f":"IFERROR(INDEX('Data Annex'!$K$1:$AN$4997,MATCH(R$1&\"|\"&$B36,'Data Annex'!$K$1:$K$4997,0),MATCH(R$2,'Data Annex'!$K$1:$AN$1,0)),\"\")","v":0.18162167209999999},{"$f":"IFERROR(INDEX('Data Annex'!$K$1:$AN$4997,MATCH(S$1&\"|\"&$B36,'Data Annex'!$K$1:$K$4997,0),MATCH(S$2,'Data Annex'!$K$1:$AN$1,0)),\"\")","v":0.1841188913},{"$f":"IFERROR(INDEX('Data Annex'!$K$1:$AN$4997,MATCH(T$1&\"|\"&$B36,'Data Annex'!$K$1:$K$4997,0),MATCH(T$2,'Data Annex'!$K$1:$AN$1,0)),\"\")","v":0.18514623990000001},{"$f":"IFERROR(INDEX('Data Annex'!$K$1:$AN$4997,MATCH(U$1&\"|\"&$B36,'Data Annex'!$K$1:$K$4997,0),MATCH(U$2,'Data Annex'!$K$1:$AN$1,0)),\"\")","v":0.18789562300000001},{"$f":"IFERROR(INDEX('Data Annex'!$K$1:$AN$4997,MATCH(V$1&\"|\"&$B36,'Data Annex'!$K$1:$K$4997,0),MATCH(V$2,'Data Annex'!$K$1:$AN$1,0)),\"\")","v":6.5672654600000005E-2},{"$f":"IFERROR(INDEX('Data Annex'!$K$1:$AN$4997,MATCH(W$1&\"|\"&$B36,'Data Annex'!$K$1:$K$4997,0),MATCH(W$2,'Data Annex'!$K$1:$AN$1,0)),\"\")","v":5.7607929600000003E-2},{"$f":"IFERROR(INDEX('Data Annex'!$K$1:$AN$4997,MATCH(X$1&\"|\"&$B36,'Data Annex'!$K$1:$K$4997,0),MATCH(X$2,'Data Annex'!$K$1:$AN$1,0)),\"\")","v":5.2710854100000003E-2},{"$f":"IFERROR(INDEX('Data Annex'!$K$1:$AN$4997,MATCH(Y$1&\"|\"&$B36,'Data Annex'!$K$1:$K$4997,0),MATCH(Y$2,'Data Annex'!$K$1:$AN$1,0)),\"\")","v":4.8566682299999997E-2},0.11049955250000006,0.14146042850000015,0.14928871649999995,0.14639554729999993]
[27,"RO",null,"RO",null,{"$f":"IFERROR(INDEX('Data Annex'!$K$1:$AN$4997,MATCH(F$1&\"|\"&$B37,'Data Annex'!$K$1:$K$4997,0),MATCH(F$2,'Data Annex'!$K$1:$AN$1,0)),\"\")","v":1.1674816500000001E-2},{"$f":"IFERROR(INDEX('Data Annex'!$K$1:$AN$4997,MATCH(G$1&\"|\"&$B37,'Data Annex'!$K$1:$K$4997,0),MATCH(G$2,'Data Annex'!$K$1:$AN$1,0)),\"\")","v":1.07358573E-2},{"$f":"IFERROR(INDEX('Data Annex'!$K$1:$AN$4997,MATCH(H$1&\"|\"&$B37,'Data Annex'!$K$1:$K$4997,0),MATCH(H$2,'Data Annex'!$K$1:$AN$1,0)),\"\")","v":1.0727899500000001E-2},{"$f":"IFERROR(INDEX('Data Annex'!$K$1:$AN$4997,MATCH(I$1&\"|\"&$B37,'Data Annex'!$K$1:$K$4997,0),MATCH(I$2,'Data Annex'!$K$1:$AN$1,0)),\"\")","v":9.8245481000000003E-3},{"$f":"IFERROR(INDEX('Data Annex'!$K$1:$AN$4997,MATCH(J$1&\"|\"&$B37,'Data Annex'!$K$1:$K$4997,0),MATCH(J$2,'Data Annex'!$K$1:$AN$1,0)),\"\")","v":3.9255518000000003E-2},{"$f":"IFERROR(INDEX('Data Annex'!$K$1:$AN$4997,MATCH(K$1&\"|\"&$B37,'Data Annex'!$K$1:$K$4997,0),MATCH(K$2,'Data Annex'!$K$1:$AN$1,0)),\"\")","v":3.78867378E-2},{"$f":"IFERROR(INDEX('Data Annex'!$K$1:$AN$4997,MATCH(L$1&\"|\"&$B37,'Data Annex'!$K$1:$K$4997,0),MATCH(L$2,'Data Annex'!$K$1:$AN$1,0)),\"\")","v":3.5953102899999999E-2},{"$f":"IFERROR(INDEX('Data Annex'!$K$1:$AN$4997,MATCH(M$1&\"|\"&$B37,'Data Annex'!$K$1:$K$4997,0),MATCH(M$2,'Data Annex'!$K$1:$AN$1,0)),\"\")","v":3.4831569299999997E-2},{"$f":"IFERROR(INDEX('Data Annex'!$K$1:$AN$4997,MATCH(N$1&\"|\"&$B37,'Data Annex'!$K$1:$K$4997,0),MATCH(N$2,'Data Annex'!$K$1:$AN$1,0)),\"\")","v":0.58024949680000004},{"$f":"IFERROR(INDEX('Data Annex'!$K$1:$AN$4997,MATCH(O$1&\"|\"&$B37,'Data Annex'!$K$1:$K$4997,0),MATCH(O$2,'Data Annex'!$K$1:$AN$1,0)),\"\")","v":0.6018463677},{"$f":"IFERROR(INDEX('Data Annex'!$K$1:$AN$4997,MATCH(P$1&\"|\"&$B37,'Data Annex'!$K$1:$K$4997,0),MATCH(P$2,'Data Annex'!$K$1:$AN$1,0)),\"\")","v":0.6016563828},{"$f":"IFERROR(INDEX('Data Annex'!$K$1:$AN$4997,MATCH(Q$1&\"|\"&$B37,'Data Annex'!$K$1:$K$4997,0),MATCH(Q$2,'Data Annex'!$K$1:$AN$1,0)),\"\")","v":0.59446012150000005},{"$f":"IFERROR(INDEX('Data Annex'!$K$1:$AN$4997,MATCH(R$1&\"|\"&$B37,'Data Annex'!$K$1:$K$4997,0),MATCH(R$2,'Data Annex'!$K$1:$AN$1,0)),\"\")","v":0.24901086350000001},{"$f":"IFERROR(INDEX('Data Annex'!$K$1:$AN$4997,MATCH(S$1&\"|\"&$B37,'Data Annex'!$K$1:$K$4997,0),MATCH(S$2,'Data Annex'!$K$1:$AN$1,0)),\"\")","v":0.2413352325},{"$f":"IFERROR(INDEX('Data Annex'!$K$1:$AN$4997,MATCH(T$1&\"|\"&$B37,'Data Annex'!$K$1:$K$4997,0),MATCH(T$2,'Data Annex'!$K$1:$AN$1,0)),\"\")","v":0.25739743030000001},{"$f":"IFERROR(INDEX('Data Annex'!$K$1:$AN$4997,MATCH(U$1&\"|\"&$B37,'Data Annex'!$K$1:$K$4997,0),MATCH(U$2,'Data Annex'!$K$1:$AN$1,0)),\"\")","v":0.2699853988},{"$f":"IFERROR(INDEX('Data Annex'!$K$1:$AN$4997,MATCH(V$1&\"|\"&$B37,'Data Annex'!$K$1:$K$4997,0),MATCH(V$2,'Data Annex'!$K$1:$AN$1,0)),\"\")","v":5.7861193300000002E-2},{"$f":"IFERROR(INDEX('Data Annex'!$K$1:$AN$4997,MATCH(W$1&\"|\"&$B37,'Data Annex'!$K$1:$K$4997,0),MATCH(W$2,'Data Annex'!$K$1:$AN$1,0)),\"\")","v":5.4043475000000001E-2},{"$f":"IFERROR(INDEX('Data Annex'!$K$1:$AN$4997,MATCH(X$1&\"|\"&$B37,'Data Annex'!$K$1:$K$4997,0),MATCH(X$2,'Data Annex'!$K$1:$AN$1,0)),\"\")","v":5.3433231400000003E-2},{"$f":"IFERROR(INDEX('Data Annex'!$K$1:$AN$4997,MATCH(Y$1&\"|\"&$B37,'Data Annex'!$K$1:$K$4997,0),MATCH(Y$2,'Data Annex'!$K$1:$AN$1,0)),\"\")","v":5.5306216800000002E-2},6.194811189999988E-2,5.4152329700000008E-2,4.083195310000004E-2,3.5592145499999978E-2]
[28,"SE",null,"SE",null,{"$f":"IFERROR(INDEX('Data Annex'!$K$1:$AN$4997,MATCH(F$1&\"|\"&$B38,'Data Annex'!$K$1:$K$4997,0),MATCH(F$2,'Data Annex'!$K$1:$AN$1,0)),\"\")","v":0.45295547609999998},{"$f":"IFERROR(INDEX('Data Annex'!$K$1:$AN$4997,MATCH(G$1&\"|\"&$B38,'Data Annex'!$K$1:$K$4997,0),MATCH(G$2,'Data Annex'!$K$1:$AN$1,0)),\"\")","v":0.4357143798},{"$f":"IFERROR(INDEX('Data Annex'!$K$1:$AN$4997,MATCH(H$1&\"|\"&$B38,'Data Annex'!$K$1:$K$4997,0),MATCH(H$2,'Data Annex'!$K$1:$AN$1,0)),\"\")","v":0.44883297519999998},{"$f":"IFERROR(INDEX('Data Annex'!$K$1:$AN$4997,MATCH(I$1&\"|\"&$B38,'Data Annex'!$K$1:$K$4997,0),MATCH(I$2,'Data Annex'!$K$1:$AN$1,0)),\"\")","v":0.4467450409},{"$f":"IFERROR(INDEX('Data Annex'!$K$1:$AN$4997,MATCH(J$1&\"|\"&$B38,'Data Annex'!$K$1:$K$4997,0),MATCH(J$2,'Data Annex'!$K$1:$AN$1,0)),\"\")","v":4.6017265199999997E-2},{"$f":"IFERROR(INDEX('Data Annex'!$K$1:$AN$4997,MATCH(K$1&\"|\"&$B38,'Data Annex'!$K$1:$K$4997,0),MATCH(K$2,'Data Annex'!$K$1:$AN$1,0)),\"\")","v":4.0386575100000002E-2},{"$f":"IFERROR(INDEX('Data Annex'!$K$1:$AN$4997,MATCH(L$1&\"|\"&$B38,'Data Annex'!$K$1:$K$4997,0),MATCH(L$2,'Data Annex'!$K$1:$AN$1,0)),\"\")","v":3.6667862000000002E-2},{"$f":"IFERROR(INDEX('Data Annex'!$K$1:$AN$4997,MATCH(M$1&\"|\"&$B38,'Data Annex'!$K$1:$K$4997,0),MATCH(M$2,'Data Annex'!$K$1:$AN$1,0)),\"\")","v":2.4628115700000001E-2},{"$f":"IFERROR(INDEX('Data Annex'!$K$1:$AN$4997,MATCH(N$1&\"|\"&$B38,'Data Annex'!$K$1:$K$4997,0),MATCH(N$2,'Data Annex'!$K$1:$AN$1,0)),\"\")","v":0.17145736589999999},{"$f":"IFERROR(INDEX('Data Annex'!$K$1:$AN$4997,MATCH(O$1&\"|\"&$B38,'Data Annex'!$K$1:$K$4997,0),MATCH(O$2,'Data Annex'!$K$1:$AN$1,0)),\"\")","v":0.178366992},{"$f":"IFERROR(INDEX('Data Annex'!$K$1:$AN$4997,MATCH(P$1&\"|\"&$B38,'Data Annex'!$K$1:$K$4997,0),MATCH(P$2,'Data Annex'!$K$1:$AN$1,0)),\"\")","v":0.1863813932},{"$f":"IFERROR(INDEX('Data Annex'!$K$1:$AN$4997,MATCH(Q$1&\"|\"&$B38,'Data Annex'!$K$1:$K$4997,0),MATCH(Q$2,'Data Annex'!$K$1:$AN$1,0)),\"\")","v":0.20003921799999999},{"$f":"IFERROR(INDEX('Data Annex'!$K$1:$AN$4997,MATCH(R$1&\"|\"&$B38,'Data Annex'!$K$1:$K$4997,0),MATCH(R$2,'Data Annex'!$K$1:$AN$1,0)),\"\")","v":0.15247420549999999},{"$f":"IFERROR(INDEX('Data Annex'!$K$1:$AN$4997,MATCH(S$1&\"|\"&$B38,'Data Annex'!$K$1:$K$4997,0),MATCH(S$2,'Data Annex'!$K$1:$AN$1,0)),\"\")","v":0.16518411520000001},{"$f":"IFERROR(INDEX('Data Annex'!$K$1:$AN$4997,MATCH(T$1&\"|\"&$B38,'Data Annex'!$K$1:$K$4997,0),MATCH(T$2,'Data Annex'!$K$1:$AN$1,0)),\"\")","v":0.17566428149999999},{"$f":"IFERROR(INDEX('Data Annex'!$K$1:$AN$4997,MATCH(U$1&\"|\"&$B38,'Data Annex'!$K$1:$K$4997,0),MATCH(U$2,'Data Annex'!$K$1:$AN$1,0)),\"\")","v":0.18357437569999999},{"$f":"IFERROR(INDEX('Data Annex'!$K$1:$AN$4997,MATCH(V$1&\"|\"&$B38,'Data Annex'!$K$1:$K$4997,0),MATCH(V$2,'Data Annex'!$K$1:$AN$1,0)),\"\")","v":8.44717512E-2},{"$f":"IFERROR(INDEX('Data Annex'!$K$1:$AN$4997,MATCH(W$1&\"|\"&$B38,'Data Annex'!$K$1:$K$4997,0),MATCH(W$2,'Data Annex'!$K$1:$AN$1,0)),\"\")","v":8.6588432600000001E-2},{"$f":"IFERROR(INDEX('Data Annex'!$K$1:$AN$4997,MATCH(X$1&\"|\"&$B38,'Data Annex'!$K$1:$K$4997,0),MATCH(X$2,'Data Annex'!$K$1:$AN$1,0)),\"\")","v":8.2666137700000003E-2},{"$f":"IFERROR(INDEX('Data Annex'!$K$1:$AN$4997,MATCH(Y$1&\"|\"&$B38,'Data Annex'!$K$1:$K$4997,0),MATCH(Y$2,'Data Annex'!$K$1:$AN$1,0)),\"\")","v":7.2809838399999993E-2},9.2623936099999998E-2,9.3759505299999948E-2,6.9787350399999948E-2,7.2203411299999992E-2]
[29,"SI",null,"SI",null,{"$f":"IFERROR(INDEX('Data Annex'!$K$1:$AN$4997,MATCH(F$1&\"|\"&$B39,'Data Annex'!$K$1:$K$4997,0),MATCH(F$2,'Data Annex'!$K$1:$AN$1,0)),\"\")","v":1.6639280999999999E-2},{"$f":"IFERROR(INDEX('Data Annex'!$K$1:$AN$4997,MATCH(G$1&\"|\"&$B39,'Data Annex'!$K$1:$K$4997,0),MATCH(G$2,'Data Annex'!$K$1:$AN$1,0)),\"\")","v":1.6243095499999999E-2},{"$f":"IFERROR(INDEX('Data Annex'!$K$1:$AN$4997,MATCH(H$1&\"|\"&$B39,'Data Annex'!$K$1:$K$4997,0),MATCH(H$2,'Data Annex'!$K$1:$AN$1,0)),\"\")","v":1.56627225E-2},{"$f":"IFERROR(INDEX('Data Annex'!$K$1:$AN$4997,MATCH(I$1&\"|\"&$B39,'Data Annex'!$K$1:$K$4997,0),MATCH(I$2,'Data Annex'!$K$1:$AN$1,0)),\"\")","v":1.31123826E-2},{"$f":"IFERROR(INDEX('Data Annex'!$K$1:$AN$4997,MATCH(J$1&\"|\"&$B39,'Data Annex'!$K$1:$K$4997,0),MATCH(J$2,'Data Annex'!$K$1:$AN$1,0)),\"\")","v":2.78920265E-2},{"$f":"IFERROR(INDEX('Data Annex'!$K$1:$AN$4997,MATCH(K$1&\"|\"&$B39,'Data Annex'!$K$1:$K$4997,0),MATCH(K$2,'Data Annex'!$K$1:$AN$1,0)),\"\")","v":2.2684649500000001E-2},{"$f":"IFERROR(INDEX('Data Annex'!$K$1:$AN$4997,MATCH(L$1&\"|\"&$B39,'Data Annex'!$K$1:$K$4997,0),MATCH(L$2,'Data Annex'!$K$1:$AN$1,0)),\"\")","v":1.9756238999999998E-2},{"$f":"IFERROR(INDEX('Data Annex'!$K$1:$AN$4997,MATCH(M$1&\"|\"&$B39,'Data Annex'!$K$1:$K$4997,0),MATCH(M$2,'Data Annex'!$K$1:$AN$1,0)),\"\")","v":1.7589091099999999E-2},{"$f":"IFERROR(INDEX('Data Annex'!$K$1:$AN$4997,MATCH(N$1&\"|\"&$B39,'Data Annex'!$K$1:$K$4997,0),MATCH(N$2,'Data Annex'!$K$1:$AN$1,0)),\"\")","v":0.70420752760000005},{"$f":"IFERROR(INDEX('Data Annex'!$K$1:$AN$4997,MATCH(O$1&\"|\"&$B39,'Data Annex'!$K$1:$K$4997,0),MATCH(O$2,'Data Annex'!$K$1:$AN$1,0)),\"\")","v":0.71624951130000003},{"$f":"IFERROR(INDEX('Data Annex'!$K$1:$AN$4997,MATCH(P$1&\"|\"&$B39,'Data Annex'!$K$1:$K$4997,0),MATCH(P$2,'Data Annex'!$K$1:$AN$1,0)),\"\")","v":0.71161464399999996},{"$f":"IFERROR(INDEX('Data Annex'!$K$1:$AN$4997,MATCH(Q$1&\"|\"&$B39,'Data Annex'!$K$1:$K$4997,0),MATCH(Q$2,'Data Annex'!$K$1:$AN$1,0)),\"\")","v":0.71641387089999997},{"$f":"IFERROR(INDEX('Data Annex'!$K$1:$AN$4997,MATCH(R$1&\"|\"&$B39,'Data Annex'!$K$1:$K$4997,0),MATCH(R$2,'Data Annex'!$K$1:$AN$1,0)),\"\")","v":0.16704857240000001},{"$f":"IFERROR(INDEX('Data Annex'!$K$1:$AN$4997,MATCH(S$1&\"|\"&$B39,'Data Annex'!$K$1:$K$4997,0),MATCH(S$2,'Data Annex'!$K$1:$AN$1,0)),\"\")","v":0.16899304000000001},{"$f":"IFERROR(INDEX('Data Annex'!$K$1:$AN$4997,MATCH(T$1&\"|\"&$B39,'Data Annex'!$K$1:$K$4997,0),MATCH(T$2,'Data Annex'!$K$1:$AN$1,0)),\"\")","v":0.17919638909999999},{"$f":"IFERROR(INDEX('Data Annex'!$K$1:$AN$4997,MATCH(U$1&\"|\"&$B39,'Data Annex'!$K$1:$K$4997,0),MATCH(U$2,'Data Annex'!$K$1:$AN$1,0)),\"\")","v":0.18294422129999999},{"$f":"IFERROR(INDEX('Data Annex'!$K$1:$AN$4997,MATCH(V$1&\"|\"&$B39,'Data Annex'!$K$1:$K$4997,0),MATCH(V$2,'Data Annex'!$K$1:$AN$1,0)),\"\")","v":4.7413278699999999E-2},{"$f":"IFERROR(INDEX('Data Annex'!$K$1:$AN$4997,MATCH(W$1&\"|\"&$B39,'Data Annex'!$K$1:$K$4997,0),MATCH(W$2,'Data Annex'!$K$1:$AN$1,0)),\"\")","v":4.0800722400000003E-2},{"$f":"IFERROR(INDEX('Data Annex'!$K$1:$AN$4997,MATCH(X$1&\"|\"&$B39,'Data Annex'!$K$1:$K$4997,0),MATCH(X$2,'Data Annex'!$K$1:$AN$1,0)),\"\")","v":4.0136410300000001E-2},{"$f":"IFERROR(INDEX('Data Annex'!$K$1:$AN$4997,MATCH(Y$1&\"|\"&$B39,'Data Annex'!$K$1:$K$4997,0),MATCH(Y$2,'Data Annex'!$K$1:$AN$1,0)),\"\")","v":3.9310215699999998E-2},3.6799313799999935E-2,3.5028981299999887E-2,3.3633595100000031E-2,3.0630218400000062E-2]
[30,"SK",null,"SK",null,{"$f":"IFERROR(INDEX('Data Annex'!$K$1:$AN$4997,MATCH(F$1&\"|\"&$B40,'Data Annex'!$K$1:$K$4997,0),MATCH(F$2,'Data Annex'!$K$1:$AN$1,0)),\"\")","v":0.12513209920000001},{"$f":"IFERROR(INDEX('Data Annex'!$K$1:$AN$4997,MATCH(G$1&\"|\"&$B40,'Data Annex'!$K$1:$K$4997,0),MATCH(G$2,'Data Annex'!$K$1:$AN$1,0)),\"\")","v":0.1281933764},{"$f":"IFERROR(INDEX('Data Annex'!$K$1:$AN$4997,MATCH(H$1&\"|\"&$B40,'Data Annex'!$K$1:$K$4997,0),MATCH(H$2,'Data Annex'!$K$1:$AN$1,0)),\"\")","v":0.1215169118},{"$f":"IFERROR(INDEX('Data Annex'!$K$1:$AN$4997,MATCH(I$1&\"|\"&$B40,'Data Annex'!$K$1:$K$4997,0),MATCH(I$2,'Data Annex'!$K$1:$AN$1,0)),\"\")","v":0.12024603659999999},{"$f":"IFERROR(INDEX('Data Annex'!$K$1:$AN$4997,MATCH(J$1&\"|\"&$B40,'Data Annex'!$K$1:$K$4997,0),MATCH(J$2,'Data Annex'!$K$1:$AN$1,0)),\"\")","v":3.3815145999999997E-2},{"$f":"IFERROR(INDEX('Data Annex'!$K$1:$AN$4997,MATCH(K$1&\"|\"&$B40,'Data Annex'!$K$1:$K$4997,0),MATCH(K$2,'Data Annex'!$K$1:$AN$1,0)),\"\")","v":2.7211885099999999E-2},{"$f":"IFERROR(INDEX('Data Annex'!$K$1:$AN$4997,MATCH(L$1&\"|\"&$B40,'Data Annex'!$K$1:$K$4997,0),MATCH(L$2,'Data Annex'!$K$1:$AN$1,0)),\"\")","v":2.3779917599999999E-2},{"$f":"IFERROR(INDEX('Data Annex'!$K$1:$AN$4997,MATCH(M$1&\"|\"&$B40,'Data Annex'!$K$1:$K$4997,0),MATCH(M$2,'Data Annex'!$K$1:$AN$1,0)),\"\")","v":2.1374737899999999E-2},{"$f":"IFERROR(INDEX('Data Annex'!$K$1:$AN$4997,MATCH(N$1&\"|\"&$B40,'Data Annex'!$K$1:$K$4997,0),MATCH(N$2,'Data Annex'!$K$1:$AN$1,0)),\"\")","v":0.54026921059999999},{"$f":"IFERROR(INDEX('Data Annex'!$K$1:$AN$4997,MATCH(O$1&\"|\"&$B40,'Data Annex'!$K$1:$K$4997,0),MATCH(O$2,'Data Annex'!$K$1:$AN$1,0)),\"\")","v":0.52716903459999997},{"$f":"IFERROR(INDEX('Data Annex'!$K$1:$AN$4997,MATCH(P$1&\"|\"&$B40,'Data Annex'!$K$1:$K$4997,0),MATCH(P$2,'Data Annex'!$K$1:$AN$1,0)),\"\")","v":0.52037839399999997},{"$f":"IFERROR(INDEX('Data Annex'!$K$1:$AN$4997,MATCH(Q$1&\"|\"&$B40,'Data Annex'!$K$1:$K$4997,0),MATCH(Q$2,'Data Annex'!$K$1:$AN$1,0)),\"\")","v":0.52528224749999997},{"$f":"IFERROR(INDEX('Data Annex'!$K$1:$AN$4997,MATCH(R$1&\"|\"&$B40,'Data Annex'!$K$1:$K$4997,0),MATCH(R$2,'Data Annex'!$K$1:$AN$1,0)),\"\")","v":0.21012130279999999},{"$f":"IFERROR(INDEX('Data Annex'!$K$1:$AN$4997,MATCH(S$1&\"|\"&$B40,'Data Annex'!$K$1:$K$4997,0),MATCH(S$2,'Data Annex'!$K$1:$AN$1,0)),\"\")","v":0.21755376579999999},{"$f":"IFERROR(INDEX('Data Annex'!$K$1:$AN$4997,MATCH(T$1&\"|\"&$B40,'Data Annex'!$K$1:$K$4997,0),MATCH(T$2,'Data Annex'!$K$1:$AN$1,0)),\"\")","v":0.22044395689999999},{"$f":"IFERROR(INDEX('Data Annex'!$K$1:$AN$4997,MATCH(U$1&\"|\"&$B40,'Data Annex'!$K$1:$K$4997,0),MATCH(U$2,'Data Annex'!$K$1:$AN$1,0)),\"\")","v":0.22749021990000001},{"$f":"IFERROR(INDEX('Data Annex'!$K$1:$AN$4997,MATCH(V$1&\"|\"&$B40,'Data Annex'!$K$1:$K$4997,0),MATCH(V$2,'Data Annex'!$K$1:$AN$1,0)),\"\")","v":7.0270512600000001E-2},{"$f":"IFERROR(INDEX('Data Annex'!$K$1:$AN$4997,MATCH(W$1&\"|\"&$B40,'Data Annex'!$K$1:$K$4997,0),MATCH(W$2,'Data Annex'!$K$1:$AN$1,0)),\"\")","v":5.8264230899999998E-2},{"$f":"IFERROR(INDEX('Data Annex'!$K$1:$AN$4997,MATCH(X$1&\"|\"&$B40,'Data Annex'!$K$1:$K$4997,0),MATCH(X$2,'Data Annex'!$K$1:$AN$1,0)),\"\")","v":5.32318694E-2},{"$f":"IFERROR(INDEX('Data Annex'!$K$1:$AN$4997,MATCH(Y$1&\"|\"&$B40,'Data Annex'!$K$1:$K$4997,0),MATCH(Y$2,'Data Annex'!$K$1:$AN$1,0)),\"\")","v":4.0097575400000002E-2},2.0391728799999981E-2,4.160770719999992E-2,6.0648950300000053E-2,6.5509182700000029E-2]
[99,"EU",null,"EU/EEA",null,{"$f":"IFERROR(INDEX('Data Annex'!$K$1:$AN$4997,MATCH(F$1&\"|\"&$B41,'Data Annex'!$K$1:$K$4997,0),MATCH(F$2,'Data Annex'!$K$1:$AN$1,0)),\"\")","v":0.18960998779999999},{"$f":"IFERROR(INDEX('Data Annex'!$K$1:$AN$4997,MATCH(G$1&\"|\"&$B41,'Data Annex'!$K$1:$K$4997,0),MATCH(G$2,'Data Annex'!$K$1:$AN$1,0)),\"\")","v":0.1861471468},{"$f":"IFERROR(INDEX('Data Annex'!$K$1:$AN$4997,MATCH(H$1&\"|\"&$B41,'Data Annex'!$K$1:$K$4997,0),MATCH(H$2,'Data Annex'!$K$1:$AN$1,0)),\"\")","v":0.1834280117},{"$f":"IFERROR(INDEX('Data Annex'!$K$1:$AN$4997,MATCH(I$1&\"|\"&$B41,'Data Annex'!$K$1:$K$4997,0),MATCH(I$2,'Data Annex'!$K$1:$AN$1,0)),\"\")","v":0.18070419530000001},{"$f":"IFERROR(INDEX('Data Annex'!$K$1:$AN$4997,MATCH(J$1&\"|\"&$B41,'Data Annex'!$K$1:$K$4997,0),MATCH(J$2,'Data Annex'!$K$1:$AN$1,0)),\"\")","v":6.7134245999999995E-2},{"$f":"IFERROR(INDEX('Data Annex'!$K$1:$AN$4997,MATCH(K$1&\"|\"&$B41,'Data Annex'!$K$1:$K$4997,0),MATCH(K$2,'Data Annex'!$K$1:$AN$1,0)),\"\")","v":6.2586608000000002E-2},{"$f":"IFERROR(INDEX('Data Annex'!$K$1:$AN$4997,MATCH(L$1&\"|\"&$B41,'Data Annex'!$K$1:$K$4997,0),MATCH(L$2,'Data Annex'!$K$1:$AN$1,0)),\"\")","v":6.0780126300000001E-2},{"$f":"IFERROR(INDEX('Data Annex'!$K$1:$AN$4997,MATCH(M$1&\"|\"&$B41,'Data Annex'!$K$1:$K$4997,0),MATCH(M$2,'Data Annex'!$K$1:$AN$1,0)),\"\")","v":5.3387795000000002E-2},{"$f":"IFERROR(INDEX('Data Annex'!$K$1:$AN$4997,MATCH(N$1&\"|\"&$B41,'Data Annex'!$K$1:$K$4997,0),MATCH(N$2,'Data Annex'!$K$1:$AN$1,0)),\"\")","v":0.27494934770000001},{"$f":"IFERROR(INDEX('Data Annex'!$K$1:$AN$4997,MATCH(O$1&\"|\"&$B41,'Data Annex'!$K$1:$K$4997,0),MATCH(O$2,'Data Annex'!$K$1:$AN$1,0)),\"\")","v":0.27853428959999998},{"$f":"IFERROR(INDEX('Data Annex'!$K$1:$AN$4997,MATCH(P$1&\"|\"&$B41,'Data Annex'!$K$1:$K$4997,0),MATCH(P$2,'Data Annex'!$K$1:$AN$1,0)),\"\")","v":0.28088714889999999},{"$f":"IFERROR(INDEX('Data Annex'!$K$1:$AN$4997,MATCH(Q$1&\"|\"&$B41,'Data Annex'!$K$1:$K$4997,0),MATCH(Q$2,'Data Annex'!$K$1:$AN$1,0)),\"\")","v":0.2884082691},{"$f":"IFERROR(INDEX('Data Annex'!$K$1:$AN$4997,MATCH(R$1&\"|\"&$B41,'Data Annex'!$K$1:$K$4997,0),MATCH(R$2,'Data Annex'!$K$1:$AN$1,0)),\"\")","v":0.13973764929999999},{"$f":"IFERROR(INDEX('Data Annex'!$K$1:$AN$4997,MATCH(S$1&\"|\"&$B41,'Data Annex'!$K$1:$K$4997,0),MATCH(S$2,'Data Annex'!$K$1:$AN$1,0)),\"\")","v":0.15103356979999999},{"$f":"IFERROR(INDEX('Data Annex'!$K$1:$AN$4997,MATCH(T$1&\"|\"&$B41,'Data Annex'!$K$1:$K$4997,0),MATCH(T$2,'Data Annex'!$K$1:$AN$1,0)),\"\")","v":0.1553407329},{"$f":"IFERROR(INDEX('Data Annex'!$K$1:$AN$4997,MATCH(U$1&\"|\"&$B41,'Data Annex'!$K$1:$K$4997,0),MATCH(U$2,'Data Annex'!$K$1:$AN$1,0)),\"\")","v":0.15978646799999999},{"$f":"IFERROR(INDEX('Data Annex'!$K$1:$AN$4997,MATCH(V$1&\"|\"&$B41,'Data Annex'!$K$1:$K$4997,0),MATCH(V$2,'Data Annex'!$K$1:$AN$1,0)),\"\")","v":0.1221347096},{"$f":"IFERROR(INDEX('Data Annex'!$K$1:$AN$4997,MATCH(W$1&\"|\"&$B41,'Data Annex'!$K$1:$K$4997,0),MATCH(W$2,'Data Annex'!$K$1:$AN$1,0)),\"\")","v":0.1143133194},{"$f":"IFERROR(INDEX('Data Annex'!$K$1:$AN$4997,MATCH(X$1&\"|\"&$B41,'Data Annex'!$K$1:$K$4997,0),MATCH(X$2,'Data Annex'!$K$1:$AN$1,0)),\"\")","v":0.1143241752},{"$f":"IFERROR(INDEX('Data Annex'!$K$1:$AN$4997,MATCH(Y$1&\"|\"&$B41,'Data Annex'!$K$1:$K$4997,0),MATCH(Y$2,'Data Annex'!$K$1:$AN$1,0)),\"\")","v":0.1061470994},0.20643405960000011,0.20738506639999998,0.20523980500000005,0.21156617319999993]
[12,"GB",null,"GB",null,{"$f":"IFERROR(INDEX('Data Annex'!$K$1:$AN$4997,MATCH(F$1&\"|\"&$B42,'Data Annex'!$K$1:$K$4997,0),MATCH(F$2,'Data Annex'!$K$1:$AN$1,0)),\"\")","v":0.1035809005},{"$f":"IFERROR(INDEX('Data Annex'!$K$1:$AN$4997,MATCH(G$1&\"|\"&$B42,'Data Annex'!$K$1:$K$4997,0),MATCH(G$2,'Data Annex'!$K$1:$AN$1,0)),\"\")","v":0.1124501262},{"$f":"IFERROR(INDEX('Data Annex'!$K$1:$AN$4997,MATCH(H$1&\"|\"&$B42,'Data Annex'!$K$1:$K$4997,0),MATCH(H$2,'Data Annex'!$K$1:$AN$1,0)),\"\")","v":0.10760454060000001},{"$f":"IFERROR(INDEX('Data Annex'!$K$1:$AN$4997,MATCH(I$1&\"|\"&$B42,'Data Annex'!$K$1:$K$4997,0),MATCH(I$2,'Data Annex'!$K$1:$AN$1,0)),\"\")","v":0.10060627599999999},{"$f":"IFERROR(INDEX('Data Annex'!$K$1:$AN$4997,MATCH(J$1&\"|\"&$B42,'Data Annex'!$K$1:$K$4997,0),MATCH(J$2,'Data Annex'!$K$1:$AN$1,0)),\"\")","v":4.4239066799999997E-2},{"$f":"IFERROR(INDEX('Data Annex'!$K$1:$AN$4997,MATCH(K$1&\"|\"&$B42,'Data Annex'!$K$1:$K$4997,0),MATCH(K$2,'Data Annex'!$K$1:$AN$1,0)),\"\")","v":3.9345066599999999E-2},{"$f":"IFERROR(INDEX('Data Annex'!$K$1:$AN$4997,MATCH(L$1&\"|\"&$B42,'Data Annex'!$K$1:$K$4997,0),MATCH(L$2,'Data Annex'!$K$1:$AN$1,0)),\"\")","v":4.2423070200000003E-2},{"$f":"IFERROR(INDEX('Data Annex'!$K$1:$AN$4997,MATCH(M$1&\"|\"&$B42,'Data Annex'!$K$1:$K$4997,0),MATCH(M$2,'Data Annex'!$K$1:$AN$1,0)),\"\")","v":4.02231823E-2},{"$f":"IFERROR(INDEX('Data Annex'!$K$1:$AN$4997,MATCH(N$1&\"|\"&$B42,'Data Annex'!$K$1:$K$4997,0),MATCH(N$2,'Data Annex'!$K$1:$AN$1,0)),\"\")","v":0.25922020270000001},{"$f":"IFERROR(INDEX('Data Annex'!$K$1:$AN$4997,MATCH(O$1&\"|\"&$B42,'Data Annex'!$K$1:$K$4997,0),MATCH(O$2,'Data Annex'!$K$1:$AN$1,0)),\"\")","v":0.27325475310000003},{"$f":"IFERROR(INDEX('Data Annex'!$K$1:$AN$4997,MATCH(P$1&\"|\"&$B42,'Data Annex'!$K$1:$K$4997,0),MATCH(P$2,'Data Annex'!$K$1:$AN$1,0)),\"\")","v":0.27668366189999999},{"$f":"IFERROR(INDEX('Data Annex'!$K$1:$AN$4997,MATCH(Q$1&\"|\"&$B42,'Data Annex'!$K$1:$K$4997,0),MATCH(Q$2,'Data Annex'!$K$1:$AN$1,0)),\"\")","v":0.28782343929999998},{"$f":"IFERROR(INDEX('Data Annex'!$K$1:$AN$4997,MATCH(R$1&\"|\"&$B42,'Data Annex'!$K$1:$K$4997,0),MATCH(R$2,'Data Annex'!$K$1:$AN$1,0)),\"\")","v":0.15006742640000001},{"$f":"IFERROR(INDEX('Data Annex'!$K$1:$AN$4997,MATCH(S$1&\"|\"&$B42,'Data Annex'!$K$1:$K$4997,0),MATCH(S$2,'Data Annex'!$K$1:$AN$1,0)),\"\")","v":0.1668209182},{"$f":"IFERROR(INDEX('Data Annex'!$K$1:$AN$4997,MATCH(T$1&\"|\"&$B42,'Data Annex'!$K$1:$K$4997,0),MATCH(T$2,'Data Annex'!$K$1:$AN$1,0)),\"\")","v":0.1704806703},{"$f":"IFERROR(INDEX('Data Annex'!$K$1:$AN$4997,MATCH(U$1&\"|\"&$B42,'Data Annex'!$K$1:$K$4997,0),MATCH(U$2,'Data Annex'!$K$1:$AN$1,0)),\"\")","v":0.1747188989},{"$f":"IFERROR(INDEX('Data Annex'!$K$1:$AN$4997,MATCH(V$1&\"|\"&$B42,'Data Annex'!$K$1:$K$4997,0),MATCH(V$2,'Data Annex'!$K$1:$AN$1,0)),\"\")","v":0.14404309730000001},{"$f":"IFERROR(INDEX('Data Annex'!$K$1:$AN$4997,MATCH(W$1&\"|\"&$B42,'Data Annex'!$K$1:$K$4997,0),MATCH(W$2,'Data Annex'!$K$1:$AN$1,0)),\"\")","v":0.1395874919},{"$f":"IFERROR(INDEX('Data Annex'!$K$1:$AN$4997,MATCH(X$1&\"|\"&$B42,'Data Annex'!$K$1:$K$4997,0),MATCH(X$2,'Data Annex'!$K$1:$AN$1,0)),\"\")","v":0.1435172726},{"$f":"IFERROR(INDEX('Data Annex'!$K$1:$AN$4997,MATCH(Y$1&\"|\"&$B42,'Data Annex'!$K$1:$K$4997,0),MATCH(Y$2,'Data Annex'!$K$1:$AN$1,0)),\"\")","v":0.14158161620000001},{"$f":"1-F42-J42-N42-R42-V42","v":0.29884930629999995},{"$f":"1-G42-K42-O42-S42-W42","v":0.26854164400000002},{"$f":"1-H42-L42-P42-T42-X42","v":0.25929078439999997},{"$f":"1-I42-M42-Q42-U42-Y42","v":0.25504658730000007}]
[]
[null,null,null,"(1) Customer deposits include deposits from other financial institutions and general governments."]
[null,null,null,"(2) Also includes deposits from central banks."]
[null,null,null,null,null,"T05_1","T05_1","T05_1","T05_1","T05_1",null,"T04_2","T04_2","T04_2","T04_2",null,null,"T05_2","T05_2","T05_2","T05_2","T05_3","T05_3","T05_3","T05_3","T05_4","T05_4","T05_4","T05_4"]
[null,null,null,null,null,{"$f":"TEXT(F52,\"YYYYMM\")+0","v":202003},{"$f":"TEXT(G52,\"YYYYMM\")+0","v":202006},202009,202012,null,null,{"$f":"TEXT(L52,\"YYYYMM\")+0","v":202003},{"$f":"TEXT(M52,\"YYYYMM\")+0","v":202006},{"$f":"TEXT(N52,\"YYYYMM\")+0","v":202009},{"$f":"TEXT(O52,\"YYYYMM\")+0","v":202012},null,null,{"$f":"TEXT(R52,\"YYYYMM\")+0","v":202003},{"$f":"TEXT(S52,\"YYYYMM\")+0","v":202006},202009,202012,{"$f":"TEXT(V52,\"YYYYMM\")+0","v":202003},202006,202009,202012,{"$f":"TEXT(Z52,\"YYYYMM\")+0","v":202003},202006,202009,202012]
[null,null,null,"Total liabilities",null,null,null,null,null,"T05_3","Share of secured funding",null,null,null,null,null,"Contingent liabilities: loan commitments"]
[]
[null,null,null,"Volumes bn EUR",null,null,null,null,null,null,"% of debt securities issued",null,null,null,null,null,"Volumes bn EUR; % of total loan commitments"]
[null,null,null,null,null,null,null,null,null,null,null,null,null,null,null,null,null,"Loan commitments: volume",null,null,null,"Share of loan commitments to HHs",null,null,null,"Share of loan commitments to NFCs"]
[null,null,null,null,null,{"$f":"EOMONTH($A$3,-9)","v":"2020-03-31"},{"$f":"EOMONTH($A$3,-6)","v":"2020-06-30"},{"$f":"EOMONTH($A$3,-3)","v":"2020-09-30"},{"$f":"$A$3","v":"2020-12-01"},null,null,{"$f":"EOMONTH($A$3,-9)","v":"2020-03-31"},{"$f":"EOMONTH($A$3,-6)","v":"2020-06-30"},{"$f":"EOMONTH($A$3,-3)","v":"2020-09-30"},{"$f":"$A$3","v":"2020-12-01"},null,null,{"$f":"EOMONTH($A$3,-9)","v":"2020-03-31"},{"$f":"EOMONTH($A$3,-6)","v":"2020-06-30"},{"$f":"EOMONTH($A$3,-3)","v":"2020-09-30"},{"$f":"$A$3","v":"2020-12-01"},{"$f":"EOMONTH($A$3,-9)","v":"2020-03-31"},{"$f":"EOMONTH($A$3,-6)","v":"2020-06-30"},{"$f":"EOMONTH($A$3,-3)","v":"2020-09-30"},{"$f":"$A$3","v":"2020-12-01"},{"$f":"EOMONTH($A$3,-9)","v":"2020-03-31"},{"$f":"EOMONTH($A$3,-6)","v":"2020-06-30"},{"$f":"EOMONTH($A$3,-3)","v":"2020-09-30"},{"$f":"$A$3","v":"2020-12-01"}]
[1,"AT",null,"AT",null,{"$f":"IFERROR(INDEX('Data Annex'!$K$1:$AN$4997,MATCH(F$46&\"|\"&$B53,'Data Annex'!$K$1:$K$4997,0),MATCH(F$47,'Data Annex'!$K$1:$AN$1,0)),\"\")","v":596.14858968999999},{"$f":"IFERROR(INDEX('Data Annex'!$K$1:$AN$4997,MATCH(G$46&\"|\"&$B53,'Data Annex'!$K$1:$K$4997,0),MATCH(G$47,'Data Annex'!$K$1:$AN$1,0)),\"\")","v":628.51962843000001},{"$f":"IFERROR(INDEX('Data Annex'!$K$1:$AN$4997,MATCH(H$46&\"|\"&$B53,'Data Annex'!$K$1:$K$4997,0),MATCH(H$47,'Data Annex'!$K$1:$AN$1,0)),\"\")","v":636.15314106000005},{"$f":"IFERROR(INDEX('Data Annex'!$K$1:$AN$4997,MATCH(I$46&\"|\"&$B53,'Data Annex'!$K$1:$K$4997,0),MATCH(I$47,'Data Annex'!$K$1:$AN$1,0)),\"\")","v":647.24417413000003},null,"AT",{"$f":"IFERROR(INDEX('Data Annex'!$K$1:$AN$4997,MATCH(L$46&\"|\"&$B53,'Data Annex'!$K$1:$K$4997,0),MATCH(L$47,'Data Annex'!$K$1:$AN$1,0)),\"\")","v":0.4128684185},{"$f":"IFERROR(INDEX('Data Annex'!$K$1:$AN$4997,MATCH(M$46&\"|\"&$B53,'Data Annex'!$K$1:$K$4997,0),MATCH(M$47,'Data Annex'!$K$1:$AN$1,0)),\"\")","v":0.40231785590000002},{"$f":"IFERROR(INDEX('Data Annex'!$K$1:$AN$4997,MATCH(N$46&\"|\"&$B53,'Data Annex'!$K$1:$K$4997,0),MATCH(N$47,'Data Annex'!$K$1:$AN$1,0)),\"\")","v":0.40105747310000001},{"$f":"IFERROR(INDEX('Data Annex'!$K$1:$AN$4997,MATCH(O$46&\"|\"&$B53,'Data Annex'!$K$1:$K$4997,0),MATCH(O$47,'Data Annex'!$K$1:$AN$1,0)),\"\")","v":0.38847055600000002},null,"AT",{"$f":"IFERROR(INDEX('Data Annex'!$K$1:$AN$4997,MATCH(R$46&\"|\"&$B53,'Data Annex'!$K$1:$K$4997,0),MATCH(R$47,'Data Annex'!$K$1:$AN$1,0)),\"\")","v":113.94397832},{"$f":"IFERROR(INDEX('Data Annex'!$K$1:$AN$4997,MATCH(S$46&\"|\"&$B53,'Data Annex'!$K$1:$K$4997,0),MATCH(S$47,'Data Annex'!$K$1:$AN$1,0)),\"\")","v":117.27329278000001},{"$f":"IFERROR(INDEX('Data Annex'!$K$1:$AN$4997,MATCH(T$46&\"|\"&$B53,'Data Annex'!$K$1:$K$4997,0),MATCH(T$47,'Data Annex'!$K$1:$AN$1,0)),\"\")","v":119.32186407},{"$f":"IFERROR(INDEX('Data Annex'!$K$1:$AN$4997,MATCH(U$46&\"|\"&$B53,'Data Annex'!$K$1:$K$4997,0),MATCH(U$47,'Data Annex'!$K$1:$AN$1,0)),\"\")","v":122.66483827},{"$f":"IFERROR(INDEX('Data Annex'!$K$1:$AN$4997,MATCH(V$46&\"|\"&$B53,'Data Annex'!$K$1:$K$4997,0),MATCH(V$47,'Data Annex'!$K$1:$AN$1,0)),\"\")","v":0.24511383819999999},{"$f":"IFERROR(INDEX('Data Annex'!$K$1:$AN$4997,MATCH(W$46&\"|\"&$B53,'Data Annex'!$K$1:$K$4997,0),MATCH(W$47,'Data Annex'!$K$1:$AN$1,0)),\"\")","v":0.2418372671},{"$f":"IFERROR(INDEX('Data Annex'!$K$1:$AN$4997,MATCH(X$46&\"|\"&$B53,'Data Annex'!$K$1:$K$4997,0),MATCH(X$47,'Data Annex'!$K$1:$AN$1,0)),\"\")","v":0.2343113607},{"$f":"IFERROR(INDEX('Data Annex'!$K$1:$AN$4997,MATCH(Y$46&\"|\"&$B53,'Data Annex'!$K$1:$K$4997,0),MATCH(Y$47,'Data Annex'!$K$1:$AN$1,0)),\"\")","v":0.22998549369999999},{"$f":"IFERROR(INDEX('Data Annex'!$K$1:$AN$4997,MATCH(Z$46&\"|\"&$B53,'Data Annex'!$K$1:$K$4997,0),MATCH(Z$47,'Data Annex'!$K$1:$AN$1,0)),\"\")","v":0.5992900793},{"$f":"IFERROR(INDEX('Data Annex'!$K$1:$AN$4997,MATCH(AA$46&\"|\"&$B53,'Data Annex'!$K$1:$K$4997,0),MATCH(AA$47,'Data Annex'!$K$1:$AN$1,0)),\"\")","v":0.59622394869999995},{"$f":"IFERROR(INDEX('Data Annex'!$K$1:$AN$4997,MATCH(AB$46&\"|\"&$B53,'Data Annex'!$K$1:$K$4997,0),MATCH(AB$47,'Data Annex'!$K$1:$AN$1,0)),\"\")","v":0.59495046969999998},{"$f":"IFERROR(INDEX('Data Annex'!$K$1:$AN$4997,MATCH(AC$46&\"|\"&$B53,'Data Annex'!$K$1:$K$4997,0),MATCH(AC$47,'Data Annex'!$K$1:$AN$1,0)),\"\")","v":0.59673456049999996}]
[2,"BE",null,"BE",null,{"$f":"IFERROR(INDEX('Data Annex'!$K$1:$AN$4997,MATCH(F$46&\"|\"&$B54,'Data Annex'!$K$1:$K$4997,0),MATCH(F$47,'Data Annex'!$K$1:$AN$1,0)),\"\")","v":1103.3218050999999},{"$f":"IFERROR(INDEX('Data Annex'!$K$1:$AN$4997,MATCH(G$46&\"|\"&$B54,'Data Annex'!$K$1:$K$4997,0),MATCH(G$47,'Data Annex'!$K$1:$AN$1,0)),\"\")","v":1122.8236531},{"$f":"IFERROR(INDEX('Data Annex'!$K$1:$AN$4997,MATCH(H$46&\"|\"&$B54,'Data Annex'!$K$1:$K$4997,0),MATCH(H$47,'Data Annex'!$K$1:$AN$1,0)),\"\")","v":1111.9540751},{"$f":"IFERROR(INDEX('Data Annex'!$K$1:$AN$4997,MATCH(I$46&\"|\"&$B54,'Data Annex'!$K$1:$K$4997,0),MATCH(I$47,'Data Annex'!$K$1:$AN$1,0)),\"\")","v":1108.7959609},null,"BE",{"$f":"IFERROR(INDEX('Data Annex'!$K$1:$AN$4997,MATCH(L$46&\"|\"&$B54,'Data Annex'!$K$1:$K$4997,0),MATCH(L$47,'Data Annex'!$K$1:$AN$1,0)),\"\")","v":0.2155895015},{"$f":"IFERROR(INDEX('Data Annex'!$K$1:$AN$4997,MATCH(M$46&\"|\"&$B54,'Data Annex'!$K$1:$K$4997,0),MATCH(M$47,'Data Annex'!$K$1:$AN$1,0)),\"\")","v":0.2242127944},{"$f":"IFERROR(INDEX('Data Annex'!$K$1:$AN$4997,MATCH(N$46&\"|\"&$B54,'Data Annex'!$K$1:$K$4997,0),MATCH(N$47,'Data Annex'!$K$1:$AN$1,0)),\"\")","v":0.23026252650000001},{"$f":"IFERROR(INDEX('Data Annex'!$K$1:$AN$4997,MATCH(O$46&\"|\"&$B54,'Data Annex'!$K$1:$K$4997,0),MATCH(O$47,'Data Annex'!$K$1:$AN$1,0)),\"\")","v":0.2274953307},null,"BE",{"$f":"IFERROR(INDEX('Data Annex'!$K$1:$AN$4997,MATCH(R$46&\"|\"&$B54,'Data Annex'!$K$1:$K$4997,0),MATCH(R$47,'Data Annex'!$K$1:$AN$1,0)),\"\")","v":148.92938262999999},{"$f":"IFERROR(INDEX('Data Annex'!$K$1:$AN$4997,MATCH(S$46&\"|\"&$B54,'Data Annex'!$K$1:$K$4997,0),MATCH(S$47,'Data Annex'!$K$1:$AN$1,0)),\"\")","v":153.01382719},{"$f":"IFERROR(INDEX('Data Annex'!$K$1:$AN$4997,MATCH(T$46&\"|\"&$B54,'Data Annex'!$K$1:$K$4997,0),MATCH(T$47,'Data Annex'!$K$1:$AN$1,0)),\"\")","v":157.21068758999999},{"$f":"IFERROR(INDEX('Data Annex'!$K$1:$AN$4997,MATCH(U$46&\"|\"&$B54,'Data Annex'!$K$1:$K$4997,0),MATCH(U$47,'Data Annex'!$K$1:$AN$1,0)),\"\")","v":161.32629829000001},{"$f":"IFERROR(INDEX('Data Annex'!$K$1:$AN$4997,MATCH(V$46&\"|\"&$B54,'Data Annex'!$K$1:$K$4997,0),MATCH(V$47,'Data Annex'!$K$1:$AN$1,0)),\"\")","v":0.19129869769999999},{"$f":"IFERROR(INDEX('Data Annex'!$K$1:$AN$4997,MATCH(W$46&\"|\"&$B54,'Data Annex'!$K$1:$K$4997,0),MATCH(W$47,'Data Annex'!$K$1:$AN$1,0)),\"\")","v":0.20239160340000001},{"$f":"IFERROR(INDEX('Data Annex'!$K$1:$AN$4997,MATCH(X$46&\"|\"&$B54,'Data Annex'!$K$1:$K$4997,0),MATCH(X$47,'Data Annex'!$K$1:$AN$1,0)),\"\")","v":0.18594484650000001},{"$f":"IFERROR(INDEX('Data Annex'!$K$1:$AN$4997,MATCH(Y$46&\"|\"&$B54,'Data Annex'!$K$1:$K$4997,0),MATCH(Y$47,'Data Annex'!$K$1:$AN$1,0)),\"\")","v":0.18033684890000001},{"$f":"IFERROR(INDEX('Data Annex'!$K$1:$AN$4997,MATCH(Z$46&\"|\"&$B54,'Data Annex'!$K$1:$K$4997,0),MATCH(Z$47,'Data Annex'!$K$1:$AN$1,0)),\"\")","v":0.57888531399999998},{"$f":"IFERROR(INDEX('Data Annex'!$K$1:$AN$4997,MATCH(AA$46&\"|\"&$B54,'Data Annex'!$K$1:$K$4997,0),MATCH(AA$47,'Data Annex'!$K$1:$AN$1,0)),\"\")","v":0.55356475869999999},{"$f":"IFERROR(INDEX('Data Annex'!$K$1:$AN$4997,MATCH(AB$46&\"|\"&$B54,'Data Annex'!$K$1:$K$4997,0),MATCH(AB$47,'Data Annex'!$K$1:$AN$1,0)),\"\")","v":0.57710190400000005},{"$f":"IFERROR(INDEX('Data Annex'!$K$1:$AN$4997,MATCH(AC$46&\"|\"&$B54,'Data Annex'!$K$1:$K$4997,0),MATCH(AC$47,'Data Annex'!$K$1:$AN$1,0)),\"\")","v":0.5576029831}]
[3,"BG",null,"BG",null,{"$f":"IFERROR(INDEX('Data Annex'!$K$1:$AN$4997,MATCH(F$46&\"|\"&$B55,'Data Annex'!$K$1:$K$4997,0),MATCH(F$47,'Data Annex'!$K$1:$AN$1,0)),\"\")","v":29.455221392999999},{"$f":"IFERROR(INDEX('Data Annex'!$K$1:$AN$4997,MATCH(G$46&\"|\"&$B55,'Data Annex'!$K$1:$K$4997,0),MATCH(G$47,'Data Annex'!$K$1:$AN$1,0)),\"\")","v":29.567208815000001},{"$f":"IFERROR(INDEX('Data Annex'!$K$1:$AN$4997,MATCH(H$46&\"|\"&$B55,'Data Annex'!$K$1:$K$4997,0),MATCH(H$47,'Data Annex'!$K$1:$AN$1,0)),\"\")","v":30.481204111},{"$f":"IFERROR(INDEX('Data Annex'!$K$1:$AN$4997,MATCH(I$46&\"|\"&$B55,'Data Annex'!$K$1:$K$4997,0),MATCH(I$47,'Data Annex'!$K$1:$AN$1,0)),\"\")","v":31.834684528},null,"BG",{"$f":"IFERROR(INDEX('Data Annex'!$K$1:$AN$4997,MATCH(L$46&\"|\"&$B55,'Data Annex'!$K$1:$K$4997,0),MATCH(L$47,'Data Annex'!$K$1:$AN$1,0)),\"\")","v":0},{"$f":"IFERROR(INDEX('Data Annex'!$K$1:$AN$4997,MATCH(M$46&\"|\"&$B55,'Data Annex'!$K$1:$K$4997,0),MATCH(M$47,'Data Annex'!$K$1:$AN$1,0)),\"\")","v":0},{"$f":"IFERROR(INDEX('Data Annex'!$K$1:$AN$4997,MATCH(N$46&\"|\"&$B55,'Data Annex'!$K$1:$K$4997,0),MATCH(N$47,'Data Annex'!$K$1:$AN$1,0)),\"\")","v":0},{"$f":"IFERROR(INDEX('Data Annex'!$K$1:$AN$4997,MATCH(O$46&\"|\"&$B55,'Data Annex'!$K$1:$K$4997,0),MATCH(O$47,'Data Annex'!$K$1:$AN$1,0)),\"\")","v":0},null,"BG",{"$f":"IFERROR(INDEX('Data Annex'!$K$1:$AN$4997,MATCH(R$46&\"|\"&$B55,'Data Annex'!$K$1:$K$4997,0),MATCH(R$47,'Data Annex'!$K$1:$AN$1,0)),\"\")","v":3.8946436241},{"$f":"IFERROR(INDEX('Data Annex'!$K$1:$AN$4997,MATCH(S$46&\"|\"&$B55,'Data Annex'!$K$1:$K$4997,0),MATCH(S$47,'Data Annex'!$K$1:$AN$1,0)),\"\")","v":3.867089682},{"$f":"IFERROR(INDEX('Data Annex'!$K$1:$AN$4997,MATCH(T$46&\"|\"&$B55,'Data Annex'!$K$1:$K$4997,0),MATCH(T$47,'Data Annex'!$K$1:$AN$1,0)),\"\")","v":4.0638470190999998},{"$f":"IFERROR(INDEX('Data Annex'!$K$1:$AN$4997,MATCH(U$46&\"|\"&$B55,'Data Annex'!$K$1:$K$4997,0),MATCH(U$47,'Data Annex'!$K$1:$AN$1,0)),\"\")","v":4.5203481951000004},{"$f":"IFERROR(INDEX('Data Annex'!$K$1:$AN$4997,MATCH(V$46&\"|\"&$B55,'Data Annex'!$K$1:$K$4997,0),MATCH(V$47,'Data Annex'!$K$1:$AN$1,0)),\"\")","v":0.16416546670000001},{"$f":"IFERROR(INDEX('Data Annex'!$K$1:$AN$4997,MATCH(W$46&\"|\"&$B55,'Data Annex'!$K$1:$K$4997,0),MATCH(W$47,'Data Annex'!$K$1:$AN$1,0)),\"\")","v":0.16366778109999999},{"$f":"IFERROR(INDEX('Data Annex'!$K$1:$AN$4997,MATCH(X$46&\"|\"&$B55,'Data Annex'!$K$1:$K$4997,0),MATCH(X$47,'Data Annex'!$K$1:$AN$1,0)),\"\")","v":0.1557133604},{"$f":"IFERROR(INDEX('Data Annex'!$K$1:$AN$4997,MATCH(Y$46&\"|\"&$B55,'Data Annex'!$K$1:$K$4997,0),MATCH(Y$47,'Data Annex'!$K$1:$AN$1,0)),\"\")","v":0.1455744819},{"$f":"IFERROR(INDEX('Data Annex'!$K$1:$AN$4997,MATCH(Z$46&\"|\"&$B55,'Data Annex'!$K$1:$K$4997,0),MATCH(Z$47,'Data Annex'!$K$1:$AN$1,0)),\"\")","v":0.7859036143},{"$f":"IFERROR(INDEX('Data Annex'!$K$1:$AN$4997,MATCH(AA$46&\"|\"&$B55,'Data Annex'!$K$1:$K$4997,0),MATCH(AA$47,'Data Annex'!$K$1:$AN$1,0)),\"\")","v":0.7913131041},{"$f":"IFERROR(INDEX('Data Annex'!$K$1:$AN$4997,MATCH(AB$46&\"|\"&$B55,'Data Annex'!$K$1:$K$4997,0),MATCH(AB$47,'Data Annex'!$K$1:$AN$1,0)),\"\")","v":0.80051816340000004},{"$f":"IFERROR(INDEX('Data Annex'!$K$1:$AN$4997,MATCH(AC$46&\"|\"&$B55,'Data Annex'!$K$1:$K$4997,0),MATCH(AC$47,'Data Annex'!$K$1:$AN$1,0)),\"\")","v":0.81746354470000004}]
[4,"CY",null,"CY",null,{"$f":"IFERROR(INDEX('Data Annex'!$K$1:$AN$4997,MATCH(F$46&\"|\"&$B56,'Data Annex'!$K$1:$K$4997,0),MATCH(F$47,'Data Annex'!$K$1:$AN$1,0)),\"\")","v":32.231164},{"$f":"IFERROR(INDEX('Data Annex'!$K$1:$AN$4997,MATCH(G$46&\"|\"&$B56,'Data Annex'!$K$1:$K$4997,0),MATCH(G$47,'Data Annex'!$K$1:$AN$1,0)),\"\")","v":33.317918227},{"$f":"IFERROR(INDEX('Data Annex'!$K$1:$AN$4997,MATCH(H$46&\"|\"&$B56,'Data Annex'!$K$1:$K$4997,0),MATCH(H$47,'Data Annex'!$K$1:$AN$1,0)),\"\")","v":33.262742791000001},{"$f":"IFERROR(INDEX('Data Annex'!$K$1:$AN$4997,MATCH(I$46&\"|\"&$B56,'Data Annex'!$K$1:$K$4997,0),MATCH(I$47,'Data Annex'!$K$1:$AN$1,0)),\"\")","v":33.358701545000002},null,"CY",{"$f":"IFERROR(INDEX('Data Annex'!$K$1:$AN$4997,MATCH(L$46&\"|\"&$B56,'Data Annex'!$K$1:$K$4997,0),MATCH(L$47,'Data Annex'!$K$1:$AN$1,0)),\"\")","v":0},{"$f":"IFERROR(INDEX('Data Annex'!$K$1:$AN$4997,MATCH(M$46&\"|\"&$B56,'Data Annex'!$K$1:$K$4997,0),MATCH(M$47,'Data Annex'!$K$1:$AN$1,0)),\"\")","v":0},{"$f":"IFERROR(INDEX('Data Annex'!$K$1:$AN$4997,MATCH(N$46&\"|\"&$B56,'Data Annex'!$K$1:$K$4997,0),MATCH(N$47,'Data Annex'!$K$1:$AN$1,0)),\"\")","v":0},{"$f":"IFERROR(INDEX('Data Annex'!$K$1:$AN$4997,MATCH(O$46&\"|\"&$B56,'Data Annex'!$K$1:$K$4997,0),MATCH(O$47,'Data Annex'!$K$1:$AN$1,0)),\"\")","v":0},null,"CY",{"$f":"IFERROR(INDEX('Data Annex'!$K$1:$AN$4997,MATCH(R$46&\"|\"&$B56,'Data Annex'!$K$1:$K$4997,0),MATCH(R$47,'Data Annex'!$K$1:$AN$1,0)),\"\")","v":2.7341839999999999},{"$f":"IFERROR(INDEX('Data Annex'!$K$1:$AN$4997,MATCH(S$46&\"|\"&$B56,'Data Annex'!$K$1:$K$4997,0),MATCH(S$47,'Data Annex'!$K$1:$AN$1,0)),\"\")","v":2.9271116250000002},{"$f":"IFERROR(INDEX('Data Annex'!$K$1:$AN$4997,MATCH(T$46&\"|\"&$B56,'Data Annex'!$K$1:$K$4997,0),MATCH(T$47,'Data Annex'!$K$1:$AN$1,0)),\"\")","v":3.0671094179999998},{"$f":"IFERROR(INDEX('Data Annex'!$K$1:$AN$4997,MATCH(U$46&\"|\"&$B56,'Data Annex'!$K$1:$K$4997,0),MATCH(U$47,'Data Annex'!$K$1:$AN$1,0)),\"\")","v":1.061308218},{"$f":"IFERROR(INDEX('Data Annex'!$K$1:$AN$4997,MATCH(V$46&\"|\"&$B56,'Data Annex'!$K$1:$K$4997,0),MATCH(V$47,'Data Annex'!$K$1:$AN$1,0)),\"\")","v":0.36309187679999999},{"$f":"IFERROR(INDEX('Data Annex'!$K$1:$AN$4997,MATCH(W$46&\"|\"&$B56,'Data Annex'!$K$1:$K$4997,0),MATCH(W$47,'Data Annex'!$K$1:$AN$1,0)),\"\")","v":0.35037968390000002},{"$f":"IFERROR(INDEX('Data Annex'!$K$1:$AN$4997,MATCH(X$46&\"|\"&$B56,'Data Annex'!$K$1:$K$4997,0),MATCH(X$47,'Data Annex'!$K$1:$AN$1,0)),\"\")","v":0.33344151760000001},{"$f":"IFERROR(INDEX('Data Annex'!$K$1:$AN$4997,MATCH(Y$46&\"|\"&$B56,'Data Annex'!$K$1:$K$4997,0),MATCH(Y$47,'Data Annex'!$K$1:$AN$1,0)),\"\")","v":0.34485019410000001},{"$f":"IFERROR(INDEX('Data Annex'!$K$1:$AN$4997,MATCH(Z$46&\"|\"&$B56,'Data Annex'!$K$1:$K$4997,0),MATCH(Z$47,'Data Annex'!$K$1:$AN$1,0)),\"\")","v":0.62013748889999998},{"$f":"IFERROR(INDEX('Data Annex'!$K$1:$AN$4997,MATCH(AA$46&\"|\"&$B56,'Data Annex'!$K$1:$K$4997,0),MATCH(AA$47,'Data Annex'!$K$1:$AN$1,0)),\"\")","v":0.63416798910000005},{"$f":"IFERROR(INDEX('Data Annex'!$K$1:$AN$4997,MATCH(AB$46&\"|\"&$B56,'Data Annex'!$K$1:$K$4997,0),MATCH(AB$47,'Data Annex'!$K$1:$AN$1,0)),\"\")","v":0.6519784179},{"$f":"IFERROR(INDEX('Data Annex'!$K$1:$AN$4997,MATCH(AC$46&\"|\"&$B56,'Data Annex'!$K$1:$K$4997,0),MATCH(AC$47,'Data Annex'!$K$1:$AN$1,0)),\"\")","v":0.62567388879999997}]
[5,"CZ",null,"CZ",null,{"$f":"IFERROR(INDEX('Data Annex'!$K$1:$AN$4997,MATCH(F$46&\"|\"&$B57,'Data Annex'!$K$1:$K$4997,0),MATCH(F$47,'Data Annex'!$K$1:$AN$1,0)),\"\")","v":159.83122005999999},{"$f":"IFERROR(INDEX('Data Annex'!$K$1:$AN$4997,MATCH(G$46&\"|\"&$B57,'Data Annex'!$K$1:$K$4997,0),MATCH(G$47,'Data Annex'!$K$1:$AN$1,0)),\"\")","v":160.90959581000001},{"$f":"IFERROR(INDEX('Data Annex'!$K$1:$AN$4997,MATCH(H$46&\"|\"&$B57,'Data Annex'!$K$1:$K$4997,0),MATCH(H$47,'Data Annex'!$K$1:$AN$1,0)),\"\")","v":158.21536293},{"$f":"IFERROR(INDEX('Data Annex'!$K$1:$AN$4997,MATCH(I$46&\"|\"&$B57,'Data Annex'!$K$1:$K$4997,0),MATCH(I$47,'Data Annex'!$K$1:$AN$1,0)),\"\")","v":155.77240695},null,"CZ",{"$f":"IFERROR(INDEX('Data Annex'!$K$1:$AN$4997,MATCH(L$46&\"|\"&$B57,'Data Annex'!$K$1:$K$4997,0),MATCH(L$47,'Data Annex'!$K$1:$AN$1,0)),\"\")","v":3.4563557799999998E-2},{"$f":"IFERROR(INDEX('Data Annex'!$K$1:$AN$4997,MATCH(M$46&\"|\"&$B57,'Data Annex'!$K$1:$K$4997,0),MATCH(M$47,'Data Annex'!$K$1:$AN$1,0)),\"\")","v":3.7733860299999998E-2},{"$f":"IFERROR(INDEX('Data Annex'!$K$1:$AN$4997,MATCH(N$46&\"|\"&$B57,'Data Annex'!$K$1:$K$4997,0),MATCH(N$47,'Data Annex'!$K$1:$AN$1,0)),\"\")","v":3.3795489300000002E-2},{"$f":"IFERROR(INDEX('Data Annex'!$K$1:$AN$4997,MATCH(O$46&\"|\"&$B57,'Data Annex'!$K$1:$K$4997,0),MATCH(O$47,'Data Annex'!$K$1:$AN$1,0)),\"\")","v":0.2831944468},null,"CZ",{"$f":"IFERROR(INDEX('Data Annex'!$K$1:$AN$4997,MATCH(R$46&\"|\"&$B57,'Data Annex'!$K$1:$K$4997,0),MATCH(R$47,'Data Annex'!$K$1:$AN$1,0)),\"\")","v":17.277779114000001},{"$f":"IFERROR(INDEX('Data Annex'!$K$1:$AN$4997,MATCH(S$46&\"|\"&$B57,'Data Annex'!$K$1:$K$4997,0),MATCH(S$47,'Data Annex'!$K$1:$AN$1,0)),\"\")","v":18.078329850999999},{"$f":"IFERROR(INDEX('Data Annex'!$K$1:$AN$4997,MATCH(T$46&\"|\"&$B57,'Data Annex'!$K$1:$K$4997,0),MATCH(T$47,'Data Annex'!$K$1:$AN$1,0)),\"\")","v":20.243961263999999},{"$f":"IFERROR(INDEX('Data Annex'!$K$1:$AN$4997,MATCH(U$46&\"|\"&$B57,'Data Annex'!$K$1:$K$4997,0),MATCH(U$47,'Data Annex'!$K$1:$AN$1,0)),\"\")","v":19.436710875999999},{"$f":"IFERROR(INDEX('Data Annex'!$K$1:$AN$4997,MATCH(V$46&\"|\"&$B57,'Data Annex'!$K$1:$K$4997,0),MATCH(V$47,'Data Annex'!$K$1:$AN$1,0)),\"\")","v":0.28341633379999998},{"$f":"IFERROR(INDEX('Data Annex'!$K$1:$AN$4997,MATCH(W$46&\"|\"&$B57,'Data Annex'!$K$1:$K$4997,0),MATCH(W$47,'Data Annex'!$K$1:$AN$1,0)),\"\")","v":0.27762512119999999},{"$f":"IFERROR(INDEX('Data Annex'!$K$1:$AN$4997,MATCH(X$46&\"|\"&$B57,'Data Annex'!$K$1:$K$4997,0),MATCH(X$47,'Data Annex'!$K$1:$AN$1,0)),\"\")","v":0.2489829335},{"$f":"IFERROR(INDEX('Data Annex'!$K$1:$AN$4997,MATCH(Y$46&\"|\"&$B57,'Data Annex'!$K$1:$K$4997,0),MATCH(Y$47,'Data Annex'!$K$1:$AN$1,0)),\"\")","v":0.26881963609999998},{"$f":"IFERROR(INDEX('Data Annex'!$K$1:$AN$4997,MATCH(Z$46&\"|\"&$B57,'Data Annex'!$K$1:$K$4997,0),MATCH(Z$47,'Data Annex'!$K$1:$AN$1,0)),\"\")","v":0.56797217470000005},{"$f":"IFERROR(INDEX('Data Annex'!$K$1:$AN$4997,MATCH(AA$46&\"|\"&$B57,'Data Annex'!$K$1:$K$4997,0),MATCH(AA$47,'Data Annex'!$K$1:$AN$1,0)),\"\")","v":0.58005433399999995},{"$f":"IFERROR(INDEX('Data Annex'!$K$1:$AN$4997,MATCH(AB$46&\"|\"&$B57,'Data Annex'!$K$1:$K$4997,0),MATCH(AB$47,'Data Annex'!$K$1:$AN$1,0)),\"\")","v":0.57913309859999995},{"$f":"IFERROR(INDEX('Data Annex'!$K$1:$AN$4997,MATCH(AC$46&\"|\"&$B57,'Data Annex'!$K$1:$K$4997,0),MATCH(AC$47,'Data Annex'!$K$1:$AN$1,0)),\"\")","v":0.5559231845}]
[6,"DE",null,"DE",null,{"$f":"IFERROR(INDEX('Data Annex'!$K$1:$AN$4997,MATCH(F$46&\"|\"&$B58,'Data Annex'!$K$1:$K$4997,0),MATCH(F$47,'Data Annex'!$K$1:$AN$1,0)),\"\")","v":3735.545192},{"$f":"IFERROR(INDEX('Data Annex'!$K$1:$AN$4997,MATCH(G$46&\"|\"&$B58,'Data Annex'!$K$1:$K$4997,0),MATCH(G$47,'Data Annex'!$K$1:$AN$1,0)),\"\")","v":3730.5825983},{"$f":"IFERROR(INDEX('Data Annex'!$K$1:$AN$4997,MATCH(H$46&\"|\"&$B58,'Data Annex'!$K$1:$K$4997,0),MATCH(H$47,'Data Annex'!$K$1:$AN$1,0)),\"\")","v":3707.3645903000001},{"$f":"IFERROR(INDEX('Data Annex'!$K$1:$AN$4997,MATCH(I$46&\"|\"&$B58,'Data Annex'!$K$1:$K$4997,0),MATCH(I$47,'Data Annex'!$K$1:$AN$1,0)),\"\")","v":3536.5910429999999},null,"DE",{"$f":"IFERROR(INDEX('Data Annex'!$K$1:$AN$4997,MATCH(L$46&\"|\"&$B58,'Data Annex'!$K$1:$K$4997,0),MATCH(L$47,'Data Annex'!$K$1:$AN$1,0)),\"\")","v":0.31286703360000001},{"$f":"IFERROR(INDEX('Data Annex'!$K$1:$AN$4997,MATCH(M$46&\"|\"&$B58,'Data Annex'!$K$1:$K$4997,0),MATCH(M$47,'Data Annex'!$K$1:$AN$1,0)),\"\")","v":0.31088997660000001},{"$f":"IFERROR(INDEX('Data Annex'!$K$1:$AN$4997,MATCH(N$46&\"|\"&$B58,'Data Annex'!$K$1:$K$4997,0),MATCH(N$47,'Data Annex'!$K$1:$AN$1,0)),\"\")","v":0.30872486539999999},{"$f":"IFERROR(INDEX('Data Annex'!$K$1:$AN$4997,MATCH(O$46&\"|\"&$B58,'Data Annex'!$K$1:$K$4997,0),MATCH(O$47,'Data Annex'!$K$1:$AN$1,0)),\"\")","v":0.308922321},null,"DE",{"$f":"IFERROR(INDEX('Data Annex'!$K$1:$AN$4997,MATCH(R$46&\"|\"&$B58,'Data Annex'!$K$1:$K$4997,0),MATCH(R$47,'Data Annex'!$K$1:$AN$1,0)),\"\")","v":585.04757408},{"$f":"IFERROR(INDEX('Data Annex'!$K$1:$AN$4997,MATCH(S$46&\"|\"&$B58,'Data Annex'!$K$1:$K$4997,0),MATCH(S$47,'Data Annex'!$K$1:$AN$1,0)),\"\")","v":609.10960969999996},{"$f":"IFERROR(INDEX('Data Annex'!$K$1:$AN$4997,MATCH(T$46&\"|\"&$B58,'Data Annex'!$K$1:$K$4997,0),MATCH(T$47,'Data Annex'!$K$1:$AN$1,0)),\"\")","v":633.90472344},{"$f":"IFERROR(INDEX('Data Annex'!$K$1:$AN$4997,MATCH(U$46&\"|\"&$B58,'Data Annex'!$K$1:$K$4997,0),MATCH(U$47,'Data Annex'!$K$1:$AN$1,0)),\"\")","v":578.18234683000003},{"$f":"IFERROR(INDEX('Data Annex'!$K$1:$AN$4997,MATCH(V$46&\"|\"&$B58,'Data Annex'!$K$1:$K$4997,0),MATCH(V$47,'Data Annex'!$K$1:$AN$1,0)),\"\")","v":0.18952271949999999},{"$f":"IFERROR(INDEX('Data Annex'!$K$1:$AN$4997,MATCH(W$46&\"|\"&$B58,'Data Annex'!$K$1:$K$4997,0),MATCH(W$47,'Data Annex'!$K$1:$AN$1,0)),\"\")","v":0.18231070160000001},{"$f":"IFERROR(INDEX('Data Annex'!$K$1:$AN$4997,MATCH(X$46&\"|\"&$B58,'Data Annex'!$K$1:$K$4997,0),MATCH(X$47,'Data Annex'!$K$1:$AN$1,0)),\"\")","v":0.17663014369999999},{"$f":"IFERROR(INDEX('Data Annex'!$K$1:$AN$4997,MATCH(Y$46&\"|\"&$B58,'Data Annex'!$K$1:$K$4997,0),MATCH(Y$47,'Data Annex'!$K$1:$AN$1,0)),\"\")","v":0.1788395898},{"$f":"IFERROR(INDEX('Data Annex'!$K$1:$AN$4997,MATCH(Z$46&\"|\"&$B58,'Data Annex'!$K$1:$K$4997,0),MATCH(Z$47,'Data Annex'!$K$1:$AN$1,0)),\"\")","v":0.6082328186},{"$f":"IFERROR(INDEX('Data Annex'!$K$1:$AN$4997,MATCH(AA$46&\"|\"&$B58,'Data Annex'!$K$1:$K$4997,0),MATCH(AA$47,'Data Annex'!$K$1:$AN$1,0)),\"\")","v":0.61611641890000002},{"$f":"IFERROR(INDEX('Data Annex'!$K$1:$AN$4997,MATCH(AB$46&\"|\"&$B58,'Data Annex'!$K$1:$K$4997,0),MATCH(AB$47,'Data Annex'!$K$1:$AN$1,0)),\"\")","v":0.60995125350000001},{"$f":"IFERROR(INDEX('Data Annex'!$K$1:$AN$4997,MATCH(AC$46&\"|\"&$B58,'Data Annex'!$K$1:$K$4997,0),MATCH(AC$47,'Data Annex'!$K$1:$AN$1,0)),\"\")","v":0.64013038560000002}]
[7,"DK",null,"DK",null,{"$f":"IFERROR(INDEX('Data Annex'!$K$1:$AN$4997,MATCH(F$46&\"|\"&$B59,'Data Annex'!$K$1:$K$4997,0),MATCH(F$47,'Data Annex'!$K$1:$AN$1,0)),\"\")","v":750.00116737999997},{"$f":"IFERROR(INDEX('Data Annex'!$K$1:$AN$4997,MATCH(G$46&\"|\"&$B59,'Data Annex'!$K$1:$K$4997,0),MATCH(G$47,'Data Annex'!$K$1:$AN$1,0)),\"\")","v":751.30718016000003},{"$f":"IFERROR(INDEX('Data Annex'!$K$1:$AN$4997,MATCH(H$46&\"|\"&$B59,'Data Annex'!$K$1:$K$4997,0),MATCH(H$47,'Data Annex'!$K$1:$AN$1,0)),\"\")","v":753.68685793999998},{"$f":"IFERROR(INDEX('Data Annex'!$K$1:$AN$4997,MATCH(I$46&\"|\"&$B59,'Data Annex'!$K$1:$K$4997,0),MATCH(I$47,'Data Annex'!$K$1:$AN$1,0)),\"\")","v":772.27451359999998},null,"DK",{"$f":"IFERROR(INDEX('Data Annex'!$K$1:$AN$4997,MATCH(L$46&\"|\"&$B59,'Data Annex'!$K$1:$K$4997,0),MATCH(L$47,'Data Annex'!$K$1:$AN$1,0)),\"\")","v":0.91858318130000005},{"$f":"IFERROR(INDEX('Data Annex'!$K$1:$AN$4997,MATCH(M$46&\"|\"&$B59,'Data Annex'!$K$1:$K$4997,0),MATCH(M$47,'Data Annex'!$K$1:$AN$1,0)),\"\")","v":0.91127002729999995},{"$f":"IFERROR(INDEX('Data Annex'!$K$1:$AN$4997,MATCH(N$46&\"|\"&$B59,'Data Annex'!$K$1:$K$4997,0),MATCH(N$47,'Data Annex'!$K$1:$AN$1,0)),\"\")","v":0.90717165560000002},{"$f":"IFERROR(INDEX('Data Annex'!$K$1:$AN$4997,MATCH(O$46&\"|\"&$B59,'Data Annex'!$K$1:$K$4997,0),MATCH(O$47,'Data Annex'!$K$1:$AN$1,0)),\"\")","v":0.9072572807},null,"DK",{"$f":"IFERROR(INDEX('Data Annex'!$K$1:$AN$4997,MATCH(R$46&\"|\"&$B59,'Data Annex'!$K$1:$K$4997,0),MATCH(R$47,'Data Annex'!$K$1:$AN$1,0)),\"\")","v":119.56613606000001},{"$f":"IFERROR(INDEX('Data Annex'!$K$1:$AN$4997,MATCH(S$46&\"|\"&$B59,'Data Annex'!$K$1:$K$4997,0),MATCH(S$47,'Data Annex'!$K$1:$AN$1,0)),\"\")","v":120.0319482},{"$f":"IFERROR(INDEX('Data Annex'!$K$1:$AN$4997,MATCH(T$46&\"|\"&$B59,'Data Annex'!$K$1:$K$4997,0),MATCH(T$47,'Data Annex'!$K$1:$AN$1,0)),\"\")","v":120.58990183},{"$f":"IFERROR(INDEX('Data Annex'!$K$1:$AN$4997,MATCH(U$46&\"|\"&$B59,'Data Annex'!$K$1:$K$4997,0),MATCH(U$47,'Data Annex'!$K$1:$AN$1,0)),\"\")","v":124.75097604},{"$f":"IFERROR(INDEX('Data Annex'!$K$1:$AN$4997,MATCH(V$46&\"|\"&$B59,'Data Annex'!$K$1:$K$4997,0),MATCH(V$47,'Data Annex'!$K$1:$AN$1,0)),\"\")","v":0.16866508180000001},{"$f":"IFERROR(INDEX('Data Annex'!$K$1:$AN$4997,MATCH(W$46&\"|\"&$B59,'Data Annex'!$K$1:$K$4997,0),MATCH(W$47,'Data Annex'!$K$1:$AN$1,0)),\"\")","v":0.1838587938},{"$f":"IFERROR(INDEX('Data Annex'!$K$1:$AN$4997,MATCH(X$46&\"|\"&$B59,'Data Annex'!$K$1:$K$4997,0),MATCH(X$47,'Data Annex'!$K$1:$AN$1,0)),\"\")","v":0.18521253109999999},{"$f":"IFERROR(INDEX('Data Annex'!$K$1:$AN$4997,MATCH(Y$46&\"|\"&$B59,'Data Annex'!$K$1:$K$4997,0),MATCH(Y$47,'Data Annex'!$K$1:$AN$1,0)),\"\")","v":0.18912893580000001},{"$f":"IFERROR(INDEX('Data Annex'!$K$1:$AN$4997,MATCH(Z$46&\"|\"&$B59,'Data Annex'!$K$1:$K$4997,0),MATCH(Z$47,'Data Annex'!$K$1:$AN$1,0)),\"\")","v":0.56745854709999999},{"$f":"IFERROR(INDEX('Data Annex'!$K$1:$AN$4997,MATCH(AA$46&\"|\"&$B59,'Data Annex'!$K$1:$K$4997,0),MATCH(AA$47,'Data Annex'!$K$1:$AN$1,0)),\"\")","v":0.62174293570000005},{"$f":"IFERROR(INDEX('Data Annex'!$K$1:$AN$4997,MATCH(AB$46&\"|\"&$B59,'Data Annex'!$K$1:$K$4997,0),MATCH(AB$47,'Data Annex'!$K$1:$AN$1,0)),\"\")","v":0.6168744907},{"$f":"IFERROR(INDEX('Data Annex'!$K$1:$AN$4997,MATCH(AC$46&\"|\"&$B59,'Data Annex'!$K$1:$K$4997,0),MATCH(AC$47,'Data Annex'!$K$1:$AN$1,0)),\"\")","v":0.62286600859999997}]
[8,"EE",null,"EE",null,{"$f":"IFERROR(INDEX('Data Annex'!$K$1:$AN$4997,MATCH(F$46&\"|\"&$B60,'Data Annex'!$K$1:$K$4997,0),MATCH(F$47,'Data Annex'!$K$1:$AN$1,0)),\"\")","v":30.409390903999999},{"$f":"IFERROR(INDEX('Data Annex'!$K$1:$AN$4997,MATCH(G$46&\"|\"&$B60,'Data Annex'!$K$1:$K$4997,0),MATCH(G$47,'Data Annex'!$K$1:$AN$1,0)),\"\")","v":33.355509417},{"$f":"IFERROR(INDEX('Data Annex'!$K$1:$AN$4997,MATCH(H$46&\"|\"&$B60,'Data Annex'!$K$1:$K$4997,0),MATCH(H$47,'Data Annex'!$K$1:$AN$1,0)),\"\")","v":34.532864013000001},{"$f":"IFERROR(INDEX('Data Annex'!$K$1:$AN$4997,MATCH(I$46&\"|\"&$B60,'Data Annex'!$K$1:$K$4997,0),MATCH(I$47,'Data Annex'!$K$1:$AN$1,0)),\"\")","v":36.831745341999998},null,"EE",{"$f":"IFERROR(INDEX('Data Annex'!$K$1:$AN$4997,MATCH(L$46&\"|\"&$B60,'Data Annex'!$K$1:$K$4997,0),MATCH(L$47,'Data Annex'!$K$1:$AN$1,0)),\"\")","v":0.40845441290000001},{"$f":"IFERROR(INDEX('Data Annex'!$K$1:$AN$4997,MATCH(M$46&\"|\"&$B60,'Data Annex'!$K$1:$K$4997,0),MATCH(M$47,'Data Annex'!$K$1:$AN$1,0)),\"\")","v":0.50053267369999999},{"$f":"IFERROR(INDEX('Data Annex'!$K$1:$AN$4997,MATCH(N$46&\"|\"&$B60,'Data Annex'!$K$1:$K$4997,0),MATCH(N$47,'Data Annex'!$K$1:$AN$1,0)),\"\")","v":0.48802778499999999},{"$f":"IFERROR(INDEX('Data Annex'!$K$1:$AN$4997,MATCH(O$46&\"|\"&$B60,'Data Annex'!$K$1:$K$4997,0),MATCH(O$47,'Data Annex'!$K$1:$AN$1,0)),\"\")","v":0.4810080471},null,"EE",{"$f":"IFERROR(INDEX('Data Annex'!$K$1:$AN$4997,MATCH(R$46&\"|\"&$B60,'Data Annex'!$K$1:$K$4997,0),MATCH(R$47,'Data Annex'!$K$1:$AN$1,0)),\"\")","v":2.9818250292999999},{"$f":"IFERROR(INDEX('Data Annex'!$K$1:$AN$4997,MATCH(S$46&\"|\"&$B60,'Data Annex'!$K$1:$K$4997,0),MATCH(S$47,'Data Annex'!$K$1:$AN$1,0)),\"\")","v":3.3047477499000002},{"$f":"IFERROR(INDEX('Data Annex'!$K$1:$AN$4997,MATCH(T$46&\"|\"&$B60,'Data Annex'!$K$1:$K$4997,0),MATCH(T$47,'Data Annex'!$K$1:$AN$1,0)),\"\")","v":3.2660846648000001},{"$f":"IFERROR(INDEX('Data Annex'!$K$1:$AN$4997,MATCH(U$46&\"|\"&$B60,'Data Annex'!$K$1:$K$4997,0),MATCH(U$47,'Data Annex'!$K$1:$AN$1,0)),\"\")","v":3.1803216591000001},{"$f":"IFERROR(INDEX('Data Annex'!$K$1:$AN$4997,MATCH(V$46&\"|\"&$B60,'Data Annex'!$K$1:$K$4997,0),MATCH(V$47,'Data Annex'!$K$1:$AN$1,0)),\"\")","v":0.19461421370000001},{"$f":"IFERROR(INDEX('Data Annex'!$K$1:$AN$4997,MATCH(W$46&\"|\"&$B60,'Data Annex'!$K$1:$K$4997,0),MATCH(W$47,'Data Annex'!$K$1:$AN$1,0)),\"\")","v":0.1695125488},{"$f":"IFERROR(INDEX('Data Annex'!$K$1:$AN$4997,MATCH(X$46&\"|\"&$B60,'Data Annex'!$K$1:$K$4997,0),MATCH(X$47,'Data Annex'!$K$1:$AN$1,0)),\"\")","v":0.17980741149999999},{"$f":"IFERROR(INDEX('Data Annex'!$K$1:$AN$4997,MATCH(Y$46&\"|\"&$B60,'Data Annex'!$K$1:$K$4997,0),MATCH(Y$47,'Data Annex'!$K$1:$AN$1,0)),\"\")","v":0.1821137883},{"$f":"IFERROR(INDEX('Data Annex'!$K$1:$AN$4997,MATCH(Z$46&\"|\"&$B60,'Data Annex'!$K$1:$K$4997,0),MATCH(Z$47,'Data Annex'!$K$1:$AN$1,0)),\"\")","v":0.74160184900000004},{"$f":"IFERROR(INDEX('Data Annex'!$K$1:$AN$4997,MATCH(AA$46&\"|\"&$B60,'Data Annex'!$K$1:$K$4997,0),MATCH(AA$47,'Data Annex'!$K$1:$AN$1,0)),\"\")","v":0.72631812360000003},{"$f":"IFERROR(INDEX('Data Annex'!$K$1:$AN$4997,MATCH(AB$46&\"|\"&$B60,'Data Annex'!$K$1:$K$4997,0),MATCH(AB$47,'Data Annex'!$K$1:$AN$1,0)),\"\")","v":0.7175492604},{"$f":"IFERROR(INDEX('Data Annex'!$K$1:$AN$4997,MATCH(AC$46&\"|\"&$B60,'Data Annex'!$K$1:$K$4997,0),MATCH(AC$47,'Data Annex'!$K$1:$AN$1,0)),\"\")","v":0.74075653969999999}]
[9,"ES",null,"ES",null,{"$f":"IFERROR(INDEX('Data Annex'!$K$1:$AN$4997,MATCH(F$46&\"|\"&$B61,'Data Annex'!$K$1:$K$4997,0),MATCH(F$47,'Data Annex'!$K$1:$AN$1,0)),\"\")","v":3183.2898025999998},{"$f":"IFERROR(INDEX('Data Annex'!$K$1:$AN$4997,MATCH(G$46&\"|\"&$B61,'Data Annex'!$K$1:$K$4997,0),MATCH(G$47,'Data Annex'!$K$1:$AN$1,0)),\"\")","v":3336.7926682000002},{"$f":"IFERROR(INDEX('Data Annex'!$K$1:$AN$4997,MATCH(H$46&\"|\"&$B61,'Data Annex'!$K$1:$K$4997,0),MATCH(H$47,'Data Annex'!$K$1:$AN$1,0)),\"\")","v":3256.5098601},{"$f":"IFERROR(INDEX('Data Annex'!$K$1:$AN$4997,MATCH(I$46&\"|\"&$B61,'Data Annex'!$K$1:$K$4997,0),MATCH(I$47,'Data Annex'!$K$1:$AN$1,0)),\"\")","v":3258.630615},null,"ES",{"$f":"IFERROR(INDEX('Data Annex'!$K$1:$AN$4997,MATCH(L$46&\"|\"&$B61,'Data Annex'!$K$1:$K$4997,0),MATCH(L$47,'Data Annex'!$K$1:$AN$1,0)),\"\")","v":0.39479839109999998},{"$f":"IFERROR(INDEX('Data Annex'!$K$1:$AN$4997,MATCH(M$46&\"|\"&$B61,'Data Annex'!$K$1:$K$4997,0),MATCH(M$47,'Data Annex'!$K$1:$AN$1,0)),\"\")","v":0.38399858139999998},{"$f":"IFERROR(INDEX('Data Annex'!$K$1:$AN$4997,MATCH(N$46&\"|\"&$B61,'Data Annex'!$K$1:$K$4997,0),MATCH(N$47,'Data Annex'!$K$1:$AN$1,0)),\"\")","v":0.38700370119999999},{"$f":"IFERROR(INDEX('Data Annex'!$K$1:$AN$4997,MATCH(O$46&\"|\"&$B61,'Data Annex'!$K$1:$K$4997,0),MATCH(O$47,'Data Annex'!$K$1:$AN$1,0)),\"\")","v":0.36818598260000002},null,"ES",{"$f":"IFERROR(INDEX('Data Annex'!$K$1:$AN$4997,MATCH(R$46&\"|\"&$B61,'Data Annex'!$K$1:$K$4997,0),MATCH(R$47,'Data Annex'!$K$1:$AN$1,0)),\"\")","v":502.88918950999999},{"$f":"IFERROR(INDEX('Data Annex'!$K$1:$AN$4997,MATCH(S$46&\"|\"&$B61,'Data Annex'!$K$1:$K$4997,0),MATCH(S$47,'Data Annex'!$K$1:$AN$1,0)),\"\")","v":541.78561896999997},{"$f":"IFERROR(INDEX('Data Annex'!$K$1:$AN$4997,MATCH(T$46&\"|\"&$B61,'Data Annex'!$K$1:$K$4997,0),MATCH(T$47,'Data Annex'!$K$1:$AN$1,0)),\"\")","v":552.14498547000005},{"$f":"IFERROR(INDEX('Data Annex'!$K$1:$AN$4997,MATCH(U$46&\"|\"&$B61,'Data Annex'!$K$1:$K$4997,0),MATCH(U$47,'Data Annex'!$K$1:$AN$1,0)),\"\")","v":556.89970306999999},{"$f":"IFERROR(INDEX('Data Annex'!$K$1:$AN$4997,MATCH(V$46&\"|\"&$B61,'Data Annex'!$K$1:$K$4997,0),MATCH(V$47,'Data Annex'!$K$1:$AN$1,0)),\"\")","v":0.4355666232},{"$f":"IFERROR(INDEX('Data Annex'!$K$1:$AN$4997,MATCH(W$46&\"|\"&$B61,'Data Annex'!$K$1:$K$4997,0),MATCH(W$47,'Data Annex'!$K$1:$AN$1,0)),\"\")","v":0.39300966780000002},{"$f":"IFERROR(INDEX('Data Annex'!$K$1:$AN$4997,MATCH(X$46&\"|\"&$B61,'Data Annex'!$K$1:$K$4997,0),MATCH(X$47,'Data Annex'!$K$1:$AN$1,0)),\"\")","v":0.38761599699999999},{"$f":"IFERROR(INDEX('Data Annex'!$K$1:$AN$4997,MATCH(Y$46&\"|\"&$B61,'Data Annex'!$K$1:$K$4997,0),MATCH(Y$47,'Data Annex'!$K$1:$AN$1,0)),\"\")","v":0.38557870950000001},{"$f":"IFERROR(INDEX('Data Annex'!$K$1:$AN$4997,MATCH(Z$46&\"|\"&$B61,'Data Annex'!$K$1:$K$4997,0),MATCH(Z$47,'Data Annex'!$K$1:$AN$1,0)),\"\")","v":0.4682137583},{"$f":"IFERROR(INDEX('Data Annex'!$K$1:$AN$4997,MATCH(AA$46&\"|\"&$B61,'Data Annex'!$K$1:$K$4997,0),MATCH(AA$47,'Data Annex'!$K$1:$AN$1,0)),\"\")","v":0.50452377410000004},{"$f":"IFERROR(INDEX('Data Annex'!$K$1:$AN$4997,MATCH(AB$46&\"|\"&$B61,'Data Annex'!$K$1:$K$4997,0),MATCH(AB$47,'Data Annex'!$K$1:$AN$1,0)),\"\")","v":0.50103914949999995},{"$f":"IFERROR(INDEX('Data Annex'!$K$1:$AN$4997,MATCH(AC$46&\"|\"&$B61,'Data Annex'!$K$1:$K$4997,0),MATCH(AC$47,'Data Annex'!$K$1:$AN$1,0)),\"\")","v":0.50676194050000001}]
[10,"FI",null,"FI",null,{"$f":"IFERROR(INDEX('Data Annex'!$K$1:$AN$4997,MATCH(F$46&\"|\"&$B62,'Data Annex'!$K$1:$K$4997,0),MATCH(F$47,'Data Annex'!$K$1:$AN$1,0)),\"\")","v":696.41897648999998},{"$f":"IFERROR(INDEX('Data Annex'!$K$1:$AN$4997,MATCH(G$46&\"|\"&$B62,'Data Annex'!$K$1:$K$4997,0),MATCH(G$47,'Data Annex'!$K$1:$AN$1,0)),\"\")","v":691.48006459999999},{"$f":"IFERROR(INDEX('Data Annex'!$K$1:$AN$4997,MATCH(H$46&\"|\"&$B62,'Data Annex'!$K$1:$K$4997,0),MATCH(H$47,'Data Annex'!$K$1:$AN$1,0)),\"\")","v":676.87081696999996},{"$f":"IFERROR(INDEX('Data Annex'!$K$1:$AN$4997,MATCH(I$46&\"|\"&$B62,'Data Annex'!$K$1:$K$4997,0),MATCH(I$47,'Data Annex'!$K$1:$AN$1,0)),\"\")","v":649.03665303000002},null,"FI",{"$f":"IFERROR(INDEX('Data Annex'!$K$1:$AN$4997,MATCH(L$46&\"|\"&$B62,'Data Annex'!$K$1:$K$4997,0),MATCH(L$47,'Data Annex'!$K$1:$AN$1,0)),\"\")","v":0.48082849300000002},{"$f":"IFERROR(INDEX('Data Annex'!$K$1:$AN$4997,MATCH(M$46&\"|\"&$B62,'Data Annex'!$K$1:$K$4997,0),MATCH(M$47,'Data Annex'!$K$1:$AN$1,0)),\"\")","v":0.47584503890000002},{"$f":"IFERROR(INDEX('Data Annex'!$K$1:$AN$4997,MATCH(N$46&\"|\"&$B62,'Data Annex'!$K$1:$K$4997,0),MATCH(N$47,'Data Annex'!$K$1:$AN$1,0)),\"\")","v":0.4881119069},{"$f":"IFERROR(INDEX('Data Annex'!$K$1:$AN$4997,MATCH(O$46&\"|\"&$B62,'Data Annex'!$K$1:$K$4997,0),MATCH(O$47,'Data Annex'!$K$1:$AN$1,0)),\"\")","v":0.5063295001},null,"FI",{"$f":"IFERROR(INDEX('Data Annex'!$K$1:$AN$4997,MATCH(R$46&\"|\"&$B62,'Data Annex'!$K$1:$K$4997,0),MATCH(R$47,'Data Annex'!$K$1:$AN$1,0)),\"\")","v":103.77655043999999},{"$f":"IFERROR(INDEX('Data Annex'!$K$1:$AN$4997,MATCH(S$46&\"|\"&$B62,'Data Annex'!$K$1:$K$4997,0),MATCH(S$47,'Data Annex'!$K$1:$AN$1,0)),\"\")","v":115.21078983},{"$f":"IFERROR(INDEX('Data Annex'!$K$1:$AN$4997,MATCH(T$46&\"|\"&$B62,'Data Annex'!$K$1:$K$4997,0),MATCH(T$47,'Data Annex'!$K$1:$AN$1,0)),\"\")","v":120.46161042},{"$f":"IFERROR(INDEX('Data Annex'!$K$1:$AN$4997,MATCH(U$46&\"|\"&$B62,'Data Annex'!$K$1:$K$4997,0),MATCH(U$47,'Data Annex'!$K$1:$AN$1,0)),\"\")","v":120.60084766999999},{"$f":"IFERROR(INDEX('Data Annex'!$K$1:$AN$4997,MATCH(V$46&\"|\"&$B62,'Data Annex'!$K$1:$K$4997,0),MATCH(V$47,'Data Annex'!$K$1:$AN$1,0)),\"\")","v":0.3061493676},{"$f":"IFERROR(INDEX('Data Annex'!$K$1:$AN$4997,MATCH(W$46&\"|\"&$B62,'Data Annex'!$K$1:$K$4997,0),MATCH(W$47,'Data Annex'!$K$1:$AN$1,0)),\"\")","v":0.30170830990000003},{"$f":"IFERROR(INDEX('Data Annex'!$K$1:$AN$4997,MATCH(X$46&\"|\"&$B62,'Data Annex'!$K$1:$K$4997,0),MATCH(X$47,'Data Annex'!$K$1:$AN$1,0)),\"\")","v":0.31806035910000002},{"$f":"IFERROR(INDEX('Data Annex'!$K$1:$AN$4997,MATCH(Y$46&\"|\"&$B62,'Data Annex'!$K$1:$K$4997,0),MATCH(Y$47,'Data Annex'!$K$1:$AN$1,0)),\"\")","v":0.30992739079999998},{"$f":"IFERROR(INDEX('Data Annex'!$K$1:$AN$4997,MATCH(Z$46&\"|\"&$B62,'Data Annex'!$K$1:$K$4997,0),MATCH(Z$47,'Data Annex'!$K$1:$AN$1,0)),\"\")","v":0.54876827930000005},{"$f":"IFERROR(INDEX('Data Annex'!$K$1:$AN$4997,MATCH(AA$46&\"|\"&$B62,'Data Annex'!$K$1:$K$4997,0),MATCH(AA$47,'Data Annex'!$K$1:$AN$1,0)),\"\")","v":0.55919437530000005},{"$f":"IFERROR(INDEX('Data Annex'!$K$1:$AN$4997,MATCH(AB$46&\"|\"&$B62,'Data Annex'!$K$1:$K$4997,0),MATCH(AB$47,'Data Annex'!$K$1:$AN$1,0)),\"\")","v":0.55121910789999995},{"$f":"IFERROR(INDEX('Data Annex'!$K$1:$AN$4997,MATCH(AC$46&\"|\"&$B62,'Data Annex'!$K$1:$K$4997,0),MATCH(AC$47,'Data Annex'!$K$1:$AN$1,0)),\"\")","v":0.56597256119999995}]
[11,"FR",null,"FR",null,{"$f":"IFERROR(INDEX('Data Annex'!$K$1:$AN$4997,MATCH(F$46&\"|\"&$B63,'Data Annex'!$K$1:$K$4997,0),MATCH(F$47,'Data Annex'!$K$1:$AN$1,0)),\"\")","v":7844.5663350000004},{"$f":"IFERROR(INDEX('Data Annex'!$K$1:$AN$4997,MATCH(G$46&\"|\"&$B63,'Data Annex'!$K$1:$K$4997,0),MATCH(G$47,'Data Annex'!$K$1:$AN$1,0)),\"\")","v":7951.2182088999998},{"$f":"IFERROR(INDEX('Data Annex'!$K$1:$AN$4997,MATCH(H$46&\"|\"&$B63,'Data Annex'!$K$1:$K$4997,0),MATCH(H$47,'Data Annex'!$K$1:$AN$1,0)),\"\")","v":7965.9968075999996},{"$f":"IFERROR(INDEX('Data Annex'!$K$1:$AN$4997,MATCH(I$46&\"|\"&$B63,'Data Annex'!$K$1:$K$4997,0),MATCH(I$47,'Data Annex'!$K$1:$AN$1,0)),\"\")","v":7800.1716929000004},null,"FR",{"$f":"IFERROR(INDEX('Data Annex'!$K$1:$AN$4997,MATCH(L$46&\"|\"&$B63,'Data Annex'!$K$1:$K$4997,0),MATCH(L$47,'Data Annex'!$K$1:$AN$1,0)),\"\")","v":0.2381373544},{"$f":"IFERROR(INDEX('Data Annex'!$K$1:$AN$4997,MATCH(M$46&\"|\"&$B63,'Data Annex'!$K$1:$K$4997,0),MATCH(M$47,'Data Annex'!$K$1:$AN$1,0)),\"\")","v":0.2364863076},{"$f":"IFERROR(INDEX('Data Annex'!$K$1:$AN$4997,MATCH(N$46&\"|\"&$B63,'Data Annex'!$K$1:$K$4997,0),MATCH(N$47,'Data Annex'!$K$1:$AN$1,0)),\"\")","v":0.23755585139999999},{"$f":"IFERROR(INDEX('Data Annex'!$K$1:$AN$4997,MATCH(O$46&\"|\"&$B63,'Data Annex'!$K$1:$K$4997,0),MATCH(O$47,'Data Annex'!$K$1:$AN$1,0)),\"\")","v":0.23961423949999999},null,"FR",{"$f":"IFERROR(INDEX('Data Annex'!$K$1:$AN$4997,MATCH(R$46&\"|\"&$B63,'Data Annex'!$K$1:$K$4997,0),MATCH(R$47,'Data Annex'!$K$1:$AN$1,0)),\"\")","v":1115.3374002},{"$f":"IFERROR(INDEX('Data Annex'!$K$1:$AN$4997,MATCH(S$46&\"|\"&$B63,'Data Annex'!$K$1:$K$4997,0),MATCH(S$47,'Data Annex'!$K$1:$AN$1,0)),\"\")","v":1178.1468848},{"$f":"IFERROR(INDEX('Data Annex'!$K$1:$AN$4997,MATCH(T$46&\"|\"&$B63,'Data Annex'!$K$1:$K$4997,0),MATCH(T$47,'Data Annex'!$K$1:$AN$1,0)),\"\")","v":1193.2857234999999},{"$f":"IFERROR(INDEX('Data Annex'!$K$1:$AN$4997,MATCH(U$46&\"|\"&$B63,'Data Annex'!$K$1:$K$4997,0),MATCH(U$47,'Data Annex'!$K$1:$AN$1,0)),\"\")","v":1165.1218008000001},{"$f":"IFERROR(INDEX('Data Annex'!$K$1:$AN$4997,MATCH(V$46&\"|\"&$B63,'Data Annex'!$K$1:$K$4997,0),MATCH(V$47,'Data Annex'!$K$1:$AN$1,0)),\"\")","v":0.19009339610000001},{"$f":"IFERROR(INDEX('Data Annex'!$K$1:$AN$4997,MATCH(W$46&\"|\"&$B63,'Data Annex'!$K$1:$K$4997,0),MATCH(W$47,'Data Annex'!$K$1:$AN$1,0)),\"\")","v":0.17844732520000001},{"$f":"IFERROR(INDEX('Data Annex'!$K$1:$AN$4997,MATCH(X$46&\"|\"&$B63,'Data Annex'!$K$1:$K$4997,0),MATCH(X$47,'Data Annex'!$K$1:$AN$1,0)),\"\")","v":0.17503745879999999},{"$f":"IFERROR(INDEX('Data Annex'!$K$1:$AN$4997,MATCH(Y$46&\"|\"&$B63,'Data Annex'!$K$1:$K$4997,0),MATCH(Y$47,'Data Annex'!$K$1:$AN$1,0)),\"\")","v":0.1750695646},{"$f":"IFERROR(INDEX('Data Annex'!$K$1:$AN$4997,MATCH(Z$46&\"|\"&$B63,'Data Annex'!$K$1:$K$4997,0),MATCH(Z$47,'Data Annex'!$K$1:$AN$1,0)),\"\")","v":0.56777297599999998},{"$f":"IFERROR(INDEX('Data Annex'!$K$1:$AN$4997,MATCH(AA$46&\"|\"&$B63,'Data Annex'!$K$1:$K$4997,0),MATCH(AA$47,'Data Annex'!$K$1:$AN$1,0)),\"\")","v":0.58073935560000001},{"$f":"IFERROR(INDEX('Data Annex'!$K$1:$AN$4997,MATCH(AB$46&\"|\"&$B63,'Data Annex'!$K$1:$K$4997,0),MATCH(AB$47,'Data Annex'!$K$1:$AN$1,0)),\"\")","v":0.59117719739999997},{"$f":"IFERROR(INDEX('Data Annex'!$K$1:$AN$4997,MATCH(AC$46&\"|\"&$B63,'Data Annex'!$K$1:$K$4997,0),MATCH(AC$47,'Data Annex'!$K$1:$AN$1,0)),\"\")","v":0.59035751000000003}]
[13,"GR",null,"GR",null,{"$f":"IFERROR(INDEX('Data Annex'!$K$1:$AN$4997,MATCH(F$46&\"|\"&$B64,'Data Annex'!$K$1:$K$4997,0),MATCH(F$47,'Data Annex'!$K$1:$AN$1,0)),\"\")","v":231.22784590000001},{"$f":"IFERROR(INDEX('Data Annex'!$K$1:$AN$4997,MATCH(G$46&\"|\"&$B64,'Data Annex'!$K$1:$K$4997,0),MATCH(G$47,'Data Annex'!$K$1:$AN$1,0)),\"\")","v":244.00249875},{"$f":"IFERROR(INDEX('Data Annex'!$K$1:$AN$4997,MATCH(H$46&\"|\"&$B64,'Data Annex'!$K$1:$K$4997,0),MATCH(H$47,'Data Annex'!$K$1:$AN$1,0)),\"\")","v":247.96979759000001},{"$f":"IFERROR(INDEX('Data Annex'!$K$1:$AN$4997,MATCH(I$46&\"|\"&$B64,'Data Annex'!$K$1:$K$4997,0),MATCH(I$47,'Data Annex'!$K$1:$AN$1,0)),\"\")","v":257.21602461999998},null,"GR",{"$f":"IFERROR(INDEX('Data Annex'!$K$1:$AN$4997,MATCH(L$46&\"|\"&$B64,'Data Annex'!$K$1:$K$4997,0),MATCH(L$47,'Data Annex'!$K$1:$AN$1,0)),\"\")","v":0.56836263389999997},{"$f":"IFERROR(INDEX('Data Annex'!$K$1:$AN$4997,MATCH(M$46&\"|\"&$B64,'Data Annex'!$K$1:$K$4997,0),MATCH(M$47,'Data Annex'!$K$1:$AN$1,0)),\"\")","v":0.55589160650000002},{"$f":"IFERROR(INDEX('Data Annex'!$K$1:$AN$4997,MATCH(N$46&\"|\"&$B64,'Data Annex'!$K$1:$K$4997,0),MATCH(N$47,'Data Annex'!$K$1:$AN$1,0)),\"\")","v":0.55840821149999997},{"$f":"IFERROR(INDEX('Data Annex'!$K$1:$AN$4997,MATCH(O$46&\"|\"&$B64,'Data Annex'!$K$1:$K$4997,0),MATCH(O$47,'Data Annex'!$K$1:$AN$1,0)),\"\")","v":0.34804633239999999},null,"GR",{"$f":"IFERROR(INDEX('Data Annex'!$K$1:$AN$4997,MATCH(R$46&\"|\"&$B64,'Data Annex'!$K$1:$K$4997,0),MATCH(R$47,'Data Annex'!$K$1:$AN$1,0)),\"\")","v":19.215260677},{"$f":"IFERROR(INDEX('Data Annex'!$K$1:$AN$4997,MATCH(S$46&\"|\"&$B64,'Data Annex'!$K$1:$K$4997,0),MATCH(S$47,'Data Annex'!$K$1:$AN$1,0)),\"\")","v":20.859086029},{"$f":"IFERROR(INDEX('Data Annex'!$K$1:$AN$4997,MATCH(T$46&\"|\"&$B64,'Data Annex'!$K$1:$K$4997,0),MATCH(T$47,'Data Annex'!$K$1:$AN$1,0)),\"\")","v":21.608022107},{"$f":"IFERROR(INDEX('Data Annex'!$K$1:$AN$4997,MATCH(U$46&\"|\"&$B64,'Data Annex'!$K$1:$K$4997,0),MATCH(U$47,'Data Annex'!$K$1:$AN$1,0)),\"\")","v":22.551746565999998},{"$f":"IFERROR(INDEX('Data Annex'!$K$1:$AN$4997,MATCH(V$46&\"|\"&$B64,'Data Annex'!$K$1:$K$4997,0),MATCH(V$47,'Data Annex'!$K$1:$AN$1,0)),\"\")","v":0.3220450762},{"$f":"IFERROR(INDEX('Data Annex'!$K$1:$AN$4997,MATCH(W$46&\"|\"&$B64,'Data Annex'!$K$1:$K$4997,0),MATCH(W$47,'Data Annex'!$K$1:$AN$1,0)),\"\")","v":0.30151796889999999},{"$f":"IFERROR(INDEX('Data Annex'!$K$1:$AN$4997,MATCH(X$46&\"|\"&$B64,'Data Annex'!$K$1:$K$4997,0),MATCH(X$47,'Data Annex'!$K$1:$AN$1,0)),\"\")","v":0.29099569240000001},{"$f":"IFERROR(INDEX('Data Annex'!$K$1:$AN$4997,MATCH(Y$46&\"|\"&$B64,'Data Annex'!$K$1:$K$4997,0),MATCH(Y$47,'Data Annex'!$K$1:$AN$1,0)),\"\")","v":0.28337713170000001},{"$f":"IFERROR(INDEX('Data Annex'!$K$1:$AN$4997,MATCH(Z$46&\"|\"&$B64,'Data Annex'!$K$1:$K$4997,0),MATCH(Z$47,'Data Annex'!$K$1:$AN$1,0)),\"\")","v":0.65566392699999998},{"$f":"IFERROR(INDEX('Data Annex'!$K$1:$AN$4997,MATCH(AA$46&\"|\"&$B64,'Data Annex'!$K$1:$K$4997,0),MATCH(AA$47,'Data Annex'!$K$1:$AN$1,0)),\"\")","v":0.68410075059999997},{"$f":"IFERROR(INDEX('Data Annex'!$K$1:$AN$4997,MATCH(AB$46&\"|\"&$B64,'Data Annex'!$K$1:$K$4997,0),MATCH(AB$47,'Data Annex'!$K$1:$AN$1,0)),\"\")","v":0.69524755159999996},{"$f":"IFERROR(INDEX('Data Annex'!$K$1:$AN$4997,MATCH(AC$46&\"|\"&$B64,'Data Annex'!$K$1:$K$4997,0),MATCH(AC$47,'Data Annex'!$K$1:$AN$1,0)),\"\")","v":0.69846840040000002}]
[14,"HR",null,"HR",null,{"$f":"IFERROR(INDEX('Data Annex'!$K$1:$AN$4997,MATCH(F$46&\"|\"&$B65,'Data Annex'!$K$1:$K$4997,0),MATCH(F$47,'Data Annex'!$K$1:$AN$1,0)),\"\")","v":39.337474878999998},{"$f":"IFERROR(INDEX('Data Annex'!$K$1:$AN$4997,MATCH(G$46&\"|\"&$B65,'Data Annex'!$K$1:$K$4997,0),MATCH(G$47,'Data Annex'!$K$1:$AN$1,0)),\"\")","v":40.399057149000001},{"$f":"IFERROR(INDEX('Data Annex'!$K$1:$AN$4997,MATCH(H$46&\"|\"&$B65,'Data Annex'!$K$1:$K$4997,0),MATCH(H$47,'Data Annex'!$K$1:$AN$1,0)),\"\")","v":40.313212827000001},{"$f":"IFERROR(INDEX('Data Annex'!$K$1:$AN$4997,MATCH(I$46&\"|\"&$B65,'Data Annex'!$K$1:$K$4997,0),MATCH(I$47,'Data Annex'!$K$1:$AN$1,0)),\"\")","v":41.300418086000001},null,"HR",{"$f":"IFERROR(INDEX('Data Annex'!$K$1:$AN$4997,MATCH(L$46&\"|\"&$B65,'Data Annex'!$K$1:$K$4997,0),MATCH(L$47,'Data Annex'!$K$1:$AN$1,0)),\"\")","v":0},{"$f":"IFERROR(INDEX('Data Annex'!$K$1:$AN$4997,MATCH(M$46&\"|\"&$B65,'Data Annex'!$K$1:$K$4997,0),MATCH(M$47,'Data Annex'!$K$1:$AN$1,0)),\"\")","v":0},{"$f":"IFERROR(INDEX('Data Annex'!$K$1:$AN$4997,MATCH(N$46&\"|\"&$B65,'Data Annex'!$K$1:$K$4997,0),MATCH(N$47,'Data Annex'!$K$1:$AN$1,0)),\"\")","v":0},{"$f":"IFERROR(INDEX('Data Annex'!$K$1:$AN$4997,MATCH(O$46&\"|\"&$B65,'Data Annex'!$K$1:$K$4997,0),MATCH(O$47,'Data Annex'!$K$1:$AN$1,0)),\"\")","v":0},null,"HR",{"$f":"IFERROR(INDEX('Data Annex'!$K$1:$AN$4997,MATCH(R$46&\"|\"&$B65,'Data Annex'!$K$1:$K$4997,0),MATCH(R$47,'Data Annex'!$K$1:$AN$1,0)),\"\")","v":5.3775246873000002},{"$f":"IFERROR(INDEX('Data Annex'!$K$1:$AN$4997,MATCH(S$46&\"|\"&$B65,'Data Annex'!$K$1:$K$4997,0),MATCH(S$47,'Data Annex'!$K$1:$AN$1,0)),\"\")","v":5.7679614815000004},{"$f":"IFERROR(INDEX('Data Annex'!$K$1:$AN$4997,MATCH(T$46&\"|\"&$B65,'Data Annex'!$K$1:$K$4997,0),MATCH(T$47,'Data Annex'!$K$1:$AN$1,0)),\"\")","v":5.7013529875},{"$f":"IFERROR(INDEX('Data Annex'!$K$1:$AN$4997,MATCH(U$46&\"|\"&$B65,'Data Annex'!$K$1:$K$4997,0),MATCH(U$47,'Data Annex'!$K$1:$AN$1,0)),\"\")","v":5.5434979095000001},{"$f":"IFERROR(INDEX('Data Annex'!$K$1:$AN$4997,MATCH(V$46&\"|\"&$B65,'Data Annex'!$K$1:$K$4997,0),MATCH(V$47,'Data Annex'!$K$1:$AN$1,0)),\"\")","v":0.55351250149999998},{"$f":"IFERROR(INDEX('Data Annex'!$K$1:$AN$4997,MATCH(W$46&\"|\"&$B65,'Data Annex'!$K$1:$K$4997,0),MATCH(W$47,'Data Annex'!$K$1:$AN$1,0)),\"\")","v":0.5275120808},{"$f":"IFERROR(INDEX('Data Annex'!$K$1:$AN$4997,MATCH(X$46&\"|\"&$B65,'Data Annex'!$K$1:$K$4997,0),MATCH(X$47,'Data Annex'!$K$1:$AN$1,0)),\"\")","v":0.52373317870000002},{"$f":"IFERROR(INDEX('Data Annex'!$K$1:$AN$4997,MATCH(Y$46&\"|\"&$B65,'Data Annex'!$K$1:$K$4997,0),MATCH(Y$47,'Data Annex'!$K$1:$AN$1,0)),\"\")","v":0.55242607539999999},{"$f":"IFERROR(INDEX('Data Annex'!$K$1:$AN$4997,MATCH(Z$46&\"|\"&$B65,'Data Annex'!$K$1:$K$4997,0),MATCH(Z$47,'Data Annex'!$K$1:$AN$1,0)),\"\")","v":0.3935812219},{"$f":"IFERROR(INDEX('Data Annex'!$K$1:$AN$4997,MATCH(AA$46&\"|\"&$B65,'Data Annex'!$K$1:$K$4997,0),MATCH(AA$47,'Data Annex'!$K$1:$AN$1,0)),\"\")","v":0.39707417610000001},{"$f":"IFERROR(INDEX('Data Annex'!$K$1:$AN$4997,MATCH(AB$46&\"|\"&$B65,'Data Annex'!$K$1:$K$4997,0),MATCH(AB$47,'Data Annex'!$K$1:$AN$1,0)),\"\")","v":0.41289599160000001},{"$f":"IFERROR(INDEX('Data Annex'!$K$1:$AN$4997,MATCH(AC$46&\"|\"&$B65,'Data Annex'!$K$1:$K$4997,0),MATCH(AC$47,'Data Annex'!$K$1:$AN$1,0)),\"\")","v":0.39348869829999999}]
[15,"HU",null,"HU",null,{"$f":"IFERROR(INDEX('Data Annex'!$K$1:$AN$4997,MATCH(F$46&\"|\"&$B66,'Data Annex'!$K$1:$K$4997,0),MATCH(F$47,'Data Annex'!$K$1:$AN$1,0)),\"\")","v":72.014505025999995},{"$f":"IFERROR(INDEX('Data Annex'!$K$1:$AN$4997,MATCH(G$46&\"|\"&$B66,'Data Annex'!$K$1:$K$4997,0),MATCH(G$47,'Data Annex'!$K$1:$AN$1,0)),\"\")","v":73.470818886000004},{"$f":"IFERROR(INDEX('Data Annex'!$K$1:$AN$4997,MATCH(H$46&\"|\"&$B66,'Data Annex'!$K$1:$K$4997,0),MATCH(H$47,'Data Annex'!$K$1:$AN$1,0)),\"\")","v":74.667568970999994},{"$f":"IFERROR(INDEX('Data Annex'!$K$1:$AN$4997,MATCH(I$46&\"|\"&$B66,'Data Annex'!$K$1:$K$4997,0),MATCH(I$47,'Data Annex'!$K$1:$AN$1,0)),\"\")","v":78.292675556999995},null,"HU",{"$f":"IFERROR(INDEX('Data Annex'!$K$1:$AN$4997,MATCH(L$46&\"|\"&$B66,'Data Annex'!$K$1:$K$4997,0),MATCH(L$47,'Data Annex'!$K$1:$AN$1,0)),\"\")","v":0.53640101330000001},{"$f":"IFERROR(INDEX('Data Annex'!$K$1:$AN$4997,MATCH(M$46&\"|\"&$B66,'Data Annex'!$K$1:$K$4997,0),MATCH(M$47,'Data Annex'!$K$1:$AN$1,0)),\"\")","v":0.54771581250000001},{"$f":"IFERROR(INDEX('Data Annex'!$K$1:$AN$4997,MATCH(N$46&\"|\"&$B66,'Data Annex'!$K$1:$K$4997,0),MATCH(N$47,'Data Annex'!$K$1:$AN$1,0)),\"\")","v":0.5701225687},{"$f":"IFERROR(INDEX('Data Annex'!$K$1:$AN$4997,MATCH(O$46&\"|\"&$B66,'Data Annex'!$K$1:$K$4997,0),MATCH(O$47,'Data Annex'!$K$1:$AN$1,0)),\"\")","v":0.59392987080000004},null,"HU",{"$f":"IFERROR(INDEX('Data Annex'!$K$1:$AN$4997,MATCH(R$46&\"|\"&$B66,'Data Annex'!$K$1:$K$4997,0),MATCH(R$47,'Data Annex'!$K$1:$AN$1,0)),\"\")","v":12.222034323999999},{"$f":"IFERROR(INDEX('Data Annex'!$K$1:$AN$4997,MATCH(S$46&\"|\"&$B66,'Data Annex'!$K$1:$K$4997,0),MATCH(S$47,'Data Annex'!$K$1:$AN$1,0)),\"\")","v":13.257224192000001},{"$f":"IFERROR(INDEX('Data Annex'!$K$1:$AN$4997,MATCH(T$46&\"|\"&$B66,'Data Annex'!$K$1:$K$4997,0),MATCH(T$47,'Data Annex'!$K$1:$AN$1,0)),\"\")","v":13.412974220000001},{"$f":"IFERROR(INDEX('Data Annex'!$K$1:$AN$4997,MATCH(U$46&\"|\"&$B66,'Data Annex'!$K$1:$K$4997,0),MATCH(U$47,'Data Annex'!$K$1:$AN$1,0)),\"\")","v":12.682475328000001},{"$f":"IFERROR(INDEX('Data Annex'!$K$1:$AN$4997,MATCH(V$46&\"|\"&$B66,'Data Annex'!$K$1:$K$4997,0),MATCH(V$47,'Data Annex'!$K$1:$AN$1,0)),\"\")","v":0.20560322010000001},{"$f":"IFERROR(INDEX('Data Annex'!$K$1:$AN$4997,MATCH(W$46&\"|\"&$B66,'Data Annex'!$K$1:$K$4997,0),MATCH(W$47,'Data Annex'!$K$1:$AN$1,0)),\"\")","v":0.206279084},{"$f":"IFERROR(INDEX('Data Annex'!$K$1:$AN$4997,MATCH(X$46&\"|\"&$B66,'Data Annex'!$K$1:$K$4997,0),MATCH(X$47,'Data Annex'!$K$1:$AN$1,0)),\"\")","v":0.1784403685},{"$f":"IFERROR(INDEX('Data Annex'!$K$1:$AN$4997,MATCH(Y$46&\"|\"&$B66,'Data Annex'!$K$1:$K$4997,0),MATCH(Y$47,'Data Annex'!$K$1:$AN$1,0)),\"\")","v":0.18884362330000001},{"$f":"IFERROR(INDEX('Data Annex'!$K$1:$AN$4997,MATCH(Z$46&\"|\"&$B66,'Data Annex'!$K$1:$K$4997,0),MATCH(Z$47,'Data Annex'!$K$1:$AN$1,0)),\"\")","v":0.6246302923},{"$f":"IFERROR(INDEX('Data Annex'!$K$1:$AN$4997,MATCH(AA$46&\"|\"&$B66,'Data Annex'!$K$1:$K$4997,0),MATCH(AA$47,'Data Annex'!$K$1:$AN$1,0)),\"\")","v":0.63610529729999998},{"$f":"IFERROR(INDEX('Data Annex'!$K$1:$AN$4997,MATCH(AB$46&\"|\"&$B66,'Data Annex'!$K$1:$K$4997,0),MATCH(AB$47,'Data Annex'!$K$1:$AN$1,0)),\"\")","v":0.64759891579999995},{"$f":"IFERROR(INDEX('Data Annex'!$K$1:$AN$4997,MATCH(AC$46&\"|\"&$B66,'Data Annex'!$K$1:$K$4997,0),MATCH(AC$47,'Data Annex'!$K$1:$AN$1,0)),\"\")","v":0.63470620700000002}]
[16,"IE",null,"IE",null,{"$f":"IFERROR(INDEX('Data Annex'!$K$1:$AN$4997,MATCH(F$46&\"|\"&$B67,'Data Annex'!$K$1:$K$4997,0),MATCH(F$47,'Data Annex'!$K$1:$AN$1,0)),\"\")","v":241.44141733999999},{"$f":"IFERROR(INDEX('Data Annex'!$K$1:$AN$4997,MATCH(G$46&\"|\"&$B67,'Data Annex'!$K$1:$K$4997,0),MATCH(G$47,'Data Annex'!$K$1:$AN$1,0)),\"\")","v":242.88472587999999},{"$f":"IFERROR(INDEX('Data Annex'!$K$1:$AN$4997,MATCH(H$46&\"|\"&$B67,'Data Annex'!$K$1:$K$4997,0),MATCH(H$47,'Data Annex'!$K$1:$AN$1,0)),\"\")","v":247.09185711999999},{"$f":"IFERROR(INDEX('Data Annex'!$K$1:$AN$4997,MATCH(I$46&\"|\"&$B67,'Data Annex'!$K$1:$K$4997,0),MATCH(I$47,'Data Annex'!$K$1:$AN$1,0)),\"\")","v":253.72308178},null,"IE",{"$f":"IFERROR(INDEX('Data Annex'!$K$1:$AN$4997,MATCH(L$46&\"|\"&$B67,'Data Annex'!$K$1:$K$4997,0),MATCH(L$47,'Data Annex'!$K$1:$AN$1,0)),\"\")","v":0.41510068210000001},{"$f":"IFERROR(INDEX('Data Annex'!$K$1:$AN$4997,MATCH(M$46&\"|\"&$B67,'Data Annex'!$K$1:$K$4997,0),MATCH(M$47,'Data Annex'!$K$1:$AN$1,0)),\"\")","v":0.42541101520000002},{"$f":"IFERROR(INDEX('Data Annex'!$K$1:$AN$4997,MATCH(N$46&\"|\"&$B67,'Data Annex'!$K$1:$K$4997,0),MATCH(N$47,'Data Annex'!$K$1:$AN$1,0)),\"\")","v":0.3565218054},{"$f":"IFERROR(INDEX('Data Annex'!$K$1:$AN$4997,MATCH(O$46&\"|\"&$B67,'Data Annex'!$K$1:$K$4997,0),MATCH(O$47,'Data Annex'!$K$1:$AN$1,0)),\"\")","v":0.3545577405},null,"IE",{"$f":"IFERROR(INDEX('Data Annex'!$K$1:$AN$4997,MATCH(R$46&\"|\"&$B67,'Data Annex'!$K$1:$K$4997,0),MATCH(R$47,'Data Annex'!$K$1:$AN$1,0)),\"\")","v":44.508480016},{"$f":"IFERROR(INDEX('Data Annex'!$K$1:$AN$4997,MATCH(S$46&\"|\"&$B67,'Data Annex'!$K$1:$K$4997,0),MATCH(S$47,'Data Annex'!$K$1:$AN$1,0)),\"\")","v":47.730234944999999},{"$f":"IFERROR(INDEX('Data Annex'!$K$1:$AN$4997,MATCH(T$46&\"|\"&$B67,'Data Annex'!$K$1:$K$4997,0),MATCH(T$47,'Data Annex'!$K$1:$AN$1,0)),\"\")","v":50.003834974},{"$f":"IFERROR(INDEX('Data Annex'!$K$1:$AN$4997,MATCH(U$46&\"|\"&$B67,'Data Annex'!$K$1:$K$4997,0),MATCH(U$47,'Data Annex'!$K$1:$AN$1,0)),\"\")","v":51.355558406999997},{"$f":"IFERROR(INDEX('Data Annex'!$K$1:$AN$4997,MATCH(V$46&\"|\"&$B67,'Data Annex'!$K$1:$K$4997,0),MATCH(V$47,'Data Annex'!$K$1:$AN$1,0)),\"\")","v":0.19133795940000001},{"$f":"IFERROR(INDEX('Data Annex'!$K$1:$AN$4997,MATCH(W$46&\"|\"&$B67,'Data Annex'!$K$1:$K$4997,0),MATCH(W$47,'Data Annex'!$K$1:$AN$1,0)),\"\")","v":0.1720701593},{"$f":"IFERROR(INDEX('Data Annex'!$K$1:$AN$4997,MATCH(X$46&\"|\"&$B67,'Data Annex'!$K$1:$K$4997,0),MATCH(X$47,'Data Annex'!$K$1:$AN$1,0)),\"\")","v":0.17742325040000001},{"$f":"IFERROR(INDEX('Data Annex'!$K$1:$AN$4997,MATCH(Y$46&\"|\"&$B67,'Data Annex'!$K$1:$K$4997,0),MATCH(Y$47,'Data Annex'!$K$1:$AN$1,0)),\"\")","v":0.16920677349999999},{"$f":"IFERROR(INDEX('Data Annex'!$K$1:$AN$4997,MATCH(Z$46&\"|\"&$B67,'Data Annex'!$K$1:$K$4997,0),MATCH(Z$47,'Data Annex'!$K$1:$AN$1,0)),\"\")","v":0.7273700837},{"$f":"IFERROR(INDEX('Data Annex'!$K$1:$AN$4997,MATCH(AA$46&\"|\"&$B67,'Data Annex'!$K$1:$K$4997,0),MATCH(AA$47,'Data Annex'!$K$1:$AN$1,0)),\"\")","v":0.75762573649999998},{"$f":"IFERROR(INDEX('Data Annex'!$K$1:$AN$4997,MATCH(AB$46&\"|\"&$B67,'Data Annex'!$K$1:$K$4997,0),MATCH(AB$47,'Data Annex'!$K$1:$AN$1,0)),\"\")","v":0.75480947310000002},{"$f":"IFERROR(INDEX('Data Annex'!$K$1:$AN$4997,MATCH(AC$46&\"|\"&$B67,'Data Annex'!$K$1:$K$4997,0),MATCH(AC$47,'Data Annex'!$K$1:$AN$1,0)),\"\")","v":0.76392526890000001}]
[17,"IS",null,"IS",null,{"$f":"IFERROR(INDEX('Data Annex'!$K$1:$AN$4997,MATCH(F$46&\"|\"&$B68,'Data Annex'!$K$1:$K$4997,0),MATCH(F$47,'Data Annex'!$K$1:$AN$1,0)),\"\")","v":21.588502146},{"$f":"IFERROR(INDEX('Data Annex'!$K$1:$AN$4997,MATCH(G$46&\"|\"&$B68,'Data Annex'!$K$1:$K$4997,0),MATCH(G$47,'Data Annex'!$K$1:$AN$1,0)),\"\")","v":21.709265156000001},{"$f":"IFERROR(INDEX('Data Annex'!$K$1:$AN$4997,MATCH(H$46&\"|\"&$B68,'Data Annex'!$K$1:$K$4997,0),MATCH(H$47,'Data Annex'!$K$1:$AN$1,0)),\"\")","v":21.897449587000001},{"$f":"IFERROR(INDEX('Data Annex'!$K$1:$AN$4997,MATCH(I$46&\"|\"&$B68,'Data Annex'!$K$1:$K$4997,0),MATCH(I$47,'Data Annex'!$K$1:$AN$1,0)),\"\")","v":22.029289239000001},null,"IS",{"$f":"IFERROR(INDEX('Data Annex'!$K$1:$AN$4997,MATCH(L$46&\"|\"&$B68,'Data Annex'!$K$1:$K$4997,0),MATCH(L$47,'Data Annex'!$K$1:$AN$1,0)),\"\")","v":0.64375682889999997},{"$f":"IFERROR(INDEX('Data Annex'!$K$1:$AN$4997,MATCH(M$46&\"|\"&$B68,'Data Annex'!$K$1:$K$4997,0),MATCH(M$47,'Data Annex'!$K$1:$AN$1,0)),\"\")","v":0.64726379690000002},{"$f":"IFERROR(INDEX('Data Annex'!$K$1:$AN$4997,MATCH(N$46&\"|\"&$B68,'Data Annex'!$K$1:$K$4997,0),MATCH(N$47,'Data Annex'!$K$1:$AN$1,0)),\"\")","v":0.66356720709999995},{"$f":"IFERROR(INDEX('Data Annex'!$K$1:$AN$4997,MATCH(O$46&\"|\"&$B68,'Data Annex'!$K$1:$K$4997,0),MATCH(O$47,'Data Annex'!$K$1:$AN$1,0)),\"\")","v":0.64344564950000005},null,"IS",{"$f":"IFERROR(INDEX('Data Annex'!$K$1:$AN$4997,MATCH(R$46&\"|\"&$B68,'Data Annex'!$K$1:$K$4997,0),MATCH(R$47,'Data Annex'!$K$1:$AN$1,0)),\"\")","v":1.6321727994999999},{"$f":"IFERROR(INDEX('Data Annex'!$K$1:$AN$4997,MATCH(S$46&\"|\"&$B68,'Data Annex'!$K$1:$K$4997,0),MATCH(S$47,'Data Annex'!$K$1:$AN$1,0)),\"\")","v":1.7271160058999999},{"$f":"IFERROR(INDEX('Data Annex'!$K$1:$AN$4997,MATCH(T$46&\"|\"&$B68,'Data Annex'!$K$1:$K$4997,0),MATCH(T$47,'Data Annex'!$K$1:$AN$1,0)),\"\")","v":1.8235534165},{"$f":"IFERROR(INDEX('Data Annex'!$K$1:$AN$4997,MATCH(U$46&\"|\"&$B68,'Data Annex'!$K$1:$K$4997,0),MATCH(U$47,'Data Annex'!$K$1:$AN$1,0)),\"\")","v":1.9359225805},{"$f":"IFERROR(INDEX('Data Annex'!$K$1:$AN$4997,MATCH(V$46&\"|\"&$B68,'Data Annex'!$K$1:$K$4997,0),MATCH(V$47,'Data Annex'!$K$1:$AN$1,0)),\"\")","v":0.16469526940000001},{"$f":"IFERROR(INDEX('Data Annex'!$K$1:$AN$4997,MATCH(W$46&\"|\"&$B68,'Data Annex'!$K$1:$K$4997,0),MATCH(W$47,'Data Annex'!$K$1:$AN$1,0)),\"\")","v":0.191617711},{"$f":"IFERROR(INDEX('Data Annex'!$K$1:$AN$4997,MATCH(X$46&\"|\"&$B68,'Data Annex'!$K$1:$K$4997,0),MATCH(X$47,'Data Annex'!$K$1:$AN$1,0)),\"\")","v":0.16374874189999999},{"$f":"IFERROR(INDEX('Data Annex'!$K$1:$AN$4997,MATCH(Y$46&\"|\"&$B68,'Data Annex'!$K$1:$K$4997,0),MATCH(Y$47,'Data Annex'!$K$1:$AN$1,0)),\"\")","v":0.1403824545},{"$f":"IFERROR(INDEX('Data Annex'!$K$1:$AN$4997,MATCH(Z$46&\"|\"&$B68,'Data Annex'!$K$1:$K$4997,0),MATCH(Z$47,'Data Annex'!$K$1:$AN$1,0)),\"\")","v":0.77066253149999997},{"$f":"IFERROR(INDEX('Data Annex'!$K$1:$AN$4997,MATCH(AA$46&\"|\"&$B68,'Data Annex'!$K$1:$K$4997,0),MATCH(AA$47,'Data Annex'!$K$1:$AN$1,0)),\"\")","v":0.7316916242},{"$f":"IFERROR(INDEX('Data Annex'!$K$1:$AN$4997,MATCH(AB$46&\"|\"&$B68,'Data Annex'!$K$1:$K$4997,0),MATCH(AB$47,'Data Annex'!$K$1:$AN$1,0)),\"\")","v":0.75059601580000002},{"$f":"IFERROR(INDEX('Data Annex'!$K$1:$AN$4997,MATCH(AC$46&\"|\"&$B68,'Data Annex'!$K$1:$K$4997,0),MATCH(AC$47,'Data Annex'!$K$1:$AN$1,0)),\"\")","v":0.79161039379999998}]
[18,"IT",null,"IT",null,{"$f":"IFERROR(INDEX('Data Annex'!$K$1:$AN$4997,MATCH(F$46&\"|\"&$B69,'Data Annex'!$K$1:$K$4997,0),MATCH(F$47,'Data Annex'!$K$1:$AN$1,0)),\"\")","v":2280.3974956000002},{"$f":"IFERROR(INDEX('Data Annex'!$K$1:$AN$4997,MATCH(G$46&\"|\"&$B69,'Data Annex'!$K$1:$K$4997,0),MATCH(G$47,'Data Annex'!$K$1:$AN$1,0)),\"\")","v":2357.5622322999998},{"$f":"IFERROR(INDEX('Data Annex'!$K$1:$AN$4997,MATCH(H$46&\"|\"&$B69,'Data Annex'!$K$1:$K$4997,0),MATCH(H$47,'Data Annex'!$K$1:$AN$1,0)),\"\")","v":2394.5070827999998},{"$f":"IFERROR(INDEX('Data Annex'!$K$1:$AN$4997,MATCH(I$46&\"|\"&$B69,'Data Annex'!$K$1:$K$4997,0),MATCH(I$47,'Data Annex'!$K$1:$AN$1,0)),\"\")","v":2439.1023031},null,"IT",{"$f":"IFERROR(INDEX('Data Annex'!$K$1:$AN$4997,MATCH(L$46&\"|\"&$B69,'Data Annex'!$K$1:$K$4997,0),MATCH(L$47,'Data Annex'!$K$1:$AN$1,0)),\"\")","v":0.31507191890000003},{"$f":"IFERROR(INDEX('Data Annex'!$K$1:$AN$4997,MATCH(M$46&\"|\"&$B69,'Data Annex'!$K$1:$K$4997,0),MATCH(M$47,'Data Annex'!$K$1:$AN$1,0)),\"\")","v":0.31565413549999999},{"$f":"IFERROR(INDEX('Data Annex'!$K$1:$AN$4997,MATCH(N$46&\"|\"&$B69,'Data Annex'!$K$1:$K$4997,0),MATCH(N$47,'Data Annex'!$K$1:$AN$1,0)),\"\")","v":0.31571370059999998},{"$f":"IFERROR(INDEX('Data Annex'!$K$1:$AN$4997,MATCH(O$46&\"|\"&$B69,'Data Annex'!$K$1:$K$4997,0),MATCH(O$47,'Data Annex'!$K$1:$AN$1,0)),\"\")","v":0.30325074270000002},null,"IT",{"$f":"IFERROR(INDEX('Data Annex'!$K$1:$AN$4997,MATCH(R$46&\"|\"&$B69,'Data Annex'!$K$1:$K$4997,0),MATCH(R$47,'Data Annex'!$K$1:$AN$1,0)),\"\")","v":571.58447179999996},{"$f":"IFERROR(INDEX('Data Annex'!$K$1:$AN$4997,MATCH(S$46&\"|\"&$B69,'Data Annex'!$K$1:$K$4997,0),MATCH(S$47,'Data Annex'!$K$1:$AN$1,0)),\"\")","v":616.57407994000005},{"$f":"IFERROR(INDEX('Data Annex'!$K$1:$AN$4997,MATCH(T$46&\"|\"&$B69,'Data Annex'!$K$1:$K$4997,0),MATCH(T$47,'Data Annex'!$K$1:$AN$1,0)),\"\")","v":599.68847106999999},{"$f":"IFERROR(INDEX('Data Annex'!$K$1:$AN$4997,MATCH(U$46&\"|\"&$B69,'Data Annex'!$K$1:$K$4997,0),MATCH(U$47,'Data Annex'!$K$1:$AN$1,0)),\"\")","v":597.29156476000003},{"$f":"IFERROR(INDEX('Data Annex'!$K$1:$AN$4997,MATCH(V$46&\"|\"&$B69,'Data Annex'!$K$1:$K$4997,0),MATCH(V$47,'Data Annex'!$K$1:$AN$1,0)),\"\")","v":8.3467243699999999E-2},{"$f":"IFERROR(INDEX('Data Annex'!$K$1:$AN$4997,MATCH(W$46&\"|\"&$B69,'Data Annex'!$K$1:$K$4997,0),MATCH(W$47,'Data Annex'!$K$1:$AN$1,0)),\"\")","v":8.0094089300000004E-2},{"$f":"IFERROR(INDEX('Data Annex'!$K$1:$AN$4997,MATCH(X$46&\"|\"&$B69,'Data Annex'!$K$1:$K$4997,0),MATCH(X$47,'Data Annex'!$K$1:$AN$1,0)),\"\")","v":8.2488737100000001E-2},{"$f":"IFERROR(INDEX('Data Annex'!$K$1:$AN$4997,MATCH(Y$46&\"|\"&$B69,'Data Annex'!$K$1:$K$4997,0),MATCH(Y$47,'Data Annex'!$K$1:$AN$1,0)),\"\")","v":8.2347489800000007E-2},{"$f":"IFERROR(INDEX('Data Annex'!$K$1:$AN$4997,MATCH(Z$46&\"|\"&$B69,'Data Annex'!$K$1:$K$4997,0),MATCH(Z$47,'Data Annex'!$K$1:$AN$1,0)),\"\")","v":0.63334423620000002},{"$f":"IFERROR(INDEX('Data Annex'!$K$1:$AN$4997,MATCH(AA$46&\"|\"&$B69,'Data Annex'!$K$1:$K$4997,0),MATCH(AA$47,'Data Annex'!$K$1:$AN$1,0)),\"\")","v":0.63824563069999996},{"$f":"IFERROR(INDEX('Data Annex'!$K$1:$AN$4997,MATCH(AB$46&\"|\"&$B69,'Data Annex'!$K$1:$K$4997,0),MATCH(AB$47,'Data Annex'!$K$1:$AN$1,0)),\"\")","v":0.65926862659999996},{"$f":"IFERROR(INDEX('Data Annex'!$K$1:$AN$4997,MATCH(AC$46&\"|\"&$B69,'Data Annex'!$K$1:$K$4997,0),MATCH(AC$47,'Data Annex'!$K$1:$AN$1,0)),\"\")","v":0.67878312249999995}]
[19,"LT",null,"LT",null,{"$f":"IFERROR(INDEX('Data Annex'!$K$1:$AN$4997,MATCH(F$46&\"|\"&$B70,'Data Annex'!$K$1:$K$4997,0),MATCH(F$47,'Data Annex'!$K$1:$AN$1,0)),\"\")","v":20.025832999999999},{"$f":"IFERROR(INDEX('Data Annex'!$K$1:$AN$4997,MATCH(G$46&\"|\"&$B70,'Data Annex'!$K$1:$K$4997,0),MATCH(G$47,'Data Annex'!$K$1:$AN$1,0)),\"\")","v":21.236215999999999},{"$f":"IFERROR(INDEX('Data Annex'!$K$1:$AN$4997,MATCH(H$46&\"|\"&$B70,'Data Annex'!$K$1:$K$4997,0),MATCH(H$47,'Data Annex'!$K$1:$AN$1,0)),\"\")","v":22.925118999999999},{"$f":"IFERROR(INDEX('Data Annex'!$K$1:$AN$4997,MATCH(I$46&\"|\"&$B70,'Data Annex'!$K$1:$K$4997,0),MATCH(I$47,'Data Annex'!$K$1:$AN$1,0)),\"\")","v":25.046088999999998},null,"LT",{"$f":"IFERROR(INDEX('Data Annex'!$K$1:$AN$4997,MATCH(L$46&\"|\"&$B70,'Data Annex'!$K$1:$K$4997,0),MATCH(L$47,'Data Annex'!$K$1:$AN$1,0)),\"\")","v":0},{"$f":"IFERROR(INDEX('Data Annex'!$K$1:$AN$4997,MATCH(M$46&\"|\"&$B70,'Data Annex'!$K$1:$K$4997,0),MATCH(M$47,'Data Annex'!$K$1:$AN$1,0)),\"\")","v":0},{"$f":"IFERROR(INDEX('Data Annex'!$K$1:$AN$4997,MATCH(N$46&\"|\"&$B70,'Data Annex'!$K$1:$K$4997,0),MATCH(N$47,'Data Annex'!$K$1:$AN$1,0)),\"\")","v":0},{"$f":"IFERROR(INDEX('Data Annex'!$K$1:$AN$4997,MATCH(O$46&\"|\"&$B70,'Data Annex'!$K$1:$K$4997,0),MATCH(O$47,'Data Annex'!$K$1:$AN$1,0)),\"\")","v":0},null,"LT",{"$f":"IFERROR(INDEX('Data Annex'!$K$1:$AN$4997,MATCH(R$46&\"|\"&$B70,'Data Annex'!$K$1:$K$4997,0),MATCH(R$47,'Data Annex'!$K$1:$AN$1,0)),\"\")","v":1.9581729999999999},{"$f":"IFERROR(INDEX('Data Annex'!$K$1:$AN$4997,MATCH(S$46&\"|\"&$B70,'Data Annex'!$K$1:$K$4997,0),MATCH(S$47,'Data Annex'!$K$1:$AN$1,0)),\"\")","v":2.276767},{"$f":"IFERROR(INDEX('Data Annex'!$K$1:$AN$4997,MATCH(T$46&\"|\"&$B70,'Data Annex'!$K$1:$K$4997,0),MATCH(T$47,'Data Annex'!$K$1:$AN$1,0)),\"\")","v":2.3237459999999999},{"$f":"IFERROR(INDEX('Data Annex'!$K$1:$AN$4997,MATCH(U$46&\"|\"&$B70,'Data Annex'!$K$1:$K$4997,0),MATCH(U$47,'Data Annex'!$K$1:$AN$1,0)),\"\")","v":2.449335},{"$f":"IFERROR(INDEX('Data Annex'!$K$1:$AN$4997,MATCH(V$46&\"|\"&$B70,'Data Annex'!$K$1:$K$4997,0),MATCH(V$47,'Data Annex'!$K$1:$AN$1,0)),\"\")","v":0.22925247160000001},{"$f":"IFERROR(INDEX('Data Annex'!$K$1:$AN$4997,MATCH(W$46&\"|\"&$B70,'Data Annex'!$K$1:$K$4997,0),MATCH(W$47,'Data Annex'!$K$1:$AN$1,0)),\"\")","v":0.18209197520000001},{"$f":"IFERROR(INDEX('Data Annex'!$K$1:$AN$4997,MATCH(X$46&\"|\"&$B70,'Data Annex'!$K$1:$K$4997,0),MATCH(X$47,'Data Annex'!$K$1:$AN$1,0)),\"\")","v":0.19085691809999999},{"$f":"IFERROR(INDEX('Data Annex'!$K$1:$AN$4997,MATCH(Y$46&\"|\"&$B70,'Data Annex'!$K$1:$K$4997,0),MATCH(Y$47,'Data Annex'!$K$1:$AN$1,0)),\"\")","v":0.18457581340000001},{"$f":"IFERROR(INDEX('Data Annex'!$K$1:$AN$4997,MATCH(Z$46&\"|\"&$B70,'Data Annex'!$K$1:$K$4997,0),MATCH(Z$47,'Data Annex'!$K$1:$AN$1,0)),\"\")","v":0.75354118349999999},{"$f":"IFERROR(INDEX('Data Annex'!$K$1:$AN$4997,MATCH(AA$46&\"|\"&$B70,'Data Annex'!$K$1:$K$4997,0),MATCH(AA$47,'Data Annex'!$K$1:$AN$1,0)),\"\")","v":0.79976255799999996},{"$f":"IFERROR(INDEX('Data Annex'!$K$1:$AN$4997,MATCH(AB$46&\"|\"&$B70,'Data Annex'!$K$1:$K$4997,0),MATCH(AB$47,'Data Annex'!$K$1:$AN$1,0)),\"\")","v":0.78881469829999995},{"$f":"IFERROR(INDEX('Data Annex'!$K$1:$AN$4997,MATCH(AC$46&\"|\"&$B70,'Data Annex'!$K$1:$K$4997,0),MATCH(AC$47,'Data Annex'!$K$1:$AN$1,0)),\"\")","v":0.80045645040000002}]
[20,"LU",null,"LU",null,{"$f":"IFERROR(INDEX('Data Annex'!$K$1:$AN$4997,MATCH(F$46&\"|\"&$B71,'Data Annex'!$K$1:$K$4997,0),MATCH(F$47,'Data Annex'!$K$1:$AN$1,0)),\"\")","v":216.04302913999999},{"$f":"IFERROR(INDEX('Data Annex'!$K$1:$AN$4997,MATCH(G$46&\"|\"&$B71,'Data Annex'!$K$1:$K$4997,0),MATCH(G$47,'Data Annex'!$K$1:$AN$1,0)),\"\")","v":206.24154238},{"$f":"IFERROR(INDEX('Data Annex'!$K$1:$AN$4997,MATCH(H$46&\"|\"&$B71,'Data Annex'!$K$1:$K$4997,0),MATCH(H$47,'Data Annex'!$K$1:$AN$1,0)),\"\")","v":203.27496829},{"$f":"IFERROR(INDEX('Data Annex'!$K$1:$AN$4997,MATCH(I$46&\"|\"&$B71,'Data Annex'!$K$1:$K$4997,0),MATCH(I$47,'Data Annex'!$K$1:$AN$1,0)),\"\")","v":161.48517677000001},null,"LU",{"$f":"IFERROR(INDEX('Data Annex'!$K$1:$AN$4997,MATCH(L$46&\"|\"&$B71,'Data Annex'!$K$1:$K$4997,0),MATCH(L$47,'Data Annex'!$K$1:$AN$1,0)),\"\")","v":0},{"$f":"IFERROR(INDEX('Data Annex'!$K$1:$AN$4997,MATCH(M$46&\"|\"&$B71,'Data Annex'!$K$1:$K$4997,0),MATCH(M$47,'Data Annex'!$K$1:$AN$1,0)),\"\")","v":0},{"$f":"IFERROR(INDEX('Data Annex'!$K$1:$AN$4997,MATCH(N$46&\"|\"&$B71,'Data Annex'!$K$1:$K$4997,0),MATCH(N$47,'Data Annex'!$K$1:$AN$1,0)),\"\")","v":0},{"$f":"IFERROR(INDEX('Data Annex'!$K$1:$AN$4997,MATCH(O$46&\"|\"&$B71,'Data Annex'!$K$1:$K$4997,0),MATCH(O$47,'Data Annex'!$K$1:$AN$1,0)),\"\")","v":0},null,"LU",{"$f":"IFERROR(INDEX('Data Annex'!$K$1:$AN$4997,MATCH(R$46&\"|\"&$B71,'Data Annex'!$K$1:$K$4997,0),MATCH(R$47,'Data Annex'!$K$1:$AN$1,0)),\"\")","v":16.974056764},{"$f":"IFERROR(INDEX('Data Annex'!$K$1:$AN$4997,MATCH(S$46&\"|\"&$B71,'Data Annex'!$K$1:$K$4997,0),MATCH(S$47,'Data Annex'!$K$1:$AN$1,0)),\"\")","v":19.219323928000001},{"$f":"IFERROR(INDEX('Data Annex'!$K$1:$AN$4997,MATCH(T$46&\"|\"&$B71,'Data Annex'!$K$1:$K$4997,0),MATCH(T$47,'Data Annex'!$K$1:$AN$1,0)),\"\")","v":19.516201877},{"$f":"IFERROR(INDEX('Data Annex'!$K$1:$AN$4997,MATCH(U$46&\"|\"&$B71,'Data Annex'!$K$1:$K$4997,0),MATCH(U$47,'Data Annex'!$K$1:$AN$1,0)),\"\")","v":17.337393249000002},{"$f":"IFERROR(INDEX('Data Annex'!$K$1:$AN$4997,MATCH(V$46&\"|\"&$B71,'Data Annex'!$K$1:$K$4997,0),MATCH(V$47,'Data Annex'!$K$1:$AN$1,0)),\"\")","v":0.26510197210000003},{"$f":"IFERROR(INDEX('Data Annex'!$K$1:$AN$4997,MATCH(W$46&\"|\"&$B71,'Data Annex'!$K$1:$K$4997,0),MATCH(W$47,'Data Annex'!$K$1:$AN$1,0)),\"\")","v":0.24885290860000001},{"$f":"IFERROR(INDEX('Data Annex'!$K$1:$AN$4997,MATCH(X$46&\"|\"&$B71,'Data Annex'!$K$1:$K$4997,0),MATCH(X$47,'Data Annex'!$K$1:$AN$1,0)),\"\")","v":0.2423794883},{"$f":"IFERROR(INDEX('Data Annex'!$K$1:$AN$4997,MATCH(Y$46&\"|\"&$B71,'Data Annex'!$K$1:$K$4997,0),MATCH(Y$47,'Data Annex'!$K$1:$AN$1,0)),\"\")","v":0.26159649569999999},{"$f":"IFERROR(INDEX('Data Annex'!$K$1:$AN$4997,MATCH(Z$46&\"|\"&$B71,'Data Annex'!$K$1:$K$4997,0),MATCH(Z$47,'Data Annex'!$K$1:$AN$1,0)),\"\")","v":0.37453547380000002},{"$f":"IFERROR(INDEX('Data Annex'!$K$1:$AN$4997,MATCH(AA$46&\"|\"&$B71,'Data Annex'!$K$1:$K$4997,0),MATCH(AA$47,'Data Annex'!$K$1:$AN$1,0)),\"\")","v":0.36482913239999998},{"$f":"IFERROR(INDEX('Data Annex'!$K$1:$AN$4997,MATCH(AB$46&\"|\"&$B71,'Data Annex'!$K$1:$K$4997,0),MATCH(AB$47,'Data Annex'!$K$1:$AN$1,0)),\"\")","v":0.36443217970000003},{"$f":"IFERROR(INDEX('Data Annex'!$K$1:$AN$4997,MATCH(AC$46&\"|\"&$B71,'Data Annex'!$K$1:$K$4997,0),MATCH(AC$47,'Data Annex'!$K$1:$AN$1,0)),\"\")","v":0.42924598860000002}]
[21,"LV",null,"LV",null,{"$f":"IFERROR(INDEX('Data Annex'!$K$1:$AN$4997,MATCH(F$46&\"|\"&$B72,'Data Annex'!$K$1:$K$4997,0),MATCH(F$47,'Data Annex'!$K$1:$AN$1,0)),\"\")","v":12.342086124},{"$f":"IFERROR(INDEX('Data Annex'!$K$1:$AN$4997,MATCH(G$46&\"|\"&$B72,'Data Annex'!$K$1:$K$4997,0),MATCH(G$47,'Data Annex'!$K$1:$AN$1,0)),\"\")","v":13.878072739},{"$f":"IFERROR(INDEX('Data Annex'!$K$1:$AN$4997,MATCH(H$46&\"|\"&$B72,'Data Annex'!$K$1:$K$4997,0),MATCH(H$47,'Data Annex'!$K$1:$AN$1,0)),\"\")","v":14.127446935},{"$f":"IFERROR(INDEX('Data Annex'!$K$1:$AN$4997,MATCH(I$46&\"|\"&$B72,'Data Annex'!$K$1:$K$4997,0),MATCH(I$47,'Data Annex'!$K$1:$AN$1,0)),\"\")","v":8.0257119502999998},null,"LV",{"$f":"IFERROR(INDEX('Data Annex'!$K$1:$AN$4997,MATCH(L$46&\"|\"&$B72,'Data Annex'!$K$1:$K$4997,0),MATCH(L$47,'Data Annex'!$K$1:$AN$1,0)),\"\")","v":0},{"$f":"IFERROR(INDEX('Data Annex'!$K$1:$AN$4997,MATCH(M$46&\"|\"&$B72,'Data Annex'!$K$1:$K$4997,0),MATCH(M$47,'Data Annex'!$K$1:$AN$1,0)),\"\")","v":0},{"$f":"IFERROR(INDEX('Data Annex'!$K$1:$AN$4997,MATCH(N$46&\"|\"&$B72,'Data Annex'!$K$1:$K$4997,0),MATCH(N$47,'Data Annex'!$K$1:$AN$1,0)),\"\")","v":0},{"$f":"IFERROR(INDEX('Data Annex'!$K$1:$AN$4997,MATCH(O$46&\"|\"&$B72,'Data Annex'!$K$1:$K$4997,0),MATCH(O$47,'Data Annex'!$K$1:$AN$1,0)),\"\")","v":0},null,"LV",{"$f":"IFERROR(INDEX('Data Annex'!$K$1:$AN$4997,MATCH(R$46&\"|\"&$B72,'Data Annex'!$K$1:$K$4997,0),MATCH(R$47,'Data Annex'!$K$1:$AN$1,0)),\"\")","v":1.4496110719999999},{"$f":"IFERROR(INDEX('Data Annex'!$K$1:$AN$4997,MATCH(S$46&\"|\"&$B72,'Data Annex'!$K$1:$K$4997,0),MATCH(S$47,'Data Annex'!$K$1:$AN$1,0)),\"\")","v":1.4943745859999999},{"$f":"IFERROR(INDEX('Data Annex'!$K$1:$AN$4997,MATCH(T$46&\"|\"&$B72,'Data Annex'!$K$1:$K$4997,0),MATCH(T$47,'Data Annex'!$K$1:$AN$1,0)),\"\")","v":1.4885658049999999},{"$f":"IFERROR(INDEX('Data Annex'!$K$1:$AN$4997,MATCH(U$46&\"|\"&$B72,'Data Annex'!$K$1:$K$4997,0),MATCH(U$47,'Data Annex'!$K$1:$AN$1,0)),\"\")","v":0.89720517499999997},{"$f":"IFERROR(INDEX('Data Annex'!$K$1:$AN$4997,MATCH(V$46&\"|\"&$B72,'Data Annex'!$K$1:$K$4997,0),MATCH(V$47,'Data Annex'!$K$1:$AN$1,0)),\"\")","v":0.25591771829999999},{"$f":"IFERROR(INDEX('Data Annex'!$K$1:$AN$4997,MATCH(W$46&\"|\"&$B72,'Data Annex'!$K$1:$K$4997,0),MATCH(W$47,'Data Annex'!$K$1:$AN$1,0)),\"\")","v":0.23775420659999999},{"$f":"IFERROR(INDEX('Data Annex'!$K$1:$AN$4997,MATCH(X$46&\"|\"&$B72,'Data Annex'!$K$1:$K$4997,0),MATCH(X$47,'Data Annex'!$K$1:$AN$1,0)),\"\")","v":0.248431085},{"$f":"IFERROR(INDEX('Data Annex'!$K$1:$AN$4997,MATCH(Y$46&\"|\"&$B72,'Data Annex'!$K$1:$K$4997,0),MATCH(Y$47,'Data Annex'!$K$1:$AN$1,0)),\"\")","v":0.21013388050000001},{"$f":"IFERROR(INDEX('Data Annex'!$K$1:$AN$4997,MATCH(Z$46&\"|\"&$B72,'Data Annex'!$K$1:$K$4997,0),MATCH(Z$47,'Data Annex'!$K$1:$AN$1,0)),\"\")","v":0.54693326799999997},{"$f":"IFERROR(INDEX('Data Annex'!$K$1:$AN$4997,MATCH(AA$46&\"|\"&$B72,'Data Annex'!$K$1:$K$4997,0),MATCH(AA$47,'Data Annex'!$K$1:$AN$1,0)),\"\")","v":0.60124412009999995},{"$f":"IFERROR(INDEX('Data Annex'!$K$1:$AN$4997,MATCH(AB$46&\"|\"&$B72,'Data Annex'!$K$1:$K$4997,0),MATCH(AB$47,'Data Annex'!$K$1:$AN$1,0)),\"\")","v":0.59433400660000002},{"$f":"IFERROR(INDEX('Data Annex'!$K$1:$AN$4997,MATCH(AC$46&\"|\"&$B72,'Data Annex'!$K$1:$K$4997,0),MATCH(AC$47,'Data Annex'!$K$1:$AN$1,0)),\"\")","v":0.65501636119999995}]
[22,"MT",null,"MT",null,{"$f":"IFERROR(INDEX('Data Annex'!$K$1:$AN$4997,MATCH(F$46&\"|\"&$B73,'Data Annex'!$K$1:$K$4997,0),MATCH(F$47,'Data Annex'!$K$1:$AN$1,0)),\"\")","v":19.915948864000001},{"$f":"IFERROR(INDEX('Data Annex'!$K$1:$AN$4997,MATCH(G$46&\"|\"&$B73,'Data Annex'!$K$1:$K$4997,0),MATCH(G$47,'Data Annex'!$K$1:$AN$1,0)),\"\")","v":20.603385527},{"$f":"IFERROR(INDEX('Data Annex'!$K$1:$AN$4997,MATCH(H$46&\"|\"&$B73,'Data Annex'!$K$1:$K$4997,0),MATCH(H$47,'Data Annex'!$K$1:$AN$1,0)),\"\")","v":20.686066620999998},{"$f":"IFERROR(INDEX('Data Annex'!$K$1:$AN$4997,MATCH(I$46&\"|\"&$B73,'Data Annex'!$K$1:$K$4997,0),MATCH(I$47,'Data Annex'!$K$1:$AN$1,0)),\"\")","v":21.070926225000001},null,"MT",{"$f":"IFERROR(INDEX('Data Annex'!$K$1:$AN$4997,MATCH(L$46&\"|\"&$B73,'Data Annex'!$K$1:$K$4997,0),MATCH(L$47,'Data Annex'!$K$1:$AN$1,0)),\"\")","v":0},{"$f":"IFERROR(INDEX('Data Annex'!$K$1:$AN$4997,MATCH(M$46&\"|\"&$B73,'Data Annex'!$K$1:$K$4997,0),MATCH(M$47,'Data Annex'!$K$1:$AN$1,0)),\"\")","v":0.61484370470000005},{"$f":"IFERROR(INDEX('Data Annex'!$K$1:$AN$4997,MATCH(N$46&\"|\"&$B73,'Data Annex'!$K$1:$K$4997,0),MATCH(N$47,'Data Annex'!$K$1:$AN$1,0)),\"\")","v":0.67527584429999998},{"$f":"IFERROR(INDEX('Data Annex'!$K$1:$AN$4997,MATCH(O$46&\"|\"&$B73,'Data Annex'!$K$1:$K$4997,0),MATCH(O$47,'Data Annex'!$K$1:$AN$1,0)),\"\")","v":0.71729162160000004},null,"MT",{"$f":"IFERROR(INDEX('Data Annex'!$K$1:$AN$4997,MATCH(R$46&\"|\"&$B73,'Data Annex'!$K$1:$K$4997,0),MATCH(R$47,'Data Annex'!$K$1:$AN$1,0)),\"\")","v":2.7654424944999998},{"$f":"IFERROR(INDEX('Data Annex'!$K$1:$AN$4997,MATCH(S$46&\"|\"&$B73,'Data Annex'!$K$1:$K$4997,0),MATCH(S$47,'Data Annex'!$K$1:$AN$1,0)),\"\")","v":2.5399015908},{"$f":"IFERROR(INDEX('Data Annex'!$K$1:$AN$4997,MATCH(T$46&\"|\"&$B73,'Data Annex'!$K$1:$K$4997,0),MATCH(T$47,'Data Annex'!$K$1:$AN$1,0)),\"\")","v":2.6538158418000002},{"$f":"IFERROR(INDEX('Data Annex'!$K$1:$AN$4997,MATCH(U$46&\"|\"&$B73,'Data Annex'!$K$1:$K$4997,0),MATCH(U$47,'Data Annex'!$K$1:$AN$1,0)),\"\")","v":2.8176008842},{"$f":"IFERROR(INDEX('Data Annex'!$K$1:$AN$4997,MATCH(V$46&\"|\"&$B73,'Data Annex'!$K$1:$K$4997,0),MATCH(V$47,'Data Annex'!$K$1:$AN$1,0)),\"\")","v":0.38840553020000002},{"$f":"IFERROR(INDEX('Data Annex'!$K$1:$AN$4997,MATCH(W$46&\"|\"&$B73,'Data Annex'!$K$1:$K$4997,0),MATCH(W$47,'Data Annex'!$K$1:$AN$1,0)),\"\")","v":0.38866407559999999},{"$f":"IFERROR(INDEX('Data Annex'!$K$1:$AN$4997,MATCH(X$46&\"|\"&$B73,'Data Annex'!$K$1:$K$4997,0),MATCH(X$47,'Data Annex'!$K$1:$AN$1,0)),\"\")","v":0.3748900946},{"$f":"IFERROR(INDEX('Data Annex'!$K$1:$AN$4997,MATCH(Y$46&\"|\"&$B73,'Data Annex'!$K$1:$K$4997,0),MATCH(Y$47,'Data Annex'!$K$1:$AN$1,0)),\"\")","v":0.37068627790000003},{"$f":"IFERROR(INDEX('Data Annex'!$K$1:$AN$4997,MATCH(Z$46&\"|\"&$B73,'Data Annex'!$K$1:$K$4997,0),MATCH(Z$47,'Data Annex'!$K$1:$AN$1,0)),\"\")","v":0.49598367510000002},{"$f":"IFERROR(INDEX('Data Annex'!$K$1:$AN$4997,MATCH(AA$46&\"|\"&$B73,'Data Annex'!$K$1:$K$4997,0),MATCH(AA$47,'Data Annex'!$K$1:$AN$1,0)),\"\")","v":0.46709699719999997},{"$f":"IFERROR(INDEX('Data Annex'!$K$1:$AN$4997,MATCH(AB$46&\"|\"&$B73,'Data Annex'!$K$1:$K$4997,0),MATCH(AB$47,'Data Annex'!$K$1:$AN$1,0)),\"\")","v":0.4926350109},{"$f":"IFERROR(INDEX('Data Annex'!$K$1:$AN$4997,MATCH(AC$46&\"|\"&$B73,'Data Annex'!$K$1:$K$4997,0),MATCH(AC$47,'Data Annex'!$K$1:$AN$1,0)),\"\")","v":0.46938269760000001}]
[23,"NL",null,"NL",null,{"$f":"IFERROR(INDEX('Data Annex'!$K$1:$AN$4997,MATCH(F$46&\"|\"&$B74,'Data Annex'!$K$1:$K$4997,0),MATCH(F$47,'Data Annex'!$K$1:$AN$1,0)),\"\")","v":2086.4406336000002},{"$f":"IFERROR(INDEX('Data Annex'!$K$1:$AN$4997,MATCH(G$46&\"|\"&$B74,'Data Annex'!$K$1:$K$4997,0),MATCH(G$47,'Data Annex'!$K$1:$AN$1,0)),\"\")","v":2137.4392684999998},{"$f":"IFERROR(INDEX('Data Annex'!$K$1:$AN$4997,MATCH(H$46&\"|\"&$B74,'Data Annex'!$K$1:$K$4997,0),MATCH(H$47,'Data Annex'!$K$1:$AN$1,0)),\"\")","v":2165.0101063000002},{"$f":"IFERROR(INDEX('Data Annex'!$K$1:$AN$4997,MATCH(I$46&\"|\"&$B74,'Data Annex'!$K$1:$K$4997,0),MATCH(I$47,'Data Annex'!$K$1:$AN$1,0)),\"\")","v":2067.4567338000002},null,"NL",{"$f":"IFERROR(INDEX('Data Annex'!$K$1:$AN$4997,MATCH(L$46&\"|\"&$B74,'Data Annex'!$K$1:$K$4997,0),MATCH(L$47,'Data Annex'!$K$1:$AN$1,0)),\"\")","v":0.217412349},{"$f":"IFERROR(INDEX('Data Annex'!$K$1:$AN$4997,MATCH(M$46&\"|\"&$B74,'Data Annex'!$K$1:$K$4997,0),MATCH(M$47,'Data Annex'!$K$1:$AN$1,0)),\"\")","v":0.2185018836},{"$f":"IFERROR(INDEX('Data Annex'!$K$1:$AN$4997,MATCH(N$46&\"|\"&$B74,'Data Annex'!$K$1:$K$4997,0),MATCH(N$47,'Data Annex'!$K$1:$AN$1,0)),\"\")","v":0.223368452},{"$f":"IFERROR(INDEX('Data Annex'!$K$1:$AN$4997,MATCH(O$46&\"|\"&$B74,'Data Annex'!$K$1:$K$4997,0),MATCH(O$47,'Data Annex'!$K$1:$AN$1,0)),\"\")","v":0.2455421384},null,"NL",{"$f":"IFERROR(INDEX('Data Annex'!$K$1:$AN$4997,MATCH(R$46&\"|\"&$B74,'Data Annex'!$K$1:$K$4997,0),MATCH(R$47,'Data Annex'!$K$1:$AN$1,0)),\"\")","v":346.07535816000001},{"$f":"IFERROR(INDEX('Data Annex'!$K$1:$AN$4997,MATCH(S$46&\"|\"&$B74,'Data Annex'!$K$1:$K$4997,0),MATCH(S$47,'Data Annex'!$K$1:$AN$1,0)),\"\")","v":367.28867833999999},{"$f":"IFERROR(INDEX('Data Annex'!$K$1:$AN$4997,MATCH(T$46&\"|\"&$B74,'Data Annex'!$K$1:$K$4997,0),MATCH(T$47,'Data Annex'!$K$1:$AN$1,0)),\"\")","v":368.70649860999998},{"$f":"IFERROR(INDEX('Data Annex'!$K$1:$AN$4997,MATCH(U$46&\"|\"&$B74,'Data Annex'!$K$1:$K$4997,0),MATCH(U$47,'Data Annex'!$K$1:$AN$1,0)),\"\")","v":365.77726976999998},{"$f":"IFERROR(INDEX('Data Annex'!$K$1:$AN$4997,MATCH(V$46&\"|\"&$B74,'Data Annex'!$K$1:$K$4997,0),MATCH(V$47,'Data Annex'!$K$1:$AN$1,0)),\"\")","v":0.17911834800000001},{"$f":"IFERROR(INDEX('Data Annex'!$K$1:$AN$4997,MATCH(W$46&\"|\"&$B74,'Data Annex'!$K$1:$K$4997,0),MATCH(W$47,'Data Annex'!$K$1:$AN$1,0)),\"\")","v":0.1706626145},{"$f":"IFERROR(INDEX('Data Annex'!$K$1:$AN$4997,MATCH(X$46&\"|\"&$B74,'Data Annex'!$K$1:$K$4997,0),MATCH(X$47,'Data Annex'!$K$1:$AN$1,0)),\"\")","v":0.1757758448},{"$f":"IFERROR(INDEX('Data Annex'!$K$1:$AN$4997,MATCH(Y$46&\"|\"&$B74,'Data Annex'!$K$1:$K$4997,0),MATCH(Y$47,'Data Annex'!$K$1:$AN$1,0)),\"\")","v":0.18383283889999999},{"$f":"IFERROR(INDEX('Data Annex'!$K$1:$AN$4997,MATCH(Z$46&\"|\"&$B74,'Data Annex'!$K$1:$K$4997,0),MATCH(Z$47,'Data Annex'!$K$1:$AN$1,0)),\"\")","v":0.62749599219999996},{"$f":"IFERROR(INDEX('Data Annex'!$K$1:$AN$4997,MATCH(AA$46&\"|\"&$B74,'Data Annex'!$K$1:$K$4997,0),MATCH(AA$47,'Data Annex'!$K$1:$AN$1,0)),\"\")","v":0.63268362160000002},{"$f":"IFERROR(INDEX('Data Annex'!$K$1:$AN$4997,MATCH(AB$46&\"|\"&$B74,'Data Annex'!$K$1:$K$4997,0),MATCH(AB$47,'Data Annex'!$K$1:$AN$1,0)),\"\")","v":0.63240152449999998},{"$f":"IFERROR(INDEX('Data Annex'!$K$1:$AN$4997,MATCH(AC$46&\"|\"&$B74,'Data Annex'!$K$1:$K$4997,0),MATCH(AC$47,'Data Annex'!$K$1:$AN$1,0)),\"\")","v":0.61599608640000003}]
[24,"NO",null,"NO",null,{"$f":"IFERROR(INDEX('Data Annex'!$K$1:$AN$4997,MATCH(F$46&\"|\"&$B75,'Data Annex'!$K$1:$K$4997,0),MATCH(F$47,'Data Annex'!$K$1:$AN$1,0)),\"\")","v":277.95282150000003},{"$f":"IFERROR(INDEX('Data Annex'!$K$1:$AN$4997,MATCH(G$46&\"|\"&$B75,'Data Annex'!$K$1:$K$4997,0),MATCH(G$47,'Data Annex'!$K$1:$AN$1,0)),\"\")","v":278.42993894},{"$f":"IFERROR(INDEX('Data Annex'!$K$1:$AN$4997,MATCH(H$46&\"|\"&$B75,'Data Annex'!$K$1:$K$4997,0),MATCH(H$47,'Data Annex'!$K$1:$AN$1,0)),\"\")","v":271.96044769999997},{"$f":"IFERROR(INDEX('Data Annex'!$K$1:$AN$4997,MATCH(I$46&\"|\"&$B75,'Data Annex'!$K$1:$K$4997,0),MATCH(I$47,'Data Annex'!$K$1:$AN$1,0)),\"\")","v":275.85433914999999},null,"NO",{"$f":"IFERROR(INDEX('Data Annex'!$K$1:$AN$4997,MATCH(L$46&\"|\"&$B75,'Data Annex'!$K$1:$K$4997,0),MATCH(L$47,'Data Annex'!$K$1:$AN$1,0)),\"\")","v":0.53583961179999995},{"$f":"IFERROR(INDEX('Data Annex'!$K$1:$AN$4997,MATCH(M$46&\"|\"&$B75,'Data Annex'!$K$1:$K$4997,0),MATCH(M$47,'Data Annex'!$K$1:$AN$1,0)),\"\")","v":0.54913496910000004},{"$f":"IFERROR(INDEX('Data Annex'!$K$1:$AN$4997,MATCH(N$46&\"|\"&$B75,'Data Annex'!$K$1:$K$4997,0),MATCH(N$47,'Data Annex'!$K$1:$AN$1,0)),\"\")","v":0.524716038},{"$f":"IFERROR(INDEX('Data Annex'!$K$1:$AN$4997,MATCH(O$46&\"|\"&$B75,'Data Annex'!$K$1:$K$4997,0),MATCH(O$47,'Data Annex'!$K$1:$AN$1,0)),\"\")","v":0.55735339959999997},null,"NO",{"$f":"IFERROR(INDEX('Data Annex'!$K$1:$AN$4997,MATCH(R$46&\"|\"&$B75,'Data Annex'!$K$1:$K$4997,0),MATCH(R$47,'Data Annex'!$K$1:$AN$1,0)),\"\")","v":56.564237659},{"$f":"IFERROR(INDEX('Data Annex'!$K$1:$AN$4997,MATCH(S$46&\"|\"&$B75,'Data Annex'!$K$1:$K$4997,0),MATCH(S$47,'Data Annex'!$K$1:$AN$1,0)),\"\")","v":60.957003434999997},{"$f":"IFERROR(INDEX('Data Annex'!$K$1:$AN$4997,MATCH(T$46&\"|\"&$B75,'Data Annex'!$K$1:$K$4997,0),MATCH(T$47,'Data Annex'!$K$1:$AN$1,0)),\"\")","v":62.38609014},{"$f":"IFERROR(INDEX('Data Annex'!$K$1:$AN$4997,MATCH(U$46&\"|\"&$B75,'Data Annex'!$K$1:$K$4997,0),MATCH(U$47,'Data Annex'!$K$1:$AN$1,0)),\"\")","v":64.119114272000004},{"$f":"IFERROR(INDEX('Data Annex'!$K$1:$AN$4997,MATCH(V$46&\"|\"&$B75,'Data Annex'!$K$1:$K$4997,0),MATCH(V$47,'Data Annex'!$K$1:$AN$1,0)),\"\")","v":0.42738148279999999},{"$f":"IFERROR(INDEX('Data Annex'!$K$1:$AN$4997,MATCH(W$46&\"|\"&$B75,'Data Annex'!$K$1:$K$4997,0),MATCH(W$47,'Data Annex'!$K$1:$AN$1,0)),\"\")","v":0.44648227080000003},{"$f":"IFERROR(INDEX('Data Annex'!$K$1:$AN$4997,MATCH(X$46&\"|\"&$B75,'Data Annex'!$K$1:$K$4997,0),MATCH(X$47,'Data Annex'!$K$1:$AN$1,0)),\"\")","v":0.45351884739999998},{"$f":"IFERROR(INDEX('Data Annex'!$K$1:$AN$4997,MATCH(Y$46&\"|\"&$B75,'Data Annex'!$K$1:$K$4997,0),MATCH(Y$47,'Data Annex'!$K$1:$AN$1,0)),\"\")","v":0.43943428950000002},{"$f":"IFERROR(INDEX('Data Annex'!$K$1:$AN$4997,MATCH(Z$46&\"|\"&$B75,'Data Annex'!$K$1:$K$4997,0),MATCH(Z$47,'Data Annex'!$K$1:$AN$1,0)),\"\")","v":0.48555677489999999},{"$f":"IFERROR(INDEX('Data Annex'!$K$1:$AN$4997,MATCH(AA$46&\"|\"&$B75,'Data Annex'!$K$1:$K$4997,0),MATCH(AA$47,'Data Annex'!$K$1:$AN$1,0)),\"\")","v":0.48654378999999998},{"$f":"IFERROR(INDEX('Data Annex'!$K$1:$AN$4997,MATCH(AB$46&\"|\"&$B75,'Data Annex'!$K$1:$K$4997,0),MATCH(AB$47,'Data Annex'!$K$1:$AN$1,0)),\"\")","v":0.47254349559999997},{"$f":"IFERROR(INDEX('Data Annex'!$K$1:$AN$4997,MATCH(AC$46&\"|\"&$B75,'Data Annex'!$K$1:$K$4997,0),MATCH(AC$47,'Data Annex'!$K$1:$AN$1,0)),\"\")","v":0.50467808970000005}]
[25,"PL",null,"PL",null,{"$f":"IFERROR(INDEX('Data Annex'!$K$1:$AN$4997,MATCH(F$46&\"|\"&$B76,'Data Annex'!$K$1:$K$4997,0),MATCH(F$47,'Data Annex'!$K$1:$AN$1,0)),\"\")","v":154.23756230000001},{"$f":"IFERROR(INDEX('Data Annex'!$K$1:$AN$4997,MATCH(G$46&\"|\"&$B76,'Data Annex'!$K$1:$K$4997,0),MATCH(G$47,'Data Annex'!$K$1:$AN$1,0)),\"\")","v":164.99409091000001},{"$f":"IFERROR(INDEX('Data Annex'!$K$1:$AN$4997,MATCH(H$46&\"|\"&$B76,'Data Annex'!$K$1:$K$4997,0),MATCH(H$47,'Data Annex'!$K$1:$AN$1,0)),\"\")","v":160.7539463},{"$f":"IFERROR(INDEX('Data Annex'!$K$1:$AN$4997,MATCH(I$46&\"|\"&$B76,'Data Annex'!$K$1:$K$4997,0),MATCH(I$47,'Data Annex'!$K$1:$AN$1,0)),\"\")","v":162.81681689000001},null,"PL",{"$f":"IFERROR(INDEX('Data Annex'!$K$1:$AN$4997,MATCH(L$46&\"|\"&$B76,'Data Annex'!$K$1:$K$4997,0),MATCH(L$47,'Data Annex'!$K$1:$AN$1,0)),\"\")","v":0.4400296957},{"$f":"IFERROR(INDEX('Data Annex'!$K$1:$AN$4997,MATCH(M$46&\"|\"&$B76,'Data Annex'!$K$1:$K$4997,0),MATCH(M$47,'Data Annex'!$K$1:$AN$1,0)),\"\")","v":0.48163026399999997},{"$f":"IFERROR(INDEX('Data Annex'!$K$1:$AN$4997,MATCH(N$46&\"|\"&$B76,'Data Annex'!$K$1:$K$4997,0),MATCH(N$47,'Data Annex'!$K$1:$AN$1,0)),\"\")","v":0.48381882520000002},{"$f":"IFERROR(INDEX('Data Annex'!$K$1:$AN$4997,MATCH(O$46&\"|\"&$B76,'Data Annex'!$K$1:$K$4997,0),MATCH(O$47,'Data Annex'!$K$1:$AN$1,0)),\"\")","v":0.44967250860000002},null,"PL",{"$f":"IFERROR(INDEX('Data Annex'!$K$1:$AN$4997,MATCH(R$46&\"|\"&$B76,'Data Annex'!$K$1:$K$4997,0),MATCH(R$47,'Data Annex'!$K$1:$AN$1,0)),\"\")","v":24.583179172000001},{"$f":"IFERROR(INDEX('Data Annex'!$K$1:$AN$4997,MATCH(S$46&\"|\"&$B76,'Data Annex'!$K$1:$K$4997,0),MATCH(S$47,'Data Annex'!$K$1:$AN$1,0)),\"\")","v":27.524054386},{"$f":"IFERROR(INDEX('Data Annex'!$K$1:$AN$4997,MATCH(T$46&\"|\"&$B76,'Data Annex'!$K$1:$K$4997,0),MATCH(T$47,'Data Annex'!$K$1:$AN$1,0)),\"\")","v":28.321801153999999},{"$f":"IFERROR(INDEX('Data Annex'!$K$1:$AN$4997,MATCH(U$46&\"|\"&$B76,'Data Annex'!$K$1:$K$4997,0),MATCH(U$47,'Data Annex'!$K$1:$AN$1,0)),\"\")","v":29.284556163000001},{"$f":"IFERROR(INDEX('Data Annex'!$K$1:$AN$4997,MATCH(V$46&\"|\"&$B76,'Data Annex'!$K$1:$K$4997,0),MATCH(V$47,'Data Annex'!$K$1:$AN$1,0)),\"\")","v":0.2611061938},{"$f":"IFERROR(INDEX('Data Annex'!$K$1:$AN$4997,MATCH(W$46&\"|\"&$B76,'Data Annex'!$K$1:$K$4997,0),MATCH(W$47,'Data Annex'!$K$1:$AN$1,0)),\"\")","v":0.2363911517},{"$f":"IFERROR(INDEX('Data Annex'!$K$1:$AN$4997,MATCH(X$46&\"|\"&$B76,'Data Annex'!$K$1:$K$4997,0),MATCH(X$47,'Data Annex'!$K$1:$AN$1,0)),\"\")","v":0.2205827464},{"$f":"IFERROR(INDEX('Data Annex'!$K$1:$AN$4997,MATCH(Y$46&\"|\"&$B76,'Data Annex'!$K$1:$K$4997,0),MATCH(Y$47,'Data Annex'!$K$1:$AN$1,0)),\"\")","v":0.21204474979999999},{"$f":"IFERROR(INDEX('Data Annex'!$K$1:$AN$4997,MATCH(Z$46&\"|\"&$B76,'Data Annex'!$K$1:$K$4997,0),MATCH(Z$47,'Data Annex'!$K$1:$AN$1,0)),\"\")","v":0.65781085589999999},{"$f":"IFERROR(INDEX('Data Annex'!$K$1:$AN$4997,MATCH(AA$46&\"|\"&$B76,'Data Annex'!$K$1:$K$4997,0),MATCH(AA$47,'Data Annex'!$K$1:$AN$1,0)),\"\")","v":0.68918622839999999},{"$f":"IFERROR(INDEX('Data Annex'!$K$1:$AN$4997,MATCH(AB$46&\"|\"&$B76,'Data Annex'!$K$1:$K$4997,0),MATCH(AB$47,'Data Annex'!$K$1:$AN$1,0)),\"\")","v":0.70151085629999999},{"$f":"IFERROR(INDEX('Data Annex'!$K$1:$AN$4997,MATCH(AC$46&\"|\"&$B76,'Data Annex'!$K$1:$K$4997,0),MATCH(AC$47,'Data Annex'!$K$1:$AN$1,0)),\"\")","v":0.69992005290000003}]
[26,"PT",null,"PT",null,{"$f":"IFERROR(INDEX('Data Annex'!$K$1:$AN$4997,MATCH(F$46&\"|\"&$B77,'Data Annex'!$K$1:$K$4997,0),MATCH(F$47,'Data Annex'!$K$1:$AN$1,0)),\"\")","v":307.28702100999999},{"$f":"IFERROR(INDEX('Data Annex'!$K$1:$AN$4997,MATCH(G$46&\"|\"&$B77,'Data Annex'!$K$1:$K$4997,0),MATCH(G$47,'Data Annex'!$K$1:$AN$1,0)),\"\")","v":325.70963879999999},{"$f":"IFERROR(INDEX('Data Annex'!$K$1:$AN$4997,MATCH(H$46&\"|\"&$B77,'Data Annex'!$K$1:$K$4997,0),MATCH(H$47,'Data Annex'!$K$1:$AN$1,0)),\"\")","v":323.69660006999999},{"$f":"IFERROR(INDEX('Data Annex'!$K$1:$AN$4997,MATCH(I$46&\"|\"&$B77,'Data Annex'!$K$1:$K$4997,0),MATCH(I$47,'Data Annex'!$K$1:$AN$1,0)),\"\")","v":324.67494205999998},null,"PT",{"$f":"IFERROR(INDEX('Data Annex'!$K$1:$AN$4997,MATCH(L$46&\"|\"&$B77,'Data Annex'!$K$1:$K$4997,0),MATCH(L$47,'Data Annex'!$K$1:$AN$1,0)),\"\")","v":0.55842175829999996},{"$f":"IFERROR(INDEX('Data Annex'!$K$1:$AN$4997,MATCH(M$46&\"|\"&$B77,'Data Annex'!$K$1:$K$4997,0),MATCH(M$47,'Data Annex'!$K$1:$AN$1,0)),\"\")","v":0.55748918780000001},{"$f":"IFERROR(INDEX('Data Annex'!$K$1:$AN$4997,MATCH(N$46&\"|\"&$B77,'Data Annex'!$K$1:$K$4997,0),MATCH(N$47,'Data Annex'!$K$1:$AN$1,0)),\"\")","v":0.5615826827},{"$f":"IFERROR(INDEX('Data Annex'!$K$1:$AN$4997,MATCH(O$46&\"|\"&$B77,'Data Annex'!$K$1:$K$4997,0),MATCH(O$47,'Data Annex'!$K$1:$AN$1,0)),\"\")","v":0.54083848379999999},null,"PT",{"$f":"IFERROR(INDEX('Data Annex'!$K$1:$AN$4997,MATCH(R$46&\"|\"&$B77,'Data Annex'!$K$1:$K$4997,0),MATCH(R$47,'Data Annex'!$K$1:$AN$1,0)),\"\")","v":29.982571045},{"$f":"IFERROR(INDEX('Data Annex'!$K$1:$AN$4997,MATCH(S$46&\"|\"&$B77,'Data Annex'!$K$1:$K$4997,0),MATCH(S$47,'Data Annex'!$K$1:$AN$1,0)),\"\")","v":32.469059723000001},{"$f":"IFERROR(INDEX('Data Annex'!$K$1:$AN$4997,MATCH(T$46&\"|\"&$B77,'Data Annex'!$K$1:$K$4997,0),MATCH(T$47,'Data Annex'!$K$1:$AN$1,0)),\"\")","v":33.212632188000001},{"$f":"IFERROR(INDEX('Data Annex'!$K$1:$AN$4997,MATCH(U$46&\"|\"&$B77,'Data Annex'!$K$1:$K$4997,0),MATCH(U$47,'Data Annex'!$K$1:$AN$1,0)),\"\")","v":33.891678782},{"$f":"IFERROR(INDEX('Data Annex'!$K$1:$AN$4997,MATCH(V$46&\"|\"&$B77,'Data Annex'!$K$1:$K$4997,0),MATCH(V$47,'Data Annex'!$K$1:$AN$1,0)),\"\")","v":0.22245987349999999},{"$f":"IFERROR(INDEX('Data Annex'!$K$1:$AN$4997,MATCH(W$46&\"|\"&$B77,'Data Annex'!$K$1:$K$4997,0),MATCH(W$47,'Data Annex'!$K$1:$AN$1,0)),\"\")","v":0.2086598727},{"$f":"IFERROR(INDEX('Data Annex'!$K$1:$AN$4997,MATCH(X$46&\"|\"&$B77,'Data Annex'!$K$1:$K$4997,0),MATCH(X$47,'Data Annex'!$K$1:$AN$1,0)),\"\")","v":0.2066013612},{"$f":"IFERROR(INDEX('Data Annex'!$K$1:$AN$4997,MATCH(Y$46&\"|\"&$B77,'Data Annex'!$K$1:$K$4997,0),MATCH(Y$47,'Data Annex'!$K$1:$AN$1,0)),\"\")","v":0.2150522524},{"$f":"IFERROR(INDEX('Data Annex'!$K$1:$AN$4997,MATCH(Z$46&\"|\"&$B77,'Data Annex'!$K$1:$K$4997,0),MATCH(Z$47,'Data Annex'!$K$1:$AN$1,0)),\"\")","v":0.72589343709999998},{"$f":"IFERROR(INDEX('Data Annex'!$K$1:$AN$4997,MATCH(AA$46&\"|\"&$B77,'Data Annex'!$K$1:$K$4997,0),MATCH(AA$47,'Data Annex'!$K$1:$AN$1,0)),\"\")","v":0.73353795330000005},{"$f":"IFERROR(INDEX('Data Annex'!$K$1:$AN$4997,MATCH(AB$46&\"|\"&$B77,'Data Annex'!$K$1:$K$4997,0),MATCH(AB$47,'Data Annex'!$K$1:$AN$1,0)),\"\")","v":0.73951460719999995},{"$f":"IFERROR(INDEX('Data Annex'!$K$1:$AN$4997,MATCH(AC$46&\"|\"&$B77,'Data Annex'!$K$1:$K$4997,0),MATCH(AC$47,'Data Annex'!$K$1:$AN$1,0)),\"\")","v":0.72155094740000003}]
[27,"RO",null,"RO",null,{"$f":"IFERROR(INDEX('Data Annex'!$K$1:$AN$4997,MATCH(F$46&\"|\"&$B78,'Data Annex'!$K$1:$K$4997,0),MATCH(F$47,'Data Annex'!$K$1:$AN$1,0)),\"\")","v":42.991347636999997},{"$f":"IFERROR(INDEX('Data Annex'!$K$1:$AN$4997,MATCH(G$46&\"|\"&$B78,'Data Annex'!$K$1:$K$4997,0),MATCH(G$47,'Data Annex'!$K$1:$AN$1,0)),\"\")","v":42.946235639999998},{"$f":"IFERROR(INDEX('Data Annex'!$K$1:$AN$4997,MATCH(H$46&\"|\"&$B78,'Data Annex'!$K$1:$K$4997,0),MATCH(H$47,'Data Annex'!$K$1:$AN$1,0)),\"\")","v":43.302370494000002},{"$f":"IFERROR(INDEX('Data Annex'!$K$1:$AN$4997,MATCH(I$46&\"|\"&$B78,'Data Annex'!$K$1:$K$4997,0),MATCH(I$47,'Data Annex'!$K$1:$AN$1,0)),\"\")","v":45.892815171000002},null,"RO",{"$f":"IFERROR(INDEX('Data Annex'!$K$1:$AN$4997,MATCH(L$46&\"|\"&$B78,'Data Annex'!$K$1:$K$4997,0),MATCH(L$47,'Data Annex'!$K$1:$AN$1,0)),\"\")","v":0},{"$f":"IFERROR(INDEX('Data Annex'!$K$1:$AN$4997,MATCH(M$46&\"|\"&$B78,'Data Annex'!$K$1:$K$4997,0),MATCH(M$47,'Data Annex'!$K$1:$AN$1,0)),\"\")","v":0},{"$f":"IFERROR(INDEX('Data Annex'!$K$1:$AN$4997,MATCH(N$46&\"|\"&$B78,'Data Annex'!$K$1:$K$4997,0),MATCH(N$47,'Data Annex'!$K$1:$AN$1,0)),\"\")","v":0},{"$f":"IFERROR(INDEX('Data Annex'!$K$1:$AN$4997,MATCH(O$46&\"|\"&$B78,'Data Annex'!$K$1:$K$4997,0),MATCH(O$47,'Data Annex'!$K$1:$AN$1,0)),\"\")","v":0},null,"RO",{"$f":"IFERROR(INDEX('Data Annex'!$K$1:$AN$4997,MATCH(R$46&\"|\"&$B78,'Data Annex'!$K$1:$K$4997,0),MATCH(R$47,'Data Annex'!$K$1:$AN$1,0)),\"\")","v":6.2620599936000003},{"$f":"IFERROR(INDEX('Data Annex'!$K$1:$AN$4997,MATCH(S$46&\"|\"&$B78,'Data Annex'!$K$1:$K$4997,0),MATCH(S$47,'Data Annex'!$K$1:$AN$1,0)),\"\")","v":6.453525859},{"$f":"IFERROR(INDEX('Data Annex'!$K$1:$AN$4997,MATCH(T$46&\"|\"&$B78,'Data Annex'!$K$1:$K$4997,0),MATCH(T$47,'Data Annex'!$K$1:$AN$1,0)),\"\")","v":6.8792036471999998},{"$f":"IFERROR(INDEX('Data Annex'!$K$1:$AN$4997,MATCH(U$46&\"|\"&$B78,'Data Annex'!$K$1:$K$4997,0),MATCH(U$47,'Data Annex'!$K$1:$AN$1,0)),\"\")","v":6.9571001138000002},{"$f":"IFERROR(INDEX('Data Annex'!$K$1:$AN$4997,MATCH(V$46&\"|\"&$B78,'Data Annex'!$K$1:$K$4997,0),MATCH(V$47,'Data Annex'!$K$1:$AN$1,0)),\"\")","v":0.19936523140000001},{"$f":"IFERROR(INDEX('Data Annex'!$K$1:$AN$4997,MATCH(W$46&\"|\"&$B78,'Data Annex'!$K$1:$K$4997,0),MATCH(W$47,'Data Annex'!$K$1:$AN$1,0)),\"\")","v":0.19621398779999999},{"$f":"IFERROR(INDEX('Data Annex'!$K$1:$AN$4997,MATCH(X$46&\"|\"&$B78,'Data Annex'!$K$1:$K$4997,0),MATCH(X$47,'Data Annex'!$K$1:$AN$1,0)),\"\")","v":0.18194742329999999},{"$f":"IFERROR(INDEX('Data Annex'!$K$1:$AN$4997,MATCH(Y$46&\"|\"&$B78,'Data Annex'!$K$1:$K$4997,0),MATCH(Y$47,'Data Annex'!$K$1:$AN$1,0)),\"\")","v":0.18683572209999999},{"$f":"IFERROR(INDEX('Data Annex'!$K$1:$AN$4997,MATCH(Z$46&\"|\"&$B78,'Data Annex'!$K$1:$K$4997,0),MATCH(Z$47,'Data Annex'!$K$1:$AN$1,0)),\"\")","v":0.65433188460000002},{"$f":"IFERROR(INDEX('Data Annex'!$K$1:$AN$4997,MATCH(AA$46&\"|\"&$B78,'Data Annex'!$K$1:$K$4997,0),MATCH(AA$47,'Data Annex'!$K$1:$AN$1,0)),\"\")","v":0.64998812350000001},{"$f":"IFERROR(INDEX('Data Annex'!$K$1:$AN$4997,MATCH(AB$46&\"|\"&$B78,'Data Annex'!$K$1:$K$4997,0),MATCH(AB$47,'Data Annex'!$K$1:$AN$1,0)),\"\")","v":0.65400090259999999},{"$f":"IFERROR(INDEX('Data Annex'!$K$1:$AN$4997,MATCH(AC$46&\"|\"&$B78,'Data Annex'!$K$1:$K$4997,0),MATCH(AC$47,'Data Annex'!$K$1:$AN$1,0)),\"\")","v":0.67159750929999995}]
[28,"SE",null,"SE",null,{"$f":"IFERROR(INDEX('Data Annex'!$K$1:$AN$4997,MATCH(F$46&\"|\"&$B79,'Data Annex'!$K$1:$K$4997,0),MATCH(F$47,'Data Annex'!$K$1:$AN$1,0)),\"\")","v":893.11323114000004},{"$f":"IFERROR(INDEX('Data Annex'!$K$1:$AN$4997,MATCH(G$46&\"|\"&$B79,'Data Annex'!$K$1:$K$4997,0),MATCH(G$47,'Data Annex'!$K$1:$AN$1,0)),\"\")","v":929.95625461999998},{"$f":"IFERROR(INDEX('Data Annex'!$K$1:$AN$4997,MATCH(H$46&\"|\"&$B79,'Data Annex'!$K$1:$K$4997,0),MATCH(H$47,'Data Annex'!$K$1:$AN$1,0)),\"\")","v":890.47977429000002},{"$f":"IFERROR(INDEX('Data Annex'!$K$1:$AN$4997,MATCH(I$46&\"|\"&$B79,'Data Annex'!$K$1:$K$4997,0),MATCH(I$47,'Data Annex'!$K$1:$AN$1,0)),\"\")","v":883.85758740999995},null,"SE",{"$f":"IFERROR(INDEX('Data Annex'!$K$1:$AN$4997,MATCH(L$46&\"|\"&$B79,'Data Annex'!$K$1:$K$4997,0),MATCH(L$47,'Data Annex'!$K$1:$AN$1,0)),\"\")","v":0.47516232829999999},{"$f":"IFERROR(INDEX('Data Annex'!$K$1:$AN$4997,MATCH(M$46&\"|\"&$B79,'Data Annex'!$K$1:$K$4997,0),MATCH(M$47,'Data Annex'!$K$1:$AN$1,0)),\"\")","v":0.47108260120000001},{"$f":"IFERROR(INDEX('Data Annex'!$K$1:$AN$4997,MATCH(N$46&\"|\"&$B79,'Data Annex'!$K$1:$K$4997,0),MATCH(N$47,'Data Annex'!$K$1:$AN$1,0)),\"\")","v":0.46960026300000002},{"$f":"IFERROR(INDEX('Data Annex'!$K$1:$AN$4997,MATCH(O$46&\"|\"&$B79,'Data Annex'!$K$1:$K$4997,0),MATCH(O$47,'Data Annex'!$K$1:$AN$1,0)),\"\")","v":0.4762374003},null,"SE",{"$f":"IFERROR(INDEX('Data Annex'!$K$1:$AN$4997,MATCH(R$46&\"|\"&$B79,'Data Annex'!$K$1:$K$4997,0),MATCH(R$47,'Data Annex'!$K$1:$AN$1,0)),\"\")","v":121.60077506},{"$f":"IFERROR(INDEX('Data Annex'!$K$1:$AN$4997,MATCH(S$46&\"|\"&$B79,'Data Annex'!$K$1:$K$4997,0),MATCH(S$47,'Data Annex'!$K$1:$AN$1,0)),\"\")","v":141.00486977},{"$f":"IFERROR(INDEX('Data Annex'!$K$1:$AN$4997,MATCH(T$46&\"|\"&$B79,'Data Annex'!$K$1:$K$4997,0),MATCH(T$47,'Data Annex'!$K$1:$AN$1,0)),\"\")","v":149.18273707},{"$f":"IFERROR(INDEX('Data Annex'!$K$1:$AN$4997,MATCH(U$46&\"|\"&$B79,'Data Annex'!$K$1:$K$4997,0),MATCH(U$47,'Data Annex'!$K$1:$AN$1,0)),\"\")","v":151.53953730000001},{"$f":"IFERROR(INDEX('Data Annex'!$K$1:$AN$4997,MATCH(V$46&\"|\"&$B79,'Data Annex'!$K$1:$K$4997,0),MATCH(V$47,'Data Annex'!$K$1:$AN$1,0)),\"\")","v":0.26511971649999999},{"$f":"IFERROR(INDEX('Data Annex'!$K$1:$AN$4997,MATCH(W$46&\"|\"&$B79,'Data Annex'!$K$1:$K$4997,0),MATCH(W$47,'Data Annex'!$K$1:$AN$1,0)),\"\")","v":0.25574147180000001},{"$f":"IFERROR(INDEX('Data Annex'!$K$1:$AN$4997,MATCH(X$46&\"|\"&$B79,'Data Annex'!$K$1:$K$4997,0),MATCH(X$47,'Data Annex'!$K$1:$AN$1,0)),\"\")","v":0.26110568270000001},{"$f":"IFERROR(INDEX('Data Annex'!$K$1:$AN$4997,MATCH(Y$46&\"|\"&$B79,'Data Annex'!$K$1:$K$4997,0),MATCH(Y$47,'Data Annex'!$K$1:$AN$1,0)),\"\")","v":0.24998751159999999},{"$f":"IFERROR(INDEX('Data Annex'!$K$1:$AN$4997,MATCH(Z$46&\"|\"&$B79,'Data Annex'!$K$1:$K$4997,0),MATCH(Z$47,'Data Annex'!$K$1:$AN$1,0)),\"\")","v":0.62700340020000001},{"$f":"IFERROR(INDEX('Data Annex'!$K$1:$AN$4997,MATCH(AA$46&\"|\"&$B79,'Data Annex'!$K$1:$K$4997,0),MATCH(AA$47,'Data Annex'!$K$1:$AN$1,0)),\"\")","v":0.6375480429},{"$f":"IFERROR(INDEX('Data Annex'!$K$1:$AN$4997,MATCH(AB$46&\"|\"&$B79,'Data Annex'!$K$1:$K$4997,0),MATCH(AB$47,'Data Annex'!$K$1:$AN$1,0)),\"\")","v":0.63058461040000002},{"$f":"IFERROR(INDEX('Data Annex'!$K$1:$AN$4997,MATCH(AC$46&\"|\"&$B79,'Data Annex'!$K$1:$K$4997,0),MATCH(AC$47,'Data Annex'!$K$1:$AN$1,0)),\"\")","v":0.64062112059999998}]
[29,"SI",null,"SI",null,{"$f":"IFERROR(INDEX('Data Annex'!$K$1:$AN$4997,MATCH(F$46&\"|\"&$B80,'Data Annex'!$K$1:$K$4997,0),MATCH(F$47,'Data Annex'!$K$1:$AN$1,0)),\"\")","v":23.580105434},{"$f":"IFERROR(INDEX('Data Annex'!$K$1:$AN$4997,MATCH(G$46&\"|\"&$B80,'Data Annex'!$K$1:$K$4997,0),MATCH(G$47,'Data Annex'!$K$1:$AN$1,0)),\"\")","v":24.269450411000001},{"$f":"IFERROR(INDEX('Data Annex'!$K$1:$AN$4997,MATCH(H$46&\"|\"&$B80,'Data Annex'!$K$1:$K$4997,0),MATCH(H$47,'Data Annex'!$K$1:$AN$1,0)),\"\")","v":24.458583041000001},{"$f":"IFERROR(INDEX('Data Annex'!$K$1:$AN$4997,MATCH(I$46&\"|\"&$B80,'Data Annex'!$K$1:$K$4997,0),MATCH(I$47,'Data Annex'!$K$1:$AN$1,0)),\"\")","v":28.880182374},null,"SI",{"$f":"IFERROR(INDEX('Data Annex'!$K$1:$AN$4997,MATCH(L$46&\"|\"&$B80,'Data Annex'!$K$1:$K$4997,0),MATCH(L$47,'Data Annex'!$K$1:$AN$1,0)),\"\")","v":0},{"$f":"IFERROR(INDEX('Data Annex'!$K$1:$AN$4997,MATCH(M$46&\"|\"&$B80,'Data Annex'!$K$1:$K$4997,0),MATCH(M$47,'Data Annex'!$K$1:$AN$1,0)),\"\")","v":0},{"$f":"IFERROR(INDEX('Data Annex'!$K$1:$AN$4997,MATCH(N$46&\"|\"&$B80,'Data Annex'!$K$1:$K$4997,0),MATCH(N$47,'Data Annex'!$K$1:$AN$1,0)),\"\")","v":0},{"$f":"IFERROR(INDEX('Data Annex'!$K$1:$AN$4997,MATCH(O$46&\"|\"&$B80,'Data Annex'!$K$1:$K$4997,0),MATCH(O$47,'Data Annex'!$K$1:$AN$1,0)),\"\")","v":0},null,"SI",{"$f":"IFERROR(INDEX('Data Annex'!$K$1:$AN$4997,MATCH(R$46&\"|\"&$B80,'Data Annex'!$K$1:$K$4997,0),MATCH(R$47,'Data Annex'!$K$1:$AN$1,0)),\"\")","v":2.6069262541999998},{"$f":"IFERROR(INDEX('Data Annex'!$K$1:$AN$4997,MATCH(S$46&\"|\"&$B80,'Data Annex'!$K$1:$K$4997,0),MATCH(S$47,'Data Annex'!$K$1:$AN$1,0)),\"\")","v":3.2178018559999999},{"$f":"IFERROR(INDEX('Data Annex'!$K$1:$AN$4997,MATCH(T$46&\"|\"&$B80,'Data Annex'!$K$1:$K$4997,0),MATCH(T$47,'Data Annex'!$K$1:$AN$1,0)),\"\")","v":3.2391852837999999},{"$f":"IFERROR(INDEX('Data Annex'!$K$1:$AN$4997,MATCH(U$46&\"|\"&$B80,'Data Annex'!$K$1:$K$4997,0),MATCH(U$47,'Data Annex'!$K$1:$AN$1,0)),\"\")","v":3.4693948035000002},{"$f":"IFERROR(INDEX('Data Annex'!$K$1:$AN$4997,MATCH(V$46&\"|\"&$B80,'Data Annex'!$K$1:$K$4997,0),MATCH(V$47,'Data Annex'!$K$1:$AN$1,0)),\"\")","v":0.40856569370000001},{"$f":"IFERROR(INDEX('Data Annex'!$K$1:$AN$4997,MATCH(W$46&\"|\"&$B80,'Data Annex'!$K$1:$K$4997,0),MATCH(W$47,'Data Annex'!$K$1:$AN$1,0)),\"\")","v":0.34664218029999999},{"$f":"IFERROR(INDEX('Data Annex'!$K$1:$AN$4997,MATCH(X$46&\"|\"&$B80,'Data Annex'!$K$1:$K$4997,0),MATCH(X$47,'Data Annex'!$K$1:$AN$1,0)),\"\")","v":0.32731835440000001},{"$f":"IFERROR(INDEX('Data Annex'!$K$1:$AN$4997,MATCH(Y$46&\"|\"&$B80,'Data Annex'!$K$1:$K$4997,0),MATCH(Y$47,'Data Annex'!$K$1:$AN$1,0)),\"\")","v":0.34603817320000002},{"$f":"IFERROR(INDEX('Data Annex'!$K$1:$AN$4997,MATCH(Z$46&\"|\"&$B80,'Data Annex'!$K$1:$K$4997,0),MATCH(Z$47,'Data Annex'!$K$1:$AN$1,0)),\"\")","v":0.5390160866},{"$f":"IFERROR(INDEX('Data Annex'!$K$1:$AN$4997,MATCH(AA$46&\"|\"&$B80,'Data Annex'!$K$1:$K$4997,0),MATCH(AA$47,'Data Annex'!$K$1:$AN$1,0)),\"\")","v":0.56509146040000002},{"$f":"IFERROR(INDEX('Data Annex'!$K$1:$AN$4997,MATCH(AB$46&\"|\"&$B80,'Data Annex'!$K$1:$K$4997,0),MATCH(AB$47,'Data Annex'!$K$1:$AN$1,0)),\"\")","v":0.59032316029999998},{"$f":"IFERROR(INDEX('Data Annex'!$K$1:$AN$4997,MATCH(AC$46&\"|\"&$B80,'Data Annex'!$K$1:$K$4997,0),MATCH(AC$47,'Data Annex'!$K$1:$AN$1,0)),\"\")","v":0.58116655589999999}]
[30,"SK",null,"SK",null,{"$f":"IFERROR(INDEX('Data Annex'!$K$1:$AN$4997,MATCH(F$46&\"|\"&$B81,'Data Annex'!$K$1:$K$4997,0),MATCH(F$47,'Data Annex'!$K$1:$AN$1,0)),\"\")","v":46.036548711000002},{"$f":"IFERROR(INDEX('Data Annex'!$K$1:$AN$4997,MATCH(G$46&\"|\"&$B81,'Data Annex'!$K$1:$K$4997,0),MATCH(G$47,'Data Annex'!$K$1:$AN$1,0)),\"\")","v":48.135225650000002},{"$f":"IFERROR(INDEX('Data Annex'!$K$1:$AN$4997,MATCH(H$46&\"|\"&$B81,'Data Annex'!$K$1:$K$4997,0),MATCH(H$47,'Data Annex'!$K$1:$AN$1,0)),\"\")","v":49.396382954000003},{"$f":"IFERROR(INDEX('Data Annex'!$K$1:$AN$4997,MATCH(I$46&\"|\"&$B81,'Data Annex'!$K$1:$K$4997,0),MATCH(I$47,'Data Annex'!$K$1:$AN$1,0)),\"\")","v":50.756685675999996},null,"SK",{"$f":"IFERROR(INDEX('Data Annex'!$K$1:$AN$4997,MATCH(L$46&\"|\"&$B81,'Data Annex'!$K$1:$K$4997,0),MATCH(L$47,'Data Annex'!$K$1:$AN$1,0)),\"\")","v":0.95029920859999994},{"$f":"IFERROR(INDEX('Data Annex'!$K$1:$AN$4997,MATCH(M$46&\"|\"&$B81,'Data Annex'!$K$1:$K$4997,0),MATCH(M$47,'Data Annex'!$K$1:$AN$1,0)),\"\")","v":0.94990195430000002},{"$f":"IFERROR(INDEX('Data Annex'!$K$1:$AN$4997,MATCH(N$46&\"|\"&$B81,'Data Annex'!$K$1:$K$4997,0),MATCH(N$47,'Data Annex'!$K$1:$AN$1,0)),\"\")","v":0.94919933050000005},{"$f":"IFERROR(INDEX('Data Annex'!$K$1:$AN$4997,MATCH(O$46&\"|\"&$B81,'Data Annex'!$K$1:$K$4997,0),MATCH(O$47,'Data Annex'!$K$1:$AN$1,0)),\"\")","v":0.91527934970000002},null,"SK",{"$f":"IFERROR(INDEX('Data Annex'!$K$1:$AN$4997,MATCH(R$46&\"|\"&$B81,'Data Annex'!$K$1:$K$4997,0),MATCH(R$47,'Data Annex'!$K$1:$AN$1,0)),\"\")","v":8.1847780074000003},{"$f":"IFERROR(INDEX('Data Annex'!$K$1:$AN$4997,MATCH(S$46&\"|\"&$B81,'Data Annex'!$K$1:$K$4997,0),MATCH(S$47,'Data Annex'!$K$1:$AN$1,0)),\"\")","v":7.6981498795999999},{"$f":"IFERROR(INDEX('Data Annex'!$K$1:$AN$4997,MATCH(T$46&\"|\"&$B81,'Data Annex'!$K$1:$K$4997,0),MATCH(T$47,'Data Annex'!$K$1:$AN$1,0)),\"\")","v":7.7202089159999998},{"$f":"IFERROR(INDEX('Data Annex'!$K$1:$AN$4997,MATCH(U$46&\"|\"&$B81,'Data Annex'!$K$1:$K$4997,0),MATCH(U$47,'Data Annex'!$K$1:$AN$1,0)),\"\")","v":9.0032705000999993},{"$f":"IFERROR(INDEX('Data Annex'!$K$1:$AN$4997,MATCH(V$46&\"|\"&$B81,'Data Annex'!$K$1:$K$4997,0),MATCH(V$47,'Data Annex'!$K$1:$AN$1,0)),\"\")","v":0.31071057400000002},{"$f":"IFERROR(INDEX('Data Annex'!$K$1:$AN$4997,MATCH(W$46&\"|\"&$B81,'Data Annex'!$K$1:$K$4997,0),MATCH(W$47,'Data Annex'!$K$1:$AN$1,0)),\"\")","v":0.30441767580000001},{"$f":"IFERROR(INDEX('Data Annex'!$K$1:$AN$4997,MATCH(X$46&\"|\"&$B81,'Data Annex'!$K$1:$K$4997,0),MATCH(X$47,'Data Annex'!$K$1:$AN$1,0)),\"\")","v":0.29706854069999999},{"$f":"IFERROR(INDEX('Data Annex'!$K$1:$AN$4997,MATCH(Y$46&\"|\"&$B81,'Data Annex'!$K$1:$K$4997,0),MATCH(Y$47,'Data Annex'!$K$1:$AN$1,0)),\"\")","v":0.25248841929999999},{"$f":"IFERROR(INDEX('Data Annex'!$K$1:$AN$4997,MATCH(Z$46&\"|\"&$B81,'Data Annex'!$K$1:$K$4997,0),MATCH(Z$47,'Data Annex'!$K$1:$AN$1,0)),\"\")","v":0.62903177070000005},{"$f":"IFERROR(INDEX('Data Annex'!$K$1:$AN$4997,MATCH(AA$46&\"|\"&$B81,'Data Annex'!$K$1:$K$4997,0),MATCH(AA$47,'Data Annex'!$K$1:$AN$1,0)),\"\")","v":0.61654688540000002},{"$f":"IFERROR(INDEX('Data Annex'!$K$1:$AN$4997,MATCH(AB$46&\"|\"&$B81,'Data Annex'!$K$1:$K$4997,0),MATCH(AB$47,'Data Annex'!$K$1:$AN$1,0)),\"\")","v":0.63809497209999999},{"$f":"IFERROR(INDEX('Data Annex'!$K$1:$AN$4997,MATCH(AC$46&\"|\"&$B81,'Data Annex'!$K$1:$K$4997,0),MATCH(AC$47,'Data Annex'!$K$1:$AN$1,0)),\"\")","v":0.68332160060000002}]
[99,"EU",null,"EU/EEA",null,{"$f":"IFERROR(INDEX('Data Annex'!$K$1:$AN$4997,MATCH(F$46&\"|\"&$B82,'Data Annex'!$K$1:$K$4997,0),MATCH(F$47,'Data Annex'!$K$1:$AN$1,0)),\"\")","v":23943.561965000001},{"$f":"IFERROR(INDEX('Data Annex'!$K$1:$AN$4997,MATCH(G$46&\"|\"&$B82,'Data Annex'!$K$1:$K$4997,0),MATCH(G$47,'Data Annex'!$K$1:$AN$1,0)),\"\")","v":24441.031126999998},{"$f":"IFERROR(INDEX('Data Annex'!$K$1:$AN$4997,MATCH(H$46&\"|\"&$B82,'Data Annex'!$K$1:$K$4997,0),MATCH(H$47,'Data Annex'!$K$1:$AN$1,0)),\"\")","v":24369.165430000001},{"$f":"IFERROR(INDEX('Data Annex'!$K$1:$AN$4997,MATCH(I$46&\"|\"&$B82,'Data Annex'!$K$1:$K$4997,0),MATCH(I$47,'Data Annex'!$K$1:$AN$1,0)),\"\")","v":24005.121829},null,"EU / EEA",{"$f":"IFERROR(INDEX('Data Annex'!$K$1:$AN$4997,MATCH(L$46&\"|\"&$B82,'Data Annex'!$K$1:$K$4997,0),MATCH(L$47,'Data Annex'!$K$1:$AN$1,0)),\"\")","v":0.36920557430000001},{"$f":"IFERROR(INDEX('Data Annex'!$K$1:$AN$4997,MATCH(M$46&\"|\"&$B82,'Data Annex'!$K$1:$K$4997,0),MATCH(M$47,'Data Annex'!$K$1:$AN$1,0)),\"\")","v":0.3671460701},{"$f":"IFERROR(INDEX('Data Annex'!$K$1:$AN$4997,MATCH(N$46&\"|\"&$B82,'Data Annex'!$K$1:$K$4997,0),MATCH(N$47,'Data Annex'!$K$1:$AN$1,0)),\"\")","v":0.37067059590000001},{"$f":"IFERROR(INDEX('Data Annex'!$K$1:$AN$4997,MATCH(O$46&\"|\"&$B82,'Data Annex'!$K$1:$K$4997,0),MATCH(O$47,'Data Annex'!$K$1:$AN$1,0)),\"\")","v":0.37539334260000001},null,"EU / EEA",{"$f":"IFERROR(INDEX('Data Annex'!$K$1:$AN$4997,MATCH(R$46&\"|\"&$B82,'Data Annex'!$K$1:$K$4997,0),MATCH(R$47,'Data Annex'!$K$1:$AN$1,0)),\"\")","v":3807.3656105999999},{"$f":"IFERROR(INDEX('Data Annex'!$K$1:$AN$4997,MATCH(S$46&\"|\"&$B82,'Data Annex'!$K$1:$K$4997,0),MATCH(S$47,'Data Annex'!$K$1:$AN$1,0)),\"\")","v":4052.1018945999999},{"$f":"IFERROR(INDEX('Data Annex'!$K$1:$AN$4997,MATCH(T$46&\"|\"&$B82,'Data Annex'!$K$1:$K$4997,0),MATCH(T$47,'Data Annex'!$K$1:$AN$1,0)),\"\")","v":4112.1732849},{"$f":"IFERROR(INDEX('Data Annex'!$K$1:$AN$4997,MATCH(U$46&\"|\"&$B82,'Data Annex'!$K$1:$K$4997,0),MATCH(U$47,'Data Annex'!$K$1:$AN$1,0)),\"\")","v":4040.6207055},{"$f":"IFERROR(INDEX('Data Annex'!$K$1:$AN$4997,MATCH(V$46&\"|\"&$B82,'Data Annex'!$K$1:$K$4997,0),MATCH(V$47,'Data Annex'!$K$1:$AN$1,0)),\"\")","v":0.21871545370000001},{"$f":"IFERROR(INDEX('Data Annex'!$K$1:$AN$4997,MATCH(W$46&\"|\"&$B82,'Data Annex'!$K$1:$K$4997,0),MATCH(W$47,'Data Annex'!$K$1:$AN$1,0)),\"\")","v":0.20746881819999999},{"$f":"IFERROR(INDEX('Data Annex'!$K$1:$AN$4997,MATCH(X$46&\"|\"&$B82,'Data Annex'!$K$1:$K$4997,0),MATCH(X$47,'Data Annex'!$K$1:$AN$1,0)),\"\")","v":0.20720720379999999},{"$f":"IFERROR(INDEX('Data Annex'!$K$1:$AN$4997,MATCH(Y$46&\"|\"&$B82,'Data Annex'!$K$1:$K$4997,0),MATCH(Y$47,'Data Annex'!$K$1:$AN$1,0)),\"\")","v":0.20787740539999999},{"$f":"IFERROR(INDEX('Data Annex'!$K$1:$AN$4997,MATCH(Z$46&\"|\"&$B82,'Data Annex'!$K$1:$K$4997,0),MATCH(Z$47,'Data Annex'!$K$1:$AN$1,0)),\"\")","v":0.5788308781},{"$f":"IFERROR(INDEX('Data Annex'!$K$1:$AN$4997,MATCH(AA$46&\"|\"&$B82,'Data Annex'!$K$1:$K$4997,0),MATCH(AA$47,'Data Annex'!$K$1:$AN$1,0)),\"\")","v":0.59280167579999998},{"$f":"IFERROR(INDEX('Data Annex'!$K$1:$AN$4997,MATCH(AB$46&\"|\"&$B82,'Data Annex'!$K$1:$K$4997,0),MATCH(AB$47,'Data Annex'!$K$1:$AN$1,0)),\"\")","v":0.59664263989999999},{"$f":"IFERROR(INDEX('Data Annex'!$K$1:$AN$4997,MATCH(AC$46&\"|\"&$B82,'Data Annex'!$K$1:$K$4997,0),MATCH(AC$47,'Data Annex'!$K$1:$AN$1,0)),\"\")","v":0.60425323689999999}]
[12,"GB",null,"GB",null,{"$f":"IFERROR(INDEX('Data Annex'!$K$1:$AN$4997,MATCH(F$46&\"|\"&$B83,'Data Annex'!$K$1:$K$4997,0),MATCH(F$47,'Data Annex'!$K$1:$AN$1,0)),\"\")","v":7227.0707914000004},{"$f":"IFERROR(INDEX('Data Annex'!$K$1:$AN$4997,MATCH(G$46&\"|\"&$B83,'Data Annex'!$K$1:$K$4997,0),MATCH(G$47,'Data Annex'!$K$1:$AN$1,0)),\"\")","v":6911.8666992999997},{"$f":"IFERROR(INDEX('Data Annex'!$K$1:$AN$4997,MATCH(H$46&\"|\"&$B83,'Data Annex'!$K$1:$K$4997,0),MATCH(H$47,'Data Annex'!$K$1:$AN$1,0)),\"\")","v":6807.7901253},{"$f":"IFERROR(INDEX('Data Annex'!$K$1:$AN$4997,MATCH(I$46&\"|\"&$B83,'Data Annex'!$K$1:$K$4997,0),MATCH(I$47,'Data Annex'!$K$1:$AN$1,0)),\"\")","v":6751.0599193999997},null,"GB",{"$f":"IFERROR(INDEX('Data Annex'!$K$1:$AN$4997,MATCH(L$46&\"|\"&$B83,'Data Annex'!$K$1:$K$4997,0),MATCH(L$47,'Data Annex'!$K$1:$AN$1,0)),\"\")","v":0.15219651610000001},{"$f":"IFERROR(INDEX('Data Annex'!$K$1:$AN$4997,MATCH(M$46&\"|\"&$B83,'Data Annex'!$K$1:$K$4997,0),MATCH(M$47,'Data Annex'!$K$1:$AN$1,0)),\"\")","v":0.13863488660000001},{"$f":"IFERROR(INDEX('Data Annex'!$K$1:$AN$4997,MATCH(N$46&\"|\"&$B83,'Data Annex'!$K$1:$K$4997,0),MATCH(N$47,'Data Annex'!$K$1:$AN$1,0)),\"\")","v":0.12912387489999999},{"$f":"IFERROR(INDEX('Data Annex'!$K$1:$AN$4997,MATCH(O$46&\"|\"&$B83,'Data Annex'!$K$1:$K$4997,0),MATCH(O$47,'Data Annex'!$K$1:$AN$1,0)),\"\")","v":0.13459727060000001},null,"GB",{"$f":"IFERROR(INDEX('Data Annex'!$K$1:$AN$4997,MATCH(R$46&\"|\"&$B83,'Data Annex'!$K$1:$K$4997,0),MATCH(R$47,'Data Annex'!$K$1:$AN$1,0)),\"\")","v":1283.4794431},{"$f":"IFERROR(INDEX('Data Annex'!$K$1:$AN$4997,MATCH(S$46&\"|\"&$B83,'Data Annex'!$K$1:$K$4997,0),MATCH(S$47,'Data Annex'!$K$1:$AN$1,0)),\"\")","v":1319.0440329999999},{"$f":"IFERROR(INDEX('Data Annex'!$K$1:$AN$4997,MATCH(T$46&\"|\"&$B83,'Data Annex'!$K$1:$K$4997,0),MATCH(T$47,'Data Annex'!$K$1:$AN$1,0)),\"\")","v":1324.9333528},{"$f":"IFERROR(INDEX('Data Annex'!$K$1:$AN$4997,MATCH(U$46&\"|\"&$B83,'Data Annex'!$K$1:$K$4997,0),MATCH(U$47,'Data Annex'!$K$1:$AN$1,0)),\"\")","v":1332.1337515},{"$f":"IFERROR(INDEX('Data Annex'!$K$1:$AN$4997,MATCH(V$46&\"|\"&$B83,'Data Annex'!$K$1:$K$4997,0),MATCH(V$47,'Data Annex'!$K$1:$AN$1,0)),\"\")","v":0.46443932929999998},{"$f":"IFERROR(INDEX('Data Annex'!$K$1:$AN$4997,MATCH(W$46&\"|\"&$B83,'Data Annex'!$K$1:$K$4997,0),MATCH(W$47,'Data Annex'!$K$1:$AN$1,0)),\"\")","v":0.44239842709999999},{"$f":"IFERROR(INDEX('Data Annex'!$K$1:$AN$4997,MATCH(X$46&\"|\"&$B83,'Data Annex'!$K$1:$K$4997,0),MATCH(X$47,'Data Annex'!$K$1:$AN$1,0)),\"\")","v":0.43437178990000003},{"$f":"IFERROR(INDEX('Data Annex'!$K$1:$AN$4997,MATCH(Y$46&\"|\"&$B83,'Data Annex'!$K$1:$K$4997,0),MATCH(Y$47,'Data Annex'!$K$1:$AN$1,0)),\"\")","v":0.43041950080000002},{"$f":"IFERROR(INDEX('Data Annex'!$K$1:$AN$4997,MATCH(Z$46&\"|\"&$B83,'Data Annex'!$K$1:$K$4997,0),MATCH(Z$47,'Data Annex'!$K$1:$AN$1,0)),\"\")","v":0.41348655400000001},{"$f":"IFERROR(INDEX('Data Annex'!$K$1:$AN$4997,MATCH(AA$46&\"|\"&$B83,'Data Annex'!$K$1:$K$4997,0),MATCH(AA$47,'Data Annex'!$K$1:$AN$1,0)),\"\")","v":0.42714511550000001},{"$f":"IFERROR(INDEX('Data Annex'!$K$1:$AN$4997,MATCH(AB$46&\"|\"&$B83,'Data Annex'!$K$1:$K$4997,0),MATCH(AB$47,'Data Annex'!$K$1:$AN$1,0)),\"\")","v":0.43445709809999999},{"$f":"IFERROR(INDEX('Data Annex'!$K$1:$AN$4997,MATCH(AC$46&\"|\"&$B83,'Data Annex'!$K$1:$K$4997,0),MATCH(AC$47,'Data Annex'!$K$1:$AN$1,0)),\"\")","v":0.43222855310000002}]
[]
[null,null,null,"Individual country data includes subsidiaries, which are excluded from EU aggregate. For example, at country level the subsidiary in country X of a bank domiciled in country Y is included both in data for countries X and Y (for the latter as part of the consolidated entity). In the EU aggregate, only the consolidated entity domiciled in country Y is considered.  The sample of banks is unbalanced and reviewed annually.\nAs of Q1 2020 onwards UK banks are removed from the EU/EEA aggregate and subsidiaries of UK banks in EU member states are used instead."]

{"sheet":"Own funds and RWA","index":11,"n_rows":86,"n_cols":28,"rows_kept":86,"cut":false,"hidden":true,"merged":[[85,3,85,27],[9,24,11,27],[47,3,48,27],[49,3,50,3],[50,4,50,7],[50,8,50,11],[50,12,50,15],[50,16,50,19],[50,20,50,23],[50,24,50,27],[2,3,2,27],[3,3,3,27],[5,3,5,27],[6,3,7,27],[9,3,11,3],[9,4,11,7],[9,8,11,11],[9,12,11,15],[9,16,11,19],[9,20,11,23]]}
[null,null,null,null,"T30_1","T30_1","T30_1","T30_1","T30_2","T30_2","T30_2","T30_2","T30_3","T30_3","T30_3","T30_3","T30_4","T30_4","T30_4","T30_4",null,null,null,null,"T30_6","T30_6","T30_6","T30_6"]
[{"$f":"'Reference Dates'!$C$8","v":"202012"},null,null,null,{"$f":"TEXT(E52,\"YYYYMM\")+0","v":202003},{"$f":"TEXT(F52,\"YYYYMM\")+0","v":202006},{"$f":"TEXT(G52,\"YYYYMM\")+0","v":202009},{"$f":"TEXT(H52,\"YYYYMM\")+0","v":202012},{"$f":"TEXT(I52,\"YYYYMM\")+0","v":202003},202006,202009,202012,202003,202006,202009,202012,202003,202006,202009,202012,null,null,null,null,202003,{"$f":"TEXT(Z52,\"YYYYMM\")+0","v":202006},202009,202012]
[{"$f":"DATE(LEFT(A2,4),RIGHT(A2,2),1)","v":"2020-12-01"},null,null,"Statistical Annex"]
[null,null,null," Composition of own funds and risk-weighted assets"]
[]
[]
[null,null,null,"Composition of own funds (Tier 1 capital)"]
[]
[]
[null,null,null,"Volumes bn EUR; %","Own funds (Tier 1 capital) volume",null,null,null,"Capital instruments eligible as CET1 Capital",null,null,null,"Retained earnings",null,null,null,"Accumulated other comprehensive income",null,null,null,"Other CET1 components",null,null,null,"Additional Tier 1 capital"]
[]
[]
["T2_1",null,null,null,{"$f":"EOMONTH($A$3,-9)","v":"2020-03-31"},{"$f":"EOMONTH($A$3,-6)","v":"2020-06-30"},{"$f":"EOMONTH($A$3,-3)","v":"2020-09-30"},{"$f":"EOMONTH($A$3,0)","v":"2020-12-31"},{"$f":"EOMONTH($A$3,-9)","v":"2020-03-31"},{"$f":"EOMONTH($A$3,-6)","v":"2020-06-30"},{"$f":"EOMONTH($A$3,-3)","v":"2020-09-30"},{"$f":"EOMONTH($A$3,0)","v":"2020-12-31"},{"$f":"EOMONTH($A$3,-9)","v":"2020-03-31"},{"$f":"EOMONTH($A$3,-6)","v":"2020-06-30"},{"$f":"EOMONTH($A$3,-3)","v":"2020-09-30"},{"$f":"EOMONTH($A$3,0)","v":"2020-12-31"},{"$f":"EOMONTH($A$3,-9)","v":"2020-03-31"},{"$f":"EOMONTH($A$3,-6)","v":"2020-06-30"},{"$f":"EOMONTH($A$3,-3)","v":"2020-09-30"},{"$f":"EOMONTH($A$3,0)","v":"2020-12-31"},{"$f":"EOMONTH($A$3,-9)","v":"2020-03-31"},{"$f":"EOMONTH($A$3,-6)","v":"2020-06-30"},{"$f":"EOMONTH($A$3,-3)","v":"2020-09-30"},{"$f":"EOMONTH($A$3,0)","v":"2020-12-31"},{"$f":"EOMONTH($A$3,-9)","v":"2020-03-31"},{"$f":"EOMONTH($A$3,-6)","v":"2020-06-30"},{"$f":"EOMONTH($A$3,-3)","v":"2020-09-30"},{"$f":"EOMONTH($A$3,0)","v":"2020-12-31"}]
[1,"AT",null,"AT",{"$f":"IFERROR(INDEX('Data Annex'!$K$1:$AN$4997,MATCH(E$1&\"|\"&$B14,'Data Annex'!$K$1:$K$4997,0),MATCH(E$2,'Data Annex'!$K$1:$AN$1,0)),\"\")","v":45.561074056999999},{"$f":"IFERROR(INDEX('Data Annex'!$K$1:$AN$4997,MATCH(F$1&\"|\"&$B14,'Data Annex'!$K$1:$K$4997,0),MATCH(F$2,'Data Annex'!$K$1:$AN$1,0)),\"\")","v":46.808055211999999},{"$f":"IFERROR(INDEX('Data Annex'!$K$1:$AN$4997,MATCH(G$1&\"|\"&$B14,'Data Annex'!$K$1:$K$4997,0),MATCH(G$2,'Data Annex'!$K$1:$AN$1,0)),\"\")","v":46.995034511},{"$f":"IFERROR(INDEX('Data Annex'!$K$1:$AN$4997,MATCH(H$1&\"|\"&$B14,'Data Annex'!$K$1:$K$4997,0),MATCH(H$2,'Data Annex'!$K$1:$AN$1,0)),\"\")","v":49.553154587000002},{"$f":"IFERROR(INDEX('Data Annex'!$K$1:$AN$4997,MATCH(I$1&\"|\"&$B14,'Data Annex'!$K$1:$K$4997,0),MATCH(I$2,'Data Annex'!$K$1:$AN$1,0)),\"\")","v":0.41714960249999999},{"$f":"IFERROR(INDEX('Data Annex'!$K$1:$AN$4997,MATCH(J$1&\"|\"&$B14,'Data Annex'!$K$1:$K$4997,0),MATCH(J$2,'Data Annex'!$K$1:$AN$1,0)),\"\")","v":0.40576742259999998},{"$f":"IFERROR(INDEX('Data Annex'!$K$1:$AN$4997,MATCH(K$1&\"|\"&$B14,'Data Annex'!$K$1:$K$4997,0),MATCH(K$2,'Data Annex'!$K$1:$AN$1,0)),\"\")","v":0.4042450541},{"$f":"IFERROR(INDEX('Data Annex'!$K$1:$AN$4997,MATCH(L$1&\"|\"&$B14,'Data Annex'!$K$1:$K$4997,0),MATCH(L$2,'Data Annex'!$K$1:$AN$1,0)),\"\")","v":0.38290872679999999},{"$f":"IFERROR(INDEX('Data Annex'!$K$1:$AN$4997,MATCH(M$1&\"|\"&$B14,'Data Annex'!$K$1:$K$4997,0),MATCH(M$2,'Data Annex'!$K$1:$AN$1,0)),\"\")","v":0.61536892529999998},{"$f":"IFERROR(INDEX('Data Annex'!$K$1:$AN$4997,MATCH(N$1&\"|\"&$B14,'Data Annex'!$K$1:$K$4997,0),MATCH(N$2,'Data Annex'!$K$1:$AN$1,0)),\"\")","v":0.60673773009999998},{"$f":"IFERROR(INDEX('Data Annex'!$K$1:$AN$4997,MATCH(O$1&\"|\"&$B14,'Data Annex'!$K$1:$K$4997,0),MATCH(O$2,'Data Annex'!$K$1:$AN$1,0)),\"\")","v":0.6225845632},{"$f":"IFERROR(INDEX('Data Annex'!$K$1:$AN$4997,MATCH(P$1&\"|\"&$B14,'Data Annex'!$K$1:$K$4997,0),MATCH(P$2,'Data Annex'!$K$1:$AN$1,0)),\"\")","v":0.60559876489999998},{"$f":"IFERROR(INDEX('Data Annex'!$K$1:$AN$4997,MATCH(Q$1&\"|\"&$B14,'Data Annex'!$K$1:$K$4997,0),MATCH(Q$2,'Data Annex'!$K$1:$AN$1,0)),\"\")","v":-0.172445826},{"$f":"IFERROR(INDEX('Data Annex'!$K$1:$AN$4997,MATCH(R$1&\"|\"&$B14,'Data Annex'!$K$1:$K$4997,0),MATCH(R$2,'Data Annex'!$K$1:$AN$1,0)),\"\")","v":-0.15832599},{"$f":"IFERROR(INDEX('Data Annex'!$K$1:$AN$4997,MATCH(S$1&\"|\"&$B14,'Data Annex'!$K$1:$K$4997,0),MATCH(S$2,'Data Annex'!$K$1:$AN$1,0)),\"\")","v":-0.17087794100000001},{"$f":"IFERROR(INDEX('Data Annex'!$K$1:$AN$4997,MATCH(T$1&\"|\"&$B14,'Data Annex'!$K$1:$K$4997,0),MATCH(T$2,'Data Annex'!$K$1:$AN$1,0)),\"\")","v":-0.16010355900000001},{"$f":"1-I14-M14-Q14-Y14","v":5.7500492700000017E-2},{"$f":"1-J14-N14-R14-Z14","v":6.5710738400000038E-2},{"$f":"1-K14-O14-S14-AA14","v":5.0315051900000005E-2},{"$f":"1-L14-P14-T14-AB14","v":6.7421133400000041E-2},{"$f":"IFERROR(INDEX('Data Annex'!$K$1:$AN$4997,MATCH(Y$1&\"|\"&$B14,'Data Annex'!$K$1:$K$4997,0),MATCH(Y$2,'Data Annex'!$K$1:$AN$1,0)),\"\")","v":8.2426805500000005E-2},{"$f":"IFERROR(INDEX('Data Annex'!$K$1:$AN$4997,MATCH(Z$1&\"|\"&$B14,'Data Annex'!$K$1:$K$4997,0),MATCH(Z$2,'Data Annex'!$K$1:$AN$1,0)),\"\")","v":8.0110098899999996E-2},{"$f":"IFERROR(INDEX('Data Annex'!$K$1:$AN$4997,MATCH(AA$1&\"|\"&$B14,'Data Annex'!$K$1:$K$4997,0),MATCH(AA$2,'Data Annex'!$K$1:$AN$1,0)),\"\")","v":9.3733271800000004E-2},{"$f":"IFERROR(INDEX('Data Annex'!$K$1:$AN$4997,MATCH(AB$1&\"|\"&$B14,'Data Annex'!$K$1:$K$4997,0),MATCH(AB$2,'Data Annex'!$K$1:$AN$1,0)),\"\")","v":0.1041749339}]
[2,"BE",null,"BE",{"$f":"IFERROR(INDEX('Data Annex'!$K$1:$AN$4997,MATCH(E$1&\"|\"&$B15,'Data Annex'!$K$1:$K$4997,0),MATCH(E$2,'Data Annex'!$K$1:$AN$1,0)),\"\")","v":72.024031480999994},{"$f":"IFERROR(INDEX('Data Annex'!$K$1:$AN$4997,MATCH(F$1&\"|\"&$B15,'Data Annex'!$K$1:$K$4997,0),MATCH(F$2,'Data Annex'!$K$1:$AN$1,0)),\"\")","v":71.733186047000004},{"$f":"IFERROR(INDEX('Data Annex'!$K$1:$AN$4997,MATCH(G$1&\"|\"&$B15,'Data Annex'!$K$1:$K$4997,0),MATCH(G$2,'Data Annex'!$K$1:$AN$1,0)),\"\")","v":72.053862159000005},{"$f":"IFERROR(INDEX('Data Annex'!$K$1:$AN$4997,MATCH(H$1&\"|\"&$B15,'Data Annex'!$K$1:$K$4997,0),MATCH(H$2,'Data Annex'!$K$1:$AN$1,0)),\"\")","v":76.612204082000005},{"$f":"IFERROR(INDEX('Data Annex'!$K$1:$AN$4997,MATCH(I$1&\"|\"&$B15,'Data Annex'!$K$1:$K$4997,0),MATCH(I$2,'Data Annex'!$K$1:$AN$1,0)),\"\")","v":0.49552371360000003},{"$f":"IFERROR(INDEX('Data Annex'!$K$1:$AN$4997,MATCH(J$1&\"|\"&$B15,'Data Annex'!$K$1:$K$4997,0),MATCH(J$2,'Data Annex'!$K$1:$AN$1,0)),\"\")","v":0.49710484269999999},{"$f":"IFERROR(INDEX('Data Annex'!$K$1:$AN$4997,MATCH(K$1&\"|\"&$B15,'Data Annex'!$K$1:$K$4997,0),MATCH(K$2,'Data Annex'!$K$1:$AN$1,0)),\"\")","v":0.49489609299999998},{"$f":"IFERROR(INDEX('Data Annex'!$K$1:$AN$4997,MATCH(L$1&\"|\"&$B15,'Data Annex'!$K$1:$K$4997,0),MATCH(L$2,'Data Annex'!$K$1:$AN$1,0)),\"\")","v":0.46567937339999999},{"$f":"IFERROR(INDEX('Data Annex'!$K$1:$AN$4997,MATCH(M$1&\"|\"&$B15,'Data Annex'!$K$1:$K$4997,0),MATCH(M$2,'Data Annex'!$K$1:$AN$1,0)),\"\")","v":0.65781190229999997},{"$f":"IFERROR(INDEX('Data Annex'!$K$1:$AN$4997,MATCH(N$1&\"|\"&$B15,'Data Annex'!$K$1:$K$4997,0),MATCH(N$2,'Data Annex'!$K$1:$AN$1,0)),\"\")","v":0.65037928739999995},{"$f":"IFERROR(INDEX('Data Annex'!$K$1:$AN$4997,MATCH(O$1&\"|\"&$B15,'Data Annex'!$K$1:$K$4997,0),MATCH(O$2,'Data Annex'!$K$1:$AN$1,0)),\"\")","v":0.65103534169999999},{"$f":"IFERROR(INDEX('Data Annex'!$K$1:$AN$4997,MATCH(P$1&\"|\"&$B15,'Data Annex'!$K$1:$K$4997,0),MATCH(P$2,'Data Annex'!$K$1:$AN$1,0)),\"\")","v":0.64026081739999996},{"$f":"IFERROR(INDEX('Data Annex'!$K$1:$AN$4997,MATCH(Q$1&\"|\"&$B15,'Data Annex'!$K$1:$K$4997,0),MATCH(Q$2,'Data Annex'!$K$1:$AN$1,0)),\"\")","v":-4.1077823999999999E-2},{"$f":"IFERROR(INDEX('Data Annex'!$K$1:$AN$4997,MATCH(R$1&\"|\"&$B15,'Data Annex'!$K$1:$K$4997,0),MATCH(R$2,'Data Annex'!$K$1:$AN$1,0)),\"\")","v":-3.8729155000000001E-2},{"$f":"IFERROR(INDEX('Data Annex'!$K$1:$AN$4997,MATCH(S$1&\"|\"&$B15,'Data Annex'!$K$1:$K$4997,0),MATCH(S$2,'Data Annex'!$K$1:$AN$1,0)),\"\")","v":-4.1121316999999998E-2},{"$f":"IFERROR(INDEX('Data Annex'!$K$1:$AN$4997,MATCH(T$1&\"|\"&$B15,'Data Annex'!$K$1:$K$4997,0),MATCH(T$2,'Data Annex'!$K$1:$AN$1,0)),\"\")","v":-3.0474983000000001E-2},{"$f":"1-I15-M15-Q15-Y15","v":-0.1722476634},-0.16902777509999994,-0.16435388619999991,-0.13119011069999995,{"$f":"IFERROR(INDEX('Data Annex'!$K$1:$AN$4997,MATCH(Y$1&\"|\"&$B15,'Data Annex'!$K$1:$K$4997,0),MATCH(Y$2,'Data Annex'!$K$1:$AN$1,0)),\"\")","v":5.99898715E-2},{"$f":"IFERROR(INDEX('Data Annex'!$K$1:$AN$4997,MATCH(Z$1&\"|\"&$B15,'Data Annex'!$K$1:$K$4997,0),MATCH(Z$2,'Data Annex'!$K$1:$AN$1,0)),\"\")","v":6.0272800000000001E-2},{"$f":"IFERROR(INDEX('Data Annex'!$K$1:$AN$4997,MATCH(AA$1&\"|\"&$B15,'Data Annex'!$K$1:$K$4997,0),MATCH(AA$2,'Data Annex'!$K$1:$AN$1,0)),\"\")","v":5.9543768499999997E-2},{"$f":"IFERROR(INDEX('Data Annex'!$K$1:$AN$4997,MATCH(AB$1&\"|\"&$B15,'Data Annex'!$K$1:$K$4997,0),MATCH(AB$2,'Data Annex'!$K$1:$AN$1,0)),\"\")","v":5.5724902899999998E-2}]
[3,"BG",null,"BG",{"$f":"IFERROR(INDEX('Data Annex'!$K$1:$AN$4997,MATCH(E$1&\"|\"&$B16,'Data Annex'!$K$1:$K$4997,0),MATCH(E$2,'Data Annex'!$K$1:$AN$1,0)),\"\")","v":4.1611146334000004},{"$f":"IFERROR(INDEX('Data Annex'!$K$1:$AN$4997,MATCH(F$1&\"|\"&$B16,'Data Annex'!$K$1:$K$4997,0),MATCH(F$2,'Data Annex'!$K$1:$AN$1,0)),\"\")","v":4.4703471725000004},{"$f":"IFERROR(INDEX('Data Annex'!$K$1:$AN$4997,MATCH(G$1&\"|\"&$B16,'Data Annex'!$K$1:$K$4997,0),MATCH(G$2,'Data Annex'!$K$1:$AN$1,0)),\"\")","v":4.6292335617000004},{"$f":"IFERROR(INDEX('Data Annex'!$K$1:$AN$4997,MATCH(H$1&\"|\"&$B16,'Data Annex'!$K$1:$K$4997,0),MATCH(H$2,'Data Annex'!$K$1:$AN$1,0)),\"\")","v":4.6424424787999996},{"$f":"IFERROR(INDEX('Data Annex'!$K$1:$AN$4997,MATCH(I$1&\"|\"&$B16,'Data Annex'!$K$1:$K$4997,0),MATCH(I$2,'Data Annex'!$K$1:$AN$1,0)),\"\")","v":0.26100216409999999},{"$f":"IFERROR(INDEX('Data Annex'!$K$1:$AN$4997,MATCH(J$1&\"|\"&$B16,'Data Annex'!$K$1:$K$4997,0),MATCH(J$2,'Data Annex'!$K$1:$AN$1,0)),\"\")","v":0.2430804617},{"$f":"IFERROR(INDEX('Data Annex'!$K$1:$AN$4997,MATCH(K$1&\"|\"&$B16,'Data Annex'!$K$1:$K$4997,0),MATCH(K$2,'Data Annex'!$K$1:$AN$1,0)),\"\")","v":0.25632352190000002},{"$f":"IFERROR(INDEX('Data Annex'!$K$1:$AN$4997,MATCH(L$1&\"|\"&$B16,'Data Annex'!$K$1:$K$4997,0),MATCH(L$2,'Data Annex'!$K$1:$AN$1,0)),\"\")","v":0.25522845550000001},{"$f":"IFERROR(INDEX('Data Annex'!$K$1:$AN$4997,MATCH(M$1&\"|\"&$B16,'Data Annex'!$K$1:$K$4997,0),MATCH(M$2,'Data Annex'!$K$1:$AN$1,0)),\"\")","v":0.32735944620000001},{"$f":"IFERROR(INDEX('Data Annex'!$K$1:$AN$4997,MATCH(N$1&\"|\"&$B16,'Data Annex'!$K$1:$K$4997,0),MATCH(N$2,'Data Annex'!$K$1:$AN$1,0)),\"\")","v":0.37310131810000002},{"$f":"IFERROR(INDEX('Data Annex'!$K$1:$AN$4997,MATCH(O$1&\"|\"&$B16,'Data Annex'!$K$1:$K$4997,0),MATCH(O$2,'Data Annex'!$K$1:$AN$1,0)),\"\")","v":0.34465672359999999},{"$f":"IFERROR(INDEX('Data Annex'!$K$1:$AN$4997,MATCH(P$1&\"|\"&$B16,'Data Annex'!$K$1:$K$4997,0),MATCH(P$2,'Data Annex'!$K$1:$AN$1,0)),\"\")","v":0.34372234559999998},{"$f":"IFERROR(INDEX('Data Annex'!$K$1:$AN$4997,MATCH(Q$1&\"|\"&$B16,'Data Annex'!$K$1:$K$4997,0),MATCH(Q$2,'Data Annex'!$K$1:$AN$1,0)),\"\")","v":4.4489591699999997E-2},{"$f":"IFERROR(INDEX('Data Annex'!$K$1:$AN$4997,MATCH(R$1&\"|\"&$B16,'Data Annex'!$K$1:$K$4997,0),MATCH(R$2,'Data Annex'!$K$1:$AN$1,0)),\"\")","v":4.1377176600000003E-2},{"$f":"IFERROR(INDEX('Data Annex'!$K$1:$AN$4997,MATCH(S$1&\"|\"&$B16,'Data Annex'!$K$1:$K$4997,0),MATCH(S$2,'Data Annex'!$K$1:$AN$1,0)),\"\")","v":4.3367383299999999E-2},{"$f":"IFERROR(INDEX('Data Annex'!$K$1:$AN$4997,MATCH(T$1&\"|\"&$B16,'Data Annex'!$K$1:$K$4997,0),MATCH(T$2,'Data Annex'!$K$1:$AN$1,0)),\"\")","v":4.5562463599999999E-2},0.33590667740000002,0.31336007069999999,0.32756952690000002,0.32748379380000009,{"$f":"IFERROR(INDEX('Data Annex'!$K$1:$AN$4997,MATCH(Y$1&\"|\"&$B16,'Data Annex'!$K$1:$K$4997,0),MATCH(Y$2,'Data Annex'!$K$1:$AN$1,0)),\"\")","v":3.1242120599999999E-2},{"$f":"IFERROR(INDEX('Data Annex'!$K$1:$AN$4997,MATCH(Z$1&\"|\"&$B16,'Data Annex'!$K$1:$K$4997,0),MATCH(Z$2,'Data Annex'!$K$1:$AN$1,0)),\"\")","v":2.9080972900000002E-2},{"$f":"IFERROR(INDEX('Data Annex'!$K$1:$AN$4997,MATCH(AA$1&\"|\"&$B16,'Data Annex'!$K$1:$K$4997,0),MATCH(AA$2,'Data Annex'!$K$1:$AN$1,0)),\"\")","v":2.80828443E-2},{"$f":"IFERROR(INDEX('Data Annex'!$K$1:$AN$4997,MATCH(AB$1&\"|\"&$B16,'Data Annex'!$K$1:$K$4997,0),MATCH(AB$2,'Data Annex'!$K$1:$AN$1,0)),\"\")","v":2.80029415E-2}]
[4,"CY",null,"CY",{"$f":"IFERROR(INDEX('Data Annex'!$K$1:$AN$4997,MATCH(E$1&\"|\"&$B17,'Data Annex'!$K$1:$K$4997,0),MATCH(E$2,'Data Annex'!$K$1:$AN$1,0)),\"\")","v":3.6301296550000002},{"$f":"IFERROR(INDEX('Data Annex'!$K$1:$AN$4997,MATCH(F$1&\"|\"&$B17,'Data Annex'!$K$1:$K$4997,0),MATCH(F$2,'Data Annex'!$K$1:$AN$1,0)),\"\")","v":3.5441530640000001},{"$f":"IFERROR(INDEX('Data Annex'!$K$1:$AN$4997,MATCH(G$1&\"|\"&$B17,'Data Annex'!$K$1:$K$4997,0),MATCH(G$2,'Data Annex'!$K$1:$AN$1,0)),\"\")","v":3.5527456831999999},{"$f":"IFERROR(INDEX('Data Annex'!$K$1:$AN$4997,MATCH(H$1&\"|\"&$B17,'Data Annex'!$K$1:$K$4997,0),MATCH(H$2,'Data Annex'!$K$1:$AN$1,0)),\"\")","v":3.5944646229999999},{"$f":"IFERROR(INDEX('Data Annex'!$K$1:$AN$4997,MATCH(I$1&\"|\"&$B17,'Data Annex'!$K$1:$K$4997,0),MATCH(I$2,'Data Annex'!$K$1:$AN$1,0)),\"\")","v":0.61647351409999995},{"$f":"IFERROR(INDEX('Data Annex'!$K$1:$AN$4997,MATCH(J$1&\"|\"&$B17,'Data Annex'!$K$1:$K$4997,0),MATCH(J$2,'Data Annex'!$K$1:$AN$1,0)),\"\")","v":0.6314282926},{"$f":"IFERROR(INDEX('Data Annex'!$K$1:$AN$4997,MATCH(K$1&\"|\"&$B17,'Data Annex'!$K$1:$K$4997,0),MATCH(K$2,'Data Annex'!$K$1:$AN$1,0)),\"\")","v":0.62990112929999997},{"$f":"IFERROR(INDEX('Data Annex'!$K$1:$AN$4997,MATCH(L$1&\"|\"&$B17,'Data Annex'!$K$1:$K$4997,0),MATCH(L$2,'Data Annex'!$K$1:$AN$1,0)),\"\")","v":0.42784633579999998},{"$f":"IFERROR(INDEX('Data Annex'!$K$1:$AN$4997,MATCH(M$1&\"|\"&$B17,'Data Annex'!$K$1:$K$4997,0),MATCH(M$2,'Data Annex'!$K$1:$AN$1,0)),\"\")","v":0.17673941730000001},{"$f":"IFERROR(INDEX('Data Annex'!$K$1:$AN$4997,MATCH(N$1&\"|\"&$B17,'Data Annex'!$K$1:$K$4997,0),MATCH(N$2,'Data Annex'!$K$1:$AN$1,0)),\"\")","v":0.1454739337},{"$f":"IFERROR(INDEX('Data Annex'!$K$1:$AN$4997,MATCH(O$1&\"|\"&$B17,'Data Annex'!$K$1:$K$4997,0),MATCH(O$2,'Data Annex'!$K$1:$AN$1,0)),\"\")","v":0.14473176830000001},{"$f":"IFERROR(INDEX('Data Annex'!$K$1:$AN$4997,MATCH(P$1&\"|\"&$B17,'Data Annex'!$K$1:$K$4997,0),MATCH(P$2,'Data Annex'!$K$1:$AN$1,0)),\"\")","v":0.32721168280000001},{"$f":"IFERROR(INDEX('Data Annex'!$K$1:$AN$4997,MATCH(Q$1&\"|\"&$B17,'Data Annex'!$K$1:$K$4997,0),MATCH(Q$2,'Data Annex'!$K$1:$AN$1,0)),\"\")","v":3.3832675899999998E-2},{"$f":"IFERROR(INDEX('Data Annex'!$K$1:$AN$4997,MATCH(R$1&\"|\"&$B17,'Data Annex'!$K$1:$K$4997,0),MATCH(R$2,'Data Annex'!$K$1:$AN$1,0)),\"\")","v":3.1424922100000002E-2},{"$f":"IFERROR(INDEX('Data Annex'!$K$1:$AN$4997,MATCH(S$1&\"|\"&$B17,'Data Annex'!$K$1:$K$4997,0),MATCH(S$2,'Data Annex'!$K$1:$AN$1,0)),\"\")","v":2.5380562299999999E-2},{"$f":"IFERROR(INDEX('Data Annex'!$K$1:$AN$4997,MATCH(T$1&\"|\"&$B17,'Data Annex'!$K$1:$K$4997,0),MATCH(T$2,'Data Annex'!$K$1:$AN$1,0)),\"\")","v":2.01225233E-2},7.6630911400000043E-2,9.3012686600000005E-2,0.10156499320000002,0.127540235,{"$f":"IFERROR(INDEX('Data Annex'!$K$1:$AN$4997,MATCH(Y$1&\"|\"&$B17,'Data Annex'!$K$1:$K$4997,0),MATCH(Y$2,'Data Annex'!$K$1:$AN$1,0)),\"\")","v":9.63234813E-2},{"$f":"IFERROR(INDEX('Data Annex'!$K$1:$AN$4997,MATCH(Z$1&\"|\"&$B17,'Data Annex'!$K$1:$K$4997,0),MATCH(Z$2,'Data Annex'!$K$1:$AN$1,0)),\"\")","v":9.8660164999999994E-2},{"$f":"IFERROR(INDEX('Data Annex'!$K$1:$AN$4997,MATCH(AA$1&\"|\"&$B17,'Data Annex'!$K$1:$K$4997,0),MATCH(AA$2,'Data Annex'!$K$1:$AN$1,0)),\"\")","v":9.8421546900000004E-2},{"$f":"IFERROR(INDEX('Data Annex'!$K$1:$AN$4997,MATCH(AB$1&\"|\"&$B17,'Data Annex'!$K$1:$K$4997,0),MATCH(AB$2,'Data Annex'!$K$1:$AN$1,0)),\"\")","v":9.7279223100000006E-2}]
[5,"CZ",null,"CZ",{"$f":"IFERROR(INDEX('Data Annex'!$K$1:$AN$4997,MATCH(E$1&\"|\"&$B18,'Data Annex'!$K$1:$K$4997,0),MATCH(E$2,'Data Annex'!$K$1:$AN$1,0)),\"\")","v":11.175925337000001},{"$f":"IFERROR(INDEX('Data Annex'!$K$1:$AN$4997,MATCH(F$1&\"|\"&$B18,'Data Annex'!$K$1:$K$4997,0),MATCH(F$2,'Data Annex'!$K$1:$AN$1,0)),\"\")","v":11.846535264},{"$f":"IFERROR(INDEX('Data Annex'!$K$1:$AN$4997,MATCH(G$1&\"|\"&$B18,'Data Annex'!$K$1:$K$4997,0),MATCH(G$2,'Data Annex'!$K$1:$AN$1,0)),\"\")","v":11.783576034999999},{"$f":"IFERROR(INDEX('Data Annex'!$K$1:$AN$4997,MATCH(H$1&\"|\"&$B18,'Data Annex'!$K$1:$K$4997,0),MATCH(H$2,'Data Annex'!$K$1:$AN$1,0)),\"\")","v":12.570732616000001},{"$f":"IFERROR(INDEX('Data Annex'!$K$1:$AN$4997,MATCH(I$1&\"|\"&$B18,'Data Annex'!$K$1:$K$4997,0),MATCH(I$2,'Data Annex'!$K$1:$AN$1,0)),\"\")","v":0.19792361580000001},{"$f":"IFERROR(INDEX('Data Annex'!$K$1:$AN$4997,MATCH(J$1&\"|\"&$B18,'Data Annex'!$K$1:$K$4997,0),MATCH(J$2,'Data Annex'!$K$1:$AN$1,0)),\"\")","v":0.19071368480000001},{"$f":"IFERROR(INDEX('Data Annex'!$K$1:$AN$4997,MATCH(K$1&\"|\"&$B18,'Data Annex'!$K$1:$K$4997,0),MATCH(K$2,'Data Annex'!$K$1:$AN$1,0)),\"\")","v":0.18826171789999999},{"$f":"IFERROR(INDEX('Data Annex'!$K$1:$AN$4997,MATCH(L$1&\"|\"&$B18,'Data Annex'!$K$1:$K$4997,0),MATCH(L$2,'Data Annex'!$K$1:$AN$1,0)),\"\")","v":0.1831374201},{"$f":"IFERROR(INDEX('Data Annex'!$K$1:$AN$4997,MATCH(M$1&\"|\"&$B18,'Data Annex'!$K$1:$K$4997,0),MATCH(M$2,'Data Annex'!$K$1:$AN$1,0)),\"\")","v":0.78140047359999998},{"$f":"IFERROR(INDEX('Data Annex'!$K$1:$AN$4997,MATCH(N$1&\"|\"&$B18,'Data Annex'!$K$1:$K$4997,0),MATCH(N$2,'Data Annex'!$K$1:$AN$1,0)),\"\")","v":0.75872370190000005},{"$f":"IFERROR(INDEX('Data Annex'!$K$1:$AN$4997,MATCH(O$1&\"|\"&$B18,'Data Annex'!$K$1:$K$4997,0),MATCH(O$2,'Data Annex'!$K$1:$AN$1,0)),\"\")","v":0.76728390970000004},{"$f":"IFERROR(INDEX('Data Annex'!$K$1:$AN$4997,MATCH(P$1&\"|\"&$B18,'Data Annex'!$K$1:$K$4997,0),MATCH(P$2,'Data Annex'!$K$1:$AN$1,0)),\"\")","v":0.75897555790000004},{"$f":"IFERROR(INDEX('Data Annex'!$K$1:$AN$4997,MATCH(Q$1&\"|\"&$B18,'Data Annex'!$K$1:$K$4997,0),MATCH(Q$2,'Data Annex'!$K$1:$AN$1,0)),\"\")","v":7.1719577999999999E-3},{"$f":"IFERROR(INDEX('Data Annex'!$K$1:$AN$4997,MATCH(R$1&\"|\"&$B18,'Data Annex'!$K$1:$K$4997,0),MATCH(R$2,'Data Annex'!$K$1:$AN$1,0)),\"\")","v":1.26112028E-2},{"$f":"IFERROR(INDEX('Data Annex'!$K$1:$AN$4997,MATCH(S$1&\"|\"&$B18,'Data Annex'!$K$1:$K$4997,0),MATCH(S$2,'Data Annex'!$K$1:$AN$1,0)),\"\")","v":1.10454931E-2},{"$f":"IFERROR(INDEX('Data Annex'!$K$1:$AN$4997,MATCH(T$1&\"|\"&$B18,'Data Annex'!$K$1:$K$4997,0),MATCH(T$2,'Data Annex'!$K$1:$AN$1,0)),\"\")","v":5.7773334999999997E-3},-4.2670564999999924E-2,-1.6176790599999998E-2,-2.0023406600000057E-2,1.3177649999995128E-4,{"$f":"IFERROR(INDEX('Data Annex'!$K$1:$AN$4997,MATCH(Y$1&\"|\"&$B18,'Data Annex'!$K$1:$K$4997,0),MATCH(Y$2,'Data Annex'!$K$1:$AN$1,0)),\"\")","v":5.6174517799999997E-2},{"$f":"IFERROR(INDEX('Data Annex'!$K$1:$AN$4997,MATCH(Z$1&\"|\"&$B18,'Data Annex'!$K$1:$K$4997,0),MATCH(Z$2,'Data Annex'!$K$1:$AN$1,0)),\"\")","v":5.4128201100000002E-2},{"$f":"IFERROR(INDEX('Data Annex'!$K$1:$AN$4997,MATCH(AA$1&\"|\"&$B18,'Data Annex'!$K$1:$K$4997,0),MATCH(AA$2,'Data Annex'!$K$1:$AN$1,0)),\"\")","v":5.3432285900000001E-2},{"$f":"IFERROR(INDEX('Data Annex'!$K$1:$AN$4997,MATCH(AB$1&\"|\"&$B18,'Data Annex'!$K$1:$K$4997,0),MATCH(AB$2,'Data Annex'!$K$1:$AN$1,0)),\"\")","v":5.1977912000000001E-2}]
[6,"DE",null,"DE",{"$f":"IFERROR(INDEX('Data Annex'!$K$1:$AN$4997,MATCH(E$1&\"|\"&$B19,'Data Annex'!$K$1:$K$4997,0),MATCH(E$2,'Data Annex'!$K$1:$AN$1,0)),\"\")","v":184.29890194999999},{"$f":"IFERROR(INDEX('Data Annex'!$K$1:$AN$4997,MATCH(F$1&\"|\"&$B19,'Data Annex'!$K$1:$K$4997,0),MATCH(F$2,'Data Annex'!$K$1:$AN$1,0)),\"\")","v":189.8066992},{"$f":"IFERROR(INDEX('Data Annex'!$K$1:$AN$4997,MATCH(G$1&\"|\"&$B19,'Data Annex'!$K$1:$K$4997,0),MATCH(G$2,'Data Annex'!$K$1:$AN$1,0)),\"\")","v":169.64588226000001},{"$f":"IFERROR(INDEX('Data Annex'!$K$1:$AN$4997,MATCH(H$1&\"|\"&$B19,'Data Annex'!$K$1:$K$4997,0),MATCH(H$2,'Data Annex'!$K$1:$AN$1,0)),\"\")","v":174.62174200000001},{"$f":"IFERROR(INDEX('Data Annex'!$K$1:$AN$4997,MATCH(I$1&\"|\"&$B19,'Data Annex'!$K$1:$K$4997,0),MATCH(I$2,'Data Annex'!$K$1:$AN$1,0)),\"\")","v":0.62105465400000004},{"$f":"IFERROR(INDEX('Data Annex'!$K$1:$AN$4997,MATCH(J$1&\"|\"&$B19,'Data Annex'!$K$1:$K$4997,0),MATCH(J$2,'Data Annex'!$K$1:$AN$1,0)),\"\")","v":0.60319464430000003},{"$f":"IFERROR(INDEX('Data Annex'!$K$1:$AN$4997,MATCH(K$1&\"|\"&$B19,'Data Annex'!$K$1:$K$4997,0),MATCH(K$2,'Data Annex'!$K$1:$AN$1,0)),\"\")","v":0.61301111809999997},{"$f":"IFERROR(INDEX('Data Annex'!$K$1:$AN$4997,MATCH(L$1&\"|\"&$B19,'Data Annex'!$K$1:$K$4997,0),MATCH(L$2,'Data Annex'!$K$1:$AN$1,0)),\"\")","v":0.56496261349999999},{"$f":"IFERROR(INDEX('Data Annex'!$K$1:$AN$4997,MATCH(M$1&\"|\"&$B19,'Data Annex'!$K$1:$K$4997,0),MATCH(M$2,'Data Annex'!$K$1:$AN$1,0)),\"\")","v":0.29234661499999998},{"$f":"IFERROR(INDEX('Data Annex'!$K$1:$AN$4997,MATCH(N$1&\"|\"&$B19,'Data Annex'!$K$1:$K$4997,0),MATCH(N$2,'Data Annex'!$K$1:$AN$1,0)),\"\")","v":0.293043261},{"$f":"IFERROR(INDEX('Data Annex'!$K$1:$AN$4997,MATCH(O$1&\"|\"&$B19,'Data Annex'!$K$1:$K$4997,0),MATCH(O$2,'Data Annex'!$K$1:$AN$1,0)),\"\")","v":0.27893069999999998},{"$f":"IFERROR(INDEX('Data Annex'!$K$1:$AN$4997,MATCH(P$1&\"|\"&$B19,'Data Annex'!$K$1:$K$4997,0),MATCH(P$2,'Data Annex'!$K$1:$AN$1,0)),\"\")","v":0.29704850519999998},{"$f":"IFERROR(INDEX('Data Annex'!$K$1:$AN$4997,MATCH(Q$1&\"|\"&$B19,'Data Annex'!$K$1:$K$4997,0),MATCH(Q$2,'Data Annex'!$K$1:$AN$1,0)),\"\")","v":-5.2849380000000003E-3},{"$f":"IFERROR(INDEX('Data Annex'!$K$1:$AN$4997,MATCH(R$1&\"|\"&$B19,'Data Annex'!$K$1:$K$4997,0),MATCH(R$2,'Data Annex'!$K$1:$AN$1,0)),\"\")","v":-1.5551370000000001E-3},{"$f":"IFERROR(INDEX('Data Annex'!$K$1:$AN$4997,MATCH(S$1&\"|\"&$B19,'Data Annex'!$K$1:$K$4997,0),MATCH(S$2,'Data Annex'!$K$1:$AN$1,0)),\"\")","v":-1.5577669000000001E-2},{"$f":"IFERROR(INDEX('Data Annex'!$K$1:$AN$4997,MATCH(T$1&\"|\"&$B19,'Data Annex'!$K$1:$K$4997,0),MATCH(T$2,'Data Annex'!$K$1:$AN$1,0)),\"\")","v":-2.2585424999999999E-2},1.3454931299999986E-2,2.2663331499999967E-2,4.4613124800000056E-2,8.3835689500000019E-2,{"$f":"IFERROR(INDEX('Data Annex'!$K$1:$AN$4997,MATCH(Y$1&\"|\"&$B19,'Data Annex'!$K$1:$K$4997,0),MATCH(Y$2,'Data Annex'!$K$1:$AN$1,0)),\"\")","v":7.8428737700000001E-2},{"$f":"IFERROR(INDEX('Data Annex'!$K$1:$AN$4997,MATCH(Z$1&\"|\"&$B19,'Data Annex'!$K$1:$K$4997,0),MATCH(Z$2,'Data Annex'!$K$1:$AN$1,0)),\"\")","v":8.2653900200000005E-2},{"$f":"IFERROR(INDEX('Data Annex'!$K$1:$AN$4997,MATCH(AA$1&\"|\"&$B19,'Data Annex'!$K$1:$K$4997,0),MATCH(AA$2,'Data Annex'!$K$1:$AN$1,0)),\"\")","v":7.9022726099999996E-2},{"$f":"IFERROR(INDEX('Data Annex'!$K$1:$AN$4997,MATCH(AB$1&\"|\"&$B19,'Data Annex'!$K$1:$K$4997,0),MATCH(AB$2,'Data Annex'!$K$1:$AN$1,0)),\"\")","v":7.6738616800000006E-2}]
[7,"DK",null,"DK",{"$f":"IFERROR(INDEX('Data Annex'!$K$1:$AN$4997,MATCH(E$1&\"|\"&$B20,'Data Annex'!$K$1:$K$4997,0),MATCH(E$2,'Data Annex'!$K$1:$AN$1,0)),\"\")","v":37.582180287},{"$f":"IFERROR(INDEX('Data Annex'!$K$1:$AN$4997,MATCH(F$1&\"|\"&$B20,'Data Annex'!$K$1:$K$4997,0),MATCH(F$2,'Data Annex'!$K$1:$AN$1,0)),\"\")","v":38.053551818000003},{"$f":"IFERROR(INDEX('Data Annex'!$K$1:$AN$4997,MATCH(G$1&\"|\"&$B20,'Data Annex'!$K$1:$K$4997,0),MATCH(G$2,'Data Annex'!$K$1:$AN$1,0)),\"\")","v":37.818442994000002},{"$f":"IFERROR(INDEX('Data Annex'!$K$1:$AN$4997,MATCH(H$1&\"|\"&$B20,'Data Annex'!$K$1:$K$4997,0),MATCH(H$2,'Data Annex'!$K$1:$AN$1,0)),\"\")","v":39.340898840000001},{"$f":"IFERROR(INDEX('Data Annex'!$K$1:$AN$4997,MATCH(I$1&\"|\"&$B20,'Data Annex'!$K$1:$K$4997,0),MATCH(I$2,'Data Annex'!$K$1:$AN$1,0)),\"\")","v":3.7363671199999997E-2},{"$f":"IFERROR(INDEX('Data Annex'!$K$1:$AN$4997,MATCH(J$1&\"|\"&$B20,'Data Annex'!$K$1:$K$4997,0),MATCH(J$2,'Data Annex'!$K$1:$AN$1,0)),\"\")","v":3.7452402799999999E-2},{"$f":"IFERROR(INDEX('Data Annex'!$K$1:$AN$4997,MATCH(K$1&\"|\"&$B20,'Data Annex'!$K$1:$K$4997,0),MATCH(K$2,'Data Annex'!$K$1:$AN$1,0)),\"\")","v":3.8602665000000001E-2},{"$f":"IFERROR(INDEX('Data Annex'!$K$1:$AN$4997,MATCH(L$1&\"|\"&$B20,'Data Annex'!$K$1:$K$4997,0),MATCH(L$2,'Data Annex'!$K$1:$AN$1,0)),\"\")","v":3.4904008600000001E-2},{"$f":"IFERROR(INDEX('Data Annex'!$K$1:$AN$4997,MATCH(M$1&\"|\"&$B20,'Data Annex'!$K$1:$K$4997,0),MATCH(M$2,'Data Annex'!$K$1:$AN$1,0)),\"\")","v":0.76316055579999997},{"$f":"IFERROR(INDEX('Data Annex'!$K$1:$AN$4997,MATCH(N$1&\"|\"&$B20,'Data Annex'!$K$1:$K$4997,0),MATCH(N$2,'Data Annex'!$K$1:$AN$1,0)),\"\")","v":0.77040038799999999},{"$f":"IFERROR(INDEX('Data Annex'!$K$1:$AN$4997,MATCH(O$1&\"|\"&$B20,'Data Annex'!$K$1:$K$4997,0),MATCH(O$2,'Data Annex'!$K$1:$AN$1,0)),\"\")","v":0.77823343469999995},{"$f":"IFERROR(INDEX('Data Annex'!$K$1:$AN$4997,MATCH(P$1&\"|\"&$B20,'Data Annex'!$K$1:$K$4997,0),MATCH(P$2,'Data Annex'!$K$1:$AN$1,0)),\"\")","v":0.79773735960000003},{"$f":"IFERROR(INDEX('Data Annex'!$K$1:$AN$4997,MATCH(Q$1&\"|\"&$B20,'Data Annex'!$K$1:$K$4997,0),MATCH(Q$2,'Data Annex'!$K$1:$AN$1,0)),\"\")","v":1.1446478E-3},{"$f":"IFERROR(INDEX('Data Annex'!$K$1:$AN$4997,MATCH(R$1&\"|\"&$B20,'Data Annex'!$K$1:$K$4997,0),MATCH(R$2,'Data Annex'!$K$1:$AN$1,0)),\"\")","v":1.1352878000000001E-3},{"$f":"IFERROR(INDEX('Data Annex'!$K$1:$AN$4997,MATCH(S$1&\"|\"&$B20,'Data Annex'!$K$1:$K$4997,0),MATCH(S$2,'Data Annex'!$K$1:$AN$1,0)),\"\")","v":1.1333039999999999E-3},{"$f":"IFERROR(INDEX('Data Annex'!$K$1:$AN$4997,MATCH(T$1&\"|\"&$B20,'Data Annex'!$K$1:$K$4997,0),MATCH(T$2,'Data Annex'!$K$1:$AN$1,0)),\"\")","v":1.0273289E-3},0.10385542700000007,9.8313998400000061E-2,0.10336460530000006,7.9671950599999972E-2,{"$f":"IFERROR(INDEX('Data Annex'!$K$1:$AN$4997,MATCH(Y$1&\"|\"&$B20,'Data Annex'!$K$1:$K$4997,0),MATCH(Y$2,'Data Annex'!$K$1:$AN$1,0)),\"\")","v":9.44756982E-2},{"$f":"IFERROR(INDEX('Data Annex'!$K$1:$AN$4997,MATCH(Z$1&\"|\"&$B20,'Data Annex'!$K$1:$K$4997,0),MATCH(Z$2,'Data Annex'!$K$1:$AN$1,0)),\"\")","v":9.2697923000000002E-2},{"$f":"IFERROR(INDEX('Data Annex'!$K$1:$AN$4997,MATCH(AA$1&\"|\"&$B20,'Data Annex'!$K$1:$K$4997,0),MATCH(AA$2,'Data Annex'!$K$1:$AN$1,0)),\"\")","v":7.8665991000000005E-2},{"$f":"IFERROR(INDEX('Data Annex'!$K$1:$AN$4997,MATCH(AB$1&\"|\"&$B20,'Data Annex'!$K$1:$K$4997,0),MATCH(AB$2,'Data Annex'!$K$1:$AN$1,0)),\"\")","v":8.6659352300000006E-2}]
[8,"EE",null,"EE",{"$f":"IFERROR(INDEX('Data Annex'!$K$1:$AN$4997,MATCH(E$1&\"|\"&$B21,'Data Annex'!$K$1:$K$4997,0),MATCH(E$2,'Data Annex'!$K$1:$AN$1,0)),\"\")","v":4.3744991099000003},{"$f":"IFERROR(INDEX('Data Annex'!$K$1:$AN$4997,MATCH(F$1&\"|\"&$B21,'Data Annex'!$K$1:$K$4997,0),MATCH(F$2,'Data Annex'!$K$1:$AN$1,0)),\"\")","v":4.3887318653999996},{"$f":"IFERROR(INDEX('Data Annex'!$K$1:$AN$4997,MATCH(G$1&\"|\"&$B21,'Data Annex'!$K$1:$K$4997,0),MATCH(G$2,'Data Annex'!$K$1:$AN$1,0)),\"\")","v":4.4036756012999998},{"$f":"IFERROR(INDEX('Data Annex'!$K$1:$AN$4997,MATCH(H$1&\"|\"&$B21,'Data Annex'!$K$1:$K$4997,0),MATCH(H$2,'Data Annex'!$K$1:$AN$1,0)),\"\")","v":4.4299034047000001},{"$f":"IFERROR(INDEX('Data Annex'!$K$1:$AN$4997,MATCH(I$1&\"|\"&$B21,'Data Annex'!$K$1:$K$4997,0),MATCH(I$2,'Data Annex'!$K$1:$AN$1,0)),\"\")","v":7.8494501100000003E-2},{"$f":"IFERROR(INDEX('Data Annex'!$K$1:$AN$4997,MATCH(J$1&\"|\"&$B21,'Data Annex'!$K$1:$K$4997,0),MATCH(J$2,'Data Annex'!$K$1:$AN$1,0)),\"\")","v":7.8626684500000002E-2},{"$f":"IFERROR(INDEX('Data Annex'!$K$1:$AN$4997,MATCH(K$1&\"|\"&$B21,'Data Annex'!$K$1:$K$4997,0),MATCH(K$2,'Data Annex'!$K$1:$AN$1,0)),\"\")","v":7.8359867299999997E-2},{"$f":"IFERROR(INDEX('Data Annex'!$K$1:$AN$4997,MATCH(L$1&\"|\"&$B21,'Data Annex'!$K$1:$K$4997,0),MATCH(L$2,'Data Annex'!$K$1:$AN$1,0)),\"\")","v":7.78959278E-2},{"$f":"IFERROR(INDEX('Data Annex'!$K$1:$AN$4997,MATCH(M$1&\"|\"&$B21,'Data Annex'!$K$1:$K$4997,0),MATCH(M$2,'Data Annex'!$K$1:$AN$1,0)),\"\")","v":0.59075574799999997},{"$f":"IFERROR(INDEX('Data Annex'!$K$1:$AN$4997,MATCH(N$1&\"|\"&$B21,'Data Annex'!$K$1:$K$4997,0),MATCH(N$2,'Data Annex'!$K$1:$AN$1,0)),\"\")","v":0.58987972349999995},{"$f":"IFERROR(INDEX('Data Annex'!$K$1:$AN$4997,MATCH(O$1&\"|\"&$B21,'Data Annex'!$K$1:$K$4997,0),MATCH(O$2,'Data Annex'!$K$1:$AN$1,0)),\"\")","v":0.59039906529999997},{"$f":"IFERROR(INDEX('Data Annex'!$K$1:$AN$4997,MATCH(P$1&\"|\"&$B21,'Data Annex'!$K$1:$K$4997,0),MATCH(P$2,'Data Annex'!$K$1:$AN$1,0)),\"\")","v":0.5942886959},{"$f":"IFERROR(INDEX('Data Annex'!$K$1:$AN$4997,MATCH(Q$1&\"|\"&$B21,'Data Annex'!$K$1:$K$4997,0),MATCH(Q$2,'Data Annex'!$K$1:$AN$1,0)),\"\")","v":1.089544E-4},{"$f":"IFERROR(INDEX('Data Annex'!$K$1:$AN$4997,MATCH(R$1&\"|\"&$B21,'Data Annex'!$K$1:$K$4997,0),MATCH(R$2,'Data Annex'!$K$1:$AN$1,0)),\"\")","v":1.0860110000000001E-4},{"$f":"IFERROR(INDEX('Data Annex'!$K$1:$AN$4997,MATCH(S$1&\"|\"&$B21,'Data Annex'!$K$1:$K$4997,0),MATCH(S$2,'Data Annex'!$K$1:$AN$1,0)),\"\")","v":1.082325E-4},{"$f":"IFERROR(INDEX('Data Annex'!$K$1:$AN$4997,MATCH(T$1&\"|\"&$B21,'Data Annex'!$K$1:$K$4997,0),MATCH(T$2,'Data Annex'!$K$1:$AN$1,0)),\"\")","v":5.97396E-5},0.32606884450000001,0.32341002200000007,0.32318492879999999,0.31985478720000005,{"$f":"IFERROR(INDEX('Data Annex'!$K$1:$AN$4997,MATCH(Y$1&\"|\"&$B21,'Data Annex'!$K$1:$K$4997,0),MATCH(Y$2,'Data Annex'!$K$1:$AN$1,0)),\"\")","v":4.5719519999999998E-3},{"$f":"IFERROR(INDEX('Data Annex'!$K$1:$AN$4997,MATCH(Z$1&\"|\"&$B21,'Data Annex'!$K$1:$K$4997,0),MATCH(Z$2,'Data Annex'!$K$1:$AN$1,0)),\"\")","v":7.9749689000000006E-3},{"$f":"IFERROR(INDEX('Data Annex'!$K$1:$AN$4997,MATCH(AA$1&\"|\"&$B21,'Data Annex'!$K$1:$K$4997,0),MATCH(AA$2,'Data Annex'!$K$1:$AN$1,0)),\"\")","v":7.9479061000000007E-3},{"$f":"IFERROR(INDEX('Data Annex'!$K$1:$AN$4997,MATCH(AB$1&\"|\"&$B21,'Data Annex'!$K$1:$K$4997,0),MATCH(AB$2,'Data Annex'!$K$1:$AN$1,0)),\"\")","v":7.9008494999999995E-3}]
[9,"ES",null,"ES",{"$f":"IFERROR(INDEX('Data Annex'!$K$1:$AN$4997,MATCH(E$1&\"|\"&$B22,'Data Annex'!$K$1:$K$4997,0),MATCH(E$2,'Data Annex'!$K$1:$AN$1,0)),\"\")","v":191.56623264999999},{"$f":"IFERROR(INDEX('Data Annex'!$K$1:$AN$4997,MATCH(F$1&\"|\"&$B22,'Data Annex'!$K$1:$K$4997,0),MATCH(F$2,'Data Annex'!$K$1:$AN$1,0)),\"\")","v":192.67998470000001},{"$f":"IFERROR(INDEX('Data Annex'!$K$1:$AN$4997,MATCH(G$1&\"|\"&$B22,'Data Annex'!$K$1:$K$4997,0),MATCH(G$2,'Data Annex'!$K$1:$AN$1,0)),\"\")","v":192.06908297000001},{"$f":"IFERROR(INDEX('Data Annex'!$K$1:$AN$4997,MATCH(H$1&\"|\"&$B22,'Data Annex'!$K$1:$K$4997,0),MATCH(H$2,'Data Annex'!$K$1:$AN$1,0)),\"\")","v":199.67267855},{"$f":"IFERROR(INDEX('Data Annex'!$K$1:$AN$4997,MATCH(I$1&\"|\"&$B22,'Data Annex'!$K$1:$K$4997,0),MATCH(I$2,'Data Annex'!$K$1:$AN$1,0)),\"\")","v":0.68095261949999997},{"$f":"IFERROR(INDEX('Data Annex'!$K$1:$AN$4997,MATCH(J$1&\"|\"&$B22,'Data Annex'!$K$1:$K$4997,0),MATCH(J$2,'Data Annex'!$K$1:$AN$1,0)),\"\")","v":0.67047440110000001},{"$f":"IFERROR(INDEX('Data Annex'!$K$1:$AN$4997,MATCH(K$1&\"|\"&$B22,'Data Annex'!$K$1:$K$4997,0),MATCH(K$2,'Data Annex'!$K$1:$AN$1,0)),\"\")","v":0.67248637659999999},{"$f":"IFERROR(INDEX('Data Annex'!$K$1:$AN$4997,MATCH(L$1&\"|\"&$B22,'Data Annex'!$K$1:$K$4997,0),MATCH(L$2,'Data Annex'!$K$1:$AN$1,0)),\"\")","v":0.64637696899999997},{"$f":"IFERROR(INDEX('Data Annex'!$K$1:$AN$4997,MATCH(M$1&\"|\"&$B22,'Data Annex'!$K$1:$K$4997,0),MATCH(M$2,'Data Annex'!$K$1:$AN$1,0)),\"\")","v":0.5943408523},{"$f":"IFERROR(INDEX('Data Annex'!$K$1:$AN$4997,MATCH(N$1&\"|\"&$B22,'Data Annex'!$K$1:$K$4997,0),MATCH(N$2,'Data Annex'!$K$1:$AN$1,0)),\"\")","v":0.53632021679999997},{"$f":"IFERROR(INDEX('Data Annex'!$K$1:$AN$4997,MATCH(O$1&\"|\"&$B22,'Data Annex'!$K$1:$K$4997,0),MATCH(O$2,'Data Annex'!$K$1:$AN$1,0)),\"\")","v":0.55326790960000005},{"$f":"IFERROR(INDEX('Data Annex'!$K$1:$AN$4997,MATCH(P$1&\"|\"&$B22,'Data Annex'!$K$1:$K$4997,0),MATCH(P$2,'Data Annex'!$K$1:$AN$1,0)),\"\")","v":0.54059465569999998},{"$f":"IFERROR(INDEX('Data Annex'!$K$1:$AN$4997,MATCH(Q$1&\"|\"&$B22,'Data Annex'!$K$1:$K$4997,0),MATCH(Q$2,'Data Annex'!$K$1:$AN$1,0)),\"\")","v":-0.22786104400000001},{"$f":"IFERROR(INDEX('Data Annex'!$K$1:$AN$4997,MATCH(R$1&\"|\"&$B22,'Data Annex'!$K$1:$K$4997,0),MATCH(R$2,'Data Annex'!$K$1:$AN$1,0)),\"\")","v":-0.23965006999999999},{"$f":"IFERROR(INDEX('Data Annex'!$K$1:$AN$4997,MATCH(S$1&\"|\"&$B22,'Data Annex'!$K$1:$K$4997,0),MATCH(S$2,'Data Annex'!$K$1:$AN$1,0)),\"\")","v":-0.26259644300000001},{"$f":"IFERROR(INDEX('Data Annex'!$K$1:$AN$4997,MATCH(T$1&\"|\"&$B22,'Data Annex'!$K$1:$K$4997,0),MATCH(T$2,'Data Annex'!$K$1:$AN$1,0)),\"\")","v":-0.25140243400000001},-0.15305098339999995,-7.1602204199999991E-2,-7.0931931100000026E-2,-4.2626217299999936E-2,{"$f":"IFERROR(INDEX('Data Annex'!$K$1:$AN$4997,MATCH(Y$1&\"|\"&$B22,'Data Annex'!$K$1:$K$4997,0),MATCH(Y$2,'Data Annex'!$K$1:$AN$1,0)),\"\")","v":0.1056185556},{"$f":"IFERROR(INDEX('Data Annex'!$K$1:$AN$4997,MATCH(Z$1&\"|\"&$B22,'Data Annex'!$K$1:$K$4997,0),MATCH(Z$2,'Data Annex'!$K$1:$AN$1,0)),\"\")","v":0.10445765630000001},{"$f":"IFERROR(INDEX('Data Annex'!$K$1:$AN$4997,MATCH(AA$1&\"|\"&$B22,'Data Annex'!$K$1:$K$4997,0),MATCH(AA$2,'Data Annex'!$K$1:$AN$1,0)),\"\")","v":0.1077740879},{"$f":"IFERROR(INDEX('Data Annex'!$K$1:$AN$4997,MATCH(AB$1&\"|\"&$B22,'Data Annex'!$K$1:$K$4997,0),MATCH(AB$2,'Data Annex'!$K$1:$AN$1,0)),\"\")","v":0.10705702659999999}]
[10,"FI",null,"FI",{"$f":"IFERROR(INDEX('Data Annex'!$K$1:$AN$4997,MATCH(E$1&\"|\"&$B23,'Data Annex'!$K$1:$K$4997,0),MATCH(E$2,'Data Annex'!$K$1:$AN$1,0)),\"\")","v":40.336501900000002},{"$f":"IFERROR(INDEX('Data Annex'!$K$1:$AN$4997,MATCH(F$1&\"|\"&$B23,'Data Annex'!$K$1:$K$4997,0),MATCH(F$2,'Data Annex'!$K$1:$AN$1,0)),\"\")","v":40.645878289000002},{"$f":"IFERROR(INDEX('Data Annex'!$K$1:$AN$4997,MATCH(G$1&\"|\"&$B23,'Data Annex'!$K$1:$K$4997,0),MATCH(G$2,'Data Annex'!$K$1:$AN$1,0)),\"\")","v":41.087664930000003},{"$f":"IFERROR(INDEX('Data Annex'!$K$1:$AN$4997,MATCH(H$1&\"|\"&$B23,'Data Annex'!$K$1:$K$4997,0),MATCH(H$2,'Data Annex'!$K$1:$AN$1,0)),\"\")","v":14.026932348000001},{"$f":"IFERROR(INDEX('Data Annex'!$K$1:$AN$4997,MATCH(I$1&\"|\"&$B23,'Data Annex'!$K$1:$K$4997,0),MATCH(I$2,'Data Annex'!$K$1:$AN$1,0)),\"\")","v":0.1803661503},{"$f":"IFERROR(INDEX('Data Annex'!$K$1:$AN$4997,MATCH(J$1&\"|\"&$B23,'Data Annex'!$K$1:$K$4997,0),MATCH(J$2,'Data Annex'!$K$1:$AN$1,0)),\"\")","v":0.17908689790000001},{"$f":"IFERROR(INDEX('Data Annex'!$K$1:$AN$4997,MATCH(K$1&\"|\"&$B23,'Data Annex'!$K$1:$K$4997,0),MATCH(K$2,'Data Annex'!$K$1:$AN$1,0)),\"\")","v":0.1774139686},{"$f":"IFERROR(INDEX('Data Annex'!$K$1:$AN$4997,MATCH(L$1&\"|\"&$B23,'Data Annex'!$K$1:$K$4997,0),MATCH(L$2,'Data Annex'!$K$1:$AN$1,0)),\"\")","v":0.2272798657},{"$f":"IFERROR(INDEX('Data Annex'!$K$1:$AN$4997,MATCH(M$1&\"|\"&$B23,'Data Annex'!$K$1:$K$4997,0),MATCH(M$2,'Data Annex'!$K$1:$AN$1,0)),\"\")","v":0.82246472820000005},{"$f":"IFERROR(INDEX('Data Annex'!$K$1:$AN$4997,MATCH(N$1&\"|\"&$B23,'Data Annex'!$K$1:$K$4997,0),MATCH(N$2,'Data Annex'!$K$1:$AN$1,0)),\"\")","v":0.82198821379999998},{"$f":"IFERROR(INDEX('Data Annex'!$K$1:$AN$4997,MATCH(O$1&\"|\"&$B23,'Data Annex'!$K$1:$K$4997,0),MATCH(O$2,'Data Annex'!$K$1:$AN$1,0)),\"\")","v":0.81875263580000002},{"$f":"IFERROR(INDEX('Data Annex'!$K$1:$AN$4997,MATCH(P$1&\"|\"&$B23,'Data Annex'!$K$1:$K$4997,0),MATCH(P$2,'Data Annex'!$K$1:$AN$1,0)),\"\")","v":0.67394589159999996},{"$f":"IFERROR(INDEX('Data Annex'!$K$1:$AN$4997,MATCH(Q$1&\"|\"&$B23,'Data Annex'!$K$1:$K$4997,0),MATCH(Q$2,'Data Annex'!$K$1:$AN$1,0)),\"\")","v":-2.6671099E-2},{"$f":"IFERROR(INDEX('Data Annex'!$K$1:$AN$4997,MATCH(R$1&\"|\"&$B23,'Data Annex'!$K$1:$K$4997,0),MATCH(R$2,'Data Annex'!$K$1:$AN$1,0)),\"\")","v":-2.9040331999999999E-2},{"$f":"IFERROR(INDEX('Data Annex'!$K$1:$AN$4997,MATCH(S$1&\"|\"&$B23,'Data Annex'!$K$1:$K$4997,0),MATCH(S$2,'Data Annex'!$K$1:$AN$1,0)),\"\")","v":-2.7102356000000001E-2},{"$f":"IFERROR(INDEX('Data Annex'!$K$1:$AN$4997,MATCH(T$1&\"|\"&$B23,'Data Annex'!$K$1:$K$4997,0),MATCH(T$2,'Data Annex'!$K$1:$AN$1,0)),\"\")","v":-1.4039305E-2},-5.542195390000007E-2,-4.9546674599999965E-2,-4.3679911000000037E-2,8.5177919500000018E-2,{"$f":"IFERROR(INDEX('Data Annex'!$K$1:$AN$4997,MATCH(Y$1&\"|\"&$B23,'Data Annex'!$K$1:$K$4997,0),MATCH(Y$2,'Data Annex'!$K$1:$AN$1,0)),\"\")","v":7.9262174399999996E-2},{"$f":"IFERROR(INDEX('Data Annex'!$K$1:$AN$4997,MATCH(Z$1&\"|\"&$B23,'Data Annex'!$K$1:$K$4997,0),MATCH(Z$2,'Data Annex'!$K$1:$AN$1,0)),\"\")","v":7.7511894900000003E-2},{"$f":"IFERROR(INDEX('Data Annex'!$K$1:$AN$4997,MATCH(AA$1&\"|\"&$B23,'Data Annex'!$K$1:$K$4997,0),MATCH(AA$2,'Data Annex'!$K$1:$AN$1,0)),\"\")","v":7.4615662599999993E-2},{"$f":"IFERROR(INDEX('Data Annex'!$K$1:$AN$4997,MATCH(AB$1&\"|\"&$B23,'Data Annex'!$K$1:$K$4997,0),MATCH(AB$2,'Data Annex'!$K$1:$AN$1,0)),\"\")","v":2.7635628200000002E-2}]
[11,"FR",null,"FR",{"$f":"IFERROR(INDEX('Data Annex'!$K$1:$AN$4997,MATCH(E$1&\"|\"&$B24,'Data Annex'!$K$1:$K$4997,0),MATCH(E$2,'Data Annex'!$K$1:$AN$1,0)),\"\")","v":404.57134976999998},{"$f":"IFERROR(INDEX('Data Annex'!$K$1:$AN$4997,MATCH(F$1&\"|\"&$B24,'Data Annex'!$K$1:$K$4997,0),MATCH(F$2,'Data Annex'!$K$1:$AN$1,0)),\"\")","v":418.13934967},{"$f":"IFERROR(INDEX('Data Annex'!$K$1:$AN$4997,MATCH(G$1&\"|\"&$B24,'Data Annex'!$K$1:$K$4997,0),MATCH(G$2,'Data Annex'!$K$1:$AN$1,0)),\"\")","v":419.58886115000001},{"$f":"IFERROR(INDEX('Data Annex'!$K$1:$AN$4997,MATCH(H$1&\"|\"&$B24,'Data Annex'!$K$1:$K$4997,0),MATCH(H$2,'Data Annex'!$K$1:$AN$1,0)),\"\")","v":438.88255789999999},{"$f":"IFERROR(INDEX('Data Annex'!$K$1:$AN$4997,MATCH(I$1&\"|\"&$B24,'Data Annex'!$K$1:$K$4997,0),MATCH(I$2,'Data Annex'!$K$1:$AN$1,0)),\"\")","v":0.35424473969999998},{"$f":"IFERROR(INDEX('Data Annex'!$K$1:$AN$4997,MATCH(J$1&\"|\"&$B24,'Data Annex'!$K$1:$K$4997,0),MATCH(J$2,'Data Annex'!$K$1:$AN$1,0)),\"\")","v":0.33862961289999999},{"$f":"IFERROR(INDEX('Data Annex'!$K$1:$AN$4997,MATCH(K$1&\"|\"&$B24,'Data Annex'!$K$1:$K$4997,0),MATCH(K$2,'Data Annex'!$K$1:$AN$1,0)),\"\")","v":0.33879819090000002},{"$f":"IFERROR(INDEX('Data Annex'!$K$1:$AN$4997,MATCH(L$1&\"|\"&$B24,'Data Annex'!$K$1:$K$4997,0),MATCH(L$2,'Data Annex'!$K$1:$AN$1,0)),\"\")","v":0.32564712070000001},{"$f":"IFERROR(INDEX('Data Annex'!$K$1:$AN$4997,MATCH(M$1&\"|\"&$B24,'Data Annex'!$K$1:$K$4997,0),MATCH(M$2,'Data Annex'!$K$1:$AN$1,0)),\"\")","v":0.33921406430000001},{"$f":"IFERROR(INDEX('Data Annex'!$K$1:$AN$4997,MATCH(N$1&\"|\"&$B24,'Data Annex'!$K$1:$K$4997,0),MATCH(N$2,'Data Annex'!$K$1:$AN$1,0)),\"\")","v":0.3342265062},{"$f":"IFERROR(INDEX('Data Annex'!$K$1:$AN$4997,MATCH(O$1&\"|\"&$B24,'Data Annex'!$K$1:$K$4997,0),MATCH(O$2,'Data Annex'!$K$1:$AN$1,0)),\"\")","v":0.3353823293},{"$f":"IFERROR(INDEX('Data Annex'!$K$1:$AN$4997,MATCH(P$1&\"|\"&$B24,'Data Annex'!$K$1:$K$4997,0),MATCH(P$2,'Data Annex'!$K$1:$AN$1,0)),\"\")","v":0.34715061739999997},{"$f":"IFERROR(INDEX('Data Annex'!$K$1:$AN$4997,MATCH(Q$1&\"|\"&$B24,'Data Annex'!$K$1:$K$4997,0),MATCH(Q$2,'Data Annex'!$K$1:$AN$1,0)),\"\")","v":5.2570873999999998E-3},{"$f":"IFERROR(INDEX('Data Annex'!$K$1:$AN$4997,MATCH(R$1&\"|\"&$B24,'Data Annex'!$K$1:$K$4997,0),MATCH(R$2,'Data Annex'!$K$1:$AN$1,0)),\"\")","v":4.9416149000000003E-3},{"$f":"IFERROR(INDEX('Data Annex'!$K$1:$AN$4997,MATCH(S$1&\"|\"&$B24,'Data Annex'!$K$1:$K$4997,0),MATCH(S$2,'Data Annex'!$K$1:$AN$1,0)),\"\")","v":-2.439007E-3},{"$f":"IFERROR(INDEX('Data Annex'!$K$1:$AN$4997,MATCH(T$1&\"|\"&$B24,'Data Annex'!$K$1:$K$4997,0),MATCH(T$2,'Data Annex'!$K$1:$AN$1,0)),\"\")","v":5.0885489999999997E-4},0.23702961130000005,0.26056056750000006,0.26877169620000002,0.26578332069999999,{"$f":"IFERROR(INDEX('Data Annex'!$K$1:$AN$4997,MATCH(Y$1&\"|\"&$B24,'Data Annex'!$K$1:$K$4997,0),MATCH(Y$2,'Data Annex'!$K$1:$AN$1,0)),\"\")","v":6.4254497300000005E-2},{"$f":"IFERROR(INDEX('Data Annex'!$K$1:$AN$4997,MATCH(Z$1&\"|\"&$B24,'Data Annex'!$K$1:$K$4997,0),MATCH(Z$2,'Data Annex'!$K$1:$AN$1,0)),\"\")","v":6.1641698500000001E-2},{"$f":"IFERROR(INDEX('Data Annex'!$K$1:$AN$4997,MATCH(AA$1&\"|\"&$B24,'Data Annex'!$K$1:$K$4997,0),MATCH(AA$2,'Data Annex'!$K$1:$AN$1,0)),\"\")","v":5.9486790599999999E-2},{"$f":"IFERROR(INDEX('Data Annex'!$K$1:$AN$4997,MATCH(AB$1&\"|\"&$B24,'Data Annex'!$K$1:$K$4997,0),MATCH(AB$2,'Data Annex'!$K$1:$AN$1,0)),\"\")","v":6.0910086299999999E-2}]
[13,"GR",null,"GR",{"$f":"IFERROR(INDEX('Data Annex'!$K$1:$AN$4997,MATCH(E$1&\"|\"&$B25,'Data Annex'!$K$1:$K$4997,0),MATCH(E$2,'Data Annex'!$K$1:$AN$1,0)),\"\")","v":25.594278082999999},{"$f":"IFERROR(INDEX('Data Annex'!$K$1:$AN$4997,MATCH(F$1&\"|\"&$B25,'Data Annex'!$K$1:$K$4997,0),MATCH(F$2,'Data Annex'!$K$1:$AN$1,0)),\"\")","v":24.903980798999999},{"$f":"IFERROR(INDEX('Data Annex'!$K$1:$AN$4997,MATCH(G$1&\"|\"&$B25,'Data Annex'!$K$1:$K$4997,0),MATCH(G$2,'Data Annex'!$K$1:$AN$1,0)),\"\")","v":24.353918319000002},{"$f":"IFERROR(INDEX('Data Annex'!$K$1:$AN$4997,MATCH(H$1&\"|\"&$B25,'Data Annex'!$K$1:$K$4997,0),MATCH(H$2,'Data Annex'!$K$1:$AN$1,0)),\"\")","v":25.013754340999999},{"$f":"IFERROR(INDEX('Data Annex'!$K$1:$AN$4997,MATCH(I$1&\"|\"&$B25,'Data Annex'!$K$1:$K$4997,0),MATCH(I$2,'Data Annex'!$K$1:$AN$1,0)),\"\")","v":2.1300552172999998},{"$f":"IFERROR(INDEX('Data Annex'!$K$1:$AN$4997,MATCH(J$1&\"|\"&$B25,'Data Annex'!$K$1:$K$4997,0),MATCH(J$2,'Data Annex'!$K$1:$AN$1,0)),\"\")","v":2.1890490417000001},{"$f":"IFERROR(INDEX('Data Annex'!$K$1:$AN$4997,MATCH(K$1&\"|\"&$B25,'Data Annex'!$K$1:$K$4997,0),MATCH(K$2,'Data Annex'!$K$1:$AN$1,0)),\"\")","v":2.2369470027},{"$f":"IFERROR(INDEX('Data Annex'!$K$1:$AN$4997,MATCH(L$1&\"|\"&$B25,'Data Annex'!$K$1:$K$4997,0),MATCH(L$2,'Data Annex'!$K$1:$AN$1,0)),\"\")","v":2.1779031689999999},{"$f":"IFERROR(INDEX('Data Annex'!$K$1:$AN$4997,MATCH(M$1&\"|\"&$B25,'Data Annex'!$K$1:$K$4997,0),MATCH(M$2,'Data Annex'!$K$1:$AN$1,0)),\"\")","v":-1.66054795},{"$f":"IFERROR(INDEX('Data Annex'!$K$1:$AN$4997,MATCH(N$1&\"|\"&$B25,'Data Annex'!$K$1:$K$4997,0),MATCH(N$2,'Data Annex'!$K$1:$AN$1,0)),\"\")","v":-1.746472075},{"$f":"IFERROR(INDEX('Data Annex'!$K$1:$AN$4997,MATCH(O$1&\"|\"&$B25,'Data Annex'!$K$1:$K$4997,0),MATCH(O$2,'Data Annex'!$K$1:$AN$1,0)),\"\")","v":-1.7804943609999999},{"$f":"IFERROR(INDEX('Data Annex'!$K$1:$AN$4997,MATCH(P$1&\"|\"&$B25,'Data Annex'!$K$1:$K$4997,0),MATCH(P$2,'Data Annex'!$K$1:$AN$1,0)),\"\")","v":-1.758292467},{"$f":"IFERROR(INDEX('Data Annex'!$K$1:$AN$4997,MATCH(Q$1&\"|\"&$B25,'Data Annex'!$K$1:$K$4997,0),MATCH(Q$2,'Data Annex'!$K$1:$AN$1,0)),\"\")","v":-2.2746760000000002E-3},{"$f":"IFERROR(INDEX('Data Annex'!$K$1:$AN$4997,MATCH(R$1&\"|\"&$B25,'Data Annex'!$K$1:$K$4997,0),MATCH(R$2,'Data Annex'!$K$1:$AN$1,0)),\"\")","v":4.3819714000000003E-3},{"$f":"IFERROR(INDEX('Data Annex'!$K$1:$AN$4997,MATCH(S$1&\"|\"&$B25,'Data Annex'!$K$1:$K$4997,0),MATCH(S$2,'Data Annex'!$K$1:$AN$1,0)),\"\")","v":-1.783448E-3},{"$f":"IFERROR(INDEX('Data Annex'!$K$1:$AN$4997,MATCH(T$1&\"|\"&$B25,'Data Annex'!$K$1:$K$4997,0),MATCH(T$2,'Data Annex'!$K$1:$AN$1,0)),\"\")","v":-3.4669100000000001E-3},0.53265110800000015,0.55292153759999996,0.54520940359999981,0.58373868740000001,{"$f":"IFERROR(INDEX('Data Annex'!$K$1:$AN$4997,MATCH(Y$1&\"|\"&$B25,'Data Annex'!$K$1:$K$4997,0),MATCH(Y$2,'Data Annex'!$K$1:$AN$1,0)),\"\")","v":1.163007E-4},{"$f":"IFERROR(INDEX('Data Annex'!$K$1:$AN$4997,MATCH(Z$1&\"|\"&$B25,'Data Annex'!$K$1:$K$4997,0),MATCH(Z$2,'Data Annex'!$K$1:$AN$1,0)),\"\")","v":1.195243E-4},{"$f":"IFERROR(INDEX('Data Annex'!$K$1:$AN$4997,MATCH(AA$1&\"|\"&$B25,'Data Annex'!$K$1:$K$4997,0),MATCH(AA$2,'Data Annex'!$K$1:$AN$1,0)),\"\")","v":1.214027E-4},{"$f":"IFERROR(INDEX('Data Annex'!$K$1:$AN$4997,MATCH(AB$1&\"|\"&$B25,'Data Annex'!$K$1:$K$4997,0),MATCH(AB$2,'Data Annex'!$K$1:$AN$1,0)),\"\")","v":1.175206E-4}]
[14,"HR",null,"HR",{"$f":"IFERROR(INDEX('Data Annex'!$K$1:$AN$4997,MATCH(E$1&\"|\"&$B26,'Data Annex'!$K$1:$K$4997,0),MATCH(E$2,'Data Annex'!$K$1:$AN$1,0)),\"\")","v":5.8454291102999996},{"$f":"IFERROR(INDEX('Data Annex'!$K$1:$AN$4997,MATCH(F$1&\"|\"&$B26,'Data Annex'!$K$1:$K$4997,0),MATCH(F$2,'Data Annex'!$K$1:$AN$1,0)),\"\")","v":6.0343310871},{"$f":"IFERROR(INDEX('Data Annex'!$K$1:$AN$4997,MATCH(G$1&\"|\"&$B26,'Data Annex'!$K$1:$K$4997,0),MATCH(G$2,'Data Annex'!$K$1:$AN$1,0)),\"\")","v":6.0356812226000001},{"$f":"IFERROR(INDEX('Data Annex'!$K$1:$AN$4997,MATCH(H$1&\"|\"&$B26,'Data Annex'!$K$1:$K$4997,0),MATCH(H$2,'Data Annex'!$K$1:$AN$1,0)),\"\")","v":6.3028905457000004},{"$f":"IFERROR(INDEX('Data Annex'!$K$1:$AN$4997,MATCH(I$1&\"|\"&$B26,'Data Annex'!$K$1:$K$4997,0),MATCH(I$2,'Data Annex'!$K$1:$AN$1,0)),\"\")","v":0.37796437220000001},{"$f":"IFERROR(INDEX('Data Annex'!$K$1:$AN$4997,MATCH(J$1&\"|\"&$B26,'Data Annex'!$K$1:$K$4997,0),MATCH(J$2,'Data Annex'!$K$1:$AN$1,0)),\"\")","v":0.36901341519999997},{"$f":"IFERROR(INDEX('Data Annex'!$K$1:$AN$4997,MATCH(K$1&\"|\"&$B26,'Data Annex'!$K$1:$K$4997,0),MATCH(K$2,'Data Annex'!$K$1:$AN$1,0)),\"\")","v":0.36963438830000001},{"$f":"IFERROR(INDEX('Data Annex'!$K$1:$AN$4997,MATCH(L$1&\"|\"&$B26,'Data Annex'!$K$1:$K$4997,0),MATCH(L$2,'Data Annex'!$K$1:$AN$1,0)),\"\")","v":0.35417969729999998},{"$f":"IFERROR(INDEX('Data Annex'!$K$1:$AN$4997,MATCH(M$1&\"|\"&$B26,'Data Annex'!$K$1:$K$4997,0),MATCH(M$2,'Data Annex'!$K$1:$AN$1,0)),\"\")","v":0.58241803849999996},{"$f":"IFERROR(INDEX('Data Annex'!$K$1:$AN$4997,MATCH(N$1&\"|\"&$B26,'Data Annex'!$K$1:$K$4997,0),MATCH(N$2,'Data Annex'!$K$1:$AN$1,0)),\"\")","v":0.57751363099999997},{"$f":"IFERROR(INDEX('Data Annex'!$K$1:$AN$4997,MATCH(O$1&\"|\"&$B26,'Data Annex'!$K$1:$K$4997,0),MATCH(O$2,'Data Annex'!$K$1:$AN$1,0)),\"\")","v":0.57849408069999997},{"$f":"IFERROR(INDEX('Data Annex'!$K$1:$AN$4997,MATCH(P$1&\"|\"&$B26,'Data Annex'!$K$1:$K$4997,0),MATCH(P$2,'Data Annex'!$K$1:$AN$1,0)),\"\")","v":0.58226259209999998},{"$f":"IFERROR(INDEX('Data Annex'!$K$1:$AN$4997,MATCH(Q$1&\"|\"&$B26,'Data Annex'!$K$1:$K$4997,0),MATCH(Q$2,'Data Annex'!$K$1:$AN$1,0)),\"\")","v":2.03408824E-2},{"$f":"IFERROR(INDEX('Data Annex'!$K$1:$AN$4997,MATCH(R$1&\"|\"&$B26,'Data Annex'!$K$1:$K$4997,0),MATCH(R$2,'Data Annex'!$K$1:$AN$1,0)),\"\")","v":2.0812655100000001E-2},{"$f":"IFERROR(INDEX('Data Annex'!$K$1:$AN$4997,MATCH(S$1&\"|\"&$B26,'Data Annex'!$K$1:$K$4997,0),MATCH(S$2,'Data Annex'!$K$1:$AN$1,0)),\"\")","v":2.35392421E-2},{"$f":"IFERROR(INDEX('Data Annex'!$K$1:$AN$4997,MATCH(T$1&\"|\"&$B26,'Data Annex'!$K$1:$K$4997,0),MATCH(T$2,'Data Annex'!$K$1:$AN$1,0)),\"\")","v":2.63781812E-2},1.9276706900000034E-2,3.2660298700000055E-2,2.8332288900000082E-2,3.7179529400000036E-2,{"$f":"IFERROR(INDEX('Data Annex'!$K$1:$AN$4997,MATCH(Y$1&\"|\"&$B26,'Data Annex'!$K$1:$K$4997,0),MATCH(Y$2,'Data Annex'!$K$1:$AN$1,0)),\"\")","v":0},{"$f":"IFERROR(INDEX('Data Annex'!$K$1:$AN$4997,MATCH(Z$1&\"|\"&$B26,'Data Annex'!$K$1:$K$4997,0),MATCH(Z$2,'Data Annex'!$K$1:$AN$1,0)),\"\")","v":0},{"$f":"IFERROR(INDEX('Data Annex'!$K$1:$AN$4997,MATCH(AA$1&\"|\"&$B26,'Data Annex'!$K$1:$K$4997,0),MATCH(AA$2,'Data Annex'!$K$1:$AN$1,0)),\"\")","v":0},{"$f":"IFERROR(INDEX('Data Annex'!$K$1:$AN$4997,MATCH(AB$1&\"|\"&$B26,'Data Annex'!$K$1:$K$4997,0),MATCH(AB$2,'Data Annex'!$K$1:$AN$1,0)),\"\")","v":0}]
[15,"HU",null,"HU",{"$f":"IFERROR(INDEX('Data Annex'!$K$1:$AN$4997,MATCH(E$1&\"|\"&$B27,'Data Annex'!$K$1:$K$4997,0),MATCH(E$2,'Data Annex'!$K$1:$AN$1,0)),\"\")","v":7.7025577457000001},{"$f":"IFERROR(INDEX('Data Annex'!$K$1:$AN$4997,MATCH(F$1&\"|\"&$B27,'Data Annex'!$K$1:$K$4997,0),MATCH(F$2,'Data Annex'!$K$1:$AN$1,0)),\"\")","v":7.6678532122999998},{"$f":"IFERROR(INDEX('Data Annex'!$K$1:$AN$4997,MATCH(G$1&\"|\"&$B27,'Data Annex'!$K$1:$K$4997,0),MATCH(G$2,'Data Annex'!$K$1:$AN$1,0)),\"\")","v":7.8332174568999999},{"$f":"IFERROR(INDEX('Data Annex'!$K$1:$AN$4997,MATCH(H$1&\"|\"&$B27,'Data Annex'!$K$1:$K$4997,0),MATCH(H$2,'Data Annex'!$K$1:$AN$1,0)),\"\")","v":8.1104171012999995},{"$f":"IFERROR(INDEX('Data Annex'!$K$1:$AN$4997,MATCH(I$1&\"|\"&$B27,'Data Annex'!$K$1:$K$4997,0),MATCH(I$2,'Data Annex'!$K$1:$AN$1,0)),\"\")","v":6.6059624499999997E-2},{"$f":"IFERROR(INDEX('Data Annex'!$K$1:$AN$4997,MATCH(J$1&\"|\"&$B27,'Data Annex'!$K$1:$K$4997,0),MATCH(J$2,'Data Annex'!$K$1:$AN$1,0)),\"\")","v":3.5552103100000003E-2},{"$f":"IFERROR(INDEX('Data Annex'!$K$1:$AN$4997,MATCH(K$1&\"|\"&$B27,'Data Annex'!$K$1:$K$4997,0),MATCH(K$2,'Data Annex'!$K$1:$AN$1,0)),\"\")","v":3.4906766700000001E-2},{"$f":"IFERROR(INDEX('Data Annex'!$K$1:$AN$4997,MATCH(L$1&\"|\"&$B27,'Data Annex'!$K$1:$K$4997,0),MATCH(L$2,'Data Annex'!$K$1:$AN$1,0)),\"\")","v":3.3826472900000001E-2},{"$f":"IFERROR(INDEX('Data Annex'!$K$1:$AN$4997,MATCH(M$1&\"|\"&$B27,'Data Annex'!$K$1:$K$4997,0),MATCH(M$2,'Data Annex'!$K$1:$AN$1,0)),\"\")","v":0.9211500749},{"$f":"IFERROR(INDEX('Data Annex'!$K$1:$AN$4997,MATCH(N$1&\"|\"&$B27,'Data Annex'!$K$1:$K$4997,0),MATCH(N$2,'Data Annex'!$K$1:$AN$1,0)),\"\")","v":0.9329599838},{"$f":"IFERROR(INDEX('Data Annex'!$K$1:$AN$4997,MATCH(O$1&\"|\"&$B27,'Data Annex'!$K$1:$K$4997,0),MATCH(O$2,'Data Annex'!$K$1:$AN$1,0)),\"\")","v":0.91873629879999996},{"$f":"IFERROR(INDEX('Data Annex'!$K$1:$AN$4997,MATCH(P$1&\"|\"&$B27,'Data Annex'!$K$1:$K$4997,0),MATCH(P$2,'Data Annex'!$K$1:$AN$1,0)),\"\")","v":0.89989247589999999},{"$f":"IFERROR(INDEX('Data Annex'!$K$1:$AN$4997,MATCH(Q$1&\"|\"&$B27,'Data Annex'!$K$1:$K$4997,0),MATCH(Q$2,'Data Annex'!$K$1:$AN$1,0)),\"\")","v":1.9035670000000001E-2},{"$f":"IFERROR(INDEX('Data Annex'!$K$1:$AN$4997,MATCH(R$1&\"|\"&$B27,'Data Annex'!$K$1:$K$4997,0),MATCH(R$2,'Data Annex'!$K$1:$AN$1,0)),\"\")","v":2.6797553599999999E-2},{"$f":"IFERROR(INDEX('Data Annex'!$K$1:$AN$4997,MATCH(S$1&\"|\"&$B27,'Data Annex'!$K$1:$K$4997,0),MATCH(S$2,'Data Annex'!$K$1:$AN$1,0)),\"\")","v":2.2718331299999998E-2},{"$f":"IFERROR(INDEX('Data Annex'!$K$1:$AN$4997,MATCH(T$1&\"|\"&$B27,'Data Annex'!$K$1:$K$4997,0),MATCH(T$2,'Data Annex'!$K$1:$AN$1,0)),\"\")","v":2.1650562299999999E-2},-6.2453694000000302E-3,4.6903594999999874E-3,2.3638603200000004E-2,4.4630488900000057E-2,{"$f":"IFERROR(INDEX('Data Annex'!$K$1:$AN$4997,MATCH(Y$1&\"|\"&$B27,'Data Annex'!$K$1:$K$4997,0),MATCH(Y$2,'Data Annex'!$K$1:$AN$1,0)),\"\")","v":0},{"$f":"IFERROR(INDEX('Data Annex'!$K$1:$AN$4997,MATCH(Z$1&\"|\"&$B27,'Data Annex'!$K$1:$K$4997,0),MATCH(Z$2,'Data Annex'!$K$1:$AN$1,0)),\"\")","v":0},{"$f":"IFERROR(INDEX('Data Annex'!$K$1:$AN$4997,MATCH(AA$1&\"|\"&$B27,'Data Annex'!$K$1:$K$4997,0),MATCH(AA$2,'Data Annex'!$K$1:$AN$1,0)),\"\")","v":0},{"$f":"IFERROR(INDEX('Data Annex'!$K$1:$AN$4997,MATCH(AB$1&\"|\"&$B27,'Data Annex'!$K$1:$K$4997,0),MATCH(AB$2,'Data Annex'!$K$1:$AN$1,0)),\"\")","v":0}]
[16,"IE",null,"IE",{"$f":"IFERROR(INDEX('Data Annex'!$K$1:$AN$4997,MATCH(E$1&\"|\"&$B28,'Data Annex'!$K$1:$K$4997,0),MATCH(E$2,'Data Annex'!$K$1:$AN$1,0)),\"\")","v":45.517983233999999},{"$f":"IFERROR(INDEX('Data Annex'!$K$1:$AN$4997,MATCH(F$1&\"|\"&$B28,'Data Annex'!$K$1:$K$4997,0),MATCH(F$2,'Data Annex'!$K$1:$AN$1,0)),\"\")","v":44.978025690000003},{"$f":"IFERROR(INDEX('Data Annex'!$K$1:$AN$4997,MATCH(G$1&\"|\"&$B28,'Data Annex'!$K$1:$K$4997,0),MATCH(G$2,'Data Annex'!$K$1:$AN$1,0)),\"\")","v":44.289788166000001},{"$f":"IFERROR(INDEX('Data Annex'!$K$1:$AN$4997,MATCH(H$1&\"|\"&$B28,'Data Annex'!$K$1:$K$4997,0),MATCH(H$2,'Data Annex'!$K$1:$AN$1,0)),\"\")","v":45.100277683999998},{"$f":"IFERROR(INDEX('Data Annex'!$K$1:$AN$4997,MATCH(I$1&\"|\"&$B28,'Data Annex'!$K$1:$K$4997,0),MATCH(I$2,'Data Annex'!$K$1:$AN$1,0)),\"\")","v":0.38157336159999999},{"$f":"IFERROR(INDEX('Data Annex'!$K$1:$AN$4997,MATCH(J$1&\"|\"&$B28,'Data Annex'!$K$1:$K$4997,0),MATCH(J$2,'Data Annex'!$K$1:$AN$1,0)),\"\")","v":0.3818658332},{"$f":"IFERROR(INDEX('Data Annex'!$K$1:$AN$4997,MATCH(K$1&\"|\"&$B28,'Data Annex'!$K$1:$K$4997,0),MATCH(K$2,'Data Annex'!$K$1:$AN$1,0)),\"\")","v":0.37921028530000001},{"$f":"IFERROR(INDEX('Data Annex'!$K$1:$AN$4997,MATCH(L$1&\"|\"&$B28,'Data Annex'!$K$1:$K$4997,0),MATCH(L$2,'Data Annex'!$K$1:$AN$1,0)),\"\")","v":0.39288860019999999},{"$f":"IFERROR(INDEX('Data Annex'!$K$1:$AN$4997,MATCH(M$1&\"|\"&$B28,'Data Annex'!$K$1:$K$4997,0),MATCH(M$2,'Data Annex'!$K$1:$AN$1,0)),\"\")","v":0.72826869159999996},{"$f":"IFERROR(INDEX('Data Annex'!$K$1:$AN$4997,MATCH(N$1&\"|\"&$B28,'Data Annex'!$K$1:$K$4997,0),MATCH(N$2,'Data Annex'!$K$1:$AN$1,0)),\"\")","v":0.69660801770000003},{"$f":"IFERROR(INDEX('Data Annex'!$K$1:$AN$4997,MATCH(O$1&\"|\"&$B28,'Data Annex'!$K$1:$K$4997,0),MATCH(O$2,'Data Annex'!$K$1:$AN$1,0)),\"\")","v":0.69938549530000005},{"$f":"IFERROR(INDEX('Data Annex'!$K$1:$AN$4997,MATCH(P$1&\"|\"&$B28,'Data Annex'!$K$1:$K$4997,0),MATCH(P$2,'Data Annex'!$K$1:$AN$1,0)),\"\")","v":0.66977564050000005},{"$f":"IFERROR(INDEX('Data Annex'!$K$1:$AN$4997,MATCH(Q$1&\"|\"&$B28,'Data Annex'!$K$1:$K$4997,0),MATCH(Q$2,'Data Annex'!$K$1:$AN$1,0)),\"\")","v":-2.9341407999999999E-2},{"$f":"IFERROR(INDEX('Data Annex'!$K$1:$AN$4997,MATCH(R$1&\"|\"&$B28,'Data Annex'!$K$1:$K$4997,0),MATCH(R$2,'Data Annex'!$K$1:$AN$1,0)),\"\")","v":-3.4683250999999998E-2},{"$f":"IFERROR(INDEX('Data Annex'!$K$1:$AN$4997,MATCH(S$1&\"|\"&$B28,'Data Annex'!$K$1:$K$4997,0),MATCH(S$2,'Data Annex'!$K$1:$AN$1,0)),\"\")","v":-4.6820384E-2},{"$f":"IFERROR(INDEX('Data Annex'!$K$1:$AN$4997,MATCH(T$1&\"|\"&$B28,'Data Annex'!$K$1:$K$4997,0),MATCH(T$2,'Data Annex'!$K$1:$AN$1,0)),\"\")","v":-5.0791769000000001E-2},-0.12033993029999995,-9.8885838000000031E-2,-9.173243760000005E-2,-7.0751041000000098E-2,{"$f":"IFERROR(INDEX('Data Annex'!$K$1:$AN$4997,MATCH(Y$1&\"|\"&$B28,'Data Annex'!$K$1:$K$4997,0),MATCH(Y$2,'Data Annex'!$K$1:$AN$1,0)),\"\")","v":3.9839285100000003E-2},{"$f":"IFERROR(INDEX('Data Annex'!$K$1:$AN$4997,MATCH(Z$1&\"|\"&$B28,'Data Annex'!$K$1:$K$4997,0),MATCH(Z$2,'Data Annex'!$K$1:$AN$1,0)),\"\")","v":5.5095238099999999E-2},{"$f":"IFERROR(INDEX('Data Annex'!$K$1:$AN$4997,MATCH(AA$1&\"|\"&$B28,'Data Annex'!$K$1:$K$4997,0),MATCH(AA$2,'Data Annex'!$K$1:$AN$1,0)),\"\")","v":5.9957041000000003E-2},{"$f":"IFERROR(INDEX('Data Annex'!$K$1:$AN$4997,MATCH(AB$1&\"|\"&$B28,'Data Annex'!$K$1:$K$4997,0),MATCH(AB$2,'Data Annex'!$K$1:$AN$1,0)),\"\")","v":5.8878569300000003E-2}]
[17,"IS",null,"IS",{"$f":"IFERROR(INDEX('Data Annex'!$K$1:$AN$4997,MATCH(E$1&\"|\"&$B29,'Data Annex'!$K$1:$K$4997,0),MATCH(E$2,'Data Annex'!$K$1:$AN$1,0)),\"\")","v":3.7961619964},{"$f":"IFERROR(INDEX('Data Annex'!$K$1:$AN$4997,MATCH(F$1&\"|\"&$B29,'Data Annex'!$K$1:$K$4997,0),MATCH(F$2,'Data Annex'!$K$1:$AN$1,0)),\"\")","v":3.8552265216000001},{"$f":"IFERROR(INDEX('Data Annex'!$K$1:$AN$4997,MATCH(G$1&\"|\"&$B29,'Data Annex'!$K$1:$K$4997,0),MATCH(G$2,'Data Annex'!$K$1:$AN$1,0)),\"\")","v":3.7371773698999999},{"$f":"IFERROR(INDEX('Data Annex'!$K$1:$AN$4997,MATCH(H$1&\"|\"&$B29,'Data Annex'!$K$1:$K$4997,0),MATCH(H$2,'Data Annex'!$K$1:$AN$1,0)),\"\")","v":4.0214378013000003},{"$f":"IFERROR(INDEX('Data Annex'!$K$1:$AN$4997,MATCH(I$1&\"|\"&$B29,'Data Annex'!$K$1:$K$4997,0),MATCH(I$2,'Data Annex'!$K$1:$AN$1,0)),\"\")","v":0.4329839546},{"$f":"IFERROR(INDEX('Data Annex'!$K$1:$AN$4997,MATCH(J$1&\"|\"&$B29,'Data Annex'!$K$1:$K$4997,0),MATCH(J$2,'Data Annex'!$K$1:$AN$1,0)),\"\")","v":0.44302356749999999},{"$f":"IFERROR(INDEX('Data Annex'!$K$1:$AN$4997,MATCH(K$1&\"|\"&$B29,'Data Annex'!$K$1:$K$4997,0),MATCH(K$2,'Data Annex'!$K$1:$AN$1,0)),\"\")","v":0.42191646599999999},{"$f":"IFERROR(INDEX('Data Annex'!$K$1:$AN$4997,MATCH(L$1&\"|\"&$B29,'Data Annex'!$K$1:$K$4997,0),MATCH(L$2,'Data Annex'!$K$1:$AN$1,0)),\"\")","v":0.41511214680000003},{"$f":"IFERROR(INDEX('Data Annex'!$K$1:$AN$4997,MATCH(M$1&\"|\"&$B29,'Data Annex'!$K$1:$K$4997,0),MATCH(M$2,'Data Annex'!$K$1:$AN$1,0)),\"\")","v":0.52183697750000002},{"$f":"IFERROR(INDEX('Data Annex'!$K$1:$AN$4997,MATCH(N$1&\"|\"&$B29,'Data Annex'!$K$1:$K$4997,0),MATCH(N$2,'Data Annex'!$K$1:$AN$1,0)),\"\")","v":0.50054748959999995},{"$f":"IFERROR(INDEX('Data Annex'!$K$1:$AN$4997,MATCH(O$1&\"|\"&$B29,'Data Annex'!$K$1:$K$4997,0),MATCH(O$2,'Data Annex'!$K$1:$AN$1,0)),\"\")","v":0.51332623320000004},{"$f":"IFERROR(INDEX('Data Annex'!$K$1:$AN$4997,MATCH(P$1&\"|\"&$B29,'Data Annex'!$K$1:$K$4997,0),MATCH(P$2,'Data Annex'!$K$1:$AN$1,0)),\"\")","v":0.54687485219999998},{"$f":"IFERROR(INDEX('Data Annex'!$K$1:$AN$4997,MATCH(Q$1&\"|\"&$B29,'Data Annex'!$K$1:$K$4997,0),MATCH(Q$2,'Data Annex'!$K$1:$AN$1,0)),\"\")","v":-6.9380839999999997E-3},{"$f":"IFERROR(INDEX('Data Annex'!$K$1:$AN$4997,MATCH(R$1&\"|\"&$B29,'Data Annex'!$K$1:$K$4997,0),MATCH(R$2,'Data Annex'!$K$1:$AN$1,0)),\"\")","v":4.5182008000000003E-3},{"$f":"IFERROR(INDEX('Data Annex'!$K$1:$AN$4997,MATCH(S$1&\"|\"&$B29,'Data Annex'!$K$1:$K$4997,0),MATCH(S$2,'Data Annex'!$K$1:$AN$1,0)),\"\")","v":5.0803682999999997E-3},{"$f":"IFERROR(INDEX('Data Annex'!$K$1:$AN$4997,MATCH(T$1&\"|\"&$B29,'Data Annex'!$K$1:$K$4997,0),MATCH(T$2,'Data Annex'!$K$1:$AN$1,0)),\"\")","v":3.6415945999999999E-3},2.6789956999999923E-2,2.7079743000000003E-2,3.5505150799999975E-2,1.2593927399999937E-2,{"$f":"IFERROR(INDEX('Data Annex'!$K$1:$AN$4997,MATCH(Y$1&\"|\"&$B29,'Data Annex'!$K$1:$K$4997,0),MATCH(Y$2,'Data Annex'!$K$1:$AN$1,0)),\"\")","v":2.5327194899999999E-2},{"$f":"IFERROR(INDEX('Data Annex'!$K$1:$AN$4997,MATCH(Z$1&\"|\"&$B29,'Data Annex'!$K$1:$K$4997,0),MATCH(Z$2,'Data Annex'!$K$1:$AN$1,0)),\"\")","v":2.4830999100000001E-2},{"$f":"IFERROR(INDEX('Data Annex'!$K$1:$AN$4997,MATCH(AA$1&\"|\"&$B29,'Data Annex'!$K$1:$K$4997,0),MATCH(AA$2,'Data Annex'!$K$1:$AN$1,0)),\"\")","v":2.4171781699999999E-2},{"$f":"IFERROR(INDEX('Data Annex'!$K$1:$AN$4997,MATCH(AB$1&\"|\"&$B29,'Data Annex'!$K$1:$K$4997,0),MATCH(AB$2,'Data Annex'!$K$1:$AN$1,0)),\"\")","v":2.1777478999999999E-2}]
[18,"IT",null,"IT",{"$f":"IFERROR(INDEX('Data Annex'!$K$1:$AN$4997,MATCH(E$1&\"|\"&$B30,'Data Annex'!$K$1:$K$4997,0),MATCH(E$2,'Data Annex'!$K$1:$AN$1,0)),\"\")","v":163.19369821999999},{"$f":"IFERROR(INDEX('Data Annex'!$K$1:$AN$4997,MATCH(F$1&\"|\"&$B30,'Data Annex'!$K$1:$K$4997,0),MATCH(F$2,'Data Annex'!$K$1:$AN$1,0)),\"\")","v":168.55712414999999},{"$f":"IFERROR(INDEX('Data Annex'!$K$1:$AN$4997,MATCH(G$1&\"|\"&$B30,'Data Annex'!$K$1:$K$4997,0),MATCH(G$2,'Data Annex'!$K$1:$AN$1,0)),\"\")","v":169.30068890000001},{"$f":"IFERROR(INDEX('Data Annex'!$K$1:$AN$4997,MATCH(H$1&\"|\"&$B30,'Data Annex'!$K$1:$K$4997,0),MATCH(H$2,'Data Annex'!$K$1:$AN$1,0)),\"\")","v":171.73145568000001},{"$f":"IFERROR(INDEX('Data Annex'!$K$1:$AN$4997,MATCH(I$1&\"|\"&$B30,'Data Annex'!$K$1:$K$4997,0),MATCH(I$2,'Data Annex'!$K$1:$AN$1,0)),\"\")","v":0.60463372199999998},{"$f":"IFERROR(INDEX('Data Annex'!$K$1:$AN$4997,MATCH(J$1&\"|\"&$B30,'Data Annex'!$K$1:$K$4997,0),MATCH(J$2,'Data Annex'!$K$1:$AN$1,0)),\"\")","v":0.56254077329999996},{"$f":"IFERROR(INDEX('Data Annex'!$K$1:$AN$4997,MATCH(K$1&\"|\"&$B30,'Data Annex'!$K$1:$K$4997,0),MATCH(K$2,'Data Annex'!$K$1:$AN$1,0)),\"\")","v":0.54412220590000004},{"$f":"IFERROR(INDEX('Data Annex'!$K$1:$AN$4997,MATCH(L$1&\"|\"&$B30,'Data Annex'!$K$1:$K$4997,0),MATCH(L$2,'Data Annex'!$K$1:$AN$1,0)),\"\")","v":0.53583792340000003},{"$f":"IFERROR(INDEX('Data Annex'!$K$1:$AN$4997,MATCH(M$1&\"|\"&$B30,'Data Annex'!$K$1:$K$4997,0),MATCH(M$2,'Data Annex'!$K$1:$AN$1,0)),\"\")","v":0.29456584860000001},{"$f":"IFERROR(INDEX('Data Annex'!$K$1:$AN$4997,MATCH(N$1&\"|\"&$B30,'Data Annex'!$K$1:$K$4997,0),MATCH(N$2,'Data Annex'!$K$1:$AN$1,0)),\"\")","v":0.32677079219999999},{"$f":"IFERROR(INDEX('Data Annex'!$K$1:$AN$4997,MATCH(O$1&\"|\"&$B30,'Data Annex'!$K$1:$K$4997,0),MATCH(O$2,'Data Annex'!$K$1:$AN$1,0)),\"\")","v":0.33662575099999997},{"$f":"IFERROR(INDEX('Data Annex'!$K$1:$AN$4997,MATCH(P$1&\"|\"&$B30,'Data Annex'!$K$1:$K$4997,0),MATCH(P$2,'Data Annex'!$K$1:$AN$1,0)),\"\")","v":0.31750818209999998},{"$f":"IFERROR(INDEX('Data Annex'!$K$1:$AN$4997,MATCH(Q$1&\"|\"&$B30,'Data Annex'!$K$1:$K$4997,0),MATCH(Q$2,'Data Annex'!$K$1:$AN$1,0)),\"\")","v":-4.2115729999999997E-2},{"$f":"IFERROR(INDEX('Data Annex'!$K$1:$AN$4997,MATCH(R$1&\"|\"&$B30,'Data Annex'!$K$1:$K$4997,0),MATCH(R$2,'Data Annex'!$K$1:$AN$1,0)),\"\")","v":-3.6633564E-2},{"$f":"IFERROR(INDEX('Data Annex'!$K$1:$AN$4997,MATCH(S$1&\"|\"&$B30,'Data Annex'!$K$1:$K$4997,0),MATCH(S$2,'Data Annex'!$K$1:$AN$1,0)),\"\")","v":-3.1493373999999998E-2},{"$f":"IFERROR(INDEX('Data Annex'!$K$1:$AN$4997,MATCH(T$1&\"|\"&$B30,'Data Annex'!$K$1:$K$4997,0),MATCH(T$2,'Data Annex'!$K$1:$AN$1,0)),\"\")","v":-2.6071270000000001E-2},5.4684767599999989E-2,6.1978048200000052E-2,5.6898619999999969E-2,8.0202823399999998E-2,{"$f":"IFERROR(INDEX('Data Annex'!$K$1:$AN$4997,MATCH(Y$1&\"|\"&$B30,'Data Annex'!$K$1:$K$4997,0),MATCH(Y$2,'Data Annex'!$K$1:$AN$1,0)),\"\")","v":8.8231391800000003E-2},{"$f":"IFERROR(INDEX('Data Annex'!$K$1:$AN$4997,MATCH(Z$1&\"|\"&$B30,'Data Annex'!$K$1:$K$4997,0),MATCH(Z$2,'Data Annex'!$K$1:$AN$1,0)),\"\")","v":8.5343950299999999E-2},{"$f":"IFERROR(INDEX('Data Annex'!$K$1:$AN$4997,MATCH(AA$1&\"|\"&$B30,'Data Annex'!$K$1:$K$4997,0),MATCH(AA$2,'Data Annex'!$K$1:$AN$1,0)),\"\")","v":9.3846797100000004E-2},{"$f":"IFERROR(INDEX('Data Annex'!$K$1:$AN$4997,MATCH(AB$1&\"|\"&$B30,'Data Annex'!$K$1:$K$4997,0),MATCH(AB$2,'Data Annex'!$K$1:$AN$1,0)),\"\")","v":9.2522341100000002E-2}]
[19,"LT",null,"LT",{"$f":"IFERROR(INDEX('Data Annex'!$K$1:$AN$4997,MATCH(E$1&\"|\"&$B31,'Data Annex'!$K$1:$K$4997,0),MATCH(E$2,'Data Annex'!$K$1:$AN$1,0)),\"\")","v":1.891454},{"$f":"IFERROR(INDEX('Data Annex'!$K$1:$AN$4997,MATCH(F$1&\"|\"&$B31,'Data Annex'!$K$1:$K$4997,0),MATCH(F$2,'Data Annex'!$K$1:$AN$1,0)),\"\")","v":1.8949780000000001},{"$f":"IFERROR(INDEX('Data Annex'!$K$1:$AN$4997,MATCH(G$1&\"|\"&$B31,'Data Annex'!$K$1:$K$4997,0),MATCH(G$2,'Data Annex'!$K$1:$AN$1,0)),\"\")","v":1.8970180000000001},{"$f":"IFERROR(INDEX('Data Annex'!$K$1:$AN$4997,MATCH(H$1&\"|\"&$B31,'Data Annex'!$K$1:$K$4997,0),MATCH(H$2,'Data Annex'!$K$1:$AN$1,0)),\"\")","v":1.904587},{"$f":"IFERROR(INDEX('Data Annex'!$K$1:$AN$4997,MATCH(I$1&\"|\"&$B31,'Data Annex'!$K$1:$K$4997,0),MATCH(I$2,'Data Annex'!$K$1:$AN$1,0)),\"\")","v":0.51783495660000001},{"$f":"IFERROR(INDEX('Data Annex'!$K$1:$AN$4997,MATCH(J$1&\"|\"&$B31,'Data Annex'!$K$1:$K$4997,0),MATCH(J$2,'Data Annex'!$K$1:$AN$1,0)),\"\")","v":0.51687196369999999},{"$f":"IFERROR(INDEX('Data Annex'!$K$1:$AN$4997,MATCH(K$1&\"|\"&$B31,'Data Annex'!$K$1:$K$4997,0),MATCH(K$2,'Data Annex'!$K$1:$AN$1,0)),\"\")","v":0.51631613409999999},{"$f":"IFERROR(INDEX('Data Annex'!$K$1:$AN$4997,MATCH(L$1&\"|\"&$B31,'Data Annex'!$K$1:$K$4997,0),MATCH(L$2,'Data Annex'!$K$1:$AN$1,0)),\"\")","v":0.51426424729999998},{"$f":"IFERROR(INDEX('Data Annex'!$K$1:$AN$4997,MATCH(M$1&\"|\"&$B31,'Data Annex'!$K$1:$K$4997,0),MATCH(M$2,'Data Annex'!$K$1:$AN$1,0)),\"\")","v":0.32188993230000001},{"$f":"IFERROR(INDEX('Data Annex'!$K$1:$AN$4997,MATCH(N$1&\"|\"&$B31,'Data Annex'!$K$1:$K$4997,0),MATCH(N$2,'Data Annex'!$K$1:$AN$1,0)),\"\")","v":0.32149080359999999},{"$f":"IFERROR(INDEX('Data Annex'!$K$1:$AN$4997,MATCH(O$1&\"|\"&$B31,'Data Annex'!$K$1:$K$4997,0),MATCH(O$2,'Data Annex'!$K$1:$AN$1,0)),\"\")","v":0.32136068290000003},{"$f":"IFERROR(INDEX('Data Annex'!$K$1:$AN$4997,MATCH(P$1&\"|\"&$B31,'Data Annex'!$K$1:$K$4997,0),MATCH(P$2,'Data Annex'!$K$1:$AN$1,0)),\"\")","v":0.3209351949},{"$f":"IFERROR(INDEX('Data Annex'!$K$1:$AN$4997,MATCH(Q$1&\"|\"&$B31,'Data Annex'!$K$1:$K$4997,0),MATCH(Q$2,'Data Annex'!$K$1:$AN$1,0)),\"\")","v":2.1147751999999999E-6},{"$f":"IFERROR(INDEX('Data Annex'!$K$1:$AN$4997,MATCH(R$1&\"|\"&$B31,'Data Annex'!$K$1:$K$4997,0),MATCH(R$2,'Data Annex'!$K$1:$AN$1,0)),\"\")","v":3.1662599999999997E-5},{"$f":"IFERROR(INDEX('Data Annex'!$K$1:$AN$4997,MATCH(S$1&\"|\"&$B31,'Data Annex'!$K$1:$K$4997,0),MATCH(S$2,'Data Annex'!$K$1:$AN$1,0)),\"\")","v":8.9087199999999996E-5},{"$f":"IFERROR(INDEX('Data Annex'!$K$1:$AN$4997,MATCH(T$1&\"|\"&$B31,'Data Annex'!$K$1:$K$4997,0),MATCH(T$2,'Data Annex'!$K$1:$AN$1,0)),\"\")","v":1.9689309999999999E-4},0.16027299632479997,0.16160557010000001,0.16223409579999998,0.16460366470000001,{"$f":"IFERROR(INDEX('Data Annex'!$K$1:$AN$4997,MATCH(Y$1&\"|\"&$B31,'Data Annex'!$K$1:$K$4997,0),MATCH(Y$2,'Data Annex'!$K$1:$AN$1,0)),\"\")","v":0},{"$f":"IFERROR(INDEX('Data Annex'!$K$1:$AN$4997,MATCH(Z$1&\"|\"&$B31,'Data Annex'!$K$1:$K$4997,0),MATCH(Z$2,'Data Annex'!$K$1:$AN$1,0)),\"\")","v":0},{"$f":"IFERROR(INDEX('Data Annex'!$K$1:$AN$4997,MATCH(AA$1&\"|\"&$B31,'Data Annex'!$K$1:$K$4997,0),MATCH(AA$2,'Data Annex'!$K$1:$AN$1,0)),\"\")","v":0},{"$f":"IFERROR(INDEX('Data Annex'!$K$1:$AN$4997,MATCH(AB$1&\"|\"&$B31,'Data Annex'!$K$1:$K$4997,0),MATCH(AB$2,'Data Annex'!$K$1:$AN$1,0)),\"\")","v":0}]
[20,"LU",null,"LU",{"$f":"IFERROR(INDEX('Data Annex'!$K$1:$AN$4997,MATCH(E$1&\"|\"&$B32,'Data Annex'!$K$1:$K$4997,0),MATCH(E$2,'Data Annex'!$K$1:$AN$1,0)),\"\")","v":20.013603920000001},{"$f":"IFERROR(INDEX('Data Annex'!$K$1:$AN$4997,MATCH(F$1&\"|\"&$B32,'Data Annex'!$K$1:$K$4997,0),MATCH(F$2,'Data Annex'!$K$1:$AN$1,0)),\"\")","v":20.483521941999999},{"$f":"IFERROR(INDEX('Data Annex'!$K$1:$AN$4997,MATCH(G$1&\"|\"&$B32,'Data Annex'!$K$1:$K$4997,0),MATCH(G$2,'Data Annex'!$K$1:$AN$1,0)),\"\")","v":20.448518623999998},{"$f":"IFERROR(INDEX('Data Annex'!$K$1:$AN$4997,MATCH(H$1&\"|\"&$B32,'Data Annex'!$K$1:$K$4997,0),MATCH(H$2,'Data Annex'!$K$1:$AN$1,0)),\"\")","v":20.849774666999998},{"$f":"IFERROR(INDEX('Data Annex'!$K$1:$AN$4997,MATCH(I$1&\"|\"&$B32,'Data Annex'!$K$1:$K$4997,0),MATCH(I$2,'Data Annex'!$K$1:$AN$1,0)),\"\")","v":0.53241366430000003},{"$f":"IFERROR(INDEX('Data Annex'!$K$1:$AN$4997,MATCH(J$1&\"|\"&$B32,'Data Annex'!$K$1:$K$4997,0),MATCH(J$2,'Data Annex'!$K$1:$AN$1,0)),\"\")","v":0.51951071270000004},{"$f":"IFERROR(INDEX('Data Annex'!$K$1:$AN$4997,MATCH(K$1&\"|\"&$B32,'Data Annex'!$K$1:$K$4997,0),MATCH(K$2,'Data Annex'!$K$1:$AN$1,0)),\"\")","v":0.51421743720000002},{"$f":"IFERROR(INDEX('Data Annex'!$K$1:$AN$4997,MATCH(L$1&\"|\"&$B32,'Data Annex'!$K$1:$K$4997,0),MATCH(L$2,'Data Annex'!$K$1:$AN$1,0)),\"\")","v":0.49821286650000002},{"$f":"IFERROR(INDEX('Data Annex'!$K$1:$AN$4997,MATCH(M$1&\"|\"&$B32,'Data Annex'!$K$1:$K$4997,0),MATCH(M$2,'Data Annex'!$K$1:$AN$1,0)),\"\")","v":0.45092160260000003},{"$f":"IFERROR(INDEX('Data Annex'!$K$1:$AN$4997,MATCH(N$1&\"|\"&$B32,'Data Annex'!$K$1:$K$4997,0),MATCH(N$2,'Data Annex'!$K$1:$AN$1,0)),\"\")","v":0.4474568598},{"$f":"IFERROR(INDEX('Data Annex'!$K$1:$AN$4997,MATCH(O$1&\"|\"&$B32,'Data Annex'!$K$1:$K$4997,0),MATCH(O$2,'Data Annex'!$K$1:$AN$1,0)),\"\")","v":0.45364034349999999},{"$f":"IFERROR(INDEX('Data Annex'!$K$1:$AN$4997,MATCH(P$1&\"|\"&$B32,'Data Annex'!$K$1:$K$4997,0),MATCH(P$2,'Data Annex'!$K$1:$AN$1,0)),\"\")","v":0.4393871835},{"$f":"IFERROR(INDEX('Data Annex'!$K$1:$AN$4997,MATCH(Q$1&\"|\"&$B32,'Data Annex'!$K$1:$K$4997,0),MATCH(Q$2,'Data Annex'!$K$1:$AN$1,0)),\"\")","v":6.9295104E-3},{"$f":"IFERROR(INDEX('Data Annex'!$K$1:$AN$4997,MATCH(R$1&\"|\"&$B32,'Data Annex'!$K$1:$K$4997,0),MATCH(R$2,'Data Annex'!$K$1:$AN$1,0)),\"\")","v":1.1538767199999999E-2},{"$f":"IFERROR(INDEX('Data Annex'!$K$1:$AN$4997,MATCH(S$1&\"|\"&$B32,'Data Annex'!$K$1:$K$4997,0),MATCH(S$2,'Data Annex'!$K$1:$AN$1,0)),\"\")","v":1.19083703E-2},{"$f":"IFERROR(INDEX('Data Annex'!$K$1:$AN$4997,MATCH(T$1&\"|\"&$B32,'Data Annex'!$K$1:$K$4997,0),MATCH(T$2,'Data Annex'!$K$1:$AN$1,0)),\"\")","v":3.4007854400000002E-2},9.9117039999994071E-4,1.2950207599999959E-2,1.1675771799999998E-2,1.5785731899999926E-2,{"$f":"IFERROR(INDEX('Data Annex'!$K$1:$AN$4997,MATCH(Y$1&\"|\"&$B32,'Data Annex'!$K$1:$K$4997,0),MATCH(Y$2,'Data Annex'!$K$1:$AN$1,0)),\"\")","v":8.7440522999999992E-3},{"$f":"IFERROR(INDEX('Data Annex'!$K$1:$AN$4997,MATCH(Z$1&\"|\"&$B32,'Data Annex'!$K$1:$K$4997,0),MATCH(Z$2,'Data Annex'!$K$1:$AN$1,0)),\"\")","v":8.5434527000000007E-3},{"$f":"IFERROR(INDEX('Data Annex'!$K$1:$AN$4997,MATCH(AA$1&\"|\"&$B32,'Data Annex'!$K$1:$K$4997,0),MATCH(AA$2,'Data Annex'!$K$1:$AN$1,0)),\"\")","v":8.5580771999999999E-3},{"$f":"IFERROR(INDEX('Data Annex'!$K$1:$AN$4997,MATCH(AB$1&\"|\"&$B32,'Data Annex'!$K$1:$K$4997,0),MATCH(AB$2,'Data Annex'!$K$1:$AN$1,0)),\"\")","v":1.26063637E-2}]
[21,"LV",null,"LV",{"$f":"IFERROR(INDEX('Data Annex'!$K$1:$AN$4997,MATCH(E$1&\"|\"&$B33,'Data Annex'!$K$1:$K$4997,0),MATCH(E$2,'Data Annex'!$K$1:$AN$1,0)),\"\")","v":1.5261193930000001},{"$f":"IFERROR(INDEX('Data Annex'!$K$1:$AN$4997,MATCH(F$1&\"|\"&$B33,'Data Annex'!$K$1:$K$4997,0),MATCH(F$2,'Data Annex'!$K$1:$AN$1,0)),\"\")","v":1.5033379330000001},{"$f":"IFERROR(INDEX('Data Annex'!$K$1:$AN$4997,MATCH(G$1&\"|\"&$B33,'Data Annex'!$K$1:$K$4997,0),MATCH(G$2,'Data Annex'!$K$1:$AN$1,0)),\"\")","v":1.5114346649999999},{"$f":"IFERROR(INDEX('Data Annex'!$K$1:$AN$4997,MATCH(H$1&\"|\"&$B33,'Data Annex'!$K$1:$K$4997,0),MATCH(H$2,'Data Annex'!$K$1:$AN$1,0)),\"\")","v":1.536397389},{"$f":"IFERROR(INDEX('Data Annex'!$K$1:$AN$4997,MATCH(I$1&\"|\"&$B33,'Data Annex'!$K$1:$K$4997,0),MATCH(I$2,'Data Annex'!$K$1:$AN$1,0)),\"\")","v":0.5778784347},{"$f":"IFERROR(INDEX('Data Annex'!$K$1:$AN$4997,MATCH(J$1&\"|\"&$B33,'Data Annex'!$K$1:$K$4997,0),MATCH(J$2,'Data Annex'!$K$1:$AN$1,0)),\"\")","v":0.58663555720000005},{"$f":"IFERROR(INDEX('Data Annex'!$K$1:$AN$4997,MATCH(K$1&\"|\"&$B33,'Data Annex'!$K$1:$K$4997,0),MATCH(K$2,'Data Annex'!$K$1:$AN$1,0)),\"\")","v":0.58349295970000004},{"$f":"IFERROR(INDEX('Data Annex'!$K$1:$AN$4997,MATCH(L$1&\"|\"&$B33,'Data Annex'!$K$1:$K$4997,0),MATCH(L$2,'Data Annex'!$K$1:$AN$1,0)),\"\")","v":0.57401261699999995},{"$f":"IFERROR(INDEX('Data Annex'!$K$1:$AN$4997,MATCH(M$1&\"|\"&$B33,'Data Annex'!$K$1:$K$4997,0),MATCH(M$2,'Data Annex'!$K$1:$AN$1,0)),\"\")","v":0.44982632950000001},{"$f":"IFERROR(INDEX('Data Annex'!$K$1:$AN$4997,MATCH(N$1&\"|\"&$B33,'Data Annex'!$K$1:$K$4997,0),MATCH(N$2,'Data Annex'!$K$1:$AN$1,0)),\"\")","v":0.44268154780000002},{"$f":"IFERROR(INDEX('Data Annex'!$K$1:$AN$4997,MATCH(O$1&\"|\"&$B33,'Data Annex'!$K$1:$K$4997,0),MATCH(O$2,'Data Annex'!$K$1:$AN$1,0)),\"\")","v":0.44764122499999998},{"$f":"IFERROR(INDEX('Data Annex'!$K$1:$AN$4997,MATCH(P$1&\"|\"&$B33,'Data Annex'!$K$1:$K$4997,0),MATCH(P$2,'Data Annex'!$K$1:$AN$1,0)),\"\")","v":0.45478102929999997},{"$f":"IFERROR(INDEX('Data Annex'!$K$1:$AN$4997,MATCH(Q$1&\"|\"&$B33,'Data Annex'!$K$1:$K$4997,0),MATCH(Q$2,'Data Annex'!$K$1:$AN$1,0)),\"\")","v":3.7808771999999998E-3},{"$f":"IFERROR(INDEX('Data Annex'!$K$1:$AN$4997,MATCH(R$1&\"|\"&$B33,'Data Annex'!$K$1:$K$4997,0),MATCH(R$2,'Data Annex'!$K$1:$AN$1,0)),\"\")","v":6.1290996999999996E-3},{"$f":"IFERROR(INDEX('Data Annex'!$K$1:$AN$4997,MATCH(S$1&\"|\"&$B33,'Data Annex'!$K$1:$K$4997,0),MATCH(S$2,'Data Annex'!$K$1:$AN$1,0)),\"\")","v":4.8431118E-3},{"$f":"IFERROR(INDEX('Data Annex'!$K$1:$AN$4997,MATCH(T$1&\"|\"&$B33,'Data Annex'!$K$1:$K$4997,0),MATCH(T$2,'Data Annex'!$K$1:$AN$1,0)),\"\")","v":4.8350271E-3},-3.1485641400000007E-2,-3.5446204700000067E-2,-3.5977296500000013E-2,-3.362867339999992E-2,{"$f":"IFERROR(INDEX('Data Annex'!$K$1:$AN$4997,MATCH(Y$1&\"|\"&$B33,'Data Annex'!$K$1:$K$4997,0),MATCH(Y$2,'Data Annex'!$K$1:$AN$1,0)),\"\")","v":0},{"$f":"IFERROR(INDEX('Data Annex'!$K$1:$AN$4997,MATCH(Z$1&\"|\"&$B33,'Data Annex'!$K$1:$K$4997,0),MATCH(Z$2,'Data Annex'!$K$1:$AN$1,0)),\"\")","v":0},{"$f":"IFERROR(INDEX('Data Annex'!$K$1:$AN$4997,MATCH(AA$1&\"|\"&$B33,'Data Annex'!$K$1:$K$4997,0),MATCH(AA$2,'Data Annex'!$K$1:$AN$1,0)),\"\")","v":0},{"$f":"IFERROR(INDEX('Data Annex'!$K$1:$AN$4997,MATCH(AB$1&\"|\"&$B33,'Data Annex'!$K$1:$K$4997,0),MATCH(AB$2,'Data Annex'!$K$1:$AN$1,0)),\"\")","v":0}]
[22,"MT",null,"MT",{"$f":"IFERROR(INDEX('Data Annex'!$K$1:$AN$4997,MATCH(E$1&\"|\"&$B34,'Data Annex'!$K$1:$K$4997,0),MATCH(E$2,'Data Annex'!$K$1:$AN$1,0)),\"\")","v":1.7500600362000001},{"$f":"IFERROR(INDEX('Data Annex'!$K$1:$AN$4997,MATCH(F$1&\"|\"&$B34,'Data Annex'!$K$1:$K$4997,0),MATCH(F$2,'Data Annex'!$K$1:$AN$1,0)),\"\")","v":1.7446173116999999},{"$f":"IFERROR(INDEX('Data Annex'!$K$1:$AN$4997,MATCH(G$1&\"|\"&$B34,'Data Annex'!$K$1:$K$4997,0),MATCH(G$2,'Data Annex'!$K$1:$AN$1,0)),\"\")","v":1.7410099650999999},{"$f":"IFERROR(INDEX('Data Annex'!$K$1:$AN$4997,MATCH(H$1&\"|\"&$B34,'Data Annex'!$K$1:$K$4997,0),MATCH(H$2,'Data Annex'!$K$1:$AN$1,0)),\"\")","v":1.794124488},{"$f":"IFERROR(INDEX('Data Annex'!$K$1:$AN$4997,MATCH(I$1&\"|\"&$B34,'Data Annex'!$K$1:$K$4997,0),MATCH(I$2,'Data Annex'!$K$1:$AN$1,0)),\"\")","v":0.57218448150000001},{"$f":"IFERROR(INDEX('Data Annex'!$K$1:$AN$4997,MATCH(J$1&\"|\"&$B34,'Data Annex'!$K$1:$K$4997,0),MATCH(J$2,'Data Annex'!$K$1:$AN$1,0)),\"\")","v":0.57367424789999999},{"$f":"IFERROR(INDEX('Data Annex'!$K$1:$AN$4997,MATCH(K$1&\"|\"&$B34,'Data Annex'!$K$1:$K$4997,0),MATCH(K$2,'Data Annex'!$K$1:$AN$1,0)),\"\")","v":0.57486288389999995},{"$f":"IFERROR(INDEX('Data Annex'!$K$1:$AN$4997,MATCH(L$1&\"|\"&$B34,'Data Annex'!$K$1:$K$4997,0),MATCH(L$2,'Data Annex'!$K$1:$AN$1,0)),\"\")","v":0.5578442388},{"$f":"IFERROR(INDEX('Data Annex'!$K$1:$AN$4997,MATCH(M$1&\"|\"&$B34,'Data Annex'!$K$1:$K$4997,0),MATCH(M$2,'Data Annex'!$K$1:$AN$1,0)),\"\")","v":0.40180616749999998},{"$f":"IFERROR(INDEX('Data Annex'!$K$1:$AN$4997,MATCH(N$1&\"|\"&$B34,'Data Annex'!$K$1:$K$4997,0),MATCH(N$2,'Data Annex'!$K$1:$AN$1,0)),\"\")","v":0.38418853149999999},{"$f":"IFERROR(INDEX('Data Annex'!$K$1:$AN$4997,MATCH(O$1&\"|\"&$B34,'Data Annex'!$K$1:$K$4997,0),MATCH(O$2,'Data Annex'!$K$1:$AN$1,0)),\"\")","v":0.38659575270000002},{"$f":"IFERROR(INDEX('Data Annex'!$K$1:$AN$4997,MATCH(P$1&\"|\"&$B34,'Data Annex'!$K$1:$K$4997,0),MATCH(P$2,'Data Annex'!$K$1:$AN$1,0)),\"\")","v":0.3672850265},{"$f":"IFERROR(INDEX('Data Annex'!$K$1:$AN$4997,MATCH(Q$1&\"|\"&$B34,'Data Annex'!$K$1:$K$4997,0),MATCH(Q$2,'Data Annex'!$K$1:$AN$1,0)),\"\")","v":2.2212441199999999E-2},{"$f":"IFERROR(INDEX('Data Annex'!$K$1:$AN$4997,MATCH(R$1&\"|\"&$B34,'Data Annex'!$K$1:$K$4997,0),MATCH(R$2,'Data Annex'!$K$1:$AN$1,0)),\"\")","v":2.2955169899999999E-2},{"$f":"IFERROR(INDEX('Data Annex'!$K$1:$AN$4997,MATCH(S$1&\"|\"&$B34,'Data Annex'!$K$1:$K$4997,0),MATCH(S$2,'Data Annex'!$K$1:$AN$1,0)),\"\")","v":2.3471818799999999E-2},{"$f":"IFERROR(INDEX('Data Annex'!$K$1:$AN$4997,MATCH(T$1&\"|\"&$B34,'Data Annex'!$K$1:$K$4997,0),MATCH(T$2,'Data Annex'!$K$1:$AN$1,0)),\"\")","v":2.5074114500000001E-2},3.7969098000000152E-3,1.9182050700000026E-2,1.506954460000003E-2,4.9796620199999996E-2,{"$f":"IFERROR(INDEX('Data Annex'!$K$1:$AN$4997,MATCH(Y$1&\"|\"&$B34,'Data Annex'!$K$1:$K$4997,0),MATCH(Y$2,'Data Annex'!$K$1:$AN$1,0)),\"\")","v":0},{"$f":"IFERROR(INDEX('Data Annex'!$K$1:$AN$4997,MATCH(Z$1&\"|\"&$B34,'Data Annex'!$K$1:$K$4997,0),MATCH(Z$2,'Data Annex'!$K$1:$AN$1,0)),\"\")","v":0},{"$f":"IFERROR(INDEX('Data Annex'!$K$1:$AN$4997,MATCH(AA$1&\"|\"&$B34,'Data Annex'!$K$1:$K$4997,0),MATCH(AA$2,'Data Annex'!$K$1:$AN$1,0)),\"\")","v":0},{"$f":"IFERROR(INDEX('Data Annex'!$K$1:$AN$4997,MATCH(AB$1&\"|\"&$B34,'Data Annex'!$K$1:$K$4997,0),MATCH(AB$2,'Data Annex'!$K$1:$AN$1,0)),\"\")","v":0}]
[23,"NL",null,"NL",{"$f":"IFERROR(INDEX('Data Annex'!$K$1:$AN$4997,MATCH(E$1&\"|\"&$B35,'Data Annex'!$K$1:$K$4997,0),MATCH(E$2,'Data Annex'!$K$1:$AN$1,0)),\"\")","v":123.18990774},{"$f":"IFERROR(INDEX('Data Annex'!$K$1:$AN$4997,MATCH(F$1&\"|\"&$B35,'Data Annex'!$K$1:$K$4997,0),MATCH(F$2,'Data Annex'!$K$1:$AN$1,0)),\"\")","v":124.49370828000001},{"$f":"IFERROR(INDEX('Data Annex'!$K$1:$AN$4997,MATCH(G$1&\"|\"&$B35,'Data Annex'!$K$1:$K$4997,0),MATCH(G$2,'Data Annex'!$K$1:$AN$1,0)),\"\")","v":123.7380872},{"$f":"IFERROR(INDEX('Data Annex'!$K$1:$AN$4997,MATCH(H$1&\"|\"&$B35,'Data Annex'!$K$1:$K$4997,0),MATCH(H$2,'Data Annex'!$K$1:$AN$1,0)),\"\")","v":123.67143205000001},{"$f":"IFERROR(INDEX('Data Annex'!$K$1:$AN$4997,MATCH(I$1&\"|\"&$B35,'Data Annex'!$K$1:$K$4997,0),MATCH(I$2,'Data Annex'!$K$1:$AN$1,0)),\"\")","v":0.34512120590000001},{"$f":"IFERROR(INDEX('Data Annex'!$K$1:$AN$4997,MATCH(J$1&\"|\"&$B35,'Data Annex'!$K$1:$K$4997,0),MATCH(J$2,'Data Annex'!$K$1:$AN$1,0)),\"\")","v":0.34153156089999998},{"$f":"IFERROR(INDEX('Data Annex'!$K$1:$AN$4997,MATCH(K$1&\"|\"&$B35,'Data Annex'!$K$1:$K$4997,0),MATCH(K$2,'Data Annex'!$K$1:$AN$1,0)),\"\")","v":0.34365201109999999},{"$f":"IFERROR(INDEX('Data Annex'!$K$1:$AN$4997,MATCH(L$1&\"|\"&$B35,'Data Annex'!$K$1:$K$4997,0),MATCH(L$2,'Data Annex'!$K$1:$AN$1,0)),\"\")","v":0.34691718370000002},{"$f":"IFERROR(INDEX('Data Annex'!$K$1:$AN$4997,MATCH(M$1&\"|\"&$B35,'Data Annex'!$K$1:$K$4997,0),MATCH(M$2,'Data Annex'!$K$1:$AN$1,0)),\"\")","v":0.58200453210000003},{"$f":"IFERROR(INDEX('Data Annex'!$K$1:$AN$4997,MATCH(N$1&\"|\"&$B35,'Data Annex'!$K$1:$K$4997,0),MATCH(N$2,'Data Annex'!$K$1:$AN$1,0)),\"\")","v":0.57871172270000004},{"$f":"IFERROR(INDEX('Data Annex'!$K$1:$AN$4997,MATCH(O$1&\"|\"&$B35,'Data Annex'!$K$1:$K$4997,0),MATCH(O$2,'Data Annex'!$K$1:$AN$1,0)),\"\")","v":0.58596814730000002},{"$f":"IFERROR(INDEX('Data Annex'!$K$1:$AN$4997,MATCH(P$1&\"|\"&$B35,'Data Annex'!$K$1:$K$4997,0),MATCH(P$2,'Data Annex'!$K$1:$AN$1,0)),\"\")","v":0.58880947790000004},{"$f":"IFERROR(INDEX('Data Annex'!$K$1:$AN$4997,MATCH(Q$1&\"|\"&$B35,'Data Annex'!$K$1:$K$4997,0),MATCH(Q$2,'Data Annex'!$K$1:$AN$1,0)),\"\")","v":1.10261048E-2},{"$f":"IFERROR(INDEX('Data Annex'!$K$1:$AN$4997,MATCH(R$1&\"|\"&$B35,'Data Annex'!$K$1:$K$4997,0),MATCH(R$2,'Data Annex'!$K$1:$AN$1,0)),\"\")","v":5.5065145999999999E-3},{"$f":"IFERROR(INDEX('Data Annex'!$K$1:$AN$4997,MATCH(S$1&\"|\"&$B35,'Data Annex'!$K$1:$K$4997,0),MATCH(S$2,'Data Annex'!$K$1:$AN$1,0)),\"\")","v":-4.6362139999999996E-3},{"$f":"IFERROR(INDEX('Data Annex'!$K$1:$AN$4997,MATCH(T$1&\"|\"&$B35,'Data Annex'!$K$1:$K$4997,0),MATCH(T$2,'Data Annex'!$K$1:$AN$1,0)),\"\")","v":-7.5301420000000001E-3},-5.5391001599999982E-2,-3.6917183200000064E-2,-3.2644312800000005E-2,-3.4454507200000067E-2,{"$f":"IFERROR(INDEX('Data Annex'!$K$1:$AN$4997,MATCH(Y$1&\"|\"&$B35,'Data Annex'!$K$1:$K$4997,0),MATCH(Y$2,'Data Annex'!$K$1:$AN$1,0)),\"\")","v":0.11723915880000001},{"$f":"IFERROR(INDEX('Data Annex'!$K$1:$AN$4997,MATCH(Z$1&\"|\"&$B35,'Data Annex'!$K$1:$K$4997,0),MATCH(Z$2,'Data Annex'!$K$1:$AN$1,0)),\"\")","v":0.11116738499999999},{"$f":"IFERROR(INDEX('Data Annex'!$K$1:$AN$4997,MATCH(AA$1&\"|\"&$B35,'Data Annex'!$K$1:$K$4997,0),MATCH(AA$2,'Data Annex'!$K$1:$AN$1,0)),\"\")","v":0.1076603684},{"$f":"IFERROR(INDEX('Data Annex'!$K$1:$AN$4997,MATCH(AB$1&\"|\"&$B35,'Data Annex'!$K$1:$K$4997,0),MATCH(AB$2,'Data Annex'!$K$1:$AN$1,0)),\"\")","v":0.10625798760000001}]
[24,"NO",null,"NO",{"$f":"IFERROR(INDEX('Data Annex'!$K$1:$AN$4997,MATCH(E$1&\"|\"&$B36,'Data Annex'!$K$1:$K$4997,0),MATCH(E$2,'Data Annex'!$K$1:$AN$1,0)),\"\")","v":20.127850420000001},{"$f":"IFERROR(INDEX('Data Annex'!$K$1:$AN$4997,MATCH(F$1&\"|\"&$B36,'Data Annex'!$K$1:$K$4997,0),MATCH(F$2,'Data Annex'!$K$1:$AN$1,0)),\"\")","v":21.218245370999998},{"$f":"IFERROR(INDEX('Data Annex'!$K$1:$AN$4997,MATCH(G$1&\"|\"&$B36,'Data Annex'!$K$1:$K$4997,0),MATCH(G$2,'Data Annex'!$K$1:$AN$1,0)),\"\")","v":20.763481742},{"$f":"IFERROR(INDEX('Data Annex'!$K$1:$AN$4997,MATCH(H$1&\"|\"&$B36,'Data Annex'!$K$1:$K$4997,0),MATCH(H$2,'Data Annex'!$K$1:$AN$1,0)),\"\")","v":23.222930199},{"$f":"IFERROR(INDEX('Data Annex'!$K$1:$AN$4997,MATCH(I$1&\"|\"&$B36,'Data Annex'!$K$1:$K$4997,0),MATCH(I$2,'Data Annex'!$K$1:$AN$1,0)),\"\")","v":0.2172362696},{"$f":"IFERROR(INDEX('Data Annex'!$K$1:$AN$4997,MATCH(J$1&\"|\"&$B36,'Data Annex'!$K$1:$K$4997,0),MATCH(J$2,'Data Annex'!$K$1:$AN$1,0)),\"\")","v":0.21738031390000001},{"$f":"IFERROR(INDEX('Data Annex'!$K$1:$AN$4997,MATCH(K$1&\"|\"&$B36,'Data Annex'!$K$1:$K$4997,0),MATCH(K$2,'Data Annex'!$K$1:$AN$1,0)),\"\")","v":0.2183677091},{"$f":"IFERROR(INDEX('Data Annex'!$K$1:$AN$4997,MATCH(L$1&\"|\"&$B36,'Data Annex'!$K$1:$K$4997,0),MATCH(L$2,'Data Annex'!$K$1:$AN$1,0)),\"\")","v":0.2116166971},{"$f":"IFERROR(INDEX('Data Annex'!$K$1:$AN$4997,MATCH(M$1&\"|\"&$B36,'Data Annex'!$K$1:$K$4997,0),MATCH(M$2,'Data Annex'!$K$1:$AN$1,0)),\"\")","v":0.7007482948},{"$f":"IFERROR(INDEX('Data Annex'!$K$1:$AN$4997,MATCH(N$1&\"|\"&$B36,'Data Annex'!$K$1:$K$4997,0),MATCH(N$2,'Data Annex'!$K$1:$AN$1,0)),\"\")","v":0.70335568609999999},{"$f":"IFERROR(INDEX('Data Annex'!$K$1:$AN$4997,MATCH(O$1&\"|\"&$B36,'Data Annex'!$K$1:$K$4997,0),MATCH(O$2,'Data Annex'!$K$1:$AN$1,0)),\"\")","v":0.70534077589999999},{"$f":"IFERROR(INDEX('Data Annex'!$K$1:$AN$4997,MATCH(P$1&\"|\"&$B36,'Data Annex'!$K$1:$K$4997,0),MATCH(P$2,'Data Annex'!$K$1:$AN$1,0)),\"\")","v":0.72363281260000001},{"$f":"IFERROR(INDEX('Data Annex'!$K$1:$AN$4997,MATCH(Q$1&\"|\"&$B36,'Data Annex'!$K$1:$K$4997,0),MATCH(Q$2,'Data Annex'!$K$1:$AN$1,0)),\"\")","v":3.42070056E-2},{"$f":"IFERROR(INDEX('Data Annex'!$K$1:$AN$4997,MATCH(R$1&\"|\"&$B36,'Data Annex'!$K$1:$K$4997,0),MATCH(R$2,'Data Annex'!$K$1:$AN$1,0)),\"\")","v":2.57405234E-2},{"$f":"IFERROR(INDEX('Data Annex'!$K$1:$AN$4997,MATCH(S$1&\"|\"&$B36,'Data Annex'!$K$1:$K$4997,0),MATCH(S$2,'Data Annex'!$K$1:$AN$1,0)),\"\")","v":2.6178470999999998E-2},{"$f":"IFERROR(INDEX('Data Annex'!$K$1:$AN$4997,MATCH(T$1&\"|\"&$B36,'Data Annex'!$K$1:$K$4997,0),MATCH(T$2,'Data Annex'!$K$1:$AN$1,0)),\"\")","v":1.8251203399999999E-2},-4.5488516699999974E-2,-3.9821041499999994E-2,-4.3357522500000023E-2,-4.2087624199999979E-2,{"$f":"IFERROR(INDEX('Data Annex'!$K$1:$AN$4997,MATCH(Y$1&\"|\"&$B36,'Data Annex'!$K$1:$K$4997,0),MATCH(Y$2,'Data Annex'!$K$1:$AN$1,0)),\"\")","v":9.3296946699999994E-2},{"$f":"IFERROR(INDEX('Data Annex'!$K$1:$AN$4997,MATCH(Z$1&\"|\"&$B36,'Data Annex'!$K$1:$K$4997,0),MATCH(Z$2,'Data Annex'!$K$1:$AN$1,0)),\"\")","v":9.3344518099999996E-2},{"$f":"IFERROR(INDEX('Data Annex'!$K$1:$AN$4997,MATCH(AA$1&\"|\"&$B36,'Data Annex'!$K$1:$K$4997,0),MATCH(AA$2,'Data Annex'!$K$1:$AN$1,0)),\"\")","v":9.3470566500000005E-2},{"$f":"IFERROR(INDEX('Data Annex'!$K$1:$AN$4997,MATCH(AB$1&\"|\"&$B36,'Data Annex'!$K$1:$K$4997,0),MATCH(AB$2,'Data Annex'!$K$1:$AN$1,0)),\"\")","v":8.8586911099999999E-2}]
[25,"PL",null,"PL",{"$f":"IFERROR(INDEX('Data Annex'!$K$1:$AN$4997,MATCH(E$1&\"|\"&$B37,'Data Annex'!$K$1:$K$4997,0),MATCH(E$2,'Data Annex'!$K$1:$AN$1,0)),\"\")","v":17.324836152},{"$f":"IFERROR(INDEX('Data Annex'!$K$1:$AN$4997,MATCH(F$1&\"|\"&$B37,'Data Annex'!$K$1:$K$4997,0),MATCH(F$2,'Data Annex'!$K$1:$AN$1,0)),\"\")","v":18.739124315000002},{"$f":"IFERROR(INDEX('Data Annex'!$K$1:$AN$4997,MATCH(G$1&\"|\"&$B37,'Data Annex'!$K$1:$K$4997,0),MATCH(G$2,'Data Annex'!$K$1:$AN$1,0)),\"\")","v":19.085783070000002},{"$f":"IFERROR(INDEX('Data Annex'!$K$1:$AN$4997,MATCH(H$1&\"|\"&$B37,'Data Annex'!$K$1:$K$4997,0),MATCH(H$2,'Data Annex'!$K$1:$AN$1,0)),\"\")","v":19.618944016},{"$f":"IFERROR(INDEX('Data Annex'!$K$1:$AN$4997,MATCH(I$1&\"|\"&$B37,'Data Annex'!$K$1:$K$4997,0),MATCH(I$2,'Data Annex'!$K$1:$AN$1,0)),\"\")","v":0.2492763482},{"$f":"IFERROR(INDEX('Data Annex'!$K$1:$AN$4997,MATCH(J$1&\"|\"&$B37,'Data Annex'!$K$1:$K$4997,0),MATCH(J$2,'Data Annex'!$K$1:$AN$1,0)),\"\")","v":0.2353555249},{"$f":"IFERROR(INDEX('Data Annex'!$K$1:$AN$4997,MATCH(K$1&\"|\"&$B37,'Data Annex'!$K$1:$K$4997,0),MATCH(K$2,'Data Annex'!$K$1:$AN$1,0)),\"\")","v":0.2264959034},{"$f":"IFERROR(INDEX('Data Annex'!$K$1:$AN$4997,MATCH(L$1&\"|\"&$B37,'Data Annex'!$K$1:$K$4997,0),MATCH(L$2,'Data Annex'!$K$1:$AN$1,0)),\"\")","v":0.2196883235},{"$f":"IFERROR(INDEX('Data Annex'!$K$1:$AN$4997,MATCH(M$1&\"|\"&$B37,'Data Annex'!$K$1:$K$4997,0),MATCH(M$2,'Data Annex'!$K$1:$AN$1,0)),\"\")","v":7.3816669200000004E-2},{"$f":"IFERROR(INDEX('Data Annex'!$K$1:$AN$4997,MATCH(N$1&\"|\"&$B37,'Data Annex'!$K$1:$K$4997,0),MATCH(N$2,'Data Annex'!$K$1:$AN$1,0)),\"\")","v":8.6558663300000005E-2},{"$f":"IFERROR(INDEX('Data Annex'!$K$1:$AN$4997,MATCH(O$1&\"|\"&$B37,'Data Annex'!$K$1:$K$4997,0),MATCH(O$2,'Data Annex'!$K$1:$AN$1,0)),\"\")","v":0.1191792906},{"$f":"IFERROR(INDEX('Data Annex'!$K$1:$AN$4997,MATCH(P$1&\"|\"&$B37,'Data Annex'!$K$1:$K$4997,0),MATCH(P$2,'Data Annex'!$K$1:$AN$1,0)),\"\")","v":0.12690766780000001},{"$f":"IFERROR(INDEX('Data Annex'!$K$1:$AN$4997,MATCH(Q$1&\"|\"&$B37,'Data Annex'!$K$1:$K$4997,0),MATCH(Q$2,'Data Annex'!$K$1:$AN$1,0)),\"\")","v":3.5338560900000003E-2},{"$f":"IFERROR(INDEX('Data Annex'!$K$1:$AN$4997,MATCH(R$1&\"|\"&$B37,'Data Annex'!$K$1:$K$4997,0),MATCH(R$2,'Data Annex'!$K$1:$AN$1,0)),\"\")","v":5.3401863899999999E-2},{"$f":"IFERROR(INDEX('Data Annex'!$K$1:$AN$4997,MATCH(S$1&\"|\"&$B37,'Data Annex'!$K$1:$K$4997,0),MATCH(S$2,'Data Annex'!$K$1:$AN$1,0)),\"\")","v":5.2940261799999999E-2},{"$f":"IFERROR(INDEX('Data Annex'!$K$1:$AN$4997,MATCH(T$1&\"|\"&$B37,'Data Annex'!$K$1:$K$4997,0),MATCH(T$2,'Data Annex'!$K$1:$AN$1,0)),\"\")","v":5.25220125E-2},0.64156842170000006,0.62468394789999993,0.60138454419999998,0.60088199619999993,{"$f":"IFERROR(INDEX('Data Annex'!$K$1:$AN$4997,MATCH(Y$1&\"|\"&$B37,'Data Annex'!$K$1:$K$4997,0),MATCH(Y$2,'Data Annex'!$K$1:$AN$1,0)),\"\")","v":0},{"$f":"IFERROR(INDEX('Data Annex'!$K$1:$AN$4997,MATCH(Z$1&\"|\"&$B37,'Data Annex'!$K$1:$K$4997,0),MATCH(Z$2,'Data Annex'!$K$1:$AN$1,0)),\"\")","v":0},{"$f":"IFERROR(INDEX('Data Annex'!$K$1:$AN$4997,MATCH(AA$1&\"|\"&$B37,'Data Annex'!$K$1:$K$4997,0),MATCH(AA$2,'Data Annex'!$K$1:$AN$1,0)),\"\")","v":0},{"$f":"IFERROR(INDEX('Data Annex'!$K$1:$AN$4997,MATCH(AB$1&\"|\"&$B37,'Data Annex'!$K$1:$K$4997,0),MATCH(AB$2,'Data Annex'!$K$1:$AN$1,0)),\"\")","v":0}]
[26,"PT",null,"PT",{"$f":"IFERROR(INDEX('Data Annex'!$K$1:$AN$4997,MATCH(E$1&\"|\"&$B38,'Data Annex'!$K$1:$K$4997,0),MATCH(E$2,'Data Annex'!$K$1:$AN$1,0)),\"\")","v":26.289577721000001},{"$f":"IFERROR(INDEX('Data Annex'!$K$1:$AN$4997,MATCH(F$1&\"|\"&$B38,'Data Annex'!$K$1:$K$4997,0),MATCH(F$2,'Data Annex'!$K$1:$AN$1,0)),\"\")","v":26.556182410000002},{"$f":"IFERROR(INDEX('Data Annex'!$K$1:$AN$4997,MATCH(G$1&\"|\"&$B38,'Data Annex'!$K$1:$K$4997,0),MATCH(G$2,'Data Annex'!$K$1:$AN$1,0)),\"\")","v":26.443458747000001},{"$f":"IFERROR(INDEX('Data Annex'!$K$1:$AN$4997,MATCH(H$1&\"|\"&$B38,'Data Annex'!$K$1:$K$4997,0),MATCH(H$2,'Data Annex'!$K$1:$AN$1,0)),\"\")","v":27.319405246999999},{"$f":"IFERROR(INDEX('Data Annex'!$K$1:$AN$4997,MATCH(I$1&\"|\"&$B38,'Data Annex'!$K$1:$K$4997,0),MATCH(I$2,'Data Annex'!$K$1:$AN$1,0)),\"\")","v":0.63067962820000001},{"$f":"IFERROR(INDEX('Data Annex'!$K$1:$AN$4997,MATCH(J$1&\"|\"&$B38,'Data Annex'!$K$1:$K$4997,0),MATCH(J$2,'Data Annex'!$K$1:$AN$1,0)),\"\")","v":0.6257864689},{"$f":"IFERROR(INDEX('Data Annex'!$K$1:$AN$4997,MATCH(K$1&\"|\"&$B38,'Data Annex'!$K$1:$K$4997,0),MATCH(K$2,'Data Annex'!$K$1:$AN$1,0)),\"\")","v":0.62591790270000003},{"$f":"IFERROR(INDEX('Data Annex'!$K$1:$AN$4997,MATCH(L$1&\"|\"&$B38,'Data Annex'!$K$1:$K$4997,0),MATCH(L$2,'Data Annex'!$K$1:$AN$1,0)),\"\")","v":0.60604178220000005},{"$f":"IFERROR(INDEX('Data Annex'!$K$1:$AN$4997,MATCH(M$1&\"|\"&$B38,'Data Annex'!$K$1:$K$4997,0),MATCH(M$2,'Data Annex'!$K$1:$AN$1,0)),\"\")","v":0.23848229809999999},{"$f":"IFERROR(INDEX('Data Annex'!$K$1:$AN$4997,MATCH(N$1&\"|\"&$B38,'Data Annex'!$K$1:$K$4997,0),MATCH(N$2,'Data Annex'!$K$1:$AN$1,0)),\"\")","v":0.23592717890000001},{"$f":"IFERROR(INDEX('Data Annex'!$K$1:$AN$4997,MATCH(O$1&\"|\"&$B38,'Data Annex'!$K$1:$K$4997,0),MATCH(O$2,'Data Annex'!$K$1:$AN$1,0)),\"\")","v":0.2340520787},{"$f":"IFERROR(INDEX('Data Annex'!$K$1:$AN$4997,MATCH(P$1&\"|\"&$B38,'Data Annex'!$K$1:$K$4997,0),MATCH(P$2,'Data Annex'!$K$1:$AN$1,0)),\"\")","v":0.23355088909999999},{"$f":"IFERROR(INDEX('Data Annex'!$K$1:$AN$4997,MATCH(Q$1&\"|\"&$B38,'Data Annex'!$K$1:$K$4997,0),MATCH(Q$2,'Data Annex'!$K$1:$AN$1,0)),\"\")","v":-0.166886812},{"$f":"IFERROR(INDEX('Data Annex'!$K$1:$AN$4997,MATCH(R$1&\"|\"&$B38,'Data Annex'!$K$1:$K$4997,0),MATCH(R$2,'Data Annex'!$K$1:$AN$1,0)),\"\")","v":-0.15782559199999999},{"$f":"IFERROR(INDEX('Data Annex'!$K$1:$AN$4997,MATCH(S$1&\"|\"&$B38,'Data Annex'!$K$1:$K$4997,0),MATCH(S$2,'Data Annex'!$K$1:$AN$1,0)),\"\")","v":-0.16029533400000001},{"$f":"IFERROR(INDEX('Data Annex'!$K$1:$AN$4997,MATCH(T$1&\"|\"&$B38,'Data Annex'!$K$1:$K$4997,0),MATCH(T$2,'Data Annex'!$K$1:$AN$1,0)),\"\")","v":-0.156459562},0.22069165089999998,0.21993993829999997,0.2240265145,0.24310964539999996,{"$f":"IFERROR(INDEX('Data Annex'!$K$1:$AN$4997,MATCH(Y$1&\"|\"&$B38,'Data Annex'!$K$1:$K$4997,0),MATCH(Y$2,'Data Annex'!$K$1:$AN$1,0)),\"\")","v":7.7033234800000003E-2},{"$f":"IFERROR(INDEX('Data Annex'!$K$1:$AN$4997,MATCH(Z$1&\"|\"&$B38,'Data Annex'!$K$1:$K$4997,0),MATCH(Z$2,'Data Annex'!$K$1:$AN$1,0)),\"\")","v":7.6172005900000006E-2},{"$f":"IFERROR(INDEX('Data Annex'!$K$1:$AN$4997,MATCH(AA$1&\"|\"&$B38,'Data Annex'!$K$1:$K$4997,0),MATCH(AA$2,'Data Annex'!$K$1:$AN$1,0)),\"\")","v":7.6298838100000002E-2},{"$f":"IFERROR(INDEX('Data Annex'!$K$1:$AN$4997,MATCH(AB$1&\"|\"&$B38,'Data Annex'!$K$1:$K$4997,0),MATCH(AB$2,'Data Annex'!$K$1:$AN$1,0)),\"\")","v":7.3757245299999996E-2}]
[27,"RO",null,"RO",{"$f":"IFERROR(INDEX('Data Annex'!$K$1:$AN$4997,MATCH(E$1&\"|\"&$B39,'Data Annex'!$K$1:$K$4997,0),MATCH(E$2,'Data Annex'!$K$1:$AN$1,0)),\"\")","v":4.6990642056},{"$f":"IFERROR(INDEX('Data Annex'!$K$1:$AN$4997,MATCH(F$1&\"|\"&$B39,'Data Annex'!$K$1:$K$4997,0),MATCH(F$2,'Data Annex'!$K$1:$AN$1,0)),\"\")","v":4.8705659243000001},{"$f":"IFERROR(INDEX('Data Annex'!$K$1:$AN$4997,MATCH(G$1&\"|\"&$B39,'Data Annex'!$K$1:$K$4997,0),MATCH(G$2,'Data Annex'!$K$1:$AN$1,0)),\"\")","v":4.9570631217000001},{"$f":"IFERROR(INDEX('Data Annex'!$K$1:$AN$4997,MATCH(H$1&\"|\"&$B39,'Data Annex'!$K$1:$K$4997,0),MATCH(H$2,'Data Annex'!$K$1:$AN$1,0)),\"\")","v":5.0501118091999997},{"$f":"IFERROR(INDEX('Data Annex'!$K$1:$AN$4997,MATCH(I$1&\"|\"&$B39,'Data Annex'!$K$1:$K$4997,0),MATCH(I$2,'Data Annex'!$K$1:$AN$1,0)),\"\")","v":0.48835517490000002},{"$f":"IFERROR(INDEX('Data Annex'!$K$1:$AN$4997,MATCH(J$1&\"|\"&$B39,'Data Annex'!$K$1:$K$4997,0),MATCH(J$2,'Data Annex'!$K$1:$AN$1,0)),\"\")","v":0.47341444160000001},{"$f":"IFERROR(INDEX('Data Annex'!$K$1:$AN$4997,MATCH(K$1&\"|\"&$B39,'Data Annex'!$K$1:$K$4997,0),MATCH(K$2,'Data Annex'!$K$1:$AN$1,0)),\"\")","v":0.46190510880000002},{"$f":"IFERROR(INDEX('Data Annex'!$K$1:$AN$4997,MATCH(L$1&\"|\"&$B39,'Data Annex'!$K$1:$K$4997,0),MATCH(L$2,'Data Annex'!$K$1:$AN$1,0)),\"\")","v":0.47498593239999998},{"$f":"IFERROR(INDEX('Data Annex'!$K$1:$AN$4997,MATCH(M$1&\"|\"&$B39,'Data Annex'!$K$1:$K$4997,0),MATCH(M$2,'Data Annex'!$K$1:$AN$1,0)),\"\")","v":0.412033545},{"$f":"IFERROR(INDEX('Data Annex'!$K$1:$AN$4997,MATCH(N$1&\"|\"&$B39,'Data Annex'!$K$1:$K$4997,0),MATCH(N$2,'Data Annex'!$K$1:$AN$1,0)),\"\")","v":0.36340417850000001},{"$f":"IFERROR(INDEX('Data Annex'!$K$1:$AN$4997,MATCH(O$1&\"|\"&$B39,'Data Annex'!$K$1:$K$4997,0),MATCH(O$2,'Data Annex'!$K$1:$AN$1,0)),\"\")","v":0.35425420559999998},{"$f":"IFERROR(INDEX('Data Annex'!$K$1:$AN$4997,MATCH(P$1&\"|\"&$B39,'Data Annex'!$K$1:$K$4997,0),MATCH(P$2,'Data Annex'!$K$1:$AN$1,0)),\"\")","v":0.34776180420000002},{"$f":"IFERROR(INDEX('Data Annex'!$K$1:$AN$4997,MATCH(Q$1&\"|\"&$B39,'Data Annex'!$K$1:$K$4997,0),MATCH(Q$2,'Data Annex'!$K$1:$AN$1,0)),\"\")","v":-3.2606990000000001E-3},{"$f":"IFERROR(INDEX('Data Annex'!$K$1:$AN$4997,MATCH(R$1&\"|\"&$B39,'Data Annex'!$K$1:$K$4997,0),MATCH(R$2,'Data Annex'!$K$1:$AN$1,0)),\"\")","v":1.5495839500000001E-2},{"$f":"IFERROR(INDEX('Data Annex'!$K$1:$AN$4997,MATCH(S$1&\"|\"&$B39,'Data Annex'!$K$1:$K$4997,0),MATCH(S$2,'Data Annex'!$K$1:$AN$1,0)),\"\")","v":2.6718949299999999E-2},{"$f":"IFERROR(INDEX('Data Annex'!$K$1:$AN$4997,MATCH(T$1&\"|\"&$B39,'Data Annex'!$K$1:$K$4997,0),MATCH(T$2,'Data Annex'!$K$1:$AN$1,0)),\"\")","v":3.9187907299999998E-2},0.10287197909999998,0.14768554039999998,0.15712173630000001,0.13806435610000001,{"$f":"IFERROR(INDEX('Data Annex'!$K$1:$AN$4997,MATCH(Y$1&\"|\"&$B39,'Data Annex'!$K$1:$K$4997,0),MATCH(Y$2,'Data Annex'!$K$1:$AN$1,0)),\"\")","v":0},{"$f":"IFERROR(INDEX('Data Annex'!$K$1:$AN$4997,MATCH(Z$1&\"|\"&$B39,'Data Annex'!$K$1:$K$4997,0),MATCH(Z$2,'Data Annex'!$K$1:$AN$1,0)),\"\")","v":0},{"$f":"IFERROR(INDEX('Data Annex'!$K$1:$AN$4997,MATCH(AA$1&\"|\"&$B39,'Data Annex'!$K$1:$K$4997,0),MATCH(AA$2,'Data Annex'!$K$1:$AN$1,0)),\"\")","v":0},{"$f":"IFERROR(INDEX('Data Annex'!$K$1:$AN$4997,MATCH(AB$1&\"|\"&$B39,'Data Annex'!$K$1:$K$4997,0),MATCH(AB$2,'Data Annex'!$K$1:$AN$1,0)),\"\")","v":0}]
[28,"SE",null,"SE",{"$f":"IFERROR(INDEX('Data Annex'!$K$1:$AN$4997,MATCH(E$1&\"|\"&$B40,'Data Annex'!$K$1:$K$4997,0),MATCH(E$2,'Data Annex'!$K$1:$AN$1,0)),\"\")","v":43.487637556000003},{"$f":"IFERROR(INDEX('Data Annex'!$K$1:$AN$4997,MATCH(F$1&\"|\"&$B40,'Data Annex'!$K$1:$K$4997,0),MATCH(F$2,'Data Annex'!$K$1:$AN$1,0)),\"\")","v":46.127194267999997},{"$f":"IFERROR(INDEX('Data Annex'!$K$1:$AN$4997,MATCH(G$1&\"|\"&$B40,'Data Annex'!$K$1:$K$4997,0),MATCH(G$2,'Data Annex'!$K$1:$AN$1,0)),\"\")","v":47.591538679000003},{"$f":"IFERROR(INDEX('Data Annex'!$K$1:$AN$4997,MATCH(H$1&\"|\"&$B40,'Data Annex'!$K$1:$K$4997,0),MATCH(H$2,'Data Annex'!$K$1:$AN$1,0)),\"\")","v":52.157631563999999},{"$f":"IFERROR(INDEX('Data Annex'!$K$1:$AN$4997,MATCH(I$1&\"|\"&$B40,'Data Annex'!$K$1:$K$4997,0),MATCH(I$2,'Data Annex'!$K$1:$AN$1,0)),\"\")","v":0.1805806308},{"$f":"IFERROR(INDEX('Data Annex'!$K$1:$AN$4997,MATCH(J$1&\"|\"&$B40,'Data Annex'!$K$1:$K$4997,0),MATCH(J$2,'Data Annex'!$K$1:$AN$1,0)),\"\")","v":0.1797788287},{"$f":"IFERROR(INDEX('Data Annex'!$K$1:$AN$4997,MATCH(K$1&\"|\"&$B40,'Data Annex'!$K$1:$K$4997,0),MATCH(K$2,'Data Annex'!$K$1:$AN$1,0)),\"\")","v":0.17239563729999999},{"$f":"IFERROR(INDEX('Data Annex'!$K$1:$AN$4997,MATCH(L$1&\"|\"&$B40,'Data Annex'!$K$1:$K$4997,0),MATCH(L$2,'Data Annex'!$K$1:$AN$1,0)),\"\")","v":0.16746963140000001},{"$f":"IFERROR(INDEX('Data Annex'!$K$1:$AN$4997,MATCH(M$1&\"|\"&$B40,'Data Annex'!$K$1:$K$4997,0),MATCH(M$2,'Data Annex'!$K$1:$AN$1,0)),\"\")","v":0.67221886259999997},{"$f":"IFERROR(INDEX('Data Annex'!$K$1:$AN$4997,MATCH(N$1&\"|\"&$B40,'Data Annex'!$K$1:$K$4997,0),MATCH(N$2,'Data Annex'!$K$1:$AN$1,0)),\"\")","v":0.68094369129999999},{"$f":"IFERROR(INDEX('Data Annex'!$K$1:$AN$4997,MATCH(O$1&\"|\"&$B40,'Data Annex'!$K$1:$K$4997,0),MATCH(O$2,'Data Annex'!$K$1:$AN$1,0)),\"\")","v":0.68843995729999996},{"$f":"IFERROR(INDEX('Data Annex'!$K$1:$AN$4997,MATCH(P$1&\"|\"&$B40,'Data Annex'!$K$1:$K$4997,0),MATCH(P$2,'Data Annex'!$K$1:$AN$1,0)),\"\")","v":0.70381282960000002},{"$f":"IFERROR(INDEX('Data Annex'!$K$1:$AN$4997,MATCH(Q$1&\"|\"&$B40,'Data Annex'!$K$1:$K$4997,0),MATCH(Q$2,'Data Annex'!$K$1:$AN$1,0)),\"\")","v":1.68441823E-2},{"$f":"IFERROR(INDEX('Data Annex'!$K$1:$AN$4997,MATCH(R$1&\"|\"&$B40,'Data Annex'!$K$1:$K$4997,0),MATCH(R$2,'Data Annex'!$K$1:$AN$1,0)),\"\")","v":1.21967129E-2},{"$f":"IFERROR(INDEX('Data Annex'!$K$1:$AN$4997,MATCH(S$1&\"|\"&$B40,'Data Annex'!$K$1:$K$4997,0),MATCH(S$2,'Data Annex'!$K$1:$AN$1,0)),\"\")","v":1.70561844E-2},{"$f":"IFERROR(INDEX('Data Annex'!$K$1:$AN$4997,MATCH(T$1&\"|\"&$B40,'Data Annex'!$K$1:$K$4997,0),MATCH(T$2,'Data Annex'!$K$1:$AN$1,0)),\"\")","v":2.03475901E-2},3.3732872800000049E-2,3.7722924100000069E-2,3.8301896800000068E-2,3.6521331599999929E-2,{"$f":"IFERROR(INDEX('Data Annex'!$K$1:$AN$4997,MATCH(Y$1&\"|\"&$B40,'Data Annex'!$K$1:$K$4997,0),MATCH(Y$2,'Data Annex'!$K$1:$AN$1,0)),\"\")","v":9.6623451499999999E-2},{"$f":"IFERROR(INDEX('Data Annex'!$K$1:$AN$4997,MATCH(Z$1&\"|\"&$B40,'Data Annex'!$K$1:$K$4997,0),MATCH(Z$2,'Data Annex'!$K$1:$AN$1,0)),\"\")","v":8.9357843000000006E-2},{"$f":"IFERROR(INDEX('Data Annex'!$K$1:$AN$4997,MATCH(AA$1&\"|\"&$B40,'Data Annex'!$K$1:$K$4997,0),MATCH(AA$2,'Data Annex'!$K$1:$AN$1,0)),\"\")","v":8.3806324200000004E-2},{"$f":"IFERROR(INDEX('Data Annex'!$K$1:$AN$4997,MATCH(AB$1&\"|\"&$B40,'Data Annex'!$K$1:$K$4997,0),MATCH(AB$2,'Data Annex'!$K$1:$AN$1,0)),\"\")","v":7.1848617300000001E-2}]
[29,"SI",null,"SI",{"$f":"IFERROR(INDEX('Data Annex'!$K$1:$AN$4997,MATCH(E$1&\"|\"&$B41,'Data Annex'!$K$1:$K$4997,0),MATCH(E$2,'Data Annex'!$K$1:$AN$1,0)),\"\")","v":2.6193338489000002},{"$f":"IFERROR(INDEX('Data Annex'!$K$1:$AN$4997,MATCH(F$1&\"|\"&$B41,'Data Annex'!$K$1:$K$4997,0),MATCH(F$2,'Data Annex'!$K$1:$AN$1,0)),\"\")","v":2.8757502817999998},{"$f":"IFERROR(INDEX('Data Annex'!$K$1:$AN$4997,MATCH(G$1&\"|\"&$B41,'Data Annex'!$K$1:$K$4997,0),MATCH(G$2,'Data Annex'!$K$1:$AN$1,0)),\"\")","v":2.8888234268000001},{"$f":"IFERROR(INDEX('Data Annex'!$K$1:$AN$4997,MATCH(H$1&\"|\"&$B41,'Data Annex'!$K$1:$K$4997,0),MATCH(H$2,'Data Annex'!$K$1:$AN$1,0)),\"\")","v":3.0403250534000001},{"$f":"IFERROR(INDEX('Data Annex'!$K$1:$AN$4997,MATCH(I$1&\"|\"&$B41,'Data Annex'!$K$1:$K$4997,0),MATCH(I$2,'Data Annex'!$K$1:$AN$1,0)),\"\")","v":0.53615791690000003},{"$f":"IFERROR(INDEX('Data Annex'!$K$1:$AN$4997,MATCH(J$1&\"|\"&$B41,'Data Annex'!$K$1:$K$4997,0),MATCH(J$2,'Data Annex'!$K$1:$AN$1,0)),\"\")","v":0.48835136649999999},{"$f":"IFERROR(INDEX('Data Annex'!$K$1:$AN$4997,MATCH(K$1&\"|\"&$B41,'Data Annex'!$K$1:$K$4997,0),MATCH(K$2,'Data Annex'!$K$1:$AN$1,0)),\"\")","v":0.4861413705},{"$f":"IFERROR(INDEX('Data Annex'!$K$1:$AN$4997,MATCH(L$1&\"|\"&$B41,'Data Annex'!$K$1:$K$4997,0),MATCH(L$2,'Data Annex'!$K$1:$AN$1,0)),\"\")","v":0.46191658959999998},{"$f":"IFERROR(INDEX('Data Annex'!$K$1:$AN$4997,MATCH(M$1&\"|\"&$B41,'Data Annex'!$K$1:$K$4997,0),MATCH(M$2,'Data Annex'!$K$1:$AN$1,0)),\"\")","v":0.49629334520000001},{"$f":"IFERROR(INDEX('Data Annex'!$K$1:$AN$4997,MATCH(N$1&\"|\"&$B41,'Data Annex'!$K$1:$K$4997,0),MATCH(N$2,'Data Annex'!$K$1:$AN$1,0)),\"\")","v":0.52574710069999997},{"$f":"IFERROR(INDEX('Data Annex'!$K$1:$AN$4997,MATCH(O$1&\"|\"&$B41,'Data Annex'!$K$1:$K$4997,0),MATCH(O$2,'Data Annex'!$K$1:$AN$1,0)),\"\")","v":0.52363807389999995},{"$f":"IFERROR(INDEX('Data Annex'!$K$1:$AN$4997,MATCH(P$1&\"|\"&$B41,'Data Annex'!$K$1:$K$4997,0),MATCH(P$2,'Data Annex'!$K$1:$AN$1,0)),\"\")","v":0.51846666340000003},{"$f":"IFERROR(INDEX('Data Annex'!$K$1:$AN$4997,MATCH(Q$1&\"|\"&$B41,'Data Annex'!$K$1:$K$4997,0),MATCH(Q$2,'Data Annex'!$K$1:$AN$1,0)),\"\")","v":-3.2013219999999999E-3},{"$f":"IFERROR(INDEX('Data Annex'!$K$1:$AN$4997,MATCH(R$1&\"|\"&$B41,'Data Annex'!$K$1:$K$4997,0),MATCH(R$2,'Data Annex'!$K$1:$AN$1,0)),\"\")","v":3.9439823000000001E-3},{"$f":"IFERROR(INDEX('Data Annex'!$K$1:$AN$4997,MATCH(S$1&\"|\"&$B41,'Data Annex'!$K$1:$K$4997,0),MATCH(S$2,'Data Annex'!$K$1:$AN$1,0)),\"\")","v":9.0454296E-3},{"$f":"IFERROR(INDEX('Data Annex'!$K$1:$AN$4997,MATCH(T$1&\"|\"&$B41,'Data Annex'!$K$1:$K$4997,0),MATCH(T$2,'Data Annex'!$K$1:$AN$1,0)),\"\")","v":1.4944283100000001E-2},-2.9249940100000045E-2,-1.9368016599999965E-2,-2.0488873199999893E-2,-1.3425899999995519E-4,{"$f":"IFERROR(INDEX('Data Annex'!$K$1:$AN$4997,MATCH(Y$1&\"|\"&$B41,'Data Annex'!$K$1:$K$4997,0),MATCH(Y$2,'Data Annex'!$K$1:$AN$1,0)),\"\")","v":0},{"$f":"IFERROR(INDEX('Data Annex'!$K$1:$AN$4997,MATCH(Z$1&\"|\"&$B41,'Data Annex'!$K$1:$K$4997,0),MATCH(Z$2,'Data Annex'!$K$1:$AN$1,0)),\"\")","v":1.3255671E-3},{"$f":"IFERROR(INDEX('Data Annex'!$K$1:$AN$4997,MATCH(AA$1&\"|\"&$B41,'Data Annex'!$K$1:$K$4997,0),MATCH(AA$2,'Data Annex'!$K$1:$AN$1,0)),\"\")","v":1.6639992000000001E-3},{"$f":"IFERROR(INDEX('Data Annex'!$K$1:$AN$4997,MATCH(AB$1&\"|\"&$B41,'Data Annex'!$K$1:$K$4997,0),MATCH(AB$2,'Data Annex'!$K$1:$AN$1,0)),\"\")","v":4.8067229000000001E-3}]
[30,"SK",null,"SK",{"$f":"IFERROR(INDEX('Data Annex'!$K$1:$AN$4997,MATCH(E$1&\"|\"&$B42,'Data Annex'!$K$1:$K$4997,0),MATCH(E$2,'Data Annex'!$K$1:$AN$1,0)),\"\")","v":4.0080922668000003},{"$f":"IFERROR(INDEX('Data Annex'!$K$1:$AN$4997,MATCH(F$1&\"|\"&$B42,'Data Annex'!$K$1:$K$4997,0),MATCH(F$2,'Data Annex'!$K$1:$AN$1,0)),\"\")","v":4.1503645346000004},{"$f":"IFERROR(INDEX('Data Annex'!$K$1:$AN$4997,MATCH(G$1&\"|\"&$B42,'Data Annex'!$K$1:$K$4997,0),MATCH(G$2,'Data Annex'!$K$1:$AN$1,0)),\"\")","v":4.1359882484000003},{"$f":"IFERROR(INDEX('Data Annex'!$K$1:$AN$4997,MATCH(H$1&\"|\"&$B42,'Data Annex'!$K$1:$K$4997,0),MATCH(H$2,'Data Annex'!$K$1:$AN$1,0)),\"\")","v":4.2248737054000003},{"$f":"IFERROR(INDEX('Data Annex'!$K$1:$AN$4997,MATCH(I$1&\"|\"&$B42,'Data Annex'!$K$1:$K$4997,0),MATCH(I$2,'Data Annex'!$K$1:$AN$1,0)),\"\")","v":0.2526228895},{"$f":"IFERROR(INDEX('Data Annex'!$K$1:$AN$4997,MATCH(J$1&\"|\"&$B42,'Data Annex'!$K$1:$K$4997,0),MATCH(J$2,'Data Annex'!$K$1:$AN$1,0)),\"\")","v":0.2439631125},{"$f":"IFERROR(INDEX('Data Annex'!$K$1:$AN$4997,MATCH(K$1&\"|\"&$B42,'Data Annex'!$K$1:$K$4997,0),MATCH(K$2,'Data Annex'!$K$1:$AN$1,0)),\"\")","v":0.24481110419999999},{"$f":"IFERROR(INDEX('Data Annex'!$K$1:$AN$4997,MATCH(L$1&\"|\"&$B42,'Data Annex'!$K$1:$K$4997,0),MATCH(L$2,'Data Annex'!$K$1:$AN$1,0)),\"\")","v":0.24072988710000001},{"$f":"IFERROR(INDEX('Data Annex'!$K$1:$AN$4997,MATCH(M$1&\"|\"&$B42,'Data Annex'!$K$1:$K$4997,0),MATCH(M$2,'Data Annex'!$K$1:$AN$1,0)),\"\")","v":0.64499092930000002},{"$f":"IFERROR(INDEX('Data Annex'!$K$1:$AN$4997,MATCH(N$1&\"|\"&$B42,'Data Annex'!$K$1:$K$4997,0),MATCH(N$2,'Data Annex'!$K$1:$AN$1,0)),\"\")","v":0.66676207870000004},{"$f":"IFERROR(INDEX('Data Annex'!$K$1:$AN$4997,MATCH(O$1&\"|\"&$B42,'Data Annex'!$K$1:$K$4997,0),MATCH(O$2,'Data Annex'!$K$1:$AN$1,0)),\"\")","v":0.66757435970000001},{"$f":"IFERROR(INDEX('Data Annex'!$K$1:$AN$4997,MATCH(P$1&\"|\"&$B42,'Data Annex'!$K$1:$K$4997,0),MATCH(P$2,'Data Annex'!$K$1:$AN$1,0)),\"\")","v":0.67820399890000005},{"$f":"IFERROR(INDEX('Data Annex'!$K$1:$AN$4997,MATCH(Q$1&\"|\"&$B42,'Data Annex'!$K$1:$K$4997,0),MATCH(Q$2,'Data Annex'!$K$1:$AN$1,0)),\"\")","v":4.1594995000000003E-3},{"$f":"IFERROR(INDEX('Data Annex'!$K$1:$AN$4997,MATCH(R$1&\"|\"&$B42,'Data Annex'!$K$1:$K$4997,0),MATCH(R$2,'Data Annex'!$K$1:$AN$1,0)),\"\")","v":1.0122869099999999E-2},{"$f":"IFERROR(INDEX('Data Annex'!$K$1:$AN$4997,MATCH(S$1&\"|\"&$B42,'Data Annex'!$K$1:$K$4997,0),MATCH(S$2,'Data Annex'!$K$1:$AN$1,0)),\"\")","v":1.27550184E-2},{"$f":"IFERROR(INDEX('Data Annex'!$K$1:$AN$4997,MATCH(T$1&\"|\"&$B42,'Data Annex'!$K$1:$K$4997,0),MATCH(T$2,'Data Annex'!$K$1:$AN$1,0)),\"\")","v":7.1597817999999999E-3},-1.5714201000000122E-3,-1.722513670000006E-2,-2.1852555899999973E-2,-2.0771054100000033E-2,{"$f":"IFERROR(INDEX('Data Annex'!$K$1:$AN$4997,MATCH(Y$1&\"|\"&$B42,'Data Annex'!$K$1:$K$4997,0),MATCH(Y$2,'Data Annex'!$K$1:$AN$1,0)),\"\")","v":9.9798101799999997E-2},{"$f":"IFERROR(INDEX('Data Annex'!$K$1:$AN$4997,MATCH(Z$1&\"|\"&$B42,'Data Annex'!$K$1:$K$4997,0),MATCH(Z$2,'Data Annex'!$K$1:$AN$1,0)),\"\")","v":9.6377076399999997E-2},{"$f":"IFERROR(INDEX('Data Annex'!$K$1:$AN$4997,MATCH(AA$1&\"|\"&$B42,'Data Annex'!$K$1:$K$4997,0),MATCH(AA$2,'Data Annex'!$K$1:$AN$1,0)),\"\")","v":9.6712073600000004E-2},{"$f":"IFERROR(INDEX('Data Annex'!$K$1:$AN$4997,MATCH(AB$1&\"|\"&$B42,'Data Annex'!$K$1:$K$4997,0),MATCH(AB$2,'Data Annex'!$K$1:$AN$1,0)),\"\")","v":9.4677386299999999E-2}]
[99,"EU",null,"EU/EEA",{"$f":"IFERROR(INDEX('Data Annex'!$K$1:$AN$4997,MATCH(E$1&\"|\"&$B43,'Data Annex'!$K$1:$K$4997,0),MATCH(E$2,'Data Annex'!$K$1:$AN$1,0)),\"\")","v":1424.1894070000001},{"$f":"IFERROR(INDEX('Data Annex'!$K$1:$AN$4997,MATCH(F$1&\"|\"&$B43,'Data Annex'!$K$1:$K$4997,0),MATCH(F$2,'Data Annex'!$K$1:$AN$1,0)),\"\")","v":1457.5997245000001},{"$f":"IFERROR(INDEX('Data Annex'!$K$1:$AN$4997,MATCH(G$1&\"|\"&$B43,'Data Annex'!$K$1:$K$4997,0),MATCH(G$2,'Data Annex'!$K$1:$AN$1,0)),\"\")","v":1439.3355018},{"$f":"IFERROR(INDEX('Data Annex'!$K$1:$AN$4997,MATCH(H$1&\"|\"&$B43,'Data Annex'!$K$1:$K$4997,0),MATCH(H$2,'Data Annex'!$K$1:$AN$1,0)),\"\")","v":1464.5652726999999},{"$f":"IFERROR(INDEX('Data Annex'!$K$1:$AN$4997,MATCH(I$1&\"|\"&$B43,'Data Annex'!$K$1:$K$4997,0),MATCH(I$2,'Data Annex'!$K$1:$AN$1,0)),\"\")","v":0.48130808279999998},{"$f":"IFERROR(INDEX('Data Annex'!$K$1:$AN$4997,MATCH(J$1&\"|\"&$B43,'Data Annex'!$K$1:$K$4997,0),MATCH(J$2,'Data Annex'!$K$1:$AN$1,0)),\"\")","v":0.46589111760000002},{"$f":"IFERROR(INDEX('Data Annex'!$K$1:$AN$4997,MATCH(K$1&\"|\"&$B43,'Data Annex'!$K$1:$K$4997,0),MATCH(K$2,'Data Annex'!$K$1:$AN$1,0)),\"\")","v":0.46245664739999998},{"$f":"IFERROR(INDEX('Data Annex'!$K$1:$AN$4997,MATCH(L$1&\"|\"&$B43,'Data Annex'!$K$1:$K$4997,0),MATCH(L$2,'Data Annex'!$K$1:$AN$1,0)),\"\")","v":0.44944757699999999},{"$f":"IFERROR(INDEX('Data Annex'!$K$1:$AN$4997,MATCH(M$1&\"|\"&$B43,'Data Annex'!$K$1:$K$4997,0),MATCH(M$2,'Data Annex'!$K$1:$AN$1,0)),\"\")","v":0.4195640028},{"$f":"IFERROR(INDEX('Data Annex'!$K$1:$AN$4997,MATCH(N$1&\"|\"&$B43,'Data Annex'!$K$1:$K$4997,0),MATCH(N$2,'Data Annex'!$K$1:$AN$1,0)),\"\")","v":0.41168295459999998},{"$f":"IFERROR(INDEX('Data Annex'!$K$1:$AN$4997,MATCH(O$1&\"|\"&$B43,'Data Annex'!$K$1:$K$4997,0),MATCH(O$2,'Data Annex'!$K$1:$AN$1,0)),\"\")","v":0.4174522658},{"$f":"IFERROR(INDEX('Data Annex'!$K$1:$AN$4997,MATCH(P$1&\"|\"&$B43,'Data Annex'!$K$1:$K$4997,0),MATCH(P$2,'Data Annex'!$K$1:$AN$1,0)),\"\")","v":0.4112078991},{"$f":"IFERROR(INDEX('Data Annex'!$K$1:$AN$4997,MATCH(Q$1&\"|\"&$B43,'Data Annex'!$K$1:$K$4997,0),MATCH(Q$2,'Data Annex'!$K$1:$AN$1,0)),\"\")","v":-4.2995294000000003E-2},{"$f":"IFERROR(INDEX('Data Annex'!$K$1:$AN$4997,MATCH(R$1&\"|\"&$B43,'Data Annex'!$K$1:$K$4997,0),MATCH(R$2,'Data Annex'!$K$1:$AN$1,0)),\"\")","v":-4.2606758000000002E-2},{"$f":"IFERROR(INDEX('Data Annex'!$K$1:$AN$4997,MATCH(S$1&\"|\"&$B43,'Data Annex'!$K$1:$K$4997,0),MATCH(S$2,'Data Annex'!$K$1:$AN$1,0)),\"\")","v":-5.0812731999999999E-2},{"$f":"IFERROR(INDEX('Data Annex'!$K$1:$AN$4997,MATCH(T$1&\"|\"&$B43,'Data Annex'!$K$1:$K$4997,0),MATCH(T$2,'Data Annex'!$K$1:$AN$1,0)),\"\")","v":-4.8246628E-2},6.3517858199999985E-2,8.7598886399999992E-2,9.3548108599999971E-2,0.11106038650000008,{"$f":"IFERROR(INDEX('Data Annex'!$K$1:$AN$4997,MATCH(Y$1&\"|\"&$B43,'Data Annex'!$K$1:$K$4997,0),MATCH(Y$2,'Data Annex'!$K$1:$AN$1,0)),\"\")","v":7.8605350199999993E-2},{"$f":"IFERROR(INDEX('Data Annex'!$K$1:$AN$4997,MATCH(Z$1&\"|\"&$B43,'Data Annex'!$K$1:$K$4997,0),MATCH(Z$2,'Data Annex'!$K$1:$AN$1,0)),\"\")","v":7.7433799400000003E-2},{"$f":"IFERROR(INDEX('Data Annex'!$K$1:$AN$4997,MATCH(AA$1&\"|\"&$B43,'Data Annex'!$K$1:$K$4997,0),MATCH(AA$2,'Data Annex'!$K$1:$AN$1,0)),\"\")","v":7.7355710199999997E-2},{"$f":"IFERROR(INDEX('Data Annex'!$K$1:$AN$4997,MATCH(AB$1&\"|\"&$B43,'Data Annex'!$K$1:$K$4997,0),MATCH(AB$2,'Data Annex'!$K$1:$AN$1,0)),\"\")","v":7.6530765400000006E-2}]
[12,"GB",null,"GB",{"$f":"IFERROR(INDEX('Data Annex'!$K$1:$AN$4997,MATCH(E$1&\"|\"&$B44,'Data Annex'!$K$1:$K$4997,0),MATCH(E$2,'Data Annex'!$K$1:$AN$1,0)),\"\")","v":521.55979075000005},{"$f":"IFERROR(INDEX('Data Annex'!$K$1:$AN$4997,MATCH(F$1&\"|\"&$B44,'Data Annex'!$K$1:$K$4997,0),MATCH(F$2,'Data Annex'!$K$1:$AN$1,0)),\"\")","v":515.34601493000002},{"$f":"IFERROR(INDEX('Data Annex'!$K$1:$AN$4997,MATCH(G$1&\"|\"&$B44,'Data Annex'!$K$1:$K$4997,0),MATCH(G$2,'Data Annex'!$K$1:$AN$1,0)),\"\")","v":510.65497928000002},{"$f":"IFERROR(INDEX('Data Annex'!$K$1:$AN$4997,MATCH(H$1&\"|\"&$B44,'Data Annex'!$K$1:$K$4997,0),MATCH(H$2,'Data Annex'!$K$1:$AN$1,0)),\"\")","v":502.79908820999998},{"$f":"IFERROR(INDEX('Data Annex'!$K$1:$AN$4997,MATCH(I$1&\"|\"&$B44,'Data Annex'!$K$1:$K$4997,0),MATCH(I$2,'Data Annex'!$K$1:$AN$1,0)),\"\")","v":0.30237389689999999},{"$f":"IFERROR(INDEX('Data Annex'!$K$1:$AN$4997,MATCH(J$1&\"|\"&$B44,'Data Annex'!$K$1:$K$4997,0),MATCH(J$2,'Data Annex'!$K$1:$AN$1,0)),\"\")","v":0.25032277670000003},{"$f":"IFERROR(INDEX('Data Annex'!$K$1:$AN$4997,MATCH(K$1&\"|\"&$B44,'Data Annex'!$K$1:$K$4997,0),MATCH(K$2,'Data Annex'!$K$1:$AN$1,0)),\"\")","v":0.24592537370000001},{"$f":"IFERROR(INDEX('Data Annex'!$K$1:$AN$4997,MATCH(L$1&\"|\"&$B44,'Data Annex'!$K$1:$K$4997,0),MATCH(L$2,'Data Annex'!$K$1:$AN$1,0)),\"\")","v":0.222461041},{"$f":"IFERROR(INDEX('Data Annex'!$K$1:$AN$4997,MATCH(M$1&\"|\"&$B44,'Data Annex'!$K$1:$K$4997,0),MATCH(M$2,'Data Annex'!$K$1:$AN$1,0)),\"\")","v":0.63265793790000002},{"$f":"IFERROR(INDEX('Data Annex'!$K$1:$AN$4997,MATCH(N$1&\"|\"&$B44,'Data Annex'!$K$1:$K$4997,0),MATCH(N$2,'Data Annex'!$K$1:$AN$1,0)),\"\")","v":0.62385646750000001},{"$f":"IFERROR(INDEX('Data Annex'!$K$1:$AN$4997,MATCH(O$1&\"|\"&$B44,'Data Annex'!$K$1:$K$4997,0),MATCH(O$2,'Data Annex'!$K$1:$AN$1,0)),\"\")","v":0.61722263310000003},{"$f":"IFERROR(INDEX('Data Annex'!$K$1:$AN$4997,MATCH(P$1&\"|\"&$B44,'Data Annex'!$K$1:$K$4997,0),MATCH(P$2,'Data Annex'!$K$1:$AN$1,0)),\"\")","v":0.61975521060000005},{"$f":"IFERROR(INDEX('Data Annex'!$K$1:$AN$4997,MATCH(Q$1&\"|\"&$B44,'Data Annex'!$K$1:$K$4997,0),MATCH(Q$2,'Data Annex'!$K$1:$AN$1,0)),\"\")","v":-1.9717139000000002E-2},{"$f":"IFERROR(INDEX('Data Annex'!$K$1:$AN$4997,MATCH(R$1&\"|\"&$B44,'Data Annex'!$K$1:$K$4997,0),MATCH(R$2,'Data Annex'!$K$1:$AN$1,0)),\"\")","v":-2.8032953999999999E-2},{"$f":"IFERROR(INDEX('Data Annex'!$K$1:$AN$4997,MATCH(S$1&\"|\"&$B44,'Data Annex'!$K$1:$K$4997,0),MATCH(S$2,'Data Annex'!$K$1:$AN$1,0)),\"\")","v":-2.4470500999999999E-2},{"$f":"IFERROR(INDEX('Data Annex'!$K$1:$AN$4997,MATCH(T$1&\"|\"&$B44,'Data Annex'!$K$1:$K$4997,0),MATCH(T$2,'Data Annex'!$K$1:$AN$1,0)),\"\")","v":-2.0580273E-2},{"$f":"1-I44-M44-Q44-Y44","v":-4.1790581200000065E-2},{"$f":"1-J44-N44-R44-Z44","v":2.2575099699999962E-2},{"$f":"1-K44-O44-S44-AA44","v":3.1423819599999958E-2},{"$f":"1-L44-P44-T44-AB44","v":4.8465955499999991E-2},{"$f":"IFERROR(INDEX('Data Annex'!$K$1:$AN$4997,MATCH(Y$1&\"|\"&$B44,'Data Annex'!$K$1:$K$4997,0),MATCH(Y$2,'Data Annex'!$K$1:$AN$1,0)),\"\")","v":0.12647588539999999},{"$f":"IFERROR(INDEX('Data Annex'!$K$1:$AN$4997,MATCH(Z$1&\"|\"&$B44,'Data Annex'!$K$1:$K$4997,0),MATCH(Z$2,'Data Annex'!$K$1:$AN$1,0)),\"\")","v":0.1312786101},{"$f":"IFERROR(INDEX('Data Annex'!$K$1:$AN$4997,MATCH(AA$1&\"|\"&$B44,'Data Annex'!$K$1:$K$4997,0),MATCH(AA$2,'Data Annex'!$K$1:$AN$1,0)),\"\")","v":0.12989867460000001},{"$f":"IFERROR(INDEX('Data Annex'!$K$1:$AN$4997,MATCH(AB$1&\"|\"&$B44,'Data Annex'!$K$1:$K$4997,0),MATCH(AB$2,'Data Annex'!$K$1:$AN$1,0)),\"\")","v":0.1298980659}]
[null,null,null,null,null,null,null,null,null,null,null,null,null,null,null,null,{"$f":"TEXT(#REF!,\"YYYYMM\")+0","v":{"$error":"#REF!"}},{"$f":"TEXT(#REF!,\"YYYYMM\")+0","v":{"$error":"#REF!"}},{"$f":"TEXT(#REF!,\"YYYYMM\")+0","v":{"$error":"#REF!"}},{"$f":"TEXT(#REF!,\"YYYYMM\")+0","v":{"$error":"#REF!"}}]
[null,null,null,null,"T31_1","T31_1","T31_1","T31_1","T07_1","T07_1","T07_1","T07_1","T07_2","T07_2","T07_2","T07_2","T07_3","T07_3","T07_3","T07_3","T07_4","T07_4","T07_4","T07_4"]
[null,null,null,null,{"$f":"TEXT(E52,\"YYYYMM\")+0","v":202003},202006,202009,202012,202003,202006,202009,202012,202003,202006,202009,202012,202003,202006,202009,202012,202003,202006,202009,202012,202003,202006,202009,202012]
[null,null,null,"RWA composition"]
[]
[null,null,null,"Volumes bn EUR; %"]
[null,null,null,null,"RWA volume",null,null,null,"Credit risk capital requirements \n(excl. securitisation)",null,null,null,"Securitisation capital requirements",null,null,null,"Market risk capital requirements",null,null,null,"Operational risk capital requirements",null,null,null,"Other capital requirements"]
[null,null,null,null,{"$f":"EOMONTH($A$3,-9)","v":"2020-03-31"},{"$f":"EOMONTH($A$3,-6)","v":"2020-06-30"},{"$f":"EOMONTH($A$3,-3)","v":"2020-09-30"},{"$f":"EOMONTH($A$3,0)","v":"2020-12-31"},{"$f":"EOMONTH($A$3,-9)","v":"2020-03-31"},{"$f":"EOMONTH($A$3,-6)","v":"2020-06-30"},{"$f":"EOMONTH($A$3,-3)","v":"2020-09-30"},{"$f":"EOMONTH($A$3,0)","v":"2020-12-31"},{"$f":"EOMONTH($A$3,-9)","v":"2020-03-31"},{"$f":"EOMONTH($A$3,-6)","v":"2020-06-30"},{"$f":"EOMONTH($A$3,-3)","v":"2020-09-30"},{"$f":"EOMONTH($A$3,0)","v":"2020-12-31"},{"$f":"EOMONTH($A$3,-9)","v":"2020-03-31"},{"$f":"EOMONTH($A$3,-6)","v":"2020-06-30"},{"$f":"EOMONTH($A$3,-3)","v":"2020-09-30"},{"$f":"EOMONTH($A$3,0)","v":"2020-12-31"},{"$f":"EOMONTH($A$3,-9)","v":"2020-03-31"},{"$f":"EOMONTH($A$3,-6)","v":"2020-06-30"},{"$f":"EOMONTH($A$3,-3)","v":"2020-09-30"},{"$f":"EOMONTH($A$3,0)","v":"2020-12-31"},{"$f":"EOMONTH($A$3,-9)","v":"2020-03-31"},{"$f":"EOMONTH($A$3,-6)","v":"2020-06-30"},{"$f":"EOMONTH($A$3,-3)","v":"2020-09-30"},{"$f":"EOMONTH($A$3,0)","v":"2020-12-31"}]
[1,"AT",null,{"$f":"+IF(OR(E53=\"n.a.\",F53=\"n.a.\",G53=\"n.a.\",H53=\"n.a.\",I53=\"n.a.\",J53=\"n.a.\",K53=\"n.a.\",L53=\"n.a.\",Q53=\"n.a.\",R53=\"n.a.\",S53=\"n.a.\",T53=\"n.a.\",U53=\"n.a.\",V53=\"n.a.\",W53=\"n.a.\",X53=\"n.a.\",Y53=\"n.a.\",Z53=\"n.a.\",AA53=\"n.a.\",AB53=\"n.a.\"),$B53&\"*\",$B53)","v":"AT"},{"$f":"IFERROR(INDEX('Data Annex'!$K$1:$AN$4997,MATCH(E$46&\"|\"&$B53,'Data Annex'!$K$1:$K$4997,0),MATCH(E$47,'Data Annex'!$K$1:$AN$1,0)),\"\")","v":304.33559716000002},{"$f":"IFERROR(INDEX('Data Annex'!$K$1:$AN$4997,MATCH(F$46&\"|\"&$B53,'Data Annex'!$K$1:$K$4997,0),MATCH(F$47,'Data Annex'!$K$1:$AN$1,0)),\"\")","v":301.78359619000003},{"$f":"IFERROR(INDEX('Data Annex'!$K$1:$AN$4997,MATCH(G$46&\"|\"&$B53,'Data Annex'!$K$1:$K$4997,0),MATCH(G$47,'Data Annex'!$K$1:$AN$1,0)),\"\")","v":299.51573249},{"$f":"IFERROR(INDEX('Data Annex'!$K$1:$AN$4997,MATCH(H$46&\"|\"&$B53,'Data Annex'!$K$1:$K$4997,0),MATCH(H$47,'Data Annex'!$K$1:$AN$1,0)),\"\")","v":298.79936601999998},{"$f":"IFERROR(INDEX('Data Annex'!$K$1:$AN$4997,MATCH(I$46&\"|\"&$B53,'Data Annex'!$K$1:$K$4997,0),MATCH(I$47,'Data Annex'!$K$1:$AN$1,0)),\"\")-M53","v":0.84997963720000003},{"$f":"IFERROR(INDEX('Data Annex'!$K$1:$AN$4997,MATCH(J$46&\"|\"&$B53,'Data Annex'!$K$1:$K$4997,0),MATCH(J$47,'Data Annex'!$K$1:$AN$1,0)),\"\")-N53","v":0.84505507759999998},{"$f":"IFERROR(INDEX('Data Annex'!$K$1:$AN$4997,MATCH(K$46&\"|\"&$B53,'Data Annex'!$K$1:$K$4997,0),MATCH(K$47,'Data Annex'!$K$1:$AN$1,0)),\"\")-O53","v":0.84775394500000001},{"$f":"IFERROR(INDEX('Data Annex'!$K$1:$AN$4997,MATCH(L$46&\"|\"&$B53,'Data Annex'!$K$1:$K$4997,0),MATCH(L$47,'Data Annex'!$K$1:$AN$1,0)),\"\")-P53","v":0.84491017879999997},{"$f":"IFERROR(INDEX('Data Annex'!$K$1:$AN$4997,MATCH(M$46&\"|\"&$B53,'Data Annex'!$K$1:$K$4997,0),MATCH(M$47,'Data Annex'!$K$1:$AN$1,0)),\"\")","v":4.2136680000000003E-3},{"$f":"IFERROR(INDEX('Data Annex'!$K$1:$AN$4997,MATCH(N$46&\"|\"&$B53,'Data Annex'!$K$1:$K$4997,0),MATCH(N$47,'Data Annex'!$K$1:$AN$1,0)),\"\")","v":3.6813051999999998E-3},{"$f":"IFERROR(INDEX('Data Annex'!$K$1:$AN$4997,MATCH(O$46&\"|\"&$B53,'Data Annex'!$K$1:$K$4997,0),MATCH(O$47,'Data Annex'!$K$1:$AN$1,0)),\"\")","v":3.5549305000000002E-3},{"$f":"IFERROR(INDEX('Data Annex'!$K$1:$AN$4997,MATCH(P$46&\"|\"&$B53,'Data Annex'!$K$1:$K$4997,0),MATCH(P$47,'Data Annex'!$K$1:$AN$1,0)),\"\")","v":4.6837650000000003E-3},{"$f":"IFERROR(INDEX('Data Annex'!$K$1:$AN$4997,MATCH(Q$46&\"|\"&$B53,'Data Annex'!$K$1:$K$4997,0),MATCH(Q$47,'Data Annex'!$K$1:$AN$1,0)),\"\")","v":2.6478581500000001E-2},{"$f":"IFERROR(INDEX('Data Annex'!$K$1:$AN$4997,MATCH(R$46&\"|\"&$B53,'Data Annex'!$K$1:$K$4997,0),MATCH(R$47,'Data Annex'!$K$1:$AN$1,0)),\"\")","v":3.0051615399999999E-2},{"$f":"IFERROR(INDEX('Data Annex'!$K$1:$AN$4997,MATCH(S$46&\"|\"&$B53,'Data Annex'!$K$1:$K$4997,0),MATCH(S$47,'Data Annex'!$K$1:$AN$1,0)),\"\")","v":2.9821795000000002E-2},{"$f":"IFERROR(INDEX('Data Annex'!$K$1:$AN$4997,MATCH(T$46&\"|\"&$B53,'Data Annex'!$K$1:$K$4997,0),MATCH(T$47,'Data Annex'!$K$1:$AN$1,0)),\"\")","v":3.0622287500000001E-2},{"$f":"IFERROR(INDEX('Data Annex'!$K$1:$AN$4997,MATCH(U$46&\"|\"&$B53,'Data Annex'!$K$1:$K$4997,0),MATCH(U$47,'Data Annex'!$K$1:$AN$1,0)),\"\")","v":0.1011615996},{"$f":"IFERROR(INDEX('Data Annex'!$K$1:$AN$4997,MATCH(V$46&\"|\"&$B53,'Data Annex'!$K$1:$K$4997,0),MATCH(V$47,'Data Annex'!$K$1:$AN$1,0)),\"\")","v":0.10441456440000001},{"$f":"IFERROR(INDEX('Data Annex'!$K$1:$AN$4997,MATCH(W$46&\"|\"&$B53,'Data Annex'!$K$1:$K$4997,0),MATCH(W$47,'Data Annex'!$K$1:$AN$1,0)),\"\")","v":0.10249353880000001},{"$f":"IFERROR(INDEX('Data Annex'!$K$1:$AN$4997,MATCH(X$46&\"|\"&$B53,'Data Annex'!$K$1:$K$4997,0),MATCH(X$47,'Data Annex'!$K$1:$AN$1,0)),\"\")","v":0.1027557857},{"$f":"1-SUM(I53,M53,Q53,U53)","v":1.8166513699999887E-2},{"$f":"1-SUM(J53,N53,R53,V53)","v":1.6797437400000059E-2},1.6375790699999948E-2,1.702798300000008E-2]
[2,"BE",null,{"$f":"+IF(OR(E54=\"n.a.\",F54=\"n.a.\",G54=\"n.a.\",H54=\"n.a.\",I54=\"n.a.\",J54=\"n.a.\",K54=\"n.a.\",L54=\"n.a.\",Q54=\"n.a.\",R54=\"n.a.\",S54=\"n.a.\",T54=\"n.a.\",U54=\"n.a.\",V54=\"n.a.\",W54=\"n.a.\",X54=\"n.a.\",Y54=\"n.a.\",Z54=\"n.a.\",AA54=\"n.a.\",AB54=\"n.a.\"),$B54&\"*\",$B54)","v":"BE"},{"$f":"IFERROR(INDEX('Data Annex'!$K$1:$AN$4997,MATCH(E$46&\"|\"&$B54,'Data Annex'!$K$1:$K$4997,0),MATCH(E$47,'Data Annex'!$K$1:$AN$1,0)),\"\")","v":421.12299410000003},{"$f":"IFERROR(INDEX('Data Annex'!$K$1:$AN$4997,MATCH(F$46&\"|\"&$B54,'Data Annex'!$K$1:$K$4997,0),MATCH(F$47,'Data Annex'!$K$1:$AN$1,0)),\"\")","v":403.70326714999999},{"$f":"IFERROR(INDEX('Data Annex'!$K$1:$AN$4997,MATCH(G$46&\"|\"&$B54,'Data Annex'!$K$1:$K$4997,0),MATCH(G$47,'Data Annex'!$K$1:$AN$1,0)),\"\")","v":398.55057112999998},{"$f":"IFERROR(INDEX('Data Annex'!$K$1:$AN$4997,MATCH(H$46&\"|\"&$B54,'Data Annex'!$K$1:$K$4997,0),MATCH(H$47,'Data Annex'!$K$1:$AN$1,0)),\"\")","v":400.11107649000002},{"$f":"IFERROR(INDEX('Data Annex'!$K$1:$AN$4997,MATCH(I$46&\"|\"&$B54,'Data Annex'!$K$1:$K$4997,0),MATCH(I$47,'Data Annex'!$K$1:$AN$1,0)),\"\")-M54","v":0.83216279440000007},{"$f":"IFERROR(INDEX('Data Annex'!$K$1:$AN$4997,MATCH(J$46&\"|\"&$B54,'Data Annex'!$K$1:$K$4997,0),MATCH(J$47,'Data Annex'!$K$1:$AN$1,0)),\"\")-N54","v":0.82140940699999998},{"$f":"IFERROR(INDEX('Data Annex'!$K$1:$AN$4997,MATCH(K$46&\"|\"&$B54,'Data Annex'!$K$1:$K$4997,0),MATCH(K$47,'Data Annex'!$K$1:$AN$1,0)),\"\")-O54","v":0.82364043340000004},{"$f":"IFERROR(INDEX('Data Annex'!$K$1:$AN$4997,MATCH(L$46&\"|\"&$B54,'Data Annex'!$K$1:$K$4997,0),MATCH(L$47,'Data Annex'!$K$1:$AN$1,0)),\"\")-P54","v":0.82572718340000006},{"$f":"IFERROR(INDEX('Data Annex'!$K$1:$AN$4997,MATCH(M$46&\"|\"&$B54,'Data Annex'!$K$1:$K$4997,0),MATCH(M$47,'Data Annex'!$K$1:$AN$1,0)),\"\")","v":7.0697217E-3},{"$f":"IFERROR(INDEX('Data Annex'!$K$1:$AN$4997,MATCH(N$46&\"|\"&$B54,'Data Annex'!$K$1:$K$4997,0),MATCH(N$47,'Data Annex'!$K$1:$AN$1,0)),\"\")","v":6.8400251999999996E-3},{"$f":"IFERROR(INDEX('Data Annex'!$K$1:$AN$4997,MATCH(O$46&\"|\"&$B54,'Data Annex'!$K$1:$K$4997,0),MATCH(O$47,'Data Annex'!$K$1:$AN$1,0)),\"\")","v":7.2313814000000004E-3},{"$f":"IFERROR(INDEX('Data Annex'!$K$1:$AN$4997,MATCH(P$46&\"|\"&$B54,'Data Annex'!$K$1:$K$4997,0),MATCH(P$47,'Data Annex'!$K$1:$AN$1,0)),\"\")","v":7.3680450000000001E-3},{"$f":"IFERROR(INDEX('Data Annex'!$K$1:$AN$4997,MATCH(Q$46&\"|\"&$B54,'Data Annex'!$K$1:$K$4997,0),MATCH(Q$47,'Data Annex'!$K$1:$AN$1,0)),\"\")","v":1.9830573000000001E-2},{"$f":"IFERROR(INDEX('Data Annex'!$K$1:$AN$4997,MATCH(R$46&\"|\"&$B54,'Data Annex'!$K$1:$K$4997,0),MATCH(R$47,'Data Annex'!$K$1:$AN$1,0)),\"\")","v":1.9674109700000001E-2},{"$f":"IFERROR(INDEX('Data Annex'!$K$1:$AN$4997,MATCH(S$46&\"|\"&$B54,'Data Annex'!$K$1:$K$4997,0),MATCH(S$47,'Data Annex'!$K$1:$AN$1,0)),\"\")","v":1.7703446099999999E-2},{"$f":"IFERROR(INDEX('Data Annex'!$K$1:$AN$4997,MATCH(T$46&\"|\"&$B54,'Data Annex'!$K$1:$K$4997,0),MATCH(T$47,'Data Annex'!$K$1:$AN$1,0)),\"\")","v":1.6662518800000001E-2},{"$f":"IFERROR(INDEX('Data Annex'!$K$1:$AN$4997,MATCH(U$46&\"|\"&$B54,'Data Annex'!$K$1:$K$4997,0),MATCH(U$47,'Data Annex'!$K$1:$AN$1,0)),\"\")","v":8.4671063699999993E-2},{"$f":"IFERROR(INDEX('Data Annex'!$K$1:$AN$4997,MATCH(V$46&\"|\"&$B54,'Data Annex'!$K$1:$K$4997,0),MATCH(V$47,'Data Annex'!$K$1:$AN$1,0)),\"\")","v":8.8154391400000004E-2},{"$f":"IFERROR(INDEX('Data Annex'!$K$1:$AN$4997,MATCH(W$46&\"|\"&$B54,'Data Annex'!$K$1:$K$4997,0),MATCH(W$47,'Data Annex'!$K$1:$AN$1,0)),\"\")","v":8.9306901499999994E-2},{"$f":"IFERROR(INDEX('Data Annex'!$K$1:$AN$4997,MATCH(X$46&\"|\"&$B54,'Data Annex'!$K$1:$K$4997,0),MATCH(X$47,'Data Annex'!$K$1:$AN$1,0)),\"\")","v":8.7412296900000006E-2},{"$f":"1-SUM(I54,M54,Q54,U54)","v":5.6265847199999941E-2},6.3922066699999891E-2,6.2117837600000003E-2,6.2829955899999956E-2]
[3,"BG",null,"BG",{"$f":"IFERROR(INDEX('Data Annex'!$K$1:$AN$4997,MATCH(E$46&\"|\"&$B55,'Data Annex'!$K$1:$K$4997,0),MATCH(E$47,'Data Annex'!$K$1:$AN$1,0)),\"\")","v":20.971852949999999},{"$f":"IFERROR(INDEX('Data Annex'!$K$1:$AN$4997,MATCH(F$46&\"|\"&$B55,'Data Annex'!$K$1:$K$4997,0),MATCH(F$47,'Data Annex'!$K$1:$AN$1,0)),\"\")","v":19.068346457000001},{"$f":"IFERROR(INDEX('Data Annex'!$K$1:$AN$4997,MATCH(G$46&\"|\"&$B55,'Data Annex'!$K$1:$K$4997,0),MATCH(G$47,'Data Annex'!$K$1:$AN$1,0)),\"\")","v":19.733408834999999},{"$f":"IFERROR(INDEX('Data Annex'!$K$1:$AN$4997,MATCH(H$46&\"|\"&$B55,'Data Annex'!$K$1:$K$4997,0),MATCH(H$47,'Data Annex'!$K$1:$AN$1,0)),\"\")","v":19.674986194999999},{"$f":"IFERROR(INDEX('Data Annex'!$K$1:$AN$4997,MATCH(I$46&\"|\"&$B55,'Data Annex'!$K$1:$K$4997,0),MATCH(I$47,'Data Annex'!$K$1:$AN$1,0)),\"\")-M55","v":0.90941988330000001},{"$f":"IFERROR(INDEX('Data Annex'!$K$1:$AN$4997,MATCH(J$46&\"|\"&$B55,'Data Annex'!$K$1:$K$4997,0),MATCH(J$47,'Data Annex'!$K$1:$AN$1,0)),\"\")-N55","v":0.90960236039999998},{"$f":"IFERROR(INDEX('Data Annex'!$K$1:$AN$4997,MATCH(K$46&\"|\"&$B55,'Data Annex'!$K$1:$K$4997,0),MATCH(K$47,'Data Annex'!$K$1:$AN$1,0)),\"\")-O55","v":0.91352248979999995},{"$f":"IFERROR(INDEX('Data Annex'!$K$1:$AN$4997,MATCH(L$46&\"|\"&$B55,'Data Annex'!$K$1:$K$4997,0),MATCH(L$47,'Data Annex'!$K$1:$AN$1,0)),\"\")-P55","v":0.91485449009999997},{"$f":"IFERROR(INDEX('Data Annex'!$K$1:$AN$4997,MATCH(M$46&\"|\"&$B55,'Data Annex'!$K$1:$K$4997,0),MATCH(M$47,'Data Annex'!$K$1:$AN$1,0)),\"\")","v":0},{"$f":"IFERROR(INDEX('Data Annex'!$K$1:$AN$4997,MATCH(N$46&\"|\"&$B55,'Data Annex'!$K$1:$K$4997,0),MATCH(N$47,'Data Annex'!$K$1:$AN$1,0)),\"\")","v":0},{"$f":"IFERROR(INDEX('Data Annex'!$K$1:$AN$4997,MATCH(O$46&\"|\"&$B55,'Data Annex'!$K$1:$K$4997,0),MATCH(O$47,'Data Annex'!$K$1:$AN$1,0)),\"\")","v":0},{"$f":"IFERROR(INDEX('Data Annex'!$K$1:$AN$4997,MATCH(P$46&\"|\"&$B55,'Data Annex'!$K$1:$K$4997,0),MATCH(P$47,'Data Annex'!$K$1:$AN$1,0)),\"\")","v":0},{"$f":"IFERROR(INDEX('Data Annex'!$K$1:$AN$4997,MATCH(Q$46&\"|\"&$B55,'Data Annex'!$K$1:$K$4997,0),MATCH(Q$47,'Data Annex'!$K$1:$AN$1,0)),\"\")","v":4.7435011000000003E-3},{"$f":"IFERROR(INDEX('Data Annex'!$K$1:$AN$4997,MATCH(R$46&\"|\"&$B55,'Data Annex'!$K$1:$K$4997,0),MATCH(R$47,'Data Annex'!$K$1:$AN$1,0)),\"\")","v":5.2924512999999998E-3},{"$f":"IFERROR(INDEX('Data Annex'!$K$1:$AN$4997,MATCH(S$46&\"|\"&$B55,'Data Annex'!$K$1:$K$4997,0),MATCH(S$47,'Data Annex'!$K$1:$AN$1,0)),\"\")","v":4.8345881000000004E-3},{"$f":"IFERROR(INDEX('Data Annex'!$K$1:$AN$4997,MATCH(T$46&\"|\"&$B55,'Data Annex'!$K$1:$K$4997,0),MATCH(T$47,'Data Annex'!$K$1:$AN$1,0)),\"\")","v":5.9131237E-3},{"$f":"IFERROR(INDEX('Data Annex'!$K$1:$AN$4997,MATCH(U$46&\"|\"&$B55,'Data Annex'!$K$1:$K$4997,0),MATCH(U$47,'Data Annex'!$K$1:$AN$1,0)),\"\")","v":8.4947929800000002E-2},{"$f":"IFERROR(INDEX('Data Annex'!$K$1:$AN$4997,MATCH(V$46&\"|\"&$B55,'Data Annex'!$K$1:$K$4997,0),MATCH(V$47,'Data Annex'!$K$1:$AN$1,0)),\"\")","v":8.4919152400000003E-2},{"$f":"IFERROR(INDEX('Data Annex'!$K$1:$AN$4997,MATCH(W$46&\"|\"&$B55,'Data Annex'!$K$1:$K$4997,0),MATCH(W$47,'Data Annex'!$K$1:$AN$1,0)),\"\")","v":8.1477743500000005E-2},{"$f":"IFERROR(INDEX('Data Annex'!$K$1:$AN$4997,MATCH(X$46&\"|\"&$B55,'Data Annex'!$K$1:$K$4997,0),MATCH(X$47,'Data Annex'!$K$1:$AN$1,0)),\"\")","v":7.9066379300000003E-2},8.8868580000001085E-4,1.8603589999999226E-4,1.6517859999998219E-4,1.6600690000001528E-4]
[4,"CY",null,"CY",{"$f":"IFERROR(INDEX('Data Annex'!$K$1:$AN$4997,MATCH(E$46&\"|\"&$B56,'Data Annex'!$K$1:$K$4997,0),MATCH(E$47,'Data Annex'!$K$1:$AN$1,0)),\"\")","v":20.054708643000001},{"$f":"IFERROR(INDEX('Data Annex'!$K$1:$AN$4997,MATCH(F$46&\"|\"&$B56,'Data Annex'!$K$1:$K$4997,0),MATCH(F$47,'Data Annex'!$K$1:$AN$1,0)),\"\")","v":19.476084065999999},{"$f":"IFERROR(INDEX('Data Annex'!$K$1:$AN$4997,MATCH(G$46&\"|\"&$B56,'Data Annex'!$K$1:$K$4997,0),MATCH(G$47,'Data Annex'!$K$1:$AN$1,0)),\"\")","v":19.245536797},{"$f":"IFERROR(INDEX('Data Annex'!$K$1:$AN$4997,MATCH(H$46&\"|\"&$B56,'Data Annex'!$K$1:$K$4997,0),MATCH(H$47,'Data Annex'!$K$1:$AN$1,0)),\"\")","v":19.322901395999999},{"$f":"IFERROR(INDEX('Data Annex'!$K$1:$AN$4997,MATCH(I$46&\"|\"&$B56,'Data Annex'!$K$1:$K$4997,0),MATCH(I$47,'Data Annex'!$K$1:$AN$1,0)),\"\")-M56","v":0.86633101830000003},{"$f":"IFERROR(INDEX('Data Annex'!$K$1:$AN$4997,MATCH(J$46&\"|\"&$B56,'Data Annex'!$K$1:$K$4997,0),MATCH(J$47,'Data Annex'!$K$1:$AN$1,0)),\"\")-N56","v":0.8621831083},{"$f":"IFERROR(INDEX('Data Annex'!$K$1:$AN$4997,MATCH(K$46&\"|\"&$B56,'Data Annex'!$K$1:$K$4997,0),MATCH(K$47,'Data Annex'!$K$1:$AN$1,0)),\"\")-O56","v":0.86092933969999996},{"$f":"IFERROR(INDEX('Data Annex'!$K$1:$AN$4997,MATCH(L$46&\"|\"&$B56,'Data Annex'!$K$1:$K$4997,0),MATCH(L$47,'Data Annex'!$K$1:$AN$1,0)),\"\")-P56","v":0.87686319709999994},{"$f":"IFERROR(INDEX('Data Annex'!$K$1:$AN$4997,MATCH(M$46&\"|\"&$B56,'Data Annex'!$K$1:$K$4997,0),MATCH(M$47,'Data Annex'!$K$1:$AN$1,0)),\"\")","v":7.0810101999999996E-3},{"$f":"IFERROR(INDEX('Data Annex'!$K$1:$AN$4997,MATCH(N$46&\"|\"&$B56,'Data Annex'!$K$1:$K$4997,0),MATCH(N$47,'Data Annex'!$K$1:$AN$1,0)),\"\")","v":7.1955496999999997E-3},{"$f":"IFERROR(INDEX('Data Annex'!$K$1:$AN$4997,MATCH(O$46&\"|\"&$B56,'Data Annex'!$K$1:$K$4997,0),MATCH(O$47,'Data Annex'!$K$1:$AN$1,0)),\"\")","v":7.4166181000000003E-3},{"$f":"IFERROR(INDEX('Data Annex'!$K$1:$AN$4997,MATCH(P$46&\"|\"&$B56,'Data Annex'!$K$1:$K$4997,0),MATCH(P$47,'Data Annex'!$K$1:$AN$1,0)),\"\")","v":7.5356167999999996E-3},{"$f":"IFERROR(INDEX('Data Annex'!$K$1:$AN$4997,MATCH(Q$46&\"|\"&$B56,'Data Annex'!$K$1:$K$4997,0),MATCH(Q$47,'Data Annex'!$K$1:$AN$1,0)),\"\")","v":3.4446161999999998E-3},{"$f":"IFERROR(INDEX('Data Annex'!$K$1:$AN$4997,MATCH(R$46&\"|\"&$B56,'Data Annex'!$K$1:$K$4997,0),MATCH(R$47,'Data Annex'!$K$1:$AN$1,0)),\"\")","v":3.7490332999999998E-3},{"$f":"IFERROR(INDEX('Data Annex'!$K$1:$AN$4997,MATCH(S$46&\"|\"&$B56,'Data Annex'!$K$1:$K$4997,0),MATCH(S$47,'Data Annex'!$K$1:$AN$1,0)),\"\")","v":3.7556531999999999E-3},{"$f":"IFERROR(INDEX('Data Annex'!$K$1:$AN$4997,MATCH(T$46&\"|\"&$B56,'Data Annex'!$K$1:$K$4997,0),MATCH(T$47,'Data Annex'!$K$1:$AN$1,0)),\"\")","v":3.7394659999999999E-3},{"$f":"IFERROR(INDEX('Data Annex'!$K$1:$AN$4997,MATCH(U$46&\"|\"&$B56,'Data Annex'!$K$1:$K$4997,0),MATCH(U$47,'Data Annex'!$K$1:$AN$1,0)),\"\")","v":0.1223339313},{"$f":"IFERROR(INDEX('Data Annex'!$K$1:$AN$4997,MATCH(V$46&\"|\"&$B56,'Data Annex'!$K$1:$K$4997,0),MATCH(V$47,'Data Annex'!$K$1:$AN$1,0)),\"\")","v":0.12596841040000001},{"$f":"IFERROR(INDEX('Data Annex'!$K$1:$AN$4997,MATCH(W$46&\"|\"&$B56,'Data Annex'!$K$1:$K$4997,0),MATCH(W$47,'Data Annex'!$K$1:$AN$1,0)),\"\")","v":0.1274774186},{"$f":"IFERROR(INDEX('Data Annex'!$K$1:$AN$4997,MATCH(X$46&\"|\"&$B56,'Data Annex'!$K$1:$K$4997,0),MATCH(X$47,'Data Annex'!$K$1:$AN$1,0)),\"\")","v":0.11108439959999999},8.0942399999994752E-4,9.038983000000389E-4,4.2097039999999808E-4,7.7732050000012265E-4]
[5,"CZ",null,"CZ",{"$f":"IFERROR(INDEX('Data Annex'!$K$1:$AN$4997,MATCH(E$46&\"|\"&$B57,'Data Annex'!$K$1:$K$4997,0),MATCH(E$47,'Data Annex'!$K$1:$AN$1,0)),\"\")","v":53.311034560000003},{"$f":"IFERROR(INDEX('Data Annex'!$K$1:$AN$4997,MATCH(F$46&\"|\"&$B57,'Data Annex'!$K$1:$K$4997,0),MATCH(F$47,'Data Annex'!$K$1:$AN$1,0)),\"\")","v":52.414540248999998},{"$f":"IFERROR(INDEX('Data Annex'!$K$1:$AN$4997,MATCH(G$46&\"|\"&$B57,'Data Annex'!$K$1:$K$4997,0),MATCH(G$47,'Data Annex'!$K$1:$AN$1,0)),\"\")","v":51.811673472000003},{"$f":"IFERROR(INDEX('Data Annex'!$K$1:$AN$4997,MATCH(H$46&\"|\"&$B57,'Data Annex'!$K$1:$K$4997,0),MATCH(H$47,'Data Annex'!$K$1:$AN$1,0)),\"\")","v":53.224520837999997},{"$f":"IFERROR(INDEX('Data Annex'!$K$1:$AN$4997,MATCH(I$46&\"|\"&$B57,'Data Annex'!$K$1:$K$4997,0),MATCH(I$47,'Data Annex'!$K$1:$AN$1,0)),\"\")-M57","v":0.83595143510000003},{"$f":"IFERROR(INDEX('Data Annex'!$K$1:$AN$4997,MATCH(J$46&\"|\"&$B57,'Data Annex'!$K$1:$K$4997,0),MATCH(J$47,'Data Annex'!$K$1:$AN$1,0)),\"\")-N57","v":0.82861167739999997},{"$f":"IFERROR(INDEX('Data Annex'!$K$1:$AN$4997,MATCH(K$46&\"|\"&$B57,'Data Annex'!$K$1:$K$4997,0),MATCH(K$47,'Data Annex'!$K$1:$AN$1,0)),\"\")-O57","v":0.83246777389999993},{"$f":"IFERROR(INDEX('Data Annex'!$K$1:$AN$4997,MATCH(L$46&\"|\"&$B57,'Data Annex'!$K$1:$K$4997,0),MATCH(L$47,'Data Annex'!$K$1:$AN$1,0)),\"\")-P57","v":0.8405892493999999},{"$f":"IFERROR(INDEX('Data Annex'!$K$1:$AN$4997,MATCH(M$46&\"|\"&$B57,'Data Annex'!$K$1:$K$4997,0),MATCH(M$47,'Data Annex'!$K$1:$AN$1,0)),\"\")","v":4.6860536999999997E-3},{"$f":"IFERROR(INDEX('Data Annex'!$K$1:$AN$4997,MATCH(N$46&\"|\"&$B57,'Data Annex'!$K$1:$K$4997,0),MATCH(N$47,'Data Annex'!$K$1:$AN$1,0)),\"\")","v":3.2338366000000001E-3},{"$f":"IFERROR(INDEX('Data Annex'!$K$1:$AN$4997,MATCH(O$46&\"|\"&$B57,'Data Annex'!$K$1:$K$4997,0),MATCH(O$47,'Data Annex'!$K$1:$AN$1,0)),\"\")","v":3.8955802000000001E-3},{"$f":"IFERROR(INDEX('Data Annex'!$K$1:$AN$4997,MATCH(P$46&\"|\"&$B57,'Data Annex'!$K$1:$K$4997,0),MATCH(P$47,'Data Annex'!$K$1:$AN$1,0)),\"\")","v":2.2254308999999999E-3},{"$f":"IFERROR(INDEX('Data Annex'!$K$1:$AN$4997,MATCH(Q$46&\"|\"&$B57,'Data Annex'!$K$1:$K$4997,0),MATCH(Q$47,'Data Annex'!$K$1:$AN$1,0)),\"\")","v":2.67617567E-2},{"$f":"IFERROR(INDEX('Data Annex'!$K$1:$AN$4997,MATCH(R$46&\"|\"&$B57,'Data Annex'!$K$1:$K$4997,0),MATCH(R$47,'Data Annex'!$K$1:$AN$1,0)),\"\")","v":2.52444977E-2},{"$f":"IFERROR(INDEX('Data Annex'!$K$1:$AN$4997,MATCH(S$46&\"|\"&$B57,'Data Annex'!$K$1:$K$4997,0),MATCH(S$47,'Data Annex'!$K$1:$AN$1,0)),\"\")","v":2.48716002E-2},{"$f":"IFERROR(INDEX('Data Annex'!$K$1:$AN$4997,MATCH(T$46&\"|\"&$B57,'Data Annex'!$K$1:$K$4997,0),MATCH(T$47,'Data Annex'!$K$1:$AN$1,0)),\"\")","v":2.27273248E-2},{"$f":"IFERROR(INDEX('Data Annex'!$K$1:$AN$4997,MATCH(U$46&\"|\"&$B57,'Data Annex'!$K$1:$K$4997,0),MATCH(U$47,'Data Annex'!$K$1:$AN$1,0)),\"\")","v":0.1210438252},{"$f":"IFERROR(INDEX('Data Annex'!$K$1:$AN$4997,MATCH(V$46&\"|\"&$B57,'Data Annex'!$K$1:$K$4997,0),MATCH(V$47,'Data Annex'!$K$1:$AN$1,0)),\"\")","v":0.1237163532},{"$f":"IFERROR(INDEX('Data Annex'!$K$1:$AN$4997,MATCH(W$46&\"|\"&$B57,'Data Annex'!$K$1:$K$4997,0),MATCH(W$47,'Data Annex'!$K$1:$AN$1,0)),\"\")","v":0.1240968267},{"$f":"IFERROR(INDEX('Data Annex'!$K$1:$AN$4997,MATCH(X$46&\"|\"&$B57,'Data Annex'!$K$1:$K$4997,0),MATCH(X$47,'Data Annex'!$K$1:$AN$1,0)),\"\")","v":0.12101376279999999},1.1556929299999963E-2,1.919363510000005E-2,1.4668219000000038E-2,1.344423210000012E-2]
[6,"DE",null,"DE",{"$f":"IFERROR(INDEX('Data Annex'!$K$1:$AN$4997,MATCH(E$46&\"|\"&$B58,'Data Annex'!$K$1:$K$4997,0),MATCH(E$47,'Data Annex'!$K$1:$AN$1,0)),\"\")","v":1194.5788886},{"$f":"IFERROR(INDEX('Data Annex'!$K$1:$AN$4997,MATCH(F$46&\"|\"&$B58,'Data Annex'!$K$1:$K$4997,0),MATCH(F$47,'Data Annex'!$K$1:$AN$1,0)),\"\")","v":1185.6139023000001},{"$f":"IFERROR(INDEX('Data Annex'!$K$1:$AN$4997,MATCH(G$46&\"|\"&$B58,'Data Annex'!$K$1:$K$4997,0),MATCH(G$47,'Data Annex'!$K$1:$AN$1,0)),\"\")","v":1009.5951045},{"$f":"IFERROR(INDEX('Data Annex'!$K$1:$AN$4997,MATCH(H$46&\"|\"&$B58,'Data Annex'!$K$1:$K$4997,0),MATCH(H$47,'Data Annex'!$K$1:$AN$1,0)),\"\")","v":1027.1328312000001},{"$f":"IFERROR(INDEX('Data Annex'!$K$1:$AN$4997,MATCH(I$46&\"|\"&$B58,'Data Annex'!$K$1:$K$4997,0),MATCH(I$47,'Data Annex'!$K$1:$AN$1,0)),\"\")-M58","v":0.77960842619999993},{"$f":"IFERROR(INDEX('Data Annex'!$K$1:$AN$4997,MATCH(J$46&\"|\"&$B58,'Data Annex'!$K$1:$K$4997,0),MATCH(J$47,'Data Annex'!$K$1:$AN$1,0)),\"\")-N58","v":0.77500207620000006},{"$f":"IFERROR(INDEX('Data Annex'!$K$1:$AN$4997,MATCH(K$46&\"|\"&$B58,'Data Annex'!$K$1:$K$4997,0),MATCH(K$47,'Data Annex'!$K$1:$AN$1,0)),\"\")-O58","v":0.77529324919999998},{"$f":"IFERROR(INDEX('Data Annex'!$K$1:$AN$4997,MATCH(L$46&\"|\"&$B58,'Data Annex'!$K$1:$K$4997,0),MATCH(L$47,'Data Annex'!$K$1:$AN$1,0)),\"\")-P58","v":0.76236900159999998},{"$f":"IFERROR(INDEX('Data Annex'!$K$1:$AN$4997,MATCH(M$46&\"|\"&$B58,'Data Annex'!$K$1:$K$4997,0),MATCH(M$47,'Data Annex'!$K$1:$AN$1,0)),\"\")","v":2.6317660100000001E-2},{"$f":"IFERROR(INDEX('Data Annex'!$K$1:$AN$4997,MATCH(N$46&\"|\"&$B58,'Data Annex'!$K$1:$K$4997,0),MATCH(N$47,'Data Annex'!$K$1:$AN$1,0)),\"\")","v":2.4532851599999999E-2},{"$f":"IFERROR(INDEX('Data Annex'!$K$1:$AN$4997,MATCH(O$46&\"|\"&$B58,'Data Annex'!$K$1:$K$4997,0),MATCH(O$47,'Data Annex'!$K$1:$AN$1,0)),\"\")","v":2.2718587299999999E-2},{"$f":"IFERROR(INDEX('Data Annex'!$K$1:$AN$4997,MATCH(P$46&\"|\"&$B58,'Data Annex'!$K$1:$K$4997,0),MATCH(P$47,'Data Annex'!$K$1:$AN$1,0)),\"\")","v":2.32595591E-2},{"$f":"IFERROR(INDEX('Data Annex'!$K$1:$AN$4997,MATCH(Q$46&\"|\"&$B58,'Data Annex'!$K$1:$K$4997,0),MATCH(Q$47,'Data Annex'!$K$1:$AN$1,0)),\"\")","v":5.8069828400000002E-2},{"$f":"IFERROR(INDEX('Data Annex'!$K$1:$AN$4997,MATCH(R$46&\"|\"&$B58,'Data Annex'!$K$1:$K$4997,0),MATCH(R$47,'Data Annex'!$K$1:$AN$1,0)),\"\")","v":6.4945519100000002E-2},{"$f":"IFERROR(INDEX('Data Annex'!$K$1:$AN$4997,MATCH(S$46&\"|\"&$B58,'Data Annex'!$K$1:$K$4997,0),MATCH(S$47,'Data Annex'!$K$1:$AN$1,0)),\"\")","v":5.8656212200000002E-2},{"$f":"IFERROR(INDEX('Data Annex'!$K$1:$AN$4997,MATCH(T$46&\"|\"&$B58,'Data Annex'!$K$1:$K$4997,0),MATCH(T$47,'Data Annex'!$K$1:$AN$1,0)),\"\")","v":6.9656864499999999E-2},{"$f":"IFERROR(INDEX('Data Annex'!$K$1:$AN$4997,MATCH(U$46&\"|\"&$B58,'Data Annex'!$K$1:$K$4997,0),MATCH(U$47,'Data Annex'!$K$1:$AN$1,0)),\"\")","v":0.115112221},{"$f":"IFERROR(INDEX('Data Annex'!$K$1:$AN$4997,MATCH(V$46&\"|\"&$B58,'Data Annex'!$K$1:$K$4997,0),MATCH(V$47,'Data Annex'!$K$1:$AN$1,0)),\"\")","v":0.1152239945},{"$f":"IFERROR(INDEX('Data Annex'!$K$1:$AN$4997,MATCH(W$46&\"|\"&$B58,'Data Annex'!$K$1:$K$4997,0),MATCH(W$47,'Data Annex'!$K$1:$AN$1,0)),\"\")","v":0.1232237171},{"$f":"IFERROR(INDEX('Data Annex'!$K$1:$AN$4997,MATCH(X$46&\"|\"&$B58,'Data Annex'!$K$1:$K$4997,0),MATCH(X$47,'Data Annex'!$K$1:$AN$1,0)),\"\")","v":0.1215693025},2.0891864300000118E-2,2.0295558599999985E-2,2.0108234199999964E-2,2.3145272300000075E-2]
[7,"DK",null,"DK",{"$f":"IFERROR(INDEX('Data Annex'!$K$1:$AN$4997,MATCH(E$46&\"|\"&$B59,'Data Annex'!$K$1:$K$4997,0),MATCH(E$47,'Data Annex'!$K$1:$AN$1,0)),\"\")","v":185.97909634000001},{"$f":"IFERROR(INDEX('Data Annex'!$K$1:$AN$4997,MATCH(F$46&\"|\"&$B59,'Data Annex'!$K$1:$K$4997,0),MATCH(F$47,'Data Annex'!$K$1:$AN$1,0)),\"\")","v":190.82994772999999},{"$f":"IFERROR(INDEX('Data Annex'!$K$1:$AN$4997,MATCH(G$46&\"|\"&$B59,'Data Annex'!$K$1:$K$4997,0),MATCH(G$47,'Data Annex'!$K$1:$AN$1,0)),\"\")","v":188.34357795},{"$f":"IFERROR(INDEX('Data Annex'!$K$1:$AN$4997,MATCH(H$46&\"|\"&$B59,'Data Annex'!$K$1:$K$4997,0),MATCH(H$47,'Data Annex'!$K$1:$AN$1,0)),\"\")","v":190.76817811999999},{"$f":"IFERROR(INDEX('Data Annex'!$K$1:$AN$4997,MATCH(I$46&\"|\"&$B59,'Data Annex'!$K$1:$K$4997,0),MATCH(I$47,'Data Annex'!$K$1:$AN$1,0)),\"\")-M59","v":0.82631067899999999},{"$f":"IFERROR(INDEX('Data Annex'!$K$1:$AN$4997,MATCH(J$46&\"|\"&$B59,'Data Annex'!$K$1:$K$4997,0),MATCH(J$47,'Data Annex'!$K$1:$AN$1,0)),\"\")-N59","v":0.80889642249999993},{"$f":"IFERROR(INDEX('Data Annex'!$K$1:$AN$4997,MATCH(K$46&\"|\"&$B59,'Data Annex'!$K$1:$K$4997,0),MATCH(K$47,'Data Annex'!$K$1:$AN$1,0)),\"\")-O59","v":0.82010030299999992},{"$f":"IFERROR(INDEX('Data Annex'!$K$1:$AN$4997,MATCH(L$46&\"|\"&$B59,'Data Annex'!$K$1:$K$4997,0),MATCH(L$47,'Data Annex'!$K$1:$AN$1,0)),\"\")-P59","v":0.82614827020000003},{"$f":"IFERROR(INDEX('Data Annex'!$K$1:$AN$4997,MATCH(M$46&\"|\"&$B59,'Data Annex'!$K$1:$K$4997,0),MATCH(M$47,'Data Annex'!$K$1:$AN$1,0)),\"\")","v":1.8408152000000001E-3},{"$f":"IFERROR(INDEX('Data Annex'!$K$1:$AN$4997,MATCH(N$46&\"|\"&$B59,'Data Annex'!$K$1:$K$4997,0),MATCH(N$47,'Data Annex'!$K$1:$AN$1,0)),\"\")","v":1.7186712E-3},{"$f":"IFERROR(INDEX('Data Annex'!$K$1:$AN$4997,MATCH(O$46&\"|\"&$B59,'Data Annex'!$K$1:$K$4997,0),MATCH(O$47,'Data Annex'!$K$1:$AN$1,0)),\"\")","v":1.6830020000000001E-3},{"$f":"IFERROR(INDEX('Data Annex'!$K$1:$AN$4997,MATCH(P$46&\"|\"&$B59,'Data Annex'!$K$1:$K$4997,0),MATCH(P$47,'Data Annex'!$K$1:$AN$1,0)),\"\")","v":1.6696262999999999E-3},{"$f":"IFERROR(INDEX('Data Annex'!$K$1:$AN$4997,MATCH(Q$46&\"|\"&$B59,'Data Annex'!$K$1:$K$4997,0),MATCH(Q$47,'Data Annex'!$K$1:$AN$1,0)),\"\")","v":6.8545465400000005E-2},{"$f":"IFERROR(INDEX('Data Annex'!$K$1:$AN$4997,MATCH(R$46&\"|\"&$B59,'Data Annex'!$K$1:$K$4997,0),MATCH(R$47,'Data Annex'!$K$1:$AN$1,0)),\"\")","v":8.6649824400000006E-2},{"$f":"IFERROR(INDEX('Data Annex'!$K$1:$AN$4997,MATCH(S$46&\"|\"&$B59,'Data Annex'!$K$1:$K$4997,0),MATCH(S$47,'Data Annex'!$K$1:$AN$1,0)),\"\")","v":7.3875492200000004E-2},{"$f":"IFERROR(INDEX('Data Annex'!$K$1:$AN$4997,MATCH(T$46&\"|\"&$B59,'Data Annex'!$K$1:$K$4997,0),MATCH(T$47,'Data Annex'!$K$1:$AN$1,0)),\"\")","v":6.8335347699999993E-2},{"$f":"IFERROR(INDEX('Data Annex'!$K$1:$AN$4997,MATCH(U$46&\"|\"&$B59,'Data Annex'!$K$1:$K$4997,0),MATCH(U$47,'Data Annex'!$K$1:$AN$1,0)),\"\")","v":8.7903817600000003E-2},{"$f":"IFERROR(INDEX('Data Annex'!$K$1:$AN$4997,MATCH(V$46&\"|\"&$B59,'Data Annex'!$K$1:$K$4997,0),MATCH(V$47,'Data Annex'!$K$1:$AN$1,0)),\"\")","v":8.6739886000000002E-2},{"$f":"IFERROR(INDEX('Data Annex'!$K$1:$AN$4997,MATCH(W$46&\"|\"&$B59,'Data Annex'!$K$1:$K$4997,0),MATCH(W$47,'Data Annex'!$K$1:$AN$1,0)),\"\")","v":8.7960497499999998E-2},{"$f":"IFERROR(INDEX('Data Annex'!$K$1:$AN$4997,MATCH(X$46&\"|\"&$B59,'Data Annex'!$K$1:$K$4997,0),MATCH(X$47,'Data Annex'!$K$1:$AN$1,0)),\"\")","v":8.6092910800000005E-2},1.5399222799999945E-2,1.5995195899999981E-2,1.638070530000002E-2,1.775384499999999E-2]
[8,"EE",null,"EE",{"$f":"IFERROR(INDEX('Data Annex'!$K$1:$AN$4997,MATCH(E$46&\"|\"&$B60,'Data Annex'!$K$1:$K$4997,0),MATCH(E$47,'Data Annex'!$K$1:$AN$1,0)),\"\")","v":16.224477407999998},{"$f":"IFERROR(INDEX('Data Annex'!$K$1:$AN$4997,MATCH(F$46&\"|\"&$B60,'Data Annex'!$K$1:$K$4997,0),MATCH(F$47,'Data Annex'!$K$1:$AN$1,0)),\"\")","v":15.893760133000001},{"$f":"IFERROR(INDEX('Data Annex'!$K$1:$AN$4997,MATCH(G$46&\"|\"&$B60,'Data Annex'!$K$1:$K$4997,0),MATCH(G$47,'Data Annex'!$K$1:$AN$1,0)),\"\")","v":15.982982979999999},{"$f":"IFERROR(INDEX('Data Annex'!$K$1:$AN$4997,MATCH(H$46&\"|\"&$B60,'Data Annex'!$K$1:$K$4997,0),MATCH(H$47,'Data Annex'!$K$1:$AN$1,0)),\"\")","v":15.97335196},{"$f":"IFERROR(INDEX('Data Annex'!$K$1:$AN$4997,MATCH(I$46&\"|\"&$B60,'Data Annex'!$K$1:$K$4997,0),MATCH(I$47,'Data Annex'!$K$1:$AN$1,0)),\"\")-M60","v":0.89809306870000005},{"$f":"IFERROR(INDEX('Data Annex'!$K$1:$AN$4997,MATCH(J$46&\"|\"&$B60,'Data Annex'!$K$1:$K$4997,0),MATCH(J$47,'Data Annex'!$K$1:$AN$1,0)),\"\")-N60","v":0.89434295009999998},{"$f":"IFERROR(INDEX('Data Annex'!$K$1:$AN$4997,MATCH(K$46&\"|\"&$B60,'Data Annex'!$K$1:$K$4997,0),MATCH(K$47,'Data Annex'!$K$1:$AN$1,0)),\"\")-O60","v":0.8958229929},{"$f":"IFERROR(INDEX('Data Annex'!$K$1:$AN$4997,MATCH(L$46&\"|\"&$B60,'Data Annex'!$K$1:$K$4997,0),MATCH(L$47,'Data Annex'!$K$1:$AN$1,0)),\"\")-P60","v":0.89414849220000003},{"$f":"IFERROR(INDEX('Data Annex'!$K$1:$AN$4997,MATCH(M$46&\"|\"&$B60,'Data Annex'!$K$1:$K$4997,0),MATCH(M$47,'Data Annex'!$K$1:$AN$1,0)),\"\")","v":0},{"$f":"IFERROR(INDEX('Data Annex'!$K$1:$AN$4997,MATCH(N$46&\"|\"&$B60,'Data Annex'!$K$1:$K$4997,0),MATCH(N$47,'Data Annex'!$K$1:$AN$1,0)),\"\")","v":0},{"$f":"IFERROR(INDEX('Data Annex'!$K$1:$AN$4997,MATCH(O$46&\"|\"&$B60,'Data Annex'!$K$1:$K$4997,0),MATCH(O$47,'Data Annex'!$K$1:$AN$1,0)),\"\")","v":0},{"$f":"IFERROR(INDEX('Data Annex'!$K$1:$AN$4997,MATCH(P$46&\"|\"&$B60,'Data Annex'!$K$1:$K$4997,0),MATCH(P$47,'Data Annex'!$K$1:$AN$1,0)),\"\")","v":0},{"$f":"IFERROR(INDEX('Data Annex'!$K$1:$AN$4997,MATCH(Q$46&\"|\"&$B60,'Data Annex'!$K$1:$K$4997,0),MATCH(Q$47,'Data Annex'!$K$1:$AN$1,0)),\"\")","v":3.6038018000000001E-3},{"$f":"IFERROR(INDEX('Data Annex'!$K$1:$AN$4997,MATCH(R$46&\"|\"&$B60,'Data Annex'!$K$1:$K$4997,0),MATCH(R$47,'Data Annex'!$K$1:$AN$1,0)),\"\")","v":4.9782113999999999E-3},{"$f":"IFERROR(INDEX('Data Annex'!$K$1:$AN$4997,MATCH(S$46&\"|\"&$B60,'Data Annex'!$K$1:$K$4997,0),MATCH(S$47,'Data Annex'!$K$1:$AN$1,0)),\"\")","v":4.5363998000000003E-3},{"$f":"IFERROR(INDEX('Data Annex'!$K$1:$AN$4997,MATCH(T$46&\"|\"&$B60,'Data Annex'!$K$1:$K$4997,0),MATCH(T$47,'Data Annex'!$K$1:$AN$1,0)),\"\")","v":4.4740635000000001E-3},{"$f":"IFERROR(INDEX('Data Annex'!$K$1:$AN$4997,MATCH(U$46&\"|\"&$B60,'Data Annex'!$K$1:$K$4997,0),MATCH(U$47,'Data Annex'!$K$1:$AN$1,0)),\"\")","v":8.8195691100000001E-2},{"$f":"IFERROR(INDEX('Data Annex'!$K$1:$AN$4997,MATCH(V$46&\"|\"&$B60,'Data Annex'!$K$1:$K$4997,0),MATCH(V$47,'Data Annex'!$K$1:$AN$1,0)),\"\")","v":8.9096967400000004E-2},{"$f":"IFERROR(INDEX('Data Annex'!$K$1:$AN$4997,MATCH(W$46&\"|\"&$B60,'Data Annex'!$K$1:$K$4997,0),MATCH(W$47,'Data Annex'!$K$1:$AN$1,0)),\"\")","v":8.8635559899999994E-2},{"$f":"IFERROR(INDEX('Data Annex'!$K$1:$AN$4997,MATCH(X$46&\"|\"&$B60,'Data Annex'!$K$1:$K$4997,0),MATCH(X$47,'Data Annex'!$K$1:$AN$1,0)),\"\")","v":8.9939877700000004E-2},1.0107438399999946E-2,1.1581871099999974E-2,1.1005047400000079E-2,1.1437566599999949E-2]
[9,"ES",null,"ES",{"$f":"IFERROR(INDEX('Data Annex'!$K$1:$AN$4997,MATCH(E$46&\"|\"&$B61,'Data Annex'!$K$1:$K$4997,0),MATCH(E$47,'Data Annex'!$K$1:$AN$1,0)),\"\")","v":1446.1925060000001},{"$f":"IFERROR(INDEX('Data Annex'!$K$1:$AN$4997,MATCH(F$46&\"|\"&$B61,'Data Annex'!$K$1:$K$4997,0),MATCH(F$47,'Data Annex'!$K$1:$AN$1,0)),\"\")","v":1408.4370977000001},{"$f":"IFERROR(INDEX('Data Annex'!$K$1:$AN$4997,MATCH(G$46&\"|\"&$B61,'Data Annex'!$K$1:$K$4997,0),MATCH(G$47,'Data Annex'!$K$1:$AN$1,0)),\"\")","v":1366.4306872},{"$f":"IFERROR(INDEX('Data Annex'!$K$1:$AN$4997,MATCH(H$46&\"|\"&$B61,'Data Annex'!$K$1:$K$4997,0),MATCH(H$47,'Data Annex'!$K$1:$AN$1,0)),\"\")","v":1381.0753823},{"$f":"IFERROR(INDEX('Data Annex'!$K$1:$AN$4997,MATCH(I$46&\"|\"&$B61,'Data Annex'!$K$1:$K$4997,0),MATCH(I$47,'Data Annex'!$K$1:$AN$1,0)),\"\")-M61","v":0.86248520360000003},{"$f":"IFERROR(INDEX('Data Annex'!$K$1:$AN$4997,MATCH(J$46&\"|\"&$B61,'Data Annex'!$K$1:$K$4997,0),MATCH(J$47,'Data Annex'!$K$1:$AN$1,0)),\"\")-N61","v":0.85741791079999996},{"$f":"IFERROR(INDEX('Data Annex'!$K$1:$AN$4997,MATCH(K$46&\"|\"&$B61,'Data Annex'!$K$1:$K$4997,0),MATCH(K$47,'Data Annex'!$K$1:$AN$1,0)),\"\")-O61","v":0.86003510760000002},{"$f":"IFERROR(INDEX('Data Annex'!$K$1:$AN$4997,MATCH(L$46&\"|\"&$B61,'Data Annex'!$K$1:$K$4997,0),MATCH(L$47,'Data Annex'!$K$1:$AN$1,0)),\"\")-P61","v":0.857296634},{"$f":"IFERROR(INDEX('Data Annex'!$K$1:$AN$4997,MATCH(M$46&\"|\"&$B61,'Data Annex'!$K$1:$K$4997,0),MATCH(M$47,'Data Annex'!$K$1:$AN$1,0)),\"\")","v":7.4374857000000004E-3},{"$f":"IFERROR(INDEX('Data Annex'!$K$1:$AN$4997,MATCH(N$46&\"|\"&$B61,'Data Annex'!$K$1:$K$4997,0),MATCH(N$47,'Data Annex'!$K$1:$AN$1,0)),\"\")","v":6.9227951999999999E-3},{"$f":"IFERROR(INDEX('Data Annex'!$K$1:$AN$4997,MATCH(O$46&\"|\"&$B61,'Data Annex'!$K$1:$K$4997,0),MATCH(O$47,'Data Annex'!$K$1:$AN$1,0)),\"\")","v":6.9141552999999996E-3},{"$f":"IFERROR(INDEX('Data Annex'!$K$1:$AN$4997,MATCH(P$46&\"|\"&$B61,'Data Annex'!$K$1:$K$4997,0),MATCH(P$47,'Data Annex'!$K$1:$AN$1,0)),\"\")","v":7.1211948999999998E-3},{"$f":"IFERROR(INDEX('Data Annex'!$K$1:$AN$4997,MATCH(Q$46&\"|\"&$B61,'Data Annex'!$K$1:$K$4997,0),MATCH(Q$47,'Data Annex'!$K$1:$AN$1,0)),\"\")","v":3.1594079900000002E-2},{"$f":"IFERROR(INDEX('Data Annex'!$K$1:$AN$4997,MATCH(R$46&\"|\"&$B61,'Data Annex'!$K$1:$K$4997,0),MATCH(R$47,'Data Annex'!$K$1:$AN$1,0)),\"\")","v":3.38198652E-2},{"$f":"IFERROR(INDEX('Data Annex'!$K$1:$AN$4997,MATCH(S$46&\"|\"&$B61,'Data Annex'!$K$1:$K$4997,0),MATCH(S$47,'Data Annex'!$K$1:$AN$1,0)),\"\")","v":2.90956676E-2},{"$f":"IFERROR(INDEX('Data Annex'!$K$1:$AN$4997,MATCH(T$46&\"|\"&$B61,'Data Annex'!$K$1:$K$4997,0),MATCH(T$47,'Data Annex'!$K$1:$AN$1,0)),\"\")","v":2.6553212600000001E-2},{"$f":"IFERROR(INDEX('Data Annex'!$K$1:$AN$4997,MATCH(U$46&\"|\"&$B61,'Data Annex'!$K$1:$K$4997,0),MATCH(U$47,'Data Annex'!$K$1:$AN$1,0)),\"\")","v":9.1633426899999995E-2},{"$f":"IFERROR(INDEX('Data Annex'!$K$1:$AN$4997,MATCH(V$46&\"|\"&$B61,'Data Annex'!$K$1:$K$4997,0),MATCH(V$47,'Data Annex'!$K$1:$AN$1,0)),\"\")","v":9.2978484200000003E-2},{"$f":"IFERROR(INDEX('Data Annex'!$K$1:$AN$4997,MATCH(W$46&\"|\"&$B61,'Data Annex'!$K$1:$K$4997,0),MATCH(W$47,'Data Annex'!$K$1:$AN$1,0)),\"\")","v":9.3779569100000001E-2},{"$f":"IFERROR(INDEX('Data Annex'!$K$1:$AN$4997,MATCH(X$46&\"|\"&$B61,'Data Annex'!$K$1:$K$4997,0),MATCH(X$47,'Data Annex'!$K$1:$AN$1,0)),\"\")","v":9.4769678400000001E-2},6.8498039000000066E-3,8.8609445999999759E-3,1.0175500400000037E-2,1.4259280100000105E-2]
[10,"FI",null,"FI",{"$f":"IFERROR(INDEX('Data Annex'!$K$1:$AN$4997,MATCH(E$46&\"|\"&$B62,'Data Annex'!$K$1:$K$4997,0),MATCH(E$47,'Data Annex'!$K$1:$AN$1,0)),\"\")","v":219.91130163},{"$f":"IFERROR(INDEX('Data Annex'!$K$1:$AN$4997,MATCH(F$46&\"|\"&$B62,'Data Annex'!$K$1:$K$4997,0),MATCH(F$47,'Data Annex'!$K$1:$AN$1,0)),\"\")","v":222.95652838000001},{"$f":"IFERROR(INDEX('Data Annex'!$K$1:$AN$4997,MATCH(G$46&\"|\"&$B62,'Data Annex'!$K$1:$K$4997,0),MATCH(G$47,'Data Annex'!$K$1:$AN$1,0)),\"\")","v":217.84740722000001},{"$f":"IFERROR(INDEX('Data Annex'!$K$1:$AN$4997,MATCH(H$46&\"|\"&$B62,'Data Annex'!$K$1:$K$4997,0),MATCH(H$47,'Data Annex'!$K$1:$AN$1,0)),\"\")","v":66.735193112999994},{"$f":"IFERROR(INDEX('Data Annex'!$K$1:$AN$4997,MATCH(I$46&\"|\"&$B62,'Data Annex'!$K$1:$K$4997,0),MATCH(I$47,'Data Annex'!$K$1:$AN$1,0)),\"\")-M62","v":0.79949777519999998},{"$f":"IFERROR(INDEX('Data Annex'!$K$1:$AN$4997,MATCH(J$46&\"|\"&$B62,'Data Annex'!$K$1:$K$4997,0),MATCH(J$47,'Data Annex'!$K$1:$AN$1,0)),\"\")-N62","v":0.79304491700000002},{"$f":"IFERROR(INDEX('Data Annex'!$K$1:$AN$4997,MATCH(K$46&\"|\"&$B62,'Data Annex'!$K$1:$K$4997,0),MATCH(K$47,'Data Annex'!$K$1:$AN$1,0)),\"\")-O62","v":0.79717753530000002},{"$f":"IFERROR(INDEX('Data Annex'!$K$1:$AN$4997,MATCH(L$46&\"|\"&$B62,'Data Annex'!$K$1:$K$4997,0),MATCH(L$47,'Data Annex'!$K$1:$AN$1,0)),\"\")-P62","v":0.81173703850000001},{"$f":"IFERROR(INDEX('Data Annex'!$K$1:$AN$4997,MATCH(M$46&\"|\"&$B62,'Data Annex'!$K$1:$K$4997,0),MATCH(M$47,'Data Annex'!$K$1:$AN$1,0)),\"\")","v":4.6072574999999998E-3},{"$f":"IFERROR(INDEX('Data Annex'!$K$1:$AN$4997,MATCH(N$46&\"|\"&$B62,'Data Annex'!$K$1:$K$4997,0),MATCH(N$47,'Data Annex'!$K$1:$AN$1,0)),\"\")","v":4.4924246999999999E-3},{"$f":"IFERROR(INDEX('Data Annex'!$K$1:$AN$4997,MATCH(O$46&\"|\"&$B62,'Data Annex'!$K$1:$K$4997,0),MATCH(O$47,'Data Annex'!$K$1:$AN$1,0)),\"\")","v":4.5108516E-3},{"$f":"IFERROR(INDEX('Data Annex'!$K$1:$AN$4997,MATCH(P$46&\"|\"&$B62,'Data Annex'!$K$1:$K$4997,0),MATCH(P$47,'Data Annex'!$K$1:$AN$1,0)),\"\")","v":1.6512281000000001E-3},{"$f":"IFERROR(INDEX('Data Annex'!$K$1:$AN$4997,MATCH(Q$46&\"|\"&$B62,'Data Annex'!$K$1:$K$4997,0),MATCH(Q$47,'Data Annex'!$K$1:$AN$1,0)),\"\")","v":4.8953296100000002E-2},{"$f":"IFERROR(INDEX('Data Annex'!$K$1:$AN$4997,MATCH(R$46&\"|\"&$B62,'Data Annex'!$K$1:$K$4997,0),MATCH(R$47,'Data Annex'!$K$1:$AN$1,0)),\"\")","v":5.2223043400000002E-2},{"$f":"IFERROR(INDEX('Data Annex'!$K$1:$AN$4997,MATCH(S$46&\"|\"&$B62,'Data Annex'!$K$1:$K$4997,0),MATCH(S$47,'Data Annex'!$K$1:$AN$1,0)),\"\")","v":4.2457160700000003E-2},{"$f":"IFERROR(INDEX('Data Annex'!$K$1:$AN$4997,MATCH(T$46&\"|\"&$B62,'Data Annex'!$K$1:$K$4997,0),MATCH(T$47,'Data Annex'!$K$1:$AN$1,0)),\"\")","v":3.48452629E-2},{"$f":"IFERROR(INDEX('Data Annex'!$K$1:$AN$4997,MATCH(U$46&\"|\"&$B62,'Data Annex'!$K$1:$K$4997,0),MATCH(U$47,'Data Annex'!$K$1:$AN$1,0)),\"\")","v":8.9005635700000002E-2},{"$f":"IFERROR(INDEX('Data Annex'!$K$1:$AN$4997,MATCH(V$46&\"|\"&$B62,'Data Annex'!$K$1:$K$4997,0),MATCH(V$47,'Data Annex'!$K$1:$AN$1,0)),\"\")","v":8.7789962200000002E-2},{"$f":"IFERROR(INDEX('Data Annex'!$K$1:$AN$4997,MATCH(W$46&\"|\"&$B62,'Data Annex'!$K$1:$K$4997,0),MATCH(W$47,'Data Annex'!$K$1:$AN$1,0)),\"\")","v":8.9848878399999998E-2},{"$f":"IFERROR(INDEX('Data Annex'!$K$1:$AN$4997,MATCH(X$46&\"|\"&$B62,'Data Annex'!$K$1:$K$4997,0),MATCH(X$47,'Data Annex'!$K$1:$AN$1,0)),\"\")","v":8.8191323799999999E-2},5.7936035500000038E-2,6.2449652700000025E-2,6.6005573999999956E-2,6.3575146700000085E-2]
[11,"FR",null,"FR",{"$f":"IFERROR(INDEX('Data Annex'!$K$1:$AN$4997,MATCH(E$46&\"|\"&$B63,'Data Annex'!$K$1:$K$4997,0),MATCH(E$47,'Data Annex'!$K$1:$AN$1,0)),\"\")","v":2584.1004038000001},{"$f":"IFERROR(INDEX('Data Annex'!$K$1:$AN$4997,MATCH(F$46&\"|\"&$B63,'Data Annex'!$K$1:$K$4997,0),MATCH(F$47,'Data Annex'!$K$1:$AN$1,0)),\"\")","v":2605.2146659999999},{"$f":"IFERROR(INDEX('Data Annex'!$K$1:$AN$4997,MATCH(G$46&\"|\"&$B63,'Data Annex'!$K$1:$K$4997,0),MATCH(G$47,'Data Annex'!$K$1:$AN$1,0)),\"\")","v":2569.5026115000001},{"$f":"IFERROR(INDEX('Data Annex'!$K$1:$AN$4997,MATCH(H$46&\"|\"&$B63,'Data Annex'!$K$1:$K$4997,0),MATCH(H$47,'Data Annex'!$K$1:$AN$1,0)),\"\")","v":2588.6475891},{"$f":"IFERROR(INDEX('Data Annex'!$K$1:$AN$4997,MATCH(I$46&\"|\"&$B63,'Data Annex'!$K$1:$K$4997,0),MATCH(I$47,'Data Annex'!$K$1:$AN$1,0)),\"\")-M63","v":0.84608919010000005},{"$f":"IFERROR(INDEX('Data Annex'!$K$1:$AN$4997,MATCH(J$46&\"|\"&$B63,'Data Annex'!$K$1:$K$4997,0),MATCH(J$47,'Data Annex'!$K$1:$AN$1,0)),\"\")-N63","v":0.84409606059999998},{"$f":"IFERROR(INDEX('Data Annex'!$K$1:$AN$4997,MATCH(K$46&\"|\"&$B63,'Data Annex'!$K$1:$K$4997,0),MATCH(K$47,'Data Annex'!$K$1:$AN$1,0)),\"\")-O63","v":0.84607058980000005},{"$f":"IFERROR(INDEX('Data Annex'!$K$1:$AN$4997,MATCH(L$46&\"|\"&$B63,'Data Annex'!$K$1:$K$4997,0),MATCH(L$47,'Data Annex'!$K$1:$AN$1,0)),\"\")-P63","v":0.85091496730000005},{"$f":"IFERROR(INDEX('Data Annex'!$K$1:$AN$4997,MATCH(M$46&\"|\"&$B63,'Data Annex'!$K$1:$K$4997,0),MATCH(M$47,'Data Annex'!$K$1:$AN$1,0)),\"\")","v":1.46411549E-2},{"$f":"IFERROR(INDEX('Data Annex'!$K$1:$AN$4997,MATCH(N$46&\"|\"&$B63,'Data Annex'!$K$1:$K$4997,0),MATCH(N$47,'Data Annex'!$K$1:$AN$1,0)),\"\")","v":1.38130076E-2},{"$f":"IFERROR(INDEX('Data Annex'!$K$1:$AN$4997,MATCH(O$46&\"|\"&$B63,'Data Annex'!$K$1:$K$4997,0),MATCH(O$47,'Data Annex'!$K$1:$AN$1,0)),\"\")","v":1.3746331699999999E-2},{"$f":"IFERROR(INDEX('Data Annex'!$K$1:$AN$4997,MATCH(P$46&\"|\"&$B63,'Data Annex'!$K$1:$K$4997,0),MATCH(P$47,'Data Annex'!$K$1:$AN$1,0)),\"\")","v":1.37978539E-2},{"$f":"IFERROR(INDEX('Data Annex'!$K$1:$AN$4997,MATCH(Q$46&\"|\"&$B63,'Data Annex'!$K$1:$K$4997,0),MATCH(Q$47,'Data Annex'!$K$1:$AN$1,0)),\"\")","v":3.1133125300000002E-2},{"$f":"IFERROR(INDEX('Data Annex'!$K$1:$AN$4997,MATCH(R$46&\"|\"&$B63,'Data Annex'!$K$1:$K$4997,0),MATCH(R$47,'Data Annex'!$K$1:$AN$1,0)),\"\")","v":3.4956429499999997E-2},{"$f":"IFERROR(INDEX('Data Annex'!$K$1:$AN$4997,MATCH(S$46&\"|\"&$B63,'Data Annex'!$K$1:$K$4997,0),MATCH(S$47,'Data Annex'!$K$1:$AN$1,0)),\"\")","v":3.0551032400000001E-2},{"$f":"IFERROR(INDEX('Data Annex'!$K$1:$AN$4997,MATCH(T$46&\"|\"&$B63,'Data Annex'!$K$1:$K$4997,0),MATCH(T$47,'Data Annex'!$K$1:$AN$1,0)),\"\")","v":2.7557452600000001E-2},{"$f":"IFERROR(INDEX('Data Annex'!$K$1:$AN$4997,MATCH(U$46&\"|\"&$B63,'Data Annex'!$K$1:$K$4997,0),MATCH(U$47,'Data Annex'!$K$1:$AN$1,0)),\"\")","v":9.9184747200000006E-2},{"$f":"IFERROR(INDEX('Data Annex'!$K$1:$AN$4997,MATCH(V$46&\"|\"&$B63,'Data Annex'!$K$1:$K$4997,0),MATCH(V$47,'Data Annex'!$K$1:$AN$1,0)),\"\")","v":9.8671699099999996E-2},{"$f":"IFERROR(INDEX('Data Annex'!$K$1:$AN$4997,MATCH(W$46&\"|\"&$B63,'Data Annex'!$K$1:$K$4997,0),MATCH(W$47,'Data Annex'!$K$1:$AN$1,0)),\"\")","v":0.1016525148},{"$f":"IFERROR(INDEX('Data Annex'!$K$1:$AN$4997,MATCH(X$46&\"|\"&$B63,'Data Annex'!$K$1:$K$4997,0),MATCH(X$47,'Data Annex'!$K$1:$AN$1,0)),\"\")","v":9.9844891399999997E-2},8.9517824999999496E-3,8.4628032000000353E-3,7.9795312999999535E-3,7.8848348000000179E-3]
[13,"GR",null,"GR",{"$f":"IFERROR(INDEX('Data Annex'!$K$1:$AN$4997,MATCH(E$46&\"|\"&$B64,'Data Annex'!$K$1:$K$4997,0),MATCH(E$47,'Data Annex'!$K$1:$AN$1,0)),\"\")","v":171.87822967},{"$f":"IFERROR(INDEX('Data Annex'!$K$1:$AN$4997,MATCH(F$46&\"|\"&$B64,'Data Annex'!$K$1:$K$4997,0),MATCH(F$47,'Data Annex'!$K$1:$AN$1,0)),\"\")","v":168.35484797000001},{"$f":"IFERROR(INDEX('Data Annex'!$K$1:$AN$4997,MATCH(G$46&\"|\"&$B64,'Data Annex'!$K$1:$K$4997,0),MATCH(G$47,'Data Annex'!$K$1:$AN$1,0)),\"\")","v":165.37755756999999},{"$f":"IFERROR(INDEX('Data Annex'!$K$1:$AN$4997,MATCH(H$46&\"|\"&$B64,'Data Annex'!$K$1:$K$4997,0),MATCH(H$47,'Data Annex'!$K$1:$AN$1,0)),\"\")","v":165.37999604000001},{"$f":"IFERROR(INDEX('Data Annex'!$K$1:$AN$4997,MATCH(I$46&\"|\"&$B64,'Data Annex'!$K$1:$K$4997,0),MATCH(I$47,'Data Annex'!$K$1:$AN$1,0)),\"\")-M64","v":0.89558567499999997},{"$f":"IFERROR(INDEX('Data Annex'!$K$1:$AN$4997,MATCH(J$46&\"|\"&$B64,'Data Annex'!$K$1:$K$4997,0),MATCH(J$47,'Data Annex'!$K$1:$AN$1,0)),\"\")-N64","v":0.89186011719999991},{"$f":"IFERROR(INDEX('Data Annex'!$K$1:$AN$4997,MATCH(K$46&\"|\"&$B64,'Data Annex'!$K$1:$K$4997,0),MATCH(K$47,'Data Annex'!$K$1:$AN$1,0)),\"\")-O64","v":0.89309572989999997},{"$f":"IFERROR(INDEX('Data Annex'!$K$1:$AN$4997,MATCH(L$46&\"|\"&$B64,'Data Annex'!$K$1:$K$4997,0),MATCH(L$47,'Data Annex'!$K$1:$AN$1,0)),\"\")-P64","v":0.8952576108000001},{"$f":"IFERROR(INDEX('Data Annex'!$K$1:$AN$4997,MATCH(M$46&\"|\"&$B64,'Data Annex'!$K$1:$K$4997,0),MATCH(M$47,'Data Annex'!$K$1:$AN$1,0)),\"\")","v":6.1770434999999999E-3},{"$f":"IFERROR(INDEX('Data Annex'!$K$1:$AN$4997,MATCH(N$46&\"|\"&$B64,'Data Annex'!$K$1:$K$4997,0),MATCH(N$47,'Data Annex'!$K$1:$AN$1,0)),\"\")","v":6.5669001000000001E-3},{"$f":"IFERROR(INDEX('Data Annex'!$K$1:$AN$4997,MATCH(O$46&\"|\"&$B64,'Data Annex'!$K$1:$K$4997,0),MATCH(O$47,'Data Annex'!$K$1:$AN$1,0)),\"\")","v":6.9288821000000004E-3},{"$f":"IFERROR(INDEX('Data Annex'!$K$1:$AN$4997,MATCH(P$46&\"|\"&$B64,'Data Annex'!$K$1:$K$4997,0),MATCH(P$47,'Data Annex'!$K$1:$AN$1,0)),\"\")","v":6.9383763999999997E-3},{"$f":"IFERROR(INDEX('Data Annex'!$K$1:$AN$4997,MATCH(Q$46&\"|\"&$B64,'Data Annex'!$K$1:$K$4997,0),MATCH(Q$47,'Data Annex'!$K$1:$AN$1,0)),\"\")","v":2.5618789100000001E-2},{"$f":"IFERROR(INDEX('Data Annex'!$K$1:$AN$4997,MATCH(R$46&\"|\"&$B64,'Data Annex'!$K$1:$K$4997,0),MATCH(R$47,'Data Annex'!$K$1:$AN$1,0)),\"\")","v":2.7546035999999999E-2},{"$f":"IFERROR(INDEX('Data Annex'!$K$1:$AN$4997,MATCH(S$46&\"|\"&$B64,'Data Annex'!$K$1:$K$4997,0),MATCH(S$47,'Data Annex'!$K$1:$AN$1,0)),\"\")","v":2.4479992499999999E-2},{"$f":"IFERROR(INDEX('Data Annex'!$K$1:$AN$4997,MATCH(T$46&\"|\"&$B64,'Data Annex'!$K$1:$K$4997,0),MATCH(T$47,'Data Annex'!$K$1:$AN$1,0)),\"\")","v":2.5367413799999999E-2},{"$f":"IFERROR(INDEX('Data Annex'!$K$1:$AN$4997,MATCH(U$46&\"|\"&$B64,'Data Annex'!$K$1:$K$4997,0),MATCH(U$47,'Data Annex'!$K$1:$AN$1,0)),\"\")","v":7.1027392999999994E-2},{"$f":"IFERROR(INDEX('Data Annex'!$K$1:$AN$4997,MATCH(V$46&\"|\"&$B64,'Data Annex'!$K$1:$K$4997,0),MATCH(V$47,'Data Annex'!$K$1:$AN$1,0)),\"\")","v":7.2513876000000005E-2},{"$f":"IFERROR(INDEX('Data Annex'!$K$1:$AN$4997,MATCH(W$46&\"|\"&$B64,'Data Annex'!$K$1:$K$4997,0),MATCH(W$47,'Data Annex'!$K$1:$AN$1,0)),\"\")","v":7.3819342499999996E-2},{"$f":"IFERROR(INDEX('Data Annex'!$K$1:$AN$4997,MATCH(X$46&\"|\"&$B64,'Data Annex'!$K$1:$K$4997,0),MATCH(X$47,'Data Annex'!$K$1:$AN$1,0)),\"\")","v":7.1038389699999996E-2},1.5910993999999068E-3,1.5130706999999521E-3,1.6760530000000662E-3,1.3982093000000084E-3]
[14,"HR",null,"HR",{"$f":"IFERROR(INDEX('Data Annex'!$K$1:$AN$4997,MATCH(E$46&\"|\"&$B65,'Data Annex'!$K$1:$K$4997,0),MATCH(E$47,'Data Annex'!$K$1:$AN$1,0)),\"\")","v":26.433068085999999},{"$f":"IFERROR(INDEX('Data Annex'!$K$1:$AN$4997,MATCH(F$46&\"|\"&$B65,'Data Annex'!$K$1:$K$4997,0),MATCH(F$47,'Data Annex'!$K$1:$AN$1,0)),\"\")","v":25.695754780000001},{"$f":"IFERROR(INDEX('Data Annex'!$K$1:$AN$4997,MATCH(G$46&\"|\"&$B65,'Data Annex'!$K$1:$K$4997,0),MATCH(G$47,'Data Annex'!$K$1:$AN$1,0)),\"\")","v":25.415442696},{"$f":"IFERROR(INDEX('Data Annex'!$K$1:$AN$4997,MATCH(H$46&\"|\"&$B65,'Data Annex'!$K$1:$K$4997,0),MATCH(H$47,'Data Annex'!$K$1:$AN$1,0)),\"\")","v":25.640603487},{"$f":"IFERROR(INDEX('Data Annex'!$K$1:$AN$4997,MATCH(I$46&\"|\"&$B65,'Data Annex'!$K$1:$K$4997,0),MATCH(I$47,'Data Annex'!$K$1:$AN$1,0)),\"\")-M65","v":0.88894353869999998},{"$f":"IFERROR(INDEX('Data Annex'!$K$1:$AN$4997,MATCH(J$46&\"|\"&$B65,'Data Annex'!$K$1:$K$4997,0),MATCH(J$47,'Data Annex'!$K$1:$AN$1,0)),\"\")-N65","v":0.88803017870000001},{"$f":"IFERROR(INDEX('Data Annex'!$K$1:$AN$4997,MATCH(K$46&\"|\"&$B65,'Data Annex'!$K$1:$K$4997,0),MATCH(K$47,'Data Annex'!$K$1:$AN$1,0)),\"\")-O65","v":0.88966182680000006},{"$f":"IFERROR(INDEX('Data Annex'!$K$1:$AN$4997,MATCH(L$46&\"|\"&$B65,'Data Annex'!$K$1:$K$4997,0),MATCH(L$47,'Data Annex'!$K$1:$AN$1,0)),\"\")-P65","v":0.89112895640000001},{"$f":"IFERROR(INDEX('Data Annex'!$K$1:$AN$4997,MATCH(M$46&\"|\"&$B65,'Data Annex'!$K$1:$K$4997,0),MATCH(M$47,'Data Annex'!$K$1:$AN$1,0)),\"\")","v":0},{"$f":"IFERROR(INDEX('Data Annex'!$K$1:$AN$4997,MATCH(N$46&\"|\"&$B65,'Data Annex'!$K$1:$K$4997,0),MATCH(N$47,'Data Annex'!$K$1:$AN$1,0)),\"\")","v":0},{"$f":"IFERROR(INDEX('Data Annex'!$K$1:$AN$4997,MATCH(O$46&\"|\"&$B65,'Data Annex'!$K$1:$K$4997,0),MATCH(O$47,'Data Annex'!$K$1:$AN$1,0)),\"\")","v":0},{"$f":"IFERROR(INDEX('Data Annex'!$K$1:$AN$4997,MATCH(P$46&\"|\"&$B65,'Data Annex'!$K$1:$K$4997,0),MATCH(P$47,'Data Annex'!$K$1:$AN$1,0)),\"\")","v":0},{"$f":"IFERROR(INDEX('Data Annex'!$K$1:$AN$4997,MATCH(Q$46&\"|\"&$B65,'Data Annex'!$K$1:$K$4997,0),MATCH(Q$47,'Data Annex'!$K$1:$AN$1,0)),\"\")","v":2.0306159599999998E-2},{"$f":"IFERROR(INDEX('Data Annex'!$K$1:$AN$4997,MATCH(R$46&\"|\"&$B65,'Data Annex'!$K$1:$K$4997,0),MATCH(R$47,'Data Annex'!$K$1:$AN$1,0)),\"\")","v":1.6501021300000002E-2},{"$f":"IFERROR(INDEX('Data Annex'!$K$1:$AN$4997,MATCH(S$46&\"|\"&$B65,'Data Annex'!$K$1:$K$4997,0),MATCH(S$47,'Data Annex'!$K$1:$AN$1,0)),\"\")","v":1.68089599E-2},{"$f":"IFERROR(INDEX('Data Annex'!$K$1:$AN$4997,MATCH(T$46&\"|\"&$B65,'Data Annex'!$K$1:$K$4997,0),MATCH(T$47,'Data Annex'!$K$1:$AN$1,0)),\"\")","v":1.7229641600000001E-2},{"$f":"IFERROR(INDEX('Data Annex'!$K$1:$AN$4997,MATCH(U$46&\"|\"&$B65,'Data Annex'!$K$1:$K$4997,0),MATCH(U$47,'Data Annex'!$K$1:$AN$1,0)),\"\")","v":9.0284395099999998E-2},{"$f":"IFERROR(INDEX('Data Annex'!$K$1:$AN$4997,MATCH(V$46&\"|\"&$B65,'Data Annex'!$K$1:$K$4997,0),MATCH(V$47,'Data Annex'!$K$1:$AN$1,0)),\"\")","v":9.1972302199999995E-2},{"$f":"IFERROR(INDEX('Data Annex'!$K$1:$AN$4997,MATCH(W$46&\"|\"&$B65,'Data Annex'!$K$1:$K$4997,0),MATCH(W$47,'Data Annex'!$K$1:$AN$1,0)),\"\")","v":9.31556895E-2},{"$f":"IFERROR(INDEX('Data Annex'!$K$1:$AN$4997,MATCH(X$46&\"|\"&$B65,'Data Annex'!$K$1:$K$4997,0),MATCH(X$47,'Data Annex'!$K$1:$AN$1,0)),\"\")","v":9.1287064900000006E-2},4.6590660000001005E-4,3.4964978000000535E-3,3.7352379999999741E-4,3.5433709999999063E-4]
[15,"HU",null,"HU",{"$f":"IFERROR(INDEX('Data Annex'!$K$1:$AN$4997,MATCH(E$46&\"|\"&$B66,'Data Annex'!$K$1:$K$4997,0),MATCH(E$47,'Data Annex'!$K$1:$AN$1,0)),\"\")","v":53.032387026000002},{"$f":"IFERROR(INDEX('Data Annex'!$K$1:$AN$4997,MATCH(F$46&\"|\"&$B66,'Data Annex'!$K$1:$K$4997,0),MATCH(F$47,'Data Annex'!$K$1:$AN$1,0)),\"\")","v":52.291535781},{"$f":"IFERROR(INDEX('Data Annex'!$K$1:$AN$4997,MATCH(G$46&\"|\"&$B66,'Data Annex'!$K$1:$K$4997,0),MATCH(G$47,'Data Annex'!$K$1:$AN$1,0)),\"\")","v":51.704856954999997},{"$f":"IFERROR(INDEX('Data Annex'!$K$1:$AN$4997,MATCH(H$46&\"|\"&$B66,'Data Annex'!$K$1:$K$4997,0),MATCH(H$47,'Data Annex'!$K$1:$AN$1,0)),\"\")","v":51.968120718000002},{"$f":"IFERROR(INDEX('Data Annex'!$K$1:$AN$4997,MATCH(I$46&\"|\"&$B66,'Data Annex'!$K$1:$K$4997,0),MATCH(I$47,'Data Annex'!$K$1:$AN$1,0)),\"\")-M66","v":0.88290754839999996},{"$f":"IFERROR(INDEX('Data Annex'!$K$1:$AN$4997,MATCH(J$46&\"|\"&$B66,'Data Annex'!$K$1:$K$4997,0),MATCH(J$47,'Data Annex'!$K$1:$AN$1,0)),\"\")-N66","v":0.88326909460000003},{"$f":"IFERROR(INDEX('Data Annex'!$K$1:$AN$4997,MATCH(K$46&\"|\"&$B66,'Data Annex'!$K$1:$K$4997,0),MATCH(K$47,'Data Annex'!$K$1:$AN$1,0)),\"\")-O66","v":0.88498483360000002},{"$f":"IFERROR(INDEX('Data Annex'!$K$1:$AN$4997,MATCH(L$46&\"|\"&$B66,'Data Annex'!$K$1:$K$4997,0),MATCH(L$47,'Data Annex'!$K$1:$AN$1,0)),\"\")-P66","v":0.8850403308},{"$f":"IFERROR(INDEX('Data Annex'!$K$1:$AN$4997,MATCH(M$46&\"|\"&$B66,'Data Annex'!$K$1:$K$4997,0),MATCH(M$47,'Data Annex'!$K$1:$AN$1,0)),\"\")","v":0},{"$f":"IFERROR(INDEX('Data Annex'!$K$1:$AN$4997,MATCH(N$46&\"|\"&$B66,'Data Annex'!$K$1:$K$4997,0),MATCH(N$47,'Data Annex'!$K$1:$AN$1,0)),\"\")","v":0},{"$f":"IFERROR(INDEX('Data Annex'!$K$1:$AN$4997,MATCH(O$46&\"|\"&$B66,'Data Annex'!$K$1:$K$4997,0),MATCH(O$47,'Data Annex'!$K$1:$AN$1,0)),\"\")","v":0},{"$f":"IFERROR(INDEX('Data Annex'!$K$1:$AN$4997,MATCH(P$46&\"|\"&$B66,'Data Annex'!$K$1:$K$4997,0),MATCH(P$47,'Data Annex'!$K$1:$AN$1,0)),\"\")","v":0},{"$f":"IFERROR(INDEX('Data Annex'!$K$1:$AN$4997,MATCH(Q$46&\"|\"&$B66,'Data Annex'!$K$1:$K$4997,0),MATCH(Q$47,'Data Annex'!$K$1:$AN$1,0)),\"\")","v":1.2074544E-2},{"$f":"IFERROR(INDEX('Data Annex'!$K$1:$AN$4997,MATCH(R$46&\"|\"&$B66,'Data Annex'!$K$1:$K$4997,0),MATCH(R$47,'Data Annex'!$K$1:$AN$1,0)),\"\")","v":1.3759053800000001E-2},{"$f":"IFERROR(INDEX('Data Annex'!$K$1:$AN$4997,MATCH(S$46&\"|\"&$B66,'Data Annex'!$K$1:$K$4997,0),MATCH(S$47,'Data Annex'!$K$1:$AN$1,0)),\"\")","v":1.3332253000000001E-2},{"$f":"IFERROR(INDEX('Data Annex'!$K$1:$AN$4997,MATCH(T$46&\"|\"&$B66,'Data Annex'!$K$1:$K$4997,0),MATCH(T$47,'Data Annex'!$K$1:$AN$1,0)),\"\")","v":1.42910616E-2},{"$f":"IFERROR(INDEX('Data Annex'!$K$1:$AN$4997,MATCH(U$46&\"|\"&$B66,'Data Annex'!$K$1:$K$4997,0),MATCH(U$47,'Data Annex'!$K$1:$AN$1,0)),\"\")","v":0.10438663099999999},{"$f":"IFERROR(INDEX('Data Annex'!$K$1:$AN$4997,MATCH(V$46&\"|\"&$B66,'Data Annex'!$K$1:$K$4997,0),MATCH(V$47,'Data Annex'!$K$1:$AN$1,0)),\"\")","v":0.1024145147},{"$f":"IFERROR(INDEX('Data Annex'!$K$1:$AN$4997,MATCH(W$46&\"|\"&$B66,'Data Annex'!$K$1:$K$4997,0),MATCH(W$47,'Data Annex'!$K$1:$AN$1,0)),\"\")","v":0.10112426150000001},{"$f":"IFERROR(INDEX('Data Annex'!$K$1:$AN$4997,MATCH(X$46&\"|\"&$B66,'Data Annex'!$K$1:$K$4997,0),MATCH(X$47,'Data Annex'!$K$1:$AN$1,0)),\"\")","v":0.100061397},6.3127660000006358E-4,5.5733690000003833E-4,5.5865190000004006E-4,6.0721059999990779E-4]
[16,"IE",null,"IE",{"$f":"IFERROR(INDEX('Data Annex'!$K$1:$AN$4997,MATCH(E$46&\"|\"&$B67,'Data Annex'!$K$1:$K$4997,0),MATCH(E$47,'Data Annex'!$K$1:$AN$1,0)),\"\")","v":231.48585722000001},{"$f":"IFERROR(INDEX('Data Annex'!$K$1:$AN$4997,MATCH(F$46&\"|\"&$B67,'Data Annex'!$K$1:$K$4997,0),MATCH(F$47,'Data Annex'!$K$1:$AN$1,0)),\"\")","v":223.44952631999999},{"$f":"IFERROR(INDEX('Data Annex'!$K$1:$AN$4997,MATCH(G$46&\"|\"&$B67,'Data Annex'!$K$1:$K$4997,0),MATCH(G$47,'Data Annex'!$K$1:$AN$1,0)),\"\")","v":218.38455375000001},{"$f":"IFERROR(INDEX('Data Annex'!$K$1:$AN$4997,MATCH(H$46&\"|\"&$B67,'Data Annex'!$K$1:$K$4997,0),MATCH(H$47,'Data Annex'!$K$1:$AN$1,0)),\"\")","v":225.02714180000001},{"$f":"IFERROR(INDEX('Data Annex'!$K$1:$AN$4997,MATCH(I$46&\"|\"&$B67,'Data Annex'!$K$1:$K$4997,0),MATCH(I$47,'Data Annex'!$K$1:$AN$1,0)),\"\")-M67","v":0.84747702350000009},{"$f":"IFERROR(INDEX('Data Annex'!$K$1:$AN$4997,MATCH(J$46&\"|\"&$B67,'Data Annex'!$K$1:$K$4997,0),MATCH(J$47,'Data Annex'!$K$1:$AN$1,0)),\"\")-N67","v":0.84345406000000001},{"$f":"IFERROR(INDEX('Data Annex'!$K$1:$AN$4997,MATCH(K$46&\"|\"&$B67,'Data Annex'!$K$1:$K$4997,0),MATCH(K$47,'Data Annex'!$K$1:$AN$1,0)),\"\")-O67","v":0.84407783800000002},{"$f":"IFERROR(INDEX('Data Annex'!$K$1:$AN$4997,MATCH(L$46&\"|\"&$B67,'Data Annex'!$K$1:$K$4997,0),MATCH(L$47,'Data Annex'!$K$1:$AN$1,0)),\"\")-P67","v":0.85063486439999991},{"$f":"IFERROR(INDEX('Data Annex'!$K$1:$AN$4997,MATCH(M$46&\"|\"&$B67,'Data Annex'!$K$1:$K$4997,0),MATCH(M$47,'Data Annex'!$K$1:$AN$1,0)),\"\")","v":2.2399368999999999E-2},{"$f":"IFERROR(INDEX('Data Annex'!$K$1:$AN$4997,MATCH(N$46&\"|\"&$B67,'Data Annex'!$K$1:$K$4997,0),MATCH(N$47,'Data Annex'!$K$1:$AN$1,0)),\"\")","v":1.87424315E-2},{"$f":"IFERROR(INDEX('Data Annex'!$K$1:$AN$4997,MATCH(O$46&\"|\"&$B67,'Data Annex'!$K$1:$K$4997,0),MATCH(O$47,'Data Annex'!$K$1:$AN$1,0)),\"\")","v":1.8419275799999999E-2},{"$f":"IFERROR(INDEX('Data Annex'!$K$1:$AN$4997,MATCH(P$46&\"|\"&$B67,'Data Annex'!$K$1:$K$4997,0),MATCH(P$47,'Data Annex'!$K$1:$AN$1,0)),\"\")","v":1.8395097900000001E-2},{"$f":"IFERROR(INDEX('Data Annex'!$K$1:$AN$4997,MATCH(Q$46&\"|\"&$B67,'Data Annex'!$K$1:$K$4997,0),MATCH(Q$47,'Data Annex'!$K$1:$AN$1,0)),\"\")","v":2.3589878500000001E-2},{"$f":"IFERROR(INDEX('Data Annex'!$K$1:$AN$4997,MATCH(R$46&\"|\"&$B67,'Data Annex'!$K$1:$K$4997,0),MATCH(R$47,'Data Annex'!$K$1:$AN$1,0)),\"\")","v":2.9535135099999998E-2},{"$f":"IFERROR(INDEX('Data Annex'!$K$1:$AN$4997,MATCH(S$46&\"|\"&$B67,'Data Annex'!$K$1:$K$4997,0),MATCH(S$47,'Data Annex'!$K$1:$AN$1,0)),\"\")","v":2.9487245700000001E-2},{"$f":"IFERROR(INDEX('Data Annex'!$K$1:$AN$4997,MATCH(T$46&\"|\"&$B67,'Data Annex'!$K$1:$K$4997,0),MATCH(T$47,'Data Annex'!$K$1:$AN$1,0)),\"\")","v":2.5930824000000002E-2},{"$f":"IFERROR(INDEX('Data Annex'!$K$1:$AN$4997,MATCH(U$46&\"|\"&$B67,'Data Annex'!$K$1:$K$4997,0),MATCH(U$47,'Data Annex'!$K$1:$AN$1,0)),\"\")","v":9.4277292900000004E-2},{"$f":"IFERROR(INDEX('Data Annex'!$K$1:$AN$4997,MATCH(V$46&\"|\"&$B67,'Data Annex'!$K$1:$K$4997,0),MATCH(V$47,'Data Annex'!$K$1:$AN$1,0)),\"\")","v":9.6649389899999993E-2},{"$f":"IFERROR(INDEX('Data Annex'!$K$1:$AN$4997,MATCH(W$46&\"|\"&$B67,'Data Annex'!$K$1:$K$4997,0),MATCH(W$47,'Data Annex'!$K$1:$AN$1,0)),\"\")","v":9.6405045300000006E-2},{"$f":"IFERROR(INDEX('Data Annex'!$K$1:$AN$4997,MATCH(X$46&\"|\"&$B67,'Data Annex'!$K$1:$K$4997,0),MATCH(X$47,'Data Annex'!$K$1:$AN$1,0)),\"\")","v":9.14744584E-2},1.2256436099999934E-2,1.1618983500000013E-2,1.1610595199999851E-2,1.3564755300000009E-2]
[17,"IS",null,"IS",{"$f":"IFERROR(INDEX('Data Annex'!$K$1:$AN$4997,MATCH(E$46&\"|\"&$B68,'Data Annex'!$K$1:$K$4997,0),MATCH(E$47,'Data Annex'!$K$1:$AN$1,0)),\"\")","v":17.245405022},{"$f":"IFERROR(INDEX('Data Annex'!$K$1:$AN$4997,MATCH(F$46&\"|\"&$B68,'Data Annex'!$K$1:$K$4997,0),MATCH(F$47,'Data Annex'!$K$1:$AN$1,0)),\"\")","v":17.324564130999999},{"$f":"IFERROR(INDEX('Data Annex'!$K$1:$AN$4997,MATCH(G$46&\"|\"&$B68,'Data Annex'!$K$1:$K$4997,0),MATCH(G$47,'Data Annex'!$K$1:$AN$1,0)),\"\")","v":17.094984538999999},{"$f":"IFERROR(INDEX('Data Annex'!$K$1:$AN$4997,MATCH(H$46&\"|\"&$B68,'Data Annex'!$K$1:$K$4997,0),MATCH(H$47,'Data Annex'!$K$1:$AN$1,0)),\"\")","v":17.933647909000001},{"$f":"IFERROR(INDEX('Data Annex'!$K$1:$AN$4997,MATCH(I$46&\"|\"&$B68,'Data Annex'!$K$1:$K$4997,0),MATCH(I$47,'Data Annex'!$K$1:$AN$1,0)),\"\")-M68","v":0.88128808439999995},{"$f":"IFERROR(INDEX('Data Annex'!$K$1:$AN$4997,MATCH(J$46&\"|\"&$B68,'Data Annex'!$K$1:$K$4997,0),MATCH(J$47,'Data Annex'!$K$1:$AN$1,0)),\"\")-N68","v":0.88247571280000003},{"$f":"IFERROR(INDEX('Data Annex'!$K$1:$AN$4997,MATCH(K$46&\"|\"&$B68,'Data Annex'!$K$1:$K$4997,0),MATCH(K$47,'Data Annex'!$K$1:$AN$1,0)),\"\")-O68","v":0.88465250120000005},{"$f":"IFERROR(INDEX('Data Annex'!$K$1:$AN$4997,MATCH(L$46&\"|\"&$B68,'Data Annex'!$K$1:$K$4997,0),MATCH(L$47,'Data Annex'!$K$1:$AN$1,0)),\"\")-P68","v":0.8832947552},{"$f":"IFERROR(INDEX('Data Annex'!$K$1:$AN$4997,MATCH(M$46&\"|\"&$B68,'Data Annex'!$K$1:$K$4997,0),MATCH(M$47,'Data Annex'!$K$1:$AN$1,0)),\"\")","v":0},{"$f":"IFERROR(INDEX('Data Annex'!$K$1:$AN$4997,MATCH(N$46&\"|\"&$B68,'Data Annex'!$K$1:$K$4997,0),MATCH(N$47,'Data Annex'!$K$1:$AN$1,0)),\"\")","v":0},{"$f":"IFERROR(INDEX('Data Annex'!$K$1:$AN$4997,MATCH(O$46&\"|\"&$B68,'Data Annex'!$K$1:$K$4997,0),MATCH(O$47,'Data Annex'!$K$1:$AN$1,0)),\"\")","v":0},{"$f":"IFERROR(INDEX('Data Annex'!$K$1:$AN$4997,MATCH(P$46&\"|\"&$B68,'Data Annex'!$K$1:$K$4997,0),MATCH(P$47,'Data Annex'!$K$1:$AN$1,0)),\"\")","v":0},{"$f":"IFERROR(INDEX('Data Annex'!$K$1:$AN$4997,MATCH(Q$46&\"|\"&$B68,'Data Annex'!$K$1:$K$4997,0),MATCH(Q$47,'Data Annex'!$K$1:$AN$1,0)),\"\")","v":1.6967245400000001E-2},{"$f":"IFERROR(INDEX('Data Annex'!$K$1:$AN$4997,MATCH(R$46&\"|\"&$B68,'Data Annex'!$K$1:$K$4997,0),MATCH(R$47,'Data Annex'!$K$1:$AN$1,0)),\"\")","v":1.60861767E-2},{"$f":"IFERROR(INDEX('Data Annex'!$K$1:$AN$4997,MATCH(S$46&\"|\"&$B68,'Data Annex'!$K$1:$K$4997,0),MATCH(S$47,'Data Annex'!$K$1:$AN$1,0)),\"\")","v":1.70308908E-2},{"$f":"IFERROR(INDEX('Data Annex'!$K$1:$AN$4997,MATCH(T$46&\"|\"&$B68,'Data Annex'!$K$1:$K$4997,0),MATCH(T$47,'Data Annex'!$K$1:$AN$1,0)),\"\")","v":1.7310290900000001E-2},{"$f":"IFERROR(INDEX('Data Annex'!$K$1:$AN$4997,MATCH(U$46&\"|\"&$B68,'Data Annex'!$K$1:$K$4997,0),MATCH(U$47,'Data Annex'!$K$1:$AN$1,0)),\"\")","v":0.1003602096},{"$f":"IFERROR(INDEX('Data Annex'!$K$1:$AN$4997,MATCH(V$46&\"|\"&$B68,'Data Annex'!$K$1:$K$4997,0),MATCH(V$47,'Data Annex'!$K$1:$AN$1,0)),\"\")","v":0.1000302189},{"$f":"IFERROR(INDEX('Data Annex'!$K$1:$AN$4997,MATCH(W$46&\"|\"&$B68,'Data Annex'!$K$1:$K$4997,0),MATCH(W$47,'Data Annex'!$K$1:$AN$1,0)),\"\")","v":9.7123648500000007E-2},{"$f":"IFERROR(INDEX('Data Annex'!$K$1:$AN$4997,MATCH(X$46&\"|\"&$B68,'Data Annex'!$K$1:$K$4997,0),MATCH(X$47,'Data Annex'!$K$1:$AN$1,0)),\"\")","v":9.75097615E-2},1.3844605999999704E-3,1.4078915999999886E-3,1.1929594999999793E-3,1.8851923999999576E-3]
[18,"IT",null,"IT",{"$f":"IFERROR(INDEX('Data Annex'!$K$1:$AN$4997,MATCH(E$46&\"|\"&$B69,'Data Annex'!$K$1:$K$4997,0),MATCH(E$47,'Data Annex'!$K$1:$AN$1,0)),\"\")","v":1058.6897125},{"$f":"IFERROR(INDEX('Data Annex'!$K$1:$AN$4997,MATCH(F$46&\"|\"&$B69,'Data Annex'!$K$1:$K$4997,0),MATCH(F$47,'Data Annex'!$K$1:$AN$1,0)),\"\")","v":1041.3115267999999},{"$f":"IFERROR(INDEX('Data Annex'!$K$1:$AN$4997,MATCH(G$46&\"|\"&$B69,'Data Annex'!$K$1:$K$4997,0),MATCH(G$47,'Data Annex'!$K$1:$AN$1,0)),\"\")","v":1012.3549924},{"$f":"IFERROR(INDEX('Data Annex'!$K$1:$AN$4997,MATCH(H$46&\"|\"&$B69,'Data Annex'!$K$1:$K$4997,0),MATCH(H$47,'Data Annex'!$K$1:$AN$1,0)),\"\")","v":1003.9515234},{"$f":"IFERROR(INDEX('Data Annex'!$K$1:$AN$4997,MATCH(I$46&\"|\"&$B69,'Data Annex'!$K$1:$K$4997,0),MATCH(I$47,'Data Annex'!$K$1:$AN$1,0)),\"\")-M69","v":0.84444465579999994},{"$f":"IFERROR(INDEX('Data Annex'!$K$1:$AN$4997,MATCH(J$46&\"|\"&$B69,'Data Annex'!$K$1:$K$4997,0),MATCH(J$47,'Data Annex'!$K$1:$AN$1,0)),\"\")-N69","v":0.83865354720000007},{"$f":"IFERROR(INDEX('Data Annex'!$K$1:$AN$4997,MATCH(K$46&\"|\"&$B69,'Data Annex'!$K$1:$K$4997,0),MATCH(K$47,'Data Annex'!$K$1:$AN$1,0)),\"\")-O69","v":0.84034604639999999},{"$f":"IFERROR(INDEX('Data Annex'!$K$1:$AN$4997,MATCH(L$46&\"|\"&$B69,'Data Annex'!$K$1:$K$4997,0),MATCH(L$47,'Data Annex'!$K$1:$AN$1,0)),\"\")-P69","v":0.83426301889999999},{"$f":"IFERROR(INDEX('Data Annex'!$K$1:$AN$4997,MATCH(M$46&\"|\"&$B69,'Data Annex'!$K$1:$K$4997,0),MATCH(M$47,'Data Annex'!$K$1:$AN$1,0)),\"\")","v":1.46820918E-2},{"$f":"IFERROR(INDEX('Data Annex'!$K$1:$AN$4997,MATCH(N$46&\"|\"&$B69,'Data Annex'!$K$1:$K$4997,0),MATCH(N$47,'Data Annex'!$K$1:$AN$1,0)),\"\")","v":1.45425893E-2},{"$f":"IFERROR(INDEX('Data Annex'!$K$1:$AN$4997,MATCH(O$46&\"|\"&$B69,'Data Annex'!$K$1:$K$4997,0),MATCH(O$47,'Data Annex'!$K$1:$AN$1,0)),\"\")","v":1.48029153E-2},{"$f":"IFERROR(INDEX('Data Annex'!$K$1:$AN$4997,MATCH(P$46&\"|\"&$B69,'Data Annex'!$K$1:$K$4997,0),MATCH(P$47,'Data Annex'!$K$1:$AN$1,0)),\"\")","v":1.8213766199999998E-2},{"$f":"IFERROR(INDEX('Data Annex'!$K$1:$AN$4997,MATCH(Q$46&\"|\"&$B69,'Data Annex'!$K$1:$K$4997,0),MATCH(Q$47,'Data Annex'!$K$1:$AN$1,0)),\"\")","v":3.9270636499999997E-2},{"$f":"IFERROR(INDEX('Data Annex'!$K$1:$AN$4997,MATCH(R$46&\"|\"&$B69,'Data Annex'!$K$1:$K$4997,0),MATCH(R$47,'Data Annex'!$K$1:$AN$1,0)),\"\")","v":4.0375629699999999E-2},{"$f":"IFERROR(INDEX('Data Annex'!$K$1:$AN$4997,MATCH(S$46&\"|\"&$B69,'Data Annex'!$K$1:$K$4997,0),MATCH(S$47,'Data Annex'!$K$1:$AN$1,0)),\"\")","v":3.6619023200000003E-2},{"$f":"IFERROR(INDEX('Data Annex'!$K$1:$AN$4997,MATCH(T$46&\"|\"&$B69,'Data Annex'!$K$1:$K$4997,0),MATCH(T$47,'Data Annex'!$K$1:$AN$1,0)),\"\")","v":3.7599183199999997E-2},{"$f":"IFERROR(INDEX('Data Annex'!$K$1:$AN$4997,MATCH(U$46&\"|\"&$B69,'Data Annex'!$K$1:$K$4997,0),MATCH(U$47,'Data Annex'!$K$1:$AN$1,0)),\"\")","v":9.0957392900000003E-2},{"$f":"IFERROR(INDEX('Data Annex'!$K$1:$AN$4997,MATCH(V$46&\"|\"&$B69,'Data Annex'!$K$1:$K$4997,0),MATCH(V$47,'Data Annex'!$K$1:$AN$1,0)),\"\")","v":9.4442788900000005E-2},{"$f":"IFERROR(INDEX('Data Annex'!$K$1:$AN$4997,MATCH(W$46&\"|\"&$B69,'Data Annex'!$K$1:$K$4997,0),MATCH(W$47,'Data Annex'!$K$1:$AN$1,0)),\"\")","v":9.7030755199999999E-2},{"$f":"IFERROR(INDEX('Data Annex'!$K$1:$AN$4997,MATCH(X$46&\"|\"&$B69,'Data Annex'!$K$1:$K$4997,0),MATCH(X$47,'Data Annex'!$K$1:$AN$1,0)),\"\")","v":9.9108564600000004E-2},1.0645223000000037E-2,1.1985444899999975E-2,1.1201259899999982E-2,1.0815467100000031E-2]
[19,"LT",null,"LT",{"$f":"IFERROR(INDEX('Data Annex'!$K$1:$AN$4997,MATCH(E$46&\"|\"&$B70,'Data Annex'!$K$1:$K$4997,0),MATCH(E$47,'Data Annex'!$K$1:$AN$1,0)),\"\")","v":8.4171759999999995},{"$f":"IFERROR(INDEX('Data Annex'!$K$1:$AN$4997,MATCH(F$46&\"|\"&$B70,'Data Annex'!$K$1:$K$4997,0),MATCH(F$47,'Data Annex'!$K$1:$AN$1,0)),\"\")","v":8.4720019999999998},{"$f":"IFERROR(INDEX('Data Annex'!$K$1:$AN$4997,MATCH(G$46&\"|\"&$B70,'Data Annex'!$K$1:$K$4997,0),MATCH(G$47,'Data Annex'!$K$1:$AN$1,0)),\"\")","v":8.7217350000000007},{"$f":"IFERROR(INDEX('Data Annex'!$K$1:$AN$4997,MATCH(H$46&\"|\"&$B70,'Data Annex'!$K$1:$K$4997,0),MATCH(H$47,'Data Annex'!$K$1:$AN$1,0)),\"\")","v":8.9794009999999993},{"$f":"IFERROR(INDEX('Data Annex'!$K$1:$AN$4997,MATCH(I$46&\"|\"&$B70,'Data Annex'!$K$1:$K$4997,0),MATCH(I$47,'Data Annex'!$K$1:$AN$1,0)),\"\")-M70","v":0.88082142990000001},{"$f":"IFERROR(INDEX('Data Annex'!$K$1:$AN$4997,MATCH(J$46&\"|\"&$B70,'Data Annex'!$K$1:$K$4997,0),MATCH(J$47,'Data Annex'!$K$1:$AN$1,0)),\"\")-N70","v":0.88113458899999997},{"$f":"IFERROR(INDEX('Data Annex'!$K$1:$AN$4997,MATCH(K$46&\"|\"&$B70,'Data Annex'!$K$1:$K$4997,0),MATCH(K$47,'Data Annex'!$K$1:$AN$1,0)),\"\")-O70","v":0.88917400040000005},{"$f":"IFERROR(INDEX('Data Annex'!$K$1:$AN$4997,MATCH(L$46&\"|\"&$B70,'Data Annex'!$K$1:$K$4997,0),MATCH(L$47,'Data Annex'!$K$1:$AN$1,0)),\"\")-P70","v":0.88650690620000006},{"$f":"IFERROR(INDEX('Data Annex'!$K$1:$AN$4997,MATCH(M$46&\"|\"&$B70,'Data Annex'!$K$1:$K$4997,0),MATCH(M$47,'Data Annex'!$K$1:$AN$1,0)),\"\")","v":0},{"$f":"IFERROR(INDEX('Data Annex'!$K$1:$AN$4997,MATCH(N$46&\"|\"&$B70,'Data Annex'!$K$1:$K$4997,0),MATCH(N$47,'Data Annex'!$K$1:$AN$1,0)),\"\")","v":0},{"$f":"IFERROR(INDEX('Data Annex'!$K$1:$AN$4997,MATCH(O$46&\"|\"&$B70,'Data Annex'!$K$1:$K$4997,0),MATCH(O$47,'Data Annex'!$K$1:$AN$1,0)),\"\")","v":0},{"$f":"IFERROR(INDEX('Data Annex'!$K$1:$AN$4997,MATCH(P$46&\"|\"&$B70,'Data Annex'!$K$1:$K$4997,0),MATCH(P$47,'Data Annex'!$K$1:$AN$1,0)),\"\")","v":0},{"$f":"IFERROR(INDEX('Data Annex'!$K$1:$AN$4997,MATCH(Q$46&\"|\"&$B70,'Data Annex'!$K$1:$K$4997,0),MATCH(Q$47,'Data Annex'!$K$1:$AN$1,0)),\"\")","v":6.2269103000000001E-3},{"$f":"IFERROR(INDEX('Data Annex'!$K$1:$AN$4997,MATCH(R$46&\"|\"&$B70,'Data Annex'!$K$1:$K$4997,0),MATCH(R$47,'Data Annex'!$K$1:$AN$1,0)),\"\")","v":5.3669722999999999E-3},{"$f":"IFERROR(INDEX('Data Annex'!$K$1:$AN$4997,MATCH(S$46&\"|\"&$B70,'Data Annex'!$K$1:$K$4997,0),MATCH(S$47,'Data Annex'!$K$1:$AN$1,0)),\"\")","v":4.0658194999999998E-3},{"$f":"IFERROR(INDEX('Data Annex'!$K$1:$AN$4997,MATCH(T$46&\"|\"&$B70,'Data Annex'!$K$1:$K$4997,0),MATCH(T$47,'Data Annex'!$K$1:$AN$1,0)),\"\")","v":4.1399198E-3},{"$f":"IFERROR(INDEX('Data Annex'!$K$1:$AN$4997,MATCH(U$46&\"|\"&$B70,'Data Annex'!$K$1:$K$4997,0),MATCH(U$47,'Data Annex'!$K$1:$AN$1,0)),\"\")","v":8.3831085400000005E-2},{"$f":"IFERROR(INDEX('Data Annex'!$K$1:$AN$4997,MATCH(V$46&\"|\"&$B70,'Data Annex'!$K$1:$K$4997,0),MATCH(V$47,'Data Annex'!$K$1:$AN$1,0)),\"\")","v":8.3586618599999996E-2},{"$f":"IFERROR(INDEX('Data Annex'!$K$1:$AN$4997,MATCH(W$46&\"|\"&$B70,'Data Annex'!$K$1:$K$4997,0),MATCH(W$47,'Data Annex'!$K$1:$AN$1,0)),\"\")","v":8.2954710299999998E-2},{"$f":"IFERROR(INDEX('Data Annex'!$K$1:$AN$4997,MATCH(X$46&\"|\"&$B70,'Data Annex'!$K$1:$K$4997,0),MATCH(X$47,'Data Annex'!$K$1:$AN$1,0)),\"\")","v":8.5570852700000005E-2},2.9120574400000043E-2,2.9911820099999931E-2,2.3805469799999979E-2,2.378232130000002E-2]
[20,"LU",null,"LU",{"$f":"IFERROR(INDEX('Data Annex'!$K$1:$AN$4997,MATCH(E$46&\"|\"&$B71,'Data Annex'!$K$1:$K$4997,0),MATCH(E$47,'Data Annex'!$K$1:$AN$1,0)),\"\")","v":100.53069112999999},{"$f":"IFERROR(INDEX('Data Annex'!$K$1:$AN$4997,MATCH(F$46&\"|\"&$B71,'Data Annex'!$K$1:$K$4997,0),MATCH(F$47,'Data Annex'!$K$1:$AN$1,0)),\"\")","v":97.060383849999994},{"$f":"IFERROR(INDEX('Data Annex'!$K$1:$AN$4997,MATCH(G$46&\"|\"&$B71,'Data Annex'!$K$1:$K$4997,0),MATCH(G$47,'Data Annex'!$K$1:$AN$1,0)),\"\")","v":98.60924473},{"$f":"IFERROR(INDEX('Data Annex'!$K$1:$AN$4997,MATCH(H$46&\"|\"&$B71,'Data Annex'!$K$1:$K$4997,0),MATCH(H$47,'Data Annex'!$K$1:$AN$1,0)),\"\")","v":101.89440534000001},{"$f":"IFERROR(INDEX('Data Annex'!$K$1:$AN$4997,MATCH(I$46&\"|\"&$B71,'Data Annex'!$K$1:$K$4997,0),MATCH(I$47,'Data Annex'!$K$1:$AN$1,0)),\"\")-M71","v":0.8573153859},{"$f":"IFERROR(INDEX('Data Annex'!$K$1:$AN$4997,MATCH(J$46&\"|\"&$B71,'Data Annex'!$K$1:$K$4997,0),MATCH(J$47,'Data Annex'!$K$1:$AN$1,0)),\"\")-N71","v":0.85171759989999996},{"$f":"IFERROR(INDEX('Data Annex'!$K$1:$AN$4997,MATCH(K$46&\"|\"&$B71,'Data Annex'!$K$1:$K$4997,0),MATCH(K$47,'Data Annex'!$K$1:$AN$1,0)),\"\")-O71","v":0.85601263169999997},{"$f":"IFERROR(INDEX('Data Annex'!$K$1:$AN$4997,MATCH(L$46&\"|\"&$B71,'Data Annex'!$K$1:$K$4997,0),MATCH(L$47,'Data Annex'!$K$1:$AN$1,0)),\"\")-P71","v":0.86453764399999999},{"$f":"IFERROR(INDEX('Data Annex'!$K$1:$AN$4997,MATCH(M$46&\"|\"&$B71,'Data Annex'!$K$1:$K$4997,0),MATCH(M$47,'Data Annex'!$K$1:$AN$1,0)),\"\")","v":2.1927302999999999E-2},{"$f":"IFERROR(INDEX('Data Annex'!$K$1:$AN$4997,MATCH(N$46&\"|\"&$B71,'Data Annex'!$K$1:$K$4997,0),MATCH(N$47,'Data Annex'!$K$1:$AN$1,0)),\"\")","v":2.26904377E-2},{"$f":"IFERROR(INDEX('Data Annex'!$K$1:$AN$4997,MATCH(O$46&\"|\"&$B71,'Data Annex'!$K$1:$K$4997,0),MATCH(O$47,'Data Annex'!$K$1:$AN$1,0)),\"\")","v":2.2302722600000002E-2},{"$f":"IFERROR(INDEX('Data Annex'!$K$1:$AN$4997,MATCH(P$46&\"|\"&$B71,'Data Annex'!$K$1:$K$4997,0),MATCH(P$47,'Data Annex'!$K$1:$AN$1,0)),\"\")","v":2.15540449E-2},{"$f":"IFERROR(INDEX('Data Annex'!$K$1:$AN$4997,MATCH(Q$46&\"|\"&$B71,'Data Annex'!$K$1:$K$4997,0),MATCH(Q$47,'Data Annex'!$K$1:$AN$1,0)),\"\")","v":5.3230884999999999E-3},{"$f":"IFERROR(INDEX('Data Annex'!$K$1:$AN$4997,MATCH(R$46&\"|\"&$B71,'Data Annex'!$K$1:$K$4997,0),MATCH(R$47,'Data Annex'!$K$1:$AN$1,0)),\"\")","v":6.2949844000000001E-3},{"$f":"IFERROR(INDEX('Data Annex'!$K$1:$AN$4997,MATCH(S$46&\"|\"&$B71,'Data Annex'!$K$1:$K$4997,0),MATCH(S$47,'Data Annex'!$K$1:$AN$1,0)),\"\")","v":5.3205758000000004E-3},{"$f":"IFERROR(INDEX('Data Annex'!$K$1:$AN$4997,MATCH(T$46&\"|\"&$B71,'Data Annex'!$K$1:$K$4997,0),MATCH(T$47,'Data Annex'!$K$1:$AN$1,0)),\"\")","v":3.7180632999999999E-3},{"$f":"IFERROR(INDEX('Data Annex'!$K$1:$AN$4997,MATCH(U$46&\"|\"&$B71,'Data Annex'!$K$1:$K$4997,0),MATCH(U$47,'Data Annex'!$K$1:$AN$1,0)),\"\")","v":9.5897101100000007E-2},{"$f":"IFERROR(INDEX('Data Annex'!$K$1:$AN$4997,MATCH(V$46&\"|\"&$B71,'Data Annex'!$K$1:$K$4997,0),MATCH(V$47,'Data Annex'!$K$1:$AN$1,0)),\"\")","v":9.9236405200000002E-2},{"$f":"IFERROR(INDEX('Data Annex'!$K$1:$AN$4997,MATCH(W$46&\"|\"&$B71,'Data Annex'!$K$1:$K$4997,0),MATCH(W$47,'Data Annex'!$K$1:$AN$1,0)),\"\")","v":9.6598105000000004E-2},{"$f":"IFERROR(INDEX('Data Annex'!$K$1:$AN$4997,MATCH(X$46&\"|\"&$B71,'Data Annex'!$K$1:$K$4997,0),MATCH(X$47,'Data Annex'!$K$1:$AN$1,0)),\"\")","v":8.8745754499999996E-2},1.9537121499999976E-2,2.0060572800000065E-2,1.9765964900000044E-2,2.1444493299999978E-2]
[21,"LV",null,"LV",{"$f":"IFERROR(INDEX('Data Annex'!$K$1:$AN$4997,MATCH(E$46&\"|\"&$B72,'Data Annex'!$K$1:$K$4997,0),MATCH(E$47,'Data Annex'!$K$1:$AN$1,0)),\"\")","v":6.0023659719999998},{"$f":"IFERROR(INDEX('Data Annex'!$K$1:$AN$4997,MATCH(F$46&\"|\"&$B72,'Data Annex'!$K$1:$K$4997,0),MATCH(F$47,'Data Annex'!$K$1:$AN$1,0)),\"\")","v":6.0471541447000003},{"$f":"IFERROR(INDEX('Data Annex'!$K$1:$AN$4997,MATCH(G$46&\"|\"&$B72,'Data Annex'!$K$1:$K$4997,0),MATCH(G$47,'Data Annex'!$K$1:$AN$1,0)),\"\")","v":6.0499699250000001},{"$f":"IFERROR(INDEX('Data Annex'!$K$1:$AN$4997,MATCH(H$46&\"|\"&$B72,'Data Annex'!$K$1:$K$4997,0),MATCH(H$47,'Data Annex'!$K$1:$AN$1,0)),\"\")","v":5.8518184949999998},{"$f":"IFERROR(INDEX('Data Annex'!$K$1:$AN$4997,MATCH(I$46&\"|\"&$B72,'Data Annex'!$K$1:$K$4997,0),MATCH(I$47,'Data Annex'!$K$1:$AN$1,0)),\"\")-M72","v":0.88536036870000001},{"$f":"IFERROR(INDEX('Data Annex'!$K$1:$AN$4997,MATCH(J$46&\"|\"&$B72,'Data Annex'!$K$1:$K$4997,0),MATCH(J$47,'Data Annex'!$K$1:$AN$1,0)),\"\")-N72","v":0.87165468629999998},{"$f":"IFERROR(INDEX('Data Annex'!$K$1:$AN$4997,MATCH(K$46&\"|\"&$B72,'Data Annex'!$K$1:$K$4997,0),MATCH(K$47,'Data Annex'!$K$1:$AN$1,0)),\"\")-O72","v":0.88472529160000002},{"$f":"IFERROR(INDEX('Data Annex'!$K$1:$AN$4997,MATCH(L$46&\"|\"&$B72,'Data Annex'!$K$1:$K$4997,0),MATCH(L$47,'Data Annex'!$K$1:$AN$1,0)),\"\")-P72","v":0.88846555979999997},{"$f":"IFERROR(INDEX('Data Annex'!$K$1:$AN$4997,MATCH(M$46&\"|\"&$B72,'Data Annex'!$K$1:$K$4997,0),MATCH(M$47,'Data Annex'!$K$1:$AN$1,0)),\"\")","v":0},{"$f":"IFERROR(INDEX('Data Annex'!$K$1:$AN$4997,MATCH(N$46&\"|\"&$B72,'Data Annex'!$K$1:$K$4997,0),MATCH(N$47,'Data Annex'!$K$1:$AN$1,0)),\"\")","v":0},{"$f":"IFERROR(INDEX('Data Annex'!$K$1:$AN$4997,MATCH(O$46&\"|\"&$B72,'Data Annex'!$K$1:$K$4997,0),MATCH(O$47,'Data Annex'!$K$1:$AN$1,0)),\"\")","v":0},{"$f":"IFERROR(INDEX('Data Annex'!$K$1:$AN$4997,MATCH(P$46&\"|\"&$B72,'Data Annex'!$K$1:$K$4997,0),MATCH(P$47,'Data Annex'!$K$1:$AN$1,0)),\"\")","v":0},{"$f":"IFERROR(INDEX('Data Annex'!$K$1:$AN$4997,MATCH(Q$46&\"|\"&$B72,'Data Annex'!$K$1:$K$4997,0),MATCH(Q$47,'Data Annex'!$K$1:$AN$1,0)),\"\")","v":5.2156562999999996E-3},{"$f":"IFERROR(INDEX('Data Annex'!$K$1:$AN$4997,MATCH(R$46&\"|\"&$B72,'Data Annex'!$K$1:$K$4997,0),MATCH(R$47,'Data Annex'!$K$1:$AN$1,0)),\"\")","v":1.42735486E-2},{"$f":"IFERROR(INDEX('Data Annex'!$K$1:$AN$4997,MATCH(S$46&\"|\"&$B72,'Data Annex'!$K$1:$K$4997,0),MATCH(S$47,'Data Annex'!$K$1:$AN$1,0)),\"\")","v":5.2920437000000004E-3},{"$f":"IFERROR(INDEX('Data Annex'!$K$1:$AN$4997,MATCH(T$46&\"|\"&$B72,'Data Annex'!$K$1:$K$4997,0),MATCH(T$47,'Data Annex'!$K$1:$AN$1,0)),\"\")","v":3.1134089000000001E-3},{"$f":"IFERROR(INDEX('Data Annex'!$K$1:$AN$4997,MATCH(U$46&\"|\"&$B72,'Data Annex'!$K$1:$K$4997,0),MATCH(U$47,'Data Annex'!$K$1:$AN$1,0)),\"\")","v":0.1091712032},{"$f":"IFERROR(INDEX('Data Annex'!$K$1:$AN$4997,MATCH(V$46&\"|\"&$B72,'Data Annex'!$K$1:$K$4997,0),MATCH(V$47,'Data Annex'!$K$1:$AN$1,0)),\"\")","v":0.1095032829},{"$f":"IFERROR(INDEX('Data Annex'!$K$1:$AN$4997,MATCH(W$46&\"|\"&$B72,'Data Annex'!$K$1:$K$4997,0),MATCH(W$47,'Data Annex'!$K$1:$AN$1,0)),\"\")","v":0.1096195229},{"$f":"IFERROR(INDEX('Data Annex'!$K$1:$AN$4997,MATCH(X$46&\"|\"&$B72,'Data Annex'!$K$1:$K$4997,0),MATCH(X$47,'Data Annex'!$K$1:$AN$1,0)),\"\")","v":0.1082569325},2.5277180000005117E-4,4.5684822000000569E-3,3.6314179999996643E-4,1.6409880000001209E-4]
[22,"MT",null,"MT",{"$f":"IFERROR(INDEX('Data Annex'!$K$1:$AN$4997,MATCH(E$46&\"|\"&$B73,'Data Annex'!$K$1:$K$4997,0),MATCH(E$47,'Data Annex'!$K$1:$AN$1,0)),\"\")","v":9.3435079533999996},{"$f":"IFERROR(INDEX('Data Annex'!$K$1:$AN$4997,MATCH(F$46&\"|\"&$B73,'Data Annex'!$K$1:$K$4997,0),MATCH(F$47,'Data Annex'!$K$1:$AN$1,0)),\"\")","v":9.2451071113999994},{"$f":"IFERROR(INDEX('Data Annex'!$K$1:$AN$4997,MATCH(G$46&\"|\"&$B73,'Data Annex'!$K$1:$K$4997,0),MATCH(G$47,'Data Annex'!$K$1:$AN$1,0)),\"\")","v":9.1318989893999998},{"$f":"IFERROR(INDEX('Data Annex'!$K$1:$AN$4997,MATCH(H$46&\"|\"&$B73,'Data Annex'!$K$1:$K$4997,0),MATCH(H$47,'Data Annex'!$K$1:$AN$1,0)),\"\")","v":8.7727330289999994},{"$f":"IFERROR(INDEX('Data Annex'!$K$1:$AN$4997,MATCH(I$46&\"|\"&$B73,'Data Annex'!$K$1:$K$4997,0),MATCH(I$47,'Data Annex'!$K$1:$AN$1,0)),\"\")-M73","v":0.89874751359999994},{"$f":"IFERROR(INDEX('Data Annex'!$K$1:$AN$4997,MATCH(J$46&\"|\"&$B73,'Data Annex'!$K$1:$K$4997,0),MATCH(J$47,'Data Annex'!$K$1:$AN$1,0)),\"\")-N73","v":0.89768109119999995},{"$f":"IFERROR(INDEX('Data Annex'!$K$1:$AN$4997,MATCH(K$46&\"|\"&$B73,'Data Annex'!$K$1:$K$4997,0),MATCH(K$47,'Data Annex'!$K$1:$AN$1,0)),\"\")-O73","v":0.8953279623},{"$f":"IFERROR(INDEX('Data Annex'!$K$1:$AN$4997,MATCH(L$46&\"|\"&$B73,'Data Annex'!$K$1:$K$4997,0),MATCH(L$47,'Data Annex'!$K$1:$AN$1,0)),\"\")-P73","v":0.89422157600000007},{"$f":"IFERROR(INDEX('Data Annex'!$K$1:$AN$4997,MATCH(M$46&\"|\"&$B73,'Data Annex'!$K$1:$K$4997,0),MATCH(M$47,'Data Annex'!$K$1:$AN$1,0)),\"\")","v":6.7493465000000004E-3},{"$f":"IFERROR(INDEX('Data Annex'!$K$1:$AN$4997,MATCH(N$46&\"|\"&$B73,'Data Annex'!$K$1:$K$4997,0),MATCH(N$47,'Data Annex'!$K$1:$AN$1,0)),\"\")","v":6.6213601000000002E-3},{"$f":"IFERROR(INDEX('Data Annex'!$K$1:$AN$4997,MATCH(O$46&\"|\"&$B73,'Data Annex'!$K$1:$K$4997,0),MATCH(O$47,'Data Annex'!$K$1:$AN$1,0)),\"\")","v":6.7072277999999999E-3},{"$f":"IFERROR(INDEX('Data Annex'!$K$1:$AN$4997,MATCH(P$46&\"|\"&$B73,'Data Annex'!$K$1:$K$4997,0),MATCH(P$47,'Data Annex'!$K$1:$AN$1,0)),\"\")","v":9.1446189999999997E-3},{"$f":"IFERROR(INDEX('Data Annex'!$K$1:$AN$4997,MATCH(Q$46&\"|\"&$B73,'Data Annex'!$K$1:$K$4997,0),MATCH(Q$47,'Data Annex'!$K$1:$AN$1,0)),\"\")","v":3.6232190000000001E-4},{"$f":"IFERROR(INDEX('Data Annex'!$K$1:$AN$4997,MATCH(R$46&\"|\"&$B73,'Data Annex'!$K$1:$K$4997,0),MATCH(R$47,'Data Annex'!$K$1:$AN$1,0)),\"\")","v":3.1240329999999999E-4},{"$f":"IFERROR(INDEX('Data Annex'!$K$1:$AN$4997,MATCH(S$46&\"|\"&$B73,'Data Annex'!$K$1:$K$4997,0),MATCH(S$47,'Data Annex'!$K$1:$AN$1,0)),\"\")","v":2.5102065999999998E-3},{"$f":"IFERROR(INDEX('Data Annex'!$K$1:$AN$4997,MATCH(T$46&\"|\"&$B73,'Data Annex'!$K$1:$K$4997,0),MATCH(T$47,'Data Annex'!$K$1:$AN$1,0)),\"\")","v":8.5588009999999998E-4},{"$f":"IFERROR(INDEX('Data Annex'!$K$1:$AN$4997,MATCH(U$46&\"|\"&$B73,'Data Annex'!$K$1:$K$4997,0),MATCH(U$47,'Data Annex'!$K$1:$AN$1,0)),\"\")","v":9.3678940799999999E-2},{"$f":"IFERROR(INDEX('Data Annex'!$K$1:$AN$4997,MATCH(V$46&\"|\"&$B73,'Data Annex'!$K$1:$K$4997,0),MATCH(V$47,'Data Annex'!$K$1:$AN$1,0)),\"\")","v":9.4925781700000003E-2},{"$f":"IFERROR(INDEX('Data Annex'!$K$1:$AN$4997,MATCH(W$46&\"|\"&$B73,'Data Annex'!$K$1:$K$4997,0),MATCH(W$47,'Data Annex'!$K$1:$AN$1,0)),\"\")","v":9.5166467099999999E-2},{"$f":"IFERROR(INDEX('Data Annex'!$K$1:$AN$4997,MATCH(X$46&\"|\"&$B73,'Data Annex'!$K$1:$K$4997,0),MATCH(X$47,'Data Annex'!$K$1:$AN$1,0)),\"\")","v":9.5627961499999997E-2},4.6187720000001597E-4,4.5936369999999282E-4,2.8813620000001094E-4,1.4996339999995278E-4]
[23,"NL",null,"NL",{"$f":"IFERROR(INDEX('Data Annex'!$K$1:$AN$4997,MATCH(E$46&\"|\"&$B74,'Data Annex'!$K$1:$K$4997,0),MATCH(E$47,'Data Annex'!$K$1:$AN$1,0)),\"\")","v":678.72876778},{"$f":"IFERROR(INDEX('Data Annex'!$K$1:$AN$4997,MATCH(F$46&\"|\"&$B74,'Data Annex'!$K$1:$K$4997,0),MATCH(F$47,'Data Annex'!$K$1:$AN$1,0)),\"\")","v":665.80499981000003},{"$f":"IFERROR(INDEX('Data Annex'!$K$1:$AN$4997,MATCH(G$46&\"|\"&$B74,'Data Annex'!$K$1:$K$4997,0),MATCH(G$47,'Data Annex'!$K$1:$AN$1,0)),\"\")","v":643.42690995999999},{"$f":"IFERROR(INDEX('Data Annex'!$K$1:$AN$4997,MATCH(H$46&\"|\"&$B74,'Data Annex'!$K$1:$K$4997,0),MATCH(H$47,'Data Annex'!$K$1:$AN$1,0)),\"\")","v":648.86860094999997},{"$f":"IFERROR(INDEX('Data Annex'!$K$1:$AN$4997,MATCH(I$46&\"|\"&$B74,'Data Annex'!$K$1:$K$4997,0),MATCH(I$47,'Data Annex'!$K$1:$AN$1,0)),\"\")-M74","v":0.79733411630000006},{"$f":"IFERROR(INDEX('Data Annex'!$K$1:$AN$4997,MATCH(J$46&\"|\"&$B74,'Data Annex'!$K$1:$K$4997,0),MATCH(J$47,'Data Annex'!$K$1:$AN$1,0)),\"\")-N74","v":0.79068104620000002},{"$f":"IFERROR(INDEX('Data Annex'!$K$1:$AN$4997,MATCH(K$46&\"|\"&$B74,'Data Annex'!$K$1:$K$4997,0),MATCH(K$47,'Data Annex'!$K$1:$AN$1,0)),\"\")-O74","v":0.78625678619999995},{"$f":"IFERROR(INDEX('Data Annex'!$K$1:$AN$4997,MATCH(L$46&\"|\"&$B74,'Data Annex'!$K$1:$K$4997,0),MATCH(L$47,'Data Annex'!$K$1:$AN$1,0)),\"\")-P74","v":0.78510348250000006},{"$f":"IFERROR(INDEX('Data Annex'!$K$1:$AN$4997,MATCH(M$46&\"|\"&$B74,'Data Annex'!$K$1:$K$4997,0),MATCH(M$47,'Data Annex'!$K$1:$AN$1,0)),\"\")","v":1.06125649E-2},{"$f":"IFERROR(INDEX('Data Annex'!$K$1:$AN$4997,MATCH(N$46&\"|\"&$B74,'Data Annex'!$K$1:$K$4997,0),MATCH(N$47,'Data Annex'!$K$1:$AN$1,0)),\"\")","v":8.9271809999999993E-3},{"$f":"IFERROR(INDEX('Data Annex'!$K$1:$AN$4997,MATCH(O$46&\"|\"&$B74,'Data Annex'!$K$1:$K$4997,0),MATCH(O$47,'Data Annex'!$K$1:$AN$1,0)),\"\")","v":8.9931152000000004E-3},{"$f":"IFERROR(INDEX('Data Annex'!$K$1:$AN$4997,MATCH(P$46&\"|\"&$B74,'Data Annex'!$K$1:$K$4997,0),MATCH(P$47,'Data Annex'!$K$1:$AN$1,0)),\"\")","v":8.8202804999999995E-3},{"$f":"IFERROR(INDEX('Data Annex'!$K$1:$AN$4997,MATCH(Q$46&\"|\"&$B74,'Data Annex'!$K$1:$K$4997,0),MATCH(Q$47,'Data Annex'!$K$1:$AN$1,0)),\"\")","v":2.50147727E-2},{"$f":"IFERROR(INDEX('Data Annex'!$K$1:$AN$4997,MATCH(R$46&\"|\"&$B74,'Data Annex'!$K$1:$K$4997,0),MATCH(R$47,'Data Annex'!$K$1:$AN$1,0)),\"\")","v":2.6649920300000001E-2},{"$f":"IFERROR(INDEX('Data Annex'!$K$1:$AN$4997,MATCH(S$46&\"|\"&$B74,'Data Annex'!$K$1:$K$4997,0),MATCH(S$47,'Data Annex'!$K$1:$AN$1,0)),\"\")","v":2.21242153E-2},{"$f":"IFERROR(INDEX('Data Annex'!$K$1:$AN$4997,MATCH(T$46&\"|\"&$B74,'Data Annex'!$K$1:$K$4997,0),MATCH(T$47,'Data Annex'!$K$1:$AN$1,0)),\"\")","v":2.1988291100000001E-2},{"$f":"IFERROR(INDEX('Data Annex'!$K$1:$AN$4997,MATCH(U$46&\"|\"&$B74,'Data Annex'!$K$1:$K$4997,0),MATCH(U$47,'Data Annex'!$K$1:$AN$1,0)),\"\")","v":0.13514976649999999},{"$f":"IFERROR(INDEX('Data Annex'!$K$1:$AN$4997,MATCH(V$46&\"|\"&$B74,'Data Annex'!$K$1:$K$4997,0),MATCH(V$47,'Data Annex'!$K$1:$AN$1,0)),\"\")","v":0.13689333619999999},{"$f":"IFERROR(INDEX('Data Annex'!$K$1:$AN$4997,MATCH(W$46&\"|\"&$B74,'Data Annex'!$K$1:$K$4997,0),MATCH(W$47,'Data Annex'!$K$1:$AN$1,0)),\"\")","v":0.13694968460000001},{"$f":"IFERROR(INDEX('Data Annex'!$K$1:$AN$4997,MATCH(X$46&\"|\"&$B74,'Data Annex'!$K$1:$K$4997,0),MATCH(X$47,'Data Annex'!$K$1:$AN$1,0)),\"\")","v":0.132088554},3.1888779600000028E-2,3.6848516299999967E-2,4.5676198700000059E-2,5.1999391900000025E-2]
[24,"NO",null,"NO",{"$f":"IFERROR(INDEX('Data Annex'!$K$1:$AN$4997,MATCH(E$46&\"|\"&$B75,'Data Annex'!$K$1:$K$4997,0),MATCH(E$47,'Data Annex'!$K$1:$AN$1,0)),\"\")","v":105.80054529},{"$f":"IFERROR(INDEX('Data Annex'!$K$1:$AN$4997,MATCH(F$46&\"|\"&$B75,'Data Annex'!$K$1:$K$4997,0),MATCH(F$47,'Data Annex'!$K$1:$AN$1,0)),\"\")","v":109.06106324},{"$f":"IFERROR(INDEX('Data Annex'!$K$1:$AN$4997,MATCH(G$46&\"|\"&$B75,'Data Annex'!$K$1:$K$4997,0),MATCH(G$47,'Data Annex'!$K$1:$AN$1,0)),\"\")","v":104.55411227},{"$f":"IFERROR(INDEX('Data Annex'!$K$1:$AN$4997,MATCH(H$46&\"|\"&$B75,'Data Annex'!$K$1:$K$4997,0),MATCH(H$47,'Data Annex'!$K$1:$AN$1,0)),\"\")","v":109.33225507},{"$f":"IFERROR(INDEX('Data Annex'!$K$1:$AN$4997,MATCH(I$46&\"|\"&$B75,'Data Annex'!$K$1:$K$4997,0),MATCH(I$47,'Data Annex'!$K$1:$AN$1,0)),\"\")-M75","v":0.8954988264},{"$f":"IFERROR(INDEX('Data Annex'!$K$1:$AN$4997,MATCH(J$46&\"|\"&$B75,'Data Annex'!$K$1:$K$4997,0),MATCH(J$47,'Data Annex'!$K$1:$AN$1,0)),\"\")-N75","v":0.89308652600000005},{"$f":"IFERROR(INDEX('Data Annex'!$K$1:$AN$4997,MATCH(K$46&\"|\"&$B75,'Data Annex'!$K$1:$K$4997,0),MATCH(K$47,'Data Annex'!$K$1:$AN$1,0)),\"\")-O75","v":0.89115171280000005},{"$f":"IFERROR(INDEX('Data Annex'!$K$1:$AN$4997,MATCH(L$46&\"|\"&$B75,'Data Annex'!$K$1:$K$4997,0),MATCH(L$47,'Data Annex'!$K$1:$AN$1,0)),\"\")-P75","v":0.88493195680000003},{"$f":"IFERROR(INDEX('Data Annex'!$K$1:$AN$4997,MATCH(M$46&\"|\"&$B75,'Data Annex'!$K$1:$K$4997,0),MATCH(M$47,'Data Annex'!$K$1:$AN$1,0)),\"\")","v":0},{"$f":"IFERROR(INDEX('Data Annex'!$K$1:$AN$4997,MATCH(N$46&\"|\"&$B75,'Data Annex'!$K$1:$K$4997,0),MATCH(N$47,'Data Annex'!$K$1:$AN$1,0)),\"\")","v":0},{"$f":"IFERROR(INDEX('Data Annex'!$K$1:$AN$4997,MATCH(O$46&\"|\"&$B75,'Data Annex'!$K$1:$K$4997,0),MATCH(O$47,'Data Annex'!$K$1:$AN$1,0)),\"\")","v":0},{"$f":"IFERROR(INDEX('Data Annex'!$K$1:$AN$4997,MATCH(P$46&\"|\"&$B75,'Data Annex'!$K$1:$K$4997,0),MATCH(P$47,'Data Annex'!$K$1:$AN$1,0)),\"\")","v":0},{"$f":"IFERROR(INDEX('Data Annex'!$K$1:$AN$4997,MATCH(Q$46&\"|\"&$B75,'Data Annex'!$K$1:$K$4997,0),MATCH(Q$47,'Data Annex'!$K$1:$AN$1,0)),\"\")","v":9.2494146999999999E-3},{"$f":"IFERROR(INDEX('Data Annex'!$K$1:$AN$4997,MATCH(R$46&\"|\"&$B75,'Data Annex'!$K$1:$K$4997,0),MATCH(R$47,'Data Annex'!$K$1:$AN$1,0)),\"\")","v":9.2808787E-3},{"$f":"IFERROR(INDEX('Data Annex'!$K$1:$AN$4997,MATCH(S$46&\"|\"&$B75,'Data Annex'!$K$1:$K$4997,0),MATCH(S$47,'Data Annex'!$K$1:$AN$1,0)),\"\")","v":9.3580328000000008E-3},{"$f":"IFERROR(INDEX('Data Annex'!$K$1:$AN$4997,MATCH(T$46&\"|\"&$B75,'Data Annex'!$K$1:$K$4997,0),MATCH(T$47,'Data Annex'!$K$1:$AN$1,0)),\"\")","v":9.3310054999999996E-3},{"$f":"IFERROR(INDEX('Data Annex'!$K$1:$AN$4997,MATCH(U$46&\"|\"&$B75,'Data Annex'!$K$1:$K$4997,0),MATCH(U$47,'Data Annex'!$K$1:$AN$1,0)),\"\")","v":8.8254669499999994E-2},{"$f":"IFERROR(INDEX('Data Annex'!$K$1:$AN$4997,MATCH(V$46&\"|\"&$B75,'Data Annex'!$K$1:$K$4997,0),MATCH(V$47,'Data Annex'!$K$1:$AN$1,0)),\"\")","v":9.0306856399999996E-2},{"$f":"IFERROR(INDEX('Data Annex'!$K$1:$AN$4997,MATCH(W$46&\"|\"&$B75,'Data Annex'!$K$1:$K$4997,0),MATCH(W$47,'Data Annex'!$K$1:$AN$1,0)),\"\")","v":9.2597532100000005E-2},{"$f":"IFERROR(INDEX('Data Annex'!$K$1:$AN$4997,MATCH(X$46&\"|\"&$B75,'Data Annex'!$K$1:$K$4997,0),MATCH(X$47,'Data Annex'!$K$1:$AN$1,0)),\"\")","v":9.9092206299999999E-2},6.9970893999999895E-3,7.3257388999998785E-3,6.8927222999999316E-3,6.6448313999999398E-3]
[25,"PL",null,"PL",{"$f":"IFERROR(INDEX('Data Annex'!$K$1:$AN$4997,MATCH(E$46&\"|\"&$B76,'Data Annex'!$K$1:$K$4997,0),MATCH(E$47,'Data Annex'!$K$1:$AN$1,0)),\"\")","v":112.998133},{"$f":"IFERROR(INDEX('Data Annex'!$K$1:$AN$4997,MATCH(F$46&\"|\"&$B76,'Data Annex'!$K$1:$K$4997,0),MATCH(F$47,'Data Annex'!$K$1:$AN$1,0)),\"\")","v":112.21940920999999},{"$f":"IFERROR(INDEX('Data Annex'!$K$1:$AN$4997,MATCH(G$46&\"|\"&$B76,'Data Annex'!$K$1:$K$4997,0),MATCH(G$47,'Data Annex'!$K$1:$AN$1,0)),\"\")","v":109.09722653},{"$f":"IFERROR(INDEX('Data Annex'!$K$1:$AN$4997,MATCH(H$46&\"|\"&$B76,'Data Annex'!$K$1:$K$4997,0),MATCH(H$47,'Data Annex'!$K$1:$AN$1,0)),\"\")","v":108.50347621},{"$f":"IFERROR(INDEX('Data Annex'!$K$1:$AN$4997,MATCH(I$46&\"|\"&$B76,'Data Annex'!$K$1:$K$4997,0),MATCH(I$47,'Data Annex'!$K$1:$AN$1,0)),\"\")-M76","v":0.90916704150000005},{"$f":"IFERROR(INDEX('Data Annex'!$K$1:$AN$4997,MATCH(J$46&\"|\"&$B76,'Data Annex'!$K$1:$K$4997,0),MATCH(J$47,'Data Annex'!$K$1:$AN$1,0)),\"\")-N76","v":0.90585407630000003},{"$f":"IFERROR(INDEX('Data Annex'!$K$1:$AN$4997,MATCH(K$46&\"|\"&$B76,'Data Annex'!$K$1:$K$4997,0),MATCH(K$47,'Data Annex'!$K$1:$AN$1,0)),\"\")-O76","v":0.89825919120459996},{"$f":"IFERROR(INDEX('Data Annex'!$K$1:$AN$4997,MATCH(L$46&\"|\"&$B76,'Data Annex'!$K$1:$K$4997,0),MATCH(L$47,'Data Annex'!$K$1:$AN$1,0)),\"\")-P76","v":0.89302924660000005},{"$f":"IFERROR(INDEX('Data Annex'!$K$1:$AN$4997,MATCH(M$46&\"|\"&$B76,'Data Annex'!$K$1:$K$4997,0),MATCH(M$47,'Data Annex'!$K$1:$AN$1,0)),\"\")","v":0},{"$f":"IFERROR(INDEX('Data Annex'!$K$1:$AN$4997,MATCH(N$46&\"|\"&$B76,'Data Annex'!$K$1:$K$4997,0),MATCH(N$47,'Data Annex'!$K$1:$AN$1,0)),\"\")","v":0},{"$f":"IFERROR(INDEX('Data Annex'!$K$1:$AN$4997,MATCH(O$46&\"|\"&$B76,'Data Annex'!$K$1:$K$4997,0),MATCH(O$47,'Data Annex'!$K$1:$AN$1,0)),\"\")","v":3.6292954E-6},{"$f":"IFERROR(INDEX('Data Annex'!$K$1:$AN$4997,MATCH(P$46&\"|\"&$B76,'Data Annex'!$K$1:$K$4997,0),MATCH(P$47,'Data Annex'!$K$1:$AN$1,0)),\"\")","v":0},{"$f":"IFERROR(INDEX('Data Annex'!$K$1:$AN$4997,MATCH(Q$46&\"|\"&$B76,'Data Annex'!$K$1:$K$4997,0),MATCH(Q$47,'Data Annex'!$K$1:$AN$1,0)),\"\")","v":1.53350668E-2},{"$f":"IFERROR(INDEX('Data Annex'!$K$1:$AN$4997,MATCH(R$46&\"|\"&$B76,'Data Annex'!$K$1:$K$4997,0),MATCH(R$47,'Data Annex'!$K$1:$AN$1,0)),\"\")","v":1.5046411000000001E-2},{"$f":"IFERROR(INDEX('Data Annex'!$K$1:$AN$4997,MATCH(S$46&\"|\"&$B76,'Data Annex'!$K$1:$K$4997,0),MATCH(S$47,'Data Annex'!$K$1:$AN$1,0)),\"\")","v":1.9447093200000001E-2},{"$f":"IFERROR(INDEX('Data Annex'!$K$1:$AN$4997,MATCH(T$46&\"|\"&$B76,'Data Annex'!$K$1:$K$4997,0),MATCH(T$47,'Data Annex'!$K$1:$AN$1,0)),\"\")","v":1.5378318199999999E-2},{"$f":"IFERROR(INDEX('Data Annex'!$K$1:$AN$4997,MATCH(U$46&\"|\"&$B76,'Data Annex'!$K$1:$K$4997,0),MATCH(U$47,'Data Annex'!$K$1:$AN$1,0)),\"\")","v":7.37263472E-2},{"$f":"IFERROR(INDEX('Data Annex'!$K$1:$AN$4997,MATCH(V$46&\"|\"&$B76,'Data Annex'!$K$1:$K$4997,0),MATCH(V$47,'Data Annex'!$K$1:$AN$1,0)),\"\")","v":7.75064382E-2},{"$f":"IFERROR(INDEX('Data Annex'!$K$1:$AN$4997,MATCH(W$46&\"|\"&$B76,'Data Annex'!$K$1:$K$4997,0),MATCH(W$47,'Data Annex'!$K$1:$AN$1,0)),\"\")","v":8.0626710700000007E-2},{"$f":"IFERROR(INDEX('Data Annex'!$K$1:$AN$4997,MATCH(X$46&\"|\"&$B76,'Data Annex'!$K$1:$K$4997,0),MATCH(X$47,'Data Annex'!$K$1:$AN$1,0)),\"\")","v":8.9735564200000006E-2},1.7715444999999441E-3,1.5930744999999025E-3,1.6633755999999611E-3,1.8568709999999822E-3]
[26,"PT",null,"PT",{"$f":"IFERROR(INDEX('Data Annex'!$K$1:$AN$4997,MATCH(E$46&\"|\"&$B77,'Data Annex'!$K$1:$K$4997,0),MATCH(E$47,'Data Annex'!$K$1:$AN$1,0)),\"\")","v":176.87103796},{"$f":"IFERROR(INDEX('Data Annex'!$K$1:$AN$4997,MATCH(F$46&\"|\"&$B77,'Data Annex'!$K$1:$K$4997,0),MATCH(F$47,'Data Annex'!$K$1:$AN$1,0)),\"\")","v":174.20367598999999},{"$f":"IFERROR(INDEX('Data Annex'!$K$1:$AN$4997,MATCH(G$46&\"|\"&$B77,'Data Annex'!$K$1:$K$4997,0),MATCH(G$47,'Data Annex'!$K$1:$AN$1,0)),\"\")","v":171.27511648999999},{"$f":"IFERROR(INDEX('Data Annex'!$K$1:$AN$4997,MATCH(H$46&\"|\"&$B77,'Data Annex'!$K$1:$K$4997,0),MATCH(H$47,'Data Annex'!$K$1:$AN$1,0)),\"\")","v":170.33050019000001},{"$f":"IFERROR(INDEX('Data Annex'!$K$1:$AN$4997,MATCH(I$46&\"|\"&$B77,'Data Annex'!$K$1:$K$4997,0),MATCH(I$47,'Data Annex'!$K$1:$AN$1,0)),\"\")-M77","v":0.8680149452},{"$f":"IFERROR(INDEX('Data Annex'!$K$1:$AN$4997,MATCH(J$46&\"|\"&$B77,'Data Annex'!$K$1:$K$4997,0),MATCH(J$47,'Data Annex'!$K$1:$AN$1,0)),\"\")-N77","v":0.86440324999999996},{"$f":"IFERROR(INDEX('Data Annex'!$K$1:$AN$4997,MATCH(K$46&\"|\"&$B77,'Data Annex'!$K$1:$K$4997,0),MATCH(K$47,'Data Annex'!$K$1:$AN$1,0)),\"\")-O77","v":0.86364942459999994},{"$f":"IFERROR(INDEX('Data Annex'!$K$1:$AN$4997,MATCH(L$46&\"|\"&$B77,'Data Annex'!$K$1:$K$4997,0),MATCH(L$47,'Data Annex'!$K$1:$AN$1,0)),\"\")-P77","v":0.86537980019999994},{"$f":"IFERROR(INDEX('Data Annex'!$K$1:$AN$4997,MATCH(M$46&\"|\"&$B77,'Data Annex'!$K$1:$K$4997,0),MATCH(M$47,'Data Annex'!$K$1:$AN$1,0)),\"\")","v":5.3854002999999999E-3},{"$f":"IFERROR(INDEX('Data Annex'!$K$1:$AN$4997,MATCH(N$46&\"|\"&$B77,'Data Annex'!$K$1:$K$4997,0),MATCH(N$47,'Data Annex'!$K$1:$AN$1,0)),\"\")","v":5.1222272000000001E-3},{"$f":"IFERROR(INDEX('Data Annex'!$K$1:$AN$4997,MATCH(O$46&\"|\"&$B77,'Data Annex'!$K$1:$K$4997,0),MATCH(O$47,'Data Annex'!$K$1:$AN$1,0)),\"\")","v":5.0632843999999996E-3},{"$f":"IFERROR(INDEX('Data Annex'!$K$1:$AN$4997,MATCH(P$46&\"|\"&$B77,'Data Annex'!$K$1:$K$4997,0),MATCH(P$47,'Data Annex'!$K$1:$AN$1,0)),\"\")","v":4.7128945000000002E-3},{"$f":"IFERROR(INDEX('Data Annex'!$K$1:$AN$4997,MATCH(Q$46&\"|\"&$B77,'Data Annex'!$K$1:$K$4997,0),MATCH(Q$47,'Data Annex'!$K$1:$AN$1,0)),\"\")","v":3.0353461200000001E-2},{"$f":"IFERROR(INDEX('Data Annex'!$K$1:$AN$4997,MATCH(R$46&\"|\"&$B77,'Data Annex'!$K$1:$K$4997,0),MATCH(R$47,'Data Annex'!$K$1:$AN$1,0)),\"\")","v":3.2606128200000001E-2},{"$f":"IFERROR(INDEX('Data Annex'!$K$1:$AN$4997,MATCH(S$46&\"|\"&$B77,'Data Annex'!$K$1:$K$4997,0),MATCH(S$47,'Data Annex'!$K$1:$AN$1,0)),\"\")","v":3.2673111999999997E-2},{"$f":"IFERROR(INDEX('Data Annex'!$K$1:$AN$4997,MATCH(T$46&\"|\"&$B77,'Data Annex'!$K$1:$K$4997,0),MATCH(T$47,'Data Annex'!$K$1:$AN$1,0)),\"\")","v":3.1523687699999997E-2},{"$f":"IFERROR(INDEX('Data Annex'!$K$1:$AN$4997,MATCH(U$46&\"|\"&$B77,'Data Annex'!$K$1:$K$4997,0),MATCH(U$47,'Data Annex'!$K$1:$AN$1,0)),\"\")","v":8.1571506399999993E-2},{"$f":"IFERROR(INDEX('Data Annex'!$K$1:$AN$4997,MATCH(V$46&\"|\"&$B77,'Data Annex'!$K$1:$K$4997,0),MATCH(V$47,'Data Annex'!$K$1:$AN$1,0)),\"\")","v":8.2816312399999994E-2},{"$f":"IFERROR(INDEX('Data Annex'!$K$1:$AN$4997,MATCH(W$46&\"|\"&$B77,'Data Annex'!$K$1:$K$4997,0),MATCH(W$47,'Data Annex'!$K$1:$AN$1,0)),\"\")","v":8.4232352799999993E-2},{"$f":"IFERROR(INDEX('Data Annex'!$K$1:$AN$4997,MATCH(X$46&\"|\"&$B77,'Data Annex'!$K$1:$K$4997,0),MATCH(X$47,'Data Annex'!$K$1:$AN$1,0)),\"\")","v":8.2924122200000006E-2},1.4674686899999956E-2,1.5052082200000094E-2,1.4381826200000059E-2,1.5459495400000023E-2]
[27,"RO",null,"RO",{"$f":"IFERROR(INDEX('Data Annex'!$K$1:$AN$4997,MATCH(E$46&\"|\"&$B78,'Data Annex'!$K$1:$K$4997,0),MATCH(E$47,'Data Annex'!$K$1:$AN$1,0)),\"\")","v":27.273034333999998},{"$f":"IFERROR(INDEX('Data Annex'!$K$1:$AN$4997,MATCH(F$46&\"|\"&$B78,'Data Annex'!$K$1:$K$4997,0),MATCH(F$47,'Data Annex'!$K$1:$AN$1,0)),\"\")","v":25.385604782000001},{"$f":"IFERROR(INDEX('Data Annex'!$K$1:$AN$4997,MATCH(G$46&\"|\"&$B78,'Data Annex'!$K$1:$K$4997,0),MATCH(G$47,'Data Annex'!$K$1:$AN$1,0)),\"\")","v":25.211637670000002},{"$f":"IFERROR(INDEX('Data Annex'!$K$1:$AN$4997,MATCH(H$46&\"|\"&$B78,'Data Annex'!$K$1:$K$4997,0),MATCH(H$47,'Data Annex'!$K$1:$AN$1,0)),\"\")","v":25.455320603000001},{"$f":"IFERROR(INDEX('Data Annex'!$K$1:$AN$4997,MATCH(I$46&\"|\"&$B78,'Data Annex'!$K$1:$K$4997,0),MATCH(I$47,'Data Annex'!$K$1:$AN$1,0)),\"\")-M78","v":0.77738115610000003},{"$f":"IFERROR(INDEX('Data Annex'!$K$1:$AN$4997,MATCH(J$46&\"|\"&$B78,'Data Annex'!$K$1:$K$4997,0),MATCH(J$47,'Data Annex'!$K$1:$AN$1,0)),\"\")-N78","v":0.76392224639999995},{"$f":"IFERROR(INDEX('Data Annex'!$K$1:$AN$4997,MATCH(K$46&\"|\"&$B78,'Data Annex'!$K$1:$K$4997,0),MATCH(K$47,'Data Annex'!$K$1:$AN$1,0)),\"\")-O78","v":0.77360171550000001},{"$f":"IFERROR(INDEX('Data Annex'!$K$1:$AN$4997,MATCH(L$46&\"|\"&$B78,'Data Annex'!$K$1:$K$4997,0),MATCH(L$47,'Data Annex'!$K$1:$AN$1,0)),\"\")-P78","v":0.75883244559999996},{"$f":"IFERROR(INDEX('Data Annex'!$K$1:$AN$4997,MATCH(M$46&\"|\"&$B78,'Data Annex'!$K$1:$K$4997,0),MATCH(M$47,'Data Annex'!$K$1:$AN$1,0)),\"\")","v":0},{"$f":"IFERROR(INDEX('Data Annex'!$K$1:$AN$4997,MATCH(N$46&\"|\"&$B78,'Data Annex'!$K$1:$K$4997,0),MATCH(N$47,'Data Annex'!$K$1:$AN$1,0)),\"\")","v":0},{"$f":"IFERROR(INDEX('Data Annex'!$K$1:$AN$4997,MATCH(O$46&\"|\"&$B78,'Data Annex'!$K$1:$K$4997,0),MATCH(O$47,'Data Annex'!$K$1:$AN$1,0)),\"\")","v":0},{"$f":"IFERROR(INDEX('Data Annex'!$K$1:$AN$4997,MATCH(P$46&\"|\"&$B78,'Data Annex'!$K$1:$K$4997,0),MATCH(P$47,'Data Annex'!$K$1:$AN$1,0)),\"\")","v":0},{"$f":"IFERROR(INDEX('Data Annex'!$K$1:$AN$4997,MATCH(Q$46&\"|\"&$B78,'Data Annex'!$K$1:$K$4997,0),MATCH(Q$47,'Data Annex'!$K$1:$AN$1,0)),\"\")","v":7.9914836500000003E-2},{"$f":"IFERROR(INDEX('Data Annex'!$K$1:$AN$4997,MATCH(R$46&\"|\"&$B78,'Data Annex'!$K$1:$K$4997,0),MATCH(R$47,'Data Annex'!$K$1:$AN$1,0)),\"\")","v":8.4216287700000003E-2},{"$f":"IFERROR(INDEX('Data Annex'!$K$1:$AN$4997,MATCH(S$46&\"|\"&$B78,'Data Annex'!$K$1:$K$4997,0),MATCH(S$47,'Data Annex'!$K$1:$AN$1,0)),\"\")","v":7.2072531300000006E-2},{"$f":"IFERROR(INDEX('Data Annex'!$K$1:$AN$4997,MATCH(T$46&\"|\"&$B78,'Data Annex'!$K$1:$K$4997,0),MATCH(T$47,'Data Annex'!$K$1:$AN$1,0)),\"\")","v":8.9585639300000006E-2},{"$f":"IFERROR(INDEX('Data Annex'!$K$1:$AN$4997,MATCH(U$46&\"|\"&$B78,'Data Annex'!$K$1:$K$4997,0),MATCH(U$47,'Data Annex'!$K$1:$AN$1,0)),\"\")","v":0.1413313424},{"$f":"IFERROR(INDEX('Data Annex'!$K$1:$AN$4997,MATCH(V$46&\"|\"&$B78,'Data Annex'!$K$1:$K$4997,0),MATCH(V$47,'Data Annex'!$K$1:$AN$1,0)),\"\")","v":0.15049802670000001},{"$f":"IFERROR(INDEX('Data Annex'!$K$1:$AN$4997,MATCH(W$46&\"|\"&$B78,'Data Annex'!$K$1:$K$4997,0),MATCH(W$47,'Data Annex'!$K$1:$AN$1,0)),\"\")","v":0.1530237579},{"$f":"IFERROR(INDEX('Data Annex'!$K$1:$AN$4997,MATCH(X$46&\"|\"&$B78,'Data Annex'!$K$1:$K$4997,0),MATCH(X$47,'Data Annex'!$K$1:$AN$1,0)),\"\")","v":0.14987283109999999},1.3726649999999951E-3,1.3634392000000384E-3,1.3019952999999695E-3,1.7090840000000274E-3]
[28,"SE",null,"SE",{"$f":"IFERROR(INDEX('Data Annex'!$K$1:$AN$4997,MATCH(E$46&\"|\"&$B79,'Data Annex'!$K$1:$K$4997,0),MATCH(E$47,'Data Annex'!$K$1:$AN$1,0)),\"\")","v":231.61299183},{"$f":"IFERROR(INDEX('Data Annex'!$K$1:$AN$4997,MATCH(F$46&\"|\"&$B79,'Data Annex'!$K$1:$K$4997,0),MATCH(F$47,'Data Annex'!$K$1:$AN$1,0)),\"\")","v":237.51920373999999},{"$f":"IFERROR(INDEX('Data Annex'!$K$1:$AN$4997,MATCH(G$46&\"|\"&$B79,'Data Annex'!$K$1:$K$4997,0),MATCH(G$47,'Data Annex'!$K$1:$AN$1,0)),\"\")","v":235.44976553000001},{"$f":"IFERROR(INDEX('Data Annex'!$K$1:$AN$4997,MATCH(H$46&\"|\"&$B79,'Data Annex'!$K$1:$K$4997,0),MATCH(H$47,'Data Annex'!$K$1:$AN$1,0)),\"\")","v":247.85240920000001},{"$f":"IFERROR(INDEX('Data Annex'!$K$1:$AN$4997,MATCH(I$46&\"|\"&$B79,'Data Annex'!$K$1:$K$4997,0),MATCH(I$47,'Data Annex'!$K$1:$AN$1,0)),\"\")-M79","v":0.6214876373999999},{"$f":"IFERROR(INDEX('Data Annex'!$K$1:$AN$4997,MATCH(J$46&\"|\"&$B79,'Data Annex'!$K$1:$K$4997,0),MATCH(J$47,'Data Annex'!$K$1:$AN$1,0)),\"\")-N79","v":0.60601199010000006},{"$f":"IFERROR(INDEX('Data Annex'!$K$1:$AN$4997,MATCH(K$46&\"|\"&$B79,'Data Annex'!$K$1:$K$4997,0),MATCH(K$47,'Data Annex'!$K$1:$AN$1,0)),\"\")-O79","v":0.61099242869999992},{"$f":"IFERROR(INDEX('Data Annex'!$K$1:$AN$4997,MATCH(L$46&\"|\"&$B79,'Data Annex'!$K$1:$K$4997,0),MATCH(L$47,'Data Annex'!$K$1:$AN$1,0)),\"\")-P79","v":0.58990737010000005},{"$f":"IFERROR(INDEX('Data Annex'!$K$1:$AN$4997,MATCH(M$46&\"|\"&$B79,'Data Annex'!$K$1:$K$4997,0),MATCH(M$47,'Data Annex'!$K$1:$AN$1,0)),\"\")","v":8.9163290000000004E-4},{"$f":"IFERROR(INDEX('Data Annex'!$K$1:$AN$4997,MATCH(N$46&\"|\"&$B79,'Data Annex'!$K$1:$K$4997,0),MATCH(N$47,'Data Annex'!$K$1:$AN$1,0)),\"\")","v":8.9689979999999999E-4},{"$f":"IFERROR(INDEX('Data Annex'!$K$1:$AN$4997,MATCH(O$46&\"|\"&$B79,'Data Annex'!$K$1:$K$4997,0),MATCH(O$47,'Data Annex'!$K$1:$AN$1,0)),\"\")","v":9.3011479999999995E-4},{"$f":"IFERROR(INDEX('Data Annex'!$K$1:$AN$4997,MATCH(P$46&\"|\"&$B79,'Data Annex'!$K$1:$K$4997,0),MATCH(P$47,'Data Annex'!$K$1:$AN$1,0)),\"\")","v":8.1271550000000005E-4},{"$f":"IFERROR(INDEX('Data Annex'!$K$1:$AN$4997,MATCH(Q$46&\"|\"&$B79,'Data Annex'!$K$1:$K$4997,0),MATCH(Q$47,'Data Annex'!$K$1:$AN$1,0)),\"\")","v":2.5273575600000001E-2},{"$f":"IFERROR(INDEX('Data Annex'!$K$1:$AN$4997,MATCH(R$46&\"|\"&$B79,'Data Annex'!$K$1:$K$4997,0),MATCH(R$47,'Data Annex'!$K$1:$AN$1,0)),\"\")","v":2.72991138E-2},{"$f":"IFERROR(INDEX('Data Annex'!$K$1:$AN$4997,MATCH(S$46&\"|\"&$B79,'Data Annex'!$K$1:$K$4997,0),MATCH(S$47,'Data Annex'!$K$1:$AN$1,0)),\"\")","v":2.54916164E-2},{"$f":"IFERROR(INDEX('Data Annex'!$K$1:$AN$4997,MATCH(T$46&\"|\"&$B79,'Data Annex'!$K$1:$K$4997,0),MATCH(T$47,'Data Annex'!$K$1:$AN$1,0)),\"\")","v":2.5201141199999999E-2},{"$f":"IFERROR(INDEX('Data Annex'!$K$1:$AN$4997,MATCH(U$46&\"|\"&$B79,'Data Annex'!$K$1:$K$4997,0),MATCH(U$47,'Data Annex'!$K$1:$AN$1,0)),\"\")","v":8.2917643799999996E-2},{"$f":"IFERROR(INDEX('Data Annex'!$K$1:$AN$4997,MATCH(V$46&\"|\"&$B79,'Data Annex'!$K$1:$K$4997,0),MATCH(V$47,'Data Annex'!$K$1:$AN$1,0)),\"\")","v":8.5114529499999994E-2},{"$f":"IFERROR(INDEX('Data Annex'!$K$1:$AN$4997,MATCH(W$46&\"|\"&$B79,'Data Annex'!$K$1:$K$4997,0),MATCH(W$47,'Data Annex'!$K$1:$AN$1,0)),\"\")","v":8.6630476299999995E-2},{"$f":"IFERROR(INDEX('Data Annex'!$K$1:$AN$4997,MATCH(X$46&\"|\"&$B79,'Data Annex'!$K$1:$K$4997,0),MATCH(X$47,'Data Annex'!$K$1:$AN$1,0)),\"\")","v":8.7484214500000004E-2},0.26942951030000006,0.28067746679999994,0.27595536380000008,0.29659455869999996]
[29,"SI",null,"SI",{"$f":"IFERROR(INDEX('Data Annex'!$K$1:$AN$4997,MATCH(E$46&\"|\"&$B80,'Data Annex'!$K$1:$K$4997,0),MATCH(E$47,'Data Annex'!$K$1:$AN$1,0)),\"\")","v":16.986882335000001},{"$f":"IFERROR(INDEX('Data Annex'!$K$1:$AN$4997,MATCH(F$46&\"|\"&$B80,'Data Annex'!$K$1:$K$4997,0),MATCH(F$47,'Data Annex'!$K$1:$AN$1,0)),\"\")","v":16.713106960000001},{"$f":"IFERROR(INDEX('Data Annex'!$K$1:$AN$4997,MATCH(G$46&\"|\"&$B80,'Data Annex'!$K$1:$K$4997,0),MATCH(G$47,'Data Annex'!$K$1:$AN$1,0)),\"\")","v":16.227178706},{"$f":"IFERROR(INDEX('Data Annex'!$K$1:$AN$4997,MATCH(H$46&\"|\"&$B80,'Data Annex'!$K$1:$K$4997,0),MATCH(H$47,'Data Annex'!$K$1:$AN$1,0)),\"\")","v":19.680348728999999},{"$f":"IFERROR(INDEX('Data Annex'!$K$1:$AN$4997,MATCH(I$46&\"|\"&$B80,'Data Annex'!$K$1:$K$4997,0),MATCH(I$47,'Data Annex'!$K$1:$AN$1,0)),\"\")-M80","v":0.86928469590000002},{"$f":"IFERROR(INDEX('Data Annex'!$K$1:$AN$4997,MATCH(J$46&\"|\"&$B80,'Data Annex'!$K$1:$K$4997,0),MATCH(J$47,'Data Annex'!$K$1:$AN$1,0)),\"\")-N80","v":0.86626831660000003},{"$f":"IFERROR(INDEX('Data Annex'!$K$1:$AN$4997,MATCH(K$46&\"|\"&$B80,'Data Annex'!$K$1:$K$4997,0),MATCH(K$47,'Data Annex'!$K$1:$AN$1,0)),\"\")-O80","v":0.86385034679999995},{"$f":"IFERROR(INDEX('Data Annex'!$K$1:$AN$4997,MATCH(L$46&\"|\"&$B80,'Data Annex'!$K$1:$K$4997,0),MATCH(L$47,'Data Annex'!$K$1:$AN$1,0)),\"\")-P80","v":0.85160979380000001},{"$f":"IFERROR(INDEX('Data Annex'!$K$1:$AN$4997,MATCH(M$46&\"|\"&$B80,'Data Annex'!$K$1:$K$4997,0),MATCH(M$47,'Data Annex'!$K$1:$AN$1,0)),\"\")","v":0},{"$f":"IFERROR(INDEX('Data Annex'!$K$1:$AN$4997,MATCH(N$46&\"|\"&$B80,'Data Annex'!$K$1:$K$4997,0),MATCH(N$47,'Data Annex'!$K$1:$AN$1,0)),\"\")","v":0},{"$f":"IFERROR(INDEX('Data Annex'!$K$1:$AN$4997,MATCH(O$46&\"|\"&$B80,'Data Annex'!$K$1:$K$4997,0),MATCH(O$47,'Data Annex'!$K$1:$AN$1,0)),\"\")","v":0},{"$f":"IFERROR(INDEX('Data Annex'!$K$1:$AN$4997,MATCH(P$46&\"|\"&$B80,'Data Annex'!$K$1:$K$4997,0),MATCH(P$47,'Data Annex'!$K$1:$AN$1,0)),\"\")","v":0},{"$f":"IFERROR(INDEX('Data Annex'!$K$1:$AN$4997,MATCH(Q$46&\"|\"&$B80,'Data Annex'!$K$1:$K$4997,0),MATCH(Q$47,'Data Annex'!$K$1:$AN$1,0)),\"\")","v":3.3099363899999998E-2},{"$f":"IFERROR(INDEX('Data Annex'!$K$1:$AN$4997,MATCH(R$46&\"|\"&$B80,'Data Annex'!$K$1:$K$4997,0),MATCH(R$47,'Data Annex'!$K$1:$AN$1,0)),\"\")","v":3.4519015600000001E-2},{"$f":"IFERROR(INDEX('Data Annex'!$K$1:$AN$4997,MATCH(S$46&\"|\"&$B80,'Data Annex'!$K$1:$K$4997,0),MATCH(S$47,'Data Annex'!$K$1:$AN$1,0)),\"\")","v":3.4028897400000001E-2},{"$f":"IFERROR(INDEX('Data Annex'!$K$1:$AN$4997,MATCH(T$46&\"|\"&$B80,'Data Annex'!$K$1:$K$4997,0),MATCH(T$47,'Data Annex'!$K$1:$AN$1,0)),\"\")","v":6.4407090400000006E-2},{"$f":"IFERROR(INDEX('Data Annex'!$K$1:$AN$4997,MATCH(U$46&\"|\"&$B80,'Data Annex'!$K$1:$K$4997,0),MATCH(U$47,'Data Annex'!$K$1:$AN$1,0)),\"\")","v":9.7425346800000007E-2},{"$f":"IFERROR(INDEX('Data Annex'!$K$1:$AN$4997,MATCH(V$46&\"|\"&$B80,'Data Annex'!$K$1:$K$4997,0),MATCH(V$47,'Data Annex'!$K$1:$AN$1,0)),\"\")","v":9.9021259599999994E-2},{"$f":"IFERROR(INDEX('Data Annex'!$K$1:$AN$4997,MATCH(W$46&\"|\"&$B80,'Data Annex'!$K$1:$K$4997,0),MATCH(W$47,'Data Annex'!$K$1:$AN$1,0)),\"\")","v":0.1019864841},{"$f":"IFERROR(INDEX('Data Annex'!$K$1:$AN$4997,MATCH(X$46&\"|\"&$B80,'Data Annex'!$K$1:$K$4997,0),MATCH(X$47,'Data Annex'!$K$1:$AN$1,0)),\"\")","v":8.3834003099999999E-2},1.9059339999993874E-4,1.9140819999996506E-4,1.3427170000002153E-4,1.4911269999995369E-4]
[30,"SK",null,"SK",{"$f":"IFERROR(INDEX('Data Annex'!$K$1:$AN$4997,MATCH(E$46&\"|\"&$B81,'Data Annex'!$K$1:$K$4997,0),MATCH(E$47,'Data Annex'!$K$1:$AN$1,0)),\"\")","v":23.912315012000001},{"$f":"IFERROR(INDEX('Data Annex'!$K$1:$AN$4997,MATCH(F$46&\"|\"&$B81,'Data Annex'!$K$1:$K$4997,0),MATCH(F$47,'Data Annex'!$K$1:$AN$1,0)),\"\")","v":23.658804180000001},{"$f":"IFERROR(INDEX('Data Annex'!$K$1:$AN$4997,MATCH(G$46&\"|\"&$B81,'Data Annex'!$K$1:$K$4997,0),MATCH(G$47,'Data Annex'!$K$1:$AN$1,0)),\"\")","v":23.633690856000001},{"$f":"IFERROR(INDEX('Data Annex'!$K$1:$AN$4997,MATCH(H$46&\"|\"&$B81,'Data Annex'!$K$1:$K$4997,0),MATCH(H$47,'Data Annex'!$K$1:$AN$1,0)),\"\")","v":24.004290637},{"$f":"IFERROR(INDEX('Data Annex'!$K$1:$AN$4997,MATCH(I$46&\"|\"&$B81,'Data Annex'!$K$1:$K$4997,0),MATCH(I$47,'Data Annex'!$K$1:$AN$1,0)),\"\")-M81","v":0.90699792560000003},{"$f":"IFERROR(INDEX('Data Annex'!$K$1:$AN$4997,MATCH(J$46&\"|\"&$B81,'Data Annex'!$K$1:$K$4997,0),MATCH(J$47,'Data Annex'!$K$1:$AN$1,0)),\"\")-N81","v":0.90019631359999996},{"$f":"IFERROR(INDEX('Data Annex'!$K$1:$AN$4997,MATCH(K$46&\"|\"&$B81,'Data Annex'!$K$1:$K$4997,0),MATCH(K$47,'Data Annex'!$K$1:$AN$1,0)),\"\")-O81","v":0.90236021919999998},{"$f":"IFERROR(INDEX('Data Annex'!$K$1:$AN$4997,MATCH(L$46&\"|\"&$B81,'Data Annex'!$K$1:$K$4997,0),MATCH(L$47,'Data Annex'!$K$1:$AN$1,0)),\"\")-P81","v":0.90849910140000001},{"$f":"IFERROR(INDEX('Data Annex'!$K$1:$AN$4997,MATCH(M$46&\"|\"&$B81,'Data Annex'!$K$1:$K$4997,0),MATCH(M$47,'Data Annex'!$K$1:$AN$1,0)),\"\")","v":0},{"$f":"IFERROR(INDEX('Data Annex'!$K$1:$AN$4997,MATCH(N$46&\"|\"&$B81,'Data Annex'!$K$1:$K$4997,0),MATCH(N$47,'Data Annex'!$K$1:$AN$1,0)),\"\")","v":0},{"$f":"IFERROR(INDEX('Data Annex'!$K$1:$AN$4997,MATCH(O$46&\"|\"&$B81,'Data Annex'!$K$1:$K$4997,0),MATCH(O$47,'Data Annex'!$K$1:$AN$1,0)),\"\")","v":0},{"$f":"IFERROR(INDEX('Data Annex'!$K$1:$AN$4997,MATCH(P$46&\"|\"&$B81,'Data Annex'!$K$1:$K$4997,0),MATCH(P$47,'Data Annex'!$K$1:$AN$1,0)),\"\")","v":0},{"$f":"IFERROR(INDEX('Data Annex'!$K$1:$AN$4997,MATCH(Q$46&\"|\"&$B81,'Data Annex'!$K$1:$K$4997,0),MATCH(Q$47,'Data Annex'!$K$1:$AN$1,0)),\"\")","v":3.5809804999999998E-3},{"$f":"IFERROR(INDEX('Data Annex'!$K$1:$AN$4997,MATCH(R$46&\"|\"&$B81,'Data Annex'!$K$1:$K$4997,0),MATCH(R$47,'Data Annex'!$K$1:$AN$1,0)),\"\")","v":1.0453976800000001E-2},{"$f":"IFERROR(INDEX('Data Annex'!$K$1:$AN$4997,MATCH(S$46&\"|\"&$B81,'Data Annex'!$K$1:$K$4997,0),MATCH(S$47,'Data Annex'!$K$1:$AN$1,0)),\"\")","v":7.0631056000000003E-3},{"$f":"IFERROR(INDEX('Data Annex'!$K$1:$AN$4997,MATCH(T$46&\"|\"&$B81,'Data Annex'!$K$1:$K$4997,0),MATCH(T$47,'Data Annex'!$K$1:$AN$1,0)),\"\")","v":6.0876899999999998E-3},{"$f":"IFERROR(INDEX('Data Annex'!$K$1:$AN$4997,MATCH(U$46&\"|\"&$B81,'Data Annex'!$K$1:$K$4997,0),MATCH(U$47,'Data Annex'!$K$1:$AN$1,0)),\"\")","v":8.4379381599999997E-2},{"$f":"IFERROR(INDEX('Data Annex'!$K$1:$AN$4997,MATCH(V$46&\"|\"&$B81,'Data Annex'!$K$1:$K$4997,0),MATCH(V$47,'Data Annex'!$K$1:$AN$1,0)),\"\")","v":8.3835685699999996E-2},{"$f":"IFERROR(INDEX('Data Annex'!$K$1:$AN$4997,MATCH(W$46&\"|\"&$B81,'Data Annex'!$K$1:$K$4997,0),MATCH(W$47,'Data Annex'!$K$1:$AN$1,0)),\"\")","v":8.5389444499999995E-2},{"$f":"IFERROR(INDEX('Data Annex'!$K$1:$AN$4997,MATCH(X$46&\"|\"&$B81,'Data Annex'!$K$1:$K$4997,0),MATCH(X$47,'Data Annex'!$K$1:$AN$1,0)),\"\")","v":8.0332141499999996E-2},5.0417122999999453E-3,5.514023899999998E-3,5.187230700000045E-3,5.0810671000000029E-3]
[99,"EU",null,"EU/EEA",{"$f":"IFERROR(INDEX('Data Annex'!$K$1:$AN$4997,MATCH(E$46&\"|\"&$B82,'Data Annex'!$K$1:$K$4997,0),MATCH(E$47,'Data Annex'!$K$1:$AN$1,0)),\"\")","v":9002.7662070000006},{"$f":"IFERROR(INDEX('Data Annex'!$K$1:$AN$4997,MATCH(F$46&\"|\"&$B82,'Data Annex'!$K$1:$K$4997,0),MATCH(F$47,'Data Annex'!$K$1:$AN$1,0)),\"\")","v":8939.0686686000008},{"$f":"IFERROR(INDEX('Data Annex'!$K$1:$AN$4997,MATCH(G$46&\"|\"&$B82,'Data Annex'!$K$1:$K$4997,0),MATCH(G$47,'Data Annex'!$K$1:$AN$1,0)),\"\")","v":8603.3535972999998},{"$f":"IFERROR(INDEX('Data Annex'!$K$1:$AN$4997,MATCH(H$46&\"|\"&$B82,'Data Annex'!$K$1:$K$4997,0),MATCH(H$47,'Data Annex'!$K$1:$AN$1,0)),\"\")","v":8537.4608502999999},{"$f":"IFERROR(INDEX('Data Annex'!$K$1:$AN$4997,MATCH(I$46&\"|\"&$B82,'Data Annex'!$K$1:$K$4997,0),MATCH(I$47,'Data Annex'!$K$1:$AN$1,0)),\"\")-M82","v":0.83091965889999997},{"$f":"IFERROR(INDEX('Data Annex'!$K$1:$AN$4997,MATCH(J$46&\"|\"&$B82,'Data Annex'!$K$1:$K$4997,0),MATCH(J$47,'Data Annex'!$K$1:$AN$1,0)),\"\")-N82","v":0.82596998269999999},{"$f":"IFERROR(INDEX('Data Annex'!$K$1:$AN$4997,MATCH(K$46&\"|\"&$B82,'Data Annex'!$K$1:$K$4997,0),MATCH(K$47,'Data Annex'!$K$1:$AN$1,0)),\"\")-O82","v":0.82836343909999999},{"$f":"IFERROR(INDEX('Data Annex'!$K$1:$AN$4997,MATCH(L$46&\"|\"&$B82,'Data Annex'!$K$1:$K$4997,0),MATCH(L$47,'Data Annex'!$K$1:$AN$1,0)),\"\")-P82","v":0.82648320529999997},{"$f":"IFERROR(INDEX('Data Annex'!$K$1:$AN$4997,MATCH(M$46&\"|\"&$B82,'Data Annex'!$K$1:$K$4997,0),MATCH(M$47,'Data Annex'!$K$1:$AN$1,0)),\"\")","v":1.2638320600000001E-2},{"$f":"IFERROR(INDEX('Data Annex'!$K$1:$AN$4997,MATCH(N$46&\"|\"&$B82,'Data Annex'!$K$1:$K$4997,0),MATCH(N$47,'Data Annex'!$K$1:$AN$1,0)),\"\")","v":1.18177814E-2},{"$f":"IFERROR(INDEX('Data Annex'!$K$1:$AN$4997,MATCH(O$46&\"|\"&$B82,'Data Annex'!$K$1:$K$4997,0),MATCH(O$47,'Data Annex'!$K$1:$AN$1,0)),\"\")","v":1.13933582E-2},{"$f":"IFERROR(INDEX('Data Annex'!$K$1:$AN$4997,MATCH(P$46&\"|\"&$B82,'Data Annex'!$K$1:$K$4997,0),MATCH(P$47,'Data Annex'!$K$1:$AN$1,0)),\"\")","v":1.20249659E-2},{"$f":"IFERROR(INDEX('Data Annex'!$K$1:$AN$4997,MATCH(Q$46&\"|\"&$B82,'Data Annex'!$K$1:$K$4997,0),MATCH(Q$47,'Data Annex'!$K$1:$AN$1,0)),\"\")","v":3.5443235599999998E-2},{"$f":"IFERROR(INDEX('Data Annex'!$K$1:$AN$4997,MATCH(R$46&\"|\"&$B82,'Data Annex'!$K$1:$K$4997,0),MATCH(R$47,'Data Annex'!$K$1:$AN$1,0)),\"\")","v":3.8836386899999999E-2},{"$f":"IFERROR(INDEX('Data Annex'!$K$1:$AN$4997,MATCH(S$46&\"|\"&$B82,'Data Annex'!$K$1:$K$4997,0),MATCH(S$47,'Data Annex'!$K$1:$AN$1,0)),\"\")","v":3.4156300700000003E-2},{"$f":"IFERROR(INDEX('Data Annex'!$K$1:$AN$4997,MATCH(T$46&\"|\"&$B82,'Data Annex'!$K$1:$K$4997,0),MATCH(T$47,'Data Annex'!$K$1:$AN$1,0)),\"\")","v":3.3915613900000002E-2},{"$f":"IFERROR(INDEX('Data Annex'!$K$1:$AN$4997,MATCH(U$46&\"|\"&$B82,'Data Annex'!$K$1:$K$4997,0),MATCH(U$47,'Data Annex'!$K$1:$AN$1,0)),\"\")","v":9.9286128500000001E-2},{"$f":"IFERROR(INDEX('Data Annex'!$K$1:$AN$4997,MATCH(V$46&\"|\"&$B82,'Data Annex'!$K$1:$K$4997,0),MATCH(V$47,'Data Annex'!$K$1:$AN$1,0)),\"\")","v":0.1002177804},{"$f":"IFERROR(INDEX('Data Annex'!$K$1:$AN$4997,MATCH(W$46&\"|\"&$B82,'Data Annex'!$K$1:$K$4997,0),MATCH(W$47,'Data Annex'!$K$1:$AN$1,0)),\"\")","v":0.1023292978},{"$f":"IFERROR(INDEX('Data Annex'!$K$1:$AN$4997,MATCH(X$46&\"|\"&$B82,'Data Annex'!$K$1:$K$4997,0),MATCH(X$47,'Data Annex'!$K$1:$AN$1,0)),\"\")","v":0.10141064549999999},2.1712656400000085E-2,2.3158068600000026E-2,2.375760420000006E-2,2.6165569400000033E-2]
[12,"GB",null,{"$f":"+IF(OR(E83=\"n.a.\",F83=\"n.a.\",G83=\"n.a.\",H83=\"n.a.\",I83=\"n.a.\",J83=\"n.a.\",K83=\"n.a.\",L83=\"n.a.\",Q83=\"n.a.\",R83=\"n.a.\",S83=\"n.a.\",T83=\"n.a.\",U83=\"n.a.\",V83=\"n.a.\",W83=\"n.a.\",X83=\"n.a.\",Y83=\"n.a.\",Z83=\"n.a.\",AA83=\"n.a.\",AB83=\"n.a.\"),$B83&\"*\",$B83)","v":"GB"},{"$f":"IFERROR(INDEX('Data Annex'!$K$1:$AN$4997,MATCH(E$46&\"|\"&$B83,'Data Annex'!$K$1:$K$4997,0),MATCH(E$47,'Data Annex'!$K$1:$AN$1,0)),\"\")","v":2986.8138598999999},{"$f":"IFERROR(INDEX('Data Annex'!$K$1:$AN$4997,MATCH(F$46&\"|\"&$B83,'Data Annex'!$K$1:$K$4997,0),MATCH(F$47,'Data Annex'!$K$1:$AN$1,0)),\"\")","v":2904.1847757},{"$f":"IFERROR(INDEX('Data Annex'!$K$1:$AN$4997,MATCH(G$46&\"|\"&$B83,'Data Annex'!$K$1:$K$4997,0),MATCH(G$47,'Data Annex'!$K$1:$AN$1,0)),\"\")","v":2806.1753282},{"$f":"IFERROR(INDEX('Data Annex'!$K$1:$AN$4997,MATCH(H$46&\"|\"&$B83,'Data Annex'!$K$1:$K$4997,0),MATCH(H$47,'Data Annex'!$K$1:$AN$1,0)),\"\")","v":2747.2626208000001},{"$f":"IFERROR(INDEX('Data Annex'!$K$1:$AN$4997,MATCH(I$46&\"|\"&$B83,'Data Annex'!$K$1:$K$4997,0),MATCH(I$47,'Data Annex'!$K$1:$AN$1,0)),\"\")-M83","v":0.69015288500000005},{"$f":"IFERROR(INDEX('Data Annex'!$K$1:$AN$4997,MATCH(J$46&\"|\"&$B83,'Data Annex'!$K$1:$K$4997,0),MATCH(J$47,'Data Annex'!$K$1:$AN$1,0)),\"\")-N83","v":0.6780514795},{"$f":"IFERROR(INDEX('Data Annex'!$K$1:$AN$4997,MATCH(K$46&\"|\"&$B83,'Data Annex'!$K$1:$K$4997,0),MATCH(K$47,'Data Annex'!$K$1:$AN$1,0)),\"\")-O83","v":0.68796968670000003},{"$f":"IFERROR(INDEX('Data Annex'!$K$1:$AN$4997,MATCH(L$46&\"|\"&$B83,'Data Annex'!$K$1:$K$4997,0),MATCH(L$47,'Data Annex'!$K$1:$AN$1,0)),\"\")-P83","v":0.6885034927},{"$f":"IFERROR(INDEX('Data Annex'!$K$1:$AN$4997,MATCH(M$46&\"|\"&$B83,'Data Annex'!$K$1:$K$4997,0),MATCH(M$47,'Data Annex'!$K$1:$AN$1,0)),\"\")","v":1.43389381E-2},{"$f":"IFERROR(INDEX('Data Annex'!$K$1:$AN$4997,MATCH(N$46&\"|\"&$B83,'Data Annex'!$K$1:$K$4997,0),MATCH(N$47,'Data Annex'!$K$1:$AN$1,0)),\"\")","v":1.4825364000000001E-2},{"$f":"IFERROR(INDEX('Data Annex'!$K$1:$AN$4997,MATCH(O$46&\"|\"&$B83,'Data Annex'!$K$1:$K$4997,0),MATCH(O$47,'Data Annex'!$K$1:$AN$1,0)),\"\")","v":1.5052419500000001E-2},{"$f":"IFERROR(INDEX('Data Annex'!$K$1:$AN$4997,MATCH(P$46&\"|\"&$B83,'Data Annex'!$K$1:$K$4997,0),MATCH(P$47,'Data Annex'!$K$1:$AN$1,0)),\"\")","v":1.58613035E-2},{"$f":"IFERROR(INDEX('Data Annex'!$K$1:$AN$4997,MATCH(Q$46&\"|\"&$B83,'Data Annex'!$K$1:$K$4997,0),MATCH(Q$47,'Data Annex'!$K$1:$AN$1,0)),\"\")","v":0.14994934630000001},{"$f":"IFERROR(INDEX('Data Annex'!$K$1:$AN$4997,MATCH(R$46&\"|\"&$B83,'Data Annex'!$K$1:$K$4997,0),MATCH(R$47,'Data Annex'!$K$1:$AN$1,0)),\"\")","v":0.16055133469999999},{"$f":"IFERROR(INDEX('Data Annex'!$K$1:$AN$4997,MATCH(S$46&\"|\"&$B83,'Data Annex'!$K$1:$K$4997,0),MATCH(S$47,'Data Annex'!$K$1:$AN$1,0)),\"\")","v":0.1494363631},{"$f":"IFERROR(INDEX('Data Annex'!$K$1:$AN$4997,MATCH(T$46&\"|\"&$B83,'Data Annex'!$K$1:$K$4997,0),MATCH(T$47,'Data Annex'!$K$1:$AN$1,0)),\"\")","v":0.14961004080000001},{"$f":"IFERROR(INDEX('Data Annex'!$K$1:$AN$4997,MATCH(U$46&\"|\"&$B83,'Data Annex'!$K$1:$K$4997,0),MATCH(U$47,'Data Annex'!$K$1:$AN$1,0)),\"\")","v":9.5542946200000006E-2},{"$f":"IFERROR(INDEX('Data Annex'!$K$1:$AN$4997,MATCH(V$46&\"|\"&$B83,'Data Annex'!$K$1:$K$4997,0),MATCH(V$47,'Data Annex'!$K$1:$AN$1,0)),\"\")","v":0.1009107387},{"$f":"IFERROR(INDEX('Data Annex'!$K$1:$AN$4997,MATCH(W$46&\"|\"&$B83,'Data Annex'!$K$1:$K$4997,0),MATCH(W$47,'Data Annex'!$K$1:$AN$1,0)),\"\")","v":0.1019077967},{"$f":"IFERROR(INDEX('Data Annex'!$K$1:$AN$4997,MATCH(X$46&\"|\"&$B83,'Data Annex'!$K$1:$K$4997,0),MATCH(X$47,'Data Annex'!$K$1:$AN$1,0)),\"\")","v":0.10248824030000001},{"$f":"1-SUM(I83,M83,Q83,U83)","v":5.0015884399999933E-2},{"$f":"1-SUM(J83,N83,R83,V83)","v":4.5661083100000055E-2},{"$f":"1-SUM(K83,O83,S83,W83)","v":4.5633733999999926E-2},{"$f":"1-SUM(L83,P83,T83,X83)","v":4.353692269999998E-2}]
[]
[]
[null,null,null,"Individual country data includes subsidiaries, which are excluded from EU aggregate. For example, at country level the subsidiary in country X of a bank domiciled in country Y is included both in data for countries X and Y (for the latter as part of the consolidated entity). In the EU aggregate, only the consolidated entity domiciled in country Y is considered.  The sample of banks is unbalanced and reviewed annually.\nAs of Q1 2020 onwards UK banks are removed from the EU/EEA aggregate and subsidiaries of UK banks in EU member states are used instead."]

{"sheet":"Profitability","index":12,"n_rows":83,"n_cols":24,"rows_kept":83,"cut":false,"hidden":true,"merged":[[82,3,82,23],[45,3,46,23],[48,4,48,7],[48,8,48,11],[48,12,48,15],[48,16,48,19],[48,20,48,23],[2,3,2,23],[3,3,3,23],[5,3,5,23],[6,3,7,23],[9,4,9,7],[9,8,9,11],[9,12,9,15],[9,16,9,19],[9,20,9,23]]}
[null,null,null,null,"T28_1","T28_1","T28_1","T28_1","T28_2","T28_2","T28_2","T28_2","T28_3","T28_3","T28_3","T28_3","T28_4","T28_4","T28_4","T28_4","T28_5","T28_5","T28_5","T28_5"]
[{"$f":"'Reference Dates'!$C$8","v":"202012"},null,null,null,{"$f":"TEXT(E11,\"YYYYMM\")+0","v":202003},{"$f":"TEXT(F11,\"YYYYMM\")+0","v":202006},202009,202012,202003,202006,202009,202012,202003,202006,202009,202012,202003,202006,202009,202012,202003,202006,202009,202012]
[{"$f":"DATE(LEFT(A2,4),RIGHT(A2,2),1)","v":"2020-12-01"},null,null,"Statistical Annex"]
[null,null,null,"Profitability analysis: main drivers within RoE"]
[]
[]
[null,null,null,"Components of RoE: revenue side"]
[]
[null,null,null,"%"]
[null,null,null,null,"RoE\n(Return on Equity)",null,null,null,"Net interest income / equity",null,null,null,"Net fee & commission income / equity",null,null,null,"Net trading income (incl. FV result) / equity",null,null,null,"Other operating income / equity"]
[null,null,null,null,{"$f":"EOMONTH($A$3,-9)","v":"2020-03-31"},{"$f":"EOMONTH($A$3,-6)","v":"2020-06-30"},{"$f":"EOMONTH($A$3,-3)","v":"2020-09-30"},{"$f":"$A$3","v":"2020-12-01"},{"$f":"EOMONTH($A$3,-9)","v":"2020-03-31"},{"$f":"EOMONTH($A$3,-6)","v":"2020-06-30"},{"$f":"EOMONTH($A$3,-3)","v":"2020-09-30"},{"$f":"$A$3","v":"2020-12-01"},{"$f":"EOMONTH($A$3,-9)","v":"2020-03-31"},{"$f":"EOMONTH($A$3,-6)","v":"2020-06-30"},{"$f":"EOMONTH($A$3,-3)","v":"2020-09-30"},{"$f":"$A$3","v":"2020-12-01"},{"$f":"EOMONTH($A$3,-9)","v":"2020-03-31"},{"$f":"EOMONTH($A$3,-6)","v":"2020-06-30"},{"$f":"EOMONTH($A$3,-3)","v":"2020-09-30"},{"$f":"$A$3","v":"2020-12-01"},{"$f":"EOMONTH($A$3,-9)","v":"2020-03-31"},{"$f":"EOMONTH($A$3,-6)","v":"2020-06-30"},{"$f":"EOMONTH($A$3,-3)","v":"2020-09-30"},{"$f":"$A$3","v":"2020-12-01"}]
[1,"AT",null,"AT",{"$f":"IFERROR(INDEX('Data Annex'!$K$1:$AN$4997,MATCH(E$1&\"|\"&$B12,'Data Annex'!$K$1:$K$4997,0),MATCH(E$2,'Data Annex'!$K$1:$AN$1,0)),\"\")","v":2.11826102E-2},{"$f":"IFERROR(INDEX('Data Annex'!$K$1:$AN$4997,MATCH(F$1&\"|\"&$B12,'Data Annex'!$K$1:$K$4997,0),MATCH(F$2,'Data Annex'!$K$1:$AN$1,0)),\"\")","v":2.5421940800000001E-2},{"$f":"IFERROR(INDEX('Data Annex'!$K$1:$AN$4997,MATCH(G$1&\"|\"&$B12,'Data Annex'!$K$1:$K$4997,0),MATCH(G$2,'Data Annex'!$K$1:$AN$1,0)),\"\")","v":4.3986014900000002E-2},{"$f":"IFERROR(INDEX('Data Annex'!$K$1:$AN$4997,MATCH(H$1&\"|\"&$B12,'Data Annex'!$K$1:$K$4997,0),MATCH(H$2,'Data Annex'!$K$1:$AN$1,0)),\"\")","v":4.57615377E-2},{"$f":"IFERROR(INDEX('Data Annex'!$K$1:$AN$4997,MATCH(I$1&\"|\"&$B12,'Data Annex'!$K$1:$K$4997,0),MATCH(I$2,'Data Annex'!$K$1:$AN$1,0)),\"\")","v":0.20701949480000001},{"$f":"IFERROR(INDEX('Data Annex'!$K$1:$AN$4997,MATCH(J$1&\"|\"&$B12,'Data Annex'!$K$1:$K$4997,0),MATCH(J$2,'Data Annex'!$K$1:$AN$1,0)),\"\")","v":0.20288075529999999},{"$f":"IFERROR(INDEX('Data Annex'!$K$1:$AN$4997,MATCH(K$1&\"|\"&$B12,'Data Annex'!$K$1:$K$4997,0),MATCH(K$2,'Data Annex'!$K$1:$AN$1,0)),\"\")","v":0.19852145199999999},{"$f":"IFERROR(INDEX('Data Annex'!$K$1:$AN$4997,MATCH(L$1&\"|\"&$B12,'Data Annex'!$K$1:$K$4997,0),MATCH(L$2,'Data Annex'!$K$1:$AN$1,0)),\"\")","v":0.19408465129999999},{"$f":"IFERROR(INDEX('Data Annex'!$K$1:$AN$4997,MATCH(M$1&\"|\"&$B12,'Data Annex'!$K$1:$K$4997,0),MATCH(M$2,'Data Annex'!$K$1:$AN$1,0)),\"\")","v":9.5988437999999995E-2},{"$f":"IFERROR(INDEX('Data Annex'!$K$1:$AN$4997,MATCH(N$1&\"|\"&$B12,'Data Annex'!$K$1:$K$4997,0),MATCH(N$2,'Data Annex'!$K$1:$AN$1,0)),\"\")","v":8.8868472899999995E-2},{"$f":"IFERROR(INDEX('Data Annex'!$K$1:$AN$4997,MATCH(O$1&\"|\"&$B12,'Data Annex'!$K$1:$K$4997,0),MATCH(O$2,'Data Annex'!$K$1:$AN$1,0)),\"\")","v":9.1318800300000003E-2},{"$f":"IFERROR(INDEX('Data Annex'!$K$1:$AN$4997,MATCH(P$1&\"|\"&$B12,'Data Annex'!$K$1:$K$4997,0),MATCH(P$2,'Data Annex'!$K$1:$AN$1,0)),\"\")","v":9.1773032399999996E-2},{"$f":"IFERROR(INDEX('Data Annex'!$K$1:$AN$4997,MATCH(Q$1&\"|\"&$B12,'Data Annex'!$K$1:$K$4997,0),MATCH(Q$2,'Data Annex'!$K$1:$AN$1,0)),\"\")","v":2.9394375800000001E-2},{"$f":"IFERROR(INDEX('Data Annex'!$K$1:$AN$4997,MATCH(R$1&\"|\"&$B12,'Data Annex'!$K$1:$K$4997,0),MATCH(R$2,'Data Annex'!$K$1:$AN$1,0)),\"\")","v":1.1228977100000001E-2},{"$f":"IFERROR(INDEX('Data Annex'!$K$1:$AN$4997,MATCH(S$1&\"|\"&$B12,'Data Annex'!$K$1:$K$4997,0),MATCH(S$2,'Data Annex'!$K$1:$AN$1,0)),\"\")","v":1.38547476E-2},{"$f":"IFERROR(INDEX('Data Annex'!$K$1:$AN$4997,MATCH(T$1&\"|\"&$B12,'Data Annex'!$K$1:$K$4997,0),MATCH(T$2,'Data Annex'!$K$1:$AN$1,0)),\"\")","v":4.0202299999999996E-3},{"$f":"IFERROR(INDEX('Data Annex'!$K$1:$AN$4997,MATCH(U$1&\"|\"&$B12,'Data Annex'!$K$1:$K$4997,0),MATCH(U$2,'Data Annex'!$K$1:$AN$1,0)),\"\")","v":-4.9298618000000002E-2},{"$f":"IFERROR(INDEX('Data Annex'!$K$1:$AN$4997,MATCH(V$1&\"|\"&$B12,'Data Annex'!$K$1:$K$4997,0),MATCH(V$2,'Data Annex'!$K$1:$AN$1,0)),\"\")","v":-3.1231000000000002E-3},{"$f":"IFERROR(INDEX('Data Annex'!$K$1:$AN$4997,MATCH(W$1&\"|\"&$B12,'Data Annex'!$K$1:$K$4997,0),MATCH(W$2,'Data Annex'!$K$1:$AN$1,0)),\"\")","v":-5.2457479999999997E-3},{"$f":"IFERROR(INDEX('Data Annex'!$K$1:$AN$4997,MATCH(X$1&\"|\"&$B12,'Data Annex'!$K$1:$K$4997,0),MATCH(X$2,'Data Annex'!$K$1:$AN$1,0)),\"\")","v":1.02942854E-2}]
[2,"BE",null,"BE",{"$f":"IFERROR(INDEX('Data Annex'!$K$1:$AN$4997,MATCH(E$1&\"|\"&$B13,'Data Annex'!$K$1:$K$4997,0),MATCH(E$2,'Data Annex'!$K$1:$AN$1,0)),\"\")","v":-2.801652E-2},{"$f":"IFERROR(INDEX('Data Annex'!$K$1:$AN$4997,MATCH(F$1&\"|\"&$B13,'Data Annex'!$K$1:$K$4997,0),MATCH(F$2,'Data Annex'!$K$1:$AN$1,0)),\"\")","v":1.3365244199999999E-2},{"$f":"IFERROR(INDEX('Data Annex'!$K$1:$AN$4997,MATCH(G$1&\"|\"&$B13,'Data Annex'!$K$1:$K$4997,0),MATCH(G$2,'Data Annex'!$K$1:$AN$1,0)),\"\")","v":3.6420777500000001E-2},{"$f":"IFERROR(INDEX('Data Annex'!$K$1:$AN$4997,MATCH(H$1&\"|\"&$B13,'Data Annex'!$K$1:$K$4997,0),MATCH(H$2,'Data Annex'!$K$1:$AN$1,0)),\"\")","v":4.7392784299999997E-2},{"$f":"IFERROR(INDEX('Data Annex'!$K$1:$AN$4997,MATCH(I$1&\"|\"&$B13,'Data Annex'!$K$1:$K$4997,0),MATCH(I$2,'Data Annex'!$K$1:$AN$1,0)),\"\")","v":0.1720818898},{"$f":"IFERROR(INDEX('Data Annex'!$K$1:$AN$4997,MATCH(J$1&\"|\"&$B13,'Data Annex'!$K$1:$K$4997,0),MATCH(J$2,'Data Annex'!$K$1:$AN$1,0)),\"\")","v":0.1657399433},{"$f":"IFERROR(INDEX('Data Annex'!$K$1:$AN$4997,MATCH(K$1&\"|\"&$B13,'Data Annex'!$K$1:$K$4997,0),MATCH(K$2,'Data Annex'!$K$1:$AN$1,0)),\"\")","v":0.16272189840000001},{"$f":"IFERROR(INDEX('Data Annex'!$K$1:$AN$4997,MATCH(L$1&\"|\"&$B13,'Data Annex'!$K$1:$K$4997,0),MATCH(L$2,'Data Annex'!$K$1:$AN$1,0)),\"\")","v":0.1613174158},{"$f":"IFERROR(INDEX('Data Annex'!$K$1:$AN$4997,MATCH(M$1&\"|\"&$B13,'Data Annex'!$K$1:$K$4997,0),MATCH(M$2,'Data Annex'!$K$1:$AN$1,0)),\"\")","v":6.0152578399999997E-2},{"$f":"IFERROR(INDEX('Data Annex'!$K$1:$AN$4997,MATCH(N$1&\"|\"&$B13,'Data Annex'!$K$1:$K$4997,0),MATCH(N$2,'Data Annex'!$K$1:$AN$1,0)),\"\")","v":5.6137040499999999E-2},{"$f":"IFERROR(INDEX('Data Annex'!$K$1:$AN$4997,MATCH(O$1&\"|\"&$B13,'Data Annex'!$K$1:$K$4997,0),MATCH(O$2,'Data Annex'!$K$1:$AN$1,0)),\"\")","v":5.5130286399999999E-2},{"$f":"IFERROR(INDEX('Data Annex'!$K$1:$AN$4997,MATCH(P$1&\"|\"&$B13,'Data Annex'!$K$1:$K$4997,0),MATCH(P$2,'Data Annex'!$K$1:$AN$1,0)),\"\")","v":5.5516136700000003E-2},{"$f":"IFERROR(INDEX('Data Annex'!$K$1:$AN$4997,MATCH(Q$1&\"|\"&$B13,'Data Annex'!$K$1:$K$4997,0),MATCH(Q$2,'Data Annex'!$K$1:$AN$1,0)),\"\")","v":-5.8036670999999998E-2},{"$f":"IFERROR(INDEX('Data Annex'!$K$1:$AN$4997,MATCH(R$1&\"|\"&$B13,'Data Annex'!$K$1:$K$4997,0),MATCH(R$2,'Data Annex'!$K$1:$AN$1,0)),\"\")","v":-1.2037816999999999E-2},{"$f":"IFERROR(INDEX('Data Annex'!$K$1:$AN$4997,MATCH(S$1&\"|\"&$B13,'Data Annex'!$K$1:$K$4997,0),MATCH(S$2,'Data Annex'!$K$1:$AN$1,0)),\"\")","v":-6.2910359999999999E-3},{"$f":"IFERROR(INDEX('Data Annex'!$K$1:$AN$4997,MATCH(T$1&\"|\"&$B13,'Data Annex'!$K$1:$K$4997,0),MATCH(T$2,'Data Annex'!$K$1:$AN$1,0)),\"\")","v":-2.2632440000000002E-3},{"$f":"IFERROR(INDEX('Data Annex'!$K$1:$AN$4997,MATCH(U$1&\"|\"&$B13,'Data Annex'!$K$1:$K$4997,0),MATCH(U$2,'Data Annex'!$K$1:$AN$1,0)),\"\")","v":2.1089094900000001E-2},{"$f":"IFERROR(INDEX('Data Annex'!$K$1:$AN$4997,MATCH(V$1&\"|\"&$B13,'Data Annex'!$K$1:$K$4997,0),MATCH(V$2,'Data Annex'!$K$1:$AN$1,0)),\"\")","v":2.8287642500000001E-2},{"$f":"IFERROR(INDEX('Data Annex'!$K$1:$AN$4997,MATCH(W$1&\"|\"&$B13,'Data Annex'!$K$1:$K$4997,0),MATCH(W$2,'Data Annex'!$K$1:$AN$1,0)),\"\")","v":3.2774578300000003E-2},{"$f":"IFERROR(INDEX('Data Annex'!$K$1:$AN$4997,MATCH(X$1&\"|\"&$B13,'Data Annex'!$K$1:$K$4997,0),MATCH(X$2,'Data Annex'!$K$1:$AN$1,0)),\"\")","v":3.0588151300000001E-2}]
[3,"BG",null,"BG",{"$f":"IFERROR(INDEX('Data Annex'!$K$1:$AN$4997,MATCH(E$1&\"|\"&$B14,'Data Annex'!$K$1:$K$4997,0),MATCH(E$2,'Data Annex'!$K$1:$AN$1,0)),\"\")","v":5.3888599400000001E-2},{"$f":"IFERROR(INDEX('Data Annex'!$K$1:$AN$4997,MATCH(F$1&\"|\"&$B14,'Data Annex'!$K$1:$K$4997,0),MATCH(F$2,'Data Annex'!$K$1:$AN$1,0)),\"\")","v":5.66160011E-2},{"$f":"IFERROR(INDEX('Data Annex'!$K$1:$AN$4997,MATCH(G$1&\"|\"&$B14,'Data Annex'!$K$1:$K$4997,0),MATCH(G$2,'Data Annex'!$K$1:$AN$1,0)),\"\")","v":6.0589510300000003E-2},{"$f":"IFERROR(INDEX('Data Annex'!$K$1:$AN$4997,MATCH(H$1&\"|\"&$B14,'Data Annex'!$K$1:$K$4997,0),MATCH(H$2,'Data Annex'!$K$1:$AN$1,0)),\"\")","v":5.7846492899999997E-2},{"$f":"IFERROR(INDEX('Data Annex'!$K$1:$AN$4997,MATCH(I$1&\"|\"&$B14,'Data Annex'!$K$1:$K$4997,0),MATCH(I$2,'Data Annex'!$K$1:$AN$1,0)),\"\")","v":0.1962816825},{"$f":"IFERROR(INDEX('Data Annex'!$K$1:$AN$4997,MATCH(J$1&\"|\"&$B14,'Data Annex'!$K$1:$K$4997,0),MATCH(J$2,'Data Annex'!$K$1:$AN$1,0)),\"\")","v":0.18954714},{"$f":"IFERROR(INDEX('Data Annex'!$K$1:$AN$4997,MATCH(K$1&\"|\"&$B14,'Data Annex'!$K$1:$K$4997,0),MATCH(K$2,'Data Annex'!$K$1:$AN$1,0)),\"\")","v":0.18473678039999999},{"$f":"IFERROR(INDEX('Data Annex'!$K$1:$AN$4997,MATCH(L$1&\"|\"&$B14,'Data Annex'!$K$1:$K$4997,0),MATCH(L$2,'Data Annex'!$K$1:$AN$1,0)),\"\")","v":0.1829250566},{"$f":"IFERROR(INDEX('Data Annex'!$K$1:$AN$4997,MATCH(M$1&\"|\"&$B14,'Data Annex'!$K$1:$K$4997,0),MATCH(M$2,'Data Annex'!$K$1:$AN$1,0)),\"\")","v":7.7560204399999999E-2},{"$f":"IFERROR(INDEX('Data Annex'!$K$1:$AN$4997,MATCH(N$1&\"|\"&$B14,'Data Annex'!$K$1:$K$4997,0),MATCH(N$2,'Data Annex'!$K$1:$AN$1,0)),\"\")","v":7.5606557199999994E-2},{"$f":"IFERROR(INDEX('Data Annex'!$K$1:$AN$4997,MATCH(O$1&\"|\"&$B14,'Data Annex'!$K$1:$K$4997,0),MATCH(O$2,'Data Annex'!$K$1:$AN$1,0)),\"\")","v":7.65669452E-2},{"$f":"IFERROR(INDEX('Data Annex'!$K$1:$AN$4997,MATCH(P$1&\"|\"&$B14,'Data Annex'!$K$1:$K$4997,0),MATCH(P$2,'Data Annex'!$K$1:$AN$1,0)),\"\")","v":7.8291519500000004E-2},{"$f":"IFERROR(INDEX('Data Annex'!$K$1:$AN$4997,MATCH(Q$1&\"|\"&$B14,'Data Annex'!$K$1:$K$4997,0),MATCH(Q$2,'Data Annex'!$K$1:$AN$1,0)),\"\")","v":4.37350382E-2},{"$f":"IFERROR(INDEX('Data Annex'!$K$1:$AN$4997,MATCH(R$1&\"|\"&$B14,'Data Annex'!$K$1:$K$4997,0),MATCH(R$2,'Data Annex'!$K$1:$AN$1,0)),\"\")","v":3.9568993500000003E-2},{"$f":"IFERROR(INDEX('Data Annex'!$K$1:$AN$4997,MATCH(S$1&\"|\"&$B14,'Data Annex'!$K$1:$K$4997,0),MATCH(S$2,'Data Annex'!$K$1:$AN$1,0)),\"\")","v":1.8401470499999999E-2},{"$f":"IFERROR(INDEX('Data Annex'!$K$1:$AN$4997,MATCH(T$1&\"|\"&$B14,'Data Annex'!$K$1:$K$4997,0),MATCH(T$2,'Data Annex'!$K$1:$AN$1,0)),\"\")","v":9.1425533999999996E-3},{"$f":"IFERROR(INDEX('Data Annex'!$K$1:$AN$4997,MATCH(U$1&\"|\"&$B14,'Data Annex'!$K$1:$K$4997,0),MATCH(U$2,'Data Annex'!$K$1:$AN$1,0)),\"\")","v":-7.8096598000000003E-2},{"$f":"IFERROR(INDEX('Data Annex'!$K$1:$AN$4997,MATCH(V$1&\"|\"&$B14,'Data Annex'!$K$1:$K$4997,0),MATCH(V$2,'Data Annex'!$K$1:$AN$1,0)),\"\")","v":-1.660621E-2},{"$f":"IFERROR(INDEX('Data Annex'!$K$1:$AN$4997,MATCH(W$1&\"|\"&$B14,'Data Annex'!$K$1:$K$4997,0),MATCH(W$2,'Data Annex'!$K$1:$AN$1,0)),\"\")","v":3.1154194000000001E-3},{"$f":"IFERROR(INDEX('Data Annex'!$K$1:$AN$4997,MATCH(X$1&\"|\"&$B14,'Data Annex'!$K$1:$K$4997,0),MATCH(X$2,'Data Annex'!$K$1:$AN$1,0)),\"\")","v":1.46638093E-2}]
[4,"CY",null,"CY",{"$f":"IFERROR(INDEX('Data Annex'!$K$1:$AN$4997,MATCH(E$1&\"|\"&$B15,'Data Annex'!$K$1:$K$4997,0),MATCH(E$2,'Data Annex'!$K$1:$AN$1,0)),\"\")","v":-3.9076289E-2},{"$f":"IFERROR(INDEX('Data Annex'!$K$1:$AN$4997,MATCH(F$1&\"|\"&$B15,'Data Annex'!$K$1:$K$4997,0),MATCH(F$2,'Data Annex'!$K$1:$AN$1,0)),\"\")","v":-8.4465051999999999E-2},{"$f":"IFERROR(INDEX('Data Annex'!$K$1:$AN$4997,MATCH(G$1&\"|\"&$B15,'Data Annex'!$K$1:$K$4997,0),MATCH(G$2,'Data Annex'!$K$1:$AN$1,0)),\"\")","v":-4.8451341000000002E-2},{"$f":"IFERROR(INDEX('Data Annex'!$K$1:$AN$4997,MATCH(H$1&\"|\"&$B15,'Data Annex'!$K$1:$K$4997,0),MATCH(H$2,'Data Annex'!$K$1:$AN$1,0)),\"\")","v":-4.1629102000000001E-2},{"$f":"IFERROR(INDEX('Data Annex'!$K$1:$AN$4997,MATCH(I$1&\"|\"&$B15,'Data Annex'!$K$1:$K$4997,0),MATCH(I$2,'Data Annex'!$K$1:$AN$1,0)),\"\")","v":0.19677201150000001},{"$f":"IFERROR(INDEX('Data Annex'!$K$1:$AN$4997,MATCH(J$1&\"|\"&$B15,'Data Annex'!$K$1:$K$4997,0),MATCH(J$2,'Data Annex'!$K$1:$AN$1,0)),\"\")","v":0.2003962195},{"$f":"IFERROR(INDEX('Data Annex'!$K$1:$AN$4997,MATCH(K$1&\"|\"&$B15,'Data Annex'!$K$1:$K$4997,0),MATCH(K$2,'Data Annex'!$K$1:$AN$1,0)),\"\")","v":0.19943524139999999},{"$f":"IFERROR(INDEX('Data Annex'!$K$1:$AN$4997,MATCH(L$1&\"|\"&$B15,'Data Annex'!$K$1:$K$4997,0),MATCH(L$2,'Data Annex'!$K$1:$AN$1,0)),\"\")","v":0.26252589030000001},{"$f":"IFERROR(INDEX('Data Annex'!$K$1:$AN$4997,MATCH(M$1&\"|\"&$B15,'Data Annex'!$K$1:$K$4997,0),MATCH(M$2,'Data Annex'!$K$1:$AN$1,0)),\"\")","v":7.2770363000000005E-2},{"$f":"IFERROR(INDEX('Data Annex'!$K$1:$AN$4997,MATCH(N$1&\"|\"&$B15,'Data Annex'!$K$1:$K$4997,0),MATCH(N$2,'Data Annex'!$K$1:$AN$1,0)),\"\")","v":6.7804361899999999E-2},{"$f":"IFERROR(INDEX('Data Annex'!$K$1:$AN$4997,MATCH(O$1&\"|\"&$B15,'Data Annex'!$K$1:$K$4997,0),MATCH(O$2,'Data Annex'!$K$1:$AN$1,0)),\"\")","v":6.6725808400000003E-2},{"$f":"IFERROR(INDEX('Data Annex'!$K$1:$AN$4997,MATCH(P$1&\"|\"&$B15,'Data Annex'!$K$1:$K$4997,0),MATCH(P$2,'Data Annex'!$K$1:$AN$1,0)),\"\")","v":5.6936432199999998E-2},{"$f":"IFERROR(INDEX('Data Annex'!$K$1:$AN$4997,MATCH(Q$1&\"|\"&$B15,'Data Annex'!$K$1:$K$4997,0),MATCH(Q$2,'Data Annex'!$K$1:$AN$1,0)),\"\")","v":-6.3833199999999996E-3},{"$f":"IFERROR(INDEX('Data Annex'!$K$1:$AN$4997,MATCH(R$1&\"|\"&$B15,'Data Annex'!$K$1:$K$4997,0),MATCH(R$2,'Data Annex'!$K$1:$AN$1,0)),\"\")","v":1.6189002E-3},{"$f":"IFERROR(INDEX('Data Annex'!$K$1:$AN$4997,MATCH(S$1&\"|\"&$B15,'Data Annex'!$K$1:$K$4997,0),MATCH(S$2,'Data Annex'!$K$1:$AN$1,0)),\"\")","v":5.652535E-4},{"$f":"IFERROR(INDEX('Data Annex'!$K$1:$AN$4997,MATCH(T$1&\"|\"&$B15,'Data Annex'!$K$1:$K$4997,0),MATCH(T$2,'Data Annex'!$K$1:$AN$1,0)),\"\")","v":4.9277588999999998E-3},{"$f":"IFERROR(INDEX('Data Annex'!$K$1:$AN$4997,MATCH(U$1&\"|\"&$B15,'Data Annex'!$K$1:$K$4997,0),MATCH(U$2,'Data Annex'!$K$1:$AN$1,0)),\"\")","v":1.6061092900000001E-2},{"$f":"IFERROR(INDEX('Data Annex'!$K$1:$AN$4997,MATCH(V$1&\"|\"&$B15,'Data Annex'!$K$1:$K$4997,0),MATCH(V$2,'Data Annex'!$K$1:$AN$1,0)),\"\")","v":1.92288114E-2},{"$f":"IFERROR(INDEX('Data Annex'!$K$1:$AN$4997,MATCH(W$1&\"|\"&$B15,'Data Annex'!$K$1:$K$4997,0),MATCH(W$2,'Data Annex'!$K$1:$AN$1,0)),\"\")","v":1.83582942E-2},{"$f":"IFERROR(INDEX('Data Annex'!$K$1:$AN$4997,MATCH(X$1&\"|\"&$B15,'Data Annex'!$K$1:$K$4997,0),MATCH(X$2,'Data Annex'!$K$1:$AN$1,0)),\"\")","v":1.8366915099999999E-2}]
[5,"CZ",null,"CZ",{"$f":"IFERROR(INDEX('Data Annex'!$K$1:$AN$4997,MATCH(E$1&\"|\"&$B16,'Data Annex'!$K$1:$K$4997,0),MATCH(E$2,'Data Annex'!$K$1:$AN$1,0)),\"\")","v":8.9196178900000006E-2},{"$f":"IFERROR(INDEX('Data Annex'!$K$1:$AN$4997,MATCH(F$1&\"|\"&$B16,'Data Annex'!$K$1:$K$4997,0),MATCH(F$2,'Data Annex'!$K$1:$AN$1,0)),\"\")","v":6.9791355099999994E-2},{"$f":"IFERROR(INDEX('Data Annex'!$K$1:$AN$4997,MATCH(G$1&\"|\"&$B16,'Data Annex'!$K$1:$K$4997,0),MATCH(G$2,'Data Annex'!$K$1:$AN$1,0)),\"\")","v":7.4030337900000007E-2},{"$f":"IFERROR(INDEX('Data Annex'!$K$1:$AN$4997,MATCH(H$1&\"|\"&$B16,'Data Annex'!$K$1:$K$4997,0),MATCH(H$2,'Data Annex'!$K$1:$AN$1,0)),\"\")","v":7.3578090200000001E-2},{"$f":"IFERROR(INDEX('Data Annex'!$K$1:$AN$4997,MATCH(I$1&\"|\"&$B16,'Data Annex'!$K$1:$K$4997,0),MATCH(I$2,'Data Annex'!$K$1:$AN$1,0)),\"\")","v":0.24753668000000001},{"$f":"IFERROR(INDEX('Data Annex'!$K$1:$AN$4997,MATCH(J$1&\"|\"&$B16,'Data Annex'!$K$1:$K$4997,0),MATCH(J$2,'Data Annex'!$K$1:$AN$1,0)),\"\")","v":0.2260037235},{"$f":"IFERROR(INDEX('Data Annex'!$K$1:$AN$4997,MATCH(K$1&\"|\"&$B16,'Data Annex'!$K$1:$K$4997,0),MATCH(K$2,'Data Annex'!$K$1:$AN$1,0)),\"\")","v":0.2134430095},{"$f":"IFERROR(INDEX('Data Annex'!$K$1:$AN$4997,MATCH(L$1&\"|\"&$B16,'Data Annex'!$K$1:$K$4997,0),MATCH(L$2,'Data Annex'!$K$1:$AN$1,0)),\"\")","v":0.21134780859999999},{"$f":"IFERROR(INDEX('Data Annex'!$K$1:$AN$4997,MATCH(M$1&\"|\"&$B16,'Data Annex'!$K$1:$K$4997,0),MATCH(M$2,'Data Annex'!$K$1:$AN$1,0)),\"\")","v":5.9560423500000001E-2},{"$f":"IFERROR(INDEX('Data Annex'!$K$1:$AN$4997,MATCH(N$1&\"|\"&$B16,'Data Annex'!$K$1:$K$4997,0),MATCH(N$2,'Data Annex'!$K$1:$AN$1,0)),\"\")","v":5.7865596999999998E-2},{"$f":"IFERROR(INDEX('Data Annex'!$K$1:$AN$4997,MATCH(O$1&\"|\"&$B16,'Data Annex'!$K$1:$K$4997,0),MATCH(O$2,'Data Annex'!$K$1:$AN$1,0)),\"\")","v":5.6715555100000002E-2},{"$f":"IFERROR(INDEX('Data Annex'!$K$1:$AN$4997,MATCH(P$1&\"|\"&$B16,'Data Annex'!$K$1:$K$4997,0),MATCH(P$2,'Data Annex'!$K$1:$AN$1,0)),\"\")","v":5.7739057900000001E-2},{"$f":"IFERROR(INDEX('Data Annex'!$K$1:$AN$4997,MATCH(Q$1&\"|\"&$B16,'Data Annex'!$K$1:$K$4997,0),MATCH(Q$2,'Data Annex'!$K$1:$AN$1,0)),\"\")","v":-0.102838068},{"$f":"IFERROR(INDEX('Data Annex'!$K$1:$AN$4997,MATCH(R$1&\"|\"&$B16,'Data Annex'!$K$1:$K$4997,0),MATCH(R$2,'Data Annex'!$K$1:$AN$1,0)),\"\")","v":-2.3062191999999999E-2},{"$f":"IFERROR(INDEX('Data Annex'!$K$1:$AN$4997,MATCH(S$1&\"|\"&$B16,'Data Annex'!$K$1:$K$4997,0),MATCH(S$2,'Data Annex'!$K$1:$AN$1,0)),\"\")","v":-1.7536772999999999E-2},{"$f":"IFERROR(INDEX('Data Annex'!$K$1:$AN$4997,MATCH(T$1&\"|\"&$B16,'Data Annex'!$K$1:$K$4997,0),MATCH(T$2,'Data Annex'!$K$1:$AN$1,0)),\"\")","v":-4.8344759999999999E-3},{"$f":"IFERROR(INDEX('Data Annex'!$K$1:$AN$4997,MATCH(U$1&\"|\"&$B16,'Data Annex'!$K$1:$K$4997,0),MATCH(U$2,'Data Annex'!$K$1:$AN$1,0)),\"\")","v":8.4845342300000001E-2},{"$f":"IFERROR(INDEX('Data Annex'!$K$1:$AN$4997,MATCH(V$1&\"|\"&$B16,'Data Annex'!$K$1:$K$4997,0),MATCH(V$2,'Data Annex'!$K$1:$AN$1,0)),\"\")","v":3.7071772900000001E-2},{"$f":"IFERROR(INDEX('Data Annex'!$K$1:$AN$4997,MATCH(W$1&\"|\"&$B16,'Data Annex'!$K$1:$K$4997,0),MATCH(W$2,'Data Annex'!$K$1:$AN$1,0)),\"\")","v":3.5329076700000003E-2},{"$f":"IFERROR(INDEX('Data Annex'!$K$1:$AN$4997,MATCH(X$1&\"|\"&$B16,'Data Annex'!$K$1:$K$4997,0),MATCH(X$2,'Data Annex'!$K$1:$AN$1,0)),\"\")","v":2.4941268400000001E-2}]
[6,"DE",null,"DE",{"$f":"IFERROR(INDEX('Data Annex'!$K$1:$AN$4997,MATCH(E$1&\"|\"&$B17,'Data Annex'!$K$1:$K$4997,0),MATCH(E$2,'Data Annex'!$K$1:$AN$1,0)),\"\")","v":-1.5797604E-2},{"$f":"IFERROR(INDEX('Data Annex'!$K$1:$AN$4997,MATCH(F$1&\"|\"&$B17,'Data Annex'!$K$1:$K$4997,0),MATCH(F$2,'Data Annex'!$K$1:$AN$1,0)),\"\")","v":9.1611551000000003E-3},{"$f":"IFERROR(INDEX('Data Annex'!$K$1:$AN$4997,MATCH(G$1&\"|\"&$B17,'Data Annex'!$K$1:$K$4997,0),MATCH(G$2,'Data Annex'!$K$1:$AN$1,0)),\"\")","v":1.4407616200000001E-2},{"$f":"IFERROR(INDEX('Data Annex'!$K$1:$AN$4997,MATCH(H$1&\"|\"&$B17,'Data Annex'!$K$1:$K$4997,0),MATCH(H$2,'Data Annex'!$K$1:$AN$1,0)),\"\")","v":4.5807243999999997E-3},{"$f":"IFERROR(INDEX('Data Annex'!$K$1:$AN$4997,MATCH(I$1&\"|\"&$B17,'Data Annex'!$K$1:$K$4997,0),MATCH(I$2,'Data Annex'!$K$1:$AN$1,0)),\"\")","v":0.1566275607},{"$f":"IFERROR(INDEX('Data Annex'!$K$1:$AN$4997,MATCH(J$1&\"|\"&$B17,'Data Annex'!$K$1:$K$4997,0),MATCH(J$2,'Data Annex'!$K$1:$AN$1,0)),\"\")","v":0.15485768729999999},{"$f":"IFERROR(INDEX('Data Annex'!$K$1:$AN$4997,MATCH(K$1&\"|\"&$B17,'Data Annex'!$K$1:$K$4997,0),MATCH(K$2,'Data Annex'!$K$1:$AN$1,0)),\"\")","v":0.15008564939999999},{"$f":"IFERROR(INDEX('Data Annex'!$K$1:$AN$4997,MATCH(L$1&\"|\"&$B17,'Data Annex'!$K$1:$K$4997,0),MATCH(L$2,'Data Annex'!$K$1:$AN$1,0)),\"\")","v":0.15556679649999999},{"$f":"IFERROR(INDEX('Data Annex'!$K$1:$AN$4997,MATCH(M$1&\"|\"&$B17,'Data Annex'!$K$1:$K$4997,0),MATCH(M$2,'Data Annex'!$K$1:$AN$1,0)),\"\")","v":0.1001950626},{"$f":"IFERROR(INDEX('Data Annex'!$K$1:$AN$4997,MATCH(N$1&\"|\"&$B17,'Data Annex'!$K$1:$K$4997,0),MATCH(N$2,'Data Annex'!$K$1:$AN$1,0)),\"\")","v":9.4592062500000004E-2},{"$f":"IFERROR(INDEX('Data Annex'!$K$1:$AN$4997,MATCH(O$1&\"|\"&$B17,'Data Annex'!$K$1:$K$4997,0),MATCH(O$2,'Data Annex'!$K$1:$AN$1,0)),\"\")","v":9.4398882899999995E-2},{"$f":"IFERROR(INDEX('Data Annex'!$K$1:$AN$4997,MATCH(P$1&\"|\"&$B17,'Data Annex'!$K$1:$K$4997,0),MATCH(P$2,'Data Annex'!$K$1:$AN$1,0)),\"\")","v":9.7547462599999996E-2},{"$f":"IFERROR(INDEX('Data Annex'!$K$1:$AN$4997,MATCH(Q$1&\"|\"&$B17,'Data Annex'!$K$1:$K$4997,0),MATCH(Q$2,'Data Annex'!$K$1:$AN$1,0)),\"\")","v":-9.4610809999999997E-3},{"$f":"IFERROR(INDEX('Data Annex'!$K$1:$AN$4997,MATCH(R$1&\"|\"&$B17,'Data Annex'!$K$1:$K$4997,0),MATCH(R$2,'Data Annex'!$K$1:$AN$1,0)),\"\")","v":1.22261005E-2},{"$f":"IFERROR(INDEX('Data Annex'!$K$1:$AN$4997,MATCH(S$1&\"|\"&$B17,'Data Annex'!$K$1:$K$4997,0),MATCH(S$2,'Data Annex'!$K$1:$AN$1,0)),\"\")","v":1.65497361E-2},{"$f":"IFERROR(INDEX('Data Annex'!$K$1:$AN$4997,MATCH(T$1&\"|\"&$B17,'Data Annex'!$K$1:$K$4997,0),MATCH(T$2,'Data Annex'!$K$1:$AN$1,0)),\"\")","v":1.7447262200000001E-2},{"$f":"IFERROR(INDEX('Data Annex'!$K$1:$AN$4997,MATCH(U$1&\"|\"&$B17,'Data Annex'!$K$1:$K$4997,0),MATCH(U$2,'Data Annex'!$K$1:$AN$1,0)),\"\")","v":2.0407469999999999E-3},{"$f":"IFERROR(INDEX('Data Annex'!$K$1:$AN$4997,MATCH(V$1&\"|\"&$B17,'Data Annex'!$K$1:$K$4997,0),MATCH(V$2,'Data Annex'!$K$1:$AN$1,0)),\"\")","v":1.3510717E-2},{"$f":"IFERROR(INDEX('Data Annex'!$K$1:$AN$4997,MATCH(W$1&\"|\"&$B17,'Data Annex'!$K$1:$K$4997,0),MATCH(W$2,'Data Annex'!$K$1:$AN$1,0)),\"\")","v":1.39362167E-2},{"$f":"IFERROR(INDEX('Data Annex'!$K$1:$AN$4997,MATCH(X$1&\"|\"&$B17,'Data Annex'!$K$1:$K$4997,0),MATCH(X$2,'Data Annex'!$K$1:$AN$1,0)),\"\")","v":1.5207106499999999E-2}]
[7,"DK",null,"DK",{"$f":"IFERROR(INDEX('Data Annex'!$K$1:$AN$4997,MATCH(E$1&\"|\"&$B18,'Data Annex'!$K$1:$K$4997,0),MATCH(E$2,'Data Annex'!$K$1:$AN$1,0)),\"\")","v":-3.8662759999999997E-2},{"$f":"IFERROR(INDEX('Data Annex'!$K$1:$AN$4997,MATCH(F$1&\"|\"&$B18,'Data Annex'!$K$1:$K$4997,0),MATCH(F$2,'Data Annex'!$K$1:$AN$1,0)),\"\")","v":2.0064773800000001E-2},{"$f":"IFERROR(INDEX('Data Annex'!$K$1:$AN$4997,MATCH(G$1&\"|\"&$B18,'Data Annex'!$K$1:$K$4997,0),MATCH(G$2,'Data Annex'!$K$1:$AN$1,0)),\"\")","v":3.4765023800000003E-2},{"$f":"IFERROR(INDEX('Data Annex'!$K$1:$AN$4997,MATCH(H$1&\"|\"&$B18,'Data Annex'!$K$1:$K$4997,0),MATCH(H$2,'Data Annex'!$K$1:$AN$1,0)),\"\")","v":4.1347796800000003E-2},{"$f":"IFERROR(INDEX('Data Annex'!$K$1:$AN$4997,MATCH(I$1&\"|\"&$B18,'Data Annex'!$K$1:$K$4997,0),MATCH(I$2,'Data Annex'!$K$1:$AN$1,0)),\"\")","v":0.16376784129999999},{"$f":"IFERROR(INDEX('Data Annex'!$K$1:$AN$4997,MATCH(J$1&\"|\"&$B18,'Data Annex'!$K$1:$K$4997,0),MATCH(J$2,'Data Annex'!$K$1:$AN$1,0)),\"\")","v":0.1471538305},{"$f":"IFERROR(INDEX('Data Annex'!$K$1:$AN$4997,MATCH(K$1&\"|\"&$B18,'Data Annex'!$K$1:$K$4997,0),MATCH(K$2,'Data Annex'!$K$1:$AN$1,0)),\"\")","v":0.14208281040000001},{"$f":"IFERROR(INDEX('Data Annex'!$K$1:$AN$4997,MATCH(L$1&\"|\"&$B18,'Data Annex'!$K$1:$K$4997,0),MATCH(L$2,'Data Annex'!$K$1:$AN$1,0)),\"\")","v":0.1400460103},{"$f":"IFERROR(INDEX('Data Annex'!$K$1:$AN$4997,MATCH(M$1&\"|\"&$B18,'Data Annex'!$K$1:$K$4997,0),MATCH(M$2,'Data Annex'!$K$1:$AN$1,0)),\"\")","v":5.6555337800000001E-2},{"$f":"IFERROR(INDEX('Data Annex'!$K$1:$AN$4997,MATCH(N$1&\"|\"&$B18,'Data Annex'!$K$1:$K$4997,0),MATCH(N$2,'Data Annex'!$K$1:$AN$1,0)),\"\")","v":5.0904919E-2},{"$f":"IFERROR(INDEX('Data Annex'!$K$1:$AN$4997,MATCH(O$1&\"|\"&$B18,'Data Annex'!$K$1:$K$4997,0),MATCH(O$2,'Data Annex'!$K$1:$AN$1,0)),\"\")","v":4.8363699900000001E-2},{"$f":"IFERROR(INDEX('Data Annex'!$K$1:$AN$4997,MATCH(P$1&\"|\"&$B18,'Data Annex'!$K$1:$K$4997,0),MATCH(P$2,'Data Annex'!$K$1:$AN$1,0)),\"\")","v":5.1274051000000001E-2},{"$f":"IFERROR(INDEX('Data Annex'!$K$1:$AN$4997,MATCH(Q$1&\"|\"&$B18,'Data Annex'!$K$1:$K$4997,0),MATCH(Q$2,'Data Annex'!$K$1:$AN$1,0)),\"\")","v":-8.7951717999999998E-2},{"$f":"IFERROR(INDEX('Data Annex'!$K$1:$AN$4997,MATCH(R$1&\"|\"&$B18,'Data Annex'!$K$1:$K$4997,0),MATCH(R$2,'Data Annex'!$K$1:$AN$1,0)),\"\")","v":-1.6331623E-2},{"$f":"IFERROR(INDEX('Data Annex'!$K$1:$AN$4997,MATCH(S$1&\"|\"&$B18,'Data Annex'!$K$1:$K$4997,0),MATCH(S$2,'Data Annex'!$K$1:$AN$1,0)),\"\")","v":2.119817E-4},{"$f":"IFERROR(INDEX('Data Annex'!$K$1:$AN$4997,MATCH(T$1&\"|\"&$B18,'Data Annex'!$K$1:$K$4997,0),MATCH(T$2,'Data Annex'!$K$1:$AN$1,0)),\"\")","v":5.9771166000000004E-3},{"$f":"IFERROR(INDEX('Data Annex'!$K$1:$AN$4997,MATCH(U$1&\"|\"&$B18,'Data Annex'!$K$1:$K$4997,0),MATCH(U$2,'Data Annex'!$K$1:$AN$1,0)),\"\")","v":2.0736028900000002E-2},{"$f":"IFERROR(INDEX('Data Annex'!$K$1:$AN$4997,MATCH(V$1&\"|\"&$B18,'Data Annex'!$K$1:$K$4997,0),MATCH(V$2,'Data Annex'!$K$1:$AN$1,0)),\"\")","v":2.289851E-2},{"$f":"IFERROR(INDEX('Data Annex'!$K$1:$AN$4997,MATCH(W$1&\"|\"&$B18,'Data Annex'!$K$1:$K$4997,0),MATCH(W$2,'Data Annex'!$K$1:$AN$1,0)),\"\")","v":2.30086961E-2},{"$f":"IFERROR(INDEX('Data Annex'!$K$1:$AN$4997,MATCH(X$1&\"|\"&$B18,'Data Annex'!$K$1:$K$4997,0),MATCH(X$2,'Data Annex'!$K$1:$AN$1,0)),\"\")","v":2.42860022E-2}]
[8,"EE",null,"EE",{"$f":"IFERROR(INDEX('Data Annex'!$K$1:$AN$4997,MATCH(E$1&\"|\"&$B19,'Data Annex'!$K$1:$K$4997,0),MATCH(E$2,'Data Annex'!$K$1:$AN$1,0)),\"\")","v":8.1246602400000006E-2},{"$f":"IFERROR(INDEX('Data Annex'!$K$1:$AN$4997,MATCH(F$1&\"|\"&$B19,'Data Annex'!$K$1:$K$4997,0),MATCH(F$2,'Data Annex'!$K$1:$AN$1,0)),\"\")","v":6.9594309100000001E-2},{"$f":"IFERROR(INDEX('Data Annex'!$K$1:$AN$4997,MATCH(G$1&\"|\"&$B19,'Data Annex'!$K$1:$K$4997,0),MATCH(G$2,'Data Annex'!$K$1:$AN$1,0)),\"\")","v":7.1823127799999997E-2},{"$f":"IFERROR(INDEX('Data Annex'!$K$1:$AN$4997,MATCH(H$1&\"|\"&$B19,'Data Annex'!$K$1:$K$4997,0),MATCH(H$2,'Data Annex'!$K$1:$AN$1,0)),\"\")","v":7.2618750900000001E-2},{"$f":"IFERROR(INDEX('Data Annex'!$K$1:$AN$4997,MATCH(I$1&\"|\"&$B19,'Data Annex'!$K$1:$K$4997,0),MATCH(I$2,'Data Annex'!$K$1:$AN$1,0)),\"\")","v":0.13088348799999999},{"$f":"IFERROR(INDEX('Data Annex'!$K$1:$AN$4997,MATCH(J$1&\"|\"&$B19,'Data Annex'!$K$1:$K$4997,0),MATCH(J$2,'Data Annex'!$K$1:$AN$1,0)),\"\")","v":0.13239634080000001},{"$f":"IFERROR(INDEX('Data Annex'!$K$1:$AN$4997,MATCH(K$1&\"|\"&$B19,'Data Annex'!$K$1:$K$4997,0),MATCH(K$2,'Data Annex'!$K$1:$AN$1,0)),\"\")","v":0.13208577029999999},{"$f":"IFERROR(INDEX('Data Annex'!$K$1:$AN$4997,MATCH(L$1&\"|\"&$B19,'Data Annex'!$K$1:$K$4997,0),MATCH(L$2,'Data Annex'!$K$1:$AN$1,0)),\"\")","v":0.13686520099999999},{"$f":"IFERROR(INDEX('Data Annex'!$K$1:$AN$4997,MATCH(M$1&\"|\"&$B19,'Data Annex'!$K$1:$K$4997,0),MATCH(M$2,'Data Annex'!$K$1:$AN$1,0)),\"\")","v":4.6215219000000002E-2},{"$f":"IFERROR(INDEX('Data Annex'!$K$1:$AN$4997,MATCH(N$1&\"|\"&$B19,'Data Annex'!$K$1:$K$4997,0),MATCH(N$2,'Data Annex'!$K$1:$AN$1,0)),\"\")","v":4.38887107E-2},{"$f":"IFERROR(INDEX('Data Annex'!$K$1:$AN$4997,MATCH(O$1&\"|\"&$B19,'Data Annex'!$K$1:$K$4997,0),MATCH(O$2,'Data Annex'!$K$1:$AN$1,0)),\"\")","v":4.4531305E-2},{"$f":"IFERROR(INDEX('Data Annex'!$K$1:$AN$4997,MATCH(P$1&\"|\"&$B19,'Data Annex'!$K$1:$K$4997,0),MATCH(P$2,'Data Annex'!$K$1:$AN$1,0)),\"\")","v":4.8314343599999997E-2},{"$f":"IFERROR(INDEX('Data Annex'!$K$1:$AN$4997,MATCH(Q$1&\"|\"&$B19,'Data Annex'!$K$1:$K$4997,0),MATCH(Q$2,'Data Annex'!$K$1:$AN$1,0)),\"\")","v":6.2490842999999999E-3},{"$f":"IFERROR(INDEX('Data Annex'!$K$1:$AN$4997,MATCH(R$1&\"|\"&$B19,'Data Annex'!$K$1:$K$4997,0),MATCH(R$2,'Data Annex'!$K$1:$AN$1,0)),\"\")","v":7.4853923999999997E-3},{"$f":"IFERROR(INDEX('Data Annex'!$K$1:$AN$4997,MATCH(S$1&\"|\"&$B19,'Data Annex'!$K$1:$K$4997,0),MATCH(S$2,'Data Annex'!$K$1:$AN$1,0)),\"\")","v":5.6409088999999999E-3},{"$f":"IFERROR(INDEX('Data Annex'!$K$1:$AN$4997,MATCH(T$1&\"|\"&$B19,'Data Annex'!$K$1:$K$4997,0),MATCH(T$2,'Data Annex'!$K$1:$AN$1,0)),\"\")","v":4.4097127999999999E-3},{"$f":"IFERROR(INDEX('Data Annex'!$K$1:$AN$4997,MATCH(U$1&\"|\"&$B19,'Data Annex'!$K$1:$K$4997,0),MATCH(U$2,'Data Annex'!$K$1:$AN$1,0)),\"\")","v":5.2092847900000003E-2},{"$f":"IFERROR(INDEX('Data Annex'!$K$1:$AN$4997,MATCH(V$1&\"|\"&$B19,'Data Annex'!$K$1:$K$4997,0),MATCH(V$2,'Data Annex'!$K$1:$AN$1,0)),\"\")","v":3.4541584100000002E-2},{"$f":"IFERROR(INDEX('Data Annex'!$K$1:$AN$4997,MATCH(W$1&\"|\"&$B19,'Data Annex'!$K$1:$K$4997,0),MATCH(W$2,'Data Annex'!$K$1:$AN$1,0)),\"\")","v":2.8667556899999998E-2},{"$f":"IFERROR(INDEX('Data Annex'!$K$1:$AN$4997,MATCH(X$1&\"|\"&$B19,'Data Annex'!$K$1:$K$4997,0),MATCH(X$2,'Data Annex'!$K$1:$AN$1,0)),\"\")","v":2.2564850800000001E-2}]
[9,"ES",null,"ES",{"$f":"IFERROR(INDEX('Data Annex'!$K$1:$AN$4997,MATCH(E$1&\"|\"&$B20,'Data Annex'!$K$1:$K$4997,0),MATCH(E$2,'Data Annex'!$K$1:$AN$1,0)),\"\")","v":-5.0256850000000002E-3},{"$f":"IFERROR(INDEX('Data Annex'!$K$1:$AN$4997,MATCH(F$1&\"|\"&$B20,'Data Annex'!$K$1:$K$4997,0),MATCH(F$2,'Data Annex'!$K$1:$AN$1,0)),\"\")","v":-8.7131354999999994E-2},{"$f":"IFERROR(INDEX('Data Annex'!$K$1:$AN$4997,MATCH(G$1&\"|\"&$B20,'Data Annex'!$K$1:$K$4997,0),MATCH(G$2,'Data Annex'!$K$1:$AN$1,0)),\"\")","v":-3.3940750999999998E-2},{"$f":"IFERROR(INDEX('Data Annex'!$K$1:$AN$4997,MATCH(H$1&\"|\"&$B20,'Data Annex'!$K$1:$K$4997,0),MATCH(H$2,'Data Annex'!$K$1:$AN$1,0)),\"\")","v":-3.8810469E-2},{"$f":"IFERROR(INDEX('Data Annex'!$K$1:$AN$4997,MATCH(I$1&\"|\"&$B20,'Data Annex'!$K$1:$K$4997,0),MATCH(I$2,'Data Annex'!$K$1:$AN$1,0)),\"\")","v":0.27504148020000002},{"$f":"IFERROR(INDEX('Data Annex'!$K$1:$AN$4997,MATCH(J$1&\"|\"&$B20,'Data Annex'!$K$1:$K$4997,0),MATCH(J$2,'Data Annex'!$K$1:$AN$1,0)),\"\")","v":0.27180404559999999},{"$f":"IFERROR(INDEX('Data Annex'!$K$1:$AN$4997,MATCH(K$1&\"|\"&$B20,'Data Annex'!$K$1:$K$4997,0),MATCH(K$2,'Data Annex'!$K$1:$AN$1,0)),\"\")","v":0.26978493209999999},{"$f":"IFERROR(INDEX('Data Annex'!$K$1:$AN$4997,MATCH(L$1&\"|\"&$B20,'Data Annex'!$K$1:$K$4997,0),MATCH(L$2,'Data Annex'!$K$1:$AN$1,0)),\"\")","v":0.25382131250000001},{"$f":"IFERROR(INDEX('Data Annex'!$K$1:$AN$4997,MATCH(M$1&\"|\"&$B20,'Data Annex'!$K$1:$K$4997,0),MATCH(M$2,'Data Annex'!$K$1:$AN$1,0)),\"\")","v":0.10083615930000001},{"$f":"IFERROR(INDEX('Data Annex'!$K$1:$AN$4997,MATCH(N$1&\"|\"&$B20,'Data Annex'!$K$1:$K$4997,0),MATCH(N$2,'Data Annex'!$K$1:$AN$1,0)),\"\")","v":9.6188424699999997E-2},{"$f":"IFERROR(INDEX('Data Annex'!$K$1:$AN$4997,MATCH(O$1&\"|\"&$B20,'Data Annex'!$K$1:$K$4997,0),MATCH(O$2,'Data Annex'!$K$1:$AN$1,0)),\"\")","v":9.5334859300000005E-2},{"$f":"IFERROR(INDEX('Data Annex'!$K$1:$AN$4997,MATCH(P$1&\"|\"&$B20,'Data Annex'!$K$1:$K$4997,0),MATCH(P$2,'Data Annex'!$K$1:$AN$1,0)),\"\")","v":8.9039800799999999E-2},{"$f":"IFERROR(INDEX('Data Annex'!$K$1:$AN$4997,MATCH(Q$1&\"|\"&$B20,'Data Annex'!$K$1:$K$4997,0),MATCH(Q$2,'Data Annex'!$K$1:$AN$1,0)),\"\")","v":6.6215906500000005E-2},{"$f":"IFERROR(INDEX('Data Annex'!$K$1:$AN$4997,MATCH(R$1&\"|\"&$B20,'Data Annex'!$K$1:$K$4997,0),MATCH(R$2,'Data Annex'!$K$1:$AN$1,0)),\"\")","v":2.1072160900000001E-2},{"$f":"IFERROR(INDEX('Data Annex'!$K$1:$AN$4997,MATCH(S$1&\"|\"&$B20,'Data Annex'!$K$1:$K$4997,0),MATCH(S$2,'Data Annex'!$K$1:$AN$1,0)),\"\")","v":3.1753473900000002E-2},{"$f":"IFERROR(INDEX('Data Annex'!$K$1:$AN$4997,MATCH(T$1&\"|\"&$B20,'Data Annex'!$K$1:$K$4997,0),MATCH(T$2,'Data Annex'!$K$1:$AN$1,0)),\"\")","v":2.0487510800000001E-2},{"$f":"IFERROR(INDEX('Data Annex'!$K$1:$AN$4997,MATCH(U$1&\"|\"&$B20,'Data Annex'!$K$1:$K$4997,0),MATCH(U$2,'Data Annex'!$K$1:$AN$1,0)),\"\")","v":-4.7545282000000001E-2},{"$f":"IFERROR(INDEX('Data Annex'!$K$1:$AN$4997,MATCH(V$1&\"|\"&$B20,'Data Annex'!$K$1:$K$4997,0),MATCH(V$2,'Data Annex'!$K$1:$AN$1,0)),\"\")","v":9.8135248000000008E-3},{"$f":"IFERROR(INDEX('Data Annex'!$K$1:$AN$4997,MATCH(W$1&\"|\"&$B20,'Data Annex'!$K$1:$K$4997,0),MATCH(W$2,'Data Annex'!$K$1:$AN$1,0)),\"\")","v":-4.5614770000000004E-3},{"$f":"IFERROR(INDEX('Data Annex'!$K$1:$AN$4997,MATCH(X$1&\"|\"&$B20,'Data Annex'!$K$1:$K$4997,0),MATCH(X$2,'Data Annex'!$K$1:$AN$1,0)),\"\")","v":6.2853274000000004E-3}]
[10,"FI",null,"FI",{"$f":"IFERROR(INDEX('Data Annex'!$K$1:$AN$4997,MATCH(E$1&\"|\"&$B21,'Data Annex'!$K$1:$K$4997,0),MATCH(E$2,'Data Annex'!$K$1:$AN$1,0)),\"\")","v":6.5851636899999996E-2},{"$f":"IFERROR(INDEX('Data Annex'!$K$1:$AN$4997,MATCH(F$1&\"|\"&$B21,'Data Annex'!$K$1:$K$4997,0),MATCH(F$2,'Data Annex'!$K$1:$AN$1,0)),\"\")","v":4.6492761399999999E-2},{"$f":"IFERROR(INDEX('Data Annex'!$K$1:$AN$4997,MATCH(G$1&\"|\"&$B21,'Data Annex'!$K$1:$K$4997,0),MATCH(G$2,'Data Annex'!$K$1:$AN$1,0)),\"\")","v":5.9496619899999999E-2},{"$f":"IFERROR(INDEX('Data Annex'!$K$1:$AN$4997,MATCH(H$1&\"|\"&$B21,'Data Annex'!$K$1:$K$4997,0),MATCH(H$2,'Data Annex'!$K$1:$AN$1,0)),\"\")","v":6.0123321600000001E-2},{"$f":"IFERROR(INDEX('Data Annex'!$K$1:$AN$4997,MATCH(I$1&\"|\"&$B21,'Data Annex'!$K$1:$K$4997,0),MATCH(I$2,'Data Annex'!$K$1:$AN$1,0)),\"\")","v":0.13425385479999999},{"$f":"IFERROR(INDEX('Data Annex'!$K$1:$AN$4997,MATCH(J$1&\"|\"&$B21,'Data Annex'!$K$1:$K$4997,0),MATCH(J$2,'Data Annex'!$K$1:$AN$1,0)),\"\")","v":0.13441682569999999},{"$f":"IFERROR(INDEX('Data Annex'!$K$1:$AN$4997,MATCH(K$1&\"|\"&$B21,'Data Annex'!$K$1:$K$4997,0),MATCH(K$2,'Data Annex'!$K$1:$AN$1,0)),\"\")","v":0.1345161081},{"$f":"IFERROR(INDEX('Data Annex'!$K$1:$AN$4997,MATCH(L$1&\"|\"&$B21,'Data Annex'!$K$1:$K$4997,0),MATCH(L$2,'Data Annex'!$K$1:$AN$1,0)),\"\")","v":0.13308069829999999},{"$f":"IFERROR(INDEX('Data Annex'!$K$1:$AN$4997,MATCH(M$1&\"|\"&$B21,'Data Annex'!$K$1:$K$4997,0),MATCH(M$2,'Data Annex'!$K$1:$AN$1,0)),\"\")","v":7.5325090900000002E-2},{"$f":"IFERROR(INDEX('Data Annex'!$K$1:$AN$4997,MATCH(N$1&\"|\"&$B21,'Data Annex'!$K$1:$K$4997,0),MATCH(N$2,'Data Annex'!$K$1:$AN$1,0)),\"\")","v":6.9820080399999998E-2},{"$f":"IFERROR(INDEX('Data Annex'!$K$1:$AN$4997,MATCH(O$1&\"|\"&$B21,'Data Annex'!$K$1:$K$4997,0),MATCH(O$2,'Data Annex'!$K$1:$AN$1,0)),\"\")","v":6.8730470799999999E-2},{"$f":"IFERROR(INDEX('Data Annex'!$K$1:$AN$4997,MATCH(P$1&\"|\"&$B21,'Data Annex'!$K$1:$K$4997,0),MATCH(P$2,'Data Annex'!$K$1:$AN$1,0)),\"\")","v":6.9154692599999998E-2},{"$f":"IFERROR(INDEX('Data Annex'!$K$1:$AN$4997,MATCH(Q$1&\"|\"&$B21,'Data Annex'!$K$1:$K$4997,0),MATCH(Q$2,'Data Annex'!$K$1:$AN$1,0)),\"\")","v":5.2124654399999998E-2},{"$f":"IFERROR(INDEX('Data Annex'!$K$1:$AN$4997,MATCH(R$1&\"|\"&$B21,'Data Annex'!$K$1:$K$4997,0),MATCH(R$2,'Data Annex'!$K$1:$AN$1,0)),\"\")","v":2.79314349E-2},{"$f":"IFERROR(INDEX('Data Annex'!$K$1:$AN$4997,MATCH(S$1&\"|\"&$B21,'Data Annex'!$K$1:$K$4997,0),MATCH(S$2,'Data Annex'!$K$1:$AN$1,0)),\"\")","v":2.8811349E-2},{"$f":"IFERROR(INDEX('Data Annex'!$K$1:$AN$4997,MATCH(T$1&\"|\"&$B21,'Data Annex'!$K$1:$K$4997,0),MATCH(T$2,'Data Annex'!$K$1:$AN$1,0)),\"\")","v":2.0057986900000001E-2},{"$f":"IFERROR(INDEX('Data Annex'!$K$1:$AN$4997,MATCH(U$1&\"|\"&$B21,'Data Annex'!$K$1:$K$4997,0),MATCH(U$2,'Data Annex'!$K$1:$AN$1,0)),\"\")","v":-4.2845129000000003E-2},{"$f":"IFERROR(INDEX('Data Annex'!$K$1:$AN$4997,MATCH(V$1&\"|\"&$B21,'Data Annex'!$K$1:$K$4997,0),MATCH(V$2,'Data Annex'!$K$1:$AN$1,0)),\"\")","v":-5.3723379999999999E-3},{"$f":"IFERROR(INDEX('Data Annex'!$K$1:$AN$4997,MATCH(W$1&\"|\"&$B21,'Data Annex'!$K$1:$K$4997,0),MATCH(W$2,'Data Annex'!$K$1:$AN$1,0)),\"\")","v":-4.0669349999999998E-3},{"$f":"IFERROR(INDEX('Data Annex'!$K$1:$AN$4997,MATCH(X$1&\"|\"&$B21,'Data Annex'!$K$1:$K$4997,0),MATCH(X$2,'Data Annex'!$K$1:$AN$1,0)),\"\")","v":4.8645518999999998E-3}]
[11,"FR",null,"FR",{"$f":"IFERROR(INDEX('Data Annex'!$K$1:$AN$4997,MATCH(E$1&\"|\"&$B22,'Data Annex'!$K$1:$K$4997,0),MATCH(E$2,'Data Annex'!$K$1:$AN$1,0)),\"\")","v":4.6675270800000002E-2},{"$f":"IFERROR(INDEX('Data Annex'!$K$1:$AN$4997,MATCH(F$1&\"|\"&$B22,'Data Annex'!$K$1:$K$4997,0),MATCH(F$2,'Data Annex'!$K$1:$AN$1,0)),\"\")","v":3.7038621799999998E-2},{"$f":"IFERROR(INDEX('Data Annex'!$K$1:$AN$4997,MATCH(G$1&\"|\"&$B22,'Data Annex'!$K$1:$K$4997,0),MATCH(G$2,'Data Annex'!$K$1:$AN$1,0)),\"\")","v":4.3355266599999998E-2},{"$f":"IFERROR(INDEX('Data Annex'!$K$1:$AN$4997,MATCH(H$1&\"|\"&$B22,'Data Annex'!$K$1:$K$4997,0),MATCH(H$2,'Data Annex'!$K$1:$AN$1,0)),\"\")","v":4.3249506799999997E-2},{"$f":"IFERROR(INDEX('Data Annex'!$K$1:$AN$4997,MATCH(I$1&\"|\"&$B22,'Data Annex'!$K$1:$K$4997,0),MATCH(I$2,'Data Annex'!$K$1:$AN$1,0)),\"\")","v":0.14376703160000001},{"$f":"IFERROR(INDEX('Data Annex'!$K$1:$AN$4997,MATCH(J$1&\"|\"&$B22,'Data Annex'!$K$1:$K$4997,0),MATCH(J$2,'Data Annex'!$K$1:$AN$1,0)),\"\")","v":0.142007404},{"$f":"IFERROR(INDEX('Data Annex'!$K$1:$AN$4997,MATCH(K$1&\"|\"&$B22,'Data Annex'!$K$1:$K$4997,0),MATCH(K$2,'Data Annex'!$K$1:$AN$1,0)),\"\")","v":0.1420745196},{"$f":"IFERROR(INDEX('Data Annex'!$K$1:$AN$4997,MATCH(L$1&\"|\"&$B22,'Data Annex'!$K$1:$K$4997,0),MATCH(L$2,'Data Annex'!$K$1:$AN$1,0)),\"\")","v":0.1404031301},{"$f":"IFERROR(INDEX('Data Annex'!$K$1:$AN$4997,MATCH(M$1&\"|\"&$B22,'Data Annex'!$K$1:$K$4997,0),MATCH(M$2,'Data Annex'!$K$1:$AN$1,0)),\"\")","v":0.10759518310000001},{"$f":"IFERROR(INDEX('Data Annex'!$K$1:$AN$4997,MATCH(N$1&\"|\"&$B22,'Data Annex'!$K$1:$K$4997,0),MATCH(N$2,'Data Annex'!$K$1:$AN$1,0)),\"\")","v":0.1029189388},{"$f":"IFERROR(INDEX('Data Annex'!$K$1:$AN$4997,MATCH(O$1&\"|\"&$B22,'Data Annex'!$K$1:$K$4997,0),MATCH(O$2,'Data Annex'!$K$1:$AN$1,0)),\"\")","v":0.1021807797},{"$f":"IFERROR(INDEX('Data Annex'!$K$1:$AN$4997,MATCH(P$1&\"|\"&$B22,'Data Annex'!$K$1:$K$4997,0),MATCH(P$2,'Data Annex'!$K$1:$AN$1,0)),\"\")","v":0.102957879},{"$f":"IFERROR(INDEX('Data Annex'!$K$1:$AN$4997,MATCH(Q$1&\"|\"&$B22,'Data Annex'!$K$1:$K$4997,0),MATCH(Q$2,'Data Annex'!$K$1:$AN$1,0)),\"\")","v":2.27824267E-2},{"$f":"IFERROR(INDEX('Data Annex'!$K$1:$AN$4997,MATCH(R$1&\"|\"&$B22,'Data Annex'!$K$1:$K$4997,0),MATCH(R$2,'Data Annex'!$K$1:$AN$1,0)),\"\")","v":1.6526612600000001E-2},{"$f":"IFERROR(INDEX('Data Annex'!$K$1:$AN$4997,MATCH(S$1&\"|\"&$B22,'Data Annex'!$K$1:$K$4997,0),MATCH(S$2,'Data Annex'!$K$1:$AN$1,0)),\"\")","v":1.7836314999999998E-2},{"$f":"IFERROR(INDEX('Data Annex'!$K$1:$AN$4997,MATCH(T$1&\"|\"&$B22,'Data Annex'!$K$1:$K$4997,0),MATCH(T$2,'Data Annex'!$K$1:$AN$1,0)),\"\")","v":2.7929431300000002E-2},{"$f":"IFERROR(INDEX('Data Annex'!$K$1:$AN$4997,MATCH(U$1&\"|\"&$B22,'Data Annex'!$K$1:$K$4997,0),MATCH(U$2,'Data Annex'!$K$1:$AN$1,0)),\"\")","v":-3.8136110000000002E-3},{"$f":"IFERROR(INDEX('Data Annex'!$K$1:$AN$4997,MATCH(V$1&\"|\"&$B22,'Data Annex'!$K$1:$K$4997,0),MATCH(V$2,'Data Annex'!$K$1:$AN$1,0)),\"\")","v":1.5693353699999999E-2},{"$f":"IFERROR(INDEX('Data Annex'!$K$1:$AN$4997,MATCH(W$1&\"|\"&$B22,'Data Annex'!$K$1:$K$4997,0),MATCH(W$2,'Data Annex'!$K$1:$AN$1,0)),\"\")","v":1.69936836E-2},{"$f":"IFERROR(INDEX('Data Annex'!$K$1:$AN$4997,MATCH(X$1&\"|\"&$B22,'Data Annex'!$K$1:$K$4997,0),MATCH(X$2,'Data Annex'!$K$1:$AN$1,0)),\"\")","v":1.04179202E-2}]
[13,"GR",null,"GR",{"$f":"IFERROR(INDEX('Data Annex'!$K$1:$AN$4997,MATCH(E$1&\"|\"&$B23,'Data Annex'!$K$1:$K$4997,0),MATCH(E$2,'Data Annex'!$K$1:$AN$1,0)),\"\")","v":1.71560914E-2},{"$f":"IFERROR(INDEX('Data Annex'!$K$1:$AN$4997,MATCH(F$1&\"|\"&$B23,'Data Annex'!$K$1:$K$4997,0),MATCH(F$2,'Data Annex'!$K$1:$AN$1,0)),\"\")","v":-6.3232577999999998E-2},{"$f":"IFERROR(INDEX('Data Annex'!$K$1:$AN$4997,MATCH(G$1&\"|\"&$B23,'Data Annex'!$K$1:$K$4997,0),MATCH(G$2,'Data Annex'!$K$1:$AN$1,0)),\"\")","v":-3.0777735000000001E-2},{"$f":"IFERROR(INDEX('Data Annex'!$K$1:$AN$4997,MATCH(H$1&\"|\"&$B23,'Data Annex'!$K$1:$K$4997,0),MATCH(H$2,'Data Annex'!$K$1:$AN$1,0)),\"\")","v":-6.5080412000000004E-2},{"$f":"IFERROR(INDEX('Data Annex'!$K$1:$AN$4997,MATCH(I$1&\"|\"&$B23,'Data Annex'!$K$1:$K$4997,0),MATCH(I$2,'Data Annex'!$K$1:$AN$1,0)),\"\")","v":0.194566405},{"$f":"IFERROR(INDEX('Data Annex'!$K$1:$AN$4997,MATCH(J$1&\"|\"&$B23,'Data Annex'!$K$1:$K$4997,0),MATCH(J$2,'Data Annex'!$K$1:$AN$1,0)),\"\")","v":0.19882636989999999},{"$f":"IFERROR(INDEX('Data Annex'!$K$1:$AN$4997,MATCH(K$1&\"|\"&$B23,'Data Annex'!$K$1:$K$4997,0),MATCH(K$2,'Data Annex'!$K$1:$AN$1,0)),\"\")","v":0.19995497509999999},{"$f":"IFERROR(INDEX('Data Annex'!$K$1:$AN$4997,MATCH(L$1&\"|\"&$B23,'Data Annex'!$K$1:$K$4997,0),MATCH(L$2,'Data Annex'!$K$1:$AN$1,0)),\"\")","v":0.20512733259999999},{"$f":"IFERROR(INDEX('Data Annex'!$K$1:$AN$4997,MATCH(M$1&\"|\"&$B23,'Data Annex'!$K$1:$K$4997,0),MATCH(M$2,'Data Annex'!$K$1:$AN$1,0)),\"\")","v":4.3021665200000003E-2},{"$f":"IFERROR(INDEX('Data Annex'!$K$1:$AN$4997,MATCH(N$1&\"|\"&$B23,'Data Annex'!$K$1:$K$4997,0),MATCH(N$2,'Data Annex'!$K$1:$AN$1,0)),\"\")","v":4.23629435E-2},{"$f":"IFERROR(INDEX('Data Annex'!$K$1:$AN$4997,MATCH(O$1&\"|\"&$B23,'Data Annex'!$K$1:$K$4997,0),MATCH(O$2,'Data Annex'!$K$1:$AN$1,0)),\"\")","v":4.2926772699999997E-2},{"$f":"IFERROR(INDEX('Data Annex'!$K$1:$AN$4997,MATCH(P$1&\"|\"&$B23,'Data Annex'!$K$1:$K$4997,0),MATCH(P$2,'Data Annex'!$K$1:$AN$1,0)),\"\")","v":4.4873854599999999E-2},{"$f":"IFERROR(INDEX('Data Annex'!$K$1:$AN$4997,MATCH(Q$1&\"|\"&$B23,'Data Annex'!$K$1:$K$4997,0),MATCH(Q$2,'Data Annex'!$K$1:$AN$1,0)),\"\")","v":-1.5729750000000001E-2},{"$f":"IFERROR(INDEX('Data Annex'!$K$1:$AN$4997,MATCH(R$1&\"|\"&$B23,'Data Annex'!$K$1:$K$4997,0),MATCH(R$2,'Data Annex'!$K$1:$AN$1,0)),\"\")","v":-6.3648899999999996E-4},{"$f":"IFERROR(INDEX('Data Annex'!$K$1:$AN$4997,MATCH(S$1&\"|\"&$B23,'Data Annex'!$K$1:$K$4997,0),MATCH(S$2,'Data Annex'!$K$1:$AN$1,0)),\"\")","v":-6.4314799999999996E-4},{"$f":"IFERROR(INDEX('Data Annex'!$K$1:$AN$4997,MATCH(T$1&\"|\"&$B23,'Data Annex'!$K$1:$K$4997,0),MATCH(T$2,'Data Annex'!$K$1:$AN$1,0)),\"\")","v":3.4094268E-3},{"$f":"IFERROR(INDEX('Data Annex'!$K$1:$AN$4997,MATCH(U$1&\"|\"&$B23,'Data Annex'!$K$1:$K$4997,0),MATCH(U$2,'Data Annex'!$K$1:$AN$1,0)),\"\")","v":0.1418107492},{"$f":"IFERROR(INDEX('Data Annex'!$K$1:$AN$4997,MATCH(V$1&\"|\"&$B23,'Data Annex'!$K$1:$K$4997,0),MATCH(V$2,'Data Annex'!$K$1:$AN$1,0)),\"\")","v":0.1019707965},{"$f":"IFERROR(INDEX('Data Annex'!$K$1:$AN$4997,MATCH(W$1&\"|\"&$B23,'Data Annex'!$K$1:$K$4997,0),MATCH(W$2,'Data Annex'!$K$1:$AN$1,0)),\"\")","v":8.4657175299999998E-2},{"$f":"IFERROR(INDEX('Data Annex'!$K$1:$AN$4997,MATCH(X$1&\"|\"&$B23,'Data Annex'!$K$1:$K$4997,0),MATCH(X$2,'Data Annex'!$K$1:$AN$1,0)),\"\")","v":9.5169424399999994E-2}]
[14,"HR",null,"HR",{"$f":"IFERROR(INDEX('Data Annex'!$K$1:$AN$4997,MATCH(E$1&\"|\"&$B24,'Data Annex'!$K$1:$K$4997,0),MATCH(E$2,'Data Annex'!$K$1:$AN$1,0)),\"\")","v":8.1736161799999998E-2},{"$f":"IFERROR(INDEX('Data Annex'!$K$1:$AN$4997,MATCH(F$1&\"|\"&$B24,'Data Annex'!$K$1:$K$4997,0),MATCH(F$2,'Data Annex'!$K$1:$AN$1,0)),\"\")","v":5.8862921700000001E-2},{"$f":"IFERROR(INDEX('Data Annex'!$K$1:$AN$4997,MATCH(G$1&\"|\"&$B24,'Data Annex'!$K$1:$K$4997,0),MATCH(G$2,'Data Annex'!$K$1:$AN$1,0)),\"\")","v":6.1036186200000002E-2},{"$f":"IFERROR(INDEX('Data Annex'!$K$1:$AN$4997,MATCH(H$1&\"|\"&$B24,'Data Annex'!$K$1:$K$4997,0),MATCH(H$2,'Data Annex'!$K$1:$AN$1,0)),\"\")","v":5.24614048E-2},{"$f":"IFERROR(INDEX('Data Annex'!$K$1:$AN$4997,MATCH(I$1&\"|\"&$B24,'Data Annex'!$K$1:$K$4997,0),MATCH(I$2,'Data Annex'!$K$1:$AN$1,0)),\"\")","v":0.16804976669999999},{"$f":"IFERROR(INDEX('Data Annex'!$K$1:$AN$4997,MATCH(J$1&\"|\"&$B24,'Data Annex'!$K$1:$K$4997,0),MATCH(J$2,'Data Annex'!$K$1:$AN$1,0)),\"\")","v":0.1651684481},{"$f":"IFERROR(INDEX('Data Annex'!$K$1:$AN$4997,MATCH(K$1&\"|\"&$B24,'Data Annex'!$K$1:$K$4997,0),MATCH(K$2,'Data Annex'!$K$1:$AN$1,0)),\"\")","v":0.16263870250000001},{"$f":"IFERROR(INDEX('Data Annex'!$K$1:$AN$4997,MATCH(L$1&\"|\"&$B24,'Data Annex'!$K$1:$K$4997,0),MATCH(L$2,'Data Annex'!$K$1:$AN$1,0)),\"\")","v":0.16108733219999999},{"$f":"IFERROR(INDEX('Data Annex'!$K$1:$AN$4997,MATCH(M$1&\"|\"&$B24,'Data Annex'!$K$1:$K$4997,0),MATCH(M$2,'Data Annex'!$K$1:$AN$1,0)),\"\")","v":6.9966808699999994E-2},{"$f":"IFERROR(INDEX('Data Annex'!$K$1:$AN$4997,MATCH(N$1&\"|\"&$B24,'Data Annex'!$K$1:$K$4997,0),MATCH(N$2,'Data Annex'!$K$1:$AN$1,0)),\"\")","v":6.7950196099999999E-2},{"$f":"IFERROR(INDEX('Data Annex'!$K$1:$AN$4997,MATCH(O$1&\"|\"&$B24,'Data Annex'!$K$1:$K$4997,0),MATCH(O$2,'Data Annex'!$K$1:$AN$1,0)),\"\")","v":6.8675354100000002E-2},{"$f":"IFERROR(INDEX('Data Annex'!$K$1:$AN$4997,MATCH(P$1&\"|\"&$B24,'Data Annex'!$K$1:$K$4997,0),MATCH(P$2,'Data Annex'!$K$1:$AN$1,0)),\"\")","v":6.9734803200000001E-2},{"$f":"IFERROR(INDEX('Data Annex'!$K$1:$AN$4997,MATCH(Q$1&\"|\"&$B24,'Data Annex'!$K$1:$K$4997,0),MATCH(Q$2,'Data Annex'!$K$1:$AN$1,0)),\"\")","v":3.1935516499999997E-2},{"$f":"IFERROR(INDEX('Data Annex'!$K$1:$AN$4997,MATCH(R$1&\"|\"&$B24,'Data Annex'!$K$1:$K$4997,0),MATCH(R$2,'Data Annex'!$K$1:$AN$1,0)),\"\")","v":1.9815241899999999E-2},{"$f":"IFERROR(INDEX('Data Annex'!$K$1:$AN$4997,MATCH(S$1&\"|\"&$B24,'Data Annex'!$K$1:$K$4997,0),MATCH(S$2,'Data Annex'!$K$1:$AN$1,0)),\"\")","v":1.4868714099999999E-2},{"$f":"IFERROR(INDEX('Data Annex'!$K$1:$AN$4997,MATCH(T$1&\"|\"&$B24,'Data Annex'!$K$1:$K$4997,0),MATCH(T$2,'Data Annex'!$K$1:$AN$1,0)),\"\")","v":1.01387734E-2},{"$f":"IFERROR(INDEX('Data Annex'!$K$1:$AN$4997,MATCH(U$1&\"|\"&$B24,'Data Annex'!$K$1:$K$4997,0),MATCH(U$2,'Data Annex'!$K$1:$AN$1,0)),\"\")","v":-2.3496316999999999E-2},{"$f":"IFERROR(INDEX('Data Annex'!$K$1:$AN$4997,MATCH(V$1&\"|\"&$B24,'Data Annex'!$K$1:$K$4997,0),MATCH(V$2,'Data Annex'!$K$1:$AN$1,0)),\"\")","v":3.6778612999999998E-3},{"$f":"IFERROR(INDEX('Data Annex'!$K$1:$AN$4997,MATCH(W$1&\"|\"&$B24,'Data Annex'!$K$1:$K$4997,0),MATCH(W$2,'Data Annex'!$K$1:$AN$1,0)),\"\")","v":6.6902853000000003E-3},{"$f":"IFERROR(INDEX('Data Annex'!$K$1:$AN$4997,MATCH(X$1&\"|\"&$B24,'Data Annex'!$K$1:$K$4997,0),MATCH(X$2,'Data Annex'!$K$1:$AN$1,0)),\"\")","v":7.2386587999999997E-3}]
[15,"HU",null,"HU",{"$f":"IFERROR(INDEX('Data Annex'!$K$1:$AN$4997,MATCH(E$1&\"|\"&$B25,'Data Annex'!$K$1:$K$4997,0),MATCH(E$2,'Data Annex'!$K$1:$AN$1,0)),\"\")","v":-1.0753259999999999E-3},{"$f":"IFERROR(INDEX('Data Annex'!$K$1:$AN$4997,MATCH(F$1&\"|\"&$B25,'Data Annex'!$K$1:$K$4997,0),MATCH(F$2,'Data Annex'!$K$1:$AN$1,0)),\"\")","v":5.71192071E-2},{"$f":"IFERROR(INDEX('Data Annex'!$K$1:$AN$4997,MATCH(G$1&\"|\"&$B25,'Data Annex'!$K$1:$K$4997,0),MATCH(G$2,'Data Annex'!$K$1:$AN$1,0)),\"\")","v":9.6827953999999994E-2},{"$f":"IFERROR(INDEX('Data Annex'!$K$1:$AN$4997,MATCH(H$1&\"|\"&$B25,'Data Annex'!$K$1:$K$4997,0),MATCH(H$2,'Data Annex'!$K$1:$AN$1,0)),\"\")","v":9.8418012299999996E-2},{"$f":"IFERROR(INDEX('Data Annex'!$K$1:$AN$4997,MATCH(I$1&\"|\"&$B25,'Data Annex'!$K$1:$K$4997,0),MATCH(I$2,'Data Annex'!$K$1:$AN$1,0)),\"\")","v":0.29742225979999998},{"$f":"IFERROR(INDEX('Data Annex'!$K$1:$AN$4997,MATCH(J$1&\"|\"&$B25,'Data Annex'!$K$1:$K$4997,0),MATCH(J$2,'Data Annex'!$K$1:$AN$1,0)),\"\")","v":0.29075722570000001},{"$f":"IFERROR(INDEX('Data Annex'!$K$1:$AN$4997,MATCH(K$1&\"|\"&$B25,'Data Annex'!$K$1:$K$4997,0),MATCH(K$2,'Data Annex'!$K$1:$AN$1,0)),\"\")","v":0.28177642089999999},{"$f":"IFERROR(INDEX('Data Annex'!$K$1:$AN$4997,MATCH(L$1&\"|\"&$B25,'Data Annex'!$K$1:$K$4997,0),MATCH(L$2,'Data Annex'!$K$1:$AN$1,0)),\"\")","v":0.27780374870000002},{"$f":"IFERROR(INDEX('Data Annex'!$K$1:$AN$4997,MATCH(M$1&\"|\"&$B25,'Data Annex'!$K$1:$K$4997,0),MATCH(M$2,'Data Annex'!$K$1:$AN$1,0)),\"\")","v":0.1541020665},{"$f":"IFERROR(INDEX('Data Annex'!$K$1:$AN$4997,MATCH(N$1&\"|\"&$B25,'Data Annex'!$K$1:$K$4997,0),MATCH(N$2,'Data Annex'!$K$1:$AN$1,0)),\"\")","v":0.14926146279999999},{"$f":"IFERROR(INDEX('Data Annex'!$K$1:$AN$4997,MATCH(O$1&\"|\"&$B25,'Data Annex'!$K$1:$K$4997,0),MATCH(O$2,'Data Annex'!$K$1:$AN$1,0)),\"\")","v":0.14708708049999999},{"$f":"IFERROR(INDEX('Data Annex'!$K$1:$AN$4997,MATCH(P$1&\"|\"&$B25,'Data Annex'!$K$1:$K$4997,0),MATCH(P$2,'Data Annex'!$K$1:$AN$1,0)),\"\")","v":0.14911962840000001},{"$f":"IFERROR(INDEX('Data Annex'!$K$1:$AN$4997,MATCH(Q$1&\"|\"&$B25,'Data Annex'!$K$1:$K$4997,0),MATCH(Q$2,'Data Annex'!$K$1:$AN$1,0)),\"\")","v":-3.4822049000000001E-2},{"$f":"IFERROR(INDEX('Data Annex'!$K$1:$AN$4997,MATCH(R$1&\"|\"&$B25,'Data Annex'!$K$1:$K$4997,0),MATCH(R$2,'Data Annex'!$K$1:$AN$1,0)),\"\")","v":1.4248853E-3},{"$f":"IFERROR(INDEX('Data Annex'!$K$1:$AN$4997,MATCH(S$1&\"|\"&$B25,'Data Annex'!$K$1:$K$4997,0),MATCH(S$2,'Data Annex'!$K$1:$AN$1,0)),\"\")","v":-2.9480270000000002E-3},{"$f":"IFERROR(INDEX('Data Annex'!$K$1:$AN$4997,MATCH(T$1&\"|\"&$B25,'Data Annex'!$K$1:$K$4997,0),MATCH(T$2,'Data Annex'!$K$1:$AN$1,0)),\"\")","v":-4.6163200000000001E-4},{"$f":"IFERROR(INDEX('Data Annex'!$K$1:$AN$4997,MATCH(U$1&\"|\"&$B25,'Data Annex'!$K$1:$K$4997,0),MATCH(U$2,'Data Annex'!$K$1:$AN$1,0)),\"\")","v":6.2417575199999999E-2},{"$f":"IFERROR(INDEX('Data Annex'!$K$1:$AN$4997,MATCH(V$1&\"|\"&$B25,'Data Annex'!$K$1:$K$4997,0),MATCH(V$2,'Data Annex'!$K$1:$AN$1,0)),\"\")","v":2.3768173399999998E-2},{"$f":"IFERROR(INDEX('Data Annex'!$K$1:$AN$4997,MATCH(W$1&\"|\"&$B25,'Data Annex'!$K$1:$K$4997,0),MATCH(W$2,'Data Annex'!$K$1:$AN$1,0)),\"\")","v":3.3640283399999998E-2},{"$f":"IFERROR(INDEX('Data Annex'!$K$1:$AN$4997,MATCH(X$1&\"|\"&$B25,'Data Annex'!$K$1:$K$4997,0),MATCH(X$2,'Data Annex'!$K$1:$AN$1,0)),\"\")","v":2.74970966E-2}]
[16,"IE",null,"IE",{"$f":"IFERROR(INDEX('Data Annex'!$K$1:$AN$4997,MATCH(E$1&\"|\"&$B26,'Data Annex'!$K$1:$K$4997,0),MATCH(E$2,'Data Annex'!$K$1:$AN$1,0)),\"\")","v":5.3457857000000003E-3},{"$f":"IFERROR(INDEX('Data Annex'!$K$1:$AN$4997,MATCH(F$1&\"|\"&$B26,'Data Annex'!$K$1:$K$4997,0),MATCH(F$2,'Data Annex'!$K$1:$AN$1,0)),\"\")","v":-8.4490783999999999E-2},{"$f":"IFERROR(INDEX('Data Annex'!$K$1:$AN$4997,MATCH(G$1&\"|\"&$B26,'Data Annex'!$K$1:$K$4997,0),MATCH(G$2,'Data Annex'!$K$1:$AN$1,0)),\"\")","v":-4.5122711000000003E-2},{"$f":"IFERROR(INDEX('Data Annex'!$K$1:$AN$4997,MATCH(H$1&\"|\"&$B26,'Data Annex'!$K$1:$K$4997,0),MATCH(H$2,'Data Annex'!$K$1:$AN$1,0)),\"\")","v":-3.2875134E-2},{"$f":"IFERROR(INDEX('Data Annex'!$K$1:$AN$4997,MATCH(I$1&\"|\"&$B26,'Data Annex'!$K$1:$K$4997,0),MATCH(I$2,'Data Annex'!$K$1:$AN$1,0)),\"\")","v":0.13502661960000001},{"$f":"IFERROR(INDEX('Data Annex'!$K$1:$AN$4997,MATCH(J$1&\"|\"&$B26,'Data Annex'!$K$1:$K$4997,0),MATCH(J$2,'Data Annex'!$K$1:$AN$1,0)),\"\")","v":0.13481018759999999},{"$f":"IFERROR(INDEX('Data Annex'!$K$1:$AN$4997,MATCH(K$1&\"|\"&$B26,'Data Annex'!$K$1:$K$4997,0),MATCH(K$2,'Data Annex'!$K$1:$AN$1,0)),\"\")","v":0.13337088189999999},{"$f":"IFERROR(INDEX('Data Annex'!$K$1:$AN$4997,MATCH(L$1&\"|\"&$B26,'Data Annex'!$K$1:$K$4997,0),MATCH(L$2,'Data Annex'!$K$1:$AN$1,0)),\"\")","v":0.13274485280000001},{"$f":"IFERROR(INDEX('Data Annex'!$K$1:$AN$4997,MATCH(M$1&\"|\"&$B26,'Data Annex'!$K$1:$K$4997,0),MATCH(M$2,'Data Annex'!$K$1:$AN$1,0)),\"\")","v":5.3899754899999999E-2},{"$f":"IFERROR(INDEX('Data Annex'!$K$1:$AN$4997,MATCH(N$1&\"|\"&$B26,'Data Annex'!$K$1:$K$4997,0),MATCH(N$2,'Data Annex'!$K$1:$AN$1,0)),\"\")","v":4.8545286100000001E-2},{"$f":"IFERROR(INDEX('Data Annex'!$K$1:$AN$4997,MATCH(O$1&\"|\"&$B26,'Data Annex'!$K$1:$K$4997,0),MATCH(O$2,'Data Annex'!$K$1:$AN$1,0)),\"\")","v":4.6535557200000001E-2},{"$f":"IFERROR(INDEX('Data Annex'!$K$1:$AN$4997,MATCH(P$1&\"|\"&$B26,'Data Annex'!$K$1:$K$4997,0),MATCH(P$2,'Data Annex'!$K$1:$AN$1,0)),\"\")","v":4.7418198500000001E-2},{"$f":"IFERROR(INDEX('Data Annex'!$K$1:$AN$4997,MATCH(Q$1&\"|\"&$B26,'Data Annex'!$K$1:$K$4997,0),MATCH(Q$2,'Data Annex'!$K$1:$AN$1,0)),\"\")","v":-1.3967848E-2},{"$f":"IFERROR(INDEX('Data Annex'!$K$1:$AN$4997,MATCH(R$1&\"|\"&$B26,'Data Annex'!$K$1:$K$4997,0),MATCH(R$2,'Data Annex'!$K$1:$AN$1,0)),\"\")","v":7.7072837000000003E-3},{"$f":"IFERROR(INDEX('Data Annex'!$K$1:$AN$4997,MATCH(S$1&\"|\"&$B26,'Data Annex'!$K$1:$K$4997,0),MATCH(S$2,'Data Annex'!$K$1:$AN$1,0)),\"\")","v":9.8770695000000002E-3},{"$f":"IFERROR(INDEX('Data Annex'!$K$1:$AN$4997,MATCH(T$1&\"|\"&$B26,'Data Annex'!$K$1:$K$4997,0),MATCH(T$2,'Data Annex'!$K$1:$AN$1,0)),\"\")","v":9.5735017000000006E-3},{"$f":"IFERROR(INDEX('Data Annex'!$K$1:$AN$4997,MATCH(U$1&\"|\"&$B26,'Data Annex'!$K$1:$K$4997,0),MATCH(U$2,'Data Annex'!$K$1:$AN$1,0)),\"\")","v":2.11510772E-2},{"$f":"IFERROR(INDEX('Data Annex'!$K$1:$AN$4997,MATCH(V$1&\"|\"&$B26,'Data Annex'!$K$1:$K$4997,0),MATCH(V$2,'Data Annex'!$K$1:$AN$1,0)),\"\")","v":1.0867562900000001E-2},{"$f":"IFERROR(INDEX('Data Annex'!$K$1:$AN$4997,MATCH(W$1&\"|\"&$B26,'Data Annex'!$K$1:$K$4997,0),MATCH(W$2,'Data Annex'!$K$1:$AN$1,0)),\"\")","v":1.4609922500000001E-2},{"$f":"IFERROR(INDEX('Data Annex'!$K$1:$AN$4997,MATCH(X$1&\"|\"&$B26,'Data Annex'!$K$1:$K$4997,0),MATCH(X$2,'Data Annex'!$K$1:$AN$1,0)),\"\")","v":1.8109139699999999E-2}]
[17,"IS",null,"IS",{"$f":"IFERROR(INDEX('Data Annex'!$K$1:$AN$4997,MATCH(E$1&\"|\"&$B27,'Data Annex'!$K$1:$K$4997,0),MATCH(E$2,'Data Annex'!$K$1:$AN$1,0)),\"\")","v":-4.3644084999999999E-2},{"$f":"IFERROR(INDEX('Data Annex'!$K$1:$AN$4997,MATCH(F$1&\"|\"&$B27,'Data Annex'!$K$1:$K$4997,0),MATCH(F$2,'Data Annex'!$K$1:$AN$1,0)),\"\")","v":-2.05039E-3},{"$f":"IFERROR(INDEX('Data Annex'!$K$1:$AN$4997,MATCH(G$1&\"|\"&$B27,'Data Annex'!$K$1:$K$4997,0),MATCH(G$2,'Data Annex'!$K$1:$AN$1,0)),\"\")","v":2.0840379900000001E-2},{"$f":"IFERROR(INDEX('Data Annex'!$K$1:$AN$4997,MATCH(H$1&\"|\"&$B27,'Data Annex'!$K$1:$K$4997,0),MATCH(H$2,'Data Annex'!$K$1:$AN$1,0)),\"\")","v":4.3990170699999998E-2},{"$f":"IFERROR(INDEX('Data Annex'!$K$1:$AN$4997,MATCH(I$1&\"|\"&$B27,'Data Annex'!$K$1:$K$4997,0),MATCH(I$2,'Data Annex'!$K$1:$AN$1,0)),\"\")","v":0.1536509264},{"$f":"IFERROR(INDEX('Data Annex'!$K$1:$AN$4997,MATCH(J$1&\"|\"&$B27,'Data Annex'!$K$1:$K$4997,0),MATCH(J$2,'Data Annex'!$K$1:$AN$1,0)),\"\")","v":0.15413841810000001},{"$f":"IFERROR(INDEX('Data Annex'!$K$1:$AN$4997,MATCH(K$1&\"|\"&$B27,'Data Annex'!$K$1:$K$4997,0),MATCH(K$2,'Data Annex'!$K$1:$AN$1,0)),\"\")","v":0.15005166410000001},{"$f":"IFERROR(INDEX('Data Annex'!$K$1:$AN$4997,MATCH(L$1&\"|\"&$B27,'Data Annex'!$K$1:$K$4997,0),MATCH(L$2,'Data Annex'!$K$1:$AN$1,0)),\"\")","v":0.1517443413},{"$f":"IFERROR(INDEX('Data Annex'!$K$1:$AN$4997,MATCH(M$1&\"|\"&$B27,'Data Annex'!$K$1:$K$4997,0),MATCH(M$2,'Data Annex'!$K$1:$AN$1,0)),\"\")","v":4.5692903700000002E-2},{"$f":"IFERROR(INDEX('Data Annex'!$K$1:$AN$4997,MATCH(N$1&\"|\"&$B27,'Data Annex'!$K$1:$K$4997,0),MATCH(N$2,'Data Annex'!$K$1:$AN$1,0)),\"\")","v":4.2920003200000001E-2},{"$f":"IFERROR(INDEX('Data Annex'!$K$1:$AN$4997,MATCH(O$1&\"|\"&$B27,'Data Annex'!$K$1:$K$4997,0),MATCH(O$2,'Data Annex'!$K$1:$AN$1,0)),\"\")","v":4.2795125900000001E-2},{"$f":"IFERROR(INDEX('Data Annex'!$K$1:$AN$4997,MATCH(P$1&\"|\"&$B27,'Data Annex'!$K$1:$K$4997,0),MATCH(P$2,'Data Annex'!$K$1:$AN$1,0)),\"\")","v":4.4080004899999997E-2},{"$f":"IFERROR(INDEX('Data Annex'!$K$1:$AN$4997,MATCH(Q$1&\"|\"&$B27,'Data Annex'!$K$1:$K$4997,0),MATCH(Q$2,'Data Annex'!$K$1:$AN$1,0)),\"\")","v":-3.4216902E-2},{"$f":"IFERROR(INDEX('Data Annex'!$K$1:$AN$4997,MATCH(R$1&\"|\"&$B27,'Data Annex'!$K$1:$K$4997,0),MATCH(R$2,'Data Annex'!$K$1:$AN$1,0)),\"\")","v":-2.6695E-3},{"$f":"IFERROR(INDEX('Data Annex'!$K$1:$AN$4997,MATCH(S$1&\"|\"&$B27,'Data Annex'!$K$1:$K$4997,0),MATCH(S$2,'Data Annex'!$K$1:$AN$1,0)),\"\")","v":-3.3642239999999999E-3},{"$f":"IFERROR(INDEX('Data Annex'!$K$1:$AN$4997,MATCH(T$1&\"|\"&$B27,'Data Annex'!$K$1:$K$4997,0),MATCH(T$2,'Data Annex'!$K$1:$AN$1,0)),\"\")","v":9.8344340999999991E-3},{"$f":"IFERROR(INDEX('Data Annex'!$K$1:$AN$4997,MATCH(U$1&\"|\"&$B27,'Data Annex'!$K$1:$K$4997,0),MATCH(U$2,'Data Annex'!$K$1:$AN$1,0)),\"\")","v":2.257114E-4},{"$f":"IFERROR(INDEX('Data Annex'!$K$1:$AN$4997,MATCH(V$1&\"|\"&$B27,'Data Annex'!$K$1:$K$4997,0),MATCH(V$2,'Data Annex'!$K$1:$AN$1,0)),\"\")","v":5.5407312999999998E-3},{"$f":"IFERROR(INDEX('Data Annex'!$K$1:$AN$4997,MATCH(W$1&\"|\"&$B27,'Data Annex'!$K$1:$K$4997,0),MATCH(W$2,'Data Annex'!$K$1:$AN$1,0)),\"\")","v":8.6871819000000003E-3},{"$f":"IFERROR(INDEX('Data Annex'!$K$1:$AN$4997,MATCH(X$1&\"|\"&$B27,'Data Annex'!$K$1:$K$4997,0),MATCH(X$2,'Data Annex'!$K$1:$AN$1,0)),\"\")","v":8.2143644000000002E-3}]
[18,"IT",null,"IT",{"$f":"IFERROR(INDEX('Data Annex'!$K$1:$AN$4997,MATCH(E$1&\"|\"&$B28,'Data Annex'!$K$1:$K$4997,0),MATCH(E$2,'Data Annex'!$K$1:$AN$1,0)),\"\")","v":-2.1355348999999999E-2},{"$f":"IFERROR(INDEX('Data Annex'!$K$1:$AN$4997,MATCH(F$1&\"|\"&$B28,'Data Annex'!$K$1:$K$4997,0),MATCH(F$2,'Data Annex'!$K$1:$AN$1,0)),\"\")","v":2.9970444000000001E-3},{"$f":"IFERROR(INDEX('Data Annex'!$K$1:$AN$4997,MATCH(G$1&\"|\"&$B28,'Data Annex'!$K$1:$K$4997,0),MATCH(G$2,'Data Annex'!$K$1:$AN$1,0)),\"\")","v":3.8358380599999999E-2},{"$f":"IFERROR(INDEX('Data Annex'!$K$1:$AN$4997,MATCH(H$1&\"|\"&$B28,'Data Annex'!$K$1:$K$4997,0),MATCH(H$2,'Data Annex'!$K$1:$AN$1,0)),\"\")","v":4.2789163999999999E-3},{"$f":"IFERROR(INDEX('Data Annex'!$K$1:$AN$4997,MATCH(I$1&\"|\"&$B28,'Data Annex'!$K$1:$K$4997,0),MATCH(I$2,'Data Annex'!$K$1:$AN$1,0)),\"\")","v":0.1576282597},{"$f":"IFERROR(INDEX('Data Annex'!$K$1:$AN$4997,MATCH(J$1&\"|\"&$B28,'Data Annex'!$K$1:$K$4997,0),MATCH(J$2,'Data Annex'!$K$1:$AN$1,0)),\"\")","v":0.1553187087},{"$f":"IFERROR(INDEX('Data Annex'!$K$1:$AN$4997,MATCH(K$1&\"|\"&$B28,'Data Annex'!$K$1:$K$4997,0),MATCH(K$2,'Data Annex'!$K$1:$AN$1,0)),\"\")","v":0.15242933310000001},{"$f":"IFERROR(INDEX('Data Annex'!$K$1:$AN$4997,MATCH(L$1&\"|\"&$B28,'Data Annex'!$K$1:$K$4997,0),MATCH(L$2,'Data Annex'!$K$1:$AN$1,0)),\"\")","v":0.1548486617},{"$f":"IFERROR(INDEX('Data Annex'!$K$1:$AN$4997,MATCH(M$1&\"|\"&$B28,'Data Annex'!$K$1:$K$4997,0),MATCH(M$2,'Data Annex'!$K$1:$AN$1,0)),\"\")","v":0.1239825044},{"$f":"IFERROR(INDEX('Data Annex'!$K$1:$AN$4997,MATCH(N$1&\"|\"&$B28,'Data Annex'!$K$1:$K$4997,0),MATCH(N$2,'Data Annex'!$K$1:$AN$1,0)),\"\")","v":0.1174236768},{"$f":"IFERROR(INDEX('Data Annex'!$K$1:$AN$4997,MATCH(O$1&\"|\"&$B28,'Data Annex'!$K$1:$K$4997,0),MATCH(O$2,'Data Annex'!$K$1:$AN$1,0)),\"\")","v":0.1145427618},{"$f":"IFERROR(INDEX('Data Annex'!$K$1:$AN$4997,MATCH(P$1&\"|\"&$B28,'Data Annex'!$K$1:$K$4997,0),MATCH(P$2,'Data Annex'!$K$1:$AN$1,0)),\"\")","v":0.1204416468},{"$f":"IFERROR(INDEX('Data Annex'!$K$1:$AN$4997,MATCH(Q$1&\"|\"&$B28,'Data Annex'!$K$1:$K$4997,0),MATCH(Q$2,'Data Annex'!$K$1:$AN$1,0)),\"\")","v":-3.1668909999999998E-3},{"$f":"IFERROR(INDEX('Data Annex'!$K$1:$AN$4997,MATCH(R$1&\"|\"&$B28,'Data Annex'!$K$1:$K$4997,0),MATCH(R$2,'Data Annex'!$K$1:$AN$1,0)),\"\")","v":8.9919373000000007E-3},{"$f":"IFERROR(INDEX('Data Annex'!$K$1:$AN$4997,MATCH(S$1&\"|\"&$B28,'Data Annex'!$K$1:$K$4997,0),MATCH(S$2,'Data Annex'!$K$1:$AN$1,0)),\"\")","v":9.8502031999999993E-3},{"$f":"IFERROR(INDEX('Data Annex'!$K$1:$AN$4997,MATCH(T$1&\"|\"&$B28,'Data Annex'!$K$1:$K$4997,0),MATCH(T$2,'Data Annex'!$K$1:$AN$1,0)),\"\")","v":7.8247283999999997E-3},{"$f":"IFERROR(INDEX('Data Annex'!$K$1:$AN$4997,MATCH(U$1&\"|\"&$B28,'Data Annex'!$K$1:$K$4997,0),MATCH(U$2,'Data Annex'!$K$1:$AN$1,0)),\"\")","v":6.2880915800000006E-2},{"$f":"IFERROR(INDEX('Data Annex'!$K$1:$AN$4997,MATCH(V$1&\"|\"&$B28,'Data Annex'!$K$1:$K$4997,0),MATCH(V$2,'Data Annex'!$K$1:$AN$1,0)),\"\")","v":3.4310785099999998E-2},{"$f":"IFERROR(INDEX('Data Annex'!$K$1:$AN$4997,MATCH(W$1&\"|\"&$B28,'Data Annex'!$K$1:$K$4997,0),MATCH(W$2,'Data Annex'!$K$1:$AN$1,0)),\"\")","v":3.1595607400000003E-2},{"$f":"IFERROR(INDEX('Data Annex'!$K$1:$AN$4997,MATCH(X$1&\"|\"&$B28,'Data Annex'!$K$1:$K$4997,0),MATCH(X$2,'Data Annex'!$K$1:$AN$1,0)),\"\")","v":3.0178518200000001E-2}]
[19,"LT",null,"LT",{"$f":"IFERROR(INDEX('Data Annex'!$K$1:$AN$4997,MATCH(E$1&\"|\"&$B29,'Data Annex'!$K$1:$K$4997,0),MATCH(E$2,'Data Annex'!$K$1:$AN$1,0)),\"\")","v":0.11442226379999999},{"$f":"IFERROR(INDEX('Data Annex'!$K$1:$AN$4997,MATCH(F$1&\"|\"&$B29,'Data Annex'!$K$1:$K$4997,0),MATCH(F$2,'Data Annex'!$K$1:$AN$1,0)),\"\")","v":0.11253671129999999},{"$f":"IFERROR(INDEX('Data Annex'!$K$1:$AN$4997,MATCH(G$1&\"|\"&$B29,'Data Annex'!$K$1:$K$4997,0),MATCH(G$2,'Data Annex'!$K$1:$AN$1,0)),\"\")","v":0.1158441072},{"$f":"IFERROR(INDEX('Data Annex'!$K$1:$AN$4997,MATCH(H$1&\"|\"&$B29,'Data Annex'!$K$1:$K$4997,0),MATCH(H$2,'Data Annex'!$K$1:$AN$1,0)),\"\")","v":0.11203737530000001},{"$f":"IFERROR(INDEX('Data Annex'!$K$1:$AN$4997,MATCH(I$1&\"|\"&$B29,'Data Annex'!$K$1:$K$4997,0),MATCH(I$2,'Data Annex'!$K$1:$AN$1,0)),\"\")","v":0.17329246130000001},{"$f":"IFERROR(INDEX('Data Annex'!$K$1:$AN$4997,MATCH(J$1&\"|\"&$B29,'Data Annex'!$K$1:$K$4997,0),MATCH(J$2,'Data Annex'!$K$1:$AN$1,0)),\"\")","v":0.17433914780000001},{"$f":"IFERROR(INDEX('Data Annex'!$K$1:$AN$4997,MATCH(K$1&\"|\"&$B29,'Data Annex'!$K$1:$K$4997,0),MATCH(K$2,'Data Annex'!$K$1:$AN$1,0)),\"\")","v":0.16956229010000001},{"$f":"IFERROR(INDEX('Data Annex'!$K$1:$AN$4997,MATCH(L$1&\"|\"&$B29,'Data Annex'!$K$1:$K$4997,0),MATCH(L$2,'Data Annex'!$K$1:$AN$1,0)),\"\")","v":0.16308930090000001},{"$f":"IFERROR(INDEX('Data Annex'!$K$1:$AN$4997,MATCH(M$1&\"|\"&$B29,'Data Annex'!$K$1:$K$4997,0),MATCH(M$2,'Data Annex'!$K$1:$AN$1,0)),\"\")","v":8.8550488199999999E-2},{"$f":"IFERROR(INDEX('Data Annex'!$K$1:$AN$4997,MATCH(N$1&\"|\"&$B29,'Data Annex'!$K$1:$K$4997,0),MATCH(N$2,'Data Annex'!$K$1:$AN$1,0)),\"\")","v":8.5940438399999999E-2},{"$f":"IFERROR(INDEX('Data Annex'!$K$1:$AN$4997,MATCH(O$1&\"|\"&$B29,'Data Annex'!$K$1:$K$4997,0),MATCH(O$2,'Data Annex'!$K$1:$AN$1,0)),\"\")","v":8.7230235200000006E-2},{"$f":"IFERROR(INDEX('Data Annex'!$K$1:$AN$4997,MATCH(P$1&\"|\"&$B29,'Data Annex'!$K$1:$K$4997,0),MATCH(P$2,'Data Annex'!$K$1:$AN$1,0)),\"\")","v":8.7759596400000001E-2},{"$f":"IFERROR(INDEX('Data Annex'!$K$1:$AN$4997,MATCH(Q$1&\"|\"&$B29,'Data Annex'!$K$1:$K$4997,0),MATCH(Q$2,'Data Annex'!$K$1:$AN$1,0)),\"\")","v":9.2851399999999997E-4},{"$f":"IFERROR(INDEX('Data Annex'!$K$1:$AN$4997,MATCH(R$1&\"|\"&$B29,'Data Annex'!$K$1:$K$4997,0),MATCH(R$2,'Data Annex'!$K$1:$AN$1,0)),\"\")","v":9.3913477000000002E-3},{"$f":"IFERROR(INDEX('Data Annex'!$K$1:$AN$4997,MATCH(S$1&\"|\"&$B29,'Data Annex'!$K$1:$K$4997,0),MATCH(S$2,'Data Annex'!$K$1:$AN$1,0)),\"\")","v":1.10920585E-2},{"$f":"IFERROR(INDEX('Data Annex'!$K$1:$AN$4997,MATCH(T$1&\"|\"&$B29,'Data Annex'!$K$1:$K$4997,0),MATCH(T$2,'Data Annex'!$K$1:$AN$1,0)),\"\")","v":1.23755393E-2},{"$f":"IFERROR(INDEX('Data Annex'!$K$1:$AN$4997,MATCH(U$1&\"|\"&$B29,'Data Annex'!$K$1:$K$4997,0),MATCH(U$2,'Data Annex'!$K$1:$AN$1,0)),\"\")","v":1.28303749E-2},{"$f":"IFERROR(INDEX('Data Annex'!$K$1:$AN$4997,MATCH(V$1&\"|\"&$B29,'Data Annex'!$K$1:$K$4997,0),MATCH(V$2,'Data Annex'!$K$1:$AN$1,0)),\"\")","v":1.35957635E-2},{"$f":"IFERROR(INDEX('Data Annex'!$K$1:$AN$4997,MATCH(W$1&\"|\"&$B29,'Data Annex'!$K$1:$K$4997,0),MATCH(W$2,'Data Annex'!$K$1:$AN$1,0)),\"\")","v":1.3317618E-2},{"$f":"IFERROR(INDEX('Data Annex'!$K$1:$AN$4997,MATCH(X$1&\"|\"&$B29,'Data Annex'!$K$1:$K$4997,0),MATCH(X$2,'Data Annex'!$K$1:$AN$1,0)),\"\")","v":1.44077463E-2}]
[20,"LU",null,"LU",{"$f":"IFERROR(INDEX('Data Annex'!$K$1:$AN$4997,MATCH(E$1&\"|\"&$B30,'Data Annex'!$K$1:$K$4997,0),MATCH(E$2,'Data Annex'!$K$1:$AN$1,0)),\"\")","v":4.9086786100000002E-2},{"$f":"IFERROR(INDEX('Data Annex'!$K$1:$AN$4997,MATCH(F$1&\"|\"&$B30,'Data Annex'!$K$1:$K$4997,0),MATCH(F$2,'Data Annex'!$K$1:$AN$1,0)),\"\")","v":6.1083406299999997E-2},{"$f":"IFERROR(INDEX('Data Annex'!$K$1:$AN$4997,MATCH(G$1&\"|\"&$B30,'Data Annex'!$K$1:$K$4997,0),MATCH(G$2,'Data Annex'!$K$1:$AN$1,0)),\"\")","v":5.7906577000000001E-2},{"$f":"IFERROR(INDEX('Data Annex'!$K$1:$AN$4997,MATCH(H$1&\"|\"&$B30,'Data Annex'!$K$1:$K$4997,0),MATCH(H$2,'Data Annex'!$K$1:$AN$1,0)),\"\")","v":5.5715761000000003E-2},{"$f":"IFERROR(INDEX('Data Annex'!$K$1:$AN$4997,MATCH(I$1&\"|\"&$B30,'Data Annex'!$K$1:$K$4997,0),MATCH(I$2,'Data Annex'!$K$1:$AN$1,0)),\"\")","v":0.1396803107},{"$f":"IFERROR(INDEX('Data Annex'!$K$1:$AN$4997,MATCH(J$1&\"|\"&$B30,'Data Annex'!$K$1:$K$4997,0),MATCH(J$2,'Data Annex'!$K$1:$AN$1,0)),\"\")","v":0.1379233684},{"$f":"IFERROR(INDEX('Data Annex'!$K$1:$AN$4997,MATCH(K$1&\"|\"&$B30,'Data Annex'!$K$1:$K$4997,0),MATCH(K$2,'Data Annex'!$K$1:$AN$1,0)),\"\")","v":0.1335087512},{"$f":"IFERROR(INDEX('Data Annex'!$K$1:$AN$4997,MATCH(L$1&\"|\"&$B30,'Data Annex'!$K$1:$K$4997,0),MATCH(L$2,'Data Annex'!$K$1:$AN$1,0)),\"\")","v":0.13112811899999999},{"$f":"IFERROR(INDEX('Data Annex'!$K$1:$AN$4997,MATCH(M$1&\"|\"&$B30,'Data Annex'!$K$1:$K$4997,0),MATCH(M$2,'Data Annex'!$K$1:$AN$1,0)),\"\")","v":9.2661505599999999E-2},{"$f":"IFERROR(INDEX('Data Annex'!$K$1:$AN$4997,MATCH(N$1&\"|\"&$B30,'Data Annex'!$K$1:$K$4997,0),MATCH(N$2,'Data Annex'!$K$1:$AN$1,0)),\"\")","v":8.6879628E-2},{"$f":"IFERROR(INDEX('Data Annex'!$K$1:$AN$4997,MATCH(O$1&\"|\"&$B30,'Data Annex'!$K$1:$K$4997,0),MATCH(O$2,'Data Annex'!$K$1:$AN$1,0)),\"\")","v":8.4347375299999999E-2},{"$f":"IFERROR(INDEX('Data Annex'!$K$1:$AN$4997,MATCH(P$1&\"|\"&$B30,'Data Annex'!$K$1:$K$4997,0),MATCH(P$2,'Data Annex'!$K$1:$AN$1,0)),\"\")","v":8.4176385399999998E-2},{"$f":"IFERROR(INDEX('Data Annex'!$K$1:$AN$4997,MATCH(Q$1&\"|\"&$B30,'Data Annex'!$K$1:$K$4997,0),MATCH(Q$2,'Data Annex'!$K$1:$AN$1,0)),\"\")","v":5.2240636000000003E-3},{"$f":"IFERROR(INDEX('Data Annex'!$K$1:$AN$4997,MATCH(R$1&\"|\"&$B30,'Data Annex'!$K$1:$K$4997,0),MATCH(R$2,'Data Annex'!$K$1:$AN$1,0)),\"\")","v":3.1901596999999999E-3},{"$f":"IFERROR(INDEX('Data Annex'!$K$1:$AN$4997,MATCH(S$1&\"|\"&$B30,'Data Annex'!$K$1:$K$4997,0),MATCH(S$2,'Data Annex'!$K$1:$AN$1,0)),\"\")","v":6.5427384999999999E-3},{"$f":"IFERROR(INDEX('Data Annex'!$K$1:$AN$4997,MATCH(T$1&\"|\"&$B30,'Data Annex'!$K$1:$K$4997,0),MATCH(T$2,'Data Annex'!$K$1:$AN$1,0)),\"\")","v":8.8293613999999992E-3},{"$f":"IFERROR(INDEX('Data Annex'!$K$1:$AN$4997,MATCH(U$1&\"|\"&$B30,'Data Annex'!$K$1:$K$4997,0),MATCH(U$2,'Data Annex'!$K$1:$AN$1,0)),\"\")","v":1.12296629E-2},{"$f":"IFERROR(INDEX('Data Annex'!$K$1:$AN$4997,MATCH(V$1&\"|\"&$B30,'Data Annex'!$K$1:$K$4997,0),MATCH(V$2,'Data Annex'!$K$1:$AN$1,0)),\"\")","v":3.0093933199999999E-2},{"$f":"IFERROR(INDEX('Data Annex'!$K$1:$AN$4997,MATCH(W$1&\"|\"&$B30,'Data Annex'!$K$1:$K$4997,0),MATCH(W$2,'Data Annex'!$K$1:$AN$1,0)),\"\")","v":2.51758139E-2},{"$f":"IFERROR(INDEX('Data Annex'!$K$1:$AN$4997,MATCH(X$1&\"|\"&$B30,'Data Annex'!$K$1:$K$4997,0),MATCH(X$2,'Data Annex'!$K$1:$AN$1,0)),\"\")","v":2.4029583899999998E-2}]
[21,"LV",null,"LV",{"$f":"IFERROR(INDEX('Data Annex'!$K$1:$AN$4997,MATCH(E$1&\"|\"&$B31,'Data Annex'!$K$1:$K$4997,0),MATCH(E$2,'Data Annex'!$K$1:$AN$1,0)),\"\")","v":5.3688746000000002E-2},{"$f":"IFERROR(INDEX('Data Annex'!$K$1:$AN$4997,MATCH(F$1&\"|\"&$B31,'Data Annex'!$K$1:$K$4997,0),MATCH(F$2,'Data Annex'!$K$1:$AN$1,0)),\"\")","v":3.3062984599999998E-2},{"$f":"IFERROR(INDEX('Data Annex'!$K$1:$AN$4997,MATCH(G$1&\"|\"&$B31,'Data Annex'!$K$1:$K$4997,0),MATCH(G$2,'Data Annex'!$K$1:$AN$1,0)),\"\")","v":5.5817956199999998E-2},{"$f":"IFERROR(INDEX('Data Annex'!$K$1:$AN$4997,MATCH(H$1&\"|\"&$B31,'Data Annex'!$K$1:$K$4997,0),MATCH(H$2,'Data Annex'!$K$1:$AN$1,0)),\"\")","v":7.3523634500000004E-2},{"$f":"IFERROR(INDEX('Data Annex'!$K$1:$AN$4997,MATCH(I$1&\"|\"&$B31,'Data Annex'!$K$1:$K$4997,0),MATCH(I$2,'Data Annex'!$K$1:$AN$1,0)),\"\")","v":0.1511457611},{"$f":"IFERROR(INDEX('Data Annex'!$K$1:$AN$4997,MATCH(J$1&\"|\"&$B31,'Data Annex'!$K$1:$K$4997,0),MATCH(J$2,'Data Annex'!$K$1:$AN$1,0)),\"\")","v":0.1573892704},{"$f":"IFERROR(INDEX('Data Annex'!$K$1:$AN$4997,MATCH(K$1&\"|\"&$B31,'Data Annex'!$K$1:$K$4997,0),MATCH(K$2,'Data Annex'!$K$1:$AN$1,0)),\"\")","v":0.156426178},{"$f":"IFERROR(INDEX('Data Annex'!$K$1:$AN$4997,MATCH(L$1&\"|\"&$B31,'Data Annex'!$K$1:$K$4997,0),MATCH(L$2,'Data Annex'!$K$1:$AN$1,0)),\"\")","v":0.1868898108},{"$f":"IFERROR(INDEX('Data Annex'!$K$1:$AN$4997,MATCH(M$1&\"|\"&$B31,'Data Annex'!$K$1:$K$4997,0),MATCH(M$2,'Data Annex'!$K$1:$AN$1,0)),\"\")","v":8.9361029600000003E-2},{"$f":"IFERROR(INDEX('Data Annex'!$K$1:$AN$4997,MATCH(N$1&\"|\"&$B31,'Data Annex'!$K$1:$K$4997,0),MATCH(N$2,'Data Annex'!$K$1:$AN$1,0)),\"\")","v":8.3967751600000001E-2},{"$f":"IFERROR(INDEX('Data Annex'!$K$1:$AN$4997,MATCH(O$1&\"|\"&$B31,'Data Annex'!$K$1:$K$4997,0),MATCH(O$2,'Data Annex'!$K$1:$AN$1,0)),\"\")","v":8.4692498699999993E-2},{"$f":"IFERROR(INDEX('Data Annex'!$K$1:$AN$4997,MATCH(P$1&\"|\"&$B31,'Data Annex'!$K$1:$K$4997,0),MATCH(P$2,'Data Annex'!$K$1:$AN$1,0)),\"\")","v":9.1097617800000003E-2},{"$f":"IFERROR(INDEX('Data Annex'!$K$1:$AN$4997,MATCH(Q$1&\"|\"&$B31,'Data Annex'!$K$1:$K$4997,0),MATCH(Q$2,'Data Annex'!$K$1:$AN$1,0)),\"\")","v":7.2737178999999997E-3},{"$f":"IFERROR(INDEX('Data Annex'!$K$1:$AN$4997,MATCH(R$1&\"|\"&$B31,'Data Annex'!$K$1:$K$4997,0),MATCH(R$2,'Data Annex'!$K$1:$AN$1,0)),\"\")","v":-1.8883879999999999E-2},{"$f":"IFERROR(INDEX('Data Annex'!$K$1:$AN$4997,MATCH(S$1&\"|\"&$B31,'Data Annex'!$K$1:$K$4997,0),MATCH(S$2,'Data Annex'!$K$1:$AN$1,0)),\"\")","v":-8.3087679999999994E-3},{"$f":"IFERROR(INDEX('Data Annex'!$K$1:$AN$4997,MATCH(T$1&\"|\"&$B31,'Data Annex'!$K$1:$K$4997,0),MATCH(T$2,'Data Annex'!$K$1:$AN$1,0)),\"\")","v":-2.4546319E-2},{"$f":"IFERROR(INDEX('Data Annex'!$K$1:$AN$4997,MATCH(U$1&\"|\"&$B31,'Data Annex'!$K$1:$K$4997,0),MATCH(U$2,'Data Annex'!$K$1:$AN$1,0)),\"\")","v":6.4458828999999999E-3},{"$f":"IFERROR(INDEX('Data Annex'!$K$1:$AN$4997,MATCH(V$1&\"|\"&$B31,'Data Annex'!$K$1:$K$4997,0),MATCH(V$2,'Data Annex'!$K$1:$AN$1,0)),\"\")","v":3.3727204999999998E-3},{"$f":"IFERROR(INDEX('Data Annex'!$K$1:$AN$4997,MATCH(W$1&\"|\"&$B31,'Data Annex'!$K$1:$K$4997,0),MATCH(W$2,'Data Annex'!$K$1:$AN$1,0)),\"\")","v":3.9966183999999997E-3},{"$f":"IFERROR(INDEX('Data Annex'!$K$1:$AN$4997,MATCH(X$1&\"|\"&$B31,'Data Annex'!$K$1:$K$4997,0),MATCH(X$2,'Data Annex'!$K$1:$AN$1,0)),\"\")","v":3.3111456900000003E-2}]
[22,"MT",null,"MT",{"$f":"IFERROR(INDEX('Data Annex'!$K$1:$AN$4997,MATCH(E$1&\"|\"&$B32,'Data Annex'!$K$1:$K$4997,0),MATCH(E$2,'Data Annex'!$K$1:$AN$1,0)),\"\")","v":1.5886949000000001E-2},{"$f":"IFERROR(INDEX('Data Annex'!$K$1:$AN$4997,MATCH(F$1&\"|\"&$B32,'Data Annex'!$K$1:$K$4997,0),MATCH(F$2,'Data Annex'!$K$1:$AN$1,0)),\"\")","v":-3.6658844000000003E-2},{"$f":"IFERROR(INDEX('Data Annex'!$K$1:$AN$4997,MATCH(G$1&\"|\"&$B32,'Data Annex'!$K$1:$K$4997,0),MATCH(G$2,'Data Annex'!$K$1:$AN$1,0)),\"\")","v":-6.6921610000000003E-3},{"$f":"IFERROR(INDEX('Data Annex'!$K$1:$AN$4997,MATCH(H$1&\"|\"&$B32,'Data Annex'!$K$1:$K$4997,0),MATCH(H$2,'Data Annex'!$K$1:$AN$1,0)),\"\")","v":-2.4886208999999999E-2},{"$f":"IFERROR(INDEX('Data Annex'!$K$1:$AN$4997,MATCH(I$1&\"|\"&$B32,'Data Annex'!$K$1:$K$4997,0),MATCH(I$2,'Data Annex'!$K$1:$AN$1,0)),\"\")","v":0.16706226469999999},{"$f":"IFERROR(INDEX('Data Annex'!$K$1:$AN$4997,MATCH(J$1&\"|\"&$B32,'Data Annex'!$K$1:$K$4997,0),MATCH(J$2,'Data Annex'!$K$1:$AN$1,0)),\"\")","v":0.1685184693},{"$f":"IFERROR(INDEX('Data Annex'!$K$1:$AN$4997,MATCH(K$1&\"|\"&$B32,'Data Annex'!$K$1:$K$4997,0),MATCH(K$2,'Data Annex'!$K$1:$AN$1,0)),\"\")","v":0.1675872933},{"$f":"IFERROR(INDEX('Data Annex'!$K$1:$AN$4997,MATCH(L$1&\"|\"&$B32,'Data Annex'!$K$1:$K$4997,0),MATCH(L$2,'Data Annex'!$K$1:$AN$1,0)),\"\")","v":0.16743041010000001},{"$f":"IFERROR(INDEX('Data Annex'!$K$1:$AN$4997,MATCH(M$1&\"|\"&$B32,'Data Annex'!$K$1:$K$4997,0),MATCH(M$2,'Data Annex'!$K$1:$AN$1,0)),\"\")","v":5.6514048900000002E-2},{"$f":"IFERROR(INDEX('Data Annex'!$K$1:$AN$4997,MATCH(N$1&\"|\"&$B32,'Data Annex'!$K$1:$K$4997,0),MATCH(N$2,'Data Annex'!$K$1:$AN$1,0)),\"\")","v":4.9498417900000001E-2},{"$f":"IFERROR(INDEX('Data Annex'!$K$1:$AN$4997,MATCH(O$1&\"|\"&$B32,'Data Annex'!$K$1:$K$4997,0),MATCH(O$2,'Data Annex'!$K$1:$AN$1,0)),\"\")","v":4.9978309499999998E-2},{"$f":"IFERROR(INDEX('Data Annex'!$K$1:$AN$4997,MATCH(P$1&\"|\"&$B32,'Data Annex'!$K$1:$K$4997,0),MATCH(P$2,'Data Annex'!$K$1:$AN$1,0)),\"\")","v":5.1879976500000001E-2},{"$f":"IFERROR(INDEX('Data Annex'!$K$1:$AN$4997,MATCH(Q$1&\"|\"&$B32,'Data Annex'!$K$1:$K$4997,0),MATCH(Q$2,'Data Annex'!$K$1:$AN$1,0)),\"\")","v":-2.248973E-3},{"$f":"IFERROR(INDEX('Data Annex'!$K$1:$AN$4997,MATCH(R$1&\"|\"&$B32,'Data Annex'!$K$1:$K$4997,0),MATCH(R$2,'Data Annex'!$K$1:$AN$1,0)),\"\")","v":6.4062859999999995E-4},{"$f":"IFERROR(INDEX('Data Annex'!$K$1:$AN$4997,MATCH(S$1&\"|\"&$B32,'Data Annex'!$K$1:$K$4997,0),MATCH(S$2,'Data Annex'!$K$1:$AN$1,0)),\"\")","v":3.0311468E-3},{"$f":"IFERROR(INDEX('Data Annex'!$K$1:$AN$4997,MATCH(T$1&\"|\"&$B32,'Data Annex'!$K$1:$K$4997,0),MATCH(T$2,'Data Annex'!$K$1:$AN$1,0)),\"\")","v":7.4055312E-3},{"$f":"IFERROR(INDEX('Data Annex'!$K$1:$AN$4997,MATCH(U$1&\"|\"&$B32,'Data Annex'!$K$1:$K$4997,0),MATCH(U$2,'Data Annex'!$K$1:$AN$1,0)),\"\")","v":-2.8305079999999998E-3},{"$f":"IFERROR(INDEX('Data Annex'!$K$1:$AN$4997,MATCH(V$1&\"|\"&$B32,'Data Annex'!$K$1:$K$4997,0),MATCH(V$2,'Data Annex'!$K$1:$AN$1,0)),\"\")","v":3.5842360999999998E-3},{"$f":"IFERROR(INDEX('Data Annex'!$K$1:$AN$4997,MATCH(W$1&\"|\"&$B32,'Data Annex'!$K$1:$K$4997,0),MATCH(W$2,'Data Annex'!$K$1:$AN$1,0)),\"\")","v":5.0790840999999998E-3},{"$f":"IFERROR(INDEX('Data Annex'!$K$1:$AN$4997,MATCH(X$1&\"|\"&$B32,'Data Annex'!$K$1:$K$4997,0),MATCH(X$2,'Data Annex'!$K$1:$AN$1,0)),\"\")","v":5.3736974000000003E-3}]
[23,"NL",null,"NL",{"$f":"IFERROR(INDEX('Data Annex'!$K$1:$AN$4997,MATCH(E$1&\"|\"&$B33,'Data Annex'!$K$1:$K$4997,0),MATCH(E$2,'Data Annex'!$K$1:$AN$1,0)),\"\")","v":1.35782067E-2},{"$f":"IFERROR(INDEX('Data Annex'!$K$1:$AN$4997,MATCH(F$1&\"|\"&$B33,'Data Annex'!$K$1:$K$4997,0),MATCH(F$2,'Data Annex'!$K$1:$AN$1,0)),\"\")","v":1.65835241E-2},{"$f":"IFERROR(INDEX('Data Annex'!$K$1:$AN$4997,MATCH(G$1&\"|\"&$B33,'Data Annex'!$K$1:$K$4997,0),MATCH(G$2,'Data Annex'!$K$1:$AN$1,0)),\"\")","v":3.12159958E-2},{"$f":"IFERROR(INDEX('Data Annex'!$K$1:$AN$4997,MATCH(H$1&\"|\"&$B33,'Data Annex'!$K$1:$K$4997,0),MATCH(H$2,'Data Annex'!$K$1:$AN$1,0)),\"\")","v":3.1860872899999997E-2},{"$f":"IFERROR(INDEX('Data Annex'!$K$1:$AN$4997,MATCH(I$1&\"|\"&$B33,'Data Annex'!$K$1:$K$4997,0),MATCH(I$2,'Data Annex'!$K$1:$AN$1,0)),\"\")","v":0.23853579659999999},{"$f":"IFERROR(INDEX('Data Annex'!$K$1:$AN$4997,MATCH(J$1&\"|\"&$B33,'Data Annex'!$K$1:$K$4997,0),MATCH(J$2,'Data Annex'!$K$1:$AN$1,0)),\"\")","v":0.23790817889999999},{"$f":"IFERROR(INDEX('Data Annex'!$K$1:$AN$4997,MATCH(K$1&\"|\"&$B33,'Data Annex'!$K$1:$K$4997,0),MATCH(K$2,'Data Annex'!$K$1:$AN$1,0)),\"\")","v":0.23518900149999999},{"$f":"IFERROR(INDEX('Data Annex'!$K$1:$AN$4997,MATCH(L$1&\"|\"&$B33,'Data Annex'!$K$1:$K$4997,0),MATCH(L$2,'Data Annex'!$K$1:$AN$1,0)),\"\")","v":0.23300996230000001},{"$f":"IFERROR(INDEX('Data Annex'!$K$1:$AN$4997,MATCH(M$1&\"|\"&$B33,'Data Annex'!$K$1:$K$4997,0),MATCH(M$2,'Data Annex'!$K$1:$AN$1,0)),\"\")","v":5.3570379299999998E-2},{"$f":"IFERROR(INDEX('Data Annex'!$K$1:$AN$4997,MATCH(N$1&\"|\"&$B33,'Data Annex'!$K$1:$K$4997,0),MATCH(N$2,'Data Annex'!$K$1:$AN$1,0)),\"\")","v":5.1136292299999997E-2},{"$f":"IFERROR(INDEX('Data Annex'!$K$1:$AN$4997,MATCH(O$1&\"|\"&$B33,'Data Annex'!$K$1:$K$4997,0),MATCH(O$2,'Data Annex'!$K$1:$AN$1,0)),\"\")","v":5.0350837099999997E-2},{"$f":"IFERROR(INDEX('Data Annex'!$K$1:$AN$4997,MATCH(P$1&\"|\"&$B33,'Data Annex'!$K$1:$K$4997,0),MATCH(P$2,'Data Annex'!$K$1:$AN$1,0)),\"\")","v":5.1026125300000003E-2},{"$f":"IFERROR(INDEX('Data Annex'!$K$1:$AN$4997,MATCH(Q$1&\"|\"&$B33,'Data Annex'!$K$1:$K$4997,0),MATCH(Q$2,'Data Annex'!$K$1:$AN$1,0)),\"\")","v":-5.0134300000000001E-3},{"$f":"IFERROR(INDEX('Data Annex'!$K$1:$AN$4997,MATCH(R$1&\"|\"&$B33,'Data Annex'!$K$1:$K$4997,0),MATCH(R$2,'Data Annex'!$K$1:$AN$1,0)),\"\")","v":2.4827515999999998E-3},{"$f":"IFERROR(INDEX('Data Annex'!$K$1:$AN$4997,MATCH(S$1&\"|\"&$B33,'Data Annex'!$K$1:$K$4997,0),MATCH(S$2,'Data Annex'!$K$1:$AN$1,0)),\"\")","v":3.0786519999999999E-3},{"$f":"IFERROR(INDEX('Data Annex'!$K$1:$AN$4997,MATCH(T$1&\"|\"&$B33,'Data Annex'!$K$1:$K$4997,0),MATCH(T$2,'Data Annex'!$K$1:$AN$1,0)),\"\")","v":7.811475E-4},{"$f":"IFERROR(INDEX('Data Annex'!$K$1:$AN$4997,MATCH(U$1&\"|\"&$B33,'Data Annex'!$K$1:$K$4997,0),MATCH(U$2,'Data Annex'!$K$1:$AN$1,0)),\"\")","v":7.7367822999999999E-3},{"$f":"IFERROR(INDEX('Data Annex'!$K$1:$AN$4997,MATCH(V$1&\"|\"&$B33,'Data Annex'!$K$1:$K$4997,0),MATCH(V$2,'Data Annex'!$K$1:$AN$1,0)),\"\")","v":1.1435753700000001E-2},{"$f":"IFERROR(INDEX('Data Annex'!$K$1:$AN$4997,MATCH(W$1&\"|\"&$B33,'Data Annex'!$K$1:$K$4997,0),MATCH(W$2,'Data Annex'!$K$1:$AN$1,0)),\"\")","v":1.47959176E-2},{"$f":"IFERROR(INDEX('Data Annex'!$K$1:$AN$4997,MATCH(X$1&\"|\"&$B33,'Data Annex'!$K$1:$K$4997,0),MATCH(X$2,'Data Annex'!$K$1:$AN$1,0)),\"\")","v":1.53198317E-2}]
[24,"NO",null,"NO",{"$f":"IFERROR(INDEX('Data Annex'!$K$1:$AN$4997,MATCH(E$1&\"|\"&$B34,'Data Annex'!$K$1:$K$4997,0),MATCH(E$2,'Data Annex'!$K$1:$AN$1,0)),\"\")","v":5.88805393E-2},{"$f":"IFERROR(INDEX('Data Annex'!$K$1:$AN$4997,MATCH(F$1&\"|\"&$B34,'Data Annex'!$K$1:$K$4997,0),MATCH(F$2,'Data Annex'!$K$1:$AN$1,0)),\"\")","v":6.8742848999999995E-2},{"$f":"IFERROR(INDEX('Data Annex'!$K$1:$AN$4997,MATCH(G$1&\"|\"&$B34,'Data Annex'!$K$1:$K$4997,0),MATCH(G$2,'Data Annex'!$K$1:$AN$1,0)),\"\")","v":7.1895864700000006E-2},{"$f":"IFERROR(INDEX('Data Annex'!$K$1:$AN$4997,MATCH(H$1&\"|\"&$B34,'Data Annex'!$K$1:$K$4997,0),MATCH(H$2,'Data Annex'!$K$1:$AN$1,0)),\"\")","v":7.3887026300000005E-2},{"$f":"IFERROR(INDEX('Data Annex'!$K$1:$AN$4997,MATCH(I$1&\"|\"&$B34,'Data Annex'!$K$1:$K$4997,0),MATCH(I$2,'Data Annex'!$K$1:$AN$1,0)),\"\")","v":0.17280810839999999},{"$f":"IFERROR(INDEX('Data Annex'!$K$1:$AN$4997,MATCH(J$1&\"|\"&$B34,'Data Annex'!$K$1:$K$4997,0),MATCH(J$2,'Data Annex'!$K$1:$AN$1,0)),\"\")","v":0.1697761173},{"$f":"IFERROR(INDEX('Data Annex'!$K$1:$AN$4997,MATCH(K$1&\"|\"&$B34,'Data Annex'!$K$1:$K$4997,0),MATCH(K$2,'Data Annex'!$K$1:$AN$1,0)),\"\")","v":0.164015094},{"$f":"IFERROR(INDEX('Data Annex'!$K$1:$AN$4997,MATCH(L$1&\"|\"&$B34,'Data Annex'!$K$1:$K$4997,0),MATCH(L$2,'Data Annex'!$K$1:$AN$1,0)),\"\")","v":0.16709634330000001},{"$f":"IFERROR(INDEX('Data Annex'!$K$1:$AN$4997,MATCH(M$1&\"|\"&$B34,'Data Annex'!$K$1:$K$4997,0),MATCH(M$2,'Data Annex'!$K$1:$AN$1,0)),\"\")","v":2.79867185E-2},{"$f":"IFERROR(INDEX('Data Annex'!$K$1:$AN$4997,MATCH(N$1&\"|\"&$B34,'Data Annex'!$K$1:$K$4997,0),MATCH(N$2,'Data Annex'!$K$1:$AN$1,0)),\"\")","v":2.97418404E-2},{"$f":"IFERROR(INDEX('Data Annex'!$K$1:$AN$4997,MATCH(O$1&\"|\"&$B34,'Data Annex'!$K$1:$K$4997,0),MATCH(O$2,'Data Annex'!$K$1:$AN$1,0)),\"\")","v":2.9372198700000001E-2},{"$f":"IFERROR(INDEX('Data Annex'!$K$1:$AN$4997,MATCH(P$1&\"|\"&$B34,'Data Annex'!$K$1:$K$4997,0),MATCH(P$2,'Data Annex'!$K$1:$AN$1,0)),\"\")","v":3.0858178699999999E-2},{"$f":"IFERROR(INDEX('Data Annex'!$K$1:$AN$4997,MATCH(Q$1&\"|\"&$B34,'Data Annex'!$K$1:$K$4997,0),MATCH(Q$2,'Data Annex'!$K$1:$AN$1,0)),\"\")","v":1.98307572E-2},{"$f":"IFERROR(INDEX('Data Annex'!$K$1:$AN$4997,MATCH(R$1&\"|\"&$B34,'Data Annex'!$K$1:$K$4997,0),MATCH(R$2,'Data Annex'!$K$1:$AN$1,0)),\"\")","v":2.7248834999999999E-2},{"$f":"IFERROR(INDEX('Data Annex'!$K$1:$AN$4997,MATCH(S$1&\"|\"&$B34,'Data Annex'!$K$1:$K$4997,0),MATCH(S$2,'Data Annex'!$K$1:$AN$1,0)),\"\")","v":2.1815804000000001E-2},{"$f":"IFERROR(INDEX('Data Annex'!$K$1:$AN$4997,MATCH(T$1&\"|\"&$B34,'Data Annex'!$K$1:$K$4997,0),MATCH(T$2,'Data Annex'!$K$1:$AN$1,0)),\"\")","v":1.78378865E-2},{"$f":"IFERROR(INDEX('Data Annex'!$K$1:$AN$4997,MATCH(U$1&\"|\"&$B34,'Data Annex'!$K$1:$K$4997,0),MATCH(U$2,'Data Annex'!$K$1:$AN$1,0)),\"\")","v":2.2772742700000001E-2},{"$f":"IFERROR(INDEX('Data Annex'!$K$1:$AN$4997,MATCH(V$1&\"|\"&$B34,'Data Annex'!$K$1:$K$4997,0),MATCH(V$2,'Data Annex'!$K$1:$AN$1,0)),\"\")","v":1.3607951300000001E-2},{"$f":"IFERROR(INDEX('Data Annex'!$K$1:$AN$4997,MATCH(W$1&\"|\"&$B34,'Data Annex'!$K$1:$K$4997,0),MATCH(W$2,'Data Annex'!$K$1:$AN$1,0)),\"\")","v":1.15478779E-2},{"$f":"IFERROR(INDEX('Data Annex'!$K$1:$AN$4997,MATCH(X$1&\"|\"&$B34,'Data Annex'!$K$1:$K$4997,0),MATCH(X$2,'Data Annex'!$K$1:$AN$1,0)),\"\")","v":1.06239861E-2}]
[25,"PL",null,"PL",{"$f":"IFERROR(INDEX('Data Annex'!$K$1:$AN$4997,MATCH(E$1&\"|\"&$B35,'Data Annex'!$K$1:$K$4997,0),MATCH(E$2,'Data Annex'!$K$1:$AN$1,0)),\"\")","v":3.8413121600000003E-2},{"$f":"IFERROR(INDEX('Data Annex'!$K$1:$AN$4997,MATCH(F$1&\"|\"&$B35,'Data Annex'!$K$1:$K$4997,0),MATCH(F$2,'Data Annex'!$K$1:$AN$1,0)),\"\")","v":5.0470789799999999E-2},{"$f":"IFERROR(INDEX('Data Annex'!$K$1:$AN$4997,MATCH(G$1&\"|\"&$B35,'Data Annex'!$K$1:$K$4997,0),MATCH(G$2,'Data Annex'!$K$1:$AN$1,0)),\"\")","v":5.4671531600000003E-2},{"$f":"IFERROR(INDEX('Data Annex'!$K$1:$AN$4997,MATCH(H$1&\"|\"&$B35,'Data Annex'!$K$1:$K$4997,0),MATCH(H$2,'Data Annex'!$K$1:$AN$1,0)),\"\")","v":5.2209245100000003E-2},{"$f":"IFERROR(INDEX('Data Annex'!$K$1:$AN$4997,MATCH(I$1&\"|\"&$B35,'Data Annex'!$K$1:$K$4997,0),MATCH(I$2,'Data Annex'!$K$1:$AN$1,0)),\"\")","v":0.23997079560000001},{"$f":"IFERROR(INDEX('Data Annex'!$K$1:$AN$4997,MATCH(J$1&\"|\"&$B35,'Data Annex'!$K$1:$K$4997,0),MATCH(J$2,'Data Annex'!$K$1:$AN$1,0)),\"\")","v":0.23122660759999999},{"$f":"IFERROR(INDEX('Data Annex'!$K$1:$AN$4997,MATCH(K$1&\"|\"&$B35,'Data Annex'!$K$1:$K$4997,0),MATCH(K$2,'Data Annex'!$K$1:$AN$1,0)),\"\")","v":0.21947236910000001},{"$f":"IFERROR(INDEX('Data Annex'!$K$1:$AN$4997,MATCH(L$1&\"|\"&$B35,'Data Annex'!$K$1:$K$4997,0),MATCH(L$2,'Data Annex'!$K$1:$AN$1,0)),\"\")","v":0.21438501639999999},{"$f":"IFERROR(INDEX('Data Annex'!$K$1:$AN$4997,MATCH(M$1&\"|\"&$B35,'Data Annex'!$K$1:$K$4997,0),MATCH(M$2,'Data Annex'!$K$1:$AN$1,0)),\"\")","v":8.5914228600000003E-2},{"$f":"IFERROR(INDEX('Data Annex'!$K$1:$AN$4997,MATCH(N$1&\"|\"&$B35,'Data Annex'!$K$1:$K$4997,0),MATCH(N$2,'Data Annex'!$K$1:$AN$1,0)),\"\")","v":8.2195195099999993E-2},{"$f":"IFERROR(INDEX('Data Annex'!$K$1:$AN$4997,MATCH(O$1&\"|\"&$B35,'Data Annex'!$K$1:$K$4997,0),MATCH(O$2,'Data Annex'!$K$1:$AN$1,0)),\"\")","v":8.1728894299999993E-2},{"$f":"IFERROR(INDEX('Data Annex'!$K$1:$AN$4997,MATCH(P$1&\"|\"&$B35,'Data Annex'!$K$1:$K$4997,0),MATCH(P$2,'Data Annex'!$K$1:$AN$1,0)),\"\")","v":8.2780335699999999E-2},{"$f":"IFERROR(INDEX('Data Annex'!$K$1:$AN$4997,MATCH(Q$1&\"|\"&$B35,'Data Annex'!$K$1:$K$4997,0),MATCH(Q$2,'Data Annex'!$K$1:$AN$1,0)),\"\")","v":-1.5960472E-2},{"$f":"IFERROR(INDEX('Data Annex'!$K$1:$AN$4997,MATCH(R$1&\"|\"&$B35,'Data Annex'!$K$1:$K$4997,0),MATCH(R$2,'Data Annex'!$K$1:$AN$1,0)),\"\")","v":-4.9262560000000004E-3},{"$f":"IFERROR(INDEX('Data Annex'!$K$1:$AN$4997,MATCH(S$1&\"|\"&$B35,'Data Annex'!$K$1:$K$4997,0),MATCH(S$2,'Data Annex'!$K$1:$AN$1,0)),\"\")","v":-7.5537750000000004E-3},{"$f":"IFERROR(INDEX('Data Annex'!$K$1:$AN$4997,MATCH(T$1&\"|\"&$B35,'Data Annex'!$K$1:$K$4997,0),MATCH(T$2,'Data Annex'!$K$1:$AN$1,0)),\"\")","v":-2.977614E-3},{"$f":"IFERROR(INDEX('Data Annex'!$K$1:$AN$4997,MATCH(U$1&\"|\"&$B35,'Data Annex'!$K$1:$K$4997,0),MATCH(U$2,'Data Annex'!$K$1:$AN$1,0)),\"\")","v":1.28280381E-2},{"$f":"IFERROR(INDEX('Data Annex'!$K$1:$AN$4997,MATCH(V$1&\"|\"&$B35,'Data Annex'!$K$1:$K$4997,0),MATCH(V$2,'Data Annex'!$K$1:$AN$1,0)),\"\")","v":8.8690765999999994E-3},{"$f":"IFERROR(INDEX('Data Annex'!$K$1:$AN$4997,MATCH(W$1&\"|\"&$B35,'Data Annex'!$K$1:$K$4997,0),MATCH(W$2,'Data Annex'!$K$1:$AN$1,0)),\"\")","v":1.18476229E-2},{"$f":"IFERROR(INDEX('Data Annex'!$K$1:$AN$4997,MATCH(X$1&\"|\"&$B35,'Data Annex'!$K$1:$K$4997,0),MATCH(X$2,'Data Annex'!$K$1:$AN$1,0)),\"\")","v":7.9038206E-3}]
[26,"PT",null,"PT",{"$f":"IFERROR(INDEX('Data Annex'!$K$1:$AN$4997,MATCH(E$1&\"|\"&$B36,'Data Annex'!$K$1:$K$4997,0),MATCH(E$2,'Data Annex'!$K$1:$AN$1,0)),\"\")","v":1.6718026399999999E-2},{"$f":"IFERROR(INDEX('Data Annex'!$K$1:$AN$4997,MATCH(F$1&\"|\"&$B36,'Data Annex'!$K$1:$K$4997,0),MATCH(F$2,'Data Annex'!$K$1:$AN$1,0)),\"\")","v":1.6608911000000001E-3},{"$f":"IFERROR(INDEX('Data Annex'!$K$1:$AN$4997,MATCH(G$1&\"|\"&$B36,'Data Annex'!$K$1:$K$4997,0),MATCH(G$2,'Data Annex'!$K$1:$AN$1,0)),\"\")","v":1.04703864E-2},{"$f":"IFERROR(INDEX('Data Annex'!$K$1:$AN$4997,MATCH(H$1&\"|\"&$B36,'Data Annex'!$K$1:$K$4997,0),MATCH(H$2,'Data Annex'!$K$1:$AN$1,0)),\"\")","v":-2.5115350000000001E-3},{"$f":"IFERROR(INDEX('Data Annex'!$K$1:$AN$4997,MATCH(I$1&\"|\"&$B36,'Data Annex'!$K$1:$K$4997,0),MATCH(I$2,'Data Annex'!$K$1:$AN$1,0)),\"\")","v":0.16220698289999999},{"$f":"IFERROR(INDEX('Data Annex'!$K$1:$AN$4997,MATCH(J$1&\"|\"&$B36,'Data Annex'!$K$1:$K$4997,0),MATCH(J$2,'Data Annex'!$K$1:$AN$1,0)),\"\")","v":0.16011506049999999},{"$f":"IFERROR(INDEX('Data Annex'!$K$1:$AN$4997,MATCH(K$1&\"|\"&$B36,'Data Annex'!$K$1:$K$4997,0),MATCH(K$2,'Data Annex'!$K$1:$AN$1,0)),\"\")","v":0.1597131688},{"$f":"IFERROR(INDEX('Data Annex'!$K$1:$AN$4997,MATCH(L$1&\"|\"&$B36,'Data Annex'!$K$1:$K$4997,0),MATCH(L$2,'Data Annex'!$K$1:$AN$1,0)),\"\")","v":0.16077402769999999},{"$f":"IFERROR(INDEX('Data Annex'!$K$1:$AN$4997,MATCH(M$1&\"|\"&$B36,'Data Annex'!$K$1:$K$4997,0),MATCH(M$2,'Data Annex'!$K$1:$AN$1,0)),\"\")","v":7.9139734700000006E-2},{"$f":"IFERROR(INDEX('Data Annex'!$K$1:$AN$4997,MATCH(N$1&\"|\"&$B36,'Data Annex'!$K$1:$K$4997,0),MATCH(N$2,'Data Annex'!$K$1:$AN$1,0)),\"\")","v":7.6549190099999997E-2},{"$f":"IFERROR(INDEX('Data Annex'!$K$1:$AN$4997,MATCH(O$1&\"|\"&$B36,'Data Annex'!$K$1:$K$4997,0),MATCH(O$2,'Data Annex'!$K$1:$AN$1,0)),\"\")","v":7.62433956E-2},{"$f":"IFERROR(INDEX('Data Annex'!$K$1:$AN$4997,MATCH(P$1&\"|\"&$B36,'Data Annex'!$K$1:$K$4997,0),MATCH(P$2,'Data Annex'!$K$1:$AN$1,0)),\"\")","v":7.8194584400000003E-2},{"$f":"IFERROR(INDEX('Data Annex'!$K$1:$AN$4997,MATCH(Q$1&\"|\"&$B36,'Data Annex'!$K$1:$K$4997,0),MATCH(Q$2,'Data Annex'!$K$1:$AN$1,0)),\"\")","v":-9.2297119999999993E-3},{"$f":"IFERROR(INDEX('Data Annex'!$K$1:$AN$4997,MATCH(R$1&\"|\"&$B36,'Data Annex'!$K$1:$K$4997,0),MATCH(R$2,'Data Annex'!$K$1:$AN$1,0)),\"\")","v":-2.8594522000000001E-2},{"$f":"IFERROR(INDEX('Data Annex'!$K$1:$AN$4997,MATCH(S$1&\"|\"&$B36,'Data Annex'!$K$1:$K$4997,0),MATCH(S$2,'Data Annex'!$K$1:$AN$1,0)),\"\")","v":-1.6246130000000001E-2},{"$f":"IFERROR(INDEX('Data Annex'!$K$1:$AN$4997,MATCH(T$1&\"|\"&$B36,'Data Annex'!$K$1:$K$4997,0),MATCH(T$2,'Data Annex'!$K$1:$AN$1,0)),\"\")","v":-1.6772532999999999E-2},{"$f":"IFERROR(INDEX('Data Annex'!$K$1:$AN$4997,MATCH(U$1&\"|\"&$B36,'Data Annex'!$K$1:$K$4997,0),MATCH(U$2,'Data Annex'!$K$1:$AN$1,0)),\"\")","v":1.7176064899999999E-2},{"$f":"IFERROR(INDEX('Data Annex'!$K$1:$AN$4997,MATCH(V$1&\"|\"&$B36,'Data Annex'!$K$1:$K$4997,0),MATCH(V$2,'Data Annex'!$K$1:$AN$1,0)),\"\")","v":3.05074457E-2},{"$f":"IFERROR(INDEX('Data Annex'!$K$1:$AN$4997,MATCH(W$1&\"|\"&$B36,'Data Annex'!$K$1:$K$4997,0),MATCH(W$2,'Data Annex'!$K$1:$AN$1,0)),\"\")","v":2.5690934200000001E-2},{"$f":"IFERROR(INDEX('Data Annex'!$K$1:$AN$4997,MATCH(X$1&\"|\"&$B36,'Data Annex'!$K$1:$K$4997,0),MATCH(X$2,'Data Annex'!$K$1:$AN$1,0)),\"\")","v":2.5492902299999998E-2}]
[27,"RO",null,"RO",{"$f":"IFERROR(INDEX('Data Annex'!$K$1:$AN$4997,MATCH(E$1&\"|\"&$B37,'Data Annex'!$K$1:$K$4997,0),MATCH(E$2,'Data Annex'!$K$1:$AN$1,0)),\"\")","v":0.1491027509},{"$f":"IFERROR(INDEX('Data Annex'!$K$1:$AN$4997,MATCH(F$1&\"|\"&$B37,'Data Annex'!$K$1:$K$4997,0),MATCH(F$2,'Data Annex'!$K$1:$AN$1,0)),\"\")","v":0.1211515237},{"$f":"IFERROR(INDEX('Data Annex'!$K$1:$AN$4997,MATCH(G$1&\"|\"&$B37,'Data Annex'!$K$1:$K$4997,0),MATCH(G$2,'Data Annex'!$K$1:$AN$1,0)),\"\")","v":0.1283166254},{"$f":"IFERROR(INDEX('Data Annex'!$K$1:$AN$4997,MATCH(H$1&\"|\"&$B37,'Data Annex'!$K$1:$K$4997,0),MATCH(H$2,'Data Annex'!$K$1:$AN$1,0)),\"\")","v":0.1153403163},{"$f":"IFERROR(INDEX('Data Annex'!$K$1:$AN$4997,MATCH(I$1&\"|\"&$B37,'Data Annex'!$K$1:$K$4997,0),MATCH(I$2,'Data Annex'!$K$1:$AN$1,0)),\"\")","v":0.28888419789999997},{"$f":"IFERROR(INDEX('Data Annex'!$K$1:$AN$4997,MATCH(J$1&\"|\"&$B37,'Data Annex'!$K$1:$K$4997,0),MATCH(J$2,'Data Annex'!$K$1:$AN$1,0)),\"\")","v":0.278960667},{"$f":"IFERROR(INDEX('Data Annex'!$K$1:$AN$4997,MATCH(K$1&\"|\"&$B37,'Data Annex'!$K$1:$K$4997,0),MATCH(K$2,'Data Annex'!$K$1:$AN$1,0)),\"\")","v":0.26982218159999999},{"$f":"IFERROR(INDEX('Data Annex'!$K$1:$AN$4997,MATCH(L$1&\"|\"&$B37,'Data Annex'!$K$1:$K$4997,0),MATCH(L$2,'Data Annex'!$K$1:$AN$1,0)),\"\")","v":0.26517863009999998},{"$f":"IFERROR(INDEX('Data Annex'!$K$1:$AN$4997,MATCH(M$1&\"|\"&$B37,'Data Annex'!$K$1:$K$4997,0),MATCH(M$2,'Data Annex'!$K$1:$AN$1,0)),\"\")","v":7.9889590900000002E-2},{"$f":"IFERROR(INDEX('Data Annex'!$K$1:$AN$4997,MATCH(N$1&\"|\"&$B37,'Data Annex'!$K$1:$K$4997,0),MATCH(N$2,'Data Annex'!$K$1:$AN$1,0)),\"\")","v":7.4120873000000004E-2},{"$f":"IFERROR(INDEX('Data Annex'!$K$1:$AN$4997,MATCH(O$1&\"|\"&$B37,'Data Annex'!$K$1:$K$4997,0),MATCH(O$2,'Data Annex'!$K$1:$AN$1,0)),\"\")","v":7.5849558299999995E-2},{"$f":"IFERROR(INDEX('Data Annex'!$K$1:$AN$4997,MATCH(P$1&\"|\"&$B37,'Data Annex'!$K$1:$K$4997,0),MATCH(P$2,'Data Annex'!$K$1:$AN$1,0)),\"\")","v":7.7301720500000004E-2},{"$f":"IFERROR(INDEX('Data Annex'!$K$1:$AN$4997,MATCH(Q$1&\"|\"&$B37,'Data Annex'!$K$1:$K$4997,0),MATCH(Q$2,'Data Annex'!$K$1:$AN$1,0)),\"\")","v":-1.0144683E-2},{"$f":"IFERROR(INDEX('Data Annex'!$K$1:$AN$4997,MATCH(R$1&\"|\"&$B37,'Data Annex'!$K$1:$K$4997,0),MATCH(R$2,'Data Annex'!$K$1:$AN$1,0)),\"\")","v":1.44612591E-2},{"$f":"IFERROR(INDEX('Data Annex'!$K$1:$AN$4997,MATCH(S$1&\"|\"&$B37,'Data Annex'!$K$1:$K$4997,0),MATCH(S$2,'Data Annex'!$K$1:$AN$1,0)),\"\")","v":1.6599604600000002E-2},{"$f":"IFERROR(INDEX('Data Annex'!$K$1:$AN$4997,MATCH(T$1&\"|\"&$B37,'Data Annex'!$K$1:$K$4997,0),MATCH(T$2,'Data Annex'!$K$1:$AN$1,0)),\"\")","v":1.71616993E-2},{"$f":"IFERROR(INDEX('Data Annex'!$K$1:$AN$4997,MATCH(U$1&\"|\"&$B37,'Data Annex'!$K$1:$K$4997,0),MATCH(U$2,'Data Annex'!$K$1:$AN$1,0)),\"\")","v":3.5202842400000003E-2},{"$f":"IFERROR(INDEX('Data Annex'!$K$1:$AN$4997,MATCH(V$1&\"|\"&$B37,'Data Annex'!$K$1:$K$4997,0),MATCH(V$2,'Data Annex'!$K$1:$AN$1,0)),\"\")","v":3.7123172000000003E-2},{"$f":"IFERROR(INDEX('Data Annex'!$K$1:$AN$4997,MATCH(W$1&\"|\"&$B37,'Data Annex'!$K$1:$K$4997,0),MATCH(W$2,'Data Annex'!$K$1:$AN$1,0)),\"\")","v":3.9147745099999999E-2},{"$f":"IFERROR(INDEX('Data Annex'!$K$1:$AN$4997,MATCH(X$1&\"|\"&$B37,'Data Annex'!$K$1:$K$4997,0),MATCH(X$2,'Data Annex'!$K$1:$AN$1,0)),\"\")","v":4.3175754400000002E-2}]
[28,"SE",null,"SE",{"$f":"IFERROR(INDEX('Data Annex'!$K$1:$AN$4997,MATCH(E$1&\"|\"&$B38,'Data Annex'!$K$1:$K$4997,0),MATCH(E$2,'Data Annex'!$K$1:$AN$1,0)),\"\")","v":3.7520956500000001E-2},{"$f":"IFERROR(INDEX('Data Annex'!$K$1:$AN$4997,MATCH(F$1&\"|\"&$B38,'Data Annex'!$K$1:$K$4997,0),MATCH(F$2,'Data Annex'!$K$1:$AN$1,0)),\"\")","v":6.8151114900000004E-2},{"$f":"IFERROR(INDEX('Data Annex'!$K$1:$AN$4997,MATCH(G$1&\"|\"&$B38,'Data Annex'!$K$1:$K$4997,0),MATCH(G$2,'Data Annex'!$K$1:$AN$1,0)),\"\")","v":7.8816836599999995E-2},{"$f":"IFERROR(INDEX('Data Annex'!$K$1:$AN$4997,MATCH(H$1&\"|\"&$B38,'Data Annex'!$K$1:$K$4997,0),MATCH(H$2,'Data Annex'!$K$1:$AN$1,0)),\"\")","v":8.8723347499999994E-2},{"$f":"IFERROR(INDEX('Data Annex'!$K$1:$AN$4997,MATCH(I$1&\"|\"&$B38,'Data Annex'!$K$1:$K$4997,0),MATCH(I$2,'Data Annex'!$K$1:$AN$1,0)),\"\")","v":0.17805253579999999},{"$f":"IFERROR(INDEX('Data Annex'!$K$1:$AN$4997,MATCH(J$1&\"|\"&$B38,'Data Annex'!$K$1:$K$4997,0),MATCH(J$2,'Data Annex'!$K$1:$AN$1,0)),\"\")","v":0.18863927720000001},{"$f":"IFERROR(INDEX('Data Annex'!$K$1:$AN$4997,MATCH(K$1&\"|\"&$B38,'Data Annex'!$K$1:$K$4997,0),MATCH(K$2,'Data Annex'!$K$1:$AN$1,0)),\"\")","v":0.18573822749999999},{"$f":"IFERROR(INDEX('Data Annex'!$K$1:$AN$4997,MATCH(L$1&\"|\"&$B38,'Data Annex'!$K$1:$K$4997,0),MATCH(L$2,'Data Annex'!$K$1:$AN$1,0)),\"\")","v":0.1873346699},{"$f":"IFERROR(INDEX('Data Annex'!$K$1:$AN$4997,MATCH(M$1&\"|\"&$B38,'Data Annex'!$K$1:$K$4997,0),MATCH(M$2,'Data Annex'!$K$1:$AN$1,0)),\"\")","v":6.9410510100000003E-2},{"$f":"IFERROR(INDEX('Data Annex'!$K$1:$AN$4997,MATCH(N$1&\"|\"&$B38,'Data Annex'!$K$1:$K$4997,0),MATCH(N$2,'Data Annex'!$K$1:$AN$1,0)),\"\")","v":6.8096734899999997E-2},{"$f":"IFERROR(INDEX('Data Annex'!$K$1:$AN$4997,MATCH(O$1&\"|\"&$B38,'Data Annex'!$K$1:$K$4997,0),MATCH(O$2,'Data Annex'!$K$1:$AN$1,0)),\"\")","v":6.6581912399999998E-2},{"$f":"IFERROR(INDEX('Data Annex'!$K$1:$AN$4997,MATCH(P$1&\"|\"&$B38,'Data Annex'!$K$1:$K$4997,0),MATCH(P$2,'Data Annex'!$K$1:$AN$1,0)),\"\")","v":6.8603440399999993E-2},{"$f":"IFERROR(INDEX('Data Annex'!$K$1:$AN$4997,MATCH(Q$1&\"|\"&$B38,'Data Annex'!$K$1:$K$4997,0),MATCH(Q$2,'Data Annex'!$K$1:$AN$1,0)),\"\")","v":-4.75575E-4},{"$f":"IFERROR(INDEX('Data Annex'!$K$1:$AN$4997,MATCH(R$1&\"|\"&$B38,'Data Annex'!$K$1:$K$4997,0),MATCH(R$2,'Data Annex'!$K$1:$AN$1,0)),\"\")","v":1.42031355E-2},{"$f":"IFERROR(INDEX('Data Annex'!$K$1:$AN$4997,MATCH(S$1&\"|\"&$B38,'Data Annex'!$K$1:$K$4997,0),MATCH(S$2,'Data Annex'!$K$1:$AN$1,0)),\"\")","v":1.16198034E-2},{"$f":"IFERROR(INDEX('Data Annex'!$K$1:$AN$4997,MATCH(T$1&\"|\"&$B38,'Data Annex'!$K$1:$K$4997,0),MATCH(T$2,'Data Annex'!$K$1:$AN$1,0)),\"\")","v":8.4965658999999992E-3},{"$f":"IFERROR(INDEX('Data Annex'!$K$1:$AN$4997,MATCH(U$1&\"|\"&$B38,'Data Annex'!$K$1:$K$4997,0),MATCH(U$2,'Data Annex'!$K$1:$AN$1,0)),\"\")","v":-2.5404699999999999E-2},{"$f":"IFERROR(INDEX('Data Annex'!$K$1:$AN$4997,MATCH(V$1&\"|\"&$B38,'Data Annex'!$K$1:$K$4997,0),MATCH(V$2,'Data Annex'!$K$1:$AN$1,0)),\"\")","v":-9.7128100000000005E-4},{"$f":"IFERROR(INDEX('Data Annex'!$K$1:$AN$4997,MATCH(W$1&\"|\"&$B38,'Data Annex'!$K$1:$K$4997,0),MATCH(W$2,'Data Annex'!$K$1:$AN$1,0)),\"\")","v":7.2798282000000004E-3},{"$f":"IFERROR(INDEX('Data Annex'!$K$1:$AN$4997,MATCH(X$1&\"|\"&$B38,'Data Annex'!$K$1:$K$4997,0),MATCH(X$2,'Data Annex'!$K$1:$AN$1,0)),\"\")","v":1.4039187E-2}]
[29,"SI",null,"SI",{"$f":"IFERROR(INDEX('Data Annex'!$K$1:$AN$4997,MATCH(E$1&\"|\"&$B39,'Data Annex'!$K$1:$K$4997,0),MATCH(E$2,'Data Annex'!$K$1:$AN$1,0)),\"\")","v":0.30387650859999998},{"$f":"IFERROR(INDEX('Data Annex'!$K$1:$AN$4997,MATCH(F$1&\"|\"&$B39,'Data Annex'!$K$1:$K$4997,0),MATCH(F$2,'Data Annex'!$K$1:$AN$1,0)),\"\")","v":0.20381337390000001},{"$f":"IFERROR(INDEX('Data Annex'!$K$1:$AN$4997,MATCH(G$1&\"|\"&$B39,'Data Annex'!$K$1:$K$4997,0),MATCH(G$2,'Data Annex'!$K$1:$AN$1,0)),\"\")","v":0.16217866610000001},{"$f":"IFERROR(INDEX('Data Annex'!$K$1:$AN$4997,MATCH(H$1&\"|\"&$B39,'Data Annex'!$K$1:$K$4997,0),MATCH(H$2,'Data Annex'!$K$1:$AN$1,0)),\"\")","v":0.16556494829999999},{"$f":"IFERROR(INDEX('Data Annex'!$K$1:$AN$4997,MATCH(I$1&\"|\"&$B39,'Data Annex'!$K$1:$K$4997,0),MATCH(I$2,'Data Annex'!$K$1:$AN$1,0)),\"\")","v":0.17926324569999999},{"$f":"IFERROR(INDEX('Data Annex'!$K$1:$AN$4997,MATCH(J$1&\"|\"&$B39,'Data Annex'!$K$1:$K$4997,0),MATCH(J$2,'Data Annex'!$K$1:$AN$1,0)),\"\")","v":0.17459674989999999},{"$f":"IFERROR(INDEX('Data Annex'!$K$1:$AN$4997,MATCH(K$1&\"|\"&$B39,'Data Annex'!$K$1:$K$4997,0),MATCH(K$2,'Data Annex'!$K$1:$AN$1,0)),\"\")","v":0.1752992474},{"$f":"IFERROR(INDEX('Data Annex'!$K$1:$AN$4997,MATCH(L$1&\"|\"&$B39,'Data Annex'!$K$1:$K$4997,0),MATCH(L$2,'Data Annex'!$K$1:$AN$1,0)),\"\")","v":0.16666813529999999},{"$f":"IFERROR(INDEX('Data Annex'!$K$1:$AN$4997,MATCH(M$1&\"|\"&$B39,'Data Annex'!$K$1:$K$4997,0),MATCH(M$2,'Data Annex'!$K$1:$AN$1,0)),\"\")","v":9.0011132699999996E-2},{"$f":"IFERROR(INDEX('Data Annex'!$K$1:$AN$4997,MATCH(N$1&\"|\"&$B39,'Data Annex'!$K$1:$K$4997,0),MATCH(N$2,'Data Annex'!$K$1:$AN$1,0)),\"\")","v":8.7111506899999996E-2},{"$f":"IFERROR(INDEX('Data Annex'!$K$1:$AN$4997,MATCH(O$1&\"|\"&$B39,'Data Annex'!$K$1:$K$4997,0),MATCH(O$2,'Data Annex'!$K$1:$AN$1,0)),\"\")","v":8.9483037700000004E-2},{"$f":"IFERROR(INDEX('Data Annex'!$K$1:$AN$4997,MATCH(P$1&\"|\"&$B39,'Data Annex'!$K$1:$K$4997,0),MATCH(P$2,'Data Annex'!$K$1:$AN$1,0)),\"\")","v":8.6321671200000005E-2},{"$f":"IFERROR(INDEX('Data Annex'!$K$1:$AN$4997,MATCH(Q$1&\"|\"&$B39,'Data Annex'!$K$1:$K$4997,0),MATCH(Q$2,'Data Annex'!$K$1:$AN$1,0)),\"\")","v":1.4400977E-3},{"$f":"IFERROR(INDEX('Data Annex'!$K$1:$AN$4997,MATCH(R$1&\"|\"&$B39,'Data Annex'!$K$1:$K$4997,0),MATCH(R$2,'Data Annex'!$K$1:$AN$1,0)),\"\")","v":5.9623723999999998E-3},{"$f":"IFERROR(INDEX('Data Annex'!$K$1:$AN$4997,MATCH(S$1&\"|\"&$B39,'Data Annex'!$K$1:$K$4997,0),MATCH(S$2,'Data Annex'!$K$1:$AN$1,0)),\"\")","v":6.5875196000000002E-3},{"$f":"IFERROR(INDEX('Data Annex'!$K$1:$AN$4997,MATCH(T$1&\"|\"&$B39,'Data Annex'!$K$1:$K$4997,0),MATCH(T$2,'Data Annex'!$K$1:$AN$1,0)),\"\")","v":8.684476E-3},{"$f":"IFERROR(INDEX('Data Annex'!$K$1:$AN$4997,MATCH(U$1&\"|\"&$B39,'Data Annex'!$K$1:$K$4997,0),MATCH(U$2,'Data Annex'!$K$1:$AN$1,0)),\"\")","v":-1.3169442999999999E-2},{"$f":"IFERROR(INDEX('Data Annex'!$K$1:$AN$4997,MATCH(V$1&\"|\"&$B39,'Data Annex'!$K$1:$K$4997,0),MATCH(V$2,'Data Annex'!$K$1:$AN$1,0)),\"\")","v":1.6571741800000001E-2},{"$f":"IFERROR(INDEX('Data Annex'!$K$1:$AN$4997,MATCH(W$1&\"|\"&$B39,'Data Annex'!$K$1:$K$4997,0),MATCH(W$2,'Data Annex'!$K$1:$AN$1,0)),\"\")","v":1.7376079700000002E-2},{"$f":"IFERROR(INDEX('Data Annex'!$K$1:$AN$4997,MATCH(X$1&\"|\"&$B39,'Data Annex'!$K$1:$K$4997,0),MATCH(X$2,'Data Annex'!$K$1:$AN$1,0)),\"\")","v":1.4210067700000001E-2}]
[30,"SK",null,"SK",{"$f":"IFERROR(INDEX('Data Annex'!$K$1:$AN$4997,MATCH(E$1&\"|\"&$B40,'Data Annex'!$K$1:$K$4997,0),MATCH(E$2,'Data Annex'!$K$1:$AN$1,0)),\"\")","v":5.7385044400000002E-2},{"$f":"IFERROR(INDEX('Data Annex'!$K$1:$AN$4997,MATCH(F$1&\"|\"&$B40,'Data Annex'!$K$1:$K$4997,0),MATCH(F$2,'Data Annex'!$K$1:$AN$1,0)),\"\")","v":4.3534140700000001E-2},{"$f":"IFERROR(INDEX('Data Annex'!$K$1:$AN$4997,MATCH(G$1&\"|\"&$B40,'Data Annex'!$K$1:$K$4997,0),MATCH(G$2,'Data Annex'!$K$1:$AN$1,0)),\"\")","v":5.9712914200000002E-2},{"$f":"IFERROR(INDEX('Data Annex'!$K$1:$AN$4997,MATCH(H$1&\"|\"&$B40,'Data Annex'!$K$1:$K$4997,0),MATCH(H$2,'Data Annex'!$K$1:$AN$1,0)),\"\")","v":6.3553577700000002E-2},{"$f":"IFERROR(INDEX('Data Annex'!$K$1:$AN$4997,MATCH(I$1&\"|\"&$B40,'Data Annex'!$K$1:$K$4997,0),MATCH(I$2,'Data Annex'!$K$1:$AN$1,0)),\"\")","v":0.22813966669999999},{"$f":"IFERROR(INDEX('Data Annex'!$K$1:$AN$4997,MATCH(J$1&\"|\"&$B40,'Data Annex'!$K$1:$K$4997,0),MATCH(J$2,'Data Annex'!$K$1:$AN$1,0)),\"\")","v":0.22529652750000001},{"$f":"IFERROR(INDEX('Data Annex'!$K$1:$AN$4997,MATCH(K$1&\"|\"&$B40,'Data Annex'!$K$1:$K$4997,0),MATCH(K$2,'Data Annex'!$K$1:$AN$1,0)),\"\")","v":0.22185961600000001},{"$f":"IFERROR(INDEX('Data Annex'!$K$1:$AN$4997,MATCH(L$1&\"|\"&$B40,'Data Annex'!$K$1:$K$4997,0),MATCH(L$2,'Data Annex'!$K$1:$AN$1,0)),\"\")","v":0.21892256369999999},{"$f":"IFERROR(INDEX('Data Annex'!$K$1:$AN$4997,MATCH(M$1&\"|\"&$B40,'Data Annex'!$K$1:$K$4997,0),MATCH(M$2,'Data Annex'!$K$1:$AN$1,0)),\"\")","v":8.6680335999999997E-2},{"$f":"IFERROR(INDEX('Data Annex'!$K$1:$AN$4997,MATCH(N$1&\"|\"&$B40,'Data Annex'!$K$1:$K$4997,0),MATCH(N$2,'Data Annex'!$K$1:$AN$1,0)),\"\")","v":8.6321448100000003E-2},{"$f":"IFERROR(INDEX('Data Annex'!$K$1:$AN$4997,MATCH(O$1&\"|\"&$B40,'Data Annex'!$K$1:$K$4997,0),MATCH(O$2,'Data Annex'!$K$1:$AN$1,0)),\"\")","v":8.6790914199999999E-2},{"$f":"IFERROR(INDEX('Data Annex'!$K$1:$AN$4997,MATCH(P$1&\"|\"&$B40,'Data Annex'!$K$1:$K$4997,0),MATCH(P$2,'Data Annex'!$K$1:$AN$1,0)),\"\")","v":8.8890170300000002E-2},{"$f":"IFERROR(INDEX('Data Annex'!$K$1:$AN$4997,MATCH(Q$1&\"|\"&$B40,'Data Annex'!$K$1:$K$4997,0),MATCH(Q$2,'Data Annex'!$K$1:$AN$1,0)),\"\")","v":-9.3951500000000003E-4},{"$f":"IFERROR(INDEX('Data Annex'!$K$1:$AN$4997,MATCH(R$1&\"|\"&$B40,'Data Annex'!$K$1:$K$4997,0),MATCH(R$2,'Data Annex'!$K$1:$AN$1,0)),\"\")","v":4.9645128999999998E-3},{"$f":"IFERROR(INDEX('Data Annex'!$K$1:$AN$4997,MATCH(S$1&\"|\"&$B40,'Data Annex'!$K$1:$K$4997,0),MATCH(S$2,'Data Annex'!$K$1:$AN$1,0)),\"\")","v":5.0668950999999997E-3},{"$f":"IFERROR(INDEX('Data Annex'!$K$1:$AN$4997,MATCH(T$1&\"|\"&$B40,'Data Annex'!$K$1:$K$4997,0),MATCH(T$2,'Data Annex'!$K$1:$AN$1,0)),\"\")","v":5.9333249999999997E-3},{"$f":"IFERROR(INDEX('Data Annex'!$K$1:$AN$4997,MATCH(U$1&\"|\"&$B40,'Data Annex'!$K$1:$K$4997,0),MATCH(U$2,'Data Annex'!$K$1:$AN$1,0)),\"\")","v":-4.8527911999999999E-2},{"$f":"IFERROR(INDEX('Data Annex'!$K$1:$AN$4997,MATCH(V$1&\"|\"&$B40,'Data Annex'!$K$1:$K$4997,0),MATCH(V$2,'Data Annex'!$K$1:$AN$1,0)),\"\")","v":4.4571675000000003E-3},{"$f":"IFERROR(INDEX('Data Annex'!$K$1:$AN$4997,MATCH(W$1&\"|\"&$B40,'Data Annex'!$K$1:$K$4997,0),MATCH(W$2,'Data Annex'!$K$1:$AN$1,0)),\"\")","v":5.0020611E-3},{"$f":"IFERROR(INDEX('Data Annex'!$K$1:$AN$4997,MATCH(X$1&\"|\"&$B40,'Data Annex'!$K$1:$K$4997,0),MATCH(X$2,'Data Annex'!$K$1:$AN$1,0)),\"\")","v":5.4166439000000004E-3}]
[99,"EU",null,"EU/EEA",{"$f":"IFERROR(INDEX('Data Annex'!$K$1:$AN$4997,MATCH(E$1&\"|\"&$B41,'Data Annex'!$K$1:$K$4997,0),MATCH(E$2,'Data Annex'!$K$1:$AN$1,0)),\"\")","v":1.29016697E-2},{"$f":"IFERROR(INDEX('Data Annex'!$K$1:$AN$4997,MATCH(F$1&\"|\"&$B41,'Data Annex'!$K$1:$K$4997,0),MATCH(F$2,'Data Annex'!$K$1:$AN$1,0)),\"\")","v":4.9265005000000001E-3},{"$f":"IFERROR(INDEX('Data Annex'!$K$1:$AN$4997,MATCH(G$1&\"|\"&$B41,'Data Annex'!$K$1:$K$4997,0),MATCH(G$2,'Data Annex'!$K$1:$AN$1,0)),\"\")","v":2.4842092100000001E-2},{"$f":"IFERROR(INDEX('Data Annex'!$K$1:$AN$4997,MATCH(H$1&\"|\"&$B41,'Data Annex'!$K$1:$K$4997,0),MATCH(H$2,'Data Annex'!$K$1:$AN$1,0)),\"\")","v":2.0163690799999998E-2},{"$f":"IFERROR(INDEX('Data Annex'!$K$1:$AN$4997,MATCH(I$1&\"|\"&$B41,'Data Annex'!$K$1:$K$4997,0),MATCH(I$2,'Data Annex'!$K$1:$AN$1,0)),\"\")","v":0.18131420579999999},{"$f":"IFERROR(INDEX('Data Annex'!$K$1:$AN$4997,MATCH(J$1&\"|\"&$B41,'Data Annex'!$K$1:$K$4997,0),MATCH(J$2,'Data Annex'!$K$1:$AN$1,0)),\"\")","v":0.17879049399999999},{"$f":"IFERROR(INDEX('Data Annex'!$K$1:$AN$4997,MATCH(K$1&\"|\"&$B41,'Data Annex'!$K$1:$K$4997,0),MATCH(K$2,'Data Annex'!$K$1:$AN$1,0)),\"\")","v":0.17663844500000001},{"$f":"IFERROR(INDEX('Data Annex'!$K$1:$AN$4997,MATCH(L$1&\"|\"&$B41,'Data Annex'!$K$1:$K$4997,0),MATCH(L$2,'Data Annex'!$K$1:$AN$1,0)),\"\")","v":0.17465858710000001},{"$f":"IFERROR(INDEX('Data Annex'!$K$1:$AN$4997,MATCH(M$1&\"|\"&$B41,'Data Annex'!$K$1:$K$4997,0),MATCH(M$2,'Data Annex'!$K$1:$AN$1,0)),\"\")","v":9.4790458899999999E-2},{"$f":"IFERROR(INDEX('Data Annex'!$K$1:$AN$4997,MATCH(N$1&\"|\"&$B41,'Data Annex'!$K$1:$K$4997,0),MATCH(N$2,'Data Annex'!$K$1:$AN$1,0)),\"\")","v":9.0142853600000003E-2},{"$f":"IFERROR(INDEX('Data Annex'!$K$1:$AN$4997,MATCH(O$1&\"|\"&$B41,'Data Annex'!$K$1:$K$4997,0),MATCH(O$2,'Data Annex'!$K$1:$AN$1,0)),\"\")","v":8.9144663700000001E-2},{"$f":"IFERROR(INDEX('Data Annex'!$K$1:$AN$4997,MATCH(P$1&\"|\"&$B41,'Data Annex'!$K$1:$K$4997,0),MATCH(P$2,'Data Annex'!$K$1:$AN$1,0)),\"\")","v":8.9679156900000001E-2},{"$f":"IFERROR(INDEX('Data Annex'!$K$1:$AN$4997,MATCH(Q$1&\"|\"&$B41,'Data Annex'!$K$1:$K$4997,0),MATCH(Q$2,'Data Annex'!$K$1:$AN$1,0)),\"\")","v":1.22006414E-2},{"$f":"IFERROR(INDEX('Data Annex'!$K$1:$AN$4997,MATCH(R$1&\"|\"&$B41,'Data Annex'!$K$1:$K$4997,0),MATCH(R$2,'Data Annex'!$K$1:$AN$1,0)),\"\")","v":1.1588405E-2},{"$f":"IFERROR(INDEX('Data Annex'!$K$1:$AN$4997,MATCH(S$1&\"|\"&$B41,'Data Annex'!$K$1:$K$4997,0),MATCH(S$2,'Data Annex'!$K$1:$AN$1,0)),\"\")","v":1.4992811999999999E-2},{"$f":"IFERROR(INDEX('Data Annex'!$K$1:$AN$4997,MATCH(T$1&\"|\"&$B41,'Data Annex'!$K$1:$K$4997,0),MATCH(T$2,'Data Annex'!$K$1:$AN$1,0)),\"\")","v":1.58772615E-2},{"$f":"IFERROR(INDEX('Data Annex'!$K$1:$AN$4997,MATCH(U$1&\"|\"&$B41,'Data Annex'!$K$1:$K$4997,0),MATCH(U$2,'Data Annex'!$K$1:$AN$1,0)),\"\")","v":-2.6389300000000002E-4},{"$f":"IFERROR(INDEX('Data Annex'!$K$1:$AN$4997,MATCH(V$1&\"|\"&$B41,'Data Annex'!$K$1:$K$4997,0),MATCH(V$2,'Data Annex'!$K$1:$AN$1,0)),\"\")","v":1.59704572E-2},{"$f":"IFERROR(INDEX('Data Annex'!$K$1:$AN$4997,MATCH(W$1&\"|\"&$B41,'Data Annex'!$K$1:$K$4997,0),MATCH(W$2,'Data Annex'!$K$1:$AN$1,0)),\"\")","v":1.45321268E-2},{"$f":"IFERROR(INDEX('Data Annex'!$K$1:$AN$4997,MATCH(X$1&\"|\"&$B41,'Data Annex'!$K$1:$K$4997,0),MATCH(X$2,'Data Annex'!$K$1:$AN$1,0)),\"\")","v":1.5265375100000001E-2}]
[12,"GB",null,"GB",{"$f":"IFERROR(INDEX('Data Annex'!$K$1:$AN$4997,MATCH(E$1&\"|\"&$B42,'Data Annex'!$K$1:$K$4997,0),MATCH(E$2,'Data Annex'!$K$1:$AN$1,0)),\"\")","v":5.5035387700000001E-2},{"$f":"IFERROR(INDEX('Data Annex'!$K$1:$AN$4997,MATCH(F$1&\"|\"&$B42,'Data Annex'!$K$1:$K$4997,0),MATCH(F$2,'Data Annex'!$K$1:$AN$1,0)),\"\")","v":2.6520120899999999E-2},{"$f":"IFERROR(INDEX('Data Annex'!$K$1:$AN$4997,MATCH(G$1&\"|\"&$B42,'Data Annex'!$K$1:$K$4997,0),MATCH(G$2,'Data Annex'!$K$1:$AN$1,0)),\"\")","v":2.8099580200000002E-2},{"$f":"IFERROR(INDEX('Data Annex'!$K$1:$AN$4997,MATCH(H$1&\"|\"&$B42,'Data Annex'!$K$1:$K$4997,0),MATCH(H$2,'Data Annex'!$K$1:$AN$1,0)),\"\")","v":2.5872069300000002E-2},{"$f":"IFERROR(INDEX('Data Annex'!$K$1:$AN$4997,MATCH(I$1&\"|\"&$B42,'Data Annex'!$K$1:$K$4997,0),MATCH(I$2,'Data Annex'!$K$1:$AN$1,0)),\"\")","v":0.1592820576},{"$f":"IFERROR(INDEX('Data Annex'!$K$1:$AN$4997,MATCH(J$1&\"|\"&$B42,'Data Annex'!$K$1:$K$4997,0),MATCH(J$2,'Data Annex'!$K$1:$AN$1,0)),\"\")","v":0.1504052112},{"$f":"IFERROR(INDEX('Data Annex'!$K$1:$AN$4997,MATCH(K$1&\"|\"&$B42,'Data Annex'!$K$1:$K$4997,0),MATCH(K$2,'Data Annex'!$K$1:$AN$1,0)),\"\")","v":0.14577648430000001},{"$f":"IFERROR(INDEX('Data Annex'!$K$1:$AN$4997,MATCH(L$1&\"|\"&$B42,'Data Annex'!$K$1:$K$4997,0),MATCH(L$2,'Data Annex'!$K$1:$AN$1,0)),\"\")","v":0.1432864012},{"$f":"IFERROR(INDEX('Data Annex'!$K$1:$AN$4997,MATCH(M$1&\"|\"&$B42,'Data Annex'!$K$1:$K$4997,0),MATCH(M$2,'Data Annex'!$K$1:$AN$1,0)),\"\")","v":6.4970633099999994E-2},{"$f":"IFERROR(INDEX('Data Annex'!$K$1:$AN$4997,MATCH(N$1&\"|\"&$B42,'Data Annex'!$K$1:$K$4997,0),MATCH(N$2,'Data Annex'!$K$1:$AN$1,0)),\"\")","v":6.1862672700000003E-2},{"$f":"IFERROR(INDEX('Data Annex'!$K$1:$AN$4997,MATCH(O$1&\"|\"&$B42,'Data Annex'!$K$1:$K$4997,0),MATCH(O$2,'Data Annex'!$K$1:$AN$1,0)),\"\")","v":5.9904876199999998E-2},{"$f":"IFERROR(INDEX('Data Annex'!$K$1:$AN$4997,MATCH(P$1&\"|\"&$B42,'Data Annex'!$K$1:$K$4997,0),MATCH(P$2,'Data Annex'!$K$1:$AN$1,0)),\"\")","v":5.8887436000000001E-2},{"$f":"IFERROR(INDEX('Data Annex'!$K$1:$AN$4997,MATCH(Q$1&\"|\"&$B42,'Data Annex'!$K$1:$K$4997,0),MATCH(Q$2,'Data Annex'!$K$1:$AN$1,0)),\"\")","v":6.2450325500000001E-2},{"$f":"IFERROR(INDEX('Data Annex'!$K$1:$AN$4997,MATCH(R$1&\"|\"&$B42,'Data Annex'!$K$1:$K$4997,0),MATCH(R$2,'Data Annex'!$K$1:$AN$1,0)),\"\")","v":6.0944025499999999E-2},{"$f":"IFERROR(INDEX('Data Annex'!$K$1:$AN$4997,MATCH(S$1&\"|\"&$B42,'Data Annex'!$K$1:$K$4997,0),MATCH(S$2,'Data Annex'!$K$1:$AN$1,0)),\"\")","v":5.5979889300000002E-2},{"$f":"IFERROR(INDEX('Data Annex'!$K$1:$AN$4997,MATCH(T$1&\"|\"&$B42,'Data Annex'!$K$1:$K$4997,0),MATCH(T$2,'Data Annex'!$K$1:$AN$1,0)),\"\")","v":4.9422977100000001E-2},{"$f":"IFERROR(INDEX('Data Annex'!$K$1:$AN$4997,MATCH(U$1&\"|\"&$B42,'Data Annex'!$K$1:$K$4997,0),MATCH(U$2,'Data Annex'!$K$1:$AN$1,0)),\"\")","v":2.6021899500000001E-2},{"$f":"IFERROR(INDEX('Data Annex'!$K$1:$AN$4997,MATCH(V$1&\"|\"&$B42,'Data Annex'!$K$1:$K$4997,0),MATCH(V$2,'Data Annex'!$K$1:$AN$1,0)),\"\")","v":2.2421344900000001E-2},{"$f":"IFERROR(INDEX('Data Annex'!$K$1:$AN$4997,MATCH(W$1&\"|\"&$B42,'Data Annex'!$K$1:$K$4997,0),MATCH(W$2,'Data Annex'!$K$1:$AN$1,0)),\"\")","v":1.62836357E-2},{"$f":"IFERROR(INDEX('Data Annex'!$K$1:$AN$4997,MATCH(X$1&\"|\"&$B42,'Data Annex'!$K$1:$K$4997,0),MATCH(X$2,'Data Annex'!$K$1:$AN$1,0)),\"\")","v":1.5365082400000001E-2}]
[]
[null,null,null,null,"T29_1","T29_1","T29_1","T29_1","T29_2","T29_2","T29_2","T29_2","T29_3","T29_3","T29_3","T29_3","T29_4","T29_4","T29_4","T29_4","T29_5","T29_5","T29_5","T29_5"]
[null,null,null,null,{"$f":"TEXT(E50,\"YYYYMM\")+0","v":202003},{"$f":"TEXT(F50,\"YYYYMM\")+0","v":202006},202009,202012,202003,202006,202009,202012,202003,202006,202009,202012,202003,202006,202009,202012,202003,202006,202009,202012]
[null,null,null,"Components of RoE: expenses, costs, provisions, impairments"]
[]
[null,null,null,"%"]
[null,null,null,null,"Staff expenses / equity",null,null,null,"Other admin. (incl. depreciation) expenses / equity",null,null,null,"Provisions / equity",null,null,null,"Impairments (credit risk losses) / equity",null,null,null,"Other (incl. tax) / equity"]
[null,null,null,null,{"$f":"EOMONTH($A$3,-9)","v":"2020-03-31"},{"$f":"EOMONTH($A$3,-6)","v":"2020-06-30"},{"$f":"EOMONTH($A$3,-3)","v":"2020-09-30"},{"$f":"$A$3","v":"2020-12-01"},{"$f":"EOMONTH($A$3,-9)","v":"2020-03-31"},{"$f":"EOMONTH($A$3,-6)","v":"2020-06-30"},{"$f":"EOMONTH($A$3,-3)","v":"2020-09-30"},{"$f":"$A$3","v":"2020-12-01"},{"$f":"EOMONTH($A$3,-9)","v":"2020-03-31"},{"$f":"EOMONTH($A$3,-6)","v":"2020-06-30"},{"$f":"EOMONTH($A$3,-3)","v":"2020-09-30"},{"$f":"$A$3","v":"2020-12-01"},{"$f":"EOMONTH($A$3,-9)","v":"2020-03-31"},{"$f":"EOMONTH($A$3,-6)","v":"2020-06-30"},{"$f":"EOMONTH($A$3,-3)","v":"2020-09-30"},{"$f":"$A$3","v":"2020-12-01"},{"$f":"EOMONTH($A$3,-9)","v":"2020-03-31"},{"$f":"EOMONTH($A$3,-6)","v":"2020-06-30"},{"$f":"EOMONTH($A$3,-3)","v":"2020-09-30"},{"$f":"$A$3","v":"2020-12-01"}]
[1,"AT",null,"AT",{"$f":"IFERROR(INDEX('Data Annex'!$K$1:$AN$4997,MATCH(E$44&\"|\"&$B51,'Data Annex'!$K$1:$K$4997,0),MATCH(E$45,'Data Annex'!$K$1:$AN$1,0)),\"\")","v":0.1022708425},{"$f":"IFERROR(INDEX('Data Annex'!$K$1:$AN$4997,MATCH(F$44&\"|\"&$B51,'Data Annex'!$K$1:$K$4997,0),MATCH(F$45,'Data Annex'!$K$1:$AN$1,0)),\"\")","v":0.1019531766},{"$f":"IFERROR(INDEX('Data Annex'!$K$1:$AN$4997,MATCH(G$44&\"|\"&$B51,'Data Annex'!$K$1:$K$4997,0),MATCH(G$45,'Data Annex'!$K$1:$AN$1,0)),\"\")","v":0.1000657935},{"$f":"IFERROR(INDEX('Data Annex'!$K$1:$AN$4997,MATCH(H$44&\"|\"&$B51,'Data Annex'!$K$1:$K$4997,0),MATCH(H$45,'Data Annex'!$K$1:$AN$1,0)),\"\")","v":9.8582507900000005E-2},{"$f":"IFERROR(INDEX('Data Annex'!$K$1:$AN$4997,MATCH(I$44&\"|\"&$B51,'Data Annex'!$K$1:$K$4997,0),MATCH(I$45,'Data Annex'!$K$1:$AN$1,0)),\"\")","v":0.1013735247},{"$f":"IFERROR(INDEX('Data Annex'!$K$1:$AN$4997,MATCH(J$44&\"|\"&$B51,'Data Annex'!$K$1:$K$4997,0),MATCH(J$45,'Data Annex'!$K$1:$AN$1,0)),\"\")","v":8.0899203099999997E-2},{"$f":"IFERROR(INDEX('Data Annex'!$K$1:$AN$4997,MATCH(K$44&\"|\"&$B51,'Data Annex'!$K$1:$K$4997,0),MATCH(K$45,'Data Annex'!$K$1:$AN$1,0)),\"\")","v":7.8148175900000005E-2},{"$f":"IFERROR(INDEX('Data Annex'!$K$1:$AN$4997,MATCH(L$44&\"|\"&$B51,'Data Annex'!$K$1:$K$4997,0),MATCH(L$45,'Data Annex'!$K$1:$AN$1,0)),\"\")","v":7.8521025199999997E-2},{"$f":"IFERROR(INDEX('Data Annex'!$K$1:$AN$4997,MATCH(M$44&\"|\"&$B51,'Data Annex'!$K$1:$K$4997,0),MATCH(M$45,'Data Annex'!$K$1:$AN$1,0)),\"\")","v":3.7845818999999998E-3},{"$f":"IFERROR(INDEX('Data Annex'!$K$1:$AN$4997,MATCH(N$44&\"|\"&$B51,'Data Annex'!$K$1:$K$4997,0),MATCH(N$45,'Data Annex'!$K$1:$AN$1,0)),\"\")","v":6.5969579000000004E-3},{"$f":"IFERROR(INDEX('Data Annex'!$K$1:$AN$4997,MATCH(O$44&\"|\"&$B51,'Data Annex'!$K$1:$K$4997,0),MATCH(O$45,'Data Annex'!$K$1:$AN$1,0)),\"\")","v":5.2246057999999996E-3},{"$f":"IFERROR(INDEX('Data Annex'!$K$1:$AN$4997,MATCH(P$44&\"|\"&$B51,'Data Annex'!$K$1:$K$4997,0),MATCH(P$45,'Data Annex'!$K$1:$AN$1,0)),\"\")","v":5.9225672000000002E-3},{"$f":"IFERROR(INDEX('Data Annex'!$K$1:$AN$4997,MATCH(Q$44&\"|\"&$B51,'Data Annex'!$K$1:$K$4997,0),MATCH(Q$45,'Data Annex'!$K$1:$AN$1,0)),\"\")","v":2.87595379E-2},{"$f":"IFERROR(INDEX('Data Annex'!$K$1:$AN$4997,MATCH(R$44&\"|\"&$B51,'Data Annex'!$K$1:$K$4997,0),MATCH(R$45,'Data Annex'!$K$1:$AN$1,0)),\"\")","v":4.8686637999999997E-2},{"$f":"IFERROR(INDEX('Data Annex'!$K$1:$AN$4997,MATCH(S$44&\"|\"&$B51,'Data Annex'!$K$1:$K$4997,0),MATCH(S$45,'Data Annex'!$K$1:$AN$1,0)),\"\")","v":4.2067777200000003E-2},{"$f":"IFERROR(INDEX('Data Annex'!$K$1:$AN$4997,MATCH(T$44&\"|\"&$B51,'Data Annex'!$K$1:$K$4997,0),MATCH(T$45,'Data Annex'!$K$1:$AN$1,0)),\"\")","v":4.7068516499999997E-2},{"$f":"IFERROR(INDEX('Data Annex'!$K$1:$AN$4997,MATCH(U$44&\"|\"&$B51,'Data Annex'!$K$1:$K$4997,0),MATCH(U$45,'Data Annex'!$K$1:$AN$1,0)),\"\")","v":2.5732593799999998E-2},{"$f":"IFERROR(INDEX('Data Annex'!$K$1:$AN$4997,MATCH(V$44&\"|\"&$B51,'Data Annex'!$K$1:$K$4997,0),MATCH(V$45,'Data Annex'!$K$1:$AN$1,0)),\"\")","v":3.6297188600000002E-2},{"$f":"IFERROR(INDEX('Data Annex'!$K$1:$AN$4997,MATCH(W$44&\"|\"&$B51,'Data Annex'!$K$1:$K$4997,0),MATCH(W$45,'Data Annex'!$K$1:$AN$1,0)),\"\")","v":2.8956884799999999E-2},{"$f":"IFERROR(INDEX('Data Annex'!$K$1:$AN$4997,MATCH(X$44&\"|\"&$B51,'Data Annex'!$K$1:$K$4997,0),MATCH(X$45,'Data Annex'!$K$1:$AN$1,0)),\"\")","v":2.4265200300000001E-2}]
[2,"BE",null,"BE",{"$f":"IFERROR(INDEX('Data Annex'!$K$1:$AN$4997,MATCH(E$44&\"|\"&$B52,'Data Annex'!$K$1:$K$4997,0),MATCH(E$45,'Data Annex'!$K$1:$AN$1,0)),\"\")","v":8.0807744500000001E-2},{"$f":"IFERROR(INDEX('Data Annex'!$K$1:$AN$4997,MATCH(F$44&\"|\"&$B52,'Data Annex'!$K$1:$K$4997,0),MATCH(F$45,'Data Annex'!$K$1:$AN$1,0)),\"\")","v":7.7893352599999993E-2},{"$f":"IFERROR(INDEX('Data Annex'!$K$1:$AN$4997,MATCH(G$44&\"|\"&$B52,'Data Annex'!$K$1:$K$4997,0),MATCH(G$45,'Data Annex'!$K$1:$AN$1,0)),\"\")","v":7.6902037399999998E-2},{"$f":"IFERROR(INDEX('Data Annex'!$K$1:$AN$4997,MATCH(H$44&\"|\"&$B52,'Data Annex'!$K$1:$K$4997,0),MATCH(H$45,'Data Annex'!$K$1:$AN$1,0)),\"\")","v":7.6755269799999998E-2},{"$f":"IFERROR(INDEX('Data Annex'!$K$1:$AN$4997,MATCH(I$44&\"|\"&$B52,'Data Annex'!$K$1:$K$4997,0),MATCH(I$45,'Data Annex'!$K$1:$AN$1,0)),\"\")","v":0.1168759893},{"$f":"IFERROR(INDEX('Data Annex'!$K$1:$AN$4997,MATCH(J$44&\"|\"&$B52,'Data Annex'!$K$1:$K$4997,0),MATCH(J$45,'Data Annex'!$K$1:$AN$1,0)),\"\")","v":7.9414415200000005E-2},{"$f":"IFERROR(INDEX('Data Annex'!$K$1:$AN$4997,MATCH(K$44&\"|\"&$B52,'Data Annex'!$K$1:$K$4997,0),MATCH(K$45,'Data Annex'!$K$1:$AN$1,0)),\"\")","v":6.5120694300000004E-2},{"$f":"IFERROR(INDEX('Data Annex'!$K$1:$AN$4997,MATCH(L$44&\"|\"&$B52,'Data Annex'!$K$1:$K$4997,0),MATCH(L$45,'Data Annex'!$K$1:$AN$1,0)),\"\")","v":6.3229107600000001E-2},{"$f":"IFERROR(INDEX('Data Annex'!$K$1:$AN$4997,MATCH(M$44&\"|\"&$B52,'Data Annex'!$K$1:$K$4997,0),MATCH(M$45,'Data Annex'!$K$1:$AN$1,0)),\"\")","v":2.4629000000000001E-5},{"$f":"IFERROR(INDEX('Data Annex'!$K$1:$AN$4997,MATCH(N$44&\"|\"&$B52,'Data Annex'!$K$1:$K$4997,0),MATCH(N$45,'Data Annex'!$K$1:$AN$1,0)),\"\")","v":1.4088396E-3},{"$f":"IFERROR(INDEX('Data Annex'!$K$1:$AN$4997,MATCH(O$44&\"|\"&$B52,'Data Annex'!$K$1:$K$4997,0),MATCH(O$45,'Data Annex'!$K$1:$AN$1,0)),\"\")","v":1.2444311000000001E-3},{"$f":"IFERROR(INDEX('Data Annex'!$K$1:$AN$4997,MATCH(P$44&\"|\"&$B52,'Data Annex'!$K$1:$K$4997,0),MATCH(P$45,'Data Annex'!$K$1:$AN$1,0)),\"\")","v":3.1384261999999998E-3},{"$f":"IFERROR(INDEX('Data Annex'!$K$1:$AN$4997,MATCH(Q$44&\"|\"&$B52,'Data Annex'!$K$1:$K$4997,0),MATCH(Q$45,'Data Annex'!$K$1:$AN$1,0)),\"\")","v":2.33999329E-2},{"$f":"IFERROR(INDEX('Data Annex'!$K$1:$AN$4997,MATCH(R$44&\"|\"&$B52,'Data Annex'!$K$1:$K$4997,0),MATCH(R$45,'Data Annex'!$K$1:$AN$1,0)),\"\")","v":5.0888812499999998E-2},{"$f":"IFERROR(INDEX('Data Annex'!$K$1:$AN$4997,MATCH(S$44&\"|\"&$B52,'Data Annex'!$K$1:$K$4997,0),MATCH(S$45,'Data Annex'!$K$1:$AN$1,0)),\"\")","v":4.06637361E-2},{"$f":"IFERROR(INDEX('Data Annex'!$K$1:$AN$4997,MATCH(T$44&\"|\"&$B52,'Data Annex'!$K$1:$K$4997,0),MATCH(T$45,'Data Annex'!$K$1:$AN$1,0)),\"\")","v":3.4759653600000003E-2},{"$f":"IFERROR(INDEX('Data Annex'!$K$1:$AN$4997,MATCH(U$44&\"|\"&$B52,'Data Annex'!$K$1:$K$4997,0),MATCH(U$45,'Data Annex'!$K$1:$AN$1,0)),\"\")","v":2.1951159E-3},{"$f":"IFERROR(INDEX('Data Annex'!$K$1:$AN$4997,MATCH(V$44&\"|\"&$B52,'Data Annex'!$K$1:$K$4997,0),MATCH(V$45,'Data Annex'!$K$1:$AN$1,0)),\"\")","v":1.5156145100000001E-2},{"$f":"IFERROR(INDEX('Data Annex'!$K$1:$AN$4997,MATCH(W$44&\"|\"&$B52,'Data Annex'!$K$1:$K$4997,0),MATCH(W$45,'Data Annex'!$K$1:$AN$1,0)),\"\")","v":2.3984051100000001E-2},{"$f":"IFERROR(INDEX('Data Annex'!$K$1:$AN$4997,MATCH(X$44&\"|\"&$B52,'Data Annex'!$K$1:$K$4997,0),MATCH(X$45,'Data Annex'!$K$1:$AN$1,0)),\"\")","v":1.9883218500000001E-2}]
[3,"BG",null,"BG",{"$f":"IFERROR(INDEX('Data Annex'!$K$1:$AN$4997,MATCH(E$44&\"|\"&$B53,'Data Annex'!$K$1:$K$4997,0),MATCH(E$45,'Data Annex'!$K$1:$AN$1,0)),\"\")","v":6.1872540900000002E-2},{"$f":"IFERROR(INDEX('Data Annex'!$K$1:$AN$4997,MATCH(F$44&\"|\"&$B53,'Data Annex'!$K$1:$K$4997,0),MATCH(F$45,'Data Annex'!$K$1:$AN$1,0)),\"\")","v":6.0988870299999998E-2},{"$f":"IFERROR(INDEX('Data Annex'!$K$1:$AN$4997,MATCH(G$44&\"|\"&$B53,'Data Annex'!$K$1:$K$4997,0),MATCH(G$45,'Data Annex'!$K$1:$AN$1,0)),\"\")","v":5.8790235400000002E-2},{"$f":"IFERROR(INDEX('Data Annex'!$K$1:$AN$4997,MATCH(H$44&\"|\"&$B53,'Data Annex'!$K$1:$K$4997,0),MATCH(H$45,'Data Annex'!$K$1:$AN$1,0)),\"\")","v":5.8363518699999999E-2},{"$f":"IFERROR(INDEX('Data Annex'!$K$1:$AN$4997,MATCH(I$44&\"|\"&$B53,'Data Annex'!$K$1:$K$4997,0),MATCH(I$45,'Data Annex'!$K$1:$AN$1,0)),\"\")","v":7.1184056499999995E-2},{"$f":"IFERROR(INDEX('Data Annex'!$K$1:$AN$4997,MATCH(J$44&\"|\"&$B53,'Data Annex'!$K$1:$K$4997,0),MATCH(J$45,'Data Annex'!$K$1:$AN$1,0)),\"\")","v":6.7735530299999999E-2},{"$f":"IFERROR(INDEX('Data Annex'!$K$1:$AN$4997,MATCH(K$44&\"|\"&$B53,'Data Annex'!$K$1:$K$4997,0),MATCH(K$45,'Data Annex'!$K$1:$AN$1,0)),\"\")","v":6.63002392E-2},{"$f":"IFERROR(INDEX('Data Annex'!$K$1:$AN$4997,MATCH(L$44&\"|\"&$B53,'Data Annex'!$K$1:$K$4997,0),MATCH(L$45,'Data Annex'!$K$1:$AN$1,0)),\"\")","v":6.8301445000000002E-2},{"$f":"IFERROR(INDEX('Data Annex'!$K$1:$AN$4997,MATCH(M$44&\"|\"&$B53,'Data Annex'!$K$1:$K$4997,0),MATCH(M$45,'Data Annex'!$K$1:$AN$1,0)),\"\")","v":-5.059671E-3},{"$f":"IFERROR(INDEX('Data Annex'!$K$1:$AN$4997,MATCH(N$44&\"|\"&$B53,'Data Annex'!$K$1:$K$4997,0),MATCH(N$45,'Data Annex'!$K$1:$AN$1,0)),\"\")","v":-1.9947189999999998E-3},{"$f":"IFERROR(INDEX('Data Annex'!$K$1:$AN$4997,MATCH(O$44&\"|\"&$B53,'Data Annex'!$K$1:$K$4997,0),MATCH(O$45,'Data Annex'!$K$1:$AN$1,0)),\"\")","v":2.0466040000000001E-4},{"$f":"IFERROR(INDEX('Data Annex'!$K$1:$AN$4997,MATCH(P$44&\"|\"&$B53,'Data Annex'!$K$1:$K$4997,0),MATCH(P$45,'Data Annex'!$K$1:$AN$1,0)),\"\")","v":-5.61931E-4},{"$f":"IFERROR(INDEX('Data Annex'!$K$1:$AN$4997,MATCH(Q$44&\"|\"&$B53,'Data Annex'!$K$1:$K$4997,0),MATCH(Q$45,'Data Annex'!$K$1:$AN$1,0)),\"\")","v":5.2145782500000001E-2},{"$f":"IFERROR(INDEX('Data Annex'!$K$1:$AN$4997,MATCH(R$44&\"|\"&$B53,'Data Annex'!$K$1:$K$4997,0),MATCH(R$45,'Data Annex'!$K$1:$AN$1,0)),\"\")","v":6.4954213900000002E-2},{"$f":"IFERROR(INDEX('Data Annex'!$K$1:$AN$4997,MATCH(S$44&\"|\"&$B53,'Data Annex'!$K$1:$K$4997,0),MATCH(S$45,'Data Annex'!$K$1:$AN$1,0)),\"\")","v":6.5032901700000006E-2},{"$f":"IFERROR(INDEX('Data Annex'!$K$1:$AN$4997,MATCH(T$44&\"|\"&$B53,'Data Annex'!$K$1:$K$4997,0),MATCH(T$45,'Data Annex'!$K$1:$AN$1,0)),\"\")","v":7.2873223099999995E-2},{"$f":"IFERROR(INDEX('Data Annex'!$K$1:$AN$4997,MATCH(U$44&\"|\"&$B53,'Data Annex'!$K$1:$K$4997,0),MATCH(U$45,'Data Annex'!$K$1:$AN$1,0)),\"\")","v":5.4490192999999999E-3},{"$f":"IFERROR(INDEX('Data Annex'!$K$1:$AN$4997,MATCH(V$44&\"|\"&$B53,'Data Annex'!$K$1:$K$4997,0),MATCH(V$45,'Data Annex'!$K$1:$AN$1,0)),\"\")","v":3.9816583599999997E-2},{"$f":"IFERROR(INDEX('Data Annex'!$K$1:$AN$4997,MATCH(W$44&\"|\"&$B53,'Data Annex'!$K$1:$K$4997,0),MATCH(W$45,'Data Annex'!$K$1:$AN$1,0)),\"\")","v":3.1903068499999999E-2},{"$f":"IFERROR(INDEX('Data Annex'!$K$1:$AN$4997,MATCH(X$44&\"|\"&$B53,'Data Annex'!$K$1:$K$4997,0),MATCH(X$45,'Data Annex'!$K$1:$AN$1,0)),\"\")","v":2.8200190399999998E-2}]
[4,"CY",null,"CY",{"$f":"IFERROR(INDEX('Data Annex'!$K$1:$AN$4997,MATCH(E$44&\"|\"&$B54,'Data Annex'!$K$1:$K$4997,0),MATCH(E$45,'Data Annex'!$K$1:$AN$1,0)),\"\")","v":9.7580907999999994E-2},{"$f":"IFERROR(INDEX('Data Annex'!$K$1:$AN$4997,MATCH(F$44&\"|\"&$B54,'Data Annex'!$K$1:$K$4997,0),MATCH(F$45,'Data Annex'!$K$1:$AN$1,0)),\"\")","v":9.7618345400000001E-2},{"$f":"IFERROR(INDEX('Data Annex'!$K$1:$AN$4997,MATCH(G$44&\"|\"&$B54,'Data Annex'!$K$1:$K$4997,0),MATCH(G$45,'Data Annex'!$K$1:$AN$1,0)),\"\")","v":0.1067556053},{"$f":"IFERROR(INDEX('Data Annex'!$K$1:$AN$4997,MATCH(H$44&\"|\"&$B54,'Data Annex'!$K$1:$K$4997,0),MATCH(H$45,'Data Annex'!$K$1:$AN$1,0)),\"\")","v":0.1158336863},{"$f":"IFERROR(INDEX('Data Annex'!$K$1:$AN$4997,MATCH(I$44&\"|\"&$B54,'Data Annex'!$K$1:$K$4997,0),MATCH(I$45,'Data Annex'!$K$1:$AN$1,0)),\"\")","v":9.2276584600000003E-2},{"$f":"IFERROR(INDEX('Data Annex'!$K$1:$AN$4997,MATCH(J$44&\"|\"&$B54,'Data Annex'!$K$1:$K$4997,0),MATCH(J$45,'Data Annex'!$K$1:$AN$1,0)),\"\")","v":8.4324149700000003E-2},{"$f":"IFERROR(INDEX('Data Annex'!$K$1:$AN$4997,MATCH(K$44&\"|\"&$B54,'Data Annex'!$K$1:$K$4997,0),MATCH(K$45,'Data Annex'!$K$1:$AN$1,0)),\"\")","v":7.5708393700000001E-2},{"$f":"IFERROR(INDEX('Data Annex'!$K$1:$AN$4997,MATCH(L$44&\"|\"&$B54,'Data Annex'!$K$1:$K$4997,0),MATCH(L$45,'Data Annex'!$K$1:$AN$1,0)),\"\")","v":9.5820054000000002E-2},{"$f":"IFERROR(INDEX('Data Annex'!$K$1:$AN$4997,MATCH(M$44&\"|\"&$B54,'Data Annex'!$K$1:$K$4997,0),MATCH(M$45,'Data Annex'!$K$1:$AN$1,0)),\"\")","v":2.2167322E-3},{"$f":"IFERROR(INDEX('Data Annex'!$K$1:$AN$4997,MATCH(N$44&\"|\"&$B54,'Data Annex'!$K$1:$K$4997,0),MATCH(N$45,'Data Annex'!$K$1:$AN$1,0)),\"\")","v":4.0950203999999997E-3},{"$f":"IFERROR(INDEX('Data Annex'!$K$1:$AN$4997,MATCH(O$44&\"|\"&$B54,'Data Annex'!$K$1:$K$4997,0),MATCH(O$45,'Data Annex'!$K$1:$AN$1,0)),\"\")","v":5.6027517000000002E-3},{"$f":"IFERROR(INDEX('Data Annex'!$K$1:$AN$4997,MATCH(P$44&\"|\"&$B54,'Data Annex'!$K$1:$K$4997,0),MATCH(P$45,'Data Annex'!$K$1:$AN$1,0)),\"\")","v":-6.6312569999999998E-3},{"$f":"IFERROR(INDEX('Data Annex'!$K$1:$AN$4997,MATCH(Q$44&\"|\"&$B54,'Data Annex'!$K$1:$K$4997,0),MATCH(Q$45,'Data Annex'!$K$1:$AN$1,0)),\"\")","v":0.1059268536},{"$f":"IFERROR(INDEX('Data Annex'!$K$1:$AN$4997,MATCH(R$44&\"|\"&$B54,'Data Annex'!$K$1:$K$4997,0),MATCH(R$45,'Data Annex'!$K$1:$AN$1,0)),\"\")","v":0.13860038899999999},{"$f":"IFERROR(INDEX('Data Annex'!$K$1:$AN$4997,MATCH(S$44&\"|\"&$B54,'Data Annex'!$K$1:$K$4997,0),MATCH(S$45,'Data Annex'!$K$1:$AN$1,0)),\"\")","v":0.1049618606},{"$f":"IFERROR(INDEX('Data Annex'!$K$1:$AN$4997,MATCH(T$44&\"|\"&$B54,'Data Annex'!$K$1:$K$4997,0),MATCH(T$45,'Data Annex'!$K$1:$AN$1,0)),\"\")","v":5.2247357100000003E-2},{"$f":"IFERROR(INDEX('Data Annex'!$K$1:$AN$4997,MATCH(U$44&\"|\"&$B54,'Data Annex'!$K$1:$K$4997,0),MATCH(U$45,'Data Annex'!$K$1:$AN$1,0)),\"\")","v":2.0295357900000002E-2},{"$f":"IFERROR(INDEX('Data Annex'!$K$1:$AN$4997,MATCH(V$44&\"|\"&$B54,'Data Annex'!$K$1:$K$4997,0),MATCH(V$45,'Data Annex'!$K$1:$AN$1,0)),\"\")","v":4.8875440300000003E-2},{"$f":"IFERROR(INDEX('Data Annex'!$K$1:$AN$4997,MATCH(W$44&\"|\"&$B54,'Data Annex'!$K$1:$K$4997,0),MATCH(W$45,'Data Annex'!$K$1:$AN$1,0)),\"\")","v":4.0507327199999998E-2},{"$f":"IFERROR(INDEX('Data Annex'!$K$1:$AN$4997,MATCH(X$44&\"|\"&$B54,'Data Annex'!$K$1:$K$4997,0),MATCH(X$45,'Data Annex'!$K$1:$AN$1,0)),\"\")","v":4.4162737200000003E-2}]
[5,"CZ",null,"CZ",{"$f":"IFERROR(INDEX('Data Annex'!$K$1:$AN$4997,MATCH(E$44&\"|\"&$B55,'Data Annex'!$K$1:$K$4997,0),MATCH(E$45,'Data Annex'!$K$1:$AN$1,0)),\"\")","v":7.4971946999999997E-2},{"$f":"IFERROR(INDEX('Data Annex'!$K$1:$AN$4997,MATCH(F$44&\"|\"&$B55,'Data Annex'!$K$1:$K$4997,0),MATCH(F$45,'Data Annex'!$K$1:$AN$1,0)),\"\")","v":7.4302969400000002E-2},{"$f":"IFERROR(INDEX('Data Annex'!$K$1:$AN$4997,MATCH(G$44&\"|\"&$B55,'Data Annex'!$K$1:$K$4997,0),MATCH(G$45,'Data Annex'!$K$1:$AN$1,0)),\"\")","v":7.2942515499999999E-2},{"$f":"IFERROR(INDEX('Data Annex'!$K$1:$AN$4997,MATCH(H$44&\"|\"&$B55,'Data Annex'!$K$1:$K$4997,0),MATCH(H$45,'Data Annex'!$K$1:$AN$1,0)),\"\")","v":7.2925480799999998E-2},{"$f":"IFERROR(INDEX('Data Annex'!$K$1:$AN$4997,MATCH(I$44&\"|\"&$B55,'Data Annex'!$K$1:$K$4997,0),MATCH(I$45,'Data Annex'!$K$1:$AN$1,0)),\"\")","v":9.69765244E-2},{"$f":"IFERROR(INDEX('Data Annex'!$K$1:$AN$4997,MATCH(J$44&\"|\"&$B55,'Data Annex'!$K$1:$K$4997,0),MATCH(J$45,'Data Annex'!$K$1:$AN$1,0)),\"\")","v":6.4459729199999996E-2},{"$f":"IFERROR(INDEX('Data Annex'!$K$1:$AN$4997,MATCH(K$44&\"|\"&$B55,'Data Annex'!$K$1:$K$4997,0),MATCH(K$45,'Data Annex'!$K$1:$AN$1,0)),\"\")","v":6.3809835100000004E-2},{"$f":"IFERROR(INDEX('Data Annex'!$K$1:$AN$4997,MATCH(L$44&\"|\"&$B55,'Data Annex'!$K$1:$K$4997,0),MATCH(L$45,'Data Annex'!$K$1:$AN$1,0)),\"\")","v":6.6428707300000001E-2},{"$f":"IFERROR(INDEX('Data Annex'!$K$1:$AN$4997,MATCH(M$44&\"|\"&$B55,'Data Annex'!$K$1:$K$4997,0),MATCH(M$45,'Data Annex'!$K$1:$AN$1,0)),\"\")","v":1.125385E-3},{"$f":"IFERROR(INDEX('Data Annex'!$K$1:$AN$4997,MATCH(N$44&\"|\"&$B55,'Data Annex'!$K$1:$K$4997,0),MATCH(N$45,'Data Annex'!$K$1:$AN$1,0)),\"\")","v":3.3517385000000001E-3},{"$f":"IFERROR(INDEX('Data Annex'!$K$1:$AN$4997,MATCH(O$44&\"|\"&$B55,'Data Annex'!$K$1:$K$4997,0),MATCH(O$45,'Data Annex'!$K$1:$AN$1,0)),\"\")","v":2.5640505000000002E-3},{"$f":"IFERROR(INDEX('Data Annex'!$K$1:$AN$4997,MATCH(P$44&\"|\"&$B55,'Data Annex'!$K$1:$K$4997,0),MATCH(P$45,'Data Annex'!$K$1:$AN$1,0)),\"\")","v":4.3952957999999999E-3},{"$f":"IFERROR(INDEX('Data Annex'!$K$1:$AN$4997,MATCH(Q$44&\"|\"&$B55,'Data Annex'!$K$1:$K$4997,0),MATCH(Q$45,'Data Annex'!$K$1:$AN$1,0)),\"\")","v":8.0905933000000006E-3},{"$f":"IFERROR(INDEX('Data Annex'!$K$1:$AN$4997,MATCH(R$44&\"|\"&$B55,'Data Annex'!$K$1:$K$4997,0),MATCH(R$45,'Data Annex'!$K$1:$AN$1,0)),\"\")","v":5.1890133800000002E-2},{"$f":"IFERROR(INDEX('Data Annex'!$K$1:$AN$4997,MATCH(S$44&\"|\"&$B55,'Data Annex'!$K$1:$K$4997,0),MATCH(S$45,'Data Annex'!$K$1:$AN$1,0)),\"\")","v":4.5058289500000001E-2},{"$f":"IFERROR(INDEX('Data Annex'!$K$1:$AN$4997,MATCH(T$44&\"|\"&$B55,'Data Annex'!$K$1:$K$4997,0),MATCH(T$45,'Data Annex'!$K$1:$AN$1,0)),\"\")","v":4.5873001099999998E-2},{"$f":"IFERROR(INDEX('Data Annex'!$K$1:$AN$4997,MATCH(U$44&\"|\"&$B55,'Data Annex'!$K$1:$K$4997,0),MATCH(U$45,'Data Annex'!$K$1:$AN$1,0)),\"\")","v":1.87437487E-2},{"$f":"IFERROR(INDEX('Data Annex'!$K$1:$AN$4997,MATCH(V$44&\"|\"&$B55,'Data Annex'!$K$1:$K$4997,0),MATCH(V$45,'Data Annex'!$K$1:$AN$1,0)),\"\")","v":3.40829754E-2},{"$f":"IFERROR(INDEX('Data Annex'!$K$1:$AN$4997,MATCH(W$44&\"|\"&$B55,'Data Annex'!$K$1:$K$4997,0),MATCH(W$45,'Data Annex'!$K$1:$AN$1,0)),\"\")","v":2.9545839300000001E-2},{"$f":"IFERROR(INDEX('Data Annex'!$K$1:$AN$4997,MATCH(X$44&\"|\"&$B55,'Data Annex'!$K$1:$K$4997,0),MATCH(X$45,'Data Annex'!$K$1:$AN$1,0)),\"\")","v":2.59930835E-2}]
[6,"DE",null,"DE",{"$f":"IFERROR(INDEX('Data Annex'!$K$1:$AN$4997,MATCH(E$44&\"|\"&$B56,'Data Annex'!$K$1:$K$4997,0),MATCH(E$45,'Data Annex'!$K$1:$AN$1,0)),\"\")","v":0.1054436237},{"$f":"IFERROR(INDEX('Data Annex'!$K$1:$AN$4997,MATCH(F$44&\"|\"&$B56,'Data Annex'!$K$1:$K$4997,0),MATCH(F$45,'Data Annex'!$K$1:$AN$1,0)),\"\")","v":0.1045035327},{"$f":"IFERROR(INDEX('Data Annex'!$K$1:$AN$4997,MATCH(G$44&\"|\"&$B56,'Data Annex'!$K$1:$K$4997,0),MATCH(G$45,'Data Annex'!$K$1:$AN$1,0)),\"\")","v":0.1043775176},{"$f":"IFERROR(INDEX('Data Annex'!$K$1:$AN$4997,MATCH(H$44&\"|\"&$B56,'Data Annex'!$K$1:$K$4997,0),MATCH(H$45,'Data Annex'!$K$1:$AN$1,0)),\"\")","v":0.11002006459999999},{"$f":"IFERROR(INDEX('Data Annex'!$K$1:$AN$4997,MATCH(I$44&\"|\"&$B56,'Data Annex'!$K$1:$K$4997,0),MATCH(I$45,'Data Annex'!$K$1:$AN$1,0)),\"\")","v":0.1230419147},{"$f":"IFERROR(INDEX('Data Annex'!$K$1:$AN$4997,MATCH(J$44&\"|\"&$B56,'Data Annex'!$K$1:$K$4997,0),MATCH(J$45,'Data Annex'!$K$1:$AN$1,0)),\"\")","v":9.7514578199999993E-2},{"$f":"IFERROR(INDEX('Data Annex'!$K$1:$AN$4997,MATCH(K$44&\"|\"&$B56,'Data Annex'!$K$1:$K$4997,0),MATCH(K$45,'Data Annex'!$K$1:$AN$1,0)),\"\")","v":9.7011475999999999E-2},{"$f":"IFERROR(INDEX('Data Annex'!$K$1:$AN$4997,MATCH(L$44&\"|\"&$B56,'Data Annex'!$K$1:$K$4997,0),MATCH(L$45,'Data Annex'!$K$1:$AN$1,0)),\"\")","v":0.1020729333},{"$f":"IFERROR(INDEX('Data Annex'!$K$1:$AN$4997,MATCH(M$44&\"|\"&$B56,'Data Annex'!$K$1:$K$4997,0),MATCH(M$45,'Data Annex'!$K$1:$AN$1,0)),\"\")","v":2.8263950999999998E-3},{"$f":"IFERROR(INDEX('Data Annex'!$K$1:$AN$4997,MATCH(N$44&\"|\"&$B56,'Data Annex'!$K$1:$K$4997,0),MATCH(N$45,'Data Annex'!$K$1:$AN$1,0)),\"\")","v":3.8696435E-3},{"$f":"IFERROR(INDEX('Data Annex'!$K$1:$AN$4997,MATCH(O$44&\"|\"&$B56,'Data Annex'!$K$1:$K$4997,0),MATCH(O$45,'Data Annex'!$K$1:$AN$1,0)),\"\")","v":4.94642E-3},{"$f":"IFERROR(INDEX('Data Annex'!$K$1:$AN$4997,MATCH(P$44&\"|\"&$B56,'Data Annex'!$K$1:$K$4997,0),MATCH(P$45,'Data Annex'!$K$1:$AN$1,0)),\"\")","v":1.18051567E-2},{"$f":"IFERROR(INDEX('Data Annex'!$K$1:$AN$4997,MATCH(Q$44&\"|\"&$B56,'Data Annex'!$K$1:$K$4997,0),MATCH(Q$45,'Data Annex'!$K$1:$AN$1,0)),\"\")","v":2.30297551E-2},{"$f":"IFERROR(INDEX('Data Annex'!$K$1:$AN$4997,MATCH(R$44&\"|\"&$B56,'Data Annex'!$K$1:$K$4997,0),MATCH(R$45,'Data Annex'!$K$1:$AN$1,0)),\"\")","v":3.5624229299999997E-2},{"$f":"IFERROR(INDEX('Data Annex'!$K$1:$AN$4997,MATCH(S$44&\"|\"&$B56,'Data Annex'!$K$1:$K$4997,0),MATCH(S$45,'Data Annex'!$K$1:$AN$1,0)),\"\")","v":3.1429485600000001E-2},{"$f":"IFERROR(INDEX('Data Annex'!$K$1:$AN$4997,MATCH(T$44&\"|\"&$B56,'Data Annex'!$K$1:$K$4997,0),MATCH(T$45,'Data Annex'!$K$1:$AN$1,0)),\"\")","v":3.3806011499999997E-2},{"$f":"IFERROR(INDEX('Data Annex'!$K$1:$AN$4997,MATCH(U$44&\"|\"&$B56,'Data Annex'!$K$1:$K$4997,0),MATCH(U$45,'Data Annex'!$K$1:$AN$1,0)),\"\")","v":1.08582049E-2},{"$f":"IFERROR(INDEX('Data Annex'!$K$1:$AN$4997,MATCH(V$44&\"|\"&$B56,'Data Annex'!$K$1:$K$4997,0),MATCH(V$45,'Data Annex'!$K$1:$AN$1,0)),\"\")","v":2.45134285E-2},{"$f":"IFERROR(INDEX('Data Annex'!$K$1:$AN$4997,MATCH(W$44&\"|\"&$B56,'Data Annex'!$K$1:$K$4997,0),MATCH(W$45,'Data Annex'!$K$1:$AN$1,0)),\"\")","v":2.2797969599999999E-2},{"$f":"IFERROR(INDEX('Data Annex'!$K$1:$AN$4997,MATCH(X$44&\"|\"&$B56,'Data Annex'!$K$1:$K$4997,0),MATCH(X$45,'Data Annex'!$K$1:$AN$1,0)),\"\")","v":2.83403973E-2}]
[7,"DK",null,"DK",{"$f":"IFERROR(INDEX('Data Annex'!$K$1:$AN$4997,MATCH(E$44&\"|\"&$B57,'Data Annex'!$K$1:$K$4997,0),MATCH(E$45,'Data Annex'!$K$1:$AN$1,0)),\"\")","v":7.7704992000000001E-2},{"$f":"IFERROR(INDEX('Data Annex'!$K$1:$AN$4997,MATCH(F$44&\"|\"&$B57,'Data Annex'!$K$1:$K$4997,0),MATCH(F$45,'Data Annex'!$K$1:$AN$1,0)),\"\")","v":7.7631673900000003E-2},{"$f":"IFERROR(INDEX('Data Annex'!$K$1:$AN$4997,MATCH(G$44&\"|\"&$B57,'Data Annex'!$K$1:$K$4997,0),MATCH(G$45,'Data Annex'!$K$1:$AN$1,0)),\"\")","v":7.5671345799999998E-2},{"$f":"IFERROR(INDEX('Data Annex'!$K$1:$AN$4997,MATCH(H$44&\"|\"&$B57,'Data Annex'!$K$1:$K$4997,0),MATCH(H$45,'Data Annex'!$K$1:$AN$1,0)),\"\")","v":7.8041526999999999E-2},{"$f":"IFERROR(INDEX('Data Annex'!$K$1:$AN$4997,MATCH(I$44&\"|\"&$B57,'Data Annex'!$K$1:$K$4997,0),MATCH(I$45,'Data Annex'!$K$1:$AN$1,0)),\"\")","v":6.8769401199999997E-2},{"$f":"IFERROR(INDEX('Data Annex'!$K$1:$AN$4997,MATCH(J$44&\"|\"&$B57,'Data Annex'!$K$1:$K$4997,0),MATCH(J$45,'Data Annex'!$K$1:$AN$1,0)),\"\")","v":6.7079859199999994E-2},{"$f":"IFERROR(INDEX('Data Annex'!$K$1:$AN$4997,MATCH(K$44&\"|\"&$B57,'Data Annex'!$K$1:$K$4997,0),MATCH(K$45,'Data Annex'!$K$1:$AN$1,0)),\"\")","v":6.7024326100000003E-2},{"$f":"IFERROR(INDEX('Data Annex'!$K$1:$AN$4997,MATCH(L$44&\"|\"&$B57,'Data Annex'!$K$1:$K$4997,0),MATCH(L$45,'Data Annex'!$K$1:$AN$1,0)),\"\")","v":6.7778589700000003E-2},{"$f":"IFERROR(INDEX('Data Annex'!$K$1:$AN$4997,MATCH(M$44&\"|\"&$B57,'Data Annex'!$K$1:$K$4997,0),MATCH(M$45,'Data Annex'!$K$1:$AN$1,0)),\"\")","v":2.4881974999999999E-3},{"$f":"IFERROR(INDEX('Data Annex'!$K$1:$AN$4997,MATCH(N$44&\"|\"&$B57,'Data Annex'!$K$1:$K$4997,0),MATCH(N$45,'Data Annex'!$K$1:$AN$1,0)),\"\")","v":3.0202196E-3},{"$f":"IFERROR(INDEX('Data Annex'!$K$1:$AN$4997,MATCH(O$44&\"|\"&$B57,'Data Annex'!$K$1:$K$4997,0),MATCH(O$45,'Data Annex'!$K$1:$AN$1,0)),\"\")","v":5.3066596000000002E-3},{"$f":"IFERROR(INDEX('Data Annex'!$K$1:$AN$4997,MATCH(P$44&\"|\"&$B57,'Data Annex'!$K$1:$K$4997,0),MATCH(P$45,'Data Annex'!$K$1:$AN$1,0)),\"\")","v":3.1139127000000002E-3},{"$f":"IFERROR(INDEX('Data Annex'!$K$1:$AN$4997,MATCH(Q$44&\"|\"&$B57,'Data Annex'!$K$1:$K$4997,0),MATCH(Q$45,'Data Annex'!$K$1:$AN$1,0)),\"\")","v":5.7081746199999998E-2},{"$f":"IFERROR(INDEX('Data Annex'!$K$1:$AN$4997,MATCH(R$44&\"|\"&$B57,'Data Annex'!$K$1:$K$4997,0),MATCH(R$45,'Data Annex'!$K$1:$AN$1,0)),\"\")","v":3.4900204900000002E-2},{"$f":"IFERROR(INDEX('Data Annex'!$K$1:$AN$4997,MATCH(S$44&\"|\"&$B57,'Data Annex'!$K$1:$K$4997,0),MATCH(S$45,'Data Annex'!$K$1:$AN$1,0)),\"\")","v":2.4702556300000001E-2},{"$f":"IFERROR(INDEX('Data Annex'!$K$1:$AN$4997,MATCH(T$44&\"|\"&$B57,'Data Annex'!$K$1:$K$4997,0),MATCH(T$45,'Data Annex'!$K$1:$AN$1,0)),\"\")","v":2.24302818E-2},{"$f":"IFERROR(INDEX('Data Annex'!$K$1:$AN$4997,MATCH(U$44&\"|\"&$B57,'Data Annex'!$K$1:$K$4997,0),MATCH(U$45,'Data Annex'!$K$1:$AN$1,0)),\"\")","v":-1.4274087E-2},{"$f":"IFERROR(INDEX('Data Annex'!$K$1:$AN$4997,MATCH(V$44&\"|\"&$B57,'Data Annex'!$K$1:$K$4997,0),MATCH(V$45,'Data Annex'!$K$1:$AN$1,0)),\"\")","v":1.9289051000000001E-3},{"$f":"IFERROR(INDEX('Data Annex'!$K$1:$AN$4997,MATCH(W$44&\"|\"&$B57,'Data Annex'!$K$1:$K$4997,0),MATCH(W$45,'Data Annex'!$K$1:$AN$1,0)),\"\")","v":6.1972765000000004E-3},{"$f":"IFERROR(INDEX('Data Annex'!$K$1:$AN$4997,MATCH(X$44&\"|\"&$B57,'Data Annex'!$K$1:$K$4997,0),MATCH(X$45,'Data Annex'!$K$1:$AN$1,0)),\"\")","v":8.8710721999999999E-3}]
[8,"EE",null,"EE",{"$f":"IFERROR(INDEX('Data Annex'!$K$1:$AN$4997,MATCH(E$44&\"|\"&$B58,'Data Annex'!$K$1:$K$4997,0),MATCH(E$45,'Data Annex'!$K$1:$AN$1,0)),\"\")","v":5.2190177900000002E-2},{"$f":"IFERROR(INDEX('Data Annex'!$K$1:$AN$4997,MATCH(F$44&\"|\"&$B58,'Data Annex'!$K$1:$K$4997,0),MATCH(F$45,'Data Annex'!$K$1:$AN$1,0)),\"\")","v":5.2999759E-2},{"$f":"IFERROR(INDEX('Data Annex'!$K$1:$AN$4997,MATCH(G$44&\"|\"&$B58,'Data Annex'!$K$1:$K$4997,0),MATCH(G$45,'Data Annex'!$K$1:$AN$1,0)),\"\")","v":5.2102656800000001E-2},{"$f":"IFERROR(INDEX('Data Annex'!$K$1:$AN$4997,MATCH(H$44&\"|\"&$B58,'Data Annex'!$K$1:$K$4997,0),MATCH(H$45,'Data Annex'!$K$1:$AN$1,0)),\"\")","v":5.5463696799999997E-2},{"$f":"IFERROR(INDEX('Data Annex'!$K$1:$AN$4997,MATCH(I$44&\"|\"&$B58,'Data Annex'!$K$1:$K$4997,0),MATCH(I$45,'Data Annex'!$K$1:$AN$1,0)),\"\")","v":5.6456085500000003E-2},{"$f":"IFERROR(INDEX('Data Annex'!$K$1:$AN$4997,MATCH(J$44&\"|\"&$B58,'Data Annex'!$K$1:$K$4997,0),MATCH(J$45,'Data Annex'!$K$1:$AN$1,0)),\"\")","v":5.3300222699999997E-2},{"$f":"IFERROR(INDEX('Data Annex'!$K$1:$AN$4997,MATCH(K$44&\"|\"&$B58,'Data Annex'!$K$1:$K$4997,0),MATCH(K$45,'Data Annex'!$K$1:$AN$1,0)),\"\")","v":5.1864124599999999E-2},{"$f":"IFERROR(INDEX('Data Annex'!$K$1:$AN$4997,MATCH(L$44&\"|\"&$B58,'Data Annex'!$K$1:$K$4997,0),MATCH(L$45,'Data Annex'!$K$1:$AN$1,0)),\"\")","v":5.4360880700000003E-2},{"$f":"IFERROR(INDEX('Data Annex'!$K$1:$AN$4997,MATCH(M$44&\"|\"&$B58,'Data Annex'!$K$1:$K$4997,0),MATCH(M$45,'Data Annex'!$K$1:$AN$1,0)),\"\")","v":1.8984576999999999E-3},{"$f":"IFERROR(INDEX('Data Annex'!$K$1:$AN$4997,MATCH(N$44&\"|\"&$B58,'Data Annex'!$K$1:$K$4997,0),MATCH(N$45,'Data Annex'!$K$1:$AN$1,0)),\"\")","v":2.6679149999999999E-3},{"$f":"IFERROR(INDEX('Data Annex'!$K$1:$AN$4997,MATCH(O$44&\"|\"&$B58,'Data Annex'!$K$1:$K$4997,0),MATCH(O$45,'Data Annex'!$K$1:$AN$1,0)),\"\")","v":2.4227595000000002E-3},{"$f":"IFERROR(INDEX('Data Annex'!$K$1:$AN$4997,MATCH(P$44&\"|\"&$B58,'Data Annex'!$K$1:$K$4997,0),MATCH(P$45,'Data Annex'!$K$1:$AN$1,0)),\"\")","v":1.8784091E-3},{"$f":"IFERROR(INDEX('Data Annex'!$K$1:$AN$4997,MATCH(Q$44&\"|\"&$B58,'Data Annex'!$K$1:$K$4997,0),MATCH(Q$45,'Data Annex'!$K$1:$AN$1,0)),\"\")","v":3.2400134300000001E-2},{"$f":"IFERROR(INDEX('Data Annex'!$K$1:$AN$4997,MATCH(R$44&\"|\"&$B58,'Data Annex'!$K$1:$K$4997,0),MATCH(R$45,'Data Annex'!$K$1:$AN$1,0)),\"\")","v":2.81186309E-2},{"$f":"IFERROR(INDEX('Data Annex'!$K$1:$AN$4997,MATCH(S$44&\"|\"&$B58,'Data Annex'!$K$1:$K$4997,0),MATCH(S$45,'Data Annex'!$K$1:$AN$1,0)),\"\")","v":2.11985952E-2},{"$f":"IFERROR(INDEX('Data Annex'!$K$1:$AN$4997,MATCH(T$44&\"|\"&$B58,'Data Annex'!$K$1:$K$4997,0),MATCH(T$45,'Data Annex'!$K$1:$AN$1,0)),\"\")","v":2.2530748900000001E-2},{"$f":"IFERROR(INDEX('Data Annex'!$K$1:$AN$4997,MATCH(U$44&\"|\"&$B58,'Data Annex'!$K$1:$K$4997,0),MATCH(U$45,'Data Annex'!$K$1:$AN$1,0)),\"\")","v":1.1249181400000001E-2},{"$f":"IFERROR(INDEX('Data Annex'!$K$1:$AN$4997,MATCH(V$44&\"|\"&$B58,'Data Annex'!$K$1:$K$4997,0),MATCH(V$45,'Data Annex'!$K$1:$AN$1,0)),\"\")","v":1.16311913E-2},{"$f":"IFERROR(INDEX('Data Annex'!$K$1:$AN$4997,MATCH(W$44&\"|\"&$B58,'Data Annex'!$K$1:$K$4997,0),MATCH(W$45,'Data Annex'!$K$1:$AN$1,0)),\"\")","v":1.1514277099999999E-2},{"$f":"IFERROR(INDEX('Data Annex'!$K$1:$AN$4997,MATCH(X$44&\"|\"&$B58,'Data Annex'!$K$1:$K$4997,0),MATCH(X$45,'Data Annex'!$K$1:$AN$1,0)),\"\")","v":5.3016219000000002E-3}]
[9,"ES",null,"ES",{"$f":"IFERROR(INDEX('Data Annex'!$K$1:$AN$4997,MATCH(E$44&\"|\"&$B59,'Data Annex'!$K$1:$K$4997,0),MATCH(E$45,'Data Annex'!$K$1:$AN$1,0)),\"\")","v":0.1069600189},{"$f":"IFERROR(INDEX('Data Annex'!$K$1:$AN$4997,MATCH(F$44&\"|\"&$B59,'Data Annex'!$K$1:$K$4997,0),MATCH(F$45,'Data Annex'!$K$1:$AN$1,0)),\"\")","v":0.10516388459999999},{"$f":"IFERROR(INDEX('Data Annex'!$K$1:$AN$4997,MATCH(G$44&\"|\"&$B59,'Data Annex'!$K$1:$K$4997,0),MATCH(G$45,'Data Annex'!$K$1:$AN$1,0)),\"\")","v":0.1042060064},{"$f":"IFERROR(INDEX('Data Annex'!$K$1:$AN$4997,MATCH(H$44&\"|\"&$B59,'Data Annex'!$K$1:$K$4997,0),MATCH(H$45,'Data Annex'!$K$1:$AN$1,0)),\"\")","v":9.8011985300000007E-2},{"$f":"IFERROR(INDEX('Data Annex'!$K$1:$AN$4997,MATCH(I$44&\"|\"&$B59,'Data Annex'!$K$1:$K$4997,0),MATCH(I$45,'Data Annex'!$K$1:$AN$1,0)),\"\")","v":9.06097228E-2},{"$f":"IFERROR(INDEX('Data Annex'!$K$1:$AN$4997,MATCH(J$44&\"|\"&$B59,'Data Annex'!$K$1:$K$4997,0),MATCH(J$45,'Data Annex'!$K$1:$AN$1,0)),\"\")","v":9.0812332900000001E-2},{"$f":"IFERROR(INDEX('Data Annex'!$K$1:$AN$4997,MATCH(K$44&\"|\"&$B59,'Data Annex'!$K$1:$K$4997,0),MATCH(K$45,'Data Annex'!$K$1:$AN$1,0)),\"\")","v":8.9686123199999995E-2},{"$f":"IFERROR(INDEX('Data Annex'!$K$1:$AN$4997,MATCH(L$44&\"|\"&$B59,'Data Annex'!$K$1:$K$4997,0),MATCH(L$45,'Data Annex'!$K$1:$AN$1,0)),\"\")","v":8.4534703500000002E-2},{"$f":"IFERROR(INDEX('Data Annex'!$K$1:$AN$4997,MATCH(M$44&\"|\"&$B59,'Data Annex'!$K$1:$K$4997,0),MATCH(M$45,'Data Annex'!$K$1:$AN$1,0)),\"\")","v":1.49616091E-2},{"$f":"IFERROR(INDEX('Data Annex'!$K$1:$AN$4997,MATCH(N$44&\"|\"&$B59,'Data Annex'!$K$1:$K$4997,0),MATCH(N$45,'Data Annex'!$K$1:$AN$1,0)),\"\")","v":1.37186379E-2},{"$f":"IFERROR(INDEX('Data Annex'!$K$1:$AN$4997,MATCH(O$44&\"|\"&$B59,'Data Annex'!$K$1:$K$4997,0),MATCH(O$45,'Data Annex'!$K$1:$AN$1,0)),\"\")","v":1.2111396700000001E-2},{"$f":"IFERROR(INDEX('Data Annex'!$K$1:$AN$4997,MATCH(P$44&\"|\"&$B59,'Data Annex'!$K$1:$K$4997,0),MATCH(P$45,'Data Annex'!$K$1:$AN$1,0)),\"\")","v":1.7189566900000001E-2},{"$f":"IFERROR(INDEX('Data Annex'!$K$1:$AN$4997,MATCH(Q$44&\"|\"&$B59,'Data Annex'!$K$1:$K$4997,0),MATCH(Q$45,'Data Annex'!$K$1:$AN$1,0)),\"\")","v":0.1329729523},{"$f":"IFERROR(INDEX('Data Annex'!$K$1:$AN$4997,MATCH(R$44&\"|\"&$B59,'Data Annex'!$K$1:$K$4997,0),MATCH(R$45,'Data Annex'!$K$1:$AN$1,0)),\"\")","v":0.1237139666},{"$f":"IFERROR(INDEX('Data Annex'!$K$1:$AN$4997,MATCH(S$44&\"|\"&$B59,'Data Annex'!$K$1:$K$4997,0),MATCH(S$45,'Data Annex'!$K$1:$AN$1,0)),\"\")","v":0.10902694089999999},{"$f":"IFERROR(INDEX('Data Annex'!$K$1:$AN$4997,MATCH(T$44&\"|\"&$B59,'Data Annex'!$K$1:$K$4997,0),MATCH(T$45,'Data Annex'!$K$1:$AN$1,0)),\"\")","v":9.7253143E-2},{"$f":"IFERROR(INDEX('Data Annex'!$K$1:$AN$4997,MATCH(U$44&\"|\"&$B59,'Data Annex'!$K$1:$K$4997,0),MATCH(U$45,'Data Annex'!$K$1:$AN$1,0)),\"\")","v":5.40696461E-2},{"$f":"IFERROR(INDEX('Data Annex'!$K$1:$AN$4997,MATCH(V$44&\"|\"&$B59,'Data Annex'!$K$1:$K$4997,0),MATCH(V$45,'Data Annex'!$K$1:$AN$1,0)),\"\")","v":0.1526006892},{"$f":"IFERROR(INDEX('Data Annex'!$K$1:$AN$4997,MATCH(W$44&\"|\"&$B59,'Data Annex'!$K$1:$K$4997,0),MATCH(W$45,'Data Annex'!$K$1:$AN$1,0)),\"\")","v":0.1112220718},{"$f":"IFERROR(INDEX('Data Annex'!$K$1:$AN$4997,MATCH(X$44&\"|\"&$B59,'Data Annex'!$K$1:$K$4997,0),MATCH(X$45,'Data Annex'!$K$1:$AN$1,0)),\"\")","v":0.1114550221}]
[10,"FI",null,"FI",{"$f":"IFERROR(INDEX('Data Annex'!$K$1:$AN$4997,MATCH(E$44&\"|\"&$B60,'Data Annex'!$K$1:$K$4997,0),MATCH(E$45,'Data Annex'!$K$1:$AN$1,0)),\"\")","v":7.4697276300000004E-2},{"$f":"IFERROR(INDEX('Data Annex'!$K$1:$AN$4997,MATCH(F$44&\"|\"&$B60,'Data Annex'!$K$1:$K$4997,0),MATCH(F$45,'Data Annex'!$K$1:$AN$1,0)),\"\")","v":7.2487111800000004E-2},{"$f":"IFERROR(INDEX('Data Annex'!$K$1:$AN$4997,MATCH(G$44&\"|\"&$B60,'Data Annex'!$K$1:$K$4997,0),MATCH(G$45,'Data Annex'!$K$1:$AN$1,0)),\"\")","v":7.1269258799999999E-2},{"$f":"IFERROR(INDEX('Data Annex'!$K$1:$AN$4997,MATCH(H$44&\"|\"&$B60,'Data Annex'!$K$1:$K$4997,0),MATCH(H$45,'Data Annex'!$K$1:$AN$1,0)),\"\")","v":6.9960861900000004E-2},{"$f":"IFERROR(INDEX('Data Annex'!$K$1:$AN$4997,MATCH(I$44&\"|\"&$B60,'Data Annex'!$K$1:$K$4997,0),MATCH(I$45,'Data Annex'!$K$1:$AN$1,0)),\"\")","v":6.7431414999999995E-2},{"$f":"IFERROR(INDEX('Data Annex'!$K$1:$AN$4997,MATCH(J$44&\"|\"&$B60,'Data Annex'!$K$1:$K$4997,0),MATCH(J$45,'Data Annex'!$K$1:$AN$1,0)),\"\")","v":5.2841679900000001E-2},{"$f":"IFERROR(INDEX('Data Annex'!$K$1:$AN$4997,MATCH(K$44&\"|\"&$B60,'Data Annex'!$K$1:$K$4997,0),MATCH(K$45,'Data Annex'!$K$1:$AN$1,0)),\"\")","v":5.1457466299999997E-2},{"$f":"IFERROR(INDEX('Data Annex'!$K$1:$AN$4997,MATCH(L$44&\"|\"&$B60,'Data Annex'!$K$1:$K$4997,0),MATCH(L$45,'Data Annex'!$K$1:$AN$1,0)),\"\")","v":5.2549367899999998E-2},{"$f":"IFERROR(INDEX('Data Annex'!$K$1:$AN$4997,MATCH(M$44&\"|\"&$B60,'Data Annex'!$K$1:$K$4997,0),MATCH(M$45,'Data Annex'!$K$1:$AN$1,0)),\"\")","v":1.0038444E-3},{"$f":"IFERROR(INDEX('Data Annex'!$K$1:$AN$4997,MATCH(N$44&\"|\"&$B60,'Data Annex'!$K$1:$K$4997,0),MATCH(N$45,'Data Annex'!$K$1:$AN$1,0)),\"\")","v":5.8301033999999998E-3},{"$f":"IFERROR(INDEX('Data Annex'!$K$1:$AN$4997,MATCH(O$44&\"|\"&$B60,'Data Annex'!$K$1:$K$4997,0),MATCH(O$45,'Data Annex'!$K$1:$AN$1,0)),\"\")","v":4.4675052000000002E-3},{"$f":"IFERROR(INDEX('Data Annex'!$K$1:$AN$4997,MATCH(P$44&\"|\"&$B60,'Data Annex'!$K$1:$K$4997,0),MATCH(P$45,'Data Annex'!$K$1:$AN$1,0)),\"\")","v":3.8706293000000001E-3},{"$f":"IFERROR(INDEX('Data Annex'!$K$1:$AN$4997,MATCH(Q$44&\"|\"&$B60,'Data Annex'!$K$1:$K$4997,0),MATCH(Q$45,'Data Annex'!$K$1:$AN$1,0)),\"\")","v":2.2747794200000001E-2},{"$f":"IFERROR(INDEX('Data Annex'!$K$1:$AN$4997,MATCH(R$44&\"|\"&$B60,'Data Annex'!$K$1:$K$4997,0),MATCH(R$45,'Data Annex'!$K$1:$AN$1,0)),\"\")","v":3.9540746600000003E-2},{"$f":"IFERROR(INDEX('Data Annex'!$K$1:$AN$4997,MATCH(S$44&\"|\"&$B60,'Data Annex'!$K$1:$K$4997,0),MATCH(S$45,'Data Annex'!$K$1:$AN$1,0)),\"\")","v":2.6001750800000001E-2},{"$f":"IFERROR(INDEX('Data Annex'!$K$1:$AN$4997,MATCH(T$44&\"|\"&$B60,'Data Annex'!$K$1:$K$4997,0),MATCH(T$45,'Data Annex'!$K$1:$AN$1,0)),\"\")","v":2.1985159899999999E-2},{"$f":"IFERROR(INDEX('Data Annex'!$K$1:$AN$4997,MATCH(U$44&\"|\"&$B60,'Data Annex'!$K$1:$K$4997,0),MATCH(U$45,'Data Annex'!$K$1:$AN$1,0)),\"\")","v":-1.2873496E-2},{"$f":"IFERROR(INDEX('Data Annex'!$K$1:$AN$4997,MATCH(V$44&\"|\"&$B60,'Data Annex'!$K$1:$K$4997,0),MATCH(V$45,'Data Annex'!$K$1:$AN$1,0)),\"\")","v":9.6035993999999993E-3},{"$f":"IFERROR(INDEX('Data Annex'!$K$1:$AN$4997,MATCH(W$44&\"|\"&$B60,'Data Annex'!$K$1:$K$4997,0),MATCH(W$45,'Data Annex'!$K$1:$AN$1,0)),\"\")","v":1.5298391999999999E-2},{"$f":"IFERROR(INDEX('Data Annex'!$K$1:$AN$4997,MATCH(X$44&\"|\"&$B60,'Data Annex'!$K$1:$K$4997,0),MATCH(X$45,'Data Annex'!$K$1:$AN$1,0)),\"\")","v":1.8668589100000001E-2}]
[11,"FR",null,"FR",{"$f":"IFERROR(INDEX('Data Annex'!$K$1:$AN$4997,MATCH(E$44&\"|\"&$B61,'Data Annex'!$K$1:$K$4997,0),MATCH(E$45,'Data Annex'!$K$1:$AN$1,0)),\"\")","v":0.11180820950000001},{"$f":"IFERROR(INDEX('Data Annex'!$K$1:$AN$4997,MATCH(F$44&\"|\"&$B61,'Data Annex'!$K$1:$K$4997,0),MATCH(F$45,'Data Annex'!$K$1:$AN$1,0)),\"\")","v":0.11109574179999999},{"$f":"IFERROR(INDEX('Data Annex'!$K$1:$AN$4997,MATCH(G$44&\"|\"&$B61,'Data Annex'!$K$1:$K$4997,0),MATCH(G$45,'Data Annex'!$K$1:$AN$1,0)),\"\")","v":0.11044665770000001},{"$f":"IFERROR(INDEX('Data Annex'!$K$1:$AN$4997,MATCH(H$44&\"|\"&$B61,'Data Annex'!$K$1:$K$4997,0),MATCH(H$45,'Data Annex'!$K$1:$AN$1,0)),\"\")","v":0.1115368454},{"$f":"IFERROR(INDEX('Data Annex'!$K$1:$AN$4997,MATCH(I$44&\"|\"&$B61,'Data Annex'!$K$1:$K$4997,0),MATCH(I$45,'Data Annex'!$K$1:$AN$1,0)),\"\")","v":0.11404761870000001},{"$f":"IFERROR(INDEX('Data Annex'!$K$1:$AN$4997,MATCH(J$44&\"|\"&$B61,'Data Annex'!$K$1:$K$4997,0),MATCH(J$45,'Data Annex'!$K$1:$AN$1,0)),\"\")","v":8.8693730600000006E-2},{"$f":"IFERROR(INDEX('Data Annex'!$K$1:$AN$4997,MATCH(K$44&\"|\"&$B61,'Data Annex'!$K$1:$K$4997,0),MATCH(K$45,'Data Annex'!$K$1:$AN$1,0)),\"\")","v":8.5539765300000001E-2},{"$f":"IFERROR(INDEX('Data Annex'!$K$1:$AN$4997,MATCH(L$44&\"|\"&$B61,'Data Annex'!$K$1:$K$4997,0),MATCH(L$45,'Data Annex'!$K$1:$AN$1,0)),\"\")","v":8.4667870100000001E-2},{"$f":"IFERROR(INDEX('Data Annex'!$K$1:$AN$4997,MATCH(M$44&\"|\"&$B61,'Data Annex'!$K$1:$K$4997,0),MATCH(M$45,'Data Annex'!$K$1:$AN$1,0)),\"\")","v":1.3476162999999999E-3},{"$f":"IFERROR(INDEX('Data Annex'!$K$1:$AN$4997,MATCH(N$44&\"|\"&$B61,'Data Annex'!$K$1:$K$4997,0),MATCH(N$45,'Data Annex'!$K$1:$AN$1,0)),\"\")","v":9.1815169999999999E-4},{"$f":"IFERROR(INDEX('Data Annex'!$K$1:$AN$4997,MATCH(O$44&\"|\"&$B61,'Data Annex'!$K$1:$K$4997,0),MATCH(O$45,'Data Annex'!$K$1:$AN$1,0)),\"\")","v":1.7359682999999999E-3},{"$f":"IFERROR(INDEX('Data Annex'!$K$1:$AN$4997,MATCH(P$44&\"|\"&$B61,'Data Annex'!$K$1:$K$4997,0),MATCH(P$45,'Data Annex'!$K$1:$AN$1,0)),\"\")","v":2.9366663999999998E-3},{"$f":"IFERROR(INDEX('Data Annex'!$K$1:$AN$4997,MATCH(Q$44&\"|\"&$B61,'Data Annex'!$K$1:$K$4997,0),MATCH(Q$45,'Data Annex'!$K$1:$AN$1,0)),\"\")","v":3.2458938899999998E-2},{"$f":"IFERROR(INDEX('Data Annex'!$K$1:$AN$4997,MATCH(R$44&\"|\"&$B61,'Data Annex'!$K$1:$K$4997,0),MATCH(R$45,'Data Annex'!$K$1:$AN$1,0)),\"\")","v":4.2246497600000002E-2},{"$f":"IFERROR(INDEX('Data Annex'!$K$1:$AN$4997,MATCH(S$44&\"|\"&$B61,'Data Annex'!$K$1:$K$4997,0),MATCH(S$45,'Data Annex'!$K$1:$AN$1,0)),\"\")","v":3.6368091399999997E-2},{"$f":"IFERROR(INDEX('Data Annex'!$K$1:$AN$4997,MATCH(T$44&\"|\"&$B61,'Data Annex'!$K$1:$K$4997,0),MATCH(T$45,'Data Annex'!$K$1:$AN$1,0)),\"\")","v":3.7754148799999998E-2},{"$f":"IFERROR(INDEX('Data Annex'!$K$1:$AN$4997,MATCH(U$44&\"|\"&$B61,'Data Annex'!$K$1:$K$4997,0),MATCH(U$45,'Data Annex'!$K$1:$AN$1,0)),\"\")","v":-3.6006624000000001E-2},{"$f":"IFERROR(INDEX('Data Annex'!$K$1:$AN$4997,MATCH(V$44&\"|\"&$B61,'Data Annex'!$K$1:$K$4997,0),MATCH(V$45,'Data Annex'!$K$1:$AN$1,0)),\"\")","v":-2.8464340000000001E-3},{"$f":"IFERROR(INDEX('Data Annex'!$K$1:$AN$4997,MATCH(W$44&\"|\"&$B61,'Data Annex'!$K$1:$K$4997,0),MATCH(W$45,'Data Annex'!$K$1:$AN$1,0)),\"\")","v":1.6395487E-3},{"$f":"IFERROR(INDEX('Data Annex'!$K$1:$AN$4997,MATCH(X$44&\"|\"&$B61,'Data Annex'!$K$1:$K$4997,0),MATCH(X$45,'Data Annex'!$K$1:$AN$1,0)),\"\")","v":1.5633233E-3}]
[13,"GR",null,"GR",{"$f":"IFERROR(INDEX('Data Annex'!$K$1:$AN$4997,MATCH(E$44&\"|\"&$B62,'Data Annex'!$K$1:$K$4997,0),MATCH(E$45,'Data Annex'!$K$1:$AN$1,0)),\"\")","v":6.6587934299999998E-2},{"$f":"IFERROR(INDEX('Data Annex'!$K$1:$AN$4997,MATCH(F$44&\"|\"&$B62,'Data Annex'!$K$1:$K$4997,0),MATCH(F$45,'Data Annex'!$K$1:$AN$1,0)),\"\")","v":6.65166638E-2},{"$f":"IFERROR(INDEX('Data Annex'!$K$1:$AN$4997,MATCH(G$44&\"|\"&$B62,'Data Annex'!$K$1:$K$4997,0),MATCH(G$45,'Data Annex'!$K$1:$AN$1,0)),\"\")","v":6.6161138100000003E-2},{"$f":"IFERROR(INDEX('Data Annex'!$K$1:$AN$4997,MATCH(H$44&\"|\"&$B62,'Data Annex'!$K$1:$K$4997,0),MATCH(H$45,'Data Annex'!$K$1:$AN$1,0)),\"\")","v":7.4805449699999998E-2},{"$f":"IFERROR(INDEX('Data Annex'!$K$1:$AN$4997,MATCH(I$44&\"|\"&$B62,'Data Annex'!$K$1:$K$4997,0),MATCH(I$45,'Data Annex'!$K$1:$AN$1,0)),\"\")","v":6.6473222900000004E-2},{"$f":"IFERROR(INDEX('Data Annex'!$K$1:$AN$4997,MATCH(J$44&\"|\"&$B62,'Data Annex'!$K$1:$K$4997,0),MATCH(J$45,'Data Annex'!$K$1:$AN$1,0)),\"\")","v":6.3109013500000005E-2},{"$f":"IFERROR(INDEX('Data Annex'!$K$1:$AN$4997,MATCH(K$44&\"|\"&$B62,'Data Annex'!$K$1:$K$4997,0),MATCH(K$45,'Data Annex'!$K$1:$AN$1,0)),\"\")","v":6.1018581699999998E-2},{"$f":"IFERROR(INDEX('Data Annex'!$K$1:$AN$4997,MATCH(L$44&\"|\"&$B62,'Data Annex'!$K$1:$K$4997,0),MATCH(L$45,'Data Annex'!$K$1:$AN$1,0)),\"\")","v":6.5090357400000007E-2},{"$f":"IFERROR(INDEX('Data Annex'!$K$1:$AN$4997,MATCH(M$44&\"|\"&$B62,'Data Annex'!$K$1:$K$4997,0),MATCH(M$45,'Data Annex'!$K$1:$AN$1,0)),\"\")","v":1.42162569E-2},{"$f":"IFERROR(INDEX('Data Annex'!$K$1:$AN$4997,MATCH(N$44&\"|\"&$B62,'Data Annex'!$K$1:$K$4997,0),MATCH(N$45,'Data Annex'!$K$1:$AN$1,0)),\"\")","v":7.7432923999999998E-3},{"$f":"IFERROR(INDEX('Data Annex'!$K$1:$AN$4997,MATCH(O$44&\"|\"&$B62,'Data Annex'!$K$1:$K$4997,0),MATCH(O$45,'Data Annex'!$K$1:$AN$1,0)),\"\")","v":1.13545911E-2},{"$f":"IFERROR(INDEX('Data Annex'!$K$1:$AN$4997,MATCH(P$44&\"|\"&$B62,'Data Annex'!$K$1:$K$4997,0),MATCH(P$45,'Data Annex'!$K$1:$AN$1,0)),\"\")","v":1.21519248E-2},{"$f":"IFERROR(INDEX('Data Annex'!$K$1:$AN$4997,MATCH(Q$44&\"|\"&$B62,'Data Annex'!$K$1:$K$4997,0),MATCH(Q$45,'Data Annex'!$K$1:$AN$1,0)),\"\")","v":0.19556317340000001},{"$f":"IFERROR(INDEX('Data Annex'!$K$1:$AN$4997,MATCH(R$44&\"|\"&$B62,'Data Annex'!$K$1:$K$4997,0),MATCH(R$45,'Data Annex'!$K$1:$AN$1,0)),\"\")","v":0.2523024371},{"$f":"IFERROR(INDEX('Data Annex'!$K$1:$AN$4997,MATCH(S$44&\"|\"&$B62,'Data Annex'!$K$1:$K$4997,0),MATCH(S$45,'Data Annex'!$K$1:$AN$1,0)),\"\")","v":0.1928798608},{"$f":"IFERROR(INDEX('Data Annex'!$K$1:$AN$4997,MATCH(T$44&\"|\"&$B62,'Data Annex'!$K$1:$K$4997,0),MATCH(T$45,'Data Annex'!$K$1:$AN$1,0)),\"\")","v":0.20540577870000001},{"$f":"IFERROR(INDEX('Data Annex'!$K$1:$AN$4997,MATCH(U$44&\"|\"&$B62,'Data Annex'!$K$1:$K$4997,0),MATCH(U$45,'Data Annex'!$K$1:$AN$1,0)),\"\")","v":3.6723904999999999E-3},{"$f":"IFERROR(INDEX('Data Annex'!$K$1:$AN$4997,MATCH(V$44&\"|\"&$B62,'Data Annex'!$K$1:$K$4997,0),MATCH(V$45,'Data Annex'!$K$1:$AN$1,0)),\"\")","v":1.6084791800000001E-2},{"$f":"IFERROR(INDEX('Data Annex'!$K$1:$AN$4997,MATCH(W$44&\"|\"&$B62,'Data Annex'!$K$1:$K$4997,0),MATCH(W$45,'Data Annex'!$K$1:$AN$1,0)),\"\")","v":2.62593393E-2},{"$f":"IFERROR(INDEX('Data Annex'!$K$1:$AN$4997,MATCH(X$44&\"|\"&$B62,'Data Annex'!$K$1:$K$4997,0),MATCH(X$45,'Data Annex'!$K$1:$AN$1,0)),\"\")","v":5.6206939400000003E-2}]
[14,"HR",null,"HR",{"$f":"IFERROR(INDEX('Data Annex'!$K$1:$AN$4997,MATCH(E$44&\"|\"&$B63,'Data Annex'!$K$1:$K$4997,0),MATCH(E$45,'Data Annex'!$K$1:$AN$1,0)),\"\")","v":6.3314907200000006E-2},{"$f":"IFERROR(INDEX('Data Annex'!$K$1:$AN$4997,MATCH(F$44&\"|\"&$B63,'Data Annex'!$K$1:$K$4997,0),MATCH(F$45,'Data Annex'!$K$1:$AN$1,0)),\"\")","v":6.08905104E-2},{"$f":"IFERROR(INDEX('Data Annex'!$K$1:$AN$4997,MATCH(G$44&\"|\"&$B63,'Data Annex'!$K$1:$K$4997,0),MATCH(G$45,'Data Annex'!$K$1:$AN$1,0)),\"\")","v":5.9865047099999999E-2},{"$f":"IFERROR(INDEX('Data Annex'!$K$1:$AN$4997,MATCH(H$44&\"|\"&$B63,'Data Annex'!$K$1:$K$4997,0),MATCH(H$45,'Data Annex'!$K$1:$AN$1,0)),\"\")","v":5.9621199600000001E-2},{"$f":"IFERROR(INDEX('Data Annex'!$K$1:$AN$4997,MATCH(I$44&\"|\"&$B63,'Data Annex'!$K$1:$K$4997,0),MATCH(I$45,'Data Annex'!$K$1:$AN$1,0)),\"\")","v":5.9961488100000002E-2},{"$f":"IFERROR(INDEX('Data Annex'!$K$1:$AN$4997,MATCH(J$44&\"|\"&$B63,'Data Annex'!$K$1:$K$4997,0),MATCH(J$45,'Data Annex'!$K$1:$AN$1,0)),\"\")","v":6.2084196899999999E-2},{"$f":"IFERROR(INDEX('Data Annex'!$K$1:$AN$4997,MATCH(K$44&\"|\"&$B63,'Data Annex'!$K$1:$K$4997,0),MATCH(K$45,'Data Annex'!$K$1:$AN$1,0)),\"\")","v":6.1340303200000001E-2},{"$f":"IFERROR(INDEX('Data Annex'!$K$1:$AN$4997,MATCH(L$44&\"|\"&$B63,'Data Annex'!$K$1:$K$4997,0),MATCH(L$45,'Data Annex'!$K$1:$AN$1,0)),\"\")","v":6.0287108899999997E-2},{"$f":"IFERROR(INDEX('Data Annex'!$K$1:$AN$4997,MATCH(M$44&\"|\"&$B63,'Data Annex'!$K$1:$K$4997,0),MATCH(M$45,'Data Annex'!$K$1:$AN$1,0)),\"\")","v":1.6614906E-3},{"$f":"IFERROR(INDEX('Data Annex'!$K$1:$AN$4997,MATCH(N$44&\"|\"&$B63,'Data Annex'!$K$1:$K$4997,0),MATCH(N$45,'Data Annex'!$K$1:$AN$1,0)),\"\")","v":5.2893912999999997E-3},{"$f":"IFERROR(INDEX('Data Annex'!$K$1:$AN$4997,MATCH(O$44&\"|\"&$B63,'Data Annex'!$K$1:$K$4997,0),MATCH(O$45,'Data Annex'!$K$1:$AN$1,0)),\"\")","v":2.7951671999999999E-3},{"$f":"IFERROR(INDEX('Data Annex'!$K$1:$AN$4997,MATCH(P$44&\"|\"&$B63,'Data Annex'!$K$1:$K$4997,0),MATCH(P$45,'Data Annex'!$K$1:$AN$1,0)),\"\")","v":7.5883486999999998E-3},{"$f":"IFERROR(INDEX('Data Annex'!$K$1:$AN$4997,MATCH(Q$44&\"|\"&$B63,'Data Annex'!$K$1:$K$4997,0),MATCH(Q$45,'Data Annex'!$K$1:$AN$1,0)),\"\")","v":2.4747496000000001E-2},{"$f":"IFERROR(INDEX('Data Annex'!$K$1:$AN$4997,MATCH(R$44&\"|\"&$B63,'Data Annex'!$K$1:$K$4997,0),MATCH(R$45,'Data Annex'!$K$1:$AN$1,0)),\"\")","v":4.8606820500000002E-2},{"$f":"IFERROR(INDEX('Data Annex'!$K$1:$AN$4997,MATCH(S$44&\"|\"&$B63,'Data Annex'!$K$1:$K$4997,0),MATCH(S$45,'Data Annex'!$K$1:$AN$1,0)),\"\")","v":4.5263492900000001E-2},{"$f":"IFERROR(INDEX('Data Annex'!$K$1:$AN$4997,MATCH(T$44&\"|\"&$B63,'Data Annex'!$K$1:$K$4997,0),MATCH(T$45,'Data Annex'!$K$1:$AN$1,0)),\"\")","v":4.5877531999999999E-2},{"$f":"IFERROR(INDEX('Data Annex'!$K$1:$AN$4997,MATCH(U$44&\"|\"&$B63,'Data Annex'!$K$1:$K$4997,0),MATCH(U$45,'Data Annex'!$K$1:$AN$1,0)),\"\")","v":1.5034231300000001E-2},{"$f":"IFERROR(INDEX('Data Annex'!$K$1:$AN$4997,MATCH(V$44&\"|\"&$B63,'Data Annex'!$K$1:$K$4997,0),MATCH(V$45,'Data Annex'!$K$1:$AN$1,0)),\"\")","v":2.0877906599999999E-2},{"$f":"IFERROR(INDEX('Data Annex'!$K$1:$AN$4997,MATCH(W$44&\"|\"&$B63,'Data Annex'!$K$1:$K$4997,0),MATCH(W$45,'Data Annex'!$K$1:$AN$1,0)),\"\")","v":2.2572859399999999E-2},{"$f":"IFERROR(INDEX('Data Annex'!$K$1:$AN$4997,MATCH(X$44&\"|\"&$B63,'Data Annex'!$K$1:$K$4997,0),MATCH(X$45,'Data Annex'!$K$1:$AN$1,0)),\"\")","v":2.23639736E-2}]
[15,"HU",null,"HU",{"$f":"IFERROR(INDEX('Data Annex'!$K$1:$AN$4997,MATCH(E$44&\"|\"&$B64,'Data Annex'!$K$1:$K$4997,0),MATCH(E$45,'Data Annex'!$K$1:$AN$1,0)),\"\")","v":0.1153429902},{"$f":"IFERROR(INDEX('Data Annex'!$K$1:$AN$4997,MATCH(F$44&\"|\"&$B64,'Data Annex'!$K$1:$K$4997,0),MATCH(F$45,'Data Annex'!$K$1:$AN$1,0)),\"\")","v":0.1121117387},{"$f":"IFERROR(INDEX('Data Annex'!$K$1:$AN$4997,MATCH(G$44&\"|\"&$B64,'Data Annex'!$K$1:$K$4997,0),MATCH(G$45,'Data Annex'!$K$1:$AN$1,0)),\"\")","v":0.1080663179},{"$f":"IFERROR(INDEX('Data Annex'!$K$1:$AN$4997,MATCH(H$44&\"|\"&$B64,'Data Annex'!$K$1:$K$4997,0),MATCH(H$45,'Data Annex'!$K$1:$AN$1,0)),\"\")","v":0.1062167452},{"$f":"IFERROR(INDEX('Data Annex'!$K$1:$AN$4997,MATCH(I$44&\"|\"&$B64,'Data Annex'!$K$1:$K$4997,0),MATCH(I$45,'Data Annex'!$K$1:$AN$1,0)),\"\")","v":0.19568073620000001},{"$f":"IFERROR(INDEX('Data Annex'!$K$1:$AN$4997,MATCH(J$44&\"|\"&$B64,'Data Annex'!$K$1:$K$4997,0),MATCH(J$45,'Data Annex'!$K$1:$AN$1,0)),\"\")","v":0.15569107400000001},{"$f":"IFERROR(INDEX('Data Annex'!$K$1:$AN$4997,MATCH(K$44&\"|\"&$B64,'Data Annex'!$K$1:$K$4997,0),MATCH(K$45,'Data Annex'!$K$1:$AN$1,0)),\"\")","v":0.1458662375},{"$f":"IFERROR(INDEX('Data Annex'!$K$1:$AN$4997,MATCH(L$44&\"|\"&$B64,'Data Annex'!$K$1:$K$4997,0),MATCH(L$45,'Data Annex'!$K$1:$AN$1,0)),\"\")","v":0.14452436630000001},{"$f":"IFERROR(INDEX('Data Annex'!$K$1:$AN$4997,MATCH(M$44&\"|\"&$B64,'Data Annex'!$K$1:$K$4997,0),MATCH(M$45,'Data Annex'!$K$1:$AN$1,0)),\"\")","v":3.7480420399999999E-2},{"$f":"IFERROR(INDEX('Data Annex'!$K$1:$AN$4997,MATCH(N$44&\"|\"&$B64,'Data Annex'!$K$1:$K$4997,0),MATCH(N$45,'Data Annex'!$K$1:$AN$1,0)),\"\")","v":2.3810514099999999E-2},{"$f":"IFERROR(INDEX('Data Annex'!$K$1:$AN$4997,MATCH(O$44&\"|\"&$B64,'Data Annex'!$K$1:$K$4997,0),MATCH(O$45,'Data Annex'!$K$1:$AN$1,0)),\"\")","v":1.4823367699999999E-2},{"$f":"IFERROR(INDEX('Data Annex'!$K$1:$AN$4997,MATCH(P$44&\"|\"&$B64,'Data Annex'!$K$1:$K$4997,0),MATCH(P$45,'Data Annex'!$K$1:$AN$1,0)),\"\")","v":6.1996650999999996E-3},{"$f":"IFERROR(INDEX('Data Annex'!$K$1:$AN$4997,MATCH(Q$44&\"|\"&$B64,'Data Annex'!$K$1:$K$4997,0),MATCH(Q$45,'Data Annex'!$K$1:$AN$1,0)),\"\")","v":0.12544067759999999},{"$f":"IFERROR(INDEX('Data Annex'!$K$1:$AN$4997,MATCH(R$44&\"|\"&$B64,'Data Annex'!$K$1:$K$4997,0),MATCH(R$45,'Data Annex'!$K$1:$AN$1,0)),\"\")","v":9.3991665700000004E-2},{"$f":"IFERROR(INDEX('Data Annex'!$K$1:$AN$4997,MATCH(S$44&\"|\"&$B64,'Data Annex'!$K$1:$K$4997,0),MATCH(S$45,'Data Annex'!$K$1:$AN$1,0)),\"\")","v":6.7531936599999995E-2},{"$f":"IFERROR(INDEX('Data Annex'!$K$1:$AN$4997,MATCH(T$44&\"|\"&$B64,'Data Annex'!$K$1:$K$4997,0),MATCH(T$45,'Data Annex'!$K$1:$AN$1,0)),\"\")","v":6.6014209800000001E-2},{"$f":"IFERROR(INDEX('Data Annex'!$K$1:$AN$4997,MATCH(U$44&\"|\"&$B64,'Data Annex'!$K$1:$K$4997,0),MATCH(U$45,'Data Annex'!$K$1:$AN$1,0)),\"\")","v":6.2503541999999997E-3},{"$f":"IFERROR(INDEX('Data Annex'!$K$1:$AN$4997,MATCH(V$44&\"|\"&$B64,'Data Annex'!$K$1:$K$4997,0),MATCH(V$45,'Data Annex'!$K$1:$AN$1,0)),\"\")","v":2.2487547600000001E-2},{"$f":"IFERROR(INDEX('Data Annex'!$K$1:$AN$4997,MATCH(W$44&\"|\"&$B64,'Data Annex'!$K$1:$K$4997,0),MATCH(W$45,'Data Annex'!$K$1:$AN$1,0)),\"\")","v":2.6439943600000002E-2},{"$f":"IFERROR(INDEX('Data Annex'!$K$1:$AN$4997,MATCH(X$44&\"|\"&$B64,'Data Annex'!$K$1:$K$4997,0),MATCH(X$45,'Data Annex'!$K$1:$AN$1,0)),\"\")","v":3.2585842900000002E-2}]
[16,"IE",null,"IE",{"$f":"IFERROR(INDEX('Data Annex'!$K$1:$AN$4997,MATCH(E$44&\"|\"&$B65,'Data Annex'!$K$1:$K$4997,0),MATCH(E$45,'Data Annex'!$K$1:$AN$1,0)),\"\")","v":6.6847346700000004E-2},{"$f":"IFERROR(INDEX('Data Annex'!$K$1:$AN$4997,MATCH(F$44&\"|\"&$B65,'Data Annex'!$K$1:$K$4997,0),MATCH(F$45,'Data Annex'!$K$1:$AN$1,0)),\"\")","v":6.7959630399999998E-2},{"$f":"IFERROR(INDEX('Data Annex'!$K$1:$AN$4997,MATCH(G$44&\"|\"&$B65,'Data Annex'!$K$1:$K$4997,0),MATCH(G$45,'Data Annex'!$K$1:$AN$1,0)),\"\")","v":6.8532609600000002E-2},{"$f":"IFERROR(INDEX('Data Annex'!$K$1:$AN$4997,MATCH(H$44&\"|\"&$B65,'Data Annex'!$K$1:$K$4997,0),MATCH(H$45,'Data Annex'!$K$1:$AN$1,0)),\"\")","v":7.0098682400000001E-2},{"$f":"IFERROR(INDEX('Data Annex'!$K$1:$AN$4997,MATCH(I$44&\"|\"&$B65,'Data Annex'!$K$1:$K$4997,0),MATCH(I$45,'Data Annex'!$K$1:$AN$1,0)),\"\")","v":7.3421862700000007E-2},{"$f":"IFERROR(INDEX('Data Annex'!$K$1:$AN$4997,MATCH(J$44&\"|\"&$B65,'Data Annex'!$K$1:$K$4997,0),MATCH(J$45,'Data Annex'!$K$1:$AN$1,0)),\"\")","v":6.3203903800000003E-2},{"$f":"IFERROR(INDEX('Data Annex'!$K$1:$AN$4997,MATCH(K$44&\"|\"&$B65,'Data Annex'!$K$1:$K$4997,0),MATCH(K$45,'Data Annex'!$K$1:$AN$1,0)),\"\")","v":6.20449499E-2},{"$f":"IFERROR(INDEX('Data Annex'!$K$1:$AN$4997,MATCH(L$44&\"|\"&$B65,'Data Annex'!$K$1:$K$4997,0),MATCH(L$45,'Data Annex'!$K$1:$AN$1,0)),\"\")","v":6.8225037799999999E-2},{"$f":"IFERROR(INDEX('Data Annex'!$K$1:$AN$4997,MATCH(M$44&\"|\"&$B65,'Data Annex'!$K$1:$K$4997,0),MATCH(M$45,'Data Annex'!$K$1:$AN$1,0)),\"\")","v":2.1677783000000001E-3},{"$f":"IFERROR(INDEX('Data Annex'!$K$1:$AN$4997,MATCH(N$44&\"|\"&$B65,'Data Annex'!$K$1:$K$4997,0),MATCH(N$45,'Data Annex'!$K$1:$AN$1,0)),\"\")","v":1.7347027300000002E-2},{"$f":"IFERROR(INDEX('Data Annex'!$K$1:$AN$4997,MATCH(O$44&\"|\"&$B65,'Data Annex'!$K$1:$K$4997,0),MATCH(O$45,'Data Annex'!$K$1:$AN$1,0)),\"\")","v":1.99206556E-2},{"$f":"IFERROR(INDEX('Data Annex'!$K$1:$AN$4997,MATCH(P$44&\"|\"&$B65,'Data Annex'!$K$1:$K$4997,0),MATCH(P$45,'Data Annex'!$K$1:$AN$1,0)),\"\")","v":1.6615318600000002E-2},{"$f":"IFERROR(INDEX('Data Annex'!$K$1:$AN$4997,MATCH(Q$44&\"|\"&$B65,'Data Annex'!$K$1:$K$4997,0),MATCH(Q$45,'Data Annex'!$K$1:$AN$1,0)),\"\")","v":3.4911615899999998E-2},{"$f":"IFERROR(INDEX('Data Annex'!$K$1:$AN$4997,MATCH(R$44&\"|\"&$B65,'Data Annex'!$K$1:$K$4997,0),MATCH(R$45,'Data Annex'!$K$1:$AN$1,0)),\"\")","v":0.14367077750000001},{"$f":"IFERROR(INDEX('Data Annex'!$K$1:$AN$4997,MATCH(S$44&\"|\"&$B65,'Data Annex'!$K$1:$K$4997,0),MATCH(S$45,'Data Annex'!$K$1:$AN$1,0)),\"\")","v":0.1014415686},{"$f":"IFERROR(INDEX('Data Annex'!$K$1:$AN$4997,MATCH(T$44&\"|\"&$B65,'Data Annex'!$K$1:$K$4997,0),MATCH(T$45,'Data Annex'!$K$1:$AN$1,0)),\"\")","v":8.7067133399999996E-2},{"$f":"IFERROR(INDEX('Data Annex'!$K$1:$AN$4997,MATCH(U$44&\"|\"&$B65,'Data Annex'!$K$1:$K$4997,0),MATCH(U$45,'Data Annex'!$K$1:$AN$1,0)),\"\")","v":1.3415214999999999E-2},{"$f":"IFERROR(INDEX('Data Annex'!$K$1:$AN$4997,MATCH(V$44&\"|\"&$B65,'Data Annex'!$K$1:$K$4997,0),MATCH(V$45,'Data Annex'!$K$1:$AN$1,0)),\"\")","v":-5.7602340000000004E-3},{"$f":"IFERROR(INDEX('Data Annex'!$K$1:$AN$4997,MATCH(W$44&\"|\"&$B65,'Data Annex'!$K$1:$K$4997,0),MATCH(W$45,'Data Annex'!$K$1:$AN$1,0)),\"\")","v":-2.4236420000000002E-3},{"$f":"IFERROR(INDEX('Data Annex'!$K$1:$AN$4997,MATCH(X$44&\"|\"&$B65,'Data Annex'!$K$1:$K$4997,0),MATCH(X$45,'Data Annex'!$K$1:$AN$1,0)),\"\")","v":-1.285345E-3}]
[17,"IS",null,"IS",{"$f":"IFERROR(INDEX('Data Annex'!$K$1:$AN$4997,MATCH(E$44&\"|\"&$B66,'Data Annex'!$K$1:$K$4997,0),MATCH(E$45,'Data Annex'!$K$1:$AN$1,0)),\"\")","v":6.1398647899999999E-2},{"$f":"IFERROR(INDEX('Data Annex'!$K$1:$AN$4997,MATCH(F$44&\"|\"&$B66,'Data Annex'!$K$1:$K$4997,0),MATCH(F$45,'Data Annex'!$K$1:$AN$1,0)),\"\")","v":6.3196047199999994E-2},{"$f":"IFERROR(INDEX('Data Annex'!$K$1:$AN$4997,MATCH(G$44&\"|\"&$B66,'Data Annex'!$K$1:$K$4997,0),MATCH(G$45,'Data Annex'!$K$1:$AN$1,0)),\"\")","v":5.71513913E-2},{"$f":"IFERROR(INDEX('Data Annex'!$K$1:$AN$4997,MATCH(H$44&\"|\"&$B66,'Data Annex'!$K$1:$K$4997,0),MATCH(H$45,'Data Annex'!$K$1:$AN$1,0)),\"\")","v":5.8620850600000003E-2},{"$f":"IFERROR(INDEX('Data Annex'!$K$1:$AN$4997,MATCH(I$44&\"|\"&$B66,'Data Annex'!$K$1:$K$4997,0),MATCH(I$45,'Data Annex'!$K$1:$AN$1,0)),\"\")","v":5.3875405000000001E-2},{"$f":"IFERROR(INDEX('Data Annex'!$K$1:$AN$4997,MATCH(J$44&\"|\"&$B66,'Data Annex'!$K$1:$K$4997,0),MATCH(J$45,'Data Annex'!$K$1:$AN$1,0)),\"\")","v":4.8071915100000001E-2},{"$f":"IFERROR(INDEX('Data Annex'!$K$1:$AN$4997,MATCH(K$44&\"|\"&$B66,'Data Annex'!$K$1:$K$4997,0),MATCH(K$45,'Data Annex'!$K$1:$AN$1,0)),\"\")","v":4.4865993700000002E-2},{"$f":"IFERROR(INDEX('Data Annex'!$K$1:$AN$4997,MATCH(L$44&\"|\"&$B66,'Data Annex'!$K$1:$K$4997,0),MATCH(L$45,'Data Annex'!$K$1:$AN$1,0)),\"\")","v":4.6834324599999998E-2},{"$f":"IFERROR(INDEX('Data Annex'!$K$1:$AN$4997,MATCH(M$44&\"|\"&$B66,'Data Annex'!$K$1:$K$4997,0),MATCH(M$45,'Data Annex'!$K$1:$AN$1,0)),\"\")","v":1.6957806E-3},{"$f":"IFERROR(INDEX('Data Annex'!$K$1:$AN$4997,MATCH(N$44&\"|\"&$B66,'Data Annex'!$K$1:$K$4997,0),MATCH(N$45,'Data Annex'!$K$1:$AN$1,0)),\"\")","v":1.1590643999999999E-3},{"$f":"IFERROR(INDEX('Data Annex'!$K$1:$AN$4997,MATCH(O$44&\"|\"&$B66,'Data Annex'!$K$1:$K$4997,0),MATCH(O$45,'Data Annex'!$K$1:$AN$1,0)),\"\")","v":1.0409181000000001E-3},{"$f":"IFERROR(INDEX('Data Annex'!$K$1:$AN$4997,MATCH(P$44&\"|\"&$B66,'Data Annex'!$K$1:$K$4997,0),MATCH(P$45,'Data Annex'!$K$1:$AN$1,0)),\"\")","v":1.1012381999999999E-3},{"$f":"IFERROR(INDEX('Data Annex'!$K$1:$AN$4997,MATCH(Q$44&\"|\"&$B66,'Data Annex'!$K$1:$K$4997,0),MATCH(Q$45,'Data Annex'!$K$1:$AN$1,0)),\"\")","v":7.0723964299999997E-2},{"$f":"IFERROR(INDEX('Data Annex'!$K$1:$AN$4997,MATCH(R$44&\"|\"&$B66,'Data Annex'!$K$1:$K$4997,0),MATCH(R$45,'Data Annex'!$K$1:$AN$1,0)),\"\")","v":7.05541586E-2},{"$f":"IFERROR(INDEX('Data Annex'!$K$1:$AN$4997,MATCH(S$44&\"|\"&$B66,'Data Annex'!$K$1:$K$4997,0),MATCH(S$45,'Data Annex'!$K$1:$AN$1,0)),\"\")","v":5.09859415E-2},{"$f":"IFERROR(INDEX('Data Annex'!$K$1:$AN$4997,MATCH(T$44&\"|\"&$B66,'Data Annex'!$K$1:$K$4997,0),MATCH(T$45,'Data Annex'!$K$1:$AN$1,0)),\"\")","v":3.8773275199999999E-2},{"$f":"IFERROR(INDEX('Data Annex'!$K$1:$AN$4997,MATCH(U$44&\"|\"&$B66,'Data Annex'!$K$1:$K$4997,0),MATCH(U$45,'Data Annex'!$K$1:$AN$1,0)),\"\")","v":2.13029273E-2},{"$f":"IFERROR(INDEX('Data Annex'!$K$1:$AN$4997,MATCH(V$44&\"|\"&$B66,'Data Annex'!$K$1:$K$4997,0),MATCH(V$45,'Data Annex'!$K$1:$AN$1,0)),\"\")","v":1.8998856500000001E-2},{"$f":"IFERROR(INDEX('Data Annex'!$K$1:$AN$4997,MATCH(W$44&\"|\"&$B66,'Data Annex'!$K$1:$K$4997,0),MATCH(W$45,'Data Annex'!$K$1:$AN$1,0)),\"\")","v":2.3285123599999999E-2},{"$f":"IFERROR(INDEX('Data Annex'!$K$1:$AN$4997,MATCH(X$44&\"|\"&$B66,'Data Annex'!$K$1:$K$4997,0),MATCH(X$45,'Data Annex'!$K$1:$AN$1,0)),\"\")","v":2.4553285300000002E-2}]
[18,"IT",null,"IT",{"$f":"IFERROR(INDEX('Data Annex'!$K$1:$AN$4997,MATCH(E$44&\"|\"&$B67,'Data Annex'!$K$1:$K$4997,0),MATCH(E$45,'Data Annex'!$K$1:$AN$1,0)),\"\")","v":0.1415223793},{"$f":"IFERROR(INDEX('Data Annex'!$K$1:$AN$4997,MATCH(F$44&\"|\"&$B67,'Data Annex'!$K$1:$K$4997,0),MATCH(F$45,'Data Annex'!$K$1:$AN$1,0)),\"\")","v":0.125350989},{"$f":"IFERROR(INDEX('Data Annex'!$K$1:$AN$4997,MATCH(G$44&\"|\"&$B67,'Data Annex'!$K$1:$K$4997,0),MATCH(G$45,'Data Annex'!$K$1:$AN$1,0)),\"\")","v":0.1173133987},{"$f":"IFERROR(INDEX('Data Annex'!$K$1:$AN$4997,MATCH(H$44&\"|\"&$B67,'Data Annex'!$K$1:$K$4997,0),MATCH(H$45,'Data Annex'!$K$1:$AN$1,0)),\"\")","v":0.12799997730000001},{"$f":"IFERROR(INDEX('Data Annex'!$K$1:$AN$4997,MATCH(I$44&\"|\"&$B67,'Data Annex'!$K$1:$K$4997,0),MATCH(I$45,'Data Annex'!$K$1:$AN$1,0)),\"\")","v":0.1074228014},{"$f":"IFERROR(INDEX('Data Annex'!$K$1:$AN$4997,MATCH(J$44&\"|\"&$B67,'Data Annex'!$K$1:$K$4997,0),MATCH(J$45,'Data Annex'!$K$1:$AN$1,0)),\"\")","v":8.5471564099999994E-2},{"$f":"IFERROR(INDEX('Data Annex'!$K$1:$AN$4997,MATCH(K$44&\"|\"&$B67,'Data Annex'!$K$1:$K$4997,0),MATCH(K$45,'Data Annex'!$K$1:$AN$1,0)),\"\")","v":8.29815993E-2},{"$f":"IFERROR(INDEX('Data Annex'!$K$1:$AN$4997,MATCH(L$44&\"|\"&$B67,'Data Annex'!$K$1:$K$4997,0),MATCH(L$45,'Data Annex'!$K$1:$AN$1,0)),\"\")","v":8.8460298300000004E-2},{"$f":"IFERROR(INDEX('Data Annex'!$K$1:$AN$4997,MATCH(M$44&\"|\"&$B67,'Data Annex'!$K$1:$K$4997,0),MATCH(M$45,'Data Annex'!$K$1:$AN$1,0)),\"\")","v":9.4962640000000008E-3},{"$f":"IFERROR(INDEX('Data Annex'!$K$1:$AN$4997,MATCH(N$44&\"|\"&$B67,'Data Annex'!$K$1:$K$4997,0),MATCH(N$45,'Data Annex'!$K$1:$AN$1,0)),\"\")","v":7.9362184999999998E-3},{"$f":"IFERROR(INDEX('Data Annex'!$K$1:$AN$4997,MATCH(O$44&\"|\"&$B67,'Data Annex'!$K$1:$K$4997,0),MATCH(O$45,'Data Annex'!$K$1:$AN$1,0)),\"\")","v":1.0520253300000001E-2},{"$f":"IFERROR(INDEX('Data Annex'!$K$1:$AN$4997,MATCH(P$44&\"|\"&$B67,'Data Annex'!$K$1:$K$4997,0),MATCH(P$45,'Data Annex'!$K$1:$AN$1,0)),\"\")","v":1.42060012E-2},{"$f":"IFERROR(INDEX('Data Annex'!$K$1:$AN$4997,MATCH(Q$44&\"|\"&$B67,'Data Annex'!$K$1:$K$4997,0),MATCH(Q$45,'Data Annex'!$K$1:$AN$1,0)),\"\")","v":6.0037186399999998E-2},{"$f":"IFERROR(INDEX('Data Annex'!$K$1:$AN$4997,MATCH(R$44&\"|\"&$B67,'Data Annex'!$K$1:$K$4997,0),MATCH(R$45,'Data Annex'!$K$1:$AN$1,0)),\"\")","v":6.9029874599999999E-2},{"$f":"IFERROR(INDEX('Data Annex'!$K$1:$AN$4997,MATCH(S$44&\"|\"&$B67,'Data Annex'!$K$1:$K$4997,0),MATCH(S$45,'Data Annex'!$K$1:$AN$1,0)),\"\")","v":6.2074160699999999E-2},{"$f":"IFERROR(INDEX('Data Annex'!$K$1:$AN$4997,MATCH(T$44&\"|\"&$B67,'Data Annex'!$K$1:$K$4997,0),MATCH(T$45,'Data Annex'!$K$1:$AN$1,0)),\"\")","v":7.4120539299999996E-2},{"$f":"IFERROR(INDEX('Data Annex'!$K$1:$AN$4997,MATCH(U$44&\"|\"&$B67,'Data Annex'!$K$1:$K$4997,0),MATCH(U$45,'Data Annex'!$K$1:$AN$1,0)),\"\")","v":4.4201506600000003E-2},{"$f":"IFERROR(INDEX('Data Annex'!$K$1:$AN$4997,MATCH(V$44&\"|\"&$B67,'Data Annex'!$K$1:$K$4997,0),MATCH(V$45,'Data Annex'!$K$1:$AN$1,0)),\"\")","v":2.5259417199999998E-2},{"$f":"IFERROR(INDEX('Data Annex'!$K$1:$AN$4997,MATCH(W$44&\"|\"&$B67,'Data Annex'!$K$1:$K$4997,0),MATCH(W$45,'Data Annex'!$K$1:$AN$1,0)),\"\")","v":-2.8298870000000001E-3},{"$f":"IFERROR(INDEX('Data Annex'!$K$1:$AN$4997,MATCH(X$44&\"|\"&$B67,'Data Annex'!$K$1:$K$4997,0),MATCH(X$45,'Data Annex'!$K$1:$AN$1,0)),\"\")","v":4.2278226999999998E-3}]
[19,"LT",null,"LT",{"$f":"IFERROR(INDEX('Data Annex'!$K$1:$AN$4997,MATCH(E$44&\"|\"&$B68,'Data Annex'!$K$1:$K$4997,0),MATCH(E$45,'Data Annex'!$K$1:$AN$1,0)),\"\")","v":6.4923626200000001E-2},{"$f":"IFERROR(INDEX('Data Annex'!$K$1:$AN$4997,MATCH(F$44&\"|\"&$B68,'Data Annex'!$K$1:$K$4997,0),MATCH(F$45,'Data Annex'!$K$1:$AN$1,0)),\"\")","v":6.3016715400000006E-2},{"$f":"IFERROR(INDEX('Data Annex'!$K$1:$AN$4997,MATCH(G$44&\"|\"&$B68,'Data Annex'!$K$1:$K$4997,0),MATCH(G$45,'Data Annex'!$K$1:$AN$1,0)),\"\")","v":6.3526239799999995E-2},{"$f":"IFERROR(INDEX('Data Annex'!$K$1:$AN$4997,MATCH(H$44&\"|\"&$B68,'Data Annex'!$K$1:$K$4997,0),MATCH(H$45,'Data Annex'!$K$1:$AN$1,0)),\"\")","v":6.4594841700000002E-2},{"$f":"IFERROR(INDEX('Data Annex'!$K$1:$AN$4997,MATCH(I$44&\"|\"&$B68,'Data Annex'!$K$1:$K$4997,0),MATCH(I$45,'Data Annex'!$K$1:$AN$1,0)),\"\")","v":4.7251714200000003E-2},{"$f":"IFERROR(INDEX('Data Annex'!$K$1:$AN$4997,MATCH(J$44&\"|\"&$B68,'Data Annex'!$K$1:$K$4997,0),MATCH(J$45,'Data Annex'!$K$1:$AN$1,0)),\"\")","v":4.6998336799999998E-2},{"$f":"IFERROR(INDEX('Data Annex'!$K$1:$AN$4997,MATCH(K$44&\"|\"&$B68,'Data Annex'!$K$1:$K$4997,0),MATCH(K$45,'Data Annex'!$K$1:$AN$1,0)),\"\")","v":4.8690043000000002E-2},{"$f":"IFERROR(INDEX('Data Annex'!$K$1:$AN$4997,MATCH(L$44&\"|\"&$B68,'Data Annex'!$K$1:$K$4997,0),MATCH(L$45,'Data Annex'!$K$1:$AN$1,0)),\"\")","v":5.1024027899999998E-2},{"$f":"IFERROR(INDEX('Data Annex'!$K$1:$AN$4997,MATCH(M$44&\"|\"&$B68,'Data Annex'!$K$1:$K$4997,0),MATCH(M$45,'Data Annex'!$K$1:$AN$1,0)),\"\")","v":1.4731618E-3},{"$f":"IFERROR(INDEX('Data Annex'!$K$1:$AN$4997,MATCH(N$44&\"|\"&$B68,'Data Annex'!$K$1:$K$4997,0),MATCH(N$45,'Data Annex'!$K$1:$AN$1,0)),\"\")","v":4.5966299000000004E-3},{"$f":"IFERROR(INDEX('Data Annex'!$K$1:$AN$4997,MATCH(O$44&\"|\"&$B68,'Data Annex'!$K$1:$K$4997,0),MATCH(O$45,'Data Annex'!$K$1:$AN$1,0)),\"\")","v":6.5889560000000004E-4},{"$f":"IFERROR(INDEX('Data Annex'!$K$1:$AN$4997,MATCH(P$44&\"|\"&$B68,'Data Annex'!$K$1:$K$4997,0),MATCH(P$45,'Data Annex'!$K$1:$AN$1,0)),\"\")","v":6.1086460000000001E-4},{"$f":"IFERROR(INDEX('Data Annex'!$K$1:$AN$4997,MATCH(Q$44&\"|\"&$B68,'Data Annex'!$K$1:$K$4997,0),MATCH(Q$45,'Data Annex'!$K$1:$AN$1,0)),\"\")","v":1.9360119200000001E-2},{"$f":"IFERROR(INDEX('Data Annex'!$K$1:$AN$4997,MATCH(R$44&\"|\"&$B68,'Data Annex'!$K$1:$K$4997,0),MATCH(R$45,'Data Annex'!$K$1:$AN$1,0)),\"\")","v":2.0074228499999999E-2},{"$f":"IFERROR(INDEX('Data Annex'!$K$1:$AN$4997,MATCH(S$44&\"|\"&$B68,'Data Annex'!$K$1:$K$4997,0),MATCH(S$45,'Data Annex'!$K$1:$AN$1,0)),\"\")","v":1.5634149199999999E-2},{"$f":"IFERROR(INDEX('Data Annex'!$K$1:$AN$4997,MATCH(T$44&\"|\"&$B68,'Data Annex'!$K$1:$K$4997,0),MATCH(T$45,'Data Annex'!$K$1:$AN$1,0)),\"\")","v":1.4042189599999999E-2},{"$f":"IFERROR(INDEX('Data Annex'!$K$1:$AN$4997,MATCH(U$44&\"|\"&$B68,'Data Annex'!$K$1:$K$4997,0),MATCH(U$45,'Data Annex'!$K$1:$AN$1,0)),\"\")","v":2.81709531E-2},{"$f":"IFERROR(INDEX('Data Annex'!$K$1:$AN$4997,MATCH(V$44&\"|\"&$B68,'Data Annex'!$K$1:$K$4997,0),MATCH(V$45,'Data Annex'!$K$1:$AN$1,0)),\"\")","v":3.6044075500000002E-2},{"$f":"IFERROR(INDEX('Data Annex'!$K$1:$AN$4997,MATCH(W$44&\"|\"&$B68,'Data Annex'!$K$1:$K$4997,0),MATCH(W$45,'Data Annex'!$K$1:$AN$1,0)),\"\")","v":3.6848766999999998E-2},{"$f":"IFERROR(INDEX('Data Annex'!$K$1:$AN$4997,MATCH(X$44&\"|\"&$B68,'Data Annex'!$K$1:$K$4997,0),MATCH(X$45,'Data Annex'!$K$1:$AN$1,0)),\"\")","v":3.5322883999999999E-2}]
[20,"LU",null,"LU",{"$f":"IFERROR(INDEX('Data Annex'!$K$1:$AN$4997,MATCH(E$44&\"|\"&$B69,'Data Annex'!$K$1:$K$4997,0),MATCH(E$45,'Data Annex'!$K$1:$AN$1,0)),\"\")","v":9.3677850500000007E-2},{"$f":"IFERROR(INDEX('Data Annex'!$K$1:$AN$4997,MATCH(F$44&\"|\"&$B69,'Data Annex'!$K$1:$K$4997,0),MATCH(F$45,'Data Annex'!$K$1:$AN$1,0)),\"\")","v":9.17040675E-2},{"$f":"IFERROR(INDEX('Data Annex'!$K$1:$AN$4997,MATCH(G$44&\"|\"&$B69,'Data Annex'!$K$1:$K$4997,0),MATCH(G$45,'Data Annex'!$K$1:$AN$1,0)),\"\")","v":9.1168611199999999E-2},{"$f":"IFERROR(INDEX('Data Annex'!$K$1:$AN$4997,MATCH(H$44&\"|\"&$B69,'Data Annex'!$K$1:$K$4997,0),MATCH(H$45,'Data Annex'!$K$1:$AN$1,0)),\"\")","v":9.3190780099999995E-2},{"$f":"IFERROR(INDEX('Data Annex'!$K$1:$AN$4997,MATCH(I$44&\"|\"&$B69,'Data Annex'!$K$1:$K$4997,0),MATCH(I$45,'Data Annex'!$K$1:$AN$1,0)),\"\")","v":8.1245044200000005E-2},{"$f":"IFERROR(INDEX('Data Annex'!$K$1:$AN$4997,MATCH(J$44&\"|\"&$B69,'Data Annex'!$K$1:$K$4997,0),MATCH(J$45,'Data Annex'!$K$1:$AN$1,0)),\"\")","v":6.8892510200000007E-2},{"$f":"IFERROR(INDEX('Data Annex'!$K$1:$AN$4997,MATCH(K$44&\"|\"&$B69,'Data Annex'!$K$1:$K$4997,0),MATCH(K$45,'Data Annex'!$K$1:$AN$1,0)),\"\")","v":6.7818482099999994E-2},{"$f":"IFERROR(INDEX('Data Annex'!$K$1:$AN$4997,MATCH(L$44&\"|\"&$B69,'Data Annex'!$K$1:$K$4997,0),MATCH(L$45,'Data Annex'!$K$1:$AN$1,0)),\"\")","v":6.8400788399999995E-2},{"$f":"IFERROR(INDEX('Data Annex'!$K$1:$AN$4997,MATCH(M$44&\"|\"&$B69,'Data Annex'!$K$1:$K$4997,0),MATCH(M$45,'Data Annex'!$K$1:$AN$1,0)),\"\")","v":-1.8240509999999999E-3},{"$f":"IFERROR(INDEX('Data Annex'!$K$1:$AN$4997,MATCH(N$44&\"|\"&$B69,'Data Annex'!$K$1:$K$4997,0),MATCH(N$45,'Data Annex'!$K$1:$AN$1,0)),\"\")","v":-1.8306999999999999E-5},{"$f":"IFERROR(INDEX('Data Annex'!$K$1:$AN$4997,MATCH(O$44&\"|\"&$B69,'Data Annex'!$K$1:$K$4997,0),MATCH(O$45,'Data Annex'!$K$1:$AN$1,0)),\"\")","v":-6.2963699999999995E-4},{"$f":"IFERROR(INDEX('Data Annex'!$K$1:$AN$4997,MATCH(P$44&\"|\"&$B69,'Data Annex'!$K$1:$K$4997,0),MATCH(P$45,'Data Annex'!$K$1:$AN$1,0)),\"\")","v":8.9442899999999997E-5},{"$f":"IFERROR(INDEX('Data Annex'!$K$1:$AN$4997,MATCH(Q$44&\"|\"&$B69,'Data Annex'!$K$1:$K$4997,0),MATCH(Q$45,'Data Annex'!$K$1:$AN$1,0)),\"\")","v":1.26770498E-2},{"$f":"IFERROR(INDEX('Data Annex'!$K$1:$AN$4997,MATCH(R$44&\"|\"&$B69,'Data Annex'!$K$1:$K$4997,0),MATCH(R$45,'Data Annex'!$K$1:$AN$1,0)),\"\")","v":1.55234845E-2},{"$f":"IFERROR(INDEX('Data Annex'!$K$1:$AN$4997,MATCH(S$44&\"|\"&$B69,'Data Annex'!$K$1:$K$4997,0),MATCH(S$45,'Data Annex'!$K$1:$AN$1,0)),\"\")","v":1.6301532600000002E-2},{"$f":"IFERROR(INDEX('Data Annex'!$K$1:$AN$4997,MATCH(T$44&\"|\"&$B69,'Data Annex'!$K$1:$K$4997,0),MATCH(T$45,'Data Annex'!$K$1:$AN$1,0)),\"\")","v":1.6534724899999999E-2},{"$f":"IFERROR(INDEX('Data Annex'!$K$1:$AN$4997,MATCH(U$44&\"|\"&$B69,'Data Annex'!$K$1:$K$4997,0),MATCH(U$45,'Data Annex'!$K$1:$AN$1,0)),\"\")","v":1.3932863E-2},{"$f":"IFERROR(INDEX('Data Annex'!$K$1:$AN$4997,MATCH(V$44&\"|\"&$B69,'Data Annex'!$K$1:$K$4997,0),MATCH(V$45,'Data Annex'!$K$1:$AN$1,0)),\"\")","v":2.09019275E-2},{"$f":"IFERROR(INDEX('Data Annex'!$K$1:$AN$4997,MATCH(W$44&\"|\"&$B69,'Data Annex'!$K$1:$K$4997,0),MATCH(W$45,'Data Annex'!$K$1:$AN$1,0)),\"\")","v":1.7009113199999999E-2},{"$f":"IFERROR(INDEX('Data Annex'!$K$1:$AN$4997,MATCH(X$44&\"|\"&$B69,'Data Annex'!$K$1:$K$4997,0),MATCH(X$45,'Data Annex'!$K$1:$AN$1,0)),\"\")","v":1.4231952399999999E-2}]
[21,"LV",null,"LV",{"$f":"IFERROR(INDEX('Data Annex'!$K$1:$AN$4997,MATCH(E$44&\"|\"&$B70,'Data Annex'!$K$1:$K$4997,0),MATCH(E$45,'Data Annex'!$K$1:$AN$1,0)),\"\")","v":7.9427525400000004E-2},{"$f":"IFERROR(INDEX('Data Annex'!$K$1:$AN$4997,MATCH(F$44&\"|\"&$B70,'Data Annex'!$K$1:$K$4997,0),MATCH(F$45,'Data Annex'!$K$1:$AN$1,0)),\"\")","v":8.0716840799999995E-2},{"$f":"IFERROR(INDEX('Data Annex'!$K$1:$AN$4997,MATCH(G$44&\"|\"&$B70,'Data Annex'!$K$1:$K$4997,0),MATCH(G$45,'Data Annex'!$K$1:$AN$1,0)),\"\")","v":8.0111435499999994E-2},{"$f":"IFERROR(INDEX('Data Annex'!$K$1:$AN$4997,MATCH(H$44&\"|\"&$B70,'Data Annex'!$K$1:$K$4997,0),MATCH(H$45,'Data Annex'!$K$1:$AN$1,0)),\"\")","v":0.10384140510000001},{"$f":"IFERROR(INDEX('Data Annex'!$K$1:$AN$4997,MATCH(I$44&\"|\"&$B70,'Data Annex'!$K$1:$K$4997,0),MATCH(I$45,'Data Annex'!$K$1:$AN$1,0)),\"\")","v":5.8837461899999999E-2},{"$f":"IFERROR(INDEX('Data Annex'!$K$1:$AN$4997,MATCH(J$44&\"|\"&$B70,'Data Annex'!$K$1:$K$4997,0),MATCH(J$45,'Data Annex'!$K$1:$AN$1,0)),\"\")","v":6.1566559700000002E-2},{"$f":"IFERROR(INDEX('Data Annex'!$K$1:$AN$4997,MATCH(K$44&\"|\"&$B70,'Data Annex'!$K$1:$K$4997,0),MATCH(K$45,'Data Annex'!$K$1:$AN$1,0)),\"\")","v":6.3994814799999994E-2},{"$f":"IFERROR(INDEX('Data Annex'!$K$1:$AN$4997,MATCH(L$44&\"|\"&$B70,'Data Annex'!$K$1:$K$4997,0),MATCH(L$45,'Data Annex'!$K$1:$AN$1,0)),\"\")","v":7.2771768099999995E-2},{"$f":"IFERROR(INDEX('Data Annex'!$K$1:$AN$4997,MATCH(M$44&\"|\"&$B70,'Data Annex'!$K$1:$K$4997,0),MATCH(M$45,'Data Annex'!$K$1:$AN$1,0)),\"\")","v":4.5205195000000004E-3},{"$f":"IFERROR(INDEX('Data Annex'!$K$1:$AN$4997,MATCH(N$44&\"|\"&$B70,'Data Annex'!$K$1:$K$4997,0),MATCH(N$45,'Data Annex'!$K$1:$AN$1,0)),\"\")","v":4.9961073999999998E-3},{"$f":"IFERROR(INDEX('Data Annex'!$K$1:$AN$4997,MATCH(O$44&\"|\"&$B70,'Data Annex'!$K$1:$K$4997,0),MATCH(O$45,'Data Annex'!$K$1:$AN$1,0)),\"\")","v":1.7857877000000001E-3},{"$f":"IFERROR(INDEX('Data Annex'!$K$1:$AN$4997,MATCH(P$44&\"|\"&$B70,'Data Annex'!$K$1:$K$4997,0),MATCH(P$45,'Data Annex'!$K$1:$AN$1,0)),\"\")","v":5.5012599999999996E-4},{"$f":"IFERROR(INDEX('Data Annex'!$K$1:$AN$4997,MATCH(Q$44&\"|\"&$B70,'Data Annex'!$K$1:$K$4997,0),MATCH(Q$45,'Data Annex'!$K$1:$AN$1,0)),\"\")","v":5.5943209000000001E-2},{"$f":"IFERROR(INDEX('Data Annex'!$K$1:$AN$4997,MATCH(R$44&\"|\"&$B70,'Data Annex'!$K$1:$K$4997,0),MATCH(R$45,'Data Annex'!$K$1:$AN$1,0)),\"\")","v":3.3426280900000001E-2},{"$f":"IFERROR(INDEX('Data Annex'!$K$1:$AN$4997,MATCH(S$44&\"|\"&$B70,'Data Annex'!$K$1:$K$4997,0),MATCH(S$45,'Data Annex'!$K$1:$AN$1,0)),\"\")","v":2.1652197599999999E-2},{"$f":"IFERROR(INDEX('Data Annex'!$K$1:$AN$4997,MATCH(T$44&\"|\"&$B70,'Data Annex'!$K$1:$K$4997,0),MATCH(T$45,'Data Annex'!$K$1:$AN$1,0)),\"\")","v":3.2785046900000003E-2},{"$f":"IFERROR(INDEX('Data Annex'!$K$1:$AN$4997,MATCH(U$44&\"|\"&$B70,'Data Annex'!$K$1:$K$4997,0),MATCH(U$45,'Data Annex'!$K$1:$AN$1,0)),\"\")","v":1.8089296999999999E-3},{"$f":"IFERROR(INDEX('Data Annex'!$K$1:$AN$4997,MATCH(V$44&\"|\"&$B70,'Data Annex'!$K$1:$K$4997,0),MATCH(V$45,'Data Annex'!$K$1:$AN$1,0)),\"\")","v":1.2077089399999999E-2},{"$f":"IFERROR(INDEX('Data Annex'!$K$1:$AN$4997,MATCH(W$44&\"|\"&$B70,'Data Annex'!$K$1:$K$4997,0),MATCH(W$45,'Data Annex'!$K$1:$AN$1,0)),\"\")","v":1.34443349E-2},{"$f":"IFERROR(INDEX('Data Annex'!$K$1:$AN$4997,MATCH(X$44&\"|\"&$B70,'Data Annex'!$K$1:$K$4997,0),MATCH(X$45,'Data Annex'!$K$1:$AN$1,0)),\"\")","v":2.0200396700000001E-2}]
[22,"MT",null,"MT",{"$f":"IFERROR(INDEX('Data Annex'!$K$1:$AN$4997,MATCH(E$44&\"|\"&$B71,'Data Annex'!$K$1:$K$4997,0),MATCH(E$45,'Data Annex'!$K$1:$AN$1,0)),\"\")","v":8.0680794299999997E-2},{"$f":"IFERROR(INDEX('Data Annex'!$K$1:$AN$4997,MATCH(F$44&\"|\"&$B71,'Data Annex'!$K$1:$K$4997,0),MATCH(F$45,'Data Annex'!$K$1:$AN$1,0)),\"\")","v":8.1241607399999999E-2},{"$f":"IFERROR(INDEX('Data Annex'!$K$1:$AN$4997,MATCH(G$44&\"|\"&$B71,'Data Annex'!$K$1:$K$4997,0),MATCH(G$45,'Data Annex'!$K$1:$AN$1,0)),\"\")","v":7.9509919700000001E-2},{"$f":"IFERROR(INDEX('Data Annex'!$K$1:$AN$4997,MATCH(H$44&\"|\"&$B71,'Data Annex'!$K$1:$K$4997,0),MATCH(H$45,'Data Annex'!$K$1:$AN$1,0)),\"\")","v":8.0044121499999996E-2},{"$f":"IFERROR(INDEX('Data Annex'!$K$1:$AN$4997,MATCH(I$44&\"|\"&$B71,'Data Annex'!$K$1:$K$4997,0),MATCH(I$45,'Data Annex'!$K$1:$AN$1,0)),\"\")","v":8.9129384699999994E-2},{"$f":"IFERROR(INDEX('Data Annex'!$K$1:$AN$4997,MATCH(J$44&\"|\"&$B71,'Data Annex'!$K$1:$K$4997,0),MATCH(J$45,'Data Annex'!$K$1:$AN$1,0)),\"\")","v":9.1523503399999998E-2},{"$f":"IFERROR(INDEX('Data Annex'!$K$1:$AN$4997,MATCH(K$44&\"|\"&$B71,'Data Annex'!$K$1:$K$4997,0),MATCH(K$45,'Data Annex'!$K$1:$AN$1,0)),\"\")","v":8.4400655399999996E-2},{"$f":"IFERROR(INDEX('Data Annex'!$K$1:$AN$4997,MATCH(L$44&\"|\"&$B71,'Data Annex'!$K$1:$K$4997,0),MATCH(L$45,'Data Annex'!$K$1:$AN$1,0)),\"\")","v":8.4436044799999999E-2},{"$f":"IFERROR(INDEX('Data Annex'!$K$1:$AN$4997,MATCH(M$44&\"|\"&$B71,'Data Annex'!$K$1:$K$4997,0),MATCH(M$45,'Data Annex'!$K$1:$AN$1,0)),\"\")","v":2.9783928999999999E-7},{"$f":"IFERROR(INDEX('Data Annex'!$K$1:$AN$4997,MATCH(N$44&\"|\"&$B71,'Data Annex'!$K$1:$K$4997,0),MATCH(N$45,'Data Annex'!$K$1:$AN$1,0)),\"\")","v":9.0641999E-7},{"$f":"IFERROR(INDEX('Data Annex'!$K$1:$AN$4997,MATCH(O$44&\"|\"&$B71,'Data Annex'!$K$1:$K$4997,0),MATCH(O$45,'Data Annex'!$K$1:$AN$1,0)),\"\")","v":2.1781235000000001E-6},{"$f":"IFERROR(INDEX('Data Annex'!$K$1:$AN$4997,MATCH(P$44&\"|\"&$B71,'Data Annex'!$K$1:$K$4997,0),MATCH(P$45,'Data Annex'!$K$1:$AN$1,0)),\"\")","v":6.1484729999999996E-4},{"$f":"IFERROR(INDEX('Data Annex'!$K$1:$AN$4997,MATCH(Q$44&\"|\"&$B71,'Data Annex'!$K$1:$K$4997,0),MATCH(Q$45,'Data Annex'!$K$1:$AN$1,0)),\"\")","v":2.81802801E-2},{"$f":"IFERROR(INDEX('Data Annex'!$K$1:$AN$4997,MATCH(R$44&\"|\"&$B71,'Data Annex'!$K$1:$K$4997,0),MATCH(R$45,'Data Annex'!$K$1:$AN$1,0)),\"\")","v":7.9668558E-2},{"$f":"IFERROR(INDEX('Data Annex'!$K$1:$AN$4997,MATCH(S$44&\"|\"&$B71,'Data Annex'!$K$1:$K$4997,0),MATCH(S$45,'Data Annex'!$K$1:$AN$1,0)),\"\")","v":5.2799693000000002E-2},{"$f":"IFERROR(INDEX('Data Annex'!$K$1:$AN$4997,MATCH(T$44&\"|\"&$B71,'Data Annex'!$K$1:$K$4997,0),MATCH(T$45,'Data Annex'!$K$1:$AN$1,0)),\"\")","v":8.5929151600000003E-2},{"$f":"IFERROR(INDEX('Data Annex'!$K$1:$AN$4997,MATCH(U$44&\"|\"&$B71,'Data Annex'!$K$1:$K$4997,0),MATCH(U$45,'Data Annex'!$K$1:$AN$1,0)),\"\")","v":4.6191271999999998E-3},{"$f":"IFERROR(INDEX('Data Annex'!$K$1:$AN$4997,MATCH(V$44&\"|\"&$B71,'Data Annex'!$K$1:$K$4997,0),MATCH(V$45,'Data Annex'!$K$1:$AN$1,0)),\"\")","v":6.4660202999999999E-3},{"$f":"IFERROR(INDEX('Data Annex'!$K$1:$AN$4997,MATCH(W$44&\"|\"&$B71,'Data Annex'!$K$1:$K$4997,0),MATCH(W$45,'Data Annex'!$K$1:$AN$1,0)),\"\")","v":1.5655548799999999E-2},{"$f":"IFERROR(INDEX('Data Annex'!$K$1:$AN$4997,MATCH(X$44&\"|\"&$B71,'Data Annex'!$K$1:$K$4997,0),MATCH(X$45,'Data Annex'!$K$1:$AN$1,0)),\"\")","v":5.9516593000000003E-3}]
[23,"NL",null,"NL",{"$f":"IFERROR(INDEX('Data Annex'!$K$1:$AN$4997,MATCH(E$44&\"|\"&$B72,'Data Annex'!$K$1:$K$4997,0),MATCH(E$45,'Data Annex'!$K$1:$AN$1,0)),\"\")","v":0.10418737459999999},{"$f":"IFERROR(INDEX('Data Annex'!$K$1:$AN$4997,MATCH(F$44&\"|\"&$B72,'Data Annex'!$K$1:$K$4997,0),MATCH(F$45,'Data Annex'!$K$1:$AN$1,0)),\"\")","v":0.104355747},{"$f":"IFERROR(INDEX('Data Annex'!$K$1:$AN$4997,MATCH(G$44&\"|\"&$B72,'Data Annex'!$K$1:$K$4997,0),MATCH(G$45,'Data Annex'!$K$1:$AN$1,0)),\"\")","v":0.1036622988},{"$f":"IFERROR(INDEX('Data Annex'!$K$1:$AN$4997,MATCH(H$44&\"|\"&$B72,'Data Annex'!$K$1:$K$4997,0),MATCH(H$45,'Data Annex'!$K$1:$AN$1,0)),\"\")","v":0.10440838750000001},{"$f":"IFERROR(INDEX('Data Annex'!$K$1:$AN$4997,MATCH(I$44&\"|\"&$B72,'Data Annex'!$K$1:$K$4997,0),MATCH(I$45,'Data Annex'!$K$1:$AN$1,0)),\"\")","v":9.2253678800000002E-2},{"$f":"IFERROR(INDEX('Data Annex'!$K$1:$AN$4997,MATCH(J$44&\"|\"&$B72,'Data Annex'!$K$1:$K$4997,0),MATCH(J$45,'Data Annex'!$K$1:$AN$1,0)),\"\")","v":6.3657412999999996E-2},{"$f":"IFERROR(INDEX('Data Annex'!$K$1:$AN$4997,MATCH(K$44&\"|\"&$B72,'Data Annex'!$K$1:$K$4997,0),MATCH(K$45,'Data Annex'!$K$1:$AN$1,0)),\"\")","v":6.3296385199999999E-2},{"$f":"IFERROR(INDEX('Data Annex'!$K$1:$AN$4997,MATCH(L$44&\"|\"&$B72,'Data Annex'!$K$1:$K$4997,0),MATCH(L$45,'Data Annex'!$K$1:$AN$1,0)),\"\")","v":6.7493615100000001E-2},{"$f":"IFERROR(INDEX('Data Annex'!$K$1:$AN$4997,MATCH(M$44&\"|\"&$B72,'Data Annex'!$K$1:$K$4997,0),MATCH(M$45,'Data Annex'!$K$1:$AN$1,0)),\"\")","v":7.0921376999999999E-3},{"$f":"IFERROR(INDEX('Data Annex'!$K$1:$AN$4997,MATCH(N$44&\"|\"&$B72,'Data Annex'!$K$1:$K$4997,0),MATCH(N$45,'Data Annex'!$K$1:$AN$1,0)),\"\")","v":2.8105322999999998E-3},{"$f":"IFERROR(INDEX('Data Annex'!$K$1:$AN$4997,MATCH(O$44&\"|\"&$B72,'Data Annex'!$K$1:$K$4997,0),MATCH(O$45,'Data Annex'!$K$1:$AN$1,0)),\"\")","v":3.5811726999999999E-3},{"$f":"IFERROR(INDEX('Data Annex'!$K$1:$AN$4997,MATCH(P$44&\"|\"&$B72,'Data Annex'!$K$1:$K$4997,0),MATCH(P$45,'Data Annex'!$K$1:$AN$1,0)),\"\")","v":5.1800146000000004E-3},{"$f":"IFERROR(INDEX('Data Annex'!$K$1:$AN$4997,MATCH(Q$44&\"|\"&$B72,'Data Annex'!$K$1:$K$4997,0),MATCH(Q$45,'Data Annex'!$K$1:$AN$1,0)),\"\")","v":6.8801548500000004E-2},{"$f":"IFERROR(INDEX('Data Annex'!$K$1:$AN$4997,MATCH(R$44&\"|\"&$B72,'Data Annex'!$K$1:$K$4997,0),MATCH(R$45,'Data Annex'!$K$1:$AN$1,0)),\"\")","v":8.1308355099999993E-2},{"$f":"IFERROR(INDEX('Data Annex'!$K$1:$AN$4997,MATCH(S$44&\"|\"&$B72,'Data Annex'!$K$1:$K$4997,0),MATCH(S$45,'Data Annex'!$K$1:$AN$1,0)),\"\")","v":6.3620270000000007E-2},{"$f":"IFERROR(INDEX('Data Annex'!$K$1:$AN$4997,MATCH(T$44&\"|\"&$B72,'Data Annex'!$K$1:$K$4997,0),MATCH(T$45,'Data Annex'!$K$1:$AN$1,0)),\"\")","v":5.4147168799999999E-2},{"$f":"IFERROR(INDEX('Data Annex'!$K$1:$AN$4997,MATCH(U$44&\"|\"&$B72,'Data Annex'!$K$1:$K$4997,0),MATCH(U$45,'Data Annex'!$K$1:$AN$1,0)),\"\")","v":8.9165818999999997E-3},{"$f":"IFERROR(INDEX('Data Annex'!$K$1:$AN$4997,MATCH(V$44&\"|\"&$B72,'Data Annex'!$K$1:$K$4997,0),MATCH(V$45,'Data Annex'!$K$1:$AN$1,0)),\"\")","v":3.4247405000000002E-2},{"$f":"IFERROR(INDEX('Data Annex'!$K$1:$AN$4997,MATCH(W$44&\"|\"&$B72,'Data Annex'!$K$1:$K$4997,0),MATCH(W$45,'Data Annex'!$K$1:$AN$1,0)),\"\")","v":3.80382857E-2},{"$f":"IFERROR(INDEX('Data Annex'!$K$1:$AN$4997,MATCH(X$44&\"|\"&$B72,'Data Annex'!$K$1:$K$4997,0),MATCH(X$45,'Data Annex'!$K$1:$AN$1,0)),\"\")","v":3.7047007899999998E-2}]
[24,"NO",null,"NO",{"$f":"IFERROR(INDEX('Data Annex'!$K$1:$AN$4997,MATCH(E$44&\"|\"&$B73,'Data Annex'!$K$1:$K$4997,0),MATCH(E$45,'Data Annex'!$K$1:$AN$1,0)),\"\")","v":4.8338043900000002E-2},{"$f":"IFERROR(INDEX('Data Annex'!$K$1:$AN$4997,MATCH(F$44&\"|\"&$B73,'Data Annex'!$K$1:$K$4997,0),MATCH(F$45,'Data Annex'!$K$1:$AN$1,0)),\"\")","v":5.19995948E-2},{"$f":"IFERROR(INDEX('Data Annex'!$K$1:$AN$4997,MATCH(G$44&\"|\"&$B73,'Data Annex'!$K$1:$K$4997,0),MATCH(G$45,'Data Annex'!$K$1:$AN$1,0)),\"\")","v":5.21822625E-2},{"$f":"IFERROR(INDEX('Data Annex'!$K$1:$AN$4997,MATCH(H$44&\"|\"&$B73,'Data Annex'!$K$1:$K$4997,0),MATCH(H$45,'Data Annex'!$K$1:$AN$1,0)),\"\")","v":5.5615148000000003E-2},{"$f":"IFERROR(INDEX('Data Annex'!$K$1:$AN$4997,MATCH(I$44&\"|\"&$B73,'Data Annex'!$K$1:$K$4997,0),MATCH(I$45,'Data Annex'!$K$1:$AN$1,0)),\"\")","v":3.78773305E-2},{"$f":"IFERROR(INDEX('Data Annex'!$K$1:$AN$4997,MATCH(J$44&\"|\"&$B73,'Data Annex'!$K$1:$K$4997,0),MATCH(J$45,'Data Annex'!$K$1:$AN$1,0)),\"\")","v":3.8612972799999999E-2},{"$f":"IFERROR(INDEX('Data Annex'!$K$1:$AN$4997,MATCH(K$44&\"|\"&$B73,'Data Annex'!$K$1:$K$4997,0),MATCH(K$45,'Data Annex'!$K$1:$AN$1,0)),\"\")","v":3.7425297199999999E-2},{"$f":"IFERROR(INDEX('Data Annex'!$K$1:$AN$4997,MATCH(L$44&\"|\"&$B73,'Data Annex'!$K$1:$K$4997,0),MATCH(L$45,'Data Annex'!$K$1:$AN$1,0)),\"\")","v":3.8748957399999999E-2},{"$f":"IFERROR(INDEX('Data Annex'!$K$1:$AN$4997,MATCH(M$44&\"|\"&$B73,'Data Annex'!$K$1:$K$4997,0),MATCH(M$45,'Data Annex'!$K$1:$AN$1,0)),\"\")","v":2.11662198E-2},{"$f":"IFERROR(INDEX('Data Annex'!$K$1:$AN$4997,MATCH(N$44&\"|\"&$B73,'Data Annex'!$K$1:$K$4997,0),MATCH(N$45,'Data Annex'!$K$1:$AN$1,0)),\"\")","v":8.5102330000000007E-3},{"$f":"IFERROR(INDEX('Data Annex'!$K$1:$AN$4997,MATCH(O$44&\"|\"&$B73,'Data Annex'!$K$1:$K$4997,0),MATCH(O$45,'Data Annex'!$K$1:$AN$1,0)),\"\")","v":3.2460604E-3},{"$f":"IFERROR(INDEX('Data Annex'!$K$1:$AN$4997,MATCH(P$44&\"|\"&$B73,'Data Annex'!$K$1:$K$4997,0),MATCH(P$45,'Data Annex'!$K$1:$AN$1,0)),\"\")","v":9.1494809999999999E-4},{"$f":"IFERROR(INDEX('Data Annex'!$K$1:$AN$4997,MATCH(Q$44&\"|\"&$B73,'Data Annex'!$K$1:$K$4997,0),MATCH(Q$45,'Data Annex'!$K$1:$AN$1,0)),\"\")","v":6.8892418100000005E-2},{"$f":"IFERROR(INDEX('Data Annex'!$K$1:$AN$4997,MATCH(R$44&\"|\"&$B73,'Data Annex'!$K$1:$K$4997,0),MATCH(R$45,'Data Annex'!$K$1:$AN$1,0)),\"\")","v":5.9752313100000003E-2},{"$f":"IFERROR(INDEX('Data Annex'!$K$1:$AN$4997,MATCH(S$44&\"|\"&$B73,'Data Annex'!$K$1:$K$4997,0),MATCH(S$45,'Data Annex'!$K$1:$AN$1,0)),\"\")","v":4.7944450200000002E-2},{"$f":"IFERROR(INDEX('Data Annex'!$K$1:$AN$4997,MATCH(T$44&\"|\"&$B73,'Data Annex'!$K$1:$K$4997,0),MATCH(T$45,'Data Annex'!$K$1:$AN$1,0)),\"\")","v":4.4101966800000003E-2},{"$f":"IFERROR(INDEX('Data Annex'!$K$1:$AN$4997,MATCH(U$44&\"|\"&$B73,'Data Annex'!$K$1:$K$4997,0),MATCH(U$45,'Data Annex'!$K$1:$AN$1,0)),\"\")","v":8.2437750999999997E-3},{"$f":"IFERROR(INDEX('Data Annex'!$K$1:$AN$4997,MATCH(V$44&\"|\"&$B73,'Data Annex'!$K$1:$K$4997,0),MATCH(V$45,'Data Annex'!$K$1:$AN$1,0)),\"\")","v":1.27567811E-2},{"$f":"IFERROR(INDEX('Data Annex'!$K$1:$AN$4997,MATCH(W$44&\"|\"&$B73,'Data Annex'!$K$1:$K$4997,0),MATCH(W$45,'Data Annex'!$K$1:$AN$1,0)),\"\")","v":1.40570395E-2},{"$f":"IFERROR(INDEX('Data Annex'!$K$1:$AN$4997,MATCH(X$44&\"|\"&$B73,'Data Annex'!$K$1:$K$4997,0),MATCH(X$45,'Data Annex'!$K$1:$AN$1,0)),\"\")","v":1.3148348000000001E-2}]
[25,"PL",null,"PL",{"$f":"IFERROR(INDEX('Data Annex'!$K$1:$AN$4997,MATCH(E$44&\"|\"&$B74,'Data Annex'!$K$1:$K$4997,0),MATCH(E$45,'Data Annex'!$K$1:$AN$1,0)),\"\")","v":6.9310502800000007E-2},{"$f":"IFERROR(INDEX('Data Annex'!$K$1:$AN$4997,MATCH(F$44&\"|\"&$B74,'Data Annex'!$K$1:$K$4997,0),MATCH(F$45,'Data Annex'!$K$1:$AN$1,0)),\"\")","v":6.8146437899999995E-2},{"$f":"IFERROR(INDEX('Data Annex'!$K$1:$AN$4997,MATCH(G$44&\"|\"&$B74,'Data Annex'!$K$1:$K$4997,0),MATCH(G$45,'Data Annex'!$K$1:$AN$1,0)),\"\")","v":6.5400511699999997E-2},{"$f":"IFERROR(INDEX('Data Annex'!$K$1:$AN$4997,MATCH(H$44&\"|\"&$B74,'Data Annex'!$K$1:$K$4997,0),MATCH(H$45,'Data Annex'!$K$1:$AN$1,0)),\"\")","v":6.5542173999999995E-2},{"$f":"IFERROR(INDEX('Data Annex'!$K$1:$AN$4997,MATCH(I$44&\"|\"&$B74,'Data Annex'!$K$1:$K$4997,0),MATCH(I$45,'Data Annex'!$K$1:$AN$1,0)),\"\")","v":0.1230164343},{"$f":"IFERROR(INDEX('Data Annex'!$K$1:$AN$4997,MATCH(J$44&\"|\"&$B74,'Data Annex'!$K$1:$K$4997,0),MATCH(J$45,'Data Annex'!$K$1:$AN$1,0)),\"\")","v":8.6923295600000006E-2},{"$f":"IFERROR(INDEX('Data Annex'!$K$1:$AN$4997,MATCH(K$44&\"|\"&$B74,'Data Annex'!$K$1:$K$4997,0),MATCH(K$45,'Data Annex'!$K$1:$AN$1,0)),\"\")","v":8.0073483400000006E-2},{"$f":"IFERROR(INDEX('Data Annex'!$K$1:$AN$4997,MATCH(L$44&\"|\"&$B74,'Data Annex'!$K$1:$K$4997,0),MATCH(L$45,'Data Annex'!$K$1:$AN$1,0)),\"\")","v":7.9463300700000003E-2},{"$f":"IFERROR(INDEX('Data Annex'!$K$1:$AN$4997,MATCH(M$44&\"|\"&$B74,'Data Annex'!$K$1:$K$4997,0),MATCH(M$45,'Data Annex'!$K$1:$AN$1,0)),\"\")","v":1.4219116800000001E-2},{"$f":"IFERROR(INDEX('Data Annex'!$K$1:$AN$4997,MATCH(N$44&\"|\"&$B74,'Data Annex'!$K$1:$K$4997,0),MATCH(N$45,'Data Annex'!$K$1:$AN$1,0)),\"\")","v":1.4216014500000001E-2},{"$f":"IFERROR(INDEX('Data Annex'!$K$1:$AN$4997,MATCH(O$44&\"|\"&$B74,'Data Annex'!$K$1:$K$4997,0),MATCH(O$45,'Data Annex'!$K$1:$AN$1,0)),\"\")","v":1.5813014100000002E-2},{"$f":"IFERROR(INDEX('Data Annex'!$K$1:$AN$4997,MATCH(P$44&\"|\"&$B74,'Data Annex'!$K$1:$K$4997,0),MATCH(P$45,'Data Annex'!$K$1:$AN$1,0)),\"\")","v":1.6302352900000001E-2},{"$f":"IFERROR(INDEX('Data Annex'!$K$1:$AN$4997,MATCH(Q$44&\"|\"&$B74,'Data Annex'!$K$1:$K$4997,0),MATCH(Q$45,'Data Annex'!$K$1:$AN$1,0)),\"\")","v":4.9135666500000001E-2},{"$f":"IFERROR(INDEX('Data Annex'!$K$1:$AN$4997,MATCH(R$44&\"|\"&$B74,'Data Annex'!$K$1:$K$4997,0),MATCH(R$45,'Data Annex'!$K$1:$AN$1,0)),\"\")","v":5.0207511699999999E-2},{"$f":"IFERROR(INDEX('Data Annex'!$K$1:$AN$4997,MATCH(S$44&\"|\"&$B74,'Data Annex'!$K$1:$K$4997,0),MATCH(S$45,'Data Annex'!$K$1:$AN$1,0)),\"\")","v":4.5500130299999997E-2},{"$f":"IFERROR(INDEX('Data Annex'!$K$1:$AN$4997,MATCH(T$44&\"|\"&$B74,'Data Annex'!$K$1:$K$4997,0),MATCH(T$45,'Data Annex'!$K$1:$AN$1,0)),\"\")","v":4.8260514300000001E-2},{"$f":"IFERROR(INDEX('Data Annex'!$K$1:$AN$4997,MATCH(U$44&\"|\"&$B74,'Data Annex'!$K$1:$K$4997,0),MATCH(U$45,'Data Annex'!$K$1:$AN$1,0)),\"\")","v":2.86577477E-2},{"$f":"IFERROR(INDEX('Data Annex'!$K$1:$AN$4997,MATCH(V$44&\"|\"&$B74,'Data Annex'!$K$1:$K$4997,0),MATCH(V$45,'Data Annex'!$K$1:$AN$1,0)),\"\")","v":4.7400573500000001E-2},{"$f":"IFERROR(INDEX('Data Annex'!$K$1:$AN$4997,MATCH(W$44&\"|\"&$B74,'Data Annex'!$K$1:$K$4997,0),MATCH(W$45,'Data Annex'!$K$1:$AN$1,0)),\"\")","v":4.4036440199999999E-2},{"$f":"IFERROR(INDEX('Data Annex'!$K$1:$AN$4997,MATCH(X$44&\"|\"&$B74,'Data Annex'!$K$1:$K$4997,0),MATCH(X$45,'Data Annex'!$K$1:$AN$1,0)),\"\")","v":4.0313971699999999E-2}]
[26,"PT",null,"PT",{"$f":"IFERROR(INDEX('Data Annex'!$K$1:$AN$4997,MATCH(E$44&\"|\"&$B75,'Data Annex'!$K$1:$K$4997,0),MATCH(E$45,'Data Annex'!$K$1:$AN$1,0)),\"\")","v":8.6516858700000004E-2},{"$f":"IFERROR(INDEX('Data Annex'!$K$1:$AN$4997,MATCH(F$44&\"|\"&$B75,'Data Annex'!$K$1:$K$4997,0),MATCH(F$45,'Data Annex'!$K$1:$AN$1,0)),\"\")","v":7.7284599600000004E-2},{"$f":"IFERROR(INDEX('Data Annex'!$K$1:$AN$4997,MATCH(G$44&\"|\"&$B75,'Data Annex'!$K$1:$K$4997,0),MATCH(G$45,'Data Annex'!$K$1:$AN$1,0)),\"\")","v":7.6542389700000005E-2},{"$f":"IFERROR(INDEX('Data Annex'!$K$1:$AN$4997,MATCH(H$44&\"|\"&$B75,'Data Annex'!$K$1:$K$4997,0),MATCH(H$45,'Data Annex'!$K$1:$AN$1,0)),\"\")","v":7.8033558599999997E-2},{"$f":"IFERROR(INDEX('Data Annex'!$K$1:$AN$4997,MATCH(I$44&\"|\"&$B75,'Data Annex'!$K$1:$K$4997,0),MATCH(I$45,'Data Annex'!$K$1:$AN$1,0)),\"\")","v":5.6041065600000002E-2},{"$f":"IFERROR(INDEX('Data Annex'!$K$1:$AN$4997,MATCH(J$44&\"|\"&$B75,'Data Annex'!$K$1:$K$4997,0),MATCH(J$45,'Data Annex'!$K$1:$AN$1,0)),\"\")","v":5.4880292099999999E-2},{"$f":"IFERROR(INDEX('Data Annex'!$K$1:$AN$4997,MATCH(K$44&\"|\"&$B75,'Data Annex'!$K$1:$K$4997,0),MATCH(K$45,'Data Annex'!$K$1:$AN$1,0)),\"\")","v":5.3962338800000002E-2},{"$f":"IFERROR(INDEX('Data Annex'!$K$1:$AN$4997,MATCH(L$44&\"|\"&$B75,'Data Annex'!$K$1:$K$4997,0),MATCH(L$45,'Data Annex'!$K$1:$AN$1,0)),\"\")","v":5.51145013E-2},{"$f":"IFERROR(INDEX('Data Annex'!$K$1:$AN$4997,MATCH(M$44&\"|\"&$B75,'Data Annex'!$K$1:$K$4997,0),MATCH(M$45,'Data Annex'!$K$1:$AN$1,0)),\"\")","v":1.23822477E-2},{"$f":"IFERROR(INDEX('Data Annex'!$K$1:$AN$4997,MATCH(N$44&\"|\"&$B75,'Data Annex'!$K$1:$K$4997,0),MATCH(N$45,'Data Annex'!$K$1:$AN$1,0)),\"\")","v":8.1182532999999994E-3},{"$f":"IFERROR(INDEX('Data Annex'!$K$1:$AN$4997,MATCH(O$44&\"|\"&$B75,'Data Annex'!$K$1:$K$4997,0),MATCH(O$45,'Data Annex'!$K$1:$AN$1,0)),\"\")","v":4.2570072000000002E-3},{"$f":"IFERROR(INDEX('Data Annex'!$K$1:$AN$4997,MATCH(P$44&\"|\"&$B75,'Data Annex'!$K$1:$K$4997,0),MATCH(P$45,'Data Annex'!$K$1:$AN$1,0)),\"\")","v":1.6587366999999999E-2},{"$f":"IFERROR(INDEX('Data Annex'!$K$1:$AN$4997,MATCH(Q$44&\"|\"&$B75,'Data Annex'!$K$1:$K$4997,0),MATCH(Q$45,'Data Annex'!$K$1:$AN$1,0)),\"\")","v":5.0697518499999997E-2},{"$f":"IFERROR(INDEX('Data Annex'!$K$1:$AN$4997,MATCH(R$44&\"|\"&$B75,'Data Annex'!$K$1:$K$4997,0),MATCH(R$45,'Data Annex'!$K$1:$AN$1,0)),\"\")","v":6.70457161E-2},{"$f":"IFERROR(INDEX('Data Annex'!$K$1:$AN$4997,MATCH(S$44&\"|\"&$B75,'Data Annex'!$K$1:$K$4997,0),MATCH(S$45,'Data Annex'!$K$1:$AN$1,0)),\"\")","v":7.3074311200000006E-2},{"$f":"IFERROR(INDEX('Data Annex'!$K$1:$AN$4997,MATCH(T$44&\"|\"&$B75,'Data Annex'!$K$1:$K$4997,0),MATCH(T$45,'Data Annex'!$K$1:$AN$1,0)),\"\")","v":7.1373623499999997E-2},{"$f":"IFERROR(INDEX('Data Annex'!$K$1:$AN$4997,MATCH(U$44&\"|\"&$B75,'Data Annex'!$K$1:$K$4997,0),MATCH(U$45,'Data Annex'!$K$1:$AN$1,0)),\"\")","v":2.6937353599999998E-2},{"$f":"IFERROR(INDEX('Data Annex'!$K$1:$AN$4997,MATCH(V$44&\"|\"&$B75,'Data Annex'!$K$1:$K$4997,0),MATCH(V$45,'Data Annex'!$K$1:$AN$1,0)),\"\")","v":2.9587421700000002E-2},{"$f":"IFERROR(INDEX('Data Annex'!$K$1:$AN$4997,MATCH(W$44&\"|\"&$B75,'Data Annex'!$K$1:$K$4997,0),MATCH(W$45,'Data Annex'!$K$1:$AN$1,0)),\"\")","v":2.7094935800000001E-2},{"$f":"IFERROR(INDEX('Data Annex'!$K$1:$AN$4997,MATCH(X$44&\"|\"&$B75,'Data Annex'!$K$1:$K$4997,0),MATCH(X$45,'Data Annex'!$K$1:$AN$1,0)),\"\")","v":2.8653813100000002E-2}]
[27,"RO",null,"RO",{"$f":"IFERROR(INDEX('Data Annex'!$K$1:$AN$4997,MATCH(E$44&\"|\"&$B76,'Data Annex'!$K$1:$K$4997,0),MATCH(E$45,'Data Annex'!$K$1:$AN$1,0)),\"\")","v":0.1104771224},{"$f":"IFERROR(INDEX('Data Annex'!$K$1:$AN$4997,MATCH(F$44&\"|\"&$B76,'Data Annex'!$K$1:$K$4997,0),MATCH(F$45,'Data Annex'!$K$1:$AN$1,0)),\"\")","v":0.1056827269},{"$f":"IFERROR(INDEX('Data Annex'!$K$1:$AN$4997,MATCH(G$44&\"|\"&$B76,'Data Annex'!$K$1:$K$4997,0),MATCH(G$45,'Data Annex'!$K$1:$AN$1,0)),\"\")","v":9.9801452600000007E-2},{"$f":"IFERROR(INDEX('Data Annex'!$K$1:$AN$4997,MATCH(H$44&\"|\"&$B76,'Data Annex'!$K$1:$K$4997,0),MATCH(H$45,'Data Annex'!$K$1:$AN$1,0)),\"\")","v":9.7010021799999999E-2},{"$f":"IFERROR(INDEX('Data Annex'!$K$1:$AN$4997,MATCH(I$44&\"|\"&$B76,'Data Annex'!$K$1:$K$4997,0),MATCH(I$45,'Data Annex'!$K$1:$AN$1,0)),\"\")","v":0.11169899329999999},{"$f":"IFERROR(INDEX('Data Annex'!$K$1:$AN$4997,MATCH(J$44&\"|\"&$B76,'Data Annex'!$K$1:$K$4997,0),MATCH(J$45,'Data Annex'!$K$1:$AN$1,0)),\"\")","v":8.8643010999999994E-2},{"$f":"IFERROR(INDEX('Data Annex'!$K$1:$AN$4997,MATCH(K$44&\"|\"&$B76,'Data Annex'!$K$1:$K$4997,0),MATCH(K$45,'Data Annex'!$K$1:$AN$1,0)),\"\")","v":8.8510303799999995E-2},{"$f":"IFERROR(INDEX('Data Annex'!$K$1:$AN$4997,MATCH(L$44&\"|\"&$B76,'Data Annex'!$K$1:$K$4997,0),MATCH(L$45,'Data Annex'!$K$1:$AN$1,0)),\"\")","v":9.0591687599999998E-2},{"$f":"IFERROR(INDEX('Data Annex'!$K$1:$AN$4997,MATCH(M$44&\"|\"&$B76,'Data Annex'!$K$1:$K$4997,0),MATCH(M$45,'Data Annex'!$K$1:$AN$1,0)),\"\")","v":8.6848437999999997E-3},{"$f":"IFERROR(INDEX('Data Annex'!$K$1:$AN$4997,MATCH(N$44&\"|\"&$B76,'Data Annex'!$K$1:$K$4997,0),MATCH(N$45,'Data Annex'!$K$1:$AN$1,0)),\"\")","v":-4.7154759999999997E-3},{"$f":"IFERROR(INDEX('Data Annex'!$K$1:$AN$4997,MATCH(O$44&\"|\"&$B76,'Data Annex'!$K$1:$K$4997,0),MATCH(O$45,'Data Annex'!$K$1:$AN$1,0)),\"\")","v":-3.10342E-3},{"$f":"IFERROR(INDEX('Data Annex'!$K$1:$AN$4997,MATCH(P$44&\"|\"&$B76,'Data Annex'!$K$1:$K$4997,0),MATCH(P$45,'Data Annex'!$K$1:$AN$1,0)),\"\")","v":5.3946521999999998E-3},{"$f":"IFERROR(INDEX('Data Annex'!$K$1:$AN$4997,MATCH(Q$44&\"|\"&$B76,'Data Annex'!$K$1:$K$4997,0),MATCH(Q$45,'Data Annex'!$K$1:$AN$1,0)),\"\")","v":-2.3672893E-2},{"$f":"IFERROR(INDEX('Data Annex'!$K$1:$AN$4997,MATCH(R$44&\"|\"&$B76,'Data Annex'!$K$1:$K$4997,0),MATCH(R$45,'Data Annex'!$K$1:$AN$1,0)),\"\")","v":5.3519318199999999E-2},{"$f":"IFERROR(INDEX('Data Annex'!$K$1:$AN$4997,MATCH(S$44&\"|\"&$B76,'Data Annex'!$K$1:$K$4997,0),MATCH(S$45,'Data Annex'!$K$1:$AN$1,0)),\"\")","v":5.36017986E-2},{"$f":"IFERROR(INDEX('Data Annex'!$K$1:$AN$4997,MATCH(T$44&\"|\"&$B76,'Data Annex'!$K$1:$K$4997,0),MATCH(T$45,'Data Annex'!$K$1:$AN$1,0)),\"\")","v":5.8994949499999998E-2},{"$f":"IFERROR(INDEX('Data Annex'!$K$1:$AN$4997,MATCH(U$44&\"|\"&$B76,'Data Annex'!$K$1:$K$4997,0),MATCH(U$45,'Data Annex'!$K$1:$AN$1,0)),\"\")","v":3.7541131300000002E-2},{"$f":"IFERROR(INDEX('Data Annex'!$K$1:$AN$4997,MATCH(V$44&\"|\"&$B76,'Data Annex'!$K$1:$K$4997,0),MATCH(V$45,'Data Annex'!$K$1:$AN$1,0)),\"\")","v":4.0384866700000001E-2},{"$f":"IFERROR(INDEX('Data Annex'!$K$1:$AN$4997,MATCH(W$44&\"|\"&$B76,'Data Annex'!$K$1:$K$4997,0),MATCH(W$45,'Data Annex'!$K$1:$AN$1,0)),\"\")","v":3.4292329000000003E-2},{"$f":"IFERROR(INDEX('Data Annex'!$K$1:$AN$4997,MATCH(X$44&\"|\"&$B76,'Data Annex'!$K$1:$K$4997,0),MATCH(X$45,'Data Annex'!$K$1:$AN$1,0)),\"\")","v":3.5486176899999999E-2}]
[28,"SE",null,"SE",{"$f":"IFERROR(INDEX('Data Annex'!$K$1:$AN$4997,MATCH(E$44&\"|\"&$B77,'Data Annex'!$K$1:$K$4997,0),MATCH(E$45,'Data Annex'!$K$1:$AN$1,0)),\"\")","v":7.7926228599999994E-2},{"$f":"IFERROR(INDEX('Data Annex'!$K$1:$AN$4997,MATCH(F$44&\"|\"&$B77,'Data Annex'!$K$1:$K$4997,0),MATCH(F$45,'Data Annex'!$K$1:$AN$1,0)),\"\")","v":8.0098203300000004E-2},{"$f":"IFERROR(INDEX('Data Annex'!$K$1:$AN$4997,MATCH(G$44&\"|\"&$B77,'Data Annex'!$K$1:$K$4997,0),MATCH(G$45,'Data Annex'!$K$1:$AN$1,0)),\"\")","v":8.1571736199999995E-2},{"$f":"IFERROR(INDEX('Data Annex'!$K$1:$AN$4997,MATCH(H$44&\"|\"&$B77,'Data Annex'!$K$1:$K$4997,0),MATCH(H$45,'Data Annex'!$K$1:$AN$1,0)),\"\")","v":8.2689207200000003E-2},{"$f":"IFERROR(INDEX('Data Annex'!$K$1:$AN$4997,MATCH(I$44&\"|\"&$B77,'Data Annex'!$K$1:$K$4997,0),MATCH(I$45,'Data Annex'!$K$1:$AN$1,0)),\"\")","v":5.4510074800000002E-2},{"$f":"IFERROR(INDEX('Data Annex'!$K$1:$AN$4997,MATCH(J$44&\"|\"&$B77,'Data Annex'!$K$1:$K$4997,0),MATCH(J$45,'Data Annex'!$K$1:$AN$1,0)),\"\")","v":5.7498061500000003E-2},{"$f":"IFERROR(INDEX('Data Annex'!$K$1:$AN$4997,MATCH(K$44&\"|\"&$B77,'Data Annex'!$K$1:$K$4997,0),MATCH(K$45,'Data Annex'!$K$1:$AN$1,0)),\"\")","v":5.36944725E-2},{"$f":"IFERROR(INDEX('Data Annex'!$K$1:$AN$4997,MATCH(L$44&\"|\"&$B77,'Data Annex'!$K$1:$K$4997,0),MATCH(L$45,'Data Annex'!$K$1:$AN$1,0)),\"\")","v":5.4315216100000001E-2},{"$f":"IFERROR(INDEX('Data Annex'!$K$1:$AN$4997,MATCH(M$44&\"|\"&$B77,'Data Annex'!$K$1:$K$4997,0),MATCH(M$45,'Data Annex'!$K$1:$AN$1,0)),\"\")","v":3.9938559999999996E-3},{"$f":"IFERROR(INDEX('Data Annex'!$K$1:$AN$4997,MATCH(N$44&\"|\"&$B77,'Data Annex'!$K$1:$K$4997,0),MATCH(N$45,'Data Annex'!$K$1:$AN$1,0)),\"\")","v":5.2109228E-3},{"$f":"IFERROR(INDEX('Data Annex'!$K$1:$AN$4997,MATCH(O$44&\"|\"&$B77,'Data Annex'!$K$1:$K$4997,0),MATCH(O$45,'Data Annex'!$K$1:$AN$1,0)),\"\")","v":4.8535313999999996E-3},{"$f":"IFERROR(INDEX('Data Annex'!$K$1:$AN$4997,MATCH(P$44&\"|\"&$B77,'Data Annex'!$K$1:$K$4997,0),MATCH(P$45,'Data Annex'!$K$1:$AN$1,0)),\"\")","v":3.4177688000000001E-3},{"$f":"IFERROR(INDEX('Data Annex'!$K$1:$AN$4997,MATCH(Q$44&\"|\"&$B77,'Data Annex'!$K$1:$K$4997,0),MATCH(Q$45,'Data Annex'!$K$1:$AN$1,0)),\"\")","v":2.9880274599999999E-2},{"$f":"IFERROR(INDEX('Data Annex'!$K$1:$AN$4997,MATCH(R$44&\"|\"&$B77,'Data Annex'!$K$1:$K$4997,0),MATCH(R$45,'Data Annex'!$K$1:$AN$1,0)),\"\")","v":2.94666858E-2},{"$f":"IFERROR(INDEX('Data Annex'!$K$1:$AN$4997,MATCH(S$44&\"|\"&$B77,'Data Annex'!$K$1:$K$4997,0),MATCH(S$45,'Data Annex'!$K$1:$AN$1,0)),\"\")","v":2.38701482E-2},{"$f":"IFERROR(INDEX('Data Annex'!$K$1:$AN$4997,MATCH(T$44&\"|\"&$B77,'Data Annex'!$K$1:$K$4997,0),MATCH(T$45,'Data Annex'!$K$1:$AN$1,0)),\"\")","v":2.18914118E-2},{"$f":"IFERROR(INDEX('Data Annex'!$K$1:$AN$4997,MATCH(U$44&\"|\"&$B77,'Data Annex'!$K$1:$K$4997,0),MATCH(U$45,'Data Annex'!$K$1:$AN$1,0)),\"\")","v":1.7751379899999999E-2},{"$f":"IFERROR(INDEX('Data Annex'!$K$1:$AN$4997,MATCH(V$44&\"|\"&$B77,'Data Annex'!$K$1:$K$4997,0),MATCH(V$45,'Data Annex'!$K$1:$AN$1,0)),\"\")","v":2.9542878200000001E-2},{"$f":"IFERROR(INDEX('Data Annex'!$K$1:$AN$4997,MATCH(W$44&\"|\"&$B77,'Data Annex'!$K$1:$K$4997,0),MATCH(W$45,'Data Annex'!$K$1:$AN$1,0)),\"\")","v":2.84130467E-2},{"$f":"IFERROR(INDEX('Data Annex'!$K$1:$AN$4997,MATCH(X$44&\"|\"&$B77,'Data Annex'!$K$1:$K$4997,0),MATCH(X$45,'Data Annex'!$K$1:$AN$1,0)),\"\")","v":2.7436911599999999E-2}]
[29,"SI",null,"SI",{"$f":"IFERROR(INDEX('Data Annex'!$K$1:$AN$4997,MATCH(E$44&\"|\"&$B78,'Data Annex'!$K$1:$K$4997,0),MATCH(E$45,'Data Annex'!$K$1:$AN$1,0)),\"\")","v":9.9203596199999994E-2},{"$f":"IFERROR(INDEX('Data Annex'!$K$1:$AN$4997,MATCH(F$44&\"|\"&$B78,'Data Annex'!$K$1:$K$4997,0),MATCH(F$45,'Data Annex'!$K$1:$AN$1,0)),\"\")","v":9.5793980500000001E-2},{"$f":"IFERROR(INDEX('Data Annex'!$K$1:$AN$4997,MATCH(G$44&\"|\"&$B78,'Data Annex'!$K$1:$K$4997,0),MATCH(G$45,'Data Annex'!$K$1:$AN$1,0)),\"\")","v":9.5872824300000006E-2},{"$f":"IFERROR(INDEX('Data Annex'!$K$1:$AN$4997,MATCH(H$44&\"|\"&$B78,'Data Annex'!$K$1:$K$4997,0),MATCH(H$45,'Data Annex'!$K$1:$AN$1,0)),\"\")","v":9.1989870400000007E-2},{"$f":"IFERROR(INDEX('Data Annex'!$K$1:$AN$4997,MATCH(I$44&\"|\"&$B78,'Data Annex'!$K$1:$K$4997,0),MATCH(I$45,'Data Annex'!$K$1:$AN$1,0)),\"\")","v":7.8033680699999997E-2},{"$f":"IFERROR(INDEX('Data Annex'!$K$1:$AN$4997,MATCH(J$44&\"|\"&$B78,'Data Annex'!$K$1:$K$4997,0),MATCH(J$45,'Data Annex'!$K$1:$AN$1,0)),\"\")","v":7.5853743900000006E-2},{"$f":"IFERROR(INDEX('Data Annex'!$K$1:$AN$4997,MATCH(K$44&\"|\"&$B78,'Data Annex'!$K$1:$K$4997,0),MATCH(K$45,'Data Annex'!$K$1:$AN$1,0)),\"\")","v":7.6280119100000002E-2},{"$f":"IFERROR(INDEX('Data Annex'!$K$1:$AN$4997,MATCH(L$44&\"|\"&$B78,'Data Annex'!$K$1:$K$4997,0),MATCH(L$45,'Data Annex'!$K$1:$AN$1,0)),\"\")","v":7.5234767100000002E-2},{"$f":"IFERROR(INDEX('Data Annex'!$K$1:$AN$4997,MATCH(M$44&\"|\"&$B78,'Data Annex'!$K$1:$K$4997,0),MATCH(M$45,'Data Annex'!$K$1:$AN$1,0)),\"\")","v":-2.9261170000000002E-3},{"$f":"IFERROR(INDEX('Data Annex'!$K$1:$AN$4997,MATCH(N$44&\"|\"&$B78,'Data Annex'!$K$1:$K$4997,0),MATCH(N$45,'Data Annex'!$K$1:$AN$1,0)),\"\")","v":4.3036228000000003E-3},{"$f":"IFERROR(INDEX('Data Annex'!$K$1:$AN$4997,MATCH(O$44&\"|\"&$B78,'Data Annex'!$K$1:$K$4997,0),MATCH(O$45,'Data Annex'!$K$1:$AN$1,0)),\"\")","v":3.3957582000000001E-3},{"$f":"IFERROR(INDEX('Data Annex'!$K$1:$AN$4997,MATCH(P$44&\"|\"&$B78,'Data Annex'!$K$1:$K$4997,0),MATCH(P$45,'Data Annex'!$K$1:$AN$1,0)),\"\")","v":4.6558090000000003E-3},{"$f":"IFERROR(INDEX('Data Annex'!$K$1:$AN$4997,MATCH(Q$44&\"|\"&$B78,'Data Annex'!$K$1:$K$4997,0),MATCH(Q$45,'Data Annex'!$K$1:$AN$1,0)),\"\")","v":5.1219522699999999E-2},{"$f":"IFERROR(INDEX('Data Annex'!$K$1:$AN$4997,MATCH(R$44&\"|\"&$B78,'Data Annex'!$K$1:$K$4997,0),MATCH(R$45,'Data Annex'!$K$1:$AN$1,0)),\"\")","v":4.6530868000000003E-2},{"$f":"IFERROR(INDEX('Data Annex'!$K$1:$AN$4997,MATCH(S$44&\"|\"&$B78,'Data Annex'!$K$1:$K$4997,0),MATCH(S$45,'Data Annex'!$K$1:$AN$1,0)),\"\")","v":3.6976791299999999E-2},{"$f":"IFERROR(INDEX('Data Annex'!$K$1:$AN$4997,MATCH(T$44&\"|\"&$B78,'Data Annex'!$K$1:$K$4997,0),MATCH(T$45,'Data Annex'!$K$1:$AN$1,0)),\"\")","v":3.6434365099999998E-2},{"$f":"IFERROR(INDEX('Data Annex'!$K$1:$AN$4997,MATCH(U$44&\"|\"&$B78,'Data Annex'!$K$1:$K$4997,0),MATCH(U$45,'Data Annex'!$K$1:$AN$1,0)),\"\")","v":-0.27186215800000002},{"$f":"IFERROR(INDEX('Data Annex'!$K$1:$AN$4997,MATCH(V$44&\"|\"&$B78,'Data Annex'!$K$1:$K$4997,0),MATCH(V$45,'Data Annex'!$K$1:$AN$1,0)),\"\")","v":-0.14205321800000001},{"$f":"IFERROR(INDEX('Data Annex'!$K$1:$AN$4997,MATCH(W$44&\"|\"&$B78,'Data Annex'!$K$1:$K$4997,0),MATCH(W$45,'Data Annex'!$K$1:$AN$1,0)),\"\")","v":-8.5958274000000001E-2},{"$f":"IFERROR(INDEX('Data Annex'!$K$1:$AN$4997,MATCH(X$44&\"|\"&$B78,'Data Annex'!$K$1:$K$4997,0),MATCH(X$45,'Data Annex'!$K$1:$AN$1,0)),\"\")","v":-9.7995410000000005E-2}]
[30,"SK",null,"SK",{"$f":"IFERROR(INDEX('Data Annex'!$K$1:$AN$4997,MATCH(E$44&\"|\"&$B79,'Data Annex'!$K$1:$K$4997,0),MATCH(E$45,'Data Annex'!$K$1:$AN$1,0)),\"\")","v":8.9188784199999996E-2},{"$f":"IFERROR(INDEX('Data Annex'!$K$1:$AN$4997,MATCH(F$44&\"|\"&$B79,'Data Annex'!$K$1:$K$4997,0),MATCH(F$45,'Data Annex'!$K$1:$AN$1,0)),\"\")","v":8.9263116700000006E-2},{"$f":"IFERROR(INDEX('Data Annex'!$K$1:$AN$4997,MATCH(G$44&\"|\"&$B79,'Data Annex'!$K$1:$K$4997,0),MATCH(G$45,'Data Annex'!$K$1:$AN$1,0)),\"\")","v":8.9802789100000002E-2},{"$f":"IFERROR(INDEX('Data Annex'!$K$1:$AN$4997,MATCH(H$44&\"|\"&$B79,'Data Annex'!$K$1:$K$4997,0),MATCH(H$45,'Data Annex'!$K$1:$AN$1,0)),\"\")","v":8.9954423199999994E-2},{"$f":"IFERROR(INDEX('Data Annex'!$K$1:$AN$4997,MATCH(I$44&\"|\"&$B79,'Data Annex'!$K$1:$K$4997,0),MATCH(I$45,'Data Annex'!$K$1:$AN$1,0)),\"\")","v":8.0332599399999996E-2},{"$f":"IFERROR(INDEX('Data Annex'!$K$1:$AN$4997,MATCH(J$44&\"|\"&$B79,'Data Annex'!$K$1:$K$4997,0),MATCH(J$45,'Data Annex'!$K$1:$AN$1,0)),\"\")","v":0.1124916352},{"$f":"IFERROR(INDEX('Data Annex'!$K$1:$AN$4997,MATCH(K$44&\"|\"&$B79,'Data Annex'!$K$1:$K$4997,0),MATCH(K$45,'Data Annex'!$K$1:$AN$1,0)),\"\")","v":9.6701308700000002E-2},{"$f":"IFERROR(INDEX('Data Annex'!$K$1:$AN$4997,MATCH(L$44&\"|\"&$B79,'Data Annex'!$K$1:$K$4997,0),MATCH(L$45,'Data Annex'!$K$1:$AN$1,0)),\"\")","v":9.0170554099999994E-2},{"$f":"IFERROR(INDEX('Data Annex'!$K$1:$AN$4997,MATCH(M$44&\"|\"&$B79,'Data Annex'!$K$1:$K$4997,0),MATCH(M$45,'Data Annex'!$K$1:$AN$1,0)),\"\")","v":-1.3166841E-2},{"$f":"IFERROR(INDEX('Data Annex'!$K$1:$AN$4997,MATCH(N$44&\"|\"&$B79,'Data Annex'!$K$1:$K$4997,0),MATCH(N$45,'Data Annex'!$K$1:$AN$1,0)),\"\")","v":-4.4003000000000002E-3},{"$f":"IFERROR(INDEX('Data Annex'!$K$1:$AN$4997,MATCH(O$44&\"|\"&$B79,'Data Annex'!$K$1:$K$4997,0),MATCH(O$45,'Data Annex'!$K$1:$AN$1,0)),\"\")","v":-1.3944070000000001E-3},{"$f":"IFERROR(INDEX('Data Annex'!$K$1:$AN$4997,MATCH(P$44&\"|\"&$B79,'Data Annex'!$K$1:$K$4997,0),MATCH(P$45,'Data Annex'!$K$1:$AN$1,0)),\"\")","v":-3.9255999999999998E-5},{"$f":"IFERROR(INDEX('Data Annex'!$K$1:$AN$4997,MATCH(Q$44&\"|\"&$B79,'Data Annex'!$K$1:$K$4997,0),MATCH(Q$45,'Data Annex'!$K$1:$AN$1,0)),\"\")","v":3.8794035300000002E-2},{"$f":"IFERROR(INDEX('Data Annex'!$K$1:$AN$4997,MATCH(R$44&\"|\"&$B79,'Data Annex'!$K$1:$K$4997,0),MATCH(R$45,'Data Annex'!$K$1:$AN$1,0)),\"\")","v":6.1249610400000001E-2},{"$f":"IFERROR(INDEX('Data Annex'!$K$1:$AN$4997,MATCH(S$44&\"|\"&$B79,'Data Annex'!$K$1:$K$4997,0),MATCH(S$45,'Data Annex'!$K$1:$AN$1,0)),\"\")","v":5.25447255E-2},{"$f":"IFERROR(INDEX('Data Annex'!$K$1:$AN$4997,MATCH(T$44&\"|\"&$B79,'Data Annex'!$K$1:$K$4997,0),MATCH(T$45,'Data Annex'!$K$1:$AN$1,0)),\"\")","v":4.7759409799999999E-2},{"$f":"IFERROR(INDEX('Data Annex'!$K$1:$AN$4997,MATCH(U$44&\"|\"&$B79,'Data Annex'!$K$1:$K$4997,0),MATCH(U$45,'Data Annex'!$K$1:$AN$1,0)),\"\")","v":1.2818953900000001E-2},{"$f":"IFERROR(INDEX('Data Annex'!$K$1:$AN$4997,MATCH(V$44&\"|\"&$B79,'Data Annex'!$K$1:$K$4997,0),MATCH(V$45,'Data Annex'!$K$1:$AN$1,0)),\"\")","v":1.89014536E-2},{"$f":"IFERROR(INDEX('Data Annex'!$K$1:$AN$4997,MATCH(W$44&\"|\"&$B79,'Data Annex'!$K$1:$K$4997,0),MATCH(W$45,'Data Annex'!$K$1:$AN$1,0)),\"\")","v":2.1352155500000001E-2},{"$f":"IFERROR(INDEX('Data Annex'!$K$1:$AN$4997,MATCH(X$44&\"|\"&$B79,'Data Annex'!$K$1:$K$4997,0),MATCH(X$45,'Data Annex'!$K$1:$AN$1,0)),\"\")","v":2.7763993599999998E-2}]
[99,"EU",null,"EU/EEA",{"$f":"IFERROR(INDEX('Data Annex'!$K$1:$AN$4997,MATCH(E$44&\"|\"&$B80,'Data Annex'!$K$1:$K$4997,0),MATCH(E$45,'Data Annex'!$K$1:$AN$1,0)),\"\")","v":0.1056518165},{"$f":"IFERROR(INDEX('Data Annex'!$K$1:$AN$4997,MATCH(F$44&\"|\"&$B80,'Data Annex'!$K$1:$K$4997,0),MATCH(F$45,'Data Annex'!$K$1:$AN$1,0)),\"\")","v":0.1030060153},{"$f":"IFERROR(INDEX('Data Annex'!$K$1:$AN$4997,MATCH(G$44&\"|\"&$B80,'Data Annex'!$K$1:$K$4997,0),MATCH(G$45,'Data Annex'!$K$1:$AN$1,0)),\"\")","v":0.10141863299999999},{"$f":"IFERROR(INDEX('Data Annex'!$K$1:$AN$4997,MATCH(H$44&\"|\"&$B80,'Data Annex'!$K$1:$K$4997,0),MATCH(H$45,'Data Annex'!$K$1:$AN$1,0)),\"\")","v":0.1028861579},{"$f":"IFERROR(INDEX('Data Annex'!$K$1:$AN$4997,MATCH(I$44&\"|\"&$B80,'Data Annex'!$K$1:$K$4997,0),MATCH(I$45,'Data Annex'!$K$1:$AN$1,0)),\"\")","v":0.10093525439999999},{"$f":"IFERROR(INDEX('Data Annex'!$K$1:$AN$4997,MATCH(J$44&\"|\"&$B80,'Data Annex'!$K$1:$K$4997,0),MATCH(J$45,'Data Annex'!$K$1:$AN$1,0)),\"\")","v":8.2741435099999996E-2},{"$f":"IFERROR(INDEX('Data Annex'!$K$1:$AN$4997,MATCH(K$44&\"|\"&$B80,'Data Annex'!$K$1:$K$4997,0),MATCH(K$45,'Data Annex'!$K$1:$AN$1,0)),\"\")","v":8.0232650799999999E-2},{"$f":"IFERROR(INDEX('Data Annex'!$K$1:$AN$4997,MATCH(L$44&\"|\"&$B80,'Data Annex'!$K$1:$K$4997,0),MATCH(L$45,'Data Annex'!$K$1:$AN$1,0)),\"\")","v":8.0661363700000002E-2},{"$f":"IFERROR(INDEX('Data Annex'!$K$1:$AN$4997,MATCH(M$44&\"|\"&$B80,'Data Annex'!$K$1:$K$4997,0),MATCH(M$45,'Data Annex'!$K$1:$AN$1,0)),\"\")","v":6.1322612E-3},{"$f":"IFERROR(INDEX('Data Annex'!$K$1:$AN$4997,MATCH(N$44&\"|\"&$B80,'Data Annex'!$K$1:$K$4997,0),MATCH(N$45,'Data Annex'!$K$1:$AN$1,0)),\"\")","v":5.5936995999999999E-3},{"$f":"IFERROR(INDEX('Data Annex'!$K$1:$AN$4997,MATCH(O$44&\"|\"&$B80,'Data Annex'!$K$1:$K$4997,0),MATCH(O$45,'Data Annex'!$K$1:$AN$1,0)),\"\")","v":5.9644145000000001E-3},{"$f":"IFERROR(INDEX('Data Annex'!$K$1:$AN$4997,MATCH(P$44&\"|\"&$B80,'Data Annex'!$K$1:$K$4997,0),MATCH(P$45,'Data Annex'!$K$1:$AN$1,0)),\"\")","v":8.2591281000000006E-3},{"$f":"IFERROR(INDEX('Data Annex'!$K$1:$AN$4997,MATCH(Q$44&\"|\"&$B80,'Data Annex'!$K$1:$K$4997,0),MATCH(Q$45,'Data Annex'!$K$1:$AN$1,0)),\"\")","v":5.6627505299999999E-2},{"$f":"IFERROR(INDEX('Data Annex'!$K$1:$AN$4997,MATCH(R$44&\"|\"&$B80,'Data Annex'!$K$1:$K$4997,0),MATCH(R$45,'Data Annex'!$K$1:$AN$1,0)),\"\")","v":6.6460383600000006E-2},{"$f":"IFERROR(INDEX('Data Annex'!$K$1:$AN$4997,MATCH(S$44&\"|\"&$B80,'Data Annex'!$K$1:$K$4997,0),MATCH(S$45,'Data Annex'!$K$1:$AN$1,0)),\"\")","v":5.6021914300000003E-2},{"$f":"IFERROR(INDEX('Data Annex'!$K$1:$AN$4997,MATCH(T$44&\"|\"&$B80,'Data Annex'!$K$1:$K$4997,0),MATCH(T$45,'Data Annex'!$K$1:$AN$1,0)),\"\")","v":5.5103597999999997E-2},{"$f":"IFERROR(INDEX('Data Annex'!$K$1:$AN$4997,MATCH(U$44&\"|\"&$B80,'Data Annex'!$K$1:$K$4997,0),MATCH(U$45,'Data Annex'!$K$1:$AN$1,0)),\"\")","v":5.7929059E-3},{"$f":"IFERROR(INDEX('Data Annex'!$K$1:$AN$4997,MATCH(V$44&\"|\"&$B80,'Data Annex'!$K$1:$K$4997,0),MATCH(V$45,'Data Annex'!$K$1:$AN$1,0)),\"\")","v":3.3764175899999999E-2},{"$f":"IFERROR(INDEX('Data Annex'!$K$1:$AN$4997,MATCH(W$44&\"|\"&$B80,'Data Annex'!$K$1:$K$4997,0),MATCH(W$45,'Data Annex'!$K$1:$AN$1,0)),\"\")","v":2.6828342799999998E-2},{"$f":"IFERROR(INDEX('Data Annex'!$K$1:$AN$4997,MATCH(X$44&\"|\"&$B80,'Data Annex'!$K$1:$K$4997,0),MATCH(X$45,'Data Annex'!$K$1:$AN$1,0)),\"\")","v":2.8540397799999999E-2}]
[12,"GB",null,"GB",{"$f":"IFERROR(INDEX('Data Annex'!$K$1:$AN$4997,MATCH(E$44&\"|\"&$B81,'Data Annex'!$K$1:$K$4997,0),MATCH(E$45,'Data Annex'!$K$1:$AN$1,0)),\"\")","v":9.5424015599999995E-2},{"$f":"IFERROR(INDEX('Data Annex'!$K$1:$AN$4997,MATCH(F$44&\"|\"&$B81,'Data Annex'!$K$1:$K$4997,0),MATCH(F$45,'Data Annex'!$K$1:$AN$1,0)),\"\")","v":9.6076766199999997E-2},{"$f":"IFERROR(INDEX('Data Annex'!$K$1:$AN$4997,MATCH(G$44&\"|\"&$B81,'Data Annex'!$K$1:$K$4997,0),MATCH(G$45,'Data Annex'!$K$1:$AN$1,0)),\"\")","v":9.5303996099999996E-2},{"$f":"IFERROR(INDEX('Data Annex'!$K$1:$AN$4997,MATCH(H$44&\"|\"&$B81,'Data Annex'!$K$1:$K$4997,0),MATCH(H$45,'Data Annex'!$K$1:$AN$1,0)),\"\")","v":9.4646210999999994E-2},{"$f":"IFERROR(INDEX('Data Annex'!$K$1:$AN$4997,MATCH(I$44&\"|\"&$B81,'Data Annex'!$K$1:$K$4997,0),MATCH(I$45,'Data Annex'!$K$1:$AN$1,0)),\"\")","v":7.7949366199999995E-2},{"$f":"IFERROR(INDEX('Data Annex'!$K$1:$AN$4997,MATCH(J$44&\"|\"&$B81,'Data Annex'!$K$1:$K$4997,0),MATCH(J$45,'Data Annex'!$K$1:$AN$1,0)),\"\")","v":7.5846779200000006E-2},{"$f":"IFERROR(INDEX('Data Annex'!$K$1:$AN$4997,MATCH(K$44&\"|\"&$B81,'Data Annex'!$K$1:$K$4997,0),MATCH(K$45,'Data Annex'!$K$1:$AN$1,0)),\"\")","v":7.4275696399999994E-2},{"$f":"IFERROR(INDEX('Data Annex'!$K$1:$AN$4997,MATCH(L$44&\"|\"&$B81,'Data Annex'!$K$1:$K$4997,0),MATCH(L$45,'Data Annex'!$K$1:$AN$1,0)),\"\")","v":7.90719483E-2},{"$f":"IFERROR(INDEX('Data Annex'!$K$1:$AN$4997,MATCH(M$44&\"|\"&$B81,'Data Annex'!$K$1:$K$4997,0),MATCH(M$45,'Data Annex'!$K$1:$AN$1,0)),\"\")","v":5.5681649999999999E-3},{"$f":"IFERROR(INDEX('Data Annex'!$K$1:$AN$4997,MATCH(N$44&\"|\"&$B81,'Data Annex'!$K$1:$K$4997,0),MATCH(N$45,'Data Annex'!$K$1:$AN$1,0)),\"\")","v":5.7699153000000001E-3},{"$f":"IFERROR(INDEX('Data Annex'!$K$1:$AN$4997,MATCH(O$44&\"|\"&$B81,'Data Annex'!$K$1:$K$4997,0),MATCH(O$45,'Data Annex'!$K$1:$AN$1,0)),\"\")","v":5.1824536999999999E-3},{"$f":"IFERROR(INDEX('Data Annex'!$K$1:$AN$4997,MATCH(P$44&\"|\"&$B81,'Data Annex'!$K$1:$K$4997,0),MATCH(P$45,'Data Annex'!$K$1:$AN$1,0)),\"\")","v":6.0294551999999996E-3},{"$f":"IFERROR(INDEX('Data Annex'!$K$1:$AN$4997,MATCH(Q$44&\"|\"&$B81,'Data Annex'!$K$1:$K$4997,0),MATCH(Q$45,'Data Annex'!$K$1:$AN$1,0)),\"\")","v":7.4810544300000004E-2},{"$f":"IFERROR(INDEX('Data Annex'!$K$1:$AN$4997,MATCH(R$44&\"|\"&$B81,'Data Annex'!$K$1:$K$4997,0),MATCH(R$45,'Data Annex'!$K$1:$AN$1,0)),\"\")","v":8.4588581400000001E-2},{"$f":"IFERROR(INDEX('Data Annex'!$K$1:$AN$4997,MATCH(S$44&\"|\"&$B81,'Data Annex'!$K$1:$K$4997,0),MATCH(S$45,'Data Annex'!$K$1:$AN$1,0)),\"\")","v":6.3836461299999994E-2},{"$f":"IFERROR(INDEX('Data Annex'!$K$1:$AN$4997,MATCH(T$44&\"|\"&$B81,'Data Annex'!$K$1:$K$4997,0),MATCH(T$45,'Data Annex'!$K$1:$AN$1,0)),\"\")","v":5.1329106399999998E-2},{"$f":"IFERROR(INDEX('Data Annex'!$K$1:$AN$4997,MATCH(U$44&\"|\"&$B81,'Data Annex'!$K$1:$K$4997,0),MATCH(U$45,'Data Annex'!$K$1:$AN$1,0)),\"\")","v":3.9374368000000002E-3},{"$f":"IFERROR(INDEX('Data Annex'!$K$1:$AN$4997,MATCH(V$44&\"|\"&$B81,'Data Annex'!$K$1:$K$4997,0),MATCH(V$45,'Data Annex'!$K$1:$AN$1,0)),\"\")","v":6.8310912999999997E-3},{"$f":"IFERROR(INDEX('Data Annex'!$K$1:$AN$4997,MATCH(W$44&\"|\"&$B81,'Data Annex'!$K$1:$K$4997,0),MATCH(W$45,'Data Annex'!$K$1:$AN$1,0)),\"\")","v":1.12466978E-2},{"$f":"IFERROR(INDEX('Data Annex'!$K$1:$AN$4997,MATCH(X$44&\"|\"&$B81,'Data Annex'!$K$1:$K$4997,0),MATCH(X$45,'Data Annex'!$K$1:$AN$1,0)),\"\")","v":1.06834876E-2}]
[]
[null,null,null,"Individual country data includes subsidiaries, which are excluded from EU aggregate. For example, at country level the subsidiary in country X of a bank domiciled in country Y is included both in data for countries X and Y (for the latter as part of the consolidated entity). In the EU aggregate, only the consolidated entity domiciled in country Y is considered.  The sample of banks is unbalanced and reviewed annually.\nAs of Q1 2020 onwards UK banks are removed from the EU/EEA aggregate and subsidiaries of UK banks in EU member states are used instead."]

{"sheet":"Moratoria","index":13,"n_rows":85,"n_cols":28,"rows_kept":85,"cut":false,"hidden":true,"merged":[[2,3,2,27],[3,3,3,27],[5,3,5,25],[6,3,7,27],[9,3,11,3],[9,4,11,7],[9,8,11,11],[9,12,11,15],[9,16,11,19],[9,20,11,23],[83,3,83,27],[9,24,11,27],[46,3,47,27],[48,3,49,3],[49,4,49,7],[49,8,49,11],[49,12,49,15],[49,16,49,19],[49,20,49,23],[49,24,49,27]]}
[null,null,null,null,"T90_1","T90_1","T90_1","T90_1","T90_2","T90_2","T90_2","T90_2","T90_3","T90_3","T90_3","T90_3","T90_4","T90_4","T90_4","T90_4","T90_5","T90_5","T90_5","T90_5","T90_6","T90_6","T90_6","T90_6"]
[{"$f":"'Reference Dates'!C8","v":"202012"},null,null,null,{"$f":"TEXT(E51,\"YYYYMM\")+0","v":202003},{"$f":"TEXT(F51,\"YYYYMM\")+0","v":202006},{"$f":"TEXT(G51,\"YYYYMM\")+0","v":202009},{"$f":"TEXT(H51,\"YYYYMM\")+0","v":202012},{"$f":"TEXT(I51,\"YYYYMM\")+0","v":202003},202006,202009,202012,202003,202006,202009,202012,202003,202006,202009,202012,202003,202006,202009,202012,202003,{"$f":"TEXT(Z51,\"YYYYMM\")+0","v":202006},202009,202012]
[{"$f":"DATE(LEFT(A2,4),RIGHT(A2,2),1)","v":"2020-12-01"},null,null,"Statistical Annex"]
[null,null,null,"Overview on EBA-compliant Moratoria"]
[]
[]
[null,null,null,"Loans and advances with non-expired EBA-compliant moratoria"]
[]
[]
[null,null,null,"Volumes bn EUR; %","Total",null,null,null,"of which: Households",null,null,null,"of which: NFCs",null,null,null,"Stage 2",null,null,null,"Non-performing",null,null,null,"Coverage of NPLs"]
[]
[]
[null,null,null,null,{"$f":"EOMONTH($A$3,-9)","v":"2020-03-31"},{"$f":"EOMONTH($A$3,-6)","v":"2020-06-30"},{"$f":"EOMONTH($A$3,-3)","v":"2020-09-30"},{"$f":"EOMONTH($A$3,0)","v":"2020-12-31"},{"$f":"EOMONTH($A$3,-9)","v":"2020-03-31"},{"$f":"EOMONTH($A$3,-6)","v":"2020-06-30"},{"$f":"EOMONTH($A$3,-3)","v":"2020-09-30"},{"$f":"EOMONTH($A$3,0)","v":"2020-12-31"},{"$f":"EOMONTH($A$3,-9)","v":"2020-03-31"},{"$f":"EOMONTH($A$3,-6)","v":"2020-06-30"},{"$f":"EOMONTH($A$3,-3)","v":"2020-09-30"},{"$f":"EOMONTH($A$3,0)","v":"2020-12-31"},{"$f":"EOMONTH($A$3,-9)","v":"2020-03-31"},{"$f":"EOMONTH($A$3,-6)","v":"2020-06-30"},{"$f":"EOMONTH($A$3,-3)","v":"2020-09-30"},{"$f":"EOMONTH($A$3,0)","v":"2020-12-31"},{"$f":"EOMONTH($A$3,-9)","v":"2020-03-31"},{"$f":"EOMONTH($A$3,-6)","v":"2020-06-30"},{"$f":"EOMONTH($A$3,-3)","v":"2020-09-30"},{"$f":"EOMONTH($A$3,0)","v":"2020-12-31"},{"$f":"EOMONTH($A$3,-9)","v":"2020-03-31"},{"$f":"EOMONTH($A$3,-6)","v":"2020-06-30"},{"$f":"EOMONTH($A$3,-3)","v":"2020-09-30"},{"$f":"EOMONTH($A$3,0)","v":"2020-12-31"}]
[1,"AT",null,{"$f":"IF(OR(E14=\"n.a.\",F14=\"n.a.\",G14=\"n.a.\",H14=\"n.a.\",I14=\"n.a.\",J14=\"n.a.\",K14=\"n.a.\",L14=\"n.a.\",M14=\"n.a.\",N14=\"n.a.\",O14=\"n.a.\",P14=\"n.a.\",Q14=\"n.a.\",R14=\"n.a.\",S14=\"n.a.\",T14=\"n.a.\",U14=\"n.a.\",V14=\"n.a.\",W14=\"n.a.\",X14=\"n.a.\",Y14=\"n.a.\",Z14=\"n.a.\",AA14=\"n.a.\",AB14=\"n.a.\"),$B14&\"*\",$B14)","v":"AT"},{"$f":"IFERROR(INDEX('Data Annex'!$K$1:$BA$5047,MATCH(E$1&\"|\"&$B14,'Data Annex'!$K$1:$K$5047,0),MATCH(E$2,'Data Annex'!$K$1:$BA$1,0)),\"\")","v":0},{"$f":"IFERROR(INDEX('Data Annex'!$K$1:$BA$5047,MATCH(F$1&\"|\"&$B14,'Data Annex'!$K$1:$K$5047,0),MATCH(F$2,'Data Annex'!$K$1:$BA$1,0)),\"\")","v":26.927521571},{"$f":"IFERROR(INDEX('Data Annex'!$K$1:$BA$5047,MATCH(G$1&\"|\"&$B14,'Data Annex'!$K$1:$K$5047,0),MATCH(G$2,'Data Annex'!$K$1:$BA$1,0)),\"\")","v":22.661923662},{"$f":"IFERROR(INDEX('Data Annex'!$K$1:$BA$5047,MATCH(H$1&\"|\"&$B14,'Data Annex'!$K$1:$K$5047,0),MATCH(H$2,'Data Annex'!$K$1:$BA$1,0)),\"\")","v":9.0819840290999991},{"$f":"IFERROR(INDEX('Data Annex'!$K$1:$BA$5047,MATCH(I$1&\"|\"&$B14,'Data Annex'!$K$1:$K$5047,0),MATCH(I$2,'Data Annex'!$K$1:$BA$1,0)),\"\")","v":0},{"$f":"IFERROR(INDEX('Data Annex'!$K$1:$BA$5047,MATCH(J$1&\"|\"&$B14,'Data Annex'!$K$1:$K$5047,0),MATCH(J$2,'Data Annex'!$K$1:$BA$1,0)),\"\")","v":0.47038811800000002},{"$f":"IFERROR(INDEX('Data Annex'!$K$1:$BA$5047,MATCH(K$1&\"|\"&$B14,'Data Annex'!$K$1:$K$5047,0),MATCH(K$2,'Data Annex'!$K$1:$BA$1,0)),\"\")","v":0.50245518690000002},{"$f":"IFERROR(INDEX('Data Annex'!$K$1:$BA$5047,MATCH(L$1&\"|\"&$B14,'Data Annex'!$K$1:$K$5047,0),MATCH(L$2,'Data Annex'!$K$1:$BA$1,0)),\"\")","v":0.51121009120000005},{"$f":"IFERROR(INDEX('Data Annex'!$K$1:$BA$5047,MATCH(M$1&\"|\"&$B14,'Data Annex'!$K$1:$K$5047,0),MATCH(M$2,'Data Annex'!$K$1:$BA$1,0)),\"\")","v":0},{"$f":"IFERROR(INDEX('Data Annex'!$K$1:$BA$5047,MATCH(N$1&\"|\"&$B14,'Data Annex'!$K$1:$K$5047,0),MATCH(N$2,'Data Annex'!$K$1:$BA$1,0)),\"\")","v":0.5157917648},{"$f":"IFERROR(INDEX('Data Annex'!$K$1:$BA$5047,MATCH(O$1&\"|\"&$B14,'Data Annex'!$K$1:$K$5047,0),MATCH(O$2,'Data Annex'!$K$1:$BA$1,0)),\"\")","v":0.48605831020000001},{"$f":"IFERROR(INDEX('Data Annex'!$K$1:$BA$5047,MATCH(P$1&\"|\"&$B14,'Data Annex'!$K$1:$K$5047,0),MATCH(P$2,'Data Annex'!$K$1:$BA$1,0)),\"\")","v":0.48306117370000001},{"$f":"IFERROR(INDEX('Data Annex'!$K$1:$BA$5047,MATCH(Q$1&\"|\"&$B14,'Data Annex'!$K$1:$K$5047,0),MATCH(Q$2,'Data Annex'!$K$1:$BA$1,0)),\"\")","v":0},{"$f":"IFERROR(INDEX('Data Annex'!$K$1:$BA$5047,MATCH(R$1&\"|\"&$B14,'Data Annex'!$K$1:$K$5047,0),MATCH(R$2,'Data Annex'!$K$1:$BA$1,0)),\"\")","v":0.38312301529999998},{"$f":"IFERROR(INDEX('Data Annex'!$K$1:$BA$5047,MATCH(S$1&\"|\"&$B14,'Data Annex'!$K$1:$K$5047,0),MATCH(S$2,'Data Annex'!$K$1:$BA$1,0)),\"\")","v":0.38273422509999999},{"$f":"IFERROR(INDEX('Data Annex'!$K$1:$BA$5047,MATCH(T$1&\"|\"&$B14,'Data Annex'!$K$1:$K$5047,0),MATCH(T$2,'Data Annex'!$K$1:$BA$1,0)),\"\")","v":0.42408239149999999},{"$f":"IFERROR(INDEX('Data Annex'!$K$1:$BA$5047,MATCH(U$1&\"|\"&$B14,'Data Annex'!$K$1:$K$5047,0),MATCH(U$2,'Data Annex'!$K$1:$BA$1,0)),\"\")","v":0},{"$f":"IFERROR(INDEX('Data Annex'!$K$1:$BA$5047,MATCH(V$1&\"|\"&$B14,'Data Annex'!$K$1:$K$5047,0),MATCH(V$2,'Data Annex'!$K$1:$BA$1,0)),\"\")","v":2.19041926E-2},{"$f":"IFERROR(INDEX('Data Annex'!$K$1:$BA$5047,MATCH(W$1&\"|\"&$B14,'Data Annex'!$K$1:$K$5047,0),MATCH(W$2,'Data Annex'!$K$1:$BA$1,0)),\"\")","v":2.77647164E-2},{"$f":"IFERROR(INDEX('Data Annex'!$K$1:$BA$5047,MATCH(X$1&\"|\"&$B14,'Data Annex'!$K$1:$K$5047,0),MATCH(X$2,'Data Annex'!$K$1:$BA$1,0)),\"\")","v":3.87027972E-2},{"$f":"IFERROR(INDEX('Data Annex'!$K$1:$BA$5047,MATCH(Y$1&\"|\"&$B14,'Data Annex'!$K$1:$K$5047,0),MATCH(Y$2,'Data Annex'!$K$1:$BA$1,0)),\"\")","v":0},{"$f":"IFERROR(INDEX('Data Annex'!$K$1:$BA$5047,MATCH(Z$1&\"|\"&$B14,'Data Annex'!$K$1:$K$5047,0),MATCH(Z$2,'Data Annex'!$K$1:$BA$1,0)),\"\")","v":0.42305166630000002},{"$f":"IFERROR(INDEX('Data Annex'!$K$1:$BA$5047,MATCH(AA$1&\"|\"&$B14,'Data Annex'!$K$1:$K$5047,0),MATCH(AA$2,'Data Annex'!$K$1:$BA$1,0)),\"\")","v":0.49057632480000002},{"$f":"IFERROR(INDEX('Data Annex'!$K$1:$BA$5047,MATCH(AB$1&\"|\"&$B14,'Data Annex'!$K$1:$K$5047,0),MATCH(AB$2,'Data Annex'!$K$1:$BA$1,0)),\"\")","v":0.42247882990000002}]
[2,"BE",null,{"$f":"IF(OR(E15=\"n.a.\",F15=\"n.a.\",G15=\"n.a.\",H15=\"n.a.\",I15=\"n.a.\",J15=\"n.a.\",K15=\"n.a.\",L15=\"n.a.\",M15=\"n.a.\",N15=\"n.a.\",O15=\"n.a.\",P15=\"n.a.\",Q15=\"n.a.\",R15=\"n.a.\",S15=\"n.a.\",T15=\"n.a.\",U15=\"n.a.\",V15=\"n.a.\",W15=\"n.a.\",X15=\"n.a.\",Y15=\"n.a.\",Z15=\"n.a.\",AA15=\"n.a.\",AB15=\"n.a.\"),$B15&\"*\",$B15)","v":"BE"},{"$f":"IFERROR(INDEX('Data Annex'!$K$1:$BA$5047,MATCH(E$1&\"|\"&$B15,'Data Annex'!$K$1:$K$5047,0),MATCH(E$2,'Data Annex'!$K$1:$BA$1,0)),\"\")","v":0},{"$f":"IFERROR(INDEX('Data Annex'!$K$1:$BA$5047,MATCH(F$1&\"|\"&$B15,'Data Annex'!$K$1:$K$5047,0),MATCH(F$2,'Data Annex'!$K$1:$BA$1,0)),\"\")","v":27.003941577999999},{"$f":"IFERROR(INDEX('Data Annex'!$K$1:$BA$5047,MATCH(G$1&\"|\"&$B15,'Data Annex'!$K$1:$K$5047,0),MATCH(G$2,'Data Annex'!$K$1:$BA$1,0)),\"\")","v":25.934400816},{"$f":"IFERROR(INDEX('Data Annex'!$K$1:$BA$5047,MATCH(H$1&\"|\"&$B15,'Data Annex'!$K$1:$K$5047,0),MATCH(H$2,'Data Annex'!$K$1:$BA$1,0)),\"\")","v":8.2575968884000002},{"$f":"IFERROR(INDEX('Data Annex'!$K$1:$BA$5047,MATCH(I$1&\"|\"&$B15,'Data Annex'!$K$1:$K$5047,0),MATCH(I$2,'Data Annex'!$K$1:$BA$1,0)),\"\")","v":0},{"$f":"IFERROR(INDEX('Data Annex'!$K$1:$BA$5047,MATCH(J$1&\"|\"&$B15,'Data Annex'!$K$1:$K$5047,0),MATCH(J$2,'Data Annex'!$K$1:$BA$1,0)),\"\")","v":0.3792083644},{"$f":"IFERROR(INDEX('Data Annex'!$K$1:$BA$5047,MATCH(K$1&\"|\"&$B15,'Data Annex'!$K$1:$K$5047,0),MATCH(K$2,'Data Annex'!$K$1:$BA$1,0)),\"\")","v":0.37315018570000003},{"$f":"IFERROR(INDEX('Data Annex'!$K$1:$BA$5047,MATCH(L$1&\"|\"&$B15,'Data Annex'!$K$1:$K$5047,0),MATCH(L$2,'Data Annex'!$K$1:$BA$1,0)),\"\")","v":0.21711655869999999},{"$f":"IFERROR(INDEX('Data Annex'!$K$1:$BA$5047,MATCH(M$1&\"|\"&$B15,'Data Annex'!$K$1:$K$5047,0),MATCH(M$2,'Data Annex'!$K$1:$BA$1,0)),\"\")","v":0},{"$f":"IFERROR(INDEX('Data Annex'!$K$1:$BA$5047,MATCH(N$1&\"|\"&$B15,'Data Annex'!$K$1:$K$5047,0),MATCH(N$2,'Data Annex'!$K$1:$BA$1,0)),\"\")","v":0.5936452539},{"$f":"IFERROR(INDEX('Data Annex'!$K$1:$BA$5047,MATCH(O$1&\"|\"&$B15,'Data Annex'!$K$1:$K$5047,0),MATCH(O$2,'Data Annex'!$K$1:$BA$1,0)),\"\")","v":0.60201912599999996},{"$f":"IFERROR(INDEX('Data Annex'!$K$1:$BA$5047,MATCH(P$1&\"|\"&$B15,'Data Annex'!$K$1:$K$5047,0),MATCH(P$2,'Data Annex'!$K$1:$BA$1,0)),\"\")","v":0.75404095859999998},{"$f":"IFERROR(INDEX('Data Annex'!$K$1:$BA$5047,MATCH(Q$1&\"|\"&$B15,'Data Annex'!$K$1:$K$5047,0),MATCH(Q$2,'Data Annex'!$K$1:$BA$1,0)),\"\")","v":0},{"$f":"IFERROR(INDEX('Data Annex'!$K$1:$BA$5047,MATCH(R$1&\"|\"&$B15,'Data Annex'!$K$1:$K$5047,0),MATCH(R$2,'Data Annex'!$K$1:$BA$1,0)),\"\")","v":0.21174376859999999},{"$f":"IFERROR(INDEX('Data Annex'!$K$1:$BA$5047,MATCH(S$1&\"|\"&$B15,'Data Annex'!$K$1:$K$5047,0),MATCH(S$2,'Data Annex'!$K$1:$BA$1,0)),\"\")","v":0.32282319910000001},{"$f":"IFERROR(INDEX('Data Annex'!$K$1:$BA$5047,MATCH(T$1&\"|\"&$B15,'Data Annex'!$K$1:$K$5047,0),MATCH(T$2,'Data Annex'!$K$1:$BA$1,0)),\"\")","v":0.25004653269999999},{"$f":"IFERROR(INDEX('Data Annex'!$K$1:$BA$5047,MATCH(U$1&\"|\"&$B15,'Data Annex'!$K$1:$K$5047,0),MATCH(U$2,'Data Annex'!$K$1:$BA$1,0)),\"\")","v":0},{"$f":"IFERROR(INDEX('Data Annex'!$K$1:$BA$5047,MATCH(V$1&\"|\"&$B15,'Data Annex'!$K$1:$K$5047,0),MATCH(V$2,'Data Annex'!$K$1:$BA$1,0)),\"\")","v":1.53876103E-2},{"$f":"IFERROR(INDEX('Data Annex'!$K$1:$BA$5047,MATCH(W$1&\"|\"&$B15,'Data Annex'!$K$1:$K$5047,0),MATCH(W$2,'Data Annex'!$K$1:$BA$1,0)),\"\")","v":1.6637919800000001E-2},{"$f":"IFERROR(INDEX('Data Annex'!$K$1:$BA$5047,MATCH(X$1&\"|\"&$B15,'Data Annex'!$K$1:$K$5047,0),MATCH(X$2,'Data Annex'!$K$1:$BA$1,0)),\"\")","v":2.7959375099999999E-2},{"$f":"IFERROR(INDEX('Data Annex'!$K$1:$BA$5047,MATCH(Y$1&\"|\"&$B15,'Data Annex'!$K$1:$K$5047,0),MATCH(Y$2,'Data Annex'!$K$1:$BA$1,0)),\"\")","v":0},{"$f":"IFERROR(INDEX('Data Annex'!$K$1:$BA$5047,MATCH(Z$1&\"|\"&$B15,'Data Annex'!$K$1:$K$5047,0),MATCH(Z$2,'Data Annex'!$K$1:$BA$1,0)),\"\")","v":0.1475167211},{"$f":"IFERROR(INDEX('Data Annex'!$K$1:$BA$5047,MATCH(AA$1&\"|\"&$B15,'Data Annex'!$K$1:$K$5047,0),MATCH(AA$2,'Data Annex'!$K$1:$BA$1,0)),\"\")","v":0.15127157920000001},{"$f":"IFERROR(INDEX('Data Annex'!$K$1:$BA$5047,MATCH(AB$1&\"|\"&$B15,'Data Annex'!$K$1:$K$5047,0),MATCH(AB$2,'Data Annex'!$K$1:$BA$1,0)),\"\")","v":0.1494392054}]
[3,"BG",null,"BG",{"$f":"IFERROR(INDEX('Data Annex'!$K$1:$BA$5047,MATCH(E$1&\"|\"&$B16,'Data Annex'!$K$1:$K$5047,0),MATCH(E$2,'Data Annex'!$K$1:$BA$1,0)),\"\")","v":0},{"$f":"IFERROR(INDEX('Data Annex'!$K$1:$BA$5047,MATCH(F$1&\"|\"&$B16,'Data Annex'!$K$1:$K$5047,0),MATCH(F$2,'Data Annex'!$K$1:$BA$1,0)),\"\")","v":1.958706923},{"$f":"IFERROR(INDEX('Data Annex'!$K$1:$BA$5047,MATCH(G$1&\"|\"&$B16,'Data Annex'!$K$1:$K$5047,0),MATCH(G$2,'Data Annex'!$K$1:$BA$1,0)),\"\")","v":1.510648328},{"$f":"IFERROR(INDEX('Data Annex'!$K$1:$BA$5047,MATCH(H$1&\"|\"&$B16,'Data Annex'!$K$1:$K$5047,0),MATCH(H$2,'Data Annex'!$K$1:$BA$1,0)),\"\")","v":0.2642729318},{"$f":"IFERROR(INDEX('Data Annex'!$K$1:$BA$5047,MATCH(I$1&\"|\"&$B16,'Data Annex'!$K$1:$K$5047,0),MATCH(I$2,'Data Annex'!$K$1:$BA$1,0)),\"\")","v":0},{"$f":"IFERROR(INDEX('Data Annex'!$K$1:$BA$5047,MATCH(J$1&\"|\"&$B16,'Data Annex'!$K$1:$K$5047,0),MATCH(J$2,'Data Annex'!$K$1:$BA$1,0)),\"\")","v":0.29728474620000001},{"$f":"IFERROR(INDEX('Data Annex'!$K$1:$BA$5047,MATCH(K$1&\"|\"&$B16,'Data Annex'!$K$1:$K$5047,0),MATCH(K$2,'Data Annex'!$K$1:$BA$1,0)),\"\")","v":0.26904620229999998},{"$f":"IFERROR(INDEX('Data Annex'!$K$1:$BA$5047,MATCH(L$1&\"|\"&$B16,'Data Annex'!$K$1:$K$5047,0),MATCH(L$2,'Data Annex'!$K$1:$BA$1,0)),\"\")","v":0.2772948449},{"$f":"IFERROR(INDEX('Data Annex'!$K$1:$BA$5047,MATCH(M$1&\"|\"&$B16,'Data Annex'!$K$1:$K$5047,0),MATCH(M$2,'Data Annex'!$K$1:$BA$1,0)),\"\")","v":0},{"$f":"IFERROR(INDEX('Data Annex'!$K$1:$BA$5047,MATCH(N$1&\"|\"&$B16,'Data Annex'!$K$1:$K$5047,0),MATCH(N$2,'Data Annex'!$K$1:$BA$1,0)),\"\")","v":0.68974472689999999},{"$f":"IFERROR(INDEX('Data Annex'!$K$1:$BA$5047,MATCH(O$1&\"|\"&$B16,'Data Annex'!$K$1:$K$5047,0),MATCH(O$2,'Data Annex'!$K$1:$BA$1,0)),\"\")","v":0.71546366490000002},{"$f":"IFERROR(INDEX('Data Annex'!$K$1:$BA$5047,MATCH(P$1&\"|\"&$B16,'Data Annex'!$K$1:$K$5047,0),MATCH(P$2,'Data Annex'!$K$1:$BA$1,0)),\"\")","v":0.70538728679999996},{"$f":"IFERROR(INDEX('Data Annex'!$K$1:$BA$5047,MATCH(Q$1&\"|\"&$B16,'Data Annex'!$K$1:$K$5047,0),MATCH(Q$2,'Data Annex'!$K$1:$BA$1,0)),\"\")","v":0},{"$f":"IFERROR(INDEX('Data Annex'!$K$1:$BA$5047,MATCH(R$1&\"|\"&$B16,'Data Annex'!$K$1:$K$5047,0),MATCH(R$2,'Data Annex'!$K$1:$BA$1,0)),\"\")","v":0.27205267570000002},{"$f":"IFERROR(INDEX('Data Annex'!$K$1:$BA$5047,MATCH(S$1&\"|\"&$B16,'Data Annex'!$K$1:$K$5047,0),MATCH(S$2,'Data Annex'!$K$1:$BA$1,0)),\"\")","v":0.25038737179999998},{"$f":"IFERROR(INDEX('Data Annex'!$K$1:$BA$5047,MATCH(T$1&\"|\"&$B16,'Data Annex'!$K$1:$K$5047,0),MATCH(T$2,'Data Annex'!$K$1:$BA$1,0)),\"\")","v":0.32521838390000002},{"$f":"IFERROR(INDEX('Data Annex'!$K$1:$BA$5047,MATCH(U$1&\"|\"&$B16,'Data Annex'!$K$1:$K$5047,0),MATCH(U$2,'Data Annex'!$K$1:$BA$1,0)),\"\")","v":0},{"$f":"IFERROR(INDEX('Data Annex'!$K$1:$BA$5047,MATCH(V$1&\"|\"&$B16,'Data Annex'!$K$1:$K$5047,0),MATCH(V$2,'Data Annex'!$K$1:$BA$1,0)),\"\")","v":2.8790821000000001E-2},{"$f":"IFERROR(INDEX('Data Annex'!$K$1:$BA$5047,MATCH(W$1&\"|\"&$B16,'Data Annex'!$K$1:$K$5047,0),MATCH(W$2,'Data Annex'!$K$1:$BA$1,0)),\"\")","v":3.4494534799999997E-2},{"$f":"IFERROR(INDEX('Data Annex'!$K$1:$BA$5047,MATCH(X$1&\"|\"&$B16,'Data Annex'!$K$1:$K$5047,0),MATCH(X$2,'Data Annex'!$K$1:$BA$1,0)),\"\")","v":4.63796156E-2},{"$f":"IFERROR(INDEX('Data Annex'!$K$1:$BA$5047,MATCH(Y$1&\"|\"&$B16,'Data Annex'!$K$1:$K$5047,0),MATCH(Y$2,'Data Annex'!$K$1:$BA$1,0)),\"\")","v":0},{"$f":"IFERROR(INDEX('Data Annex'!$K$1:$BA$5047,MATCH(Z$1&\"|\"&$B16,'Data Annex'!$K$1:$K$5047,0),MATCH(Z$2,'Data Annex'!$K$1:$BA$1,0)),\"\")","v":0.46759087160000001},{"$f":"IFERROR(INDEX('Data Annex'!$K$1:$BA$5047,MATCH(AA$1&\"|\"&$B16,'Data Annex'!$K$1:$K$5047,0),MATCH(AA$2,'Data Annex'!$K$1:$BA$1,0)),\"\")","v":0.41712211160000001},{"$f":"IFERROR(INDEX('Data Annex'!$K$1:$BA$5047,MATCH(AB$1&\"|\"&$B16,'Data Annex'!$K$1:$K$5047,0),MATCH(AB$2,'Data Annex'!$K$1:$BA$1,0)),\"\")","v":0.50558985479999996}]
[4,"CY",null,"CY",{"$f":"IFERROR(INDEX('Data Annex'!$K$1:$BA$5047,MATCH(E$1&\"|\"&$B17,'Data Annex'!$K$1:$K$5047,0),MATCH(E$2,'Data Annex'!$K$1:$BA$1,0)),\"\")","v":0},{"$f":"IFERROR(INDEX('Data Annex'!$K$1:$BA$5047,MATCH(F$1&\"|\"&$B17,'Data Annex'!$K$1:$K$5047,0),MATCH(F$2,'Data Annex'!$K$1:$BA$1,0)),\"\")","v":9.4204432261999997},{"$f":"IFERROR(INDEX('Data Annex'!$K$1:$BA$5047,MATCH(G$1&\"|\"&$B17,'Data Annex'!$K$1:$K$5047,0),MATCH(G$2,'Data Annex'!$K$1:$BA$1,0)),\"\")","v":9.2905211028999997},{"$f":"IFERROR(INDEX('Data Annex'!$K$1:$BA$5047,MATCH(H$1&\"|\"&$B17,'Data Annex'!$K$1:$K$5047,0),MATCH(H$2,'Data Annex'!$K$1:$BA$1,0)),\"\")","v":9.2226742263000006},{"$f":"IFERROR(INDEX('Data Annex'!$K$1:$BA$5047,MATCH(I$1&\"|\"&$B17,'Data Annex'!$K$1:$K$5047,0),MATCH(I$2,'Data Annex'!$K$1:$BA$1,0)),\"\")","v":0},{"$f":"IFERROR(INDEX('Data Annex'!$K$1:$BA$5047,MATCH(J$1&\"|\"&$B17,'Data Annex'!$K$1:$K$5047,0),MATCH(J$2,'Data Annex'!$K$1:$BA$1,0)),\"\")","v":0.38471485799999999},{"$f":"IFERROR(INDEX('Data Annex'!$K$1:$BA$5047,MATCH(K$1&\"|\"&$B17,'Data Annex'!$K$1:$K$5047,0),MATCH(K$2,'Data Annex'!$K$1:$BA$1,0)),\"\")","v":0.39022956260000002},{"$f":"IFERROR(INDEX('Data Annex'!$K$1:$BA$5047,MATCH(L$1&\"|\"&$B17,'Data Annex'!$K$1:$K$5047,0),MATCH(L$2,'Data Annex'!$K$1:$BA$1,0)),\"\")","v":0.392030253},{"$f":"IFERROR(INDEX('Data Annex'!$K$1:$BA$5047,MATCH(M$1&\"|\"&$B17,'Data Annex'!$K$1:$K$5047,0),MATCH(M$2,'Data Annex'!$K$1:$BA$1,0)),\"\")","v":0},{"$f":"IFERROR(INDEX('Data Annex'!$K$1:$BA$5047,MATCH(N$1&\"|\"&$B17,'Data Annex'!$K$1:$K$5047,0),MATCH(N$2,'Data Annex'!$K$1:$BA$1,0)),\"\")","v":0.5848458272},{"$f":"IFERROR(INDEX('Data Annex'!$K$1:$BA$5047,MATCH(O$1&\"|\"&$B17,'Data Annex'!$K$1:$K$5047,0),MATCH(O$2,'Data Annex'!$K$1:$BA$1,0)),\"\")","v":0.58135707589999996},{"$f":"IFERROR(INDEX('Data Annex'!$K$1:$BA$5047,MATCH(P$1&\"|\"&$B17,'Data Annex'!$K$1:$K$5047,0),MATCH(P$2,'Data Annex'!$K$1:$BA$1,0)),\"\")","v":0.5791771469},{"$f":"IFERROR(INDEX('Data Annex'!$K$1:$BA$5047,MATCH(Q$1&\"|\"&$B17,'Data Annex'!$K$1:$K$5047,0),MATCH(Q$2,'Data Annex'!$K$1:$BA$1,0)),\"\")","v":0},{"$f":"IFERROR(INDEX('Data Annex'!$K$1:$BA$5047,MATCH(R$1&\"|\"&$B17,'Data Annex'!$K$1:$K$5047,0),MATCH(R$2,'Data Annex'!$K$1:$BA$1,0)),\"\")","v":0.21790390539999999},{"$f":"IFERROR(INDEX('Data Annex'!$K$1:$BA$5047,MATCH(S$1&\"|\"&$B17,'Data Annex'!$K$1:$K$5047,0),MATCH(S$2,'Data Annex'!$K$1:$BA$1,0)),\"\")","v":0.24423560329999999},{"$f":"IFERROR(INDEX('Data Annex'!$K$1:$BA$5047,MATCH(T$1&\"|\"&$B17,'Data Annex'!$K$1:$K$5047,0),MATCH(T$2,'Data Annex'!$K$1:$BA$1,0)),\"\")","v":0.2378545054},{"$f":"IFERROR(INDEX('Data Annex'!$K$1:$BA$5047,MATCH(U$1&\"|\"&$B17,'Data Annex'!$K$1:$K$5047,0),MATCH(U$2,'Data Annex'!$K$1:$BA$1,0)),\"\")","v":0},{"$f":"IFERROR(INDEX('Data Annex'!$K$1:$BA$5047,MATCH(V$1&\"|\"&$B17,'Data Annex'!$K$1:$K$5047,0),MATCH(V$2,'Data Annex'!$K$1:$BA$1,0)),\"\")","v":6.7418380299999997E-2},{"$f":"IFERROR(INDEX('Data Annex'!$K$1:$BA$5047,MATCH(W$1&\"|\"&$B17,'Data Annex'!$K$1:$K$5047,0),MATCH(W$2,'Data Annex'!$K$1:$BA$1,0)),\"\")","v":6.0448926700000002E-2},{"$f":"IFERROR(INDEX('Data Annex'!$K$1:$BA$5047,MATCH(X$1&\"|\"&$B17,'Data Annex'!$K$1:$K$5047,0),MATCH(X$2,'Data Annex'!$K$1:$BA$1,0)),\"\")","v":6.4942384300000003E-2},{"$f":"IFERROR(INDEX('Data Annex'!$K$1:$BA$5047,MATCH(Y$1&\"|\"&$B17,'Data Annex'!$K$1:$K$5047,0),MATCH(Y$2,'Data Annex'!$K$1:$BA$1,0)),\"\")","v":0},{"$f":"IFERROR(INDEX('Data Annex'!$K$1:$BA$5047,MATCH(Z$1&\"|\"&$B17,'Data Annex'!$K$1:$K$5047,0),MATCH(Z$2,'Data Annex'!$K$1:$BA$1,0)),\"\")","v":0.21918729619999999},{"$f":"IFERROR(INDEX('Data Annex'!$K$1:$BA$5047,MATCH(AA$1&\"|\"&$B17,'Data Annex'!$K$1:$K$5047,0),MATCH(AA$2,'Data Annex'!$K$1:$BA$1,0)),\"\")","v":0.2402051764},{"$f":"IFERROR(INDEX('Data Annex'!$K$1:$BA$5047,MATCH(AB$1&\"|\"&$B17,'Data Annex'!$K$1:$K$5047,0),MATCH(AB$2,'Data Annex'!$K$1:$BA$1,0)),\"\")","v":0.25570340940000003}]
[5,"CZ",null,"CZ",{"$f":"IFERROR(INDEX('Data Annex'!$K$1:$BA$5047,MATCH(E$1&\"|\"&$B18,'Data Annex'!$K$1:$K$5047,0),MATCH(E$2,'Data Annex'!$K$1:$BA$1,0)),\"\")","v":""},{"$f":"IFERROR(INDEX('Data Annex'!$K$1:$BA$5047,MATCH(F$1&\"|\"&$B18,'Data Annex'!$K$1:$K$5047,0),MATCH(F$2,'Data Annex'!$K$1:$BA$1,0)),\"\")","v":""},{"$f":"IFERROR(INDEX('Data Annex'!$K$1:$BA$5047,MATCH(G$1&\"|\"&$B18,'Data Annex'!$K$1:$K$5047,0),MATCH(G$2,'Data Annex'!$K$1:$BA$1,0)),\"\")","v":""},{"$f":"IFERROR(INDEX('Data Annex'!$K$1:$BA$5047,MATCH(H$1&\"|\"&$B18,'Data Annex'!$K$1:$K$5047,0),MATCH(H$2,'Data Annex'!$K$1:$BA$1,0)),\"\")","v":""},{"$f":"IFERROR(INDEX('Data Annex'!$K$1:$BA$5047,MATCH(I$1&\"|\"&$B18,'Data Annex'!$K$1:$K$5047,0),MATCH(I$2,'Data Annex'!$K$1:$BA$1,0)),\"\")","v":""},{"$f":"IFERROR(INDEX('Data Annex'!$K$1:$BA$5047,MATCH(J$1&\"|\"&$B18,'Data Annex'!$K$1:$K$5047,0),MATCH(J$2,'Data Annex'!$K$1:$BA$1,0)),\"\")","v":""},{"$f":"IFERROR(INDEX('Data Annex'!$K$1:$BA$5047,MATCH(K$1&\"|\"&$B18,'Data Annex'!$K$1:$K$5047,0),MATCH(K$2,'Data Annex'!$K$1:$BA$1,0)),\"\")","v":""},{"$f":"IFERROR(INDEX('Data Annex'!$K$1:$BA$5047,MATCH(L$1&\"|\"&$B18,'Data Annex'!$K$1:$K$5047,0),MATCH(L$2,'Data Annex'!$K$1:$BA$1,0)),\"\")","v":""},{"$f":"IFERROR(INDEX('Data Annex'!$K$1:$BA$5047,MATCH(M$1&\"|\"&$B18,'Data Annex'!$K$1:$K$5047,0),MATCH(M$2,'Data Annex'!$K$1:$BA$1,0)),\"\")","v":""},{"$f":"IFERROR(INDEX('Data Annex'!$K$1:$BA$5047,MATCH(N$1&\"|\"&$B18,'Data Annex'!$K$1:$K$5047,0),MATCH(N$2,'Data Annex'!$K$1:$BA$1,0)),\"\")","v":""},{"$f":"IFERROR(INDEX('Data Annex'!$K$1:$BA$5047,MATCH(O$1&\"|\"&$B18,'Data Annex'!$K$1:$K$5047,0),MATCH(O$2,'Data Annex'!$K$1:$BA$1,0)),\"\")","v":""},{"$f":"IFERROR(INDEX('Data Annex'!$K$1:$BA$5047,MATCH(P$1&\"|\"&$B18,'Data Annex'!$K$1:$K$5047,0),MATCH(P$2,'Data Annex'!$K$1:$BA$1,0)),\"\")","v":""},{"$f":"IFERROR(INDEX('Data Annex'!$K$1:$BA$5047,MATCH(Q$1&\"|\"&$B18,'Data Annex'!$K$1:$K$5047,0),MATCH(Q$2,'Data Annex'!$K$1:$BA$1,0)),\"\")","v":""},{"$f":"IFERROR(INDEX('Data Annex'!$K$1:$BA$5047,MATCH(R$1&\"|\"&$B18,'Data Annex'!$K$1:$K$5047,0),MATCH(R$2,'Data Annex'!$K$1:$BA$1,0)),\"\")","v":""},{"$f":"IFERROR(INDEX('Data Annex'!$K$1:$BA$5047,MATCH(S$1&\"|\"&$B18,'Data Annex'!$K$1:$K$5047,0),MATCH(S$2,'Data Annex'!$K$1:$BA$1,0)),\"\")","v":""},{"$f":"IFERROR(INDEX('Data Annex'!$K$1:$BA$5047,MATCH(T$1&\"|\"&$B18,'Data Annex'!$K$1:$K$5047,0),MATCH(T$2,'Data Annex'!$K$1:$BA$1,0)),\"\")","v":""},{"$f":"IFERROR(INDEX('Data Annex'!$K$1:$BA$5047,MATCH(U$1&\"|\"&$B18,'Data Annex'!$K$1:$K$5047,0),MATCH(U$2,'Data Annex'!$K$1:$BA$1,0)),\"\")","v":""},{"$f":"IFERROR(INDEX('Data Annex'!$K$1:$BA$5047,MATCH(V$1&\"|\"&$B18,'Data Annex'!$K$1:$K$5047,0),MATCH(V$2,'Data Annex'!$K$1:$BA$1,0)),\"\")","v":""},{"$f":"IFERROR(INDEX('Data Annex'!$K$1:$BA$5047,MATCH(W$1&\"|\"&$B18,'Data Annex'!$K$1:$K$5047,0),MATCH(W$2,'Data Annex'!$K$1:$BA$1,0)),\"\")","v":""},{"$f":"IFERROR(INDEX('Data Annex'!$K$1:$BA$5047,MATCH(X$1&\"|\"&$B18,'Data Annex'!$K$1:$K$5047,0),MATCH(X$2,'Data Annex'!$K$1:$BA$1,0)),\"\")","v":""},{"$f":"IFERROR(INDEX('Data Annex'!$K$1:$BA$5047,MATCH(Y$1&\"|\"&$B18,'Data Annex'!$K$1:$K$5047,0),MATCH(Y$2,'Data Annex'!$K$1:$BA$1,0)),\"\")","v":""},{"$f":"IFERROR(INDEX('Data Annex'!$K$1:$BA$5047,MATCH(Z$1&\"|\"&$B18,'Data Annex'!$K$1:$K$5047,0),MATCH(Z$2,'Data Annex'!$K$1:$BA$1,0)),\"\")","v":""},{"$f":"IFERROR(INDEX('Data Annex'!$K$1:$BA$5047,MATCH(AA$1&\"|\"&$B18,'Data Annex'!$K$1:$K$5047,0),MATCH(AA$2,'Data Annex'!$K$1:$BA$1,0)),\"\")","v":""},{"$f":"IFERROR(INDEX('Data Annex'!$K$1:$BA$5047,MATCH(AB$1&\"|\"&$B18,'Data Annex'!$K$1:$K$5047,0),MATCH(AB$2,'Data Annex'!$K$1:$BA$1,0)),\"\")","v":""}]
[6,"DE",null,"DE",{"$f":"IFERROR(INDEX('Data Annex'!$K$1:$BA$5047,MATCH(E$1&\"|\"&$B19,'Data Annex'!$K$1:$K$5047,0),MATCH(E$2,'Data Annex'!$K$1:$BA$1,0)),\"\")","v":0},{"$f":"IFERROR(INDEX('Data Annex'!$K$1:$BA$5047,MATCH(F$1&\"|\"&$B19,'Data Annex'!$K$1:$K$5047,0),MATCH(F$2,'Data Annex'!$K$1:$BA$1,0)),\"\")","v":16.782448547000001},{"$f":"IFERROR(INDEX('Data Annex'!$K$1:$BA$5047,MATCH(G$1&\"|\"&$B19,'Data Annex'!$K$1:$K$5047,0),MATCH(G$2,'Data Annex'!$K$1:$BA$1,0)),\"\")","v":9.2736979653000002},{"$f":"IFERROR(INDEX('Data Annex'!$K$1:$BA$5047,MATCH(H$1&\"|\"&$B19,'Data Annex'!$K$1:$K$5047,0),MATCH(H$2,'Data Annex'!$K$1:$BA$1,0)),\"\")","v":2.8043853055999999},{"$f":"IFERROR(INDEX('Data Annex'!$K$1:$BA$5047,MATCH(I$1&\"|\"&$B19,'Data Annex'!$K$1:$K$5047,0),MATCH(I$2,'Data Annex'!$K$1:$BA$1,0)),\"\")","v":0},{"$f":"IFERROR(INDEX('Data Annex'!$K$1:$BA$5047,MATCH(J$1&\"|\"&$B19,'Data Annex'!$K$1:$K$5047,0),MATCH(J$2,'Data Annex'!$K$1:$BA$1,0)),\"\")","v":0.50229033190000005},{"$f":"IFERROR(INDEX('Data Annex'!$K$1:$BA$5047,MATCH(K$1&\"|\"&$B19,'Data Annex'!$K$1:$K$5047,0),MATCH(K$2,'Data Annex'!$K$1:$BA$1,0)),\"\")","v":0.4716121794},{"$f":"IFERROR(INDEX('Data Annex'!$K$1:$BA$5047,MATCH(L$1&\"|\"&$B19,'Data Annex'!$K$1:$K$5047,0),MATCH(L$2,'Data Annex'!$K$1:$BA$1,0)),\"\")","v":0.4118302351},{"$f":"IFERROR(INDEX('Data Annex'!$K$1:$BA$5047,MATCH(M$1&\"|\"&$B19,'Data Annex'!$K$1:$K$5047,0),MATCH(M$2,'Data Annex'!$K$1:$BA$1,0)),\"\")","v":0},{"$f":"IFERROR(INDEX('Data Annex'!$K$1:$BA$5047,MATCH(N$1&\"|\"&$B19,'Data Annex'!$K$1:$K$5047,0),MATCH(N$2,'Data Annex'!$K$1:$BA$1,0)),\"\")","v":0.49245536369999998},{"$f":"IFERROR(INDEX('Data Annex'!$K$1:$BA$5047,MATCH(O$1&\"|\"&$B19,'Data Annex'!$K$1:$K$5047,0),MATCH(O$2,'Data Annex'!$K$1:$BA$1,0)),\"\")","v":0.51203988010000001},{"$f":"IFERROR(INDEX('Data Annex'!$K$1:$BA$5047,MATCH(P$1&\"|\"&$B19,'Data Annex'!$K$1:$K$5047,0),MATCH(P$2,'Data Annex'!$K$1:$BA$1,0)),\"\")","v":0.581171573},{"$f":"IFERROR(INDEX('Data Annex'!$K$1:$BA$5047,MATCH(Q$1&\"|\"&$B19,'Data Annex'!$K$1:$K$5047,0),MATCH(Q$2,'Data Annex'!$K$1:$BA$1,0)),\"\")","v":0},{"$f":"IFERROR(INDEX('Data Annex'!$K$1:$BA$5047,MATCH(R$1&\"|\"&$B19,'Data Annex'!$K$1:$K$5047,0),MATCH(R$2,'Data Annex'!$K$1:$BA$1,0)),\"\")","v":0.12579073069999999},{"$f":"IFERROR(INDEX('Data Annex'!$K$1:$BA$5047,MATCH(S$1&\"|\"&$B19,'Data Annex'!$K$1:$K$5047,0),MATCH(S$2,'Data Annex'!$K$1:$BA$1,0)),\"\")","v":0.1905314907},{"$f":"IFERROR(INDEX('Data Annex'!$K$1:$BA$5047,MATCH(T$1&\"|\"&$B19,'Data Annex'!$K$1:$K$5047,0),MATCH(T$2,'Data Annex'!$K$1:$BA$1,0)),\"\")","v":0.25773554170000001},{"$f":"IFERROR(INDEX('Data Annex'!$K$1:$BA$5047,MATCH(U$1&\"|\"&$B19,'Data Annex'!$K$1:$K$5047,0),MATCH(U$2,'Data Annex'!$K$1:$BA$1,0)),\"\")","v":0},{"$f":"IFERROR(INDEX('Data Annex'!$K$1:$BA$5047,MATCH(V$1&\"|\"&$B19,'Data Annex'!$K$1:$K$5047,0),MATCH(V$2,'Data Annex'!$K$1:$BA$1,0)),\"\")","v":1.7885841999999999E-2},{"$f":"IFERROR(INDEX('Data Annex'!$K$1:$BA$5047,MATCH(W$1&\"|\"&$B19,'Data Annex'!$K$1:$K$5047,0),MATCH(W$2,'Data Annex'!$K$1:$BA$1,0)),\"\")","v":2.1394613699999999E-2},{"$f":"IFERROR(INDEX('Data Annex'!$K$1:$BA$5047,MATCH(X$1&\"|\"&$B19,'Data Annex'!$K$1:$K$5047,0),MATCH(X$2,'Data Annex'!$K$1:$BA$1,0)),\"\")","v":6.4538423900000003E-2},{"$f":"IFERROR(INDEX('Data Annex'!$K$1:$BA$5047,MATCH(Y$1&\"|\"&$B19,'Data Annex'!$K$1:$K$5047,0),MATCH(Y$2,'Data Annex'!$K$1:$BA$1,0)),\"\")","v":0},{"$f":"IFERROR(INDEX('Data Annex'!$K$1:$BA$5047,MATCH(Z$1&\"|\"&$B19,'Data Annex'!$K$1:$K$5047,0),MATCH(Z$2,'Data Annex'!$K$1:$BA$1,0)),\"\")","v":0.14610865470000001},{"$f":"IFERROR(INDEX('Data Annex'!$K$1:$BA$5047,MATCH(AA$1&\"|\"&$B19,'Data Annex'!$K$1:$K$5047,0),MATCH(AA$2,'Data Annex'!$K$1:$BA$1,0)),\"\")","v":0.22215560039999999},{"$f":"IFERROR(INDEX('Data Annex'!$K$1:$BA$5047,MATCH(AB$1&\"|\"&$B19,'Data Annex'!$K$1:$K$5047,0),MATCH(AB$2,'Data Annex'!$K$1:$BA$1,0)),\"\")","v":0.13740923760000001}]
[7,"DK",null,"DK",{"$f":"IFERROR(INDEX('Data Annex'!$K$1:$BA$5047,MATCH(E$1&\"|\"&$B20,'Data Annex'!$K$1:$K$5047,0),MATCH(E$2,'Data Annex'!$K$1:$BA$1,0)),\"\")","v":""},{"$f":"IFERROR(INDEX('Data Annex'!$K$1:$BA$5047,MATCH(F$1&\"|\"&$B20,'Data Annex'!$K$1:$K$5047,0),MATCH(F$2,'Data Annex'!$K$1:$BA$1,0)),\"\")","v":""},{"$f":"IFERROR(INDEX('Data Annex'!$K$1:$BA$5047,MATCH(G$1&\"|\"&$B20,'Data Annex'!$K$1:$K$5047,0),MATCH(G$2,'Data Annex'!$K$1:$BA$1,0)),\"\")","v":""},{"$f":"IFERROR(INDEX('Data Annex'!$K$1:$BA$5047,MATCH(H$1&\"|\"&$B20,'Data Annex'!$K$1:$K$5047,0),MATCH(H$2,'Data Annex'!$K$1:$BA$1,0)),\"\")","v":""},{"$f":"IFERROR(INDEX('Data Annex'!$K$1:$BA$5047,MATCH(I$1&\"|\"&$B20,'Data Annex'!$K$1:$K$5047,0),MATCH(I$2,'Data Annex'!$K$1:$BA$1,0)),\"\")","v":0},{"$f":"IFERROR(INDEX('Data Annex'!$K$1:$BA$5047,MATCH(J$1&\"|\"&$B20,'Data Annex'!$K$1:$K$5047,0),MATCH(J$2,'Data Annex'!$K$1:$BA$1,0)),\"\")","v":0},{"$f":"IFERROR(INDEX('Data Annex'!$K$1:$BA$5047,MATCH(K$1&\"|\"&$B20,'Data Annex'!$K$1:$K$5047,0),MATCH(K$2,'Data Annex'!$K$1:$BA$1,0)),\"\")","v":0},{"$f":"IFERROR(INDEX('Data Annex'!$K$1:$BA$5047,MATCH(L$1&\"|\"&$B20,'Data Annex'!$K$1:$K$5047,0),MATCH(L$2,'Data Annex'!$K$1:$BA$1,0)),\"\")","v":0},{"$f":"IFERROR(INDEX('Data Annex'!$K$1:$BA$5047,MATCH(M$1&\"|\"&$B20,'Data Annex'!$K$1:$K$5047,0),MATCH(M$2,'Data Annex'!$K$1:$BA$1,0)),\"\")","v":0},{"$f":"IFERROR(INDEX('Data Annex'!$K$1:$BA$5047,MATCH(N$1&\"|\"&$B20,'Data Annex'!$K$1:$K$5047,0),MATCH(N$2,'Data Annex'!$K$1:$BA$1,0)),\"\")","v":0},{"$f":"IFERROR(INDEX('Data Annex'!$K$1:$BA$5047,MATCH(O$1&\"|\"&$B20,'Data Annex'!$K$1:$K$5047,0),MATCH(O$2,'Data Annex'!$K$1:$BA$1,0)),\"\")","v":0},{"$f":"IFERROR(INDEX('Data Annex'!$K$1:$BA$5047,MATCH(P$1&\"|\"&$B20,'Data Annex'!$K$1:$K$5047,0),MATCH(P$2,'Data Annex'!$K$1:$BA$1,0)),\"\")","v":0},{"$f":"IFERROR(INDEX('Data Annex'!$K$1:$BA$5047,MATCH(Q$1&\"|\"&$B20,'Data Annex'!$K$1:$K$5047,0),MATCH(Q$2,'Data Annex'!$K$1:$BA$1,0)),\"\")","v":0},{"$f":"IFERROR(INDEX('Data Annex'!$K$1:$BA$5047,MATCH(R$1&\"|\"&$B20,'Data Annex'!$K$1:$K$5047,0),MATCH(R$2,'Data Annex'!$K$1:$BA$1,0)),\"\")","v":0},{"$f":"IFERROR(INDEX('Data Annex'!$K$1:$BA$5047,MATCH(S$1&\"|\"&$B20,'Data Annex'!$K$1:$K$5047,0),MATCH(S$2,'Data Annex'!$K$1:$BA$1,0)),\"\")","v":0},{"$f":"IFERROR(INDEX('Data Annex'!$K$1:$BA$5047,MATCH(T$1&\"|\"&$B20,'Data Annex'!$K$1:$K$5047,0),MATCH(T$2,'Data Annex'!$K$1:$BA$1,0)),\"\")","v":0},{"$f":"IFERROR(INDEX('Data Annex'!$K$1:$BA$5047,MATCH(U$1&\"|\"&$B20,'Data Annex'!$K$1:$K$5047,0),MATCH(U$2,'Data Annex'!$K$1:$BA$1,0)),\"\")","v":0},{"$f":"IFERROR(INDEX('Data Annex'!$K$1:$BA$5047,MATCH(V$1&\"|\"&$B20,'Data Annex'!$K$1:$K$5047,0),MATCH(V$2,'Data Annex'!$K$1:$BA$1,0)),\"\")","v":0},{"$f":"IFERROR(INDEX('Data Annex'!$K$1:$BA$5047,MATCH(W$1&\"|\"&$B20,'Data Annex'!$K$1:$K$5047,0),MATCH(W$2,'Data Annex'!$K$1:$BA$1,0)),\"\")","v":0},{"$f":"IFERROR(INDEX('Data Annex'!$K$1:$BA$5047,MATCH(X$1&\"|\"&$B20,'Data Annex'!$K$1:$K$5047,0),MATCH(X$2,'Data Annex'!$K$1:$BA$1,0)),\"\")","v":0},{"$f":"IFERROR(INDEX('Data Annex'!$K$1:$BA$5047,MATCH(Y$1&\"|\"&$B20,'Data Annex'!$K$1:$K$5047,0),MATCH(Y$2,'Data Annex'!$K$1:$BA$1,0)),\"\")","v":0},{"$f":"IFERROR(INDEX('Data Annex'!$K$1:$BA$5047,MATCH(Z$1&\"|\"&$B20,'Data Annex'!$K$1:$K$5047,0),MATCH(Z$2,'Data Annex'!$K$1:$BA$1,0)),\"\")","v":0},{"$f":"IFERROR(INDEX('Data Annex'!$K$1:$BA$5047,MATCH(AA$1&\"|\"&$B20,'Data Annex'!$K$1:$K$5047,0),MATCH(AA$2,'Data Annex'!$K$1:$BA$1,0)),\"\")","v":0},{"$f":"IFERROR(INDEX('Data Annex'!$K$1:$BA$5047,MATCH(AB$1&\"|\"&$B20,'Data Annex'!$K$1:$K$5047,0),MATCH(AB$2,'Data Annex'!$K$1:$BA$1,0)),\"\")","v":0}]
[8,"EE",null,"EE",{"$f":"IFERROR(INDEX('Data Annex'!$K$1:$BA$5047,MATCH(E$1&\"|\"&$B21,'Data Annex'!$K$1:$K$5047,0),MATCH(E$2,'Data Annex'!$K$1:$BA$1,0)),\"\")","v":0},{"$f":"IFERROR(INDEX('Data Annex'!$K$1:$BA$5047,MATCH(F$1&\"|\"&$B21,'Data Annex'!$K$1:$K$5047,0),MATCH(F$2,'Data Annex'!$K$1:$BA$1,0)),\"\")","v":1.0104177985},{"$f":"IFERROR(INDEX('Data Annex'!$K$1:$BA$5047,MATCH(G$1&\"|\"&$B21,'Data Annex'!$K$1:$K$5047,0),MATCH(G$2,'Data Annex'!$K$1:$BA$1,0)),\"\")","v":0.72852285080000001},{"$f":"IFERROR(INDEX('Data Annex'!$K$1:$BA$5047,MATCH(H$1&\"|\"&$B21,'Data Annex'!$K$1:$K$5047,0),MATCH(H$2,'Data Annex'!$K$1:$BA$1,0)),\"\")","v":0.24136827359999999},{"$f":"IFERROR(INDEX('Data Annex'!$K$1:$BA$5047,MATCH(I$1&\"|\"&$B21,'Data Annex'!$K$1:$K$5047,0),MATCH(I$2,'Data Annex'!$K$1:$BA$1,0)),\"\")","v":0},{"$f":"IFERROR(INDEX('Data Annex'!$K$1:$BA$5047,MATCH(J$1&\"|\"&$B21,'Data Annex'!$K$1:$K$5047,0),MATCH(J$2,'Data Annex'!$K$1:$BA$1,0)),\"\")","v":0.51110255309999997},{"$f":"IFERROR(INDEX('Data Annex'!$K$1:$BA$5047,MATCH(K$1&\"|\"&$B21,'Data Annex'!$K$1:$K$5047,0),MATCH(K$2,'Data Annex'!$K$1:$BA$1,0)),\"\")","v":0.57099467120000003},{"$f":"IFERROR(INDEX('Data Annex'!$K$1:$BA$5047,MATCH(L$1&\"|\"&$B21,'Data Annex'!$K$1:$K$5047,0),MATCH(L$2,'Data Annex'!$K$1:$BA$1,0)),\"\")","v":0.68766948589999999},{"$f":"IFERROR(INDEX('Data Annex'!$K$1:$BA$5047,MATCH(M$1&\"|\"&$B21,'Data Annex'!$K$1:$K$5047,0),MATCH(M$2,'Data Annex'!$K$1:$BA$1,0)),\"\")","v":0},{"$f":"IFERROR(INDEX('Data Annex'!$K$1:$BA$5047,MATCH(N$1&\"|\"&$B21,'Data Annex'!$K$1:$K$5047,0),MATCH(N$2,'Data Annex'!$K$1:$BA$1,0)),\"\")","v":0.48442372230000003},{"$f":"IFERROR(INDEX('Data Annex'!$K$1:$BA$5047,MATCH(O$1&\"|\"&$B21,'Data Annex'!$K$1:$K$5047,0),MATCH(O$2,'Data Annex'!$K$1:$BA$1,0)),\"\")","v":0.42426336219999999},{"$f":"IFERROR(INDEX('Data Annex'!$K$1:$BA$5047,MATCH(P$1&\"|\"&$B21,'Data Annex'!$K$1:$K$5047,0),MATCH(P$2,'Data Annex'!$K$1:$BA$1,0)),\"\")","v":0.31233051410000001},{"$f":"IFERROR(INDEX('Data Annex'!$K$1:$BA$5047,MATCH(Q$1&\"|\"&$B21,'Data Annex'!$K$1:$K$5047,0),MATCH(Q$2,'Data Annex'!$K$1:$BA$1,0)),\"\")","v":0},{"$f":"IFERROR(INDEX('Data Annex'!$K$1:$BA$5047,MATCH(R$1&\"|\"&$B21,'Data Annex'!$K$1:$K$5047,0),MATCH(R$2,'Data Annex'!$K$1:$BA$1,0)),\"\")","v":0.236704577},{"$f":"IFERROR(INDEX('Data Annex'!$K$1:$BA$5047,MATCH(S$1&\"|\"&$B21,'Data Annex'!$K$1:$K$5047,0),MATCH(S$2,'Data Annex'!$K$1:$BA$1,0)),\"\")","v":0.2488342305},{"$f":"IFERROR(INDEX('Data Annex'!$K$1:$BA$5047,MATCH(T$1&\"|\"&$B21,'Data Annex'!$K$1:$K$5047,0),MATCH(T$2,'Data Annex'!$K$1:$BA$1,0)),\"\")","v":0.35358657919999997},{"$f":"IFERROR(INDEX('Data Annex'!$K$1:$BA$5047,MATCH(U$1&\"|\"&$B21,'Data Annex'!$K$1:$K$5047,0),MATCH(U$2,'Data Annex'!$K$1:$BA$1,0)),\"\")","v":0},{"$f":"IFERROR(INDEX('Data Annex'!$K$1:$BA$5047,MATCH(V$1&\"|\"&$B21,'Data Annex'!$K$1:$K$5047,0),MATCH(V$2,'Data Annex'!$K$1:$BA$1,0)),\"\")","v":4.5104445999999999E-3},{"$f":"IFERROR(INDEX('Data Annex'!$K$1:$BA$5047,MATCH(W$1&\"|\"&$B21,'Data Annex'!$K$1:$K$5047,0),MATCH(W$2,'Data Annex'!$K$1:$BA$1,0)),\"\")","v":7.8252592999999999E-3},{"$f":"IFERROR(INDEX('Data Annex'!$K$1:$BA$5047,MATCH(X$1&\"|\"&$B21,'Data Annex'!$K$1:$K$5047,0),MATCH(X$2,'Data Annex'!$K$1:$BA$1,0)),\"\")","v":1.8032529700000001E-2},{"$f":"IFERROR(INDEX('Data Annex'!$K$1:$BA$5047,MATCH(Y$1&\"|\"&$B21,'Data Annex'!$K$1:$K$5047,0),MATCH(Y$2,'Data Annex'!$K$1:$BA$1,0)),\"\")","v":0},{"$f":"IFERROR(INDEX('Data Annex'!$K$1:$BA$5047,MATCH(Z$1&\"|\"&$B21,'Data Annex'!$K$1:$K$5047,0),MATCH(Z$2,'Data Annex'!$K$1:$BA$1,0)),\"\")","v":0.13043415329999999},{"$f":"IFERROR(INDEX('Data Annex'!$K$1:$BA$5047,MATCH(AA$1&\"|\"&$B21,'Data Annex'!$K$1:$K$5047,0),MATCH(AA$2,'Data Annex'!$K$1:$BA$1,0)),\"\")","v":0.2246288196},{"$f":"IFERROR(INDEX('Data Annex'!$K$1:$BA$5047,MATCH(AB$1&\"|\"&$B21,'Data Annex'!$K$1:$K$5047,0),MATCH(AB$2,'Data Annex'!$K$1:$BA$1,0)),\"\")","v":0.24540003520000001}]
[9,"ES",null,"ES",{"$f":"IFERROR(INDEX('Data Annex'!$K$1:$BA$5047,MATCH(E$1&\"|\"&$B22,'Data Annex'!$K$1:$K$5047,0),MATCH(E$2,'Data Annex'!$K$1:$BA$1,0)),\"\")","v":0},{"$f":"IFERROR(INDEX('Data Annex'!$K$1:$BA$5047,MATCH(F$1&\"|\"&$B22,'Data Annex'!$K$1:$K$5047,0),MATCH(F$2,'Data Annex'!$K$1:$BA$1,0)),\"\")","v":150.27745669000001},{"$f":"IFERROR(INDEX('Data Annex'!$K$1:$BA$5047,MATCH(G$1&\"|\"&$B22,'Data Annex'!$K$1:$K$5047,0),MATCH(G$2,'Data Annex'!$K$1:$BA$1,0)),\"\")","v":83.811846099999997},{"$f":"IFERROR(INDEX('Data Annex'!$K$1:$BA$5047,MATCH(H$1&\"|\"&$B22,'Data Annex'!$K$1:$K$5047,0),MATCH(H$2,'Data Annex'!$K$1:$BA$1,0)),\"\")","v":57.909362358000003},{"$f":"IFERROR(INDEX('Data Annex'!$K$1:$BA$5047,MATCH(I$1&\"|\"&$B22,'Data Annex'!$K$1:$K$5047,0),MATCH(I$2,'Data Annex'!$K$1:$BA$1,0)),\"\")","v":0},{"$f":"IFERROR(INDEX('Data Annex'!$K$1:$BA$5047,MATCH(J$1&\"|\"&$B22,'Data Annex'!$K$1:$K$5047,0),MATCH(J$2,'Data Annex'!$K$1:$BA$1,0)),\"\")","v":0.74373045069999999},{"$f":"IFERROR(INDEX('Data Annex'!$K$1:$BA$5047,MATCH(K$1&\"|\"&$B22,'Data Annex'!$K$1:$K$5047,0),MATCH(K$2,'Data Annex'!$K$1:$BA$1,0)),\"\")","v":0.72534384760000004},{"$f":"IFERROR(INDEX('Data Annex'!$K$1:$BA$5047,MATCH(L$1&\"|\"&$B22,'Data Annex'!$K$1:$K$5047,0),MATCH(L$2,'Data Annex'!$K$1:$BA$1,0)),\"\")","v":0.77435329139999998},{"$f":"IFERROR(INDEX('Data Annex'!$K$1:$BA$5047,MATCH(M$1&\"|\"&$B22,'Data Annex'!$K$1:$K$5047,0),MATCH(M$2,'Data Annex'!$K$1:$BA$1,0)),\"\")","v":0},{"$f":"IFERROR(INDEX('Data Annex'!$K$1:$BA$5047,MATCH(N$1&\"|\"&$B22,'Data Annex'!$K$1:$K$5047,0),MATCH(N$2,'Data Annex'!$K$1:$BA$1,0)),\"\")","v":0.25396448049999998},{"$f":"IFERROR(INDEX('Data Annex'!$K$1:$BA$5047,MATCH(O$1&\"|\"&$B22,'Data Annex'!$K$1:$K$5047,0),MATCH(O$2,'Data Annex'!$K$1:$BA$1,0)),\"\")","v":0.27298143959999999},{"$f":"IFERROR(INDEX('Data Annex'!$K$1:$BA$5047,MATCH(P$1&\"|\"&$B22,'Data Annex'!$K$1:$K$5047,0),MATCH(P$2,'Data Annex'!$K$1:$BA$1,0)),\"\")","v":0.2241039863},{"$f":"IFERROR(INDEX('Data Annex'!$K$1:$BA$5047,MATCH(Q$1&\"|\"&$B22,'Data Annex'!$K$1:$K$5047,0),MATCH(Q$2,'Data Annex'!$K$1:$BA$1,0)),\"\")","v":0},{"$f":"IFERROR(INDEX('Data Annex'!$K$1:$BA$5047,MATCH(R$1&\"|\"&$B22,'Data Annex'!$K$1:$K$5047,0),MATCH(R$2,'Data Annex'!$K$1:$BA$1,0)),\"\")","v":0.159960774},{"$f":"IFERROR(INDEX('Data Annex'!$K$1:$BA$5047,MATCH(S$1&\"|\"&$B22,'Data Annex'!$K$1:$K$5047,0),MATCH(S$2,'Data Annex'!$K$1:$BA$1,0)),\"\")","v":0.1794506186},{"$f":"IFERROR(INDEX('Data Annex'!$K$1:$BA$5047,MATCH(T$1&\"|\"&$B22,'Data Annex'!$K$1:$K$5047,0),MATCH(T$2,'Data Annex'!$K$1:$BA$1,0)),\"\")","v":0.2604812433},{"$f":"IFERROR(INDEX('Data Annex'!$K$1:$BA$5047,MATCH(U$1&\"|\"&$B22,'Data Annex'!$K$1:$K$5047,0),MATCH(U$2,'Data Annex'!$K$1:$BA$1,0)),\"\")","v":0},{"$f":"IFERROR(INDEX('Data Annex'!$K$1:$BA$5047,MATCH(V$1&\"|\"&$B22,'Data Annex'!$K$1:$K$5047,0),MATCH(V$2,'Data Annex'!$K$1:$BA$1,0)),\"\")","v":2.3498724200000001E-2},{"$f":"IFERROR(INDEX('Data Annex'!$K$1:$BA$5047,MATCH(W$1&\"|\"&$B22,'Data Annex'!$K$1:$K$5047,0),MATCH(W$2,'Data Annex'!$K$1:$BA$1,0)),\"\")","v":3.87456168E-2},{"$f":"IFERROR(INDEX('Data Annex'!$K$1:$BA$5047,MATCH(X$1&\"|\"&$B22,'Data Annex'!$K$1:$K$5047,0),MATCH(X$2,'Data Annex'!$K$1:$BA$1,0)),\"\")","v":5.1343163300000001E-2},{"$f":"IFERROR(INDEX('Data Annex'!$K$1:$BA$5047,MATCH(Y$1&\"|\"&$B22,'Data Annex'!$K$1:$K$5047,0),MATCH(Y$2,'Data Annex'!$K$1:$BA$1,0)),\"\")","v":0},{"$f":"IFERROR(INDEX('Data Annex'!$K$1:$BA$5047,MATCH(Z$1&\"|\"&$B22,'Data Annex'!$K$1:$K$5047,0),MATCH(Z$2,'Data Annex'!$K$1:$BA$1,0)),\"\")","v":0.24432595030000001},{"$f":"IFERROR(INDEX('Data Annex'!$K$1:$BA$5047,MATCH(AA$1&\"|\"&$B22,'Data Annex'!$K$1:$K$5047,0),MATCH(AA$2,'Data Annex'!$K$1:$BA$1,0)),\"\")","v":0.22587408719999999},{"$f":"IFERROR(INDEX('Data Annex'!$K$1:$BA$5047,MATCH(AB$1&\"|\"&$B22,'Data Annex'!$K$1:$K$5047,0),MATCH(AB$2,'Data Annex'!$K$1:$BA$1,0)),\"\")","v":0.2406567272}]
[10,"FI",null,"FI",{"$f":"IFERROR(INDEX('Data Annex'!$K$1:$BA$5047,MATCH(E$1&\"|\"&$B23,'Data Annex'!$K$1:$K$5047,0),MATCH(E$2,'Data Annex'!$K$1:$BA$1,0)),\"\")","v":0},{"$f":"IFERROR(INDEX('Data Annex'!$K$1:$BA$5047,MATCH(F$1&\"|\"&$B23,'Data Annex'!$K$1:$K$5047,0),MATCH(F$2,'Data Annex'!$K$1:$BA$1,0)),\"\")","v":16.354549235},{"$f":"IFERROR(INDEX('Data Annex'!$K$1:$BA$5047,MATCH(G$1&\"|\"&$B23,'Data Annex'!$K$1:$K$5047,0),MATCH(G$2,'Data Annex'!$K$1:$BA$1,0)),\"\")","v":15.008520735999999},{"$f":"IFERROR(INDEX('Data Annex'!$K$1:$BA$5047,MATCH(H$1&\"|\"&$B23,'Data Annex'!$K$1:$K$5047,0),MATCH(H$2,'Data Annex'!$K$1:$BA$1,0)),\"\")","v":7.3220398995},{"$f":"IFERROR(INDEX('Data Annex'!$K$1:$BA$5047,MATCH(I$1&\"|\"&$B23,'Data Annex'!$K$1:$K$5047,0),MATCH(I$2,'Data Annex'!$K$1:$BA$1,0)),\"\")","v":0},{"$f":"IFERROR(INDEX('Data Annex'!$K$1:$BA$5047,MATCH(J$1&\"|\"&$B23,'Data Annex'!$K$1:$K$5047,0),MATCH(J$2,'Data Annex'!$K$1:$BA$1,0)),\"\")","v":0.73653395649999998},{"$f":"IFERROR(INDEX('Data Annex'!$K$1:$BA$5047,MATCH(K$1&\"|\"&$B23,'Data Annex'!$K$1:$K$5047,0),MATCH(K$2,'Data Annex'!$K$1:$BA$1,0)),\"\")","v":0.72589268699999998},{"$f":"IFERROR(INDEX('Data Annex'!$K$1:$BA$5047,MATCH(L$1&\"|\"&$B23,'Data Annex'!$K$1:$K$5047,0),MATCH(L$2,'Data Annex'!$K$1:$BA$1,0)),\"\")","v":0.99973538390000005},{"$f":"IFERROR(INDEX('Data Annex'!$K$1:$BA$5047,MATCH(M$1&\"|\"&$B23,'Data Annex'!$K$1:$K$5047,0),MATCH(M$2,'Data Annex'!$K$1:$BA$1,0)),\"\")","v":0},{"$f":"IFERROR(INDEX('Data Annex'!$K$1:$BA$5047,MATCH(N$1&\"|\"&$B23,'Data Annex'!$K$1:$K$5047,0),MATCH(N$2,'Data Annex'!$K$1:$BA$1,0)),\"\")","v":0.26346232469999997},{"$f":"IFERROR(INDEX('Data Annex'!$K$1:$BA$5047,MATCH(O$1&\"|\"&$B23,'Data Annex'!$K$1:$K$5047,0),MATCH(O$2,'Data Annex'!$K$1:$BA$1,0)),\"\")","v":0.27410326070000002},{"$f":"IFERROR(INDEX('Data Annex'!$K$1:$BA$5047,MATCH(P$1&\"|\"&$B23,'Data Annex'!$K$1:$K$5047,0),MATCH(P$2,'Data Annex'!$K$1:$BA$1,0)),\"\")","v":2.646161E-4},{"$f":"IFERROR(INDEX('Data Annex'!$K$1:$BA$5047,MATCH(Q$1&\"|\"&$B23,'Data Annex'!$K$1:$K$5047,0),MATCH(Q$2,'Data Annex'!$K$1:$BA$1,0)),\"\")","v":0},{"$f":"IFERROR(INDEX('Data Annex'!$K$1:$BA$5047,MATCH(R$1&\"|\"&$B23,'Data Annex'!$K$1:$K$5047,0),MATCH(R$2,'Data Annex'!$K$1:$BA$1,0)),\"\")","v":7.7640587400000002E-2},{"$f":"IFERROR(INDEX('Data Annex'!$K$1:$BA$5047,MATCH(S$1&\"|\"&$B23,'Data Annex'!$K$1:$K$5047,0),MATCH(S$2,'Data Annex'!$K$1:$BA$1,0)),\"\")","v":7.3365418500000001E-2},{"$f":"IFERROR(INDEX('Data Annex'!$K$1:$BA$5047,MATCH(T$1&\"|\"&$B23,'Data Annex'!$K$1:$K$5047,0),MATCH(T$2,'Data Annex'!$K$1:$BA$1,0)),\"\")","v":1.68961275E-2},{"$f":"IFERROR(INDEX('Data Annex'!$K$1:$BA$5047,MATCH(U$1&\"|\"&$B23,'Data Annex'!$K$1:$K$5047,0),MATCH(U$2,'Data Annex'!$K$1:$BA$1,0)),\"\")","v":0},{"$f":"IFERROR(INDEX('Data Annex'!$K$1:$BA$5047,MATCH(V$1&\"|\"&$B23,'Data Annex'!$K$1:$K$5047,0),MATCH(V$2,'Data Annex'!$K$1:$BA$1,0)),\"\")","v":6.390588E-3},{"$f":"IFERROR(INDEX('Data Annex'!$K$1:$BA$5047,MATCH(W$1&\"|\"&$B23,'Data Annex'!$K$1:$K$5047,0),MATCH(W$2,'Data Annex'!$K$1:$BA$1,0)),\"\")","v":1.0229684399999999E-2},{"$f":"IFERROR(INDEX('Data Annex'!$K$1:$BA$5047,MATCH(X$1&\"|\"&$B23,'Data Annex'!$K$1:$K$5047,0),MATCH(X$2,'Data Annex'!$K$1:$BA$1,0)),\"\")","v":1.5255325E-3},{"$f":"IFERROR(INDEX('Data Annex'!$K$1:$BA$5047,MATCH(Y$1&\"|\"&$B23,'Data Annex'!$K$1:$K$5047,0),MATCH(Y$2,'Data Annex'!$K$1:$BA$1,0)),\"\")","v":0},{"$f":"IFERROR(INDEX('Data Annex'!$K$1:$BA$5047,MATCH(Z$1&\"|\"&$B23,'Data Annex'!$K$1:$K$5047,0),MATCH(Z$2,'Data Annex'!$K$1:$BA$1,0)),\"\")","v":0.1048541025},{"$f":"IFERROR(INDEX('Data Annex'!$K$1:$BA$5047,MATCH(AA$1&\"|\"&$B23,'Data Annex'!$K$1:$K$5047,0),MATCH(AA$2,'Data Annex'!$K$1:$BA$1,0)),\"\")","v":0.17033759609999999},{"$f":"IFERROR(INDEX('Data Annex'!$K$1:$BA$5047,MATCH(AB$1&\"|\"&$B23,'Data Annex'!$K$1:$K$5047,0),MATCH(AB$2,'Data Annex'!$K$1:$BA$1,0)),\"\")","v":4.5119923800000003E-2}]
[11,"FR",null,"FR",{"$f":"IFERROR(INDEX('Data Annex'!$K$1:$BA$5047,MATCH(E$1&\"|\"&$B24,'Data Annex'!$K$1:$K$5047,0),MATCH(E$2,'Data Annex'!$K$1:$BA$1,0)),\"\")","v":0},{"$f":"IFERROR(INDEX('Data Annex'!$K$1:$BA$5047,MATCH(F$1&\"|\"&$B24,'Data Annex'!$K$1:$K$5047,0),MATCH(F$2,'Data Annex'!$K$1:$BA$1,0)),\"\")","v":249.81418149999999},{"$f":"IFERROR(INDEX('Data Annex'!$K$1:$BA$5047,MATCH(G$1&\"|\"&$B24,'Data Annex'!$K$1:$K$5047,0),MATCH(G$2,'Data Annex'!$K$1:$BA$1,0)),\"\")","v":131.21257681},{"$f":"IFERROR(INDEX('Data Annex'!$K$1:$BA$5047,MATCH(H$1&\"|\"&$B24,'Data Annex'!$K$1:$K$5047,0),MATCH(H$2,'Data Annex'!$K$1:$BA$1,0)),\"\")","v":41.437389416999999},{"$f":"IFERROR(INDEX('Data Annex'!$K$1:$BA$5047,MATCH(I$1&\"|\"&$B24,'Data Annex'!$K$1:$K$5047,0),MATCH(I$2,'Data Annex'!$K$1:$BA$1,0)),\"\")","v":0},{"$f":"IFERROR(INDEX('Data Annex'!$K$1:$BA$5047,MATCH(J$1&\"|\"&$B24,'Data Annex'!$K$1:$K$5047,0),MATCH(J$2,'Data Annex'!$K$1:$BA$1,0)),\"\")","v":0.14158507910000001},{"$f":"IFERROR(INDEX('Data Annex'!$K$1:$BA$5047,MATCH(K$1&\"|\"&$B24,'Data Annex'!$K$1:$K$5047,0),MATCH(K$2,'Data Annex'!$K$1:$BA$1,0)),\"\")","v":0.13551984210000001},{"$f":"IFERROR(INDEX('Data Annex'!$K$1:$BA$5047,MATCH(L$1&\"|\"&$B24,'Data Annex'!$K$1:$K$5047,0),MATCH(L$2,'Data Annex'!$K$1:$BA$1,0)),\"\")","v":0.19869126479999999},{"$f":"IFERROR(INDEX('Data Annex'!$K$1:$BA$5047,MATCH(M$1&\"|\"&$B24,'Data Annex'!$K$1:$K$5047,0),MATCH(M$2,'Data Annex'!$K$1:$BA$1,0)),\"\")","v":0},{"$f":"IFERROR(INDEX('Data Annex'!$K$1:$BA$5047,MATCH(N$1&\"|\"&$B24,'Data Annex'!$K$1:$K$5047,0),MATCH(N$2,'Data Annex'!$K$1:$BA$1,0)),\"\")","v":0.84078493050000003},{"$f":"IFERROR(INDEX('Data Annex'!$K$1:$BA$5047,MATCH(O$1&\"|\"&$B24,'Data Annex'!$K$1:$K$5047,0),MATCH(O$2,'Data Annex'!$K$1:$BA$1,0)),\"\")","v":0.85208168969999998},{"$f":"IFERROR(INDEX('Data Annex'!$K$1:$BA$5047,MATCH(P$1&\"|\"&$B24,'Data Annex'!$K$1:$K$5047,0),MATCH(P$2,'Data Annex'!$K$1:$BA$1,0)),\"\")","v":0.78132145279999998},{"$f":"IFERROR(INDEX('Data Annex'!$K$1:$BA$5047,MATCH(Q$1&\"|\"&$B24,'Data Annex'!$K$1:$K$5047,0),MATCH(Q$2,'Data Annex'!$K$1:$BA$1,0)),\"\")","v":0},{"$f":"IFERROR(INDEX('Data Annex'!$K$1:$BA$5047,MATCH(R$1&\"|\"&$B24,'Data Annex'!$K$1:$K$5047,0),MATCH(R$2,'Data Annex'!$K$1:$BA$1,0)),\"\")","v":0.1127498192},{"$f":"IFERROR(INDEX('Data Annex'!$K$1:$BA$5047,MATCH(S$1&\"|\"&$B24,'Data Annex'!$K$1:$K$5047,0),MATCH(S$2,'Data Annex'!$K$1:$BA$1,0)),\"\")","v":0.1278100428},{"$f":"IFERROR(INDEX('Data Annex'!$K$1:$BA$5047,MATCH(T$1&\"|\"&$B24,'Data Annex'!$K$1:$K$5047,0),MATCH(T$2,'Data Annex'!$K$1:$BA$1,0)),\"\")","v":0.21155509610000001},{"$f":"IFERROR(INDEX('Data Annex'!$K$1:$BA$5047,MATCH(U$1&\"|\"&$B24,'Data Annex'!$K$1:$K$5047,0),MATCH(U$2,'Data Annex'!$K$1:$BA$1,0)),\"\")","v":0},{"$f":"IFERROR(INDEX('Data Annex'!$K$1:$BA$5047,MATCH(V$1&\"|\"&$B24,'Data Annex'!$K$1:$K$5047,0),MATCH(V$2,'Data Annex'!$K$1:$BA$1,0)),\"\")","v":1.0876621600000001E-2},{"$f":"IFERROR(INDEX('Data Annex'!$K$1:$BA$5047,MATCH(W$1&\"|\"&$B24,'Data Annex'!$K$1:$K$5047,0),MATCH(W$2,'Data Annex'!$K$1:$BA$1,0)),\"\")","v":1.5771372799999999E-2},{"$f":"IFERROR(INDEX('Data Annex'!$K$1:$BA$5047,MATCH(X$1&\"|\"&$B24,'Data Annex'!$K$1:$K$5047,0),MATCH(X$2,'Data Annex'!$K$1:$BA$1,0)),\"\")","v":2.5127298999999999E-2},{"$f":"IFERROR(INDEX('Data Annex'!$K$1:$BA$5047,MATCH(Y$1&\"|\"&$B24,'Data Annex'!$K$1:$K$5047,0),MATCH(Y$2,'Data Annex'!$K$1:$BA$1,0)),\"\")","v":0},{"$f":"IFERROR(INDEX('Data Annex'!$K$1:$BA$5047,MATCH(Z$1&\"|\"&$B24,'Data Annex'!$K$1:$K$5047,0),MATCH(Z$2,'Data Annex'!$K$1:$BA$1,0)),\"\")","v":0.232153101},{"$f":"IFERROR(INDEX('Data Annex'!$K$1:$BA$5047,MATCH(AA$1&\"|\"&$B24,'Data Annex'!$K$1:$K$5047,0),MATCH(AA$2,'Data Annex'!$K$1:$BA$1,0)),\"\")","v":0.26128001159999997},{"$f":"IFERROR(INDEX('Data Annex'!$K$1:$BA$5047,MATCH(AB$1&\"|\"&$B24,'Data Annex'!$K$1:$K$5047,0),MATCH(AB$2,'Data Annex'!$K$1:$BA$1,0)),\"\")","v":0.25537465999999998}]
[14,"GR",null,"GR",{"$f":"IFERROR(INDEX('Data Annex'!$K$1:$BA$5047,MATCH(E$1&\"|\"&$B25,'Data Annex'!$K$1:$K$5047,0),MATCH(E$2,'Data Annex'!$K$1:$BA$1,0)),\"\")","v":0},{"$f":"IFERROR(INDEX('Data Annex'!$K$1:$BA$5047,MATCH(F$1&\"|\"&$B25,'Data Annex'!$K$1:$K$5047,0),MATCH(F$2,'Data Annex'!$K$1:$BA$1,0)),\"\")","v":22.19093492},{"$f":"IFERROR(INDEX('Data Annex'!$K$1:$BA$5047,MATCH(G$1&\"|\"&$B25,'Data Annex'!$K$1:$K$5047,0),MATCH(G$2,'Data Annex'!$K$1:$BA$1,0)),\"\")","v":22.156758858},{"$f":"IFERROR(INDEX('Data Annex'!$K$1:$BA$5047,MATCH(H$1&\"|\"&$B25,'Data Annex'!$K$1:$K$5047,0),MATCH(H$2,'Data Annex'!$K$1:$BA$1,0)),\"\")","v":4.1080701821999996},{"$f":"IFERROR(INDEX('Data Annex'!$K$1:$BA$5047,MATCH(I$1&\"|\"&$B25,'Data Annex'!$K$1:$K$5047,0),MATCH(I$2,'Data Annex'!$K$1:$BA$1,0)),\"\")","v":0},{"$f":"IFERROR(INDEX('Data Annex'!$K$1:$BA$5047,MATCH(J$1&\"|\"&$B25,'Data Annex'!$K$1:$K$5047,0),MATCH(J$2,'Data Annex'!$K$1:$BA$1,0)),\"\")","v":0.49664642799999997},{"$f":"IFERROR(INDEX('Data Annex'!$K$1:$BA$5047,MATCH(K$1&\"|\"&$B25,'Data Annex'!$K$1:$K$5047,0),MATCH(K$2,'Data Annex'!$K$1:$BA$1,0)),\"\")","v":0.43322959280000001},{"$f":"IFERROR(INDEX('Data Annex'!$K$1:$BA$5047,MATCH(L$1&\"|\"&$B25,'Data Annex'!$K$1:$K$5047,0),MATCH(L$2,'Data Annex'!$K$1:$BA$1,0)),\"\")","v":7.7319020500000002E-2},{"$f":"IFERROR(INDEX('Data Annex'!$K$1:$BA$5047,MATCH(M$1&\"|\"&$B25,'Data Annex'!$K$1:$K$5047,0),MATCH(M$2,'Data Annex'!$K$1:$BA$1,0)),\"\")","v":0},{"$f":"IFERROR(INDEX('Data Annex'!$K$1:$BA$5047,MATCH(N$1&\"|\"&$B25,'Data Annex'!$K$1:$K$5047,0),MATCH(N$2,'Data Annex'!$K$1:$BA$1,0)),\"\")","v":0.4922462078},{"$f":"IFERROR(INDEX('Data Annex'!$K$1:$BA$5047,MATCH(O$1&\"|\"&$B25,'Data Annex'!$K$1:$K$5047,0),MATCH(O$2,'Data Annex'!$K$1:$BA$1,0)),\"\")","v":0.55526258920000005},{"$f":"IFERROR(INDEX('Data Annex'!$K$1:$BA$5047,MATCH(P$1&\"|\"&$B25,'Data Annex'!$K$1:$K$5047,0),MATCH(P$2,'Data Annex'!$K$1:$BA$1,0)),\"\")","v":0.87893007899999998},{"$f":"IFERROR(INDEX('Data Annex'!$K$1:$BA$5047,MATCH(Q$1&\"|\"&$B25,'Data Annex'!$K$1:$K$5047,0),MATCH(Q$2,'Data Annex'!$K$1:$BA$1,0)),\"\")","v":0},{"$f":"IFERROR(INDEX('Data Annex'!$K$1:$BA$5047,MATCH(R$1&\"|\"&$B25,'Data Annex'!$K$1:$K$5047,0),MATCH(R$2,'Data Annex'!$K$1:$BA$1,0)),\"\")","v":0.33529768700000001},{"$f":"IFERROR(INDEX('Data Annex'!$K$1:$BA$5047,MATCH(S$1&\"|\"&$B25,'Data Annex'!$K$1:$K$5047,0),MATCH(S$2,'Data Annex'!$K$1:$BA$1,0)),\"\")","v":0.32037125859999999},{"$f":"IFERROR(INDEX('Data Annex'!$K$1:$BA$5047,MATCH(T$1&\"|\"&$B25,'Data Annex'!$K$1:$K$5047,0),MATCH(T$2,'Data Annex'!$K$1:$BA$1,0)),\"\")","v":0.27892947379999999},{"$f":"IFERROR(INDEX('Data Annex'!$K$1:$BA$5047,MATCH(U$1&\"|\"&$B25,'Data Annex'!$K$1:$K$5047,0),MATCH(U$2,'Data Annex'!$K$1:$BA$1,0)),\"\")","v":0},{"$f":"IFERROR(INDEX('Data Annex'!$K$1:$BA$5047,MATCH(V$1&\"|\"&$B25,'Data Annex'!$K$1:$K$5047,0),MATCH(V$2,'Data Annex'!$K$1:$BA$1,0)),\"\")","v":0.19730503329999999},{"$f":"IFERROR(INDEX('Data Annex'!$K$1:$BA$5047,MATCH(W$1&\"|\"&$B25,'Data Annex'!$K$1:$K$5047,0),MATCH(W$2,'Data Annex'!$K$1:$BA$1,0)),\"\")","v":0.1749646373},{"$f":"IFERROR(INDEX('Data Annex'!$K$1:$BA$5047,MATCH(X$1&\"|\"&$B25,'Data Annex'!$K$1:$K$5047,0),MATCH(X$2,'Data Annex'!$K$1:$BA$1,0)),\"\")","v":7.0053758399999999E-2},{"$f":"IFERROR(INDEX('Data Annex'!$K$1:$BA$5047,MATCH(Y$1&\"|\"&$B25,'Data Annex'!$K$1:$K$5047,0),MATCH(Y$2,'Data Annex'!$K$1:$BA$1,0)),\"\")","v":0},{"$f":"IFERROR(INDEX('Data Annex'!$K$1:$BA$5047,MATCH(Z$1&\"|\"&$B25,'Data Annex'!$K$1:$K$5047,0),MATCH(Z$2,'Data Annex'!$K$1:$BA$1,0)),\"\")","v":0.23814802739999999},{"$f":"IFERROR(INDEX('Data Annex'!$K$1:$BA$5047,MATCH(AA$1&\"|\"&$B25,'Data Annex'!$K$1:$K$5047,0),MATCH(AA$2,'Data Annex'!$K$1:$BA$1,0)),\"\")","v":0.2410284681},{"$f":"IFERROR(INDEX('Data Annex'!$K$1:$BA$5047,MATCH(AB$1&\"|\"&$B25,'Data Annex'!$K$1:$K$5047,0),MATCH(AB$2,'Data Annex'!$K$1:$BA$1,0)),\"\")","v":0.25550725000000002}]
[14,"HR",null,"HR",{"$f":"IFERROR(INDEX('Data Annex'!$K$1:$BA$5047,MATCH(E$1&\"|\"&$B26,'Data Annex'!$K$1:$K$5047,0),MATCH(E$2,'Data Annex'!$K$1:$BA$1,0)),\"\")","v":0},{"$f":"IFERROR(INDEX('Data Annex'!$K$1:$BA$5047,MATCH(F$1&\"|\"&$B26,'Data Annex'!$K$1:$K$5047,0),MATCH(F$2,'Data Annex'!$K$1:$BA$1,0)),\"\")","v":3.1759071570000001},{"$f":"IFERROR(INDEX('Data Annex'!$K$1:$BA$5047,MATCH(G$1&\"|\"&$B26,'Data Annex'!$K$1:$K$5047,0),MATCH(G$2,'Data Annex'!$K$1:$BA$1,0)),\"\")","v":3.7953701969},{"$f":"IFERROR(INDEX('Data Annex'!$K$1:$BA$5047,MATCH(H$1&\"|\"&$B26,'Data Annex'!$K$1:$K$5047,0),MATCH(H$2,'Data Annex'!$K$1:$BA$1,0)),\"\")","v":2.6292618422},{"$f":"IFERROR(INDEX('Data Annex'!$K$1:$BA$5047,MATCH(I$1&\"|\"&$B26,'Data Annex'!$K$1:$K$5047,0),MATCH(I$2,'Data Annex'!$K$1:$BA$1,0)),\"\")","v":0},{"$f":"IFERROR(INDEX('Data Annex'!$K$1:$BA$5047,MATCH(J$1&\"|\"&$B26,'Data Annex'!$K$1:$K$5047,0),MATCH(J$2,'Data Annex'!$K$1:$BA$1,0)),\"\")","v":0.26345653959999998},{"$f":"IFERROR(INDEX('Data Annex'!$K$1:$BA$5047,MATCH(K$1&\"|\"&$B26,'Data Annex'!$K$1:$K$5047,0),MATCH(K$2,'Data Annex'!$K$1:$BA$1,0)),\"\")","v":0.18475129900000001},{"$f":"IFERROR(INDEX('Data Annex'!$K$1:$BA$5047,MATCH(L$1&\"|\"&$B26,'Data Annex'!$K$1:$K$5047,0),MATCH(L$2,'Data Annex'!$K$1:$BA$1,0)),\"\")","v":0.10112675140000001},{"$f":"IFERROR(INDEX('Data Annex'!$K$1:$BA$5047,MATCH(M$1&\"|\"&$B26,'Data Annex'!$K$1:$K$5047,0),MATCH(M$2,'Data Annex'!$K$1:$BA$1,0)),\"\")","v":0},{"$f":"IFERROR(INDEX('Data Annex'!$K$1:$BA$5047,MATCH(N$1&\"|\"&$B26,'Data Annex'!$K$1:$K$5047,0),MATCH(N$2,'Data Annex'!$K$1:$BA$1,0)),\"\")","v":0.72610424220000003},{"$f":"IFERROR(INDEX('Data Annex'!$K$1:$BA$5047,MATCH(O$1&\"|\"&$B26,'Data Annex'!$K$1:$K$5047,0),MATCH(O$2,'Data Annex'!$K$1:$BA$1,0)),\"\")","v":0.52131675700000002},{"$f":"IFERROR(INDEX('Data Annex'!$K$1:$BA$5047,MATCH(P$1&\"|\"&$B26,'Data Annex'!$K$1:$K$5047,0),MATCH(P$2,'Data Annex'!$K$1:$BA$1,0)),\"\")","v":0.48124358709999998},{"$f":"IFERROR(INDEX('Data Annex'!$K$1:$BA$5047,MATCH(Q$1&\"|\"&$B26,'Data Annex'!$K$1:$K$5047,0),MATCH(Q$2,'Data Annex'!$K$1:$BA$1,0)),\"\")","v":0},{"$f":"IFERROR(INDEX('Data Annex'!$K$1:$BA$5047,MATCH(R$1&\"|\"&$B26,'Data Annex'!$K$1:$K$5047,0),MATCH(R$2,'Data Annex'!$K$1:$BA$1,0)),\"\")","v":0.26919321010000002},{"$f":"IFERROR(INDEX('Data Annex'!$K$1:$BA$5047,MATCH(S$1&\"|\"&$B26,'Data Annex'!$K$1:$K$5047,0),MATCH(S$2,'Data Annex'!$K$1:$BA$1,0)),\"\")","v":0.29543700309999998},{"$f":"IFERROR(INDEX('Data Annex'!$K$1:$BA$5047,MATCH(T$1&\"|\"&$B26,'Data Annex'!$K$1:$K$5047,0),MATCH(T$2,'Data Annex'!$K$1:$BA$1,0)),\"\")","v":0.31789823950000001},{"$f":"IFERROR(INDEX('Data Annex'!$K$1:$BA$5047,MATCH(U$1&\"|\"&$B26,'Data Annex'!$K$1:$K$5047,0),MATCH(U$2,'Data Annex'!$K$1:$BA$1,0)),\"\")","v":0},{"$f":"IFERROR(INDEX('Data Annex'!$K$1:$BA$5047,MATCH(V$1&\"|\"&$B26,'Data Annex'!$K$1:$K$5047,0),MATCH(V$2,'Data Annex'!$K$1:$BA$1,0)),\"\")","v":2.55630136E-2},{"$f":"IFERROR(INDEX('Data Annex'!$K$1:$BA$5047,MATCH(W$1&\"|\"&$B26,'Data Annex'!$K$1:$K$5047,0),MATCH(W$2,'Data Annex'!$K$1:$BA$1,0)),\"\")","v":2.72647757E-2},{"$f":"IFERROR(INDEX('Data Annex'!$K$1:$BA$5047,MATCH(X$1&\"|\"&$B26,'Data Annex'!$K$1:$K$5047,0),MATCH(X$2,'Data Annex'!$K$1:$BA$1,0)),\"\")","v":2.76722285E-2},{"$f":"IFERROR(INDEX('Data Annex'!$K$1:$BA$5047,MATCH(Y$1&\"|\"&$B26,'Data Annex'!$K$1:$K$5047,0),MATCH(Y$2,'Data Annex'!$K$1:$BA$1,0)),\"\")","v":0},{"$f":"IFERROR(INDEX('Data Annex'!$K$1:$BA$5047,MATCH(Z$1&\"|\"&$B26,'Data Annex'!$K$1:$K$5047,0),MATCH(Z$2,'Data Annex'!$K$1:$BA$1,0)),\"\")","v":0.44175579030000001},{"$f":"IFERROR(INDEX('Data Annex'!$K$1:$BA$5047,MATCH(AA$1&\"|\"&$B26,'Data Annex'!$K$1:$K$5047,0),MATCH(AA$2,'Data Annex'!$K$1:$BA$1,0)),\"\")","v":0.41868341809999998},{"$f":"IFERROR(INDEX('Data Annex'!$K$1:$BA$5047,MATCH(AB$1&\"|\"&$B26,'Data Annex'!$K$1:$K$5047,0),MATCH(AB$2,'Data Annex'!$K$1:$BA$1,0)),\"\")","v":0.40341144960000003}]
[15,"HU",null,"HU",{"$f":"IFERROR(INDEX('Data Annex'!$K$1:$BA$5047,MATCH(E$1&\"|\"&$B27,'Data Annex'!$K$1:$K$5047,0),MATCH(E$2,'Data Annex'!$K$1:$BA$1,0)),\"\")","v":0},{"$f":"IFERROR(INDEX('Data Annex'!$K$1:$BA$5047,MATCH(F$1&\"|\"&$B27,'Data Annex'!$K$1:$K$5047,0),MATCH(F$2,'Data Annex'!$K$1:$BA$1,0)),\"\")","v":11.296761529999999},{"$f":"IFERROR(INDEX('Data Annex'!$K$1:$BA$5047,MATCH(G$1&\"|\"&$B27,'Data Annex'!$K$1:$K$5047,0),MATCH(G$2,'Data Annex'!$K$1:$BA$1,0)),\"\")","v":13.758276134000001},{"$f":"IFERROR(INDEX('Data Annex'!$K$1:$BA$5047,MATCH(H$1&\"|\"&$B27,'Data Annex'!$K$1:$K$5047,0),MATCH(H$2,'Data Annex'!$K$1:$BA$1,0)),\"\")","v":10.070545824},{"$f":"IFERROR(INDEX('Data Annex'!$K$1:$BA$5047,MATCH(I$1&\"|\"&$B27,'Data Annex'!$K$1:$K$5047,0),MATCH(I$2,'Data Annex'!$K$1:$BA$1,0)),\"\")","v":0},{"$f":"IFERROR(INDEX('Data Annex'!$K$1:$BA$5047,MATCH(J$1&\"|\"&$B27,'Data Annex'!$K$1:$K$5047,0),MATCH(J$2,'Data Annex'!$K$1:$BA$1,0)),\"\")","v":0.48742271139999999},{"$f":"IFERROR(INDEX('Data Annex'!$K$1:$BA$5047,MATCH(K$1&\"|\"&$B27,'Data Annex'!$K$1:$K$5047,0),MATCH(K$2,'Data Annex'!$K$1:$BA$1,0)),\"\")","v":0.533548095},{"$f":"IFERROR(INDEX('Data Annex'!$K$1:$BA$5047,MATCH(L$1&\"|\"&$B27,'Data Annex'!$K$1:$K$5047,0),MATCH(L$2,'Data Annex'!$K$1:$BA$1,0)),\"\")","v":0.55525860189999998},{"$f":"IFERROR(INDEX('Data Annex'!$K$1:$BA$5047,MATCH(M$1&\"|\"&$B27,'Data Annex'!$K$1:$K$5047,0),MATCH(M$2,'Data Annex'!$K$1:$BA$1,0)),\"\")","v":0},{"$f":"IFERROR(INDEX('Data Annex'!$K$1:$BA$5047,MATCH(N$1&\"|\"&$B27,'Data Annex'!$K$1:$K$5047,0),MATCH(N$2,'Data Annex'!$K$1:$BA$1,0)),\"\")","v":0.49140541519999997},{"$f":"IFERROR(INDEX('Data Annex'!$K$1:$BA$5047,MATCH(O$1&\"|\"&$B27,'Data Annex'!$K$1:$K$5047,0),MATCH(O$2,'Data Annex'!$K$1:$BA$1,0)),\"\")","v":0.44717866979999998},{"$f":"IFERROR(INDEX('Data Annex'!$K$1:$BA$5047,MATCH(P$1&\"|\"&$B27,'Data Annex'!$K$1:$K$5047,0),MATCH(P$2,'Data Annex'!$K$1:$BA$1,0)),\"\")","v":0.42644826159999999},{"$f":"IFERROR(INDEX('Data Annex'!$K$1:$BA$5047,MATCH(Q$1&\"|\"&$B27,'Data Annex'!$K$1:$K$5047,0),MATCH(Q$2,'Data Annex'!$K$1:$BA$1,0)),\"\")","v":0},{"$f":"IFERROR(INDEX('Data Annex'!$K$1:$BA$5047,MATCH(R$1&\"|\"&$B27,'Data Annex'!$K$1:$K$5047,0),MATCH(R$2,'Data Annex'!$K$1:$BA$1,0)),\"\")","v":0.1344618088},{"$f":"IFERROR(INDEX('Data Annex'!$K$1:$BA$5047,MATCH(S$1&\"|\"&$B27,'Data Annex'!$K$1:$K$5047,0),MATCH(S$2,'Data Annex'!$K$1:$BA$1,0)),\"\")","v":0.16617426730000001},{"$f":"IFERROR(INDEX('Data Annex'!$K$1:$BA$5047,MATCH(T$1&\"|\"&$B27,'Data Annex'!$K$1:$K$5047,0),MATCH(T$2,'Data Annex'!$K$1:$BA$1,0)),\"\")","v":0.2500387221},{"$f":"IFERROR(INDEX('Data Annex'!$K$1:$BA$5047,MATCH(U$1&\"|\"&$B27,'Data Annex'!$K$1:$K$5047,0),MATCH(U$2,'Data Annex'!$K$1:$BA$1,0)),\"\")","v":0},{"$f":"IFERROR(INDEX('Data Annex'!$K$1:$BA$5047,MATCH(V$1&\"|\"&$B27,'Data Annex'!$K$1:$K$5047,0),MATCH(V$2,'Data Annex'!$K$1:$BA$1,0)),\"\")","v":2.9907954399999999E-2},{"$f":"IFERROR(INDEX('Data Annex'!$K$1:$BA$5047,MATCH(W$1&\"|\"&$B27,'Data Annex'!$K$1:$K$5047,0),MATCH(W$2,'Data Annex'!$K$1:$BA$1,0)),\"\")","v":3.0237311199999999E-2},{"$f":"IFERROR(INDEX('Data Annex'!$K$1:$BA$5047,MATCH(X$1&\"|\"&$B27,'Data Annex'!$K$1:$K$5047,0),MATCH(X$2,'Data Annex'!$K$1:$BA$1,0)),\"\")","v":4.6861664900000002E-2},{"$f":"IFERROR(INDEX('Data Annex'!$K$1:$BA$5047,MATCH(Y$1&\"|\"&$B27,'Data Annex'!$K$1:$K$5047,0),MATCH(Y$2,'Data Annex'!$K$1:$BA$1,0)),\"\")","v":0},{"$f":"IFERROR(INDEX('Data Annex'!$K$1:$BA$5047,MATCH(Z$1&\"|\"&$B27,'Data Annex'!$K$1:$K$5047,0),MATCH(Z$2,'Data Annex'!$K$1:$BA$1,0)),\"\")","v":0.45867530470000001},{"$f":"IFERROR(INDEX('Data Annex'!$K$1:$BA$5047,MATCH(AA$1&\"|\"&$B27,'Data Annex'!$K$1:$K$5047,0),MATCH(AA$2,'Data Annex'!$K$1:$BA$1,0)),\"\")","v":0.40924218540000001},{"$f":"IFERROR(INDEX('Data Annex'!$K$1:$BA$5047,MATCH(AB$1&\"|\"&$B27,'Data Annex'!$K$1:$K$5047,0),MATCH(AB$2,'Data Annex'!$K$1:$BA$1,0)),\"\")","v":0.40410584669999999}]
[16,"IE",null,"IE",{"$f":"IFERROR(INDEX('Data Annex'!$K$1:$BA$5047,MATCH(E$1&\"|\"&$B28,'Data Annex'!$K$1:$K$5047,0),MATCH(E$2,'Data Annex'!$K$1:$BA$1,0)),\"\")","v":0},{"$f":"IFERROR(INDEX('Data Annex'!$K$1:$BA$5047,MATCH(F$1&\"|\"&$B28,'Data Annex'!$K$1:$K$5047,0),MATCH(F$2,'Data Annex'!$K$1:$BA$1,0)),\"\")","v":15.822396274999999},{"$f":"IFERROR(INDEX('Data Annex'!$K$1:$BA$5047,MATCH(G$1&\"|\"&$B28,'Data Annex'!$K$1:$K$5047,0),MATCH(G$2,'Data Annex'!$K$1:$BA$1,0)),\"\")","v":8.9272307985000001},{"$f":"IFERROR(INDEX('Data Annex'!$K$1:$BA$5047,MATCH(H$1&\"|\"&$B28,'Data Annex'!$K$1:$K$5047,0),MATCH(H$2,'Data Annex'!$K$1:$BA$1,0)),\"\")","v":1.7993945299},{"$f":"IFERROR(INDEX('Data Annex'!$K$1:$BA$5047,MATCH(I$1&\"|\"&$B28,'Data Annex'!$K$1:$K$5047,0),MATCH(I$2,'Data Annex'!$K$1:$BA$1,0)),\"\")","v":0},{"$f":"IFERROR(INDEX('Data Annex'!$K$1:$BA$5047,MATCH(J$1&\"|\"&$B28,'Data Annex'!$K$1:$K$5047,0),MATCH(J$2,'Data Annex'!$K$1:$BA$1,0)),\"\")","v":0.47766652199999998},{"$f":"IFERROR(INDEX('Data Annex'!$K$1:$BA$5047,MATCH(K$1&\"|\"&$B28,'Data Annex'!$K$1:$K$5047,0),MATCH(K$2,'Data Annex'!$K$1:$BA$1,0)),\"\")","v":0.49249320499999999},{"$f":"IFERROR(INDEX('Data Annex'!$K$1:$BA$5047,MATCH(L$1&\"|\"&$B28,'Data Annex'!$K$1:$K$5047,0),MATCH(L$2,'Data Annex'!$K$1:$BA$1,0)),\"\")","v":0.36940758369999999},{"$f":"IFERROR(INDEX('Data Annex'!$K$1:$BA$5047,MATCH(M$1&\"|\"&$B28,'Data Annex'!$K$1:$K$5047,0),MATCH(M$2,'Data Annex'!$K$1:$BA$1,0)),\"\")","v":0},{"$f":"IFERROR(INDEX('Data Annex'!$K$1:$BA$5047,MATCH(N$1&\"|\"&$B28,'Data Annex'!$K$1:$K$5047,0),MATCH(N$2,'Data Annex'!$K$1:$BA$1,0)),\"\")","v":0.5178447061},{"$f":"IFERROR(INDEX('Data Annex'!$K$1:$BA$5047,MATCH(O$1&\"|\"&$B28,'Data Annex'!$K$1:$K$5047,0),MATCH(O$2,'Data Annex'!$K$1:$BA$1,0)),\"\")","v":0.49954777890000002},{"$f":"IFERROR(INDEX('Data Annex'!$K$1:$BA$5047,MATCH(P$1&\"|\"&$B28,'Data Annex'!$K$1:$K$5047,0),MATCH(P$2,'Data Annex'!$K$1:$BA$1,0)),\"\")","v":0.6212600143},{"$f":"IFERROR(INDEX('Data Annex'!$K$1:$BA$5047,MATCH(Q$1&\"|\"&$B28,'Data Annex'!$K$1:$K$5047,0),MATCH(Q$2,'Data Annex'!$K$1:$BA$1,0)),\"\")","v":0},{"$f":"IFERROR(INDEX('Data Annex'!$K$1:$BA$5047,MATCH(R$1&\"|\"&$B28,'Data Annex'!$K$1:$K$5047,0),MATCH(R$2,'Data Annex'!$K$1:$BA$1,0)),\"\")","v":0.25477214999999998},{"$f":"IFERROR(INDEX('Data Annex'!$K$1:$BA$5047,MATCH(S$1&\"|\"&$B28,'Data Annex'!$K$1:$K$5047,0),MATCH(S$2,'Data Annex'!$K$1:$BA$1,0)),\"\")","v":0.34816474120000002},{"$f":"IFERROR(INDEX('Data Annex'!$K$1:$BA$5047,MATCH(T$1&\"|\"&$B28,'Data Annex'!$K$1:$K$5047,0),MATCH(T$2,'Data Annex'!$K$1:$BA$1,0)),\"\")","v":0.64636602970000001},{"$f":"IFERROR(INDEX('Data Annex'!$K$1:$BA$5047,MATCH(U$1&\"|\"&$B28,'Data Annex'!$K$1:$K$5047,0),MATCH(U$2,'Data Annex'!$K$1:$BA$1,0)),\"\")","v":0},{"$f":"IFERROR(INDEX('Data Annex'!$K$1:$BA$5047,MATCH(V$1&\"|\"&$B28,'Data Annex'!$K$1:$K$5047,0),MATCH(V$2,'Data Annex'!$K$1:$BA$1,0)),\"\")","v":9.0905302600000001E-2},{"$f":"IFERROR(INDEX('Data Annex'!$K$1:$BA$5047,MATCH(W$1&\"|\"&$B28,'Data Annex'!$K$1:$K$5047,0),MATCH(W$2,'Data Annex'!$K$1:$BA$1,0)),\"\")","v":7.5975404199999999E-2},{"$f":"IFERROR(INDEX('Data Annex'!$K$1:$BA$5047,MATCH(X$1&\"|\"&$B28,'Data Annex'!$K$1:$K$5047,0),MATCH(X$2,'Data Annex'!$K$1:$BA$1,0)),\"\")","v":6.2183572499999999E-2},{"$f":"IFERROR(INDEX('Data Annex'!$K$1:$BA$5047,MATCH(Y$1&\"|\"&$B28,'Data Annex'!$K$1:$K$5047,0),MATCH(Y$2,'Data Annex'!$K$1:$BA$1,0)),\"\")","v":0},{"$f":"IFERROR(INDEX('Data Annex'!$K$1:$BA$5047,MATCH(Z$1&\"|\"&$B28,'Data Annex'!$K$1:$K$5047,0),MATCH(Z$2,'Data Annex'!$K$1:$BA$1,0)),\"\")","v":0.25417217710000001},{"$f":"IFERROR(INDEX('Data Annex'!$K$1:$BA$5047,MATCH(AA$1&\"|\"&$B28,'Data Annex'!$K$1:$K$5047,0),MATCH(AA$2,'Data Annex'!$K$1:$BA$1,0)),\"\")","v":0.1866397176},{"$f":"IFERROR(INDEX('Data Annex'!$K$1:$BA$5047,MATCH(AB$1&\"|\"&$B28,'Data Annex'!$K$1:$K$5047,0),MATCH(AB$2,'Data Annex'!$K$1:$BA$1,0)),\"\")","v":0.19827369510000001}]
[17,"IS",null,"IS",{"$f":"IFERROR(INDEX('Data Annex'!$K$1:$BA$5047,MATCH(E$1&\"|\"&$B29,'Data Annex'!$K$1:$K$5047,0),MATCH(E$2,'Data Annex'!$K$1:$BA$1,0)),\"\")","v":0},{"$f":"IFERROR(INDEX('Data Annex'!$K$1:$BA$5047,MATCH(F$1&\"|\"&$B29,'Data Annex'!$K$1:$K$5047,0),MATCH(F$2,'Data Annex'!$K$1:$BA$1,0)),\"\")","v":2.3007991619000001},{"$f":"IFERROR(INDEX('Data Annex'!$K$1:$BA$5047,MATCH(G$1&\"|\"&$B29,'Data Annex'!$K$1:$K$5047,0),MATCH(G$2,'Data Annex'!$K$1:$BA$1,0)),\"\")","v":1.3741107548},{"$f":"IFERROR(INDEX('Data Annex'!$K$1:$BA$5047,MATCH(H$1&\"|\"&$B29,'Data Annex'!$K$1:$K$5047,0),MATCH(H$2,'Data Annex'!$K$1:$BA$1,0)),\"\")","v":3.4822648900000003E-2},{"$f":"IFERROR(INDEX('Data Annex'!$K$1:$BA$5047,MATCH(I$1&\"|\"&$B29,'Data Annex'!$K$1:$K$5047,0),MATCH(I$2,'Data Annex'!$K$1:$BA$1,0)),\"\")","v":0},{"$f":"IFERROR(INDEX('Data Annex'!$K$1:$BA$5047,MATCH(J$1&\"|\"&$B29,'Data Annex'!$K$1:$K$5047,0),MATCH(J$2,'Data Annex'!$K$1:$BA$1,0)),\"\")","v":0.25655004790000002},{"$f":"IFERROR(INDEX('Data Annex'!$K$1:$BA$5047,MATCH(K$1&\"|\"&$B29,'Data Annex'!$K$1:$K$5047,0),MATCH(K$2,'Data Annex'!$K$1:$BA$1,0)),\"\")","v":0.21103078950000001},{"$f":"IFERROR(INDEX('Data Annex'!$K$1:$BA$5047,MATCH(L$1&\"|\"&$B29,'Data Annex'!$K$1:$K$5047,0),MATCH(L$2,'Data Annex'!$K$1:$BA$1,0)),\"\")","v":0.59060468209999994},{"$f":"IFERROR(INDEX('Data Annex'!$K$1:$BA$5047,MATCH(M$1&\"|\"&$B29,'Data Annex'!$K$1:$K$5047,0),MATCH(M$2,'Data Annex'!$K$1:$BA$1,0)),\"\")","v":0},{"$f":"IFERROR(INDEX('Data Annex'!$K$1:$BA$5047,MATCH(N$1&\"|\"&$B29,'Data Annex'!$K$1:$K$5047,0),MATCH(N$2,'Data Annex'!$K$1:$BA$1,0)),\"\")","v":0.73184133650000005},{"$f":"IFERROR(INDEX('Data Annex'!$K$1:$BA$5047,MATCH(O$1&\"|\"&$B29,'Data Annex'!$K$1:$K$5047,0),MATCH(O$2,'Data Annex'!$K$1:$BA$1,0)),\"\")","v":0.77601050230000002},{"$f":"IFERROR(INDEX('Data Annex'!$K$1:$BA$5047,MATCH(P$1&\"|\"&$B29,'Data Annex'!$K$1:$K$5047,0),MATCH(P$2,'Data Annex'!$K$1:$BA$1,0)),\"\")","v":0.4093953179},{"$f":"IFERROR(INDEX('Data Annex'!$K$1:$BA$5047,MATCH(Q$1&\"|\"&$B29,'Data Annex'!$K$1:$K$5047,0),MATCH(Q$2,'Data Annex'!$K$1:$BA$1,0)),\"\")","v":0},{"$f":"IFERROR(INDEX('Data Annex'!$K$1:$BA$5047,MATCH(R$1&\"|\"&$B29,'Data Annex'!$K$1:$K$5047,0),MATCH(R$2,'Data Annex'!$K$1:$BA$1,0)),\"\")","v":0.43979697029999998},{"$f":"IFERROR(INDEX('Data Annex'!$K$1:$BA$5047,MATCH(S$1&\"|\"&$B29,'Data Annex'!$K$1:$K$5047,0),MATCH(S$2,'Data Annex'!$K$1:$BA$1,0)),\"\")","v":0.37986073419999999},{"$f":"IFERROR(INDEX('Data Annex'!$K$1:$BA$5047,MATCH(T$1&\"|\"&$B29,'Data Annex'!$K$1:$K$5047,0),MATCH(T$2,'Data Annex'!$K$1:$BA$1,0)),\"\")","v":0.79061748799999998},{"$f":"IFERROR(INDEX('Data Annex'!$K$1:$BA$5047,MATCH(U$1&\"|\"&$B29,'Data Annex'!$K$1:$K$5047,0),MATCH(U$2,'Data Annex'!$K$1:$BA$1,0)),\"\")","v":0},{"$f":"IFERROR(INDEX('Data Annex'!$K$1:$BA$5047,MATCH(V$1&\"|\"&$B29,'Data Annex'!$K$1:$K$5047,0),MATCH(V$2,'Data Annex'!$K$1:$BA$1,0)),\"\")","v":7.4581298000000002E-3},{"$f":"IFERROR(INDEX('Data Annex'!$K$1:$BA$5047,MATCH(W$1&\"|\"&$B29,'Data Annex'!$K$1:$K$5047,0),MATCH(W$2,'Data Annex'!$K$1:$BA$1,0)),\"\")","v":1.07945065E-2},{"$f":"IFERROR(INDEX('Data Annex'!$K$1:$BA$5047,MATCH(X$1&\"|\"&$B29,'Data Annex'!$K$1:$K$5047,0),MATCH(X$2,'Data Annex'!$K$1:$BA$1,0)),\"\")","v":5.87278382E-2},{"$f":"IFERROR(INDEX('Data Annex'!$K$1:$BA$5047,MATCH(Y$1&\"|\"&$B29,'Data Annex'!$K$1:$K$5047,0),MATCH(Y$2,'Data Annex'!$K$1:$BA$1,0)),\"\")","v":0},{"$f":"IFERROR(INDEX('Data Annex'!$K$1:$BA$5047,MATCH(Z$1&\"|\"&$B29,'Data Annex'!$K$1:$K$5047,0),MATCH(Z$2,'Data Annex'!$K$1:$BA$1,0)),\"\")","v":0.18097406790000001},{"$f":"IFERROR(INDEX('Data Annex'!$K$1:$BA$5047,MATCH(AA$1&\"|\"&$B29,'Data Annex'!$K$1:$K$5047,0),MATCH(AA$2,'Data Annex'!$K$1:$BA$1,0)),\"\")","v":0.18764783900000001},{"$f":"IFERROR(INDEX('Data Annex'!$K$1:$BA$5047,MATCH(AB$1&\"|\"&$B29,'Data Annex'!$K$1:$K$5047,0),MATCH(AB$2,'Data Annex'!$K$1:$BA$1,0)),\"\")","v":0.1106590995}]
[18,"IT",null,"IT",{"$f":"IFERROR(INDEX('Data Annex'!$K$1:$BA$5047,MATCH(E$1&\"|\"&$B30,'Data Annex'!$K$1:$K$5047,0),MATCH(E$2,'Data Annex'!$K$1:$BA$1,0)),\"\")","v":0},{"$f":"IFERROR(INDEX('Data Annex'!$K$1:$BA$5047,MATCH(F$1&\"|\"&$B30,'Data Annex'!$K$1:$K$5047,0),MATCH(F$2,'Data Annex'!$K$1:$BA$1,0)),\"\")","v":157.76251865},{"$f":"IFERROR(INDEX('Data Annex'!$K$1:$BA$5047,MATCH(G$1&\"|\"&$B30,'Data Annex'!$K$1:$K$5047,0),MATCH(G$2,'Data Annex'!$K$1:$BA$1,0)),\"\")","v":151.74311334000001},{"$f":"IFERROR(INDEX('Data Annex'!$K$1:$BA$5047,MATCH(H$1&\"|\"&$B30,'Data Annex'!$K$1:$K$5047,0),MATCH(H$2,'Data Annex'!$K$1:$BA$1,0)),\"\")","v":115.57736002999999},{"$f":"IFERROR(INDEX('Data Annex'!$K$1:$BA$5047,MATCH(I$1&\"|\"&$B30,'Data Annex'!$K$1:$K$5047,0),MATCH(I$2,'Data Annex'!$K$1:$BA$1,0)),\"\")","v":0},{"$f":"IFERROR(INDEX('Data Annex'!$K$1:$BA$5047,MATCH(J$1&\"|\"&$B30,'Data Annex'!$K$1:$K$5047,0),MATCH(J$2,'Data Annex'!$K$1:$BA$1,0)),\"\")","v":0.31318514930000002},{"$f":"IFERROR(INDEX('Data Annex'!$K$1:$BA$5047,MATCH(K$1&\"|\"&$B30,'Data Annex'!$K$1:$K$5047,0),MATCH(K$2,'Data Annex'!$K$1:$BA$1,0)),\"\")","v":0.31456797939999998},{"$f":"IFERROR(INDEX('Data Annex'!$K$1:$BA$5047,MATCH(L$1&\"|\"&$B30,'Data Annex'!$K$1:$K$5047,0),MATCH(L$2,'Data Annex'!$K$1:$BA$1,0)),\"\")","v":0.26318152369999998},{"$f":"IFERROR(INDEX('Data Annex'!$K$1:$BA$5047,MATCH(M$1&\"|\"&$B30,'Data Annex'!$K$1:$K$5047,0),MATCH(M$2,'Data Annex'!$K$1:$BA$1,0)),\"\")","v":0},{"$f":"IFERROR(INDEX('Data Annex'!$K$1:$BA$5047,MATCH(N$1&\"|\"&$B30,'Data Annex'!$K$1:$K$5047,0),MATCH(N$2,'Data Annex'!$K$1:$BA$1,0)),\"\")","v":0.66369956949999998},{"$f":"IFERROR(INDEX('Data Annex'!$K$1:$BA$5047,MATCH(O$1&\"|\"&$B30,'Data Annex'!$K$1:$K$5047,0),MATCH(O$2,'Data Annex'!$K$1:$BA$1,0)),\"\")","v":0.65553291270000003},{"$f":"IFERROR(INDEX('Data Annex'!$K$1:$BA$5047,MATCH(P$1&\"|\"&$B30,'Data Annex'!$K$1:$K$5047,0),MATCH(P$2,'Data Annex'!$K$1:$BA$1,0)),\"\")","v":0.7049378865},{"$f":"IFERROR(INDEX('Data Annex'!$K$1:$BA$5047,MATCH(Q$1&\"|\"&$B30,'Data Annex'!$K$1:$K$5047,0),MATCH(Q$2,'Data Annex'!$K$1:$BA$1,0)),\"\")","v":0},{"$f":"IFERROR(INDEX('Data Annex'!$K$1:$BA$5047,MATCH(R$1&\"|\"&$B30,'Data Annex'!$K$1:$K$5047,0),MATCH(R$2,'Data Annex'!$K$1:$BA$1,0)),\"\")","v":0.17732643519999999},{"$f":"IFERROR(INDEX('Data Annex'!$K$1:$BA$5047,MATCH(S$1&\"|\"&$B30,'Data Annex'!$K$1:$K$5047,0),MATCH(S$2,'Data Annex'!$K$1:$BA$1,0)),\"\")","v":0.22405097430000001},{"$f":"IFERROR(INDEX('Data Annex'!$K$1:$BA$5047,MATCH(T$1&\"|\"&$B30,'Data Annex'!$K$1:$K$5047,0),MATCH(T$2,'Data Annex'!$K$1:$BA$1,0)),\"\")","v":0.3185466582},{"$f":"IFERROR(INDEX('Data Annex'!$K$1:$BA$5047,MATCH(U$1&\"|\"&$B30,'Data Annex'!$K$1:$K$5047,0),MATCH(U$2,'Data Annex'!$K$1:$BA$1,0)),\"\")","v":0},{"$f":"IFERROR(INDEX('Data Annex'!$K$1:$BA$5047,MATCH(V$1&\"|\"&$B30,'Data Annex'!$K$1:$K$5047,0),MATCH(V$2,'Data Annex'!$K$1:$BA$1,0)),\"\")","v":1.0667718600000001E-2},{"$f":"IFERROR(INDEX('Data Annex'!$K$1:$BA$5047,MATCH(W$1&\"|\"&$B30,'Data Annex'!$K$1:$K$5047,0),MATCH(W$2,'Data Annex'!$K$1:$BA$1,0)),\"\")","v":1.14123873E-2},{"$f":"IFERROR(INDEX('Data Annex'!$K$1:$BA$5047,MATCH(X$1&\"|\"&$B30,'Data Annex'!$K$1:$K$5047,0),MATCH(X$2,'Data Annex'!$K$1:$BA$1,0)),\"\")","v":1.45948755E-2},{"$f":"IFERROR(INDEX('Data Annex'!$K$1:$BA$5047,MATCH(Y$1&\"|\"&$B30,'Data Annex'!$K$1:$K$5047,0),MATCH(Y$2,'Data Annex'!$K$1:$BA$1,0)),\"\")","v":0},{"$f":"IFERROR(INDEX('Data Annex'!$K$1:$BA$5047,MATCH(Z$1&\"|\"&$B30,'Data Annex'!$K$1:$K$5047,0),MATCH(Z$2,'Data Annex'!$K$1:$BA$1,0)),\"\")","v":0.32184248640000002},{"$f":"IFERROR(INDEX('Data Annex'!$K$1:$BA$5047,MATCH(AA$1&\"|\"&$B30,'Data Annex'!$K$1:$K$5047,0),MATCH(AA$2,'Data Annex'!$K$1:$BA$1,0)),\"\")","v":0.33350899620000002},{"$f":"IFERROR(INDEX('Data Annex'!$K$1:$BA$5047,MATCH(AB$1&\"|\"&$B30,'Data Annex'!$K$1:$K$5047,0),MATCH(AB$2,'Data Annex'!$K$1:$BA$1,0)),\"\")","v":0.36752558390000001}]
[19,"LT",null,"LT",{"$f":"IFERROR(INDEX('Data Annex'!$K$1:$BA$5047,MATCH(E$1&\"|\"&$B31,'Data Annex'!$K$1:$K$5047,0),MATCH(E$2,'Data Annex'!$K$1:$BA$1,0)),\"\")","v":0},{"$f":"IFERROR(INDEX('Data Annex'!$K$1:$BA$5047,MATCH(F$1&\"|\"&$B31,'Data Annex'!$K$1:$K$5047,0),MATCH(F$2,'Data Annex'!$K$1:$BA$1,0)),\"\")","v":0.34083215},{"$f":"IFERROR(INDEX('Data Annex'!$K$1:$BA$5047,MATCH(G$1&\"|\"&$B31,'Data Annex'!$K$1:$K$5047,0),MATCH(G$2,'Data Annex'!$K$1:$BA$1,0)),\"\")","v":0.26239800000000002},{"$f":"IFERROR(INDEX('Data Annex'!$K$1:$BA$5047,MATCH(H$1&\"|\"&$B31,'Data Annex'!$K$1:$K$5047,0),MATCH(H$2,'Data Annex'!$K$1:$BA$1,0)),\"\")","v":7.6946000000000001E-2},{"$f":"IFERROR(INDEX('Data Annex'!$K$1:$BA$5047,MATCH(I$1&\"|\"&$B31,'Data Annex'!$K$1:$K$5047,0),MATCH(I$2,'Data Annex'!$K$1:$BA$1,0)),\"\")","v":0},{"$f":"IFERROR(INDEX('Data Annex'!$K$1:$BA$5047,MATCH(J$1&\"|\"&$B31,'Data Annex'!$K$1:$K$5047,0),MATCH(J$2,'Data Annex'!$K$1:$BA$1,0)),\"\")","v":0.50228651030000004},{"$f":"IFERROR(INDEX('Data Annex'!$K$1:$BA$5047,MATCH(K$1&\"|\"&$B31,'Data Annex'!$K$1:$K$5047,0),MATCH(K$2,'Data Annex'!$K$1:$BA$1,0)),\"\")","v":0.54533952240000005},{"$f":"IFERROR(INDEX('Data Annex'!$K$1:$BA$5047,MATCH(L$1&\"|\"&$B31,'Data Annex'!$K$1:$K$5047,0),MATCH(L$2,'Data Annex'!$K$1:$BA$1,0)),\"\")","v":0.9288072154},{"$f":"IFERROR(INDEX('Data Annex'!$K$1:$BA$5047,MATCH(M$1&\"|\"&$B31,'Data Annex'!$K$1:$K$5047,0),MATCH(M$2,'Data Annex'!$K$1:$BA$1,0)),\"\")","v":0},{"$f":"IFERROR(INDEX('Data Annex'!$K$1:$BA$5047,MATCH(N$1&\"|\"&$B31,'Data Annex'!$K$1:$K$5047,0),MATCH(N$2,'Data Annex'!$K$1:$BA$1,0)),\"\")","v":0.49757189509999999},{"$f":"IFERROR(INDEX('Data Annex'!$K$1:$BA$5047,MATCH(O$1&\"|\"&$B31,'Data Annex'!$K$1:$K$5047,0),MATCH(O$2,'Data Annex'!$K$1:$BA$1,0)),\"\")","v":0.45447373839999999},{"$f":"IFERROR(INDEX('Data Annex'!$K$1:$BA$5047,MATCH(P$1&\"|\"&$B31,'Data Annex'!$K$1:$K$5047,0),MATCH(P$2,'Data Annex'!$K$1:$BA$1,0)),\"\")","v":7.1192784600000003E-2},{"$f":"IFERROR(INDEX('Data Annex'!$K$1:$BA$5047,MATCH(Q$1&\"|\"&$B31,'Data Annex'!$K$1:$K$5047,0),MATCH(Q$2,'Data Annex'!$K$1:$BA$1,0)),\"\")","v":0},{"$f":"IFERROR(INDEX('Data Annex'!$K$1:$BA$5047,MATCH(R$1&\"|\"&$B31,'Data Annex'!$K$1:$K$5047,0),MATCH(R$2,'Data Annex'!$K$1:$BA$1,0)),\"\")","v":0.29534788620000002},{"$f":"IFERROR(INDEX('Data Annex'!$K$1:$BA$5047,MATCH(S$1&\"|\"&$B31,'Data Annex'!$K$1:$K$5047,0),MATCH(S$2,'Data Annex'!$K$1:$BA$1,0)),\"\")","v":0.29211731800000001},{"$f":"IFERROR(INDEX('Data Annex'!$K$1:$BA$5047,MATCH(T$1&\"|\"&$B31,'Data Annex'!$K$1:$K$5047,0),MATCH(T$2,'Data Annex'!$K$1:$BA$1,0)),\"\")","v":0.30349855739999998},{"$f":"IFERROR(INDEX('Data Annex'!$K$1:$BA$5047,MATCH(U$1&\"|\"&$B31,'Data Annex'!$K$1:$K$5047,0),MATCH(U$2,'Data Annex'!$K$1:$BA$1,0)),\"\")","v":0},{"$f":"IFERROR(INDEX('Data Annex'!$K$1:$BA$5047,MATCH(V$1&\"|\"&$B31,'Data Annex'!$K$1:$K$5047,0),MATCH(V$2,'Data Annex'!$K$1:$BA$1,0)),\"\")","v":2.5941655E-3},{"$f":"IFERROR(INDEX('Data Annex'!$K$1:$BA$5047,MATCH(W$1&\"|\"&$B31,'Data Annex'!$K$1:$K$5047,0),MATCH(W$2,'Data Annex'!$K$1:$BA$1,0)),\"\")","v":3.3917939999999997E-4},{"$f":"IFERROR(INDEX('Data Annex'!$K$1:$BA$5047,MATCH(X$1&\"|\"&$B31,'Data Annex'!$K$1:$K$5047,0),MATCH(X$2,'Data Annex'!$K$1:$BA$1,0)),\"\")","v":1.0526863E-3},{"$f":"IFERROR(INDEX('Data Annex'!$K$1:$BA$5047,MATCH(Y$1&\"|\"&$B31,'Data Annex'!$K$1:$K$5047,0),MATCH(Y$2,'Data Annex'!$K$1:$BA$1,0)),\"\")","v":0},{"$f":"IFERROR(INDEX('Data Annex'!$K$1:$BA$5047,MATCH(Z$1&\"|\"&$B31,'Data Annex'!$K$1:$K$5047,0),MATCH(Z$2,'Data Annex'!$K$1:$BA$1,0)),\"\")","v":5.1852857199999998E-2},{"$f":"IFERROR(INDEX('Data Annex'!$K$1:$BA$5047,MATCH(AA$1&\"|\"&$B31,'Data Annex'!$K$1:$K$5047,0),MATCH(AA$2,'Data Annex'!$K$1:$BA$1,0)),\"\")","v":0.1235955056},{"$f":"IFERROR(INDEX('Data Annex'!$K$1:$BA$5047,MATCH(AB$1&\"|\"&$B31,'Data Annex'!$K$1:$K$5047,0),MATCH(AB$2,'Data Annex'!$K$1:$BA$1,0)),\"\")","v":8.6419753099999996E-2}]
[20,"LU",null,"LU",{"$f":"IFERROR(INDEX('Data Annex'!$K$1:$BA$5047,MATCH(E$1&\"|\"&$B32,'Data Annex'!$K$1:$K$5047,0),MATCH(E$2,'Data Annex'!$K$1:$BA$1,0)),\"\")","v":0},{"$f":"IFERROR(INDEX('Data Annex'!$K$1:$BA$5047,MATCH(F$1&\"|\"&$B32,'Data Annex'!$K$1:$K$5047,0),MATCH(F$2,'Data Annex'!$K$1:$BA$1,0)),\"\")","v":1.5085257736},{"$f":"IFERROR(INDEX('Data Annex'!$K$1:$BA$5047,MATCH(G$1&\"|\"&$B32,'Data Annex'!$K$1:$K$5047,0),MATCH(G$2,'Data Annex'!$K$1:$BA$1,0)),\"\")","v":2.1335624382999998},{"$f":"IFERROR(INDEX('Data Annex'!$K$1:$BA$5047,MATCH(H$1&\"|\"&$B32,'Data Annex'!$K$1:$K$5047,0),MATCH(H$2,'Data Annex'!$K$1:$BA$1,0)),\"\")","v":1.0854096427},{"$f":"IFERROR(INDEX('Data Annex'!$K$1:$BA$5047,MATCH(I$1&\"|\"&$B32,'Data Annex'!$K$1:$K$5047,0),MATCH(I$2,'Data Annex'!$K$1:$BA$1,0)),\"\")","v":0},{"$f":"IFERROR(INDEX('Data Annex'!$K$1:$BA$5047,MATCH(J$1&\"|\"&$B32,'Data Annex'!$K$1:$K$5047,0),MATCH(J$2,'Data Annex'!$K$1:$BA$1,0)),\"\")","v":0.3360875592},{"$f":"IFERROR(INDEX('Data Annex'!$K$1:$BA$5047,MATCH(K$1&\"|\"&$B32,'Data Annex'!$K$1:$K$5047,0),MATCH(K$2,'Data Annex'!$K$1:$BA$1,0)),\"\")","v":9.7693851600000006E-2},{"$f":"IFERROR(INDEX('Data Annex'!$K$1:$BA$5047,MATCH(L$1&\"|\"&$B32,'Data Annex'!$K$1:$K$5047,0),MATCH(L$2,'Data Annex'!$K$1:$BA$1,0)),\"\")","v":7.1015424899999999E-2},{"$f":"IFERROR(INDEX('Data Annex'!$K$1:$BA$5047,MATCH(M$1&\"|\"&$B32,'Data Annex'!$K$1:$K$5047,0),MATCH(M$2,'Data Annex'!$K$1:$BA$1,0)),\"\")","v":0},{"$f":"IFERROR(INDEX('Data Annex'!$K$1:$BA$5047,MATCH(N$1&\"|\"&$B32,'Data Annex'!$K$1:$K$5047,0),MATCH(N$2,'Data Annex'!$K$1:$BA$1,0)),\"\")","v":0.59039669709999998},{"$f":"IFERROR(INDEX('Data Annex'!$K$1:$BA$5047,MATCH(O$1&\"|\"&$B32,'Data Annex'!$K$1:$K$5047,0),MATCH(O$2,'Data Annex'!$K$1:$BA$1,0)),\"\")","v":0.86955849880000002},{"$f":"IFERROR(INDEX('Data Annex'!$K$1:$BA$5047,MATCH(P$1&\"|\"&$B32,'Data Annex'!$K$1:$K$5047,0),MATCH(P$2,'Data Annex'!$K$1:$BA$1,0)),\"\")","v":0.91137204959999996},{"$f":"IFERROR(INDEX('Data Annex'!$K$1:$BA$5047,MATCH(Q$1&\"|\"&$B32,'Data Annex'!$K$1:$K$5047,0),MATCH(Q$2,'Data Annex'!$K$1:$BA$1,0)),\"\")","v":0},{"$f":"IFERROR(INDEX('Data Annex'!$K$1:$BA$5047,MATCH(R$1&\"|\"&$B32,'Data Annex'!$K$1:$K$5047,0),MATCH(R$2,'Data Annex'!$K$1:$BA$1,0)),\"\")","v":0.1710648904},{"$f":"IFERROR(INDEX('Data Annex'!$K$1:$BA$5047,MATCH(S$1&\"|\"&$B32,'Data Annex'!$K$1:$K$5047,0),MATCH(S$2,'Data Annex'!$K$1:$BA$1,0)),\"\")","v":0.161551009},{"$f":"IFERROR(INDEX('Data Annex'!$K$1:$BA$5047,MATCH(T$1&\"|\"&$B32,'Data Annex'!$K$1:$K$5047,0),MATCH(T$2,'Data Annex'!$K$1:$BA$1,0)),\"\")","v":0.16850286},{"$f":"IFERROR(INDEX('Data Annex'!$K$1:$BA$5047,MATCH(U$1&\"|\"&$B32,'Data Annex'!$K$1:$K$5047,0),MATCH(U$2,'Data Annex'!$K$1:$BA$1,0)),\"\")","v":0},{"$f":"IFERROR(INDEX('Data Annex'!$K$1:$BA$5047,MATCH(V$1&\"|\"&$B32,'Data Annex'!$K$1:$K$5047,0),MATCH(V$2,'Data Annex'!$K$1:$BA$1,0)),\"\")","v":5.42066192E-2},{"$f":"IFERROR(INDEX('Data Annex'!$K$1:$BA$5047,MATCH(W$1&\"|\"&$B32,'Data Annex'!$K$1:$K$5047,0),MATCH(W$2,'Data Annex'!$K$1:$BA$1,0)),\"\")","v":7.4901937599999996E-2},{"$f":"IFERROR(INDEX('Data Annex'!$K$1:$BA$5047,MATCH(X$1&\"|\"&$B32,'Data Annex'!$K$1:$K$5047,0),MATCH(X$2,'Data Annex'!$K$1:$BA$1,0)),\"\")","v":4.5718943999999997E-2},{"$f":"IFERROR(INDEX('Data Annex'!$K$1:$BA$5047,MATCH(Y$1&\"|\"&$B32,'Data Annex'!$K$1:$K$5047,0),MATCH(Y$2,'Data Annex'!$K$1:$BA$1,0)),\"\")","v":0},{"$f":"IFERROR(INDEX('Data Annex'!$K$1:$BA$5047,MATCH(Z$1&\"|\"&$B32,'Data Annex'!$K$1:$K$5047,0),MATCH(Z$2,'Data Annex'!$K$1:$BA$1,0)),\"\")","v":0.1095707095},{"$f":"IFERROR(INDEX('Data Annex'!$K$1:$BA$5047,MATCH(AA$1&\"|\"&$B32,'Data Annex'!$K$1:$K$5047,0),MATCH(AA$2,'Data Annex'!$K$1:$BA$1,0)),\"\")","v":0.2117075991},{"$f":"IFERROR(INDEX('Data Annex'!$K$1:$BA$5047,MATCH(AB$1&\"|\"&$B32,'Data Annex'!$K$1:$K$5047,0),MATCH(AB$2,'Data Annex'!$K$1:$BA$1,0)),\"\")","v":0.59330047640000005}]
[21,"LV",null,"LV",{"$f":"IFERROR(INDEX('Data Annex'!$K$1:$BA$5047,MATCH(E$1&\"|\"&$B33,'Data Annex'!$K$1:$K$5047,0),MATCH(E$2,'Data Annex'!$K$1:$BA$1,0)),\"\")","v":0},{"$f":"IFERROR(INDEX('Data Annex'!$K$1:$BA$5047,MATCH(F$1&\"|\"&$B33,'Data Annex'!$K$1:$K$5047,0),MATCH(F$2,'Data Annex'!$K$1:$BA$1,0)),\"\")","v":0.42103607640000001},{"$f":"IFERROR(INDEX('Data Annex'!$K$1:$BA$5047,MATCH(G$1&\"|\"&$B33,'Data Annex'!$K$1:$K$5047,0),MATCH(G$2,'Data Annex'!$K$1:$BA$1,0)),\"\")","v":0.24505998130000001},{"$f":"IFERROR(INDEX('Data Annex'!$K$1:$BA$5047,MATCH(H$1&\"|\"&$B33,'Data Annex'!$K$1:$K$5047,0),MATCH(H$2,'Data Annex'!$K$1:$BA$1,0)),\"\")","v":9.6870473400000004E-2},{"$f":"IFERROR(INDEX('Data Annex'!$K$1:$BA$5047,MATCH(I$1&\"|\"&$B33,'Data Annex'!$K$1:$K$5047,0),MATCH(I$2,'Data Annex'!$K$1:$BA$1,0)),\"\")","v":0},{"$f":"IFERROR(INDEX('Data Annex'!$K$1:$BA$5047,MATCH(J$1&\"|\"&$B33,'Data Annex'!$K$1:$K$5047,0),MATCH(J$2,'Data Annex'!$K$1:$BA$1,0)),\"\")","v":0.48553548200000002},{"$f":"IFERROR(INDEX('Data Annex'!$K$1:$BA$5047,MATCH(K$1&\"|\"&$B33,'Data Annex'!$K$1:$K$5047,0),MATCH(K$2,'Data Annex'!$K$1:$BA$1,0)),\"\")","v":0.71492874760000003},{"$f":"IFERROR(INDEX('Data Annex'!$K$1:$BA$5047,MATCH(L$1&\"|\"&$B33,'Data Annex'!$K$1:$K$5047,0),MATCH(L$2,'Data Annex'!$K$1:$BA$1,0)),\"\")","v":0.97272796439999998},{"$f":"IFERROR(INDEX('Data Annex'!$K$1:$BA$5047,MATCH(M$1&\"|\"&$B33,'Data Annex'!$K$1:$K$5047,0),MATCH(M$2,'Data Annex'!$K$1:$BA$1,0)),\"\")","v":0},{"$f":"IFERROR(INDEX('Data Annex'!$K$1:$BA$5047,MATCH(N$1&\"|\"&$B33,'Data Annex'!$K$1:$K$5047,0),MATCH(N$2,'Data Annex'!$K$1:$BA$1,0)),\"\")","v":0.51446451800000004},{"$f":"IFERROR(INDEX('Data Annex'!$K$1:$BA$5047,MATCH(O$1&\"|\"&$B33,'Data Annex'!$K$1:$K$5047,0),MATCH(O$2,'Data Annex'!$K$1:$BA$1,0)),\"\")","v":0.28507125239999997},{"$f":"IFERROR(INDEX('Data Annex'!$K$1:$BA$5047,MATCH(P$1&\"|\"&$B33,'Data Annex'!$K$1:$K$5047,0),MATCH(P$2,'Data Annex'!$K$1:$BA$1,0)),\"\")","v":2.7272035600000001E-2},{"$f":"IFERROR(INDEX('Data Annex'!$K$1:$BA$5047,MATCH(Q$1&\"|\"&$B33,'Data Annex'!$K$1:$K$5047,0),MATCH(Q$2,'Data Annex'!$K$1:$BA$1,0)),\"\")","v":0},{"$f":"IFERROR(INDEX('Data Annex'!$K$1:$BA$5047,MATCH(R$1&\"|\"&$B33,'Data Annex'!$K$1:$K$5047,0),MATCH(R$2,'Data Annex'!$K$1:$BA$1,0)),\"\")","v":0.22618554960000001},{"$f":"IFERROR(INDEX('Data Annex'!$K$1:$BA$5047,MATCH(S$1&\"|\"&$B33,'Data Annex'!$K$1:$K$5047,0),MATCH(S$2,'Data Annex'!$K$1:$BA$1,0)),\"\")","v":0.31545193490000001},{"$f":"IFERROR(INDEX('Data Annex'!$K$1:$BA$5047,MATCH(T$1&\"|\"&$B33,'Data Annex'!$K$1:$K$5047,0),MATCH(T$2,'Data Annex'!$K$1:$BA$1,0)),\"\")","v":0.37833092439999999},{"$f":"IFERROR(INDEX('Data Annex'!$K$1:$BA$5047,MATCH(U$1&\"|\"&$B33,'Data Annex'!$K$1:$K$5047,0),MATCH(U$2,'Data Annex'!$K$1:$BA$1,0)),\"\")","v":0},{"$f":"IFERROR(INDEX('Data Annex'!$K$1:$BA$5047,MATCH(V$1&\"|\"&$B33,'Data Annex'!$K$1:$K$5047,0),MATCH(V$2,'Data Annex'!$K$1:$BA$1,0)),\"\")","v":4.0301099999999999E-4},{"$f":"IFERROR(INDEX('Data Annex'!$K$1:$BA$5047,MATCH(W$1&\"|\"&$B33,'Data Annex'!$K$1:$K$5047,0),MATCH(W$2,'Data Annex'!$K$1:$BA$1,0)),\"\")","v":1.7767353999999999E-3},{"$f":"IFERROR(INDEX('Data Annex'!$K$1:$BA$5047,MATCH(X$1&\"|\"&$B33,'Data Annex'!$K$1:$K$5047,0),MATCH(X$2,'Data Annex'!$K$1:$BA$1,0)),\"\")","v":2.3435136E-3},{"$f":"IFERROR(INDEX('Data Annex'!$K$1:$BA$5047,MATCH(Y$1&\"|\"&$B33,'Data Annex'!$K$1:$K$5047,0),MATCH(Y$2,'Data Annex'!$K$1:$BA$1,0)),\"\")","v":0},{"$f":"IFERROR(INDEX('Data Annex'!$K$1:$BA$5047,MATCH(Z$1&\"|\"&$B33,'Data Annex'!$K$1:$K$5047,0),MATCH(Z$2,'Data Annex'!$K$1:$BA$1,0)),\"\")","v":0.17149434990000001},{"$f":"IFERROR(INDEX('Data Annex'!$K$1:$BA$5047,MATCH(AA$1&\"|\"&$B33,'Data Annex'!$K$1:$K$5047,0),MATCH(AA$2,'Data Annex'!$K$1:$BA$1,0)),\"\")","v":0.14617722729999999},{"$f":"IFERROR(INDEX('Data Annex'!$K$1:$BA$5047,MATCH(AB$1&\"|\"&$B33,'Data Annex'!$K$1:$K$5047,0),MATCH(AB$2,'Data Annex'!$K$1:$BA$1,0)),\"\")","v":8.1534986300000001E-2}]
[22,"MT",null,"MT",{"$f":"IFERROR(INDEX('Data Annex'!$K$1:$BA$5047,MATCH(E$1&\"|\"&$B34,'Data Annex'!$K$1:$K$5047,0),MATCH(E$2,'Data Annex'!$K$1:$BA$1,0)),\"\")","v":0},{"$f":"IFERROR(INDEX('Data Annex'!$K$1:$BA$5047,MATCH(F$1&\"|\"&$B34,'Data Annex'!$K$1:$K$5047,0),MATCH(F$2,'Data Annex'!$K$1:$BA$1,0)),\"\")","v":1.1229889982000001},{"$f":"IFERROR(INDEX('Data Annex'!$K$1:$BA$5047,MATCH(G$1&\"|\"&$B34,'Data Annex'!$K$1:$K$5047,0),MATCH(G$2,'Data Annex'!$K$1:$BA$1,0)),\"\")","v":1.1382555478},{"$f":"IFERROR(INDEX('Data Annex'!$K$1:$BA$5047,MATCH(H$1&\"|\"&$B34,'Data Annex'!$K$1:$K$5047,0),MATCH(H$2,'Data Annex'!$K$1:$BA$1,0)),\"\")","v":0.58084428769999996},{"$f":"IFERROR(INDEX('Data Annex'!$K$1:$BA$5047,MATCH(I$1&\"|\"&$B34,'Data Annex'!$K$1:$K$5047,0),MATCH(I$2,'Data Annex'!$K$1:$BA$1,0)),\"\")","v":0},{"$f":"IFERROR(INDEX('Data Annex'!$K$1:$BA$5047,MATCH(J$1&\"|\"&$B34,'Data Annex'!$K$1:$K$5047,0),MATCH(J$2,'Data Annex'!$K$1:$BA$1,0)),\"\")","v":0.40878494370000001},{"$f":"IFERROR(INDEX('Data Annex'!$K$1:$BA$5047,MATCH(K$1&\"|\"&$B34,'Data Annex'!$K$1:$K$5047,0),MATCH(K$2,'Data Annex'!$K$1:$BA$1,0)),\"\")","v":0.37957678779999998},{"$f":"IFERROR(INDEX('Data Annex'!$K$1:$BA$5047,MATCH(L$1&\"|\"&$B34,'Data Annex'!$K$1:$K$5047,0),MATCH(L$2,'Data Annex'!$K$1:$BA$1,0)),\"\")","v":0.24124252330000001},{"$f":"IFERROR(INDEX('Data Annex'!$K$1:$BA$5047,MATCH(M$1&\"|\"&$B34,'Data Annex'!$K$1:$K$5047,0),MATCH(M$2,'Data Annex'!$K$1:$BA$1,0)),\"\")","v":0},{"$f":"IFERROR(INDEX('Data Annex'!$K$1:$BA$5047,MATCH(N$1&\"|\"&$B34,'Data Annex'!$K$1:$K$5047,0),MATCH(N$2,'Data Annex'!$K$1:$BA$1,0)),\"\")","v":0.48655468639999999},{"$f":"IFERROR(INDEX('Data Annex'!$K$1:$BA$5047,MATCH(O$1&\"|\"&$B34,'Data Annex'!$K$1:$K$5047,0),MATCH(O$2,'Data Annex'!$K$1:$BA$1,0)),\"\")","v":0.51842857269999998},{"$f":"IFERROR(INDEX('Data Annex'!$K$1:$BA$5047,MATCH(P$1&\"|\"&$B34,'Data Annex'!$K$1:$K$5047,0),MATCH(P$2,'Data Annex'!$K$1:$BA$1,0)),\"\")","v":0.55571412070000004},{"$f":"IFERROR(INDEX('Data Annex'!$K$1:$BA$5047,MATCH(Q$1&\"|\"&$B34,'Data Annex'!$K$1:$K$5047,0),MATCH(Q$2,'Data Annex'!$K$1:$BA$1,0)),\"\")","v":0},{"$f":"IFERROR(INDEX('Data Annex'!$K$1:$BA$5047,MATCH(R$1&\"|\"&$B34,'Data Annex'!$K$1:$K$5047,0),MATCH(R$2,'Data Annex'!$K$1:$BA$1,0)),\"\")","v":0.17256152659999999},{"$f":"IFERROR(INDEX('Data Annex'!$K$1:$BA$5047,MATCH(S$1&\"|\"&$B34,'Data Annex'!$K$1:$K$5047,0),MATCH(S$2,'Data Annex'!$K$1:$BA$1,0)),\"\")","v":0.1526437849},{"$f":"IFERROR(INDEX('Data Annex'!$K$1:$BA$5047,MATCH(T$1&\"|\"&$B34,'Data Annex'!$K$1:$K$5047,0),MATCH(T$2,'Data Annex'!$K$1:$BA$1,0)),\"\")","v":0.41550178710000002},{"$f":"IFERROR(INDEX('Data Annex'!$K$1:$BA$5047,MATCH(U$1&\"|\"&$B34,'Data Annex'!$K$1:$K$5047,0),MATCH(U$2,'Data Annex'!$K$1:$BA$1,0)),\"\")","v":0},{"$f":"IFERROR(INDEX('Data Annex'!$K$1:$BA$5047,MATCH(V$1&\"|\"&$B34,'Data Annex'!$K$1:$K$5047,0),MATCH(V$2,'Data Annex'!$K$1:$BA$1,0)),\"\")","v":1.2847723E-2},{"$f":"IFERROR(INDEX('Data Annex'!$K$1:$BA$5047,MATCH(W$1&\"|\"&$B34,'Data Annex'!$K$1:$K$5047,0),MATCH(W$2,'Data Annex'!$K$1:$BA$1,0)),\"\")","v":7.2751244000000001E-3},{"$f":"IFERROR(INDEX('Data Annex'!$K$1:$BA$5047,MATCH(X$1&\"|\"&$B34,'Data Annex'!$K$1:$K$5047,0),MATCH(X$2,'Data Annex'!$K$1:$BA$1,0)),\"\")","v":5.7387041999999999E-2},{"$f":"IFERROR(INDEX('Data Annex'!$K$1:$BA$5047,MATCH(Y$1&\"|\"&$B34,'Data Annex'!$K$1:$K$5047,0),MATCH(Y$2,'Data Annex'!$K$1:$BA$1,0)),\"\")","v":0},{"$f":"IFERROR(INDEX('Data Annex'!$K$1:$BA$5047,MATCH(Z$1&\"|\"&$B34,'Data Annex'!$K$1:$K$5047,0),MATCH(Z$2,'Data Annex'!$K$1:$BA$1,0)),\"\")","v":0.72784796939999996},{"$f":"IFERROR(INDEX('Data Annex'!$K$1:$BA$5047,MATCH(AA$1&\"|\"&$B34,'Data Annex'!$K$1:$K$5047,0),MATCH(AA$2,'Data Annex'!$K$1:$BA$1,0)),\"\")","v":1.4838047123},{"$f":"IFERROR(INDEX('Data Annex'!$K$1:$BA$5047,MATCH(AB$1&\"|\"&$B34,'Data Annex'!$K$1:$K$5047,0),MATCH(AB$2,'Data Annex'!$K$1:$BA$1,0)),\"\")","v":0.4011583728}]
[23,"NL",null,"NL",{"$f":"IFERROR(INDEX('Data Annex'!$K$1:$BA$5047,MATCH(E$1&\"|\"&$B35,'Data Annex'!$K$1:$K$5047,0),MATCH(E$2,'Data Annex'!$K$1:$BA$1,0)),\"\")","v":0},{"$f":"IFERROR(INDEX('Data Annex'!$K$1:$BA$5047,MATCH(F$1&\"|\"&$B35,'Data Annex'!$K$1:$K$5047,0),MATCH(F$2,'Data Annex'!$K$1:$BA$1,0)),\"\")","v":51.169804409999998},{"$f":"IFERROR(INDEX('Data Annex'!$K$1:$BA$5047,MATCH(G$1&\"|\"&$B35,'Data Annex'!$K$1:$K$5047,0),MATCH(G$2,'Data Annex'!$K$1:$BA$1,0)),\"\")","v":36.698534178999999},{"$f":"IFERROR(INDEX('Data Annex'!$K$1:$BA$5047,MATCH(H$1&\"|\"&$B35,'Data Annex'!$K$1:$K$5047,0),MATCH(H$2,'Data Annex'!$K$1:$BA$1,0)),\"\")","v":1.7411397477999999},{"$f":"IFERROR(INDEX('Data Annex'!$K$1:$BA$5047,MATCH(I$1&\"|\"&$B35,'Data Annex'!$K$1:$K$5047,0),MATCH(I$2,'Data Annex'!$K$1:$BA$1,0)),\"\")","v":0},{"$f":"IFERROR(INDEX('Data Annex'!$K$1:$BA$5047,MATCH(J$1&\"|\"&$B35,'Data Annex'!$K$1:$K$5047,0),MATCH(J$2,'Data Annex'!$K$1:$BA$1,0)),\"\")","v":0.18207321500000001},{"$f":"IFERROR(INDEX('Data Annex'!$K$1:$BA$5047,MATCH(K$1&\"|\"&$B35,'Data Annex'!$K$1:$K$5047,0),MATCH(K$2,'Data Annex'!$K$1:$BA$1,0)),\"\")","v":0.2198357108},{"$f":"IFERROR(INDEX('Data Annex'!$K$1:$BA$5047,MATCH(L$1&\"|\"&$B35,'Data Annex'!$K$1:$K$5047,0),MATCH(L$2,'Data Annex'!$K$1:$BA$1,0)),\"\")","v":0.34076443410000001},{"$f":"IFERROR(INDEX('Data Annex'!$K$1:$BA$5047,MATCH(M$1&\"|\"&$B35,'Data Annex'!$K$1:$K$5047,0),MATCH(M$2,'Data Annex'!$K$1:$BA$1,0)),\"\")","v":0},{"$f":"IFERROR(INDEX('Data Annex'!$K$1:$BA$5047,MATCH(N$1&\"|\"&$B35,'Data Annex'!$K$1:$K$5047,0),MATCH(N$2,'Data Annex'!$K$1:$BA$1,0)),\"\")","v":0.80083776029999998},{"$f":"IFERROR(INDEX('Data Annex'!$K$1:$BA$5047,MATCH(O$1&\"|\"&$B35,'Data Annex'!$K$1:$K$5047,0),MATCH(O$2,'Data Annex'!$K$1:$BA$1,0)),\"\")","v":0.76827695600000001},{"$f":"IFERROR(INDEX('Data Annex'!$K$1:$BA$5047,MATCH(P$1&\"|\"&$B35,'Data Annex'!$K$1:$K$5047,0),MATCH(P$2,'Data Annex'!$K$1:$BA$1,0)),\"\")","v":0.65255306150000003},{"$f":"IFERROR(INDEX('Data Annex'!$K$1:$BA$5047,MATCH(Q$1&\"|\"&$B35,'Data Annex'!$K$1:$K$5047,0),MATCH(Q$2,'Data Annex'!$K$1:$BA$1,0)),\"\")","v":0},{"$f":"IFERROR(INDEX('Data Annex'!$K$1:$BA$5047,MATCH(R$1&\"|\"&$B35,'Data Annex'!$K$1:$K$5047,0),MATCH(R$2,'Data Annex'!$K$1:$BA$1,0)),\"\")","v":0.20961154330000001},{"$f":"IFERROR(INDEX('Data Annex'!$K$1:$BA$5047,MATCH(S$1&\"|\"&$B35,'Data Annex'!$K$1:$K$5047,0),MATCH(S$2,'Data Annex'!$K$1:$BA$1,0)),\"\")","v":0.2912605311},{"$f":"IFERROR(INDEX('Data Annex'!$K$1:$BA$5047,MATCH(T$1&\"|\"&$B35,'Data Annex'!$K$1:$K$5047,0),MATCH(T$2,'Data Annex'!$K$1:$BA$1,0)),\"\")","v":0.26490001590000001},{"$f":"IFERROR(INDEX('Data Annex'!$K$1:$BA$5047,MATCH(U$1&\"|\"&$B35,'Data Annex'!$K$1:$K$5047,0),MATCH(U$2,'Data Annex'!$K$1:$BA$1,0)),\"\")","v":0},{"$f":"IFERROR(INDEX('Data Annex'!$K$1:$BA$5047,MATCH(V$1&\"|\"&$B35,'Data Annex'!$K$1:$K$5047,0),MATCH(V$2,'Data Annex'!$K$1:$BA$1,0)),\"\")","v":4.2801924900000003E-2},{"$f":"IFERROR(INDEX('Data Annex'!$K$1:$BA$5047,MATCH(W$1&\"|\"&$B35,'Data Annex'!$K$1:$K$5047,0),MATCH(W$2,'Data Annex'!$K$1:$BA$1,0)),\"\")","v":2.41543525E-2},{"$f":"IFERROR(INDEX('Data Annex'!$K$1:$BA$5047,MATCH(X$1&\"|\"&$B35,'Data Annex'!$K$1:$K$5047,0),MATCH(X$2,'Data Annex'!$K$1:$BA$1,0)),\"\")","v":4.6233502199999998E-2},{"$f":"IFERROR(INDEX('Data Annex'!$K$1:$BA$5047,MATCH(Y$1&\"|\"&$B35,'Data Annex'!$K$1:$K$5047,0),MATCH(Y$2,'Data Annex'!$K$1:$BA$1,0)),\"\")","v":0},{"$f":"IFERROR(INDEX('Data Annex'!$K$1:$BA$5047,MATCH(Z$1&\"|\"&$B35,'Data Annex'!$K$1:$K$5047,0),MATCH(Z$2,'Data Annex'!$K$1:$BA$1,0)),\"\")","v":0.1224147327},{"$f":"IFERROR(INDEX('Data Annex'!$K$1:$BA$5047,MATCH(AA$1&\"|\"&$B35,'Data Annex'!$K$1:$K$5047,0),MATCH(AA$2,'Data Annex'!$K$1:$BA$1,0)),\"\")","v":0.1902224666},{"$f":"IFERROR(INDEX('Data Annex'!$K$1:$BA$5047,MATCH(AB$1&\"|\"&$B35,'Data Annex'!$K$1:$K$5047,0),MATCH(AB$2,'Data Annex'!$K$1:$BA$1,0)),\"\")","v":0.1160352313}]
[24,"NO",null,"NO",{"$f":"IFERROR(INDEX('Data Annex'!$K$1:$BA$5047,MATCH(E$1&\"|\"&$B36,'Data Annex'!$K$1:$K$5047,0),MATCH(E$2,'Data Annex'!$K$1:$BA$1,0)),\"\")","v":""},{"$f":"IFERROR(INDEX('Data Annex'!$K$1:$BA$5047,MATCH(F$1&\"|\"&$B36,'Data Annex'!$K$1:$K$5047,0),MATCH(F$2,'Data Annex'!$K$1:$BA$1,0)),\"\")","v":""},{"$f":"IFERROR(INDEX('Data Annex'!$K$1:$BA$5047,MATCH(G$1&\"|\"&$B36,'Data Annex'!$K$1:$K$5047,0),MATCH(G$2,'Data Annex'!$K$1:$BA$1,0)),\"\")","v":""},{"$f":"IFERROR(INDEX('Data Annex'!$K$1:$BA$5047,MATCH(H$1&\"|\"&$B36,'Data Annex'!$K$1:$K$5047,0),MATCH(H$2,'Data Annex'!$K$1:$BA$1,0)),\"\")","v":""},{"$f":"IFERROR(INDEX('Data Annex'!$K$1:$BA$5047,MATCH(I$1&\"|\"&$B36,'Data Annex'!$K$1:$K$5047,0),MATCH(I$2,'Data Annex'!$K$1:$BA$1,0)),\"\")","v":""},{"$f":"IFERROR(INDEX('Data Annex'!$K$1:$BA$5047,MATCH(J$1&\"|\"&$B36,'Data Annex'!$K$1:$K$5047,0),MATCH(J$2,'Data Annex'!$K$1:$BA$1,0)),\"\")","v":""},{"$f":"IFERROR(INDEX('Data Annex'!$K$1:$BA$5047,MATCH(K$1&\"|\"&$B36,'Data Annex'!$K$1:$K$5047,0),MATCH(K$2,'Data Annex'!$K$1:$BA$1,0)),\"\")","v":""},{"$f":"IFERROR(INDEX('Data Annex'!$K$1:$BA$5047,MATCH(L$1&\"|\"&$B36,'Data Annex'!$K$1:$K$5047,0),MATCH(L$2,'Data Annex'!$K$1:$BA$1,0)),\"\")","v":""},{"$f":"IFERROR(INDEX('Data Annex'!$K$1:$BA$5047,MATCH(M$1&\"|\"&$B36,'Data Annex'!$K$1:$K$5047,0),MATCH(M$2,'Data Annex'!$K$1:$BA$1,0)),\"\")","v":""},{"$f":"IFERROR(INDEX('Data Annex'!$K$1:$BA$5047,MATCH(N$1&\"|\"&$B36,'Data Annex'!$K$1:$K$5047,0),MATCH(N$2,'Data Annex'!$K$1:$BA$1,0)),\"\")","v":""},{"$f":"IFERROR(INDEX('Data Annex'!$K$1:$BA$5047,MATCH(O$1&\"|\"&$B36,'Data Annex'!$K$1:$K$5047,0),MATCH(O$2,'Data Annex'!$K$1:$BA$1,0)),\"\")","v":""},{"$f":"IFERROR(INDEX('Data Annex'!$K$1:$BA$5047,MATCH(P$1&\"|\"&$B36,'Data Annex'!$K$1:$K$5047,0),MATCH(P$2,'Data Annex'!$K$1:$BA$1,0)),\"\")","v":""},{"$f":"IFERROR(INDEX('Data Annex'!$K$1:$BA$5047,MATCH(Q$1&\"|\"&$B36,'Data Annex'!$K$1:$K$5047,0),MATCH(Q$2,'Data Annex'!$K$1:$BA$1,0)),\"\")","v":""},{"$f":"IFERROR(INDEX('Data Annex'!$K$1:$BA$5047,MATCH(R$1&\"|\"&$B36,'Data Annex'!$K$1:$K$5047,0),MATCH(R$2,'Data Annex'!$K$1:$BA$1,0)),\"\")","v":""},{"$f":"IFERROR(INDEX('Data Annex'!$K$1:$BA$5047,MATCH(S$1&\"|\"&$B36,'Data Annex'!$K$1:$K$5047,0),MATCH(S$2,'Data Annex'!$K$1:$BA$1,0)),\"\")","v":""},{"$f":"IFERROR(INDEX('Data Annex'!$K$1:$BA$5047,MATCH(T$1&\"|\"&$B36,'Data Annex'!$K$1:$K$5047,0),MATCH(T$2,'Data Annex'!$K$1:$BA$1,0)),\"\")","v":""},{"$f":"IFERROR(INDEX('Data Annex'!$K$1:$BA$5047,MATCH(U$1&\"|\"&$B36,'Data Annex'!$K$1:$K$5047,0),MATCH(U$2,'Data Annex'!$K$1:$BA$1,0)),\"\")","v":""},{"$f":"IFERROR(INDEX('Data Annex'!$K$1:$BA$5047,MATCH(V$1&\"|\"&$B36,'Data Annex'!$K$1:$K$5047,0),MATCH(V$2,'Data Annex'!$K$1:$BA$1,0)),\"\")","v":""},{"$f":"IFERROR(INDEX('Data Annex'!$K$1:$BA$5047,MATCH(W$1&\"|\"&$B36,'Data Annex'!$K$1:$K$5047,0),MATCH(W$2,'Data Annex'!$K$1:$BA$1,0)),\"\")","v":""},{"$f":"IFERROR(INDEX('Data Annex'!$K$1:$BA$5047,MATCH(X$1&\"|\"&$B36,'Data Annex'!$K$1:$K$5047,0),MATCH(X$2,'Data Annex'!$K$1:$BA$1,0)),\"\")","v":""},{"$f":"IFERROR(INDEX('Data Annex'!$K$1:$BA$5047,MATCH(Y$1&\"|\"&$B36,'Data Annex'!$K$1:$K$5047,0),MATCH(Y$2,'Data Annex'!$K$1:$BA$1,0)),\"\")","v":""},{"$f":"IFERROR(INDEX('Data Annex'!$K$1:$BA$5047,MATCH(Z$1&\"|\"&$B36,'Data Annex'!$K$1:$K$5047,0),MATCH(Z$2,'Data Annex'!$K$1:$BA$1,0)),\"\")","v":""},{"$f":"IFERROR(INDEX('Data Annex'!$K$1:$BA$5047,MATCH(AA$1&\"|\"&$B36,'Data Annex'!$K$1:$K$5047,0),MATCH(AA$2,'Data Annex'!$K$1:$BA$1,0)),\"\")","v":""},{"$f":"IFERROR(INDEX('Data Annex'!$K$1:$BA$5047,MATCH(AB$1&\"|\"&$B36,'Data Annex'!$K$1:$K$5047,0),MATCH(AB$2,'Data Annex'!$K$1:$BA$1,0)),\"\")","v":""}]
[25,"PL",null,"PL",{"$f":"IFERROR(INDEX('Data Annex'!$K$1:$BA$5047,MATCH(E$1&\"|\"&$B37,'Data Annex'!$K$1:$K$5047,0),MATCH(E$2,'Data Annex'!$K$1:$BA$1,0)),\"\")","v":0},{"$f":"IFERROR(INDEX('Data Annex'!$K$1:$BA$5047,MATCH(F$1&\"|\"&$B37,'Data Annex'!$K$1:$K$5047,0),MATCH(F$2,'Data Annex'!$K$1:$BA$1,0)),\"\")","v":12.876665262},{"$f":"IFERROR(INDEX('Data Annex'!$K$1:$BA$5047,MATCH(G$1&\"|\"&$B37,'Data Annex'!$K$1:$K$5047,0),MATCH(G$2,'Data Annex'!$K$1:$BA$1,0)),\"\")","v":6.6197719959999999},{"$f":"IFERROR(INDEX('Data Annex'!$K$1:$BA$5047,MATCH(H$1&\"|\"&$B37,'Data Annex'!$K$1:$K$5047,0),MATCH(H$2,'Data Annex'!$K$1:$BA$1,0)),\"\")","v":1.3961767419},{"$f":"IFERROR(INDEX('Data Annex'!$K$1:$BA$5047,MATCH(I$1&\"|\"&$B37,'Data Annex'!$K$1:$K$5047,0),MATCH(I$2,'Data Annex'!$K$1:$BA$1,0)),\"\")","v":0},{"$f":"IFERROR(INDEX('Data Annex'!$K$1:$BA$5047,MATCH(J$1&\"|\"&$B37,'Data Annex'!$K$1:$K$5047,0),MATCH(J$2,'Data Annex'!$K$1:$BA$1,0)),\"\")","v":0.47715839770000001},{"$f":"IFERROR(INDEX('Data Annex'!$K$1:$BA$5047,MATCH(K$1&\"|\"&$B37,'Data Annex'!$K$1:$K$5047,0),MATCH(K$2,'Data Annex'!$K$1:$BA$1,0)),\"\")","v":0.39043466449999997},{"$f":"IFERROR(INDEX('Data Annex'!$K$1:$BA$5047,MATCH(L$1&\"|\"&$B37,'Data Annex'!$K$1:$K$5047,0),MATCH(L$2,'Data Annex'!$K$1:$BA$1,0)),\"\")","v":0.46547948420000002},{"$f":"IFERROR(INDEX('Data Annex'!$K$1:$BA$5047,MATCH(M$1&\"|\"&$B37,'Data Annex'!$K$1:$K$5047,0),MATCH(M$2,'Data Annex'!$K$1:$BA$1,0)),\"\")","v":0},{"$f":"IFERROR(INDEX('Data Annex'!$K$1:$BA$5047,MATCH(N$1&\"|\"&$B37,'Data Annex'!$K$1:$K$5047,0),MATCH(N$2,'Data Annex'!$K$1:$BA$1,0)),\"\")","v":0.51842454319999998},{"$f":"IFERROR(INDEX('Data Annex'!$K$1:$BA$5047,MATCH(O$1&\"|\"&$B37,'Data Annex'!$K$1:$K$5047,0),MATCH(O$2,'Data Annex'!$K$1:$BA$1,0)),\"\")","v":0.6095647944},{"$f":"IFERROR(INDEX('Data Annex'!$K$1:$BA$5047,MATCH(P$1&\"|\"&$B37,'Data Annex'!$K$1:$K$5047,0),MATCH(P$2,'Data Annex'!$K$1:$BA$1,0)),\"\")","v":0.53451991129999998},{"$f":"IFERROR(INDEX('Data Annex'!$K$1:$BA$5047,MATCH(Q$1&\"|\"&$B37,'Data Annex'!$K$1:$K$5047,0),MATCH(Q$2,'Data Annex'!$K$1:$BA$1,0)),\"\")","v":0},{"$f":"IFERROR(INDEX('Data Annex'!$K$1:$BA$5047,MATCH(R$1&\"|\"&$B37,'Data Annex'!$K$1:$K$5047,0),MATCH(R$2,'Data Annex'!$K$1:$BA$1,0)),\"\")","v":0.18356241609999999},{"$f":"IFERROR(INDEX('Data Annex'!$K$1:$BA$5047,MATCH(S$1&\"|\"&$B37,'Data Annex'!$K$1:$K$5047,0),MATCH(S$2,'Data Annex'!$K$1:$BA$1,0)),\"\")","v":0.208246771},{"$f":"IFERROR(INDEX('Data Annex'!$K$1:$BA$5047,MATCH(T$1&\"|\"&$B37,'Data Annex'!$K$1:$K$5047,0),MATCH(T$2,'Data Annex'!$K$1:$BA$1,0)),\"\")","v":0.33848643470000001},{"$f":"IFERROR(INDEX('Data Annex'!$K$1:$BA$5047,MATCH(U$1&\"|\"&$B37,'Data Annex'!$K$1:$K$5047,0),MATCH(U$2,'Data Annex'!$K$1:$BA$1,0)),\"\")","v":0},{"$f":"IFERROR(INDEX('Data Annex'!$K$1:$BA$5047,MATCH(V$1&\"|\"&$B37,'Data Annex'!$K$1:$K$5047,0),MATCH(V$2,'Data Annex'!$K$1:$BA$1,0)),\"\")","v":1.5658095300000001E-2},{"$f":"IFERROR(INDEX('Data Annex'!$K$1:$BA$5047,MATCH(W$1&\"|\"&$B37,'Data Annex'!$K$1:$K$5047,0),MATCH(W$2,'Data Annex'!$K$1:$BA$1,0)),\"\")","v":1.9052283100000001E-2},{"$f":"IFERROR(INDEX('Data Annex'!$K$1:$BA$5047,MATCH(X$1&\"|\"&$B37,'Data Annex'!$K$1:$K$5047,0),MATCH(X$2,'Data Annex'!$K$1:$BA$1,0)),\"\")","v":0.1286213883},{"$f":"IFERROR(INDEX('Data Annex'!$K$1:$BA$5047,MATCH(Y$1&\"|\"&$B37,'Data Annex'!$K$1:$K$5047,0),MATCH(Y$2,'Data Annex'!$K$1:$BA$1,0)),\"\")","v":0},{"$f":"IFERROR(INDEX('Data Annex'!$K$1:$BA$5047,MATCH(Z$1&\"|\"&$B37,'Data Annex'!$K$1:$K$5047,0),MATCH(Z$2,'Data Annex'!$K$1:$BA$1,0)),\"\")","v":0.25925063180000002},{"$f":"IFERROR(INDEX('Data Annex'!$K$1:$BA$5047,MATCH(AA$1&\"|\"&$B37,'Data Annex'!$K$1:$K$5047,0),MATCH(AA$2,'Data Annex'!$K$1:$BA$1,0)),\"\")","v":0.28584199380000003},{"$f":"IFERROR(INDEX('Data Annex'!$K$1:$BA$5047,MATCH(AB$1&\"|\"&$B37,'Data Annex'!$K$1:$K$5047,0),MATCH(AB$2,'Data Annex'!$K$1:$BA$1,0)),\"\")","v":0.30229303480000003}]
[26,"PT",null,"PT",{"$f":"IFERROR(INDEX('Data Annex'!$K$1:$BA$5047,MATCH(E$1&\"|\"&$B38,'Data Annex'!$K$1:$K$5047,0),MATCH(E$2,'Data Annex'!$K$1:$BA$1,0)),\"\")","v":0},{"$f":"IFERROR(INDEX('Data Annex'!$K$1:$BA$5047,MATCH(F$1&\"|\"&$B38,'Data Annex'!$K$1:$K$5047,0),MATCH(F$2,'Data Annex'!$K$1:$BA$1,0)),\"\")","v":42.917478228},{"$f":"IFERROR(INDEX('Data Annex'!$K$1:$BA$5047,MATCH(G$1&\"|\"&$B38,'Data Annex'!$K$1:$K$5047,0),MATCH(G$2,'Data Annex'!$K$1:$BA$1,0)),\"\")","v":45.768771749999999},{"$f":"IFERROR(INDEX('Data Annex'!$K$1:$BA$5047,MATCH(H$1&\"|\"&$B38,'Data Annex'!$K$1:$K$5047,0),MATCH(H$2,'Data Annex'!$K$1:$BA$1,0)),\"\")","v":41.536634696},{"$f":"IFERROR(INDEX('Data Annex'!$K$1:$BA$5047,MATCH(I$1&\"|\"&$B38,'Data Annex'!$K$1:$K$5047,0),MATCH(I$2,'Data Annex'!$K$1:$BA$1,0)),\"\")","v":0},{"$f":"IFERROR(INDEX('Data Annex'!$K$1:$BA$5047,MATCH(J$1&\"|\"&$B38,'Data Annex'!$K$1:$K$5047,0),MATCH(J$2,'Data Annex'!$K$1:$BA$1,0)),\"\")","v":0.47914591229999998},{"$f":"IFERROR(INDEX('Data Annex'!$K$1:$BA$5047,MATCH(K$1&\"|\"&$B38,'Data Annex'!$K$1:$K$5047,0),MATCH(K$2,'Data Annex'!$K$1:$BA$1,0)),\"\")","v":0.46088503739999997},{"$f":"IFERROR(INDEX('Data Annex'!$K$1:$BA$5047,MATCH(L$1&\"|\"&$B38,'Data Annex'!$K$1:$K$5047,0),MATCH(L$2,'Data Annex'!$K$1:$BA$1,0)),\"\")","v":0.45202407659999999},{"$f":"IFERROR(INDEX('Data Annex'!$K$1:$BA$5047,MATCH(M$1&\"|\"&$B38,'Data Annex'!$K$1:$K$5047,0),MATCH(M$2,'Data Annex'!$K$1:$BA$1,0)),\"\")","v":0},{"$f":"IFERROR(INDEX('Data Annex'!$K$1:$BA$5047,MATCH(N$1&\"|\"&$B38,'Data Annex'!$K$1:$K$5047,0),MATCH(N$2,'Data Annex'!$K$1:$BA$1,0)),\"\")","v":0.51757336919999997},{"$f":"IFERROR(INDEX('Data Annex'!$K$1:$BA$5047,MATCH(O$1&\"|\"&$B38,'Data Annex'!$K$1:$K$5047,0),MATCH(O$2,'Data Annex'!$K$1:$BA$1,0)),\"\")","v":0.53627283449999996},{"$f":"IFERROR(INDEX('Data Annex'!$K$1:$BA$5047,MATCH(P$1&\"|\"&$B38,'Data Annex'!$K$1:$K$5047,0),MATCH(P$2,'Data Annex'!$K$1:$BA$1,0)),\"\")","v":0.54494660910000003},{"$f":"IFERROR(INDEX('Data Annex'!$K$1:$BA$5047,MATCH(Q$1&\"|\"&$B38,'Data Annex'!$K$1:$K$5047,0),MATCH(Q$2,'Data Annex'!$K$1:$BA$1,0)),\"\")","v":0},{"$f":"IFERROR(INDEX('Data Annex'!$K$1:$BA$5047,MATCH(R$1&\"|\"&$B38,'Data Annex'!$K$1:$K$5047,0),MATCH(R$2,'Data Annex'!$K$1:$BA$1,0)),\"\")","v":0.15431141130000001},{"$f":"IFERROR(INDEX('Data Annex'!$K$1:$BA$5047,MATCH(S$1&\"|\"&$B38,'Data Annex'!$K$1:$K$5047,0),MATCH(S$2,'Data Annex'!$K$1:$BA$1,0)),\"\")","v":0.1866771398},{"$f":"IFERROR(INDEX('Data Annex'!$K$1:$BA$5047,MATCH(T$1&\"|\"&$B38,'Data Annex'!$K$1:$K$5047,0),MATCH(T$2,'Data Annex'!$K$1:$BA$1,0)),\"\")","v":0.25109562670000002},{"$f":"IFERROR(INDEX('Data Annex'!$K$1:$BA$5047,MATCH(U$1&\"|\"&$B38,'Data Annex'!$K$1:$K$5047,0),MATCH(U$2,'Data Annex'!$K$1:$BA$1,0)),\"\")","v":0},{"$f":"IFERROR(INDEX('Data Annex'!$K$1:$BA$5047,MATCH(V$1&\"|\"&$B38,'Data Annex'!$K$1:$K$5047,0),MATCH(V$2,'Data Annex'!$K$1:$BA$1,0)),\"\")","v":5.4161029999999999E-2},{"$f":"IFERROR(INDEX('Data Annex'!$K$1:$BA$5047,MATCH(W$1&\"|\"&$B38,'Data Annex'!$K$1:$K$5047,0),MATCH(W$2,'Data Annex'!$K$1:$BA$1,0)),\"\")","v":6.0486367399999998E-2},{"$f":"IFERROR(INDEX('Data Annex'!$K$1:$BA$5047,MATCH(X$1&\"|\"&$B38,'Data Annex'!$K$1:$K$5047,0),MATCH(X$2,'Data Annex'!$K$1:$BA$1,0)),\"\")","v":7.3391517099999998E-2},{"$f":"IFERROR(INDEX('Data Annex'!$K$1:$BA$5047,MATCH(Y$1&\"|\"&$B38,'Data Annex'!$K$1:$K$5047,0),MATCH(Y$2,'Data Annex'!$K$1:$BA$1,0)),\"\")","v":0},{"$f":"IFERROR(INDEX('Data Annex'!$K$1:$BA$5047,MATCH(Z$1&\"|\"&$B38,'Data Annex'!$K$1:$K$5047,0),MATCH(Z$2,'Data Annex'!$K$1:$BA$1,0)),\"\")","v":0.35199138140000003},{"$f":"IFERROR(INDEX('Data Annex'!$K$1:$BA$5047,MATCH(AA$1&\"|\"&$B38,'Data Annex'!$K$1:$K$5047,0),MATCH(AA$2,'Data Annex'!$K$1:$BA$1,0)),\"\")","v":0.41418891130000002},{"$f":"IFERROR(INDEX('Data Annex'!$K$1:$BA$5047,MATCH(AB$1&\"|\"&$B38,'Data Annex'!$K$1:$K$5047,0),MATCH(AB$2,'Data Annex'!$K$1:$BA$1,0)),\"\")","v":0.42983144719999999}]
[27,"RO",null,"RO",{"$f":"IFERROR(INDEX('Data Annex'!$K$1:$BA$5047,MATCH(E$1&\"|\"&$B39,'Data Annex'!$K$1:$K$5047,0),MATCH(E$2,'Data Annex'!$K$1:$BA$1,0)),\"\")","v":0},{"$f":"IFERROR(INDEX('Data Annex'!$K$1:$BA$5047,MATCH(F$1&\"|\"&$B39,'Data Annex'!$K$1:$K$5047,0),MATCH(F$2,'Data Annex'!$K$1:$BA$1,0)),\"\")","v":2.5650309267},{"$f":"IFERROR(INDEX('Data Annex'!$K$1:$BA$5047,MATCH(G$1&\"|\"&$B39,'Data Annex'!$K$1:$K$5047,0),MATCH(G$2,'Data Annex'!$K$1:$BA$1,0)),\"\")","v":1.9334127002999999},{"$f":"IFERROR(INDEX('Data Annex'!$K$1:$BA$5047,MATCH(H$1&\"|\"&$B39,'Data Annex'!$K$1:$K$5047,0),MATCH(H$2,'Data Annex'!$K$1:$BA$1,0)),\"\")","v":1.8399366999999999E-3},{"$f":"IFERROR(INDEX('Data Annex'!$K$1:$BA$5047,MATCH(I$1&\"|\"&$B39,'Data Annex'!$K$1:$K$5047,0),MATCH(I$2,'Data Annex'!$K$1:$BA$1,0)),\"\")","v":0},{"$f":"IFERROR(INDEX('Data Annex'!$K$1:$BA$5047,MATCH(J$1&\"|\"&$B39,'Data Annex'!$K$1:$K$5047,0),MATCH(J$2,'Data Annex'!$K$1:$BA$1,0)),\"\")","v":0.46479003009999997},{"$f":"IFERROR(INDEX('Data Annex'!$K$1:$BA$5047,MATCH(K$1&\"|\"&$B39,'Data Annex'!$K$1:$K$5047,0),MATCH(K$2,'Data Annex'!$K$1:$BA$1,0)),\"\")","v":0.4091810602},{"$f":"IFERROR(INDEX('Data Annex'!$K$1:$BA$5047,MATCH(L$1&\"|\"&$B39,'Data Annex'!$K$1:$K$5047,0),MATCH(L$2,'Data Annex'!$K$1:$BA$1,0)),\"\")","v":7.8025338299999997E-2},{"$f":"IFERROR(INDEX('Data Annex'!$K$1:$BA$5047,MATCH(M$1&\"|\"&$B39,'Data Annex'!$K$1:$K$5047,0),MATCH(M$2,'Data Annex'!$K$1:$BA$1,0)),\"\")","v":0},{"$f":"IFERROR(INDEX('Data Annex'!$K$1:$BA$5047,MATCH(N$1&\"|\"&$B39,'Data Annex'!$K$1:$K$5047,0),MATCH(N$2,'Data Annex'!$K$1:$BA$1,0)),\"\")","v":0.50996298760000003},{"$f":"IFERROR(INDEX('Data Annex'!$K$1:$BA$5047,MATCH(O$1&\"|\"&$B39,'Data Annex'!$K$1:$K$5047,0),MATCH(O$2,'Data Annex'!$K$1:$BA$1,0)),\"\")","v":0.56110086940000004},{"$f":"IFERROR(INDEX('Data Annex'!$K$1:$BA$5047,MATCH(P$1&\"|\"&$B39,'Data Annex'!$K$1:$K$5047,0),MATCH(P$2,'Data Annex'!$K$1:$BA$1,0)),\"\")","v":0.92197466169999998},{"$f":"IFERROR(INDEX('Data Annex'!$K$1:$BA$5047,MATCH(Q$1&\"|\"&$B39,'Data Annex'!$K$1:$K$5047,0),MATCH(Q$2,'Data Annex'!$K$1:$BA$1,0)),\"\")","v":0},{"$f":"IFERROR(INDEX('Data Annex'!$K$1:$BA$5047,MATCH(R$1&\"|\"&$B39,'Data Annex'!$K$1:$K$5047,0),MATCH(R$2,'Data Annex'!$K$1:$BA$1,0)),\"\")","v":0.38382159119999998},{"$f":"IFERROR(INDEX('Data Annex'!$K$1:$BA$5047,MATCH(S$1&\"|\"&$B39,'Data Annex'!$K$1:$K$5047,0),MATCH(S$2,'Data Annex'!$K$1:$BA$1,0)),\"\")","v":0.3972503302},{"$f":"IFERROR(INDEX('Data Annex'!$K$1:$BA$5047,MATCH(T$1&\"|\"&$B39,'Data Annex'!$K$1:$K$5047,0),MATCH(T$2,'Data Annex'!$K$1:$BA$1,0)),\"\")","v":0.47013017880000002},{"$f":"IFERROR(INDEX('Data Annex'!$K$1:$BA$5047,MATCH(U$1&\"|\"&$B39,'Data Annex'!$K$1:$K$5047,0),MATCH(U$2,'Data Annex'!$K$1:$BA$1,0)),\"\")","v":0},{"$f":"IFERROR(INDEX('Data Annex'!$K$1:$BA$5047,MATCH(V$1&\"|\"&$B39,'Data Annex'!$K$1:$K$5047,0),MATCH(V$2,'Data Annex'!$K$1:$BA$1,0)),\"\")","v":8.5133180000000003E-2},{"$f":"IFERROR(INDEX('Data Annex'!$K$1:$BA$5047,MATCH(W$1&\"|\"&$B39,'Data Annex'!$K$1:$K$5047,0),MATCH(W$2,'Data Annex'!$K$1:$BA$1,0)),\"\")","v":0.10785216979999999},{"$f":"IFERROR(INDEX('Data Annex'!$K$1:$BA$5047,MATCH(X$1&\"|\"&$B39,'Data Annex'!$K$1:$K$5047,0),MATCH(X$2,'Data Annex'!$K$1:$BA$1,0)),\"\")","v":0.33297885519999998},{"$f":"IFERROR(INDEX('Data Annex'!$K$1:$BA$5047,MATCH(Y$1&\"|\"&$B39,'Data Annex'!$K$1:$K$5047,0),MATCH(Y$2,'Data Annex'!$K$1:$BA$1,0)),\"\")","v":0},{"$f":"IFERROR(INDEX('Data Annex'!$K$1:$BA$5047,MATCH(Z$1&\"|\"&$B39,'Data Annex'!$K$1:$K$5047,0),MATCH(Z$2,'Data Annex'!$K$1:$BA$1,0)),\"\")","v":0.52500168039999995},{"$f":"IFERROR(INDEX('Data Annex'!$K$1:$BA$5047,MATCH(AA$1&\"|\"&$B39,'Data Annex'!$K$1:$K$5047,0),MATCH(AA$2,'Data Annex'!$K$1:$BA$1,0)),\"\")","v":0.56565677930000002},{"$f":"IFERROR(INDEX('Data Annex'!$K$1:$BA$5047,MATCH(AB$1&\"|\"&$B39,'Data Annex'!$K$1:$K$5047,0),MATCH(AB$2,'Data Annex'!$K$1:$BA$1,0)),\"\")","v":2.6429029499999999E-2}]
[28,"SE",null,"SE",{"$f":"IFERROR(INDEX('Data Annex'!$K$1:$BA$5047,MATCH(E$1&\"|\"&$B40,'Data Annex'!$K$1:$K$5047,0),MATCH(E$2,'Data Annex'!$K$1:$BA$1,0)),\"\")","v":0},{"$f":"IFERROR(INDEX('Data Annex'!$K$1:$BA$5047,MATCH(F$1&\"|\"&$B40,'Data Annex'!$K$1:$K$5047,0),MATCH(F$2,'Data Annex'!$K$1:$BA$1,0)),\"\")","v":22.479139619000001},{"$f":"IFERROR(INDEX('Data Annex'!$K$1:$BA$5047,MATCH(G$1&\"|\"&$B40,'Data Annex'!$K$1:$K$5047,0),MATCH(G$2,'Data Annex'!$K$1:$BA$1,0)),\"\")","v":23.947586588},{"$f":"IFERROR(INDEX('Data Annex'!$K$1:$BA$5047,MATCH(H$1&\"|\"&$B40,'Data Annex'!$K$1:$K$5047,0),MATCH(H$2,'Data Annex'!$K$1:$BA$1,0)),\"\")","v":24.832031993000001},{"$f":"IFERROR(INDEX('Data Annex'!$K$1:$BA$5047,MATCH(I$1&\"|\"&$B40,'Data Annex'!$K$1:$K$5047,0),MATCH(I$2,'Data Annex'!$K$1:$BA$1,0)),\"\")","v":0},{"$f":"IFERROR(INDEX('Data Annex'!$K$1:$BA$5047,MATCH(J$1&\"|\"&$B40,'Data Annex'!$K$1:$K$5047,0),MATCH(J$2,'Data Annex'!$K$1:$BA$1,0)),\"\")","v":0.92831119210000002},{"$f":"IFERROR(INDEX('Data Annex'!$K$1:$BA$5047,MATCH(K$1&\"|\"&$B40,'Data Annex'!$K$1:$K$5047,0),MATCH(K$2,'Data Annex'!$K$1:$BA$1,0)),\"\")","v":0.94570534230000003},{"$f":"IFERROR(INDEX('Data Annex'!$K$1:$BA$5047,MATCH(L$1&\"|\"&$B40,'Data Annex'!$K$1:$K$5047,0),MATCH(L$2,'Data Annex'!$K$1:$BA$1,0)),\"\")","v":0.99887005070000001},{"$f":"IFERROR(INDEX('Data Annex'!$K$1:$BA$5047,MATCH(M$1&\"|\"&$B40,'Data Annex'!$K$1:$K$5047,0),MATCH(M$2,'Data Annex'!$K$1:$BA$1,0)),\"\")","v":0},{"$f":"IFERROR(INDEX('Data Annex'!$K$1:$BA$5047,MATCH(N$1&\"|\"&$B40,'Data Annex'!$K$1:$K$5047,0),MATCH(N$2,'Data Annex'!$K$1:$BA$1,0)),\"\")","v":7.1452792299999998E-2},{"$f":"IFERROR(INDEX('Data Annex'!$K$1:$BA$5047,MATCH(O$1&\"|\"&$B40,'Data Annex'!$K$1:$K$5047,0),MATCH(O$2,'Data Annex'!$K$1:$BA$1,0)),\"\")","v":5.4110918000000001E-2},{"$f":"IFERROR(INDEX('Data Annex'!$K$1:$BA$5047,MATCH(P$1&\"|\"&$B40,'Data Annex'!$K$1:$K$5047,0),MATCH(P$2,'Data Annex'!$K$1:$BA$1,0)),\"\")","v":1.1299452999999999E-3},{"$f":"IFERROR(INDEX('Data Annex'!$K$1:$BA$5047,MATCH(Q$1&\"|\"&$B40,'Data Annex'!$K$1:$K$5047,0),MATCH(Q$2,'Data Annex'!$K$1:$BA$1,0)),\"\")","v":0},{"$f":"IFERROR(INDEX('Data Annex'!$K$1:$BA$5047,MATCH(R$1&\"|\"&$B40,'Data Annex'!$K$1:$K$5047,0),MATCH(R$2,'Data Annex'!$K$1:$BA$1,0)),\"\")","v":7.4642214499999998E-2},{"$f":"IFERROR(INDEX('Data Annex'!$K$1:$BA$5047,MATCH(S$1&\"|\"&$B40,'Data Annex'!$K$1:$K$5047,0),MATCH(S$2,'Data Annex'!$K$1:$BA$1,0)),\"\")","v":6.9333191799999999E-2},{"$f":"IFERROR(INDEX('Data Annex'!$K$1:$BA$5047,MATCH(T$1&\"|\"&$B40,'Data Annex'!$K$1:$K$5047,0),MATCH(T$2,'Data Annex'!$K$1:$BA$1,0)),\"\")","v":4.7441382900000002E-2},{"$f":"IFERROR(INDEX('Data Annex'!$K$1:$BA$5047,MATCH(U$1&\"|\"&$B40,'Data Annex'!$K$1:$K$5047,0),MATCH(U$2,'Data Annex'!$K$1:$BA$1,0)),\"\")","v":0},{"$f":"IFERROR(INDEX('Data Annex'!$K$1:$BA$5047,MATCH(V$1&\"|\"&$B40,'Data Annex'!$K$1:$K$5047,0),MATCH(V$2,'Data Annex'!$K$1:$BA$1,0)),\"\")","v":1.5477657E-3},{"$f":"IFERROR(INDEX('Data Annex'!$K$1:$BA$5047,MATCH(W$1&\"|\"&$B40,'Data Annex'!$K$1:$K$5047,0),MATCH(W$2,'Data Annex'!$K$1:$BA$1,0)),\"\")","v":1.5963780999999999E-3},{"$f":"IFERROR(INDEX('Data Annex'!$K$1:$BA$5047,MATCH(X$1&\"|\"&$B40,'Data Annex'!$K$1:$K$5047,0),MATCH(X$2,'Data Annex'!$K$1:$BA$1,0)),\"\")","v":6.1745850000000004E-4},{"$f":"IFERROR(INDEX('Data Annex'!$K$1:$BA$5047,MATCH(Y$1&\"|\"&$B40,'Data Annex'!$K$1:$K$5047,0),MATCH(Y$2,'Data Annex'!$K$1:$BA$1,0)),\"\")","v":0},{"$f":"IFERROR(INDEX('Data Annex'!$K$1:$BA$5047,MATCH(Z$1&\"|\"&$B40,'Data Annex'!$K$1:$K$5047,0),MATCH(Z$2,'Data Annex'!$K$1:$BA$1,0)),\"\")","v":0.1454799943},{"$f":"IFERROR(INDEX('Data Annex'!$K$1:$BA$5047,MATCH(AA$1&\"|\"&$B40,'Data Annex'!$K$1:$K$5047,0),MATCH(AA$2,'Data Annex'!$K$1:$BA$1,0)),\"\")","v":0.1125258208},{"$f":"IFERROR(INDEX('Data Annex'!$K$1:$BA$5047,MATCH(AB$1&\"|\"&$B40,'Data Annex'!$K$1:$K$5047,0),MATCH(AB$2,'Data Annex'!$K$1:$BA$1,0)),\"\")","v":7.02411431E-2}]
[29,"SI",null,"SI",{"$f":"IFERROR(INDEX('Data Annex'!$K$1:$BA$5047,MATCH(E$1&\"|\"&$B41,'Data Annex'!$K$1:$K$5047,0),MATCH(E$2,'Data Annex'!$K$1:$BA$1,0)),\"\")","v":0},{"$f":"IFERROR(INDEX('Data Annex'!$K$1:$BA$5047,MATCH(F$1&\"|\"&$B41,'Data Annex'!$K$1:$K$5047,0),MATCH(F$2,'Data Annex'!$K$1:$BA$1,0)),\"\")","v":1.8135575022999999},{"$f":"IFERROR(INDEX('Data Annex'!$K$1:$BA$5047,MATCH(G$1&\"|\"&$B41,'Data Annex'!$K$1:$K$5047,0),MATCH(G$2,'Data Annex'!$K$1:$BA$1,0)),\"\")","v":1.6127417799999999},{"$f":"IFERROR(INDEX('Data Annex'!$K$1:$BA$5047,MATCH(H$1&\"|\"&$B41,'Data Annex'!$K$1:$K$5047,0),MATCH(H$2,'Data Annex'!$K$1:$BA$1,0)),\"\")","v":0.92675873900000005},{"$f":"IFERROR(INDEX('Data Annex'!$K$1:$BA$5047,MATCH(I$1&\"|\"&$B41,'Data Annex'!$K$1:$K$5047,0),MATCH(I$2,'Data Annex'!$K$1:$BA$1,0)),\"\")","v":0},{"$f":"IFERROR(INDEX('Data Annex'!$K$1:$BA$5047,MATCH(J$1&\"|\"&$B41,'Data Annex'!$K$1:$K$5047,0),MATCH(J$2,'Data Annex'!$K$1:$BA$1,0)),\"\")","v":0.4432296617},{"$f":"IFERROR(INDEX('Data Annex'!$K$1:$BA$5047,MATCH(K$1&\"|\"&$B41,'Data Annex'!$K$1:$K$5047,0),MATCH(K$2,'Data Annex'!$K$1:$BA$1,0)),\"\")","v":0.4310867565},{"$f":"IFERROR(INDEX('Data Annex'!$K$1:$BA$5047,MATCH(L$1&\"|\"&$B41,'Data Annex'!$K$1:$K$5047,0),MATCH(L$2,'Data Annex'!$K$1:$BA$1,0)),\"\")","v":0.26417321760000001},{"$f":"IFERROR(INDEX('Data Annex'!$K$1:$BA$5047,MATCH(M$1&\"|\"&$B41,'Data Annex'!$K$1:$K$5047,0),MATCH(M$2,'Data Annex'!$K$1:$BA$1,0)),\"\")","v":0},{"$f":"IFERROR(INDEX('Data Annex'!$K$1:$BA$5047,MATCH(N$1&\"|\"&$B41,'Data Annex'!$K$1:$K$5047,0),MATCH(N$2,'Data Annex'!$K$1:$BA$1,0)),\"\")","v":0.54112043160000001},{"$f":"IFERROR(INDEX('Data Annex'!$K$1:$BA$5047,MATCH(O$1&\"|\"&$B41,'Data Annex'!$K$1:$K$5047,0),MATCH(O$2,'Data Annex'!$K$1:$BA$1,0)),\"\")","v":0.56308128759999998},{"$f":"IFERROR(INDEX('Data Annex'!$K$1:$BA$5047,MATCH(P$1&\"|\"&$B41,'Data Annex'!$K$1:$K$5047,0),MATCH(P$2,'Data Annex'!$K$1:$BA$1,0)),\"\")","v":0.72564022399999994},{"$f":"IFERROR(INDEX('Data Annex'!$K$1:$BA$5047,MATCH(Q$1&\"|\"&$B41,'Data Annex'!$K$1:$K$5047,0),MATCH(Q$2,'Data Annex'!$K$1:$BA$1,0)),\"\")","v":0},{"$f":"IFERROR(INDEX('Data Annex'!$K$1:$BA$5047,MATCH(R$1&\"|\"&$B41,'Data Annex'!$K$1:$K$5047,0),MATCH(R$2,'Data Annex'!$K$1:$BA$1,0)),\"\")","v":0.1716117617},{"$f":"IFERROR(INDEX('Data Annex'!$K$1:$BA$5047,MATCH(S$1&\"|\"&$B41,'Data Annex'!$K$1:$K$5047,0),MATCH(S$2,'Data Annex'!$K$1:$BA$1,0)),\"\")","v":0.1990336029},{"$f":"IFERROR(INDEX('Data Annex'!$K$1:$BA$5047,MATCH(T$1&\"|\"&$B41,'Data Annex'!$K$1:$K$5047,0),MATCH(T$2,'Data Annex'!$K$1:$BA$1,0)),\"\")","v":0.44403309260000001},{"$f":"IFERROR(INDEX('Data Annex'!$K$1:$BA$5047,MATCH(U$1&\"|\"&$B41,'Data Annex'!$K$1:$K$5047,0),MATCH(U$2,'Data Annex'!$K$1:$BA$1,0)),\"\")","v":0},{"$f":"IFERROR(INDEX('Data Annex'!$K$1:$BA$5047,MATCH(V$1&\"|\"&$B41,'Data Annex'!$K$1:$K$5047,0),MATCH(V$2,'Data Annex'!$K$1:$BA$1,0)),\"\")","v":2.66340124E-2},{"$f":"IFERROR(INDEX('Data Annex'!$K$1:$BA$5047,MATCH(W$1&\"|\"&$B41,'Data Annex'!$K$1:$K$5047,0),MATCH(W$2,'Data Annex'!$K$1:$BA$1,0)),\"\")","v":3.69783209E-2},{"$f":"IFERROR(INDEX('Data Annex'!$K$1:$BA$5047,MATCH(X$1&\"|\"&$B41,'Data Annex'!$K$1:$K$5047,0),MATCH(X$2,'Data Annex'!$K$1:$BA$1,0)),\"\")","v":6.0769530000000002E-2},{"$f":"IFERROR(INDEX('Data Annex'!$K$1:$BA$5047,MATCH(Y$1&\"|\"&$B41,'Data Annex'!$K$1:$K$5047,0),MATCH(Y$2,'Data Annex'!$K$1:$BA$1,0)),\"\")","v":0},{"$f":"IFERROR(INDEX('Data Annex'!$K$1:$BA$5047,MATCH(Z$1&\"|\"&$B41,'Data Annex'!$K$1:$K$5047,0),MATCH(Z$2,'Data Annex'!$K$1:$BA$1,0)),\"\")","v":0.38291611460000002},{"$f":"IFERROR(INDEX('Data Annex'!$K$1:$BA$5047,MATCH(AA$1&\"|\"&$B41,'Data Annex'!$K$1:$K$5047,0),MATCH(AA$2,'Data Annex'!$K$1:$BA$1,0)),\"\")","v":0.4694501351},{"$f":"IFERROR(INDEX('Data Annex'!$K$1:$BA$5047,MATCH(AB$1&\"|\"&$B41,'Data Annex'!$K$1:$K$5047,0),MATCH(AB$2,'Data Annex'!$K$1:$BA$1,0)),\"\")","v":0.31373833550000002}]
[30,"SK",null,"SK",{"$f":"IFERROR(INDEX('Data Annex'!$K$1:$BA$5047,MATCH(E$1&\"|\"&$B42,'Data Annex'!$K$1:$K$5047,0),MATCH(E$2,'Data Annex'!$K$1:$BA$1,0)),\"\")","v":0},{"$f":"IFERROR(INDEX('Data Annex'!$K$1:$BA$5047,MATCH(F$1&\"|\"&$B42,'Data Annex'!$K$1:$K$5047,0),MATCH(F$2,'Data Annex'!$K$1:$BA$1,0)),\"\")","v":4.7243192606999997},{"$f":"IFERROR(INDEX('Data Annex'!$K$1:$BA$5047,MATCH(G$1&\"|\"&$B42,'Data Annex'!$K$1:$K$5047,0),MATCH(G$2,'Data Annex'!$K$1:$BA$1,0)),\"\")","v":4.3494818390000001},{"$f":"IFERROR(INDEX('Data Annex'!$K$1:$BA$5047,MATCH(H$1&\"|\"&$B42,'Data Annex'!$K$1:$K$5047,0),MATCH(H$2,'Data Annex'!$K$1:$BA$1,0)),\"\")","v":2.3366917976999999},{"$f":"IFERROR(INDEX('Data Annex'!$K$1:$BA$5047,MATCH(I$1&\"|\"&$B42,'Data Annex'!$K$1:$K$5047,0),MATCH(I$2,'Data Annex'!$K$1:$BA$1,0)),\"\")","v":0},{"$f":"IFERROR(INDEX('Data Annex'!$K$1:$BA$5047,MATCH(J$1&\"|\"&$B42,'Data Annex'!$K$1:$K$5047,0),MATCH(J$2,'Data Annex'!$K$1:$BA$1,0)),\"\")","v":0.64527177420000004},{"$f":"IFERROR(INDEX('Data Annex'!$K$1:$BA$5047,MATCH(K$1&\"|\"&$B42,'Data Annex'!$K$1:$K$5047,0),MATCH(K$2,'Data Annex'!$K$1:$BA$1,0)),\"\")","v":0.64318856820000003},{"$f":"IFERROR(INDEX('Data Annex'!$K$1:$BA$5047,MATCH(L$1&\"|\"&$B42,'Data Annex'!$K$1:$K$5047,0),MATCH(L$2,'Data Annex'!$K$1:$BA$1,0)),\"\")","v":0.73474941159999996},{"$f":"IFERROR(INDEX('Data Annex'!$K$1:$BA$5047,MATCH(M$1&\"|\"&$B42,'Data Annex'!$K$1:$K$5047,0),MATCH(M$2,'Data Annex'!$K$1:$BA$1,0)),\"\")","v":0},{"$f":"IFERROR(INDEX('Data Annex'!$K$1:$BA$5047,MATCH(N$1&\"|\"&$B42,'Data Annex'!$K$1:$K$5047,0),MATCH(N$2,'Data Annex'!$K$1:$BA$1,0)),\"\")","v":0.3368577431},{"$f":"IFERROR(INDEX('Data Annex'!$K$1:$BA$5047,MATCH(O$1&\"|\"&$B42,'Data Annex'!$K$1:$K$5047,0),MATCH(O$2,'Data Annex'!$K$1:$BA$1,0)),\"\")","v":0.3368646334},{"$f":"IFERROR(INDEX('Data Annex'!$K$1:$BA$5047,MATCH(P$1&\"|\"&$B42,'Data Annex'!$K$1:$K$5047,0),MATCH(P$2,'Data Annex'!$K$1:$BA$1,0)),\"\")","v":0.26506669849999998},{"$f":"IFERROR(INDEX('Data Annex'!$K$1:$BA$5047,MATCH(Q$1&\"|\"&$B42,'Data Annex'!$K$1:$K$5047,0),MATCH(Q$2,'Data Annex'!$K$1:$BA$1,0)),\"\")","v":0},{"$f":"IFERROR(INDEX('Data Annex'!$K$1:$BA$5047,MATCH(R$1&\"|\"&$B42,'Data Annex'!$K$1:$K$5047,0),MATCH(R$2,'Data Annex'!$K$1:$BA$1,0)),\"\")","v":0.38583440800000002},{"$f":"IFERROR(INDEX('Data Annex'!$K$1:$BA$5047,MATCH(S$1&\"|\"&$B42,'Data Annex'!$K$1:$K$5047,0),MATCH(S$2,'Data Annex'!$K$1:$BA$1,0)),\"\")","v":0.43889192220000001},{"$f":"IFERROR(INDEX('Data Annex'!$K$1:$BA$5047,MATCH(T$1&\"|\"&$B42,'Data Annex'!$K$1:$K$5047,0),MATCH(T$2,'Data Annex'!$K$1:$BA$1,0)),\"\")","v":0.47459579909999999},{"$f":"IFERROR(INDEX('Data Annex'!$K$1:$BA$5047,MATCH(U$1&\"|\"&$B42,'Data Annex'!$K$1:$K$5047,0),MATCH(U$2,'Data Annex'!$K$1:$BA$1,0)),\"\")","v":0},{"$f":"IFERROR(INDEX('Data Annex'!$K$1:$BA$5047,MATCH(V$1&\"|\"&$B42,'Data Annex'!$K$1:$K$5047,0),MATCH(V$2,'Data Annex'!$K$1:$BA$1,0)),\"\")","v":7.2442705999999999E-3},{"$f":"IFERROR(INDEX('Data Annex'!$K$1:$BA$5047,MATCH(W$1&\"|\"&$B42,'Data Annex'!$K$1:$K$5047,0),MATCH(W$2,'Data Annex'!$K$1:$BA$1,0)),\"\")","v":7.2491973999999999E-3},{"$f":"IFERROR(INDEX('Data Annex'!$K$1:$BA$5047,MATCH(X$1&\"|\"&$B42,'Data Annex'!$K$1:$K$5047,0),MATCH(X$2,'Data Annex'!$K$1:$BA$1,0)),\"\")","v":9.2563945000000009E-3},{"$f":"IFERROR(INDEX('Data Annex'!$K$1:$BA$5047,MATCH(Y$1&\"|\"&$B42,'Data Annex'!$K$1:$K$5047,0),MATCH(Y$2,'Data Annex'!$K$1:$BA$1,0)),\"\")","v":0},{"$f":"IFERROR(INDEX('Data Annex'!$K$1:$BA$5047,MATCH(Z$1&\"|\"&$B42,'Data Annex'!$K$1:$K$5047,0),MATCH(Z$2,'Data Annex'!$K$1:$BA$1,0)),\"\")","v":0.40588183150000001},{"$f":"IFERROR(INDEX('Data Annex'!$K$1:$BA$5047,MATCH(AA$1&\"|\"&$B42,'Data Annex'!$K$1:$K$5047,0),MATCH(AA$2,'Data Annex'!$K$1:$BA$1,0)),\"\")","v":0.50294799690000003},{"$f":"IFERROR(INDEX('Data Annex'!$K$1:$BA$5047,MATCH(AB$1&\"|\"&$B42,'Data Annex'!$K$1:$K$5047,0),MATCH(AB$2,'Data Annex'!$K$1:$BA$1,0)),\"\")","v":0.45805383960000001}]
[99,"EU",null,"EU/EEA",{"$f":"IFERROR(INDEX('Data Annex'!$K$1:$BA$5047,MATCH(E$1&\"|\"&$B43,'Data Annex'!$K$1:$K$5047,0),MATCH(E$2,'Data Annex'!$K$1:$BA$1,0)),\"\")","v":0},{"$f":"IFERROR(INDEX('Data Annex'!$K$1:$BA$5047,MATCH(F$1&\"|\"&$B43,'Data Annex'!$K$1:$K$5047,0),MATCH(F$2,'Data Annex'!$K$1:$BA$1,0)),\"\")","v":810.84817376000001},{"$f":"IFERROR(INDEX('Data Annex'!$K$1:$BA$5047,MATCH(G$1&\"|\"&$B43,'Data Annex'!$K$1:$K$5047,0),MATCH(G$2,'Data Annex'!$K$1:$BA$1,0)),\"\")","v":585.86165831999995},{"$f":"IFERROR(INDEX('Data Annex'!$K$1:$BA$5047,MATCH(H$1&\"|\"&$B43,'Data Annex'!$K$1:$K$5047,0),MATCH(H$2,'Data Annex'!$K$1:$BA$1,0)),\"\")","v":318.40108378999997},{"$f":"IFERROR(INDEX('Data Annex'!$K$1:$BA$5047,MATCH(I$1&\"|\"&$B43,'Data Annex'!$K$1:$K$5047,0),MATCH(I$2,'Data Annex'!$K$1:$BA$1,0)),\"\")","v":0},{"$f":"IFERROR(INDEX('Data Annex'!$K$1:$BA$5047,MATCH(J$1&\"|\"&$B43,'Data Annex'!$K$1:$K$5047,0),MATCH(J$2,'Data Annex'!$K$1:$BA$1,0)),\"\")","v":0.38685927349999999},{"$f":"IFERROR(INDEX('Data Annex'!$K$1:$BA$5047,MATCH(K$1&\"|\"&$B43,'Data Annex'!$K$1:$K$5047,0),MATCH(K$2,'Data Annex'!$K$1:$BA$1,0)),\"\")","v":0.39558402590000002},{"$f":"IFERROR(INDEX('Data Annex'!$K$1:$BA$5047,MATCH(L$1&\"|\"&$B43,'Data Annex'!$K$1:$K$5047,0),MATCH(L$2,'Data Annex'!$K$1:$BA$1,0)),\"\")","v":0.45287228709999999},{"$f":"IFERROR(INDEX('Data Annex'!$K$1:$BA$5047,MATCH(M$1&\"|\"&$B43,'Data Annex'!$K$1:$K$5047,0),MATCH(M$2,'Data Annex'!$K$1:$BA$1,0)),\"\")","v":0},{"$f":"IFERROR(INDEX('Data Annex'!$K$1:$BA$5047,MATCH(N$1&\"|\"&$B43,'Data Annex'!$K$1:$K$5047,0),MATCH(N$2,'Data Annex'!$K$1:$BA$1,0)),\"\")","v":0.59905136719999996},{"$f":"IFERROR(INDEX('Data Annex'!$K$1:$BA$5047,MATCH(O$1&\"|\"&$B43,'Data Annex'!$K$1:$K$5047,0),MATCH(O$2,'Data Annex'!$K$1:$BA$1,0)),\"\")","v":0.58945968829999995},{"$f":"IFERROR(INDEX('Data Annex'!$K$1:$BA$5047,MATCH(P$1&\"|\"&$B43,'Data Annex'!$K$1:$K$5047,0),MATCH(P$2,'Data Annex'!$K$1:$BA$1,0)),\"\")","v":0.52897874990000004},{"$f":"IFERROR(INDEX('Data Annex'!$K$1:$BA$5047,MATCH(Q$1&\"|\"&$B43,'Data Annex'!$K$1:$K$5047,0),MATCH(Q$2,'Data Annex'!$K$1:$BA$1,0)),\"\")","v":0},{"$f":"IFERROR(INDEX('Data Annex'!$K$1:$BA$5047,MATCH(R$1&\"|\"&$B43,'Data Annex'!$K$1:$K$5047,0),MATCH(R$2,'Data Annex'!$K$1:$BA$1,0)),\"\")","v":0.1665176401},{"$f":"IFERROR(INDEX('Data Annex'!$K$1:$BA$5047,MATCH(S$1&\"|\"&$B43,'Data Annex'!$K$1:$K$5047,0),MATCH(S$2,'Data Annex'!$K$1:$BA$1,0)),\"\")","v":0.2029061442},{"$f":"IFERROR(INDEX('Data Annex'!$K$1:$BA$5047,MATCH(T$1&\"|\"&$B43,'Data Annex'!$K$1:$K$5047,0),MATCH(T$2,'Data Annex'!$K$1:$BA$1,0)),\"\")","v":0.2643511368},{"$f":"IFERROR(INDEX('Data Annex'!$K$1:$BA$5047,MATCH(U$1&\"|\"&$B43,'Data Annex'!$K$1:$K$5047,0),MATCH(U$2,'Data Annex'!$K$1:$BA$1,0)),\"\")","v":0},{"$f":"IFERROR(INDEX('Data Annex'!$K$1:$BA$5047,MATCH(V$1&\"|\"&$B43,'Data Annex'!$K$1:$K$5047,0),MATCH(V$2,'Data Annex'!$K$1:$BA$1,0)),\"\")","v":2.50585592E-2},{"$f":"IFERROR(INDEX('Data Annex'!$K$1:$BA$5047,MATCH(W$1&\"|\"&$B43,'Data Annex'!$K$1:$K$5047,0),MATCH(W$2,'Data Annex'!$K$1:$BA$1,0)),\"\")","v":2.92646513E-2},{"$f":"IFERROR(INDEX('Data Annex'!$K$1:$BA$5047,MATCH(X$1&\"|\"&$B43,'Data Annex'!$K$1:$K$5047,0),MATCH(X$2,'Data Annex'!$K$1:$BA$1,0)),\"\")","v":3.2814565900000002E-2},{"$f":"IFERROR(INDEX('Data Annex'!$K$1:$BA$5047,MATCH(Y$1&\"|\"&$B43,'Data Annex'!$K$1:$K$5047,0),MATCH(Y$2,'Data Annex'!$K$1:$BA$1,0)),\"\")","v":0},{"$f":"IFERROR(INDEX('Data Annex'!$K$1:$BA$5047,MATCH(Z$1&\"|\"&$B43,'Data Annex'!$K$1:$K$5047,0),MATCH(Z$2,'Data Annex'!$K$1:$BA$1,0)),\"\")","v":0.24761745969999999},{"$f":"IFERROR(INDEX('Data Annex'!$K$1:$BA$5047,MATCH(AA$1&\"|\"&$B43,'Data Annex'!$K$1:$K$5047,0),MATCH(AA$2,'Data Annex'!$K$1:$BA$1,0)),\"\")","v":0.27927309189999999},{"$f":"IFERROR(INDEX('Data Annex'!$K$1:$BA$5047,MATCH(AB$1&\"|\"&$B43,'Data Annex'!$K$1:$K$5047,0),MATCH(AB$2,'Data Annex'!$K$1:$BA$1,0)),\"\")","v":0.317353359}]
[null,null,null,null,null,null,null,null,null,null,null,null,null,null,null,null,{"$f":"TEXT(Q86,\"YYYYMM\")+0","v":190001},{"$f":"TEXT(R86,\"YYYYMM\")+0","v":190001},{"$f":"TEXT(S86,\"YYYYMM\")+0","v":190001},{"$f":"TEXT(T86,\"YYYYMM\")+0","v":190001}]
[null,null,null,null,"T91_1","T91_1","T91_1","T91_1","T91_2","T91_2","T91_2","T91_2","T91_3","T91_3","T91_3","T91_3","T91_4","T91_4","T91_4","T91_4","T91_5","T91_5","T91_5","T91_5","T91_6","T91_6","T91_6","T91_6"]
[null,null,null,null,{"$f":"TEXT(E51,\"YYYYMM\")+0","v":202003},{"$f":"TEXT(F51,\"YYYYMM\")+0","v":202006},202009,202012,202003,202006,202009,202012,202003,202006,202009,202012,202003,202006,202009,202012,202003,202006,202009,202012,202003,202006,202009,202012]
[null,null,null,"Loans and advances with expired EBA-compliant moratoria"]
[]
[null,null,null,"Volumes bn EUR; %"]
[null,null,null,null,"Total",null,null,null,"of which: Households",null,null,null,"of which: NFCs",null,null,null,"Stage 2",null,null,null,"Non-performing",null,null,null,"Coverage of NPLs"]
[null,null,null,null,{"$f":"EOMONTH($A$3,-9)","v":"2020-03-31"},{"$f":"EOMONTH($A$3,-6)","v":"2020-06-30"},{"$f":"EOMONTH($A$3,-3)","v":"2020-09-30"},{"$f":"EOMONTH($A$3,0)","v":"2020-12-31"},{"$f":"EOMONTH($A$3,-9)","v":"2020-03-31"},{"$f":"EOMONTH($A$3,-6)","v":"2020-06-30"},{"$f":"EOMONTH($A$3,-3)","v":"2020-09-30"},{"$f":"EOMONTH($A$3,0)","v":"2020-12-31"},{"$f":"EOMONTH($A$3,-9)","v":"2020-03-31"},{"$f":"EOMONTH($A$3,-6)","v":"2020-06-30"},{"$f":"EOMONTH($A$3,-3)","v":"2020-09-30"},{"$f":"EOMONTH($A$3,0)","v":"2020-12-31"},{"$f":"EOMONTH($A$3,-9)","v":"2020-03-31"},{"$f":"EOMONTH($A$3,-6)","v":"2020-06-30"},{"$f":"EOMONTH($A$3,-3)","v":"2020-09-30"},{"$f":"EOMONTH($A$3,0)","v":"2020-12-31"},{"$f":"EOMONTH($A$3,-9)","v":"2020-03-31"},{"$f":"EOMONTH($A$3,-6)","v":"2020-06-30"},{"$f":"EOMONTH($A$3,-3)","v":"2020-09-30"},{"$f":"EOMONTH($A$3,0)","v":"2020-12-31"},{"$f":"EOMONTH($A$3,-9)","v":"2020-03-31"},{"$f":"EOMONTH($A$3,-6)","v":"2020-06-30"},{"$f":"EOMONTH($A$3,-3)","v":"2020-09-30"},{"$f":"EOMONTH($A$3,0)","v":"2020-12-31"}]
[1,"AT",null,{"$f":"IF(OR(E52=\"n.a.\",F52=\"n.a.\",G52=\"n.a.\",H52=\"n.a.\",I52=\"n.a.\",J52=\"n.a.\",K52=\"n.a.\",L52=\"n.a.\",M52=\"n.a.\",N52=\"n.a.\",O52=\"n.a.\",P52=\"n.a.\",Q52=\"n.a.\",R52=\"n.a.\",S52=\"n.a.\",T52=\"n.a.\",U52=\"n.a.\",V52=\"n.a.\",W52=\"n.a.\",X52=\"n.a.\",Y52=\"n.a.\",Z52=\"n.a.\",AA52=\"n.a.\",AB52=\"n.a.\"),$B52&\"*\",$B52)","v":"AT"},{"$f":"IFERROR(INDEX('Data Annex'!$K$1:$BA$5047,MATCH(E$45&\"|\"&$B52,'Data Annex'!$K$1:$K$5047,0),MATCH(E$46,'Data Annex'!$K$1:$BA$1,0)),\"\")","v":0},{"$f":"IFERROR(INDEX('Data Annex'!$K$1:$BA$5047,MATCH(F$45&\"|\"&$B52,'Data Annex'!$K$1:$K$5047,0),MATCH(F$46,'Data Annex'!$K$1:$BA$1,0)),\"\")","v":6.5158216296000004},{"$f":"IFERROR(INDEX('Data Annex'!$K$1:$BA$5047,MATCH(G$45&\"|\"&$B52,'Data Annex'!$K$1:$K$5047,0),MATCH(G$46,'Data Annex'!$K$1:$BA$1,0)),\"\")","v":14.012563082},{"$f":"IFERROR(INDEX('Data Annex'!$K$1:$BA$5047,MATCH(H$45&\"|\"&$B52,'Data Annex'!$K$1:$K$5047,0),MATCH(H$46,'Data Annex'!$K$1:$BA$1,0)),\"\")","v":24.409454468},{"$f":"IFERROR(INDEX('Data Annex'!$K$1:$BA$5047,MATCH(I$45&\"|\"&$B52,'Data Annex'!$K$1:$K$5047,0),MATCH(I$46,'Data Annex'!$K$1:$BA$1,0)),\"\")","v":0},{"$f":"IFERROR(INDEX('Data Annex'!$K$1:$BA$5047,MATCH(J$45&\"|\"&$B52,'Data Annex'!$K$1:$K$5047,0),MATCH(J$46,'Data Annex'!$K$1:$BA$1,0)),\"\")","v":0.70710724670000003},{"$f":"IFERROR(INDEX('Data Annex'!$K$1:$BA$5047,MATCH(K$45&\"|\"&$B52,'Data Annex'!$K$1:$K$5047,0),MATCH(K$46,'Data Annex'!$K$1:$BA$1,0)),\"\")","v":0.53728062489999995},{"$f":"IFERROR(INDEX('Data Annex'!$K$1:$BA$5047,MATCH(L$45&\"|\"&$B52,'Data Annex'!$K$1:$K$5047,0),MATCH(L$46,'Data Annex'!$K$1:$BA$1,0)),\"\")","v":0.56852530369999998},{"$f":"IFERROR(INDEX('Data Annex'!$K$1:$BA$5047,MATCH(M$45&\"|\"&$B52,'Data Annex'!$K$1:$K$5047,0),MATCH(M$46,'Data Annex'!$K$1:$BA$1,0)),\"\")","v":0},{"$f":"IFERROR(INDEX('Data Annex'!$K$1:$BA$5047,MATCH(N$45&\"|\"&$B52,'Data Annex'!$K$1:$K$5047,0),MATCH(N$46,'Data Annex'!$K$1:$BA$1,0)),\"\")","v":0.28916413219999998},{"$f":"IFERROR(INDEX('Data Annex'!$K$1:$BA$5047,MATCH(O$45&\"|\"&$B52,'Data Annex'!$K$1:$K$5047,0),MATCH(O$46,'Data Annex'!$K$1:$BA$1,0)),\"\")","v":0.44629746910000001},{"$f":"IFERROR(INDEX('Data Annex'!$K$1:$BA$5047,MATCH(P$45&\"|\"&$B52,'Data Annex'!$K$1:$K$5047,0),MATCH(P$46,'Data Annex'!$K$1:$BA$1,0)),\"\")","v":0.41914260549999999},{"$f":"IFERROR(INDEX('Data Annex'!$K$1:$BA$5047,MATCH(Q$45&\"|\"&$B52,'Data Annex'!$K$1:$K$5047,0),MATCH(Q$46,'Data Annex'!$K$1:$BA$1,0)),\"\")","v":0},{"$f":"IFERROR(INDEX('Data Annex'!$K$1:$BA$5047,MATCH(R$45&\"|\"&$B52,'Data Annex'!$K$1:$K$5047,0),MATCH(R$46,'Data Annex'!$K$1:$BA$1,0)),\"\")","v":0.29078468210000002},{"$f":"IFERROR(INDEX('Data Annex'!$K$1:$BA$5047,MATCH(S$45&\"|\"&$B52,'Data Annex'!$K$1:$K$5047,0),MATCH(S$46,'Data Annex'!$K$1:$BA$1,0)),\"\")","v":0.36387144179999997},{"$f":"IFERROR(INDEX('Data Annex'!$K$1:$BA$5047,MATCH(T$45&\"|\"&$B52,'Data Annex'!$K$1:$K$5047,0),MATCH(T$46,'Data Annex'!$K$1:$BA$1,0)),\"\")","v":0.3793224355},{"$f":"IFERROR(INDEX('Data Annex'!$K$1:$BA$5047,MATCH(U$45&\"|\"&$B52,'Data Annex'!$K$1:$K$5047,0),MATCH(U$46,'Data Annex'!$K$1:$BA$1,0)),\"\")","v":0},{"$f":"IFERROR(INDEX('Data Annex'!$K$1:$BA$5047,MATCH(V$45&\"|\"&$B52,'Data Annex'!$K$1:$K$5047,0),MATCH(V$46,'Data Annex'!$K$1:$BA$1,0)),\"\")","v":1.9902993500000001E-2},{"$f":"IFERROR(INDEX('Data Annex'!$K$1:$BA$5047,MATCH(W$45&\"|\"&$B52,'Data Annex'!$K$1:$K$5047,0),MATCH(W$46,'Data Annex'!$K$1:$BA$1,0)),\"\")","v":1.7685969499999999E-2},{"$f":"IFERROR(INDEX('Data Annex'!$K$1:$BA$5047,MATCH(X$45&\"|\"&$B52,'Data Annex'!$K$1:$K$5047,0),MATCH(X$46,'Data Annex'!$K$1:$BA$1,0)),\"\")","v":3.6514555999999997E-2},{"$f":"IFERROR(INDEX('Data Annex'!$K$1:$BA$5047,MATCH(Y$45&\"|\"&$B52,'Data Annex'!$K$1:$K$5047,0),MATCH(Y$46,'Data Annex'!$K$1:$BA$1,0)),\"\")","v":0},{"$f":"IFERROR(INDEX('Data Annex'!$K$1:$BA$5047,MATCH(Z$45&\"|\"&$B52,'Data Annex'!$K$1:$K$5047,0),MATCH(Z$46,'Data Annex'!$K$1:$BA$1,0)),\"\")","v":0.38670331540000003},{"$f":"IFERROR(INDEX('Data Annex'!$K$1:$BA$5047,MATCH(AA$45&\"|\"&$B52,'Data Annex'!$K$1:$K$5047,0),MATCH(AA$46,'Data Annex'!$K$1:$BA$1,0)),\"\")","v":0.2937551746},{"$f":"IFERROR(INDEX('Data Annex'!$K$1:$BA$5047,MATCH(AB$45&\"|\"&$B52,'Data Annex'!$K$1:$K$5047,0),MATCH(AB$46,'Data Annex'!$K$1:$BA$1,0)),\"\")","v":0.44894401010000001}]
[2,"BE",null,{"$f":"IF(OR(E53=\"n.a.\",F53=\"n.a.\",G53=\"n.a.\",H53=\"n.a.\",I53=\"n.a.\",J53=\"n.a.\",K53=\"n.a.\",L53=\"n.a.\",M53=\"n.a.\",N53=\"n.a.\",O53=\"n.a.\",P53=\"n.a.\",Q53=\"n.a.\",R53=\"n.a.\",S53=\"n.a.\",T53=\"n.a.\",U53=\"n.a.\",V53=\"n.a.\",W53=\"n.a.\",X53=\"n.a.\",Y53=\"n.a.\",Z53=\"n.a.\",AA53=\"n.a.\",AB53=\"n.a.\"),$B53&\"*\",$B53)","v":"BE"},{"$f":"IFERROR(INDEX('Data Annex'!$K$1:$BA$5047,MATCH(E$45&\"|\"&$B53,'Data Annex'!$K$1:$K$5047,0),MATCH(E$46,'Data Annex'!$K$1:$BA$1,0)),\"\")","v":0},{"$f":"IFERROR(INDEX('Data Annex'!$K$1:$BA$5047,MATCH(F$45&\"|\"&$B53,'Data Annex'!$K$1:$K$5047,0),MATCH(F$46,'Data Annex'!$K$1:$BA$1,0)),\"\")","v":0.1285616399},{"$f":"IFERROR(INDEX('Data Annex'!$K$1:$BA$5047,MATCH(G$45&\"|\"&$B53,'Data Annex'!$K$1:$K$5047,0),MATCH(G$46,'Data Annex'!$K$1:$BA$1,0)),\"\")","v":2.7776581844999999},{"$f":"IFERROR(INDEX('Data Annex'!$K$1:$BA$5047,MATCH(H$45&\"|\"&$B53,'Data Annex'!$K$1:$K$5047,0),MATCH(H$46,'Data Annex'!$K$1:$BA$1,0)),\"\")","v":35.843873389999999},{"$f":"IFERROR(INDEX('Data Annex'!$K$1:$BA$5047,MATCH(I$45&\"|\"&$B53,'Data Annex'!$K$1:$K$5047,0),MATCH(I$46,'Data Annex'!$K$1:$BA$1,0)),\"\")","v":0},{"$f":"IFERROR(INDEX('Data Annex'!$K$1:$BA$5047,MATCH(J$45&\"|\"&$B53,'Data Annex'!$K$1:$K$5047,0),MATCH(J$46,'Data Annex'!$K$1:$BA$1,0)),\"\")","v":0.73273252720000004},{"$f":"IFERROR(INDEX('Data Annex'!$K$1:$BA$5047,MATCH(K$45&\"|\"&$B53,'Data Annex'!$K$1:$K$5047,0),MATCH(K$46,'Data Annex'!$K$1:$BA$1,0)),\"\")","v":0.55569899739999995},{"$f":"IFERROR(INDEX('Data Annex'!$K$1:$BA$5047,MATCH(L$45&\"|\"&$B53,'Data Annex'!$K$1:$K$5047,0),MATCH(L$46,'Data Annex'!$K$1:$BA$1,0)),\"\")","v":0.38934254000000001},{"$f":"IFERROR(INDEX('Data Annex'!$K$1:$BA$5047,MATCH(M$45&\"|\"&$B53,'Data Annex'!$K$1:$K$5047,0),MATCH(M$46,'Data Annex'!$K$1:$BA$1,0)),\"\")","v":0},{"$f":"IFERROR(INDEX('Data Annex'!$K$1:$BA$5047,MATCH(N$45&\"|\"&$B53,'Data Annex'!$K$1:$K$5047,0),MATCH(N$46,'Data Annex'!$K$1:$BA$1,0)),\"\")","v":0.2658245561},{"$f":"IFERROR(INDEX('Data Annex'!$K$1:$BA$5047,MATCH(O$45&\"|\"&$B53,'Data Annex'!$K$1:$K$5047,0),MATCH(O$46,'Data Annex'!$K$1:$BA$1,0)),\"\")","v":0.39817006519999998},{"$f":"IFERROR(INDEX('Data Annex'!$K$1:$BA$5047,MATCH(P$45&\"|\"&$B53,'Data Annex'!$K$1:$K$5047,0),MATCH(P$46,'Data Annex'!$K$1:$BA$1,0)),\"\")","v":0.58027840060000002},{"$f":"IFERROR(INDEX('Data Annex'!$K$1:$BA$5047,MATCH(Q$45&\"|\"&$B53,'Data Annex'!$K$1:$K$5047,0),MATCH(Q$46,'Data Annex'!$K$1:$BA$1,0)),\"\")","v":0},{"$f":"IFERROR(INDEX('Data Annex'!$K$1:$BA$5047,MATCH(R$45&\"|\"&$B53,'Data Annex'!$K$1:$K$5047,0),MATCH(R$46,'Data Annex'!$K$1:$BA$1,0)),\"\")","v":0.30211090070000002},{"$f":"IFERROR(INDEX('Data Annex'!$K$1:$BA$5047,MATCH(S$45&\"|\"&$B53,'Data Annex'!$K$1:$K$5047,0),MATCH(S$46,'Data Annex'!$K$1:$BA$1,0)),\"\")","v":0.3398878259},{"$f":"IFERROR(INDEX('Data Annex'!$K$1:$BA$5047,MATCH(T$45&\"|\"&$B53,'Data Annex'!$K$1:$K$5047,0),MATCH(T$46,'Data Annex'!$K$1:$BA$1,0)),\"\")","v":0.21883555399999999},{"$f":"IFERROR(INDEX('Data Annex'!$K$1:$BA$5047,MATCH(U$45&\"|\"&$B53,'Data Annex'!$K$1:$K$5047,0),MATCH(U$46,'Data Annex'!$K$1:$BA$1,0)),\"\")","v":0},{"$f":"IFERROR(INDEX('Data Annex'!$K$1:$BA$5047,MATCH(V$45&\"|\"&$B53,'Data Annex'!$K$1:$K$5047,0),MATCH(V$46,'Data Annex'!$K$1:$BA$1,0)),\"\")","v":5.7508058399999999E-2},{"$f":"IFERROR(INDEX('Data Annex'!$K$1:$BA$5047,MATCH(W$45&\"|\"&$B53,'Data Annex'!$K$1:$K$5047,0),MATCH(W$46,'Data Annex'!$K$1:$BA$1,0)),\"\")","v":5.39354321E-2},{"$f":"IFERROR(INDEX('Data Annex'!$K$1:$BA$5047,MATCH(X$45&\"|\"&$B53,'Data Annex'!$K$1:$K$5047,0),MATCH(X$46,'Data Annex'!$K$1:$BA$1,0)),\"\")","v":1.9860754599999999E-2},{"$f":"IFERROR(INDEX('Data Annex'!$K$1:$BA$5047,MATCH(Y$45&\"|\"&$B53,'Data Annex'!$K$1:$K$5047,0),MATCH(Y$46,'Data Annex'!$K$1:$BA$1,0)),\"\")","v":0},{"$f":"IFERROR(INDEX('Data Annex'!$K$1:$BA$5047,MATCH(Z$45&\"|\"&$B53,'Data Annex'!$K$1:$K$5047,0),MATCH(Z$46,'Data Annex'!$K$1:$BA$1,0)),\"\")","v":9.3338512299999996E-2},{"$f":"IFERROR(INDEX('Data Annex'!$K$1:$BA$5047,MATCH(AA$45&\"|\"&$B53,'Data Annex'!$K$1:$K$5047,0),MATCH(AA$46,'Data Annex'!$K$1:$BA$1,0)),\"\")","v":0.16735622429999999},{"$f":"IFERROR(INDEX('Data Annex'!$K$1:$BA$5047,MATCH(AB$45&\"|\"&$B53,'Data Annex'!$K$1:$K$5047,0),MATCH(AB$46,'Data Annex'!$K$1:$BA$1,0)),\"\")","v":0.1161326303}]
[3,"BG",null,"BG",{"$f":"IFERROR(INDEX('Data Annex'!$K$1:$BA$5047,MATCH(E$45&\"|\"&$B54,'Data Annex'!$K$1:$K$5047,0),MATCH(E$46,'Data Annex'!$K$1:$BA$1,0)),\"\")","v":0},{"$f":"IFERROR(INDEX('Data Annex'!$K$1:$BA$5047,MATCH(F$45&\"|\"&$B54,'Data Annex'!$K$1:$K$5047,0),MATCH(F$46,'Data Annex'!$K$1:$BA$1,0)),\"\")","v":0.13353870540000001},{"$f":"IFERROR(INDEX('Data Annex'!$K$1:$BA$5047,MATCH(G$45&\"|\"&$B54,'Data Annex'!$K$1:$K$5047,0),MATCH(G$46,'Data Annex'!$K$1:$BA$1,0)),\"\")","v":0.76488086720000004},{"$f":"IFERROR(INDEX('Data Annex'!$K$1:$BA$5047,MATCH(H$45&\"|\"&$B54,'Data Annex'!$K$1:$K$5047,0),MATCH(H$46,'Data Annex'!$K$1:$BA$1,0)),\"\")","v":1.9093833725},{"$f":"IFERROR(INDEX('Data Annex'!$K$1:$BA$5047,MATCH(I$45&\"|\"&$B54,'Data Annex'!$K$1:$K$5047,0),MATCH(I$46,'Data Annex'!$K$1:$BA$1,0)),\"\")","v":0},{"$f":"IFERROR(INDEX('Data Annex'!$K$1:$BA$5047,MATCH(J$45&\"|\"&$B54,'Data Annex'!$K$1:$K$5047,0),MATCH(J$46,'Data Annex'!$K$1:$BA$1,0)),\"\")","v":0.27399636259999999},{"$f":"IFERROR(INDEX('Data Annex'!$K$1:$BA$5047,MATCH(K$45&\"|\"&$B54,'Data Annex'!$K$1:$K$5047,0),MATCH(K$46,'Data Annex'!$K$1:$BA$1,0)),\"\")","v":0.33190057979999998},{"$f":"IFERROR(INDEX('Data Annex'!$K$1:$BA$5047,MATCH(L$45&\"|\"&$B54,'Data Annex'!$K$1:$K$5047,0),MATCH(L$46,'Data Annex'!$K$1:$BA$1,0)),\"\")","v":0.28570827970000001},{"$f":"IFERROR(INDEX('Data Annex'!$K$1:$BA$5047,MATCH(M$45&\"|\"&$B54,'Data Annex'!$K$1:$K$5047,0),MATCH(M$46,'Data Annex'!$K$1:$BA$1,0)),\"\")","v":0},{"$f":"IFERROR(INDEX('Data Annex'!$K$1:$BA$5047,MATCH(N$45&\"|\"&$B54,'Data Annex'!$K$1:$K$5047,0),MATCH(N$46,'Data Annex'!$K$1:$BA$1,0)),\"\")","v":0.68924667370000003},{"$f":"IFERROR(INDEX('Data Annex'!$K$1:$BA$5047,MATCH(O$45&\"|\"&$B54,'Data Annex'!$K$1:$K$5047,0),MATCH(O$46,'Data Annex'!$K$1:$BA$1,0)),\"\")","v":0.65803493960000004},{"$f":"IFERROR(INDEX('Data Annex'!$K$1:$BA$5047,MATCH(P$45&\"|\"&$B54,'Data Annex'!$K$1:$K$5047,0),MATCH(P$46,'Data Annex'!$K$1:$BA$1,0)),\"\")","v":0.70188374379999996},{"$f":"IFERROR(INDEX('Data Annex'!$K$1:$BA$5047,MATCH(Q$45&\"|\"&$B54,'Data Annex'!$K$1:$K$5047,0),MATCH(Q$46,'Data Annex'!$K$1:$BA$1,0)),\"\")","v":0},{"$f":"IFERROR(INDEX('Data Annex'!$K$1:$BA$5047,MATCH(R$45&\"|\"&$B54,'Data Annex'!$K$1:$K$5047,0),MATCH(R$46,'Data Annex'!$K$1:$BA$1,0)),\"\")","v":0.26040777259999998},{"$f":"IFERROR(INDEX('Data Annex'!$K$1:$BA$5047,MATCH(S$45&\"|\"&$B54,'Data Annex'!$K$1:$K$5047,0),MATCH(S$46,'Data Annex'!$K$1:$BA$1,0)),\"\")","v":0.33243535559999998},{"$f":"IFERROR(INDEX('Data Annex'!$K$1:$BA$5047,MATCH(T$45&\"|\"&$B54,'Data Annex'!$K$1:$K$5047,0),MATCH(T$46,'Data Annex'!$K$1:$BA$1,0)),\"\")","v":0.3410763577},{"$f":"IFERROR(INDEX('Data Annex'!$K$1:$BA$5047,MATCH(U$45&\"|\"&$B54,'Data Annex'!$K$1:$K$5047,0),MATCH(U$46,'Data Annex'!$K$1:$BA$1,0)),\"\")","v":0},{"$f":"IFERROR(INDEX('Data Annex'!$K$1:$BA$5047,MATCH(V$45&\"|\"&$B54,'Data Annex'!$K$1:$K$5047,0),MATCH(V$46,'Data Annex'!$K$1:$BA$1,0)),\"\")","v":1.40059347E-2},{"$f":"IFERROR(INDEX('Data Annex'!$K$1:$BA$5047,MATCH(W$45&\"|\"&$B54,'Data Annex'!$K$1:$K$5047,0),MATCH(W$46,'Data Annex'!$K$1:$BA$1,0)),\"\")","v":2.4014107400000002E-2},{"$f":"IFERROR(INDEX('Data Annex'!$K$1:$BA$5047,MATCH(X$45&\"|\"&$B54,'Data Annex'!$K$1:$K$5047,0),MATCH(X$46,'Data Annex'!$K$1:$BA$1,0)),\"\")","v":5.9294306999999997E-2},{"$f":"IFERROR(INDEX('Data Annex'!$K$1:$BA$5047,MATCH(Y$45&\"|\"&$B54,'Data Annex'!$K$1:$K$5047,0),MATCH(Y$46,'Data Annex'!$K$1:$BA$1,0)),\"\")","v":0},{"$f":"IFERROR(INDEX('Data Annex'!$K$1:$BA$5047,MATCH(Z$45&\"|\"&$B54,'Data Annex'!$K$1:$K$5047,0),MATCH(Z$46,'Data Annex'!$K$1:$BA$1,0)),\"\")","v":0.11317659920000001},{"$f":"IFERROR(INDEX('Data Annex'!$K$1:$BA$5047,MATCH(AA$45&\"|\"&$B54,'Data Annex'!$K$1:$K$5047,0),MATCH(AA$46,'Data Annex'!$K$1:$BA$1,0)),\"\")","v":0.55542255870000001},{"$f":"IFERROR(INDEX('Data Annex'!$K$1:$BA$5047,MATCH(AB$45&\"|\"&$B54,'Data Annex'!$K$1:$K$5047,0),MATCH(AB$46,'Data Annex'!$K$1:$BA$1,0)),\"\")","v":0.42625786380000003}]
[4,"CY",null,"CY",{"$f":"IFERROR(INDEX('Data Annex'!$K$1:$BA$5047,MATCH(E$45&\"|\"&$B55,'Data Annex'!$K$1:$K$5047,0),MATCH(E$46,'Data Annex'!$K$1:$BA$1,0)),\"\")","v":0},{"$f":"IFERROR(INDEX('Data Annex'!$K$1:$BA$5047,MATCH(F$45&\"|\"&$B55,'Data Annex'!$K$1:$K$5047,0),MATCH(F$46,'Data Annex'!$K$1:$BA$1,0)),\"\")","v":0},{"$f":"IFERROR(INDEX('Data Annex'!$K$1:$BA$5047,MATCH(G$45&\"|\"&$B55,'Data Annex'!$K$1:$K$5047,0),MATCH(G$46,'Data Annex'!$K$1:$BA$1,0)),\"\")","v":0},{"$f":"IFERROR(INDEX('Data Annex'!$K$1:$BA$5047,MATCH(H$45&\"|\"&$B55,'Data Annex'!$K$1:$K$5047,0),MATCH(H$46,'Data Annex'!$K$1:$BA$1,0)),\"\")","v":0},{"$f":"IFERROR(INDEX('Data Annex'!$K$1:$BA$5047,MATCH(I$45&\"|\"&$B55,'Data Annex'!$K$1:$K$5047,0),MATCH(I$46,'Data Annex'!$K$1:$BA$1,0)),\"\")","v":0},{"$f":"IFERROR(INDEX('Data Annex'!$K$1:$BA$5047,MATCH(J$45&\"|\"&$B55,'Data Annex'!$K$1:$K$5047,0),MATCH(J$46,'Data Annex'!$K$1:$BA$1,0)),\"\")","v":0},{"$f":"IFERROR(INDEX('Data Annex'!$K$1:$BA$5047,MATCH(K$45&\"|\"&$B55,'Data Annex'!$K$1:$K$5047,0),MATCH(K$46,'Data Annex'!$K$1:$BA$1,0)),\"\")","v":0},{"$f":"IFERROR(INDEX('Data Annex'!$K$1:$BA$5047,MATCH(L$45&\"|\"&$B55,'Data Annex'!$K$1:$K$5047,0),MATCH(L$46,'Data Annex'!$K$1:$BA$1,0)),\"\")","v":0},{"$f":"IFERROR(INDEX('Data Annex'!$K$1:$BA$5047,MATCH(M$45&\"|\"&$B55,'Data Annex'!$K$1:$K$5047,0),MATCH(M$46,'Data Annex'!$K$1:$BA$1,0)),\"\")","v":0},{"$f":"IFERROR(INDEX('Data Annex'!$K$1:$BA$5047,MATCH(N$45&\"|\"&$B55,'Data Annex'!$K$1:$K$5047,0),MATCH(N$46,'Data Annex'!$K$1:$BA$1,0)),\"\")","v":0},{"$f":"IFERROR(INDEX('Data Annex'!$K$1:$BA$5047,MATCH(O$45&\"|\"&$B55,'Data Annex'!$K$1:$K$5047,0),MATCH(O$46,'Data Annex'!$K$1:$BA$1,0)),\"\")","v":0},{"$f":"IFERROR(INDEX('Data Annex'!$K$1:$BA$5047,MATCH(P$45&\"|\"&$B55,'Data Annex'!$K$1:$K$5047,0),MATCH(P$46,'Data Annex'!$K$1:$BA$1,0)),\"\")","v":0},{"$f":"IFERROR(INDEX('Data Annex'!$K$1:$BA$5047,MATCH(Q$45&\"|\"&$B55,'Data Annex'!$K$1:$K$5047,0),MATCH(Q$46,'Data Annex'!$K$1:$BA$1,0)),\"\")","v":0},{"$f":"IFERROR(INDEX('Data Annex'!$K$1:$BA$5047,MATCH(R$45&\"|\"&$B55,'Data Annex'!$K$1:$K$5047,0),MATCH(R$46,'Data Annex'!$K$1:$BA$1,0)),\"\")","v":0},{"$f":"IFERROR(INDEX('Data Annex'!$K$1:$BA$5047,MATCH(S$45&\"|\"&$B55,'Data Annex'!$K$1:$K$5047,0),MATCH(S$46,'Data Annex'!$K$1:$BA$1,0)),\"\")","v":0},{"$f":"IFERROR(INDEX('Data Annex'!$K$1:$BA$5047,MATCH(T$45&\"|\"&$B55,'Data Annex'!$K$1:$K$5047,0),MATCH(T$46,'Data Annex'!$K$1:$BA$1,0)),\"\")","v":0},{"$f":"IFERROR(INDEX('Data Annex'!$K$1:$BA$5047,MATCH(U$45&\"|\"&$B55,'Data Annex'!$K$1:$K$5047,0),MATCH(U$46,'Data Annex'!$K$1:$BA$1,0)),\"\")","v":0},{"$f":"IFERROR(INDEX('Data Annex'!$K$1:$BA$5047,MATCH(V$45&\"|\"&$B55,'Data Annex'!$K$1:$K$5047,0),MATCH(V$46,'Data Annex'!$K$1:$BA$1,0)),\"\")","v":0},{"$f":"IFERROR(INDEX('Data Annex'!$K$1:$BA$5047,MATCH(W$45&\"|\"&$B55,'Data Annex'!$K$1:$K$5047,0),MATCH(W$46,'Data Annex'!$K$1:$BA$1,0)),\"\")","v":0},{"$f":"IFERROR(INDEX('Data Annex'!$K$1:$BA$5047,MATCH(X$45&\"|\"&$B55,'Data Annex'!$K$1:$K$5047,0),MATCH(X$46,'Data Annex'!$K$1:$BA$1,0)),\"\")","v":0},{"$f":"IFERROR(INDEX('Data Annex'!$K$1:$BA$5047,MATCH(Y$45&\"|\"&$B55,'Data Annex'!$K$1:$K$5047,0),MATCH(Y$46,'Data Annex'!$K$1:$BA$1,0)),\"\")","v":0},{"$f":"IFERROR(INDEX('Data Annex'!$K$1:$BA$5047,MATCH(Z$45&\"|\"&$B55,'Data Annex'!$K$1:$K$5047,0),MATCH(Z$46,'Data Annex'!$K$1:$BA$1,0)),\"\")","v":0},{"$f":"IFERROR(INDEX('Data Annex'!$K$1:$BA$5047,MATCH(AA$45&\"|\"&$B55,'Data Annex'!$K$1:$K$5047,0),MATCH(AA$46,'Data Annex'!$K$1:$BA$1,0)),\"\")","v":0},{"$f":"IFERROR(INDEX('Data Annex'!$K$1:$BA$5047,MATCH(AB$45&\"|\"&$B55,'Data Annex'!$K$1:$K$5047,0),MATCH(AB$46,'Data Annex'!$K$1:$BA$1,0)),\"\")","v":0}]
[5,"CZ",null,"CZ",{"$f":"IFERROR(INDEX('Data Annex'!$K$1:$BA$5047,MATCH(E$45&\"|\"&$B56,'Data Annex'!$K$1:$K$5047,0),MATCH(E$46,'Data Annex'!$K$1:$BA$1,0)),\"\")","v":""},{"$f":"IFERROR(INDEX('Data Annex'!$K$1:$BA$5047,MATCH(F$45&\"|\"&$B56,'Data Annex'!$K$1:$K$5047,0),MATCH(F$46,'Data Annex'!$K$1:$BA$1,0)),\"\")","v":""},{"$f":"IFERROR(INDEX('Data Annex'!$K$1:$BA$5047,MATCH(G$45&\"|\"&$B56,'Data Annex'!$K$1:$K$5047,0),MATCH(G$46,'Data Annex'!$K$1:$BA$1,0)),\"\")","v":""},{"$f":"IFERROR(INDEX('Data Annex'!$K$1:$BA$5047,MATCH(H$45&\"|\"&$B56,'Data Annex'!$K$1:$K$5047,0),MATCH(H$46,'Data Annex'!$K$1:$BA$1,0)),\"\")","v":""},{"$f":"IFERROR(INDEX('Data Annex'!$K$1:$BA$5047,MATCH(I$45&\"|\"&$B56,'Data Annex'!$K$1:$K$5047,0),MATCH(I$46,'Data Annex'!$K$1:$BA$1,0)),\"\")","v":""},{"$f":"IFERROR(INDEX('Data Annex'!$K$1:$BA$5047,MATCH(J$45&\"|\"&$B56,'Data Annex'!$K$1:$K$5047,0),MATCH(J$46,'Data Annex'!$K$1:$BA$1,0)),\"\")","v":""},{"$f":"IFERROR(INDEX('Data Annex'!$K$1:$BA$5047,MATCH(K$45&\"|\"&$B56,'Data Annex'!$K$1:$K$5047,0),MATCH(K$46,'Data Annex'!$K$1:$BA$1,0)),\"\")","v":""},{"$f":"IFERROR(INDEX('Data Annex'!$K$1:$BA$5047,MATCH(L$45&\"|\"&$B56,'Data Annex'!$K$1:$K$5047,0),MATCH(L$46,'Data Annex'!$K$1:$BA$1,0)),\"\")","v":""},{"$f":"IFERROR(INDEX('Data Annex'!$K$1:$BA$5047,MATCH(M$45&\"|\"&$B56,'Data Annex'!$K$1:$K$5047,0),MATCH(M$46,'Data Annex'!$K$1:$BA$1,0)),\"\")","v":""},{"$f":"IFERROR(INDEX('Data Annex'!$K$1:$BA$5047,MATCH(N$45&\"|\"&$B56,'Data Annex'!$K$1:$K$5047,0),MATCH(N$46,'Data Annex'!$K$1:$BA$1,0)),\"\")","v":""},{"$f":"IFERROR(INDEX('Data Annex'!$K$1:$BA$5047,MATCH(O$45&\"|\"&$B56,'Data Annex'!$K$1:$K$5047,0),MATCH(O$46,'Data Annex'!$K$1:$BA$1,0)),\"\")","v":""},{"$f":"IFERROR(INDEX('Data Annex'!$K$1:$BA$5047,MATCH(P$45&\"|\"&$B56,'Data Annex'!$K$1:$K$5047,0),MATCH(P$46,'Data Annex'!$K$1:$BA$1,0)),\"\")","v":""},{"$f":"IFERROR(INDEX('Data Annex'!$K$1:$BA$5047,MATCH(Q$45&\"|\"&$B56,'Data Annex'!$K$1:$K$5047,0),MATCH(Q$46,'Data Annex'!$K$1:$BA$1,0)),\"\")","v":""},{"$f":"IFERROR(INDEX('Data Annex'!$K$1:$BA$5047,MATCH(R$45&\"|\"&$B56,'Data Annex'!$K$1:$K$5047,0),MATCH(R$46,'Data Annex'!$K$1:$BA$1,0)),\"\")","v":""},{"$f":"IFERROR(INDEX('Data Annex'!$K$1:$BA$5047,MATCH(S$45&\"|\"&$B56,'Data Annex'!$K$1:$K$5047,0),MATCH(S$46,'Data Annex'!$K$1:$BA$1,0)),\"\")","v":""},{"$f":"IFERROR(INDEX('Data Annex'!$K$1:$BA$5047,MATCH(T$45&\"|\"&$B56,'Data Annex'!$K$1:$K$5047,0),MATCH(T$46,'Data Annex'!$K$1:$BA$1,0)),\"\")","v":""},{"$f":"IFERROR(INDEX('Data Annex'!$K$1:$BA$5047,MATCH(U$45&\"|\"&$B56,'Data Annex'!$K$1:$K$5047,0),MATCH(U$46,'Data Annex'!$K$1:$BA$1,0)),\"\")","v":""},{"$f":"IFERROR(INDEX('Data Annex'!$K$1:$BA$5047,MATCH(V$45&\"|\"&$B56,'Data Annex'!$K$1:$K$5047,0),MATCH(V$46,'Data Annex'!$K$1:$BA$1,0)),\"\")","v":""},{"$f":"IFERROR(INDEX('Data Annex'!$K$1:$BA$5047,MATCH(W$45&\"|\"&$B56,'Data Annex'!$K$1:$K$5047,0),MATCH(W$46,'Data Annex'!$K$1:$BA$1,0)),\"\")","v":""},{"$f":"IFERROR(INDEX('Data Annex'!$K$1:$BA$5047,MATCH(X$45&\"|\"&$B56,'Data Annex'!$K$1:$K$5047,0),MATCH(X$46,'Data Annex'!$K$1:$BA$1,0)),\"\")","v":""},{"$f":"IFERROR(INDEX('Data Annex'!$K$1:$BA$5047,MATCH(Y$45&\"|\"&$B56,'Data Annex'!$K$1:$K$5047,0),MATCH(Y$46,'Data Annex'!$K$1:$BA$1,0)),\"\")","v":""},{"$f":"IFERROR(INDEX('Data Annex'!$K$1:$BA$5047,MATCH(Z$45&\"|\"&$B56,'Data Annex'!$K$1:$K$5047,0),MATCH(Z$46,'Data Annex'!$K$1:$BA$1,0)),\"\")","v":""},{"$f":"IFERROR(INDEX('Data Annex'!$K$1:$BA$5047,MATCH(AA$45&\"|\"&$B56,'Data Annex'!$K$1:$K$5047,0),MATCH(AA$46,'Data Annex'!$K$1:$BA$1,0)),\"\")","v":""},{"$f":"IFERROR(INDEX('Data Annex'!$K$1:$BA$5047,MATCH(AB$45&\"|\"&$B56,'Data Annex'!$K$1:$K$5047,0),MATCH(AB$46,'Data Annex'!$K$1:$BA$1,0)),\"\")","v":""}]
[6,"DE",null,"DE",{"$f":"IFERROR(INDEX('Data Annex'!$K$1:$BA$5047,MATCH(E$45&\"|\"&$B57,'Data Annex'!$K$1:$K$5047,0),MATCH(E$46,'Data Annex'!$K$1:$BA$1,0)),\"\")","v":0},{"$f":"IFERROR(INDEX('Data Annex'!$K$1:$BA$5047,MATCH(F$45&\"|\"&$B57,'Data Annex'!$K$1:$K$5047,0),MATCH(F$46,'Data Annex'!$K$1:$BA$1,0)),\"\")","v":6.3064863647999996},{"$f":"IFERROR(INDEX('Data Annex'!$K$1:$BA$5047,MATCH(G$45&\"|\"&$B57,'Data Annex'!$K$1:$K$5047,0),MATCH(G$46,'Data Annex'!$K$1:$BA$1,0)),\"\")","v":14.979478459999999},{"$f":"IFERROR(INDEX('Data Annex'!$K$1:$BA$5047,MATCH(H$45&\"|\"&$B57,'Data Annex'!$K$1:$K$5047,0),MATCH(H$46,'Data Annex'!$K$1:$BA$1,0)),\"\")","v":20.573385505000001},{"$f":"IFERROR(INDEX('Data Annex'!$K$1:$BA$5047,MATCH(I$45&\"|\"&$B57,'Data Annex'!$K$1:$K$5047,0),MATCH(I$46,'Data Annex'!$K$1:$BA$1,0)),\"\")","v":0},{"$f":"IFERROR(INDEX('Data Annex'!$K$1:$BA$5047,MATCH(J$45&\"|\"&$B57,'Data Annex'!$K$1:$K$5047,0),MATCH(J$46,'Data Annex'!$K$1:$BA$1,0)),\"\")","v":0.85843042619999999},{"$f":"IFERROR(INDEX('Data Annex'!$K$1:$BA$5047,MATCH(K$45&\"|\"&$B57,'Data Annex'!$K$1:$K$5047,0),MATCH(K$46,'Data Annex'!$K$1:$BA$1,0)),\"\")","v":0.66170527810000002},{"$f":"IFERROR(INDEX('Data Annex'!$K$1:$BA$5047,MATCH(L$45&\"|\"&$B57,'Data Annex'!$K$1:$K$5047,0),MATCH(L$46,'Data Annex'!$K$1:$BA$1,0)),\"\")","v":0.62321890310000005},{"$f":"IFERROR(INDEX('Data Annex'!$K$1:$BA$5047,MATCH(M$45&\"|\"&$B57,'Data Annex'!$K$1:$K$5047,0),MATCH(M$46,'Data Annex'!$K$1:$BA$1,0)),\"\")","v":0},{"$f":"IFERROR(INDEX('Data Annex'!$K$1:$BA$5047,MATCH(N$45&\"|\"&$B57,'Data Annex'!$K$1:$K$5047,0),MATCH(N$46,'Data Annex'!$K$1:$BA$1,0)),\"\")","v":0.1382534866},{"$f":"IFERROR(INDEX('Data Annex'!$K$1:$BA$5047,MATCH(O$45&\"|\"&$B57,'Data Annex'!$K$1:$K$5047,0),MATCH(O$46,'Data Annex'!$K$1:$BA$1,0)),\"\")","v":0.33288964580000002},{"$f":"IFERROR(INDEX('Data Annex'!$K$1:$BA$5047,MATCH(P$45&\"|\"&$B57,'Data Annex'!$K$1:$K$5047,0),MATCH(P$46,'Data Annex'!$K$1:$BA$1,0)),\"\")","v":0.36672652169999997},{"$f":"IFERROR(INDEX('Data Annex'!$K$1:$BA$5047,MATCH(Q$45&\"|\"&$B57,'Data Annex'!$K$1:$K$5047,0),MATCH(Q$46,'Data Annex'!$K$1:$BA$1,0)),\"\")","v":0},{"$f":"IFERROR(INDEX('Data Annex'!$K$1:$BA$5047,MATCH(R$45&\"|\"&$B57,'Data Annex'!$K$1:$K$5047,0),MATCH(R$46,'Data Annex'!$K$1:$BA$1,0)),\"\")","v":0.30864854190000002},{"$f":"IFERROR(INDEX('Data Annex'!$K$1:$BA$5047,MATCH(S$45&\"|\"&$B57,'Data Annex'!$K$1:$K$5047,0),MATCH(S$46,'Data Annex'!$K$1:$BA$1,0)),\"\")","v":0.21607672429999999},{"$f":"IFERROR(INDEX('Data Annex'!$K$1:$BA$5047,MATCH(T$45&\"|\"&$B57,'Data Annex'!$K$1:$K$5047,0),MATCH(T$46,'Data Annex'!$K$1:$BA$1,0)),\"\")","v":0.22322043729999999},{"$f":"IFERROR(INDEX('Data Annex'!$K$1:$BA$5047,MATCH(U$45&\"|\"&$B57,'Data Annex'!$K$1:$K$5047,0),MATCH(U$46,'Data Annex'!$K$1:$BA$1,0)),\"\")","v":0},{"$f":"IFERROR(INDEX('Data Annex'!$K$1:$BA$5047,MATCH(V$45&\"|\"&$B57,'Data Annex'!$K$1:$K$5047,0),MATCH(V$46,'Data Annex'!$K$1:$BA$1,0)),\"\")","v":2.1550727200000001E-2},{"$f":"IFERROR(INDEX('Data Annex'!$K$1:$BA$5047,MATCH(W$45&\"|\"&$B57,'Data Annex'!$K$1:$K$5047,0),MATCH(W$46,'Data Annex'!$K$1:$BA$1,0)),\"\")","v":3.1526538100000001E-2},{"$f":"IFERROR(INDEX('Data Annex'!$K$1:$BA$5047,MATCH(X$45&\"|\"&$B57,'Data Annex'!$K$1:$K$5047,0),MATCH(X$46,'Data Annex'!$K$1:$BA$1,0)),\"\")","v":4.0757241E-2},{"$f":"IFERROR(INDEX('Data Annex'!$K$1:$BA$5047,MATCH(Y$45&\"|\"&$B57,'Data Annex'!$K$1:$K$5047,0),MATCH(Y$46,'Data Annex'!$K$1:$BA$1,0)),\"\")","v":0},{"$f":"IFERROR(INDEX('Data Annex'!$K$1:$BA$5047,MATCH(Z$45&\"|\"&$B57,'Data Annex'!$K$1:$K$5047,0),MATCH(Z$46,'Data Annex'!$K$1:$BA$1,0)),\"\")","v":0.14967825830000001},{"$f":"IFERROR(INDEX('Data Annex'!$K$1:$BA$5047,MATCH(AA$45&\"|\"&$B57,'Data Annex'!$K$1:$K$5047,0),MATCH(AA$46,'Data Annex'!$K$1:$BA$1,0)),\"\")","v":0.16821566360000001},{"$f":"IFERROR(INDEX('Data Annex'!$K$1:$BA$5047,MATCH(AB$45&\"|\"&$B57,'Data Annex'!$K$1:$K$5047,0),MATCH(AB$46,'Data Annex'!$K$1:$BA$1,0)),\"\")","v":0.1786354181}]
[7,"DK",null,"DK",{"$f":"IFERROR(INDEX('Data Annex'!$K$1:$BA$5047,MATCH(E$45&\"|\"&$B58,'Data Annex'!$K$1:$K$5047,0),MATCH(E$46,'Data Annex'!$K$1:$BA$1,0)),\"\")","v":""},{"$f":"IFERROR(INDEX('Data Annex'!$K$1:$BA$5047,MATCH(F$45&\"|\"&$B58,'Data Annex'!$K$1:$K$5047,0),MATCH(F$46,'Data Annex'!$K$1:$BA$1,0)),\"\")","v":""},{"$f":"IFERROR(INDEX('Data Annex'!$K$1:$BA$5047,MATCH(G$45&\"|\"&$B58,'Data Annex'!$K$1:$K$5047,0),MATCH(G$46,'Data Annex'!$K$1:$BA$1,0)),\"\")","v":""},{"$f":"IFERROR(INDEX('Data Annex'!$K$1:$BA$5047,MATCH(H$45&\"|\"&$B58,'Data Annex'!$K$1:$K$5047,0),MATCH(H$46,'Data Annex'!$K$1:$BA$1,0)),\"\")","v":""},{"$f":"IFERROR(INDEX('Data Annex'!$K$1:$BA$5047,MATCH(I$45&\"|\"&$B58,'Data Annex'!$K$1:$K$5047,0),MATCH(I$46,'Data Annex'!$K$1:$BA$1,0)),\"\")","v":0},{"$f":"IFERROR(INDEX('Data Annex'!$K$1:$BA$5047,MATCH(J$45&\"|\"&$B58,'Data Annex'!$K$1:$K$5047,0),MATCH(J$46,'Data Annex'!$K$1:$BA$1,0)),\"\")","v":0},{"$f":"IFERROR(INDEX('Data Annex'!$K$1:$BA$5047,MATCH(K$45&\"|\"&$B58,'Data Annex'!$K$1:$K$5047,0),MATCH(K$46,'Data Annex'!$K$1:$BA$1,0)),\"\")","v":0},{"$f":"IFERROR(INDEX('Data Annex'!$K$1:$BA$5047,MATCH(L$45&\"|\"&$B58,'Data Annex'!$K$1:$K$5047,0),MATCH(L$46,'Data Annex'!$K$1:$BA$1,0)),\"\")","v":0},{"$f":"IFERROR(INDEX('Data Annex'!$K$1:$BA$5047,MATCH(M$45&\"|\"&$B58,'Data Annex'!$K$1:$K$5047,0),MATCH(M$46,'Data Annex'!$K$1:$BA$1,0)),\"\")","v":0},{"$f":"IFERROR(INDEX('Data Annex'!$K$1:$BA$5047,MATCH(N$45&\"|\"&$B58,'Data Annex'!$K$1:$K$5047,0),MATCH(N$46,'Data Annex'!$K$1:$BA$1,0)),\"\")","v":0},{"$f":"IFERROR(INDEX('Data Annex'!$K$1:$BA$5047,MATCH(O$45&\"|\"&$B58,'Data Annex'!$K$1:$K$5047,0),MATCH(O$46,'Data Annex'!$K$1:$BA$1,0)),\"\")","v":0},{"$f":"IFERROR(INDEX('Data Annex'!$K$1:$BA$5047,MATCH(P$45&\"|\"&$B58,'Data Annex'!$K$1:$K$5047,0),MATCH(P$46,'Data Annex'!$K$1:$BA$1,0)),\"\")","v":0},{"$f":"IFERROR(INDEX('Data Annex'!$K$1:$BA$5047,MATCH(Q$45&\"|\"&$B58,'Data Annex'!$K$1:$K$5047,0),MATCH(Q$46,'Data Annex'!$K$1:$BA$1,0)),\"\")","v":0},{"$f":"IFERROR(INDEX('Data Annex'!$K$1:$BA$5047,MATCH(R$45&\"|\"&$B58,'Data Annex'!$K$1:$K$5047,0),MATCH(R$46,'Data Annex'!$K$1:$BA$1,0)),\"\")","v":0},{"$f":"IFERROR(INDEX('Data Annex'!$K$1:$BA$5047,MATCH(S$45&\"|\"&$B58,'Data Annex'!$K$1:$K$5047,0),MATCH(S$46,'Data Annex'!$K$1:$BA$1,0)),\"\")","v":0},{"$f":"IFERROR(INDEX('Data Annex'!$K$1:$BA$5047,MATCH(T$45&\"|\"&$B58,'Data Annex'!$K$1:$K$5047,0),MATCH(T$46,'Data Annex'!$K$1:$BA$1,0)),\"\")","v":0},{"$f":"IFERROR(INDEX('Data Annex'!$K$1:$BA$5047,MATCH(U$45&\"|\"&$B58,'Data Annex'!$K$1:$K$5047,0),MATCH(U$46,'Data Annex'!$K$1:$BA$1,0)),\"\")","v":0},{"$f":"IFERROR(INDEX('Data Annex'!$K$1:$BA$5047,MATCH(V$45&\"|\"&$B58,'Data Annex'!$K$1:$K$5047,0),MATCH(V$46,'Data Annex'!$K$1:$BA$1,0)),\"\")","v":0},{"$f":"IFERROR(INDEX('Data Annex'!$K$1:$BA$5047,MATCH(W$45&\"|\"&$B58,'Data Annex'!$K$1:$K$5047,0),MATCH(W$46,'Data Annex'!$K$1:$BA$1,0)),\"\")","v":0},{"$f":"IFERROR(INDEX('Data Annex'!$K$1:$BA$5047,MATCH(X$45&\"|\"&$B58,'Data Annex'!$K$1:$K$5047,0),MATCH(X$46,'Data Annex'!$K$1:$BA$1,0)),\"\")","v":0},{"$f":"IFERROR(INDEX('Data Annex'!$K$1:$BA$5047,MATCH(Y$45&\"|\"&$B58,'Data Annex'!$K$1:$K$5047,0),MATCH(Y$46,'Data Annex'!$K$1:$BA$1,0)),\"\")","v":0},{"$f":"IFERROR(INDEX('Data Annex'!$K$1:$BA$5047,MATCH(Z$45&\"|\"&$B58,'Data Annex'!$K$1:$K$5047,0),MATCH(Z$46,'Data Annex'!$K$1:$BA$1,0)),\"\")","v":0},{"$f":"IFERROR(INDEX('Data Annex'!$K$1:$BA$5047,MATCH(AA$45&\"|\"&$B58,'Data Annex'!$K$1:$K$5047,0),MATCH(AA$46,'Data Annex'!$K$1:$BA$1,0)),\"\")","v":0},{"$f":"IFERROR(INDEX('Data Annex'!$K$1:$BA$5047,MATCH(AB$45&\"|\"&$B58,'Data Annex'!$K$1:$K$5047,0),MATCH(AB$46,'Data Annex'!$K$1:$BA$1,0)),\"\")","v":0}]
[8,"EE",null,"EE",{"$f":"IFERROR(INDEX('Data Annex'!$K$1:$BA$5047,MATCH(E$45&\"|\"&$B59,'Data Annex'!$K$1:$K$5047,0),MATCH(E$46,'Data Annex'!$K$1:$BA$1,0)),\"\")","v":0},{"$f":"IFERROR(INDEX('Data Annex'!$K$1:$BA$5047,MATCH(F$45&\"|\"&$B59,'Data Annex'!$K$1:$K$5047,0),MATCH(F$46,'Data Annex'!$K$1:$BA$1,0)),\"\")","v":4.2813525599999999E-2},{"$f":"IFERROR(INDEX('Data Annex'!$K$1:$BA$5047,MATCH(G$45&\"|\"&$B59,'Data Annex'!$K$1:$K$5047,0),MATCH(G$46,'Data Annex'!$K$1:$BA$1,0)),\"\")","v":0.36576050199999999},{"$f":"IFERROR(INDEX('Data Annex'!$K$1:$BA$5047,MATCH(H$45&\"|\"&$B59,'Data Annex'!$K$1:$K$5047,0),MATCH(H$46,'Data Annex'!$K$1:$BA$1,0)),\"\")","v":0.78676265109999999},{"$f":"IFERROR(INDEX('Data Annex'!$K$1:$BA$5047,MATCH(I$45&\"|\"&$B59,'Data Annex'!$K$1:$K$5047,0),MATCH(I$46,'Data Annex'!$K$1:$BA$1,0)),\"\")","v":0},{"$f":"IFERROR(INDEX('Data Annex'!$K$1:$BA$5047,MATCH(J$45&\"|\"&$B59,'Data Annex'!$K$1:$K$5047,0),MATCH(J$46,'Data Annex'!$K$1:$BA$1,0)),\"\")","v":0.43400265599999999},{"$f":"IFERROR(INDEX('Data Annex'!$K$1:$BA$5047,MATCH(K$45&\"|\"&$B59,'Data Annex'!$K$1:$K$5047,0),MATCH(K$46,'Data Annex'!$K$1:$BA$1,0)),\"\")","v":0.39125686679999999},{"$f":"IFERROR(INDEX('Data Annex'!$K$1:$BA$5047,MATCH(L$45&\"|\"&$B59,'Data Annex'!$K$1:$K$5047,0),MATCH(L$46,'Data Annex'!$K$1:$BA$1,0)),\"\")","v":0.47337724930000002},{"$f":"IFERROR(INDEX('Data Annex'!$K$1:$BA$5047,MATCH(M$45&\"|\"&$B59,'Data Annex'!$K$1:$K$5047,0),MATCH(M$46,'Data Annex'!$K$1:$BA$1,0)),\"\")","v":0},{"$f":"IFERROR(INDEX('Data Annex'!$K$1:$BA$5047,MATCH(N$45&\"|\"&$B59,'Data Annex'!$K$1:$K$5047,0),MATCH(N$46,'Data Annex'!$K$1:$BA$1,0)),\"\")","v":0.5645750598},{"$f":"IFERROR(INDEX('Data Annex'!$K$1:$BA$5047,MATCH(O$45&\"|\"&$B59,'Data Annex'!$K$1:$K$5047,0),MATCH(O$46,'Data Annex'!$K$1:$BA$1,0)),\"\")","v":0.60569704980000005},{"$f":"IFERROR(INDEX('Data Annex'!$K$1:$BA$5047,MATCH(P$45&\"|\"&$B59,'Data Annex'!$K$1:$K$5047,0),MATCH(P$46,'Data Annex'!$K$1:$BA$1,0)),\"\")","v":0.51545745580000002},{"$f":"IFERROR(INDEX('Data Annex'!$K$1:$BA$5047,MATCH(Q$45&\"|\"&$B59,'Data Annex'!$K$1:$K$5047,0),MATCH(Q$46,'Data Annex'!$K$1:$BA$1,0)),\"\")","v":0},{"$f":"IFERROR(INDEX('Data Annex'!$K$1:$BA$5047,MATCH(R$45&\"|\"&$B59,'Data Annex'!$K$1:$K$5047,0),MATCH(R$46,'Data Annex'!$K$1:$BA$1,0)),\"\")","v":0.148622377},{"$f":"IFERROR(INDEX('Data Annex'!$K$1:$BA$5047,MATCH(S$45&\"|\"&$B59,'Data Annex'!$K$1:$K$5047,0),MATCH(S$46,'Data Annex'!$K$1:$BA$1,0)),\"\")","v":0.2814228775},{"$f":"IFERROR(INDEX('Data Annex'!$K$1:$BA$5047,MATCH(T$45&\"|\"&$B59,'Data Annex'!$K$1:$K$5047,0),MATCH(T$46,'Data Annex'!$K$1:$BA$1,0)),\"\")","v":0.233582543},{"$f":"IFERROR(INDEX('Data Annex'!$K$1:$BA$5047,MATCH(U$45&\"|\"&$B59,'Data Annex'!$K$1:$K$5047,0),MATCH(U$46,'Data Annex'!$K$1:$BA$1,0)),\"\")","v":0},{"$f":"IFERROR(INDEX('Data Annex'!$K$1:$BA$5047,MATCH(V$45&\"|\"&$B59,'Data Annex'!$K$1:$K$5047,0),MATCH(V$46,'Data Annex'!$K$1:$BA$1,0)),\"\")","v":2.490568E-4},{"$f":"IFERROR(INDEX('Data Annex'!$K$1:$BA$5047,MATCH(W$45&\"|\"&$B59,'Data Annex'!$K$1:$K$5047,0),MATCH(W$46,'Data Annex'!$K$1:$BA$1,0)),\"\")","v":3.8458559999999999E-3},{"$f":"IFERROR(INDEX('Data Annex'!$K$1:$BA$5047,MATCH(X$45&\"|\"&$B59,'Data Annex'!$K$1:$K$5047,0),MATCH(X$46,'Data Annex'!$K$1:$BA$1,0)),\"\")","v":1.0351299200000001E-2},{"$f":"IFERROR(INDEX('Data Annex'!$K$1:$BA$5047,MATCH(Y$45&\"|\"&$B59,'Data Annex'!$K$1:$K$5047,0),MATCH(Y$46,'Data Annex'!$K$1:$BA$1,0)),\"\")","v":0},{"$f":"IFERROR(INDEX('Data Annex'!$K$1:$BA$5047,MATCH(Z$45&\"|\"&$B59,'Data Annex'!$K$1:$K$5047,0),MATCH(Z$46,'Data Annex'!$K$1:$BA$1,0)),\"\")","v":9.2094157400000001E-2},{"$f":"IFERROR(INDEX('Data Annex'!$K$1:$BA$5047,MATCH(AA$45&\"|\"&$B59,'Data Annex'!$K$1:$K$5047,0),MATCH(AA$46,'Data Annex'!$K$1:$BA$1,0)),\"\")","v":0.134971748},{"$f":"IFERROR(INDEX('Data Annex'!$K$1:$BA$5047,MATCH(AB$45&\"|\"&$B59,'Data Annex'!$K$1:$K$5047,0),MATCH(AB$46,'Data Annex'!$K$1:$BA$1,0)),\"\")","v":0.13326930710000001}]
[9,"ES",null,"ES",{"$f":"IFERROR(INDEX('Data Annex'!$K$1:$BA$5047,MATCH(E$45&\"|\"&$B60,'Data Annex'!$K$1:$K$5047,0),MATCH(E$46,'Data Annex'!$K$1:$BA$1,0)),\"\")","v":0},{"$f":"IFERROR(INDEX('Data Annex'!$K$1:$BA$5047,MATCH(F$45&\"|\"&$B60,'Data Annex'!$K$1:$K$5047,0),MATCH(F$46,'Data Annex'!$K$1:$BA$1,0)),\"\")","v":36.970667876999997},{"$f":"IFERROR(INDEX('Data Annex'!$K$1:$BA$5047,MATCH(G$45&\"|\"&$B60,'Data Annex'!$K$1:$K$5047,0),MATCH(G$46,'Data Annex'!$K$1:$BA$1,0)),\"\")","v":105.81097407},{"$f":"IFERROR(INDEX('Data Annex'!$K$1:$BA$5047,MATCH(H$45&\"|\"&$B60,'Data Annex'!$K$1:$K$5047,0),MATCH(H$46,'Data Annex'!$K$1:$BA$1,0)),\"\")","v":127.32045514000001},{"$f":"IFERROR(INDEX('Data Annex'!$K$1:$BA$5047,MATCH(I$45&\"|\"&$B60,'Data Annex'!$K$1:$K$5047,0),MATCH(I$46,'Data Annex'!$K$1:$BA$1,0)),\"\")","v":0},{"$f":"IFERROR(INDEX('Data Annex'!$K$1:$BA$5047,MATCH(J$45&\"|\"&$B60,'Data Annex'!$K$1:$K$5047,0),MATCH(J$46,'Data Annex'!$K$1:$BA$1,0)),\"\")","v":0.86818499169999996},{"$f":"IFERROR(INDEX('Data Annex'!$K$1:$BA$5047,MATCH(K$45&\"|\"&$B60,'Data Annex'!$K$1:$K$5047,0),MATCH(K$46,'Data Annex'!$K$1:$BA$1,0)),\"\")","v":0.81847268870000001},{"$f":"IFERROR(INDEX('Data Annex'!$K$1:$BA$5047,MATCH(L$45&\"|\"&$B60,'Data Annex'!$K$1:$K$5047,0),MATCH(L$46,'Data Annex'!$K$1:$BA$1,0)),\"\")","v":0.79210501710000003},{"$f":"IFERROR(INDEX('Data Annex'!$K$1:$BA$5047,MATCH(M$45&\"|\"&$B60,'Data Annex'!$K$1:$K$5047,0),MATCH(M$46,'Data Annex'!$K$1:$BA$1,0)),\"\")","v":0},{"$f":"IFERROR(INDEX('Data Annex'!$K$1:$BA$5047,MATCH(N$45&\"|\"&$B60,'Data Annex'!$K$1:$K$5047,0),MATCH(N$46,'Data Annex'!$K$1:$BA$1,0)),\"\")","v":0.13138970089999999},{"$f":"IFERROR(INDEX('Data Annex'!$K$1:$BA$5047,MATCH(O$45&\"|\"&$B60,'Data Annex'!$K$1:$K$5047,0),MATCH(O$46,'Data Annex'!$K$1:$BA$1,0)),\"\")","v":0.18093863709999999},{"$f":"IFERROR(INDEX('Data Annex'!$K$1:$BA$5047,MATCH(P$45&\"|\"&$B60,'Data Annex'!$K$1:$K$5047,0),MATCH(P$46,'Data Annex'!$K$1:$BA$1,0)),\"\")","v":0.20632215849999999},{"$f":"IFERROR(INDEX('Data Annex'!$K$1:$BA$5047,MATCH(Q$45&\"|\"&$B60,'Data Annex'!$K$1:$K$5047,0),MATCH(Q$46,'Data Annex'!$K$1:$BA$1,0)),\"\")","v":0},{"$f":"IFERROR(INDEX('Data Annex'!$K$1:$BA$5047,MATCH(R$45&\"|\"&$B60,'Data Annex'!$K$1:$K$5047,0),MATCH(R$46,'Data Annex'!$K$1:$BA$1,0)),\"\")","v":0.1938208696},{"$f":"IFERROR(INDEX('Data Annex'!$K$1:$BA$5047,MATCH(S$45&\"|\"&$B60,'Data Annex'!$K$1:$K$5047,0),MATCH(S$46,'Data Annex'!$K$1:$BA$1,0)),\"\")","v":0.17942707359999999},{"$f":"IFERROR(INDEX('Data Annex'!$K$1:$BA$5047,MATCH(T$45&\"|\"&$B60,'Data Annex'!$K$1:$K$5047,0),MATCH(T$46,'Data Annex'!$K$1:$BA$1,0)),\"\")","v":0.1794213895},{"$f":"IFERROR(INDEX('Data Annex'!$K$1:$BA$5047,MATCH(U$45&\"|\"&$B60,'Data Annex'!$K$1:$K$5047,0),MATCH(U$46,'Data Annex'!$K$1:$BA$1,0)),\"\")","v":0},{"$f":"IFERROR(INDEX('Data Annex'!$K$1:$BA$5047,MATCH(V$45&\"|\"&$B60,'Data Annex'!$K$1:$K$5047,0),MATCH(V$46,'Data Annex'!$K$1:$BA$1,0)),\"\")","v":2.8623218999999998E-2},{"$f":"IFERROR(INDEX('Data Annex'!$K$1:$BA$5047,MATCH(W$45&\"|\"&$B60,'Data Annex'!$K$1:$K$5047,0),MATCH(W$46,'Data Annex'!$K$1:$BA$1,0)),\"\")","v":2.7620727800000001E-2},{"$f":"IFERROR(INDEX('Data Annex'!$K$1:$BA$5047,MATCH(X$45&\"|\"&$B60,'Data Annex'!$K$1:$K$5047,0),MATCH(X$46,'Data Annex'!$K$1:$BA$1,0)),\"\")","v":4.2035518700000003E-2},{"$f":"IFERROR(INDEX('Data Annex'!$K$1:$BA$5047,MATCH(Y$45&\"|\"&$B60,'Data Annex'!$K$1:$K$5047,0),MATCH(Y$46,'Data Annex'!$K$1:$BA$1,0)),\"\")","v":0},{"$f":"IFERROR(INDEX('Data Annex'!$K$1:$BA$5047,MATCH(Z$45&\"|\"&$B60,'Data Annex'!$K$1:$K$5047,0),MATCH(Z$46,'Data Annex'!$K$1:$BA$1,0)),\"\")","v":0.22809638630000001},{"$f":"IFERROR(INDEX('Data Annex'!$K$1:$BA$5047,MATCH(AA$45&\"|\"&$B60,'Data Annex'!$K$1:$K$5047,0),MATCH(AA$46,'Data Annex'!$K$1:$BA$1,0)),\"\")","v":0.35424393230000001},{"$f":"IFERROR(INDEX('Data Annex'!$K$1:$BA$5047,MATCH(AB$45&\"|\"&$B60,'Data Annex'!$K$1:$K$5047,0),MATCH(AB$46,'Data Annex'!$K$1:$BA$1,0)),\"\")","v":0.41763951970000002}]
[10,"FI",null,"FI",{"$f":"IFERROR(INDEX('Data Annex'!$K$1:$BA$5047,MATCH(E$45&\"|\"&$B61,'Data Annex'!$K$1:$K$5047,0),MATCH(E$46,'Data Annex'!$K$1:$BA$1,0)),\"\")","v":0},{"$f":"IFERROR(INDEX('Data Annex'!$K$1:$BA$5047,MATCH(F$45&\"|\"&$B61,'Data Annex'!$K$1:$K$5047,0),MATCH(F$46,'Data Annex'!$K$1:$BA$1,0)),\"\")","v":5.3586579000000001E-3},{"$f":"IFERROR(INDEX('Data Annex'!$K$1:$BA$5047,MATCH(G$45&\"|\"&$B61,'Data Annex'!$K$1:$K$5047,0),MATCH(G$46,'Data Annex'!$K$1:$BA$1,0)),\"\")","v":3.5592634129},{"$f":"IFERROR(INDEX('Data Annex'!$K$1:$BA$5047,MATCH(H$45&\"|\"&$B61,'Data Annex'!$K$1:$K$5047,0),MATCH(H$46,'Data Annex'!$K$1:$BA$1,0)),\"\")","v":5.9888413299999999E-2},{"$f":"IFERROR(INDEX('Data Annex'!$K$1:$BA$5047,MATCH(I$45&\"|\"&$B61,'Data Annex'!$K$1:$K$5047,0),MATCH(I$46,'Data Annex'!$K$1:$BA$1,0)),\"\")","v":0},{"$f":"IFERROR(INDEX('Data Annex'!$K$1:$BA$5047,MATCH(J$45&\"|\"&$B61,'Data Annex'!$K$1:$K$5047,0),MATCH(J$46,'Data Annex'!$K$1:$BA$1,0)),\"\")","v":0},{"$f":"IFERROR(INDEX('Data Annex'!$K$1:$BA$5047,MATCH(K$45&\"|\"&$B61,'Data Annex'!$K$1:$K$5047,0),MATCH(K$46,'Data Annex'!$K$1:$BA$1,0)),\"\")","v":0.57271023070000004},{"$f":"IFERROR(INDEX('Data Annex'!$K$1:$BA$5047,MATCH(L$45&\"|\"&$B61,'Data Annex'!$K$1:$K$5047,0),MATCH(L$46,'Data Annex'!$K$1:$BA$1,0)),\"\")","v":1.1308697000000001E-3},{"$f":"IFERROR(INDEX('Data Annex'!$K$1:$BA$5047,MATCH(M$45&\"|\"&$B61,'Data Annex'!$K$1:$K$5047,0),MATCH(M$46,'Data Annex'!$K$1:$BA$1,0)),\"\")","v":0},{"$f":"IFERROR(INDEX('Data Annex'!$K$1:$BA$5047,MATCH(N$45&\"|\"&$B61,'Data Annex'!$K$1:$K$5047,0),MATCH(N$46,'Data Annex'!$K$1:$BA$1,0)),\"\")","v":1},{"$f":"IFERROR(INDEX('Data Annex'!$K$1:$BA$5047,MATCH(O$45&\"|\"&$B61,'Data Annex'!$K$1:$K$5047,0),MATCH(O$46,'Data Annex'!$K$1:$BA$1,0)),\"\")","v":0.42728976930000001},{"$f":"IFERROR(INDEX('Data Annex'!$K$1:$BA$5047,MATCH(P$45&\"|\"&$B61,'Data Annex'!$K$1:$K$5047,0),MATCH(P$46,'Data Annex'!$K$1:$BA$1,0)),\"\")","v":0.99789294200000001},{"$f":"IFERROR(INDEX('Data Annex'!$K$1:$BA$5047,MATCH(Q$45&\"|\"&$B61,'Data Annex'!$K$1:$K$5047,0),MATCH(Q$46,'Data Annex'!$K$1:$BA$1,0)),\"\")","v":0},{"$f":"IFERROR(INDEX('Data Annex'!$K$1:$BA$5047,MATCH(R$45&\"|\"&$B61,'Data Annex'!$K$1:$K$5047,0),MATCH(R$46,'Data Annex'!$K$1:$BA$1,0)),\"\")","v":0},{"$f":"IFERROR(INDEX('Data Annex'!$K$1:$BA$5047,MATCH(S$45&\"|\"&$B61,'Data Annex'!$K$1:$K$5047,0),MATCH(S$46,'Data Annex'!$K$1:$BA$1,0)),\"\")","v":0.1328741071},{"$f":"IFERROR(INDEX('Data Annex'!$K$1:$BA$5047,MATCH(T$45&\"|\"&$B61,'Data Annex'!$K$1:$K$5047,0),MATCH(T$46,'Data Annex'!$K$1:$BA$1,0)),\"\")","v":0},{"$f":"IFERROR(INDEX('Data Annex'!$K$1:$BA$5047,MATCH(U$45&\"|\"&$B61,'Data Annex'!$K$1:$K$5047,0),MATCH(U$46,'Data Annex'!$K$1:$BA$1,0)),\"\")","v":0},{"$f":"IFERROR(INDEX('Data Annex'!$K$1:$BA$5047,MATCH(V$45&\"|\"&$B61,'Data Annex'!$K$1:$K$5047,0),MATCH(V$46,'Data Annex'!$K$1:$BA$1,0)),\"\")","v":0},{"$f":"IFERROR(INDEX('Data Annex'!$K$1:$BA$5047,MATCH(W$45&\"|\"&$B61,'Data Annex'!$K$1:$K$5047,0),MATCH(W$46,'Data Annex'!$K$1:$BA$1,0)),\"\")","v":9.3674793999999999E-3},{"$f":"IFERROR(INDEX('Data Annex'!$K$1:$BA$5047,MATCH(X$45&\"|\"&$B61,'Data Annex'!$K$1:$K$5047,0),MATCH(X$46,'Data Annex'!$K$1:$BA$1,0)),\"\")","v":0},{"$f":"IFERROR(INDEX('Data Annex'!$K$1:$BA$5047,MATCH(Y$45&\"|\"&$B61,'Data Annex'!$K$1:$K$5047,0),MATCH(Y$46,'Data Annex'!$K$1:$BA$1,0)),\"\")","v":0},{"$f":"IFERROR(INDEX('Data Annex'!$K$1:$BA$5047,MATCH(Z$45&\"|\"&$B61,'Data Annex'!$K$1:$K$5047,0),MATCH(Z$46,'Data Annex'!$K$1:$BA$1,0)),\"\")","v":0},{"$f":"IFERROR(INDEX('Data Annex'!$K$1:$BA$5047,MATCH(AA$45&\"|\"&$B61,'Data Annex'!$K$1:$K$5047,0),MATCH(AA$46,'Data Annex'!$K$1:$BA$1,0)),\"\")","v":0.1559887365},{"$f":"IFERROR(INDEX('Data Annex'!$K$1:$BA$5047,MATCH(AB$45&\"|\"&$B61,'Data Annex'!$K$1:$K$5047,0),MATCH(AB$46,'Data Annex'!$K$1:$BA$1,0)),\"\")","v":0}]
[11,"FR",null,"FR",{"$f":"IFERROR(INDEX('Data Annex'!$K$1:$BA$5047,MATCH(E$45&\"|\"&$B62,'Data Annex'!$K$1:$K$5047,0),MATCH(E$46,'Data Annex'!$K$1:$BA$1,0)),\"\")","v":0},{"$f":"IFERROR(INDEX('Data Annex'!$K$1:$BA$5047,MATCH(F$45&\"|\"&$B62,'Data Annex'!$K$1:$K$5047,0),MATCH(F$46,'Data Annex'!$K$1:$BA$1,0)),\"\")","v":9.2420803358000008},{"$f":"IFERROR(INDEX('Data Annex'!$K$1:$BA$5047,MATCH(G$45&\"|\"&$B62,'Data Annex'!$K$1:$K$5047,0),MATCH(G$46,'Data Annex'!$K$1:$BA$1,0)),\"\")","v":131.57141927000001},{"$f":"IFERROR(INDEX('Data Annex'!$K$1:$BA$5047,MATCH(H$45&\"|\"&$B62,'Data Annex'!$K$1:$K$5047,0),MATCH(H$46,'Data Annex'!$K$1:$BA$1,0)),\"\")","v":217.12597052000001},{"$f":"IFERROR(INDEX('Data Annex'!$K$1:$BA$5047,MATCH(I$45&\"|\"&$B62,'Data Annex'!$K$1:$K$5047,0),MATCH(I$46,'Data Annex'!$K$1:$BA$1,0)),\"\")","v":0},{"$f":"IFERROR(INDEX('Data Annex'!$K$1:$BA$5047,MATCH(J$45&\"|\"&$B62,'Data Annex'!$K$1:$K$5047,0),MATCH(J$46,'Data Annex'!$K$1:$BA$1,0)),\"\")","v":0.29994093979999997},{"$f":"IFERROR(INDEX('Data Annex'!$K$1:$BA$5047,MATCH(K$45&\"|\"&$B62,'Data Annex'!$K$1:$K$5047,0),MATCH(K$46,'Data Annex'!$K$1:$BA$1,0)),\"\")","v":0.1210908416},{"$f":"IFERROR(INDEX('Data Annex'!$K$1:$BA$5047,MATCH(L$45&\"|\"&$B62,'Data Annex'!$K$1:$K$5047,0),MATCH(L$46,'Data Annex'!$K$1:$BA$1,0)),\"\")","v":0.1156070716},{"$f":"IFERROR(INDEX('Data Annex'!$K$1:$BA$5047,MATCH(M$45&\"|\"&$B62,'Data Annex'!$K$1:$K$5047,0),MATCH(M$46,'Data Annex'!$K$1:$BA$1,0)),\"\")","v":0},{"$f":"IFERROR(INDEX('Data Annex'!$K$1:$BA$5047,MATCH(N$45&\"|\"&$B62,'Data Annex'!$K$1:$K$5047,0),MATCH(N$46,'Data Annex'!$K$1:$BA$1,0)),\"\")","v":0.69188325210000001},{"$f":"IFERROR(INDEX('Data Annex'!$K$1:$BA$5047,MATCH(O$45&\"|\"&$B62,'Data Annex'!$K$1:$K$5047,0),MATCH(O$46,'Data Annex'!$K$1:$BA$1,0)),\"\")","v":0.86808902939999999},{"$f":"IFERROR(INDEX('Data Annex'!$K$1:$BA$5047,MATCH(P$45&\"|\"&$B62,'Data Annex'!$K$1:$K$5047,0),MATCH(P$46,'Data Annex'!$K$1:$BA$1,0)),\"\")","v":0.86949558800000004},{"$f":"IFERROR(INDEX('Data Annex'!$K$1:$BA$5047,MATCH(Q$45&\"|\"&$B62,'Data Annex'!$K$1:$K$5047,0),MATCH(Q$46,'Data Annex'!$K$1:$BA$1,0)),\"\")","v":0},{"$f":"IFERROR(INDEX('Data Annex'!$K$1:$BA$5047,MATCH(R$45&\"|\"&$B62,'Data Annex'!$K$1:$K$5047,0),MATCH(R$46,'Data Annex'!$K$1:$BA$1,0)),\"\")","v":0.1084770889},{"$f":"IFERROR(INDEX('Data Annex'!$K$1:$BA$5047,MATCH(S$45&\"|\"&$B62,'Data Annex'!$K$1:$K$5047,0),MATCH(S$46,'Data Annex'!$K$1:$BA$1,0)),\"\")","v":0.11891970039999999},{"$f":"IFERROR(INDEX('Data Annex'!$K$1:$BA$5047,MATCH(T$45&\"|\"&$B62,'Data Annex'!$K$1:$K$5047,0),MATCH(T$46,'Data Annex'!$K$1:$BA$1,0)),\"\")","v":0.1224661375},{"$f":"IFERROR(INDEX('Data Annex'!$K$1:$BA$5047,MATCH(U$45&\"|\"&$B62,'Data Annex'!$K$1:$K$5047,0),MATCH(U$46,'Data Annex'!$K$1:$BA$1,0)),\"\")","v":0},{"$f":"IFERROR(INDEX('Data Annex'!$K$1:$BA$5047,MATCH(V$45&\"|\"&$B62,'Data Annex'!$K$1:$K$5047,0),MATCH(V$46,'Data Annex'!$K$1:$BA$1,0)),\"\")","v":3.16174257E-2},{"$f":"IFERROR(INDEX('Data Annex'!$K$1:$BA$5047,MATCH(W$45&\"|\"&$B62,'Data Annex'!$K$1:$K$5047,0),MATCH(W$46,'Data Annex'!$K$1:$BA$1,0)),\"\")","v":1.08232821E-2},{"$f":"IFERROR(INDEX('Data Annex'!$K$1:$BA$5047,MATCH(X$45&\"|\"&$B62,'Data Annex'!$K$1:$K$5047,0),MATCH(X$46,'Data Annex'!$K$1:$BA$1,0)),\"\")","v":1.71013964E-2},{"$f":"IFERROR(INDEX('Data Annex'!$K$1:$BA$5047,MATCH(Y$45&\"|\"&$B62,'Data Annex'!$K$1:$K$5047,0),MATCH(Y$46,'Data Annex'!$K$1:$BA$1,0)),\"\")","v":0},{"$f":"IFERROR(INDEX('Data Annex'!$K$1:$BA$5047,MATCH(Z$45&\"|\"&$B62,'Data Annex'!$K$1:$K$5047,0),MATCH(Z$46,'Data Annex'!$K$1:$BA$1,0)),\"\")","v":0.26465839460000001},{"$f":"IFERROR(INDEX('Data Annex'!$K$1:$BA$5047,MATCH(AA$45&\"|\"&$B62,'Data Annex'!$K$1:$K$5047,0),MATCH(AA$46,'Data Annex'!$K$1:$BA$1,0)),\"\")","v":0.26063852450000002},{"$f":"IFERROR(INDEX('Data Annex'!$K$1:$BA$5047,MATCH(AB$45&\"|\"&$B62,'Data Annex'!$K$1:$K$5047,0),MATCH(AB$46,'Data Annex'!$K$1:$BA$1,0)),\"\")","v":0.2802634852}]
[14,"GR",null,"GR",{"$f":"IFERROR(INDEX('Data Annex'!$K$1:$BA$5047,MATCH(E$45&\"|\"&$B63,'Data Annex'!$K$1:$K$5047,0),MATCH(E$46,'Data Annex'!$K$1:$BA$1,0)),\"\")","v":0},{"$f":"IFERROR(INDEX('Data Annex'!$K$1:$BA$5047,MATCH(F$45&\"|\"&$B63,'Data Annex'!$K$1:$K$5047,0),MATCH(F$46,'Data Annex'!$K$1:$BA$1,0)),\"\")","v":1.7031623444999999},{"$f":"IFERROR(INDEX('Data Annex'!$K$1:$BA$5047,MATCH(G$45&\"|\"&$B63,'Data Annex'!$K$1:$K$5047,0),MATCH(G$46,'Data Annex'!$K$1:$BA$1,0)),\"\")","v":5.4452490456999998},{"$f":"IFERROR(INDEX('Data Annex'!$K$1:$BA$5047,MATCH(H$45&\"|\"&$B63,'Data Annex'!$K$1:$K$5047,0),MATCH(H$46,'Data Annex'!$K$1:$BA$1,0)),\"\")","v":23.446705548000001},{"$f":"IFERROR(INDEX('Data Annex'!$K$1:$BA$5047,MATCH(I$45&\"|\"&$B63,'Data Annex'!$K$1:$K$5047,0),MATCH(I$46,'Data Annex'!$K$1:$BA$1,0)),\"\")","v":0},{"$f":"IFERROR(INDEX('Data Annex'!$K$1:$BA$5047,MATCH(J$45&\"|\"&$B63,'Data Annex'!$K$1:$K$5047,0),MATCH(J$46,'Data Annex'!$K$1:$BA$1,0)),\"\")","v":0.79931226600000005},{"$f":"IFERROR(INDEX('Data Annex'!$K$1:$BA$5047,MATCH(K$45&\"|\"&$B63,'Data Annex'!$K$1:$K$5047,0),MATCH(K$46,'Data Annex'!$K$1:$BA$1,0)),\"\")","v":0.67227400749999999},{"$f":"IFERROR(INDEX('Data Annex'!$K$1:$BA$5047,MATCH(L$45&\"|\"&$B63,'Data Annex'!$K$1:$K$5047,0),MATCH(L$46,'Data Annex'!$K$1:$BA$1,0)),\"\")","v":0.53138811429999999},{"$f":"IFERROR(INDEX('Data Annex'!$K$1:$BA$5047,MATCH(M$45&\"|\"&$B63,'Data Annex'!$K$1:$K$5047,0),MATCH(M$46,'Data Annex'!$K$1:$BA$1,0)),\"\")","v":0},{"$f":"IFERROR(INDEX('Data Annex'!$K$1:$BA$5047,MATCH(N$45&\"|\"&$B63,'Data Annex'!$K$1:$K$5047,0),MATCH(N$46,'Data Annex'!$K$1:$BA$1,0)),\"\")","v":0.2006054001},{"$f":"IFERROR(INDEX('Data Annex'!$K$1:$BA$5047,MATCH(O$45&\"|\"&$B63,'Data Annex'!$K$1:$K$5047,0),MATCH(O$46,'Data Annex'!$K$1:$BA$1,0)),\"\")","v":0.32725536420000001},{"$f":"IFERROR(INDEX('Data Annex'!$K$1:$BA$5047,MATCH(P$45&\"|\"&$B63,'Data Annex'!$K$1:$K$5047,0),MATCH(P$46,'Data Annex'!$K$1:$BA$1,0)),\"\")","v":0.4657589633},{"$f":"IFERROR(INDEX('Data Annex'!$K$1:$BA$5047,MATCH(Q$45&\"|\"&$B63,'Data Annex'!$K$1:$K$5047,0),MATCH(Q$46,'Data Annex'!$K$1:$BA$1,0)),\"\")","v":0},{"$f":"IFERROR(INDEX('Data Annex'!$K$1:$BA$5047,MATCH(R$45&\"|\"&$B63,'Data Annex'!$K$1:$K$5047,0),MATCH(R$46,'Data Annex'!$K$1:$BA$1,0)),\"\")","v":0.38580985249999999},{"$f":"IFERROR(INDEX('Data Annex'!$K$1:$BA$5047,MATCH(S$45&\"|\"&$B63,'Data Annex'!$K$1:$K$5047,0),MATCH(S$46,'Data Annex'!$K$1:$BA$1,0)),\"\")","v":0.32492277330000002},{"$f":"IFERROR(INDEX('Data Annex'!$K$1:$BA$5047,MATCH(T$45&\"|\"&$B63,'Data Annex'!$K$1:$K$5047,0),MATCH(T$46,'Data Annex'!$K$1:$BA$1,0)),\"\")","v":0.39020458400000002},{"$f":"IFERROR(INDEX('Data Annex'!$K$1:$BA$5047,MATCH(U$45&\"|\"&$B63,'Data Annex'!$K$1:$K$5047,0),MATCH(U$46,'Data Annex'!$K$1:$BA$1,0)),\"\")","v":0},{"$f":"IFERROR(INDEX('Data Annex'!$K$1:$BA$5047,MATCH(V$45&\"|\"&$B63,'Data Annex'!$K$1:$K$5047,0),MATCH(V$46,'Data Annex'!$K$1:$BA$1,0)),\"\")","v":0.2313352444},{"$f":"IFERROR(INDEX('Data Annex'!$K$1:$BA$5047,MATCH(W$45&\"|\"&$B63,'Data Annex'!$K$1:$K$5047,0),MATCH(W$46,'Data Annex'!$K$1:$BA$1,0)),\"\")","v":0.28026333460000002},{"$f":"IFERROR(INDEX('Data Annex'!$K$1:$BA$5047,MATCH(X$45&\"|\"&$B63,'Data Annex'!$K$1:$K$5047,0),MATCH(X$46,'Data Annex'!$K$1:$BA$1,0)),\"\")","v":0.2115119805},{"$f":"IFERROR(INDEX('Data Annex'!$K$1:$BA$5047,MATCH(Y$45&\"|\"&$B63,'Data Annex'!$K$1:$K$5047,0),MATCH(Y$46,'Data Annex'!$K$1:$BA$1,0)),\"\")","v":0},{"$f":"IFERROR(INDEX('Data Annex'!$K$1:$BA$5047,MATCH(Z$45&\"|\"&$B63,'Data Annex'!$K$1:$K$5047,0),MATCH(Z$46,'Data Annex'!$K$1:$BA$1,0)),\"\")","v":0.15337470540000001},{"$f":"IFERROR(INDEX('Data Annex'!$K$1:$BA$5047,MATCH(AA$45&\"|\"&$B63,'Data Annex'!$K$1:$K$5047,0),MATCH(AA$46,'Data Annex'!$K$1:$BA$1,0)),\"\")","v":0.23033083979999999},{"$f":"IFERROR(INDEX('Data Annex'!$K$1:$BA$5047,MATCH(AB$45&\"|\"&$B63,'Data Annex'!$K$1:$K$5047,0),MATCH(AB$46,'Data Annex'!$K$1:$BA$1,0)),\"\")","v":0.2254668829}]
[14,"HR",null,"HR",{"$f":"IFERROR(INDEX('Data Annex'!$K$1:$BA$5047,MATCH(E$45&\"|\"&$B64,'Data Annex'!$K$1:$K$5047,0),MATCH(E$46,'Data Annex'!$K$1:$BA$1,0)),\"\")","v":0},{"$f":"IFERROR(INDEX('Data Annex'!$K$1:$BA$5047,MATCH(F$45&\"|\"&$B64,'Data Annex'!$K$1:$K$5047,0),MATCH(F$46,'Data Annex'!$K$1:$BA$1,0)),\"\")","v":0.2907905341},{"$f":"IFERROR(INDEX('Data Annex'!$K$1:$BA$5047,MATCH(G$45&\"|\"&$B64,'Data Annex'!$K$1:$K$5047,0),MATCH(G$46,'Data Annex'!$K$1:$BA$1,0)),\"\")","v":1.0084119385999999},{"$f":"IFERROR(INDEX('Data Annex'!$K$1:$BA$5047,MATCH(H$45&\"|\"&$B64,'Data Annex'!$K$1:$K$5047,0),MATCH(H$46,'Data Annex'!$K$1:$BA$1,0)),\"\")","v":2.0589682077},{"$f":"IFERROR(INDEX('Data Annex'!$K$1:$BA$5047,MATCH(I$45&\"|\"&$B64,'Data Annex'!$K$1:$K$5047,0),MATCH(I$46,'Data Annex'!$K$1:$BA$1,0)),\"\")","v":0},{"$f":"IFERROR(INDEX('Data Annex'!$K$1:$BA$5047,MATCH(J$45&\"|\"&$B64,'Data Annex'!$K$1:$K$5047,0),MATCH(J$46,'Data Annex'!$K$1:$BA$1,0)),\"\")","v":0.4530354499},{"$f":"IFERROR(INDEX('Data Annex'!$K$1:$BA$5047,MATCH(K$45&\"|\"&$B64,'Data Annex'!$K$1:$K$5047,0),MATCH(K$46,'Data Annex'!$K$1:$BA$1,0)),\"\")","v":0.33101671160000001},{"$f":"IFERROR(INDEX('Data Annex'!$K$1:$BA$5047,MATCH(L$45&\"|\"&$B64,'Data Annex'!$K$1:$K$5047,0),MATCH(L$46,'Data Annex'!$K$1:$BA$1,0)),\"\")","v":0.36361864040000003},{"$f":"IFERROR(INDEX('Data Annex'!$K$1:$BA$5047,MATCH(M$45&\"|\"&$B64,'Data Annex'!$K$1:$K$5047,0),MATCH(M$46,'Data Annex'!$K$1:$BA$1,0)),\"\")","v":0},{"$f":"IFERROR(INDEX('Data Annex'!$K$1:$BA$5047,MATCH(N$45&\"|\"&$B64,'Data Annex'!$K$1:$K$5047,0),MATCH(N$46,'Data Annex'!$K$1:$BA$1,0)),\"\")","v":0.39829234590000001},{"$f":"IFERROR(INDEX('Data Annex'!$K$1:$BA$5047,MATCH(O$45&\"|\"&$B64,'Data Annex'!$K$1:$K$5047,0),MATCH(O$46,'Data Annex'!$K$1:$BA$1,0)),\"\")","v":0.6261941097},{"$f":"IFERROR(INDEX('Data Annex'!$K$1:$BA$5047,MATCH(P$45&\"|\"&$B64,'Data Annex'!$K$1:$K$5047,0),MATCH(P$46,'Data Annex'!$K$1:$BA$1,0)),\"\")","v":0.60481220459999996},{"$f":"IFERROR(INDEX('Data Annex'!$K$1:$BA$5047,MATCH(Q$45&\"|\"&$B64,'Data Annex'!$K$1:$K$5047,0),MATCH(Q$46,'Data Annex'!$K$1:$BA$1,0)),\"\")","v":0},{"$f":"IFERROR(INDEX('Data Annex'!$K$1:$BA$5047,MATCH(R$45&\"|\"&$B64,'Data Annex'!$K$1:$K$5047,0),MATCH(R$46,'Data Annex'!$K$1:$BA$1,0)),\"\")","v":0},{"$f":"IFERROR(INDEX('Data Annex'!$K$1:$BA$5047,MATCH(S$45&\"|\"&$B64,'Data Annex'!$K$1:$K$5047,0),MATCH(S$46,'Data Annex'!$K$1:$BA$1,0)),\"\")","v":0},{"$f":"IFERROR(INDEX('Data Annex'!$K$1:$BA$5047,MATCH(T$45&\"|\"&$B64,'Data Annex'!$K$1:$K$5047,0),MATCH(T$46,'Data Annex'!$K$1:$BA$1,0)),\"\")","v":0},{"$f":"IFERROR(INDEX('Data Annex'!$K$1:$BA$5047,MATCH(U$45&\"|\"&$B64,'Data Annex'!$K$1:$K$5047,0),MATCH(U$46,'Data Annex'!$K$1:$BA$1,0)),\"\")","v":0},{"$f":"IFERROR(INDEX('Data Annex'!$K$1:$BA$5047,MATCH(V$45&\"|\"&$B64,'Data Annex'!$K$1:$K$5047,0),MATCH(V$46,'Data Annex'!$K$1:$BA$1,0)),\"\")","v":0},{"$f":"IFERROR(INDEX('Data Annex'!$K$1:$BA$5047,MATCH(W$45&\"|\"&$B64,'Data Annex'!$K$1:$K$5047,0),MATCH(W$46,'Data Annex'!$K$1:$BA$1,0)),\"\")","v":0},{"$f":"IFERROR(INDEX('Data Annex'!$K$1:$BA$5047,MATCH(X$45&\"|\"&$B64,'Data Annex'!$K$1:$K$5047,0),MATCH(X$46,'Data Annex'!$K$1:$BA$1,0)),\"\")","v":0},{"$f":"IFERROR(INDEX('Data Annex'!$K$1:$BA$5047,MATCH(Y$45&\"|\"&$B64,'Data Annex'!$K$1:$K$5047,0),MATCH(Y$46,'Data Annex'!$K$1:$BA$1,0)),\"\")","v":0},{"$f":"IFERROR(INDEX('Data Annex'!$K$1:$BA$5047,MATCH(Z$45&\"|\"&$B64,'Data Annex'!$K$1:$K$5047,0),MATCH(Z$46,'Data Annex'!$K$1:$BA$1,0)),\"\")","v":0},{"$f":"IFERROR(INDEX('Data Annex'!$K$1:$BA$5047,MATCH(AA$45&\"|\"&$B64,'Data Annex'!$K$1:$K$5047,0),MATCH(AA$46,'Data Annex'!$K$1:$BA$1,0)),\"\")","v":0},{"$f":"IFERROR(INDEX('Data Annex'!$K$1:$BA$5047,MATCH(AB$45&\"|\"&$B64,'Data Annex'!$K$1:$K$5047,0),MATCH(AB$46,'Data Annex'!$K$1:$BA$1,0)),\"\")","v":0}]
[15,"HU",null,"HU",{"$f":"IFERROR(INDEX('Data Annex'!$K$1:$BA$5047,MATCH(E$45&\"|\"&$B65,'Data Annex'!$K$1:$K$5047,0),MATCH(E$46,'Data Annex'!$K$1:$BA$1,0)),\"\")","v":0},{"$f":"IFERROR(INDEX('Data Annex'!$K$1:$BA$5047,MATCH(F$45&\"|\"&$B65,'Data Annex'!$K$1:$K$5047,0),MATCH(F$46,'Data Annex'!$K$1:$BA$1,0)),\"\")","v":0},{"$f":"IFERROR(INDEX('Data Annex'!$K$1:$BA$5047,MATCH(G$45&\"|\"&$B65,'Data Annex'!$K$1:$K$5047,0),MATCH(G$46,'Data Annex'!$K$1:$BA$1,0)),\"\")","v":1.2720439454000001},{"$f":"IFERROR(INDEX('Data Annex'!$K$1:$BA$5047,MATCH(H$45&\"|\"&$B65,'Data Annex'!$K$1:$K$5047,0),MATCH(H$46,'Data Annex'!$K$1:$BA$1,0)),\"\")","v":2.0148736684999999},{"$f":"IFERROR(INDEX('Data Annex'!$K$1:$BA$5047,MATCH(I$45&\"|\"&$B65,'Data Annex'!$K$1:$K$5047,0),MATCH(I$46,'Data Annex'!$K$1:$BA$1,0)),\"\")","v":0},{"$f":"IFERROR(INDEX('Data Annex'!$K$1:$BA$5047,MATCH(J$45&\"|\"&$B65,'Data Annex'!$K$1:$K$5047,0),MATCH(J$46,'Data Annex'!$K$1:$BA$1,0)),\"\")","v":0},{"$f":"IFERROR(INDEX('Data Annex'!$K$1:$BA$5047,MATCH(K$45&\"|\"&$B65,'Data Annex'!$K$1:$K$5047,0),MATCH(K$46,'Data Annex'!$K$1:$BA$1,0)),\"\")","v":0.57739631309999995},{"$f":"IFERROR(INDEX('Data Annex'!$K$1:$BA$5047,MATCH(L$45&\"|\"&$B65,'Data Annex'!$K$1:$K$5047,0),MATCH(L$46,'Data Annex'!$K$1:$BA$1,0)),\"\")","v":0.50004599819999995},{"$f":"IFERROR(INDEX('Data Annex'!$K$1:$BA$5047,MATCH(M$45&\"|\"&$B65,'Data Annex'!$K$1:$K$5047,0),MATCH(M$46,'Data Annex'!$K$1:$BA$1,0)),\"\")","v":0},{"$f":"IFERROR(INDEX('Data Annex'!$K$1:$BA$5047,MATCH(N$45&\"|\"&$B65,'Data Annex'!$K$1:$K$5047,0),MATCH(N$46,'Data Annex'!$K$1:$BA$1,0)),\"\")","v":0},{"$f":"IFERROR(INDEX('Data Annex'!$K$1:$BA$5047,MATCH(O$45&\"|\"&$B65,'Data Annex'!$K$1:$K$5047,0),MATCH(O$46,'Data Annex'!$K$1:$BA$1,0)),\"\")","v":0.41721963369999998},{"$f":"IFERROR(INDEX('Data Annex'!$K$1:$BA$5047,MATCH(P$45&\"|\"&$B65,'Data Annex'!$K$1:$K$5047,0),MATCH(P$46,'Data Annex'!$K$1:$BA$1,0)),\"\")","v":0.4941789473},{"$f":"IFERROR(INDEX('Data Annex'!$K$1:$BA$5047,MATCH(Q$45&\"|\"&$B65,'Data Annex'!$K$1:$K$5047,0),MATCH(Q$46,'Data Annex'!$K$1:$BA$1,0)),\"\")","v":0},{"$f":"IFERROR(INDEX('Data Annex'!$K$1:$BA$5047,MATCH(R$45&\"|\"&$B65,'Data Annex'!$K$1:$K$5047,0),MATCH(R$46,'Data Annex'!$K$1:$BA$1,0)),\"\")","v":0},{"$f":"IFERROR(INDEX('Data Annex'!$K$1:$BA$5047,MATCH(S$45&\"|\"&$B65,'Data Annex'!$K$1:$K$5047,0),MATCH(S$46,'Data Annex'!$K$1:$BA$1,0)),\"\")","v":0},{"$f":"IFERROR(INDEX('Data Annex'!$K$1:$BA$5047,MATCH(T$45&\"|\"&$B65,'Data Annex'!$K$1:$K$5047,0),MATCH(T$46,'Data Annex'!$K$1:$BA$1,0)),\"\")","v":0},{"$f":"IFERROR(INDEX('Data Annex'!$K$1:$BA$5047,MATCH(U$45&\"|\"&$B65,'Data Annex'!$K$1:$K$5047,0),MATCH(U$46,'Data Annex'!$K$1:$BA$1,0)),\"\")","v":0},{"$f":"IFERROR(INDEX('Data Annex'!$K$1:$BA$5047,MATCH(V$45&\"|\"&$B65,'Data Annex'!$K$1:$K$5047,0),MATCH(V$46,'Data Annex'!$K$1:$BA$1,0)),\"\")","v":0},{"$f":"IFERROR(INDEX('Data Annex'!$K$1:$BA$5047,MATCH(W$45&\"|\"&$B65,'Data Annex'!$K$1:$K$5047,0),MATCH(W$46,'Data Annex'!$K$1:$BA$1,0)),\"\")","v":0},{"$f":"IFERROR(INDEX('Data Annex'!$K$1:$BA$5047,MATCH(X$45&\"|\"&$B65,'Data Annex'!$K$1:$K$5047,0),MATCH(X$46,'Data Annex'!$K$1:$BA$1,0)),\"\")","v":0},{"$f":"IFERROR(INDEX('Data Annex'!$K$1:$BA$5047,MATCH(Y$45&\"|\"&$B65,'Data Annex'!$K$1:$K$5047,0),MATCH(Y$46,'Data Annex'!$K$1:$BA$1,0)),\"\")","v":0},{"$f":"IFERROR(INDEX('Data Annex'!$K$1:$BA$5047,MATCH(Z$45&\"|\"&$B65,'Data Annex'!$K$1:$K$5047,0),MATCH(Z$46,'Data Annex'!$K$1:$BA$1,0)),\"\")","v":0},{"$f":"IFERROR(INDEX('Data Annex'!$K$1:$BA$5047,MATCH(AA$45&\"|\"&$B65,'Data Annex'!$K$1:$K$5047,0),MATCH(AA$46,'Data Annex'!$K$1:$BA$1,0)),\"\")","v":0},{"$f":"IFERROR(INDEX('Data Annex'!$K$1:$BA$5047,MATCH(AB$45&\"|\"&$B65,'Data Annex'!$K$1:$K$5047,0),MATCH(AB$46,'Data Annex'!$K$1:$BA$1,0)),\"\")","v":0}]
[16,"IE",null,"IE",{"$f":"IFERROR(INDEX('Data Annex'!$K$1:$BA$5047,MATCH(E$45&\"|\"&$B66,'Data Annex'!$K$1:$K$5047,0),MATCH(E$46,'Data Annex'!$K$1:$BA$1,0)),\"\")","v":0},{"$f":"IFERROR(INDEX('Data Annex'!$K$1:$BA$5047,MATCH(F$45&\"|\"&$B66,'Data Annex'!$K$1:$K$5047,0),MATCH(F$46,'Data Annex'!$K$1:$BA$1,0)),\"\")","v":6.8522160255999998},{"$f":"IFERROR(INDEX('Data Annex'!$K$1:$BA$5047,MATCH(G$45&\"|\"&$B66,'Data Annex'!$K$1:$K$5047,0),MATCH(G$46,'Data Annex'!$K$1:$BA$1,0)),\"\")","v":15.232598948},{"$f":"IFERROR(INDEX('Data Annex'!$K$1:$BA$5047,MATCH(H$45&\"|\"&$B66,'Data Annex'!$K$1:$K$5047,0),MATCH(H$46,'Data Annex'!$K$1:$BA$1,0)),\"\")","v":21.560414626},{"$f":"IFERROR(INDEX('Data Annex'!$K$1:$BA$5047,MATCH(I$45&\"|\"&$B66,'Data Annex'!$K$1:$K$5047,0),MATCH(I$46,'Data Annex'!$K$1:$BA$1,0)),\"\")","v":0},{"$f":"IFERROR(INDEX('Data Annex'!$K$1:$BA$5047,MATCH(J$45&\"|\"&$B66,'Data Annex'!$K$1:$K$5047,0),MATCH(J$46,'Data Annex'!$K$1:$BA$1,0)),\"\")","v":0.81092335810000005},{"$f":"IFERROR(INDEX('Data Annex'!$K$1:$BA$5047,MATCH(K$45&\"|\"&$B66,'Data Annex'!$K$1:$K$5047,0),MATCH(K$46,'Data Annex'!$K$1:$BA$1,0)),\"\")","v":0.59421070929999997},{"$f":"IFERROR(INDEX('Data Annex'!$K$1:$BA$5047,MATCH(L$45&\"|\"&$B66,'Data Annex'!$K$1:$K$5047,0),MATCH(L$46,'Data Annex'!$K$1:$BA$1,0)),\"\")","v":0.57435617480000001},{"$f":"IFERROR(INDEX('Data Annex'!$K$1:$BA$5047,MATCH(M$45&\"|\"&$B66,'Data Annex'!$K$1:$K$5047,0),MATCH(M$46,'Data Annex'!$K$1:$BA$1,0)),\"\")","v":0},{"$f":"IFERROR(INDEX('Data Annex'!$K$1:$BA$5047,MATCH(N$45&\"|\"&$B66,'Data Annex'!$K$1:$K$5047,0),MATCH(N$46,'Data Annex'!$K$1:$BA$1,0)),\"\")","v":0.1887952255},{"$f":"IFERROR(INDEX('Data Annex'!$K$1:$BA$5047,MATCH(O$45&\"|\"&$B66,'Data Annex'!$K$1:$K$5047,0),MATCH(O$46,'Data Annex'!$K$1:$BA$1,0)),\"\")","v":0.40489305580000001},{"$f":"IFERROR(INDEX('Data Annex'!$K$1:$BA$5047,MATCH(P$45&\"|\"&$B66,'Data Annex'!$K$1:$K$5047,0),MATCH(P$46,'Data Annex'!$K$1:$BA$1,0)),\"\")","v":0.4226581412},{"$f":"IFERROR(INDEX('Data Annex'!$K$1:$BA$5047,MATCH(Q$45&\"|\"&$B66,'Data Annex'!$K$1:$K$5047,0),MATCH(Q$46,'Data Annex'!$K$1:$BA$1,0)),\"\")","v":0},{"$f":"IFERROR(INDEX('Data Annex'!$K$1:$BA$5047,MATCH(R$45&\"|\"&$B66,'Data Annex'!$K$1:$K$5047,0),MATCH(R$46,'Data Annex'!$K$1:$BA$1,0)),\"\")","v":0.22343886299999999},{"$f":"IFERROR(INDEX('Data Annex'!$K$1:$BA$5047,MATCH(S$45&\"|\"&$B66,'Data Annex'!$K$1:$K$5047,0),MATCH(S$46,'Data Annex'!$K$1:$BA$1,0)),\"\")","v":0.31391679519999999},{"$f":"IFERROR(INDEX('Data Annex'!$K$1:$BA$5047,MATCH(T$45&\"|\"&$B66,'Data Annex'!$K$1:$K$5047,0),MATCH(T$46,'Data Annex'!$K$1:$BA$1,0)),\"\")","v":0.34933821850000002},{"$f":"IFERROR(INDEX('Data Annex'!$K$1:$BA$5047,MATCH(U$45&\"|\"&$B66,'Data Annex'!$K$1:$K$5047,0),MATCH(U$46,'Data Annex'!$K$1:$BA$1,0)),\"\")","v":0},{"$f":"IFERROR(INDEX('Data Annex'!$K$1:$BA$5047,MATCH(V$45&\"|\"&$B66,'Data Annex'!$K$1:$K$5047,0),MATCH(V$46,'Data Annex'!$K$1:$BA$1,0)),\"\")","v":8.6547642199999997E-2},{"$f":"IFERROR(INDEX('Data Annex'!$K$1:$BA$5047,MATCH(W$45&\"|\"&$B66,'Data Annex'!$K$1:$K$5047,0),MATCH(W$46,'Data Annex'!$K$1:$BA$1,0)),\"\")","v":6.7410367900000004E-2},{"$f":"IFERROR(INDEX('Data Annex'!$K$1:$BA$5047,MATCH(X$45&\"|\"&$B66,'Data Annex'!$K$1:$K$5047,0),MATCH(X$46,'Data Annex'!$K$1:$BA$1,0)),\"\")","v":0.1150426212},{"$f":"IFERROR(INDEX('Data Annex'!$K$1:$BA$5047,MATCH(Y$45&\"|\"&$B66,'Data Annex'!$K$1:$K$5047,0),MATCH(Y$46,'Data Annex'!$K$1:$BA$1,0)),\"\")","v":0},{"$f":"IFERROR(INDEX('Data Annex'!$K$1:$BA$5047,MATCH(Z$45&\"|\"&$B66,'Data Annex'!$K$1:$K$5047,0),MATCH(Z$46,'Data Annex'!$K$1:$BA$1,0)),\"\")","v":0.18698841350000001},{"$f":"IFERROR(INDEX('Data Annex'!$K$1:$BA$5047,MATCH(AA$45&\"|\"&$B66,'Data Annex'!$K$1:$K$5047,0),MATCH(AA$46,'Data Annex'!$K$1:$BA$1,0)),\"\")","v":0.23589099290000001},{"$f":"IFERROR(INDEX('Data Annex'!$K$1:$BA$5047,MATCH(AB$45&\"|\"&$B66,'Data Annex'!$K$1:$K$5047,0),MATCH(AB$46,'Data Annex'!$K$1:$BA$1,0)),\"\")","v":0.2016970857}]
[17,"IS",null,"IS",{"$f":"IFERROR(INDEX('Data Annex'!$K$1:$BA$5047,MATCH(E$45&\"|\"&$B67,'Data Annex'!$K$1:$K$5047,0),MATCH(E$46,'Data Annex'!$K$1:$BA$1,0)),\"\")","v":0},{"$f":"IFERROR(INDEX('Data Annex'!$K$1:$BA$5047,MATCH(F$45&\"|\"&$B67,'Data Annex'!$K$1:$K$5047,0),MATCH(F$46,'Data Annex'!$K$1:$BA$1,0)),\"\")","v":0.35472704379999997},{"$f":"IFERROR(INDEX('Data Annex'!$K$1:$BA$5047,MATCH(G$45&\"|\"&$B67,'Data Annex'!$K$1:$K$5047,0),MATCH(G$46,'Data Annex'!$K$1:$BA$1,0)),\"\")","v":1.3077305066},{"$f":"IFERROR(INDEX('Data Annex'!$K$1:$BA$5047,MATCH(H$45&\"|\"&$B67,'Data Annex'!$K$1:$K$5047,0),MATCH(H$46,'Data Annex'!$K$1:$BA$1,0)),\"\")","v":1.5085113825000001},{"$f":"IFERROR(INDEX('Data Annex'!$K$1:$BA$5047,MATCH(I$45&\"|\"&$B67,'Data Annex'!$K$1:$K$5047,0),MATCH(I$46,'Data Annex'!$K$1:$BA$1,0)),\"\")","v":0},{"$f":"IFERROR(INDEX('Data Annex'!$K$1:$BA$5047,MATCH(J$45&\"|\"&$B67,'Data Annex'!$K$1:$K$5047,0),MATCH(J$46,'Data Annex'!$K$1:$BA$1,0)),\"\")","v":0.48432068389999999},{"$f":"IFERROR(INDEX('Data Annex'!$K$1:$BA$5047,MATCH(K$45&\"|\"&$B67,'Data Annex'!$K$1:$K$5047,0),MATCH(K$46,'Data Annex'!$K$1:$BA$1,0)),\"\")","v":0.3280525883},{"$f":"IFERROR(INDEX('Data Annex'!$K$1:$BA$5047,MATCH(L$45&\"|\"&$B67,'Data Annex'!$K$1:$K$5047,0),MATCH(L$46,'Data Annex'!$K$1:$BA$1,0)),\"\")","v":0.32612543510000003},{"$f":"IFERROR(INDEX('Data Annex'!$K$1:$BA$5047,MATCH(M$45&\"|\"&$B67,'Data Annex'!$K$1:$K$5047,0),MATCH(M$46,'Data Annex'!$K$1:$BA$1,0)),\"\")","v":0},{"$f":"IFERROR(INDEX('Data Annex'!$K$1:$BA$5047,MATCH(N$45&\"|\"&$B67,'Data Annex'!$K$1:$K$5047,0),MATCH(N$46,'Data Annex'!$K$1:$BA$1,0)),\"\")","v":0.51567931609999995},{"$f":"IFERROR(INDEX('Data Annex'!$K$1:$BA$5047,MATCH(O$45&\"|\"&$B67,'Data Annex'!$K$1:$K$5047,0),MATCH(O$46,'Data Annex'!$K$1:$BA$1,0)),\"\")","v":0.66575503719999995},{"$f":"IFERROR(INDEX('Data Annex'!$K$1:$BA$5047,MATCH(P$45&\"|\"&$B67,'Data Annex'!$K$1:$K$5047,0),MATCH(P$46,'Data Annex'!$K$1:$BA$1,0)),\"\")","v":0.67024976510000001},{"$f":"IFERROR(INDEX('Data Annex'!$K$1:$BA$5047,MATCH(Q$45&\"|\"&$B67,'Data Annex'!$K$1:$K$5047,0),MATCH(Q$46,'Data Annex'!$K$1:$BA$1,0)),\"\")","v":0},{"$f":"IFERROR(INDEX('Data Annex'!$K$1:$BA$5047,MATCH(R$45&\"|\"&$B67,'Data Annex'!$K$1:$K$5047,0),MATCH(R$46,'Data Annex'!$K$1:$BA$1,0)),\"\")","v":0},{"$f":"IFERROR(INDEX('Data Annex'!$K$1:$BA$5047,MATCH(S$45&\"|\"&$B67,'Data Annex'!$K$1:$K$5047,0),MATCH(S$46,'Data Annex'!$K$1:$BA$1,0)),\"\")","v":0},{"$f":"IFERROR(INDEX('Data Annex'!$K$1:$BA$5047,MATCH(T$45&\"|\"&$B67,'Data Annex'!$K$1:$K$5047,0),MATCH(T$46,'Data Annex'!$K$1:$BA$1,0)),\"\")","v":0},{"$f":"IFERROR(INDEX('Data Annex'!$K$1:$BA$5047,MATCH(U$45&\"|\"&$B67,'Data Annex'!$K$1:$K$5047,0),MATCH(U$46,'Data Annex'!$K$1:$BA$1,0)),\"\")","v":0},{"$f":"IFERROR(INDEX('Data Annex'!$K$1:$BA$5047,MATCH(V$45&\"|\"&$B67,'Data Annex'!$K$1:$K$5047,0),MATCH(V$46,'Data Annex'!$K$1:$BA$1,0)),\"\")","v":0},{"$f":"IFERROR(INDEX('Data Annex'!$K$1:$BA$5047,MATCH(W$45&\"|\"&$B67,'Data Annex'!$K$1:$K$5047,0),MATCH(W$46,'Data Annex'!$K$1:$BA$1,0)),\"\")","v":0},{"$f":"IFERROR(INDEX('Data Annex'!$K$1:$BA$5047,MATCH(X$45&\"|\"&$B67,'Data Annex'!$K$1:$K$5047,0),MATCH(X$46,'Data Annex'!$K$1:$BA$1,0)),\"\")","v":0},{"$f":"IFERROR(INDEX('Data Annex'!$K$1:$BA$5047,MATCH(Y$45&\"|\"&$B67,'Data Annex'!$K$1:$K$5047,0),MATCH(Y$46,'Data Annex'!$K$1:$BA$1,0)),\"\")","v":0},{"$f":"IFERROR(INDEX('Data Annex'!$K$1:$BA$5047,MATCH(Z$45&\"|\"&$B67,'Data Annex'!$K$1:$K$5047,0),MATCH(Z$46,'Data Annex'!$K$1:$BA$1,0)),\"\")","v":0},{"$f":"IFERROR(INDEX('Data Annex'!$K$1:$BA$5047,MATCH(AA$45&\"|\"&$B67,'Data Annex'!$K$1:$K$5047,0),MATCH(AA$46,'Data Annex'!$K$1:$BA$1,0)),\"\")","v":0},{"$f":"IFERROR(INDEX('Data Annex'!$K$1:$BA$5047,MATCH(AB$45&\"|\"&$B67,'Data Annex'!$K$1:$K$5047,0),MATCH(AB$46,'Data Annex'!$K$1:$BA$1,0)),\"\")","v":0}]
[18,"IT",null,"IT",{"$f":"IFERROR(INDEX('Data Annex'!$K$1:$BA$5047,MATCH(E$45&\"|\"&$B68,'Data Annex'!$K$1:$K$5047,0),MATCH(E$46,'Data Annex'!$K$1:$BA$1,0)),\"\")","v":0},{"$f":"IFERROR(INDEX('Data Annex'!$K$1:$BA$5047,MATCH(F$45&\"|\"&$B68,'Data Annex'!$K$1:$K$5047,0),MATCH(F$46,'Data Annex'!$K$1:$BA$1,0)),\"\")","v":10.058104738999999},{"$f":"IFERROR(INDEX('Data Annex'!$K$1:$BA$5047,MATCH(G$45&\"|\"&$B68,'Data Annex'!$K$1:$K$5047,0),MATCH(G$46,'Data Annex'!$K$1:$BA$1,0)),\"\")","v":31.697327291000001},{"$f":"IFERROR(INDEX('Data Annex'!$K$1:$BA$5047,MATCH(H$45&\"|\"&$B68,'Data Annex'!$K$1:$K$5047,0),MATCH(H$46,'Data Annex'!$K$1:$BA$1,0)),\"\")","v":58.187454727000002},{"$f":"IFERROR(INDEX('Data Annex'!$K$1:$BA$5047,MATCH(I$45&\"|\"&$B68,'Data Annex'!$K$1:$K$5047,0),MATCH(I$46,'Data Annex'!$K$1:$BA$1,0)),\"\")","v":0},{"$f":"IFERROR(INDEX('Data Annex'!$K$1:$BA$5047,MATCH(J$45&\"|\"&$B68,'Data Annex'!$K$1:$K$5047,0),MATCH(J$46,'Data Annex'!$K$1:$BA$1,0)),\"\")","v":0.34940809299999998},{"$f":"IFERROR(INDEX('Data Annex'!$K$1:$BA$5047,MATCH(K$45&\"|\"&$B68,'Data Annex'!$K$1:$K$5047,0),MATCH(K$46,'Data Annex'!$K$1:$BA$1,0)),\"\")","v":0.43197548470000002},{"$f":"IFERROR(INDEX('Data Annex'!$K$1:$BA$5047,MATCH(L$45&\"|\"&$B68,'Data Annex'!$K$1:$K$5047,0),MATCH(L$46,'Data Annex'!$K$1:$BA$1,0)),\"\")","v":0.48642505889999998},{"$f":"IFERROR(INDEX('Data Annex'!$K$1:$BA$5047,MATCH(M$45&\"|\"&$B68,'Data Annex'!$K$1:$K$5047,0),MATCH(M$46,'Data Annex'!$K$1:$BA$1,0)),\"\")","v":0},{"$f":"IFERROR(INDEX('Data Annex'!$K$1:$BA$5047,MATCH(N$45&\"|\"&$B68,'Data Annex'!$K$1:$K$5047,0),MATCH(N$46,'Data Annex'!$K$1:$BA$1,0)),\"\")","v":0.64174133330000005},{"$f":"IFERROR(INDEX('Data Annex'!$K$1:$BA$5047,MATCH(O$45&\"|\"&$B68,'Data Annex'!$K$1:$K$5047,0),MATCH(O$46,'Data Annex'!$K$1:$BA$1,0)),\"\")","v":0.54395222750000005},{"$f":"IFERROR(INDEX('Data Annex'!$K$1:$BA$5047,MATCH(P$45&\"|\"&$B68,'Data Annex'!$K$1:$K$5047,0),MATCH(P$46,'Data Annex'!$K$1:$BA$1,0)),\"\")","v":0.48964760010000002},{"$f":"IFERROR(INDEX('Data Annex'!$K$1:$BA$5047,MATCH(Q$45&\"|\"&$B68,'Data Annex'!$K$1:$K$5047,0),MATCH(Q$46,'Data Annex'!$K$1:$BA$1,0)),\"\")","v":0},{"$f":"IFERROR(INDEX('Data Annex'!$K$1:$BA$5047,MATCH(R$45&\"|\"&$B68,'Data Annex'!$K$1:$K$5047,0),MATCH(R$46,'Data Annex'!$K$1:$BA$1,0)),\"\")","v":0.1926986088},{"$f":"IFERROR(INDEX('Data Annex'!$K$1:$BA$5047,MATCH(S$45&\"|\"&$B68,'Data Annex'!$K$1:$K$5047,0),MATCH(S$46,'Data Annex'!$K$1:$BA$1,0)),\"\")","v":0.1895654963},{"$f":"IFERROR(INDEX('Data Annex'!$K$1:$BA$5047,MATCH(T$45&\"|\"&$B68,'Data Annex'!$K$1:$K$5047,0),MATCH(T$46,'Data Annex'!$K$1:$BA$1,0)),\"\")","v":0.2485939194},{"$f":"IFERROR(INDEX('Data Annex'!$K$1:$BA$5047,MATCH(U$45&\"|\"&$B68,'Data Annex'!$K$1:$K$5047,0),MATCH(U$46,'Data Annex'!$K$1:$BA$1,0)),\"\")","v":0},{"$f":"IFERROR(INDEX('Data Annex'!$K$1:$BA$5047,MATCH(V$45&\"|\"&$B68,'Data Annex'!$K$1:$K$5047,0),MATCH(V$46,'Data Annex'!$K$1:$BA$1,0)),\"\")","v":1.5513437E-2},{"$f":"IFERROR(INDEX('Data Annex'!$K$1:$BA$5047,MATCH(W$45&\"|\"&$B68,'Data Annex'!$K$1:$K$5047,0),MATCH(W$46,'Data Annex'!$K$1:$BA$1,0)),\"\")","v":2.7065828300000001E-2},{"$f":"IFERROR(INDEX('Data Annex'!$K$1:$BA$5047,MATCH(X$45&\"|\"&$B68,'Data Annex'!$K$1:$K$5047,0),MATCH(X$46,'Data Annex'!$K$1:$BA$1,0)),\"\")","v":2.9149172599999999E-2},{"$f":"IFERROR(INDEX('Data Annex'!$K$1:$BA$5047,MATCH(Y$45&\"|\"&$B68,'Data Annex'!$K$1:$K$5047,0),MATCH(Y$46,'Data Annex'!$K$1:$BA$1,0)),\"\")","v":0},{"$f":"IFERROR(INDEX('Data Annex'!$K$1:$BA$5047,MATCH(Z$45&\"|\"&$B68,'Data Annex'!$K$1:$K$5047,0),MATCH(Z$46,'Data Annex'!$K$1:$BA$1,0)),\"\")","v":0.30426441900000001},{"$f":"IFERROR(INDEX('Data Annex'!$K$1:$BA$5047,MATCH(AA$45&\"|\"&$B68,'Data Annex'!$K$1:$K$5047,0),MATCH(AA$46,'Data Annex'!$K$1:$BA$1,0)),\"\")","v":0.30207092730000001},{"$f":"IFERROR(INDEX('Data Annex'!$K$1:$BA$5047,MATCH(AB$45&\"|\"&$B68,'Data Annex'!$K$1:$K$5047,0),MATCH(AB$46,'Data Annex'!$K$1:$BA$1,0)),\"\")","v":0.35222257089999998}]
[19,"LT",null,"LT",{"$f":"IFERROR(INDEX('Data Annex'!$K$1:$BA$5047,MATCH(E$45&\"|\"&$B69,'Data Annex'!$K$1:$K$5047,0),MATCH(E$46,'Data Annex'!$K$1:$BA$1,0)),\"\")","v":0},{"$f":"IFERROR(INDEX('Data Annex'!$K$1:$BA$5047,MATCH(F$45&\"|\"&$B69,'Data Annex'!$K$1:$K$5047,0),MATCH(F$46,'Data Annex'!$K$1:$BA$1,0)),\"\")","v":2.5414029000000001E-2},{"$f":"IFERROR(INDEX('Data Annex'!$K$1:$BA$5047,MATCH(G$45&\"|\"&$B69,'Data Annex'!$K$1:$K$5047,0),MATCH(G$46,'Data Annex'!$K$1:$BA$1,0)),\"\")","v":0.109747},{"$f":"IFERROR(INDEX('Data Annex'!$K$1:$BA$5047,MATCH(H$45&\"|\"&$B69,'Data Annex'!$K$1:$K$5047,0),MATCH(H$46,'Data Annex'!$K$1:$BA$1,0)),\"\")","v":0.25334400000000001},{"$f":"IFERROR(INDEX('Data Annex'!$K$1:$BA$5047,MATCH(I$45&\"|\"&$B69,'Data Annex'!$K$1:$K$5047,0),MATCH(I$46,'Data Annex'!$K$1:$BA$1,0)),\"\")","v":0},{"$f":"IFERROR(INDEX('Data Annex'!$K$1:$BA$5047,MATCH(J$45&\"|\"&$B69,'Data Annex'!$K$1:$K$5047,0),MATCH(J$46,'Data Annex'!$K$1:$BA$1,0)),\"\")","v":0.8790242586},{"$f":"IFERROR(INDEX('Data Annex'!$K$1:$BA$5047,MATCH(K$45&\"|\"&$B69,'Data Annex'!$K$1:$K$5047,0),MATCH(K$46,'Data Annex'!$K$1:$BA$1,0)),\"\")","v":0.50501608239999995},{"$f":"IFERROR(INDEX('Data Annex'!$K$1:$BA$5047,MATCH(L$45&\"|\"&$B69,'Data Annex'!$K$1:$K$5047,0),MATCH(L$46,'Data Annex'!$K$1:$BA$1,0)),\"\")","v":0.43986832129999998},{"$f":"IFERROR(INDEX('Data Annex'!$K$1:$BA$5047,MATCH(M$45&\"|\"&$B69,'Data Annex'!$K$1:$K$5047,0),MATCH(M$46,'Data Annex'!$K$1:$BA$1,0)),\"\")","v":0},{"$f":"IFERROR(INDEX('Data Annex'!$K$1:$BA$5047,MATCH(N$45&\"|\"&$B69,'Data Annex'!$K$1:$K$5047,0),MATCH(N$46,'Data Annex'!$K$1:$BA$1,0)),\"\")","v":0.120936393},{"$f":"IFERROR(INDEX('Data Annex'!$K$1:$BA$5047,MATCH(O$45&\"|\"&$B69,'Data Annex'!$K$1:$K$5047,0),MATCH(O$46,'Data Annex'!$K$1:$BA$1,0)),\"\")","v":0.49498391759999999},{"$f":"IFERROR(INDEX('Data Annex'!$K$1:$BA$5047,MATCH(P$45&\"|\"&$B69,'Data Annex'!$K$1:$K$5047,0),MATCH(P$46,'Data Annex'!$K$1:$BA$1,0)),\"\")","v":0.56002510419999996},{"$f":"IFERROR(INDEX('Data Annex'!$K$1:$BA$5047,MATCH(Q$45&\"|\"&$B69,'Data Annex'!$K$1:$K$5047,0),MATCH(Q$46,'Data Annex'!$K$1:$BA$1,0)),\"\")","v":0},{"$f":"IFERROR(INDEX('Data Annex'!$K$1:$BA$5047,MATCH(R$45&\"|\"&$B69,'Data Annex'!$K$1:$K$5047,0),MATCH(R$46,'Data Annex'!$K$1:$BA$1,0)),\"\")","v":9.6490131500000006E-2},{"$f":"IFERROR(INDEX('Data Annex'!$K$1:$BA$5047,MATCH(S$45&\"|\"&$B69,'Data Annex'!$K$1:$K$5047,0),MATCH(S$46,'Data Annex'!$K$1:$BA$1,0)),\"\")","v":0.2814655526},{"$f":"IFERROR(INDEX('Data Annex'!$K$1:$BA$5047,MATCH(T$45&\"|\"&$B69,'Data Annex'!$K$1:$K$5047,0),MATCH(T$46,'Data Annex'!$K$1:$BA$1,0)),\"\")","v":0.2391609827},{"$f":"IFERROR(INDEX('Data Annex'!$K$1:$BA$5047,MATCH(U$45&\"|\"&$B69,'Data Annex'!$K$1:$K$5047,0),MATCH(U$46,'Data Annex'!$K$1:$BA$1,0)),\"\")","v":0},{"$f":"IFERROR(INDEX('Data Annex'!$K$1:$BA$5047,MATCH(V$45&\"|\"&$B69,'Data Annex'!$K$1:$K$5047,0),MATCH(V$46,'Data Annex'!$K$1:$BA$1,0)),\"\")","v":9.4829513000000004E-3},{"$f":"IFERROR(INDEX('Data Annex'!$K$1:$BA$5047,MATCH(W$45&\"|\"&$B69,'Data Annex'!$K$1:$K$5047,0),MATCH(W$46,'Data Annex'!$K$1:$BA$1,0)),\"\")","v":4.9841909000000002E-3},{"$f":"IFERROR(INDEX('Data Annex'!$K$1:$BA$5047,MATCH(X$45&\"|\"&$B69,'Data Annex'!$K$1:$K$5047,0),MATCH(X$46,'Data Annex'!$K$1:$BA$1,0)),\"\")","v":2.2143803999999999E-3},{"$f":"IFERROR(INDEX('Data Annex'!$K$1:$BA$5047,MATCH(Y$45&\"|\"&$B69,'Data Annex'!$K$1:$K$5047,0),MATCH(Y$46,'Data Annex'!$K$1:$BA$1,0)),\"\")","v":0},{"$f":"IFERROR(INDEX('Data Annex'!$K$1:$BA$5047,MATCH(Z$45&\"|\"&$B69,'Data Annex'!$K$1:$K$5047,0),MATCH(Z$46,'Data Annex'!$K$1:$BA$1,0)),\"\")","v":0.14937759340000001},{"$f":"IFERROR(INDEX('Data Annex'!$K$1:$BA$5047,MATCH(AA$45&\"|\"&$B69,'Data Annex'!$K$1:$K$5047,0),MATCH(AA$46,'Data Annex'!$K$1:$BA$1,0)),\"\")","v":0.1627056673},{"$f":"IFERROR(INDEX('Data Annex'!$K$1:$BA$5047,MATCH(AB$45&\"|\"&$B69,'Data Annex'!$K$1:$K$5047,0),MATCH(AB$46,'Data Annex'!$K$1:$BA$1,0)),\"\")","v":0.16221033870000001}]
[20,"LU",null,"LU",{"$f":"IFERROR(INDEX('Data Annex'!$K$1:$BA$5047,MATCH(E$45&\"|\"&$B70,'Data Annex'!$K$1:$K$5047,0),MATCH(E$46,'Data Annex'!$K$1:$BA$1,0)),\"\")","v":0},{"$f":"IFERROR(INDEX('Data Annex'!$K$1:$BA$5047,MATCH(F$45&\"|\"&$B70,'Data Annex'!$K$1:$K$5047,0),MATCH(F$46,'Data Annex'!$K$1:$BA$1,0)),\"\")","v":0.27557438090000003},{"$f":"IFERROR(INDEX('Data Annex'!$K$1:$BA$5047,MATCH(G$45&\"|\"&$B70,'Data Annex'!$K$1:$K$5047,0),MATCH(G$46,'Data Annex'!$K$1:$BA$1,0)),\"\")","v":2.4271502813999999},{"$f":"IFERROR(INDEX('Data Annex'!$K$1:$BA$5047,MATCH(H$45&\"|\"&$B70,'Data Annex'!$K$1:$K$5047,0),MATCH(H$46,'Data Annex'!$K$1:$BA$1,0)),\"\")","v":3.2633169627999998},{"$f":"IFERROR(INDEX('Data Annex'!$K$1:$BA$5047,MATCH(I$45&\"|\"&$B70,'Data Annex'!$K$1:$K$5047,0),MATCH(I$46,'Data Annex'!$K$1:$BA$1,0)),\"\")","v":0},{"$f":"IFERROR(INDEX('Data Annex'!$K$1:$BA$5047,MATCH(J$45&\"|\"&$B70,'Data Annex'!$K$1:$K$5047,0),MATCH(J$46,'Data Annex'!$K$1:$BA$1,0)),\"\")","v":0.30064862549999999},{"$f":"IFERROR(INDEX('Data Annex'!$K$1:$BA$5047,MATCH(K$45&\"|\"&$B70,'Data Annex'!$K$1:$K$5047,0),MATCH(K$46,'Data Annex'!$K$1:$BA$1,0)),\"\")","v":0.1616604465},{"$f":"IFERROR(INDEX('Data Annex'!$K$1:$BA$5047,MATCH(L$45&\"|\"&$B70,'Data Annex'!$K$1:$K$5047,0),MATCH(L$46,'Data Annex'!$K$1:$BA$1,0)),\"\")","v":0.15989363109999999},{"$f":"IFERROR(INDEX('Data Annex'!$K$1:$BA$5047,MATCH(M$45&\"|\"&$B70,'Data Annex'!$K$1:$K$5047,0),MATCH(M$46,'Data Annex'!$K$1:$BA$1,0)),\"\")","v":0},{"$f":"IFERROR(INDEX('Data Annex'!$K$1:$BA$5047,MATCH(N$45&\"|\"&$B70,'Data Annex'!$K$1:$K$5047,0),MATCH(N$46,'Data Annex'!$K$1:$BA$1,0)),\"\")","v":0.69935137449999996},{"$f":"IFERROR(INDEX('Data Annex'!$K$1:$BA$5047,MATCH(O$45&\"|\"&$B70,'Data Annex'!$K$1:$K$5047,0),MATCH(O$46,'Data Annex'!$K$1:$BA$1,0)),\"\")","v":0.80132940630000005},{"$f":"IFERROR(INDEX('Data Annex'!$K$1:$BA$5047,MATCH(P$45&\"|\"&$B70,'Data Annex'!$K$1:$K$5047,0),MATCH(P$46,'Data Annex'!$K$1:$BA$1,0)),\"\")","v":0.79942673539999998},{"$f":"IFERROR(INDEX('Data Annex'!$K$1:$BA$5047,MATCH(Q$45&\"|\"&$B70,'Data Annex'!$K$1:$K$5047,0),MATCH(Q$46,'Data Annex'!$K$1:$BA$1,0)),\"\")","v":0},{"$f":"IFERROR(INDEX('Data Annex'!$K$1:$BA$5047,MATCH(R$45&\"|\"&$B70,'Data Annex'!$K$1:$K$5047,0),MATCH(R$46,'Data Annex'!$K$1:$BA$1,0)),\"\")","v":6.4640422399999994E-2},{"$f":"IFERROR(INDEX('Data Annex'!$K$1:$BA$5047,MATCH(S$45&\"|\"&$B70,'Data Annex'!$K$1:$K$5047,0),MATCH(S$46,'Data Annex'!$K$1:$BA$1,0)),\"\")","v":0.1154820099},{"$f":"IFERROR(INDEX('Data Annex'!$K$1:$BA$5047,MATCH(T$45&\"|\"&$B70,'Data Annex'!$K$1:$K$5047,0),MATCH(T$46,'Data Annex'!$K$1:$BA$1,0)),\"\")","v":0.12539455590000001},{"$f":"IFERROR(INDEX('Data Annex'!$K$1:$BA$5047,MATCH(U$45&\"|\"&$B70,'Data Annex'!$K$1:$K$5047,0),MATCH(U$46,'Data Annex'!$K$1:$BA$1,0)),\"\")","v":0},{"$f":"IFERROR(INDEX('Data Annex'!$K$1:$BA$5047,MATCH(V$45&\"|\"&$B70,'Data Annex'!$K$1:$K$5047,0),MATCH(V$46,'Data Annex'!$K$1:$BA$1,0)),\"\")","v":1.79415432E-2},{"$f":"IFERROR(INDEX('Data Annex'!$K$1:$BA$5047,MATCH(W$45&\"|\"&$B70,'Data Annex'!$K$1:$K$5047,0),MATCH(W$46,'Data Annex'!$K$1:$BA$1,0)),\"\")","v":4.2201909099999997E-2},{"$f":"IFERROR(INDEX('Data Annex'!$K$1:$BA$5047,MATCH(X$45&\"|\"&$B70,'Data Annex'!$K$1:$K$5047,0),MATCH(X$46,'Data Annex'!$K$1:$BA$1,0)),\"\")","v":4.8149177899999999E-2},{"$f":"IFERROR(INDEX('Data Annex'!$K$1:$BA$5047,MATCH(Y$45&\"|\"&$B70,'Data Annex'!$K$1:$K$5047,0),MATCH(Y$46,'Data Annex'!$K$1:$BA$1,0)),\"\")","v":0},{"$f":"IFERROR(INDEX('Data Annex'!$K$1:$BA$5047,MATCH(Z$45&\"|\"&$B70,'Data Annex'!$K$1:$K$5047,0),MATCH(Z$46,'Data Annex'!$K$1:$BA$1,0)),\"\")","v":0.11564715239999999},{"$f":"IFERROR(INDEX('Data Annex'!$K$1:$BA$5047,MATCH(AA$45&\"|\"&$B70,'Data Annex'!$K$1:$K$5047,0),MATCH(AA$46,'Data Annex'!$K$1:$BA$1,0)),\"\")","v":6.1126210600000001E-2},{"$f":"IFERROR(INDEX('Data Annex'!$K$1:$BA$5047,MATCH(AB$45&\"|\"&$B70,'Data Annex'!$K$1:$K$5047,0),MATCH(AB$46,'Data Annex'!$K$1:$BA$1,0)),\"\")","v":7.8725884600000004E-2}]
[21,"LV",null,"LV",{"$f":"IFERROR(INDEX('Data Annex'!$K$1:$BA$5047,MATCH(E$45&\"|\"&$B71,'Data Annex'!$K$1:$K$5047,0),MATCH(E$46,'Data Annex'!$K$1:$BA$1,0)),\"\")","v":0},{"$f":"IFERROR(INDEX('Data Annex'!$K$1:$BA$5047,MATCH(F$45&\"|\"&$B71,'Data Annex'!$K$1:$K$5047,0),MATCH(F$46,'Data Annex'!$K$1:$BA$1,0)),\"\")","v":1.57844969E-2},{"$f":"IFERROR(INDEX('Data Annex'!$K$1:$BA$5047,MATCH(G$45&\"|\"&$B71,'Data Annex'!$K$1:$K$5047,0),MATCH(G$46,'Data Annex'!$K$1:$BA$1,0)),\"\")","v":0.1208483026},{"$f":"IFERROR(INDEX('Data Annex'!$K$1:$BA$5047,MATCH(H$45&\"|\"&$B71,'Data Annex'!$K$1:$K$5047,0),MATCH(H$46,'Data Annex'!$K$1:$BA$1,0)),\"\")","v":0.24156414579999999},{"$f":"IFERROR(INDEX('Data Annex'!$K$1:$BA$5047,MATCH(I$45&\"|\"&$B71,'Data Annex'!$K$1:$K$5047,0),MATCH(I$46,'Data Annex'!$K$1:$BA$1,0)),\"\")","v":0},{"$f":"IFERROR(INDEX('Data Annex'!$K$1:$BA$5047,MATCH(J$45&\"|\"&$B71,'Data Annex'!$K$1:$K$5047,0),MATCH(J$46,'Data Annex'!$K$1:$BA$1,0)),\"\")","v":0.46282704670000002},{"$f":"IFERROR(INDEX('Data Annex'!$K$1:$BA$5047,MATCH(K$45&\"|\"&$B71,'Data Annex'!$K$1:$K$5047,0),MATCH(K$46,'Data Annex'!$K$1:$BA$1,0)),\"\")","v":0.31249223549999999},{"$f":"IFERROR(INDEX('Data Annex'!$K$1:$BA$5047,MATCH(L$45&\"|\"&$B71,'Data Annex'!$K$1:$K$5047,0),MATCH(L$46,'Data Annex'!$K$1:$BA$1,0)),\"\")","v":0.45625908240000002},{"$f":"IFERROR(INDEX('Data Annex'!$K$1:$BA$5047,MATCH(M$45&\"|\"&$B71,'Data Annex'!$K$1:$K$5047,0),MATCH(M$46,'Data Annex'!$K$1:$BA$1,0)),\"\")","v":0},{"$f":"IFERROR(INDEX('Data Annex'!$K$1:$BA$5047,MATCH(N$45&\"|\"&$B71,'Data Annex'!$K$1:$K$5047,0),MATCH(N$46,'Data Annex'!$K$1:$BA$1,0)),\"\")","v":0.53717295330000003},{"$f":"IFERROR(INDEX('Data Annex'!$K$1:$BA$5047,MATCH(O$45&\"|\"&$B71,'Data Annex'!$K$1:$K$5047,0),MATCH(O$46,'Data Annex'!$K$1:$BA$1,0)),\"\")","v":0.68750776449999995},{"$f":"IFERROR(INDEX('Data Annex'!$K$1:$BA$5047,MATCH(P$45&\"|\"&$B71,'Data Annex'!$K$1:$K$5047,0),MATCH(P$46,'Data Annex'!$K$1:$BA$1,0)),\"\")","v":0.54374091759999998},{"$f":"IFERROR(INDEX('Data Annex'!$K$1:$BA$5047,MATCH(Q$45&\"|\"&$B71,'Data Annex'!$K$1:$K$5047,0),MATCH(Q$46,'Data Annex'!$K$1:$BA$1,0)),\"\")","v":0},{"$f":"IFERROR(INDEX('Data Annex'!$K$1:$BA$5047,MATCH(R$45&\"|\"&$B71,'Data Annex'!$K$1:$K$5047,0),MATCH(R$46,'Data Annex'!$K$1:$BA$1,0)),\"\")","v":8.3747740700000003E-2},{"$f":"IFERROR(INDEX('Data Annex'!$K$1:$BA$5047,MATCH(S$45&\"|\"&$B71,'Data Annex'!$K$1:$K$5047,0),MATCH(S$46,'Data Annex'!$K$1:$BA$1,0)),\"\")","v":0.18100692099999999},{"$f":"IFERROR(INDEX('Data Annex'!$K$1:$BA$5047,MATCH(T$45&\"|\"&$B71,'Data Annex'!$K$1:$K$5047,0),MATCH(T$46,'Data Annex'!$K$1:$BA$1,0)),\"\")","v":0.2439007708},{"$f":"IFERROR(INDEX('Data Annex'!$K$1:$BA$5047,MATCH(U$45&\"|\"&$B71,'Data Annex'!$K$1:$K$5047,0),MATCH(U$46,'Data Annex'!$K$1:$BA$1,0)),\"\")","v":0},{"$f":"IFERROR(INDEX('Data Annex'!$K$1:$BA$5047,MATCH(V$45&\"|\"&$B71,'Data Annex'!$K$1:$K$5047,0),MATCH(V$46,'Data Annex'!$K$1:$BA$1,0)),\"\")","v":1.79841019E-2},{"$f":"IFERROR(INDEX('Data Annex'!$K$1:$BA$5047,MATCH(W$45&\"|\"&$B71,'Data Annex'!$K$1:$K$5047,0),MATCH(W$46,'Data Annex'!$K$1:$BA$1,0)),\"\")","v":4.0480051E-3},{"$f":"IFERROR(INDEX('Data Annex'!$K$1:$BA$5047,MATCH(X$45&\"|\"&$B71,'Data Annex'!$K$1:$K$5047,0),MATCH(X$46,'Data Annex'!$K$1:$BA$1,0)),\"\")","v":3.4239973999999999E-3},{"$f":"IFERROR(INDEX('Data Annex'!$K$1:$BA$5047,MATCH(Y$45&\"|\"&$B71,'Data Annex'!$K$1:$K$5047,0),MATCH(Y$46,'Data Annex'!$K$1:$BA$1,0)),\"\")","v":0},{"$f":"IFERROR(INDEX('Data Annex'!$K$1:$BA$5047,MATCH(Z$45&\"|\"&$B71,'Data Annex'!$K$1:$K$5047,0),MATCH(Z$46,'Data Annex'!$K$1:$BA$1,0)),\"\")","v":0.14754288939999999},{"$f":"IFERROR(INDEX('Data Annex'!$K$1:$BA$5047,MATCH(AA$45&\"|\"&$B71,'Data Annex'!$K$1:$K$5047,0),MATCH(AA$46,'Data Annex'!$K$1:$BA$1,0)),\"\")","v":0.18969820900000001},{"$f":"IFERROR(INDEX('Data Annex'!$K$1:$BA$5047,MATCH(AB$45&\"|\"&$B71,'Data Annex'!$K$1:$K$5047,0),MATCH(AB$46,'Data Annex'!$K$1:$BA$1,0)),\"\")","v":0.19994241190000001}]
[22,"MT",null,"MT",{"$f":"IFERROR(INDEX('Data Annex'!$K$1:$BA$5047,MATCH(E$45&\"|\"&$B72,'Data Annex'!$K$1:$K$5047,0),MATCH(E$46,'Data Annex'!$K$1:$BA$1,0)),\"\")","v":0},{"$f":"IFERROR(INDEX('Data Annex'!$K$1:$BA$5047,MATCH(F$45&\"|\"&$B72,'Data Annex'!$K$1:$K$5047,0),MATCH(F$46,'Data Annex'!$K$1:$BA$1,0)),\"\")","v":0.15941813190000001},{"$f":"IFERROR(INDEX('Data Annex'!$K$1:$BA$5047,MATCH(G$45&\"|\"&$B72,'Data Annex'!$K$1:$K$5047,0),MATCH(G$46,'Data Annex'!$K$1:$BA$1,0)),\"\")","v":0.19852321519999999},{"$f":"IFERROR(INDEX('Data Annex'!$K$1:$BA$5047,MATCH(H$45&\"|\"&$B72,'Data Annex'!$K$1:$K$5047,0),MATCH(H$46,'Data Annex'!$K$1:$BA$1,0)),\"\")","v":0.69505374450000001},{"$f":"IFERROR(INDEX('Data Annex'!$K$1:$BA$5047,MATCH(I$45&\"|\"&$B72,'Data Annex'!$K$1:$K$5047,0),MATCH(I$46,'Data Annex'!$K$1:$BA$1,0)),\"\")","v":0},{"$f":"IFERROR(INDEX('Data Annex'!$K$1:$BA$5047,MATCH(J$45&\"|\"&$B72,'Data Annex'!$K$1:$K$5047,0),MATCH(J$46,'Data Annex'!$K$1:$BA$1,0)),\"\")","v":0.4124923841},{"$f":"IFERROR(INDEX('Data Annex'!$K$1:$BA$5047,MATCH(K$45&\"|\"&$B72,'Data Annex'!$K$1:$K$5047,0),MATCH(K$46,'Data Annex'!$K$1:$BA$1,0)),\"\")","v":0.55428064079999995},{"$f":"IFERROR(INDEX('Data Annex'!$K$1:$BA$5047,MATCH(L$45&\"|\"&$B72,'Data Annex'!$K$1:$K$5047,0),MATCH(L$46,'Data Annex'!$K$1:$BA$1,0)),\"\")","v":0.5350414469},{"$f":"IFERROR(INDEX('Data Annex'!$K$1:$BA$5047,MATCH(M$45&\"|\"&$B72,'Data Annex'!$K$1:$K$5047,0),MATCH(M$46,'Data Annex'!$K$1:$BA$1,0)),\"\")","v":0},{"$f":"IFERROR(INDEX('Data Annex'!$K$1:$BA$5047,MATCH(N$45&\"|\"&$B72,'Data Annex'!$K$1:$K$5047,0),MATCH(N$46,'Data Annex'!$K$1:$BA$1,0)),\"\")","v":0.57705374379999996},{"$f":"IFERROR(INDEX('Data Annex'!$K$1:$BA$5047,MATCH(O$45&\"|\"&$B72,'Data Annex'!$K$1:$K$5047,0),MATCH(O$46,'Data Annex'!$K$1:$BA$1,0)),\"\")","v":0.426325552},{"$f":"IFERROR(INDEX('Data Annex'!$K$1:$BA$5047,MATCH(P$45&\"|\"&$B72,'Data Annex'!$K$1:$K$5047,0),MATCH(P$46,'Data Annex'!$K$1:$BA$1,0)),\"\")","v":0.35511452710000002},{"$f":"IFERROR(INDEX('Data Annex'!$K$1:$BA$5047,MATCH(Q$45&\"|\"&$B72,'Data Annex'!$K$1:$K$5047,0),MATCH(Q$46,'Data Annex'!$K$1:$BA$1,0)),\"\")","v":0},{"$f":"IFERROR(INDEX('Data Annex'!$K$1:$BA$5047,MATCH(R$45&\"|\"&$B72,'Data Annex'!$K$1:$K$5047,0),MATCH(R$46,'Data Annex'!$K$1:$BA$1,0)),\"\")","v":0.1045002895},{"$f":"IFERROR(INDEX('Data Annex'!$K$1:$BA$5047,MATCH(S$45&\"|\"&$B72,'Data Annex'!$K$1:$K$5047,0),MATCH(S$46,'Data Annex'!$K$1:$BA$1,0)),\"\")","v":7.2720785299999993E-2},{"$f":"IFERROR(INDEX('Data Annex'!$K$1:$BA$5047,MATCH(T$45&\"|\"&$B72,'Data Annex'!$K$1:$K$5047,0),MATCH(T$46,'Data Annex'!$K$1:$BA$1,0)),\"\")","v":0.14140668540000001},{"$f":"IFERROR(INDEX('Data Annex'!$K$1:$BA$5047,MATCH(U$45&\"|\"&$B72,'Data Annex'!$K$1:$K$5047,0),MATCH(U$46,'Data Annex'!$K$1:$BA$1,0)),\"\")","v":0},{"$f":"IFERROR(INDEX('Data Annex'!$K$1:$BA$5047,MATCH(V$45&\"|\"&$B72,'Data Annex'!$K$1:$K$5047,0),MATCH(V$46,'Data Annex'!$K$1:$BA$1,0)),\"\")","v":2.51703946E-2},{"$f":"IFERROR(INDEX('Data Annex'!$K$1:$BA$5047,MATCH(W$45&\"|\"&$B72,'Data Annex'!$K$1:$K$5047,0),MATCH(W$46,'Data Annex'!$K$1:$BA$1,0)),\"\")","v":4.4465284899999999E-2},{"$f":"IFERROR(INDEX('Data Annex'!$K$1:$BA$5047,MATCH(X$45&\"|\"&$B72,'Data Annex'!$K$1:$K$5047,0),MATCH(X$46,'Data Annex'!$K$1:$BA$1,0)),\"\")","v":1.2322223199999999E-2},{"$f":"IFERROR(INDEX('Data Annex'!$K$1:$BA$5047,MATCH(Y$45&\"|\"&$B72,'Data Annex'!$K$1:$K$5047,0),MATCH(Y$46,'Data Annex'!$K$1:$BA$1,0)),\"\")","v":0},{"$f":"IFERROR(INDEX('Data Annex'!$K$1:$BA$5047,MATCH(Z$45&\"|\"&$B72,'Data Annex'!$K$1:$K$5047,0),MATCH(Z$46,'Data Annex'!$K$1:$BA$1,0)),\"\")","v":0.49009007960000001},{"$f":"IFERROR(INDEX('Data Annex'!$K$1:$BA$5047,MATCH(AA$45&\"|\"&$B72,'Data Annex'!$K$1:$K$5047,0),MATCH(AA$46,'Data Annex'!$K$1:$BA$1,0)),\"\")","v":0.62325478300000003},{"$f":"IFERROR(INDEX('Data Annex'!$K$1:$BA$5047,MATCH(AB$45&\"|\"&$B72,'Data Annex'!$K$1:$K$5047,0),MATCH(AB$46,'Data Annex'!$K$1:$BA$1,0)),\"\")","v":0.40230237759999998}]
[23,"NL",null,"NL",{"$f":"IFERROR(INDEX('Data Annex'!$K$1:$BA$5047,MATCH(E$45&\"|\"&$B73,'Data Annex'!$K$1:$K$5047,0),MATCH(E$46,'Data Annex'!$K$1:$BA$1,0)),\"\")","v":0},{"$f":"IFERROR(INDEX('Data Annex'!$K$1:$BA$5047,MATCH(F$45&\"|\"&$B73,'Data Annex'!$K$1:$K$5047,0),MATCH(F$46,'Data Annex'!$K$1:$BA$1,0)),\"\")","v":1.5233663835},{"$f":"IFERROR(INDEX('Data Annex'!$K$1:$BA$5047,MATCH(G$45&\"|\"&$B73,'Data Annex'!$K$1:$K$5047,0),MATCH(G$46,'Data Annex'!$K$1:$BA$1,0)),\"\")","v":14.486015922},{"$f":"IFERROR(INDEX('Data Annex'!$K$1:$BA$5047,MATCH(H$45&\"|\"&$B73,'Data Annex'!$K$1:$K$5047,0),MATCH(H$46,'Data Annex'!$K$1:$BA$1,0)),\"\")","v":46.937982820999999},{"$f":"IFERROR(INDEX('Data Annex'!$K$1:$BA$5047,MATCH(I$45&\"|\"&$B73,'Data Annex'!$K$1:$K$5047,0),MATCH(I$46,'Data Annex'!$K$1:$BA$1,0)),\"\")","v":0},{"$f":"IFERROR(INDEX('Data Annex'!$K$1:$BA$5047,MATCH(J$45&\"|\"&$B73,'Data Annex'!$K$1:$K$5047,0),MATCH(J$46,'Data Annex'!$K$1:$BA$1,0)),\"\")","v":0.74506419440000005},{"$f":"IFERROR(INDEX('Data Annex'!$K$1:$BA$5047,MATCH(K$45&\"|\"&$B73,'Data Annex'!$K$1:$K$5047,0),MATCH(K$46,'Data Annex'!$K$1:$BA$1,0)),\"\")","v":0.2438797918},{"$f":"IFERROR(INDEX('Data Annex'!$K$1:$BA$5047,MATCH(L$45&\"|\"&$B73,'Data Annex'!$K$1:$K$5047,0),MATCH(L$46,'Data Annex'!$K$1:$BA$1,0)),\"\")","v":0.22391441549999999},{"$f":"IFERROR(INDEX('Data Annex'!$K$1:$BA$5047,MATCH(M$45&\"|\"&$B73,'Data Annex'!$K$1:$K$5047,0),MATCH(M$46,'Data Annex'!$K$1:$BA$1,0)),\"\")","v":0},{"$f":"IFERROR(INDEX('Data Annex'!$K$1:$BA$5047,MATCH(N$45&\"|\"&$B73,'Data Annex'!$K$1:$K$5047,0),MATCH(N$46,'Data Annex'!$K$1:$BA$1,0)),\"\")","v":0.2532649844},{"$f":"IFERROR(INDEX('Data Annex'!$K$1:$BA$5047,MATCH(O$45&\"|\"&$B73,'Data Annex'!$K$1:$K$5047,0),MATCH(O$46,'Data Annex'!$K$1:$BA$1,0)),\"\")","v":0.72984776179999999},{"$f":"IFERROR(INDEX('Data Annex'!$K$1:$BA$5047,MATCH(P$45&\"|\"&$B73,'Data Annex'!$K$1:$K$5047,0),MATCH(P$46,'Data Annex'!$K$1:$BA$1,0)),\"\")","v":0.7591426953},{"$f":"IFERROR(INDEX('Data Annex'!$K$1:$BA$5047,MATCH(Q$45&\"|\"&$B73,'Data Annex'!$K$1:$K$5047,0),MATCH(Q$46,'Data Annex'!$K$1:$BA$1,0)),\"\")","v":0},{"$f":"IFERROR(INDEX('Data Annex'!$K$1:$BA$5047,MATCH(R$45&\"|\"&$B73,'Data Annex'!$K$1:$K$5047,0),MATCH(R$46,'Data Annex'!$K$1:$BA$1,0)),\"\")","v":0.1409916615},{"$f":"IFERROR(INDEX('Data Annex'!$K$1:$BA$5047,MATCH(S$45&\"|\"&$B73,'Data Annex'!$K$1:$K$5047,0),MATCH(S$46,'Data Annex'!$K$1:$BA$1,0)),\"\")","v":0.13506185679999999},{"$f":"IFERROR(INDEX('Data Annex'!$K$1:$BA$5047,MATCH(T$45&\"|\"&$B73,'Data Annex'!$K$1:$K$5047,0),MATCH(T$46,'Data Annex'!$K$1:$BA$1,0)),\"\")","v":0.25599128310000002},{"$f":"IFERROR(INDEX('Data Annex'!$K$1:$BA$5047,MATCH(U$45&\"|\"&$B73,'Data Annex'!$K$1:$K$5047,0),MATCH(U$46,'Data Annex'!$K$1:$BA$1,0)),\"\")","v":0},{"$f":"IFERROR(INDEX('Data Annex'!$K$1:$BA$5047,MATCH(V$45&\"|\"&$B73,'Data Annex'!$K$1:$K$5047,0),MATCH(V$46,'Data Annex'!$K$1:$BA$1,0)),\"\")","v":3.3279368300000001E-2},{"$f":"IFERROR(INDEX('Data Annex'!$K$1:$BA$5047,MATCH(W$45&\"|\"&$B73,'Data Annex'!$K$1:$K$5047,0),MATCH(W$46,'Data Annex'!$K$1:$BA$1,0)),\"\")","v":1.6626626799999999E-2},{"$f":"IFERROR(INDEX('Data Annex'!$K$1:$BA$5047,MATCH(X$45&\"|\"&$B73,'Data Annex'!$K$1:$K$5047,0),MATCH(X$46,'Data Annex'!$K$1:$BA$1,0)),\"\")","v":3.7587693399999997E-2},{"$f":"IFERROR(INDEX('Data Annex'!$K$1:$BA$5047,MATCH(Y$45&\"|\"&$B73,'Data Annex'!$K$1:$K$5047,0),MATCH(Y$46,'Data Annex'!$K$1:$BA$1,0)),\"\")","v":0},{"$f":"IFERROR(INDEX('Data Annex'!$K$1:$BA$5047,MATCH(Z$45&\"|\"&$B73,'Data Annex'!$K$1:$K$5047,0),MATCH(Z$46,'Data Annex'!$K$1:$BA$1,0)),\"\")","v":0.1646441803},{"$f":"IFERROR(INDEX('Data Annex'!$K$1:$BA$5047,MATCH(AA$45&\"|\"&$B73,'Data Annex'!$K$1:$K$5047,0),MATCH(AA$46,'Data Annex'!$K$1:$BA$1,0)),\"\")","v":0.1701397056},{"$f":"IFERROR(INDEX('Data Annex'!$K$1:$BA$5047,MATCH(AB$45&\"|\"&$B73,'Data Annex'!$K$1:$K$5047,0),MATCH(AB$46,'Data Annex'!$K$1:$BA$1,0)),\"\")","v":0.16515624309999999}]
[24,"NO",null,"NO",{"$f":"IFERROR(INDEX('Data Annex'!$K$1:$BA$5047,MATCH(E$45&\"|\"&$B74,'Data Annex'!$K$1:$K$5047,0),MATCH(E$46,'Data Annex'!$K$1:$BA$1,0)),\"\")","v":""},{"$f":"IFERROR(INDEX('Data Annex'!$K$1:$BA$5047,MATCH(F$45&\"|\"&$B74,'Data Annex'!$K$1:$K$5047,0),MATCH(F$46,'Data Annex'!$K$1:$BA$1,0)),\"\")","v":""},{"$f":"IFERROR(INDEX('Data Annex'!$K$1:$BA$5047,MATCH(G$45&\"|\"&$B74,'Data Annex'!$K$1:$K$5047,0),MATCH(G$46,'Data Annex'!$K$1:$BA$1,0)),\"\")","v":""},{"$f":"IFERROR(INDEX('Data Annex'!$K$1:$BA$5047,MATCH(H$45&\"|\"&$B74,'Data Annex'!$K$1:$K$5047,0),MATCH(H$46,'Data Annex'!$K$1:$BA$1,0)),\"\")","v":""},{"$f":"IFERROR(INDEX('Data Annex'!$K$1:$BA$5047,MATCH(I$45&\"|\"&$B74,'Data Annex'!$K$1:$K$5047,0),MATCH(I$46,'Data Annex'!$K$1:$BA$1,0)),\"\")","v":""},{"$f":"IFERROR(INDEX('Data Annex'!$K$1:$BA$5047,MATCH(J$45&\"|\"&$B74,'Data Annex'!$K$1:$K$5047,0),MATCH(J$46,'Data Annex'!$K$1:$BA$1,0)),\"\")","v":""},{"$f":"IFERROR(INDEX('Data Annex'!$K$1:$BA$5047,MATCH(K$45&\"|\"&$B74,'Data Annex'!$K$1:$K$5047,0),MATCH(K$46,'Data Annex'!$K$1:$BA$1,0)),\"\")","v":""},{"$f":"IFERROR(INDEX('Data Annex'!$K$1:$BA$5047,MATCH(L$45&\"|\"&$B74,'Data Annex'!$K$1:$K$5047,0),MATCH(L$46,'Data Annex'!$K$1:$BA$1,0)),\"\")","v":""},{"$f":"IFERROR(INDEX('Data Annex'!$K$1:$BA$5047,MATCH(M$45&\"|\"&$B74,'Data Annex'!$K$1:$K$5047,0),MATCH(M$46,'Data Annex'!$K$1:$BA$1,0)),\"\")","v":""},{"$f":"IFERROR(INDEX('Data Annex'!$K$1:$BA$5047,MATCH(N$45&\"|\"&$B74,'Data Annex'!$K$1:$K$5047,0),MATCH(N$46,'Data Annex'!$K$1:$BA$1,0)),\"\")","v":""},{"$f":"IFERROR(INDEX('Data Annex'!$K$1:$BA$5047,MATCH(O$45&\"|\"&$B74,'Data Annex'!$K$1:$K$5047,0),MATCH(O$46,'Data Annex'!$K$1:$BA$1,0)),\"\")","v":""},{"$f":"IFERROR(INDEX('Data Annex'!$K$1:$BA$5047,MATCH(P$45&\"|\"&$B74,'Data Annex'!$K$1:$K$5047,0),MATCH(P$46,'Data Annex'!$K$1:$BA$1,0)),\"\")","v":""},{"$f":"IFERROR(INDEX('Data Annex'!$K$1:$BA$5047,MATCH(Q$45&\"|\"&$B74,'Data Annex'!$K$1:$K$5047,0),MATCH(Q$46,'Data Annex'!$K$1:$BA$1,0)),\"\")","v":""},{"$f":"IFERROR(INDEX('Data Annex'!$K$1:$BA$5047,MATCH(R$45&\"|\"&$B74,'Data Annex'!$K$1:$K$5047,0),MATCH(R$46,'Data Annex'!$K$1:$BA$1,0)),\"\")","v":""},{"$f":"IFERROR(INDEX('Data Annex'!$K$1:$BA$5047,MATCH(S$45&\"|\"&$B74,'Data Annex'!$K$1:$K$5047,0),MATCH(S$46,'Data Annex'!$K$1:$BA$1,0)),\"\")","v":""},{"$f":"IFERROR(INDEX('Data Annex'!$K$1:$BA$5047,MATCH(T$45&\"|\"&$B74,'Data Annex'!$K$1:$K$5047,0),MATCH(T$46,'Data Annex'!$K$1:$BA$1,0)),\"\")","v":""},{"$f":"IFERROR(INDEX('Data Annex'!$K$1:$BA$5047,MATCH(U$45&\"|\"&$B74,'Data Annex'!$K$1:$K$5047,0),MATCH(U$46,'Data Annex'!$K$1:$BA$1,0)),\"\")","v":""},{"$f":"IFERROR(INDEX('Data Annex'!$K$1:$BA$5047,MATCH(V$45&\"|\"&$B74,'Data Annex'!$K$1:$K$5047,0),MATCH(V$46,'Data Annex'!$K$1:$BA$1,0)),\"\")","v":""},{"$f":"IFERROR(INDEX('Data Annex'!$K$1:$BA$5047,MATCH(W$45&\"|\"&$B74,'Data Annex'!$K$1:$K$5047,0),MATCH(W$46,'Data Annex'!$K$1:$BA$1,0)),\"\")","v":""},{"$f":"IFERROR(INDEX('Data Annex'!$K$1:$BA$5047,MATCH(X$45&\"|\"&$B74,'Data Annex'!$K$1:$K$5047,0),MATCH(X$46,'Data Annex'!$K$1:$BA$1,0)),\"\")","v":""},{"$f":"IFERROR(INDEX('Data Annex'!$K$1:$BA$5047,MATCH(Y$45&\"|\"&$B74,'Data Annex'!$K$1:$K$5047,0),MATCH(Y$46,'Data Annex'!$K$1:$BA$1,0)),\"\")","v":""},{"$f":"IFERROR(INDEX('Data Annex'!$K$1:$BA$5047,MATCH(Z$45&\"|\"&$B74,'Data Annex'!$K$1:$K$5047,0),MATCH(Z$46,'Data Annex'!$K$1:$BA$1,0)),\"\")","v":""},{"$f":"IFERROR(INDEX('Data Annex'!$K$1:$BA$5047,MATCH(AA$45&\"|\"&$B74,'Data Annex'!$K$1:$K$5047,0),MATCH(AA$46,'Data Annex'!$K$1:$BA$1,0)),\"\")","v":""},{"$f":"IFERROR(INDEX('Data Annex'!$K$1:$BA$5047,MATCH(AB$45&\"|\"&$B74,'Data Annex'!$K$1:$K$5047,0),MATCH(AB$46,'Data Annex'!$K$1:$BA$1,0)),\"\")","v":""}]
[25,"PL",null,{"$f":"IF(OR(E75=\"n.a.\",F75=\"n.a.\",G75=\"n.a.\",H75=\"n.a.\",I75=\"n.a.\",J75=\"n.a.\",K75=\"n.a.\",L75=\"n.a.\",M75=\"n.a.\",N75=\"n.a.\",O75=\"n.a.\",P75=\"n.a.\",Q75=\"n.a.\",R75=\"n.a.\",S75=\"n.a.\",T75=\"n.a.\",U75=\"n.a.\",V75=\"n.a.\",W75=\"n.a.\",X75=\"n.a.\",Y75=\"n.a.\",Z75=\"n.a.\",AA75=\"n.a.\",AB75=\"n.a.\"),$B75&\"*\",$B75)","v":"PL"},{"$f":"IFERROR(INDEX('Data Annex'!$K$1:$BA$5047,MATCH(E$45&\"|\"&$B75,'Data Annex'!$K$1:$K$5047,0),MATCH(E$46,'Data Annex'!$K$1:$BA$1,0)),\"\")","v":0},{"$f":"IFERROR(INDEX('Data Annex'!$K$1:$BA$5047,MATCH(F$45&\"|\"&$B75,'Data Annex'!$K$1:$K$5047,0),MATCH(F$46,'Data Annex'!$K$1:$BA$1,0)),\"\")","v":0.4457295396},{"$f":"IFERROR(INDEX('Data Annex'!$K$1:$BA$5047,MATCH(G$45&\"|\"&$B75,'Data Annex'!$K$1:$K$5047,0),MATCH(G$46,'Data Annex'!$K$1:$BA$1,0)),\"\")","v":9.1522359352000002},{"$f":"IFERROR(INDEX('Data Annex'!$K$1:$BA$5047,MATCH(H$45&\"|\"&$B75,'Data Annex'!$K$1:$K$5047,0),MATCH(H$46,'Data Annex'!$K$1:$BA$1,0)),\"\")","v":14.038896266},{"$f":"IFERROR(INDEX('Data Annex'!$K$1:$BA$5047,MATCH(I$45&\"|\"&$B75,'Data Annex'!$K$1:$K$5047,0),MATCH(I$46,'Data Annex'!$K$1:$BA$1,0)),\"\")","v":0},{"$f":"IFERROR(INDEX('Data Annex'!$K$1:$BA$5047,MATCH(J$45&\"|\"&$B75,'Data Annex'!$K$1:$K$5047,0),MATCH(J$46,'Data Annex'!$K$1:$BA$1,0)),\"\")","v":0.31159907920000002},{"$f":"IFERROR(INDEX('Data Annex'!$K$1:$BA$5047,MATCH(K$45&\"|\"&$B75,'Data Annex'!$K$1:$K$5047,0),MATCH(K$46,'Data Annex'!$K$1:$BA$1,0)),\"\")","v":0.62238211070000005},{"$f":"IFERROR(INDEX('Data Annex'!$K$1:$BA$5047,MATCH(L$45&\"|\"&$B75,'Data Annex'!$K$1:$K$5047,0),MATCH(L$46,'Data Annex'!$K$1:$BA$1,0)),\"\")","v":0.5249728387},{"$f":"IFERROR(INDEX('Data Annex'!$K$1:$BA$5047,MATCH(M$45&\"|\"&$B75,'Data Annex'!$K$1:$K$5047,0),MATCH(M$46,'Data Annex'!$K$1:$BA$1,0)),\"\")","v":0},{"$f":"IFERROR(INDEX('Data Annex'!$K$1:$BA$5047,MATCH(N$45&\"|\"&$B75,'Data Annex'!$K$1:$K$5047,0),MATCH(N$46,'Data Annex'!$K$1:$BA$1,0)),\"\")","v":0.68840092080000004},{"$f":"IFERROR(INDEX('Data Annex'!$K$1:$BA$5047,MATCH(O$45&\"|\"&$B75,'Data Annex'!$K$1:$K$5047,0),MATCH(O$46,'Data Annex'!$K$1:$BA$1,0)),\"\")","v":0.3775408261},{"$f":"IFERROR(INDEX('Data Annex'!$K$1:$BA$5047,MATCH(P$45&\"|\"&$B75,'Data Annex'!$K$1:$K$5047,0),MATCH(P$46,'Data Annex'!$K$1:$BA$1,0)),\"\")","v":0.4749791927},{"$f":"IFERROR(INDEX('Data Annex'!$K$1:$BA$5047,MATCH(Q$45&\"|\"&$B75,'Data Annex'!$K$1:$K$5047,0),MATCH(Q$46,'Data Annex'!$K$1:$BA$1,0)),\"\")","v":0},{"$f":"IFERROR(INDEX('Data Annex'!$K$1:$BA$5047,MATCH(R$45&\"|\"&$B75,'Data Annex'!$K$1:$K$5047,0),MATCH(R$46,'Data Annex'!$K$1:$BA$1,0)),\"\")","v":0.14512555399999999},{"$f":"IFERROR(INDEX('Data Annex'!$K$1:$BA$5047,MATCH(S$45&\"|\"&$B75,'Data Annex'!$K$1:$K$5047,0),MATCH(S$46,'Data Annex'!$K$1:$BA$1,0)),\"\")","v":0.19853313459999999},{"$f":"IFERROR(INDEX('Data Annex'!$K$1:$BA$5047,MATCH(T$45&\"|\"&$B75,'Data Annex'!$K$1:$K$5047,0),MATCH(T$46,'Data Annex'!$K$1:$BA$1,0)),\"\")","v":0.39840978700000002},{"$f":"IFERROR(INDEX('Data Annex'!$K$1:$BA$5047,MATCH(U$45&\"|\"&$B75,'Data Annex'!$K$1:$K$5047,0),MATCH(U$46,'Data Annex'!$K$1:$BA$1,0)),\"\")","v":0},{"$f":"IFERROR(INDEX('Data Annex'!$K$1:$BA$5047,MATCH(V$45&\"|\"&$B75,'Data Annex'!$K$1:$K$5047,0),MATCH(V$46,'Data Annex'!$K$1:$BA$1,0)),\"\")","v":4.5189815699999997E-2},{"$f":"IFERROR(INDEX('Data Annex'!$K$1:$BA$5047,MATCH(W$45&\"|\"&$B75,'Data Annex'!$K$1:$K$5047,0),MATCH(W$46,'Data Annex'!$K$1:$BA$1,0)),\"\")","v":1.8634373499999999E-2},{"$f":"IFERROR(INDEX('Data Annex'!$K$1:$BA$5047,MATCH(X$45&\"|\"&$B75,'Data Annex'!$K$1:$K$5047,0),MATCH(X$46,'Data Annex'!$K$1:$BA$1,0)),\"\")","v":2.5575994000000001E-2},{"$f":"IFERROR(INDEX('Data Annex'!$K$1:$BA$5047,MATCH(Y$45&\"|\"&$B75,'Data Annex'!$K$1:$K$5047,0),MATCH(Y$46,'Data Annex'!$K$1:$BA$1,0)),\"\")","v":0},{"$f":"IFERROR(INDEX('Data Annex'!$K$1:$BA$5047,MATCH(Z$45&\"|\"&$B75,'Data Annex'!$K$1:$K$5047,0),MATCH(Z$46,'Data Annex'!$K$1:$BA$1,0)),\"\")","v":0.35505454580000001},{"$f":"IFERROR(INDEX('Data Annex'!$K$1:$BA$5047,MATCH(AA$45&\"|\"&$B75,'Data Annex'!$K$1:$K$5047,0),MATCH(AA$46,'Data Annex'!$K$1:$BA$1,0)),\"\")","v":0.35612405650000001},{"$f":"IFERROR(INDEX('Data Annex'!$K$1:$BA$5047,MATCH(AB$45&\"|\"&$B75,'Data Annex'!$K$1:$K$5047,0),MATCH(AB$46,'Data Annex'!$K$1:$BA$1,0)),\"\")","v":0.34350088480000002}]
[26,"PT",null,"PT",{"$f":"IFERROR(INDEX('Data Annex'!$K$1:$BA$5047,MATCH(E$45&\"|\"&$B76,'Data Annex'!$K$1:$K$5047,0),MATCH(E$46,'Data Annex'!$K$1:$BA$1,0)),\"\")","v":0},{"$f":"IFERROR(INDEX('Data Annex'!$K$1:$BA$5047,MATCH(F$45&\"|\"&$B76,'Data Annex'!$K$1:$K$5047,0),MATCH(F$46,'Data Annex'!$K$1:$BA$1,0)),\"\")","v":1.0627997888},{"$f":"IFERROR(INDEX('Data Annex'!$K$1:$BA$5047,MATCH(G$45&\"|\"&$B76,'Data Annex'!$K$1:$K$5047,0),MATCH(G$46,'Data Annex'!$K$1:$BA$1,0)),\"\")","v":1.6603838233999999},{"$f":"IFERROR(INDEX('Data Annex'!$K$1:$BA$5047,MATCH(H$45&\"|\"&$B76,'Data Annex'!$K$1:$K$5047,0),MATCH(H$46,'Data Annex'!$K$1:$BA$1,0)),\"\")","v":5.2192425080999998},{"$f":"IFERROR(INDEX('Data Annex'!$K$1:$BA$5047,MATCH(I$45&\"|\"&$B76,'Data Annex'!$K$1:$K$5047,0),MATCH(I$46,'Data Annex'!$K$1:$BA$1,0)),\"\")","v":0},{"$f":"IFERROR(INDEX('Data Annex'!$K$1:$BA$5047,MATCH(J$45&\"|\"&$B76,'Data Annex'!$K$1:$K$5047,0),MATCH(J$46,'Data Annex'!$K$1:$BA$1,0)),\"\")","v":0.1766819131},{"$f":"IFERROR(INDEX('Data Annex'!$K$1:$BA$5047,MATCH(K$45&\"|\"&$B76,'Data Annex'!$K$1:$K$5047,0),MATCH(K$46,'Data Annex'!$K$1:$BA$1,0)),\"\")","v":0.54333941409999997},{"$f":"IFERROR(INDEX('Data Annex'!$K$1:$BA$5047,MATCH(L$45&\"|\"&$B76,'Data Annex'!$K$1:$K$5047,0),MATCH(L$46,'Data Annex'!$K$1:$BA$1,0)),\"\")","v":0.58489628469999999},{"$f":"IFERROR(INDEX('Data Annex'!$K$1:$BA$5047,MATCH(M$45&\"|\"&$B76,'Data Annex'!$K$1:$K$5047,0),MATCH(M$46,'Data Annex'!$K$1:$BA$1,0)),\"\")","v":0},{"$f":"IFERROR(INDEX('Data Annex'!$K$1:$BA$5047,MATCH(N$45&\"|\"&$B76,'Data Annex'!$K$1:$K$5047,0),MATCH(N$46,'Data Annex'!$K$1:$BA$1,0)),\"\")","v":0.82331808689999997},{"$f":"IFERROR(INDEX('Data Annex'!$K$1:$BA$5047,MATCH(O$45&\"|\"&$B76,'Data Annex'!$K$1:$K$5047,0),MATCH(O$46,'Data Annex'!$K$1:$BA$1,0)),\"\")","v":0.45658708570000001},{"$f":"IFERROR(INDEX('Data Annex'!$K$1:$BA$5047,MATCH(P$45&\"|\"&$B76,'Data Annex'!$K$1:$K$5047,0),MATCH(P$46,'Data Annex'!$K$1:$BA$1,0)),\"\")","v":0.41478363540000002},{"$f":"IFERROR(INDEX('Data Annex'!$K$1:$BA$5047,MATCH(Q$45&\"|\"&$B76,'Data Annex'!$K$1:$K$5047,0),MATCH(Q$46,'Data Annex'!$K$1:$BA$1,0)),\"\")","v":0},{"$f":"IFERROR(INDEX('Data Annex'!$K$1:$BA$5047,MATCH(R$45&\"|\"&$B76,'Data Annex'!$K$1:$K$5047,0),MATCH(R$46,'Data Annex'!$K$1:$BA$1,0)),\"\")","v":8.3254688399999999E-2},{"$f":"IFERROR(INDEX('Data Annex'!$K$1:$BA$5047,MATCH(S$45&\"|\"&$B76,'Data Annex'!$K$1:$K$5047,0),MATCH(S$46,'Data Annex'!$K$1:$BA$1,0)),\"\")","v":0.116498053},{"$f":"IFERROR(INDEX('Data Annex'!$K$1:$BA$5047,MATCH(T$45&\"|\"&$B76,'Data Annex'!$K$1:$K$5047,0),MATCH(T$46,'Data Annex'!$K$1:$BA$1,0)),\"\")","v":9.7122352699999998E-2},{"$f":"IFERROR(INDEX('Data Annex'!$K$1:$BA$5047,MATCH(U$45&\"|\"&$B76,'Data Annex'!$K$1:$K$5047,0),MATCH(U$46,'Data Annex'!$K$1:$BA$1,0)),\"\")","v":0},{"$f":"IFERROR(INDEX('Data Annex'!$K$1:$BA$5047,MATCH(V$45&\"|\"&$B76,'Data Annex'!$K$1:$K$5047,0),MATCH(V$46,'Data Annex'!$K$1:$BA$1,0)),\"\")","v":8.4866027600000005E-2},{"$f":"IFERROR(INDEX('Data Annex'!$K$1:$BA$5047,MATCH(W$45&\"|\"&$B76,'Data Annex'!$K$1:$K$5047,0),MATCH(W$46,'Data Annex'!$K$1:$BA$1,0)),\"\")","v":3.2679444100000003E-2},{"$f":"IFERROR(INDEX('Data Annex'!$K$1:$BA$5047,MATCH(X$45&\"|\"&$B76,'Data Annex'!$K$1:$K$5047,0),MATCH(X$46,'Data Annex'!$K$1:$BA$1,0)),\"\")","v":2.7997364899999998E-2},{"$f":"IFERROR(INDEX('Data Annex'!$K$1:$BA$5047,MATCH(Y$45&\"|\"&$B76,'Data Annex'!$K$1:$K$5047,0),MATCH(Y$46,'Data Annex'!$K$1:$BA$1,0)),\"\")","v":0},{"$f":"IFERROR(INDEX('Data Annex'!$K$1:$BA$5047,MATCH(Z$45&\"|\"&$B76,'Data Annex'!$K$1:$K$5047,0),MATCH(Z$46,'Data Annex'!$K$1:$BA$1,0)),\"\")","v":0.28273913109999999},{"$f":"IFERROR(INDEX('Data Annex'!$K$1:$BA$5047,MATCH(AA$45&\"|\"&$B76,'Data Annex'!$K$1:$K$5047,0),MATCH(AA$46,'Data Annex'!$K$1:$BA$1,0)),\"\")","v":0.31110551669999997},{"$f":"IFERROR(INDEX('Data Annex'!$K$1:$BA$5047,MATCH(AB$45&\"|\"&$B76,'Data Annex'!$K$1:$K$5047,0),MATCH(AB$46,'Data Annex'!$K$1:$BA$1,0)),\"\")","v":0.33452000970000001}]
[27,"RO",null,"RO",{"$f":"IFERROR(INDEX('Data Annex'!$K$1:$BA$5047,MATCH(E$45&\"|\"&$B77,'Data Annex'!$K$1:$K$5047,0),MATCH(E$46,'Data Annex'!$K$1:$BA$1,0)),\"\")","v":0},{"$f":"IFERROR(INDEX('Data Annex'!$K$1:$BA$5047,MATCH(F$45&\"|\"&$B77,'Data Annex'!$K$1:$K$5047,0),MATCH(F$46,'Data Annex'!$K$1:$BA$1,0)),\"\")","v":0.81981155279999995},{"$f":"IFERROR(INDEX('Data Annex'!$K$1:$BA$5047,MATCH(G$45&\"|\"&$B77,'Data Annex'!$K$1:$K$5047,0),MATCH(G$46,'Data Annex'!$K$1:$BA$1,0)),\"\")","v":1.4156987700999999},{"$f":"IFERROR(INDEX('Data Annex'!$K$1:$BA$5047,MATCH(H$45&\"|\"&$B77,'Data Annex'!$K$1:$K$5047,0),MATCH(H$46,'Data Annex'!$K$1:$BA$1,0)),\"\")","v":3.2401789983999998},{"$f":"IFERROR(INDEX('Data Annex'!$K$1:$BA$5047,MATCH(I$45&\"|\"&$B77,'Data Annex'!$K$1:$K$5047,0),MATCH(I$46,'Data Annex'!$K$1:$BA$1,0)),\"\")","v":0},{"$f":"IFERROR(INDEX('Data Annex'!$K$1:$BA$5047,MATCH(J$45&\"|\"&$B77,'Data Annex'!$K$1:$K$5047,0),MATCH(J$46,'Data Annex'!$K$1:$BA$1,0)),\"\")","v":0.92334210139999995},{"$f":"IFERROR(INDEX('Data Annex'!$K$1:$BA$5047,MATCH(K$45&\"|\"&$B77,'Data Annex'!$K$1:$K$5047,0),MATCH(K$46,'Data Annex'!$K$1:$BA$1,0)),\"\")","v":0.80554136279999999},{"$f":"IFERROR(INDEX('Data Annex'!$K$1:$BA$5047,MATCH(L$45&\"|\"&$B77,'Data Annex'!$K$1:$K$5047,0),MATCH(L$46,'Data Annex'!$K$1:$BA$1,0)),\"\")","v":0.57580521490000003},{"$f":"IFERROR(INDEX('Data Annex'!$K$1:$BA$5047,MATCH(M$45&\"|\"&$B77,'Data Annex'!$K$1:$K$5047,0),MATCH(M$46,'Data Annex'!$K$1:$BA$1,0)),\"\")","v":0},{"$f":"IFERROR(INDEX('Data Annex'!$K$1:$BA$5047,MATCH(N$45&\"|\"&$B77,'Data Annex'!$K$1:$K$5047,0),MATCH(N$46,'Data Annex'!$K$1:$BA$1,0)),\"\")","v":7.5503705800000001E-2},{"$f":"IFERROR(INDEX('Data Annex'!$K$1:$BA$5047,MATCH(O$45&\"|\"&$B77,'Data Annex'!$K$1:$K$5047,0),MATCH(O$46,'Data Annex'!$K$1:$BA$1,0)),\"\")","v":0.18957441019999999},{"$f":"IFERROR(INDEX('Data Annex'!$K$1:$BA$5047,MATCH(P$45&\"|\"&$B77,'Data Annex'!$K$1:$K$5047,0),MATCH(P$46,'Data Annex'!$K$1:$BA$1,0)),\"\")","v":0.4052121836},{"$f":"IFERROR(INDEX('Data Annex'!$K$1:$BA$5047,MATCH(Q$45&\"|\"&$B77,'Data Annex'!$K$1:$K$5047,0),MATCH(Q$46,'Data Annex'!$K$1:$BA$1,0)),\"\")","v":0},{"$f":"IFERROR(INDEX('Data Annex'!$K$1:$BA$5047,MATCH(R$45&\"|\"&$B77,'Data Annex'!$K$1:$K$5047,0),MATCH(R$46,'Data Annex'!$K$1:$BA$1,0)),\"\")","v":0.29630151119999998},{"$f":"IFERROR(INDEX('Data Annex'!$K$1:$BA$5047,MATCH(S$45&\"|\"&$B77,'Data Annex'!$K$1:$K$5047,0),MATCH(S$46,'Data Annex'!$K$1:$BA$1,0)),\"\")","v":0.3549133055},{"$f":"IFERROR(INDEX('Data Annex'!$K$1:$BA$5047,MATCH(T$45&\"|\"&$B77,'Data Annex'!$K$1:$K$5047,0),MATCH(T$46,'Data Annex'!$K$1:$BA$1,0)),\"\")","v":0.50575079580000004},{"$f":"IFERROR(INDEX('Data Annex'!$K$1:$BA$5047,MATCH(U$45&\"|\"&$B77,'Data Annex'!$K$1:$K$5047,0),MATCH(U$46,'Data Annex'!$K$1:$BA$1,0)),\"\")","v":0},{"$f":"IFERROR(INDEX('Data Annex'!$K$1:$BA$5047,MATCH(V$45&\"|\"&$B77,'Data Annex'!$K$1:$K$5047,0),MATCH(V$46,'Data Annex'!$K$1:$BA$1,0)),\"\")","v":3.1114384500000002E-2},{"$f":"IFERROR(INDEX('Data Annex'!$K$1:$BA$5047,MATCH(W$45&\"|\"&$B77,'Data Annex'!$K$1:$K$5047,0),MATCH(W$46,'Data Annex'!$K$1:$BA$1,0)),\"\")","v":2.6369568999999999E-2},{"$f":"IFERROR(INDEX('Data Annex'!$K$1:$BA$5047,MATCH(X$45&\"|\"&$B77,'Data Annex'!$K$1:$K$5047,0),MATCH(X$46,'Data Annex'!$K$1:$BA$1,0)),\"\")","v":9.6101783199999999E-2},{"$f":"IFERROR(INDEX('Data Annex'!$K$1:$BA$5047,MATCH(Y$45&\"|\"&$B77,'Data Annex'!$K$1:$K$5047,0),MATCH(Y$46,'Data Annex'!$K$1:$BA$1,0)),\"\")","v":0},{"$f":"IFERROR(INDEX('Data Annex'!$K$1:$BA$5047,MATCH(Z$45&\"|\"&$B77,'Data Annex'!$K$1:$K$5047,0),MATCH(Z$46,'Data Annex'!$K$1:$BA$1,0)),\"\")","v":0.49233314439999998},{"$f":"IFERROR(INDEX('Data Annex'!$K$1:$BA$5047,MATCH(AA$45&\"|\"&$B77,'Data Annex'!$K$1:$K$5047,0),MATCH(AA$46,'Data Annex'!$K$1:$BA$1,0)),\"\")","v":0.53223855980000001},{"$f":"IFERROR(INDEX('Data Annex'!$K$1:$BA$5047,MATCH(AB$45&\"|\"&$B77,'Data Annex'!$K$1:$K$5047,0),MATCH(AB$46,'Data Annex'!$K$1:$BA$1,0)),\"\")","v":0.60445809049999999}]
[28,"SE",null,"SE",{"$f":"IFERROR(INDEX('Data Annex'!$K$1:$BA$5047,MATCH(E$45&\"|\"&$B78,'Data Annex'!$K$1:$K$5047,0),MATCH(E$46,'Data Annex'!$K$1:$BA$1,0)),\"\")","v":0},{"$f":"IFERROR(INDEX('Data Annex'!$K$1:$BA$5047,MATCH(F$45&\"|\"&$B78,'Data Annex'!$K$1:$K$5047,0),MATCH(F$46,'Data Annex'!$K$1:$BA$1,0)),\"\")","v":9.5411732400000004E-2},{"$f":"IFERROR(INDEX('Data Annex'!$K$1:$BA$5047,MATCH(G$45&\"|\"&$B78,'Data Annex'!$K$1:$K$5047,0),MATCH(G$46,'Data Annex'!$K$1:$BA$1,0)),\"\")","v":0.70065224709999996},{"$f":"IFERROR(INDEX('Data Annex'!$K$1:$BA$5047,MATCH(H$45&\"|\"&$B78,'Data Annex'!$K$1:$K$5047,0),MATCH(H$46,'Data Annex'!$K$1:$BA$1,0)),\"\")","v":3.2458257346999999},{"$f":"IFERROR(INDEX('Data Annex'!$K$1:$BA$5047,MATCH(I$45&\"|\"&$B78,'Data Annex'!$K$1:$K$5047,0),MATCH(I$46,'Data Annex'!$K$1:$BA$1,0)),\"\")","v":0},{"$f":"IFERROR(INDEX('Data Annex'!$K$1:$BA$5047,MATCH(J$45&\"|\"&$B78,'Data Annex'!$K$1:$K$5047,0),MATCH(J$46,'Data Annex'!$K$1:$BA$1,0)),\"\")","v":0.69075591160000005},{"$f":"IFERROR(INDEX('Data Annex'!$K$1:$BA$5047,MATCH(K$45&\"|\"&$B78,'Data Annex'!$K$1:$K$5047,0),MATCH(K$46,'Data Annex'!$K$1:$BA$1,0)),\"\")","v":0.46002669480000002},{"$f":"IFERROR(INDEX('Data Annex'!$K$1:$BA$5047,MATCH(L$45&\"|\"&$B78,'Data Annex'!$K$1:$K$5047,0),MATCH(L$46,'Data Annex'!$K$1:$BA$1,0)),\"\")","v":0.57080845260000002},{"$f":"IFERROR(INDEX('Data Annex'!$K$1:$BA$5047,MATCH(M$45&\"|\"&$B78,'Data Annex'!$K$1:$K$5047,0),MATCH(M$46,'Data Annex'!$K$1:$BA$1,0)),\"\")","v":0},{"$f":"IFERROR(INDEX('Data Annex'!$K$1:$BA$5047,MATCH(N$45&\"|\"&$B78,'Data Annex'!$K$1:$K$5047,0),MATCH(N$46,'Data Annex'!$K$1:$BA$1,0)),\"\")","v":0.30924408840000001},{"$f":"IFERROR(INDEX('Data Annex'!$K$1:$BA$5047,MATCH(O$45&\"|\"&$B78,'Data Annex'!$K$1:$K$5047,0),MATCH(O$46,'Data Annex'!$K$1:$BA$1,0)),\"\")","v":0.53984936370000003},{"$f":"IFERROR(INDEX('Data Annex'!$K$1:$BA$5047,MATCH(P$45&\"|\"&$B78,'Data Annex'!$K$1:$K$5047,0),MATCH(P$46,'Data Annex'!$K$1:$BA$1,0)),\"\")","v":0.42794326640000002},{"$f":"IFERROR(INDEX('Data Annex'!$K$1:$BA$5047,MATCH(Q$45&\"|\"&$B78,'Data Annex'!$K$1:$K$5047,0),MATCH(Q$46,'Data Annex'!$K$1:$BA$1,0)),\"\")","v":0},{"$f":"IFERROR(INDEX('Data Annex'!$K$1:$BA$5047,MATCH(R$45&\"|\"&$B78,'Data Annex'!$K$1:$K$5047,0),MATCH(R$46,'Data Annex'!$K$1:$BA$1,0)),\"\")","v":0},{"$f":"IFERROR(INDEX('Data Annex'!$K$1:$BA$5047,MATCH(S$45&\"|\"&$B78,'Data Annex'!$K$1:$K$5047,0),MATCH(S$46,'Data Annex'!$K$1:$BA$1,0)),\"\")","v":0},{"$f":"IFERROR(INDEX('Data Annex'!$K$1:$BA$5047,MATCH(T$45&\"|\"&$B78,'Data Annex'!$K$1:$K$5047,0),MATCH(T$46,'Data Annex'!$K$1:$BA$1,0)),\"\")","v":0},{"$f":"IFERROR(INDEX('Data Annex'!$K$1:$BA$5047,MATCH(U$45&\"|\"&$B78,'Data Annex'!$K$1:$K$5047,0),MATCH(U$46,'Data Annex'!$K$1:$BA$1,0)),\"\")","v":0},{"$f":"IFERROR(INDEX('Data Annex'!$K$1:$BA$5047,MATCH(V$45&\"|\"&$B78,'Data Annex'!$K$1:$K$5047,0),MATCH(V$46,'Data Annex'!$K$1:$BA$1,0)),\"\")","v":0},{"$f":"IFERROR(INDEX('Data Annex'!$K$1:$BA$5047,MATCH(W$45&\"|\"&$B78,'Data Annex'!$K$1:$K$5047,0),MATCH(W$46,'Data Annex'!$K$1:$BA$1,0)),\"\")","v":0},{"$f":"IFERROR(INDEX('Data Annex'!$K$1:$BA$5047,MATCH(X$45&\"|\"&$B78,'Data Annex'!$K$1:$K$5047,0),MATCH(X$46,'Data Annex'!$K$1:$BA$1,0)),\"\")","v":0},{"$f":"IFERROR(INDEX('Data Annex'!$K$1:$BA$5047,MATCH(Y$45&\"|\"&$B78,'Data Annex'!$K$1:$K$5047,0),MATCH(Y$46,'Data Annex'!$K$1:$BA$1,0)),\"\")","v":0},{"$f":"IFERROR(INDEX('Data Annex'!$K$1:$BA$5047,MATCH(Z$45&\"|\"&$B78,'Data Annex'!$K$1:$K$5047,0),MATCH(Z$46,'Data Annex'!$K$1:$BA$1,0)),\"\")","v":0},{"$f":"IFERROR(INDEX('Data Annex'!$K$1:$BA$5047,MATCH(AA$45&\"|\"&$B78,'Data Annex'!$K$1:$K$5047,0),MATCH(AA$46,'Data Annex'!$K$1:$BA$1,0)),\"\")","v":0},{"$f":"IFERROR(INDEX('Data Annex'!$K$1:$BA$5047,MATCH(AB$45&\"|\"&$B78,'Data Annex'!$K$1:$K$5047,0),MATCH(AB$46,'Data Annex'!$K$1:$BA$1,0)),\"\")","v":0}]
[29,"SI",null,"SI",{"$f":"IFERROR(INDEX('Data Annex'!$K$1:$BA$5047,MATCH(E$45&\"|\"&$B79,'Data Annex'!$K$1:$K$5047,0),MATCH(E$46,'Data Annex'!$K$1:$BA$1,0)),\"\")","v":0},{"$f":"IFERROR(INDEX('Data Annex'!$K$1:$BA$5047,MATCH(F$45&\"|\"&$B79,'Data Annex'!$K$1:$K$5047,0),MATCH(F$46,'Data Annex'!$K$1:$BA$1,0)),\"\")","v":0.2497882068},{"$f":"IFERROR(INDEX('Data Annex'!$K$1:$BA$5047,MATCH(G$45&\"|\"&$B79,'Data Annex'!$K$1:$K$5047,0),MATCH(G$46,'Data Annex'!$K$1:$BA$1,0)),\"\")","v":0.59322843999999997},{"$f":"IFERROR(INDEX('Data Annex'!$K$1:$BA$5047,MATCH(H$45&\"|\"&$B79,'Data Annex'!$K$1:$K$5047,0),MATCH(H$46,'Data Annex'!$K$1:$BA$1,0)),\"\")","v":1.9893880639999999},{"$f":"IFERROR(INDEX('Data Annex'!$K$1:$BA$5047,MATCH(I$45&\"|\"&$B79,'Data Annex'!$K$1:$K$5047,0),MATCH(I$46,'Data Annex'!$K$1:$BA$1,0)),\"\")","v":0},{"$f":"IFERROR(INDEX('Data Annex'!$K$1:$BA$5047,MATCH(J$45&\"|\"&$B79,'Data Annex'!$K$1:$K$5047,0),MATCH(J$46,'Data Annex'!$K$1:$BA$1,0)),\"\")","v":0.5393699877},{"$f":"IFERROR(INDEX('Data Annex'!$K$1:$BA$5047,MATCH(K$45&\"|\"&$B79,'Data Annex'!$K$1:$K$5047,0),MATCH(K$46,'Data Annex'!$K$1:$BA$1,0)),\"\")","v":0.42949832110000002},{"$f":"IFERROR(INDEX('Data Annex'!$K$1:$BA$5047,MATCH(L$45&\"|\"&$B79,'Data Annex'!$K$1:$K$5047,0),MATCH(L$46,'Data Annex'!$K$1:$BA$1,0)),\"\")","v":0.60615091990000003},{"$f":"IFERROR(INDEX('Data Annex'!$K$1:$BA$5047,MATCH(M$45&\"|\"&$B79,'Data Annex'!$K$1:$K$5047,0),MATCH(M$46,'Data Annex'!$K$1:$BA$1,0)),\"\")","v":0},{"$f":"IFERROR(INDEX('Data Annex'!$K$1:$BA$5047,MATCH(N$45&\"|\"&$B79,'Data Annex'!$K$1:$K$5047,0),MATCH(N$46,'Data Annex'!$K$1:$BA$1,0)),\"\")","v":0.44705168290000002},{"$f":"IFERROR(INDEX('Data Annex'!$K$1:$BA$5047,MATCH(O$45&\"|\"&$B79,'Data Annex'!$K$1:$K$5047,0),MATCH(O$46,'Data Annex'!$K$1:$BA$1,0)),\"\")","v":0.53555898469999996},{"$f":"IFERROR(INDEX('Data Annex'!$K$1:$BA$5047,MATCH(P$45&\"|\"&$B79,'Data Annex'!$K$1:$K$5047,0),MATCH(P$46,'Data Annex'!$K$1:$BA$1,0)),\"\")","v":0.38732898469999999},{"$f":"IFERROR(INDEX('Data Annex'!$K$1:$BA$5047,MATCH(Q$45&\"|\"&$B79,'Data Annex'!$K$1:$K$5047,0),MATCH(Q$46,'Data Annex'!$K$1:$BA$1,0)),\"\")","v":0},{"$f":"IFERROR(INDEX('Data Annex'!$K$1:$BA$5047,MATCH(R$45&\"|\"&$B79,'Data Annex'!$K$1:$K$5047,0),MATCH(R$46,'Data Annex'!$K$1:$BA$1,0)),\"\")","v":0.1154102501},{"$f":"IFERROR(INDEX('Data Annex'!$K$1:$BA$5047,MATCH(S$45&\"|\"&$B79,'Data Annex'!$K$1:$K$5047,0),MATCH(S$46,'Data Annex'!$K$1:$BA$1,0)),\"\")","v":0.15674588189999999},{"$f":"IFERROR(INDEX('Data Annex'!$K$1:$BA$5047,MATCH(T$45&\"|\"&$B79,'Data Annex'!$K$1:$K$5047,0),MATCH(T$46,'Data Annex'!$K$1:$BA$1,0)),\"\")","v":8.3001798399999993E-2},{"$f":"IFERROR(INDEX('Data Annex'!$K$1:$BA$5047,MATCH(U$45&\"|\"&$B79,'Data Annex'!$K$1:$K$5047,0),MATCH(U$46,'Data Annex'!$K$1:$BA$1,0)),\"\")","v":0},{"$f":"IFERROR(INDEX('Data Annex'!$K$1:$BA$5047,MATCH(V$45&\"|\"&$B79,'Data Annex'!$K$1:$K$5047,0),MATCH(V$46,'Data Annex'!$K$1:$BA$1,0)),\"\")","v":4.4468288299999999E-2},{"$f":"IFERROR(INDEX('Data Annex'!$K$1:$BA$5047,MATCH(W$45&\"|\"&$B79,'Data Annex'!$K$1:$K$5047,0),MATCH(W$46,'Data Annex'!$K$1:$BA$1,0)),\"\")","v":4.3954399800000002E-2},{"$f":"IFERROR(INDEX('Data Annex'!$K$1:$BA$5047,MATCH(X$45&\"|\"&$B79,'Data Annex'!$K$1:$K$5047,0),MATCH(X$46,'Data Annex'!$K$1:$BA$1,0)),\"\")","v":4.06731439E-2},{"$f":"IFERROR(INDEX('Data Annex'!$K$1:$BA$5047,MATCH(Y$45&\"|\"&$B79,'Data Annex'!$K$1:$K$5047,0),MATCH(Y$46,'Data Annex'!$K$1:$BA$1,0)),\"\")","v":0},{"$f":"IFERROR(INDEX('Data Annex'!$K$1:$BA$5047,MATCH(Z$45&\"|\"&$B79,'Data Annex'!$K$1:$K$5047,0),MATCH(Z$46,'Data Annex'!$K$1:$BA$1,0)),\"\")","v":0.37525443260000002},{"$f":"IFERROR(INDEX('Data Annex'!$K$1:$BA$5047,MATCH(AA$45&\"|\"&$B79,'Data Annex'!$K$1:$K$5047,0),MATCH(AA$46,'Data Annex'!$K$1:$BA$1,0)),\"\")","v":0.41645254069999998},{"$f":"IFERROR(INDEX('Data Annex'!$K$1:$BA$5047,MATCH(AB$45&\"|\"&$B79,'Data Annex'!$K$1:$K$5047,0),MATCH(AB$46,'Data Annex'!$K$1:$BA$1,0)),\"\")","v":0.37457998809999998}]
[30,"SK",null,"SK",{"$f":"IFERROR(INDEX('Data Annex'!$K$1:$BA$5047,MATCH(E$45&\"|\"&$B80,'Data Annex'!$K$1:$K$5047,0),MATCH(E$46,'Data Annex'!$K$1:$BA$1,0)),\"\")","v":0},{"$f":"IFERROR(INDEX('Data Annex'!$K$1:$BA$5047,MATCH(F$45&\"|\"&$B80,'Data Annex'!$K$1:$K$5047,0),MATCH(F$46,'Data Annex'!$K$1:$BA$1,0)),\"\")","v":0.24380893989999999},{"$f":"IFERROR(INDEX('Data Annex'!$K$1:$BA$5047,MATCH(G$45&\"|\"&$B80,'Data Annex'!$K$1:$K$5047,0),MATCH(G$46,'Data Annex'!$K$1:$BA$1,0)),\"\")","v":0.84535535979999998},{"$f":"IFERROR(INDEX('Data Annex'!$K$1:$BA$5047,MATCH(H$45&\"|\"&$B80,'Data Annex'!$K$1:$K$5047,0),MATCH(H$46,'Data Annex'!$K$1:$BA$1,0)),\"\")","v":2.2743582967},{"$f":"IFERROR(INDEX('Data Annex'!$K$1:$BA$5047,MATCH(I$45&\"|\"&$B80,'Data Annex'!$K$1:$K$5047,0),MATCH(I$46,'Data Annex'!$K$1:$BA$1,0)),\"\")","v":0},{"$f":"IFERROR(INDEX('Data Annex'!$K$1:$BA$5047,MATCH(J$45&\"|\"&$B80,'Data Annex'!$K$1:$K$5047,0),MATCH(J$46,'Data Annex'!$K$1:$BA$1,0)),\"\")","v":0.25141839729999998},{"$f":"IFERROR(INDEX('Data Annex'!$K$1:$BA$5047,MATCH(K$45&\"|\"&$B80,'Data Annex'!$K$1:$K$5047,0),MATCH(K$46,'Data Annex'!$K$1:$BA$1,0)),\"\")","v":0.56629406739999999},{"$f":"IFERROR(INDEX('Data Annex'!$K$1:$BA$5047,MATCH(L$45&\"|\"&$B80,'Data Annex'!$K$1:$K$5047,0),MATCH(L$46,'Data Annex'!$K$1:$BA$1,0)),\"\")","v":0.68845109270000004},{"$f":"IFERROR(INDEX('Data Annex'!$K$1:$BA$5047,MATCH(M$45&\"|\"&$B80,'Data Annex'!$K$1:$K$5047,0),MATCH(M$46,'Data Annex'!$K$1:$BA$1,0)),\"\")","v":0},{"$f":"IFERROR(INDEX('Data Annex'!$K$1:$BA$5047,MATCH(N$45&\"|\"&$B80,'Data Annex'!$K$1:$K$5047,0),MATCH(N$46,'Data Annex'!$K$1:$BA$1,0)),\"\")","v":0.73238436659999995},{"$f":"IFERROR(INDEX('Data Annex'!$K$1:$BA$5047,MATCH(O$45&\"|\"&$B80,'Data Annex'!$K$1:$K$5047,0),MATCH(O$46,'Data Annex'!$K$1:$BA$1,0)),\"\")","v":0.4286742898},{"$f":"IFERROR(INDEX('Data Annex'!$K$1:$BA$5047,MATCH(P$45&\"|\"&$B80,'Data Annex'!$K$1:$K$5047,0),MATCH(P$46,'Data Annex'!$K$1:$BA$1,0)),\"\")","v":0.30996363989999998},{"$f":"IFERROR(INDEX('Data Annex'!$K$1:$BA$5047,MATCH(Q$45&\"|\"&$B80,'Data Annex'!$K$1:$K$5047,0),MATCH(Q$46,'Data Annex'!$K$1:$BA$1,0)),\"\")","v":0},{"$f":"IFERROR(INDEX('Data Annex'!$K$1:$BA$5047,MATCH(R$45&\"|\"&$B80,'Data Annex'!$K$1:$K$5047,0),MATCH(R$46,'Data Annex'!$K$1:$BA$1,0)),\"\")","v":0.45559630849999999},{"$f":"IFERROR(INDEX('Data Annex'!$K$1:$BA$5047,MATCH(S$45&\"|\"&$B80,'Data Annex'!$K$1:$K$5047,0),MATCH(S$46,'Data Annex'!$K$1:$BA$1,0)),\"\")","v":0.40617912699999997},{"$f":"IFERROR(INDEX('Data Annex'!$K$1:$BA$5047,MATCH(T$45&\"|\"&$B80,'Data Annex'!$K$1:$K$5047,0),MATCH(T$46,'Data Annex'!$K$1:$BA$1,0)),\"\")","v":0.45437724099999999},{"$f":"IFERROR(INDEX('Data Annex'!$K$1:$BA$5047,MATCH(U$45&\"|\"&$B80,'Data Annex'!$K$1:$K$5047,0),MATCH(U$46,'Data Annex'!$K$1:$BA$1,0)),\"\")","v":0},{"$f":"IFERROR(INDEX('Data Annex'!$K$1:$BA$5047,MATCH(V$45&\"|\"&$B80,'Data Annex'!$K$1:$K$5047,0),MATCH(V$46,'Data Annex'!$K$1:$BA$1,0)),\"\")","v":2.1469458899999998E-2},{"$f":"IFERROR(INDEX('Data Annex'!$K$1:$BA$5047,MATCH(W$45&\"|\"&$B80,'Data Annex'!$K$1:$K$5047,0),MATCH(W$46,'Data Annex'!$K$1:$BA$1,0)),\"\")","v":2.1784966900000001E-2},{"$f":"IFERROR(INDEX('Data Annex'!$K$1:$BA$5047,MATCH(X$45&\"|\"&$B80,'Data Annex'!$K$1:$K$5047,0),MATCH(X$46,'Data Annex'!$K$1:$BA$1,0)),\"\")","v":2.05645273E-2},{"$f":"IFERROR(INDEX('Data Annex'!$K$1:$BA$5047,MATCH(Y$45&\"|\"&$B80,'Data Annex'!$K$1:$K$5047,0),MATCH(Y$46,'Data Annex'!$K$1:$BA$1,0)),\"\")","v":0},{"$f":"IFERROR(INDEX('Data Annex'!$K$1:$BA$5047,MATCH(Z$45&\"|\"&$B80,'Data Annex'!$K$1:$K$5047,0),MATCH(Z$46,'Data Annex'!$K$1:$BA$1,0)),\"\")","v":0.56064798810000005},{"$f":"IFERROR(INDEX('Data Annex'!$K$1:$BA$5047,MATCH(AA$45&\"|\"&$B80,'Data Annex'!$K$1:$K$5047,0),MATCH(AA$46,'Data Annex'!$K$1:$BA$1,0)),\"\")","v":0.57177783550000005},{"$f":"IFERROR(INDEX('Data Annex'!$K$1:$BA$5047,MATCH(AB$45&\"|\"&$B80,'Data Annex'!$K$1:$K$5047,0),MATCH(AB$46,'Data Annex'!$K$1:$BA$1,0)),\"\")","v":0.53310301510000002}]
[99,"EU",null,"EU/EEA",{"$f":"IFERROR(INDEX('Data Annex'!$K$1:$BA$5047,MATCH(E$45&\"|\"&$B81,'Data Annex'!$K$1:$K$5047,0),MATCH(E$46,'Data Annex'!$K$1:$BA$1,0)),\"\")","v":0},{"$f":"IFERROR(INDEX('Data Annex'!$K$1:$BA$5047,MATCH(F$45&\"|\"&$B81,'Data Annex'!$K$1:$K$5047,0),MATCH(F$46,'Data Annex'!$K$1:$BA$1,0)),\"\")","v":82.115982875},{"$f":"IFERROR(INDEX('Data Annex'!$K$1:$BA$5047,MATCH(G$45&\"|\"&$B81,'Data Annex'!$K$1:$K$5047,0),MATCH(G$46,'Data Annex'!$K$1:$BA$1,0)),\"\")","v":351.11693491},{"$f":"IFERROR(INDEX('Data Annex'!$K$1:$BA$5047,MATCH(H$45&\"|\"&$B81,'Data Annex'!$K$1:$K$5047,0),MATCH(H$46,'Data Annex'!$K$1:$BA$1,0)),\"\")","v":580.38152329000002},{"$f":"IFERROR(INDEX('Data Annex'!$K$1:$BA$5047,MATCH(I$45&\"|\"&$B81,'Data Annex'!$K$1:$K$5047,0),MATCH(I$46,'Data Annex'!$K$1:$BA$1,0)),\"\")","v":0},{"$f":"IFERROR(INDEX('Data Annex'!$K$1:$BA$5047,MATCH(J$45&\"|\"&$B81,'Data Annex'!$K$1:$K$5047,0),MATCH(J$46,'Data Annex'!$K$1:$BA$1,0)),\"\")","v":0.70030020289999995},{"$f":"IFERROR(INDEX('Data Annex'!$K$1:$BA$5047,MATCH(K$45&\"|\"&$B81,'Data Annex'!$K$1:$K$5047,0),MATCH(K$46,'Data Annex'!$K$1:$BA$1,0)),\"\")","v":0.455962755},{"$f":"IFERROR(INDEX('Data Annex'!$K$1:$BA$5047,MATCH(L$45&\"|\"&$B81,'Data Annex'!$K$1:$K$5047,0),MATCH(L$46,'Data Annex'!$K$1:$BA$1,0)),\"\")","v":0.4092734885},{"$f":"IFERROR(INDEX('Data Annex'!$K$1:$BA$5047,MATCH(M$45&\"|\"&$B81,'Data Annex'!$K$1:$K$5047,0),MATCH(M$46,'Data Annex'!$K$1:$BA$1,0)),\"\")","v":0},{"$f":"IFERROR(INDEX('Data Annex'!$K$1:$BA$5047,MATCH(N$45&\"|\"&$B81,'Data Annex'!$K$1:$K$5047,0),MATCH(N$46,'Data Annex'!$K$1:$BA$1,0)),\"\")","v":0.2968212107},{"$f":"IFERROR(INDEX('Data Annex'!$K$1:$BA$5047,MATCH(O$45&\"|\"&$B81,'Data Annex'!$K$1:$K$5047,0),MATCH(O$46,'Data Annex'!$K$1:$BA$1,0)),\"\")","v":0.53536208080000003},{"$f":"IFERROR(INDEX('Data Annex'!$K$1:$BA$5047,MATCH(P$45&\"|\"&$B81,'Data Annex'!$K$1:$K$5047,0),MATCH(P$46,'Data Annex'!$K$1:$BA$1,0)),\"\")","v":0.5791010446},{"$f":"IFERROR(INDEX('Data Annex'!$K$1:$BA$5047,MATCH(Q$45&\"|\"&$B81,'Data Annex'!$K$1:$K$5047,0),MATCH(Q$46,'Data Annex'!$K$1:$BA$1,0)),\"\")","v":0},{"$f":"IFERROR(INDEX('Data Annex'!$K$1:$BA$5047,MATCH(R$45&\"|\"&$B81,'Data Annex'!$K$1:$K$5047,0),MATCH(R$46,'Data Annex'!$K$1:$BA$1,0)),\"\")","v":0.20264504950000001},{"$f":"IFERROR(INDEX('Data Annex'!$K$1:$BA$5047,MATCH(S$45&\"|\"&$B81,'Data Annex'!$K$1:$K$5047,0),MATCH(S$46,'Data Annex'!$K$1:$BA$1,0)),\"\")","v":0.17187069939999999},{"$f":"IFERROR(INDEX('Data Annex'!$K$1:$BA$5047,MATCH(T$45&\"|\"&$B81,'Data Annex'!$K$1:$K$5047,0),MATCH(T$46,'Data Annex'!$K$1:$BA$1,0)),\"\")","v":0.2008000948},{"$f":"IFERROR(INDEX('Data Annex'!$K$1:$BA$5047,MATCH(U$45&\"|\"&$B81,'Data Annex'!$K$1:$K$5047,0),MATCH(U$46,'Data Annex'!$K$1:$BA$1,0)),\"\")","v":0},{"$f":"IFERROR(INDEX('Data Annex'!$K$1:$BA$5047,MATCH(V$45&\"|\"&$B81,'Data Annex'!$K$1:$K$5047,0),MATCH(V$46,'Data Annex'!$K$1:$BA$1,0)),\"\")","v":3.58355531E-2},{"$f":"IFERROR(INDEX('Data Annex'!$K$1:$BA$5047,MATCH(W$45&\"|\"&$B81,'Data Annex'!$K$1:$K$5047,0),MATCH(W$46,'Data Annex'!$K$1:$BA$1,0)),\"\")","v":2.61866917E-2},{"$f":"IFERROR(INDEX('Data Annex'!$K$1:$BA$5047,MATCH(X$45&\"|\"&$B81,'Data Annex'!$K$1:$K$5047,0),MATCH(X$46,'Data Annex'!$K$1:$BA$1,0)),\"\")","v":3.9416905500000002E-2},{"$f":"IFERROR(INDEX('Data Annex'!$K$1:$BA$5047,MATCH(Y$45&\"|\"&$B81,'Data Annex'!$K$1:$K$5047,0),MATCH(Y$46,'Data Annex'!$K$1:$BA$1,0)),\"\")","v":0},{"$f":"IFERROR(INDEX('Data Annex'!$K$1:$BA$5047,MATCH(Z$45&\"|\"&$B81,'Data Annex'!$K$1:$K$5047,0),MATCH(Z$46,'Data Annex'!$K$1:$BA$1,0)),\"\")","v":0.22225880940000001},{"$f":"IFERROR(INDEX('Data Annex'!$K$1:$BA$5047,MATCH(AA$45&\"|\"&$B81,'Data Annex'!$K$1:$K$5047,0),MATCH(AA$46,'Data Annex'!$K$1:$BA$1,0)),\"\")","v":0.2790682665},{"$f":"IFERROR(INDEX('Data Annex'!$K$1:$BA$5047,MATCH(AB$45&\"|\"&$B81,'Data Annex'!$K$1:$K$5047,0),MATCH(AB$46,'Data Annex'!$K$1:$BA$1,0)),\"\")","v":0.2888558289}]
[]
[]
[null,null,null,"Individual country data includes subsidiaries, which are excluded from EU aggregate. For example, at country level the subsidiary in country X of a bank domiciled in country Y is included both in data for countries X and Y (for the latter as part of the consolidated entity). In the EU aggregate, only the consolidated entity domiciled in country Y is considered.  The sample of banks is unbalanced and reviewed annually."]
[null,null,null,"Compliance table on the Guidelines on Covid -19 measures reporting and disclosure"]

{"sheet":"Public guarantee schemes","index":14,"n_rows":86,"n_cols":24,"rows_kept":86,"cut":false,"hidden":true,"merged":[[2,3,2,23],[3,3,3,23],[5,3,5,23],[6,3,7,23],[9,3,11,3],[9,4,11,7],[9,8,11,11],[9,12,11,15],[9,16,11,19],[9,20,11,23],[83,3,84,19],[46,3,47,19],[48,3,49,3],[49,4,49,7],[49,8,49,11],[49,12,49,15],[49,16,49,19]]}
[null,null,null,null,"T92_1","T92_1","T92_1","T92_1","T92_2","T92_2","T92_2","T92_2","T92_3","T92_3","T92_3","T92_3","T92_4","T92_4","T92_4","T92_4","T92_5","T92_5","T92_5","T92_5"]
[{"$f":"'Reference Dates'!C8","v":"202012"},null,null,null,{"$f":"TEXT(E51,\"YYYYMM\")+0","v":202003},{"$f":"TEXT(F51,\"YYYYMM\")+0","v":202006},{"$f":"TEXT(G51,\"YYYYMM\")+0","v":202009},{"$f":"TEXT(H51,\"YYYYMM\")+0","v":202012},{"$f":"TEXT(I51,\"YYYYMM\")+0","v":202003},202006,202009,202012,202003,202006,202009,202012,202003,202006,202009,202012,{"$f":"TEXT(U13,\"YYYYMM\")+0","v":202003},{"$f":"TEXT(V13,\"YYYYMM\")+0","v":202006},202009,202012]
[{"$f":"DATE(LEFT(A2,4),RIGHT(A2,2),1)","v":"2020-12-01"},null,null,"Statistical Annex"]
[null,null,null,"Overview of public guarantee schemes (PGS)"]
[]
[]
[null,null,null,"Newly originated loans and advances subject to public guarantee schemes"]
[]
[]
[null,null,null,"Volumes bn EUR","Newly originated loans subject to PGS",null,null,null,"of which: Residual maturity <= 6 months",null,null,null,"of which: Residual maturity > 6 months <= 12 months",null,null,null,"of which: Residual maturity > 1 year <= 2 years",null,null,null,"of which: Residual maturity > 2 years <= 5 years"]
[]
[]
[null,null,null,null,{"$f":"EOMONTH($A$3,-9)","v":"2020-03-31"},{"$f":"EOMONTH($A$3,-6)","v":"2020-06-30"},{"$f":"EOMONTH($A$3,-3)","v":"2020-09-30"},{"$f":"EOMONTH($A$3,0)","v":"2020-12-31"},{"$f":"EOMONTH($A$3,-9)","v":"2020-03-31"},{"$f":"EOMONTH($A$3,-6)","v":"2020-06-30"},{"$f":"EOMONTH($A$3,-3)","v":"2020-09-30"},{"$f":"EOMONTH($A$3,0)","v":"2020-12-31"},{"$f":"EOMONTH($A$3,-9)","v":"2020-03-31"},{"$f":"EOMONTH($A$3,-6)","v":"2020-06-30"},{"$f":"EOMONTH($A$3,-3)","v":"2020-09-30"},{"$f":"EOMONTH($A$3,0)","v":"2020-12-31"},{"$f":"EOMONTH($A$3,-9)","v":"2020-03-31"},{"$f":"EOMONTH($A$3,-6)","v":"2020-06-30"},{"$f":"EOMONTH($A$3,-3)","v":"2020-09-30"},{"$f":"EOMONTH($A$3,0)","v":"2020-12-31"},{"$f":"EOMONTH($A$3,-9)","v":"2020-03-31"},{"$f":"EOMONTH($A$3,-6)","v":"2020-06-30"},{"$f":"EOMONTH($A$3,-3)","v":"2020-09-30"},{"$f":"EOMONTH($A$3,0)","v":"2020-12-31"}]
[1,"AT",null,{"$f":"IF(OR(E14=\"n.a.\",F14=\"n.a.\",G14=\"n.a.\",H14=\"n.a.\",I14=\"n.a.\",J14=\"n.a.\",K14=\"n.a.\",L14=\"n.a.\",M14=\"n.a.\",N14=\"n.a.\",O14=\"n.a.\",P14=\"n.a.\",Q14=\"n.a.\",R14=\"n.a.\",S14=\"n.a.\",T14=\"n.a.\",U14=\"n.a.\",V14=\"n.a.\",W14=\"n.a.\",X14=\"n.a.\"),$B14&\"*\",$B14)","v":"AT"},{"$f":"IFERROR(INDEX('Data Annex'!$K$1:$BA$5047,MATCH(E$1&\"|\"&$B14,'Data Annex'!$K$1:$K$5047,0),MATCH(E$2,'Data Annex'!$K$1:$BA$1,0)),\"\")","v":0},{"$f":"IFERROR(INDEX('Data Annex'!$K$1:$BA$5047,MATCH(F$1&\"|\"&$B14,'Data Annex'!$K$1:$K$5047,0),MATCH(F$2,'Data Annex'!$K$1:$BA$1,0)),\"\")","v":1.4055272181},{"$f":"IFERROR(INDEX('Data Annex'!$K$1:$BA$5047,MATCH(G$1&\"|\"&$B14,'Data Annex'!$K$1:$K$5047,0),MATCH(G$2,'Data Annex'!$K$1:$BA$1,0)),\"\")","v":2.8200621388},{"$f":"IFERROR(INDEX('Data Annex'!$K$1:$BA$5047,MATCH(H$1&\"|\"&$B14,'Data Annex'!$K$1:$K$5047,0),MATCH(H$2,'Data Annex'!$K$1:$BA$1,0)),\"\")","v":3.4096475511},{"$f":"IFERROR(INDEX('Data Annex'!$K$1:$BA$5047,MATCH(I$1&\"|\"&$B14,'Data Annex'!$K$1:$K$5047,0),MATCH(I$2,'Data Annex'!$K$1:$BA$1,0)),\"\")","v":0},{"$f":"IFERROR(INDEX('Data Annex'!$K$1:$BA$5047,MATCH(J$1&\"|\"&$B14,'Data Annex'!$K$1:$K$5047,0),MATCH(J$2,'Data Annex'!$K$1:$BA$1,0)),\"\")","v":5.3047459999999999E-3},{"$f":"IFERROR(INDEX('Data Annex'!$K$1:$BA$5047,MATCH(K$1&\"|\"&$B14,'Data Annex'!$K$1:$K$5047,0),MATCH(K$2,'Data Annex'!$K$1:$BA$1,0)),\"\")","v":8.9961763000000004E-3},{"$f":"IFERROR(INDEX('Data Annex'!$K$1:$BA$5047,MATCH(L$1&\"|\"&$B14,'Data Annex'!$K$1:$K$5047,0),MATCH(L$2,'Data Annex'!$K$1:$BA$1,0)),\"\")","v":9.9500079999999998E-3},{"$f":"IFERROR(INDEX('Data Annex'!$K$1:$BA$5047,MATCH(M$1&\"|\"&$B14,'Data Annex'!$K$1:$K$5047,0),MATCH(M$2,'Data Annex'!$K$1:$BA$1,0)),\"\")","v":0},{"$f":"IFERROR(INDEX('Data Annex'!$K$1:$BA$5047,MATCH(N$1&\"|\"&$B14,'Data Annex'!$K$1:$K$5047,0),MATCH(N$2,'Data Annex'!$K$1:$BA$1,0)),\"\")","v":6.3226113999999998E-3},{"$f":"IFERROR(INDEX('Data Annex'!$K$1:$BA$5047,MATCH(O$1&\"|\"&$B14,'Data Annex'!$K$1:$K$5047,0),MATCH(O$2,'Data Annex'!$K$1:$BA$1,0)),\"\")","v":9.0618087E-3},{"$f":"IFERROR(INDEX('Data Annex'!$K$1:$BA$5047,MATCH(P$1&\"|\"&$B14,'Data Annex'!$K$1:$K$5047,0),MATCH(P$2,'Data Annex'!$K$1:$BA$1,0)),\"\")","v":1.00434949E-2},{"$f":"IFERROR(INDEX('Data Annex'!$K$1:$BA$5047,MATCH(Q$1&\"|\"&$B14,'Data Annex'!$K$1:$K$5047,0),MATCH(Q$2,'Data Annex'!$K$1:$BA$1,0)),\"\")","v":0},{"$f":"IFERROR(INDEX('Data Annex'!$K$1:$BA$5047,MATCH(R$1&\"|\"&$B14,'Data Annex'!$K$1:$K$5047,0),MATCH(R$2,'Data Annex'!$K$1:$BA$1,0)),\"\")","v":0.2244763344},{"$f":"IFERROR(INDEX('Data Annex'!$K$1:$BA$5047,MATCH(S$1&\"|\"&$B14,'Data Annex'!$K$1:$K$5047,0),MATCH(S$2,'Data Annex'!$K$1:$BA$1,0)),\"\")","v":0.2601566381},{"$f":"IFERROR(INDEX('Data Annex'!$K$1:$BA$5047,MATCH(T$1&\"|\"&$B14,'Data Annex'!$K$1:$K$5047,0),MATCH(T$2,'Data Annex'!$K$1:$BA$1,0)),\"\")","v":0.230770692},{"$f":"IFERROR(INDEX('Data Annex'!$K$1:$BA$5047,MATCH(U$1&\"|\"&$B14,'Data Annex'!$K$1:$K$5047,0),MATCH(U$2,'Data Annex'!$K$1:$BA$1,0)),\"\")","v":0},{"$f":"IFERROR(INDEX('Data Annex'!$K$1:$BA$5047,MATCH(V$1&\"|\"&$B14,'Data Annex'!$K$1:$K$5047,0),MATCH(V$2,'Data Annex'!$K$1:$BA$1,0)),\"\")","v":0.62467152609999999},{"$f":"IFERROR(INDEX('Data Annex'!$K$1:$BA$5047,MATCH(W$1&\"|\"&$B14,'Data Annex'!$K$1:$K$5047,0),MATCH(W$2,'Data Annex'!$K$1:$BA$1,0)),\"\")","v":0.5489959445},{"$f":"IFERROR(INDEX('Data Annex'!$K$1:$BA$5047,MATCH(X$1&\"|\"&$B14,'Data Annex'!$K$1:$K$5047,0),MATCH(X$2,'Data Annex'!$K$1:$BA$1,0)),\"\")","v":0.54474780820000002}]
[2,"BE",null,{"$f":"IF(OR(E15=\"n.a.\",F15=\"n.a.\",G15=\"n.a.\",H15=\"n.a.\",I15=\"n.a.\",J15=\"n.a.\",K15=\"n.a.\",L15=\"n.a.\",M15=\"n.a.\",N15=\"n.a.\",O15=\"n.a.\",P15=\"n.a.\",Q15=\"n.a.\",R15=\"n.a.\",S15=\"n.a.\",T15=\"n.a.\",U15=\"n.a.\",V15=\"n.a.\",W15=\"n.a.\",X15=\"n.a.\"),$B15&\"*\",$B15)","v":"BE"},{"$f":"IFERROR(INDEX('Data Annex'!$K$1:$BA$5047,MATCH(E$1&\"|\"&$B15,'Data Annex'!$K$1:$K$5047,0),MATCH(E$2,'Data Annex'!$K$1:$BA$1,0)),\"\")","v":0},{"$f":"IFERROR(INDEX('Data Annex'!$K$1:$BA$5047,MATCH(F$1&\"|\"&$B15,'Data Annex'!$K$1:$K$5047,0),MATCH(F$2,'Data Annex'!$K$1:$BA$1,0)),\"\")","v":0.49399236810000002},{"$f":"IFERROR(INDEX('Data Annex'!$K$1:$BA$5047,MATCH(G$1&\"|\"&$B15,'Data Annex'!$K$1:$K$5047,0),MATCH(G$2,'Data Annex'!$K$1:$BA$1,0)),\"\")","v":0.88362606600000004},{"$f":"IFERROR(INDEX('Data Annex'!$K$1:$BA$5047,MATCH(H$1&\"|\"&$B15,'Data Annex'!$K$1:$K$5047,0),MATCH(H$2,'Data Annex'!$K$1:$BA$1,0)),\"\")","v":1.9185133181},{"$f":"IFERROR(INDEX('Data Annex'!$K$1:$BA$5047,MATCH(I$1&\"|\"&$B15,'Data Annex'!$K$1:$K$5047,0),MATCH(I$2,'Data Annex'!$K$1:$BA$1,0)),\"\")","v":0},{"$f":"IFERROR(INDEX('Data Annex'!$K$1:$BA$5047,MATCH(J$1&\"|\"&$B15,'Data Annex'!$K$1:$K$5047,0),MATCH(J$2,'Data Annex'!$K$1:$BA$1,0)),\"\")","v":0.31381008059999999},{"$f":"IFERROR(INDEX('Data Annex'!$K$1:$BA$5047,MATCH(K$1&\"|\"&$B15,'Data Annex'!$K$1:$K$5047,0),MATCH(K$2,'Data Annex'!$K$1:$BA$1,0)),\"\")","v":0.31247313240000002},{"$f":"IFERROR(INDEX('Data Annex'!$K$1:$BA$5047,MATCH(L$1&\"|\"&$B15,'Data Annex'!$K$1:$K$5047,0),MATCH(L$2,'Data Annex'!$K$1:$BA$1,0)),\"\")","v":0.32854122899999999},{"$f":"IFERROR(INDEX('Data Annex'!$K$1:$BA$5047,MATCH(M$1&\"|\"&$B15,'Data Annex'!$K$1:$K$5047,0),MATCH(M$2,'Data Annex'!$K$1:$BA$1,0)),\"\")","v":0},{"$f":"IFERROR(INDEX('Data Annex'!$K$1:$BA$5047,MATCH(N$1&\"|\"&$B15,'Data Annex'!$K$1:$K$5047,0),MATCH(N$2,'Data Annex'!$K$1:$BA$1,0)),\"\")","v":0.50480192629999998},{"$f":"IFERROR(INDEX('Data Annex'!$K$1:$BA$5047,MATCH(O$1&\"|\"&$B15,'Data Annex'!$K$1:$K$5047,0),MATCH(O$2,'Data Annex'!$K$1:$BA$1,0)),\"\")","v":0.41115568749999998},{"$f":"IFERROR(INDEX('Data Annex'!$K$1:$BA$5047,MATCH(P$1&\"|\"&$B15,'Data Annex'!$K$1:$K$5047,0),MATCH(P$2,'Data Annex'!$K$1:$BA$1,0)),\"\")","v":8.13268672E-2},{"$f":"IFERROR(INDEX('Data Annex'!$K$1:$BA$5047,MATCH(Q$1&\"|\"&$B15,'Data Annex'!$K$1:$K$5047,0),MATCH(Q$2,'Data Annex'!$K$1:$BA$1,0)),\"\")","v":0},{"$f":"IFERROR(INDEX('Data Annex'!$K$1:$BA$5047,MATCH(R$1&\"|\"&$B15,'Data Annex'!$K$1:$K$5047,0),MATCH(R$2,'Data Annex'!$K$1:$BA$1,0)),\"\")","v":7.8570780000000002E-4},{"$f":"IFERROR(INDEX('Data Annex'!$K$1:$BA$5047,MATCH(S$1&\"|\"&$B15,'Data Annex'!$K$1:$K$5047,0),MATCH(S$2,'Data Annex'!$K$1:$BA$1,0)),\"\")","v":2.66615615E-2},{"$f":"IFERROR(INDEX('Data Annex'!$K$1:$BA$5047,MATCH(T$1&\"|\"&$B15,'Data Annex'!$K$1:$K$5047,0),MATCH(T$2,'Data Annex'!$K$1:$BA$1,0)),\"\")","v":2.58787898E-2},{"$f":"IFERROR(INDEX('Data Annex'!$K$1:$BA$5047,MATCH(U$1&\"|\"&$B15,'Data Annex'!$K$1:$K$5047,0),MATCH(U$2,'Data Annex'!$K$1:$BA$1,0)),\"\")","v":0},{"$f":"IFERROR(INDEX('Data Annex'!$K$1:$BA$5047,MATCH(V$1&\"|\"&$B15,'Data Annex'!$K$1:$K$5047,0),MATCH(V$2,'Data Annex'!$K$1:$BA$1,0)),\"\")","v":0.15597581250000001},{"$f":"IFERROR(INDEX('Data Annex'!$K$1:$BA$5047,MATCH(W$1&\"|\"&$B15,'Data Annex'!$K$1:$K$5047,0),MATCH(W$2,'Data Annex'!$K$1:$BA$1,0)),\"\")","v":0.21356390010000001},{"$f":"IFERROR(INDEX('Data Annex'!$K$1:$BA$5047,MATCH(X$1&\"|\"&$B15,'Data Annex'!$K$1:$K$5047,0),MATCH(X$2,'Data Annex'!$K$1:$BA$1,0)),\"\")","v":0.17363053819999999}]
[3,"BG",null,"BG",{"$f":"IFERROR(INDEX('Data Annex'!$K$1:$BA$5047,MATCH(E$1&\"|\"&$B16,'Data Annex'!$K$1:$K$5047,0),MATCH(E$2,'Data Annex'!$K$1:$BA$1,0)),\"\")","v":0},{"$f":"IFERROR(INDEX('Data Annex'!$K$1:$BA$5047,MATCH(F$1&\"|\"&$B16,'Data Annex'!$K$1:$K$5047,0),MATCH(F$2,'Data Annex'!$K$1:$BA$1,0)),\"\")","v":1.2989569499999999E-2},{"$f":"IFERROR(INDEX('Data Annex'!$K$1:$BA$5047,MATCH(G$1&\"|\"&$B16,'Data Annex'!$K$1:$K$5047,0),MATCH(G$2,'Data Annex'!$K$1:$BA$1,0)),\"\")","v":4.1759382300000002E-2},{"$f":"IFERROR(INDEX('Data Annex'!$K$1:$BA$5047,MATCH(H$1&\"|\"&$B16,'Data Annex'!$K$1:$K$5047,0),MATCH(H$2,'Data Annex'!$K$1:$BA$1,0)),\"\")","v":0.1021796707},{"$f":"IFERROR(INDEX('Data Annex'!$K$1:$BA$5047,MATCH(I$1&\"|\"&$B16,'Data Annex'!$K$1:$K$5047,0),MATCH(I$2,'Data Annex'!$K$1:$BA$1,0)),\"\")","v":0},{"$f":"IFERROR(INDEX('Data Annex'!$K$1:$BA$5047,MATCH(J$1&\"|\"&$B16,'Data Annex'!$K$1:$K$5047,0),MATCH(J$2,'Data Annex'!$K$1:$BA$1,0)),\"\")","v":0},{"$f":"IFERROR(INDEX('Data Annex'!$K$1:$BA$5047,MATCH(K$1&\"|\"&$B16,'Data Annex'!$K$1:$K$5047,0),MATCH(K$2,'Data Annex'!$K$1:$BA$1,0)),\"\")","v":0},{"$f":"IFERROR(INDEX('Data Annex'!$K$1:$BA$5047,MATCH(L$1&\"|\"&$B16,'Data Annex'!$K$1:$K$5047,0),MATCH(L$2,'Data Annex'!$K$1:$BA$1,0)),\"\")","v":0.13179846179999999},{"$f":"IFERROR(INDEX('Data Annex'!$K$1:$BA$5047,MATCH(M$1&\"|\"&$B16,'Data Annex'!$K$1:$K$5047,0),MATCH(M$2,'Data Annex'!$K$1:$BA$1,0)),\"\")","v":0},{"$f":"IFERROR(INDEX('Data Annex'!$K$1:$BA$5047,MATCH(N$1&\"|\"&$B16,'Data Annex'!$K$1:$K$5047,0),MATCH(N$2,'Data Annex'!$K$1:$BA$1,0)),\"\")","v":3.3064357000000002E-3},{"$f":"IFERROR(INDEX('Data Annex'!$K$1:$BA$5047,MATCH(O$1&\"|\"&$B16,'Data Annex'!$K$1:$K$5047,0),MATCH(O$2,'Data Annex'!$K$1:$BA$1,0)),\"\")","v":4.1886547599999997E-2},{"$f":"IFERROR(INDEX('Data Annex'!$K$1:$BA$5047,MATCH(P$1&\"|\"&$B16,'Data Annex'!$K$1:$K$5047,0),MATCH(P$2,'Data Annex'!$K$1:$BA$1,0)),\"\")","v":6.2744254200000002E-2},{"$f":"IFERROR(INDEX('Data Annex'!$K$1:$BA$5047,MATCH(Q$1&\"|\"&$B16,'Data Annex'!$K$1:$K$5047,0),MATCH(Q$2,'Data Annex'!$K$1:$BA$1,0)),\"\")","v":0},{"$f":"IFERROR(INDEX('Data Annex'!$K$1:$BA$5047,MATCH(R$1&\"|\"&$B16,'Data Annex'!$K$1:$K$5047,0),MATCH(R$2,'Data Annex'!$K$1:$BA$1,0)),\"\")","v":6.4554221999999998E-3},{"$f":"IFERROR(INDEX('Data Annex'!$K$1:$BA$5047,MATCH(S$1&\"|\"&$B16,'Data Annex'!$K$1:$K$5047,0),MATCH(S$2,'Data Annex'!$K$1:$BA$1,0)),\"\")","v":7.16638302E-2},{"$f":"IFERROR(INDEX('Data Annex'!$K$1:$BA$5047,MATCH(T$1&\"|\"&$B16,'Data Annex'!$K$1:$K$5047,0),MATCH(T$2,'Data Annex'!$K$1:$BA$1,0)),\"\")","v":4.1927913400000003E-2},{"$f":"IFERROR(INDEX('Data Annex'!$K$1:$BA$5047,MATCH(U$1&\"|\"&$B16,'Data Annex'!$K$1:$K$5047,0),MATCH(U$2,'Data Annex'!$K$1:$BA$1,0)),\"\")","v":0},{"$f":"IFERROR(INDEX('Data Annex'!$K$1:$BA$5047,MATCH(V$1&\"|\"&$B16,'Data Annex'!$K$1:$K$5047,0),MATCH(V$2,'Data Annex'!$K$1:$BA$1,0)),\"\")","v":0.99023814210000005},{"$f":"IFERROR(INDEX('Data Annex'!$K$1:$BA$5047,MATCH(W$1&\"|\"&$B16,'Data Annex'!$K$1:$K$5047,0),MATCH(W$2,'Data Annex'!$K$1:$BA$1,0)),\"\")","v":0.88644962230000002},{"$f":"IFERROR(INDEX('Data Annex'!$K$1:$BA$5047,MATCH(X$1&\"|\"&$B16,'Data Annex'!$K$1:$K$5047,0),MATCH(X$2,'Data Annex'!$K$1:$BA$1,0)),\"\")","v":0.76352937060000003}]
[4,"CY",null,"CY",{"$f":"IFERROR(INDEX('Data Annex'!$K$1:$BA$5047,MATCH(E$1&\"|\"&$B17,'Data Annex'!$K$1:$K$5047,0),MATCH(E$2,'Data Annex'!$K$1:$BA$1,0)),\"\")","v":0},{"$f":"IFERROR(INDEX('Data Annex'!$K$1:$BA$5047,MATCH(F$1&\"|\"&$B17,'Data Annex'!$K$1:$K$5047,0),MATCH(F$2,'Data Annex'!$K$1:$BA$1,0)),\"\")","v":0},{"$f":"IFERROR(INDEX('Data Annex'!$K$1:$BA$5047,MATCH(G$1&\"|\"&$B17,'Data Annex'!$K$1:$K$5047,0),MATCH(G$2,'Data Annex'!$K$1:$BA$1,0)),\"\")","v":0},{"$f":"IFERROR(INDEX('Data Annex'!$K$1:$BA$5047,MATCH(H$1&\"|\"&$B17,'Data Annex'!$K$1:$K$5047,0),MATCH(H$2,'Data Annex'!$K$1:$BA$1,0)),\"\")","v":0},{"$f":"IFERROR(INDEX('Data Annex'!$K$1:$BA$5047,MATCH(I$1&\"|\"&$B17,'Data Annex'!$K$1:$K$5047,0),MATCH(I$2,'Data Annex'!$K$1:$BA$1,0)),\"\")","v":0},{"$f":"IFERROR(INDEX('Data Annex'!$K$1:$BA$5047,MATCH(J$1&\"|\"&$B17,'Data Annex'!$K$1:$K$5047,0),MATCH(J$2,'Data Annex'!$K$1:$BA$1,0)),\"\")","v":0},{"$f":"IFERROR(INDEX('Data Annex'!$K$1:$BA$5047,MATCH(K$1&\"|\"&$B17,'Data Annex'!$K$1:$K$5047,0),MATCH(K$2,'Data Annex'!$K$1:$BA$1,0)),\"\")","v":0},{"$f":"IFERROR(INDEX('Data Annex'!$K$1:$BA$5047,MATCH(L$1&\"|\"&$B17,'Data Annex'!$K$1:$K$5047,0),MATCH(L$2,'Data Annex'!$K$1:$BA$1,0)),\"\")","v":0},{"$f":"IFERROR(INDEX('Data Annex'!$K$1:$BA$5047,MATCH(M$1&\"|\"&$B17,'Data Annex'!$K$1:$K$5047,0),MATCH(M$2,'Data Annex'!$K$1:$BA$1,0)),\"\")","v":0},{"$f":"IFERROR(INDEX('Data Annex'!$K$1:$BA$5047,MATCH(N$1&\"|\"&$B17,'Data Annex'!$K$1:$K$5047,0),MATCH(N$2,'Data Annex'!$K$1:$BA$1,0)),\"\")","v":0},{"$f":"IFERROR(INDEX('Data Annex'!$K$1:$BA$5047,MATCH(O$1&\"|\"&$B17,'Data Annex'!$K$1:$K$5047,0),MATCH(O$2,'Data Annex'!$K$1:$BA$1,0)),\"\")","v":0},{"$f":"IFERROR(INDEX('Data Annex'!$K$1:$BA$5047,MATCH(P$1&\"|\"&$B17,'Data Annex'!$K$1:$K$5047,0),MATCH(P$2,'Data Annex'!$K$1:$BA$1,0)),\"\")","v":0},{"$f":"IFERROR(INDEX('Data Annex'!$K$1:$BA$5047,MATCH(Q$1&\"|\"&$B17,'Data Annex'!$K$1:$K$5047,0),MATCH(Q$2,'Data Annex'!$K$1:$BA$1,0)),\"\")","v":0},{"$f":"IFERROR(INDEX('Data Annex'!$K$1:$BA$5047,MATCH(R$1&\"|\"&$B17,'Data Annex'!$K$1:$K$5047,0),MATCH(R$2,'Data Annex'!$K$1:$BA$1,0)),\"\")","v":0},{"$f":"IFERROR(INDEX('Data Annex'!$K$1:$BA$5047,MATCH(S$1&\"|\"&$B17,'Data Annex'!$K$1:$K$5047,0),MATCH(S$2,'Data Annex'!$K$1:$BA$1,0)),\"\")","v":0},{"$f":"IFERROR(INDEX('Data Annex'!$K$1:$BA$5047,MATCH(T$1&\"|\"&$B17,'Data Annex'!$K$1:$K$5047,0),MATCH(T$2,'Data Annex'!$K$1:$BA$1,0)),\"\")","v":0},{"$f":"IFERROR(INDEX('Data Annex'!$K$1:$BA$5047,MATCH(U$1&\"|\"&$B17,'Data Annex'!$K$1:$K$5047,0),MATCH(U$2,'Data Annex'!$K$1:$BA$1,0)),\"\")","v":0},{"$f":"IFERROR(INDEX('Data Annex'!$K$1:$BA$5047,MATCH(V$1&\"|\"&$B17,'Data Annex'!$K$1:$K$5047,0),MATCH(V$2,'Data Annex'!$K$1:$BA$1,0)),\"\")","v":0},{"$f":"IFERROR(INDEX('Data Annex'!$K$1:$BA$5047,MATCH(W$1&\"|\"&$B17,'Data Annex'!$K$1:$K$5047,0),MATCH(W$2,'Data Annex'!$K$1:$BA$1,0)),\"\")","v":0},{"$f":"IFERROR(INDEX('Data Annex'!$K$1:$BA$5047,MATCH(X$1&\"|\"&$B17,'Data Annex'!$K$1:$K$5047,0),MATCH(X$2,'Data Annex'!$K$1:$BA$1,0)),\"\")","v":0}]
[5,"CZ",null,"CZ",{"$f":"IFERROR(INDEX('Data Annex'!$K$1:$BA$5047,MATCH(E$1&\"|\"&$B18,'Data Annex'!$K$1:$K$5047,0),MATCH(E$2,'Data Annex'!$K$1:$BA$1,0)),\"\")","v":""},{"$f":"IFERROR(INDEX('Data Annex'!$K$1:$BA$5047,MATCH(F$1&\"|\"&$B18,'Data Annex'!$K$1:$K$5047,0),MATCH(F$2,'Data Annex'!$K$1:$BA$1,0)),\"\")","v":""},{"$f":"IFERROR(INDEX('Data Annex'!$K$1:$BA$5047,MATCH(G$1&\"|\"&$B18,'Data Annex'!$K$1:$K$5047,0),MATCH(G$2,'Data Annex'!$K$1:$BA$1,0)),\"\")","v":""},{"$f":"IFERROR(INDEX('Data Annex'!$K$1:$BA$5047,MATCH(H$1&\"|\"&$B18,'Data Annex'!$K$1:$K$5047,0),MATCH(H$2,'Data Annex'!$K$1:$BA$1,0)),\"\")","v":""},{"$f":"IFERROR(INDEX('Data Annex'!$K$1:$BA$5047,MATCH(I$1&\"|\"&$B18,'Data Annex'!$K$1:$K$5047,0),MATCH(I$2,'Data Annex'!$K$1:$BA$1,0)),\"\")","v":""},{"$f":"IFERROR(INDEX('Data Annex'!$K$1:$BA$5047,MATCH(J$1&\"|\"&$B18,'Data Annex'!$K$1:$K$5047,0),MATCH(J$2,'Data Annex'!$K$1:$BA$1,0)),\"\")","v":""},{"$f":"IFERROR(INDEX('Data Annex'!$K$1:$BA$5047,MATCH(K$1&\"|\"&$B18,'Data Annex'!$K$1:$K$5047,0),MATCH(K$2,'Data Annex'!$K$1:$BA$1,0)),\"\")","v":""},{"$f":"IFERROR(INDEX('Data Annex'!$K$1:$BA$5047,MATCH(L$1&\"|\"&$B18,'Data Annex'!$K$1:$K$5047,0),MATCH(L$2,'Data Annex'!$K$1:$BA$1,0)),\"\")","v":""},{"$f":"IFERROR(INDEX('Data Annex'!$K$1:$BA$5047,MATCH(M$1&\"|\"&$B18,'Data Annex'!$K$1:$K$5047,0),MATCH(M$2,'Data Annex'!$K$1:$BA$1,0)),\"\")","v":""},{"$f":"IFERROR(INDEX('Data Annex'!$K$1:$BA$5047,MATCH(N$1&\"|\"&$B18,'Data Annex'!$K$1:$K$5047,0),MATCH(N$2,'Data Annex'!$K$1:$BA$1,0)),\"\")","v":""},{"$f":"IFERROR(INDEX('Data Annex'!$K$1:$BA$5047,MATCH(O$1&\"|\"&$B18,'Data Annex'!$K$1:$K$5047,0),MATCH(O$2,'Data Annex'!$K$1:$BA$1,0)),\"\")","v":""},{"$f":"IFERROR(INDEX('Data Annex'!$K$1:$BA$5047,MATCH(P$1&\"|\"&$B18,'Data Annex'!$K$1:$K$5047,0),MATCH(P$2,'Data Annex'!$K$1:$BA$1,0)),\"\")","v":""},{"$f":"IFERROR(INDEX('Data Annex'!$K$1:$BA$5047,MATCH(Q$1&\"|\"&$B18,'Data Annex'!$K$1:$K$5047,0),MATCH(Q$2,'Data Annex'!$K$1:$BA$1,0)),\"\")","v":""},{"$f":"IFERROR(INDEX('Data Annex'!$K$1:$BA$5047,MATCH(R$1&\"|\"&$B18,'Data Annex'!$K$1:$K$5047,0),MATCH(R$2,'Data Annex'!$K$1:$BA$1,0)),\"\")","v":""},{"$f":"IFERROR(INDEX('Data Annex'!$K$1:$BA$5047,MATCH(S$1&\"|\"&$B18,'Data Annex'!$K$1:$K$5047,0),MATCH(S$2,'Data Annex'!$K$1:$BA$1,0)),\"\")","v":""},{"$f":"IFERROR(INDEX('Data Annex'!$K$1:$BA$5047,MATCH(T$1&\"|\"&$B18,'Data Annex'!$K$1:$K$5047,0),MATCH(T$2,'Data Annex'!$K$1:$BA$1,0)),\"\")","v":""},{"$f":"IFERROR(INDEX('Data Annex'!$K$1:$BA$5047,MATCH(U$1&\"|\"&$B18,'Data Annex'!$K$1:$K$5047,0),MATCH(U$2,'Data Annex'!$K$1:$BA$1,0)),\"\")","v":""},{"$f":"IFERROR(INDEX('Data Annex'!$K$1:$BA$5047,MATCH(V$1&\"|\"&$B18,'Data Annex'!$K$1:$K$5047,0),MATCH(V$2,'Data Annex'!$K$1:$BA$1,0)),\"\")","v":""},{"$f":"IFERROR(INDEX('Data Annex'!$K$1:$BA$5047,MATCH(W$1&\"|\"&$B18,'Data Annex'!$K$1:$K$5047,0),MATCH(W$2,'Data Annex'!$K$1:$BA$1,0)),\"\")","v":""},{"$f":"IFERROR(INDEX('Data Annex'!$K$1:$BA$5047,MATCH(X$1&\"|\"&$B18,'Data Annex'!$K$1:$K$5047,0),MATCH(X$2,'Data Annex'!$K$1:$BA$1,0)),\"\")","v":""}]
[6,"DE",null,"DE",{"$f":"IFERROR(INDEX('Data Annex'!$K$1:$BA$5047,MATCH(E$1&\"|\"&$B19,'Data Annex'!$K$1:$K$5047,0),MATCH(E$2,'Data Annex'!$K$1:$BA$1,0)),\"\")","v":0},{"$f":"IFERROR(INDEX('Data Annex'!$K$1:$BA$5047,MATCH(F$1&\"|\"&$B19,'Data Annex'!$K$1:$K$5047,0),MATCH(F$2,'Data Annex'!$K$1:$BA$1,0)),\"\")","v":4.1715970756000003},{"$f":"IFERROR(INDEX('Data Annex'!$K$1:$BA$5047,MATCH(G$1&\"|\"&$B19,'Data Annex'!$K$1:$K$5047,0),MATCH(G$2,'Data Annex'!$K$1:$BA$1,0)),\"\")","v":7.7858321702},{"$f":"IFERROR(INDEX('Data Annex'!$K$1:$BA$5047,MATCH(H$1&\"|\"&$B19,'Data Annex'!$K$1:$K$5047,0),MATCH(H$2,'Data Annex'!$K$1:$BA$1,0)),\"\")","v":9.9029126616000003},{"$f":"IFERROR(INDEX('Data Annex'!$K$1:$BA$5047,MATCH(I$1&\"|\"&$B19,'Data Annex'!$K$1:$K$5047,0),MATCH(I$2,'Data Annex'!$K$1:$BA$1,0)),\"\")","v":0},{"$f":"IFERROR(INDEX('Data Annex'!$K$1:$BA$5047,MATCH(J$1&\"|\"&$B19,'Data Annex'!$K$1:$K$5047,0),MATCH(J$2,'Data Annex'!$K$1:$BA$1,0)),\"\")","v":1.60385054E-2},{"$f":"IFERROR(INDEX('Data Annex'!$K$1:$BA$5047,MATCH(K$1&\"|\"&$B19,'Data Annex'!$K$1:$K$5047,0),MATCH(K$2,'Data Annex'!$K$1:$BA$1,0)),\"\")","v":2.1504805599999999E-2},{"$f":"IFERROR(INDEX('Data Annex'!$K$1:$BA$5047,MATCH(L$1&\"|\"&$B19,'Data Annex'!$K$1:$K$5047,0),MATCH(L$2,'Data Annex'!$K$1:$BA$1,0)),\"\")","v":5.2018729899999998E-2},{"$f":"IFERROR(INDEX('Data Annex'!$K$1:$BA$5047,MATCH(M$1&\"|\"&$B19,'Data Annex'!$K$1:$K$5047,0),MATCH(M$2,'Data Annex'!$K$1:$BA$1,0)),\"\")","v":0},{"$f":"IFERROR(INDEX('Data Annex'!$K$1:$BA$5047,MATCH(N$1&\"|\"&$B19,'Data Annex'!$K$1:$K$5047,0),MATCH(N$2,'Data Annex'!$K$1:$BA$1,0)),\"\")","v":4.6165086899999999E-2},{"$f":"IFERROR(INDEX('Data Annex'!$K$1:$BA$5047,MATCH(O$1&\"|\"&$B19,'Data Annex'!$K$1:$K$5047,0),MATCH(O$2,'Data Annex'!$K$1:$BA$1,0)),\"\")","v":6.1741745200000003E-2},{"$f":"IFERROR(INDEX('Data Annex'!$K$1:$BA$5047,MATCH(P$1&\"|\"&$B19,'Data Annex'!$K$1:$K$5047,0),MATCH(P$2,'Data Annex'!$K$1:$BA$1,0)),\"\")","v":1.6288042199999998E-2},{"$f":"IFERROR(INDEX('Data Annex'!$K$1:$BA$5047,MATCH(Q$1&\"|\"&$B19,'Data Annex'!$K$1:$K$5047,0),MATCH(Q$2,'Data Annex'!$K$1:$BA$1,0)),\"\")","v":0},{"$f":"IFERROR(INDEX('Data Annex'!$K$1:$BA$5047,MATCH(R$1&\"|\"&$B19,'Data Annex'!$K$1:$K$5047,0),MATCH(R$2,'Data Annex'!$K$1:$BA$1,0)),\"\")","v":0.1023934752},{"$f":"IFERROR(INDEX('Data Annex'!$K$1:$BA$5047,MATCH(S$1&\"|\"&$B19,'Data Annex'!$K$1:$K$5047,0),MATCH(S$2,'Data Annex'!$K$1:$BA$1,0)),\"\")","v":0.1111240803},{"$f":"IFERROR(INDEX('Data Annex'!$K$1:$BA$5047,MATCH(T$1&\"|\"&$B19,'Data Annex'!$K$1:$K$5047,0),MATCH(T$2,'Data Annex'!$K$1:$BA$1,0)),\"\")","v":0.1223419565},{"$f":"IFERROR(INDEX('Data Annex'!$K$1:$BA$5047,MATCH(U$1&\"|\"&$B19,'Data Annex'!$K$1:$K$5047,0),MATCH(U$2,'Data Annex'!$K$1:$BA$1,0)),\"\")","v":0},{"$f":"IFERROR(INDEX('Data Annex'!$K$1:$BA$5047,MATCH(V$1&\"|\"&$B19,'Data Annex'!$K$1:$K$5047,0),MATCH(V$2,'Data Annex'!$K$1:$BA$1,0)),\"\")","v":0.66657263089999996},{"$f":"IFERROR(INDEX('Data Annex'!$K$1:$BA$5047,MATCH(W$1&\"|\"&$B19,'Data Annex'!$K$1:$K$5047,0),MATCH(W$2,'Data Annex'!$K$1:$BA$1,0)),\"\")","v":0.46770474950000002},{"$f":"IFERROR(INDEX('Data Annex'!$K$1:$BA$5047,MATCH(X$1&\"|\"&$B19,'Data Annex'!$K$1:$K$5047,0),MATCH(X$2,'Data Annex'!$K$1:$BA$1,0)),\"\")","v":0.43454094669999999}]
[7,"DK",null,"DK",{"$f":"IFERROR(INDEX('Data Annex'!$K$1:$BA$5047,MATCH(E$1&\"|\"&$B20,'Data Annex'!$K$1:$K$5047,0),MATCH(E$2,'Data Annex'!$K$1:$BA$1,0)),\"\")","v":0},{"$f":"IFERROR(INDEX('Data Annex'!$K$1:$BA$5047,MATCH(F$1&\"|\"&$B20,'Data Annex'!$K$1:$K$5047,0),MATCH(F$2,'Data Annex'!$K$1:$BA$1,0)),\"\")","v":0.63266373269999998},{"$f":"IFERROR(INDEX('Data Annex'!$K$1:$BA$5047,MATCH(G$1&\"|\"&$B20,'Data Annex'!$K$1:$K$5047,0),MATCH(G$2,'Data Annex'!$K$1:$BA$1,0)),\"\")","v":0.8294790662},{"$f":"IFERROR(INDEX('Data Annex'!$K$1:$BA$5047,MATCH(H$1&\"|\"&$B20,'Data Annex'!$K$1:$K$5047,0),MATCH(H$2,'Data Annex'!$K$1:$BA$1,0)),\"\")","v":0.81984727420000003},{"$f":"IFERROR(INDEX('Data Annex'!$K$1:$BA$5047,MATCH(I$1&\"|\"&$B20,'Data Annex'!$K$1:$K$5047,0),MATCH(I$2,'Data Annex'!$K$1:$BA$1,0)),\"\")","v":0},{"$f":"IFERROR(INDEX('Data Annex'!$K$1:$BA$5047,MATCH(J$1&\"|\"&$B20,'Data Annex'!$K$1:$K$5047,0),MATCH(J$2,'Data Annex'!$K$1:$BA$1,0)),\"\")","v":0},{"$f":"IFERROR(INDEX('Data Annex'!$K$1:$BA$5047,MATCH(K$1&\"|\"&$B20,'Data Annex'!$K$1:$K$5047,0),MATCH(K$2,'Data Annex'!$K$1:$BA$1,0)),\"\")","v":0},{"$f":"IFERROR(INDEX('Data Annex'!$K$1:$BA$5047,MATCH(L$1&\"|\"&$B20,'Data Annex'!$K$1:$K$5047,0),MATCH(L$2,'Data Annex'!$K$1:$BA$1,0)),\"\")","v":0},{"$f":"IFERROR(INDEX('Data Annex'!$K$1:$BA$5047,MATCH(M$1&\"|\"&$B20,'Data Annex'!$K$1:$K$5047,0),MATCH(M$2,'Data Annex'!$K$1:$BA$1,0)),\"\")","v":0},{"$f":"IFERROR(INDEX('Data Annex'!$K$1:$BA$5047,MATCH(N$1&\"|\"&$B20,'Data Annex'!$K$1:$K$5047,0),MATCH(N$2,'Data Annex'!$K$1:$BA$1,0)),\"\")","v":0},{"$f":"IFERROR(INDEX('Data Annex'!$K$1:$BA$5047,MATCH(O$1&\"|\"&$B20,'Data Annex'!$K$1:$K$5047,0),MATCH(O$2,'Data Annex'!$K$1:$BA$1,0)),\"\")","v":0},{"$f":"IFERROR(INDEX('Data Annex'!$K$1:$BA$5047,MATCH(P$1&\"|\"&$B20,'Data Annex'!$K$1:$K$5047,0),MATCH(P$2,'Data Annex'!$K$1:$BA$1,0)),\"\")","v":0},{"$f":"IFERROR(INDEX('Data Annex'!$K$1:$BA$5047,MATCH(Q$1&\"|\"&$B20,'Data Annex'!$K$1:$K$5047,0),MATCH(Q$2,'Data Annex'!$K$1:$BA$1,0)),\"\")","v":0},{"$f":"IFERROR(INDEX('Data Annex'!$K$1:$BA$5047,MATCH(R$1&\"|\"&$B20,'Data Annex'!$K$1:$K$5047,0),MATCH(R$2,'Data Annex'!$K$1:$BA$1,0)),\"\")","v":0},{"$f":"IFERROR(INDEX('Data Annex'!$K$1:$BA$5047,MATCH(S$1&\"|\"&$B20,'Data Annex'!$K$1:$K$5047,0),MATCH(S$2,'Data Annex'!$K$1:$BA$1,0)),\"\")","v":0},{"$f":"IFERROR(INDEX('Data Annex'!$K$1:$BA$5047,MATCH(T$1&\"|\"&$B20,'Data Annex'!$K$1:$K$5047,0),MATCH(T$2,'Data Annex'!$K$1:$BA$1,0)),\"\")","v":0},{"$f":"IFERROR(INDEX('Data Annex'!$K$1:$BA$5047,MATCH(U$1&\"|\"&$B20,'Data Annex'!$K$1:$K$5047,0),MATCH(U$2,'Data Annex'!$K$1:$BA$1,0)),\"\")","v":0},{"$f":"IFERROR(INDEX('Data Annex'!$K$1:$BA$5047,MATCH(V$1&\"|\"&$B20,'Data Annex'!$K$1:$K$5047,0),MATCH(V$2,'Data Annex'!$K$1:$BA$1,0)),\"\")","v":0},{"$f":"IFERROR(INDEX('Data Annex'!$K$1:$BA$5047,MATCH(W$1&\"|\"&$B20,'Data Annex'!$K$1:$K$5047,0),MATCH(W$2,'Data Annex'!$K$1:$BA$1,0)),\"\")","v":0},{"$f":"IFERROR(INDEX('Data Annex'!$K$1:$BA$5047,MATCH(X$1&\"|\"&$B20,'Data Annex'!$K$1:$K$5047,0),MATCH(X$2,'Data Annex'!$K$1:$BA$1,0)),\"\")","v":0}]
[8,"EE",null,"EE",{"$f":"IFERROR(INDEX('Data Annex'!$K$1:$BA$5047,MATCH(E$1&\"|\"&$B21,'Data Annex'!$K$1:$K$5047,0),MATCH(E$2,'Data Annex'!$K$1:$BA$1,0)),\"\")","v":0},{"$f":"IFERROR(INDEX('Data Annex'!$K$1:$BA$5047,MATCH(F$1&\"|\"&$B21,'Data Annex'!$K$1:$K$5047,0),MATCH(F$2,'Data Annex'!$K$1:$BA$1,0)),\"\")","v":5.948526E-3},{"$f":"IFERROR(INDEX('Data Annex'!$K$1:$BA$5047,MATCH(G$1&\"|\"&$B21,'Data Annex'!$K$1:$K$5047,0),MATCH(G$2,'Data Annex'!$K$1:$BA$1,0)),\"\")","v":2.1211969300000001E-2},{"$f":"IFERROR(INDEX('Data Annex'!$K$1:$BA$5047,MATCH(H$1&\"|\"&$B21,'Data Annex'!$K$1:$K$5047,0),MATCH(H$2,'Data Annex'!$K$1:$BA$1,0)),\"\")","v":4.1189402799999997E-2},{"$f":"IFERROR(INDEX('Data Annex'!$K$1:$BA$5047,MATCH(I$1&\"|\"&$B21,'Data Annex'!$K$1:$K$5047,0),MATCH(I$2,'Data Annex'!$K$1:$BA$1,0)),\"\")","v":0},{"$f":"IFERROR(INDEX('Data Annex'!$K$1:$BA$5047,MATCH(J$1&\"|\"&$B21,'Data Annex'!$K$1:$K$5047,0),MATCH(J$2,'Data Annex'!$K$1:$BA$1,0)),\"\")","v":9.1929144500000004E-2},{"$f":"IFERROR(INDEX('Data Annex'!$K$1:$BA$5047,MATCH(K$1&\"|\"&$B21,'Data Annex'!$K$1:$K$5047,0),MATCH(K$2,'Data Annex'!$K$1:$BA$1,0)),\"\")","v":5.0477745099999999E-2},{"$f":"IFERROR(INDEX('Data Annex'!$K$1:$BA$5047,MATCH(L$1&\"|\"&$B21,'Data Annex'!$K$1:$K$5047,0),MATCH(L$2,'Data Annex'!$K$1:$BA$1,0)),\"\")","v":2.5095587999999999E-2},{"$f":"IFERROR(INDEX('Data Annex'!$K$1:$BA$5047,MATCH(M$1&\"|\"&$B21,'Data Annex'!$K$1:$K$5047,0),MATCH(M$2,'Data Annex'!$K$1:$BA$1,0)),\"\")","v":0},{"$f":"IFERROR(INDEX('Data Annex'!$K$1:$BA$5047,MATCH(N$1&\"|\"&$B21,'Data Annex'!$K$1:$K$5047,0),MATCH(N$2,'Data Annex'!$K$1:$BA$1,0)),\"\")","v":0.22832362010000001},{"$f":"IFERROR(INDEX('Data Annex'!$K$1:$BA$5047,MATCH(O$1&\"|\"&$B21,'Data Annex'!$K$1:$K$5047,0),MATCH(O$2,'Data Annex'!$K$1:$BA$1,0)),\"\")","v":4.3984128999999999E-3},{"$f":"IFERROR(INDEX('Data Annex'!$K$1:$BA$5047,MATCH(P$1&\"|\"&$B21,'Data Annex'!$K$1:$K$5047,0),MATCH(P$2,'Data Annex'!$K$1:$BA$1,0)),\"\")","v":6.1517049300000001E-2},{"$f":"IFERROR(INDEX('Data Annex'!$K$1:$BA$5047,MATCH(Q$1&\"|\"&$B21,'Data Annex'!$K$1:$K$5047,0),MATCH(Q$2,'Data Annex'!$K$1:$BA$1,0)),\"\")","v":0},{"$f":"IFERROR(INDEX('Data Annex'!$K$1:$BA$5047,MATCH(R$1&\"|\"&$B21,'Data Annex'!$K$1:$K$5047,0),MATCH(R$2,'Data Annex'!$K$1:$BA$1,0)),\"\")","v":0.21155543260000001},{"$f":"IFERROR(INDEX('Data Annex'!$K$1:$BA$5047,MATCH(S$1&\"|\"&$B21,'Data Annex'!$K$1:$K$5047,0),MATCH(S$2,'Data Annex'!$K$1:$BA$1,0)),\"\")","v":0.32399858320000002},{"$f":"IFERROR(INDEX('Data Annex'!$K$1:$BA$5047,MATCH(T$1&\"|\"&$B21,'Data Annex'!$K$1:$K$5047,0),MATCH(T$2,'Data Annex'!$K$1:$BA$1,0)),\"\")","v":0.23043456239999999},{"$f":"IFERROR(INDEX('Data Annex'!$K$1:$BA$5047,MATCH(U$1&\"|\"&$B21,'Data Annex'!$K$1:$K$5047,0),MATCH(U$2,'Data Annex'!$K$1:$BA$1,0)),\"\")","v":0},{"$f":"IFERROR(INDEX('Data Annex'!$K$1:$BA$5047,MATCH(V$1&\"|\"&$B21,'Data Annex'!$K$1:$K$5047,0),MATCH(V$2,'Data Annex'!$K$1:$BA$1,0)),\"\")","v":0.39254381910000002},{"$f":"IFERROR(INDEX('Data Annex'!$K$1:$BA$5047,MATCH(W$1&\"|\"&$B21,'Data Annex'!$K$1:$K$5047,0),MATCH(W$2,'Data Annex'!$K$1:$BA$1,0)),\"\")","v":0.52669008530000005},{"$f":"IFERROR(INDEX('Data Annex'!$K$1:$BA$5047,MATCH(X$1&\"|\"&$B21,'Data Annex'!$K$1:$K$5047,0),MATCH(X$2,'Data Annex'!$K$1:$BA$1,0)),\"\")","v":0.54981246240000003}]
[9,"ES",null,"ES",{"$f":"IFERROR(INDEX('Data Annex'!$K$1:$BA$5047,MATCH(E$1&\"|\"&$B22,'Data Annex'!$K$1:$K$5047,0),MATCH(E$2,'Data Annex'!$K$1:$BA$1,0)),\"\")","v":0},{"$f":"IFERROR(INDEX('Data Annex'!$K$1:$BA$5047,MATCH(F$1&\"|\"&$B22,'Data Annex'!$K$1:$K$5047,0),MATCH(F$2,'Data Annex'!$K$1:$BA$1,0)),\"\")","v":73.273316101000006},{"$f":"IFERROR(INDEX('Data Annex'!$K$1:$BA$5047,MATCH(G$1&\"|\"&$B22,'Data Annex'!$K$1:$K$5047,0),MATCH(G$2,'Data Annex'!$K$1:$BA$1,0)),\"\")","v":92.142179186999996},{"$f":"IFERROR(INDEX('Data Annex'!$K$1:$BA$5047,MATCH(H$1&\"|\"&$B22,'Data Annex'!$K$1:$K$5047,0),MATCH(H$2,'Data Annex'!$K$1:$BA$1,0)),\"\")","v":102.07036134000001},{"$f":"IFERROR(INDEX('Data Annex'!$K$1:$BA$5047,MATCH(I$1&\"|\"&$B22,'Data Annex'!$K$1:$K$5047,0),MATCH(I$2,'Data Annex'!$K$1:$BA$1,0)),\"\")","v":0},{"$f":"IFERROR(INDEX('Data Annex'!$K$1:$BA$5047,MATCH(J$1&\"|\"&$B22,'Data Annex'!$K$1:$K$5047,0),MATCH(J$2,'Data Annex'!$K$1:$BA$1,0)),\"\")","v":2.34177393E-2},{"$f":"IFERROR(INDEX('Data Annex'!$K$1:$BA$5047,MATCH(K$1&\"|\"&$B22,'Data Annex'!$K$1:$K$5047,0),MATCH(K$2,'Data Annex'!$K$1:$BA$1,0)),\"\")","v":4.2532754300000003E-2},{"$f":"IFERROR(INDEX('Data Annex'!$K$1:$BA$5047,MATCH(L$1&\"|\"&$B22,'Data Annex'!$K$1:$K$5047,0),MATCH(L$2,'Data Annex'!$K$1:$BA$1,0)),\"\")","v":1.6227309499999999E-2},{"$f":"IFERROR(INDEX('Data Annex'!$K$1:$BA$5047,MATCH(M$1&\"|\"&$B22,'Data Annex'!$K$1:$K$5047,0),MATCH(M$2,'Data Annex'!$K$1:$BA$1,0)),\"\")","v":0},{"$f":"IFERROR(INDEX('Data Annex'!$K$1:$BA$5047,MATCH(N$1&\"|\"&$B22,'Data Annex'!$K$1:$K$5047,0),MATCH(N$2,'Data Annex'!$K$1:$BA$1,0)),\"\")","v":3.10698841E-2},{"$f":"IFERROR(INDEX('Data Annex'!$K$1:$BA$5047,MATCH(O$1&\"|\"&$B22,'Data Annex'!$K$1:$K$5047,0),MATCH(O$2,'Data Annex'!$K$1:$BA$1,0)),\"\")","v":5.3115481899999997E-2},{"$f":"IFERROR(INDEX('Data Annex'!$K$1:$BA$5047,MATCH(P$1&\"|\"&$B22,'Data Annex'!$K$1:$K$5047,0),MATCH(P$2,'Data Annex'!$K$1:$BA$1,0)),\"\")","v":1.07191388E-2},{"$f":"IFERROR(INDEX('Data Annex'!$K$1:$BA$5047,MATCH(Q$1&\"|\"&$B22,'Data Annex'!$K$1:$K$5047,0),MATCH(Q$2,'Data Annex'!$K$1:$BA$1,0)),\"\")","v":0},{"$f":"IFERROR(INDEX('Data Annex'!$K$1:$BA$5047,MATCH(R$1&\"|\"&$B22,'Data Annex'!$K$1:$K$5047,0),MATCH(R$2,'Data Annex'!$K$1:$BA$1,0)),\"\")","v":6.9779310999999997E-2},{"$f":"IFERROR(INDEX('Data Annex'!$K$1:$BA$5047,MATCH(S$1&\"|\"&$B22,'Data Annex'!$K$1:$K$5047,0),MATCH(S$2,'Data Annex'!$K$1:$BA$1,0)),\"\")","v":3.3754068399999997E-2},{"$f":"IFERROR(INDEX('Data Annex'!$K$1:$BA$5047,MATCH(T$1&\"|\"&$B22,'Data Annex'!$K$1:$K$5047,0),MATCH(T$2,'Data Annex'!$K$1:$BA$1,0)),\"\")","v":5.8351123800000002E-2},{"$f":"IFERROR(INDEX('Data Annex'!$K$1:$BA$5047,MATCH(U$1&\"|\"&$B22,'Data Annex'!$K$1:$K$5047,0),MATCH(U$2,'Data Annex'!$K$1:$BA$1,0)),\"\")","v":0},{"$f":"IFERROR(INDEX('Data Annex'!$K$1:$BA$5047,MATCH(V$1&\"|\"&$B22,'Data Annex'!$K$1:$K$5047,0),MATCH(V$2,'Data Annex'!$K$1:$BA$1,0)),\"\")","v":0.86575415089999996},{"$f":"IFERROR(INDEX('Data Annex'!$K$1:$BA$5047,MATCH(W$1&\"|\"&$B22,'Data Annex'!$K$1:$K$5047,0),MATCH(W$2,'Data Annex'!$K$1:$BA$1,0)),\"\")","v":0.85977751690000004},{"$f":"IFERROR(INDEX('Data Annex'!$K$1:$BA$5047,MATCH(X$1&\"|\"&$B22,'Data Annex'!$K$1:$K$5047,0),MATCH(X$2,'Data Annex'!$K$1:$BA$1,0)),\"\")","v":0.90261999510000002}]
[10,"FI",null,"FI",{"$f":"IFERROR(INDEX('Data Annex'!$K$1:$BA$5047,MATCH(E$1&\"|\"&$B23,'Data Annex'!$K$1:$K$5047,0),MATCH(E$2,'Data Annex'!$K$1:$BA$1,0)),\"\")","v":0},{"$f":"IFERROR(INDEX('Data Annex'!$K$1:$BA$5047,MATCH(F$1&\"|\"&$B23,'Data Annex'!$K$1:$K$5047,0),MATCH(F$2,'Data Annex'!$K$1:$BA$1,0)),\"\")","v":0.94342255519999996},{"$f":"IFERROR(INDEX('Data Annex'!$K$1:$BA$5047,MATCH(G$1&\"|\"&$B23,'Data Annex'!$K$1:$K$5047,0),MATCH(G$2,'Data Annex'!$K$1:$BA$1,0)),\"\")","v":1.0849609965},{"$f":"IFERROR(INDEX('Data Annex'!$K$1:$BA$5047,MATCH(H$1&\"|\"&$B23,'Data Annex'!$K$1:$K$5047,0),MATCH(H$2,'Data Annex'!$K$1:$BA$1,0)),\"\")","v":0.99570066170000004},{"$f":"IFERROR(INDEX('Data Annex'!$K$1:$BA$5047,MATCH(I$1&\"|\"&$B23,'Data Annex'!$K$1:$K$5047,0),MATCH(I$2,'Data Annex'!$K$1:$BA$1,0)),\"\")","v":0},{"$f":"IFERROR(INDEX('Data Annex'!$K$1:$BA$5047,MATCH(J$1&\"|\"&$B23,'Data Annex'!$K$1:$K$5047,0),MATCH(J$2,'Data Annex'!$K$1:$BA$1,0)),\"\")","v":4.1694456599999999E-2},{"$f":"IFERROR(INDEX('Data Annex'!$K$1:$BA$5047,MATCH(K$1&\"|\"&$B23,'Data Annex'!$K$1:$K$5047,0),MATCH(K$2,'Data Annex'!$K$1:$BA$1,0)),\"\")","v":0.136269008},{"$f":"IFERROR(INDEX('Data Annex'!$K$1:$BA$5047,MATCH(L$1&\"|\"&$B23,'Data Annex'!$K$1:$K$5047,0),MATCH(L$2,'Data Annex'!$K$1:$BA$1,0)),\"\")","v":3.9073794999999996E-3},{"$f":"IFERROR(INDEX('Data Annex'!$K$1:$BA$5047,MATCH(M$1&\"|\"&$B23,'Data Annex'!$K$1:$K$5047,0),MATCH(M$2,'Data Annex'!$K$1:$BA$1,0)),\"\")","v":0},{"$f":"IFERROR(INDEX('Data Annex'!$K$1:$BA$5047,MATCH(N$1&\"|\"&$B23,'Data Annex'!$K$1:$K$5047,0),MATCH(N$2,'Data Annex'!$K$1:$BA$1,0)),\"\")","v":0.1056389512},{"$f":"IFERROR(INDEX('Data Annex'!$K$1:$BA$5047,MATCH(O$1&\"|\"&$B23,'Data Annex'!$K$1:$K$5047,0),MATCH(O$2,'Data Annex'!$K$1:$BA$1,0)),\"\")","v":5.3114219000000001E-3},{"$f":"IFERROR(INDEX('Data Annex'!$K$1:$BA$5047,MATCH(P$1&\"|\"&$B23,'Data Annex'!$K$1:$K$5047,0),MATCH(P$2,'Data Annex'!$K$1:$BA$1,0)),\"\")","v":0.22596252250000001},{"$f":"IFERROR(INDEX('Data Annex'!$K$1:$BA$5047,MATCH(Q$1&\"|\"&$B23,'Data Annex'!$K$1:$K$5047,0),MATCH(Q$2,'Data Annex'!$K$1:$BA$1,0)),\"\")","v":0},{"$f":"IFERROR(INDEX('Data Annex'!$K$1:$BA$5047,MATCH(R$1&\"|\"&$B23,'Data Annex'!$K$1:$K$5047,0),MATCH(R$2,'Data Annex'!$K$1:$BA$1,0)),\"\")","v":0.24389241549999999},{"$f":"IFERROR(INDEX('Data Annex'!$K$1:$BA$5047,MATCH(S$1&\"|\"&$B23,'Data Annex'!$K$1:$K$5047,0),MATCH(S$2,'Data Annex'!$K$1:$BA$1,0)),\"\")","v":0.35490064090000001},{"$f":"IFERROR(INDEX('Data Annex'!$K$1:$BA$5047,MATCH(T$1&\"|\"&$B23,'Data Annex'!$K$1:$K$5047,0),MATCH(T$2,'Data Annex'!$K$1:$BA$1,0)),\"\")","v":0.1714629436},{"$f":"IFERROR(INDEX('Data Annex'!$K$1:$BA$5047,MATCH(U$1&\"|\"&$B23,'Data Annex'!$K$1:$K$5047,0),MATCH(U$2,'Data Annex'!$K$1:$BA$1,0)),\"\")","v":0},{"$f":"IFERROR(INDEX('Data Annex'!$K$1:$BA$5047,MATCH(V$1&\"|\"&$B23,'Data Annex'!$K$1:$K$5047,0),MATCH(V$2,'Data Annex'!$K$1:$BA$1,0)),\"\")","v":0.54947449449999997},{"$f":"IFERROR(INDEX('Data Annex'!$K$1:$BA$5047,MATCH(W$1&\"|\"&$B23,'Data Annex'!$K$1:$K$5047,0),MATCH(W$2,'Data Annex'!$K$1:$BA$1,0)),\"\")","v":0.35862042989999998},{"$f":"IFERROR(INDEX('Data Annex'!$K$1:$BA$5047,MATCH(X$1&\"|\"&$B23,'Data Annex'!$K$1:$K$5047,0),MATCH(X$2,'Data Annex'!$K$1:$BA$1,0)),\"\")","v":0.42774308519999998}]
[11,"FR",null,"FR",{"$f":"IFERROR(INDEX('Data Annex'!$K$1:$BA$5047,MATCH(E$1&\"|\"&$B24,'Data Annex'!$K$1:$K$5047,0),MATCH(E$2,'Data Annex'!$K$1:$BA$1,0)),\"\")","v":0},{"$f":"IFERROR(INDEX('Data Annex'!$K$1:$BA$5047,MATCH(F$1&\"|\"&$B24,'Data Annex'!$K$1:$K$5047,0),MATCH(F$2,'Data Annex'!$K$1:$BA$1,0)),\"\")","v":78.262653395000001},{"$f":"IFERROR(INDEX('Data Annex'!$K$1:$BA$5047,MATCH(G$1&\"|\"&$B24,'Data Annex'!$K$1:$K$5047,0),MATCH(G$2,'Data Annex'!$K$1:$BA$1,0)),\"\")","v":115.43004242000001},{"$f":"IFERROR(INDEX('Data Annex'!$K$1:$BA$5047,MATCH(H$1&\"|\"&$B24,'Data Annex'!$K$1:$K$5047,0),MATCH(H$2,'Data Annex'!$K$1:$BA$1,0)),\"\")","v":126.79878325999999},{"$f":"IFERROR(INDEX('Data Annex'!$K$1:$BA$5047,MATCH(I$1&\"|\"&$B24,'Data Annex'!$K$1:$K$5047,0),MATCH(I$2,'Data Annex'!$K$1:$BA$1,0)),\"\")","v":0},{"$f":"IFERROR(INDEX('Data Annex'!$K$1:$BA$5047,MATCH(J$1&\"|\"&$B24,'Data Annex'!$K$1:$K$5047,0),MATCH(J$2,'Data Annex'!$K$1:$BA$1,0)),\"\")","v":4.5685841000000001E-3},{"$f":"IFERROR(INDEX('Data Annex'!$K$1:$BA$5047,MATCH(K$1&\"|\"&$B24,'Data Annex'!$K$1:$K$5047,0),MATCH(K$2,'Data Annex'!$K$1:$BA$1,0)),\"\")","v":0.1790437111},{"$f":"IFERROR(INDEX('Data Annex'!$K$1:$BA$5047,MATCH(L$1&\"|\"&$B24,'Data Annex'!$K$1:$K$5047,0),MATCH(L$2,'Data Annex'!$K$1:$BA$1,0)),\"\")","v":0.49898415889999997},{"$f":"IFERROR(INDEX('Data Annex'!$K$1:$BA$5047,MATCH(M$1&\"|\"&$B24,'Data Annex'!$K$1:$K$5047,0),MATCH(M$2,'Data Annex'!$K$1:$BA$1,0)),\"\")","v":0},{"$f":"IFERROR(INDEX('Data Annex'!$K$1:$BA$5047,MATCH(N$1&\"|\"&$B24,'Data Annex'!$K$1:$K$5047,0),MATCH(N$2,'Data Annex'!$K$1:$BA$1,0)),\"\")","v":0.7712302754},{"$f":"IFERROR(INDEX('Data Annex'!$K$1:$BA$5047,MATCH(O$1&\"|\"&$B24,'Data Annex'!$K$1:$K$5047,0),MATCH(O$2,'Data Annex'!$K$1:$BA$1,0)),\"\")","v":0.61176517929999996},{"$f":"IFERROR(INDEX('Data Annex'!$K$1:$BA$5047,MATCH(P$1&\"|\"&$B24,'Data Annex'!$K$1:$K$5047,0),MATCH(P$2,'Data Annex'!$K$1:$BA$1,0)),\"\")","v":0.27331337280000001},{"$f":"IFERROR(INDEX('Data Annex'!$K$1:$BA$5047,MATCH(Q$1&\"|\"&$B24,'Data Annex'!$K$1:$K$5047,0),MATCH(Q$2,'Data Annex'!$K$1:$BA$1,0)),\"\")","v":0},{"$f":"IFERROR(INDEX('Data Annex'!$K$1:$BA$5047,MATCH(R$1&\"|\"&$B24,'Data Annex'!$K$1:$K$5047,0),MATCH(R$2,'Data Annex'!$K$1:$BA$1,0)),\"\")","v":0.14270950569999999},{"$f":"IFERROR(INDEX('Data Annex'!$K$1:$BA$5047,MATCH(S$1&\"|\"&$B24,'Data Annex'!$K$1:$K$5047,0),MATCH(S$2,'Data Annex'!$K$1:$BA$1,0)),\"\")","v":2.8652670299999999E-2},{"$f":"IFERROR(INDEX('Data Annex'!$K$1:$BA$5047,MATCH(T$1&\"|\"&$B24,'Data Annex'!$K$1:$K$5047,0),MATCH(T$2,'Data Annex'!$K$1:$BA$1,0)),\"\")","v":2.14043724E-2},{"$f":"IFERROR(INDEX('Data Annex'!$K$1:$BA$5047,MATCH(U$1&\"|\"&$B24,'Data Annex'!$K$1:$K$5047,0),MATCH(U$2,'Data Annex'!$K$1:$BA$1,0)),\"\")","v":0},{"$f":"IFERROR(INDEX('Data Annex'!$K$1:$BA$5047,MATCH(V$1&\"|\"&$B24,'Data Annex'!$K$1:$K$5047,0),MATCH(V$2,'Data Annex'!$K$1:$BA$1,0)),\"\")","v":8.1491634800000004E-2},{"$f":"IFERROR(INDEX('Data Annex'!$K$1:$BA$5047,MATCH(W$1&\"|\"&$B24,'Data Annex'!$K$1:$K$5047,0),MATCH(W$2,'Data Annex'!$K$1:$BA$1,0)),\"\")","v":3.8593588900000003E-2},{"$f":"IFERROR(INDEX('Data Annex'!$K$1:$BA$5047,MATCH(X$1&\"|\"&$B24,'Data Annex'!$K$1:$K$5047,0),MATCH(X$2,'Data Annex'!$K$1:$BA$1,0)),\"\")","v":3.85539009E-2}]
[13,"GR",null,"GR",{"$f":"IFERROR(INDEX('Data Annex'!$K$1:$BA$5047,MATCH(E$1&\"|\"&$B25,'Data Annex'!$K$1:$K$5047,0),MATCH(E$2,'Data Annex'!$K$1:$BA$1,0)),\"\")","v":0},{"$f":"IFERROR(INDEX('Data Annex'!$K$1:$BA$5047,MATCH(F$1&\"|\"&$B25,'Data Annex'!$K$1:$K$5047,0),MATCH(F$2,'Data Annex'!$K$1:$BA$1,0)),\"\")","v":4.5034551999999999E-2},{"$f":"IFERROR(INDEX('Data Annex'!$K$1:$BA$5047,MATCH(G$1&\"|\"&$B25,'Data Annex'!$K$1:$K$5047,0),MATCH(G$2,'Data Annex'!$K$1:$BA$1,0)),\"\")","v":2.6781155555999998},{"$f":"IFERROR(INDEX('Data Annex'!$K$1:$BA$5047,MATCH(H$1&\"|\"&$B25,'Data Annex'!$K$1:$K$5047,0),MATCH(H$2,'Data Annex'!$K$1:$BA$1,0)),\"\")","v":4.5796178480999998},{"$f":"IFERROR(INDEX('Data Annex'!$K$1:$BA$5047,MATCH(I$1&\"|\"&$B25,'Data Annex'!$K$1:$K$5047,0),MATCH(I$2,'Data Annex'!$K$1:$BA$1,0)),\"\")","v":0},{"$f":"IFERROR(INDEX('Data Annex'!$K$1:$BA$5047,MATCH(J$1&\"|\"&$B25,'Data Annex'!$K$1:$K$5047,0),MATCH(J$2,'Data Annex'!$K$1:$BA$1,0)),\"\")","v":0},{"$f":"IFERROR(INDEX('Data Annex'!$K$1:$BA$5047,MATCH(K$1&\"|\"&$B25,'Data Annex'!$K$1:$K$5047,0),MATCH(K$2,'Data Annex'!$K$1:$BA$1,0)),\"\")","v":0},{"$f":"IFERROR(INDEX('Data Annex'!$K$1:$BA$5047,MATCH(L$1&\"|\"&$B25,'Data Annex'!$K$1:$K$5047,0),MATCH(L$2,'Data Annex'!$K$1:$BA$1,0)),\"\")","v":3.5065699999999999E-5},{"$f":"IFERROR(INDEX('Data Annex'!$K$1:$BA$5047,MATCH(M$1&\"|\"&$B25,'Data Annex'!$K$1:$K$5047,0),MATCH(M$2,'Data Annex'!$K$1:$BA$1,0)),\"\")","v":0},{"$f":"IFERROR(INDEX('Data Annex'!$K$1:$BA$5047,MATCH(N$1&\"|\"&$B25,'Data Annex'!$K$1:$K$5047,0),MATCH(N$2,'Data Annex'!$K$1:$BA$1,0)),\"\")","v":6.5998209999999996E-4},{"$f":"IFERROR(INDEX('Data Annex'!$K$1:$BA$5047,MATCH(O$1&\"|\"&$B25,'Data Annex'!$K$1:$K$5047,0),MATCH(O$2,'Data Annex'!$K$1:$BA$1,0)),\"\")","v":5.3594469000000002E-3},{"$f":"IFERROR(INDEX('Data Annex'!$K$1:$BA$5047,MATCH(P$1&\"|\"&$B25,'Data Annex'!$K$1:$K$5047,0),MATCH(P$2,'Data Annex'!$K$1:$BA$1,0)),\"\")","v":3.2716707999999998E-3},{"$f":"IFERROR(INDEX('Data Annex'!$K$1:$BA$5047,MATCH(Q$1&\"|\"&$B25,'Data Annex'!$K$1:$K$5047,0),MATCH(Q$2,'Data Annex'!$K$1:$BA$1,0)),\"\")","v":0},{"$f":"IFERROR(INDEX('Data Annex'!$K$1:$BA$5047,MATCH(R$1&\"|\"&$B25,'Data Annex'!$K$1:$K$5047,0),MATCH(R$2,'Data Annex'!$K$1:$BA$1,0)),\"\")","v":1.0673739599999999E-2},{"$f":"IFERROR(INDEX('Data Annex'!$K$1:$BA$5047,MATCH(S$1&\"|\"&$B25,'Data Annex'!$K$1:$K$5047,0),MATCH(S$2,'Data Annex'!$K$1:$BA$1,0)),\"\")","v":9.8873449999999996E-4},{"$f":"IFERROR(INDEX('Data Annex'!$K$1:$BA$5047,MATCH(T$1&\"|\"&$B25,'Data Annex'!$K$1:$K$5047,0),MATCH(T$2,'Data Annex'!$K$1:$BA$1,0)),\"\")","v":4.9602444000000001E-3},{"$f":"IFERROR(INDEX('Data Annex'!$K$1:$BA$5047,MATCH(U$1&\"|\"&$B25,'Data Annex'!$K$1:$K$5047,0),MATCH(U$2,'Data Annex'!$K$1:$BA$1,0)),\"\")","v":0},{"$f":"IFERROR(INDEX('Data Annex'!$K$1:$BA$5047,MATCH(V$1&\"|\"&$B25,'Data Annex'!$K$1:$K$5047,0),MATCH(V$2,'Data Annex'!$K$1:$BA$1,0)),\"\")","v":0.98866627829999998},{"$f":"IFERROR(INDEX('Data Annex'!$K$1:$BA$5047,MATCH(W$1&\"|\"&$B25,'Data Annex'!$K$1:$K$5047,0),MATCH(W$2,'Data Annex'!$K$1:$BA$1,0)),\"\")","v":0.99365181849999995},{"$f":"IFERROR(INDEX('Data Annex'!$K$1:$BA$5047,MATCH(X$1&\"|\"&$B25,'Data Annex'!$K$1:$K$5047,0),MATCH(X$2,'Data Annex'!$K$1:$BA$1,0)),\"\")","v":0.99173301889999999}]
[14,"HR",null,"HR",{"$f":"IFERROR(INDEX('Data Annex'!$K$1:$BA$5047,MATCH(E$1&\"|\"&$B26,'Data Annex'!$K$1:$K$5047,0),MATCH(E$2,'Data Annex'!$K$1:$BA$1,0)),\"\")","v":0},{"$f":"IFERROR(INDEX('Data Annex'!$K$1:$BA$5047,MATCH(F$1&\"|\"&$B26,'Data Annex'!$K$1:$K$5047,0),MATCH(F$2,'Data Annex'!$K$1:$BA$1,0)),\"\")","v":3.9254865000000003E-3},{"$f":"IFERROR(INDEX('Data Annex'!$K$1:$BA$5047,MATCH(G$1&\"|\"&$B26,'Data Annex'!$K$1:$K$5047,0),MATCH(G$2,'Data Annex'!$K$1:$BA$1,0)),\"\")","v":1.5969425900000001E-2},{"$f":"IFERROR(INDEX('Data Annex'!$K$1:$BA$5047,MATCH(H$1&\"|\"&$B26,'Data Annex'!$K$1:$K$5047,0),MATCH(H$2,'Data Annex'!$K$1:$BA$1,0)),\"\")","v":4.2617578500000003E-2},{"$f":"IFERROR(INDEX('Data Annex'!$K$1:$BA$5047,MATCH(I$1&\"|\"&$B26,'Data Annex'!$K$1:$K$5047,0),MATCH(I$2,'Data Annex'!$K$1:$BA$1,0)),\"\")","v":0},{"$f":"IFERROR(INDEX('Data Annex'!$K$1:$BA$5047,MATCH(J$1&\"|\"&$B26,'Data Annex'!$K$1:$K$5047,0),MATCH(J$2,'Data Annex'!$K$1:$BA$1,0)),\"\")","v":0},{"$f":"IFERROR(INDEX('Data Annex'!$K$1:$BA$5047,MATCH(K$1&\"|\"&$B26,'Data Annex'!$K$1:$K$5047,0),MATCH(K$2,'Data Annex'!$K$1:$BA$1,0)),\"\")","v":0.26672433130000001},{"$f":"IFERROR(INDEX('Data Annex'!$K$1:$BA$5047,MATCH(L$1&\"|\"&$B26,'Data Annex'!$K$1:$K$5047,0),MATCH(L$2,'Data Annex'!$K$1:$BA$1,0)),\"\")","v":6.9189629599999997E-2},{"$f":"IFERROR(INDEX('Data Annex'!$K$1:$BA$5047,MATCH(M$1&\"|\"&$B26,'Data Annex'!$K$1:$K$5047,0),MATCH(M$2,'Data Annex'!$K$1:$BA$1,0)),\"\")","v":0},{"$f":"IFERROR(INDEX('Data Annex'!$K$1:$BA$5047,MATCH(N$1&\"|\"&$B26,'Data Annex'!$K$1:$K$5047,0),MATCH(N$2,'Data Annex'!$K$1:$BA$1,0)),\"\")","v":5.7982305499999998E-2},{"$f":"IFERROR(INDEX('Data Annex'!$K$1:$BA$5047,MATCH(O$1&\"|\"&$B26,'Data Annex'!$K$1:$K$5047,0),MATCH(O$2,'Data Annex'!$K$1:$BA$1,0)),\"\")","v":0.1863977899},{"$f":"IFERROR(INDEX('Data Annex'!$K$1:$BA$5047,MATCH(P$1&\"|\"&$B26,'Data Annex'!$K$1:$K$5047,0),MATCH(P$2,'Data Annex'!$K$1:$BA$1,0)),\"\")","v":0.2518100318},{"$f":"IFERROR(INDEX('Data Annex'!$K$1:$BA$5047,MATCH(Q$1&\"|\"&$B26,'Data Annex'!$K$1:$K$5047,0),MATCH(Q$2,'Data Annex'!$K$1:$BA$1,0)),\"\")","v":0},{"$f":"IFERROR(INDEX('Data Annex'!$K$1:$BA$5047,MATCH(R$1&\"|\"&$B26,'Data Annex'!$K$1:$K$5047,0),MATCH(R$2,'Data Annex'!$K$1:$BA$1,0)),\"\")","v":0.33597214689999999},{"$f":"IFERROR(INDEX('Data Annex'!$K$1:$BA$5047,MATCH(S$1&\"|\"&$B26,'Data Annex'!$K$1:$K$5047,0),MATCH(S$2,'Data Annex'!$K$1:$BA$1,0)),\"\")","v":0.1943883689},{"$f":"IFERROR(INDEX('Data Annex'!$K$1:$BA$5047,MATCH(T$1&\"|\"&$B26,'Data Annex'!$K$1:$K$5047,0),MATCH(T$2,'Data Annex'!$K$1:$BA$1,0)),\"\")","v":9.3227759199999996E-2},{"$f":"IFERROR(INDEX('Data Annex'!$K$1:$BA$5047,MATCH(U$1&\"|\"&$B26,'Data Annex'!$K$1:$K$5047,0),MATCH(U$2,'Data Annex'!$K$1:$BA$1,0)),\"\")","v":0},{"$f":"IFERROR(INDEX('Data Annex'!$K$1:$BA$5047,MATCH(V$1&\"|\"&$B26,'Data Annex'!$K$1:$K$5047,0),MATCH(V$2,'Data Annex'!$K$1:$BA$1,0)),\"\")","v":0.43994551469999998},{"$f":"IFERROR(INDEX('Data Annex'!$K$1:$BA$5047,MATCH(W$1&\"|\"&$B26,'Data Annex'!$K$1:$K$5047,0),MATCH(W$2,'Data Annex'!$K$1:$BA$1,0)),\"\")","v":0.2345288744},{"$f":"IFERROR(INDEX('Data Annex'!$K$1:$BA$5047,MATCH(X$1&\"|\"&$B26,'Data Annex'!$K$1:$K$5047,0),MATCH(X$2,'Data Annex'!$K$1:$BA$1,0)),\"\")","v":0.33459614119999997}]
[15,"HU",null,"HU",{"$f":"IFERROR(INDEX('Data Annex'!$K$1:$BA$5047,MATCH(E$1&\"|\"&$B27,'Data Annex'!$K$1:$K$5047,0),MATCH(E$2,'Data Annex'!$K$1:$BA$1,0)),\"\")","v":0},{"$f":"IFERROR(INDEX('Data Annex'!$K$1:$BA$5047,MATCH(F$1&\"|\"&$B27,'Data Annex'!$K$1:$K$5047,0),MATCH(F$2,'Data Annex'!$K$1:$BA$1,0)),\"\")","v":3.5552816000000002E-3},{"$f":"IFERROR(INDEX('Data Annex'!$K$1:$BA$5047,MATCH(G$1&\"|\"&$B27,'Data Annex'!$K$1:$K$5047,0),MATCH(G$2,'Data Annex'!$K$1:$BA$1,0)),\"\")","v":0.28459929249999999},{"$f":"IFERROR(INDEX('Data Annex'!$K$1:$BA$5047,MATCH(H$1&\"|\"&$B27,'Data Annex'!$K$1:$K$5047,0),MATCH(H$2,'Data Annex'!$K$1:$BA$1,0)),\"\")","v":0.58881629229999999},{"$f":"IFERROR(INDEX('Data Annex'!$K$1:$BA$5047,MATCH(I$1&\"|\"&$B27,'Data Annex'!$K$1:$K$5047,0),MATCH(I$2,'Data Annex'!$K$1:$BA$1,0)),\"\")","v":0},{"$f":"IFERROR(INDEX('Data Annex'!$K$1:$BA$5047,MATCH(J$1&\"|\"&$B27,'Data Annex'!$K$1:$K$5047,0),MATCH(J$2,'Data Annex'!$K$1:$BA$1,0)),\"\")","v":0},{"$f":"IFERROR(INDEX('Data Annex'!$K$1:$BA$5047,MATCH(K$1&\"|\"&$B27,'Data Annex'!$K$1:$K$5047,0),MATCH(K$2,'Data Annex'!$K$1:$BA$1,0)),\"\")","v":0},{"$f":"IFERROR(INDEX('Data Annex'!$K$1:$BA$5047,MATCH(L$1&\"|\"&$B27,'Data Annex'!$K$1:$K$5047,0),MATCH(L$2,'Data Annex'!$K$1:$BA$1,0)),\"\")","v":0},{"$f":"IFERROR(INDEX('Data Annex'!$K$1:$BA$5047,MATCH(M$1&\"|\"&$B27,'Data Annex'!$K$1:$K$5047,0),MATCH(M$2,'Data Annex'!$K$1:$BA$1,0)),\"\")","v":0},{"$f":"IFERROR(INDEX('Data Annex'!$K$1:$BA$5047,MATCH(N$1&\"|\"&$B27,'Data Annex'!$K$1:$K$5047,0),MATCH(N$2,'Data Annex'!$K$1:$BA$1,0)),\"\")","v":0},{"$f":"IFERROR(INDEX('Data Annex'!$K$1:$BA$5047,MATCH(O$1&\"|\"&$B27,'Data Annex'!$K$1:$K$5047,0),MATCH(O$2,'Data Annex'!$K$1:$BA$1,0)),\"\")","v":0},{"$f":"IFERROR(INDEX('Data Annex'!$K$1:$BA$5047,MATCH(P$1&\"|\"&$B27,'Data Annex'!$K$1:$K$5047,0),MATCH(P$2,'Data Annex'!$K$1:$BA$1,0)),\"\")","v":0},{"$f":"IFERROR(INDEX('Data Annex'!$K$1:$BA$5047,MATCH(Q$1&\"|\"&$B27,'Data Annex'!$K$1:$K$5047,0),MATCH(Q$2,'Data Annex'!$K$1:$BA$1,0)),\"\")","v":0},{"$f":"IFERROR(INDEX('Data Annex'!$K$1:$BA$5047,MATCH(R$1&\"|\"&$B27,'Data Annex'!$K$1:$K$5047,0),MATCH(R$2,'Data Annex'!$K$1:$BA$1,0)),\"\")","v":0},{"$f":"IFERROR(INDEX('Data Annex'!$K$1:$BA$5047,MATCH(S$1&\"|\"&$B27,'Data Annex'!$K$1:$K$5047,0),MATCH(S$2,'Data Annex'!$K$1:$BA$1,0)),\"\")","v":0},{"$f":"IFERROR(INDEX('Data Annex'!$K$1:$BA$5047,MATCH(T$1&\"|\"&$B27,'Data Annex'!$K$1:$K$5047,0),MATCH(T$2,'Data Annex'!$K$1:$BA$1,0)),\"\")","v":0},{"$f":"IFERROR(INDEX('Data Annex'!$K$1:$BA$5047,MATCH(U$1&\"|\"&$B27,'Data Annex'!$K$1:$K$5047,0),MATCH(U$2,'Data Annex'!$K$1:$BA$1,0)),\"\")","v":0},{"$f":"IFERROR(INDEX('Data Annex'!$K$1:$BA$5047,MATCH(V$1&\"|\"&$B27,'Data Annex'!$K$1:$K$5047,0),MATCH(V$2,'Data Annex'!$K$1:$BA$1,0)),\"\")","v":0},{"$f":"IFERROR(INDEX('Data Annex'!$K$1:$BA$5047,MATCH(W$1&\"|\"&$B27,'Data Annex'!$K$1:$K$5047,0),MATCH(W$2,'Data Annex'!$K$1:$BA$1,0)),\"\")","v":0},{"$f":"IFERROR(INDEX('Data Annex'!$K$1:$BA$5047,MATCH(X$1&\"|\"&$B27,'Data Annex'!$K$1:$K$5047,0),MATCH(X$2,'Data Annex'!$K$1:$BA$1,0)),\"\")","v":0}]
[16,"IE",null,"IE",{"$f":"IFERROR(INDEX('Data Annex'!$K$1:$BA$5047,MATCH(E$1&\"|\"&$B28,'Data Annex'!$K$1:$K$5047,0),MATCH(E$2,'Data Annex'!$K$1:$BA$1,0)),\"\")","v":0},{"$f":"IFERROR(INDEX('Data Annex'!$K$1:$BA$5047,MATCH(F$1&\"|\"&$B28,'Data Annex'!$K$1:$K$5047,0),MATCH(F$2,'Data Annex'!$K$1:$BA$1,0)),\"\")","v":0.1629997467},{"$f":"IFERROR(INDEX('Data Annex'!$K$1:$BA$5047,MATCH(G$1&\"|\"&$B28,'Data Annex'!$K$1:$K$5047,0),MATCH(G$2,'Data Annex'!$K$1:$BA$1,0)),\"\")","v":0.37459470249999999},{"$f":"IFERROR(INDEX('Data Annex'!$K$1:$BA$5047,MATCH(H$1&\"|\"&$B28,'Data Annex'!$K$1:$K$5047,0),MATCH(H$2,'Data Annex'!$K$1:$BA$1,0)),\"\")","v":0.67125201769999998},{"$f":"IFERROR(INDEX('Data Annex'!$K$1:$BA$5047,MATCH(I$1&\"|\"&$B28,'Data Annex'!$K$1:$K$5047,0),MATCH(I$2,'Data Annex'!$K$1:$BA$1,0)),\"\")","v":0},{"$f":"IFERROR(INDEX('Data Annex'!$K$1:$BA$5047,MATCH(J$1&\"|\"&$B28,'Data Annex'!$K$1:$K$5047,0),MATCH(J$2,'Data Annex'!$K$1:$BA$1,0)),\"\")","v":0},{"$f":"IFERROR(INDEX('Data Annex'!$K$1:$BA$5047,MATCH(K$1&\"|\"&$B28,'Data Annex'!$K$1:$K$5047,0),MATCH(K$2,'Data Annex'!$K$1:$BA$1,0)),\"\")","v":0},{"$f":"IFERROR(INDEX('Data Annex'!$K$1:$BA$5047,MATCH(L$1&\"|\"&$B28,'Data Annex'!$K$1:$K$5047,0),MATCH(L$2,'Data Annex'!$K$1:$BA$1,0)),\"\")","v":1.12696766E-2},{"$f":"IFERROR(INDEX('Data Annex'!$K$1:$BA$5047,MATCH(M$1&\"|\"&$B28,'Data Annex'!$K$1:$K$5047,0),MATCH(M$2,'Data Annex'!$K$1:$BA$1,0)),\"\")","v":0},{"$f":"IFERROR(INDEX('Data Annex'!$K$1:$BA$5047,MATCH(N$1&\"|\"&$B28,'Data Annex'!$K$1:$K$5047,0),MATCH(N$2,'Data Annex'!$K$1:$BA$1,0)),\"\")","v":7.9646791000000002E-3},{"$f":"IFERROR(INDEX('Data Annex'!$K$1:$BA$5047,MATCH(O$1&\"|\"&$B28,'Data Annex'!$K$1:$K$5047,0),MATCH(O$2,'Data Annex'!$K$1:$BA$1,0)),\"\")","v":2.28621738E-2},{"$f":"IFERROR(INDEX('Data Annex'!$K$1:$BA$5047,MATCH(P$1&\"|\"&$B28,'Data Annex'!$K$1:$K$5047,0),MATCH(P$2,'Data Annex'!$K$1:$BA$1,0)),\"\")","v":7.2493005700000002E-2},{"$f":"IFERROR(INDEX('Data Annex'!$K$1:$BA$5047,MATCH(Q$1&\"|\"&$B28,'Data Annex'!$K$1:$K$5047,0),MATCH(Q$2,'Data Annex'!$K$1:$BA$1,0)),\"\")","v":0},{"$f":"IFERROR(INDEX('Data Annex'!$K$1:$BA$5047,MATCH(R$1&\"|\"&$B28,'Data Annex'!$K$1:$K$5047,0),MATCH(R$2,'Data Annex'!$K$1:$BA$1,0)),\"\")","v":6.0405593100000002E-2},{"$f":"IFERROR(INDEX('Data Annex'!$K$1:$BA$5047,MATCH(S$1&\"|\"&$B28,'Data Annex'!$K$1:$K$5047,0),MATCH(S$2,'Data Annex'!$K$1:$BA$1,0)),\"\")","v":1.1030095E-2},{"$f":"IFERROR(INDEX('Data Annex'!$K$1:$BA$5047,MATCH(T$1&\"|\"&$B28,'Data Annex'!$K$1:$K$5047,0),MATCH(T$2,'Data Annex'!$K$1:$BA$1,0)),\"\")","v":8.9585389000000001E-3},{"$f":"IFERROR(INDEX('Data Annex'!$K$1:$BA$5047,MATCH(U$1&\"|\"&$B28,'Data Annex'!$K$1:$K$5047,0),MATCH(U$2,'Data Annex'!$K$1:$BA$1,0)),\"\")","v":0},{"$f":"IFERROR(INDEX('Data Annex'!$K$1:$BA$5047,MATCH(V$1&\"|\"&$B28,'Data Annex'!$K$1:$K$5047,0),MATCH(V$2,'Data Annex'!$K$1:$BA$1,0)),\"\")","v":0.1204691598},{"$f":"IFERROR(INDEX('Data Annex'!$K$1:$BA$5047,MATCH(W$1&\"|\"&$B28,'Data Annex'!$K$1:$K$5047,0),MATCH(W$2,'Data Annex'!$K$1:$BA$1,0)),\"\")","v":0.28175092550000003},{"$f":"IFERROR(INDEX('Data Annex'!$K$1:$BA$5047,MATCH(X$1&\"|\"&$B28,'Data Annex'!$K$1:$K$5047,0),MATCH(X$2,'Data Annex'!$K$1:$BA$1,0)),\"\")","v":0.28022328219999998}]
[17,"IS",null,"IS",{"$f":"IFERROR(INDEX('Data Annex'!$K$1:$BA$5047,MATCH(E$1&\"|\"&$B29,'Data Annex'!$K$1:$K$5047,0),MATCH(E$2,'Data Annex'!$K$1:$BA$1,0)),\"\")","v":0},{"$f":"IFERROR(INDEX('Data Annex'!$K$1:$BA$5047,MATCH(F$1&\"|\"&$B29,'Data Annex'!$K$1:$K$5047,0),MATCH(F$2,'Data Annex'!$K$1:$BA$1,0)),\"\")","v":0},{"$f":"IFERROR(INDEX('Data Annex'!$K$1:$BA$5047,MATCH(G$1&\"|\"&$B29,'Data Annex'!$K$1:$K$5047,0),MATCH(G$2,'Data Annex'!$K$1:$BA$1,0)),\"\")","v":3.5304334899999998E-2},{"$f":"IFERROR(INDEX('Data Annex'!$K$1:$BA$5047,MATCH(H$1&\"|\"&$B29,'Data Annex'!$K$1:$K$5047,0),MATCH(H$2,'Data Annex'!$K$1:$BA$1,0)),\"\")","v":7.1715179800000001E-2},{"$f":"IFERROR(INDEX('Data Annex'!$K$1:$BA$5047,MATCH(I$1&\"|\"&$B29,'Data Annex'!$K$1:$K$5047,0),MATCH(I$2,'Data Annex'!$K$1:$BA$1,0)),\"\")","v":0},{"$f":"IFERROR(INDEX('Data Annex'!$K$1:$BA$5047,MATCH(J$1&\"|\"&$B29,'Data Annex'!$K$1:$K$5047,0),MATCH(J$2,'Data Annex'!$K$1:$BA$1,0)),\"\")","v":0},{"$f":"IFERROR(INDEX('Data Annex'!$K$1:$BA$5047,MATCH(K$1&\"|\"&$B29,'Data Annex'!$K$1:$K$5047,0),MATCH(K$2,'Data Annex'!$K$1:$BA$1,0)),\"\")","v":0},{"$f":"IFERROR(INDEX('Data Annex'!$K$1:$BA$5047,MATCH(L$1&\"|\"&$B29,'Data Annex'!$K$1:$K$5047,0),MATCH(L$2,'Data Annex'!$K$1:$BA$1,0)),\"\")","v":0},{"$f":"IFERROR(INDEX('Data Annex'!$K$1:$BA$5047,MATCH(M$1&\"|\"&$B29,'Data Annex'!$K$1:$K$5047,0),MATCH(M$2,'Data Annex'!$K$1:$BA$1,0)),\"\")","v":0},{"$f":"IFERROR(INDEX('Data Annex'!$K$1:$BA$5047,MATCH(N$1&\"|\"&$B29,'Data Annex'!$K$1:$K$5047,0),MATCH(N$2,'Data Annex'!$K$1:$BA$1,0)),\"\")","v":0},{"$f":"IFERROR(INDEX('Data Annex'!$K$1:$BA$5047,MATCH(O$1&\"|\"&$B29,'Data Annex'!$K$1:$K$5047,0),MATCH(O$2,'Data Annex'!$K$1:$BA$1,0)),\"\")","v":0},{"$f":"IFERROR(INDEX('Data Annex'!$K$1:$BA$5047,MATCH(P$1&\"|\"&$B29,'Data Annex'!$K$1:$K$5047,0),MATCH(P$2,'Data Annex'!$K$1:$BA$1,0)),\"\")","v":0},{"$f":"IFERROR(INDEX('Data Annex'!$K$1:$BA$5047,MATCH(Q$1&\"|\"&$B29,'Data Annex'!$K$1:$K$5047,0),MATCH(Q$2,'Data Annex'!$K$1:$BA$1,0)),\"\")","v":0},{"$f":"IFERROR(INDEX('Data Annex'!$K$1:$BA$5047,MATCH(R$1&\"|\"&$B29,'Data Annex'!$K$1:$K$5047,0),MATCH(R$2,'Data Annex'!$K$1:$BA$1,0)),\"\")","v":0},{"$f":"IFERROR(INDEX('Data Annex'!$K$1:$BA$5047,MATCH(S$1&\"|\"&$B29,'Data Annex'!$K$1:$K$5047,0),MATCH(S$2,'Data Annex'!$K$1:$BA$1,0)),\"\")","v":0},{"$f":"IFERROR(INDEX('Data Annex'!$K$1:$BA$5047,MATCH(T$1&\"|\"&$B29,'Data Annex'!$K$1:$K$5047,0),MATCH(T$2,'Data Annex'!$K$1:$BA$1,0)),\"\")","v":0},{"$f":"IFERROR(INDEX('Data Annex'!$K$1:$BA$5047,MATCH(U$1&\"|\"&$B29,'Data Annex'!$K$1:$K$5047,0),MATCH(U$2,'Data Annex'!$K$1:$BA$1,0)),\"\")","v":0},{"$f":"IFERROR(INDEX('Data Annex'!$K$1:$BA$5047,MATCH(V$1&\"|\"&$B29,'Data Annex'!$K$1:$K$5047,0),MATCH(V$2,'Data Annex'!$K$1:$BA$1,0)),\"\")","v":0},{"$f":"IFERROR(INDEX('Data Annex'!$K$1:$BA$5047,MATCH(W$1&\"|\"&$B29,'Data Annex'!$K$1:$K$5047,0),MATCH(W$2,'Data Annex'!$K$1:$BA$1,0)),\"\")","v":0},{"$f":"IFERROR(INDEX('Data Annex'!$K$1:$BA$5047,MATCH(X$1&\"|\"&$B29,'Data Annex'!$K$1:$K$5047,0),MATCH(X$2,'Data Annex'!$K$1:$BA$1,0)),\"\")","v":0}]
[18,"IT",null,"IT",{"$f":"IFERROR(INDEX('Data Annex'!$K$1:$BA$5047,MATCH(E$1&\"|\"&$B30,'Data Annex'!$K$1:$K$5047,0),MATCH(E$2,'Data Annex'!$K$1:$BA$1,0)),\"\")","v":0},{"$f":"IFERROR(INDEX('Data Annex'!$K$1:$BA$5047,MATCH(F$1&\"|\"&$B30,'Data Annex'!$K$1:$K$5047,0),MATCH(F$2,'Data Annex'!$K$1:$BA$1,0)),\"\")","v":20.41928411},{"$f":"IFERROR(INDEX('Data Annex'!$K$1:$BA$5047,MATCH(G$1&\"|\"&$B30,'Data Annex'!$K$1:$K$5047,0),MATCH(G$2,'Data Annex'!$K$1:$BA$1,0)),\"\")","v":56.845444512},{"$f":"IFERROR(INDEX('Data Annex'!$K$1:$BA$5047,MATCH(H$1&\"|\"&$B30,'Data Annex'!$K$1:$K$5047,0),MATCH(H$2,'Data Annex'!$K$1:$BA$1,0)),\"\")","v":82.123074211000002},{"$f":"IFERROR(INDEX('Data Annex'!$K$1:$BA$5047,MATCH(I$1&\"|\"&$B30,'Data Annex'!$K$1:$K$5047,0),MATCH(I$2,'Data Annex'!$K$1:$BA$1,0)),\"\")","v":0},{"$f":"IFERROR(INDEX('Data Annex'!$K$1:$BA$5047,MATCH(J$1&\"|\"&$B30,'Data Annex'!$K$1:$K$5047,0),MATCH(J$2,'Data Annex'!$K$1:$BA$1,0)),\"\")","v":8.8959918400000004E-2},{"$f":"IFERROR(INDEX('Data Annex'!$K$1:$BA$5047,MATCH(K$1&\"|\"&$B30,'Data Annex'!$K$1:$K$5047,0),MATCH(K$2,'Data Annex'!$K$1:$BA$1,0)),\"\")","v":6.834672E-3},{"$f":"IFERROR(INDEX('Data Annex'!$K$1:$BA$5047,MATCH(L$1&\"|\"&$B30,'Data Annex'!$K$1:$K$5047,0),MATCH(L$2,'Data Annex'!$K$1:$BA$1,0)),\"\")","v":6.8125327999999999E-3},{"$f":"IFERROR(INDEX('Data Annex'!$K$1:$BA$5047,MATCH(M$1&\"|\"&$B30,'Data Annex'!$K$1:$K$5047,0),MATCH(M$2,'Data Annex'!$K$1:$BA$1,0)),\"\")","v":0},{"$f":"IFERROR(INDEX('Data Annex'!$K$1:$BA$5047,MATCH(N$1&\"|\"&$B30,'Data Annex'!$K$1:$K$5047,0),MATCH(N$2,'Data Annex'!$K$1:$BA$1,0)),\"\")","v":1.12489485E-2},{"$f":"IFERROR(INDEX('Data Annex'!$K$1:$BA$5047,MATCH(O$1&\"|\"&$B30,'Data Annex'!$K$1:$K$5047,0),MATCH(O$2,'Data Annex'!$K$1:$BA$1,0)),\"\")","v":5.9634029000000003E-3},{"$f":"IFERROR(INDEX('Data Annex'!$K$1:$BA$5047,MATCH(P$1&\"|\"&$B30,'Data Annex'!$K$1:$K$5047,0),MATCH(P$2,'Data Annex'!$K$1:$BA$1,0)),\"\")","v":1.3161728399999999E-2},{"$f":"IFERROR(INDEX('Data Annex'!$K$1:$BA$5047,MATCH(Q$1&\"|\"&$B30,'Data Annex'!$K$1:$K$5047,0),MATCH(Q$2,'Data Annex'!$K$1:$BA$1,0)),\"\")","v":0},{"$f":"IFERROR(INDEX('Data Annex'!$K$1:$BA$5047,MATCH(R$1&\"|\"&$B30,'Data Annex'!$K$1:$K$5047,0),MATCH(R$2,'Data Annex'!$K$1:$BA$1,0)),\"\")","v":3.8478507500000002E-2},{"$f":"IFERROR(INDEX('Data Annex'!$K$1:$BA$5047,MATCH(S$1&\"|\"&$B30,'Data Annex'!$K$1:$K$5047,0),MATCH(S$2,'Data Annex'!$K$1:$BA$1,0)),\"\")","v":2.7117565400000002E-2},{"$f":"IFERROR(INDEX('Data Annex'!$K$1:$BA$5047,MATCH(T$1&\"|\"&$B30,'Data Annex'!$K$1:$K$5047,0),MATCH(T$2,'Data Annex'!$K$1:$BA$1,0)),\"\")","v":2.1026360300000001E-2},{"$f":"IFERROR(INDEX('Data Annex'!$K$1:$BA$5047,MATCH(U$1&\"|\"&$B30,'Data Annex'!$K$1:$K$5047,0),MATCH(U$2,'Data Annex'!$K$1:$BA$1,0)),\"\")","v":0},{"$f":"IFERROR(INDEX('Data Annex'!$K$1:$BA$5047,MATCH(V$1&\"|\"&$B30,'Data Annex'!$K$1:$K$5047,0),MATCH(V$2,'Data Annex'!$K$1:$BA$1,0)),\"\")","v":0.23322133640000001},{"$f":"IFERROR(INDEX('Data Annex'!$K$1:$BA$5047,MATCH(W$1&\"|\"&$B30,'Data Annex'!$K$1:$K$5047,0),MATCH(W$2,'Data Annex'!$K$1:$BA$1,0)),\"\")","v":0.26205907880000001},{"$f":"IFERROR(INDEX('Data Annex'!$K$1:$BA$5047,MATCH(X$1&\"|\"&$B30,'Data Annex'!$K$1:$K$5047,0),MATCH(X$2,'Data Annex'!$K$1:$BA$1,0)),\"\")","v":0.24156769119999999}]
[19,"LT",null,"LT",{"$f":"IFERROR(INDEX('Data Annex'!$K$1:$BA$5047,MATCH(E$1&\"|\"&$B31,'Data Annex'!$K$1:$K$5047,0),MATCH(E$2,'Data Annex'!$K$1:$BA$1,0)),\"\")","v":0},{"$f":"IFERROR(INDEX('Data Annex'!$K$1:$BA$5047,MATCH(F$1&\"|\"&$B31,'Data Annex'!$K$1:$K$5047,0),MATCH(F$2,'Data Annex'!$K$1:$BA$1,0)),\"\")","v":3.7464170000000001E-4},{"$f":"IFERROR(INDEX('Data Annex'!$K$1:$BA$5047,MATCH(G$1&\"|\"&$B31,'Data Annex'!$K$1:$K$5047,0),MATCH(G$2,'Data Annex'!$K$1:$BA$1,0)),\"\")","v":5.3239999999999997E-3},{"$f":"IFERROR(INDEX('Data Annex'!$K$1:$BA$5047,MATCH(H$1&\"|\"&$B31,'Data Annex'!$K$1:$K$5047,0),MATCH(H$2,'Data Annex'!$K$1:$BA$1,0)),\"\")","v":8.1169999999999992E-3},{"$f":"IFERROR(INDEX('Data Annex'!$K$1:$BA$5047,MATCH(I$1&\"|\"&$B31,'Data Annex'!$K$1:$K$5047,0),MATCH(I$2,'Data Annex'!$K$1:$BA$1,0)),\"\")","v":0},{"$f":"IFERROR(INDEX('Data Annex'!$K$1:$BA$5047,MATCH(J$1&\"|\"&$B31,'Data Annex'!$K$1:$K$5047,0),MATCH(J$2,'Data Annex'!$K$1:$BA$1,0)),\"\")","v":0},{"$f":"IFERROR(INDEX('Data Annex'!$K$1:$BA$5047,MATCH(K$1&\"|\"&$B31,'Data Annex'!$K$1:$K$5047,0),MATCH(K$2,'Data Annex'!$K$1:$BA$1,0)),\"\")","v":2.3478587499999998E-2},{"$f":"IFERROR(INDEX('Data Annex'!$K$1:$BA$5047,MATCH(L$1&\"|\"&$B31,'Data Annex'!$K$1:$K$5047,0),MATCH(L$2,'Data Annex'!$K$1:$BA$1,0)),\"\")","v":9.6587409099999993E-2},{"$f":"IFERROR(INDEX('Data Annex'!$K$1:$BA$5047,MATCH(M$1&\"|\"&$B31,'Data Annex'!$K$1:$K$5047,0),MATCH(M$2,'Data Annex'!$K$1:$BA$1,0)),\"\")","v":0},{"$f":"IFERROR(INDEX('Data Annex'!$K$1:$BA$5047,MATCH(N$1&\"|\"&$B31,'Data Annex'!$K$1:$K$5047,0),MATCH(N$2,'Data Annex'!$K$1:$BA$1,0)),\"\")","v":0.39953726449999999},{"$f":"IFERROR(INDEX('Data Annex'!$K$1:$BA$5047,MATCH(O$1&\"|\"&$B31,'Data Annex'!$K$1:$K$5047,0),MATCH(O$2,'Data Annex'!$K$1:$BA$1,0)),\"\")","v":0.42167543200000002},{"$f":"IFERROR(INDEX('Data Annex'!$K$1:$BA$5047,MATCH(P$1&\"|\"&$B31,'Data Annex'!$K$1:$K$5047,0),MATCH(P$2,'Data Annex'!$K$1:$BA$1,0)),\"\")","v":0.14980904270000001},{"$f":"IFERROR(INDEX('Data Annex'!$K$1:$BA$5047,MATCH(Q$1&\"|\"&$B31,'Data Annex'!$K$1:$K$5047,0),MATCH(Q$2,'Data Annex'!$K$1:$BA$1,0)),\"\")","v":0},{"$f":"IFERROR(INDEX('Data Annex'!$K$1:$BA$5047,MATCH(R$1&\"|\"&$B31,'Data Annex'!$K$1:$K$5047,0),MATCH(R$2,'Data Annex'!$K$1:$BA$1,0)),\"\")","v":0.60046273549999996},{"$f":"IFERROR(INDEX('Data Annex'!$K$1:$BA$5047,MATCH(S$1&\"|\"&$B31,'Data Annex'!$K$1:$K$5047,0),MATCH(S$2,'Data Annex'!$K$1:$BA$1,0)),\"\")","v":0.37509391440000001},{"$f":"IFERROR(INDEX('Data Annex'!$K$1:$BA$5047,MATCH(T$1&\"|\"&$B31,'Data Annex'!$K$1:$K$5047,0),MATCH(T$2,'Data Annex'!$K$1:$BA$1,0)),\"\")","v":0.42836023159999997},{"$f":"IFERROR(INDEX('Data Annex'!$K$1:$BA$5047,MATCH(U$1&\"|\"&$B31,'Data Annex'!$K$1:$K$5047,0),MATCH(U$2,'Data Annex'!$K$1:$BA$1,0)),\"\")","v":0},{"$f":"IFERROR(INDEX('Data Annex'!$K$1:$BA$5047,MATCH(V$1&\"|\"&$B31,'Data Annex'!$K$1:$K$5047,0),MATCH(V$2,'Data Annex'!$K$1:$BA$1,0)),\"\")","v":0},{"$f":"IFERROR(INDEX('Data Annex'!$K$1:$BA$5047,MATCH(W$1&\"|\"&$B31,'Data Annex'!$K$1:$K$5047,0),MATCH(W$2,'Data Annex'!$K$1:$BA$1,0)),\"\")","v":0.1797520661},{"$f":"IFERROR(INDEX('Data Annex'!$K$1:$BA$5047,MATCH(X$1&\"|\"&$B31,'Data Annex'!$K$1:$K$5047,0),MATCH(X$2,'Data Annex'!$K$1:$BA$1,0)),\"\")","v":0.32314894669999999}]
[20,"LU",null,"LU",{"$f":"IFERROR(INDEX('Data Annex'!$K$1:$BA$5047,MATCH(E$1&\"|\"&$B32,'Data Annex'!$K$1:$K$5047,0),MATCH(E$2,'Data Annex'!$K$1:$BA$1,0)),\"\")","v":0},{"$f":"IFERROR(INDEX('Data Annex'!$K$1:$BA$5047,MATCH(F$1&\"|\"&$B32,'Data Annex'!$K$1:$K$5047,0),MATCH(F$2,'Data Annex'!$K$1:$BA$1,0)),\"\")","v":9.2809951999999994E-3},{"$f":"IFERROR(INDEX('Data Annex'!$K$1:$BA$5047,MATCH(G$1&\"|\"&$B32,'Data Annex'!$K$1:$K$5047,0),MATCH(G$2,'Data Annex'!$K$1:$BA$1,0)),\"\")","v":6.0232294899999997E-2},{"$f":"IFERROR(INDEX('Data Annex'!$K$1:$BA$5047,MATCH(H$1&\"|\"&$B32,'Data Annex'!$K$1:$K$5047,0),MATCH(H$2,'Data Annex'!$K$1:$BA$1,0)),\"\")","v":7.8549290499999994E-2},{"$f":"IFERROR(INDEX('Data Annex'!$K$1:$BA$5047,MATCH(I$1&\"|\"&$B32,'Data Annex'!$K$1:$K$5047,0),MATCH(I$2,'Data Annex'!$K$1:$BA$1,0)),\"\")","v":0},{"$f":"IFERROR(INDEX('Data Annex'!$K$1:$BA$5047,MATCH(J$1&\"|\"&$B32,'Data Annex'!$K$1:$K$5047,0),MATCH(J$2,'Data Annex'!$K$1:$BA$1,0)),\"\")","v":0},{"$f":"IFERROR(INDEX('Data Annex'!$K$1:$BA$5047,MATCH(K$1&\"|\"&$B32,'Data Annex'!$K$1:$K$5047,0),MATCH(K$2,'Data Annex'!$K$1:$BA$1,0)),\"\")","v":0},{"$f":"IFERROR(INDEX('Data Annex'!$K$1:$BA$5047,MATCH(L$1&\"|\"&$B32,'Data Annex'!$K$1:$K$5047,0),MATCH(L$2,'Data Annex'!$K$1:$BA$1,0)),\"\")","v":4.0189893800000001E-2},{"$f":"IFERROR(INDEX('Data Annex'!$K$1:$BA$5047,MATCH(M$1&\"|\"&$B32,'Data Annex'!$K$1:$K$5047,0),MATCH(M$2,'Data Annex'!$K$1:$BA$1,0)),\"\")","v":0},{"$f":"IFERROR(INDEX('Data Annex'!$K$1:$BA$5047,MATCH(N$1&\"|\"&$B32,'Data Annex'!$K$1:$K$5047,0),MATCH(N$2,'Data Annex'!$K$1:$BA$1,0)),\"\")","v":6.8143958199999993E-2},{"$f":"IFERROR(INDEX('Data Annex'!$K$1:$BA$5047,MATCH(O$1&\"|\"&$B32,'Data Annex'!$K$1:$K$5047,0),MATCH(O$2,'Data Annex'!$K$1:$BA$1,0)),\"\")","v":0.14205951080000001},{"$f":"IFERROR(INDEX('Data Annex'!$K$1:$BA$5047,MATCH(P$1&\"|\"&$B32,'Data Annex'!$K$1:$K$5047,0),MATCH(P$2,'Data Annex'!$K$1:$BA$1,0)),\"\")","v":7.6408030200000004E-2},{"$f":"IFERROR(INDEX('Data Annex'!$K$1:$BA$5047,MATCH(Q$1&\"|\"&$B32,'Data Annex'!$K$1:$K$5047,0),MATCH(Q$2,'Data Annex'!$K$1:$BA$1,0)),\"\")","v":0},{"$f":"IFERROR(INDEX('Data Annex'!$K$1:$BA$5047,MATCH(R$1&\"|\"&$B32,'Data Annex'!$K$1:$K$5047,0),MATCH(R$2,'Data Annex'!$K$1:$BA$1,0)),\"\")","v":1.981695E-4},{"$f":"IFERROR(INDEX('Data Annex'!$K$1:$BA$5047,MATCH(S$1&\"|\"&$B32,'Data Annex'!$K$1:$K$5047,0),MATCH(S$2,'Data Annex'!$K$1:$BA$1,0)),\"\")","v":5.9166768999999999E-3},{"$f":"IFERROR(INDEX('Data Annex'!$K$1:$BA$5047,MATCH(T$1&\"|\"&$B32,'Data Annex'!$K$1:$K$5047,0),MATCH(T$2,'Data Annex'!$K$1:$BA$1,0)),\"\")","v":5.0950629999999995E-4},{"$f":"IFERROR(INDEX('Data Annex'!$K$1:$BA$5047,MATCH(U$1&\"|\"&$B32,'Data Annex'!$K$1:$K$5047,0),MATCH(U$2,'Data Annex'!$K$1:$BA$1,0)),\"\")","v":0},{"$f":"IFERROR(INDEX('Data Annex'!$K$1:$BA$5047,MATCH(V$1&\"|\"&$B32,'Data Annex'!$K$1:$K$5047,0),MATCH(V$2,'Data Annex'!$K$1:$BA$1,0)),\"\")","v":0.237627808},{"$f":"IFERROR(INDEX('Data Annex'!$K$1:$BA$5047,MATCH(W$1&\"|\"&$B32,'Data Annex'!$K$1:$K$5047,0),MATCH(W$2,'Data Annex'!$K$1:$BA$1,0)),\"\")","v":0.2243550044},{"$f":"IFERROR(INDEX('Data Annex'!$K$1:$BA$5047,MATCH(X$1&\"|\"&$B32,'Data Annex'!$K$1:$K$5047,0),MATCH(X$2,'Data Annex'!$K$1:$BA$1,0)),\"\")","v":0.28776975669999999}]
[21,"LV",null,"LV",{"$f":"IFERROR(INDEX('Data Annex'!$K$1:$BA$5047,MATCH(E$1&\"|\"&$B33,'Data Annex'!$K$1:$K$5047,0),MATCH(E$2,'Data Annex'!$K$1:$BA$1,0)),\"\")","v":0},{"$f":"IFERROR(INDEX('Data Annex'!$K$1:$BA$5047,MATCH(F$1&\"|\"&$B33,'Data Annex'!$K$1:$K$5047,0),MATCH(F$2,'Data Annex'!$K$1:$BA$1,0)),\"\")","v":7.3238399999999999E-4},{"$f":"IFERROR(INDEX('Data Annex'!$K$1:$BA$5047,MATCH(G$1&\"|\"&$B33,'Data Annex'!$K$1:$K$5047,0),MATCH(G$2,'Data Annex'!$K$1:$BA$1,0)),\"\")","v":1.3993930000000001E-3},{"$f":"IFERROR(INDEX('Data Annex'!$K$1:$BA$5047,MATCH(H$1&\"|\"&$B33,'Data Annex'!$K$1:$K$5047,0),MATCH(H$2,'Data Annex'!$K$1:$BA$1,0)),\"\")","v":5.0105369999999998E-3},{"$f":"IFERROR(INDEX('Data Annex'!$K$1:$BA$5047,MATCH(I$1&\"|\"&$B33,'Data Annex'!$K$1:$K$5047,0),MATCH(I$2,'Data Annex'!$K$1:$BA$1,0)),\"\")","v":0},{"$f":"IFERROR(INDEX('Data Annex'!$K$1:$BA$5047,MATCH(J$1&\"|\"&$B33,'Data Annex'!$K$1:$K$5047,0),MATCH(J$2,'Data Annex'!$K$1:$BA$1,0)),\"\")","v":0},{"$f":"IFERROR(INDEX('Data Annex'!$K$1:$BA$5047,MATCH(K$1&\"|\"&$B33,'Data Annex'!$K$1:$K$5047,0),MATCH(K$2,'Data Annex'!$K$1:$BA$1,0)),\"\")","v":0},{"$f":"IFERROR(INDEX('Data Annex'!$K$1:$BA$5047,MATCH(L$1&\"|\"&$B33,'Data Annex'!$K$1:$K$5047,0),MATCH(L$2,'Data Annex'!$K$1:$BA$1,0)),\"\")","v":0.25872775710000001},{"$f":"IFERROR(INDEX('Data Annex'!$K$1:$BA$5047,MATCH(M$1&\"|\"&$B33,'Data Annex'!$K$1:$K$5047,0),MATCH(M$2,'Data Annex'!$K$1:$BA$1,0)),\"\")","v":0},{"$f":"IFERROR(INDEX('Data Annex'!$K$1:$BA$5047,MATCH(N$1&\"|\"&$B33,'Data Annex'!$K$1:$K$5047,0),MATCH(N$2,'Data Annex'!$K$1:$BA$1,0)),\"\")","v":0.1545268602},{"$f":"IFERROR(INDEX('Data Annex'!$K$1:$BA$5047,MATCH(O$1&\"|\"&$B33,'Data Annex'!$K$1:$K$5047,0),MATCH(O$2,'Data Annex'!$K$1:$BA$1,0)),\"\")","v":0.59611202860000001},{"$f":"IFERROR(INDEX('Data Annex'!$K$1:$BA$5047,MATCH(P$1&\"|\"&$B33,'Data Annex'!$K$1:$K$5047,0),MATCH(P$2,'Data Annex'!$K$1:$BA$1,0)),\"\")","v":0.43427500879999997},{"$f":"IFERROR(INDEX('Data Annex'!$K$1:$BA$5047,MATCH(Q$1&\"|\"&$B33,'Data Annex'!$K$1:$K$5047,0),MATCH(Q$2,'Data Annex'!$K$1:$BA$1,0)),\"\")","v":0},{"$f":"IFERROR(INDEX('Data Annex'!$K$1:$BA$5047,MATCH(R$1&\"|\"&$B33,'Data Annex'!$K$1:$K$5047,0),MATCH(R$2,'Data Annex'!$K$1:$BA$1,0)),\"\")","v":0.84547313980000005},{"$f":"IFERROR(INDEX('Data Annex'!$K$1:$BA$5047,MATCH(S$1&\"|\"&$B33,'Data Annex'!$K$1:$K$5047,0),MATCH(S$2,'Data Annex'!$K$1:$BA$1,0)),\"\")","v":0.38497834419999999},{"$f":"IFERROR(INDEX('Data Annex'!$K$1:$BA$5047,MATCH(T$1&\"|\"&$B33,'Data Annex'!$K$1:$K$5047,0),MATCH(T$2,'Data Annex'!$K$1:$BA$1,0)),\"\")","v":0.2867193676},{"$f":"IFERROR(INDEX('Data Annex'!$K$1:$BA$5047,MATCH(U$1&\"|\"&$B33,'Data Annex'!$K$1:$K$5047,0),MATCH(U$2,'Data Annex'!$K$1:$BA$1,0)),\"\")","v":0},{"$f":"IFERROR(INDEX('Data Annex'!$K$1:$BA$5047,MATCH(V$1&\"|\"&$B33,'Data Annex'!$K$1:$K$5047,0),MATCH(V$2,'Data Annex'!$K$1:$BA$1,0)),\"\")","v":0},{"$f":"IFERROR(INDEX('Data Annex'!$K$1:$BA$5047,MATCH(W$1&\"|\"&$B33,'Data Annex'!$K$1:$K$5047,0),MATCH(W$2,'Data Annex'!$K$1:$BA$1,0)),\"\")","v":1.8909627200000001E-2},{"$f":"IFERROR(INDEX('Data Annex'!$K$1:$BA$5047,MATCH(X$1&\"|\"&$B33,'Data Annex'!$K$1:$K$5047,0),MATCH(X$2,'Data Annex'!$K$1:$BA$1,0)),\"\")","v":1.43002636E-2}]
[22,"MT",null,"MT",{"$f":"IFERROR(INDEX('Data Annex'!$K$1:$BA$5047,MATCH(E$1&\"|\"&$B34,'Data Annex'!$K$1:$K$5047,0),MATCH(E$2,'Data Annex'!$K$1:$BA$1,0)),\"\")","v":0},{"$f":"IFERROR(INDEX('Data Annex'!$K$1:$BA$5047,MATCH(F$1&\"|\"&$B34,'Data Annex'!$K$1:$K$5047,0),MATCH(F$2,'Data Annex'!$K$1:$BA$1,0)),\"\")","v":5.0590441600000001E-2},{"$f":"IFERROR(INDEX('Data Annex'!$K$1:$BA$5047,MATCH(G$1&\"|\"&$B34,'Data Annex'!$K$1:$K$5047,0),MATCH(G$2,'Data Annex'!$K$1:$BA$1,0)),\"\")","v":0.1204821563},{"$f":"IFERROR(INDEX('Data Annex'!$K$1:$BA$5047,MATCH(H$1&\"|\"&$B34,'Data Annex'!$K$1:$K$5047,0),MATCH(H$2,'Data Annex'!$K$1:$BA$1,0)),\"\")","v":0.20820884519999999},{"$f":"IFERROR(INDEX('Data Annex'!$K$1:$BA$5047,MATCH(I$1&\"|\"&$B34,'Data Annex'!$K$1:$K$5047,0),MATCH(I$2,'Data Annex'!$K$1:$BA$1,0)),\"\")","v":0},{"$f":"IFERROR(INDEX('Data Annex'!$K$1:$BA$5047,MATCH(J$1&\"|\"&$B34,'Data Annex'!$K$1:$K$5047,0),MATCH(J$2,'Data Annex'!$K$1:$BA$1,0)),\"\")","v":0},{"$f":"IFERROR(INDEX('Data Annex'!$K$1:$BA$5047,MATCH(K$1&\"|\"&$B34,'Data Annex'!$K$1:$K$5047,0),MATCH(K$2,'Data Annex'!$K$1:$BA$1,0)),\"\")","v":0},{"$f":"IFERROR(INDEX('Data Annex'!$K$1:$BA$5047,MATCH(L$1&\"|\"&$B34,'Data Annex'!$K$1:$K$5047,0),MATCH(L$2,'Data Annex'!$K$1:$BA$1,0)),\"\")","v":0},{"$f":"IFERROR(INDEX('Data Annex'!$K$1:$BA$5047,MATCH(M$1&\"|\"&$B34,'Data Annex'!$K$1:$K$5047,0),MATCH(M$2,'Data Annex'!$K$1:$BA$1,0)),\"\")","v":0},{"$f":"IFERROR(INDEX('Data Annex'!$K$1:$BA$5047,MATCH(N$1&\"|\"&$B34,'Data Annex'!$K$1:$K$5047,0),MATCH(N$2,'Data Annex'!$K$1:$BA$1,0)),\"\")","v":0},{"$f":"IFERROR(INDEX('Data Annex'!$K$1:$BA$5047,MATCH(O$1&\"|\"&$B34,'Data Annex'!$K$1:$K$5047,0),MATCH(O$2,'Data Annex'!$K$1:$BA$1,0)),\"\")","v":0},{"$f":"IFERROR(INDEX('Data Annex'!$K$1:$BA$5047,MATCH(P$1&\"|\"&$B34,'Data Annex'!$K$1:$K$5047,0),MATCH(P$2,'Data Annex'!$K$1:$BA$1,0)),\"\")","v":0},{"$f":"IFERROR(INDEX('Data Annex'!$K$1:$BA$5047,MATCH(Q$1&\"|\"&$B34,'Data Annex'!$K$1:$K$5047,0),MATCH(Q$2,'Data Annex'!$K$1:$BA$1,0)),\"\")","v":0},{"$f":"IFERROR(INDEX('Data Annex'!$K$1:$BA$5047,MATCH(R$1&\"|\"&$B34,'Data Annex'!$K$1:$K$5047,0),MATCH(R$2,'Data Annex'!$K$1:$BA$1,0)),\"\")","v":1.958149E-4},{"$f":"IFERROR(INDEX('Data Annex'!$K$1:$BA$5047,MATCH(S$1&\"|\"&$B34,'Data Annex'!$K$1:$K$5047,0),MATCH(S$2,'Data Annex'!$K$1:$BA$1,0)),\"\")","v":6.6578322400000001E-2},{"$f":"IFERROR(INDEX('Data Annex'!$K$1:$BA$5047,MATCH(T$1&\"|\"&$B34,'Data Annex'!$K$1:$K$5047,0),MATCH(T$2,'Data Annex'!$K$1:$BA$1,0)),\"\")","v":4.0495311800000003E-2},{"$f":"IFERROR(INDEX('Data Annex'!$K$1:$BA$5047,MATCH(U$1&\"|\"&$B34,'Data Annex'!$K$1:$K$5047,0),MATCH(U$2,'Data Annex'!$K$1:$BA$1,0)),\"\")","v":0},{"$f":"IFERROR(INDEX('Data Annex'!$K$1:$BA$5047,MATCH(V$1&\"|\"&$B34,'Data Annex'!$K$1:$K$5047,0),MATCH(V$2,'Data Annex'!$K$1:$BA$1,0)),\"\")","v":0.20769899989999999},{"$f":"IFERROR(INDEX('Data Annex'!$K$1:$BA$5047,MATCH(W$1&\"|\"&$B34,'Data Annex'!$K$1:$K$5047,0),MATCH(W$2,'Data Annex'!$K$1:$BA$1,0)),\"\")","v":0.21981666280000001},{"$f":"IFERROR(INDEX('Data Annex'!$K$1:$BA$5047,MATCH(X$1&\"|\"&$B34,'Data Annex'!$K$1:$K$5047,0),MATCH(X$2,'Data Annex'!$K$1:$BA$1,0)),\"\")","v":0.2294600091}]
[23,"NL",null,"NL",{"$f":"IFERROR(INDEX('Data Annex'!$K$1:$BA$5047,MATCH(E$1&\"|\"&$B35,'Data Annex'!$K$1:$K$5047,0),MATCH(E$2,'Data Annex'!$K$1:$BA$1,0)),\"\")","v":0},{"$f":"IFERROR(INDEX('Data Annex'!$K$1:$BA$5047,MATCH(F$1&\"|\"&$B35,'Data Annex'!$K$1:$K$5047,0),MATCH(F$2,'Data Annex'!$K$1:$BA$1,0)),\"\")","v":1.0253058872},{"$f":"IFERROR(INDEX('Data Annex'!$K$1:$BA$5047,MATCH(G$1&\"|\"&$B35,'Data Annex'!$K$1:$K$5047,0),MATCH(G$2,'Data Annex'!$K$1:$BA$1,0)),\"\")","v":1.9424361226},{"$f":"IFERROR(INDEX('Data Annex'!$K$1:$BA$5047,MATCH(H$1&\"|\"&$B35,'Data Annex'!$K$1:$K$5047,0),MATCH(H$2,'Data Annex'!$K$1:$BA$1,0)),\"\")","v":2.6547308963999998},{"$f":"IFERROR(INDEX('Data Annex'!$K$1:$BA$5047,MATCH(I$1&\"|\"&$B35,'Data Annex'!$K$1:$K$5047,0),MATCH(I$2,'Data Annex'!$K$1:$BA$1,0)),\"\")","v":0},{"$f":"IFERROR(INDEX('Data Annex'!$K$1:$BA$5047,MATCH(J$1&\"|\"&$B35,'Data Annex'!$K$1:$K$5047,0),MATCH(J$2,'Data Annex'!$K$1:$BA$1,0)),\"\")","v":3.6687251499999997E-2},{"$f":"IFERROR(INDEX('Data Annex'!$K$1:$BA$5047,MATCH(K$1&\"|\"&$B35,'Data Annex'!$K$1:$K$5047,0),MATCH(K$2,'Data Annex'!$K$1:$BA$1,0)),\"\")","v":6.1151591399999997E-2},{"$f":"IFERROR(INDEX('Data Annex'!$K$1:$BA$5047,MATCH(L$1&\"|\"&$B35,'Data Annex'!$K$1:$K$5047,0),MATCH(L$2,'Data Annex'!$K$1:$BA$1,0)),\"\")","v":0.1121971167},{"$f":"IFERROR(INDEX('Data Annex'!$K$1:$BA$5047,MATCH(M$1&\"|\"&$B35,'Data Annex'!$K$1:$K$5047,0),MATCH(M$2,'Data Annex'!$K$1:$BA$1,0)),\"\")","v":0},{"$f":"IFERROR(INDEX('Data Annex'!$K$1:$BA$5047,MATCH(N$1&\"|\"&$B35,'Data Annex'!$K$1:$K$5047,0),MATCH(N$2,'Data Annex'!$K$1:$BA$1,0)),\"\")","v":3.7541114399999999E-2},{"$f":"IFERROR(INDEX('Data Annex'!$K$1:$BA$5047,MATCH(O$1&\"|\"&$B35,'Data Annex'!$K$1:$K$5047,0),MATCH(O$2,'Data Annex'!$K$1:$BA$1,0)),\"\")","v":0.17466344819999999},{"$f":"IFERROR(INDEX('Data Annex'!$K$1:$BA$5047,MATCH(P$1&\"|\"&$B35,'Data Annex'!$K$1:$K$5047,0),MATCH(P$2,'Data Annex'!$K$1:$BA$1,0)),\"\")","v":0.15849467170000001},{"$f":"IFERROR(INDEX('Data Annex'!$K$1:$BA$5047,MATCH(Q$1&\"|\"&$B35,'Data Annex'!$K$1:$K$5047,0),MATCH(Q$2,'Data Annex'!$K$1:$BA$1,0)),\"\")","v":0},{"$f":"IFERROR(INDEX('Data Annex'!$K$1:$BA$5047,MATCH(R$1&\"|\"&$B35,'Data Annex'!$K$1:$K$5047,0),MATCH(R$2,'Data Annex'!$K$1:$BA$1,0)),\"\")","v":0.3699608653},{"$f":"IFERROR(INDEX('Data Annex'!$K$1:$BA$5047,MATCH(S$1&\"|\"&$B35,'Data Annex'!$K$1:$K$5047,0),MATCH(S$2,'Data Annex'!$K$1:$BA$1,0)),\"\")","v":0.28258373790000002},{"$f":"IFERROR(INDEX('Data Annex'!$K$1:$BA$5047,MATCH(T$1&\"|\"&$B35,'Data Annex'!$K$1:$K$5047,0),MATCH(T$2,'Data Annex'!$K$1:$BA$1,0)),\"\")","v":0.22318902290000001},{"$f":"IFERROR(INDEX('Data Annex'!$K$1:$BA$5047,MATCH(U$1&\"|\"&$B35,'Data Annex'!$K$1:$K$5047,0),MATCH(U$2,'Data Annex'!$K$1:$BA$1,0)),\"\")","v":0},{"$f":"IFERROR(INDEX('Data Annex'!$K$1:$BA$5047,MATCH(V$1&\"|\"&$B35,'Data Annex'!$K$1:$K$5047,0),MATCH(V$2,'Data Annex'!$K$1:$BA$1,0)),\"\")","v":0.5422883678},{"$f":"IFERROR(INDEX('Data Annex'!$K$1:$BA$5047,MATCH(W$1&\"|\"&$B35,'Data Annex'!$K$1:$K$5047,0),MATCH(W$2,'Data Annex'!$K$1:$BA$1,0)),\"\")","v":0.3662702229},{"$f":"IFERROR(INDEX('Data Annex'!$K$1:$BA$5047,MATCH(X$1&\"|\"&$B35,'Data Annex'!$K$1:$K$5047,0),MATCH(X$2,'Data Annex'!$K$1:$BA$1,0)),\"\")","v":0.37771844900000001}]
[24,"NO",null,"NO",{"$f":"IFERROR(INDEX('Data Annex'!$K$1:$BA$5047,MATCH(E$1&\"|\"&$B36,'Data Annex'!$K$1:$K$5047,0),MATCH(E$2,'Data Annex'!$K$1:$BA$1,0)),\"\")","v":""},{"$f":"IFERROR(INDEX('Data Annex'!$K$1:$BA$5047,MATCH(F$1&\"|\"&$B36,'Data Annex'!$K$1:$K$5047,0),MATCH(F$2,'Data Annex'!$K$1:$BA$1,0)),\"\")","v":""},{"$f":"IFERROR(INDEX('Data Annex'!$K$1:$BA$5047,MATCH(G$1&\"|\"&$B36,'Data Annex'!$K$1:$K$5047,0),MATCH(G$2,'Data Annex'!$K$1:$BA$1,0)),\"\")","v":""},{"$f":"IFERROR(INDEX('Data Annex'!$K$1:$BA$5047,MATCH(H$1&\"|\"&$B36,'Data Annex'!$K$1:$K$5047,0),MATCH(H$2,'Data Annex'!$K$1:$BA$1,0)),\"\")","v":""},{"$f":"IFERROR(INDEX('Data Annex'!$K$1:$BA$5047,MATCH(I$1&\"|\"&$B36,'Data Annex'!$K$1:$K$5047,0),MATCH(I$2,'Data Annex'!$K$1:$BA$1,0)),\"\")","v":""},{"$f":"IFERROR(INDEX('Data Annex'!$K$1:$BA$5047,MATCH(J$1&\"|\"&$B36,'Data Annex'!$K$1:$K$5047,0),MATCH(J$2,'Data Annex'!$K$1:$BA$1,0)),\"\")","v":""},{"$f":"IFERROR(INDEX('Data Annex'!$K$1:$BA$5047,MATCH(K$1&\"|\"&$B36,'Data Annex'!$K$1:$K$5047,0),MATCH(K$2,'Data Annex'!$K$1:$BA$1,0)),\"\")","v":""},{"$f":"IFERROR(INDEX('Data Annex'!$K$1:$BA$5047,MATCH(L$1&\"|\"&$B36,'Data Annex'!$K$1:$K$5047,0),MATCH(L$2,'Data Annex'!$K$1:$BA$1,0)),\"\")","v":""},{"$f":"IFERROR(INDEX('Data Annex'!$K$1:$BA$5047,MATCH(M$1&\"|\"&$B36,'Data Annex'!$K$1:$K$5047,0),MATCH(M$2,'Data Annex'!$K$1:$BA$1,0)),\"\")","v":""},{"$f":"IFERROR(INDEX('Data Annex'!$K$1:$BA$5047,MATCH(N$1&\"|\"&$B36,'Data Annex'!$K$1:$K$5047,0),MATCH(N$2,'Data Annex'!$K$1:$BA$1,0)),\"\")","v":""},{"$f":"IFERROR(INDEX('Data Annex'!$K$1:$BA$5047,MATCH(O$1&\"|\"&$B36,'Data Annex'!$K$1:$K$5047,0),MATCH(O$2,'Data Annex'!$K$1:$BA$1,0)),\"\")","v":""},{"$f":"IFERROR(INDEX('Data Annex'!$K$1:$BA$5047,MATCH(P$1&\"|\"&$B36,'Data Annex'!$K$1:$K$5047,0),MATCH(P$2,'Data Annex'!$K$1:$BA$1,0)),\"\")","v":""},{"$f":"IFERROR(INDEX('Data Annex'!$K$1:$BA$5047,MATCH(Q$1&\"|\"&$B36,'Data Annex'!$K$1:$K$5047,0),MATCH(Q$2,'Data Annex'!$K$1:$BA$1,0)),\"\")","v":""},{"$f":"IFERROR(INDEX('Data Annex'!$K$1:$BA$5047,MATCH(R$1&\"|\"&$B36,'Data Annex'!$K$1:$K$5047,0),MATCH(R$2,'Data Annex'!$K$1:$BA$1,0)),\"\")","v":""},{"$f":"IFERROR(INDEX('Data Annex'!$K$1:$BA$5047,MATCH(S$1&\"|\"&$B36,'Data Annex'!$K$1:$K$5047,0),MATCH(S$2,'Data Annex'!$K$1:$BA$1,0)),\"\")","v":""},{"$f":"IFERROR(INDEX('Data Annex'!$K$1:$BA$5047,MATCH(T$1&\"|\"&$B36,'Data Annex'!$K$1:$K$5047,0),MATCH(T$2,'Data Annex'!$K$1:$BA$1,0)),\"\")","v":""},{"$f":"IFERROR(INDEX('Data Annex'!$K$1:$BA$5047,MATCH(U$1&\"|\"&$B36,'Data Annex'!$K$1:$K$5047,0),MATCH(U$2,'Data Annex'!$K$1:$BA$1,0)),\"\")","v":""},{"$f":"IFERROR(INDEX('Data Annex'!$K$1:$BA$5047,MATCH(V$1&\"|\"&$B36,'Data Annex'!$K$1:$K$5047,0),MATCH(V$2,'Data Annex'!$K$1:$BA$1,0)),\"\")","v":""},{"$f":"IFERROR(INDEX('Data Annex'!$K$1:$BA$5047,MATCH(W$1&\"|\"&$B36,'Data Annex'!$K$1:$K$5047,0),MATCH(W$2,'Data Annex'!$K$1:$BA$1,0)),\"\")","v":""},{"$f":"IFERROR(INDEX('Data Annex'!$K$1:$BA$5047,MATCH(X$1&\"|\"&$B36,'Data Annex'!$K$1:$K$5047,0),MATCH(X$2,'Data Annex'!$K$1:$BA$1,0)),\"\")","v":""}]
[25,"PL",null,"PL",{"$f":"IFERROR(INDEX('Data Annex'!$K$1:$BA$5047,MATCH(E$1&\"|\"&$B37,'Data Annex'!$K$1:$K$5047,0),MATCH(E$2,'Data Annex'!$K$1:$BA$1,0)),\"\")","v":0},{"$f":"IFERROR(INDEX('Data Annex'!$K$1:$BA$5047,MATCH(F$1&\"|\"&$B37,'Data Annex'!$K$1:$K$5047,0),MATCH(F$2,'Data Annex'!$K$1:$BA$1,0)),\"\")","v":0.56592643009999999},{"$f":"IFERROR(INDEX('Data Annex'!$K$1:$BA$5047,MATCH(G$1&\"|\"&$B37,'Data Annex'!$K$1:$K$5047,0),MATCH(G$2,'Data Annex'!$K$1:$BA$1,0)),\"\")","v":1.3982563633},{"$f":"IFERROR(INDEX('Data Annex'!$K$1:$BA$5047,MATCH(H$1&\"|\"&$B37,'Data Annex'!$K$1:$K$5047,0),MATCH(H$2,'Data Annex'!$K$1:$BA$1,0)),\"\")","v":2.1984558950999999},{"$f":"IFERROR(INDEX('Data Annex'!$K$1:$BA$5047,MATCH(I$1&\"|\"&$B37,'Data Annex'!$K$1:$K$5047,0),MATCH(I$2,'Data Annex'!$K$1:$BA$1,0)),\"\")","v":0},{"$f":"IFERROR(INDEX('Data Annex'!$K$1:$BA$5047,MATCH(J$1&\"|\"&$B37,'Data Annex'!$K$1:$K$5047,0),MATCH(J$2,'Data Annex'!$K$1:$BA$1,0)),\"\")","v":6.3007208499999995E-2},{"$f":"IFERROR(INDEX('Data Annex'!$K$1:$BA$5047,MATCH(K$1&\"|\"&$B37,'Data Annex'!$K$1:$K$5047,0),MATCH(K$2,'Data Annex'!$K$1:$BA$1,0)),\"\")","v":0.1093322464},{"$f":"IFERROR(INDEX('Data Annex'!$K$1:$BA$5047,MATCH(L$1&\"|\"&$B37,'Data Annex'!$K$1:$K$5047,0),MATCH(L$2,'Data Annex'!$K$1:$BA$1,0)),\"\")","v":0.16611613489999999},{"$f":"IFERROR(INDEX('Data Annex'!$K$1:$BA$5047,MATCH(M$1&\"|\"&$B37,'Data Annex'!$K$1:$K$5047,0),MATCH(M$2,'Data Annex'!$K$1:$BA$1,0)),\"\")","v":0},{"$f":"IFERROR(INDEX('Data Annex'!$K$1:$BA$5047,MATCH(N$1&\"|\"&$B37,'Data Annex'!$K$1:$K$5047,0),MATCH(N$2,'Data Annex'!$K$1:$BA$1,0)),\"\")","v":0.23934928320000001},{"$f":"IFERROR(INDEX('Data Annex'!$K$1:$BA$5047,MATCH(O$1&\"|\"&$B37,'Data Annex'!$K$1:$K$5047,0),MATCH(O$2,'Data Annex'!$K$1:$BA$1,0)),\"\")","v":0.45228464159999998},{"$f":"IFERROR(INDEX('Data Annex'!$K$1:$BA$5047,MATCH(P$1&\"|\"&$B37,'Data Annex'!$K$1:$K$5047,0),MATCH(P$2,'Data Annex'!$K$1:$BA$1,0)),\"\")","v":0.35683926090000001},{"$f":"IFERROR(INDEX('Data Annex'!$K$1:$BA$5047,MATCH(Q$1&\"|\"&$B37,'Data Annex'!$K$1:$K$5047,0),MATCH(Q$2,'Data Annex'!$K$1:$BA$1,0)),\"\")","v":0},{"$f":"IFERROR(INDEX('Data Annex'!$K$1:$BA$5047,MATCH(R$1&\"|\"&$B37,'Data Annex'!$K$1:$K$5047,0),MATCH(R$2,'Data Annex'!$K$1:$BA$1,0)),\"\")","v":0.36491988609999998},{"$f":"IFERROR(INDEX('Data Annex'!$K$1:$BA$5047,MATCH(S$1&\"|\"&$B37,'Data Annex'!$K$1:$K$5047,0),MATCH(S$2,'Data Annex'!$K$1:$BA$1,0)),\"\")","v":0.27370609330000001},{"$f":"IFERROR(INDEX('Data Annex'!$K$1:$BA$5047,MATCH(T$1&\"|\"&$B37,'Data Annex'!$K$1:$K$5047,0),MATCH(T$2,'Data Annex'!$K$1:$BA$1,0)),\"\")","v":0.28875033319999999},{"$f":"IFERROR(INDEX('Data Annex'!$K$1:$BA$5047,MATCH(U$1&\"|\"&$B37,'Data Annex'!$K$1:$K$5047,0),MATCH(U$2,'Data Annex'!$K$1:$BA$1,0)),\"\")","v":0},{"$f":"IFERROR(INDEX('Data Annex'!$K$1:$BA$5047,MATCH(V$1&\"|\"&$B37,'Data Annex'!$K$1:$K$5047,0),MATCH(V$2,'Data Annex'!$K$1:$BA$1,0)),\"\")","v":0.32924271729999999},{"$f":"IFERROR(INDEX('Data Annex'!$K$1:$BA$5047,MATCH(W$1&\"|\"&$B37,'Data Annex'!$K$1:$K$5047,0),MATCH(W$2,'Data Annex'!$K$1:$BA$1,0)),\"\")","v":0.16467701870000001},{"$f":"IFERROR(INDEX('Data Annex'!$K$1:$BA$5047,MATCH(X$1&\"|\"&$B37,'Data Annex'!$K$1:$K$5047,0),MATCH(X$2,'Data Annex'!$K$1:$BA$1,0)),\"\")","v":0.17637078950000001}]
[26,"PT",null,"PT",{"$f":"IFERROR(INDEX('Data Annex'!$K$1:$BA$5047,MATCH(E$1&\"|\"&$B38,'Data Annex'!$K$1:$K$5047,0),MATCH(E$2,'Data Annex'!$K$1:$BA$1,0)),\"\")","v":0},{"$f":"IFERROR(INDEX('Data Annex'!$K$1:$BA$5047,MATCH(F$1&\"|\"&$B38,'Data Annex'!$K$1:$K$5047,0),MATCH(F$2,'Data Annex'!$K$1:$BA$1,0)),\"\")","v":4.3593307882000003},{"$f":"IFERROR(INDEX('Data Annex'!$K$1:$BA$5047,MATCH(G$1&\"|\"&$B38,'Data Annex'!$K$1:$K$5047,0),MATCH(G$2,'Data Annex'!$K$1:$BA$1,0)),\"\")","v":6.0222017793999996},{"$f":"IFERROR(INDEX('Data Annex'!$K$1:$BA$5047,MATCH(H$1&\"|\"&$B38,'Data Annex'!$K$1:$K$5047,0),MATCH(H$2,'Data Annex'!$K$1:$BA$1,0)),\"\")","v":6.8248269197000004},{"$f":"IFERROR(INDEX('Data Annex'!$K$1:$BA$5047,MATCH(I$1&\"|\"&$B38,'Data Annex'!$K$1:$K$5047,0),MATCH(I$2,'Data Annex'!$K$1:$BA$1,0)),\"\")","v":0},{"$f":"IFERROR(INDEX('Data Annex'!$K$1:$BA$5047,MATCH(J$1&\"|\"&$B38,'Data Annex'!$K$1:$K$5047,0),MATCH(J$2,'Data Annex'!$K$1:$BA$1,0)),\"\")","v":1.2382149999999999E-4},{"$f":"IFERROR(INDEX('Data Annex'!$K$1:$BA$5047,MATCH(K$1&\"|\"&$B38,'Data Annex'!$K$1:$K$5047,0),MATCH(K$2,'Data Annex'!$K$1:$BA$1,0)),\"\")","v":1.4027533E-3},{"$f":"IFERROR(INDEX('Data Annex'!$K$1:$BA$5047,MATCH(L$1&\"|\"&$B38,'Data Annex'!$K$1:$K$5047,0),MATCH(L$2,'Data Annex'!$K$1:$BA$1,0)),\"\")","v":8.6324147000000004E-3},{"$f":"IFERROR(INDEX('Data Annex'!$K$1:$BA$5047,MATCH(M$1&\"|\"&$B38,'Data Annex'!$K$1:$K$5047,0),MATCH(M$2,'Data Annex'!$K$1:$BA$1,0)),\"\")","v":0},{"$f":"IFERROR(INDEX('Data Annex'!$K$1:$BA$5047,MATCH(N$1&\"|\"&$B38,'Data Annex'!$K$1:$K$5047,0),MATCH(N$2,'Data Annex'!$K$1:$BA$1,0)),\"\")","v":1.09760012E-2},{"$f":"IFERROR(INDEX('Data Annex'!$K$1:$BA$5047,MATCH(O$1&\"|\"&$B38,'Data Annex'!$K$1:$K$5047,0),MATCH(O$2,'Data Annex'!$K$1:$BA$1,0)),\"\")","v":1.65030184E-2},{"$f":"IFERROR(INDEX('Data Annex'!$K$1:$BA$5047,MATCH(P$1&\"|\"&$B38,'Data Annex'!$K$1:$K$5047,0),MATCH(P$2,'Data Annex'!$K$1:$BA$1,0)),\"\")","v":8.3448781999999992E-3},{"$f":"IFERROR(INDEX('Data Annex'!$K$1:$BA$5047,MATCH(Q$1&\"|\"&$B38,'Data Annex'!$K$1:$K$5047,0),MATCH(Q$2,'Data Annex'!$K$1:$BA$1,0)),\"\")","v":0},{"$f":"IFERROR(INDEX('Data Annex'!$K$1:$BA$5047,MATCH(R$1&\"|\"&$B38,'Data Annex'!$K$1:$K$5047,0),MATCH(R$2,'Data Annex'!$K$1:$BA$1,0)),\"\")","v":7.6990126000000001E-3},{"$f":"IFERROR(INDEX('Data Annex'!$K$1:$BA$5047,MATCH(S$1&\"|\"&$B38,'Data Annex'!$K$1:$K$5047,0),MATCH(S$2,'Data Annex'!$K$1:$BA$1,0)),\"\")","v":8.9087083000000001E-3},{"$f":"IFERROR(INDEX('Data Annex'!$K$1:$BA$5047,MATCH(T$1&\"|\"&$B38,'Data Annex'!$K$1:$K$5047,0),MATCH(T$2,'Data Annex'!$K$1:$BA$1,0)),\"\")","v":1.25393689E-2},{"$f":"IFERROR(INDEX('Data Annex'!$K$1:$BA$5047,MATCH(U$1&\"|\"&$B38,'Data Annex'!$K$1:$K$5047,0),MATCH(U$2,'Data Annex'!$K$1:$BA$1,0)),\"\")","v":0},{"$f":"IFERROR(INDEX('Data Annex'!$K$1:$BA$5047,MATCH(V$1&\"|\"&$B38,'Data Annex'!$K$1:$K$5047,0),MATCH(V$2,'Data Annex'!$K$1:$BA$1,0)),\"\")","v":0.50877036470000003},{"$f":"IFERROR(INDEX('Data Annex'!$K$1:$BA$5047,MATCH(W$1&\"|\"&$B38,'Data Annex'!$K$1:$K$5047,0),MATCH(W$2,'Data Annex'!$K$1:$BA$1,0)),\"\")","v":0.51557111680000001},{"$f":"IFERROR(INDEX('Data Annex'!$K$1:$BA$5047,MATCH(X$1&\"|\"&$B38,'Data Annex'!$K$1:$K$5047,0),MATCH(X$2,'Data Annex'!$K$1:$BA$1,0)),\"\")","v":0.5217154048}]
[27,"RO",null,"RO",{"$f":"IFERROR(INDEX('Data Annex'!$K$1:$BA$5047,MATCH(E$1&\"|\"&$B39,'Data Annex'!$K$1:$K$5047,0),MATCH(E$2,'Data Annex'!$K$1:$BA$1,0)),\"\")","v":0},{"$f":"IFERROR(INDEX('Data Annex'!$K$1:$BA$5047,MATCH(F$1&\"|\"&$B39,'Data Annex'!$K$1:$K$5047,0),MATCH(F$2,'Data Annex'!$K$1:$BA$1,0)),\"\")","v":4.5870034599999998E-2},{"$f":"IFERROR(INDEX('Data Annex'!$K$1:$BA$5047,MATCH(G$1&\"|\"&$B39,'Data Annex'!$K$1:$K$5047,0),MATCH(G$2,'Data Annex'!$K$1:$BA$1,0)),\"\")","v":0.50362225540000005},{"$f":"IFERROR(INDEX('Data Annex'!$K$1:$BA$5047,MATCH(H$1&\"|\"&$B39,'Data Annex'!$K$1:$K$5047,0),MATCH(H$2,'Data Annex'!$K$1:$BA$1,0)),\"\")","v":0.86336382020000002},{"$f":"IFERROR(INDEX('Data Annex'!$K$1:$BA$5047,MATCH(I$1&\"|\"&$B39,'Data Annex'!$K$1:$K$5047,0),MATCH(I$2,'Data Annex'!$K$1:$BA$1,0)),\"\")","v":0},{"$f":"IFERROR(INDEX('Data Annex'!$K$1:$BA$5047,MATCH(J$1&\"|\"&$B39,'Data Annex'!$K$1:$K$5047,0),MATCH(J$2,'Data Annex'!$K$1:$BA$1,0)),\"\")","v":1.64191E-5},{"$f":"IFERROR(INDEX('Data Annex'!$K$1:$BA$5047,MATCH(K$1&\"|\"&$B39,'Data Annex'!$K$1:$K$5047,0),MATCH(K$2,'Data Annex'!$K$1:$BA$1,0)),\"\")","v":1.1189982E-3},{"$f":"IFERROR(INDEX('Data Annex'!$K$1:$BA$5047,MATCH(L$1&\"|\"&$B39,'Data Annex'!$K$1:$K$5047,0),MATCH(L$2,'Data Annex'!$K$1:$BA$1,0)),\"\")","v":5.4337335000000002E-3},{"$f":"IFERROR(INDEX('Data Annex'!$K$1:$BA$5047,MATCH(M$1&\"|\"&$B39,'Data Annex'!$K$1:$K$5047,0),MATCH(M$2,'Data Annex'!$K$1:$BA$1,0)),\"\")","v":0},{"$f":"IFERROR(INDEX('Data Annex'!$K$1:$BA$5047,MATCH(N$1&\"|\"&$B39,'Data Annex'!$K$1:$K$5047,0),MATCH(N$2,'Data Annex'!$K$1:$BA$1,0)),\"\")","v":2.9386770999999998E-3},{"$f":"IFERROR(INDEX('Data Annex'!$K$1:$BA$5047,MATCH(O$1&\"|\"&$B39,'Data Annex'!$K$1:$K$5047,0),MATCH(O$2,'Data Annex'!$K$1:$BA$1,0)),\"\")","v":1.24706856E-2},{"$f":"IFERROR(INDEX('Data Annex'!$K$1:$BA$5047,MATCH(P$1&\"|\"&$B39,'Data Annex'!$K$1:$K$5047,0),MATCH(P$2,'Data Annex'!$K$1:$BA$1,0)),\"\")","v":4.4606940999999999E-3},{"$f":"IFERROR(INDEX('Data Annex'!$K$1:$BA$5047,MATCH(Q$1&\"|\"&$B39,'Data Annex'!$K$1:$K$5047,0),MATCH(Q$2,'Data Annex'!$K$1:$BA$1,0)),\"\")","v":0},{"$f":"IFERROR(INDEX('Data Annex'!$K$1:$BA$5047,MATCH(R$1&\"|\"&$B39,'Data Annex'!$K$1:$K$5047,0),MATCH(R$2,'Data Annex'!$K$1:$BA$1,0)),\"\")","v":1.9253312500000001E-2},{"$f":"IFERROR(INDEX('Data Annex'!$K$1:$BA$5047,MATCH(S$1&\"|\"&$B39,'Data Annex'!$K$1:$K$5047,0),MATCH(S$2,'Data Annex'!$K$1:$BA$1,0)),\"\")","v":1.22213653E-2},{"$f":"IFERROR(INDEX('Data Annex'!$K$1:$BA$5047,MATCH(T$1&\"|\"&$B39,'Data Annex'!$K$1:$K$5047,0),MATCH(T$2,'Data Annex'!$K$1:$BA$1,0)),\"\")","v":1.16874827E-2},{"$f":"IFERROR(INDEX('Data Annex'!$K$1:$BA$5047,MATCH(U$1&\"|\"&$B39,'Data Annex'!$K$1:$K$5047,0),MATCH(U$2,'Data Annex'!$K$1:$BA$1,0)),\"\")","v":0},{"$f":"IFERROR(INDEX('Data Annex'!$K$1:$BA$5047,MATCH(V$1&\"|\"&$B39,'Data Annex'!$K$1:$K$5047,0),MATCH(V$2,'Data Annex'!$K$1:$BA$1,0)),\"\")","v":0.97779159120000003},{"$f":"IFERROR(INDEX('Data Annex'!$K$1:$BA$5047,MATCH(W$1&\"|\"&$B39,'Data Annex'!$K$1:$K$5047,0),MATCH(W$2,'Data Annex'!$K$1:$BA$1,0)),\"\")","v":0.9586450903},{"$f":"IFERROR(INDEX('Data Annex'!$K$1:$BA$5047,MATCH(X$1&\"|\"&$B39,'Data Annex'!$K$1:$K$5047,0),MATCH(X$2,'Data Annex'!$K$1:$BA$1,0)),\"\")","v":0.95451266540000002}]
[28,"SE",null,"SE",{"$f":"IFERROR(INDEX('Data Annex'!$K$1:$BA$5047,MATCH(E$1&\"|\"&$B40,'Data Annex'!$K$1:$K$5047,0),MATCH(E$2,'Data Annex'!$K$1:$BA$1,0)),\"\")","v":0},{"$f":"IFERROR(INDEX('Data Annex'!$K$1:$BA$5047,MATCH(F$1&\"|\"&$B40,'Data Annex'!$K$1:$K$5047,0),MATCH(F$2,'Data Annex'!$K$1:$BA$1,0)),\"\")","v":8.5609748499999999E-2},{"$f":"IFERROR(INDEX('Data Annex'!$K$1:$BA$5047,MATCH(G$1&\"|\"&$B40,'Data Annex'!$K$1:$K$5047,0),MATCH(G$2,'Data Annex'!$K$1:$BA$1,0)),\"\")","v":0.1037920737},{"$f":"IFERROR(INDEX('Data Annex'!$K$1:$BA$5047,MATCH(H$1&\"|\"&$B40,'Data Annex'!$K$1:$K$5047,0),MATCH(H$2,'Data Annex'!$K$1:$BA$1,0)),\"\")","v":0.13337376640000001},{"$f":"IFERROR(INDEX('Data Annex'!$K$1:$BA$5047,MATCH(I$1&\"|\"&$B40,'Data Annex'!$K$1:$K$5047,0),MATCH(I$2,'Data Annex'!$K$1:$BA$1,0)),\"\")","v":0},{"$f":"IFERROR(INDEX('Data Annex'!$K$1:$BA$5047,MATCH(J$1&\"|\"&$B40,'Data Annex'!$K$1:$K$5047,0),MATCH(J$2,'Data Annex'!$K$1:$BA$1,0)),\"\")","v":0},{"$f":"IFERROR(INDEX('Data Annex'!$K$1:$BA$5047,MATCH(K$1&\"|\"&$B40,'Data Annex'!$K$1:$K$5047,0),MATCH(K$2,'Data Annex'!$K$1:$BA$1,0)),\"\")","v":0},{"$f":"IFERROR(INDEX('Data Annex'!$K$1:$BA$5047,MATCH(L$1&\"|\"&$B40,'Data Annex'!$K$1:$K$5047,0),MATCH(L$2,'Data Annex'!$K$1:$BA$1,0)),\"\")","v":0},{"$f":"IFERROR(INDEX('Data Annex'!$K$1:$BA$5047,MATCH(M$1&\"|\"&$B40,'Data Annex'!$K$1:$K$5047,0),MATCH(M$2,'Data Annex'!$K$1:$BA$1,0)),\"\")","v":0},{"$f":"IFERROR(INDEX('Data Annex'!$K$1:$BA$5047,MATCH(N$1&\"|\"&$B40,'Data Annex'!$K$1:$K$5047,0),MATCH(N$2,'Data Annex'!$K$1:$BA$1,0)),\"\")","v":0},{"$f":"IFERROR(INDEX('Data Annex'!$K$1:$BA$5047,MATCH(O$1&\"|\"&$B40,'Data Annex'!$K$1:$K$5047,0),MATCH(O$2,'Data Annex'!$K$1:$BA$1,0)),\"\")","v":0},{"$f":"IFERROR(INDEX('Data Annex'!$K$1:$BA$5047,MATCH(P$1&\"|\"&$B40,'Data Annex'!$K$1:$K$5047,0),MATCH(P$2,'Data Annex'!$K$1:$BA$1,0)),\"\")","v":0},{"$f":"IFERROR(INDEX('Data Annex'!$K$1:$BA$5047,MATCH(Q$1&\"|\"&$B40,'Data Annex'!$K$1:$K$5047,0),MATCH(Q$2,'Data Annex'!$K$1:$BA$1,0)),\"\")","v":0},{"$f":"IFERROR(INDEX('Data Annex'!$K$1:$BA$5047,MATCH(R$1&\"|\"&$B40,'Data Annex'!$K$1:$K$5047,0),MATCH(R$2,'Data Annex'!$K$1:$BA$1,0)),\"\")","v":0},{"$f":"IFERROR(INDEX('Data Annex'!$K$1:$BA$5047,MATCH(S$1&\"|\"&$B40,'Data Annex'!$K$1:$K$5047,0),MATCH(S$2,'Data Annex'!$K$1:$BA$1,0)),\"\")","v":0},{"$f":"IFERROR(INDEX('Data Annex'!$K$1:$BA$5047,MATCH(T$1&\"|\"&$B40,'Data Annex'!$K$1:$K$5047,0),MATCH(T$2,'Data Annex'!$K$1:$BA$1,0)),\"\")","v":0},{"$f":"IFERROR(INDEX('Data Annex'!$K$1:$BA$5047,MATCH(U$1&\"|\"&$B40,'Data Annex'!$K$1:$K$5047,0),MATCH(U$2,'Data Annex'!$K$1:$BA$1,0)),\"\")","v":0},{"$f":"IFERROR(INDEX('Data Annex'!$K$1:$BA$5047,MATCH(V$1&\"|\"&$B40,'Data Annex'!$K$1:$K$5047,0),MATCH(V$2,'Data Annex'!$K$1:$BA$1,0)),\"\")","v":0},{"$f":"IFERROR(INDEX('Data Annex'!$K$1:$BA$5047,MATCH(W$1&\"|\"&$B40,'Data Annex'!$K$1:$K$5047,0),MATCH(W$2,'Data Annex'!$K$1:$BA$1,0)),\"\")","v":0},{"$f":"IFERROR(INDEX('Data Annex'!$K$1:$BA$5047,MATCH(X$1&\"|\"&$B40,'Data Annex'!$K$1:$K$5047,0),MATCH(X$2,'Data Annex'!$K$1:$BA$1,0)),\"\")","v":0}]
[29,"SI",null,"SI",{"$f":"IFERROR(INDEX('Data Annex'!$K$1:$BA$5047,MATCH(E$1&\"|\"&$B41,'Data Annex'!$K$1:$K$5047,0),MATCH(E$2,'Data Annex'!$K$1:$BA$1,0)),\"\")","v":0},{"$f":"IFERROR(INDEX('Data Annex'!$K$1:$BA$5047,MATCH(F$1&\"|\"&$B41,'Data Annex'!$K$1:$K$5047,0),MATCH(F$2,'Data Annex'!$K$1:$BA$1,0)),\"\")","v":4.42829629E-2},{"$f":"IFERROR(INDEX('Data Annex'!$K$1:$BA$5047,MATCH(G$1&\"|\"&$B41,'Data Annex'!$K$1:$K$5047,0),MATCH(G$2,'Data Annex'!$K$1:$BA$1,0)),\"\")","v":5.8563999999999998E-2},{"$f":"IFERROR(INDEX('Data Annex'!$K$1:$BA$5047,MATCH(H$1&\"|\"&$B41,'Data Annex'!$K$1:$K$5047,0),MATCH(H$2,'Data Annex'!$K$1:$BA$1,0)),\"\")","v":0.15673358900000001},{"$f":"IFERROR(INDEX('Data Annex'!$K$1:$BA$5047,MATCH(I$1&\"|\"&$B41,'Data Annex'!$K$1:$K$5047,0),MATCH(I$2,'Data Annex'!$K$1:$BA$1,0)),\"\")","v":0},{"$f":"IFERROR(INDEX('Data Annex'!$K$1:$BA$5047,MATCH(J$1&\"|\"&$B41,'Data Annex'!$K$1:$K$5047,0),MATCH(J$2,'Data Annex'!$K$1:$BA$1,0)),\"\")","v":0},{"$f":"IFERROR(INDEX('Data Annex'!$K$1:$BA$5047,MATCH(K$1&\"|\"&$B41,'Data Annex'!$K$1:$K$5047,0),MATCH(K$2,'Data Annex'!$K$1:$BA$1,0)),\"\")","v":0},{"$f":"IFERROR(INDEX('Data Annex'!$K$1:$BA$5047,MATCH(L$1&\"|\"&$B41,'Data Annex'!$K$1:$K$5047,0),MATCH(L$2,'Data Annex'!$K$1:$BA$1,0)),\"\")","v":5.4359758000000003E-3},{"$f":"IFERROR(INDEX('Data Annex'!$K$1:$BA$5047,MATCH(M$1&\"|\"&$B41,'Data Annex'!$K$1:$K$5047,0),MATCH(M$2,'Data Annex'!$K$1:$BA$1,0)),\"\")","v":0},{"$f":"IFERROR(INDEX('Data Annex'!$K$1:$BA$5047,MATCH(N$1&\"|\"&$B41,'Data Annex'!$K$1:$K$5047,0),MATCH(N$2,'Data Annex'!$K$1:$BA$1,0)),\"\")","v":0},{"$f":"IFERROR(INDEX('Data Annex'!$K$1:$BA$5047,MATCH(O$1&\"|\"&$B41,'Data Annex'!$K$1:$K$5047,0),MATCH(O$2,'Data Annex'!$K$1:$BA$1,0)),\"\")","v":0},{"$f":"IFERROR(INDEX('Data Annex'!$K$1:$BA$5047,MATCH(P$1&\"|\"&$B41,'Data Annex'!$K$1:$K$5047,0),MATCH(P$2,'Data Annex'!$K$1:$BA$1,0)),\"\")","v":2.40407945E-2},{"$f":"IFERROR(INDEX('Data Annex'!$K$1:$BA$5047,MATCH(Q$1&\"|\"&$B41,'Data Annex'!$K$1:$K$5047,0),MATCH(Q$2,'Data Annex'!$K$1:$BA$1,0)),\"\")","v":0},{"$f":"IFERROR(INDEX('Data Annex'!$K$1:$BA$5047,MATCH(R$1&\"|\"&$B41,'Data Annex'!$K$1:$K$5047,0),MATCH(R$2,'Data Annex'!$K$1:$BA$1,0)),\"\")","v":6.8231785099999998E-2},{"$f":"IFERROR(INDEX('Data Annex'!$K$1:$BA$5047,MATCH(S$1&\"|\"&$B41,'Data Annex'!$K$1:$K$5047,0),MATCH(S$2,'Data Annex'!$K$1:$BA$1,0)),\"\")","v":8.4693668499999999E-2},{"$f":"IFERROR(INDEX('Data Annex'!$K$1:$BA$5047,MATCH(T$1&\"|\"&$B41,'Data Annex'!$K$1:$K$5047,0),MATCH(T$2,'Data Annex'!$K$1:$BA$1,0)),\"\")","v":0.13951448529999999},{"$f":"IFERROR(INDEX('Data Annex'!$K$1:$BA$5047,MATCH(U$1&\"|\"&$B41,'Data Annex'!$K$1:$K$5047,0),MATCH(U$2,'Data Annex'!$K$1:$BA$1,0)),\"\")","v":0},{"$f":"IFERROR(INDEX('Data Annex'!$K$1:$BA$5047,MATCH(V$1&\"|\"&$B41,'Data Annex'!$K$1:$K$5047,0),MATCH(V$2,'Data Annex'!$K$1:$BA$1,0)),\"\")","v":0.92671128859999996},{"$f":"IFERROR(INDEX('Data Annex'!$K$1:$BA$5047,MATCH(W$1&\"|\"&$B41,'Data Annex'!$K$1:$K$5047,0),MATCH(W$2,'Data Annex'!$K$1:$BA$1,0)),\"\")","v":0.91163513419999997},{"$f":"IFERROR(INDEX('Data Annex'!$K$1:$BA$5047,MATCH(X$1&\"|\"&$B41,'Data Annex'!$K$1:$K$5047,0),MATCH(X$2,'Data Annex'!$K$1:$BA$1,0)),\"\")","v":0.82859062839999997}]
[30,"SK",null,"SK",{"$f":"IFERROR(INDEX('Data Annex'!$K$1:$BA$5047,MATCH(E$1&\"|\"&$B42,'Data Annex'!$K$1:$K$5047,0),MATCH(E$2,'Data Annex'!$K$1:$BA$1,0)),\"\")","v":0},{"$f":"IFERROR(INDEX('Data Annex'!$K$1:$BA$5047,MATCH(F$1&\"|\"&$B42,'Data Annex'!$K$1:$K$5047,0),MATCH(F$2,'Data Annex'!$K$1:$BA$1,0)),\"\")","v":4.8731280699999997E-2},{"$f":"IFERROR(INDEX('Data Annex'!$K$1:$BA$5047,MATCH(G$1&\"|\"&$B42,'Data Annex'!$K$1:$K$5047,0),MATCH(G$2,'Data Annex'!$K$1:$BA$1,0)),\"\")","v":0.27725349129999999},{"$f":"IFERROR(INDEX('Data Annex'!$K$1:$BA$5047,MATCH(H$1&\"|\"&$B42,'Data Annex'!$K$1:$K$5047,0),MATCH(H$2,'Data Annex'!$K$1:$BA$1,0)),\"\")","v":0.48302283019999998},{"$f":"IFERROR(INDEX('Data Annex'!$K$1:$BA$5047,MATCH(I$1&\"|\"&$B42,'Data Annex'!$K$1:$K$5047,0),MATCH(I$2,'Data Annex'!$K$1:$BA$1,0)),\"\")","v":0},{"$f":"IFERROR(INDEX('Data Annex'!$K$1:$BA$5047,MATCH(J$1&\"|\"&$B42,'Data Annex'!$K$1:$K$5047,0),MATCH(J$2,'Data Annex'!$K$1:$BA$1,0)),\"\")","v":0},{"$f":"IFERROR(INDEX('Data Annex'!$K$1:$BA$5047,MATCH(K$1&\"|\"&$B42,'Data Annex'!$K$1:$K$5047,0),MATCH(K$2,'Data Annex'!$K$1:$BA$1,0)),\"\")","v":4.1301048999999998E-3},{"$f":"IFERROR(INDEX('Data Annex'!$K$1:$BA$5047,MATCH(L$1&\"|\"&$B42,'Data Annex'!$K$1:$K$5047,0),MATCH(L$2,'Data Annex'!$K$1:$BA$1,0)),\"\")","v":1.8430615399999999E-2},{"$f":"IFERROR(INDEX('Data Annex'!$K$1:$BA$5047,MATCH(M$1&\"|\"&$B42,'Data Annex'!$K$1:$K$5047,0),MATCH(M$2,'Data Annex'!$K$1:$BA$1,0)),\"\")","v":0},{"$f":"IFERROR(INDEX('Data Annex'!$K$1:$BA$5047,MATCH(N$1&\"|\"&$B42,'Data Annex'!$K$1:$K$5047,0),MATCH(N$2,'Data Annex'!$K$1:$BA$1,0)),\"\")","v":0.11234065510000001},{"$f":"IFERROR(INDEX('Data Annex'!$K$1:$BA$5047,MATCH(O$1&\"|\"&$B42,'Data Annex'!$K$1:$K$5047,0),MATCH(O$2,'Data Annex'!$K$1:$BA$1,0)),\"\")","v":3.35745925E-2},{"$f":"IFERROR(INDEX('Data Annex'!$K$1:$BA$5047,MATCH(P$1&\"|\"&$B42,'Data Annex'!$K$1:$K$5047,0),MATCH(P$2,'Data Annex'!$K$1:$BA$1,0)),\"\")","v":1.77643156E-2},{"$f":"IFERROR(INDEX('Data Annex'!$K$1:$BA$5047,MATCH(Q$1&\"|\"&$B42,'Data Annex'!$K$1:$K$5047,0),MATCH(Q$2,'Data Annex'!$K$1:$BA$1,0)),\"\")","v":0},{"$f":"IFERROR(INDEX('Data Annex'!$K$1:$BA$5047,MATCH(R$1&\"|\"&$B42,'Data Annex'!$K$1:$K$5047,0),MATCH(R$2,'Data Annex'!$K$1:$BA$1,0)),\"\")","v":2.3195409300000001E-2},{"$f":"IFERROR(INDEX('Data Annex'!$K$1:$BA$5047,MATCH(S$1&\"|\"&$B42,'Data Annex'!$K$1:$K$5047,0),MATCH(S$2,'Data Annex'!$K$1:$BA$1,0)),\"\")","v":1.48725413E-2},{"$f":"IFERROR(INDEX('Data Annex'!$K$1:$BA$5047,MATCH(T$1&\"|\"&$B42,'Data Annex'!$K$1:$K$5047,0),MATCH(T$2,'Data Annex'!$K$1:$BA$1,0)),\"\")","v":6.2873922999999998E-3},{"$f":"IFERROR(INDEX('Data Annex'!$K$1:$BA$5047,MATCH(U$1&\"|\"&$B42,'Data Annex'!$K$1:$K$5047,0),MATCH(U$2,'Data Annex'!$K$1:$BA$1,0)),\"\")","v":0},{"$f":"IFERROR(INDEX('Data Annex'!$K$1:$BA$5047,MATCH(V$1&\"|\"&$B42,'Data Annex'!$K$1:$K$5047,0),MATCH(V$2,'Data Annex'!$K$1:$BA$1,0)),\"\")","v":0.86446395610000004},{"$f":"IFERROR(INDEX('Data Annex'!$K$1:$BA$5047,MATCH(W$1&\"|\"&$B42,'Data Annex'!$K$1:$K$5047,0),MATCH(W$2,'Data Annex'!$K$1:$BA$1,0)),\"\")","v":0.52234018270000004},{"$f":"IFERROR(INDEX('Data Annex'!$K$1:$BA$5047,MATCH(X$1&\"|\"&$B42,'Data Annex'!$K$1:$K$5047,0),MATCH(X$2,'Data Annex'!$K$1:$BA$1,0)),\"\")","v":0.45082046390000002}]
[99,"EU",null,"EU/EEA",{"$f":"IFERROR(INDEX('Data Annex'!$K$1:$BA$5047,MATCH(E$1&\"|\"&$B43,'Data Annex'!$K$1:$K$5047,0),MATCH(E$2,'Data Annex'!$K$1:$BA$1,0)),\"\")","v":0},{"$f":"IFERROR(INDEX('Data Annex'!$K$1:$BA$5047,MATCH(F$1&\"|\"&$B43,'Data Annex'!$K$1:$K$5047,0),MATCH(F$2,'Data Annex'!$K$1:$BA$1,0)),\"\")","v":184.4005918},{"$f":"IFERROR(INDEX('Data Annex'!$K$1:$BA$5047,MATCH(G$1&\"|\"&$B43,'Data Annex'!$K$1:$K$5047,0),MATCH(G$2,'Data Annex'!$K$1:$BA$1,0)),\"\")","v":288.74169834000003},{"$f":"IFERROR(INDEX('Data Annex'!$K$1:$BA$5047,MATCH(H$1&\"|\"&$B43,'Data Annex'!$K$1:$K$5047,0),MATCH(H$2,'Data Annex'!$K$1:$BA$1,0)),\"\")","v":342.88569558},{"$f":"IFERROR(INDEX('Data Annex'!$K$1:$BA$5047,MATCH(I$1&\"|\"&$B43,'Data Annex'!$K$1:$K$5047,0),MATCH(I$2,'Data Annex'!$K$1:$BA$1,0)),\"\")","v":0},{"$f":"IFERROR(INDEX('Data Annex'!$K$1:$BA$5047,MATCH(J$1&\"|\"&$B43,'Data Annex'!$K$1:$K$5047,0),MATCH(J$2,'Data Annex'!$K$1:$BA$1,0)),\"\")","v":2.27584763E-2},{"$f":"IFERROR(INDEX('Data Annex'!$K$1:$BA$5047,MATCH(K$1&\"|\"&$B43,'Data Annex'!$K$1:$K$5047,0),MATCH(K$2,'Data Annex'!$K$1:$BA$1,0)),\"\")","v":8.9237845800000007E-2},{"$f":"IFERROR(INDEX('Data Annex'!$K$1:$BA$5047,MATCH(L$1&\"|\"&$B43,'Data Annex'!$K$1:$K$5047,0),MATCH(L$2,'Data Annex'!$K$1:$BA$1,0)),\"\")","v":0.1959858555},{"$f":"IFERROR(INDEX('Data Annex'!$K$1:$BA$5047,MATCH(M$1&\"|\"&$B43,'Data Annex'!$K$1:$K$5047,0),MATCH(M$2,'Data Annex'!$K$1:$BA$1,0)),\"\")","v":0},{"$f":"IFERROR(INDEX('Data Annex'!$K$1:$BA$5047,MATCH(N$1&\"|\"&$B43,'Data Annex'!$K$1:$K$5047,0),MATCH(N$2,'Data Annex'!$K$1:$BA$1,0)),\"\")","v":0.34503556130000002},{"$f":"IFERROR(INDEX('Data Annex'!$K$1:$BA$5047,MATCH(O$1&\"|\"&$B43,'Data Annex'!$K$1:$K$5047,0),MATCH(O$2,'Data Annex'!$K$1:$BA$1,0)),\"\")","v":0.2691271039},{"$f":"IFERROR(INDEX('Data Annex'!$K$1:$BA$5047,MATCH(P$1&\"|\"&$B43,'Data Annex'!$K$1:$K$5047,0),MATCH(P$2,'Data Annex'!$K$1:$BA$1,0)),\"\")","v":0.1123695565},{"$f":"IFERROR(INDEX('Data Annex'!$K$1:$BA$5047,MATCH(Q$1&\"|\"&$B43,'Data Annex'!$K$1:$K$5047,0),MATCH(Q$2,'Data Annex'!$K$1:$BA$1,0)),\"\")","v":0},{"$f":"IFERROR(INDEX('Data Annex'!$K$1:$BA$5047,MATCH(R$1&\"|\"&$B43,'Data Annex'!$K$1:$K$5047,0),MATCH(R$2,'Data Annex'!$K$1:$BA$1,0)),\"\")","v":0.1005688473},{"$f":"IFERROR(INDEX('Data Annex'!$K$1:$BA$5047,MATCH(S$1&\"|\"&$B43,'Data Annex'!$K$1:$K$5047,0),MATCH(S$2,'Data Annex'!$K$1:$BA$1,0)),\"\")","v":3.7189445500000001E-2},{"$f":"IFERROR(INDEX('Data Annex'!$K$1:$BA$5047,MATCH(T$1&\"|\"&$B43,'Data Annex'!$K$1:$K$5047,0),MATCH(T$2,'Data Annex'!$K$1:$BA$1,0)),\"\")","v":3.98750836E-2},{"$f":"IFERROR(INDEX('Data Annex'!$K$1:$BA$5047,MATCH(U$1&\"|\"&$B43,'Data Annex'!$K$1:$K$5047,0),MATCH(U$2,'Data Annex'!$K$1:$BA$1,0)),\"\")","v":0},{"$f":"IFERROR(INDEX('Data Annex'!$K$1:$BA$5047,MATCH(V$1&\"|\"&$B43,'Data Annex'!$K$1:$K$5047,0),MATCH(V$2,'Data Annex'!$K$1:$BA$1,0)),\"\")","v":0.43804609020000002},{"$f":"IFERROR(INDEX('Data Annex'!$K$1:$BA$5047,MATCH(W$1&\"|\"&$B43,'Data Annex'!$K$1:$K$5047,0),MATCH(W$2,'Data Annex'!$K$1:$BA$1,0)),\"\")","v":0.38089028920000001},{"$f":"IFERROR(INDEX('Data Annex'!$K$1:$BA$5047,MATCH(X$1&\"|\"&$B43,'Data Annex'!$K$1:$K$5047,0),MATCH(X$2,'Data Annex'!$K$1:$BA$1,0)),\"\")","v":0.38604251429999997}]
[]
[null,null,null,null,"T93_1","T93_1","T93_1","T93_1","T93_2","T93_2","T93_2","T93_2","T93_3","T93_3","T93_3","T93_3","T93_4","T93_4","T93_4","T93_4"]
[null,null,null,null,{"$f":"TEXT(E51,\"YYYYMM\")+0","v":202003},202006,202009,202012,202003,202006,202009,202012,202003,202006,202009,202012,202003,202006,202009,202012]
[null,null,null,"Newly originated loans and advances subject to public guarantee schemes"]
[]
[]
[null,null,null,null,"Public guarantee received",null,null,null,"Loans subject to PGS classified as stage 2",null,null,null,"Non-performing loans subject to PGS",null,null,null,"Coverage of non-performing loans subject to PGS"]
[null,null,null,null,{"$f":"EOMONTH($A$3,-9)","v":"2020-03-31"},{"$f":"EOMONTH($A$3,-6)","v":"2020-06-30"},{"$f":"EOMONTH($A$3,-3)","v":"2020-09-30"},{"$f":"EOMONTH($A$3,0)","v":"2020-12-31"},{"$f":"EOMONTH($A$3,-9)","v":"2020-03-31"},{"$f":"EOMONTH($A$3,-6)","v":"2020-06-30"},{"$f":"EOMONTH($A$3,-3)","v":"2020-09-30"},{"$f":"EOMONTH($A$3,0)","v":"2020-12-31"},{"$f":"EOMONTH($A$3,-9)","v":"2020-03-31"},{"$f":"EOMONTH($A$3,-6)","v":"2020-06-30"},{"$f":"EOMONTH($A$3,-3)","v":"2020-09-30"},{"$f":"EOMONTH($A$3,0)","v":"2020-12-31"},{"$f":"EOMONTH($A$3,-9)","v":"2020-03-31"},{"$f":"EOMONTH($A$3,-6)","v":"2020-06-30"},{"$f":"EOMONTH($A$3,-3)","v":"2020-09-30"},{"$f":"EOMONTH($A$3,0)","v":"2020-12-31"}]
[1,"AT",null,{"$f":"IF(OR(E52=\"n.a.\",F52=\"n.a.\",G52=\"n.a.\",H52=\"n.a.\",I52=\"n.a.\",J52=\"n.a.\",K52=\"n.a.\",L52=\"n.a.\",M52=\"n.a.\",N52=\"n.a.\",O52=\"n.a.\",P52=\"n.a.\",Q52=\"n.a.\",R52=\"n.a.\",S52=\"n.a.\",T52=\"n.a.\",U52=\"n.a.\",V52=\"n.a.\",W52=\"n.a.\",X52=\"n.a.\"),$B52&\"*\",$B52)","v":"AT"},{"$f":"IFERROR(INDEX('Data Annex'!$K$1:$BA$5047,MATCH(E$45&\"|\"&$B52,'Data Annex'!$K$1:$K$5047,0),MATCH(E$46,'Data Annex'!$K$1:$BA$1,0)),\"\")","v":0},{"$f":"IFERROR(INDEX('Data Annex'!$K$1:$BA$5047,MATCH(F$45&\"|\"&$B52,'Data Annex'!$K$1:$K$5047,0),MATCH(F$46,'Data Annex'!$K$1:$BA$1,0)),\"\")","v":0.70989234810000001},{"$f":"IFERROR(INDEX('Data Annex'!$K$1:$BA$5047,MATCH(G$45&\"|\"&$B52,'Data Annex'!$K$1:$K$5047,0),MATCH(G$46,'Data Annex'!$K$1:$BA$1,0)),\"\")","v":0.71825271999999996},{"$f":"IFERROR(INDEX('Data Annex'!$K$1:$BA$5047,MATCH(H$45&\"|\"&$B52,'Data Annex'!$K$1:$K$5047,0),MATCH(H$46,'Data Annex'!$K$1:$BA$1,0)),\"\")","v":0.73896230009999997},{"$f":"IFERROR(INDEX('Data Annex'!$K$1:$BA$5047,MATCH(I$45&\"|\"&$B52,'Data Annex'!$K$1:$K$5047,0),MATCH(I$46,'Data Annex'!$K$1:$BA$1,0)),\"\")","v":0},{"$f":"IFERROR(INDEX('Data Annex'!$K$1:$BA$5047,MATCH(J$45&\"|\"&$B52,'Data Annex'!$K$1:$K$5047,0),MATCH(J$46,'Data Annex'!$K$1:$BA$1,0)),\"\")","v":0.29960133979999998},{"$f":"IFERROR(INDEX('Data Annex'!$K$1:$BA$5047,MATCH(K$45&\"|\"&$B52,'Data Annex'!$K$1:$K$5047,0),MATCH(K$46,'Data Annex'!$K$1:$BA$1,0)),\"\")","v":0.31265493500000002},{"$f":"IFERROR(INDEX('Data Annex'!$K$1:$BA$5047,MATCH(L$45&\"|\"&$B52,'Data Annex'!$K$1:$K$5047,0),MATCH(L$46,'Data Annex'!$K$1:$BA$1,0)),\"\")","v":0.47819945460000002},{"$f":"IFERROR(INDEX('Data Annex'!$K$1:$BA$5047,MATCH(M$45&\"|\"&$B52,'Data Annex'!$K$1:$K$5047,0),MATCH(M$46,'Data Annex'!$K$1:$BA$1,0)),\"\")","v":0},{"$f":"IFERROR(INDEX('Data Annex'!$K$1:$BA$5047,MATCH(N$45&\"|\"&$B52,'Data Annex'!$K$1:$K$5047,0),MATCH(N$46,'Data Annex'!$K$1:$BA$1,0)),\"\")","v":7.2788148E-3},{"$f":"IFERROR(INDEX('Data Annex'!$K$1:$BA$5047,MATCH(O$45&\"|\"&$B52,'Data Annex'!$K$1:$K$5047,0),MATCH(O$46,'Data Annex'!$K$1:$BA$1,0)),\"\")","v":7.0871627E-3},{"$f":"IFERROR(INDEX('Data Annex'!$K$1:$BA$5047,MATCH(P$45&\"|\"&$B52,'Data Annex'!$K$1:$K$5047,0),MATCH(P$46,'Data Annex'!$K$1:$BA$1,0)),\"\")","v":2.6793547599999998E-2},{"$f":"IFERROR(INDEX('Data Annex'!$K$1:$BA$5047,MATCH(Q$45&\"|\"&$B52,'Data Annex'!$K$1:$K$5047,0),MATCH(Q$46,'Data Annex'!$K$1:$BA$1,0)),\"\")","v":0},{"$f":"IFERROR(INDEX('Data Annex'!$K$1:$BA$5047,MATCH(R$45&\"|\"&$B52,'Data Annex'!$K$1:$K$5047,0),MATCH(R$46,'Data Annex'!$K$1:$BA$1,0)),\"\")","v":0.3035303607},{"$f":"IFERROR(INDEX('Data Annex'!$K$1:$BA$5047,MATCH(S$45&\"|\"&$B52,'Data Annex'!$K$1:$K$5047,0),MATCH(S$46,'Data Annex'!$K$1:$BA$1,0)),\"\")","v":0.2308803277},{"$f":"IFERROR(INDEX('Data Annex'!$K$1:$BA$5047,MATCH(T$45&\"|\"&$B52,'Data Annex'!$K$1:$K$5047,0),MATCH(T$46,'Data Annex'!$K$1:$BA$1,0)),\"\")","v":0.18495340260000001}]
[2,"BE",null,{"$f":"IF(OR(E53=\"n.a.\",F53=\"n.a.\",G53=\"n.a.\",H53=\"n.a.\",I53=\"n.a.\",J53=\"n.a.\",K53=\"n.a.\",L53=\"n.a.\",M53=\"n.a.\",N53=\"n.a.\",O53=\"n.a.\",P53=\"n.a.\",Q53=\"n.a.\",R53=\"n.a.\",S53=\"n.a.\",T53=\"n.a.\",U53=\"n.a.\",V53=\"n.a.\",W53=\"n.a.\",X53=\"n.a.\"),$B53&\"*\",$B53)","v":"BE"},{"$f":"IFERROR(INDEX('Data Annex'!$K$1:$BA$5047,MATCH(E$45&\"|\"&$B53,'Data Annex'!$K$1:$K$5047,0),MATCH(E$46,'Data Annex'!$K$1:$BA$1,0)),\"\")","v":0},{"$f":"IFERROR(INDEX('Data Annex'!$K$1:$BA$5047,MATCH(F$45&\"|\"&$B53,'Data Annex'!$K$1:$K$5047,0),MATCH(F$46,'Data Annex'!$K$1:$BA$1,0)),\"\")","v":0.18487072069999999},{"$f":"IFERROR(INDEX('Data Annex'!$K$1:$BA$5047,MATCH(G$45&\"|\"&$B53,'Data Annex'!$K$1:$K$5047,0),MATCH(G$46,'Data Annex'!$K$1:$BA$1,0)),\"\")","v":0.29252725709999999},{"$f":"IFERROR(INDEX('Data Annex'!$K$1:$BA$5047,MATCH(H$45&\"|\"&$B53,'Data Annex'!$K$1:$K$5047,0),MATCH(H$46,'Data Annex'!$K$1:$BA$1,0)),\"\")","v":0.53560553259999999},{"$f":"IFERROR(INDEX('Data Annex'!$K$1:$BA$5047,MATCH(I$45&\"|\"&$B53,'Data Annex'!$K$1:$K$5047,0),MATCH(I$46,'Data Annex'!$K$1:$BA$1,0)),\"\")","v":0},{"$f":"IFERROR(INDEX('Data Annex'!$K$1:$BA$5047,MATCH(J$45&\"|\"&$B53,'Data Annex'!$K$1:$K$5047,0),MATCH(J$46,'Data Annex'!$K$1:$BA$1,0)),\"\")","v":6.9317123000000001E-3},{"$f":"IFERROR(INDEX('Data Annex'!$K$1:$BA$5047,MATCH(K$45&\"|\"&$B53,'Data Annex'!$K$1:$K$5047,0),MATCH(K$46,'Data Annex'!$K$1:$BA$1,0)),\"\")","v":5.1077763599999999E-2},{"$f":"IFERROR(INDEX('Data Annex'!$K$1:$BA$5047,MATCH(L$45&\"|\"&$B53,'Data Annex'!$K$1:$K$5047,0),MATCH(L$46,'Data Annex'!$K$1:$BA$1,0)),\"\")","v":6.4387608599999993E-2},{"$f":"IFERROR(INDEX('Data Annex'!$K$1:$BA$5047,MATCH(M$45&\"|\"&$B53,'Data Annex'!$K$1:$K$5047,0),MATCH(M$46,'Data Annex'!$K$1:$BA$1,0)),\"\")","v":0},{"$f":"IFERROR(INDEX('Data Annex'!$K$1:$BA$5047,MATCH(N$45&\"|\"&$B53,'Data Annex'!$K$1:$K$5047,0),MATCH(N$46,'Data Annex'!$K$1:$BA$1,0)),\"\")","v":1.2703470000000001E-4},{"$f":"IFERROR(INDEX('Data Annex'!$K$1:$BA$5047,MATCH(O$45&\"|\"&$B53,'Data Annex'!$K$1:$K$5047,0),MATCH(O$46,'Data Annex'!$K$1:$BA$1,0)),\"\")","v":1.5920893E-3},{"$f":"IFERROR(INDEX('Data Annex'!$K$1:$BA$5047,MATCH(P$45&\"|\"&$B53,'Data Annex'!$K$1:$K$5047,0),MATCH(P$46,'Data Annex'!$K$1:$BA$1,0)),\"\")","v":1.14191854E-2},{"$f":"IFERROR(INDEX('Data Annex'!$K$1:$BA$5047,MATCH(Q$45&\"|\"&$B53,'Data Annex'!$K$1:$K$5047,0),MATCH(Q$46,'Data Annex'!$K$1:$BA$1,0)),\"\")","v":0},{"$f":"IFERROR(INDEX('Data Annex'!$K$1:$BA$5047,MATCH(R$45&\"|\"&$B53,'Data Annex'!$K$1:$K$5047,0),MATCH(R$46,'Data Annex'!$K$1:$BA$1,0)),\"\")","v":0.2405704219},{"$f":"IFERROR(INDEX('Data Annex'!$K$1:$BA$5047,MATCH(S$45&\"|\"&$B53,'Data Annex'!$K$1:$K$5047,0),MATCH(S$46,'Data Annex'!$K$1:$BA$1,0)),\"\")","v":7.2876632699999999E-2},{"$f":"IFERROR(INDEX('Data Annex'!$K$1:$BA$5047,MATCH(T$45&\"|\"&$B53,'Data Annex'!$K$1:$K$5047,0),MATCH(T$46,'Data Annex'!$K$1:$BA$1,0)),\"\")","v":0.1094529091}]
[3,"BG",null,"BG",{"$f":"IFERROR(INDEX('Data Annex'!$K$1:$BA$5047,MATCH(E$45&\"|\"&$B54,'Data Annex'!$K$1:$K$5047,0),MATCH(E$46,'Data Annex'!$K$1:$BA$1,0)),\"\")","v":0},{"$f":"IFERROR(INDEX('Data Annex'!$K$1:$BA$5047,MATCH(F$45&\"|\"&$B54,'Data Annex'!$K$1:$K$5047,0),MATCH(F$46,'Data Annex'!$K$1:$BA$1,0)),\"\")","v":0.95363117500000005},{"$f":"IFERROR(INDEX('Data Annex'!$K$1:$BA$5047,MATCH(G$45&\"|\"&$B54,'Data Annex'!$K$1:$K$5047,0),MATCH(G$46,'Data Annex'!$K$1:$BA$1,0)),\"\")","v":0.92850758509999998},{"$f":"IFERROR(INDEX('Data Annex'!$K$1:$BA$5047,MATCH(H$45&\"|\"&$B54,'Data Annex'!$K$1:$K$5047,0),MATCH(H$46,'Data Annex'!$K$1:$BA$1,0)),\"\")","v":0.90164779350000002},{"$f":"IFERROR(INDEX('Data Annex'!$K$1:$BA$5047,MATCH(I$45&\"|\"&$B54,'Data Annex'!$K$1:$K$5047,0),MATCH(I$46,'Data Annex'!$K$1:$BA$1,0)),\"\")","v":0},{"$f":"IFERROR(INDEX('Data Annex'!$K$1:$BA$5047,MATCH(J$45&\"|\"&$B54,'Data Annex'!$K$1:$K$5047,0),MATCH(J$46,'Data Annex'!$K$1:$BA$1,0)),\"\")","v":2.1058846700000002E-2},{"$f":"IFERROR(INDEX('Data Annex'!$K$1:$BA$5047,MATCH(K$45&\"|\"&$B54,'Data Annex'!$K$1:$K$5047,0),MATCH(K$46,'Data Annex'!$K$1:$BA$1,0)),\"\")","v":5.8930123799999998E-2},{"$f":"IFERROR(INDEX('Data Annex'!$K$1:$BA$5047,MATCH(L$45&\"|\"&$B54,'Data Annex'!$K$1:$K$5047,0),MATCH(L$46,'Data Annex'!$K$1:$BA$1,0)),\"\")","v":8.2094444099999997E-2},{"$f":"IFERROR(INDEX('Data Annex'!$K$1:$BA$5047,MATCH(M$45&\"|\"&$B54,'Data Annex'!$K$1:$K$5047,0),MATCH(M$46,'Data Annex'!$K$1:$BA$1,0)),\"\")","v":0},{"$f":"IFERROR(INDEX('Data Annex'!$K$1:$BA$5047,MATCH(N$45&\"|\"&$B54,'Data Annex'!$K$1:$K$5047,0),MATCH(N$46,'Data Annex'!$K$1:$BA$1,0)),\"\")","v":2.9521748E-3},{"$f":"IFERROR(INDEX('Data Annex'!$K$1:$BA$5047,MATCH(O$45&\"|\"&$B54,'Data Annex'!$K$1:$K$5047,0),MATCH(O$46,'Data Annex'!$K$1:$BA$1,0)),\"\")","v":2.5957171E-3},{"$f":"IFERROR(INDEX('Data Annex'!$K$1:$BA$5047,MATCH(P$45&\"|\"&$B54,'Data Annex'!$K$1:$K$5047,0),MATCH(P$46,'Data Annex'!$K$1:$BA$1,0)),\"\")","v":1.08184925E-2},{"$f":"IFERROR(INDEX('Data Annex'!$K$1:$BA$5047,MATCH(Q$45&\"|\"&$B54,'Data Annex'!$K$1:$K$5047,0),MATCH(Q$46,'Data Annex'!$K$1:$BA$1,0)),\"\")","v":0},{"$f":"IFERROR(INDEX('Data Annex'!$K$1:$BA$5047,MATCH(R$45&\"|\"&$B54,'Data Annex'!$K$1:$K$5047,0),MATCH(R$46,'Data Annex'!$K$1:$BA$1,0)),\"\")","v":0.24},{"$f":"IFERROR(INDEX('Data Annex'!$K$1:$BA$5047,MATCH(S$45&\"|\"&$B54,'Data Annex'!$K$1:$K$5047,0),MATCH(S$46,'Data Annex'!$K$1:$BA$1,0)),\"\")","v":0.35377358489999999},{"$f":"IFERROR(INDEX('Data Annex'!$K$1:$BA$5047,MATCH(T$45&\"|\"&$B54,'Data Annex'!$K$1:$K$5047,0),MATCH(T$46,'Data Annex'!$K$1:$BA$1,0)),\"\")","v":0.64292321919999995}]
[4,"CY",null,"CY",{"$f":"IFERROR(INDEX('Data Annex'!$K$1:$BA$5047,MATCH(E$45&\"|\"&$B55,'Data Annex'!$K$1:$K$5047,0),MATCH(E$46,'Data Annex'!$K$1:$BA$1,0)),\"\")","v":0},{"$f":"IFERROR(INDEX('Data Annex'!$K$1:$BA$5047,MATCH(F$45&\"|\"&$B55,'Data Annex'!$K$1:$K$5047,0),MATCH(F$46,'Data Annex'!$K$1:$BA$1,0)),\"\")","v":0},{"$f":"IFERROR(INDEX('Data Annex'!$K$1:$BA$5047,MATCH(G$45&\"|\"&$B55,'Data Annex'!$K$1:$K$5047,0),MATCH(G$46,'Data Annex'!$K$1:$BA$1,0)),\"\")","v":0},{"$f":"IFERROR(INDEX('Data Annex'!$K$1:$BA$5047,MATCH(H$45&\"|\"&$B55,'Data Annex'!$K$1:$K$5047,0),MATCH(H$46,'Data Annex'!$K$1:$BA$1,0)),\"\")","v":0},{"$f":"IFERROR(INDEX('Data Annex'!$K$1:$BA$5047,MATCH(I$45&\"|\"&$B55,'Data Annex'!$K$1:$K$5047,0),MATCH(I$46,'Data Annex'!$K$1:$BA$1,0)),\"\")","v":0},{"$f":"IFERROR(INDEX('Data Annex'!$K$1:$BA$5047,MATCH(J$45&\"|\"&$B55,'Data Annex'!$K$1:$K$5047,0),MATCH(J$46,'Data Annex'!$K$1:$BA$1,0)),\"\")","v":0},{"$f":"IFERROR(INDEX('Data Annex'!$K$1:$BA$5047,MATCH(K$45&\"|\"&$B55,'Data Annex'!$K$1:$K$5047,0),MATCH(K$46,'Data Annex'!$K$1:$BA$1,0)),\"\")","v":0},{"$f":"IFERROR(INDEX('Data Annex'!$K$1:$BA$5047,MATCH(L$45&\"|\"&$B55,'Data Annex'!$K$1:$K$5047,0),MATCH(L$46,'Data Annex'!$K$1:$BA$1,0)),\"\")","v":0},{"$f":"IFERROR(INDEX('Data Annex'!$K$1:$BA$5047,MATCH(M$45&\"|\"&$B55,'Data Annex'!$K$1:$K$5047,0),MATCH(M$46,'Data Annex'!$K$1:$BA$1,0)),\"\")","v":0},{"$f":"IFERROR(INDEX('Data Annex'!$K$1:$BA$5047,MATCH(N$45&\"|\"&$B55,'Data Annex'!$K$1:$K$5047,0),MATCH(N$46,'Data Annex'!$K$1:$BA$1,0)),\"\")","v":0},{"$f":"IFERROR(INDEX('Data Annex'!$K$1:$BA$5047,MATCH(O$45&\"|\"&$B55,'Data Annex'!$K$1:$K$5047,0),MATCH(O$46,'Data Annex'!$K$1:$BA$1,0)),\"\")","v":0},{"$f":"IFERROR(INDEX('Data Annex'!$K$1:$BA$5047,MATCH(P$45&\"|\"&$B55,'Data Annex'!$K$1:$K$5047,0),MATCH(P$46,'Data Annex'!$K$1:$BA$1,0)),\"\")","v":0},{"$f":"IFERROR(INDEX('Data Annex'!$K$1:$BA$5047,MATCH(Q$45&\"|\"&$B55,'Data Annex'!$K$1:$K$5047,0),MATCH(Q$46,'Data Annex'!$K$1:$BA$1,0)),\"\")","v":0},{"$f":"IFERROR(INDEX('Data Annex'!$K$1:$BA$5047,MATCH(R$45&\"|\"&$B55,'Data Annex'!$K$1:$K$5047,0),MATCH(R$46,'Data Annex'!$K$1:$BA$1,0)),\"\")","v":0},{"$f":"IFERROR(INDEX('Data Annex'!$K$1:$BA$5047,MATCH(S$45&\"|\"&$B55,'Data Annex'!$K$1:$K$5047,0),MATCH(S$46,'Data Annex'!$K$1:$BA$1,0)),\"\")","v":0},{"$f":"IFERROR(INDEX('Data Annex'!$K$1:$BA$5047,MATCH(T$45&\"|\"&$B55,'Data Annex'!$K$1:$K$5047,0),MATCH(T$46,'Data Annex'!$K$1:$BA$1,0)),\"\")","v":0}]
[5,"CZ",null,"CZ",{"$f":"IFERROR(INDEX('Data Annex'!$K$1:$BA$5047,MATCH(E$45&\"|\"&$B56,'Data Annex'!$K$1:$K$5047,0),MATCH(E$46,'Data Annex'!$K$1:$BA$1,0)),\"\")","v":""},{"$f":"IFERROR(INDEX('Data Annex'!$K$1:$BA$5047,MATCH(F$45&\"|\"&$B56,'Data Annex'!$K$1:$K$5047,0),MATCH(F$46,'Data Annex'!$K$1:$BA$1,0)),\"\")","v":""},{"$f":"IFERROR(INDEX('Data Annex'!$K$1:$BA$5047,MATCH(G$45&\"|\"&$B56,'Data Annex'!$K$1:$K$5047,0),MATCH(G$46,'Data Annex'!$K$1:$BA$1,0)),\"\")","v":""},{"$f":"IFERROR(INDEX('Data Annex'!$K$1:$BA$5047,MATCH(H$45&\"|\"&$B56,'Data Annex'!$K$1:$K$5047,0),MATCH(H$46,'Data Annex'!$K$1:$BA$1,0)),\"\")","v":""},{"$f":"IFERROR(INDEX('Data Annex'!$K$1:$BA$5047,MATCH(I$45&\"|\"&$B56,'Data Annex'!$K$1:$K$5047,0),MATCH(I$46,'Data Annex'!$K$1:$BA$1,0)),\"\")","v":""},{"$f":"IFERROR(INDEX('Data Annex'!$K$1:$BA$5047,MATCH(J$45&\"|\"&$B56,'Data Annex'!$K$1:$K$5047,0),MATCH(J$46,'Data Annex'!$K$1:$BA$1,0)),\"\")","v":""},{"$f":"IFERROR(INDEX('Data Annex'!$K$1:$BA$5047,MATCH(K$45&\"|\"&$B56,'Data Annex'!$K$1:$K$5047,0),MATCH(K$46,'Data Annex'!$K$1:$BA$1,0)),\"\")","v":""},{"$f":"IFERROR(INDEX('Data Annex'!$K$1:$BA$5047,MATCH(L$45&\"|\"&$B56,'Data Annex'!$K$1:$K$5047,0),MATCH(L$46,'Data Annex'!$K$1:$BA$1,0)),\"\")","v":""},{"$f":"IFERROR(INDEX('Data Annex'!$K$1:$BA$5047,MATCH(M$45&\"|\"&$B56,'Data Annex'!$K$1:$K$5047,0),MATCH(M$46,'Data Annex'!$K$1:$BA$1,0)),\"\")","v":""},{"$f":"IFERROR(INDEX('Data Annex'!$K$1:$BA$5047,MATCH(N$45&\"|\"&$B56,'Data Annex'!$K$1:$K$5047,0),MATCH(N$46,'Data Annex'!$K$1:$BA$1,0)),\"\")","v":""},{"$f":"IFERROR(INDEX('Data Annex'!$K$1:$BA$5047,MATCH(O$45&\"|\"&$B56,'Data Annex'!$K$1:$K$5047,0),MATCH(O$46,'Data Annex'!$K$1:$BA$1,0)),\"\")","v":""},{"$f":"IFERROR(INDEX('Data Annex'!$K$1:$BA$5047,MATCH(P$45&\"|\"&$B56,'Data Annex'!$K$1:$K$5047,0),MATCH(P$46,'Data Annex'!$K$1:$BA$1,0)),\"\")","v":""},{"$f":"IFERROR(INDEX('Data Annex'!$K$1:$BA$5047,MATCH(Q$45&\"|\"&$B56,'Data Annex'!$K$1:$K$5047,0),MATCH(Q$46,'Data Annex'!$K$1:$BA$1,0)),\"\")","v":""},{"$f":"IFERROR(INDEX('Data Annex'!$K$1:$BA$5047,MATCH(R$45&\"|\"&$B56,'Data Annex'!$K$1:$K$5047,0),MATCH(R$46,'Data Annex'!$K$1:$BA$1,0)),\"\")","v":""},{"$f":"IFERROR(INDEX('Data Annex'!$K$1:$BA$5047,MATCH(S$45&\"|\"&$B56,'Data Annex'!$K$1:$K$5047,0),MATCH(S$46,'Data Annex'!$K$1:$BA$1,0)),\"\")","v":""},{"$f":"IFERROR(INDEX('Data Annex'!$K$1:$BA$5047,MATCH(T$45&\"|\"&$B56,'Data Annex'!$K$1:$K$5047,0),MATCH(T$46,'Data Annex'!$K$1:$BA$1,0)),\"\")","v":""}]
[6,"DE",null,"DE",{"$f":"IFERROR(INDEX('Data Annex'!$K$1:$BA$5047,MATCH(E$45&\"|\"&$B57,'Data Annex'!$K$1:$K$5047,0),MATCH(E$46,'Data Annex'!$K$1:$BA$1,0)),\"\")","v":0},{"$f":"IFERROR(INDEX('Data Annex'!$K$1:$BA$5047,MATCH(F$45&\"|\"&$B57,'Data Annex'!$K$1:$K$5047,0),MATCH(F$46,'Data Annex'!$K$1:$BA$1,0)),\"\")","v":0.85778066159999999},{"$f":"IFERROR(INDEX('Data Annex'!$K$1:$BA$5047,MATCH(G$45&\"|\"&$B57,'Data Annex'!$K$1:$K$5047,0),MATCH(G$46,'Data Annex'!$K$1:$BA$1,0)),\"\")","v":0.79101711320000001},{"$f":"IFERROR(INDEX('Data Annex'!$K$1:$BA$5047,MATCH(H$45&\"|\"&$B57,'Data Annex'!$K$1:$K$5047,0),MATCH(H$46,'Data Annex'!$K$1:$BA$1,0)),\"\")","v":0.78357622130000004},{"$f":"IFERROR(INDEX('Data Annex'!$K$1:$BA$5047,MATCH(I$45&\"|\"&$B57,'Data Annex'!$K$1:$K$5047,0),MATCH(I$46,'Data Annex'!$K$1:$BA$1,0)),\"\")","v":0},{"$f":"IFERROR(INDEX('Data Annex'!$K$1:$BA$5047,MATCH(J$45&\"|\"&$B57,'Data Annex'!$K$1:$K$5047,0),MATCH(J$46,'Data Annex'!$K$1:$BA$1,0)),\"\")","v":3.3523404100000001E-2},{"$f":"IFERROR(INDEX('Data Annex'!$K$1:$BA$5047,MATCH(K$45&\"|\"&$B57,'Data Annex'!$K$1:$K$5047,0),MATCH(K$46,'Data Annex'!$K$1:$BA$1,0)),\"\")","v":7.5369963299999995E-2},{"$f":"IFERROR(INDEX('Data Annex'!$K$1:$BA$5047,MATCH(L$45&\"|\"&$B57,'Data Annex'!$K$1:$K$5047,0),MATCH(L$46,'Data Annex'!$K$1:$BA$1,0)),\"\")","v":0.13823319019999999},{"$f":"IFERROR(INDEX('Data Annex'!$K$1:$BA$5047,MATCH(M$45&\"|\"&$B57,'Data Annex'!$K$1:$K$5047,0),MATCH(M$46,'Data Annex'!$K$1:$BA$1,0)),\"\")","v":0},{"$f":"IFERROR(INDEX('Data Annex'!$K$1:$BA$5047,MATCH(N$45&\"|\"&$B57,'Data Annex'!$K$1:$K$5047,0),MATCH(N$46,'Data Annex'!$K$1:$BA$1,0)),\"\")","v":9.1596980000000004E-4},{"$f":"IFERROR(INDEX('Data Annex'!$K$1:$BA$5047,MATCH(O$45&\"|\"&$B57,'Data Annex'!$K$1:$K$5047,0),MATCH(O$46,'Data Annex'!$K$1:$BA$1,0)),\"\")","v":4.5392404999999997E-3},{"$f":"IFERROR(INDEX('Data Annex'!$K$1:$BA$5047,MATCH(P$45&\"|\"&$B57,'Data Annex'!$K$1:$K$5047,0),MATCH(P$46,'Data Annex'!$K$1:$BA$1,0)),\"\")","v":1.4188320000000001E-2},{"$f":"IFERROR(INDEX('Data Annex'!$K$1:$BA$5047,MATCH(Q$45&\"|\"&$B57,'Data Annex'!$K$1:$K$5047,0),MATCH(Q$46,'Data Annex'!$K$1:$BA$1,0)),\"\")","v":0},{"$f":"IFERROR(INDEX('Data Annex'!$K$1:$BA$5047,MATCH(R$45&\"|\"&$B57,'Data Annex'!$K$1:$K$5047,0),MATCH(R$46,'Data Annex'!$K$1:$BA$1,0)),\"\")","v":0.12815071850000001},{"$f":"IFERROR(INDEX('Data Annex'!$K$1:$BA$5047,MATCH(S$45&\"|\"&$B57,'Data Annex'!$K$1:$K$5047,0),MATCH(S$46,'Data Annex'!$K$1:$BA$1,0)),\"\")","v":8.02277718E-2},{"$f":"IFERROR(INDEX('Data Annex'!$K$1:$BA$5047,MATCH(T$45&\"|\"&$B57,'Data Annex'!$K$1:$K$5047,0),MATCH(T$46,'Data Annex'!$K$1:$BA$1,0)),\"\")","v":0.13428162639999999}]
[7,"DK",null,"DK",{"$f":"IFERROR(INDEX('Data Annex'!$K$1:$BA$5047,MATCH(E$45&\"|\"&$B58,'Data Annex'!$K$1:$K$5047,0),MATCH(E$46,'Data Annex'!$K$1:$BA$1,0)),\"\")","v":0},{"$f":"IFERROR(INDEX('Data Annex'!$K$1:$BA$5047,MATCH(F$45&\"|\"&$B58,'Data Annex'!$K$1:$K$5047,0),MATCH(F$46,'Data Annex'!$K$1:$BA$1,0)),\"\")","v":0.82235911120000005},{"$f":"IFERROR(INDEX('Data Annex'!$K$1:$BA$5047,MATCH(G$45&\"|\"&$B58,'Data Annex'!$K$1:$K$5047,0),MATCH(G$46,'Data Annex'!$K$1:$BA$1,0)),\"\")","v":0.83687432539999995},{"$f":"IFERROR(INDEX('Data Annex'!$K$1:$BA$5047,MATCH(H$45&\"|\"&$B58,'Data Annex'!$K$1:$K$5047,0),MATCH(H$46,'Data Annex'!$K$1:$BA$1,0)),\"\")","v":0.82707122990000004},{"$f":"IFERROR(INDEX('Data Annex'!$K$1:$BA$5047,MATCH(I$45&\"|\"&$B58,'Data Annex'!$K$1:$K$5047,0),MATCH(I$46,'Data Annex'!$K$1:$BA$1,0)),\"\")","v":0},{"$f":"IFERROR(INDEX('Data Annex'!$K$1:$BA$5047,MATCH(J$45&\"|\"&$B58,'Data Annex'!$K$1:$K$5047,0),MATCH(J$46,'Data Annex'!$K$1:$BA$1,0)),\"\")","v":0.3673380926},{"$f":"IFERROR(INDEX('Data Annex'!$K$1:$BA$5047,MATCH(K$45&\"|\"&$B58,'Data Annex'!$K$1:$K$5047,0),MATCH(K$46,'Data Annex'!$K$1:$BA$1,0)),\"\")","v":0.2591516894},{"$f":"IFERROR(INDEX('Data Annex'!$K$1:$BA$5047,MATCH(L$45&\"|\"&$B58,'Data Annex'!$K$1:$K$5047,0),MATCH(L$46,'Data Annex'!$K$1:$BA$1,0)),\"\")","v":0.14176405789999999},{"$f":"IFERROR(INDEX('Data Annex'!$K$1:$BA$5047,MATCH(M$45&\"|\"&$B58,'Data Annex'!$K$1:$K$5047,0),MATCH(M$46,'Data Annex'!$K$1:$BA$1,0)),\"\")","v":0},{"$f":"IFERROR(INDEX('Data Annex'!$K$1:$BA$5047,MATCH(N$45&\"|\"&$B58,'Data Annex'!$K$1:$K$5047,0),MATCH(N$46,'Data Annex'!$K$1:$BA$1,0)),\"\")","v":0.1815335303},{"$f":"IFERROR(INDEX('Data Annex'!$K$1:$BA$5047,MATCH(O$45&\"|\"&$B58,'Data Annex'!$K$1:$K$5047,0),MATCH(O$46,'Data Annex'!$K$1:$BA$1,0)),\"\")","v":0.16621429809999999},{"$f":"IFERROR(INDEX('Data Annex'!$K$1:$BA$5047,MATCH(P$45&\"|\"&$B58,'Data Annex'!$K$1:$K$5047,0),MATCH(P$46,'Data Annex'!$K$1:$BA$1,0)),\"\")","v":0.21161801669999999},{"$f":"IFERROR(INDEX('Data Annex'!$K$1:$BA$5047,MATCH(Q$45&\"|\"&$B58,'Data Annex'!$K$1:$K$5047,0),MATCH(Q$46,'Data Annex'!$K$1:$BA$1,0)),\"\")","v":0},{"$f":"IFERROR(INDEX('Data Annex'!$K$1:$BA$5047,MATCH(R$45&\"|\"&$B58,'Data Annex'!$K$1:$K$5047,0),MATCH(R$46,'Data Annex'!$K$1:$BA$1,0)),\"\")","v":2.410149E-2},{"$f":"IFERROR(INDEX('Data Annex'!$K$1:$BA$5047,MATCH(S$45&\"|\"&$B58,'Data Annex'!$K$1:$K$5047,0),MATCH(S$46,'Data Annex'!$K$1:$BA$1,0)),\"\")","v":7.1697097799999998E-2},{"$f":"IFERROR(INDEX('Data Annex'!$K$1:$BA$5047,MATCH(T$45&\"|\"&$B58,'Data Annex'!$K$1:$K$5047,0),MATCH(T$46,'Data Annex'!$K$1:$BA$1,0)),\"\")","v":6.8654956500000003E-2}]
[8,"EE",null,"EE",{"$f":"IFERROR(INDEX('Data Annex'!$K$1:$BA$5047,MATCH(E$45&\"|\"&$B59,'Data Annex'!$K$1:$K$5047,0),MATCH(E$46,'Data Annex'!$K$1:$BA$1,0)),\"\")","v":0},{"$f":"IFERROR(INDEX('Data Annex'!$K$1:$BA$5047,MATCH(F$45&\"|\"&$B59,'Data Annex'!$K$1:$K$5047,0),MATCH(F$46,'Data Annex'!$K$1:$BA$1,0)),\"\")","v":0.918528436},{"$f":"IFERROR(INDEX('Data Annex'!$K$1:$BA$5047,MATCH(G$45&\"|\"&$B59,'Data Annex'!$K$1:$K$5047,0),MATCH(G$46,'Data Annex'!$K$1:$BA$1,0)),\"\")","v":0.85538701019999996},{"$f":"IFERROR(INDEX('Data Annex'!$K$1:$BA$5047,MATCH(H$45&\"|\"&$B59,'Data Annex'!$K$1:$K$5047,0),MATCH(H$46,'Data Annex'!$K$1:$BA$1,0)),\"\")","v":0.78647976630000005},{"$f":"IFERROR(INDEX('Data Annex'!$K$1:$BA$5047,MATCH(I$45&\"|\"&$B59,'Data Annex'!$K$1:$K$5047,0),MATCH(I$46,'Data Annex'!$K$1:$BA$1,0)),\"\")","v":0},{"$f":"IFERROR(INDEX('Data Annex'!$K$1:$BA$5047,MATCH(J$45&\"|\"&$B59,'Data Annex'!$K$1:$K$5047,0),MATCH(J$46,'Data Annex'!$K$1:$BA$1,0)),\"\")","v":0.4593043691},{"$f":"IFERROR(INDEX('Data Annex'!$K$1:$BA$5047,MATCH(K$45&\"|\"&$B59,'Data Annex'!$K$1:$K$5047,0),MATCH(K$46,'Data Annex'!$K$1:$BA$1,0)),\"\")","v":0.13336522219999999},{"$f":"IFERROR(INDEX('Data Annex'!$K$1:$BA$5047,MATCH(L$45&\"|\"&$B59,'Data Annex'!$K$1:$K$5047,0),MATCH(L$46,'Data Annex'!$K$1:$BA$1,0)),\"\")","v":0.2424362417},{"$f":"IFERROR(INDEX('Data Annex'!$K$1:$BA$5047,MATCH(M$45&\"|\"&$B59,'Data Annex'!$K$1:$K$5047,0),MATCH(M$46,'Data Annex'!$K$1:$BA$1,0)),\"\")","v":0},{"$f":"IFERROR(INDEX('Data Annex'!$K$1:$BA$5047,MATCH(N$45&\"|\"&$B59,'Data Annex'!$K$1:$K$5047,0),MATCH(N$46,'Data Annex'!$K$1:$BA$1,0)),\"\")","v":0},{"$f":"IFERROR(INDEX('Data Annex'!$K$1:$BA$5047,MATCH(O$45&\"|\"&$B59,'Data Annex'!$K$1:$K$5047,0),MATCH(O$46,'Data Annex'!$K$1:$BA$1,0)),\"\")","v":0.22754190960000001},{"$f":"IFERROR(INDEX('Data Annex'!$K$1:$BA$5047,MATCH(P$45&\"|\"&$B59,'Data Annex'!$K$1:$K$5047,0),MATCH(P$46,'Data Annex'!$K$1:$BA$1,0)),\"\")","v":0.1954370654},{"$f":"IFERROR(INDEX('Data Annex'!$K$1:$BA$5047,MATCH(Q$45&\"|\"&$B59,'Data Annex'!$K$1:$K$5047,0),MATCH(Q$46,'Data Annex'!$K$1:$BA$1,0)),\"\")","v":0},{"$f":"IFERROR(INDEX('Data Annex'!$K$1:$BA$5047,MATCH(R$45&\"|\"&$B59,'Data Annex'!$K$1:$K$5047,0),MATCH(R$46,'Data Annex'!$K$1:$BA$1,0)),\"\")","v":0},{"$f":"IFERROR(INDEX('Data Annex'!$K$1:$BA$5047,MATCH(S$45&\"|\"&$B59,'Data Annex'!$K$1:$K$5047,0),MATCH(S$46,'Data Annex'!$K$1:$BA$1,0)),\"\")","v":0.66961628569999998},{"$f":"IFERROR(INDEX('Data Annex'!$K$1:$BA$5047,MATCH(T$45&\"|\"&$B59,'Data Annex'!$K$1:$K$5047,0),MATCH(T$46,'Data Annex'!$K$1:$BA$1,0)),\"\")","v":0.46744210139999998}]
[9,"ES",null,"ES",{"$f":"IFERROR(INDEX('Data Annex'!$K$1:$BA$5047,MATCH(E$45&\"|\"&$B60,'Data Annex'!$K$1:$K$5047,0),MATCH(E$46,'Data Annex'!$K$1:$BA$1,0)),\"\")","v":0},{"$f":"IFERROR(INDEX('Data Annex'!$K$1:$BA$5047,MATCH(F$45&\"|\"&$B60,'Data Annex'!$K$1:$K$5047,0),MATCH(F$46,'Data Annex'!$K$1:$BA$1,0)),\"\")","v":0.78016977040000002},{"$f":"IFERROR(INDEX('Data Annex'!$K$1:$BA$5047,MATCH(G$45&\"|\"&$B60,'Data Annex'!$K$1:$K$5047,0),MATCH(G$46,'Data Annex'!$K$1:$BA$1,0)),\"\")","v":0.7827413111},{"$f":"IFERROR(INDEX('Data Annex'!$K$1:$BA$5047,MATCH(H$45&\"|\"&$B60,'Data Annex'!$K$1:$K$5047,0),MATCH(H$46,'Data Annex'!$K$1:$BA$1,0)),\"\")","v":0.78236434499999996},{"$f":"IFERROR(INDEX('Data Annex'!$K$1:$BA$5047,MATCH(I$45&\"|\"&$B60,'Data Annex'!$K$1:$K$5047,0),MATCH(I$46,'Data Annex'!$K$1:$BA$1,0)),\"\")","v":0},{"$f":"IFERROR(INDEX('Data Annex'!$K$1:$BA$5047,MATCH(J$45&\"|\"&$B60,'Data Annex'!$K$1:$K$5047,0),MATCH(J$46,'Data Annex'!$K$1:$BA$1,0)),\"\")","v":1.5234463199999999E-2},{"$f":"IFERROR(INDEX('Data Annex'!$K$1:$BA$5047,MATCH(K$45&\"|\"&$B60,'Data Annex'!$K$1:$K$5047,0),MATCH(K$46,'Data Annex'!$K$1:$BA$1,0)),\"\")","v":2.3147882599999999E-2},{"$f":"IFERROR(INDEX('Data Annex'!$K$1:$BA$5047,MATCH(L$45&\"|\"&$B60,'Data Annex'!$K$1:$K$5047,0),MATCH(L$46,'Data Annex'!$K$1:$BA$1,0)),\"\")","v":9.2017850700000001E-2},{"$f":"IFERROR(INDEX('Data Annex'!$K$1:$BA$5047,MATCH(M$45&\"|\"&$B60,'Data Annex'!$K$1:$K$5047,0),MATCH(M$46,'Data Annex'!$K$1:$BA$1,0)),\"\")","v":0},{"$f":"IFERROR(INDEX('Data Annex'!$K$1:$BA$5047,MATCH(N$45&\"|\"&$B60,'Data Annex'!$K$1:$K$5047,0),MATCH(N$46,'Data Annex'!$K$1:$BA$1,0)),\"\")","v":1.6438161E-3},{"$f":"IFERROR(INDEX('Data Annex'!$K$1:$BA$5047,MATCH(O$45&\"|\"&$B60,'Data Annex'!$K$1:$K$5047,0),MATCH(O$46,'Data Annex'!$K$1:$BA$1,0)),\"\")","v":1.9029686000000001E-3},{"$f":"IFERROR(INDEX('Data Annex'!$K$1:$BA$5047,MATCH(P$45&\"|\"&$B60,'Data Annex'!$K$1:$K$5047,0),MATCH(P$46,'Data Annex'!$K$1:$BA$1,0)),\"\")","v":5.6249936999999998E-3},{"$f":"IFERROR(INDEX('Data Annex'!$K$1:$BA$5047,MATCH(Q$45&\"|\"&$B60,'Data Annex'!$K$1:$K$5047,0),MATCH(Q$46,'Data Annex'!$K$1:$BA$1,0)),\"\")","v":0},{"$f":"IFERROR(INDEX('Data Annex'!$K$1:$BA$5047,MATCH(R$45&\"|\"&$B60,'Data Annex'!$K$1:$K$5047,0),MATCH(R$46,'Data Annex'!$K$1:$BA$1,0)),\"\")","v":0.22225331070000001},{"$f":"IFERROR(INDEX('Data Annex'!$K$1:$BA$5047,MATCH(S$45&\"|\"&$B60,'Data Annex'!$K$1:$K$5047,0),MATCH(S$46,'Data Annex'!$K$1:$BA$1,0)),\"\")","v":0.18213791160000001},{"$f":"IFERROR(INDEX('Data Annex'!$K$1:$BA$5047,MATCH(T$45&\"|\"&$B60,'Data Annex'!$K$1:$K$5047,0),MATCH(T$46,'Data Annex'!$K$1:$BA$1,0)),\"\")","v":0.13244788730000001}]
[10,"FI",null,"FI",{"$f":"IFERROR(INDEX('Data Annex'!$K$1:$BA$5047,MATCH(E$45&\"|\"&$B61,'Data Annex'!$K$1:$K$5047,0),MATCH(E$46,'Data Annex'!$K$1:$BA$1,0)),\"\")","v":0},{"$f":"IFERROR(INDEX('Data Annex'!$K$1:$BA$5047,MATCH(F$45&\"|\"&$B61,'Data Annex'!$K$1:$K$5047,0),MATCH(F$46,'Data Annex'!$K$1:$BA$1,0)),\"\")","v":0.74052416720000003},{"$f":"IFERROR(INDEX('Data Annex'!$K$1:$BA$5047,MATCH(G$45&\"|\"&$B61,'Data Annex'!$K$1:$K$5047,0),MATCH(G$46,'Data Annex'!$K$1:$BA$1,0)),\"\")","v":0.74920577899999996},{"$f":"IFERROR(INDEX('Data Annex'!$K$1:$BA$5047,MATCH(H$45&\"|\"&$B61,'Data Annex'!$K$1:$K$5047,0),MATCH(H$46,'Data Annex'!$K$1:$BA$1,0)),\"\")","v":0.75771334759999998},{"$f":"IFERROR(INDEX('Data Annex'!$K$1:$BA$5047,MATCH(I$45&\"|\"&$B61,'Data Annex'!$K$1:$K$5047,0),MATCH(I$46,'Data Annex'!$K$1:$BA$1,0)),\"\")","v":0},{"$f":"IFERROR(INDEX('Data Annex'!$K$1:$BA$5047,MATCH(J$45&\"|\"&$B61,'Data Annex'!$K$1:$K$5047,0),MATCH(J$46,'Data Annex'!$K$1:$BA$1,0)),\"\")","v":2.4212564999999998E-3},{"$f":"IFERROR(INDEX('Data Annex'!$K$1:$BA$5047,MATCH(K$45&\"|\"&$B61,'Data Annex'!$K$1:$K$5047,0),MATCH(K$46,'Data Annex'!$K$1:$BA$1,0)),\"\")","v":5.2046866499999997E-2},{"$f":"IFERROR(INDEX('Data Annex'!$K$1:$BA$5047,MATCH(L$45&\"|\"&$B61,'Data Annex'!$K$1:$K$5047,0),MATCH(L$46,'Data Annex'!$K$1:$BA$1,0)),\"\")","v":0.1140574152},{"$f":"IFERROR(INDEX('Data Annex'!$K$1:$BA$5047,MATCH(M$45&\"|\"&$B61,'Data Annex'!$K$1:$K$5047,0),MATCH(M$46,'Data Annex'!$K$1:$BA$1,0)),\"\")","v":0},{"$f":"IFERROR(INDEX('Data Annex'!$K$1:$BA$5047,MATCH(N$45&\"|\"&$B61,'Data Annex'!$K$1:$K$5047,0),MATCH(N$46,'Data Annex'!$K$1:$BA$1,0)),\"\")","v":5.9289277000000003E-3},{"$f":"IFERROR(INDEX('Data Annex'!$K$1:$BA$5047,MATCH(O$45&\"|\"&$B61,'Data Annex'!$K$1:$K$5047,0),MATCH(O$46,'Data Annex'!$K$1:$BA$1,0)),\"\")","v":5.7102039000000004E-3},{"$f":"IFERROR(INDEX('Data Annex'!$K$1:$BA$5047,MATCH(P$45&\"|\"&$B61,'Data Annex'!$K$1:$K$5047,0),MATCH(P$46,'Data Annex'!$K$1:$BA$1,0)),\"\")","v":1.2029218100000001E-2},{"$f":"IFERROR(INDEX('Data Annex'!$K$1:$BA$5047,MATCH(Q$45&\"|\"&$B61,'Data Annex'!$K$1:$K$5047,0),MATCH(Q$46,'Data Annex'!$K$1:$BA$1,0)),\"\")","v":0},{"$f":"IFERROR(INDEX('Data Annex'!$K$1:$BA$5047,MATCH(R$45&\"|\"&$B61,'Data Annex'!$K$1:$K$5047,0),MATCH(R$46,'Data Annex'!$K$1:$BA$1,0)),\"\")","v":0.1168962251},{"$f":"IFERROR(INDEX('Data Annex'!$K$1:$BA$5047,MATCH(S$45&\"|\"&$B61,'Data Annex'!$K$1:$K$5047,0),MATCH(S$46,'Data Annex'!$K$1:$BA$1,0)),\"\")","v":0.1522090039},{"$f":"IFERROR(INDEX('Data Annex'!$K$1:$BA$5047,MATCH(T$45&\"|\"&$B61,'Data Annex'!$K$1:$K$5047,0),MATCH(T$46,'Data Annex'!$K$1:$BA$1,0)),\"\")","v":0.15403091529999999}]
[11,"FR",null,"FR",{"$f":"IFERROR(INDEX('Data Annex'!$K$1:$BA$5047,MATCH(E$45&\"|\"&$B62,'Data Annex'!$K$1:$K$5047,0),MATCH(E$46,'Data Annex'!$K$1:$BA$1,0)),\"\")","v":0},{"$f":"IFERROR(INDEX('Data Annex'!$K$1:$BA$5047,MATCH(F$45&\"|\"&$B62,'Data Annex'!$K$1:$K$5047,0),MATCH(F$46,'Data Annex'!$K$1:$BA$1,0)),\"\")","v":0.29862018810000002},{"$f":"IFERROR(INDEX('Data Annex'!$K$1:$BA$5047,MATCH(G$45&\"|\"&$B62,'Data Annex'!$K$1:$K$5047,0),MATCH(G$46,'Data Annex'!$K$1:$BA$1,0)),\"\")","v":0.53101387320000004},{"$f":"IFERROR(INDEX('Data Annex'!$K$1:$BA$5047,MATCH(H$45&\"|\"&$B62,'Data Annex'!$K$1:$K$5047,0),MATCH(H$46,'Data Annex'!$K$1:$BA$1,0)),\"\")","v":0.55028771170000002},{"$f":"IFERROR(INDEX('Data Annex'!$K$1:$BA$5047,MATCH(I$45&\"|\"&$B62,'Data Annex'!$K$1:$K$5047,0),MATCH(I$46,'Data Annex'!$K$1:$BA$1,0)),\"\")","v":0},{"$f":"IFERROR(INDEX('Data Annex'!$K$1:$BA$5047,MATCH(J$45&\"|\"&$B62,'Data Annex'!$K$1:$K$5047,0),MATCH(J$46,'Data Annex'!$K$1:$BA$1,0)),\"\")","v":3.3330475399999997E-2},{"$f":"IFERROR(INDEX('Data Annex'!$K$1:$BA$5047,MATCH(K$45&\"|\"&$B62,'Data Annex'!$K$1:$K$5047,0),MATCH(K$46,'Data Annex'!$K$1:$BA$1,0)),\"\")","v":5.6331456199999998E-2},{"$f":"IFERROR(INDEX('Data Annex'!$K$1:$BA$5047,MATCH(L$45&\"|\"&$B62,'Data Annex'!$K$1:$K$5047,0),MATCH(L$46,'Data Annex'!$K$1:$BA$1,0)),\"\")","v":0.12798738370000001},{"$f":"IFERROR(INDEX('Data Annex'!$K$1:$BA$5047,MATCH(M$45&\"|\"&$B62,'Data Annex'!$K$1:$K$5047,0),MATCH(M$46,'Data Annex'!$K$1:$BA$1,0)),\"\")","v":0},{"$f":"IFERROR(INDEX('Data Annex'!$K$1:$BA$5047,MATCH(N$45&\"|\"&$B62,'Data Annex'!$K$1:$K$5047,0),MATCH(N$46,'Data Annex'!$K$1:$BA$1,0)),\"\")","v":9.5023555999999999E-3},{"$f":"IFERROR(INDEX('Data Annex'!$K$1:$BA$5047,MATCH(O$45&\"|\"&$B62,'Data Annex'!$K$1:$K$5047,0),MATCH(O$46,'Data Annex'!$K$1:$BA$1,0)),\"\")","v":1.36078308E-2},{"$f":"IFERROR(INDEX('Data Annex'!$K$1:$BA$5047,MATCH(P$45&\"|\"&$B62,'Data Annex'!$K$1:$K$5047,0),MATCH(P$46,'Data Annex'!$K$1:$BA$1,0)),\"\")","v":1.83250298E-2},{"$f":"IFERROR(INDEX('Data Annex'!$K$1:$BA$5047,MATCH(Q$45&\"|\"&$B62,'Data Annex'!$K$1:$K$5047,0),MATCH(Q$46,'Data Annex'!$K$1:$BA$1,0)),\"\")","v":0},{"$f":"IFERROR(INDEX('Data Annex'!$K$1:$BA$5047,MATCH(R$45&\"|\"&$B62,'Data Annex'!$K$1:$K$5047,0),MATCH(R$46,'Data Annex'!$K$1:$BA$1,0)),\"\")","v":0.1018176983},{"$f":"IFERROR(INDEX('Data Annex'!$K$1:$BA$5047,MATCH(S$45&\"|\"&$B62,'Data Annex'!$K$1:$K$5047,0),MATCH(S$46,'Data Annex'!$K$1:$BA$1,0)),\"\")","v":8.9788750299999998E-2},{"$f":"IFERROR(INDEX('Data Annex'!$K$1:$BA$5047,MATCH(T$45&\"|\"&$B62,'Data Annex'!$K$1:$K$5047,0),MATCH(T$46,'Data Annex'!$K$1:$BA$1,0)),\"\")","v":8.6002726400000007E-2}]
[13,"GR",null,"GR",{"$f":"IFERROR(INDEX('Data Annex'!$K$1:$BA$5047,MATCH(E$45&\"|\"&$B63,'Data Annex'!$K$1:$K$5047,0),MATCH(E$46,'Data Annex'!$K$1:$BA$1,0)),\"\")","v":0},{"$f":"IFERROR(INDEX('Data Annex'!$K$1:$BA$5047,MATCH(F$45&\"|\"&$B63,'Data Annex'!$K$1:$K$5047,0),MATCH(F$46,'Data Annex'!$K$1:$BA$1,0)),\"\")","v":0.80245286520000003},{"$f":"IFERROR(INDEX('Data Annex'!$K$1:$BA$5047,MATCH(G$45&\"|\"&$B63,'Data Annex'!$K$1:$K$5047,0),MATCH(G$46,'Data Annex'!$K$1:$BA$1,0)),\"\")","v":0.64859101129999996},{"$f":"IFERROR(INDEX('Data Annex'!$K$1:$BA$5047,MATCH(H$45&\"|\"&$B63,'Data Annex'!$K$1:$K$5047,0),MATCH(H$46,'Data Annex'!$K$1:$BA$1,0)),\"\")","v":0.63955706599999995},{"$f":"IFERROR(INDEX('Data Annex'!$K$1:$BA$5047,MATCH(I$45&\"|\"&$B63,'Data Annex'!$K$1:$K$5047,0),MATCH(I$46,'Data Annex'!$K$1:$BA$1,0)),\"\")","v":0},{"$f":"IFERROR(INDEX('Data Annex'!$K$1:$BA$5047,MATCH(J$45&\"|\"&$B63,'Data Annex'!$K$1:$K$5047,0),MATCH(J$46,'Data Annex'!$K$1:$BA$1,0)),\"\")","v":4.4500860400000002E-2},{"$f":"IFERROR(INDEX('Data Annex'!$K$1:$BA$5047,MATCH(K$45&\"|\"&$B63,'Data Annex'!$K$1:$K$5047,0),MATCH(K$46,'Data Annex'!$K$1:$BA$1,0)),\"\")","v":9.6711127999999993E-3},{"$f":"IFERROR(INDEX('Data Annex'!$K$1:$BA$5047,MATCH(L$45&\"|\"&$B63,'Data Annex'!$K$1:$K$5047,0),MATCH(L$46,'Data Annex'!$K$1:$BA$1,0)),\"\")","v":3.7627215399999997E-2},{"$f":"IFERROR(INDEX('Data Annex'!$K$1:$BA$5047,MATCH(M$45&\"|\"&$B63,'Data Annex'!$K$1:$K$5047,0),MATCH(M$46,'Data Annex'!$K$1:$BA$1,0)),\"\")","v":0},{"$f":"IFERROR(INDEX('Data Annex'!$K$1:$BA$5047,MATCH(N$45&\"|\"&$B63,'Data Annex'!$K$1:$K$5047,0),MATCH(N$46,'Data Annex'!$K$1:$BA$1,0)),\"\")","v":1.068069E-4},{"$f":"IFERROR(INDEX('Data Annex'!$K$1:$BA$5047,MATCH(O$45&\"|\"&$B63,'Data Annex'!$K$1:$K$5047,0),MATCH(O$46,'Data Annex'!$K$1:$BA$1,0)),\"\")","v":3.4057673999999998E-3},{"$f":"IFERROR(INDEX('Data Annex'!$K$1:$BA$5047,MATCH(P$45&\"|\"&$B63,'Data Annex'!$K$1:$K$5047,0),MATCH(P$46,'Data Annex'!$K$1:$BA$1,0)),\"\")","v":6.0699185000000003E-3},{"$f":"IFERROR(INDEX('Data Annex'!$K$1:$BA$5047,MATCH(Q$45&\"|\"&$B63,'Data Annex'!$K$1:$K$5047,0),MATCH(Q$46,'Data Annex'!$K$1:$BA$1,0)),\"\")","v":0},{"$f":"IFERROR(INDEX('Data Annex'!$K$1:$BA$5047,MATCH(R$45&\"|\"&$B63,'Data Annex'!$K$1:$K$5047,0),MATCH(R$46,'Data Annex'!$K$1:$BA$1,0)),\"\")","v":0.92910602909999995},{"$f":"IFERROR(INDEX('Data Annex'!$K$1:$BA$5047,MATCH(S$45&\"|\"&$B63,'Data Annex'!$K$1:$K$5047,0),MATCH(S$46,'Data Annex'!$K$1:$BA$1,0)),\"\")","v":1.43690564E-2},{"$f":"IFERROR(INDEX('Data Annex'!$K$1:$BA$5047,MATCH(T$45&\"|\"&$B63,'Data Annex'!$K$1:$K$5047,0),MATCH(T$46,'Data Annex'!$K$1:$BA$1,0)),\"\")","v":5.3426216999999998E-2}]
[14,"HR",null,"HR",{"$f":"IFERROR(INDEX('Data Annex'!$K$1:$BA$5047,MATCH(E$45&\"|\"&$B64,'Data Annex'!$K$1:$K$5047,0),MATCH(E$46,'Data Annex'!$K$1:$BA$1,0)),\"\")","v":0},{"$f":"IFERROR(INDEX('Data Annex'!$K$1:$BA$5047,MATCH(F$45&\"|\"&$B64,'Data Annex'!$K$1:$K$5047,0),MATCH(F$46,'Data Annex'!$K$1:$BA$1,0)),\"\")","v":0.89067645699999998},{"$f":"IFERROR(INDEX('Data Annex'!$K$1:$BA$5047,MATCH(G$45&\"|\"&$B64,'Data Annex'!$K$1:$K$5047,0),MATCH(G$46,'Data Annex'!$K$1:$BA$1,0)),\"\")","v":0.7095221666},{"$f":"IFERROR(INDEX('Data Annex'!$K$1:$BA$5047,MATCH(H$45&\"|\"&$B64,'Data Annex'!$K$1:$K$5047,0),MATCH(H$46,'Data Annex'!$K$1:$BA$1,0)),\"\")","v":0.49833327080000001},{"$f":"IFERROR(INDEX('Data Annex'!$K$1:$BA$5047,MATCH(I$45&\"|\"&$B64,'Data Annex'!$K$1:$K$5047,0),MATCH(I$46,'Data Annex'!$K$1:$BA$1,0)),\"\")","v":0},{"$f":"IFERROR(INDEX('Data Annex'!$K$1:$BA$5047,MATCH(J$45&\"|\"&$B64,'Data Annex'!$K$1:$K$5047,0),MATCH(J$46,'Data Annex'!$K$1:$BA$1,0)),\"\")","v":0.5566442895},{"$f":"IFERROR(INDEX('Data Annex'!$K$1:$BA$5047,MATCH(K$45&\"|\"&$B64,'Data Annex'!$K$1:$K$5047,0),MATCH(K$46,'Data Annex'!$K$1:$BA$1,0)),\"\")","v":0.47027074250000001},{"$f":"IFERROR(INDEX('Data Annex'!$K$1:$BA$5047,MATCH(L$45&\"|\"&$B64,'Data Annex'!$K$1:$K$5047,0),MATCH(L$46,'Data Annex'!$K$1:$BA$1,0)),\"\")","v":0.46777959349999998},{"$f":"IFERROR(INDEX('Data Annex'!$K$1:$BA$5047,MATCH(M$45&\"|\"&$B64,'Data Annex'!$K$1:$K$5047,0),MATCH(M$46,'Data Annex'!$K$1:$BA$1,0)),\"\")","v":0},{"$f":"IFERROR(INDEX('Data Annex'!$K$1:$BA$5047,MATCH(N$45&\"|\"&$B64,'Data Annex'!$K$1:$K$5047,0),MATCH(N$46,'Data Annex'!$K$1:$BA$1,0)),\"\")","v":0},{"$f":"IFERROR(INDEX('Data Annex'!$K$1:$BA$5047,MATCH(O$45&\"|\"&$B64,'Data Annex'!$K$1:$K$5047,0),MATCH(O$46,'Data Annex'!$K$1:$BA$1,0)),\"\")","v":0},{"$f":"IFERROR(INDEX('Data Annex'!$K$1:$BA$5047,MATCH(P$45&\"|\"&$B64,'Data Annex'!$K$1:$K$5047,0),MATCH(P$46,'Data Annex'!$K$1:$BA$1,0)),\"\")","v":0},{"$f":"IFERROR(INDEX('Data Annex'!$K$1:$BA$5047,MATCH(Q$45&\"|\"&$B64,'Data Annex'!$K$1:$K$5047,0),MATCH(Q$46,'Data Annex'!$K$1:$BA$1,0)),\"\")","v":0},{"$f":"IFERROR(INDEX('Data Annex'!$K$1:$BA$5047,MATCH(R$45&\"|\"&$B64,'Data Annex'!$K$1:$K$5047,0),MATCH(R$46,'Data Annex'!$K$1:$BA$1,0)),\"\")","v":0},{"$f":"IFERROR(INDEX('Data Annex'!$K$1:$BA$5047,MATCH(S$45&\"|\"&$B64,'Data Annex'!$K$1:$K$5047,0),MATCH(S$46,'Data Annex'!$K$1:$BA$1,0)),\"\")","v":0},{"$f":"IFERROR(INDEX('Data Annex'!$K$1:$BA$5047,MATCH(T$45&\"|\"&$B64,'Data Annex'!$K$1:$K$5047,0),MATCH(T$46,'Data Annex'!$K$1:$BA$1,0)),\"\")","v":0}]
[15,"HU",null,"HU",{"$f":"IFERROR(INDEX('Data Annex'!$K$1:$BA$5047,MATCH(E$45&\"|\"&$B65,'Data Annex'!$K$1:$K$5047,0),MATCH(E$46,'Data Annex'!$K$1:$BA$1,0)),\"\")","v":0},{"$f":"IFERROR(INDEX('Data Annex'!$K$1:$BA$5047,MATCH(F$45&\"|\"&$B65,'Data Annex'!$K$1:$K$5047,0),MATCH(F$46,'Data Annex'!$K$1:$BA$1,0)),\"\")","v":0.9},{"$f":"IFERROR(INDEX('Data Annex'!$K$1:$BA$5047,MATCH(G$45&\"|\"&$B65,'Data Annex'!$K$1:$K$5047,0),MATCH(G$46,'Data Annex'!$K$1:$BA$1,0)),\"\")","v":0.70665896549999996},{"$f":"IFERROR(INDEX('Data Annex'!$K$1:$BA$5047,MATCH(H$45&\"|\"&$B65,'Data Annex'!$K$1:$K$5047,0),MATCH(H$46,'Data Annex'!$K$1:$BA$1,0)),\"\")","v":0.38498960199999999},{"$f":"IFERROR(INDEX('Data Annex'!$K$1:$BA$5047,MATCH(I$45&\"|\"&$B65,'Data Annex'!$K$1:$K$5047,0),MATCH(I$46,'Data Annex'!$K$1:$BA$1,0)),\"\")","v":0},{"$f":"IFERROR(INDEX('Data Annex'!$K$1:$BA$5047,MATCH(J$45&\"|\"&$B65,'Data Annex'!$K$1:$K$5047,0),MATCH(J$46,'Data Annex'!$K$1:$BA$1,0)),\"\")","v":0.19527589519999999},{"$f":"IFERROR(INDEX('Data Annex'!$K$1:$BA$5047,MATCH(K$45&\"|\"&$B65,'Data Annex'!$K$1:$K$5047,0),MATCH(K$46,'Data Annex'!$K$1:$BA$1,0)),\"\")","v":0.10970465510000001},{"$f":"IFERROR(INDEX('Data Annex'!$K$1:$BA$5047,MATCH(L$45&\"|\"&$B65,'Data Annex'!$K$1:$K$5047,0),MATCH(L$46,'Data Annex'!$K$1:$BA$1,0)),\"\")","v":3.4750351200000001E-2},{"$f":"IFERROR(INDEX('Data Annex'!$K$1:$BA$5047,MATCH(M$45&\"|\"&$B65,'Data Annex'!$K$1:$K$5047,0),MATCH(M$46,'Data Annex'!$K$1:$BA$1,0)),\"\")","v":0},{"$f":"IFERROR(INDEX('Data Annex'!$K$1:$BA$5047,MATCH(N$45&\"|\"&$B65,'Data Annex'!$K$1:$K$5047,0),MATCH(N$46,'Data Annex'!$K$1:$BA$1,0)),\"\")","v":0},{"$f":"IFERROR(INDEX('Data Annex'!$K$1:$BA$5047,MATCH(O$45&\"|\"&$B65,'Data Annex'!$K$1:$K$5047,0),MATCH(O$46,'Data Annex'!$K$1:$BA$1,0)),\"\")","v":2.4671570000000002E-4},{"$f":"IFERROR(INDEX('Data Annex'!$K$1:$BA$5047,MATCH(P$45&\"|\"&$B65,'Data Annex'!$K$1:$K$5047,0),MATCH(P$46,'Data Annex'!$K$1:$BA$1,0)),\"\")","v":1.9066610099999999E-2},{"$f":"IFERROR(INDEX('Data Annex'!$K$1:$BA$5047,MATCH(Q$45&\"|\"&$B65,'Data Annex'!$K$1:$K$5047,0),MATCH(Q$46,'Data Annex'!$K$1:$BA$1,0)),\"\")","v":0},{"$f":"IFERROR(INDEX('Data Annex'!$K$1:$BA$5047,MATCH(R$45&\"|\"&$B65,'Data Annex'!$K$1:$K$5047,0),MATCH(R$46,'Data Annex'!$K$1:$BA$1,0)),\"\")","v":0},{"$f":"IFERROR(INDEX('Data Annex'!$K$1:$BA$5047,MATCH(S$45&\"|\"&$B65,'Data Annex'!$K$1:$K$5047,0),MATCH(S$46,'Data Annex'!$K$1:$BA$1,0)),\"\")","v":0.3532575241},{"$f":"IFERROR(INDEX('Data Annex'!$K$1:$BA$5047,MATCH(T$45&\"|\"&$B65,'Data Annex'!$K$1:$K$5047,0),MATCH(T$46,'Data Annex'!$K$1:$BA$1,0)),\"\")","v":0.22650629459999999}]
[16,"IE",null,"IE",{"$f":"IFERROR(INDEX('Data Annex'!$K$1:$BA$5047,MATCH(E$45&\"|\"&$B66,'Data Annex'!$K$1:$K$5047,0),MATCH(E$46,'Data Annex'!$K$1:$BA$1,0)),\"\")","v":0},{"$f":"IFERROR(INDEX('Data Annex'!$K$1:$BA$5047,MATCH(F$45&\"|\"&$B66,'Data Annex'!$K$1:$K$5047,0),MATCH(F$46,'Data Annex'!$K$1:$BA$1,0)),\"\")","v":0.9388743785},{"$f":"IFERROR(INDEX('Data Annex'!$K$1:$BA$5047,MATCH(G$45&\"|\"&$B66,'Data Annex'!$K$1:$K$5047,0),MATCH(G$46,'Data Annex'!$K$1:$BA$1,0)),\"\")","v":0.76200123829999999},{"$f":"IFERROR(INDEX('Data Annex'!$K$1:$BA$5047,MATCH(H$45&\"|\"&$B66,'Data Annex'!$K$1:$K$5047,0),MATCH(H$46,'Data Annex'!$K$1:$BA$1,0)),\"\")","v":0.86670989850000002},{"$f":"IFERROR(INDEX('Data Annex'!$K$1:$BA$5047,MATCH(I$45&\"|\"&$B66,'Data Annex'!$K$1:$K$5047,0),MATCH(I$46,'Data Annex'!$K$1:$BA$1,0)),\"\")","v":0},{"$f":"IFERROR(INDEX('Data Annex'!$K$1:$BA$5047,MATCH(J$45&\"|\"&$B66,'Data Annex'!$K$1:$K$5047,0),MATCH(J$46,'Data Annex'!$K$1:$BA$1,0)),\"\")","v":1.9493487E-2},{"$f":"IFERROR(INDEX('Data Annex'!$K$1:$BA$5047,MATCH(K$45&\"|\"&$B66,'Data Annex'!$K$1:$K$5047,0),MATCH(K$46,'Data Annex'!$K$1:$BA$1,0)),\"\")","v":3.1627848799999997E-2},{"$f":"IFERROR(INDEX('Data Annex'!$K$1:$BA$5047,MATCH(L$45&\"|\"&$B66,'Data Annex'!$K$1:$K$5047,0),MATCH(L$46,'Data Annex'!$K$1:$BA$1,0)),\"\")","v":0.2535673021},{"$f":"IFERROR(INDEX('Data Annex'!$K$1:$BA$5047,MATCH(M$45&\"|\"&$B66,'Data Annex'!$K$1:$K$5047,0),MATCH(M$46,'Data Annex'!$K$1:$BA$1,0)),\"\")","v":0},{"$f":"IFERROR(INDEX('Data Annex'!$K$1:$BA$5047,MATCH(N$45&\"|\"&$B66,'Data Annex'!$K$1:$K$5047,0),MATCH(N$46,'Data Annex'!$K$1:$BA$1,0)),\"\")","v":0.10058207669999999},{"$f":"IFERROR(INDEX('Data Annex'!$K$1:$BA$5047,MATCH(O$45&\"|\"&$B66,'Data Annex'!$K$1:$K$5047,0),MATCH(O$46,'Data Annex'!$K$1:$BA$1,0)),\"\")","v":4.5052844699999997E-2},{"$f":"IFERROR(INDEX('Data Annex'!$K$1:$BA$5047,MATCH(P$45&\"|\"&$B66,'Data Annex'!$K$1:$K$5047,0),MATCH(P$46,'Data Annex'!$K$1:$BA$1,0)),\"\")","v":3.4269823999999997E-2},{"$f":"IFERROR(INDEX('Data Annex'!$K$1:$BA$5047,MATCH(Q$45&\"|\"&$B66,'Data Annex'!$K$1:$K$5047,0),MATCH(Q$46,'Data Annex'!$K$1:$BA$1,0)),\"\")","v":0},{"$f":"IFERROR(INDEX('Data Annex'!$K$1:$BA$5047,MATCH(R$45&\"|\"&$B66,'Data Annex'!$K$1:$K$5047,0),MATCH(R$46,'Data Annex'!$K$1:$BA$1,0)),\"\")","v":-3.7984405999999998E-2},{"$f":"IFERROR(INDEX('Data Annex'!$K$1:$BA$5047,MATCH(S$45&\"|\"&$B66,'Data Annex'!$K$1:$K$5047,0),MATCH(S$46,'Data Annex'!$K$1:$BA$1,0)),\"\")","v":0.1108413478},{"$f":"IFERROR(INDEX('Data Annex'!$K$1:$BA$5047,MATCH(T$45&\"|\"&$B66,'Data Annex'!$K$1:$K$5047,0),MATCH(T$46,'Data Annex'!$K$1:$BA$1,0)),\"\")","v":2.6308791299999999E-2}]
[17,"IS",null,"IS",{"$f":"IFERROR(INDEX('Data Annex'!$K$1:$BA$5047,MATCH(E$45&\"|\"&$B67,'Data Annex'!$K$1:$K$5047,0),MATCH(E$46,'Data Annex'!$K$1:$BA$1,0)),\"\")","v":0},{"$f":"IFERROR(INDEX('Data Annex'!$K$1:$BA$5047,MATCH(F$45&\"|\"&$B67,'Data Annex'!$K$1:$K$5047,0),MATCH(F$46,'Data Annex'!$K$1:$BA$1,0)),\"\")","v":0},{"$f":"IFERROR(INDEX('Data Annex'!$K$1:$BA$5047,MATCH(G$45&\"|\"&$B67,'Data Annex'!$K$1:$K$5047,0),MATCH(G$46,'Data Annex'!$K$1:$BA$1,0)),\"\")","v":0.93305614299999995},{"$f":"IFERROR(INDEX('Data Annex'!$K$1:$BA$5047,MATCH(H$45&\"|\"&$B67,'Data Annex'!$K$1:$K$5047,0),MATCH(H$46,'Data Annex'!$K$1:$BA$1,0)),\"\")","v":0.89698239489999998},{"$f":"IFERROR(INDEX('Data Annex'!$K$1:$BA$5047,MATCH(I$45&\"|\"&$B67,'Data Annex'!$K$1:$K$5047,0),MATCH(I$46,'Data Annex'!$K$1:$BA$1,0)),\"\")","v":0},{"$f":"IFERROR(INDEX('Data Annex'!$K$1:$BA$5047,MATCH(J$45&\"|\"&$B67,'Data Annex'!$K$1:$K$5047,0),MATCH(J$46,'Data Annex'!$K$1:$BA$1,0)),\"\")","v":0},{"$f":"IFERROR(INDEX('Data Annex'!$K$1:$BA$5047,MATCH(K$45&\"|\"&$B67,'Data Annex'!$K$1:$K$5047,0),MATCH(K$46,'Data Annex'!$K$1:$BA$1,0)),\"\")","v":0.51408652070000005},{"$f":"IFERROR(INDEX('Data Annex'!$K$1:$BA$5047,MATCH(L$45&\"|\"&$B67,'Data Annex'!$K$1:$K$5047,0),MATCH(L$46,'Data Annex'!$K$1:$BA$1,0)),\"\")","v":0.62307796370000001},{"$f":"IFERROR(INDEX('Data Annex'!$K$1:$BA$5047,MATCH(M$45&\"|\"&$B67,'Data Annex'!$K$1:$K$5047,0),MATCH(M$46,'Data Annex'!$K$1:$BA$1,0)),\"\")","v":0},{"$f":"IFERROR(INDEX('Data Annex'!$K$1:$BA$5047,MATCH(N$45&\"|\"&$B67,'Data Annex'!$K$1:$K$5047,0),MATCH(N$46,'Data Annex'!$K$1:$BA$1,0)),\"\")","v":0},{"$f":"IFERROR(INDEX('Data Annex'!$K$1:$BA$5047,MATCH(O$45&\"|\"&$B67,'Data Annex'!$K$1:$K$5047,0),MATCH(O$46,'Data Annex'!$K$1:$BA$1,0)),\"\")","v":1.7637283699999999E-2},{"$f":"IFERROR(INDEX('Data Annex'!$K$1:$BA$5047,MATCH(P$45&\"|\"&$B67,'Data Annex'!$K$1:$K$5047,0),MATCH(P$46,'Data Annex'!$K$1:$BA$1,0)),\"\")","v":8.1437755000000001E-2},{"$f":"IFERROR(INDEX('Data Annex'!$K$1:$BA$5047,MATCH(Q$45&\"|\"&$B67,'Data Annex'!$K$1:$K$5047,0),MATCH(Q$46,'Data Annex'!$K$1:$BA$1,0)),\"\")","v":0},{"$f":"IFERROR(INDEX('Data Annex'!$K$1:$BA$5047,MATCH(R$45&\"|\"&$B67,'Data Annex'!$K$1:$K$5047,0),MATCH(R$46,'Data Annex'!$K$1:$BA$1,0)),\"\")","v":0},{"$f":"IFERROR(INDEX('Data Annex'!$K$1:$BA$5047,MATCH(S$45&\"|\"&$B67,'Data Annex'!$K$1:$K$5047,0),MATCH(S$46,'Data Annex'!$K$1:$BA$1,0)),\"\")","v":6.3310879700000003E-2},{"$f":"IFERROR(INDEX('Data Annex'!$K$1:$BA$5047,MATCH(T$45&\"|\"&$B67,'Data Annex'!$K$1:$K$5047,0),MATCH(T$46,'Data Annex'!$K$1:$BA$1,0)),\"\")","v":0.32803675189999998}]
[18,"IT",null,"IT",{"$f":"IFERROR(INDEX('Data Annex'!$K$1:$BA$5047,MATCH(E$45&\"|\"&$B68,'Data Annex'!$K$1:$K$5047,0),MATCH(E$46,'Data Annex'!$K$1:$BA$1,0)),\"\")","v":0},{"$f":"IFERROR(INDEX('Data Annex'!$K$1:$BA$5047,MATCH(F$45&\"|\"&$B68,'Data Annex'!$K$1:$K$5047,0),MATCH(F$46,'Data Annex'!$K$1:$BA$1,0)),\"\")","v":0.82830643010000005},{"$f":"IFERROR(INDEX('Data Annex'!$K$1:$BA$5047,MATCH(G$45&\"|\"&$B68,'Data Annex'!$K$1:$K$5047,0),MATCH(G$46,'Data Annex'!$K$1:$BA$1,0)),\"\")","v":0.8158592066},{"$f":"IFERROR(INDEX('Data Annex'!$K$1:$BA$5047,MATCH(H$45&\"|\"&$B68,'Data Annex'!$K$1:$K$5047,0),MATCH(H$46,'Data Annex'!$K$1:$BA$1,0)),\"\")","v":0.86633479729999996},{"$f":"IFERROR(INDEX('Data Annex'!$K$1:$BA$5047,MATCH(I$45&\"|\"&$B68,'Data Annex'!$K$1:$K$5047,0),MATCH(I$46,'Data Annex'!$K$1:$BA$1,0)),\"\")","v":0},{"$f":"IFERROR(INDEX('Data Annex'!$K$1:$BA$5047,MATCH(J$45&\"|\"&$B68,'Data Annex'!$K$1:$K$5047,0),MATCH(J$46,'Data Annex'!$K$1:$BA$1,0)),\"\")","v":4.4431156600000001E-2},{"$f":"IFERROR(INDEX('Data Annex'!$K$1:$BA$5047,MATCH(K$45&\"|\"&$B68,'Data Annex'!$K$1:$K$5047,0),MATCH(K$46,'Data Annex'!$K$1:$BA$1,0)),\"\")","v":5.07700003E-2},{"$f":"IFERROR(INDEX('Data Annex'!$K$1:$BA$5047,MATCH(L$45&\"|\"&$B68,'Data Annex'!$K$1:$K$5047,0),MATCH(L$46,'Data Annex'!$K$1:$BA$1,0)),\"\")","v":0.1086783809},{"$f":"IFERROR(INDEX('Data Annex'!$K$1:$BA$5047,MATCH(M$45&\"|\"&$B68,'Data Annex'!$K$1:$K$5047,0),MATCH(M$46,'Data Annex'!$K$1:$BA$1,0)),\"\")","v":0},{"$f":"IFERROR(INDEX('Data Annex'!$K$1:$BA$5047,MATCH(N$45&\"|\"&$B68,'Data Annex'!$K$1:$K$5047,0),MATCH(N$46,'Data Annex'!$K$1:$BA$1,0)),\"\")","v":1.9991800000000001E-3},{"$f":"IFERROR(INDEX('Data Annex'!$K$1:$BA$5047,MATCH(O$45&\"|\"&$B68,'Data Annex'!$K$1:$K$5047,0),MATCH(O$46,'Data Annex'!$K$1:$BA$1,0)),\"\")","v":1.3667136000000001E-3},{"$f":"IFERROR(INDEX('Data Annex'!$K$1:$BA$5047,MATCH(P$45&\"|\"&$B68,'Data Annex'!$K$1:$K$5047,0),MATCH(P$46,'Data Annex'!$K$1:$BA$1,0)),\"\")","v":1.8057947999999999E-3},{"$f":"IFERROR(INDEX('Data Annex'!$K$1:$BA$5047,MATCH(Q$45&\"|\"&$B68,'Data Annex'!$K$1:$K$5047,0),MATCH(Q$46,'Data Annex'!$K$1:$BA$1,0)),\"\")","v":0},{"$f":"IFERROR(INDEX('Data Annex'!$K$1:$BA$5047,MATCH(R$45&\"|\"&$B68,'Data Annex'!$K$1:$K$5047,0),MATCH(R$46,'Data Annex'!$K$1:$BA$1,0)),\"\")","v":0.1775710788},{"$f":"IFERROR(INDEX('Data Annex'!$K$1:$BA$5047,MATCH(S$45&\"|\"&$B68,'Data Annex'!$K$1:$K$5047,0),MATCH(S$46,'Data Annex'!$K$1:$BA$1,0)),\"\")","v":0.18156208700000001},{"$f":"IFERROR(INDEX('Data Annex'!$K$1:$BA$5047,MATCH(T$45&\"|\"&$B68,'Data Annex'!$K$1:$K$5047,0),MATCH(T$46,'Data Annex'!$K$1:$BA$1,0)),\"\")","v":0.22182248660000001}]
[19,"LT",null,"LT",{"$f":"IFERROR(INDEX('Data Annex'!$K$1:$BA$5047,MATCH(E$45&\"|\"&$B69,'Data Annex'!$K$1:$K$5047,0),MATCH(E$46,'Data Annex'!$K$1:$BA$1,0)),\"\")","v":0},{"$f":"IFERROR(INDEX('Data Annex'!$K$1:$BA$5047,MATCH(F$45&\"|\"&$B69,'Data Annex'!$K$1:$K$5047,0),MATCH(F$46,'Data Annex'!$K$1:$BA$1,0)),\"\")","v":0.15999970099999999},{"$f":"IFERROR(INDEX('Data Annex'!$K$1:$BA$5047,MATCH(G$45&\"|\"&$B69,'Data Annex'!$K$1:$K$5047,0),MATCH(G$46,'Data Annex'!$K$1:$BA$1,0)),\"\")","v":0.1752441773},{"$f":"IFERROR(INDEX('Data Annex'!$K$1:$BA$5047,MATCH(H$45&\"|\"&$B69,'Data Annex'!$K$1:$K$5047,0),MATCH(H$46,'Data Annex'!$K$1:$BA$1,0)),\"\")","v":0.29801650860000001},{"$f":"IFERROR(INDEX('Data Annex'!$K$1:$BA$5047,MATCH(I$45&\"|\"&$B69,'Data Annex'!$K$1:$K$5047,0),MATCH(I$46,'Data Annex'!$K$1:$BA$1,0)),\"\")","v":0},{"$f":"IFERROR(INDEX('Data Annex'!$K$1:$BA$5047,MATCH(J$45&\"|\"&$B69,'Data Annex'!$K$1:$K$5047,0),MATCH(J$46,'Data Annex'!$K$1:$BA$1,0)),\"\")","v":0},{"$f":"IFERROR(INDEX('Data Annex'!$K$1:$BA$5047,MATCH(K$45&\"|\"&$B69,'Data Annex'!$K$1:$K$5047,0),MATCH(K$46,'Data Annex'!$K$1:$BA$1,0)),\"\")","v":9.9549211100000007E-2},{"$f":"IFERROR(INDEX('Data Annex'!$K$1:$BA$5047,MATCH(L$45&\"|\"&$B69,'Data Annex'!$K$1:$K$5047,0),MATCH(L$46,'Data Annex'!$K$1:$BA$1,0)),\"\")","v":1.4044597799999999E-2},{"$f":"IFERROR(INDEX('Data Annex'!$K$1:$BA$5047,MATCH(M$45&\"|\"&$B69,'Data Annex'!$K$1:$K$5047,0),MATCH(M$46,'Data Annex'!$K$1:$BA$1,0)),\"\")","v":0},{"$f":"IFERROR(INDEX('Data Annex'!$K$1:$BA$5047,MATCH(N$45&\"|\"&$B69,'Data Annex'!$K$1:$K$5047,0),MATCH(N$46,'Data Annex'!$K$1:$BA$1,0)),\"\")","v":0},{"$f":"IFERROR(INDEX('Data Annex'!$K$1:$BA$5047,MATCH(O$45&\"|\"&$B69,'Data Annex'!$K$1:$K$5047,0),MATCH(O$46,'Data Annex'!$K$1:$BA$1,0)),\"\")","v":0},{"$f":"IFERROR(INDEX('Data Annex'!$K$1:$BA$5047,MATCH(P$45&\"|\"&$B69,'Data Annex'!$K$1:$K$5047,0),MATCH(P$46,'Data Annex'!$K$1:$BA$1,0)),\"\")","v":0},{"$f":"IFERROR(INDEX('Data Annex'!$K$1:$BA$5047,MATCH(Q$45&\"|\"&$B69,'Data Annex'!$K$1:$K$5047,0),MATCH(Q$46,'Data Annex'!$K$1:$BA$1,0)),\"\")","v":0},{"$f":"IFERROR(INDEX('Data Annex'!$K$1:$BA$5047,MATCH(R$45&\"|\"&$B69,'Data Annex'!$K$1:$K$5047,0),MATCH(R$46,'Data Annex'!$K$1:$BA$1,0)),\"\")","v":0},{"$f":"IFERROR(INDEX('Data Annex'!$K$1:$BA$5047,MATCH(S$45&\"|\"&$B69,'Data Annex'!$K$1:$K$5047,0),MATCH(S$46,'Data Annex'!$K$1:$BA$1,0)),\"\")","v":0},{"$f":"IFERROR(INDEX('Data Annex'!$K$1:$BA$5047,MATCH(T$45&\"|\"&$B69,'Data Annex'!$K$1:$K$5047,0),MATCH(T$46,'Data Annex'!$K$1:$BA$1,0)),\"\")","v":0}]
[20,"LU",null,"LU",{"$f":"IFERROR(INDEX('Data Annex'!$K$1:$BA$5047,MATCH(E$45&\"|\"&$B70,'Data Annex'!$K$1:$K$5047,0),MATCH(E$46,'Data Annex'!$K$1:$BA$1,0)),\"\")","v":0},{"$f":"IFERROR(INDEX('Data Annex'!$K$1:$BA$5047,MATCH(F$45&\"|\"&$B70,'Data Annex'!$K$1:$K$5047,0),MATCH(F$46,'Data Annex'!$K$1:$BA$1,0)),\"\")","v":0.49380543259999998},{"$f":"IFERROR(INDEX('Data Annex'!$K$1:$BA$5047,MATCH(G$45&\"|\"&$B70,'Data Annex'!$K$1:$K$5047,0),MATCH(G$46,'Data Annex'!$K$1:$BA$1,0)),\"\")","v":0.83034285090000004},{"$f":"IFERROR(INDEX('Data Annex'!$K$1:$BA$5047,MATCH(H$45&\"|\"&$B70,'Data Annex'!$K$1:$K$5047,0),MATCH(H$46,'Data Annex'!$K$1:$BA$1,0)),\"\")","v":0.85445208230000003},{"$f":"IFERROR(INDEX('Data Annex'!$K$1:$BA$5047,MATCH(I$45&\"|\"&$B70,'Data Annex'!$K$1:$K$5047,0),MATCH(I$46,'Data Annex'!$K$1:$BA$1,0)),\"\")","v":0},{"$f":"IFERROR(INDEX('Data Annex'!$K$1:$BA$5047,MATCH(J$45&\"|\"&$B70,'Data Annex'!$K$1:$K$5047,0),MATCH(J$46,'Data Annex'!$K$1:$BA$1,0)),\"\")","v":1.6520739000000001E-3},{"$f":"IFERROR(INDEX('Data Annex'!$K$1:$BA$5047,MATCH(K$45&\"|\"&$B70,'Data Annex'!$K$1:$K$5047,0),MATCH(K$46,'Data Annex'!$K$1:$BA$1,0)),\"\")","v":9.2736098899999994E-2},{"$f":"IFERROR(INDEX('Data Annex'!$K$1:$BA$5047,MATCH(L$45&\"|\"&$B70,'Data Annex'!$K$1:$K$5047,0),MATCH(L$46,'Data Annex'!$K$1:$BA$1,0)),\"\")","v":0.1669097276},{"$f":"IFERROR(INDEX('Data Annex'!$K$1:$BA$5047,MATCH(M$45&\"|\"&$B70,'Data Annex'!$K$1:$K$5047,0),MATCH(M$46,'Data Annex'!$K$1:$BA$1,0)),\"\")","v":0},{"$f":"IFERROR(INDEX('Data Annex'!$K$1:$BA$5047,MATCH(N$45&\"|\"&$B70,'Data Annex'!$K$1:$K$5047,0),MATCH(N$46,'Data Annex'!$K$1:$BA$1,0)),\"\")","v":3.0131919E-3},{"$f":"IFERROR(INDEX('Data Annex'!$K$1:$BA$5047,MATCH(O$45&\"|\"&$B70,'Data Annex'!$K$1:$K$5047,0),MATCH(O$46,'Data Annex'!$K$1:$BA$1,0)),\"\")","v":3.5304387299999997E-2},{"$f":"IFERROR(INDEX('Data Annex'!$K$1:$BA$5047,MATCH(P$45&\"|\"&$B70,'Data Annex'!$K$1:$K$5047,0),MATCH(P$46,'Data Annex'!$K$1:$BA$1,0)),\"\")","v":7.2527448999999994E-2},{"$f":"IFERROR(INDEX('Data Annex'!$K$1:$BA$5047,MATCH(Q$45&\"|\"&$B70,'Data Annex'!$K$1:$K$5047,0),MATCH(Q$46,'Data Annex'!$K$1:$BA$1,0)),\"\")","v":0},{"$f":"IFERROR(INDEX('Data Annex'!$K$1:$BA$5047,MATCH(R$45&\"|\"&$B70,'Data Annex'!$K$1:$K$5047,0),MATCH(R$46,'Data Annex'!$K$1:$BA$1,0)),\"\")","v":2.4333981000000001E-2},{"$f":"IFERROR(INDEX('Data Annex'!$K$1:$BA$5047,MATCH(S$45&\"|\"&$B70,'Data Annex'!$K$1:$K$5047,0),MATCH(S$46,'Data Annex'!$K$1:$BA$1,0)),\"\")","v":3.4649263100000001E-2},{"$f":"IFERROR(INDEX('Data Annex'!$K$1:$BA$5047,MATCH(T$45&\"|\"&$B70,'Data Annex'!$K$1:$K$5047,0),MATCH(T$46,'Data Annex'!$K$1:$BA$1,0)),\"\")","v":7.6374425699999998E-2}]
[21,"LV",null,"LV",{"$f":"IFERROR(INDEX('Data Annex'!$K$1:$BA$5047,MATCH(E$45&\"|\"&$B71,'Data Annex'!$K$1:$K$5047,0),MATCH(E$46,'Data Annex'!$K$1:$BA$1,0)),\"\")","v":0},{"$f":"IFERROR(INDEX('Data Annex'!$K$1:$BA$5047,MATCH(F$45&\"|\"&$B71,'Data Annex'!$K$1:$K$5047,0),MATCH(F$46,'Data Annex'!$K$1:$BA$1,0)),\"\")","v":0.79999972689999999},{"$f":"IFERROR(INDEX('Data Annex'!$K$1:$BA$5047,MATCH(G$45&\"|\"&$B71,'Data Annex'!$K$1:$K$5047,0),MATCH(G$46,'Data Annex'!$K$1:$BA$1,0)),\"\")","v":0.8000004288},{"$f":"IFERROR(INDEX('Data Annex'!$K$1:$BA$5047,MATCH(H$45&\"|\"&$B71,'Data Annex'!$K$1:$K$5047,0),MATCH(H$46,'Data Annex'!$K$1:$BA$1,0)),\"\")","v":0.75654385950000003},{"$f":"IFERROR(INDEX('Data Annex'!$K$1:$BA$5047,MATCH(I$45&\"|\"&$B71,'Data Annex'!$K$1:$K$5047,0),MATCH(I$46,'Data Annex'!$K$1:$BA$1,0)),\"\")","v":0},{"$f":"IFERROR(INDEX('Data Annex'!$K$1:$BA$5047,MATCH(J$45&\"|\"&$B71,'Data Annex'!$K$1:$K$5047,0),MATCH(J$46,'Data Annex'!$K$1:$BA$1,0)),\"\")","v":0},{"$f":"IFERROR(INDEX('Data Annex'!$K$1:$BA$5047,MATCH(K$45&\"|\"&$B71,'Data Annex'!$K$1:$K$5047,0),MATCH(K$46,'Data Annex'!$K$1:$BA$1,0)),\"\")","v":0},{"$f":"IFERROR(INDEX('Data Annex'!$K$1:$BA$5047,MATCH(L$45&\"|\"&$B71,'Data Annex'!$K$1:$K$5047,0),MATCH(L$46,'Data Annex'!$K$1:$BA$1,0)),\"\")","v":0},{"$f":"IFERROR(INDEX('Data Annex'!$K$1:$BA$5047,MATCH(M$45&\"|\"&$B71,'Data Annex'!$K$1:$K$5047,0),MATCH(M$46,'Data Annex'!$K$1:$BA$1,0)),\"\")","v":0},{"$f":"IFERROR(INDEX('Data Annex'!$K$1:$BA$5047,MATCH(N$45&\"|\"&$B71,'Data Annex'!$K$1:$K$5047,0),MATCH(N$46,'Data Annex'!$K$1:$BA$1,0)),\"\")","v":0},{"$f":"IFERROR(INDEX('Data Annex'!$K$1:$BA$5047,MATCH(O$45&\"|\"&$B71,'Data Annex'!$K$1:$K$5047,0),MATCH(O$46,'Data Annex'!$K$1:$BA$1,0)),\"\")","v":0},{"$f":"IFERROR(INDEX('Data Annex'!$K$1:$BA$5047,MATCH(P$45&\"|\"&$B71,'Data Annex'!$K$1:$K$5047,0),MATCH(P$46,'Data Annex'!$K$1:$BA$1,0)),\"\")","v":0},{"$f":"IFERROR(INDEX('Data Annex'!$K$1:$BA$5047,MATCH(Q$45&\"|\"&$B71,'Data Annex'!$K$1:$K$5047,0),MATCH(Q$46,'Data Annex'!$K$1:$BA$1,0)),\"\")","v":0},{"$f":"IFERROR(INDEX('Data Annex'!$K$1:$BA$5047,MATCH(R$45&\"|\"&$B71,'Data Annex'!$K$1:$K$5047,0),MATCH(R$46,'Data Annex'!$K$1:$BA$1,0)),\"\")","v":0},{"$f":"IFERROR(INDEX('Data Annex'!$K$1:$BA$5047,MATCH(S$45&\"|\"&$B71,'Data Annex'!$K$1:$K$5047,0),MATCH(S$46,'Data Annex'!$K$1:$BA$1,0)),\"\")","v":0},{"$f":"IFERROR(INDEX('Data Annex'!$K$1:$BA$5047,MATCH(T$45&\"|\"&$B71,'Data Annex'!$K$1:$K$5047,0),MATCH(T$46,'Data Annex'!$K$1:$BA$1,0)),\"\")","v":0}]
[22,"MT",null,"MT",{"$f":"IFERROR(INDEX('Data Annex'!$K$1:$BA$5047,MATCH(E$45&\"|\"&$B72,'Data Annex'!$K$1:$K$5047,0),MATCH(E$46,'Data Annex'!$K$1:$BA$1,0)),\"\")","v":0},{"$f":"IFERROR(INDEX('Data Annex'!$K$1:$BA$5047,MATCH(F$45&\"|\"&$B72,'Data Annex'!$K$1:$K$5047,0),MATCH(F$46,'Data Annex'!$K$1:$BA$1,0)),\"\")","v":0.45},{"$f":"IFERROR(INDEX('Data Annex'!$K$1:$BA$5047,MATCH(G$45&\"|\"&$B72,'Data Annex'!$K$1:$K$5047,0),MATCH(G$46,'Data Annex'!$K$1:$BA$1,0)),\"\")","v":0.46273220700000001},{"$f":"IFERROR(INDEX('Data Annex'!$K$1:$BA$5047,MATCH(H$45&\"|\"&$B72,'Data Annex'!$K$1:$K$5047,0),MATCH(H$46,'Data Annex'!$K$1:$BA$1,0)),\"\")","v":0.48217831719999998},{"$f":"IFERROR(INDEX('Data Annex'!$K$1:$BA$5047,MATCH(I$45&\"|\"&$B72,'Data Annex'!$K$1:$K$5047,0),MATCH(I$46,'Data Annex'!$K$1:$BA$1,0)),\"\")","v":0},{"$f":"IFERROR(INDEX('Data Annex'!$K$1:$BA$5047,MATCH(J$45&\"|\"&$B72,'Data Annex'!$K$1:$K$5047,0),MATCH(J$46,'Data Annex'!$K$1:$BA$1,0)),\"\")","v":9.7725812100000004E-2},{"$f":"IFERROR(INDEX('Data Annex'!$K$1:$BA$5047,MATCH(K$45&\"|\"&$B72,'Data Annex'!$K$1:$K$5047,0),MATCH(K$46,'Data Annex'!$K$1:$BA$1,0)),\"\")","v":0.12778065320000001},{"$f":"IFERROR(INDEX('Data Annex'!$K$1:$BA$5047,MATCH(L$45&\"|\"&$B72,'Data Annex'!$K$1:$K$5047,0),MATCH(L$46,'Data Annex'!$K$1:$BA$1,0)),\"\")","v":0.17903499},{"$f":"IFERROR(INDEX('Data Annex'!$K$1:$BA$5047,MATCH(M$45&\"|\"&$B72,'Data Annex'!$K$1:$K$5047,0),MATCH(M$46,'Data Annex'!$K$1:$BA$1,0)),\"\")","v":0},{"$f":"IFERROR(INDEX('Data Annex'!$K$1:$BA$5047,MATCH(N$45&\"|\"&$B72,'Data Annex'!$K$1:$K$5047,0),MATCH(N$46,'Data Annex'!$K$1:$BA$1,0)),\"\")","v":1.5019575999999999E-3},{"$f":"IFERROR(INDEX('Data Annex'!$K$1:$BA$5047,MATCH(O$45&\"|\"&$B72,'Data Annex'!$K$1:$K$5047,0),MATCH(O$46,'Data Annex'!$K$1:$BA$1,0)),\"\")","v":6.5297026000000003E-3},{"$f":"IFERROR(INDEX('Data Annex'!$K$1:$BA$5047,MATCH(P$45&\"|\"&$B72,'Data Annex'!$K$1:$K$5047,0),MATCH(P$46,'Data Annex'!$K$1:$BA$1,0)),\"\")","v":9.8464840000000008E-3},{"$f":"IFERROR(INDEX('Data Annex'!$K$1:$BA$5047,MATCH(Q$45&\"|\"&$B72,'Data Annex'!$K$1:$K$5047,0),MATCH(Q$46,'Data Annex'!$K$1:$BA$1,0)),\"\")","v":0},{"$f":"IFERROR(INDEX('Data Annex'!$K$1:$BA$5047,MATCH(R$45&\"|\"&$B72,'Data Annex'!$K$1:$K$5047,0),MATCH(R$46,'Data Annex'!$K$1:$BA$1,0)),\"\")","v":0.62670681070000001},{"$f":"IFERROR(INDEX('Data Annex'!$K$1:$BA$5047,MATCH(S$45&\"|\"&$B72,'Data Annex'!$K$1:$K$5047,0),MATCH(S$46,'Data Annex'!$K$1:$BA$1,0)),\"\")","v":9.2599010400000001E-2},{"$f":"IFERROR(INDEX('Data Annex'!$K$1:$BA$5047,MATCH(T$45&\"|\"&$B72,'Data Annex'!$K$1:$K$5047,0),MATCH(T$46,'Data Annex'!$K$1:$BA$1,0)),\"\")","v":3.1959869799999999E-2}]
[23,"NL",null,"NL",{"$f":"IFERROR(INDEX('Data Annex'!$K$1:$BA$5047,MATCH(E$45&\"|\"&$B73,'Data Annex'!$K$1:$K$5047,0),MATCH(E$46,'Data Annex'!$K$1:$BA$1,0)),\"\")","v":0},{"$f":"IFERROR(INDEX('Data Annex'!$K$1:$BA$5047,MATCH(F$45&\"|\"&$B73,'Data Annex'!$K$1:$K$5047,0),MATCH(F$46,'Data Annex'!$K$1:$BA$1,0)),\"\")","v":0.73481541159999997},{"$f":"IFERROR(INDEX('Data Annex'!$K$1:$BA$5047,MATCH(G$45&\"|\"&$B73,'Data Annex'!$K$1:$K$5047,0),MATCH(G$46,'Data Annex'!$K$1:$BA$1,0)),\"\")","v":0.84816977049999998},{"$f":"IFERROR(INDEX('Data Annex'!$K$1:$BA$5047,MATCH(H$45&\"|\"&$B73,'Data Annex'!$K$1:$K$5047,0),MATCH(H$46,'Data Annex'!$K$1:$BA$1,0)),\"\")","v":0.83185822239999996},{"$f":"IFERROR(INDEX('Data Annex'!$K$1:$BA$5047,MATCH(I$45&\"|\"&$B73,'Data Annex'!$K$1:$K$5047,0),MATCH(I$46,'Data Annex'!$K$1:$BA$1,0)),\"\")","v":0},{"$f":"IFERROR(INDEX('Data Annex'!$K$1:$BA$5047,MATCH(J$45&\"|\"&$B73,'Data Annex'!$K$1:$K$5047,0),MATCH(J$46,'Data Annex'!$K$1:$BA$1,0)),\"\")","v":0.10262486129999999},{"$f":"IFERROR(INDEX('Data Annex'!$K$1:$BA$5047,MATCH(K$45&\"|\"&$B73,'Data Annex'!$K$1:$K$5047,0),MATCH(K$46,'Data Annex'!$K$1:$BA$1,0)),\"\")","v":0.2245081736},{"$f":"IFERROR(INDEX('Data Annex'!$K$1:$BA$5047,MATCH(L$45&\"|\"&$B73,'Data Annex'!$K$1:$K$5047,0),MATCH(L$46,'Data Annex'!$K$1:$BA$1,0)),\"\")","v":0.28050858270000001},{"$f":"IFERROR(INDEX('Data Annex'!$K$1:$BA$5047,MATCH(M$45&\"|\"&$B73,'Data Annex'!$K$1:$K$5047,0),MATCH(M$46,'Data Annex'!$K$1:$BA$1,0)),\"\")","v":0},{"$f":"IFERROR(INDEX('Data Annex'!$K$1:$BA$5047,MATCH(N$45&\"|\"&$B73,'Data Annex'!$K$1:$K$5047,0),MATCH(N$46,'Data Annex'!$K$1:$BA$1,0)),\"\")","v":1.84832646E-2},{"$f":"IFERROR(INDEX('Data Annex'!$K$1:$BA$5047,MATCH(O$45&\"|\"&$B73,'Data Annex'!$K$1:$K$5047,0),MATCH(O$46,'Data Annex'!$K$1:$BA$1,0)),\"\")","v":2.9607339199999999E-2},{"$f":"IFERROR(INDEX('Data Annex'!$K$1:$BA$5047,MATCH(P$45&\"|\"&$B73,'Data Annex'!$K$1:$K$5047,0),MATCH(P$46,'Data Annex'!$K$1:$BA$1,0)),\"\")","v":4.1054780999999999E-2},{"$f":"IFERROR(INDEX('Data Annex'!$K$1:$BA$5047,MATCH(Q$45&\"|\"&$B73,'Data Annex'!$K$1:$K$5047,0),MATCH(Q$46,'Data Annex'!$K$1:$BA$1,0)),\"\")","v":0},{"$f":"IFERROR(INDEX('Data Annex'!$K$1:$BA$5047,MATCH(R$45&\"|\"&$B73,'Data Annex'!$K$1:$K$5047,0),MATCH(R$46,'Data Annex'!$K$1:$BA$1,0)),\"\")","v":4.33872155E-2},{"$f":"IFERROR(INDEX('Data Annex'!$K$1:$BA$5047,MATCH(S$45&\"|\"&$B73,'Data Annex'!$K$1:$K$5047,0),MATCH(S$46,'Data Annex'!$K$1:$BA$1,0)),\"\")","v":0.1362361738},{"$f":"IFERROR(INDEX('Data Annex'!$K$1:$BA$5047,MATCH(T$45&\"|\"&$B73,'Data Annex'!$K$1:$K$5047,0),MATCH(T$46,'Data Annex'!$K$1:$BA$1,0)),\"\")","v":0.12967559079999999}]
[24,"NO",null,"NO",{"$f":"IFERROR(INDEX('Data Annex'!$K$1:$BA$5047,MATCH(E$45&\"|\"&$B74,'Data Annex'!$K$1:$K$5047,0),MATCH(E$46,'Data Annex'!$K$1:$BA$1,0)),\"\")","v":""},{"$f":"IFERROR(INDEX('Data Annex'!$K$1:$BA$5047,MATCH(F$45&\"|\"&$B74,'Data Annex'!$K$1:$K$5047,0),MATCH(F$46,'Data Annex'!$K$1:$BA$1,0)),\"\")","v":""},{"$f":"IFERROR(INDEX('Data Annex'!$K$1:$BA$5047,MATCH(G$45&\"|\"&$B74,'Data Annex'!$K$1:$K$5047,0),MATCH(G$46,'Data Annex'!$K$1:$BA$1,0)),\"\")","v":""},{"$f":"IFERROR(INDEX('Data Annex'!$K$1:$BA$5047,MATCH(H$45&\"|\"&$B74,'Data Annex'!$K$1:$K$5047,0),MATCH(H$46,'Data Annex'!$K$1:$BA$1,0)),\"\")","v":""},{"$f":"IFERROR(INDEX('Data Annex'!$K$1:$BA$5047,MATCH(I$45&\"|\"&$B74,'Data Annex'!$K$1:$K$5047,0),MATCH(I$46,'Data Annex'!$K$1:$BA$1,0)),\"\")","v":""},{"$f":"IFERROR(INDEX('Data Annex'!$K$1:$BA$5047,MATCH(J$45&\"|\"&$B74,'Data Annex'!$K$1:$K$5047,0),MATCH(J$46,'Data Annex'!$K$1:$BA$1,0)),\"\")","v":""},{"$f":"IFERROR(INDEX('Data Annex'!$K$1:$BA$5047,MATCH(K$45&\"|\"&$B74,'Data Annex'!$K$1:$K$5047,0),MATCH(K$46,'Data Annex'!$K$1:$BA$1,0)),\"\")","v":""},{"$f":"IFERROR(INDEX('Data Annex'!$K$1:$BA$5047,MATCH(L$45&\"|\"&$B74,'Data Annex'!$K$1:$K$5047,0),MATCH(L$46,'Data Annex'!$K$1:$BA$1,0)),\"\")","v":""},{"$f":"IFERROR(INDEX('Data Annex'!$K$1:$BA$5047,MATCH(M$45&\"|\"&$B74,'Data Annex'!$K$1:$K$5047,0),MATCH(M$46,'Data Annex'!$K$1:$BA$1,0)),\"\")","v":""},{"$f":"IFERROR(INDEX('Data Annex'!$K$1:$BA$5047,MATCH(N$45&\"|\"&$B74,'Data Annex'!$K$1:$K$5047,0),MATCH(N$46,'Data Annex'!$K$1:$BA$1,0)),\"\")","v":""},{"$f":"IFERROR(INDEX('Data Annex'!$K$1:$BA$5047,MATCH(O$45&\"|\"&$B74,'Data Annex'!$K$1:$K$5047,0),MATCH(O$46,'Data Annex'!$K$1:$BA$1,0)),\"\")","v":""},{"$f":"IFERROR(INDEX('Data Annex'!$K$1:$BA$5047,MATCH(P$45&\"|\"&$B74,'Data Annex'!$K$1:$K$5047,0),MATCH(P$46,'Data Annex'!$K$1:$BA$1,0)),\"\")","v":""},{"$f":"IFERROR(INDEX('Data Annex'!$K$1:$BA$5047,MATCH(Q$45&\"|\"&$B74,'Data Annex'!$K$1:$K$5047,0),MATCH(Q$46,'Data Annex'!$K$1:$BA$1,0)),\"\")","v":""},{"$f":"IFERROR(INDEX('Data Annex'!$K$1:$BA$5047,MATCH(R$45&\"|\"&$B74,'Data Annex'!$K$1:$K$5047,0),MATCH(R$46,'Data Annex'!$K$1:$BA$1,0)),\"\")","v":""},{"$f":"IFERROR(INDEX('Data Annex'!$K$1:$BA$5047,MATCH(S$45&\"|\"&$B74,'Data Annex'!$K$1:$K$5047,0),MATCH(S$46,'Data Annex'!$K$1:$BA$1,0)),\"\")","v":""},{"$f":"IFERROR(INDEX('Data Annex'!$K$1:$BA$5047,MATCH(T$45&\"|\"&$B74,'Data Annex'!$K$1:$K$5047,0),MATCH(T$46,'Data Annex'!$K$1:$BA$1,0)),\"\")","v":""}]
[25,"PL",null,"PL",{"$f":"IFERROR(INDEX('Data Annex'!$K$1:$BA$5047,MATCH(E$45&\"|\"&$B75,'Data Annex'!$K$1:$K$5047,0),MATCH(E$46,'Data Annex'!$K$1:$BA$1,0)),\"\")","v":0},{"$f":"IFERROR(INDEX('Data Annex'!$K$1:$BA$5047,MATCH(F$45&\"|\"&$B75,'Data Annex'!$K$1:$K$5047,0),MATCH(F$46,'Data Annex'!$K$1:$BA$1,0)),\"\")","v":0.77993040319999996},{"$f":"IFERROR(INDEX('Data Annex'!$K$1:$BA$5047,MATCH(G$45&\"|\"&$B75,'Data Annex'!$K$1:$K$5047,0),MATCH(G$46,'Data Annex'!$K$1:$BA$1,0)),\"\")","v":0.67060092039999997},{"$f":"IFERROR(INDEX('Data Annex'!$K$1:$BA$5047,MATCH(H$45&\"|\"&$B75,'Data Annex'!$K$1:$K$5047,0),MATCH(H$46,'Data Annex'!$K$1:$BA$1,0)),\"\")","v":0.35370578699999999},{"$f":"IFERROR(INDEX('Data Annex'!$K$1:$BA$5047,MATCH(I$45&\"|\"&$B75,'Data Annex'!$K$1:$K$5047,0),MATCH(I$46,'Data Annex'!$K$1:$BA$1,0)),\"\")","v":0},{"$f":"IFERROR(INDEX('Data Annex'!$K$1:$BA$5047,MATCH(J$45&\"|\"&$B75,'Data Annex'!$K$1:$K$5047,0),MATCH(J$46,'Data Annex'!$K$1:$BA$1,0)),\"\")","v":0.1111968212},{"$f":"IFERROR(INDEX('Data Annex'!$K$1:$BA$5047,MATCH(K$45&\"|\"&$B75,'Data Annex'!$K$1:$K$5047,0),MATCH(K$46,'Data Annex'!$K$1:$BA$1,0)),\"\")","v":9.0696226000000005E-2},{"$f":"IFERROR(INDEX('Data Annex'!$K$1:$BA$5047,MATCH(L$45&\"|\"&$B75,'Data Annex'!$K$1:$K$5047,0),MATCH(L$46,'Data Annex'!$K$1:$BA$1,0)),\"\")","v":0.13411917840000001},{"$f":"IFERROR(INDEX('Data Annex'!$K$1:$BA$5047,MATCH(M$45&\"|\"&$B75,'Data Annex'!$K$1:$K$5047,0),MATCH(M$46,'Data Annex'!$K$1:$BA$1,0)),\"\")","v":0},{"$f":"IFERROR(INDEX('Data Annex'!$K$1:$BA$5047,MATCH(N$45&\"|\"&$B75,'Data Annex'!$K$1:$K$5047,0),MATCH(N$46,'Data Annex'!$K$1:$BA$1,0)),\"\")","v":9.3269770999999998E-3},{"$f":"IFERROR(INDEX('Data Annex'!$K$1:$BA$5047,MATCH(O$45&\"|\"&$B75,'Data Annex'!$K$1:$K$5047,0),MATCH(O$46,'Data Annex'!$K$1:$BA$1,0)),\"\")","v":1.787383E-4},{"$f":"IFERROR(INDEX('Data Annex'!$K$1:$BA$5047,MATCH(P$45&\"|\"&$B75,'Data Annex'!$K$1:$K$5047,0),MATCH(P$46,'Data Annex'!$K$1:$BA$1,0)),\"\")","v":7.4680564E-3},{"$f":"IFERROR(INDEX('Data Annex'!$K$1:$BA$5047,MATCH(Q$45&\"|\"&$B75,'Data Annex'!$K$1:$K$5047,0),MATCH(Q$46,'Data Annex'!$K$1:$BA$1,0)),\"\")","v":0},{"$f":"IFERROR(INDEX('Data Annex'!$K$1:$BA$5047,MATCH(R$45&\"|\"&$B75,'Data Annex'!$K$1:$K$5047,0),MATCH(R$46,'Data Annex'!$K$1:$BA$1,0)),\"\")","v":0.3865540308},{"$f":"IFERROR(INDEX('Data Annex'!$K$1:$BA$5047,MATCH(S$45&\"|\"&$B75,'Data Annex'!$K$1:$K$5047,0),MATCH(S$46,'Data Annex'!$K$1:$BA$1,0)),\"\")","v":0.31321204619999998},{"$f":"IFERROR(INDEX('Data Annex'!$K$1:$BA$5047,MATCH(T$45&\"|\"&$B75,'Data Annex'!$K$1:$K$5047,0),MATCH(T$46,'Data Annex'!$K$1:$BA$1,0)),\"\")","v":0.1730921601}]
[26,"PT",null,"PT",{"$f":"IFERROR(INDEX('Data Annex'!$K$1:$BA$5047,MATCH(E$45&\"|\"&$B76,'Data Annex'!$K$1:$K$5047,0),MATCH(E$46,'Data Annex'!$K$1:$BA$1,0)),\"\")","v":0},{"$f":"IFERROR(INDEX('Data Annex'!$K$1:$BA$5047,MATCH(F$45&\"|\"&$B76,'Data Annex'!$K$1:$K$5047,0),MATCH(F$46,'Data Annex'!$K$1:$BA$1,0)),\"\")","v":0.39389957660000002},{"$f":"IFERROR(INDEX('Data Annex'!$K$1:$BA$5047,MATCH(G$45&\"|\"&$B76,'Data Annex'!$K$1:$K$5047,0),MATCH(G$46,'Data Annex'!$K$1:$BA$1,0)),\"\")","v":0.78726666270000001},{"$f":"IFERROR(INDEX('Data Annex'!$K$1:$BA$5047,MATCH(H$45&\"|\"&$B76,'Data Annex'!$K$1:$K$5047,0),MATCH(H$46,'Data Annex'!$K$1:$BA$1,0)),\"\")","v":0.78806013689999999},{"$f":"IFERROR(INDEX('Data Annex'!$K$1:$BA$5047,MATCH(I$45&\"|\"&$B76,'Data Annex'!$K$1:$K$5047,0),MATCH(I$46,'Data Annex'!$K$1:$BA$1,0)),\"\")","v":0},{"$f":"IFERROR(INDEX('Data Annex'!$K$1:$BA$5047,MATCH(J$45&\"|\"&$B76,'Data Annex'!$K$1:$K$5047,0),MATCH(J$46,'Data Annex'!$K$1:$BA$1,0)),\"\")","v":4.1438524900000002E-2},{"$f":"IFERROR(INDEX('Data Annex'!$K$1:$BA$5047,MATCH(K$45&\"|\"&$B76,'Data Annex'!$K$1:$K$5047,0),MATCH(K$46,'Data Annex'!$K$1:$BA$1,0)),\"\")","v":7.1351846600000005E-2},{"$f":"IFERROR(INDEX('Data Annex'!$K$1:$BA$5047,MATCH(L$45&\"|\"&$B76,'Data Annex'!$K$1:$K$5047,0),MATCH(L$46,'Data Annex'!$K$1:$BA$1,0)),\"\")","v":0.1468120634},{"$f":"IFERROR(INDEX('Data Annex'!$K$1:$BA$5047,MATCH(M$45&\"|\"&$B76,'Data Annex'!$K$1:$K$5047,0),MATCH(M$46,'Data Annex'!$K$1:$BA$1,0)),\"\")","v":0},{"$f":"IFERROR(INDEX('Data Annex'!$K$1:$BA$5047,MATCH(N$45&\"|\"&$B76,'Data Annex'!$K$1:$K$5047,0),MATCH(N$46,'Data Annex'!$K$1:$BA$1,0)),\"\")","v":1.8007157000000001E-3},{"$f":"IFERROR(INDEX('Data Annex'!$K$1:$BA$5047,MATCH(O$45&\"|\"&$B76,'Data Annex'!$K$1:$K$5047,0),MATCH(O$46,'Data Annex'!$K$1:$BA$1,0)),\"\")","v":2.4232011999999999E-3},{"$f":"IFERROR(INDEX('Data Annex'!$K$1:$BA$5047,MATCH(P$45&\"|\"&$B76,'Data Annex'!$K$1:$K$5047,0),MATCH(P$46,'Data Annex'!$K$1:$BA$1,0)),\"\")","v":3.6027944E-3},{"$f":"IFERROR(INDEX('Data Annex'!$K$1:$BA$5047,MATCH(Q$45&\"|\"&$B76,'Data Annex'!$K$1:$K$5047,0),MATCH(Q$46,'Data Annex'!$K$1:$BA$1,0)),\"\")","v":0},{"$f":"IFERROR(INDEX('Data Annex'!$K$1:$BA$5047,MATCH(R$45&\"|\"&$B76,'Data Annex'!$K$1:$K$5047,0),MATCH(R$46,'Data Annex'!$K$1:$BA$1,0)),\"\")","v":0.1333839748},{"$f":"IFERROR(INDEX('Data Annex'!$K$1:$BA$5047,MATCH(S$45&\"|\"&$B76,'Data Annex'!$K$1:$K$5047,0),MATCH(S$46,'Data Annex'!$K$1:$BA$1,0)),\"\")","v":0.20120002179999999},{"$f":"IFERROR(INDEX('Data Annex'!$K$1:$BA$5047,MATCH(T$45&\"|\"&$B76,'Data Annex'!$K$1:$K$5047,0),MATCH(T$46,'Data Annex'!$K$1:$BA$1,0)),\"\")","v":0.25692095190000003}]
[27,"RO",null,"RO",{"$f":"IFERROR(INDEX('Data Annex'!$K$1:$BA$5047,MATCH(E$45&\"|\"&$B77,'Data Annex'!$K$1:$K$5047,0),MATCH(E$46,'Data Annex'!$K$1:$BA$1,0)),\"\")","v":0},{"$f":"IFERROR(INDEX('Data Annex'!$K$1:$BA$5047,MATCH(F$45&\"|\"&$B77,'Data Annex'!$K$1:$K$5047,0),MATCH(F$46,'Data Annex'!$K$1:$BA$1,0)),\"\")","v":0.15020994779999999},{"$f":"IFERROR(INDEX('Data Annex'!$K$1:$BA$5047,MATCH(G$45&\"|\"&$B77,'Data Annex'!$K$1:$K$5047,0),MATCH(G$46,'Data Annex'!$K$1:$BA$1,0)),\"\")","v":0.28122450100000002},{"$f":"IFERROR(INDEX('Data Annex'!$K$1:$BA$5047,MATCH(H$45&\"|\"&$B77,'Data Annex'!$K$1:$K$5047,0),MATCH(H$46,'Data Annex'!$K$1:$BA$1,0)),\"\")","v":0.28564281870000002},{"$f":"IFERROR(INDEX('Data Annex'!$K$1:$BA$5047,MATCH(I$45&\"|\"&$B77,'Data Annex'!$K$1:$K$5047,0),MATCH(I$46,'Data Annex'!$K$1:$BA$1,0)),\"\")","v":0},{"$f":"IFERROR(INDEX('Data Annex'!$K$1:$BA$5047,MATCH(J$45&\"|\"&$B77,'Data Annex'!$K$1:$K$5047,0),MATCH(J$46,'Data Annex'!$K$1:$BA$1,0)),\"\")","v":1.6449841900000001E-2},{"$f":"IFERROR(INDEX('Data Annex'!$K$1:$BA$5047,MATCH(K$45&\"|\"&$B77,'Data Annex'!$K$1:$K$5047,0),MATCH(K$46,'Data Annex'!$K$1:$BA$1,0)),\"\")","v":9.9225199900000005E-2},{"$f":"IFERROR(INDEX('Data Annex'!$K$1:$BA$5047,MATCH(L$45&\"|\"&$B77,'Data Annex'!$K$1:$K$5047,0),MATCH(L$46,'Data Annex'!$K$1:$BA$1,0)),\"\")","v":0.12597126680000001},{"$f":"IFERROR(INDEX('Data Annex'!$K$1:$BA$5047,MATCH(M$45&\"|\"&$B77,'Data Annex'!$K$1:$K$5047,0),MATCH(M$46,'Data Annex'!$K$1:$BA$1,0)),\"\")","v":0},{"$f":"IFERROR(INDEX('Data Annex'!$K$1:$BA$5047,MATCH(N$45&\"|\"&$B77,'Data Annex'!$K$1:$K$5047,0),MATCH(N$46,'Data Annex'!$K$1:$BA$1,0)),\"\")","v":0},{"$f":"IFERROR(INDEX('Data Annex'!$K$1:$BA$5047,MATCH(O$45&\"|\"&$B77,'Data Annex'!$K$1:$K$5047,0),MATCH(O$46,'Data Annex'!$K$1:$BA$1,0)),\"\")","v":4.7046724000000002E-3},{"$f":"IFERROR(INDEX('Data Annex'!$K$1:$BA$5047,MATCH(P$45&\"|\"&$B77,'Data Annex'!$K$1:$K$5047,0),MATCH(P$46,'Data Annex'!$K$1:$BA$1,0)),\"\")","v":4.2835577999999997E-3},{"$f":"IFERROR(INDEX('Data Annex'!$K$1:$BA$5047,MATCH(Q$45&\"|\"&$B77,'Data Annex'!$K$1:$K$5047,0),MATCH(Q$46,'Data Annex'!$K$1:$BA$1,0)),\"\")","v":0},{"$f":"IFERROR(INDEX('Data Annex'!$K$1:$BA$5047,MATCH(R$45&\"|\"&$B77,'Data Annex'!$K$1:$K$5047,0),MATCH(R$46,'Data Annex'!$K$1:$BA$1,0)),\"\")","v":0},{"$f":"IFERROR(INDEX('Data Annex'!$K$1:$BA$5047,MATCH(S$45&\"|\"&$B77,'Data Annex'!$K$1:$K$5047,0),MATCH(S$46,'Data Annex'!$K$1:$BA$1,0)),\"\")","v":9.1389575900000006E-2},{"$f":"IFERROR(INDEX('Data Annex'!$K$1:$BA$5047,MATCH(T$45&\"|\"&$B77,'Data Annex'!$K$1:$K$5047,0),MATCH(T$46,'Data Annex'!$K$1:$BA$1,0)),\"\")","v":8.1648076799999997E-2}]
[28,"SE",null,"SE",{"$f":"IFERROR(INDEX('Data Annex'!$K$1:$BA$5047,MATCH(E$45&\"|\"&$B78,'Data Annex'!$K$1:$K$5047,0),MATCH(E$46,'Data Annex'!$K$1:$BA$1,0)),\"\")","v":0},{"$f":"IFERROR(INDEX('Data Annex'!$K$1:$BA$5047,MATCH(F$45&\"|\"&$B78,'Data Annex'!$K$1:$K$5047,0),MATCH(F$46,'Data Annex'!$K$1:$BA$1,0)),\"\")","v":0.74637741079999997},{"$f":"IFERROR(INDEX('Data Annex'!$K$1:$BA$5047,MATCH(G$45&\"|\"&$B78,'Data Annex'!$K$1:$K$5047,0),MATCH(G$46,'Data Annex'!$K$1:$BA$1,0)),\"\")","v":0.72903651729999996},{"$f":"IFERROR(INDEX('Data Annex'!$K$1:$BA$5047,MATCH(H$45&\"|\"&$B78,'Data Annex'!$K$1:$K$5047,0),MATCH(H$46,'Data Annex'!$K$1:$BA$1,0)),\"\")","v":0.72365465360000003},{"$f":"IFERROR(INDEX('Data Annex'!$K$1:$BA$5047,MATCH(I$45&\"|\"&$B78,'Data Annex'!$K$1:$K$5047,0),MATCH(I$46,'Data Annex'!$K$1:$BA$1,0)),\"\")","v":0},{"$f":"IFERROR(INDEX('Data Annex'!$K$1:$BA$5047,MATCH(J$45&\"|\"&$B78,'Data Annex'!$K$1:$K$5047,0),MATCH(J$46,'Data Annex'!$K$1:$BA$1,0)),\"\")","v":0.37100378210000001},{"$f":"IFERROR(INDEX('Data Annex'!$K$1:$BA$5047,MATCH(K$45&\"|\"&$B78,'Data Annex'!$K$1:$K$5047,0),MATCH(K$46,'Data Annex'!$K$1:$BA$1,0)),\"\")","v":0.26177683169999999},{"$f":"IFERROR(INDEX('Data Annex'!$K$1:$BA$5047,MATCH(L$45&\"|\"&$B78,'Data Annex'!$K$1:$K$5047,0),MATCH(L$46,'Data Annex'!$K$1:$BA$1,0)),\"\")","v":0.2488432475},{"$f":"IFERROR(INDEX('Data Annex'!$K$1:$BA$5047,MATCH(M$45&\"|\"&$B78,'Data Annex'!$K$1:$K$5047,0),MATCH(M$46,'Data Annex'!$K$1:$BA$1,0)),\"\")","v":0},{"$f":"IFERROR(INDEX('Data Annex'!$K$1:$BA$5047,MATCH(N$45&\"|\"&$B78,'Data Annex'!$K$1:$K$5047,0),MATCH(N$46,'Data Annex'!$K$1:$BA$1,0)),\"\")","v":2.1989918099999999E-2},{"$f":"IFERROR(INDEX('Data Annex'!$K$1:$BA$5047,MATCH(O$45&\"|\"&$B78,'Data Annex'!$K$1:$K$5047,0),MATCH(O$46,'Data Annex'!$K$1:$BA$1,0)),\"\")","v":1.81614004E-2},{"$f":"IFERROR(INDEX('Data Annex'!$K$1:$BA$5047,MATCH(P$45&\"|\"&$B78,'Data Annex'!$K$1:$K$5047,0),MATCH(P$46,'Data Annex'!$K$1:$BA$1,0)),\"\")","v":4.0614583400000001E-2},{"$f":"IFERROR(INDEX('Data Annex'!$K$1:$BA$5047,MATCH(Q$45&\"|\"&$B78,'Data Annex'!$K$1:$K$5047,0),MATCH(Q$46,'Data Annex'!$K$1:$BA$1,0)),\"\")","v":0},{"$f":"IFERROR(INDEX('Data Annex'!$K$1:$BA$5047,MATCH(R$45&\"|\"&$B78,'Data Annex'!$K$1:$K$5047,0),MATCH(R$46,'Data Annex'!$K$1:$BA$1,0)),\"\")","v":0.27620590169999998},{"$f":"IFERROR(INDEX('Data Annex'!$K$1:$BA$5047,MATCH(S$45&\"|\"&$B78,'Data Annex'!$K$1:$K$5047,0),MATCH(S$46,'Data Annex'!$K$1:$BA$1,0)),\"\")","v":0.29798765490000001},{"$f":"IFERROR(INDEX('Data Annex'!$K$1:$BA$5047,MATCH(T$45&\"|\"&$B78,'Data Annex'!$K$1:$K$5047,0),MATCH(T$46,'Data Annex'!$K$1:$BA$1,0)),\"\")","v":0.1862754116}]
[29,"SI",null,"SI",{"$f":"IFERROR(INDEX('Data Annex'!$K$1:$BA$5047,MATCH(E$45&\"|\"&$B79,'Data Annex'!$K$1:$K$5047,0),MATCH(E$46,'Data Annex'!$K$1:$BA$1,0)),\"\")","v":0},{"$f":"IFERROR(INDEX('Data Annex'!$K$1:$BA$5047,MATCH(F$45&\"|\"&$B79,'Data Annex'!$K$1:$K$5047,0),MATCH(F$46,'Data Annex'!$K$1:$BA$1,0)),\"\")","v":0.3953778651},{"$f":"IFERROR(INDEX('Data Annex'!$K$1:$BA$5047,MATCH(G$45&\"|\"&$B79,'Data Annex'!$K$1:$K$5047,0),MATCH(G$46,'Data Annex'!$K$1:$BA$1,0)),\"\")","v":0.39503790719999998},{"$f":"IFERROR(INDEX('Data Annex'!$K$1:$BA$5047,MATCH(H$45&\"|\"&$B79,'Data Annex'!$K$1:$K$5047,0),MATCH(H$46,'Data Annex'!$K$1:$BA$1,0)),\"\")","v":0.34602211529999999},{"$f":"IFERROR(INDEX('Data Annex'!$K$1:$BA$5047,MATCH(I$45&\"|\"&$B79,'Data Annex'!$K$1:$K$5047,0),MATCH(I$46,'Data Annex'!$K$1:$BA$1,0)),\"\")","v":0},{"$f":"IFERROR(INDEX('Data Annex'!$K$1:$BA$5047,MATCH(J$45&\"|\"&$B79,'Data Annex'!$K$1:$K$5047,0),MATCH(J$46,'Data Annex'!$K$1:$BA$1,0)),\"\")","v":9.0280901100000005E-2},{"$f":"IFERROR(INDEX('Data Annex'!$K$1:$BA$5047,MATCH(K$45&\"|\"&$B79,'Data Annex'!$K$1:$K$5047,0),MATCH(K$46,'Data Annex'!$K$1:$BA$1,0)),\"\")","v":7.0179633E-3},{"$f":"IFERROR(INDEX('Data Annex'!$K$1:$BA$5047,MATCH(L$45&\"|\"&$B79,'Data Annex'!$K$1:$K$5047,0),MATCH(L$46,'Data Annex'!$K$1:$BA$1,0)),\"\")","v":8.8769459600000003E-2},{"$f":"IFERROR(INDEX('Data Annex'!$K$1:$BA$5047,MATCH(M$45&\"|\"&$B79,'Data Annex'!$K$1:$K$5047,0),MATCH(M$46,'Data Annex'!$K$1:$BA$1,0)),\"\")","v":0},{"$f":"IFERROR(INDEX('Data Annex'!$K$1:$BA$5047,MATCH(N$45&\"|\"&$B79,'Data Annex'!$K$1:$K$5047,0),MATCH(N$46,'Data Annex'!$K$1:$BA$1,0)),\"\")","v":4.4919190000000003E-4},{"$f":"IFERROR(INDEX('Data Annex'!$K$1:$BA$5047,MATCH(O$45&\"|\"&$B79,'Data Annex'!$K$1:$K$5047,0),MATCH(O$46,'Data Annex'!$K$1:$BA$1,0)),\"\")","v":0},{"$f":"IFERROR(INDEX('Data Annex'!$K$1:$BA$5047,MATCH(P$45&\"|\"&$B79,'Data Annex'!$K$1:$K$5047,0),MATCH(P$46,'Data Annex'!$K$1:$BA$1,0)),\"\")","v":5.1041999999999997E-5},{"$f":"IFERROR(INDEX('Data Annex'!$K$1:$BA$5047,MATCH(Q$45&\"|\"&$B79,'Data Annex'!$K$1:$K$5047,0),MATCH(Q$46,'Data Annex'!$K$1:$BA$1,0)),\"\")","v":0},{"$f":"IFERROR(INDEX('Data Annex'!$K$1:$BA$5047,MATCH(R$45&\"|\"&$B79,'Data Annex'!$K$1:$K$5047,0),MATCH(R$46,'Data Annex'!$K$1:$BA$1,0)),\"\")","v":0.71967996460000005},{"$f":"IFERROR(INDEX('Data Annex'!$K$1:$BA$5047,MATCH(S$45&\"|\"&$B79,'Data Annex'!$K$1:$K$5047,0),MATCH(S$46,'Data Annex'!$K$1:$BA$1,0)),\"\")","v":0},{"$f":"IFERROR(INDEX('Data Annex'!$K$1:$BA$5047,MATCH(T$45&\"|\"&$B79,'Data Annex'!$K$1:$K$5047,0),MATCH(T$46,'Data Annex'!$K$1:$BA$1,0)),\"\")","v":0}]
[30,"SK",null,"SK",{"$f":"IFERROR(INDEX('Data Annex'!$K$1:$BA$5047,MATCH(E$45&\"|\"&$B80,'Data Annex'!$K$1:$K$5047,0),MATCH(E$46,'Data Annex'!$K$1:$BA$1,0)),\"\")","v":0},{"$f":"IFERROR(INDEX('Data Annex'!$K$1:$BA$5047,MATCH(F$45&\"|\"&$B80,'Data Annex'!$K$1:$K$5047,0),MATCH(F$46,'Data Annex'!$K$1:$BA$1,0)),\"\")","v":0.78202552510000001},{"$f":"IFERROR(INDEX('Data Annex'!$K$1:$BA$5047,MATCH(G$45&\"|\"&$B80,'Data Annex'!$K$1:$K$5047,0),MATCH(G$46,'Data Annex'!$K$1:$BA$1,0)),\"\")","v":0.31373598139999997},{"$f":"IFERROR(INDEX('Data Annex'!$K$1:$BA$5047,MATCH(H$45&\"|\"&$B80,'Data Annex'!$K$1:$K$5047,0),MATCH(H$46,'Data Annex'!$K$1:$BA$1,0)),\"\")","v":0.38986559879999999},{"$f":"IFERROR(INDEX('Data Annex'!$K$1:$BA$5047,MATCH(I$45&\"|\"&$B80,'Data Annex'!$K$1:$K$5047,0),MATCH(I$46,'Data Annex'!$K$1:$BA$1,0)),\"\")","v":0},{"$f":"IFERROR(INDEX('Data Annex'!$K$1:$BA$5047,MATCH(J$45&\"|\"&$B80,'Data Annex'!$K$1:$K$5047,0),MATCH(J$46,'Data Annex'!$K$1:$BA$1,0)),\"\")","v":0.1200320678},{"$f":"IFERROR(INDEX('Data Annex'!$K$1:$BA$5047,MATCH(K$45&\"|\"&$B80,'Data Annex'!$K$1:$K$5047,0),MATCH(K$46,'Data Annex'!$K$1:$BA$1,0)),\"\")","v":0.2038827621},{"$f":"IFERROR(INDEX('Data Annex'!$K$1:$BA$5047,MATCH(L$45&\"|\"&$B80,'Data Annex'!$K$1:$K$5047,0),MATCH(L$46,'Data Annex'!$K$1:$BA$1,0)),\"\")","v":0.36283042209999999},{"$f":"IFERROR(INDEX('Data Annex'!$K$1:$BA$5047,MATCH(M$45&\"|\"&$B80,'Data Annex'!$K$1:$K$5047,0),MATCH(M$46,'Data Annex'!$K$1:$BA$1,0)),\"\")","v":0},{"$f":"IFERROR(INDEX('Data Annex'!$K$1:$BA$5047,MATCH(N$45&\"|\"&$B80,'Data Annex'!$K$1:$K$5047,0),MATCH(N$46,'Data Annex'!$K$1:$BA$1,0)),\"\")","v":0},{"$f":"IFERROR(INDEX('Data Annex'!$K$1:$BA$5047,MATCH(O$45&\"|\"&$B80,'Data Annex'!$K$1:$K$5047,0),MATCH(O$46,'Data Annex'!$K$1:$BA$1,0)),\"\")","v":2.5470625999999999E-3},{"$f":"IFERROR(INDEX('Data Annex'!$K$1:$BA$5047,MATCH(P$45&\"|\"&$B80,'Data Annex'!$K$1:$K$5047,0),MATCH(P$46,'Data Annex'!$K$1:$BA$1,0)),\"\")","v":3.8082403000000002E-3},{"$f":"IFERROR(INDEX('Data Annex'!$K$1:$BA$5047,MATCH(Q$45&\"|\"&$B80,'Data Annex'!$K$1:$K$5047,0),MATCH(Q$46,'Data Annex'!$K$1:$BA$1,0)),\"\")","v":0},{"$f":"IFERROR(INDEX('Data Annex'!$K$1:$BA$5047,MATCH(R$45&\"|\"&$B80,'Data Annex'!$K$1:$K$5047,0),MATCH(R$46,'Data Annex'!$K$1:$BA$1,0)),\"\")","v":0},{"$f":"IFERROR(INDEX('Data Annex'!$K$1:$BA$5047,MATCH(S$45&\"|\"&$B80,'Data Annex'!$K$1:$K$5047,0),MATCH(S$46,'Data Annex'!$K$1:$BA$1,0)),\"\")","v":0.39713699870000002},{"$f":"IFERROR(INDEX('Data Annex'!$K$1:$BA$5047,MATCH(T$45&\"|\"&$B80,'Data Annex'!$K$1:$K$5047,0),MATCH(T$46,'Data Annex'!$K$1:$BA$1,0)),\"\")","v":0.55051151180000002}]
[99,"EU",null,"EU/EEA",{"$f":"IFERROR(INDEX('Data Annex'!$K$1:$BA$5047,MATCH(E$45&\"|\"&$B81,'Data Annex'!$K$1:$K$5047,0),MATCH(E$46,'Data Annex'!$K$1:$BA$1,0)),\"\")","v":0},{"$f":"IFERROR(INDEX('Data Annex'!$K$1:$BA$5047,MATCH(F$45&\"|\"&$B81,'Data Annex'!$K$1:$K$5047,0),MATCH(F$46,'Data Annex'!$K$1:$BA$1,0)),\"\")","v":0.57854215409999998},{"$f":"IFERROR(INDEX('Data Annex'!$K$1:$BA$5047,MATCH(G$45&\"|\"&$B81,'Data Annex'!$K$1:$K$5047,0),MATCH(G$46,'Data Annex'!$K$1:$BA$1,0)),\"\")","v":0.68413518439999998},{"$f":"IFERROR(INDEX('Data Annex'!$K$1:$BA$5047,MATCH(H$45&\"|\"&$B81,'Data Annex'!$K$1:$K$5047,0),MATCH(H$46,'Data Annex'!$K$1:$BA$1,0)),\"\")","v":0.70868624160000004},{"$f":"IFERROR(INDEX('Data Annex'!$K$1:$BA$5047,MATCH(I$45&\"|\"&$B81,'Data Annex'!$K$1:$K$5047,0),MATCH(I$46,'Data Annex'!$K$1:$BA$1,0)),\"\")","v":0},{"$f":"IFERROR(INDEX('Data Annex'!$K$1:$BA$5047,MATCH(J$45&\"|\"&$B81,'Data Annex'!$K$1:$K$5047,0),MATCH(J$46,'Data Annex'!$K$1:$BA$1,0)),\"\")","v":3.1212587399999998E-2},{"$f":"IFERROR(INDEX('Data Annex'!$K$1:$BA$5047,MATCH(K$45&\"|\"&$B81,'Data Annex'!$K$1:$K$5047,0),MATCH(K$46,'Data Annex'!$K$1:$BA$1,0)),\"\")","v":4.9442650900000003E-2},{"$f":"IFERROR(INDEX('Data Annex'!$K$1:$BA$5047,MATCH(L$45&\"|\"&$B81,'Data Annex'!$K$1:$K$5047,0),MATCH(L$46,'Data Annex'!$K$1:$BA$1,0)),\"\")","v":0.11669982080000001},{"$f":"IFERROR(INDEX('Data Annex'!$K$1:$BA$5047,MATCH(M$45&\"|\"&$B81,'Data Annex'!$K$1:$K$5047,0),MATCH(M$46,'Data Annex'!$K$1:$BA$1,0)),\"\")","v":0},{"$f":"IFERROR(INDEX('Data Annex'!$K$1:$BA$5047,MATCH(N$45&\"|\"&$B81,'Data Annex'!$K$1:$K$5047,0),MATCH(N$46,'Data Annex'!$K$1:$BA$1,0)),\"\")","v":5.8825971999999999E-3},{"$f":"IFERROR(INDEX('Data Annex'!$K$1:$BA$5047,MATCH(O$45&\"|\"&$B81,'Data Annex'!$K$1:$K$5047,0),MATCH(O$46,'Data Annex'!$K$1:$BA$1,0)),\"\")","v":7.3677919000000001E-3},{"$f":"IFERROR(INDEX('Data Annex'!$K$1:$BA$5047,MATCH(P$45&\"|\"&$B81,'Data Annex'!$K$1:$K$5047,0),MATCH(P$46,'Data Annex'!$K$1:$BA$1,0)),\"\")","v":1.0783732399999999E-2},{"$f":"IFERROR(INDEX('Data Annex'!$K$1:$BA$5047,MATCH(Q$45&\"|\"&$B81,'Data Annex'!$K$1:$K$5047,0),MATCH(Q$46,'Data Annex'!$K$1:$BA$1,0)),\"\")","v":0},{"$f":"IFERROR(INDEX('Data Annex'!$K$1:$BA$5047,MATCH(R$45&\"|\"&$B81,'Data Annex'!$K$1:$K$5047,0),MATCH(R$46,'Data Annex'!$K$1:$BA$1,0)),\"\")","v":0.1092517242},{"$f":"IFERROR(INDEX('Data Annex'!$K$1:$BA$5047,MATCH(S$45&\"|\"&$B81,'Data Annex'!$K$1:$K$5047,0),MATCH(S$46,'Data Annex'!$K$1:$BA$1,0)),\"\")","v":0.1040133511},{"$f":"IFERROR(INDEX('Data Annex'!$K$1:$BA$5047,MATCH(T$45&\"|\"&$B81,'Data Annex'!$K$1:$K$5047,0),MATCH(T$46,'Data Annex'!$K$1:$BA$1,0)),\"\")","v":0.1044450936}]
[]
[]
[null,null,null,"Individual country data includes subsidiaries, which are excluded from EU aggregate. For example, at country level the subsidiary in country X of a bank domiciled in country Y is included both in data for countries X and Y (for the latter as part of the consolidated entity). In the EU aggregate, only the consolidated entity domiciled in country Y is considered.  The sample of banks is unbalanced and reviewed annually."]
[]
[null,null,null,"Compliance table on the Guidelines on Covid -19 measures reporting and disclosure"]

{"sheet":"RE and Construction Exposures","index":15,"n_rows":88,"n_cols":21,"rows_kept":88,"cut":false,"hidden":true,"merged":[[2,3,2,19],[3,3,3,19],[4,3,4,19],[46,4,48,11],[46,12,48,19],[84,3,85,19],[87,3,87,19],[6,4,8,11],[6,12,8,19],[86,3,86,19],[48,3,49,3],[49,4,49,7],[49,8,49,11],[49,12,49,15],[49,16,49,19],[8,3,9,3],[9,4,9,7],[9,8,9,11],[9,12,9,15],[9,16,9,19]]}
[null,null,null,null,"RE_T11_1","RE_T11_1","RE_T11_1","RE_T11_1","RE_T11_2","RE_T11_2","RE_T11_2","RE_T11_2","RE_T11_3","RE_T11_3","RE_T11_3","RE_T11_3","RE_T11_4","RE_T11_4","RE_T11_4","RE_T11_4","T20_5"]
[{"$f":"'Reference Dates'!$C$8","v":"202012"},null,null,null,{"$f":"TEXT(E51,\"YYYYMM\")+0","v":202003},202006,202009,202012,202003,202006,202009,202012,202003,202006,202009,202012,202003,202006,202009,202012,190001]
[{"$f":"DATE(LEFT(A2,4),RIGHT(A2,2),1)","v":"2020-12-01"},null,null,"Statistical Annex"]
[null,null,null,"Exposures to Real Estate activities and Construction - by country of counterparty"]
[null,null,null,"In compliance with the Recommendation ESRB/2016/14 on closing real estate data gaps, the EBA is disclosing aggregated information on the exposures \ntowards Non-financial corporations under Real Estate activities (NACE code L) and Construction Sector (NACE code F) (1) (2)"]
[]
[null,null,null,null,"Total exposures to Real Estate activities (NACE L)",null,null,null,null,null,null,null,"Non-performing exposures to Real Estate activities (NACE L)"]
[]
[null,null,null,"Country of counterparty"]
[null,null,null,null,"Gross carrying amount (bn€)",null,null,null,"As % of Total of exposures to Non-financial corporations",null,null,null,"Gross carrying amount (bn€)",null,null,null,"NPL ratio"]
[null,null,null,null,{"$f":"EOMONTH($A$3,-9)","v":"2020-03-31"},{"$f":"EOMONTH($A$3,-6)","v":"2020-06-30"},{"$f":"EOMONTH($A$3,-3)","v":"2020-09-30"},{"$f":"EOMONTH($A$3,0)","v":"2020-12-31"},{"$f":"EOMONTH($A$3,-9)","v":"2020-03-31"},{"$f":"EOMONTH($A$3,-6)","v":"2020-06-30"},{"$f":"EOMONTH($A$3,-3)","v":"2020-09-30"},{"$f":"EOMONTH($A$3,0)","v":"2020-12-31"},{"$f":"EOMONTH($A$3,-9)","v":"2020-03-31"},{"$f":"EOMONTH($A$3,-6)","v":"2020-06-30"},{"$f":"EOMONTH($A$3,-3)","v":"2020-09-30"},{"$f":"EOMONTH($A$3,0)","v":"2020-12-31"},{"$f":"EOMONTH($A$3,-9)","v":"2020-03-31"},{"$f":"EOMONTH($A$3,-6)","v":"2020-06-30"},{"$f":"EOMONTH($A$3,-3)","v":"2020-09-30"},{"$f":"EOMONTH($A$3,0)","v":"2020-12-31"}]
[1,"AT",null,"AT",{"$f":"IFERROR(INDEX('Data Annex'!$K$1:$AN$5027,MATCH(E$1&\"|\"&$B12,'Data Annex'!$K$1:$K$5027,0),MATCH(E$2,'Data Annex'!$K$1:$AN$1,0)),\"\")","v":34.649316092196102},{"$f":"IFERROR(INDEX('Data Annex'!$K$1:$AN$5027,MATCH(F$1&\"|\"&$B12,'Data Annex'!$K$1:$K$5027,0),MATCH(F$2,'Data Annex'!$K$1:$AN$1,0)),\"\")","v":34.973301285205501},{"$f":"IFERROR(INDEX('Data Annex'!$K$1:$AN$5027,MATCH(G$1&\"|\"&$B12,'Data Annex'!$K$1:$K$5027,0),MATCH(G$2,'Data Annex'!$K$1:$AN$1,0)),\"\")","v":35.242109225434497},{"$f":"IFERROR(INDEX('Data Annex'!$K$1:$AN$5027,MATCH(H$1&\"|\"&$B12,'Data Annex'!$K$1:$K$5027,0),MATCH(H$2,'Data Annex'!$K$1:$AN$1,0)),\"\")","v":35.4553878568017},{"$f":"IFERROR(INDEX('Data Annex'!$K$1:$AN$5027,MATCH(I$1&\"|\"&$B12,'Data Annex'!$K$1:$K$5027,0),MATCH(I$2,'Data Annex'!$K$1:$AN$1,0)),\"\")","v":0.32121248530243302},{"$f":"IFERROR(INDEX('Data Annex'!$K$1:$AN$5027,MATCH(J$1&\"|\"&$B12,'Data Annex'!$K$1:$K$5027,0),MATCH(J$2,'Data Annex'!$K$1:$AN$1,0)),\"\")","v":0.31981110047396999},{"$f":"IFERROR(INDEX('Data Annex'!$K$1:$AN$5027,MATCH(K$1&\"|\"&$B12,'Data Annex'!$K$1:$K$5027,0),MATCH(K$2,'Data Annex'!$K$1:$AN$1,0)),\"\")","v":0.32316724782990103},{"$f":"IFERROR(INDEX('Data Annex'!$K$1:$AN$5027,MATCH(L$1&\"|\"&$B12,'Data Annex'!$K$1:$K$5027,0),MATCH(L$2,'Data Annex'!$K$1:$AN$1,0)),\"\")","v":0.330468220739495},{"$f":"IFERROR(INDEX('Data Annex'!$K$1:$AN$5027,MATCH(M$1&\"|\"&$B12,'Data Annex'!$K$1:$K$5027,0),MATCH(M$2,'Data Annex'!$K$1:$AN$1,0)),\"\")","v":0.2737201635},{"$f":"IFERROR(INDEX('Data Annex'!$K$1:$AN$5027,MATCH(N$1&\"|\"&$B12,'Data Annex'!$K$1:$K$5027,0),MATCH(N$2,'Data Annex'!$K$1:$AN$1,0)),\"\")","v":0.26441752778545302},{"$f":"IFERROR(INDEX('Data Annex'!$K$1:$AN$5027,MATCH(O$1&\"|\"&$B12,'Data Annex'!$K$1:$K$5027,0),MATCH(O$2,'Data Annex'!$K$1:$AN$1,0)),\"\")","v":0.26242257071449898},{"$f":"IFERROR(INDEX('Data Annex'!$K$1:$AN$5027,MATCH(P$1&\"|\"&$B12,'Data Annex'!$K$1:$K$5027,0),MATCH(P$2,'Data Annex'!$K$1:$AN$1,0)),\"\")","v":0.36495008133000001},{"$f":"IFERROR(INDEX('Data Annex'!$K$1:$AN$5027,MATCH(Q$1&\"|\"&$B12,'Data Annex'!$K$1:$K$5027,0),MATCH(Q$2,'Data Annex'!$K$1:$AN$1,0)),\"\")","v":7.8997277398398305E-3},{"$f":"IFERROR(INDEX('Data Annex'!$K$1:$AN$5027,MATCH(R$1&\"|\"&$B12,'Data Annex'!$K$1:$K$5027,0),MATCH(R$2,'Data Annex'!$K$1:$AN$1,0)),\"\")","v":7.5605538530418301E-3},{"$f":"IFERROR(INDEX('Data Annex'!$K$1:$AN$5027,MATCH(S$1&\"|\"&$B12,'Data Annex'!$K$1:$K$5027,0),MATCH(S$2,'Data Annex'!$K$1:$AN$1,0)),\"\")","v":7.4462787977828101E-3},{"$f":"IFERROR(INDEX('Data Annex'!$K$1:$AN$5027,MATCH(T$1&\"|\"&$B12,'Data Annex'!$K$1:$K$5027,0),MATCH(T$2,'Data Annex'!$K$1:$AN$1,0)),\"\")","v":1.0293219264839899E-2}]
[2,"BE",null,"BE",{"$f":"IFERROR(INDEX('Data Annex'!$K$1:$AN$5027,MATCH(E$1&\"|\"&$B13,'Data Annex'!$K$1:$K$5027,0),MATCH(E$2,'Data Annex'!$K$1:$AN$1,0)),\"\")","v":28.875695639663999},{"$f":"IFERROR(INDEX('Data Annex'!$K$1:$AN$5027,MATCH(F$1&\"|\"&$B13,'Data Annex'!$K$1:$K$5027,0),MATCH(F$2,'Data Annex'!$K$1:$AN$1,0)),\"\")","v":29.567064359151701},{"$f":"IFERROR(INDEX('Data Annex'!$K$1:$AN$5027,MATCH(G$1&\"|\"&$B13,'Data Annex'!$K$1:$K$5027,0),MATCH(G$2,'Data Annex'!$K$1:$AN$1,0)),\"\")","v":29.960213947766601},{"$f":"IFERROR(INDEX('Data Annex'!$K$1:$AN$5027,MATCH(H$1&\"|\"&$B13,'Data Annex'!$K$1:$K$5027,0),MATCH(H$2,'Data Annex'!$K$1:$AN$1,0)),\"\")","v":29.411206797639998},{"$f":"IFERROR(INDEX('Data Annex'!$K$1:$AN$5027,MATCH(I$1&\"|\"&$B13,'Data Annex'!$K$1:$K$5027,0),MATCH(I$2,'Data Annex'!$K$1:$AN$1,0)),\"\")","v":0.156943196856838},{"$f":"IFERROR(INDEX('Data Annex'!$K$1:$AN$5027,MATCH(J$1&\"|\"&$B13,'Data Annex'!$K$1:$K$5027,0),MATCH(J$2,'Data Annex'!$K$1:$AN$1,0)),\"\")","v":0.16276674106832101},{"$f":"IFERROR(INDEX('Data Annex'!$K$1:$AN$5027,MATCH(K$1&\"|\"&$B13,'Data Annex'!$K$1:$K$5027,0),MATCH(K$2,'Data Annex'!$K$1:$AN$1,0)),\"\")","v":0.16920762425309199},{"$f":"IFERROR(INDEX('Data Annex'!$K$1:$AN$5027,MATCH(L$1&\"|\"&$B13,'Data Annex'!$K$1:$K$5027,0),MATCH(L$2,'Data Annex'!$K$1:$AN$1,0)),\"\")","v":0.16762191120085701},{"$f":"IFERROR(INDEX('Data Annex'!$K$1:$AN$5027,MATCH(M$1&\"|\"&$B13,'Data Annex'!$K$1:$K$5027,0),MATCH(M$2,'Data Annex'!$K$1:$AN$1,0)),\"\")","v":0.85038502167999996},{"$f":"IFERROR(INDEX('Data Annex'!$K$1:$AN$5027,MATCH(N$1&\"|\"&$B13,'Data Annex'!$K$1:$K$5027,0),MATCH(N$2,'Data Annex'!$K$1:$AN$1,0)),\"\")","v":0.86143763838999998},{"$f":"IFERROR(INDEX('Data Annex'!$K$1:$AN$5027,MATCH(O$1&\"|\"&$B13,'Data Annex'!$K$1:$K$5027,0),MATCH(O$2,'Data Annex'!$K$1:$AN$1,0)),\"\")","v":0.76874963831999998},{"$f":"IFERROR(INDEX('Data Annex'!$K$1:$AN$5027,MATCH(P$1&\"|\"&$B13,'Data Annex'!$K$1:$K$5027,0),MATCH(P$2,'Data Annex'!$K$1:$AN$1,0)),\"\")","v":1.0395514372500001},{"$f":"IFERROR(INDEX('Data Annex'!$K$1:$AN$5027,MATCH(Q$1&\"|\"&$B13,'Data Annex'!$K$1:$K$5027,0),MATCH(Q$2,'Data Annex'!$K$1:$AN$1,0)),\"\")","v":2.9449854032673101E-2},{"$f":"IFERROR(INDEX('Data Annex'!$K$1:$AN$5027,MATCH(R$1&\"|\"&$B13,'Data Annex'!$K$1:$K$5027,0),MATCH(R$2,'Data Annex'!$K$1:$AN$1,0)),\"\")","v":2.9135041204162201E-2},{"$f":"IFERROR(INDEX('Data Annex'!$K$1:$AN$5027,MATCH(S$1&\"|\"&$B13,'Data Annex'!$K$1:$K$5027,0),MATCH(S$2,'Data Annex'!$K$1:$AN$1,0)),\"\")","v":2.56590169769901E-2},{"$f":"IFERROR(INDEX('Data Annex'!$K$1:$AN$5027,MATCH(T$1&\"|\"&$B13,'Data Annex'!$K$1:$K$5027,0),MATCH(T$2,'Data Annex'!$K$1:$AN$1,0)),\"\")","v":3.5345419329526298E-2}]
[3,"BG",null,"BG",{"$f":"IFERROR(INDEX('Data Annex'!$K$1:$AN$5027,MATCH(E$1&\"|\"&$B14,'Data Annex'!$K$1:$K$5027,0),MATCH(E$2,'Data Annex'!$K$1:$AN$1,0)),\"\")","v":1.91197194048275},{"$f":"IFERROR(INDEX('Data Annex'!$K$1:$AN$5027,MATCH(F$1&\"|\"&$B14,'Data Annex'!$K$1:$K$5027,0),MATCH(F$2,'Data Annex'!$K$1:$AN$1,0)),\"\")","v":1.97383799421657},{"$f":"IFERROR(INDEX('Data Annex'!$K$1:$AN$5027,MATCH(G$1&\"|\"&$B14,'Data Annex'!$K$1:$K$5027,0),MATCH(G$2,'Data Annex'!$K$1:$AN$1,0)),\"\")","v":2.04435027010503},{"$f":"IFERROR(INDEX('Data Annex'!$K$1:$AN$5027,MATCH(H$1&\"|\"&$B14,'Data Annex'!$K$1:$K$5027,0),MATCH(H$2,'Data Annex'!$K$1:$AN$1,0)),\"\")","v":2.0686057429720002},{"$f":"IFERROR(INDEX('Data Annex'!$K$1:$AN$5027,MATCH(I$1&\"|\"&$B14,'Data Annex'!$K$1:$K$5027,0),MATCH(I$2,'Data Annex'!$K$1:$AN$1,0)),\"\")","v":0.111831866694137},{"$f":"IFERROR(INDEX('Data Annex'!$K$1:$AN$5027,MATCH(J$1&\"|\"&$B14,'Data Annex'!$K$1:$K$5027,0),MATCH(J$2,'Data Annex'!$K$1:$AN$1,0)),\"\")","v":0.117920117299181},{"$f":"IFERROR(INDEX('Data Annex'!$K$1:$AN$5027,MATCH(K$1&\"|\"&$B14,'Data Annex'!$K$1:$K$5027,0),MATCH(K$2,'Data Annex'!$K$1:$AN$1,0)),\"\")","v":0.121655736451976},{"$f":"IFERROR(INDEX('Data Annex'!$K$1:$AN$5027,MATCH(L$1&\"|\"&$B14,'Data Annex'!$K$1:$K$5027,0),MATCH(L$2,'Data Annex'!$K$1:$AN$1,0)),\"\")","v":0.121259716651119},{"$f":"IFERROR(INDEX('Data Annex'!$K$1:$AN$5027,MATCH(M$1&\"|\"&$B14,'Data Annex'!$K$1:$K$5027,0),MATCH(M$2,'Data Annex'!$K$1:$AN$1,0)),\"\")","v":0.29837765107233299},{"$f":"IFERROR(INDEX('Data Annex'!$K$1:$AN$5027,MATCH(N$1&\"|\"&$B14,'Data Annex'!$K$1:$K$5027,0),MATCH(N$2,'Data Annex'!$K$1:$AN$1,0)),\"\")","v":0.30667639848435502},{"$f":"IFERROR(INDEX('Data Annex'!$K$1:$AN$5027,MATCH(O$1&\"|\"&$B14,'Data Annex'!$K$1:$K$5027,0),MATCH(O$2,'Data Annex'!$K$1:$AN$1,0)),\"\")","v":0.30776459857455002},{"$f":"IFERROR(INDEX('Data Annex'!$K$1:$AN$5027,MATCH(P$1&\"|\"&$B14,'Data Annex'!$K$1:$K$5027,0),MATCH(P$2,'Data Annex'!$K$1:$AN$1,0)),\"\")","v":0.317970678608748},{"$f":"IFERROR(INDEX('Data Annex'!$K$1:$AN$5027,MATCH(Q$1&\"|\"&$B14,'Data Annex'!$K$1:$K$5027,0),MATCH(Q$2,'Data Annex'!$K$1:$AN$1,0)),\"\")","v":0.15605754705636399},{"$f":"IFERROR(INDEX('Data Annex'!$K$1:$AN$5027,MATCH(R$1&\"|\"&$B14,'Data Annex'!$K$1:$K$5027,0),MATCH(R$2,'Data Annex'!$K$1:$AN$1,0)),\"\")","v":0.15537060254333401},{"$f":"IFERROR(INDEX('Data Annex'!$K$1:$AN$5027,MATCH(S$1&\"|\"&$B14,'Data Annex'!$K$1:$K$5027,0),MATCH(S$2,'Data Annex'!$K$1:$AN$1,0)),\"\")","v":0.15054396649882301},{"$f":"IFERROR(INDEX('Data Annex'!$K$1:$AN$5027,MATCH(T$1&\"|\"&$B14,'Data Annex'!$K$1:$K$5027,0),MATCH(T$2,'Data Annex'!$K$1:$AN$1,0)),\"\")","v":0.153712557208661}]
[4,"CY",null,"CY",{"$f":"IFERROR(INDEX('Data Annex'!$K$1:$AN$5027,MATCH(E$1&\"|\"&$B15,'Data Annex'!$K$1:$K$5027,0),MATCH(E$2,'Data Annex'!$K$1:$AN$1,0)),\"\")","v":2.3995191508735201},{"$f":"IFERROR(INDEX('Data Annex'!$K$1:$AN$5027,MATCH(F$1&\"|\"&$B15,'Data Annex'!$K$1:$K$5027,0),MATCH(F$2,'Data Annex'!$K$1:$AN$1,0)),\"\")","v":2.2882163811823899},{"$f":"IFERROR(INDEX('Data Annex'!$K$1:$AN$5027,MATCH(G$1&\"|\"&$B15,'Data Annex'!$K$1:$K$5027,0),MATCH(G$2,'Data Annex'!$K$1:$AN$1,0)),\"\")","v":2.2652194421412699},{"$f":"IFERROR(INDEX('Data Annex'!$K$1:$AN$5027,MATCH(H$1&\"|\"&$B15,'Data Annex'!$K$1:$K$5027,0),MATCH(H$2,'Data Annex'!$K$1:$AN$1,0)),\"\")","v":1.2707768895556799},{"$f":"IFERROR(INDEX('Data Annex'!$K$1:$AN$5027,MATCH(I$1&\"|\"&$B15,'Data Annex'!$K$1:$K$5027,0),MATCH(I$2,'Data Annex'!$K$1:$AN$1,0)),\"\")","v":0.14762212648027201},{"$f":"IFERROR(INDEX('Data Annex'!$K$1:$AN$5027,MATCH(J$1&\"|\"&$B15,'Data Annex'!$K$1:$K$5027,0),MATCH(J$2,'Data Annex'!$K$1:$AN$1,0)),\"\")","v":0.15145361215080599},{"$f":"IFERROR(INDEX('Data Annex'!$K$1:$AN$5027,MATCH(K$1&\"|\"&$B15,'Data Annex'!$K$1:$K$5027,0),MATCH(K$2,'Data Annex'!$K$1:$AN$1,0)),\"\")","v":0.155147437181549},{"$f":"IFERROR(INDEX('Data Annex'!$K$1:$AN$5027,MATCH(L$1&\"|\"&$B15,'Data Annex'!$K$1:$K$5027,0),MATCH(L$2,'Data Annex'!$K$1:$AN$1,0)),\"\")","v":0.13803661075835699},{"$f":"IFERROR(INDEX('Data Annex'!$K$1:$AN$5027,MATCH(M$1&\"|\"&$B15,'Data Annex'!$K$1:$K$5027,0),MATCH(M$2,'Data Annex'!$K$1:$AN$1,0)),\"\")","v":0.58251038485999995},{"$f":"IFERROR(INDEX('Data Annex'!$K$1:$AN$5027,MATCH(N$1&\"|\"&$B15,'Data Annex'!$K$1:$K$5027,0),MATCH(N$2,'Data Annex'!$K$1:$AN$1,0)),\"\")","v":0.52037047493999999},{"$f":"IFERROR(INDEX('Data Annex'!$K$1:$AN$5027,MATCH(O$1&\"|\"&$B15,'Data Annex'!$K$1:$K$5027,0),MATCH(O$2,'Data Annex'!$K$1:$AN$1,0)),\"\")","v":0.72208781198000005},{"$f":"IFERROR(INDEX('Data Annex'!$K$1:$AN$5027,MATCH(P$1&\"|\"&$B15,'Data Annex'!$K$1:$K$5027,0),MATCH(P$2,'Data Annex'!$K$1:$AN$1,0)),\"\")","v":0.52591228755999997},{"$f":"IFERROR(INDEX('Data Annex'!$K$1:$AN$5027,MATCH(Q$1&\"|\"&$B15,'Data Annex'!$K$1:$K$5027,0),MATCH(Q$2,'Data Annex'!$K$1:$AN$1,0)),\"\")","v":0.242761298507638},{"$f":"IFERROR(INDEX('Data Annex'!$K$1:$AN$5027,MATCH(R$1&\"|\"&$B15,'Data Annex'!$K$1:$K$5027,0),MATCH(R$2,'Data Annex'!$K$1:$AN$1,0)),\"\")","v":0.227413141178156},{"$f":"IFERROR(INDEX('Data Annex'!$K$1:$AN$5027,MATCH(S$1&\"|\"&$B15,'Data Annex'!$K$1:$K$5027,0),MATCH(S$2,'Data Annex'!$K$1:$AN$1,0)),\"\")","v":0.31877168213664298},{"$f":"IFERROR(INDEX('Data Annex'!$K$1:$AN$5027,MATCH(T$1&\"|\"&$B15,'Data Annex'!$K$1:$K$5027,0),MATCH(T$2,'Data Annex'!$K$1:$AN$1,0)),\"\")","v":0.41385100081878601}]
[5,"CZ",null,"CZ",{"$f":"IFERROR(INDEX('Data Annex'!$K$1:$AN$5027,MATCH(E$1&\"|\"&$B16,'Data Annex'!$K$1:$K$5027,0),MATCH(E$2,'Data Annex'!$K$1:$AN$1,0)),\"\")","v":13.5554999065155},{"$f":"IFERROR(INDEX('Data Annex'!$K$1:$AN$5027,MATCH(F$1&\"|\"&$B16,'Data Annex'!$K$1:$K$5027,0),MATCH(F$2,'Data Annex'!$K$1:$AN$1,0)),\"\")","v":13.6249498769431},{"$f":"IFERROR(INDEX('Data Annex'!$K$1:$AN$5027,MATCH(G$1&\"|\"&$B16,'Data Annex'!$K$1:$K$5027,0),MATCH(G$2,'Data Annex'!$K$1:$AN$1,0)),\"\")","v":13.114497535959799},{"$f":"IFERROR(INDEX('Data Annex'!$K$1:$AN$5027,MATCH(H$1&\"|\"&$B16,'Data Annex'!$K$1:$K$5027,0),MATCH(H$2,'Data Annex'!$K$1:$AN$1,0)),\"\")","v":13.9378389564173},{"$f":"IFERROR(INDEX('Data Annex'!$K$1:$AN$5027,MATCH(I$1&\"|\"&$B16,'Data Annex'!$K$1:$K$5027,0),MATCH(I$2,'Data Annex'!$K$1:$AN$1,0)),\"\")","v":0.27374529524512298},{"$f":"IFERROR(INDEX('Data Annex'!$K$1:$AN$5027,MATCH(J$1&\"|\"&$B16,'Data Annex'!$K$1:$K$5027,0),MATCH(J$2,'Data Annex'!$K$1:$AN$1,0)),\"\")","v":0.27315391693907198},{"$f":"IFERROR(INDEX('Data Annex'!$K$1:$AN$5027,MATCH(K$1&\"|\"&$B16,'Data Annex'!$K$1:$K$5027,0),MATCH(K$2,'Data Annex'!$K$1:$AN$1,0)),\"\")","v":0.26951137086013999},{"$f":"IFERROR(INDEX('Data Annex'!$K$1:$AN$5027,MATCH(L$1&\"|\"&$B16,'Data Annex'!$K$1:$K$5027,0),MATCH(L$2,'Data Annex'!$K$1:$AN$1,0)),\"\")","v":0.28451813459893699},{"$f":"IFERROR(INDEX('Data Annex'!$K$1:$AN$5027,MATCH(M$1&\"|\"&$B16,'Data Annex'!$K$1:$K$5027,0),MATCH(M$2,'Data Annex'!$K$1:$AN$1,0)),\"\")","v":6.0902616276366901E-2},{"$f":"IFERROR(INDEX('Data Annex'!$K$1:$AN$5027,MATCH(N$1&\"|\"&$B16,'Data Annex'!$K$1:$K$5027,0),MATCH(N$2,'Data Annex'!$K$1:$AN$1,0)),\"\")","v":5.9045332875456297E-2},{"$f":"IFERROR(INDEX('Data Annex'!$K$1:$AN$5027,MATCH(O$1&\"|\"&$B16,'Data Annex'!$K$1:$K$5027,0),MATCH(O$2,'Data Annex'!$K$1:$AN$1,0)),\"\")","v":5.5623609446432597E-2},{"$f":"IFERROR(INDEX('Data Annex'!$K$1:$AN$5027,MATCH(P$1&\"|\"&$B16,'Data Annex'!$K$1:$K$5027,0),MATCH(P$2,'Data Annex'!$K$1:$AN$1,0)),\"\")","v":0.12566006020415199},{"$f":"IFERROR(INDEX('Data Annex'!$K$1:$AN$5027,MATCH(Q$1&\"|\"&$B16,'Data Annex'!$K$1:$K$5027,0),MATCH(Q$2,'Data Annex'!$K$1:$AN$1,0)),\"\")","v":4.49283439905404E-3},{"$f":"IFERROR(INDEX('Data Annex'!$K$1:$AN$5027,MATCH(R$1&\"|\"&$B16,'Data Annex'!$K$1:$K$5027,0),MATCH(R$2,'Data Annex'!$K$1:$AN$1,0)),\"\")","v":4.3336183552040901E-3},{"$f":"IFERROR(INDEX('Data Annex'!$K$1:$AN$5027,MATCH(S$1&\"|\"&$B16,'Data Annex'!$K$1:$K$5027,0),MATCH(S$2,'Data Annex'!$K$1:$AN$1,0)),\"\")","v":4.2413831939739502E-3},{"$f":"IFERROR(INDEX('Data Annex'!$K$1:$AN$5027,MATCH(T$1&\"|\"&$B16,'Data Annex'!$K$1:$K$5027,0),MATCH(T$2,'Data Annex'!$K$1:$AN$1,0)),\"\")","v":9.01574918443835E-3}]
[6,"DE",null,"DE",{"$f":"IFERROR(INDEX('Data Annex'!$K$1:$AN$5027,MATCH(E$1&\"|\"&$B17,'Data Annex'!$K$1:$K$5027,0),MATCH(E$2,'Data Annex'!$K$1:$AN$1,0)),\"\")","v":184.84007966508599},{"$f":"IFERROR(INDEX('Data Annex'!$K$1:$AN$5027,MATCH(F$1&\"|\"&$B17,'Data Annex'!$K$1:$K$5027,0),MATCH(F$2,'Data Annex'!$K$1:$AN$1,0)),\"\")","v":187.18694258684801},{"$f":"IFERROR(INDEX('Data Annex'!$K$1:$AN$5027,MATCH(G$1&\"|\"&$B17,'Data Annex'!$K$1:$K$5027,0),MATCH(G$2,'Data Annex'!$K$1:$AN$1,0)),\"\")","v":184.366518050575},{"$f":"IFERROR(INDEX('Data Annex'!$K$1:$AN$5027,MATCH(H$1&\"|\"&$B17,'Data Annex'!$K$1:$K$5027,0),MATCH(H$2,'Data Annex'!$K$1:$AN$1,0)),\"\")","v":155.21039833026401},{"$f":"IFERROR(INDEX('Data Annex'!$K$1:$AN$5027,MATCH(I$1&\"|\"&$B17,'Data Annex'!$K$1:$K$5027,0),MATCH(I$2,'Data Annex'!$K$1:$AN$1,0)),\"\")","v":0.31000122917131701},{"$f":"IFERROR(INDEX('Data Annex'!$K$1:$AN$5027,MATCH(J$1&\"|\"&$B17,'Data Annex'!$K$1:$K$5027,0),MATCH(J$2,'Data Annex'!$K$1:$AN$1,0)),\"\")","v":0.312078309207863},{"$f":"IFERROR(INDEX('Data Annex'!$K$1:$AN$5027,MATCH(K$1&\"|\"&$B17,'Data Annex'!$K$1:$K$5027,0),MATCH(K$2,'Data Annex'!$K$1:$AN$1,0)),\"\")","v":0.316901811760749},{"$f":"IFERROR(INDEX('Data Annex'!$K$1:$AN$5027,MATCH(L$1&\"|\"&$B17,'Data Annex'!$K$1:$K$5027,0),MATCH(L$2,'Data Annex'!$K$1:$AN$1,0)),\"\")","v":0.30299782181414397},{"$f":"IFERROR(INDEX('Data Annex'!$K$1:$AN$5027,MATCH(M$1&\"|\"&$B17,'Data Annex'!$K$1:$K$5027,0),MATCH(M$2,'Data Annex'!$K$1:$AN$1,0)),\"\")","v":0.64982908258557703},{"$f":"IFERROR(INDEX('Data Annex'!$K$1:$AN$5027,MATCH(N$1&\"|\"&$B17,'Data Annex'!$K$1:$K$5027,0),MATCH(N$2,'Data Annex'!$K$1:$AN$1,0)),\"\")","v":0.72194786877484496},{"$f":"IFERROR(INDEX('Data Annex'!$K$1:$AN$5027,MATCH(O$1&\"|\"&$B17,'Data Annex'!$K$1:$K$5027,0),MATCH(O$2,'Data Annex'!$K$1:$AN$1,0)),\"\")","v":0.71184438021418395},{"$f":"IFERROR(INDEX('Data Annex'!$K$1:$AN$5027,MATCH(P$1&\"|\"&$B17,'Data Annex'!$K$1:$K$5027,0),MATCH(P$2,'Data Annex'!$K$1:$AN$1,0)),\"\")","v":0.79427059411178302},{"$f":"IFERROR(INDEX('Data Annex'!$K$1:$AN$5027,MATCH(Q$1&\"|\"&$B17,'Data Annex'!$K$1:$K$5027,0),MATCH(Q$2,'Data Annex'!$K$1:$AN$1,0)),\"\")","v":3.5156286654009902E-3},{"$f":"IFERROR(INDEX('Data Annex'!$K$1:$AN$5027,MATCH(R$1&\"|\"&$B17,'Data Annex'!$K$1:$K$5027,0),MATCH(R$2,'Data Annex'!$K$1:$AN$1,0)),\"\")","v":3.8568281462254602E-3},{"$f":"IFERROR(INDEX('Data Annex'!$K$1:$AN$5027,MATCH(S$1&\"|\"&$B17,'Data Annex'!$K$1:$K$5027,0),MATCH(S$2,'Data Annex'!$K$1:$AN$1,0)),\"\")","v":3.8610284976956198E-3},{"$f":"IFERROR(INDEX('Data Annex'!$K$1:$AN$5027,MATCH(T$1&\"|\"&$B17,'Data Annex'!$K$1:$K$5027,0),MATCH(T$2,'Data Annex'!$K$1:$AN$1,0)),\"\")","v":5.1173800380416301E-3}]
[7,"DK",null,"DK",{"$f":"IFERROR(INDEX('Data Annex'!$K$1:$AN$5027,MATCH(E$1&\"|\"&$B18,'Data Annex'!$K$1:$K$5027,0),MATCH(E$2,'Data Annex'!$K$1:$AN$1,0)),\"\")","v":65.065142049611296},{"$f":"IFERROR(INDEX('Data Annex'!$K$1:$AN$5027,MATCH(F$1&\"|\"&$B18,'Data Annex'!$K$1:$K$5027,0),MATCH(F$2,'Data Annex'!$K$1:$AN$1,0)),\"\")","v":65.840748333016194},{"$f":"IFERROR(INDEX('Data Annex'!$K$1:$AN$5027,MATCH(G$1&\"|\"&$B18,'Data Annex'!$K$1:$K$5027,0),MATCH(G$2,'Data Annex'!$K$1:$AN$1,0)),\"\")","v":66.337069770694896},{"$f":"IFERROR(INDEX('Data Annex'!$K$1:$AN$5027,MATCH(H$1&\"|\"&$B18,'Data Annex'!$K$1:$K$5027,0),MATCH(H$2,'Data Annex'!$K$1:$AN$1,0)),\"\")","v":67.289332719019995},{"$f":"IFERROR(INDEX('Data Annex'!$K$1:$AN$5027,MATCH(I$1&\"|\"&$B18,'Data Annex'!$K$1:$K$5027,0),MATCH(I$2,'Data Annex'!$K$1:$AN$1,0)),\"\")","v":0.50081625204521296},{"$f":"IFERROR(INDEX('Data Annex'!$K$1:$AN$5027,MATCH(J$1&\"|\"&$B18,'Data Annex'!$K$1:$K$5027,0),MATCH(J$2,'Data Annex'!$K$1:$AN$1,0)),\"\")","v":0.51973004282620705},{"$f":"IFERROR(INDEX('Data Annex'!$K$1:$AN$5027,MATCH(K$1&\"|\"&$B18,'Data Annex'!$K$1:$K$5027,0),MATCH(K$2,'Data Annex'!$K$1:$AN$1,0)),\"\")","v":0.51416104954446495},{"$f":"IFERROR(INDEX('Data Annex'!$K$1:$AN$5027,MATCH(L$1&\"|\"&$B18,'Data Annex'!$K$1:$K$5027,0),MATCH(L$2,'Data Annex'!$K$1:$AN$1,0)),\"\")","v":0.48676125942621401},{"$f":"IFERROR(INDEX('Data Annex'!$K$1:$AN$5027,MATCH(M$1&\"|\"&$B18,'Data Annex'!$K$1:$K$5027,0),MATCH(M$2,'Data Annex'!$K$1:$AN$1,0)),\"\")","v":0.97857719203359095},{"$f":"IFERROR(INDEX('Data Annex'!$K$1:$AN$5027,MATCH(N$1&\"|\"&$B18,'Data Annex'!$K$1:$K$5027,0),MATCH(N$2,'Data Annex'!$K$1:$AN$1,0)),\"\")","v":0.96525568989653099},{"$f":"IFERROR(INDEX('Data Annex'!$K$1:$AN$5027,MATCH(O$1&\"|\"&$B18,'Data Annex'!$K$1:$K$5027,0),MATCH(O$2,'Data Annex'!$K$1:$AN$1,0)),\"\")","v":1.0334408372670201},{"$f":"IFERROR(INDEX('Data Annex'!$K$1:$AN$5027,MATCH(P$1&\"|\"&$B18,'Data Annex'!$K$1:$K$5027,0),MATCH(P$2,'Data Annex'!$K$1:$AN$1,0)),\"\")","v":0.89978763526209404},{"$f":"IFERROR(INDEX('Data Annex'!$K$1:$AN$5027,MATCH(Q$1&\"|\"&$B18,'Data Annex'!$K$1:$K$5027,0),MATCH(Q$2,'Data Annex'!$K$1:$AN$1,0)),\"\")","v":1.5039960894689799E-2},{"$f":"IFERROR(INDEX('Data Annex'!$K$1:$AN$5027,MATCH(R$1&\"|\"&$B18,'Data Annex'!$K$1:$K$5027,0),MATCH(R$2,'Data Annex'!$K$1:$AN$1,0)),\"\")","v":1.46604604949865E-2},{"$f":"IFERROR(INDEX('Data Annex'!$K$1:$AN$5027,MATCH(S$1&\"|\"&$B18,'Data Annex'!$K$1:$K$5027,0),MATCH(S$2,'Data Annex'!$K$1:$AN$1,0)),\"\")","v":1.55786325931983E-2},{"$f":"IFERROR(INDEX('Data Annex'!$K$1:$AN$5027,MATCH(T$1&\"|\"&$B18,'Data Annex'!$K$1:$K$5027,0),MATCH(T$2,'Data Annex'!$K$1:$AN$1,0)),\"\")","v":1.33719209108424E-2}]
[8,"EE",null,"EE",{"$f":"IFERROR(INDEX('Data Annex'!$K$1:$AN$5027,MATCH(E$1&\"|\"&$B19,'Data Annex'!$K$1:$K$5027,0),MATCH(E$2,'Data Annex'!$K$1:$AN$1,0)),\"\")","v":3.4189560550385498},{"$f":"IFERROR(INDEX('Data Annex'!$K$1:$AN$5027,MATCH(F$1&\"|\"&$B19,'Data Annex'!$K$1:$K$5027,0),MATCH(F$2,'Data Annex'!$K$1:$AN$1,0)),\"\")","v":3.4586984011633599},{"$f":"IFERROR(INDEX('Data Annex'!$K$1:$AN$5027,MATCH(G$1&\"|\"&$B19,'Data Annex'!$K$1:$K$5027,0),MATCH(G$2,'Data Annex'!$K$1:$AN$1,0)),\"\")","v":3.4066314156866802},{"$f":"IFERROR(INDEX('Data Annex'!$K$1:$AN$5027,MATCH(H$1&\"|\"&$B19,'Data Annex'!$K$1:$K$5027,0),MATCH(H$2,'Data Annex'!$K$1:$AN$1,0)),\"\")","v":3.4895991056957301},{"$f":"IFERROR(INDEX('Data Annex'!$K$1:$AN$5027,MATCH(I$1&\"|\"&$B19,'Data Annex'!$K$1:$K$5027,0),MATCH(I$2,'Data Annex'!$K$1:$AN$1,0)),\"\")","v":0.33429910121514},{"$f":"IFERROR(INDEX('Data Annex'!$K$1:$AN$5027,MATCH(J$1&\"|\"&$B19,'Data Annex'!$K$1:$K$5027,0),MATCH(J$2,'Data Annex'!$K$1:$AN$1,0)),\"\")","v":0.35154574244647901},{"$f":"IFERROR(INDEX('Data Annex'!$K$1:$AN$5027,MATCH(K$1&\"|\"&$B19,'Data Annex'!$K$1:$K$5027,0),MATCH(K$2,'Data Annex'!$K$1:$AN$1,0)),\"\")","v":0.343117625122836},{"$f":"IFERROR(INDEX('Data Annex'!$K$1:$AN$5027,MATCH(L$1&\"|\"&$B19,'Data Annex'!$K$1:$K$5027,0),MATCH(L$2,'Data Annex'!$K$1:$AN$1,0)),\"\")","v":0.35138749480778397},{"$f":"IFERROR(INDEX('Data Annex'!$K$1:$AN$5027,MATCH(M$1&\"|\"&$B19,'Data Annex'!$K$1:$K$5027,0),MATCH(M$2,'Data Annex'!$K$1:$AN$1,0)),\"\")","v":2.0549454906422699E-2},{"$f":"IFERROR(INDEX('Data Annex'!$K$1:$AN$5027,MATCH(N$1&\"|\"&$B19,'Data Annex'!$K$1:$K$5027,0),MATCH(N$2,'Data Annex'!$K$1:$AN$1,0)),\"\")","v":2.5832130872877002E-2},{"$f":"IFERROR(INDEX('Data Annex'!$K$1:$AN$5027,MATCH(O$1&\"|\"&$B19,'Data Annex'!$K$1:$K$5027,0),MATCH(O$2,'Data Annex'!$K$1:$AN$1,0)),\"\")","v":2.5379526151582701E-2},{"$f":"IFERROR(INDEX('Data Annex'!$K$1:$AN$5027,MATCH(P$1&\"|\"&$B19,'Data Annex'!$K$1:$K$5027,0),MATCH(P$2,'Data Annex'!$K$1:$AN$1,0)),\"\")","v":2.5639706144029599E-2},{"$f":"IFERROR(INDEX('Data Annex'!$K$1:$AN$5027,MATCH(Q$1&\"|\"&$B19,'Data Annex'!$K$1:$K$5027,0),MATCH(Q$2,'Data Annex'!$K$1:$AN$1,0)),\"\")","v":6.0104472171084904E-3},{"$f":"IFERROR(INDEX('Data Annex'!$K$1:$AN$5027,MATCH(R$1&\"|\"&$B19,'Data Annex'!$K$1:$K$5027,0),MATCH(R$2,'Data Annex'!$K$1:$AN$1,0)),\"\")","v":7.4687434047988003E-3},{"$f":"IFERROR(INDEX('Data Annex'!$K$1:$AN$5027,MATCH(S$1&\"|\"&$B19,'Data Annex'!$K$1:$K$5027,0),MATCH(S$2,'Data Annex'!$K$1:$AN$1,0)),\"\")","v":7.4500358432427801E-3},{"$f":"IFERROR(INDEX('Data Annex'!$K$1:$AN$5027,MATCH(T$1&\"|\"&$B19,'Data Annex'!$K$1:$K$5027,0),MATCH(T$2,'Data Annex'!$K$1:$AN$1,0)),\"\")","v":7.34746467070685E-3}]
[9,"ES",null,"ES",{"$f":"IFERROR(INDEX('Data Annex'!$K$1:$AN$5027,MATCH(E$1&\"|\"&$B20,'Data Annex'!$K$1:$K$5027,0),MATCH(E$2,'Data Annex'!$K$1:$AN$1,0)),\"\")","v":40.994864512719197},{"$f":"IFERROR(INDEX('Data Annex'!$K$1:$AN$5027,MATCH(F$1&\"|\"&$B20,'Data Annex'!$K$1:$K$5027,0),MATCH(F$2,'Data Annex'!$K$1:$AN$1,0)),\"\")","v":42.175196961397099},{"$f":"IFERROR(INDEX('Data Annex'!$K$1:$AN$5027,MATCH(G$1&\"|\"&$B20,'Data Annex'!$K$1:$K$5027,0),MATCH(G$2,'Data Annex'!$K$1:$AN$1,0)),\"\")","v":41.457367190350404},{"$f":"IFERROR(INDEX('Data Annex'!$K$1:$AN$5027,MATCH(H$1&\"|\"&$B20,'Data Annex'!$K$1:$K$5027,0),MATCH(H$2,'Data Annex'!$K$1:$AN$1,0)),\"\")","v":40.5515788695268},{"$f":"IFERROR(INDEX('Data Annex'!$K$1:$AN$5027,MATCH(I$1&\"|\"&$B20,'Data Annex'!$K$1:$K$5027,0),MATCH(I$2,'Data Annex'!$K$1:$AN$1,0)),\"\")","v":0.121051275580647},{"$f":"IFERROR(INDEX('Data Annex'!$K$1:$AN$5027,MATCH(J$1&\"|\"&$B20,'Data Annex'!$K$1:$K$5027,0),MATCH(J$2,'Data Annex'!$K$1:$AN$1,0)),\"\")","v":0.114913063441535},{"$f":"IFERROR(INDEX('Data Annex'!$K$1:$AN$5027,MATCH(K$1&\"|\"&$B20,'Data Annex'!$K$1:$K$5027,0),MATCH(K$2,'Data Annex'!$K$1:$AN$1,0)),\"\")","v":0.11554598667749701},{"$f":"IFERROR(INDEX('Data Annex'!$K$1:$AN$5027,MATCH(L$1&\"|\"&$B20,'Data Annex'!$K$1:$K$5027,0),MATCH(L$2,'Data Annex'!$K$1:$AN$1,0)),\"\")","v":0.113056702631152},{"$f":"IFERROR(INDEX('Data Annex'!$K$1:$AN$5027,MATCH(M$1&\"|\"&$B20,'Data Annex'!$K$1:$K$5027,0),MATCH(M$2,'Data Annex'!$K$1:$AN$1,0)),\"\")","v":1.9649059608130199},{"$f":"IFERROR(INDEX('Data Annex'!$K$1:$AN$5027,MATCH(N$1&\"|\"&$B20,'Data Annex'!$K$1:$K$5027,0),MATCH(N$2,'Data Annex'!$K$1:$AN$1,0)),\"\")","v":1.8227389245419101},{"$f":"IFERROR(INDEX('Data Annex'!$K$1:$AN$5027,MATCH(O$1&\"|\"&$B20,'Data Annex'!$K$1:$K$5027,0),MATCH(O$2,'Data Annex'!$K$1:$AN$1,0)),\"\")","v":2.0008136393221201},{"$f":"IFERROR(INDEX('Data Annex'!$K$1:$AN$5027,MATCH(P$1&\"|\"&$B20,'Data Annex'!$K$1:$K$5027,0),MATCH(P$2,'Data Annex'!$K$1:$AN$1,0)),\"\")","v":2.0900223261539299},{"$f":"IFERROR(INDEX('Data Annex'!$K$1:$AN$5027,MATCH(Q$1&\"|\"&$B20,'Data Annex'!$K$1:$K$5027,0),MATCH(Q$2,'Data Annex'!$K$1:$AN$1,0)),\"\")","v":4.7930539207011701E-2},{"$f":"IFERROR(INDEX('Data Annex'!$K$1:$AN$5027,MATCH(R$1&\"|\"&$B20,'Data Annex'!$K$1:$K$5027,0),MATCH(R$2,'Data Annex'!$K$1:$AN$1,0)),\"\")","v":4.32182670352496E-2},{"$f":"IFERROR(INDEX('Data Annex'!$K$1:$AN$5027,MATCH(S$1&\"|\"&$B20,'Data Annex'!$K$1:$K$5027,0),MATCH(S$2,'Data Annex'!$K$1:$AN$1,0)),\"\")","v":4.8261956195516299E-2},{"$f":"IFERROR(INDEX('Data Annex'!$K$1:$AN$5027,MATCH(T$1&\"|\"&$B20,'Data Annex'!$K$1:$K$5027,0),MATCH(T$2,'Data Annex'!$K$1:$AN$1,0)),\"\")","v":5.1539850837337399E-2}]
[10,"FI",null,"FI",{"$f":"IFERROR(INDEX('Data Annex'!$K$1:$AN$5027,MATCH(E$1&\"|\"&$B21,'Data Annex'!$K$1:$K$5027,0),MATCH(E$2,'Data Annex'!$K$1:$AN$1,0)),\"\")","v":48.867202141935699},{"$f":"IFERROR(INDEX('Data Annex'!$K$1:$AN$5027,MATCH(F$1&\"|\"&$B21,'Data Annex'!$K$1:$K$5027,0),MATCH(F$2,'Data Annex'!$K$1:$AN$1,0)),\"\")","v":50.929931781648101},{"$f":"IFERROR(INDEX('Data Annex'!$K$1:$AN$5027,MATCH(G$1&\"|\"&$B21,'Data Annex'!$K$1:$K$5027,0),MATCH(G$2,'Data Annex'!$K$1:$AN$1,0)),\"\")","v":50.466594989269801},{"$f":"IFERROR(INDEX('Data Annex'!$K$1:$AN$5027,MATCH(H$1&\"|\"&$B21,'Data Annex'!$K$1:$K$5027,0),MATCH(H$2,'Data Annex'!$K$1:$AN$1,0)),\"\")","v":50.951587922885103},{"$f":"IFERROR(INDEX('Data Annex'!$K$1:$AN$5027,MATCH(I$1&\"|\"&$B21,'Data Annex'!$K$1:$K$5027,0),MATCH(I$2,'Data Annex'!$K$1:$AN$1,0)),\"\")","v":0.45291027698493103},{"$f":"IFERROR(INDEX('Data Annex'!$K$1:$AN$5027,MATCH(J$1&\"|\"&$B21,'Data Annex'!$K$1:$K$5027,0),MATCH(J$2,'Data Annex'!$K$1:$AN$1,0)),\"\")","v":0.45968631378977898},{"$f":"IFERROR(INDEX('Data Annex'!$K$1:$AN$5027,MATCH(K$1&\"|\"&$B21,'Data Annex'!$K$1:$K$5027,0),MATCH(K$2,'Data Annex'!$K$1:$AN$1,0)),\"\")","v":0.463550294265197},{"$f":"IFERROR(INDEX('Data Annex'!$K$1:$AN$5027,MATCH(L$1&\"|\"&$B21,'Data Annex'!$K$1:$K$5027,0),MATCH(L$2,'Data Annex'!$K$1:$AN$1,0)),\"\")","v":0.46859370407421402},{"$f":"IFERROR(INDEX('Data Annex'!$K$1:$AN$5027,MATCH(M$1&\"|\"&$B21,'Data Annex'!$K$1:$K$5027,0),MATCH(M$2,'Data Annex'!$K$1:$AN$1,0)),\"\")","v":0.46279925589179699},{"$f":"IFERROR(INDEX('Data Annex'!$K$1:$AN$5027,MATCH(N$1&\"|\"&$B21,'Data Annex'!$K$1:$K$5027,0),MATCH(N$2,'Data Annex'!$K$1:$AN$1,0)),\"\")","v":0.52376640374821903},{"$f":"IFERROR(INDEX('Data Annex'!$K$1:$AN$5027,MATCH(O$1&\"|\"&$B21,'Data Annex'!$K$1:$K$5027,0),MATCH(O$2,'Data Annex'!$K$1:$AN$1,0)),\"\")","v":0.58320310721951296},{"$f":"IFERROR(INDEX('Data Annex'!$K$1:$AN$5027,MATCH(P$1&\"|\"&$B21,'Data Annex'!$K$1:$K$5027,0),MATCH(P$2,'Data Annex'!$K$1:$AN$1,0)),\"\")","v":0.75640433708086796},{"$f":"IFERROR(INDEX('Data Annex'!$K$1:$AN$5027,MATCH(Q$1&\"|\"&$B21,'Data Annex'!$K$1:$K$5027,0),MATCH(Q$2,'Data Annex'!$K$1:$AN$1,0)),\"\")","v":9.4705494811752906E-3},{"$f":"IFERROR(INDEX('Data Annex'!$K$1:$AN$5027,MATCH(R$1&\"|\"&$B21,'Data Annex'!$K$1:$K$5027,0),MATCH(R$2,'Data Annex'!$K$1:$AN$1,0)),\"\")","v":1.02840586159385E-2},{"$f":"IFERROR(INDEX('Data Annex'!$K$1:$AN$5027,MATCH(S$1&\"|\"&$B21,'Data Annex'!$K$1:$K$5027,0),MATCH(S$2,'Data Annex'!$K$1:$AN$1,0)),\"\")","v":1.15562206513737E-2},{"$f":"IFERROR(INDEX('Data Annex'!$K$1:$AN$5027,MATCH(T$1&\"|\"&$B21,'Data Annex'!$K$1:$K$5027,0),MATCH(T$2,'Data Annex'!$K$1:$AN$1,0)),\"\")","v":1.4845549823210199E-2}]
[11,"FR",null,"FR",{"$f":"IFERROR(INDEX('Data Annex'!$K$1:$AN$5027,MATCH(E$1&\"|\"&$B22,'Data Annex'!$K$1:$K$5027,0),MATCH(E$2,'Data Annex'!$K$1:$AN$1,0)),\"\")","v":296.70947831743098},{"$f":"IFERROR(INDEX('Data Annex'!$K$1:$AN$5027,MATCH(F$1&\"|\"&$B22,'Data Annex'!$K$1:$K$5027,0),MATCH(F$2,'Data Annex'!$K$1:$AN$1,0)),\"\")","v":301.35443156887402},{"$f":"IFERROR(INDEX('Data Annex'!$K$1:$AN$5027,MATCH(G$1&\"|\"&$B22,'Data Annex'!$K$1:$K$5027,0),MATCH(G$2,'Data Annex'!$K$1:$AN$1,0)),\"\")","v":307.97372898370401},{"$f":"IFERROR(INDEX('Data Annex'!$K$1:$AN$5027,MATCH(H$1&\"|\"&$B22,'Data Annex'!$K$1:$K$5027,0),MATCH(H$2,'Data Annex'!$K$1:$AN$1,0)),\"\")","v":312.76234068489498},{"$f":"IFERROR(INDEX('Data Annex'!$K$1:$AN$5027,MATCH(I$1&\"|\"&$B22,'Data Annex'!$K$1:$K$5027,0),MATCH(I$2,'Data Annex'!$K$1:$AN$1,0)),\"\")","v":0.31603006960242203},{"$f":"IFERROR(INDEX('Data Annex'!$K$1:$AN$5027,MATCH(J$1&\"|\"&$B22,'Data Annex'!$K$1:$K$5027,0),MATCH(J$2,'Data Annex'!$K$1:$AN$1,0)),\"\")","v":0.30043025366410397},{"$f":"IFERROR(INDEX('Data Annex'!$K$1:$AN$5027,MATCH(K$1&\"|\"&$B22,'Data Annex'!$K$1:$K$5027,0),MATCH(K$2,'Data Annex'!$K$1:$AN$1,0)),\"\")","v":0.306979134875563},{"$f":"IFERROR(INDEX('Data Annex'!$K$1:$AN$5027,MATCH(L$1&\"|\"&$B22,'Data Annex'!$K$1:$K$5027,0),MATCH(L$2,'Data Annex'!$K$1:$AN$1,0)),\"\")","v":0.30844885433414798},{"$f":"IFERROR(INDEX('Data Annex'!$K$1:$AN$5027,MATCH(M$1&\"|\"&$B22,'Data Annex'!$K$1:$K$5027,0),MATCH(M$2,'Data Annex'!$K$1:$AN$1,0)),\"\")","v":6.9051387263069799},{"$f":"IFERROR(INDEX('Data Annex'!$K$1:$AN$5027,MATCH(N$1&\"|\"&$B22,'Data Annex'!$K$1:$K$5027,0),MATCH(N$2,'Data Annex'!$K$1:$AN$1,0)),\"\")","v":6.8578295323752698},{"$f":"IFERROR(INDEX('Data Annex'!$K$1:$AN$5027,MATCH(O$1&\"|\"&$B22,'Data Annex'!$K$1:$K$5027,0),MATCH(O$2,'Data Annex'!$K$1:$AN$1,0)),\"\")","v":6.8116257408443799},{"$f":"IFERROR(INDEX('Data Annex'!$K$1:$AN$5027,MATCH(P$1&\"|\"&$B22,'Data Annex'!$K$1:$K$5027,0),MATCH(P$2,'Data Annex'!$K$1:$AN$1,0)),\"\")","v":6.5505544986222803},{"$f":"IFERROR(INDEX('Data Annex'!$K$1:$AN$5027,MATCH(Q$1&\"|\"&$B22,'Data Annex'!$K$1:$K$5027,0),MATCH(Q$2,'Data Annex'!$K$1:$AN$1,0)),\"\")","v":2.3272390101807199E-2},{"$f":"IFERROR(INDEX('Data Annex'!$K$1:$AN$5027,MATCH(R$1&\"|\"&$B22,'Data Annex'!$K$1:$K$5027,0),MATCH(R$2,'Data Annex'!$K$1:$AN$1,0)),\"\")","v":2.2756690507827901E-2},{"$f":"IFERROR(INDEX('Data Annex'!$K$1:$AN$5027,MATCH(S$1&\"|\"&$B22,'Data Annex'!$K$1:$K$5027,0),MATCH(S$2,'Data Annex'!$K$1:$AN$1,0)),\"\")","v":2.21175545177907E-2},{"$f":"IFERROR(INDEX('Data Annex'!$K$1:$AN$5027,MATCH(T$1&\"|\"&$B22,'Data Annex'!$K$1:$K$5027,0),MATCH(T$2,'Data Annex'!$K$1:$AN$1,0)),\"\")","v":2.0944191951875302E-2}]
[13,"GR",null,"GR",{"$f":"IFERROR(INDEX('Data Annex'!$K$1:$AN$5027,MATCH(E$1&\"|\"&$B23,'Data Annex'!$K$1:$K$5027,0),MATCH(E$2,'Data Annex'!$K$1:$AN$1,0)),\"\")","v":4.7761820104200003},{"$f":"IFERROR(INDEX('Data Annex'!$K$1:$AN$5027,MATCH(F$1&\"|\"&$B23,'Data Annex'!$K$1:$K$5027,0),MATCH(F$2,'Data Annex'!$K$1:$AN$1,0)),\"\")","v":4.3507811498700004},{"$f":"IFERROR(INDEX('Data Annex'!$K$1:$AN$5027,MATCH(G$1&\"|\"&$B23,'Data Annex'!$K$1:$K$5027,0),MATCH(G$2,'Data Annex'!$K$1:$AN$1,0)),\"\")","v":4.5777044150000004},{"$f":"IFERROR(INDEX('Data Annex'!$K$1:$AN$5027,MATCH(H$1&\"|\"&$B23,'Data Annex'!$K$1:$K$5027,0),MATCH(H$2,'Data Annex'!$K$1:$AN$1,0)),\"\")","v":4.3902860836800004},{"$f":"IFERROR(INDEX('Data Annex'!$K$1:$AN$5027,MATCH(I$1&\"|\"&$B23,'Data Annex'!$K$1:$K$5027,0),MATCH(I$2,'Data Annex'!$K$1:$AN$1,0)),\"\")","v":5.9200084862471601E-2},{"$f":"IFERROR(INDEX('Data Annex'!$K$1:$AN$5027,MATCH(J$1&\"|\"&$B23,'Data Annex'!$K$1:$K$5027,0),MATCH(J$2,'Data Annex'!$K$1:$AN$1,0)),\"\")","v":5.7196739858082601E-2},{"$f":"IFERROR(INDEX('Data Annex'!$K$1:$AN$5027,MATCH(K$1&\"|\"&$B23,'Data Annex'!$K$1:$K$5027,0),MATCH(K$2,'Data Annex'!$K$1:$AN$1,0)),\"\")","v":5.9210029600150101E-2},{"$f":"IFERROR(INDEX('Data Annex'!$K$1:$AN$5027,MATCH(L$1&\"|\"&$B23,'Data Annex'!$K$1:$K$5027,0),MATCH(L$2,'Data Annex'!$K$1:$AN$1,0)),\"\")","v":5.6449594437297197E-2},{"$f":"IFERROR(INDEX('Data Annex'!$K$1:$AN$5027,MATCH(M$1&\"|\"&$B23,'Data Annex'!$K$1:$K$5027,0),MATCH(M$2,'Data Annex'!$K$1:$AN$1,0)),\"\")","v":1.79748601669},{"$f":"IFERROR(INDEX('Data Annex'!$K$1:$AN$5027,MATCH(N$1&\"|\"&$B23,'Data Annex'!$K$1:$K$5027,0),MATCH(N$2,'Data Annex'!$K$1:$AN$1,0)),\"\")","v":1.429417905},{"$f":"IFERROR(INDEX('Data Annex'!$K$1:$AN$5027,MATCH(O$1&\"|\"&$B23,'Data Annex'!$K$1:$K$5027,0),MATCH(O$2,'Data Annex'!$K$1:$AN$1,0)),\"\")","v":1.345980052},{"$f":"IFERROR(INDEX('Data Annex'!$K$1:$AN$5027,MATCH(P$1&\"|\"&$B23,'Data Annex'!$K$1:$K$5027,0),MATCH(P$2,'Data Annex'!$K$1:$AN$1,0)),\"\")","v":1.3462599719999999},{"$f":"IFERROR(INDEX('Data Annex'!$K$1:$AN$5027,MATCH(Q$1&\"|\"&$B23,'Data Annex'!$K$1:$K$5027,0),MATCH(Q$2,'Data Annex'!$K$1:$AN$1,0)),\"\")","v":0.376343701468767},{"$f":"IFERROR(INDEX('Data Annex'!$K$1:$AN$5027,MATCH(R$1&\"|\"&$B23,'Data Annex'!$K$1:$K$5027,0),MATCH(R$2,'Data Annex'!$K$1:$AN$1,0)),\"\")","v":0.32854281926883599},{"$f":"IFERROR(INDEX('Data Annex'!$K$1:$AN$5027,MATCH(S$1&\"|\"&$B23,'Data Annex'!$K$1:$K$5027,0),MATCH(S$2,'Data Annex'!$K$1:$AN$1,0)),\"\")","v":0.29402948071298801},{"$f":"IFERROR(INDEX('Data Annex'!$K$1:$AN$5027,MATCH(T$1&\"|\"&$B23,'Data Annex'!$K$1:$K$5027,0),MATCH(T$2,'Data Annex'!$K$1:$AN$1,0)),\"\")","v":0.30664515850218699}]
[14,"HR",null,"HR",{"$f":"IFERROR(INDEX('Data Annex'!$K$1:$AN$5027,MATCH(E$1&\"|\"&$B24,'Data Annex'!$K$1:$K$5027,0),MATCH(E$2,'Data Annex'!$K$1:$AN$1,0)),\"\")","v":1.2361332587138001},{"$f":"IFERROR(INDEX('Data Annex'!$K$1:$AN$5027,MATCH(F$1&\"|\"&$B24,'Data Annex'!$K$1:$K$5027,0),MATCH(F$2,'Data Annex'!$K$1:$AN$1,0)),\"\")","v":1.2925351158326801},{"$f":"IFERROR(INDEX('Data Annex'!$K$1:$AN$5027,MATCH(G$1&\"|\"&$B24,'Data Annex'!$K$1:$K$5027,0),MATCH(G$2,'Data Annex'!$K$1:$AN$1,0)),\"\")","v":1.2788814786993099},{"$f":"IFERROR(INDEX('Data Annex'!$K$1:$AN$5027,MATCH(H$1&\"|\"&$B24,'Data Annex'!$K$1:$K$5027,0),MATCH(H$2,'Data Annex'!$K$1:$AN$1,0)),\"\")","v":1.2124453522101699},{"$f":"IFERROR(INDEX('Data Annex'!$K$1:$AN$5027,MATCH(I$1&\"|\"&$B24,'Data Annex'!$K$1:$K$5027,0),MATCH(I$2,'Data Annex'!$K$1:$AN$1,0)),\"\")","v":9.6327932571470501E-2},{"$f":"IFERROR(INDEX('Data Annex'!$K$1:$AN$5027,MATCH(J$1&\"|\"&$B24,'Data Annex'!$K$1:$K$5027,0),MATCH(J$2,'Data Annex'!$K$1:$AN$1,0)),\"\")","v":0.101695119171612},{"$f":"IFERROR(INDEX('Data Annex'!$K$1:$AN$5027,MATCH(K$1&\"|\"&$B24,'Data Annex'!$K$1:$K$5027,0),MATCH(K$2,'Data Annex'!$K$1:$AN$1,0)),\"\")","v":0.102746879429597},{"$f":"IFERROR(INDEX('Data Annex'!$K$1:$AN$5027,MATCH(L$1&\"|\"&$B24,'Data Annex'!$K$1:$K$5027,0),MATCH(L$2,'Data Annex'!$K$1:$AN$1,0)),\"\")","v":9.8297032091496303E-2},{"$f":"IFERROR(INDEX('Data Annex'!$K$1:$AN$5027,MATCH(M$1&\"|\"&$B24,'Data Annex'!$K$1:$K$5027,0),MATCH(M$2,'Data Annex'!$K$1:$AN$1,0)),\"\")","v":0.15757803339802501},{"$f":"IFERROR(INDEX('Data Annex'!$K$1:$AN$5027,MATCH(N$1&\"|\"&$B24,'Data Annex'!$K$1:$K$5027,0),MATCH(N$2,'Data Annex'!$K$1:$AN$1,0)),\"\")","v":0.154773536483229},{"$f":"IFERROR(INDEX('Data Annex'!$K$1:$AN$5027,MATCH(O$1&\"|\"&$B24,'Data Annex'!$K$1:$K$5027,0),MATCH(O$2,'Data Annex'!$K$1:$AN$1,0)),\"\")","v":0.138823066392815},{"$f":"IFERROR(INDEX('Data Annex'!$K$1:$AN$5027,MATCH(P$1&\"|\"&$B24,'Data Annex'!$K$1:$K$5027,0),MATCH(P$2,'Data Annex'!$K$1:$AN$1,0)),\"\")","v":8.3119153566704504E-2},{"$f":"IFERROR(INDEX('Data Annex'!$K$1:$AN$5027,MATCH(Q$1&\"|\"&$B24,'Data Annex'!$K$1:$K$5027,0),MATCH(Q$2,'Data Annex'!$K$1:$AN$1,0)),\"\")","v":0.12747657446090099},{"$f":"IFERROR(INDEX('Data Annex'!$K$1:$AN$5027,MATCH(R$1&\"|\"&$B24,'Data Annex'!$K$1:$K$5027,0),MATCH(R$2,'Data Annex'!$K$1:$AN$1,0)),\"\")","v":0.119744163688365},{"$f":"IFERROR(INDEX('Data Annex'!$K$1:$AN$5027,MATCH(S$1&\"|\"&$B24,'Data Annex'!$K$1:$K$5027,0),MATCH(S$2,'Data Annex'!$K$1:$AN$1,0)),\"\")","v":0.108550376798017},{"$f":"IFERROR(INDEX('Data Annex'!$K$1:$AN$5027,MATCH(T$1&\"|\"&$B24,'Data Annex'!$K$1:$K$5027,0),MATCH(T$2,'Data Annex'!$K$1:$AN$1,0)),\"\")","v":6.8554969026180496E-2}]
[15,"HU",null,"HU",{"$f":"IFERROR(INDEX('Data Annex'!$K$1:$AN$5027,MATCH(E$1&\"|\"&$B25,'Data Annex'!$K$1:$K$5027,0),MATCH(E$2,'Data Annex'!$K$1:$AN$1,0)),\"\")","v":4.16949131955624},{"$f":"IFERROR(INDEX('Data Annex'!$K$1:$AN$5027,MATCH(F$1&\"|\"&$B25,'Data Annex'!$K$1:$K$5027,0),MATCH(F$2,'Data Annex'!$K$1:$AN$1,0)),\"\")","v":4.1301219474525901},{"$f":"IFERROR(INDEX('Data Annex'!$K$1:$AN$5027,MATCH(G$1&\"|\"&$B25,'Data Annex'!$K$1:$K$5027,0),MATCH(G$2,'Data Annex'!$K$1:$AN$1,0)),\"\")","v":4.08991856745289},{"$f":"IFERROR(INDEX('Data Annex'!$K$1:$AN$5027,MATCH(H$1&\"|\"&$B25,'Data Annex'!$K$1:$K$5027,0),MATCH(H$2,'Data Annex'!$K$1:$AN$1,0)),\"\")","v":4.1283433978799797},{"$f":"IFERROR(INDEX('Data Annex'!$K$1:$AN$5027,MATCH(I$1&\"|\"&$B25,'Data Annex'!$K$1:$K$5027,0),MATCH(I$2,'Data Annex'!$K$1:$AN$1,0)),\"\")","v":0.19030313440716101},{"$f":"IFERROR(INDEX('Data Annex'!$K$1:$AN$5027,MATCH(J$1&\"|\"&$B25,'Data Annex'!$K$1:$K$5027,0),MATCH(J$2,'Data Annex'!$K$1:$AN$1,0)),\"\")","v":0.18954624630939501},{"$f":"IFERROR(INDEX('Data Annex'!$K$1:$AN$5027,MATCH(K$1&\"|\"&$B25,'Data Annex'!$K$1:$K$5027,0),MATCH(K$2,'Data Annex'!$K$1:$AN$1,0)),\"\")","v":0.18726519242954301},{"$f":"IFERROR(INDEX('Data Annex'!$K$1:$AN$5027,MATCH(L$1&\"|\"&$B25,'Data Annex'!$K$1:$K$5027,0),MATCH(L$2,'Data Annex'!$K$1:$AN$1,0)),\"\")","v":0.18607653780730901},{"$f":"IFERROR(INDEX('Data Annex'!$K$1:$AN$5027,MATCH(M$1&\"|\"&$B25,'Data Annex'!$K$1:$K$5027,0),MATCH(M$2,'Data Annex'!$K$1:$AN$1,0)),\"\")","v":8.3304293004567501E-2},{"$f":"IFERROR(INDEX('Data Annex'!$K$1:$AN$5027,MATCH(N$1&\"|\"&$B25,'Data Annex'!$K$1:$K$5027,0),MATCH(N$2,'Data Annex'!$K$1:$AN$1,0)),\"\")","v":8.04917410562421E-2},{"$f":"IFERROR(INDEX('Data Annex'!$K$1:$AN$5027,MATCH(O$1&\"|\"&$B25,'Data Annex'!$K$1:$K$5027,0),MATCH(O$2,'Data Annex'!$K$1:$AN$1,0)),\"\")","v":7.7110287285533305E-2},{"$f":"IFERROR(INDEX('Data Annex'!$K$1:$AN$5027,MATCH(P$1&\"|\"&$B25,'Data Annex'!$K$1:$K$5027,0),MATCH(P$2,'Data Annex'!$K$1:$AN$1,0)),\"\")","v":7.8899109720799401E-2},{"$f":"IFERROR(INDEX('Data Annex'!$K$1:$AN$5027,MATCH(Q$1&\"|\"&$B25,'Data Annex'!$K$1:$K$5027,0),MATCH(Q$2,'Data Annex'!$K$1:$AN$1,0)),\"\")","v":1.9979485894081099E-2},{"$f":"IFERROR(INDEX('Data Annex'!$K$1:$AN$5027,MATCH(R$1&\"|\"&$B25,'Data Annex'!$K$1:$K$5027,0),MATCH(R$2,'Data Annex'!$K$1:$AN$1,0)),\"\")","v":1.9488950224796301E-2},{"$f":"IFERROR(INDEX('Data Annex'!$K$1:$AN$5027,MATCH(S$1&\"|\"&$B25,'Data Annex'!$K$1:$K$5027,0),MATCH(S$2,'Data Annex'!$K$1:$AN$1,0)),\"\")","v":1.8853746355530901E-2},{"$f":"IFERROR(INDEX('Data Annex'!$K$1:$AN$5027,MATCH(T$1&\"|\"&$B25,'Data Annex'!$K$1:$K$5027,0),MATCH(T$2,'Data Annex'!$K$1:$AN$1,0)),\"\")","v":1.9111566581722899E-2}]
[16,"IE",null,"IE",{"$f":"IFERROR(INDEX('Data Annex'!$K$1:$AN$5027,MATCH(E$1&\"|\"&$B26,'Data Annex'!$K$1:$K$5027,0),MATCH(E$2,'Data Annex'!$K$1:$AN$1,0)),\"\")","v":11.030203846919701},{"$f":"IFERROR(INDEX('Data Annex'!$K$1:$AN$5027,MATCH(F$1&\"|\"&$B26,'Data Annex'!$K$1:$K$5027,0),MATCH(F$2,'Data Annex'!$K$1:$AN$1,0)),\"\")","v":10.8513258400463},{"$f":"IFERROR(INDEX('Data Annex'!$K$1:$AN$5027,MATCH(G$1&\"|\"&$B26,'Data Annex'!$K$1:$K$5027,0),MATCH(G$2,'Data Annex'!$K$1:$AN$1,0)),\"\")","v":10.869139436272301},{"$f":"IFERROR(INDEX('Data Annex'!$K$1:$AN$5027,MATCH(H$1&\"|\"&$B26,'Data Annex'!$K$1:$K$5027,0),MATCH(H$2,'Data Annex'!$K$1:$AN$1,0)),\"\")","v":11.154515827357301},{"$f":"IFERROR(INDEX('Data Annex'!$K$1:$AN$5027,MATCH(I$1&\"|\"&$B26,'Data Annex'!$K$1:$K$5027,0),MATCH(I$2,'Data Annex'!$K$1:$AN$1,0)),\"\")","v":0.17806590467360101},{"$f":"IFERROR(INDEX('Data Annex'!$K$1:$AN$5027,MATCH(J$1&\"|\"&$B26,'Data Annex'!$K$1:$K$5027,0),MATCH(J$2,'Data Annex'!$K$1:$AN$1,0)),\"\")","v":0.17239987418651501},{"$f":"IFERROR(INDEX('Data Annex'!$K$1:$AN$5027,MATCH(K$1&\"|\"&$B26,'Data Annex'!$K$1:$K$5027,0),MATCH(K$2,'Data Annex'!$K$1:$AN$1,0)),\"\")","v":0.18027721016353401},{"$f":"IFERROR(INDEX('Data Annex'!$K$1:$AN$5027,MATCH(L$1&\"|\"&$B26,'Data Annex'!$K$1:$K$5027,0),MATCH(L$2,'Data Annex'!$K$1:$AN$1,0)),\"\")","v":0.19318056264233499},{"$f":"IFERROR(INDEX('Data Annex'!$K$1:$AN$5027,MATCH(M$1&\"|\"&$B26,'Data Annex'!$K$1:$K$5027,0),MATCH(M$2,'Data Annex'!$K$1:$AN$1,0)),\"\")","v":0.86822662816243901},{"$f":"IFERROR(INDEX('Data Annex'!$K$1:$AN$5027,MATCH(N$1&\"|\"&$B26,'Data Annex'!$K$1:$K$5027,0),MATCH(N$2,'Data Annex'!$K$1:$AN$1,0)),\"\")","v":1.0560605552517},{"$f":"IFERROR(INDEX('Data Annex'!$K$1:$AN$5027,MATCH(O$1&\"|\"&$B26,'Data Annex'!$K$1:$K$5027,0),MATCH(O$2,'Data Annex'!$K$1:$AN$1,0)),\"\")","v":1.2628471487789299},{"$f":"IFERROR(INDEX('Data Annex'!$K$1:$AN$5027,MATCH(P$1&\"|\"&$B26,'Data Annex'!$K$1:$K$5027,0),MATCH(P$2,'Data Annex'!$K$1:$AN$1,0)),\"\")","v":1.27454625306785},{"$f":"IFERROR(INDEX('Data Annex'!$K$1:$AN$5027,MATCH(Q$1&\"|\"&$B26,'Data Annex'!$K$1:$K$5027,0),MATCH(Q$2,'Data Annex'!$K$1:$AN$1,0)),\"\")","v":7.8713561436573196E-2},{"$f":"IFERROR(INDEX('Data Annex'!$K$1:$AN$5027,MATCH(R$1&\"|\"&$B26,'Data Annex'!$K$1:$K$5027,0),MATCH(R$2,'Data Annex'!$K$1:$AN$1,0)),\"\")","v":9.7320877726697397E-2},{"$f":"IFERROR(INDEX('Data Annex'!$K$1:$AN$5027,MATCH(S$1&\"|\"&$B26,'Data Annex'!$K$1:$K$5027,0),MATCH(S$2,'Data Annex'!$K$1:$AN$1,0)),\"\")","v":0.116186488928883},{"$f":"IFERROR(INDEX('Data Annex'!$K$1:$AN$5027,MATCH(T$1&\"|\"&$B26,'Data Annex'!$K$1:$K$5027,0),MATCH(T$2,'Data Annex'!$K$1:$AN$1,0)),\"\")","v":0.114262803764367}]
[17,"IS",null,"IS",{"$f":"IFERROR(INDEX('Data Annex'!$K$1:$AN$5027,MATCH(E$1&\"|\"&$B27,'Data Annex'!$K$1:$K$5027,0),MATCH(E$2,'Data Annex'!$K$1:$AN$1,0)),\"\")","v":2.33314955116967},{"$f":"IFERROR(INDEX('Data Annex'!$K$1:$AN$5027,MATCH(F$1&\"|\"&$B27,'Data Annex'!$K$1:$K$5027,0),MATCH(F$2,'Data Annex'!$K$1:$AN$1,0)),\"\")","v":2.3548554789189202},{"$f":"IFERROR(INDEX('Data Annex'!$K$1:$AN$5027,MATCH(G$1&\"|\"&$B27,'Data Annex'!$K$1:$K$5027,0),MATCH(G$2,'Data Annex'!$K$1:$AN$1,0)),\"\")","v":2.3258465812873199},{"$f":"IFERROR(INDEX('Data Annex'!$K$1:$AN$5027,MATCH(H$1&\"|\"&$B27,'Data Annex'!$K$1:$K$5027,0),MATCH(H$2,'Data Annex'!$K$1:$AN$1,0)),\"\")","v":2.3816018466861002},{"$f":"IFERROR(INDEX('Data Annex'!$K$1:$AN$5027,MATCH(I$1&\"|\"&$B27,'Data Annex'!$K$1:$K$5027,0),MATCH(I$2,'Data Annex'!$K$1:$AN$1,0)),\"\")","v":0.215377688051899},{"$f":"IFERROR(INDEX('Data Annex'!$K$1:$AN$5027,MATCH(J$1&\"|\"&$B27,'Data Annex'!$K$1:$K$5027,0),MATCH(J$2,'Data Annex'!$K$1:$AN$1,0)),\"\")","v":0.218897218546688},{"$f":"IFERROR(INDEX('Data Annex'!$K$1:$AN$5027,MATCH(K$1&\"|\"&$B27,'Data Annex'!$K$1:$K$5027,0),MATCH(K$2,'Data Annex'!$K$1:$AN$1,0)),\"\")","v":0.223649177977784},{"$f":"IFERROR(INDEX('Data Annex'!$K$1:$AN$5027,MATCH(L$1&\"|\"&$B27,'Data Annex'!$K$1:$K$5027,0),MATCH(L$2,'Data Annex'!$K$1:$AN$1,0)),\"\")","v":0.22482425692994601},{"$f":"IFERROR(INDEX('Data Annex'!$K$1:$AN$5027,MATCH(M$1&\"|\"&$B27,'Data Annex'!$K$1:$K$5027,0),MATCH(M$2,'Data Annex'!$K$1:$AN$1,0)),\"\")","v":6.2842448508997395E-2},{"$f":"IFERROR(INDEX('Data Annex'!$K$1:$AN$5027,MATCH(N$1&\"|\"&$B27,'Data Annex'!$K$1:$K$5027,0),MATCH(N$2,'Data Annex'!$K$1:$AN$1,0)),\"\")","v":7.7828409453024494E-2},{"$f":"IFERROR(INDEX('Data Annex'!$K$1:$AN$5027,MATCH(O$1&\"|\"&$B27,'Data Annex'!$K$1:$K$5027,0),MATCH(O$2,'Data Annex'!$K$1:$AN$1,0)),\"\")","v":0.100039382564735},{"$f":"IFERROR(INDEX('Data Annex'!$K$1:$AN$5027,MATCH(P$1&\"|\"&$B27,'Data Annex'!$K$1:$K$5027,0),MATCH(P$2,'Data Annex'!$K$1:$AN$1,0)),\"\")","v":8.8443857021140299E-2},{"$f":"IFERROR(INDEX('Data Annex'!$K$1:$AN$5027,MATCH(Q$1&\"|\"&$B27,'Data Annex'!$K$1:$K$5027,0),MATCH(Q$2,'Data Annex'!$K$1:$AN$1,0)),\"\")","v":2.6934599403408602E-2},{"$f":"IFERROR(INDEX('Data Annex'!$K$1:$AN$5027,MATCH(R$1&\"|\"&$B27,'Data Annex'!$K$1:$K$5027,0),MATCH(R$2,'Data Annex'!$K$1:$AN$1,0)),\"\")","v":3.3050185096180199E-2},{"$f":"IFERROR(INDEX('Data Annex'!$K$1:$AN$5027,MATCH(S$1&\"|\"&$B27,'Data Annex'!$K$1:$K$5027,0),MATCH(S$2,'Data Annex'!$K$1:$AN$1,0)),\"\")","v":4.3012029843070898E-2},{"$f":"IFERROR(INDEX('Data Annex'!$K$1:$AN$5027,MATCH(T$1&\"|\"&$B27,'Data Annex'!$K$1:$K$5027,0),MATCH(T$2,'Data Annex'!$K$1:$AN$1,0)),\"\")","v":3.7136290074768902E-2}]
[18,"IT",null,"IT",{"$f":"IFERROR(INDEX('Data Annex'!$K$1:$AN$5027,MATCH(E$1&\"|\"&$B28,'Data Annex'!$K$1:$K$5027,0),MATCH(E$2,'Data Annex'!$K$1:$AN$1,0)),\"\")","v":61.574550553520503},{"$f":"IFERROR(INDEX('Data Annex'!$K$1:$AN$5027,MATCH(F$1&\"|\"&$B28,'Data Annex'!$K$1:$K$5027,0),MATCH(F$2,'Data Annex'!$K$1:$AN$1,0)),\"\")","v":61.906516463567201},{"$f":"IFERROR(INDEX('Data Annex'!$K$1:$AN$5027,MATCH(G$1&\"|\"&$B28,'Data Annex'!$K$1:$K$5027,0),MATCH(G$2,'Data Annex'!$K$1:$AN$1,0)),\"\")","v":61.572571227116597},{"$f":"IFERROR(INDEX('Data Annex'!$K$1:$AN$5027,MATCH(H$1&\"|\"&$B28,'Data Annex'!$K$1:$K$5027,0),MATCH(H$2,'Data Annex'!$K$1:$AN$1,0)),\"\")","v":55.681474582470003},{"$f":"IFERROR(INDEX('Data Annex'!$K$1:$AN$5027,MATCH(I$1&\"|\"&$B28,'Data Annex'!$K$1:$K$5027,0),MATCH(I$2,'Data Annex'!$K$1:$AN$1,0)),\"\")","v":0.117698662714153},{"$f":"IFERROR(INDEX('Data Annex'!$K$1:$AN$5027,MATCH(J$1&\"|\"&$B28,'Data Annex'!$K$1:$K$5027,0),MATCH(J$2,'Data Annex'!$K$1:$AN$1,0)),\"\")","v":0.116568170412614},{"$f":"IFERROR(INDEX('Data Annex'!$K$1:$AN$5027,MATCH(K$1&\"|\"&$B28,'Data Annex'!$K$1:$K$5027,0),MATCH(K$2,'Data Annex'!$K$1:$AN$1,0)),\"\")","v":0.112512874940112},{"$f":"IFERROR(INDEX('Data Annex'!$K$1:$AN$5027,MATCH(L$1&\"|\"&$B28,'Data Annex'!$K$1:$K$5027,0),MATCH(L$2,'Data Annex'!$K$1:$AN$1,0)),\"\")","v":0.105920411347107},{"$f":"IFERROR(INDEX('Data Annex'!$K$1:$AN$5027,MATCH(M$1&\"|\"&$B28,'Data Annex'!$K$1:$K$5027,0),MATCH(M$2,'Data Annex'!$K$1:$AN$1,0)),\"\")","v":14.51445657404},{"$f":"IFERROR(INDEX('Data Annex'!$K$1:$AN$5027,MATCH(N$1&\"|\"&$B28,'Data Annex'!$K$1:$K$5027,0),MATCH(N$2,'Data Annex'!$K$1:$AN$1,0)),\"\")","v":13.95952933341},{"$f":"IFERROR(INDEX('Data Annex'!$K$1:$AN$5027,MATCH(O$1&\"|\"&$B28,'Data Annex'!$K$1:$K$5027,0),MATCH(O$2,'Data Annex'!$K$1:$AN$1,0)),\"\")","v":12.353521777999999},{"$f":"IFERROR(INDEX('Data Annex'!$K$1:$AN$5027,MATCH(P$1&\"|\"&$B28,'Data Annex'!$K$1:$K$5027,0),MATCH(P$2,'Data Annex'!$K$1:$AN$1,0)),\"\")","v":8.7715670118899993},{"$f":"IFERROR(INDEX('Data Annex'!$K$1:$AN$5027,MATCH(Q$1&\"|\"&$B28,'Data Annex'!$K$1:$K$5027,0),MATCH(Q$2,'Data Annex'!$K$1:$AN$1,0)),\"\")","v":0.23572168117449899},{"$f":"IFERROR(INDEX('Data Annex'!$K$1:$AN$5027,MATCH(R$1&\"|\"&$B28,'Data Annex'!$K$1:$K$5027,0),MATCH(R$2,'Data Annex'!$K$1:$AN$1,0)),\"\")","v":0.22549369809275799},{"$f":"IFERROR(INDEX('Data Annex'!$K$1:$AN$5027,MATCH(S$1&\"|\"&$B28,'Data Annex'!$K$1:$K$5027,0),MATCH(S$2,'Data Annex'!$K$1:$AN$1,0)),\"\")","v":0.20063352125466399},{"$f":"IFERROR(INDEX('Data Annex'!$K$1:$AN$5027,MATCH(T$1&\"|\"&$B28,'Data Annex'!$K$1:$K$5027,0),MATCH(T$2,'Data Annex'!$K$1:$AN$1,0)),\"\")","v":0.15753115515822799}]
[19,"LT",null,"LT",{"$f":"IFERROR(INDEX('Data Annex'!$K$1:$AN$5027,MATCH(E$1&\"|\"&$B29,'Data Annex'!$K$1:$K$5027,0),MATCH(E$2,'Data Annex'!$K$1:$AN$1,0)),\"\")","v":2.5200218397966201},{"$f":"IFERROR(INDEX('Data Annex'!$K$1:$AN$5027,MATCH(F$1&\"|\"&$B29,'Data Annex'!$K$1:$K$5027,0),MATCH(F$2,'Data Annex'!$K$1:$AN$1,0)),\"\")","v":2.5556096455377699},{"$f":"IFERROR(INDEX('Data Annex'!$K$1:$AN$5027,MATCH(G$1&\"|\"&$B29,'Data Annex'!$K$1:$K$5027,0),MATCH(G$2,'Data Annex'!$K$1:$AN$1,0)),\"\")","v":2.5801049155158302},{"$f":"IFERROR(INDEX('Data Annex'!$K$1:$AN$5027,MATCH(H$1&\"|\"&$B29,'Data Annex'!$K$1:$K$5027,0),MATCH(H$2,'Data Annex'!$K$1:$AN$1,0)),\"\")","v":2.5390476804900901},{"$f":"IFERROR(INDEX('Data Annex'!$K$1:$AN$5027,MATCH(I$1&\"|\"&$B29,'Data Annex'!$K$1:$K$5027,0),MATCH(I$2,'Data Annex'!$K$1:$AN$1,0)),\"\")","v":0.22882193048980101},{"$f":"IFERROR(INDEX('Data Annex'!$K$1:$AN$5027,MATCH(J$1&\"|\"&$B29,'Data Annex'!$K$1:$K$5027,0),MATCH(J$2,'Data Annex'!$K$1:$AN$1,0)),\"\")","v":0.26623873382086},{"$f":"IFERROR(INDEX('Data Annex'!$K$1:$AN$5027,MATCH(K$1&\"|\"&$B29,'Data Annex'!$K$1:$K$5027,0),MATCH(K$2,'Data Annex'!$K$1:$AN$1,0)),\"\")","v":0.25937081923337801},{"$f":"IFERROR(INDEX('Data Annex'!$K$1:$AN$5027,MATCH(L$1&\"|\"&$B29,'Data Annex'!$K$1:$K$5027,0),MATCH(L$2,'Data Annex'!$K$1:$AN$1,0)),\"\")","v":0.27233358911001598},{"$f":"IFERROR(INDEX('Data Annex'!$K$1:$AN$5027,MATCH(M$1&\"|\"&$B29,'Data Annex'!$K$1:$K$5027,0),MATCH(M$2,'Data Annex'!$K$1:$AN$1,0)),\"\")","v":4.0451598818268597E-2},{"$f":"IFERROR(INDEX('Data Annex'!$K$1:$AN$5027,MATCH(N$1&\"|\"&$B29,'Data Annex'!$K$1:$K$5027,0),MATCH(N$2,'Data Annex'!$K$1:$AN$1,0)),\"\")","v":4.07306133421588E-2},{"$f":"IFERROR(INDEX('Data Annex'!$K$1:$AN$5027,MATCH(O$1&\"|\"&$B29,'Data Annex'!$K$1:$K$5027,0),MATCH(O$2,'Data Annex'!$K$1:$AN$1,0)),\"\")","v":3.5240051457062598E-2},{"$f":"IFERROR(INDEX('Data Annex'!$K$1:$AN$5027,MATCH(P$1&\"|\"&$B29,'Data Annex'!$K$1:$K$5027,0),MATCH(P$2,'Data Annex'!$K$1:$AN$1,0)),\"\")","v":4.7224086466908198E-2},{"$f":"IFERROR(INDEX('Data Annex'!$K$1:$AN$5027,MATCH(Q$1&\"|\"&$B29,'Data Annex'!$K$1:$K$5027,0),MATCH(Q$2,'Data Annex'!$K$1:$AN$1,0)),\"\")","v":1.6052082636527201E-2},{"$f":"IFERROR(INDEX('Data Annex'!$K$1:$AN$5027,MATCH(R$1&\"|\"&$B29,'Data Annex'!$K$1:$K$5027,0),MATCH(R$2,'Data Annex'!$K$1:$AN$1,0)),\"\")","v":1.59377287580975E-2},{"$f":"IFERROR(INDEX('Data Annex'!$K$1:$AN$5027,MATCH(S$1&\"|\"&$B29,'Data Annex'!$K$1:$K$5027,0),MATCH(S$2,'Data Annex'!$K$1:$AN$1,0)),\"\")","v":1.36583792562626E-2},{"$f":"IFERROR(INDEX('Data Annex'!$K$1:$AN$5027,MATCH(T$1&\"|\"&$B29,'Data Annex'!$K$1:$K$5027,0),MATCH(T$2,'Data Annex'!$K$1:$AN$1,0)),\"\")","v":1.8599133379721699E-2}]
[20,"LU",null,"LU",{"$f":"IFERROR(INDEX('Data Annex'!$K$1:$AN$5027,MATCH(E$1&\"|\"&$B30,'Data Annex'!$K$1:$K$5027,0),MATCH(E$2,'Data Annex'!$K$1:$AN$1,0)),\"\")","v":38.384819516672898},{"$f":"IFERROR(INDEX('Data Annex'!$K$1:$AN$5027,MATCH(F$1&\"|\"&$B30,'Data Annex'!$K$1:$K$5027,0),MATCH(F$2,'Data Annex'!$K$1:$AN$1,0)),\"\")","v":37.033339160596299},{"$f":"IFERROR(INDEX('Data Annex'!$K$1:$AN$5027,MATCH(G$1&\"|\"&$B30,'Data Annex'!$K$1:$K$5027,0),MATCH(G$2,'Data Annex'!$K$1:$AN$1,0)),\"\")","v":36.441157232819698},{"$f":"IFERROR(INDEX('Data Annex'!$K$1:$AN$5027,MATCH(H$1&\"|\"&$B30,'Data Annex'!$K$1:$K$5027,0),MATCH(H$2,'Data Annex'!$K$1:$AN$1,0)),\"\")","v":32.544901426970902},{"$f":"IFERROR(INDEX('Data Annex'!$K$1:$AN$5027,MATCH(I$1&\"|\"&$B30,'Data Annex'!$K$1:$K$5027,0),MATCH(I$2,'Data Annex'!$K$1:$AN$1,0)),\"\")","v":0.336988357120383},{"$f":"IFERROR(INDEX('Data Annex'!$K$1:$AN$5027,MATCH(J$1&\"|\"&$B30,'Data Annex'!$K$1:$K$5027,0),MATCH(J$2,'Data Annex'!$K$1:$AN$1,0)),\"\")","v":0.34576266462310501},{"$f":"IFERROR(INDEX('Data Annex'!$K$1:$AN$5027,MATCH(K$1&\"|\"&$B30,'Data Annex'!$K$1:$K$5027,0),MATCH(K$2,'Data Annex'!$K$1:$AN$1,0)),\"\")","v":0.35915450911500801},{"$f":"IFERROR(INDEX('Data Annex'!$K$1:$AN$5027,MATCH(L$1&\"|\"&$B30,'Data Annex'!$K$1:$K$5027,0),MATCH(L$2,'Data Annex'!$K$1:$AN$1,0)),\"\")","v":0.34079602758939198},{"$f":"IFERROR(INDEX('Data Annex'!$K$1:$AN$5027,MATCH(M$1&\"|\"&$B30,'Data Annex'!$K$1:$K$5027,0),MATCH(M$2,'Data Annex'!$K$1:$AN$1,0)),\"\")","v":0.29324340500000001},{"$f":"IFERROR(INDEX('Data Annex'!$K$1:$AN$5027,MATCH(N$1&\"|\"&$B30,'Data Annex'!$K$1:$K$5027,0),MATCH(N$2,'Data Annex'!$K$1:$AN$1,0)),\"\")","v":0.34126787753999999},{"$f":"IFERROR(INDEX('Data Annex'!$K$1:$AN$5027,MATCH(O$1&\"|\"&$B30,'Data Annex'!$K$1:$K$5027,0),MATCH(O$2,'Data Annex'!$K$1:$AN$1,0)),\"\")","v":0.40571959015895298},{"$f":"IFERROR(INDEX('Data Annex'!$K$1:$AN$5027,MATCH(P$1&\"|\"&$B30,'Data Annex'!$K$1:$K$5027,0),MATCH(P$2,'Data Annex'!$K$1:$AN$1,0)),\"\")","v":0.55602721116212905},{"$f":"IFERROR(INDEX('Data Annex'!$K$1:$AN$5027,MATCH(Q$1&\"|\"&$B30,'Data Annex'!$K$1:$K$5027,0),MATCH(Q$2,'Data Annex'!$K$1:$AN$1,0)),\"\")","v":7.6395671177410703E-3},{"$f":"IFERROR(INDEX('Data Annex'!$K$1:$AN$5027,MATCH(R$1&\"|\"&$B30,'Data Annex'!$K$1:$K$5027,0),MATCH(R$2,'Data Annex'!$K$1:$AN$1,0)),\"\")","v":9.2151527589796993E-3},{"$f":"IFERROR(INDEX('Data Annex'!$K$1:$AN$5027,MATCH(S$1&\"|\"&$B30,'Data Annex'!$K$1:$K$5027,0),MATCH(S$2,'Data Annex'!$K$1:$AN$1,0)),\"\")","v":1.1133553952934101E-2},{"$f":"IFERROR(INDEX('Data Annex'!$K$1:$AN$5027,MATCH(T$1&\"|\"&$B30,'Data Annex'!$K$1:$K$5027,0),MATCH(T$2,'Data Annex'!$K$1:$AN$1,0)),\"\")","v":1.7084925342601701E-2}]
[21,"LV",null,"LV",{"$f":"IFERROR(INDEX('Data Annex'!$K$1:$AN$5027,MATCH(E$1&\"|\"&$B31,'Data Annex'!$K$1:$K$5027,0),MATCH(E$2,'Data Annex'!$K$1:$AN$1,0)),\"\")","v":1.8598768328263},{"$f":"IFERROR(INDEX('Data Annex'!$K$1:$AN$5027,MATCH(F$1&\"|\"&$B31,'Data Annex'!$K$1:$K$5027,0),MATCH(F$2,'Data Annex'!$K$1:$AN$1,0)),\"\")","v":1.8634388753936499},{"$f":"IFERROR(INDEX('Data Annex'!$K$1:$AN$5027,MATCH(G$1&\"|\"&$B31,'Data Annex'!$K$1:$K$5027,0),MATCH(G$2,'Data Annex'!$K$1:$AN$1,0)),\"\")","v":1.81143108999909},{"$f":"IFERROR(INDEX('Data Annex'!$K$1:$AN$5027,MATCH(H$1&\"|\"&$B31,'Data Annex'!$K$1:$K$5027,0),MATCH(H$2,'Data Annex'!$K$1:$AN$1,0)),\"\")","v":1.7974155672383201},{"$f":"IFERROR(INDEX('Data Annex'!$K$1:$AN$5027,MATCH(I$1&\"|\"&$B31,'Data Annex'!$K$1:$K$5027,0),MATCH(I$2,'Data Annex'!$K$1:$AN$1,0)),\"\")","v":0.27027733345680299},{"$f":"IFERROR(INDEX('Data Annex'!$K$1:$AN$5027,MATCH(J$1&\"|\"&$B31,'Data Annex'!$K$1:$K$5027,0),MATCH(J$2,'Data Annex'!$K$1:$AN$1,0)),\"\")","v":0.28088710187381999},{"$f":"IFERROR(INDEX('Data Annex'!$K$1:$AN$5027,MATCH(K$1&\"|\"&$B31,'Data Annex'!$K$1:$K$5027,0),MATCH(K$2,'Data Annex'!$K$1:$AN$1,0)),\"\")","v":0.271624481322574},{"$f":"IFERROR(INDEX('Data Annex'!$K$1:$AN$5027,MATCH(L$1&\"|\"&$B31,'Data Annex'!$K$1:$K$5027,0),MATCH(L$2,'Data Annex'!$K$1:$AN$1,0)),\"\")","v":0.27699584713518599},{"$f":"IFERROR(INDEX('Data Annex'!$K$1:$AN$5027,MATCH(M$1&\"|\"&$B31,'Data Annex'!$K$1:$K$5027,0),MATCH(M$2,'Data Annex'!$K$1:$AN$1,0)),\"\")","v":3.3886364748740301E-2},{"$f":"IFERROR(INDEX('Data Annex'!$K$1:$AN$5027,MATCH(N$1&\"|\"&$B31,'Data Annex'!$K$1:$K$5027,0),MATCH(N$2,'Data Annex'!$K$1:$AN$1,0)),\"\")","v":5.2783631096105302E-2},{"$f":"IFERROR(INDEX('Data Annex'!$K$1:$AN$5027,MATCH(O$1&\"|\"&$B31,'Data Annex'!$K$1:$K$5027,0),MATCH(O$2,'Data Annex'!$K$1:$AN$1,0)),\"\")","v":3.4472232910381803E-2},{"$f":"IFERROR(INDEX('Data Annex'!$K$1:$AN$5027,MATCH(P$1&\"|\"&$B31,'Data Annex'!$K$1:$K$5027,0),MATCH(P$2,'Data Annex'!$K$1:$AN$1,0)),\"\")","v":3.3547839204912902E-2},{"$f":"IFERROR(INDEX('Data Annex'!$K$1:$AN$5027,MATCH(Q$1&\"|\"&$B31,'Data Annex'!$K$1:$K$5027,0),MATCH(Q$2,'Data Annex'!$K$1:$AN$1,0)),\"\")","v":1.82196821588697E-2},{"$f":"IFERROR(INDEX('Data Annex'!$K$1:$AN$5027,MATCH(R$1&\"|\"&$B31,'Data Annex'!$K$1:$K$5027,0),MATCH(R$2,'Data Annex'!$K$1:$AN$1,0)),\"\")","v":2.8325925681332E-2},{"$f":"IFERROR(INDEX('Data Annex'!$K$1:$AN$5027,MATCH(S$1&\"|\"&$B31,'Data Annex'!$K$1:$K$5027,0),MATCH(S$2,'Data Annex'!$K$1:$AN$1,0)),\"\")","v":1.90303860305274E-2},{"$f":"IFERROR(INDEX('Data Annex'!$K$1:$AN$5027,MATCH(T$1&\"|\"&$B31,'Data Annex'!$K$1:$K$5027,0),MATCH(T$2,'Data Annex'!$K$1:$AN$1,0)),\"\")","v":1.8664486842326699E-2}]
[22,"MT",null,"MT",{"$f":"IFERROR(INDEX('Data Annex'!$K$1:$AN$5027,MATCH(E$1&\"|\"&$B32,'Data Annex'!$K$1:$K$5027,0),MATCH(E$2,'Data Annex'!$K$1:$AN$1,0)),\"\")","v":0.63447541089286896},{"$f":"IFERROR(INDEX('Data Annex'!$K$1:$AN$5027,MATCH(F$1&\"|\"&$B32,'Data Annex'!$K$1:$K$5027,0),MATCH(F$2,'Data Annex'!$K$1:$AN$1,0)),\"\")","v":0.63915822568761804},{"$f":"IFERROR(INDEX('Data Annex'!$K$1:$AN$5027,MATCH(G$1&\"|\"&$B32,'Data Annex'!$K$1:$K$5027,0),MATCH(G$2,'Data Annex'!$K$1:$AN$1,0)),\"\")","v":0.64921764329265996},{"$f":"IFERROR(INDEX('Data Annex'!$K$1:$AN$5027,MATCH(H$1&\"|\"&$B32,'Data Annex'!$K$1:$K$5027,0),MATCH(H$2,'Data Annex'!$K$1:$AN$1,0)),\"\")","v":0.53868199998999999},{"$f":"IFERROR(INDEX('Data Annex'!$K$1:$AN$5027,MATCH(I$1&\"|\"&$B32,'Data Annex'!$K$1:$K$5027,0),MATCH(I$2,'Data Annex'!$K$1:$AN$1,0)),\"\")","v":9.9956762125446505E-2},{"$f":"IFERROR(INDEX('Data Annex'!$K$1:$AN$5027,MATCH(J$1&\"|\"&$B32,'Data Annex'!$K$1:$K$5027,0),MATCH(J$2,'Data Annex'!$K$1:$AN$1,0)),\"\")","v":0.101871680637691},{"$f":"IFERROR(INDEX('Data Annex'!$K$1:$AN$5027,MATCH(K$1&\"|\"&$B32,'Data Annex'!$K$1:$K$5027,0),MATCH(K$2,'Data Annex'!$K$1:$AN$1,0)),\"\")","v":0.109508509328698},{"$f":"IFERROR(INDEX('Data Annex'!$K$1:$AN$5027,MATCH(L$1&\"|\"&$B32,'Data Annex'!$K$1:$K$5027,0),MATCH(L$2,'Data Annex'!$K$1:$AN$1,0)),\"\")","v":9.2986622041822301E-2},{"$f":"IFERROR(INDEX('Data Annex'!$K$1:$AN$5027,MATCH(M$1&\"|\"&$B32,'Data Annex'!$K$1:$K$5027,0),MATCH(M$2,'Data Annex'!$K$1:$AN$1,0)),\"\")","v":4.829096678E-2},{"$f":"IFERROR(INDEX('Data Annex'!$K$1:$AN$5027,MATCH(N$1&\"|\"&$B32,'Data Annex'!$K$1:$K$5027,0),MATCH(N$2,'Data Annex'!$K$1:$AN$1,0)),\"\")","v":4.669135076E-2},{"$f":"IFERROR(INDEX('Data Annex'!$K$1:$AN$5027,MATCH(O$1&\"|\"&$B32,'Data Annex'!$K$1:$K$5027,0),MATCH(O$2,'Data Annex'!$K$1:$AN$1,0)),\"\")","v":4.5020462949999999E-2},{"$f":"IFERROR(INDEX('Data Annex'!$K$1:$AN$5027,MATCH(P$1&\"|\"&$B32,'Data Annex'!$K$1:$K$5027,0),MATCH(P$2,'Data Annex'!$K$1:$AN$1,0)),\"\")","v":5.6193961870000003E-2},{"$f":"IFERROR(INDEX('Data Annex'!$K$1:$AN$5027,MATCH(Q$1&\"|\"&$B32,'Data Annex'!$K$1:$K$5027,0),MATCH(Q$2,'Data Annex'!$K$1:$AN$1,0)),\"\")","v":7.6111644282703297E-2},{"$f":"IFERROR(INDEX('Data Annex'!$K$1:$AN$5027,MATCH(R$1&\"|\"&$B32,'Data Annex'!$K$1:$K$5027,0),MATCH(R$2,'Data Annex'!$K$1:$AN$1,0)),\"\")","v":7.3051317942077004E-2},{"$f":"IFERROR(INDEX('Data Annex'!$K$1:$AN$5027,MATCH(S$1&\"|\"&$B32,'Data Annex'!$K$1:$K$5027,0),MATCH(S$2,'Data Annex'!$K$1:$AN$1,0)),\"\")","v":6.9345716979699101E-2},{"$f":"IFERROR(INDEX('Data Annex'!$K$1:$AN$5027,MATCH(T$1&\"|\"&$B32,'Data Annex'!$K$1:$K$5027,0),MATCH(T$2,'Data Annex'!$K$1:$AN$1,0)),\"\")","v":0.10431750433659}]
[23,"NL",null,"NL",{"$f":"IFERROR(INDEX('Data Annex'!$K$1:$AN$5027,MATCH(E$1&\"|\"&$B33,'Data Annex'!$K$1:$K$5027,0),MATCH(E$2,'Data Annex'!$K$1:$AN$1,0)),\"\")","v":100.55689918563201},{"$f":"IFERROR(INDEX('Data Annex'!$K$1:$AN$5027,MATCH(F$1&\"|\"&$B33,'Data Annex'!$K$1:$K$5027,0),MATCH(F$2,'Data Annex'!$K$1:$AN$1,0)),\"\")","v":99.439006456407498},{"$f":"IFERROR(INDEX('Data Annex'!$K$1:$AN$5027,MATCH(G$1&\"|\"&$B33,'Data Annex'!$K$1:$K$5027,0),MATCH(G$2,'Data Annex'!$K$1:$AN$1,0)),\"\")","v":99.406252899417197},{"$f":"IFERROR(INDEX('Data Annex'!$K$1:$AN$5027,MATCH(H$1&\"|\"&$B33,'Data Annex'!$K$1:$K$5027,0),MATCH(H$2,'Data Annex'!$K$1:$AN$1,0)),\"\")","v":96.750019485369705},{"$f":"IFERROR(INDEX('Data Annex'!$K$1:$AN$5027,MATCH(I$1&\"|\"&$B33,'Data Annex'!$K$1:$K$5027,0),MATCH(I$2,'Data Annex'!$K$1:$AN$1,0)),\"\")","v":0.31050404295725098},{"$f":"IFERROR(INDEX('Data Annex'!$K$1:$AN$5027,MATCH(J$1&\"|\"&$B33,'Data Annex'!$K$1:$K$5027,0),MATCH(J$2,'Data Annex'!$K$1:$AN$1,0)),\"\")","v":0.31101545290098498},{"$f":"IFERROR(INDEX('Data Annex'!$K$1:$AN$5027,MATCH(K$1&\"|\"&$B33,'Data Annex'!$K$1:$K$5027,0),MATCH(K$2,'Data Annex'!$K$1:$AN$1,0)),\"\")","v":0.32035728824461102},{"$f":"IFERROR(INDEX('Data Annex'!$K$1:$AN$5027,MATCH(L$1&\"|\"&$B33,'Data Annex'!$K$1:$K$5027,0),MATCH(L$2,'Data Annex'!$K$1:$AN$1,0)),\"\")","v":0.31942821777914598},{"$f":"IFERROR(INDEX('Data Annex'!$K$1:$AN$5027,MATCH(M$1&\"|\"&$B33,'Data Annex'!$K$1:$K$5027,0),MATCH(M$2,'Data Annex'!$K$1:$AN$1,0)),\"\")","v":1.60093413831243},{"$f":"IFERROR(INDEX('Data Annex'!$K$1:$AN$5027,MATCH(N$1&\"|\"&$B33,'Data Annex'!$K$1:$K$5027,0),MATCH(N$2,'Data Annex'!$K$1:$AN$1,0)),\"\")","v":1.4493298628606699},{"$f":"IFERROR(INDEX('Data Annex'!$K$1:$AN$5027,MATCH(O$1&\"|\"&$B33,'Data Annex'!$K$1:$K$5027,0),MATCH(O$2,'Data Annex'!$K$1:$AN$1,0)),\"\")","v":1.2926456399995201},{"$f":"IFERROR(INDEX('Data Annex'!$K$1:$AN$5027,MATCH(P$1&\"|\"&$B33,'Data Annex'!$K$1:$K$5027,0),MATCH(P$2,'Data Annex'!$K$1:$AN$1,0)),\"\")","v":1.34171396321579},{"$f":"IFERROR(INDEX('Data Annex'!$K$1:$AN$5027,MATCH(Q$1&\"|\"&$B33,'Data Annex'!$K$1:$K$5027,0),MATCH(Q$2,'Data Annex'!$K$1:$AN$1,0)),\"\")","v":1.5920679250033799E-2},{"$f":"IFERROR(INDEX('Data Annex'!$K$1:$AN$5027,MATCH(R$1&\"|\"&$B33,'Data Annex'!$K$1:$K$5027,0),MATCH(R$2,'Data Annex'!$K$1:$AN$1,0)),\"\")","v":1.4575063795473801E-2},{"$f":"IFERROR(INDEX('Data Annex'!$K$1:$AN$5027,MATCH(S$1&\"|\"&$B33,'Data Annex'!$K$1:$K$5027,0),MATCH(S$2,'Data Annex'!$K$1:$AN$1,0)),\"\")","v":1.3003665285597901E-2},{"$f":"IFERROR(INDEX('Data Annex'!$K$1:$AN$5027,MATCH(T$1&\"|\"&$B33,'Data Annex'!$K$1:$K$5027,0),MATCH(T$2,'Data Annex'!$K$1:$AN$1,0)),\"\")","v":1.38678417880699E-2}]
[24,"NO",null,"NO",{"$f":"IFERROR(INDEX('Data Annex'!$K$1:$AN$5027,MATCH(E$1&\"|\"&$B34,'Data Annex'!$K$1:$K$5027,0),MATCH(E$2,'Data Annex'!$K$1:$AN$1,0)),\"\")","v":40.436899577297602},{"$f":"IFERROR(INDEX('Data Annex'!$K$1:$AN$5027,MATCH(F$1&\"|\"&$B34,'Data Annex'!$K$1:$K$5027,0),MATCH(F$2,'Data Annex'!$K$1:$AN$1,0)),\"\")","v":37.7049943098528},{"$f":"IFERROR(INDEX('Data Annex'!$K$1:$AN$5027,MATCH(G$1&\"|\"&$B34,'Data Annex'!$K$1:$K$5027,0),MATCH(G$2,'Data Annex'!$K$1:$AN$1,0)),\"\")","v":40.136902783043702},{"$f":"IFERROR(INDEX('Data Annex'!$K$1:$AN$5027,MATCH(H$1&\"|\"&$B34,'Data Annex'!$K$1:$K$5027,0),MATCH(H$2,'Data Annex'!$K$1:$AN$1,0)),\"\")","v":43.948762846601703},{"$f":"IFERROR(INDEX('Data Annex'!$K$1:$AN$5027,MATCH(I$1&\"|\"&$B34,'Data Annex'!$K$1:$K$5027,0),MATCH(I$2,'Data Annex'!$K$1:$AN$1,0)),\"\")","v":0.35140872810242102},{"$f":"IFERROR(INDEX('Data Annex'!$K$1:$AN$5027,MATCH(J$1&\"|\"&$B34,'Data Annex'!$K$1:$K$5027,0),MATCH(J$2,'Data Annex'!$K$1:$AN$1,0)),\"\")","v":0.33402479071741098},{"$f":"IFERROR(INDEX('Data Annex'!$K$1:$AN$5027,MATCH(K$1&\"|\"&$B34,'Data Annex'!$K$1:$K$5027,0),MATCH(K$2,'Data Annex'!$K$1:$AN$1,0)),\"\")","v":0.35475767580912099},{"$f":"IFERROR(INDEX('Data Annex'!$K$1:$AN$5027,MATCH(L$1&\"|\"&$B34,'Data Annex'!$K$1:$K$5027,0),MATCH(L$2,'Data Annex'!$K$1:$AN$1,0)),\"\")","v":0.35614619852227702},{"$f":"IFERROR(INDEX('Data Annex'!$K$1:$AN$5027,MATCH(M$1&\"|\"&$B34,'Data Annex'!$K$1:$K$5027,0),MATCH(M$2,'Data Annex'!$K$1:$AN$1,0)),\"\")","v":0.235107821478172},{"$f":"IFERROR(INDEX('Data Annex'!$K$1:$AN$5027,MATCH(N$1&\"|\"&$B34,'Data Annex'!$K$1:$K$5027,0),MATCH(N$2,'Data Annex'!$K$1:$AN$1,0)),\"\")","v":0.26430706292642497},{"$f":"IFERROR(INDEX('Data Annex'!$K$1:$AN$5027,MATCH(O$1&\"|\"&$B34,'Data Annex'!$K$1:$K$5027,0),MATCH(O$2,'Data Annex'!$K$1:$AN$1,0)),\"\")","v":0.240022600249023},{"$f":"IFERROR(INDEX('Data Annex'!$K$1:$AN$5027,MATCH(P$1&\"|\"&$B34,'Data Annex'!$K$1:$K$5027,0),MATCH(P$2,'Data Annex'!$K$1:$AN$1,0)),\"\")","v":0.32049414449444502},{"$f":"IFERROR(INDEX('Data Annex'!$K$1:$AN$5027,MATCH(Q$1&\"|\"&$B34,'Data Annex'!$K$1:$K$5027,0),MATCH(Q$2,'Data Annex'!$K$1:$AN$1,0)),\"\")","v":5.8141901069529303E-3},{"$f":"IFERROR(INDEX('Data Annex'!$K$1:$AN$5027,MATCH(R$1&\"|\"&$B34,'Data Annex'!$K$1:$K$5027,0),MATCH(R$2,'Data Annex'!$K$1:$AN$1,0)),\"\")","v":7.00986879229837E-3},{"$f":"IFERROR(INDEX('Data Annex'!$K$1:$AN$5027,MATCH(S$1&\"|\"&$B34,'Data Annex'!$K$1:$K$5027,0),MATCH(S$2,'Data Annex'!$K$1:$AN$1,0)),\"\")","v":5.9800977057558003E-3},{"$f":"IFERROR(INDEX('Data Annex'!$K$1:$AN$5027,MATCH(T$1&\"|\"&$B34,'Data Annex'!$K$1:$K$5027,0),MATCH(T$2,'Data Annex'!$K$1:$AN$1,0)),\"\")","v":7.2924497468357602E-3}]
[25,"PL",null,"PL",{"$f":"IFERROR(INDEX('Data Annex'!$K$1:$AN$5027,MATCH(E$1&\"|\"&$B35,'Data Annex'!$K$1:$K$5027,0),MATCH(E$2,'Data Annex'!$K$1:$AN$1,0)),\"\")","v":14.1304084921086},{"$f":"IFERROR(INDEX('Data Annex'!$K$1:$AN$5027,MATCH(F$1&\"|\"&$B35,'Data Annex'!$K$1:$K$5027,0),MATCH(F$2,'Data Annex'!$K$1:$AN$1,0)),\"\")","v":14.2937737536023},{"$f":"IFERROR(INDEX('Data Annex'!$K$1:$AN$5027,MATCH(G$1&\"|\"&$B35,'Data Annex'!$K$1:$K$5027,0),MATCH(G$2,'Data Annex'!$K$1:$AN$1,0)),\"\")","v":14.3674579076855},{"$f":"IFERROR(INDEX('Data Annex'!$K$1:$AN$5027,MATCH(H$1&\"|\"&$B35,'Data Annex'!$K$1:$K$5027,0),MATCH(H$2,'Data Annex'!$K$1:$AN$1,0)),\"\")","v":14.223536134724601},{"$f":"IFERROR(INDEX('Data Annex'!$K$1:$AN$5027,MATCH(I$1&\"|\"&$B35,'Data Annex'!$K$1:$K$5027,0),MATCH(I$2,'Data Annex'!$K$1:$AN$1,0)),\"\")","v":0.18844088568229},{"$f":"IFERROR(INDEX('Data Annex'!$K$1:$AN$5027,MATCH(J$1&\"|\"&$B35,'Data Annex'!$K$1:$K$5027,0),MATCH(J$2,'Data Annex'!$K$1:$AN$1,0)),\"\")","v":0.193873662095914},{"$f":"IFERROR(INDEX('Data Annex'!$K$1:$AN$5027,MATCH(K$1&\"|\"&$B35,'Data Annex'!$K$1:$K$5027,0),MATCH(K$2,'Data Annex'!$K$1:$AN$1,0)),\"\")","v":0.201085670616137},{"$f":"IFERROR(INDEX('Data Annex'!$K$1:$AN$5027,MATCH(L$1&\"|\"&$B35,'Data Annex'!$K$1:$K$5027,0),MATCH(L$2,'Data Annex'!$K$1:$AN$1,0)),\"\")","v":0.20043422827663099},{"$f":"IFERROR(INDEX('Data Annex'!$K$1:$AN$5027,MATCH(M$1&\"|\"&$B35,'Data Annex'!$K$1:$K$5027,0),MATCH(M$2,'Data Annex'!$K$1:$AN$1,0)),\"\")","v":0.50508844177293699},{"$f":"IFERROR(INDEX('Data Annex'!$K$1:$AN$5027,MATCH(N$1&\"|\"&$B35,'Data Annex'!$K$1:$K$5027,0),MATCH(N$2,'Data Annex'!$K$1:$AN$1,0)),\"\")","v":0.50291117279304998},{"$f":"IFERROR(INDEX('Data Annex'!$K$1:$AN$5027,MATCH(O$1&\"|\"&$B35,'Data Annex'!$K$1:$K$5027,0),MATCH(O$2,'Data Annex'!$K$1:$AN$1,0)),\"\")","v":0.50214043415334497},{"$f":"IFERROR(INDEX('Data Annex'!$K$1:$AN$5027,MATCH(P$1&\"|\"&$B35,'Data Annex'!$K$1:$K$5027,0),MATCH(P$2,'Data Annex'!$K$1:$AN$1,0)),\"\")","v":0.455763519670977},{"$f":"IFERROR(INDEX('Data Annex'!$K$1:$AN$5027,MATCH(Q$1&\"|\"&$B35,'Data Annex'!$K$1:$K$5027,0),MATCH(Q$2,'Data Annex'!$K$1:$AN$1,0)),\"\")","v":3.5744786999966298E-2},{"$f":"IFERROR(INDEX('Data Annex'!$K$1:$AN$5027,MATCH(R$1&\"|\"&$B35,'Data Annex'!$K$1:$K$5027,0),MATCH(R$2,'Data Annex'!$K$1:$AN$1,0)),\"\")","v":3.5183932631248298E-2},{"$f":"IFERROR(INDEX('Data Annex'!$K$1:$AN$5027,MATCH(S$1&\"|\"&$B35,'Data Annex'!$K$1:$K$5027,0),MATCH(S$2,'Data Annex'!$K$1:$AN$1,0)),\"\")","v":3.4949845503618099E-2},{"$f":"IFERROR(INDEX('Data Annex'!$K$1:$AN$5027,MATCH(T$1&\"|\"&$B35,'Data Annex'!$K$1:$K$5027,0),MATCH(T$2,'Data Annex'!$K$1:$AN$1,0)),\"\")","v":3.2042912209313497E-2}]
[26,"PT",null,"PT",{"$f":"IFERROR(INDEX('Data Annex'!$K$1:$AN$5027,MATCH(E$1&\"|\"&$B36,'Data Annex'!$K$1:$K$5027,0),MATCH(E$2,'Data Annex'!$K$1:$AN$1,0)),\"\")","v":9.1146019126379407},{"$f":"IFERROR(INDEX('Data Annex'!$K$1:$AN$5027,MATCH(F$1&\"|\"&$B36,'Data Annex'!$K$1:$K$5027,0),MATCH(F$2,'Data Annex'!$K$1:$AN$1,0)),\"\")","v":9.0161116047478895},{"$f":"IFERROR(INDEX('Data Annex'!$K$1:$AN$5027,MATCH(G$1&\"|\"&$B36,'Data Annex'!$K$1:$K$5027,0),MATCH(G$2,'Data Annex'!$K$1:$AN$1,0)),\"\")","v":9.2266759450271003},{"$f":"IFERROR(INDEX('Data Annex'!$K$1:$AN$5027,MATCH(H$1&\"|\"&$B36,'Data Annex'!$K$1:$K$5027,0),MATCH(H$2,'Data Annex'!$K$1:$AN$1,0)),\"\")","v":9.3298868097718302},{"$f":"IFERROR(INDEX('Data Annex'!$K$1:$AN$5027,MATCH(I$1&\"|\"&$B36,'Data Annex'!$K$1:$K$5027,0),MATCH(I$2,'Data Annex'!$K$1:$AN$1,0)),\"\")","v":0.125619046652786},{"$f":"IFERROR(INDEX('Data Annex'!$K$1:$AN$5027,MATCH(J$1&\"|\"&$B36,'Data Annex'!$K$1:$K$5027,0),MATCH(J$2,'Data Annex'!$K$1:$AN$1,0)),\"\")","v":0.119335503457178},{"$f":"IFERROR(INDEX('Data Annex'!$K$1:$AN$5027,MATCH(K$1&\"|\"&$B36,'Data Annex'!$K$1:$K$5027,0),MATCH(K$2,'Data Annex'!$K$1:$AN$1,0)),\"\")","v":0.120102332631132},{"$f":"IFERROR(INDEX('Data Annex'!$K$1:$AN$5027,MATCH(L$1&\"|\"&$B36,'Data Annex'!$K$1:$K$5027,0),MATCH(L$2,'Data Annex'!$K$1:$AN$1,0)),\"\")","v":0.12287575240258999},{"$f":"IFERROR(INDEX('Data Annex'!$K$1:$AN$5027,MATCH(M$1&\"|\"&$B36,'Data Annex'!$K$1:$K$5027,0),MATCH(M$2,'Data Annex'!$K$1:$AN$1,0)),\"\")","v":1.1514780965},{"$f":"IFERROR(INDEX('Data Annex'!$K$1:$AN$5027,MATCH(N$1&\"|\"&$B36,'Data Annex'!$K$1:$K$5027,0),MATCH(N$2,'Data Annex'!$K$1:$AN$1,0)),\"\")","v":1.0179589980399999},{"$f":"IFERROR(INDEX('Data Annex'!$K$1:$AN$5027,MATCH(O$1&\"|\"&$B36,'Data Annex'!$K$1:$K$5027,0),MATCH(O$2,'Data Annex'!$K$1:$AN$1,0)),\"\")","v":1.0298688254699999},{"$f":"IFERROR(INDEX('Data Annex'!$K$1:$AN$5027,MATCH(P$1&\"|\"&$B36,'Data Annex'!$K$1:$K$5027,0),MATCH(P$2,'Data Annex'!$K$1:$AN$1,0)),\"\")","v":1.003088354},{"$f":"IFERROR(INDEX('Data Annex'!$K$1:$AN$5027,MATCH(Q$1&\"|\"&$B36,'Data Annex'!$K$1:$K$5027,0),MATCH(Q$2,'Data Annex'!$K$1:$AN$1,0)),\"\")","v":0.126333339353352},{"$f":"IFERROR(INDEX('Data Annex'!$K$1:$AN$5027,MATCH(R$1&\"|\"&$B36,'Data Annex'!$K$1:$K$5027,0),MATCH(R$2,'Data Annex'!$K$1:$AN$1,0)),\"\")","v":0.112904436265401},{"$f":"IFERROR(INDEX('Data Annex'!$K$1:$AN$5027,MATCH(S$1&\"|\"&$B36,'Data Annex'!$K$1:$K$5027,0),MATCH(S$2,'Data Annex'!$K$1:$AN$1,0)),\"\")","v":0.111618618840198},{"$f":"IFERROR(INDEX('Data Annex'!$K$1:$AN$5027,MATCH(T$1&\"|\"&$B36,'Data Annex'!$K$1:$K$5027,0),MATCH(T$2,'Data Annex'!$K$1:$AN$1,0)),\"\")","v":0.10751345374837699}]
[27,"RO",null,"RO",{"$f":"IFERROR(INDEX('Data Annex'!$K$1:$AN$5027,MATCH(E$1&\"|\"&$B37,'Data Annex'!$K$1:$K$5027,0),MATCH(E$2,'Data Annex'!$K$1:$AN$1,0)),\"\")","v":3.00197605254121},{"$f":"IFERROR(INDEX('Data Annex'!$K$1:$AN$5027,MATCH(F$1&\"|\"&$B37,'Data Annex'!$K$1:$K$5027,0),MATCH(F$2,'Data Annex'!$K$1:$AN$1,0)),\"\")","v":3.09070489671875},{"$f":"IFERROR(INDEX('Data Annex'!$K$1:$AN$5027,MATCH(G$1&\"|\"&$B37,'Data Annex'!$K$1:$K$5027,0),MATCH(G$2,'Data Annex'!$K$1:$AN$1,0)),\"\")","v":3.72120905465348},{"$f":"IFERROR(INDEX('Data Annex'!$K$1:$AN$5027,MATCH(H$1&\"|\"&$B37,'Data Annex'!$K$1:$K$5027,0),MATCH(H$2,'Data Annex'!$K$1:$AN$1,0)),\"\")","v":3.60046867682816},{"$f":"IFERROR(INDEX('Data Annex'!$K$1:$AN$5027,MATCH(I$1&\"|\"&$B37,'Data Annex'!$K$1:$K$5027,0),MATCH(I$2,'Data Annex'!$K$1:$AN$1,0)),\"\")","v":0.13019432922558999},{"$f":"IFERROR(INDEX('Data Annex'!$K$1:$AN$5027,MATCH(J$1&\"|\"&$B37,'Data Annex'!$K$1:$K$5027,0),MATCH(J$2,'Data Annex'!$K$1:$AN$1,0)),\"\")","v":0.14066015255875},{"$f":"IFERROR(INDEX('Data Annex'!$K$1:$AN$5027,MATCH(K$1&\"|\"&$B37,'Data Annex'!$K$1:$K$5027,0),MATCH(K$2,'Data Annex'!$K$1:$AN$1,0)),\"\")","v":0.14028143999267401},{"$f":"IFERROR(INDEX('Data Annex'!$K$1:$AN$5027,MATCH(L$1&\"|\"&$B37,'Data Annex'!$K$1:$K$5027,0),MATCH(L$2,'Data Annex'!$K$1:$AN$1,0)),\"\")","v":0.13393802162509},{"$f":"IFERROR(INDEX('Data Annex'!$K$1:$AN$5027,MATCH(M$1&\"|\"&$B37,'Data Annex'!$K$1:$K$5027,0),MATCH(M$2,'Data Annex'!$K$1:$AN$1,0)),\"\")","v":0.31320607075912898},{"$f":"IFERROR(INDEX('Data Annex'!$K$1:$AN$5027,MATCH(N$1&\"|\"&$B37,'Data Annex'!$K$1:$K$5027,0),MATCH(N$2,'Data Annex'!$K$1:$AN$1,0)),\"\")","v":0.30651082892436399},{"$f":"IFERROR(INDEX('Data Annex'!$K$1:$AN$5027,MATCH(O$1&\"|\"&$B37,'Data Annex'!$K$1:$K$5027,0),MATCH(O$2,'Data Annex'!$K$1:$AN$1,0)),\"\")","v":0.31491567967825002},{"$f":"IFERROR(INDEX('Data Annex'!$K$1:$AN$5027,MATCH(P$1&\"|\"&$B37,'Data Annex'!$K$1:$K$5027,0),MATCH(P$2,'Data Annex'!$K$1:$AN$1,0)),\"\")","v":0.38704612284818601},{"$f":"IFERROR(INDEX('Data Annex'!$K$1:$AN$5027,MATCH(Q$1&\"|\"&$B37,'Data Annex'!$K$1:$K$5027,0),MATCH(Q$2,'Data Annex'!$K$1:$AN$1,0)),\"\")","v":0.10433330089159},{"$f":"IFERROR(INDEX('Data Annex'!$K$1:$AN$5027,MATCH(R$1&\"|\"&$B37,'Data Annex'!$K$1:$K$5027,0),MATCH(R$2,'Data Annex'!$K$1:$AN$1,0)),\"\")","v":9.91718197521127E-2},{"$f":"IFERROR(INDEX('Data Annex'!$K$1:$AN$5027,MATCH(S$1&\"|\"&$B37,'Data Annex'!$K$1:$K$5027,0),MATCH(S$2,'Data Annex'!$K$1:$AN$1,0)),\"\")","v":8.4627247502915406E-2},{"$f":"IFERROR(INDEX('Data Annex'!$K$1:$AN$5027,MATCH(T$1&\"|\"&$B37,'Data Annex'!$K$1:$K$5027,0),MATCH(T$2,'Data Annex'!$K$1:$AN$1,0)),\"\")","v":0.107498816845465}]
[28,"SE",null,"SE",{"$f":"IFERROR(INDEX('Data Annex'!$K$1:$AN$5027,MATCH(E$1&\"|\"&$B38,'Data Annex'!$K$1:$K$5027,0),MATCH(E$2,'Data Annex'!$K$1:$AN$1,0)),\"\")","v":130.745125703242},{"$f":"IFERROR(INDEX('Data Annex'!$K$1:$AN$5027,MATCH(F$1&\"|\"&$B38,'Data Annex'!$K$1:$K$5027,0),MATCH(F$2,'Data Annex'!$K$1:$AN$1,0)),\"\")","v":140.073810532393},{"$f":"IFERROR(INDEX('Data Annex'!$K$1:$AN$5027,MATCH(G$1&\"|\"&$B38,'Data Annex'!$K$1:$K$5027,0),MATCH(G$2,'Data Annex'!$K$1:$AN$1,0)),\"\")","v":136.221898465083},{"$f":"IFERROR(INDEX('Data Annex'!$K$1:$AN$5027,MATCH(H$1&\"|\"&$B38,'Data Annex'!$K$1:$K$5027,0),MATCH(H$2,'Data Annex'!$K$1:$AN$1,0)),\"\")","v":145.865959431226},{"$f":"IFERROR(INDEX('Data Annex'!$K$1:$AN$5027,MATCH(I$1&\"|\"&$B38,'Data Annex'!$K$1:$K$5027,0),MATCH(I$2,'Data Annex'!$K$1:$AN$1,0)),\"\")","v":0.58045399378819496},{"$f":"IFERROR(INDEX('Data Annex'!$K$1:$AN$5027,MATCH(J$1&\"|\"&$B38,'Data Annex'!$K$1:$K$5027,0),MATCH(J$2,'Data Annex'!$K$1:$AN$1,0)),\"\")","v":0.58988192840238496},{"$f":"IFERROR(INDEX('Data Annex'!$K$1:$AN$5027,MATCH(K$1&\"|\"&$B38,'Data Annex'!$K$1:$K$5027,0),MATCH(K$2,'Data Annex'!$K$1:$AN$1,0)),\"\")","v":0.59447480517681806},{"$f":"IFERROR(INDEX('Data Annex'!$K$1:$AN$5027,MATCH(L$1&\"|\"&$B38,'Data Annex'!$K$1:$K$5027,0),MATCH(L$2,'Data Annex'!$K$1:$AN$1,0)),\"\")","v":0.61333087302598199},{"$f":"IFERROR(INDEX('Data Annex'!$K$1:$AN$5027,MATCH(M$1&\"|\"&$B38,'Data Annex'!$K$1:$K$5027,0),MATCH(M$2,'Data Annex'!$K$1:$AN$1,0)),\"\")","v":0.18536360130329599},{"$f":"IFERROR(INDEX('Data Annex'!$K$1:$AN$5027,MATCH(N$1&\"|\"&$B38,'Data Annex'!$K$1:$K$5027,0),MATCH(N$2,'Data Annex'!$K$1:$AN$1,0)),\"\")","v":0.19415971129894299},{"$f":"IFERROR(INDEX('Data Annex'!$K$1:$AN$5027,MATCH(O$1&\"|\"&$B38,'Data Annex'!$K$1:$K$5027,0),MATCH(O$2,'Data Annex'!$K$1:$AN$1,0)),\"\")","v":0.249260374921741},{"$f":"IFERROR(INDEX('Data Annex'!$K$1:$AN$5027,MATCH(P$1&\"|\"&$B38,'Data Annex'!$K$1:$K$5027,0),MATCH(P$2,'Data Annex'!$K$1:$AN$1,0)),\"\")","v":0.23455278083647799},{"$f":"IFERROR(INDEX('Data Annex'!$K$1:$AN$5027,MATCH(Q$1&\"|\"&$B38,'Data Annex'!$K$1:$K$5027,0),MATCH(Q$2,'Data Annex'!$K$1:$AN$1,0)),\"\")","v":1.41774770039247E-3},{"$f":"IFERROR(INDEX('Data Annex'!$K$1:$AN$5027,MATCH(R$1&\"|\"&$B38,'Data Annex'!$K$1:$K$5027,0),MATCH(R$2,'Data Annex'!$K$1:$AN$1,0)),\"\")","v":1.3861242909076301E-3},{"$f":"IFERROR(INDEX('Data Annex'!$K$1:$AN$5027,MATCH(S$1&\"|\"&$B38,'Data Annex'!$K$1:$K$5027,0),MATCH(S$2,'Data Annex'!$K$1:$AN$1,0)),\"\")","v":1.82981134259873E-3},{"$f":"IFERROR(INDEX('Data Annex'!$K$1:$AN$5027,MATCH(T$1&\"|\"&$B38,'Data Annex'!$K$1:$K$5027,0),MATCH(T$2,'Data Annex'!$K$1:$AN$1,0)),\"\")","v":1.6080021805708999E-3}]
[29,"SI",null,"SI",{"$f":"IFERROR(INDEX('Data Annex'!$K$1:$AN$5027,MATCH(E$1&\"|\"&$B39,'Data Annex'!$K$1:$K$5027,0),MATCH(E$2,'Data Annex'!$K$1:$AN$1,0)),\"\")","v":0.72319660836658095},{"$f":"IFERROR(INDEX('Data Annex'!$K$1:$AN$5027,MATCH(F$1&\"|\"&$B39,'Data Annex'!$K$1:$K$5027,0),MATCH(F$2,'Data Annex'!$K$1:$AN$1,0)),\"\")","v":0.69173353651789105},{"$f":"IFERROR(INDEX('Data Annex'!$K$1:$AN$5027,MATCH(G$1&\"|\"&$B39,'Data Annex'!$K$1:$K$5027,0),MATCH(G$2,'Data Annex'!$K$1:$AN$1,0)),\"\")","v":0.67762707051188797},{"$f":"IFERROR(INDEX('Data Annex'!$K$1:$AN$5027,MATCH(H$1&\"|\"&$B39,'Data Annex'!$K$1:$K$5027,0),MATCH(H$2,'Data Annex'!$K$1:$AN$1,0)),\"\")","v":0.68404578283625705},{"$f":"IFERROR(INDEX('Data Annex'!$K$1:$AN$5027,MATCH(I$1&\"|\"&$B39,'Data Annex'!$K$1:$K$5027,0),MATCH(I$2,'Data Annex'!$K$1:$AN$1,0)),\"\")","v":8.0505414733102604E-2},{"$f":"IFERROR(INDEX('Data Annex'!$K$1:$AN$5027,MATCH(J$1&\"|\"&$B39,'Data Annex'!$K$1:$K$5027,0),MATCH(J$2,'Data Annex'!$K$1:$AN$1,0)),\"\")","v":8.1650712315687199E-2},{"$f":"IFERROR(INDEX('Data Annex'!$K$1:$AN$5027,MATCH(K$1&\"|\"&$B39,'Data Annex'!$K$1:$K$5027,0),MATCH(K$2,'Data Annex'!$K$1:$AN$1,0)),\"\")","v":8.1883544344611203E-2},{"$f":"IFERROR(INDEX('Data Annex'!$K$1:$AN$5027,MATCH(L$1&\"|\"&$B39,'Data Annex'!$K$1:$K$5027,0),MATCH(L$2,'Data Annex'!$K$1:$AN$1,0)),\"\")","v":8.4445152997756304E-2},{"$f":"IFERROR(INDEX('Data Annex'!$K$1:$AN$5027,MATCH(M$1&\"|\"&$B39,'Data Annex'!$K$1:$K$5027,0),MATCH(M$2,'Data Annex'!$K$1:$AN$1,0)),\"\")","v":3.6344966530003901E-2},{"$f":"IFERROR(INDEX('Data Annex'!$K$1:$AN$5027,MATCH(N$1&\"|\"&$B39,'Data Annex'!$K$1:$K$5027,0),MATCH(N$2,'Data Annex'!$K$1:$AN$1,0)),\"\")","v":3.9364004970773497E-2},{"$f":"IFERROR(INDEX('Data Annex'!$K$1:$AN$5027,MATCH(O$1&\"|\"&$B39,'Data Annex'!$K$1:$K$5027,0),MATCH(O$2,'Data Annex'!$K$1:$AN$1,0)),\"\")","v":3.2501902830486998E-2},{"$f":"IFERROR(INDEX('Data Annex'!$K$1:$AN$5027,MATCH(P$1&\"|\"&$B39,'Data Annex'!$K$1:$K$5027,0),MATCH(P$2,'Data Annex'!$K$1:$AN$1,0)),\"\")","v":3.1721902282526603E-2},{"$f":"IFERROR(INDEX('Data Annex'!$K$1:$AN$5027,MATCH(Q$1&\"|\"&$B39,'Data Annex'!$K$1:$K$5027,0),MATCH(Q$2,'Data Annex'!$K$1:$AN$1,0)),\"\")","v":5.0255996930202697E-2},{"$f":"IFERROR(INDEX('Data Annex'!$K$1:$AN$5027,MATCH(R$1&\"|\"&$B39,'Data Annex'!$K$1:$K$5027,0),MATCH(R$2,'Data Annex'!$K$1:$AN$1,0)),\"\")","v":5.69063127529243E-2},{"$f":"IFERROR(INDEX('Data Annex'!$K$1:$AN$5027,MATCH(S$1&\"|\"&$B39,'Data Annex'!$K$1:$K$5027,0),MATCH(S$2,'Data Annex'!$K$1:$AN$1,0)),\"\")","v":4.7964292226304703E-2},{"$f":"IFERROR(INDEX('Data Annex'!$K$1:$AN$5027,MATCH(T$1&\"|\"&$B39,'Data Annex'!$K$1:$K$5027,0),MATCH(T$2,'Data Annex'!$K$1:$AN$1,0)),\"\")","v":4.6373946128281301E-2}]
[30,"SK",null,"SK",{"$f":"IFERROR(INDEX('Data Annex'!$K$1:$AN$5027,MATCH(E$1&\"|\"&$B40,'Data Annex'!$K$1:$K$5027,0),MATCH(E$2,'Data Annex'!$K$1:$AN$1,0)),\"\")","v":4.2299116402296599},{"$f":"IFERROR(INDEX('Data Annex'!$K$1:$AN$5027,MATCH(F$1&\"|\"&$B40,'Data Annex'!$K$1:$K$5027,0),MATCH(F$2,'Data Annex'!$K$1:$AN$1,0)),\"\")","v":4.4276927136507602},{"$f":"IFERROR(INDEX('Data Annex'!$K$1:$AN$5027,MATCH(G$1&\"|\"&$B40,'Data Annex'!$K$1:$K$5027,0),MATCH(G$2,'Data Annex'!$K$1:$AN$1,0)),\"\")","v":4.4864924139217299},{"$f":"IFERROR(INDEX('Data Annex'!$K$1:$AN$5027,MATCH(H$1&\"|\"&$B40,'Data Annex'!$K$1:$K$5027,0),MATCH(H$2,'Data Annex'!$K$1:$AN$1,0)),\"\")","v":4.4891903050827402},{"$f":"IFERROR(INDEX('Data Annex'!$K$1:$AN$5027,MATCH(I$1&\"|\"&$B40,'Data Annex'!$K$1:$K$5027,0),MATCH(I$2,'Data Annex'!$K$1:$AN$1,0)),\"\")","v":0.177958768090377},{"$f":"IFERROR(INDEX('Data Annex'!$K$1:$AN$5027,MATCH(J$1&\"|\"&$B40,'Data Annex'!$K$1:$K$5027,0),MATCH(J$2,'Data Annex'!$K$1:$AN$1,0)),\"\")","v":0.185846027413548},{"$f":"IFERROR(INDEX('Data Annex'!$K$1:$AN$5027,MATCH(K$1&\"|\"&$B40,'Data Annex'!$K$1:$K$5027,0),MATCH(K$2,'Data Annex'!$K$1:$AN$1,0)),\"\")","v":0.18618755585850499},{"$f":"IFERROR(INDEX('Data Annex'!$K$1:$AN$5027,MATCH(L$1&\"|\"&$B40,'Data Annex'!$K$1:$K$5027,0),MATCH(L$2,'Data Annex'!$K$1:$AN$1,0)),\"\")","v":0.18887668863114401},{"$f":"IFERROR(INDEX('Data Annex'!$K$1:$AN$5027,MATCH(M$1&\"|\"&$B40,'Data Annex'!$K$1:$K$5027,0),MATCH(M$2,'Data Annex'!$K$1:$AN$1,0)),\"\")","v":0.101569856823561},{"$f":"IFERROR(INDEX('Data Annex'!$K$1:$AN$5027,MATCH(N$1&\"|\"&$B40,'Data Annex'!$K$1:$K$5027,0),MATCH(N$2,'Data Annex'!$K$1:$AN$1,0)),\"\")","v":8.8457248015299805E-2},{"$f":"IFERROR(INDEX('Data Annex'!$K$1:$AN$5027,MATCH(O$1&\"|\"&$B40,'Data Annex'!$K$1:$K$5027,0),MATCH(O$2,'Data Annex'!$K$1:$AN$1,0)),\"\")","v":8.5582015501046396E-2},{"$f":"IFERROR(INDEX('Data Annex'!$K$1:$AN$5027,MATCH(P$1&\"|\"&$B40,'Data Annex'!$K$1:$K$5027,0),MATCH(P$2,'Data Annex'!$K$1:$AN$1,0)),\"\")","v":8.2612153103507904E-2},{"$f":"IFERROR(INDEX('Data Annex'!$K$1:$AN$5027,MATCH(Q$1&\"|\"&$B40,'Data Annex'!$K$1:$K$5027,0),MATCH(Q$2,'Data Annex'!$K$1:$AN$1,0)),\"\")","v":2.4012288071825101E-2},{"$f":"IFERROR(INDEX('Data Annex'!$K$1:$AN$5027,MATCH(R$1&\"|\"&$B40,'Data Annex'!$K$1:$K$5027,0),MATCH(R$2,'Data Annex'!$K$1:$AN$1,0)),\"\")","v":1.9978181354496999E-2},{"$f":"IFERROR(INDEX('Data Annex'!$K$1:$AN$5027,MATCH(S$1&\"|\"&$B40,'Data Annex'!$K$1:$K$5027,0),MATCH(S$2,'Data Annex'!$K$1:$AN$1,0)),\"\")","v":1.9075484277089699E-2},{"$f":"IFERROR(INDEX('Data Annex'!$K$1:$AN$5027,MATCH(T$1&\"|\"&$B40,'Data Annex'!$K$1:$K$5027,0),MATCH(T$2,'Data Annex'!$K$1:$AN$1,0)),\"\")","v":1.84024618002879E-2}]
[99,"EU",null,"EU/EEA",{"$f":"IFERROR(INDEX('Data Annex'!$K$1:$AN$5027,MATCH(E$1&\"|\"&$B41,'Data Annex'!$K$1:$K$5027,0),MATCH(E$2,'Data Annex'!$K$1:$AN$1,0)),\"\")","v":1191.8484839303401},{"$f":"IFERROR(INDEX('Data Annex'!$K$1:$AN$5027,MATCH(F$1&\"|\"&$B41,'Data Annex'!$K$1:$K$5027,0),MATCH(F$2,'Data Annex'!$K$1:$AN$1,0)),\"\")","v":1207.44475522326},{"$f":"IFERROR(INDEX('Data Annex'!$K$1:$AN$5027,MATCH(G$1&\"|\"&$B41,'Data Annex'!$K$1:$K$5027,0),MATCH(G$2,'Data Annex'!$K$1:$AN$1,0)),\"\")","v":1208.0503751231699},{"$f":"IFERROR(INDEX('Data Annex'!$K$1:$AN$5027,MATCH(H$1&\"|\"&$B41,'Data Annex'!$K$1:$K$5027,0),MATCH(H$2,'Data Annex'!$K$1:$AN$1,0)),\"\")","v":1184.0744708978},{"$f":"IFERROR(INDEX('Data Annex'!$K$1:$AN$5027,MATCH(I$1&\"|\"&$B41,'Data Annex'!$K$1:$K$5027,0),MATCH(I$2,'Data Annex'!$K$1:$AN$1,0)),\"\")","v":0.27069559956973599},{"$f":"IFERROR(INDEX('Data Annex'!$K$1:$AN$5027,MATCH(J$1&\"|\"&$B41,'Data Annex'!$K$1:$K$5027,0),MATCH(J$2,'Data Annex'!$K$1:$AN$1,0)),\"\")","v":0.26885694835041102},{"$f":"IFERROR(INDEX('Data Annex'!$K$1:$AN$5027,MATCH(K$1&\"|\"&$B41,'Data Annex'!$K$1:$K$5027,0),MATCH(K$2,'Data Annex'!$K$1:$AN$1,0)),\"\")","v":0.27153437672205699},{"$f":"IFERROR(INDEX('Data Annex'!$K$1:$AN$5027,MATCH(L$1&\"|\"&$B41,'Data Annex'!$K$1:$K$5027,0),MATCH(L$2,'Data Annex'!$K$1:$AN$1,0)),\"\")","v":0.27106471553376299},{"$f":"IFERROR(INDEX('Data Annex'!$K$1:$AN$5027,MATCH(M$1&\"|\"&$B41,'Data Annex'!$K$1:$K$5027,0),MATCH(M$2,'Data Annex'!$K$1:$AN$1,0)),\"\")","v":35.788275292745098},{"$f":"IFERROR(INDEX('Data Annex'!$K$1:$AN$5027,MATCH(N$1&\"|\"&$B41,'Data Annex'!$K$1:$K$5027,0),MATCH(N$2,'Data Annex'!$K$1:$AN$1,0)),\"\")","v":35.262901173852697},{"$f":"IFERROR(INDEX('Data Annex'!$K$1:$AN$5027,MATCH(O$1&\"|\"&$B41,'Data Annex'!$K$1:$K$5027,0),MATCH(O$2,'Data Annex'!$K$1:$AN$1,0)),\"\")","v":34.147671915628699},{"$f":"IFERROR(INDEX('Data Annex'!$K$1:$AN$5027,MATCH(P$1&\"|\"&$B41,'Data Annex'!$K$1:$K$5027,0),MATCH(P$2,'Data Annex'!$K$1:$AN$1,0)),\"\")","v":31.119037387644301},{"$f":"IFERROR(INDEX('Data Annex'!$K$1:$AN$5027,MATCH(Q$1&\"|\"&$B41,'Data Annex'!$K$1:$K$5027,0),MATCH(Q$2,'Data Annex'!$K$1:$AN$1,0)),\"\")","v":3.0027537707416101E-2},{"$f":"IFERROR(INDEX('Data Annex'!$K$1:$AN$5027,MATCH(R$1&\"|\"&$B41,'Data Annex'!$K$1:$K$5027,0),MATCH(R$2,'Data Annex'!$K$1:$AN$1,0)),\"\")","v":2.9204566934685601E-2},{"$f":"IFERROR(INDEX('Data Annex'!$K$1:$AN$5027,MATCH(S$1&\"|\"&$B41,'Data Annex'!$K$1:$K$5027,0),MATCH(S$2,'Data Annex'!$K$1:$AN$1,0)),\"\")","v":2.8266761567908201E-2},{"$f":"IFERROR(INDEX('Data Annex'!$K$1:$AN$5027,MATCH(T$1&\"|\"&$B41,'Data Annex'!$K$1:$K$5027,0),MATCH(T$2,'Data Annex'!$K$1:$AN$1,0)),\"\")","v":2.6281317731687098E-2}]
[null,"NEU",null,"Memo item: Non-EU/EEA countries",{"$f":"IFERROR(INDEX('Data Annex'!$K$1:$AN$5027,MATCH(E$1&\"|\"&$B42,'Data Annex'!$K$1:$K$5027,0),MATCH(E$2,'Data Annex'!$K$1:$AN$1,0)),\"\")","v":132.288812244833},{"$f":"IFERROR(INDEX('Data Annex'!$K$1:$AN$5027,MATCH(F$1&\"|\"&$B42,'Data Annex'!$K$1:$K$5027,0),MATCH(F$2,'Data Annex'!$K$1:$AN$1,0)),\"\")","v":131.62927470225799},{"$f":"IFERROR(INDEX('Data Annex'!$K$1:$AN$5027,MATCH(G$1&\"|\"&$B42,'Data Annex'!$K$1:$K$5027,0),MATCH(G$2,'Data Annex'!$K$1:$AN$1,0)),\"\")","v":127.320451342659},{"$f":"IFERROR(INDEX('Data Annex'!$K$1:$AN$5027,MATCH(H$1&\"|\"&$B42,'Data Annex'!$K$1:$K$5027,0),MATCH(H$2,'Data Annex'!$K$1:$AN$1,0)),\"\")","v":113.399198443375},{"$f":"IFERROR(INDEX('Data Annex'!$K$1:$AN$5027,MATCH(I$1&\"|\"&$B42,'Data Annex'!$K$1:$K$5027,0),MATCH(I$2,'Data Annex'!$K$1:$AN$1,0)),\"\")","v":0.109031411835844},{"$f":"IFERROR(INDEX('Data Annex'!$K$1:$AN$5027,MATCH(J$1&\"|\"&$B42,'Data Annex'!$K$1:$K$5027,0),MATCH(J$2,'Data Annex'!$K$1:$AN$1,0)),\"\")","v":0.111546648364183},{"$f":"IFERROR(INDEX('Data Annex'!$K$1:$AN$5027,MATCH(K$1&\"|\"&$B42,'Data Annex'!$K$1:$K$5027,0),MATCH(K$2,'Data Annex'!$K$1:$AN$1,0)),\"\")","v":0.11495328883400199},{"$f":"IFERROR(INDEX('Data Annex'!$K$1:$AN$5027,MATCH(L$1&\"|\"&$B42,'Data Annex'!$K$1:$K$5027,0),MATCH(L$2,'Data Annex'!$K$1:$AN$1,0)),\"\")","v":0.111803383391315},{"$f":"IFERROR(INDEX('Data Annex'!$K$1:$AN$5027,MATCH(M$1&\"|\"&$B42,'Data Annex'!$K$1:$K$5027,0),MATCH(M$2,'Data Annex'!$K$1:$AN$1,0)),\"\")","v":2.6237801207963698},{"$f":"IFERROR(INDEX('Data Annex'!$K$1:$AN$5027,MATCH(N$1&\"|\"&$B42,'Data Annex'!$K$1:$K$5027,0),MATCH(N$2,'Data Annex'!$K$1:$AN$1,0)),\"\")","v":3.0948214499171098},{"$f":"IFERROR(INDEX('Data Annex'!$K$1:$AN$5027,MATCH(O$1&\"|\"&$B42,'Data Annex'!$K$1:$K$5027,0),MATCH(O$2,'Data Annex'!$K$1:$AN$1,0)),\"\")","v":2.8562707332858999},{"$f":"IFERROR(INDEX('Data Annex'!$K$1:$AN$5027,MATCH(P$1&\"|\"&$B42,'Data Annex'!$K$1:$K$5027,0),MATCH(P$2,'Data Annex'!$K$1:$AN$1,0)),\"\")","v":3.3225259556026399},{"$f":"IFERROR(INDEX('Data Annex'!$K$1:$AN$5027,MATCH(Q$1&\"|\"&$B42,'Data Annex'!$K$1:$K$5027,0),MATCH(Q$2,'Data Annex'!$K$1:$AN$1,0)),\"\")","v":1.9833726497902299E-2},{"$f":"IFERROR(INDEX('Data Annex'!$K$1:$AN$5027,MATCH(R$1&\"|\"&$B42,'Data Annex'!$K$1:$K$5027,0),MATCH(R$2,'Data Annex'!$K$1:$AN$1,0)),\"\")","v":2.35116501015258E-2},{"$f":"IFERROR(INDEX('Data Annex'!$K$1:$AN$5027,MATCH(S$1&\"|\"&$B42,'Data Annex'!$K$1:$K$5027,0),MATCH(S$2,'Data Annex'!$K$1:$AN$1,0)),\"\")","v":2.2433715111477199E-2},{"$f":"IFERROR(INDEX('Data Annex'!$K$1:$AN$5027,MATCH(T$1&\"|\"&$B42,'Data Annex'!$K$1:$K$5027,0),MATCH(T$2,'Data Annex'!$K$1:$AN$1,0)),\"\")","v":2.92993777840653E-2}]
[12,"GB",null,"GB",{"$f":"IFERROR(INDEX('Data Annex'!$K$1:$AN$5027,MATCH(E$1&\"|\"&$B43,'Data Annex'!$K$1:$K$5027,0),MATCH(E$2,'Data Annex'!$K$1:$AN$1,0)),\"\")","v":39.102835146243997},{"$f":"IFERROR(INDEX('Data Annex'!$K$1:$AN$5027,MATCH(F$1&\"|\"&$B43,'Data Annex'!$K$1:$K$5027,0),MATCH(F$2,'Data Annex'!$K$1:$AN$1,0)),\"\")","v":38.355925986821298},{"$f":"IFERROR(INDEX('Data Annex'!$K$1:$AN$5027,MATCH(G$1&\"|\"&$B43,'Data Annex'!$K$1:$K$5027,0),MATCH(G$2,'Data Annex'!$K$1:$AN$1,0)),\"\")","v":36.975585174682301},{"$f":"IFERROR(INDEX('Data Annex'!$K$1:$AN$5027,MATCH(H$1&\"|\"&$B43,'Data Annex'!$K$1:$K$5027,0),MATCH(H$2,'Data Annex'!$K$1:$AN$1,0)),\"\")","v":36.4152337847095},{"$f":"IFERROR(INDEX('Data Annex'!$K$1:$AN$5027,MATCH(I$1&\"|\"&$B43,'Data Annex'!$K$1:$K$5027,0),MATCH(I$2,'Data Annex'!$K$1:$AN$1,0)),\"\")","v":0.20651963398577},{"$f":"IFERROR(INDEX('Data Annex'!$K$1:$AN$5027,MATCH(J$1&\"|\"&$B43,'Data Annex'!$K$1:$K$5027,0),MATCH(J$2,'Data Annex'!$K$1:$AN$1,0)),\"\")","v":0.210160617446287},{"$f":"IFERROR(INDEX('Data Annex'!$K$1:$AN$5027,MATCH(K$1&\"|\"&$B43,'Data Annex'!$K$1:$K$5027,0),MATCH(K$2,'Data Annex'!$K$1:$AN$1,0)),\"\")","v":0.20788823501320899},{"$f":"IFERROR(INDEX('Data Annex'!$K$1:$AN$5027,MATCH(L$1&\"|\"&$B43,'Data Annex'!$K$1:$K$5027,0),MATCH(L$2,'Data Annex'!$K$1:$AN$1,0)),\"\")","v":0.20780784946443301},{"$f":"IFERROR(INDEX('Data Annex'!$K$1:$AN$5027,MATCH(M$1&\"|\"&$B43,'Data Annex'!$K$1:$K$5027,0),MATCH(M$2,'Data Annex'!$K$1:$AN$1,0)),\"\")","v":0.71172046018846202},{"$f":"IFERROR(INDEX('Data Annex'!$K$1:$AN$5027,MATCH(N$1&\"|\"&$B43,'Data Annex'!$K$1:$K$5027,0),MATCH(N$2,'Data Annex'!$K$1:$AN$1,0)),\"\")","v":1.23100940794584},{"$f":"IFERROR(INDEX('Data Annex'!$K$1:$AN$5027,MATCH(O$1&\"|\"&$B43,'Data Annex'!$K$1:$K$5027,0),MATCH(O$2,'Data Annex'!$K$1:$AN$1,0)),\"\")","v":1.3190049302725699},{"$f":"IFERROR(INDEX('Data Annex'!$K$1:$AN$5027,MATCH(P$1&\"|\"&$B43,'Data Annex'!$K$1:$K$5027,0),MATCH(P$2,'Data Annex'!$K$1:$AN$1,0)),\"\")","v":1.4354923488940801},{"$f":"IFERROR(INDEX('Data Annex'!$K$1:$AN$5027,MATCH(Q$1&\"|\"&$B43,'Data Annex'!$K$1:$K$5027,0),MATCH(Q$2,'Data Annex'!$K$1:$AN$1,0)),\"\")","v":1.8201249539237699E-2},{"$f":"IFERROR(INDEX('Data Annex'!$K$1:$AN$5027,MATCH(R$1&\"|\"&$B43,'Data Annex'!$K$1:$K$5027,0),MATCH(R$2,'Data Annex'!$K$1:$AN$1,0)),\"\")","v":3.2094373327574102E-2},{"$f":"IFERROR(INDEX('Data Annex'!$K$1:$AN$5027,MATCH(S$1&\"|\"&$B43,'Data Annex'!$K$1:$K$5027,0),MATCH(S$2,'Data Annex'!$K$1:$AN$1,0)),\"\")","v":3.5672320641884303E-2},{"$f":"IFERROR(INDEX('Data Annex'!$K$1:$AN$5027,MATCH(T$1&\"|\"&$B43,'Data Annex'!$K$1:$K$5027,0),MATCH(T$2,'Data Annex'!$K$1:$AN$1,0)),\"\")","v":3.9420105260915099E-2}]
[]
[null,null,null,null,"RE_T12_1","RE_T12_1","RE_T12_1","RE_T12_1","RE_T12_2","RE_T12_2","RE_T12_2","RE_T12_2","RE_T12_3","RE_T12_3","RE_T12_3","RE_T12_3","RE_T12_4","RE_T12_4","RE_T12_4","RE_T12_4","T21_5"]
[null,null,null,null,{"$f":"TEXT(E$51,\"YYYYMM\")+0","v":202003},{"$f":"TEXT(F$51,\"YYYYMM\")+0","v":202006},202009,202012,202003,202006,202009,202012,202003,202006,202009,202012,202003,202006,202009,202012,190001]
[null,null,null,null,"Total exposures to Construction (NACE F)",null,null,null,null,null,null,null,"Non-performing exposures to Construction (NACE F)"]
[]
[null,null,null,"Country of counterparty"]
[null,null,null,null,"Gross carrying amount (bn€)",null,null,null,"As % of Total of exposures to Non-financial corporations",null,null,null,"Gross carrying amount (bn€)",null,null,null,"NPL ratio"]
[null,null,null,null,{"$f":"EOMONTH($A$3,-9)","v":"2020-03-31"},{"$f":"EOMONTH($A$3,-6)","v":"2020-06-30"},{"$f":"EOMONTH($A$3,-3)","v":"2020-09-30"},{"$f":"EOMONTH($A$3,0)","v":"2020-12-31"},{"$f":"EOMONTH($A$3,-9)","v":"2020-03-31"},{"$f":"EOMONTH($A$3,-6)","v":"2020-06-30"},{"$f":"EOMONTH($A$3,-3)","v":"2020-09-30"},{"$f":"EOMONTH($A$3,0)","v":"2020-12-31"},{"$f":"EOMONTH($A$3,-9)","v":"2020-03-31"},{"$f":"EOMONTH($A$3,-6)","v":"2020-06-30"},{"$f":"EOMONTH($A$3,-3)","v":"2020-09-30"},{"$f":"EOMONTH($A$3,0)","v":"2020-12-31"},{"$f":"EOMONTH($A$3,-9)","v":"2020-03-31"},{"$f":"EOMONTH($A$3,-6)","v":"2020-06-30"},{"$f":"EOMONTH($A$3,-3)","v":"2020-09-30"},{"$f":"EOMONTH($A$3,0)","v":"2020-12-31"}]
[1,"AT",null,"AT",{"$f":"IFERROR(INDEX('Data Annex'!$K$1:$AN$5027,MATCH(E$45&\"|\"&$B52,'Data Annex'!$K$1:$K$5027,0),MATCH(E$46,'Data Annex'!$K$1:$AN$1,0)),\"\")","v":10.784532461648},{"$f":"IFERROR(INDEX('Data Annex'!$K$1:$AN$5027,MATCH(F$45&\"|\"&$B52,'Data Annex'!$K$1:$K$5027,0),MATCH(F$46,'Data Annex'!$K$1:$AN$1,0)),\"\")","v":10.685811565374999},{"$f":"IFERROR(INDEX('Data Annex'!$K$1:$AN$5027,MATCH(G$45&\"|\"&$B52,'Data Annex'!$K$1:$K$5027,0),MATCH(G$46,'Data Annex'!$K$1:$AN$1,0)),\"\")","v":10.4422167979927},{"$f":"IFERROR(INDEX('Data Annex'!$K$1:$AN$5027,MATCH(H$45&\"|\"&$B52,'Data Annex'!$K$1:$K$5027,0),MATCH(H$46,'Data Annex'!$K$1:$AN$1,0)),\"\")","v":10.4697860993305},{"$f":"IFERROR(INDEX('Data Annex'!$K$1:$AN$5027,MATCH(I$45&\"|\"&$B52,'Data Annex'!$K$1:$K$5027,0),MATCH(I$46,'Data Annex'!$K$1:$AN$1,0)),\"\")","v":9.9976763339664598E-2},{"$f":"IFERROR(INDEX('Data Annex'!$K$1:$AN$5027,MATCH(J$45&\"|\"&$B52,'Data Annex'!$K$1:$K$5027,0),MATCH(J$46,'Data Annex'!$K$1:$AN$1,0)),\"\")","v":9.7715715434210704E-2},{"$f":"IFERROR(INDEX('Data Annex'!$K$1:$AN$5027,MATCH(K$45&\"|\"&$B52,'Data Annex'!$K$1:$K$5027,0),MATCH(K$46,'Data Annex'!$K$1:$AN$1,0)),\"\")","v":9.5754270615988193E-2},{"$f":"IFERROR(INDEX('Data Annex'!$K$1:$AN$5027,MATCH(L$45&\"|\"&$B52,'Data Annex'!$K$1:$K$5027,0),MATCH(L$46,'Data Annex'!$K$1:$AN$1,0)),\"\")","v":9.7585495263594904E-2},{"$f":"IFERROR(INDEX('Data Annex'!$K$1:$AN$5027,MATCH(M$45&\"|\"&$B52,'Data Annex'!$K$1:$K$5027,0),MATCH(M$46,'Data Annex'!$K$1:$AN$1,0)),\"\")","v":0.36616744827801201},{"$f":"IFERROR(INDEX('Data Annex'!$K$1:$AN$5027,MATCH(N$45&\"|\"&$B52,'Data Annex'!$K$1:$K$5027,0),MATCH(N$46,'Data Annex'!$K$1:$AN$1,0)),\"\")","v":0.30879370414000001},{"$f":"IFERROR(INDEX('Data Annex'!$K$1:$AN$5027,MATCH(O$45&\"|\"&$B52,'Data Annex'!$K$1:$K$5027,0),MATCH(O$46,'Data Annex'!$K$1:$AN$1,0)),\"\")","v":0.30216127058272602},{"$f":"IFERROR(INDEX('Data Annex'!$K$1:$AN$5027,MATCH(P$45&\"|\"&$B52,'Data Annex'!$K$1:$K$5027,0),MATCH(P$46,'Data Annex'!$K$1:$AN$1,0)),\"\")","v":0.311824028770464},{"$f":"IFERROR(INDEX('Data Annex'!$K$1:$AN$5027,MATCH(Q$45&\"|\"&$B52,'Data Annex'!$K$1:$K$5027,0),MATCH(Q$46,'Data Annex'!$K$1:$AN$1,0)),\"\")","v":3.3953020177757101E-2},{"$f":"IFERROR(INDEX('Data Annex'!$K$1:$AN$5027,MATCH(R$45&\"|\"&$B52,'Data Annex'!$K$1:$K$5027,0),MATCH(R$46,'Data Annex'!$K$1:$AN$1,0)),\"\")","v":2.88975434622652E-2},{"$f":"IFERROR(INDEX('Data Annex'!$K$1:$AN$5027,MATCH(S$45&\"|\"&$B52,'Data Annex'!$K$1:$K$5027,0),MATCH(S$46,'Data Annex'!$K$1:$AN$1,0)),\"\")","v":2.89365061488485E-2},{"$f":"IFERROR(INDEX('Data Annex'!$K$1:$AN$5027,MATCH(T$45&\"|\"&$B52,'Data Annex'!$K$1:$K$5027,0),MATCH(T$46,'Data Annex'!$K$1:$AN$1,0)),\"\")","v":2.97832282161338E-2}]
[2,"BE",null,"BE",{"$f":"IFERROR(INDEX('Data Annex'!$K$1:$AN$5027,MATCH(E$45&\"|\"&$B53,'Data Annex'!$K$1:$K$5027,0),MATCH(E$46,'Data Annex'!$K$1:$AN$1,0)),\"\")","v":19.263871033165401},{"$f":"IFERROR(INDEX('Data Annex'!$K$1:$AN$5027,MATCH(F$45&\"|\"&$B53,'Data Annex'!$K$1:$K$5027,0),MATCH(F$46,'Data Annex'!$K$1:$AN$1,0)),\"\")","v":19.445677747520001},{"$f":"IFERROR(INDEX('Data Annex'!$K$1:$AN$5027,MATCH(G$45&\"|\"&$B53,'Data Annex'!$K$1:$K$5027,0),MATCH(G$46,'Data Annex'!$K$1:$AN$1,0)),\"\")","v":19.6608285792407},{"$f":"IFERROR(INDEX('Data Annex'!$K$1:$AN$5027,MATCH(H$45&\"|\"&$B53,'Data Annex'!$K$1:$K$5027,0),MATCH(H$46,'Data Annex'!$K$1:$AN$1,0)),\"\")","v":19.736735841079099},{"$f":"IFERROR(INDEX('Data Annex'!$K$1:$AN$5027,MATCH(I$45&\"|\"&$B53,'Data Annex'!$K$1:$K$5027,0),MATCH(I$46,'Data Annex'!$K$1:$AN$1,0)),\"\")","v":0.104701668195655},{"$f":"IFERROR(INDEX('Data Annex'!$K$1:$AN$5027,MATCH(J$45&\"|\"&$B53,'Data Annex'!$K$1:$K$5027,0),MATCH(J$46,'Data Annex'!$K$1:$AN$1,0)),\"\")","v":0.107048490048993},{"$f":"IFERROR(INDEX('Data Annex'!$K$1:$AN$5027,MATCH(K$45&\"|\"&$B53,'Data Annex'!$K$1:$K$5027,0),MATCH(K$46,'Data Annex'!$K$1:$AN$1,0)),\"\")","v":0.111039330377967},{"$f":"IFERROR(INDEX('Data Annex'!$K$1:$AN$5027,MATCH(L$45&\"|\"&$B53,'Data Annex'!$K$1:$K$5027,0),MATCH(L$46,'Data Annex'!$K$1:$AN$1,0)),\"\")","v":0.112484652714543},{"$f":"IFERROR(INDEX('Data Annex'!$K$1:$AN$5027,MATCH(M$45&\"|\"&$B53,'Data Annex'!$K$1:$K$5027,0),MATCH(M$46,'Data Annex'!$K$1:$AN$1,0)),\"\")","v":0.67890196079999998},{"$f":"IFERROR(INDEX('Data Annex'!$K$1:$AN$5027,MATCH(N$45&\"|\"&$B53,'Data Annex'!$K$1:$K$5027,0),MATCH(N$46,'Data Annex'!$K$1:$AN$1,0)),\"\")","v":0.71690455266999997},{"$f":"IFERROR(INDEX('Data Annex'!$K$1:$AN$5027,MATCH(O$45&\"|\"&$B53,'Data Annex'!$K$1:$K$5027,0),MATCH(O$46,'Data Annex'!$K$1:$AN$1,0)),\"\")","v":0.69117429346000003},{"$f":"IFERROR(INDEX('Data Annex'!$K$1:$AN$5027,MATCH(P$45&\"|\"&$B53,'Data Annex'!$K$1:$K$5027,0),MATCH(P$46,'Data Annex'!$K$1:$AN$1,0)),\"\")","v":0.84438958414999998},{"$f":"IFERROR(INDEX('Data Annex'!$K$1:$AN$5027,MATCH(Q$45&\"|\"&$B53,'Data Annex'!$K$1:$K$5027,0),MATCH(Q$46,'Data Annex'!$K$1:$AN$1,0)),\"\")","v":3.5242239715536798E-2},{"$f":"IFERROR(INDEX('Data Annex'!$K$1:$AN$5027,MATCH(R$45&\"|\"&$B53,'Data Annex'!$K$1:$K$5027,0),MATCH(R$46,'Data Annex'!$K$1:$AN$1,0)),\"\")","v":3.6867038628233498E-2},{"$f":"IFERROR(INDEX('Data Annex'!$K$1:$AN$5027,MATCH(S$45&\"|\"&$B53,'Data Annex'!$K$1:$K$5027,0),MATCH(S$46,'Data Annex'!$K$1:$AN$1,0)),\"\")","v":3.5154891396072203E-2},{"$f":"IFERROR(INDEX('Data Annex'!$K$1:$AN$5027,MATCH(T$45&\"|\"&$B53,'Data Annex'!$K$1:$K$5027,0),MATCH(T$46,'Data Annex'!$K$1:$AN$1,0)),\"\")","v":4.27826359408695E-2}]
[3,"BG",null,"BG",{"$f":"IFERROR(INDEX('Data Annex'!$K$1:$AN$5027,MATCH(E$45&\"|\"&$B54,'Data Annex'!$K$1:$K$5027,0),MATCH(E$46,'Data Annex'!$K$1:$AN$1,0)),\"\")","v":1.1745452818103399},{"$f":"IFERROR(INDEX('Data Annex'!$K$1:$AN$5027,MATCH(F$45&\"|\"&$B54,'Data Annex'!$K$1:$K$5027,0),MATCH(F$46,'Data Annex'!$K$1:$AN$1,0)),\"\")","v":1.1957737734853899},{"$f":"IFERROR(INDEX('Data Annex'!$K$1:$AN$5027,MATCH(G$45&\"|\"&$B54,'Data Annex'!$K$1:$K$5027,0),MATCH(G$46,'Data Annex'!$K$1:$AN$1,0)),\"\")","v":1.173148342647},{"$f":"IFERROR(INDEX('Data Annex'!$K$1:$AN$5027,MATCH(H$45&\"|\"&$B54,'Data Annex'!$K$1:$K$5027,0),MATCH(H$46,'Data Annex'!$K$1:$AN$1,0)),\"\")","v":1.13028755857873},{"$f":"IFERROR(INDEX('Data Annex'!$K$1:$AN$5027,MATCH(I$45&\"|\"&$B54,'Data Annex'!$K$1:$K$5027,0),MATCH(I$46,'Data Annex'!$K$1:$AN$1,0)),\"\")","v":6.8699539256039693E-2},{"$f":"IFERROR(INDEX('Data Annex'!$K$1:$AN$5027,MATCH(J$45&\"|\"&$B54,'Data Annex'!$K$1:$K$5027,0),MATCH(J$46,'Data Annex'!$K$1:$AN$1,0)),\"\")","v":7.1437364183805502E-2},{"$f":"IFERROR(INDEX('Data Annex'!$K$1:$AN$5027,MATCH(K$45&\"|\"&$B54,'Data Annex'!$K$1:$K$5027,0),MATCH(K$46,'Data Annex'!$K$1:$AN$1,0)),\"\")","v":6.9812021784703193E-2},{"$f":"IFERROR(INDEX('Data Annex'!$K$1:$AN$5027,MATCH(L$45&\"|\"&$B54,'Data Annex'!$K$1:$K$5027,0),MATCH(L$46,'Data Annex'!$K$1:$AN$1,0)),\"\")","v":6.6256390108744595E-2},{"$f":"IFERROR(INDEX('Data Annex'!$K$1:$AN$5027,MATCH(M$45&\"|\"&$B54,'Data Annex'!$K$1:$K$5027,0),MATCH(M$46,'Data Annex'!$K$1:$AN$1,0)),\"\")","v":0.25260987936137502},{"$f":"IFERROR(INDEX('Data Annex'!$K$1:$AN$5027,MATCH(N$45&\"|\"&$B54,'Data Annex'!$K$1:$K$5027,0),MATCH(N$46,'Data Annex'!$K$1:$AN$1,0)),\"\")","v":0.238542414813806},{"$f":"IFERROR(INDEX('Data Annex'!$K$1:$AN$5027,MATCH(O$45&\"|\"&$B54,'Data Annex'!$K$1:$K$5027,0),MATCH(O$46,'Data Annex'!$K$1:$AN$1,0)),\"\")","v":0.22802166780719499},{"$f":"IFERROR(INDEX('Data Annex'!$K$1:$AN$5027,MATCH(P$45&\"|\"&$B54,'Data Annex'!$K$1:$K$5027,0),MATCH(P$46,'Data Annex'!$K$1:$AN$1,0)),\"\")","v":0.23213539127819599},{"$f":"IFERROR(INDEX('Data Annex'!$K$1:$AN$5027,MATCH(Q$45&\"|\"&$B54,'Data Annex'!$K$1:$K$5027,0),MATCH(Q$46,'Data Annex'!$K$1:$AN$1,0)),\"\")","v":0.215070362355059},{"$f":"IFERROR(INDEX('Data Annex'!$K$1:$AN$5027,MATCH(R$45&\"|\"&$B54,'Data Annex'!$K$1:$K$5027,0),MATCH(R$46,'Data Annex'!$K$1:$AN$1,0)),\"\")","v":0.19948791326850501},{"$f":"IFERROR(INDEX('Data Annex'!$K$1:$AN$5027,MATCH(S$45&\"|\"&$B54,'Data Annex'!$K$1:$K$5027,0),MATCH(S$46,'Data Annex'!$K$1:$AN$1,0)),\"\")","v":0.19436729313592599},{"$f":"IFERROR(INDEX('Data Annex'!$K$1:$AN$5027,MATCH(T$45&\"|\"&$B54,'Data Annex'!$K$1:$K$5027,0),MATCH(T$46,'Data Annex'!$K$1:$AN$1,0)),\"\")","v":0.20537728608646499}]
[4,"CY",null,"CY",{"$f":"IFERROR(INDEX('Data Annex'!$K$1:$AN$5027,MATCH(E$45&\"|\"&$B55,'Data Annex'!$K$1:$K$5027,0),MATCH(E$46,'Data Annex'!$K$1:$AN$1,0)),\"\")","v":2.1957522804499998},{"$f":"IFERROR(INDEX('Data Annex'!$K$1:$AN$5027,MATCH(F$45&\"|\"&$B55,'Data Annex'!$K$1:$K$5027,0),MATCH(F$46,'Data Annex'!$K$1:$AN$1,0)),\"\")","v":1.97074252842},{"$f":"IFERROR(INDEX('Data Annex'!$K$1:$AN$5027,MATCH(G$45&\"|\"&$B55,'Data Annex'!$K$1:$K$5027,0),MATCH(G$46,'Data Annex'!$K$1:$AN$1,0)),\"\")","v":1.9181183930000001},{"$f":"IFERROR(INDEX('Data Annex'!$K$1:$AN$5027,MATCH(H$45&\"|\"&$B55,'Data Annex'!$K$1:$K$5027,0),MATCH(H$46,'Data Annex'!$K$1:$AN$1,0)),\"\")","v":1.2108729122299999},{"$f":"IFERROR(INDEX('Data Annex'!$K$1:$AN$5027,MATCH(I$45&\"|\"&$B55,'Data Annex'!$K$1:$K$5027,0),MATCH(I$46,'Data Annex'!$K$1:$AN$1,0)),\"\")","v":0.13508607370186501},{"$f":"IFERROR(INDEX('Data Annex'!$K$1:$AN$5027,MATCH(J$45&\"|\"&$B55,'Data Annex'!$K$1:$K$5027,0),MATCH(J$46,'Data Annex'!$K$1:$AN$1,0)),\"\")","v":0.13044049374132599},{"$f":"IFERROR(INDEX('Data Annex'!$K$1:$AN$5027,MATCH(K$45&\"|\"&$B55,'Data Annex'!$K$1:$K$5027,0),MATCH(K$46,'Data Annex'!$K$1:$AN$1,0)),\"\")","v":0.131374094424792},{"$f":"IFERROR(INDEX('Data Annex'!$K$1:$AN$5027,MATCH(L$45&\"|\"&$B55,'Data Annex'!$K$1:$K$5027,0),MATCH(L$46,'Data Annex'!$K$1:$AN$1,0)),\"\")","v":0.13152961329173399},{"$f":"IFERROR(INDEX('Data Annex'!$K$1:$AN$5027,MATCH(M$45&\"|\"&$B55,'Data Annex'!$K$1:$K$5027,0),MATCH(M$46,'Data Annex'!$K$1:$AN$1,0)),\"\")","v":1.30929634063},{"$f":"IFERROR(INDEX('Data Annex'!$K$1:$AN$5027,MATCH(N$45&\"|\"&$B55,'Data Annex'!$K$1:$K$5027,0),MATCH(N$46,'Data Annex'!$K$1:$AN$1,0)),\"\")","v":1.07717791442},{"$f":"IFERROR(INDEX('Data Annex'!$K$1:$AN$5027,MATCH(O$45&\"|\"&$B55,'Data Annex'!$K$1:$K$5027,0),MATCH(O$46,'Data Annex'!$K$1:$AN$1,0)),\"\")","v":1.0224172090000001},{"$f":"IFERROR(INDEX('Data Annex'!$K$1:$AN$5027,MATCH(P$45&\"|\"&$B55,'Data Annex'!$K$1:$K$5027,0),MATCH(P$46,'Data Annex'!$K$1:$AN$1,0)),\"\")","v":0.85543203899999998},{"$f":"IFERROR(INDEX('Data Annex'!$K$1:$AN$5027,MATCH(Q$45&\"|\"&$B55,'Data Annex'!$K$1:$K$5027,0),MATCH(Q$46,'Data Annex'!$K$1:$AN$1,0)),\"\")","v":0.59628599832840501},{"$f":"IFERROR(INDEX('Data Annex'!$K$1:$AN$5027,MATCH(R$45&\"|\"&$B55,'Data Annex'!$K$1:$K$5027,0),MATCH(R$46,'Data Annex'!$K$1:$AN$1,0)),\"\")","v":0.54658480186328795},{"$f":"IFERROR(INDEX('Data Annex'!$K$1:$AN$5027,MATCH(S$45&\"|\"&$B55,'Data Annex'!$K$1:$K$5027,0),MATCH(S$46,'Data Annex'!$K$1:$AN$1,0)),\"\")","v":0.53303133567313599},{"$f":"IFERROR(INDEX('Data Annex'!$K$1:$AN$5027,MATCH(T$45&\"|\"&$B55,'Data Annex'!$K$1:$K$5027,0),MATCH(T$46,'Data Annex'!$K$1:$AN$1,0)),\"\")","v":0.70645897712303796}]
[5,"CZ",null,"CZ",{"$f":"IFERROR(INDEX('Data Annex'!$K$1:$AN$5027,MATCH(E$45&\"|\"&$B56,'Data Annex'!$K$1:$K$5027,0),MATCH(E$46,'Data Annex'!$K$1:$AN$1,0)),\"\")","v":1.8955629035873101},{"$f":"IFERROR(INDEX('Data Annex'!$K$1:$AN$5027,MATCH(F$45&\"|\"&$B56,'Data Annex'!$K$1:$K$5027,0),MATCH(F$46,'Data Annex'!$K$1:$AN$1,0)),\"\")","v":1.9607613437139699},{"$f":"IFERROR(INDEX('Data Annex'!$K$1:$AN$5027,MATCH(G$45&\"|\"&$B56,'Data Annex'!$K$1:$K$5027,0),MATCH(G$46,'Data Annex'!$K$1:$AN$1,0)),\"\")","v":1.8904629088074301},{"$f":"IFERROR(INDEX('Data Annex'!$K$1:$AN$5027,MATCH(H$45&\"|\"&$B56,'Data Annex'!$K$1:$K$5027,0),MATCH(H$46,'Data Annex'!$K$1:$AN$1,0)),\"\")","v":1.81640936548723},{"$f":"IFERROR(INDEX('Data Annex'!$K$1:$AN$5027,MATCH(I$45&\"|\"&$B56,'Data Annex'!$K$1:$K$5027,0),MATCH(I$46,'Data Annex'!$K$1:$AN$1,0)),\"\")","v":3.8279770593247997E-2},{"$f":"IFERROR(INDEX('Data Annex'!$K$1:$AN$5027,MATCH(J$45&\"|\"&$B56,'Data Annex'!$K$1:$K$5027,0),MATCH(J$46,'Data Annex'!$K$1:$AN$1,0)),\"\")","v":3.9309476075544698E-2},{"$f":"IFERROR(INDEX('Data Annex'!$K$1:$AN$5027,MATCH(K$45&\"|\"&$B56,'Data Annex'!$K$1:$K$5027,0),MATCH(K$46,'Data Annex'!$K$1:$AN$1,0)),\"\")","v":3.8850230343624899E-2},{"$f":"IFERROR(INDEX('Data Annex'!$K$1:$AN$5027,MATCH(L$45&\"|\"&$B56,'Data Annex'!$K$1:$K$5027,0),MATCH(L$46,'Data Annex'!$K$1:$AN$1,0)),\"\")","v":3.7079019635143498E-2},{"$f":"IFERROR(INDEX('Data Annex'!$K$1:$AN$5027,MATCH(M$45&\"|\"&$B56,'Data Annex'!$K$1:$K$5027,0),MATCH(M$46,'Data Annex'!$K$1:$AN$1,0)),\"\")","v":8.1297351510000004E-2},{"$f":"IFERROR(INDEX('Data Annex'!$K$1:$AN$5027,MATCH(N$45&\"|\"&$B56,'Data Annex'!$K$1:$K$5027,0),MATCH(N$46,'Data Annex'!$K$1:$AN$1,0)),\"\")","v":7.4534765729999994E-2},{"$f":"IFERROR(INDEX('Data Annex'!$K$1:$AN$5027,MATCH(O$45&\"|\"&$B56,'Data Annex'!$K$1:$K$5027,0),MATCH(O$46,'Data Annex'!$K$1:$AN$1,0)),\"\")","v":7.2619974540000007E-2},{"$f":"IFERROR(INDEX('Data Annex'!$K$1:$AN$5027,MATCH(P$45&\"|\"&$B56,'Data Annex'!$K$1:$K$5027,0),MATCH(P$46,'Data Annex'!$K$1:$AN$1,0)),\"\")","v":8.0207887229999997E-2},{"$f":"IFERROR(INDEX('Data Annex'!$K$1:$AN$5027,MATCH(Q$45&\"|\"&$B56,'Data Annex'!$K$1:$K$5027,0),MATCH(Q$46,'Data Annex'!$K$1:$AN$1,0)),\"\")","v":4.28882372387362E-2},{"$f":"IFERROR(INDEX('Data Annex'!$K$1:$AN$5027,MATCH(R$45&\"|\"&$B56,'Data Annex'!$K$1:$K$5027,0),MATCH(R$46,'Data Annex'!$K$1:$AN$1,0)),\"\")","v":3.80131758354742E-2},{"$f":"IFERROR(INDEX('Data Annex'!$K$1:$AN$5027,MATCH(S$45&\"|\"&$B56,'Data Annex'!$K$1:$K$5027,0),MATCH(S$46,'Data Annex'!$K$1:$AN$1,0)),\"\")","v":3.8413858426776103E-2},{"$f":"IFERROR(INDEX('Data Annex'!$K$1:$AN$5027,MATCH(T$45&\"|\"&$B56,'Data Annex'!$K$1:$K$5027,0),MATCH(T$46,'Data Annex'!$K$1:$AN$1,0)),\"\")","v":4.4157384758080301E-2}]
[6,"DE",null,"DE",{"$f":"IFERROR(INDEX('Data Annex'!$K$1:$AN$5027,MATCH(E$45&\"|\"&$B57,'Data Annex'!$K$1:$K$5027,0),MATCH(E$46,'Data Annex'!$K$1:$AN$1,0)),\"\")","v":16.407220499689899},{"$f":"IFERROR(INDEX('Data Annex'!$K$1:$AN$5027,MATCH(F$45&\"|\"&$B57,'Data Annex'!$K$1:$K$5027,0),MATCH(F$46,'Data Annex'!$K$1:$AN$1,0)),\"\")","v":16.456495171855401},{"$f":"IFERROR(INDEX('Data Annex'!$K$1:$AN$5027,MATCH(G$45&\"|\"&$B57,'Data Annex'!$K$1:$K$5027,0),MATCH(G$46,'Data Annex'!$K$1:$AN$1,0)),\"\")","v":16.0369210658606},{"$f":"IFERROR(INDEX('Data Annex'!$K$1:$AN$5027,MATCH(H$45&\"|\"&$B57,'Data Annex'!$K$1:$K$5027,0),MATCH(H$46,'Data Annex'!$K$1:$AN$1,0)),\"\")","v":13.6224968655214},{"$f":"IFERROR(INDEX('Data Annex'!$K$1:$AN$5027,MATCH(I$45&\"|\"&$B57,'Data Annex'!$K$1:$K$5027,0),MATCH(I$46,'Data Annex'!$K$1:$AN$1,0)),\"\")","v":2.75170760118939E-2},{"$f":"IFERROR(INDEX('Data Annex'!$K$1:$AN$5027,MATCH(J$45&\"|\"&$B57,'Data Annex'!$K$1:$K$5027,0),MATCH(J$46,'Data Annex'!$K$1:$AN$1,0)),\"\")","v":2.7436289720567501E-2},{"$f":"IFERROR(INDEX('Data Annex'!$K$1:$AN$5027,MATCH(K$45&\"|\"&$B57,'Data Annex'!$K$1:$K$5027,0),MATCH(K$46,'Data Annex'!$K$1:$AN$1,0)),\"\")","v":2.7565359451227501E-2},{"$f":"IFERROR(INDEX('Data Annex'!$K$1:$AN$5027,MATCH(L$45&\"|\"&$B57,'Data Annex'!$K$1:$K$5027,0),MATCH(L$46,'Data Annex'!$K$1:$AN$1,0)),\"\")","v":2.6593494523093099E-2},{"$f":"IFERROR(INDEX('Data Annex'!$K$1:$AN$5027,MATCH(M$45&\"|\"&$B57,'Data Annex'!$K$1:$K$5027,0),MATCH(M$46,'Data Annex'!$K$1:$AN$1,0)),\"\")","v":0.51963817990502903},{"$f":"IFERROR(INDEX('Data Annex'!$K$1:$AN$5027,MATCH(N$45&\"|\"&$B57,'Data Annex'!$K$1:$K$5027,0),MATCH(N$46,'Data Annex'!$K$1:$AN$1,0)),\"\")","v":0.49233668253671298},{"$f":"IFERROR(INDEX('Data Annex'!$K$1:$AN$5027,MATCH(O$45&\"|\"&$B57,'Data Annex'!$K$1:$K$5027,0),MATCH(O$46,'Data Annex'!$K$1:$AN$1,0)),\"\")","v":0.48256995305489098},{"$f":"IFERROR(INDEX('Data Annex'!$K$1:$AN$5027,MATCH(P$45&\"|\"&$B57,'Data Annex'!$K$1:$K$5027,0),MATCH(P$46,'Data Annex'!$K$1:$AN$1,0)),\"\")","v":0.35310440470712701},{"$f":"IFERROR(INDEX('Data Annex'!$K$1:$AN$5027,MATCH(Q$45&\"|\"&$B57,'Data Annex'!$K$1:$K$5027,0),MATCH(Q$46,'Data Annex'!$K$1:$AN$1,0)),\"\")","v":3.1671310805803501E-2},{"$f":"IFERROR(INDEX('Data Annex'!$K$1:$AN$5027,MATCH(R$45&\"|\"&$B57,'Data Annex'!$K$1:$K$5027,0),MATCH(R$46,'Data Annex'!$K$1:$AN$1,0)),\"\")","v":2.99174689018065E-2},{"$f":"IFERROR(INDEX('Data Annex'!$K$1:$AN$5027,MATCH(S$45&\"|\"&$B57,'Data Annex'!$K$1:$K$5027,0),MATCH(S$46,'Data Annex'!$K$1:$AN$1,0)),\"\")","v":3.0091184652781499E-2},{"$f":"IFERROR(INDEX('Data Annex'!$K$1:$AN$5027,MATCH(T$45&\"|\"&$B57,'Data Annex'!$K$1:$K$5027,0),MATCH(T$46,'Data Annex'!$K$1:$AN$1,0)),\"\")","v":2.59206816630537E-2}]
[7,"DK",null,"DK",{"$f":"IFERROR(INDEX('Data Annex'!$K$1:$AN$5027,MATCH(E$45&\"|\"&$B58,'Data Annex'!$K$1:$K$5027,0),MATCH(E$46,'Data Annex'!$K$1:$AN$1,0)),\"\")","v":3.2793542920269299},{"$f":"IFERROR(INDEX('Data Annex'!$K$1:$AN$5027,MATCH(F$45&\"|\"&$B58,'Data Annex'!$K$1:$K$5027,0),MATCH(F$46,'Data Annex'!$K$1:$AN$1,0)),\"\")","v":3.3443773432514701},{"$f":"IFERROR(INDEX('Data Annex'!$K$1:$AN$5027,MATCH(G$45&\"|\"&$B58,'Data Annex'!$K$1:$K$5027,0),MATCH(G$46,'Data Annex'!$K$1:$AN$1,0)),\"\")","v":3.5047192543080601},{"$f":"IFERROR(INDEX('Data Annex'!$K$1:$AN$5027,MATCH(H$45&\"|\"&$B58,'Data Annex'!$K$1:$K$5027,0),MATCH(H$46,'Data Annex'!$K$1:$AN$1,0)),\"\")","v":3.5686596177996699},{"$f":"IFERROR(INDEX('Data Annex'!$K$1:$AN$5027,MATCH(I$45&\"|\"&$B58,'Data Annex'!$K$1:$K$5027,0),MATCH(I$46,'Data Annex'!$K$1:$AN$1,0)),\"\")","v":2.5241686622447301E-2},{"$f":"IFERROR(INDEX('Data Annex'!$K$1:$AN$5027,MATCH(J$45&\"|\"&$B58,'Data Annex'!$K$1:$K$5027,0),MATCH(J$46,'Data Annex'!$K$1:$AN$1,0)),\"\")","v":2.63996601472931E-2},{"$f":"IFERROR(INDEX('Data Annex'!$K$1:$AN$5027,MATCH(K$45&\"|\"&$B58,'Data Annex'!$K$1:$K$5027,0),MATCH(K$46,'Data Annex'!$K$1:$AN$1,0)),\"\")","v":2.7164150246349501E-2},{"$f":"IFERROR(INDEX('Data Annex'!$K$1:$AN$5027,MATCH(L$45&\"|\"&$B58,'Data Annex'!$K$1:$K$5027,0),MATCH(L$46,'Data Annex'!$K$1:$AN$1,0)),\"\")","v":2.5815165343921299E-2},{"$f":"IFERROR(INDEX('Data Annex'!$K$1:$AN$5027,MATCH(M$45&\"|\"&$B58,'Data Annex'!$K$1:$K$5027,0),MATCH(M$46,'Data Annex'!$K$1:$AN$1,0)),\"\")","v":0.121660926537988},{"$f":"IFERROR(INDEX('Data Annex'!$K$1:$AN$5027,MATCH(N$45&\"|\"&$B58,'Data Annex'!$K$1:$K$5027,0),MATCH(N$46,'Data Annex'!$K$1:$AN$1,0)),\"\")","v":0.118422335232708},{"$f":"IFERROR(INDEX('Data Annex'!$K$1:$AN$5027,MATCH(O$45&\"|\"&$B58,'Data Annex'!$K$1:$K$5027,0),MATCH(O$46,'Data Annex'!$K$1:$AN$1,0)),\"\")","v":0.128632247668753},{"$f":"IFERROR(INDEX('Data Annex'!$K$1:$AN$5027,MATCH(P$45&\"|\"&$B58,'Data Annex'!$K$1:$K$5027,0),MATCH(P$46,'Data Annex'!$K$1:$AN$1,0)),\"\")","v":0.14658793277593701},{"$f":"IFERROR(INDEX('Data Annex'!$K$1:$AN$5027,MATCH(Q$45&\"|\"&$B58,'Data Annex'!$K$1:$K$5027,0),MATCH(Q$46,'Data Annex'!$K$1:$AN$1,0)),\"\")","v":3.7099049295704699E-2},{"$f":"IFERROR(INDEX('Data Annex'!$K$1:$AN$5027,MATCH(R$45&\"|\"&$B58,'Data Annex'!$K$1:$K$5027,0),MATCH(R$46,'Data Annex'!$K$1:$AN$1,0)),\"\")","v":3.54093820996811E-2},{"$f":"IFERROR(INDEX('Data Annex'!$K$1:$AN$5027,MATCH(S$45&\"|\"&$B58,'Data Annex'!$K$1:$K$5027,0),MATCH(S$46,'Data Annex'!$K$1:$AN$1,0)),\"\")","v":3.6702582528011597E-2},{"$f":"IFERROR(INDEX('Data Annex'!$K$1:$AN$5027,MATCH(T$45&\"|\"&$B58,'Data Annex'!$K$1:$K$5027,0),MATCH(T$46,'Data Annex'!$K$1:$AN$1,0)),\"\")","v":4.1076468051138702E-2}]
[8,"EE",null,"EE",{"$f":"IFERROR(INDEX('Data Annex'!$K$1:$AN$5027,MATCH(E$45&\"|\"&$B59,'Data Annex'!$K$1:$K$5027,0),MATCH(E$46,'Data Annex'!$K$1:$AN$1,0)),\"\")","v":0.29403467120125898},{"$f":"IFERROR(INDEX('Data Annex'!$K$1:$AN$5027,MATCH(F$45&\"|\"&$B59,'Data Annex'!$K$1:$K$5027,0),MATCH(F$46,'Data Annex'!$K$1:$AN$1,0)),\"\")","v":0.29782844771663802},{"$f":"IFERROR(INDEX('Data Annex'!$K$1:$AN$5027,MATCH(G$45&\"|\"&$B59,'Data Annex'!$K$1:$K$5027,0),MATCH(G$46,'Data Annex'!$K$1:$AN$1,0)),\"\")","v":0.30945590018896402},{"$f":"IFERROR(INDEX('Data Annex'!$K$1:$AN$5027,MATCH(H$45&\"|\"&$B59,'Data Annex'!$K$1:$K$5027,0),MATCH(H$46,'Data Annex'!$K$1:$AN$1,0)),\"\")","v":0.28899446075815699},{"$f":"IFERROR(INDEX('Data Annex'!$K$1:$AN$5027,MATCH(I$45&\"|\"&$B59,'Data Annex'!$K$1:$K$5027,0),MATCH(I$46,'Data Annex'!$K$1:$AN$1,0)),\"\")","v":2.8750157862898199E-2},{"$f":"IFERROR(INDEX('Data Annex'!$K$1:$AN$5027,MATCH(J$45&\"|\"&$B59,'Data Annex'!$K$1:$K$5027,0),MATCH(J$46,'Data Annex'!$K$1:$AN$1,0)),\"\")","v":3.0271596603800702E-2},{"$f":"IFERROR(INDEX('Data Annex'!$K$1:$AN$5027,MATCH(K$45&\"|\"&$B59,'Data Annex'!$K$1:$K$5027,0),MATCH(K$46,'Data Annex'!$K$1:$AN$1,0)),\"\")","v":3.1168553505423399E-2},{"$f":"IFERROR(INDEX('Data Annex'!$K$1:$AN$5027,MATCH(L$45&\"|\"&$B59,'Data Annex'!$K$1:$K$5027,0),MATCH(L$46,'Data Annex'!$K$1:$AN$1,0)),\"\")","v":2.9100488767717401E-2},{"$f":"IFERROR(INDEX('Data Annex'!$K$1:$AN$5027,MATCH(M$45&\"|\"&$B59,'Data Annex'!$K$1:$K$5027,0),MATCH(M$46,'Data Annex'!$K$1:$AN$1,0)),\"\")","v":6.5874813992401601E-3},{"$f":"IFERROR(INDEX('Data Annex'!$K$1:$AN$5027,MATCH(N$45&\"|\"&$B59,'Data Annex'!$K$1:$K$5027,0),MATCH(N$46,'Data Annex'!$K$1:$AN$1,0)),\"\")","v":4.2898912623440403E-3},{"$f":"IFERROR(INDEX('Data Annex'!$K$1:$AN$5027,MATCH(O$45&\"|\"&$B59,'Data Annex'!$K$1:$K$5027,0),MATCH(O$46,'Data Annex'!$K$1:$AN$1,0)),\"\")","v":4.5319021560932798E-3},{"$f":"IFERROR(INDEX('Data Annex'!$K$1:$AN$5027,MATCH(P$45&\"|\"&$B59,'Data Annex'!$K$1:$K$5027,0),MATCH(P$46,'Data Annex'!$K$1:$AN$1,0)),\"\")","v":5.0770905081059404E-3},{"$f":"IFERROR(INDEX('Data Annex'!$K$1:$AN$5027,MATCH(Q$45&\"|\"&$B59,'Data Annex'!$K$1:$K$5027,0),MATCH(Q$46,'Data Annex'!$K$1:$AN$1,0)),\"\")","v":2.2403757258718699E-2},{"$f":"IFERROR(INDEX('Data Annex'!$K$1:$AN$5027,MATCH(R$45&\"|\"&$B59,'Data Annex'!$K$1:$K$5027,0),MATCH(R$46,'Data Annex'!$K$1:$AN$1,0)),\"\")","v":1.44039002829762E-2},{"$f":"IFERROR(INDEX('Data Annex'!$K$1:$AN$5027,MATCH(S$45&\"|\"&$B59,'Data Annex'!$K$1:$K$5027,0),MATCH(S$46,'Data Annex'!$K$1:$AN$1,0)),\"\")","v":1.46447430904563E-2},{"$f":"IFERROR(INDEX('Data Annex'!$K$1:$AN$5027,MATCH(T$45&\"|\"&$B59,'Data Annex'!$K$1:$K$5027,0),MATCH(T$46,'Data Annex'!$K$1:$AN$1,0)),\"\")","v":1.75681239522258E-2}]
[9,"ES",null,"ES",{"$f":"IFERROR(INDEX('Data Annex'!$K$1:$AN$5027,MATCH(E$45&\"|\"&$B60,'Data Annex'!$K$1:$K$5027,0),MATCH(E$46,'Data Annex'!$K$1:$AN$1,0)),\"\")","v":35.147291550103503},{"$f":"IFERROR(INDEX('Data Annex'!$K$1:$AN$5027,MATCH(F$45&\"|\"&$B60,'Data Annex'!$K$1:$K$5027,0),MATCH(F$46,'Data Annex'!$K$1:$AN$1,0)),\"\")","v":36.675307155482898},{"$f":"IFERROR(INDEX('Data Annex'!$K$1:$AN$5027,MATCH(G$45&\"|\"&$B60,'Data Annex'!$K$1:$K$5027,0),MATCH(G$46,'Data Annex'!$K$1:$AN$1,0)),\"\")","v":35.310195507781998},{"$f":"IFERROR(INDEX('Data Annex'!$K$1:$AN$5027,MATCH(H$45&\"|\"&$B60,'Data Annex'!$K$1:$K$5027,0),MATCH(H$46,'Data Annex'!$K$1:$AN$1,0)),\"\")","v":34.074493886750197},{"$f":"IFERROR(INDEX('Data Annex'!$K$1:$AN$5027,MATCH(I$45&\"|\"&$B60,'Data Annex'!$K$1:$K$5027,0),MATCH(I$46,'Data Annex'!$K$1:$AN$1,0)),\"\")","v":0.10378432825469799},{"$f":"IFERROR(INDEX('Data Annex'!$K$1:$AN$5027,MATCH(J$45&\"|\"&$B60,'Data Annex'!$K$1:$K$5027,0),MATCH(J$46,'Data Annex'!$K$1:$AN$1,0)),\"\")","v":9.9927734818957004E-2},{"$f":"IFERROR(INDEX('Data Annex'!$K$1:$AN$5027,MATCH(K$45&\"|\"&$B60,'Data Annex'!$K$1:$K$5027,0),MATCH(K$46,'Data Annex'!$K$1:$AN$1,0)),\"\")","v":9.8413180967064307E-2},{"$f":"IFERROR(INDEX('Data Annex'!$K$1:$AN$5027,MATCH(L$45&\"|\"&$B60,'Data Annex'!$K$1:$K$5027,0),MATCH(L$46,'Data Annex'!$K$1:$AN$1,0)),\"\")","v":9.4998765277576905E-2},{"$f":"IFERROR(INDEX('Data Annex'!$K$1:$AN$5027,MATCH(M$45&\"|\"&$B60,'Data Annex'!$K$1:$K$5027,0),MATCH(M$46,'Data Annex'!$K$1:$AN$1,0)),\"\")","v":3.9383756719500398},{"$f":"IFERROR(INDEX('Data Annex'!$K$1:$AN$5027,MATCH(N$45&\"|\"&$B60,'Data Annex'!$K$1:$K$5027,0),MATCH(N$46,'Data Annex'!$K$1:$AN$1,0)),\"\")","v":3.6571069985790299},{"$f":"IFERROR(INDEX('Data Annex'!$K$1:$AN$5027,MATCH(O$45&\"|\"&$B60,'Data Annex'!$K$1:$K$5027,0),MATCH(O$46,'Data Annex'!$K$1:$AN$1,0)),\"\")","v":3.56537613126426},{"$f":"IFERROR(INDEX('Data Annex'!$K$1:$AN$5027,MATCH(P$45&\"|\"&$B60,'Data Annex'!$K$1:$K$5027,0),MATCH(P$46,'Data Annex'!$K$1:$AN$1,0)),\"\")","v":3.3091283198557799},{"$f":"IFERROR(INDEX('Data Annex'!$K$1:$AN$5027,MATCH(Q$45&\"|\"&$B60,'Data Annex'!$K$1:$K$5027,0),MATCH(Q$46,'Data Annex'!$K$1:$AN$1,0)),\"\")","v":0.11205346125563501},{"$f":"IFERROR(INDEX('Data Annex'!$K$1:$AN$5027,MATCH(R$45&\"|\"&$B60,'Data Annex'!$K$1:$K$5027,0),MATCH(R$46,'Data Annex'!$K$1:$AN$1,0)),\"\")","v":9.97157837853936E-2},{"$f":"IFERROR(INDEX('Data Annex'!$K$1:$AN$5027,MATCH(S$45&\"|\"&$B60,'Data Annex'!$K$1:$K$5027,0),MATCH(S$46,'Data Annex'!$K$1:$AN$1,0)),\"\")","v":0.10097299321037401},{"$f":"IFERROR(INDEX('Data Annex'!$K$1:$AN$5027,MATCH(T$45&\"|\"&$B60,'Data Annex'!$K$1:$K$5027,0),MATCH(T$46,'Data Annex'!$K$1:$AN$1,0)),\"\")","v":9.7114525922350703E-2}]
[10,"FI",null,"FI",{"$f":"IFERROR(INDEX('Data Annex'!$K$1:$AN$5027,MATCH(E$45&\"|\"&$B61,'Data Annex'!$K$1:$K$5027,0),MATCH(E$46,'Data Annex'!$K$1:$AN$1,0)),\"\")","v":4.4968397913888802},{"$f":"IFERROR(INDEX('Data Annex'!$K$1:$AN$5027,MATCH(F$45&\"|\"&$B61,'Data Annex'!$K$1:$K$5027,0),MATCH(F$46,'Data Annex'!$K$1:$AN$1,0)),\"\")","v":4.5441326052858102},{"$f":"IFERROR(INDEX('Data Annex'!$K$1:$AN$5027,MATCH(G$45&\"|\"&$B61,'Data Annex'!$K$1:$K$5027,0),MATCH(G$46,'Data Annex'!$K$1:$AN$1,0)),\"\")","v":4.4197457902633603},{"$f":"IFERROR(INDEX('Data Annex'!$K$1:$AN$5027,MATCH(H$45&\"|\"&$B61,'Data Annex'!$K$1:$K$5027,0),MATCH(H$46,'Data Annex'!$K$1:$AN$1,0)),\"\")","v":4.0557625652067504},{"$f":"IFERROR(INDEX('Data Annex'!$K$1:$AN$5027,MATCH(I$45&\"|\"&$B61,'Data Annex'!$K$1:$K$5027,0),MATCH(I$46,'Data Annex'!$K$1:$AN$1,0)),\"\")","v":4.1677543755405999E-2},{"$f":"IFERROR(INDEX('Data Annex'!$K$1:$AN$5027,MATCH(J$45&\"|\"&$B61,'Data Annex'!$K$1:$K$5027,0),MATCH(J$46,'Data Annex'!$K$1:$AN$1,0)),\"\")","v":4.1014693984893102E-2},{"$f":"IFERROR(INDEX('Data Annex'!$K$1:$AN$5027,MATCH(K$45&\"|\"&$B61,'Data Annex'!$K$1:$K$5027,0),MATCH(K$46,'Data Annex'!$K$1:$AN$1,0)),\"\")","v":4.0596645406521997E-2},{"$f":"IFERROR(INDEX('Data Annex'!$K$1:$AN$5027,MATCH(L$45&\"|\"&$B61,'Data Annex'!$K$1:$K$5027,0),MATCH(L$46,'Data Annex'!$K$1:$AN$1,0)),\"\")","v":3.73002075254684E-2},{"$f":"IFERROR(INDEX('Data Annex'!$K$1:$AN$5027,MATCH(M$45&\"|\"&$B61,'Data Annex'!$K$1:$K$5027,0),MATCH(M$46,'Data Annex'!$K$1:$AN$1,0)),\"\")","v":0.23099851865236701},{"$f":"IFERROR(INDEX('Data Annex'!$K$1:$AN$5027,MATCH(N$45&\"|\"&$B61,'Data Annex'!$K$1:$K$5027,0),MATCH(N$46,'Data Annex'!$K$1:$AN$1,0)),\"\")","v":0.244472304720941},{"$f":"IFERROR(INDEX('Data Annex'!$K$1:$AN$5027,MATCH(O$45&\"|\"&$B61,'Data Annex'!$K$1:$K$5027,0),MATCH(O$46,'Data Annex'!$K$1:$AN$1,0)),\"\")","v":0.23165072873340101},{"$f":"IFERROR(INDEX('Data Annex'!$K$1:$AN$5027,MATCH(P$45&\"|\"&$B61,'Data Annex'!$K$1:$K$5027,0),MATCH(P$46,'Data Annex'!$K$1:$AN$1,0)),\"\")","v":0.207701016332488},{"$f":"IFERROR(INDEX('Data Annex'!$K$1:$AN$5027,MATCH(Q$45&\"|\"&$B61,'Data Annex'!$K$1:$K$5027,0),MATCH(Q$46,'Data Annex'!$K$1:$AN$1,0)),\"\")","v":5.1369079035173099E-2},{"$f":"IFERROR(INDEX('Data Annex'!$K$1:$AN$5027,MATCH(R$45&\"|\"&$B61,'Data Annex'!$K$1:$K$5027,0),MATCH(R$46,'Data Annex'!$K$1:$AN$1,0)),\"\")","v":5.3799553392558902E-2},{"$f":"IFERROR(INDEX('Data Annex'!$K$1:$AN$5027,MATCH(S$45&\"|\"&$B61,'Data Annex'!$K$1:$K$5027,0),MATCH(S$46,'Data Annex'!$K$1:$AN$1,0)),\"\")","v":5.24126815718053E-2},{"$f":"IFERROR(INDEX('Data Annex'!$K$1:$AN$5027,MATCH(T$45&\"|\"&$B61,'Data Annex'!$K$1:$K$5027,0),MATCH(T$46,'Data Annex'!$K$1:$AN$1,0)),\"\")","v":5.1211335228126299E-2}]
[11,"FR",null,"FR",{"$f":"IFERROR(INDEX('Data Annex'!$K$1:$AN$5027,MATCH(E$45&\"|\"&$B62,'Data Annex'!$K$1:$K$5027,0),MATCH(E$46,'Data Annex'!$K$1:$AN$1,0)),\"\")","v":40.345079898657801},{"$f":"IFERROR(INDEX('Data Annex'!$K$1:$AN$5027,MATCH(F$45&\"|\"&$B62,'Data Annex'!$K$1:$K$5027,0),MATCH(F$46,'Data Annex'!$K$1:$AN$1,0)),\"\")","v":45.5869647825131},{"$f":"IFERROR(INDEX('Data Annex'!$K$1:$AN$5027,MATCH(G$45&\"|\"&$B62,'Data Annex'!$K$1:$K$5027,0),MATCH(G$46,'Data Annex'!$K$1:$AN$1,0)),\"\")","v":47.873975664842298},{"$f":"IFERROR(INDEX('Data Annex'!$K$1:$AN$5027,MATCH(H$45&\"|\"&$B62,'Data Annex'!$K$1:$K$5027,0),MATCH(H$46,'Data Annex'!$K$1:$AN$1,0)),\"\")","v":47.616990597944898},{"$f":"IFERROR(INDEX('Data Annex'!$K$1:$AN$5027,MATCH(I$45&\"|\"&$B62,'Data Annex'!$K$1:$K$5027,0),MATCH(I$46,'Data Annex'!$K$1:$AN$1,0)),\"\")","v":4.2972197857620797E-2},{"$f":"IFERROR(INDEX('Data Annex'!$K$1:$AN$5027,MATCH(J$45&\"|\"&$B62,'Data Annex'!$K$1:$K$5027,0),MATCH(J$46,'Data Annex'!$K$1:$AN$1,0)),\"\")","v":4.5447161079019603E-2},{"$f":"IFERROR(INDEX('Data Annex'!$K$1:$AN$5027,MATCH(K$45&\"|\"&$B62,'Data Annex'!$K$1:$K$5027,0),MATCH(K$46,'Data Annex'!$K$1:$AN$1,0)),\"\")","v":4.7719367756282501E-2},{"$f":"IFERROR(INDEX('Data Annex'!$K$1:$AN$5027,MATCH(L$45&\"|\"&$B62,'Data Annex'!$K$1:$K$5027,0),MATCH(L$46,'Data Annex'!$K$1:$AN$1,0)),\"\")","v":4.6960277137628299E-2},{"$f":"IFERROR(INDEX('Data Annex'!$K$1:$AN$5027,MATCH(M$45&\"|\"&$B62,'Data Annex'!$K$1:$K$5027,0),MATCH(M$46,'Data Annex'!$K$1:$AN$1,0)),\"\")","v":2.2447921197681602},{"$f":"IFERROR(INDEX('Data Annex'!$K$1:$AN$5027,MATCH(N$45&\"|\"&$B62,'Data Annex'!$K$1:$K$5027,0),MATCH(N$46,'Data Annex'!$K$1:$AN$1,0)),\"\")","v":2.2694057172328401},{"$f":"IFERROR(INDEX('Data Annex'!$K$1:$AN$5027,MATCH(O$45&\"|\"&$B62,'Data Annex'!$K$1:$K$5027,0),MATCH(O$46,'Data Annex'!$K$1:$AN$1,0)),\"\")","v":2.2571366533632},{"$f":"IFERROR(INDEX('Data Annex'!$K$1:$AN$5027,MATCH(P$45&\"|\"&$B62,'Data Annex'!$K$1:$K$5027,0),MATCH(P$46,'Data Annex'!$K$1:$AN$1,0)),\"\")","v":2.23200307835172},{"$f":"IFERROR(INDEX('Data Annex'!$K$1:$AN$5027,MATCH(Q$45&\"|\"&$B62,'Data Annex'!$K$1:$K$5027,0),MATCH(Q$46,'Data Annex'!$K$1:$AN$1,0)),\"\")","v":5.56397985927111E-2},{"$f":"IFERROR(INDEX('Data Annex'!$K$1:$AN$5027,MATCH(R$45&\"|\"&$B62,'Data Annex'!$K$1:$K$5027,0),MATCH(R$46,'Data Annex'!$K$1:$AN$1,0)),\"\")","v":4.97818998930891E-2},{"$f":"IFERROR(INDEX('Data Annex'!$K$1:$AN$5027,MATCH(S$45&\"|\"&$B62,'Data Annex'!$K$1:$K$5027,0),MATCH(S$46,'Data Annex'!$K$1:$AN$1,0)),\"\")","v":4.7147466280323902E-2},{"$f":"IFERROR(INDEX('Data Annex'!$K$1:$AN$5027,MATCH(T$45&\"|\"&$B62,'Data Annex'!$K$1:$K$5027,0),MATCH(T$46,'Data Annex'!$K$1:$AN$1,0)),\"\")","v":4.6874089486202399E-2}]
[13,"GR",null,"GR",{"$f":"IFERROR(INDEX('Data Annex'!$K$1:$AN$5027,MATCH(E$45&\"|\"&$B63,'Data Annex'!$K$1:$K$5027,0),MATCH(E$46,'Data Annex'!$K$1:$AN$1,0)),\"\")","v":6.7965870104899997},{"$f":"IFERROR(INDEX('Data Annex'!$K$1:$AN$5027,MATCH(F$45&\"|\"&$B63,'Data Annex'!$K$1:$K$5027,0),MATCH(F$46,'Data Annex'!$K$1:$AN$1,0)),\"\")","v":6.08060288179},{"$f":"IFERROR(INDEX('Data Annex'!$K$1:$AN$5027,MATCH(G$45&\"|\"&$B63,'Data Annex'!$K$1:$K$5027,0),MATCH(G$46,'Data Annex'!$K$1:$AN$1,0)),\"\")","v":5.9235214253599997},{"$f":"IFERROR(INDEX('Data Annex'!$K$1:$AN$5027,MATCH(H$45&\"|\"&$B63,'Data Annex'!$K$1:$K$5027,0),MATCH(H$46,'Data Annex'!$K$1:$AN$1,0)),\"\")","v":5.5970395507799999},{"$f":"IFERROR(INDEX('Data Annex'!$K$1:$AN$5027,MATCH(I$45&\"|\"&$B63,'Data Annex'!$K$1:$K$5027,0),MATCH(I$46,'Data Annex'!$K$1:$AN$1,0)),\"\")","v":8.4242712467483702E-2},{"$f":"IFERROR(INDEX('Data Annex'!$K$1:$AN$5027,MATCH(J$45&\"|\"&$B63,'Data Annex'!$K$1:$K$5027,0),MATCH(J$46,'Data Annex'!$K$1:$AN$1,0)),\"\")","v":7.9937521385198093E-2},{"$f":"IFERROR(INDEX('Data Annex'!$K$1:$AN$5027,MATCH(K$45&\"|\"&$B63,'Data Annex'!$K$1:$K$5027,0),MATCH(K$46,'Data Annex'!$K$1:$AN$1,0)),\"\")","v":7.6617415004653397E-2},{"$f":"IFERROR(INDEX('Data Annex'!$K$1:$AN$5027,MATCH(L$45&\"|\"&$B63,'Data Annex'!$K$1:$K$5027,0),MATCH(L$46,'Data Annex'!$K$1:$AN$1,0)),\"\")","v":7.1965837002177499E-2},{"$f":"IFERROR(INDEX('Data Annex'!$K$1:$AN$5027,MATCH(M$45&\"|\"&$B63,'Data Annex'!$K$1:$K$5027,0),MATCH(M$46,'Data Annex'!$K$1:$AN$1,0)),\"\")","v":3.6541438635899999},{"$f":"IFERROR(INDEX('Data Annex'!$K$1:$AN$5027,MATCH(N$45&\"|\"&$B63,'Data Annex'!$K$1:$K$5027,0),MATCH(N$46,'Data Annex'!$K$1:$AN$1,0)),\"\")","v":3.0330448956899998},{"$f":"IFERROR(INDEX('Data Annex'!$K$1:$AN$5027,MATCH(O$45&\"|\"&$B63,'Data Annex'!$K$1:$K$5027,0),MATCH(O$46,'Data Annex'!$K$1:$AN$1,0)),\"\")","v":2.8903809038400001},{"$f":"IFERROR(INDEX('Data Annex'!$K$1:$AN$5027,MATCH(P$45&\"|\"&$B63,'Data Annex'!$K$1:$K$5027,0),MATCH(P$46,'Data Annex'!$K$1:$AN$1,0)),\"\")","v":2.7189243293600001},{"$f":"IFERROR(INDEX('Data Annex'!$K$1:$AN$5027,MATCH(Q$45&\"|\"&$B63,'Data Annex'!$K$1:$K$5027,0),MATCH(Q$46,'Data Annex'!$K$1:$AN$1,0)),\"\")","v":0.53764394657938097},{"$f":"IFERROR(INDEX('Data Annex'!$K$1:$AN$5027,MATCH(R$45&\"|\"&$B63,'Data Annex'!$K$1:$K$5027,0),MATCH(R$46,'Data Annex'!$K$1:$AN$1,0)),\"\")","v":0.49880660761012202},{"$f":"IFERROR(INDEX('Data Annex'!$K$1:$AN$5027,MATCH(S$45&\"|\"&$B63,'Data Annex'!$K$1:$K$5027,0),MATCH(S$46,'Data Annex'!$K$1:$AN$1,0)),\"\")","v":0.48794976776239801},{"$f":"IFERROR(INDEX('Data Annex'!$K$1:$AN$5027,MATCH(T$45&\"|\"&$B63,'Data Annex'!$K$1:$K$5027,0),MATCH(T$46,'Data Annex'!$K$1:$AN$1,0)),\"\")","v":0.485779009544625}]
[14,"HR",null,"HR",{"$f":"IFERROR(INDEX('Data Annex'!$K$1:$AN$5027,MATCH(E$45&\"|\"&$B64,'Data Annex'!$K$1:$K$5027,0),MATCH(E$46,'Data Annex'!$K$1:$AN$1,0)),\"\")","v":1.04543537415242},{"$f":"IFERROR(INDEX('Data Annex'!$K$1:$AN$5027,MATCH(F$45&\"|\"&$B64,'Data Annex'!$K$1:$K$5027,0),MATCH(F$46,'Data Annex'!$K$1:$AN$1,0)),\"\")","v":1.0354547698865499},{"$f":"IFERROR(INDEX('Data Annex'!$K$1:$AN$5027,MATCH(G$45&\"|\"&$B64,'Data Annex'!$K$1:$K$5027,0),MATCH(G$46,'Data Annex'!$K$1:$AN$1,0)),\"\")","v":1.0420188275234701},{"$f":"IFERROR(INDEX('Data Annex'!$K$1:$AN$5027,MATCH(H$45&\"|\"&$B64,'Data Annex'!$K$1:$K$5027,0),MATCH(H$46,'Data Annex'!$K$1:$AN$1,0)),\"\")","v":1.1835888880247201},{"$f":"IFERROR(INDEX('Data Annex'!$K$1:$AN$5027,MATCH(I$45&\"|\"&$B64,'Data Annex'!$K$1:$K$5027,0),MATCH(I$46,'Data Annex'!$K$1:$AN$1,0)),\"\")","v":8.1467453059201403E-2},{"$f":"IFERROR(INDEX('Data Annex'!$K$1:$AN$5027,MATCH(J$45&\"|\"&$B64,'Data Annex'!$K$1:$K$5027,0),MATCH(J$46,'Data Annex'!$K$1:$AN$1,0)),\"\")","v":8.1468344597036099E-2},{"$f":"IFERROR(INDEX('Data Annex'!$K$1:$AN$5027,MATCH(K$45&\"|\"&$B64,'Data Annex'!$K$1:$K$5027,0),MATCH(K$46,'Data Annex'!$K$1:$AN$1,0)),\"\")","v":8.3717048544493897E-2},{"$f":"IFERROR(INDEX('Data Annex'!$K$1:$AN$5027,MATCH(L$45&\"|\"&$B64,'Data Annex'!$K$1:$K$5027,0),MATCH(L$46,'Data Annex'!$K$1:$AN$1,0)),\"\")","v":9.5957541259259496E-2},{"$f":"IFERROR(INDEX('Data Annex'!$K$1:$AN$5027,MATCH(M$45&\"|\"&$B64,'Data Annex'!$K$1:$K$5027,0),MATCH(M$46,'Data Annex'!$K$1:$AN$1,0)),\"\")","v":0.13760021173508499},{"$f":"IFERROR(INDEX('Data Annex'!$K$1:$AN$5027,MATCH(N$45&\"|\"&$B64,'Data Annex'!$K$1:$K$5027,0),MATCH(N$46,'Data Annex'!$K$1:$AN$1,0)),\"\")","v":0.145153542591166},{"$f":"IFERROR(INDEX('Data Annex'!$K$1:$AN$5027,MATCH(O$45&\"|\"&$B64,'Data Annex'!$K$1:$K$5027,0),MATCH(O$46,'Data Annex'!$K$1:$AN$1,0)),\"\")","v":0.13251972473218199},{"$f":"IFERROR(INDEX('Data Annex'!$K$1:$AN$5027,MATCH(P$45&\"|\"&$B64,'Data Annex'!$K$1:$K$5027,0),MATCH(P$46,'Data Annex'!$K$1:$AN$1,0)),\"\")","v":0.12660537619438},{"$f":"IFERROR(INDEX('Data Annex'!$K$1:$AN$5027,MATCH(Q$45&\"|\"&$B64,'Data Annex'!$K$1:$K$5027,0),MATCH(Q$46,'Data Annex'!$K$1:$AN$1,0)),\"\")","v":0.13162000745062299},{"$f":"IFERROR(INDEX('Data Annex'!$K$1:$AN$5027,MATCH(R$45&\"|\"&$B64,'Data Annex'!$K$1:$K$5027,0),MATCH(R$46,'Data Annex'!$K$1:$AN$1,0)),\"\")","v":0.14018337334722},{"$f":"IFERROR(INDEX('Data Annex'!$K$1:$AN$5027,MATCH(S$45&\"|\"&$B64,'Data Annex'!$K$1:$K$5027,0),MATCH(S$46,'Data Annex'!$K$1:$AN$1,0)),\"\")","v":0.12717594081014499},{"$f":"IFERROR(INDEX('Data Annex'!$K$1:$AN$5027,MATCH(T$45&\"|\"&$B64,'Data Annex'!$K$1:$K$5027,0),MATCH(T$46,'Data Annex'!$K$1:$AN$1,0)),\"\")","v":0.106967357902177}]
[15,"HU",null,"HU",{"$f":"IFERROR(INDEX('Data Annex'!$K$1:$AN$5027,MATCH(E$45&\"|\"&$B65,'Data Annex'!$K$1:$K$5027,0),MATCH(E$46,'Data Annex'!$K$1:$AN$1,0)),\"\")","v":1.00097828716967},{"$f":"IFERROR(INDEX('Data Annex'!$K$1:$AN$5027,MATCH(F$45&\"|\"&$B65,'Data Annex'!$K$1:$K$5027,0),MATCH(F$46,'Data Annex'!$K$1:$AN$1,0)),\"\")","v":1.0090898884892401},{"$f":"IFERROR(INDEX('Data Annex'!$K$1:$AN$5027,MATCH(G$45&\"|\"&$B65,'Data Annex'!$K$1:$K$5027,0),MATCH(G$46,'Data Annex'!$K$1:$AN$1,0)),\"\")","v":1.0368510517626299},{"$f":"IFERROR(INDEX('Data Annex'!$K$1:$AN$5027,MATCH(H$45&\"|\"&$B65,'Data Annex'!$K$1:$K$5027,0),MATCH(H$46,'Data Annex'!$K$1:$AN$1,0)),\"\")","v":1.05782090074155},{"$f":"IFERROR(INDEX('Data Annex'!$K$1:$AN$5027,MATCH(I$45&\"|\"&$B65,'Data Annex'!$K$1:$K$5027,0),MATCH(I$46,'Data Annex'!$K$1:$AN$1,0)),\"\")","v":4.5686461710195497E-2},{"$f":"IFERROR(INDEX('Data Annex'!$K$1:$AN$5027,MATCH(J$45&\"|\"&$B65,'Data Annex'!$K$1:$K$5027,0),MATCH(J$46,'Data Annex'!$K$1:$AN$1,0)),\"\")","v":4.6310787668115701E-2},{"$f":"IFERROR(INDEX('Data Annex'!$K$1:$AN$5027,MATCH(K$45&\"|\"&$B65,'Data Annex'!$K$1:$K$5027,0),MATCH(K$46,'Data Annex'!$K$1:$AN$1,0)),\"\")","v":4.7474322172146699E-2},{"$f":"IFERROR(INDEX('Data Annex'!$K$1:$AN$5027,MATCH(L$45&\"|\"&$B65,'Data Annex'!$K$1:$K$5027,0),MATCH(L$46,'Data Annex'!$K$1:$AN$1,0)),\"\")","v":4.7679088646375198E-2},{"$f":"IFERROR(INDEX('Data Annex'!$K$1:$AN$5027,MATCH(M$45&\"|\"&$B65,'Data Annex'!$K$1:$K$5027,0),MATCH(M$46,'Data Annex'!$K$1:$AN$1,0)),\"\")","v":1.8421256878638999E-2},{"$f":"IFERROR(INDEX('Data Annex'!$K$1:$AN$5027,MATCH(N$45&\"|\"&$B65,'Data Annex'!$K$1:$K$5027,0),MATCH(N$46,'Data Annex'!$K$1:$AN$1,0)),\"\")","v":1.57084539908144E-2},{"$f":"IFERROR(INDEX('Data Annex'!$K$1:$AN$5027,MATCH(O$45&\"|\"&$B65,'Data Annex'!$K$1:$K$5027,0),MATCH(O$46,'Data Annex'!$K$1:$AN$1,0)),\"\")","v":1.7105228181618502E-2},{"$f":"IFERROR(INDEX('Data Annex'!$K$1:$AN$5027,MATCH(P$45&\"|\"&$B65,'Data Annex'!$K$1:$K$5027,0),MATCH(P$46,'Data Annex'!$K$1:$AN$1,0)),\"\")","v":1.7315412118856802E-2},{"$f":"IFERROR(INDEX('Data Annex'!$K$1:$AN$5027,MATCH(Q$45&\"|\"&$B65,'Data Annex'!$K$1:$K$5027,0),MATCH(Q$46,'Data Annex'!$K$1:$AN$1,0)),\"\")","v":1.84032532121414E-2},{"$f":"IFERROR(INDEX('Data Annex'!$K$1:$AN$5027,MATCH(R$45&\"|\"&$B65,'Data Annex'!$K$1:$K$5027,0),MATCH(R$46,'Data Annex'!$K$1:$AN$1,0)),\"\")","v":1.5566952131818799E-2},{"$f":"IFERROR(INDEX('Data Annex'!$K$1:$AN$5027,MATCH(S$45&\"|\"&$B65,'Data Annex'!$K$1:$K$5027,0),MATCH(S$46,'Data Annex'!$K$1:$AN$1,0)),\"\")","v":1.6497285846930301E-2},{"$f":"IFERROR(INDEX('Data Annex'!$K$1:$AN$5027,MATCH(T$45&\"|\"&$B65,'Data Annex'!$K$1:$K$5027,0),MATCH(T$46,'Data Annex'!$K$1:$AN$1,0)),\"\")","v":1.6368944976147101E-2}]
[16,"IE",null,"IE",{"$f":"IFERROR(INDEX('Data Annex'!$K$1:$AN$5027,MATCH(E$45&\"|\"&$B66,'Data Annex'!$K$1:$K$5027,0),MATCH(E$46,'Data Annex'!$K$1:$AN$1,0)),\"\")","v":1.5290597549626399},{"$f":"IFERROR(INDEX('Data Annex'!$K$1:$AN$5027,MATCH(F$45&\"|\"&$B66,'Data Annex'!$K$1:$K$5027,0),MATCH(F$46,'Data Annex'!$K$1:$AN$1,0)),\"\")","v":1.55282594573634},{"$f":"IFERROR(INDEX('Data Annex'!$K$1:$AN$5027,MATCH(G$45&\"|\"&$B66,'Data Annex'!$K$1:$K$5027,0),MATCH(G$46,'Data Annex'!$K$1:$AN$1,0)),\"\")","v":1.5103349925507401},{"$f":"IFERROR(INDEX('Data Annex'!$K$1:$AN$5027,MATCH(H$45&\"|\"&$B66,'Data Annex'!$K$1:$K$5027,0),MATCH(H$46,'Data Annex'!$K$1:$AN$1,0)),\"\")","v":1.3911001553589399},{"$f":"IFERROR(INDEX('Data Annex'!$K$1:$AN$5027,MATCH(I$45&\"|\"&$B66,'Data Annex'!$K$1:$K$5027,0),MATCH(I$46,'Data Annex'!$K$1:$AN$1,0)),\"\")","v":2.4684349659000501E-2},{"$f":"IFERROR(INDEX('Data Annex'!$K$1:$AN$5027,MATCH(J$45&\"|\"&$B66,'Data Annex'!$K$1:$K$5027,0),MATCH(J$46,'Data Annex'!$K$1:$AN$1,0)),\"\")","v":2.46704413474103E-2},{"$f":"IFERROR(INDEX('Data Annex'!$K$1:$AN$5027,MATCH(K$45&\"|\"&$B66,'Data Annex'!$K$1:$K$5027,0),MATCH(K$46,'Data Annex'!$K$1:$AN$1,0)),\"\")","v":2.5050647336509999E-2},{"$f":"IFERROR(INDEX('Data Annex'!$K$1:$AN$5027,MATCH(L$45&\"|\"&$B66,'Data Annex'!$K$1:$K$5027,0),MATCH(L$46,'Data Annex'!$K$1:$AN$1,0)),\"\")","v":2.4091902765065901E-2},{"$f":"IFERROR(INDEX('Data Annex'!$K$1:$AN$5027,MATCH(M$45&\"|\"&$B66,'Data Annex'!$K$1:$K$5027,0),MATCH(M$46,'Data Annex'!$K$1:$AN$1,0)),\"\")","v":0.13723979269886799},{"$f":"IFERROR(INDEX('Data Annex'!$K$1:$AN$5027,MATCH(N$45&\"|\"&$B66,'Data Annex'!$K$1:$K$5027,0),MATCH(N$46,'Data Annex'!$K$1:$AN$1,0)),\"\")","v":0.12142389408285},{"$f":"IFERROR(INDEX('Data Annex'!$K$1:$AN$5027,MATCH(O$45&\"|\"&$B66,'Data Annex'!$K$1:$K$5027,0),MATCH(O$46,'Data Annex'!$K$1:$AN$1,0)),\"\")","v":0.13001206364144299},{"$f":"IFERROR(INDEX('Data Annex'!$K$1:$AN$5027,MATCH(P$45&\"|\"&$B66,'Data Annex'!$K$1:$K$5027,0),MATCH(P$46,'Data Annex'!$K$1:$AN$1,0)),\"\")","v":0.114635117751195},{"$f":"IFERROR(INDEX('Data Annex'!$K$1:$AN$5027,MATCH(Q$45&\"|\"&$B66,'Data Annex'!$K$1:$K$5027,0),MATCH(Q$46,'Data Annex'!$K$1:$AN$1,0)),\"\")","v":8.9754368495703701E-2},{"$f":"IFERROR(INDEX('Data Annex'!$K$1:$AN$5027,MATCH(R$45&\"|\"&$B66,'Data Annex'!$K$1:$K$5027,0),MATCH(R$46,'Data Annex'!$K$1:$AN$1,0)),\"\")","v":7.8195430992281795E-2},{"$f":"IFERROR(INDEX('Data Annex'!$K$1:$AN$5027,MATCH(S$45&\"|\"&$B66,'Data Annex'!$K$1:$K$5027,0),MATCH(S$46,'Data Annex'!$K$1:$AN$1,0)),\"\")","v":8.6081607247854006E-2},{"$f":"IFERROR(INDEX('Data Annex'!$K$1:$AN$5027,MATCH(T$45&\"|\"&$B66,'Data Annex'!$K$1:$K$5027,0),MATCH(T$46,'Data Annex'!$K$1:$AN$1,0)),\"\")","v":8.2406085075603694E-2}]
[17,"IS",null,"IS",{"$f":"IFERROR(INDEX('Data Annex'!$K$1:$AN$5027,MATCH(E$45&\"|\"&$B67,'Data Annex'!$K$1:$K$5027,0),MATCH(E$46,'Data Annex'!$K$1:$AN$1,0)),\"\")","v":1.2550716805178801},{"$f":"IFERROR(INDEX('Data Annex'!$K$1:$AN$5027,MATCH(F$45&\"|\"&$B67,'Data Annex'!$K$1:$K$5027,0),MATCH(F$46,'Data Annex'!$K$1:$AN$1,0)),\"\")","v":1.24303506152621},{"$f":"IFERROR(INDEX('Data Annex'!$K$1:$AN$5027,MATCH(G$45&\"|\"&$B67,'Data Annex'!$K$1:$K$5027,0),MATCH(G$46,'Data Annex'!$K$1:$AN$1,0)),\"\")","v":1.1787080775585499},{"$f":"IFERROR(INDEX('Data Annex'!$K$1:$AN$5027,MATCH(H$45&\"|\"&$B67,'Data Annex'!$K$1:$K$5027,0),MATCH(H$46,'Data Annex'!$K$1:$AN$1,0)),\"\")","v":1.1253242010048301},{"$f":"IFERROR(INDEX('Data Annex'!$K$1:$AN$5027,MATCH(I$45&\"|\"&$B67,'Data Annex'!$K$1:$K$5027,0),MATCH(I$46,'Data Annex'!$K$1:$AN$1,0)),\"\")","v":0.11585816980906199},{"$f":"IFERROR(INDEX('Data Annex'!$K$1:$AN$5027,MATCH(J$45&\"|\"&$B67,'Data Annex'!$K$1:$K$5027,0),MATCH(J$46,'Data Annex'!$K$1:$AN$1,0)),\"\")","v":0.115547183239038},{"$f":"IFERROR(INDEX('Data Annex'!$K$1:$AN$5027,MATCH(K$45&\"|\"&$B67,'Data Annex'!$K$1:$K$5027,0),MATCH(K$46,'Data Annex'!$K$1:$AN$1,0)),\"\")","v":0.113342425395847},{"$f":"IFERROR(INDEX('Data Annex'!$K$1:$AN$5027,MATCH(L$45&\"|\"&$B67,'Data Annex'!$K$1:$K$5027,0),MATCH(L$46,'Data Annex'!$K$1:$AN$1,0)),\"\")","v":0.106231097212255},{"$f":"IFERROR(INDEX('Data Annex'!$K$1:$AN$5027,MATCH(M$45&\"|\"&$B67,'Data Annex'!$K$1:$K$5027,0),MATCH(M$46,'Data Annex'!$K$1:$AN$1,0)),\"\")","v":6.9156358334945101E-2},{"$f":"IFERROR(INDEX('Data Annex'!$K$1:$AN$5027,MATCH(N$45&\"|\"&$B67,'Data Annex'!$K$1:$K$5027,0),MATCH(N$46,'Data Annex'!$K$1:$AN$1,0)),\"\")","v":7.0660817267235804E-2},{"$f":"IFERROR(INDEX('Data Annex'!$K$1:$AN$5027,MATCH(O$45&\"|\"&$B67,'Data Annex'!$K$1:$K$5027,0),MATCH(O$46,'Data Annex'!$K$1:$AN$1,0)),\"\")","v":4.3041472222624298E-2},{"$f":"IFERROR(INDEX('Data Annex'!$K$1:$AN$5027,MATCH(P$45&\"|\"&$B67,'Data Annex'!$K$1:$K$5027,0),MATCH(P$46,'Data Annex'!$K$1:$AN$1,0)),\"\")","v":3.1843344273115498E-2},{"$f":"IFERROR(INDEX('Data Annex'!$K$1:$AN$5027,MATCH(Q$45&\"|\"&$B67,'Data Annex'!$K$1:$K$5027,0),MATCH(Q$46,'Data Annex'!$K$1:$AN$1,0)),\"\")","v":5.5101520820236602E-2},{"$f":"IFERROR(INDEX('Data Annex'!$K$1:$AN$5027,MATCH(R$45&\"|\"&$B67,'Data Annex'!$K$1:$K$5027,0),MATCH(R$46,'Data Annex'!$K$1:$AN$1,0)),\"\")","v":5.6845393548656503E-2},{"$f":"IFERROR(INDEX('Data Annex'!$K$1:$AN$5027,MATCH(S$45&\"|\"&$B67,'Data Annex'!$K$1:$K$5027,0),MATCH(S$46,'Data Annex'!$K$1:$AN$1,0)),\"\")","v":3.6515803227357001E-2},{"$f":"IFERROR(INDEX('Data Annex'!$K$1:$AN$5027,MATCH(T$45&\"|\"&$B67,'Data Annex'!$K$1:$K$5027,0),MATCH(T$46,'Data Annex'!$K$1:$AN$1,0)),\"\")","v":2.8297040305968399E-2}]
[18,"IT",null,"IT",{"$f":"IFERROR(INDEX('Data Annex'!$K$1:$AN$5027,MATCH(E$45&\"|\"&$B68,'Data Annex'!$K$1:$K$5027,0),MATCH(E$46,'Data Annex'!$K$1:$AN$1,0)),\"\")","v":47.025412437786201},{"$f":"IFERROR(INDEX('Data Annex'!$K$1:$AN$5027,MATCH(F$45&\"|\"&$B68,'Data Annex'!$K$1:$K$5027,0),MATCH(F$46,'Data Annex'!$K$1:$AN$1,0)),\"\")","v":45.7635702224376},{"$f":"IFERROR(INDEX('Data Annex'!$K$1:$AN$5027,MATCH(G$45&\"|\"&$B68,'Data Annex'!$K$1:$K$5027,0),MATCH(G$46,'Data Annex'!$K$1:$AN$1,0)),\"\")","v":48.462033563339297},{"$f":"IFERROR(INDEX('Data Annex'!$K$1:$AN$5027,MATCH(H$45&\"|\"&$B68,'Data Annex'!$K$1:$K$5027,0),MATCH(H$46,'Data Annex'!$K$1:$AN$1,0)),\"\")","v":41.930885650942997},{"$f":"IFERROR(INDEX('Data Annex'!$K$1:$AN$5027,MATCH(I$45&\"|\"&$B68,'Data Annex'!$K$1:$K$5027,0),MATCH(I$46,'Data Annex'!$K$1:$AN$1,0)),\"\")","v":8.9888242914547598E-2},{"$f":"IFERROR(INDEX('Data Annex'!$K$1:$AN$5027,MATCH(J$45&\"|\"&$B68,'Data Annex'!$K$1:$K$5027,0),MATCH(J$46,'Data Annex'!$K$1:$AN$1,0)),\"\")","v":8.6171472037490898E-2},{"$f":"IFERROR(INDEX('Data Annex'!$K$1:$AN$5027,MATCH(K$45&\"|\"&$B68,'Data Annex'!$K$1:$K$5027,0),MATCH(K$46,'Data Annex'!$K$1:$AN$1,0)),\"\")","v":8.8555709352189399E-2},{"$f":"IFERROR(INDEX('Data Annex'!$K$1:$AN$5027,MATCH(L$45&\"|\"&$B68,'Data Annex'!$K$1:$K$5027,0),MATCH(L$46,'Data Annex'!$K$1:$AN$1,0)),\"\")","v":7.9763272966457105E-2},{"$f":"IFERROR(INDEX('Data Annex'!$K$1:$AN$5027,MATCH(M$45&\"|\"&$B68,'Data Annex'!$K$1:$K$5027,0),MATCH(M$46,'Data Annex'!$K$1:$AN$1,0)),\"\")","v":17.367246794829999},{"$f":"IFERROR(INDEX('Data Annex'!$K$1:$AN$5027,MATCH(N$45&\"|\"&$B68,'Data Annex'!$K$1:$K$5027,0),MATCH(N$46,'Data Annex'!$K$1:$AN$1,0)),\"\")","v":16.39437679109},{"$f":"IFERROR(INDEX('Data Annex'!$K$1:$AN$5027,MATCH(O$45&\"|\"&$B68,'Data Annex'!$K$1:$K$5027,0),MATCH(O$46,'Data Annex'!$K$1:$AN$1,0)),\"\")","v":16.192730223280002},{"$f":"IFERROR(INDEX('Data Annex'!$K$1:$AN$5027,MATCH(P$45&\"|\"&$B68,'Data Annex'!$K$1:$K$5027,0),MATCH(P$46,'Data Annex'!$K$1:$AN$1,0)),\"\")","v":10.67995373492},{"$f":"IFERROR(INDEX('Data Annex'!$K$1:$AN$5027,MATCH(Q$45&\"|\"&$B68,'Data Annex'!$K$1:$K$5027,0),MATCH(Q$46,'Data Annex'!$K$1:$AN$1,0)),\"\")","v":0.36931620361238898},{"$f":"IFERROR(INDEX('Data Annex'!$K$1:$AN$5027,MATCH(R$45&\"|\"&$B68,'Data Annex'!$K$1:$K$5027,0),MATCH(R$46,'Data Annex'!$K$1:$AN$1,0)),\"\")","v":0.35824077342313498},{"$f":"IFERROR(INDEX('Data Annex'!$K$1:$AN$5027,MATCH(S$45&\"|\"&$B68,'Data Annex'!$K$1:$K$5027,0),MATCH(S$46,'Data Annex'!$K$1:$AN$1,0)),\"\")","v":0.33413228939549799},{"$f":"IFERROR(INDEX('Data Annex'!$K$1:$AN$5027,MATCH(T$45&\"|\"&$B68,'Data Annex'!$K$1:$K$5027,0),MATCH(T$46,'Data Annex'!$K$1:$AN$1,0)),\"\")","v":0.25470374806356599}]
[19,"LT",null,"LT",{"$f":"IFERROR(INDEX('Data Annex'!$K$1:$AN$5027,MATCH(E$45&\"|\"&$B69,'Data Annex'!$K$1:$K$5027,0),MATCH(E$46,'Data Annex'!$K$1:$AN$1,0)),\"\")","v":0.35509448098436402},{"$f":"IFERROR(INDEX('Data Annex'!$K$1:$AN$5027,MATCH(F$45&\"|\"&$B69,'Data Annex'!$K$1:$K$5027,0),MATCH(F$46,'Data Annex'!$K$1:$AN$1,0)),\"\")","v":0.34140519538785702},{"$f":"IFERROR(INDEX('Data Annex'!$K$1:$AN$5027,MATCH(G$45&\"|\"&$B69,'Data Annex'!$K$1:$K$5027,0),MATCH(G$46,'Data Annex'!$K$1:$AN$1,0)),\"\")","v":0.32791760874953002},{"$f":"IFERROR(INDEX('Data Annex'!$K$1:$AN$5027,MATCH(H$45&\"|\"&$B69,'Data Annex'!$K$1:$K$5027,0),MATCH(H$46,'Data Annex'!$K$1:$AN$1,0)),\"\")","v":0.27552178250589499},{"$f":"IFERROR(INDEX('Data Annex'!$K$1:$AN$5027,MATCH(I$45&\"|\"&$B69,'Data Annex'!$K$1:$K$5027,0),MATCH(I$46,'Data Annex'!$K$1:$AN$1,0)),\"\")","v":3.2243135103810702E-2},{"$f":"IFERROR(INDEX('Data Annex'!$K$1:$AN$5027,MATCH(J$45&\"|\"&$B69,'Data Annex'!$K$1:$K$5027,0),MATCH(J$46,'Data Annex'!$K$1:$AN$1,0)),\"\")","v":3.5566968178663103E-2},{"$f":"IFERROR(INDEX('Data Annex'!$K$1:$AN$5027,MATCH(K$45&\"|\"&$B69,'Data Annex'!$K$1:$K$5027,0),MATCH(K$46,'Data Annex'!$K$1:$AN$1,0)),\"\")","v":3.29646512864427E-2},{"$f":"IFERROR(INDEX('Data Annex'!$K$1:$AN$5027,MATCH(L$45&\"|\"&$B69,'Data Annex'!$K$1:$K$5027,0),MATCH(L$46,'Data Annex'!$K$1:$AN$1,0)),\"\")","v":2.9551960163795198E-2},{"$f":"IFERROR(INDEX('Data Annex'!$K$1:$AN$5027,MATCH(M$45&\"|\"&$B69,'Data Annex'!$K$1:$K$5027,0),MATCH(M$46,'Data Annex'!$K$1:$AN$1,0)),\"\")","v":4.6620402573086799E-2},{"$f":"IFERROR(INDEX('Data Annex'!$K$1:$AN$5027,MATCH(N$45&\"|\"&$B69,'Data Annex'!$K$1:$K$5027,0),MATCH(N$46,'Data Annex'!$K$1:$AN$1,0)),\"\")","v":4.5969051063179701E-2},{"$f":"IFERROR(INDEX('Data Annex'!$K$1:$AN$5027,MATCH(O$45&\"|\"&$B69,'Data Annex'!$K$1:$K$5027,0),MATCH(O$46,'Data Annex'!$K$1:$AN$1,0)),\"\")","v":4.32267816066573E-2},{"$f":"IFERROR(INDEX('Data Annex'!$K$1:$AN$5027,MATCH(P$45&\"|\"&$B69,'Data Annex'!$K$1:$K$5027,0),MATCH(P$46,'Data Annex'!$K$1:$AN$1,0)),\"\")","v":3.5324085299036197E-2},{"$f":"IFERROR(INDEX('Data Annex'!$K$1:$AN$5027,MATCH(Q$45&\"|\"&$B69,'Data Annex'!$K$1:$K$5027,0),MATCH(Q$46,'Data Annex'!$K$1:$AN$1,0)),\"\")","v":0.13129013563896999},{"$f":"IFERROR(INDEX('Data Annex'!$K$1:$AN$5027,MATCH(R$45&\"|\"&$B69,'Data Annex'!$K$1:$K$5027,0),MATCH(R$46,'Data Annex'!$K$1:$AN$1,0)),\"\")","v":0.134646606683756},{"$f":"IFERROR(INDEX('Data Annex'!$K$1:$AN$5027,MATCH(S$45&\"|\"&$B69,'Data Annex'!$K$1:$K$5027,0),MATCH(S$46,'Data Annex'!$K$1:$AN$1,0)),\"\")","v":0.13182208107547799},{"$f":"IFERROR(INDEX('Data Annex'!$K$1:$AN$5027,MATCH(T$45&\"|\"&$B69,'Data Annex'!$K$1:$K$5027,0),MATCH(T$46,'Data Annex'!$K$1:$AN$1,0)),\"\")","v":0.128207958651256}]
[20,"LU",null,"LU",{"$f":"IFERROR(INDEX('Data Annex'!$K$1:$AN$5027,MATCH(E$45&\"|\"&$B70,'Data Annex'!$K$1:$K$5027,0),MATCH(E$46,'Data Annex'!$K$1:$AN$1,0)),\"\")","v":2.5151531307099999},{"$f":"IFERROR(INDEX('Data Annex'!$K$1:$AN$5027,MATCH(F$45&\"|\"&$B70,'Data Annex'!$K$1:$K$5027,0),MATCH(F$46,'Data Annex'!$K$1:$AN$1,0)),\"\")","v":2.6096815413900001},{"$f":"IFERROR(INDEX('Data Annex'!$K$1:$AN$5027,MATCH(G$45&\"|\"&$B70,'Data Annex'!$K$1:$K$5027,0),MATCH(G$46,'Data Annex'!$K$1:$AN$1,0)),\"\")","v":4.0701476412900002},{"$f":"IFERROR(INDEX('Data Annex'!$K$1:$AN$5027,MATCH(H$45&\"|\"&$B70,'Data Annex'!$K$1:$K$5027,0),MATCH(H$46,'Data Annex'!$K$1:$AN$1,0)),\"\")","v":3.6917058416800002},{"$f":"IFERROR(INDEX('Data Annex'!$K$1:$AN$5027,MATCH(I$45&\"|\"&$B70,'Data Annex'!$K$1:$K$5027,0),MATCH(I$46,'Data Annex'!$K$1:$AN$1,0)),\"\")","v":2.2081055273843301E-2},{"$f":"IFERROR(INDEX('Data Annex'!$K$1:$AN$5027,MATCH(J$45&\"|\"&$B70,'Data Annex'!$K$1:$K$5027,0),MATCH(J$46,'Data Annex'!$K$1:$AN$1,0)),\"\")","v":2.4365354678273901E-2},{"$f":"IFERROR(INDEX('Data Annex'!$K$1:$AN$5027,MATCH(K$45&\"|\"&$B70,'Data Annex'!$K$1:$K$5027,0),MATCH(K$46,'Data Annex'!$K$1:$AN$1,0)),\"\")","v":4.0114310003760797E-2},{"$f":"IFERROR(INDEX('Data Annex'!$K$1:$AN$5027,MATCH(L$45&\"|\"&$B70,'Data Annex'!$K$1:$K$5027,0),MATCH(L$46,'Data Annex'!$K$1:$AN$1,0)),\"\")","v":3.8657935059236599E-2},{"$f":"IFERROR(INDEX('Data Annex'!$K$1:$AN$5027,MATCH(M$45&\"|\"&$B70,'Data Annex'!$K$1:$K$5027,0),MATCH(M$46,'Data Annex'!$K$1:$AN$1,0)),\"\")","v":7.0670486000000005E-2},{"$f":"IFERROR(INDEX('Data Annex'!$K$1:$AN$5027,MATCH(N$45&\"|\"&$B70,'Data Annex'!$K$1:$K$5027,0),MATCH(N$46,'Data Annex'!$K$1:$AN$1,0)),\"\")","v":7.2469368000000006E-2},{"$f":"IFERROR(INDEX('Data Annex'!$K$1:$AN$5027,MATCH(O$45&\"|\"&$B70,'Data Annex'!$K$1:$K$5027,0),MATCH(O$46,'Data Annex'!$K$1:$AN$1,0)),\"\")","v":7.4988730000000003E-2},{"$f":"IFERROR(INDEX('Data Annex'!$K$1:$AN$5027,MATCH(P$45&\"|\"&$B70,'Data Annex'!$K$1:$K$5027,0),MATCH(P$46,'Data Annex'!$K$1:$AN$1,0)),\"\")","v":7.3436042000000007E-2},{"$f":"IFERROR(INDEX('Data Annex'!$K$1:$AN$5027,MATCH(Q$45&\"|\"&$B70,'Data Annex'!$K$1:$K$5027,0),MATCH(Q$46,'Data Annex'!$K$1:$AN$1,0)),\"\")","v":2.8097886024160499E-2},{"$f":"IFERROR(INDEX('Data Annex'!$K$1:$AN$5027,MATCH(R$45&\"|\"&$B70,'Data Annex'!$K$1:$K$5027,0),MATCH(R$46,'Data Annex'!$K$1:$AN$1,0)),\"\")","v":2.7769429660525001E-2},{"$f":"IFERROR(INDEX('Data Annex'!$K$1:$AN$5027,MATCH(S$45&\"|\"&$B70,'Data Annex'!$K$1:$K$5027,0),MATCH(S$46,'Data Annex'!$K$1:$AN$1,0)),\"\")","v":1.84240810429749E-2},{"$f":"IFERROR(INDEX('Data Annex'!$K$1:$AN$5027,MATCH(T$45&\"|\"&$B70,'Data Annex'!$K$1:$K$5027,0),MATCH(T$46,'Data Annex'!$K$1:$AN$1,0)),\"\")","v":1.9892170489559099E-2}]
[21,"LV",null,"LV",{"$f":"IFERROR(INDEX('Data Annex'!$K$1:$AN$5027,MATCH(E$45&\"|\"&$B71,'Data Annex'!$K$1:$K$5027,0),MATCH(E$46,'Data Annex'!$K$1:$AN$1,0)),\"\")","v":0.20888935919067},{"$f":"IFERROR(INDEX('Data Annex'!$K$1:$AN$5027,MATCH(F$45&\"|\"&$B71,'Data Annex'!$K$1:$K$5027,0),MATCH(F$46,'Data Annex'!$K$1:$AN$1,0)),\"\")","v":0.20238385595882799},{"$f":"IFERROR(INDEX('Data Annex'!$K$1:$AN$5027,MATCH(G$45&\"|\"&$B71,'Data Annex'!$K$1:$K$5027,0),MATCH(G$46,'Data Annex'!$K$1:$AN$1,0)),\"\")","v":0.195820104882243},{"$f":"IFERROR(INDEX('Data Annex'!$K$1:$AN$5027,MATCH(H$45&\"|\"&$B71,'Data Annex'!$K$1:$K$5027,0),MATCH(H$46,'Data Annex'!$K$1:$AN$1,0)),\"\")","v":0.15925435786247899},{"$f":"IFERROR(INDEX('Data Annex'!$K$1:$AN$5027,MATCH(I$45&\"|\"&$B71,'Data Annex'!$K$1:$K$5027,0),MATCH(I$46,'Data Annex'!$K$1:$AN$1,0)),\"\")","v":3.0355805284030601E-2},{"$f":"IFERROR(INDEX('Data Annex'!$K$1:$AN$5027,MATCH(J$45&\"|\"&$B71,'Data Annex'!$K$1:$K$5027,0),MATCH(J$46,'Data Annex'!$K$1:$AN$1,0)),\"\")","v":3.0506508969506699E-2},{"$f":"IFERROR(INDEX('Data Annex'!$K$1:$AN$5027,MATCH(K$45&\"|\"&$B71,'Data Annex'!$K$1:$K$5027,0),MATCH(K$46,'Data Annex'!$K$1:$AN$1,0)),\"\")","v":2.9363266819715499E-2},{"$f":"IFERROR(INDEX('Data Annex'!$K$1:$AN$5027,MATCH(L$45&\"|\"&$B71,'Data Annex'!$K$1:$K$5027,0),MATCH(L$46,'Data Annex'!$K$1:$AN$1,0)),\"\")","v":2.4542346561438499E-2},{"$f":"IFERROR(INDEX('Data Annex'!$K$1:$AN$5027,MATCH(M$45&\"|\"&$B71,'Data Annex'!$K$1:$K$5027,0),MATCH(M$46,'Data Annex'!$K$1:$AN$1,0)),\"\")","v":5.8740604100828804E-3},{"$f":"IFERROR(INDEX('Data Annex'!$K$1:$AN$5027,MATCH(N$45&\"|\"&$B71,'Data Annex'!$K$1:$K$5027,0),MATCH(N$46,'Data Annex'!$K$1:$AN$1,0)),\"\")","v":5.9517635077040998E-3},{"$f":"IFERROR(INDEX('Data Annex'!$K$1:$AN$5027,MATCH(O$45&\"|\"&$B71,'Data Annex'!$K$1:$K$5027,0),MATCH(O$46,'Data Annex'!$K$1:$AN$1,0)),\"\")","v":7.1703920989887697E-3},{"$f":"IFERROR(INDEX('Data Annex'!$K$1:$AN$5027,MATCH(P$45&\"|\"&$B71,'Data Annex'!$K$1:$K$5027,0),MATCH(P$46,'Data Annex'!$K$1:$AN$1,0)),\"\")","v":6.2963270075237299E-3},{"$f":"IFERROR(INDEX('Data Annex'!$K$1:$AN$5027,MATCH(Q$45&\"|\"&$B71,'Data Annex'!$K$1:$K$5027,0),MATCH(Q$46,'Data Annex'!$K$1:$AN$1,0)),\"\")","v":2.8120438651550301E-2},{"$f":"IFERROR(INDEX('Data Annex'!$K$1:$AN$5027,MATCH(R$45&\"|\"&$B71,'Data Annex'!$K$1:$K$5027,0),MATCH(R$46,'Data Annex'!$K$1:$AN$1,0)),\"\")","v":2.94082918793429E-2},{"$f":"IFERROR(INDEX('Data Annex'!$K$1:$AN$5027,MATCH(S$45&\"|\"&$B71,'Data Annex'!$K$1:$K$5027,0),MATCH(S$46,'Data Annex'!$K$1:$AN$1,0)),\"\")","v":3.6617241642785799E-2},{"$f":"IFERROR(INDEX('Data Annex'!$K$1:$AN$5027,MATCH(T$45&\"|\"&$B71,'Data Annex'!$K$1:$K$5027,0),MATCH(T$46,'Data Annex'!$K$1:$AN$1,0)),\"\")","v":3.9536293336228899E-2}]
[22,"MT",null,"MT",{"$f":"IFERROR(INDEX('Data Annex'!$K$1:$AN$5027,MATCH(E$45&\"|\"&$B72,'Data Annex'!$K$1:$K$5027,0),MATCH(E$46,'Data Annex'!$K$1:$AN$1,0)),\"\")","v":0.22917040139968001},{"$f":"IFERROR(INDEX('Data Annex'!$K$1:$AN$5027,MATCH(F$45&\"|\"&$B72,'Data Annex'!$K$1:$K$5027,0),MATCH(F$46,'Data Annex'!$K$1:$AN$1,0)),\"\")","v":0.23725465675671301},{"$f":"IFERROR(INDEX('Data Annex'!$K$1:$AN$5027,MATCH(G$45&\"|\"&$B72,'Data Annex'!$K$1:$K$5027,0),MATCH(G$46,'Data Annex'!$K$1:$AN$1,0)),\"\")","v":0.24211295509737299},{"$f":"IFERROR(INDEX('Data Annex'!$K$1:$AN$5027,MATCH(H$45&\"|\"&$B72,'Data Annex'!$K$1:$K$5027,0),MATCH(H$46,'Data Annex'!$K$1:$AN$1,0)),\"\")","v":0.20928410823999999},{"$f":"IFERROR(INDEX('Data Annex'!$K$1:$AN$5027,MATCH(I$45&\"|\"&$B72,'Data Annex'!$K$1:$K$5027,0),MATCH(I$46,'Data Annex'!$K$1:$AN$1,0)),\"\")","v":3.6104048960171303E-2},{"$f":"IFERROR(INDEX('Data Annex'!$K$1:$AN$5027,MATCH(J$45&\"|\"&$B72,'Data Annex'!$K$1:$K$5027,0),MATCH(J$46,'Data Annex'!$K$1:$AN$1,0)),\"\")","v":3.7814628133625003E-2},{"$f":"IFERROR(INDEX('Data Annex'!$K$1:$AN$5027,MATCH(K$45&\"|\"&$B72,'Data Annex'!$K$1:$K$5027,0),MATCH(K$46,'Data Annex'!$K$1:$AN$1,0)),\"\")","v":4.0839045389170603E-2},{"$f":"IFERROR(INDEX('Data Annex'!$K$1:$AN$5027,MATCH(L$45&\"|\"&$B72,'Data Annex'!$K$1:$K$5027,0),MATCH(L$46,'Data Annex'!$K$1:$AN$1,0)),\"\")","v":3.6126364483376E-2},{"$f":"IFERROR(INDEX('Data Annex'!$K$1:$AN$5027,MATCH(M$45&\"|\"&$B72,'Data Annex'!$K$1:$K$5027,0),MATCH(M$46,'Data Annex'!$K$1:$AN$1,0)),\"\")","v":7.5933529999999999E-2},{"$f":"IFERROR(INDEX('Data Annex'!$K$1:$AN$5027,MATCH(N$45&\"|\"&$B72,'Data Annex'!$K$1:$K$5027,0),MATCH(N$46,'Data Annex'!$K$1:$AN$1,0)),\"\")","v":7.3311408132333306E-2},{"$f":"IFERROR(INDEX('Data Annex'!$K$1:$AN$5027,MATCH(O$45&\"|\"&$B72,'Data Annex'!$K$1:$K$5027,0),MATCH(O$46,'Data Annex'!$K$1:$AN$1,0)),\"\")","v":6.9665748948393294E-2},{"$f":"IFERROR(INDEX('Data Annex'!$K$1:$AN$5027,MATCH(P$45&\"|\"&$B72,'Data Annex'!$K$1:$K$5027,0),MATCH(P$46,'Data Annex'!$K$1:$AN$1,0)),\"\")","v":6.3924945100000005E-2},{"$f":"IFERROR(INDEX('Data Annex'!$K$1:$AN$5027,MATCH(Q$45&\"|\"&$B72,'Data Annex'!$K$1:$K$5027,0),MATCH(Q$46,'Data Annex'!$K$1:$AN$1,0)),\"\")","v":0.33134091285885398},{"$f":"IFERROR(INDEX('Data Annex'!$K$1:$AN$5027,MATCH(R$45&\"|\"&$B72,'Data Annex'!$K$1:$K$5027,0),MATCH(R$46,'Data Annex'!$K$1:$AN$1,0)),\"\")","v":0.30899881643844301},{"$f":"IFERROR(INDEX('Data Annex'!$K$1:$AN$5027,MATCH(S$45&\"|\"&$B72,'Data Annex'!$K$1:$K$5027,0),MATCH(S$46,'Data Annex'!$K$1:$AN$1,0)),\"\")","v":0.28774069078779801},{"$f":"IFERROR(INDEX('Data Annex'!$K$1:$AN$5027,MATCH(T$45&\"|\"&$B72,'Data Annex'!$K$1:$K$5027,0),MATCH(T$46,'Data Annex'!$K$1:$AN$1,0)),\"\")","v":0.30544576765806303}]
[23,"NL",null,"NL",{"$f":"IFERROR(INDEX('Data Annex'!$K$1:$AN$5027,MATCH(E$45&\"|\"&$B73,'Data Annex'!$K$1:$K$5027,0),MATCH(E$46,'Data Annex'!$K$1:$AN$1,0)),\"\")","v":10.4050705081138},{"$f":"IFERROR(INDEX('Data Annex'!$K$1:$AN$5027,MATCH(F$45&\"|\"&$B73,'Data Annex'!$K$1:$K$5027,0),MATCH(F$46,'Data Annex'!$K$1:$AN$1,0)),\"\")","v":10.3103311991437},{"$f":"IFERROR(INDEX('Data Annex'!$K$1:$AN$5027,MATCH(G$45&\"|\"&$B73,'Data Annex'!$K$1:$K$5027,0),MATCH(G$46,'Data Annex'!$K$1:$AN$1,0)),\"\")","v":10.028330112247},{"$f":"IFERROR(INDEX('Data Annex'!$K$1:$AN$5027,MATCH(H$45&\"|\"&$B73,'Data Annex'!$K$1:$K$5027,0),MATCH(H$46,'Data Annex'!$K$1:$AN$1,0)),\"\")","v":10.4178303086192},{"$f":"IFERROR(INDEX('Data Annex'!$K$1:$AN$5027,MATCH(I$45&\"|\"&$B73,'Data Annex'!$K$1:$K$5027,0),MATCH(I$46,'Data Annex'!$K$1:$AN$1,0)),\"\")","v":3.2129237140261897E-2},{"$f":"IFERROR(INDEX('Data Annex'!$K$1:$AN$5027,MATCH(J$45&\"|\"&$B73,'Data Annex'!$K$1:$K$5027,0),MATCH(J$46,'Data Annex'!$K$1:$AN$1,0)),\"\")","v":3.2247630399108801E-2},{"$f":"IFERROR(INDEX('Data Annex'!$K$1:$AN$5027,MATCH(K$45&\"|\"&$B73,'Data Annex'!$K$1:$K$5027,0),MATCH(K$46,'Data Annex'!$K$1:$AN$1,0)),\"\")","v":3.23183758232179E-2},{"$f":"IFERROR(INDEX('Data Annex'!$K$1:$AN$5027,MATCH(L$45&\"|\"&$B73,'Data Annex'!$K$1:$K$5027,0),MATCH(L$46,'Data Annex'!$K$1:$AN$1,0)),\"\")","v":3.4395331249633503E-2},{"$f":"IFERROR(INDEX('Data Annex'!$K$1:$AN$5027,MATCH(M$45&\"|\"&$B73,'Data Annex'!$K$1:$K$5027,0),MATCH(M$46,'Data Annex'!$K$1:$AN$1,0)),\"\")","v":0.60761129859999996},{"$f":"IFERROR(INDEX('Data Annex'!$K$1:$AN$5027,MATCH(N$45&\"|\"&$B73,'Data Annex'!$K$1:$K$5027,0),MATCH(N$46,'Data Annex'!$K$1:$AN$1,0)),\"\")","v":0.69924477278999997},{"$f":"IFERROR(INDEX('Data Annex'!$K$1:$AN$5027,MATCH(O$45&\"|\"&$B73,'Data Annex'!$K$1:$K$5027,0),MATCH(O$46,'Data Annex'!$K$1:$AN$1,0)),\"\")","v":0.66456400781000002},{"$f":"IFERROR(INDEX('Data Annex'!$K$1:$AN$5027,MATCH(P$45&\"|\"&$B73,'Data Annex'!$K$1:$K$5027,0),MATCH(P$46,'Data Annex'!$K$1:$AN$1,0)),\"\")","v":0.64329828544000001},{"$f":"IFERROR(INDEX('Data Annex'!$K$1:$AN$5027,MATCH(Q$45&\"|\"&$B73,'Data Annex'!$K$1:$K$5027,0),MATCH(Q$46,'Data Annex'!$K$1:$AN$1,0)),\"\")","v":5.8395692573749498E-2},{"$f":"IFERROR(INDEX('Data Annex'!$K$1:$AN$5027,MATCH(R$45&\"|\"&$B73,'Data Annex'!$K$1:$K$5027,0),MATCH(R$46,'Data Annex'!$K$1:$AN$1,0)),\"\")","v":6.7819816772527894E-2},{"$f":"IFERROR(INDEX('Data Annex'!$K$1:$AN$5027,MATCH(S$45&\"|\"&$B73,'Data Annex'!$K$1:$K$5027,0),MATCH(S$46,'Data Annex'!$K$1:$AN$1,0)),\"\")","v":6.6268660920765804E-2},{"$f":"IFERROR(INDEX('Data Annex'!$K$1:$AN$5027,MATCH(T$45&\"|\"&$B73,'Data Annex'!$K$1:$K$5027,0),MATCH(T$46,'Data Annex'!$K$1:$AN$1,0)),\"\")","v":6.1749737362084799E-2}]
[24,"NO",null,"NO",{"$f":"IFERROR(INDEX('Data Annex'!$K$1:$AN$5027,MATCH(E$45&\"|\"&$B74,'Data Annex'!$K$1:$K$5027,0),MATCH(E$46,'Data Annex'!$K$1:$AN$1,0)),\"\")","v":10.0962545032666},{"$f":"IFERROR(INDEX('Data Annex'!$K$1:$AN$5027,MATCH(F$45&\"|\"&$B74,'Data Annex'!$K$1:$K$5027,0),MATCH(F$46,'Data Annex'!$K$1:$AN$1,0)),\"\")","v":10.3922778959466},{"$f":"IFERROR(INDEX('Data Annex'!$K$1:$AN$5027,MATCH(G$45&\"|\"&$B74,'Data Annex'!$K$1:$K$5027,0),MATCH(G$46,'Data Annex'!$K$1:$AN$1,0)),\"\")","v":10.5872090624864},{"$f":"IFERROR(INDEX('Data Annex'!$K$1:$AN$5027,MATCH(H$45&\"|\"&$B74,'Data Annex'!$K$1:$K$5027,0),MATCH(H$46,'Data Annex'!$K$1:$AN$1,0)),\"\")","v":12.9054971201165},{"$f":"IFERROR(INDEX('Data Annex'!$K$1:$AN$5027,MATCH(I$45&\"|\"&$B74,'Data Annex'!$K$1:$K$5027,0),MATCH(I$46,'Data Annex'!$K$1:$AN$1,0)),\"\")","v":8.7739465455535307E-2},{"$f":"IFERROR(INDEX('Data Annex'!$K$1:$AN$5027,MATCH(J$45&\"|\"&$B74,'Data Annex'!$K$1:$K$5027,0),MATCH(J$46,'Data Annex'!$K$1:$AN$1,0)),\"\")","v":9.2064155234831593E-2},{"$f":"IFERROR(INDEX('Data Annex'!$K$1:$AN$5027,MATCH(K$45&\"|\"&$B74,'Data Annex'!$K$1:$K$5027,0),MATCH(K$46,'Data Annex'!$K$1:$AN$1,0)),\"\")","v":9.3577067981928094E-2},{"$f":"IFERROR(INDEX('Data Annex'!$K$1:$AN$5027,MATCH(L$45&\"|\"&$B74,'Data Annex'!$K$1:$K$5027,0),MATCH(L$46,'Data Annex'!$K$1:$AN$1,0)),\"\")","v":0.104581868559358},{"$f":"IFERROR(INDEX('Data Annex'!$K$1:$AN$5027,MATCH(M$45&\"|\"&$B74,'Data Annex'!$K$1:$K$5027,0),MATCH(M$46,'Data Annex'!$K$1:$AN$1,0)),\"\")","v":9.7730859857971697E-2},{"$f":"IFERROR(INDEX('Data Annex'!$K$1:$AN$5027,MATCH(N$45&\"|\"&$B74,'Data Annex'!$K$1:$K$5027,0),MATCH(N$46,'Data Annex'!$K$1:$AN$1,0)),\"\")","v":0.102231749020257},{"$f":"IFERROR(INDEX('Data Annex'!$K$1:$AN$5027,MATCH(O$45&\"|\"&$B74,'Data Annex'!$K$1:$K$5027,0),MATCH(O$46,'Data Annex'!$K$1:$AN$1,0)),\"\")","v":9.7924230089595998E-2},{"$f":"IFERROR(INDEX('Data Annex'!$K$1:$AN$5027,MATCH(P$45&\"|\"&$B74,'Data Annex'!$K$1:$K$5027,0),MATCH(P$46,'Data Annex'!$K$1:$AN$1,0)),\"\")","v":0.100522817823923},{"$f":"IFERROR(INDEX('Data Annex'!$K$1:$AN$5027,MATCH(Q$45&\"|\"&$B74,'Data Annex'!$K$1:$K$5027,0),MATCH(Q$46,'Data Annex'!$K$1:$AN$1,0)),\"\")","v":9.6799124691588894E-3},{"$f":"IFERROR(INDEX('Data Annex'!$K$1:$AN$5027,MATCH(R$45&\"|\"&$B74,'Data Annex'!$K$1:$K$5027,0),MATCH(R$46,'Data Annex'!$K$1:$AN$1,0)),\"\")","v":9.8372801462643308E-3},{"$f":"IFERROR(INDEX('Data Annex'!$K$1:$AN$5027,MATCH(S$45&\"|\"&$B74,'Data Annex'!$K$1:$K$5027,0),MATCH(S$46,'Data Annex'!$K$1:$AN$1,0)),\"\")","v":9.2492959675813703E-3},{"$f":"IFERROR(INDEX('Data Annex'!$K$1:$AN$5027,MATCH(T$45&\"|\"&$B74,'Data Annex'!$K$1:$K$5027,0),MATCH(T$46,'Data Annex'!$K$1:$AN$1,0)),\"\")","v":7.7891472826127801E-3}]
[25,"PL",null,"PL",{"$f":"IFERROR(INDEX('Data Annex'!$K$1:$AN$5027,MATCH(E$45&\"|\"&$B75,'Data Annex'!$K$1:$K$5027,0),MATCH(E$46,'Data Annex'!$K$1:$AN$1,0)),\"\")","v":4.1464466170167897},{"$f":"IFERROR(INDEX('Data Annex'!$K$1:$AN$5027,MATCH(F$45&\"|\"&$B75,'Data Annex'!$K$1:$K$5027,0),MATCH(F$46,'Data Annex'!$K$1:$AN$1,0)),\"\")","v":4.0710367194238497},{"$f":"IFERROR(INDEX('Data Annex'!$K$1:$AN$5027,MATCH(G$45&\"|\"&$B75,'Data Annex'!$K$1:$K$5027,0),MATCH(G$46,'Data Annex'!$K$1:$AN$1,0)),\"\")","v":3.9685076360172502},{"$f":"IFERROR(INDEX('Data Annex'!$K$1:$AN$5027,MATCH(H$45&\"|\"&$B75,'Data Annex'!$K$1:$K$5027,0),MATCH(H$46,'Data Annex'!$K$1:$AN$1,0)),\"\")","v":3.8306716372051999},{"$f":"IFERROR(INDEX('Data Annex'!$K$1:$AN$5027,MATCH(I$45&\"|\"&$B75,'Data Annex'!$K$1:$K$5027,0),MATCH(I$46,'Data Annex'!$K$1:$AN$1,0)),\"\")","v":5.5296354198206103E-2},{"$f":"IFERROR(INDEX('Data Annex'!$K$1:$AN$5027,MATCH(J$45&\"|\"&$B75,'Data Annex'!$K$1:$K$5027,0),MATCH(J$46,'Data Annex'!$K$1:$AN$1,0)),\"\")","v":5.5217524142127002E-2},{"$f":"IFERROR(INDEX('Data Annex'!$K$1:$AN$5027,MATCH(K$45&\"|\"&$B75,'Data Annex'!$K$1:$K$5027,0),MATCH(K$46,'Data Annex'!$K$1:$AN$1,0)),\"\")","v":5.5542882008856397E-2},{"$f":"IFERROR(INDEX('Data Annex'!$K$1:$AN$5027,MATCH(L$45&\"|\"&$B75,'Data Annex'!$K$1:$K$5027,0),MATCH(L$46,'Data Annex'!$K$1:$AN$1,0)),\"\")","v":5.3980789735538499E-2},{"$f":"IFERROR(INDEX('Data Annex'!$K$1:$AN$5027,MATCH(M$45&\"|\"&$B75,'Data Annex'!$K$1:$K$5027,0),MATCH(M$46,'Data Annex'!$K$1:$AN$1,0)),\"\")","v":0.35905231010515298},{"$f":"IFERROR(INDEX('Data Annex'!$K$1:$AN$5027,MATCH(N$45&\"|\"&$B75,'Data Annex'!$K$1:$K$5027,0),MATCH(N$46,'Data Annex'!$K$1:$AN$1,0)),\"\")","v":0.35473229831573899},{"$f":"IFERROR(INDEX('Data Annex'!$K$1:$AN$5027,MATCH(O$45&\"|\"&$B75,'Data Annex'!$K$1:$K$5027,0),MATCH(O$46,'Data Annex'!$K$1:$AN$1,0)),\"\")","v":0.34515116574111598},{"$f":"IFERROR(INDEX('Data Annex'!$K$1:$AN$5027,MATCH(P$45&\"|\"&$B75,'Data Annex'!$K$1:$K$5027,0),MATCH(P$46,'Data Annex'!$K$1:$AN$1,0)),\"\")","v":0.29199810445965002},{"$f":"IFERROR(INDEX('Data Annex'!$K$1:$AN$5027,MATCH(Q$45&\"|\"&$B75,'Data Annex'!$K$1:$K$5027,0),MATCH(Q$46,'Data Annex'!$K$1:$AN$1,0)),\"\")","v":8.6592772865234105E-2},{"$f":"IFERROR(INDEX('Data Annex'!$K$1:$AN$5027,MATCH(R$45&\"|\"&$B75,'Data Annex'!$K$1:$K$5027,0),MATCH(R$46,'Data Annex'!$K$1:$AN$1,0)),\"\")","v":8.7135617476312599E-2},{"$f":"IFERROR(INDEX('Data Annex'!$K$1:$AN$5027,MATCH(S$45&\"|\"&$B75,'Data Annex'!$K$1:$K$5027,0),MATCH(S$46,'Data Annex'!$K$1:$AN$1,0)),\"\")","v":8.6972534110456107E-2},{"$f":"IFERROR(INDEX('Data Annex'!$K$1:$AN$5027,MATCH(T$45&\"|\"&$B75,'Data Annex'!$K$1:$K$5027,0),MATCH(T$46,'Data Annex'!$K$1:$AN$1,0)),\"\")","v":7.6226346738685294E-2}]
[26,"PT",null,"PT",{"$f":"IFERROR(INDEX('Data Annex'!$K$1:$AN$5027,MATCH(E$45&\"|\"&$B76,'Data Annex'!$K$1:$K$5027,0),MATCH(E$46,'Data Annex'!$K$1:$AN$1,0)),\"\")","v":7.9533489179299997},{"$f":"IFERROR(INDEX('Data Annex'!$K$1:$AN$5027,MATCH(F$45&\"|\"&$B76,'Data Annex'!$K$1:$K$5027,0),MATCH(F$46,'Data Annex'!$K$1:$AN$1,0)),\"\")","v":8.2365521088599998},{"$f":"IFERROR(INDEX('Data Annex'!$K$1:$AN$5027,MATCH(G$45&\"|\"&$B76,'Data Annex'!$K$1:$K$5027,0),MATCH(G$46,'Data Annex'!$K$1:$AN$1,0)),\"\")","v":8.2460277039300003},{"$f":"IFERROR(INDEX('Data Annex'!$K$1:$AN$5027,MATCH(H$45&\"|\"&$B76,'Data Annex'!$K$1:$K$5027,0),MATCH(H$46,'Data Annex'!$K$1:$AN$1,0)),\"\")","v":7.9641390723800001},{"$f":"IFERROR(INDEX('Data Annex'!$K$1:$AN$5027,MATCH(I$45&\"|\"&$B76,'Data Annex'!$K$1:$K$5027,0),MATCH(I$46,'Data Annex'!$K$1:$AN$1,0)),\"\")","v":0.109614453636426},{"$f":"IFERROR(INDEX('Data Annex'!$K$1:$AN$5027,MATCH(J$45&\"|\"&$B76,'Data Annex'!$K$1:$K$5027,0),MATCH(J$46,'Data Annex'!$K$1:$AN$1,0)),\"\")","v":0.10901740525754799},{"$f":"IFERROR(INDEX('Data Annex'!$K$1:$AN$5027,MATCH(K$45&\"|\"&$B76,'Data Annex'!$K$1:$K$5027,0),MATCH(K$46,'Data Annex'!$K$1:$AN$1,0)),\"\")","v":0.107337373511715},{"$f":"IFERROR(INDEX('Data Annex'!$K$1:$AN$5027,MATCH(L$45&\"|\"&$B76,'Data Annex'!$K$1:$K$5027,0),MATCH(L$46,'Data Annex'!$K$1:$AN$1,0)),\"\")","v":0.10488868736677499},{"$f":"IFERROR(INDEX('Data Annex'!$K$1:$AN$5027,MATCH(M$45&\"|\"&$B76,'Data Annex'!$K$1:$K$5027,0),MATCH(M$46,'Data Annex'!$K$1:$AN$1,0)),\"\")","v":1.68703580417},{"$f":"IFERROR(INDEX('Data Annex'!$K$1:$AN$5027,MATCH(N$45&\"|\"&$B76,'Data Annex'!$K$1:$K$5027,0),MATCH(N$46,'Data Annex'!$K$1:$AN$1,0)),\"\")","v":1.6739017896799999},{"$f":"IFERROR(INDEX('Data Annex'!$K$1:$AN$5027,MATCH(O$45&\"|\"&$B76,'Data Annex'!$K$1:$K$5027,0),MATCH(O$46,'Data Annex'!$K$1:$AN$1,0)),\"\")","v":1.6277288867399999},{"$f":"IFERROR(INDEX('Data Annex'!$K$1:$AN$5027,MATCH(P$45&\"|\"&$B76,'Data Annex'!$K$1:$K$5027,0),MATCH(P$46,'Data Annex'!$K$1:$AN$1,0)),\"\")","v":1.3290907589000001},{"$f":"IFERROR(INDEX('Data Annex'!$K$1:$AN$5027,MATCH(Q$45&\"|\"&$B76,'Data Annex'!$K$1:$K$5027,0),MATCH(Q$46,'Data Annex'!$K$1:$AN$1,0)),\"\")","v":0.21211640801609399},{"$f":"IFERROR(INDEX('Data Annex'!$K$1:$AN$5027,MATCH(R$45&\"|\"&$B76,'Data Annex'!$K$1:$K$5027,0),MATCH(R$46,'Data Annex'!$K$1:$AN$1,0)),\"\")","v":0.203228458650725},{"$f":"IFERROR(INDEX('Data Annex'!$K$1:$AN$5027,MATCH(S$45&\"|\"&$B76,'Data Annex'!$K$1:$K$5027,0),MATCH(S$46,'Data Annex'!$K$1:$AN$1,0)),\"\")","v":0.197395515172019},{"$f":"IFERROR(INDEX('Data Annex'!$K$1:$AN$5027,MATCH(T$45&\"|\"&$B76,'Data Annex'!$K$1:$K$5027,0),MATCH(T$46,'Data Annex'!$K$1:$AN$1,0)),\"\")","v":0.16688442364214201}]
[27,"RO",null,"RO",{"$f":"IFERROR(INDEX('Data Annex'!$K$1:$AN$5027,MATCH(E$45&\"|\"&$B77,'Data Annex'!$K$1:$K$5027,0),MATCH(E$46,'Data Annex'!$K$1:$AN$1,0)),\"\")","v":2.12069318786549},{"$f":"IFERROR(INDEX('Data Annex'!$K$1:$AN$5027,MATCH(F$45&\"|\"&$B77,'Data Annex'!$K$1:$K$5027,0),MATCH(F$46,'Data Annex'!$K$1:$AN$1,0)),\"\")","v":2.0302005192557702},{"$f":"IFERROR(INDEX('Data Annex'!$K$1:$AN$5027,MATCH(G$45&\"|\"&$B77,'Data Annex'!$K$1:$K$5027,0),MATCH(G$46,'Data Annex'!$K$1:$AN$1,0)),\"\")","v":2.5597586098763201},{"$f":"IFERROR(INDEX('Data Annex'!$K$1:$AN$5027,MATCH(H$45&\"|\"&$B77,'Data Annex'!$K$1:$K$5027,0),MATCH(H$46,'Data Annex'!$K$1:$AN$1,0)),\"\")","v":2.5046170941379402},{"$f":"IFERROR(INDEX('Data Annex'!$K$1:$AN$5027,MATCH(I$45&\"|\"&$B77,'Data Annex'!$K$1:$K$5027,0),MATCH(I$46,'Data Annex'!$K$1:$AN$1,0)),\"\")","v":9.1973494210156201E-2},{"$f":"IFERROR(INDEX('Data Annex'!$K$1:$AN$5027,MATCH(J$45&\"|\"&$B77,'Data Annex'!$K$1:$K$5027,0),MATCH(J$46,'Data Annex'!$K$1:$AN$1,0)),\"\")","v":9.2395852825206307E-2},{"$f":"IFERROR(INDEX('Data Annex'!$K$1:$AN$5027,MATCH(K$45&\"|\"&$B77,'Data Annex'!$K$1:$K$5027,0),MATCH(K$46,'Data Annex'!$K$1:$AN$1,0)),\"\")","v":9.6497299279127605E-2},{"$f":"IFERROR(INDEX('Data Annex'!$K$1:$AN$5027,MATCH(L$45&\"|\"&$B77,'Data Annex'!$K$1:$K$5027,0),MATCH(L$46,'Data Annex'!$K$1:$AN$1,0)),\"\")","v":9.3172164134127697E-2},{"$f":"IFERROR(INDEX('Data Annex'!$K$1:$AN$5027,MATCH(M$45&\"|\"&$B77,'Data Annex'!$K$1:$K$5027,0),MATCH(M$46,'Data Annex'!$K$1:$AN$1,0)),\"\")","v":0.25820645739496201},{"$f":"IFERROR(INDEX('Data Annex'!$K$1:$AN$5027,MATCH(N$45&\"|\"&$B77,'Data Annex'!$K$1:$K$5027,0),MATCH(N$46,'Data Annex'!$K$1:$AN$1,0)),\"\")","v":0.228580797675177},{"$f":"IFERROR(INDEX('Data Annex'!$K$1:$AN$5027,MATCH(O$45&\"|\"&$B77,'Data Annex'!$K$1:$K$5027,0),MATCH(O$46,'Data Annex'!$K$1:$AN$1,0)),\"\")","v":0.28868344718931399},{"$f":"IFERROR(INDEX('Data Annex'!$K$1:$AN$5027,MATCH(P$45&\"|\"&$B77,'Data Annex'!$K$1:$K$5027,0),MATCH(P$46,'Data Annex'!$K$1:$AN$1,0)),\"\")","v":0.26128275382411698},{"$f":"IFERROR(INDEX('Data Annex'!$K$1:$AN$5027,MATCH(Q$45&\"|\"&$B77,'Data Annex'!$K$1:$K$5027,0),MATCH(Q$46,'Data Annex'!$K$1:$AN$1,0)),\"\")","v":0.12175568765553101},{"$f":"IFERROR(INDEX('Data Annex'!$K$1:$AN$5027,MATCH(R$45&\"|\"&$B77,'Data Annex'!$K$1:$K$5027,0),MATCH(R$46,'Data Annex'!$K$1:$AN$1,0)),\"\")","v":0.112590256729404},{"$f":"IFERROR(INDEX('Data Annex'!$K$1:$AN$5027,MATCH(S$45&\"|\"&$B77,'Data Annex'!$K$1:$K$5027,0),MATCH(S$46,'Data Annex'!$K$1:$AN$1,0)),\"\")","v":0.11277760569902399},{"$f":"IFERROR(INDEX('Data Annex'!$K$1:$AN$5027,MATCH(T$45&\"|\"&$B77,'Data Annex'!$K$1:$K$5027,0),MATCH(T$46,'Data Annex'!$K$1:$AN$1,0)),\"\")","v":0.104320438615407}]
[28,"SE",null,"SE",{"$f":"IFERROR(INDEX('Data Annex'!$K$1:$AN$5027,MATCH(E$45&\"|\"&$B78,'Data Annex'!$K$1:$K$5027,0),MATCH(E$46,'Data Annex'!$K$1:$AN$1,0)),\"\")","v":5.3247880509530097},{"$f":"IFERROR(INDEX('Data Annex'!$K$1:$AN$5027,MATCH(F$45&\"|\"&$B78,'Data Annex'!$K$1:$K$5027,0),MATCH(F$46,'Data Annex'!$K$1:$AN$1,0)),\"\")","v":6.1019396025509103},{"$f":"IFERROR(INDEX('Data Annex'!$K$1:$AN$5027,MATCH(G$45&\"|\"&$B78,'Data Annex'!$K$1:$K$5027,0),MATCH(G$46,'Data Annex'!$K$1:$AN$1,0)),\"\")","v":6.1080041357437498},{"$f":"IFERROR(INDEX('Data Annex'!$K$1:$AN$5027,MATCH(H$45&\"|\"&$B78,'Data Annex'!$K$1:$K$5027,0),MATCH(H$46,'Data Annex'!$K$1:$AN$1,0)),\"\")","v":6.3249949612950997},{"$f":"IFERROR(INDEX('Data Annex'!$K$1:$AN$5027,MATCH(I$45&\"|\"&$B78,'Data Annex'!$K$1:$K$5027,0),MATCH(I$46,'Data Annex'!$K$1:$AN$1,0)),\"\")","v":2.3639844878551201E-2},{"$f":"IFERROR(INDEX('Data Annex'!$K$1:$AN$5027,MATCH(J$45&\"|\"&$B78,'Data Annex'!$K$1:$K$5027,0),MATCH(J$46,'Data Annex'!$K$1:$AN$1,0)),\"\")","v":2.5696622988029699E-2},{"$f":"IFERROR(INDEX('Data Annex'!$K$1:$AN$5027,MATCH(K$45&\"|\"&$B78,'Data Annex'!$K$1:$K$5027,0),MATCH(K$46,'Data Annex'!$K$1:$AN$1,0)),\"\")","v":2.6655439466997201E-2},{"$f":"IFERROR(INDEX('Data Annex'!$K$1:$AN$5027,MATCH(L$45&\"|\"&$B78,'Data Annex'!$K$1:$K$5027,0),MATCH(L$46,'Data Annex'!$K$1:$AN$1,0)),\"\")","v":2.6595065062627599E-2},{"$f":"IFERROR(INDEX('Data Annex'!$K$1:$AN$5027,MATCH(M$45&\"|\"&$B78,'Data Annex'!$K$1:$K$5027,0),MATCH(M$46,'Data Annex'!$K$1:$AN$1,0)),\"\")","v":5.9913174503788302E-2},{"$f":"IFERROR(INDEX('Data Annex'!$K$1:$AN$5027,MATCH(N$45&\"|\"&$B78,'Data Annex'!$K$1:$K$5027,0),MATCH(N$46,'Data Annex'!$K$1:$AN$1,0)),\"\")","v":6.7625531733510602E-2},{"$f":"IFERROR(INDEX('Data Annex'!$K$1:$AN$5027,MATCH(O$45&\"|\"&$B78,'Data Annex'!$K$1:$K$5027,0),MATCH(O$46,'Data Annex'!$K$1:$AN$1,0)),\"\")","v":8.4192360859996193E-2},{"$f":"IFERROR(INDEX('Data Annex'!$K$1:$AN$5027,MATCH(P$45&\"|\"&$B78,'Data Annex'!$K$1:$K$5027,0),MATCH(P$46,'Data Annex'!$K$1:$AN$1,0)),\"\")","v":7.4225156469815395E-2},{"$f":"IFERROR(INDEX('Data Annex'!$K$1:$AN$5027,MATCH(Q$45&\"|\"&$B78,'Data Annex'!$K$1:$K$5027,0),MATCH(Q$46,'Data Annex'!$K$1:$AN$1,0)),\"\")","v":1.1251748225558999E-2},{"$f":"IFERROR(INDEX('Data Annex'!$K$1:$AN$5027,MATCH(R$45&\"|\"&$B78,'Data Annex'!$K$1:$K$5027,0),MATCH(R$46,'Data Annex'!$K$1:$AN$1,0)),\"\")","v":1.10826288259621E-2},{"$f":"IFERROR(INDEX('Data Annex'!$K$1:$AN$5027,MATCH(S$45&\"|\"&$B78,'Data Annex'!$K$1:$K$5027,0),MATCH(S$46,'Data Annex'!$K$1:$AN$1,0)),\"\")","v":1.37839397271044E-2},{"$f":"IFERROR(INDEX('Data Annex'!$K$1:$AN$5027,MATCH(T$45&\"|\"&$B78,'Data Annex'!$K$1:$K$5027,0),MATCH(T$46,'Data Annex'!$K$1:$AN$1,0)),\"\")","v":1.1735211952582701E-2}]
[29,"SI",null,"SI",{"$f":"IFERROR(INDEX('Data Annex'!$K$1:$AN$5027,MATCH(E$45&\"|\"&$B79,'Data Annex'!$K$1:$K$5027,0),MATCH(E$46,'Data Annex'!$K$1:$AN$1,0)),\"\")","v":0.327009411144698},{"$f":"IFERROR(INDEX('Data Annex'!$K$1:$AN$5027,MATCH(F$45&\"|\"&$B79,'Data Annex'!$K$1:$K$5027,0),MATCH(F$46,'Data Annex'!$K$1:$AN$1,0)),\"\")","v":0.33066008216299198},{"$f":"IFERROR(INDEX('Data Annex'!$K$1:$AN$5027,MATCH(G$45&\"|\"&$B79,'Data Annex'!$K$1:$K$5027,0),MATCH(G$46,'Data Annex'!$K$1:$AN$1,0)),\"\")","v":0.32501269017977003},{"$f":"IFERROR(INDEX('Data Annex'!$K$1:$AN$5027,MATCH(H$45&\"|\"&$B79,'Data Annex'!$K$1:$K$5027,0),MATCH(H$46,'Data Annex'!$K$1:$AN$1,0)),\"\")","v":0.30938198767917002},{"$f":"IFERROR(INDEX('Data Annex'!$K$1:$AN$5027,MATCH(I$45&\"|\"&$B79,'Data Annex'!$K$1:$K$5027,0),MATCH(I$46,'Data Annex'!$K$1:$AN$1,0)),\"\")","v":3.6402311572356197E-2},{"$f":"IFERROR(INDEX('Data Annex'!$K$1:$AN$5027,MATCH(J$45&\"|\"&$B79,'Data Annex'!$K$1:$K$5027,0),MATCH(J$46,'Data Annex'!$K$1:$AN$1,0)),\"\")","v":3.9030392221374798E-2},{"$f":"IFERROR(INDEX('Data Annex'!$K$1:$AN$5027,MATCH(K$45&\"|\"&$B79,'Data Annex'!$K$1:$K$5027,0),MATCH(K$46,'Data Annex'!$K$1:$AN$1,0)),\"\")","v":3.9274096604187701E-2},{"$f":"IFERROR(INDEX('Data Annex'!$K$1:$AN$5027,MATCH(L$45&\"|\"&$B79,'Data Annex'!$K$1:$K$5027,0),MATCH(L$46,'Data Annex'!$K$1:$AN$1,0)),\"\")","v":3.81930711947263E-2},{"$f":"IFERROR(INDEX('Data Annex'!$K$1:$AN$5027,MATCH(M$45&\"|\"&$B79,'Data Annex'!$K$1:$K$5027,0),MATCH(M$46,'Data Annex'!$K$1:$AN$1,0)),\"\")","v":4.1898581341474901E-2},{"$f":"IFERROR(INDEX('Data Annex'!$K$1:$AN$5027,MATCH(N$45&\"|\"&$B79,'Data Annex'!$K$1:$K$5027,0),MATCH(N$46,'Data Annex'!$K$1:$AN$1,0)),\"\")","v":4.13751642169191E-2},{"$f":"IFERROR(INDEX('Data Annex'!$K$1:$AN$5027,MATCH(O$45&\"|\"&$B79,'Data Annex'!$K$1:$K$5027,0),MATCH(O$46,'Data Annex'!$K$1:$AN$1,0)),\"\")","v":3.6738509493476901E-2},{"$f":"IFERROR(INDEX('Data Annex'!$K$1:$AN$5027,MATCH(P$45&\"|\"&$B79,'Data Annex'!$K$1:$K$5027,0),MATCH(P$46,'Data Annex'!$K$1:$AN$1,0)),\"\")","v":3.5419097112179498E-2},{"$f":"IFERROR(INDEX('Data Annex'!$K$1:$AN$5027,MATCH(Q$45&\"|\"&$B79,'Data Annex'!$K$1:$K$5027,0),MATCH(Q$46,'Data Annex'!$K$1:$AN$1,0)),\"\")","v":0.128126530654909},{"$f":"IFERROR(INDEX('Data Annex'!$K$1:$AN$5027,MATCH(R$45&\"|\"&$B79,'Data Annex'!$K$1:$K$5027,0),MATCH(R$46,'Data Annex'!$K$1:$AN$1,0)),\"\")","v":0.125128996358635},{"$f":"IFERROR(INDEX('Data Annex'!$K$1:$AN$5027,MATCH(S$45&\"|\"&$B79,'Data Annex'!$K$1:$K$5027,0),MATCH(S$46,'Data Annex'!$K$1:$AN$1,0)),\"\")","v":0.113037153943608},{"$f":"IFERROR(INDEX('Data Annex'!$K$1:$AN$5027,MATCH(T$45&\"|\"&$B79,'Data Annex'!$K$1:$K$5027,0),MATCH(T$46,'Data Annex'!$K$1:$AN$1,0)),\"\")","v":0.11448338469177199}]
[30,"SK",null,"SK",{"$f":"IFERROR(INDEX('Data Annex'!$K$1:$AN$5027,MATCH(E$45&\"|\"&$B80,'Data Annex'!$K$1:$K$5027,0),MATCH(E$46,'Data Annex'!$K$1:$AN$1,0)),\"\")","v":1.1975685468277999},{"$f":"IFERROR(INDEX('Data Annex'!$K$1:$AN$5027,MATCH(F$45&\"|\"&$B80,'Data Annex'!$K$1:$K$5027,0),MATCH(F$46,'Data Annex'!$K$1:$AN$1,0)),\"\")","v":1.1656806036390399},{"$f":"IFERROR(INDEX('Data Annex'!$K$1:$AN$5027,MATCH(G$45&\"|\"&$B80,'Data Annex'!$K$1:$K$5027,0),MATCH(G$46,'Data Annex'!$K$1:$AN$1,0)),\"\")","v":1.28425537651139},{"$f":"IFERROR(INDEX('Data Annex'!$K$1:$AN$5027,MATCH(H$45&\"|\"&$B80,'Data Annex'!$K$1:$K$5027,0),MATCH(H$46,'Data Annex'!$K$1:$AN$1,0)),\"\")","v":1.2473391058200001},{"$f":"IFERROR(INDEX('Data Annex'!$K$1:$AN$5027,MATCH(I$45&\"|\"&$B80,'Data Annex'!$K$1:$K$5027,0),MATCH(I$46,'Data Annex'!$K$1:$AN$1,0)),\"\")","v":5.0383516589412203E-2},{"$f":"IFERROR(INDEX('Data Annex'!$K$1:$AN$5027,MATCH(J$45&\"|\"&$B80,'Data Annex'!$K$1:$K$5027,0),MATCH(J$46,'Data Annex'!$K$1:$AN$1,0)),\"\")","v":4.8927765188275303E-2},{"$f":"IFERROR(INDEX('Data Annex'!$K$1:$AN$5027,MATCH(K$45&\"|\"&$B80,'Data Annex'!$K$1:$K$5027,0),MATCH(K$46,'Data Annex'!$K$1:$AN$1,0)),\"\")","v":5.3296060171377502E-2},{"$f":"IFERROR(INDEX('Data Annex'!$K$1:$AN$5027,MATCH(L$45&\"|\"&$B80,'Data Annex'!$K$1:$K$5027,0),MATCH(L$46,'Data Annex'!$K$1:$AN$1,0)),\"\")","v":5.2480127572375503E-2},{"$f":"IFERROR(INDEX('Data Annex'!$K$1:$AN$5027,MATCH(M$45&\"|\"&$B80,'Data Annex'!$K$1:$K$5027,0),MATCH(M$46,'Data Annex'!$K$1:$AN$1,0)),\"\")","v":6.7689042990058901E-2},{"$f":"IFERROR(INDEX('Data Annex'!$K$1:$AN$5027,MATCH(N$45&\"|\"&$B80,'Data Annex'!$K$1:$K$5027,0),MATCH(N$46,'Data Annex'!$K$1:$AN$1,0)),\"\")","v":6.8079682019291599E-2},{"$f":"IFERROR(INDEX('Data Annex'!$K$1:$AN$5027,MATCH(O$45&\"|\"&$B80,'Data Annex'!$K$1:$K$5027,0),MATCH(O$46,'Data Annex'!$K$1:$AN$1,0)),\"\")","v":5.2758285301050499E-2},{"$f":"IFERROR(INDEX('Data Annex'!$K$1:$AN$5027,MATCH(P$45&\"|\"&$B80,'Data Annex'!$K$1:$K$5027,0),MATCH(P$46,'Data Annex'!$K$1:$AN$1,0)),\"\")","v":5.2146289640000003E-2},{"$f":"IFERROR(INDEX('Data Annex'!$K$1:$AN$5027,MATCH(Q$45&\"|\"&$B80,'Data Annex'!$K$1:$K$5027,0),MATCH(Q$46,'Data Annex'!$K$1:$AN$1,0)),\"\")","v":5.65220614463849E-2},{"$f":"IFERROR(INDEX('Data Annex'!$K$1:$AN$5027,MATCH(R$45&\"|\"&$B80,'Data Annex'!$K$1:$K$5027,0),MATCH(R$46,'Data Annex'!$K$1:$AN$1,0)),\"\")","v":5.8403375510203699E-2},{"$f":"IFERROR(INDEX('Data Annex'!$K$1:$AN$5027,MATCH(S$45&\"|\"&$B80,'Data Annex'!$K$1:$K$5027,0),MATCH(S$46,'Data Annex'!$K$1:$AN$1,0)),\"\")","v":4.1080836620178598E-2},{"$f":"IFERROR(INDEX('Data Annex'!$K$1:$AN$5027,MATCH(T$45&\"|\"&$B80,'Data Annex'!$K$1:$K$5027,0),MATCH(T$46,'Data Annex'!$K$1:$AN$1,0)),\"\")","v":4.1806024838545501E-2}]
[99,"EU",null,"EU/EEA",{"$f":"IFERROR(INDEX('Data Annex'!$K$1:$AN$5027,MATCH(E$45&\"|\"&$B81,'Data Annex'!$K$1:$K$5027,0),MATCH(E$46,'Data Annex'!$K$1:$AN$1,0)),\"\")","v":246.899453747488},{"$f":"IFERROR(INDEX('Data Annex'!$K$1:$AN$5027,MATCH(F$45&\"|\"&$B81,'Data Annex'!$K$1:$K$5027,0),MATCH(F$46,'Data Annex'!$K$1:$AN$1,0)),\"\")","v":252.707169787731},{"$f":"IFERROR(INDEX('Data Annex'!$K$1:$AN$5027,MATCH(G$45&\"|\"&$B81,'Data Annex'!$K$1:$K$5027,0),MATCH(G$46,'Data Annex'!$K$1:$AN$1,0)),\"\")","v":256.675710973371},{"$f":"IFERROR(INDEX('Data Annex'!$K$1:$AN$5027,MATCH(H$45&\"|\"&$B81,'Data Annex'!$K$1:$K$5027,0),MATCH(H$46,'Data Annex'!$K$1:$AN$1,0)),\"\")","v":246.57642174094099},{"$f":"IFERROR(INDEX('Data Annex'!$K$1:$AN$5027,MATCH(I$45&\"|\"&$B81,'Data Annex'!$K$1:$K$5027,0),MATCH(I$46,'Data Annex'!$K$1:$AN$1,0)),\"\")","v":5.6076419584154699E-2},{"$f":"IFERROR(INDEX('Data Annex'!$K$1:$AN$5027,MATCH(J$45&\"|\"&$B81,'Data Annex'!$K$1:$K$5027,0),MATCH(J$46,'Data Annex'!$K$1:$AN$1,0)),\"\")","v":5.6269306070931301E-2},{"$f":"IFERROR(INDEX('Data Annex'!$K$1:$AN$5027,MATCH(K$45&\"|\"&$B81,'Data Annex'!$K$1:$K$5027,0),MATCH(K$46,'Data Annex'!$K$1:$AN$1,0)),\"\")","v":5.7693189484535598E-2},{"$f":"IFERROR(INDEX('Data Annex'!$K$1:$AN$5027,MATCH(L$45&\"|\"&$B81,'Data Annex'!$K$1:$K$5027,0),MATCH(L$46,'Data Annex'!$K$1:$AN$1,0)),\"\")","v":5.6447604656034003E-2},{"$f":"IFERROR(INDEX('Data Annex'!$K$1:$AN$5027,MATCH(M$45&\"|\"&$B81,'Data Annex'!$K$1:$K$5027,0),MATCH(M$46,'Data Annex'!$K$1:$AN$1,0)),\"\")","v":34.828027312804601},{"$f":"IFERROR(INDEX('Data Annex'!$K$1:$AN$5027,MATCH(N$45&\"|\"&$B81,'Data Annex'!$K$1:$K$5027,0),MATCH(N$46,'Data Annex'!$K$1:$AN$1,0)),\"\")","v":32.704724522028997},{"$f":"IFERROR(INDEX('Data Annex'!$K$1:$AN$5027,MATCH(O$45&\"|\"&$B81,'Data Annex'!$K$1:$K$5027,0),MATCH(O$46,'Data Annex'!$K$1:$AN$1,0)),\"\")","v":32.0870423754534},{"$f":"IFERROR(INDEX('Data Annex'!$K$1:$AN$5027,MATCH(P$45&\"|\"&$B81,'Data Annex'!$K$1:$K$5027,0),MATCH(P$46,'Data Annex'!$K$1:$AN$1,0)),\"\")","v":25.551398774335699},{"$f":"IFERROR(INDEX('Data Annex'!$K$1:$AN$5027,MATCH(Q$45&\"|\"&$B81,'Data Annex'!$K$1:$K$5027,0),MATCH(Q$46,'Data Annex'!$K$1:$AN$1,0)),\"\")","v":0.14106158107755201},{"$f":"IFERROR(INDEX('Data Annex'!$K$1:$AN$5027,MATCH(R$45&\"|\"&$B81,'Data Annex'!$K$1:$K$5027,0),MATCH(R$46,'Data Annex'!$K$1:$AN$1,0)),\"\")","v":0.12941747774509199},{"$f":"IFERROR(INDEX('Data Annex'!$K$1:$AN$5027,MATCH(S$45&\"|\"&$B81,'Data Annex'!$K$1:$K$5027,0),MATCH(S$46,'Data Annex'!$K$1:$AN$1,0)),\"\")","v":0.125010045764643},{"$f":"IFERROR(INDEX('Data Annex'!$K$1:$AN$5027,MATCH(T$45&\"|\"&$B81,'Data Annex'!$K$1:$K$5027,0),MATCH(T$46,'Data Annex'!$K$1:$AN$1,0)),\"\")","v":0.10362466368005201}]
[12,"NEU",null,"Memo item: Non-EU/EEA countries",{"$f":"IFERROR(INDEX('Data Annex'!$K$1:$AN$5027,MATCH(E$45&\"|\"&$B82,'Data Annex'!$K$1:$K$5027,0),MATCH(E$46,'Data Annex'!$K$1:$AN$1,0)),\"\")","v":31.875692393400499},{"$f":"IFERROR(INDEX('Data Annex'!$K$1:$AN$5027,MATCH(F$45&\"|\"&$B82,'Data Annex'!$K$1:$K$5027,0),MATCH(F$46,'Data Annex'!$K$1:$AN$1,0)),\"\")","v":32.784142576795702},{"$f":"IFERROR(INDEX('Data Annex'!$K$1:$AN$5027,MATCH(G$45&\"|\"&$B82,'Data Annex'!$K$1:$K$5027,0),MATCH(G$46,'Data Annex'!$K$1:$AN$1,0)),\"\")","v":30.4693786135736},{"$f":"IFERROR(INDEX('Data Annex'!$K$1:$AN$5027,MATCH(H$45&\"|\"&$B82,'Data Annex'!$K$1:$K$5027,0),MATCH(H$46,'Data Annex'!$K$1:$AN$1,0)),\"\")","v":28.616554337106699},{"$f":"IFERROR(INDEX('Data Annex'!$K$1:$AN$5027,MATCH(I$45&\"|\"&$B82,'Data Annex'!$K$1:$K$5027,0),MATCH(I$46,'Data Annex'!$K$1:$AN$1,0)),\"\")","v":2.62716981574024E-2},{"$f":"IFERROR(INDEX('Data Annex'!$K$1:$AN$5027,MATCH(J$45&\"|\"&$B82,'Data Annex'!$K$1:$K$5027,0),MATCH(J$46,'Data Annex'!$K$1:$AN$1,0)),\"\")","v":2.7782278920908999E-2},{"$f":"IFERROR(INDEX('Data Annex'!$K$1:$AN$5027,MATCH(K$45&\"|\"&$B82,'Data Annex'!$K$1:$K$5027,0),MATCH(K$46,'Data Annex'!$K$1:$AN$1,0)),\"\")","v":2.7509761734446098E-2},{"$f":"IFERROR(INDEX('Data Annex'!$K$1:$AN$5027,MATCH(L$45&\"|\"&$B82,'Data Annex'!$K$1:$K$5027,0),MATCH(L$46,'Data Annex'!$K$1:$AN$1,0)),\"\")","v":2.8213846656839899E-2},{"$f":"IFERROR(INDEX('Data Annex'!$K$1:$AN$5027,MATCH(M$45&\"|\"&$B82,'Data Annex'!$K$1:$K$5027,0),MATCH(M$46,'Data Annex'!$K$1:$AN$1,0)),\"\")","v":2.33807794821091},{"$f":"IFERROR(INDEX('Data Annex'!$K$1:$AN$5027,MATCH(N$45&\"|\"&$B82,'Data Annex'!$K$1:$K$5027,0),MATCH(N$46,'Data Annex'!$K$1:$AN$1,0)),\"\")","v":2.3228617230411102},{"$f":"IFERROR(INDEX('Data Annex'!$K$1:$AN$5027,MATCH(O$45&\"|\"&$B82,'Data Annex'!$K$1:$K$5027,0),MATCH(O$46,'Data Annex'!$K$1:$AN$1,0)),\"\")","v":2.3158799618000101},{"$f":"IFERROR(INDEX('Data Annex'!$K$1:$AN$5027,MATCH(P$45&\"|\"&$B82,'Data Annex'!$K$1:$K$5027,0),MATCH(P$46,'Data Annex'!$K$1:$AN$1,0)),\"\")","v":2.6559479349767501},{"$f":"IFERROR(INDEX('Data Annex'!$K$1:$AN$5027,MATCH(Q$45&\"|\"&$B82,'Data Annex'!$K$1:$K$5027,0),MATCH(Q$46,'Data Annex'!$K$1:$AN$1,0)),\"\")","v":7.3349871725295696E-2},{"$f":"IFERROR(INDEX('Data Annex'!$K$1:$AN$5027,MATCH(R$45&\"|\"&$B82,'Data Annex'!$K$1:$K$5027,0),MATCH(R$46,'Data Annex'!$K$1:$AN$1,0)),\"\")","v":7.0853209523472793E-2},{"$f":"IFERROR(INDEX('Data Annex'!$K$1:$AN$5027,MATCH(S$45&\"|\"&$B82,'Data Annex'!$K$1:$K$5027,0),MATCH(S$46,'Data Annex'!$K$1:$AN$1,0)),\"\")","v":7.6006799848826703E-2},{"$f":"IFERROR(INDEX('Data Annex'!$K$1:$AN$5027,MATCH(T$45&\"|\"&$B82,'Data Annex'!$K$1:$K$5027,0),MATCH(T$46,'Data Annex'!$K$1:$AN$1,0)),\"\")","v":9.2811590930527293E-2}]
[null,"GB",null,"GB",{"$f":"IFERROR(INDEX('Data Annex'!$K$1:$AN$5027,MATCH(E$45&\"|\"&$B83,'Data Annex'!$K$1:$K$5027,0),MATCH(E$46,'Data Annex'!$K$1:$AN$1,0)),\"\")","v":8.0833374232769692},{"$f":"IFERROR(INDEX('Data Annex'!$K$1:$AN$5027,MATCH(F$45&\"|\"&$B83,'Data Annex'!$K$1:$K$5027,0),MATCH(F$46,'Data Annex'!$K$1:$AN$1,0)),\"\")","v":7.82931457276917},{"$f":"IFERROR(INDEX('Data Annex'!$K$1:$AN$5027,MATCH(G$45&\"|\"&$B83,'Data Annex'!$K$1:$K$5027,0),MATCH(G$46,'Data Annex'!$K$1:$AN$1,0)),\"\")","v":7.0393511933327204},{"$f":"IFERROR(INDEX('Data Annex'!$K$1:$AN$5027,MATCH(H$45&\"|\"&$B83,'Data Annex'!$K$1:$K$5027,0),MATCH(H$46,'Data Annex'!$K$1:$AN$1,0)),\"\")","v":6.8589352458603097},{"$f":"IFERROR(INDEX('Data Annex'!$K$1:$AN$5027,MATCH(I$45&\"|\"&$B83,'Data Annex'!$K$1:$K$5027,0),MATCH(I$46,'Data Annex'!$K$1:$AN$1,0)),\"\")","v":4.2691735261528398E-2},{"$f":"IFERROR(INDEX('Data Annex'!$K$1:$AN$5027,MATCH(J$45&\"|\"&$B83,'Data Annex'!$K$1:$K$5027,0),MATCH(J$46,'Data Annex'!$K$1:$AN$1,0)),\"\")","v":4.2898549375648701E-2},{"$f":"IFERROR(INDEX('Data Annex'!$K$1:$AN$5027,MATCH(K$45&\"|\"&$B83,'Data Annex'!$K$1:$K$5027,0),MATCH(K$46,'Data Annex'!$K$1:$AN$1,0)),\"\")","v":3.95774208388208E-2},{"$f":"IFERROR(INDEX('Data Annex'!$K$1:$AN$5027,MATCH(L$45&\"|\"&$B83,'Data Annex'!$K$1:$K$5027,0),MATCH(L$46,'Data Annex'!$K$1:$AN$1,0)),\"\")","v":3.9141327266626599E-2},{"$f":"IFERROR(INDEX('Data Annex'!$K$1:$AN$5027,MATCH(M$45&\"|\"&$B83,'Data Annex'!$K$1:$K$5027,0),MATCH(M$46,'Data Annex'!$K$1:$AN$1,0)),\"\")","v":0.31565714799830402},{"$f":"IFERROR(INDEX('Data Annex'!$K$1:$AN$5027,MATCH(N$45&\"|\"&$B83,'Data Annex'!$K$1:$K$5027,0),MATCH(N$46,'Data Annex'!$K$1:$AN$1,0)),\"\")","v":0.28889546982441999},{"$f":"IFERROR(INDEX('Data Annex'!$K$1:$AN$5027,MATCH(O$45&\"|\"&$B83,'Data Annex'!$K$1:$K$5027,0),MATCH(O$46,'Data Annex'!$K$1:$AN$1,0)),\"\")","v":0.30216818204638002},{"$f":"IFERROR(INDEX('Data Annex'!$K$1:$AN$5027,MATCH(P$45&\"|\"&$B83,'Data Annex'!$K$1:$K$5027,0),MATCH(P$46,'Data Annex'!$K$1:$AN$1,0)),\"\")","v":0.31756602368204201},{"$f":"IFERROR(INDEX('Data Annex'!$K$1:$AN$5027,MATCH(Q$45&\"|\"&$B83,'Data Annex'!$K$1:$K$5027,0),MATCH(Q$46,'Data Annex'!$K$1:$AN$1,0)),\"\")","v":3.9050349066133201E-2},{"$f":"IFERROR(INDEX('Data Annex'!$K$1:$AN$5027,MATCH(R$45&\"|\"&$B83,'Data Annex'!$K$1:$K$5027,0),MATCH(R$46,'Data Annex'!$K$1:$AN$1,0)),\"\")","v":3.6899203262213597E-2},{"$f":"IFERROR(INDEX('Data Annex'!$K$1:$AN$5027,MATCH(S$45&\"|\"&$B83,'Data Annex'!$K$1:$K$5027,0),MATCH(S$46,'Data Annex'!$K$1:$AN$1,0)),\"\")","v":4.2925572790369702E-2},{"$f":"IFERROR(INDEX('Data Annex'!$K$1:$AN$5027,MATCH(T$45&\"|\"&$B83,'Data Annex'!$K$1:$K$5027,0),MATCH(T$46,'Data Annex'!$K$1:$AN$1,0)),\"\")","v":4.6299609531043097E-2}]
[]
[null,null,null,"(1) In disclosing aggregated information on the real estate (RE) exposures towards the different national RE markets in the Union, the EBA made use of information in regulatory reporting templates that provide a breakdown of credit exposures. RE exposures are identified as those referred to as both the NACE codes  ‘F’ and ‘L’, although strictly speaking some sub-categories would need to be excluded following the Commercial Real Estate (CRE) definition adopted in the ESRB Recommendation."]
[]
[null,null,null,"(2) Data is country aggregated on the basis of the residence of the immediate counterparty. The information on the geographical distribution of exposures by country is reported by institutions where non-domestic original exposures in all ‘non-domestic’ countries in all exposures classes are equal or higher than 10 % of total domestic and non-domestic original exposures. For this purpose exposures shall be deemed to be domestic where they are exposures to counterparties located in the Member State where the institution is located.  "]
[null,null,null,"Individual country data includes subsidiaries, which are excluded from EU aggregate. For example, at country level the subsidiary in country X of a bank domiciled in country Y is included both in data for countries X and Y (for the latter as part of the consolidated entity). In the EU aggregate, only the consolidated entity domiciled in country Y is considered.  The sample of banks is unbalanced and reviewed annually.\nAs of Q1 2020 onwards UK banks are removed from the EU/EEA aggregate and subsidiaries of UK banks in EU member states are used instead.\n"]

{"sheet":"Time series","index":16,"n_rows":43,"n_cols":17,"rows_kept":43,"cut":false,"hidden":false,"merged":[[5,4,5,16],[42,4,42,14],[43,4,43,14],[7,5,7,8],[7,9,7,12],[7,13,7,16]]}
["reference period:",null,null,null,null,{"$f":"+Start!$G$8","v":"SVC_1"},{"$f":"+Start!$G$8","v":"SVC_1"},{"$f":"+Start!$G$8","v":"SVC_1"},{"$f":"+Start!$G$8","v":"SVC_1"},{"$f":"+Start!$G$8","v":"SVC_1"},{"$f":"+Start!$G$8","v":"SVC_1"},{"$f":"+Start!$G$8","v":"SVC_1"},{"$f":"+Start!$G$8","v":"SVC_1"},{"$f":"+Start!$G$8","v":"SVC_1"},{"$f":"+Start!$G$8","v":"SVC_1"},{"$f":"+Start!$G$8","v":"SVC_1"},{"$f":"+Start!$G$8","v":"SVC_1"}]
[{"$f":"'Reference Dates'!$C$8","v":"202012"},null,null,null,null,{"$f":"CONCATENATE(YEAR(F$9),TEXT(MONTH(F$9),\"00\"))+0","v":201803},{"$f":"CONCATENATE(YEAR(G$9),TEXT(MONTH(G$9),\"00\"))+0","v":201806},{"$f":"CONCATENATE(YEAR(H$9),TEXT(MONTH(H$9),\"00\"))+0","v":"2452-07-12"},201812,{"$f":"CONCATENATE(YEAR(J$9),TEXT(MONTH(J$9),\"00\"))+0","v":"2452-10-14"},201906,201909,201912,202003,202006,202009,202012]
[{"$f":"DATE(LEFT(A2,4),RIGHT(A2,2),1)","v":"2020-12-01"},null,null,null,null,-33,-30,-27,-24,-21,-18,-15,-12,-9,-6,-3,-3]
[]
[null,null,null,null,{"$f":"+\"Risk Indicator: \" &VLOOKUP($G$1,Start!$Q$6:$R$26,2,FALSE)","v":"Risk Indicator: Tier 1 capital ratio"}]
[null,null,null,null,"Individual country data includes subsidiaries, which are excluded from EU aggregate. For example, at country level the subsidiary in country X of a bank domiciled in country Y is included both in data for countries X and Y (for the latter as part of the consolidated entity). In the EU aggregate, only the consolidated entity domiciled in country Y is considered. The sample of banks is unbalanced and reviewed annually. From Q1 2020 onwards, EU aggregates no longer include figures for UK banks and they include data for subsidiaries of UK banks in EU countries."]
[]
[null,null,null,null,null,2018,null,null,null,2019,null,null,null,2020]
[null,null,null,null,null,{"$f":"+EOMONTH($A$3,F$3)","v":"2018-03-31"},{"$f":"+EOMONTH($A$3,G$3)","v":"2018-06-30"},{"$f":"+EOMONTH($A$3,H$3)","v":"2018-09-30"},{"$f":"+EOMONTH($A$3,I$3)","v":"2018-12-31"},"2019-03-31","2019-06-30","2019-09-30","2019-12-31","2020-03-31",{"$f":"+EOMONTH($A$3,O$3)","v":"2020-06-30"},{"$f":"+EOMONTH($A$3,P$3)","v":"2020-09-30"},{"$f":"+$A$3","v":"2020-12-01"}]
[null,null,null,"AT",{"$f":"IF(OR($G$1=\"SVC_13\",$G$1=\"SVC_12\",$G$1=\"LIQ_17\"),IF(OR(H10=\"n.a.\",I10=\"n.a.\",J10=\"n.a.\",K10=\"n.a.\",L10=\"n.a.\",M10=\"n.a.\",N10=\"n.a.\",O10=\"n.a.\",P10=\"n.a.\",Q10=\"n.a.\"),$D10&\"*\",$D10),IF($G$1=\"PFT_43\",IF(OR(M10=\"n.a.\",N10=\"n.a.\",O10=\"n.a.\",P10=\"n.a.\",Q10=\"n.a.\"),$D10&\"*\",$D10),IF(OR(F10=\"n.a.\",G10=\"n.a.\",H10=\"n.a.\",I10=\"n.a.\",J10=\"n.a.\",K10=\"n.a.\",L10=\"n.a.\",M10=\"n.a.\",N10=\"n.a.\",O10=\"n.a.\",P10=\"n.a.\",Q10=\"n.a.\"),$D10&\"*\",$D10)))","v":"AT"},{"$f":"IF(IFERROR(INDEX(Data!$AF$2:$BE$688,MATCH($D10&\"_\"&F$1,Data!$AF$2:$AF$688,0),MATCH(F$2,Data!$AF$2:$BE$2,0)),\"\")=\".\",\"n.a.\",IFERROR(INDEX(Data!$AF$2:$BE$688,MATCH($D10&\"_\"&F$1,Data!$AF$2:$AF$688,0),MATCH(F$2,Data!$AF$2:$BE$2,0)),\"\"))","v":0.14505664930000001},{"$f":"IF(IFERROR(INDEX(Data!$AF$2:$BE$688,MATCH($D10&\"_\"&G$1,Data!$AF$2:$AF$688,0),MATCH(G$2,Data!$AF$2:$BE$2,0)),\"\")=\".\",\"n.a.\",IFERROR(INDEX(Data!$AF$2:$BE$688,MATCH($D10&\"_\"&G$1,Data!$AF$2:$AF$688,0),MATCH(G$2,Data!$AF$2:$BE$2,0)),\"\"))","v":0.14687900849999999},{"$f":"IF(IFERROR(INDEX(Data!$AF$2:$BE$688,MATCH($D10&\"_\"&H$1,Data!$AF$2:$AF$688,0),MATCH(H$2,Data!$AF$2:$BE$2,0)),\"\")=\".\",\"n.a.\",IFERROR(INDEX(Data!$AF$2:$BE$688,MATCH($D10&\"_\"&H$1,Data!$AF$2:$AF$688,0),MATCH(H$2,Data!$AF$2:$BE$2,0)),\"\"))","v":0.14320397839999999},{"$f":"IF(IFERROR(INDEX(Data!$AF$2:$BE$688,MATCH($D10&\"_\"&I$1,Data!$AF$2:$AF$688,0),MATCH(I$2,Data!$AF$2:$BE$2,0)),\"\")=\".\",\"n.a.\",IFERROR(INDEX(Data!$AF$2:$BE$688,MATCH($D10&\"_\"&I$1,Data!$AF$2:$AF$688,0),MATCH(I$2,Data!$AF$2:$BE$2,0)),\"\"))","v":0.151982003},{"$f":"IF(IFERROR(INDEX(Data!$AF$2:$BE$688,MATCH($D10&\"_\"&J$1,Data!$AF$2:$AF$688,0),MATCH(J$2,Data!$AF$2:$BE$2,0)),\"\")=\".\",\"n.a.\",IFERROR(INDEX(Data!$AF$2:$BE$688,MATCH($D10&\"_\"&J$1,Data!$AF$2:$AF$688,0),MATCH(J$2,Data!$AF$2:$BE$2,0)),\"\"))","v":0.151021555},{"$f":"IF(IFERROR(INDEX(Data!$AF$2:$BE$688,MATCH($D10&\"_\"&K$1,Data!$AF$2:$AF$688,0),MATCH(K$2,Data!$AF$2:$BE$2,0)),\"\")=\".\",\"n.a.\",IFERROR(INDEX(Data!$AF$2:$BE$688,MATCH($D10&\"_\"&K$1,Data!$AF$2:$AF$688,0),MATCH(K$2,Data!$AF$2:$BE$2,0)),\"\"))","v":0.15389217299999999},{"$f":"IF(IFERROR(INDEX(Data!$AF$2:$BE$688,MATCH($D10&\"_\"&L$1,Data!$AF$2:$AF$688,0),MATCH(L$2,Data!$AF$2:$BE$2,0)),\"\")=\".\",\"n.a.\",IFERROR(INDEX(Data!$AF$2:$BE$688,MATCH($D10&\"_\"&L$1,Data!$AF$2:$AF$688,0),MATCH(L$2,Data!$AF$2:$BE$2,0)),\"\"))","v":0.1494982604},{"$f":"IF(IFERROR(INDEX(Data!$AF$2:$BE$688,MATCH($D10&\"_\"&M$1,Data!$AF$2:$AF$688,0),MATCH(M$2,Data!$AF$2:$BE$2,0)),\"\")=\".\",\"n.a.\",IFERROR(INDEX(Data!$AF$2:$BE$688,MATCH($D10&\"_\"&M$1,Data!$AF$2:$AF$688,0),MATCH(M$2,Data!$AF$2:$BE$2,0)),\"\"))","v":0.15558364129999999},{"$f":"IF(IFERROR(INDEX(Data!$AF$2:$BE$688,MATCH($D10&\"_\"&N$1,Data!$AF$2:$AF$688,0),MATCH(N$2,Data!$AF$2:$BE$2,0)),\"\")=\".\",\"n.a.\",IFERROR(INDEX(Data!$AF$2:$BE$688,MATCH($D10&\"_\"&N$1,Data!$AF$2:$AF$688,0),MATCH(N$2,Data!$AF$2:$BE$2,0)),\"\"))","v":0.14970668719999999},{"$f":"IF(IFERROR(INDEX(Data!$AF$2:$BE$688,MATCH($D10&\"_\"&O$1,Data!$AF$2:$AF$688,0),MATCH(O$2,Data!$AF$2:$BE$2,0)),\"\")=\".\",\"n.a.\",IFERROR(INDEX(Data!$AF$2:$BE$688,MATCH($D10&\"_\"&O$1,Data!$AF$2:$AF$688,0),MATCH(O$2,Data!$AF$2:$BE$2,0)),\"\"))","v":0.1551047035},{"$f":"IF(IFERROR(INDEX(Data!$AF$2:$BE$688,MATCH($D10&\"_\"&P$1,Data!$AF$2:$AF$688,0),MATCH(P$2,Data!$AF$2:$BE$2,0)),\"\")=\".\",\"n.a.\",IFERROR(INDEX(Data!$AF$2:$BE$688,MATCH($D10&\"_\"&P$1,Data!$AF$2:$AF$688,0),MATCH(P$2,Data!$AF$2:$BE$2,0)),\"\"))","v":0.15690339240000001},{"$f":"IF(IFERROR(INDEX(Data!$AF$2:$BG$688,MATCH($D10&\"_\"&Q$1,Data!$AF$2:$AF$688,0),MATCH(Q$2,Data!$AF$2:$BG$2,0)),\"\")=\".\",\"n.a.\",IFERROR(INDEX(Data!$AF$2:$BG$688,MATCH($D10&\"_\"&Q$1,Data!$AF$2:$AF$688,0),MATCH(Q$2,Data!$AF$2:$BG$2,0)),\"\"))","v":0.1654660637}]
[null,null,null,"BE",{"$f":"IF(OR($G$1=\"SVC_13\",$G$1=\"SVC_12\",$G$1=\"LIQ_17\"),IF(OR(H11=\"n.a.\",I11=\"n.a.\",J11=\"n.a.\",K11=\"n.a.\",L11=\"n.a.\",M11=\"n.a.\",N11=\"n.a.\",O11=\"n.a.\",P11=\"n.a.\",Q11=\"n.a.\"),$D11&\"*\",$D11),IF($G$1=\"PFT_43\",IF(OR(M11=\"n.a.\",N11=\"n.a.\",O11=\"n.a.\",P11=\"n.a.\",Q11=\"n.a.\"),$D11&\"*\",$D11),IF(OR(F11=\"n.a.\",G11=\"n.a.\",H11=\"n.a.\",I11=\"n.a.\",J11=\"n.a.\",K11=\"n.a.\",L11=\"n.a.\",M11=\"n.a.\",N11=\"n.a.\",O11=\"n.a.\",P11=\"n.a.\",Q11=\"n.a.\"),$D11&\"*\",$D11)))","v":"BE"},{"$f":"IF(IFERROR(INDEX(Data!$AF$2:$BE$688,MATCH($D11&\"_\"&F$1,Data!$AF$2:$AF$688,0),MATCH(F$2,Data!$AF$2:$BE$2,0)),\"\")=\".\",\"n.a.\",IFERROR(INDEX(Data!$AF$2:$BE$688,MATCH($D11&\"_\"&F$1,Data!$AF$2:$AF$688,0),MATCH(F$2,Data!$AF$2:$BE$2,0)),\"\"))","v":0.17650176419999999},{"$f":"IF(IFERROR(INDEX(Data!$AF$2:$BE$688,MATCH($D11&\"_\"&G$1,Data!$AF$2:$AF$688,0),MATCH(G$2,Data!$AF$2:$BE$2,0)),\"\")=\".\",\"n.a.\",IFERROR(INDEX(Data!$AF$2:$BE$688,MATCH($D11&\"_\"&G$1,Data!$AF$2:$AF$688,0),MATCH(G$2,Data!$AF$2:$BE$2,0)),\"\"))","v":0.17703909479999999},{"$f":"IF(IFERROR(INDEX(Data!$AF$2:$BE$688,MATCH($D11&\"_\"&H$1,Data!$AF$2:$AF$688,0),MATCH(H$2,Data!$AF$2:$BE$2,0)),\"\")=\".\",\"n.a.\",IFERROR(INDEX(Data!$AF$2:$BE$688,MATCH($D11&\"_\"&H$1,Data!$AF$2:$AF$688,0),MATCH(H$2,Data!$AF$2:$BE$2,0)),\"\"))","v":0.17947265300000001},{"$f":"IF(IFERROR(INDEX(Data!$AF$2:$BE$688,MATCH($D11&\"_\"&I$1,Data!$AF$2:$AF$688,0),MATCH(I$2,Data!$AF$2:$BE$2,0)),\"\")=\".\",\"n.a.\",IFERROR(INDEX(Data!$AF$2:$BE$688,MATCH($D11&\"_\"&I$1,Data!$AF$2:$AF$688,0),MATCH(I$2,Data!$AF$2:$BE$2,0)),\"\"))","v":0.17579583100000001},{"$f":"IF(IFERROR(INDEX(Data!$AF$2:$BE$688,MATCH($D11&\"_\"&J$1,Data!$AF$2:$AF$688,0),MATCH(J$2,Data!$AF$2:$BE$2,0)),\"\")=\".\",\"n.a.\",IFERROR(INDEX(Data!$AF$2:$BE$688,MATCH($D11&\"_\"&J$1,Data!$AF$2:$AF$688,0),MATCH(J$2,Data!$AF$2:$BE$2,0)),\"\"))","v":0.1669899484},{"$f":"IF(IFERROR(INDEX(Data!$AF$2:$BE$688,MATCH($D11&\"_\"&K$1,Data!$AF$2:$AF$688,0),MATCH(K$2,Data!$AF$2:$BE$2,0)),\"\")=\".\",\"n.a.\",IFERROR(INDEX(Data!$AF$2:$BE$688,MATCH($D11&\"_\"&K$1,Data!$AF$2:$AF$688,0),MATCH(K$2,Data!$AF$2:$BE$2,0)),\"\"))","v":0.17008896179999999},{"$f":"IF(IFERROR(INDEX(Data!$AF$2:$BE$688,MATCH($D11&\"_\"&L$1,Data!$AF$2:$AF$688,0),MATCH(L$2,Data!$AF$2:$BE$2,0)),\"\")=\".\",\"n.a.\",IFERROR(INDEX(Data!$AF$2:$BE$688,MATCH($D11&\"_\"&L$1,Data!$AF$2:$AF$688,0),MATCH(L$2,Data!$AF$2:$BE$2,0)),\"\"))","v":0.16731830640000001},{"$f":"IF(IFERROR(INDEX(Data!$AF$2:$BE$688,MATCH($D11&\"_\"&M$1,Data!$AF$2:$AF$688,0),MATCH(M$2,Data!$AF$2:$BE$2,0)),\"\")=\".\",\"n.a.\",IFERROR(INDEX(Data!$AF$2:$BE$688,MATCH($D11&\"_\"&M$1,Data!$AF$2:$AF$688,0),MATCH(M$2,Data!$AF$2:$BE$2,0)),\"\"))","v":0.1766489091},{"$f":"IF(IFERROR(INDEX(Data!$AF$2:$BE$688,MATCH($D11&\"_\"&N$1,Data!$AF$2:$AF$688,0),MATCH(N$2,Data!$AF$2:$BE$2,0)),\"\")=\".\",\"n.a.\",IFERROR(INDEX(Data!$AF$2:$BE$688,MATCH($D11&\"_\"&N$1,Data!$AF$2:$AF$688,0),MATCH(N$2,Data!$AF$2:$BE$2,0)),\"\"))","v":0.171028494},{"$f":"IF(IFERROR(INDEX(Data!$AF$2:$BE$688,MATCH($D11&\"_\"&O$1,Data!$AF$2:$AF$688,0),MATCH(O$2,Data!$AF$2:$BE$2,0)),\"\")=\".\",\"n.a.\",IFERROR(INDEX(Data!$AF$2:$BE$688,MATCH($D11&\"_\"&O$1,Data!$AF$2:$AF$688,0),MATCH(O$2,Data!$AF$2:$BE$2,0)),\"\"))","v":0.17768790070000001},{"$f":"IF(IFERROR(INDEX(Data!$AF$2:$BE$688,MATCH($D11&\"_\"&P$1,Data!$AF$2:$AF$688,0),MATCH(P$2,Data!$AF$2:$BE$2,0)),\"\")=\".\",\"n.a.\",IFERROR(INDEX(Data!$AF$2:$BE$688,MATCH($D11&\"_\"&P$1,Data!$AF$2:$AF$688,0),MATCH(P$2,Data!$AF$2:$BE$2,0)),\"\"))","v":0.1807897601},{"$f":"IF(IFERROR(INDEX(Data!$AF$2:$BG$688,MATCH($D11&\"_\"&Q$1,Data!$AF$2:$AF$688,0),MATCH(Q$2,Data!$AF$2:$BG$2,0)),\"\")=\".\",\"n.a.\",IFERROR(INDEX(Data!$AF$2:$BG$688,MATCH($D11&\"_\"&Q$1,Data!$AF$2:$AF$688,0),MATCH(Q$2,Data!$AF$2:$BG$2,0)),\"\"))","v":0.19147733859999999}]
[null,null,null,"BG",{"$f":"IF(OR($G$1=\"SVC_13\",$G$1=\"SVC_12\",$G$1=\"LIQ_17\"),IF(OR(H12=\"n.a.\",I12=\"n.a.\",J12=\"n.a.\",K12=\"n.a.\",L12=\"n.a.\",M12=\"n.a.\",N12=\"n.a.\",O12=\"n.a.\",P12=\"n.a.\",Q12=\"n.a.\"),$D12&\"*\",$D12),IF($G$1=\"PFT_43\",IF(OR(M12=\"n.a.\",N12=\"n.a.\",O12=\"n.a.\",P12=\"n.a.\",Q12=\"n.a.\"),$D12&\"*\",$D12),IF(OR(F12=\"n.a.\",G12=\"n.a.\",H12=\"n.a.\",I12=\"n.a.\",J12=\"n.a.\",K12=\"n.a.\",L12=\"n.a.\",M12=\"n.a.\",N12=\"n.a.\",O12=\"n.a.\",P12=\"n.a.\",Q12=\"n.a.\"),$D12&\"*\",$D12)))","v":"BG"},{"$f":"IF(IFERROR(INDEX(Data!$AF$2:$BE$688,MATCH($D12&\"_\"&F$1,Data!$AF$2:$AF$688,0),MATCH(F$2,Data!$AF$2:$BE$2,0)),\"\")=\".\",\"n.a.\",IFERROR(INDEX(Data!$AF$2:$BE$688,MATCH($D12&\"_\"&F$1,Data!$AF$2:$AF$688,0),MATCH(F$2,Data!$AF$2:$BE$2,0)),\"\"))","v":0.1982414408},{"$f":"IF(IFERROR(INDEX(Data!$AF$2:$BE$688,MATCH($D12&\"_\"&G$1,Data!$AF$2:$AF$688,0),MATCH(G$2,Data!$AF$2:$BE$2,0)),\"\")=\".\",\"n.a.\",IFERROR(INDEX(Data!$AF$2:$BE$688,MATCH($D12&\"_\"&G$1,Data!$AF$2:$AF$688,0),MATCH(G$2,Data!$AF$2:$BE$2,0)),\"\"))","v":0.1984094847},{"$f":"IF(IFERROR(INDEX(Data!$AF$2:$BE$688,MATCH($D12&\"_\"&H$1,Data!$AF$2:$AF$688,0),MATCH(H$2,Data!$AF$2:$BE$2,0)),\"\")=\".\",\"n.a.\",IFERROR(INDEX(Data!$AF$2:$BE$688,MATCH($D12&\"_\"&H$1,Data!$AF$2:$AF$688,0),MATCH(H$2,Data!$AF$2:$BE$2,0)),\"\"))","v":0.19173410269999999},{"$f":"IF(IFERROR(INDEX(Data!$AF$2:$BE$688,MATCH($D12&\"_\"&I$1,Data!$AF$2:$AF$688,0),MATCH(I$2,Data!$AF$2:$BE$2,0)),\"\")=\".\",\"n.a.\",IFERROR(INDEX(Data!$AF$2:$BE$688,MATCH($D12&\"_\"&I$1,Data!$AF$2:$AF$688,0),MATCH(I$2,Data!$AF$2:$BE$2,0)),\"\"))","v":0.1987356485},{"$f":"IF(IFERROR(INDEX(Data!$AF$2:$BE$688,MATCH($D12&\"_\"&J$1,Data!$AF$2:$AF$688,0),MATCH(J$2,Data!$AF$2:$BE$2,0)),\"\")=\".\",\"n.a.\",IFERROR(INDEX(Data!$AF$2:$BE$688,MATCH($D12&\"_\"&J$1,Data!$AF$2:$AF$688,0),MATCH(J$2,Data!$AF$2:$BE$2,0)),\"\"))","v":0.18767957430000001},{"$f":"IF(IFERROR(INDEX(Data!$AF$2:$BE$688,MATCH($D12&\"_\"&K$1,Data!$AF$2:$AF$688,0),MATCH(K$2,Data!$AF$2:$BE$2,0)),\"\")=\".\",\"n.a.\",IFERROR(INDEX(Data!$AF$2:$BE$688,MATCH($D12&\"_\"&K$1,Data!$AF$2:$AF$688,0),MATCH(K$2,Data!$AF$2:$BE$2,0)),\"\"))","v":0.1928071388},{"$f":"IF(IFERROR(INDEX(Data!$AF$2:$BE$688,MATCH($D12&\"_\"&L$1,Data!$AF$2:$AF$688,0),MATCH(L$2,Data!$AF$2:$BE$2,0)),\"\")=\".\",\"n.a.\",IFERROR(INDEX(Data!$AF$2:$BE$688,MATCH($D12&\"_\"&L$1,Data!$AF$2:$AF$688,0),MATCH(L$2,Data!$AF$2:$BE$2,0)),\"\"))","v":0.19538513960000001},{"$f":"IF(IFERROR(INDEX(Data!$AF$2:$BE$688,MATCH($D12&\"_\"&M$1,Data!$AF$2:$AF$688,0),MATCH(M$2,Data!$AF$2:$BE$2,0)),\"\")=\".\",\"n.a.\",IFERROR(INDEX(Data!$AF$2:$BE$688,MATCH($D12&\"_\"&M$1,Data!$AF$2:$AF$688,0),MATCH(M$2,Data!$AF$2:$BE$2,0)),\"\"))","v":0.19828993789999999},{"$f":"IF(IFERROR(INDEX(Data!$AF$2:$BE$688,MATCH($D12&\"_\"&N$1,Data!$AF$2:$AF$688,0),MATCH(N$2,Data!$AF$2:$BE$2,0)),\"\")=\".\",\"n.a.\",IFERROR(INDEX(Data!$AF$2:$BE$688,MATCH($D12&\"_\"&N$1,Data!$AF$2:$AF$688,0),MATCH(N$2,Data!$AF$2:$BE$2,0)),\"\"))","v":0.1984142576},{"$f":"IF(IFERROR(INDEX(Data!$AF$2:$BE$688,MATCH($D12&\"_\"&O$1,Data!$AF$2:$AF$688,0),MATCH(O$2,Data!$AF$2:$BE$2,0)),\"\")=\".\",\"n.a.\",IFERROR(INDEX(Data!$AF$2:$BE$688,MATCH($D12&\"_\"&O$1,Data!$AF$2:$AF$688,0),MATCH(O$2,Data!$AF$2:$BE$2,0)),\"\"))","v":0.2344381136},{"$f":"IF(IFERROR(INDEX(Data!$AF$2:$BE$688,MATCH($D12&\"_\"&P$1,Data!$AF$2:$AF$688,0),MATCH(P$2,Data!$AF$2:$BE$2,0)),\"\")=\".\",\"n.a.\",IFERROR(INDEX(Data!$AF$2:$BE$688,MATCH($D12&\"_\"&P$1,Data!$AF$2:$AF$688,0),MATCH(P$2,Data!$AF$2:$BE$2,0)),\"\"))","v":0.23458864099999999},{"$f":"IF(IFERROR(INDEX(Data!$AF$2:$BG$688,MATCH($D12&\"_\"&Q$1,Data!$AF$2:$AF$688,0),MATCH(Q$2,Data!$AF$2:$BG$2,0)),\"\")=\".\",\"n.a.\",IFERROR(INDEX(Data!$AF$2:$BG$688,MATCH($D12&\"_\"&Q$1,Data!$AF$2:$AF$688,0),MATCH(Q$2,Data!$AF$2:$BG$2,0)),\"\"))","v":0.2359565813}]
[null,null,null,"CY","CY",{"$f":"IF(IFERROR(INDEX(Data!$AF$2:$BE$688,MATCH($D13&\"_\"&F$1,Data!$AF$2:$AF$688,0),MATCH(F$2,Data!$AF$2:$BE$2,0)),\"\")=\".\",\"n.a.\",IFERROR(INDEX(Data!$AF$2:$BE$688,MATCH($D13&\"_\"&F$1,Data!$AF$2:$AF$688,0),MATCH(F$2,Data!$AF$2:$BE$2,0)),\"\"))","v":0.13452225979999999},{"$f":"IF(IFERROR(INDEX(Data!$AF$2:$BE$688,MATCH($D13&\"_\"&G$1,Data!$AF$2:$AF$688,0),MATCH(G$2,Data!$AF$2:$BE$2,0)),\"\")=\".\",\"n.a.\",IFERROR(INDEX(Data!$AF$2:$BE$688,MATCH($D13&\"_\"&G$1,Data!$AF$2:$AF$688,0),MATCH(G$2,Data!$AF$2:$BE$2,0)),\"\"))","v":0.1367896347},{"$f":"IF(IFERROR(INDEX(Data!$AF$2:$BE$688,MATCH($D13&\"_\"&H$1,Data!$AF$2:$AF$688,0),MATCH(H$2,Data!$AF$2:$BE$2,0)),\"\")=\".\",\"n.a.\",IFERROR(INDEX(Data!$AF$2:$BE$688,MATCH($D13&\"_\"&H$1,Data!$AF$2:$AF$688,0),MATCH(H$2,Data!$AF$2:$BE$2,0)),\"\"))","v":0.1406686687},{"$f":"IF(IFERROR(INDEX(Data!$AF$2:$BE$688,MATCH($D13&\"_\"&I$1,Data!$AF$2:$AF$688,0),MATCH(I$2,Data!$AF$2:$BE$2,0)),\"\")=\".\",\"n.a.\",IFERROR(INDEX(Data!$AF$2:$BE$688,MATCH($D13&\"_\"&I$1,Data!$AF$2:$AF$688,0),MATCH(I$2,Data!$AF$2:$BE$2,0)),\"\"))","v":0.1548826546},{"$f":"IF(IFERROR(INDEX(Data!$AF$2:$BE$688,MATCH($D13&\"_\"&J$1,Data!$AF$2:$AF$688,0),MATCH(J$2,Data!$AF$2:$BE$2,0)),\"\")=\".\",\"n.a.\",IFERROR(INDEX(Data!$AF$2:$BE$688,MATCH($D13&\"_\"&J$1,Data!$AF$2:$AF$688,0),MATCH(J$2,Data!$AF$2:$BE$2,0)),\"\"))","v":0.1646232939},{"$f":"IF(IFERROR(INDEX(Data!$AF$2:$BE$688,MATCH($D13&\"_\"&K$1,Data!$AF$2:$AF$688,0),MATCH(K$2,Data!$AF$2:$BE$2,0)),\"\")=\".\",\"n.a.\",IFERROR(INDEX(Data!$AF$2:$BE$688,MATCH($D13&\"_\"&K$1,Data!$AF$2:$AF$688,0),MATCH(K$2,Data!$AF$2:$BE$2,0)),\"\"))","v":0.17325265989999999},{"$f":"IF(IFERROR(INDEX(Data!$AF$2:$BE$688,MATCH($D13&\"_\"&L$1,Data!$AF$2:$AF$688,0),MATCH(L$2,Data!$AF$2:$BE$2,0)),\"\")=\".\",\"n.a.\",IFERROR(INDEX(Data!$AF$2:$BE$688,MATCH($D13&\"_\"&L$1,Data!$AF$2:$AF$688,0),MATCH(L$2,Data!$AF$2:$BE$2,0)),\"\"))","v":0.17586567920000001},{"$f":"IF(IFERROR(INDEX(Data!$AF$2:$BE$688,MATCH($D13&\"_\"&M$1,Data!$AF$2:$AF$688,0),MATCH(M$2,Data!$AF$2:$BE$2,0)),\"\")=\".\",\"n.a.\",IFERROR(INDEX(Data!$AF$2:$BE$688,MATCH($D13&\"_\"&M$1,Data!$AF$2:$AF$688,0),MATCH(M$2,Data!$AF$2:$BE$2,0)),\"\"))","v":0.1852219417},{"$f":"IF(IFERROR(INDEX(Data!$AF$2:$BE$688,MATCH($D13&\"_\"&N$1,Data!$AF$2:$AF$688,0),MATCH(N$2,Data!$AF$2:$BE$2,0)),\"\")=\".\",\"n.a.\",IFERROR(INDEX(Data!$AF$2:$BE$688,MATCH($D13&\"_\"&N$1,Data!$AF$2:$AF$688,0),MATCH(N$2,Data!$AF$2:$BE$2,0)),\"\"))","v":0.18101133850000001},{"$f":"IF(IFERROR(INDEX(Data!$AF$2:$BE$688,MATCH($D13&\"_\"&O$1,Data!$AF$2:$AF$688,0),MATCH(O$2,Data!$AF$2:$BE$2,0)),\"\")=\".\",\"n.a.\",IFERROR(INDEX(Data!$AF$2:$BE$688,MATCH($D13&\"_\"&O$1,Data!$AF$2:$AF$688,0),MATCH(O$2,Data!$AF$2:$BE$2,0)),\"\"))","v":0.18197462340000001},{"$f":"IF(IFERROR(INDEX(Data!$AF$2:$BE$688,MATCH($D13&\"_\"&P$1,Data!$AF$2:$AF$688,0),MATCH(P$2,Data!$AF$2:$BE$2,0)),\"\")=\".\",\"n.a.\",IFERROR(INDEX(Data!$AF$2:$BE$688,MATCH($D13&\"_\"&P$1,Data!$AF$2:$AF$688,0),MATCH(P$2,Data!$AF$2:$BE$2,0)),\"\"))","v":0.1846010179},{"$f":"IF(IFERROR(INDEX(Data!$AF$2:$BG$688,MATCH($D13&\"_\"&Q$1,Data!$AF$2:$AF$688,0),MATCH(Q$2,Data!$AF$2:$BG$2,0)),\"\")=\".\",\"n.a.\",IFERROR(INDEX(Data!$AF$2:$BG$688,MATCH($D13&\"_\"&Q$1,Data!$AF$2:$AF$688,0),MATCH(Q$2,Data!$AF$2:$BG$2,0)),\"\"))","v":0.18602095769999999}]
[null,null,null,"CZ","CZ",{"$f":"IF(IFERROR(INDEX(Data!$AF$2:$BE$688,MATCH($D14&\"_\"&F$1,Data!$AF$2:$AF$688,0),MATCH(F$2,Data!$AF$2:$BE$2,0)),\"\")=\".\",\"n.a.\",IFERROR(INDEX(Data!$AF$2:$BE$688,MATCH($D14&\"_\"&F$1,Data!$AF$2:$AF$688,0),MATCH(F$2,Data!$AF$2:$BE$2,0)),\"\"))","v":0.1759332465},{"$f":"IF(IFERROR(INDEX(Data!$AF$2:$BE$688,MATCH($D14&\"_\"&G$1,Data!$AF$2:$AF$688,0),MATCH(G$2,Data!$AF$2:$BE$2,0)),\"\")=\".\",\"n.a.\",IFERROR(INDEX(Data!$AF$2:$BE$688,MATCH($D14&\"_\"&G$1,Data!$AF$2:$AF$688,0),MATCH(G$2,Data!$AF$2:$BE$2,0)),\"\"))","v":0.17208948199999999},{"$f":"IF(IFERROR(INDEX(Data!$AF$2:$BE$688,MATCH($D14&\"_\"&H$1,Data!$AF$2:$AF$688,0),MATCH(H$2,Data!$AF$2:$BE$2,0)),\"\")=\".\",\"n.a.\",IFERROR(INDEX(Data!$AF$2:$BE$688,MATCH($D14&\"_\"&H$1,Data!$AF$2:$AF$688,0),MATCH(H$2,Data!$AF$2:$BE$2,0)),\"\"))","v":0.17358510590000001},{"$f":"IF(IFERROR(INDEX(Data!$AF$2:$BE$688,MATCH($D14&\"_\"&I$1,Data!$AF$2:$AF$688,0),MATCH(I$2,Data!$AF$2:$BE$2,0)),\"\")=\".\",\"n.a.\",IFERROR(INDEX(Data!$AF$2:$BE$688,MATCH($D14&\"_\"&I$1,Data!$AF$2:$AF$688,0),MATCH(I$2,Data!$AF$2:$BE$2,0)),\"\"))","v":0.18193424829999999},{"$f":"IF(IFERROR(INDEX(Data!$AF$2:$BE$688,MATCH($D14&\"_\"&J$1,Data!$AF$2:$AF$688,0),MATCH(J$2,Data!$AF$2:$BE$2,0)),\"\")=\".\",\"n.a.\",IFERROR(INDEX(Data!$AF$2:$BE$688,MATCH($D14&\"_\"&J$1,Data!$AF$2:$AF$688,0),MATCH(J$2,Data!$AF$2:$BE$2,0)),\"\"))","v":0.18486854359999999},{"$f":"IF(IFERROR(INDEX(Data!$AF$2:$BE$688,MATCH($D14&\"_\"&K$1,Data!$AF$2:$AF$688,0),MATCH(K$2,Data!$AF$2:$BE$2,0)),\"\")=\".\",\"n.a.\",IFERROR(INDEX(Data!$AF$2:$BE$688,MATCH($D14&\"_\"&K$1,Data!$AF$2:$AF$688,0),MATCH(K$2,Data!$AF$2:$BE$2,0)),\"\"))","v":0.19217875209999999},{"$f":"IF(IFERROR(INDEX(Data!$AF$2:$BE$688,MATCH($D14&\"_\"&L$1,Data!$AF$2:$AF$688,0),MATCH(L$2,Data!$AF$2:$BE$2,0)),\"\")=\".\",\"n.a.\",IFERROR(INDEX(Data!$AF$2:$BE$688,MATCH($D14&\"_\"&L$1,Data!$AF$2:$AF$688,0),MATCH(L$2,Data!$AF$2:$BE$2,0)),\"\"))","v":0.19225907119999999},{"$f":"IF(IFERROR(INDEX(Data!$AF$2:$BE$688,MATCH($D14&\"_\"&M$1,Data!$AF$2:$AF$688,0),MATCH(M$2,Data!$AF$2:$BE$2,0)),\"\")=\".\",\"n.a.\",IFERROR(INDEX(Data!$AF$2:$BE$688,MATCH($D14&\"_\"&M$1,Data!$AF$2:$AF$688,0),MATCH(M$2,Data!$AF$2:$BE$2,0)),\"\"))","v":0.2011575011},{"$f":"IF(IFERROR(INDEX(Data!$AF$2:$BE$688,MATCH($D14&\"_\"&N$1,Data!$AF$2:$AF$688,0),MATCH(N$2,Data!$AF$2:$BE$2,0)),\"\")=\".\",\"n.a.\",IFERROR(INDEX(Data!$AF$2:$BE$688,MATCH($D14&\"_\"&N$1,Data!$AF$2:$AF$688,0),MATCH(N$2,Data!$AF$2:$BE$2,0)),\"\"))","v":0.2096362494},{"$f":"IF(IFERROR(INDEX(Data!$AF$2:$BE$688,MATCH($D14&\"_\"&O$1,Data!$AF$2:$AF$688,0),MATCH(O$2,Data!$AF$2:$BE$2,0)),\"\")=\".\",\"n.a.\",IFERROR(INDEX(Data!$AF$2:$BE$688,MATCH($D14&\"_\"&O$1,Data!$AF$2:$AF$688,0),MATCH(O$2,Data!$AF$2:$BE$2,0)),\"\"))","v":0.226016201},{"$f":"IF(IFERROR(INDEX(Data!$AF$2:$BE$688,MATCH($D14&\"_\"&P$1,Data!$AF$2:$AF$688,0),MATCH(P$2,Data!$AF$2:$BE$2,0)),\"\")=\".\",\"n.a.\",IFERROR(INDEX(Data!$AF$2:$BE$688,MATCH($D14&\"_\"&P$1,Data!$AF$2:$AF$688,0),MATCH(P$2,Data!$AF$2:$BE$2,0)),\"\"))","v":0.2274309098},{"$f":"IF(IFERROR(INDEX(Data!$AF$2:$BG$688,MATCH($D14&\"_\"&Q$1,Data!$AF$2:$AF$688,0),MATCH(Q$2,Data!$AF$2:$BG$2,0)),\"\")=\".\",\"n.a.\",IFERROR(INDEX(Data!$AF$2:$BG$688,MATCH($D14&\"_\"&Q$1,Data!$AF$2:$AF$688,0),MATCH(Q$2,Data!$AF$2:$BG$2,0)),\"\"))","v":0.23618310540000001}]
[null,null,null,"DE","DE",{"$f":"IF(IFERROR(INDEX(Data!$AF$2:$BE$688,MATCH($D15&\"_\"&F$1,Data!$AF$2:$AF$688,0),MATCH(F$2,Data!$AF$2:$BE$2,0)),\"\")=\".\",\"n.a.\",IFERROR(INDEX(Data!$AF$2:$BE$688,MATCH($D15&\"_\"&F$1,Data!$AF$2:$AF$688,0),MATCH(F$2,Data!$AF$2:$BE$2,0)),\"\"))","v":0.16526561170000001},{"$f":"IF(IFERROR(INDEX(Data!$AF$2:$BE$688,MATCH($D15&\"_\"&G$1,Data!$AF$2:$AF$688,0),MATCH(G$2,Data!$AF$2:$BE$2,0)),\"\")=\".\",\"n.a.\",IFERROR(INDEX(Data!$AF$2:$BE$688,MATCH($D15&\"_\"&G$1,Data!$AF$2:$AF$688,0),MATCH(G$2,Data!$AF$2:$BE$2,0)),\"\"))","v":0.1651544787},{"$f":"IF(IFERROR(INDEX(Data!$AF$2:$BE$688,MATCH($D15&\"_\"&H$1,Data!$AF$2:$AF$688,0),MATCH(H$2,Data!$AF$2:$BE$2,0)),\"\")=\".\",\"n.a.\",IFERROR(INDEX(Data!$AF$2:$BE$688,MATCH($D15&\"_\"&H$1,Data!$AF$2:$AF$688,0),MATCH(H$2,Data!$AF$2:$BE$2,0)),\"\"))","v":0.16625108129999999},{"$f":"IF(IFERROR(INDEX(Data!$AF$2:$BE$688,MATCH($D15&\"_\"&I$1,Data!$AF$2:$AF$688,0),MATCH(I$2,Data!$AF$2:$BE$2,0)),\"\")=\".\",\"n.a.\",IFERROR(INDEX(Data!$AF$2:$BE$688,MATCH($D15&\"_\"&I$1,Data!$AF$2:$AF$688,0),MATCH(I$2,Data!$AF$2:$BE$2,0)),\"\"))","v":0.16492293829999999},{"$f":"IF(IFERROR(INDEX(Data!$AF$2:$BE$688,MATCH($D15&\"_\"&J$1,Data!$AF$2:$AF$688,0),MATCH(J$2,Data!$AF$2:$BE$2,0)),\"\")=\".\",\"n.a.\",IFERROR(INDEX(Data!$AF$2:$BE$688,MATCH($D15&\"_\"&J$1,Data!$AF$2:$AF$688,0),MATCH(J$2,Data!$AF$2:$BE$2,0)),\"\"))","v":0.15362025809999999},{"$f":"IF(IFERROR(INDEX(Data!$AF$2:$BE$688,MATCH($D15&\"_\"&K$1,Data!$AF$2:$AF$688,0),MATCH(K$2,Data!$AF$2:$BE$2,0)),\"\")=\".\",\"n.a.\",IFERROR(INDEX(Data!$AF$2:$BE$688,MATCH($D15&\"_\"&K$1,Data!$AF$2:$AF$688,0),MATCH(K$2,Data!$AF$2:$BE$2,0)),\"\"))","v":0.15087464119999999},{"$f":"IF(IFERROR(INDEX(Data!$AF$2:$BE$688,MATCH($D15&\"_\"&L$1,Data!$AF$2:$AF$688,0),MATCH(L$2,Data!$AF$2:$BE$2,0)),\"\")=\".\",\"n.a.\",IFERROR(INDEX(Data!$AF$2:$BE$688,MATCH($D15&\"_\"&L$1,Data!$AF$2:$AF$688,0),MATCH(L$2,Data!$AF$2:$BE$2,0)),\"\"))","v":0.14961192970000001},{"$f":"IF(IFERROR(INDEX(Data!$AF$2:$BE$688,MATCH($D15&\"_\"&M$1,Data!$AF$2:$AF$688,0),MATCH(M$2,Data!$AF$2:$BE$2,0)),\"\")=\".\",\"n.a.\",IFERROR(INDEX(Data!$AF$2:$BE$688,MATCH($D15&\"_\"&M$1,Data!$AF$2:$AF$688,0),MATCH(M$2,Data!$AF$2:$BE$2,0)),\"\"))","v":0.1583847565},{"$f":"IF(IFERROR(INDEX(Data!$AF$2:$BE$688,MATCH($D15&\"_\"&N$1,Data!$AF$2:$AF$688,0),MATCH(N$2,Data!$AF$2:$BE$2,0)),\"\")=\".\",\"n.a.\",IFERROR(INDEX(Data!$AF$2:$BE$688,MATCH($D15&\"_\"&N$1,Data!$AF$2:$AF$688,0),MATCH(N$2,Data!$AF$2:$BE$2,0)),\"\"))","v":0.1542793898},{"$f":"IF(IFERROR(INDEX(Data!$AF$2:$BE$688,MATCH($D15&\"_\"&O$1,Data!$AF$2:$AF$688,0),MATCH(O$2,Data!$AF$2:$BE$2,0)),\"\")=\".\",\"n.a.\",IFERROR(INDEX(Data!$AF$2:$BE$688,MATCH($D15&\"_\"&O$1,Data!$AF$2:$AF$688,0),MATCH(O$2,Data!$AF$2:$BE$2,0)),\"\"))","v":0.16009149249999999},{"$f":"IF(IFERROR(INDEX(Data!$AF$2:$BE$688,MATCH($D15&\"_\"&P$1,Data!$AF$2:$AF$688,0),MATCH(P$2,Data!$AF$2:$BE$2,0)),\"\")=\".\",\"n.a.\",IFERROR(INDEX(Data!$AF$2:$BE$688,MATCH($D15&\"_\"&P$1,Data!$AF$2:$AF$688,0),MATCH(P$2,Data!$AF$2:$BE$2,0)),\"\"))","v":0.1680335825},{"$f":"IF(IFERROR(INDEX(Data!$AF$2:$BG$688,MATCH($D15&\"_\"&Q$1,Data!$AF$2:$AF$688,0),MATCH(Q$2,Data!$AF$2:$BG$2,0)),\"\")=\".\",\"n.a.\",IFERROR(INDEX(Data!$AF$2:$BG$688,MATCH($D15&\"_\"&Q$1,Data!$AF$2:$AF$688,0),MATCH(Q$2,Data!$AF$2:$BG$2,0)),\"\"))","v":0.1697517805}]
[null,null,null,"DK","DK",{"$f":"IF(IFERROR(INDEX(Data!$AF$2:$BE$688,MATCH($D16&\"_\"&F$1,Data!$AF$2:$AF$688,0),MATCH(F$2,Data!$AF$2:$BE$2,0)),\"\")=\".\",\"n.a.\",IFERROR(INDEX(Data!$AF$2:$BE$688,MATCH($D16&\"_\"&F$1,Data!$AF$2:$AF$688,0),MATCH(F$2,Data!$AF$2:$BE$2,0)),\"\"))","v":0.19282462189999999},{"$f":"IF(IFERROR(INDEX(Data!$AF$2:$BE$688,MATCH($D16&\"_\"&G$1,Data!$AF$2:$AF$688,0),MATCH(G$2,Data!$AF$2:$BE$2,0)),\"\")=\".\",\"n.a.\",IFERROR(INDEX(Data!$AF$2:$BE$688,MATCH($D16&\"_\"&G$1,Data!$AF$2:$AF$688,0),MATCH(G$2,Data!$AF$2:$BE$2,0)),\"\"))","v":0.19548716229999999},{"$f":"IF(IFERROR(INDEX(Data!$AF$2:$BE$688,MATCH($D16&\"_\"&H$1,Data!$AF$2:$AF$688,0),MATCH(H$2,Data!$AF$2:$BE$2,0)),\"\")=\".\",\"n.a.\",IFERROR(INDEX(Data!$AF$2:$BE$688,MATCH($D16&\"_\"&H$1,Data!$AF$2:$AF$688,0),MATCH(H$2,Data!$AF$2:$BE$2,0)),\"\"))","v":0.19963777999999999},{"$f":"IF(IFERROR(INDEX(Data!$AF$2:$BE$688,MATCH($D16&\"_\"&I$1,Data!$AF$2:$AF$688,0),MATCH(I$2,Data!$AF$2:$BE$2,0)),\"\")=\".\",\"n.a.\",IFERROR(INDEX(Data!$AF$2:$BE$688,MATCH($D16&\"_\"&I$1,Data!$AF$2:$AF$688,0),MATCH(I$2,Data!$AF$2:$BE$2,0)),\"\"))","v":0.20308028780000001},{"$f":"IF(IFERROR(INDEX(Data!$AF$2:$BE$688,MATCH($D16&\"_\"&J$1,Data!$AF$2:$AF$688,0),MATCH(J$2,Data!$AF$2:$BE$2,0)),\"\")=\".\",\"n.a.\",IFERROR(INDEX(Data!$AF$2:$BE$688,MATCH($D16&\"_\"&J$1,Data!$AF$2:$AF$688,0),MATCH(J$2,Data!$AF$2:$BE$2,0)),\"\"))","v":0.19953252539999999},{"$f":"IF(IFERROR(INDEX(Data!$AF$2:$BE$688,MATCH($D16&\"_\"&K$1,Data!$AF$2:$AF$688,0),MATCH(K$2,Data!$AF$2:$BE$2,0)),\"\")=\".\",\"n.a.\",IFERROR(INDEX(Data!$AF$2:$BE$688,MATCH($D16&\"_\"&K$1,Data!$AF$2:$AF$688,0),MATCH(K$2,Data!$AF$2:$BE$2,0)),\"\"))","v":0.1990350514},{"$f":"IF(IFERROR(INDEX(Data!$AF$2:$BE$688,MATCH($D16&\"_\"&L$1,Data!$AF$2:$AF$688,0),MATCH(L$2,Data!$AF$2:$BE$2,0)),\"\")=\".\",\"n.a.\",IFERROR(INDEX(Data!$AF$2:$BE$688,MATCH($D16&\"_\"&L$1,Data!$AF$2:$AF$688,0),MATCH(L$2,Data!$AF$2:$BE$2,0)),\"\"))","v":0.19512932099999999},{"$f":"IF(IFERROR(INDEX(Data!$AF$2:$BE$688,MATCH($D16&\"_\"&M$1,Data!$AF$2:$AF$688,0),MATCH(M$2,Data!$AF$2:$BE$2,0)),\"\")=\".\",\"n.a.\",IFERROR(INDEX(Data!$AF$2:$BE$688,MATCH($D16&\"_\"&M$1,Data!$AF$2:$AF$688,0),MATCH(M$2,Data!$AF$2:$BE$2,0)),\"\"))","v":0.2028853467},{"$f":"IF(IFERROR(INDEX(Data!$AF$2:$BE$688,MATCH($D16&\"_\"&N$1,Data!$AF$2:$AF$688,0),MATCH(N$2,Data!$AF$2:$BE$2,0)),\"\")=\".\",\"n.a.\",IFERROR(INDEX(Data!$AF$2:$BE$688,MATCH($D16&\"_\"&N$1,Data!$AF$2:$AF$688,0),MATCH(N$2,Data!$AF$2:$BE$2,0)),\"\"))","v":0.20207744320000001},{"$f":"IF(IFERROR(INDEX(Data!$AF$2:$BE$688,MATCH($D16&\"_\"&O$1,Data!$AF$2:$AF$688,0),MATCH(O$2,Data!$AF$2:$BE$2,0)),\"\")=\".\",\"n.a.\",IFERROR(INDEX(Data!$AF$2:$BE$688,MATCH($D16&\"_\"&O$1,Data!$AF$2:$AF$688,0),MATCH(O$2,Data!$AF$2:$BE$2,0)),\"\"))","v":0.19941079619999999},{"$f":"IF(IFERROR(INDEX(Data!$AF$2:$BE$688,MATCH($D16&\"_\"&P$1,Data!$AF$2:$AF$688,0),MATCH(P$2,Data!$AF$2:$BE$2,0)),\"\")=\".\",\"n.a.\",IFERROR(INDEX(Data!$AF$2:$BE$688,MATCH($D16&\"_\"&P$1,Data!$AF$2:$AF$688,0),MATCH(P$2,Data!$AF$2:$BE$2,0)),\"\"))","v":0.2007949695},{"$f":"IF(IFERROR(INDEX(Data!$AF$2:$BG$688,MATCH($D16&\"_\"&Q$1,Data!$AF$2:$AF$688,0),MATCH(Q$2,Data!$AF$2:$BG$2,0)),\"\")=\".\",\"n.a.\",IFERROR(INDEX(Data!$AF$2:$BG$688,MATCH($D16&\"_\"&Q$1,Data!$AF$2:$AF$688,0),MATCH(Q$2,Data!$AF$2:$BG$2,0)),\"\"))","v":0.2062235915}]
[null,null,null,{"$f":"IF(E1=\"FND_33\",\"EE*\",\"EE\")","v":"EE"},"EE",{"$f":"IF(IFERROR(INDEX(Data!$AF$2:$BE$688,MATCH($D17&\"_\"&F$1,Data!$AF$2:$AF$688,0),MATCH(F$2,Data!$AF$2:$BE$2,0)),\"\")=\".\",\"n.a.\",IFERROR(INDEX(Data!$AF$2:$BE$688,MATCH($D17&\"_\"&F$1,Data!$AF$2:$AF$688,0),MATCH(F$2,Data!$AF$2:$BE$2,0)),\"\"))","v":0.32307668229999997},{"$f":"IF(IFERROR(INDEX(Data!$AF$2:$BE$688,MATCH($D17&\"_\"&G$1,Data!$AF$2:$AF$688,0),MATCH(G$2,Data!$AF$2:$BE$2,0)),\"\")=\".\",\"n.a.\",IFERROR(INDEX(Data!$AF$2:$BE$688,MATCH($D17&\"_\"&G$1,Data!$AF$2:$AF$688,0),MATCH(G$2,Data!$AF$2:$BE$2,0)),\"\"))","v":0.31760159589999998},{"$f":"IF(IFERROR(INDEX(Data!$AF$2:$BE$688,MATCH($D17&\"_\"&H$1,Data!$AF$2:$AF$688,0),MATCH(H$2,Data!$AF$2:$BE$2,0)),\"\")=\".\",\"n.a.\",IFERROR(INDEX(Data!$AF$2:$BE$688,MATCH($D17&\"_\"&H$1,Data!$AF$2:$AF$688,0),MATCH(H$2,Data!$AF$2:$BE$2,0)),\"\"))","v":0.31926758249999998},{"$f":"IF(IFERROR(INDEX(Data!$AF$2:$BE$688,MATCH($D17&\"_\"&I$1,Data!$AF$2:$AF$688,0),MATCH(I$2,Data!$AF$2:$BE$2,0)),\"\")=\".\",\"n.a.\",IFERROR(INDEX(Data!$AF$2:$BE$688,MATCH($D17&\"_\"&I$1,Data!$AF$2:$AF$688,0),MATCH(I$2,Data!$AF$2:$BE$2,0)),\"\"))","v":0.3159974981},{"$f":"IF(IFERROR(INDEX(Data!$AF$2:$BE$688,MATCH($D17&\"_\"&J$1,Data!$AF$2:$AF$688,0),MATCH(J$2,Data!$AF$2:$BE$2,0)),\"\")=\".\",\"n.a.\",IFERROR(INDEX(Data!$AF$2:$BE$688,MATCH($D17&\"_\"&J$1,Data!$AF$2:$AF$688,0),MATCH(J$2,Data!$AF$2:$BE$2,0)),\"\"))","v":0.26827838879999999},{"$f":"IF(IFERROR(INDEX(Data!$AF$2:$BE$688,MATCH($D17&\"_\"&K$1,Data!$AF$2:$AF$688,0),MATCH(K$2,Data!$AF$2:$BE$2,0)),\"\")=\".\",\"n.a.\",IFERROR(INDEX(Data!$AF$2:$BE$688,MATCH($D17&\"_\"&K$1,Data!$AF$2:$AF$688,0),MATCH(K$2,Data!$AF$2:$BE$2,0)),\"\"))","v":0.27106398900000001},{"$f":"IF(IFERROR(INDEX(Data!$AF$2:$BE$688,MATCH($D17&\"_\"&L$1,Data!$AF$2:$AF$688,0),MATCH(L$2,Data!$AF$2:$BE$2,0)),\"\")=\".\",\"n.a.\",IFERROR(INDEX(Data!$AF$2:$BE$688,MATCH($D17&\"_\"&L$1,Data!$AF$2:$AF$688,0),MATCH(L$2,Data!$AF$2:$BE$2,0)),\"\"))","v":0.26028226869999999},{"$f":"IF(IFERROR(INDEX(Data!$AF$2:$BE$688,MATCH($D17&\"_\"&M$1,Data!$AF$2:$AF$688,0),MATCH(M$2,Data!$AF$2:$BE$2,0)),\"\")=\".\",\"n.a.\",IFERROR(INDEX(Data!$AF$2:$BE$688,MATCH($D17&\"_\"&M$1,Data!$AF$2:$AF$688,0),MATCH(M$2,Data!$AF$2:$BE$2,0)),\"\"))","v":0.2702115477},{"$f":"IF(IFERROR(INDEX(Data!$AF$2:$BE$688,MATCH($D17&\"_\"&N$1,Data!$AF$2:$AF$688,0),MATCH(N$2,Data!$AF$2:$BE$2,0)),\"\")=\".\",\"n.a.\",IFERROR(INDEX(Data!$AF$2:$BE$688,MATCH($D17&\"_\"&N$1,Data!$AF$2:$AF$688,0),MATCH(N$2,Data!$AF$2:$BE$2,0)),\"\"))","v":0.26962342140000001},{"$f":"IF(IFERROR(INDEX(Data!$AF$2:$BE$688,MATCH($D17&\"_\"&O$1,Data!$AF$2:$AF$688,0),MATCH(O$2,Data!$AF$2:$BE$2,0)),\"\")=\".\",\"n.a.\",IFERROR(INDEX(Data!$AF$2:$BE$688,MATCH($D17&\"_\"&O$1,Data!$AF$2:$AF$688,0),MATCH(O$2,Data!$AF$2:$BE$2,0)),\"\"))","v":0.2761292374},{"$f":"IF(IFERROR(INDEX(Data!$AF$2:$BE$688,MATCH($D17&\"_\"&P$1,Data!$AF$2:$AF$688,0),MATCH(P$2,Data!$AF$2:$BE$2,0)),\"\")=\".\",\"n.a.\",IFERROR(INDEX(Data!$AF$2:$BE$688,MATCH($D17&\"_\"&P$1,Data!$AF$2:$AF$688,0),MATCH(P$2,Data!$AF$2:$BE$2,0)),\"\"))","v":0.27552276110000001},{"$f":"IF(IFERROR(INDEX(Data!$AF$2:$BG$688,MATCH($D17&\"_\"&Q$1,Data!$AF$2:$AF$688,0),MATCH(Q$2,Data!$AF$2:$BG$2,0)),\"\")=\".\",\"n.a.\",IFERROR(INDEX(Data!$AF$2:$BG$688,MATCH($D17&\"_\"&Q$1,Data!$AF$2:$AF$688,0),MATCH(Q$2,Data!$AF$2:$BG$2,0)),\"\"))","v":0.27733085800000001}]
[null,null,null,"ES","ES",{"$f":"IF(IFERROR(INDEX(Data!$AF$2:$BE$688,MATCH($D18&\"_\"&F$1,Data!$AF$2:$AF$688,0),MATCH(F$2,Data!$AF$2:$BE$2,0)),\"\")=\".\",\"n.a.\",IFERROR(INDEX(Data!$AF$2:$BE$688,MATCH($D18&\"_\"&F$1,Data!$AF$2:$AF$688,0),MATCH(F$2,Data!$AF$2:$BE$2,0)),\"\"))","v":0.12998409299999999},{"$f":"IF(IFERROR(INDEX(Data!$AF$2:$BE$688,MATCH($D18&\"_\"&G$1,Data!$AF$2:$AF$688,0),MATCH(G$2,Data!$AF$2:$BE$2,0)),\"\")=\".\",\"n.a.\",IFERROR(INDEX(Data!$AF$2:$BE$688,MATCH($D18&\"_\"&G$1,Data!$AF$2:$AF$688,0),MATCH(G$2,Data!$AF$2:$BE$2,0)),\"\"))","v":0.129626833},{"$f":"IF(IFERROR(INDEX(Data!$AF$2:$BE$688,MATCH($D18&\"_\"&H$1,Data!$AF$2:$AF$688,0),MATCH(H$2,Data!$AF$2:$BE$2,0)),\"\")=\".\",\"n.a.\",IFERROR(INDEX(Data!$AF$2:$BE$688,MATCH($D18&\"_\"&H$1,Data!$AF$2:$AF$688,0),MATCH(H$2,Data!$AF$2:$BE$2,0)),\"\"))","v":0.1318799434},{"$f":"IF(IFERROR(INDEX(Data!$AF$2:$BE$688,MATCH($D18&\"_\"&I$1,Data!$AF$2:$AF$688,0),MATCH(I$2,Data!$AF$2:$BE$2,0)),\"\")=\".\",\"n.a.\",IFERROR(INDEX(Data!$AF$2:$BE$688,MATCH($D18&\"_\"&I$1,Data!$AF$2:$AF$688,0),MATCH(I$2,Data!$AF$2:$BE$2,0)),\"\"))","v":0.133358276},{"$f":"IF(IFERROR(INDEX(Data!$AF$2:$BE$688,MATCH($D18&\"_\"&J$1,Data!$AF$2:$AF$688,0),MATCH(J$2,Data!$AF$2:$BE$2,0)),\"\")=\".\",\"n.a.\",IFERROR(INDEX(Data!$AF$2:$BE$688,MATCH($D18&\"_\"&J$1,Data!$AF$2:$AF$688,0),MATCH(J$2,Data!$AF$2:$BE$2,0)),\"\"))","v":0.13220392680000001},{"$f":"IF(IFERROR(INDEX(Data!$AF$2:$BE$688,MATCH($D18&\"_\"&K$1,Data!$AF$2:$AF$688,0),MATCH(K$2,Data!$AF$2:$BE$2,0)),\"\")=\".\",\"n.a.\",IFERROR(INDEX(Data!$AF$2:$BE$688,MATCH($D18&\"_\"&K$1,Data!$AF$2:$AF$688,0),MATCH(K$2,Data!$AF$2:$BE$2,0)),\"\"))","v":0.13322209439999999},{"$f":"IF(IFERROR(INDEX(Data!$AF$2:$BE$688,MATCH($D18&\"_\"&L$1,Data!$AF$2:$AF$688,0),MATCH(L$2,Data!$AF$2:$BE$2,0)),\"\")=\".\",\"n.a.\",IFERROR(INDEX(Data!$AF$2:$BE$688,MATCH($D18&\"_\"&L$1,Data!$AF$2:$AF$688,0),MATCH(L$2,Data!$AF$2:$BE$2,0)),\"\"))","v":0.133688046},{"$f":"IF(IFERROR(INDEX(Data!$AF$2:$BE$688,MATCH($D18&\"_\"&M$1,Data!$AF$2:$AF$688,0),MATCH(M$2,Data!$AF$2:$BE$2,0)),\"\")=\".\",\"n.a.\",IFERROR(INDEX(Data!$AF$2:$BE$688,MATCH($D18&\"_\"&M$1,Data!$AF$2:$AF$688,0),MATCH(M$2,Data!$AF$2:$BE$2,0)),\"\"))","v":0.13569749859999999},{"$f":"IF(IFERROR(INDEX(Data!$AF$2:$BE$688,MATCH($D18&\"_\"&N$1,Data!$AF$2:$AF$688,0),MATCH(N$2,Data!$AF$2:$BE$2,0)),\"\")=\".\",\"n.a.\",IFERROR(INDEX(Data!$AF$2:$BE$688,MATCH($D18&\"_\"&N$1,Data!$AF$2:$AF$688,0),MATCH(N$2,Data!$AF$2:$BE$2,0)),\"\"))","v":0.13246247080000001},{"$f":"IF(IFERROR(INDEX(Data!$AF$2:$BE$688,MATCH($D18&\"_\"&O$1,Data!$AF$2:$AF$688,0),MATCH(O$2,Data!$AF$2:$BE$2,0)),\"\")=\".\",\"n.a.\",IFERROR(INDEX(Data!$AF$2:$BE$688,MATCH($D18&\"_\"&O$1,Data!$AF$2:$AF$688,0),MATCH(O$2,Data!$AF$2:$BE$2,0)),\"\"))","v":0.13680411070000001},{"$f":"IF(IFERROR(INDEX(Data!$AF$2:$BE$688,MATCH($D18&\"_\"&P$1,Data!$AF$2:$AF$688,0),MATCH(P$2,Data!$AF$2:$BE$2,0)),\"\")=\".\",\"n.a.\",IFERROR(INDEX(Data!$AF$2:$BE$688,MATCH($D18&\"_\"&P$1,Data!$AF$2:$AF$688,0),MATCH(P$2,Data!$AF$2:$BE$2,0)),\"\"))","v":0.140562624},{"$f":"IF(IFERROR(INDEX(Data!$AF$2:$BG$688,MATCH($D18&\"_\"&Q$1,Data!$AF$2:$AF$688,0),MATCH(Q$2,Data!$AF$2:$BG$2,0)),\"\")=\".\",\"n.a.\",IFERROR(INDEX(Data!$AF$2:$BG$688,MATCH($D18&\"_\"&Q$1,Data!$AF$2:$AF$688,0),MATCH(Q$2,Data!$AF$2:$BG$2,0)),\"\"))","v":0.1445776828}]
[null,null,null,{"$f":"IF(E1=\"FND_32\",\"FI*\",\"FI\")","v":"FI"},"FI",{"$f":"IF(IFERROR(INDEX(Data!$AF$2:$BE$688,MATCH($D19&\"_\"&F$1,Data!$AF$2:$AF$688,0),MATCH(F$2,Data!$AF$2:$BE$2,0)),\"\")=\".\",\"n.a.\",IFERROR(INDEX(Data!$AF$2:$BE$688,MATCH($D19&\"_\"&F$1,Data!$AF$2:$AF$688,0),MATCH(F$2,Data!$AF$2:$BE$2,0)),\"\"))","v":0.2182230204},{"$f":"IF(IFERROR(INDEX(Data!$AF$2:$BE$688,MATCH($D19&\"_\"&G$1,Data!$AF$2:$AF$688,0),MATCH(G$2,Data!$AF$2:$BE$2,0)),\"\")=\".\",\"n.a.\",IFERROR(INDEX(Data!$AF$2:$BE$688,MATCH($D19&\"_\"&G$1,Data!$AF$2:$AF$688,0),MATCH(G$2,Data!$AF$2:$BE$2,0)),\"\"))","v":0.21814179080000001},{"$f":"IF(IFERROR(INDEX(Data!$AF$2:$BE$688,MATCH($D19&\"_\"&H$1,Data!$AF$2:$AF$688,0),MATCH(H$2,Data!$AF$2:$BE$2,0)),\"\")=\".\",\"n.a.\",IFERROR(INDEX(Data!$AF$2:$BE$688,MATCH($D19&\"_\"&H$1,Data!$AF$2:$AF$688,0),MATCH(H$2,Data!$AF$2:$BE$2,0)),\"\"))","v":0.2183400996},{"$f":"IF(IFERROR(INDEX(Data!$AF$2:$BE$688,MATCH($D19&\"_\"&I$1,Data!$AF$2:$AF$688,0),MATCH(I$2,Data!$AF$2:$BE$2,0)),\"\")=\".\",\"n.a.\",IFERROR(INDEX(Data!$AF$2:$BE$688,MATCH($D19&\"_\"&I$1,Data!$AF$2:$AF$688,0),MATCH(I$2,Data!$AF$2:$BE$2,0)),\"\"))","v":0.18655846800000001},{"$f":"IF(IFERROR(INDEX(Data!$AF$2:$BE$688,MATCH($D19&\"_\"&J$1,Data!$AF$2:$AF$688,0),MATCH(J$2,Data!$AF$2:$BE$2,0)),\"\")=\".\",\"n.a.\",IFERROR(INDEX(Data!$AF$2:$BE$688,MATCH($D19&\"_\"&J$1,Data!$AF$2:$AF$688,0),MATCH(J$2,Data!$AF$2:$BE$2,0)),\"\"))","v":0.18334216889999999},{"$f":"IF(IFERROR(INDEX(Data!$AF$2:$BE$688,MATCH($D19&\"_\"&K$1,Data!$AF$2:$AF$688,0),MATCH(K$2,Data!$AF$2:$BE$2,0)),\"\")=\".\",\"n.a.\",IFERROR(INDEX(Data!$AF$2:$BE$688,MATCH($D19&\"_\"&K$1,Data!$AF$2:$AF$688,0),MATCH(K$2,Data!$AF$2:$BE$2,0)),\"\"))","v":0.18406820369999999},{"$f":"IF(IFERROR(INDEX(Data!$AF$2:$BE$688,MATCH($D19&\"_\"&L$1,Data!$AF$2:$AF$688,0),MATCH(L$2,Data!$AF$2:$BE$2,0)),\"\")=\".\",\"n.a.\",IFERROR(INDEX(Data!$AF$2:$BE$688,MATCH($D19&\"_\"&L$1,Data!$AF$2:$AF$688,0),MATCH(L$2,Data!$AF$2:$BE$2,0)),\"\"))","v":0.186628563},{"$f":"IF(IFERROR(INDEX(Data!$AF$2:$BE$688,MATCH($D19&\"_\"&M$1,Data!$AF$2:$AF$688,0),MATCH(M$2,Data!$AF$2:$BE$2,0)),\"\")=\".\",\"n.a.\",IFERROR(INDEX(Data!$AF$2:$BE$688,MATCH($D19&\"_\"&M$1,Data!$AF$2:$AF$688,0),MATCH(M$2,Data!$AF$2:$BE$2,0)),\"\"))","v":0.19259170749999999},{"$f":"IF(IFERROR(INDEX(Data!$AF$2:$BE$688,MATCH($D19&\"_\"&N$1,Data!$AF$2:$AF$688,0),MATCH(N$2,Data!$AF$2:$BE$2,0)),\"\")=\".\",\"n.a.\",IFERROR(INDEX(Data!$AF$2:$BE$688,MATCH($D19&\"_\"&N$1,Data!$AF$2:$AF$688,0),MATCH(N$2,Data!$AF$2:$BE$2,0)),\"\"))","v":0.18342168680000001},{"$f":"IF(IFERROR(INDEX(Data!$AF$2:$BE$688,MATCH($D19&\"_\"&O$1,Data!$AF$2:$AF$688,0),MATCH(O$2,Data!$AF$2:$BE$2,0)),\"\")=\".\",\"n.a.\",IFERROR(INDEX(Data!$AF$2:$BE$688,MATCH($D19&\"_\"&O$1,Data!$AF$2:$AF$688,0),MATCH(O$2,Data!$AF$2:$BE$2,0)),\"\"))","v":0.18230405089999999},{"$f":"IF(IFERROR(INDEX(Data!$AF$2:$BE$688,MATCH($D19&\"_\"&P$1,Data!$AF$2:$AF$688,0),MATCH(P$2,Data!$AF$2:$BE$2,0)),\"\")=\".\",\"n.a.\",IFERROR(INDEX(Data!$AF$2:$BE$688,MATCH($D19&\"_\"&P$1,Data!$AF$2:$AF$688,0),MATCH(P$2,Data!$AF$2:$BE$2,0)),\"\"))","v":0.1886075462},{"$f":"IF(IFERROR(INDEX(Data!$AF$2:$BG$688,MATCH($D19&\"_\"&Q$1,Data!$AF$2:$AF$688,0),MATCH(Q$2,Data!$AF$2:$BG$2,0)),\"\")=\".\",\"n.a.\",IFERROR(INDEX(Data!$AF$2:$BG$688,MATCH($D19&\"_\"&Q$1,Data!$AF$2:$AF$688,0),MATCH(Q$2,Data!$AF$2:$BG$2,0)),\"\"))","v":0.19429719610000001}]
[null,null,null,"FR","FR",{"$f":"IF(IFERROR(INDEX(Data!$AF$2:$BE$688,MATCH($D20&\"_\"&F$1,Data!$AF$2:$AF$688,0),MATCH(F$2,Data!$AF$2:$BE$2,0)),\"\")=\".\",\"n.a.\",IFERROR(INDEX(Data!$AF$2:$BE$688,MATCH($D20&\"_\"&F$1,Data!$AF$2:$AF$688,0),MATCH(F$2,Data!$AF$2:$BE$2,0)),\"\"))","v":0.15095071860000001},{"$f":"IF(IFERROR(INDEX(Data!$AF$2:$BE$688,MATCH($D20&\"_\"&G$1,Data!$AF$2:$AF$688,0),MATCH(G$2,Data!$AF$2:$BE$2,0)),\"\")=\".\",\"n.a.\",IFERROR(INDEX(Data!$AF$2:$BE$688,MATCH($D20&\"_\"&G$1,Data!$AF$2:$AF$688,0),MATCH(G$2,Data!$AF$2:$BE$2,0)),\"\"))","v":0.1504403212},{"$f":"IF(IFERROR(INDEX(Data!$AF$2:$BE$688,MATCH($D20&\"_\"&H$1,Data!$AF$2:$AF$688,0),MATCH(H$2,Data!$AF$2:$BE$2,0)),\"\")=\".\",\"n.a.\",IFERROR(INDEX(Data!$AF$2:$BE$688,MATCH($D20&\"_\"&H$1,Data!$AF$2:$AF$688,0),MATCH(H$2,Data!$AF$2:$BE$2,0)),\"\"))","v":0.15123553610000001},{"$f":"IF(IFERROR(INDEX(Data!$AF$2:$BE$688,MATCH($D20&\"_\"&I$1,Data!$AF$2:$AF$688,0),MATCH(I$2,Data!$AF$2:$BE$2,0)),\"\")=\".\",\"n.a.\",IFERROR(INDEX(Data!$AF$2:$BE$688,MATCH($D20&\"_\"&I$1,Data!$AF$2:$AF$688,0),MATCH(I$2,Data!$AF$2:$BE$2,0)),\"\"))","v":0.1547470081},{"$f":"IF(IFERROR(INDEX(Data!$AF$2:$BE$688,MATCH($D20&\"_\"&J$1,Data!$AF$2:$AF$688,0),MATCH(J$2,Data!$AF$2:$BE$2,0)),\"\")=\".\",\"n.a.\",IFERROR(INDEX(Data!$AF$2:$BE$688,MATCH($D20&\"_\"&J$1,Data!$AF$2:$AF$688,0),MATCH(J$2,Data!$AF$2:$BE$2,0)),\"\"))","v":0.15532242490000001},{"$f":"IF(IFERROR(INDEX(Data!$AF$2:$BE$688,MATCH($D20&\"_\"&K$1,Data!$AF$2:$AF$688,0),MATCH(K$2,Data!$AF$2:$BE$2,0)),\"\")=\".\",\"n.a.\",IFERROR(INDEX(Data!$AF$2:$BE$688,MATCH($D20&\"_\"&K$1,Data!$AF$2:$AF$688,0),MATCH(K$2,Data!$AF$2:$BE$2,0)),\"\"))","v":0.15699691690000001},{"$f":"IF(IFERROR(INDEX(Data!$AF$2:$BE$688,MATCH($D20&\"_\"&L$1,Data!$AF$2:$AF$688,0),MATCH(L$2,Data!$AF$2:$BE$2,0)),\"\")=\".\",\"n.a.\",IFERROR(INDEX(Data!$AF$2:$BE$688,MATCH($D20&\"_\"&L$1,Data!$AF$2:$AF$688,0),MATCH(L$2,Data!$AF$2:$BE$2,0)),\"\"))","v":0.1552629348},{"$f":"IF(IFERROR(INDEX(Data!$AF$2:$BE$688,MATCH($D20&\"_\"&M$1,Data!$AF$2:$AF$688,0),MATCH(M$2,Data!$AF$2:$BE$2,0)),\"\")=\".\",\"n.a.\",IFERROR(INDEX(Data!$AF$2:$BE$688,MATCH($D20&\"_\"&M$1,Data!$AF$2:$AF$688,0),MATCH(M$2,Data!$AF$2:$BE$2,0)),\"\"))","v":0.16273440759999999},{"$f":"IF(IFERROR(INDEX(Data!$AF$2:$BE$688,MATCH($D20&\"_\"&N$1,Data!$AF$2:$AF$688,0),MATCH(N$2,Data!$AF$2:$BE$2,0)),\"\")=\".\",\"n.a.\",IFERROR(INDEX(Data!$AF$2:$BE$688,MATCH($D20&\"_\"&N$1,Data!$AF$2:$AF$688,0),MATCH(N$2,Data!$AF$2:$BE$2,0)),\"\"))","v":0.1565617765},{"$f":"IF(IFERROR(INDEX(Data!$AF$2:$BE$688,MATCH($D20&\"_\"&O$1,Data!$AF$2:$AF$688,0),MATCH(O$2,Data!$AF$2:$BE$2,0)),\"\")=\".\",\"n.a.\",IFERROR(INDEX(Data!$AF$2:$BE$688,MATCH($D20&\"_\"&O$1,Data!$AF$2:$AF$688,0),MATCH(O$2,Data!$AF$2:$BE$2,0)),\"\"))","v":0.16050091960000001},{"$f":"IF(IFERROR(INDEX(Data!$AF$2:$BE$688,MATCH($D20&\"_\"&P$1,Data!$AF$2:$AF$688,0),MATCH(P$2,Data!$AF$2:$BE$2,0)),\"\")=\".\",\"n.a.\",IFERROR(INDEX(Data!$AF$2:$BE$688,MATCH($D20&\"_\"&P$1,Data!$AF$2:$AF$688,0),MATCH(P$2,Data!$AF$2:$BE$2,0)),\"\"))","v":0.16329575199999999},{"$f":"IF(IFERROR(INDEX(Data!$AF$2:$BG$688,MATCH($D20&\"_\"&Q$1,Data!$AF$2:$AF$688,0),MATCH(Q$2,Data!$AF$2:$BG$2,0)),\"\")=\".\",\"n.a.\",IFERROR(INDEX(Data!$AF$2:$BG$688,MATCH($D20&\"_\"&Q$1,Data!$AF$2:$AF$688,0),MATCH(Q$2,Data!$AF$2:$BG$2,0)),\"\"))","v":0.16954125380000001}]
[null,null,null,"GR","GR",{"$f":"IF(IFERROR(INDEX(Data!$AF$2:$BE$688,MATCH($D21&\"_\"&F$1,Data!$AF$2:$AF$688,0),MATCH(F$2,Data!$AF$2:$BE$2,0)),\"\")=\".\",\"n.a.\",IFERROR(INDEX(Data!$AF$2:$BE$688,MATCH($D21&\"_\"&F$1,Data!$AF$2:$AF$688,0),MATCH(F$2,Data!$AF$2:$BE$2,0)),\"\"))","v":0.15857415959999999},{"$f":"IF(IFERROR(INDEX(Data!$AF$2:$BE$688,MATCH($D21&\"_\"&G$1,Data!$AF$2:$AF$688,0),MATCH(G$2,Data!$AF$2:$BE$2,0)),\"\")=\".\",\"n.a.\",IFERROR(INDEX(Data!$AF$2:$BE$688,MATCH($D21&\"_\"&G$1,Data!$AF$2:$AF$688,0),MATCH(G$2,Data!$AF$2:$BE$2,0)),\"\"))","v":0.15790403580000001},{"$f":"IF(IFERROR(INDEX(Data!$AF$2:$BE$688,MATCH($D21&\"_\"&H$1,Data!$AF$2:$AF$688,0),MATCH(H$2,Data!$AF$2:$BE$2,0)),\"\")=\".\",\"n.a.\",IFERROR(INDEX(Data!$AF$2:$BE$688,MATCH($D21&\"_\"&H$1,Data!$AF$2:$AF$688,0),MATCH(H$2,Data!$AF$2:$BE$2,0)),\"\"))","v":0.15718773859999999},{"$f":"IF(IFERROR(INDEX(Data!$AF$2:$BE$688,MATCH($D21&\"_\"&I$1,Data!$AF$2:$AF$688,0),MATCH(I$2,Data!$AF$2:$BE$2,0)),\"\")=\".\",\"n.a.\",IFERROR(INDEX(Data!$AF$2:$BE$688,MATCH($D21&\"_\"&I$1,Data!$AF$2:$AF$688,0),MATCH(I$2,Data!$AF$2:$BE$2,0)),\"\"))","v":0.15328180220000001},{"$f":"IF(IFERROR(INDEX(Data!$AF$2:$BE$688,MATCH($D21&\"_\"&J$1,Data!$AF$2:$AF$688,0),MATCH(J$2,Data!$AF$2:$BE$2,0)),\"\")=\".\",\"n.a.\",IFERROR(INDEX(Data!$AF$2:$BE$688,MATCH($D21&\"_\"&J$1,Data!$AF$2:$AF$688,0),MATCH(J$2,Data!$AF$2:$BE$2,0)),\"\"))","v":0.1491540851},{"$f":"IF(IFERROR(INDEX(Data!$AF$2:$BE$688,MATCH($D21&\"_\"&K$1,Data!$AF$2:$AF$688,0),MATCH(K$2,Data!$AF$2:$BE$2,0)),\"\")=\".\",\"n.a.\",IFERROR(INDEX(Data!$AF$2:$BE$688,MATCH($D21&\"_\"&K$1,Data!$AF$2:$AF$688,0),MATCH(K$2,Data!$AF$2:$BE$2,0)),\"\"))","v":0.15629308980000001},{"$f":"IF(IFERROR(INDEX(Data!$AF$2:$BE$688,MATCH($D21&\"_\"&L$1,Data!$AF$2:$AF$688,0),MATCH(L$2,Data!$AF$2:$BE$2,0)),\"\")=\".\",\"n.a.\",IFERROR(INDEX(Data!$AF$2:$BE$688,MATCH($D21&\"_\"&L$1,Data!$AF$2:$AF$688,0),MATCH(L$2,Data!$AF$2:$BE$2,0)),\"\"))","v":0.1593450468},{"$f":"IF(IFERROR(INDEX(Data!$AF$2:$BE$688,MATCH($D21&\"_\"&M$1,Data!$AF$2:$AF$688,0),MATCH(M$2,Data!$AF$2:$BE$2,0)),\"\")=\".\",\"n.a.\",IFERROR(INDEX(Data!$AF$2:$BE$688,MATCH($D21&\"_\"&M$1,Data!$AF$2:$AF$688,0),MATCH(M$2,Data!$AF$2:$BE$2,0)),\"\"))","v":0.1635187048},{"$f":"IF(IFERROR(INDEX(Data!$AF$2:$BE$688,MATCH($D21&\"_\"&N$1,Data!$AF$2:$AF$688,0),MATCH(N$2,Data!$AF$2:$BE$2,0)),\"\")=\".\",\"n.a.\",IFERROR(INDEX(Data!$AF$2:$BE$688,MATCH($D21&\"_\"&N$1,Data!$AF$2:$AF$688,0),MATCH(N$2,Data!$AF$2:$BE$2,0)),\"\"))","v":0.14890936530000001},{"$f":"IF(IFERROR(INDEX(Data!$AF$2:$BE$688,MATCH($D21&\"_\"&O$1,Data!$AF$2:$AF$688,0),MATCH(O$2,Data!$AF$2:$BE$2,0)),\"\")=\".\",\"n.a.\",IFERROR(INDEX(Data!$AF$2:$BE$688,MATCH($D21&\"_\"&O$1,Data!$AF$2:$AF$688,0),MATCH(O$2,Data!$AF$2:$BE$2,0)),\"\"))","v":0.14792553410000001},{"$f":"IF(IFERROR(INDEX(Data!$AF$2:$BE$688,MATCH($D21&\"_\"&P$1,Data!$AF$2:$AF$688,0),MATCH(P$2,Data!$AF$2:$BE$2,0)),\"\")=\".\",\"n.a.\",IFERROR(INDEX(Data!$AF$2:$BE$688,MATCH($D21&\"_\"&P$1,Data!$AF$2:$AF$688,0),MATCH(P$2,Data!$AF$2:$BE$2,0)),\"\"))","v":0.14726253480000001},{"$f":"IF(IFERROR(INDEX(Data!$AF$2:$BG$688,MATCH($D21&\"_\"&Q$1,Data!$AF$2:$AF$688,0),MATCH(Q$2,Data!$AF$2:$BG$2,0)),\"\")=\".\",\"n.a.\",IFERROR(INDEX(Data!$AF$2:$BG$688,MATCH($D21&\"_\"&Q$1,Data!$AF$2:$AF$688,0),MATCH(Q$2,Data!$AF$2:$BG$2,0)),\"\"))","v":0.15125018100000001}]
[null,null,null,"HR","HR",{"$f":"IF(IFERROR(INDEX(Data!$AF$2:$BE$688,MATCH($D22&\"_\"&F$1,Data!$AF$2:$AF$688,0),MATCH(F$2,Data!$AF$2:$BE$2,0)),\"\")=\".\",\"n.a.\",IFERROR(INDEX(Data!$AF$2:$BE$688,MATCH($D22&\"_\"&F$1,Data!$AF$2:$AF$688,0),MATCH(F$2,Data!$AF$2:$BE$2,0)),\"\"))","v":0.20336055519999999},{"$f":"IF(IFERROR(INDEX(Data!$AF$2:$BE$688,MATCH($D22&\"_\"&G$1,Data!$AF$2:$AF$688,0),MATCH(G$2,Data!$AF$2:$BE$2,0)),\"\")=\".\",\"n.a.\",IFERROR(INDEX(Data!$AF$2:$BE$688,MATCH($D22&\"_\"&G$1,Data!$AF$2:$AF$688,0),MATCH(G$2,Data!$AF$2:$BE$2,0)),\"\"))","v":0.20064370070000001},{"$f":"IF(IFERROR(INDEX(Data!$AF$2:$BE$688,MATCH($D22&\"_\"&H$1,Data!$AF$2:$AF$688,0),MATCH(H$2,Data!$AF$2:$BE$2,0)),\"\")=\".\",\"n.a.\",IFERROR(INDEX(Data!$AF$2:$BE$688,MATCH($D22&\"_\"&H$1,Data!$AF$2:$AF$688,0),MATCH(H$2,Data!$AF$2:$BE$2,0)),\"\"))","v":0.197188642},{"$f":"IF(IFERROR(INDEX(Data!$AF$2:$BE$688,MATCH($D22&\"_\"&I$1,Data!$AF$2:$AF$688,0),MATCH(I$2,Data!$AF$2:$BE$2,0)),\"\")=\".\",\"n.a.\",IFERROR(INDEX(Data!$AF$2:$BE$688,MATCH($D22&\"_\"&I$1,Data!$AF$2:$AF$688,0),MATCH(I$2,Data!$AF$2:$BE$2,0)),\"\"))","v":0.2105841011},{"$f":"IF(IFERROR(INDEX(Data!$AF$2:$BE$688,MATCH($D22&\"_\"&J$1,Data!$AF$2:$AF$688,0),MATCH(J$2,Data!$AF$2:$BE$2,0)),\"\")=\".\",\"n.a.\",IFERROR(INDEX(Data!$AF$2:$BE$688,MATCH($D22&\"_\"&J$1,Data!$AF$2:$AF$688,0),MATCH(J$2,Data!$AF$2:$BE$2,0)),\"\"))","v":0.2056613045},{"$f":"IF(IFERROR(INDEX(Data!$AF$2:$BE$688,MATCH($D22&\"_\"&K$1,Data!$AF$2:$AF$688,0),MATCH(K$2,Data!$AF$2:$BE$2,0)),\"\")=\".\",\"n.a.\",IFERROR(INDEX(Data!$AF$2:$BE$688,MATCH($D22&\"_\"&K$1,Data!$AF$2:$AF$688,0),MATCH(K$2,Data!$AF$2:$BE$2,0)),\"\"))","v":0.20537519879999999},{"$f":"IF(IFERROR(INDEX(Data!$AF$2:$BE$688,MATCH($D22&\"_\"&L$1,Data!$AF$2:$AF$688,0),MATCH(L$2,Data!$AF$2:$BE$2,0)),\"\")=\".\",\"n.a.\",IFERROR(INDEX(Data!$AF$2:$BE$688,MATCH($D22&\"_\"&L$1,Data!$AF$2:$AF$688,0),MATCH(L$2,Data!$AF$2:$BE$2,0)),\"\"))","v":0.20529862669999999},{"$f":"IF(IFERROR(INDEX(Data!$AF$2:$BE$688,MATCH($D22&\"_\"&M$1,Data!$AF$2:$AF$688,0),MATCH(M$2,Data!$AF$2:$BE$2,0)),\"\")=\".\",\"n.a.\",IFERROR(INDEX(Data!$AF$2:$BE$688,MATCH($D22&\"_\"&M$1,Data!$AF$2:$AF$688,0),MATCH(M$2,Data!$AF$2:$BE$2,0)),\"\"))","v":0.22887400329999999},{"$f":"IF(IFERROR(INDEX(Data!$AF$2:$BE$688,MATCH($D22&\"_\"&N$1,Data!$AF$2:$AF$688,0),MATCH(N$2,Data!$AF$2:$BE$2,0)),\"\")=\".\",\"n.a.\",IFERROR(INDEX(Data!$AF$2:$BE$688,MATCH($D22&\"_\"&N$1,Data!$AF$2:$AF$688,0),MATCH(N$2,Data!$AF$2:$BE$2,0)),\"\"))","v":0.22114077300000001},{"$f":"IF(IFERROR(INDEX(Data!$AF$2:$BE$688,MATCH($D22&\"_\"&O$1,Data!$AF$2:$AF$688,0),MATCH(O$2,Data!$AF$2:$BE$2,0)),\"\")=\".\",\"n.a.\",IFERROR(INDEX(Data!$AF$2:$BE$688,MATCH($D22&\"_\"&O$1,Data!$AF$2:$AF$688,0),MATCH(O$2,Data!$AF$2:$BE$2,0)),\"\"))","v":0.2348376663},{"$f":"IF(IFERROR(INDEX(Data!$AF$2:$BE$688,MATCH($D22&\"_\"&P$1,Data!$AF$2:$AF$688,0),MATCH(P$2,Data!$AF$2:$BE$2,0)),\"\")=\".\",\"n.a.\",IFERROR(INDEX(Data!$AF$2:$BE$688,MATCH($D22&\"_\"&P$1,Data!$AF$2:$AF$688,0),MATCH(P$2,Data!$AF$2:$BE$2,0)),\"\"))","v":0.23748086130000001},{"$f":"IF(IFERROR(INDEX(Data!$AF$2:$BG$688,MATCH($D22&\"_\"&Q$1,Data!$AF$2:$AF$688,0),MATCH(Q$2,Data!$AF$2:$BG$2,0)),\"\")=\".\",\"n.a.\",IFERROR(INDEX(Data!$AF$2:$BG$688,MATCH($D22&\"_\"&Q$1,Data!$AF$2:$AF$688,0),MATCH(Q$2,Data!$AF$2:$BG$2,0)),\"\"))","v":0.24060347609999999}]
[null,null,null,"HU","HU",{"$f":"IF(IFERROR(INDEX(Data!$AF$2:$BE$688,MATCH($D23&\"_\"&F$1,Data!$AF$2:$AF$688,0),MATCH(F$2,Data!$AF$2:$BE$2,0)),\"\")=\".\",\"n.a.\",IFERROR(INDEX(Data!$AF$2:$BE$688,MATCH($D23&\"_\"&F$1,Data!$AF$2:$AF$688,0),MATCH(F$2,Data!$AF$2:$BE$2,0)),\"\"))","v":0.15519384359999999},{"$f":"IF(IFERROR(INDEX(Data!$AF$2:$BE$688,MATCH($D23&\"_\"&G$1,Data!$AF$2:$AF$688,0),MATCH(G$2,Data!$AF$2:$BE$2,0)),\"\")=\".\",\"n.a.\",IFERROR(INDEX(Data!$AF$2:$BE$688,MATCH($D23&\"_\"&G$1,Data!$AF$2:$AF$688,0),MATCH(G$2,Data!$AF$2:$BE$2,0)),\"\"))","v":0.15158303000000001},{"$f":"IF(IFERROR(INDEX(Data!$AF$2:$BE$688,MATCH($D23&\"_\"&H$1,Data!$AF$2:$AF$688,0),MATCH(H$2,Data!$AF$2:$BE$2,0)),\"\")=\".\",\"n.a.\",IFERROR(INDEX(Data!$AF$2:$BE$688,MATCH($D23&\"_\"&H$1,Data!$AF$2:$AF$688,0),MATCH(H$2,Data!$AF$2:$BE$2,0)),\"\"))","v":0.1488169684},{"$f":"IF(IFERROR(INDEX(Data!$AF$2:$BE$688,MATCH($D23&\"_\"&I$1,Data!$AF$2:$AF$688,0),MATCH(I$2,Data!$AF$2:$BE$2,0)),\"\")=\".\",\"n.a.\",IFERROR(INDEX(Data!$AF$2:$BE$688,MATCH($D23&\"_\"&I$1,Data!$AF$2:$AF$688,0),MATCH(I$2,Data!$AF$2:$BE$2,0)),\"\"))","v":0.16644325090000001},{"$f":"IF(IFERROR(INDEX(Data!$AF$2:$BE$688,MATCH($D23&\"_\"&J$1,Data!$AF$2:$AF$688,0),MATCH(J$2,Data!$AF$2:$BE$2,0)),\"\")=\".\",\"n.a.\",IFERROR(INDEX(Data!$AF$2:$BE$688,MATCH($D23&\"_\"&J$1,Data!$AF$2:$AF$688,0),MATCH(J$2,Data!$AF$2:$BE$2,0)),\"\"))","v":0.15492618050000001},{"$f":"IF(IFERROR(INDEX(Data!$AF$2:$BE$688,MATCH($D23&\"_\"&K$1,Data!$AF$2:$AF$688,0),MATCH(K$2,Data!$AF$2:$BE$2,0)),\"\")=\".\",\"n.a.\",IFERROR(INDEX(Data!$AF$2:$BE$688,MATCH($D23&\"_\"&K$1,Data!$AF$2:$AF$688,0),MATCH(K$2,Data!$AF$2:$BE$2,0)),\"\"))","v":0.1627323208},{"$f":"IF(IFERROR(INDEX(Data!$AF$2:$BE$688,MATCH($D23&\"_\"&L$1,Data!$AF$2:$AF$688,0),MATCH(L$2,Data!$AF$2:$BE$2,0)),\"\")=\".\",\"n.a.\",IFERROR(INDEX(Data!$AF$2:$BE$688,MATCH($D23&\"_\"&L$1,Data!$AF$2:$AF$688,0),MATCH(L$2,Data!$AF$2:$BE$2,0)),\"\"))","v":0.1517329915},{"$f":"IF(IFERROR(INDEX(Data!$AF$2:$BE$688,MATCH($D23&\"_\"&M$1,Data!$AF$2:$AF$688,0),MATCH(M$2,Data!$AF$2:$BE$2,0)),\"\")=\".\",\"n.a.\",IFERROR(INDEX(Data!$AF$2:$BE$688,MATCH($D23&\"_\"&M$1,Data!$AF$2:$AF$688,0),MATCH(M$2,Data!$AF$2:$BE$2,0)),\"\"))","v":0.15054169619999999},{"$f":"IF(IFERROR(INDEX(Data!$AF$2:$BE$688,MATCH($D23&\"_\"&N$1,Data!$AF$2:$AF$688,0),MATCH(N$2,Data!$AF$2:$BE$2,0)),\"\")=\".\",\"n.a.\",IFERROR(INDEX(Data!$AF$2:$BE$688,MATCH($D23&\"_\"&N$1,Data!$AF$2:$AF$688,0),MATCH(N$2,Data!$AF$2:$BE$2,0)),\"\"))","v":0.14524252400000001},{"$f":"IF(IFERROR(INDEX(Data!$AF$2:$BE$688,MATCH($D23&\"_\"&O$1,Data!$AF$2:$AF$688,0),MATCH(O$2,Data!$AF$2:$BE$2,0)),\"\")=\".\",\"n.a.\",IFERROR(INDEX(Data!$AF$2:$BE$688,MATCH($D23&\"_\"&O$1,Data!$AF$2:$AF$688,0),MATCH(O$2,Data!$AF$2:$BE$2,0)),\"\"))","v":0.14663660379999999},{"$f":"IF(IFERROR(INDEX(Data!$AF$2:$BE$688,MATCH($D23&\"_\"&P$1,Data!$AF$2:$AF$688,0),MATCH(P$2,Data!$AF$2:$BE$2,0)),\"\")=\".\",\"n.a.\",IFERROR(INDEX(Data!$AF$2:$BE$688,MATCH($D23&\"_\"&P$1,Data!$AF$2:$AF$688,0),MATCH(P$2,Data!$AF$2:$BE$2,0)),\"\"))","v":0.1514986777},{"$f":"IF(IFERROR(INDEX(Data!$AF$2:$BG$688,MATCH($D23&\"_\"&Q$1,Data!$AF$2:$AF$688,0),MATCH(Q$2,Data!$AF$2:$BG$2,0)),\"\")=\".\",\"n.a.\",IFERROR(INDEX(Data!$AF$2:$BG$688,MATCH($D23&\"_\"&Q$1,Data!$AF$2:$AF$688,0),MATCH(Q$2,Data!$AF$2:$BG$2,0)),\"\"))","v":0.15606523750000001}]
[null,null,null,"IE","IE",{"$f":"IF(IFERROR(INDEX(Data!$AF$2:$BE$688,MATCH($D24&\"_\"&F$1,Data!$AF$2:$AF$688,0),MATCH(F$2,Data!$AF$2:$BE$2,0)),\"\")=\".\",\"n.a.\",IFERROR(INDEX(Data!$AF$2:$BE$688,MATCH($D24&\"_\"&F$1,Data!$AF$2:$AF$688,0),MATCH(F$2,Data!$AF$2:$BE$2,0)),\"\"))","v":0.1964685709},{"$f":"IF(IFERROR(INDEX(Data!$AF$2:$BE$688,MATCH($D24&\"_\"&G$1,Data!$AF$2:$AF$688,0),MATCH(G$2,Data!$AF$2:$BE$2,0)),\"\")=\".\",\"n.a.\",IFERROR(INDEX(Data!$AF$2:$BE$688,MATCH($D24&\"_\"&G$1,Data!$AF$2:$AF$688,0),MATCH(G$2,Data!$AF$2:$BE$2,0)),\"\"))","v":0.19998759699999999},{"$f":"IF(IFERROR(INDEX(Data!$AF$2:$BE$688,MATCH($D24&\"_\"&H$1,Data!$AF$2:$AF$688,0),MATCH(H$2,Data!$AF$2:$BE$2,0)),\"\")=\".\",\"n.a.\",IFERROR(INDEX(Data!$AF$2:$BE$688,MATCH($D24&\"_\"&H$1,Data!$AF$2:$AF$688,0),MATCH(H$2,Data!$AF$2:$BE$2,0)),\"\"))","v":0.1982529807},{"$f":"IF(IFERROR(INDEX(Data!$AF$2:$BE$688,MATCH($D24&\"_\"&I$1,Data!$AF$2:$AF$688,0),MATCH(I$2,Data!$AF$2:$BE$2,0)),\"\")=\".\",\"n.a.\",IFERROR(INDEX(Data!$AF$2:$BE$688,MATCH($D24&\"_\"&I$1,Data!$AF$2:$AF$688,0),MATCH(I$2,Data!$AF$2:$BE$2,0)),\"\"))","v":0.20666899559999999},{"$f":"IF(IFERROR(INDEX(Data!$AF$2:$BE$688,MATCH($D24&\"_\"&J$1,Data!$AF$2:$AF$688,0),MATCH(J$2,Data!$AF$2:$BE$2,0)),\"\")=\".\",\"n.a.\",IFERROR(INDEX(Data!$AF$2:$BE$688,MATCH($D24&\"_\"&J$1,Data!$AF$2:$AF$688,0),MATCH(J$2,Data!$AF$2:$BE$2,0)),\"\"))","v":0.19485914639999999},{"$f":"IF(IFERROR(INDEX(Data!$AF$2:$BE$688,MATCH($D24&\"_\"&K$1,Data!$AF$2:$AF$688,0),MATCH(K$2,Data!$AF$2:$BE$2,0)),\"\")=\".\",\"n.a.\",IFERROR(INDEX(Data!$AF$2:$BE$688,MATCH($D24&\"_\"&K$1,Data!$AF$2:$AF$688,0),MATCH(K$2,Data!$AF$2:$BE$2,0)),\"\"))","v":0.19340627739999999},{"$f":"IF(IFERROR(INDEX(Data!$AF$2:$BE$688,MATCH($D24&\"_\"&L$1,Data!$AF$2:$AF$688,0),MATCH(L$2,Data!$AF$2:$BE$2,0)),\"\")=\".\",\"n.a.\",IFERROR(INDEX(Data!$AF$2:$BE$688,MATCH($D24&\"_\"&L$1,Data!$AF$2:$AF$688,0),MATCH(L$2,Data!$AF$2:$BE$2,0)),\"\"))","v":0.19578379369999999},{"$f":"IF(IFERROR(INDEX(Data!$AF$2:$BE$688,MATCH($D24&\"_\"&M$1,Data!$AF$2:$AF$688,0),MATCH(M$2,Data!$AF$2:$BE$2,0)),\"\")=\".\",\"n.a.\",IFERROR(INDEX(Data!$AF$2:$BE$688,MATCH($D24&\"_\"&M$1,Data!$AF$2:$AF$688,0),MATCH(M$2,Data!$AF$2:$BE$2,0)),\"\"))","v":0.20372730080000001},{"$f":"IF(IFERROR(INDEX(Data!$AF$2:$BE$688,MATCH($D24&\"_\"&N$1,Data!$AF$2:$AF$688,0),MATCH(N$2,Data!$AF$2:$BE$2,0)),\"\")=\".\",\"n.a.\",IFERROR(INDEX(Data!$AF$2:$BE$688,MATCH($D24&\"_\"&N$1,Data!$AF$2:$AF$688,0),MATCH(N$2,Data!$AF$2:$BE$2,0)),\"\"))","v":0.19663397060000001},{"$f":"IF(IFERROR(INDEX(Data!$AF$2:$BE$688,MATCH($D24&\"_\"&O$1,Data!$AF$2:$AF$688,0),MATCH(O$2,Data!$AF$2:$BE$2,0)),\"\")=\".\",\"n.a.\",IFERROR(INDEX(Data!$AF$2:$BE$688,MATCH($D24&\"_\"&O$1,Data!$AF$2:$AF$688,0),MATCH(O$2,Data!$AF$2:$BE$2,0)),\"\"))","v":0.20128942059999999},{"$f":"IF(IFERROR(INDEX(Data!$AF$2:$BE$688,MATCH($D24&\"_\"&P$1,Data!$AF$2:$AF$688,0),MATCH(P$2,Data!$AF$2:$BE$2,0)),\"\")=\".\",\"n.a.\",IFERROR(INDEX(Data!$AF$2:$BE$688,MATCH($D24&\"_\"&P$1,Data!$AF$2:$AF$688,0),MATCH(P$2,Data!$AF$2:$BE$2,0)),\"\"))","v":0.2028064138},{"$f":"IF(IFERROR(INDEX(Data!$AF$2:$BG$688,MATCH($D24&\"_\"&Q$1,Data!$AF$2:$AF$688,0),MATCH(Q$2,Data!$AF$2:$BG$2,0)),\"\")=\".\",\"n.a.\",IFERROR(INDEX(Data!$AF$2:$BG$688,MATCH($D24&\"_\"&Q$1,Data!$AF$2:$AF$688,0),MATCH(Q$2,Data!$AF$2:$BG$2,0)),\"\"))","v":0.20056161110000001}]
[null,null,null,"IS","IS",{"$f":"IF(IFERROR(INDEX(Data!$AF$2:$BE$688,MATCH($D25&\"_\"&F$1,Data!$AF$2:$AF$688,0),MATCH(F$2,Data!$AF$2:$BE$2,0)),\"\")=\".\",\"n.a.\",IFERROR(INDEX(Data!$AF$2:$BE$688,MATCH($D25&\"_\"&F$1,Data!$AF$2:$AF$688,0),MATCH(F$2,Data!$AF$2:$BE$2,0)),\"\"))","v":0.22863517550000001},{"$f":"IF(IFERROR(INDEX(Data!$AF$2:$BE$688,MATCH($D25&\"_\"&G$1,Data!$AF$2:$AF$688,0),MATCH(G$2,Data!$AF$2:$BE$2,0)),\"\")=\".\",\"n.a.\",IFERROR(INDEX(Data!$AF$2:$BE$688,MATCH($D25&\"_\"&G$1,Data!$AF$2:$AF$688,0),MATCH(G$2,Data!$AF$2:$BE$2,0)),\"\"))","v":0.22261144829999999},{"$f":"IF(IFERROR(INDEX(Data!$AF$2:$BE$688,MATCH($D25&\"_\"&H$1,Data!$AF$2:$AF$688,0),MATCH(H$2,Data!$AF$2:$BE$2,0)),\"\")=\".\",\"n.a.\",IFERROR(INDEX(Data!$AF$2:$BE$688,MATCH($D25&\"_\"&H$1,Data!$AF$2:$AF$688,0),MATCH(H$2,Data!$AF$2:$BE$2,0)),\"\"))","v":0.21730125659999999},{"$f":"IF(IFERROR(INDEX(Data!$AF$2:$BE$688,MATCH($D25&\"_\"&I$1,Data!$AF$2:$AF$688,0),MATCH(I$2,Data!$AF$2:$BE$2,0)),\"\")=\".\",\"n.a.\",IFERROR(INDEX(Data!$AF$2:$BE$688,MATCH($D25&\"_\"&I$1,Data!$AF$2:$AF$688,0),MATCH(I$2,Data!$AF$2:$BE$2,0)),\"\"))","v":0.2181572279},{"$f":"IF(IFERROR(INDEX(Data!$AF$2:$BE$688,MATCH($D25&\"_\"&J$1,Data!$AF$2:$AF$688,0),MATCH(J$2,Data!$AF$2:$BE$2,0)),\"\")=\".\",\"n.a.\",IFERROR(INDEX(Data!$AF$2:$BE$688,MATCH($D25&\"_\"&J$1,Data!$AF$2:$AF$688,0),MATCH(J$2,Data!$AF$2:$BE$2,0)),\"\"))","v":0.20911040880000001},{"$f":"IF(IFERROR(INDEX(Data!$AF$2:$BE$688,MATCH($D25&\"_\"&K$1,Data!$AF$2:$AF$688,0),MATCH(K$2,Data!$AF$2:$BE$2,0)),\"\")=\".\",\"n.a.\",IFERROR(INDEX(Data!$AF$2:$BE$688,MATCH($D25&\"_\"&K$1,Data!$AF$2:$AF$688,0),MATCH(K$2,Data!$AF$2:$BE$2,0)),\"\"))","v":0.2086901628},{"$f":"IF(IFERROR(INDEX(Data!$AF$2:$BE$688,MATCH($D25&\"_\"&L$1,Data!$AF$2:$AF$688,0),MATCH(L$2,Data!$AF$2:$BE$2,0)),\"\")=\".\",\"n.a.\",IFERROR(INDEX(Data!$AF$2:$BE$688,MATCH($D25&\"_\"&L$1,Data!$AF$2:$AF$688,0),MATCH(L$2,Data!$AF$2:$BE$2,0)),\"\"))","v":0.20910587759999999},{"$f":"IF(IFERROR(INDEX(Data!$AF$2:$BE$688,MATCH($D25&\"_\"&M$1,Data!$AF$2:$AF$688,0),MATCH(M$2,Data!$AF$2:$BE$2,0)),\"\")=\".\",\"n.a.\",IFERROR(INDEX(Data!$AF$2:$BE$688,MATCH($D25&\"_\"&M$1,Data!$AF$2:$AF$688,0),MATCH(M$2,Data!$AF$2:$BE$2,0)),\"\"))","v":0.2181839253},{"$f":"IF(IFERROR(INDEX(Data!$AF$2:$BE$688,MATCH($D25&\"_\"&N$1,Data!$AF$2:$AF$688,0),MATCH(N$2,Data!$AF$2:$BE$2,0)),\"\")=\".\",\"n.a.\",IFERROR(INDEX(Data!$AF$2:$BE$688,MATCH($D25&\"_\"&N$1,Data!$AF$2:$AF$688,0),MATCH(N$2,Data!$AF$2:$BE$2,0)),\"\"))","v":0.22012599829999999},{"$f":"IF(IFERROR(INDEX(Data!$AF$2:$BE$688,MATCH($D25&\"_\"&O$1,Data!$AF$2:$AF$688,0),MATCH(O$2,Data!$AF$2:$BE$2,0)),\"\")=\".\",\"n.a.\",IFERROR(INDEX(Data!$AF$2:$BE$688,MATCH($D25&\"_\"&O$1,Data!$AF$2:$AF$688,0),MATCH(O$2,Data!$AF$2:$BE$2,0)),\"\"))","v":0.2225294958},{"$f":"IF(IFERROR(INDEX(Data!$AF$2:$BE$688,MATCH($D25&\"_\"&P$1,Data!$AF$2:$AF$688,0),MATCH(P$2,Data!$AF$2:$BE$2,0)),\"\")=\".\",\"n.a.\",IFERROR(INDEX(Data!$AF$2:$BE$688,MATCH($D25&\"_\"&P$1,Data!$AF$2:$AF$688,0),MATCH(P$2,Data!$AF$2:$BE$2,0)),\"\"))","v":0.21861250360000001},{"$f":"IF(IFERROR(INDEX(Data!$AF$2:$BG$688,MATCH($D25&\"_\"&Q$1,Data!$AF$2:$AF$688,0),MATCH(Q$2,Data!$AF$2:$BG$2,0)),\"\")=\".\",\"n.a.\",IFERROR(INDEX(Data!$AF$2:$BG$688,MATCH($D25&\"_\"&Q$1,Data!$AF$2:$AF$688,0),MATCH(Q$2,Data!$AF$2:$BG$2,0)),\"\"))","v":0.22423981009999999}]
[null,null,null,"IT","IT",{"$f":"IF(IFERROR(INDEX(Data!$AF$2:$BE$688,MATCH($D26&\"_\"&F$1,Data!$AF$2:$AF$688,0),MATCH(F$2,Data!$AF$2:$BE$2,0)),\"\")=\".\",\"n.a.\",IFERROR(INDEX(Data!$AF$2:$BE$688,MATCH($D26&\"_\"&F$1,Data!$AF$2:$AF$688,0),MATCH(F$2,Data!$AF$2:$BE$2,0)),\"\"))","v":0.1438004514},{"$f":"IF(IFERROR(INDEX(Data!$AF$2:$BE$688,MATCH($D26&\"_\"&G$1,Data!$AF$2:$AF$688,0),MATCH(G$2,Data!$AF$2:$BE$2,0)),\"\")=\".\",\"n.a.\",IFERROR(INDEX(Data!$AF$2:$BE$688,MATCH($D26&\"_\"&G$1,Data!$AF$2:$AF$688,0),MATCH(G$2,Data!$AF$2:$BE$2,0)),\"\"))","v":0.1388192184},{"$f":"IF(IFERROR(INDEX(Data!$AF$2:$BE$688,MATCH($D26&\"_\"&H$1,Data!$AF$2:$AF$688,0),MATCH(H$2,Data!$AF$2:$BE$2,0)),\"\")=\".\",\"n.a.\",IFERROR(INDEX(Data!$AF$2:$BE$688,MATCH($D26&\"_\"&H$1,Data!$AF$2:$AF$688,0),MATCH(H$2,Data!$AF$2:$BE$2,0)),\"\"))","v":0.13836790369999999},{"$f":"IF(IFERROR(INDEX(Data!$AF$2:$BE$688,MATCH($D26&\"_\"&I$1,Data!$AF$2:$AF$688,0),MATCH(I$2,Data!$AF$2:$BE$2,0)),\"\")=\".\",\"n.a.\",IFERROR(INDEX(Data!$AF$2:$BE$688,MATCH($D26&\"_\"&I$1,Data!$AF$2:$AF$688,0),MATCH(I$2,Data!$AF$2:$BE$2,0)),\"\"))","v":0.13805809420000001},{"$f":"IF(IFERROR(INDEX(Data!$AF$2:$BE$688,MATCH($D26&\"_\"&J$1,Data!$AF$2:$AF$688,0),MATCH(J$2,Data!$AF$2:$BE$2,0)),\"\")=\".\",\"n.a.\",IFERROR(INDEX(Data!$AF$2:$BE$688,MATCH($D26&\"_\"&J$1,Data!$AF$2:$AF$688,0),MATCH(J$2,Data!$AF$2:$BE$2,0)),\"\"))","v":0.14152920390000001},{"$f":"IF(IFERROR(INDEX(Data!$AF$2:$BE$688,MATCH($D26&\"_\"&K$1,Data!$AF$2:$AF$688,0),MATCH(K$2,Data!$AF$2:$BE$2,0)),\"\")=\".\",\"n.a.\",IFERROR(INDEX(Data!$AF$2:$BE$688,MATCH($D26&\"_\"&K$1,Data!$AF$2:$AF$688,0),MATCH(K$2,Data!$AF$2:$BE$2,0)),\"\"))","v":0.14438906369999999},{"$f":"IF(IFERROR(INDEX(Data!$AF$2:$BE$688,MATCH($D26&\"_\"&L$1,Data!$AF$2:$AF$688,0),MATCH(L$2,Data!$AF$2:$BE$2,0)),\"\")=\".\",\"n.a.\",IFERROR(INDEX(Data!$AF$2:$BE$688,MATCH($D26&\"_\"&L$1,Data!$AF$2:$AF$688,0),MATCH(L$2,Data!$AF$2:$BE$2,0)),\"\"))","v":0.1476753499},{"$f":"IF(IFERROR(INDEX(Data!$AF$2:$BE$688,MATCH($D26&\"_\"&M$1,Data!$AF$2:$AF$688,0),MATCH(M$2,Data!$AF$2:$BE$2,0)),\"\")=\".\",\"n.a.\",IFERROR(INDEX(Data!$AF$2:$BE$688,MATCH($D26&\"_\"&M$1,Data!$AF$2:$AF$688,0),MATCH(M$2,Data!$AF$2:$BE$2,0)),\"\"))","v":0.15014339369999999},{"$f":"IF(IFERROR(INDEX(Data!$AF$2:$BE$688,MATCH($D26&\"_\"&N$1,Data!$AF$2:$AF$688,0),MATCH(N$2,Data!$AF$2:$BE$2,0)),\"\")=\".\",\"n.a.\",IFERROR(INDEX(Data!$AF$2:$BE$688,MATCH($D26&\"_\"&N$1,Data!$AF$2:$AF$688,0),MATCH(N$2,Data!$AF$2:$BE$2,0)),\"\"))","v":0.1541468631},{"$f":"IF(IFERROR(INDEX(Data!$AF$2:$BE$688,MATCH($D26&\"_\"&O$1,Data!$AF$2:$AF$688,0),MATCH(O$2,Data!$AF$2:$BE$2,0)),\"\")=\".\",\"n.a.\",IFERROR(INDEX(Data!$AF$2:$BE$688,MATCH($D26&\"_\"&O$1,Data!$AF$2:$AF$688,0),MATCH(O$2,Data!$AF$2:$BE$2,0)),\"\"))","v":0.16187002619999999},{"$f":"IF(IFERROR(INDEX(Data!$AF$2:$BE$688,MATCH($D26&\"_\"&P$1,Data!$AF$2:$AF$688,0),MATCH(P$2,Data!$AF$2:$BE$2,0)),\"\")=\".\",\"n.a.\",IFERROR(INDEX(Data!$AF$2:$BE$688,MATCH($D26&\"_\"&P$1,Data!$AF$2:$AF$688,0),MATCH(P$2,Data!$AF$2:$BE$2,0)),\"\"))","v":0.16723450779999999},{"$f":"IF(IFERROR(INDEX(Data!$AF$2:$BG$688,MATCH($D26&\"_\"&Q$1,Data!$AF$2:$AF$688,0),MATCH(Q$2,Data!$AF$2:$BG$2,0)),\"\")=\".\",\"n.a.\",IFERROR(INDEX(Data!$AF$2:$BG$688,MATCH($D26&\"_\"&Q$1,Data!$AF$2:$AF$688,0),MATCH(Q$2,Data!$AF$2:$BG$2,0)),\"\"))","v":0.1710555258}]
[null,null,null,{"$f":"IF(E1=\"FND_33\",\"LT*\",\"LT\")","v":"LT"},"LT",{"$f":"IF(IFERROR(INDEX(Data!$AF$2:$BE$688,MATCH($D27&\"_\"&F$1,Data!$AF$2:$AF$688,0),MATCH(F$2,Data!$AF$2:$BE$2,0)),\"\")=\".\",\"n.a.\",IFERROR(INDEX(Data!$AF$2:$BE$688,MATCH($D27&\"_\"&F$1,Data!$AF$2:$AF$688,0),MATCH(F$2,Data!$AF$2:$BE$2,0)),\"\"))","v":0.1986217304},{"$f":"IF(IFERROR(INDEX(Data!$AF$2:$BE$688,MATCH($D27&\"_\"&G$1,Data!$AF$2:$AF$688,0),MATCH(G$2,Data!$AF$2:$BE$2,0)),\"\")=\".\",\"n.a.\",IFERROR(INDEX(Data!$AF$2:$BE$688,MATCH($D27&\"_\"&G$1,Data!$AF$2:$AF$688,0),MATCH(G$2,Data!$AF$2:$BE$2,0)),\"\"))","v":0.19266675559999999},{"$f":"IF(IFERROR(INDEX(Data!$AF$2:$BE$688,MATCH($D27&\"_\"&H$1,Data!$AF$2:$AF$688,0),MATCH(H$2,Data!$AF$2:$BE$2,0)),\"\")=\".\",\"n.a.\",IFERROR(INDEX(Data!$AF$2:$BE$688,MATCH($D27&\"_\"&H$1,Data!$AF$2:$AF$688,0),MATCH(H$2,Data!$AF$2:$BE$2,0)),\"\"))","v":0.19121973759999999},{"$f":"IF(IFERROR(INDEX(Data!$AF$2:$BE$688,MATCH($D27&\"_\"&I$1,Data!$AF$2:$AF$688,0),MATCH(I$2,Data!$AF$2:$BE$2,0)),\"\")=\".\",\"n.a.\",IFERROR(INDEX(Data!$AF$2:$BE$688,MATCH($D27&\"_\"&I$1,Data!$AF$2:$AF$688,0),MATCH(I$2,Data!$AF$2:$BE$2,0)),\"\"))","v":0.18456685},{"$f":"IF(IFERROR(INDEX(Data!$AF$2:$BE$688,MATCH($D27&\"_\"&J$1,Data!$AF$2:$AF$688,0),MATCH(J$2,Data!$AF$2:$BE$2,0)),\"\")=\".\",\"n.a.\",IFERROR(INDEX(Data!$AF$2:$BE$688,MATCH($D27&\"_\"&J$1,Data!$AF$2:$AF$688,0),MATCH(J$2,Data!$AF$2:$BE$2,0)),\"\"))","v":0.19497325670000001},{"$f":"IF(IFERROR(INDEX(Data!$AF$2:$BE$688,MATCH($D27&\"_\"&K$1,Data!$AF$2:$AF$688,0),MATCH(K$2,Data!$AF$2:$BE$2,0)),\"\")=\".\",\"n.a.\",IFERROR(INDEX(Data!$AF$2:$BE$688,MATCH($D27&\"_\"&K$1,Data!$AF$2:$AF$688,0),MATCH(K$2,Data!$AF$2:$BE$2,0)),\"\"))","v":0.19376385090000001},{"$f":"IF(IFERROR(INDEX(Data!$AF$2:$BE$688,MATCH($D27&\"_\"&L$1,Data!$AF$2:$AF$688,0),MATCH(L$2,Data!$AF$2:$BE$2,0)),\"\")=\".\",\"n.a.\",IFERROR(INDEX(Data!$AF$2:$BE$688,MATCH($D27&\"_\"&L$1,Data!$AF$2:$AF$688,0),MATCH(L$2,Data!$AF$2:$BE$2,0)),\"\"))","v":0.18872204910000001},{"$f":"IF(IFERROR(INDEX(Data!$AF$2:$BE$688,MATCH($D27&\"_\"&M$1,Data!$AF$2:$AF$688,0),MATCH(M$2,Data!$AF$2:$BE$2,0)),\"\")=\".\",\"n.a.\",IFERROR(INDEX(Data!$AF$2:$BE$688,MATCH($D27&\"_\"&M$1,Data!$AF$2:$AF$688,0),MATCH(M$2,Data!$AF$2:$BE$2,0)),\"\"))","v":0.234158013},{"$f":"IF(IFERROR(INDEX(Data!$AF$2:$BE$688,MATCH($D27&\"_\"&N$1,Data!$AF$2:$AF$688,0),MATCH(N$2,Data!$AF$2:$BE$2,0)),\"\")=\".\",\"n.a.\",IFERROR(INDEX(Data!$AF$2:$BE$688,MATCH($D27&\"_\"&N$1,Data!$AF$2:$AF$688,0),MATCH(N$2,Data!$AF$2:$BE$2,0)),\"\"))","v":0.22471360939999999},{"$f":"IF(IFERROR(INDEX(Data!$AF$2:$BE$688,MATCH($D27&\"_\"&O$1,Data!$AF$2:$AF$688,0),MATCH(O$2,Data!$AF$2:$BE$2,0)),\"\")=\".\",\"n.a.\",IFERROR(INDEX(Data!$AF$2:$BE$688,MATCH($D27&\"_\"&O$1,Data!$AF$2:$AF$688,0),MATCH(O$2,Data!$AF$2:$BE$2,0)),\"\"))","v":0.22367534850000001},{"$f":"IF(IFERROR(INDEX(Data!$AF$2:$BE$688,MATCH($D27&\"_\"&P$1,Data!$AF$2:$AF$688,0),MATCH(P$2,Data!$AF$2:$BE$2,0)),\"\")=\".\",\"n.a.\",IFERROR(INDEX(Data!$AF$2:$BE$688,MATCH($D27&\"_\"&P$1,Data!$AF$2:$AF$688,0),MATCH(P$2,Data!$AF$2:$BE$2,0)),\"\"))","v":0.21750465929999999},{"$f":"IF(IFERROR(INDEX(Data!$AF$2:$BG$688,MATCH($D27&\"_\"&Q$1,Data!$AF$2:$AF$688,0),MATCH(Q$2,Data!$AF$2:$BG$2,0)),\"\")=\".\",\"n.a.\",IFERROR(INDEX(Data!$AF$2:$BG$688,MATCH($D27&\"_\"&Q$1,Data!$AF$2:$AF$688,0),MATCH(Q$2,Data!$AF$2:$BG$2,0)),\"\"))","v":0.21210624180000001}]
[null,null,null,"LU","LU",{"$f":"IF(IFERROR(INDEX(Data!$AF$2:$BE$688,MATCH($D28&\"_\"&F$1,Data!$AF$2:$AF$688,0),MATCH(F$2,Data!$AF$2:$BE$2,0)),\"\")=\".\",\"n.a.\",IFERROR(INDEX(Data!$AF$2:$BE$688,MATCH($D28&\"_\"&F$1,Data!$AF$2:$AF$688,0),MATCH(F$2,Data!$AF$2:$BE$2,0)),\"\"))","v":0.2251289206},{"$f":"IF(IFERROR(INDEX(Data!$AF$2:$BE$688,MATCH($D28&\"_\"&G$1,Data!$AF$2:$AF$688,0),MATCH(G$2,Data!$AF$2:$BE$2,0)),\"\")=\".\",\"n.a.\",IFERROR(INDEX(Data!$AF$2:$BE$688,MATCH($D28&\"_\"&G$1,Data!$AF$2:$AF$688,0),MATCH(G$2,Data!$AF$2:$BE$2,0)),\"\"))","v":0.22658956099999999},{"$f":"IF(IFERROR(INDEX(Data!$AF$2:$BE$688,MATCH($D28&\"_\"&H$1,Data!$AF$2:$AF$688,0),MATCH(H$2,Data!$AF$2:$BE$2,0)),\"\")=\".\",\"n.a.\",IFERROR(INDEX(Data!$AF$2:$BE$688,MATCH($D28&\"_\"&H$1,Data!$AF$2:$AF$688,0),MATCH(H$2,Data!$AF$2:$BE$2,0)),\"\"))","v":0.2472533022},{"$f":"IF(IFERROR(INDEX(Data!$AF$2:$BE$688,MATCH($D28&\"_\"&I$1,Data!$AF$2:$AF$688,0),MATCH(I$2,Data!$AF$2:$BE$2,0)),\"\")=\".\",\"n.a.\",IFERROR(INDEX(Data!$AF$2:$BE$688,MATCH($D28&\"_\"&I$1,Data!$AF$2:$AF$688,0),MATCH(I$2,Data!$AF$2:$BE$2,0)),\"\"))","v":0.24090642870000001},{"$f":"IF(IFERROR(INDEX(Data!$AF$2:$BE$688,MATCH($D28&\"_\"&J$1,Data!$AF$2:$AF$688,0),MATCH(J$2,Data!$AF$2:$BE$2,0)),\"\")=\".\",\"n.a.\",IFERROR(INDEX(Data!$AF$2:$BE$688,MATCH($D28&\"_\"&J$1,Data!$AF$2:$AF$688,0),MATCH(J$2,Data!$AF$2:$BE$2,0)),\"\"))","v":0.2102642747},{"$f":"IF(IFERROR(INDEX(Data!$AF$2:$BE$688,MATCH($D28&\"_\"&K$1,Data!$AF$2:$AF$688,0),MATCH(K$2,Data!$AF$2:$BE$2,0)),\"\")=\".\",\"n.a.\",IFERROR(INDEX(Data!$AF$2:$BE$688,MATCH($D28&\"_\"&K$1,Data!$AF$2:$AF$688,0),MATCH(K$2,Data!$AF$2:$BE$2,0)),\"\"))","v":0.20637905840000001},{"$f":"IF(IFERROR(INDEX(Data!$AF$2:$BE$688,MATCH($D28&\"_\"&L$1,Data!$AF$2:$AF$688,0),MATCH(L$2,Data!$AF$2:$BE$2,0)),\"\")=\".\",\"n.a.\",IFERROR(INDEX(Data!$AF$2:$BE$688,MATCH($D28&\"_\"&L$1,Data!$AF$2:$AF$688,0),MATCH(L$2,Data!$AF$2:$BE$2,0)),\"\"))","v":0.2036255354},{"$f":"IF(IFERROR(INDEX(Data!$AF$2:$BE$688,MATCH($D28&\"_\"&M$1,Data!$AF$2:$AF$688,0),MATCH(M$2,Data!$AF$2:$BE$2,0)),\"\")=\".\",\"n.a.\",IFERROR(INDEX(Data!$AF$2:$BE$688,MATCH($D28&\"_\"&M$1,Data!$AF$2:$AF$688,0),MATCH(M$2,Data!$AF$2:$BE$2,0)),\"\"))","v":0.20014656920000001},{"$f":"IF(IFERROR(INDEX(Data!$AF$2:$BE$688,MATCH($D28&\"_\"&N$1,Data!$AF$2:$AF$688,0),MATCH(N$2,Data!$AF$2:$BE$2,0)),\"\")=\".\",\"n.a.\",IFERROR(INDEX(Data!$AF$2:$BE$688,MATCH($D28&\"_\"&N$1,Data!$AF$2:$AF$688,0),MATCH(N$2,Data!$AF$2:$BE$2,0)),\"\"))","v":0.1990795417},{"$f":"IF(IFERROR(INDEX(Data!$AF$2:$BE$688,MATCH($D28&\"_\"&O$1,Data!$AF$2:$AF$688,0),MATCH(O$2,Data!$AF$2:$BE$2,0)),\"\")=\".\",\"n.a.\",IFERROR(INDEX(Data!$AF$2:$BE$688,MATCH($D28&\"_\"&O$1,Data!$AF$2:$AF$688,0),MATCH(O$2,Data!$AF$2:$BE$2,0)),\"\"))","v":0.21103895459999999},{"$f":"IF(IFERROR(INDEX(Data!$AF$2:$BE$688,MATCH($D28&\"_\"&P$1,Data!$AF$2:$AF$688,0),MATCH(P$2,Data!$AF$2:$BE$2,0)),\"\")=\".\",\"n.a.\",IFERROR(INDEX(Data!$AF$2:$BE$688,MATCH($D28&\"_\"&P$1,Data!$AF$2:$AF$688,0),MATCH(P$2,Data!$AF$2:$BE$2,0)),\"\"))","v":0.20736918409999999},{"$f":"IF(IFERROR(INDEX(Data!$AF$2:$BG$688,MATCH($D28&\"_\"&Q$1,Data!$AF$2:$AF$688,0),MATCH(Q$2,Data!$AF$2:$BG$2,0)),\"\")=\".\",\"n.a.\",IFERROR(INDEX(Data!$AF$2:$BG$688,MATCH($D28&\"_\"&Q$1,Data!$AF$2:$AF$688,0),MATCH(Q$2,Data!$AF$2:$BG$2,0)),\"\"))","v":0.20457481250000001}]
[null,null,null,"LV","LV",{"$f":"IF(IFERROR(INDEX(Data!$AF$2:$BE$688,MATCH($D29&\"_\"&F$1,Data!$AF$2:$AF$688,0),MATCH(F$2,Data!$AF$2:$BE$2,0)),\"\")=\".\",\"n.a.\",IFERROR(INDEX(Data!$AF$2:$BE$688,MATCH($D29&\"_\"&F$1,Data!$AF$2:$AF$688,0),MATCH(F$2,Data!$AF$2:$BE$2,0)),\"\"))","v":0.2073775595},{"$f":"IF(IFERROR(INDEX(Data!$AF$2:$BE$688,MATCH($D29&\"_\"&G$1,Data!$AF$2:$AF$688,0),MATCH(G$2,Data!$AF$2:$BE$2,0)),\"\")=\".\",\"n.a.\",IFERROR(INDEX(Data!$AF$2:$BE$688,MATCH($D29&\"_\"&G$1,Data!$AF$2:$AF$688,0),MATCH(G$2,Data!$AF$2:$BE$2,0)),\"\"))","v":0.20885920729999999},{"$f":"IF(IFERROR(INDEX(Data!$AF$2:$BE$688,MATCH($D29&\"_\"&H$1,Data!$AF$2:$AF$688,0),MATCH(H$2,Data!$AF$2:$BE$2,0)),\"\")=\".\",\"n.a.\",IFERROR(INDEX(Data!$AF$2:$BE$688,MATCH($D29&\"_\"&H$1,Data!$AF$2:$AF$688,0),MATCH(H$2,Data!$AF$2:$BE$2,0)),\"\"))","v":0.21057494809999999},{"$f":"IF(IFERROR(INDEX(Data!$AF$2:$BE$688,MATCH($D29&\"_\"&I$1,Data!$AF$2:$AF$688,0),MATCH(I$2,Data!$AF$2:$BE$2,0)),\"\")=\".\",\"n.a.\",IFERROR(INDEX(Data!$AF$2:$BE$688,MATCH($D29&\"_\"&I$1,Data!$AF$2:$AF$688,0),MATCH(I$2,Data!$AF$2:$BE$2,0)),\"\"))","v":0.21163569309999999},{"$f":"IF(IFERROR(INDEX(Data!$AF$2:$BE$688,MATCH($D29&\"_\"&J$1,Data!$AF$2:$AF$688,0),MATCH(J$2,Data!$AF$2:$BE$2,0)),\"\")=\".\",\"n.a.\",IFERROR(INDEX(Data!$AF$2:$BE$688,MATCH($D29&\"_\"&J$1,Data!$AF$2:$AF$688,0),MATCH(J$2,Data!$AF$2:$BE$2,0)),\"\"))","v":0.21588406609999999},{"$f":"IF(IFERROR(INDEX(Data!$AF$2:$BE$688,MATCH($D29&\"_\"&K$1,Data!$AF$2:$AF$688,0),MATCH(K$2,Data!$AF$2:$BE$2,0)),\"\")=\".\",\"n.a.\",IFERROR(INDEX(Data!$AF$2:$BE$688,MATCH($D29&\"_\"&K$1,Data!$AF$2:$AF$688,0),MATCH(K$2,Data!$AF$2:$BE$2,0)),\"\"))","v":0.21995556529999999},{"$f":"IF(IFERROR(INDEX(Data!$AF$2:$BE$688,MATCH($D29&\"_\"&L$1,Data!$AF$2:$AF$688,0),MATCH(L$2,Data!$AF$2:$BE$2,0)),\"\")=\".\",\"n.a.\",IFERROR(INDEX(Data!$AF$2:$BE$688,MATCH($D29&\"_\"&L$1,Data!$AF$2:$AF$688,0),MATCH(L$2,Data!$AF$2:$BE$2,0)),\"\"))","v":0.21595645520000001},{"$f":"IF(IFERROR(INDEX(Data!$AF$2:$BE$688,MATCH($D29&\"_\"&M$1,Data!$AF$2:$AF$688,0),MATCH(M$2,Data!$AF$2:$BE$2,0)),\"\")=\".\",\"n.a.\",IFERROR(INDEX(Data!$AF$2:$BE$688,MATCH($D29&\"_\"&M$1,Data!$AF$2:$AF$688,0),MATCH(M$2,Data!$AF$2:$BE$2,0)),\"\"))","v":0.2264813681},{"$f":"IF(IFERROR(INDEX(Data!$AF$2:$BE$688,MATCH($D29&\"_\"&N$1,Data!$AF$2:$AF$688,0),MATCH(N$2,Data!$AF$2:$BE$2,0)),\"\")=\".\",\"n.a.\",IFERROR(INDEX(Data!$AF$2:$BE$688,MATCH($D29&\"_\"&N$1,Data!$AF$2:$AF$688,0),MATCH(N$2,Data!$AF$2:$BE$2,0)),\"\"))","v":0.25425297289999998},{"$f":"IF(IFERROR(INDEX(Data!$AF$2:$BE$688,MATCH($D29&\"_\"&O$1,Data!$AF$2:$AF$688,0),MATCH(O$2,Data!$AF$2:$BE$2,0)),\"\")=\".\",\"n.a.\",IFERROR(INDEX(Data!$AF$2:$BE$688,MATCH($D29&\"_\"&O$1,Data!$AF$2:$AF$688,0),MATCH(O$2,Data!$AF$2:$BE$2,0)),\"\"))","v":0.24860254870000001},{"$f":"IF(IFERROR(INDEX(Data!$AF$2:$BE$688,MATCH($D29&\"_\"&P$1,Data!$AF$2:$AF$688,0),MATCH(P$2,Data!$AF$2:$BE$2,0)),\"\")=\".\",\"n.a.\",IFERROR(INDEX(Data!$AF$2:$BE$688,MATCH($D29&\"_\"&P$1,Data!$AF$2:$AF$688,0),MATCH(P$2,Data!$AF$2:$BE$2,0)),\"\"))","v":0.24982515350000001},{"$f":"IF(IFERROR(INDEX(Data!$AF$2:$BG$688,MATCH($D29&\"_\"&Q$1,Data!$AF$2:$AF$688,0),MATCH(Q$2,Data!$AF$2:$BG$2,0)),\"\")=\".\",\"n.a.\",IFERROR(INDEX(Data!$AF$2:$BG$688,MATCH($D29&\"_\"&Q$1,Data!$AF$2:$AF$688,0),MATCH(Q$2,Data!$AF$2:$BG$2,0)),\"\"))","v":0.26255041750000002}]
[null,null,null,"MT","MT",{"$f":"IF(IFERROR(INDEX(Data!$AF$2:$BE$688,MATCH($D30&\"_\"&F$1,Data!$AF$2:$AF$688,0),MATCH(F$2,Data!$AF$2:$BE$2,0)),\"\")=\".\",\"n.a.\",IFERROR(INDEX(Data!$AF$2:$BE$688,MATCH($D30&\"_\"&F$1,Data!$AF$2:$AF$688,0),MATCH(F$2,Data!$AF$2:$BE$2,0)),\"\"))","v":0.17203979799999999},{"$f":"IF(IFERROR(INDEX(Data!$AF$2:$BE$688,MATCH($D30&\"_\"&G$1,Data!$AF$2:$AF$688,0),MATCH(G$2,Data!$AF$2:$BE$2,0)),\"\")=\".\",\"n.a.\",IFERROR(INDEX(Data!$AF$2:$BE$688,MATCH($D30&\"_\"&G$1,Data!$AF$2:$AF$688,0),MATCH(G$2,Data!$AF$2:$BE$2,0)),\"\"))","v":0.1739088144},{"$f":"IF(IFERROR(INDEX(Data!$AF$2:$BE$688,MATCH($D30&\"_\"&H$1,Data!$AF$2:$AF$688,0),MATCH(H$2,Data!$AF$2:$BE$2,0)),\"\")=\".\",\"n.a.\",IFERROR(INDEX(Data!$AF$2:$BE$688,MATCH($D30&\"_\"&H$1,Data!$AF$2:$AF$688,0),MATCH(H$2,Data!$AF$2:$BE$2,0)),\"\"))","v":0.16934811990000001},{"$f":"IF(IFERROR(INDEX(Data!$AF$2:$BE$688,MATCH($D30&\"_\"&I$1,Data!$AF$2:$AF$688,0),MATCH(I$2,Data!$AF$2:$BE$2,0)),\"\")=\".\",\"n.a.\",IFERROR(INDEX(Data!$AF$2:$BE$688,MATCH($D30&\"_\"&I$1,Data!$AF$2:$AF$688,0),MATCH(I$2,Data!$AF$2:$BE$2,0)),\"\"))","v":0.1823989064},{"$f":"IF(IFERROR(INDEX(Data!$AF$2:$BE$688,MATCH($D30&\"_\"&J$1,Data!$AF$2:$AF$688,0),MATCH(J$2,Data!$AF$2:$BE$2,0)),\"\")=\".\",\"n.a.\",IFERROR(INDEX(Data!$AF$2:$BE$688,MATCH($D30&\"_\"&J$1,Data!$AF$2:$AF$688,0),MATCH(J$2,Data!$AF$2:$BE$2,0)),\"\"))","v":0.18245141640000001},{"$f":"IF(IFERROR(INDEX(Data!$AF$2:$BE$688,MATCH($D30&\"_\"&K$1,Data!$AF$2:$AF$688,0),MATCH(K$2,Data!$AF$2:$BE$2,0)),\"\")=\".\",\"n.a.\",IFERROR(INDEX(Data!$AF$2:$BE$688,MATCH($D30&\"_\"&K$1,Data!$AF$2:$AF$688,0),MATCH(K$2,Data!$AF$2:$BE$2,0)),\"\"))","v":0.18189386260000001},{"$f":"IF(IFERROR(INDEX(Data!$AF$2:$BE$688,MATCH($D30&\"_\"&L$1,Data!$AF$2:$AF$688,0),MATCH(L$2,Data!$AF$2:$BE$2,0)),\"\")=\".\",\"n.a.\",IFERROR(INDEX(Data!$AF$2:$BE$688,MATCH($D30&\"_\"&L$1,Data!$AF$2:$AF$688,0),MATCH(L$2,Data!$AF$2:$BE$2,0)),\"\"))","v":0.18385220760000001},{"$f":"IF(IFERROR(INDEX(Data!$AF$2:$BE$688,MATCH($D30&\"_\"&M$1,Data!$AF$2:$AF$688,0),MATCH(M$2,Data!$AF$2:$BE$2,0)),\"\")=\".\",\"n.a.\",IFERROR(INDEX(Data!$AF$2:$BE$688,MATCH($D30&\"_\"&M$1,Data!$AF$2:$AF$688,0),MATCH(M$2,Data!$AF$2:$BE$2,0)),\"\"))","v":0.18872075199999999},{"$f":"IF(IFERROR(INDEX(Data!$AF$2:$BE$688,MATCH($D30&\"_\"&N$1,Data!$AF$2:$AF$688,0),MATCH(N$2,Data!$AF$2:$BE$2,0)),\"\")=\".\",\"n.a.\",IFERROR(INDEX(Data!$AF$2:$BE$688,MATCH($D30&\"_\"&N$1,Data!$AF$2:$AF$688,0),MATCH(N$2,Data!$AF$2:$BE$2,0)),\"\"))","v":0.18730224719999999},{"$f":"IF(IFERROR(INDEX(Data!$AF$2:$BE$688,MATCH($D30&\"_\"&O$1,Data!$AF$2:$AF$688,0),MATCH(O$2,Data!$AF$2:$BE$2,0)),\"\")=\".\",\"n.a.\",IFERROR(INDEX(Data!$AF$2:$BE$688,MATCH($D30&\"_\"&O$1,Data!$AF$2:$AF$688,0),MATCH(O$2,Data!$AF$2:$BE$2,0)),\"\"))","v":0.18870709560000001},{"$f":"IF(IFERROR(INDEX(Data!$AF$2:$BE$688,MATCH($D30&\"_\"&P$1,Data!$AF$2:$AF$688,0),MATCH(P$2,Data!$AF$2:$BE$2,0)),\"\")=\".\",\"n.a.\",IFERROR(INDEX(Data!$AF$2:$BE$688,MATCH($D30&\"_\"&P$1,Data!$AF$2:$AF$688,0),MATCH(P$2,Data!$AF$2:$BE$2,0)),\"\"))","v":0.19065146990000001},{"$f":"IF(IFERROR(INDEX(Data!$AF$2:$BG$688,MATCH($D30&\"_\"&Q$1,Data!$AF$2:$AF$688,0),MATCH(Q$2,Data!$AF$2:$BG$2,0)),\"\")=\".\",\"n.a.\",IFERROR(INDEX(Data!$AF$2:$BG$688,MATCH($D30&\"_\"&Q$1,Data!$AF$2:$AF$688,0),MATCH(Q$2,Data!$AF$2:$BG$2,0)),\"\"))","v":0.20451146549999999}]
[null,null,null,"NL","NL",{"$f":"IF(IFERROR(INDEX(Data!$AF$2:$BE$688,MATCH($D31&\"_\"&F$1,Data!$AF$2:$AF$688,0),MATCH(F$2,Data!$AF$2:$BE$2,0)),\"\")=\".\",\"n.a.\",IFERROR(INDEX(Data!$AF$2:$BE$688,MATCH($D31&\"_\"&F$1,Data!$AF$2:$AF$688,0),MATCH(F$2,Data!$AF$2:$BE$2,0)),\"\"))","v":0.1792618661},{"$f":"IF(IFERROR(INDEX(Data!$AF$2:$BE$688,MATCH($D31&\"_\"&G$1,Data!$AF$2:$AF$688,0),MATCH(G$2,Data!$AF$2:$BE$2,0)),\"\")=\".\",\"n.a.\",IFERROR(INDEX(Data!$AF$2:$BE$688,MATCH($D31&\"_\"&G$1,Data!$AF$2:$AF$688,0),MATCH(G$2,Data!$AF$2:$BE$2,0)),\"\"))","v":0.18152354970000001},{"$f":"IF(IFERROR(INDEX(Data!$AF$2:$BE$688,MATCH($D31&\"_\"&H$1,Data!$AF$2:$AF$688,0),MATCH(H$2,Data!$AF$2:$BE$2,0)),\"\")=\".\",\"n.a.\",IFERROR(INDEX(Data!$AF$2:$BE$688,MATCH($D31&\"_\"&H$1,Data!$AF$2:$AF$688,0),MATCH(H$2,Data!$AF$2:$BE$2,0)),\"\"))","v":0.1825578075},{"$f":"IF(IFERROR(INDEX(Data!$AF$2:$BE$688,MATCH($D31&\"_\"&I$1,Data!$AF$2:$AF$688,0),MATCH(I$2,Data!$AF$2:$BE$2,0)),\"\")=\".\",\"n.a.\",IFERROR(INDEX(Data!$AF$2:$BE$688,MATCH($D31&\"_\"&I$1,Data!$AF$2:$AF$688,0),MATCH(I$2,Data!$AF$2:$BE$2,0)),\"\"))","v":0.18645640720000001},{"$f":"IF(IFERROR(INDEX(Data!$AF$2:$BE$688,MATCH($D31&\"_\"&J$1,Data!$AF$2:$AF$688,0),MATCH(J$2,Data!$AF$2:$BE$2,0)),\"\")=\".\",\"n.a.\",IFERROR(INDEX(Data!$AF$2:$BE$688,MATCH($D31&\"_\"&J$1,Data!$AF$2:$AF$688,0),MATCH(J$2,Data!$AF$2:$BE$2,0)),\"\"))","v":0.18652928969999999},{"$f":"IF(IFERROR(INDEX(Data!$AF$2:$BE$688,MATCH($D31&\"_\"&K$1,Data!$AF$2:$AF$688,0),MATCH(K$2,Data!$AF$2:$BE$2,0)),\"\")=\".\",\"n.a.\",IFERROR(INDEX(Data!$AF$2:$BE$688,MATCH($D31&\"_\"&K$1,Data!$AF$2:$AF$688,0),MATCH(K$2,Data!$AF$2:$BE$2,0)),\"\"))","v":0.1827020358},{"$f":"IF(IFERROR(INDEX(Data!$AF$2:$BE$688,MATCH($D31&\"_\"&L$1,Data!$AF$2:$AF$688,0),MATCH(L$2,Data!$AF$2:$BE$2,0)),\"\")=\".\",\"n.a.\",IFERROR(INDEX(Data!$AF$2:$BE$688,MATCH($D31&\"_\"&L$1,Data!$AF$2:$AF$688,0),MATCH(L$2,Data!$AF$2:$BE$2,0)),\"\"))","v":0.18846686609999999},{"$f":"IF(IFERROR(INDEX(Data!$AF$2:$BE$688,MATCH($D31&\"_\"&M$1,Data!$AF$2:$AF$688,0),MATCH(M$2,Data!$AF$2:$BE$2,0)),\"\")=\".\",\"n.a.\",IFERROR(INDEX(Data!$AF$2:$BE$688,MATCH($D31&\"_\"&M$1,Data!$AF$2:$AF$688,0),MATCH(M$2,Data!$AF$2:$BE$2,0)),\"\"))","v":0.18736759210000001},{"$f":"IF(IFERROR(INDEX(Data!$AF$2:$BE$688,MATCH($D31&\"_\"&N$1,Data!$AF$2:$AF$688,0),MATCH(N$2,Data!$AF$2:$BE$2,0)),\"\")=\".\",\"n.a.\",IFERROR(INDEX(Data!$AF$2:$BE$688,MATCH($D31&\"_\"&N$1,Data!$AF$2:$AF$688,0),MATCH(N$2,Data!$AF$2:$BE$2,0)),\"\"))","v":0.1815009376},{"$f":"IF(IFERROR(INDEX(Data!$AF$2:$BE$688,MATCH($D31&\"_\"&O$1,Data!$AF$2:$AF$688,0),MATCH(O$2,Data!$AF$2:$BE$2,0)),\"\")=\".\",\"n.a.\",IFERROR(INDEX(Data!$AF$2:$BE$688,MATCH($D31&\"_\"&O$1,Data!$AF$2:$AF$688,0),MATCH(O$2,Data!$AF$2:$BE$2,0)),\"\"))","v":0.186982237},{"$f":"IF(IFERROR(INDEX(Data!$AF$2:$BE$688,MATCH($D31&\"_\"&P$1,Data!$AF$2:$AF$688,0),MATCH(P$2,Data!$AF$2:$BE$2,0)),\"\")=\".\",\"n.a.\",IFERROR(INDEX(Data!$AF$2:$BE$688,MATCH($D31&\"_\"&P$1,Data!$AF$2:$AF$688,0),MATCH(P$2,Data!$AF$2:$BE$2,0)),\"\"))","v":0.19231102289999999},{"$f":"IF(IFERROR(INDEX(Data!$AF$2:$BG$688,MATCH($D31&\"_\"&Q$1,Data!$AF$2:$AF$688,0),MATCH(Q$2,Data!$AF$2:$BG$2,0)),\"\")=\".\",\"n.a.\",IFERROR(INDEX(Data!$AF$2:$BG$688,MATCH($D31&\"_\"&Q$1,Data!$AF$2:$AF$688,0),MATCH(Q$2,Data!$AF$2:$BG$2,0)),\"\"))","v":0.19059549479999999}]
[null,null,null,"NO","NO",{"$f":"IF(IFERROR(INDEX(Data!$AF$2:$BE$688,MATCH($D32&\"_\"&F$1,Data!$AF$2:$AF$688,0),MATCH(F$2,Data!$AF$2:$BE$2,0)),\"\")=\".\",\"n.a.\",IFERROR(INDEX(Data!$AF$2:$BE$688,MATCH($D32&\"_\"&F$1,Data!$AF$2:$AF$688,0),MATCH(F$2,Data!$AF$2:$BE$2,0)),\"\"))","v":0.173499135},{"$f":"IF(IFERROR(INDEX(Data!$AF$2:$BE$688,MATCH($D32&\"_\"&G$1,Data!$AF$2:$AF$688,0),MATCH(G$2,Data!$AF$2:$BE$2,0)),\"\")=\".\",\"n.a.\",IFERROR(INDEX(Data!$AF$2:$BE$688,MATCH($D32&\"_\"&G$1,Data!$AF$2:$AF$688,0),MATCH(G$2,Data!$AF$2:$BE$2,0)),\"\"))","v":0.1704672274},{"$f":"IF(IFERROR(INDEX(Data!$AF$2:$BE$688,MATCH($D32&\"_\"&H$1,Data!$AF$2:$AF$688,0),MATCH(H$2,Data!$AF$2:$BE$2,0)),\"\")=\".\",\"n.a.\",IFERROR(INDEX(Data!$AF$2:$BE$688,MATCH($D32&\"_\"&H$1,Data!$AF$2:$AF$688,0),MATCH(H$2,Data!$AF$2:$BE$2,0)),\"\"))","v":0.17102458749999999},{"$f":"IF(IFERROR(INDEX(Data!$AF$2:$BE$688,MATCH($D32&\"_\"&I$1,Data!$AF$2:$AF$688,0),MATCH(I$2,Data!$AF$2:$BE$2,0)),\"\")=\".\",\"n.a.\",IFERROR(INDEX(Data!$AF$2:$BE$688,MATCH($D32&\"_\"&I$1,Data!$AF$2:$AF$688,0),MATCH(I$2,Data!$AF$2:$BE$2,0)),\"\"))","v":0.176081712},{"$f":"IF(IFERROR(INDEX(Data!$AF$2:$BE$688,MATCH($D32&\"_\"&J$1,Data!$AF$2:$AF$688,0),MATCH(J$2,Data!$AF$2:$BE$2,0)),\"\")=\".\",\"n.a.\",IFERROR(INDEX(Data!$AF$2:$BE$688,MATCH($D32&\"_\"&J$1,Data!$AF$2:$AF$688,0),MATCH(J$2,Data!$AF$2:$BE$2,0)),\"\"))","v":0.17504779979999999},{"$f":"IF(IFERROR(INDEX(Data!$AF$2:$BE$688,MATCH($D32&\"_\"&K$1,Data!$AF$2:$AF$688,0),MATCH(K$2,Data!$AF$2:$BE$2,0)),\"\")=\".\",\"n.a.\",IFERROR(INDEX(Data!$AF$2:$BE$688,MATCH($D32&\"_\"&K$1,Data!$AF$2:$AF$688,0),MATCH(K$2,Data!$AF$2:$BE$2,0)),\"\"))","v":0.17607362430000001},{"$f":"IF(IFERROR(INDEX(Data!$AF$2:$BE$688,MATCH($D32&\"_\"&L$1,Data!$AF$2:$AF$688,0),MATCH(L$2,Data!$AF$2:$BE$2,0)),\"\")=\".\",\"n.a.\",IFERROR(INDEX(Data!$AF$2:$BE$688,MATCH($D32&\"_\"&L$1,Data!$AF$2:$AF$688,0),MATCH(L$2,Data!$AF$2:$BE$2,0)),\"\"))","v":0.1779906211},{"$f":"IF(IFERROR(INDEX(Data!$AF$2:$BE$688,MATCH($D32&\"_\"&M$1,Data!$AF$2:$AF$688,0),MATCH(M$2,Data!$AF$2:$BE$2,0)),\"\")=\".\",\"n.a.\",IFERROR(INDEX(Data!$AF$2:$BE$688,MATCH($D32&\"_\"&M$1,Data!$AF$2:$AF$688,0),MATCH(M$2,Data!$AF$2:$BE$2,0)),\"\"))","v":0.20704543910000001},{"$f":"IF(IFERROR(INDEX(Data!$AF$2:$BE$688,MATCH($D32&\"_\"&N$1,Data!$AF$2:$AF$688,0),MATCH(N$2,Data!$AF$2:$BE$2,0)),\"\")=\".\",\"n.a.\",IFERROR(INDEX(Data!$AF$2:$BE$688,MATCH($D32&\"_\"&N$1,Data!$AF$2:$AF$688,0),MATCH(N$2,Data!$AF$2:$BE$2,0)),\"\"))","v":0.19024335240000001},{"$f":"IF(IFERROR(INDEX(Data!$AF$2:$BE$688,MATCH($D32&\"_\"&O$1,Data!$AF$2:$AF$688,0),MATCH(O$2,Data!$AF$2:$BE$2,0)),\"\")=\".\",\"n.a.\",IFERROR(INDEX(Data!$AF$2:$BE$688,MATCH($D32&\"_\"&O$1,Data!$AF$2:$AF$688,0),MATCH(O$2,Data!$AF$2:$BE$2,0)),\"\"))","v":0.19455380990000001},{"$f":"IF(IFERROR(INDEX(Data!$AF$2:$BE$688,MATCH($D32&\"_\"&P$1,Data!$AF$2:$AF$688,0),MATCH(P$2,Data!$AF$2:$BE$2,0)),\"\")=\".\",\"n.a.\",IFERROR(INDEX(Data!$AF$2:$BE$688,MATCH($D32&\"_\"&P$1,Data!$AF$2:$AF$688,0),MATCH(P$2,Data!$AF$2:$BE$2,0)),\"\"))","v":0.19859077080000001},{"$f":"IF(IFERROR(INDEX(Data!$AF$2:$BG$688,MATCH($D32&\"_\"&Q$1,Data!$AF$2:$AF$688,0),MATCH(Q$2,Data!$AF$2:$BG$2,0)),\"\")=\".\",\"n.a.\",IFERROR(INDEX(Data!$AF$2:$BG$688,MATCH($D32&\"_\"&Q$1,Data!$AF$2:$AF$688,0),MATCH(Q$2,Data!$AF$2:$BG$2,0)),\"\"))","v":0.2124069442}]
[null,null,null,"PL","PL",{"$f":"IF(IFERROR(INDEX(Data!$AF$2:$BE$688,MATCH($D33&\"_\"&F$1,Data!$AF$2:$AF$688,0),MATCH(F$2,Data!$AF$2:$BE$2,0)),\"\")=\".\",\"n.a.\",IFERROR(INDEX(Data!$AF$2:$BE$688,MATCH($D33&\"_\"&F$1,Data!$AF$2:$AF$688,0),MATCH(F$2,Data!$AF$2:$BE$2,0)),\"\"))","v":0.16011964819999999},{"$f":"IF(IFERROR(INDEX(Data!$AF$2:$BE$688,MATCH($D33&\"_\"&G$1,Data!$AF$2:$AF$688,0),MATCH(G$2,Data!$AF$2:$BE$2,0)),\"\")=\".\",\"n.a.\",IFERROR(INDEX(Data!$AF$2:$BE$688,MATCH($D33&\"_\"&G$1,Data!$AF$2:$AF$688,0),MATCH(G$2,Data!$AF$2:$BE$2,0)),\"\"))","v":0.16040191719999999},{"$f":"IF(IFERROR(INDEX(Data!$AF$2:$BE$688,MATCH($D33&\"_\"&H$1,Data!$AF$2:$AF$688,0),MATCH(H$2,Data!$AF$2:$BE$2,0)),\"\")=\".\",\"n.a.\",IFERROR(INDEX(Data!$AF$2:$BE$688,MATCH($D33&\"_\"&H$1,Data!$AF$2:$AF$688,0),MATCH(H$2,Data!$AF$2:$BE$2,0)),\"\"))","v":0.1634283587},{"$f":"IF(IFERROR(INDEX(Data!$AF$2:$BE$688,MATCH($D33&\"_\"&I$1,Data!$AF$2:$AF$688,0),MATCH(I$2,Data!$AF$2:$BE$2,0)),\"\")=\".\",\"n.a.\",IFERROR(INDEX(Data!$AF$2:$BE$688,MATCH($D33&\"_\"&I$1,Data!$AF$2:$AF$688,0),MATCH(I$2,Data!$AF$2:$BE$2,0)),\"\"))","v":0.16030696489999999},{"$f":"IF(IFERROR(INDEX(Data!$AF$2:$BE$688,MATCH($D33&\"_\"&J$1,Data!$AF$2:$AF$688,0),MATCH(J$2,Data!$AF$2:$BE$2,0)),\"\")=\".\",\"n.a.\",IFERROR(INDEX(Data!$AF$2:$BE$688,MATCH($D33&\"_\"&J$1,Data!$AF$2:$AF$688,0),MATCH(J$2,Data!$AF$2:$BE$2,0)),\"\"))","v":0.15903489740000001},{"$f":"IF(IFERROR(INDEX(Data!$AF$2:$BE$688,MATCH($D33&\"_\"&K$1,Data!$AF$2:$AF$688,0),MATCH(K$2,Data!$AF$2:$BE$2,0)),\"\")=\".\",\"n.a.\",IFERROR(INDEX(Data!$AF$2:$BE$688,MATCH($D33&\"_\"&K$1,Data!$AF$2:$AF$688,0),MATCH(K$2,Data!$AF$2:$BE$2,0)),\"\"))","v":0.16002640279999999},{"$f":"IF(IFERROR(INDEX(Data!$AF$2:$BE$688,MATCH($D33&\"_\"&L$1,Data!$AF$2:$AF$688,0),MATCH(L$2,Data!$AF$2:$BE$2,0)),\"\")=\".\",\"n.a.\",IFERROR(INDEX(Data!$AF$2:$BE$688,MATCH($D33&\"_\"&L$1,Data!$AF$2:$AF$688,0),MATCH(L$2,Data!$AF$2:$BE$2,0)),\"\"))","v":0.15666061149999999},{"$f":"IF(IFERROR(INDEX(Data!$AF$2:$BE$688,MATCH($D33&\"_\"&M$1,Data!$AF$2:$AF$688,0),MATCH(M$2,Data!$AF$2:$BE$2,0)),\"\")=\".\",\"n.a.\",IFERROR(INDEX(Data!$AF$2:$BE$688,MATCH($D33&\"_\"&M$1,Data!$AF$2:$AF$688,0),MATCH(M$2,Data!$AF$2:$BE$2,0)),\"\"))","v":0.16009496309999999},{"$f":"IF(IFERROR(INDEX(Data!$AF$2:$BE$688,MATCH($D33&\"_\"&N$1,Data!$AF$2:$AF$688,0),MATCH(N$2,Data!$AF$2:$BE$2,0)),\"\")=\".\",\"n.a.\",IFERROR(INDEX(Data!$AF$2:$BE$688,MATCH($D33&\"_\"&N$1,Data!$AF$2:$AF$688,0),MATCH(N$2,Data!$AF$2:$BE$2,0)),\"\"))","v":0.15331966720000001},{"$f":"IF(IFERROR(INDEX(Data!$AF$2:$BE$688,MATCH($D33&\"_\"&O$1,Data!$AF$2:$AF$688,0),MATCH(O$2,Data!$AF$2:$BE$2,0)),\"\")=\".\",\"n.a.\",IFERROR(INDEX(Data!$AF$2:$BE$688,MATCH($D33&\"_\"&O$1,Data!$AF$2:$AF$688,0),MATCH(O$2,Data!$AF$2:$BE$2,0)),\"\"))","v":0.16698648159999999},{"$f":"IF(IFERROR(INDEX(Data!$AF$2:$BE$688,MATCH($D33&\"_\"&P$1,Data!$AF$2:$AF$688,0),MATCH(P$2,Data!$AF$2:$BE$2,0)),\"\")=\".\",\"n.a.\",IFERROR(INDEX(Data!$AF$2:$BE$688,MATCH($D33&\"_\"&P$1,Data!$AF$2:$AF$688,0),MATCH(P$2,Data!$AF$2:$BE$2,0)),\"\"))","v":0.17494288059999999},{"$f":"IF(IFERROR(INDEX(Data!$AF$2:$BG$688,MATCH($D33&\"_\"&Q$1,Data!$AF$2:$AF$688,0),MATCH(Q$2,Data!$AF$2:$BG$2,0)),\"\")=\".\",\"n.a.\",IFERROR(INDEX(Data!$AF$2:$BG$688,MATCH($D33&\"_\"&Q$1,Data!$AF$2:$AF$688,0),MATCH(Q$2,Data!$AF$2:$BG$2,0)),\"\"))","v":0.18081396750000001}]
[null,null,null,"PT","PT",{"$f":"IF(IFERROR(INDEX(Data!$AF$2:$BE$688,MATCH($D34&\"_\"&F$1,Data!$AF$2:$AF$688,0),MATCH(F$2,Data!$AF$2:$BE$2,0)),\"\")=\".\",\"n.a.\",IFERROR(INDEX(Data!$AF$2:$BE$688,MATCH($D34&\"_\"&F$1,Data!$AF$2:$AF$688,0),MATCH(F$2,Data!$AF$2:$BE$2,0)),\"\"))","v":0.13747236090000001},{"$f":"IF(IFERROR(INDEX(Data!$AF$2:$BE$688,MATCH($D34&\"_\"&G$1,Data!$AF$2:$AF$688,0),MATCH(G$2,Data!$AF$2:$BE$2,0)),\"\")=\".\",\"n.a.\",IFERROR(INDEX(Data!$AF$2:$BE$688,MATCH($D34&\"_\"&G$1,Data!$AF$2:$AF$688,0),MATCH(G$2,Data!$AF$2:$BE$2,0)),\"\"))","v":0.13684126839999999},{"$f":"IF(IFERROR(INDEX(Data!$AF$2:$BE$688,MATCH($D34&\"_\"&H$1,Data!$AF$2:$AF$688,0),MATCH(H$2,Data!$AF$2:$BE$2,0)),\"\")=\".\",\"n.a.\",IFERROR(INDEX(Data!$AF$2:$BE$688,MATCH($D34&\"_\"&H$1,Data!$AF$2:$AF$688,0),MATCH(H$2,Data!$AF$2:$BE$2,0)),\"\"))","v":0.13724692690000001},{"$f":"IF(IFERROR(INDEX(Data!$AF$2:$BE$688,MATCH($D34&\"_\"&I$1,Data!$AF$2:$AF$688,0),MATCH(I$2,Data!$AF$2:$BE$2,0)),\"\")=\".\",\"n.a.\",IFERROR(INDEX(Data!$AF$2:$BE$688,MATCH($D34&\"_\"&I$1,Data!$AF$2:$AF$688,0),MATCH(I$2,Data!$AF$2:$BE$2,0)),\"\"))","v":0.13471639069999999},{"$f":"IF(IFERROR(INDEX(Data!$AF$2:$BE$688,MATCH($D34&\"_\"&J$1,Data!$AF$2:$AF$688,0),MATCH(J$2,Data!$AF$2:$BE$2,0)),\"\")=\".\",\"n.a.\",IFERROR(INDEX(Data!$AF$2:$BE$688,MATCH($D34&\"_\"&J$1,Data!$AF$2:$AF$688,0),MATCH(J$2,Data!$AF$2:$BE$2,0)),\"\"))","v":0.1434649777},{"$f":"IF(IFERROR(INDEX(Data!$AF$2:$BE$688,MATCH($D34&\"_\"&K$1,Data!$AF$2:$AF$688,0),MATCH(K$2,Data!$AF$2:$BE$2,0)),\"\")=\".\",\"n.a.\",IFERROR(INDEX(Data!$AF$2:$BE$688,MATCH($D34&\"_\"&K$1,Data!$AF$2:$AF$688,0),MATCH(K$2,Data!$AF$2:$BE$2,0)),\"\"))","v":0.14388650529999999},{"$f":"IF(IFERROR(INDEX(Data!$AF$2:$BE$688,MATCH($D34&\"_\"&L$1,Data!$AF$2:$AF$688,0),MATCH(L$2,Data!$AF$2:$BE$2,0)),\"\")=\".\",\"n.a.\",IFERROR(INDEX(Data!$AF$2:$BE$688,MATCH($D34&\"_\"&L$1,Data!$AF$2:$AF$688,0),MATCH(L$2,Data!$AF$2:$BE$2,0)),\"\"))","v":0.1454599952},{"$f":"IF(IFERROR(INDEX(Data!$AF$2:$BE$688,MATCH($D34&\"_\"&M$1,Data!$AF$2:$AF$688,0),MATCH(M$2,Data!$AF$2:$BE$2,0)),\"\")=\".\",\"n.a.\",IFERROR(INDEX(Data!$AF$2:$BE$688,MATCH($D34&\"_\"&M$1,Data!$AF$2:$AF$688,0),MATCH(M$2,Data!$AF$2:$BE$2,0)),\"\"))","v":0.15012892620000001},{"$f":"IF(IFERROR(INDEX(Data!$AF$2:$BE$688,MATCH($D34&\"_\"&N$1,Data!$AF$2:$AF$688,0),MATCH(N$2,Data!$AF$2:$BE$2,0)),\"\")=\".\",\"n.a.\",IFERROR(INDEX(Data!$AF$2:$BE$688,MATCH($D34&\"_\"&N$1,Data!$AF$2:$AF$688,0),MATCH(N$2,Data!$AF$2:$BE$2,0)),\"\"))","v":0.14863698450000001},{"$f":"IF(IFERROR(INDEX(Data!$AF$2:$BE$688,MATCH($D34&\"_\"&O$1,Data!$AF$2:$AF$688,0),MATCH(O$2,Data!$AF$2:$BE$2,0)),\"\")=\".\",\"n.a.\",IFERROR(INDEX(Data!$AF$2:$BE$688,MATCH($D34&\"_\"&O$1,Data!$AF$2:$AF$688,0),MATCH(O$2,Data!$AF$2:$BE$2,0)),\"\"))","v":0.1524432952},{"$f":"IF(IFERROR(INDEX(Data!$AF$2:$BE$688,MATCH($D34&\"_\"&P$1,Data!$AF$2:$AF$688,0),MATCH(P$2,Data!$AF$2:$BE$2,0)),\"\")=\".\",\"n.a.\",IFERROR(INDEX(Data!$AF$2:$BE$688,MATCH($D34&\"_\"&P$1,Data!$AF$2:$AF$688,0),MATCH(P$2,Data!$AF$2:$BE$2,0)),\"\"))","v":0.15439171369999999},{"$f":"IF(IFERROR(INDEX(Data!$AF$2:$BG$688,MATCH($D34&\"_\"&Q$1,Data!$AF$2:$AF$688,0),MATCH(Q$2,Data!$AF$2:$BG$2,0)),\"\")=\".\",\"n.a.\",IFERROR(INDEX(Data!$AF$2:$BG$688,MATCH($D34&\"_\"&Q$1,Data!$AF$2:$AF$688,0),MATCH(Q$2,Data!$AF$2:$BG$2,0)),\"\"))","v":0.16033323729999999}]
[null,null,null,"RO","RO",{"$f":"IF(IFERROR(INDEX(Data!$AF$2:$BE$688,MATCH($D35&\"_\"&F$1,Data!$AF$2:$AF$688,0),MATCH(F$2,Data!$AF$2:$BE$2,0)),\"\")=\".\",\"n.a.\",IFERROR(INDEX(Data!$AF$2:$BE$688,MATCH($D35&\"_\"&F$1,Data!$AF$2:$AF$688,0),MATCH(F$2,Data!$AF$2:$BE$2,0)),\"\"))","v":0.1851109115},{"$f":"IF(IFERROR(INDEX(Data!$AF$2:$BE$688,MATCH($D35&\"_\"&G$1,Data!$AF$2:$AF$688,0),MATCH(G$2,Data!$AF$2:$BE$2,0)),\"\")=\".\",\"n.a.\",IFERROR(INDEX(Data!$AF$2:$BE$688,MATCH($D35&\"_\"&G$1,Data!$AF$2:$AF$688,0),MATCH(G$2,Data!$AF$2:$BE$2,0)),\"\"))","v":0.16477867060000001},{"$f":"IF(IFERROR(INDEX(Data!$AF$2:$BE$688,MATCH($D35&\"_\"&H$1,Data!$AF$2:$AF$688,0),MATCH(H$2,Data!$AF$2:$BE$2,0)),\"\")=\".\",\"n.a.\",IFERROR(INDEX(Data!$AF$2:$BE$688,MATCH($D35&\"_\"&H$1,Data!$AF$2:$AF$688,0),MATCH(H$2,Data!$AF$2:$BE$2,0)),\"\"))","v":0.16433921139999999},{"$f":"IF(IFERROR(INDEX(Data!$AF$2:$BE$688,MATCH($D35&\"_\"&I$1,Data!$AF$2:$AF$688,0),MATCH(I$2,Data!$AF$2:$BE$2,0)),\"\")=\".\",\"n.a.\",IFERROR(INDEX(Data!$AF$2:$BE$688,MATCH($D35&\"_\"&I$1,Data!$AF$2:$AF$688,0),MATCH(I$2,Data!$AF$2:$BE$2,0)),\"\"))","v":0.173194982},{"$f":"IF(IFERROR(INDEX(Data!$AF$2:$BE$688,MATCH($D35&\"_\"&J$1,Data!$AF$2:$AF$688,0),MATCH(J$2,Data!$AF$2:$BE$2,0)),\"\")=\".\",\"n.a.\",IFERROR(INDEX(Data!$AF$2:$BE$688,MATCH($D35&\"_\"&J$1,Data!$AF$2:$AF$688,0),MATCH(J$2,Data!$AF$2:$BE$2,0)),\"\"))","v":0.1729843838},{"$f":"IF(IFERROR(INDEX(Data!$AF$2:$BE$688,MATCH($D35&\"_\"&K$1,Data!$AF$2:$AF$688,0),MATCH(K$2,Data!$AF$2:$BE$2,0)),\"\")=\".\",\"n.a.\",IFERROR(INDEX(Data!$AF$2:$BE$688,MATCH($D35&\"_\"&K$1,Data!$AF$2:$AF$688,0),MATCH(K$2,Data!$AF$2:$BE$2,0)),\"\"))","v":0.1721293626},{"$f":"IF(IFERROR(INDEX(Data!$AF$2:$BE$688,MATCH($D35&\"_\"&L$1,Data!$AF$2:$AF$688,0),MATCH(L$2,Data!$AF$2:$BE$2,0)),\"\")=\".\",\"n.a.\",IFERROR(INDEX(Data!$AF$2:$BE$688,MATCH($D35&\"_\"&L$1,Data!$AF$2:$AF$688,0),MATCH(L$2,Data!$AF$2:$BE$2,0)),\"\"))","v":0.16979227229999999},{"$f":"IF(IFERROR(INDEX(Data!$AF$2:$BE$688,MATCH($D35&\"_\"&M$1,Data!$AF$2:$AF$688,0),MATCH(M$2,Data!$AF$2:$BE$2,0)),\"\")=\".\",\"n.a.\",IFERROR(INDEX(Data!$AF$2:$BE$688,MATCH($D35&\"_\"&M$1,Data!$AF$2:$AF$688,0),MATCH(M$2,Data!$AF$2:$BE$2,0)),\"\"))","v":0.19066187970000001},{"$f":"IF(IFERROR(INDEX(Data!$AF$2:$BE$688,MATCH($D35&\"_\"&N$1,Data!$AF$2:$AF$688,0),MATCH(N$2,Data!$AF$2:$BE$2,0)),\"\")=\".\",\"n.a.\",IFERROR(INDEX(Data!$AF$2:$BE$688,MATCH($D35&\"_\"&N$1,Data!$AF$2:$AF$688,0),MATCH(N$2,Data!$AF$2:$BE$2,0)),\"\"))","v":0.17229708099999999},{"$f":"IF(IFERROR(INDEX(Data!$AF$2:$BE$688,MATCH($D35&\"_\"&O$1,Data!$AF$2:$AF$688,0),MATCH(O$2,Data!$AF$2:$BE$2,0)),\"\")=\".\",\"n.a.\",IFERROR(INDEX(Data!$AF$2:$BE$688,MATCH($D35&\"_\"&O$1,Data!$AF$2:$AF$688,0),MATCH(O$2,Data!$AF$2:$BE$2,0)),\"\"))","v":0.19186330069999999},{"$f":"IF(IFERROR(INDEX(Data!$AF$2:$BE$688,MATCH($D35&\"_\"&P$1,Data!$AF$2:$AF$688,0),MATCH(P$2,Data!$AF$2:$BE$2,0)),\"\")=\".\",\"n.a.\",IFERROR(INDEX(Data!$AF$2:$BE$688,MATCH($D35&\"_\"&P$1,Data!$AF$2:$AF$688,0),MATCH(P$2,Data!$AF$2:$BE$2,0)),\"\"))","v":0.19661805339999999},{"$f":"IF(IFERROR(INDEX(Data!$AF$2:$BG$688,MATCH($D35&\"_\"&Q$1,Data!$AF$2:$AF$688,0),MATCH(Q$2,Data!$AF$2:$BG$2,0)),\"\")=\".\",\"n.a.\",IFERROR(INDEX(Data!$AF$2:$BG$688,MATCH($D35&\"_\"&Q$1,Data!$AF$2:$AF$688,0),MATCH(Q$2,Data!$AF$2:$BG$2,0)),\"\"))","v":0.1983912082}]
[null,null,null,"SE","SE",{"$f":"IF(IFERROR(INDEX(Data!$AF$2:$BE$688,MATCH($D36&\"_\"&F$1,Data!$AF$2:$AF$688,0),MATCH(F$2,Data!$AF$2:$BE$2,0)),\"\")=\".\",\"n.a.\",IFERROR(INDEX(Data!$AF$2:$BE$688,MATCH($D36&\"_\"&F$1,Data!$AF$2:$AF$688,0),MATCH(F$2,Data!$AF$2:$BE$2,0)),\"\"))","v":0.2342169888},{"$f":"IF(IFERROR(INDEX(Data!$AF$2:$BE$688,MATCH($D36&\"_\"&G$1,Data!$AF$2:$AF$688,0),MATCH(G$2,Data!$AF$2:$BE$2,0)),\"\")=\".\",\"n.a.\",IFERROR(INDEX(Data!$AF$2:$BE$688,MATCH($D36&\"_\"&G$1,Data!$AF$2:$AF$688,0),MATCH(G$2,Data!$AF$2:$BE$2,0)),\"\"))","v":0.2341027524},{"$f":"IF(IFERROR(INDEX(Data!$AF$2:$BE$688,MATCH($D36&\"_\"&H$1,Data!$AF$2:$AF$688,0),MATCH(H$2,Data!$AF$2:$BE$2,0)),\"\")=\".\",\"n.a.\",IFERROR(INDEX(Data!$AF$2:$BE$688,MATCH($D36&\"_\"&H$1,Data!$AF$2:$AF$688,0),MATCH(H$2,Data!$AF$2:$BE$2,0)),\"\"))","v":0.2377782265},{"$f":"IF(IFERROR(INDEX(Data!$AF$2:$BE$688,MATCH($D36&\"_\"&I$1,Data!$AF$2:$AF$688,0),MATCH(I$2,Data!$AF$2:$BE$2,0)),\"\")=\".\",\"n.a.\",IFERROR(INDEX(Data!$AF$2:$BE$688,MATCH($D36&\"_\"&I$1,Data!$AF$2:$AF$688,0),MATCH(I$2,Data!$AF$2:$BE$2,0)),\"\"))","v":0.1882736237},{"$f":"IF(IFERROR(INDEX(Data!$AF$2:$BE$688,MATCH($D36&\"_\"&J$1,Data!$AF$2:$AF$688,0),MATCH(J$2,Data!$AF$2:$BE$2,0)),\"\")=\".\",\"n.a.\",IFERROR(INDEX(Data!$AF$2:$BE$688,MATCH($D36&\"_\"&J$1,Data!$AF$2:$AF$688,0),MATCH(J$2,Data!$AF$2:$BE$2,0)),\"\"))","v":0.18495893860000001},{"$f":"IF(IFERROR(INDEX(Data!$AF$2:$BE$688,MATCH($D36&\"_\"&K$1,Data!$AF$2:$AF$688,0),MATCH(K$2,Data!$AF$2:$BE$2,0)),\"\")=\".\",\"n.a.\",IFERROR(INDEX(Data!$AF$2:$BE$688,MATCH($D36&\"_\"&K$1,Data!$AF$2:$AF$688,0),MATCH(K$2,Data!$AF$2:$BE$2,0)),\"\"))","v":0.18614493430000001},{"$f":"IF(IFERROR(INDEX(Data!$AF$2:$BE$688,MATCH($D36&\"_\"&L$1,Data!$AF$2:$AF$688,0),MATCH(L$2,Data!$AF$2:$BE$2,0)),\"\")=\".\",\"n.a.\",IFERROR(INDEX(Data!$AF$2:$BE$688,MATCH($D36&\"_\"&L$1,Data!$AF$2:$AF$688,0),MATCH(L$2,Data!$AF$2:$BE$2,0)),\"\"))","v":0.1900803113},{"$f":"IF(IFERROR(INDEX(Data!$AF$2:$BE$688,MATCH($D36&\"_\"&M$1,Data!$AF$2:$AF$688,0),MATCH(M$2,Data!$AF$2:$BE$2,0)),\"\")=\".\",\"n.a.\",IFERROR(INDEX(Data!$AF$2:$BE$688,MATCH($D36&\"_\"&M$1,Data!$AF$2:$AF$688,0),MATCH(M$2,Data!$AF$2:$BE$2,0)),\"\"))","v":0.20269919450000001},{"$f":"IF(IFERROR(INDEX(Data!$AF$2:$BE$688,MATCH($D36&\"_\"&N$1,Data!$AF$2:$AF$688,0),MATCH(N$2,Data!$AF$2:$BE$2,0)),\"\")=\".\",\"n.a.\",IFERROR(INDEX(Data!$AF$2:$BE$688,MATCH($D36&\"_\"&N$1,Data!$AF$2:$AF$688,0),MATCH(N$2,Data!$AF$2:$BE$2,0)),\"\"))","v":0.18775992320000001},{"$f":"IF(IFERROR(INDEX(Data!$AF$2:$BE$688,MATCH($D36&\"_\"&O$1,Data!$AF$2:$AF$688,0),MATCH(O$2,Data!$AF$2:$BE$2,0)),\"\")=\".\",\"n.a.\",IFERROR(INDEX(Data!$AF$2:$BE$688,MATCH($D36&\"_\"&O$1,Data!$AF$2:$AF$688,0),MATCH(O$2,Data!$AF$2:$BE$2,0)),\"\"))","v":0.19420406239999999},{"$f":"IF(IFERROR(INDEX(Data!$AF$2:$BE$688,MATCH($D36&\"_\"&P$1,Data!$AF$2:$AF$688,0),MATCH(P$2,Data!$AF$2:$BE$2,0)),\"\")=\".\",\"n.a.\",IFERROR(INDEX(Data!$AF$2:$BE$688,MATCH($D36&\"_\"&P$1,Data!$AF$2:$AF$688,0),MATCH(P$2,Data!$AF$2:$BE$2,0)),\"\"))","v":0.20213032950000001},{"$f":"IF(IFERROR(INDEX(Data!$AF$2:$BG$688,MATCH($D36&\"_\"&Q$1,Data!$AF$2:$AF$688,0),MATCH(Q$2,Data!$AF$2:$BG$2,0)),\"\")=\".\",\"n.a.\",IFERROR(INDEX(Data!$AF$2:$BG$688,MATCH($D36&\"_\"&Q$1,Data!$AF$2:$AF$688,0),MATCH(Q$2,Data!$AF$2:$BG$2,0)),\"\"))","v":0.21043826739999999}]
[null,null,null,"SI","SI",{"$f":"IF(IFERROR(INDEX(Data!$AF$2:$BE$688,MATCH($D37&\"_\"&F$1,Data!$AF$2:$AF$688,0),MATCH(F$2,Data!$AF$2:$BE$2,0)),\"\")=\".\",\"n.a.\",IFERROR(INDEX(Data!$AF$2:$BE$688,MATCH($D37&\"_\"&F$1,Data!$AF$2:$AF$688,0),MATCH(F$2,Data!$AF$2:$BE$2,0)),\"\"))","v":0.18652592079999999},{"$f":"IF(IFERROR(INDEX(Data!$AF$2:$BE$688,MATCH($D37&\"_\"&G$1,Data!$AF$2:$AF$688,0),MATCH(G$2,Data!$AF$2:$BE$2,0)),\"\")=\".\",\"n.a.\",IFERROR(INDEX(Data!$AF$2:$BE$688,MATCH($D37&\"_\"&G$1,Data!$AF$2:$AF$688,0),MATCH(G$2,Data!$AF$2:$BE$2,0)),\"\"))","v":0.19709810080000001},{"$f":"IF(IFERROR(INDEX(Data!$AF$2:$BE$688,MATCH($D37&\"_\"&H$1,Data!$AF$2:$AF$688,0),MATCH(H$2,Data!$AF$2:$BE$2,0)),\"\")=\".\",\"n.a.\",IFERROR(INDEX(Data!$AF$2:$BE$688,MATCH($D37&\"_\"&H$1,Data!$AF$2:$AF$688,0),MATCH(H$2,Data!$AF$2:$BE$2,0)),\"\"))","v":0.1862636788},{"$f":"IF(IFERROR(INDEX(Data!$AF$2:$BE$688,MATCH($D37&\"_\"&I$1,Data!$AF$2:$AF$688,0),MATCH(I$2,Data!$AF$2:$BE$2,0)),\"\")=\".\",\"n.a.\",IFERROR(INDEX(Data!$AF$2:$BE$688,MATCH($D37&\"_\"&I$1,Data!$AF$2:$AF$688,0),MATCH(I$2,Data!$AF$2:$BE$2,0)),\"\"))","v":0.18563360919999999},{"$f":"IF(IFERROR(INDEX(Data!$AF$2:$BE$688,MATCH($D37&\"_\"&J$1,Data!$AF$2:$AF$688,0),MATCH(J$2,Data!$AF$2:$BE$2,0)),\"\")=\".\",\"n.a.\",IFERROR(INDEX(Data!$AF$2:$BE$688,MATCH($D37&\"_\"&J$1,Data!$AF$2:$AF$688,0),MATCH(J$2,Data!$AF$2:$BE$2,0)),\"\"))","v":0.18301336109999999},{"$f":"IF(IFERROR(INDEX(Data!$AF$2:$BE$688,MATCH($D37&\"_\"&K$1,Data!$AF$2:$AF$688,0),MATCH(K$2,Data!$AF$2:$BE$2,0)),\"\")=\".\",\"n.a.\",IFERROR(INDEX(Data!$AF$2:$BE$688,MATCH($D37&\"_\"&K$1,Data!$AF$2:$AF$688,0),MATCH(K$2,Data!$AF$2:$BE$2,0)),\"\"))","v":0.1842910307},{"$f":"IF(IFERROR(INDEX(Data!$AF$2:$BE$688,MATCH($D37&\"_\"&L$1,Data!$AF$2:$AF$688,0),MATCH(L$2,Data!$AF$2:$BE$2,0)),\"\")=\".\",\"n.a.\",IFERROR(INDEX(Data!$AF$2:$BE$688,MATCH($D37&\"_\"&L$1,Data!$AF$2:$AF$688,0),MATCH(L$2,Data!$AF$2:$BE$2,0)),\"\"))","v":0.18564722659999999},{"$f":"IF(IFERROR(INDEX(Data!$AF$2:$BE$688,MATCH($D37&\"_\"&M$1,Data!$AF$2:$AF$688,0),MATCH(M$2,Data!$AF$2:$BE$2,0)),\"\")=\".\",\"n.a.\",IFERROR(INDEX(Data!$AF$2:$BE$688,MATCH($D37&\"_\"&M$1,Data!$AF$2:$AF$688,0),MATCH(M$2,Data!$AF$2:$BE$2,0)),\"\"))","v":0.18739378700000001},{"$f":"IF(IFERROR(INDEX(Data!$AF$2:$BE$688,MATCH($D37&\"_\"&N$1,Data!$AF$2:$AF$688,0),MATCH(N$2,Data!$AF$2:$BE$2,0)),\"\")=\".\",\"n.a.\",IFERROR(INDEX(Data!$AF$2:$BE$688,MATCH($D37&\"_\"&N$1,Data!$AF$2:$AF$688,0),MATCH(N$2,Data!$AF$2:$BE$2,0)),\"\"))","v":0.15419744469999999},{"$f":"IF(IFERROR(INDEX(Data!$AF$2:$BE$688,MATCH($D37&\"_\"&O$1,Data!$AF$2:$AF$688,0),MATCH(O$2,Data!$AF$2:$BE$2,0)),\"\")=\".\",\"n.a.\",IFERROR(INDEX(Data!$AF$2:$BE$688,MATCH($D37&\"_\"&O$1,Data!$AF$2:$AF$688,0),MATCH(O$2,Data!$AF$2:$BE$2,0)),\"\"))","v":0.17206557040000001},{"$f":"IF(IFERROR(INDEX(Data!$AF$2:$BE$688,MATCH($D37&\"_\"&P$1,Data!$AF$2:$AF$688,0),MATCH(P$2,Data!$AF$2:$BE$2,0)),\"\")=\".\",\"n.a.\",IFERROR(INDEX(Data!$AF$2:$BE$688,MATCH($D37&\"_\"&P$1,Data!$AF$2:$AF$688,0),MATCH(P$2,Data!$AF$2:$BE$2,0)),\"\"))","v":0.1780237637},{"$f":"IF(IFERROR(INDEX(Data!$AF$2:$BG$688,MATCH($D37&\"_\"&Q$1,Data!$AF$2:$AF$688,0),MATCH(Q$2,Data!$AF$2:$BG$2,0)),\"\")=\".\",\"n.a.\",IFERROR(INDEX(Data!$AF$2:$BG$688,MATCH($D37&\"_\"&Q$1,Data!$AF$2:$AF$688,0),MATCH(Q$2,Data!$AF$2:$BG$2,0)),\"\"))","v":0.1544853242}]
[null,null,null,"SK","SK",{"$f":"IF(IFERROR(INDEX(Data!$AF$2:$BE$688,MATCH($D38&\"_\"&F$1,Data!$AF$2:$AF$688,0),MATCH(F$2,Data!$AF$2:$BE$2,0)),\"\")=\".\",\"n.a.\",IFERROR(INDEX(Data!$AF$2:$BE$688,MATCH($D38&\"_\"&F$1,Data!$AF$2:$AF$688,0),MATCH(F$2,Data!$AF$2:$BE$2,0)),\"\"))","v":0.15624639309999999},{"$f":"IF(IFERROR(INDEX(Data!$AF$2:$BE$688,MATCH($D38&\"_\"&G$1,Data!$AF$2:$AF$688,0),MATCH(G$2,Data!$AF$2:$BE$2,0)),\"\")=\".\",\"n.a.\",IFERROR(INDEX(Data!$AF$2:$BE$688,MATCH($D38&\"_\"&G$1,Data!$AF$2:$AF$688,0),MATCH(G$2,Data!$AF$2:$BE$2,0)),\"\"))","v":0.1532094779},{"$f":"IF(IFERROR(INDEX(Data!$AF$2:$BE$688,MATCH($D38&\"_\"&H$1,Data!$AF$2:$AF$688,0),MATCH(H$2,Data!$AF$2:$BE$2,0)),\"\")=\".\",\"n.a.\",IFERROR(INDEX(Data!$AF$2:$BE$688,MATCH($D38&\"_\"&H$1,Data!$AF$2:$AF$688,0),MATCH(H$2,Data!$AF$2:$BE$2,0)),\"\"))","v":0.15829750510000001},{"$f":"IF(IFERROR(INDEX(Data!$AF$2:$BE$688,MATCH($D38&\"_\"&I$1,Data!$AF$2:$AF$688,0),MATCH(I$2,Data!$AF$2:$BE$2,0)),\"\")=\".\",\"n.a.\",IFERROR(INDEX(Data!$AF$2:$BE$688,MATCH($D38&\"_\"&I$1,Data!$AF$2:$AF$688,0),MATCH(I$2,Data!$AF$2:$BE$2,0)),\"\"))","v":0.15729334580000001},{"$f":"IF(IFERROR(INDEX(Data!$AF$2:$BE$688,MATCH($D38&\"_\"&J$1,Data!$AF$2:$AF$688,0),MATCH(J$2,Data!$AF$2:$BE$2,0)),\"\")=\".\",\"n.a.\",IFERROR(INDEX(Data!$AF$2:$BE$688,MATCH($D38&\"_\"&J$1,Data!$AF$2:$AF$688,0),MATCH(J$2,Data!$AF$2:$BE$2,0)),\"\"))","v":0.16140252369999999},{"$f":"IF(IFERROR(INDEX(Data!$AF$2:$BE$688,MATCH($D38&\"_\"&K$1,Data!$AF$2:$AF$688,0),MATCH(K$2,Data!$AF$2:$BE$2,0)),\"\")=\".\",\"n.a.\",IFERROR(INDEX(Data!$AF$2:$BE$688,MATCH($D38&\"_\"&K$1,Data!$AF$2:$AF$688,0),MATCH(K$2,Data!$AF$2:$BE$2,0)),\"\"))","v":0.16337890329999999},{"$f":"IF(IFERROR(INDEX(Data!$AF$2:$BE$688,MATCH($D38&\"_\"&L$1,Data!$AF$2:$AF$688,0),MATCH(L$2,Data!$AF$2:$BE$2,0)),\"\")=\".\",\"n.a.\",IFERROR(INDEX(Data!$AF$2:$BE$688,MATCH($D38&\"_\"&L$1,Data!$AF$2:$AF$688,0),MATCH(L$2,Data!$AF$2:$BE$2,0)),\"\"))","v":0.15954575900000001},{"$f":"IF(IFERROR(INDEX(Data!$AF$2:$BE$688,MATCH($D38&\"_\"&M$1,Data!$AF$2:$AF$688,0),MATCH(M$2,Data!$AF$2:$BE$2,0)),\"\")=\".\",\"n.a.\",IFERROR(INDEX(Data!$AF$2:$BE$688,MATCH($D38&\"_\"&M$1,Data!$AF$2:$AF$688,0),MATCH(M$2,Data!$AF$2:$BE$2,0)),\"\"))","v":0.15763491739999999},{"$f":"IF(IFERROR(INDEX(Data!$AF$2:$BE$688,MATCH($D38&\"_\"&N$1,Data!$AF$2:$AF$688,0),MATCH(N$2,Data!$AF$2:$BE$2,0)),\"\")=\".\",\"n.a.\",IFERROR(INDEX(Data!$AF$2:$BE$688,MATCH($D38&\"_\"&N$1,Data!$AF$2:$AF$688,0),MATCH(N$2,Data!$AF$2:$BE$2,0)),\"\"))","v":0.1676162373},{"$f":"IF(IFERROR(INDEX(Data!$AF$2:$BE$688,MATCH($D38&\"_\"&O$1,Data!$AF$2:$AF$688,0),MATCH(O$2,Data!$AF$2:$BE$2,0)),\"\")=\".\",\"n.a.\",IFERROR(INDEX(Data!$AF$2:$BE$688,MATCH($D38&\"_\"&O$1,Data!$AF$2:$AF$688,0),MATCH(O$2,Data!$AF$2:$BE$2,0)),\"\"))","v":0.1754257951},{"$f":"IF(IFERROR(INDEX(Data!$AF$2:$BE$688,MATCH($D38&\"_\"&P$1,Data!$AF$2:$AF$688,0),MATCH(P$2,Data!$AF$2:$BE$2,0)),\"\")=\".\",\"n.a.\",IFERROR(INDEX(Data!$AF$2:$BE$688,MATCH($D38&\"_\"&P$1,Data!$AF$2:$AF$688,0),MATCH(P$2,Data!$AF$2:$BE$2,0)),\"\"))","v":0.1750039075},{"$f":"IF(IFERROR(INDEX(Data!$AF$2:$BG$688,MATCH($D38&\"_\"&Q$1,Data!$AF$2:$AF$688,0),MATCH(Q$2,Data!$AF$2:$BG$2,0)),\"\")=\".\",\"n.a.\",IFERROR(INDEX(Data!$AF$2:$BG$688,MATCH($D38&\"_\"&Q$1,Data!$AF$2:$AF$688,0),MATCH(Q$2,Data!$AF$2:$BG$2,0)),\"\"))","v":0.17600493880000001}]
[null,null,null,"EU","EU/EEA",{"$f":"IF(IFERROR(INDEX(Data!$AF$2:$BE$688,MATCH($D39&\"_\"&F$1,Data!$AF$2:$AF$688,0),MATCH(F$2,Data!$AF$2:$BE$2,0)),\"\")=\".\",\"n.a.\",IFERROR(INDEX(Data!$AF$2:$BE$688,MATCH($D39&\"_\"&F$1,Data!$AF$2:$AF$688,0),MATCH(F$2,Data!$AF$2:$BE$2,0)),\"\"))","v":0.1601266281},{"$f":"IF(IFERROR(INDEX(Data!$AF$2:$BE$688,MATCH($D39&\"_\"&G$1,Data!$AF$2:$AF$688,0),MATCH(G$2,Data!$AF$2:$BE$2,0)),\"\")=\".\",\"n.a.\",IFERROR(INDEX(Data!$AF$2:$BE$688,MATCH($D39&\"_\"&G$1,Data!$AF$2:$AF$688,0),MATCH(G$2,Data!$AF$2:$BE$2,0)),\"\"))","v":0.16027686720000001},{"$f":"IF(IFERROR(INDEX(Data!$AF$2:$BE$688,MATCH($D39&\"_\"&H$1,Data!$AF$2:$AF$688,0),MATCH(H$2,Data!$AF$2:$BE$2,0)),\"\")=\".\",\"n.a.\",IFERROR(INDEX(Data!$AF$2:$BE$688,MATCH($D39&\"_\"&H$1,Data!$AF$2:$AF$688,0),MATCH(H$2,Data!$AF$2:$BE$2,0)),\"\"))","v":0.16284816769999999},{"$f":"IF(IFERROR(INDEX(Data!$AF$2:$BE$688,MATCH($D39&\"_\"&I$1,Data!$AF$2:$AF$688,0),MATCH(I$2,Data!$AF$2:$BE$2,0)),\"\")=\".\",\"n.a.\",IFERROR(INDEX(Data!$AF$2:$BE$688,MATCH($D39&\"_\"&I$1,Data!$AF$2:$AF$688,0),MATCH(I$2,Data!$AF$2:$BE$2,0)),\"\"))","v":0.16317375689999999},{"$f":"IF(IFERROR(INDEX(Data!$AF$2:$BE$688,MATCH($D39&\"_\"&J$1,Data!$AF$2:$AF$688,0),MATCH(J$2,Data!$AF$2:$BE$2,0)),\"\")=\".\",\"n.a.\",IFERROR(INDEX(Data!$AF$2:$BE$688,MATCH($D39&\"_\"&J$1,Data!$AF$2:$AF$688,0),MATCH(J$2,Data!$AF$2:$BE$2,0)),\"\"))","v":0.16137718130000001},{"$f":"IF(IFERROR(INDEX(Data!$AF$2:$BE$688,MATCH($D39&\"_\"&K$1,Data!$AF$2:$AF$688,0),MATCH(K$2,Data!$AF$2:$BE$2,0)),\"\")=\".\",\"n.a.\",IFERROR(INDEX(Data!$AF$2:$BE$688,MATCH($D39&\"_\"&K$1,Data!$AF$2:$AF$688,0),MATCH(K$2,Data!$AF$2:$BE$2,0)),\"\"))","v":0.1617222784},{"$f":"IF(IFERROR(INDEX(Data!$AF$2:$BE$688,MATCH($D39&\"_\"&L$1,Data!$AF$2:$AF$688,0),MATCH(L$2,Data!$AF$2:$BE$2,0)),\"\")=\".\",\"n.a.\",IFERROR(INDEX(Data!$AF$2:$BE$688,MATCH($D39&\"_\"&L$1,Data!$AF$2:$AF$688,0),MATCH(L$2,Data!$AF$2:$BE$2,0)),\"\"))","v":0.1613677389},{"$f":"IF(IFERROR(INDEX(Data!$AF$2:$BE$688,MATCH($D39&\"_\"&M$1,Data!$AF$2:$AF$688,0),MATCH(M$2,Data!$AF$2:$BE$2,0)),\"\")=\".\",\"n.a.\",IFERROR(INDEX(Data!$AF$2:$BE$688,MATCH($D39&\"_\"&M$1,Data!$AF$2:$AF$688,0),MATCH(M$2,Data!$AF$2:$BE$2,0)),\"\"))","v":0.1678534559},{"$f":"IF(IFERROR(INDEX(Data!$AF$2:$BE$688,MATCH($D39&\"_\"&N$1,Data!$AF$2:$AF$688,0),MATCH(N$2,Data!$AF$2:$BE$2,0)),\"\")=\".\",\"n.a.\",IFERROR(INDEX(Data!$AF$2:$BE$688,MATCH($D39&\"_\"&N$1,Data!$AF$2:$AF$688,0),MATCH(N$2,Data!$AF$2:$BE$2,0)),\"\"))","v":0.15819464529999999},{"$f":"IF(IFERROR(INDEX(Data!$AF$2:$BE$688,MATCH($D39&\"_\"&O$1,Data!$AF$2:$AF$688,0),MATCH(O$2,Data!$AF$2:$BE$2,0)),\"\")=\".\",\"n.a.\",IFERROR(INDEX(Data!$AF$2:$BE$688,MATCH($D39&\"_\"&O$1,Data!$AF$2:$AF$688,0),MATCH(O$2,Data!$AF$2:$BE$2,0)),\"\"))","v":0.16305946160000001},{"$f":"IF(IFERROR(INDEX(Data!$AF$2:$BE$688,MATCH($D39&\"_\"&P$1,Data!$AF$2:$AF$688,0),MATCH(P$2,Data!$AF$2:$BE$2,0)),\"\")=\".\",\"n.a.\",IFERROR(INDEX(Data!$AF$2:$BE$688,MATCH($D39&\"_\"&P$1,Data!$AF$2:$AF$688,0),MATCH(P$2,Data!$AF$2:$BE$2,0)),\"\"))","v":0.16729935430000001},{"$f":"IF(IFERROR(INDEX(Data!$AF$2:$BG$688,MATCH($D39&\"_\"&Q$1,Data!$AF$2:$AF$688,0),MATCH(Q$2,Data!$AF$2:$BG$2,0)),\"\")=\".\",\"n.a.\",IFERROR(INDEX(Data!$AF$2:$BG$688,MATCH($D39&\"_\"&Q$1,Data!$AF$2:$AF$688,0),MATCH(Q$2,Data!$AF$2:$BG$2,0)),\"\"))","v":0.17180227340000001}]
[null,null,null,"GB",{"$f":"IF(OR($G$1=\"SVC_13\",$G$1=\"SVC_12\",$G$1=\"LIQ_17\"),IF(OR(H40=\"n.a.\",I40=\"n.a.\",J40=\"n.a.\",K40=\"n.a.\",L40=\"n.a.\",M40=\"n.a.\",N40=\"n.a.\",O40=\"n.a.\",P40=\"n.a.\",Q40=\"n.a.\"),$D40&\"*\",$D40),IF($G$1=\"PFT_43\",IF(OR(M40=\"n.a.\",N40=\"n.a.\",O40=\"n.a.\",P40=\"n.a.\",Q40=\"n.a.\"),$D40&\"*\",$D40),IF(OR(F40=\"n.a.\",G40=\"n.a.\",H40=\"n.a.\",I40=\"n.a.\",J40=\"n.a.\",K40=\"n.a.\",L40=\"n.a.\",M40=\"n.a.\",N40=\"n.a.\",O40=\"n.a.\",P40=\"n.a.\",Q40=\"n.a.\"),$D40&\"*\",$D40)))","v":"GB"},{"$f":"IF(IFERROR(INDEX(Data!$AF$2:$BE$688,MATCH($D40&\"_\"&F$1,Data!$AF$2:$AF$688,0),MATCH(F$2,Data!$AF$2:$BE$2,0)),\"\")=\".\",\"n.a.\",IFERROR(INDEX(Data!$AF$2:$BE$688,MATCH($D40&\"_\"&F$1,Data!$AF$2:$AF$688,0),MATCH(F$2,Data!$AF$2:$BE$2,0)),\"\"))","v":0.1682615308},{"$f":"IF(IFERROR(INDEX(Data!$AF$2:$BE$688,MATCH($D40&\"_\"&G$1,Data!$AF$2:$AF$688,0),MATCH(G$2,Data!$AF$2:$BE$2,0)),\"\")=\".\",\"n.a.\",IFERROR(INDEX(Data!$AF$2:$BE$688,MATCH($D40&\"_\"&G$1,Data!$AF$2:$AF$688,0),MATCH(G$2,Data!$AF$2:$BE$2,0)),\"\"))","v":0.1699738573},{"$f":"IF(IFERROR(INDEX(Data!$AF$2:$BE$688,MATCH($D40&\"_\"&H$1,Data!$AF$2:$AF$688,0),MATCH(H$2,Data!$AF$2:$BE$2,0)),\"\")=\".\",\"n.a.\",IFERROR(INDEX(Data!$AF$2:$BE$688,MATCH($D40&\"_\"&H$1,Data!$AF$2:$AF$688,0),MATCH(H$2,Data!$AF$2:$BE$2,0)),\"\"))","v":0.17665069019999999},{"$f":"IF(IFERROR(INDEX(Data!$AF$2:$BE$688,MATCH($D40&\"_\"&I$1,Data!$AF$2:$AF$688,0),MATCH(I$2,Data!$AF$2:$BE$2,0)),\"\")=\".\",\"n.a.\",IFERROR(INDEX(Data!$AF$2:$BE$688,MATCH($D40&\"_\"&I$1,Data!$AF$2:$AF$688,0),MATCH(I$2,Data!$AF$2:$BE$2,0)),\"\"))","v":0.17857998250000001},{"$f":"IF(IFERROR(INDEX(Data!$AF$2:$BE$688,MATCH($D40&\"_\"&J$1,Data!$AF$2:$AF$688,0),MATCH(J$2,Data!$AF$2:$BE$2,0)),\"\")=\".\",\"n.a.\",IFERROR(INDEX(Data!$AF$2:$BE$688,MATCH($D40&\"_\"&J$1,Data!$AF$2:$AF$688,0),MATCH(J$2,Data!$AF$2:$BE$2,0)),\"\"))","v":0.1763269439},{"$f":"IF(IFERROR(INDEX(Data!$AF$2:$BE$688,MATCH($D40&\"_\"&K$1,Data!$AF$2:$AF$688,0),MATCH(K$2,Data!$AF$2:$BE$2,0)),\"\")=\".\",\"n.a.\",IFERROR(INDEX(Data!$AF$2:$BE$688,MATCH($D40&\"_\"&K$1,Data!$AF$2:$AF$688,0),MATCH(K$2,Data!$AF$2:$BE$2,0)),\"\"))","v":0.17616357590000001},{"$f":"IF(IFERROR(INDEX(Data!$AF$2:$BE$688,MATCH($D40&\"_\"&L$1,Data!$AF$2:$AF$688,0),MATCH(L$2,Data!$AF$2:$BE$2,0)),\"\")=\".\",\"n.a.\",IFERROR(INDEX(Data!$AF$2:$BE$688,MATCH($D40&\"_\"&L$1,Data!$AF$2:$AF$688,0),MATCH(L$2,Data!$AF$2:$BE$2,0)),\"\"))","v":0.17423465839999999},{"$f":"IF(IFERROR(INDEX(Data!$AF$2:$BE$688,MATCH($D40&\"_\"&M$1,Data!$AF$2:$AF$688,0),MATCH(M$2,Data!$AF$2:$BE$2,0)),\"\")=\".\",\"n.a.\",IFERROR(INDEX(Data!$AF$2:$BE$688,MATCH($D40&\"_\"&M$1,Data!$AF$2:$AF$688,0),MATCH(M$2,Data!$AF$2:$BE$2,0)),\"\"))","v":0.1829646805},{"$f":"IF(IFERROR(INDEX(Data!$AF$2:$BE$688,MATCH($D40&\"_\"&N$1,Data!$AF$2:$AF$688,0),MATCH(N$2,Data!$AF$2:$BE$2,0)),\"\")=\".\",\"n.a.\",IFERROR(INDEX(Data!$AF$2:$BE$688,MATCH($D40&\"_\"&N$1,Data!$AF$2:$AF$688,0),MATCH(N$2,Data!$AF$2:$BE$2,0)),\"\"))","v":0.1746207883},{"$f":"IF(IFERROR(INDEX(Data!$AF$2:$BE$688,MATCH($D40&\"_\"&O$1,Data!$AF$2:$AF$688,0),MATCH(O$2,Data!$AF$2:$BE$2,0)),\"\")=\".\",\"n.a.\",IFERROR(INDEX(Data!$AF$2:$BE$688,MATCH($D40&\"_\"&O$1,Data!$AF$2:$AF$688,0),MATCH(O$2,Data!$AF$2:$BE$2,0)),\"\"))","v":0.17744945819999999},{"$f":"IF(IFERROR(INDEX(Data!$AF$2:$BE$688,MATCH($D40&\"_\"&P$1,Data!$AF$2:$AF$688,0),MATCH(P$2,Data!$AF$2:$BE$2,0)),\"\")=\".\",\"n.a.\",IFERROR(INDEX(Data!$AF$2:$BE$688,MATCH($D40&\"_\"&P$1,Data!$AF$2:$AF$688,0),MATCH(P$2,Data!$AF$2:$BE$2,0)),\"\"))","v":0.18197543620000001},{"$f":"IF(IFERROR(INDEX(Data!$AF$2:$BG$688,MATCH($D40&\"_\"&Q$1,Data!$AF$2:$AF$688,0),MATCH(Q$2,Data!$AF$2:$BG$2,0)),\"\")=\".\",\"n.a.\",IFERROR(INDEX(Data!$AF$2:$BG$688,MATCH($D40&\"_\"&Q$1,Data!$AF$2:$AF$688,0),MATCH(Q$2,Data!$AF$2:$BG$2,0)),\"\"))","v":0.18301821030000001}]
[]
[null,null,null,null,"* Data is not disclosed because it was reported for less than three institutions."]
[null,null,null,null,{"$f":"IF(Start!$G$8=\"PFT_43\",\"Data for Cost of Risk are shown here as a positive value, even though they are commonly expenses.\",\"\")","v":""}]

{"sheet":"RI database","index":17,"n_rows":29,"n_cols":18,"rows_kept":29,"cut":false,"hidden":false,"merged":[[27,1,27,17],[25,1,25,17],[1,15,1,17],[6,6,6,17],[1,6,1,8],[1,9,1,11],[1,12,1,14]]}
[null,"Risk Indicators in the Dashboard"]
[null,"Nr","KRI code","Risk Indicator code","Dashboard name","Formula","Data Point A(1)",null,null,"Data Point B(1)",null,null,"Data Point C(1)",null,null,"Data Point D(1)"]
[null,null,null,null,null,null,"Template","Row","Column","Template","Row","Column","Template","Row","Column","Template","Row","Column"]
[null,1,1,"SVC_1","Tier 1 capital ratio","Tier 1 capital (A) / Total risk exposure amount (B)","C 01.00","015","010","C 02.00","010","010"]
[null,2,"EU banks’ capital ratios have significantly improved. The CET1 ratio reached its highest level, increasing by 50 bps to 14.1% in Q3 2016. This effect is simultaneously explained by the growth in capital (mainly driven by higher ‘retained earnings’) as well as the decrease of RWAs, primarily its market risk component. On a fully loaded basis, the CET1 ratio showed a similar development, increasing by 40 bps to 13.6% when compared to the past quarter. Also for Tier 1 and Total capital ratios the trend was comparable, both increasing compared with Q2 2015.","SVC_2","Total capital ratio","Own funds (A) / Total risk exposure amount (B)","C 01.00","010","010","C 02.00","010","010"]
[null,3,3,"SVC_3","CET 1 capital ratio","Common equity TIER 1 capital (A) / Total risk exposure amount (B)","C 01.00","020","010","C 02.00","010","010"]
[null,4,"The speed of improvement in banks' asset quality remains slow. The ratio of non-performing loans (NPLs) continued the trend of previous quarters, by decreasing 10 bps to 5.4% in Q3 2016. Despite this improvement, the dispersion among countries remains broad, ranging from about 1% to almost 50%. Smaller banks’ NPL ratio was higher (23.7%), compared to medium-sized (11.9%) and large banks (4.0%). A declining ratio of forborne loans to total loans (FBL ratio) – from 3.6% in the previous year to 3.4% in Q3 2016 – confirmed the trend in asset quality.","SVC_29","CET 1 ratio (fully loaded)","Common equity TIER 1 capital (A) / Total risk exposure amount (B) with both, numerator and denominator, being adjusted for transitional effects","{C 01.00(r020, c10) - C 05.01(r010, c010) - C 01.00(r440, c010) + MIN ([C 01.00(r530, c10) - C 01.00(r740, c10) - C 05.01(r010, c020) - C 01.00(r720, c10) + MIN ([C 01.00(r750, c10) - C 01.00(r970, c10) - C 05.01(r010, c030)], 0)], 0)} / ( {C 02.00;r010;c010} - {C 05.01;r010;c040} )"]
[null,5,null,"SVC_13","Leverage ratio","Tier 1 capital - transitional definition (A) / Total Leverage Ratio exposure - using a transitional definition of Tier 1 capital (B)","C 47.00","320","010","C 47.00","300","010"]
[null,6,null,"SVC_12","Leverage ratio (fully phased-in definition of Tier 1)","Tier 1 capital - fully phased-in definition (A) / Total Leverage Ratio exposure - using a fully phased-in definition of Tier 1 capital (B)","C 47.00","310","010","C 47.00","290","010"]
[null,7,93,"AQT_3.2","Share of non‐performing loans and advances\n(NPL ratio)","Non-performing loans and advances (A) / Total gross loans and advances (B)","F 18.00","005, 070, 191, 221","060","F 18.00","005, 070, 191, 221","010"]
[null,8,235,"AQT_41.2","Coverage ratio of non-performing loans and advances","Accumulated impairment, accumulated negative changes in fair value due to credit risk for non-performing loans and advances (A) / Total gross non-performing loans and advances (B)","F 18.00","005, 070, 191, 221",150,"F 18.00","005,070, 191, 221","060"]
[null,9,239,"AQT_42.2","Forbearance ratio - Loans and advances (gross amount) (FBL)","Exposures with forbearance measures for loans and advances [A] / total instruments on BS [B]","F 19.00","005, 070, 191, 221","010","F 18.00","005, 070, 191, 221","010"]
[null,10,92,"AQT_3.1","Non-performing debt instruments (loans and advances & debt securities) other than held for trading to total gross debt instruments (NPE ratio)","Non-performing debt instruments (loans and advances & debt securities) other than held for trading (A) / Total gross debt instruments (B)","F 18.00","330","060","F 18.00","330","010"]
[null,11,22,"PFT_21","Return on equity (numerator annualised, denominator as average)(2)","Profit or loss for the year (A) / Total equity (B)","F 02.00",670,"010","F 01.03",300,"010"]
[null,12,25,"PFT_24","Return on assets (numerator annualised, denominator as average)(2)","Profit or loss for the year (A) / Total assets (B)","F 02.00",670,"010","F 01.01",380,"010"]
[null,13,24,"PFT_23","Cost to income ratio","Administrative and depreciation expenses (A) / Total net operating income (B)","F 02.00","360, 385, 390","010","F 02.00",355,"010"]
[null,14,26,"PFT_25","Net interest income to total net operating income","Net interest income (Interest income (A) - Interest expenses (B)) / Total net operating income (C)","F 02.00","010","010","F 02.00","090","010","F 02.00",355,"010"]
[null,15,27,"PFT_26","Net fee and comission income to total net operating income","Net fee and commission income (Fee and commission income (A) - Fee and commission expenses (B)) / Total net operating income  (C)","F 02.00",200,"010","F 02.00",210,"010","F 02.00",355,"010"]
[null,16,30,"PFT_29","Net trading income to total net operating income","Net gains or losses on financial assets and liabilities held for trading (A) / Total net operating income (B)","F 02.00","280, 285 ","010","F 02.00",355,"010"]
[null,17,237,"PFT_41","Net interest margin (numerator annualised, denominator as average)(2)","Interest income (A) - interest expenses (B) / Interest earning assets (C)","F 02.00","010","010","F 02.00","090","010","F 01.01","010, 080, 090, 094, 095, 120, 130, 173, 174, 177, 178, 232, 233, 236, 237, 098, 099, 143, 144, 181","010"]
[null,18,null,"PFT_43","Cost of risk (3)","(3) [Increases due to origination and acquisition + Changes due to change in credit risk (net) + Changes due to modifications without derecognition (net) + Changes due to update in the institution's methodology for estimation (net)] (annualised) (A) / Total gross loans and advances subject to impairment (B + C)","F 12.01","080, 250, 430","020, 040, 050, 070, 110, 120, 125","F 04.03.1",110,"015, 030, 040","F 04.04.1","070","015, 030, 040"]
[null,19,87,"FND_32","Loans and advances-to-deposits ratio for households and non-financial corporations","Total loans and advances to non-financial corporations and households (A + B) / Total deposits to non-financial corporations and households (C)","F 05.01","080","050, 060","F 04.01","170, 180","010","F 08.01","260, 310","010, 020, 030, 034, 035"]
[null,20,88,"FND_33","Asset encumbrance ratio","(4) Total encumbered assets and collateral (A) / Total assets and collateral (B+C) ","F 32.01 & F32.02","010, 130","010","F 32.01","010","010, 060","F 32.02","130","010, 040"]
[null,21,null,"LIQ_17","Liquidity coverage ratio","Liquidity Buffer (A) / Net Liquidity Outflow (B)","C 76.00","010","010","C 76.00","020","010"]
[]
[null,"(1) The data points refer to the latest version of either FINREP tables (\"F\") or COREP tables (\"C\") (http://www.eba.europa.eu/regulation-and-policy/supervisory-reporting/implementing-technical-standard-on-supervisory-reporting). For more information regarding the Risk Indicators formulas, applicable to each reporting framework, please see the List and Methodological Guide available here (http://www.eba.europa.eu/risk-analysis-and-data/risk-indicators-guide)."]
[null,"(2) For the calculation of the average the previous December figure is used as an “anchor” for the subsequent year, and the second the number is taken from the latest quarter observation, i.e. Q1, Q2, Q3 or Q4."]
[null,"(3) Applicable only to IFRS reporting banks. For nGAAP banks the formula is: Increases and other adjustments in allowances  due to amounts set aside for estimated loan losses during the period + Decreases due to amounts reversed for estimated loan losses during the period] (A) / Total gross loans and advances subject to impairment (B + C + D)"]
[null,"(4) Encumbered assets (recognised on the balance sheet) are considered at their carrying value, collateral received is considered as at fair value."]

{"sheet":"Annex database","index":18,"n_rows":164,"n_cols":15,"rows_kept":164,"cut":false,"hidden":false,"merged":[[1,14,1,16],[109,1,111,1],[109,3,109,4],[122,1,123,1],[159,1,160,10],[1,1,2,1],[1,2,2,2],[1,3,2,3],[1,4,2,4],[1,5,1,7],[1,8,1,10]]}
[null,"Risk Indicators in the Statistical Annex"]
[null,"Annex series","Risk Indicator code","RI's parameter shown","Formula","Data Point A(1)",null,null,"Data Point B(1)",null,null,null,null,null,"Data Point D(1)"]
[null,null,null,null,null,"Template","Row","Column","Template","Row","Column"]
[null,"Cash balances","RDB_1","Ratio","Cash positions (A) / Total Assets (B)","F 01.01","020, 030, 040","010","F 01.01",380,"010"]
[null,"Equity instruments","RDB_2","Ratio","Equity instruments (A) / Total Assets (B)","F 01.01","070, 093, 097, 110, 142, 172, 176, 235, 390","010","F 01.01",380,"010"]
[null,"Debt securities","RDB_3","Ratio","Debt securities (A) / Total Assets (B)","F 01.01","080, 094, 098, 120, 173, 143 ,177, 182, 232, 236","010","F 01.01",380,"010"]
[null,"Loans and advances","RDB_4","Ratio","Loans and advances (A) / Total Assets (B)","F 01.01","090, 095, 099, 130, 144, 174, 178, 183, 233, 237","010","F 01.01",380,"010"]
[null,"Derivatives","RDB_5","Ratio","Derivatives (A) / Total Assets (B)","F 01.01","060, 092, 240","010","F 01.01",380,"010"]
[null,"Other assets","RDB_6 (4)","Ratio","Other assets (A) / Total Assets (B)","F 01.01","250, 260, 270, 300, 330, 360, 370, 375","010","F 01.01",380,"010"]
[null,"Total assets","RDB_1","Denominator","Total assets","F 01.01",380,"010"]
[null,"Total financial assets ","AQT_68.1 (4)","Denominator","Total financial instruments on the asset side","F01.01","010, 050, 091, 096, 100, 141, 171, 175, 181, 231, 234, 240","010"]
[null,"Share of financial assets valued at (amortised) cost ","AQT_68.3 (4)","Ratio","Financial instruments measured at (amortised) cost (A) / Total financial instruments on the asset side (B)","F01.01","010, 181, 231, 234","010","F01.01","010, 050, 091, 096, 100, 141, 171, 175, 181, 231, 234, 240","010"]
[null,"Share of financial assets at fair value through OCI ","AQT_68.2 (4)","Ratio","Financial instruments measured at FV through other comprehensive income (A) / Total financial instruments on the asset side (B)","F01.01","141, 175","010","F01.01","010, 050, 091, 096, 100, 141, 171, 175, 181, 231, 234, 240","010"]
[null,"Share of financial assets at fair value through profit&loss (3)","AQT_68.1 (4)","Ratio","Financial instruments measured at FV through P&L (A) / Total financial instruments on the asset side (B)","F01.01","050, 091, 096, 100, 171, 240","010","F01.01","010, 050, 091, 096, 100, 141, 171, 175, 181, 231, 234, 240","010"]
[null,"Loans and advances","AQT_3.2","Denominator","Total gross loans and advances","F 18.00","005, 070, 191, 221","010","n/a","n/a","n/a"]
[null,"Loans and advances: HHs","n/a",null,"Gross carrying amount of loans at amortised costs to Households","F 18.00","150","010","n/a","n/a","n/a"]
[null,"Loans and advances: Mortgages","n/a",null,"Gross carrying amount of loans at amortised costs to Households of which: Loans collateralised by residential immovable property","F 18.00","160","010","n/a","n/a","n/a"]
[null,"Loans and advances: NFCs","n/a",null,"Gross carrying amount of loans at amortised costs to Non-financial corporations","F 18.00","120","010","n/a","n/a","n/a"]
[null,"Loans and advances: SME","n/a",null,"Gross carrying amount of loans at amortised costs to NFCs of which: Small and Medium-sized Enterprises","F 18.00","130","010","n/a","n/a","n/a"]
[null,"Loans and advances: CRE","n/a",null,"Gross carrying amount of loans at amortised costs to NFCs of which: Loans collateralised by commercial immovable property","F 18.00","140","010","n/a","n/a","n/a"]
[null,"Non-performing loans and advances","AQT_3.2","Numerator","Non‐performing loans and advances","F 18.00","005, 070, 191, 221","060","n/a","n/a","n/a"]
[null,"Non-performing loans and advances: HHs","n/a",null,"Gross carrying amount of  non-performing loans at amortised costs to Households","F 18.00","150","060","n/a","n/a","n/a"]
[null,"Non-performing loans and advances: Mortgages","n/a",null,"Gross carrying amount of non-performing loans at amortised costs to Households of which: Loans collateralised by residential immovable property","F 18.00","160","060","n/a","n/a","n/a"]
[null,"Non-performing loans and advances: NFCs","n/a",null,"Gross carrying amount of non-performing loans at amortised costs to Non-financial corporations","F 18.00","120","060","n/a","n/a","n/a"]
[null,"Non-performing loans and advances: SME","n/a",null,"Gross carrying amount of non-performing loans at amortised costs to NFCs of which: Small and Medium-sized Enterprises","F 18.00","130","060","n/a","n/a","n/a"]
[null,"Non-performing loans and advances: CRE","n/a",null,"Gross carrying amount of non-performing loans at amortised costs to NFCs of which: Loans collateralised by commercial immovable property","F 18.00","140","060","n/a","n/a","n/a"]
[null,"NPL Ratio","AQT_3.2","Ratio","Non‐performing loans and advances (A) / Total gross loans and advances (B)","F 18.00","005,070, 191, 221","060","F 18.00","005,070, 191, 221","010"]
[null,"NPL ratio: HHs","n/a","Ratio","Gross carrying amounts of loans at amortised costs to Households: Non-performing (A) / Gross carrying amount (B)","F 18.00","150","060","F 18.00","150","010"]
[null,"NPL ratio: Mortgages","n/a","Ratio","Gross carrying amounts of loans at amortised costs to Households of which: Loans collateralised by residential immovable property: Non-performing  (A) / Gross carrying amount (B)","F 18.00","160","060","F 18.00","160","010"]
[null,"NPL ratio: NFCs","n/a","Ratio","Gross carrying amounts of loans at amortised costs to Non-financial corporations: Non-performing  (A) / Gross carrying amount (B)","F 18.00","120","060","F 18.00","120","010"]
[null,"NPL ratio: SME","n/a","Ratio","Gross carrying amounts of loans at amortised costs to NFCs of which: Small and Medium-sized Enterprises: Non-performing  (A) / Gross carrying amount (B)","F 18.00","130","060","F 18.00","130","010"]
[null,"NPL ratio: CRE","n/a","Ratio","Gross carrying amounts of loans at amortised costs to NFCs of which: Loans collateralised by commercial immovable property: Non-performing  (A) / Gross carrying amount (B)","F 18.00","140","060","F 18.00","140","010"]
[null,"Coverage ratio of non-performing loans and advances","AQT_41.2","Ratio","Accumulated impairment, accumulated negative changes in fair value due to credit risk for non-performing loans and advances (A) / Total gross non-performing loans and advances (B)","F 18.00","005,070, 191, 221",150,"F 18.00","005, 070, 191, 221","060"]
[null,"Coverage ratio: HHs","n/a","Ratio","Gross carrying amounts of loans at amortised costs to Households: Accumulated impairment (A) / Non-performing (B)","F 18.00","150","150","F18.00","150","060"]
[null,"Coverage ratio: Mortgages","n/a","Ratio","Gross carrying amounts of loans at amortised costs to Households of which: Loans collateralised by residential immovable property: Accumulated impairment (A) / Non-performing (B)","F 18.00","160","150","F18.00","160","060"]
[null,"Coverage ratio: NFCs","n/a","Ratio","Gross carrying amounts of loans at amortised costs to Non-financial corporations: Accumulated impairment (A) / Non-performing (B)","F 18.00","120","150","F18.00","120","060"]
[null,"Coverage ratio: SME","n/a","Ratio","Gross carrying amounts of loans at amortised costs to NFCs of which: Small and Medium-sized Enterprises Accumulated impairment (A) / Non-performing (B)","F 18.00","130","150","F18.00","130","060"]
[null,"Coverage ratio: CRE","n/a","Ratio","Gross carrying amounts of loans at amortised costs to NFCs of which: Loans collateralised by commercial immovable property Accumulated impairment (A) / Non-performing (B)","F 18.00","140","150","F18.00","140","060"]
[null,"NFCs loans and advances - A Agriculture, forestry and fishing","n/a","Ratio","NFCs loans and advances - A Agriculture, forestry and fishing (A) / Total gross carrying amount Loans and advances (B)","F 06.01","010","010","F06.01","190","010"]
[null,"NFCs loans and advances - B Mining and quarrying","n/a","Ratio","NFCs loans and advances - B Mining and quarrying (A) / Total gross carrying amount Loans and advances (B)","F 06.01","020","010","F06.01","190","010"]
[null,"NFCs loans and advances - C Manufacturing","n/a","Ratio","NFCs loans and advances - C Manufacturing (A) / Total gross carrying amount Loans and advances (B)","F 06.01","030","010","F06.01","190","010"]
[null,"NFCs loans and advances - D Electricity, gas, steam and air conditioning supply","n/a","Ratio","NFCs loans and advances - D Electricity, gas, steam and air conditioning supply (A) / Total gross carrying amount Loans and advances (B)","F 06.01","040","010","F06.01","190","010"]
[null,"NFCs loans and advances - E Water supply","n/a","Ratio","NFCs loans and advances - E Water supply (A) / Total gross carrying amount Loans and advances (B)","F 06.01","050","010","F06.01","190","010"]
[null,"NFCs loans and advances - F Construction","n/a","Ratio","NFCs loans and advances - F Construction (A) / Total gross carrying amount Loans and advances (B)","F 06.01","060","010","F06.01","190","010"]
[null,"NFCs loans and advances - G Wholesale and retail trade","n/a","Ratio","NFCs loans and advances - G Wholesale and retail trade (A) / Total gross carrying amount Loans and advances (B)","F 06.01","070","010","F06.01","190","010"]
[null,"NFCs loans and advances - H Transport and storage","n/a","Ratio","NFCs loans and advances - H Transport and storage (A) / Total gross carrying amount Loans and advances (B)","F 06.01","080","010","F06.01","190","010"]
[null,"NFCs loans and advances - I Accommodation and food service activities","n/a","Ratio","NFCs loans and advances - I Accommodation and food service activities (A) / Total gross carrying amount Loans and advances (B)","F 06.01","090","010","F06.01","190","010"]
[null,"NFCs loans and advances - J Information and communication","n/a","Ratio","NFCs loans and advances - J Information and communication (A) / Total gross carrying amount Loans and advances (B)","F 06.01","100","010","F06.01","190","010"]
[null,"NFCs loans and advances - K Financial and insurance activities","n/a","Ratio","NFCs loans and advances - K Financial and insurance activities (A) / Total gross carrying amount Loans and advances (B)","F 06.01","105","010","F06.01","190","010"]
[null,"NFCs loans and advances - L Real estate activities","n/a","Ratio","NFCs loans and advances - L Real estate activities (A) / Total gross carrying amount Loans and advances (B)","F 06.01","110","010","F06.01","190","010"]
[null,"NFCs loans and advances - M Professional, scientific and technical activities","n/a","Ratio","NFCs loans and advances - M Professional, scientific and technical activities (A) / Total gross carrying amount Loans and advances (B)","F 06.01","120","010","F06.01","190","010"]
[null,"NFCs loans and advances - N Administrative and support service activities","n/a","Ratio","NFCs loans and advances - N Administrative and support service activities (A) / Total gross carrying amount Loans and advances (B)","F 06.01","130","010","F06.01","190","010"]
[null,"NFCs loans and advances - O Public administration and defence, compulsory social security","n/a","Ratio","NFCs loans and advances - O Public administration and defence, compulsory social security (A) / Total gross carrying amount Loans and advances (B)","F 06.01","140","010","F06.01","190","010"]
[null,"NFCs loans and advances - P Education","n/a","Ratio","NFCs loans and advances - P Education (A) / Total gross carrying amount Loans and advances (B)","F 06.01","150","010","F06.01","190","010"]
[null,"NFCs loans and advances - Q Human health services and social work activities","n/a","Ratio","NFCs loans and advances - Q Human health services and social work activities (A) / Total gross carrying amount Loans and advances (B)","F 06.01","160","010","F06.01","190","010"]
[null,"NFCs loans and advances - R Arts, entertainment and recreation","n/a","Ratio","NFCs loans and advances - R Arts, entertainment and recreation (A) / Total gross carrying amount Loans and advances (B)","F 06.01","170","010","F06.01","190","010"]
[null,"NFCs loans and advances - S Other services","n/a","Ratio","NFCs loans and advances - S Other services (A) / Total gross carrying amount Loans and advances (B)","F 06.01","180","010","F06.01","190","010"]
[null,"NFCs NPLs - A Agriculture, forestry and fishing","n/a","Ratio","NFCs loans and advances - A Agriculture, forestry and fishing : Non-performing (A) /Loans and advances (B)","F 06.01","010","012","F06.01","010","010"]
[null,"NFCs NPLs - B Mining and quarrying","n/a","Ratio","NFCs loans and advances - B Mining and quarrying : Non-performing (A) /Loans and advances (B)","F 06.01","020","012","F06.01","020","010"]
[null,"NFCs NPLs - C Manufacturing","n/a","Ratio","NFCs loans and advances - C Manufacturing : Non-performing (A) /Loans and advances (B)","F 06.01","030","012","F06.01","030","010"]
[null,"NFCs NPLs - D Electricity, gas, steam and air conditioning supply","n/a","Ratio","NFCs loans and advances - D Electricity, gas, steam and air conditioning supply : Non-performing (A) /Loans and advances (B)","F 06.01","040","012","F06.01","040","010"]
[null,"NFCs NPLs - E Water supply","n/a","Ratio","NFCs loans and advances - E Water supply : Non-performing (A) /Loans and advances (B)","F 06.01","050","012","F06.01","050","010"]
[null,"NFCs NPLs - F Construction","n/a","Ratio","NFCs loans and advances - F Construction : Non-performing (A) /Loans and advances (B)","F 06.01","060","012","F06.01","060","010"]
[null,"NFCs NPLs - G Wholesale and retail trade","n/a","Ratio","NFCs loans and advances - G Wholesale and retail trade : Non-performing (A) /Loans and advances (B)","F 06.01","070","012","F06.01","070","010"]
[null,"NFCs NPLs - H Transport and storage","n/a","Ratio","NFCs loans and advances - H Transport and storage : Non-performing (A) /Loans and advances (B)","F 06.01","080","012","F06.01","080","010"]
[null,"NFCs NPLs - I Accommodation and food service activities","n/a","Ratio","NFCs loans and advances - I Accommodation and food service activities : Non-performing (A) /Loans and advances (B)","F 06.01","090","012","F06.01","090","010"]
[null,"NFCs NPLs - J Information and communication","n/a","Ratio","NFCs loans and advances - J Information and communication : Non-performing (A) /Loans and advances (B)","F 06.01","100","012","F06.01","100","010"]
[null,"NFCs NPLs - K Financial and insurance activities","n/a","Ratio","NFCs loans and advances - K Financial and insurance activities : Non-performing (A) /Loans and advances (B)","F 06.01","105","012","F06.01","105","010"]
[null,"NFCs NPLs - L Real estate activities","n/a","Ratio","NFCs loans and advances - L Real estate activities : Non-performing (A) /Loans and advances (B)","F 06.01","110","012","F06.01","110","010"]
[null,"NFCs NPLs - M Professional, scientific and technical activities","n/a","Ratio","NFCs loans and advances - M Professional, scientific and technical activities : Non-performing (A) /Loans and advances (B)","F 06.01","120","012","F06.01","120","010"]
[null,"NFCs NPLs - N Administrative and support service activities","n/a","Ratio","NFCs loans and advances - N Administrative and support service activities : Non-performing (A) /Loans and advances (B)","F 06.01","130","012","F06.01","130","010"]
[null,"NFCs NPLs - O Public administration and defence, compulsory social security","n/a","Ratio","NFCs loans and advances - O Public administration and defence, compulsory social security : Non-performing (A) /Loans and advances (B)","F 06.01","140","012","F06.01","140","010"]
[null,"NFCs NPLs - P Education","n/a","Ratio","NFCs loans and advances - P Education : Non-performing (A) /Loans and advances (B)","F 06.01","150","012","F06.01","150","010"]
[null,"NFCs NPLs - Q Human health services and social work activities","n/a","Ratio","NFCs loans and advances - Q Human health services and social work activities : Non-performing (A) /Loans and advances (B)","F 06.01","160","012","F06.01","160","010"]
[null,"NFCs NPLs - R Arts, entertainment and recreation","n/a","Ratio","NFCs loans and advances - R Arts, entertainment and recreation : Non-performing (A) /Loans and advances (B)","F 06.01","170","012","F06.01","170","010"]
[null,"NFCs NPLs - S Other services","n/a","Ratio","NFCs loans and advances - S Other services : Non-performing (A) /Loans and advances (B)","F 06.01","180","012","F06.01","180","010"]
[null,"Proportion of exposures to NACE L (Real Estate Activities)","n/a","Ratio","Exposures to NACE L (Real Estate Activities) (A) / Total exposures to non-financial corporations (B)","F 20.07.1","110","010","F 20.07.1","190","010"]
[null,"Non-performing exposures to NACE L (Real Estate Activities)","n/a","Ratio","Non-performing exposures to NACE L (A) / Total exposures to NACE L (Real Estate Activities) (B)","F 20.07.1","110","012","F 20.07.1","110","010"]
[null,"Proportion of exposures to NACE F (Construction)","n/a","Ratio","Exposures to NACE F (Construction) (A) / Total exposures to non-financial corporations (B)","F 20.07.1","060","010","F 20.07.1","190","010"]
[null,"Non-performing exposures to NACE F (Construction)","n/a","Ratio","Non-performing exposures to NACE F (A) / Total exposures to NACE F (Construction) (B)","F 20.07.1","060","012","F 20.07.1","060","010"]
[null,"Stage 1 loans and advances (3)","AQT_65","Ratio"," Stage 1 loans and advances at amortised cost (A) / Sum of stage 1, 2 and 3 loans and advances at amortised cost (B)","F 04.04.1","070","015","F 04.04.1","070","015, 030, 040"]
[null,"Stage 2 loans and advances (3)","AQT_66","Ratio"," Stage 2 loans and advances at amortised cost (A) / Sum of stage 1, 2 and 3 loans and advances at amortised cost (B)","F 04.04.1","070","030","F 04.04.1","070","015, 030, 040"]
[null,"Stage 3 loans and advances (3)","AQT_67","Ratio"," Stage 3 loans and advances at amortised cost (A) / Sum of stage 1, 2 and 3 loans and advances at amortised cost (B)","F 04.04.1","070","040","F 04.04.1","070","015, 030, 040"]
[null,"Coverage ratio stage 1 of loans and advances (3)","AQT_79.1","Ratio","Accumulated impairments (A) / Gross carrying amount (B) for loans and advances at amortised cost in stage 1","F 04.04.1","070","050","F 04.04.1","070","015"]
[null,"Coverage ratio stage 2 of loans and advances (3)","AQT_79.2","Ratio","Accumulated impairments (A) / Gross carrying amount (B) for loans and advances at amortised cost in stage 2","F 04.04.1","070","060","F 04.04.1","070","030"]
[null,"Coverage ratio stage 3 of loans and advances (3)","AQT_79.3","Ratio","Accumulated impairments (A) / Gross carrying amount (B) for loans and advances at amortised cost in stage 3","F 04.04.1","070","070","F 04.04.1","070","040"]
[null,"Total fair valued financial assets (3)","n/a","Calculation","(AQT_68.1 + AQT_68.2) * Total Financial Assets","n/a","n/a","n/a","n/a","n/a","n/a"]
[null,"Level 1 financial assets (3)","AQT_80.1","Ratio","Financial assets recognised at fair value through profit and loss and at fair value through other comprehensive income and hedge accounting derivatives, which are Level 1 assets (A) / total financial assets recognised at fair value through profit and loss and at fair value through other comprehensive income and hedge accounting derivatives (B)","F 14.00","010, 056, 060, 101, 140","010","F 14.00","010, 056, 060, 101, 140","010, 020, 030"]
[null,"Level 2 financial assets (3)","AQT_80.2","Ratio","Financial assets recognised at fair value through profit and loss and at fair value through other comprehensive income and hedge accounting derivatives, which are Level 2 assets (A) / total financial assets recognised at fair value through profit and loss and at fair value through other comprehensive income and hedge accounting derivatives (B)","F 14.00","010, 056, 060, 101, 140","020","F 14.00","010, 056, 060, 101, 140","010, 020, 030"]
[null,"Level 3 financial assets (3)","AQT_80.3","Ratio","Financial assets recognised at fair value through profit and loss and at fair value through other comprehensive income and hedge accounting derivatives, which are Level 3 assets (A) / total financial assets recognised at fair value through profit and loss and at fair value through other comprehensive income and hedge accounting derivatives (B)","F 14.00","010, 056, 060, 101, 140","030","F 14.00","010, 056, 060, 101, 140","010, 020, 030"]
[null,"Sovereign exposure - Total gross carrying amount","n/a",null,"Total gross carrying amount","C 33.00","010","010"]
[null,"Sovereign exposure - Total net of short positions","n/a",null,"Total net of short positions","C 33.00","010","020"]
[null,"Sovereign exposure - Financial assets held for trading","n/a","Ratio","Sovereign exposure treated as Financial assets held for trading / Sum of the sovereign exposure values at fair value through P&L , OCI and amortised cost  (B)","C 33.00","010","030","C 33.00","010","030, 040, 050, 060, 070, 080, 090, 100, 110, 120"]
[null,"Sovereign exposure - Fair value through P&L","n/a","Ratio","Sovereign exposure treated as Fair value through P&L (A) / Sum of the sovereign exposure values at fair value through P&L , OCI and amortised cost  (B)","C 33.00","010","060","C 33.00","010","030, 040, 050, 060, 070, 080, 090, 100, 110, 120"]
[null,"Sovereign exposure - Fair value through OCI","n/a","Ratio","Sovereign exposure treated as Fair value through OCI (A) / Sum of the sovereign exposure values at fair value through P&L , OCI and amortised cost  (B)","C 33.00","010","080","C 33.00","010","030, 040, 050, 060, 070, 080, 090, 100, 110, 120"]
[null,"Sovereign exposure - Amortised cost","n/a","Ratio","Sovereign exposure treated as Amortised cost (A) / Sum of the sovereign exposure values at fair value through P&L , OCI and amortised cost  (B)","C 33.00","010","100","C 33.00","010","030, 040, 050, 060, 070, 080, 090, 100, 110, 120"]
[null,"Sovereign exposure - Other ","n/a","Calculation","Residual Calculation:  1 - (A/B)","C 33.00","010","030, 060, 080, 100","C 33.00","010","030, 040, 050, 060, 070, 080, 090, 100, 110, 120"]
[null,"Sovereign exposure maturities 0 - 3M","n/a","Ratio","Sovereign exposure maturities  0 - 3M (A) / Sum of the sovereign exposure values in all maturities  (B)","C 33.00","170","010","C 33.00","170, 180, 190, 200, 210, 220, 230","010"]
[null,"Sovereign exposure maturities 3M - 1Y","n/a","Ratio","Sovereign exposure maturities 3M - 1Y (A) / Sum of the sovereign exposure values in all maturities  (B)","C 33.00","180","010","C 33.00","170, 180, 190, 200, 210, 220, 230","010"]
[null,"Sovereign exposure maturities 1Y - 5Y","n/a","Ratio","Sovereign exposure maturities 1Y - 5Y (A) / Sum of the sovereign exposure values in all maturities  (B)","C 33.00","190, 200, 210","010","C 33.00","170, 180, 190, 200, 210, 220, 230","010"]
[null,"Sovereign exposure maturities 5Y - 10Y","n/a","Ratio","Sovereign exposure maturities 5Y - 10Y (A) / Sum of the sovereign exposure values in all maturities  (B)","C 33.00","220","010","C 33.00","170, 180, 190, 200, 210, 220, 230","010"]
[null,"Sovereign exposure maturities 10Y - more","n/a","Ratio","Sovereign exposure maturities 10Y - more (A) / Sum of the sovereign exposure values in all maturities  (B)","C 33.00","230","010","C 33.00","170, 180, 190, 200, 210, 220, 230","010"]
[null,"Debt securities issued","FND_9","Ratio","Debt securities issued (A) / Total liabilities (B)","F 01.02","050, 065, 090, 130, 143","010","F 01.02","300","010"]
[null,"Deposits from credit institutions","FND_10","Ratio","Deposits from credit institutions (A) / Total liabilities (B)","F 08.01","160","010, 020, 030, 034, 035","F 01.02","300","010"]
[null,"Customer deposits from HHs","n/a","Ratio","Deposits from HHs (A) / Total liabilities (B)","F 08.01","310","010, 020, 030, 034, 035","F01.02","300","010"]
[null,"Customer deposits from NFCs","n/a","Ratio","Deposits from NFCs (A) / Total liabilities (B)","F 08.01","260","010, 020, 030, 034, 035","F01.02","300","010"]
[null,"Other deposits","n/a","Ratio","Other deposits (A) / Total liabilities (B)","F 08.01","110, 210","010, 020, 030, 034, 035","F01.02","300","010"]
[null,"Other liabilities","n/a","Calculation","Residual Calculation:  1 - (A/B)","F 08.01","110, 210, 260, 310","010, 020, 030, 034, 035","F01.02","300","010"]
[null,"Total liabilities","FND_18","Denominator","Total deposits other than from banks (A) / Total liabilities (B)","n/a","n/a","n/a","F 01.02","300","010"]
[null,"Share of secured funding",null,"Calculated as sum (numerator FND_28 and FND_29) / numerator FND_9",null,"n/a","n/a","n/a","n/a","n/a","n/a"]
[null,null,"FND_28","Numerator","Covered bonds (A) / Total liabilities (B)","F 08.01","390","010, 020, 030, 034, 035","n/a","n/a","n/a"]
[null,null,"FND_29","Numerator","Asset-backed securities (A) / Total liabilities (B)","F 08.01",380,"010, 020, 030, 034, 035","n/a","n/a","n/a"]
[null,"Loan commitments: volume","n/a",null,"Gross carrying amount","F 18.00","340","010","n/a","n/a","n/a"]
[null,"Share of loan commitments to HHs","n/a","Ratio","Loan commitments to HHs (A) / Total loan commitments given (B)","F 18.00","400","010","F 18.00","340","010"]
[null,"Share of loan commitments to NFCs","n/a","Ratio","Loan commitments to NFCs (A) / Total loan commitments given (B)","F 18.00","390","010","F 18.00","340","010"]
[null,"Own funds (Tier 1 capital) volume","n/a",null,"Tier 1 capital volume (A)","C 01.00","015","010","n/a","n/a","n/a"]
[null,"Capital instruments eligible as CET1 Capital","n/a","Ratio","Capital instruments eligible as CET1 Capital (A) / Tier 1 capital volume (B)","C 01.00","030","010","C01.00","015","010"]
[null,"Retained earnings","n/a","Ratio","Retained earnings (A) / Tier 1 capital volume (B)","C 01.00","130","010","C01.00","015","010"]
[null,"Accumulated other comprehensive income","n/a","Ratio","Accumulated other comprehensive income (A) / Tier 1 capital volume (B)","C 01.00","180","010","C01.00","015","010"]
[null,"Other CET1 components","n/a","Calculation","Residual Calculation:  1 - (A/B)","C 01.00","030, 130, 180, 530","010","C01.00","015","010"]
[null,"Additional Tier 1 capital","n/a","Ratio","Additional Tier 1 capital","C 01.00","530","010","C01.00","015","010"]
[null,"RWA volume","n/a",null,"RWA volume","C 02.00","010","010","n/a","n/a","n/a"]
[null,"Credit risk capital requirements (excl. securitisation)",null,"Calculated as SCV_4 - Securitisation risk exposure amounts of total credit risk exposure amounts",null,"n/a","n/a","n/a","n/a","n/a","n/a"]
[null,null,"SCV_4","Ratio","Risk-weighted exposure amounts for credit, counterparty credit and dilution risks and free deliveries (A) / Total risk exposure amount (B)","C 02.00","040","010","C 02.00","010","010"]
[null,"Securitisation capital requirements","n/a","Ratio","Securitisation positions (SA and IRB) (A) /  Risk-weighted exposure amounts for credit, counterparty credit and dilution risks and free deliveries (B)","C 02.00","220, 430, 470","010","C 02.00","010","010"]
[null,"Market risk capital requirements","SCV_8","Ratio","Total risk exposure amount for position, foreign exchange and commodities risks (A) / Total risk exposure amount (B)","C 02.00",520,"010","C 02.00","010","010"]
[null,"Operational risk capital requirements","SCV_9","Ratio","Total risk exposure amount for OpR (A) / Total risk exposure amount (B)","C 02.00",590,"010","C 02.00","010","010"]
[null,"Other capital requirements","n/a","Ratio","Residual in total capital requirements","n/a","n/a","n/a","n/a","n/a","n/a"]
[null,"Net interest income on equity (numerator annualised, denominator as average) (2)","n/a","Ratio","(Interest income - Interest expense )(A) / Equity (B)","F 02.00","010, 090","010","F 01.03",300,"010"]
[null,"Net fee & commission income on equity (numerator annualised, denominator as average) (2)","n/a","Ratio","Fee & commission income - Fee & commission expense (A) / Equity (B)","F 02.00","200, 210","010","F 01.03",300,"010"]
[null,"Net trading income (incl. FV result) on equity (numerator annualised, denominator as average) (2)","n/a","Ratio","Net Gains or (-) losses on financial assets and liabilities: held for trading, trading, non-trading financial assets mandatorily at fair value through profit or loss, designated at fair value through profit or loss (A) / Equity (B)","F 02.00","280, 285, 287, 290","010","F 01.03",300,"010"]
[null,"Other operating income on equity (numerator annualised, denominator as average) (2)","n/a","Ratio","Total net operating income - net interest income - Fee & commission income - net trading income (A) / Equity (B)","F 02.00","355, 010, 090, 200, 210, 280, 285, 287, 290","010","F 01.03",300,"010"]
[null,"Staff expenses on equity (numerator annualised, denominator as average) (2)","n/a","Ratio","Staff expenses (A) / Equity (B)","F 02.00","370","010","F 01.03",300,"010"]
[null,"Other admin. (incl. depreciation) expenses on equity (numerator annualised, denominator as average) (2)","n/a","Ratio","Other admin. (incl. depreciation) expenses (A) / Equity (B)","F 02.00","380, 390","010","F 01.03",300,"010"]
[null,"Provisions on equity (numerator annualised, denominator as average) (2)","n/a","Ratio","Provisions (A) / Equity (B)","F 02.00","430","010","F 01.03",300,"010"]
[null,"Impairments (credit risk losses) on equity (numerator annualised, denominator as average) (2)","n/a","Ratio","Impairments (credit risk losses) (A) / Equity (B)","F 02.00","460","010","F 01.03",300,"010"]
[null,"Other (incl. tax) on equity (numerator annualised, denominator as average) (2)","n/a","Ratio","Profit or (-) loss for the year - Total operating income + Staff expenses + Other admin. Expenses  + Provisions + Impairments (A) / Equity (B) ","F 02.00","670, 355, 370, 380, 390, 430, 460","010","F 01.03",300,"010"]
[null,"Loans and advances with non-expired EBA-compliant moratoria: Total","n/a",null,"Total Loans and advances with non-expired EBA-compliant moratoria","F 91.01","0010","0010"," "," "," "]
[null,"Loans and advances with non-expired EBA-compliant moratoria: HHs","n/a","Ratio","Households (A) / Total Loans and advances with non-expired EBA-compliant moratoria (B)","F 91.01","0020","0010","F 91.01","0010","0010"]
[null,"Loans and advances with non-expired EBA-compliant moratoria: NFCs","n/a","Ratio","NFCs (A) / Total Loans and advances with non-expired EBA-compliant moratoria (B)","F 91.01","0040","0010","F 91.01","0010","0010"]
[null,"Loans and advances with non-expired EBA-compliant moratoria: Stage 2","n/a","Ratio","Stage 2 (A) / Total Loans and advances with non-expired EBA-compliant moratoria (B)","F 91.01","0010","0050","F 91.01","0010","0010"]
[null,"Loans and advances with non-expired EBA-compliant moratoria: Non-performing","n/a","Ratio","Non-performing (A) / Total Loans and advances with non-expired EBA-compliant moratoria (B)","F 91.01","0010","0060","F 91.01","0010","0010"]
[null,"Loans and advances with non-expired EBA-compliant moratoria: Coverage of NPLs","n/a","Ratio","Coverage of NPLs (A) / Non-performing (B)","F 91.01","0010","0150","F 91.01","0010","0060"]
[null,"Loans and advances with expired EBA-compliant moratoria: Total","n/a","Ratio","Total Loans and advances with expired EBA-compliant moratoria","F 91.03","0010","0010"," "," "," "]
[null,"Loans and advances with expired EBA-compliant moratoria: HHs","n/a","Ratio","Households (A) / Total Loans and advances with expired EBA-compliant moratoria (B)","F 91.03","0020","0010","F 91.03","0010","0010"]
[null,"Loans and advances with expired EBA-compliant moratoria: NFCs","n/a","Ratio","NFCs (A) / Total Loans and advances with expired EBA-compliant moratoria (B)","F 91.03","0040","0010","F 91.03","0010","0010"]
[null,"Loans and advances with expired EBA-compliant moratoria: Stage 2","n/a","Ratio","Stage 2 (A) / Total Loans and advances with expired EBA-compliant moratoria (B)","F 91.03","0010","0040","F 91.03","0010","0010"]
[null,"Loans and advances with expired EBA-compliant moratoria: Non-performing","n/a","Ratio","Non-performing (A) / Total Loans and advances with expired EBA-compliant moratoria (B)","F 91.03","0010","0050","F 91.03","0010","0010"]
[null,"Loans and advances with expired EBA-compliant moratoria: Coverage of NPLs","n/a","Ratio","Coverage of NPLs (A) / Non-performing (B)","F 91.03","0010","0120","F 91.03","0010","0050"]
[null,"Loans subject to PGS: newly originated","n/a",null,"Total loans subject to PGS","F 90.03","0010","0030"," "," "," "]
[null,"Loans subject to PGS: residual maturity <= 6 months","n/a","Ratio","Residual maturity <= 6 months (A) / Total loans subject to PGS (B)","F 90.03","0010","0050","F 90.03","0010","0030"]
[null,"Loans subject to PGS: residual maturity > 6 months <= 12 months","n/a","Ratio","Residual maturity > 6 months <= 12 months (A) / Total loans subject to PGS (B)","F 90.03","0010","0060","F 90.03","0010","0030"]
[null,"Loans subject to PGS: residual maturity > 1 year <= 2 years","n/a","Ratio","Residual maturity > 1 year <= 2 years (A) / Total loans subject to PGS (B)","F 90.03","0010","0070","F 90.03","0010","0030"]
[null,"Loans subject to PGS: residual maturity > 2 years <= 5 years","n/a","Ratio","Residual maturity > 2 years <= 5 years (A) / Total loans subject to PGS (B)","F 90.03","0010","0080","F 90.03","0010","0030"]
[null,"Loans subject to PGS: public guarantee received","n/a","Ratio","Guarantee received  (A) / Total loans subject to PGS (B)","F 91.05","0010","0150","F 90.03","0010","0030"]
[null,"Loans subject to PGS: classified as stage 2","n/a","Ratio","Loans subject to PGS classified as stage 2 (A) / Total loans subject to PGS (B)","F 91.05","0010","0040","F 90.03","0010","0030"]
[null,"Loans subject to PGS: non-performing loans","n/a","Ratio","Non-performing loans subject to PGS (A) / Total loans subject to PGS (B)","F 91.05","0010","0050","F 90.03","0010","0030"]
[null,"Loans subject to PGS: coverage ratio of non-performing loans subject to PGS","n/a","Ratio","Accumulated impairment, accumulated negative changes in fair value due to credit risk of non-performing loans subject to PGS (A) / Non-performing loans subject to PGS (B)","F 91.05","0010","0120","F 91.05","0010","0050"]
[]
[null,"(1) The data points refer to the latest version of either FINREP tables (\"F\") or COREP tables (\"C\") (http://www.eba.europa.eu/regulation-and-policy/supervisory-reporting/implementing-technical-standard-on-supervisory-reporting). For more information regarding the Risk Indicators formulas, applicable to each reporting framework, please see the List and Methodological Guide available here (http://www.eba.europa.eu/risk-analysis-and-data/risk-indicators-guide)."]
[]
[null,"(2) For the calculation of the average the previous December figure is used as an “anchor” for the subsequent year, and the second the number is taken from the latest quarter observation, i.e. Q1, Q2, Q3 or Q4."]
[null,"(3) Applicable only to IFRS reporting banks."]
[null,"(4) The formula presented in this document for this risk indicator differs from the formula presented in the EBA list of risk indicators published on the EBA website, which will be subject to future revision."]

{"sheet":"Data","index":19,"n_rows":684,"n_cols":58,"rows_kept":684,"cut":false,"hidden":false,"merged":[]}
["NRI_FORMATPERIOD","PERIOD","NRI_CODE","NRI_FORMAT","p5","p25","median","Average","waver","p75","p95","num","den","waverS","waverM","waverL","Nbanks",null,null,null,"NRI_FORMATcountry","PERIOD","NRI_CODE","NRI_FORMAT","NSA","_TYPE_","_FREQ_","waver","country","flag_lt3"]
[{"$f":"+D2&B2","v":"Tier 1 Capital Ratio201409"},201409,1,"Tier 1 Capital Ratio",9.9230410982253797E-2,0.11384887561447,0.133666846046297,0.16251784355162699,0.13258383458963999,0.16160961265770399,0.334218938135037,1112547781911.5701,8309665619609.71,0.119941002682614,0.14112113595710801,0.13209562230545099,151,{"$f":"MIN(N2:P2)","v":0.119941002682614},{"$f":"MAX(N2:P2)","v":0.14112113595710801},{"$f":"IF(OR(G2<R2,G2>S2),1,0)","v":0},{"$f":"CONCATENATE(X2,AC2)","v":"Tier 1 Capital Ratio1"},202012,1,"Tier 1 Capital Ratio","EE",0,4,0.27733085802344498,1,"",null,"Name",201409,201412,201503,201506,201509,201512,201603,201606,201609,201612,201703,201706,201709,201712,201803,201806,201809,201812,201903,201906,201909,201912,202003,202006,202009,202012]
[{"$f":"+D3&B3","v":"Tier 1 Capital Ratio201412"},201412,1,"Tier 1 Capital Ratio",9.7576740433390499E-2,0.11675573081085699,0.13558443478514701,0.16312272127326699,0.13469747961245401,0.162257435587463,0.364170271952793,1112086316464.95,8246801610474.5303,0.13288100579920001,0.13939913602457801,0.13388326478514401,153,{"$f":"MIN(N3:P3)","v":0.13288100579920001},{"$f":"MAX(N3:P3)","v":0.13939913602457801},{"$f":"IF(OR(G3<R3,G3>S3),1,0)","v":0},{"$f":"CONCATENATE(X3,AC3)","v":"Tier 1 Capital Ratio2"},202012,1,"Tier 1 Capital Ratio","LV",0,5,0.26255041750060298,2,"",null,"EU_AQT_3.1",5.70375121E-2,5.5175408699999998E-2,5.2866897099999997E-2,5.1487257299999999E-2,5.0302470100000003E-2,4.8957155799999999E-2,4.8045534000000001E-2,4.65191592E-2,4.5791716500000003E-2,4.3802830199999997E-2,4.1797862800000002E-2,3.8885298700000001E-2,3.7154290899999998E-2,3.57059578E-2,3.3810712100000001E-2,3.1514201499999998E-2,3.0028829900000002E-2,2.80379711E-2,2.7214993199999999E-2,2.6258944999999999E-2,2.5195147599999999E-2,2.4033097600000001E-2,2.5979059400000001E-2,2.5067550800000001E-2,2.4169199700000001E-2,2.2632167799999998E-2]
["Tier 1 Capital Ratio201503",201503,1,"Tier 1 Capital Ratio",9.3539377936200693E-2,0.116041841148947,0.13572537183483799,0.163619600652674,0.13364999689684701,0.162140847733758,0.32294159244963599,1141640682688.53,8530375001949.6797,0.12986633753139901,0.13743503391939599,0.133313425961365,154,0.12986633753139901,0.13743503391939599,0,"Tier 1 Capital Ratio3",202012,1,"Tier 1 Capital Ratio","HR",0,3,0.24060347609882399,3,"",null,"EU_AQT_3.2",6.6814312000000001E-2,6.4763577200000005E-2,6.1916476300000002E-2,6.0043461800000003E-2,5.8717885800000001E-2,5.7208654999999997E-2,5.6180528399999999E-2,5.4317499200000001E-2,5.3093890400000003E-2,5.0744811600000002E-2,4.8017137799999998E-2,4.44258233E-2,4.2294588500000001E-2,4.0536493399999998E-2,3.8435022100000001E-2,3.5850995099999998E-2,3.4094554399999998E-2,3.1861204499999997E-2,3.0971663199999999E-2,2.99151533E-2,2.8785687599999998E-2,2.74819231E-2,2.9654452500000001E-2,2.8682688599999999E-2,2.7562481999999999E-2,2.57369639E-2]
["Tier 1 Capital Ratio201506",201506,1,"Tier 1 Capital Ratio",9.87448615712848E-2,0.119802669665481,0.13732696937095201,0.16428846282076701,0.13883063147653299,0.16808764901166201,0.33213789324781401,1154326150424.3701,8399529956028.1201,0.13769782935239699,0.140656248724495,0.138581953503633,153,0.13769782935239699,0.140656248724495,1,"Tier 1 Capital Ratio4",202012,1,"Tier 1 Capital Ratio","CZ",0,3,0.23618310542040899,4,"",null,"EU_AQT_31",2.28257342E-2,2.1777630400000001E-2,1.9987848900000001E-2,1.9451366500000001E-2,1.8570467899999998E-2,1.8382943499999999E-2,1.7442604300000001E-2,1.68338034E-2,1.7058811E-2,1.6418466699999999E-2,1.5777636500000001E-2,1.45378178E-2,1.41313394E-2,1.4046868000000001E-2,8.6801563999999998E-3,7.9640734000000005E-3,7.6428077000000004E-3,7.3062797000000004E-3,7.0427616999999996E-3,6.7816752999999997E-3,6.4295497000000004E-3,6.2843402999999999E-3,6.6359807999999999E-3,6.2765097999999998E-3,5.9311681999999998E-3,5.2422607000000001E-3]
["Tier 1 Capital Ratio201509",201509,1,"Tier 1 Capital Ratio",0.101481126355165,0.120956139482693,0.140591785928698,0.16851286333163401,0.14141495569621301,0.17600932431783201,0.34045977667397698,1154452523512.6899,8316749015109.1797,0.14851735918306699,0.14360060238640299,0.14018076233987201,153,0.14018076233987201,0.14851735918306699,0,"Tier 1 Capital Ratio5",202012,1,"Tier 1 Capital Ratio","BG",0,4,0.23595658125456201,5,"",null,"EU_AQT_41.2",0.4210661349,0.4336813967,0.42961563270000003,0.43586921569999998,0.43638406470000002,0.4368733682,0.43748047849999999,0.4385194368,0.44287608350000002,0.44772592999999999,0.45154985549999999,0.44986772580000001,0.44736173350000003,0.44597963219999998,0.46656831059999998,0.45951551839999999,0.45697663399999999,0.45009716090000002,0.45115197330000001,0.44865810680000001,0.44585612460000001,0.44710542749999999,0.4599164932,0.4545849985,0.45491587859999999,0.44940126359999999]
["Tier 1 Capital Ratio201512",201512,1,"Tier 1 Capital Ratio",0.10861026283983,0.12965657076033099,0.148542496335967,0.17828879531566699,0.147257569217565,0.18775475700951899,0.38514263860780201,1186186255421.4299,8249575309189.5703,0.15354207742224499,0.15270019682830699,0.14543597933461899,152,0.14543597933461899,0.15354207742224499,0,"Tier 1 Capital Ratio6",202012,1,"Tier 1 Capital Ratio","IS",0,3,0.22423981009476401,6,"",null,"EU_AQT_42.2",4.00791333E-2,3.9081600399999999E-2,3.8069854100000002E-2,3.7032824300000003E-2,3.61944118E-2,3.5358019099999999E-2,3.4613695799999997E-2,3.3875883400000001E-2,3.3325991399999998E-2,3.1350739199999998E-2,2.96468345E-2,2.8314542599999999E-2,2.6886099100000001E-2,2.5830261600000001E-2,2.4205851899999999E-2,2.30309338E-2,2.17721424E-2,2.0567201699999999E-2,1.9538731399999999E-2,1.89560153E-2,1.82881555E-2,1.7540351900000001E-2,1.8636732E-2,1.9657205600000002E-2,1.98715657E-2,2.00387959E-2]
["Tier 1 Capital Ratio201603",201603,1,"Tier 1 Capital Ratio",0.106345778097823,0.12778715210531,0.14691128011479099,0.18041060063851699,0.14542987959958401,0.18051941284261899,0.40461030896855799,1173953966567.47,8237994365813.9502,0.15276089831155901,0.152069736054467,0.14310286680207199,156,0.14310286680207199,0.15276089831155901,0,"Tier 1 Capital Ratio7",202012,1,"Tier 1 Capital Ratio","NO",0,4,0.21240694416922501,7,"",null,"EU_FND_32",1.2697389621999999,1.2471499006,1.2571702303000001,1.2529193443,1.2363053661000001,1.2162220083999999,1.2225804989,1.2111831968,1.2090418030000001,1.1926719673999999,1.1888860659,1.1823821832000001,1.1795703759,1.1741793899999999,1.1857454598999999,1.1833657026,1.1842478114999999,1.1707976134,1.1686332748999999,1.1636160073999999,1.1597588589000001,1.1485077523,1.2136761525999999,1.1596370297,1.1356237652000001,1.1218717853]
["Tier 1 Capital Ratio201606",201606,1,"Tier 1 Capital Ratio",0.10775571541033301,0.129522694066106,0.149701506872812,0.182623587060637,0.14771116501730899,0.18491663078186901,0.40662473159198298,1188834514784.46,8240557384431.2598,0.15750821516157101,0.154463637649737,0.14507963009942601,156,0.14507963009942601,0.15750821516157101,0,"Tier 1 Capital Ratio8",202012,1,"Tier 1 Capital Ratio","LT",0,4,0.212106241830608,8,"",null,"EU_FND_33",".",0.25402453539999997,0.25607322230000001,0.25834802890000003,0.25397923770000003,0.25530297969999999,0.2539025211,0.2554861303,0.26459471759999997,0.26631856990000002,0.27706295489999999,0.2803960137,0.27849546190000002,0.27909183739999999,0.28443575040000002,0.28033055569999998,0.28736085659999999,0.27978719489999998,0.27702987629999998,0.27465810340000002,0.2747465288,0.27271810629999998,0.26703977039999999,0.27443017069999998,0.27852289159999999,0.27899189079999998]
["Tier 1 Capital Ratio201609",201609,1,"Tier 1 Capital Ratio",0.112502491722449,0.129822869499884,0.15145157998200301,0.18923293042497,0.152457805932327,0.18983786647658199,0.473037592147034,1196621666284.49,8163121390944.1396,0.167000670382393,0.15560718349269001,0.150031495805869,155,0.150031495805869,0.167000670382393,0,"Tier 1 Capital Ratio9",202012,1,"Tier 1 Capital Ratio","SE",0,8,0.21043826740704399,9,"",null,"EU_LIQ_17",".",".",".",".",".",".",".",".",1.404595236,1.4134945486999999,1.4468506915999999,1.4551253653,1.4444893533000001,1.4828374005,1.4699259324,1.4822208942999999,1.4850879779999999,1.5139907259000001,1.5210689731,1.4902277221,1.4769658541999999,1.49795988,1.4879520732,1.6591318714000001,1.7118323734000001,1.7306976808000001]
["Tier 1 Capital Ratio201612",201612,1,"Tier 1 Capital Ratio",0.109809925372555,0.13028742637037299,0.159039697677759,0.19937028261263501,0.154964124773324,0.19919638409323701,0.53490645314018603,1209984459095.27,8121938117821.8203,0.175494558999993,0.156969272393604,0.152013219963225,158,0.152013219963225,0.175494558999993,0,{"$f":"CONCATENATE(X11,AC11)","v":"Tier 1 Capital Ratio10"},202012,1,"Tier 1 Capital Ratio","DK",0,5,0.20622359152008099,10,"",null,"EU_PFT_21",5.36429644E-2,3.4804822300000003E-2,6.8940696800000006E-2,6.8210298700000005E-2,6.3878894800000002E-2,4.4626228099999998E-2,5.6481311399999998E-2,5.7170796400000001E-2,5.39501737E-2,3.2533829399999999E-2,7.3096017099999994E-2,7.1000091000000001E-2,7.1878955800000005E-2,6.0428463199999997E-2,6.7521567800000001E-2,7.2188778499999995E-2,7.2450818E-2,6.5161791799999993E-2,6.7746157299999998E-2,7.0155879199999993E-2,6.5629687399999997E-2,5.7369364899999997E-2,1.29016697E-2,4.9265005000000001E-3,2.4842092100000001E-2,2.0163690799999998E-2]
["Tier 1 Capital Ratio201703",201703,1,"Tier 1 Capital Ratio",0.108547699006912,0.13296986185778301,0.158182585646584,0.196225058380529,0.154225341071734,0.19152694045224999,0.47986069240401502,1222413945675.3601,8159676681762.2803,0.15762165529132,0.160161549741408,0.152602523785662,153,0.152602523785662,0.160161549741408,0,"Tier 1 Capital Ratio11",202012,1,"Tier 1 Capital Ratio","LU",0,11,0.20457481248166701,11,"",null,"EU_PFT_23",0.61436795349999995,0.62883029810000002,0.60926037180000003,0.59306555930000004,0.59935528120000003,0.62807720739999995,0.65996565630000004,0.62689661839999999,0.6303032918,0.65259611439999998,0.63895539499999998,0.61555518730000003,0.61706182119999997,0.63351302700000001,0.65006623149999998,0.6373910103,0.63183649829999999,0.64465958020000003,0.6634157987,0.64105226169999996,0.63302078169999998,0.63978238860000003,0.71721308640000003,0.66637391180000005,0.64705108099999997,0.65059481640000005]
["Tier 1 Capital Ratio201706",201706,1,"Tier 1 Capital Ratio",0.111419366434998,0.13560246339024701,0.16219948923611199,0.20248837181453,0.15676156938606001,0.19632809963339901,0.44638829856206902,1228413248638.4099,8141786122887.25,0.167650668243328,0.16240014750727899,0.15435060437501,151,0.15435060437501,0.167650668243328,0,"Tier 1 Capital Ratio12",202012,1,"Tier 1 Capital Ratio","MT",0,5,0.20451146547889701,12,"",null,"EU_PFT_24",3.1321219000000002E-3,2.0261112000000002E-3,4.0225647E-3,4.0550001E-3,3.8115001999999999E-3,2.7603776999999999E-3,3.5820964E-3,3.5936189000000001E-3,3.4534979000000001E-3,2.1097115E-3,4.7937661999999997E-3,4.6377635000000002E-3,4.7325222000000004E-3,4.0385044999999998E-3,4.5526081999999997E-3,4.8283876999999998E-3,4.8775277999999998E-3,4.4453792000000002E-3,4.5230508000000001E-3,4.6626482000000002E-3,4.3331651000000004E-3,3.8898168000000002E-3,8.4882350000000002E-4,3.208288E-4,1.6240675E-3,1.3324185000000001E-3]
["Tier 1 Capital Ratio201709",201709,1,"Tier 1 Capital Ratio",0.11440177479085099,0.138989640813729,0.16490896257988499,0.20437286719828299,0.16000267816411101,0.197556265584828,0.441997867797219,1244035762550.3501,8017138330232.5596,0.16236088563440401,0.16897077837864699,0.157887766196038,151,0.157887766196038,0.16897077837864699,0,"Tier 1 Capital Ratio13",202012,1,"Tier 1 Capital Ratio","IE",0,8,0.20056161107600801,13,"",null,"EU_PFT_25",0.5858005973,0.58762175120000004,0.55510769849999997,0.54852730650000003,0.56336977659999998,0.57307135509999996,0.58782894139999997,0.56961824559999996,0.57698547990000004,0.57820058669999996,0.55928962760000001,0.55439638319999995,0.56909007749999996,0.57348660139999996,0.56735671580000002,0.56842005529999995,0.57357106130000002,0.58901276059999996,0.58186822849999997,0.57890898930000001,0.58423275939999997,0.58365140839999996,0.62947269930000005,0.60301919589999997,0.59814978460000001,0.58926589200000001]
["Tier 1 Capital Ratio201712",201712,1,"Tier 1 Capital Ratio",0.124213800798116,0.14317851534217499,0.16676940500331999,0.21883683701405399,0.16269628473164799,0.21127069483486699,0.43714706269239401,1259832579824.8899,7969623635373.7695,0.16395722801574,0.17423753078999801,0.160178214424365,152,0.160178214424365,0.17423753078999801,0,"Tier 1 Capital Ratio14",202012,1,"Tier 1 Capital Ratio","RO",0,3,0.19839120818472,14,"",null,"EU_PFT_26",0.26820689650000001,0.272044483,0.26555043760000002,0.2619142874,0.26402548199999998,0.26796643790000002,0.27080371640000001,0.26639352300000002,0.27076452179999999,0.27193334479999998,0.27450234060000001,0.27399285649999999,0.27847599509999998,0.28090508450000001,0.28539280220000002,0.28551494570000002,0.28339124999999998,0.2870175827,0.2823519491,0.28074267600000002,0.28367609259999998,0.28541975419999999,0.3290862168,0.30403110309999998,0.30187007929999998,0.30466822970000002]
["Tier 1 Capital Ratio201803",201803,1,"Tier 1 Capital Ratio",0.120035807188323,0.14067908252588701,0.16390472943857301,0.214013711166649,0.16012662806202599,0.21348256162625501,0.44392567004936601,1240566227435.8799,7991743373679.1104,0.160858709879904,0.17130819983005399,0.157773293328208,151,0.157773293328208,0.17130819983005399,0,"Tier 1 Capital Ratio15",202012,1,"Tier 1 Capital Ratio","FI",0,7,0.19429719607609999,15,"",null,"EU_PFT_29",8.1376648499999996E-2,6.7381952699999997E-2,7.8006997699999997E-2,6.4693316799999998E-2,6.1819417299999999E-2,5.8114784599999997E-2,5.2939878199999998E-2,5.3818565300000003E-2,6.2329617099999998E-2,6.08862503E-2,0.10097316000000001,9.2430035699999996E-2,8.9399190899999995E-2,8.5396968099999998E-2,5.5124901400000002E-2,6.2870277799999999E-2,5.3646099000000003E-2,3.1168878099999998E-2,0.1649065029,0.12553646390000001,0.1050145819,0.1001672664,-0.19737011600000001,-1.5113622E-2,-4.936335E-3,4.6508406600000003E-2]
["Tier 1 Capital Ratio201806",201806,1,"Tier 1 Capital Ratio",0.11927980645239999,0.140671190801122,0.16719434036671799,0.21354467903775301,0.16027686716690201,0.216885200171581,0.44755519753554701,1247457347643.3401,8057460127133.4199,0.16743451331258699,0.17204962052016001,0.15703927530075801,151,0.15703927530075801,0.17204962052016001,0,"Tier 1 Capital Ratio16",202012,1,"Tier 1 Capital Ratio","BE",0,8,0.19147733862722699,16,"",null,"EU_PFT_41",1.52303826E-2,1.55324077E-2,1.5504596299999999E-2,1.57343972E-2,1.5730953499999999E-2,1.5819784100000001E-2,1.48310783E-2,1.4693753299999999E-2,1.46578547E-2,1.4760384499999999E-2,1.46190447E-2,1.45927835E-2,1.4513488200000001E-2,1.4701088399999999E-2,1.43641328E-2,1.43499523E-2,1.43974002E-2,1.4746708000000001E-2,1.42101847E-2,1.42687534E-2,1.4271374599999999E-2,1.4522326E-2,1.39319675E-2,1.3477185100000001E-2,1.3339608399999999E-2,1.3336041099999999E-2]
["Tier 1 Capital Ratio201809",201809,1,"Tier 1 Capital Ratio",0.118977736725962,0.13883715549960499,0.16916771875945999,0.21759511847430299,0.16284816765090701,0.21750338865154401,0.44758782065328001,1248377165901.24,8010195758213.3896,0.17632330829161499,0.17279812244095299,0.159253654938564,150,0.159253654938564,0.17632330829161499,0,"Tier 1 Capital Ratio17",202012,1,"Tier 1 Capital Ratio","NL",0,6,0.19059549479580201,17,"",null,"EU_PFT_43",".",".",".",".",".",".",".",".",".",".",".",".",".",".",5.7005668000000001E-3,4.8411540999999999E-3,4.4479276000000002E-3,5.0213671000000001E-3,5.2827763E-3,4.6706109000000003E-3,4.5867953E-3,4.8530459999999997E-3,7.9820823000000003E-3,8.5624550999999997E-3,7.353933E-3,7.4793606999999998E-3]
["Tier 1 Capital Ratio201812",201812,1,"Tier 1 Capital Ratio",0.121773164240814,0.14405161746482201,0.166646142909124,0.21998498365920699,0.163173756925026,0.203164733502637,0.49126708956414999,1267885036419.8201,8136831844231.4404,0.18635309163863201,0.17537989094586001,0.158197381359343,149,0.158197381359343,0.18635309163863201,0,"Tier 1 Capital Ratio18",202012,1,"Tier 1 Capital Ratio","CY",0,4,0.186020957687696,18,"",null,"EU_SVC_1",0.13258383460000001,0.1346974796,0.13364999690000001,0.1388306315,0.14141495570000001,0.14725756919999999,0.14542987960000001,0.14771116500000001,0.15245780589999999,0.15496412479999999,0.1542253411,0.15676156939999999,0.1600026782,0.1626962847,0.1601266281,0.16027686720000001,0.16284816769999999,0.16317375689999999,0.16137718130000001,0.1617222784,0.1613677389,0.1678534559,0.15819464529999999,0.16305946160000001,0.16729935430000001,0.17180227340000001]
["Tier 1 Capital Ratio201903",201903,1,"Tier 1 Capital Ratio",0.125883194640589,0.14504248776624601,0.16594857559747,0.202580479303861,0.16137718130465201,0.20018388722929401,0.38187760558619699,1293191783951.3601,8329087152823.8398,0.17941638375845101,0.169010577016459,0.157713646041514,150,0.157713646041514,0.17941638375845101,0,"Tier 1 Capital Ratio19",202012,1,"Tier 1 Capital Ratio","PL",0,3,0.18081396745036499,19,"",null,"EU_SVC_12",".",".",".",".",".",".",".",".",5.0288091899999998E-2,5.1402635199999998E-2,5.0249620600000003E-2,5.1087976700000003E-2,5.1654904799999998E-2,5.3669420900000001E-2,5.1251723899999997E-2,5.1182481699999997E-2,5.1300959799999997E-2,5.3171881499999997E-2,5.1928099499999998E-2,5.2331109100000002E-2,5.2246913399999997E-2,5.5002023800000001E-2,5.2180157499999998E-2,5.1580417599999998E-2,5.45025918E-2,5.7957867400000002E-2]
["Tier 1 Capital Ratio201906",201906,1,"Tier 1 Capital Ratio",0.12868530662219299,0.14642572155844,0.16523890799221599,0.20292407128859999,0.161722278401039,0.197507707728245,0.43616732216668902,1305856392382.01,8367777415843.4102,0.18124193434005501,0.170188847076719,0.15778097352958501,148,0.15778097352958501,0.18124193434005501,0,"Tier 1 Capital Ratio20",202012,1,"Tier 1 Capital Ratio","SK",0,3,0.176004938834526,20,"",null,"EU_SVC_13",".",".",".",".",".",".",".",".",5.3202777700000002E-2,5.4637215599999997E-2,5.2543970400000001E-2,5.3332521399999999E-2,5.37271348E-2,5.5518087399999999E-2,5.3264849199999999E-2,5.3056333300000001E-2,5.3100935500000002E-2,5.4973080700000003E-2,5.3450581800000001E-2,5.3824950900000001E-2,5.3607316199999998E-2,5.6565043299999999E-2,5.3371033999999998E-2,5.3098013999999999E-2,5.6126754799999998E-2,5.9698751100000003E-2]
["Tier 1 Capital Ratio201909",201909,1,"Tier 1 Capital Ratio",0.13011583906929899,0.147537046029242,0.16381606442636601,0.20114958038193201,0.161367738908512,0.19459125426686899,0.41221952484074098,1319546448843.04,8447097624298.29,0.177731065143199,0.16958073970630799,0.15772881031166,148,0.15772881031166,0.177731065143199,0,{"$f":"CONCATENATE(X22,AC22)","v":"Tier 1 Capital Ratio21"},202012,1,"Tier 1 Capital Ratio","IT",0,16,0.17105552575592101,21,"",null,"EU_SVC_2",0.16138081369999999,0.16191240270000001,0.16099455639999999,0.1668976902,0.17045639870000001,0.1769843432,0.1742925713,0.17746579770000001,0.18286133660000001,0.1853448325,0.18449995250000001,0.18618604729999999,0.1891165333,0.19066645160000001,0.187521457,0.18754395939999999,0.18963654099999999,0.19044179,0.18812470049999999,0.1888070187,0.1886103214,0.19481184209999999,0.182814589,0.18827989270000001,0.1926770474,0.19724888870000001]
["Tier 1 Capital Ratio201912",201912,1,"Tier 1 Capital Ratio",0.132043229012585,0.15200271404278301,0.17172754325942699,0.206309840184314,0.16785345589390099,0.20413545445751199,0.38834947595143399,1352282303969.73,8355116760591.5098,0.194808799685246,0.17395468243072201,0.163554417981499,147,0.163554417981499,0.194808799685246,0,"Tier 1 Capital Ratio22",202012,1,"Tier 1 Capital Ratio","DE",0,23,0.16975178052564799,22,"",null,"EU_SVC_29",0.1127008411,0.1151369253,0.1167143674,0.120720524,0.1226333671,0.12946306060000001,0.12934866840000001,0.13115956579999999,0.13539517279999999,0.13693528460000001,0.13765018809999999,0.1396883075,0.1429377651,0.1460758996,0.14270885159999999,0.14267920040000001,0.14458443830000001,0.14490682360000001,0.14326347910000001,0.14413707140000001,0.14381937289999999,0.15034274110000001,0.14354431749999999,0.14711972549999999,0.1508507033,0.154881723]
["Tier 1 Capital Ratio202003",202003,1,"Tier 1 Capital Ratio",0.13101347592193099,0.142713400364159,0.16288169400806099,0.198438813434375,0.15819464531792801,0.198970388598324,0.369113576094317,1332993452268.46,8503973038323.29,0.201203355300486,0.16727051388837499,0.15438846953892699,131,0.15438846953892699,0.201203355300486,0,"Tier 1 Capital Ratio23",202012,1,"Tier 1 Capital Ratio","FR",0,13,0.16954125379812801,23,"",null,"EU_SVC_3",0.1228738011,0.1248070726,0.1238011804,0.1282952108,0.1298624152,0.1354117202,0.13402296699999999,0.13610085229999999,0.1402696994,0.14205078760000001,0.14093584710000001,0.14288088530000001,0.1460597844,0.1487485221,0.1449736915,0.1450485333,0.1469434872,0.1474928828,0.1454222466,0.14631293840000001,0.14592912250000001,0.15248638010000001,0.1457596998,0.15043314799999999,0.15435779399999999,0.15860942689999999]
["Tier 1 Capital Ratio202006",202006,1,"Tier 1 Capital Ratio",0.13309366446482701,0.14799379411233601,0.169614698626494,0.20646223028987701,0.16305946162686699,0.20110496922697599,0.35973253916348202,1364206248128.3999,8451237021985.4805,0.20727475532994599,0.17173624344580701,0.159339046084541,131,0.159339046084541,0.20727475532994599,0,"Tier 1 Capital Ratio24",202012,1,"Tier 1 Capital Ratio","AT",0,11,0.16546606368242101,24,"",null,"AT_AQT_3.1",6.7268043599999994E-2,6.6281838300000007E-2,6.5904302499999998E-2,6.3477303600000007E-2,6.1335552100000003E-2,5.7016114100000001E-2,5.4260909699999998E-2,4.8754903000000002E-2,4.6926659099999997E-2,4.1754578200000003E-2,3.8301586700000001E-2,3.6191810900000003E-2,3.3564610199999997E-2,3.0811433499999999E-2,2.9065200699999998E-2,2.7152987100000001E-2,2.61500076E-2,2.3616479199999998E-2,2.2520793599999998E-2,2.13229362E-2,2.0542987200000001E-2,1.9830903600000001E-2,1.8362075700000001E-2,1.7812776200000002E-2,1.71988158E-2,1.8198006799999999E-2]
["Tier 1 Capital Ratio202009",202009,1,"Tier 1 Capital Ratio",0.13388017731029001,0.152903589854054,0.173303983034827,0.215058022653806,0.167299354319635,0.205226646797635,0.40156202383991402,1374453922491.6499,8324730655495.3896,0.22568066877547999,0.175204224615369,0.163262743607724,129,0.163262743607724,0.22568066877547999,0,"Tier 1 Capital Ratio25",202012,1,"Tier 1 Capital Ratio","PT",0,8,0.16033323728178001,25,"",null,"AT_AQT_3.2",8.1079072000000002E-2,8.0360419099999997E-2,7.9804330000000007E-2,7.6902156799999996E-2,7.4128822900000002E-2,6.87600664E-2,6.5327591199999993E-2,5.9906141500000003E-2,5.7578078300000002E-2,5.1010336199999999E-2,4.5797361799999999E-2,4.3194966000000001E-2,3.9747936999999997E-2,3.66936858E-2,3.4263354099999997E-2,3.1918364800000001E-2,3.08468675E-2,2.7773423200000001E-2,2.6360808699999998E-2,2.4946890499999999E-2,2.4031470100000001E-2,2.3147171899999999E-2,2.14356762E-2,2.0840315299999999E-2,1.9965544500000001E-2,2.10086801E-2]
["Tier 1 Capital Ratio202012",202012,1,"Tier 1 Capital Ratio",0.13788222953277601,0.15724281974839499,0.17975159782685399,0.23346177809114799,0.171802273388453,0.212919731956493,0.386930540300988,1424348828614.99,8387282252067.6299,0.21813299801461999,0.18055012196407699,0.16777698546538899,129,0.16777698546538899,0.21813299801461999,0,"Tier 1 Capital Ratio26",202012,1,"Tier 1 Capital Ratio","HU",0,4,0.15606523748190099,26,"",null,"AT_AQT_31",4.6816520200000003E-2,5.09448812E-2,5.6686915800000001E-2,4.7206431700000002E-2,3.1518732899999999E-2,2.0071630300000001E-2,1.8955056099999999E-2,1.27058351E-2,1.25172649E-2,1.42462756E-2,1.4476641199999999E-2,1.41010853E-2,1.29060997E-2,1.2558185899999999E-2,6.2378232E-3,5.2309581000000004E-3,4.5841707999999997E-3,4.7042144000000001E-3,4.5094692000000004E-3,4.2878661E-3,4.1149973000000001E-3,4.0470339999999997E-3,3.8845723999999999E-3,3.7928219999999999E-3,3.6032566999999998E-3,3.3887924E-3]
["Total Capital Ratio201409",201409,2,"Total Capital Ratio",0.110838801283469,0.13747107334727099,0.16199318740326199,0.18965119546062401,0.161380813659911,0.197514453953608,0.40236426076867898,1306833291464.49,8309665619609.71,0.16234465878413501,0.16161172443051999,0.16122474743908899,151,0.16122474743908899,0.16234465878413501,0,"Tier 1 Capital Ratio27",202012,1,"Tier 1 Capital Ratio","SI",0,6,0.154485324182216,27,"",null,"AT_AQT_41.2",0.53456865840000001,0.53268527779999997,0.53092438659999996,0.54701082310000004,0.54695292269999995,0.55940504680000003,0.57171997529999996,0.56867137800000001,0.56876869100000005,0.57533433050000005,0.56300322989999996,0.55170162339999995,0.5469351576,0.5270191488,0.52375000500000002,0.54313169210000001,0.54021840119999998,0.52806974139999996,0.53048033049999999,0.5310222483,0.52611729399999996,0.52017586339999999,0.52820336940000001,0.52740168379999997,0.53675114710000005,0.51453585609999997]
["Total Capital Ratio201412",201412,2,"Total Capital Ratio",0.11046046309440601,0.139334095986344,0.16430870964326799,0.1886960502525,0.161912402719815,0.19422024576133301,0.39935357233605001,1299520879244.27,8246801610474.5303,0.161281773161805,0.157917044027864,0.16284851950478799,153,0.157917044027864,0.16284851950478799,1,"Tier 1 Capital Ratio28",202012,1,"Tier 1 Capital Ratio","GR",0,4,0.15125018103574001,28,"",null,"AT_AQT_42.2",3.4416719899999997E-2,3.4796058599999999E-2,3.55866871E-2,3.8415791999999997E-2,3.7712924199999998E-2,3.59390297E-2,3.5176497700000003E-2,3.6156196199999997E-2,3.3365514399999997E-2,3.1637430799999998E-2,2.8210811499999999E-2,2.6632659199999999E-2,2.5764719599999999E-2,2.1424516899999999E-2,2.0702070199999999E-2,1.8933711200000002E-2,1.78458661E-2,1.5979710899999999E-2,1.49955874E-2,1.44150605E-2,1.3422136899999999E-2,1.2115555E-2,1.2090228600000001E-2,1.42200292E-2,1.50160808E-2,1.68950738E-2]
["Total Capital Ratio201503",201503,2,"Total Capital Ratio",0.105257072701385,0.13713580289726099,0.158016524059785,0.18819133380973899,0.16099455638165799,0.19458590846339199,0.385713092332577,1342323537287.1899,8530375001949.6797,0.15840945420682001,0.15528198308604699,0.16250443465497,154,0.15528198308604699,0.16250443465497,0,"Tier 1 Capital Ratio29",202012,1,"Tier 1 Capital Ratio","ES",0,15,0.14457768280267699,29,"",null,"AT_FND_32",1.1567091483,1.1075672813999999,1.1365790993,1.1147031221000001,1.1037787705,1.0713577078000001,1.0750694626999999,1.0641659743,1.0467349801000001,1.0321713478000001,1.0331458378,1.0332284924999999,1.0422344161999999,1.0329208844,1.0310689642999999,1.0470897723000001,1.0646652064,1.0459453227,1.0601843768000001,1.0727682011999999,1.0784612600000001,1.0435871350000001,1.0510817572,1.0219264990000001,1.0053979107,0.97059126870000001]
["Total Capital Ratio201506",201506,2,"Total Capital Ratio",0.104490257714552,0.14244345813630199,0.165740702311724,0.19012529271498599,0.16689769016672501,0.20301958142649601,0.40101178118101799,1357390462508.8799,8399529956028.1201,0.16924606741485199,0.15852544551686801,0.16836694970083399,153,0.15852544551686801,0.16924606741485199,0,"Tier 1 Capital Ratio99",202012,1,"Tier 1 Capital Ratio","EU",0,129,0.171802273388453,99,"",null,"AT_FND_33",".",0.13580042919999999,0.1481083463,0.1430561125,0.13949998450000001,0.1410002712,0.14332739110000001,0.14617505820000001,0.15254453870000001,0.1629098702,0.1816458406,0.1719779317,0.18103652880000001,0.16902270359999999,0.176128496,0.17696255350000001,0.16746441479999999,0.1682229935,0.16617888920000001,0.16671203409999999,0.16561171359999999,0.1563228522,0.1759382334,0.195678977,0.19591333389999999,0.19003243659999999]
["Total Capital Ratio201509",201509,2,"Total Capital Ratio",0.104261573026112,0.143552323218478,0.16832816169071699,0.19490345842587001,0.17045639874375301,0.217366060462302,0.39964714375091398,1361951346460.71,8316749015109.1797,0.182599214562324,0.161806538085283,0.17090762408444299,153,0.161806538085283,0.182599214562324,0,"Tier 1 Capital Ratio100",202012,1,"Tier 1 Capital Ratio","GB",0,26,0.18301821034278101,100,"",null,"AT_LIQ_17",".",".",".",".",".",".",".",".",1.4503465139,1.3601004205,1.5228713115000001,1.4946137478999999,1.3968528731000001,1.5165951038000001,1.4998609629999999,1.4397572484000001,1.3330270109,1.4273265288999999,1.4842018540999999,1.3881412747999999,1.3844377007999999,1.4122491125000001,1.4207396344000001,1.7116809100000001,1.8121969230999999,1.8358978831999999]
["Total Capital Ratio201512",201512,2,"Total Capital Ratio",0.120011679283371,0.147929884100027,0.17329272254822201,0.206208342807888,0.176984343202786,0.22898733117856901,0.44911146337774599,1396393494011.04,8249575309189.5703,0.18521809162300601,0.17058569600360299,0.17741797678590601,152,0.17058569600360299,0.18521809162300601,0,"Total Capital Ratio1",202012,2,"Total Capital Ratio","EE",0,4,0.28229979148192602,1,"",null,"AT_PFT_21",7.0726892999999997E-3,-1.6062348000000001E-2,6.5873652899999996E-2,7.56977182E-2,7.0437604599999995E-2,6.3497012399999997E-2,5.9953995599999997E-2,8.0955396999999998E-2,8.9249520999999998E-2,7.1444177600000006E-2,7.9954043399999994E-2,9.9463301899999995E-2,0.102076774,9.9398951900000004E-2,9.3334345099999994E-2,0.1044020266,0.1071850353,0.1010602028,8.2972644600000006E-2,9.0505480999999999E-2,8.9828170799999996E-2,8.8609666500000003E-2,2.11826102E-2,2.5421940800000001E-2,4.3986014900000002E-2,4.57615377E-2]
["Total Capital Ratio201603",201603,2,"Total Capital Ratio",0.118004095436649,0.14922169584439701,0.172115884652986,0.207189184943425,0.17429257132517001,0.224758715737545,0.44584763715583903,1379725961512.99,8237994365813.9502,0.184857783075843,0.168843375494131,0.174171125228053,156,0.168843375494131,0.184857783075843,0,"Total Capital Ratio2",202012,2,"Total Capital Ratio","LV",0,5,0.27280364050320699,2,"",null,"AT_PFT_23",0.59598654640000004,0.60265127019999998,0.62744187230000004,0.60265944029999996,0.61207894029999999,0.59287253139999996,0.7387033905,0.71105064630000003,0.69242308860000001,0.7136412177,0.70159435240000001,0.66175036490000005,0.65085289000000002,0.66722672979999997,0.71374449900000003,0.6522819473,0.62996293390000002,0.62773707980000004,0.70360854029999997,0.65134284170000001,0.62943566049999999,0.63117000440000004,0.71932784230000002,0.65177836160000002,0.62947656640000005,0.62296186750000004]
["Total Capital Ratio201606",201606,2,"Total Capital Ratio",0.12104458788823,0.15085816663542601,0.17328684095396099,0.209202497435614,0.17746579767866899,0.22718442787052501,0.44738066527718301,1402834399526.23,8240557384431.2598,0.190088290094303,0.17113236056402201,0.177249576888763,156,0.17113236056402201,0.190088290094303,0,"Total Capital Ratio3",202012,2,"Total Capital Ratio","IS",0,3,0.24928625835923601,3,"",null,"AT_PFT_24",5.3647449999999995E-4,-1.1552069999999999E-3,4.6220432000000002E-3,5.3699691000000001E-3,5.0069195E-3,4.5582289E-3,4.4050328E-3,6.0348572999999999E-3,6.8339115000000004E-3,5.4165347000000004E-3,6.2972807000000004E-3,7.9839808000000002E-3,8.3730365999999997E-3,8.2470624999999992E-3,7.8070381999999997E-3,8.7071975999999992E-3,8.9932611000000003E-3,8.5609112000000001E-3,7.0763535000000002E-3,7.7000274999999997E-3,7.6543760000000001E-3,7.6304755E-3,1.8020858E-3,2.12167E-3,3.6852511000000001E-3,3.856403E-3]
["Total Capital Ratio201609",201609,2,"Total Capital Ratio",0.123098334185495,0.150663150714368,0.17938426514456399,0.21612450303754899,0.182861336631199,0.226137881018141,0.49076032505129802,1414575336782.24,8163121390944.1396,0.19754305276294601,0.17233817420276301,0.183328521521089,155,0.17233817420276301,0.19754305276294601,0,"Total Capital Ratio4",202012,2,"Total Capital Ratio","NO",0,4,0.244109823081785,4,"",null,"AT_PFT_25",0.68343419299999997,0.68464040910000001,0.6734505932,0.66139632449999997,0.67714686420000003,0.66721156969999995,0.70881534170000005,0.66324451259999995,0.66513051310000004,0.66061507730000002,0.65395091380000003,0.64156875199999996,0.65039526459999997,0.6521398222,0.68801854129999995,0.66146272009999996,0.65797928100000003,0.65566200399999996,0.69613997159999996,0.67517370379999997,0.67317010970000002,0.65513129469999998,0.7312497201,0.67659596889999996,0.66517657720000001,0.64647319400000003]
["Total Capital Ratio201612",201612,2,"Total Capital Ratio",0.120480461770966,0.151598527680605,0.18514340546691499,0.22725914540404499,0.18534483253932399,0.235475089404518,0.53490645314018603,1427243199403.0601,8121938117821.8203,0.20476155373310401,0.17402020362696899,0.18538241112544601,158,0.17402020362696899,0.20476155373310401,0,"Total Capital Ratio5",202012,2,"Total Capital Ratio","HR",0,3,0.24392220366168399,5,"",null,"AT_PFT_26",0.26738324400000002,0.26988748299999998,0.27376787359999999,0.27057174950000001,0.27658226619999998,0.27177132669999998,0.28464848920000002,0.29205510779999999,0.29277306860000002,0.29547655099999998,0.30589130110000001,0.30151358779999998,0.30246640139999997,0.31006628409999998,0.3234936833,0.313548245,0.3085898433,0.30823238009999998,0.31698331940000002,0.30990835220000001,0.31100049029999999,0.30733231350000001,0.33905752919999999,0.29637138540000002,0.30597764849999998,0.30579002170000003]
["Total Capital Ratio201703",201703,2,"Total Capital Ratio",0.124362393777981,0.15251624413391501,0.18096102132691599,0.223704521845808,0.18449995245104001,0.226738785005344,0.480775040342799,1448527116317.74,8159676681762.2803,0.18380976478293501,0.178252042551659,0.185867232610747,153,0.178252042551659,0.185867232610747,0,"Total Capital Ratio6",202012,2,"Total Capital Ratio","CZ",0,3,0.241383010868429,6,"",null,"AT_PFT_29",2.3522563999999999E-2,-5.2690500000000004E-4,4.02750027E-2,1.5566746000000001E-3,1.30246428E-2,8.1182119000000001E-3,-2.1458007000000001E-2,2.8441991E-3,1.08971039E-2,1.5843447300000001E-2,1.47213016E-2,2.8979295299999999E-2,2.09226572E-2,2.0049892600000001E-2,-1.3276714E-2,-4.9917345000000002E-2,-4.2158389999999997E-2,-3.3572088999999999E-2,-3.1266220999999997E-2,-3.8854263E-2,-2.4755395999999999E-2,-1.8606141E-2,0.1205697671,4.1848474400000002E-2,4.3619698800000002E-2,8.0836381999999998E-3]
["Total Capital Ratio201706",201706,2,"Total Capital Ratio",0.13358551657338599,0.15961047066790299,0.18259474800216199,0.23049858988712199,0.18618604729090699,0.23853226375573899,0.495207097703592,1450599286851.6599,8141786122887.25,0.18932301448837299,0.18060325492131599,0.18699982610480001,151,0.18060325492131599,0.18932301448837299,0,"Total Capital Ratio7",202012,2,"Total Capital Ratio","LU",0,11,0.238570022712219,7,"",null,"AT_PFT_41",2.30429612E-2,2.3183280600000002E-2,2.1636080700000001E-2,2.2131498499999999E-2,2.2124985999999999E-2,2.2166749199999999E-2,2.0969750799999999E-2,1.76325822E-2,1.7723992599999999E-2,1.7423940400000001E-2,1.8429471400000001E-2,1.8503503899999999E-2,1.84820851E-2,1.86183584E-2,1.9067594899999998E-2,1.9288525599999998E-2,1.9360605699999998E-2,1.9434557799999998E-2,1.8767447999999999E-2,1.88243562E-2,1.8873770200000001E-2,1.9059509799999999E-2,1.87173081E-2,1.7947961500000002E-2,1.7625532499999999E-2,1.7328795500000001E-2]
["Total Capital Ratio201709",201709,2,"Total Capital Ratio",0.13386523430366301,0.159348820412965,0.182623042371517,0.23225103168679101,0.18911653329588801,0.23205346950199099,0.49252004901436303,1460056034980.8101,8017138330232.5596,0.183406227506027,0.18625550402858801,0.190369556716977,151,0.183406227506027,0.190369556716977,1,"Total Capital Ratio8",202012,2,"Total Capital Ratio","BG",0,4,0.23741491044075499,8,"",null,"AT_PFT_43",".",".",".",".",".",".",".",".",".",".",".",".",".",".",7.0870359999999997E-4,1.4574118000000001E-3,2.0127597000000001E-3,2.7677778999999998E-3,2.8880902999999999E-3,2.5817310999999999E-3,2.7638755E-3,3.3338551000000002E-3,5.3545271E-3,7.2748941999999997E-3,6.8533277E-3,7.3878041999999996E-3]
["Total Capital Ratio201712",201712,2,"Total Capital Ratio",0.13881885987223899,0.16274309998738801,0.18697854797705801,0.24631050631028001,0.19066645163638199,0.23923191290934101,0.47434289751265701,1463798861911.8401,7969623635373.7695,0.18220497870955199,0.191066736993206,0.19157786489951201,152,0.18220497870955199,0.19157786489951201,0,"Total Capital Ratio9",202012,2,"Total Capital Ratio","MT",0,5,0.234799621182602,9,"",null,"AT_SVC_1",0.10825558640000001,0.10588561470000001,0.10435142090000001,0.1105987209,0.1108701538,0.1170670145,0.117235673,0.12219855120000001,0.12599865809999999,0.1379618467,0.13999256039999999,0.1440807439,0.14332327249999999,0.14937825809999999,0.14505664930000001,0.14687900849999999,0.14320397839999999,0.151982003,0.151021555,0.15389217299999999,0.1494982604,0.15558364129999999,0.14970668719999999,0.1551047035,0.15690339240000001,0.1654660637]
["Total Capital Ratio201803",201803,2,"Total Capital Ratio",0.13413870340709799,0.16015303491400301,0.190054268968113,0.24107560650415699,0.18752145700539699,0.23618210032367601,0.457560548783295,1443907052996.24,7991743373679.1104,0.17866978587698701,0.18810621080037401,0.18846153994602799,151,0.17866978587698701,0.18846153994602799,1,"Total Capital Ratio10",202012,2,"Total Capital Ratio","DK",0,5,0.233753358432431,10,"",null,"AT_SVC_12",".",".",".",".",".",".",".",".",6.2708046500000003E-2,6.2723921799999999E-2,6.1477669800000002E-2,6.3741636300000001E-2,6.3013135400000003E-2,6.6672658900000001E-2,6.4281648100000005E-2,6.5518696500000001E-2,6.3996533100000003E-2,6.7867554799999993E-2,6.6276519000000006E-2,6.8048339400000005E-2,6.6467415099999996E-2,6.8448916799999995E-2,6.5335474000000004E-2,6.3499915200000007E-2,6.3064360599999994E-2,6.6680226499999995E-2]
["Total Capital Ratio201806",201806,2,"Total Capital Ratio",0.13626685672146399,0.16287492807854001,0.189613073991827,0.24076361807448801,0.187543959425582,0.23202522704482501,0.44755519753554701,1452501401419.47,8057460127133.4199,0.184433964261772,0.188810460954389,0.187666209634336,151,0.184433964261772,0.188810460954389,1,"Total Capital Ratio11",202012,2,"Total Capital Ratio","SE",0,8,0.232142107768466,11,"",null,"AT_SVC_13",".",".",".",".",".",".",".",".",6.2035960899999999E-2,6.2563519999999997E-2,6.1706403200000003E-2,6.38849529E-2,6.3300359900000006E-2,6.6742023299999995E-2,6.4540890899999995E-2,6.5800268600000003E-2,6.4297693700000005E-2,6.81128332E-2,6.6487400500000002E-2,6.8195759600000003E-2,6.6610923700000005E-2,6.85923378E-2,6.5469335099999998E-2,6.3626542699999997E-2,6.3189618200000006E-2,6.7042653300000005E-2]
["Total Capital Ratio201809",201809,2,"Total Capital Ratio",0.13725287019320201,0.16172233328577701,0.19276371590531199,0.24479687148019599,0.189636540950119,0.23184307746051899,0.46086278535381803,1448187735912.26,8010195758213.3896,0.19316578506774901,0.18960022480946601,0.189225755985379,150,0.189225755985379,0.19316578506774901,0,"Total Capital Ratio12",202012,2,"Total Capital Ratio","NL",0,6,0.22870597192036801,12,"",null,"AT_SVC_2",0.1490107369,0.14979173800000001,0.14862323860000001,0.1556245627,0.15554950349999999,0.15846558969999999,0.15639682060000001,0.16071595750000001,0.16539956459999999,0.17609159930000001,0.18183091069999999,0.18478438589999999,0.1826602212,0.187084165,0.17933083,0.17922862849999999,0.17441715820000001,0.18287094570000001,0.18244235219999999,0.1833268589,0.178226948,0.18444014180000001,0.17528687870000001,0.18262277439999999,0.18579495100000001,0.19388190299999999]
["Total Capital Ratio201812",201812,2,"Total Capital Ratio",0.13795916560811899,0.161963067198164,0.190606793144347,0.24695816860623901,0.19044178999807901,0.22363921664353001,0.49126708956414999,1465828829470.78,8136831844231.4404,0.215316256762834,0.19232605428112901,0.18735119802712899,149,0.18735119802712899,0.215316256762834,0,"Total Capital Ratio13",202012,2,"Total Capital Ratio","IE",0,8,0.22401930851464,13,"",null,"AT_SVC_29",0.1032606947,0.1028248741,0.10076296830000001,0.10631298240000001,0.1075454718,0.1165712963,0.1171115974,0.12117881430000001,0.12541101339999999,0.13578317619999999,0.13717395139999999,0.13975798170000001,0.1370961353,0.14324494660000001,0.1370712711,0.1379564707,0.13447334080000001,0.14303243309999999,0.14061184800000001,0.142953261,0.13880725050000001,0.14477097459999999,0.13737487039999999,0.14266921290000001,0.14218454929999999,0.14766261489999999]
["Total Capital Ratio201903",201903,2,"Total Capital Ratio",0.14434082156538,0.16224650610299801,0.19041586685335499,0.22320714053097901,0.188124700451091,0.21778747069348001,0.45053704074852602,1495181078512.4099,8329087152823.8398,0.20616789542084099,0.18548184577808,0.18659011464466199,150,0.18548184577808,0.20616789542084099,0,"Total Capital Ratio14",202012,2,"Total Capital Ratio","LT",0,4,0.215489986470144,14,"",null,"AT_SVC_3",0.1078438742,0.10524724940000001,0.1037634352,0.11001324730000001,0.11026796260000001,0.11661871140000001,0.1168138489,0.12143304470000001,0.12558422729999999,0.13757625640000001,0.13880396989999999,0.14126508530000001,0.1386238367,0.1447857736,0.1371301694,0.13800674769999999,0.13451576439999999,0.1430637317,0.1406303341,0.14295878109999999,0.13881429240000001,0.1447682183,0.13736684320000001,0.14267925040000001,0.14219632409999999,0.1481890787]
["Total Capital Ratio201906",201906,2,"Total Capital Ratio",0.1472756018519,0.16448736309043399,0.190484144370174,0.22386965304947701,0.188807018682324,0.21683063795507501,0.43962679148033201,1512683179798.8401,8367777415843.4102,0.208051566729135,0.186131799640194,0.18721259784449701,148,0.186131799640194,0.208051566729135,0,"Total Capital Ratio15",202012,2,"Total Capital Ratio","FI",0,7,0.213498057759059,15,"",null,"BE_AQT_3.1",3.0736359000000001E-2,3.0865486599999999E-2,2.96030761E-2,3.0266339699999999E-2,2.9656136199999999E-2,2.93498744E-2,2.8234467499999999E-2,2.7418899199999999E-2,2.6865957199999999E-2,2.5185989499999999E-2,2.3358196500000001E-2,2.26649968E-2,2.21553055E-2,2.1256554699999999E-2,1.9833328099999999E-2,1.9211060700000001E-2,1.7143511600000001E-2,1.9159425399999999E-2,1.80490315E-2,1.7083716299999999E-2,1.6746087600000001E-2,1.6868631299999999E-2,1.6278164099999999E-2,1.6427133100000001E-2,1.60347474E-2,1.6746997699999999E-2]
["Total Capital Ratio201909",201909,2,"Total Capital Ratio",0.14748650476755701,0.164738859829449,0.18828549772856801,0.222308429977083,0.188610321352879,0.21556898304884001,0.42539297931714798,1530330838932.48,8447097624298.29,0.20359293632459399,0.18647697354284401,0.18727699947600099,148,0.18647697354284401,0.20359293632459399,0,"Total Capital Ratio16",202012,2,"Total Capital Ratio","RO",0,3,0.212648077582554,16,"",null,"BE_AQT_3.2",4.20250385E-2,4.25768693E-2,3.97359303E-2,4.0036589300000001E-2,3.9199906800000003E-2,3.9106695800000001E-2,3.6882863000000002E-2,3.5846548399999997E-2,3.4178606399999999E-2,3.1866816899999997E-2,2.9008448999999999E-2,2.76676678E-2,2.73163287E-2,2.6342401800000002E-2,2.4181548899999999E-2,2.3390580800000001E-2,2.0784216300000002E-2,2.2793675400000001E-2,2.0953396400000001E-2,1.9739213299999999E-2,1.9817808100000001E-2,1.99648807E-2,1.91921933E-2,1.95359898E-2,1.8979345200000001E-2,1.9748858599999999E-2]
["Total Capital Ratio201912",201912,2,"Total Capital Ratio",0.15378667215499001,0.171436984556461,0.194547354453731,0.22795317176885399,0.19481184208438901,0.22975557008802899,0.39736356169902498,1562568804149.47,8355116760591.5098,0.217534922509204,0.192123824308925,0.192831116136396,147,0.192123824308925,0.217534922509204,0,"Total Capital Ratio17",202012,2,"Total Capital Ratio","BE",0,8,0.211065330255223,17,"",null,"BE_AQT_31",1.2972731899999999E-2,1.2279752099999999E-2,1.1419501800000001E-2,1.23714533E-2,1.19368388E-2,1.22080943E-2,1.13863187E-2,1.05630111E-2,1.06758253E-2,1.0503194E-2,9.5806633000000002E-3,9.4804881999999997E-3,9.1517158999999994E-3,9.1002653000000003E-3,4.6337478E-3,4.3563908999999998E-3,3.9522005000000001E-3,4.3544517000000003E-3,4.7248319000000004E-3,4.5636150999999996E-3,4.5245848999999998E-3,4.7640623E-3,4.4958556000000002E-3,4.5537509000000004E-3,4.3916685000000002E-3,4.3629428999999997E-3]
["Total Capital Ratio202003",202003,2,"Total Capital Ratio",0.15092154523572701,0.16572752209075201,0.183915041122134,0.21851544060219699,0.18281458899535599,0.21714004144652399,0.39382035509139901,1546420840153.9299,8503973038323.29,0.21461055070083901,0.18551143192907901,0.181044383786027,131,0.181044383786027,0.21461055070083901,0,"Total Capital Ratio18",202012,2,"Total Capital Ratio","PL",0,3,0.19738421859066299,18,"",null,"BE_AQT_41.2",0.40658880650000001,0.41208763100000001,0.42445995720000002,0.41643934719999998,0.42614885990000001,0.42703813070000002,0.42724267890000001,0.43076649340000001,0.42976844409999998,0.44106253179999999,0.44341782390000001,0.44888706499999997,0.447658216,0.4300431603,0.45609047250000001,0.46128177370000001,0.45819239350000002,0.44707105870000002,0.41681625770000003,0.40740223310000001,0.4032207263,0.41244410850000002,0.4094139088,0.41800779380000003,0.41820684600000002,0.4024363467]
["Total Capital Ratio202006",202006,2,"Total Capital Ratio",0.15183933120979401,0.17099689851219399,0.19186726269321799,0.227686735641216,0.18827989272233001,0.22168761845235399,0.370136953866396,1581471895098.3101,8451237021985.4805,0.22295912227683101,0.19111045234420901,0.18639179271954001,131,0.18639179271954001,0.22295912227683101,0,"Total Capital Ratio19",202012,2,"Total Capital Ratio","DE",0,23,0.19656764886303801,19,"",null,"BE_AQT_42.2",2.0176674799999999E-2,2.0252683399999999E-2,1.8688725900000001E-2,1.9100900399999999E-2,1.9279932499999999E-2,1.9482035700000001E-2,1.9193801199999999E-2,1.8797174900000001E-2,1.8090174000000001E-2,1.6460427699999999E-2,1.50937963E-2,1.43759539E-2,1.3965756899999999E-2,1.35945926E-2,1.1931628600000001E-2,1.11702717E-2,9.1105974999999995E-3,9.9349263000000007E-3,9.6312778000000009E-3,9.0717501999999992E-3,8.4755396999999996E-3,8.5980415000000004E-3,8.5374911000000008E-3,1.18401385E-2,1.25870418E-2,1.3662296000000001E-2]
["Total Capital Ratio202009",202009,2,"Total Capital Ratio",0.15443350118101401,0.17614135608306,0.19375196997649599,0.23653824242198901,0.192677047404234,0.22488813872694999,0.40156202383991402,1588978113955.5701,8324730655495.3896,0.24114079089481599,0.19443676395349199,0.190556940957326,129,0.190556940957326,0.24114079089481599,0,"Total Capital Ratio20",202012,2,"Total Capital Ratio","CY",0,4,0.19594814181332201,20,"",null,"BE_FND_32",1.0810413094,1.1321083117999999,1.1246419706999999,1.1111579520999999,1.1178509689,1.0695547147,1.0588864442000001,1.0641730492999999,1.0604288602,1.0507737339000001,1.0417928033999999,1.0302513697,1.0400773907,1.0548831396,1.0443798984999999,1.0451617669,1.0359734258,1.0403231475000001,1.0576414864000001,1.0466945049,1.0465848713999999,1.0428842157,1.0314969597999999,0.98385718310000003,0.97999178229999995,0.96546127589999997]
["Total Capital Ratio202012",202012,2,"Total Capital Ratio",0.15750391541460701,0.180164210586859,0.201000148553234,0.25585182880277102,0.19724888866266099,0.239370444695613,0.386930540300988,1637932385977.3201,8387282252067.6299,0.24663368060593699,0.199945908915519,0.19463897160233601,129,0.19463897160233601,0.24663368060593699,0,"Total Capital Ratio21",202012,2,"Total Capital Ratio","IT",0,16,0.19578311683508301,21,"",null,"BE_FND_33",".",0.26523744249999998,0.25798149110000002,0.25570678330000002,0.25680312659999999,0.24721966479999999,0.25251892040000001,0.24998158570000001,0.24406907659999999,0.21198033560000001,0.2255145325,0.2310748487,0.22375004940000001,0.2031217588,0.18393658909999999,0.17712228429999999,0.1781479037,0.16996671790000001,0.17224105310000001,0.15788989880000001,0.14362997429999999,0.13089788299999999,0.17581766660000001,0.20040237529999999,0.20177046409999999,0.2000242827]
["Tier 1 Ratio excluding hybrid instruments201409",201409,3,"Tier 1 Ratio excluding hybrid instruments",9.4485747731697101E-2,0.11007241327211501,0.130193117618258,0.15511464739348099,0.12287380105533301,0.15651121951715299,0.27362024337774599,1052403322151.41,8309665619609.71,0.11731758496008,0.13842221787327499,0.12007341487529299,151,0.11731758496008,0.13842221787327499,0,"Total Capital Ratio22",202012,2,"Total Capital Ratio","FR",0,13,0.19482346602556,22,"",null,"BE_LIQ_17",".",".",".",".",".",".",".",".",1.2451745732999999,1.314691724,1.3891134301000001,1.3427269526000001,1.3858243367,1.3448448983000001,1.4166162828,1.3774786234,1.4536936706000001,1.5166552091000001,1.3936613247,1.3445411162000001,1.3823504393999999,1.4309390251,1.3348733788,1.5829979803000001,1.6662724711000001,1.8287512566999999]
["Tier 1 Ratio excluding hybrid instruments201412",201412,3,"Tier 1 Ratio excluding hybrid instruments",9.4013811778210804E-2,0.11218230877337999,0.12826204841577299,0.15560422154949299,0.124807072606142,0.15493636072431299,0.314012370860284,1050585052719.55,8246801610474.5303,0.13053714924079801,0.13639243485463301,0.121654388480654,153,0.121654388480654,0.13639243485463301,0,"Total Capital Ratio23",202012,2,"Total Capital Ratio","AT",0,11,0.19388190304654701,23,"",null,"BE_PFT_21",5.49291399E-2,6.1661506999999997E-2,5.3916210999999999E-2,8.7601288200000002E-2,8.7908951200000002E-2,9.8898980299999995E-2,8.2826139100000001E-2,8.8108779299999995E-2,9.7524336500000003E-2,9.9430719799999998E-2,6.7747201600000001E-2,9.0388913099999996E-2,8.5273475099999996E-2,8.0647974999999997E-2,5.0938274200000001E-2,6.2995709699999999E-2,7.0324825600000002E-2,6.8705524899999995E-2,3.1900642299999997E-2,6.5631263699999998E-2,6.4803311399999994E-2,6.9392487500000002E-2,-2.801652E-2,1.3365244199999999E-2,3.6420777500000001E-2,4.7392784299999997E-2]
["Tier 1 Ratio excluding hybrid instruments201503",201503,3,"Tier 1 Ratio excluding hybrid instruments",9.08051595491257E-2,0.11354936017723601,0.129391333265997,0.15605888867211301,0.123801180352914,0.15166841062977901,0.28109265922353299,1077320365232.78,8530375001949.6797,0.127467924236351,0.13428465796175801,0.12116042966295699,154,0.12116042966295699,0.13428465796175801,0,"Total Capital Ratio24",202012,2,"Total Capital Ratio","SK",0,3,0.192915525787998,24,"",null,"BE_PFT_23",0.66158145180000005,0.63921495009999996,0.69101323049999996,0.58649892960000005,0.57791990820000005,0.57841814130000002,0.74997905760000005,0.63942895399999999,0.59703056860000003,0.58683656399999995,0.73077090170000003,0.62412681660000002,0.59861009239999996,0.59533145109999996,0.77783389629999999,0.68543043569999995,0.64321501619999999,0.63396734119999998,0.79225740020000002,0.65460619819999999,0.6358244891,0.62338767920000004,1.0122734413000001,0.72241096520000003,0.6499620317,0.62398991000000004]
["Tier 1 Ratio excluding hybrid instruments201506",201506,3,"Tier 1 Ratio excluding hybrid instruments",9.6691874284212997E-2,0.115722392348831,0.130475909404729,0.156414358434597,0.128295210784762,0.15859093657894699,0.30151955653595802,1087047600135.6,8399529956028.1201,0.13516570559202901,0.136971224609688,0.12569788599665199,153,0.12569788599665199,0.136971224609688,0,"Total Capital Ratio25",202012,2,"Total Capital Ratio","HU",0,4,0.17786458425976001,25,"",null,"BE_PFT_24",2.9129525000000001E-3,3.3416499999999998E-3,2.9508395E-3,4.9424661E-3,5.0341485999999998E-3,5.6456908000000004E-3,4.7513698000000004E-3,5.0379155999999998E-3,5.6538396000000001E-3,5.9715971E-3,4.1849132000000002E-3,5.6319452999999998E-3,5.3946304000000002E-3,5.2572052000000001E-3,3.5424049000000002E-3,4.4010456999999999E-3,4.9621921000000003E-3,4.9270399000000001E-3,2.2704915000000001E-3,4.7056957E-3,4.6105306999999996E-3,5.1190819999999996E-3,-1.9894489999999999E-3,9.4261099999999999E-4,2.6029333000000001E-3,3.4344648000000002E-3]
["Tier 1 Ratio excluding hybrid instruments201509",201509,3,"Tier 1 Ratio excluding hybrid instruments",9.78516738787025E-2,0.117155007627499,0.13377790164732201,0.15955437077128201,0.12986241516594099,0.17223832928104099,0.31246186607624699,1079812805685.74,8316749015109.1797,0.14697222348539701,0.139750882534282,0.12593323808183099,153,0.12593323808183099,0.14697222348539701,0,"Total Capital Ratio26",202012,2,"Total Capital Ratio","PT",0,8,0.17660225972193599,26,"",null,"BE_PFT_25",0.73127617020000002,0.71064202919999997,0.67342215019999996,0.64478422160000004,0.66180639959999998,0.66806872399999995,0.71106982799999996,0.70003086869999998,0.68324338620000002,0.67241206659999997,0.62654010839999996,0.61670438059999999,0.61742535279999999,0.62066754239999999,0.66934390519999998,0.66501442259999999,0.65443843930000001,0.65562461540000005,0.70062393160000003,0.65796368500000002,0.67357939739999995,0.67113926099999999,0.88117481090000005,0.69601547119999996,0.66597668730000004,0.65801284540000005]
["Tier 1 Ratio excluding hybrid instruments201512",201512,3,"Tier 1 Ratio excluding hybrid instruments",0.10642316097837801,0.12347696620283501,0.139616320150837,0.16768952918256999,0.13541172015891501,0.17056095048352601,0.32484714955141197,1112212005965.6299,8249575309189.5703,0.152450107701528,0.14842063491388799,0.130837237286969,152,0.130837237286969,0.152450107701528,0,"Total Capital Ratio27",202012,2,"Total Capital Ratio","SI",0,6,0.173053440277952,27,"",null,"BE_PFT_26",0.2532273196,0.246292706,0.24755989480000001,0.24013328240000001,0.23984190899999999,0.23615177909999999,0.2223168938,0.2275212848,0.22177511720000001,0.22017341579999999,0.23285754280000001,0.22678052949999999,0.2262609679,0.2303398683,0.24173716579999999,0.24337160090000001,0.2372796338,0.23476441079999999,0.2287396733,0.22116464089999999,0.225851368,0.2258297591,0.30802158740000002,0.23574431069999999,0.22563334060000001,0.2264500139]
["Tier 1 Ratio excluding hybrid instruments201603",201603,3,"Tier 1 Ratio excluding hybrid instruments",0.10499262637876799,0.12388225001367099,0.14131629450831401,0.17065377798395701,0.13402296696264501,0.17340300753474999,0.38270893729505601,1095475390010.0601,8237994365813.9502,0.15191947025673,0.14809622479173801,0.12880195069992401,156,0.12880195069992401,0.15191947025673,0,"Total Capital Ratio28",202012,2,"Total Capital Ratio","GR",0,4,0.16757029292491399,28,"",null,"BE_PFT_29",-1.6823042999999999E-2,-1.2212631999999999E-2,5.7670475200000001E-2,5.1190901699999999E-2,5.6568359399999997E-2,3.0651002399999999E-2,-3.2957166000000003E-2,5.1252527999999997E-3,1.8393596599999999E-2,5.6872555399999997E-2,1.6538091899999999E-2,-7.6655830000000001E-3,3.3813379599999999E-2,3.2750756800000003E-2,7.1094217099999996E-2,7.5242523000000006E-2,7.4054182499999996E-2,4.3871831600000001E-2,7.2806702900000006E-2,5.27258637E-2,7.4474813799999998E-2,3.5898629299999998E-2,-0.26768055099999999,-3.5233533999999997E-2,-1.8761611000000001E-2,1.9482993E-3]
["Tier 1 Ratio excluding hybrid instruments201606",201606,3,"Tier 1 Ratio excluding hybrid instruments",0.107513942229432,0.123016537747522,0.14241031470385301,0.17280669334220899,0.136100852293215,0.17556332201223901,0.39709984163133399,1108353295222.2,8240557384431.2598,0.15666950667040999,0.150791887662345,0.13046739982931199,156,0.13046739982931199,0.15666950667040999,0,"Total Capital Ratio29",202012,2,"Total Capital Ratio","ES",0,15,0.166848149552074,29,"",null,"BE_PFT_41",1.26098662E-2,1.33764017E-2,1.35905288E-2,1.4024784E-2,1.3900101099999999E-2,1.4097108299999999E-2,1.38127418E-2,1.3842644100000001E-2,1.38692604E-2,1.3950605200000001E-2,1.3161180499999999E-2,1.3108275500000001E-2,1.31543222E-2,1.33864547E-2,1.3458174200000001E-2,1.33731335E-2,1.3328850099999999E-2,1.38458348E-2,1.38634156E-2,1.37990913E-2,1.37648818E-2,1.4155761899999999E-2,1.37769738E-2,1.3149427E-2,1.3061364799999999E-2,1.31075307E-2]
["Tier 1 Ratio excluding hybrid instruments201609",201609,3,"Tier 1 Ratio excluding hybrid instruments",0.111077456881663,0.124584736705007,0.14504178192276701,0.178812716872672,0.14026969941838899,0.179368545199141,0.446796692622486,1116594412423.1101,8163121390944.1396,0.16604499226504901,0.15199631706389899,0.134661447170283,155,0.134661447170283,0.16604499226504901,0,"Total Capital Ratio99",202012,2,"Total Capital Ratio","EU",0,129,0.19724888866266099,99,"",null,"BE_PFT_43",".",".",".",".",".",".",".",".",".",".",".",".",".",".",1.3020012E-3,1.364718E-3,1.5644967999999999E-3,1.7609468000000001E-3,2.5916628000000001E-3,2.3229588999999998E-3,2.2561043000000002E-3,2.3585514000000001E-3,3.7107938999999999E-3,6.4062514000000001E-3,5.4792490999999999E-3,5.0395470000000001E-3]
["Tier 1 Ratio excluding hybrid instruments201612",201612,3,"Tier 1 Ratio excluding hybrid instruments",0.109809925372555,0.125336530966592,0.14696374505358401,0.18745198589031301,0.142050787625879,0.18758588190504799,0.46213014682218001,1124316031213.05,8121938117821.8203,0.17397863871261099,0.153225452710579,0.13573817525713799,158,0.13573817525713799,0.17397863871261099,0,"Total Capital Ratio100",202012,2,"Total Capital Ratio","GB",0,26,0.21508567279854601,100,"",null,"BE_SVC_1",0.1562148538,0.15787236230000001,0.1503343093,0.16351159069999999,0.1651079943,0.16225191889999999,0.1549246829,0.15679643609999999,0.16052604170000001,0.16513204779999999,0.16091666839999999,0.1651820165,0.16793517969999999,0.17695758680000001,0.17650176419999999,0.17703909479999999,0.17947265300000001,0.17579583100000001,0.1669899484,0.17008896179999999,0.16731830640000001,0.1766489091,0.171028494,0.17768790070000001,0.1807897601,0.19147733859999999]
["Tier 1 Ratio excluding hybrid instruments201703",201703,3,"Tier 1 Ratio excluding hybrid instruments",0.10590998930156301,0.124788532994152,0.14639444331837401,0.184293522219136,0.140935847072303,0.18764280735288399,0.449395694090723,1130718430253.6499,8159676681762.2803,0.15605820138989801,0.15603207852165399,0.136042777775148,153,0.136042777775148,0.15605820138989801,0,"Tier 1 Ratio excluding hybrid instruments1",202012,3,"Tier 1 Ratio excluding hybrid instruments","EE",0,4,0.27513970865875198,1,"",null,"BE_SVC_12",".",".",".",".",".",".",".",".",4.7473271499999997E-2,4.5960770300000002E-2,5.0299084500000001E-2,4.5876124599999998E-2,4.70983809E-2,5.7718054099999999E-2,5.8627679799999999E-2,5.9462715800000003E-2,6.0169067600000001E-2,6.1333307300000001E-2,5.6809494600000003E-2,5.83119068E-2,5.7218134099999998E-2,6.1654518200000001E-2,5.9161045500000002E-2,5.8435054100000001E-2,6.1968868000000003E-2,6.8702461699999995E-2]
["Tier 1 Ratio excluding hybrid instruments201706",201706,3,"Tier 1 Ratio excluding hybrid instruments",0.10940466025656199,0.129844389979515,0.14971689320228601,0.19024404350947699,0.14288088525468301,0.19096091486750399,0.41540677487233402,1138478589114.76,8141786122887.25,0.159243611729629,0.15872189060849501,0.13771598661499099,151,0.13771598661499099,0.159243611729629,0,"Tier 1 Ratio excluding hybrid instruments2",202012,3,"Tier 1 Ratio excluding hybrid instruments","LV",0,5,0.26255041750060298,2,"",null,"BE_SVC_13",".",".",".",".",".",".",".",".",5.2761123799999997E-2,5.5713029800000001E-2,5.29039174E-2,5.3517763599999997E-2,5.4725774800000002E-2,5.9872264100000003E-2,5.9199298599999998E-2,5.9868000300000002E-2,6.0578202499999997E-2,6.1764580600000001E-2,5.7131597300000003E-2,5.86392653E-2,5.7541737500000002E-2,6.1986396499999999E-2,5.9448464999999999E-2,5.8808622200000001E-2,6.2449811600000002E-2,6.9932412900000004E-2]
["Tier 1 Ratio excluding hybrid instruments201709",201709,3,"Tier 1 Ratio excluding hybrid instruments",0.111487711431547,0.130888986414229,0.15230833242776201,0.19203980090998801,0.146059784390909,0.18995111745683199,0.42178672970867598,1156768573029.6599,8017138330232.5596,0.15437792872002401,0.16496016202977301,0.14121203620905801,151,0.14121203620905801,0.16496016202977301,0,"Tier 1 Ratio excluding hybrid instruments3",202012,3,"Tier 1 Ratio excluding hybrid instruments","HR",0,3,0.24060347609882399,3,"",null,"BE_SVC_2",0.1743839297,0.17753573380000001,0.1689973505,0.18245676159999999,0.1833967641,0.183102398,0.17292915910000001,0.17661734179999999,0.1799875346,0.18540575500000001,0.1814212432,0.18510596800000001,0.1870499236,0.19555397829999999,0.1946443243,0.19517112240000001,0.19745241190000001,0.19656668829999999,0.1871861732,0.19007223000000001,0.18700100040000001,0.19594281699999999,0.18988502930000001,0.19699602390000001,0.2002123374,0.21106533029999999]
[{"$f":"+D67&B67","v":"Tier 1 Ratio excluding hybrid instruments201712"},201712,3,"Tier 1 Ratio excluding hybrid instruments",0.115997184785479,0.13486151784021899,0.15770107494788199,0.20629874378947599,0.14874852209682199,0.20149298248719599,0.43714706269239401,1173052240771.79,7969623635373.7695,0.156022209272622,0.17039382621681901,0.143449515301762,152,{"$f":"MIN(N67:P67)","v":0.143449515301762},{"$f":"MAX(N67:P67)","v":0.17039382621681901},{"$f":"IF(OR(G67<R67,G67>S67),1,0)","v":0},{"$f":"CONCATENATE(X67,AC67)","v":"Tier 1 Ratio excluding hybrid instruments4"},202012,3,"Tier 1 Ratio excluding hybrid instruments","BG",0,4,0.229349102910686,4,"",null,"BE_SVC_29",0.1003287252,0.10516618730000001,0.1054522852,0.11391381220000001,0.1182205774,0.1215349721,0.11864477449999999,0.12059013809999999,0.1248573468,0.1311299625,0.13140966649999999,0.13631702740000001,0.13926550530000001,0.16518939360000001,0.16792585039999999,0.16624674819999999,0.16855776580000001,0.1689633317,0.15714430409999999,0.1589244118,0.15627547510000001,0.16564575610000001,0.16052578949999999,0.1664774836,0.16927445159999999,0.1777798367]
["Tier 1 Ratio excluding hybrid instruments201803",201803,3,"Tier 1 Ratio excluding hybrid instruments",0.113339595775952,0.132533511861404,0.15508230357937,0.201308829446394,0.14497369147924299,0.20100458763052001,0.44301030689141102,1140134297376.8999,7991743373679.1104,0.15314874280777999,0.167045563614062,0.13952348623027999,151,0.13952348623027999,0.167045563614062,0,"Tier 1 Ratio excluding hybrid instruments5",202012,3,"Tier 1 Ratio excluding hybrid instruments","CZ",0,3,0.223906800761003,5,"",null,"BE_SVC_3",0.14768746769999999,0.15220123320000001,0.14476649429999999,0.1575664474,0.15929190979999999,0.1565898097,0.14923724120000001,0.15119880829999999,0.1549717565,0.15942418320000001,0.15496095600000001,0.15928908950000001,0.161914535,0.17094633649999999,0.1690636382,0.16672992419999999,0.16904663810000001,0.1694574814,0.15750757439999999,0.15929107370000001,0.15663878549999999,0.16601491909999999,0.16076851659999999,0.1669781534,0.17002485649999999,0.1808072825]
["Tier 1 Ratio excluding hybrid instruments201806",201806,3,"Tier 1 Ratio excluding hybrid instruments",0.115250058661618,0.13489570706352799,0.15701469977173799,0.19995937737220801,0.14504853329547401,0.21048894602781901,0.416399345632398,1143903868513.8999,8057460127133.4199,0.15908775286629301,0.167213868656228,0.138884622896458,151,0.138884622896458,0.167213868656228,0,"Tier 1 Ratio excluding hybrid instruments6",202012,3,"Tier 1 Ratio excluding hybrid instruments","IS",0,3,0.21935643233680599,6,"",null,"BG_AQT_3.1",0.15767357709999999,0.12834243870000001,0.1326653984,0.11855667459999999,0.1144015291,0.12408073360000001,0.12142220350000001,0.1217913841,0.1174956774,0.11006856080000001,0.1089698216,0.1083301542,0.10309999189999999,9.0200253499999994E-2,7.9977474699999995E-2,7.94841518E-2,7.4504859699999995E-2,7.1835577299999995E-2,6.9999529599999999E-2,6.2188887499999998E-2,6.7193965600000002E-2,6.1710745999999997E-2,6.28629193E-2,6.4661082100000003E-2,6.0477471599999999E-2,5.9393862899999997E-2]
["Tier 1 Ratio excluding hybrid instruments201809",201809,3,"Tier 1 Ratio excluding hybrid instruments",0.114363680740499,0.13339229412853901,0.15924776225996801,0.20392302399391901,0.146943487172881,0.208174582976622,0.41916586006746898,1144448367415.1001,8010195758213.3896,0.16767761816235099,0.168026470182258,0.14025323939013301,150,0.14025323939013301,0.168026470182258,0,"Tier 1 Ratio excluding hybrid instruments7",202012,3,"Tier 1 Ratio excluding hybrid instruments","LT",0,4,0.212106241830608,7,"",null,"BG_AQT_3.2",0.1726266327,0.1392984542,0.14820138890000001,0.13141280159999999,0.12676032709999999,0.13736639070000001,0.13662387819999999,0.1372477426,0.13241407660000001,0.125306161,0.1240579429,0.1244730235,0.1172264761,0.1057215786,9.3228417499999994E-2,9.29429321E-2,8.6618736799999999E-2,8.2854766699999999E-2,8.0840914299999997E-2,7.1747649400000002E-2,7.7763383500000005E-2,7.1681600299999995E-2,7.4175381499999998E-2,7.6585151599999998E-2,7.1791423899999998E-2,7.0213793100000005E-2]
["Tier 1 Ratio excluding hybrid instruments201812",201812,3,"Tier 1 Ratio excluding hybrid instruments",0.11668098663332201,0.135507964257747,0.156680567114967,0.20647523227905201,0.147492882792119,0.202742856260858,0.49126708956414999,1165245412108.1201,8136831844231.4404,0.175148935078448,0.170342433766281,0.13989317019306699,149,0.13989317019306699,0.175148935078448,0,"Tier 1 Ratio excluding hybrid instruments8",202012,3,"Tier 1 Ratio excluding hybrid instruments","MT",0,5,0.20451146547889701,8,"",null,"BG_AQT_31",0.17638746159999999,6.12667114E-2,6.2100154599999999E-2,5.3767468999999998E-2,5.0251703299999999E-2,5.0222799700000001E-2,4.7774598799999998E-2,4.8253273200000002E-2,4.2595190900000003E-2,4.2839678300000003E-2,4.0454213099999997E-2,4.0124270400000002E-2,3.8828238700000003E-2,3.8058093899999999E-2,2.6233609200000001E-2,2.1356646999999999E-2,2.10974939E-2,1.9029884899999999E-2,2.2794443399999999E-2,2.1718723499999999E-2,2.5948984099999999E-2,2.0771696999999999E-2,2.2056636000000001E-2,2.13415684E-2,1.8826951000000001E-2,1.78240567E-2]
["Tier 1 Ratio excluding hybrid instruments201903",201903,3,"Tier 1 Ratio excluding hybrid instruments",0.11566735285922899,0.13459578380186399,0.15592524136039601,0.19173264201510401,0.14542224659106401,0.192077657821737,0.36914833302352901,1183131223147.95,8329087152823.8398,0.16914375654776001,0.16416918477252401,0.138800047929065,150,0.138800047929065,0.16914375654776001,0,"Tier 1 Ratio excluding hybrid instruments9",202012,3,"Tier 1 Ratio excluding hybrid instruments","LU",0,11,0.20199433045717599,9,"",null,"BG_AQT_41.2",0.52768667579999995,0.52978130590000005,0.53596202260000003,0.54242912789999997,0.54885859849999996,0.55836262969999995,0.56727713859999995,0.5684124988,0.59909162699999996,0.57774323029999997,0.58265915540000002,0.58186350919999996,0.58084372620000002,0.54483317129999997,0.59385117350000005,0.60155387599999999,0.60522355630000002,0.57899384190000003,0.54330942019999995,0.52555842230000005,0.4879860338,0.49029526179999999,0.4909868268,0.48341474099999998,0.4954397237,0.50562019469999997]
["Tier 1 Ratio excluding hybrid instruments201906",201906,3,"Tier 1 Ratio excluding hybrid instruments",0.11803724261261,0.139351380988324,0.15513776896098799,0.191292820239922,0.14631293844912999,0.194431608517313,0.39696510990987499,1198674272943.8501,8367777415843.4102,0.170552223162487,0.16496823605219499,0.13972620337977901,148,0.13972620337977901,0.170552223162487,0,"Tier 1 Ratio excluding hybrid instruments10",202012,3,"Tier 1 Ratio excluding hybrid instruments","RO",0,3,0.19839120818472,10,"",null,"BG_AQT_42.2",4.5020703299999999E-2,6.1773769499999999E-2,6.2908053800000002E-2,5.8815778899999997E-2,6.8632507999999995E-2,8.7247737699999994E-2,8.5869399700000001E-2,8.3596783399999999E-2,7.8769954899999994E-2,7.7703663699999995E-2,7.7433864599999999E-2,7.9936043299999995E-2,7.3240303199999995E-2,6.9854434899999998E-2,6.8849792500000007E-2,6.7747634000000001E-2,6.3351894899999997E-2,7.0961448600000004E-2,5.9733280399999998E-2,6.1720424500000003E-2,5.9569802900000003E-2,6.0834727499999998E-2,6.2326268400000003E-2,6.4583742599999994E-2,6.4885745100000003E-2,6.0304271600000001E-2]
["Tier 1 Ratio excluding hybrid instruments201909",201909,3,"Tier 1 Ratio excluding hybrid instruments",0.119115954792509,0.136801002725291,0.154944127206745,0.189272978599939,0.145929122522828,0.18842676550482701,0.37193119445202999,1210920042307.8601,8447097624298.29,0.16737505881821799,0.164194187175941,0.13960694875349899,148,0.13960694875349899,0.16737505881821799,0,"Tier 1 Ratio excluding hybrid instruments11",202012,3,"Tier 1 Ratio excluding hybrid instruments","SE",0,8,0.195318568864221,11,"",null,"BG_FND_32",0.98635698319999998,0.9060611221,0.85898034479999996,0.84541130909999995,0.82141211709999995,0.75082129080000004,0.75574662110000002,0.75310408019999997,0.7447118398,0.71794451960000005,0.7208366531,0.72628451940000005,0.71378820080000005,0.69101957820000004,0.70590730170000004,0.71214462700000003,0.70179775840000003,0.70490091479999994,0.70111064229999998,0.73858340010000001,0.72456492090000002,0.71085513339999995,0.72068569419999995,0.69739572540000005,0.68692109199999996,0.66945481039999999]
["Tier 1 Ratio excluding hybrid instruments201912",201912,3,"Tier 1 Ratio excluding hybrid instruments",0.122689800298092,0.14190155397694601,0.159713519223317,0.19371666672934801,0.152486380089708,0.19574611201182199,0.33382777738741898,1246636684704.04,8355116760591.5098,0.185677395844455,0.168309121179952,0.145449038758969,147,0.145449038758969,0.185677395844455,0,"Tier 1 Ratio excluding hybrid instruments12",202012,3,"Tier 1 Ratio excluding hybrid instruments","NO",0,4,0.193590469097498,12,"",null,"BG_FND_33",".",9.4277888099999999E-2,8.3474912400000004E-2,5.18871703E-2,4.7298849499999997E-2,4.5978531000000003E-2,4.8739150199999998E-2,4.7440449699999998E-2,4.6362222600000003E-2,4.4384563100000003E-2,4.5910781499999997E-2,4.7905632300000001E-2,2.5202783400000001E-2,1.8160043000000001E-2,1.8688346000000002E-2,2.2506952100000002E-2,1.7789757999999999E-2,1.6991779200000001E-2,2.37845322E-2,2.3653816000000001E-2,2.2146869E-2,7.4562169799999994E-2,2.7335813699999999E-2,3.0843911599999999E-2,2.8769501699999998E-2,5.35051738E-2]
["Tier 1 Ratio excluding hybrid instruments202003",202003,3,"Tier 1 Ratio excluding hybrid instruments",0.118888512458782,0.13444080892968999,0.157820600172209,0.187727348455556,0.145759699803888,0.19219908399900401,0.339917896920784,1225863481033.4099,8503973038323.29,0.195306078841776,0.16217159021253699,0.13982580883333301,131,0.13982580883333301,0.195306078841776,0,"Tier 1 Ratio excluding hybrid instruments13",202012,3,"Tier 1 Ratio excluding hybrid instruments","IE",0,8,0.188760385117721,13,"",null,"BG_LIQ_17",".",".",".",".",".",".",".",".",2.4253768422999999,2.7392655528000001,2.6641451303000001,2.7444948551000001,2.8167452303,3.1752502341,3.2402245679999999,2.9372346605000001,3.0380197003,2.7207356317000002,2.5090575545,2.1988100378,2.2781333732000002,2.3551004495000001,2.1784757772000001,2.1563792184000001,2.2236935745999999,2.5006425156000001]
["Tier 1 Ratio excluding hybrid instruments202006",202006,3,"Tier 1 Ratio excluding hybrid instruments",0.122598458381474,0.13808263611758401,0.16249332218208501,0.195318556079846,0.15043314798541499,0.194991597357141,0.33788169464318901,1256149975342.3601,8451237021985.4805,0.201207907637135,0.16621163502283101,0.14465422003506501,131,0.14465422003506501,0.201207907637135,0,"Tier 1 Ratio excluding hybrid instruments14",202012,3,"Tier 1 Ratio excluding hybrid instruments","DK",0,5,0.188352388653758,14,"",null,"BG_PFT_21",0.13650145720000001,0.11974871920000001,0.1665879294,0.15571074709999999,0.1555714037,0.1407977893,0.16409058800000001,0.19358160269999999,0.16873305359999999,0.14845972190000001,0.1247919041,0.14278302540000001,0.1446198783,0.1429298819,0.1089051214,0.13351220080000001,0.1403077385,0.13677135579999999,8.9635684399999999E-2,0.1222484538,0.11717314719999999,0.11898381450000001,5.3888599400000001E-2,5.66160011E-2,6.0589510300000003E-2,5.7846492899999997E-2]
["Tier 1 Ratio excluding hybrid instruments202009",202009,3,"Tier 1 Ratio excluding hybrid instruments",0.124835686422505,0.14234149453057299,0.16752881604679701,0.20369913827170799,0.15435779398692601,0.193888366427588,0.40156202383991402,1264942599090.1399,8324730655495.3896,0.21962084678817301,0.16914628166026999,0.148319973606068,129,0.148319973606068,0.21962084678817301,0,"Tier 1 Ratio excluding hybrid instruments15",202012,3,"Tier 1 Ratio excluding hybrid instruments","FI",0,7,0.18090563004990801,15,"",null,"BG_PFT_23",0.41218982589999997,0.38120326059999998,0.38483403290000001,0.38788765879999998,0.38641442929999997,0.37157767419999999,0.37425702779999998,0.34451393829999999,0.34145108639999999,0.33949965100000001,0.40489205969999997,0.3935989654,0.38526995289999999,0.37994695919999999,0.43286445159999998,0.41037100100000001,0.39404003030000001,0.38160609249999999,0.48961526989999998,0.43180771429999998,0.43366095840000002,0.42909578659999997,0.55560554390000005,0.56464088489999997,0.53292060600000002,0.52097922060000001]
["Tier 1 Ratio excluding hybrid instruments202012",202012,3,"Tier 1 Ratio excluding hybrid instruments",0.12285786418156699,0.14625472310944701,0.172476223459193,0.22174026583030501,0.158609426904878,0.20221481625111401,0.34011369818873399,1311575021866.03,8387282252067.6299,0.21280168637078101,0.17426487980910199,0.15252579379501299,129,0.15252579379501299,0.21280168637078101,0,"Tier 1 Ratio excluding hybrid instruments16",202012,3,"Tier 1 Ratio excluding hybrid instruments","PL",0,3,0.18081396745036499,16,"",null,"BG_PFT_24",1.88649119E-2,1.5991719500000001E-2,2.2439073300000001E-2,2.0292536E-2,2.0454018099999999E-2,1.84508156E-2,2.0864712000000001E-2,2.4661849600000001E-2,2.1867495099999999E-2,1.9211050300000001E-2,1.5966926499999999E-2,1.8558467200000001E-2,1.9048841100000002E-2,1.9185054300000001E-2,1.47236565E-2,1.7825837899999999E-2,1.8847165400000001E-2,1.9955664599999999E-2,1.3101562000000001E-2,1.6825153299999999E-2,1.5838573000000002E-2,1.62183113E-2,7.0105638000000003E-3,7.4017828000000003E-3,7.9643065000000006E-3,7.5080388000000001E-3]
["Impaired financial assets to total assets201409",201409,18,"Impaired financial assets to total assets",1.3103036373965701E-3,9.7288353108167195E-3,2.67434438238256E-2,6.1329737704379703E-2,2.2981609198565602E-2,7.9659669965269006E-2,0.21721217752793201,539492515663.95203,22209833432018.301,0.17212608055895401,6.8370452679230601E-2,1.54960190417394E-2,121,1.54960190417394E-2,0.17212608055895401,0,"Tier 1 Ratio excluding hybrid instruments17",202012,3,"Tier 1 Ratio excluding hybrid instruments","BE",0,8,0.18080728252108799,17,"",null,"BG_PFT_25",0.69178732269999998,0.65560643630000004,0.72539497730000002,0.72284412769999995,0.72027380649999995,0.64642882359999998,0.77412361350000003,0.70283658550000006,0.69463949560000005,0.70408679569999999,0.76309181879999999,0.69914230229999996,0.68337197910000003,0.67774730890000001,0.75679108650000004,0.69821492740000002,0.66867007680000001,0.63105816270000004,0.74803658419999997,0.65504771530000006,0.66392742159999996,0.63668855290000004,0.8196150593,0.65788371270000001,0.65319418119999995,0.64179064799999996]
["Impaired financial assets to total assets201412",201412,18,"Impaired financial assets to total assets",1.21560013935304E-3,8.1327062285145302E-3,2.3421586346980501E-2,5.1445556029251001E-2,2.1903333042857399E-2,7.3691571706386794E-2,0.16170045565181601,496384373083.77899,22144497226222.699,0.12614169859727301,6.3731003982584203E-2,1.51241559558847E-2,125,1.51241559558847E-2,0.12614169859727301,0,"Tier 1 Ratio excluding hybrid instruments18",202012,3,"Tier 1 Ratio excluding hybrid instruments","NL",0,6,0.17034320106758299,18,"",null,"BG_PFT_26",0.22247274410000001,0.2028250355,0.20281300890000001,0.21101651939999999,0.21478342289999999,0.19561210540000001,0.2279160858,0.2161079924,0.21864689700000001,0.2265814384,0.26857917170000001,0.2605909475,0.25633440419999998,0.2584418798,0.29158487360000002,0.28220400359999998,0.2730295647,0.26089276420000002,0.31114424889999998,0.27112106289999999,0.27511211279999997,0.2710494128,0.32386879270000002,0.26241663440000002,0.27072618129999998,0.27468497739999997]
["Impaired financial assets to total assets201503",201503,18,"Impaired financial assets to total assets",1.21468655178834E-3,7.6076322932350504E-3,2.0647729436820399E-2,4.9801026741105002E-2,2.0103063193004998E-2,7.5560234407950802E-2,0.16540820885729099,506252985086.48999,23641812006105.102,9.5720453214128198E-2,6.4633765198487902E-2,1.3563821200345501E-2,124,1.3563821200345501E-2,9.5720453214128198E-2,0,"Tier 1 Ratio excluding hybrid instruments19",202012,3,"Tier 1 Ratio excluding hybrid instruments","CY",0,4,0.167924983442788,19,"",null,"BG_PFT_29",4.2200502299999998E-2,5.0144230400000003E-2,0.16051843230000001,6.3864773400000005E-2,3.8536006800000001E-2,5.12355081E-2,-0.13168674999999999,5.133248E-3,-2.8184989000000001E-2,2.2521827500000001E-2,-1.4875381999999999E-2,-0.107351981,-9.1239957999999996E-2,-6.8604664999999995E-2,-2.8328498000000001E-2,0.1412180951,9.4954200200000005E-2,7.2069837999999997E-2,8.4409981100000003E-2,4.0115050899999997E-2,7.0724673599999996E-2,4.6234570199999998E-2,0.190585791,0.1377851792,6.7364721099999997E-2,3.3800615499999999E-2]
["Impaired financial assets to total assets201506",201506,18,"Impaired financial assets to total assets",1.2838773802535E-3,7.0902170876984503E-3,2.0806846759671201E-2,5.0721900227133201E-2,1.9827939062155301E-2,6.9964755932105702E-2,0.15805120517194601,483725506693.92999,22448930471298.699,0.124256288424933,6.21131778302507E-2,1.3285784898854401E-2,122,1.3285784898854401E-2,0.124256288424933,0,"Tier 1 Ratio excluding hybrid instruments20",202012,3,"Tier 1 Ratio excluding hybrid instruments","SK",0,3,0.15934125124456799,20,"",null,"BG_PFT_41",4.0697668200000002E-2,3.9620176299999997E-2,4.1497881299999997E-2,4.1463559499999997E-2,4.0792380199999999E-2,4.0286760999999997E-2,3.9563524900000001E-2,3.9250968300000001E-2,3.8682540600000002E-2,3.80386775E-2,3.3672317600000001E-2,3.4602689200000002E-2,3.4296730900000003E-2,3.3943432799999999E-2,3.2988977599999997E-2,3.2368796300000002E-2,3.19892019E-2,3.1363983999999998E-2,2.80736454E-2,2.9904168500000002E-2,2.96675616E-2,2.8913163700000001E-2,2.6965579E-2,2.60889877E-2,2.5547291699999999E-2,2.49419601E-2]
["Impaired financial assets to total assets201509",201509,18,"Impaired financial assets to total assets",1.11565636692001E-3,6.5835295759647701E-3,2.0694397437513602E-2,4.8665780652595698E-2,1.8949730048732401E-2,6.9107943079168094E-2,0.167319202151679,464225535523.87201,22437062314632.699,0.125494534719437,6.0371531651776E-2,1.2649241493504101E-2,122,1.2649241493504101E-2,0.125494534719437,0,"Tier 1 Ratio excluding hybrid instruments21",202012,3,"Tier 1 Ratio excluding hybrid instruments","FR",0,13,0.15921448139681099,21,"",null,"BG_PFT_43",".",".",".",".",".",".",".",".",".",".",".",".",".",".",1.58123932E-2,1.32694127E-2,1.29795893E-2,1.37957449E-2,8.7586098000000008E-3,1.3214854700000001E-2,1.3011514700000001E-2,1.3762893E-2,1.06208568E-2,1.68572411E-2,1.6523499399999999E-2,1.62270843E-2]
["Impaired financial assets to total assets201512",201512,18,"Impaired financial assets to total assets",1.0451410746457599E-3,6.5525630983678503E-3,1.73296846189206E-2,4.0475900022631198E-2,1.8427299074871301E-2,6.1036791540048201E-2,0.15356516007850601,440567087658.43402,21851471205496,6.9192322559499295E-2,5.1664555457507803E-2,1.29315580279086E-2,126,1.29315580279086E-2,6.9192322559499295E-2,0,"Tier 1 Ratio excluding hybrid instruments22",202012,3,"Tier 1 Ratio excluding hybrid instruments","DE",0,23,0.15670092146133299,22,"",null,"BG_SVC_1",0.1735214776,0.1724827082,0.17898341370000001,0.18290575880000001,0.18513845600000001,0.1856479892,0.19564445829999999,0.19373836589999999,0.19876975429999999,0.20179344290000001,0.20296057540000001,0.20815060490000001,0.2056175791,0.21016277729999999,0.1982414408,0.1984094847,0.19173410269999999,0.1987356485,0.18767957430000001,0.1928071388,0.19538513960000001,0.19828993789999999,0.1984142576,0.2344381136,0.23458864099999999,0.2359565813]
["Impaired financial assets to total assets201603",201603,18,"Impaired financial assets to total assets",1.1779488583456301E-3,5.8112583093098899E-3,1.75963581737421E-2,3.9972603528481601E-2,1.75162989150951E-2,5.36738038751065E-2,0.156277790274264,433517187265.68201,22504810375556.801,7.9494687992807594E-2,5.0529890917830597E-2,1.21307012368455E-2,128,1.21307012368455E-2,7.9494687992807594E-2,0,"Tier 1 Ratio excluding hybrid instruments23",202012,3,"Tier 1 Ratio excluding hybrid instruments","HU",0,4,0.15606523748190099,23,"",null,"BG_SVC_12",".",".",".",".",".",".",".",".",0.109928452,0.1070702014,0.1062971506,0.1150494982,0.11370522819999999,0.113653737,0.10832560030000001,0.1116424808,0.1083596015,9.9216589999999993E-2,0.1015303328,0.1096591239,0.1074175685,0.1061279631,0.1123933956,0.119514026,0.12021051169999999,0.1119792772]
["Impaired financial assets to total assets201606",201606,18,"Impaired financial assets to total assets",1.1049522741720301E-3,6.2948925258382096E-3,1.6076264455110501E-2,3.9698847488904898E-2,1.6924407349510499E-2,5.0571673611736E-2,0.159472479048022,426859330478.73999,22831133792193.102,7.9387608723201303E-2,4.9757993350050198E-2,1.16955244342933E-2,128,1.16955244342933E-2,7.9387608723201303E-2,0,"Tier 1 Ratio excluding hybrid instruments24",202012,3,"Tier 1 Ratio excluding hybrid instruments","IT",0,16,0.15522906806251599,24,"",null,"BG_SVC_13",".",".",".",".",".",".",".",".",0.1086145221,0.1055776959,0.1054426,0.1139937746,0.1125505478,0.11224813190000001,0.1105792692,0.1139003583,0.1105685451,0.1047477876,0.10548246,0.1127669654,0.110170633,0.10854909710000001,0.1145988236,0.1216502985,0.12229573220000001,0.1169559366]
["Impaired financial assets to total assets201609",201609,18,"Impaired financial assets to total assets",1.0866629904759701E-3,6.3061944471275002E-3,1.51807947141931E-2,3.9410300062501701E-2,1.7151540176797899E-2,5.3101971627293798E-2,0.16278892932138,421332189795.43701,22557117991178.602,7.8203041839548404E-2,5.0217808498307898E-2,1.1944226530532299E-2,127,1.1944226530532299E-2,7.8203041839548404E-2,0,"Tier 1 Ratio excluding hybrid instruments25",202012,3,"Tier 1 Ratio excluding hybrid instruments","SI",0,6,0.15374275603967799,25,"",null,"BG_SVC_2",0.1829695684,0.1782898188,0.1833955488,0.18728751060000001,0.18773209120000001,0.1886978275,0.19694113569999999,0.1950711872,0.1999598816,0.2025196849,0.2044792661,0.2098875258,0.2073684002,0.2118846707,0.20004975380000001,0.20026061680000001,0.19359762729999999,0.2005149276,0.18909400300000001,0.19404750100000001,0.1967762099,0.19969747939999999,0.1997044378,0.2357551396,0.23607175,0.23741491040000001]
["Impaired financial assets to total assets201612",201612,18,"Impaired financial assets to total assets",7.7985839643626904E-4,5.6234291939840199E-3,1.39083201441589E-2,3.7682368085271201E-2,1.6484562513630601E-2,4.7442583970610998E-2,0.15630770829882901,394013567136.01001,22490933383176.199,7.6085309414240798E-2,4.19320498473464E-2,1.1680463769661399E-2,130,1.1680463769661399E-2,7.6085309414240798E-2,0,"Tier 1 Ratio excluding hybrid instruments26",202012,3,"Tier 1 Ratio excluding hybrid instruments","GR",0,4,0.151232406020199,26,"",null,"BG_SVC_29",0.16711324329999999,0.16738765899999999,0.1725890685,0.17563069070000001,0.1780292624,0.18031786229999999,0.1889784857,0.18650629490000001,0.19338800880000001,0.19606205209999999,0.19599115910000001,0.20164328270000001,0.19953202010000001,0.2043824045,0.18613781160000001,0.18738953559999999,0.18122597979999999,0.18238346180000001,0.17609027820000001,0.18282820590000001,0.1851021632,0.18638302200000001,0.18832891500000001,0.2209445568,0.2193768073,0.22106671410000001]
["Impaired financial assets to total assets201703",201703,18,"Impaired financial assets to total assets",7.2884136000587096E-4,5.3093279585361202E-3,1.3988221716266701E-2,3.6268673778728999E-2,1.58435742276802E-2,4.07635206953793E-2,0.16230796856551999,383889391478.24103,22546281579708.602,7.6508703887932697E-2,4.4752376154030098E-2,1.1175710895477999E-2,126,1.1175710895477999E-2,7.6508703887932697E-2,0,"Tier 1 Ratio excluding hybrid instruments27",202012,3,"Tier 1 Ratio excluding hybrid instruments","PT",0,8,0.14846500454700901,27,"",null,"BG_SVC_3",0.165839871,0.1648453842,0.1709562563,0.1752800105,0.1770734746,0.17751377160000001,0.18732762959999999,0.18546247430000001,0.19039745050000001,0.19330947300000001,0.19439399930000001,0.19972268579999999,0.19732799949999999,0.20175685160000001,0.19023502789999999,0.19071742259999999,0.18429738070000001,0.19092882990000001,0.18183308740000001,0.18789891710000001,0.1904069189,0.191821978,0.1922153754,0.2276204251,0.2280007248,0.22934910289999999]
["Impaired financial assets to total assets201706",201706,18,"Impaired financial assets to total assets",9.2019723166385096E-4,4.9028712248450103E-3,1.4048414187314701E-2,3.1655156916589301E-2,1.46146994590419E-2,3.4591341015146902E-2,0.137038438657659,368157332818.97101,22282632885611.699,6.4632233661235397E-2,3.92866529613402E-2,1.0682421611932299E-2,123,1.0682421611932299E-2,6.4632233661235397E-2,0,"Tier 1 Ratio excluding hybrid instruments28",202012,3,"Tier 1 Ratio excluding hybrid instruments","AT",0,11,0.14818907866341199,28,"",null,"CY_AQT_3.1",0.52080618430000003,0.45407777240000002,0.4562832818,0.46363090410000002,0.46603213840000002,0.46132455909999998,0.4588222522,0.44779398980000001,0.44154390110000002,0.42661887929999998,0.41226073759999998,0.4002739153,0.38026059600000001,0.36421180520000002,0.36644571570000001,0.30187623679999998,".",".",0.1940437565,0.1747397242,0.1725280052,0.1609072537,0.1628260742,0.1214980896,0.1122636647,9.2231930300000001E-2]
["Impaired financial assets to total assets201709",201709,18,"Impaired financial assets to total assets",1.06145711562356E-3,4.8414468414713398E-3,1.27343138174383E-2,3.0819808166172701E-2,1.4204376754077101E-2,3.0156848577924399E-2,0.131355624503393,356021545025.03601,22167107796556.801,6.2087890014984902E-2,3.8388381458715697E-2,1.0427016084077799E-2,123,1.0427016084077799E-2,6.2087890014984902E-2,0,"Tier 1 Ratio excluding hybrid instruments29",202012,3,"Tier 1 Ratio excluding hybrid instruments","ES",0,15,0.12909962626294999,29,"",null,"CY_AQT_3.2",0.55281706310000001,0.50817341989999998,0.49546305010000002,0.49639065100000002,0.5004061192,0.4894511366,0.48531600330000002,0.47430046710000001,0.46657492589999999,0.44983342230000001,0.43792594419999997,0.42677526500000001,0.40624644720000003,0.38854790909999998,0.38915414590000003,0.34116250650000002,".",".",0.2358941161,0.21502920640000001,0.21092352549999999,0.19320935610000001,0.20066256399999999,0.15518134019999999,0.1434789215,0.1148961939]
["Impaired financial assets to total assets201712",201712,18,"Impaired financial assets to total assets",3.1424716514887502E-4,3.9230610517277699E-3,1.2135314223414601E-2,2.8648498529974899E-2,1.4100428358489099E-2,2.60286727527483E-2,0.11914393399916499,345645727893.78802,21540813226791.301,4.91754873142956E-2,3.6841233586163001E-2,1.04743161099201E-2,125,1.04743161099201E-2,4.91754873142956E-2,0,"Tier 1 Ratio excluding hybrid instruments99",202012,3,"Tier 1 Ratio excluding hybrid instruments","EU",0,129,0.158609426904878,99,"",null,"CY_AQT_31",0.22431009139999999,0.23896537300000001,0.23901066069999999,0.23325083069999999,0.2307685032,0.22086890549999999,0.21530117979999999,0.2032509401,0.19788654280000001,0.188705652,0.18343011610000001,0.1528608179,0.1451035745,0.14046146130000001,0.1627278824,0.1263188865,".",".",7.2407398900000003E-2,7.0186553299999996E-2,6.8220704100000001E-2,6.2869683699999998E-2,6.4095574099999997E-2,4.6070138599999998E-2,4.2924176000000001E-2,3.4655888000000003E-2]
["Impaired financial assets to total assets201803",201803,18,"Impaired financial assets to total assets",2.0537080702505699E-4,2.8351672244359598E-3,7.1630913175302503E-3,2.0647732422394899E-2,8.7403656627626208E-3,1.83117050014611E-2,9.9799184366647101E-2,214666479327.97601,21919464824766.301,4.0563007470561699E-2,2.5672715344233401E-2,6.1281455766268797E-3,123,6.1281455766268797E-3,4.0563007470561699E-2,0,"Tier 1 Ratio excluding hybrid instruments100",202012,3,"Tier 1 Ratio excluding hybrid instruments","GB",0,26,0.15924449878585201,100,"",null,"CY_AQT_41.2",0.2868022697,0.30689269720000001,0.31644542320000002,0.32325232879999999,0.33896035120000001,0.37956502380000001,0.37071676079999999,0.37743410129999999,0.3837151452,0.40143776269999998,0.41281334870000003,0.45424397729999999,0.45544541020000001,0.449776552,0.46082697179999998,0.44190545549999999,".",".",0.45912737450000002,0.4586299184,0.47109871190000002,0.48983783619999999,0.50584254299999998,0.46592881520000001,0.46210518189999999,0.44061896189999999]
["Impaired financial assets to total assets201806",201806,18,"Impaired financial assets to total assets",1.65993820403167E-4,2.25172845329373E-3,6.4383432047969303E-3,1.8331198575264E-2,8.0192702508463803E-3,1.5658598807436402E-2,8.16640653701831E-2,198863061147.90399,22179567195457.898,3.6769195020283398E-2,2.3400994531467101E-2,5.6558798058766301E-3,123,5.6558798058766301E-3,3.6769195020283398E-2,0,"Impaired financial assets to total assets1",202012,18,"Impaired financial assets to total assets","GR",0,4,7.8033270725007403E-2,1,"",null,"CY_AQT_42.2",0.25383835179999997,0.23993104169999999,0.23577104330000001,0.26453173070000002,0.2624374243,0.26146326240000001,0.26801259119999998,0.27148118539999999,0.2704155661,0.26433755009999998,0.25971271600000001,0.25836138749999998,0.24854100740000001,0.23646266269999999,0.2358354885,0.2057583781,".",".",0.1668747106,0.15069202540000001,0.1439110163,0.13033922849999999,0.13068582770000001,0.1061827419,0.10024557839999999,8.3750196799999996E-2]
["Impaired financial assets to total assets201809",201809,18,"Impaired financial assets to total assets",2.14485017275442E-4,2.1385870776730199E-3,5.9244094881810896E-3,1.6238279752599699E-2,7.6939928326211502E-3,1.5965435893094699E-2,5.7116359321685101E-2,194512849964.02301,22106644013564.699,1.9044414439397198E-2,2.29591256648317E-2,5.4555568894259403E-3,121,5.4555568894259403E-3,2.29591256648317E-2,0,"Impaired financial assets to total assets2",202012,18,"Impaired financial assets to total assets","CY",0,4,3.4655887974129301E-2,2,1,null,"CY_FND_32",1.0896633277000001,1.0602057008000001,1.0419264377999999,1.0338842160999999,1.0024547196,0.95171789689999997,0.94175340439999999,0.90323425489999998,0.876652926,0.83712209429999995,0.8407500067,0.80046016070000003,0.77728751829999998,0.76672252679999997,0.78408592710000002,0.73946045699999996,".",".",0.60108415989999997,0.5975603693,0.59962350019999999,0.58529843719999997,0.58847071139999996,0.5682725797,0.56789920949999995,0.55927711040000005]
["Impaired financial assets to total assets201812",201812,18,"Impaired financial assets to total assets",3.0702125300248603E-4,2.1158058920340301E-3,5.8236212032403501E-3,1.4807191409494E-2,7.3541152980604397E-3,1.40315010178801E-2,5.2933162865888499E-2,181139803847.44299,21683595813737,1.7359528949728399E-2,2.11475181040995E-2,5.2659516428953199E-3,122,5.2659516428953199E-3,2.11475181040995E-2,0,"Impaired financial assets to total assets3",202012,18,"Impaired financial assets to total assets","BG",0,4,1.78240566579798E-2,3,"",null,"CY_FND_33",".",0.30575831349999999,0.29857708669999999,0.29164051130000002,0.2916664309,0.2800336055,0.27388953599999999,0.24732989490000001,0.204729522,8.60963857E-2,7.4216186000000003E-2,7.5091640900000006E-2,7.1347533000000005E-2,8.7924663900000005E-2,8.9720301399999994E-2,0.1605330455,".",".",8.4333216000000003E-2,8.4033768300000006E-2,8.7431654100000006E-2,8.1882393100000006E-2,8.9090077399999995E-2,7.8122256400000006E-2,7.9764023599999997E-2,7.7404815799999999E-2]
["Impaired financial assets to total assets201903",201903,18,"Impaired financial assets to total assets",2.8407272021546898E-4,2.3553573248095601E-3,5.9504417833144002E-3,1.46808856411965E-2,7.0865730963588997E-3,1.34856114863943E-2,5.6751059503268503E-2,183214318415.27399,22795212423858.898,1.7017557020023201E-2,2.1877645492769798E-2,4.9567873126247003E-3,122,4.9567873126247003E-3,2.1877645492769798E-2,0,"Impaired financial assets to total assets4",202012,18,"Impaired financial assets to total assets","IE",0,8,1.23257631587512E-2,4,"",null,"CY_LIQ_17",".",".",".",".",".",".",".",".",2.9139964288,1.7018237334999999,1.8748893342999999,2.0243371250000002,2.1964722755000001,2.4135630614000001,2.3547461421999998,2.2401135605000002,3.0314614216,3.3351858782999999,3.2591421502000002,3.4280628779,3.3101921132999998,2.9769981239000001,3.1552986487000001,3.2860623752999998,3.1000786326999998,3.1160516403999998]
["Impaired financial assets to total assets201906",201906,18,"Impaired financial assets to total assets",2.0180252727135099E-4,2.00329937586508E-3,5.9783465163843197E-3,1.3795725075252801E-2,6.8033772746713302E-3,1.28236416764055E-2,5.6194034190732503E-2,178116621633.88501,23034267686074.898,1.6454393658134898E-2,2.0509738851408499E-2,4.8198375752872002E-3,122,4.8198375752872002E-3,2.0509738851408499E-2,0,"Impaired financial assets to total assets5",202012,18,"Impaired financial assets to total assets","IS",0,3,1.0698779479597E-2,5,"",null,"CY_PFT_21",2.4812711999999998E-3,-9.2617633000000005E-2,5.1053302299999999E-2,3.3224078800000001E-2,-4.9876579999999997E-2,-0.12766739499999999,5.6771149200000003E-2,5.1508262499999999E-2,3.5738172899999997E-2,8.0267577999999992E-3,-1.2671394000000001E-2,-0.27616097699999997,-0.201348468,-0.16451732799999999,8.9281364599999996E-2,1.30497284E-2,".",".",0.1326776452,0.1085809325,8.9491047599999998E-2,1.81193425E-2,-3.9076289E-2,-8.4465051999999999E-2,-4.8451341000000002E-2,-4.1629102000000001E-2]
["Impaired financial assets to total assets201909",201909,18,"Impaired financial assets to total assets",1.1420455017865701E-4,2.2312697094239902E-3,5.8089352524648696E-3,1.3576846432483801E-2,6.4496475591289699E-3,1.27161256963807E-2,5.6423196680367597E-2,172784632498.16299,23581196974016.602,1.7354020959230301E-2,1.96260416196734E-2,4.5593272640712702E-3,122,4.5593272640712702E-3,1.96260416196734E-2,0,"Impaired financial assets to total assets6",202012,18,"Impaired financial assets to total assets","IT",0,16,9.6976784589401406E-3,6,"",null,"CY_PFT_23",0.35766177189999998,0.36374329059999999,0.38571715109999999,0.32483006129999997,0.4332921549,0.44193481880000002,0.50725031229999995,0.51405414140000005,0.51022119740000005,0.51256584459999999,0.54328372820000004,0.52077215880000005,0.52735040040000003,0.56320078080000002,0.73044877080000004,0.777766124,".",".",0.69888586929999996,0.62789764020000005,0.64832475290000002,0.76177550969999996,0.67995628060000002,0.67824428000000003,0.68520801659999997,0.68814651719999997]
["Impaired financial assets to total assets201912",201912,18,"Impaired financial assets to total assets",3.1328851962203301E-4,1.9054497420236999E-3,5.5501377226541701E-3,1.2364098431814401E-2,6.30464928038834E-3,1.10865351587987E-2,5.3587427617799402E-2,162337072170.681,22514589898335.398,1.53778668069293E-2,1.7857825954241499E-2,4.5360674484785299E-3,123,4.5360674484785299E-3,1.7857825954241499E-2,0,"Impaired financial assets to total assets7",202012,18,"Impaired financial assets to total assets","HR",0,3,8.4678022488010908E-3,7,"",null,"CY_PFT_24",2.4359119999999999E-4,-9.0627550000000005E-3,5.4844311000000001E-3,3.6282791999999999E-3,-5.402268E-3,-1.3711592999999999E-2,6.2061954000000004E-3,5.6479002E-3,3.9451086999999999E-3,8.7165140000000001E-4,-1.386239E-3,-2.8699180000000001E-2,-2.0805064000000002E-2,-1.6863949E-2,8.3910239000000008E-3,1.1793888E-3,".",".",1.10587671E-2,9.0989842999999997E-3,7.627974E-3,1.5059803E-3,-3.4092800000000002E-3,-7.1434920000000004E-3,-4.1155999999999996E-3,-3.521555E-3]
["Impaired financial assets to total assets202003",202003,18,"Impaired financial assets to total assets",1.20587063398149E-4,1.8788697423591E-3,5.6602849211692501E-3,1.29440035300616E-2,6.6660124702917403E-3,1.17228578032075E-2,6.5681208613148898E-2,161260554666.29001,24446224999653,1.57268755514661E-2,1.80867492899188E-2,4.5930679703139604E-3,114,4.5930679703139604E-3,1.80867492899188E-2,0,"Impaired financial assets to total assets8",202012,18,"Impaired financial assets to total assets","PT",0,8,8.1966624604850099E-3,8,"",null,"CY_PFT_25",0.78001922489999997,0.76787083540000001,0.77609287819999995,0.62954846850000001,0.81300887430000002,0.78458109109999996,0.80608537449999995,0.70161763180000003,0.72337918349999997,0.71834777319999998,0.72776051310000001,0.70859162590000002,0.7071254777,0.6951889107,0.76035995160000003,0.82674133900000002,".",".",0.70640505580000001,0.67249114210000005,0.6732066431,0.6501580334,0.7047199623,0.69329667179999999,0.69956512250000003,0.67338467359999998]
["Impaired financial assets to total assets202006",202006,18,"Impaired financial assets to total assets",4.4178346862899797E-4,1.83195470464258E-3,5.0631462225299096E-3,1.1304630978453901E-2,6.3037409346333303E-3,1.12888882725434E-2,4.12331812838235E-2,155104025891.59601,24917568386701.5,1.41645762765193E-2,1.5861366953375401E-2,4.5192368139099501E-3,114,4.5192368139099501E-3,1.5861366953375401E-2,0,"Impaired financial assets to total assets9",202012,18,"Impaired financial assets to total assets","ES",0,15,7.1140056236409501E-3,9,"",null,"CY_PFT_26",0.1170198707,0.1184073112,0.14254595489999999,0.11662570830000001,0.148602026,0.14819925480000001,0.1598354424,0.1432052949,0.15061345819999999,0.16303507019999999,0.1870948046,0.18256717,0.18702578759999999,0.1884241327,0.21000384969999999,0.22235141789999999,".",".",0.20229281390000001,0.20444685160000001,0.21104701649999999,0.2258089039,0.26062002950000002,0.2345779704,0.23405616779999999,0.23381422029999999]
["Impaired financial assets to total assets202009",202009,18,"Impaired financial assets to total assets",4.1073053411298999E-4,2.1413550920157801E-3,5.0743111727083803E-3,1.0358221075929101E-2,5.9564291739134002E-3,1.0074616524297799E-2,3.8342058788335201E-2,149289471399.483,24980449951171.801,1.31732612790822E-2,1.3860197586335801E-2,4.5144346725312801E-3,113,4.5144346725312801E-3,1.3860197586335801E-2,0,"Impaired financial assets to total assets10",202012,18,"Impaired financial assets to total assets","HU",0,4,6.8717604165870801E-3,10,"",null,"CY_PFT_29",".",".",".",".",".",".",".",".",".",".",".",".",".",".",".",".",".",".",1.7054647000000001E-3,2.6512189000000002E-3,1.6243332E-3,2.1733850000000001E-4,-2.8810929999999999E-3,-2.00439E-3,-1.2172859999999999E-3,-8.6174999999999999E-4]
["Impaired financial assets to total assets202012",202012,18,"Impaired financial assets to total assets",3.94046839666118E-4,1.7950775924151501E-3,4.8752464724064601E-3,9.0585776101779793E-3,5.3085629171584596E-3,8.9773827430002298E-3,2.7316422157568399E-2,132138578667.80499,24624401455230.199,1.1497068700119699E-2,1.21663584807592E-2,4.0053099155011604E-3,112,4.0053099155011604E-3,1.21663584807592E-2,0,"Impaired financial assets to total assets11",202012,18,"Impaired financial assets to total assets","PL",0,3,6.4026443367932303E-3,11,"",null,"CY_PFT_41",3.78671883E-2,3.53163685E-2,3.2696977199999998E-2,3.1311501800000002E-2,3.1047175900000001E-2,3.07902595E-2,2.9025885099999999E-2,2.8642378999999999E-2,2.8235025E-2,2.7722649200000001E-2,2.60124482E-2,2.6409130100000001E-2,2.5700097099999999E-2,2.5007390599999998E-2,2.3316452000000001E-2,2.3773096600000002E-2,".",".",2.17443233E-2,2.1208148999999999E-2,2.0980878599999999E-2,2.01309325E-2,1.8752919999999999E-2,1.8571388599999999E-2,1.8580192400000001E-2,1.8570947899999999E-2]
["Return on equity201409",201409,22,"Return on equity",-0.18673357389943401,4.3478947499328204E-3,5.31001183148593E-2,4.1958236141924697E-2,5.3642964390643803E-2,9.1236237923229893E-2,0.15998752759697801,64446592823.476799,1274390656136.75,2.6175329920819401E-2,3.5050372159129997E-2,5.7820884827695297E-2,126,2.6175329920819401E-2,5.7820884827695297E-2,0,"Impaired financial assets to total assets12",202012,18,"Impaired financial assets to total assets","LV",0,5,6.1087720723188499E-3,12,1,null,"CY_PFT_43",".",".",".",".",".",".",".",".",".",".",".",".",".",".",5.8908657000000001E-3,1.2822357100000001E-2,".",".",2.2091215300000001E-2,1.7151938500000002E-2,1.17817892E-2,1.5038028599999999E-2,1.7017597999999998E-2,2.38669403E-2,1.8631011699999998E-2,1.92154366E-2]
["Return on equity201412",201412,22,"Return on equity",-0.239554754100781,-2.8238404866293899E-2,3.7771940612339898E-2,1.39900296679825E-2,3.48048223042094E-2,7.9714209235508399E-2,0.144296009872286,49026828948.563698,1270625973783.3899,1.38049953675354E-2,-6.1157186141627198E-3,4.3376752927246999E-2,129,-6.1157186141627198E-3,4.3376752927246999E-2,0,"Impaired financial assets to total assets13",202012,18,"Impaired financial assets to total assets","LU",0,11,5.8223093557384599E-3,13,"",null,"CY_SVC_1",0.1462645447,0.1425258942,0.143546953,0.14930386909999999,0.15061909870000001,0.15220992019999999,0.15096194230000001,0.1546125813,0.1574797587,0.15444847910000001,0.1537097724,0.14233687580000001,0.142355495,0.14316205430000001,0.13452225979999999,0.1367896347,0.1406686687,0.1548826546,0.1646232939,0.17325265989999999,0.17586567920000001,0.1852219417,0.18101133850000001,0.18197462340000001,0.1846010179,0.18602095769999999]
["Return on equity201503",201503,22,"Return on equity",-0.100965533186068,3.3527904817951197E-2,7.0510458860861505E-2,5.1553232372565497E-2,6.8940696805226007E-2,0.106250054882311,0.168902340865934,101150720943.841,1339703387455.99,6.6702513028796803E-2,2.9127869299805102E-2,7.6534329469391399E-2,128,2.9127869299805102E-2,7.6534329469391399E-2,0,"Impaired financial assets to total assets14",202012,18,"Impaired financial assets to total assets","RO",0,3,5.50057274828274E-3,14,"",null,"CY_SVC_12",".",".",".",".",".",".",".",".",9.6478642399999995E-2,9.2406477799999998E-2,9.20685423E-2,8.2166052899999995E-2,8.1210589099999994E-2,7.9531640299999998E-2,7.3850406100000002E-2,7.2883752999999996E-2,6.1784715400000002E-2,6.8491078400000002E-2,7.8728332400000003E-2,7.7956124700000004E-2,7.9738062900000004E-2,8.1145565500000003E-2,8.1363132199999993E-2,7.7530246299999994E-2,7.7265293999999998E-2,7.7642530299999998E-2]
["Return on equity201506",201506,22,"Return on equity",-0.334514992134887,3.5372405139891303E-2,7.0199376046585799E-2,5.0357753296649703E-2,6.8210298717926401E-2,0.105396603135243,0.161928095892794,99518639621.068893,1331822354724.76,0.13605240350423101,-3.9841342789212197E-3,8.1093282328628294E-2,126,-3.9841342789212197E-3,0.13605240350423101,0,"Impaired financial assets to total assets15",202012,18,"Impaired financial assets to total assets","MT",0,5,5.3135331605310603E-3,15,"",null,"CY_SVC_13",".",".",".",".",".",".",".",".",0.1000205388,9.4834256199999994E-2,9.3777263099999994E-2,8.4244455699999998E-2,8.3272992500000004E-2,8.1514662000000002E-2,8.1035855399999995E-2,8.0569522399999996E-2,7.0715452499999998E-2,7.6645909799999995E-2,8.5160275300000005E-2,8.4337846499999994E-2,8.6208818199999995E-2,8.76872177E-2,8.6986504899999997E-2,8.3838287100000006E-2,8.3864655799999993E-2,8.4409603099999994E-2]
["Return on equity201509",201509,22,"Return on equity",-0.19131948014335101,3.4892162558285901E-2,6.7682960958978702E-2,5.30533815613684E-2,6.3878894800983896E-2,0.106681334200082,0.14741226222124701,88591486828.921204,1334516747791.8,7.6363618707146197E-2,2.0059939048292601E-2,7.1931424369075098E-2,126,2.0059939048292601E-2,7.6363618707146197E-2,0,"Impaired financial assets to total assets16",202012,18,"Impaired financial assets to total assets","SI",0,6,5.2097731981630702E-3,16,"",null,"CY_SVC_2",0.1503464544,0.1477197177,0.14815889439999999,0.15377628760000001,0.15484653549999999,0.1554865969,0.15358133660000001,0.15714410149999999,0.15985818199999999,0.1570863401,0.16238132590000001,0.1516499127,0.1515060681,0.1529455901,0.14396637339999999,0.1461577644,0.15179100619999999,0.16480918219999999,0.17462322960000001,0.18269231180000001,0.18522495650000001,0.19466469319999999,0.19101642029999999,0.19219608269999999,0.1947529821,0.1959481418]
["Return on equity201512",201512,22,"Return on equity",-0.17852525364174199,2.4781957615857698E-2,5.6622349473835099E-2,3.5738260479610297E-2,4.4626228096791599E-2,9.1495522948025307E-2,0.14412276554508199,73215159366.194794,1347793848039.8999,6.0541260200570199E-2,3.9988056604868599E-3,5.2856335933688103E-2,128,3.9988056604868599E-3,6.0541260200570199E-2,0,"Impaired financial assets to total assets17",202012,18,"Impaired financial assets to total assets","SK",0,3,4.5726986026123498E-3,17,"",null,"CY_SVC_29",0.14206737550000001,0.13855980439999999,0.1397607683,0.14532161660000001,0.1464921673,0.14653762579999999,0.14591462650000001,0.1495739224,0.1524615933,0.14632728959999999,0.14941356629999999,0.13460464920000001,0.13491144799999999,0.13569926639999999,0.1193742646,0.12050552909999999,0.11892279159999999,0.1243383169,0.13788632270000001,0.1451071246,0.14751149390000001,0.1556288056,0.15336500250000001,0.15207389909999999,0.15369276470000001,0.1544989501]
["Return on equity201603",201603,22,"Return on equity",-6.8523820037541094E-2,1.9300097187178501E-2,4.9844181297030797E-2,4.9029994091659403E-2,5.6481311404377302E-2,8.5305093361301695E-2,0.15294755300190099,80307304185.000793,1386032342781.5601,9.3565868626523996E-2,3.6412355356550803E-2,6.0420987991146001E-2,132,3.6412355356550803E-2,9.3565868626523996E-2,0,"Impaired financial assets to total assets18",202012,18,"Impaired financial assets to total assets","BE",0,8,4.5132389083670397E-3,18,"",null,"CY_SVC_3",0.14262014149999999,0.13950650440000001,0.14049582099999999,0.14613613080000001,0.14734039209999999,0.14878861530000001,0.14741270570000001,0.15098388309999999,0.15386186900000001,0.15079504369999999,0.14987998050000001,0.1383421232,0.1383377448,0.1391022875,0.1303068651,0.13249876690000001,0.13491663249999999,0.13906539239999999,0.14901042610000001,0.15680042429999999,0.1592771905,0.16783984560000001,0.16357569620000001,0.16402097709999999,0.16643230019999999,0.16792498340000001]
["Return on equity201606",201606,22,"Return on equity",-0.12139469559805099,2.3005609653551199E-2,6.1806472669795602E-2,5.3445943836643098E-2,5.7170796449759698E-2,9.6827870339516106E-2,0.17406833690054799,90157421438.070297,1386618309703.75,0.14831654831803601,1.4422694845516301E-2,6.5480141365800895E-2,133,1.4422694845516301E-2,0.14831654831803601,0,"Impaired financial assets to total assets19",202012,18,"Impaired financial assets to total assets","LT",0,4,4.1461919844032399E-3,19,"",null,"CZ_AQT_3.1",3.14904763E-2,3.2960048899999997E-2,3.1584508300000001E-2,2.8459060899999999E-2,2.6165223500000001E-2,2.59002305E-2,2.3546282799999999E-2,2.1542957200000001E-2,2.0310880999999999E-2,2.0383586200000001E-2,1.5585164800000001E-2,1.4653882700000001E-2,1.35859916E-2,1.36955885E-2,1.25251828E-2,1.20793289E-2,1.21562487E-2,1.2599542700000001E-2,1.14209554E-2,1.1130332499999999E-2,1.06529022E-2,1.1210259E-2,1.00644507E-2,1.06213581E-2,1.07426311E-2,1.25453153E-2]
["Return on equity201609",201609,22,"Return on equity",-0.115399801383633,2.4007348023014099E-2,5.9031256435360301E-2,5.2916185205650203E-2,5.3950173736515498E-2,9.7009298462410701E-2,0.16459221187826201,91175714631.451004,1398833431010.9199,0.12793942435068301,1.8886883193863401E-2,6.0666707915147E-2,132,1.8886883193863401E-2,0.12793942435068301,0,"Impaired financial assets to total assets20",202012,18,"Impaired financial assets to total assets","EE",0,4,3.9260692130068699E-3,20,"",null,"CZ_AQT_3.2",4.13948986E-2,4.46917368E-2,4.2476226300000003E-2,3.7110380399999997E-2,3.3666238299999998E-2,3.3208946599999997E-2,2.9606391499999999E-2,2.6808305899999999E-2,2.5141245100000001E-2,2.5334622399999999E-2,1.8382470299999999E-2,1.7137268000000001E-2,1.5718226700000001E-2,1.5827651200000001E-2,1.43938755E-2,1.3877022899999999E-2,1.38917287E-2,1.4499829400000001E-2,1.30875785E-2,1.2669472899999999E-2,1.20456782E-2,1.27821025E-2,1.14285415E-2,1.24192711E-2,1.2508041900000001E-2,1.47579974E-2]
["Return on equity201612",201612,22,"Return on equity",-0.29534282306966297,1.4100797349754101E-2,5.4740387790302797E-2,2.75580526417817E-2,3.2533829434335901E-2,9.6183047285159404E-2,0.16566799325692899,66369478660.557198,1398944930800.8401,0.10485630695046901,9.0063770417887594E-3,3.6888853090005197E-2,134,9.0063770417887594E-3,0.10485630695046901,0,"Impaired financial assets to total assets21",202012,18,"Impaired financial assets to total assets","NO",0,4,3.91376952090543E-3,21,"",null,"CZ_AQT_31",1.46883091E-2,1.3226877099999999E-2,1.3928232400000001E-2,1.35872149E-2,1.1709354999999999E-2,1.25142855E-2,1.1564115599999999E-2,1.05304526E-2,9.9446560999999992E-3,6.9246302000000003E-3,5.4632676000000002E-3,5.2196691000000002E-3,5.0434913000000003E-3,5.0598051000000002E-3,2.4824748E-3,2.3542929999999999E-3,2.0504198000000002E-3,2.1005726E-3,1.8275099E-3,1.9226013E-3,1.7800048E-3,1.7657148000000001E-3,1.5644869E-3,1.5650377E-3,1.57277E-3,1.6227252000000001E-3]
["Return on equity201703",201703,22,"Return on equity",-8.5954945846274694E-2,3.01157540276752E-2,6.6641881571783496E-2,6.7697225353191795E-2,7.3096017147462999E-2,0.104038418193748,0.162358363504472,115817666220.595,1430310038957.99,9.7227691434629004E-2,4.8662679243256401E-2,7.7982833218922798E-2,130,4.8662679243256401E-2,9.7227691434629004E-2,0,"Impaired financial assets to total assets22",202012,18,"Impaired financial assets to total assets","NL",0,6,3.6178313505225599E-3,22,"",null,"CZ_AQT_41.2",0.59755880669999994,0.59425074970000002,0.60715947479999999,0.59950024339999997,0.5960362937,0.59944579310000001,0.60520033029999998,0.60809837619999996,0.62408632200000003,0.62566784880000004,0.61947173950000001,0.62690104020000004,0.62018187049999995,0.62496736850000001,0.6113976257,0.61451551329999998,0.58584061700000001,0.57701612000000002,0.5835329641,0.57892897269999999,0.58053788009999996,0.57435352250000005,0.56894855769999997,0.55993847969999999,0.56918304050000001,0.54732337669999997]
["Return on equity201706",201706,22,"Return on equity",-9.5098564446825504E-2,3.8877859232235502E-2,7.4996123224601502E-2,5.61684980753328E-2,7.1000091049200395E-2,0.104371047935055,0.158551617122316,111748837998.838,1434714365801.3999,8.3495695201982995E-2,3.5808344188661197E-2,7.8333309467997797E-2,128,3.5808344188661197E-2,8.3495695201982995E-2,0,"Impaired financial assets to total assets23",202012,18,"Impaired financial assets to total assets","FR",0,13,3.5963043527036599E-3,23,"",null,"CZ_AQT_42.2",1.0340575100000001E-2,1.13910938E-2,1.1512860099999999E-2,1.01817604E-2,9.8109050999999996E-3,9.6791488000000005E-3,9.1736794000000007E-3,8.3773028999999995E-3,8.0960357000000004E-3,8.0700879999999996E-3,5.8526181E-3,5.5580046999999999E-3,5.2173133E-3,5.2452124000000001E-3,4.8562357000000002E-3,4.5801228000000001E-3,4.3786826000000003E-3,3.9749829E-3,3.5600802999999999E-3,3.3040264E-3,3.2504317E-3,3.2313754E-3,3.8565882999999999E-3,1.96751454E-2,1.6250308000000002E-2,1.96066669E-2]
["Return on equity201709",201709,22,"Return on equity",-6.9453240447540601E-2,4.1335665206461203E-2,7.2436171289993398E-2,6.5220569531548298E-2,7.1878955796035204E-2,0.10541931784059599,0.16052974363418099,112766024003.29201,1443828170371.6699,8.3615188398942802E-2,4.2950489184270101E-2,7.7920408088304693E-2,128,4.2950489184270101E-2,8.3615188398942802E-2,0,"Impaired financial assets to total assets24",202012,18,"Impaired financial assets to total assets","AT",0,11,3.3887923893317199E-3,24,"",null,"CZ_FND_32",0.81708914399999999,0.80041980840000004,0.81194619619999997,0.82485398070000004,0.83656969859999997,0.82266762339999999,0.8421238043,0.84900657950000002,0.85136924680000003,0.83116579739999996,0.81307733370000002,0.82669545010000001,0.83173764610000001,0.83226910119999997,0.8156755684,0.83771319180000003,0.84229407670000001,0.83131986069999997,0.83957530270000003,0.84131965710000001,0.85222288509999999,0.84442218170000005,0.83567432689999999,0.81264819200000005,0.80022719949999999,0.77198314970000004]
["Return on equity201712",201712,22,"Return on equity",-0.115639735031674,3.1383045141535601E-2,6.6256543339015095E-2,5.9706649430442897E-2,6.0428463207652799E-2,0.105079022604922,0.17680628251754699,98182296776.911102,1448812266212.8999,6.2943033121137706E-2,3.7000844836619098E-2,6.5378806155538094E-2,129,3.7000844836619098E-2,6.5378806155538094E-2,1,"Impaired financial assets to total assets25",202012,18,"Impaired financial assets to total assets","DE",0,23,1.9706109303563898E-3,25,"",null,"CZ_FND_33",".",0.1154124933,0.11674143350000001,0.1186996749,0.1132601474,4.0151899900000003E-2,4.3164846299999997E-2,4.67156959E-2,6.0268931499999998E-2,5.3207704199999997E-2,0.1036330318,9.2060645499999996E-2,9.74799675E-2,8.1152311099999999E-2,8.7724559999999993E-2,0.1148801659,0.12013632289999999,0.10152409699999999,0.102817598,0.10132198100000001,0.1055201444,9.8365108399999998E-2,0.10306315539999999,0.10540730449999999,9.68693516E-2,8.2354663199999997E-2]
["Return on equity201803",201803,22,"Return on equity",-3.8216574540721401E-2,3.9090020396227602E-2,6.8462727207715304E-2,6.7961747711498002E-2,6.7521567768928398E-2,9.9159752406305895E-2,0.16240330259292299,104846404923.26199,1467032843531.8201,0.100188224541118,5.6406189258213203E-2,6.9489483053876797E-2,128,5.6406189258213203E-2,0.100188224541118,0,"Impaired financial assets to total assets26",202012,18,"Impaired financial assets to total assets","FI",0,7,1.9062837445596699E-3,26,"",null,"CZ_LIQ_17",".",".",".",".",".",".",".",".",1.7075668231000001,1.7220914834000001,1.6516456458,1.5928278090000001,1.6052304873000001,1.5493121185000001,1.5238765434999999,1.4993381271999999,1.5554749522,1.5804147421000001,1.5164127043,1.5216326778,1.5479376783000001,1.4992308628,1.5604251949000001,1.6420425693,1.6774649183000001,1.6624824615]
["Return on equity201806",201806,22,"Return on equity",-5.9903016539901099E-2,3.94214503339839E-2,6.7866640417303295E-2,6.5692872226590995E-2,7.2188778511954002E-2,0.100927639933304,0.145603796637995,109955972234.892,1465230357323.0901,9.1645246490454205E-2,5.4672801894728597E-2,7.5667291575396894E-2,128,5.4672801894728597E-2,9.1645246490454205E-2,0,"Impaired financial assets to total assets27",202012,18,"Impaired financial assets to total assets","CZ",0,3,1.6227251513881E-3,27,"",null,"CZ_PFT_21",0.14592835830000001,0.13794309320000001,0.14311132169999999,0.1466147397,0.1458389501,0.13480886750000001,0.1197139963,0.1511516319,0.14830222039999999,0.14111065079999999,0.15494929439999999,0.1638545142,0.1607328888,0.15589832470000001,0.14089107400000001,0.1450617645,0.1485840729,0.14598598230000001,0.14842505910000001,0.17020395620000001,0.15977254869999999,0.16005937000000001,8.9196178900000006E-2,6.9791355099999994E-2,7.4030337900000007E-2,7.3578090200000001E-2]
["Return on equity201809",201809,22,"Return on equity",-3.6005124995198097E-2,4.1969702348885397E-2,6.8826030527398593E-2,7.0583907307435301E-2,7.2450818016055102E-2,9.7535005057764607E-2,0.16329826416621701,110327487651.79601,1472144467191.46,0.10685247269173299,5.6813736231166097E-2,7.5374477666841702E-2,126,5.6813736231166097E-2,0.10685247269173299,0,"Impaired financial assets to total assets28",202012,18,"Impaired financial assets to total assets","SE",0,8,9.7988274751561501E-4,28,"",null,"CZ_PFT_23",0.44668323920000003,0.45029357800000003,0.45290625369999998,0.45516191299999997,0.4493326191,0.45822809549999999,0.49539018639999999,0.42952668259999999,0.43665585299999998,0.44574575420000001,0.46872049139999999,0.4549771997,0.45489475930000001,0.4593600404,0.49344861429999998,0.48245751799999997,0.46901883020000001,0.46285886679999999,0.48146196099999999,0.44955626009999999,0.45321036920000002,0.4542944049,0.59476260079999999,0.52217290819999995,0.51311543410000005,0.51083952519999998]
["Return on equity201812",201812,22,"Return on equity",-4.2042795879162403E-2,3.5340316486161497E-2,6.70851877666334E-2,6.0918262661321103E-2,6.5161791754159898E-2,9.5271273509832402E-2,0.175961340158276,100412467307.427,1479802798303.9399,9.7176160230022499E-2,5.1436166231323202E-2,6.7710921385654502E-2,127,5.1436166231323202E-2,9.7176160230022499E-2,0,"Impaired financial assets to total assets29",202012,18,"Impaired financial assets to total assets","DK",0,5,6.8104349376585599E-4,29,"",null,"CZ_PFT_24",1.4952078000000001E-2,1.51059223E-2,1.5692854999999999E-2,1.52495624E-2,1.5309731700000001E-2,1.47871684E-2,1.3031796E-2,1.54859609E-2,1.5312355600000001E-2,1.47887833E-2,1.41588098E-2,1.4643081299999999E-2,1.42242371E-2,1.4266584000000001E-2,1.16270987E-2,1.13569498E-2,1.1693913199999999E-2,1.20546005E-2,1.1688602899999999E-2,1.3057186599999999E-2,1.2324368800000001E-2,1.3074523100000001E-2,7.0369715999999997E-3,5.5831264E-3,5.9771815000000004E-3,6.1203274999999998E-3]
["Return on equity201903",201903,22,"Return on equity",-2.3786244313283599E-2,3.1728066564042999E-2,6.50202368819571E-2,6.4565159340543105E-2,6.7746157324605399E-2,9.2323775374742997E-2,0.159049440070929,96310399068.986206,1495290809735.76,9.3289142563096505E-2,5.69405667025462E-2,6.9602521863673897E-2,126,5.69405667025462E-2,9.3289142563096505E-2,0,"Impaired financial assets to total assets99",202012,18,"Impaired financial assets to total assets","EU",0,112,5.3085629171584596E-3,99,"",null,"CZ_PFT_25",0.68822233420000001,0.6869228168,0.67492893990000002,0.67645171010000005,0.67809708160000004,0.67464602849999999,0.68367294889999997,0.62039367769999998,0.64308284380000003,0.64827763569999997,0.63251852740000003,0.63994747780000005,0.64960071679999998,0.65432756540000003,0.68494388750000001,0.69739287279999995,0.69844295079999996,0.70598811750000001,0.72607353360000004,0.7098574419,0.73218580830000002,0.73603305799999996,0.85621906599999997,0.75871007430000004,0.74124801600000001,0.73081757540000003]
["Return on equity201906",201906,22,"Return on equity",6.2637051178464197E-3,4.3605853961079001E-2,6.32729462208039E-2,6.8707095082545896E-2,7.0155879244453406E-2,9.8998776328231106E-2,0.16019044337788399,100486886054.17599,1496565037775,9.3836920639484594E-2,5.8488602018814999E-2,7.2198868841504393E-2,125,5.8488602018814999E-2,9.3836920639484594E-2,0,"Impaired financial assets to total assets100",202012,18,"Impaired financial assets to total assets","GB",0,26,2.8936379662591301E-3,100,"",null,"CZ_PFT_26",0.23743982790000001,0.24019531050000001,0.22597242049999999,0.2305340713,0.22794992589999999,0.23000114869999999,0.2172407224,0.2007919899,0.20570157680000001,0.20788951350000001,0.20090874040000001,0.2036719404,0.20452049899999999,0.20554633329999999,0.21383672510000001,0.219224842,0.2128725192,0.21014211720000001,0.19540240819999999,0.19676347659999999,0.20226484989999999,0.197906001,0.20601702420000001,0.19425879679999999,0.19696261209999999,0.19965533869999999]
["Return on equity201909",201909,22,"Return on equity",-2.4917726995531301E-2,4.2519942502543401E-2,6.3961568032414803E-2,6.5650211123442201E-2,6.5629687382908503E-2,9.9760207462449901E-2,0.15141531755706999,99211179457.968796,1509162634294.2,9.3311265103057497E-2,5.9677996267020202E-2,6.6493550553480898E-2,125,5.9677996267020202E-2,9.3311265103057497E-2,0,"Return on equity1",202012,22,"Return on equity","SI",0,6,0.16556494827023399,1,"",null,"CZ_PFT_29",1.8526227400000001E-2,1.02658782E-2,9.71681093E-2,8.5145038199999995E-2,7.4615933300000006E-2,7.3701639599999993E-2,5.0410645300000001E-2,3.54486574E-2,4.2055471400000002E-2,3.6173099100000002E-2,8.9092453700000004E-2,0.17309147659999999,0.1511110316,0.1470871745,7.8131233899999999E-2,-6.3628670000000003E-3,2.04546954E-2,1.3179195100000001E-2,6.8035120000000003E-3,1.11389795E-2,-4.6566480000000002E-3,2.3457942000000001E-3,-0.406426485,-0.113428773,-9.2890743999999997E-2,-3.9083752999999999E-2]
["Return on equity201912",201912,22,"Return on equity",-3.2157669945804102E-2,3.4701103389664298E-2,5.8399732707960998E-2,5.6928182831651797E-2,5.7369364862069401E-2,9.0136296294500207E-2,0.139803646250133,90616636422.962799,1518167928467.3301,8.1449322542170993E-2,4.8669258784512101E-2,5.88347459443734E-2,126,4.8669258784512101E-2,8.1449322542170993E-2,0,"Return on equity2",202012,22,"Return on equity","RO",0,3,0.11534031630057701,2,"",null,"CZ_PFT_41",2.65757374E-2,2.7548741599999999E-2,2.6842324800000001E-2,2.6905633700000001E-2,2.6560344900000001E-2,2.6754850899999998E-2,2.49883274E-2,2.4559490600000001E-2,2.4349015299999999E-2,2.4495767500000001E-2,2.06515439E-2,2.1235177899999999E-2,2.0827977399999999E-2,2.1784272399999999E-2,1.9678244099999999E-2,1.9317302599999999E-2,1.9655590300000001E-2,2.0858990800000001E-2,2.1154593700000002E-2,2.1180459400000001E-2,2.09602404E-2,2.2221609400000002E-2,2.0423398499999999E-2,1.8886070200000001E-2,1.8000546199999998E-2,1.83025822E-2]
["Return on equity202003",202003,22,"Return on equity",-0.16115851048784599,-3.2126403537869497E-2,1.59731207167992E-2,1.9200531019465901E-2,1.29016697278834E-2,5.0015456799586702E-2,0.127251765895735,19841411668.653599,1556661214946,4.9727172252314697E-2,7.6106766703233604E-3,1.37105965068062E-2,117,7.6106766703233604E-3,4.9727172252314697E-2,0,"Return on equity3",202012,22,"Return on equity","LT",0,4,0.112037375292836,3,"",null,"CZ_PFT_43",".",".",".",".",".",".",".",".",".",".",".",".",".",".",3.2707825E-3,1.8979681999999999E-3,2.2594504999999998E-3,2.8299901000000001E-3,1.5445941000000001E-3,2.2082744999999998E-3,1.9655403000000001E-3,2.4286389000000002E-3,1.7239525999999999E-3,5.8125112000000003E-3,5.2559662999999996E-3,5.4533000999999999E-3]
["Return on equity202006",202006,22,"Return on equity",-0.204260335605465,4.8358941373594799E-4,2.6610298825135E-2,1.4078853569173501E-2,4.9265004673458802E-3,5.4494725566643101E-2,0.12912203709213499,6309661922.42834,1555850881550.4399,4.8634365599549798E-2,-4.1450526716672901E-3,6.6220384815096796E-3,117,-4.1450526716672901E-3,4.8634365599549798E-2,0,"Return on equity4",202012,22,"Return on equity","HU",0,4,9.8418012287822904E-2,4,"",null,"CZ_SVC_1",0.1766437327,0.17432618259999999,0.17789527929999999,0.17937406019999999,0.17869922520000001,0.1898381989,0.1804341391,0.1729606078,0.1701497766,0.18019285090000001,0.1718507333,0.17433712630000001,0.17206901729999999,0.17804326509999999,0.1759332465,0.17208948199999999,0.17358510590000001,0.18193424829999999,0.18486854359999999,0.19217875209999999,0.19225907119999999,0.2011575011,0.2096362494,0.226016201,0.2274309098,0.23618310540000001]
["Return on equity202009",202009,22,"Return on equity",-0.119883245710279,9.6010806399755393E-3,3.8368703908294798E-2,2.8667846625426902E-2,2.4842092084861999E-2,6.1450997772509203E-2,0.13848166824023,38152581255.358597,1565768302298.53,6.5587922243013394E-2,1.16736835677115E-2,2.75531192868614E-2,116,1.16736835677115E-2,6.5587922243013394E-2,0,"Return on equity5",202012,22,"Return on equity","SE",0,8,8.8723347479920694E-2,5,"",null,"CZ_SVC_12",".",".",".",".",".",".",".",".",6.4395278099999995E-2,6.9434164100000001E-2,5.7362003699999997E-2,6.01143939E-2,5.2776416399999998E-2,6.1043219000000003E-2,5.71212392E-2,5.6102788299999998E-2,5.5492929099999998E-2,5.88613313E-2,5.5212997299999997E-2,5.6635956500000001E-2,5.61450509E-2,5.9774269300000002E-2,6.03748692E-2,6.3618906000000003E-2,6.3799208199999999E-2,6.7791542199999999E-2]
[{"$f":"+D131&B131","v":"Return on equity202012"},202012,22,"Return on equity",-0.12925452968902101,1.00275161659219E-2,3.7462975793678903E-2,2.3831902938036401E-2,2.0163690755670701E-2,6.2146519742334198E-2,0.13313183495314401,30601901583.846199,1571016297418.6599,6.8780901167603603E-2,1.53130995557944E-2,2.0614489213368298E-2,116,{"$f":"MIN(N131:P131)","v":1.53130995557944E-2},{"$f":"MAX(N131:P131)","v":6.8780901167603603E-2},{"$f":"IF(OR(G131<R131,G131>S131),1,0)","v":0},{"$f":"CONCATENATE(X131,AC131)","v":"Return on equity6"},202012,22,"Return on equity","NO",0,4,7.3887026332884201E-2,6,"",null,"CZ_SVC_13",".",".",".",".",".",".",".",".",6.4395278099999995E-2,6.9434164100000001E-2,5.7362003699999997E-2,6.01143939E-2,5.2776416399999998E-2,6.1043219000000003E-2,5.71212392E-2,5.6102788299999998E-2,5.5492929099999998E-2,5.88613313E-2,5.5212997299999997E-2,5.6635956500000001E-2,5.61450509E-2,5.9774269300000002E-2,6.03748692E-2,6.3618906000000003E-2,6.3799208199999999E-2,6.7791542199999999E-2]
["Cost-income ratio201409",201409,24,"Cost-income ratio",0.30698503436315799,0.44969851876154199,0.57449255415418699,0.64419277002783804,0.614367953546196,0.67395107890734995,0.89791235374498402,289179749768.45502,468718352162.65802,0.54035625615948502,0.57959088463874497,0.62091871818308797,127,0.54035625615948502,0.62091871818308797,0,"Return on equity7",202012,22,"Return on equity","CZ",0,3,7.3578090214492506E-2,7,"",null,"CZ_SVC_2",0.17793401040000001,0.17512127799999999,0.17816692379999999,0.1802842999,0.17973240309999999,0.19110560609999999,0.1815223332,0.1748484022,0.17258477729999999,0.18347778840000001,0.17482385989999999,0.17629548510000001,0.1740240378,0.18224836890000001,0.17968367869999999,0.17583004939999999,0.17755934879999999,0.186392159,0.1891007421,0.19552841469999999,0.1952672946,0.20465419539999999,0.2131308361,0.23095139789999999,0.23265600889999999,0.2413830109]
["Cost-income ratio201412",201412,24,"Cost-income ratio",0.30841054807443902,0.459218038205713,0.58468393556156495,0.57607987523700999,0.62883029810812396,0.69652290572875497,0.999082491503684,292733980649.01099,471399618526.74298,0.57321739058612697,0.59429023517147805,0.63520256122992103,129,0.57321739058612697,0.63520256122992103,0,"Return on equity8",202012,22,"Return on equity","LV",0,5,7.3523634538471896E-2,8,"",null,"CZ_SVC_29",0.18495731509999999,0.18221871749999999,0.17789527929999999,0.17937406019999999,0.17869922520000001,0.1832344185,0.17405313589999999,0.1667966628,0.1640850445,0.17409275120000001,0.1660326007,0.1685341494,0.16631463960000001,0.17218872690000001,0.1701561019,0.1664552154,0.1679505674,0.17610970910000001,0.17903365800000001,0.1798795581,0.18010329729999999,0.18859204800000001,0.19786003420000001,0.2137823506,0.21527875639999999,0.2239068008]
["Cost-income ratio201503",201503,24,"Cost-income ratio",0.29985543187525798,0.44823864332754199,0.56795548650043304,1.11105360406626,0.60926037181018999,0.66518455845292201,1.04554451695859,314227680608.99597,514174400505.84698,0.55316181724033997,0.578679715575243,0.61461646264627601,128,0.55316181724033997,0.61461646264627601,0,"Return on equity9",202012,22,"Return on equity","EE",0,4,7.2618750865966503E-2,9,"",null,"CZ_SVC_3",0.1766437327,0.17432618259999999,0.17789527929999999,0.17937406019999999,0.17869922520000001,0.1832344185,0.17405313589999999,0.1667966628,0.1640850445,0.17409275120000001,0.1660326007,0.1685341494,0.16631463960000001,0.17218872690000001,0.1701561019,0.1664552154,0.1679505674,0.17610970910000001,0.17903365800000001,0.1798795581,0.18010329729999999,0.18859204800000001,0.19786003420000001,0.2137823506,0.21527875639999999,0.2239068008]
["Cost-income ratio201506",201506,24,"Cost-income ratio",0.27547147568142699,0.46348135860549899,0.55866535549943797,0.57900427972753699,0.59306555928501303,0.65349801509503302,0.90516928585647105,308169938232.39801,516831151883.367,0.60116000187666996,0.57605085007619505,0.595671256975844,126,0.57605085007619505,0.60116000187666996,1,"Return on equity10",202012,22,"Return on equity","SK",0,3,6.3553577745623799E-2,10,"",null,"DE_AQT_3.1",3.2918212699999998E-2,3.1001963300000001E-2,2.9715063100000001E-2,2.86735846E-2,2.67090764E-2,2.4940040699999999E-2,2.3929472399999999E-2,2.2457253600000001E-2,2.19258048E-2,2.12349459E-2,2.0559404199999999E-2,1.9444128500000001E-2,1.8101775600000002E-2,1.6910007599999999E-2,1.51549415E-2,1.49153896E-2,1.42146922E-2,1.16386861E-2,1.1271648299999999E-2,1.14969012E-2,1.1001697600000001E-2,1.09679394E-2,1.0204156299999999E-2,1.12614641E-2,1.09302003E-2,1.120937E-2]
["Cost-income ratio201509",201509,24,"Cost-income ratio",0.30920190428497002,0.468994086274581,0.573410595918179,0.53522836948425101,0.59935528123271498,0.66294264001839498,0.91444281095334501,304427172760.36298,502605533266.63,0.60835455939711702,0.58903476850765701,0.60089208848583398,126,0.58903476850765701,0.60835455939711702,1,"Return on equity11",202012,22,"Return on equity","FI",0,7,6.01233215994985E-2,11,"",null,"DE_AQT_3.2",3.8563112699999999E-2,3.7161229300000001E-2,3.5156400599999998E-2,3.36958677E-2,3.1496451199999997E-2,2.97670368E-2,2.8501529899999999E-2,2.63121833E-2,2.5345639900000001E-2,2.4911134500000001E-2,2.37960438E-2,2.2280072500000001E-2,2.0705206899999998E-2,1.94880175E-2,1.7274154199999999E-2,1.69810967E-2,1.61559865E-2,1.33184024E-2,1.2706576000000001E-2,1.29943222E-2,1.23451606E-2,1.252618E-2,1.15100368E-2,1.26130432E-2,1.22590741E-2,1.27121506E-2]
["Cost-income ratio201512",201512,24,"Cost-income ratio",0.33256578728126701,0.48186816932052901,0.59192364175962797,0.62372504555942598,0.62807720741417905,0.67678999104363702,0.95533824531204303,308395687072.92603,495913194541.86102,0.57553004556633902,0.60087798170475204,0.63291702108067904,128,0.57553004556633902,0.63291702108067904,0,"Return on equity12",202012,22,"Return on equity","BG",0,4,5.7846492930034799E-2,12,"",null,"DE_AQT_31",1.0303824899999999E-2,9.1330674999999997E-3,8.4804028E-3,8.3521880999999996E-3,7.7116639000000004E-3,7.3177069999999997E-3,6.5714303999999998E-3,6.3762873000000001E-3,6.4637198999999996E-3,6.4788220000000004E-3,5.8463192999999997E-3,5.3929145999999997E-3,5.1208659000000004E-3,5.0472696999999999E-3,2.2843494999999999E-3,2.3158208E-3,2.284693E-3,1.8937477999999999E-3,1.7682291999999999E-3,1.7817941E-3,1.6930076E-3,1.7472458E-3,1.6312526999999999E-3,1.8166440000000001E-3,2.0777361999999998E-3,1.9706109000000001E-3]
["Cost-income ratio201603",201603,24,"Cost-income ratio",0.32952884053644399,0.50717617478291199,0.63903568788298604,0.61924350444350296,0.65996565628863102,0.73756391875174798,1.20140282942261,312960875451.71198,468338746446.62799,0.58304760835176594,0.63828830393274605,0.66429044953180005,132,0.58304760835176594,0.66429044953180005,0,"Return on equity13",202012,22,"Return on equity","LU",0,11,5.5715760970639697E-2,13,"",null,"DE_AQT_41.2",0.28107748119999998,0.346491253,0.35376174370000002,0.347571238,0.35374175810000003,0.37840536559999999,0.37282624679999998,0.38720771859999997,0.40073512309999998,0.38232548560000001,0.37755535699999998,0.40740263739999999,0.39765259460000002,0.4131881805,0.41005740629999998,0.40017466909999999,0.40892993170000003,0.40811646779999999,0.41101445009999998,0.39344282419999999,0.39782974789999997,0.39064733969999998,0.39173069259999999,0.37914636200000001,0.37128103870000001,0.36625115790000001]
["Cost-income ratio201606",201606,24,"Cost-income ratio",0.33497346881455897,0.49863734893088701,0.59768700319003498,0.92289842943976097,0.62689661841952404,0.70704277267179405,1.25729045996595,303570876995.87,482369850577.66901,0.56349548902812496,0.634883031294316,0.62604101852649097,133,0.56349548902812496,0.634883031294316,0,"Return on equity14",202012,22,"Return on equity","HR",0,3,5.2461404807959598E-2,14,"",null,"DE_AQT_42.2",3.12158391E-2,3.0132161599999999E-2,2.9720964900000001E-2,2.8950855500000001E-2,2.6866808799999999E-2,2.4344959499999999E-2,2.2663385899999999E-2,2.1683238300000001E-2,2.0747345800000001E-2,2.1372971000000001E-2,2.0244767800000001E-2,1.8982857799999999E-2,1.72463094E-2,1.61368645E-2,1.4326491699999999E-2,1.4212358600000001E-2,1.39310487E-2,1.07265639E-2,9.8029276000000005E-3,1.01808592E-2,9.4763788000000009E-3,9.2298121999999996E-3,8.3968276000000001E-3,1.2021836500000001E-2,1.37235984E-2,1.6286266099999998E-2]
["Cost-income ratio201609",201609,24,"Cost-income ratio",0.33306546979539597,0.494544432353415,0.58854063286442504,0.56250786513005202,0.63030329182268896,0.708418824958996,1.0795038014946201,300191103717.07898,478551459675.48401,0.59336765915646295,0.62885128106714205,0.63083470327220603,132,0.59336765915646295,0.63083470327220603,1,"Return on equity15",202012,22,"Return on equity","PL",0,3,5.22092451238651E-2,15,"",null,"DE_FND_32",1.5300328072,1.5021685789000001,1.5000634888,1.4924487290999999,1.4796288162,1.4315213131,1.4548107262000001,1.458288118,1.4546269334999999,1.4219813687,1.3896303489999999,1.3557538132,1.3373252975000001,1.3027935395000001,1.3257483463999999,1.3478187413,1.3435183373999999,1.3340489880999999,1.3127690481000001,1.3256807636000001,1.3402135928000001,1.3129911106000001,1.3658087717,1.2852891447000001,1.2454713370999999,1.2207669632]
["Cost-income ratio201612",201612,24,"Cost-income ratio",0.35983560962556199,0.49988618418019098,0.61171092727732201,0.61403847580904003,0.65259611439070198,0.73171334315384795,0.997880070265867,305609648730.30499,476740484392.15997,0.59200938698613104,0.63202279365427705,0.65669563127611197,134,0.59200938698613104,0.65669563127611197,0,"Return on equity16",202012,22,"Return on equity","BE",0,8,4.7392784251391401E-2,16,"",null,"DE_FND_33",".",0.30322855589999997,0.29426696629999999,0.29755548310000002,0.29681830380000002,0.29866388659999998,0.28952170589999998,0.29048458290000001,0.30093652230000001,0.2972407621,0.3023325731,0.29655497580000001,0.30385686649999999,0.31640718340000001,0.32181792139999998,0.31363447259999999,0.31332682160000003,0.30988168160000001,0.3238199168,0.32648791929999998,0.31779266509999998,0.31182286320000002,0.31545806609999999,0.33129731750000002,0.34297324400000001,0.34442092489999998]
["Cost-income ratio201703",201703,24,"Cost-income ratio",0.19981060319864299,0.49711483525741001,0.597876648117039,0.53065239390933605,0.638955394962893,0.72480084810128298,0.99890940264716999,316695887930.93701,493878120280.24103,0.55896499197136695,0.60816921199065199,0.64488217663189695,130,0.55896499197136695,0.64488217663189695,0,"Return on equity17",202012,22,"Return on equity","AT",0,11,4.5761537699597399E-2,17,"",null,"DE_LIQ_17",".",".",".",".",".",".",".",".",1.3678378185,1.4294848907,1.5614558949999999,1.5545280613000001,1.5758781248,1.6244826974,1.5487803180999999,1.5279576993999999,1.5447725290000001,1.5170107000999999,1.5627377543000001,1.5010137109999999,1.4496811596000001,1.4905343095000001,1.4051752001,1.5359012795,1.6330232752,1.5839558097999999]
["Cost-income ratio201706",201706,24,"Cost-income ratio",0.30555076008439802,0.50194290021145505,0.57974636314417705,0.84113447996306701,0.615555187313227,0.68998088722591799,0.94604196954667896,307133941812.97699,499669461094.90997,0.56857911240318704,0.59593105815475,0.61932263485955397,128,0.56857911240318704,0.61932263485955397,0,"Return on equity18",202012,22,"Return on equity","IS",0,3,4.3990170747271899E-2,18,"",null,"DE_PFT_21",4.0260107500000003E-2,2.3254134700000002E-2,4.7961394999999997E-2,5.5255450499999997E-2,1.0620749000000001E-2,7.2030100000000001E-3,2.2291219599999999E-2,2.68193124E-2,2.1176517799999999E-2,1.3384181699999999E-2,3.8974426299999997E-2,2.97345779E-2,3.2631540200000003E-2,1.40120123E-2,2.4576543400000001E-2,3.1116916000000001E-2,3.2209960000000003E-2,1.5203314000000001E-2,2.34212224E-2,-1.383172E-3,2.9590495999999998E-3,-1.6853549999999999E-3,-1.5797604E-2,9.1611551000000003E-3,1.4407616200000001E-2,4.5807243999999997E-3]
["Cost-income ratio201709",201709,24,"Cost-income ratio",0.30577389263168397,0.49525151290903902,0.58010640652685197,0.65286996573893596,0.61706182119654196,0.69147507799810404,0.87975449460261501,296941698545.87903,482720059598.36499,0.58049374183903701,0.58791785920240602,0.62218362830415996,128,0.58049374183903701,0.62218362830415996,1,"Return on equity19",202012,22,"Return on equity","FR",0,13,4.3249506777323803E-2,19,"",null,"DE_PFT_23",0.73005278309999999,0.76178045709999997,0.74188706950000005,0.74445753319999997,0.75367255960000001,0.77488779399999996,0.75639440670000002,0.773728851,0.77696415919999995,0.80906332410000004,0.77407579159999995,0.75348757420000001,0.75873008350000004,0.78325717429999997,0.83716173419999995,0.81892557430000001,0.81063207609999999,0.81963393559999997,0.86019283950000003,0.83150873359999999,0.83640492129999999,0.84429145790000004,0.91613248260000002,0.79618778729999995,0.77799305119999995,0.76963329229999999]
["Cost-income ratio201712",201712,24,"Cost-income ratio",0.28496999710106502,0.50117552192530501,0.59543432525287399,0.54169736065099605,0.63351302698906498,0.70191464897509803,0.84204730952052897,302126508913.69598,481592910291.39398,0.60606691847946503,0.58534042366058603,0.64191028270209805,129,0.58534042366058603,0.64191028270209805,0,"Return on equity20",202012,22,"Return on equity","DK",0,5,4.1347796759522E-2,20,"",null,"DE_PFT_24",1.7755602000000001E-3,1.0361253E-3,2.1653829999999999E-3,2.6191420000000001E-3,4.9136290000000005E-4,3.6715000000000001E-4,1.1468945E-3,1.3601649E-3,1.0937591E-3,7.1109809999999999E-4,2.0791031000000001E-3,1.6171947E-3,1.7708741E-3,7.7074439999999999E-4,1.3759495E-3,1.7516643999999999E-3,1.8287916E-3,8.7626309999999999E-4,1.2710039E-3,-7.4250000000000002E-5,1.577335E-4,-9.5084E-5,-8.6011499999999995E-4,5.030751E-4,7.9438369999999998E-4,2.5732659999999998E-4]
["Cost-income ratio201803",201803,24,"Cost-income ratio",0.292535988871579,0.51304557561785102,0.62310813353031802,0.66015965930610299,0.65006623151911302,0.73861398118413901,0.97419613839107799,316298389474.242,480156772171.65503,0.66611917959533196,0.63498330531692304,0.65228144688849399,128,0.63498330531692304,0.66611917959533196,1,"Return on equity21",202012,22,"Return on equity","NL",0,6,3.1860872911917901E-2,21,"",null,"DE_PFT_25",0.49756788889999998,0.51351778370000001,0.46485206880000002,0.45980508139999998,0.467640322,0.49696335619999998,0.50115092419999996,0.51108094230000001,0.51971525949999997,0.52348651479999997,0.48555218080000001,0.4811367929,0.50823257960000001,0.51762904949999999,0.46186352149999998,0.4908576274,0.51057932709999998,0.57991947799999999,0.55013247740000004,0.56247547360000005,0.58174839209999996,0.58622383180000004,0.62801172019999996,0.56273708710000003,0.54582457949999996,0.53358158509999998]
["Cost-income ratio201806",201806,24,"Cost-income ratio",0.30065679637648701,0.51195492688051902,0.61841924543319005,0.64851523279673096,0.63739101028038303,0.72973021221896806,0.98886131294657098,307796951581.68201,479584337759.24902,0.67667347721985704,0.61784171643603503,0.64008138730253294,128,0.61784171643603503,0.67667347721985704,0,"Return on equity22",202012,22,"Return on equity","DE",0,23,4.5807243625822502E-3,22,"",null,"DE_PFT_26",0.30205261560000002,0.31328886750000001,0.27968107040000001,0.29042189969999999,0.29369192189999999,0.297358134,0.28256227519999999,0.30093001930000002,0.3086234142,0.31274212680000002,0.30919769870000002,0.31035008829999999,0.32959316630000002,0.32980228169999998,0.32266149170000002,0.33121342679999999,0.32896828610000001,0.3266026367,0.33298177020000003,0.33101717899999999,0.33962385280000001,0.34587805109999997,0.40174074949999999,0.34373793530000002,0.34330551100000001,0.3471008666]
["Cost-income ratio201809",201809,24,"Cost-income ratio",0.30593392505314998,0.50344354110118505,0.60915259237541097,0.57599554535171504,0.631836498279993,0.69839532129787096,0.85095788255934801,303498677589.63,477399613330.72101,0.61931343252832005,0.60792517839713001,0.63574164069074901,126,0.60792517839713001,0.63574164069074901,0,"Return on equity23",202012,22,"Return on equity","IT",0,16,4.2789164074362399E-3,23,"",null,"DE_PFT_29",0.14141861480000001,0.1164981168,0.102865159,0.1037664412,9.3733163800000005E-2,8.7410048899999995E-2,0.1260595779,9.0945490700000006E-2,7.21166907E-2,3.34682985E-2,0.12258320039999999,0.1289449262,0.1157842826,0.1021778887,9.0897929000000002E-2,6.09895461E-2,4.86097874E-2,1.6281763300000002E-2,0.11522264979999999,8.0678934699999996E-2,3.8141849899999997E-2,1.7265513499999999E-2,-1.5262342999999999E-2,6.2843531600000002E-2,5.8876128100000001E-2,4.9020947699999998E-2]
["Cost-income ratio201812",201812,24,"Cost-income ratio",0.31225509572686599,0.501482213342482,0.625064690097489,0.62021849478531399,0.64465958015344904,0.70705609652868695,0.93490138159773695,304896468279.36499,472876116902.48602,0.61815638847551602,0.60904439269039201,0.65072418899832396,127,0.60904439269039201,0.65072418899832396,0,"Return on equity24",202012,22,"Return on equity","PT",0,8,-2.5115353914981998E-3,24,"",null,"DE_PFT_41",1.05589749E-2,1.10873893E-2,1.18274568E-2,1.14590578E-2,1.11590531E-2,1.11892303E-2,1.09206545E-2,1.0507248800000001E-2,1.06941135E-2,1.0849193300000001E-2,1.0259987999999999E-2,1.0038984500000001E-2,9.6329730999999991E-3,9.8722474000000008E-3,8.6388362999999992E-3,9.0006488000000003E-3,9.2938320000000001E-3,1.0539550700000001E-2,9.8554057E-3,1.03483293E-2,1.03940131E-2,1.0796295900000001E-2,1.04253322E-2,1.0276724100000001E-2,9.9435022000000008E-3,1.00561069E-2]
["Cost-income ratio201903",201903,24,"Cost-income ratio",0.34520877298466401,0.52595862709551899,0.64581222746969202,0.64284770754533305,0.66341579867493095,0.74478333931543095,0.98838158322915703,318832422944.862,471750392157.87701,0.61681018987583003,0.647773850889233,0.66653474081424902,126,0.61681018987583003,0.66653474081424902,0,"Return on equity25",202012,22,"Return on equity","MT",0,5,-2.48862092760163E-2,25,"",null,"DE_PFT_43",".",".",".",".",".",".",".",".",".",".",".",".",".",".",1.7356652E-3,1.3968813000000001E-3,1.6432019E-3,2.6899274000000001E-3,4.4785325000000001E-3,3.9899404000000001E-3,2.9757606999999998E-3,2.6915733000000002E-3,4.2225863999999997E-3,5.1290564999999996E-3,4.6309893E-3,4.7118283999999996E-3]
["Cost-income ratio201906",201906,24,"Cost-income ratio",0.34524341223760602,0.51787065932311205,0.63372093023255804,0.62093577738854699,0.64105226171254104,0.72493501057455101,0.87733766329634,309515665892.60797,476815389707.15503,0.60871803485438902,0.632648809395842,0.64280952123734902,125,0.60871803485438902,0.64280952123734902,0,"Return on equity26",202012,22,"Return on equity","IE",0,8,-3.2875134011254199E-2,26,"",null,"DE_SVC_1",0.1465085089,0.14771539829999999,0.1429809652,0.14870415400000001,0.15058336350000001,0.1560029506,0.15239554860000001,0.15037852809999999,0.15329571510000001,0.1605882122,0.15866223130000001,0.16038164669999999,0.1698676871,0.17275651850000001,0.16526561170000001,0.1651544787,0.16625108129999999,0.16492293829999999,0.15362025809999999,0.15087464119999999,0.14961192970000001,0.1583847565,0.1542793898,0.16009149249999999,0.1680335825,0.1697517805]
["Cost-income ratio201909",201909,24,"Cost-income ratio",0.33292541712721702,0.51162127403831703,0.62084000453685795,0.619016507060002,0.63302078171000498,0.71937110972252705,0.86566205717095102,303791003642.75702,474345228182.745,0.60613027589093604,0.62289296198736599,0.635005612182442,125,0.60613027589093604,0.635005612182442,0,"Return on equity27",202012,22,"Return on equity","ES",0,15,-3.8810469327274603E-2,27,"",null,"DE_SVC_12",".",".",".",".",".",".",".",".",4.3842571699999999E-2,4.5293529800000003E-2,4.4648566100000002E-2,4.4772576100000003E-2,4.5897171799999997E-2,4.7453356699999998E-2,4.57261614E-2,4.6825136000000003E-2,4.7034852699999997E-2,4.8698225800000002E-2,4.3372009500000003E-2,4.37907144E-2,4.3747278700000003E-2,4.8323677799999999E-2,4.5838883300000001E-2,4.6698112100000001E-2,5.0277226500000001E-2,5.3661888999999997E-2]
["Cost-income ratio201912",201912,24,"Cost-income ratio",0.36638537892682299,0.53066066505470499,0.62748655925459396,0.63107939840300797,0.639782388596976,0.72214491154078997,0.98479364079153298,307263990332.35999,477278221066.71802,0.62009655724844903,0.63438756948166797,0.64092311963744297,126,0.62009655724844903,0.64092311963744297,0,"Return on equity28",202012,22,"Return on equity","CY",0,4,-4.1629101995789702E-2,28,1,null,"DE_SVC_13",".",".",".",".",".",".",".",".",4.8395972299999999E-2,4.9956198399999999E-2,4.8218189100000003E-2,4.7833027E-2,4.89503986E-2,5.0138628800000001E-2,4.7653062199999999E-2,4.8544978500000002E-2,4.8757227399999999E-2,5.0380203499999998E-2,4.48254545E-2,4.5328678999999997E-2,4.53059741E-2,4.9635184800000003E-2,4.6637229799999999E-2,4.75932986E-2,5.0877853100000002E-2,5.41944964E-2]
["Cost-income ratio202003",202003,24,"Cost-income ratio",0.199730495362409,0.56058816834782099,0.673855091599603,0.60446861211574898,0.71721308643454695,0.83887036449269003,1.34153196834588,323432521513.28101,451318356763.96002,0.70948827260668901,0.64378067219941204,0.73433043820041699,117,0.64378067219941204,0.73433043820041699,0,"Return on equity29",202012,22,"Return on equity","GR",0,4,-6.5080411633831797E-2,29,"",null,"DE_SVC_2",0.17041025339999999,0.17086680479999999,0.1662252156,0.1726474268,0.17480158900000001,0.18093065019999999,0.1776965294,0.17524611549999999,0.17843916300000001,0.18770192150000001,0.18627489650000001,0.18750533280000001,0.1963348969,0.19959460500000001,0.19154814470000001,0.19107968340000001,0.1924619015,0.19079698589999999,0.17938777219999999,0.1763879149,0.17471333150000001,0.1835049627,0.17825717290000001,0.18537079100000001,0.194939694,0.1965676489]
["Cost-income ratio202006",202006,24,"Cost-income ratio",0.33820051996822198,0.53888866664784196,0.65219438774780103,0.67400924492951397,0.66637391183353401,0.78568310174462497,1.02567993842885,308767922139.85498,463552050835.10101,0.66984646097714295,0.62076545900604296,0.67672323459151795,117,0.62076545900604296,0.67672323459151795,0,"Return on equity99",202012,22,"Return on equity","EU",0,116,2.0163690755670701E-2,99,"",null,"DE_SVC_29",0.1192824832,0.12067241720000001,0.12095895030000001,0.1266410785,0.1286719147,0.13389658409999999,0.13325371890000001,0.1310052699,0.13457999979999999,0.14113864910000001,0.14232417210000001,0.14548201790000001,0.15428551660000001,0.15816571239999999,0.1534124677,0.15392593760000001,0.1549737025,0.15377772819999999,0.14268790119999999,0.13972088739999999,0.13772023389999999,0.14524165580000001,0.14197778890000001,0.14630406670000001,0.15446407209999999,0.1562278872]
["Cost-income ratio202009",202009,24,"Cost-income ratio",0.35539065190542102,0.51632400777226295,0.643061240752001,0.64169275895476396,0.64705108100443298,0.74123838707807199,1.0166574460790401,300995303170.67603,465362068702.026,0.62725919931996599,0.60830061175711603,0.65574153463422202,116,0.60830061175711603,0.65574153463422202,0,"Return on equity100",202012,22,"Return on equity","GB",0,26,2.58720692923479E-2,100,"",null,"DE_SVC_3",0.1404665735,0.14085868160000001,0.13696062210000001,0.14274951259999999,0.14173060209999999,0.14709563610000001,0.14234640600000001,0.14063902510000001,0.1436632092,0.15015869600000001,0.14708804510000001,0.14923975540000001,0.15824949469999999,0.16253252239999999,0.1534914936,0.1540050305,0.15503034299999999,0.15381168889999999,0.14270796760000001,0.13983611000000001,0.13783676859999999,0.14537347,0.14217945200000001,0.14685930629999999,0.1547551107,0.15670092150000001]
["Cost-income ratio202012",202012,24,"Cost-income ratio",0.34704034917509602,0.50852952203357804,0.63544699749140499,0.616174843790527,0.65059481635044902,0.72764998228757405,0.900205148171067,302497134732.95697,464848372772.06799,0.614839090266322,0.60826828431674196,0.66055859528710104,116,0.60826828431674196,0.66055859528710104,0,"Cost-income ratio1",202012,24,"Cost-income ratio","DE",0,23,0.76963329229467903,1,"",null,"DK_AQT_3.1",3.8757040700000002E-2,3.6027965299999999E-2,3.3966532299999998E-2,3.1484320099999998E-2,3.2630496299999999E-2,3.2846846899999997E-2,3.2260695200000002E-2,3.0460603100000001E-2,2.8764267699999999E-2,2.7825803499999999E-2,2.6528057599999998E-2,2.4410256299999999E-2,2.2872832900000001E-2,2.1670986999999999E-2,2.3310926900000001E-2,2.0455812399999999E-2,1.9972855300000002E-2,1.96774436E-2,1.6010697599999998E-2,1.54730502E-2,1.62890802E-2,1.6652883100000002E-2,1.6712703700000001E-2,1.7185614500000002E-2,1.6987295699999998E-2,1.7015677699999999E-2]
["Return on assets201409",201409,25,"Return on assets",-1.1492604872410999E-2,3.4513148261741802E-4,3.1340138477357802E-3,2.7628761327957302E-3,3.1321219037590501E-3,5.9003497997366702E-3,1.39003309320824E-2,64446592823.476799,22130268651794.898,2.4998092404702001E-3,2.5614190146194499E-3,3.2278334700920502E-3,126,2.4998092404702001E-3,3.2278334700920502E-3,0,"Cost-income ratio2",202012,24,"Cost-income ratio","MT",0,5,0.74974602691530801,2,"",null,"DK_AQT_3.2",4.2600094999999998E-2,3.8960502600000002E-2,3.74608882E-2,3.48088727E-2,3.61684164E-2,3.6068757600000001E-2,3.5578150500000003E-2,3.36079621E-2,3.1595775600000001E-2,3.0652573200000002E-2,2.9279001799999999E-2,2.69169054E-2,2.50835495E-2,2.3662805799999999E-2,2.55213182E-2,2.2455273299999998E-2,2.1819126099999999E-2,2.1588894500000001E-2,1.75239069E-2,1.6980600700000001E-2,1.7842430699999998E-2,1.8203498299999999E-2,1.8316490000000001E-2,1.88270538E-2,1.8727008199999999E-2,1.8686339E-2]
["Return on assets201412",201412,25,"Return on assets",-1.6300993308799801E-2,-1.12917701950841E-3,2.4340935341307201E-3,1.17317694857993E-3,2.0261111599119098E-3,5.3286671351175704E-3,1.24858010749561E-2,49026828948.563698,22089016163777.898,1.2697303214055701E-3,-4.3442198872599202E-4,2.4273358782127101E-3,129,-4.3442198872599202E-4,2.4273358782127101E-3,1,"Cost-income ratio3",202012,24,"Cost-income ratio","IT",0,16,0.72787201176388205,3,"",null,"DK_AQT_31",1.3155676200000001E-2,1.16472808E-2,9.8246779000000003E-3,1.0473309599999999E-2,9.9491762999999993E-3,9.8233920999999998E-3,8.7393146000000008E-3,8.4736585E-3,8.1563343999999996E-3,4.7366179999999997E-3,7.4242778000000002E-3,7.1575474000000004E-3,6.7865204999999996E-3,5.818358E-3,8.0467699999999995E-4,7.9876589999999998E-4,7.0283409999999998E-4,7.5063310000000004E-4,7.4060670000000001E-4,7.5045790000000004E-4,6.2090229999999999E-4,6.5231399999999998E-4,5.8469969999999996E-4,4.3350829999999998E-4,6.106242E-4,6.8104350000000005E-4]
["Return on assets201503",201503,25,"Return on assets",-5.7342214377378801E-3,2.1087810095220499E-3,4.3194154361385403E-3,3.7540247050297901E-3,4.0225646858707302E-3,7.3094396204783103E-3,1.11509094101306E-2,101150720943.841,23209799451550.898,6.3876343880869104E-3,2.0822345671248901E-3,4.3010140733357703E-3,128,2.0822345671248901E-3,6.3876343880869104E-3,0,"Cost-income ratio4",202012,24,"Cost-income ratio","FR",0,13,0.714239505938152,4,"",null,"DK_AQT_41.2",0.33361775869999999,0.36316233390000002,0.36333533169999999,0.36027998839999997,0.32716400740000001,0.31473520710000003,0.30873888890000001,0.31701897340000001,0.31204637559999998,0.30030443909999999,0.2868664346,0.29014464909999998,0.30497195240000002,0.2885559432,0.25383579179999999,0.27860738779999999,0.2764065288,0.28059479990000002,0.33402464399999998,0.32683399860000001,0.30800582459999998,0.31073691689999999,0.34536248200000003,0.34479811729999998,0.31909231500000002,0.29299373200000001]
["Return on assets201506",201506,25,"Return on assets",-2.3297657305846601E-2,2.0677097557295701E-3,4.3956100479899899E-3,3.4027442835886002E-3,4.0550000971130099E-3,7.2165564414813201E-3,1.3454180610575199E-2,99518639621.068893,22605489760244.898,1.27521874820804E-2,-2.8651426547215698E-4,4.6563230008032303E-3,126,-2.8651426547215698E-4,1.27521874820804E-2,0,"Cost-income ratio5",202012,24,"Cost-income ratio","CY",0,4,0.68814651718035202,5,1,null,"DK_AQT_42.2",2.2678450400000001E-2,2.1519837699999999E-2,2.2200140899999998E-2,2.0824870999999998E-2,2.1331609599999999E-2,2.2021709899999999E-2,1.95761027E-2,2.0038198300000001E-2,1.9053094400000001E-2,1.8428869399999999E-2,1.82400097E-2,1.82758222E-2,1.6555490700000002E-2,1.49712024E-2,1.3460434E-2,1.5304284499999999E-2,1.3155935000000001E-2,1.2691150300000001E-2,1.13593885E-2,1.04805687E-2,9.4256249000000004E-3,1.01433684E-2,1.0423345000000001E-2,1.263688E-2,1.3362905200000001E-2,1.3335190800000001E-2]
["Return on assets201509",201509,25,"Return on assets",-1.4492018232660501E-2,1.8653769569495101E-3,3.9195637346114897E-3,3.3403571408853498E-3,3.8115002315327099E-3,6.6421428472131904E-3,1.38260253312882E-2,88591486828.921204,22594277075672,7.1873295322376803E-3,1.46222887546127E-3,4.1395922214785804E-3,126,1.46222887546127E-3,7.1873295322376803E-3,0,"Cost-income ratio6",202012,24,"Cost-income ratio","IE",0,8,0.67175195256091702,6,"",null,"DK_FND_32",3.9976959834999999,3.5883562055999998,3.5947200374000001,3.4815309421,3.5648461876000002,3.5835976056000001,3.3914810483000002,3.2677235908000002,3.2894342300999999,3.3342101787999998,3.5379343629000002,3.5421084128000002,3.5888055686000002,3.4994502041,3.4754656221000002,3.4415157436000001,3.5088797560999998,3.4799268385,3.4686374706000001,3.4918488300999999,3.4717976041999998,3.3949302006000002,3.4056707022000001,3.1120356407999998,3.0836769189000002,2.9353625117000002]
["Return on assets201512",201512,25,"Return on assets",-1.93179010235922E-2,1.4914686949856601E-3,3.4994333836205899E-3,2.2432434294806999E-3,2.76037771724979E-3,5.8541578743567203E-3,1.0941883406677899E-2,73215159366.194794,22290843742807,6.0803770077348298E-3,3.0456821443952198E-4,3.1376860144871799E-3,128,3.0456821443952198E-4,6.0803770077348298E-3,0,"Cost-income ratio7",202012,24,"Cost-income ratio","DK",0,5,0.67061306893482397,7,"",null,"DK_FND_33",".",0.52246220249999997,0.52888949110000005,0.54118884710000004,0.53641528289999996,0.5458258762,0.53414147040000004,0.5269218094,0.55926494969999996,0.54866245670000002,0.57173280130000004,0.57333750319999999,0.54717475169999996,0.54854395629999997,0.54110534779999997,0.53980946210000003,0.54265675989999995,0.55218300750000004,0.5419570413,0.53123983500000005,0.51812665560000004,0.53096176340000001,0.52594353469999999,0.51838790069999996,0.5119073059,0.51546338889999999]
["Return on assets201603",201603,25,"Return on assets",-4.14765609143834E-3,1.13216577703122E-3,3.3780423182653602E-3,4.07129889670427E-3,3.5820964218409102E-3,6.2720914587717103E-3,1.5955424762733698E-2,80307304185.000793,22464091436709.801,1.0182561287732201E-2,2.9079308886619201E-3,3.6576933402812802E-3,132,2.9079308886619201E-3,1.0182561287732201E-2,0,"Cost-income ratio8",202012,24,"Cost-income ratio","LU",0,11,0.66827246808533003,8,"",null,"DK_LIQ_17",".",".",".",".",".",".",".",".",1.7840303886,1.8602994863,1.7379692069999999,1.8584137316,1.6591245491,1.8590188677999999,1.5636716864,1.5806180947999999,1.5762421946,1.4800475907999999,1.5760468358999999,1.5905493315000001,1.7112051859999999,1.7896795622999999,1.7945332848,1.8767697648999999,1.8814634228,1.8395947986000001]
["Return on assets201606",201606,25,"Return on assets",-8.1983986555646902E-3,1.57648542193066E-3,3.6204910801609E-3,4.8303844008192104E-3,3.5936188669367501E-3,6.4263602825688996E-3,2.01209515765087E-2,90157421438.070297,22627219923067.398,1.5995290111251802E-2,1.1469368417736301E-3,3.9255586974984999E-3,133,1.1469368417736301E-3,1.5995290111251802E-2,0,"Cost-income ratio9",202012,24,"Cost-income ratio","SI",0,6,0.63652552503668902,9,"",null,"DK_PFT_21",8.1593238900000004E-2,3.44287962E-2,9.7394514799999998E-2,0.1094927475,8.8597213800000005E-2,7.4884980700000006E-2,8.8805030300000004E-2,9.3953102900000002E-2,9.8002380799999997E-2,0.1032792847,0.1336388584,0.1287114627,0.12307682740000001,0.1165305017,0.100520027,9.7642615399999994E-2,8.7254618899999997E-2,8.2531521199999999E-2,7.5856226600000007E-2,8.3680935900000003E-2,7.7740457999999998E-2,8.7152835100000006E-2,-3.8662759999999997E-2,2.0064773800000001E-2,3.4765023800000003E-2,4.1347796800000003E-2]
["Return on assets201609",201609,25,"Return on assets",-8.9941482940711793E-3,1.08804150859073E-3,3.91549379275006E-3,4.6800554198541001E-3,3.4534979095767202E-3,6.4718109820270202E-3,1.8989334908940701E-2,91175714631.451004,22486102710960.898,1.4312067453927799E-2,1.53254163667446E-3,3.70428299380184E-3,132,1.53254163667446E-3,1.4312067453927799E-2,0,"Cost-income ratio10",202012,24,"Cost-income ratio","BE",0,8,0.62398991004418802,10,"",null,"DK_PFT_23",0.54989395230000004,0.58372249300000001,0.53420494429999998,0.50152609829999995,0.52935381690000005,0.53563479020000004,0.55808447169999997,0.56373667770000002,0.54862558650000004,0.5406612261,0.46464732530000002,0.47320505629999998,0.48302789569999999,0.49970659169999998,0.52397087949999999,0.53278402999999996,0.56797039989999998,0.57762109620000002,0.58149944730000003,0.60513193279999999,0.62010405089999998,0.64214052570000002,0.95667686159999998,0.72010690639999997,0.681043391,0.67061306890000005]
["Return on assets201612",201612,25,"Return on assets",-1.6695776233500301E-2,8.3406813824098201E-4,3.5196345374833198E-3,3.0492645368773701E-3,2.1097115007320802E-3,6.4844111242357396E-3,1.7706312657347401E-2,66369478660.557198,22448911054555.5,1.14407736311525E-2,6.9407084303443596E-4,2.3058272151903901E-3,134,6.9407084303443596E-4,1.14407736311525E-2,0,"Cost-income ratio11",202012,24,"Cost-income ratio","AT",0,11,0.62296186747864901,11,"",null,"DK_PFT_24",3.9529687999999997E-3,1.6573740999999999E-3,4.6485755E-3,5.4218108999999999E-3,4.4509353999999998E-3,3.7875778000000001E-3,4.7043427000000001E-3,4.9676486000000001E-3,5.2190800999999997E-3,4.2563415999999996E-3,5.1899173999999998E-3,5.0357472000000002E-3,4.8765613000000003E-3,4.6340914E-3,5.4005672000000003E-3,5.2665185999999998E-3,4.7244351000000004E-3,4.5191501E-3,4.0416183E-3,4.4425513E-3,4.0748338999999998E-3,4.7075781000000001E-3,-2.0047870000000001E-3,1.0419831E-3,1.8159476E-3,2.1537379000000001E-3]
["Return on assets201703",201703,25,"Return on assets",-4.4798515795675502E-3,1.99700743423785E-3,4.0710275563059801E-3,5.5467300610154598E-3,4.7937661760110396E-3,6.9620653526088804E-3,1.9681908215688101E-2,115817666220.595,22768551536990.398,9.6405702170558293E-3,3.8247272977170498E-3,4.9313697199899796E-3,130,3.8247272977170498E-3,9.6405702170558293E-3,0,"Cost-income ratio12",202012,24,"Cost-income ratio","LV",0,5,0.61775910164790604,12,"",null,"DK_PFT_25",0.71136493469999995,0.74056980319999999,0.67967356010000002,0.6846260851,0.73535912670000003,0.72231336589999995,0.71338923310000002,0.68331573580000005,0.66149560959999998,0.64696292399999999,0.51680741129999996,0.54432656859999995,0.55939893380000005,0.5863049789,0.63663933880000001,0.6168427863,0.61890300819999999,0.63928105479999997,0.53608619989999995,0.57609024289999999,0.59248647509999997,0.57489237010000005,1.0696265815999999,0.71913682509999999,0.66497252880000002,0.63202455280000003]
["Return on assets201706",201706,25,"Return on assets",-3.5254588895310001E-3,2.1913520685780501E-3,4.5546843195801998E-3,4.8407552582417999E-3,4.6377635141633001E-3,8.2322278119106203E-3,1.8029757769271001E-2,111748837998.838,22658548288172,8.2230974240606498E-3,2.8445842683448002E-3,4.9189088924770901E-3,128,2.8445842683448002E-3,8.2230974240606498E-3,0,"Cost-income ratio13",202012,24,"Cost-income ratio","NL",0,6,0.61041576954339405,13,"",null,"DK_PFT_26",0.19002359299999999,0.22025014139999999,0.2361711255,0.2150833516,0.2200403655,0.2183552685,0.23084416629999999,0.22471119780000001,0.2156728728,0.22271465039999999,0.18768760479999999,0.18865844849999999,0.1889697404,0.2064485465,0.2151279042,0.21298778409999999,0.2114400853,0.21579534559999999,0.20124156900000001,0.2076915805,0.22199994209999999,0.22347344080000001,0.36938322070000001,0.24877097440000001,0.2263506173,0.2313986603]
["Return on assets201709",201709,25,"Return on assets",-4.1510597695023901E-3,2.2982996594753898E-3,4.6081854500484402E-3,5.06604162994385E-3,4.7325221565864698E-3,8.1827110748581792E-3,1.6642722838017199E-2,112766024003.29201,22599306878776.699,8.3697291257384607E-3,3.4783774447995799E-3,4.9215022013739699E-3,128,3.4783774447995799E-3,8.3697291257384607E-3,0,"Cost-income ratio14",202012,24,"Cost-income ratio","PT",0,8,0.58231429644500099,14,"",null,"DK_PFT_29",-1.1658251999999999E-2,-5.0114539E-2,-9.1110989999999992E-3,2.19447958E-2,-1.8236506E-2,3.7121297E-3,-3.2695170000000003E-2,5.5353386999999997E-3,4.1482530500000003E-2,6.0756879700000002E-2,0.2070296938,0.17615156360000001,0.1571478516,0.13692560849999999,6.4418382999999996E-2,7.81148074E-2,7.4123369600000003E-2,4.8962877299999999E-2,9.6489664700000005E-2,6.0028182700000002E-2,4.4552753100000002E-2,6.0980550799999998E-2,-0.20957155399999999,9.3404516000000007E-3,4.7827010599999997E-2,4.0996975999999997E-2]
["Return on assets201712",201712,25,"Return on assets",-8.0439730714385697E-3,1.84267288895111E-3,4.2580265994649896E-3,4.8799220550807803E-3,4.0385044949130602E-3,8.7614615077526905E-3,1.86914425721115E-2,98182296776.911102,22297903381773.898,7.2647458377550801E-3,3.0357475688741501E-3,4.1854932575856102E-3,129,3.0357475688741501E-3,7.2647458377550801E-3,0,"Cost-income ratio15",202012,24,"Cost-income ratio","SK",0,3,0.57728966612097898,15,"",null,"DK_PFT_41",9.7976958000000006E-3,1.0234071500000001E-2,9.8368164999999997E-3,1.05621064E-2,1.08162113E-2,1.0780254E-2,1.0709680900000001E-2,1.0582206300000001E-2,1.05011015E-2,1.04407002E-2,8.9777363000000006E-3,9.2107453999999995E-3,9.2565453000000002E-3,9.3017194000000001E-3,9.2482235999999992E-3,8.8813411000000005E-3,8.7919639999999993E-3,9.0124682000000001E-3,7.4286116000000001E-3,7.7658702999999999E-3,7.7779885999999998E-3,7.9022286999999997E-3,9.5121871999999993E-3,8.4991024999999994E-3,8.2396251E-3,8.1022770999999993E-3]
["Return on assets201803",201803,25,"Return on assets",-1.9391533701625201E-3,2.8889209900912699E-3,4.7168891993256802E-3,5.7596098275512599E-3,4.5526082342220104E-3,8.1513954272122192E-3,1.6288783836743301E-2,104846404923.26199,22019449200229.801,1.15410141334952E-2,5.0048269635503502E-3,4.4390725580842104E-3,128,4.4390725580842104E-3,1.15410141334952E-2,0,"Cost-income ratio16",202012,24,"Cost-income ratio","HU",0,4,0.57579686697838595,16,"",null,"DK_PFT_43",".",".",".",".",".",".",".",".",".",".",".",".",".",".",5.0286714999999999E-3,5.1398232999999996E-3,4.3552621999999996E-3,3.7074355E-3,5.3525958999999998E-3,3.2480865E-3,3.4652797000000002E-3,3.5078396000000002E-3,1.5575682299999999E-2,1.11233575E-2,9.0727181999999996E-3,8.4543809000000008E-3]
["Return on assets201806",201806,25,"Return on assets",-3.2400518696043602E-3,2.26443109877098E-3,4.5626089241723499E-3,5.4350361672175504E-3,4.8283877172624404E-3,8.5789057566507503E-3,1.6731952422647401E-2,109955972234.892,22150521407653.602,1.03196906222993E-2,4.8347050474741703E-3,4.7915326088840901E-3,128,4.7915326088840901E-3,1.03196906222993E-2,1,"Cost-income ratio17",202012,24,"Cost-income ratio","FI",0,7,0.569661670377966,17,"",null,"DK_SVC_1",0.1679752239,0.1667514859,0.16477180790000001,0.17019687219999999,0.18253810649999999,0.18606971689999999,0.1786167052,0.1843982193,0.18195878469999999,0.1902325376,0.1836494454,0.19242144059999999,0.19637920319999999,0.2011087697,0.19282462189999999,0.19548716229999999,0.19963777999999999,0.20308028780000001,0.19953252539999999,0.1990350514,0.19512932099999999,0.2028853467,0.20207744320000001,0.19941079619999999,0.2007949695,0.2062235915]
["Return on assets201809",201809,25,"Return on assets",-3.3750910017464899E-3,2.4600153279740202E-3,4.5163865791930501E-3,5.7525901539654204E-3,4.8775278328407699E-3,8.8247856680898698E-3,1.75142719532244E-2,110327487651.79601,22108490634967.801,1.20084744801758E-2,5.0496481113605704E-3,4.8080686576194003E-3,126,4.8080686576194003E-3,1.20084744801758E-2,1,"Cost-income ratio18",202012,24,"Cost-income ratio","EE",0,4,0.538628039783973,18,"",null,"DK_SVC_12",".",".",".",".",".",".",".",".",4.3585864199999998E-2,4.5990444900000003E-2,4.4233830199999997E-2,4.5105206500000002E-2,4.5354187599999998E-2,4.6622719999999999E-2,4.5291551999999999E-2,4.6108338800000002E-2,4.6011904300000003E-2,4.80091853E-2,4.68884548E-2,4.6161351699999999E-2,4.51813883E-2,4.7137568800000001E-2,4.6405373299999997E-2,4.6460115400000002E-2,4.5728230100000003E-2,4.6462213000000002E-2]
["Return on assets201812",201812,25,"Return on assets",-2.8747835023277702E-3,2.06609400425502E-3,4.3919541222241301E-3,5.2094911060371497E-3,4.4453791526569897E-3,7.59024594085622E-3,1.7348149406973198E-2,100412467307.427,21890059615673.199,1.09088325911372E-2,4.5768094899027896E-3,4.3850094077973901E-3,127,4.3850094077973901E-3,1.09088325911372E-2,0,"Cost-income ratio19",202012,24,"Cost-income ratio","HR",0,3,0.53076507741762402,19,"",null,"DK_SVC_13",".",".",".",".",".",".",".",".",4.5996706900000003E-2,4.79300457E-2,4.41868952E-2,4.5477391399999997E-2,4.5641115900000001E-2,4.6905857699999998E-2,4.5708620999999998E-2,4.6505314899999997E-2,4.6407425600000003E-2,4.8399216500000002E-2,4.7210659799999999E-2,4.6473439499999998E-2,4.54913812E-2,4.7441860500000002E-2,4.6746806699999997E-2,4.6822122600000002E-2,4.6168238899999998E-2,4.6946815699999998E-2]
["Return on assets201903",201903,25,"Return on assets",-9.8424493251812002E-4,1.81269603483535E-3,4.4682133299856598E-3,5.5722868596034102E-3,4.5230508373144997E-3,7.8712008080821707E-3,1.9033074479936098E-2,96310399068.986206,22521557785433.699,1.0096048521597499E-2,4.9194231442068704E-3,4.4269144799001497E-3,126,4.4269144799001497E-3,1.0096048521597499E-2,0,"Cost-income ratio20",202012,24,"Cost-income ratio","ES",0,15,0.52636831743996404,20,"",null,"DK_SVC_2",0.1889648417,0.1857374275,0.1825142645,0.18814913,0.2017296878,0.20991047760000001,0.2047279786,0.21169159739999999,0.20799287029999999,0.21643756119999999,0.208031363,0.2186314036,0.22260311099999999,0.22818778319999999,0.2192969883,0.2220661937,0.21984403499999999,0.22251737890000001,0.22253123429999999,0.2197141078,0.2154936341,0.2284086934,0.22907467579999999,0.2257845946,0.23011432840000001,0.2337533584]
["Return on assets201906",201906,25,"Return on assets",4.7979834162974102E-4,2.5674739768478299E-3,4.8119559657383501E-3,5.8103807111960504E-3,4.6626482268620796E-3,7.7876759942144902E-3,1.58557454663571E-2,100486886054.17599,22642245572806.699,1.00828733972277E-2,5.11813634063462E-3,4.5602709979520499E-3,125,4.5602709979520499E-3,1.00828733972277E-2,0,"Cost-income ratio21",202012,24,"Cost-income ratio","BG",0,4,0.52097922055176205,21,"",null,"DK_SVC_29",0.1455250119,0.14401431840000001,0.14224339720000001,0.14721030460000001,0.15952725100000001,0.16330509039999999,0.15872251530000001,0.1643694738,0.1619930648,0.1680475173,0.1643844294,0.17313562430000001,0.1766047214,0.1812736157,0.17274957530000001,0.17117584180000001,0.17467402479999999,0.17839267580000001,0.175356119,0.1748086935,0.1710082742,0.1785959869,0.18165732300000001,0.1795222414,0.18340604560000001,0.1865016981]
["Return on assets201909",201909,25,"Return on assets",-1.5615088126213199E-3,2.4688785528087301E-3,4.5041158568034203E-3,5.5723768961124199E-3,4.33316506079245E-3,7.6467488817788601E-3,1.56543260488844E-2,99211179457.968796,22914132685746.398,1.0037121164498E-2,5.2399448184082299E-3,4.1652337667896604E-3,125,4.1652337667896604E-3,1.0037121164498E-2,0,"Cost-income ratio22",202012,24,"Cost-income ratio","PL",0,3,0.51519426681800895,22,"",null,"DK_SVC_3",0.1524952638,0.15186923159999999,0.14830211930000001,0.15358165360000001,0.1643474127,0.16776546279999999,0.16082715040000001,0.16588606750000001,0.16306985469999999,0.1692299605,0.16516746560000001,0.17396677399999999,0.17741737399999999,0.18198136300000001,0.1739323733,0.17233437979999999,0.17591421090000001,0.179592318,0.1764235924,0.175855235,0.17207442680000001,0.1796276483,0.18298603569999999,0.1809258296,0.18499923430000001,0.18835238870000001]
["Return on assets201912",201912,25,"Return on assets",-2.6880707105809902E-3,2.13622843102413E-3,4.0545325927633198E-3,4.8427285471260104E-3,3.8898167938901801E-3,6.4393581327380602E-3,1.49513551020201E-2,90616636422.962799,22380445010655.301,8.7319141498397208E-3,4.2526502965340197E-3,3.8018181250615798E-3,126,3.8018181250615798E-3,8.7319141498397208E-3,0,"Cost-income ratio23",202012,24,"Cost-income ratio","SE",0,8,0.51260759148839896,23,"",null,"EE_AQT_3.1",".",".",".",".",".",".",1.62184371E-2,1.53775249E-2,1.41373621E-2,1.2799757E-2,1.25633829E-2,1.2730314E-2,1.25537033E-2,1.7293643000000001E-2,1.8887795499999999E-2,1.5448523800000001E-2,1.47263503E-2,1.1351883E-2,1.99133695E-2,1.7951939300000001E-2,1.7109830999999999E-2,1.4533315099999999E-2,1.44256451E-2,1.35152741E-2,1.2138094E-2,1.0031444299999999E-2]
["Return on assets202003",202003,25,"Return on assets",-1.23253000808984E-2,-2.2164234744935498E-3,1.3877871761956301E-3,1.5716395579150901E-3,8.4882347480910898E-4,4.0249527663743E-3,1.2735041433976199E-2,19841411668.653599,23887287945310.699,5.12035655293629E-3,6.6700641528369897E-4,8.4193199836869303E-4,117,6.6700641528369897E-4,5.12035655293629E-3,0,"Cost-income ratio24",202012,24,"Cost-income ratio","CZ",0,3,0.51083952523001597,24,"",null,"EE_AQT_3.2",".",".",".",".",".",".",1.6221060900000001E-2,1.54061545E-2,1.4160331E-2,1.2873040400000001E-2,1.2631742899999999E-2,1.2797303899999999E-2,1.26218675E-2,1.73982913E-2,1.9214260800000001E-2,1.56895113E-2,1.4949485300000001E-2,1.1522147599999999E-2,2.02141695E-2,1.8285542799999999E-2,1.74466502E-2,1.4789342299999999E-2,1.4752071699999999E-2,1.47030042E-2,1.31819317E-2,1.0797392100000001E-2]
["Return on assets202006",202006,25,"Return on assets",-1.4116962633314601E-2,3.02289331250756E-5,1.74502976736142E-3,1.0392416304171399E-3,3.2082877075508503E-4,3.5730332760387602E-3,1.3762775484071E-2,6309661922.42834,24126806417249.699,4.9660944224498901E-3,-3.5659545556138503E-4,4.0305508560688999E-4,117,-3.5659545556138503E-4,4.9660944224498901E-3,0,"Cost-income ratio25",202012,24,"Cost-income ratio","IS",0,3,0.49307347752425501,25,"",null,"EE_AQT_31",".",".",".",".",".",".",6.3947344000000001E-3,6.3628851999999996E-3,6.2236949E-3,5.7228041000000002E-3,5.5212229999999996E-3,5.4654200000000003E-3,5.8251500999999999E-3,8.2635641000000006E-3,7.7873420999999996E-3,5.0712073999999996E-3,4.5481879999999999E-3,3.8652862E-3,7.3917197000000004E-3,6.4769145E-3,6.6628518000000003E-3,5.5243421999999999E-3,5.9526987999999996E-3,5.1371893999999996E-3,4.3110848999999996E-3,3.9260692E-3]
["Return on assets202009",202009,25,"Return on assets",-9.4329688675027397E-3,5.3156839037361305E-4,2.7165157704407898E-3,2.3077577281084998E-3,1.62406751298501E-3,4.3683144176649901E-3,1.3313767886741001E-2,38152581255.358597,24156798291896.398,6.7418367026530601E-3,1.00826639381389E-3,1.6867156950709299E-3,116,1.00826639381389E-3,6.7418367026530601E-3,0,"Cost-income ratio26",202012,24,"Cost-income ratio","RO",0,3,0.48137515047880702,26,"",null,"EE_AQT_41.2",".",".",".",".",".",".",0.28809254870000001,0.28888244549999997,0.28502985510000001,0.31691658639999998,0.31574068849999998,0.26076986320000001,0.23774231830000001,0.23391740229999999,0.2238449337,0.24461747510000001,0.25962465379999999,0.23675982370000001,0.25848262519999998,0.28412674739999999,0.32676960820000001,0.34825655160000002,0.34581953669999999,0.33266615170000002,0.3400006512,0.29010298769999998]
["Return on assets202012",202012,25,"Return on assets",-1.01576777748353E-2,5.8324698673215599E-4,2.6192375728830999E-3,2.1534041911874498E-3,1.3324184631923E-3,5.0164786228160596E-3,1.36697176738405E-2,30601901583.846199,23973345309511.199,6.9796837438158496E-3,1.32306071985171E-3,1.2779451429015701E-3,116,1.2779451429015701E-3,6.9796837438158496E-3,0,"Cost-income ratio27",202012,24,"Cost-income ratio","LT",0,4,0.44677349216826701,27,"",null,"EE_AQT_42.2",".",".",".",".",".",".",2.4899754600000001E-2,2.17822043E-2,2.0205929899999999E-2,1.98412572E-2,1.9266090199999999E-2,1.88521304E-2,1.6598584600000001E-2,1.7510196799999999E-2,9.9476027000000005E-3,9.0450753000000002E-3,8.5464940999999996E-3,6.8633924000000004E-3,1.08621503E-2,9.8124257000000003E-3,2.13952806E-2,2.2473127799999999E-2,2.3290916799999999E-2,2.7127150799999999E-2,2.5367973299999999E-2,2.1876538099999999E-2]
["Net interest income to total net operating income201409",201409,26,"Net interest income to total net operating income",0.17783501714097399,0.48004770327394197,0.61378576215635094,1.0002363976423401,0.58580059733485801,0.75810057609232795,0.98534752101670997,275149289263.22803,468718352162.65802,0.61121832316781399,0.60594517855959795,0.58216550834010505,127,0.58216550834010505,0.61121832316781399,1,"Cost-income ratio28",202012,24,"Cost-income ratio","GR",0,4,0.42070422263434498,28,"",null,"EE_FND_32",".",".",".",".",".",".",1.0809793381999999,1.0735526768000001,1.0732819545000001,1.0583785868,1.0700247756000001,1.0901920798,1.1083960006,1.2323280750000001,1.2563408978999999,1.213209647,1.2220597504999999,1.1883589348000001,1.2232666969999999,1.2137850833999999,1.1793615180000001,1.1402208284999999,1.1287505775,1.0915078127,1.0731516672999999,0.99205888320000002]
["Net interest income to total net operating income201412",201412,26,"Net interest income to total net operating income",0.18459620660436499,0.49633973927430702,0.62199106682720795,0.677756592791808,0.58762175123782101,0.75369512582504505,1.08302586637571,275942758495.70001,471399618526.74298,0.57920555687911801,0.60544016559434699,0.58463431999807502,129,0.57920555687911801,0.60544016559434699,1,"Cost-income ratio29",202012,24,"Cost-income ratio","NO",0,4,0.41943797761536999,29,"",null,"EE_FND_33",".",".",".",".",".",".",9.9269580000000009E-4,1.3733059000000001E-3,1.6999881E-3,1.8975564E-3,2.3990423999999998E-3,2.9952248000000002E-3,4.5591790999999996E-3,5.9643615999999998E-3,6.6946178999999998E-3,8.7165312000000005E-3,1.13862774E-2,1.41323466E-2,1.4270909300000001E-2,1.4265359300000001E-2,6.5646566500000003E-2,6.8007632299999995E-2,8.1659964799999998E-2,0.1200969491,0.10601004949999999,8.5916770899999995E-2]
["Net interest income to total net operating income201503",201503,26,"Net interest income to total net operating income",0.106235653347308,0.43178250421624298,0.58271622192844397,0.262583643798116,0.55510769853485797,0.73834027132691804,1.0868596317455099,281905060319.01001,514174400505.84698,0.50667245993048005,0.59259437534446502,0.54943313642297598,128,0.50667245993048005,0.59259437534446502,0,"Cost-income ratio99",202012,24,"Cost-income ratio","EU",0,116,0.65059481635044902,99,"",null,"EE_LIQ_17",".",".",".",".",".",".",".",".",2.0037852038000001,2.0442051305,1.8560730538000001,1.7185136333,1.6563357861000001,1.5618136919000001,1.4665620401999999,1.6000562931,1.5659363276,1.5607316042999999,1.4590770822000001,1.5460282543999999,1.4768941630000001,1.4344411566999999,1.5662036317000001,1.7734092225,1.8065161018,1.8150967200999999]
["Net interest income to total net operating income201506",201506,26,"Net interest income to total net operating income",0.29437746204787102,0.45875031212540102,0.58910447175985103,0.60606626403072195,0.54852730646749304,0.72655793670455404,0.98535820930081197,282128289512.57098,516831151883.367,0.56345613088818503,0.59561349171991596,0.541062357367744,126,0.541062357367744,0.59561349171991596,0,"Cost-income ratio100",202012,24,"Cost-income ratio","GB",0,26,0.65708599093361797,100,"",null,"EE_PFT_21",".",".",".",".",".",".",0.17289091549999999,0.14038799660000001,0.1260665124,0.1173569027,0.1265414409,0.11054852179999999,0.1005444949,9.0704574400000001E-2,0.10487135409999999,0.1087486179,0.1024925324,9.6056963800000006E-2,9.1932136100000006E-2,0.10598405230000001,0.1020360693,9.2257432900000005E-2,8.1246602400000006E-2,6.9594309100000001E-2,7.1823127799999997E-2,7.2618750900000001E-2]
["Net interest income to total net operating income201509",201509,26,"Net interest income to total net operating income",0.26837297261255499,0.48265869040605303,0.59874198435182302,0.61841943584619097,0.56336977662037502,0.77602617492845805,0.97336267978704505,283196349374.51501,502605533266.63,0.58884587450660397,0.616346830670915,0.55499164579980198,126,0.55499164579980198,0.616346830670915,0,"Return on assets1",202012,25,"Return on assets","SI",0,6,1.9159169556471001E-2,1,"",null,"EE_PFT_23",".",".",".",".",".",".",0.43848035400000002,0.41609829469999998,0.4130794653,0.41695574349999998,0.41565373620000001,0.41674107729999998,0.41606246019999998,0.42503276620000002,0.35784308850000002,0.39093606199999997,0.39809010579999998,0.40872805709999999,0.53730626699999995,0.48649320159999998,0.50038465470000004,0.51314811059999998,0.46145926120000003,0.50378961170000003,0.50856130980000003,0.53862803979999996]
["Net interest income to total net operating income201512",201512,26,"Net interest income to total net operating income",0.35677359707404599,0.48942144781221403,0.61138097484074205,0.62001875104843895,0.57307135510312501,0.78083171650280303,0.96252971083028305,281996979907.841,495913194541.86102,0.58101625525132194,0.606645988817481,0.56751417363757795,128,0.56751417363757795,0.606645988817481,1,"Return on assets2",202012,25,"Return on assets","RO",0,3,1.33933477414138E-2,2,"",null,"EE_PFT_24",".",".",".",".",".",".",2.8967211900000001E-2,2.3565008299999999E-2,2.1215920799999999E-2,1.98526165E-2,2.1040058399999999E-2,1.8666697100000001E-2,1.6944300499999999E-2,1.4400431700000001E-2,1.6129978E-2,1.6643356500000001E-2,1.57716943E-2,1.4723143399999999E-2,1.34855271E-2,1.5205230599999999E-2,1.43679706E-2,1.2978277999999999E-2,1.09633327E-2,9.0713367999999996E-3,9.2937813999999994E-3,8.9147879999999999E-3]
["Net interest income to total net operating income201603",201603,26,"Net interest income to total net operating income",0.142177290985461,0.51872103999577501,0.64666599028186,0.65111593059363104,0.58782894142668396,0.80655945985808497,1.0275263800423999,271828342380.871,468338746446.62799,0.63253974211231201,0.61379908966421803,0.58301555971502494,132,0.58301555971502494,0.63253974211231201,1,"Return on assets3",202012,25,"Return on assets","HU",0,4,1.0781002870363101E-2,3,"",null,"EE_PFT_25",".",".",".",".",".",".",0.61895582930000004,0.57630416780000004,0.58918634400000003,0.59807156480000001,0.61313489730000004,0.61497506589999995,0.61944515840000003,0.63266187890000003,0.54209015029999996,0.57695671859999997,0.60113091890000003,0.61176917659999996,0.66089194500000004,0.61287340629999998,0.62588025739999997,0.6175728855,0.55590865030000003,0.60645463259999999,0.62621989560000002,0.64512161550000002]
["Net interest income to total net operating income201606",201606,26,"Net interest income to total net operating income",0.15701006045975699,0.503823316617517,0.64146656262066304,0.98308173501506102,0.56961824561713503,0.77141894964989899,1.06735964661161,272563613808.771,482369850577.66901,0.596394822978218,0.60521274331823305,0.56339990434550702,133,0.56339990434550702,0.60521274331823305,1,"Return on assets4",202012,25,"Return on assets","LT",0,4,9.5470290718814906E-3,4,"",null,"EE_PFT_26",".",".",".",".",".",".",0.28261512560000002,0.26585123319999998,0.27241397569999998,0.27443608200000003,0.28232801540000002,0.28124255590000002,0.2836832554,0.27576144009999998,0.21350315,0.2367208411,0.2441739205,0.24501114700000001,0.24424831520000001,0.2306317383,0.23547844679999999,0.23278533360000001,0.19629244609999999,0.20103661310000001,0.2111233414,0.2277323027]
["Net interest income to total net operating income201609",201609,26,"Net interest income to total net operating income",0.16257896408554801,0.50438988948227104,0.62578394421791395,0.67054450791857201,0.57698547993939098,0.76757845090270604,1.00411439707851,274541578776.23901,478551459675.48401,0.63375466942980796,0.60766585074513602,0.57128547783120198,132,0.57128547783120198,0.63375466942980796,0,"Return on assets5",202012,25,"Return on assets","EE",0,4,8.9147879641049508E-3,5,"",null,"EE_PFT_29",".",".",".",".",".",".",3.7942169099999999E-2,3.7796081099999997E-2,4.0596243599999998E-2,4.2253519500000003E-2,4.7281251199999999E-2,4.35917631E-2,3.9998625400000001E-2,3.9602198399999997E-2,2.4432194399999999E-2,2.6854399899999999E-2,2.7132912299999999E-2,2.9833845099999999E-2,4.6510214000000001E-2,2.7821365399999999E-2,3.80886738E-2,3.3139492600000001E-2,4.4253655099999997E-2,2.8455757700000001E-2,1.31302971E-2,6.3405524000000003E-3]
["Net interest income to total net operating income201612",201612,26,"Net interest income to total net operating income",0.15076538138380699,0.49715393259229002,0.63763047521649296,0.61950058831671595,0.57820058673348096,0.75509956890354002,0.977917838369745,272956289087.242,476740484392.15997,0.60605283288418599,0.60100187604439903,0.57397209041234298,134,0.57397209041234298,0.60605283288418599,1,"Return on assets6",202012,25,"Return on assets","LV",0,5,8.4173607047744702E-3,6,"",null,"EE_PFT_41",".",".",".",".",".",".",1.9042577000000002E-2,1.9106904899999999E-2,1.9138784299999999E-2,1.9364107299999999E-2,1.8870342299999999E-2,1.9286108999999999E-2,1.9179994400000001E-2,1.69201226E-2,1.9151093899999999E-2,1.87626714E-2,1.8900327000000001E-2,1.89545897E-2,2.2182536799999999E-2,2.2099664799999998E-2,2.20813181E-2,2.1747042599999999E-2,1.7920932000000001E-2,1.74988581E-2,1.7329487500000001E-2,1.70426311E-2]
["Net interest income to total net operating income201703",201703,26,"Net interest income to total net operating income",0.173727823007398,0.48749858860169498,0.62704330923269702,0.58944179594021995,0.55928962760734902,0.75892279363586901,0.93726394456987905,276999233188.44098,493878120280.24103,0.58433636789504995,0.58431758751436003,0.55478436177819601,130,0.55478436177819601,0.58433636789504995,1,"Return on assets7",202012,25,"Return on assets","BG",0,4,7.5080387876144197E-3,7,"",null,"EE_PFT_43",".",".",".",".",".",".",".",".",".",".",".",".",".",".",2.4743343E-3,3.7538612999999999E-3,2.6146171000000001E-3,1.8579593000000001E-3,5.3815979999999998E-6,1.3502792999999999E-3,2.0064957999999999E-3,2.3890113E-3,5.5608756000000001E-3,5.3219195999999998E-3,3.7988470000000002E-3,3.1328711999999998E-3]
[{"$f":"+D195&B195","v":"Net interest income to total net operating income201706"},201706,26,"Net interest income to total net operating income",0.23510071803909099,0.50140891153682299,0.61783284826297302,0.715648894047617,0.55439638317506201,0.72886257779395203,0.96335456962432298,277473482785.18597,499669461094.90997,0.57436609219399004,0.58975893116543499,0.54812918617102102,128,{"$f":"MIN(N195:P195)","v":0.54812918617102102},{"$f":"MAX(N195:P195)","v":0.58975893116543499},{"$f":"IF(OR(G195<R195,G195>S195),1,0)","v":1},{"$f":"CONCATENATE(X195,AC195)","v":"Return on assets8"},202012,25,"Return on assets","HR",0,3,7.1413190084256197E-3,8,"",null,"EE_SVC_1",".",".",".",".",".",".",0.37553004709999999,0.36342787189999998,0.36188659880000001,0.35818400309999998,0.37962499319999998,0.37879194500000002,0.37507844159999998,0.30919317759999998,0.32307668229999997,0.31760159589999998,0.31926758249999998,0.3159974981,0.26827838879999999,0.27106398900000001,0.26028226869999999,0.2702115477,0.26962342140000001,0.2761292374,0.27552276110000001,0.27733085800000001]
["Net interest income to total net operating income201709",201709,26,"Net interest income to total net operating income",0.275842900802233,0.52695682257503995,0.629169878537988,0.64881240585102196,0.56909007750053398,0.74451065610514,0.984485382922754,275838772899.15198,482720059598.36499,0.58728966726627696,0.61090385504395694,0.56202197001772602,128,0.56202197001772602,0.61090385504395694,1,"Return on assets9",202012,25,"Return on assets","IS",0,3,7.1300569505822302E-3,9,"",null,"EE_SVC_12",".",".",".",".",".",".",".",".",0.14063130460000001,0.1391349523,0.1480785641,0.14883806990000001,0.14608421160000001,0.1305152899,0.13533797759999999,0.13235127099999999,0.1317097103,0.12700971929999999,0.12679497410000001,0.1246856923,0.11872125660000001,0.11983136,0.1187713044,0.11004432409999999,0.1070748384,9.8521390700000003E-2]
["Net interest income to total net operating income201712",201712,26,"Net interest income to total net operating income",0.18692608998284199,0.484994200941124,0.63353585293960901,0.592856170543544,0.57348660144932495,0.73491293819151404,0.94915411887567802,276358037283.60199,481592910291.39398,0.589697413313793,0.60515407203801497,0.56798468233695598,129,0.56798468233695598,0.60515407203801497,1,"Return on assets10",202012,25,"Return on assets","NO",0,4,6.6944884736809696E-3,10,"",null,"EE_SVC_13",".",".",".",".",".",".",".",".",0.1406130575,0.13912236589999999,0.14807255959999999,0.14883393110000001,0.14608360049999999,0.1305143074,0.13533797759999999,0.13235175360000001,0.1317097103,0.12700971929999999,0.12679497410000001,0.1246856923,0.11872125660000001,0.11983136,0.1187713044,0.11004432409999999,0.1070748384,0.1026356036]
["Net interest income to total net operating income201803",201803,26,"Net interest income to total net operating income",0.17860123849086099,0.48368034085713302,0.63622711106493302,0.66142981114714905,0.56735671578510904,0.77203643602789096,1.0314400358292699,272833055007.46799,480156772171.65503,0.63977375193256103,0.63126177153244201,0.55661757938227896,128,0.55661757938227896,0.63977375193256103,0,"Return on assets11",202012,25,"Return on assets","PL",0,3,6.2681568032096997E-3,11,"",null,"EE_SVC_2",".",".",".",".",".",".",0.3803336142,0.36808413890000002,0.3665214745,0.36276455190000001,0.38418084470000002,0.38334768050000001,0.37957079659999998,0.31242670350000001,0.32636361289999999,0.32082265370000002,0.32248005610000002,0.32127389550000002,0.27137636240000002,0.27457184969999998,0.26364893299999997,0.27362897330000002,0.27301336110000002,0.27986438330000002,0.28048941430000002,0.28229979150000001]
["Net interest income to total net operating income201806",201806,26,"Net interest income to total net operating income",0.18600227221339199,0.51062751329611,0.65981317687556496,0.66509242707329197,0.56842005529913497,0.76684943510066605,1.0207007059604001,274297306773.595,479584337759.24902,0.65271029569693795,0.63094310259403197,0.55776738187685604,128,0.55776738187685604,0.65271029569693795,1,"Return on assets12",202012,25,"Return on assets","CZ",0,3,6.1203274603803303E-3,12,"",null,"EE_SVC_29",".",".",".",".",".",".",0.37560939830000001,0.36349626689999998,0.36194124519999998,0.3582216453,0.37964306320000002,0.37880432069999997,0.37508179359999999,0.30919585469999999,0.32307668229999997,0.31760159589999998,0.31926758249999998,0.3159974981,0.26827838879999999,0.26983664349999997,0.25905802709999998,0.26896884739999999,0.26839071609999998,0.27392711539999998,0.27333293209999998,0.27513970869999999]
["Net interest income to total net operating income201809",201809,26,"Net interest income to total net operating income",0.18148888360156701,0.51187183274272097,0.65158074909624097,0.60871771797195895,0.57357106131922397,0.75706004535895499,0.96034415873749901,275812966702.323,477399613330.72101,0.606130126984609,0.63101032272371305,0.56416631355599001,126,0.56416631355599001,0.63101032272371305,1,"Return on assets13",202012,25,"Return on assets","SK",0,3,5.5677487031561999E-3,13,"",null,"EE_SVC_3",".",".",".",".",".",".",0.37553004709999999,0.36342787189999998,0.36188659880000001,0.35818400309999998,0.37962499319999998,0.37879194500000002,0.37507844159999998,0.30919317759999998,0.32307668229999997,0.31760159589999998,0.31926758249999998,0.3159974981,0.26827838879999999,0.26983664349999997,0.25905802709999998,0.26896884739999999,0.26839071609999998,0.27392711539999998,0.27333293209999998,0.27513970869999999]
["Net interest income to total net operating income201812",201812,26,"Net interest income to total net operating income",0.24133583728350899,0.53363214431388595,0.65760615036523895,0.65461931950050301,0.58901276056515395,0.76646511984582,0.99974422589477596,280410726156.026,472876116902.48602,0.62254751634981598,0.64640505879207599,0.57933062009245795,127,0.57933062009245795,0.64640505879207599,1,"Return on assets14",202012,25,"Return on assets","SE",0,8,5.19993777604462E-3,14,"",null,"ES_AQT_3.1",7.3013560000000005E-2,6.7598539599999993E-2,6.4773249399999996E-2,6.0108484199999999E-2,5.7324821499999998E-2,5.3869171200000003E-2,5.3371227399999999E-2,5.1265548700000003E-2,5.0372983500000003E-2,4.9117657799999999E-2,4.7724343900000001E-2,4.6503276400000002E-2,4.09305248E-2,3.9301712099999997E-2,3.8535248100000002E-2,3.65378383E-2,3.5094628500000002E-2,3.2580718000000002E-2,3.1479341500000001E-2,3.0183939699999999E-2,2.9851880399999999E-2,2.8151487699999998E-2,2.7225967699999999E-2,2.62966169E-2,2.60118391E-2,2.5598019199999999E-2]
["Net interest income to total net operating income201903",201903,26,"Net interest income to total net operating income",0.19203252648660801,0.5103345697253,0.65810478443721299,0.65519778497094905,0.58186822850242803,0.77348543162679795,1.0411390395873601,278792950589.35101,471750392157.87701,0.61755680512372502,0.62979049526464803,0.57352698902945898,126,0.57352698902945898,0.62979049526464803,1,"Return on assets15",202012,25,"Return on assets","LU",0,11,4.1683161653265797E-3,15,"",null,"ES_AQT_3.2",8.8259148699999998E-2,8.1263347599999994E-2,7.7271646599999994E-2,7.12271607E-2,6.7629787400000002E-2,6.2985555900000004E-2,6.2525581900000002E-2,5.9605850600000003E-2,5.8558194199999997E-2,5.7098758600000001E-2,5.5401069900000002E-2,5.4065582600000002E-2,4.7527345700000001E-2,4.5258584999999997E-2,4.4817381099999998E-2,4.2374580500000002E-2,4.0586019700000003E-2,3.7547496999999999E-2,3.6209682899999998E-2,3.46979413E-2,3.4406262600000001E-2,3.2304275299999997E-2,3.11398679E-2,3.01534878E-2,2.9915182299999999E-2,2.9253182799999999E-2]
["Net interest income to total net operating income201906",201906,26,"Net interest income to total net operating income",0.190940509191869,0.52821478035441605,0.646536102169606,0.63761747684440795,0.57890898932807699,0.74742706789445201,0.99190896870325795,281576151356.77802,476815389707.15503,0.61015586402771804,0.62688398732613804,0.57062395053092196,125,0.57062395053092196,0.62688398732613804,1,"Return on assets16",202012,25,"Return on assets","FI",0,7,4.1253422563455504E-3,16,"",null,"ES_AQT_31",3.35687296E-2,2.8918338500000002E-2,2.83979145E-2,2.5630360200000001E-2,2.45239017E-2,2.3580659100000002E-2,2.3316884699999998E-2,2.2655549800000001E-2,2.2614878000000001E-2,2.0890417500000001E-2,2.0146275200000001E-2,1.93603475E-2,1.7422628200000002E-2,1.7814859799999999E-2,1.1542009000000001E-2,1.11286661E-2,1.12283548E-2,1.03213668E-2,1.00379376E-2,9.6252638000000005E-3,9.6145224000000005E-3,9.2833253000000008E-3,8.8195239000000009E-3,8.4295554999999998E-3,8.0061595999999999E-3,6.6913201000000002E-3]
["Net interest income to total net operating income201909",201909,26,"Net interest income to total net operating income",0.189148622301265,0.53735441073130896,0.64266379682978603,0.641776977931376,0.584232759449691,0.75219280226493102,1.0346777000116001,282617824675.68701,474345228182.745,0.61346533235066902,0.62747286412068004,0.57673395160067098,125,0.57673395160067098,0.62747286412068004,1,"Return on assets17",202012,25,"Return on assets","AT",0,11,3.8564030017451101E-3,17,"",null,"ES_AQT_41.2",0.4507847042,0.45557824460000002,0.46159842070000001,0.4613633312,0.46256931489999997,0.45694637529999999,0.45414181110000001,0.44828746819999998,0.44414410580000002,0.43744203450000002,0.43553604839999999,0.44719734230000002,0.4187522722,0.4193834682,0.44734702310000002,0.4419894573,0.43365352400000001,0.42879978499999999,0.42786634220000003,0.42932427299999998,0.42897312370000001,0.42916660410000002,0.43313141710000003,0.4328829038,0.44303835819999998,0.4492101027]
["Net interest income to total net operating income201912",201912,26,"Net interest income to total net operating income",0.18826812381501501,0.53027286424278897,0.63882352738275705,0.63626432551967804,0.58365140837340801,0.75584104691180298,0.99456359185795895,284607537722.47998,477278221066.71802,0.60703822108246597,0.62145404764148204,0.57696647194467099,126,0.57696647194467099,0.62145404764148204,1,"Return on assets18",202012,25,"Return on assets","BE",0,8,3.4344648133626098E-3,18,"",null,"ES_AQT_42.2",0.1015195441,9.93237446E-2,9.61420157E-2,8.9084511300000002E-2,8.7059092800000001E-2,8.3628253900000005E-2,8.4274309500000005E-2,7.9757889299999996E-2,7.7751651199999994E-2,6.1540874500000002E-2,5.9095865800000001E-2,5.60654914E-2,5.1079269199999999E-2,4.9711295000000003E-2,4.8783025700000003E-2,4.5572498900000001E-2,4.26524956E-2,3.9375002999999999E-2,3.61112767E-2,3.4355749099999999E-2,3.3860013899999999E-2,3.1392946099999999E-2,2.9166653599999998E-2,2.8352004100000001E-2,2.7777156000000001E-2,2.7523323400000001E-2]
["Net interest income to total net operating income202003",202003,26,"Net interest income to total net operating income",7.8803218752403995E-2,0.52305874116622597,0.68297006638889701,0.714057198804816,0.62947269927852201,0.81875853910115204,1.77153364733209,283626030246.71002,451318356763.96002,0.69151710322174198,0.62578794052414,0.62946232638732402,117,0.62578794052414,0.69151710322174198,0,"Return on assets19",202012,25,"Return on assets","FR",0,13,2.7351291130363999E-3,19,"",null,"ES_FND_32",1.2193541575,1.2038883414999999,1.2277971745,1.2246426339000001,1.2183186601,1.2170893943000001,1.2086136988,1.1952987816,1.1907381579,1.1761211515000001,1.1692842190999999,1.1609895126000001,1.1524831178999999,1.1482780502000001,1.1434084405,1.1368811338,1.1394907711,1.1279597023000001,1.1210224686000001,1.1118282022999999,1.1192972236000001,1.1102193065999999,1.1101788163999999,1.0722880747000001,1.0559424500000001,1.0456540024000001]
["Net interest income to total net operating income202006",202006,26,"Net interest income to total net operating income",0.18298462429573001,0.53996491684275905,0.65917782255194202,0.63922516617743297,0.60301919590779995,0.79003443813601404,1.0635864001473101,280407927932.07098,463552050835.10101,0.64617198745068105,0.60667402112625202,0.60156135705573899,117,0.60156135705573899,0.64617198745068105,1,"Return on assets20",202012,25,"Return on assets","DK",0,5,2.1537379053051201E-3,20,"",null,"ES_FND_33",".",0.29506445419999999,0.29632165420000001,0.2884689292,0.27986147290000002,0.27473045569999999,0.27337817939999998,0.26857731600000001,0.26465132340000003,0.26581587000000001,0.2635651537,0.2626561879,0.26542289099999999,0.26612287019999997,0.26355544069999998,0.25341708950000003,0.25187867780000001,0.246600969,0.2440097366,0.2348007587,0.22935827040000001,0.22828472599999999,0.24460638060000001,0.25513429500000001,0.25293314350000001,0.2529107035]
["Net interest income to total net operating income202009",202009,26,"Net interest income to total net operating income",0.20370590186041901,0.54661267747272302,0.65379248011102498,0.67616473873729299,0.598149784632379,0.77553206435462196,1.01228595867823,278837989397.82202,465362068702.026,0.62028670302800204,0.61052350074948103,0.595138189022129,116,0.595138189022129,0.62028670302800204,1,"Return on assets21",202012,25,"Return on assets","NL",0,6,1.88040579784641E-3,21,"",null,"ES_LIQ_17",".",".",".",".",".",".",".",".",1.4910580696,1.4791144384999999,1.4361739815000001,1.5159671308,1.5346173022,1.5114337883,1.5691232747999999,1.5959801949000001,1.5382267718,1.6208264067,1.6151272686,1.6220711744,1.5818250056000001,1.5773946834999999,1.6311110712000001,1.9409845296999999,1.8963488836,1.8666793363]
["Net interest income to total net operating income202012",202012,26,"Net interest income to total net operating income",0.187670495962485,0.52642424710708602,0.62842808905214098,0.63251470090300599,0.58926589197464696,0.75233457304421303,0.95208291627163799,274618961179.27301,464848372772.06799,0.60273780012018296,0.59616697217431602,0.58752171342539805,116,0.58752171342539805,0.60273780012018296,1,"Return on assets22",202012,25,"Return on assets","IT",0,16,3.1389728196382901E-4,22,"",null,"ES_PFT_21",8.1348003299999999E-2,7.1037083299999998E-2,9.60935807E-2,9.9702978900000003E-2,8.4884022700000006E-2,6.8244486600000001E-2,6.9933777799999999E-2,6.8287044000000005E-2,7.0516497100000006E-2,5.0592626500000001E-2,7.9260335099999996E-2,8.2888039299999994E-2,7.7410242399999996E-2,7.1161693600000006E-2,9.6614877299999999E-2,8.92329803E-2,8.9783171199999998E-2,8.3553941100000001E-2,8.56536559E-2,7.8595876100000003E-2,7.2885630399999998E-2,6.9977426999999995E-2,-5.0256850000000002E-3,-8.7131354999999994E-2,-3.3940750999999998E-2,-3.8810469E-2]
["Net fee and commission income to total net operating income201409",201409,27,"Net fee and commission income to total net operating income",-4.7758760255096596E-3,0.123729661841223,0.22913462209900301,0.194609152601325,0.26820689649786,0.29336821360989901,0.40172785585075299,129749058660.009,468718352162.65802,0.23289104220929799,0.22263195441046099,0.276228200243821,127,0.22263195441046099,0.276228200243821,0,"Return on assets23",202012,25,"Return on assets","DE",0,23,2.5732660715262998E-4,23,"",null,"ES_PFT_23",0.49553815039999999,0.48232087639999999,0.47786069879999998,0.47271281479999999,0.48667027489999998,0.50191441390000002,0.52102963619999998,0.51352932200000001,0.51829350649999995,0.52936504429999998,0.50509879469999996,0.50911399140000002,0.51141614189999995,0.51967968499999995,0.5155926301,0.51772452359999999,0.51921743490000005,0.52445619880000005,0.51552544420000002,0.53701360409999999,0.52616510049999998,0.52718093610000005,0.50074923609999999,0.52052846370000005,0.51727078699999995,0.52636831740000001]
["Net fee and commission income to total net operating income201412",201412,27,"Net fee and commission income to total net operating income",-3.4122691105973902E-4,0.13746299036933199,0.22873189332947899,0.19508586376759199,0.27204448295177902,0.30304870715316301,0.414851093968507,131302913296.09,471399618526.74298,0.25677806419237897,0.224916287666239,0.28024925810941897,129,0.224916287666239,0.28024925810941897,0,"Return on assets24",202012,25,"Return on assets","PT",0,8,-2.2305836771779701E-4,24,"",null,"ES_PFT_24",5.7549875999999998E-3,5.0518039000000004E-3,7.0599115999999996E-3,7.2946792999999998E-3,6.2087523000000002E-3,4.9995665000000002E-3,5.1786842999999999E-3,5.0776889000000002E-3,5.3371065000000001E-3,3.7999704999999999E-3,6.0802503000000003E-3,6.2435824999999999E-3,5.8579712999999997E-3,5.3663794999999999E-3,7.1138251000000003E-3,6.5326298000000001E-3,6.6090953000000003E-3,6.1650422E-3,6.2873419999999996E-3,5.7672221000000003E-3,5.3556059999999997E-3,5.1612858999999997E-3,-3.5874000000000002E-4,-5.9263110000000001E-3,-2.3304549999999999E-3,-2.6454439999999998E-3]
["Net fee and commission income to total net operating income201503",201503,27,"Net fee and commission income to total net operating income",6.8453192236817197E-3,0.13621549141038899,0.22587672309450699,0.56440665521199795,0.26555043757555502,0.31354610379799103,0.43916931147921101,139990853355.29599,514174400505.84698,0.24669381886245101,0.22738610947426599,0.27184585780977299,128,0.22738610947426599,0.27184585780977299,1,"Return on assets25",202012,25,"Return on assets","MT",0,5,-2.0407659095211198E-3,25,"",null,"ES_PFT_25",0.65363112489999997,0.64171519759999995,0.63071091199999996,0.63857990040000001,0.66124552780000001,0.67333268349999997,0.68545255969999996,0.67298725619999999,0.67839611749999995,0.69023790409999997,0.68264026330000005,0.68917009809999996,0.69607451519999997,0.69955079009999999,0.69171831520000004,0.70089523490000005,0.7103406578,0.72250543010000001,0.71226762990000003,0.71885003849999995,0.71379329229999999,0.71702840050000005,0.6971047789,0.68142123470000004,0.68767990150000002,0.68668289660000004]
["Net fee and commission income to total net operating income201506",201506,27,"Net fee and commission income to total net operating income",6.1393607377645803E-3,0.13472793127100299,0.21650931589419001,0.222163329792365,0.26191428738218397,0.30387485841526801,0.41425199424855902,140708418259.694,516831151883.367,0.27196182414870401,0.222832378633401,0.26795758105914902,126,0.222832378633401,0.27196182414870401,1,"Return on assets26",202012,25,"Return on assets","ES",0,15,-2.64544370396309E-3,26,"",null,"ES_PFT_26",0.23043691559999999,0.22321379450000001,0.21362572090000001,0.2120162595,0.216858304,0.22268304010000001,0.22879485390000001,0.23072820799999999,0.2334489803,0.23672337569999999,0.24000848990000001,0.2444594471,0.24530987109999999,0.24548663779999999,0.2487623699,0.25316354860000001,0.25607837589999999,0.25808795289999997,0.2546128024,0.25572502279999998,0.25634263740000002,0.25861668920000003,0.2555736991,0.24114738620000001,0.24300788849999999,0.2408864241]
["Net fee and commission income to total net operating income201509",201509,27,"Net fee and commission income to total net operating income",3.1406766925057899E-3,0.13347672592135401,0.215903555314713,0.226146389989825,0.264025482039424,0.30860438663221101,0.42303464832369803,138478353089.728,502605533266.63,0.28097207469706298,0.225903200381502,0.269813471964438,126,0.225903200381502,0.28097207469706298,1,"Return on assets27",202012,25,"Return on assets","CY",0,4,-3.5215551987641701E-3,27,1,null,"ES_PFT_29",1.5228817299999999E-2,2.3948196099999999E-2,-2.4956947E-2,-1.4636046E-2,-3.0734175999999998E-2,-6.3029999999999998E-4,-7.316726E-3,1.19512413E-2,2.24921607E-2,3.1271461700000003E-2,4.4455256399999997E-2,3.1390967399999997E-2,2.4832774799999999E-2,1.9555743600000002E-2,4.22612245E-2,3.4665398600000001E-2,3.6525907500000003E-2,2.54078981E-2,5.2362622999999999E-3,4.7498697000000001E-3,1.36407662E-2,1.95739438E-2,0.1637079055,4.83919134E-2,7.4549842099999999E-2,5.3499367899999997E-2]
["Net fee and commission income to total net operating income201512",201512,27,"Net fee and commission income to total net operating income",-5.5395744906017799E-3,0.122187246319681,0.220779704301484,0.217086106693126,0.26796643789153601,0.29938790212997801,0.43385614894861602,138240046835.61401,495913194541.86102,0.24638569372805599,0.22129069873742699,0.27576927741960799,128,0.22129069873742699,0.27576927741960799,1,"Return on assets28",202012,25,"Return on assets","IE",0,8,-3.9057252202993401E-3,28,"",null,"ES_PFT_41",2.1655578700000001E-2,2.2195534999999999E-2,2.2844467E-2,2.3645877400000001E-2,2.43727873E-2,2.4158289499999999E-2,2.22824922E-2,2.2189646699999999E-2,2.2529871699999999E-2,2.2657457700000001E-2,2.3853583599999999E-2,2.40741319E-2,2.4176963700000002E-2,2.44214354E-2,2.3717099500000002E-2,2.3717218500000001E-2,2.36327694E-2,2.3815537299999998E-2,2.3357042500000001E-2,2.3633120000000001E-2,2.36608793E-2,2.3708129599999999E-2,2.2691962499999999E-2,2.1189808300000001E-2,2.1205819000000001E-2,2.06404494E-2]
["Net fee and commission income to total net operating income201603",201603,27,"Net fee and commission income to total net operating income",6.0992272453192498E-3,0.13567880827149001,0.23253773120563101,0.228420871917522,0.27080371636430101,0.328994850945728,0.47153216665037601,132834481137.78,468338746446.62799,0.25784471543960802,0.231330126323809,0.27769338487484801,132,0.231330126323809,0.27769338487484801,0,"Return on assets29",202012,25,"Return on assets","GR",0,4,-6.5716738814430896E-3,29,"",null,"ES_PFT_43",".",".",".",".",".",".",".",".",".",".",".",".",".",".",1.1518392299999999E-2,1.14163995E-2,1.0695445499999999E-2,1.26846739E-2,1.2838438400000001E-2,1.09933098E-2,1.0802659100000001E-2,1.08347128E-2,1.77164309E-2,1.5645814599999999E-2,1.39228852E-2,1.3735761500000001E-2]
["Net fee and commission income to total net operating income201606",201606,27,"Net fee and commission income to total net operating income",-1.27283807787662E-3,0.118162132122987,0.22500761493847499,0.24738515076356199,0.26639352303418201,0.32275302439079201,0.50000826420372602,134166821918.569,482369850577.66901,0.24908636555212799,0.23528741938411299,0.271780374281751,133,0.23528741938411299,0.271780374281751,1,"Return on assets99",202012,25,"Return on assets","EU",0,116,1.3324184631923E-3,99,"",null,"ES_SVC_1",0.11560886669999999,0.1161460926,0.12026950090000001,0.1223047114,0.1204848879,0.12504645289999999,0.122575714,0.12538202770000001,0.1291838813,0.12768523600000001,0.1236205735,0.1207654242,0.1293302844,0.13047408639999999,0.12998409299999999,0.129626833,0.1318799434,0.133358276,0.13220392680000001,0.13322209439999999,0.133688046,0.13569749859999999,0.13246247080000001,0.13680411070000001,0.140562624,0.1445776828]
["Net fee and commission income to total net operating income201609",201609,27,"Net fee and commission income to total net operating income",-6.6053405277520898E-3,0.122560576677824,0.231613973596661,0.222342691323026,0.27076452175377902,0.32598046727785801,0.48409097528578998,134125606896.608,478551459675.48401,0.26711993541893198,0.23843065564357699,0.27634249801566602,132,0.23843065564357699,0.27634249801566602,1,"Return on assets100",202012,25,"Return on assets","GB",0,26,1.6018168399336899E-3,100,"",null,"ES_SVC_12",".",".",".",".",".",".",".",".",5.57992634E-2,5.4140893500000002E-2,5.43618513E-2,5.3003645500000002E-2,5.5511376500000001E-2,5.5052801700000001E-2,5.4222900300000001E-2,5.3575111299999999E-2,5.4046164600000002E-2,5.44800644E-2,5.4469925099999997E-2,5.4425670299999999E-2,5.5381754499999998E-2,5.5625480400000003E-2,5.3474146100000002E-2,5.0665063099999998E-2,5.3919903399999997E-2,5.5693596800000002E-2]
["Net fee and commission income to total net operating income201612",201612,27,"Net fee and commission income to total net operating income",-8.3702842444694E-3,0.12553600445587701,0.23146396647440101,0.22130926317233199,0.27193334482603798,0.32479340855849198,0.47071181839479798,133611022432.144,476740484392.15997,0.26516146848964001,0.23622643924751399,0.27825985668738201,134,0.23622643924751399,0.27825985668738201,1,"Net interest income to total net operating income1",202012,26,"Net interest income to total net operating income","NL",0,6,0.77634517046233398,1,"",null,"ES_SVC_13",".",".",".",".",".",".",".",".",5.9797432099999999E-2,5.86559782E-2,5.7161621099999997E-2,5.5339596200000001E-2,5.7705199800000002E-2,5.7172596300000003E-2,5.6594906399999999E-2,5.5849870900000001E-2,5.6297026200000003E-2,5.6707613800000001E-2,5.6098437600000002E-2,5.6028802799999999E-2,5.6944394199999998E-2,5.71625261E-2,5.4964781099999999E-2,5.2608193099999999E-2,5.6090008699999999E-2,5.7873248600000003E-2]
["Net fee and commission income to total net operating income201703",201703,27,"Net fee and commission income to total net operating income",1.1044616034263199E-3,0.12639602979279899,0.23069628642183801,0.23392896437845501,0.27450234059060602,0.32288857950465399,0.49003897344360903,140787460821.677,493878120280.24103,0.268417218367274,0.227621774778027,0.28262166327053501,130,0.227621774778027,0.28262166327053501,0,"Net interest income to total net operating income2",202012,26,"Net interest income to total net operating income","NO",0,4,0.73800461115463101,2,"",null,"ES_SVC_2",0.13431252299999999,0.13452423450000001,0.13853946040000001,0.1414690683,0.1392057481,0.14385509930000001,0.1406147609,0.14448618520000001,0.148464651,0.14564140219999999,0.14450362389999999,0.1425207802,0.15185996939999999,0.15278348929999999,0.14985926999999999,0.1500165238,0.1515659238,0.15301614029999999,0.15097244470000001,0.15294185630000001,0.1534083316,0.15572612599999999,0.1539094375,0.1584060313,0.16227434569999999,0.1668481496]
["Net fee and commission income to total net operating income201706",201706,27,"Net fee and commission income to total net operating income",-2.6894840320029001E-3,0.12998230513,0.221418143155556,0.22782563784200199,0.273992856453947,0.33122779778632899,0.48258048795345898,142259630959.89099,499669461094.90997,0.26583274369452398,0.23150821949323899,0.28139458195818401,128,0.23150821949323899,0.28139458195818401,1,"Net interest income to total net operating income3",202012,26,"Net interest income to total net operating income","CZ",0,3,0.73081757535248104,3,"",null,"ES_SVC_29",9.3050154699999998E-2,9.5648275599999999E-2,0.1038919437,0.10129423059999999,9.9051814000000002E-2,0.10577631630000001,0.10562962150000001,0.1077872809,0.1116133106,0.10897392039999999,0.1087990024,0.1058960588,0.11318796540000001,0.1137959444,0.1121695021,0.1107363613,0.11281852739999999,0.114605156,0.1143932453,0.1156721371,0.11589198589999999,0.11881381940000001,0.1152317169,0.1177602762,0.1200111667,0.1238426829]
["Net fee and commission income to total net operating income201709",201709,27,"Net fee and commission income to total net operating income",-3.4613444746959998E-3,0.13113811337683301,0.22196722970859301,0.230480823903877,0.27847599507408,0.33068844016820498,0.48941049223951899,140432419262.39001,482720059598.36499,0.274594996279651,0.24451914739467201,0.28412682610448498,128,0.24451914739467201,0.28412682610448498,1,"Net interest income to total net operating income4",202012,26,"Net interest income to total net operating income","MT",0,5,0.72140414390079399,4,"",null,"ES_SVC_3",0.1155081127,0.11606051470000001,0.12014572,0.1222142264,0.1204131415,0.1249979464,0.121374013,0.1235450332,0.12734831899999999,0.12587540859999999,0.11927261929999999,0.1156329225,0.12351613559999999,0.1242243328,0.1167276242,0.1154118199,0.1174999271,0.119299485,0.1176622787,0.11892367569999999,0.1191525719,0.12212107110000001,0.1184719759,0.12251387399999999,0.12541361570000001,0.12909962629999999]
["Net fee and commission income to total net operating income201712",201712,27,"Net fee and commission income to total net operating income",-1.8519622070514599E-3,0.137123355502556,0.236332708240658,0.23526956294784199,0.28090508448275098,0.32721335638142302,0.46500256557302799,141573004223.12,481592910291.39398,0.28415315617644998,0.24585917142208499,0.28678310967973097,129,0.24585917142208499,0.28678310967973097,1,"Net interest income to total net operating income5",202012,26,"Net interest income to total net operating income","PL",0,3,0.70966900688005896,5,"",null,"FI_AQT_3.1",1.9980664700000001E-2,1.50909298E-2,1.4671291600000001E-2,1.4268386799999999E-2,1.2833567000000001E-2,1.4889849599999999E-2,1.40521069E-2,1.30705048E-2,1.34123731E-2,1.423491E-2,1.38931603E-2,1.4665505000000001E-2,1.4363015200000001E-2,1.3494867000000001E-2,1.0966717399999999E-2,1.0593667500000001E-2,1.0619072199999999E-2,1.41588242E-2,1.3773328E-2,1.3681567800000001E-2,1.32128069E-2,1.25657945E-2,1.31393429E-2,1.3674358399999999E-2,1.35773475E-2,1.34065166E-2]
["Net fee and commission income to total net operating income201803",201803,27,"Net fee and commission income to total net operating income",-4.7319127614662204E-3,0.13473874838858901,0.25621765995490903,0.24527686389652001,0.285392802187029,0.33210714999948998,0.46775884425493403,143199268294.82001,480156772171.65503,0.29400946133698702,0.26003619061468197,0.28929395795747298,128,0.26003619061468197,0.29400946133698702,1,"Net interest income to total net operating income6",202012,26,"Net interest income to total net operating income","IS",0,3,0.70950628949447203,6,"",null,"FI_AQT_3.2",2.1988688199999998E-2,1.6481326399999999E-2,1.5887511300000001E-2,1.5392090000000001E-2,1.3839170099999999E-2,1.6201254599999999E-2,1.5363612400000001E-2,1.45781595E-2,1.4928220900000001E-2,1.5960625499999999E-2,1.5812122500000001E-2,1.6679907300000001E-2,1.6279929200000001E-2,1.52286062E-2,1.2573898700000001E-2,1.20657986E-2,1.21316957E-2,1.6429348E-2,1.5778811399999999E-2,1.5732571899999999E-2,1.51564201E-2,1.43972852E-2,1.5152226E-2,1.57794557E-2,1.55370649E-2,1.52415252E-2]
["Net fee and commission income to total net operating income201806",201806,27,"Net fee and commission income to total net operating income",-5.7709156804241204E-3,0.14118135660796899,0.25651998436567103,0.24851061736662799,0.285514945659402,0.34234379896490302,0.48472769296614598,143853356526.23999,479584337759.24902,0.30175960379488298,0.26104681932155299,0.28920347201554097,128,0.26104681932155299,0.30175960379488298,1,"Net interest income to total net operating income7",202012,26,"Net interest income to total net operating income","ES",0,15,0.68668289662276905,7,"",null,"FI_AQT_31",2.8144242999999999E-3,2.9417487999999999E-3,2.1797270999999998E-3,2.1576236000000002E-3,2.0964561E-3,3.4383118000000002E-3,3.4787579000000002E-3,3.6329848E-3,3.565417E-3,3.8166402000000001E-3,4.1210309999999998E-3,4.7314771E-3,4.6083191999999997E-3,4.0776357000000003E-3,3.3730156999999998E-3,3.237448E-3,3.6048678000000002E-3,1.9121960999999999E-3,1.8946538000000001E-3,1.7482933E-3,1.4843498999999999E-3,1.7159943999999999E-3,1.6453174E-3,1.6595528E-3,1.9742966000000002E-3,1.9062837E-3]
["Net fee and commission income to total net operating income201809",201809,27,"Net fee and commission income to total net operating income",-7.0953202590287503E-3,0.14578919716484301,0.25295885930295098,0.24001422196578601,0.28339125001131699,0.33450386282491101,0.46007858547536301,142629939286.89001,477399613330.72101,0.298105400845534,0.26029646174537202,0.28690431884398399,126,0.26029646174537202,0.298105400845534,1,"Net interest income to total net operating income8",202012,26,"Net interest income to total net operating income","SK",0,3,0.68592777845407304,8,"",null,"FI_AQT_41.2",0.27017501269999999,0.31959521530000001,0.30989270089999998,0.30472260350000002,0.32375703420000002,0.3085300554,0.30867750490000001,0.2788871993,0.26626247829999999,0.29523967569999998,0.28851032199999999,0.26362029799999998,0.25614721410000002,0.27304788120000001,0.291738573,0.2404507176,0.24242946169999999,0.26628815929999999,0.27034276210000002,0.25946886600000002,0.29190015380000001,0.31468797500000001,0.31265153670000001,0.31813780549999998,0.30671869759999998,0.29535808569999999]
["Net fee and commission income to total net operating income201812",201812,27,"Net fee and commission income to total net operating income",-6.7626060889603703E-3,0.15470681702113701,0.25514300791025502,0.250022683546819,0.28701758272289302,0.34061471620776002,0.485378929702239,143605168506.74399,472876116902.48602,0.29421378945841298,0.26351842067542702,0.290774999104362,127,0.26351842067542702,0.29421378945841298,1,"Net interest income to total net operating income9",202012,26,"Net interest income to total net operating income","CY",0,4,0.67338467364821197,9,1,null,"FI_AQT_42.2",1.79233556E-2,1.5512950500000001E-2,1.57525206E-2,1.49251183E-2,1.43762647E-2,1.5484959899999999E-2,1.47553979E-2,1.46724039E-2,1.50457089E-2,1.7024616699999998E-2,1.9427807500000002E-2,2.2716838199999999E-2,2.35629758E-2,2.1953695400000001E-2,1.8648678700000001E-2,1.84194552E-2,1.8947443500000001E-2,1.29167329E-2,1.19883761E-2,1.19490625E-2,1.2080411399999999E-2,1.11735889E-2,1.14371066E-2,1.4906678200000001E-2,1.4667414199999999E-2,1.5085069099999999E-2]
["Net fee and commission income to total net operating income201903",201903,27,"Net fee and commission income to total net operating income",-6.1428582206236003E-3,0.15246902495959799,0.25498196476108398,0.24671940153448099,0.28235194906097899,0.32862312189467702,0.448018846646211,141279665540.16199,471750392157.87701,0.26533554237602602,0.26761176062562397,0.28498606405947302,126,0.26533554237602602,0.28498606405947302,1,"Net interest income to total net operating income10",202012,26,"Net interest income to total net operating income","SE",0,8,0.67271903984083303,10,"",null,"FI_FND_32",1.6533052908999999,1.6355525302,1.6827173156999999,1.6679883661999999,1.639454894,1.5929345043000001,1.6089011097000001,1.6984691592000001,1.7034342454,1.4923888807000001,1.9495291118,1.7291144108000001,1.7091267605,1.555746906,1.6148597414000001,1.5888219853000001,1.6108776198999999,1.9009207898,1.8526282680999999,1.8304646239,1.8593996169,2.0204123377999998,1.8969610428000001,1.6869628797,1.7005839345,1.8509421452000001]
["Net fee and commission income to total net operating income201906",201906,27,"Net fee and commission income to total net operating income",-2.9666003534369002E-3,0.16009810932885299,0.24599989512491999,0.247838458778423,0.28074267604352399,0.327540633773172,0.47063032922097497,141701276411.56299,476815389707.15503,0.26717198413747201,0.269396882654384,0.28277245697633702,125,0.26717198413747201,0.28277245697633702,1,"Net interest income to total net operating income11",202012,26,"Net interest income to total net operating income","RO",0,3,0.65830910956660005,11,"",null,"FI_FND_33",".",0.1781667347,0.1894890753,0.2017265409,0.19895270379999999,0.22393168469999999,0.24068753979999999,0.24701339329999999,0.23156488889999999,0.19156510760000001,0.2429519061,0.26228687290000002,0.25946561499999998,0.24485320429999999,0.27674343579999999,0.27697190379999997,0.27495264580000001,0.28025697550000001,0.28977471669999999,0.28285022380000002,0.2782597524,0.27203221379999998,0.29494081160000002,0.30355387499999997,0.30638904849999998,0.29593802990000001]
["Net fee and commission income to total net operating income201909",201909,27,"Net fee and commission income to total net operating income",-3.3979983901961299E-3,0.16358724616374201,0.255418094286607,0.25233804145438399,0.28367609256922799,0.32853134351417101,0.47197444617072798,142514456896.629,474345228182.745,0.270211032586539,0.27479772005061498,0.285300856710336,125,0.270211032586539,0.285300856710336,1,"Net interest income to total net operating income12",202012,26,"Net interest income to total net operating income","BE",0,8,0.65801284535392701,12,"",null,"FI_LIQ_17",".",".",".",".",".",".",".",".",1.2256793273,1.4373003177000001,1.3693103843000001,1.3644099897999999,1.3886170669,1.3510285900000001,1.4988381316999999,1.5659072331999999,1.5213488206000001,1.5917861488,1.7278396914,1.7436568341000001,1.8502291809,1.6810864397,1.7162300884999999,1.6535680596,1.7815013502000001,1.7160360357]
["Net fee and commission income to total net operating income201912",201912,27,"Net fee and commission income to total net operating income",-2.8860032207212098E-3,0.15674668232566999,0.252615836957856,0.257016090804983,0.285419754172273,0.336311338310676,0.51246452659123598,145013449773.48499,477278221066.71802,0.274088171479757,0.27849491364682299,0.28672482121043102,126,0.274088171479757,0.28672482121043102,1,"Net interest income to total net operating income13",202012,26,"Net interest income to total net operating income","PT",0,8,0.65158004824111404,13,"",null,"FI_PFT_21",8.7146216400000004E-2,8.8918850699999996E-2,0.11976266269999999,0.10799741039999999,0.10553172130000001,9.2861669899999999E-2,8.8134878400000005E-2,8.4714255599999996E-2,8.2599976300000003E-2,9.3346606999999998E-2,0.13141802150000001,9.7716185400000002E-2,8.68194771E-2,9.4236776800000005E-2,6.8033969700000002E-2,5.1442708500000003E-2,5.2289236199999999E-2,8.3137039400000001E-2,7.7403471400000007E-2,7.1121425000000002E-2,4.2301756599999997E-2,4.75494713E-2,6.5851636899999996E-2,4.6492761399999999E-2,5.9496619899999999E-2,6.0123321600000001E-2]
["Net fee and commission income to total net operating income202003",202003,27,"Net fee and commission income to total net operating income",-2.8062394310109501E-2,0.17264040860221,0.28320557751855002,0.25097073056130398,0.32908621681522299,0.40094820554649302,0.70580628949092805,147451129593.129,451318356763.96002,0.30669689849124798,0.30212399450916499,0.33564346055261501,117,0.30212399450916499,0.33564346055261501,1,"Net interest income to total net operating income14",202012,26,"Net interest income to total net operating income","HR",0,3,0.64902341995748902,14,"",null,"FI_PFT_23",0.4856917442,0.48669942849999998,0.43636597760000001,0.44551262749999998,0.43877865620000001,0.4670075139,0.4855433918,0.48799012809999998,0.48051378239999998,0.46024433259999997,0.4226079203,0.48660320930000001,0.50613142840000003,0.49163330589999998,0.5469521571,0.62126478279999997,0.6052957658,0.53132776500000001,0.70345478839999998,0.627346289,0.61547346110000001,0.5975976221,0.64940914009999995,0.60772355320000004,0.57637560070000005,0.56966167040000004]
["Net fee and commission income to total net operating income202006",202006,27,"Net fee and commission income to total net operating income",9.6194917073261308E-3,0.16258814623249801,0.27144379033687599,0.29313573172755197,0.304031103064201,0.37164219032248502,0.66109660080364097,140165310088.95401,463552050835.10101,0.27209346961210101,0.28203375566491801,0.30950908143293598,117,0.27209346961210101,0.30950908143293598,1,"Net interest income to total net operating income15",202012,26,"Net interest income to total net operating income","AT",0,11,0.64647319404558101,15,"",null,"FI_PFT_24",3.5716559999999999E-3,3.6677136000000002E-3,4.7049188E-3,4.4816652999999998E-3,4.6435773E-3,4.3895693E-3,4.5485237999999999E-3,4.3257260999999998E-3,4.3542078999999996E-3,5.2768301999999998E-3,1.0249570499999999E-2,7.7923710000000002E-3,6.9995854999999997E-3,7.6347037999999999E-3,5.6463295E-3,4.2313934000000001E-3,4.3702020000000001E-3,5.6286286999999999E-3,5.0042113999999999E-3,4.6789526999999999E-3,2.7642391E-3,3.2078172E-3,4.2328278E-3,3.0072037999999998E-3,3.9270390999999998E-3,4.1253423000000003E-3]
["Net fee and commission income to total net operating income202009",202009,27,"Net fee and commission income to total net operating income",-2.3301216835857402E-3,0.158437642701791,0.26944063481352098,0.27337654352683299,0.30187007927044102,0.36486869079196499,0.69456235772419594,140323324045.11801,465362068702.026,0.266504514025311,0.276883612750154,0.30781180887293602,116,0.266504514025311,0.30781180887293602,0,"Net interest income to total net operating income16",202012,26,"Net interest income to total net operating income","EE",0,4,0.64512161549693603,16,"",null,"FI_PFT_25",0.52145334499999996,0.51857103979999997,0.42353036900000002,0.43638697999999998,0.44421252059999999,0.45879199910000001,0.44679613759999998,0.47863129939999999,0.4899693618,0.44668698420000003,0.42155976249999999,0.48561469419999997,0.5217979076,0.49083164270000001,0.55011270639999998,0.61947509879999996,0.63511576520000002,0.55028118530000003,0.57882764070000003,0.57655749050000005,0.5793258375,0.57810543449999996,0.61342772970000004,0.59267722639999998,0.59000623819999998,0.58585099129999996]
["Net fee and commission income to total net operating income202012",202012,27,"Net fee and commission income to total net operating income",-9.0567464745403801E-3,0.153186987726911,0.26124980878924298,0.26798674362521802,0.30466822970797902,0.35284908584838598,0.68526498862668705,141608740972.05301,464848372772.06799,0.26408357293647999,0.27734332032284797,0.31137459337866802,116,0.26408357293647999,0.31137459337866802,1,"Net interest income to total net operating income17",202012,26,"Net interest income to total net operating income","BG",0,4,0.64179064799727303,17,"",null,"FI_PFT_26",0.16981087249999999,0.1756542629,0.16362392140000001,0.16641002730000001,0.17269229289999999,0.1768396146,0.20413853909999999,0.1818674998,0.19039503629999999,0.17410419739999999,0.2423124307,0.25874240189999997,0.26429318210000002,0.25055075739999999,0.25441971140000003,0.2606994728,0.25476311190000001,0.30366892229999998,0.31940826890000001,0.31704952050000001,0.31760902540000002,0.31572849330000002,0.34417260919999998,0.30785410499999999,0.3014613424,0.30443442009999999]
["Net gains on financial assets and liabilities held for trading to total net operating income201409",201409,30,"Net gains on financial assets and liabilities held for trading to total net operating income",-8.7802686104044306E-2,-1.4993811658179201E-3,1.46627147179362E-2,-5.5801349760957401E-2,8.1376648535898502E-2,7.4853110060570202E-2,0.34305812468854002,33492194249.807701,468489232439.39801,1.0616106004208099E-2,1.55769798098985E-2,9.3026054569967598E-2,124,1.0616106004208099E-2,9.3026054569967598E-2,0,"Net interest income to total net operating income18",202012,26,"Net interest income to total net operating income","IE",0,8,0.63867021275634595,18,"",null,"FI_PFT_29",0.35583960619999999,0.3122335396,0.20737969919999999,4.9093457299999997E-2,6.4152351799999993E-2,7.95061668E-2,0.17184220380000001,0.17325811229999999,0.19581250989999999,0.22070792359999999,7.6339257199999996E-2,7.4350548899999994E-2,6.9514895399999999E-2,5.9822103500000001E-2,-0.241207646,-0.30391000299999998,-0.273119583,2.0187753499999999E-2,0.20930269030000001,0.12702178480000001,0.12624544709999999,0.1267601314,-0.163281537,-1.4897847000000001E-2,4.0951073900000003E-2,4.7845492599999997E-2]
["Net gains on financial assets and liabilities held for trading to total net operating income201412",201412,30,"Net gains on financial assets and liabilities held for trading to total net operating income",-0.20176382995540501,-4.81676405919889E-3,1.1609790080854601E-2,-2.1646827671417099E-2,6.7381952715819093E-2,5.4284344676626101E-2,0.32957565395104199,27216710876.741501,471096198205.65302,1.3387839588928901E-2,9.1268242501598203E-3,7.7712078917079402E-2,126,9.1268242501598203E-3,7.7712078917079402E-2,0,"Net interest income to total net operating income19",202012,26,"Net interest income to total net operating income","DK",0,5,0.63202455280609304,19,"",null,"FI_PFT_41",7.4799666000000004E-3,7.6072377E-3,6.9474491999999997E-3,6.7835452999999999E-3,6.8083494999999997E-3,7.2057889999999998E-3,6.4535317999999996E-3,6.6098372000000004E-3,6.8103084999999999E-3,7.2721228000000001E-3,9.5899490000000004E-3,9.8718166999999992E-3,1.00105308E-2,9.9599300000000005E-3,9.9451921999999995E-3,9.9152517000000006E-3,1.00589081E-2,1.00312028E-2,9.7654264000000008E-3,9.7283349999999994E-3,9.8374455999999996E-3,9.9809433999999992E-3,9.6969464999999994E-3,9.6833258999999994E-3,9.8815710000000005E-3,1.0176618E-2]
["Net gains on financial assets and liabilities held for trading to total net operating income201503",201503,30,"Net gains on financial assets and liabilities held for trading to total net operating income",-0.24980971808350999,-9.60830374770528E-3,1.0312139168401801E-2,0.33506330855500299,7.8006997690746094E-2,9.5840413366549096E-2,0.30115838471674,38465122376.962601,513933230990.30701,2.3903001199922099E-3,-1.1193899395708201E-2,9.2745631089382594E-2,124,-1.1193899395708201E-2,9.2745631089382594E-2,0,"Net interest income to total net operating income20",202012,26,"Net interest income to total net operating income","HU",0,4,0.61195800873500905,20,"",null,"FI_PFT_43",".",".",".",".",".",".",".",".",".",".",".",".",".",".",1.4265943000000001E-3,8.0883750000000003E-4,6.5859169999999995E-4,1.6083547E-3,2.2664202E-3,2.1175525000000001E-3,4.7941418999999999E-3,2.7368101000000001E-3,3.0793258000000002E-3,5.0286037000000002E-3,3.5677110999999999E-3,3.2225896999999999E-3]
["Net gains on financial assets and liabilities held for trading to total net operating income201506",201506,30,"Net gains on financial assets and liabilities held for trading to total net operating income",-0.209189869908529,-1.08838594430819E-2,1.3266736135878801E-2,-6.1638839520413997E-2,6.4693316769012493E-2,5.51490897507819E-2,0.22905560036773701,29922071049.209999,516543075330.56702,8.4713159025296692E-3,4.5259664412796198E-3,7.4336132879093006E-2,122,4.5259664412796198E-3,7.4336132879093006E-2,0,"Net interest income to total net operating income21",202012,26,"Net interest income to total net operating income","LV",0,5,0.61188047315917804,21,"",null,"FI_SVC_1",0.14845236589999999,0.16349113749999999,0.17250810429999999,0.18433074790000001,0.20828412730000001,0.22808048780000001,0.22588241179999999,0.22708798020000001,0.230987308,0.2345950762,0.2081543237,0.21139262010000001,0.21299927560000001,0.2179053457,0.2182230204,0.21814179080000001,0.2183400996,0.18655846800000001,0.18334216889999999,0.18406820369999999,0.186628563,0.19259170749999999,0.18342168680000001,0.18230405089999999,0.1886075462,0.19429719610000001]
["Net gains on financial assets and liabilities held for trading to total net operating income201509",201509,30,"Net gains on financial assets and liabilities held for trading to total net operating income",-0.12375827266338001,-1.38637457727226E-2,1.54909340909129E-2,-6.06261961464904E-3,6.1819417295464502E-2,4.4015727980132799E-2,0.24256738100758601,28433742373.186199,502289380713.38702,1.9101028822746301E-2,1.67432102218149E-3,7.1294517879737604E-2,122,1.67432102218149E-3,7.1294517879737604E-2,0,"Net interest income to total net operating income22",202012,26,"Net interest income to total net operating income","SI",0,6,0.60412319560665695,22,"",null,"FI_SVC_12",".",".",".",".",".",".",".",".",5.1371066799999997E-2,5.69371579E-2,6.6932898199999993E-2,6.9618302000000007E-2,7.01458254E-2,6.9777069600000005E-2,6.7066282199999994E-2,6.6413589600000003E-2,6.7954239999999999E-2,5.7202594000000002E-2,5.4938320200000001E-2,5.6121335299999998E-2,5.6511400000000003E-2,5.81566575E-2,5.4715349699999999E-2,5.4138812299999999E-2,5.7400919500000001E-2,6.2248707700000003E-2]
["Net gains on financial assets and liabilities held for trading to total net operating income201512",201512,30,"Net gains on financial assets and liabilities held for trading to total net operating income",-6.1929244479280797E-2,-6.0960328962335903E-3,1.1408363373271399E-2,2.02286584404246E-2,5.8114784592620497E-2,4.8034403302091098E-2,0.18352269828925899,25457475238.655998,495566240960.32098,4.3339522899251498E-2,2.1377029733285501E-2,6.4167402495291598E-2,124,2.1377029733285501E-2,6.4167402495291598E-2,1,"Net interest income to total net operating income23",202012,26,"Net interest income to total net operating income","GR",0,4,0.58846551728659702,23,"",null,"FI_SVC_13",".",".",".",".",".",".",".",".",5.1825027400000001E-2,5.75727215E-2,6.7743619899999996E-2,7.0051290399999994E-2,7.0577322999999997E-2,7.0202449200000003E-2,6.7473212899999996E-2,6.6809843199999996E-2,6.8345911999999995E-2,5.7317482000000003E-2,5.5019151600000003E-2,5.62040912E-2,5.6594751300000003E-2,5.8242427700000002E-2,5.476992E-2,5.41923962E-2,5.7457120600000001E-2,6.2306715399999997E-2]
["Net gains on financial assets and liabilities held for trading to total net operating income201603",201603,30,"Net gains on financial assets and liabilities held for trading to total net operating income",-0.41591162122950898,-1.7568098388268099E-2,2.10638102588427E-3,-0.14743120152997499,5.2939878179192101E-2,3.8552604364448802E-2,0.25075700249914601,12766059150.1952,467897727592.828,6.34272561678976E-2,1.21990774207673E-2,5.9828202350980103E-2,128,1.21990774207673E-2,6.34272561678976E-2,1,"Net interest income to total net operating income24",202012,26,"Net interest income to total net operating income","LT",0,4,0.58742937926518102,24,"",null,"FI_SVC_2",0.1575940821,0.17115941639999999,0.18019775260000001,0.1922367123,0.22133702459999999,0.24177487980000001,0.23937313530000001,0.24022858729999999,0.24404748849999999,0.2478570303,0.22785290180000001,0.23051883840000001,0.23144918110000001,0.23606591539999999,0.24020769089999999,0.2391662993,0.23862033590000001,0.21014204019999999,0.20534885189999999,0.2061731259,0.20851439359999999,0.2139436683,0.2034312311,0.20860099979999999,0.2075244772,0.2134980578]
["Net gains on financial assets and liabilities held for trading to total net operating income201606",201606,30,"Net gains on financial assets and liabilities held for trading to total net operating income",-0.154323040366009,-1.17132203622654E-2,3.6118453235824601E-3,0.40178145986054198,5.3818565260285098E-2,3.7681864719634299E-2,0.199988297966155,17484926352.055,481954790112.96899,4.0029190121257302E-2,-4.9866992966396502E-3,6.3775636937314001E-2,129,-4.9866992966396502E-3,6.3775636937314001E-2,0,"Net interest income to total net operating income25",202012,26,"Net interest income to total net operating income","FI",0,7,0.58585099126262197,25,"",null,"FI_SVC_29",0.14160427540000001,0.15711043129999999,0.1638972574,0.1755760301,0.19947395430000001,0.2155400583,0.21414062880000001,0.21589016589999999,0.220192307,0.22299749050000001,0.20005899960000001,0.20451350060000001,0.20614322030000001,0.2109538977,0.211217815,0.2112552208,0.2115430321,0.17131310799999999,0.16368908409999999,0.1644838089,0.17038656890000001,0.1761005866,0.1688832851,0.16817331839999999,0.17453446919999999,0.18090563000000001]
["Net gains on financial assets and liabilities held for trading to total net operating income201609",201609,30,"Net gains on financial assets and liabilities held for trading to total net operating income",-9.2568083391174394E-2,-2.1381289865339301E-3,1.00091343316019E-2,0.18976786263633499,6.2329617121402198E-2,4.4951486448621097E-2,0.22394382945716801,23628941108.314098,478166879462.39099,5.4446512246743101E-2,2.6445074753619702E-3,7.2563212213000203E-2,128,2.6445074753619702E-3,7.2563212213000203E-2,0,"Net interest income to total net operating income26",202012,26,"Net interest income to total net operating income","DE",0,23,0.53358158514496101,26,"",null,"FI_SVC_3",0.1413070474,0.1560948798,0.16541225979999999,0.1770131294,0.20080671259999999,0.2168401328,0.21498789469999999,0.21652579499999999,0.22090886130000001,0.22376583250000001,0.20123602239999999,0.20451350060000001,0.20614322030000001,0.2109538977,0.211217815,0.2112552208,0.2115430321,0.17131310799999999,0.16368908409999999,0.1644838089,0.17038656890000001,0.1761005866,0.1688832851,0.16817331839999999,0.17453446919999999,0.18090563000000001]
["Net gains on financial assets and liabilities held for trading to total net operating income201612",201612,30,"Net gains on financial assets and liabilities held for trading to total net operating income",-6.8807206215264705E-2,-5.64048533770919E-4,1.60695991880455E-2,2.90775442014088E-2,6.0886250273708101E-2,7.5049827241461003E-2,0.221600683977204,26537397357.840099,476340334538.96997,5.0032839834694802E-2,6.6932545383747198E-3,7.0419092347471804E-2,130,6.6932545383747198E-3,7.0419092347471804E-2,0,"Net interest income to total net operating income27",202012,26,"Net interest income to total net operating income","LU",0,11,0.52839416568531505,27,"",null,"FR_AQT_3.1",4.0246878899999998E-2,3.7344535099999999E-2,3.7524142199999999E-2,3.7339056000000002E-2,3.6893293100000002E-2,3.5395450500000002E-2,3.5191294099999999E-2,3.4444369000000002E-2,3.3158947199999997E-2,3.2448290499999997E-2,3.1409616799999998E-2,2.9689628499999999E-2,2.87418389E-2,2.80484498E-2,2.7460325800000001E-2,2.6838978900000001E-2,2.6084766499999999E-2,2.5032861399999998E-2,2.44538441E-2,2.3651462000000002E-2,2.3478650600000001E-2,2.2543661400000001E-2,2.1471800499999999E-2,2.1080338699999999E-2,2.08026906E-2,1.99531594E-2]
["Net gains on financial assets and liabilities held for trading to total net operating income201703",201703,30,"Net gains on financial assets and liabilities held for trading to total net operating income",-0.149757145999658,0,1.9317291893800999E-2,5.8577388755164897E-2,0.100973160037412,7.8507214983738999E-2,0.28526980779945799,47313877828.281998,493456920566.58099,3.5757083846053299E-2,3.5848666273348401E-2,0.112612281604809,127,3.5757083846053299E-2,0.112612281604809,1,"Net interest income to total net operating income28",202012,26,"Net interest income to total net operating income","FR",0,13,0.49839887530571902,28,"",null,"FR_AQT_3.2",4.5698007200000001E-2,4.2287974499999999E-2,4.2627990999999997E-2,4.2446998399999998E-2,4.1773130700000001E-2,3.9982984499999999E-2,3.9863955999999999E-2,3.92932883E-2,3.74244413E-2,3.6566133100000002E-2,3.5213399200000002E-2,3.3013063699999998E-2,3.1659541899999998E-2,3.0779419799999999E-2,3.0302876100000001E-2,2.9622762600000001E-2,2.8721957999999999E-2,2.75650112E-2,2.7014889E-2,2.6180764200000001E-2,2.6042404000000002E-2,2.4933822000000001E-2,2.3849556099999999E-2,2.3403445799999999E-2,2.2982588599999999E-2,2.1923970500000001E-2]
["Net gains on financial assets and liabilities held for trading to total net operating income201706",201706,30,"Net gains on financial assets and liabilities held for trading to total net operating income",-9.1945042361076604E-2,6.18210325904357E-4,2.07343089284838E-2,6.4137666875284299E-2,9.2430035701309393E-2,7.8112045941775204E-2,0.29466607852545501,41994468016.940399,499227189267.40997,6.5091776217251804E-2,3.7622296085339603E-2,0.102067052309625,125,3.7622296085339603E-2,0.102067052309625,1,"Net interest income to total net operating income29",202012,26,"Net interest income to total net operating income","IT",0,16,0.49426060373572001,29,"",null,"FR_AQT_31",1.07448487E-2,1.05509503E-2,1.0028819200000001E-2,1.0607084399999999E-2,1.03247076E-2,1.03563957E-2,9.7625249999999993E-3,9.3379898999999995E-3,9.6531080000000005E-3,9.9067953999999996E-3,9.2702834000000008E-3,8.8940244000000005E-3,9.3116078999999994E-3,9.2846175E-3,5.3516518999999997E-3,5.0076857999999998E-3,4.9201258999999999E-3,5.0051467999999997E-3,4.6592557E-3,4.6176409999999996E-3,4.3676473000000002E-3,4.4597821999999999E-3,4.1324226000000004E-3,3.8075407000000001E-3,3.6801749999999999E-3,3.5963044E-3]
["Net gains on financial assets and liabilities held for trading to total net operating income201709",201709,30,"Net gains on financial assets and liabilities held for trading to total net operating income",-5.2247543930573202E-2,1.35943922804271E-3,2.5440747988293901E-2,7.4636341479472207E-2,8.9399190877835294E-2,7.2313697517287806E-2,0.248356907555423,40247332698.821098,482192855657.75098,6.8100834076719602E-2,3.0370300859976902E-2,9.9293981490017599E-2,125,3.0370300859976902E-2,9.9293981490017599E-2,1,"Net interest income to total net operating income99",202012,26,"Net interest income to total net operating income","EU",0,116,0.58926589197464696,99,"",null,"FR_AQT_41.2",0.524117265,0.51824477339999997,0.50892754699999998,0.51334911169999997,0.51568995949999996,0.51542714430000003,0.50899882929999996,0.50630193349999997,0.50792718849999996,0.51820541809999998,0.51348887350000005,0.50804496170000002,0.51110142859999996,0.51037299550000004,0.52033108539999995,0.5178567717,0.51415563350000004,0.50762927010000003,0.50347084649999996,0.50647459049999999,0.50728213590000004,0.50174163689999995,0.503214155,0.49517965349999998,0.4876298443,0.49054600199999998]
["Net gains on financial assets and liabilities held for trading to total net operating income201712",201712,30,"Net gains on financial assets and liabilities held for trading to total net operating income",-5.2773444298058497E-2,0,1.53968077681007E-2,5.6725675369722298E-2,8.5396968061700496E-2,6.5640963255849394E-2,0.25439778076177999,40028187689.089302,481108923567.80298,4.7407486300016698E-2,2.7815712735688801E-2,9.5423364164188507E-2,126,2.7815712735688801E-2,9.5423364164188507E-2,1,"Net interest income to total net operating income100",202012,26,"Net interest income to total net operating income","GB",0,26,0.52879714157632696,100,"",null,"FR_AQT_42.2",1.42593479E-2,1.37051328E-2,1.3912009499999999E-2,1.3218978899999999E-2,1.33105567E-2,1.29642175E-2,1.3004954500000001E-2,1.2696828699999999E-2,1.2272116099999999E-2,1.2435822500000001E-2,1.2048227E-2,1.1411559700000001E-2,1.0917858000000001E-2,1.05816153E-2,1.0418377100000001E-2,1.00368343E-2,9.7905525000000007E-3,9.5994927999999997E-3,9.5322277999999993E-3,9.3128857000000006E-3,9.1718702999999992E-3,8.8788148000000008E-3,8.8144803000000001E-3,9.2283802000000005E-3,9.4934615999999993E-3,1.0045399E-2]
["Net gains on financial assets and liabilities held for trading to total net operating income201803",201803,30,"Net gains on financial assets and liabilities held for trading to total net operating income",-0.150692760465616,-1.15625650394281E-3,1.2907441721847299E-2,-8.2660302720411305E-2,5.5124901381556297E-2,6.7860540169374095E-2,0.193853583210536,22052796504.710602,479458093359.01501,4.9014313536586002E-2,-1.8749059006991101E-2,6.6726118921813293E-2,126,-1.8749059006991101E-2,6.6726118921813293E-2,0,"Net fee and commission income to total net operating income1",202012,27,"Net fee and commission income to total net operating income","IT",0,16,0.38443703933558998,1,"",null,"FR_FND_32",1.1767035527,1.1659747074,1.1979894250000001,1.1904037922999999,1.1587068980999999,1.1372281741000001,1.1556200419,1.1438456825000001,1.1393821571,1.1302035486999999,1.119965407,1.1215420646000001,1.1290096737999999,1.1423623996000001,1.1758774027000001,1.1747499383,1.1734088332999999,1.1663239951,1.1706912182,1.1576243789,1.1508821220000001,1.1531278262,1.1410035274000001,1.0929481296000001,1.0695522465,1.0624046826]
["Net gains on financial assets and liabilities held for trading to total net operating income201806",201806,30,"Net gains on financial assets and liabilities held for trading to total net operating income",-0.140111189176127,-2.9215521994122198E-3,1.04089757254588E-2,-3.27930003643618E-2,6.2870277765614394E-2,5.1698023212520802E-2,0.14478405732946201,26746041933.419998,479117243099.789,3.5423090239917202E-2,-1.1357590656774001E-2,7.4740027056693095E-2,126,-1.1357590656774001E-2,7.4740027056693095E-2,0,"Net fee and commission income to total net operating income2",202012,27,"Net fee and commission income to total net operating income","FR",0,13,0.36547683127254299,2,"",null,"FR_FND_33",".",0.24260728100000001,0.2524677032,0.2435150375,0.23742210289999999,0.22708470789999999,0.2305460939,0.23812839059999999,0.23490966799999999,0.22916291620000001,0.2471154113,0.25103478350000002,0.25558036699999997,0.2435753306,0.25860800639999998,0.26129872679999999,0.26554649800000002,0.2524989098,0.25845705629999999,0.25896095650000001,0.26897365150000002,0.25533467459999998,0.27794421320000001,0.28010067779999998,0.28353530389999998,0.28263794079999999]
["Net gains on financial assets and liabilities held for trading to total net operating income201809",201809,30,"Net gains on financial assets and liabilities held for trading to total net operating income",-7.1999812153179396E-2,-8.0396645684821695E-4,7.8487233243287706E-3,-3.3567305454898902E-2,5.3646099010171998E-2,4.5378782795153803E-2,0.124246373003948,22350954844.247002,476964823126.62799,2.7061465275143502E-2,-3.4636733008941399E-3,6.2887935422803895E-2,125,-3.4636733008941399E-3,6.2887935422803895E-2,0,"Net fee and commission income to total net operating income3",202012,27,"Net fee and commission income to total net operating income","DE",0,23,0.34710086657188999,3,"",null,"FR_LIQ_17",".",".",".",".",".",".",".",".",1.3751436909999999,1.3226063213999999,1.3491631012,1.3107299567999999,1.2559316310999999,1.3479181786000001,1.3112849263999999,1.3066925398,1.2969584186000001,1.3561397899000001,1.3702238728,1.3599221014,1.3443985278999999,1.3543461910000001,1.4091286971000001,1.5902364703,1.6450055818,1.6671350216]
["Net gains on financial assets and liabilities held for trading to total net operating income201812",201812,30,"Net gains on financial assets and liabilities held for trading to total net operating income",-9.0652808757247294E-2,-2.54460502872941E-3,5.6743589858352901E-3,-1.46046125667855E-2,3.1168878147087398E-2,2.61447582289502E-2,0.12129672952310799,8963361140.6037998,472453623081.98199,3.0337051074026601E-2,-5.01407126103338E-3,3.7039524277818897E-2,126,-5.01407126103338E-3,3.7039524277818897E-2,0,"Net fee and commission income to total net operating income4",202012,27,"Net fee and commission income to total net operating income","LU",0,11,0.33919735373745302,4,"",null,"FR_PFT_21",4.4380613399999998E-2,4.6945637999999998E-2,6.0389069699999999E-2,7.4513622599999996E-2,7.48621966E-2,6.7390472199999996E-2,5.2656924600000002E-2,7.4954726299999996E-2,7.2175427900000005E-2,6.5695898399999994E-2,6.3289751699999994E-2,7.1734304099999993E-2,7.2009178199999996E-2,6.4333931799999994E-2,5.6855332799999998E-2,6.9846605000000006E-2,7.1066893699999995E-2,6.6482149399999996E-2,5.2648499100000003E-2,6.5349499000000005E-2,6.5154133399999994E-2,6.4932787399999997E-2,4.6675270800000002E-2,3.7038621799999998E-2,4.3355266599999998E-2,4.3249506799999997E-2]
["Net gains on financial assets and liabilities held for trading to total net operating income201903",201903,30,"Net gains on financial assets and liabilities held for trading to total net operating income",-0.11822554743338599,-6.6349440329531201E-4,1.97856492469362E-2,0.18104624972632699,0.16490650287317099,0.100548931571557,0.51053726773431296,69048704819.5159,471392893736.43701,3.1415357550724103E-2,3.2208752828550603E-2,0.18812154549544599,123,3.1415357550724103E-2,0.18812154549544599,1,"Net fee and commission income to total net operating income5",202012,27,"Net fee and commission income to total net operating income","LV",0,5,0.33455090435905299,5,"",null,"FR_PFT_23",0.68255352489999999,0.68670681060000005,0.70551110709999998,0.66709116099999999,0.66877022770000005,0.67960318289999999,0.75887137270000005,0.68307714159999999,0.68829049799999997,0.6926238817,0.72018873240000003,0.71168799189999998,0.70632130540000004,0.71088757300000005,0.75605840469999996,0.7312062829,0.71803160160000001,0.73410266179999994,0.77660844870000001,0.72676080600000004,0.71663002139999998,0.71280007909999998,0.83547873930000005,0.75501871549999999,0.72539426309999999,0.71423950589999996]
["Net gains on financial assets and liabilities held for trading to total net operating income201906",201906,30,"Net gains on financial assets and liabilities held for trading to total net operating income",-0.13128231542768901,-1.7525809367534501E-4,1.1770776011353699E-2,0.13541972686595999,0.12553646389532899,7.0318803859644702E-2,0.31936082363375801,51075605344.4132,476415148997.17499,3.4988215152957997E-2,1.6933339648849299E-2,0.14437943701940301,123,1.6933339648849299E-2,0.14437943701940301,1,"Net fee and commission income to total net operating income6",202012,27,"Net fee and commission income to total net operating income","HU",0,4,0.32848711102998002,6,"",null,"FR_PFT_24",2.5193877999999999E-3,2.6817513000000001E-3,3.3714248999999999E-3,4.2682474000000003E-3,4.3245541E-3,3.9915226000000002E-3,3.2157838000000001E-3,4.5082424999999997E-3,4.4190226000000001E-3,4.1005023000000003E-3,3.9415804000000002E-3,4.5014369999999996E-3,4.5373920000000003E-3,4.1502353000000001E-3,3.6949197999999999E-3,4.4871516999999998E-3,4.5882683E-3,4.3644697999999996E-3,3.3721875999999998E-3,4.1396970999999999E-3,4.0987586000000003E-3,4.2401375000000003E-3,2.8992646000000001E-3,2.2911705000000001E-3,2.6904720000000002E-3,2.7351290999999998E-3]
["Net gains on financial assets and liabilities held for trading to total net operating income201909",201909,30,"Net gains on financial assets and liabilities held for trading to total net operating income",-0.102839545824486,-3.1237319439289502E-4,1.33731469320811E-2,0.105872518747834,0.10501458186672601,6.6949739790168106E-2,0.27354708388050403,40348049519.670502,473966119017.42499,3.43958813172437E-2,1.3547507998838399E-2,0.120866962931865,123,1.3547507998838399E-2,0.120866962931865,1,"Net fee and commission income to total net operating income7",202012,27,"Net fee and commission income to total net operating income","PT",0,8,0.31690600569105198,7,"",null,"FR_PFT_25",0.51092879560000004,0.50116201100000002,0.46936047180000001,0.45773153090000002,0.46690469280000002,0.47237877789999999,0.45942087079999999,0.45051724669999998,0.46816558850000001,0.46296742909999999,0.45135743210000001,0.4612740474,0.47633088489999997,0.47613191910000002,0.4667557235,0.46125304620000002,0.46723856549999998,0.47181244239999998,0.46250734020000001,0.4610825335,0.47100734290000001,0.47441964330000003,0.53181845800000005,0.51239146739999997,0.50907203140000001,0.49839887529999999]
["Net gains on financial assets and liabilities held for trading to total net operating income201912",201912,30,"Net gains on financial assets and liabilities held for trading to total net operating income",-7.6659583560349201E-2,-8.3159599966595599E-4,1.28457565786046E-2,0.10824180790403699,0.10016726642254099,4.8975225181887801E-2,0.23537368799297301,39772885762.729897,476887334635.80798,3.17485537277888E-2,1.7638668461821699E-2,0.114854586036506,124,1.7638668461821699E-2,0.114854586036506,1,"Net fee and commission income to total net operating income8",202012,27,"Net fee and commission income to total net operating income","LT",0,4,0.31610022816929201,8,"",null,"FR_PFT_26",0.31691523980000003,0.3217224876,0.32039549940000001,0.31525928739999998,0.3184420389,0.3234247006,0.33175637409999997,0.31380056270000001,0.3201827464,0.3237785768,0.32138700069999998,0.33798277049999997,0.34815069310000002,0.3526439623,0.35083899190000001,0.34761389640000001,0.3479803347,0.36132367520000003,0.34941361339999999,0.34528489289999997,0.35037142850000003,0.35510695139999998,0.39801269970000003,0.37135237030000001,0.36612741869999998,0.36547683130000003]
["Net gains on financial assets and liabilities held for trading to total net operating income202003",202003,30,"Net gains on financial assets and liabilities held for trading to total net operating income",-0.91144386783142395,-5.5340201116779099E-2,-3.3793803738795701E-3,-9.5884866387789799E-2,-0.19737011609483401,2.6755329815676E-2,0.338563808083646,-88659539450.759903,451152681371.56,2.91588298375966E-2,-5.37478078886406E-2,-0.23379279294779001,117,-0.23379279294779001,2.91588298375966E-2,0,"Net fee and commission income to total net operating income9",202012,27,"Net fee and commission income to total net operating income","SI",0,6,0.31289078615280802,9,"",null,"FR_PFT_29",9.34435983E-2,7.5780082499999998E-2,9.1540256700000003E-2,9.9087912700000003E-2,0.1261262061,8.5836832500000002E-2,7.5489333500000005E-2,6.5926998599999995E-2,9.1310528399999993E-2,9.7324021299999994E-2,0.17243856599999999,0.1631450757,0.16753335459999999,0.17317212949999999,4.7208039799999997E-2,9.8475156699999997E-2,6.51230748E-2,8.8118122999999993E-3,0.36839296840000002,0.28157457289999999,0.22604409189999999,0.22098068840000001,-0.715172535,-0.122341517,-0.10980045500000001,8.7638167700000005E-2]
[{"$f":"+D259&B259","v":"Net gains on financial assets and liabilities held for trading to total net operating income202006"},202006,30,"Net gains on financial assets and liabilities held for trading to total net operating income",-0.45918151449580102,-2.94661475340986E-2,1.4967780672692399E-3,-0.104420047257976,-1.51136221626435E-2,2.6936515920600701E-2,0.112889891306189,-6960796219.3769503,463197682504.42102,2.3992217035568499E-2,3.21136215867722E-4,-1.9198940542264599E-2,117,{"$f":"MIN(N259:P259)","v":-1.9198940542264599E-2},{"$f":"MAX(N259:P259)","v":2.3992217035568499E-2},{"$f":"IF(OR(G259<R259,G259>S259),1,0)","v":0},{"$f":"CONCATENATE(X259,AC259)","v":"Net fee and commission income to total net operating income10"},202012,27,"Net fee and commission income to total net operating income","AT",0,11,0.30579002167049202,10,"",null,"FR_PFT_41",1.38865121E-2,1.3654145899999999E-2,1.35779499E-2,1.3597516699999999E-2,1.35351738E-2,1.36103139E-2,1.2516142399999999E-2,1.2804872700000001E-2,1.30033323E-2,1.29395308E-2,1.2705939600000001E-2,1.25971116E-2,1.2469197099999999E-2,1.2628596799999999E-2,1.2321445800000001E-2,1.21618301E-2,1.2095022400000001E-2,1.2148366000000001E-2,1.1349875299999999E-2,1.13553844E-2,1.1294408000000001E-2,1.1652519199999999E-2,1.1084836799999999E-2,1.0749597E-2,1.07660355E-2,1.0866487899999999E-2]
["Net gains on financial assets and liabilities held for trading to total net operating income202009",202009,30,"Net gains on financial assets and liabilities held for trading to total net operating income",-0.31130757309750301,-2.0127017460815199E-2,0,-2.1995883101559401E-2,-4.9363346112644103E-3,2.33647656258309E-2,0.10652001294551899,-2174924227.6293802,464985063756.12,2.1489800777780701E-2,-3.6080261209528799E-3,-5.61934464515494E-3,116,-5.61934464515494E-3,2.1489800777780701E-2,0,"Net fee and commission income to total net operating income11",202012,27,"Net fee and commission income to total net operating income","FI",0,7,0.30443442005948101,11,"",null,"FR_PFT_43",".",".",".",".",".",".",".",".",".",".",".",".",".",".",8.3331711999999995E-3,5.2399107000000002E-3,4.8916686000000003E-3,4.1260686000000003E-3,5.1344737000000003E-3,4.1263645999999998E-3,3.7040736999999998E-3,3.9485340000000001E-3,5.8804019999999999E-3,6.1727874999999996E-3,5.2157004999999999E-3,5.4427648000000004E-3]
["Net gains on financial assets and liabilities held for trading to total net operating income202012",202012,30,"Net gains on financial assets and liabilities held for trading to total net operating income",-0.1783238937504,-3.2917230386381099E-3,3.68122839687867E-3,1.1553319653266499E-2,4.6508406628676099E-2,3.3392689588112798E-2,0.12644419528182699,22191542982.882801,464436673880.828,2.3582632319603499E-2,-2.68359927325773E-4,5.7260059765671903E-2,116,-2.68359927325773E-4,5.7260059765671903E-2,0,"Net fee and commission income to total net operating income12",202012,27,"Net fee and commission income to total net operating income","HR",0,3,0.28096262954231099,12,"",null,"FR_SVC_1",0.13314405500000001,0.13681965539999999,0.13560656569999999,0.13770248630000001,0.1385852967,0.1433327684,0.14548354229999999,0.14574454319999999,0.14639210829999999,0.1512871529,0.15103822159999999,0.1514919958,0.1497034159,0.15391471849999999,0.15095071860000001,0.1504403212,0.15123553610000001,0.1547470081,0.15532242490000001,0.15699691690000001,0.1552629348,0.16273440759999999,0.1565617765,0.16050091960000001,0.16329575199999999,0.16954125380000001]
["Loans and advances-to-deposits ratio for households and non-financial corporations201409",201409,87,"Loans and advances-to-deposits ratio for households and non-financial corporations",0.62868731207010298,1.0223497885748201,1.2415914584621399,18.3642047909707,1.2697389621864399,2.0629720847902302,9.6215956395380005,9919101095975.75,7305280325298.4004,1.1930302224754099,1.41090533135268,1.24589058980926,123,1.1930302224754099,1.41090533135268,0,"Net fee and commission income to total net operating income13",202012,27,"Net fee and commission income to total net operating income","SK",0,3,0.27851051985847702,13,"",null,"FR_SVC_12",".",".",".",".",".",".",".",".",4.7336410099999997E-2,5.0124252600000002E-2,4.7831183499999999E-2,4.9273093900000002E-2,4.8393604299999997E-2,5.1719799900000002E-2,4.8884822600000002E-2,4.8381406000000002E-2,4.7938169799999999E-2,5.1215310200000003E-2,4.9962984500000002E-2,4.9923873899999999E-2,4.9517313200000003E-2,5.3886379499999998E-2,4.8850780000000003E-2,4.8777250799999998E-2,5.2897523500000002E-2,5.7050914799999998E-2]
["Loans and advances-to-deposits ratio for households and non-financial corporations201412",201412,87,"Loans and advances-to-deposits ratio for households and non-financial corporations",0.415496849622284,0.97474200145239698,1.2113875126186699,10.4309465543055,1.2471499005617499,1.91767253712818,11.1014814025825,9883064403829.6094,7408197349649.9102,0.89237581569026103,1.3764291962194,1.22734034279168,126,0.89237581569026103,1.3764291962194,0,"Net fee and commission income to total net operating income14",202012,27,"Net fee and commission income to total net operating income","BG",0,4,0.27468497743471998,14,"",null,"FR_SVC_13",".",".",".",".",".",".",".",".",4.8775475999999998E-2,5.1643791100000003E-2,4.9271673799999999E-2,5.0527624799999997E-2,4.9359509000000003E-2,5.2726878599999999E-2,4.9834025300000001E-2,4.93581082E-2,4.8729048599999998E-2,5.2125901699999998E-2,5.0743801700000001E-2,5.0893853099999997E-2,5.0115260600000003E-2,5.4493212100000001E-2,4.9446220300000003E-2,4.96385092E-2,5.3798248999999999E-2,5.8053034099999998E-2]
["Loans and advances-to-deposits ratio for households and non-financial corporations201503",201503,87,"Loans and advances-to-deposits ratio for households and non-financial corporations",0.36999071000968697,0.99115560605595299,1.2216320840828601,19.850745300773099,1.25717023031905,1.8796236891965401,9.0061568343213807,10156327295207.801,7511987160083.2305,0.81241213104502297,1.4079495192224101,1.23551529147093,125,0.81241213104502297,1.4079495192224101,0,"Net fee and commission income to total net operating income15",202012,27,"Net fee and commission income to total net operating income","PL",0,3,0.27402399480346901,15,"",null,"FR_SVC_2",0.1534664328,0.15793670430000001,0.15877025789999999,0.16107088659999999,0.16309968929999999,0.16971781869999999,0.17050613610000001,0.17210951969999999,0.1739538018,0.17854281829999999,0.1784702957,0.17777258800000001,0.17524680649999999,0.1792086671,0.1766924906,0.17610066099999999,0.176322014,0.18001689279999999,0.1812554602,0.1831632691,0.18141961109999999,0.18838020599999999,0.18209495319999999,0.1859497239,0.18892752209999999,0.194823466]
["Loans and advances-to-deposits ratio for households and non-financial corporations201506",201506,87,"Loans and advances-to-deposits ratio for households and non-financial corporations",0.50092821126194598,1.0013855097823201,1.2058677274915699,4.6400215073876501,1.2529193443270901,1.82988431247826,8.5351331748973092,10215810444262.801,7572194215689.6299,0.75196406815819306,1.4078820714214699,1.2317212922762,123,0.75196406815819306,1.4078820714214699,0,"Net fee and commission income to total net operating income16",202012,27,"Net fee and commission income to total net operating income","SE",0,8,0.24635504259723201,16,"",null,"FR_SVC_29",0.11856193,0.1232896377,0.1231026429,0.12487080859999999,0.12474754959999999,0.13057441829999999,0.13198760640000001,0.1328419441,0.1336347987,0.13807814130000001,0.13777045330000001,0.1391678982,0.13818122150000001,0.14261286840000001,0.1396122316,0.13899628480000001,0.13978281449999999,0.14336229319999999,0.143444663,0.1454084054,0.1451334356,0.1530579896,0.14617059609999999,0.1493043483,0.1522324451,0.1576382419]
["Loans and advances-to-deposits ratio for households and non-financial corporations201509",201509,87,"Loans and advances-to-deposits ratio for households and non-financial corporations",0.59383437145067197,0.99746214496279495,1.1998743873403099,5.4257769626411996,1.2363053661330401,1.87016308489209,9.8935852144033998,10130864766743.199,7612349142681.8096,0.73694432965661405,1.4009009920541,1.2138258220017499,123,0.73694432965661405,1.4009009920541,0,"Net fee and commission income to total net operating income17",202012,27,"Net fee and commission income to total net operating income","ES",0,15,0.24088642406602701,17,"",null,"FR_SVC_3",0.1194284982,0.12351868539999999,0.1233687356,0.12574280430000001,0.12589850350000001,0.13077007309999999,0.13234717779999999,0.1332529375,0.1337236077,0.13807891990000001,0.13796801889999999,0.13957617980000001,0.13839065540000001,0.14274054250000001,0.1398169692,0.13918131,0.13995001909999999,0.143511992,0.14334867330000001,0.145436752,0.14516607779999999,0.1530812684,0.14650197819999999,0.15060737029999999,0.1535818118,0.1592144814]
["Loans and advances-to-deposits ratio for households and non-financial corporations201512",201512,87,"Loans and advances-to-deposits ratio for households and non-financial corporations",0.58527868397985705,0.94046322144022299,1.1832546391085199,19.093218053544,1.2162220084125701,1.79449297373292,17.4234447570452,10175059635550,7798403588429.2402,0.69290818930568798,1.3807431067395901,1.1933482322412901,126,0.69290818930568798,1.3807431067395901,0,"Net fee and commission income to total net operating income18",202012,27,"Net fee and commission income to total net operating income","CY",0,4,0.23381422027816101,18,1,null,"GB_AQT_3.1",3.1246136399999999E-2,2.8340256300000002E-2,2.54276812E-2,2.3381013900000001E-2,2.1095565699999999E-2,2.0689175300000001E-2,1.99548661E-2,1.9263865500000001E-2,1.8786938199999999E-2,1.69610083E-2,1.5726901599999999E-2,1.4823149000000001E-2,1.4499788099999999E-2,1.38714765E-2,1.33473962E-2,1.26910632E-2,1.21781162E-2,1.1843301800000001E-2,1.1496426400000001E-2,1.12334241E-2,1.10738726E-2,1.11245033E-2,1.05537011E-2,1.1572128500000001E-2,1.14857441E-2,1.16464198E-2]
["Loans and advances-to-deposits ratio for households and non-financial corporations201603",201603,87,"Loans and advances-to-deposits ratio for households and non-financial corporations",0.50148727879744404,0.95676886562652297,1.19338953569636,18.736025102311402,1.22258049893806,1.7559804267822601,16.578698495826298,10177017148007,7763285573362.3896,0.70193494000643897,1.3811346512114899,1.2003154659559301,130,0.70193494000643897,1.3811346512114899,0,"Net fee and commission income to total net operating income19",202012,27,"Net fee and commission income to total net operating income","DK",0,5,0.23139866033046999,19,"",null,"GB_AQT_3.2",3.5585359099999998E-2,3.2403019800000002E-2,2.9045171500000001E-2,2.6613857599999999E-2,2.4165827099999999E-2,2.3858522399999998E-2,2.2901830000000001E-2,2.2114792300000002E-2,2.15077324E-2,1.9346839399999999E-2,1.77205821E-2,1.65396602E-2,1.60644042E-2,1.54004816E-2,1.49880855E-2,1.434006E-2,1.37017335E-2,1.3341178699999999E-2,1.2988965999999999E-2,1.2747612199999999E-2,1.26270714E-2,1.2766922999999999E-2,1.20165229E-2,1.3186425099999999E-2,1.3034255099999999E-2,1.32205051E-2]
["Loans and advances-to-deposits ratio for households and non-financial corporations201606",201606,87,"Loans and advances-to-deposits ratio for households and non-financial corporations",0.49535792052650501,0.96422716990349699,1.17945633604964,52.490783881273998,1.21118319677665,1.7603475949919001,16.048135969226902,10292990292816.4,7921682488655.6602,0.70205953837071799,1.3710136198798799,1.1886279056653,131,0.70205953837071799,1.3710136198798799,0,"Net fee and commission income to total net operating income20",202012,27,"Net fee and commission income to total net operating income","IE",0,8,0.228141357466977,20,"",null,"GB_AQT_31",1.30050223E-2,1.4387872499999999E-2,1.1465009E-2,8.7293280999999993E-3,7.6342657000000001E-3,8.6060770999999998E-3,7.5393489000000003E-3,7.1309880000000004E-3,7.2792033000000003E-3,7.4668855999999997E-3,7.2396737000000001E-3,6.3646426000000004E-3,6.098165E-3,6.0066071999999998E-3,3.9565865000000004E-3,3.6293158E-3,3.2673396E-3,3.4925429999999999E-3,3.2678794000000001E-3,3.0997620999999999E-3,3.0233627000000002E-3,2.9622437000000001E-3,2.5415060999999998E-3,2.8065897000000002E-3,2.8233589000000001E-3,2.893638E-3]
["Loans and advances-to-deposits ratio for households and non-financial corporations201609",201609,87,"Loans and advances-to-deposits ratio for households and non-financial corporations",0.49825650173901997,0.93163547065042396,1.1686801820083701,3.6078102073880198,1.2090418030497401,1.79776854814707,11.4768841411999,10354376512639.801,7990789274791.2002,0.69515201368607404,1.3455305987369699,1.1902935763282101,129,0.69515201368607404,1.3455305987369699,0,"Net fee and commission income to total net operating income21",202012,27,"Net fee and commission income to total net operating income","EE",0,4,0.22773230266855499,21,"",null,"GB_AQT_41.2",0.37150581040000002,0.37313523170000001,0.33993618759999999,0.33433649980000002,0.3145788169,0.30381451929999997,0.29929677399999999,0.2986911834,0.30341808739999998,0.30459750209999997,0.30534045669999998,0.3142544921,0.32369813780000001,0.31883437549999999,0.31557215379999998,0.31430781810000002,0.31222766289999998,0.31329219260000002,0.30355641280000001,0.31425141340000001,0.32168748759999999,0.34238439700000001,0.36177323970000003,0.36478775730000002,0.3589980821,0.3551486928]
["Loans and advances-to-deposits ratio for households and non-financial corporations201612",201612,87,"Loans and advances-to-deposits ratio for households and non-financial corporations",0.48704480064557099,0.935386618528808,1.16073003255397,3.62773459270106,1.1926719673635899,1.92459634816459,10.815303511531299,10376150405607.1,8119671298003.6104,0.69233618789069296,1.3456110329319499,1.1710237219831201,131,0.69233618789069296,1.3456110329319499,0,"Net fee and commission income to total net operating income22",202012,27,"Net fee and commission income to total net operating income","BE",0,8,0.226450013947289,22,"",null,"GB_AQT_42.2",3.0188999800000001E-2,2.7673047400000001E-2,2.5000566200000001E-2,2.2726574199999999E-2,2.02144977E-2,1.8532731199999999E-2,1.6913223599999999E-2,1.6172712999999998E-2,1.5893152899999999E-2,1.42929927E-2,1.31843994E-2,1.22856207E-2,1.19185666E-2,1.12661592E-2,1.0776787899999999E-2,1.01504371E-2,9.4984732999999991E-3,9.3076636000000001E-3,8.9097545000000004E-3,8.6419644000000004E-3,8.5554917000000008E-3,8.5048012000000003E-3,7.6455441000000002E-3,7.8352035000000004E-3,7.9313367999999992E-3,8.6620201000000008E-3]
["Loans and advances-to-deposits ratio for households and non-financial corporations201703",201703,87,"Loans and advances-to-deposits ratio for households and non-financial corporations",0.48434260186787398,0.94176995023019505,1.1767690491243801,3.7804178283566499,1.1888860659309299,1.8174434974737901,5.8122023694707003,10476177747280,8269805715077.2402,0.68240048370099105,1.3603063994959901,1.16562255515353,125,0.68240048370099105,1.3603063994959901,0,"Net fee and commission income to total net operating income23",202012,27,"Net fee and commission income to total net operating income","MT",0,5,0.223534243163965,23,"",null,"GB_FND_32",1.0109600995000001,0.99208198299999995,0.9961571883,0.98971167039999997,0.97018454570000001,0.95671613509999998,0.95150370360000003,0.93347311960000001,0.92783882439999998,0.91392141829999995,0.92203616700000002,0.92493662139999999,0.92960753870000001,0.9241409639,0.92671747800000004,0.92723535030000004,0.93277253289999995,0.92267301820000003,0.94020133780000004,0.93367942940000004,0.93261208019999997,0.91604075419999997,0.91292971779999998,0.86197077990000004,0.84829190659999998,0.82293678800000003]
["Loans and advances-to-deposits ratio for households and non-financial corporations201706",201706,87,"Loans and advances-to-deposits ratio for households and non-financial corporations",0.43350894680677998,0.91215496593908496,1.14860196419948,3.7204244355401501,1.1823821832377901,1.6387620392774001,5.9056087913126003,10574447786512,8407173706283.1299,0.67816537680042099,1.3225992987148001,1.1636302337158,124,0.67816537680042099,1.3225992987148001,0,"Net fee and commission income to total net operating income24",202012,27,"Net fee and commission income to total net operating income","IS",0,3,0.206103505599849,24,"",null,"GB_FND_33",".",0.23655808310000001,0.23807308590000001,0.24817918999999999,0.2443808459,0.25218395440000002,0.2432978281,0.24681735499999999,0.26124341029999998,0.27400129369999998,0.29227938440000001,0.30468008629999999,0.30959445099999999,0.31554230760000002,0.322499378,0.31493657889999999,0.33780974070000003,0.32569860210000001,0.31403941759999998,0.3092122135,0.3082232131,0.31789179070000001,0.30204973080000003,0.29104896559999999,0.29558710939999999,0.30889147709999998]
["Loans and advances-to-deposits ratio for households and non-financial corporations201709",201709,87,"Loans and advances-to-deposits ratio for households and non-financial corporations",0.46940863575060299,0.91599612939751796,1.1294324440355901,3.9573728662777299,1.17957037590887,1.7138803435302901,6.0618314610402004,10571714852203.9,8445827414767.5303,0.68621993686107896,1.2890309463076901,1.1657427368797499,124,0.68621993686107896,1.2890309463076901,0,"Net fee and commission income to total net operating income25",202012,27,"Net fee and commission income to total net operating income","CZ",0,3,0.199655338728322,25,"",null,"GB_LIQ_17",".",".",".",".",".",".",".",".",1.4139024206999999,1.4660498793000001,1.4557149399,1.4943932470000001,1.5159760508,1.5639313402999999,1.5702144828,1.6394714357,1.6212870418000001,1.6638107525000001,1.5815356159,1.522547087,1.4942864531,1.5404994784999999,1.5805498602000001,1.6252269778999999,1.5908504617000001,1.5825645880000001]
["Loans and advances-to-deposits ratio for households and non-financial corporations201712",201712,87,"Loans and advances-to-deposits ratio for households and non-financial corporations",0.36394910207947201,0.89931221172373299,1.1375471241572299,3.54041515807419,1.1741793900358199,1.73684036399063,5.9169183651100896,10592713916148.801,8502974212674.7803,0.78634650300859399,1.27265083884774,1.16169726839086,125,0.78634650300859399,1.27265083884774,0,"Net fee and commission income to total net operating income26",202012,27,"Net fee and commission income to total net operating income","RO",0,3,0.19190244234680801,26,"",null,"GB_PFT_21",7.1489335799999998E-2,3.6533014799999999E-2,6.5939566099999999E-2,6.7517956700000006E-2,6.6381188100000002E-2,2.68818184E-2,5.9472319799999999E-2,4.9824074699999998E-2,3.3629935999999999E-2,8.2850089999999994E-3,5.9488881799999997E-2,5.1455986400000001E-2,5.59830833E-2,3.9205421099999999E-2,5.8058280400000002E-2,6.73050122E-2,7.0030046900000004E-2,6.0798277999999997E-2,7.9851090299999997E-2,8.2222425200000004E-2,6.6594012199999997E-2,4.9938405900000003E-2,5.5035387700000001E-2,2.6520120899999999E-2,2.8099580200000002E-2,2.5872069300000002E-2]
["Loans and advances-to-deposits ratio for households and non-financial corporations201803",201803,87,"Loans and advances-to-deposits ratio for households and non-financial corporations",0.46332700657081,0.89315353260192898,1.1328580187442101,3.9124868327870499,1.1857454599311601,1.78353061532654,6.1304349907871103,10614508798431.301,8417418567849.1602,0.86571382091208804,1.2673481107890701,1.1754790429072,124,0.86571382091208804,1.2673481107890701,0,"Net fee and commission income to total net operating income27",202012,27,"Net fee and commission income to total net operating income","NL",0,6,0.17000940894272601,27,"",null,"GB_PFT_23",0.61297082810000003,0.65742574450000002,0.60517983610000003,0.58519252440000002,0.58171278410000005,0.65107247049999994,0.63025566489999996,0.60863548690000002,0.63136919000000002,0.68412271339999997,0.63012128359999997,0.61732313360000002,0.62043023539999997,0.65502975249999995,0.61774261640000006,0.61853501290000001,0.61510790859999998,0.64198281489999998,0.6203028035,0.6088831536,0.60338028700000002,0.62269059339999999,0.55439580649999998,0.58652259829999998,0.61441832799999996,0.65708599089999997]
["Loans and advances-to-deposits ratio for households and non-financial corporations201806",201806,87,"Loans and advances-to-deposits ratio for households and non-financial corporations",0.46855070013855399,0.90032148457292205,1.1216854938385701,4.0881968784373601,1.1833657025732001,1.7787482468432201,6.5522835004212103,10768478951176.5,8557727214907.2998,0.85945797849612804,1.26044232419385,1.17399844905248,124,0.85945797849612804,1.26044232419385,0,"Net fee and commission income to total net operating income28",202012,27,"Net fee and commission income to total net operating income","NO",0,4,0.136289506559681,28,"",null,"GB_PFT_24",4.1728642000000002E-3,2.1450332999999999E-3,3.8929736999999999E-3,4.0561865000000004E-3,4.0073256999999998E-3,1.7127125000000001E-3,3.9113417999999999E-3,3.2266164E-3,2.2331359000000001E-3,5.7927779999999995E-4,4.3340128999999998E-3,3.5906446999999998E-3,3.9270518000000003E-3,2.7503190999999998E-3,3.9027592000000001E-3,4.4719568000000003E-3,4.6898202E-3,4.1052909E-3,5.2990924999999998E-3,5.4060178999999998E-3,4.2949019999999997E-3,3.2836214000000002E-3,3.3861784999999998E-3,1.6307572999999999E-3,1.7332795000000001E-3,1.6018168000000001E-3]
["Loans and advances-to-deposits ratio for households and non-financial corporations201809",201809,87,"Loans and advances-to-deposits ratio for households and non-financial corporations",0.48053472093230798,0.92184007519829403,1.1197590460625899,3.62842035865983,1.18424781151937,1.815840882621,5.49478714758376,10835422219213,8619442345083.1699,0.82988561941776995,1.2603955757426799,1.17531231643455,122,0.82988561941776995,1.2603955757426799,0,"Net fee and commission income to total net operating income29",202012,27,"Net fee and commission income to total net operating income","GR",0,4,0.12873328827783601,29,"",null,"GB_PFT_25",0.58706210439999995,0.6002938189,0.5789849024,0.55558458180000003,0.56170329669999997,0.58504767290000004,0.6109821459,0.58310856600000005,0.58946194799999996,0.59883943210000001,0.55021573840000004,0.55184594350000005,0.56084768259999995,0.57303511640000004,0.55933550929999998,0.55015132,0.55472498410000004,0.57100125810000002,0.5573771864,0.54344835520000001,0.54990598999999996,0.54355700340000002,0.5093359999,0.50875606529999995,0.52447982289999995,0.52879714160000002]
["Loans and advances-to-deposits ratio for households and non-financial corporations201812",201812,87,"Loans and advances-to-deposits ratio for households and non-financial corporations",0.46740710362519999,0.90505969270101005,1.10705822937025,4.41844690473122,1.1707976133851199,1.85426470141302,7.24206591632898,10897231302086.1,8756589793508.1904,0.81353772781121902,1.2419005624214501,1.1624423371960999,124,0.81353772781121902,1.2419005624214501,0,"Net fee and commission income to total net operating income99",202012,27,"Net fee and commission income to total net operating income","EU",0,116,0.30466822970797902,99,"",null,"GB_PFT_26",0.24676942460000001,0.254808113,0.244093017,0.23296996040000001,0.23123229479999999,0.23987605149999999,0.2266038937,0.22432646449999999,0.2330383878,0.24000972640000001,0.2354739294,0.2322116773,0.23052154599999999,0.22971414130000001,0.23686151289999999,0.23171645669999999,0.22588233029999999,0.22437803549999999,0.21945521430000001,0.2183590322,0.22138183859999999,0.217925016,0.20775649730000001,0.20925478359999999,0.21552789529999999,0.23073185869999999]
["Loans and advances-to-deposits ratio for households and non-financial corporations201903",201903,87,"Loans and advances-to-deposits ratio for households and non-financial corporations",0.46581931075493299,0.88391115606269399,1.0809565924600599,2.1963348143258301,1.1686332749419699,1.6413446845336701,4.1000420110499904,11111724057474.301,8954244846730.1406,0.85383874849911401,1.1922987478462399,1.1678483647529301,123,0.85383874849911401,1.1922987478462399,0,"Net fee and commission income to total net operating income100",202012,27,"Net fee and commission income to total net operating income","GB",0,26,0.230731858729604,100,"",null,"GB_PFT_29",0.11945187860000001,0.1007038177,9.4186777099999994E-2,9.63006894E-2,8.8562733800000001E-2,8.7737385500000001E-2,0.13545332260000001,0.1166340292,0.11601509729999999,8.9666015099999996E-2,0.1269783665,0.1245585389,0.1136965811,0.1011985435,0.1057711034,0.10563710060000001,9.2642219400000003E-2,8.6502226700000004E-2,0.2368791227,0.19835178040000001,0.18074572089999999,0.1648682575,0.147767958,0.2026823116,0.18875379640000001,0.18034576720000001]
["Loans and advances-to-deposits ratio for households and non-financial corporations201906",201906,87,"Loans and advances-to-deposits ratio for households and non-financial corporations",0.47988176988412401,0.90112474185430702,1.0867033692827699,2.26519898590348,1.1636160074439099,1.68404518772748,5.4250648610460797,11219409299042.4,9093918560409.5195,0.84413899248296997,1.1886731030884501,1.16264247420429,122,0.84413899248296997,1.1886731030884501,0,"Net gains on financial assets and liabilities held for trading to total net operating income1",202012,30,"Net gains on financial assets and liabilities held for trading to total net operating income","FR",0,13,8.7638167693830801E-2,1,"",null,"GB_PFT_41",1.5693512199999999E-2,1.6301888899999999E-2,1.6368118500000001E-2,1.6743631599999999E-2,1.6503911699999999E-2,1.6899357E-2,1.52181023E-2,1.4850656E-2,1.40845117E-2,1.4417338599999999E-2,1.4258330200000001E-2,1.40309847E-2,1.39657029E-2,1.40557917E-2,1.4170604700000001E-2,1.4090824700000001E-2,1.41692016E-2,1.43912525E-2,1.38336985E-2,1.3520722299999999E-2,1.3750307999999999E-2,1.3786737800000001E-2,1.257874E-2,1.17419281E-2,1.1339558099999999E-2,1.12829109E-2]
["Loans and advances-to-deposits ratio for households and non-financial corporations201909",201909,87,"Loans and advances-to-deposits ratio for households and non-financial corporations",0.47686613393591398,0.89300018544860804,1.06756139964552,2.25210610805828,1.15975885893983,1.69217335979518,6.3656189890340098,11315068537966.199,9198559842720.7695,0.83338352923599701,1.18495902845003,1.1588938565890701,122,0.83338352923599701,1.18495902845003,0,"Net gains on financial assets and liabilities held for trading to total net operating income2",202012,30,"Net gains on financial assets and liabilities held for trading to total net operating income","ES",0,15,5.3499367857202003E-2,2,"",null,"GB_PFT_43",".",".",".",".",".",".",".",".",".",".",".",".",".",".",4.5432316999999998E-3,3.9594614999999998E-3,3.1630435000000001E-3,4.2638648999999999E-3,4.3848315999999998E-3,3.3726431999999999E-3,4.0612256999999997E-3,4.4457137999999998E-3,1.1157159200000001E-2,1.1194978100000001E-2,1.1581995499999999E-2,7.8420221000000002E-3]
["Loans and advances-to-deposits ratio for households and non-financial corporations201912",201912,87,"Loans and advances-to-deposits ratio for households and non-financial corporations",0.50937049510317001,0.88443335124784095,1.05655944266173,2.22186641327602,1.1485077522909899,1.7172958820714099,5.6016740057050898,11416729376568.5,9335794305889.3301,0.80527881030683901,1.1621932696174999,1.1498059014847299,122,0.80527881030683901,1.1621932696174999,0,"Net gains on financial assets and liabilities held for trading to total net operating income3",202012,30,"Net gains on financial assets and liabilities held for trading to total net operating income","LU",0,11,5.0475651051442402E-2,3,"",null,"GB_SVC_1",0.1262878113,0.1317058159,0.1311583338,0.14018083819999999,0.14542664559999999,0.15329881889999999,0.1494582512,0.15257669600000001,0.1642350004,0.16733780549999999,0.1630804887,0.16857680859999999,0.16939694299999999,0.16984875720000001,0.1682615308,0.1699738573,0.17665069019999999,0.17857998250000001,0.1763269439,0.17616357590000001,0.17423465839999999,0.1829646805,0.1746207883,0.17744945819999999,0.18197543620000001,0.18301821030000001]
["Loans and advances-to-deposits ratio for households and non-financial corporations202003",202003,87,"Loans and advances-to-deposits ratio for households and non-financial corporations",0.47334297800270603,0.88397596585994498,1.04577281566077,2.20012570440865,1.2136761525555899,1.7671780239677199,6.8097966485516599,11560743672183,9497479649576.9707,0.79248973244028798,1.1533336262081,1.2331844788393,113,0.79248973244028798,1.2331844788393,0,"Net gains on financial assets and liabilities held for trading to total net operating income4",202012,30,"Net gains on financial assets and liabilities held for trading to total net operating income","DE",0,23,4.9020947656369399E-2,4,"",null,"GB_SVC_12",".",".",".",".",".",".",".",".",5.2543524500000001E-2,5.43632613E-2,5.1226041399999998E-2,5.2224574199999999E-2,5.2370500200000003E-2,5.2675703400000003E-2,5.0576813800000002E-2,5.0631290900000001E-2,5.1408049900000002E-2,5.3055912199999999E-2,5.16115371E-2,5.1965154200000002E-2,5.1340050999999998E-2,5.2723555499999998E-2,5.0910442700000003E-2,5.17469464E-2,5.1670037000000002E-2,5.2349088100000003E-2]
["Loans and advances-to-deposits ratio for households and non-financial corporations202006",202006,87,"Loans and advances-to-deposits ratio for households and non-financial corporations",0.46224156302920399,0.85223318108182,1.0220153789920701,2.17777424297581,1.15963702971366,1.7034026920004,6.9739451309400398,11679449662146.801,10052825624540.801,0.77342727633472197,1.11426943381562,1.1749514092691,113,0.77342727633472197,1.1749514092691,0,"Net gains on financial assets and liabilities held for trading to total net operating income5",202012,30,"Net gains on financial assets and liabilities held for trading to total net operating income","HR",0,3,4.8530094943816701E-2,5,"",null,"GB_SVC_13",".",".",".",".",".",".",".",".",5.5289905600000001E-2,5.7244955E-2,5.3513825100000002E-2,5.4341353299999999E-2,5.4458884700000001E-2,5.4730312400000002E-2,5.24362622E-2,5.2174551800000003E-2,5.2929409900000002E-2,5.4349743200000002E-2,5.2755389299999997E-2,5.2924997500000001E-2,5.2301093399999998E-2,5.4571466700000001E-2,5.1722524700000001E-2,5.2878105100000003E-2,5.2838070600000002E-2,5.3420377400000003E-2]
["Loans and advances-to-deposits ratio for households and non-financial corporations202009",202009,87,"Loans and advances-to-deposits ratio for households and non-financial corporations",0.50732247934212005,0.84741905497135805,1.0017552626431401,2.1682443581559299,1.1356237651749099,1.65530747157497,6.8952573791773402,11653911922274.4,10249395419542.9,0.77000440295190498,1.0958249583870801,1.14904803611604,112,0.77000440295190498,1.14904803611604,0,"Net gains on financial assets and liabilities held for trading to total net operating income6",202012,30,"Net gains on financial assets and liabilities held for trading to total net operating income","FI",0,7,4.7845492592837199E-2,6,"",null,"GB_SVC_2",0.1676876809,0.16958715190000001,0.16702923389999999,0.1774039198,0.18461367540000001,0.19388665839999999,0.18865873950000001,0.1926631815,0.2056278815,0.20838798519999999,0.2013143704,0.2047253487,0.20533501630000001,0.20542736980000001,0.202053239,0.20338050569999999,0.2095230931,0.21550779149999999,0.2116999889,0.2117182993,0.20952360540000001,0.21673596549999999,0.20783041790000001,0.21199658399999999,0.2160782423,0.21508567279999999]
["Loans and advances-to-deposits ratio for households and non-financial corporations202012",202012,87,"Loans and advances-to-deposits ratio for households and non-financial corporations",0.51583256733514204,0.82585887993338303,0.97639803322771601,2.1166824069902201,1.1218717852881399,1.6763296169359201,6.3966835458107401,11626737481242.9,10359635355950.199,0.74607248198551901,1.07148807588706,1.1384372029043099,111,0.74607248198551901,1.1384372029043099,0,"Net gains on financial assets and liabilities held for trading to total net operating income7",202012,30,"Net gains on financial assets and liabilities held for trading to total net operating income","NO",0,4,4.7128986848179198E-2,7,"",null,"GB_SVC_29",0.1107904183,0.11645188469999999,0.1155872785,0.12311682979999999,0.1268546421,0.13396037490000001,0.13268077070000001,0.1355462164,0.1448286748,0.1471593283,0.14342870890000001,0.1459320989,0.14612151239999999,0.1463635787,0.14474066739999999,0.1465170512,0.15083514040000001,0.1515565972,0.14984897759999999,0.15067556830000001,0.1488780952,0.1573998596,0.15128018679999999,0.15121276280000001,0.15510304259999999,0.15596408279999999]
["Asset encumbrance ratio201412",201412,88,"Asset encumbrance ratio",3.0033312404844401E-2,0.134547062217591,0.24469133534059201,0.27692165078460301,0.25402453541034797,0.39093551214743699,0.62658354273427896,6534099407949.2305,24889925238037.898,0.29725302722259,0.27880311522832602,0.244068584867702,148,0.244068584867702,0.29725302722259,0,"Net gains on financial assets and liabilities held for trading to total net operating income8",202012,30,"Net gains on financial assets and liabilities held for trading to total net operating income","DK",0,5,4.0996976027831297E-2,8,"",null,"GB_SVC_3",0.1102212652,0.1155777441,0.1157381435,0.1232817437,0.12699149139999999,0.13389786049999999,0.1327414033,0.13558801079999999,0.1448354926,0.14726213320000001,0.14342866169999999,0.1459320989,0.14613140729999999,0.1463635787,0.14472742220000001,0.14699686340000001,0.15129696779999999,0.1526991281,0.1508877961,0.15170318420000001,0.15000054669999999,0.15858850569999999,0.15253546949999999,0.15415414,0.15833706819999999,0.1592444988]
["Asset encumbrance ratio201503",201503,88,"Asset encumbrance ratio",2.8451289602103899E-2,0.14312930580917399,0.24908112730218801,0.276808946980517,0.25607322233117502,0.38686253865639902,0.62029714418967796,6485136639288.3701,24245033249110,0.28923567804340999,0.28849900821150698,0.24555266621758601,151,0.24555266621758601,0.28923567804340999,0,"Net gains on financial assets and liabilities held for trading to total net operating income9",202012,30,"Net gains on financial assets and liabilities held for trading to total net operating income","RO",0,3,3.6676774858605703E-2,9,"",null,"GR_AQT_3.1",0.31011967239999999,0.33867012260000001,0.33035432539999998,0.34699626220000002,0.35790364009999998,0.37292566129999999,0.37665598820000001,0.38339439749999998,0.38884526549999998,0.3857907351,0.39324168069999998,0.40217196090000001,0.41999263939999998,0.4127267503,0.41428434390000002,0.40989459439999998,0.3919043391,0.3701863071,0.36731798869999999,0.34543446919999998,0.33012294199999997,0.30928989610000002,0.294570899,0.25446321840000002,0.24307000479999999,0.21423938619999999]
["Asset encumbrance ratio201506",201506,88,"Asset encumbrance ratio",2.6411202306075202E-2,0.14539892545946601,0.25439581619721702,0.27883712722063603,0.25834802889909603,0.36181249794146603,0.63136959569941598,6680665339063.3301,25341728668575,0.31918332714200798,0.28982101059861598,0.245066144377664,149,0.245066144377664,0.31918332714200798,0,"Net gains on financial assets and liabilities held for trading to total net operating income10",202012,30,"Net gains on financial assets and liabilities held for trading to total net operating income","LT",0,4,3.58158221630865E-2,10,"",null,"GR_AQT_3.2",0.3740047125,0.39675211240000002,0.39991672220000002,0.41988464409999998,0.43451722149999999,0.46178469649999998,0.46623287530000002,0.46865816840000002,0.4705427331,0.45908798709999998,0.46239225550000002,0.465391781,0.4660473913,0.44945623200000001,0.45283398600000002,0.4480779432,0.43354343020000002,0.41324115420000002,0.41410523199999999,0.39244993779999998,0.374038015,0.35151041039999997,0.3398690144,0.30314301529999998,0.28849461259999998,0.25544358560000002]
["Asset encumbrance ratio201509",201509,88,"Asset encumbrance ratio",2.2432564620758301E-2,0.138991631633752,0.24896763117704601,0.27861941028679699,0.25397923768069502,0.36858866358768,0.63306406372713997,6587742692175.5498,25374640685136,0.32033734494397098,0.287311826057079,0.23952210957063599,149,0.23952210957063599,0.32033734494397098,0,"Net gains on financial assets and liabilities held for trading to total net operating income11",202012,30,"Net gains on financial assets and liabilities held for trading to total net operating income","BG",0,4,3.3800615502018801E-2,11,"",null,"GR_AQT_31",0.16660123509999999,0.15025949620000001,0.1487221869,0.14912626430000001,0.15386976390000001,0.15015800700000001,0.15415019660000001,0.17106485530000001,0.17385998480000001,0.1728789869,0.17683139389999999,0.1812483922,0.18782946280000001,0.18981206519999999,0.1627290143,0.155112687,0.15153268010000001,0.14445522320000001,0.14179640509999999,0.1312783052,0.12790353099999999,0.1244252746,0.1183013004,9.2923261600000001E-2,8.9661762000000006E-2,7.8033270700000004E-2]
["Asset encumbrance ratio201512",201512,88,"Asset encumbrance ratio",2.77728249328613E-2,0.15063023872032999,0.25400154778939599,0.28052864343438499,0.25530297965209497,0.36147385414952998,0.64597297501430595,6313639296699.71,24632610897485.898,0.331896729690979,0.296322298274447,0.23774558884864799,148,0.23774558884864799,0.331896729690979,0,"Net gains on financial assets and liabilities held for trading to total net operating income12",202012,30,"Net gains on financial assets and liabilities held for trading to total net operating income","IS",0,3,2.37903029937232E-2,12,"",null,"GR_AQT_41.2",0.4469668,0.43845183570000001,0.43601314489999998,0.47715647030000002,0.47587097540000001,0.48532003159999998,0.48323777839999998,0.48226420009999998,0.4824323512,0.48290786409999997,0.48235644640000003,0.47485299079999999,0.4746103914,0.46885279210000003,0.49725886699999999,0.49201426500000001,0.4804406511,0.48289055870000003,0.4800618337,0.4706402603,0.45289072520000001,0.4473059137,0.45151269109999997,0.44549832890000002,0.44855001700000002,0.4473044705]
["Asset encumbrance ratio201603",201603,88,"Asset encumbrance ratio",2.9483781813584301E-2,0.14346431488877701,0.246614791178658,0.27553056713643798,0.253902521098131,0.36431070577688301,0.63391732525959199,6594539107351.4297,25465180628803.602,0.31987841578397502,0.29511520384629197,0.23727472147913101,152,0.23727472147913101,0.31987841578397502,0,"Net gains on financial assets and liabilities held for trading to total net operating income13",202012,30,"Net gains on financial assets and liabilities held for trading to total net operating income","SK",0,3,1.92690607247042E-2,13,"",null,"GR_AQT_42.2",0.1420138795,0.1420150909,0.1509745049,0.1653557886,0.17455059219999999,0.19752683209999999,0.20483750019999999,0.2152406747,0.2236700402,0.2323439021,0.23865821579999999,0.24359824760000001,0.2488509558,0.24796830070000001,0.25473621130000002,0.25805099869999998,0.25518295839999999,0.24432101149999999,0.24479344210000001,0.23445984619999999,0.22761262600000001,0.21524320559999999,0.20387890110000001,0.19300827000000001,0.18141574730000001,0.1655480064]
["Asset encumbrance ratio201606",201606,88,"Asset encumbrance ratio",1.8467131107032801E-2,0.141583918734768,0.24975815563939599,0.27382422196563,0.25548613031993,0.36129903716527401,0.63625160834597705,6741714039883.9297,25895472213531.5,0.31847665857937701,0.29250565113913701,0.23989832068035,153,0.23989832068035,0.31847665857937701,0,"Net gains on financial assets and liabilities held for trading to total net operating income14",202012,30,"Net gains on financial assets and liabilities held for trading to total net operating income","IE",0,8,1.7930810797227002E-2,14,"",null,"GR_FND_32",1.0944906823,1.0920539408000001,1.2581741433,1.3610315763,1.3434170702999999,1.2965747283,1.2938981561,1.2653566965,1.2364152157999999,1.1989125121999999,1.2058640921999999,1.1846007700000001,1.1550403033000001,1.1067006452999999,1.064976787,1.0373812552999999,1.0091061953,0.97988379969999995,0.98140706470000005,0.94613462250000002,0.92082030209999999,0.89516390479999997,0.89391806399999996,0.85042750570000003,0.83741268570000005,0.77919925420000002]
["Asset encumbrance ratio201609",201609,88,"Asset encumbrance ratio",2.22350270601222E-2,0.140254655597391,0.242686711341314,0.272358428632897,0.26459471760765202,0.3693018229342,0.60442786949743699,7003899418321.2598,26153841421963.199,0.33420548038546699,0.31874887197556601,0.24476789121044501,150,0.24476789121044501,0.33420548038546699,1,"Net gains on financial assets and liabilities held for trading to total net operating income15",202012,30,"Net gains on financial assets and liabilities held for trading to total net operating income","IT",0,16,1.6510458063336401E-2,15,"",null,"GR_FND_33",".",0.2598207152,0.44094282289999998,0.46745259210000001,0.48064472400000002,0.47142459129999997,0.48749116990000002,0.46888844289999998,0.44488323410000002,0.43326366589999998,0.42518813430000002,0.40900181540000002,0.35209174780000002,0.3159239552,0.28244195799999999,0.25971104699999997,0.23307552049999999,0.23885263900000001,0.2258779427,0.2152410843,0.21489397539999999,0.19107824700000001,0.21413625150000001,0.27579604359999998,0.27529604019999998,0.26364360139999998]
["Asset encumbrance ratio201612",201612,88,"Asset encumbrance ratio",1.5878698129607599E-2,0.12555561504853599,0.24356386769515001,0.26333007948003601,0.26631856985760699,0.37434216466780301,0.58057639619968104,6696417447856.6602,25296573717612.301,0.35313315882736601,0.313907860972301,0.24431940696837801,154,0.24431940696837801,0.35313315882736601,1,"Net gains on financial assets and liabilities held for trading to total net operating income16",202012,30,"Net gains on financial assets and liabilities held for trading to total net operating income","SI",0,6,1.6500333267398099E-2,16,"",null,"GR_LIQ_17",".",".",".",".",".",".",".",".",0,0,0,0,0,0.1101086335,0.1354521511,0.1864124982,0.33251025350000002,0.47962573489999999,0.74074726260000001,0.99307607389999997,1.1543204163,1.3079611020999999,1.2565102709,1.5850562754999999,1.5579706885,1.7515504051999999]
["Asset encumbrance ratio201703",201703,88,"Asset encumbrance ratio",1.6085062634373599E-2,0.13531832044553199,0.25279627660772003,0.26974564781652699,0.277062954877214,0.37918266269462497,0.56780677871899399,7108944177698.5498,26103387971302.801,0.37470919527367502,0.31868061856179503,0.25511311462735897,150,0.25511311462735897,0.37470919527367502,1,"Net gains on financial assets and liabilities held for trading to total net operating income17",202012,30,"Net gains on financial assets and liabilities held for trading to total net operating income","MT",0,5,1.5439181810892801E-2,17,"",null,"GR_PFT_21",-4.1554445000000002E-2,-0.111436058,-5.4945964999999999E-2,-0.38815471800000001,-0.211084352,-0.25452793499999998,1.3189484099999999E-2,-0.16179183899999999,-0.10105091200000001,-7.4353797999999999E-2,1.2988481600000001E-2,-3.5251430000000001E-3,-2.8296100000000002E-3,-1.3733822999999999E-2,7.2744784000000002E-3,-1.9273014000000002E-2,-4.9961420000000003E-3,-2.9264730000000002E-3,1.7697552599999999E-2,2.8927607399999999E-2,3.1813271499999997E-2,9.5649162000000006E-3,1.71560914E-2,-6.3232577999999998E-2,-3.0777735000000001E-2,-6.5080412000000004E-2]
["Asset encumbrance ratio201706",201706,88,"Asset encumbrance ratio",1.2943630753058301E-2,0.13480918546078199,0.24210906553124101,0.26590624355935999,0.28039601368762801,0.367136610705456,0.62005144930303002,7019924787913.96,25768285873953.602,0.38294296794792798,0.310431397334687,0.2594743588424,148,0.2594743588424,0.38294296794792798,1,"Net gains on financial assets and liabilities held for trading to total net operating income18",202012,30,"Net gains on financial assets and liabilities held for trading to total net operating income","AT",0,11,8.0836382365582996E-3,18,"",null,"GR_PFT_23",0.561944844,0.609295904,0.55536631950000004,0.54621188570000001,0.56107597980000001,0.59818520929999996,0.53162017520000004,0.51226047910000005,0.51392995630000005,0.51694133289999999,0.49341919969999998,0.48877478949999997,0.49067929560000001,0.51361861919999996,0.55563717000000001,0.54050116820000005,0.52796528850000002,0.53409187840000005,0.49430828469999999,0.49392058179999998,0.50048212670000003,0.49905956359999998,0.3658852742,0.38982572180000002,0.40909783370000002,0.42070422260000001]
["Asset encumbrance ratio201709",201709,88,"Asset encumbrance ratio",1.4480155436761601E-2,0.12882002359341399,0.24767087053687301,0.26483644708227499,0.27849546193686497,0.35521350561725501,0.61508692276446997,6725026130640.2998,25177267073937.398,0.38890283721678798,0.26441902873608297,0.26307146788729802,148,0.26307146788729802,0.38890283721678798,1,"Net gains on financial assets and liabilities held for trading to total net operating income19",202012,30,"Net gains on financial assets and liabilities held for trading to total net operating income","NL",0,6,7.2068959084720403E-3,19,"",null,"GR_PFT_24",-3.841985E-3,-9.7104380000000001E-3,-4.9105939999999999E-3,-3.2107819000000003E-2,-1.7894905999999999E-2,-2.5144012E-2,1.4103773999999999E-3,-1.8116790000000001E-2,-1.1483505E-2,-8.3013089999999998E-3,1.5509011E-3,-4.3045600000000001E-4,-3.51164E-4,-1.71937E-3,9.0020840000000003E-4,-2.3836679999999998E-3,-6.1471599999999996E-4,-3.5521000000000001E-4,1.9293216999999999E-3,3.2022715999999998E-3,3.5566819999999998E-3,1.0538825000000001E-3,1.8742027E-3,-6.6590210000000002E-3,-3.2201119999999998E-3,-6.5716739999999996E-3]
["Asset encumbrance ratio201712",201712,88,"Asset encumbrance ratio",1.49771130838822E-2,0.13428850029668299,0.23655661392056801,0.260815562451857,0.279091837387833,0.35123559940086901,0.63406818571659995,6483858651754.9199,24458481676020,0.39413730445122902,0.25598467236822198,0.26438896300842601,149,0.25598467236822198,0.39413730445122902,1,"Net gains on financial assets and liabilities held for trading to total net operating income20",202012,30,"Net gains on financial assets and liabilities held for trading to total net operating income","EE",0,4,6.3405523821453303E-3,20,"",null,"GR_PFT_25",0.81822608429999999,0.84053076920000003,0.86110121319999999,0.83533002020000002,0.84814922189999997,0.86444273000000005,0.83085426650000005,0.80784841080000003,0.81611674739999995,0.80214275550000003,0.80537427510000004,0.80709841309999997,0.80569822079999998,0.80422764950000003,0.71915619600000003,0.74125199330000002,0.73137622349999998,0.74054927140000004,0.73914027280000005,0.72643399180000001,0.71856784939999996,0.68755390029999996,0.53500949450000002,0.58047491620000002,0.6116780638,0.58846551729999996]
["Asset encumbrance ratio201803",201803,88,"Asset encumbrance ratio",1.43884600628067E-2,0.13963124997097501,0.23524285924416899,0.260609401541746,0.28443575035502699,0.346649067030119,0.58179291118912502,6796988055175.21,25184365550325.602,0.39905654345862301,0.25678067539948002,0.269860989520677,148,0.25678067539948002,0.39905654345862301,1,"Net gains on financial assets and liabilities held for trading to total net operating income21",202012,30,"Net gains on financial assets and liabilities held for trading to total net operating income","GR",0,4,6.3194587714076097E-3,21,"",null,"GR_PFT_26",0.14226854189999999,0.14470112930000001,0.14422995029999999,0.13762380269999999,0.13271052489999999,0.108888782,0.1136131826,0.1166694981,0.12206844510000001,0.1230462309,0.13217700039999999,0.13588846909999999,0.14336480630000001,0.14486520880000001,0.1428509278,0.1478141406,0.15748840150000001,0.15887215769999999,0.1402713545,0.14470299649999999,0.15043874469999999,0.150450207,0.1182989393,0.1236788967,0.13131638870000001,0.1287332883]
["Asset encumbrance ratio201806",201806,88,"Asset encumbrance ratio",2.1238784325654299E-2,0.13676453111900999,0.23915816044692501,0.25828274286312097,0.28033055574121102,0.33840317663059299,0.52518499601799595,6807914206967.3203,25468564573126.898,0.39537421407331103,0.253757836748153,0.26532139864552301,148,0.253757836748153,0.39537421407331103,1,"Net gains on financial assets and liabilities held for trading to total net operating income22",202012,30,"Net gains on financial assets and liabilities held for trading to total net operating income","SE",0,8,2.3055520153245101E-3,22,"",null,"GR_PFT_29",-1.8517830999999998E-2,-4.0892118999999998E-2,-8.2775388000000005E-2,-4.4852110000000002E-3,-1.7393549999999999E-3,2.0603813200000001E-2,7.6602159999999996E-4,-2.0309240999999999E-2,-2.7331656999999999E-2,-2.5081461999999999E-2,2.69422411E-2,2.7291092900000001E-2,1.7394545E-3,1.4722215000000001E-3,-1.5881809999999999E-3,1.3932728300000001E-2,9.6761820999999998E-3,2.0593729099999999E-2,4.0868225799999998E-2,2.83393867E-2,1.37379531E-2,1.7262428600000001E-2,-2.8685314999999999E-2,3.4156E-3,3.1051472E-3,6.3194588000000003E-3]
["Asset encumbrance ratio201809",201809,88,"Asset encumbrance ratio",1.9365263094067699E-2,0.12954346289990301,0.240051669537962,12.004177976735701,0.28736085657418298,0.34899807532619698,0.65810283717723805,6796857060186.5303,25374430407734.102,0.39686247509688999,0.25205200752261903,0.27400318375809901,147,0.25205200752261903,0.39686247509688999,1,"Net gains on financial assets and liabilities held for trading to total net operating income23",202012,30,"Net gains on financial assets and liabilities held for trading to total net operating income","BE",0,8,1.94829926653583E-3,23,"",null,"GR_PFT_41",2.8248890299999999E-2,2.82081273E-2,2.7910816099999999E-2,2.8070159899999999E-2,2.8277018399999999E-2,2.53506345E-2,2.7880800000000001E-2,2.8202082199999999E-2,2.8683784600000001E-2,2.8066180199999999E-2,2.96266536E-2,2.99564236E-2,3.0357347600000001E-2,3.0280400999999998E-2,2.9723790100000001E-2,2.986861E-2,2.9399899699999999E-2,2.89179938E-2,2.8898973599999999E-2,2.88288794E-2,2.8737665799999999E-2,2.8356168300000002E-2,2.68464816E-2,2.64941076E-2,2.62324489E-2,2.59950389E-2]
["Asset encumbrance ratio201812",201812,88,"Asset encumbrance ratio",2.1742352749611699E-2,0.123787087525337,0.23663116321135599,0.25663755708853903,0.27978719489728299,0.33969425172512602,0.52355392695547098,6450521070392.6396,24722647377178.801,0.42177564427917802,0.25282887242614099,0.26162150168697801,146,0.25282887242614099,0.42177564427917802,1,"Net gains on financial assets and liabilities held for trading to total net operating income24",202012,30,"Net gains on financial assets and liabilities held for trading to total net operating income","CY",0,4,-8.6174969160201695E-4,24,1,null,"GR_PFT_43",".",".",".",".",".",".",".",".",".",".",".",".",".",".",1.48799932E-2,1.4253299400000001E-2,1.3855245E-2,1.5648150100000001E-2,1.26717002E-2,1.21305561E-2,1.2753949800000001E-2,1.2985922E-2,2.8139294200000001E-2,3.79881761E-2,2.9112941999999999E-2,3.1104962399999998E-2]
["Asset encumbrance ratio201903",201903,88,"Asset encumbrance ratio",1.42959449218562E-2,0.11786001697160201,0.22340000070785701,0.23997017983379801,0.277029876319562,0.32908287130150599,0.52623175609222095,6871970480639.7197,26129917138215.898,0.39275215372570699,0.24402055373503101,0.26366396578360002,147,0.24402055373503101,0.39275215372570699,1,"Net gains on financial assets and liabilities held for trading to total net operating income25",202012,30,"Net gains on financial assets and liabilities held for trading to total net operating income","PL",0,3,-6.3579445062157298E-3,25,"",null,"GR_SVC_1",0.15255516920000001,0.13881588959999999,0.1259661286,0.10192932389999999,0.1116431807,0.16173905820000001,0.15929813509999999,0.17760475940000001,0.1807099281,0.16952308299999999,0.16769304939999999,0.1715408044,0.17198102039999999,0.17025945470000001,0.15857415959999999,0.15790403580000001,0.15718773859999999,0.15328180220000001,0.1491540851,0.15629308980000001,0.1593450468,0.1635187048,0.14890936530000001,0.14792553410000001,0.14726253480000001,0.15125018100000001]
[{"$f":"+D306&B306","v":"Asset encumbrance ratio201906"},201906,88,"Asset encumbrance ratio",1.3653388140078901E-2,0.11398773551553799,0.21804960160108899,0.24008228262109599,0.27465810343045799,0.32344228274529502,0.52419027346552705,6879365792492.54,26385595629873.301,0.39294524240297801,0.24516894367678899,0.26090307149845399,145,0.24516894367678899,0.39294524240297801,1,"Net gains on financial assets and liabilities held for trading to total net operating income26",202012,30,"Net gains on financial assets and liabilities held for trading to total net operating income","HU",0,4,-6.6542672243471599E-3,26,"",null,"GR_SVC_12",".",".",".",".",".",".",".",".",0.1040825188,9.9654502699999994E-2,0.1030023261,0.1074190668,0.1140391835,0.1128783879,8.8834482100000001E-2,8.8476399600000005E-2,8.6383179700000007E-2,8.1648282399999994E-2,8.4486932700000003E-2,8.9778157499999997E-2,9.2308986900000001E-2,9.3363801799999993E-2,8.3951904800000005E-2,7.6948173199999997E-2,7.7500188600000006E-2,7.7993924399999998E-2]
["Asset encumbrance ratio201909",201909,88,"Asset encumbrance ratio",2.1787630472654699E-2,0.119576303339717,0.21830554987272199,0.239181932060162,0.27474652884391298,0.32097833160512701,0.52008869660224599,7104041440720.2695,27249380080560,0.38440270246172697,0.242381447843627,0.26143059134983698,145,0.242381447843627,0.38440270246172697,1,"Net gains on financial assets and liabilities held for trading to total net operating income27",202012,30,"Net gains on financial assets and liabilities held for trading to total net operating income","PT",0,8,-1.12085775578438E-2,27,"",null,"GR_SVC_13",".",".",".",".",".",".",".",".",0.1116413822,0.10735029209999999,0.1091443334,0.11353938399999999,0.1200932785,0.1195174546,0.11096765610000001,0.1107829109,0.1084227547,0.1025782492,0.1031574759,0.10919323559999999,0.1115907815,0.1120607294,9.9342466599999998E-2,9.3945412800000003E-2,9.3879367399999997E-2,9.3760418400000003E-2]
["Asset encumbrance ratio201912",201912,88,"Asset encumbrance ratio",1.77525643799251E-2,0.114818015088646,0.211656412013766,0.237769435735841,0.27271810631090698,0.324450039760943,0.53839179525130898,6492899032838.4404,25713001603839.898,0.41011710609177698,0.236236571518779,0.25570432786226799,145,0.236236571518779,0.41011710609177698,1,"Net gains on financial assets and liabilities held for trading to total net operating income28",202012,30,"Net gains on financial assets and liabilities held for trading to total net operating income","LV",0,5,-3.10539668288243E-2,28,"",null,"GR_SVC_2",0.15470264989999999,0.14111909349999999,0.12768669320000001,0.1040145052,0.1134244168,0.1630052196,0.16042270080000001,0.17882189609999999,0.18185164039999999,0.1704642361,0.16834424240000001,0.17229782590000001,0.17233040769999999,0.1705515782,0.1644984287,0.1637126515,0.16301407700000001,0.15934575640000001,0.15530694689999999,0.16470052299999999,0.1691743269,0.17398443899999999,0.16498713139999999,0.1646016002,0.16365666030000001,0.1675702929]
["Asset encumbrance ratio202003",202003,88,"Asset encumbrance ratio",2.6665746911185902E-2,0.113124163241221,0.22090945791663699,0.235908808074133,0.26703977038765397,0.30870475616406601,0.56845098598949895,7605693414045.6504,28190903673524.898,0.21185766016622301,0.24684329533949201,0.27232882013446902,128,0.21185766016622301,0.27232882013446902,0,"Net gains on financial assets and liabilities held for trading to total net operating income29",202012,30,"Net gains on financial assets and liabilities held for trading to total net operating income","CZ",0,3,-3.90837530249371E-2,29,"",null,"GR_SVC_29",7.8055280300000002E-2,5.5947217899999999E-2,0.1001026383,7.9278432100000004E-2,8.8317289800000004E-2,0.14868434950000001,0.14854260659999999,0.16560648310000001,0.16856928190000001,0.15738346349999999,0.1584149192,0.16249995240000001,0.16345398310000001,0.16077868209999999,0.12549523830000001,0.126576667,0.12525984309999999,0.12181018590000001,0.1215214005,0.12832758929999999,0.13160859850000001,0.13599444450000001,0.1256884389,0.12223367590000001,0.12253077599999999,0.12687484160000001]
["Asset encumbrance ratio202006",202006,88,"Asset encumbrance ratio",2.4116744483011199E-2,0.128482684251263,0.25164659545576401,0.24841353371303601,0.27443017070425302,0.30617244877974997,0.54334275196016402,7901296667679.2695,28496470525163.398,0.23569497469551801,0.25840212694291098,0.278535560196076,129,0.23569497469551801,0.278535560196076,0,"Net gains on financial assets and liabilities held for trading to total net operating income99",202012,30,"Net gains on financial assets and liabilities held for trading to total net operating income","EU",0,116,4.6508406628676099E-2,99,"",null,"GR_SVC_3",0.15255516920000001,0.13881588959999999,0.1259661286,0.10192932389999999,0.1116431807,0.16173905820000001,0.15929813509999999,0.17760475940000001,0.1807099281,0.16952308299999999,0.16769304939999999,0.1715408044,0.17198102039999999,0.17025945470000001,0.158440788,0.15776964290000001,0.15705271900000001,0.15314607520000001,0.1490523849,0.1562669834,0.15931895660000001,0.1634924073,0.148892047,0.14790785340000001,0.1472446567,0.15123240600000001]
["Asset encumbrance ratio202009",202009,88,"Asset encumbrance ratio",1.95324190243336E-2,0.127190597974601,0.249501642863662,0.252620511286341,0.27852289160100202,0.32798678715394802,0.54801305245472498,8024319154140.2402,28573879226940.898,0.27477898139895401,0.26147103520147602,0.28156347172374901,128,0.26147103520147602,0.28156347172374901,1,"Net gains on financial assets and liabilities held for trading to total net operating income100",202012,30,"Net gains on financial assets and liabilities held for trading to total net operating income","GB",0,26,0.18034576720402701,100,"",null,"HR_AQT_3.1",0.1227644569,0.12306645099999999,0.12933371639999999,0.12818908530000001,0.12274367949999999,0.11290257820000001,0.1124889624,9.79941696E-2,9.4110292200000001E-2,9.0470804099999996E-2,9.8972534099999995E-2,9.2863246799999993E-2,8.3940209799999999E-2,7.3358821800000001E-2,7.6273046999999997E-2,7.3561994300000003E-2,6.5644850300000002E-2,6.1843589400000003E-2,6.0625661499999997E-2,5.3632130299999997E-2,4.1986125700000002E-2,3.8425575599999998E-2,3.7001940800000001E-2,3.8412041700000003E-2,3.9626886700000002E-2,3.8745755899999998E-2]
["Asset encumbrance ratio202012",202012,88,"Asset encumbrance ratio",2.2444009831889E-2,0.119723248793473,0.249823931725799,0.25222430505750099,0.27899189081099901,0.32178027798033398,0.54231147151373804,7839477116275.4805,27947854969112.199,0.30113365161329803,0.25637523492797498,0.28195249458240501,128,0.25637523492797498,0.30113365161329803,1,"Loans and advances-to-deposits ratio for households and non-financial corporations1",202012,87,"Loans and advances-to-deposits ratio for households and non-financial corporations","DK",0,5,2.9353625116608302,1,"",null,"HR_AQT_3.2",0.13519445059999999,0.1367609162,0.14526325779999999,0.14433547369999999,0.13622422740000001,0.12511884240000001,0.1252408226,0.108326429,0.1049114126,0.10108099,0.10436261049999999,9.7818548899999996E-2,8.8983364800000006E-2,7.5143218900000003E-2,7.9077612199999994E-2,7.5871417900000002E-2,6.6974615700000004E-2,6.37269055E-2,6.2935321299999999E-2,6.0861862400000001E-2,4.7585223599999997E-2,4.3319146000000003E-2,4.16758832E-2,4.3015447800000002E-2,4.4695342399999997E-2,4.3500259899999998E-2]
["Non-performing debt instruments (loans and advances & debt securities) other than held for trading to total gross debt instruments (NPE rati201409",201409,92,"Non-performing debt instruments (loans and advances & debt securities) other than held for trading to total gross debt instruments (NPE rati",1.5798174292790701E-4,2.2603296083408199E-2,5.2685715452248101E-2,9.3112902581627202E-2,5.7037512053324302E-2,0.14030809697681601,0.28564193962360901,982634665721.08606,15704134087033.5,0.24409435747309299,0.11707888288386099,4.37398840080825E-2,121,4.37398840080825E-2,0.24409435747309299,0,"Loans and advances-to-deposits ratio for households and non-financial corporations2",202012,87,"Loans and advances-to-deposits ratio for households and non-financial corporations","FI",0,7,1.8509421452286901,2,"",null,"HR_AQT_31",6.1063937899999997E-2,5.8618476500000002E-2,5.8844056800000002E-2,5.4693095599999998E-2,4.9865763299999998E-2,4.5256397300000001E-2,4.3417203600000003E-2,3.7364932300000001E-2,3.3888687899999999E-2,3.0892160700000001E-2,3.5673829499999997E-2,3.7596505699999998E-2,3.3903058600000001E-2,2.8409114900000001E-2,1.76583004E-2,1.6562205199999999E-2,1.4054870699999999E-2,1.4933875399999999E-2,1.47174642E-2,1.19364029E-2,9.2371794999999996E-3,8.5462986000000001E-3,8.3404329999999995E-3,8.2695743000000006E-3,7.5976869999999997E-3,8.4678021999999992E-3]
["Non-performing debt instruments (loans and advances & debt securities) other than held for trading to total gross debt instruments (NPE rati201412",201412,92,"Non-performing debt instruments (loans and advances & debt securities) other than held for trading to total gross debt instruments (NPE rati",2.5430116060407102E-4,1.96292258841523E-2,4.6501309665662002E-2,8.4884913593340494E-2,5.51754087496691E-2,0.115173655972074,0.265572218116708,960640796204.46204,15553308954346,0.178554228743771,0.11731674241896201,4.1646293615429701E-2,129,4.1646293615429701E-2,0.178554228743771,0,"Loans and advances-to-deposits ratio for households and non-financial corporations3",202012,87,"Loans and advances-to-deposits ratio for households and non-financial corporations","SE",0,8,1.8169935102255701,3,"",null,"HR_AQT_41.2",0.5121030191,0.52915807120000002,0.53623940420000005,0.54890348570000003,0.56150681540000003,0.57767559229999998,0.58888320839999997,0.59549146689999999,0.61429364610000003,0.63299585859999996,0.62990974300000002,0.57716997849999996,0.57899732230000001,0.58868731050000001,0.58210841719999995,0.58896395300000004,0.58526386340000003,0.57688426839999996,0.58068128480000003,0.55339236120000002,0.63543667029999995,0.65837829319999996,0.67811870799999996,0.67484730810000004,0.67516264179999996,0.62872757820000003]
["Non-performing debt instruments (loans and advances & debt securities) other than held for trading to total gross debt instruments (NPE rati201503",201503,92,"Non-performing debt instruments (loans and advances & debt securities) other than held for trading to total gross debt instruments (NPE rati",1.83441879281276E-4,1.9194136493172299E-2,4.4685202995673398E-2,8.4778728468953193E-2,5.2866897068067402E-2,0.11898224200874399,0.26561023904849002,969624080767.70898,16173366870081.301,0.17407993309535399,0.11600893984219,3.95795111387309E-2,128,3.95795111387309E-2,0.17407993309535399,0,"Loans and advances-to-deposits ratio for households and non-financial corporations4",202012,87,"Loans and advances-to-deposits ratio for households and non-financial corporations","NO",0,4,1.7580815003253101,4,"",null,"HR_AQT_42.2",5.7518413599999998E-2,5.75288012E-2,6.0139946800000003E-2,6.3086597499999994E-2,6.0793933500000001E-2,5.0740247400000001E-2,5.2843451E-2,5.0009655799999997E-2,4.9070413600000001E-2,5.1462136300000003E-2,5.1821951900000003E-2,4.8667326400000002E-2,5.0478645799999999E-2,4.4694354999999998E-2,4.3144434600000003E-2,4.1922950899999999E-2,3.3090493700000001E-2,3.04110899E-2,2.9019587699999998E-2,2.8918342999999999E-2,1.9131848999999999E-2,1.82708922E-2,1.7085540699999999E-2,1.8961755899999998E-2,2.0763400000000001E-2,2.20803161E-2]
["Non-performing debt instruments (loans and advances & debt securities) other than held for trading to total gross debt instruments (NPE rati201506",201506,92,"Non-performing debt instruments (loans and advances & debt securities) other than held for trading to total gross debt instruments (NPE rati",5.8038343534132903E-4,1.88956197953749E-2,4.5494815855719101E-2,8.5224697066693098E-2,5.1487257275078399E-2,0.11882390728598401,0.274517912820815,950880051922.30603,16209583698555.801,0.17535310664422399,0.117369663328627,3.8137742798625703E-2,126,3.8137742798625703E-2,0.17535310664422399,0,"Loans and advances-to-deposits ratio for households and non-financial corporations5",202012,87,"Loans and advances-to-deposits ratio for households and non-financial corporations","IS",0,3,1.7537330297400699,5,"",null,"HR_FND_32",0.87757401859999995,0.87194988330000001,0.86700145930000005,0.87611189810000001,0.81620351280000003,0.80589069459999996,0.80984956640000005,0.80002026780000002,0.76574710410000002,0.7552245273,0.7751751617,0.77746752640000005,0.74842012499999999,0.75574902020000001,0.76270577110000004,0.77603805000000003,0.74809363169999998,0.75026738289999995,0.77047322870000001,0.77520400540000001,0.73432852469999998,0.73777039300000002,0.73380645389999999,0.70207691059999999,0.68282941730000002,0.67632438070000001]
["Non-performing debt instruments (loans and advances & debt securities) other than held for trading to total gross debt instruments (NPE rati201509",201509,92,"Non-performing debt instruments (loans and advances & debt securities) other than held for trading to total gross debt instruments (NPE rati",4.6972279251415998E-4,1.7636931926791999E-2,4.4013516280734903E-2,8.5186282913262898E-2,5.0302470053840601E-2,0.123243695857366,0.29295237831180398,937743632319.49304,16339479746570.301,0.17411924695227299,0.119054559130143,3.6680962342590197E-2,126,3.6680962342590197E-2,0.17411924695227299,0,"Loans and advances-to-deposits ratio for households and non-financial corporations6",202012,87,"Loans and advances-to-deposits ratio for households and non-financial corporations","LU",0,11,1.5144998695456,6,"",null,"HR_FND_33",".",6.7121497899999993E-2,5.8926380600000001E-2,5.5209485799999999E-2,6.7486225600000005E-2,0.10433746939999999,0.1073653215,0.1016373614,9.5420870800000002E-2,0.10367030319999999,0.10142019789999999,9.4819557799999996E-2,9.2601027500000002E-2,8.1108732899999994E-2,8.4937834300000001E-2,8.3397143500000007E-2,7.9712392899999998E-2,8.6151571299999993E-2,0.10103274399999999,0.10091804,9.3053232400000005E-2,9.3514576200000005E-2,7.8993986099999997E-2,7.9773611800000005E-2,7.8793713599999995E-2,8.1043803799999994E-2]
["Non-performing debt instruments (loans and advances & debt securities) other than held for trading to total gross debt instruments (NPE rati201512",201512,92,"Non-performing debt instruments (loans and advances & debt securities) other than held for trading to total gross debt instruments (NPE rati",1.4995032180128199E-3,1.8149103316964999E-2,4.0093194190208202E-2,8.27384085936574E-2,4.89571557970222E-2,0.12030972183774601,0.31461151435765899,909748357107.98999,16097753187807.1,0.158653693060234,0.11019853561182399,3.6021447857767702E-2,128,3.6021447857767702E-2,0.158653693060234,0,"Loans and advances-to-deposits ratio for households and non-financial corporations7",202012,87,"Loans and advances-to-deposits ratio for households and non-financial corporations","DE",0,23,1.22076696321719,7,"",null,"HR_LIQ_17",".",".",".",".",".",".",".",".",1.6492232113,1.9686564915,1.6298401429,1.4821652383999999,1.7556859356000001,1.7346911318,1.720444581,1.6285314644,1.7647239352999999,1.4910598535999999,1.5530605684000001,1.6150160988,1.789998078,1.7156108965000001,1.8066597793000001,1.8383284519,1.8537052867999999,1.7635342572999999]
["Non-performing debt instruments (loans and advances & debt securities) other than held for trading to total gross debt instruments (NPE rati201603",201603,92,"Non-performing debt instruments (loans and advances & debt securities) other than held for trading to total gross debt instruments (NPE rati",6.4749547407542301E-4,1.7015544995264201E-2,3.7838020768058103E-2,8.0686793126179407E-2,4.8045534028164499E-2,0.11279352787182,0.31067922593054698,899893335775.35303,16299675628405.1,0.155925423088321,0.106613706873485,3.5381848714655002E-2,132,3.5381848714655002E-2,0.155925423088321,0,"Loans and advances-to-deposits ratio for households and non-financial corporations8",202012,87,"Loans and advances-to-deposits ratio for households and non-financial corporations","NL",0,6,1.1311367095415099,8,"",null,"HR_PFT_21",6.9545047799999996E-2,6.8864652799999995E-2,5.8673089900000003E-2,6.6536044200000005E-2,-3.1042261000000002E-2,-1.4349344999999999E-2,0.11476738509999999,0.1252961249,0.1207918204,0.1077356402,3.99029615E-2,5.0315903000000002E-2,6.6857382899999998E-2,6.8592100599999997E-2,0.1082862471,0.115856903,0.119160091,0.1093310815,9.9389715300000001E-2,0.11589700510000001,0.10927894909999999,9.8208825E-2,8.1736161799999998E-2,5.8862921700000001E-2,6.1036186200000002E-2,5.24614048E-2]
["Non-performing debt instruments (loans and advances & debt securities) other than held for trading to total gross debt instruments (NPE rati201606",201606,92,"Non-performing debt instruments (loans and advances & debt securities) other than held for trading to total gross debt instruments (NPE rati",2.9771471958228398E-4,1.62436036053763E-2,3.6424389272141602E-2,7.9211135260180296E-2,4.65191592246866E-2,9.9494636482820198E-2,0.316631809773538,885155998000.41895,16561623344903.5,0.15231424608061001,0.104456872474479,3.41592385777513E-2,133,3.41592385777513E-2,0.15231424608061001,0,"Loans and advances-to-deposits ratio for households and non-financial corporations9",202012,87,"Loans and advances-to-deposits ratio for households and non-financial corporations","FR",0,13,1.06240468259918,9,"",null,"HR_PFT_23",0.4517629373,0.4649845473,0.50163568670000003,0.48433241570000002,0.46887366270000003,0.52811177460000003,0.52859474299999998,0.44595662600000002,0.43524124120000002,0.4528737558,0.49605071309999998,0.48015873980000001,0.4758509883,0.48058531700000001,0.48269666630000002,0.45842591059999999,0.45894622709999999,0.46323291329999999,0.45543748880000001,0.44686707419999999,0.44902514799999999,0.46043058819999999,0.5001968215,0.52261261609999998,0.52327186660000002,0.53076507740000001]
["Non-performing debt instruments (loans and advances & debt securities) other than held for trading to total gross debt instruments (NPE rati201609",201609,92,"Non-performing debt instruments (loans and advances & debt securities) other than held for trading to total gross debt instruments (NPE rati",3.7865348761084198E-5,1.55232545923855E-2,3.7124692474958899E-2,7.8567471449470905E-2,4.5791716453807502E-2,0.101871166267595,0.31055321350918302,868342915234.09497,16744698199219.301,0.145515572640739,0.10537384866789699,3.3463979976858703E-2,132,3.3463979976858703E-2,0.145515572640739,0,"Loans and advances-to-deposits ratio for households and non-financial corporations10",202012,87,"Loans and advances-to-deposits ratio for households and non-financial corporations","SK",0,3,1.05355283240345,10,"",null,"HR_PFT_24",1.03072357E-2,1.04772858E-2,8.9147393999999998E-3,9.9866801000000009E-3,-4.351527E-3,-2.0601930000000001E-3,1.59597564E-2,1.76522733E-2,1.70701176E-2,1.5321437199999999E-2,6.0050284000000001E-3,7.4224130000000001E-3,9.6856406999999995E-3,1.0062775600000001E-2,1.55257842E-2,1.6481570300000001E-2,1.7018202100000001E-2,1.5532814400000001E-2,1.3980856E-2,1.5934987099999999E-2,1.5063513299999999E-2,1.35778953E-2,1.11110959E-2,7.9679968999999996E-3,8.3482806000000007E-3,7.1413190000000001E-3]
["Non-performing debt instruments (loans and advances & debt securities) other than held for trading to total gross debt instruments (NPE rati201612",201612,92,"Non-performing debt instruments (loans and advances & debt securities) other than held for trading to total gross debt instruments (NPE rati",5.5522957778701897E-5,1.35987728875259E-2,3.1689081496582998E-2,7.5771218623835596E-2,4.3802830238393299E-2,8.9022461229300798E-2,0.31261550678151701,823923475356.82996,16592122492059.5,0.142335469846263,0.10183577247002901,3.15827399687926E-2,134,3.15827399687926E-2,0.142335469846263,0,"Loans and advances-to-deposits ratio for households and non-financial corporations11",202012,87,"Loans and advances-to-deposits ratio for households and non-financial corporations","ES",0,15,1.04565400240151,11,"",null,"HR_PFT_25",0.67551787220000004,0.67580131519999997,0.76158368629999995,0.71380206540000002,0.69844185859999997,0.75516742650000002,0.78535255709999996,0.66068702779999999,0.64978815489999997,0.6449620693,0.70088014040000002,0.67827166360000002,0.66112865639999996,0.65583632079999998,0.68680038349999994,0.66110685530000002,0.64740945029999997,0.64164842369999997,0.64910806659999998,0.63912316579999995,0.63566404330000004,0.64790541189999995,0.68186581020000003,0.64365115699999997,0.64316343190000003,0.64902342000000002]
[{"$f":"+D323&B323","v":"Non-performing debt instruments (loans and advances & debt securities) other than held for trading to total gross debt instruments (NPE rati201703"},201703,92,"Non-performing debt instruments (loans and advances & debt securities) other than held for trading to total gross debt instruments (NPE rati",4.8704034482144197E-5,1.3514101784923099E-2,2.9812611613195698E-2,7.3268419404482796E-2,4.1797862767229403E-2,8.5316219199761206E-2,0.31364006962699198,819295528541.99194,17127818658014.4,0.139563421114623,9.7259842963694706E-2,3.0531322857799598E-2,130,{"$f":"MIN(N323:P323)","v":3.0531322857799598E-2},{"$f":"MAX(N323:P323)","v":0.139563421114623},{"$f":"IF(OR(G323<R323,G323>S323),1,0)","v":1},{"$f":"CONCATENATE(X323,AC323)","v":"Loans and advances-to-deposits ratio for households and non-financial corporations12"},202012,87,"Loans and advances-to-deposits ratio for households and non-financial corporations","EE",0,4,0.99205888315291502,12,"",null,"HR_PFT_26",0.25831709209999998,0.25797787649999998,0.26193684909999998,0.25722054119999999,0.26196655219999998,0.28456074009999999,0.27626124819999998,0.243534838,0.25441816989999999,0.25109281490000002,0.26874397010000001,0.26909311139999997,0.27702558350000001,0.27486264669999999,0.27721376790000002,0.2819187044,0.28907527500000002,0.2831680614,0.28839721019999998,0.27815511980000002,0.28745998010000001,0.29084215489999998,0.28389194270000001,0.26479768269999998,0.27158035409999998,0.28096262950000001]
["Non-performing debt instruments (loans and advances & debt securities) other than held for trading to total gross debt instruments (NPE rati201706",201706,92,"Non-performing debt instruments (loans and advances & debt securities) other than held for trading to total gross debt instruments (NPE rati",4.4451451663178597E-5,1.28457675947161E-2,2.8859361864292301E-2,6.6171632956473603E-2,3.8885298744481003E-2,7.4343284107108595E-2,0.30464867654267103,787072358205.13196,17253675107131.4,0.126992416237108,8.44215547571492E-2,2.96013614574368E-2,128,2.96013614574368E-2,0.126992416237108,1,"Loans and advances-to-deposits ratio for households and non-financial corporations13",202012,87,"Loans and advances-to-deposits ratio for households and non-financial corporations","IT",0,16,0.97446161088979999,13,"",null,"HR_PFT_29",2.4207102800000001E-2,1.8433844599999999E-2,-0.15463026599999999,-5.4174849999999997E-2,-1.7557070000000001E-2,-8.0809130000000003E-3,8.3390651299999993E-2,5.1464332000000002E-2,4.6832402400000001E-2,5.3974068299999997E-2,1.4051786E-3,-2.7510270000000001E-3,-6.3987099999999997E-4,5.6721489E-3,3.9377655300000002E-2,5.9837905099999998E-2,6.2932756199999995E-2,6.6423789699999999E-2,7.14817809E-2,6.4123104299999997E-2,7.8190083100000002E-2,7.0748260499999993E-2,0.1421014347,7.90330068E-2,6.1099510099999997E-2,4.8530094900000001E-2]
["Non-performing debt instruments (loans and advances & debt securities) other than held for trading to total gross debt instruments (NPE rati201709",201709,92,"Non-performing debt instruments (loans and advances & debt securities) other than held for trading to total gross debt instruments (NPE rati",3.1155785134058598E-4,1.2457597487522299E-2,2.7757936352805899E-2,6.4707383429319407E-2,3.7154290889386599E-2,7.0789108767743206E-2,0.303512731533572,751368572674.19604,17281011786934,0.121519726131936,8.2399254669337299E-2,2.8184308797884201E-2,128,2.8184308797884201E-2,0.121519726131936,1,"Loans and advances-to-deposits ratio for households and non-financial corporations14",202012,87,"Loans and advances-to-deposits ratio for households and non-financial corporations","AT",0,11,0.97059126870401902,14,"",null,"HR_PFT_41",2.9240899099999999E-2,2.96316563E-2,3.0042559100000001E-2,3.04928449E-2,3.0476433599999998E-2,3.09881859E-2,3.1447240799999998E-2,3.16552415E-2,3.1377388300000003E-2,3.1080354899999999E-2,3.1622407800000002E-2,3.1570499199999998E-2,3.0909812599999999E-2,3.1093811700000001E-2,2.8431797299999999E-2,2.8923036100000001E-2,2.8285884399999999E-2,2.7855507599999999E-2,2.6624839099999999E-2,2.6795273099999999E-2,2.62587177E-2,2.60085873E-2,2.3631757600000001E-2,2.31169762E-2,2.29669261E-2,2.2629225400000001E-2]
["Non-performing debt instruments (loans and advances & debt securities) other than held for trading to total gross debt instruments (NPE rati201712",201712,92,"Non-performing debt instruments (loans and advances & debt securities) other than held for trading to total gross debt instruments (NPE rati",5.5267974392638202E-5,1.20579668547802E-2,2.64224730844176E-2,6.01169061884477E-2,3.5705957820909899E-2,6.3986283573864905E-2,0.28266401668442798,719059186774.20703,17152068105189.6,9.9936267497468895E-2,7.8584758362513205E-2,2.7373315307957599E-2,129,2.7373315307957599E-2,9.9936267497468895E-2,1,"Loans and advances-to-deposits ratio for households and non-financial corporations15",202012,87,"Loans and advances-to-deposits ratio for households and non-financial corporations","BE",0,8,0.96546127593265796,15,"",null,"HR_PFT_43",".",".",".",".",".",".",".",".",".",".",".",".",".",".",1.5892048799999999E-2,1.0337136E-2,1.0080320199999999E-2,1.0237877100000001E-2,1.1745006699999999E-2,9.3982231999999999E-3,9.5977851000000006E-3,1.0966187000000001E-2,1.41767592E-2,1.4318137099999999E-2,1.3125925E-2,1.3244896000000001E-2]
["Non-performing debt instruments (loans and advances & debt securities) other than held for trading to total gross debt instruments (NPE rati201803",201803,92,"Non-performing debt instruments (loans and advances & debt securities) other than held for trading to total gross debt instruments (NPE rati",7.3995949561260295E-5,1.11090737895061E-2,2.5363047391463899E-2,5.8079435379724702E-2,3.3810712093026898E-2,6.0029111893022499E-2,0.28218693388882099,699797624157.23303,17486219551466.9,9.2470042132133501E-2,7.4738218080663596E-2,2.6009817129368201E-2,128,2.6009817129368201E-2,9.2470042132133501E-2,1,"Loans and advances-to-deposits ratio for households and non-financial corporations16",202012,87,"Loans and advances-to-deposits ratio for households and non-financial corporations","PL",0,3,0.85038252179021701,16,"",null,"HR_SVC_1",0.20304237059999999,0.20877787619999999,0.21017459090000001,0.20867673619999999,0.18216539770000001,0.19240851940000001,0.19649937519999999,0.1967453726,0.19426375130000001,0.20576134879999999,0.2073075959,0.2065894875,0.19727286960000001,0.21248417519999999,0.20336055519999999,0.20064370070000001,0.197188642,0.2105841011,0.2056613045,0.20537519879999999,0.20529862669999999,0.22887400329999999,0.22114077300000001,0.2348376663,0.23748086130000001,0.24060347609999999]
["Non-performing debt instruments (loans and advances & debt securities) other than held for trading to total gross debt instruments (NPE rati201806",201806,92,"Non-performing debt instruments (loans and advances & debt securities) other than held for trading to total gross debt instruments (NPE rati",1.39221419064846E-4,1.1275564398001E-2,2.4330821168488202E-2,5.38103403106929E-2,3.1514201549710699E-2,5.1027914432535001E-2,0.23872217595815701,656420539349.80505,17592079846691.9,8.6124052260452305E-2,6.9465918061051998E-2,2.43294697318319E-2,128,2.43294697318319E-2,8.6124052260452305E-2,{"$f":"IF(OR(G328<R328,G328>S328),1,0)","v":0},"Loans and advances-to-deposits ratio for households and non-financial corporations17",202012,87,"Loans and advances-to-deposits ratio for households and non-financial corporations","IE",0,8,0.81874184786099602,17,"",null,"HR_SVC_12",".",".",".",".",".",".",".",".",0.1234130019,0.1283958234,0.13115539209999999,0.13040315,0.1220215336,0.12809735250000001,0.1255531198,0.1226005261,0.1191760489,0.1207391892,0.1164153345,0.11661608399999999,0.11442171280000001,0.124198056,0.12034506339999999,0.1192742574,0.119339009,0.1180895497]
["Non-performing debt instruments (loans and advances & debt securities) other than held for trading to total gross debt instruments (NPE rati201809",201809,92,"Non-performing debt instruments (loans and advances & debt securities) other than held for trading to total gross debt instruments (NPE rati",2.56635748557064E-4,1.0137446254720101E-2,2.3358713739022301E-2,4.8738737631564999E-2,3.00288298550671E-2,4.8867667890827499E-2,0.20803548812186201,633315623461.08801,17681729844285.801,5.2036677502943197E-2,6.6702982919995796E-2,2.33713059102157E-2,126,2.33713059102157E-2,6.6702982919995796E-2,1,"Loans and advances-to-deposits ratio for households and non-financial corporations18",202012,87,"Loans and advances-to-deposits ratio for households and non-financial corporations","PT",0,8,0.79435490225169703,18,"",null,"HR_SVC_13",".",".",".",".",".",".",".",".",0.1217642454,0.12676532369999999,0.12952135719999999,0.12883842740000001,0.1203732213,0.1264011072,0.12546704929999999,0.1225134618,0.11908509,0.1207391892,0.1186132597,0.11880651859999999,0.1165613315,0.1263132441,0.1220479517,0.12252835099999999,0.1222769618,0.12162094750000001]
["Non-performing debt instruments (loans and advances & debt securities) other than held for trading to total gross debt instruments (NPE rati201812",201812,92,"Non-performing debt instruments (loans and advances & debt securities) other than held for trading to total gross debt instruments (NPE rati",4.6520892384845699E-4,1.0327806981487501E-2,2.3102934711418902E-2,4.4193744354038701E-2,2.8037971067987201E-2,4.24043863752019E-2,0.177750282979491,583168322506.19397,17496950257879.4,4.8925120214871401E-2,5.9232974806814699E-2,2.2244434270076399E-2,127,2.2244434270076399E-2,5.9232974806814699E-2,0,"Loans and advances-to-deposits ratio for households and non-financial corporations19",202012,87,"Loans and advances-to-deposits ratio for households and non-financial corporations","GR",0,4,0.77919925419401004,19,"",null,"HR_SVC_2",0.20968936969999999,0.21516004389999999,0.21875097660000001,0.2172597765,0.1900102192,0.20025354040000001,0.20419818149999999,0.20416209069999999,0.20125050750000001,0.2126050739,0.2138096186,0.2126178967,0.20289863250000001,0.21921607430000001,0.20957997249999999,0.20655710960000001,0.20277251760000001,0.21600766229999999,0.21070337659999999,0.21002982179999999,0.2098056126,0.23317716080000001,0.22515033649999999,0.23880421160000001,0.2411424717,0.24392220370000001]
["Non-performing debt instruments (loans and advances & debt securities) other than held for trading to total gross debt instruments (NPE rati201903",201903,92,"Non-performing debt instruments (loans and advances & debt securities) other than held for trading to total gross debt instruments (NPE rati",5.2044523140256402E-4,1.07876226168297E-2,2.4282155850352701E-2,4.3351532599770898E-2,2.7214993214643102E-2,4.1769442900853701E-2,0.15466203541369999,583749838543.68298,18129223389950.801,4.6757743095451297E-2,6.0674596138239403E-2,2.1247248245929901E-2,126,2.1247248245929901E-2,6.0674596138239403E-2,0,"Loans and advances-to-deposits ratio for households and non-financial corporations20",202012,87,"Loans and advances-to-deposits ratio for households and non-financial corporations","CZ",0,3,0.77198314969231197,20,"",null,"HR_SVC_29",0.2060626166,0.21144494690000001,0.21328326289999999,0.2113976336,0.18463954169999999,0.19573973280000001,0.20012773170000001,0.199298527,0.19726452659999999,0.20879778909999999,0.21031777970000001,0.20947472910000001,0.20047883059999999,0.21589288149999999,0.20438149410000001,0.20086381889999999,0.1929452281,0.20620054660000001,0.2018503633,0.20158869830000001,0.2015301317,0.2250413762,0.21805528069999999,0.22860087500000001,0.23144051090000001,0.2331120189]
["Non-performing debt instruments (loans and advances & debt securities) other than held for trading to total gross debt instruments (NPE rati201906",201906,92,"Non-performing debt instruments (loans and advances & debt securities) other than held for trading to total gross debt instruments (NPE rati",7.2143672627009495E-4,1.0782308563681601E-2,2.3426581662074099E-2,4.0922604573555101E-2,2.6258945042945799E-2,3.8598497978237799E-2,0.141056291140679,559337606794.49402,18109224471508.898,4.3102719253507601E-2,5.8552765546117103E-2,2.0590130762016299E-2,125,2.0590130762016299E-2,5.8552765546117103E-2,0,"Loans and advances-to-deposits ratio for households and non-financial corporations21",202012,87,"Loans and advances-to-deposits ratio for households and non-financial corporations","HU",0,4,0.74541472433559497,21,"",null,"HR_SVC_3",0.20304237059999999,0.20861720049999999,0.21017459090000001,0.20867673619999999,0.18216539770000001,0.19240851940000001,0.19649937519999999,0.1967453726,0.19426375130000001,0.20576134879999999,0.2073075959,0.2065894875,0.19727286960000001,0.21248417519999999,0.20336055519999999,0.20064370070000001,0.197188642,0.2105841011,0.2056613045,0.20537519879999999,0.20529862669999999,0.22887400329999999,0.22114077300000001,0.2348376663,0.23748086130000001,0.24060347609999999]
["Non-performing debt instruments (loans and advances & debt securities) other than held for trading to total gross debt instruments (NPE rati201909",201909,92,"Non-performing debt instruments (loans and advances & debt securities) other than held for trading to total gross debt instruments (NPE rati",6.6337431576969099E-4,1.07272827651087E-2,2.30531794586359E-2,3.9627464322585702E-2,2.5195147617297901E-2,3.6483511531737199E-2,0.14917395946408701,541733328894.57397,18292976642115.699,4.3216054973633199E-2,5.5327802724632301E-2,1.9901503925157299E-2,125,1.9901503925157299E-2,5.5327802724632301E-2,0,"Loans and advances-to-deposits ratio for households and non-financial corporations22",202012,87,"Loans and advances-to-deposits ratio for households and non-financial corporations","LV",0,5,0.68447145797287001,22,1,null,"HU_AQT_3.1",0.17127317929999999,0.1639750375,0.13777729399999999,0.1304741163,0.1276642342,0.1102768651,0.10696509880000001,0.1058275845,9.7377611500000003E-2,8.7413686500000004E-2,8.7737310700000001E-2,8.0186131100000002E-2,7.4943537099999999E-2,6.5921317399999999E-2,6.1165513099999999E-2,5.72948203E-2,5.0908692200000001E-2,4.4991504000000002E-2,4.37498209E-2,4.2435014299999997E-2,3.89935E-2,3.5067549599999998E-2,3.4346252600000002E-2,3.4411159599999998E-2,3.2613810999999999E-2,3.1536524500000003E-2]
["Non-performing debt instruments (loans and advances & debt securities) other than held for trading to total gross debt instruments (NPE rati201912",201912,92,"Non-performing debt instruments (loans and advances & debt securities) other than held for trading to total gross debt instruments (NPE rati",1.2114164322234401E-3,1.07544713456504E-2,2.1585212794893199E-2,3.6101022447543797E-2,2.4033097595486601E-2,3.3870365662565502E-2,0.13600108808758599,509412906936.104,18054279645301.801,3.9907393240746498E-2,4.9150405900199298E-2,1.9468663933719502E-2,126,1.9468663933719502E-2,4.9150405900199298E-2,0,"Loans and advances-to-deposits ratio for households and non-financial corporations23",202012,87,"Loans and advances-to-deposits ratio for households and non-financial corporations","HR",0,3,0.676324380700698,23,"",null,"HU_AQT_3.2",0.2005080219,0.19377325209999999,0.1655757796,0.1594970289,0.15966768719999999,0.14000501849999999,0.13810716149999999,0.13937737559999999,0.12805559620000001,0.1149276754,0.1166933975,0.1076258073,0.10065031050000001,8.90292892E-2,8.3290878400000004E-2,7.6431089899999999E-2,6.8651839000000006E-2,6.0291222499999998E-2,5.8771973800000002E-2,5.6365612500000002E-2,5.1520075399999997E-2,4.5655016299999997E-2,4.4631759200000003E-2,4.4219517999999999E-2,4.2125120699999997E-2,4.03936077E-2]
["Non-performing debt instruments (loans and advances & debt securities) other than held for trading to total gross debt instruments (NPE rati202003",202003,92,"Non-performing debt instruments (loans and advances & debt securities) other than held for trading to total gross debt instruments (NPE rati",1.1048747329183101E-3,1.1743268104703899E-2,2.12322026299183E-2,3.7020689695348899E-2,2.5979059444961899E-2,3.4978253322553401E-2,0.171166183864528,506084856517.61798,18957019203551.898,3.9111218989054099E-2,4.9654648860645099E-2,2.0829365911364799E-2,117,2.0829365911364799E-2,4.9654648860645099E-2,0,"Loans and advances-to-deposits ratio for households and non-financial corporations24",202012,87,"Loans and advances-to-deposits ratio for households and non-financial corporations","BG",0,4,0.66945481043761201,24,"",null,"HU_AQT_31",6.2139481400000002E-2,6.0827691500000003E-2,5.0536090499999999E-2,4.8438333100000001E-2,4.4571254400000003E-2,3.6814236799999997E-2,3.36523086E-2,3.3377683700000001E-2,3.08489375E-2,2.7459738399999999E-2,2.6831832900000002E-2,2.5165261599999999E-2,2.37563545E-2,2.1702240599999999E-2,1.2201438199999999E-2,1.11421273E-2,1.0339013399999999E-2,9.3374552000000006E-3,9.3638834000000001E-3,8.7179097999999997E-3,7.9007569999999996E-3,7.0178308999999999E-3,7.2696845E-3,7.5259808000000001E-3,7.1392338000000003E-3,6.8717604000000003E-3]
["Non-performing debt instruments (loans and advances & debt securities) other than held for trading to total gross debt instruments (NPE rati202006",202006,92,"Non-performing debt instruments (loans and advances & debt securities) other than held for trading to total gross debt instruments (NPE rati",1.19057464732572E-3,1.168951326967E-2,2.0659083356623999E-2,3.4229901925652E-2,2.50675507743022E-2,3.4008504623985601E-2,0.113294722184641,509066039663.84399,19826026825332.602,3.63935900567205E-2,4.5452372593153101E-2,2.0628251024015099E-2,117,2.0628251024015099E-2,4.5452372593153101E-2,0,"Loans and advances-to-deposits ratio for households and non-financial corporations25",202012,87,"Loans and advances-to-deposits ratio for households and non-financial corporations","LT",0,4,0.62905074858543097,25,"",null,"HU_AQT_41.2",0.60548947009999998,0.56960463890000002,0.54893366830000001,0.55541625809999995,0.57853168659999998,0.59725123530000002,0.61904080750000001,0.61655394559999999,0.61955742920000001,0.64199022049999999,0.65393560760000002,0.64569880120000001,0.64030833070000004,0.61819780219999998,0.66298808009999999,0.66153091100000005,0.67301282090000003,0.67607835199999999,0.65828385379999999,0.66450993599999997,0.66804530510000004,0.66467644749999999,0.65103687460000004,0.66448914049999996,0.65483057239999998,0.62837513190000005]
["Non-performing debt instruments (loans and advances & debt securities) other than held for trading to total gross debt instruments (NPE rati202009",202009,92,"Non-performing debt instruments (loans and advances & debt securities) other than held for trading to total gross debt instruments (NPE rati",1.45208645427818E-3,1.0772317393193899E-2,2.0832814794379199E-2,3.2017610806336798E-2,2.41691997474036E-2,3.0531724524384501E-2,0.10539863354555,498014351371.41101,19959253288541.898,3.4236883387812597E-2,4.1391532626647902E-2,2.0526546588616801E-2,116,2.0526546588616801E-2,4.1391532626647902E-2,0,"Loans and advances-to-deposits ratio for households and non-financial corporations26",202012,87,"Loans and advances-to-deposits ratio for households and non-financial corporations","SI",0,6,0.60813633519655097,26,"",null,"HU_AQT_42.2",7.4362865299999997E-2,6.3833713599999994E-2,6.4895693199999993E-2,6.6000560099999994E-2,6.4743858099999996E-2,6.3903460300000006E-2,6.3181779199999996E-2,5.9966294699999999E-2,5.51561042E-2,5.3032327400000003E-2,5.2755199799999999E-2,5.0152269899999997E-2,4.5848933000000001E-2,4.0970690999999997E-2,4.1022596699999997E-2,3.6691772300000002E-2,3.38065413E-2,2.8370502999999998E-2,2.52427491E-2,2.4835966599999999E-2,2.2271572399999998E-2,1.9339390200000001E-2,1.8735547500000001E-2,1.8106952799999999E-2,1.9129701499999999E-2,2.04936709E-2]
["Non-performing debt instruments (loans and advances & debt securities) other than held for trading to total gross debt instruments (NPE rati202012",202012,92,"Non-performing debt instruments (loans and advances & debt securities) other than held for trading to total gross debt instruments (NPE rati",4.8342684250030402E-4,1.0798560258099599E-2,1.9419502635198101E-2,2.9222312540634999E-2,2.2632167774319398E-2,2.9947567163430999E-2,8.93555987680658E-2,455628568645.05103,19490444136973.102,3.1567916336786198E-2,3.77230217616248E-2,1.93052058171547E-2,116,1.93052058171547E-2,3.77230217616248E-2,0,"Loans and advances-to-deposits ratio for households and non-financial corporations27",202012,87,"Loans and advances-to-deposits ratio for households and non-financial corporations","RO",0,3,0.57332210006541395,27,"",null,"HU_FND_32",1.0445565220999999,0.97577364850000003,0.94779370890000003,0.91093187890000005,0.89041292159999996,0.81402757969999995,0.83118674520000002,0.82432887470000005,0.82221560559999995,0.77657603799999997,0.77880602480000005,0.77837845959999996,0.77433360490000003,0.75359871089999997,0.76438789370000004,0.76795498920000005,0.78652633900000002,0.75871307600000004,0.77482056570000002,0.7943582937,0.82643019829999997,0.81272273809999995,0.82491628309999998,0.79575538020000003,0.79259591220000003,0.7454147243]
["Share of non-performing loans and advances.(NPL ratio)201409",201409,93,"Share of non-performing loans and advances.(NPL ratio)",1.5798174292708201E-4,2.53573983988944E-2,6.4105790553152506E-2,0.112328527574236,6.6814311964038003E-2,0.16091784000846099,0.36710889213990899,973633702848.224,13267330712589.801,0.30122624044686402,0.14530979891733001,5.0491532206200999E-2,121,5.0491532206200999E-2,0.30122624044686402,0,"Loans and advances-to-deposits ratio for households and non-financial corporations28",202012,87,"Loans and advances-to-deposits ratio for households and non-financial corporations","CY",0,4,0.55927711038802796,28,1,null,"HU_FND_33",".",9.5433420300000002E-2,8.92492696E-2,8.0215364400000003E-2,7.4066807600000006E-2,6.4205203700000005E-2,7.6902212900000003E-2,7.4250674200000005E-2,7.5977314599999998E-2,6.6105053799999994E-2,6.81091801E-2,7.9360530600000007E-2,7.8256599499999996E-2,7.2368114799999994E-2,7.7145210699999994E-2,7.3374709199999999E-2,7.0511587700000003E-2,6.1683564000000003E-2,5.9063243299999998E-2,6.4702794499999994E-2,6.7482289099999995E-2,6.4996158900000003E-2,7.8369095099999994E-2,7.4891234299999998E-2,8.4572400000000006E-2,8.1772331599999998E-2]
["Share of non-performing loans and advances.(NPL ratio)201412",201412,93,"Share of non-performing loans and advances.(NPL ratio)",7.2343191692904102E-4,2.14801691040888E-2,5.4900088044620703E-2,0.103439410001933,6.4763577176096196E-2,0.14856927813705501,0.337926500047315,954002148718.52795,13124503504272.4,0.24011280736371299,0.14445009577980999,4.8283340563572398E-2,129,4.8283340563572398E-2,0.24011280736371299,0,"Loans and advances-to-deposits ratio for households and non-financial corporations29",202012,87,"Loans and advances-to-deposits ratio for households and non-financial corporations","MT",0,5,0.54311319311922801,29,"",null,"HU_LIQ_17",".",".",".",".",".",".",".",".",2.3343806784000001,2.2033584566000002,2.3974194283000001,2.0863100133999999,2.0800527461999998,1.8941853261999999,1.9133822239,1.7881833313,1.7780827110999999,1.7791948404,1.8188039601999999,1.7746839581,1.6153353291000001,1.6469587994999999,1.6438654185999999,2.0685368835000002,1.9177505745000001,2.1770087676999998]
["Share of non-performing loans and advances.(NPL ratio)201503",201503,93,"Share of non-performing loans and advances.(NPL ratio)",2.2987179088299699E-4,2.1116143178746102E-2,5.5123054079249903E-2,0.103067766836895,6.19164762691315E-2,0.154251111679784,0.337219218403779,961451066838.39697,13657500319754.1,0.231640979104387,0.14295702464099999,4.5746267294211398E-2,128,4.5746267294211398E-2,0.231640979104387,0,"Loans and advances-to-deposits ratio for households and non-financial corporations99",202012,87,"Loans and advances-to-deposits ratio for households and non-financial corporations","EU",0,111,1.1218717852881399,99,"",null,"HU_PFT_21",-0.19146279899999999,-0.124364447,-9.5445000000000002E-4,5.63290693E-2,5.1629715999999999E-2,5.7813401799999997E-2,0.11331333389999999,0.19096235689999999,0.19148832430000001,0.16375912470000001,0.13641403420000001,0.1769664121,0.18135280540000001,0.17630386440000001,0.14865471199999999,0.17869102670000001,0.18579135229999999,0.1798553202,0.136741691,0.1699155144,0.18218915129999999,0.18262161120000001,-1.0753259999999999E-3,5.71192071E-2,9.6827953999999994E-2,9.8418012299999996E-2]
["Share of non-performing loans and advances.(NPL ratio)201506",201506,93,"Share of non-performing loans and advances.(NPL ratio)",5.8038342865176205E-4,2.2269575422018802E-2,5.7920793939416799E-2,0.102856024859649,6.0043461772938102E-2,0.144238428069284,0.35238635348479802,943285461960.57202,13736487171016.6,0.232200172331331,0.14357054159451699,4.39423042648691E-2,126,4.39423042648691E-2,0.232200172331331,0,"Loans and advances-to-deposits ratio for households and non-financial corporations100",202012,87,"Loans and advances-to-deposits ratio for households and non-financial corporations","GB",0,26,0.82293678800439696,100,"",null,"HU_PFT_23",0.55064244070000001,0.57198777590000005,1.0365464652,0.80982324549999996,0.73627677039999995,0.67137854009999998,0.70151200059999996,0.64445150399999995,0.62485056709999998,0.59641999980000004,0.66937171669999995,0.60892516750000003,0.60242731869999999,0.61233623690000005,0.66062123139999995,0.5876049136,0.56641903709999997,0.58403725939999995,0.66577965539999995,0.60042603910000003,0.58453389060000005,0.58823709719999995,0.64915641660000001,0.60445039869999995,0.5778368505,0.57579686699999999]
["Share of non-performing loans and advances.(NPL ratio)201509",201509,93,"Share of non-performing loans and advances.(NPL ratio)",4.6972279251301198E-4,2.1960211740972398E-2,5.5080666875889701E-2,0.102788018978608,5.8717885792400899E-2,0.14544607081246799,0.364470759361125,929991750307.28198,13855898234251.6,0.22793372338831,0.14541388738316899,4.23317705115085E-2,126,4.23317705115085E-2,0.22793372338831,0,"Asset encumbrance ratio1",202012,88,"Asset encumbrance ratio","DK",0,5,0.51546338888721799,1,"",null,"HU_PFT_24",-2.1916683999999999E-2,-1.4586170000000001E-2,-1.00795E-4,5.994414E-3,5.5005768999999999E-3,6.0407402000000002E-3,1.19293184E-2,2.0776754599999999E-2,2.14983825E-2,1.8403964700000001E-2,1.6036623999999999E-2,2.0670545200000001E-2,2.1439016500000001E-2,2.0892001899999998E-2,1.7270288299999999E-2,2.0688815700000002E-2,2.1937156499999999E-2,2.1502040600000001E-2,1.5903621E-2,2.0269526699999998E-2,2.1422729000000001E-2,2.1245028199999998E-2,-1.17837E-4,6.3211018000000002E-3,1.0691234799999999E-2,1.0781002899999999E-2]
["Share of non-performing loans and advances.(NPL ratio)201512",201512,93,"Share of non-performing loans and advances.(NPL ratio)",1.6868801836897899E-3,2.1833266548690201E-2,4.9530720844697097E-2,9.9708931366261203E-2,5.7208655000384898E-2,0.14818950690933899,0.358073742950345,901537424200.17004,13684575001282.301,0.21271439663745501,0.13528839166602899,4.1580202248868298E-2,128,4.1580202248868298E-2,0.21271439663745501,0,"Asset encumbrance ratio2",202012,88,"Asset encumbrance ratio","DE",0,23,0.34442092485831399,2,"",null,"HU_PFT_25",0.68002996609999999,0.70774873780000003,0.9575137225,0.8559309276,0.81198505990000003,0.7299424618,0.67609976459999999,0.66408091430000005,0.65663991560000001,0.61888878319999996,0.62085019490000004,0.61555856129999997,0.6209689665,0.63165305989999998,0.6227069207,0.57669750750000004,0.57517157109999995,0.60069468420000005,0.62081320159999998,0.61046182319999998,0.60589521160000004,0.60687911549999995,0.62076797370000003,0.62499975009999997,0.61314958279999998,0.61195800869999994]
["Share of non-performing loans and advances.(NPL ratio)201603",201603,93,"Share of non-performing loans and advances.(NPL ratio)",1.0990024984406199E-3,1.9200167509909698E-2,4.8907618374072599E-2,9.7292858324398102E-2,5.6180528369569799E-2,0.14172379294630399,0.35761112309672699,891917067433.79004,13847439468537.801,0.21004635339868799,0.131093746265116,4.0839580343926603E-2,132,4.0839580343926603E-2,0.21004635339868799,0,"Asset encumbrance ratio3",202012,88,"Asset encumbrance ratio","FI",0,7,0.29593802991448798,3,"",null,"HU_PFT_26",0.25713578339999998,0.27623348040000001,0.403006419,0.3803100492,0.36865186160000002,0.34144434340000002,0.31667034249999998,0.32592649540000002,0.33049530360000001,0.31920646809999997,0.30402072969999999,0.31226522150000002,0.31929951020000003,0.33186407670000001,0.30565294040000002,0.29868211950000001,0.29921651849999997,0.30406556309999999,0.31522775489999999,0.30855483480000001,0.31955308690000001,0.35045129889999999,0.32163573629999997,0.32084628920000002,0.32006362269999999,0.328487111]
["Share of non-performing loans and advances.(NPL ratio)201606",201606,93,"Share of non-performing loans and advances.(NPL ratio)",6.9982742527153097E-4,1.87205843909099E-2,4.58833776058509E-2,9.5284449556543693E-2,5.4317499192322601E-2,0.135781016502137,0.360812920001993,876519895587.33301,14103571570168.9,0.20615590462365599,0.12819511600781699,3.9377162615861397E-2,133,3.9377162615861397E-2,0.20615590462365599,0,"Asset encumbrance ratio4",202012,88,"Asset encumbrance ratio","IT",0,16,0.289117816193945,4,"",null,"HU_PFT_29",7.70488E-5,2.5969689300000001E-2,-8.6430489999999999E-2,-1.2797360000000001E-2,9.9048967000000005E-3,-4.06919E-4,2.3079829999999999E-2,1.3205388E-2,4.3082675700000003E-2,1.6111668400000001E-2,-6.7381589999999996E-3,4.1193328999999997E-3,2.9527186999999998E-3,1.4166866E-2,-2.0387048000000001E-2,-2.4127747000000001E-2,-3.960351E-3,2.4313525000000001E-3,2.5610072000000001E-2,1.6206504E-2,-4.8281670000000004E-3,2.9052498999999998E-3,-7.1441526000000005E-2,-7.0279720000000004E-3,-1.6391172999999998E-2,-6.6542670000000002E-3]
["Share of non-performing loans and advances.(NPL ratio)201609",201609,93,"Share of non-performing loans and advances.(NPL ratio)",6.2179847807997799E-5,1.7646084530121401E-2,4.5590338052698201E-2,9.42381874675461E-2,5.3093890441943098E-2,0.13069814355392201,0.360604695136786,859609003931.22095,14363156238873.699,0.197320805458192,0.128535108834086,3.8304972164189197E-2,132,3.8304972164189197E-2,0.197320805458192,0,"Asset encumbrance ratio5",202012,88,"Asset encumbrance ratio","FR",0,13,0.28263794076964299,5,"",null,"HU_PFT_41",5.5485342399999998E-2,5.6605175100000002E-2,4.9431275699999999E-2,4.7967468999999999E-2,4.7199418200000003E-2,4.4746710299999999E-2,4.31530652E-2,4.2623277299999998E-2,4.1955274299999998E-2,4.1146467499999999E-2,4.2600088500000001E-2,4.1816157700000002E-2,4.1278701199999997E-2,4.0744294399999999E-2,4.0227605700000002E-2,3.7569985799999997E-2,3.8486760299999999E-2,3.9849897099999997E-2,3.8590138500000003E-2,3.9094057799999998E-2,3.69456362E-2,3.7128454999999998E-2,3.4797106600000002E-2,3.4271418400000003E-2,3.3054907299999998E-2,3.2279667300000002E-2]
["Share of non-performing loans and advances.(NPL ratio)201612",201612,93,"Share of non-performing loans and advances.(NPL ratio)",1.01174485402353E-4,1.5898401111390001E-2,4.0910899555869198E-2,9.0346072451034307E-2,5.0744811579071403E-2,0.13140890067707101,0.36463956442862899,816427698692.29895,14273661903923.5,0.191692938185655,0.123092534748941,3.6186260418826E-2,134,3.6186260418826E-2,0.191692938185655,0,"Asset encumbrance ratio6",202012,88,"Asset encumbrance ratio","GR",0,4,0.26364360141616,6,"",null,"HU_PFT_43",".",".",".",".",".",".",".",".",".",".",".",".",".",".",1.04356224E-2,9.8058971000000005E-3,3.3441409000000001E-3,2.5962402000000002E-3,1.6469045700000001E-2,1.70810474E-2,7.6587768000000002E-3,1.03526903E-2,3.5749938100000003E-2,2.6377397E-2,2.1734302E-2,2.1868959300000001E-2]
["Share of non-performing loans and advances.(NPL ratio)201703",201703,93,"Share of non-performing loans and advances.(NPL ratio)",8.9422163750002299E-5,1.45924916478989E-2,3.5086815700947301E-2,8.6735744738500806E-2,4.8017137766815599E-2,0.10020963017107599,0.36469933225026202,811448012254.48999,14828136721823.5,0.18415821025963999,0.116833973877222,3.4688531302497001E-2,130,3.4688531302497001E-2,0.18415821025963999,0,"Asset encumbrance ratio7",202012,88,"Asset encumbrance ratio","NO",0,4,0.26175277738451302,7,"",null,"HU_SVC_1",0.13637073459999999,0.13292688850000001,0.1359110889,0.1333565266,0.13238115880000001,0.13504878179999999,0.13420773969999999,0.13196727080000001,0.13723582300000001,0.1556540585,0.1598130857,0.1475248311,0.14508895050000001,0.15907910950000001,0.15519384359999999,0.15158303000000001,0.1488169684,0.16644325090000001,0.15492618050000001,0.1627323208,0.1517329915,0.15054169619999999,0.14524252400000001,0.14663660379999999,0.1514986777,0.15606523750000001]
["Share of non-performing loans and advances.(NPL ratio)201706",201706,93,"Share of non-performing loans and advances.(NPL ratio)",7.7425571249413195E-5,1.38954562682812E-2,3.4145683558064098E-2,7.8343238594381401E-2,4.4425823283489901E-2,8.9752753226191903E-2,0.35345412826269301,779735135953.39404,14994966775738.801,0.16292747746769101,0.10127092167678201,3.3439618827008702E-2,128,3.3439618827008702E-2,0.16292747746769101,0,"Asset encumbrance ratio8",202012,88,"Asset encumbrance ratio","ES",0,15,0.25291070354260597,8,"",null,"HU_SVC_12",".",".",".",".",".",".",".",".",7.8297606899999997E-2,8.5979533999999996E-2,8.3555664500000001E-2,7.9319924400000005E-2,7.7952932899999994E-2,8.6527784699999999E-2,8.4038738500000001E-2,8.0338258400000001E-2,8.0336295799999999E-2,9.1961114100000005E-2,8.6822192300000003E-2,9.1170843799999998E-2,8.8272463400000001E-2,8.9146819700000005E-2,8.6964790599999994E-2,8.0144469400000001E-2,8.0083422900000006E-2,8.0209643400000002E-2]
["Share of non-performing loans and advances.(NPL ratio)201709",201709,93,"Share of non-performing loans and advances.(NPL ratio)",3.9819173434632501E-4,1.3787250198225499E-2,3.4458728465694602E-2,7.6061540833077507E-2,4.2294588542903799E-2,8.6859112871592703E-2,0.35138863968769202,744651384151.52502,15073371265918.4,0.15497532749397799,9.8852474385710307E-2,3.1692496064030698E-2,128,3.1692496064030698E-2,0.15497532749397799,0,"Asset encumbrance ratio9",202012,88,"Asset encumbrance ratio","SE",0,8,0.24865324691555801,9,"",null,"HU_SVC_13",".",".",".",".",".",".",".",".",7.8297606899999997E-2,8.5979533999999996E-2,8.3555664500000001E-2,7.9319924400000005E-2,7.7952932899999994E-2,8.6527784699999999E-2,8.4038738500000001E-2,8.0338258400000001E-2,8.0336295799999999E-2,9.1867268399999993E-2,8.9625783599999995E-2,9.4417552200000004E-2,9.1445239400000003E-2,9.2514810700000005E-2,9.1633256900000001E-2,8.5349460500000002E-2,8.5632235500000001E-2,8.5298176500000003E-2]
["Share of non-performing loans and advances.(NPL ratio)201712",201712,93,"Share of non-performing loans and advances.(NPL ratio)",6.8948604727545401E-5,1.26607752321196E-2,2.9774148235112301E-2,6.9728430283589299E-2,4.0536493448229398E-2,7.8302801863874893E-2,0.32607102702692897,713137802059.00598,15017252601763.9,0.122372944924792,9.3575659459775098E-2,3.0747060633265901E-2,129,3.0747060633265901E-2,0.122372944924792,1,"Asset encumbrance ratio10",202012,88,"Asset encumbrance ratio","NL",0,6,0.22859764761753101,10,"",null,"HU_SVC_2",0.1744229555,0.1706503751,0.17074124569999999,0.1686186237,0.16737665160000001,0.16926441749999999,0.1673576688,0.16412918609999999,0.1607585003,0.17877075919999999,0.18025322890000001,0.1664671509,0.16345247490000001,0.17731758110000001,0.17315633329999999,0.1695807738,0.1662972969,0.18284461660000001,0.1697873946,0.17736132130000001,0.1746774972,0.17166613,0.1665380253,0.16864169200000001,0.17330369279999999,0.17786458429999999]
["Share of non-performing loans and advances.(NPL ratio)201803",201803,93,"Share of non-performing loans and advances.(NPL ratio)",9.1564993472586403E-5,1.21373415677464E-2,2.8666916174457401E-2,6.7502755221339097E-2,3.8435022128817303E-2,7.4338976620349495E-2,0.31851893531715297,695193377380.68799,15295523210547.5,0.11097179452803201,8.9086191179422194E-2,2.92953216462776E-2,128,2.92953216462776E-2,0.11097179452803201,1,"Asset encumbrance ratio11",202012,88,"Asset encumbrance ratio","BE",0,8,0.20002428271099201,11,"",null,"HU_SVC_29",0.13244484510000001,0.13168197240000001,0.1336994806,0.1316045398,0.13113627759999999,0.13478882089999999,0.13420773969999999,0.13196727080000001,0.13723582300000001,0.1556540585,0.1598130857,0.1475248311,0.14508895050000001,0.15907910950000001,0.1516697098,0.14820994840000001,0.145564213,0.16171003049999999,0.1505733725,0.1577336691,0.14704969030000001,0.145780877,0.1388168109,0.13769404909999999,0.1408272341,0.14594314780000001]
["Share of non-performing loans and advances.(NPL ratio)201806",201806,93,"Share of non-performing loans and advances.(NPL ratio)",1.70966353511093E-4,1.1950097733192701E-2,2.7154387624321499E-2,6.3294491643769504E-2,3.5850995096599801E-2,6.8858773839176698E-2,0.273708584582811,651981049190.86597,15377099792274.6,0.10438949279553,8.3091878015939299E-2,2.7413713787122301E-2,128,2.7413713787122301E-2,0.10438949279553,1,"Asset encumbrance ratio12",202012,88,"Asset encumbrance ratio","AT",0,11,0.19003243656669699,12,"",null,"HU_SVC_3",0.13637073459999999,0.13292688850000001,0.1359110889,0.1333565266,0.13238115880000001,0.13504878179999999,0.13420773969999999,0.13196727080000001,0.13723582300000001,0.1556540585,0.1598130857,0.1475248311,0.14508895050000001,0.15907910950000001,0.15519384359999999,0.15158303000000001,0.1488169684,0.16644325090000001,0.15492618050000001,0.1627323208,0.1517329915,0.15054169619999999,0.14524252400000001,0.14663660379999999,0.1514986777,0.15606523750000001]
["Share of non-performing loans and advances.(NPL ratio)201809",201809,93,"Share of non-performing loans and advances.(NPL ratio)",3.13486599157704E-4,1.2069099150530499E-2,2.6253541286380199E-2,5.746326926492E-2,3.40945543770673E-2,6.5197031565149097E-2,0.236787023740337,628867377873.39502,15486553565879.1,6.4122654444962707E-2,7.9865587408593494E-2,2.6270645623118101E-2,126,2.6270645623118101E-2,7.9865587408593494E-2,1,"Asset encumbrance ratio13",202012,88,"Asset encumbrance ratio","IE",0,8,0.18233288332186301,13,"",null,"IE_AQT_3.1",0.1792292717,0.16648153139999999,0.16180598139999999,0.15843086300000001,0.15179462530000001,0.1393788423,0.11991005489999999,0.1168887138,0.11500582569999999,0.1017555104,9.6110591699999998E-2,9.8332004400000006E-2,9.4757736300000006E-2,8.8319240600000001E-2,6.9176219100000005E-2,5.8370227599999998E-2,5.64875076E-2,4.8042219599999998E-2,4.2612575299999997E-2,3.86830513E-2,3.6106501300000003E-2,2.8224749800000001E-2,2.8454192400000002E-2,3.4031575799999998E-2,3.4139168099999999E-2,3.5579758699999998E-2]
["Share of non-performing loans and advances.(NPL ratio)201812",201812,93,"Share of non-performing loans and advances.(NPL ratio)",5.6394818510322202E-4,1.2042957201404299E-2,2.66399466533681E-2,5.2142796327514999E-2,3.1861204518279403E-2,5.6623479959018598E-2,0.20264414863845101,578506084587.53003,15302284216407.1,6.0173652599547503E-2,7.0651423973126404E-2,2.5031628410097699E-2,127,2.5031628410097699E-2,7.0651423973126404E-2,0,"Asset encumbrance ratio14",202012,88,"Asset encumbrance ratio","IS",0,3,0.17951478282712399,14,"",null,"IE_AQT_3.2",0.23325937120000001,0.21609110740000001,0.2095051349,0.20380221179999999,0.19560387400000001,0.17830347760000001,0.15064694540000001,0.14606236380000001,0.14403747059999999,0.1227195148,0.1154835585,0.11819183380000001,0.1136560687,0.10467247440000001,8.2458857400000002E-2,7.0121023000000005E-2,6.8279312199999997E-2,5.7958474099999997E-2,5.0496495699999998E-2,4.5602797100000002E-2,4.26974954E-2,3.2956183299999997E-2,3.3384932300000003E-2,4.04614191E-2,4.0360537100000003E-2,4.1939032899999999E-2]
["Share of non-performing loans and advances.(NPL ratio)201903",201903,93,"Share of non-performing loans and advances.(NPL ratio)",6.3477190610094505E-4,1.20652840640757E-2,2.7261372313104399E-2,5.1955574702412202E-2,3.0971663173538201E-2,5.6911776570638201E-2,0.20584913733039401,579077602470.76099,15824461466609.199,5.6699702546697199E-2,7.3050204787830503E-2,2.3917655030109199E-2,126,2.3917655030109199E-2,7.3050204787830503E-2,0,"Asset encumbrance ratio15",202012,88,"Asset encumbrance ratio","PT",0,8,0.175446682717803,15,"",null,"IE_AQT_31",8.2499314800000001E-2,6.5395876300000003E-2,6.6534336299999997E-2,6.3350840699999994E-2,6.0173163100000003E-2,5.22774529E-2,4.3230771699999997E-2,4.0220220199999997E-2,3.9100004200000003E-2,3.8125050299999998E-2,3.5824953600000001E-2,3.4351042700000001E-2,3.3261266599999999E-2,3.2789658899999997E-2,2.0480860199999999E-2,1.69046944E-2,1.6466093800000001E-2,1.47274352E-2,1.28647507E-2,1.21190139E-2,1.15031757E-2,9.4862099000000005E-3,8.8939385000000003E-3,1.29354719E-2,1.23946864E-2,1.2325763199999999E-2]
["Share of non-performing loans and advances.(NPL ratio)201906",201906,93,"Share of non-performing loans and advances.(NPL ratio)",8.4128757772669203E-4,1.1857773681088001E-2,2.6446460292616401E-2,4.92434683391023E-2,2.99151532979261E-2,5.0352730000276603E-2,0.20009681263731999,554992199949.97302,15808734030056,5.2806374814173003E-2,7.0433888398807806E-2,2.3211415053908099E-2,125,2.3211415053908099E-2,7.0433888398807806E-2,0,"Asset encumbrance ratio16",202012,88,"Asset encumbrance ratio","SK",0,3,0.171822389913243,16,"",null,"IE_AQT_41.2",0.43911196470000002,0.42671356700000002,0.41866506069999998,0.41148821029999999,0.40766449529999998,0.3839918021,0.38637215429999999,0.37912983430000002,0.37920337720000002,0.35287709909999998,0.34609055160000002,0.32366553170000001,0.32189089799999998,0.29475093740000002,0.31253247909999998,0.30417891349999998,0.30324849059999998,0.2603382065,0.25987099340000003,0.2717088399,0.27145351449999999,0.27021966829999999,0.27638564069999999,0.29753918559999998,0.29840683229999998,0.30798506339999998]
["Share of non-performing loans and advances.(NPL ratio)201909",201909,93,"Share of non-performing loans and advances.(NPL ratio)",8.07395801453507E-4,1.21110377109636E-2,2.6205175712617799E-2,4.75228310274158E-2,2.87856875920556E-2,4.6453842281957099E-2,0.19606153820705699,537796414958.41302,15939356641803.9,5.2623903349833898E-2,6.6678476855818902E-2,2.25051648227589E-2,125,2.25051648227589E-2,6.6678476855818902E-2,0,"Asset encumbrance ratio17",202012,88,"Asset encumbrance ratio","EE",0,4,8.5916770900327802E-2,17,"",null,"IE_AQT_42.2",0.1625863863,0.1578389566,0.1590050492,0.15989266469999999,0.1575805304,0.1548297625,0.13871459750000001,0.1340452604,0.1338544596,0.11475198909999999,0.1094809763,0.11092756080000001,0.10742787920000001,9.55442653E-2,7.4522635700000006E-2,6.9238880500000002E-2,6.7105627500000001E-2,5.9318896699999998E-2,5.3722998299999998E-2,5.0306521600000001E-2,4.7052366399999997E-2,4.0034000200000003E-2,3.94599432E-2,3.9636434499999998E-2,3.80406758E-2,4.1087037399999998E-2]
["Share of non-performing loans and advances.(NPL ratio)201912",201912,93,"Share of non-performing loans and advances.(NPL ratio)",1.22487831567808E-3,1.21409765644133E-2,2.4768648096364799E-2,4.3159171678518099E-2,2.7481923092440699E-2,4.1669269144128003E-2,0.182149908869539,506004548324.90002,15730094600044.1,4.8454164381044502E-2,5.8811040841553898E-2,2.2068058699960501E-2,126,2.2068058699960501E-2,5.8811040841553898E-2,0,"Asset encumbrance ratio18",202012,88,"Asset encumbrance ratio","MT",0,5,8.3461564170027799E-2,18,"",null,"IE_FND_32",1.3769013575,1.3356521530000001,1.3016252355,1.2446277827000001,1.2535468811999999,1.2311911525999999,1.1936546780999999,1.1915052987999999,1.1901986786000001,1.1517410085999999,1.1447671983000001,1.1160075701000001,1.0765973811,1.0622805038000001,1.0404284741000001,1.0132573021,1.0026786164999999,1.0090870595999999,0.98179366960000003,0.99027898960000005,0.98704949450000001,0.94704526379999998,0.95352106739999998,0.88689670799999998,0.85293511330000005,0.81874184790000004]
["Share of non-performing loans and advances.(NPL ratio)202003",202003,93,"Share of non-performing loans and advances.(NPL ratio)",1.18634559790257E-3,1.2657513375398E-2,2.4753091749935102E-2,4.4542864376089203E-2,2.9654452520347201E-2,4.4502551899372599E-2,0.20060941351005801,502621525925.914,16523266600608.5,4.7717521069092002E-2,6.0327898901171399E-2,2.34499579389176E-2,117,2.34499579389176E-2,6.0327898901171399E-2,0,"Asset encumbrance ratio19",202012,88,"Asset encumbrance ratio","CZ",0,3,8.2354663194876804E-2,19,"",null,"IE_FND_33",".",0.30271941079999998,0.30765120769999998,0.2984199709,0.27699981670000001,0.31604141149999998,0.27722578739999998,0.27180930260000002,0.27154625329999998,0.23525736320000001,0.23549350790000001,0.21913526559999999,0.20243178310000001,0.1910767411,0.1897507745,0.17962623959999999,0.1652063178,0.17171942370000001,0.1207916347,0.1185879661,0.11093870510000001,0.1201277588,0.14050918330000001,0.1372865067,0.14145344800000001,0.1823328833]
["Share of non-performing loans and advances.(NPL ratio)202006",202006,93,"Share of non-performing loans and advances.(NPL ratio)",1.44551066569101E-3,1.27972852410097E-2,2.4439116216576899E-2,4.1882949256135803E-2,2.86826885620266E-2,4.2630136489076903E-2,0.14187181722764899,505043492426.23499,17230783496789.801,4.5145433111583803E-2,5.6003760047722999E-2,2.3219312352442401E-2,117,2.3219312352442401E-2,5.6003760047722999E-2,0,"Asset encumbrance ratio20",202012,88,"Asset encumbrance ratio","HU",0,4,8.1772331618160402E-2,20,"",null,"IE_LIQ_17",".",".",".",".",".",".",".",".",1.2882244232,1.2771629244,1.3440861864,1.3407474019000001,1.3823042797,1.3951906275999999,1.3630700388000001,1.3793706165999999,1.3803261903999999,1.3431047431000001,1.4450650415999999,1.3786948608,1.4253531184999999,1.5318678636,1.6135083452000001,1.5592020427,1.6570017825000001,1.7218852655000001]
["Share of non-performing loans and advances.(NPL ratio)202009",202009,93,"Share of non-performing loans and advances.(NPL ratio)",1.7204747151216501E-3,1.1973868060055201E-2,2.42842390508629E-2,3.9268970700804803E-2,2.7562481993388701E-2,3.93039781734532E-2,0.130472942700599,494200002459.51202,17399306886941.699,4.2652015778914303E-2,5.0973219783783497E-2,2.3031457708842001E-2,116,2.3031457708842001E-2,5.0973219783783497E-2,0,"Asset encumbrance ratio21",202012,88,"Asset encumbrance ratio","HR",0,3,8.1043803797854294E-2,21,"",null,"IE_PFT_21",4.19771756E-2,5.3646978900000003E-2,6.7015442999999994E-2,7.7295344599999996E-2,8.8286058000000001E-2,7.4266120899999996E-2,8.4292050499999993E-2,0.1024879464,9.1896085599999996E-2,7.9301876699999996E-2,6.5319410999999994E-2,7.6631909499999998E-2,7.9808047199999996E-2,7.0785445899999994E-2,7.8459034400000002E-2,8.3973978899999996E-2,8.38302883E-2,7.5020016300000006E-2,8.0578860799999999E-2,6.8248995100000001E-2,6.8533702500000002E-2,5.4945722699999998E-2,5.3457857000000003E-3,-8.4490783999999999E-2,-4.5122711000000003E-2,-3.2875134E-2]
["Share of non-performing loans and advances.(NPL ratio)202012",202012,93,"Share of non-performing loans and advances.(NPL ratio)",2.0470349952415299E-3,1.2628532955673901E-2,2.2980327598166001E-2,3.5807042335987499E-2,2.5736963858897E-2,3.5608381286687703E-2,0.10744301198433701,452170774263.328,17043017665651.5,3.89252673888867E-2,4.6286335127284903E-2,2.1590396094233601E-2,116,2.1590396094233601E-2,4.6286335127284903E-2,0,"Asset encumbrance ratio22",202012,88,"Asset encumbrance ratio","LV",0,5,8.0636331657258503E-2,22,"",null,"IE_PFT_23",0.61989205510000001,0.65888726239999995,0.57263451040000002,0.54422652500000002,0.5652466666,0.61690927019999997,0.61592839830000001,0.5600683434,0.56940682649999996,0.58632323900000005,0.61711999480000002,0.59569007979999999,0.59238429999999997,0.61963202139999995,0.63495015470000005,0.62831789329999999,0.61694389110000003,0.63338082849999999,0.62909561430000005,0.62633194530000003,0.62246437539999999,0.6766112997,0.71525925440000004,0.65581419860000001,0.64527358359999998,0.67175195259999998]
["Leverage ratio (fully phased-in definition of Tier 1)201609",201609,194,"Leverage ratio (fully phased-in definition of Tier 1)",2.46840953101665E-2,4.1279139099977602E-2,5.4209729676511498E-2,7.0875465698951798E-2,5.0288091855273401E-2,7.1516658178006801E-2,0.12401569263920301,1198967778057.8799,24325096294080.801,5.91014699481512E-2,6.6471105595384897E-2,4.6696879568594099E-2,154,4.6696879568594099E-2,6.6471105595384897E-2,0,"Asset encumbrance ratio23",202012,88,"Asset encumbrance ratio","LU",0,11,7.8559576069244297E-2,23,"",null,"IE_PFT_24",3.7148283E-3,4.3646630000000004E-3,5.3317288000000003E-3,6.5520678000000002E-3,7.68339E-3,6.2647826999999998E-3,8.3269294000000004E-3,1.0165559399999999E-2,9.2925449999999993E-3,8.5082396000000001E-3,7.5131954000000004E-3,8.9212887999999997E-3,9.3977938999999996E-3,8.4680824000000002E-3,9.9803580999999995E-3,1.0638924399999999E-2,1.0748614300000001E-2,9.5022000000000006E-3,1.02762015E-2,8.6136401999999997E-3,8.7384725000000003E-3,6.9699827000000002E-3,6.7409100000000003E-4,-1.0404401000000001E-2,-5.4940620000000001E-3,-3.9057250000000001E-3]
["Leverage ratio (fully phased-in definition of Tier 1)201612",201612,194,"Leverage ratio (fully phased-in definition of Tier 1)",2.17763890424949E-2,4.3110712076093002E-2,5.3581381060680298E-2,7.0255884869195803E-2,5.1402635243783003E-2,7.3141631338355995E-2,0.12823913902711201,1197516581282.0601,23904883811809.199,6.4355685817046496E-2,6.6887713135626095E-2,4.7464547159067297E-2,158,4.7464547159067297E-2,6.6887713135626095E-2,0,"Asset encumbrance ratio24",202012,88,"Asset encumbrance ratio","CY",0,4,7.7404815758950807E-2,24,"",null,"IE_PFT_25",0.75901328140000002,0.75809268149999998,0.76555567719999995,0.72642223699999997,0.76560647969999995,0.76480572339999997,0.65651762140000003,0.57669869090000003,0.59285163299999999,0.59595086220000004,0.63204177719999999,0.63337607470000001,0.63619739239999995,0.62650594370000001,0.62676773809999997,0.62088001950000005,0.62970494730000004,0.63094134530000001,0.61403531109999998,0.61394211139999999,0.62353649980000003,0.63309154990000005,0.68852629679999999,0.6676074568,0.65252039269999995,0.63867021280000003]
["Leverage ratio (fully phased-in definition of Tier 1)201703",201703,194,"Leverage ratio (fully phased-in definition of Tier 1)",2.4087894945846001E-2,4.2768360421256299E-2,5.21077266160462E-2,6.95938256761688E-2,5.0249620557561998E-2,7.1300441255451499E-2,0.12373619241238901,1227061419242.0701,24675714447852.602,5.5209436974282398E-2,6.7723260361535406E-2,4.7049530227686501E-2,153,4.7049530227686501E-2,6.7723260361535406E-2,0,"Asset encumbrance ratio25",202012,88,"Asset encumbrance ratio","BG",0,4,5.3505173761014997E-2,25,"",null,"IE_PFT_26",0.15795041639999999,0.15802518979999999,0.14362870010000001,0.1319492193,0.13600097119999999,0.1335417361,0.2053578116,0.2182760161,0.22775727300000001,0.22506940810000001,0.2235814374,0.21287948819999999,0.2102580158,0.21217629460000001,0.22699462100000001,0.22788597699999999,0.23226218770000001,0.23624473879999999,0.24541485669999999,0.23568820409999999,0.2427671421,0.23916817039999999,0.27484505479999999,0.24040612610000001,0.22767638339999999,0.2281413575]
["Leverage ratio (fully phased-in definition of Tier 1)201706",201706,194,"Leverage ratio (fully phased-in definition of Tier 1)",2.2445697010904798E-2,4.3141968614659798E-2,5.3588836928484498E-2,7.0206513519608799E-2,5.1087976655679802E-2,7.4373878867802501E-2,0.11761044979049901,1225524354858.8999,24265787879238.5,5.6594763139985203E-2,6.8855547559097494E-2,4.7735937320704698E-2,151,4.7735937320704698E-2,6.8855547559097494E-2,0,"Asset encumbrance ratio26",202012,88,"Asset encumbrance ratio","SI",0,6,4.9612109873603802E-2,26,"",null,"IE_PFT_29",3.9922914400000002E-2,2.5662004E-3,0.10860254499999999,5.2097161199999999E-2,2.3444519399999999E-2,2.8863270900000002E-2,-1.148919E-2,1.1487882899999999E-2,2.4952944000000001E-2,4.0153539699999997E-2,4.4056666600000002E-2,5.6255046099999997E-2,4.6307815000000002E-2,4.8943269099999999E-2,-3.0704600000000001E-3,2.1814091000000001E-3,4.3499996000000004E-3,-9.5730510000000008E-3,6.9616788099999993E-2,4.4736665299999999E-2,3.2060382700000001E-2,3.3775762199999997E-2,-0.17045998700000001,2.3482017000000001E-3,4.8884299999999998E-4,1.7930810799999999E-2]
["Leverage ratio (fully phased-in definition of Tier 1)201709",201709,194,"Leverage ratio (fully phased-in definition of Tier 1)",2.9007174841804598E-2,4.4144904001150301E-2,5.4749722430359603E-2,7.0502616166496196E-2,5.1654904812565502E-2,7.4882933032680205E-2,0.12542150723037801,1246254560543.51,24314786579998,5.5566537149137597E-2,7.0900058784966899E-2,4.8305843802420298E-2,151,4.8305843802420298E-2,7.0900058784966899E-2,0,"Asset encumbrance ratio27",202012,88,"Asset encumbrance ratio","PL",0,3,4.897349499538E-2,27,"",null,"IE_PFT_41",1.43760708E-2,1.5041593799999999E-2,1.6241512100000001E-2,1.6865884500000001E-2,1.7306479400000001E-2,1.7417051199999999E-2,1.6973613299999999E-2,1.6667538400000001E-2,1.72203472E-2,1.74615984E-2,1.9347584800000001E-2,1.9676931700000001E-2,1.98652473E-2,1.9769311099999999E-2,1.9714006400000001E-2,2.0051793599999999E-2,2.0148657100000002E-2,1.98534338E-2,2.0206835499999999E-2,2.0143633300000002E-2,1.9938074600000001E-2,1.97074052E-2,1.85866599E-2,1.8110326199999999E-2,1.7675512300000001E-2,1.7211163599999999E-2]
["Leverage ratio (fully phased-in definition of Tier 1)201712",201712,194,"Leverage ratio (fully phased-in definition of Tier 1)",2.9373434807440601E-2,4.6198829151714298E-2,5.7024728030941198E-2,7.3521765157508301E-2,5.3669420923967197E-2,7.9061204818126105E-2,0.14875614842674401,1269800235818.28,23612157109441.102,5.9082743026264102E-2,7.3534054100315105E-2,5.0044979568880099E-2,152,5.0044979568880099E-2,7.3534054100315105E-2,0,"Asset encumbrance ratio28",202012,88,"Asset encumbrance ratio","RO",0,3,7.3036089568116096E-3,28,"",null,"IE_PFT_43",".",".",".",".",".",".",".",".",".",".",".",".",".",".",1.5960547E-3,8.8221999999999997E-5,-9.9464999999999997E-5,8.1488350000000003E-4,2.5179855000000001E-3,2.9612801999999998E-3,2.5754952999999998E-3,2.4351215999999999E-3,7.3393167999999996E-3,2.8062124000000001E-2,2.00052953E-2,1.7233954700000002E-2]
["Leverage ratio (fully phased-in definition of Tier 1)201803",201803,194,"Leverage ratio (fully phased-in definition of Tier 1)",2.96819799814995E-2,4.5190918145376499E-2,5.5156228651135002E-2,7.2267714933543406E-2,5.1251723880102802E-2,7.6577523793716698E-2,0.131131549277089,1236414653130.51,24138006460994.5,5.4351358446918602E-2,6.94672993152501E-2,4.81772770058417E-2,151,4.81772770058417E-2,6.94672993152501E-2,0,"Asset encumbrance ratio29",202012,88,"Asset encumbrance ratio","LT",0,4,6.9911300521538601E-3,29,"",null,"IE_SVC_1",0.1827353169,0.1746390937,0.16209074279999999,0.18638759699999999,0.1894553239,0.1874537959,0.17615667230000001,0.1823640252,0.18216312079999999,0.1975460899,0.19397644820000001,0.20040414249999999,0.19888317990000001,0.210182228,0.1964685709,0.19998759699999999,0.1982529807,0.20666899559999999,0.19485914639999999,0.19340627739999999,0.19578379369999999,0.20372730080000001,0.19663397060000001,0.20128942059999999,0.2028064138,0.20056161110000001]
["Leverage ratio (fully phased-in definition of Tier 1)201806",201806,194,"Leverage ratio (fully phased-in definition of Tier 1)",2.9912459294890701E-2,4.4768324549053801E-2,5.5480478174291199E-2,7.1869563306484294E-2,5.1182481723298701E-2,7.6184835741975099E-2,0.129754905214886,1244995835913.97,24364459593171.5,5.5961924754976002E-2,6.9443092632482703E-2,4.7916533854699302E-2,151,4.7916533854699302E-2,6.9443092632482703E-2,{"$f":"IF(OR(G372<R372,G372>S372),1,0)","v":0},"Asset encumbrance ratio99",202012,88,"Asset encumbrance ratio","EU",0,128,0.27899189081099901,99,"",null,"IE_SVC_12",".",".",".",".",".",".",".",".",8.2878783400000003E-2,9.0574669400000002E-2,8.7454774400000004E-2,9.2786199400000005E-2,9.0987447299999996E-2,9.6543873899999993E-2,9.0617512900000002E-2,9.0788849000000005E-2,9.0318011200000006E-2,9.2732116899999995E-2,9.6632733799999995E-2,9.4577651799999995E-2,9.4158347399999995E-2,9.7398406899999998E-2,9.0166928300000004E-2,8.8410381100000004E-2,9.10617804E-2,8.8023325299999997E-2]
["Leverage ratio (fully phased-in definition of Tier 1)201809",201809,194,"Leverage ratio (fully phased-in definition of Tier 1)",2.8938624608817801E-2,4.5315175449607899E-2,5.5190629871866903E-2,7.0760069190057201E-2,5.13009598392168E-2,7.3223963451199706E-2,0.13416343501193501,1245965121026.6001,24477193448436.801,5.5661300132602599E-2,6.97124752312899E-2,4.8087050903913901E-2,150,4.8087050903913901E-2,6.97124752312899E-2,{"$f":"IF(OR(G373<R373,G373>S373),1,0)","v":0},"Asset encumbrance ratio100",202012,88,"Asset encumbrance ratio","GB",0,26,0.30889147705967501,100,"",null,"IE_SVC_13",".",".",".",".",".",".",".",".",9.3915909800000003E-2,0.1012157767,9.6422001100000002E-2,0.1019897649,0.10033979949999999,0.1057367099,9.9373067300000006E-2,9.9473867899999999E-2,9.8903750299999996E-2,0.101021848,0.10151405199999999,9.9208728499999996E-2,9.8599127800000005E-2,0.10189802789999999,9.3507843699999996E-2,9.3638137199999999E-2,9.6652429999999998E-2,9.3912978100000002E-2]
["Leverage ratio (fully phased-in definition of Tier 1)201812",201812,194,"Leverage ratio (fully phased-in definition of Tier 1)",3.0636900485548599E-2,4.6960750521726997E-2,5.52509929432589E-2,7.3216532798552794E-2,5.3171881524109302E-2,7.8346052698732099E-2,0.141820611088949,1264365999161.6399,23916927921109.102,6.09437625820844E-2,7.0786671876929899E-2,4.9640551833580598E-2,149,4.9640551833580598E-2,7.0786671876929899E-2,0,"Non-performing debt instruments (loans and advances & debt securities) other than held for trading to total gross debt instruments (NPE rati1",202012,92,"Non-performing debt instruments (loans and advances & debt securities) other than held for trading to total gross debt instruments (NPE rati","GR",0,4,0.21423938616110799,1,"",null,"IE_SVC_2",0.2100386907,0.20011562320000001,0.18770404130000001,0.21188259749999999,0.21464888030000001,0.21604082250000001,0.19849278349999999,0.20356901469999999,0.20330881519999999,0.21927648890000001,0.21507221630000001,0.22107851210000001,0.22153204109999999,0.2308060807,0.21594139679999999,0.21918238440000001,0.21746917060000001,0.22559838069999999,0.2160346554,0.21169199859999999,0.2141306161,0.22504570860000001,0.21764126310000001,0.22257361889999999,0.2267719007,0.22401930849999999]
["Leverage ratio (fully phased-in definition of Tier 1)201903",201903,194,"Leverage ratio (fully phased-in definition of Tier 1)",2.9000456044986699E-2,4.6450857869319399E-2,5.7294868398886499E-2,7.4203000554515494E-2,5.1928099456546702E-2,7.8647579606570595E-2,0.13321283565618799,1274682720804.27,24828891226439.398,5.8875705776759699E-2,7.0069753117336694E-2,4.8432551527507098E-2,150,4.8432551527507098E-2,7.0069753117336694E-2,0,"Non-performing debt instruments (loans and advances & debt securities) other than held for trading to total gross debt instruments (NPE rati2",202012,92,"Non-performing debt instruments (loans and advances & debt securities) other than held for trading to total gross debt instruments (NPE rati","CY",0,4,9.2231930288292602E-2,2,1,null,"IE_SVC_29",0.1246920436,0.111255532,0.10129527050000001,0.1218010043,0.1220715908,0.15287498990000001,0.1500378181,0.1539914825,0.15242031049999999,0.16765070730000001,0.16726674289999999,0.17337363820000001,0.1729914639,0.1854185391,0.17294069640000001,0.17638102219999999,0.17479942879999999,0.1834631803,0.1789866967,0.17794252369999999,0.1797441568,0.18604637760000001,0.18115942879999999,0.17862705670000001,0.17857665659999999,0.17583593920000001]
["Leverage ratio (fully phased-in definition of Tier 1)201906",201906,194,"Leverage ratio (fully phased-in definition of Tier 1)",3.1330115730972399E-2,4.5837455854466101E-2,5.8308434162646298E-2,7.4889289267050296E-2,5.2331109072558599E-2,8.1172744599295701E-2,0.13296985996468,1280485056016.3999,24733446359017.699,6.1568093740621499E-2,7.1479531092338205E-2,4.8522825328783201E-2,148,4.8522825328783201E-2,7.1479531092338205E-2,0,"Non-performing debt instruments (loans and advances & debt securities) other than held for trading to total gross debt instruments (NPE rati3",202012,92,"Non-performing debt instruments (loans and advances & debt securities) other than held for trading to total gross debt instruments (NPE rati","BG",0,4,5.9393862943683803E-2,3,"",null,"IE_SVC_3",0.17856385890000001,0.17048185269999999,0.15829691679999999,0.17733646859999999,0.18010552960000001,0.17499105619999999,0.1664418319,0.17256838320000001,0.1722451582,0.1872635762,0.18474607539999999,0.19100173470000001,0.19087496349999999,0.20330293429999999,0.190200647,0.19373627700000001,0.1918225751,0.2003602615,0.1892694999,0.1878407822,0.1894127779,0.19577958409999999,0.1888002137,0.19019933210000001,0.19064674130000001,0.18876038510000001]
["Leverage ratio (fully phased-in definition of Tier 1)201909",201909,194,"Leverage ratio (fully phased-in definition of Tier 1)",3.05098179680992E-2,4.5125109319346497E-2,5.7952248042978299E-2,7.3942348589284695E-2,5.2246913389744298E-2,8.1379620923627105E-2,0.13448349714075,1298615732829.8,25010743037309.398,6.0750037145125897E-2,7.0898381988513906E-2,4.8547118694571102E-2,148,4.8547118694571102E-2,7.0898381988513906E-2,0,"Non-performing debt instruments (loans and advances & debt securities) other than held for trading to total gross debt instruments (NPE rati4",202012,92,"Non-performing debt instruments (loans and advances & debt securities) other than held for trading to total gross debt instruments (NPE rati","PT",0,8,3.8817294360709603E-2,4,"",null,"IS_AQT_3.1",".",".",".",".",".",".",".",".",".",".",".",".",".",2.5689022499999999E-2,2.9443290399999999E-2,2.4141552300000001E-2,2.2365333099999999E-2,2.1617805800000001E-2,2.13421754E-2,2.1698081399999999E-2,2.41515723E-2,2.5497744199999998E-2,2.4331790900000001E-2,2.8239618899999999E-2,2.7183812200000001E-2,2.5443562100000001E-2]
["Leverage ratio (fully phased-in definition of Tier 1)201912",201912,194,"Leverage ratio (fully phased-in definition of Tier 1)",3.3748797633592099E-2,4.7764622860125998E-2,5.9423014180220703E-2,7.1811782721895298E-2,5.5002023751282603E-2,8.4339333218324597E-2,0.13291475330529501,1335863965500.1399,24197914348954.898,6.4359867062064896E-2,7.2664757741481303E-2,5.1317132987423998E-2,147,5.1317132987423998E-2,7.2664757741481303E-2,0,"Non-performing debt instruments (loans and advances & debt securities) other than held for trading to total gross debt instruments (NPE rati5",202012,92,"Non-performing debt instruments (loans and advances & debt securities) other than held for trading to total gross debt instruments (NPE rati","HR",0,3,3.8745755908927502E-2,5,"",null,"IS_AQT_3.2",".",".",".",".",".",".",".",".",".",".",".",".",".",2.6770958300000001E-2,3.0261857699999999E-2,2.4743900900000001E-2,2.29045924E-2,2.2153873500000001E-2,2.19260485E-2,2.2352002100000001E-2,2.5044775200000001E-2,2.60343998E-2,2.5254821100000002E-2,2.9416636100000001E-2,2.8505943400000001E-2,2.6595241400000001E-2]
["Leverage ratio (fully phased-in definition of Tier 1)202003",202003,194,"Leverage ratio (fully phased-in definition of Tier 1)",3.5478301650837603E-2,4.6627950742972199E-2,6.1320064329460203E-2,7.1381443164633004E-2,5.2180157488526203E-2,8.13181671465419E-2,0.130742550866317,1320169115818.03,25644721853129,6.2073060315375003E-2,7.0866563439005506E-2,4.8334032595307698E-2,131,4.8334032595307698E-2,7.0866563439005506E-2,0,"Non-performing debt instruments (loans and advances & debt securities) other than held for trading to total gross debt instruments (NPE rati6",202012,92,"Non-performing debt instruments (loans and advances & debt securities) other than held for trading to total gross debt instruments (NPE rati","PL",0,3,3.6030378441527199E-2,6,"",null,"IS_AQT_31",".",".",".",".",".",".",".",".",".",".",".",".",".",6.6055228999999998E-3,1.0122588E-2,9.7560006000000001E-3,8.8533225999999996E-3,9.7240843999999993E-3,9.6677454999999999E-3,9.3936342000000006E-3,1.0489169099999999E-2,1.12040487E-2,1.08693609E-2,1.13331601E-2,1.1134983500000001E-2,1.06987795E-2]
["Leverage ratio (fully phased-in definition of Tier 1)202006",202006,194,"Leverage ratio (fully phased-in definition of Tier 1)",3.4127610930379297E-2,4.6453695509657E-2,5.8847469802001798E-2,7.0412635613593996E-2,5.1580417578044699E-2,7.8330420171760298E-2,0.13343122725479101,1342984898269.99,26415544817624.801,6.2184803879954599E-2,6.8507491188388406E-2,4.7993025740127503E-2,131,4.7993025740127503E-2,6.8507491188388406E-2,0,"Non-performing debt instruments (loans and advances & debt securities) other than held for trading to total gross debt instruments (NPE rati7",202012,92,"Non-performing debt instruments (loans and advances & debt securities) other than held for trading to total gross debt instruments (NPE rati","IE",0,8,3.5579758720644401E-2,7,"",null,"IS_AQT_41.2",".",".",".",".",".",".",".",".",".",".",".",".",".",0.40890088320000001,0.33031485090000001,0.35752338449999999,0.3720784077,0.2871833707,0.29221782730000001,0.30768096179999999,0.27786111099999999,0.27591982320000003,0.30262644519999998,0.29282189650000001,0.29600627400000001,0.30421958389999998]
["Leverage ratio (fully phased-in definition of Tier 1)202009",202009,194,"Leverage ratio (fully phased-in definition of Tier 1)",3.7065745723714301E-2,4.80526674054488E-2,6.0136437128443E-2,7.27295998505397E-2,5.4502591762242501E-2,8.07250029575316E-2,0.130907134519922,1345724953198.48,25056923826486.602,7.10333038015276E-2,7.0027057086755995E-2,5.0981002602427203E-2,130,5.0981002602427203E-2,7.10333038015276E-2,0,"Non-performing debt instruments (loans and advances & debt securities) other than held for trading to total gross debt instruments (NPE rati8",202012,92,"Non-performing debt instruments (loans and advances & debt securities) other than held for trading to total gross debt instruments (NPE rati","IT",0,16,3.3359260154992403E-2,8,"",null,"IS_AQT_42.2",".",".",".",".",".",".",".",".",".",".",".",".",".",4.28994979E-2,4.0138071800000001E-2,3.7832198900000003E-2,3.606094E-2,2.8074906899999998E-2,2.5729932699999999E-2,2.9516645099999999E-2,3.0656760000000002E-2,3.22771024E-2,3.4949716499999998E-2,3.9162362300000003E-2,4.3662376099999997E-2,8.7974338099999994E-2]
["Leverage ratio (fully phased-in definition of Tier 1)202012",202012,194,"Leverage ratio (fully phased-in definition of Tier 1)",3.5904156346964602E-2,5.1173763492894597E-2,6.2295451925762101E-2,7.4750217187308801E-2,5.7957867398246897E-2,8.0326464867796293E-2,0.13718062094977301,1393778794163.6799,24355708266286.301,7.1819476126171206E-2,7.2393037229858806E-2,5.4600258816221901E-2,130,5.4600258816221901E-2,7.2393037229858806E-2,0,"Non-performing debt instruments (loans and advances & debt securities) other than held for trading to total gross debt instruments (NPE rati9",202012,92,"Non-performing debt instruments (loans and advances & debt securities) other than held for trading to total gross debt instruments (NPE rati","HU",0,4,3.1536524487233097E-2,9,"",null,"IS_FND_32",".",".",".",".",".",".",".",".",".",".",".",".",".",1.7439126692,1.8049908370000001,1.8144301711999999,1.796999743,1.8182265945,1.8306642562,1.8313776074999999,1.8233703026000001,1.7878128914,1.7417114387999999,1.7178361872000001,1.7108205731999999,1.7537330297]
["Leverage ratio (transitional definition of Tier 1)201609",201609,195,"Leverage ratio (transitional definition of Tier 1)",2.7161877467433999E-2,4.4170105126569902E-2,5.7955711898001201E-2,7.3016891513504004E-2,5.3202777695801E-2,7.2444035178481997E-2,0.122193268350744,1254558349574.29,23887074469251.801,5.8809427313545798E-2,6.9607722443161296E-2,4.9942374925664203E-2,154,4.9942374925664203E-2,6.9607722443161296E-2,0,"Non-performing debt instruments (loans and advances & debt securities) other than held for trading to total gross debt instruments (NPE rati10",202012,92,"Non-performing debt instruments (loans and advances & debt securities) other than held for trading to total gross debt instruments (NPE rati","RO",0,3,2.6295754100406299E-2,10,"",null,"IS_FND_33",".",".",".",".",".",".",".",".",".",".",".",".",".",0.140921463,0.1479610999,0.15299103450000001,0.1533031929,0.16656664809999999,0.17083063179999999,0.17709708029999999,0.1736591334,0.16192657669999999,0.1577473472,0.15646819270000001,0.1619282923,0.17951478279999999]
["Leverage ratio (transitional definition of Tier 1)201612",201612,195,"Leverage ratio (transitional definition of Tier 1)",2.62077528556952E-2,4.6176526346635799E-2,5.7419772758025303E-2,7.2944140042358399E-2,5.4637215552477199E-2,7.5283577573103E-2,0.123326493157956,1261450871881.8,23490595478584.801,6.4053243778083996E-2,7.0456795814235404E-2,5.1041486209841599E-2,158,5.1041486209841599E-2,7.0456795814235404E-2,0,"Non-performing debt instruments (loans and advances & debt securities) other than held for trading to total gross debt instruments (NPE rati11",202012,92,"Non-performing debt instruments (loans and advances & debt securities) other than held for trading to total gross debt instruments (NPE rati","MT",0,5,2.57351838602747E-2,11,"",null,"IS_LIQ_17",".",".",".",".",".",".",".",".",".",".",".",".",".",".",1.7376010365000001,1.7457467421999999,1.6313462563000001,1.6604862978999999,1.8993179242,1.8608141131,2.0378276063,1.6258417453,1.9777819082000001,1.9053362172999999,1.7000026439,1.7970003009]
["Leverage ratio (transitional definition of Tier 1)201703",201703,195,"Leverage ratio (transitional definition of Tier 1)",2.69912758888807E-2,4.3955784165445801E-2,5.5159281857387499E-2,7.1377791467013396E-2,5.2543970417875903E-2,7.2899272046944505E-2,0.12399945904383999,1266555381614.6001,24236531566779.301,5.4882850115583699E-2,7.0409735403021798E-2,4.9569637665608499E-2,153,4.9569637665608499E-2,7.0409735403021798E-2,0,"Non-performing debt instruments (loans and advances & debt securities) other than held for trading to total gross debt instruments (NPE rati12",202012,92,"Non-performing debt instruments (loans and advances & debt securities) other than held for trading to total gross debt instruments (NPE rati","ES",0,15,2.55980191838267E-2,12,"",null,"IS_PFT_21",".",".",".",".",".",".",".",".",".",".",".",".",".",7.2622583199999993E-2,7.8982068500000002E-2,7.5827883400000004E-2,6.4192224800000003E-2,5.7582355799999999E-2,6.6527209500000004E-2,5.9743526499999998E-2,5.3676239700000003E-2,4.4588324899999997E-2,-4.3644084999999999E-2,-2.05039E-3,2.0840379900000001E-2,4.3990170699999998E-2]
["Leverage ratio (transitional definition of Tier 1)201706",201706,195,"Leverage ratio (transitional definition of Tier 1)",2.4053938169727201E-2,4.4436002621561298E-2,5.6557230708213301E-2,7.2019313042088806E-2,5.33325213991988E-2,7.5953332614364696E-2,0.12081390431891301,1263538184871.0801,23838622477872,5.6257041768941002E-2,7.1386423562784504E-2,5.0215567545514102E-2,151,5.0215567545514102E-2,7.1386423562784504E-2,0,"Non-performing debt instruments (loans and advances & debt securities) other than held for trading to total gross debt instruments (NPE rati13",202012,92,"Non-performing debt instruments (loans and advances & debt securities) other than held for trading to total gross debt instruments (NPE rati","IS",0,3,2.5443562138560999E-2,13,"",null,"IS_PFT_23",".",".",".",".",".",".",".",".",".",".",".",".",".",0.57199854920000004,0.60425112859999996,0.62539585710000001,0.61853909839999999,0.60783523449999999,0.55309219759999995,0.55920829189999999,0.56568231609999997,0.55304477519999995,0.69714068730000001,0.55653556660000003,0.51479797490000001,0.49307347750000002]
[{"$f":"+D387&B387","v":"Leverage ratio (transitional definition of Tier 1)201709"},201709,195,"Leverage ratio (transitional definition of Tier 1)",3.0020188619317101E-2,4.5386883187065498E-2,5.6397390422451801E-2,7.2240407017171604E-2,5.3727134824491797E-2,7.7035786552764704E-2,0.127933194549333,1279132198154.96,23875104597639.699,5.5225017412843899E-2,7.3164616941993804E-2,5.0610439853143098E-2,151,{"$f":"MIN(N387:P387)","v":5.0610439853143098E-2},{"$f":"MAX(N387:P387)","v":7.3164616941993804E-2},0,{"$f":"CONCATENATE(X387,AC387)","v":"Non-performing debt instruments (loans and advances & debt securities) other than held for trading to total gross debt instruments (NPE rati14"},202012,92,"Non-performing debt instruments (loans and advances & debt securities) other than held for trading to total gross debt instruments (NPE rati","SI",0,6,2.4097669203687201E-2,14,"",null,"IS_PFT_24",".",".",".",".",".",".",".",".",".",".",".",".",".",1.4041575800000001E-2,1.4524248700000001E-2,1.3866296300000001E-2,1.1472626E-2,1.0467410200000001E-2,1.10181498E-2,9.8139257999999997E-3,8.8588626999999993E-3,7.5112594000000003E-3,-6.9873130000000002E-3,-3.2882099999999997E-4,3.2971019000000001E-3,7.1300570000000004E-3]
["Leverage ratio (transitional definition of Tier 1)201712",201712,195,"Leverage ratio (transitional definition of Tier 1)",3.4142958297544303E-2,4.7541872414171897E-2,5.8698125125761703E-2,7.4961303110448005E-2,5.5518087411090301E-2,8.1086427568462793E-2,0.149450300197881,1293138676867.8899,23192290380665.699,5.8761531397147702E-2,7.5714668573174299E-2,5.2070067597182898E-2,152,5.2070067597182898E-2,7.5714668573174299E-2,0,"Non-performing debt instruments (loans and advances & debt securities) other than held for trading to total gross debt instruments (NPE rati15",202012,92,"Non-performing debt instruments (loans and advances & debt securities) other than held for trading to total gross debt instruments (NPE rati","FR",0,13,1.9953159421083701E-2,15,"",null,"IS_PFT_25",".",".",".",".",".",".",".",".",".",".",".",".",".",0.62937232909999996,0.62878304569999999,0.65209357749999997,0.67139088130000002,0.71357324300000002,0.6423032622,0.66388964709999998,0.68362679159999995,0.67167308100000001,0.92923177170000004,0.77096326770000001,0.75718754050000003,0.70950628950000005]
["Leverage ratio (transitional definition of Tier 1)201803",201803,195,"Leverage ratio (transitional definition of Tier 1)",3.17767787810617E-2,4.5576092724675499E-2,5.7641734059312798E-2,7.4718932396822701E-2,5.32648491762375E-2,8.11285504407184E-2,0.14171113047553199,1269065587779.1699,23711402614531.102,5.4397429246031699E-2,7.3489478837496194E-2,5.0103854063424699E-2,151,5.0103854063424699E-2,7.3489478837496194E-2,{"$f":"IF(OR(G389<R389,G389>S389),1,0)","v":0},"Non-performing debt instruments (loans and advances & debt securities) other than held for trading to total gross debt instruments (NPE rati16",202012,92,"Non-performing debt instruments (loans and advances & debt securities) other than held for trading to total gross debt instruments (NPE rati","SK",0,3,1.84901797677069E-2,16,"",null,"IS_PFT_26",".",".",".",".",".",".",".",".",".",".",".",".",".",0.2458286848,0.2073919591,0.2341899455,0.23874698520000001,0.2148603358,0.18637031800000001,0.19552959559999999,0.196219002,0.20428375779999999,0.27633610050000001,0.21467552549999999,0.21595186120000001,0.20610350559999999]
["Leverage ratio (transitional definition of Tier 1)201806",201806,195,"Leverage ratio (transitional definition of Tier 1)",3.2692221993571198E-2,4.6540777929133699E-2,5.9832526578397598E-2,7.4299421135388705E-2,5.3056333286890703E-2,7.8436237922205998E-2,0.14299365886672799,1275295007216.3501,23920877343233.398,5.5984045815051099E-2,7.3449383030980295E-2,4.9678832316583203E-2,151,4.9678832316583203E-2,7.3449383030980295E-2,{"$f":"IF(OR(G390<R390,G390>S390),1,0)","v":0},"Non-performing debt instruments (loans and advances & debt securities) other than held for trading to total gross debt instruments (NPE rati17",202012,92,"Non-performing debt instruments (loans and advances & debt securities) other than held for trading to total gross debt instruments (NPE rati","AT",0,11,1.8198006840419501E-2,17,"",null,"IS_PFT_29",".",".",".",".",".",".",".",".",".",".",".",".",".",-9.5424289999999998E-3,1.1175457E-2,7.5666696999999996E-3,-1.4683969E-2,-1.0286763000000001E-2,1.1460168E-2,3.2690722899999997E-2,2.0759942100000001E-2,1.35429698E-2,-2.2115462999999998E-2,9.0432820999999993E-3,5.8740179000000003E-3,2.3790302999999999E-2]
["Leverage ratio (transitional definition of Tier 1)201809",201809,195,"Leverage ratio (transitional definition of Tier 1)",3.09334718740467E-2,4.70544394239387E-2,5.73468553376284E-2,7.3181089617789297E-2,5.31009354898586E-2,7.7799361635417202E-2,0.13839507764787601,1274588513688.1001,24046260181461.398,5.5687571526489697E-2,7.3692219645446394E-2,4.9767469337158199E-2,150,4.9767469337158199E-2,7.3692219645446394E-2,0,"Non-performing debt instruments (loans and advances & debt securities) other than held for trading to total gross debt instruments (NPE rati18",202012,92,"Non-performing debt instruments (loans and advances & debt securities) other than held for trading to total gross debt instruments (NPE rati","NL",0,6,1.8171959251682399E-2,18,"",null,"IS_PFT_41",".",".",".",".",".",".",".",".",".",".",".",".",".",3.01249936E-2,3.0675337300000001E-2,3.0361884799999999E-2,2.96824768E-2,2.99627466E-2,2.9030244399999999E-2,2.8836931699999999E-2,2.91906683E-2,2.9663401799999999E-2,2.6061923800000001E-2,2.6190768400000002E-2,2.51388328E-2,2.5964160100000001E-2]
["Leverage ratio (transitional definition of Tier 1)201812",201812,195,"Leverage ratio (transitional definition of Tier 1)",3.0658103158066E-2,4.8911654356335203E-2,5.9510128469668903E-2,7.5687773353462898E-2,5.4973080662208303E-2,8.4128026048278695E-2,0.141820611088496,1294117792898.1101,23492297339210.5,6.1001491111292397E-2,7.4529804036548103E-2,5.1326251219169297E-2,149,5.1326251219169297E-2,7.4529804036548103E-2,0,"Non-performing debt instruments (loans and advances & debt securities) other than held for trading to total gross debt instruments (NPE rati19",202012,92,"Non-performing debt instruments (loans and advances & debt securities) other than held for trading to total gross debt instruments (NPE rati","LV",0,5,1.7253998041906402E-2,19,1,null,"IS_PFT_43",".",".",".",".",".",".",".",".",".",".",".",".",".",".",2.9524985000000002E-3,4.0233583E-3,3.7485783999999999E-3,5.2427109000000001E-3,5.4152908E-3,7.6931457999999996E-3,6.1589204999999998E-3,6.6789231000000003E-3,1.85892759E-2,1.7857361200000001E-2,1.3378716800000001E-2,1.07653357E-2]
["Leverage ratio (transitional definition of Tier 1)201903",201903,195,"Leverage ratio (transitional definition of Tier 1)",2.9018128318457501E-2,4.6809293452520301E-2,5.9960113578182699E-2,7.6156684644825501E-2,5.3450581766642601E-2,8.2425469469728604E-2,0.13321283565618799,1298228712341.29,24374698335426.898,5.8913157948342801E-2,7.3503022547966104E-2,4.9825611149235199E-2,150,4.9825611149235199E-2,7.3503022547966104E-2,0,"Non-performing debt instruments (loans and advances & debt securities) other than held for trading to total gross debt instruments (NPE rati20",202012,92,"Non-performing debt instruments (loans and advances & debt securities) other than held for trading to total gross debt instruments (NPE rati","DK",0,5,1.70156777326879E-2,20,"",null,"IS_SVC_1",".",".",".",".",".",".",".",".",".",".",".",".",".",0.24298134399999999,0.22863517550000001,0.22261144829999999,0.21730125659999999,0.2181572279,0.20911040880000001,0.2086901628,0.20910587759999999,0.2181839253,0.22012599829999999,0.2225294958,0.21861250360000001,0.22423981009999999]
["Leverage ratio (transitional definition of Tier 1)201906",201906,195,"Leverage ratio (transitional definition of Tier 1)",3.1345244739859897E-2,4.67261545977379E-2,6.0272994929064003E-2,7.6894324462060695E-2,5.3824950935389103E-2,8.3825998902492399E-2,0.13354094968993199,1302804608199.24,24279972210170.102,6.1612898160374199E-2,7.4979561028224895E-2,4.9861543613017999E-2,148,4.9861543613017999E-2,7.4979561028224895E-2,0,"Non-performing debt instruments (loans and advances & debt securities) other than held for trading to total gross debt instruments (NPE rati21",202012,92,"Non-performing debt instruments (loans and advances & debt securities) other than held for trading to total gross debt instruments (NPE rati","BE",0,8,1.6746997686180199E-2,21,"",null,"IS_SVC_12",".",".",".",".",".",".",".",".",".",".",".",".",".",0.1666988338,0.1533211407,0.15127058970000001,0.14618897820000001,0.15020140600000001,0.14102643570000001,0.14036563730000001,0.13901536589999999,0.1478502032,0.14274120009999999,0.14404227010000001,0.1386440907,0.1458520794]
["Leverage ratio (transitional definition of Tier 1)201909",201909,195,"Leverage ratio (transitional definition of Tier 1)",3.05098179680992E-2,4.6033294811650201E-2,6.1265666115216201E-2,7.5844200466259795E-2,5.36073161761269E-2,8.3205298045874995E-2,0.135439860053123,1316924660022.8999,24541864166324.199,6.0792671524528601E-2,7.4341921868066096E-2,4.9734935083159702E-2,148,4.9734935083159702E-2,7.4341921868066096E-2,0,"Non-performing debt instruments (loans and advances & debt securities) other than held for trading to total gross debt instruments (NPE rati22",202012,92,"Non-performing debt instruments (loans and advances & debt securities) other than held for trading to total gross debt instruments (NPE rati","LU",0,11,1.53560918459681E-2,22,"",null,"IS_SVC_13",".",".",".",".",".",".",".",".",".",".",".",".",".",0.16669760719999999,0.15459677159999999,0.15127083180000001,0.14618882559999999,0.15020140600000001,0.14102643570000001,0.14038125500000001,0.13901536589999999,0.1478502032,0.1427414417,0.14398861039999999,0.13973172,0.14685709329999999]
["Leverage ratio (transitional definition of Tier 1)201912",201912,195,"Leverage ratio (transitional definition of Tier 1)",3.3748797618543401E-2,4.8899513558338902E-2,6.2475220916564399E-2,7.3794158100165402E-2,5.6565043272972702E-2,8.5599470169606798E-2,0.13404710714064699,1349002954255.76,23748185927993.398,6.7246983412578204E-2,7.6085577479945404E-2,5.2450370309661098E-2,147,5.2450370309661098E-2,7.6085577479945404E-2,0,"Non-performing debt instruments (loans and advances & debt securities) other than held for trading to total gross debt instruments (NPE rati23",202012,92,"Non-performing debt instruments (loans and advances & debt securities) other than held for trading to total gross debt instruments (NPE rati","NO",0,4,1.41699996009083E-2,23,"",null,"IS_SVC_2",".",".",".",".",".",".",".",".",".",".",".",".",".",0.25049969350000001,0.23220792670000001,0.22609622839999999,0.22800799129999999,0.23180977129999999,0.22306237070000001,0.22650661120000001,0.2277283977,0.24174611360000001,0.24505292940000001,0.24821454330000001,0.2442700156,0.24928625839999999]
["Leverage ratio (transitional definition of Tier 1)202003",202003,195,"Leverage ratio (transitional definition of Tier 1)",3.5478301653276298E-2,4.6627950742972199E-2,6.2560185266361798E-2,7.2940215745651904E-2,5.3371033990839603E-2,8.4528624892274098E-2,0.130742550866317,1330078283064.0801,25179389175743,6.2228619961463998E-2,7.3838732449915304E-2,4.9219664211769397E-2,131,4.9219664211769397E-2,7.3838732449915304E-2,0,"Non-performing debt instruments (loans and advances & debt securities) other than held for trading to total gross debt instruments (NPE rati24",202012,92,"Non-performing debt instruments (loans and advances & debt securities) other than held for trading to total gross debt instruments (NPE rati","FI",0,7,1.3406516628610801E-2,24,"",null,"IS_SVC_29",".",".",".",".",".",".",".",".",".",".",".",".",".",0.2429295125,0.2285839217,0.22232262420000001,0.21702277619999999,0.218108301,0.2090621148,0.20864239670000001,0.2090577871,0.21811501690000001,0.21455082419999999,0.2154445374,0.20991772410000001,0.2159520747]
["Leverage ratio (transitional definition of Tier 1)202006",202006,195,"Leverage ratio (transitional definition of Tier 1)",3.4127610930379297E-2,4.7918658779872197E-2,6.02302229372167E-2,7.2402166336602E-2,5.3098014035108602E-2,8.1555057589332999E-2,0.133431227254969,1361226429461.3101,25931751561590.801,6.2648818507590395E-2,7.1938982175022204E-2,4.9176494140896997E-2,131,4.9176494140896997E-2,7.1938982175022204E-2,0,"Non-performing debt instruments (loans and advances & debt securities) other than held for trading to total gross debt instruments (NPE rati25",202012,92,"Non-performing debt instruments (loans and advances & debt securities) other than held for trading to total gross debt instruments (NPE rati","CZ",0,3,1.25453152544504E-2,25,"",null,"IS_SVC_3",".",".",".",".",".",".",".",".",".",".",".",".",".",0.2429295125,0.2285839217,0.22232262420000001,0.21702277619999999,0.218108301,0.2090621148,0.20864239670000001,0.2090577871,0.21811501690000001,0.21455082419999999,0.2170038661,0.21332824989999999,0.21935643229999999]
["Leverage ratio (transitional definition of Tier 1)202009",202009,195,"Leverage ratio (transitional definition of Tier 1)",3.7065745723714301E-2,5.0271546723105798E-2,6.3701202714198199E-2,7.4915625600227201E-2,5.6126754823136102E-2,8.3913803370810405E-2,0.13907079121466301,1363990130825.28,24637769018218.301,7.1620186240837297E-2,7.3530860082832897E-2,5.2191647372748597E-2,129,5.2191647372748597E-2,7.3530860082832897E-2,0,"Non-performing debt instruments (loans and advances & debt securities) other than held for trading to total gross debt instruments (NPE rati26",202012,92,"Non-performing debt instruments (loans and advances & debt securities) other than held for trading to total gross debt instruments (NPE rati","LT",0,4,1.1841836551157701E-2,26,"",null,"IT_AQT_3.1",0.13502771820000001,0.140116293,0.1367181103,0.1377933935,0.13903240450000001,0.13887467479999999,0.1362323708,0.13370883889999999,0.1343744446,0.12589482430000001,0.1225466719,0.1002443536,9.88359917E-2,9.3537993599999994E-2,9.0603892500000005E-2,8.0570158500000003E-2,7.74836468E-2,6.8633789799999997E-2,6.6884212499999998E-2,6.4243675400000005E-2,5.8222279299999999E-2,5.3591016800000002E-2,5.1017104299999998E-2,4.80274048E-2,4.27640507E-2,3.3359260199999997E-2]
["Leverage ratio (transitional definition of Tier 1)202012",202012,195,"Leverage ratio (transitional definition of Tier 1)",3.8578523518263699E-2,5.1888711780728999E-2,6.4414077334764105E-2,7.7203702561013304E-2,5.9698751081502001E-2,8.6973842008909494E-2,0.13718062094977301,1412932397102.0901,23947470635965.102,7.2968331925886296E-2,7.5987528632890794E-2,5.5912319310573097E-2,129,5.5912319310573097E-2,7.5987528632890794E-2,0,"Non-performing debt instruments (loans and advances & debt securities) other than held for trading to total gross debt instruments (NPE rati27",202012,92,"Non-performing debt instruments (loans and advances & debt securities) other than held for trading to total gross debt instruments (NPE rati","DE",0,23,1.12093699807624E-2,27,"",null,"IT_AQT_3.2",0.16255438929999999,0.1699441116,0.16688415540000001,0.1681943021,0.16941210500000001,0.16833437849999999,0.16623788819999999,0.16421291960000001,0.1636899134,0.15292757069999999,0.14789543350000001,0.1201139948,0.1184842783,0.11130600929999999,0.1077810168,9.7291429099999993E-2,9.3595668199999996E-2,8.2667582399999995E-2,8.2547370300000006E-2,7.9005148400000003E-2,7.21864324E-2,6.6741588899999996E-2,6.3738493600000001E-2,6.0662452899999997E-2,5.37254702E-2,4.1334996700000001E-2]
["CET 1 ratio (fully phased-in definition)201409",201409,208,"CET 1 ratio (fully phased-in definition)",6.9484150412604501E-2,0.10181032263659399,0.115862226752176,0.14592284599233099,0.112700841127113,0.15073047616229299,0.30455341150377102,921875624677.33301,8271216318327.6299,0.11809640553468299,0.119145100867486,0.11069833452179501,151,0.11069833452179501,0.119145100867486,0,"Non-performing debt instruments (loans and advances & debt securities) other than held for trading to total gross debt instruments (NPE rati28",202012,92,"Non-performing debt instruments (loans and advances & debt securities) other than held for trading to total gross debt instruments (NPE rati","EE",0,4,1.0031444335273801E-2,28,"",null,"IT_AQT_31",6.9929332100000005E-2,6.8310841999999997E-2,6.6212436299999997E-2,6.7424811400000007E-2,6.8694929000000002E-2,6.8311858000000003E-2,6.64344464E-2,6.4513052900000006E-2,6.43254568E-2,5.8102210699999997E-2,5.4862599599999999E-2,4.5818447399999997E-2,4.4907734499999998E-2,4.2278032E-2,2.90847495E-2,2.5963775800000002E-2,2.4933468899999998E-2,2.2095643799999998E-2,2.1960378700000002E-2,2.10731711E-2,1.9078114199999999E-2,1.6957779999999999E-2,1.6455633000000001E-2,1.6093213799999999E-2,1.3510704300000001E-2,9.6976784999999992E-3]
["CET 1 ratio (fully phased-in definition)201412",201412,208,"CET 1 ratio (fully phased-in definition)",5.9841418112193498E-2,0.10547167693345599,0.12005776575036101,0.146962192950297,0.115136925292985,0.151052529952176,0.33734464141882797,926388914400.5,8211374756265.1504,0.131363364869369,0.117248571328207,0.112852233140396,153,0.112852233140396,0.131363364869369,{"$f":"IF(OR(G402<R402,G402>S402),1,0)","v":0},"Non-performing debt instruments (loans and advances & debt securities) other than held for trading to total gross debt instruments (NPE rati29",202012,92,"Non-performing debt instruments (loans and advances & debt securities) other than held for trading to total gross debt instruments (NPE rati","SE",0,8,4.3241245026840501E-3,29,"",null,"IT_AQT_41.2",0.43603653520000002,0.4523866949,0.4503137915,0.45246424499999999,0.45130878299999999,0.45476758239999998,0.45776203030000001,0.46362816880000002,0.47171931769999997,0.48948377360000001,0.50563582470000001,0.49878017299999999,0.50080294459999997,0.50577312259999996,0.55433466310000001,0.54437336650000001,0.54494368820000005,0.53358551590000003,0.53315849630000001,0.52963510749999998,0.5284135754,0.53770268880000005,0.53785875000000005,0.52713335719999999,0.53807245910000001,0.53467597990000004]
["CET 1 ratio (fully phased-in definition)201503",201503,208,"CET 1 ratio (fully phased-in definition)",7.6570004947511705E-2,0.105658063950739,0.122640794314665,0.15116773314564899,0.11671436739317299,0.152208773582029,0.28447323169225902,984929764566.59497,8508233666463.0801,0.12841929760208401,0.12411622302132801,0.11374914975631201,154,0.11374914975631201,0.12841929760208401,0,"Non-performing debt instruments (loans and advances & debt securities) other than held for trading to total gross debt instruments (NPE rati99",202012,92,"Non-performing debt instruments (loans and advances & debt securities) other than held for trading to total gross debt instruments (NPE rati","EU",0,116,2.2632167774319398E-2,99,"",null,"IT_AQT_42.2",4.1094651900000001E-2,4.52599417E-2,4.7028467300000001E-2,4.82919354E-2,4.9676404E-2,5.1095064500000002E-2,5.0967282099999997E-2,5.2658424500000002E-2,5.4122911099999997E-2,5.4317693799999997E-2,5.2484442999999999E-2,4.9150911200000001E-2,4.8234402099999997E-2,4.6784346800000001E-2,4.6260377200000001E-2,4.5290225099999998E-2,4.4110380499999997E-2,4.2046012899999999E-2,4.1565669899999998E-2,4.0464136800000002E-2,3.8028940099999999E-2,3.5671692099999999E-2,3.3203179999999999E-2,3.3330119399999997E-2,2.9759808299999999E-2,2.5911316E-2]
["CET 1 ratio (fully phased-in definition)201506",201506,208,"CET 1 ratio (fully phased-in definition)",7.9873247453893806E-2,0.106147269865747,0.12340995632323599,0.150015204204687,0.120720523997859,0.150151115619647,0.30151955653595802,992321457455.41394,8374743902008.7998,0.13590369446199599,0.12597102037843999,0.11787383623480401,153,0.11787383623480401,0.13590369446199599,0,"Non-performing debt instruments (loans and advances & debt securities) other than held for trading to total gross debt instruments (NPE rati100",202012,92,"Non-performing debt instruments (loans and advances & debt securities) other than held for trading to total gross debt instruments (NPE rati","GB",0,26,1.16464197800492E-2,100,"",null,"IT_FND_32",1.5364474668000001,1.4517066700000001,1.4539235198,1.4483345811999999,1.4199499019999999,1.36112681,1.3692374009999999,1.3614331087,1.3307377961,1.2692690902999999,1.2991868826999999,1.2677798265,1.2291413834,1.204258665,1.1933593372,1.1922904244000001,1.1825395203,1.1697668647999999,1.1117213154000001,1.1182247315,1.1001153781999999,1.0837359883,1.0864161713,1.0475982332,1.0113274205,0.97446161090000005]
["CET 1 ratio (fully phased-in definition)201509",201509,208,"CET 1 ratio (fully phased-in definition)",8.12239078166236E-2,0.111046150620428,0.127282764383015,0.15378321528866801,0.122633367098266,0.16141835605472901,0.33061898310714199,993511880680.87402,8312111550261.1797,0.14782183929672399,0.129055214412716,0.11853679053024101,153,0.11853679053024101,0.14782183929672399,0,"Share of non-performing loans and advances.(NPL ratio)1",202012,93,"Share of non-performing loans and advances.(NPL ratio)","GR",0,4,0.25544358558540797,1,"",null,"IT_FND_33",".",0.28271815789999999,0.26870790900000002,0.27515799060000001,0.26780422710000001,0.26916919919999999,0.28318719660000002,0.29395384499999999,0.29099605849999999,0.30038885830000001,0.3061592185,0.29607597489999998,0.29432426099999998,0.2934233457,0.2956617392,0.30563871479999999,0.30688836209999998,0.30293229649999998,0.29082159390000001,0.2945703563,0.28434901559999998,0.2760524526,0.30064906149999998,0.29096904699999998,0.29225641499999999,0.28911781619999999]
["CET 1 ratio (fully phased-in definition)201512",201512,208,"CET 1 ratio (fully phased-in definition)",9.78626908801975E-2,0.116892146952967,0.13542629478021201,0.163176184066994,0.12946306062361701,0.166587601800705,0.35047908403507599,1042363939540.01,8245913529134.7803,0.153349090538934,0.14222078279445899,0.12419769230214001,152,0.12419769230214001,0.153349090538934,0,"Share of non-performing loans and advances.(NPL ratio)2",202012,93,"Share of non-performing loans and advances.(NPL ratio)","CY",0,4,0.11489619394151999,2,1,null,"IT_LIQ_17",".",".",".",".",".",".",".",".",1.5381290954,1.4376963785000001,1.6091575449,1.9478279138000001,1.7764124696000001,1.5956206599,1.6703516796,1.4426704833999999,1.4647020874000001,1.4545063001,1.6764276404,1.5657240884000001,1.6377102613000001,1.4841194006,1.6004423555,1.7984047055000001,1.9151983827000001,1.8713641584]
["CET 1 ratio (fully phased-in definition)201603",201603,208,"CET 1 ratio (fully phased-in definition)",9.7999083731069803E-2,0.11699627712555,0.13802956840153299,0.167334826601193,0.129348668358158,0.17223926922900301,0.38270893729505601,1040598479967.59,8231042821523.4805,0.15283874141685999,0.142824600901964,0.123576345349273,156,0.123576345349273,0.15283874141685999,0,"Share of non-performing loans and advances.(NPL ratio)3",202012,93,"Share of non-performing loans and advances.(NPL ratio)","BG",0,4,7.0213793147929707E-2,3,"",null,"IT_PFT_21",2.4515537899999999E-2,-3.7299924999999998E-2,6.5185703100000006E-2,4.3584183499999998E-2,3.9405283700000002E-2,3.09067643E-2,3.3241344200000002E-2,2.2040378400000001E-2,1.4746435400000001E-2,-0.107548197,0.1328775583,0.1134436092,0.1106014389,9.0121398500000005E-2,8.3554127000000006E-2,7.3707981300000003E-2,6.1132953400000002E-2,6.09129645E-2,7.8960989400000001E-2,8.5801565299999993E-2,8.4754866400000003E-2,5.5964948399999999E-2,-2.1355348999999999E-2,2.9970444000000001E-3,3.8358380599999999E-2,4.2789163999999999E-3]
["CET 1 ratio (fully phased-in definition)201606",201606,208,"CET 1 ratio (fully phased-in definition)",9.6804743354662506E-2,0.118655821253806,0.13740098513931001,0.16893862550265801,0.13115956577489599,0.17639362839459199,0.39709984163133399,1050966954319.74,8233496678061.9805,0.15735943985522399,0.14493335402093399,0.125031442307284,156,0.125031442307284,0.15735943985522399,0,"Share of non-performing loans and advances.(NPL ratio)4",202012,93,"Share of non-performing loans and advances.(NPL ratio)","PL",0,3,5.0890386124688998E-2,4,"",null,"IT_PFT_23",0.61970003230000004,0.63362313469999998,0.58639810390000002,0.60370311350000005,0.6171908679,0.64598704100000004,0.69027073149999996,0.67572164560000003,0.67203450620000005,0.74762568370000004,0.6833545016,0.56504764389999995,0.60327873499999995,0.63893416489999999,0.63573767680000004,0.63279857019999997,0.63218289760000002,0.64163389650000002,0.6673741487,0.65248920929999998,0.64143055039999997,0.6480120238,0.72934984219999999,0.71493335280000003,0.69528020339999996,0.72787201180000005]
["CET 1 ratio (fully phased-in definition)201609",201609,208,"CET 1 ratio (fully phased-in definition)",9.9719321031867897E-2,0.119486400886957,0.14196256843983801,0.17495003549497001,0.13539517278660301,0.179368545199141,0.446796692622486,1060946236692.6801,8158842318775.9004,0.16689822765600401,0.146089947402157,0.129319579598038,155,0.129319579598038,0.16689822765600401,0,"Share of non-performing loans and advances.(NPL ratio)5",202012,93,"Share of non-performing loans and advances.(NPL ratio)","PT",0,8,4.9100907773047799E-2,5,"",null,"IT_PFT_24",1.7607E-3,-2.5612149999999999E-3,4.5019852000000001E-3,3.0496236000000002E-3,2.7925560999999999E-3,2.1918396999999999E-3,2.4037685999999999E-3,1.5838652999999999E-3,1.0705682999999999E-3,-7.4346020000000002E-3,9.0685585000000006E-3,7.7383699999999996E-3,7.8474814999999996E-3,6.4690164000000003E-3,6.4225104000000003E-3,5.5427445000000002E-3,4.5933702000000003E-3,4.6361570000000001E-3,5.8728451000000003E-3,6.4144158999999996E-3,6.3256932000000004E-3,4.2347427999999999E-3,-1.6262189999999999E-3,2.2547849999999999E-4,2.8663998000000002E-3,3.1389729999999999E-4]
["CET 1 ratio (fully phased-in definition)201612",201612,208,"CET 1 ratio (fully phased-in definition)",7.6055393051231907E-2,0.120338197223466,0.14600761627019701,0.18286413598212001,0.13693528456013801,0.1872379957276,0.46213014682218001,1066162446624.37,8113004291219.6602,0.17481234519622099,0.14616314229954899,0.130308220192314,158,0.130308220192314,0.17481234519622099,0,"Share of non-performing loans and advances.(NPL ratio)6",202012,93,"Share of non-performing loans and advances.(NPL ratio)","HR",0,3,4.3500259909075203E-2,6,"",null,"IT_PFT_25",0.50747261889999995,0.5075483127,0.44790346959999999,0.46321255839999997,0.48468475859999999,0.47468137170000002,0.4914600388,0.47181015900000001,0.47591955419999998,0.48177162639999999,0.4776919556,0.40745309200000002,0.43053797989999998,0.43857710659999999,0.4664530858,0.4808588016,0.48975328470000001,0.4965029963,0.49304284500000001,0.49658946869999998,0.49257301129999997,0.48492139940000001,0.46181310269999998,0.49144474900000001,0.49422984330000003,0.49426060370000002]
["CET 1 ratio (fully phased-in definition)201703",201703,208,"CET 1 ratio (fully phased-in definition)",9.1526194198327193E-2,0.12178568859067899,0.14512883488487199,0.18098502444435599,0.137650188107763,0.186168553559517,0.447868237223078,1092983225039.97,8151861141246.0498,0.15696371513773,0.15098916437075899,0.132625793699025,153,0.132625793699025,0.15696371513773,0,"Share of non-performing loans and advances.(NPL ratio)7",202012,93,"Share of non-performing loans and advances.(NPL ratio)","IE",0,8,4.1939032940751103E-2,7,"",null,"IT_PFT_26",0.34893451339999998,0.3513641367,0.35309276049999999,0.36408602089999997,0.36668464360000003,0.36079499409999999,0.3709790308,0.36455217909999998,0.36514894599999997,0.35761280179999999,0.37890724409999998,0.32737780370000003,0.34551714919999998,0.355454451,0.37823867059999999,0.38385169099999999,0.38155361799999998,0.38525109610000002,0.36459655990000001,0.36875934129999999,0.37108010340000003,0.37580111150000001,0.36323908649999997,0.37154087769999999,0.37138817089999998,0.38443703930000001]
["CET 1 ratio (fully phased-in definition)201706",201706,208,"CET 1 ratio (fully phased-in definition)",0.101127804781837,0.12472846738344399,0.14695352017381699,0.18697540610027499,0.139688307528685,0.19096091486750399,0.41449071074770799,1101111360426.0801,8133651874068.4902,0.16021545261584,0.1534673348351,0.134487168626644,151,0.134487168626644,0.16021545261584,0,"Share of non-performing loans and advances.(NPL ratio)8",202012,93,"Share of non-performing loans and advances.(NPL ratio)","IT",0,16,4.1334996697580298E-2,8,"",null,"IT_PFT_29",6.0242096999999998E-3,1.0490760000000001E-4,2.5996027200000001E-2,1.5959311999999999E-3,-5.04668E-4,1.18387983E-2,-8.8370779999999999E-3,5.9550421999999999E-3,1.54729906E-2,2.0794093600000001E-2,6.1560290400000002E-2,3.72542259E-2,3.1916933100000003E-2,3.5338133600000002E-2,2.3959593099999999E-2,2.7907167199999999E-2,4.4703349900000001E-2,2.3845670900000001E-2,5.0091027699999999E-2,2.7061800399999999E-2,2.8959637699999999E-2,3.2751532399999998E-2,-4.4594506999999999E-2,1.1161761900000001E-2,1.14987366E-2,1.65104581E-2]
["CET 1 ratio (fully phased-in definition)201709",201709,208,"CET 1 ratio (fully phased-in definition)",0.10648215878027199,0.127279911731217,0.14849859403490001,0.189029753226094,0.14293776505855799,0.18995111745683199,0.42178672970867598,1120591786485.8601,8008117405535.46,0.15530526782659601,0.16031975907496601,0.13793161175216601,151,0.13793161175216601,0.16031975907496601,0,"Share of non-performing loans and advances.(NPL ratio)9",202012,93,"Share of non-performing loans and advances.(NPL ratio)","HU",0,4,4.0393607696588799E-2,9,"",null,"IT_PFT_41",1.6720645700000002E-2,1.6803763400000001E-2,1.55485242E-2,1.5858493000000001E-2,1.6070753100000001E-2,1.6136561099999999E-2,1.53016909E-2,1.51388307E-2,1.51608122E-2,1.46319877E-2,1.4345464800000001E-2,1.43092611E-2,1.4266998499999999E-2,1.4317279400000001E-2,1.46019225E-2,1.4684525299999999E-2,1.47415137E-2,1.4845553500000001E-2,1.4915540099999999E-2,1.4834414299999999E-2,1.4586733100000001E-2,1.45933461E-2,1.34558638E-2,1.30776334E-2,1.27286903E-2,1.2756613999999999E-2]
["CET 1 ratio (fully phased-in definition)201712",201712,208,"CET 1 ratio (fully phased-in definition)",0.11304043502844401,0.132975888870008,0.15463213605748999,0.20430524764805,0.146075899556248,0.20149298248719599,0.43714706269239401,1142196531167.6201,7960181445440.9404,0.15683650995444601,0.165643933930267,0.14080614033119601,152,0.14080614033119601,0.165643933930267,0,"Share of non-performing loans and advances.(NPL ratio)10",202012,93,"Share of non-performing loans and advances.(NPL ratio)","RO",0,3,3.7438805214794799E-2,10,"",null,"IT_PFT_43",".",".",".",".",".",".",".",".",".",".",".",".",".",".",6.3519689000000002E-3,7.3041927E-3,6.0438258999999999E-3,7.1322827E-3,4.7056194000000004E-3,5.3501488000000002E-3,5.1731236999999998E-3,6.1244936999999998E-3,7.1121340999999996E-3,7.9011624999999995E-3,7.1419787E-3,9.4807008999999998E-3]
["CET 1 ratio (fully phased-in definition)201803",201803,208,"CET 1 ratio (fully phased-in definition)",0.106648735252364,0.12881788603212199,0.152378613889642,0.198993868282901,0.14270885157621299,0.20100458763052001,0.44301030689141102,1113054488566.9099,7977705205597.5098,0.153035025275985,0.15972727013383001,0.138063975336535,151,0.138063975336535,0.15972727013383001,0,"Share of non-performing loans and advances.(NPL ratio)11",202012,93,"Share of non-performing loans and advances.(NPL ratio)","MT",0,5,3.4619045608813501E-2,11,"",null,"IT_SVC_1",0.1215000233,0.1169893446,0.1141864333,0.12060179930000001,0.12234432169999999,0.1218969239,0.1211985287,0.1242627293,0.125792245,0.1109511265,0.12308734039999999,0.128627045,0.14228798170000001,0.14436626620000001,0.1438004514,0.1388192184,0.13836790369999999,0.13805809420000001,0.14152920390000001,0.14438906369999999,0.1476753499,0.15014339369999999,0.1541468631,0.16187002619999999,0.16723450779999999,0.1710555258]
["CET 1 ratio (fully phased-in definition)201806",201806,208,"CET 1 ratio (fully phased-in definition)",0.106062662903221,0.12762203638324399,0.15465144110757201,0.19738768359490599,0.14267920039430301,0.21048894602781901,0.416399345632398,1116833875092.96,8043305713843.6797,0.15896562027142799,0.16013174796771101,0.13723619499829101,151,0.13723619499829101,0.16013174796771101,0,"Share of non-performing loans and advances.(NPL ratio)12",202012,93,"Share of non-performing loans and advances.(NPL ratio)","SI",0,6,3.1844542525970902E-2,12,"",null,"IT_SVC_12",".",".",".",".",".",".",".",".",5.36440475E-2,4.5584659600000001E-2,5.0639961099999999E-2,5.1772951499999997E-2,5.6773835600000003E-2,5.8234383299999998E-2,5.35057569E-2,5.2149356899999999E-2,5.1167905499999999E-2,5.0812661100000003E-2,5.2335989399999998E-2,5.3242559600000003E-2,5.4513220100000002E-2,5.6981296399999999E-2,5.6859554200000002E-2,5.5418224100000003E-2,5.66468361E-2,6.0838199799999999E-2]
["CET 1 ratio (fully phased-in definition)201809",201809,208,"CET 1 ratio (fully phased-in definition)",0.108398156957182,0.128187383792117,0.15558965062833399,0.20121230583215,0.144584438326437,0.208174582976622,0.41469329119981202,1117996374386.96,7998202903306.0498,0.167550519430576,0.160914934098144,0.13862682860650299,150,0.13862682860650299,0.167550519430576,0,"Share of non-performing loans and advances.(NPL ratio)13",202012,93,"Share of non-performing loans and advances.(NPL ratio)","ES",0,15,2.9253182754899399E-2,13,"",null,"IT_SVC_13",".",".",".",".",".",".",".",".",5.5993606199999997E-2,4.8910291299999999E-2,5.30187295E-2,5.4224967499999999E-2,5.8887719599999999E-2,6.0323483400000003E-2,5.8146597199999997E-2,5.6830506699999998E-2,5.5549006800000002E-2,5.5611950600000001E-2,5.6511587699999997E-2,5.80734974E-2,5.8732684200000003E-2,6.10935757E-2,6.0413656400000001E-2,5.9921781299999997E-2,6.1085351699999998E-2,6.5700870199999997E-2]
["CET 1 ratio (fully phased-in definition)201812",201812,208,"CET 1 ratio (fully phased-in definition)",0.10654257428040401,0.12797861991965701,0.154499155674621,0.20277467744177999,0.14490682356682,0.20138610497071799,0.48553576144688199,1137788990859.6899,8124243100936.0098,0.17492550891296699,0.16232870809178401,0.138159182356727,149,0.138159182356727,0.17492550891296699,0,"Share of non-performing loans and advances.(NPL ratio)14",202012,93,"Share of non-performing loans and advances.(NPL ratio)","IS",0,3,2.6595241442318101E-2,14,"",null,"IT_SVC_2",0.15414820879999999,0.1423999745,0.14040514509999999,0.14793032170000001,0.14910240490000001,0.14802287389999999,0.1476385479,0.151265709,0.15264800849999999,0.1370058458,0.14935882280000001,0.15521440819999999,0.16813114300000001,0.16940765159999999,0.16841517789999999,0.1622252787,0.1616272594,0.1607781418,0.16346142920000001,0.16664612379999999,0.17123944969999999,0.17419457999999999,0.17730233919999999,0.1867749178,0.19149346959999999,0.19578311679999999]
["CET 1 ratio (fully phased-in definition)201903",201903,208,"CET 1 ratio (fully phased-in definition)",0.109309509830375,0.128595749996334,0.15242928047084001,0.18858751864008699,0.14326347906138401,0.18826984936039201,0.36914833302352901,1159582107286.0801,8316819833019.0801,0.169001249324542,0.15691466805722101,0.13747992335933501,150,0.13747992335933501,0.169001249324542,0,"Share of non-performing loans and advances.(NPL ratio)15",202012,93,"Share of non-performing loans and advances.(NPL ratio)","LV",0,5,2.2404419010888299E-2,15,1,null,"IT_SVC_29",0.1109876731,0.1063049142,0.1059167875,0.1114645276,0.11371504809999999,0.11339181299999999,0.1127586057,0.1146111771,0.1161705982,9.8682085000000003E-2,0.1115934104,0.11458245559999999,0.12886180359999999,0.12961112050000001,0.1232854085,0.1187903754,0.1189647658,0.1177647933,0.12239537910000001,0.12538057050000001,0.1295580399,0.13242582089999999,0.13407381630000001,0.13867465670000001,0.14203766800000001,0.14530717400000001]
["CET 1 ratio (fully phased-in definition)201906",201906,208,"CET 1 ratio (fully phased-in definition)",0.11437666450591601,0.132475423919996,0.15190745307437101,0.18808633983217399,0.144137071357194,0.18966245030819501,0.39696510990987499,1175081635612.71,8355763981031.9502,0.170357221772578,0.15766026527041899,0.138410731652787,148,0.138410731652787,0.170357221772578,0,"Share of non-performing loans and advances.(NPL ratio)16",202012,93,"Share of non-performing loans and advances.(NPL ratio)","FR",0,13,2.1923970518958402E-2,16,"",null,"IT_SVC_3",0.11695775949999999,0.1120254286,0.10912727329999999,0.1154053441,0.1162542262,0.1158249237,0.1142501534,0.1176264301,0.1192683549,0.10416558300000001,0.114387246,0.1182577073,0.1317461774,0.13279506939999999,0.1319473108,0.12739567169999999,0.12732963990000001,0.12708052659999999,0.1309151133,0.13372877590000001,0.13691151130000001,0.1398211338,0.14054627089999999,0.14805539879999999,0.15154008490000001,0.15522906810000001]
["CET 1 ratio (fully phased-in definition)201909",201909,208,"CET 1 ratio (fully phased-in definition)",0.113787632277011,0.13108427753669899,0.15172232872355901,0.18610396297659301,0.14381937290576899,0.18666509129543599,0.37193119445202999,1188580211097.1399,8438679880846.21,0.16717507394668399,0.15694141103340101,0.13835158716628601,148,0.13835158716628601,0.16717507394668399,0,"Share of non-performing loans and advances.(NPL ratio)17",202012,93,"Share of non-performing loans and advances.(NPL ratio)","SK",0,3,2.1505129666616898E-2,17,"",null,"LT_AQT_3.1",7.0222402700000006E-2,6.1946999199999998E-2,6.04675041E-2,5.7507268600000001E-2,5.3336198500000001E-2,4.8431547200000001E-2,4.7511444299999997E-2,4.3376226800000001E-2,3.9254319500000003E-2,3.6506488400000002E-2,3.57392022E-2,3.24367541E-2,3.02737909E-2,2.78211729E-2,2.9290904100000001E-2,2.6193487099999999E-2,2.4294373099999999E-2,2.2879970400000001E-2,1.71896258E-2,1.70892432E-2,1.5698323899999998E-2,1.4148584800000001E-2,1.3327012100000001E-2,1.28397602E-2,1.16272231E-2,1.1841836600000001E-2]
["CET 1 ratio (fully phased-in definition)201912",201912,208,"CET 1 ratio (fully phased-in definition)",0.11889700072875101,0.13458875426172001,0.158538424833361,0.190477555515352,0.15034274110099299,0.195065189762473,0.33382777738741898,1224390748210.72,8346598071659.2998,0.18542736271931601,0.16114075576284401,0.144162007763941,147,0.144162007763941,0.18542736271931601,0,"Share of non-performing loans and advances.(NPL ratio)18",202012,93,"Share of non-performing loans and advances.(NPL ratio)","AT",0,11,2.1008680071412801E-2,18,"",null,"LT_AQT_3.2",7.1908042599999999E-2,6.3411042500000001E-2,6.3705393900000004E-2,5.9998555799999999E-2,5.5456497399999999E-2,5.0868867200000001E-2,4.9164306900000003E-2,4.4988605100000002E-2,4.0719467400000001E-2,3.7754951000000002E-2,3.6660213900000002E-2,3.3313059800000003E-2,3.10619904E-2,2.84625573E-2,3.0061481300000002E-2,2.6777284700000001E-2,2.4819707699999999E-2,2.39637007E-2,1.83250228E-2,1.8168779999999999E-2,1.66326888E-2,1.49172312E-2,1.39220287E-2,1.35947541E-2,1.2308480700000001E-2,1.2522228999999999E-2]
["CET 1 ratio (fully phased-in definition)202003",202003,208,"CET 1 ratio (fully phased-in definition)",0.113294236013599,0.13043942698481001,0.15590777162368,0.18471591343477201,0.143544317460256,0.187451887779888,0.339917896920784,1205420333661.76,8496931578471.9805,0.19442219814824899,0.155989540760329,0.13861703380642701,131,0.13861703380642701,0.19442219814824899,0,"Share of non-performing loans and advances.(NPL ratio)19",202012,93,"Share of non-performing loans and advances.(NPL ratio)","NL",0,6,1.98721009469171E-2,19,"",null,"LT_AQT_31",3.8705151700000003E-2,2.9500508599999999E-2,1.9331806900000002E-2,1.9275821299999999E-2,1.77774232E-2,1.6031809099999999E-2,1.5375179399999999E-2,1.54072971E-2,1.41283586E-2,1.3368802799999999E-2,1.2775003700000001E-2,1.11570039E-2,1.0619578399999999E-2,1.0333193900000001E-2,1.33922795E-2,1.3048960599999999E-2,1.1469525899999999E-2,1.0379891800000001E-2,8.4624711000000005E-3,8.0894535999999993E-3,7.4018063E-3,6.3691332999999996E-3,6.5868460000000004E-3,5.7589911000000002E-3,4.9300259000000001E-3,4.1461919999999999E-3]
["CET 1 ratio (fully phased-in definition)202006",202006,208,"CET 1 ratio (fully phased-in definition)",0.11458275395081,0.13194982067763,0.16137650711596799,0.191574208730937,0.14711972546427299,0.19092573151147099,0.33788169464318901,1225968484255.4399,8442141040855.7002,0.19970858407227299,0.158893979096493,0.14234316144286099,131,0.14234316144286099,0.19970858407227299,0,"Share of non-performing loans and advances.(NPL ratio)20",202012,93,"Share of non-performing loans and advances.(NPL ratio)","BE",0,8,1.9748858602268202E-2,20,"",null,"LT_AQT_41.2",0.3208027705,0.31002732100000002,0.30884007460000001,0.31014572569999999,0.31461181900000001,0.31669413590000001,0.32814633059999998,0.32854322609999997,0.33256526419999999,0.30434086370000002,0.30961098180000002,0.30884020969999998,0.30188164379999999,0.29221596129999999,0.2613902971,0.26015097110000002,0.2645970379,0.26241694830000001,0.3339117486,0.33400630570000001,0.32932189270000001,0.3157479889,0.32115379929999999,0.31488751580000002,0.31982298720000002,0.29634454869999999]
["CET 1 ratio (fully phased-in definition)202009",202009,208,"CET 1 ratio (fully phased-in definition)",0.115693131236747,0.13520278008278899,0.16425762706509101,0.19974577600429799,0.150850703322046,0.193458853322026,0.40156202383991402,1233950365995.3899,8315851806045.8496,0.217771001037598,0.161545085957367,0.14583000952189001,129,0.14583000952189001,0.217771001037598,0,"Share of non-performing loans and advances.(NPL ratio)21",202012,93,"Share of non-performing loans and advances.(NPL ratio)","DK",0,5,1.86863389709498E-2,21,"",null,"LT_AQT_42.2",7.4516257099999997E-2,6.2963850000000002E-2,6.3392225999999996E-2,5.9427010600000003E-2,4.9078932200000001E-2,4.5069939000000003E-2,4.34422119E-2,4.03198866E-2,3.7143023599999998E-2,3.0645104999999999E-2,3.0005118599999998E-2,2.7756650099999999E-2,2.3719784000000001E-2,2.1681249699999999E-2,2.12406157E-2,1.8920027799999999E-2,1.73782959E-2,1.6449973100000001E-2,1.48464224E-2,1.4441919500000001E-2,1.3607437700000001E-2,1.1133297E-2,1.1232669799999999E-2,1.6779007200000001E-2,1.5961174299999999E-2,1.5704157999999999E-2]
["CET 1 ratio (fully phased-in definition)202012",202012,208,"CET 1 ratio (fully phased-in definition)",0.119534124825913,0.14042570383199501,0.16811774322610601,0.217145966740109,0.15488172300743999,0.201708129131251,0.34011369818873399,1278273506579.27,8376865146065.3701,0.20938013846065601,0.166559050058739,0.149823332125507,129,0.149823332125507,0.20938013846065601,0,"Share of non-performing loans and advances.(NPL ratio)22",202012,93,"Share of non-performing loans and advances.(NPL ratio)","LU",0,11,1.8228507503270701E-2,22,"",null,"LT_FND_32",1.1274334872,0.98337085849999994,1.0221422625000001,1.0379135141,1.0353317118000001,0.96289448860000004,0.98865016110000004,1.0401049574000001,1.0466483595,0.97406968999999999,1.0183241300999999,1.0383031552999999,1.0386242350999999,1.0400662762999999,1.0794869462000001,1.1003286859999999,1.0585406465,0.9433333653,0.87706072759999998,0.87389636609999999,0.88124079020000001,0.82098837309999995,0.81696068259999999,0.75333218589999995,0.71412775640000004,0.62905074859999999]
["Coverage ratio of non-performing loans and advances201409",201409,235,"Coverage ratio of non-performing loans and advances",0.116266051877307,0.282283749361954,0.40324024908829298,0.37903608737539002,0.421066134923687,0.46278538584781997,0.61770826323302996,423076797436.99298,973633702848.224,0.40927480958455897,0.39703713934196899,0.43479571052165999,118,0.39703713934196899,0.43479571052165999,0,"Share of non-performing loans and advances.(NPL ratio)23",202012,93,"Share of non-performing loans and advances.(NPL ratio)","NO",0,4,1.56545755800097E-2,23,"",null,"LT_FND_33",".",3.2836067199999999E-2,2.63865712E-2,2.5680779500000001E-2,2.5343087199999999E-2,2.19535298E-2,2.33034882E-2,2.1485666399999999E-2,1.9628169399999999E-2,1.8700132099999999E-2,1.8385613299999999E-2,1.84302142E-2,1.7675115799999998E-2,1.4668290699999999E-2,1.8935906999999998E-2,1.3265326399999999E-2,9.4881879000000002E-3,9.5275839000000008E-3,8.4059119999999998E-4,8.6966310000000005E-4,2.9469309999999999E-3,9.5533339999999997E-4,7.8140220000000001E-4,7.6060599E-3,7.5880892999999998E-3,6.9911301000000004E-3]
["Coverage ratio of non-performing loans and advances201412",201412,235,"Coverage ratio of non-performing loans and advances",0.13289573736126301,0.31822944167095701,0.410683845368501,0.40645783537930802,0.43368139668402,0.48187580346215098,0.62944336002322498,427133598182.81299,954002148718.52795,0.440660931272433,0.412718254452004,0.44567666176611698,126,0.412718254452004,0.44567666176611698,1,"Share of non-performing loans and advances.(NPL ratio)24",202012,93,"Share of non-performing loans and advances.(NPL ratio)","FI",0,7,1.52415252473084E-2,24,"",null,"LT_LIQ_17",".",".",".",".",".",".",".",".",2.2033438941000001,2.5174786841999999,2.4696260665000001,2.5509679730000001,2.4081900356000001,2.6597499243999998,2.3222708069000002,2.1757724153,2.3804734124000002,2.4152932491999999,2.7649685975999998,2.6402873025,2.4885826607000001,2.6292600457000002,2.9311854319999999,3.8970942444999999,5.5731019604999998,7.4609089101999997]
["Coverage ratio of non-performing loans and advances201503",201503,235,"Coverage ratio of non-performing loans and advances",0.158199252503682,0.31219522161131102,0.41722834423534999,0.40418306645563601,0.42961563274347198,0.471564496640693,0.61288845982439399,429341818218.61499,961451066838.39697,0.44064279060028899,0.41168211463742399,0.43983788899510101,125,0.41168211463742399,0.44064279060028899,0,"Share of non-performing loans and advances.(NPL ratio)25",202012,93,"Share of non-performing loans and advances.(NPL ratio)","CZ",0,3,1.47579974426189E-2,25,"",null,"LT_PFT_21",0.1065764115,8.2767111700000007E-2,7.4110622000000001E-2,6.8487132300000003E-2,7.2078906100000006E-2,7.1338629700000003E-2,6.9361136099999998E-2,9.8980782899999994E-2,0.1000264528,0.10094891509999999,0.12267504279999999,0.1216363464,8.2126034299999998E-2,9.2433553700000004E-2,0.12111582680000001,0.12585776739999999,0.128890379,0.12712618819999999,0.16238523890000001,0.16387222849999999,0.15879467580000001,0.1514031897,0.11442226379999999,0.11253671129999999,0.1158441072,0.11203737530000001]
["Coverage ratio of non-performing loans and advances201506",201506,235,"Coverage ratio of non-performing loans and advances",0.157198825096866,0.32073844610909602,0.408842471772284,0.40144343462103099,0.43586921569923098,0.47502182701208501,0.58056107213527597,428991027033.255,943285461960.57202,0.43715184672503499,0.42452443489833203,0.44256423475470003,123,0.42452443489833203,0.44256423475470003,1,"Share of non-performing loans and advances.(NPL ratio)26",202012,93,"Share of non-performing loans and advances.(NPL ratio)","DE",0,23,1.27121505663522E-2,26,"",null,"LT_PFT_23",0.49318750919999998,0.51345709839999998,0.52433682849999996,0.53172478459999994,0.51594062510000005,0.5168470261,0.50785511250000004,0.45674386639999998,0.45563444739999998,0.46359912419999999,0.44543645780000002,0.45477944850000002,0.46101041850000002,0.45835644910000001,0.46152461849999998,0.44623769839999999,0.4283868549,0.4279840895,0.36902383119999999,0.36720559229999999,0.36978837329999997,0.39686369329999999,0.40701956519999999,0.4176314069,0.42887744280000001,0.44677349220000001]
["Coverage ratio of non-performing loans and advances201509",201509,235,"Coverage ratio of non-performing loans and advances",0.157673100033731,0.32284757788344098,0.416702261469446,0.40266914410133098,0.43638406471590202,0.48257033507493102,0.59852748911126796,424308473857.35901,929991750307.28198,0.45989563427887598,0.422978824517177,0.44390095243917299,123,0.422978824517177,0.45989563427887598,1,"Share of non-performing loans and advances.(NPL ratio)27",202012,93,"Share of non-performing loans and advances.(NPL ratio)","LT",0,4,1.25222290046387E-2,27,"",null,"LT_PFT_24",1.29206393E-2,1.1287259900000001E-2,9.9329207999999999E-3,9.3056331000000003E-3,9.7787251999999995E-3,9.6810313000000002E-3,8.3884636999999995E-3,1.18770686E-2,1.19548273E-2,1.2047425E-2,1.2507671E-2,1.2584946499999999E-2,8.9467373999999999E-3,9.4794462999999995E-3,1.2161847199999999E-2,1.26482251E-2,1.29846289E-2,1.28803901E-2,1.5326190999999999E-2,1.5444915700000001E-2,1.50843917E-2,1.4104304599999999E-2,1.04468605E-2,1.01298493E-2,1.0197293E-2,9.5470290999999999E-3]
["Coverage ratio of non-performing loans and advances201512",201512,235,"Coverage ratio of non-performing loans and advances",0.140604583163251,0.31296815892442698,0.40263528104688301,0.38830961245210199,0.43687336824997403,0.47491732513878099,0.59600574383194105,413381572497.60999,901537424200.17004,0.49053527200254399,0.42948442892212202,0.43995087374130798,126,0.42948442892212202,0.49053527200254399,1,"Share of non-performing loans and advances.(NPL ratio)28",202012,93,"Share of non-performing loans and advances.(NPL ratio)","EE",0,4,1.0797392088668201E-2,28,"",null,"LT_PFT_25",0.5636473997,0.56317186330000002,0.56177591540000005,0.57029302729999998,0.56144682820000003,0.56790739850000005,0.59477030040000001,0.52383475889999997,0.53982249339999999,0.55220374849999998,0.57234390540000002,0.5673505539,0.58723443519999996,0.57344368999999995,0.59784768210000006,0.58825715860000005,0.58828286110000005,0.60335568319999999,0.58790514530000004,0.58706506839999995,0.58788629560000005,0.58478785740000006,0.62877832150000001,0.61545938649999998,0.60299062049999996,0.58742937930000005]
["Coverage ratio of non-performing loans and advances201603",201603,235,"Coverage ratio of non-performing loans and advances",0.14070357178861401,0.31163193207251,0.39475000478751898,0.41679620543915802,0.43748047846367899,0.47649697250509898,0.64852257806118896,409129441113.79498,891917067433.79004,0.48682886948668602,0.432143728061544,0.43940388427642002,129,0.432143728061544,0.48682886948668602,1,"Share of non-performing loans and advances.(NPL ratio)29",202012,93,"Share of non-performing loans and advances.(NPL ratio)","SE",0,8,4.6413348555239004E-3,29,"",null,"LT_PFT_26",0.34284731010000002,0.34851907910000002,0.32560344340000003,0.351234349,0.35267228249999999,0.35520648119999998,0.3367999539,0.30502446820000001,0.31342116209999998,0.32545494549999998,0.34883740540000002,0.36008033659999999,0.37131257099999998,0.35708788159999999,0.34041894620000002,0.34084253599999997,0.3364188119,0.31135221740000002,0.31838617730000002,0.3250949414,0.32714805870000002,0.32342665809999999,0.32129861230000001,0.3033905476,0.3102046664,0.3161002282]
["Coverage ratio of non-performing loans and advances201606",201606,235,"Coverage ratio of non-performing loans and advances",0.13193565982069999,0.31769534039507602,0.40573308434835698,0.38998453947633599,0.43851943680736,0.47882061408022503,0.64653414680747601,402006365591.33698,876519895587.33301,0.49301399763079001,0.43653480444392201,0.43820231991323,129,0.43653480444392201,0.49301399763079001,1,"Share of non-performing loans and advances.(NPL ratio)99",202012,93,"Share of non-performing loans and advances.(NPL ratio)","EU",0,116,2.5736963858897E-2,99,"",null,"LT_PFT_29",0.1053330833,8.9931833200000005E-2,0.23586909119999999,0.1301010121,9.0148184000000006E-2,7.9589746000000003E-2,1.7035415200000001E-2,1.9226788299999999E-2,2.36638469E-2,4.5418067899999998E-2,3.86632269E-2,1.95061708E-2,2.2402791700000001E-2,5.0424288400000003E-2,4.3219118899999999E-2,6.7919782999999997E-2,6.8334541799999995E-2,5.95102406E-2,6.8077635100000006E-2,4.8302867399999998E-2,5.5013998000000001E-2,5.9037073900000001E-2,2.3772888700000001E-2,3.1499889900000001E-2,3.0560157899999999E-2,3.58158222E-2]
["Coverage ratio of non-performing loans and advances201609",201609,235,"Coverage ratio of non-performing loans and advances",0.12500186503057401,0.31725326816445798,0.40861044378684702,0.39581811136334,0.442876083475778,0.47510754671198602,0.64863047555770204,397426142505.19501,859609003931.22095,0.48681119405330098,0.44267184430141199,0.44179114083401799,128,0.44179114083401799,0.48681119405330098,1,"Share of non-performing loans and advances.(NPL ratio)100",202012,93,"Share of non-performing loans and advances.(NPL ratio)","GB",0,26,1.3220505061547099E-2,100,"",null,"LT_PFT_41",1.68884997E-2,1.6388924400000001E-2,1.4561479800000001E-2,1.4516205900000001E-2,1.4447234200000001E-2,1.45311016E-2,1.48163737E-2,1.48322373E-2,1.4928007300000001E-2,1.4940550299999999E-2,1.4798816100000001E-2,1.4843437500000001E-2,1.5000317799999999E-2,1.4495760099999999E-2,1.54028423E-2,1.54501424E-2,1.55977623E-2,1.65480522E-2,1.6726767E-2,1.7077062300000001E-2,1.7154615599999999E-2,1.6737609600000002E-2,1.6024192100000001E-2,1.5897076400000001E-2,1.5115114000000001E-2,1.40629269E-2]
["Coverage ratio of non-performing loans and advances201612",201612,235,"Coverage ratio of non-performing loans and advances",9.0063604450871595E-2,0.309594815137051,0.40593882853254298,0.39859685844183002,0.447725930013323,0.48577403116047702,0.65204649740384701,379010447468.24902,816427698692.29895,0.48783782498823403,0.451575425867764,0.444056871043707,131,0.444056871043707,0.48783782498823403,1,"Leverage ratio (fully phased-in definition of Tier 1)1",202012,194,"Leverage ratio (fully phased-in definition of Tier 1)","IS",0,3,0.145852079395805,1,"",null,"LT_PFT_43",".",".",".",".",".",".",".",".",".",".",".",".",".",".",4.6382930000000001E-4,1.293364E-4,2.406706E-4,6.7951090000000001E-4,3.3066509999999999E-4,1.6033902E-3,1.9579697000000002E-3,2.0499670000000002E-3,3.4899392000000001E-3,3.5632986000000001E-3,2.8252968E-3,2.4746312000000002E-3]
["Coverage ratio of non-performing loans and advances201703",201703,235,"Coverage ratio of non-performing loans and advances",0.12920254717983001,0.30574171165569097,0.38932745007575398,0.390846504049217,0.451549855489145,0.48150977079715501,0.63858047811153795,378564567144.039,811448012254.48999,0.48444918677698501,0.45592711645516198,0.44789153087665601,127,0.44789153087665601,0.48444918677698501,1,"Leverage ratio (fully phased-in definition of Tier 1)2",202012,194,"Leverage ratio (fully phased-in definition of Tier 1)","HR",0,3,0.118089549693769,2,"",null,"LT_SVC_1",0.21427027500000001,0.22409882010000001,0.24106537650000001,0.25358298280000002,0.25624488410000001,0.26122506620000002,0.20664558180000001,0.19771871220000001,0.1951338111,0.19733264959999999,0.2035004946,0.2026326403,0.23058766620000001,0.19446959790000001,0.1986217304,0.19266675559999999,0.19121973759999999,0.18456685,0.19497325670000001,0.19376385090000001,0.18872204910000001,0.234158013,0.22471360939999999,0.22367534850000001,0.21750465929999999,0.21210624180000001]
["Coverage ratio of non-performing loans and advances201706",201706,235,"Coverage ratio of non-performing loans and advances",8.5197381397043498E-2,0.286181684201815,0.39863088974362099,0.38703732578200101,0.44986772578822698,0.488530038486164,0.64797070116081501,361777561399.39899,779735135953.39404,0.51309515372237102,0.44284968562520299,0.45184920171739501,125,0.44284968562520299,0.51309515372237102,1,"Leverage ratio (fully phased-in definition of Tier 1)3",202012,194,"Leverage ratio (fully phased-in definition of Tier 1)","BG",0,4,0.111979277217137,3,"",null,"LT_SVC_12",".",".",".",".",".",".",".",".",8.5125341399999999E-2,8.2073732999999996E-2,8.5640305900000005E-2,8.5270906800000004E-2,9.43179294E-2,8.1048236699999998E-2,8.6242745600000004E-2,8.4199289400000002E-2,8.2789944000000004E-2,7.9959811800000002E-2,7.5945266600000005E-2,7.5463780800000005E-2,7.3777072999999999E-2,8.2846756100000002E-2,8.0852496300000007E-2,7.68231573E-2,7.19510134E-2,6.5156012900000004E-2]
["Coverage ratio of non-performing loans and advances201709",201709,235,"Coverage ratio of non-performing loans and advances",8.4848821254225104E-2,0.28164954374919698,0.40074398100473901,0.38135969981492901,0.44736173352715602,0.490402320187449,0.62806616115993996,343311981735.41302,744651384151.52502,0.498676313892506,0.441818989545329,0.44890138828028098,126,0.441818989545329,0.498676313892506,1,"Leverage ratio (fully phased-in definition of Tier 1)4",202012,194,"Leverage ratio (fully phased-in definition of Tier 1)","EE",0,4,9.85213906850467E-2,4,"",null,"LT_SVC_13",".",".",".",".",".",".",".",".",8.5121349499999999E-2,8.2069177300000004E-2,8.56332598E-2,8.5261783800000004E-2,9.4306554400000006E-2,8.1031155199999996E-2,8.6242745600000004E-2,8.4199289400000002E-2,8.2789944000000004E-2,7.99598475E-2,7.5945266600000005E-2,7.5463780800000005E-2,7.3777072999999999E-2,8.3805547399999999E-2,8.0852496300000007E-2,7.68231573E-2,7.1602823600000004E-2,6.6142989999999999E-2]
["Coverage ratio of non-performing loans and advances201712",201712,235,"Coverage ratio of non-performing loans and advances",8.7085445415834906E-2,0.26949108970579799,0.40449529547433699,0.37971565613172298,0.44597963222884501,0.487270930480104,0.62015254435066103,328635468471.83801,713137802059.00598,0.48919125360694798,0.44477490215288301,0.44538549955974599,126,0.44477490215288301,0.48919125360694798,1,"Leverage ratio (fully phased-in definition of Tier 1)5",202012,194,"Leverage ratio (fully phased-in definition of Tier 1)","PL",0,3,9.8143093473491497E-2,5,"",null,"LT_SVC_2",0.21668800839999999,0.22633717049999999,0.24349199930000001,0.25611682720000001,0.25882729189999998,0.26512235760000002,0.20937152370000001,0.19843462689999999,0.19735703709999999,0.19823126490000001,0.20446466029999999,0.2039100948,0.23207095599999999,0.19545599229999999,0.19981840749999999,0.19374575629999999,0.19248168060000001,0.18564193130000001,0.19697411749999999,0.19530779619999999,0.1901912922,0.23797017249999999,0.22834760730000001,0.22758434189999999,0.2210897258,0.21548998650000001]
["Coverage ratio of non-performing loans and advances201803",201803,235,"Coverage ratio of non-performing loans and advances",5.2525157083738297E-2,0.28504468648562498,0.41640892687685499,0.38889368132234697,0.466568310550937,0.50345777106618395,0.63560486720390696,336253505037.41901,695193377380.68799,0.46979126911925301,0.47755674352281502,0.46080770330436999,125,0.46080770330436999,0.47755674352281502,1,"Leverage ratio (fully phased-in definition of Tier 1)6",202012,194,"Leverage ratio (fully phased-in definition of Tier 1)","LV",0,5,8.8952642400959694E-2,6,"",null,"LT_SVC_29",0.21439484319999999,0.22409882010000001,0.2410822403,0.25360066329999997,0.25626271350000002,0.26205729239999997,0.20843346809999999,0.19775488869999999,0.1951440716,0.19734458299999999,0.203522973,0.20265634320000001,0.23061837539999999,0.19451421669999999,0.1986217304,0.19266675559999999,0.19121973759999999,0.18456685,0.19497325670000001,0.19376385090000001,0.18872204910000001,0.231996389,0.22471360939999999,0.22367534850000001,0.2186443408,0.20960462320000001]
["Coverage ratio of non-performing loans and advances201806",201806,235,"Coverage ratio of non-performing loans and advances",4.6469537145149599E-2,0.259874934685144,0.38871489606100801,0.37784326482923097,0.45951551843264699,0.49746457712547998,0.623922449153686,311309691619.164,651981049190.86597,0.46640876519771501,0.47467544864966799,0.45162173062012301,124,0.45162173062012301,0.47467544864966799,1,"Leverage ratio (fully phased-in definition of Tier 1)7",202012,194,"Leverage ratio (fully phased-in definition of Tier 1)","IE",0,8,8.8023325272544903E-2,7,"",null,"LT_SVC_3",0.21427027500000001,0.22409882010000001,0.24106537650000001,0.25358298280000002,0.25624488410000001,0.26122506620000002,0.20664558180000001,0.19771871220000001,0.1951338111,0.19733264959999999,0.2035004946,0.2026326403,0.23058766620000001,0.19446959790000001,0.1986217304,0.19266675559999999,0.19121973759999999,0.18456685,0.19497325670000001,0.19376385090000001,0.18872204910000001,0.234158013,0.22471360939999999,0.22367534850000001,0.21750465929999999,0.21210624180000001]
["Coverage ratio of non-performing loans and advances201809",201809,235,"Coverage ratio of non-performing loans and advances",7.5799279823734897E-2,0.260283661271974,0.38529932729691402,0.37335154469662302,0.45697663395782501,0.49540753236170798,0.61489055086809397,298386276167.87598,628867377873.39502,0.48616773240901701,0.472207561154809,0.44876834631805101,121,0.44876834631805101,0.48616773240901701,1,"Leverage ratio (fully phased-in definition of Tier 1)8",202012,194,"Leverage ratio (fully phased-in definition of Tier 1)","RO",0,3,8.77645458977514E-2,8,"",null,"LU_AQT_3.1",1.15208944E-2,1.1485227900000001E-2,1.04539423E-2,1.41988349E-2,1.3445201400000001E-2,1.01030171E-2,1.0693982100000001E-2,1.0046320100000001E-2,9.5570810999999999E-3,1.0885973E-2,1.02659094E-2,9.7382149000000001E-3,9.9528755999999993E-3,6.2903211000000002E-3,6.8332844000000004E-3,6.9288370000000002E-3,7.4399145000000003E-3,9.9410541000000009E-3,1.0041053600000001E-2,9.7957867999999993E-3,9.4171806999999996E-3,8.4882368999999996E-3,9.0943993999999997E-3,9.6267446000000007E-3,1.1837964499999999E-2,1.5356091800000001E-2]
["Coverage ratio of non-performing loans and advances201812",201812,235,"Coverage ratio of non-performing loans and advances",9.6739408441365096E-2,0.27132192225350898,0.39638891896559197,0.38111652313909,0.45009716094892299,0.48309966058468501,0.607830850440222,270602713484.19501,578506084587.53003,0.47525904941820502,0.45489369098367799,0.44734284479283298,122,0.44734284479283298,0.47525904941820502,1,"Leverage ratio (fully phased-in definition of Tier 1)9",202012,194,"Leverage ratio (fully phased-in definition of Tier 1)","SI",0,6,8.3682537002550697E-2,9,"",null,"LU_AQT_3.2",1.30033914E-2,1.3661074E-2,1.3301238999999999E-2,2.0936657500000001E-2,1.9677423600000001E-2,1.4566459699999999E-2,1.50506854E-2,1.39084133E-2,1.26949921E-2,1.32822253E-2,1.2229658799999999E-2,1.1419802999999999E-2,1.1704800600000001E-2,7.1264969999999999E-3,7.6330785999999999E-3,7.6643366999999997E-3,8.2313405999999995E-3,1.1136053E-2,1.1252436500000001E-2,1.09493508E-2,1.0544754700000001E-2,9.4887275000000004E-3,1.02302012E-2,1.09828454E-2,1.35204343E-2,1.8228507500000001E-2]
["Coverage ratio of non-performing loans and advances201903",201903,235,"Coverage ratio of non-performing loans and advances",8.6649546436720598E-2,0.28130913723120199,0.396197386304312,0.38602979711895002,0.45115197329485601,0.51405226256802194,0.62258048460325399,271913226565.89899,579077602470.76099,0.45785035466316099,0.46081396711466399,0.44622214379796599,122,0.44622214379796599,0.46081396711466399,1,"Leverage ratio (fully phased-in definition of Tier 1)10",202012,194,"Leverage ratio (fully phased-in definition of Tier 1)","HU",0,4,8.0209643396368602E-2,10,"",null,"LU_AQT_31",5.3302988000000001E-3,4.4965533999999996E-3,5.6393804000000004E-3,5.3243515000000003E-3,5.0085972999999997E-3,5.1235535E-3,5.1357260999999998E-3,5.4445667999999999E-3,4.9408598999999996E-3,5.7422254000000002E-3,3.7014217000000001E-3,3.3801106000000002E-3,3.9843824E-3,3.1805777000000002E-3,2.6400986000000002E-3,2.2572175999999999E-3,2.7066359000000001E-3,3.6022204999999999E-3,3.5217146000000002E-3,3.6450369999999998E-3,3.2131702000000001E-3,2.9165426E-3,3.3107553E-3,3.307305E-3,3.6687516999999998E-3,5.1200294999999996E-3]
["Coverage ratio of non-performing loans and advances201906",201906,235,"Coverage ratio of non-performing loans and advances",9.7596227887894293E-2,0.29186556464591601,0.39797262109397502,0.37989231600490903,0.44865810684727903,0.50984825231347597,0.60799184876506196,258129224001.173,554992199949.97302,0.44487316114597297,0.45790788835941199,0.44420926151137302,122,0.44420926151137302,0.45790788835941199,1,"Leverage ratio (fully phased-in definition of Tier 1)11",202012,194,"Leverage ratio (fully phased-in definition of Tier 1)","GR",0,4,7.7993924435700898E-2,11,"",null,"LU_AQT_41.2",0.30917825640000002,0.35334935369999998,0.33113969739999999,0.39796058150000002,0.41237617129999998,0.45341488699999999,0.41133670449999998,0.41844747970000001,0.38844307039999998,0.40724294129999999,0.40912969799999999,0.39523004969999997,0.4035421837,0.439149081,0.4517529844,0.42555908990000002,0.40572469059999999,0.3737422474,0.3497523844,0.35187492149999999,0.36310469940000001,0.40690556989999999,0.39761124840000001,0.38634218110000002,0.33079066470000001,0.33016898859999999]
["Coverage ratio of non-performing loans and advances201909",201909,235,"Coverage ratio of non-performing loans and advances",0.101189632303348,0.29097146023152998,0.39526455220611401,0.380952825104722,0.44585612458317497,0.50735807597399496,0.61886907919297296,248417170699,537796414958.41302,0.43590064560428599,0.45247857121965501,0.44289193902740598,122,{"$f":"MIN(N447:P447)","v":0.43590064560428599},{"$f":"MAX(N447:P447)","v":0.45247857121965501},1,"Leverage ratio (fully phased-in definition of Tier 1)12",202012,194,"Leverage ratio (fully phased-in definition of Tier 1)","CY",0,4,7.7642530262035894E-2,12,"",null,"LU_AQT_42.2",3.4640457E-3,3.5805200999999998E-3,3.5205589999999999E-3,6.053849E-3,5.8784162999999997E-3,5.4274357999999998E-3,5.0840431000000004E-3,4.9748494000000001E-3,3.9918786000000001E-3,4.1862063999999997E-3,3.3460803000000001E-3,3.1666263000000002E-3,2.6066671E-3,1.2276246000000001E-3,8.9033899999999997E-4,1.1384253000000001E-3,1.3274381E-3,2.8800174E-3,2.6292771000000002E-3,2.6083274999999999E-3,2.7127884E-3,2.6257584999999999E-3,3.0999336999999998E-3,5.7511773999999998E-3,1.00136993E-2,1.31622966E-2]
["Coverage ratio of non-performing loans and advances201912",201912,235,"Coverage ratio of non-performing loans and advances",8.1305399933553693E-2,0.29200886755700001,0.39527504998262403,0.38223314247555601,0.44710542751349103,0.50700156901323301,0.64550428982625097,233555428937.34201,506004548324.90002,0.43806741462512,0.443527349485765,0.44886545372423597,123,0.43806741462512,0.44886545372423597,1,"Leverage ratio (fully phased-in definition of Tier 1)13",202012,194,"Leverage ratio (fully phased-in definition of Tier 1)","MT",0,5,7.3809533529433202E-2,13,"",null,"LU_FND_32",1.3970441165,1.3823464182,1.3942572078,0.94287862749999996,0.94439459349999999,1.1748911243,1.1173591635,1.1431437303,1.1459724604999999,1.1304002302,1.0941727925,1.1442836595999999,1.1622168058,1.3899965143999999,1.6129314095,1.4357255982999999,1.3002889658000001,1.3593934789,1.3610383196,1.3597394288,1.4179280549,1.5187564578999999,1.4827739035,1.4278428871,1.4120642496,1.5144998695]
["Coverage ratio of non-performing loans and advances202003",202003,235,"Coverage ratio of non-performing loans and advances",0.113598900957131,0.30247110511539699,0.41706632400243299,0.401936279264552,0.45991649317105099,0.50987291911343702,0.65202075811738602,232964800328.233,502621525925.914,0.43712647364088703,0.45372560416093199,0.46353146000972201,114,0.43712647364088703,0.46353146000972201,1,"Leverage ratio (fully phased-in definition of Tier 1)14",202012,194,"Leverage ratio (fully phased-in definition of Tier 1)","NO",0,4,7.2975644402218695E-2,14,"",null,"LU_FND_33",".",3.5852887600000001E-2,9.1094334299999996E-2,0.11452988679999999,0.1238581159,0.10755029889999999,0.1035326349,0.1101831103,9.8904270700000005E-2,5.82776375E-2,7.0221276400000004E-2,6.2281783299999997E-2,6.2370302799999999E-2,5.9646702400000001E-2,6.6089321000000006E-2,6.79154072E-2,5.83226596E-2,6.2759266499999994E-2,5.7760697399999998E-2,6.2075059600000003E-2,5.4357114599999999E-2,5.3820527100000001E-2,5.9111754900000001E-2,6.9438034800000006E-2,6.8486341100000001E-2,7.85595761E-2]
["Coverage ratio of non-performing loans and advances202006",202006,235,"Coverage ratio of non-performing loans and advances",0.132346572020791,0.30341610883178599,0.41200585995244798,0.40450182912862898,0.45458499845407402,0.50966172310382696,0.63522190657251199,231375059461.25101,505043492426.23499,0.39895613100348198,0.44838574002193898,0.45859779884047402,114,0.39895613100348198,0.45859779884047402,0,"Leverage ratio (fully phased-in definition of Tier 1)15",202012,194,"Leverage ratio (fully phased-in definition of Tier 1)","SK",0,3,7.2732726006837597E-2,15,"",null,"LU_LIQ_17",".",".",".",".",".",".",".",".",1.2135170908999999,1.4073938161999999,1.4360577648999999,1.4122809659,1.4237864869000001,1.4241088115,1.4100767648000001,1.3566396699000001,1.3235830393000001,1.3352428766,1.3717249854,1.4058370212,1.3988390321999999,1.3890577192,1.4345393906999999,1.5690364436999999,1.531534057,1.5679777393000001]
[{"$f":"+D451&B451","v":"Coverage ratio of non-performing loans and advances202009"},202009,235,"Coverage ratio of non-performing loans and advances",0.14890877453811199,0.30301081267535002,0.40883681294723301,0.40196227579132798,0.45491587855409599,0.50551809355212896,0.64749634626221098,226001723489.54401,494200002459.51202,0.39622008575589701,0.45514040352935098,0.45593183371283502,113,0.39622008575589701,0.45593183371283502,0,{"$f":"CONCATENATE(X451,AC451)","v":"Leverage ratio (fully phased-in definition of Tier 1)16"},202012,194,"Leverage ratio (fully phased-in definition of Tier 1)","PT",0,8,7.2599356217132205E-2,16,"",null,"LU_PFT_21",7.7975851600000007E-2,7.5342769500000004E-2,7.3375530699999997E-2,8.7421422200000001E-2,7.7069519200000006E-2,7.7661738100000002E-2,6.05859994E-2,6.5777519300000004E-2,6.5427360099999998E-2,6.1198576999999997E-2,7.2930390100000006E-2,7.8491268700000005E-2,6.9565152199999994E-2,6.9174630500000001E-2,5.2406204800000002E-2,6.1777880899999998E-2,8.9648926500000004E-2,8.5112938099999993E-2,5.0732466400000002E-2,6.79640247E-2,6.5021308700000002E-2,5.7857327E-2,4.9086786100000002E-2,6.1083406299999997E-2,5.7906577000000001E-2,5.5715761000000003E-2]
["Coverage ratio of non-performing loans and advances202012",202012,235,"Coverage ratio of non-performing loans and advances",0.14808061130894901,0.29769034695494501,0.42125937227325799,0.403224284209249,0.44940126359853,0.50212300169011204,0.63974106993115398,204296738524.198,452170774263.328,0.3920001703439,0.45359528461859999,0.44881427226677501,113,0.3920001703439,0.45359528461859999,0,"Leverage ratio (fully phased-in definition of Tier 1)17",202012,194,"Leverage ratio (fully phased-in definition of Tier 1)","LU",0,11,6.9803758223770399E-2,17,"",null,"LU_PFT_23",0.53868602170000002,0.54411240699999996,0.55638505009999994,0.6002667626,0.61480773479999995,0.61578892129999996,0.64327919280000001,0.6306375528,0.62705979590000005,0.63993105240000003,0.6457957459,0.63183493229999999,0.65037020140000001,0.63404484459999999,0.69805193899999995,0.66348757150000004,0.56800057650000002,0.60845555900000003,0.7154772532,0.66499171710000005,0.66074752979999996,0.67823366159999998,0.70307889239999999,0.65400668579999999,0.65927655819999997,0.66827246809999996]
["Net interest margin201409",201409,237,"Net interest margin",1.7312642479074801E-3,1.05036703327917E-2,1.4271050866407699E-2,1.52943364363644E-2,1.52303825887541E-2,1.8367789211101399E-2,3.2323523276454998E-2,275104283572.22803,18045252492763.898,2.5932588037845698E-2,1.51164349843575E-2,1.51912740479436E-2,126,1.51164349843575E-2,2.5932588037845698E-2,1,"Leverage ratio (fully phased-in definition of Tier 1)18",202012,194,"Leverage ratio (fully phased-in definition of Tier 1)","BE",0,8,6.8702461691265801E-2,18,"",null,"LU_PFT_24",6.1370334000000002E-3,6.6267013999999997E-3,5.6668593000000003E-3,6.6473733000000004E-3,5.8640311000000001E-3,5.9701802000000003E-3,4.4306971000000004E-3,4.7291288999999999E-3,4.6632933999999999E-3,4.8132091999999998E-3,5.2249117000000003E-3,5.5455421000000001E-3,5.0475633000000002E-3,5.0885158999999999E-3,3.8476053000000001E-3,4.3155221999999997E-3,6.4319659999999999E-3,5.9637502000000004E-3,3.4096072999999999E-3,4.4667244999999998E-3,4.2545146000000002E-3,3.8207711000000002E-3,3.1627946999999998E-3,4.0346365E-3,3.8922024000000001E-3,4.1683162000000001E-3]
["Net interest margin201412",201412,237,"Net interest margin",2.1818728200513398E-3,1.0741646696116901E-2,1.48268383507898E-2,1.52465294251508E-2,1.55324077146808E-2,1.79009174546352E-2,3.1365059880283201E-2,275897752804.70001,17807941790986.102,2.2218133476539399E-2,1.5378224929791001E-2,1.55226463855357E-2,129,1.5378224929791001E-2,2.2218133476539399E-2,{"$f":"IF(OR(G454<R454,G454>S454),1,0)","v":1},"Leverage ratio (fully phased-in definition of Tier 1)19",202012,194,"Leverage ratio (fully phased-in definition of Tier 1)","CZ",0,3,6.7791542193067003E-2,19,"",null,"LU_PFT_25",0.36901274880000001,0.37198051380000002,0.4019017305,0.49409226839999998,0.50701550399999995,0.5147606616,0.50712173849999997,0.51476621789999999,0.50842731289999998,0.52845875659999997,0.52488753129999999,0.51211114840000005,0.51777068110000002,0.51059204800000002,0.50880133110000003,0.5093051126,0.43779069189999997,0.47417335789999998,0.52382276689999996,0.50476277489999999,0.51111986899999995,0.51584964519999998,0.56142609740000005,0.53440630739999995,0.53494509859999995,0.52839416569999997]
["Net interest margin201503",201503,237,"Net interest margin",1.8683169171868699E-3,1.03467627037421E-2,1.4815799555934201E-2,1.47675898191552E-2,1.5504596333849201E-2,1.8068886728072799E-2,2.98148252375732E-2,281850769935.01001,18228174041334.699,1.9741176248861701E-2,1.5416792905058501E-2,1.54966237869462E-2,128,1.5416792905058501E-2,1.9741176248861701E-2,1,{"$f":"CONCATENATE(X455,AC455)","v":"Leverage ratio (fully phased-in definition of Tier 1)20"},202012,194,"Leverage ratio (fully phased-in definition of Tier 1)","AT",0,11,6.6680226488573899E-2,20,"",null,"LU_PFT_26",0.3807299106,0.390540575,0.38779484489999999,0.34658090749999998,0.34644752089999997,0.33666704209999998,0.33553529599999998,0.337734325,0.33115774479999999,0.31961551960000001,0.33264136519999998,0.33023404639999998,0.33741661480000001,0.33274262669999999,0.3587158272,0.3437473707,0.3017444292,0.31140277960000001,0.32929227690000001,0.32663905009999999,0.33293192170000002,0.33841382809999998,0.37244037629999999,0.3366291132,0.33796447480000003,0.33919735369999998]
["Net interest margin201506",201506,237,"Net interest margin",2.1426858299122501E-3,1.06410256617123E-2,1.5251854194342201E-2,1.5244159879200799E-2,1.57343972153242E-2,1.83845494470917E-2,3.11915011699971E-2,282075538306.57098,18092337803398.602,2.0234188551556499E-2,1.5733053611032801E-2,1.5709873315577098E-2,126,1.5709873315577098E-2,2.0234188551556499E-2,1,"Leverage ratio (fully phased-in definition of Tier 1)21",202012,194,"Leverage ratio (fully phased-in definition of Tier 1)","LT",0,4,6.5156012881961406E-2,21,"",null,"LU_PFT_29",5.0048741100000002E-2,2.3617737100000001E-2,1.8665587300000001E-2,-6.6750258000000007E-2,-5.3645720000000001E-2,1.5636067100000001E-2,3.0411413599999999E-2,3.4551956299999999E-2,4.1367015700000002E-2,3.9507247699999998E-2,5.7121503300000001E-2,2.76716358E-2,3.5816696199999998E-2,6.09804517E-2,9.3005585299999999E-2,6.1378739199999997E-2,6.4606286299999996E-2,5.21498185E-2,0.1109438407,7.9859470200000005E-2,7.7527387700000006E-2,8.0777558299999996E-2,-6.2861510000000002E-3,4.8690340200000001E-2,4.8031836600000002E-2,5.0475651099999998E-2]
["Net interest margin201509",201509,237,"Net interest margin",2.0286387639446499E-3,1.0487299079990801E-2,1.52299497842247E-2,1.53851883283225E-2,1.5730953464087E-2,1.8456186549588201E-2,3.09463571856908E-2,283144990085.18201,18081438333681.199,2.0665544878395701E-2,1.58135175013971E-2,1.5689720982904699E-2,126,1.5689720982904699E-2,2.0665544878395701E-2,1,"Leverage ratio (fully phased-in definition of Tier 1)22",202012,194,"Leverage ratio (fully phased-in definition of Tier 1)","FI",0,7,6.2248707730490203E-2,22,"",null,"LU_PFT_41",7.3272010000000002E-3,7.7492682999999998E-3,7.2838909999999998E-3,1.10955089E-2,1.10067945E-2,1.1204608099999999E-2,9.9914802999999993E-3,9.9227883000000006E-3,9.5998660999999999E-3,1.13268507E-2,1.0375723200000001E-2,1.0239458E-2,1.01854471E-2,9.0153208000000006E-3,8.9981259000000008E-3,8.9983249000000001E-3,9.0240050999999995E-3,9.6644671000000008E-3,9.1165355999999996E-3,9.0334106999999993E-3,8.9660094000000006E-3,9.1289952000000001E-3,9.6176044999999998E-3,9.5995473000000005E-3,9.4438916000000005E-3,1.0341309599999999E-2]
["Net interest margin201512",201512,237,"Net interest margin",2.6632342073399E-3,1.12259464508051E-2,1.52600113142856E-2,1.5598234779055E-2,1.5819784122591499E-2,1.9140811788949701E-2,3.0372100893641001E-2,281946332219.841,17906843898358.398,2.14797394079385E-2,1.5198756070749799E-2,1.5902109286813099E-2,128,1.5198756070749799E-2,2.14797394079385E-2,0,"Leverage ratio (fully phased-in definition of Tier 1)23",202012,194,"Leverage ratio (fully phased-in definition of Tier 1)","IT",0,16,6.0838199848537E-2,23,"",null,"LU_PFT_43",".",".",".",".",".",".",".",".",".",".",".",".",".",".",1.0001239E-3,1.0689E-3,1.323381E-3,1.9429916E-3,1.9789285999999998E-3,1.5117538000000001E-3,1.8531954999999999E-3,1.8702719E-3,2.9791705999999999E-3,2.6033688999999999E-3,2.7390972999999999E-3,2.7973516999999998E-3]
["Net interest margin201603",201603,237,"Net interest margin",2.2694710988257999E-3,1.0617493997474499E-2,1.4476702981401E-2,1.53759297836146E-2,1.4831078308392E-2,2.02476645879303E-2,3.0130885466645801E-2,271775933868.871,18197441393990.398,2.1895284205843201E-2,1.4698088794342199E-2,1.4815138219443099E-2,132,1.4698088794342199E-2,2.1895284205843201E-2,1,"Leverage ratio (fully phased-in definition of Tier 1)24",202012,194,"Leverage ratio (fully phased-in definition of Tier 1)","FR",0,13,5.7050914777919202E-2,24,"",null,"LU_SVC_1",0.1425979054,0.15997289789999999,0.14795632119999999,0.17666446760000001,0.17505213450000001,0.19021958829999999,0.19285043299999999,0.1854945318,0.1943036735,0.2221992867,0.2243405097,0.21352517709999999,0.21177056189999999,0.21429877929999999,0.2251289206,0.22658956099999999,0.2472533022,0.24090642870000001,0.2102642747,0.20637905840000001,0.2036255354,0.20014656920000001,0.1990795417,0.21103895459999999,0.20736918409999999,0.20457481250000001]
["Net interest margin201606",201606,237,"Net interest margin",2.4384776463966399E-3,1.0154998338281899E-2,1.4014734006284E-2,1.51756963406819E-2,1.4693753252654601E-2,1.8466367796742801E-2,3.2673841757023502E-2,272509640060.771,18304039590529.602,2.13110985508464E-2,1.45656458401373E-2,1.46796582769896E-2,133,1.45656458401373E-2,2.13110985508464E-2,1,"Leverage ratio (fully phased-in definition of Tier 1)25",202012,194,"Leverage ratio (fully phased-in definition of Tier 1)","ES",0,15,5.5693596772238799E-2,25,"",null,"LU_SVC_12",".",".",".",".",".",".",".",".",5.1506771200000002E-2,5.7979883400000001E-2,5.5701098900000003E-2,6.4050077600000005E-2,6.3616372899999996E-2,6.5687623599999995E-2,6.52256903E-2,6.4014573199999994E-2,7.1713002200000001E-2,7.1003732E-2,6.57876924E-2,6.4397787400000003E-2,6.4688272899999996E-2,6.3112294400000005E-2,5.5469986300000003E-2,5.8558011899999998E-2,6.0756540900000003E-2,6.9803758199999996E-2]
["Net interest margin201609",201609,237,"Net interest margin",2.3251529562750999E-3,1.05108877784847E-2,1.41728158616336E-2,1.52383947131074E-2,1.4657854721975E-2,1.91081223364209E-2,2.9820420991556702E-2,274486175232.23901,18271083310864.699,2.16642870878559E-2,1.4887674527258501E-2,1.4576816670266101E-2,132,1.4576816670266101E-2,2.16642870878559E-2,1,"Leverage ratio (fully phased-in definition of Tier 1)26",202012,194,"Leverage ratio (fully phased-in definition of Tier 1)","DE",0,23,5.36618889656581E-2,26,"",null,"LU_SVC_13",".",".",".",".",".",".",".",".",4.7607679200000003E-2,5.3276759999999999E-2,5.1382677100000003E-2,6.0421463100000003E-2,6.0139616600000001E-2,6.2417539000000001E-2,6.5080200800000002E-2,6.38866669E-2,7.1573709599999993E-2,7.0895964000000006E-2,6.57876924E-2,6.4397787400000003E-2,6.4688272899999996E-2,6.3112294299999996E-2,5.5469986300000003E-2,5.8558011899999998E-2,6.0804456799999997E-2,6.9903165200000006E-2]
["Net interest margin201612",201612,237,"Net interest margin",2.4959115761090402E-3,1.05278126153685E-2,1.38325683509206E-2,1.5149081392833001E-2,1.4760384529553401E-2,1.8339432481675001E-2,3.2993375873418003E-2,272900162862.242,18118295435463.898,2.1113366934842798E-2,1.48971112620504E-2,1.46981410620858E-2,134,1.46981410620858E-2,2.1113366934842798E-2,1,"Leverage ratio (fully phased-in definition of Tier 1)27",202012,194,"Leverage ratio (fully phased-in definition of Tier 1)","NL",0,6,5.1555870300798098E-2,27,"",null,"LU_SVC_2",0.1597304028,0.16997631390000001,0.15756446730000001,0.18605262580000001,0.1838393086,0.19888829250000001,0.20080974539999999,0.1945543377,0.20392508479999999,0.2305410926,0.23254062249999999,0.21904668899999999,0.21724690499999999,0.2197555722,0.23032719639999999,0.23178637939999999,0.25165053970000001,0.2462749712,0.2147218233,0.21072290590000001,0.20785248810000001,0.20153631320000001,0.20081939579999999,0.21764713999999999,0.2136692352,0.2385700227]
["Net interest margin201703",201703,237,"Net interest margin",2.3847655857210598E-3,9.8819010674041693E-3,1.3589198931705701E-2,1.50185917137368E-2,1.46190446859114E-2,1.8710972979448799E-2,3.10210730884177E-2,276961344668.44098,18572955629275.602,2.03320352383261E-2,1.52113717442246E-2,1.44832203884092E-2,130,1.44832203884092E-2,2.03320352383261E-2,1,"Leverage ratio (fully phased-in definition of Tier 1)28",202012,194,"Leverage ratio (fully phased-in definition of Tier 1)","SE",0,8,4.9322620745900901E-2,28,"",null,"LU_SVC_29",0.15523251339999999,0.17971062979999999,0.16591209270000001,0.19142411710000001,0.1896676239,0.20469637360000001,0.2074456133,0.19838175520000001,0.20913688690000001,0.24061684850000001,0.2419693141,0.21554056660000001,0.21328336510000001,0.21468642390000001,0.21487330639999999,0.21618380800000001,0.2374630278,0.23019735690000001,0.2009911372,0.19727698260000001,0.19474962239999999,0.19096325110000001,0.1973387798,0.2092359533,0.205420518,0.2016815803]
["Net interest margin201706",201706,237,"Net interest margin",2.7316854588945198E-3,9.7141759481491601E-3,1.3689244267953199E-2,1.51211452501129E-2,1.45927835309306E-2,1.8952183063781901E-2,3.1554336672049099E-2,277434575431.18597,18554643024598.602,2.04906192326599E-2,1.5418179686942901E-2,1.4414353248057401E-2,128,1.4414353248057401E-2,2.04906192326599E-2,1,"Leverage ratio (fully phased-in definition of Tier 1)29",202012,194,"Leverage ratio (fully phased-in definition of Tier 1)","DK",0,5,4.6462213045648897E-2,29,"",null,"LU_SVC_3",0.1419172122,0.15923150750000001,0.14723982290000001,0.1755064586,0.17389460819999999,0.18899160740000001,0.19166465769999999,0.18428128560000001,0.1930665382,0.22072154990000001,0.22283364859999999,0.20247997579999999,0.20080562269999999,0.20321788939999999,0.21433490390000001,0.21569913099999999,0.2369446644,0.22980316940000001,0.2009911372,0.19727698260000001,0.19474962239999999,0.19096325110000001,0.1973387798,0.2092359533,0.20559450260000001,0.20199433050000001]
["Net interest margin201709",201709,237,"Net interest margin",2.9357682757653902E-3,9.9505019747032804E-3,1.3598267929795E-2,1.49879910157027E-2,1.4513488246273701E-2,1.8973191960925499E-2,3.0147410904219601E-2,275803453612.48499,18555216553568.801,2.0765516123436599E-2,1.50646077797752E-2,1.4381836732027401E-2,128,1.4381836732027401E-2,2.0765516123436599E-2,1,"Leverage ratio (fully phased-in definition of Tier 1)99",202012,194,"Leverage ratio (fully phased-in definition of Tier 1)","EU",0,130,5.7957867398246897E-2,99,"",null,"LV_AQT_3.1",4.8390012199999999E-2,4.47294398E-2,4.3818372199999997E-2,4.1894649200000002E-2,3.7719674199999997E-2,3.10852964E-2,3.1354200200000001E-2,3.0262471700000002E-2,2.9767252599999999E-2,2.5856610499999998E-2,2.3952105800000002E-2,2.2984581399999999E-2,2.1651352799999999E-2,1.95083403E-2,3.4933838000000002E-2,3.1699191100000003E-2,3.0892288100000002E-2,2.75489334E-2,1.88988808E-2,2.0317513400000001E-2,1.9166883900000001E-2,1.6878169200000001E-2,1.5808774300000002E-2,1.5220642600000001E-2,1.4578741500000001E-2,1.7253998E-2]
["Net interest margin201712",201712,237,"Net interest margin",2.6800909098474699E-3,1.0251582951985199E-2,1.4057970492765E-2,1.5694182594549098E-2,1.4701088447671399E-2,1.9482362612289202E-2,3.17332368028755E-2,276321584220.60199,18353280106400.5,2.1698015516581001E-2,1.5281143754051801E-2,1.45533368648494E-2,129,1.45533368648494E-2,2.1698015516581001E-2,1,"Leverage ratio (fully phased-in definition of Tier 1)100",202012,194,"Leverage ratio (fully phased-in definition of Tier 1)","GB",0,26,5.2349088086032801E-2,100,"",null,"LV_AQT_3.2",6.0355355800000003E-2,5.6803175099999999E-2,5.5655786499999998E-2,5.5339251300000003E-2,4.9203433499999998E-2,3.9546655E-2,3.9276756500000003E-2,3.73201976E-2,3.6328321699999999E-2,3.1768243600000003E-2,2.90921557E-2,2.7247791E-2,2.5847997399999999E-2,2.3464224299999999E-2,3.6991251199999999E-2,3.3188850700000001E-2,3.1723986099999997E-2,2.8290797100000001E-2,2.10400993E-2,2.2899332200000001E-2,2.1656979199999999E-2,1.8892563500000001E-2,1.73021101E-2,1.8309097399999998E-2,1.8187146899999999E-2,2.2404418999999998E-2]
["Net interest margin201803",201803,237,"Net interest margin",2.4696613719360199E-3,1.01811200511622E-2,1.44360711475944E-2,1.5302669325169899E-2,1.4364132827479699E-2,2.0079084796601001E-2,3.0735001676226E-2,272808775899.46799,18754577274501.398,2.1370662673072999E-2,1.53176083257987E-2,1.4155701571988401E-2,128,1.4155701571988401E-2,2.1370662673072999E-2,0,"Leverage ratio (transitional definition of Tier 1)1",202012,195,"Leverage ratio (transitional definition of Tier 1)","IS",0,3,0.146857093273636,1,"",null,"LV_AQT_31",1.7423588399999999E-2,1.4830572300000001E-2,1.1947898199999999E-2,1.03766916E-2,9.5633426000000001E-3,9.7091872000000003E-3,8.6858895000000002E-3,2.3992180200000001E-2,1.0776324800000001E-2,8.0988932000000003E-3,7.2559254999999996E-3,7.4003669999999997E-3,6.8373447000000002E-3,7.0366674000000001E-3,1.09798204E-2,1.1343705399999999E-2,1.0150104300000001E-2,9.1799875000000003E-3,5.9037355E-3,5.3741941999999997E-3,8.7326263000000008E-3,7.3760717000000003E-3,7.0212538000000001E-3,6.4027696000000002E-3,5.0326466000000002E-3,6.1087720999999998E-3]
["Net interest margin201806",201806,237,"Net interest margin",2.40238635421775E-3,1.01158207569434E-2,1.4239022704662801E-2,1.5219275092258599E-2,1.4349952345616E-2,2.0178722617106001E-2,3.0481280962937798E-2,274274864277.595,18848827472466,2.1552611954471401E-2,1.53107036846678E-2,1.41382173300665E-2,128,1.41382173300665E-2,2.1552611954471401E-2,0,"Leverage ratio (transitional definition of Tier 1)2",202012,195,"Leverage ratio (transitional definition of Tier 1)","HR",0,3,0.121620947532648,2,"",null,"LV_AQT_41.2",0.38697659099999998,0.37643112080000002,0.3428340829,0.3181163514,0.32853673389999999,0.30874947120000001,0.29325154419999999,0.28654442470000002,0.276560101,0.28595703770000003,0.30140271839999999,0.29095725030000003,0.29498586409999999,0.32445971890000003,0.36863851790000002,0.3437870281,0.34338338800000001,0.3140524475,0.36107382710000002,0.32596161000000001,0.32863004280000002,0.35081693130000002,0.39249897519999999,0.36934010239999998,0.37422405800000003,0.44741695050000002]
["Net interest margin201809",201809,237,"Net interest margin",2.3503554800354898E-3,9.9589282476931495E-3,1.42799598138241E-2,1.51226903232084E-2,1.43974002252991E-2,1.9861280516618299E-2,3.0451007624202699E-2,275794078378.323,18889269417672.898,2.1118199006397401E-2,1.5316930040330501E-2,1.41996494858683E-2,126,1.41996494858683E-2,2.1118199006397401E-2,0,"Leverage ratio (transitional definition of Tier 1)3",202012,195,"Leverage ratio (transitional definition of Tier 1)","BG",0,4,0.116955936642593,3,"",null,"LV_AQT_42.2",4.6420839899999997E-2,5.0563297799999997E-2,5.1013964500000002E-2,5.5013423899999997E-2,5.8359913499999999E-2,4.7611086900000002E-2,4.79514526E-2,4.8713766399999997E-2,4.6215747000000001E-2,4.4363781099999999E-2,4.1204031299999999E-2,3.9299197799999998E-2,3.5692639800000002E-2,3.3369295100000002E-2,3.4960789399999997E-2,2.8473719599999999E-2,2.45687222E-2,2.2116508100000001E-2,6.2956661900000002E-2,2.25358282E-2,2.3102332199999999E-2,2.22239108E-2,1.9361496299999999E-2,2.4988913000000001E-2,2.6875342900000002E-2,3.3230563499999997E-2]
["Net interest margin201812",201812,237,"Net interest margin",2.2758798821258101E-3,1.0397446953119199E-2,1.45904678629021E-2,1.5644175042393901E-2,1.47467080307918E-2,2.1061039653265199E-2,3.06869184272314E-2,280388246845.026,18720583085284.102,2.16809798569952E-2,1.5822257799171499E-2,1.4517968812251401E-2,127,1.4517968812251401E-2,2.16809798569952E-2,0,"Leverage ratio (transitional definition of Tier 1)4",202012,195,"Leverage ratio (transitional definition of Tier 1)","EE",0,4,0.102635603641717,4,"",null,"LV_FND_32",0.79774975940000004,0.71827271540000004,0.71713293239999998,0.71087045520000003,0.69913481450000003,0.68319735920000002,0.67891738660000001,0.71350029439999996,0.73669041179999994,0.74927263669999999,0.75287515390000004,0.761281498,0.7898675906,0.75096532760000001,0.94910022299999997,0.96684914259999999,1.0650968778000001,1.0080095566,0.82894192470000005,0.83974311859999995,0.81479674980000005,0.78628889430000004,0.75277088820000004,0.73057690369999995,0.71254421859999995,0.68447145799999998]
["Net interest margin201903",201903,237,"Net interest margin",2.2466478731251599E-3,1.0489509146143499E-2,1.4390871074377899E-2,1.54167474081941E-2,1.42101846612994E-2,2.0174241044379301E-2,3.0279214737269598E-2,278752805429.35101,19408163947818.5,2.18588189009063E-2,1.5844330921130901E-2,1.3890310688546599E-2,126,1.3890310688546599E-2,2.18588189009063E-2,0,"Leverage ratio (transitional definition of Tier 1)5",202012,195,"Leverage ratio (transitional definition of Tier 1)","PL",0,3,0.100700745422657,5,"",null,"LV_FND_33",".",5.4530197199999998E-2,6.2758810600000006E-2,6.0589465500000002E-2,6.36338563E-2,6.7209987900000004E-2,6.8031273700000006E-2,6.7340359200000005E-2,6.6780750299999997E-2,6.8472978000000004E-2,7.3066903399999994E-2,7.1587074799999997E-2,7.1583914700000001E-2,6.9530607499999994E-2,4.9957344200000003E-2,4.5973930400000002E-2,2.9123071999999999E-3,2.0945424000000002E-3,1.0658251999999999E-3,1.0297122E-3,8.8624440000000004E-4,8.0903880000000004E-4,7.9802360000000001E-4,8.6122497899999997E-2,9.1586096199999995E-2,8.0636331699999994E-2]
["Net interest margin201906",201906,237,"Net interest margin",2.1585397647646198E-3,1.04592804667003E-2,1.43761929003946E-2,1.55380454854091E-2,1.42687534171959E-2,2.0141120789744098E-2,3.0115755575398501E-2,281538204890.77802,19460628102426.398,2.1731698443786501E-2,1.6182185613309301E-2,1.3911873535838599E-2,125,1.3911873535838599E-2,2.1731698443786501E-2,0,"Leverage ratio (transitional definition of Tier 1)6",202012,195,"Leverage ratio (transitional definition of Tier 1)","IE",0,8,9.3912978119366705E-2,6,"",null,"LV_LIQ_17",".",".",".",".",".",".",".",".",3.7787078188000001,3.6119102106000001,3.6816014351000002,4.2092479699999998,3.3929799826,3.3694270642999999,2.3709942147,2.3289501380000002,2.3175750110000002,2.2902981363000001,2.5728062544000001,2.6401298588,2.5664758409999999,2.7245266846999998,3.6912130976999999,3.2310387830999998,3.6317033803999998,3.9569030858000001]
["Net interest margin201909",201909,237,"Net interest margin",2.00100013570944E-3,1.03997951100424E-2,1.42586060853339E-2,1.5455866798372001E-2,1.42713746082748E-2,2.0057871217358199E-2,3.00785309572708E-2,282584036039.68799,19609310363012.801,2.15901952740108E-2,1.6116200708528299E-2,1.3926714138964E-2,125,1.3926714138964E-2,2.15901952740108E-2,0,"Leverage ratio (transitional definition of Tier 1)7",202012,195,"Leverage ratio (transitional definition of Tier 1)","GR",0,4,9.3760418426227607E-2,7,"",null,"LV_PFT_21",0.1233198371,0.1113755271,0.11741889899999999,0.1243276951,0.1202245227,0.1156609812,0.1089976956,0.15711568840000001,0.14261189639999999,0.13675047700000001,0.1450713039,0.13012958199999999,0.13110284790000001,0.1334013825,0.1037575657,8.7821102400000003E-2,0.13006457930000001,0.1179530005,0.13995886460000001,0.12508606859999999,0.12574823539999999,0.11655412549999999,5.3688746000000002E-2,3.3062984599999998E-2,5.5817956199999998E-2,7.3523634500000004E-2]
["Net interest margin201912",201912,237,"Net interest margin",2.3869158558227602E-3,1.0411977124600199E-2,1.4292182946428301E-2,1.54634703454904E-2,1.4522326041947101E-2,2.0404712002720701E-2,2.97269937681203E-2,284563668655.47998,19323843037610.801,2.1403645533635898E-2,1.6099679356601001E-2,1.4212569396305601E-2,126,1.4212569396305601E-2,2.1403645533635898E-2,0,"Leverage ratio (transitional definition of Tier 1)8",202012,195,"Leverage ratio (transitional definition of Tier 1)","RO",0,3,9.1289584095604101E-2,8,"",null,"LV_PFT_23",0.41689307050000002,0.438911096,0.43462187330000002,0.42622404920000001,0.41864153440000001,0.43275943150000001,0.4558723945,0.40494329969999998,0.42005917240000001,0.42985109459999998,0.45284820910000001,0.47604941080000002,0.46865266189999999,0.48681353939999999,0.56505294989999999,0.63006689900000001,0.4921849942,0.51147592139999998,0.48988235390000001,0.51653731290000005,0.52112378100000001,0.55672492669999996,0.54386559359999997,0.67491282559999999,0.65695624689999998,0.61775910160000003]
["Net interest margin202003",202003,237,"Net interest margin",3.3102365454660701E-3,9.9236003180336006E-3,1.3856103342164E-2,1.5416972603227301E-2,1.39319674975478E-2,1.97009031414805E-2,3.0159291287688701E-2,283560346526.71002,20408511785746.801,1.9336368976942301E-2,1.5738833296982599E-2,1.35168261932017E-2,117,1.35168261932017E-2,1.9336368976942301E-2,0,"Leverage ratio (transitional definition of Tier 1)9",202012,195,"Leverage ratio (transitional definition of Tier 1)","LV",0,5,8.9169241118362705E-2,9,"",null,"LV_PFT_24",1.7837188300000001E-2,1.5666585800000001E-2,1.6043743700000002E-2,1.7204754400000001E-2,1.6632866400000001E-2,1.6113395799999999E-2,1.4281409300000001E-2,1.9210159399999999E-2,1.7757420900000001E-2,1.7372388400000001E-2,1.6714436700000002E-2,1.49011914E-2,1.5304479100000001E-2,1.5572584699999999E-2,1.23965152E-2,1.0817413600000001E-2,1.6525949799999998E-2,1.46312275E-2,1.62220509E-2,1.48339137E-2,1.4807930699999999E-2,1.3619564000000001E-2,6.2505627000000001E-3,3.6530896999999998E-3,6.1872867999999996E-3,8.4173606999999994E-3]
["Net interest margin202006",202006,237,"Net interest margin",3.3851649301038702E-3,9.8133756475450098E-3,1.3412052313791599E-2,1.4624342375652299E-2,1.3477185111140899E-2,1.9142857821717301E-2,2.80026706295835E-2,280330629894.07202,20801964286031.699,1.9050751239607502E-2,1.5139750726045301E-2,1.30871832802063E-2,117,1.30871832802063E-2,1.9050751239607502E-2,0,"Leverage ratio (transitional definition of Tier 1)10",202012,195,"Leverage ratio (transitional definition of Tier 1)","HU",0,4,8.5298176488855307E-2,10,"",null,"LV_PFT_25",0.55292246720000005,0.55251249759999999,0.56064902149999996,0.55349012980000001,0.5537238525,0.54847993930000005,0.5410363735,0.46507145459999999,0.49597531500000003,0.51085253389999996,0.56722199809999996,0.56550444730000005,0.55652961720000005,0.55274097229999997,0.61856370000000005,0.65243858239999997,0.59640562350000004,0.60011011430000005,0.57979120250000005,0.58980984759999999,0.59387796500000001,0.58764802390000004,0.59453214229999995,0.69688799450000005,0.66056531529999996,0.61188047320000005]
["Net interest margin202009",202009,237,"Net interest margin",3.27747876256834E-3,9.9469591995269297E-3,1.34306049756418E-2,1.4409315252124501E-2,1.33396083509188E-2,1.8680066060669898E-2,2.80148820613676E-2,278763096923.15601,20875582588949,1.8952643715675999E-2,1.4976540646212001E-2,1.29648417040757E-2,116,1.29648417040757E-2,1.8952643715675999E-2,0,"Leverage ratio (transitional definition of Tier 1)11",202012,195,"Leverage ratio (transitional definition of Tier 1)","CY",0,4,8.4409603095899205E-2,11,"",null,"LV_PFT_26",0.32133222900000002,0.32928178689999998,0.33869937970000003,0.35062321089999998,0.35374773529999998,0.35115886819999997,0.34779540689999999,0.29304830110000002,0.30195050239999999,0.31615641989999999,0.33869883810000001,0.34086406559999999,0.33935289839999999,0.35548878080000001,0.30049208490000001,0.32105591439999998,0.31984319960000002,0.31632349640000001,0.3268720074,0.32668904809999999,0.32512075130000001,0.3260629726,0.35150178170000002,0.37179229489999999,0.3576442755,0.33455090440000002]
["Net interest margin202012",202012,237,"Net interest margin",2.0805288385065501E-3,9.9821801217297203E-3,1.3133560938169E-2,1.42316469282862E-2,1.33360411337149E-2,1.84711038217364E-2,2.8285839182340001E-2,274550874449.34299,20558302982301.199,1.85697110957256E-2,1.48486042161542E-2,1.2979216436721199E-2,116,{"$f":"MIN(N478:P478)","v":1.2979216436721199E-2},1.85697110957256E-2,0,"Leverage ratio (transitional definition of Tier 1)12",202012,195,"Leverage ratio (transitional definition of Tier 1)","SI",0,6,8.3682537002550697E-2,12,"",null,"LV_PFT_29",7.9529380100000005E-2,8.2167046100000002E-2,0.1158734317,0.1012224135,9.6497828399999999E-2,9.6821876299999998E-2,9.9490855200000006E-2,8.4591908399999999E-2,8.5762369199999994E-2,8.8986532399999999E-2,8.8232391499999993E-2,8.5669590200000006E-2,8.7025983599999995E-2,8.9710529900000002E-2,0.13347324429999999,9.76561019E-2,4.0894731400000002E-2,3.9856972099999999E-2,4.8511049700000003E-2,4.6916113500000002E-2,4.7219460800000002E-2,5.0349853899999998E-2,4.5698484099999999E-2,-8.4825612999999994E-2,-4.8822945E-2,-3.1053966999999998E-2]
["Forbearance ratio - Loans and advances (gross amount) (FBL)201409",201409,239,"Forbearance ratio - Loans and advances (gross amount) (FBL)",0,1.36405877691186E-2,3.5582688904096001E-2,6.2035387813906002E-2,4.0079133346955002E-2,9.44145661292667E-2,0.20061107796160901,529215873080.39001,13137796340589.801,0.116016592724936,8.0468927364208701E-2,3.1893703054606398E-2,121,3.1893703054606398E-2,0.116016592724936,0,"Leverage ratio (transitional definition of Tier 1)13",202012,195,"Leverage ratio (transitional definition of Tier 1)","MT",0,5,7.4833244537360094E-2,13,"",null,"LV_PFT_41",1.99196606E-2,1.9017015000000002E-2,1.8776056700000002E-2,1.8822364599999999E-2,1.8434962499999999E-2,1.8229249199999999E-2,1.67917234E-2,1.7443842899999999E-2,1.7930266699999999E-2,1.8255444400000001E-2,1.8681019E-2,1.8525893799999998E-2,1.8564811600000002E-2,1.8344417500000001E-2,1.8264665400000001E-2,1.8146982200000002E-2,1.9058493499999999E-2,1.85376241E-2,1.9983958E-2,2.0455101E-2,2.0117614499999999E-2,1.9591267200000002E-2,1.7935584000000001E-2,1.7707001900000002E-2,1.7646223700000001E-2,1.8201987199999999E-2]
["Forbearance ratio - Loans and advances (gross amount) (FBL)201412",201412,239,"Forbearance ratio - Loans and advances (gross amount) (FBL)",0,1.23451089513526E-2,3.2519193909025898E-2,5.9702566521248397E-2,3.9081600411346201E-2,8.9226501454146304E-2,0.199648294617148,526080254603.28998,12998426389272.4,0.10944403897494601,7.9232028549472602E-2,3.0879521712547799E-2,129,3.0879521712547799E-2,0.10944403897494601,0,"Leverage ratio (transitional definition of Tier 1)14",202012,195,"Leverage ratio (transitional definition of Tier 1)","PT",0,8,7.3763987367448505E-2,14,"",null,"LV_PFT_43",".",".",".",".",".",".",".",".",".",".",".",".",".",".",2.6850839999999999E-3,6.3820019999999997E-4,-2.8768999999999998E-5,8.5547249999999998E-4,6.5398872000000004E-3,7.5645247000000002E-3,7.5714468999999998E-3,7.5680666000000002E-3,1.57034302E-2,1.29048315E-2,1.0960342200000001E-2,1.64026309E-2]
["Forbearance ratio - Loans and advances (gross amount) (FBL)201503",201503,239,"Forbearance ratio - Loans and advances (gross amount) (FBL)",0,1.2261375355867001E-2,3.3256365934836697E-2,6.0176219514033603E-2,3.80698541182726E-2,9.3354068631271797E-2,0.195166242260636,543639319801.44598,13530032935754.1,0.104458727963748,7.8868362178557999E-2,3.0034848804749499E-2,128,3.0034848804749499E-2,0.104458727963748,0,"Leverage ratio (transitional definition of Tier 1)15",202012,195,"Leverage ratio (transitional definition of Tier 1)","SK",0,3,7.3277632241293106E-2,15,"",null,"LV_SVC_1",0.2260121443,0.2368070827,0.23534409040000001,0.2434440068,0.25128853200000001,0.26242166160000002,0.18737249410000001,0.1772852711,0.1868173119,0.18907959630000001,0.19720740249999999,0.20860891770000001,0.21032226100000001,0.20869889489999999,0.2073775595,0.20885920729999999,0.21057494809999999,0.21163569309999999,0.21588406609999999,0.21995556529999999,0.21595645520000001,0.2264813681,0.25425297289999998,0.24860254870000001,0.24982515350000001,0.26255041750000002]
["Forbearance ratio - Loans and advances (gross amount) (FBL)201506",201506,239,"Forbearance ratio - Loans and advances (gross amount) (FBL)",0,1.2043331815883299E-2,3.40656491784119E-2,6.0909736444965397E-2,3.7032824277630098E-2,8.7179732612427702E-2,0.19209994855944601,538586575390.90002,13613237612016.6,0.116088416927594,7.9674397691586907E-2,2.88607859540395E-2,126,2.88607859540395E-2,0.116088416927594,0,"Leverage ratio (transitional definition of Tier 1)16",202012,195,"Leverage ratio (transitional definition of Tier 1)","NO",0,4,7.2975644402218695E-2,16,"",null,"LV_SVC_12",".",".",".",".",".",".",".",".",8.8391703099999996E-2,8.8471034500000004E-2,9.2151066899999995E-2,9.7339543700000003E-2,9.8023313900000006E-2,9.3552109999999994E-2,0.1059094616,0.10697359720000001,0.10313214029999999,9.8211640599999997E-2,9.9468004600000007E-2,0.10084391920000001,9.6924535000000006E-2,9.7009746999999993E-2,0.10401421080000001,9.1927345399999999E-2,9.1548886400000001E-2,8.8952642400000004E-2]
["Forbearance ratio - Loans and advances (gross amount) (FBL)201509",201509,239,"Forbearance ratio - Loans and advances (gross amount) (FBL)",0,1.2363581822658599E-2,3.1647475370559799E-2,6.07892928648648E-2,3.61944118022084E-2,8.8211344597986296E-2,0.18943750982473001,534354758102.71503,13734769140251.6,0.113205212690415,7.9792368405983305E-2,2.7998426570993998E-2,126,2.7998426570993998E-2,0.113205212690415,0,"Leverage ratio (transitional definition of Tier 1)17",202012,195,"Leverage ratio (transitional definition of Tier 1)","BE",0,8,6.9932412873837405E-2,17,"",null,"LV_SVC_13",".",".",".",".",".",".",".",".",8.8250031199999995E-2,8.8497978899999996E-2,9.2145568999999997E-2,9.7343498299999998E-2,9.8027357400000001E-2,9.3611546700000006E-2,0.10587591790000001,0.10693929119999999,0.10313214029999999,9.8211640599999997E-2,9.9800441099999998E-2,0.101180584,9.7251046499999994E-2,9.7327454899999999E-2,0.10426496859999999,9.2155373299999996E-2,9.1774850500000005E-2,8.9169241100000005E-2]
["Forbearance ratio - Loans and advances (gross amount) (FBL)201512",201512,239,"Forbearance ratio - Loans and advances (gross amount) (FBL)",3.2579863498184702E-4,1.22673785091691E-2,2.86160666752159E-2,5.9901803861617899E-2,3.5358019093495702E-2,8.86071587449479E-2,0.18629554254231601,522579672546.97601,13559515530282.301,0.11054050491119501,7.5549184418264498E-2,2.7339514564945201E-2,128,2.7339514564945201E-2,0.11054050491119501,0,"Leverage ratio (transitional definition of Tier 1)18",202012,195,"Leverage ratio (transitional definition of Tier 1)","LU",0,11,6.9903165187239394E-2,18,"",null,"LV_SVC_2",0.2415067008,0.25403968090000001,0.25346020920000001,0.26268291620000001,0.26937519970000001,0.28183835550000003,0.2058345939,0.1963528065,0.20624513990000001,0.20907865519999999,0.21744899270000001,0.2260178642,0.22857941670000001,0.22302605110000001,0.21713838299999999,0.21891898630000001,0.21057494809999999,0.21163569309999999,0.22551624510000001,0.22977366430000001,0.22564086799999999,0.23635709229999999,0.26424903119999998,0.25852457130000001,0.25974255810000002,0.2728036405]
["Forbearance ratio - Loans and advances (gross amount) (FBL)201603",201603,239,"Forbearance ratio - Loans and advances (gross amount) (FBL)",4.2525249807749504E-6,1.07990593045478E-2,2.7989943799166701E-2,5.9975693458956203E-2,3.4613695784533202E-2,9.3480599581320004E-2,0.19853673781718301,518353344673.263,13725699149537.801,0.11423035295961299,7.3622627945413993E-2,2.6628099460527799E-2,132,2.6628099460527799E-2,0.11423035295961299,0,"Leverage ratio (transitional definition of Tier 1)19",202012,195,"Leverage ratio (transitional definition of Tier 1)","CZ",0,3,6.7791542193090207E-2,19,"",null,"LV_SVC_29",0.22553614350000001,0.2349739502,0.23460210619999999,0.24403415079999999,0.25174916619999999,0.26454834109999997,0.18962291549999999,0.1778286734,0.1871254191,0.18905858610000001,0.1972401801,0.20859994209999999,0.21030714980000001,0.2085684857,0.20743696910000001,0.20891973429999999,0.21057494809999999,0.21163569309999999,0.21508552450000001,0.2191416102,0.2151535832,0.2256626357,0.253570507,0.2479251375,0.24914805749999999,0.26185039409999999]
["Forbearance ratio - Loans and advances (gross amount) (FBL)201606",201606,239,"Forbearance ratio - Loans and advances (gross amount) (FBL)",0,1.08940329929653E-2,2.9313996854335899E-2,5.9604683157246E-2,3.3875883398381601E-2,8.9047785228691001E-2,0.199839858955387,517483675575.13,13981670155168.9,0.114719979038487,7.3272960104840704E-2,2.5909270744240102E-2,133,2.5909270744240102E-2,0.114719979038487,0,"Leverage ratio (transitional definition of Tier 1)20",202012,195,"Leverage ratio (transitional definition of Tier 1)","AT",0,11,6.7042653274364705E-2,20,"",null,"LV_SVC_3",0.2260121443,0.2368070827,0.23534409040000001,0.2434440068,0.25128853200000001,0.26242166160000002,0.18737249410000001,0.1772852711,0.1868173119,0.18907959630000001,0.19720740249999999,0.20860891770000001,0.21032226100000001,0.20869889489999999,0.2073775595,0.20885920729999999,0.21057494809999999,0.21163569309999999,0.21588406609999999,0.21995556529999999,0.21595645520000001,0.2264813681,0.25425297289999998,0.24860254870000001,0.24982515350000001,0.26255041750000002]
["Forbearance ratio - Loans and advances (gross amount) (FBL)201609",201609,239,"Forbearance ratio - Loans and advances (gross amount) (FBL)",0,1.16112849615901E-2,2.83770734718586E-2,5.95498335723069E-2,3.33259914182241E-2,9.1151391648014404E-2,0.19767524749121701,510475687934.18402,14244430901873.699,0.114482079756854,7.3519565607643403E-2,2.5423639112172301E-2,132,2.5423639112172301E-2,0.114482079756854,0,"Leverage ratio (transitional definition of Tier 1)21",202012,195,"Leverage ratio (transitional definition of Tier 1)","LT",0,4,6.6142989993330098E-2,21,"",null,"MT_AQT_3.1",".",".",".",".",".",4.0617810099999999E-2,3.7224694599999997E-2,3.6368271600000002E-2,3.1459557999999999E-2,3.0590433399999999E-2,2.92197646E-2,2.7756956199999998E-2,2.6249230299999999E-2,2.59646457E-2,2.7597477700000001E-2,2.7803805099999999E-2,2.5096133400000002E-2,2.26912537E-2,2.2997708700000001E-2,2.2229084900000001E-2,2.2583152799999999E-2,2.2217703599999999E-2,2.2677756600000001E-2,2.4915319299999999E-2,2.3701527699999999E-2,2.57351839E-2]
["Forbearance ratio - Loans and advances (gross amount) (FBL)201612",201612,239,"Forbearance ratio - Loans and advances (gross amount) (FBL)",0,1.3220257283743399E-2,2.72973534331712E-2,5.6341833800804701E-2,3.1350739211031001E-2,8.5215219769544603E-2,0.22101430452398199,488129899622.25403,14157216830923.5,0.117128782688636,7.0326879593759994E-2,2.3453117498445301E-2,134,2.3453117498445301E-2,0.117128782688636,0,"Leverage ratio (transitional definition of Tier 1)22",202012,195,"Leverage ratio (transitional definition of Tier 1)","IT",0,16,6.5700870218121002E-2,22,"",null,"MT_AQT_3.2",".",".",".",".",".",6.1999293599999998E-2,5.6090036099999997E-2,5.4253064400000002E-2,4.63547235E-2,4.3926423800000003E-2,4.2184122499999997E-2,3.9414775700000002E-2,3.64612193E-2,3.5217924099999999E-2,3.7217767499999999E-2,3.8128049599999998E-2,3.40052364E-2,3.0368667700000001E-2,3.0816174299999999E-2,2.9873113E-2,3.0312772000000002E-2,3.0327888899999999E-2,3.0308405699999999E-2,3.4710510200000003E-2,3.2659113500000003E-2,3.4619045600000002E-2]
["Forbearance ratio - Loans and advances (gross amount) (FBL)201703",201703,239,"Forbearance ratio - Loans and advances (gross amount) (FBL)",0,1.1027398456567901E-2,2.5494947118010199E-2,5.4875838262447997E-2,2.9646834481625601E-2,8.3210004744349003E-2,0.221829218793856,482601197201.45099,14712119402823.5,0.112108112167863,6.8309597349825696E-2,2.2125571983516799E-2,130,2.2125571983516799E-2,0.112108112167863,0,"Leverage ratio (transitional definition of Tier 1)23",202012,195,"Leverage ratio (transitional definition of Tier 1)","FI",0,7,6.2306715417157002E-2,23,"",null,"MT_AQT_31",".",".",".",".",".",2.8404558699999999E-2,2.9287869099999999E-2,2.8432699400000001E-2,2.2614654800000002E-2,2.1501197999999999E-2,2.1106192199999999E-2,1.9860287599999998E-2,1.7617277000000001E-2,1.2191243900000001E-2,1.7065556700000001E-2,1.3112736599999999E-2,1.2739415800000001E-2,1.03955765E-2,8.9786264000000001E-3,8.4323196E-3,7.5370365000000002E-3,7.2268404999999997E-3,6.9730275999999999E-3,7.1817000999999997E-3,7.5423011999999996E-3,5.3135331999999997E-3]
["Forbearance ratio - Loans and advances (gross amount) (FBL)201706",201706,239,"Forbearance ratio - Loans and advances (gross amount) (FBL)",0,9.8601512144745902E-3,2.4439591911283001E-2,5.2223509553891198E-2,2.8314542645438399E-2,7.3271844845536505E-2,0.20844598199724801,477616232636.46198,14880208819738.801,0.101131320931511,6.5204973604703495E-2,2.1209547844600801E-2,128,2.1209547844600801E-2,0.101131320931511,0,"Leverage ratio (transitional definition of Tier 1)24",202012,195,"Leverage ratio (transitional definition of Tier 1)","FR",0,13,5.8053034079896197E-2,24,"",null,"MT_AQT_41.2",".",".",".",".",".",0.3536597574,0.39473183680000001,0.39737479370000001,0.35957946019999998,0.36329063620000002,0.34825706379999999,0.36321407300000003,0.37105171139999998,0.35725824839999998,0.29208581249999999,0.29224022490000001,0.28793226300000002,0.27730827340000003,0.24587497150000001,0.25716990169999998,0.25949183469999998,0.25775671379999998,0.26251137629999999,0.30595627510000001,0.2816709731,0.329545278]
["Forbearance ratio - Loans and advances (gross amount) (FBL)201709",201709,239,"Forbearance ratio - Loans and advances (gross amount) (FBL)",0,9.6628087308719204E-3,2.3471537273189499E-2,5.0675362549817499E-2,2.6886099055071801E-2,6.9978286729028699E-2,0.199855612319466,454429752918.81897,14960096473918.4,9.92144647465317E-2,6.3689023599764194E-2,1.9993112581642901E-2,128,1.9993112581642901E-2,9.92144647465317E-2,0,"Leverage ratio (transitional definition of Tier 1)25",202012,195,"Leverage ratio (transitional definition of Tier 1)","ES",0,15,5.7873248558425301E-2,25,"",null,"MT_AQT_42.2",".",".",".",".",".",5.0331587400000002E-2,5.1047573200000002E-2,4.9039487E-2,4.3253675300000002E-2,4.2089280999999999E-2,3.9621929E-2,3.6715161000000003E-2,3.3529959900000003E-2,3.06113911E-2,3.0410728800000002E-2,3.0051427200000001E-2,2.82447927E-2,2.4132406299999999E-2,2.1601767000000001E-2,2.09449448E-2,2.0526823400000001E-2,2.2496176900000001E-2,2.80841397E-2,3.2211893300000002E-2,3.06283571E-2,3.3142399199999999E-2]
["Forbearance ratio - Loans and advances (gross amount) (FBL)201712",201712,239,"Forbearance ratio - Loans and advances (gross amount) (FBL)",0,9.05735954078506E-3,2.2890524389259599E-2,4.6410104727180497E-2,2.5830261603101E-2,5.9128912213594502E-2,0.1972411476308,433076536515.17798,14881764448763.9,7.6038434356408502E-2,6.0271939400531598E-2,1.9494351023302499E-2,129,1.9494351023302499E-2,7.6038434356408502E-2,0,"Leverage ratio (transitional definition of Tier 1)26",202012,195,"Leverage ratio (transitional definition of Tier 1)","DE",0,23,5.41944964002345E-2,26,"",null,"MT_FND_32",".",".",".",".",".",0.59049488059999999,0.59035942180000001,0.59864152380000002,0.60286164689999999,0.5910430096,0.53204282270000003,0.52540805020000003,0.52378507330000001,0.51628492579999996,0.52640483120000003,0.52511003899999997,0.53645624670000003,0.53227525769999995,0.53173923779999999,0.52066031349999997,0.50464693930000004,0.5052333323,0.51385211040000001,0.50504465389999997,0.52244564689999995,0.54311319309999995]
["Forbearance ratio - Loans and advances (gross amount) (FBL)201803",201803,239,"Forbearance ratio - Loans and advances (gross amount) (FBL)",0,7.3940923092517003E-3,2.13864398359493E-2,4.3953514395264799E-2,2.4205851911797301E-2,5.19925152343481E-2,0.206802133851239,419087242029.02802,15162467493547.5,6.9450057099757503E-2,5.72273764899799E-2,1.8262752390884901E-2,128,1.8262752390884901E-2,6.9450057099757503E-2,0,"Leverage ratio (transitional definition of Tier 1)27",202012,195,"Leverage ratio (transitional definition of Tier 1)","NL",0,6,5.2031523122392502E-2,27,"",null,"MT_FND_33",".",".",".",".",".",5.4490414899999999E-2,5.2033765900000001E-2,5.51324381E-2,4.4497153599999999E-2,4.18772455E-2,4.1413375199999998E-2,3.6530104200000003E-2,3.231125E-2,2.59253594E-2,1.6243966700000001E-2,3.6800763399999999E-2,4.0430331799999997E-2,3.8393578099999999E-2,3.7256795699999998E-2,3.7602525800000001E-2,3.7717327699999997E-2,5.3400382000000003E-2,6.6205120100000001E-2,8.1520433599999997E-2,8.3782727200000004E-2,8.3461564200000005E-2]
["Forbearance ratio - Loans and advances (gross amount) (FBL)201806",201806,239,"Forbearance ratio - Loans and advances (gross amount) (FBL)",0,7.1273224428700498E-3,2.0782470850216301E-2,4.1804076167152399E-2,2.30309338100167E-2,4.7989032965980602E-2,0.179278487630121,403142236554.55603,15243504324274.6,6.5184314344285996E-2,5.42503694478014E-2,1.7479424610899401E-2,128,1.7479424610899401E-2,6.5184314344285996E-2,0,"Leverage ratio (transitional definition of Tier 1)28",202012,195,"Leverage ratio (transitional definition of Tier 1)","SE",0,8,4.9322620745900901E-2,28,"",null,"MT_LIQ_17",".",".",".",".",".",".",".",".",1.7363992447000001,1.6332956482000001,1.6873133086000001,1.7620757333999999,1.7940002286000001,2.9273228975999999,1.9946382109,1.9006984833,1.8242234306,4.6728096283999996,2.8323871859,3.0799713191000002,3.2250042096999998,3.9325304305,4.0382000459,3.8810469119,3.8965354256000002,3.8346549380999999]
["Forbearance ratio - Loans and advances (gross amount) (FBL)201809",201809,239,"Forbearance ratio - Loans and advances (gross amount) (FBL)",0,6.8209888536522002E-3,1.8775228135848299E-2,3.9148551373898499E-2,2.1772142375030699E-2,4.45940303696735E-2,0.16285650052466899,386462159075.54602,15354087551879.1,5.1228363383649902E-2,5.2552145040131198E-2,1.64442604301244E-2,126,1.64442604301244E-2,5.2552145040131198E-2,0,"Leverage ratio (transitional definition of Tier 1)29",202012,195,"Leverage ratio (transitional definition of Tier 1)","DK",0,5,4.6946815711434303E-2,29,"",null,"MT_PFT_21",".",".",".",".",".",0.1187413391,0.11620322080000001,0.13215046920000001,0.1209678828,0.1172484188,0.1029833658,0.1065012781,0.12326495580000001,0.113912598,9.3750933999999994E-2,5.0483257400000002E-2,6.2266489799999998E-2,6.2723533900000003E-2,6.0460242800000001E-2,7.3211899699999999E-2,7.1618795999999998E-2,5.7827327499999998E-2,1.5886949000000001E-2,-3.6658844000000003E-2,-6.6921610000000003E-3,-2.4886208999999999E-2]
["Forbearance ratio - Loans and advances (gross amount) (FBL)201812",201812,239,"Forbearance ratio - Loans and advances (gross amount) (FBL)",0,7.2007399624512396E-3,1.8448281239839999E-2,3.6133072679313698E-2,2.0567201666017901E-2,4.2517000721977602E-2,0.15746027647243699,359317729820.65503,15171639510407.1,4.7549987348425103E-2,4.7325064917879398E-2,1.5801497839242801E-2,127,1.5801497839242801E-2,4.7549987348425103E-2,0,"Leverage ratio (transitional definition of Tier 1)99",202012,195,"Leverage ratio (transitional definition of Tier 1)","EU",0,129,5.9698751081502001E-2,99,"",null,"MT_PFT_23",".",".",".",".",".",0.52550025789999999,0.5071028165,0.47011783530000001,0.47719889980000002,0.52336643930000004,0.57731499949999998,0.57774960959999999,0.56607755820000005,0.59633673529999998,0.56701040670000002,0.56413028480000005,0.56650953010000005,0.57060990030000003,0.6446897251,0.63894159809999995,0.64409913269999997,0.68246284749999997,0.77717455489999998,0.82895345440000001,0.77269410679999995,0.74974602690000003]
["Forbearance ratio - Loans and advances (gross amount) (FBL)201903",201903,239,"Forbearance ratio - Loans and advances (gross amount) (FBL)",1.01463592668675E-4,7.4588618266754596E-3,1.8367957659562999E-2,3.6934626631932498E-2,1.9538731392153699E-2,4.3550561276646797E-2,0.15528164616519399,353067095769.64301,15692397246609.199,4.4666921513353497E-2,4.7759821822864403E-2,1.47451805237715E-2,126,1.47451805237715E-2,4.7759821822864403E-2,0,"Leverage ratio (transitional definition of Tier 1)100",202012,195,"Leverage ratio (transitional definition of Tier 1)","GB",0,26,5.3420377422591397E-2,100,"",null,"MT_PFT_24",".",".",".",".",".",8.3080949999999997E-3,8.2420892999999999E-3,9.3389448999999999E-3,8.6165410000000001E-3,8.2798963000000007E-3,7.3817196999999999E-3,7.6210846000000004E-3,8.9505091999999998E-3,8.9854975999999996E-3,7.9816942999999998E-3,4.3040958000000002E-3,5.3056657999999996E-3,5.3945419E-3,5.1682220999999997E-3,6.3097435000000002E-3,6.1712462999999997E-3,4.9718324E-3,1.3519116999999999E-3,-3.0404619999999999E-3,-5.5747499999999998E-4,-2.0407659999999998E-3]
["Forbearance ratio - Loans and advances (gross amount) (FBL)201906",201906,239,"Forbearance ratio - Loans and advances (gross amount) (FBL)",1.9994006271602201E-4,7.1483953818014803E-3,1.7466921597841901E-2,3.4224221141365203E-2,1.8956015291133999E-2,3.92496973804244E-2,0.14958530751451099,340786977556.92401,15672241208056,4.1170886833139901E-2,4.6241335309223301E-2,1.4387539638494901E-2,125,1.4387539638494901E-2,4.6241335309223301E-2,0,"CET 1 ratio (fully phased-in definition)1",202012,208,"CET 1 ratio (fully phased-in definition)","EE",0,4,0.27513970865875198,1,"",null,"MT_PFT_25",".",".",".",".",".",0.66661746619999995,0.66407039960000003,0.63665949420000001,0.64453755810000002,0.66985722569999995,0.69575807099999998,0.70187771529999998,0.70249542009999999,0.71057469240000004,0.69736195739999995,0.71680430630000003,0.73047972679999995,0.71978741180000005,0.74517309300000001,0.71162528449999995,0.70926357500000003,0.69578046660000004,0.76459810579999998,0.75826647270000003,0.74260185739999995,0.72140414389999996]
["Forbearance ratio - Loans and advances (gross amount) (FBL)201909",201909,239,"Forbearance ratio - Loans and advances (gross amount) (FBL)",1.9185463586886999E-4,7.0993404167265196E-3,1.7858214714305001E-2,3.3058512519880498E-2,1.8288155501507398E-2,3.6334091976803998E-2,0.14108631523177501,330020506580.84302,15803224387803.9,4.0703539671261599E-2,4.3967524672940503E-2,1.3981343489229201E-2,125,1.3981343489229201E-2,4.3967524672940503E-2,0,"CET 1 ratio (fully phased-in definition)2",202012,208,"CET 1 ratio (fully phased-in definition)","LV",0,5,0.26185039407993499,2,"",null,"MT_PFT_26",".",".",".",".",".",0.1911857555,0.18797076400000001,0.17885893080000001,0.18279694490000001,0.19804630440000001,0.20302325399999999,0.20566167699999999,0.2181008599,0.2182981705,0.21975073849999999,0.23382128050000001,0.23071082009999999,0.23185792799999999,0.23411954800000001,0.212558736,0.22079782149999999,0.22728026270000001,0.2586492816,0.22272330700000001,0.22146061750000001,0.22353424320000001]
["Forbearance ratio - Loans and advances (gross amount) (FBL)201912",201912,239,"Forbearance ratio - Loans and advances (gross amount) (FBL)",1.73752442655591E-4,6.8593467384633396E-3,1.5802743513655002E-2,3.0684148941611599E-2,1.7540351924003401E-2,3.4432559570176803E-2,9.8493205462653E-2,310788669766.46997,15591710942044.1,3.8409741954706797E-2,3.9762957422479497E-2,1.3650182412690301E-2,126,1.3650182412690301E-2,3.9762957422479497E-2,0,"CET 1 ratio (fully phased-in definition)3",202012,208,"CET 1 ratio (fully phased-in definition)","HR",0,3,0.233112018857875,3,"",null,"MT_PFT_29",".",".",".",".",".",1.6791135400000001E-2,3.2547172999999999E-2,3.3785947699999999E-2,3.2195425100000001E-2,3.2254806300000001E-2,2.7893105099999999E-2,2.4776237699999999E-2,2.4225895899999999E-2,2.4870312700000001E-2,0.1162233449,1.5342365199999999E-2,6.5523038999999996E-3,1.4097055900000001E-2,2.2025761800000002E-2,1.3332143100000001E-2,1.29760512E-2,1.8630955300000002E-2,1.56166728E-2,1.6202316299999998E-2,1.50210823E-2,1.54391818E-2]
["Forbearance ratio - Loans and advances (gross amount) (FBL)202003",202003,239,"Forbearance ratio - Loans and advances (gross amount) (FBL)",8.9508185178861397E-4,7.2579300891529403E-3,1.8628392095175399E-2,3.1993572529487403E-2,1.8636731988979201E-2,3.79593094404767E-2,0.132628111456113,305720426654.00299,16386858400608.5,3.8260837383808602E-2,4.0350896293267997E-2,1.41717883368171E-2,117,1.41717883368171E-2,4.0350896293267997E-2,0,"CET 1 ratio (fully phased-in definition)4",202012,208,"CET 1 ratio (fully phased-in definition)","CZ",0,3,0.223906800761003,4,"",null,"MT_PFT_41",".",".",".",".",".",1.9318653700000001E-2,1.7911081200000002E-2,1.87617759E-2,1.8767429200000001E-2,1.8339218899999999E-2,1.7400969700000001E-2,1.7267965E-2,2.0164897000000001E-2,1.9461622000000001E-2,1.7040421100000001E-2,1.7219877500000001E-2,1.7263636400000001E-2,1.7216127500000001E-2,1.6516011600000002E-2,1.6821564099999999E-2,1.65228283E-2,1.6137040299999999E-2,1.4761960100000001E-2,1.44989778E-2,1.4474924700000001E-2,1.42466977E-2]
["Forbearance ratio - Loans and advances (gross amount) (FBL)202006",202006,239,"Forbearance ratio - Loans and advances (gross amount) (FBL)",1.2344474145651E-3,8.8511784246059107E-3,2.0956630919821799E-2,3.2703125284032401E-2,1.9657205599601602E-2,3.6123870764748697E-2,0.11095578050470099,336917505984.224,17084235584789.801,4.1405438964679298E-2,3.93651096119116E-2,1.5614382956682099E-2,117,1.5614382956682099E-2,4.1405438964679298E-2,0,"CET 1 ratio (fully phased-in definition)5",202012,208,"CET 1 ratio (fully phased-in definition)","BG",0,4,0.22106671406560399,5,"",null,"MT_PFT_43",".",".",".",".",".",".",".",".",".",".",".",".",".",".",4.9450772800000001E-2,5.4647604999999997E-3,3.5803672000000002E-3,2.1430057000000001E-3,3.3108365999999999E-3,2.29322907E-2,1.51508089E-2,1.1453945599999999E-2,4.6263401500000002E-2,1.4030380699999999E-2,1.2967597900000001E-2,1.25859283E-2]
["Forbearance ratio - Loans and advances (gross amount) (FBL)202009",202009,239,"Forbearance ratio - Loans and advances (gross amount) (FBL)",1.2336546252586899E-3,8.7670778818860606E-3,2.0803314277232799E-2,3.31923773353777E-2,1.9871565723805398E-2,3.7912091082227699E-2,0.103976568828448,345309259122.43103,17253613239941.699,4.0690968500973701E-2,3.9418886841598298E-2,1.6004430466067199E-2,116,1.6004430466067199E-2,4.0690968500973701E-2,0,"CET 1 ratio (fully phased-in definition)6",202012,208,"CET 1 ratio (fully phased-in definition)","IS",0,3,0.215952074666169,6,"",null,"MT_SVC_1",".",".",".",".",".",0.156637846,0.19915599270000001,0.19410425719999999,0.15010096740000001,0.15228995549999999,0.15223731970000001,0.1511567691,0.15314435539999999,0.17545861530000001,0.17203979799999999,0.1739088144,0.16934811990000001,0.1823989064,0.18245141640000001,0.18189386260000001,0.18385220760000001,0.18872075199999999,0.18730224719999999,0.18870709560000001,0.19065146990000001,0.20451146549999999]
["Forbearance ratio - Loans and advances (gross amount) (FBL)202012",202012,239,"Forbearance ratio - Loans and advances (gross amount) (FBL)",1.4702860519516799E-4,8.9932530942421398E-3,2.0107223987035801E-2,3.3204031548223698E-2,2.00387959112081E-2,3.9106731730434698E-2,0.11165374372905799,346517870990.98401,17043010286651.5,4.4466201644620201E-2,3.8322477550776397E-2,1.6206826673426499E-2,116,1.6206826673426499E-2,4.4466201644620201E-2,0,"CET 1 ratio (fully phased-in definition)7",202012,208,"CET 1 ratio (fully phased-in definition)","LT",0,4,0.20960462322509699,7,"",null,"MT_SVC_12",".",".",".",".",".",".",".",".",6.6961501699999995E-2,7.1201062100000004E-2,7.0367076900000006E-2,7.0145601899999993E-2,7.1158598399999995E-2,8.0405684300000002E-2,8.0211394899999996E-2,8.0383847199999997E-2,7.8237066300000005E-2,8.2225751900000005E-2,8.3171996900000003E-2,7.9388922900000006E-2,7.8048940999999997E-2,7.9302661199999999E-2,7.6976146300000006E-2,7.4423361600000001E-2,7.3484635699999995E-2,7.3809533499999996E-2]
["Liquidity coverage ratio201609",201609,391,"Liquidity coverage ratio",0.89917996795893396,1.2742728451085299,1.5113430886058501,2.4105851555239401,1.4045952359891201,2.4331240929764602,7.0431735669042297,3249607140745.6299,2318850986306.25,2.1308080827915798,1.55569108812876,1.34393768643963,153,1.34393768643963,2.1308080827915798,0,"CET 1 ratio (fully phased-in definition)8",202012,208,"CET 1 ratio (fully phased-in definition)","LU",0,11,0.201681580296457,8,"",null,"MT_SVC_13",".",".",".",".",".",".",".",".",6.8143991500000001E-2,7.1945575799999995E-2,7.1747607099999999E-2,6.9534365799999998E-2,7.0535973399999993E-2,7.9874156500000001E-2,8.0211394899999996E-2,8.0964509399999995E-2,7.8825253100000006E-2,8.2814256599999997E-2,8.3752786100000004E-2,8.0185626199999999E-2,7.8664152200000004E-2,7.9636915700000005E-2,7.7111598599999998E-2,7.50600186E-2,7.4115144999999993E-2,7.4833244500000007E-2]
["Liquidity coverage ratio201612",201612,391,"Liquidity coverage ratio",0.80439801370193298,1.2841784807500101,1.54102077445831,2.4350650014064001,1.4134945487482899,2.4387964709768699,6.6189903734966897,3278039860467.5698,2360749935601.6099,2.43731372483755,1.52166687169657,1.3463059291936099,158,1.3463059291936099,2.43731372483755,0,"CET 1 ratio (fully phased-in definition)9",202012,208,"CET 1 ratio (fully phased-in definition)","MT",0,5,0.20153887322533701,9,"",null,"MT_SVC_2",".",".",".",".",".",0.18320392620000001,0.22696662200000001,0.22014494649999999,0.17638440089999999,0.17712011759999999,0.17495712990000001,0.17309456619999999,0.1741847453,0.19772511249999999,0.19227552780000001,0.1933375822,0.18769178580000001,0.206572336,0.20573417390000001,0.2105858941,0.21199797970000001,0.2172162775,0.215846749,0.21803665950000001,0.21995235469999999,0.2347996212]
["Liquidity coverage ratio201703",201703,391,"Liquidity coverage ratio",0.98296769113896398,1.31724701906404,1.56630437711177,3.8267383615602499,1.4468506916233199,2.2106889460983701,5.8581028691679604,3619833925083.5801,2511946113500.0098,2.07022824586896,1.60364583509839,1.3940265953400599,153,1.3940265953400599,2.07022824586896,0,"CET 1 ratio (fully phased-in definition)10",202012,208,"CET 1 ratio (fully phased-in definition)","SE",0,8,0.19539074901999701,10,"",null,"MT_SVC_29",".",".",".",".",".",0.1585438532,0.2023068838,0.19654075330000001,0.15220174140000001,0.15409908050000001,0.15450804930000001,0.15190101889999999,0.1545350654,0.17770403230000001,0.17203979799999999,0.17359080290000001,0.16868103740000001,0.18053399910000001,0.18075054870000001,0.1802108231,0.18216388389999999,0.18748296640000001,0.1858419764,0.1866453146,0.18874072510000001,0.2015388732]
["Liquidity coverage ratio201706",201706,391,"Liquidity coverage ratio",1.13688029656447,1.3581966355633099,1.5900991228457499,7.0792420325200203,1.45512536533231,2.3081601380626,7.53839810324083,3592126799698.5698,2495160672076.7202,2.05520946898061,1.63793807123888,1.3996062985030899,151,1.3996062985030899,2.05520946898061,0,"CET 1 ratio (fully phased-in definition)11",202012,208,"CET 1 ratio (fully phased-in definition)","NO",0,4,0.193590469097498,11,"",null,"MT_SVC_3",".",".",".",".",".",0.156637846,0.19915599270000001,0.19410425719999999,0.15010096740000001,0.15228995549999999,0.15223731970000001,0.1511567691,0.15314435539999999,0.17545861530000001,0.17203979799999999,0.1739088144,0.16934811990000001,0.1823989064,0.18245141640000001,0.18189386260000001,0.18385220760000001,0.18872075199999999,0.18730224719999999,0.18870709560000001,0.19065146990000001,0.20451146549999999]
["Liquidity coverage ratio201709",201709,391,"Liquidity coverage ratio",1.10387360894342,1.3330740861384001,1.5801050718507701,2.6208175847532398,1.44448935327483,2.28828635118778,6.9518274085669001,3579249892974.23,2527715354037.6401,2.0713331916953801,1.6271487245238601,1.3879866608406599,151,1.3879866608406599,2.0713331916953801,0,"CET 1 ratio (fully phased-in definition)12",202012,208,"CET 1 ratio (fully phased-in definition)","RO",0,3,0.189993552305359,12,"",null,"NL_AQT_3.1",2.7760225499999999E-2,2.8915621200000002E-2,2.80776675E-2,2.61370532E-2,2.4715219900000002E-2,2.5004819800000001E-2,2.36520034E-2,2.3938579000000001E-2,2.3055881100000002E-2,2.2628727899999999E-2,2.1510106099999999E-2,2.24863379E-2,2.16007106E-2,2.14597698E-2,2.0679235099999999E-2,1.99046919E-2,1.8843800399999999E-2,1.8713274299999999E-2,1.8438274000000001E-2,1.7849824E-2,1.8059811499999998E-2,1.7899802100000001E-2,1.7807503999999998E-2,1.8133019100000002E-2,1.7645928500000001E-2,1.8171959299999998E-2]
["Liquidity coverage ratio201712",201712,391,"Liquidity coverage ratio",1.1666512955888699,1.3971893713774199,1.67568352985633,2.9233794643585198,1.48283740050085,2.34777291843278,5.31423253853613,3468184870246.8901,2394242761008.0698,2.3288613595127599,1.65464011068631,1.4192342702236,149,1.4192342702236,2.3288613595127599,0,"CET 1 ratio (fully phased-in definition)13",202012,208,"CET 1 ratio (fully phased-in definition)","DK",0,5,0.18650169809530301,13,"",null,"NL_AQT_3.2",3.1373437699999999E-2,3.2991862400000002E-2,3.18528587E-2,2.9302237700000001E-2,2.7649300700000001E-2,2.7957782600000002E-2,2.65059596E-2,2.6832061500000001E-2,2.5731621900000001E-2,2.5363941800000001E-2,2.3864171399999998E-2,2.4937275700000001E-2,2.3826323399999998E-2,2.3708207299999999E-2,2.2635987100000001E-2,2.17512817E-2,2.04889535E-2,2.04081861E-2,2.0095351800000001E-2,1.9404809700000001E-2,1.9675653299999998E-2,1.95433593E-2,1.9434810100000002E-2,1.9841887400000001E-2,1.92455666E-2,1.9872100899999998E-2]
["Liquidity coverage ratio201803",201803,391,"Liquidity coverage ratio",1.17921637184015,1.3981066645541,1.65601699990141,143.599803089593,1.4699259323990099,2.34823707403836,5.4626273219248302,3535640210509.3501,2470617210282.6602,2.0898238439156298,1.6441739058854401,1.4149551575157799,151,{"$f":"MIN(N511:P511)","v":1.4149551575157799},{"$f":"MAX(N511:P511)","v":2.0898238439156298},0,"CET 1 ratio (fully phased-in definition)14",202012,208,"CET 1 ratio (fully phased-in definition)","FI",0,7,0.18090563004990801,14,"",null,"NL_AQT_31",1.33942803E-2,1.23778207E-2,1.14611573E-2,1.2327632200000001E-2,1.1578489799999999E-2,1.1585727299999999E-2,1.09903581E-2,1.09915017E-2,1.1809927099999999E-2,1.19724411E-2,1.13653634E-2,1.2250725000000001E-2,1.21320952E-2,1.27556591E-2,4.8385275000000002E-3,4.5569877999999996E-3,4.2513428999999998E-3,4.0749766000000003E-3,4.0192984999999999E-3,3.9131241999999997E-3,3.9563441999999997E-3,4.1669921E-3,3.7020034999999999E-3,3.7370146000000001E-3,3.6435427999999999E-3,3.6178313999999999E-3]
["Liquidity coverage ratio201806",201806,391,"Liquidity coverage ratio",1.22505412001815,1.3978284638399501,1.61967388997114,19.671246643107899,1.4822208942838699,2.2324469884782401,5.5118269038986796,3581148785908.71,2516562633907.8101,2.2451279282710899,1.6276048608039,1.4238955297545299,151,1.4238955297545299,2.2451279282710899,0,"CET 1 ratio (fully phased-in definition)15",202012,208,"CET 1 ratio (fully phased-in definition)","BE",0,8,0.17777983669498201,15,"",null,"NL_AQT_41.2",0.29755444209999998,0.3772075379,0.36304384509999998,0.37344105090000002,0.38725331460000001,0.37471532400000002,0.37507001559999997,0.36397726940000003,0.35902710999999998,0.35159282689999999,0.34736797089999999,0.33037247949999998,0.32060306869999999,0.28776336629999999,0.27227381439999998,0.27002746179999998,0.26628439459999997,0.25821960100000002,0.25703437140000002,0.24254119630000001,0.24216619189999999,0.25468975739999999,0.25684151509999997,0.27870220540000001,0.27351227680000001,0.27084729660000001]
["Liquidity coverage ratio201809",201809,391,"Liquidity coverage ratio",1.21238566763973,1.36765531987313,1.62834804753893,208.392459498639,1.48508797801292,2.2522187259284201,4.9389118595469998,3568669948524.9199,2491715025010.73,2.0975751336544701,1.62484077916319,1.4343526946891001,150,{"$f":"MIN(N513:P513)","v":1.4343526946891001},{"$f":"MAX(N513:P513)","v":2.0975751336544701},0,"CET 1 ratio (fully phased-in definition)16",202012,208,"CET 1 ratio (fully phased-in definition)","PL",0,3,0.17600507246570399,16,"",null,"NL_AQT_42.2",2.1959066199999999E-2,2.43175074E-2,2.42427461E-2,2.3773108000000001E-2,2.31874091E-2,2.2694053799999999E-2,2.20200116E-2,2.3098127499999999E-2,2.3959405900000001E-2,2.40973599E-2,2.30266586E-2,2.3720531100000001E-2,2.2547830099999999E-2,2.09776029E-2,1.8574187499999999E-2,1.8066774300000001E-2,1.6667154399999998E-2,1.67744825E-2,1.58192721E-2,1.5460239299999999E-2,1.5524463400000001E-2,1.6662623500000001E-2,1.6747106599999999E-2,2.1054011399999999E-2,2.4564330299999999E-2,2.6618064899999998E-2]
["Liquidity coverage ratio201812",201812,391,"Liquidity coverage ratio",1.2018287770967699,1.40369989248687,1.71573072988326,174.51462641979199,1.5139907258596701,2.4749340273413099,7.5463056071379997,3492997053533.6802,2401674425806.6899,2.6575738516531699,1.69973614856968,1.4425143473475599,149,1.4425143473475599,2.6575738516531699,0,"CET 1 ratio (fully phased-in definition)17",202012,208,"CET 1 ratio (fully phased-in definition)","IE",0,8,0.175835939238636,17,"",null,"NL_FND_32",1.3476248838,1.3348738667,1.3398156234,1.3224674430000001,1.3169610136000001,1.3074731660000001,1.2983263879,1.2874068083000001,1.2934969484000001,1.2786036516999999,1.2693624504000001,1.2642311715000001,1.261708289,1.2532713731,1.268230178,1.2699538596,1.2737647454000001,1.2566514863,1.2763044642000001,1.2595671117,1.2592708858999999,1.2457073585,1.2484331816000001,1.1814228377,1.1522708808,1.1311367095]
[{"$f":"+D515&B515","v":"Liquidity coverage ratio201903"},201903,391,"Liquidity coverage ratio",1.22802909377032,1.4699424702072601,1.7310551275750199,128.624613874711,1.52106897310862,2.4287748869892298,5.7645564123645903,3731469106529.4399,2505491253017.1001,2.2743884079122099,1.7902525398546301,1.4495029453245101,150,1.4495029453245101,2.2743884079122099,0,{"$f":"CONCATENATE(X515,AC515)","v":"CET 1 ratio (fully phased-in definition)18"},202012,208,"CET 1 ratio (fully phased-in definition)","NL",0,6,0.17009276677594101,18,"",null,"NL_FND_33",".",0.14820691950000001,0.1558600269,0.15018976940000001,0.15185743970000001,0.146259956,0.16183327159999999,0.1630437709,0.16593332290000001,0.14950842959999999,0.16247094840000001,0.16359459670000001,0.1665641508,0.15676281889999999,0.1699455909,0.16972989820000001,0.1736133373,0.16606839479999999,0.1710252273,0.1756585678,0.17812297569999999,0.1724387809,0.18216149209999999,0.21116087510000001,0.22249690920000001,0.22859764760000001]
["Liquidity coverage ratio201906",201906,391,"Liquidity coverage ratio",1.2379518656100299,1.4072774334676399,1.71542039171748,15.9490847303748,1.4902277220870599,2.4403192600759098,5.5524960043479998,3593122543178.6499,2446832323050.4102,2.1700605896742098,1.721752681945,1.4283068559103,148,1.4283068559103,2.1700605896742098,0,"CET 1 ratio (fully phased-in definition)19",202012,208,"CET 1 ratio (fully phased-in definition)","SK",0,3,0.15818219864504399,19,"",null,"NL_LIQ_17",".",".",".",".",".",".",".",".",1.3135244958000001,1.2758451516,1.3349270875000001,1.3157098916000001,1.2622757199000001,1.2832475102000001,1.2316628079,1.3467322334,1.3484905410000001,1.3692184815999999,1.3334756287,1.3338417963,1.273520907,1.3213595703000001,1.2864103413000001,1.5216844349,1.5493734609000001,1.6485781925]
["Liquidity coverage ratio201909",201909,391,"Liquidity coverage ratio",1.22630442113089,1.4081740183828999,1.68520534150621,170.83534767995499,1.47696585418661,2.3155234199181298,7.3905715590416197,3719488541075.5898,2545063447032.52,2.1390319495156902,1.7480667495245199,1.4099289983251799,148,1.4099289983251799,2.1390319495156902,0,"CET 1 ratio (fully phased-in definition)20",202012,208,"CET 1 ratio (fully phased-in definition)","FR",0,13,0.15763824189356401,20,"",null,"NL_PFT_21",3.1505308900000001E-2,3.5930016699999998E-2,7.1314586700000002E-2,7.9354139599999998E-2,9.8720325100000006E-2,7.7477344200000006E-2,7.4506692900000004E-2,8.1326792199999998E-2,8.9541211499999995E-2,7.9536041000000002E-2,9.1460451299999995E-2,0.1025434044,0.1037209389,9.3489277999999995E-2,9.16963373E-2,0.1001111392,9.58126906E-2,8.7936806800000003E-2,7.6488950900000005E-2,8.5249373500000003E-2,8.8937364599999999E-2,7.6628744299999996E-2,1.35782067E-2,1.65835241E-2,3.12159958E-2,3.1860872899999997E-2]
["Liquidity coverage ratio201912",201912,391,"Liquidity coverage ratio",1.2525707882694499,1.4383688792562499,1.69329921217595,170.92339030016799,1.4979598799649601,2.2526179884475099,5.69726654740486,3549067087011.2402,2416242947529.8901,2.2240435869566801,1.7831689020680299,1.42418436067584,147,1.42418436067584,2.2240435869566801,{"$f":"IF(OR(G518<R518,G518>S518),1,0)","v":0},"CET 1 ratio (fully phased-in definition)21",202012,208,"CET 1 ratio (fully phased-in definition)","DE",0,23,0.15622788715698699,21,"",null,"NL_PFT_23",0.63590212739999996,0.6384005452,0.5534991481,0.52883656359999998,0.54907173750000005,0.5710631639,0.68925872219999995,0.60351198760000002,0.58462945489999996,0.57436907820000005,0.60169587670000002,0.56110979689999996,0.55397191050000005,0.56854483249999999,0.59705906710000001,0.56861684189999995,0.58457782680000003,0.59460995979999998,0.60708018109999995,0.57078650639999995,0.55740682649999995,0.5796416674,0.66628690359999998,0.6075112533,0.59075514070000001,0.61041576949999998]
["Liquidity coverage ratio202003",202003,391,"Liquidity coverage ratio",1.2379631398318101,1.40834229378786,1.7212739588489501,370.76184228578802,1.4879520732006,2.4337398597807298,5.3838045419275904,3928182393683.8198,2671830057420.6499,2.0864157700286499,1.7844110490113401,1.41273889757153,131,1.41273889757153,2.0864157700286499,0,"CET 1 ratio (fully phased-in definition)22",202012,208,"CET 1 ratio (fully phased-in definition)","CY",0,4,0.15449895014274501,22,"",null,"NL_PFT_24",1.5537738999999999E-3,1.7746997E-3,3.7077122999999998E-3,4.1107790999999998E-3,5.1365261999999998E-3,4.1419595999999999E-3,3.9911310000000002E-3,4.3322042000000002E-3,4.7961825999999997E-3,4.3786969000000004E-3,5.1039539000000004E-3,5.7685286000000004E-3,5.8370065999999998E-3,5.3683602E-3,5.3337423000000004E-3,5.8209806000000001E-3,5.5679322000000003E-3,5.2483008000000003E-3,4.5657205000000003E-3,5.0242990000000003E-3,5.2571670999999997E-3,4.6351287000000003E-3,7.9745779999999995E-4,9.5965690000000001E-4,1.7999736000000001E-3,1.8804058E-3]
["Liquidity coverage ratio202006",202006,391,"Liquidity coverage ratio",1.33495662662104,1.59320795898234,1.90196165317213,3.1359366035753302,1.6591318713688801,2.5780004489840902,5.2371000568575301,4670221539734.8701,2821885060782.8501,2.1106656025092301,1.9849161191928999,1.5870035851703701,131,1.5870035851703701,2.1106656025092301,0,"CET 1 ratio (fully phased-in definition)23",202012,208,"CET 1 ratio (fully phased-in definition)","SI",0,6,0.15374275603967799,23,"",null,"NL_PFT_25",0.76993263140000001,0.77984419559999996,0.72855065190000001,0.69836986020000003,0.72966008469999999,0.73728372860000002,0.85285677950000005,0.79457002830000001,0.77714544659999996,0.74733954989999996,0.75977054420000001,0.74957616199999999,0.75665263289999996,0.76090875599999996,0.76477679730000003,0.76023856359999997,0.74310866279999999,0.75025188880000004,0.79458960190000005,0.7748178845,0.76939252619999998,0.77623182609999997,0.80906345449999995,0.78527146010000004,0.77514117689999995,0.77634517049999996]
["Liquidity coverage ratio202009",202009,391,"Liquidity coverage ratio",1.38904535219789,1.61005665765637,1.8543359314108201,154.41814508994699,1.7118323734212699,2.5595244830703998,7.8624165845189502,4890237166090.5,2866032531605.2202,2.25879014857136,2.0266733290049399,1.6402897507107801,130,1.6402897507107801,2.25879014857136,0,"CET 1 ratio (fully phased-in definition)24",202012,208,"CET 1 ratio (fully phased-in definition)","AT",0,11,0.14766261488142801,24,"",null,"NL_PFT_26",0.16044596,0.1607829435,0.15888402979999999,0.15019138700000001,0.15257352800000001,0.15450584379999999,0.18151749910000001,0.16805150490000001,0.16371927920000001,0.15610772419999999,0.167695188,0.16305922840000001,0.16045557050000001,0.1615907067,0.1620113943,0.16335096730000001,0.15917273379999999,0.16053606300000001,0.17486906939999999,0.17010252989999999,0.1687231756,0.16664614829999999,0.18169950469999999,0.1687872654,0.16594741630000001,0.17000940889999999]
["Liquidity coverage ratio202012",202012,391,"Liquidity coverage ratio",1.4081852119582601,1.6312075781772699,1.9536374920042701,21.336338763772901,1.7306976808472401,2.5212795943598501,5.62901124258204,4805560633277.5303,2776183306498.98,2.06830350349651,2.0820098755213299,1.6535574854769599,130,1.6535574854769599,2.0820098755213299,0,"CET 1 ratio (fully phased-in definition)25",202012,208,"CET 1 ratio (fully phased-in definition)","PT",0,8,0.146739709291277,25,"",null,"NL_PFT_29",8.3606978700000001E-2,5.9495955199999999E-2,0.1341878396,5.5247932200000002E-2,2.4405837400000002E-2,2.4929689200000001E-2,-7.1207570000000001E-3,-9.1472199999999997E-4,1.36982479E-2,5.6118568000000004E-3,3.10462567E-2,1.6181937E-2,1.2131271000000001E-2,1.6190611600000002E-2,2.2347981699999998E-2,2.6642125499999999E-2,2.9121629499999999E-2,2.5591102399999999E-2,6.2469682399999997E-2,4.20313098E-2,1.7152233199999999E-2,8.5750992999999998E-3,-2.5425794000000002E-2,2.3517748099999999E-2,1.9372122799999999E-2,7.2068959000000004E-3]
["Cost of risk201512",201512,392,"Cost of risk",1.1303593556059601E-3,1.5544572313169499E-3,2.4264983586043298E-3,7.0034778694129298E-3,2.83566631635144E-3,1.2452498507508901E-2,2.2030555404837102E-2,"","",2.2030555404837102E-2,2.2545656486788598E-3,"",4,2.2545656486788598E-3,2.2030555404837102E-2,0,"CET 1 ratio (fully phased-in definition)26",202012,208,"CET 1 ratio (fully phased-in definition)","HU",0,4,0.145943147774663,26,"",null,"NL_PFT_41",1.52408084E-2,1.5648957500000001E-2,1.5207043700000001E-2,1.5371602700000001E-2,1.53920703E-2,1.5650768200000002E-2,1.5447129400000001E-2,1.5339641500000001E-2,1.5331688600000001E-2,1.56048799E-2,1.52948249E-2,1.5727878899999999E-2,1.56327419E-2,1.60139095E-2,1.56711621E-2,1.5743098800000001E-2,1.56751763E-2,1.59738403E-2,1.5386601600000001E-2,1.5596394600000001E-2,1.55804685E-2,1.59159587E-2,1.51353206E-2,1.4830926600000001E-2,1.45885988E-2,1.48120683E-2]
["Cost of risk201603",201603,392,"Cost of risk",-3.10943673037647E-3,-5.8662338520218596E-7,2.9725482047777301E-3,1.70192310468679E-3,3.54586237129116E-3,3.2732311283852301E-3,5.3738595440326904E-3,"","",-3.10943673037647E-3,3.71594989044207E-3,"",5,-3.10943673037647E-3,3.71594989044207E-3,0,"CET 1 ratio (fully phased-in definition)27",202012,208,"CET 1 ratio (fully phased-in definition)","IT",0,16,0.145307174019629,27,"",null,"NL_PFT_43",".",".",".",".",".",".",".",".",".",".",".",".",".",".",2.2352311999999999E-3,1.9160797E-3,2.0682373000000002E-3,2.0210706E-3,1.6297434E-3,2.0063123999999998E-3,1.9898757000000001E-3,2.4598902999999998E-3,5.8933359999999999E-3,6.9502547000000001E-3,5.6694403000000001E-3,5.5046271000000003E-3]
["Cost of risk201606",201606,392,"Cost of risk",-2.6233483084429602E-7,1.3279368906528E-3,2.2974758362171999E-3,3.00718587788649E-3,3.9818813279041297E-3,4.7945202485210198E-3,6.6162587488722497E-3,"","",2.2974758362171999E-3,4.0252277695115597E-3,"",5,2.2974758362171999E-3,4.0252277695115597E-3,0,"CET 1 ratio (fully phased-in definition)28",202012,208,"CET 1 ratio (fully phased-in definition)","GR",0,4,0.12687484156202999,28,"",null,"NL_SVC_1",0.14407591249999999,0.1487959818,0.15215913280000001,0.1525842546,0.1588562006,0.16082653620000001,0.15943708940000001,0.16596962039999999,0.16821761129999999,0.17657615290000001,0.17863157800000001,0.18067352079999999,0.17890230479999999,0.1825975792,0.1792618661,0.18152354970000001,0.1825578075,0.18645640720000001,0.18652928969999999,0.1827020358,0.18846686609999999,0.18736759210000001,0.1815009376,0.186982237,0.19231102289999999,0.19059549479999999]
["Cost of risk201609",201609,392,"Cost of risk",-1.1862261130338801E-3,-1.7893552683483801E-7,1.74311255323983E-3,1.75054028861024E-3,2.6163440178869901E-3,2.1571548064898802E-3,6.0388391318822099E-3,"","",-1.1862261130338801E-3,2.70739677694893E-3,"",5,-1.1862261130338801E-3,2.70739677694893E-3,0,"CET 1 ratio (fully phased-in definition)29",202012,208,"CET 1 ratio (fully phased-in definition)","ES",0,15,0.123842682946418,29,"",null,"NL_SVC_12",".",".",".",".",".",".",".",".",3.8568023299999997E-2,4.2139666800000003E-2,4.1345404600000003E-2,4.3458324399999998E-2,4.2575475600000003E-2,4.5354500499999999E-2,4.3118686500000003E-2,4.3929845299999999E-2,4.3130412E-2,4.5447562599999998E-2,4.4486648400000002E-2,4.5094153300000002E-2,4.5405912299999997E-2,4.8070137300000003E-2,4.5274944499999997E-2,4.5206104400000002E-2,4.73622733E-2,5.1555870300000001E-2]
["Cost of risk201612",201612,392,"Cost of risk",-2.32894587659225E-7,1.32792622668151E-3,1.45339777755523E-3,1.49786083964824E-3,1.5698601806806299E-3,2.1870794057415799E-3,2.5211336828505201E-3,"","",2.1870794057415799E-3,1.5516725132601801E-3,"",5,1.5516725132601801E-3,2.1870794057415799E-3,1,"CET 1 ratio (fully phased-in definition)99",202012,208,"CET 1 ratio (fully phased-in definition)","EU",0,129,0.15488172300743999,99,"",null,"NL_SVC_13",".",".",".",".",".",".",".",".",4.2390002599999997E-2,4.5905029100000001E-2,4.4350735299999999E-2,4.6315897600000003E-2,4.48464997E-2,4.7658544999999997E-2,4.5494453900000002E-2,4.6228514999999998E-2,4.5381080400000003E-2,4.7761207200000003E-2,4.6500197299999997E-2,4.5978405399999998E-2,4.6277093200000001E-2,4.8816618899999997E-2,4.5754074899999997E-2,4.5775442200000002E-2,4.7878535299999997E-2,5.2031523099999998E-2]
["Cost of risk201703",201703,392,"Cost of risk",-5.6906545750762402E-4,0,1.33018600361147E-3,1.43886794590187E-3,2.0977911685029602E-3,2.2320074134008902E-3,4.2012117700046103E-3,"","",-5.6906545750762402E-4,2.1760578641994198E-3,"",5,-5.6906545750762402E-4,2.1760578641994198E-3,0,"CET 1 ratio (fully phased-in definition)100",202012,208,"CET 1 ratio (fully phased-in definition)","GB",0,26,0.15596408282747601,100,"",null,"NL_SVC_2",0.17472294629999999,0.17952387619999999,0.18829611130000001,0.18906912209999999,0.20118422690000001,0.2027111758,0.20206626899999999,0.2127180212,0.21706896849999999,0.2264402895,0.23194730929999999,0.23347543539999999,0.23232035919999999,0.22166525810000001,0.2195933273,0.22219902,0.22301154070000001,0.22426684399999999,0.2246480726,0.22586435930000001,0.23204608469999999,0.23033298029999999,0.22325363610000001,0.22749035819999999,0.23274742819999999,0.2287059719]
["Cost of risk201706",201706,392,"Cost of risk",-5.8628396266647998E-3,3.0954477445749601E-6,2.5415115938919501E-3,1.04614945935162E-3,3.4503195026540901E-3,4.0701991429469599E-3,4.4787807388394401E-3,"","",-5.8628396266647998E-3,3.70798119100277E-3,"",5,-5.8628396266647998E-3,3.70798119100277E-3,0,"Coverage ratio of non-performing loans and advances1",202012,235,"Coverage ratio of non-performing loans and advances","RO",0,3,0.65903498466968302,1,"",null,"NL_SVC_29",0.1189211285,0.1233304298,0.12557734719999999,0.1288022365,0.13294727680000001,0.1352794145,0.13710723490000001,0.1405618431,0.1430275469,0.15036843429999999,0.1547433289,0.15793852329999999,0.1583397765,0.16198991360000001,0.15837363830000001,0.1608507122,0.16025424660000001,0.16405980810000001,0.1635113671,0.1630019352,0.16442292410000001,0.16464778829999999,0.1602219204,0.16581407170000001,0.17102967099999999,0.17009276679999999]
["Cost of risk201709",201709,392,"Cost of risk",-8.0302721086561602E-3,1.8736382952382101E-4,2.0563780535352901E-3,4.2634912385568598E-4,3.04759766676857E-3,3.6802907280107898E-3,4.2379851168646903E-3,"","",-8.0302721086561602E-3,3.34637694516479E-3,"",5,-8.0302721086561602E-3,3.34637694516479E-3,0,"Coverage ratio of non-performing loans and advances2",202012,235,"Coverage ratio of non-performing loans and advances","PL",0,3,0.63138405869949299,2,"",null,"NL_SVC_3",0.1357855557,0.1401040341,0.14025390609999999,0.13564917039999999,0.13879352119999999,0.14102446660000001,0.1403695717,0.1434264261,0.1458945364,0.1518237509,0.15556844610000001,0.1587973909,0.15926503880000001,0.16291904460000001,0.15854314720000001,0.16101875809999999,0.16042505509999999,0.16420206649999999,0.1635113671,0.1630019352,0.16442292410000001,0.16464778829999999,0.1602219204,0.1661959107,0.1716067473,0.17034320110000001]
["Cost of risk201712",201712,392,"Cost of risk",4.1408996752171598E-4,1.9190600674374701E-3,1.9365359651708899E-3,2.0099091083529098E-3,2.54402839723532E-3,2.01399757897925E-3,3.76586196265521E-3,"","","",2.54402839723532E-3,"",5,2.54402839723532E-3,2.54402839723532E-3,1,"Coverage ratio of non-performing loans and advances3",202012,235,"Coverage ratio of non-performing loans and advances","HR",0,3,0.62872757818571301,3,"",null,"NO_AQT_3.1",".",1.4730521999999999E-2,1.30483571E-2,1.23493023E-2,1.21341943E-2,1.2821582600000001E-2,1.30887686E-2,1.5611262799999999E-2,1.55548621E-2,1.7176249500000001E-2,1.6738337799999999E-2,1.69597025E-2,1.52163093E-2,1.6358996399999999E-2,1.13637744E-2,1.1930902300000001E-2,1.38805045E-2,1.3352856999999999E-2,1.23724773E-2,1.1210396500000001E-2,1.2184024999999999E-2,1.1528750799999999E-2,1.3703775E-2,1.5224231899999999E-2,1.5205190299999999E-2,1.41699996E-2]
["Cost of risk201803",201803,392,"Cost of risk",-1.6939865003443701E-3,3.00542203174625E-5,2.6080322118232002E-3,4.5401957550770802E-3,5.7005667965470703E-3,6.3798982996524697E-3,1.7007787401859001E-2,81276381135.052094,13406794505061,5.9873176326623E-3,4.5915308666666403E-3,5.8977007486779101E-3,123,4.5915308666666403E-3,5.9873176326623E-3,1,"Coverage ratio of non-performing loans and advances4",202012,235,"Coverage ratio of non-performing loans and advances","HU",0,4,0.62837513192638095,4,"",null,"NO_AQT_3.2",".",1.5651789199999998E-2,1.3930929599999999E-2,1.32005556E-2,1.3174017999999999E-2,1.38856376E-2,1.41397534E-2,1.68161597E-2,1.67373361E-2,1.8620916599999999E-2,1.7991445700000001E-2,1.8182315399999999E-2,1.6303872099999998E-2,1.7673385699999999E-2,1.2086059E-2,1.26797171E-2,1.4970654200000001E-2,1.4549712500000001E-2,1.33012042E-2,1.2007249899999999E-2,1.31397033E-2,1.25015839E-2,1.49440298E-2,1.6913083499999999E-2,1.6668201699999999E-2,1.5654575600000002E-2]
["Cost of risk201806",201806,392,"Cost of risk",-1.24768444677841E-3,1.0207110495022199E-4,2.4203047526393899E-3,3.9700797116417903E-3,4.8411541443857597E-3,6.7154895696201001E-3,1.32993951310433E-2,69412994450.615601,13519772304661.199,1.8975835199043899E-3,4.0657033181116303E-3,4.9979357510976999E-3,126,1.8975835199043899E-3,4.9979357510976999E-3,0,"Coverage ratio of non-performing loans and advances5",202012,235,"Coverage ratio of non-performing loans and advances","SK",0,3,0.62160483039362602,5,"",null,"NO_AQT_31",8.6965228999999998E-3,4.9506389999999997E-3,5.7059355999999999E-3,7.1690625000000001E-3,4.3086410000000002E-3,4.3123557000000002E-3,4.6560187000000003E-3,6.4084184999999997E-3,6.3379303E-3,9.2508191999999996E-3,6.5917702999999999E-3,7.1191520000000001E-3,5.8381040999999998E-3,6.7083020000000002E-3,5.2642334000000002E-3,4.3594769E-3,4.0558429999999999E-3,4.1924568999999997E-3,3.7363116000000002E-3,3.8366065E-3,3.8969422000000001E-3,3.4775038000000001E-3,3.0323526000000001E-3,3.4645587999999998E-3,3.8739414999999998E-3,3.9137694999999998E-3]
["Cost of risk201809",201809,392,"Cost of risk",-9.5517329605241503E-4,4.9962647952823199E-4,2.3437812299690998E-3,4.0685847610167003E-3,4.44792755763318E-3,5.8524408799129398E-3,1.42756135066578E-2,65441152345.510101,13565929464647,4.4983367965591601E-3,3.6071615121204799E-3,4.59600424235314E-3,125,3.6071615121204799E-3,4.59600424235314E-3,1,"Coverage ratio of non-performing loans and advances6",202012,235,"Coverage ratio of non-performing loans and advances","CZ",0,3,0.54732337667940401,6,"",null,"NO_AQT_41.2",".",0.3481303355,0.39032289710000001,0.39189736730000002,0.4267166583,0.37097245109999999,0.37484510009999999,0.31588382069999998,0.3043058522,0.2819839851,0.29561692699999997,0.27440114869999999,0.3251644078,0.32774492560000001,0.40488545860000003,0.2549383046,0.25817661110000001,0.28367352000000001,0.2942905817,0.30174003579999997,0.30243828769999997,0.3478027045,0.32097243069999998,0.35933478670000002,0.37791294320000002,0.36896631749999997]
["Cost of risk201812",201812,392,"Cost of risk",-1.99414354636278E-4,6.0130256071710996E-4,2.85479875850793E-3,4.6370938843532904E-3,5.0213671113487103E-3,6.13919822149898E-3,1.72611762617658E-2,71683482300.628799,13520871429436.5,5.9332046561252298E-3,4.6972636814839796E-3,5.0743834005776301E-3,127,{"$f":"MIN(N535:P535)","v":4.6972636814839796E-3},{"$f":"MAX(N535:P535)","v":5.9332046561252298E-3},1,"Coverage ratio of non-performing loans and advances7",202012,235,"Coverage ratio of non-performing loans and advances","PT",0,8,0.54140636447664403,7,"",null,"NO_AQT_42.2",".",8.1244804E-3,8.4607640000000008E-3,8.7463925000000001E-3,1.04928191E-2,1.28870193E-2,1.4010517599999999E-2,1.8899818499999999E-2,2.2530662600000001E-2,2.94958362E-2,2.6139728300000001E-2,2.5323040299999999E-2,2.27763034E-2,2.9117234499999999E-2,2.1696140700000002E-2,1.9543233100000001E-2,1.6440730800000001E-2,2.01866045E-2,1.7479400499999999E-2,1.5855201199999999E-2,1.8527857500000001E-2,1.7794264300000001E-2,1.74415414E-2,1.8031512999999999E-2,1.95094406E-2,1.7700885E-2]
["Cost of risk201903",201903,392,"Cost of risk",-2.4579461695656099E-6,9.9533498971786198E-4,3.1929123889047899E-3,4.8790655737835399E-3,5.2827762898078499E-3,6.3426317174240599E-3,1.4654908076275E-2,76713845826.25,13827413113151,3.4000184982771698E-3,4.9801496770915804E-3,5.3494534011823301E-3,126,3.4000184982771698E-3,5.3494534011823301E-3,1,"Coverage ratio of non-performing loans and advances8",202012,235,"Coverage ratio of non-performing loans and advances","IT",0,16,0.53467597992388605,8,"",null,"NO_FND_32",2.0047426712999998,1.9115998022,1.9844494525,1.9846652741999999,2.0152917385000002,2.0680891871,2.0624139252,2.0397129013000002,1.9994504502999999,1.9743451216000001,1.8187937855,1.8382067742999999,1.8400276545000001,1.8556019137999999,1.8437371132,1.7929617807,1.8670508805999999,1.9451854497000001,1.9462057824000001,1.9275542766,1.9187286588000001,1.9387177217,1.9071963498,1.8759997981000001,1.7975973205,1.7580815003000001]
["Cost of risk201906",201906,392,"Cost of risk",3.1307969105927197E-5,1.26058462310535E-3,3.3652099721715799E-3,5.0323474824802697E-3,4.6706108848479097E-3,5.4206203873175098E-3,1.5000860731167199E-2,69865949973.051697,13910854027792.9,7.0382792163157801E-3,4.81688856828664E-3,4.6279855660454998E-3,125,4.6279855660454998E-3,7.0382792163157801E-3,1,"Coverage ratio of non-performing loans and advances9",202012,235,"Coverage ratio of non-performing loans and advances","AT",0,11,0.514535856084676,9,"",null,"NO_FND_33",".",".",0.2266243352,0.23313552060000001,0.1954570373,0.20060876720000001,0.20835733419999999,0.1957357317,0.2099025384,0.19349714849999999,0.18694588079999999,0.20369435089999999,0.1941671801,0.2041053893,0.21312692790000001,0.19942310599999999,0.20803056140000001,0.21831653039999999,0.22056757760000001,0.22135315450000001,0.2283922048,0.2339731575,0.2495560785,0.25124661349999999,0.24523444550000001,0.26175277740000003]
["Cost of risk201909",201909,392,"Cost of risk",4.1531770838920498E-5,1.2284162975320801E-3,3.1939517356540299E-3,4.8162109495700897E-3,4.5867952757795696E-3,5.2617185395922098E-3,1.4855309512741E-2,66496885982.637901,14040573912366.699,5.7936123057883999E-3,5.0802598966490399E-3,4.4938061263802703E-3,125,4.4938061263802703E-3,5.7936123057883999E-3,1,"Coverage ratio of non-performing loans and advances10",202012,235,"Coverage ratio of non-performing loans and advances","SI",0,6,0.51269833647804997,10,"",null,"NO_LIQ_17",".",".",".",".",".",".",".",".",1.3860935941999999,1.4307738561000001,1.3640641249000001,1.2640397467,1.2090095649999999,1.1997220123000001,1.1345249319999999,1.3214624019000001,1.3008064069,1.2080608197,1.2133714903999999,1.4192778381,1.3448781415,1.3930625838999999,1.2958538055,1.3580558799,1.4572582945999999,1.4949951087]
["Cost of risk201912",201912,392,"Cost of risk",-4.9975655560062403E-6,8.9672599262703397E-4,3.1678218568668101E-3,4.9671039470268897E-3,4.8530460430253903E-3,6.4071720378846E-3,1.7693307178134499E-2,69967231447.617905,14035148291039.9,6.6266070973168296E-3,5.0370477917779603E-3,4.8077408834375302E-3,126,4.8077408834375302E-3,6.6266070973168296E-3,1,"Coverage ratio of non-performing loans and advances11",202012,235,"Coverage ratio of non-performing loans and advances","BG",0,4,0.50562019469343999,11,"",null,"NO_PFT_21",0.13549985810000001,0.1294394703,0.15774391679999999,0.1362480834,0.13051522090000001,0.1297703771,0.1046044434,0.1046947845,9.9345268900000006E-2,0.10024193820000001,8.7752756400000007E-2,9.0765517500000004E-2,9.6464122499999999E-2,9.6996844600000007E-2,0.10514989,0.1158289379,0.1131354935,0.1077094601,0.1225659659,0.1225169908,0.1151286235,0.1094998687,5.88805393E-2,6.8742848999999995E-2,7.1895864700000006E-2,7.3887026300000005E-2]
["Cost of risk202003",202003,392,"Cost of risk",1.92191513021157E-6,2.93801210488681E-3,6.8618836987036401E-3,9.7154916630221907E-3,7.9820822500996404E-3,1.10667805171926E-2,2.84271723103048E-2,116047714049.69901,14406864188400,1.4946980300149199E-2,9.3015786726103993E-3,7.6473292384165803E-3,117,7.6473292384165803E-3,1.4946980300149199E-2,1,"Coverage ratio of non-performing loans and advances12",202012,235,"Coverage ratio of non-performing loans and advances","FR",0,13,0.49054600199271903,12,"",null,"NO_PFT_23",0.38159395820000003,0.384791404,0.33945561390000001,0.37196656239999998,0.37074533189999997,0.3439935985,0.38346043169999999,0.38300305569999998,0.38044343679999998,0.37869022099999999,0.43276627179999999,0.42826235239999999,0.41119052119999999,0.41342198299999999,0.4220828023,0.41202304810000001,0.4244187492,0.42883342089999998,0.44057471199999998,0.4290221051,0.4131440233,0.42623710279999999,0.35421514840000001,0.37947409160000001,0.39780636489999999,0.41943797760000001]
["Cost of risk202006",202006,392,"Cost of risk",2.0949218299241201E-5,4.0328016848688499E-3,7.7560682442713103E-3,1.01399307932107E-2,8.5624550699206596E-3,1.2535514675714E-2,2.96588791725277E-2,124302958302.28999,14464401921553.199,1.1574523480150201E-2,1.13191341064648E-2,7.9750069663500605E-3,117,7.9750069663500605E-3,1.1574523480150201E-2,1,"Coverage ratio of non-performing loans and advances13",202012,235,"Coverage ratio of non-performing loans and advances","ES",0,15,0.449210102692639,13,"",null,"NO_PFT_24",8.7964762999999998E-3,7.9936363000000007E-3,9.9150126999999998E-3,8.9608796000000008E-3,8.5632409999999992E-3,8.8958049000000001E-3,7.9611074000000004E-3,7.9408077999999997E-3,7.6541634000000004E-3,9.0057069000000003E-3,6.9145546999999996E-3,7.3261209999999997E-3,7.8047799000000003E-3,8.0497875000000007E-3,8.9129315000000004E-3,9.3051411000000007E-3,9.4346880000000001E-3,9.2390600999999999E-3,1.05232587E-2,1.03671593E-2,9.8369031000000006E-3,9.8175462000000008E-3,5.0064567000000001E-3,6.0079514999999998E-3,6.3558822999999999E-3,6.6944884999999999E-3]
["Cost of risk202009",202009,392,"Cost of risk",7.35715857727513E-5,3.0493203833480299E-3,6.9119855314469401E-3,8.7260616486673596E-3,7.3539329780044098E-3,1.03168974666147E-2,2.8459411185795001E-2,105828762357.886,14310436596306.6,1.03346177515635E-2,9.5920280915668208E-3,6.8881057786029003E-3,116,6.8881057786029003E-3,1.03346177515635E-2,0,"Coverage ratio of non-performing loans and advances14",202012,235,"Coverage ratio of non-performing loans and advances","LV",0,5,0.44741695045811603,14,1,null,"NO_PFT_25",0.73117065189999997,0.74672362339999998,0.66217887959999999,0.70604057519999996,0.7293214884,0.73348729779999999,0.72720416929999998,0.74120195830000002,0.74595129849999997,0.73373666329999998,0.80553622530000002,0.79465117549999997,0.77598448669999998,0.76637272729999995,0.82396228390000004,0.7971979589,0.78292106559999997,0.78309368420000003,0.76004517410000005,0.74297069260000004,0.74858871920000003,0.76755801729999995,0.70998067519999997,0.70629765219999996,0.72332696409999997,0.73800461120000005]
["Cost of risk202012",202012,392,"Cost of risk",3.3310237328491398E-5,3.43276612956313E-3,7.2301369456267599E-3,1.4489582946928501,7.4793606590706201E-3,1.0391943488284599E-2,2.93224695957847E-2,104623383114.22301,13952944732154.1,1.01808615572708E-2,9.7553504047271592E-3,6.9936460489117003E-3,116,{"$f":"MIN(N543:P543)","v":6.9936460489117003E-3},1.01808615572708E-2,0,"Coverage ratio of non-performing loans and advances15",202012,235,"Coverage ratio of non-performing loans and advances","GR",0,4,0.447304470507777,15,"",null,"NO_PFT_26",0.1300907664,0.13487842429999999,0.1162146834,0.13437594820000001,0.12637659530000001,0.12420108539999999,0.1164874853,0.12304631150000001,0.1234570455,0.1328920331,0.12807981360000001,0.1244307001,0.121640306,0.12012230159999999,0.13546081730000001,0.1429422276,0.15773619859999999,0.16183930520000001,0.13834056519999999,0.14383721020000001,0.1388772828,0.1446862387,0.1149832003,0.1237311369,0.12953504930000001,0.1362895066]
["",null,null,null,null,null,null,null,null,null,null,null,null,null,null,null,null,null,null,null,"Coverage ratio of non-performing loans and advances16",202012,235,"Coverage ratio of non-performing loans and advances","CY",0,4,0.44061896187773802,16,1,null,"NO_PFT_29",8.8861830099999997E-2,5.82028058E-2,0.21336836889999999,0.15582849770000001,9.8167764699999993E-2,9.7436903899999996E-2,9.7068973399999994E-2,7.4674222100000007E-2,0.10671084829999999,0.11486082810000001,3.85380268E-2,4.1309652600000003E-2,5.30751738E-2,6.4632316999999995E-2,6.7365079100000003E-2,5.2311105199999999E-2,6.32983726E-2,4.9813436199999998E-2,4.5677263699999998E-2,6.3904930200000001E-2,7.4776998400000003E-2,5.9397890500000002E-2,3.2942024100000002E-2,4.3450352099999999E-2,4.45117945E-2,4.7128986800000001E-2]
["",null,null,null,null,null,null,null,null,null,null,null,null,null,null,null,null,null,null,null,"Coverage ratio of non-performing loans and advances17",202012,235,"Coverage ratio of non-performing loans and advances","SE",0,8,0.42603835213928398,17,"",null,"NO_PFT_41",1.6452446400000001E-2,1.56291416E-2,1.5988221399999999E-2,1.6237657499999999E-2,1.5478458400000001E-2,1.5847652E-2,1.5991362799999999E-2,1.6070357E-2,1.6559398499999999E-2,1.6091054699999999E-2,1.5429197E-2,1.5824934299999999E-2,1.6072482900000001E-2,1.5733260799999999E-2,1.6641042200000001E-2,1.6305738100000002E-2,1.7061637899999999E-2,1.71684639E-2,1.7607273100000001E-2,1.7581975400000002E-2,1.7436231900000002E-2,1.8063927800000001E-2,1.5979700699999998E-2,1.6064475000000002E-2,1.56642013E-2,1.6355032799999999E-2]
["",null,null,null,null,null,null,null,null,null,null,null,null,null,null,null,null,null,null,null,"Coverage ratio of non-performing loans and advances18",202012,235,"Coverage ratio of non-performing loans and advances","BE",0,8,0.40243634669304001,18,"",null,"NO_PFT_43",".",".",".",".",".",".",".",".",".",".",".",".",".",".",1.9702806999999998E-3,1.0459815E-3,9.0016779999999995E-4,8.4752160000000005E-4,1.1168755E-3,1.108143E-3,1.7081507000000001E-3,2.0052266999999999E-3,1.01979941E-2,8.3908776000000008E-3,6.9700824999999996E-3,6.2114685000000001E-3]
["",null,null,null,null,null,null,null,null,null,null,null,null,null,null,null,null,null,null,null,"Coverage ratio of non-performing loans and advances19",202012,235,"Coverage ratio of non-performing loans and advances","NO",0,4,0.36896631748272701,19,"",null,"NO_SVC_1",0.1229983113,0.13149353859999999,0.13333559110000001,0.13928065810000001,0.14389489,0.15580129579999999,0.1568169811,0.15898443919999999,0.1642493505,0.17418133690000001,0.16871529639999999,0.16776998509999999,0.1701193285,0.1748381715,0.173499135,0.1704672274,0.17102458749999999,0.176081712,0.17504779979999999,0.17607362430000001,0.1779906211,0.20704543910000001,0.19024335240000001,0.19455380990000001,0.19859077080000001,0.2124069442]
["",null,null,null,null,null,null,null,null,null,null,null,null,null,null,null,null,null,null,null,"Coverage ratio of non-performing loans and advances20",202012,235,"Coverage ratio of non-performing loans and advances","DE",0,23,0.366251157949958,20,"",null,"NO_SVC_12",".",".",".",".",".",".",".",".",6.9616625900000006E-2,7.3796896799999998E-2,6.5219377999999995E-2,6.8550676000000005E-2,6.7382070599999996E-2,6.92223795E-2,6.8979252899999996E-2,6.5274911500000005E-2,6.7993891799999998E-2,7.3887761699999999E-2,6.9876503199999995E-2,6.96163006E-2,6.9538807199999997E-2,7.2651907500000001E-2,6.4195882800000006E-2,6.6458233199999994E-2,6.6301965500000004E-2,7.2975644399999998E-2]
["",null,null,null,null,null,null,null,null,null,null,null,null,null,null,null,null,null,null,null,"Coverage ratio of non-performing loans and advances21",202012,235,"Coverage ratio of non-performing loans and advances","LU",0,11,0.33016898859333899,21,"",null,"NO_SVC_13",".",".",".",".",".",".",".",".",7.0480298199999999E-2,7.4753461600000001E-2,6.5606529100000005E-2,6.8955922099999997E-2,6.7784281700000004E-2,6.9629219300000003E-2,6.9357295599999993E-2,6.5636187299999996E-2,6.8366011099999999E-2,7.4149726200000002E-2,7.0064349999999997E-2,6.9785640900000001E-2,6.9707398800000001E-2,7.2745493999999994E-2,6.4195882800000006E-2,6.6458233199999994E-2,6.6301965500000004E-2,7.2975644399999998E-2]
["",null,null,null,null,null,null,null,null,null,null,null,null,null,null,null,null,null,null,null,"Coverage ratio of non-performing loans and advances22",202012,235,"Coverage ratio of non-performing loans and advances","MT",0,5,0.32954527802922901,22,"",null,"NO_SVC_2",0.14246158840000001,0.15197781799999999,0.15234975819999999,0.1604828267,0.1660306251,0.17919211330000001,0.17976729059999999,0.18147442029999999,0.18628307159999999,0.19683997549999999,0.19471223800000001,0.19429077710000001,0.19658374100000001,0.20199282560000001,0.2079397489,0.20318486329999999,0.1981880392,0.20364575830000001,0.20193027529999999,0.20272750419999999,0.2054171923,0.23784664920000001,0.22292449119999999,0.22638133360000001,0.23132221680000001,0.24410982310000001]
["",null,null,null,null,null,null,null,null,null,null,null,null,null,null,null,null,null,null,null,"Coverage ratio of non-performing loans and advances23",202012,235,"Coverage ratio of non-performing loans and advances","IE",0,8,0.30798506343477799,23,"",null,"NO_SVC_29",0.11579002350000001,0.1248609014,0.1230402859,0.1289112137,0.1336480659,0.14532342500000001,0.14655752059999999,0.14799239180000001,0.15307612540000001,0.15873705169999999,0.15406101159999999,0.15314276860000001,0.15514636800000001,0.1596716806,0.15848985660000001,0.15552426890000001,0.15584124939999999,0.16143569820000001,0.16037135860000001,0.1593080228,0.1611426456,0.1807464439,0.17249422850000001,0.17639327830000001,0.18002837890000001,0.1935904691]
["",null,null,null,null,null,null,null,null,null,null,null,null,null,null,null,null,null,null,null,"Coverage ratio of non-performing loans and advances24",202012,235,"Coverage ratio of non-performing loans and advances","IS",0,3,0.304219583889551,24,"",null,"NO_SVC_3",0.1156392044,0.1247190898,0.1230402859,0.1289112137,0.1336480659,0.14532342500000001,0.14655752059999999,0.14799239180000001,0.15307612540000001,0.15873705169999999,0.15406101159999999,0.15314276860000001,0.15514636800000001,0.1596716806,0.15848985660000001,0.15552426890000001,0.15584124939999999,0.16143569820000001,0.16037135860000001,0.1593080228,0.1611426456,0.1807464439,0.17249422850000001,0.17639327830000001,0.18002837890000001,0.1935904691]
["",null,null,null,null,null,null,null,null,null,null,null,null,null,null,null,null,null,null,null,"Coverage ratio of non-performing loans and advances25",202012,235,"Coverage ratio of non-performing loans and advances","LT",0,4,0.29634454868362098,25,"",null,"PL_AQT_3.1",5.7977329700000003E-2,5.8703121900000002E-2,5.6470089199999997E-2,5.5837829300000003E-2,5.9571949800000003E-2,5.6408135399999997E-2,5.64971399E-2,5.5813437700000003E-2,5.3598593399999998E-2,5.0801072900000001E-2,5.21578792E-2,4.8851474700000001E-2,4.92379238E-2,4.7242806200000001E-2,5.5986952100000001E-2,4.5793567100000002E-2,4.4450880800000002E-2,4.0849138899999998E-2,4.0764258099999999E-2,3.95676529E-2,3.9642627200000002E-2,3.8439599300000002E-2,3.8655625800000003E-2,3.5813742500000002E-2,3.5722567599999998E-2,3.60303784E-2]
["",null,null,null,null,null,null,null,null,null,null,null,null,null,null,null,null,null,null,null,"Coverage ratio of non-performing loans and advances26",202012,235,"Coverage ratio of non-performing loans and advances","FI",0,7,0.29535808574872502,26,"",null,"PL_AQT_3.2",7.1439240000000001E-2,7.2534363300000002E-2,6.8843893599999997E-2,6.8392363299999995E-2,7.2693641500000003E-2,6.7503511599999996E-2,6.8965357099999999E-2,6.7596188200000004E-2,6.5117536399999995E-2,6.1048083000000003E-2,6.1894291800000001E-2,5.9851079299999999E-2,5.9923708899999997E-2,5.7643997900000001E-2,6.8349727099999993E-2,5.6119711199999998E-2,5.3230791899999998E-2,4.9312103699999998E-2,4.98744728E-2,4.8398253400000001E-2,4.8303890699999998E-2,4.7578454700000002E-2,4.79638784E-2,4.8920267099999998E-2,4.9938897599999997E-2,5.0890386099999997E-2]
["",null,null,null,null,null,null,null,null,null,null,null,null,null,null,null,null,null,null,null,"Coverage ratio of non-performing loans and advances27",202012,235,"Coverage ratio of non-performing loans and advances","DK",0,5,0.29299373195699302,27,"",null,"PL_AQT_31",2.2340026999999998E-2,2.1844941199999999E-2,2.19322817E-2,2.1808985499999999E-2,2.23041218E-2,2.0303500499999998E-2,2.0123920999999999E-2,1.9654262499999998E-2,1.8954430500000001E-2,1.9242816900000001E-2,1.9144189799999999E-2,1.7911753400000001E-2,1.82965743E-2,1.80491274E-2,1.1173059500000001E-2,1.0366532899999999E-2,9.6605422999999999E-3,8.9452077000000008E-3,9.2259474999999997E-3,8.5323214000000008E-3,8.1028829000000004E-3,7.8582787000000005E-3,8.0568983000000004E-3,6.9997871999999996E-3,6.5975380999999996E-3,6.4026443000000004E-3]
["",null,null,null,null,null,null,null,null,null,null,null,null,null,null,null,null,null,null,null,"Coverage ratio of non-performing loans and advances28",202012,235,"Coverage ratio of non-performing loans and advances","EE",0,4,0.29010298774975202,28,"",null,"PL_AQT_41.2",0.56228234249999998,0.59524690810000003,0.59011164890000001,0.59448120800000004,0.57819486310000001,0.58552755739999995,0.59953221580000005,0.60263650710000005,0.60752543560000005,0.58781740640000002,0.59502831940000001,0.60478385899999998,0.59812554100000004,0.59334537539999999,0.66288887259999996,0.61891840389999997,0.60938679259999995,0.60238151709999999,0.61266175079999996,0.62322317179999998,0.62543644080000005,0.61084415209999998,0.62685131240000003,0.62304876570000001,0.63905676170000003,0.63138405870000003]
["",null,null,null,null,null,null,null,null,null,null,null,null,null,null,null,null,null,null,null,"Coverage ratio of non-performing loans and advances29",202012,235,"Coverage ratio of non-performing loans and advances","NL",0,6,0.27084729664519303,29,"",null,"PL_AQT_42.2",3.5389685099999998E-2,3.4764732299999997E-2,3.1631853100000003E-2,3.1311571199999999E-2,3.3601360199999999E-2,2.88239008E-2,2.7377424500000001E-2,2.6163323200000001E-2,2.5198463399999999E-2,2.4344642199999999E-2,2.40207302E-2,2.4369126500000001E-2,2.5255936699999999E-2,2.3831503E-2,2.3076087200000001E-2,2.1430752399999999E-2,2.0634014499999999E-2,2.0193880599999998E-2,1.9769520700000001E-2,1.91516116E-2,1.82534866E-2,1.7549092400000001E-2,1.6596969199999999E-2,2.08392271E-2,2.1858427600000001E-2,2.3127295499999999E-2]
["",null,null,null,null,null,null,null,null,null,null,null,null,null,null,null,null,null,null,null,"Coverage ratio of non-performing loans and advances99",202012,235,"Coverage ratio of non-performing loans and advances","EU",0,113,0.44940126359853,99,"",null,"PL_FND_32",0.9916898287,0.96883702159999996,0.99089077319999996,1.0001750843999999,1.0007447707999999,0.96745389479999999,0.99400130980000001,0.98618835989999998,0.9838164546,0.95712748579999996,0.98496997460000002,0.99846790630000004,1.0057894458000001,0.97812676180000002,0.99936410070000004,1.0034125149999999,1.0010830407,0.96876790450000005,0.99170407439999997,0.99582415449999995,0.99507492740000003,0.96175227419999998,0.95250602979999999,0.86818565400000003,0.86336121050000003,0.85038252179999996]
["",null,null,null,null,null,null,null,null,null,null,null,null,null,null,null,null,null,null,null,"Coverage ratio of non-performing loans and advances100",202012,235,"Coverage ratio of non-performing loans and advances","GB",0,26,0.35514869283072098,100,"",null,"PL_FND_33",".",6.7381209299999995E-2,6.4719185100000007E-2,6.7233261599999997E-2,6.4257916299999995E-2,5.9083337E-2,4.8271677300000003E-2,4.9102477999999998E-2,5.4912697400000002E-2,5.6112991500000001E-2,5.7081590100000003E-2,6.0322827099999997E-2,5.7872891199999998E-2,5.7459428600000001E-2,5.0021000199999999E-2,4.7204160000000002E-2,5.6611978399999999E-2,5.3180892E-2,5.7638921000000003E-2,5.3250696100000001E-2,5.2200022399999997E-2,5.0176432700000002E-2,5.1561633900000001E-2,4.7807833100000002E-2,4.9494809100000002E-2,4.8973494999999999E-2]
["",null,null,null,null,null,null,null,null,null,null,null,null,null,null,null,null,null,null,null,"Net interest margin1",202012,237,"Net interest margin","HU",0,4,3.2279667256322697E-2,1,"",null,"PL_LIQ_17",".",".",".",".",".",".",".",".",1.2262867079999999,1.2715549091,1.2730146309999999,1.2049581426,1.2798298745000001,1.3907234598,1.3240509881,1.3095017922000001,1.4117603211,1.4031539377,1.4332457314,1.3141500517,1.3582639085999999,1.4849258751000001,1.6159073223,2.1503331966000001,2.2032186283000001,2.2015502793000001]
["",null,null,null,null,null,null,null,null,null,null,null,null,null,null,null,null,null,null,null,"Net interest margin2",202012,237,"Net interest margin","RO",0,3,3.1654930547452498E-2,2,"",null,"PL_PFT_21",0.1224206092,0.11595096269999999,0.1583410156,0.13522756059999999,0.1249448846,0.1088660652,9.7683554300000003E-2,0.1106177302,0.1034297015,9.9396187999999996E-2,7.4437650800000005E-2,9.2134672299999998E-2,9.5493578199999998E-2,0.1034953153,8.0418778600000004E-2,9.19256408E-2,9.6239642099999995E-2,0.10054556739999999,6.8819213300000001E-2,9.1552799599999998E-2,9.7679843000000002E-2,9.6197821399999994E-2,3.8413121600000003E-2,5.0470789799999999E-2,5.4671531600000003E-2,5.2209245100000003E-2]
["",null,null,null,null,null,null,null,null,null,null,null,null,null,null,null,null,null,null,null,"Net interest margin3",202012,237,"Net interest margin","PL",0,3,2.7113205227664899E-2,3,"",null,"PL_PFT_23",0.44791818119999999,0.45846005550000002,0.48969212579999999,0.49179176260000002,0.49180953300000002,0.53037811570000004,0.52385264399999998,0.49798646819999998,0.50982517500000002,0.51704246490000005,0.58636304539999995,0.54599678500000004,0.5280672448,0.51945133470000004,0.55966897370000002,0.52908606629999999,0.51870562720000002,0.50366921750000004,0.60997071000000003,0.5375783435,0.51327784210000005,0.50593473430000002,0.59589587560000001,0.53385805720000001,0.51692590640000002,0.51519426680000002]
["",null,null,null,null,null,null,null,null,null,null,null,null,null,null,null,null,null,null,null,"Net interest margin4",202012,237,"Net interest margin","GR",0,4,2.59950388531703E-2,4,"",null,"PL_PFT_24",1.60002978E-2,1.51389655E-2,2.0468008400000001E-2,1.7151430200000001E-2,1.6053426900000001E-2,1.39849129E-2,1.2975863299999999E-2,1.42661105E-2,1.34855262E-2,1.2718102199999999E-2,9.5665461999999996E-3,1.1772350399999999E-2,1.2331532900000001E-2,1.3334154500000001E-2,1.05763787E-2,1.1871547200000001E-2,1.2424223E-2,1.2781792300000001E-2,8.4928152E-3,1.11434672E-2,1.19872078E-2,1.1783045000000001E-2,4.5999235000000003E-3,6.0038610999999997E-3,6.5735715E-3,6.2681567999999998E-3]
["",null,null,null,null,null,null,null,null,null,null,null,null,null,null,null,null,null,null,null,"Net interest margin5",202012,237,"Net interest margin","IS",0,3,2.5964160108465899E-2,5,"",null,"PL_PFT_25",0.65269289320000001,0.64839411879999997,0.6140028461,0.61694388619999996,0.6313069416,0.63521806079999998,0.64997836440000001,0.60665189740000003,0.62829802830000003,0.64066481730000002,0.68138921910000005,0.67893897810000003,0.68007274819999997,0.67648601340000003,0.68663184460000004,0.68271036539999996,0.68612547930000001,0.68104945439999998,0.69028950690000002,0.68701761409999995,0.68996739760000003,0.6984706195,0.74351315279999997,0.7285834363,0.71841532340000003,0.70966900690000001]
["",null,null,null,null,null,null,null,null,null,null,null,null,null,null,null,null,null,null,null,"Net interest margin6",202012,237,"Net interest margin","BG",0,4,2.4941960143645799E-2,6,"",null,"PL_PFT_26",0.28051446619999998,0.27689972740000002,0.26286511849999999,0.27696000720000002,0.27872971229999999,0.27609745149999998,0.24946538670000001,0.23713352239999999,0.24418096489999999,0.2490491259,0.27235134659999999,0.2722953534,0.27311318919999999,0.27066691430000001,0.26549977759999999,0.26443783209999999,0.2641460813,0.25843322689999998,0.2439152108,0.2427230397,0.24187651239999999,0.24500943180000001,0.26619222050000002,0.2589929346,0.26752930330000002,0.2740239948]
["",null,null,null,null,null,null,null,null,null,null,null,null,null,null,null,null,null,null,null,"Net interest margin7",202012,237,"Net interest margin","HR",0,3,2.2629225400185901E-2,7,"",null,"PL_PFT_29",7.8569350000000002E-4,-7.3850310000000002E-3,-0.16886526900000001,-0.15946380499999999,-5.8602764000000002E-2,-4.6876023000000003E-2,1.34580134E-2,-2.6088888000000001E-2,6.7756287000000004E-3,5.4274248000000004E-3,5.4534031099999998E-2,2.8293532999999999E-2,3.4955067999999999E-2,2.7339758799999999E-2,-1.6418979999999999E-3,1.9736908500000001E-2,1.46944116E-2,7.6336948000000002E-3,2.5607427499999998E-2,6.9937499000000004E-3,1.0642067700000001E-2,1.1385168100000001E-2,-2.3171107E-2,-4.1663289999999999E-3,-1.6746169000000002E-2,-6.3579450000000003E-3]
["",null,null,null,null,null,null,null,null,null,null,null,null,null,null,null,null,null,null,null,"Net interest margin8",202012,237,"Net interest margin","ES",0,15,2.0640449358117801E-2,8,"",null,"PL_PFT_41",3.1603135599999999E-2,3.1204106700000001E-2,3.0058074300000001E-2,2.9229080800000001E-2,2.95589648E-2,2.9591146700000001E-2,3.03556686E-2,2.9517551600000001E-2,3.03958501E-2,2.9795417599999999E-2,3.1440435000000003E-2,3.1784046599999997E-2,3.18616896E-2,3.2147922199999998E-2,3.1795067500000003E-2,3.1208652900000002E-2,3.1510068500000002E-2,3.0712697300000001E-2,3.1001364300000001E-2,3.168663E-2,3.1588146999999997E-2,3.18228064E-2,3.03482864E-2,2.8978509900000001E-2,2.77927078E-2,2.7113205200000001E-2]
["",null,null,null,null,null,null,null,null,null,null,null,null,null,null,null,null,null,null,null,"Net interest margin9",202012,237,"Net interest margin","SI",0,6,1.9934566320961199E-2,9,"",null,"PL_PFT_43",".",".",".",".",".",".",".",".",".",".",".",".",".",".",9.7649912999999994E-3,9.1960071000000004E-3,1.10503027E-2,1.15991407E-2,8.5944947999999997E-3,1.14620308E-2,1.04392284E-2,1.1059885300000001E-2,1.2557935900000001E-2,1.21649097E-2,1.12727247E-2,1.2258096499999999E-2]
["",null,null,null,null,null,null,null,null,null,null,null,null,null,null,null,null,null,null,null,"Net interest margin10",202012,237,"Net interest margin","SK",0,3,1.96719305854661E-2,10,"",null,"PL_SVC_1",0.1353536944,0.13486119429999999,0.13578555589999999,0.1432324606,0.14504909199999999,0.14717619809999999,0.15166747520000001,0.15048335739999999,0.15653147570000001,0.1537276933,0.15559215770000001,0.1640355248,0.1646123075,0.16048263460000001,0.16011964819999999,0.16040191719999999,0.1634283587,0.16030696489999999,0.15903489740000001,0.16002640279999999,0.15666061149999999,0.16009496309999999,0.15331966720000001,0.16698648159999999,0.17494288059999999,0.18081396750000001]
["",null,null,null,null,null,null,null,null,null,null,null,null,null,null,null,null,null,null,null,"Net interest margin11",202012,237,"Net interest margin","CY",0,4,1.8570947881966102E-2,11,1,null,"PL_SVC_12",".",".",".",".",".",".",".",".",0.1079755644,0.1020563859,0.1038433132,0.1080407842,0.10829912799999999,0.10468024250000001,0.1033178679,0.1036142275,0.1030948185,9.7305729100000002E-2,9.6385250399999997E-2,9.8293665700000005E-2,9.6822003599999998E-2,9.6072282699999997E-2,9.3046163099999996E-2,9.3658266200000007E-2,9.6949235300000006E-2,9.81430935E-2]
["",null,null,null,null,null,null,null,null,null,null,null,null,null,null,null,null,null,null,null,"Net interest margin12",202012,237,"Net interest margin","CZ",0,3,1.83025821522366E-2,12,"",null,"PL_SVC_13",".",".",".",".",".",".",".",".",0.1072320802,0.1015798311,0.1035010946,0.1076597941,0.1086798588,0.10503987620000001,0.10538076120000001,0.10587778420000001,0.1056210341,9.9695701299999995E-2,9.8467152200000005E-2,0.10068627400000001,9.9209956000000002E-2,9.8545931599999997E-2,9.4978865199999998E-2,9.5485831899999998E-2,9.8983176199999995E-2,0.1007007454]
["",null,null,null,null,null,null,null,null,null,null,null,null,null,null,null,null,null,null,null,"Net interest margin13",202012,237,"Net interest margin","LV",0,5,1.82019871944114E-2,13,"",null,"PL_SVC_2",0.1440585787,0.1418362826,0.14272441969999999,0.15051379610000001,0.15227718170000001,0.15463667689999999,0.15880773740000001,0.1578324968,0.1637952429,0.16102794719999999,0.16198932769999999,0.17055881440000001,0.1712703652,0.1711397559,0.17279501959999999,0.1750530304,0.1780316934,0.17604425839999999,0.17449884609999999,0.1752833036,0.17234766579999999,0.1765713122,0.1693140531,0.1833508455,0.19145553400000001,0.19738421859999999]
["",null,null,null,null,null,null,null,null,null,null,null,null,null,null,null,null,null,null,null,"Net interest margin14",202012,237,"Net interest margin","AT",0,11,1.7328795546715299E-2,14,"",null,"PL_SVC_29",0.1403935831,0.13968406550000001,0.13819141469999999,0.1451510603,0.14708805699999999,0.1503387618,0.15379638570000001,0.151661133,0.1577633312,0.15456031579999999,0.1561729117,0.16469494209999999,0.16529422569999999,0.16117485679999999,0.15679711029999999,0.1567727626,0.15959897270000001,0.1565295833,0.15570871610000001,0.15630364790000001,0.1527260117,0.1561701549,0.15006669489999999,0.1636385927,0.17113476399999999,0.1760050725]
["",null,null,null,null,null,null,null,null,null,null,null,null,null,null,null,null,null,null,null,"Net interest margin15",202012,237,"Net interest margin","IE",0,8,1.7211163569989599E-2,15,"",null,"PL_SVC_3",0.1353536944,0.13486119429999999,0.13578555589999999,0.1432324606,0.14504909199999999,0.14717619809999999,0.15166747520000001,0.15048335739999999,0.15653147570000001,0.1537276933,0.15559215770000001,0.1640355248,0.1646123075,0.16048263460000001,0.16011964819999999,0.16040191719999999,0.1634283587,0.16030696489999999,0.15903489740000001,0.16002640279999999,0.15666061149999999,0.16009496309999999,0.15331966720000001,0.16698648159999999,0.17494288059999999,0.18081396750000001]
["",null,null,null,null,null,null,null,null,null,null,null,null,null,null,null,null,null,null,null,"Net interest margin16",202012,237,"Net interest margin","EE",0,4,1.70426311470675E-2,16,"",null,"PT_AQT_3.1",0.13980210749999999,0.14790599500000001,0.15023071830000001,0.1480506909,0.1540728827,0.16177771830000001,0.16296267840000001,0.16577072100000001,0.1646950442,0.1637888622,0.15455171749999999,0.1449787115,0.135780914,0.1257896704,0.110252843,0.10051072549999999,9.6909535300000002E-2,8.09325563E-2,7.5808495500000003E-2,7.0915764199999995E-2,6.4939940900000007E-2,5.1459236200000001E-2,4.8692780599999999E-2,4.5111794099999998E-2,4.2837582700000001E-2,3.8817294400000001E-2]
["",null,null,null,null,null,null,null,null,null,null,null,null,null,null,null,null,null,null,null,"Net interest margin17",202012,237,"Net interest margin","NO",0,4,1.6355032806205799E-2,17,"",null,"PT_AQT_3.2",0.1697948531,0.18005296409999999,0.1820873271,0.1814728609,0.18847675059999999,0.1957305731,0.1984018005,0.20074110749999999,0.19802424869999999,0.19464045399999999,0.1840753363,0.1747146473,0.16559798370000001,0.1523786509,0.1355667646,0.1243835504,0.1199576139,0.1011725544,9.5781225799999994E-2,8.9486907300000001E-2,8.2993732400000006E-2,6.4909807700000002E-2,6.1532878100000001E-2,5.7210694300000003E-2,5.4555871200000002E-2,4.9100907800000003E-2]
["",null,null,null,null,null,null,null,null,null,null,null,null,null,null,null,null,null,null,null,"Net interest margin18",202012,237,"Net interest margin","PT",0,8,1.5666910116028599E-2,18,"",null,"PT_AQT_31",0.13782669489999999,0.12120115619999999,0.10880178410000001,0.1207880496,0.12900580689999999,0.1044455668,0.1072509661,0.1067396286,0.1047834227,9.6013004499999999E-2,9.3840895300000005E-2,8.8576974700000005E-2,8.2821294000000004E-2,7.4287504399999996E-2,2.93946691E-2,2.7254126E-2,2.6904786699999999E-2,2.1094447999999998E-2,1.9793043699999999E-2,1.87104438E-2,1.6649101499999999E-2,1.2780093899999999E-2,1.25208269E-2,1.1020046699999999E-2,9.8289719000000005E-3,8.1966625000000001E-3]
["",null,null,null,null,null,null,null,null,null,null,null,null,null,null,null,null,null,null,null,"Net interest margin19",202012,237,"Net interest margin","NL",0,6,1.4812068262583499E-2,19,"",null,"PT_AQT_41.2",0.35876959580000001,0.37569532049999999,0.37653629230000002,0.40001561190000001,0.39004759210000001,0.3890977565,0.40167715120000003,0.41219334740000002,0.42065535920000002,0.43985862009999999,0.44427167649999999,0.44878565459999997,0.45331007179999999,0.48633014369999999,0.5118121725,0.51836988709999998,0.52331256969999995,0.51009544790000005,0.51436803350000004,0.51380942279999997,0.5266499026,0.50222789170000004,0.50586461130000004,0.51645770869999996,0.5493693274,0.54140636450000001]
[{"$f":"+D579&B579","v":""},null,null,null,null,null,null,null,null,null,null,null,null,null,null,null,null,null,null,null,{"$f":"CONCATENATE(X579,AC579)","v":"Net interest margin20"},202012,237,"Net interest margin","MT",0,5,1.42466976783392E-2,20,"",null,"PT_AQT_42.2",9.8373284300000002E-2,0.113013591,0.1108071758,0.11701420880000001,0.1164522833,0.11673907679999999,0.1191014951,0.12238853550000001,0.12314052540000001,0.1279150419,0.1241635851,0.11938885909999999,0.1171365622,0.1060826589,0.10046513899999999,9.1295464199999996E-2,8.8063712500000002E-2,7.8729927500000005E-2,7.6480353900000006E-2,7.2753554600000006E-2,6.8600696500000002E-2,5.7867811300000002E-2,5.5673535699999999E-2,5.4904983800000001E-2,5.3542474299999997E-2,5.00532068E-2]
["",null,null,null,null,null,null,null,null,null,null,null,null,null,null,null,null,null,null,null,"Net interest margin21",202012,237,"Net interest margin","LT",0,4,1.4062926938278E-2,21,"",null,"PT_FND_32",1.1194286544000001,1.0541556239000001,1.0211392301,0.98714429429999995,0.97353754940000004,0.95439592470000001,0.9490738983,0.94012491809999998,0.93198108130000001,0.93119060539999998,0.92407308349999995,0.91144762680000002,0.9056980456,0.87944060909999999,0.90878489880000002,0.88022822869999995,0.87766686400000005,0.86148207430000001,0.86445106709999997,0.85802817539999998,0.84772447679999996,0.82888437619999999,0.81821696779999997,0.80084611910000003,0.80438176459999999,0.79435490230000005]
["",null,null,null,null,null,null,null,null,null,null,null,null,null,null,null,null,null,null,null,"Net interest margin22",202012,237,"Net interest margin","BE",0,8,1.3107530713293901E-2,22,"",null,"PT_FND_33",".",0.24445031310000001,0.21778093200000001,0.22165063169999999,0.21406774719999999,0.18327453339999999,0.2017714823,0.21069039519999999,0.20663650519999999,0.2073278489,0.2056818255,0.20717161470000001,0.19575882920000001,0.19104189290000001,0.20170022200000001,0.19174057459999999,0.18319864299999999,0.1755785222,0.1728070058,0.16436744680000001,0.157806686,0.1519779899,0.15788879459999999,0.18501885069999999,0.1776102095,0.1754466827]
["",null,null,null,null,null,null,null,null,null,null,null,null,null,null,null,null,null,null,null,"Net interest margin23",202012,237,"Net interest margin","IT",0,16,1.27566140239879E-2,23,"",null,"PT_LIQ_17",".",".",".",".",".",".",".",".",1.4705301557999999,1.4279940107,1.6126536584,1.6869367485,1.6495440613000001,1.6739007992999999,1.8018494677000001,1.8231081514,1.8228025678999999,1.9723916224,2.2656835589000002,2.2046512571000001,2.2126883678999998,2.3178458619,2.4172389795,2.7554490567999999,2.6467903474000001,2.8200990834000002]
["",null,null,null,null,null,null,null,null,null,null,null,null,null,null,null,null,null,null,null,"Net interest margin24",202012,237,"Net interest margin","SE",0,8,1.15961650770963E-2,24,"",null,"PT_PFT_21",-5.4984459999999997E-3,-6.1246900999999999E-2,2.0437551599999999E-2,2.46603715E-2,1.17065721E-2,-2.4285280999999999E-2,-2.5468508000000001E-2,-4.5496549999999997E-2,-2.4067511E-2,-9.5659127999999996E-2,-3.1818046000000003E-2,-2.0820354999999999E-2,-3.2221900000000002E-3,-3.8230645000000001E-2,8.3291017600000003E-2,5.9439537299999998E-2,5.9902389600000001E-2,2.1760838599999999E-2,6.1105483100000003E-2,5.0218407200000002E-2,5.37971327E-2,3.9417731300000002E-2,1.6718026399999999E-2,1.6608911000000001E-3,1.04703864E-2,-2.5115350000000001E-3]
["",null,null,null,null,null,null,null,null,null,null,null,null,null,null,null,null,null,null,null,"Net interest margin25",202012,237,"Net interest margin","FR",0,13,1.08664879341376E-2,25,"",null,"PT_PFT_23",0.59336705320000005,0.60516885340000004,0.53292174140000004,0.57111792880000001,0.60083188840000001,0.62529017720000002,0.6860744527,0.64936557350000002,0.63705652440000005,0.59556586789999999,0.70106592249999999,0.62489095459999999,0.63611160850000004,0.51158736819999995,0.55160809600000005,0.55931766250000003,0.54017951630000005,0.58904287710000003,0.55677980549999995,0.5602383353,0.559347398,0.5848522612,0.57184872419999999,0.62871788799999995,0.58527402679999996,0.58231429639999999]
["",null,null,null,null,null,null,null,null,null,null,null,null,null,null,null,null,null,null,null,"Net interest margin26",202012,237,"Net interest margin","LU",0,11,1.03413095573787E-2,26,"",null,"PT_PFT_24",-3.9349900000000001E-4,-4.1227319999999996E-3,1.4857719E-3,1.7566524E-3,8.4024550000000005E-4,-1.8060909999999999E-3,-1.9674800000000002E-3,-3.4571630000000001E-3,-1.842652E-3,-7.0763750000000002E-3,-2.5169440000000001E-3,-1.669287E-3,-2.61396E-4,-3.1348679999999999E-3,7.6962493999999998E-3,5.4081392000000002E-3,5.5017629000000002E-3,1.9809607000000002E-3,5.5743844000000001E-3,4.5267075000000002E-3,4.9213141999999996E-3,3.5855111E-3,1.5195706E-3,1.469548E-4,9.3091490000000001E-4,-2.2305799999999999E-4]
["",null,null,null,null,null,null,null,null,null,null,null,null,null,null,null,null,null,null,null,"Net interest margin27",202012,237,"Net interest margin","FI",0,7,1.01766180352594E-2,27,"",null,"PT_PFT_25",0.48172090670000001,0.4906249218,0.45271436970000001,0.48470679929999999,0.51060222700000002,0.54177583480000002,0.67215096299999999,0.62835181159999998,0.63334748649999995,0.6120660322,0.72213871490000003,0.63678757060000002,0.61488863989999998,0.54257706969999997,0.61752003300000002,0.65030862190000005,0.63162762699999997,0.69221875219999995,0.64807512369999998,0.6661620667,0.67171889299999998,0.69211066840000002,0.65066783650000004,0.67112481040000005,0.65082427799999998,0.65158004820000004]
["",null,null,null,null,null,null,null,null,null,null,null,null,null,null,null,null,null,null,null,"Net interest margin28",202012,237,"Net interest margin","DE",0,23,1.00561069217916E-2,28,"",null,"PT_PFT_26",0.27139848259999999,0.27916561779999999,0.25520670499999998,0.27075274040000002,0.28873096580000002,0.29829082270000001,0.32732739719999998,0.3023306019,0.30183852490000002,0.31109105640000001,0.33995909769999999,0.3105748015,0.30591143939999998,0.27290943400000001,0.30311714919999999,0.31950745730000002,0.31133417530000002,0.33820759280000001,0.30561460099999999,0.31990404,0.32030221609999998,0.33692389160000003,0.31745661650000001,0.32085714170000001,0.31068855020000002,0.31690600569999999]
["",null,null,null,null,null,null,null,null,null,null,null,null,null,null,null,null,null,null,null,"Net interest margin29",202012,237,"Net interest margin","DK",0,5,8.1022770902515091E-3,29,"",null,"PT_PFT_29",-6.2494000000000004E-4,-1.3370283E-2,3.0336169100000001E-2,4.3083461900000002E-2,1.3377128699999999E-2,1.32088833E-2,-0.14751294400000001,-8.5942377E-2,-5.0362351999999999E-2,-3.0516409999999999E-3,5.9669796999999997E-2,8.7171121399999996E-2,6.4706990300000003E-2,3.7316135100000002E-2,-1.7999583E-2,2.3910202999999999E-3,1.30080066E-2,-1.1837726999999999E-2,-5.2496679999999999E-3,-1.6293351000000001E-2,-1.8754005000000001E-2,-6.3578799999999998E-4,-9.6868390999999998E-2,-2.8804653E-2,-1.5577873000000001E-2,-1.1208578E-2]
["",null,null,null,null,null,null,null,null,null,null,null,null,null,null,null,null,null,null,null,"Net interest margin99",202012,237,"Net interest margin","EU",0,116,1.33360411337149E-2,99,"",null,"PT_PFT_41",1.2010722099999999E-2,1.2758748E-2,1.4252548E-2,1.4436362100000001E-2,1.44968535E-2,1.50377707E-2,1.5588088599999999E-2,1.5936052700000002E-2,1.6208300799999999E-2,1.54090383E-2,1.7059692200000001E-2,1.6958440500000001E-2,1.6808986299999999E-2,1.7018760000000001E-2,1.7049352E-2,1.69041994E-2,1.6925265799999999E-2,1.72129359E-2,1.70047815E-2,1.6960688500000001E-2,1.7242114699999998E-2,1.7261321699999999E-2,1.6251500200000001E-2,1.5528526000000001E-2,1.56142661E-2,1.5666910100000001E-2]
["",null,null,null,null,null,null,null,null,null,null,null,null,null,null,null,null,null,null,null,"Net interest margin100",202012,237,"Net interest margin","GB",0,26,1.1282910904824899E-2,100,"",null,"PT_PFT_43",".",".",".",".",".",".",".",".",".",".",".",".",".",".",6.2913207999999998E-3,7.2404951999999996E-3,6.4358286000000004E-3,8.0288032000000002E-3,5.6247058999999997E-3,7.5232574999999999E-3,7.3192607E-3,8.9073568000000002E-3,9.2586594000000008E-3,1.09008305E-2,1.15715743E-2,1.0579013599999999E-2]
["",null,null,null,null,null,null,null,null,null,null,null,null,null,null,null,null,null,null,null,"Forbearance ratio - Loans and advances (gross amount) (FBL)1",202012,239,"Forbearance ratio - Loans and advances (gross amount) (FBL)","GR",0,4,0.16554800641099399,1,"",null,"PT_SVC_1",0.11566843189999999,0.10676107009999999,0.1043023753,0.109488792,0.1091185467,0.1187698765,0.1144811488,0.1117601848,0.1140348915,0.10368866929999999,0.1229640514,0.12694868949999999,0.12919732170000001,0.1368111658,0.13747236090000001,0.13684126839999999,0.13724692690000001,0.13471639069999999,0.1434649777,0.14388650529999999,0.1454599952,0.15012892620000001,0.14863698450000001,0.1524432952,0.15439171369999999,0.16033323729999999]
["",null,null,null,null,null,null,null,null,null,null,null,null,null,null,null,null,null,null,null,"Forbearance ratio - Loans and advances (gross amount) (FBL)2",202012,239,"Forbearance ratio - Loans and advances (gross amount) (FBL)","IS",0,3,8.7974338079664205E-2,2,"",null,"PT_SVC_12",".",".",".",".",".",".",".",".",5.80569139E-2,5.0097923000000003E-2,6.3863669799999995E-2,6.62012825E-2,6.6923548099999994E-2,7.32631485E-2,7.2111278599999995E-2,7.0648002500000001E-2,7.05709895E-2,6.8326309299999999E-2,7.2785625199999995E-2,7.2637678900000002E-2,7.3513474499999995E-2,7.5186475099999997E-2,7.4545795799999995E-2,7.0904181400000002E-2,7.0787081700000004E-2,7.2599356200000006E-2]
["",null,null,null,null,null,null,null,null,null,null,null,null,null,null,null,null,null,null,null,"Forbearance ratio - Loans and advances (gross amount) (FBL)3",202012,239,"Forbearance ratio - Loans and advances (gross amount) (FBL)","CY",0,4,8.3750196831972698E-2,3,1,null,"PT_SVC_13",".",".",".",".",".",".",".",".",6.6742637399999999E-2,6.0641443699999999E-2,6.9695207800000006E-2,7.1430958899999994E-2,7.2049155300000001E-2,7.7222145699999994E-2,7.4192578600000003E-2,7.2707939999999999E-2,7.2509920199999994E-2,7.0001852599999997E-2,7.4324480799999995E-2,7.3964564299999994E-2,7.4766914099999998E-2,7.6352713899999994E-2,7.5500516899999995E-2,7.1967841000000005E-2,7.1971045499999997E-2,7.3763987399999995E-2]
["",null,null,null,null,null,null,null,null,null,null,null,null,null,null,null,null,null,null,null,"Forbearance ratio - Loans and advances (gross amount) (FBL)4",202012,239,"Forbearance ratio - Loans and advances (gross amount) (FBL)","BG",0,4,6.03042715665041E-2,4,"",null,"PT_SVC_2",0.124907458,0.11590781209999999,0.11294684369999999,0.11816089539999999,0.1179422329,0.12651438179999999,0.1220623684,0.1189939596,0.12063323500000001,0.1099605458,0.1314355428,0.13476024449999999,0.1363803814,0.144889402,0.145653791,0.148679441,0.1497577336,0.14739730440000001,0.156506742,0.15692000270000001,0.16092282729999999,0.16576817639999999,0.16378476319999999,0.1679090483,0.17053923970000001,0.17660225970000001]
["",null,null,null,null,null,null,null,null,null,null,null,null,null,null,null,null,null,null,null,"Forbearance ratio - Loans and advances (gross amount) (FBL)5",202012,239,"Forbearance ratio - Loans and advances (gross amount) (FBL)","PT",0,8,5.0053206755992702E-2,5,"",null,"PT_SVC_29",7.8998652899999994E-2,6.8744098899999995E-2,8.6799001400000006E-2,8.8490214100000006E-2,9.0393194999999996E-2,0.1012551508,9.9432179300000006E-2,9.6764384999999994E-2,9.9029658100000001E-2,8.5536564600000003E-2,0.1094714864,0.11448626000000001,0.1168605739,0.1264252394,0.12805827589999999,0.12748394960000001,0.12799667989999999,0.12510309880000001,0.13180675750000001,0.13245715189999999,0.13262905559999999,0.13733175650000001,0.13605855080000001,0.13946646900000001,0.14101550979999999,0.14673970929999999]
["",null,null,null,null,null,null,null,null,null,null,null,null,null,null,null,null,null,null,null,"Forbearance ratio - Loans and advances (gross amount) (FBL)6",202012,239,"Forbearance ratio - Loans and advances (gross amount) (FBL)","IE",0,8,4.1087037401075499E-2,6,"",null,"PT_SVC_3",0.115659478,0.10676107009999999,0.1042069113,0.1092522678,0.1091185467,0.1187698765,0.11445218930000001,0.11173832309999999,0.11400702059999999,0.1036853325,0.1197260302,0.1236297754,0.12584938079999999,0.13346345509999999,0.13075349359999999,0.13012070840000001,0.13064524159999999,0.1273911835,0.1338952971,0.13427708329999999,0.1342872346,0.1387398001,0.13718699670000001,0.1408313836,0.14261180530000001,0.1484650045]
["",null,null,null,null,null,null,null,null,null,null,null,null,null,null,null,null,null,null,null,"Forbearance ratio - Loans and advances (gross amount) (FBL)7",202012,239,"Forbearance ratio - Loans and advances (gross amount) (FBL)","LV",0,5,3.32305635115809E-2,7,1,null,"RO_AQT_3.1",0.17754363819999999,0.16146135559999999,0.1547708508,0.12728230970000001,0.1234409205,0.1113369701,0.1076436991,9.04059797E-2,7.9099277900000001E-2,7.2928167700000004E-2,7.0250538000000001E-2,6.3811187300000002E-2,5.9645210300000001E-2,4.7520713999999999E-2,4.4428490000000001E-2,4.32334604E-2,4.2619452400000001E-2,3.7796152E-2,3.7847077600000001E-2,3.54277842E-2,3.3453885400000001E-2,2.9243344399999999E-2,2.7704681200000001E-2,2.9968841600000001E-2,2.7554161399999999E-2,2.6295754099999999E-2]
["",null,null,null,null,null,null,null,null,null,null,null,null,null,null,null,null,null,null,null,"Forbearance ratio - Loans and advances (gross amount) (FBL)8",202012,239,"Forbearance ratio - Loans and advances (gross amount) (FBL)","MT",0,5,3.31423991711884E-2,8,"",null,"RO_AQT_3.2",0.23896844070000001,0.22238912029999999,0.21193685579999999,0.1674457828,0.16137164130000001,0.14623661299999999,0.14477999750000001,0.1213833518,0.1066664764,0.1008988239,9.8658870199999998E-2,8.9385605399999998E-2,8.3607539499999994E-2,6.5464838499999997E-2,6.2641594699999997E-2,6.0086359399999997E-2,5.9970218700000001E-2,5.3137950400000002E-2,5.2415835299999998E-2,4.8788258899999999E-2,4.6843305600000003E-2,4.1185913099999999E-2,3.8799386499999998E-2,4.2215881199999999E-2,3.8826786000000002E-2,3.7438805200000001E-2]
["",null,null,null,null,null,null,null,null,null,null,null,null,null,null,null,null,null,null,null,"Forbearance ratio - Loans and advances (gross amount) (FBL)9",202012,239,"Forbearance ratio - Loans and advances (gross amount) (FBL)","ES",0,15,2.7523323361302698E-2,9,"",null,"RO_AQT_31",4.6193202500000002E-2,4.1303094999999998E-2,3.9430664599999998E-2,3.4054596399999998E-2,3.3025676300000001E-2,2.8419326700000001E-2,2.6448351799999999E-2,2.1662489600000001E-2,2.03240147E-2,1.7107316300000001E-2,1.6264681600000001E-2,1.4506000999999999E-2,1.32419546E-2,1.27349356E-2,9.7358380000000001E-3,1.07464968E-2,1.10603779E-2,8.1224334999999998E-3,8.8055673000000008E-3,8.0841665E-3,7.9090268999999994E-3,7.1108812000000004E-3,6.7702787E-3,6.3300355000000001E-3,5.8321655999999996E-3,5.5005727000000003E-3]
["",null,null,null,null,null,null,null,null,null,null,null,null,null,null,null,null,null,null,null,"Forbearance ratio - Loans and advances (gross amount) (FBL)10",202012,239,"Forbearance ratio - Loans and advances (gross amount) (FBL)","NL",0,6,2.66180649444554E-2,10,"",null,"RO_AQT_41.2",0.66559482150000004,0.65660278540000006,0.66668972609999999,0.64077848100000001,0.66563668440000001,0.65371926729999996,0.67120923430000001,0.65200338889999998,0.63500979629999998,0.66829764430000005,0.66721596719999998,0.68255285590000003,0.6882273579,0.67605826960000004,0.6553621073,0.6207479199,0.62417324249999995,0.65680238059999996,0.65551791670000004,0.66737270260000003,0.66347623550000001,0.64901136859999997,0.6569501163,0.65476861409999998,0.6535126108,0.65903498469999999]
["",null,null,null,null,null,null,null,null,null,null,null,null,null,null,null,null,null,null,null,"Forbearance ratio - Loans and advances (gross amount) (FBL)11",202012,239,"Forbearance ratio - Loans and advances (gross amount) (FBL)","IT",0,16,2.59113160021659E-2,11,"",null,"RO_AQT_42.2",0.1041470228,0.10343243789999999,9.8510517300000003E-2,8.1138130700000005E-2,7.8884874600000002E-2,7.4223084600000003E-2,7.5209706299999998E-2,6.5349289300000002E-2,5.7523559100000003E-2,6.0883689800000002E-2,6.2616860600000004E-2,5.8524425200000001E-2,6.0938911700000001E-2,4.7564004899999998E-2,4.4240661700000003E-2,4.0334469599999999E-2,3.1105277600000002E-2,3.02576294E-2,3.0397724000000001E-2,2.7854219900000001E-2,2.6096718299999998E-2,2.30863067E-2,2.11978068E-2,2.2707386400000001E-2,2.0732233999999999E-2,2.0282530100000001E-2]
["",null,null,null,null,null,null,null,null,null,null,null,null,null,null,null,null,null,null,null,"Forbearance ratio - Loans and advances (gross amount) (FBL)12",202012,239,"Forbearance ratio - Loans and advances (gross amount) (FBL)","PL",0,3,2.31272955221326E-2,12,"",null,"RO_FND_32",0.79414529050000005,0.7161526573,0.71886019899999998,0.74221160870000003,0.73958435119999999,0.69170827729999995,0.71751415780000005,0.69841519900000004,0.70524856950000003,0.67333477610000003,0.68882154259999995,0.68628359139999995,0.69965710839999995,0.66203670029999995,0.66324499199999998,0.66227599800000003,0.67334923339999997,0.65107772019999999,0.66866095000000003,0.66393084710000005,0.66599273219999999,0.62985844499999999,0.62532806350000003,0.60970461600000003,0.60660894499999995,0.57332210009999995]
["",null,null,null,null,null,null,null,null,null,null,null,null,null,null,null,null,null,null,null,"Forbearance ratio - Loans and advances (gross amount) (FBL)13",202012,239,"Forbearance ratio - Loans and advances (gross amount) (FBL)","HR",0,3,2.2080316124618998E-2,13,"",null,"RO_FND_33",".",6.8858028999999998E-3,7.9156612000000001E-3,9.5703155000000008E-3,5.8172679E-3,1.03285385E-2,8.6456425999999996E-3,1.1647693400000001E-2,1.0320441600000001E-2,2.21415646E-2,4.2403066599999997E-2,3.4865670000000001E-2,3.4740298599999997E-2,4.0732756000000002E-2,3.6937506299999999E-2,1.17042061E-2,2.0115087899999998E-2,9.3782695999999992E-3,8.3359143000000004E-3,9.4067882999999998E-3,8.2822024000000008E-3,7.9718692000000004E-3,2.8893843700000001E-2,1.9314944699999999E-2,8.3274306999999992E-3,7.303609E-3]
["",null,null,null,null,null,null,null,null,null,null,null,null,null,null,null,null,null,null,null,"Forbearance ratio - Loans and advances (gross amount) (FBL)14",202012,239,"Forbearance ratio - Loans and advances (gross amount) (FBL)","EE",0,4,2.1876538125721101E-2,14,"",null,"RO_LIQ_17",".",".",".",".",".",".",".",".",3.2161817741999998,3.1411635019999999,3.3174537675,3.6078358388999998,3.4085800932999999,3.3226750985,3.3233259541,3.0478467983000002,3.0995133416999998,3.2496236496000002,3.4497128408000002,2.9418013252000002,2.9388577805999998,3.2921442071999998,3.2438366773,3.8467448076999999,4.0782210012000002,3.5667917001]
["",null,null,null,null,null,null,null,null,null,null,null,null,null,null,null,null,null,null,null,"Forbearance ratio - Loans and advances (gross amount) (FBL)15",202012,239,"Forbearance ratio - Loans and advances (gross amount) (FBL)","HU",0,4,2.0493670891653999E-2,15,"",null,"RO_PFT_21",-0.19023837499999999,-0.15767226100000001,0.17644671610000001,0.39956155710000002,0.29806216400000002,0.23270407130000001,0.13463437340000001,0.16393698640000001,0.17344034959999999,0.16106271859999999,0.15566473810000001,0.15380142939999999,0.15589557470000001,0.1554692241,0.19094406059999999,0.2121400336,0.2018866127,0.17603756030000001,0.17224829890000001,0.14122507819999999,0.168000549,0.1558554754,0.1491027509,0.1211515237,0.1283166254,0.1153403163]
["",null,null,null,null,null,null,null,null,null,null,null,null,null,null,null,null,null,null,null,"Forbearance ratio - Loans and advances (gross amount) (FBL)16",202012,239,"Forbearance ratio - Loans and advances (gross amount) (FBL)","RO",0,3,2.0282530083848001E-2,16,"",null,"RO_PFT_23",0.45665770579999998,0.46997230899999998,0.50708077610000002,0.54397515770000004,0.52855793780000004,0.51046690729999999,0.5657050951,0.46884653030000001,0.4575755326,0.4763115866,0.54247579030000004,0.48402004259999998,0.48208888129999999,0.4916078747,0.50288800550000001,0.50372422299999997,0.47942953119999998,0.49205312210000002,0.57145209320000001,0.49750706169999998,0.46527115140000003,0.4826456495,0.5641393911,0.51269178230000001,0.49035277179999998,0.48137515050000002]
["",null,null,null,null,null,null,null,null,null,null,null,null,null,null,null,null,null,null,null,"Forbearance ratio - Loans and advances (gross amount) (FBL)17",202012,239,"Forbearance ratio - Loans and advances (gross amount) (FBL)","CZ",0,3,1.9606666894219301E-2,17,"",null,"RO_PFT_24",-1.9433203999999999E-2,-1.5892723000000001E-2,1.8148159800000001E-2,4.24001408E-2,3.24632896E-2,2.5167079799999999E-2,1.5897316599999999E-2,1.8650323699999999E-2,2.0310093800000002E-2,1.8474281200000001E-2,1.8232775E-2,1.8016444100000001E-2,1.8490222000000001E-2,1.8108211799999999E-2,2.2856924599999998E-2,2.4089222E-2,2.3429459199999999E-2,2.0651253599999999E-2,2.0575765199999999E-2,1.61348753E-2,1.9729475199999999E-2,1.80546909E-2,1.6920808700000001E-2,1.3932740799999999E-2,1.50193553E-2,1.3393347700000001E-2]
["",null,null,null,null,null,null,null,null,null,null,null,null,null,null,null,null,null,null,null,"Forbearance ratio - Loans and advances (gross amount) (FBL)18",202012,239,"Forbearance ratio - Loans and advances (gross amount) (FBL)","SI",0,6,1.93204026899907E-2,18,"",null,"RO_PFT_25",0.63011690070000004,0.62110916569999997,0.59654788420000004,0.6213030303,0.62122058140000003,0.58420790180000004,0.61948033999999996,0.56095778080000003,0.56011355709999999,0.56930062739999998,0.60726444729999995,0.57747134339999995,0.57775270170000004,0.58698680169999995,0.63213741690000003,0.61313955409999998,0.62250541640000001,0.64483217179999996,0.67546140109999997,0.65077503749999999,0.63625924879999995,0.64116825749999995,0.73352149050000004,0.6893603291,0.67217077749999998,0.6583091096]
["",null,null,null,null,null,null,null,null,null,null,null,null,null,null,null,null,null,null,null,"Forbearance ratio - Loans and advances (gross amount) (FBL)19",202012,239,"Forbearance ratio - Loans and advances (gross amount) (FBL)","NO",0,4,1.7700885030925099E-2,19,"",null,"RO_PFT_26",0.22862304159999999,0.22925738370000001,0.2337204661,0.23939853859999999,0.24024083900000001,0.23016559659999999,0.23401871590000001,0.21660037630000001,0.22319893160000001,0.2277165367,0.22867506870000001,0.22519115719999999,0.23031500460000001,0.2320726545,0.22213410259999999,0.21188523400000001,0.2105151418,0.21813619049999999,0.20865999490000001,0.20924878760000001,0.20997885320000001,0.20962980680000001,0.2028519808,0.18316556940000001,0.18895354070000001,0.1919024423]
["",null,null,null,null,null,null,null,null,null,null,null,null,null,null,null,null,null,null,null,"Forbearance ratio - Loans and advances (gross amount) (FBL)20",202012,239,"Forbearance ratio - Loans and advances (gross amount) (FBL)","AT",0,11,1.6895073824794701E-2,20,"",null,"RO_PFT_29",7.0455454200000003E-2,6.1901407800000002E-2,0.14197629919999999,5.0382706700000002E-2,6.1783791900000003E-2,4.76548454E-2,4.1632067199999997E-2,3.7907902399999999E-2,4.0556991700000003E-2,4.4256050200000001E-2,3.6074268499999999E-2,3.0939592599999999E-2,3.1967244499999999E-2,2.9838832199999998E-2,3.3237563900000003E-2,4.4241461099999997E-2,1.9048955499999999E-2,2.4117375399999998E-2,3.61782415E-2,4.0477568200000001E-2,3.86852689E-2,3.6905966800000002E-2,2.3418189200000002E-2,3.61471342E-2,3.6725631799999998E-2,3.66767749E-2]
["",null,null,null,null,null,null,null,null,null,null,null,null,null,null,null,null,null,null,null,"Forbearance ratio - Loans and advances (gross amount) (FBL)21",202012,239,"Forbearance ratio - Loans and advances (gross amount) (FBL)","DE",0,23,1.6286266126394E-2,21,"",null,"RO_PFT_41",3.8523492100000001E-2,3.6646480799999999E-2,3.3259948999999997E-2,3.3460894400000003E-2,3.45137493E-2,3.3570919900000003E-2,3.3468329900000003E-2,3.2730837899999997E-2,3.2380880100000002E-2,3.1247247200000001E-2,3.03552882E-2,3.0651159000000001E-2,3.05312703E-2,2.9963168299999999E-2,3.2498934899999998E-2,3.3601242099999998E-2,3.5054441700000001E-2,3.52612837E-2,3.5110875399999998E-2,3.5228132699999998E-2,3.5306428799999998E-2,3.4669557400000002E-2,3.37422847E-2,3.3025392700000003E-2,3.2490076499999999E-2,3.1654930499999998E-2]
["",null,null,null,null,null,null,null,null,null,null,null,null,null,null,null,null,null,null,null,"Forbearance ratio - Loans and advances (gross amount) (FBL)22",202012,239,"Forbearance ratio - Loans and advances (gross amount) (FBL)","LT",0,4,1.5704158024220899E-2,22,"",null,"RO_PFT_43",".",".",".",".",".",".",".",".",".",".",".",".",".",".",5.9342826999999997E-3,1.33511532E-2,1.29680214E-2,2.0012843299999999E-2,8.1190806000000001E-3,1.1277787799999999E-2,7.9987843000000006E-3,9.0477809999999995E-3,7.4442144999999999E-3,1.77846846E-2,1.82711097E-2,1.9958440399999999E-2]
["",null,null,null,null,null,null,null,null,null,null,null,null,null,null,null,null,null,null,null,"Forbearance ratio - Loans and advances (gross amount) (FBL)23",202012,239,"Forbearance ratio - Loans and advances (gross amount) (FBL)","FI",0,7,1.5085069126545E-2,23,"",null,"RO_SVC_1",0.1479042532,0.1532985868,0.1564500616,0.14319388299999999,0.14455034119999999,0.17487596559999999,0.17664433630000001,0.17215199049999999,0.17210687869999999,0.18962213359999999,0.18684270859999999,0.1867742248,0.1795046676,0.1910982608,0.1851109115,0.16477867060000001,0.16433921139999999,0.173194982,0.1729843838,0.1721293626,0.16979227229999999,0.19066187970000001,0.17229708099999999,0.19186330069999999,0.19661805339999999,0.1983912082]
["",null,null,null,null,null,null,null,null,null,null,null,null,null,null,null,null,null,null,null,"Forbearance ratio - Loans and advances (gross amount) (FBL)24",202012,239,"Forbearance ratio - Loans and advances (gross amount) (FBL)","BE",0,8,1.3662296030726001E-2,24,"",null,"RO_SVC_12",".",".",".",".",".",".",".",".",8.9984491799999997E-2,9.6121143000000006E-2,9.7248132299999998E-2,9.8519782099999995E-2,9.6710292599999997E-2,9.6471701699999995E-2,9.30739592E-2,8.6157968700000004E-2,8.4665589599999994E-2,8.8195447400000002E-2,9.2062308199999998E-2,9.1515724699999995E-2,9.0667045700000004E-2,0.1009275461,9.20071103E-2,9.2105754200000001E-2,9.1764418900000005E-2,8.7764545900000004E-2]
["",null,null,null,null,null,null,null,null,null,null,null,null,null,null,null,null,null,null,null,"Forbearance ratio - Loans and advances (gross amount) (FBL)25",202012,239,"Forbearance ratio - Loans and advances (gross amount) (FBL)","DK",0,5,1.3335190778588701E-2,25,"",null,"RO_SVC_13",".",".",".",".",".",".",".",".",8.6888074300000007E-2,9.3525322699999996E-2,9.5125915000000005E-2,9.4806385800000004E-2,9.3489328100000005E-2,9.3533089700000002E-2,9.1767025700000004E-2,8.4673193199999996E-2,8.3459534000000002E-2,8.7886735199999996E-2,9.0944531300000006E-2,9.0727016899999999E-2,8.9957137600000001E-2,9.8051941700000006E-2,9.1380371099999996E-2,9.4775109400000002E-2,9.4877653699999995E-2,9.1289584100000001E-2]
["",null,null,null,null,null,null,null,null,null,null,null,null,null,null,null,null,null,null,null,"Forbearance ratio - Loans and advances (gross amount) (FBL)26",202012,239,"Forbearance ratio - Loans and advances (gross amount) (FBL)","LU",0,11,1.31622966086327E-2,26,"",null,"RO_SVC_2",0.17896994150000001,0.18797040670000001,0.18534871980000001,0.16855264,0.1687950235,0.19963241409999999,0.1997011773,0.1940385932,0.19257317460000001,0.2095495594,0.20484079929999999,0.20348980520000001,0.1944118474,0.2048108773,0.19712245249999999,0.1870402213,0.18533145870000001,0.19323051199999999,0.19203281050000001,0.19012339,0.18694022709999999,0.207034265,0.18737795469999999,0.20733892970000001,0.2117488418,0.21264807760000001]
["",null,null,null,null,null,null,null,null,null,null,null,null,null,null,null,null,null,null,null,"Forbearance ratio - Loans and advances (gross amount) (FBL)27",202012,239,"Forbearance ratio - Loans and advances (gross amount) (FBL)","SK",0,3,1.05597191615151E-2,27,"",null,"RO_SVC_29",0.15124984080000001,0.1627649971,0.16203135499999999,0.14677757429999999,0.15005184299999999,0.182047346,0.18241355619999999,0.17624043580000001,0.177888978,0.1941332995,0.18975978430000001,0.1896694531,0.1822756901,0.1935818812,0.18527613800000001,0.16380743910000001,0.16316245130000001,0.16976236650000001,0.1729843838,0.16961101079999999,0.16710871190000001,0.187589802,0.16935335439999999,0.18691519140000001,0.18951454619999999,0.18999355230000001]
["",null,null,null,null,null,null,null,null,null,null,null,null,null,null,null,null,null,null,null,"Forbearance ratio - Loans and advances (gross amount) (FBL)28",202012,239,"Forbearance ratio - Loans and advances (gross amount) (FBL)","FR",0,13,1.0045399010766501E-2,28,"",null,"RO_SVC_3",0.1479042532,0.1532985868,0.1564500616,0.14319388299999999,0.14455034119999999,0.17487596559999999,0.17664433630000001,0.17215199049999999,0.17210687869999999,0.18962213359999999,0.18684270859999999,0.1867742248,0.1795046676,0.1910982608,0.1851109115,0.16477867060000001,0.16433921139999999,0.173194982,0.1729843838,0.1721293626,0.16979227229999999,0.19066187970000001,0.17229708099999999,0.19186330069999999,0.19661805339999999,0.1983912082]
["",null,null,null,null,null,null,null,null,null,null,null,null,null,null,null,null,null,null,null,"Forbearance ratio - Loans and advances (gross amount) (FBL)29",202012,239,"Forbearance ratio - Loans and advances (gross amount) (FBL)","SE",0,8,5.1442233871428602E-3,29,"",null,"SE_AQT_3.1",1.17428442E-2,1.1026958E-2,1.06379371E-2,1.0199229799999999E-2,9.3654415999999997E-3,1.04552594E-2,9.7684635999999991E-3,9.6119125999999996E-3,8.9630152000000005E-3,9.0974982999999995E-3,7.7100991999999998E-3,8.7124252999999999E-3,8.6020478000000001E-3,9.4892698000000001E-3,8.8985062999999993E-3,8.6140624000000006E-3,8.0313216999999999E-3,4.1999517000000002E-3,4.1536940000000003E-3,4.5519426999999996E-3,4.6597503000000004E-3,4.9043180000000004E-3,4.4099584000000004E-3,4.5331763000000004E-3,4.5653255E-3,4.3241245000000001E-3]
["",null,null,null,null,null,null,null,null,null,null,null,null,null,null,null,null,null,null,null,"Forbearance ratio - Loans and advances (gross amount) (FBL)99",202012,239,"Forbearance ratio - Loans and advances (gross amount) (FBL)","EU",0,116,2.00387959112081E-2,99,"",null,"SE_AQT_3.2",1.25767122E-2,1.1812888800000001E-2,1.1339754400000001E-2,1.08695211E-2,1.00073386E-2,1.11905466E-2,1.04691069E-2,1.02997162E-2,9.5978972000000003E-3,9.7936745999999998E-3,8.3291044000000005E-3,9.3936133000000008E-3,9.3416595999999998E-3,1.0289730299999999E-2,9.8955302000000005E-3,9.6366687999999995E-3,8.9389776000000001E-3,4.5084404999999996E-3,4.5234513999999997E-3,4.9778721E-3,5.0763420999999998E-3,5.2979024000000003E-3,4.8405378999999997E-3,4.9632106999999998E-3,4.9033093000000003E-3,4.6413349000000003E-3]
["",null,null,null,null,null,null,null,null,null,null,null,null,null,null,null,null,null,null,null,"Forbearance ratio - Loans and advances (gross amount) (FBL)100",202012,239,"Forbearance ratio - Loans and advances (gross amount) (FBL)","GB",0,26,8.6620201261266901E-3,100,"",null,"SE_AQT_31",2.888308E-3,2.9486868000000001E-3,2.3343306000000001E-3,2.1597715000000002E-3,1.9667668999999999E-3,2.803617E-3,2.5170365E-3,2.7377211999999999E-3,2.5328486000000001E-3,2.8224470000000001E-3,2.4449945E-3,2.8150466000000001E-3,2.8799055E-3,3.5121907999999999E-3,1.5686495E-3,1.2319217E-3,1.1790075000000001E-3,7.9730440000000001E-4,7.2993579999999997E-4,8.2417139999999998E-4,9.585765E-4,1.1011089E-3,8.8790060000000005E-4,9.406045E-4,9.240807E-4,9.2509139999999998E-4]
["",null,null,null,null,null,null,null,null,null,null,null,null,null,null,null,null,null,null,null,"Liquidity coverage ratio1",202012,391,"Liquidity coverage ratio","LT",0,4,7.46090891020188,1,"",null,"SE_AQT_41.2",0.30612059800000002,0.3076326861,0.30233036670000002,0.28967034060000002,0.30561812729999999,0.2949043603,0.28357932019999998,0.28243672450000001,0.28558417489999999,0.28708412109999998,0.32116669050000002,0.28707243310000002,0.29175924990000002,0.2953342477,0.28961129749999998,0.27130968129999999,0.27429391320000002,0.3308637243,0.33658416679999997,0.33282208159999999,0.34390601850000002,0.37185285559999998,0.4035740914,0.40936398359999998,0.4250273604,0.42603835210000002]
["",null,null,null,null,null,null,null,null,null,null,null,null,null,null,null,null,null,null,null,"Liquidity coverage ratio2",202012,391,"Liquidity coverage ratio","LV",0,5,3.9569030857915601,2,"",null,"SE_AQT_42.2",1.07467359E-2,1.0405777499999999E-2,1.00626558E-2,1.03873058E-2,9.4636848000000003E-3,9.6947477000000008E-3,8.9453228000000006E-3,9.6880695999999999E-3,9.6267309999999995E-3,1.11590041E-2,9.9314793000000005E-3,9.4193915000000007E-3,9.3687573000000007E-3,1.0163911499999999E-2,8.8358511000000001E-3,8.3618526000000006E-3,7.5625351999999996E-3,5.4773004999999998E-3,5.3489617999999996E-3,5.5100922000000004E-3,5.3471435000000001E-3,4.824081E-3,4.8596448E-3,5.1757543E-3,5.0011797000000004E-3,5.1442234E-3]
["",null,null,null,null,null,null,null,null,null,null,null,null,null,null,null,null,null,null,null,"Liquidity coverage ratio3",202012,391,"Liquidity coverage ratio","MT",0,5,3.83465493812376,3,"",null,"SE_FND_32",2.1858186074999999,2.1140621683999998,2.0675945299,2.1887757099999998,2.1598808940000001,2.1656206513999998,2.0898558013000001,2.0649880550000002,2.1079859350999999,2.1791214627,2.0570437431999999,2.0518608726999998,2.0530017579000002,2.1060937843,2.1885723076999999,2.148347969,2.1261302106,2.1235645538000001,2.0897165851000001,2.1006517141000001,2.0476768876000002,2.0562767093000001,1.9697168482,1.8620078008000001,1.8318805834,1.8169935102000001]
["",null,null,null,null,null,null,null,null,null,null,null,null,null,null,null,null,null,null,null,"Liquidity coverage ratio4",202012,391,"Liquidity coverage ratio","RO",0,3,3.5667917001238401,4,"",null,"SE_FND_33",".",0.2449934986,0.24940998819999999,0.25124043820000003,0.25003618170000003,0.26075622970000001,0.26473828869999999,0.25951742500000002,0.25751232039999999,0.26492799410000001,0.2612746078,0.26073869030000002,0.25887344350000002,0.26991694059999999,0.27231680879999998,0.26444429800000002,0.26862654549999998,0.2478649876,0.24428829060000001,0.2497661709,0.24435513610000001,0.24897040979999999,0.23710064010000001,0.235751027,0.23950496399999999,0.24865324690000001]
["",null,null,null,null,null,null,null,null,null,null,null,null,null,null,null,null,null,null,null,"Liquidity coverage ratio5",202012,391,"Liquidity coverage ratio","CY",0,4,3.1160516404277399,5,"",null,"SE_LIQ_17",".",".",".",".",".",".",".",".",1.4788580458,1.644454971,1.5330240825000001,1.4160551426000001,1.4742914281999999,1.5015402832,1.5637716742000001,1.5097097261000001,1.7178525966,1.5570508614,1.7051177529999999,1.5758311680999999,1.7200577334,1.8905230291999999,1.7087613785,1.5457823346999999,1.5595605663000001,1.6915230629]
["",null,null,null,null,null,null,null,null,null,null,null,null,null,null,null,null,null,null,null,"Liquidity coverage ratio6",202012,391,"Liquidity coverage ratio","SI",0,6,2.9438542804515699,6,"",null,"SE_PFT_21",0.1237609579,0.1250280423,0.13541053310000001,0.12597305440000001,0.11740478729999999,0.1173854397,0.10872081259999999,0.12867930699999999,0.12993305250000001,0.1246717361,0.1349643418,0.122785001,0.1169037975,0.11220856730000001,0.108374889,0.1285716301,0.1221667717,0.13356685400000001,0.13015295260000001,0.1283588608,0.11914507119999999,0.11996240230000001,3.7520956500000001E-2,6.8151114900000004E-2,7.8816836599999995E-2,8.8723347499999994E-2]
["",null,null,null,null,null,null,null,null,null,null,null,null,null,null,null,null,null,null,null,"Liquidity coverage ratio7",202012,391,"Liquidity coverage ratio","PT",0,8,2.8200990833533699,7,"",null,"SE_PFT_23",0.47492125260000001,0.4709566583,0.45098484300000002,0.46364027969999999,0.4701376619,0.47062336510000002,0.51502578290000001,0.4833730228,0.47407359980000002,0.47810953039999998,0.48152744149999999,0.48733521940000002,0.48451417949999998,0.49692939279999998,0.48579535829999998,0.4662140803,0.475883204,0.44375186129999999,0.43127439270000001,0.445406888,0.46462267559999998,0.46694161090000003,0.59768321830000004,0.53685886360000001,0.52020177980000004,0.51260759150000001]
["",null,null,null,null,null,null,null,null,null,null,null,null,null,null,null,null,null,null,null,"Liquidity coverage ratio8",202012,391,"Liquidity coverage ratio","BG",0,4,2.50064251560145,8,"",null,"SE_PFT_24",6.0057447999999998E-3,6.2027497999999999E-3,6.2856018000000003E-3,6.0655652000000003E-3,5.6998031999999999E-3,6.0671105000000003E-3,5.4949949999999999E-3,6.5622361000000004E-3,6.7923174000000001E-3,7.0037637999999999E-3,7.2988614000000004E-3,6.7659723999999996E-3,6.5517073E-3,6.6591968000000003E-3,6.1829674999999999E-3,7.3239142E-3,7.1198768999999997E-3,7.8254071000000008E-3,6.9942472000000004E-3,7.0330820000000004E-3,6.5575573999999996E-3,6.8900009999999998E-3,2.0105048E-3,3.6899916999999999E-3,4.4107336999999998E-3,5.1999378000000002E-3]
["",null,null,null,null,null,null,null,null,null,null,null,null,null,null,null,null,null,null,null,"Liquidity coverage ratio9",202012,391,"Liquidity coverage ratio","PL",0,3,2.2015502792575101,9,"",null,"SE_PFT_25",0.60585471840000005,0.59823574729999995,0.57406964390000004,0.58382514720000001,0.59888021130000002,0.58979663149999995,0.60916345510000003,0.58244321590000003,0.58109577540000001,0.57731847319999996,0.58265368579999999,0.58529081140000006,0.59212747460000004,0.59032060320000002,0.58023391930000001,0.56205266320000002,0.57986792109999996,0.61114273829999999,0.61540183429999995,0.61596284749999997,0.62592670279999996,0.61505521389999995,0.80354864879999999,0.69874714940000004,0.68482554370000004,0.67271903980000003]
["",null,null,null,null,null,null,null,null,null,null,null,null,null,null,null,null,null,null,null,"Liquidity coverage ratio10",202012,391,"Liquidity coverage ratio","HU",0,4,2.1770087676888998,10,"",null,"SE_PFT_26",0.26657745399999999,0.26965305249999999,0.2750955786,0.28726615999999999,0.28736520850000002,0.28327949000000002,0.29050234549999998,0.28369984269999998,0.28144443679999998,0.27426141199999998,0.28293337489999998,0.28817801650000002,0.28286333019999998,0.2849001806,0.27151163230000003,0.27127711570000002,0.27585114249999998,0.25076799659999999,0.2372743014,0.24267033120000001,0.24859692280000001,0.2488613744,0.31324867899999997,0.25224014890000002,0.2454906295,0.24635504259999999]
["",null,null,null,null,null,null,null,null,null,null,null,null,null,null,null,null,null,null,null,"Liquidity coverage ratio11",202012,391,"Liquidity coverage ratio","IT",0,16,1.8713641583568501,11,"",null,"SE_PFT_29",0.26895948419999999,0.26256413909999998,0.43736307769999999,0.1439945286,0.1635737062,0.14589742489999999,-0.100946337,3.8602053599999998E-2,6.2763500599999994E-2,0.14800920549999999,6.6199111599999999E-2,4.4614108200000002E-2,9.2995059399999996E-2,8.7087667899999999E-2,3.00850717E-2,5.2198667099999999E-2,5.7941659399999998E-2,3.3323511100000001E-2,0.12642562600000001,8.2235818200000005E-2,8.5872902400000006E-2,9.0827570900000001E-2,-0.22880130900000001,-3.7576706000000001E-2,-1.0815965E-2,2.3055520000000002E-3]
["",null,null,null,null,null,null,null,null,null,null,null,null,null,null,null,null,null,null,null,"Liquidity coverage ratio12",202012,391,"Liquidity coverage ratio","ES",0,15,1.8666793362540599,12,"",null,"SE_PFT_41",1.06708216E-2,1.08746924E-2,1.0579101E-2,1.0566191000000001E-2,1.04077006E-2,1.0973742200000001E-2,1.00787134E-2,9.9332177999999997E-3,9.9785742999999993E-3,1.06761826E-2,1.03781884E-2,1.0440890899999999E-2,1.0503419E-2,1.09156958E-2,1.01589839E-2,1.0063646799999999E-2,1.0264358100000001E-2,1.1134130000000001E-2,1.05901281E-2,1.0709497700000001E-2,1.06112308E-2,1.09987075E-2,1.0126358699999999E-2,1.0746445300000001E-2,1.09513697E-2,1.15961651E-2]
["",null,null,null,null,null,null,null,null,null,null,null,null,null,null,null,null,null,null,null,"Liquidity coverage ratio13",202012,391,"Liquidity coverage ratio","SK",0,3,1.8409636379297101,13,"",null,"SE_PFT_43",".",".",".",".",".",".",".",".",".",".",".",".",".",".",1.4961874999999999E-3,1.3521971999999999E-3,1.1225331E-3,1.2948429999999999E-3,9.6247260000000001E-4,1.1100477999999999E-3,1.0751093E-3,1.2541532999999999E-3,2.7819214999999999E-3,2.6490454000000002E-3,2.2801687000000002E-3,2.1117509999999998E-3]
["",null,null,null,null,null,null,null,null,null,null,null,null,null,null,null,null,null,null,null,"Liquidity coverage ratio14",202012,391,"Liquidity coverage ratio","DK",0,5,1.83959479864285,14,"",null,"SE_SVC_1",0.18868650519999999,0.19600610669999999,0.19867438770000001,0.20440645339999999,0.2052956031,0.21401458270000001,0.21442393339999999,0.21630856970000001,0.22543494820000001,0.2350956921,0.2340513045,0.2357401955,0.2332450938,0.23754800609999999,0.2342169888,0.2341027524,0.2377782265,0.1882736237,0.18495893860000001,0.18614493430000001,0.1900803113,0.20269919450000001,0.18775992320000001,0.19420406239999999,0.20213032950000001,0.21043826739999999]
["",null,null,null,null,null,null,null,null,null,null,null,null,null,null,null,null,null,null,null,"Liquidity coverage ratio15",202012,391,"Liquidity coverage ratio","AT",0,11,1.83589788317405,15,"",null,"SE_SVC_12",".",".",".",".",".",".",".",".",4.2856474999999998E-2,4.7826787099999997E-2,4.4204519300000002E-2,4.4985641299999997E-2,4.53538723E-2,4.8963649200000001E-2,4.6216827100000003E-2,4.5348802100000002E-2,4.6186271700000003E-2,4.6487400200000001E-2,4.39278902E-2,4.4447427599999999E-2,4.5153894999999999E-2,4.8864220899999998E-2,4.2121644700000002E-2,4.20854425E-2,4.4809561499999997E-2,4.93226207E-2]
["",null,null,null,null,null,null,null,null,null,null,null,null,null,null,null,null,null,null,null,"Liquidity coverage ratio16",202012,391,"Liquidity coverage ratio","BE",0,8,1.8287512566968001,16,"",null,"SE_SVC_13",".",".",".",".",".",".",".",".",4.4007141100000001E-2,4.90517834E-2,4.5280787500000003E-2,4.6072487500000002E-2,4.6040476099999998E-2,4.9703960300000002E-2,4.6590940300000001E-2,4.5558167099999998E-2,4.6336256399999998E-2,4.6732684099999998E-2,4.39278902E-2,4.4447427599999999E-2,4.5153894999999999E-2,4.8864220899999998E-2,4.2121644700000002E-2,4.20854425E-2,4.4809561499999997E-2,4.93226207E-2]
["",null,null,null,null,null,null,null,null,null,null,null,null,null,null,null,null,null,null,null,"Liquidity coverage ratio17",202012,391,"Liquidity coverage ratio","EE",0,4,1.8150967200841099,17,"",null,"SE_SVC_2",0.2185627547,0.2270750071,0.22747079570000001,0.23346136889999999,0.23638369549999999,0.2461586801,0.2465384005,0.24771379690000001,0.26066405599999998,0.27347463300000002,0.26872507080000002,0.27162974979999999,0.26510797590000001,0.26827126979999999,0.26780726529999999,0.2689658976,0.27358791939999999,0.2148817599,0.2078896448,0.20912830439999999,0.2131926525,0.22518182249999999,0.2102996657,0.21767590489999999,0.2248435795,0.2321421078]
["",null,null,null,null,null,null,null,null,null,null,null,null,null,null,null,null,null,null,null,"Liquidity coverage ratio18",202012,391,"Liquidity coverage ratio","IS",0,3,1.7970003009470801,18,"",null,"SE_SVC_29",0.17449792080000001,0.17905401600000001,0.1756031998,0.18160275349999999,0.1840081194,0.19200709399999999,0.19328321900000001,0.19506043440000001,0.20231047160000001,0.2113870977,0.2094810872,0.21024698089999999,0.21242396690000001,0.21387285549999999,0.2122543318,0.21062893399999999,0.21438919100000001,0.1704110539,0.16611689800000001,0.167067516,0.1675079723,0.1775518019,0.16975207810000001,0.1770179976,0.18532288129999999,0.195390749]
["",null,null,null,null,null,null,null,null,null,null,null,null,null,null,null,null,null,null,null,"Liquidity coverage ratio19",202012,391,"Liquidity coverage ratio","HR",0,3,1.7635342573325601,19,"",null,"SE_SVC_3",0.1716064159,0.17565561869999999,0.17479405689999999,0.18073004070000001,0.1831086143,0.1910321918,0.1922700413,0.19379390890000001,0.20230197110000001,0.20941642660000001,0.20758912809999999,0.21024698089999999,0.21047302870000001,0.21218837300000001,0.2106091736,0.21056660590000001,0.21431957909999999,0.1703012515,0.1659967564,0.1669718657,0.1673719313,0.1773913956,0.16961791139999999,0.17685040630000001,0.18519052950000001,0.19531856889999999]
["",null,null,null,null,null,null,null,null,null,null,null,null,null,null,null,null,null,null,null,"Liquidity coverage ratio20",202012,391,"Liquidity coverage ratio","GR",0,4,1.7515504051700601,20,"",null,"SI_AQT_3.1",".",".",".",".",".",0.1614226181,0.1448226702,0.14177350920000001,0.1194969345,0.106910616,0.101458984,9.8740339299999993E-2,9.2642467000000006E-2,7.7784545799999993E-2,6.8843212799999998E-2,6.2999931199999998E-2,5.83470533E-2,5.0827610699999998E-2,4.5868782800000001E-2,3.7872339900000003E-2,3.3614366200000002E-2,2.7131098499999999E-2,2.6275531000000001E-2,2.5081395100000001E-2,2.4340981899999999E-2,2.4097669200000001E-2]
["",null,null,null,null,null,null,null,null,null,null,null,null,null,null,null,null,null,null,null,"Liquidity coverage ratio21",202012,391,"Liquidity coverage ratio","IE",0,8,1.7218852655415999,21,"",null,"SI_AQT_3.2",".",".",".",".",".",0.21519342220000001,0.19694932979999999,0.19211791750000001,0.16332672810000001,0.14411775560000001,0.13534553869999999,0.13332611459999999,0.12630090990000001,0.1046290765,9.2505446899999996E-2,8.5421019400000006E-2,7.9319568399999998E-2,7.0703297999999998E-2,6.3113446500000003E-2,5.2553657500000003E-2,4.65731796E-2,3.7026209300000001E-2,3.4707505E-2,3.2499893000000002E-2,3.1873920600000001E-2,3.1844542500000003E-2]
[{"$f":"+D643&B643","v":""},null,null,null,null,null,null,null,null,null,null,null,null,null,null,null,null,null,null,null,{"$f":"CONCATENATE(X643,AC643)","v":"Liquidity coverage ratio22"},202012,391,"Liquidity coverage ratio","FI",0,7,1.71603603565407,22,"",null,"SI_AQT_31",".",".",".",".",".",6.2981499900000001E-2,5.6131927400000003E-2,5.1561592500000003E-2,4.1933954699999998E-2,3.9916752899999998E-2,3.6865568799999998E-2,3.4676287E-2,3.2073756000000002E-2,2.8428165299999999E-2,1.34138021E-2,1.13663683E-2,1.00043862E-2,9.5471409000000007E-3,8.2888410999999995E-3,7.0170125000000002E-3,5.8647181999999997E-3,5.4231198E-3,5.8346283999999998E-3,4.9413950999999999E-3,4.9384243E-3,5.2097732000000001E-3]
["",null,null,null,null,null,null,null,null,null,null,null,null,null,null,null,null,null,null,null,"Liquidity coverage ratio23",202012,391,"Liquidity coverage ratio","SE",0,8,1.69152306294719,23,"",null,"SI_AQT_41.2",".",".",".",".",".",0.62738660639999999,0.64118980950000004,0.66056724339999995,0.66510813719999995,0.63749122979999995,0.63718461000000004,0.64789994100000003,0.65074919580000001,0.62899360959999995,0.5956362395,0.60597523239999995,0.61584557110000004,0.59524219879999996,0.60425904679999998,0.59745273539999999,0.60487341849999998,0.56389492659999996,0.52595892529999999,0.52262703899999996,0.52878185840000003,0.51269833649999996]
["",null,null,null,null,null,null,null,null,null,null,null,null,null,null,null,null,null,null,null,"Liquidity coverage ratio24",202012,391,"Liquidity coverage ratio","FR",0,13,1.6671350216076499,24,"",null,"SI_AQT_42.2",".",".",".",".",".",0.1268487251,0.12835250100000001,0.12427208789999999,0.11232229489999999,9.7462758799999993E-2,9.0936398399999993E-2,8.9241626300000002E-2,8.4271332500000004E-2,7.0228669800000004E-2,6.0901880800000002E-2,5.7260253300000001E-2,5.0396545500000001E-2,4.8001183699999998E-2,4.1512508099999998E-2,3.8634362399999997E-2,3.6181192700000003E-2,2.9239379400000001E-2,2.3948920700000001E-2,2.0630421900000001E-2,1.9964024899999998E-2,1.9320402699999999E-2]
["",null,null,null,null,null,null,null,null,null,null,null,null,null,null,null,null,null,null,null,"Liquidity coverage ratio25",202012,391,"Liquidity coverage ratio","CZ",0,3,1.6624824614738101,25,"",null,"SI_FND_32",".",".",".",".",".",0.72155923030000002,0.70383410820000003,0.6962139463,0.67812805669999998,0.6795873496,0.68332239819999996,0.69285005550000001,0.69870744559999998,0.69294240389999995,0.70750528729999995,0.71068804139999997,0.71241919490000005,0.66890833500000002,0.68119190269999996,0.67932199429999995,0.67919037179999997,0.66099383499999997,0.70444228600000003,0.65733145069999999,0.64981335070000001,0.60813633519999999]
["",null,null,null,null,null,null,null,null,null,null,null,null,null,null,null,null,null,null,null,"Liquidity coverage ratio26",202012,391,"Liquidity coverage ratio","NL",0,6,1.6485781925037399,26,"",null,"SI_FND_33",".",".",".",".",".",3.3387937899999998E-2,3.8698349E-2,2.5032459199999999E-2,2.1839062199999999E-2,2.1741989499999999E-2,2.6217787499999999E-2,2.7354669200000001E-2,2.7468599999999999E-2,2.64111221E-2,2.8417993900000001E-2,3.1269180100000002E-2,3.0406206700000001E-2,3.7797247399999997E-2,3.8125183899999998E-2,3.7432165699999999E-2,3.9634656900000002E-2,3.79654387E-2,3.7190099099999999E-2,3.94712942E-2,4.0163517099999997E-2,4.96121099E-2]
["",null,null,null,null,null,null,null,null,null,null,null,null,null,null,null,null,null,null,null,"Liquidity coverage ratio27",202012,391,"Liquidity coverage ratio","DE",0,23,1.5839558097716,27,"",null,"SI_LIQ_17",".",".",".",".",".",".",".",".",4.6879164924000003,4.4941336427999996,4.0436901314,3.2356881281000001,3.7551986939000002,3.1571285777,3.5044042604999999,3.3204286700000001,3.3679005726,3.9080667309999999,3.8600298899999999,3.6915777380999999,3.6679131508,3.5506053437,2.9994850088999998,3.1426831689000001,3.1460191331999998,2.9438542805000001]
["",null,null,null,null,null,null,null,null,null,null,null,null,null,null,null,null,null,null,null,"Liquidity coverage ratio28",202012,391,"Liquidity coverage ratio","LU",0,11,1.5679777392823899,28,"",null,"SI_PFT_21",".",".",".",".",".",4.95891532E-2,0.1343210011,0.370015292,0.2695508009,0.21149994350000001,0.14042899219999999,0.1222393968,0.12584451839999999,0.11054833829999999,0.1391981887,0.1232782357,0.1165552681,0.1190928914,0.1187694042,0.1184861879,0.1204673596,0.10551025999999999,0.30387650859999998,0.20381337390000001,0.16217866610000001,0.16556494829999999]
["",null,null,null,null,null,null,null,null,null,null,null,null,null,null,null,null,null,null,null,"Liquidity coverage ratio29",202012,391,"Liquidity coverage ratio","NO",0,4,1.49499510871076,29,"",null,"SI_PFT_23",".",".",".",".",".",0.6031313586,0.57187676679999999,0.62156713559999999,0.62294902429999999,0.64780038070000001,0.56534546539999997,0.62088128450000002,0.61653427500000002,0.64154486619999995,0.57009388679999995,0.60816394299999998,0.59959320940000005,0.61912818069999997,0.55841706120000001,0.57674346620000005,0.59051580120000002,0.62170691259999999,0.68817975139999998,0.64967282029999995,0.63329036400000005,0.63652552500000004]
["",null,null,null,null,null,null,null,null,null,null,null,null,null,null,null,null,null,null,null,"Liquidity coverage ratio99",202012,391,"Liquidity coverage ratio","EU",0,130,1.7306976808472401,99,"",null,"SI_PFT_24",".",".",".",".",".",5.9932173999999996E-3,1.74214725E-2,4.8624219199999999E-2,3.5812584100000003E-2,2.7986041400000002E-2,1.8919213000000001E-2,1.62355673E-2,1.6969339E-2,1.4928321600000001E-2,1.9344941099999999E-2,1.7200126999999999E-2,1.6252747200000001E-2,1.6555413200000001E-2,1.6388013699999999E-2,1.5999452099999999E-2,1.6408223E-2,1.4215736099999999E-2,3.6190025899999999E-2,2.4327288499999999E-2,1.9556536400000001E-2,1.9159169600000001E-2]
["",null,null,null,null,null,null,null,null,null,null,null,null,null,null,null,null,null,null,null,"Liquidity coverage ratio100",202012,391,"Liquidity coverage ratio","GB",0,26,1.5825645879883099,100,"",null,"SI_PFT_25",".",".",".",".",".",0.66875167960000004,0.63375288480000003,0.6538450858,0.65544668829999997,0.65558892609999997,0.58933848030000002,0.61324191019999996,0.61386472430000005,0.62588130529999997,0.57546278029999998,0.61952454400000001,0.62490832159999998,0.62542181350000003,0.58486834509999996,0.59334560250000001,0.60709965290000001,0.60680248349999999,0.69604621570000003,0.61425307309999999,0.60710561380000005,0.60412319560000005]
["",null,null,null,null,null,null,null,null,null,null,null,null,null,null,null,null,null,null,null,"Cost of risk1",202012,392,"Cost of risk","GR",0,4,3.1104962351496901E-2,1,"",null,"SI_PFT_26",".",".",".",".",".",0.29988400339999999,0.26844651650000001,0.29268136909999998,0.3051827044,0.30981364569999997,0.3040509179,0.32070359030000001,0.31977601179999998,0.32271228600000001,0.29776709099999998,0.3206355776,0.31465760999999998,0.31267587730000002,0.29593486549999998,0.3013148699,0.31051435290000001,0.31056549890000001,0.34949667499999998,0.30646911139999999,0.30990238320000002,0.31289078619999999]
["",null,null,null,null,null,null,null,null,null,null,null,null,null,null,null,null,null,null,null,"Cost of risk2",202012,392,"Cost of risk","HU",0,4,2.18689593336635E-2,2,"",null,"SI_PFT_29",".",".",".",".",".",-2.5419151000000001E-2,1.0334312700000001E-2,1.1532203E-2,1.28838983E-2,1.5231456900000001E-2,1.680568E-2,2.1050118600000001E-2,2.3794671E-2,2.5964468099999999E-2,1.53632951E-2,2.2001689299999998E-2,2.2874051699999998E-2,1.8489087000000001E-2,1.44310351E-2,1.48222132E-2,1.5988044399999998E-2,1.6411716E-2,2.44187134E-2,1.83691601E-2,1.66858293E-2,1.65003333E-2]
["",null,null,null,null,null,null,null,null,null,null,null,null,null,null,null,null,null,null,null,"Cost of risk3",202012,392,"Cost of risk","RO",0,3,1.99584403930653E-2,3,"",null,"SI_PFT_41",".",".",".",".",".",2.7311265299999998E-2,2.54115239E-2,2.1503896500000001E-2,2.2527312099999999E-2,2.2749572199999998E-2,2.3059098399999998E-2,2.25466213E-2,2.2655354999999999E-2,2.27917768E-2,2.21066439E-2,2.2643052600000001E-2,2.29967856E-2,2.3753913299999999E-2,2.3293820400000002E-2,2.3498731700000001E-2,2.33481273E-2,2.2838464100000001E-2,2.21243455E-2,2.1568442699999999E-2,2.1863026800000001E-2,1.9934566300000001E-2]
["",null,null,null,null,null,null,null,null,null,null,null,null,null,null,null,null,null,null,null,"Cost of risk4",202012,392,"Cost of risk","CY",0,4,1.92154365723506E-2,4,1,null,"SI_PFT_43",".",".",".",".",".",".",".",".",".",".",".",".",".",".",-1.7306299999999999E-3,5.9255750000000002E-4,4.1183414000000003E-3,2.2336785E-3,2.6235233000000001E-3,4.5646328999999998E-3,1.8383918E-3,3.9172010000000004E-3,1.2669337100000001E-2,1.36071231E-2,1.17174945E-2,1.21468505E-2]
["",null,null,null,null,null,null,null,null,null,null,null,null,null,null,null,null,null,null,null,"Cost of risk5",202012,392,"Cost of risk","IE",0,8,1.7233954689037101E-2,5,"",null,"SI_SVC_1",".",".",".",".",".",0.18311434309999999,0.19082906669999999,0.17727171159999999,0.17984905970000001,0.17780760749999999,0.17716143600000001,0.1773937357,0.1893883686,0.18311945390000001,0.18652592079999999,0.19709810080000001,0.1862636788,0.18563360919999999,0.18301336109999999,0.1842910307,0.18564722659999999,0.18739378700000001,0.15419744469999999,0.17206557040000001,0.1780237637,0.1544853242]
["",null,null,null,null,null,null,null,null,null,null,null,null,null,null,null,null,null,null,null,"Cost of risk6",202012,392,"Cost of risk","LV",0,5,1.6402630858884899E-2,6,1,null,"SI_SVC_12",".",".",".",".",".",".",".",".",9.5346839099999997E-2,9.59305082E-2,9.6085276100000006E-2,9.8249326299999995E-2,0.1063974505,0.1046443921,0.10581354699999999,0.1118210577,0.1046319532,0.1063809455,0.1049939584,0.1056894015,0.1056024032,0.1019020566,8.7763981399999996E-2,9.2550859200000002E-2,9.2217117299999998E-2,8.3682537000000001E-2]
["",null,null,null,null,null,null,null,null,null,null,null,null,null,null,null,null,null,null,null,"Cost of risk7",202012,392,"Cost of risk","BG",0,4,1.62270842841051E-2,7,"",null,"SI_SVC_13",".",".",".",".",".",".",".",".",9.2205479899999998E-2,9.3715248200000004E-2,9.37919428E-2,9.5947771400000006E-2,0.1038386136,0.1020869756,0.10567050190000001,0.1118210577,0.1046319532,0.1063809455,0.1049939584,0.1056894015,0.1056024032,0.1019020566,8.7763981399999996E-2,9.2550859200000002E-2,9.2217117299999998E-2,8.3682537000000001E-2]
["",null,null,null,null,null,null,null,null,null,null,null,null,null,null,null,null,null,null,null,"Cost of risk8",202012,392,"Cost of risk","ES",0,15,1.3735761486199901E-2,8,"",null,"SI_SVC_2",".",".",".",".",".",0.184753522,0.19103464140000001,0.17746764549999999,0.1800579934,0.1780422817,0.1773973764,0.17764147420000001,0.18957754800000001,0.18330899649999999,0.18672358089999999,0.19730074650000001,0.18645949789999999,0.18563360919999999,0.18301336109999999,0.1874588834,0.18878122089999999,0.19431454009999999,0.17534888330000001,0.19338201390000001,0.19990785119999999,0.1730534403]
["",null,null,null,null,null,null,null,null,null,null,null,null,null,null,null,null,null,null,null,"Cost of risk9",202012,392,"Cost of risk","HR",0,3,1.32448960283805E-2,9,"",null,"SI_SVC_29",".",".",".",".",".",0.18820710360000001,0.1994099151,0.18321083429999999,0.18710611299999999,0.18301619529999999,0.18197623760000001,0.18209360939999999,0.1945311797,0.18821801420000001,0.18660078050000001,0.19716701010000001,0.18632841520000001,0.18565507940000001,0.18301336109999999,0.1842910307,0.18564722659999999,0.18739378700000001,0.15419744469999999,0.1718374859,0.17772753220000001,0.15374275600000001]
["",null,null,null,null,null,null,null,null,null,null,null,null,null,null,null,null,null,null,null,"Cost of risk10",202012,392,"Cost of risk","MT",0,5,1.25859283374251E-2,10,"",null,"SI_SVC_3",".",".",".",".",".",0.18311434309999999,0.19082906669999999,0.17727171159999999,0.17984905970000001,0.17780760749999999,0.17716143600000001,0.1773937357,0.1893883686,0.18311945390000001,0.18652592079999999,0.19709810080000001,0.1862636788,0.18563360919999999,0.18301336109999999,0.1842910307,0.18564722659999999,0.18739378700000001,0.15419744469999999,0.1718374859,0.17772753220000001,0.15374275600000001]
["",null,null,null,null,null,null,null,null,null,null,null,null,null,null,null,null,null,null,null,"Cost of risk11",202012,392,"Cost of risk","PL",0,3,1.22580964561837E-2,11,"",null,"SK_AQT_3.1",4.2955224200000003E-2,4.1837600199999998E-2,4.2180593199999998E-2,4.1512090799999998E-2,4.0287880399999997E-2,4.0459586300000003E-2,3.9718710499999997E-2,3.8420423299999999E-2,3.6959450499999998E-2,3.4643099699999999E-2,3.3869522499999999E-2,3.2160043300000003E-2,3.0526095499999999E-2,2.9115417099999999E-2,2.8213778599999999E-2,2.63743907E-2,2.5683310099999999E-2,2.44717687E-2,2.3641406199999999E-2,2.3007943600000001E-2,2.2966663200000001E-2,2.21797348E-2,2.2036067999999999E-2,2.1035184299999999E-2,1.96990953E-2,1.8490179799999999E-2]
["",null,null,null,null,null,null,null,null,null,null,null,null,null,null,null,null,null,null,null,"Cost of risk12",202012,392,"Cost of risk","SI",0,6,1.2146850491960799E-2,12,"",null,"SK_AQT_3.2",5.7124220000000003E-2,5.4431790299999998E-2,5.4740717299999998E-2,5.4058744800000003E-2,5.2116872000000002E-2,5.2085656299999998E-2,4.9590250199999998E-2,4.7894181100000002E-2,4.5948490100000003E-2,4.2466506600000002E-2,4.0830730599999997E-2,3.7925395600000002E-2,3.5828318999999997E-2,3.37996162E-2,3.2828240299999999E-2,3.0615595400000001E-2,2.9871790200000001E-2,2.8051175599999999E-2,2.7050950800000001E-2,2.6200595199999999E-2,2.6358515799999999E-2,2.5802813300000001E-2,2.5557189500000001E-2,2.4888298E-2,2.30874384E-2,2.15051297E-2]
["",null,null,null,null,null,null,null,null,null,null,null,null,null,null,null,null,null,null,null,"Cost of risk13",202012,392,"Cost of risk","IS",0,3,1.0765335677894E-2,13,"",null,"SK_AQT_31",1.44116418E-2,1.41289138E-2,1.46479534E-2,1.43049944E-2,1.3866049E-2,1.41194315E-2,1.3546476599999999E-2,1.3502591600000001E-2,1.26655654E-2,1.15099841E-2,1.18183605E-2,1.1152025499999999E-2,1.06323732E-2,1.00321844E-2,6.5702864E-3,6.2353549000000001E-3,5.8878814999999999E-3,5.4221358999999997E-3,5.4670791999999998E-3,5.4527033000000003E-3,5.4382123000000001E-3,5.6061977000000001E-3,5.7725403000000002E-3,5.2305345E-3,4.6315130999999999E-3,4.5726986000000002E-3]
["",null,null,null,null,null,null,null,null,null,null,null,null,null,null,null,null,null,null,null,"Cost of risk14",202012,392,"Cost of risk","PT",0,8,1.0579013574019599E-2,14,"",null,"SK_AQT_41.2",0.54376785650000004,0.54173088089999999,0.53765025180000003,0.54298383130000005,0.55287254100000005,0.54084828039999999,0.55023248359999999,0.53231143910000001,0.54053552589999998,0.54995364950000003,0.55930835450000005,0.56765541509999995,0.59761708700000005,0.59846026829999999,0.61368448229999994,0.63348486579999996,0.64469548489999995,0.64809087659999998,0.64279959409999998,0.63583890330000004,0.63743582929999998,0.62031768939999998,0.61114273119999996,0.62540424770000003,0.64644367940000003,0.62160483040000003]
["",null,null,null,null,null,null,null,null,null,null,null,null,null,null,null,null,null,null,null,"Cost of risk15",202012,392,"Cost of risk","IT",0,16,9.4807008670513594E-3,15,"",null,"SK_AQT_42.2",2.16532961E-2,2.3392945500000002E-2,2.4474333399999999E-2,2.1245015799999999E-2,2.12813944E-2,2.2852531999999998E-2,2.1710922399999999E-2,2.0705327400000001E-2,2.1785715800000001E-2,1.9641130999999999E-2,1.8047760699999998E-2,1.61569175E-2,1.53182596E-2,1.44641527E-2,1.42209239E-2,1.34383705E-2,1.18543485E-2,1.18361953E-2,1.13152775E-2,1.0842916500000001E-2,1.0836375699999999E-2,1.00541869E-2,9.9979791999999998E-3,9.8475565000000001E-3,9.0357475E-3,1.05597192E-2]
["",null,null,null,null,null,null,null,null,null,null,null,null,null,null,null,null,null,null,null,"Cost of risk16",202012,392,"Cost of risk","DK",0,5,8.4543808592658296E-3,16,"",null,"SK_FND_32",1.0293422299999999,1.0133952021999999,1.0017269738000001,1.0180605368,1.0452303421,1.0253519112,1.0355807764,1.0313759048,1.0519382823000001,1.0462149437999999,1.0686233412999999,1.0848747179,1.1069840097999999,1.1056895668,1.0925538154000001,1.1161285112999999,1.1382851925999999,1.1238859051000001,1.1416321733999999,1.1383220561,1.1412174075999999,1.1162492864,1.1306444047999999,1.0957914961999999,1.0905591654,1.0535528324000001]
["",null,null,null,null,null,null,null,null,null,null,null,null,null,null,null,null,null,null,null,"Cost of risk17",202012,392,"Cost of risk","AT",0,11,7.38780422680435E-3,17,"",null,"SK_FND_33",".",0.12929916859999999,0.12716022769999999,0.13550180949999999,0.14019753060000001,0.13294548149999999,0.15090940450000001,0.1370620994,0.13520662789999999,0.13469514169999999,0.13698143630000001,0.14068400019999999,0.14157899909999999,0.13694053279999999,0.13850630080000001,0.12687336360000001,0.1210566417,0.1204202742,0.1303872982,0.15104416230000001,0.15055913830000001,0.14696051709999999,0.1427585029,0.1712454719,0.1717894787,0.17182238990000001]
["",null,null,null,null,null,null,null,null,null,null,null,null,null,null,null,null,null,null,null,"Cost of risk18",202012,392,"Cost of risk","SK",0,3,6.7099939405827801E-3,18,"",null,"SK_LIQ_17",".",".",".",".",".",".",".",".",1.9047922274,2.0110985327000002,2.1016279884000002,2.0002653221000002,1.8369158114999999,1.9549055725,1.8327665541,1.5581860615000001,1.5939385800000001,1.6099472896,1.5391085083,1.6414302042,1.4777845878,1.4971823894,1.4443016518,1.5518611920000001,1.6332605938,1.8409636379000001]
["",null,null,null,null,null,null,null,null,null,null,null,null,null,null,null,null,null,null,null,"Cost of risk19",202012,392,"Cost of risk","NO",0,4,6.2114685402966004E-3,19,"",null,"SK_PFT_21",0.12503664210000001,0.119472282,0.125986031,0.13662763789999999,0.1364931207,0.12137953460000001,0.1056317412,0.1540414225,0.13620634440000001,0.1228611602,0.1099532949,0.125592499,0.1214180556,0.1127483849,0.1270500198,0.121449058,0.1203702394,0.11021506220000001,0.10702833019999999,0.1023427118,0.1016016388,9.96350919E-2,5.7385044400000002E-2,4.3534140700000001E-2,5.9712914200000002E-2,6.3553577700000002E-2]
["",null,null,null,null,null,null,null,null,null,null,null,null,null,null,null,null,null,null,null,"Cost of risk20",202012,392,"Cost of risk","NL",0,6,5.50462706397501E-3,20,"",null,"SK_PFT_23",0.47899984340000001,0.47749766430000001,0.47044835750000003,0.45899416850000002,0.4612766646,0.48245292989999999,0.52841775619999998,0.46067330400000001,0.47608369610000001,0.49294530759999999,0.55003816559999996,0.51706055240000004,0.51533213850000004,0.52994100099999997,0.52947940260000004,0.5130972775,0.51198263820000001,0.51745329120000005,0.56129685569999999,0.55696934060000003,0.55140706910000004,0.54643178309999996,0.63885335610000005,0.65296653410000005,0.6014305445,0.57728966609999999]
["",null,null,null,null,null,null,null,null,null,null,null,null,null,null,null,null,null,null,null,"Cost of risk21",202012,392,"Cost of risk","CZ",0,3,5.4533001085149101E-3,21,"",null,"SK_PFT_24",1.3231368E-2,1.2923092299999999E-2,1.3618396600000001E-2,1.42849511E-2,1.44027996E-2,1.3033570600000001E-2,1.1179077799999999E-2,1.5916899599999999E-2,1.4121364500000001E-2,1.2738806599999999E-2,1.0995298299999999E-2,1.21599004E-2,1.18198852E-2,1.10229961E-2,1.16384386E-2,1.10599828E-2,1.11866629E-2,1.01821664E-2,9.6044440000000002E-3,8.9865618000000008E-3,9.0115718999999993E-3,8.8733134000000009E-3,5.1285293999999999E-3,3.8298898999999998E-3,5.2497133999999997E-3,5.5677486999999998E-3]
["",null,null,null,null,null,null,null,null,null,null,null,null,null,null,null,null,null,null,null,"Cost of risk22",202012,392,"Cost of risk","FR",0,13,5.4427648179390499E-3,22,"",null,"SK_PFT_25",0.80018276659999998,0.78485983699999995,0.7597524188,0.75319781490000004,0.7603070421,0.77357219020000001,0.79623521850000001,0.70201342769999997,0.72945965710000005,0.73725221809999997,0.77965197389999996,0.74393506509999996,0.75173254609999995,0.75307962210000001,0.72005946300000001,0.73506956400000001,0.74177802270000004,0.74462926490000003,0.79023800789999998,0.79287828670000005,0.77761459970000002,0.75026743309999999,0.859760513,0.70177164479999998,0.6960968045,0.68592777849999997]
["",null,null,null,null,null,null,null,null,null,null,null,null,null,null,null,null,null,null,null,"Cost of risk23",202012,392,"Cost of risk","BE",0,8,5.0395469714108604E-3,23,"",null,"SK_PFT_26",0.23423711550000001,0.2312161771,0.25365578080000001,0.25104551679999998,0.24620806649999999,0.24513146390000001,0.24088532949999999,0.220174961,0.22430842449999999,0.22656922669999999,0.2435090362,0.2375312473,0.2386007091,0.2413062654,0.2401715955,0.25198966909999998,0.26060971100000002,0.26284495990000001,0.27431728950000001,0.27930850019999998,0.27996754419999997,0.27973695240000002,0.32666099329999998,0.2688809513,0.27231128910000002,0.27851051989999998]
["",null,null,null,null,null,null,null,null,null,null,null,null,null,null,null,null,null,null,null,"Cost of risk24",202012,392,"Cost of risk","DE",0,23,4.7118283973953696E-3,24,"",null,"SK_PFT_29",1.38420292E-2,1.14236502E-2,7.4411827999999996E-3,1.5618272799999999E-2,1.32070013E-2,1.2331610200000001E-2,2.4313761400000002E-2,2.1654017800000001E-2,1.2713433099999999E-2,1.19798241E-2,2.4899350600000002E-2,-1.5116477E-2,-2.0819236000000001E-2,-3.3844449999999998E-2,2.0660953199999998E-2,1.57523691E-2,1.3956294399999999E-2,1.2465142E-2,-4.1768730000000002E-3,-2.5958280000000001E-3,-2.58888E-3,5.5706884E-3,1.09343212E-2,1.9296296399999999E-2,1.58523611E-2,1.92690607E-2]
["",null,null,null,null,null,null,null,null,null,null,null,null,null,null,null,null,null,null,null,"Cost of risk25",202012,392,"Cost of risk","FI",0,7,3.2225897192805801E-3,25,"",null,"SK_PFT_41",3.5786712200000001E-2,3.5761786099999998E-2,3.4447896700000001E-2,3.40899536E-2,3.4062612899999997E-2,3.3477932199999998E-2,3.1404843000000002E-2,3.0597987100000001E-2,3.03683446E-2,2.9962992800000001E-2,2.7500870100000002E-2,2.7035419000000002E-2,2.69855037E-2,2.6776849700000001E-2,2.4968021300000001E-2,2.4842061499999998E-2,2.4855911800000002E-2,2.4598881999999999E-2,2.30781379E-2,2.2846831299999999E-2,2.2663060499999998E-2,2.22522793E-2,2.09294932E-2,2.0339958299999999E-2,2.00197012E-2,1.9671930599999998E-2]
["",null,null,null,null,null,null,null,null,null,null,null,null,null,null,null,null,null,null,null,"Cost of risk26",202012,392,"Cost of risk","EE",0,4,3.1328712405017702E-3,26,"",null,"SK_PFT_43",".",".",".",".",".",".",".",".",".",".",".",".",".",".",7.7733300999999998E-3,6.9455474E-3,7.8332603000000004E-3,8.7348518999999999E-3,7.7503373E-3,6.6214656000000002E-3,6.0123946000000001E-3,5.1204603E-3,6.5893035999999997E-3,7.7881920000000002E-3,7.3282190000000004E-3,6.7099938999999999E-3]
["",null,null,null,null,null,null,null,null,null,null,null,null,null,null,null,null,null,null,null,"Cost of risk27",202012,392,"Cost of risk","LU",0,11,2.7973516708126602E-3,27,"",null,"SK_SVC_1",0.16460016350000001,0.16277990489999999,0.16438699209999999,0.16594660189999999,0.16316244390000001,0.16800049489999999,0.1662505587,0.1650259858,0.16541149080000001,0.16554755130000001,0.16473328910000001,0.1611729153,0.15977400380000001,0.1587323433,0.15624639309999999,0.1532094779,0.15829750510000001,0.15729334580000001,0.16140252369999999,0.16337890329999999,0.15954575900000001,0.15763491739999999,0.1676162373,0.1754257951,0.1750039075,0.17600493880000001]
["",null,null,null,null,null,null,null,null,null,null,null,null,null,null,null,null,null,null,null,"Cost of risk28",202012,392,"Cost of risk","LT",0,4,2.4746312186463399E-3,28,"",null,"SK_SVC_12",".",".",".",".",".",".",".",".",7.6911105100000002E-2,7.5855664200000006E-2,7.6770283499999994E-2,7.5135500399999999E-2,7.3847358900000007E-2,7.2900828900000006E-2,7.2477184400000005E-2,7.1936260200000005E-2,7.2983427599999998E-2,7.1169926800000005E-2,7.2573795499999996E-2,7.2512274400000007E-2,7.1928374200000006E-2,6.9901906200000002E-2,7.4017339799999998E-2,7.3859717599999999E-2,7.2849206999999999E-2,7.2732725999999998E-2]
["",null,null,null,null,null,null,null,null,null,null,null,null,null,null,null,null,null,null,null,"Cost of risk29",202012,392,"Cost of risk","SE",0,8,2.1117509897795798E-3,29,"",null,"SK_SVC_13",".",".",".",".",".",".",".",".",7.6892652800000003E-2,7.5844281099999994E-2,7.6760376399999997E-2,7.5119565900000004E-2,7.3848430800000003E-2,7.2911325999999999E-2,7.2426909900000003E-2,7.1937003400000005E-2,7.2995985499999999E-2,7.1169814799999995E-2,7.2573813700000003E-2,7.2512274400000007E-2,7.1926637900000007E-2,6.99009186E-2,7.4602262500000002E-2,7.4423084700000003E-2,7.3406795699999999E-2,7.3277632199999998E-2]
["",null,null,null,null,null,null,null,null,null,null,null,null,null,null,null,null,null,null,null,"Cost of risk99",202012,392,"Cost of risk","EU",0,116,7.4793606590706201E-3,99,"",null,"SK_SVC_2",0.1769566119,0.1822036276,0.183230702,0.185299724,0.181470838,0.1856862104,0.18309312229999999,0.1817279037,0.18183674229999999,0.19177209519999999,0.1897821697,0.18579903519999999,0.18402313880000001,0.18270256090000001,0.179643416,0.1757257656,0.17657853949999999,0.1761601095,0.17977878750000001,0.18166909340000001,0.1773366005,0.17449866310000001,0.18427689729999999,0.1927489033,0.19200509569999999,0.19291552579999999]
["",null,null,null,null,null,null,null,null,null,null,null,null,null,null,null,null,null,null,null,{"$f":"CONCATENATE(X683,AC683)","v":"Cost of risk100"},202012,392,"Cost of risk","GB",0,26,7.8420220534329999E-3,100,"",null,"SK_SVC_29",0.17012149369999999,0.16937166819999999,0.16442727679999999,0.165975554,0.1631996983,0.16021483919999999,0.15875121249999999,0.15752020529999999,0.1578551409,0.15798468060000001,0.157489773,0.1540845042,0.15271088120000001,0.15174310860000001,0.14778774380000001,0.14504574610000001,0.14557062840000001,0.14462259860000001,0.14901597680000001,0.1511909021,0.14764331780000001,0.14574517479999999,0.1497168592,0.1573425849,0.1568995624,0.15818219859999999]
[null,null,null,null,null,null,null,null,null,null,null,null,null,null,null,null,null,null,null,null,null,null,null,null,null,null,null,null,null,null,null,"SK_SVC_3",0.16460016350000001,0.16277990489999999,0.16438699209999999,0.16594660189999999,0.16316244390000001,0.16017304060000001,0.15870417340000001,0.15746226720000001,0.1578121391,0.1579577948,0.15746674359999999,0.1540475385,0.1527133852,0.1517677583,0.14944281440000001,0.14662737549999999,0.14728959320000001,0.14630948269999999,0.15051683799999999,0.152655651,0.14907532079999999,0.14717264420000001,0.150888455,0.15851876979999999,0.15807891669999999,0.15934125120000001]

{"sheet":"Data Annex","index":20,"n_rows":5028,"n_cols":40,"rows_kept":2250,"cut":true,"hidden":false,"merged":[],"bounds":{"rows_first":1000,"rows_last":250,"rows_between":1000,"halvings":1}}
["Statistical annex tables conten:",null,null,null,null,null,null,null,null,null,"lookup","lbl","NSA","_NAME_",201412,201503,201506,201509,201512,201603,201606,201609,201612,201703,201706,201709,201712,201803,201806,201809,201812,201903,201906,201909,201912,202003,202006,202009,202012]
["SA Assets ","T01_2","Equity instruments","RDB_2",null,1,null,null,null,null,"T01_1|AT","T01_1","AT","waver",4.2391084400000001E-2,4.3766378100000003E-2,5.1577432499999999E-2,5.8128315899999998E-2,6.7524563699999998E-2,6.4117333999999998E-2,6.3732863799999998E-2,6.6796410000000001E-2,8.8858600400000001E-2,0.1026286325,0.11059080490000001,9.9933914400000004E-2,9.3864697499999997E-2,0.10582730799999999,9.0833590399999997E-2,8.4815976400000007E-2,9.1989983999999997E-2,9.3353730199999999E-2,8.7307377800000002E-2,8.2694676800000005E-2,8.5031676700000003E-2,0.1111763637,0.13354626820000001,0.15570561490000001,0.17661627320000001,0.1548956813]
["SA Assets ","T01_3","Debt securities","RDB_3",null,1,null,null,null,null,"T01_1|BE","T01_1","BE","waver",4.3530892299999999E-2,5.35351664E-2,4.9457141000000003E-2,5.1326353300000002E-2,5.2811209999999997E-2,4.9396773099999999E-2,4.4548541400000002E-2,6.5212854200000003E-2,6.4937837100000007E-2,8.9070791400000002E-2,0.11091750979999999,0.1133914946,8.0758566099999998E-2,0.11346057280000001,0.1132821873,0.1183056482,6.0580486599999997E-2,9.0341290800000001E-2,8.0589889299999995E-2,7.8226249100000006E-2,6.0934037000000003E-2,9.2853227299999994E-2,0.12743061459999999,0.14336311139999999,0.1548956813,0.20416821490000001]
["SA Assets ","T01_4","Loans and advances","RDB_4",null,1,null,null,null,null,"T01_1|BG","T01_1","BG","waver",0.1097285965,0.14488085540000001,0.1570301915,0.17878459499999999,0.2083575782,0.18868127579999999,0.1747430062,0.1913985108,0.21243386440000001,0.214821069,0.17217739400000001,0.1860415849,0.17489937759999999,0.14648217629999999,0.16382904979999999,0.1504241758,0.1692748888,0.16549930169999999,0.14497517770000001,0.14404946430000001,0.12230099949999999,0.16037413619999999,0.17472975139999999,0.18337160420000001,0.20416821490000001,0.2659383749]
["SA Assets ","T01_5","Derivatives","RDB_5",null,1,null,null,null,null,"T01_1|CY","T01_1","CY","waver",0.10516385170000001,0.144746814,0.15279363609999999,0.1652361661,0.1751245082,0.17295776979999999,0.18377256850000001,0.18200931140000001,0.1943346973,0.1883683135,0.1993808292,0.2150495989,0.2323290435,0.2050092694,0.2010667652,"n.a.","n.a.",0.2293315272,0.25646351299999998,0.25247253710000001,0.2811666551,0.2460876273,0.24031109519999999,0.2433024396,0.2659383749,2.2068969399999999E-2]
["SA Assets ","T01_6","Other assets","RDB_6",null,1,null,null,null,null,"T01_1|CZ","T01_1","CZ","waver",0.1056057057,0.1015040252,9.5813721899999996E-2,0.112473138,0.1284867052,0.1212100508,0.1071264604,0.11138423109999999,0.1134393749,0.1293099194,0.1838560494,0.14781010880000001,0.102198735,5.0842034000000001E-2,4.71624577E-2,1.50191501E-2,3.3720860700000001E-2,2.30662612E-2,2.8807837999999999E-2,2.8781339900000001E-2,2.5902392999999999E-2,4.3011830500000001E-2,2.5620936899999999E-2,2.9451987299999999E-2,2.2068969399999999E-2,0.13793735330000001]
["SA Assets ","T02_1","Total Assets","AQT_31",18,null,1,null,null,null,"T01_1|DE","T01_1","DE","waver",2.0522703400000002E-2,2.3553923500000001E-2,3.3598373600000002E-2,3.2637902599999997E-2,4.8173356200000003E-2,5.32743257E-2,5.7699487299999998E-2,6.0847533199999998E-2,8.1121443500000001E-2,9.9429985200000001E-2,0.1115085505,0.1142247448,0.1169587513,0.1248143436,0.12561275760000001,0.12022065160000001,0.112056821,0.1236930295,0.1126299685,0.1095909835,9.9729213900000002E-2,0.1039789879,0.1388390524,0.1515821735,0.13793735330000001,7.0772514100000003E-2]
["SA Assets ","T02_2",null,"AQT_22.3",null,1,null,null,null,null,"T01_1|DK","T01_1","DK","waver",2.24357676E-2,3.1670735700000001E-2,3.7518472099999998E-2,3.3390110200000003E-2,2.6325362200000001E-2,3.0780605700000001E-2,4.1188508499999998E-2,3.2198833900000001E-2,2.8359621099999999E-2,5.6267554400000003E-2,6.3552361799999998E-2,6.0043949100000001E-2,6.5607185799999995E-2,6.0929085000000001E-2,4.4716451599999998E-2,4.7895248100000003E-2,2.4277376100000001E-2,3.1536689499999999E-2,3.5637011000000003E-2,2.9819212599999999E-2,3.0279251199999999E-2,3.8345666200000003E-2,4.74422283E-2,5.1230676199999998E-2,7.0772514100000003E-2,0.28128799209999999]
["SA Assets ","T02_3",null,"LIQ_13",null,1,null,null,null,null,"T01_1|EE","T01_1","EE","waver","n.a.","n.a.","n.a.","n.a.","n.a.",0.2406381074,0.23477227610000001,0.2385295124,0.23464014329999999,0.23773297039999999,0.21558308470000001,0.2199263005,0.22333310619999999,0.2015501173,0.2134993184,0.2128457278,0.22258245409999999,0.19411431800000001,0.1995098438,0.2105742632,0.2192330488,0.22453501049999999,0.2346068731,0.25307435880000001,0.28128799209999999,0.10206036860000001]
["SA Assets ","T03_1","Total Loans","AQT_3.2",null,null,1,null,null,null,"T01_1|ES","T01_1","ES","waver",3.4191654600000003E-2,3.3342853899999997E-2,3.6978390799999997E-2,3.6795270999999997E-2,4.1943076699999998E-2,3.5967326500000001E-2,3.4751502699999999E-2,3.50987216E-2,4.77181775E-2,4.3793326600000002E-2,5.0236693800000003E-2,6.1724232900000002E-2,7.0002152999999998E-2,6.2709571899999997E-2,6.4555277199999997E-2,6.8125168200000003E-2,7.3912937400000003E-2,6.7517712300000005E-2,6.3510174099999997E-2,6.0357550099999997E-2,6.4518743000000003E-2,7.3079991400000002E-2,9.3951975699999996E-2,0.10142057979999999,0.10206036860000001,0.1253869255]
["SA Liabilities","T04_1","Subordinated financial liabilities","FND_25",null,null,null,null,null,null,"T01_1|EU","T01_1","EU","waver",4.49990033E-2,4.6352127700000002E-2,5.0673923400000001E-2,5.0775898299999997E-2,5.4357167200000001E-2,5.6571380800000001E-2,5.8648042300000001E-2,6.1508552399999999E-2,6.6825371499999994E-2,8.1658121900000005E-2,8.4591161799999995E-2,8.6458316800000004E-2,8.6719368199999994E-2,8.7773920599999999E-2,8.8621938400000003E-2,8.8906381899999998E-2,8.4719290500000002E-2,8.57451714E-2,8.1996762400000006E-2,7.8672504599999998E-2,7.9570319E-2,8.7910976900000007E-2,0.1108306879,0.1215542111,0.1253869255,9.3123416700000003E-2]
["SA Liabilities","T04_2","Debt securities (senior unsecured)                ---> ","sum of numerator (FND_28 +FND 29)/numerator FND_9",null,1,null,null,null,null,"T01_1|FI","T01_1","FI","waver",8.0657631600000002E-2,8.3461881900000007E-2,0.11389054630000001,0.11646044010000001,0.1198744569,0.13910291829999999,0.13236269419999999,0.1427388101,0.1131087615,0.10305256040000001,9.3516593600000003E-2,9.1947885100000001E-2,0.1216970009,0.1054347932,0.1231102392,0.1000753546,9.4304561699999997E-2,0.1000280568,8.6598879000000004E-2,7.3076324999999998E-2,8.6790604399999999E-2,8.5891943200000001E-2,0.10794139379999999,0.1127537765,9.3123416700000003E-2,0.1278050147]
["SA Liabilities","T04_3","Debt securities (secured)                            ---> ","FND_9",null,1,null,null,null,null,"T01_1|FR","T01_1","FR","waver",5.7097768700000003E-2,5.0001195499999998E-2,5.5392014599999997E-2,5.7241083800000002E-2,6.33285497E-2,6.4612263200000006E-2,6.6032648999999999E-2,6.70975563E-2,7.2595092299999997E-2,8.5594075199999994E-2,8.9334163800000005E-2,8.4435104900000002E-2,8.5502347300000003E-2,8.2404040900000003E-2,7.89799484E-2,8.0485684399999993E-2,7.6780091999999994E-2,7.7517739200000005E-2,7.7434320599999995E-2,7.5558163499999997E-2,8.2603678099999994E-2,9.0914861799999996E-2,0.1178318255,0.12634133350000001,0.1278050147,0.1211906604]
["SA Liabilities","T04_4","Deposits from credit institutions","FND_10",null,1,null,null,null,null,"T01_1|GB","T01_1","GB","waver",6.0967753999999999E-2,5.9427829699999997E-2,6.3457886899999996E-2,5.8203214400000002E-2,6.5866096799999996E-2,6.3772174099999995E-2,6.8167068499999997E-2,7.3797273499999996E-2,8.4082292700000005E-2,9.4278200600000001E-2,9.3696926799999997E-2,9.7745406899999998E-2,0.1038529071,9.9395529999999996E-2,0.10298550770000001,0.10107652020000001,9.87256205E-2,9.32945196E-2,9.1882559200000005E-2,8.3492016399999994E-2,8.8212582900000003E-2,8.4856525200000005E-2,0.1064568241,0.1200435418,0.1211906604,0.1262274058]
["SA Liabilities","T04_5","Customer deposits","FND_18",null,1,null,null,null,null,"T01_1|GR","T01_1","GR","waver",3.9083430600000003E-2,4.6037327599999997E-2,4.29112481E-2,4.1677920899999998E-2,3.3726718699999998E-2,3.1242203600000001E-2,3.6539794E-2,3.5391459700000003E-2,3.3001669800000001E-2,3.2170990400000002E-2,3.2268330300000002E-2,3.4026453999999998E-2,3.5423017100000002E-2,4.7193361199999999E-2,4.8357548100000002E-2,5.4619133700000003E-2,6.0638346099999997E-2,4.6514537600000003E-2,5.4369875999999998E-2,5.6175391700000001E-2,7.0670128200000001E-2,7.9497549000000001E-2,9.5909647299999998E-2,0.1052206413,0.1262274058,0.1821350417]
["SA Liabilities","T05_1","Total liabilities","FND_25",null,null,1,null,null,null,"T01_1|HR","T01_1","HR","waver",4.2624331799999998E-2,7.1114639800000004E-2,7.9449960900000005E-2,0.1017590738,8.7765116899999995E-2,9.0448440099999999E-2,9.3012645199999994E-2,9.8422577400000003E-2,0.10938840649999999,0.1049254825,0.1127016787,0.1076773613,0.134322989,0.1405605415,0.13141667209999999,0.12638840370000001,0.14277038459999999,0.14121580540000001,0.1406181691,0.14638405290000001,0.1493440492,0.15896954999999999,0.16201126669999999,0.15632601539999999,0.1821350417,9.8402487900000002E-2]
["SA RWA","T07_1","Credit risk capital requirements","SVC_4",null,1,null,null,null,null,"T01_1|HU","T01_1","HU","waver",5.0403577300000002E-2,6.8355505600000005E-2,5.1878006599999998E-2,6.7578180599999996E-2,6.5902107500000001E-2,6.0111499399999997E-2,7.9252054099999997E-2,7.2264096700000002E-2,8.8852705700000006E-2,8.9000152599999993E-2,8.2260238700000002E-2,9.0528610600000003E-2,9.5189832899999993E-2,0.1060169903,9.7190154000000001E-2,8.3349469699999998E-2,0.1045143972,0.1001455566,9.43737516E-2,8.9210188199999998E-2,0.1018911797,9.4867514200000003E-2,9.4813932099999998E-2,9.1964724999999997E-2,9.8402487900000002E-2,0.18772819460000001]
["SA RWA","T07_2","Securitisation capital requirements","SVC_6",null,1,null,null,null,null,"T01_1|IE","T01_1","IE","waver",4.1118264199999997E-2,4.3479111799999998E-2,4.4073275500000002E-2,4.0885979199999999E-2,4.8838761100000003E-2,6.6965575999999999E-2,6.8916478599999997E-2,7.0573593099999998E-2,9.6703001799999994E-2,9.1524919800000007E-2,8.9153663600000002E-2,9.1064126600000003E-2,0.1010137941,0.1137566753,0.1101463728,0.10726762149999999,0.107153438,0.10838339850000001,0.11883986990000001,0.11766618199999999,0.1441549265,0.1410943955,0.15570621740000001,0.18268654979999999,0.18772819460000001,7.4643901700000001E-2]
["SA RWA","T07_3","Market risk capital requirements","SVC_8",null,1,null,null,null,null,"T01_1|IS","T01_1","IS","waver",0,0,0,0,0,0,0,0,0,0,0,0,0.1137455272,0.1291265006,0.1293781467,0.12436295529999999,0.1091338198,0.1116413077,0.10417927320000001,0.1053156137,0.10125810740000001,0.10864822609999999,9.5572778100000005E-2,0.10350540229999999,7.4643901700000001E-2,0.1369508009]
["SA RWA","T07_4","Operational risk capital requirements","SVC_9",null,1,null,null,null,null,"T01_1|IT","T01_1","IT","waver",8.6126485000000003E-3,8.1692284000000007E-3,8.8278641000000008E-3,9.7683140999999998E-3,1.0964506000000001E-2,8.8774978000000001E-3,1.08491791E-2,1.22233207E-2,1.30532996E-2,2.13025305E-2,2.8186843100000001E-2,2.75581931E-2,3.6933275199999997E-2,3.2971122800000002E-2,4.3760139699999999E-2,4.8573540999999998E-2,4.9438846500000001E-2,5.1067490200000003E-2,4.8177174500000003E-2,4.8968009E-2,3.6487586199999998E-2,5.1691714800000003E-2,5.9325638600000001E-2,7.5732232100000005E-2,0.1369508009,0.3682813835]
["SA RWA","T08_1","NPL Ratio","AQT_3.2",null,1,null,null,null,null,"T01_1|LT","T01_1","LT","waver",0.15975082660000001,9.9421651200000002E-2,0.15820167060000001,0.17429810549999999,0.19114047109999999,0.18647087409999999,0.17975781490000001,0.1839885929,0.2127924192,0.21152642799999999,0.20606978179999999,0.24354740629999999,0.2445806673,0.209537221,0.20626133320000001,0.22539667990000001,0.2472608057,0.23608252809999999,0.23062692879999999,0.2300095559,0.2813683736,0.30488116380000002,0.33932824140000001,0.37969911849999999,0.3682813835,0.21121042039999999]
["SA RWA","T09_1","Coverage ratio","AQT_41.2",null,1,null,null,null,null,"T01_1|LU","T01_1","LU","waver",3.5656259500000002E-2,6.3359831300000002E-2,7.5916269499999994E-2,7.5066710100000003E-2,8.8970061700000005E-2,9.5660927600000001E-2,7.6850634500000001E-2,9.7323811900000001E-2,9.0795634299999997E-2,0.10562818309999999,0.12774985750000001,0.11942264180000001,0.1027946761,0.1242100233,0.14919875960000001,0.16310928650000001,0.1217062195,0.14743537979999999,0.14538807340000001,0.14406596820000001,0.1174144753,0.1596667168,0.16457370060000001,0.1663693923,0.21121042039999999,0.22575846350000001]
["SA PandL","T10_1","RoE\n( Return on Equity )","PFT_21",null,1,null,null,"annualised",null,"T01_1|LV","T01_1","LV","waver",0.2151160869,0.18488766479999999,0.22094376130000001,0.25317940370000003,0.25289869510000001,0.26015342289999999,0.22143723239999999,0.21922013160000001,0.21052850240000001,0.22869620039999999,0.23770574350000001,0.2257312618,0.24246138540000001,0.2674459777,0.26624619329999999,0.23812488949999999,0.26520891749999997,0.2477262546,0.2184414334,0.2354108885,0.25819534690000001,0.29998023959999998,0.27991429309999999,0.26037610719999998,0.22575846350000001,0.2385711502]
["SA PandL","T10_2","NoP / Asset \n(asset yield contribution)","PFT_17",null,1,null,null,"annualised",null,"T01_1|MT","T01_1","MT","waver","n.a.","n.a.","n.a.","n.a.",4.0919839899999998E-2,3.0154458499999998E-2,2.8673171800000001E-2,2.6247254300000002E-2,2.96135589E-2,3.73583782E-2,3.9333434100000002E-2,3.4870452199999999E-2,4.3741927899999998E-2,4.3083139800000003E-2,3.40325821E-2,3.3253206299999997E-2,3.5662083499999997E-2,0.19695714049999999,0.19933229190000001,0.2214678514,0.23406930200000001,0.21906201149999999,0.21259663619999999,0.2185057017,0.2385711502,0.13279043679999999]
["SA PandL","T10_3","Asset / Equity\n( Leverage contribution )","PFT_18",null,1,null,null,null,null,"T01_1|NL","T01_1","NL","waver",3.1902428900000002E-2,3.6647707799999998E-2,4.5892591500000003E-2,6.0826152600000002E-2,5.9767239E-2,6.18216527E-2,5.6755766499999999E-2,6.9162970800000001E-2,6.6166306300000005E-2,8.3657482000000005E-2,6.2883937200000004E-2,7.4336656299999998E-2,6.3778255699999994E-2,7.6923274E-2,7.2206022100000003E-2,8.5560546099999996E-2,8.0334266799999998E-2,8.7092501899999994E-2,7.8492355999999999E-2,8.4072252700000003E-2,7.33162272E-2,9.0885602100000004E-2,0.1212178169,0.14720272910000001,0.13279043679999999,9.3195534900000002E-2]
["SA PandL","T10_4","EbIT / NoP\n(Extraordinary contribution )","PFT_19",null,1,null,null,null,null,"T01_1|NO","T01_1","NO","waver",2.5654868800000001E-2,0.1027333877,5.7190993099999997E-2,6.3884956899999998E-2,1.4295987E-2,6.0454697000000002E-2,6.0291372199999999E-2,5.9712067700000003E-2,8.7642299199999996E-2,0.12713900359999999,9.7706081099999995E-2,0.1150250773,6.0298950599999998E-2,0.1072558636,0.134619198,0.11029012270000001,4.7288701599999997E-2,0.1038093152,0.126259921,0.1225401659,9.2712116100000005E-2,0.1136092744,9.5432540299999993E-2,0.1025233071,9.3195534900000002E-2,2.29375468E-2]
["SA PandL","T10_5","NP / EbIT\n(tax effect on the capital yield)","PFT_20",null,1,null,null,null,null,"T01_1|PL","T01_1","PL","waver",5.7944182400000002E-2,4.7917588099999998E-2,4.73446353E-2,3.7870640800000001E-2,5.7362031000000001E-2,5.0339268399999998E-2,4.92663375E-2,4.6824087899999998E-2,4.3844211799999998E-2,4.5666026300000002E-2,4.7661385799999997E-2,5.3422526900000003E-2,5.0031455500000002E-2,5.57437603E-2,4.4790224400000002E-2,5.60065384E-2,7.3852465800000003E-2,4.9748586999999997E-2,3.8303424099999997E-2,4.1880214499999999E-2,4.1236501100000003E-2,4.5410946100000002E-2,2.97432168E-2,1.8514889999999999E-2,2.29375468E-2,9.4612591999999995E-2]
["SA PandL","T11_1","RoE( Return on Equity ) Numerator","PFT_21",null,null,null,1,"annualised",null,"T01_1|PT","T01_1","PT","waver",3.7710129299999999E-2,3.5315955500000003E-2,3.7837053500000002E-2,3.4195754699999997E-2,3.9165432100000001E-2,3.4732397800000002E-2,3.5960067599999999E-2,3.2859820800000002E-2,2.9971951899999998E-2,3.68254056E-2,3.7164915600000001E-2,4.2809445199999997E-2,5.5211310999999999E-2,4.0033842200000003E-2,5.7042896400000001E-2,5.44848348E-2,5.57357354E-2,5.2139926099999997E-2,5.5327528100000002E-2,5.1443576999999997E-2,6.5938361400000006E-2,6.4009359900000007E-2,8.9722854000000005E-2,8.10230495E-2,9.4612591999999995E-2,0.16590659169999999]
["SA PandL","T12_1","RoE ( Return on Equity ) Denominator","PFT_21",null,null,1,null,null,null,"T01_1|RO","T01_1","RO","waver",0.14225475700000001,0.12800886419999999,0.12829658869999999,0.1150967896,0.16109082850000001,0.1288800222,0.1309564866,0.1290334222,0.14970846600000001,0.13613946099999999,0.13259834910000001,0.1194166155,0.158617017,0.14448874240000001,0.13737309689999999,0.13490762570000001,0.14524592950000001,0.13801661539999999,0.149350011,0.14352052360000001,0.1466553682,0.15956843640000001,0.15836544159999999,0.1481859405,0.16590659169999999,0.11018950819999999]
[null,null,null,null,null,null,null,null,null,null,"T01_1|SE","T01_1","SE","waver","n.a.","n.a.","n.a.","n.a.",6.6850843699999996E-2,0.1041391301,0.1074253736,0.1029866182,6.65322941E-2,0.121806028,0.12193055260000001,0.117168073,8.2009879499999994E-2,9.5265897599999996E-2,0.1040814704,0.1005150375,8.7900814699999996E-2,9.7575132499999995E-2,7.8169659799999999E-2,8.5080655500000005E-2,7.9872005300000007E-2,0.1245545398,0.13368666879999999,0.1305626164,0.11018950819999999,0.20372522600000001]
[null,null,null,null,null,null,null,null,null,null,"T01_1|SI","T01_1","SI","waver","#",7.8896444499999996E-2,8.91019381E-2,0.1083239907,9.4167431199999999E-2,9.2039016400000007E-2,9.68254484E-2,0.11384769209999999,0.11943642240000001,0.1357592436,0.1191605783,0.1059198368,0.1116476226,0.112326284,0.1062650795,0.10964315099999999,0.12230998680000001,0.12704029,0.1186533865,0.1208531352,0.1580452128,0.13679935509999999,0.1911769854,0.188408611,0.20372522600000001,7.8982477199999998E-2]
[null,null,null,null,null,null,null,null,null,null,"T01_1|SK","T01_1","SK","waver",3.7208574500000001E-2,2.9346058000000001E-2,2.77802176E-2,2.07522365E-2,4.73704811E-2,4.8525137000000003E-2,4.4964175600000003E-2,4.2762601599999998E-2,5.5497525700000001E-2,6.2788682900000004E-2,6.6978366499999997E-2,2.9188800000000001E-2,6.0110492799999998E-2,5.4731159600000003E-2,3.1307869600000003E-2,1.8081940800000001E-2,4.7268062200000002E-2,3.1600738500000003E-2,4.3694415700000003E-2,4.5873444800000003E-2,5.2559146000000001E-2,4.2707006499999998E-2,5.2286126500000002E-2,6.3152316900000005E-2,7.8982477199999998E-2,5.2577348000000003E-3]
[null,null,null,null,null,null,null,null,null,null,"T01_2|AT","T01_2","AT","waver",8.4273088999999995E-3,8.772106E-3,8.1331202999999994E-3,7.6803577999999999E-3,6.2688884000000004E-3,5.9306122999999997E-3,5.1554501999999999E-3,5.0561043999999998E-3,5.6529583000000001E-3,5.6860074E-3,5.4351983000000001E-3,5.5124314000000001E-3,5.5331373000000001E-3,3.8411671E-3,3.8056324999999999E-3,3.8303694999999999E-3,3.5484252000000001E-3,3.7669373999999999E-3,3.8179205E-3,3.5660900000000001E-3,3.4843315E-3,2.7082215E-3,2.7824716000000001E-3,2.7046616999999999E-3,5.2577348000000003E-3,2.1127743000000001E-3]
[null,null,null,null,null,null,null,null,null,null,"T01_2|BE","T01_2","BE","waver",6.7690182E-3,6.7492007000000001E-3,7.0657432000000003E-3,7.0826895000000003E-3,7.3739034000000004E-3,7.1289771000000004E-3,6.6836281000000001E-3,6.8209296999999997E-3,4.4188402999999999E-3,4.3938911000000001E-3,4.0991884999999999E-3,3.8937781000000001E-3,4.4320245999999999E-3,4.4590979000000003E-3,3.8615358E-3,4.5037515999999996E-3,4.5630371999999999E-3,3.7167192999999999E-3,3.7757427000000001E-3,3.5825663999999998E-3,3.7499643999999999E-3,1.9791345999999998E-3,2.0317277999999999E-3,1.9819839E-3,2.1127743000000001E-3,1.3909790999999999E-3]
[null,null,null,null,null,null,null,null,null,null,"T01_2|BG","T01_2","BG","waver",8.5310330000000001E-4,8.2747970000000002E-4,8.1350840000000003E-4,7.8677140000000005E-4,1.5001839000000001E-3,1.5124648999999999E-3,1.0910269E-3,1.1964564E-3,1.1721149E-3,1.2114546E-3,1.2557963999999999E-3,1.2594644E-3,1.3306863999999999E-3,1.3615435E-3,1.5140627000000001E-3,1.5222854000000001E-3,1.4568891999999999E-3,1.5471192000000001E-3,1.5020245E-3,1.5024581E-3,1.5491210000000001E-3,1.4667243999999999E-3,1.5255813999999999E-3,1.4783324000000001E-3,1.3909790999999999E-3,1.0826726E-3]
[null,null,null,null,null,null,null,null,null,null,"T01_2|CY","T01_2","CY","waver",1.2058746E-3,1.2383310000000001E-3,1.0866265E-3,1.093873E-3,2.4198716999999999E-3,2.4431156999999998E-3,1.4015448000000001E-3,1.4162024E-3,1.6241637999999999E-3,1.7161175E-3,1.5043865999999999E-3,1.5313586E-3,1.4973236E-3,1.0195619999999999E-3,8.0954710000000001E-4,"n.a.","n.a.",7.1179879999999998E-4,8.260416E-4,8.4692019999999999E-4,8.5570269999999998E-4,8.5417670000000002E-4,9.4598499999999999E-4,9.4743669999999998E-4,1.0826726E-3,6.523252E-4]
[null,null,null,null,null,null,null,null,null,null,"T01_2|CZ","T01_2","CZ","waver",1.3048413E-3,1.5262805E-3,1.6061071000000001E-3,1.8382347E-3,2.6914882999999998E-3,2.2913629999999998E-3,1.4266749E-3,1.5019937000000001E-3,1.2615440999999999E-3,9.0615409999999998E-4,9.0289739999999997E-4,9.963502999999999E-4,9.2403199999999998E-4,1.0595293999999999E-3,1.1134426000000001E-3,1.4050206000000001E-3,7.8867520000000003E-4,8.2506120000000005E-4,9.5354640000000002E-4,9.7452279999999997E-4,5.9528469999999998E-4,5.0848159999999996E-4,6.2794700000000001E-4,8.1915289999999995E-4,6.523252E-4,7.5918542000000004E-3]
[null,null,null,null,null,null,null,null,null,null,"T01_2|DE","T01_2","DE","waver",2.8444186999999999E-2,3.06005588E-2,3.3116665699999999E-2,2.8313104499999998E-2,3.0551706200000001E-2,2.54815691E-2,2.5521497899999999E-2,2.6605778E-2,2.7989365799999999E-2,2.9385638299999999E-2,2.9073197799999999E-2,2.8973085900000001E-2,3.0779919900000001E-2,2.4059393599999999E-2,2.3973243200000001E-2,2.3104482400000001E-2,1.8342838300000001E-2,1.9297574099999999E-2,1.8350789900000001E-2,1.0763458300000001E-2,9.1933950999999996E-3,6.7283457E-3,7.3411474999999999E-3,7.3065904999999997E-3,7.5918542000000004E-3,6.1405975999999996E-3]
[null,null,null,null,null,null,null,null,null,null,"T01_2|DK","T01_2","DK","waver",4.0313259000000004E-3,6.3599401999999998E-3,5.6447236999999997E-3,5.2155302000000004E-3,7.2505946999999998E-3,5.3340640999999999E-3,4.7420389000000004E-3,6.1731870999999997E-3,4.3333562999999997E-3,6.4803053000000001E-3,4.8585698000000004E-3,5.0061024999999999E-3,7.1848772999999998E-3,5.4687032999999998E-3,5.1133554999999997E-3,5.2166212000000003E-3,4.4149213000000001E-3,5.2769755000000003E-3,4.6536503000000002E-3,5.1834886999999998E-3,5.7879975999999998E-3,4.8469206000000004E-3,4.4925976999999999E-3,5.6848335E-3,6.1405975999999996E-3,3.5371270000000003E-4]
[null,null,null,null,null,null,null,null,null,null,"T01_2|EE","T01_2","EE","waver","n.a.","n.a.","n.a.","n.a.","n.a.",2.1322176999999999E-3,1.3465453999999999E-3,1.3689529E-3,1.4086763999999999E-3,1.2643131E-3,1.0041842E-3,1.0190361000000001E-3,1.0257889E-3,7.4061799999999996E-4,7.4281810000000005E-4,7.8387369999999995E-4,7.3590600000000004E-4,7.9953819999999999E-4,8.3915560000000005E-4,8.701154E-4,5.8518570000000002E-4,4.8168259999999997E-4,4.8398290000000002E-4,4.7711470000000002E-4,3.5371270000000003E-4,9.2669082999999996E-3]
[null,null,null,null,null,null,null,null,null,null,"T01_2|ES","T01_2","ES","waver",1.2766010600000001E-2,1.29540317E-2,1.3777496700000001E-2,1.19870692E-2,1.29170104E-2,1.1612098600000001E-2,1.1019798399999999E-2,1.14621732E-2,1.18089405E-2,1.20819228E-2,1.2541516000000001E-2,1.22358585E-2,1.3310897800000001E-2,1.2147981400000001E-2,1.15269584E-2,1.1764677100000001E-2,9.0474744999999995E-3,1.0033877E-2,9.4529922999999991E-3,9.9962977999999997E-3,1.08140415E-2,7.8738769E-3,7.2989544E-3,7.5441253999999998E-3,9.2669082999999996E-3,1.39528868E-2]
[null,null,null,null,null,null,null,null,null,null,"T01_2|EU","T01_2","EU","waver",2.2079673300000002E-2,2.4823543399999998E-2,2.3929129E-2,2.0263461699999999E-2,2.16786663E-2,1.8640480800000001E-2,1.7774224500000001E-2,1.9341480500000001E-2,2.0416482699999999E-2,2.4067375500000002E-2,2.3813404400000002E-2,2.4152126600000001E-2,2.4336634499999999E-2,2.1527959700000002E-2,2.04061891E-2,2.1362462700000001E-2,1.6388856E-2,1.90748442E-2,1.8757155000000001E-2,1.7216554799999999E-2,1.91041357E-2,1.0660962E-2,1.1716453700000001E-2,1.2284554899999999E-2,1.39528868E-2,7.2925821000000002E-3]
[null,null,null,null,null,null,null,null,null,null,"T01_2|FI","T01_2","FI","waver",5.1128307000000003E-3,4.9668808000000002E-3,4.8948856999999997E-3,4.2900398000000001E-3,5.2107174000000003E-3,4.0096662000000003E-3,2.8557645E-3,3.1806747999999999E-3,3.7012294E-3,1.1864966E-3,9.2733780000000003E-4,8.1232799999999997E-4,5.4140389999999996E-4,7.505748E-4,7.5100830000000005E-4,7.8230509999999999E-4,3.9290901999999997E-3,8.3871048999999993E-3,1.0299923799999999E-2,9.8984273999999997E-3,8.3126308999999995E-3,7.4372598999999998E-3,7.4864538E-3,7.7294564000000001E-3,7.2925821000000002E-3,2.6701976799999999E-2]
[null,null,null,null,null,null,null,null,null,null,"T01_2|FR","T01_2","FR","waver",3.3302559500000002E-2,4.00178645E-2,3.9039036899999997E-2,3.2654177800000003E-2,3.0879903199999999E-2,2.8344208499999999E-2,2.57542165E-2,2.8280455499999999E-2,2.9352633100000001E-2,3.6476446500000002E-2,3.5638671199999999E-2,3.7260338900000002E-2,3.2267091900000003E-2,3.1095514000000001E-2,2.9966182300000001E-2,3.2468941000000001E-2,2.21777703E-2,2.91259658E-2,2.7949381499999999E-2,2.6599775400000001E-2,2.84179388E-2,1.9132239299999999E-2,2.2387777599999999E-2,2.3388403299999999E-2,2.6701976799999999E-2,2.9790832199999999E-2]
[null,null,null,null,null,null,null,null,null,null,"T01_2|GB","T01_2","GB","waver",2.39067572E-2,2.61942995E-2,2.40858119E-2,1.9404652500000001E-2,2.5156057499999999E-2,1.9327898199999999E-2,1.8529121199999998E-2,2.2008068700000001E-2,2.7890435299999999E-2,3.3197530400000001E-2,3.3148054500000003E-2,3.3180397600000001E-2,3.7683034300000001E-2,3.1327033599999998E-2,2.82540903E-2,3.06459457E-2,2.4727281199999999E-2,2.70430093E-2,2.7130550199999999E-2,2.6059665100000001E-2,3.2822651199999997E-2,1.65040584E-2,2.1236625700000001E-2,2.3629491499999999E-2,2.9790832199999999E-2,2.7451093E-3]
[null,null,null,null,null,null,null,null,null,null,"T01_2|GR","T01_2","GR","waver",1.8568997E-3,1.9185395000000001E-3,1.9788047E-3,1.9274562E-3,2.5076094999999998E-3,2.2591067000000001E-3,2.2341792999999999E-3,2.4147849E-3,2.4237869000000001E-3,2.6539393999999998E-3,2.7651457999999999E-3,2.8923005000000002E-3,2.8253612999999999E-3,2.8787374999999999E-3,2.9931565E-3,3.1281658999999999E-3,3.407785E-3,2.9624502999999998E-3,3.2115439000000002E-3,3.1365854E-3,3.3267883999999999E-3,2.4219805E-3,2.4796423999999999E-3,2.3654053999999998E-3,2.7451093E-3,2.1375982000000002E-3]
[null,null,null,null,null,null,null,null,null,null,"T01_2|HR","T01_2","HR","waver",2.7455525999999998E-3,2.9485143999999999E-3,3.1375641999999999E-3,2.9500646999999999E-3,3.8385162999999998E-3,4.1084707000000002E-3,3.3444788E-3,4.1388539000000004E-3,2.9783738000000001E-3,2.7065588999999998E-3,3.1819047E-3,3.3546882999999999E-3,2.8266924000000001E-3,2.5865386E-3,2.5568084E-3,2.5654272E-3,2.4511729E-3,2.4915264000000001E-3,2.6286643999999999E-3,2.6550134E-3,2.8710476E-3,2.5783307E-3,2.5443063999999998E-3,2.6748941000000002E-3,2.1375982000000002E-3,3.2775489999999998E-3]
[null,null,null,null,null,null,null,null,null,null,"T01_2|HU","T01_2","HU","waver",7.2534566999999999E-3,7.2401870000000004E-3,7.9150417999999997E-3,7.2899054999999999E-3,8.3345881999999996E-3,8.9973798000000001E-3,8.4224968999999997E-3,8.3169451000000005E-3,9.0968069000000006E-3,1.02274466E-2,4.5891498000000001E-3,4.4281340000000002E-3,4.3012796000000001E-3,4.7340639E-3,4.5883657999999999E-3,4.6513780000000003E-3,4.3057013999999996E-3,4.3631234000000001E-3,4.5130732000000003E-3,4.2357881999999999E-3,3.8981265000000002E-3,3.8578432999999998E-3,3.1207755999999999E-3,3.2510036999999999E-3,3.2775489999999998E-3,1.5677390000000001E-3]
[null,null,null,null,null,null,null,null,null,null,"T01_2|IE","T01_2","IE","waver",1.4106721E-3,1.5750279E-3,1.6965210000000001E-3,1.7860367E-3,3.2599533E-3,2.9649154E-3,2.0097879000000002E-3,2.1915788999999999E-3,2.3792739000000002E-3,2.4362913999999999E-3,2.5598909999999999E-3,2.7574447000000002E-3,2.8696531999999999E-3,3.1664040999999999E-3,3.2708870000000001E-3,3.4524118000000001E-3,3.3259023E-3,3.6150952000000001E-3,3.6055171E-3,3.7477327E-3,3.8553928999999999E-3,1.9390191E-3,2.1386655999999999E-3,2.1132148999999999E-3,1.5677390000000001E-3,1.878399E-2]
[null,null,null,null,null,null,null,null,null,null,"T01_2|IS","T01_2","IS","waver",0,0,0,0,0,0,0,0,0,0,0,0,2.4346257900000001E-2,2.0661299300000002E-2,2.0742055400000001E-2,1.9267870199999999E-2,1.7531255200000002E-2,1.86956912E-2,1.9763835E-2,1.9851473599999999E-2,2.22529923E-2,1.6978291E-2,1.6897300600000002E-2,1.7305988899999999E-2,1.878399E-2,1.1609333600000001E-2]
[null,null,null,null,null,null,null,null,null,null,"T01_2|IT","T01_2","IT","waver",1.5057211100000001E-2,1.5722009799999999E-2,1.5626767900000001E-2,1.46607188E-2,1.50618621E-2,1.35290579E-2,1.3734512000000001E-2,1.42798018E-2,1.5066155899999999E-2,1.57613206E-2,1.54249065E-2,1.54966758E-2,1.5896668499999999E-2,1.53334691E-2,1.53381144E-2,1.40312431E-2,1.2357765200000001E-2,1.2848859299999999E-2,1.2849222299999999E-2,1.13949216E-2,1.2541160500000001E-2,9.6018948E-3,1.0510686E-2,1.0575665E-2,1.1609333600000001E-2,3.7481750000000001E-4]
[null,null,null,null,null,null,null,null,null,null,"T01_2|LT","T01_2","LT","waver",2.3305000000000001E-5,2.5622400000000001E-5,2.5363799999999999E-5,1.85158E-5,1.5472044999999999E-3,1.8134074999999999E-3,2.2853199999999999E-4,2.9904330000000002E-4,3.1376560000000002E-4,3.493565E-4,3.3914740000000001E-4,2.6563983E-3,3.3173939999999998E-4,3.4738830000000001E-4,3.7701279999999998E-4,4.9404509999999996E-4,6.0472830000000001E-4,6.9726740000000003E-4,7.7940500000000005E-4,7.8840650000000002E-4,7.5937240000000005E-4,6.7063300000000001E-4,6.6768800000000005E-4,7.1949980000000002E-4,3.7481750000000001E-4,3.8277678E-3]
[null,null,null,null,null,null,null,null,null,null,"T01_2|LU","T01_2","LU","waver",2.2416565400000001E-2,2.7593738199999999E-2,2.2402042300000001E-2,2.0392618000000001E-2,1.03237104E-2,8.9850933999999997E-3,8.0394001E-3,8.2805138999999996E-3,7.9766614999999992E-3,6.4004606000000004E-3,5.3246166000000001E-3,5.3467801999999998E-3,5.3652107000000003E-3,5.8524107000000004E-3,2.7829120999999998E-3,5.0834280999999997E-3,4.353694E-3,3.0773469999999998E-3,2.9614760999999998E-3,2.8396037999999998E-3,2.6500619999999999E-3,2.8205221999999999E-3,3.3836231000000001E-3,2.8607686999999999E-3,3.8277678E-3,2.6103023000000002E-3]
[null,null,null,null,null,null,null,null,null,null,"T01_2|LV","T01_2","LV","waver",2.5533219000000002E-3,2.2155071999999999E-3,1.5581531000000001E-3,1.6819921E-3,4.2287015000000002E-3,3.6680480000000001E-3,1.9229649E-3,2.0022716000000001E-3,2.5637416999999998E-3,1.7586684E-3,1.8240931E-3,2.0133858000000002E-3,2.7610054000000001E-3,1.7212385000000001E-3,3.4308156E-3,6.2463079999999999E-4,6.9071889999999998E-4,1.4128758999999999E-3,1.510915E-3,1.5079524E-3,1.5122342E-3,1.2982352000000001E-3,1.7555820000000001E-3,1.8817098999999999E-3,2.6103023000000002E-3,2.6208313999999998E-3]
[null,null,null,null,null,null,null,null,null,null,"T01_2|MT","T01_2","MT","waver","n.a.","n.a.","n.a.","n.a.",4.8516171000000004E-3,6.2519042E-3,4.6020258999999999E-3,4.4909121999999998E-3,4.5298837999999996E-3,4.0736167000000002E-3,3.76948E-3,3.653669E-3,3.5977828000000002E-3,3.3941968999999998E-3,3.4445232000000002E-3,3.3947932000000002E-3,2.5500583000000001E-3,2.3979968000000002E-3,2.6269821E-3,2.7483399000000001E-3,2.8293973000000001E-3,2.3596046000000002E-3,2.2282170999999998E-3,2.4711449000000001E-3,2.6208313999999998E-3,5.5382262999999999E-3]
[null,null,null,null,null,null,null,null,null,null,"T01_2|NL","T01_2","NL","waver",1.3091617E-2,1.36428038E-2,1.12731115E-2,8.8235802999999998E-3,1.03491872E-2,8.7820946999999996E-3,7.6736718000000002E-3,8.4969500999999992E-3,7.9046897999999997E-3,8.4358613999999995E-3,8.9494085000000004E-3,8.6786269999999995E-3,9.7395367000000007E-3,9.0951392999999991E-3,8.5380648E-3,8.0804931000000007E-3,7.0314438999999999E-3,6.9525469000000003E-3,6.7684705000000001E-3,5.871467E-3,6.2772593999999996E-3,4.3787553000000003E-3,4.0121990999999997E-3,4.6775921E-3,5.5382262999999999E-3,3.4450119999999999E-3]
[null,null,null,null,null,null,null,null,null,null,"T01_2|NO","T01_2","NO","waver",3.3832625999999999E-3,2.7697586E-3,2.8431473E-3,2.3337831999999999E-3,3.0853033999999999E-3,2.5483702E-3,1.8781907999999999E-3,1.8701861000000001E-3,3.2603929999999999E-3,3.2508443999999998E-3,2.9484528000000001E-3,3.2181563999999999E-3,3.5456173000000001E-3,3.2427694000000001E-3,3.6380032E-3,4.5231146999999998E-3,3.8789733000000001E-3,3.5379014000000001E-3,3.6125374E-3,3.4064947000000002E-3,4.1453593999999996E-3,2.5117043000000001E-3,2.9805464999999999E-3,2.9890729E-3,3.4450119999999999E-3,2.2716580000000002E-3]
[null,null,null,null,null,null,null,null,null,null,"T01_2|PL","T01_2","PL","waver",2.5146550999999998E-3,2.4697400999999998E-3,2.4278227999999999E-3,2.3960091000000002E-3,3.6877310000000001E-3,3.9303853999999999E-3,2.7461783999999999E-3,2.7861378E-3,2.5327126000000001E-3,2.6682104E-3,2.6493441000000001E-3,2.8155070000000001E-3,2.4770152E-3,2.8525651000000001E-3,2.5702021999999998E-3,2.5301162999999999E-3,2.0529147000000001E-3,2.1133863000000002E-3,2.1725587E-3,2.1138664E-3,2.3444992E-3,2.0869770999999999E-3,1.9685916999999998E-3,2.1461172E-3,2.2716580000000002E-3,1.29188463E-2]
[null,null,null,null,null,null,null,null,null,null,"T01_2|PT","T01_2","PT","waver",3.1252927E-2,3.1647478100000001E-2,2.91496334E-2,3.2638602599999997E-2,3.28307548E-2,3.2512738399999998E-2,3.1483596000000003E-2,3.1684895599999999E-2,2.9827589799999998E-2,2.9902316000000002E-2,2.7728157999999999E-2,2.7467184700000001E-2,2.6548958300000002E-2,2.10542048E-2,1.78316671E-2,1.7917585E-2,1.91805364E-2,1.8414650899999999E-2,1.7463004800000001E-2,1.68130643E-2,1.5875282899999999E-2,1.5217187199999999E-2,1.3654052999999999E-2,1.3373100400000001E-2,1.29188463E-2,1.5782649999999999E-3]
[null,null,null,null,null,null,null,null,null,null,"T01_2|RO","T01_2","RO","waver",2.0824141999999999E-3,2.0449735E-3,2.0009155E-3,1.8972381999999999E-3,3.7399066000000001E-3,3.6765546000000001E-3,2.1916736000000001E-3,2.1634427E-3,2.1764829999999999E-3,2.3690002000000001E-3,2.4431171999999999E-3,2.5243864000000001E-3,2.4970139000000001E-3,2.5589905999999999E-3,1.7958478E-3,1.9698822000000001E-3,1.5794341E-3,1.8738730000000001E-3,1.9451145999999999E-3,1.8531037000000001E-3,1.4023861999999999E-3,1.2385923000000001E-3,1.6135904E-3,1.7782167E-3,1.5782649999999999E-3,1.09127064E-2]
[null,null,null,null,null,null,null,null,null,null,"T01_2|SE","T01_2","SE","waver","n.a.","n.a.","n.a.","n.a.",1.2357496799999999E-2,1.20830426E-2,1.2618530899999999E-2,1.09650366E-2,8.2686241000000001E-3,1.3625219900000001E-2,1.1851104600000001E-2,1.24056194E-2,1.0584120799999999E-2,9.8404974999999999E-3,7.8867623000000008E-3,7.6154049E-3,7.2040465999999997E-3,8.0370805999999996E-3,9.6520232000000001E-3,9.2388903000000001E-3,1.0014802200000001E-2,6.9238627000000001E-3,6.1961812000000003E-3,8.5657487000000004E-3,1.09127064E-2,5.4221659000000004E-3]
[null,null,null,null,null,null,null,null,null,null,"T01_2|SI","T01_2","SI","waver",4.734462E-3,8.6375397000000003E-3,8.5975049000000005E-3,8.0596878999999993E-3,8.0010826000000007E-3,9.1346081000000003E-3,8.6017577000000005E-3,8.9172123999999992E-3,8.7186933999999997E-3,7.9505728999999994E-3,8.0194363000000001E-3,8.0098048000000008E-3,7.4648309000000003E-3,7.3624164000000002E-3,7.3728227E-3,7.1509403000000003E-3,6.8017829E-3,6.8475354000000002E-3,6.6461708999999997E-3,6.6154710000000004E-3,5.9942779999999996E-3,5.3499159999999997E-3,5.1909616999999998E-3,5.1596250000000001E-3,5.4221659000000004E-3,3.932405E-4]
[null,null,null,null,null,null,null,null,null,null,"T01_2|SK","T01_2","SK","waver",1.0598356000000001E-3,1.1018435999999999E-3,1.0744274999999999E-3,1.0248175999999999E-3,2.7184150000000001E-3,2.6005322000000001E-3,1.5484205E-3,1.3872712999999999E-3,1.4110351E-3,1.4634601E-3,1.4379893999999999E-3,1.5497841E-3,1.6489136999999999E-3,1.5874896000000001E-3,1.8062236E-3,1.9941413000000002E-3,1.7400937999999999E-3,2.3975198000000001E-3,2.4986738000000001E-3,2.8559954000000002E-3,2.8723221000000001E-3,9.5962230000000003E-4,9.9593839999999995E-4,1.1828949E-3,3.932405E-4,0.13431593580000001]
[null,null,null,null,null,null,null,null,null,null,"T01_3|AT","T01_3","AT","waver",0.16803260349999999,0.1686637473,0.16975266889999999,0.1666034243,0.1660357341,0.165126045,0.14713302079999999,0.14373683679999999,0.1750228472,0.1669588014,0.16459505360000001,0.15879601099999999,0.15935549239999999,0.15340694590000001,0.1492350969,0.15139212969999999,0.14921555810000001,0.1451274746,0.14461324810000001,0.14452352260000001,0.14263707980000001,0.14284667719999999,0.14570061440000001,0.13881621890000001,0.13431593580000001,0.1414386836]
[null,null,null,null,null,null,null,null,null,null,"T01_3|BE","T01_3","BE","waver",0.2378312474,0.2208852016,0.2269717282,0.22404765169999999,0.22615202470000001,0.21807637939999999,0.21440169040000001,0.20786616190000001,0.20387784170000001,0.1972717856,0.18867720830000001,0.1849990104,0.1797051013,0.17484249660000001,0.16925194569999999,0.16695002049999999,0.16951709619999999,0.14922410429999999,0.14652679900000001,0.1435309729,0.14403902830000001,0.1410110151,0.14823431749999999,0.1448980044,0.1414386836,0.15186270860000001]
[null,null,null,null,null,null,null,null,null,null,"T01_3|BG","T01_3","BG","waver",7.8071064400000001E-2,0.1009596358,0.1025596171,0.10156696630000001,9.8654259600000002E-2,0.1131910563,0.1137059126,0.11610378909999999,0.12603809830000001,0.12622903790000001,0.1337834943,0.12451712299999999,0.1483270578,0.14416091510000001,0.14296530909999999,0.1389420998,0.1314519556,0.13387691030000001,0.13519227859999999,0.13720659029999999,0.13989165479999999,0.15058725710000001,0.15435558390000001,0.15664468300000001,0.15186270860000001,0.18482963899999999]
[null,null,null,null,null,null,null,null,null,null,"T01_3|CY","T01_3","CY","waver",0.120214772,8.6839456600000003E-2,7.3493569199999997E-2,7.6780985499999996E-2,6.5630904099999998E-2,6.1637373600000003E-2,6.2340946899999999E-2,5.9647466199999999E-2,5.68078266E-2,6.45007623E-2,6.8981757800000001E-2,7.0295392299999995E-2,6.7909303700000007E-2,6.3189982500000005E-2,0.1166075095,"n.a.","n.a.",0.16956568720000001,0.18484262709999999,0.17975836119999999,0.1652211405,0.18691973009999999,0.2081078083,0.2071586822,0.18482963899999999,0.1446508339]
[null,null,null,null,null,null,null,null,null,null,"T01_3|CZ","T01_3","CZ","waver",0.23758667159999999,0.23359303610000001,0.23079527829999999,0.2208609014,0.2066683728,0.197541841,0.19312288180000001,0.18646568669999999,0.18663176479999999,0.1459804223,0.1416803566,0.13335823960000001,0.13108476629999999,0.1289313956,0.13031222249999999,0.1251649537,0.12857798579999999,0.1246873805,0.117727665,0.1127691136,0.11895584300000001,0.1141065751,0.1407540098,0.13622191489999999,0.1446508339,0.13807085050000001]
[null,null,null,null,null,null,null,null,null,null,"T01_3|DE","T01_3","DE","waver",0.16556816560000001,0.15821137590000001,0.1644261779,0.1658680049,0.1709631009,0.16337235119999999,0.15652529200000001,0.1483266755,0.1456701162,0.14258339319999999,0.13957727880000001,0.13916667260000001,0.13992345270000001,0.13979812790000001,0.1358453734,0.13786180470000001,0.1426191648,0.13325165780000001,0.1339399473,0.1337857549,0.14095700059999999,0.134426301,0.1369815077,0.13667164470000001,0.13807085050000001,0.1345524132]
[null,null,null,null,null,null,null,null,null,null,"T01_3|DK","T01_3","DK","waver",0.17069581659999999,0.15092802750000001,0.15098781459999999,0.1452590392,0.14658246650000001,0.13767967040000001,0.13297658030000001,0.1335371729,8.2268301799999999E-2,0.1354605133,0.13397905560000001,0.13253488390000001,0.12975957390000001,0.1235959049,0.12780957030000001,0.1239005859,0.1214687201,0.124718015,0.1295017691,0.12741174350000001,0.12375417330000001,0.12880072889999999,0.13159392710000001,0.1397808727,0.1345524132,6.99538309E-2]
[null,null,null,null,null,null,null,null,null,null,"T01_3|EE","T01_3","EE","waver","n.a.","n.a.","n.a.","n.a.","n.a.",2.1150545900000001E-2,2.8671914199999999E-2,2.7106915499999999E-2,2.9070650199999999E-2,2.3537538E-2,2.2499341499999999E-2,2.1960631000000001E-2,1.5889596299999999E-2,1.6764594800000001E-2,1.51311122E-2,1.4713592399999999E-2,1.45757484E-2,1.4721800199999999E-2,1.80665037E-2,1.9325062699999999E-2,1.7126068599999999E-2,2.18517469E-2,7.9982738400000003E-2,7.8280798700000001E-2,6.99538309E-2,0.1213331267]
[null,null,null,null,null,null,null,null,null,null,"T01_3|ES","T01_3","ES","waver",0.17171758810000001,0.16828489769999999,0.16594204539999999,0.1624455256,0.1537822143,0.1589102932,0.1532570399,0.1509294441,0.1465762655,0.1483372234,0.14625597430000001,0.14674137679999999,0.1382475662,0.14452028280000001,0.1404502332,0.13938496410000001,0.13856383159999999,0.13838659640000001,0.13824368300000001,0.1379246012,0.13428280109999999,0.12923095840000001,0.135005813,0.13779096430000001,0.1213331267,0.12534740450000001]
[null,null,null,null,null,null,null,null,null,null,"T01_3|EU","T01_3","EU","waver",0.14757550280000001,0.14310578290000001,0.1442101824,0.14432320360000001,0.14704504739999999,0.14519194020000001,0.1415813135,0.13836126779999999,0.136316312,0.13681643330000001,0.1323019651,0.1309096143,0.12752728830000001,0.13091495889999999,0.1298266673,0.1296855509,0.12934948290000001,0.13276154170000001,0.13290028309999999,0.13259989420000001,0.1319229542,0.12867766319999999,0.13374939390000001,0.1316342955,0.12534740450000001,0.1161399781]
[null,null,null,null,null,null,null,null,null,null,"T01_3|FI","T01_3","FI","waver",0.1182521689,0.1098920332,0.1153113553,0.1048872699,0.1111755894,0.1128183957,0.1185052654,0.1217022133,0.13185497879999999,0.1234584467,0.1247045839,0.12227785049999999,0.124068128,0.12333170409999999,0.1174777144,0.1199599455,0.1365963939,0.12701250389999999,0.12733093149999999,0.12209769500000001,0.12588980720000001,0.12940329410000001,0.1295644483,0.12504752590000001,0.1161399781,0.10030634150000001]
[null,null,null,null,null,null,null,null,null,null,"T01_3|FR","T01_3","FR","waver",0.12916666260000001,0.12751024690000001,0.12819830679999999,0.12773654549999999,0.1220008773,0.1207250356,0.1176981414,0.115134747,0.1104906477,0.1103846587,0.1080412513,0.1059986273,0.1011905466,0.1096092872,0.1063202912,0.1048726202,0.1008236242,0.1068212419,0.10712318749999999,0.10676859299999999,0.10144964350000001,0.1075436495,0.11148182750000001,0.1076301466,0.10030634150000001,0.135176306]
[null,null,null,null,null,null,null,null,null,null,"T01_3|GB","T01_3","GB","waver",0.13269343389999999,0.12753120579999999,0.1278484664,0.13009536020000001,0.1454261,0.140465111,0.13604614270000001,0.13506332500000001,0.14767314610000001,0.14615687520000001,0.1335163889,0.13314576680000001,0.1300140833,0.1374296428,0.13590929539999999,0.13701520189999999,0.1391123964,0.1450642093,0.14643651930000001,0.14378315780000001,0.14522452720000001,0.13530875619999999,0.1420316069,0.13666506689999999,0.135176306,0.1452121743]
[null,null,null,null,null,null,null,null,null,null,"T01_3|GR","T01_3","GR","waver",0.17362205319999999,0.17497795420000001,0.17749405090000001,0.17932952899999999,0.1849789365,0.18561520209999999,0.1895609707,0.18173100859999999,0.1676947781,0.1579329615,0.14440992289999999,0.106395528,8.6959749500000003E-2,9.1096997299999996E-2,9.2624254399999995E-2,0.10145162150000001,0.1049892543,0.1100659006,0.1135937077,0.1104122973,0.11305330030000001,0.12612792310000001,0.14597181740000001,0.14414284960000001,0.1452121743,0.111510949]
[null,null,null,null,null,null,null,null,null,null,"T01_3|HR","T01_3","HR","waver",0.10869626139999999,0.1111145045,0.1112598729,9.7847904900000005E-2,9.9045538399999994E-2,0.10493086460000001,9.7134507499999995E-2,0.10235355209999999,0.1042997844,0.1071289562,0.1081148277,0.10585538060000001,0.1062867618,0.1131904363,0.10941961729999999,0.108005824,0.1049527794,0.111537232,0.1181187212,0.1173967135,0.113935895,0.1121804029,0.10873398500000001,0.1137800142,0.111510949,0.21506772760000001]
[null,null,null,null,null,null,null,null,null,null,"T01_3|HU","T01_3","HU","waver",0.157648066,0.16668088040000001,0.18985364129999999,0.21106632019999999,0.2177133631,0.2379901052,0.24756907450000001,0.24804203859999999,0.25025675930000002,0.2571685923,0.2656441001,0.2673839388,0.27115972980000003,0.27065548,0.24783767309999999,0.25074144599999998,0.24867427519999999,0.2498787412,0.24500925230000001,0.23780985960000001,0.23052210140000001,0.22326496479999999,0.21535966600000001,0.2203542238,0.21506772760000001,0.1403038928]
[null,null,null,null,null,null,null,null,null,null,"T01_3|IE","T01_3","IE","waver",0.2173280112,0.21777795180000001,0.2113551988,0.21456709130000001,0.2055104837,0.18745362190000001,0.1787019158,0.17944151089999999,0.16168755360000001,0.1592917831,0.1602930062,0.1592173043,0.14860723810000001,0.15300081970000001,0.1563720874,0.16223159609999999,0.15969848419999999,0.14771461729999999,0.14369649239999999,0.14550071219999999,0.13569639410000001,0.13631044749999999,0.1483591749,0.1434877947,0.1403038928,0.1059671064]
[null,null,null,null,null,null,null,null,null,null,"T01_3|IS","T01_3","IS","waver",0,0,0,0,0,0,0,0,0,0,0,0,5.9878973600000003E-2,6.2226943799999997E-2,5.7949827600000003E-2,6.0976639300000003E-2,6.29515036E-2,6.64743899E-2,6.9683201099999995E-2,7.6628024700000005E-2,6.6040860699999995E-2,8.5493903299999993E-2,0.1012850336,0.1067868723,0.1059671064,0.19063285429999999]
[null,null,null,null,null,null,null,null,null,null,"T01_3|IT","T01_3","IT","waver",0.17615406259999999,0.18108177140000001,0.1832345306,0.18407839949999999,0.1806705203,0.18696391549999999,0.1902020053,0.183096915,0.17583993210000001,0.17729444050000001,0.1710705934,0.1726386,0.16538897950000001,0.1676644907,0.17984156979999999,0.18016311769999999,0.17308405700000001,0.19287671549999999,0.1900108361,0.19539059780000001,0.1975004491,0.20006113950000001,0.2080416373,0.20476401280000001,0.19063285429999999,5.4308973900000002E-2]
[null,null,null,null,null,null,null,null,null,null,"T01_3|LT","T01_3","LT","waver",7.0924131400000007E-2,6.1694239300000002E-2,5.2608077699999999E-2,4.7739981299999998E-2,5.9412413099999999E-2,4.3568509700000001E-2,4.4579968400000003E-2,4.5461027500000001E-2,4.16034048E-2,3.3976939999999997E-2,3.2853295999999997E-2,2.70137937E-2,2.5607365300000001E-2,2.8329319200000001E-2,2.3819336100000001E-2,2.34407505E-2,4.6919899899999999E-2,6.3355303500000001E-2,6.0526263300000001E-2,5.7989059900000001E-2,5.3926389499999998E-2,4.4329365900000001E-2,5.6376868400000002E-2,5.5568396499999999E-2,5.4308973900000002E-2,0.1588085326]
[null,null,null,null,null,null,null,null,null,null,"T01_3|LU","T01_3","LU","waver",0.1502836146,0.20278814040000001,0.28683099550000002,0.28268327389999998,0.27173720220000003,0.2535163171,0.24813072820000001,0.2257788922,0.16405076760000001,0.1438502176,0.1388093105,0.14120771430000001,0.101331616,8.7091519899999997E-2,8.0313649400000006E-2,9.1874648099999998E-2,0.1110227744,0.1106871348,0.10969512620000001,0.11076248700000001,0.1100162185,0.1134329415,0.12797549599999999,0.12766083519999999,0.1588085326,0.22698297589999999]
[null,null,null,null,null,null,null,null,null,null,"T01_3|LV","T01_3","LV","waver",0.2125187375,0.24156043390000001,0.2457143923,0.2252743093,0.2353412557,0.2260475518,0.21585543160000001,0.2081384157,0.21350294519999999,0.191073146,0.17127193939999999,0.17719013149999999,0.1838636652,5.75994669E-2,4.5247004399999999E-2,2.7162008800000002E-2,2.7101627499999999E-2,0.10121673909999999,0.1115143877,0.1136511377,0.1056513821,8.5453544899999997E-2,0.16608951150000001,0.19538124740000001,0.22698297589999999,0.24972226119999999]
[null,null,null,null,null,null,null,null,null,null,"T01_3|MT","T01_3","MT","waver","n.a.","n.a.","n.a.","n.a.",0.33478834200000002,0.32685571610000003,0.32227339869999999,0.31363702799999998,0.29565275089999998,0.29978418130000001,0.288266415,0.27327710240000003,0.25583100279999998,0.25268546930000002,0.26358210599999998,0.2548205295,0.24543260829999999,0.2467468642,0.24852999780000001,0.24715833509999999,0.25770286390000002,0.2438414119,0.27451457600000001,0.26666755879999998,0.24972226119999999,8.2777573500000007E-2]
[null,null,null,null,null,null,null,null,null,null,"T01_3|NL","T01_3","NL","waver",0.1151385402,0.1085093954,0.1072133399,0.106304229,0.1059636937,0.10490280289999999,0.1045657135,0.10069981040000001,0.1012093092,9.3936559599999997E-2,9.3776053100000006E-2,8.9618497399999997E-2,8.96744139E-2,8.58958051E-2,8.3798483800000004E-2,7.9433779199999999E-2,8.1005481300000001E-2,8.1633772899999998E-2,7.9027112999999996E-2,8.0629196E-2,8.2016986099999994E-2,8.1607627899999993E-2,8.47036345E-2,8.1630931899999995E-2,8.2777573500000007E-2,0.1141561477]
[null,null,null,null,null,null,null,null,null,null,"T01_3|NO","T01_3","NO","waver",0.10555124959999999,0.10425676189999999,0.1060416721,0.1102874008,0.114750194,0.1118769574,0.1145033553,0.11381835580000001,0.1495691904,9.8943419399999996E-2,9.5505553399999998E-2,9.1480459799999997E-2,0.1181127728,9.6731536100000001E-2,9.6693306500000006E-2,0.10420134540000001,0.11277044379999999,9.9399835300000003E-2,8.2962376800000001E-2,9.0057037500000006E-2,9.6985320700000002E-2,9.9721911199999999E-2,0.1184995935,0.1080211858,0.1141561477,0.3077838879]
[null,null,null,null,null,null,null,null,null,null,"T01_3|PL","T01_3","PL","waver",0.19714201410000001,0.1951180133,0.19968274629999999,0.2083370376,0.187901647,0.2066673201,0.2073601138,0.20904962660000001,0.21740986840000001,0.20900912150000001,0.2056522459,0.19468577919999999,0.21769106469999999,0.20928387809999999,0.21720492359999999,0.21039299310000001,0.2070298337,0.22369610009999999,0.221202338,0.2093865771,0.2202710544,0.2208318188,0.28663854519999998,0.30358749709999999,0.3077838879,0.2314959784]
[null,null,null,null,null,null,null,null,null,null,"T01_3|PT","T01_3","PT","waver",0.16801545800000001,0.1668019392,0.17520093910000001,0.1786633842,0.1799842002,0.1902722751,0.19176604310000001,0.19238900149999999,0.1777954366,0.1907410907,0.2007205682,0.19904947670000001,0.1945764214,0.2061094366,0.21105007149999999,0.21391401669999999,0.21886954310000001,0.22996006259999999,0.22887943059999999,0.23068064999999999,0.226464796,0.23041855389999999,0.23912913769999999,0.24026597829999999,0.2314959784,0.29340048569999999]
[null,null,null,null,null,null,null,null,null,null,"T01_3|RO","T01_3","RO","waver",0.25781891759999997,0.25795617050000003,0.25463318029999998,0.2468200726,0.24809107890000001,0.26471281390000001,0.26306797389999997,0.2595309496,0.27783837830000002,0.289710466,0.28367960120000002,0.28362043869999998,0.26890073590000002,0.28472320699999998,0.27800526609999998,0.28017825330000001,0.27991272020000002,0.26965481769999999,0.267411116,0.27580787379999999,0.28222146250000002,0.27708431729999999,0.2837749906,0.28526634429999997,0.29340048569999999,8.1230064500000004E-2]
[null,null,null,null,null,null,null,null,null,null,"T01_3|SE","T01_3","SE","waver","n.a.","n.a.","n.a.","n.a.",0.1089181045,0.11076920179999999,0.1017254546,0.10311225559999999,0.110181981,0.1120241436,0.10697149609999999,0.11000684550000001,0.1066927625,0.1072382162,0.11346860979999999,0.1100337504,7.4996501399999999E-2,9.1099809599999998E-2,9.9673551900000004E-2,9.5244297500000005E-2,8.0568697300000006E-2,0.1030574969,9.96669637E-2,8.7323093700000007E-2,8.1230064500000004E-2,0.23709198889999999]
[null,null,null,null,null,null,null,null,null,null,"T01_3|SI","T01_3","SI","waver",0.2965683724,0.29897242480000003,0.2920500211,0.2716479926,0.27187841600000001,0.28567839779999998,0.28295895879999999,0.28473699200000002,0.26591361250000001,0.25715916750000001,0.26771464340000001,0.27345289680000001,0.25917091199999998,0.25470994209999998,0.2613086885,0.26242741339999998,0.27649760000000001,0.27168267289999998,0.27462452739999998,0.2718771472,0.2588170675,0.2354817283,0.221532008,0.22959329149999999,0.23709198889999999,0.13789123149999999]
[null,null,null,null,null,null,null,null,null,null,"T01_3|SK","T01_3","SK","waver",0.22250628959999999,0.22217183700000001,0.22971948170000001,0.22515597270000001,0.2137328805,0.19470478320000001,0.1980041706,0.1961062647,0.18280179590000001,0.16940146389999999,0.15098555259999999,0.1464536749,0.1364778525,0.1390338411,0.13789895020000001,0.1390428339,0.1253721196,0.1236889959,0.120255238,0.12689721910000001,0.13741998650000001,0.13480332340000001,0.15480888409999999,0.1461401769,0.13789123149999999,0.63420902239999999]
[null,null,null,null,null,null,null,null,null,null,"T01_4|AT","T01_4","AT","waver",0.69334692200000003,0.68974006899999996,0.69024497770000004,0.68883891230000005,0.68137258379999999,0.68244872339999996,0.53622124599999998,0.53653713609999998,0.65964768569999999,0.65787828029999995,0.65338965630000001,0.67189181750000004,0.67831276939999996,0.68312586239999995,0.69042414939999996,0.69649086680000005,0.70351966060000004,0.70288471129999996,0.7079051005,0.71043259820000004,0.71405202150000002,0.68617133299999999,0.66569158709999998,0.65090590749999999,0.63420902239999999,0.59832622430000004]
[null,null,null,null,null,null,null,null,null,null,"T01_4|BE","T01_4","BE","waver",0.54055240589999998,0.53998436890000001,0.57033589299999998,0.56842049620000001,0.56441410780000001,0.5697650501,0.558868221,0.54664384060000004,0.55154807110000004,0.5593114025,0.55289729200000004,0.55660409479999995,0.59305378019999999,0.60489319519999996,0.60808577640000006,0.60731899359999997,0.63838500990000002,0.63533038040000001,0.66142182289999996,0.65886971000000005,0.68393821789999998,0.65123915870000004,0.61331562340000001,0.60347557190000001,0.59832622430000004,0.59794665120000001]
[null,null,null,null,null,null,null,null,null,null,"T01_4|BG","T01_4","BG","waver",0.76528702000000004,0.70506288039999998,0.69135001979999999,0.67497585650000003,0.63376400290000001,0.63865474300000002,0.65128801940000003,0.63294779329999995,0.60233481749999995,0.60089914820000001,0.63163451240000001,0.63005264480000001,0.6179075007,0.65060227400000004,0.63214273009999999,0.65367934220000001,0.64787807580000001,0.63469949079999999,0.66988148120000002,0.66856263510000002,0.68748195690000002,0.63324148589999996,0.62094960369999996,0.61131397870000004,0.59794665120000001,0.45299395799999997]
[null,null,null,null,null,null,null,null,null,null,"T01_4|CY","T01_4","CY","waver",0.6984269675,0.6908341415,0.69913333320000004,0.69793990250000004,0.69688710840000001,0.69747501879999996,0.67698631389999997,0.67688491009999996,0.66350528610000004,0.66172027170000003,0.64423750580000005,0.61809832229999995,0.61035791890000002,0.6357070749,0.56187518879999998,"n.a.","n.a.",0.4757752885,0.4706288132,0.48006895970000002,0.470221583,0.48128467159999999,0.46014558989999998,0.45641676730000003,0.45299395799999997,0.79140451580000004]
[null,null,null,null,null,null,null,null,null,null,"T01_4|CZ","T01_4","CZ","waver",0.59614466249999998,0.60264571720000004,0.62228843020000002,0.61515120359999997,0.61335744579999996,0.62774693540000004,0.64738731240000003,0.6533024824,0.654020359,0.6891665575,0.63990539889999998,0.68668744650000002,0.73297374989999997,0.78870379150000003,0.79058397250000001,0.8280489097,0.80457225060000004,0.81954671580000005,0.81509814439999995,0.82017980010000002,0.81816818229999999,0.7926149374,0.7855485901,0.78630919320000003,0.79140451580000004,0.55397255599999995]
[null,null,null,null,null,null,null,null,null,null,"T01_4|DE","T01_4","DE","waver",0.52788216990000003,0.50933740429999996,0.53635605060000002,0.53663722150000004,0.53723320360000004,0.52568868940000002,0.52309910849999997,0.54098206520000003,0.53899877600000001,0.54178252689999995,0.53669406399999997,0.54308155759999999,0.54949549890000005,0.56750555800000002,0.5672283038,0.57674800849999996,0.57816710719999997,0.57201506310000005,0.56922804979999997,0.56177826139999998,0.58835004810000002,0.57174273350000004,0.55214590730000002,0.54876110590000005,0.55397255599999995,0.69021116989999998]
[null,null,null,null,null,null,null,null,null,null,"T01_4|DK","T01_4","DK","waver",0.68218281849999995,0.6749993205,0.69900541319999998,0.70905578800000002,0.7145223342,0.72140093439999997,0.71603654510000003,0.72871273739999998,0.44267693260000002,0.7165113098,0.71101909490000004,0.71897004119999997,0.71640836480000003,0.72867243100000001,0.73327553489999997,0.74682922519999995,0.77057925230000002,0.75374737690000004,0.73971177919999997,0.73179760770000002,0.7514521958,0.71335481219999997,0.71401536239999996,0.70518100930000005,0.69021116989999998,0.63511089310000002]
[null,null,null,null,null,null,null,null,null,null,"T01_4|EE","T01_4","EE","waver","n.a.","n.a.","n.a.","n.a.","n.a.",0.71996480669999996,0.71891674809999995,0.71711347299999995,0.71991383279999999,0.72370663069999996,0.74548092649999997,0.743374384,0.74776592159999999,0.76826187930000001,0.75745940950000001,0.75909310009999997,0.75056503080000003,0.77494193639999998,0.76529895290000005,0.75251220969999999,0.74892844039999995,0.73934557830000003,0.67243473350000005,0.65579028139999995,0.63511089310000002,0.58399759819999997]
[null,null,null,null,null,null,null,null,null,null,"T01_4|ES","T01_4","ES","waver",0.63045861130000003,0.63146810210000004,0.64062753530000005,0.64349736049999995,0.65070222079999995,0.64952004119999995,0.65352696600000004,0.65541927570000003,0.65255426059999999,0.65774874449999998,0.65885039690000002,0.65244242789999995,0.64674534380000004,0.65019451279999996,0.65456540699999999,0.65839600340000004,0.65947052360000002,0.66373240330000005,0.66680002999999999,0.66249798660000003,0.67150305629999996,0.65787659649999997,0.64549921369999996,0.63743294679999996,0.58399759819999997,0.60477663530000003]
[null,null,null,null,null,null,null,null,null,null,"T01_4|EU","T01_4","EU","waver",0.58447408700000003,0.57307560300000004,0.58774167939999999,0.585106138,0.60369614620000001,0.58992051089999997,0.58814233400000004,0.59751834530000003,0.60355467920000005,0.61687293679999999,0.61104995510000004,0.61573539349999995,0.62264743440000003,0.62830027939999999,0.62654205299999999,0.63284655270000001,0.63938430889999998,0.63129321360000001,0.62920819760000002,0.62292387270000005,0.63924822560000005,0.63290364899999996,0.61971412329999997,0.61465684870000004,0.60477663530000003,0.68429384689999995]
[null,null,null,null,null,null,null,null,null,null,"T01_4|FI","T01_4","FI","waver",0.50772101000000003,0.48109042460000001,0.52103146560000002,0.52009997370000005,0.50795470509999996,0.47897219340000002,0.49231105819999998,0.48611195730000001,0.50313560390000001,0.68126321000000001,0.70151753370000003,0.71263080379999999,0.68554099440000005,0.70445646419999997,0.69207583959999996,0.71571909810000001,0.65739091800000005,0.64889482840000001,0.66015084670000002,0.66416506360000005,0.68839022650000004,0.66433797100000003,0.65735997879999997,0.65827549129999996,0.68429384689999995,0.59172212349999997]
[null,null,null,null,null,null,null,null,null,null,"T01_4|FR","T01_4","FR","waver",0.54816784019999998,0.53731118190000005,0.56477087930000003,0.56303784560000003,0.57448466899999995,0.5676062945,0.56680901859999999,0.57640258519999998,0.58511295900000004,0.58466557330000002,0.59072942679999996,0.59956500759999998,0.6147444474,0.62138260919999999,0.62681526070000004,0.63259962110000001,0.64453899329999997,0.63050149970000002,0.62325070439999997,0.61664116749999998,0.63002950270000002,0.59961348400000003,0.59060692999999997,0.58921844509999999,0.59172212349999997,0.51678668149999996]
[null,null,null,null,null,null,null,null,null,null,"T01_4|GB","T01_4","GB","waver",0.52544401760000004,0.51906897490000004,0.51332212020000001,0.50567885469999996,0.55323513970000004,0.52338602690000002,0.51649252379999999,0.52597555060000001,0.57842592270000004,0.5997553658,0.55621547579999997,0.56003726629999995,0.5575994017,0.56246200729999996,0.55752370159999998,0.5641217449,0.56958772099999999,0.56799785589999996,0.55861431360000002,0.55101112919999995,0.56710321679999998,0.54045714789999999,0.52779391440000001,0.52970463050000005,0.51678668149999996,0.5322413909]
[null,null,null,null,null,null,null,null,null,null,"T01_4|GR","T01_4","GR","waver",0.64910455170000003,0.63680854799999997,0.63345389910000005,0.6226570991,0.55791089949999995,0.55430926780000001,0.60904264109999995,0.6171107602,0.62294638840000005,0.63124975130000005,0.64274502739999995,0.66620519580000004,0.67246801119999999,0.64971849749999999,0.64599054389999999,0.63424143730000004,0.62409984100000004,0.62644039500000004,0.61020061670000003,0.60786665129999995,0.60533911210000002,0.58869223100000001,0.54957081699999999,0.55581525040000002,0.5322413909,0.67726478800000001]
[null,null,null,null,null,null,null,null,null,null,"T01_4|HR","T01_4","HR","waver",0.81188104100000003,0.77545097299999999,0.76542214090000005,0.7564286496,0.76806780569999999,0.75941777929999998,0.76320216279999997,0.75505744389999996,0.74325173879999995,0.74520904840000002,0.73582300990000005,0.74719482260000003,0.71962998060000005,0.71042308470000004,0.72318514960000002,0.73154646400000001,0.7196937712,0.71349726319999995,0.70700168929999996,0.7018354845,0.7037363888,0.69520279110000005,0.69657669629999996,0.69997102639999997,0.67726478800000001,0.63171822720000004]
[null,null,null,null,null,null,null,null,null,null,"T01_4|HU","T01_4","HU","waver",0.71178204329999994,0.68278282199999996,0.67775043459999995,0.64549183990000003,0.64529558909999996,0.62887943909999999,0.60087511500000002,0.61269129879999995,0.59361957830000001,0.5826321431,0.58895843039999995,0.57958770719999997,0.57166110189999997,0.56187949049999997,0.5889574044,0.60011848580000005,0.58492072539999995,0.58565452569999998,0.59597422010000001,0.60736014469999999,0.60771746429999995,0.61495100579999995,0.62745768970000004,0.6299878552,0.63171822720000004,0.57983342309999997]
[null,null,null,null,null,null,null,null,null,null,"T01_4|IE","T01_4","IE","waver",0.61741426690000001,0.63626540659999997,0.64248723569999999,0.65248603949999995,0.65795972150000004,0.63955778760000004,0.63539116080000002,0.63279375719999997,0.63966954890000005,0.64140667929999995,0.64718599860000003,0.65482259610000004,0.66115962340000001,0.63992525830000002,0.63826523960000003,0.64636772850000002,0.64526234829999995,0.66407846189999997,0.66044672680000005,0.65745785980000004,0.64547949059999998,0.62968792910000004,0.60418079179999995,0.58625127480000006,0.57983342309999997,0.77261168769999999]
[null,null,null,null,null,null,null,null,null,null,"T01_4|IS","T01_4","IS","waver",0,0,0,0,0,0,0,0,0,0,0,0,0.77122621749999998,0.75705221609999995,0.76474599600000004,0.76375734139999996,0.77556465890000004,0.76120390419999995,0.76482966809999997,0.75830393220000003,0.7742779702,0.75218976630000001,0.74933557709999998,0.73695175390000001,0.77261168769999999,0.56083726190000005]
[null,null,null,null,null,null,null,null,null,null,"T01_4|IT","T01_4","IT","waver",0.66677175700000002,0.66049610280000004,0.66614369350000002,0.6713437122,0.67698939670000002,0.67368458949999999,0.6688578879,0.67649991949999999,0.67047094569999999,0.66639428540000001,0.67926721729999995,0.68129765060000003,0.68436262650000002,0.68705427490000004,0.66409470940000004,0.6620428371,0.66786812780000004,0.64800170099999999,0.65036932619999999,0.64175236700000005,0.6596646316,0.6387462626,0.62603599089999995,0.61618759400000001,0.56083726190000005,0.56802048319999998]
[null,null,null,null,null,null,null,null,null,null,"T01_4|LT","T01_4","LT","waver",0.74097899119999999,0.80816307099999996,0.75650930139999994,0.74566100410000002,0.71626121819999999,0.74196516639999999,0.75188312599999996,0.74954030780000003,0.72324389229999997,0.73407730569999996,0.74240087610000005,0.71050137800000002,0.71652622170000002,0.74852364670000004,0.75652387939999999,0.73815693819999995,0.69328824030000002,0.68285472179999995,0.69163628430000001,0.69473003739999994,0.64991067499999999,0.64027063920000005,0.59325697769999997,0.55417024670000004,0.56802048319999998,0.58666963760000002]
[null,null,null,null,null,null,null,null,null,null,"T01_4|LU","T01_4","LU","waver",0.75061254440000003,0.66694681960000002,0.56660839419999998,0.56922894980000005,0.57771472000000001,0.5824117459,0.60115205930000004,0.60292355610000004,0.66031907990000005,0.65364670560000004,0.64666351060000005,0.66016435080000002,0.6259261827,0.61089126370000002,0.60176786380000002,0.68643169270000004,0.71275076969999995,0.68404377989999998,0.69325080679999995,0.6908357638,0.71509285190000005,0.65588178009999998,0.66327918129999996,0.66439979760000001,0.58666963760000002,0.53161575719999998]
[null,null,null,null,null,null,null,null,null,null,"T01_4|LV","T01_4","LV","waver",0.54526670180000003,0.5421755573,0.50760506439999997,0.49665755020000002,0.48480694299999999,0.48654305209999998,0.53645070390000005,0.5469834562,0.54651579539999995,0.55778084220000002,0.56939122379999996,0.57503556810000001,0.55114132660000004,0.65069327580000003,0.66102669830000005,0.71688208880000004,0.69042826810000002,0.63087588269999995,0.6495573228,0.62999651739999996,0.61701214289999995,0.59591246050000002,0.53714404510000002,0.52835835949999999,0.53161575719999998,0.4770496307]
[null,null,null,null,null,null,null,null,null,null,"T01_4|MT","T01_4","MT","waver","n.a.","n.a.","n.a.","n.a.",0.58846053570000001,0.60696883980000005,0.61401311439999995,0.62665102790000005,0.63951226790000004,0.63030191400000002,0.63898692400000001,0.6596442803,0.66751136749999995,0.67625962340000001,0.66866129939999996,0.67840267409999999,0.68529694689999998,0.52436408349999997,0.51882308590000004,0.49602413960000002,0.470207233,0.50115669569999999,0.47876729099999998,0.48161280379999999,0.4770496307,0.71161592579999999]
[null,null,null,null,null,null,null,null,null,null,"T01_4|NL","T01_4","NL","waver",0.71871679939999999,0.71002474910000002,0.73246618269999997,0.72256972689999999,0.72536168879999996,0.7169151104,0.72015978660000002,0.72037839449999996,0.73453679660000004,0.73423270149999997,0.75964004799999996,0.75797847900000004,0.76879225959999997,0.76355120430000001,0.77051550619999998,0.76777431709999999,0.77231263080000001,0.75825642640000002,0.76238966009999998,0.75445059979999995,0.77443245819999995,0.74922444799999999,0.72100422269999997,0.70060138849999998,0.71161592579999999,0.70828527949999998]
[null,null,null,null,null,null,null,null,null,null,"T01_4|NO","T01_4","NO","waver",0.7667141354,0.69899476159999996,0.7527606953,0.73739310989999995,0.78219554250000001,0.74005187439999998,0.74553901810000001,0.73362405880000003,0.92869142640000002,0.68726560709999995,0.71626071270000002,0.69993536649999999,0.75438681139999997,0.73614582959999997,0.70883195960000001,0.70750746799999997,0.75150641789999995,0.71734723479999996,0.71065626520000003,0.71838823009999997,0.74600834540000005,0.68984302799999997,0.6976554425,0.7048241542,0.70828527949999998,0.61631462619999999]
[null,null,null,null,null,null,null,null,null,null,"T01_4|PL","T01_4","PL","waver",0.68080381469999995,0.69055089830000005,0.69355892429999999,0.69474319569999998,0.69728945789999996,0.68938070760000003,0.69144084459999999,0.69445227470000004,0.68786500380000004,0.69430422739999997,0.6984450713,0.70266776220000005,0.68444221719999998,0.68693882930000005,0.68948382159999999,0.68731895119999997,0.67454699780000005,0.67894429329999995,0.69154226870000002,0.69745650020000005,0.69015128650000002,0.67576966240000003,0.63044942810000004,0.62526461,0.61631462619999999,0.58927744599999998]
[null,null,null,null,null,null,null,null,null,null,"T01_4|PT","T01_4","PT","waver",0.64555162089999996,0.64748927489999997,0.64247772390000002,0.65296686869999998,0.65221535320000001,0.64164980110000003,0.63607855179999995,0.64009828020000004,0.6321333764,0.63338061629999998,0.62586352209999996,0.62113770570000004,0.61830897429999998,0.63319217819999996,0.61854644130000003,0.62104576580000004,0.62214134040000002,0.61328263839999997,0.61663742430000001,0.61774290519999997,0.61473406239999995,0.612871151,0.58831030169999998,0.59028754319999999,0.58927744599999998,0.51512086739999996]
[null,null,null,null,null,null,null,null,null,null,"T01_4|RO","T01_4","RO","waver",0.56430857469999995,0.57711119960000001,0.58311382349999996,0.60439785530000001,0.55470157529999997,0.56961584600000004,0.57260375060000002,0.57853469349999997,0.53794337550000004,0.53984121600000001,0.55122191730000003,0.56465530050000001,0.54220316469999996,0.53949495319999996,0.55605609680000001,0.55555017399999995,0.54616963549999997,0.56005692760000003,0.55205454519999997,0.54906156100000003,0.54203400030000004,0.53560350720000005,0.52975293079999997,0.53971511750000001,0.51512086739999996,0.75451984559999996]
[null,null,null,null,null,null,null,null,null,null,"T01_4|SE","T01_4","SE","waver","n.a.","n.a.","n.a.","n.a.",0.69298018949999995,0.65345650190000004,0.65867919429999999,0.66291353730000002,0.69709778489999996,0.65871056559999996,0.66992490240000002,0.67793265010000003,0.72077222289999998,0.70912816329999995,0.69056959640000004,0.70965423800000005,0.78858665859999999,0.76049178399999995,0.76860642099999998,0.75941122530000005,0.78733061930000003,0.7094452135,0.71939629910000003,0.73247477630000002,0.75451984559999996,0.52854579430000004]
[null,null,null,null,null,null,null,null,null,null,"T01_4|SI","T01_4","SI","waver",0.55668414099999997,0.56689429130000002,0.56445606950000005,0.56956012690000002,0.58424153990000005,0.57415426759999999,0.57663220839999996,0.55924435849999998,0.57286135969999996,0.56675043199999997,0.5721508246,0.57869006199999995,0.59053280500000005,0.59452144210000002,0.59480104410000001,0.59161114179999996,0.56410050950000001,0.56317984499999996,0.56742124800000004,0.57007012400000001,0.54812149649999997,0.59331657459999998,0.5549826725,0.55084876059999999,0.52854579430000004,0.75891525179999997]
[null,null,null,null,null,null,null,null,null,null,"T01_4|SK","T01_4","SK","waver",0.70696656629999999,0.71489170130000002,0.71105815800000005,0.72341111680000003,0.70752273160000001,0.72598777250000002,0.72769777430000004,0.73313594329999998,0.73586528419999997,0.74289490619999998,0.75717483750000003,0.80055678399999997,0.77931064299999997,0.78127551930000005,0.80599849489999997,0.81907229810000004,0.80327108700000005,0.81787867069999998,0.80801912610000004,0.79775513840000001,0.78405594160000003,0.79680156889999998,0.76775946419999996,0.76523546129999998,0.75891525179999997,1.7441265899999999E-2]
[null,null,null,null,null,null,null,null,null,null,"T01_5|AT","T01_5","AT","waver",4.4761326900000002E-2,4.7391374100000001E-2,3.6956707800000002E-2,3.6385939700000001E-2,3.3420187599999998E-2,3.6204884600000001E-2,3.3309118999999998E-2,3.1733200400000001E-2,3.1403419199999998E-2,2.7489542400000001E-2,2.6284098400000001E-2,2.46339694E-2,2.2873249500000001E-2,2.0204968199999999E-2,1.9805932299999999E-2,1.76087012E-2,1.7828281000000001E-2,1.87226692E-2,1.96985418E-2,2.2151787900000001E-2,1.7680290000000001E-2,2.2073549200000001E-2,1.8979210699999999E-2,1.9059061400000001E-2,1.7441265899999999E-2,4.4782129099999998E-2]
[null,null,null,null,null,null,null,null,null,null,"T01_5|BE","T01_5","BE","waver",8.83680934E-2,9.30080935E-2,7.5147157300000003E-2,7.4238477400000003E-2,7.2373368600000001E-2,7.5563463799999994E-2,7.8722257300000001E-2,7.5682879100000003E-2,6.7881273800000003E-2,6.1864691300000003E-2,5.7490470000000002E-2,5.5698584199999998E-2,5.4640551400000001E-2,4.6124693899999999E-2,4.6983019799999998E-2,4.3611112299999998E-2,4.0642443700000003E-2,4.5452988100000001E-2,4.8886064E-2,5.5240662699999998E-2,4.7158325399999999E-2,5.36302445E-2,5.02779483E-2,4.8393489599999999E-2,4.4782129099999998E-2,2.0621229999999999E-3]
[null,null,null,null,null,null,null,null,null,null,"T01_5|BG","T01_5","BG","waver",3.7275223000000001E-3,5.3362035E-3,4.6678442000000001E-3,3.9970305000000001E-3,3.8998683E-3,3.1600674E-3,3.1352699999999999E-3,2.4569293000000002E-3,2.8236114999999999E-3,2.6390841999999999E-3,2.4351543999999998E-3,2.6088801000000001E-3,2.3808773000000001E-3,2.2748854000000001E-3,2.9321719000000002E-3,2.2777206000000002E-3,1.6477879E-3,1.8635063999999999E-3,1.3918273999999999E-3,2.7000309999999999E-3,1.5180787E-3,2.8739962999999999E-3,1.5296792E-3,1.7522570999999999E-3,2.0621229999999999E-3,6.8858299999999999E-4]
[null,null,null,null,null,null,null,null,null,null,"T01_5|CY","T01_5","CY","waver",1.5512315999999999E-3,1.7338137000000001E-3,5.9808400000000003E-4,1.2672488E-3,4.6816579999999999E-4,1.4304779999999999E-4,4.8380230000000002E-4,3.4404820000000002E-4,7.4774870000000003E-4,3.809385E-4,1.969497E-4,5.3649630000000002E-4,4.2792060000000002E-4,2.132514E-4,3.9377809999999999E-4,"n.a.","n.a.",3.3040080000000001E-4,3.662836E-4,6.6349650000000003E-4,6.3254510000000002E-4,6.3021710000000001E-4,4.7325550000000002E-4,6.0088790000000002E-4,6.8858299999999999E-4,2.14082196E-2]
[null,null,null,null,null,null,null,null,null,null,"T01_5|CZ","T01_5","CZ","waver",3.6722789700000001E-2,3.8725390899999997E-2,2.8156045000000001E-2,3.0258802299999998E-2,2.7908162899999998E-2,3.0693950300000002E-2,3.1469170900000003E-2,2.8296269200000002E-2,2.50513612E-2,1.8448866800000002E-2,1.81032806E-2,1.62705473E-2,1.6955449599999999E-2,1.49226141E-2,1.6444595400000001E-2,1.7295056199999999E-2,1.7111411600000001E-2,1.5847524299999999E-2,2.0257350600000001E-2,2.08166532E-2,1.8614495799999999E-2,3.0945728700000001E-2,2.79487E-2,2.7891447400000002E-2,2.14082196E-2,0.13577604339999999]
[null,null,null,null,null,null,null,null,null,null,"T01_5|DE","T01_5","DE","waver",0.2175301617,0.2347389423,0.18660341019999999,0.19345820990000001,0.17399837339999999,0.18523962690000001,0.1909913815,0.1766892655,0.1641979301,0.14154819660000001,0.13454009280000001,0.1293173792,0.12892345820000001,0.1173819965,0.1205550582,0.1133910258,0.11642950990000001,0.1204646615,0.1351013694,0.15525669510000001,0.1323786783,0.1563529088,0.13894084249999999,0.1300711168,0.13577604339999999,7.4832219199999994E-2]
[null,null,null,null,null,null,null,null,null,null,"T01_5|DK","T01_5","DK","waver",9.5447761500000006E-2,0.11007512,7.9520877899999995E-2,8.1265148499999995E-2,8.0858141800000005E-2,7.6963021800000003E-2,7.9605521499999998E-2,7.2713957900000001E-2,4.1497613900000001E-2,6.2395016900000003E-2,6.4110741499999999E-2,6.0469052299999999E-2,5.8398747799999998E-2,5.7335982700000003E-2,6.4985567800000005E-2,5.1897871999999998E-2,5.59942888E-2,5.9503834200000001E-2,6.5083588400000003E-2,8.0636724899999998E-2,6.2953091500000002E-2,8.9047897500000001E-2,7.8688225000000001E-2,7.4262573900000003E-2,7.4832219199999994E-2,1.4840571E-3]
[null,null,null,null,null,null,null,null,null,null,"T01_5|EE","T01_5","EE","waver","n.a.","n.a.","n.a.","n.a.","n.a.",3.7068927000000001E-3,3.1238655000000001E-3,3.055393E-3,2.7320840000000001E-3,2.5483487E-3,2.3210785E-3,2.2405512E-3,1.9188345999999999E-3,1.6366618E-3,2.1543613000000001E-3,2.1772955999999999E-3,1.1178105000000001E-3,2.1969718000000001E-3,2.0475000999999999E-3,2.6746870999999998E-3,2.1480626999999999E-3,2.502303E-3,1.8372178E-3,1.7666566999999999E-3,1.4840571E-3,3.9519996600000003E-2]
[null,null,null,null,null,null,null,null,null,null,"T01_5|ES","T01_5","ES","waver",5.6909592699999997E-2,6.1933350900000003E-2,5.0171828600000003E-2,5.4569556999999998E-2,5.0804306E-2,5.3401536300000003E-2,5.78469598E-2,5.6571091900000002E-2,5.1043204699999997E-2,4.6100967600000001E-2,4.3563527800000001E-2,4.2445986999999998E-2,4.2491641199999999E-2,4.1118763400000001E-2,4.2058109500000003E-2,4.1344100699999997E-2,4.0371526099999999E-2,3.9369849899999997E-2,4.1106441899999999E-2,4.83594683E-2,4.0698716400000001E-2,5.53272613E-2,5.0381718899999997E-2,4.7115654100000001E-2,3.9519996600000003E-2,6.8697573600000006E-2]
[null,null,null,null,null,null,null,null,null,null,"T01_5|EU","T01_5","EU","waver",0.14001759499999999,0.15187578560000001,0.11897262040000001,0.12538495599999999,0.1211343964,0.1280698267,0.13288155669999999,0.12201829209999999,0.1132589589,9.6360918399999995E-2,9.0554746399999997E-2,8.5767843100000005E-2,8.3847906700000002E-2,7.8416387599999998E-2,8.0506084699999994E-2,7.5666281700000004E-2,7.6721036100000001E-2,7.6493820800000001E-2,8.2316527900000006E-2,9.4981013200000006E-2,8.1538507199999999E-2,8.5512949399999996E-2,7.3757927299999998E-2,6.9724778500000001E-2,6.8697573600000006E-2,7.4892036499999995E-2]
[null,null,null,null,null,null,null,null,null,null,"T01_5|FI","T01_5","FI","waver",0.2441107153,0.26543707630000002,0.19431477699999999,0.20213312510000001,0.20370829109999999,0.2073947267,0.2015157601,0.19502734020000001,0.1919321618,5.5657046600000003E-2,4.48483956E-2,3.9626122299999997E-2,3.50349436E-2,3.0583180200000001E-2,3.2707748100000003E-2,2.9834779700000001E-2,6.18594669E-2,6.3229672200000003E-2,6.8118217300000006E-2,8.4412384399999998E-2,6.7275275600000004E-2,8.7768005600000004E-2,7.4519795200000002E-2,7.3290190599999999E-2,7.4892036499999995E-2,8.69408978E-2]
[null,null,null,null,null,null,null,null,null,null,"T01_5|FR","T01_5","FR","waver",0.1515612546,0.1630925265,0.1334812249,0.13998446510000001,0.1306010507,0.1392542729,0.14230594860000001,0.13151421890000001,0.1228112291,0.1041194963,9.9809857599999996E-2,9.5812098499999998E-2,9.2051095799999996E-2,8.5994348900000003E-2,8.5815460299999993E-2,8.1232596800000001E-2,8.3656030899999997E-2,8.3886289099999997E-2,9.0981383900000004E-2,0.10190593890000001,8.7339108700000001E-2,0.1097397696,9.2624333200000006E-2,8.7967764000000004E-2,8.69408978E-2,0.1544924865]
[null,null,null,null,null,null,null,null,null,null,"T01_5|GB","T01_5","GB","waver",0.2085720647,0.2206473088,0.16978149040000001,0.1822804411,0.19485868780000001,0.20414819889999999,0.21317002390000001,0.19718670939999999,0.20152662900000001,0.1642963194,0.14543915560000001,0.13679660099999999,0.13450545489999999,0.12644753380000001,0.13108689840000001,0.1242398515,0.12510700390000001,0.1225479978,0.1306005646,0.15039888530000001,0.1362002172,0.17782974339999999,0.15567325909999999,0.14666824170000001,0.1544924865,3.5031901099999999E-2]
[null,null,null,null,null,null,null,null,null,null,"T01_5|GR","T01_5","GR","waver",2.7880781E-2,3.2849572700000003E-2,2.5584915499999999E-2,2.8682876499999999E-2,2.0815841500000001E-2,2.4547090600000002E-2,2.87655642E-2,2.9376866799999998E-2,2.6108402199999999E-2,2.3581364E-2,2.3661053299999998E-2,2.4990442299999999E-2,2.6538952899999999E-2,2.6411588699999999E-2,2.8450096500000001E-2,2.6647535999999999E-2,2.7798807299999999E-2,3.1634890800000003E-2,3.5838049800000001E-2,4.1276911100000001E-2,3.4314027900000002E-2,3.65240867E-2,3.7378013500000001E-2,3.61659862E-2,3.5031901099999999E-2,2.2659288999999998E-3]
[null,null,null,null,null,null,null,null,null,null,"T01_5|HR","T01_5","HR","waver",4.5519944999999999E-3,1.07556361E-2,8.7311143000000004E-3,8.2084437999999996E-3,8.2500957999999992E-3,7.6496775000000003E-3,8.6235644000000004E-3,7.2201955999999998E-3,9.1251248000000004E-3,8.2651092000000006E-3,5.3262999000000004E-3,3.8084302999999999E-3,3.4868793000000001E-3,3.3640335E-3,3.6163498999999999E-3,3.3544632999999999E-3,3.6532508000000001E-3,4.4104723E-3,4.3502104000000003E-3,5.8388245999999996E-3,4.9407039999999998E-3,6.5799678999999998E-3,5.5206715000000002E-3,2.8032681999999999E-3,2.2659288999999998E-3,1.05808966E-2]
[null,null,null,null,null,null,null,null,null,null,"T01_5|HU","T01_5","HU","waver",1.96136183E-2,2.4261717200000001E-2,2.07010688E-2,1.9253180299999999E-2,1.7285148100000002E-2,1.8300686900000002E-2,1.76520992E-2,1.5240873300000001E-2,1.53616182E-2,1.2740678199999999E-2,1.29564789E-2,1.38651852E-2,1.38409728E-2,1.2225106600000001E-2,1.8675134999999999E-2,1.8205279599999999E-2,1.36401734E-2,1.3777596600000001E-2,1.3030794300000001E-2,1.6315651300000001E-2,1.23836478E-2,2.0022322400000001E-2,1.54974838E-2,1.33874189E-2,1.05808966E-2,4.4836682699999998E-2]
[null,null,null,null,null,null,null,null,null,null,"T01_5|IE","T01_5","IE","waver",9.0388768199999997E-2,6.7341711600000007E-2,5.4348905099999997E-2,5.446086E-2,5.2068992100000003E-2,5.8004081399999997E-2,6.4711555000000004E-2,6.6293135000000003E-2,5.7152612999999998E-2,5.2130855599999998E-2,4.8744909099999997E-2,4.4864677800000002E-2,4.1042052500000002E-2,4.0380699999999999E-2,3.7666962999999998E-2,3.5411318599999998E-2,3.5287534199999998E-2,1.7434292600000002E-2,2.1325862500000001E-2,2.6642408900000001E-2,2.2958836199999999E-2,3.4077584500000001E-2,3.5332501000000002E-2,3.6049688699999999E-2,4.4836682699999998E-2,4.2225092999999998E-3]
[null,null,null,null,null,null,null,null,null,null,"T01_5|IS","T01_5","IS","waver",0,0,0,0,0,0,0,0,0,0,0,0,3.6796382999999999E-3,3.9160699000000002E-3,2.5891533E-3,2.9527129E-3,3.5111938E-3,3.1919956000000002E-3,3.8598799E-3,3.6794801999999998E-3,4.0272631000000001E-3,4.4426667000000003E-3,4.2507669000000003E-3,4.1631834999999997E-3,4.2225092999999998E-3,3.4582249099999997E-2]
[null,null,null,null,null,null,null,null,null,null,"T01_5|IT","T01_5","IT","waver",6.5492588700000007E-2,6.9908255599999997E-2,5.5635126299999997E-2,5.41486209E-2,5.01648565E-2,5.2828035400000001E-2,5.3261245899999997E-2,5.1204191500000003E-2,4.5917908E-2,4.0972138800000002E-2,3.9839692599999997E-2,3.7793610399999997E-2,3.5390916100000003E-2,3.4435847700000001E-2,3.56595496E-2,3.44269543E-2,3.4702387500000001E-2,3.2814614899999997E-2,3.4644321999999998E-2,3.90257205E-2,3.3005309500000003E-2,4.08468871E-2,3.7910818399999997E-2,3.5332376200000001E-2,3.4582249099999997E-2,1.1631788E-3]
[null,null,null,null,null,null,null,null,null,null,"T01_5|LT","T01_5","LT","waver",8.4363996999999996E-3,9.1931737999999992E-3,7.5259215999999999E-3,7.2370650999999996E-3,7.3339718999999998E-3,6.8197585000000002E-3,7.7490438E-3,6.7782592000000001E-3,8.0870291000000004E-3,6.6944544999999996E-3,5.5741443000000002E-3,4.3310425E-3,2.9644345999999999E-3,2.1198041999999999E-3,3.5967012E-3,3.2882676999999999E-3,3.1392857000000001E-3,4.6825340999999999E-3,4.4702188E-3,5.57823E-3,4.5961353999999996E-3,1.4132102000000001E-3,1.0231076000000001E-3,1.1580772E-3,1.1631788E-3,1.10154377E-2]
[null,null,null,null,null,null,null,null,null,null,"T01_5|LU","T01_5","LU","waver",9.2851215999999997E-3,1.13419383E-2,9.1804819000000006E-3,1.48351478E-2,2.0180472500000001E-2,2.4607350600000001E-2,3.5235423299999999E-2,3.7399572499999999E-2,5.0965153899999997E-2,6.5595909100000002E-2,5.7115160499999998E-2,4.2176675499999997E-2,2.32901592E-2,2.9635804500000001E-2,2.2073184999999999E-2,2.7061264200000001E-2,2.6998727399999999E-2,2.9064759999999999E-2,2.2105046900000001E-2,2.5268622899999999E-2,3.2372467000000002E-2,4.3190571699999999E-2,1.5241473199999999E-2,1.17134036E-2,1.10154377E-2,3.7348793000000001E-3]
[null,null,null,null,null,null,null,null,null,null,"T01_5|LV","T01_5","LV","waver",4.6299866999999998E-3,8.8933320000000003E-3,7.5807703000000002E-3,7.1116944000000001E-3,7.8819349999999996E-3,6.8048494999999997E-3,8.2673784000000007E-3,7.6572385999999996E-3,1.04869627E-2,4.4410947999999999E-3,3.3764868E-3,3.1732168999999998E-3,2.3969459E-3,2.1138754E-3,4.1401436E-3,4.9107745999999999E-3,5.0661659E-3,4.1003105999999996E-3,3.5797440000000002E-3,4.9132113000000003E-3,3.8695418000000001E-3,4.6908656999999996E-3,3.7364435000000001E-3,3.3555941E-3,3.7348793000000001E-3,4.5644160000000002E-4]
[null,null,null,null,null,null,null,null,null,null,"T01_5|MT","T01_5","MT","waver","n.a.","n.a.","n.a.","n.a.",1.6303839000000001E-3,1.7290350999999999E-3,2.0308840000000002E-3,1.1911948999999999E-3,1.1254571999999999E-3,8.6280000000000005E-4,1.1058966000000001E-3,6.8388279999999997E-4,7.1706359999999998E-4,7.4099650000000001E-4,8.9385180000000003E-4,5.2041450000000003E-4,6.7594319999999999E-4,4.0174679999999997E-4,5.3336170000000001E-4,6.356911E-4,4.0825010000000001E-4,1.0600628999999999E-3,7.8911279999999996E-4,6.4815269999999995E-4,4.5644160000000002E-4,3.4762683699999998E-2]
[null,null,null,null,null,null,null,null,null,null,"T01_5|NL","T01_5","NL","waver",7.1360221799999998E-2,8.1897251899999995E-2,6.2567499100000007E-2,6.2894600699999997E-2,6.05911778E-2,6.5547171599999995E-2,6.7466492200000006E-2,5.94665417E-2,5.5409173700000001E-2,4.3960776600000001E-2,4.2727662600000001E-2,3.8259573700000001E-2,3.7740684300000001E-2,3.3424240500000001E-2,3.4582772499999997E-2,3.07386885E-2,3.04963392E-2,3.2312321200000001E-2,3.3344709700000003E-2,3.9109432800000003E-2,3.09080407E-2,3.9459810900000003E-2,3.4521359799999998E-2,3.28496525E-2,3.4762683699999998E-2,6.5942157099999996E-2]
[null,null,null,null,null,null,null,null,null,null,"T01_5|NO","T01_5","NO","waver",8.1145897600000003E-2,7.7124882300000003E-2,6.2104913300000002E-2,7.2531953999999996E-2,7.0694657199999997E-2,7.2189650999999994E-2,6.5754370699999995E-2,6.1488772599999998E-2,6.6647468799999998E-2,5.3377234799999999E-2,5.5366612500000002E-2,5.0383175299999999E-2,5.2617971200000002E-2,4.48404237E-2,4.2918114899999998E-2,4.0299014199999997E-2,4.9792679100000001E-2,4.0680223100000003E-2,4.2802647300000003E-2,5.0504294399999997E-2,4.6264079700000002E-2,7.9710507900000005E-2,6.9008605099999995E-2,6.6291655800000002E-2,6.5942157099999996E-2,1.7641031299999999E-2]
[null,null,null,null,null,null,null,null,null,null,"T01_5|PL","T01_5","PL","waver",2.3186567299999999E-2,2.3767569299999999E-2,1.7696376900000001E-2,1.8310702099999999E-2,1.8031607700000001E-2,1.4292560500000001E-2,1.3597127299999999E-2,1.18991722E-2,1.19258462E-2,1.15713546E-2,9.0121557999999994E-3,9.8423641000000006E-3,8.9240780999999998E-3,7.7769272000000004E-3,8.7743365000000004E-3,6.3443529999999996E-3,7.6198530000000002E-3,8.5205305999999995E-3,9.3647303000000005E-3,1.1396024100000001E-2,9.7752259999999997E-3,2.1202253399999999E-2,1.9041866599999999E-2,1.8795488499999999E-2,1.7641031299999999E-2,9.1602790000000003E-3]
[null,null,null,null,null,null,null,null,null,null,"T01_5|PT","T01_5","PT","waver",1.5777772900000001E-2,1.7410050699999999E-2,1.3576107400000001E-2,1.45290943E-2,1.3674742199999999E-2,1.4684326399999999E-2,1.4446401399999999E-2,1.38592656E-2,1.2512392900000001E-2,1.20378733E-2,1.10672389E-2,1.08877082E-2,1.0560412999999999E-2,1.2835294800000001E-2,1.1722507599999999E-2,1.12161087E-2,1.0922731999999999E-2,1.13620597E-2,1.1506853900000001E-2,1.30058759E-2,1.0586452999999999E-2,1.18389576E-2,1.0312688400000001E-2,9.8026625999999995E-3,9.1602790000000003E-3,7.5997520000000004E-4]
[null,null,null,null,null,null,null,null,null,null,"T01_5|RO","T01_5","RO","waver",2.1227781000000001E-3,2.8289328E-3,1.8866244999999999E-3,1.9699453E-3,2.2173129999999998E-3,2.3731173999999998E-3,2.5998411999999999E-3,2.4691054999999998E-3,2.2975157999999998E-3,2.0363333000000001E-3,1.5338779E-3,1.3680370999999999E-3,1.1072025E-3,1.1370851E-3,1.1035715E-3,1.0608987E-3,9.2686509999999995E-4,1.0379979E-3,1.0447265999999999E-3,1.2246369E-3,7.6574559999999996E-4,1.0202785000000001E-3,1.0318584E-3,8.9107640000000001E-4,7.5997520000000004E-4,2.7655380199999999E-2]
[null,null,null,null,null,null,null,null,null,null,"T01_5|SE","T01_5","SE","waver","n.a.","n.a.","n.a.","n.a.",8.9022889800000005E-2,8.8712213999999998E-2,8.8397414999999993E-2,8.28349575E-2,7.9326235499999995E-2,5.9171942900000003E-2,5.7353935100000003E-2,5.1492610899999999E-2,5.3531077000000003E-2,5.1053057300000003E-2,5.3046838999999998E-2,4.4126921100000001E-2,2.8219738599999999E-2,2.8573521399999999E-2,2.8874736000000002E-2,3.7025190700000002E-2,2.85306434E-2,4.3583757799999998E-2,2.8527136000000002E-2,2.7854574600000001E-2,2.7655380199999999E-2,1.002483E-3]
[null,null,null,null,null,null,null,null,null,null,"T01_5|SI","T01_5","SI","waver",2.6555984E-3,2.9456880000000001E-3,2.0194767999999999E-3,3.1481517999999999E-3,3.0951850999999999E-3,3.4968841000000001E-3,2.7266851E-3,2.1307187E-3,2.4030631E-3,1.8771308999999999E-3,1.9242387E-3,1.7850012999999999E-3,1.5205232E-3,1.5586453999999999E-3,1.6555172000000001E-3,1.4545981999999999E-3,9.4615089999999997E-4,1.1655641E-3,1.4687637999999999E-3,1.5907784000000001E-3,1.1796421000000001E-3,1.6949949999999999E-3,1.4629269999999999E-3,1.3418032E-3,1.002483E-3,5.5292885E-3]
[null,null,null,null,null,null,null,null,null,null,"T01_5|SK","T01_5","SK","waver",6.8242844E-3,6.9608007999999999E-3,5.1556222000000004E-3,5.0366148000000003E-3,5.2969595999999997E-3,5.3986288999999998E-3,5.5805109000000002E-3,5.0953945999999998E-3,3.7030279000000001E-3,3.2411962000000001E-3,3.6001088000000001E-3,3.4288868999999998E-3,2.9253164E-3,2.8363522E-3,3.6333540000000001E-3,2.8855322000000002E-3,3.1177968000000002E-3,4.3333492000000003E-3,5.5768696999999997E-3,6.2830506000000003E-3,3.9557478999999998E-3,5.3179192E-3,5.2994905999999998E-3,5.5260676999999998E-3,5.5292885E-3,3.2159767899999997E-2]
[null,null,null,null,null,null,null,null,null,null,"T01_6|AT","T01_6","AT","waver",4.3040754399999999E-2,4.1666325499999997E-2,4.3335092700000001E-2,4.2363049999999999E-2,4.53611181E-2,4.6172400699999998E-2,0.2144483002,0.21614031240000001,3.94144892E-2,3.93587361E-2,3.9705188500000002E-2,3.9231856199999998E-2,4.00606539E-2,3.3593748399999998E-2,4.5895598400000001E-2,4.5861956400000001E-2,3.38980911E-2,3.6144477299999998E-2,3.6657811300000002E-2,3.66313245E-2,3.7114600499999997E-2,3.5023855399999998E-2,3.3299847899999999E-2,3.2808535600000001E-2,3.2159767899999997E-2,5.8444507499999999E-2]
[null,null,null,null,null,null,null,null,null,null,"T01_6|BE","T01_6","BE","waver",8.2948342699999997E-2,8.5837968799999997E-2,7.3268240400000004E-2,7.4884331900000004E-2,7.6875385399999996E-2,8.0069356499999994E-2,9.6775661700000001E-2,9.7773334599999998E-2,0.107336136,8.8087437899999996E-2,8.5918331400000006E-2,8.5413037900000002E-2,8.74099765E-2,5.6219943600000002E-2,5.8535534899999998E-2,5.9310473900000001E-2,8.6311926400000002E-2,7.5934517199999996E-2,5.8799681999999999E-2,6.0549839299999998E-2,6.01804269E-2,5.9287219799999999E-2,5.8709768500000002E-2,5.7887838699999999E-2,5.8444507499999999E-2,4.2569323100000001E-2]
[null,null,null,null,null,null,null,null,null,null,"T01_6|BG","T01_6","BG","waver",4.2332693499999997E-2,4.2932945200000003E-2,4.3578818999999998E-2,3.9888780300000003E-2,5.3824107099999997E-2,5.4800392599999997E-2,5.6036764900000001E-2,5.5896520999999998E-2,5.5197493399999999E-2,5.4200206100000002E-2,5.87136485E-2,5.5520302799999997E-2,5.5154500100000003E-2,5.51182058E-2,5.6616676400000003E-2,5.3154376199999999E-2,4.8290402599999997E-2,6.2513671500000006E-2,4.7057210699999998E-2,4.5978821199999999E-2,4.7258189200000002E-2,5.1456400200000002E-2,4.69098004E-2,4.5439144600000002E-2,4.2569323100000001E-2,9.4466772599999999E-2]
[null,null,null,null,null,null,null,null,null,null,"T01_6|CY","T01_6","CY","waver",7.3437302499999996E-2,7.4607443199999998E-2,7.2894751100000002E-2,5.7681824100000001E-2,5.9469441800000002E-2,6.5343674300000001E-2,7.5014823600000002E-2,7.9698061599999995E-2,8.2980301100000001E-2,8.3313596500000003E-2,8.5698571000000001E-2,9.4488831600000003E-2,8.7478489699999995E-2,9.4860859699999994E-2,0.1192472113,"n.a.","n.a.",0.1242852975,8.6872721599999994E-2,8.61897254E-2,8.1902373599999995E-2,8.4223577199999997E-2,9.0016266100000006E-2,9.1573786300000001E-2,9.4466772599999999E-2,1.9815136099999998E-2]
[null,null,null,null,null,null,null,null,null,null,"T01_6|CZ","T01_6","CZ","waver",2.2635328199999999E-2,2.2005549999999999E-2,2.1340417300000001E-2,1.9417719999999999E-2,2.0887824999999999E-2,2.0515859500000001E-2,1.94674996E-2,1.9049336900000002E-2,1.9595596E-2,1.6188079899999999E-2,1.5552017099999999E-2,1.48773076E-2,1.58632672E-2,1.5540635400000001E-2,1.4383309299999999E-2,1.30669097E-2,1.5228815999999999E-2,1.6027056899999999E-2,1.7155455600000001E-2,1.64785704E-2,1.7763801100000001E-2,1.88124468E-2,1.9499816199999999E-2,1.9306304199999999E-2,1.9815136099999998E-2,2.6654276000000001E-2]
[null,null,null,null,null,null,null,null,null,null,"T01_6|DE","T01_6","DE","waver",4.0052612100000003E-2,4.3557795400000002E-2,4.5985774600000001E-2,4.3085556900000002E-2,3.8478142700000002E-2,4.6943437999999997E-2,4.6138277499999998E-2,4.6769978400000002E-2,4.1991530700000002E-2,4.5498306400000001E-2,4.8837792900000003E-2,4.5472799100000003E-2,3.4163111900000001E-2,2.6678971400000001E-2,2.7024702500000001E-2,2.89156577E-2,3.26331781E-2,3.1521940399999997E-2,3.0996015799999999E-2,2.90634442E-2,2.9654218400000001E-2,2.70054614E-2,2.6007269100000001E-2,2.5842380299999999E-2,2.6654276000000001E-2,2.35962542E-2]
[null,null,null,null,null,null,null,null,null,null,"T01_6|DK","T01_6","DK","waver",2.52065099E-2,2.5966856100000001E-2,2.54387651E-2,2.5814383900000001E-2,2.4425859300000002E-2,2.7841703499999999E-2,2.67422218E-2,2.66641107E-2,1.6081408599999999E-2,2.28853002E-2,2.2480176399999999E-2,2.2975971000000001E-2,2.26412504E-2,2.3997893100000001E-2,2.4099519900000001E-2,2.4260447500000001E-2,2.3265441299999998E-2,2.52171089E-2,2.5412201999999998E-2,2.51512227E-2,2.5773290599999998E-2,2.5603974500000001E-2,2.37676595E-2,2.3860034400000001E-2,2.35962542E-2,1.18095141E-2]
[null,null,null,null,null,null,null,null,null,null,"T01_6|EE","T01_6","EE","waver","n.a.","n.a.","n.a.","n.a.","n.a.",1.24074296E-2,1.3168650800000001E-2,1.28257531E-2,1.22346134E-2,1.12101991E-2,1.31113846E-2,1.14790972E-2,1.00667524E-2,1.1046128699999999E-2,1.10129805E-2,1.0386410400000001E-2,1.04230503E-2,1.3225435299999999E-2,1.42380441E-2,1.4043661900000001E-2,1.1979193799999999E-2,1.1283678700000001E-2,1.06544542E-2,1.06107896E-2,1.18095141E-2,0.14382200119999999]
[null,null,null,null,null,null,null,null,null,null,"T01_6|ES","T01_6","ES","waver",9.3956542800000001E-2,9.2016764200000004E-2,9.2502703199999994E-2,9.0705217000000005E-2,8.9851172199999996E-2,9.0588703600000001E-2,8.9597733200000002E-2,9.0519293599999995E-2,9.0299150999999994E-2,9.1937814500000006E-2,8.8551890600000002E-2,8.4410116499999993E-2,8.9202398599999996E-2,8.9308887700000006E-2,8.68440147E-2,8.0985086100000006E-2,7.8633706499999997E-2,8.0959560700000002E-2,8.0886679399999994E-2,8.0864095400000002E-2,7.8182641600000005E-2,7.6611315700000002E-2,6.7862324500000001E-2,6.8695730100000005E-2,0.14382200119999999,6.1842251299999998E-2]
[null,null,null,null,null,null,null,null,null,null,"T01_6|EU","T01_6","EU","waver",6.0854138799999999E-2,6.0767052600000003E-2,6.0834033900000001E-2,5.9816329699999997E-2,5.7728554100000003E-2,6.1605860599999999E-2,6.0884949299999998E-2,6.1282946300000002E-2,6.1633832700000002E-2,6.3137602000000001E-2,5.7720514299999998E-2,5.7008585899999999E-2,5.4953968499999999E-2,5.3098516300000002E-2,5.4128569199999997E-2,5.1564329399999997E-2,5.3129954700000002E-2,5.46618408E-2,5.4649505600000002E-2,5.3635442399999997E-2,5.1788304899999998E-2,5.43699921E-2,5.027007E-2,5.0180715899999999E-2,6.1842251299999998E-2,2.42581397E-2]
[null,null,null,null,null,null,null,null,null,null,"T01_6|FI","T01_6","FI","waver",4.4145644099999999E-2,5.5151703099999998E-2,4.8956334800000001E-2,5.2129151300000003E-2,5.2076240099999997E-2,5.7702099700000002E-2,5.24494577E-2,5.12390042E-2,5.6267264599999998E-2,3.5382239699999998E-2,3.4485555399999999E-2,3.2705010200000002E-2,3.3117529299999997E-2,3.5443283399999997E-2,3.38774503E-2,3.3628517099999998E-2,4.5919569E-2,5.2447833300000003E-2,4.7501201600000001E-2,4.6350104599999997E-2,2.3341455399999999E-2,2.5161526100000001E-2,2.3127930099999999E-2,2.2903558399999999E-2,2.42581397E-2,6.6523645699999995E-2]
[null,null,null,null,null,null,null,null,null,null,"T01_6|FR","T01_6","FR","waver",8.0703914400000007E-2,8.2066506100000006E-2,7.9126147600000002E-2,7.9345882199999995E-2,7.8753360699999997E-2,7.9457925200000001E-2,8.13965886E-2,8.1570436999999996E-2,7.9637438599999999E-2,7.8759749899999995E-2,7.6446629299999999E-2,7.6928822699999996E-2,7.4244471199999995E-2,6.9514199799999996E-2,7.2102857199999995E-2,6.8340536499999993E-2,7.2023489600000004E-2,7.2147264500000002E-2,7.3261022300000006E-2,7.2526361799999994E-2,7.0160128200000005E-2,7.3055995799999995E-2,6.5067306199999994E-2,6.54539076E-2,6.6523645699999995E-2,4.2563036399999997E-2]
[null,null,null,null,null,null,null,null,null,null,"T01_6|GB","T01_6","GB","waver",4.8415972799999998E-2,4.7130381300000003E-2,4.9967059899999999E-2,4.8845273799999998E-2,3.9389794800000003E-2,4.8900591100000002E-2,4.7229371200000002E-2,4.5969072800000003E-2,5.2019063999999997E-2,5.4267475799999999E-2,3.7983998200000001E-2,3.9094562200000002E-2,3.6345118400000001E-2,4.2938252500000003E-2,4.4240506499999999E-2,4.2900735500000002E-2,4.1202824999999998E-2,4.4052408100000003E-2,4.4428456300000002E-2,4.5255146099999997E-2,4.43838259E-2,4.5043768900000003E-2,4.4689575099999997E-2,4.3289027600000002E-2,4.2563036399999997E-2,0.1585420186]
[null,null,null,null,null,null,null,null,null,null,"T01_6|GR","T01_6","GR","waver",0.1084522837,0.1074080581,0.12117793960000001,0.1257251184,0.2022530189,0.20202712919999999,0.1338568507,0.13397511979999999,0.14782497459999999,0.1524109934,0.15415052039999999,0.16549007930000001,0.1757849081,0.18270081769999999,0.1815844006,0.17991210560000001,0.17906596650000001,0.18238182580000001,0.18278620570000001,0.1811321632,0.17329664319999999,0.16673622969999999,0.16869006240000001,0.15628986710000001,0.1585420186,2.4685694099999999E-2]
[null,null,null,null,null,null,null,null,null,null,"T01_6|HR","T01_6","HR","waver",2.9500818700000001E-2,2.8615732200000001E-2,3.19993467E-2,3.2805863099999999E-2,3.3032926900000002E-2,3.3444767700000003E-2,3.4682641399999999E-2,3.2807376999999999E-2,3.09565716E-2,3.1764844799999997E-2,3.4852279100000001E-2,3.2109316899999997E-2,3.3446696999999997E-2,2.9875365399999999E-2,2.9805402700000001E-2,2.8139417699999999E-2,2.6478641000000001E-2,2.68477006E-2,2.7282545599999999E-2,2.5889911099999999E-2,2.5171915400000001E-2,2.4488957400000001E-2,2.46130741E-2,2.4444781799999999E-2,2.4685694099999999E-2,4.0953111799999997E-2]
[null,null,null,null,null,null,null,null,null,null,"T01_6|HU","T01_6","HU","waver",5.3299238300000003E-2,5.0678887899999997E-2,5.19018069E-2,4.9320573499999999E-2,4.5469203899999998E-2,4.5720889600000002E-2,4.6229160300000002E-2,4.3444747499999999E-2,4.2812531500000001E-2,4.82309873E-2,4.5591602100000003E-2,4.4206424199999997E-2,4.3847083000000002E-2,4.4488868799999998E-2,4.2751267699999998E-2,4.2933940900000002E-2,4.39447273E-2,4.6180456500000001E-2,4.7098908600000003E-2,4.5068367999999998E-2,4.3587480200000001E-2,4.3036349500000001E-2,4.3750452699999998E-2,4.1054773400000001E-2,4.0953111799999997E-2,4.5730067800000003E-2]
[null,null,null,null,null,null,null,null,null,null,"T01_6|IE","T01_6","IE","waver",3.2340012899999999E-2,3.35607905E-2,4.4950625000000001E-2,3.5813993400000001E-2,3.2362088400000003E-2,4.5054017299999999E-2,5.0296113000000003E-2,4.8706424999999998E-2,4.2429612800000002E-2,5.3209470699999997E-2,5.20625319E-2,4.7273850499999999E-2,4.5307638499999997E-2,4.9770142699999999E-2,5.42784501E-2,4.5269322700000003E-2,4.92722929E-2,5.8774134499999998E-2,5.2085531300000001E-2,4.8985104299999999E-2,4.7854959699999998E-2,5.6890624299999998E-2,5.4282649199999998E-2,4.9411477000000002E-2,4.5730067800000003E-2,2.3684332999999998E-2]
[null,null,null,null,null,null,null,null,null,null,"T01_6|IS","T01_6","IS","waver",0,0,0,0,0,0,0,0,0,0,0,0,2.71233855E-2,2.7016970299999998E-2,2.4594820999999999E-2,2.8682480999999999E-2,3.1307568799999998E-2,3.8792711399999999E-2,3.7684142699999999E-2,3.6221475699999998E-2,3.2142747300000003E-2,3.2247146599999998E-2,3.2657565E-2,3.1286798999999997E-2,2.3684332999999998E-2,6.5387499700000004E-2]
[null,null,null,null,null,null,null,null,null,null,"T01_6|IT","T01_6","IT","waver",6.7911732099999997E-2,6.4622632099999994E-2,6.78140411E-2,6.6000234500000005E-2,6.6148858699999993E-2,6.4116903899999994E-2,6.3089911600000007E-2,6.2695851499999997E-2,7.9651758200000006E-2,7.8275284200000003E-2,6.6210747099999995E-2,6.52152701E-2,6.2027534199999998E-2,6.2540794699999999E-2,6.1305917199999997E-2,6.0762306799999999E-2,6.2548816500000007E-2,6.2390619000000001E-2,6.3949118799999996E-2,6.3468384099999997E-2,6.0800862800000001E-2,5.9052101199999998E-2,5.8175228699999998E-2,5.7408119799999997E-2,6.5387499700000004E-2,7.8511629999999995E-3]
[null,null,null,null,null,null,null,null,null,null,"T01_6|LT","T01_6","LT","waver",1.9886346100000001E-2,2.1502242299999998E-2,2.5129664900000001E-2,2.5045328200000001E-2,2.4304721099999999E-2,1.9362283800000001E-2,1.5801514799999999E-2,1.39327693E-2,1.39594891E-2,1.3375515399999999E-2,1.27627544E-2,1.1949981300000001E-2,9.9895716000000002E-3,1.11426206E-2,9.4217373E-3,9.2233186000000005E-3,8.7870401000000008E-3,1.23276451E-2,1.19608999E-2,1.09047104E-2,9.4390541000000001E-3,8.4349878999999996E-3,9.3471169000000007E-3,8.6846613000000003E-3,7.8511629999999995E-3,2.8468203899999999E-2]
[null,null,null,null,null,null,null,null,null,null,"T01_6|LU","T01_6","LU","waver",3.1745894400000002E-2,2.79695321E-2,3.9061816700000002E-2,3.7793300299999999E-2,3.1050761400000002E-2,3.48185653E-2,3.0591754499999999E-2,2.82936534E-2,2.5892702600000001E-2,2.4878523999999999E-2,2.4337544499999999E-2,3.1681837499999997E-2,0.14129215540000001,0.14231897800000001,0.14386363129999999,2.64396805E-2,2.3238616E-2,2.5691598499999999E-2,2.6599470600000001E-2,2.6227554300000001E-2,2.24539253E-2,2.5007467700000001E-2,2.5546525800000001E-2,2.6995798000000001E-2,2.8468203899999999E-2,9.2976217999999992E-3]
[null,null,null,null,null,null,null,null,null,null,"T01_6|LV","T01_6","LV","waver",1.99151651E-2,2.02675049E-2,1.6597858600000001E-2,1.6095050199999999E-2,1.48424696E-2,1.67830757E-2,1.6066288799999998E-2,1.5998486400000001E-2,1.6402052699999999E-2,1.6250048199999999E-2,1.64305135E-2,1.6856435900000001E-2,1.7375671400000001E-2,2.0426165699999999E-2,1.9909144699999999E-2,1.22956075E-2,1.1504302100000001E-2,1.46679372E-2,1.5396197E-2,1.45202926E-2,1.3759352000000001E-2,1.26646542E-2,1.13601247E-2,1.06469819E-2,9.2976217999999992E-3,3.1579684900000002E-2]
[null,null,null,null,null,null,null,null,null,null,"T01_6|MT","T01_6","MT","waver","n.a.","n.a.","n.a.","n.a.",2.9349281500000001E-2,2.8040046400000001E-2,2.8407405100000001E-2,2.7782576E-2,2.9566081300000002E-2,2.76191096E-2,2.8537848099999999E-2,2.7870613299999999E-2,2.86008554E-2,2.38499995E-2,2.9414870999999999E-2,2.9670897799999998E-2,3.0382369699999998E-2,2.9132168199999999E-2,3.0154280499999998E-2,3.1965642799999999E-2,3.4782953800000002E-2,3.2520213300000003E-2,3.1104166900000001E-2,3.0094638100000001E-2,3.1579684900000002E-2,3.2515153900000003E-2]
[null,null,null,null,null,null,null,null,null,null,"T01_6|NL","T01_6","NL","waver",4.9790392199999998E-2,4.9278092900000001E-2,4.0587275200000002E-2,3.8581710599999999E-2,3.7967013399999999E-2,4.2031167600000002E-2,4.3378569499999999E-2,4.1795332400000003E-2,3.47460406E-2,3.5776619000000003E-2,3.2022890599999999E-2,3.11281666E-2,3.0274849900000001E-2,3.1110336799999999E-2,3.0359150599999999E-2,2.8412175899999999E-2,2.88142126E-2,3.3752430799999997E-2,3.9977690599999997E-2,3.5867051800000001E-2,3.3049028500000001E-2,3.4443755899999998E-2,3.4540767100000001E-2,3.3037705899999999E-2,3.2515153900000003E-2,1.49758689E-2]
[null,null,null,null,null,null,null,null,null,null,"T01_6|NO","T01_6","NO","waver",1.7550586100000001E-2,1.4120447899999999E-2,1.50614757E-2,1.3568795099999999E-2,1.1603087E-2,1.2878450099999999E-2,1.2454868900000001E-2,2.9486558999999999E-2,3.2229297400000002E-2,3.00238907E-2,3.2212587399999999E-2,3.9957764700000002E-2,1.1037876699999999E-2,1.1783577599999999E-2,1.3299417799999999E-2,3.3178935E-2,3.4762784300000002E-2,3.5225490200000001E-2,3.3706252200000002E-2,1.51037775E-2,1.38847786E-2,1.4603574100000001E-2,1.6423272100000001E-2,1.53506241E-2,1.49758689E-2,3.30512497E-2]
[null,null,null,null,null,null,null,null,null,null,"T01_6|PL","T01_6","PL","waver",3.8408766300000001E-2,4.0176190899999999E-2,3.9258406699999998E-2,3.8342414700000001E-2,3.5727525400000001E-2,3.5389757899999999E-2,3.5313896999999997E-2,3.4988700900000003E-2,3.6422357199999998E-2,3.67810597E-2,3.6579796999999997E-2,3.6566060599999999E-2,3.6434169199999998E-2,3.740404E-2,3.71764916E-2,3.7407047999999998E-2,3.4897934999999998E-2,3.69771027E-2,3.7414680200000001E-2,3.7766817699999997E-2,3.6221432800000002E-2,3.4698342200000003E-2,3.2158351699999997E-2,3.1691397199999999E-2,3.30512497E-2,6.2534858299999996E-2]
[null,null,null,null,null,null,null,null,null,null,"T01_6|PT","T01_6","PT","waver",0.1016920919,0.1013353015,0.1017585427,8.7006295400000003E-2,8.2129517400000004E-2,8.6148461100000004E-2,9.0265339999999999E-2,8.9108736399999999E-2,0.11775925230000001,9.7112697999999997E-2,9.7455597300000002E-2,9.8648479600000005E-2,9.4793922000000003E-2,8.6775043400000001E-2,8.3806416300000006E-2,8.1421688899999997E-2,7.3150112700000006E-2,7.4840662299999999E-2,7.0185758299999998E-2,7.0313927700000001E-2,6.6401044300000003E-2,6.56447904E-2,5.88709652E-2,6.5247665999999996E-2,6.2534858299999996E-2,2.32338149E-2]
[null,null,null,null,null,null,null,null,null,null,"T01_6|RO","T01_6","RO","waver",3.14125585E-2,3.2049859399999998E-2,3.0068867499999999E-2,2.9818098800000001E-2,3.0159297700000001E-2,3.0741646000000001E-2,2.8580274100000001E-2,2.8268386400000001E-2,3.0035781300000002E-2,2.9903523599999999E-2,2.85231372E-2,2.84152217E-2,2.6674865900000001E-2,2.7597021699999998E-2,2.5666120800000001E-2,2.6333166099999999E-2,2.6165415500000001E-2,2.9359768500000001E-2,2.8194486800000002E-2,2.8532300900000002E-2,2.69210371E-2,2.54848682E-2,2.5461188199999998E-2,2.4163304600000001E-2,2.32338149E-2,1.54924951E-2]
[null,null,null,null,null,null,null,null,null,null,"T01_6|SE","T01_6","SE","waver","n.a.","n.a.","n.a.","n.a.",3.0511456499999999E-2,3.0839909499999998E-2,3.11540316E-2,3.7187594800000001E-2,3.8593080299999999E-2,3.4662100000000001E-2,3.19680091E-2,3.09942011E-2,2.6409937299999998E-2,2.7474168300000001E-2,3.0946721999999999E-2,2.80546479E-2,1.3092240200000001E-2,1.42226718E-2,1.50236081E-2,1.3999740700000001E-2,1.3683232599999999E-2,1.2435129200000001E-2,1.25267512E-2,1.3219190299999999E-2,1.54924951E-2,2.42123419E-2]
[null,null,null,null,null,null,null,null,null,null,"T01_6|SI","T01_6","SI","waver",4.4051626099999998E-2,4.3653737599999999E-2,4.37749895E-2,3.92599436E-2,3.86163988E-2,3.5496781900000003E-2,3.2255028900000003E-2,3.1122982800000001E-2,3.0666762300000001E-2,3.0503367100000001E-2,3.1030191700000001E-2,3.21423983E-2,2.9663391300000001E-2,2.9521312300000001E-2,2.8596805900000001E-2,2.7712797000000001E-2,2.93440165E-2,3.00840925E-2,3.1186039799999999E-2,2.89933442E-2,2.78423465E-2,2.7357355900000001E-2,2.5654408900000002E-2,2.4647944799999998E-2,2.42123419E-2,1.8288510399999999E-2]
[null,null,null,null,null,null,null,null,null,null,"T01_6|SK","T01_6","SK","waver",2.5434449599999999E-2,2.5527759300000001E-2,2.5212093000000001E-2,2.46192415E-2,2.33585322E-2,2.2783146099999999E-2,2.2204947999999999E-2,2.1512524599999999E-2,2.0721331199999998E-2,2.0210290700000001E-2,1.98231452E-2,1.882207E-2,1.9526762999999999E-2,2.0535638200000001E-2,1.9355107699999999E-2,1.8923253800000001E-2,1.92308406E-2,2.0100725900000001E-2,1.9955676499999998E-2,2.0335151700000002E-2,1.9136855899999999E-2,1.94105597E-2,1.8850096100000002E-2,1.8763082399999999E-2,1.8288510399999999E-2,705.01328593999995]
[null,null,null,null,null,null,null,null,null,null,"T02_1|AT","T02_1","AT","waver",709.01289674999998,727.81493106999994,707.28520506999996,704.30609820999996,709.14471729000002,720.72159075000002,714.49181701999998,711.95732714999997,598.78870873999995,617.37560629999996,610.86329438999996,615.53934770000001,607.27898524,592.47892965000005,594.60903495000002,601.80907171000001,599.41231525000001,618.07296830999996,622.78109904999997,631.79590474999998,627.85172573,650.33514271000001,683.40072523000003,692.19613471000002,705.01328593999995,1193.7259792]
[null,null,null,null,null,null,null,null,null,null,"T02_1|BE","T02_1","BE","waver",1025.1930236000001,1099.2410334000001,1021.36598,1020.1606319,984.55254061999995,1023.4696885,1040.6019228,1036.2828452000001,1016.0188968,1018.6579652,1028.3745081,1012.602177,973.75603953999996,1004.389562,1005.4060989,993.67704046999995,947.40067554999996,1159.2188692,1137.9647588,1162.2241442,1116.8092690000001,1184.2065130000001,1203.9928742,1194.6394604,1193.7259792,36.595421311000003]
[null,null,null,null,null,null,null,null,null,null,"T02_1|BG","T02_1","BG","waver",17.851969527000001,18.401680641999999,18.63600726,19.141293588,19.954604253999999,19.840918294000002,20.168425708000001,20.574527048,21.120453522999998,21.390982207,20.588850087000001,21.014423765,21.237963492999999,21.069082216999998,21.207929235999998,21.858163411,22.750181000000001,29.444562327,32.622910318000002,33.423089783999998,34.111489927000001,33.884591471999997,34.063715104000003,35.171793127999997,36.595421311000003,36.355875629000003]
[null,null,null,null,null,null,null,null,null,null,"T02_1|CY","T02_1","CY","waver",47.484206,47.892688,46.311222000000001,45.040877999999999,44.165976999999998,43.349153999999999,43.118850999999999,42.714941000000003,42.474164999999999,42.492427999999997,41.777161,42.147542000000001,42.662121999999997,40.989170999999999,43.290874000000002,"n.a.","n.a.",37.021700000000003,37.432740000000003,36.581958999999998,36.476452000000002,35.332267999999999,36.309713387000002,36.278815870000003,36.355875629000003,170.00108212999999]
[null,null,null,null,null,null,null,null,null,null,"T02_1|CZ","T02_1","CZ","waver",99.161821704999994,103.8522285,103.70241792,107.27626165,106.58570503,112.12746014,114.90717094,118.01338889,116.47598179000001,142.19028154,142.97381276999999,149.32296521000001,145.74438531000001,156.48590972,155.70981391000001,161.00048358999999,153.11659888,166.06345837000001,171.84108164,173.95276942000001,163.99916895000001,172.85260441,174.42904172999999,171.77142555,170.00108212999999,3742.6817704999999]
[null,null,null,null,null,null,null,null,null,null,"T02_1|DE","T02_1","DE","waver",4096.9014686,4501.1667239999997,4102.2468257,4148.1925283999999,4206.0374960999998,4426.3388772999997,4502.3848031999996,4334.0934612999999,4117.1555753000002,4184.1017008999997,4120.3470673000002,4018.1596398000001,3877.2478928999999,3961.3470180999998,3933.8224728999999,3888.0693443,3769.0223943999999,3831.6076767,3787.3275248999998,3896.9791316000001,3532.2489513999999,3940.6092984000002,3938.4998925999998,3915.7163179999998,3742.6817704999999,813.54814744999999]
[null,null,null,null,null,null,null,null,null,null,"T02_1|DK","T02_1","DK","waver",715.60730177000005,745.82696584999997,709.30138480000005,688.67408332000002,681.58186924999995,808.43954738000002,818.94063290999998,825.10296641000002,1337.4278092,713.48662994999995,718.13338197999997,714.63559699999996,719.36407055999996,717.49078722000002,722.68573645000004,718.48689387000002,709.29861521999999,731.46380443999999,754.27321056999995,782.34433824999996,757.99052029999996,789.75714937999999,791.26170910999997,794.26935909999997,813.54814744999999,41.523291342]
[null,null,null,null,null,null,null,null,null,null,"T02_1|EE","T02_1","EE","waver","n.a.","n.a.","n.a.","n.a.","n.a.",15.558247315999999,15.985991201999999,16.295587622999999,16.487526550999998,16.540374915000001,16.408876406000001,16.831183620000001,21.543915854000002,21.312350896000002,22.062025139999999,22.339697009999998,22.955224611999999,33.169675075999997,33.813580029999997,34.229712032999998,34.714486727000001,35.172326009000003,38.190914399999997,39.463891252000003,41.523291342,3476.0980485999999]
[null,null,null,null,null,null,null,null,null,null,"T02_1|ES","T02_1","ES","waver",3248.7668976999998,3394.3255110999999,3354.0918938999998,3368.8528603999998,3370.3352733000002,3323.2622317999999,3364.9752720000001,3296.0310654999998,3307.2877754000001,3331.7530452999999,3267.0026023999999,3249.4627679999999,3235.2595178000001,3222.4696195000001,3233.8697139999999,3210.921304,3237.7941474999998,3321.0276864000002,3337.7831506000002,3361.3122143000001,3340.2788147000001,3418.5878112,3558.8868432999998,3477.4753399000001,3476.0980485999999,25639.354695999999]
[null,null,null,null,null,null,null,null,null,null,"T02_1|EU","T02_1","EU","waver",31262.389098,33739.685529000002,32075.618966000002,31962.697346000001,30652.390168000002,31469.543728000001,31989.519950999998,31055.122953999999,30202.943268999999,30176.893059999999,29977.492418999998,29775.458058,29042.294648999999,29498.523062,29918.751951999999,29808.416509999999,29295.804608999999,30711.612136,30842.035026000001,31753.568695000002,30362.679235,25557.926817,26054.063639,25992.184486999999,25639.354695999999,698.21225156000003]
[null,null,null,null,null,null,null,null,null,null,"T02_1|FI","T02_1","FI","waver",472.64612238000001,518.49348387999999,487.99337211,487.60016032999999,439.43089429999998,471.55471689000001,497.19058329000001,482.46301552,415.38657524000001,181.49208299,177.69754909,177.27229116000001,179.36938096,162.89155076,168.00332488999999,166.29122985000001,682.82625267000003,725.88473399999998,711.94437194,717.46570205,686.18357960000003,742.43371930000001,737.76861245999999,724.14440488000002,698.21225156000003,8308.1653272999993]
[null,null,null,null,null,null,null,null,null,null,"T02_1|FR","T02_1","FR","waver",6928.9558064000003,7400.6825478000001,6891.3307100000002,6896.5660719999996,6704.0912410000001,6954.3723074,7173.7187729999996,7078.1840228999999,6918.8330623000002,7116.3960459,6961.5745619999998,6974.4728467000004,6705.6619228,6925.5327485999996,7117.3558856,7136.2362679999997,6987.0255981,7411.5785137000003,7625.6382058999998,7887.3962588000004,7438.1048699000003,8336.6115114999993,8445.9795847000005,8465.0797636000007,8308.1653272999993,7178.1217540999996]
[null,null,null,null,null,null,null,null,null,null,"T02_1|GB","T02_1","GB","waver",7683.4032734000002,8656.2022278999993,8331.7675830000007,8253.8776331000008,7308.4330747000004,7373.9450110999996,7516.7129383000001,6994.2526828,6214.8332068999998,6196.6521486000001,6464.1956668000003,6387.8435267000004,6284.6226587000001,6386.7053238999997,6535.7738055,6527.1727774999999,6454.3832457999997,6883.8979359000004,6861.6135594999996,7211.9087692000003,6839.9246203000002,7679.5908007999997,7359.7898833999998,7235.1592755000001,7178.1217540999996,282.94880559000001]
[null,null,null,null,null,null,null,null,null,null,"T02_1|GR","T02_1","GR","waver",349.01956171,354.25556005999999,340.93609038,336.31157268999999,336.71931525999997,334.37286922999999,303.99101925000002,295.91343143,288.85187092000001,279.52715928999999,268.14265136,253.56153628999999,250.44926247999999,240.32084599999999,235.25716904999999,237.30585554999999,243.39844123,241.21082921000001,246.86312383000001,248.72264491000001,250.43311646000001,258.72327875000002,270.76268657000003,274.79467398999998,282.94880559000001,47.767641836000003]
[null,null,null,null,null,null,null,null,null,null,"T02_1|HR","T02_1","HR","waver",34.266089436999998,34.511224665999997,35.215791717999998,37.110226746000002,35.982294156999998,35.446800365000001,35.500009378000001,36.450237778000002,36.504668127000002,36.141852696000001,36.551666885000003,39.435486439000002,39.744397569999997,40.009934369,41.017882077000003,41.803739319999998,43.200606905000001,43.772798303000002,44.128095088999999,45.037505228999997,45.337863683000002,45.475767443000002,46.643338518,46.694201964000001,47.767641836000003,87.563910143000001]
[null,null,null,null,null,null,null,null,null,null,"T02_1|HU","T02_1","HU","waver",48.554634043999997,57.707430195999997,55.123819097999998,55.447058480000003,56.827882991000003,56.449709618999997,55.597371441999996,59.058148395000003,61.144260693,55.331555297000001,57.426539972,58.836707068999999,61.133145792000001,61.614603940000002,62.150102826000001,63.361372230000001,65.083687162000004,70.141725395999998,70.631823796999996,76.384167796,81.928883572000004,80.520618712000001,82.355895763999996,83.654955904999994,87.563910143000001,285.50255135999998]
[null,null,null,null,null,null,null,null,null,null,"T02_1|IE","T02_1","IE","waver",327.18803737000002,310.37155611999998,298.16348175000002,288.07101511000002,285.59270605,324.48680852000001,323.30330666999998,315.20098583999999,301.19721060000001,298.80482882000001,290.14477946,286.34015556000003,279.06628751,259.60124250000001,263.27869088,260.64136997999998,267.59078813999997,258.25446979999998,260.66506113000003,263.27328719000002,267.15716068,276.06073293999998,275.87596623000002,279.81049806999999,285.50255135999998,26.146747374]
[null,null,null,null,null,null,null,null,null,null,"T02_1|IS","T02_1","IS","waver",0,0,0,0,0,0,0,0,0,0,0,0,26.871832885,28.199369419,28.658334378999999,28.744155971000001,27.182963773000001,27.688887837999999,27.284618934000001,28.585265927999998,27.302447527999998,25.492904935999999,25.653899288000002,25.741366066000001,26.146747374,2623.627915]
[null,null,null,null,null,null,null,null,null,null,"T02_1|IT","T02_1","IT","waver",2275.7724954999999,2371.4547303999998,2318.9588184999998,2296.5483481000001,2275.9989277,2322.9282908,2331.0157349000001,2296.5345526000001,2277.2998401999998,2289.0076828000001,2228.0465058999998,2215.5475375000001,2218.6362487000001,2196.8212272000001,2209.9675993999999,2214.4589500000002,2196.0016037,2417.8538819999999,2402.1678545999998,2473.0953832999999,2422.3695819999998,2466.60961,2545.2051809999998,2582.7067419,2623.627915,27.242588000000001]
[null,null,null,null,null,null,null,null,null,null,"T02_1|LT","T02_1","LT","waver",16.801833201000001,16.743183999999999,16.559035000000002,16.958532000000002,17.443072000000001,17.055736,17.678052000000001,18.288323999999999,18.835718,18.665748000000001,18.702781000000002,19.285888,22.385044000000001,21.339234999999999,22.049648999999999,22.734767000000002,26.218385000000001,19.451647000000001,19.586736999999999,20.055644999999998,21.553325000000001,22.044844999999999,23.313285,25.067413999999999,27.242588000000001,177.26317648]
[null,null,null,null,null,null,null,null,null,null,"T02_1|LU","T02_1","LU","waver",274.46018304,342.52390961999998,211.03343133999999,212.10887740999999,214.10050472,222.27183456,222.67681875,231.50861946000001,197.51834668999999,208.30127314000001,209.29192624999999,201.37476885999999,199.50854697,203.50893256000001,215.41297700999999,187.80673440000001,212.39203484999999,222.46446807000001,226.83156887000001,232.27388883,233.04725366,231.02555394000001,221.33513094,218.72177149000001,177.26317648,8.7984436746999997]
[null,null,null,null,null,null,null,null,null,null,"T02_1|LV","T02_1","LV","waver",12.922625609000001,13.200044497,13.225750214,13.612561464000001,13.917217892,13.575841842000001,12.989890833,12.870921315,12.735096841000001,12.637969048,12.511867479999999,12.465173978999999,12.793960454,16.165355022,15.749443068,13.522519531,14.234516106999999,12.729581392,12.563384581999999,13.040332595000001,13.465609413999999,13.947091937,15.491013965,15.783161622,8.7984436746999997,22.853745536000002]
[null,null,null,null,null,null,null,null,null,null,"T02_1|MT","T02_1","MT","waver","n.a.","n.a.","n.a.","n.a.",18.156395336999999,18.426397391999998,18.890250737999999,18.764642590000001,19.266284939999998,19.460136560999999,19.698538934999998,19.60438607,19.825598373999998,19.896670200999999,19.812346929,20.088115642999998,20.246587041000002,20.664166501,20.779283490000001,20.99786726,21.102727639000001,21.739890990999999,22.388760999999999,22.496193451,22.853745536000002,2193.2848319]
[null,null,null,null,null,null,null,null,null,null,"T02_1|NL","T02_1","NL","waver",2134.1928910000001,2290.1395790000001,2169.0983809999998,2171.0593766000002,2112.0725957999998,2191.0518424000002,2216.1396417000001,2210.5377225000002,2114.4896345000002,2178.2404805000001,2093.6841278000002,2114.2467283000001,2040.5869961000001,2109.2537987000001,2113.5046158999999,2129.3366894999999,2057.5580568999999,2075.3918647,2075.2898030000001,2112.2415258000001,2070.2359074000001,2212.1461831000001,2262.3562892999998,2290.6661804999999,2193.2848319,302.96861307]
[null,null,null,null,null,null,null,null,null,null,"T02_1|NO","T02_1","NO","waver",361.01092394,393.46710544000001,371.70115234000002,357.12491478999999,338.69634814,348.17685742999998,356.06812983999998,363.02906984999998,300.77629901,327.19002771999999,299.90547394999999,309.26854596999999,291.97956755000001,294.91968252999999,319.13163416999998,307.25262580999998,285.42337714000001,311.38588933,317.42452929000001,313.97202504000001,303.98759536,301.56252954000001,303.65801190000002,297.23205252000002,302.96861307,184.71850928000001]
[null,null,null,null,null,null,null,null,null,null,"T02_1|PL","T02_1","PL","waver",128.08713549999999,134.64697262000001,133.23079175999999,131.88679938999999,134.43427191000001,132.06965464999999,130.42583443999999,133.97480340999999,137.7226694,142.35159096000001,143.013397,141.60721017,151.49303799,150.40394864000001,148.29199309000001,155.37177274000001,167.19203407000001,169.4109162,171.57961861999999,169.45165574999999,178.13569416000001,174.84451075000001,186.73622118,182.4476114,184.71850928000001,355.15328736999999]
[null,null,null,null,null,null,null,null,null,null,"T02_1|PT","T02_1","PT","waver",323.89628586999999,321.80073819,319.40636052000002,311.69422135999997,298.29419680000001,297.6053819,293.42382113999997,289.40998281999998,283.88903649999997,281.23269269000002,279.95086689999999,278.52374759000003,278.54010555999997,325.81712305000002,332.29505209000001,330.53725534,327.72155003,333.69815129,338.42313044999997,338.00479625000003,333.35445153000001,337.60261687000002,356.03610861999999,354.15184719000001,355.15328736999999,51.968035061000002]
[null,null,null,null,null,null,null,null,null,null,"T02_1|RO","T02_1","RO","waver",32.021612214000001,32.579425033,34.494195474000001,34.548295721000002,35.405901341000003,35.125898079000002,35.718610679000001,36.626284552000001,37.748892558000001,37.548868163000002,37.815831701,37.951243511999998,39.858651281999997,40.295597645000001,42.784998176999999,43.633428567000003,44.045912571000002,43.175611023999998,44.429350128000003,45.123580341,46.939650239000002,48.40104522,48.513647001000002,49.138242234000003,51.968035061000002,939.93346326999995]
[null,null,null,null,null,null,null,null,null,null,"T02_1|SE","T02_1","SE","waver","n.a.","n.a.","n.a.","n.a.",1411.1518450999999,1531.3509626,1526.090346,1486.9070154000001,1395.777392,1531.2149314000001,1494.9738224,1486.1062271000001,1348.3866820999999,1396.8755839999999,1438.7332472000001,1424.1678300999999,821.46949725000002,881.98666017000005,867.43760755999995,880.00024478,855.94307974000003,940.17805510000005,980.19492572000001,941.91343675999997,939.93346326999995,32.397115460000002]
[null,null,null,null,null,null,null,null,null,null,"T02_1|SI","T02_1","SI","waver",16.270909,15.897814,15.802607999999999,18.797377999999998,18.681597,22.697634999999998,22.878696000000001,22.982855000000001,23.107590999999999,23.289265,23.005980999999998,23.192699999999999,23.543869000000001,23.657722,23.738804999999999,23.981881000000001,21.440555,21.933585000000001,21.982431999999999,22.313604000000002,23.067164999999999,26.611254815999999,27.403023503,27.674132222000001,32.397115460000002,55.601107599000002]
[null,null,null,null,null,null,null,null,null,null,"T02_1|SK","T02_1","SK","waver",34.325461674000003,34.925394873999998,35.368020303000002,36.240036293999999,37.820617382999998,38.189924116,38.760936932,39.671499279999999,40.232995185999997,41.321681978000001,42.116239440999998,43.002223331000003,43.814003476000003,44.341565371000002,45.238427072,46.029365157000001,47.298923977000001,48.087933589999999,49.511340251999997,49.952257750000001,50.770677597999999,50.623705663000003,52.769612064,54.145689220999998,55.601107599000002,682.34022229000004]
[null,null,null,null,null,null,null,null,null,null,"T02_2|AT","T02_2","AT","waver",79.704659257000003,86.585796009999996,81.930556717000002,86.794203690000003,98.160391883000003,98.615541332000006,95.628148174000003,94.794563846000003,95.894577987999995,104.07035145,104.93888671000001,97.755068584,85.006353985000004,572.57534155999997,567.31909748999999,574.20893029000001,579.09338200000002,595.73304396000003,599.95130702999995,608.65238392000003,604.54925974000002,627.55789875000005,660.64358499000002,669.48619321000001,682.34022229000004,1123.9592524]
[null,null,null,null,null,null,null,null,null,null,"T02_2|BE","T02_2","BE","waver",158.91496619,195.0655946,162.26207151,159.38604691,138.93654683,151.21527301,151.36981890999999,161.83092457999999,145.12918549,165.69297263000001,185.04294289000001,182.35304683999999,140.25552494999999,947.92283740000005,946.55411507999997,934.74158426999998,865.62869812999998,1071.1941440000001,1071.0527929,1091.8516595000001,1049.5992103999999,1113.9982012,1133.3067312999999,1125.4843639999999,1123.9592524,35.037578996000001]
[null,null,null,null,null,null,null,null,null,null,"T02_2|BG","T02_2","BG","waver",2.1043797934000001,2.8798982514000002,3.0708779015999998,3.5581823295000001,4.2898655282,3.8487222619999999,3.6213845996999998,4.0886874936000002,4.6588403722000002,4.8008564270000003,3.7533587278999998,4.1225426934999998,3.9258589835,19.907792208,20.00720677,20.696306370999999,21.651565600000001,27.603874629,31.087767154000002,31.886335514999999,32.499442682999998,32.141012373000002,32.465793026,33.573616934,35.037578996000001,32.921453393999997]
[null,null,null,null,null,null,null,null,null,null,"T02_2|CY","T02_2","CY","waver",5.0891469999999996,7.0373049999999999,7.1286259999999997,7.5218340000000001,7.7780610000000001,7.5244549999999997,7.9656180000000001,7.8057119999999998,8.2992010000000001,8.0250459999999997,8.3404539999999994,9.0891710000000003,9.9324239999999993,37.100903000000002,38.128557999999998,"n.a.","n.a.",32.420447000000003,34.180855999999999,33.42897,33.488943999999996,32.356458000000003,33.041248566,32.956627339999997,32.921453393999997,166.63248755000001]
[null,null,null,null,null,null,null,null,null,null,"T02_2|CZ","T02_2","CZ","waver",16.444741373999999,17.259787496000001,15.503340048,18.220665449999998,17.794961735000001,19.444927982999999,18.436203152000001,18.852564230999999,17.124375952000001,25.962519618000002,31.129924007,25.615762864000001,17.638453441999999,154.05401925000001,153.47019148999999,158.89670480999999,150.78481436000001,163.40194987000001,168.89306959999999,171.08627647,161.08592032000001,169.60082399999999,171.02770747,168.45515415,166.63248755000001,3642.9342775]
[null,null,null,null,null,null,null,null,null,null,"T02_2|DE","T02_2","DE","waver",1583.1714972,1838.4788251,1531.2674079999999,1554.8784372,1745.2697164000001,1900.5382906,1959.5417015,1812.0594966000001,1715.8405685,1746.6731603999999,1719.5724346,1697.7377813999999,1711.5372136000001,3855.6623543000001,3827.5120907999999,3775.6432617999999,3646.0272150999999,3710.8279677999999,3669.9354612000002,3783.7194961999999,3427.5028695000001,3834.1913260000001,3836.154822,3814.5248878000002,3642.9342775,794.43701798999996]
[null,null,null,null,null,null,null,null,null,null,"T02_2|DK","T02_2","DK","waver",477.68074465000001,493.15683964999999,460.05085916000002,449.30403861000002,447.02679907999999,524.04021260000002,532.95065451999994,520.75948724,526.98496761000001,457.45363318,463.88473063999999,461.66487966,466.63528616000002,700.27252000999999,705.26935718000004,701.05608027999995,692.79646992999994,713.01840205999997,735.10546739999995,762.66742160000001,738.45461036999995,769.53622743999995,772.45527025000001,775.31806483000003,794.43701798999996,41.032921444999999]
[null,null,null,null,null,null,null,null,null,null,"T02_2|EE","T02_2","EE","waver","n.a.","n.a.","n.a.","n.a.","n.a.",4.1388948503999998,4.2715462231999997,4.3899692742000003,4.4047716322000001,4.3762906811000004,3.9531157045,4.1185074221000004,5.1749884106000001,21.076931925,21.819056487000001,22.107667750000001,22.715961150999998,32.730991684000003,33.332140787,33.749001530999998,34.298635163999997,34.775452784000002,37.784011049999997,39.045148204,41.032921444999999,2976.1586708]
[null,null,null,null,null,null,null,null,null,null,"T02_2|ES","T02_2","ES","waver",453.31205585999999,496.31963445000002,456.00516911,477.49316679999998,471.80943421000001,467.08218950000003,470.24125853999999,455.35317785000001,470.71439372999998,465.66683224000002,456.47859681,480.29366200999999,498.78509534,2934.6744423,2953.027486,2950.8845655999999,2983.1943916999999,3052.1587419000002,3067.8009570999998,3089.5027418999998,3079.1269923999998,3156.6853009000001,3317.3725094000001,3238.5876343999998,2976.1586708,24053.853556999999]
[null,null,null,null,null,null,null,null,null,null,"T02_2|EU","T02_2","EU","waver",9339.3616144000007,10655.013714999999,9061.8178745999994,9095.1646287999993,8873.1478076000003,9440.3590224,9743.2314095999991,9228.2485197000005,8627.3616612000005,8919.6972084999998,8678.1585460999995,8635.4899702999992,8215.1953582999995,27594.946979,28200.956883999999,28228.813205999999,27729.386897,29032.858883000001,29150.309325999999,30050.451989000001,28885.644117,24168.342535,24744.408565999998,24687.878065000001,24053.853556999999,681.27492124000003]
[null,null,null,null,null,null,null,null,null,null,"T02_2|FI","T02_2","FI","waver",241.33593852000001,274.88031305999999,250.41002836000001,247.58124253,216.06926166,240.82747408,238.71108095,227.01849185,179.9729931,31.923687649000001,27.639138128999999,26.204715123,31.938855148999998,157.11813936999999,162.31180058000001,160.69910238,651.47116534999998,687.81365212000003,678.12615876999996,684.21109173000002,670.16705615000001,723.75295374999996,720.70555158000002,707.55892066000001,681.27492124000003,7755.4758812]
[null,null,null,null,null,null,null,null,null,null,"T02_2|FR","T02_2","FR","waver",2438.4640650000001,2736.9196315999998,2305.4658638000001,2330.9208125999999,2151.0631533999999,2331.9134343999999,2418.5546353,2343.6161262999999,2180.2980911,2314.4422445,2233.4214753000001,2235.0211629999999,1960.5795121000001,6444.1098817000002,6604.1741904,6648.5420531,6483.7956347999998,6876.8533995999996,7066.9761550000003,7315.3521041000004,6916.2464791000002,7727.5720559000001,7896.4224449000003,7911.0072153000001,7755.4758812,6872.5991205]
[null,null,null,null,null,null,null,null,null,null,"T02_2|GB","T02_2","GB","waver",2873.8231442000001,3357.2345151,2758.6619615999998,2720.9686261000002,2632.3520705000001,2696.9149155999999,2845.1051781000001,2622.6071173,2426.4717237999998,2367.5424121999999,2320.0490795999999,2286.3380447999998,2257.2242990999998,5835.2920169999998,6204.8850137999998,6204.5999697999996,6178.5230543999996,6580.6456549000004,6550.5389265000003,6885.5327846,6631.7391718999997,7333.6730869000003,7015.2945317000003,6921.9562666000002,6872.5991205,238.08953079]
[null,null,null,null,null,null,null,null,null,null,"T02_2|GR","T02_2","GR","waver",26.209814890000001,31.4270225,26.68057872,26.982072169999999,21.18635656,21.645932899999998,22.88072214,22.05357849,19.21182782,17.74331784,18.655086820000001,16.962085500000001,18.86815777,196.41403091999999,192.53813701999999,194.61165940999999,199.81406412999999,197.21835779,201.73995009000001,203.67097421,207.03389804,215.58473472,225.08771207999999,231.84705091000001,238.08953079,46.588464440999999]
[null,null,null,null,null,null,null,null,null,null,"T02_2|HR","T02_2","HR","waver",2.4939529870000001,3.7336610687,4.0372615271000001,4.8943586299000001,4.2743079359999996,4.3405761523999997,4.3948583408999999,4.7336390870000002,5.1503020000999999,4.9440740401000003,5.0981671096000003,5.1516372195000004,5.8277421589999996,38.814622958999998,39.795327583999999,40.627406436000001,42.056713543000001,42.597599318999997,42.924168321000003,43.871488223,44.196622814999998,44.362113311999998,45.495302569000003,45.552772382999997,46.588464440999999,83.977895545999999]
[null,null,null,null,null,null,null,null,null,null,"T02_2|HU","T02_2","HU","waver",3.9434884003000001,6.1305966146999999,4.8752323088000002,5.7807272506,5.4212927519000003,5.7203409102,6.4675959922999997,6.4233310865000002,7.5413509550000004,6.6670067355000002,6.3139887900999998,7.1825557308999999,7.8580956647000004,58.873439908999998,59.493107141999999,60.641018817000003,62.223602276999998,66.902548496999998,67.305141986999999,72.941658011000001,78.357809979999999,77.055305224999998,78.752788038000006,80.220520644000004,83.977895545999999,272.44650031999998]
[null,null,null,null,null,null,null,null,null,null,"T02_2|IE","T02_2","IE","waver",44.761548871999999,35.033829122999997,29.907625670000002,28.234484567999999,28.871575001,43.512347736999999,45.580572263000001,45.833695874,47.959468731999998,44.916612936999996,41.944983813,40.508315359999997,40.902348414999999,246.68085163000001,248.98833159,248.84231170999999,254.40597622999999,243.07578685999999,247.08818294,250.37681774999999,254.3723655,260.35546548000002,260.90068794000001,265.98464809000001,272.44650031999998,25.525218141]
[null,null,null,null,null,null,null,null,null,null,"T02_2|IS","T02_2","IS","waver",0,0,0,0,0,0,0,0,0,0,0,0,5.0155564207000003,27.437507893999999,27.953487773999999,27.919702265000002,26.331931265000001,26.614760802999999,26.256421459999999,27.549865412999999,26.424870247000001,24.670831495000002,24.816080294999999,24.936001119,25.525218141,2452.0754440999999]
[null,null,null,null,null,null,null,null,null,null,"T02_2|IT","T02_2","IT","waver",282.62154914000001,309.21347536000002,270.42607616999999,266.57246422999998,265.79368808999999,276.40922123000001,278.08634370999999,263.74564470000001,235.66715185000001,250.95053346,250.11388441,246.83086354,254.76362993000001,2001.7243820000001,2017.8905256,2079.9033159000001,2058.6443033,2267.0024816,2248.5513368000002,2316.1320157,2275.0874207000002,2320.9511296999999,2397.1372870999999,2434.4384039000001,2452.0754440999999,27.028701999999999]
[null,null,null,null,null,null,null,null,null,null,"T02_2|LT","T02_2","LT","waver",3.9428129646999999,2.7784719999999998,3.546961,3.8196289999999999,4.4295590000000002,4.0234949999999996,4.0864969999999996,4.3036570000000003,4.9274079999999998,4.6915259999999996,4.5568980000000003,5.2856420000000002,6.0986459999999996,21.101459999999999,21.841902999999999,22.525077,25.988002999999999,19.211853999999999,19.352461999999999,19.836943999999999,21.349882000000001,21.858896999999999,23.095372999999999,24.849712,27.028701999999999,172.21681222999999]
[null,null,null,null,null,null,null,null,null,null,"T02_2|LU","T02_2","LU","waver",41.206154380999997,59.983840381,49.844588858000002,50.467554544999999,58.511375041000001,63.418927856000003,65.421342375999998,75.185088566000005,72.767702823999997,81.20359114,85.590155085000006,76.686628232000004,69.566164560999994,174.54574928,184.42288392,182.84118434999999,207.47137547,216.74900027999999,220.79796922,226.18191279999999,227.81442802999999,225.24818984999999,215.68078731,212.81720274,172.21681222999999,8.7166390729999996]
[null,null,null,null,null,null,null,null,null,null,"T02_2|LV","T02_2","LV","waver",3.3660027920000002,3.0848651149999999,3.5828158650000002,3.9630540779999999,4.1017364299999999,4.1392473340000002,3.5435546659999999,3.475716399,3.4564850100000002,3.3711698509999999,3.4586631919999999,3.2935403330000002,3.596240517,15.835158802,15.435885127000001,13.356251938,14.070757932999999,12.542864692,12.369956238,12.850983149999999,13.280331353999999,13.770456841,15.315034113999999,15.615118585999999,8.7166390729999996,22.132031453]
[null,null,null,null,null,null,null,null,null,null,"T02_2|MT","T02_2","MT","waver","n.a.","n.a.","n.a.","n.a.",1.1708433278000001,0.98531839919999997,0.96834212460000002,0.90193600009999997,0.98611784899999999,1.1119022596000001,1.1424056827,1.0306317538,1.2002279554999999,17.059100595,19.229569300000001,19.492083216000001,19.631447947000002,20.062174527,20.152699146,20.326656933999999,20.368712438999999,21.032905098000001,21.692377241999999,21.819178651000001,22.132031453,2121.969838]
[null,null,null,null,null,null,null,null,null,null,"T02_2|NL","T02_2","NL","waver",337.44623100000001,403.90883200000002,357.93576200000001,385.62772200000001,363.63694736999997,395.9686605,397.66532706999999,400.11024904999999,349.76363269000001,392.75942242999997,344.06890584000001,362.54201895,309.79494155999998,2043.6342027000001,2049.3404108999998,2068.8376008999999,1998.2595670000001,2005.3423444,1992.3245095,2036.4816496000001,2001.8166220000001,2135.95156,2184.2127676,2214.9878248999999,2121.969838,298.43139484]
[null,null,null,null,null,null,null,null,null,null,"T02_2|NO","T02_2","NO","waver",122.30084471000001,140.40944192000001,117.31662295,115.4413541,102.44212161,107.67481576,109.45093472000001,108.79872983,114.16254811,124.45917145,101.05167747,106.25481018000001,99.893809390000001,291.44447356000001,314.88736921999998,297.05831089999998,275.50126585999999,300.41716874999997,306.72533804,309.22986143999998,299.76679488000002,297.15863880000001,298.67095375999997,292.669355,298.43139484,178.6133317]
[null,null,null,null,null,null,null,null,null,null,"T02_2|PL","T02_2","PL","waver",14.864236297,15.061966554,12.779950873000001,12.091111210999999,14.095893443,12.189877019000001,12.61178306,11.856006927999999,10.903283533,11.406527276,11.616483872,10.857197574000001,11.508497989,144.77823334000001,142.77901704999999,149.55977339,161.35737734,163.14659134999999,165.16002205999999,163.05200597000001,171.68336407999999,168.77769609000001,180.73109210999999,176.66559168000001,178.6133317,332.94382689000003]
[null,null,null,null,null,null,null,null,null,null,"T02_2|PT","T02_2","PT","waver",20.950739758000001,20.830734025000002,19.818763607000001,17.575064123000001,18.718356353000001,20.076017247999999,21.633748277999999,22.282457311999998,18.119833263,21.676686578999998,21.067189816999999,22.063862970999999,24.760651353,297.54432806,304.44659461999998,303.62435375000001,303.74868170000002,308.72396063000002,314.67064640000001,314.23835143000002,311.21936784000002,315.44076387000001,335.07591924000002,331.04426574000001,332.94382689000003,50.760619351000003]
[null,null,null,null,null,null,null,null,null,null,"T02_2|RO","T02_2","RO","waver",4.8108978180999999,4.5005712546999996,4.8189846739000002,4.2527115187,6.0467655899999997,4.8111273629999998,5.0659714340999997,4.9970980973000003,6.0732330184999999,5.6350868907000002,5.3205147754000004,4.8538945199999999,6.5036168797,39.183559164000002,41.686873243999997,42.484422242999997,42.893432967000003,41.907985081,43.176687403999999,43.836100768000001,45.675986172000002,47.167550961000003,47.278431906999998,47.950899919000001,50.760619351000003,925.37154869000005]
[null,null,null,null,null,null,null,null,null,null,"T02_2|SE","T02_2","SE","waver","n.a.","n.a.","n.a.","n.a.",465.30407430000002,567.09270194999999,552.37676649000002,513.41551578999997,410.84815531999999,519.62524739000003,491.43050803,464.57001315000002,369.15705129999998,1358.4975893000001,1394.2091694000001,1384.2133027,810.71462130999998,869.44245336999995,854.40556486000003,867.68046952999998,844.23101153000005,928.48681952000004,967.91626773999997,929.46210381000003,925.37154869000005,31.612705424000001]
[null,null,null,null,null,null,null,null,null,null,"T02_2|SI","T02_2","SI","waver",1.718105,1.4493210000000001,1.6205179999999999,2.2866439999999999,2.0768710000000001,2.4787319999999999,2.629562,2.9764020000000002,2.9811000000000001,3.3492869999999999,2.9465379999999999,2.6499980000000001,2.747071,22.959315,23.059951000000002,23.317274000000001,20.811402999999999,21.273734000000001,21.296887999999999,21.666658999999999,22.424921999999999,25.883240248,26.700016133999998,26.992022738999999,31.612705424000001,54.584246166]
[null,null,null,null,null,null,null,null,null,null,"T02_2|SK","T02_2","SK","waver",1.6393470109999999,1.3838721692,1.4733818908,1.1854726991,2.1902834320000002,2.390330568,2.2134403904000002,2.1559405988,2.5107798611000001,2.8412789986,3.0586954592,1.4562807432,2.7938467741999999,43.430983028999997,44.362832445999999,45.1583398,46.389325909999997,47.121331216999998,48.523307961,48.936471011000002,49.799086455999998,49.641071203000003,51.774899806000001,53.129749191999998,54.584246166,0.90781777289999999]
[null,null,null,null,null,null,null,null,null,null,"T03_1|AT","T03_1","AT","waver",0.3770899446,0.36788740130000003,0.44525457159999998,0.47169195200000003,0.55952291009999999,0.54019673540000002,0.54987892819999995,0.56929475080000003,0.62778174259999997,0.67547787329999998,0.70353704409999995,0.69091999680000005,0.6705623235,0.87633974069999998,0.88062038269999998,0.8827518714,0.8888284407,0.89150404059999999,0.89162495239999995,0.88772103530000002,0.89322030419999998,0.89060430989999995,0.89689521380000004,0.9041410902,0.90781777289999999,0.90203687740000005]
[null,null,null,null,null,null,null,null,null,null,"T03_1|BE","T03_1","BE","waver",0.28082671009999999,0.3016833994,0.31131022060000002,0.32851762130000001,0.37423854410000001,0.33433196920000002,0.30625192130000001,0.41758991559999997,0.45461613649999999,0.54759516760000004,0.61642307360000004,0.62966030029999998,0.56068480389999997,0.87720407430000003,0.88238533419999998,0.88530359989999996,0.88768020820000004,0.89328181929999995,0.89424840549999995,0.88450116999999995,0.89516065499999997,0.8843426539,0.88682203690000005,0.8923012843,0.90203687740000005,0.88303039920000004]
[null,null,null,null,null,null,null,null,null,null,"T03_1|BG","T03_1","BG","waver",0.93085457650000003,0.92574493940000002,0.95295738959999998,0.96177432890000003,0.9691895908,0.9726889916,0.97318891200000002,0.96312908330000002,0.96305071689999999,0.95716956630000005,0.94446995629999997,0.94833625600000004,0.94616403989999998,0.8443026521,0.84421987730000003,0.84970483600000002,0.85816992680000004,0.87651779600000002,0.88002870980000003,0.87864749610000004,0.87796225790000004,0.87155389429999996,0.87487357980000002,0.87876840749999996,0.88303039920000004,0.96115456720000003]
[null,null,null,null,null,null,null,null,null,null,"T03_1|CY","T03_1","CY","waver",0.98122966379999998,0.98508079439999996,0.99262606850000001,0.98943715060000004,0.99440528939999995,0.99642738239999995,0.99478307899999996,0.99600356759999997,0.99457815279999995,0.99740574699999995,0.99869443560000004,0.99720997659999999,0.99790846629999996,0.92942934570000002,0.93059247089999997,"n.a.","n.a.",0.94407914859999997,0.94452824700000004,0.9411430864,0.94570617099999998,0.9483834417,0.95436733060000001,0.95579184699999997,0.96115456720000003,0.95724004679999997]
[null,null,null,null,null,null,null,null,null,null,"T03_1|CZ","T03_1","CZ","waver",0.63680260339999994,0.61075023230000003,0.64090154779999997,0.66219852499999998,0.76959120589999996,0.69894705450000005,0.66768620369999998,0.69724364400000005,0.77158797499999998,0.70819836120000002,0.84441582230000001,0.86163523019999999,0.84445565820000001,0.95107357150000005,0.95109150509999996,0.94931168749999995,0.95762631409999999,0.95437010119999999,0.95368329839999999,0.955136498,0.96075790189999999,0.94894899389999998,0.94127993470000004,0.94510836519999997,0.95724004679999997,0.70166307380000004]
[null,null,null,null,null,null,null,null,null,null,"T03_1|DE","T03_1","DE","waver",5.3108266500000001E-2,5.7667314499999997E-2,9.0009635599999999E-2,8.7073240199999999E-2,0.25755375320000001,0.2771647874,0.2826018803,0.30567897779999997,0.3508537316,0.39505573770000002,0.41947603160000002,0.42635431699999998,0.46813911489999999,0.69874764659999999,0.70627634939999995,0.71096594710000005,0.71170805449999996,0.69962311320000004,0.68250808230000004,0.67299558820000005,0.6978259201,0.68226923799999994,0.69670627090000004,0.70482123279999997,0.70166307380000004,0.33321688890000001]
[null,null,null,null,null,null,null,null,null,null,"T03_1|DK","T03_1","DK","waver",3.3610731300000002E-2,4.7897315400000001E-2,5.78455701E-2,5.1178938100000002E-2,4.0138286099999997E-2,4.74853997E-2,6.3290931199999997E-2,5.1016551799999997E-2,7.19734873E-2,8.7760036999999999E-2,9.8384511199999997E-2,9.2945219199999998E-2,0.1011399129,0.34823323979999998,0.33510292110000001,0.33962067779999999,0.33079060490000001,0.3252139932,0.32629001839999999,0.31209759840000001,0.32084394109999997,0.31332018890000002,0.31671520980000001,0.31491745659999998,0.33321688890000001,0.92772367870000005]
[null,null,null,null,null,null,null,null,null,null,"T03_1|EE","T03_1","EE","waver","n.a.","n.a.","n.a.","n.a.","n.a.",0.90456687680000003,0.87862037380000002,0.88542272789999998,0.87828289770000001,0.89852177259999999,0.89485774159999998,0.89877704889999999,0.92975467089999997,0.98222397419999996,0.98319608810000003,0.9834619,0.98454025109999999,0.98280911859999998,0.97946737549999996,0.97746170649999997,0.98052225709999996,0.9754661,0.91732764600000005,0.91902562129999998,0.92772367870000005,0.82771001649999998]
[null,null,null,null,null,null,null,null,null,null,"T03_1|ES","T03_1","ES","waver",0.24504249350000001,0.22803147579999999,0.27199016440000001,0.25960131489999999,0.29961721730000002,0.2559054066,0.24867649159999999,0.25405878879999999,0.33527282619999998,0.3133324951,0.35954239799999999,0.41759992379999999,0.45405352669999999,0.80718564559999995,0.81606494009999997,0.81917976690000005,0.82366894339999996,0.82080586700000002,0.81898055820000004,0.8147857584,0.82583005990000002,0.8199395491,0.81565487240000001,0.82888459879999998,0.82771001649999998,0.7682541745]
[null,null,null,null,null,null,null,null,null,null,"T03_1|EU","T03_1","EU","waver",0.15062874840000001,0.1467765556,0.17936770290000001,0.17843928449999999,0.2163941435,0.22014932440000001,0.2234530616,0.23913043789999999,0.26582120879999999,0.30776081700000002,0.3231064427,0.32948081070000002,0.34890087959999999,0.71897734989999995,0.72255242310000001,0.72806458330000001,0.73738542809999996,0.72852316660000005,0.7217313353,0.70900167719999996,0.73383460909999998,0.7405865492,0.75536871539999995,0.76185588630000001,0.7682541745,0.67286218659999997]
[null,null,null,null,null,null,null,null,null,null,"T03_1|FI","T03_1","FI","waver",0.1579645247,0.1574301246,0.22194730809999999,0.22936361699999999,0.2437946953,0.27237190239999998,0.27568676269999998,0.30335060460000002,0.26106061959999999,0.58587291220000004,0.60123689120000001,0.62201829659999996,0.68345329269999999,0.84627805840000003,0.84952996729999997,0.84935184509999995,0.67033667090000004,0.65326640840000005,0.64069777009999995,0.62902361370000004,0.65433675849999995,0.61712104160000003,0.63938783239999997,0.64965711599999998,0.67286218659999997,0.72852880980000001]
[null,null,null,null,null,null,null,null,null,null,"T03_1|FR","T03_1","FR","waver",0.1622447185,0.13520418009999999,0.16557377710000001,0.16936092990000001,0.1973723433,0.1926905723,0.19586063779999999,0.202647885,0.2303691071,0.26318277759999997,0.27845458140000001,0.26348311860000001,0.2924389604,0.70046184840000003,0.69699590450000004,0.70118290589999999,0.72504480449999997,0.70437112550000003,0.6932854275,0.67671823060000003,0.72491822809999995,0.68300742039999995,0.71425918359999996,0.71742668649999997,0.72852880980000001,0.61848991139999998]
[null,null,null,null,null,null,null,null,null,null,"T03_1|GB","T03_1","GB","waver",0.16300232019999999,0.1532271009,0.19165681479999999,0.17655558539999999,0.18286990019999999,0.17436683,0.18009607899999999,0.19681056080000001,0.2153568984,0.2467576548,0.26106140309999998,0.27309275900000002,0.2891499676,0.61318163260000003,0.62958022059999996,0.63662955060000004,0.64206634100000004,0.63721835680000005,0.63146350579999999,0.61347357260000002,0.6321714329,0.60293596140000005,0.62207263670000001,0.62979561910000004,0.61848991139999998,0.87825333400000005]
[null,null,null,null,null,null,null,null,null,null,"T03_1|GR","T03_1","GR","waver",0.52044937700000005,0.5189476435,0.5483386737,0.51948445740000004,0.53602598479999997,0.48261007309999998,0.48546410169999998,0.47488022340000002,0.49618360880000001,0.50681984229999999,0.46381535149999997,0.50865207229999998,0.47019261810000001,0.86634505610000001,0.86261809089999997,0.85482087039999999,0.84863848799999997,0.86229596909999995,0.85389267459999996,0.84992070730000002,0.86235013969999996,0.87220190470000003,0.86872294719999998,0.87951102189999997,0.87825333400000005,0.89273636700000003]
[null,null,null,null,null,null,null,null,null,null,"T03_1|HR","T03_1","HR","waver",0.58564422579999997,0.65733157490000005,0.69301759569999999,0.77156223909999999,0.73883077689999999,0.73863645950000001,0.75132109390000001,0.75787914629999997,0.77533074319999995,0.76701952699999998,0.80802259509999996,0.82426400359999996,0.91606425440000006,0.88586049609999995,0.88850164760000006,0.88974350030000005,0.89271993080000001,0.88573261979999995,0.87737311900000003,0.87658230290000005,0.88172339259999999,0.8839805785,0.8886704138,0.88907939449999995,0.89273636700000003,0.86578197560000003]
[null,null,null,null,null,null,null,null,null,null,"T03_1|HU","T03_1","HU","waver",0.62059958169999996,0.64343175949999998,0.58658001680000005,0.64819030050000004,0.69080889450000005,0.593194836,0.68127413859999997,0.66441908250000004,0.72040580470000004,0.73863985139999999,0.74816744899999998,0.74157521989999997,0.74054251579999997,0.80989430139999996,0.82661908149999996,0.82720226350000003,0.84144578319999996,0.83877691030000001,0.84051916650000003,0.83922909290000003,0.85149469160000002,0.86192829969999996,0.88515991999999999,0.88561381340000001,0.86578197560000003,0.83672244139999996]
[null,null,null,null,null,null,null,null,null,null,"T03_1|IE","T03_1","IE","waver",0.30055716319999998,0.38518996960000002,0.43938764689999998,0.4171517817,0.48310471230000002,0.49938574149999998,0.48882504770000001,0.48533869480000003,0.60731853749999998,0.60886354050000002,0.61669996569999996,0.64370280420000003,0.68919134449999997,0.82859171210000004,0.82606166999999997,0.82613637009999996,0.82631608739999995,0.835470614,0.83818471269999995,0.83028107849999999,0.84562773589999995,0.83880128600000003,0.83227412850000004,0.84089553589999999,0.83672244139999996,0.86482313050000004]
[null,null,null,null,null,null,null,null,null,null,"T03_1|IS","T03_1","IS","waver",0,0,0,0,0,0,0,0,0,0,0,0,0.6094140991,0.91473655840000001,0.91888401360000005,0.91271346919999996,0.91025840530000002,0.9066285368,0.90158565980000005,0.89446215890000003,0.90164243840000002,0.88701549700000004,0.87144926010000001,0.86546107480000001,0.86482313050000004,0.84915928460000001]
[null,null,null,null,null,null,null,null,null,null,"T03_1|IT","T03_1","IT","waver",6.9352208600000007E-2,6.2652364099999996E-2,7.5700737300000001E-2,8.41549994E-2,9.3889377800000007E-2,7.4606016299999994E-2,9.0941564899999994E-2,0.10643314449999999,0.12613670120000001,0.19430783930000001,0.25109200700000001,0.24736163820000001,0.32163736700000001,0.79449817840000003,0.79073021369999996,0.79937611330000002,0.81682954070000002,0.82036711250000005,0.8187532313,0.81501904670000003,0.8247553071,0.82289618060000003,0.82767776979999996,0.83412437210000001,0.84915928460000001,0.96950353]
[null,null,null,null,null,null,null,null,null,null,"T03_1|LT","T03_1","LT","waver",0.68075933769999997,0.59911886820000004,0.73856662080000002,0.77385526189999998,0.75268824729999995,0.79045655579999996,0.77762641210000005,0.78185668610000003,0.81342929180000001,0.84158096959999995,0.84576788859999996,0.88863907170000001,0.89773188999999998,0.96885646780000001,0.97194260040000002,0.97252351240000001,0.97346194699999999,0.96388297560000002,0.96589782739999996,0.96339899939999996,0.96523432779999996,0.97702820960000003,0.96845272859999998,0.970097239,0.96950353,0.91842802830000003]
[null,null,null,null,null,null,null,null,null,null,"T03_1|LU","T03_1","LU","waver",0.2374942206,0.36180172869999999,0.32141645070000002,0.3154960799,0.3255526829,0.33527419330000002,0.26157908410000003,0.29967779210000001,0.24645279270000001,0.27095458119999999,0.31238421890000001,0.3135971347,0.29480447279999999,0.64884297550000003,0.67756072769999998,0.66232278860000005,0.70282486310000003,0.69429005320000003,0.69163476420000003,0.68508919759999998,0.68056314709999999,0.70325513839999998,0.72101863249999998,0.72978931120000001,0.91842802830000003,0.92316903269999995]
[null,null,null,null,null,null,null,null,null,null,"T03_1|LV","T03_1","LV","waver",0.82586522520000005,0.79112872400000001,0.81560066389999997,0.86963743770000002,0.85808688710000003,0.85324732709999995,0.81174011580000005,0.81179381169999998,0.77567264380000001,0.8573449662,0.85991106880000001,0.85433277460000001,0.86257895220000003,0.95553470200000001,0.96125810690000002,0.96689554639999997,0.96675907409999995,0.94137475670000004,0.93979229659999997,0.93870812989999997,0.94844171160000001,0.95713725559999996,0.89132494330000001,0.8864917444,0.92316903269999995,0.89705395310000002]
[null,null,null,null,null,null,null,null,null,null,"T03_1|MT","T03_1","MT","waver","n.a.","n.a.","n.a.","n.a.",0.63454842550000001,0.56391724269999999,0.55935127809999996,0.54607017150000003,0.5785751308,0.65383367650000002,0.6782277041,0.6632958913,0.72253765739999998,0.91220933790000003,0.90980328619999995,0.91489809160000002,0.91760074359999999,0.90823533059999995,0.90768106339999999,0.91051177409999995,0.89907528830000005,0.90441108209999999,0.87997625310000005,0.88834347020000004,0.89705395310000002,0.87409921850000005]
[null,null,null,null,null,null,null,null,null,null,"T03_1|NL","T03_1","NL","waver",0.20176825740000001,0.2077903733,0.27811008450000002,0.34244734370000002,0.34713949890000001,0.34208375470000002,0.31629286099999998,0.38211307100000003,0.40000719260000001,0.46396369720000002,0.38265329720000002,0.43351121860000003,0.42010072370000001,0.84195709669999996,0.84543975329999999,0.86072307410000004,0.8647917893,0.86196126719999999,0.86429348910000003,0.85779891340000003,0.87573840000000003,0.86304214450000005,0.86833450050000005,0.87279213229999997,0.87409921850000005,0.76921168699999998]
[null,null,null,null,null,null,null,null,null,null,"T03_1|NO","T03_1","NO","waver",7.5728732000000007E-2,0.28788810889999999,0.18120158519999999,0.19763203560000001,4.7265700100000002E-2,0.19548606839999999,0.19614118580000001,0.19924144739999999,0.23090520340000001,0.33423502360000001,0.28997627059999997,0.33479555760000002,0.17624777389999999,0.81268459159999995,0.81555054419999995,0.80185342940000004,0.78393153729999998,0.81095609189999995,0.82861075539999995,0.81319840219999995,0.80571504240000003,0.77757145400000005,0.76628434860000005,0.77940903039999998,0.76921168699999998,0.73964904359999994]
[null,null,null,null,null,null,null,null,null,null,"T03_1|PL","T03_1","PL","waver",0.49931286050000001,0.4283609411,0.49356709609999999,0.4130834229,0.54706875460000004,0.54539432909999996,0.50949204790000002,0.52911979659999997,0.55380948949999997,0.56990452449999995,0.58677107210000001,0.69677418520000001,0.65859308419999996,0.79884574239999995,0.78746286580000002,0.79509679509999998,0.79895407159999998,0.78754487370000004,0.7903761198,0.7911952834,0.78127584530000005,0.78216852869999998,0.74407169709999998,0.73419338180000004,0.73964904359999994,0.84958325170000004]
[null,null,null,null,null,null,null,null,null,null,"T03_1|PT","T03_1","PT","waver",0.58299472750000003,0.54557369619999996,0.60979563510000001,0.60646260360000004,0.62413712480000005,0.51487047409999998,0.48773519589999997,0.42679135620000003,0.4695798477,0.47777172670000001,0.49386512570000002,0.54040614360000006,0.62108884679999998,0.82461009669999996,0.83069343620000002,0.83142530560000005,0.82629384910000003,0.82025290070000001,0.81984871609999999,0.8230216977,0.83174740260000002,0.8342806062,0.83192628619999998,0.83688449040000001,0.84958325170000004,0.75876579830000002]
[null,null,null,null,null,null,null,null,null,null,"T03_1|RO","T03_1","RO","waver",0.94685583370000004,0.92665018740000005,0.91834440449999999,0.93502649000000004,0.94324244869999996,0.94094921679999999,0.92333401800000003,0.94575186339999995,0.93053053959999998,0.90715241310000005,0.94244956859999995,0.93368511310000002,0.9721145148,0.79406653999999999,0.79617738490000001,0.79350907390000003,0.79037186209999999,0.80218837139999999,0.80146484640000004,0.79270343560000001,0.79037887060000001,0.78600614349999998,0.77604926080000003,0.77264142999999996,0.75876579830000002,0.87005215380000001]
[null,null,null,null,null,null,null,null,null,null,"T03_1|SE","T03_1","SE","waver","n.a.","n.a.","n.a.","n.a.",0.20274202760000001,0.28121250129999997,0.29679167470000001,0.2982604157,0.22603064149999999,0.3589340774,0.37092321560000002,0.3748072368,0.29955009360000001,0.75532945920000005,0.76067735940000003,0.76249894269999996,0.8773374464,0.85559077120000004,0.84426378219999998,0.84023726070000004,0.85754190829999999,0.828298007,0.84109369980000004,0.85330209359999998,0.87005215380000001,0.81145589470000001]
[null,null,null,null,null,null,null,null,null,null,"T03_1|SI","T03_1","SI","waver",0.90257172870000002,0.86542594770000003,0.86888451720000004,0.89047792309999996,0.8470420166,0.84279663959999995,0.84243763790000004,0.87909596889999997,0.92579517629999997,0.94400181289999996,0.93038236740000002,0.9270074921,0.95687952730000003,0.82005042399999994,0.81834623149999997,0.82035734540000005,0.82151323480000005,0.82240306289999998,0.82690142330000005,0.83463804919999995,0.84163441009999995,0.81640949100000004,0.83002085260000003,0.82688144029999999,0.81145589470000001,0.95953298350000005]
[null,null,null,null,null,null,null,null,null,null,"T03_1|SK","T03_1","SK","waver",0.77909160700000002,0.74061946430000003,0.6668544703,0.63439824980000004,0.81796758150000004,0.77527824970000003,0.78739575910000004,0.7868753517,0.88929806960000002,0.91315706379999995,0.92224837569999996,0.86191024760000001,0.94267207649999996,0.96497856049999997,0.96573290420000002,0.96405702900000001,0.96796863799999999,0.96685777380000004,0.96489887320000001,0.960463756,0.95403392870000003,0.95976509369999996,0.94821742470000003,0.95432587369999999,0.95953298350000005,5.3973156600000002E-2]
[null,null,null,null,null,null,null,null,null,null,"T03_2|AT","T03_2","AT","waver",0,0,0,0,0,0,0,0,0,0,0,0,0,6.9676223400000001E-2,6.6763433600000005E-2,6.8028206699999996E-2,6.5513098699999994E-2,6.20056722E-2,6.0667027599999999E-2,6.14904722E-2,6.2650777099999999E-2,6.1447850300000002E-2,6.0944722600000001E-2,5.5726835299999999E-2,5.3973156600000002E-2,3.6735791800000001E-2]
[null,null,null,null,null,null,null,null,null,null,"T03_2|BE","T03_2","BE","waver",0,0,0,0,0,0,0,0,0,0,0,0,0,5.4242386599999998E-2,5.0131647299999998E-2,4.8419865100000001E-2,4.8810367899999998E-2,4.1711757199999998E-2,3.8097392799999998E-2,4.0824093800000003E-2,3.9138797599999997E-2,3.8490702699999997E-2,4.0651680500000002E-2,3.8094138700000002E-2,3.6735791800000001E-2,0.1067015727]
[null,null,null,null,null,null,null,null,null,null,"T03_2|BG","T03_2","BG","waver",0,0,0,0,0,0,0,0,0,0,0,0,0,0.14025880130000001,0.14461237569999999,0.1388490235,0.13187705080000001,0.11418815390000001,0.1108490743,0.1110899288,0.1087698374,0.1165408173,0.1150578335,0.1111537377,0.1067015727,2.82086665E-2]
[null,null,null,null,null,null,null,null,null,null,"T03_2|CY","T03_2","CY","waver",0,0,0,0,0,0,0,0,0,0,0,0,0,5.9155649099999999E-2,5.7585734E-2,"n.a.","n.a.",4.2661749899999997E-2,4.26922603E-2,4.6142642099999999E-2,4.1623976E-2,4.11619529E-2,3.5152481899999997E-2,3.3532698899999998E-2,2.82086665E-2,1.9068046799999998E-2]
[null,null,null,null,null,null,null,null,null,null,"T03_2|CZ","T03_2","CZ","waver",0,0,0,0,0,0,0,0,0,0,0,0,0,2.4548644500000001E-2,2.4444243300000001E-2,2.28900888E-2,2.1915138000000001E-2,2.1173965199999999E-2,2.0881934000000001E-2,1.7310731699999998E-2,1.8041797599999999E-2,1.6243105000000001E-2,2.27793656E-2,2.1149242200000001E-2,1.9068046799999998E-2,6.7394537800000001E-2]
[null,null,null,null,null,null,null,null,null,null,"T03_2|DE","T03_2","DE","waver",0,0,0,0,0,0,0,0,0,0,0,0,0,5.7283667699999999E-2,5.6483923900000003E-2,5.6830205600000003E-2,5.9321314600000001E-2,5.9849098400000002E-2,6.0888520199999997E-2,5.8831729300000003E-2,6.4026038300000004E-2,5.9557502700000001E-2,6.2323124100000002E-2,6.4245717699999996E-2,6.7394537800000001E-2,1.9782775200000002E-2]
[null,null,null,null,null,null,null,null,null,null,"T03_2|DK","T03_2","DK","waver",0,0,0,0,0,0,0,0,0,0,0,0,0,1.1313963200000001E-2,1.16761826E-2,1.3056240300000001E-2,1.43915109E-2,1.6131116599999999E-2,1.78776982E-2,1.94976657E-2,1.9602987400000001E-2,1.9129258199999999E-2,2.0043518E-2,2.04615101E-2,1.9782775200000002E-2,3.4106761999999999E-6]
[null,null,null,null,null,null,null,null,null,null,"T03_2|EE","T03_2","EE","waver",0,0,0,0,0,0,0,0,0,0,0,0,0,3.6774199999999998E-5,3.55298E-5,9.9493081999999999E-6,1.31018E-5,3.1531639999999997E-4,3.6003149999999998E-4,3.7327379999999998E-4,1.6675199999999999E-5,1.6446599999999999E-5,2.0970100000000001E-5,2.02928E-5,3.4106761999999999E-6,6.8919868400000001E-2]
[null,null,null,null,null,null,null,null,null,null,"T03_2|ES","T03_2","ES","waver",0,0,0,0,0,0,0,0,0,0,0,0,0,8.1073092799999996E-2,7.9298086599999998E-2,7.6069153E-2,7.4797175600000002E-2,7.2415989400000005E-2,6.9381328500000006E-2,6.8830989300000006E-2,6.9614695099999999E-2,6.2079777900000001E-2,6.6523878100000003E-2,6.6060690699999994E-2,6.8919868400000001E-2,5.4432472699999998E-2]
[null,null,null,null,null,null,null,null,null,null,"T03_2|EU","T03_2","EU","waver",0,0,0,0,0,0,0,0,0,0,0,0,0,6.6704735799999998E-2,6.5569757500000006E-2,6.5016051300000002E-2,6.5905950899999996E-2,6.5566002299999995E-2,6.4223529099999996E-2,6.4295821399999994E-2,6.5880349800000002E-2,5.4284878500000001E-2,5.5822129300000002E-2,5.4875543200000002E-2,5.4432472699999998E-2,7.1248211199999995E-2]
[null,null,null,null,null,null,null,null,null,null,"T03_2|FI","T03_2","FI","waver",0,0,0,0,0,0,0,0,0,0,0,0,0,8.8249067799999997E-2,8.5129287600000006E-2,8.8167666899999997E-2,7.3513893199999999E-2,6.5398506699999998E-2,6.0294995300000001E-2,5.9543611400000002E-2,6.6229579400000002E-2,6.6309322800000001E-2,6.9256411700000006E-2,6.98190058E-2,7.1248211199999995E-2,3.8339066300000002E-2]
[null,null,null,null,null,null,null,null,null,null,"T03_2|FR","T03_2","FR","waver",0,0,0,0,0,0,0,0,0,0,0,0,0,4.3850820999999998E-2,4.2415248699999998E-2,4.18556068E-2,4.2835087000000001E-2,4.18410091E-2,4.0265151200000002E-2,3.9500512600000003E-2,4.0266743700000003E-2,3.90971138E-2,3.9674823800000002E-2,3.8314480499999998E-2,3.8339066300000002E-2,9.1297958499999998E-2]
[null,null,null,null,null,null,null,null,null,null,"T03_2|GB","T03_2","GB","waver",0,0,0,0,0,0,0,0,0,0,0,0,0,8.9415924199999997E-2,8.7493815899999994E-2,8.7819942999999998E-2,8.9856249299999996E-2,9.09107044E-2,8.9980890100000002E-2,9.0599749399999999E-2,9.2889151399999995E-2,8.7135554099999998E-2,9.5475442999999993E-2,8.9945928699999997E-2,9.1297958499999998E-2,7.2455998999999993E-2]
[null,null,null,null,null,null,null,null,null,null,"T03_2|GR","T03_2","GR","waver",0,0,0,0,0,0,0,0,0,0,0,0,0,7.00065572E-2,6.7968986800000006E-2,7.9066605499999998E-2,8.8508341399999996E-2,9.0444185600000004E-2,9.3605309299999995E-2,8.9197570700000006E-2,8.6027574199999998E-2,7.3619292899999994E-2,7.8135798899999998E-2,7.0531414599999995E-2,7.2455998999999993E-2,9.9528303200000001E-2]
[null,null,null,null,null,null,null,null,null,null,"T03_2|HR","T03_2","HR","waver",0,0,0,0,0,0,0,0,0,0,0,0,0,0.1058475321,0.10289848059999999,0.1020813302,9.8357857699999995E-2,0.1050687689,0.1126830855,0.11166538970000001,0.1062950329,0.10243606700000001,9.9607129799999999E-2,0.1024800096,9.9528303200000001E-2,8.7515429199999994E-2]
[null,null,null,null,null,null,null,null,null,null,"T03_2|HU","T03_2","HU","waver",0,0,0,0,0,0,0,0,0,0,0,0,0,0.1568556358,0.1386065856,0.1441722906,0.13507773249999999,0.1382169694,0.13569338759999999,0.13309992600000001,0.1240882588,0.1068820323,8.9191603800000005E-2,9.0834310400000007E-2,8.7515429199999994E-2,0.1095492314]
[null,null,null,null,null,null,null,null,null,null,"T03_2|IE","T03_2","IE","waver",0,0,0,0,0,0,0,0,0,0,0,0,0,0.11609089390000001,0.12136343419999999,0.12515636020000001,0.12688109289999999,0.1361116678,0.12955661290000001,0.13118832720000001,0.1208014979,0.1158589216,0.12067460269999999,0.11374447360000001,0.1095492314,3.4547786300000001E-2]
[null,null,null,null,null,null,null,null,null,null,"T03_2|IS","T03_2","IS","waver",0,0,0,0,0,0,0,0,0,0,0,0,0,1.30278706E-2,1.08064548E-2,1.40976517E-2,1.5860711600000001E-2,1.83619751E-2,2.0831605199999999E-2,2.7030439900000001E-2,1.44931816E-2,2.93613616E-2,3.1683991299999999E-2,3.7811170499999998E-2,3.4547786300000001E-2,7.3817699799999997E-2]
[null,null,null,null,null,null,null,null,null,null,"T03_2|IT","T03_2","IT","waver",0,0,0,0,0,0,0,0,0,0,0,0,0,0.1121915166,0.11371669450000001,0.1112260757,0.1018067213,9.9559626299999995E-2,9.6946568400000002E-2,9.7619296699999997E-2,9.6268119799999996E-2,9.3069383800000002E-2,8.9625909599999998E-2,8.5440265599999995E-2,7.3817699799999997E-2,1.1258031999999999E-3]
[null,null,null,null,null,null,null,null,null,null,"T03_2|LT","T03_2","LT","waver",0,0,0,0,0,0,0,0,0,0,0,0,0,1.5145870000000001E-4,2.1257310000000001E-4,2.071025E-4,8.3076799999999996E-4,8.9304239999999995E-4,6.9567380000000001E-4,4.5258990000000002E-4,4.1934660000000001E-4,3.1771959999999999E-4,1.5980689999999999E-3,1.3053672000000001E-3,1.1258031999999999E-3,6.3679011499999993E-2]
[null,null,null,null,null,null,null,null,null,null,"T03_2|LU","T03_2","LU","waver",0,0,0,0,0,0,0,0,0,0,0,0,0,4.94869868E-2,4.53960791E-2,4.5998799999999999E-2,4.5019876399999999E-2,4.5395481199999997E-2,4.56382912E-2,4.7598370199999997E-2,4.7606336999999999E-2,4.86689441E-2,5.35360826E-2,5.1931720000000001E-2,6.3679011499999993E-2,3.8830846600000003E-2]
[null,null,null,null,null,null,null,null,null,null,"T03_2|LV","T03_2","LV","waver",0,0,0,0,0,0,0,0,0,0,0,0,0,1.7715195900000001E-2,7.4229641999999998E-3,2.5701929999999998E-4,2.6019340000000001E-4,3.5593973600000002E-2,3.7610832599999998E-2,3.56303429E-2,2.95689258E-2,2.2087474400000001E-2,2.44807545E-2,3.06981949E-2,3.8830846600000003E-2,9.4898301700000007E-2]
[null,null,null,null,null,null,null,null,null,null,"T03_2|MT","T03_2","MT","waver",0,0,0,0,0,0,0,0,0,0,0,0,0,7.30772648E-2,7.7125273800000005E-2,7.2876428300000004E-2,7.1283238999999998E-2,8.1561460399999994E-2,8.1252311199999996E-2,7.8033258100000003E-2,9.02006848E-2,8.4791039700000001E-2,0.1112077249,0.10314441589999999,9.4898301700000007E-2,5.1705519800000002E-2]
[null,null,null,null,null,null,null,null,null,null,"T03_2|NL","T03_2","NL","waver",0,0,0,0,0,0,0,0,0,0,0,0,0,5.6043594699999998E-2,5.3834422200000003E-2,4.9570094000000002E-2,5.1373683699999999E-2,5.1809316899999999E-2,4.9597973199999999E-2,5.1478080799999999E-2,5.1766974399999999E-2,5.1477898600000002E-2,5.30070786E-2,5.0848487999999997E-2,5.1705519800000002E-2,5.6865728099999999E-2]
[null,null,null,null,null,null,null,null,null,null,"T03_2|NO","T03_2","NO","waver",0,0,0,0,0,0,0,0,0,0,0,0,0,2.3196335799999999E-2,2.2758586099999999E-2,2.4958230500000001E-2,2.56202824E-2,2.7164658000000001E-2,3.20832276E-2,3.8744980999999998E-2,4.5854877799999999E-2,4.7335694999999997E-2,5.1420170199999997E-2,5.3362936999999999E-2,5.6865728099999999E-2,0.228171558]
[null,null,null,null,null,null,null,null,null,null,"T03_2|PL","T03_2","PL","waver",0,0,0,0,0,0,0,0,0,0,0,0,0,0.1738752915,0.18694092500000001,0.17385102,0.1729040849,0.1766733469,0.1794207377,0.1752601007,0.1896330541,0.1801024739,0.22108874009999999,0.2303220245,0.228171558,0.1120274032]
[null,null,null,null,null,null,null,null,null,null,"T03_2|PT","T03_2","PT","waver",0,0,0,0,0,0,0,0,0,0,0,0,0,0.11656677510000001,0.1125751059,0.1107149597,0.1188060316,0.1199964223,0.12256607880000001,0.1224793659,0.1166817899,0.1103466609,0.11670630410000001,0.1168661438,0.1120274032,0.21995044929999999]
[null,null,null,null,null,null,null,null,null,null,"T03_2|RO","T03_2","RO","waver",0,0,0,0,0,0,0,0,0,0,0,0,0,0.19645020229999999,0.18696563930000001,0.188723907,0.19324935160000001,0.18226055720000001,0.17940202220000001,0.18849871460000001,0.19560860529999999,0.1919226067,0.20230291689999999,0.2068212646,0.21995044929999999,1.1072745199999999E-2]
[null,null,null,null,null,null,null,null,null,null,"T03_2|SE","T03_2","SE","waver",0,0,0,0,0,0,0,0,0,0,0,0,0,3.2773217100000002E-2,3.21830211E-2,3.2479152400000003E-2,1.16405837E-2,1.213326E-2,1.2111613800000001E-2,1.1544770500000001E-2,1.1033630399999999E-2,1.2393879300000001E-2,9.7987300000000003E-3,1.00801474E-2,1.1072745199999999E-2,0.1809458826]
[null,null,null,null,null,null,null,null,null,null,"T03_2|SI","T03_2","SI","waver",0,0,0,0,0,0,0,0,0,0,0,0,0,0.17210626709999999,0.17307118299999999,0.17220048960000001,0.1698930149,0.1707797512,0.16212124510000001,0.15679630159999999,0.1535417604,0.17687519900000001,0.1637986256,0.16717755649999999,0.1809458826,3.3696133900000001E-2]
[null,null,null,null,null,null,null,null,null,null,"T03_2|SK","T03_2","SK","waver",0,0,0,0,0,0,0,0,0,0,0,0,0,3.0605223800000001E-2,2.80607623E-2,3.1292326299999999E-2,2.8212503E-2,2.7499574200000002E-2,2.7316353500000001E-2,3.1008232199999999E-2,4.1362657499999997E-2,3.3982166000000001E-2,4.1981289499999998E-2,3.6519176600000001E-2,3.3696133900000001E-2,3.8209070499999997E-2]
[null,null,null,null,null,null,null,null,null,null,"T03_3|AT","T03_3","AT","waver",0.6229100554,0.63211259870000003,0.55474542839999996,0.52830804799999997,0.44047708990000001,0.45980326459999998,0.45012107179999999,0.43070524919999997,0.37221825739999997,0.32452212670000002,0.29646295589999999,0.30908000320000001,0.3294376765,5.3984035899999998E-2,5.2616183699999999E-2,4.9219921899999998E-2,4.5658460499999998E-2,4.6490287200000001E-2,4.7708020099999998E-2,5.0788492499999997E-2,4.4128918699999999E-2,4.7947839800000003E-2,4.2160063499999997E-2,4.0132074400000002E-2,3.8209070499999997E-2,6.12273308E-2]
[null,null,null,null,null,null,null,null,null,null,"T03_3|BE","T03_3","BE","waver",0.71917328989999996,0.6983166006,0.68868977939999998,0.67148237870000005,0.62576145589999999,0.66566803080000003,0.69374807869999999,0.58241008439999997,0.54538386350000001,0.45240483240000001,0.38357692640000002,0.37033969970000002,0.43931519610000003,6.8553539100000005E-2,6.74830186E-2,6.6276535100000006E-2,6.35094239E-2,6.5006423499999993E-2,6.76542017E-2,7.4674736300000003E-2,6.5700547400000003E-2,7.7166643399999998E-2,7.2526282600000005E-2,6.9604577000000001E-2,6.12273308E-2,1.02680281E-2]
[null,null,null,null,null,null,null,null,null,null,"T03_3|BG","T03_3","BG","waver",6.9145423499999997E-2,7.4255060600000006E-2,4.7042610399999997E-2,3.8225671099999997E-2,3.08104092E-2,2.73110084E-2,2.6811088E-2,3.6870916699999999E-2,3.6949283100000001E-2,4.2830433699999997E-2,5.5530043699999997E-2,5.1663743999999998E-2,5.3835960099999997E-2,1.54385466E-2,1.1167747E-2,1.14461405E-2,9.9530224000000007E-3,9.2940500999999995E-3,9.1222158999999994E-3,1.0262575100000001E-2,1.3267904699999999E-2,1.19052884E-2,1.00685867E-2,1.0077854799999999E-2,1.02680281E-2,1.0636766299999999E-2]
[null,null,null,null,null,null,null,null,null,null,"T03_3|CY","T03_3","CY","waver",1.8770336200000001E-2,1.4919205600000001E-2,7.3739315E-3,1.0562849399999999E-2,5.5947106000000003E-3,3.5726175999999999E-3,5.2169210000000002E-3,3.9964324000000004E-3,5.4218471999999997E-3,2.5942529999999999E-3,1.3055644000000001E-3,2.7900234000000001E-3,2.0915336999999998E-3,1.14150052E-2,1.1821795100000001E-2,"n.a.","n.a.",1.32591016E-2,1.2779492700000001E-2,1.2714271500000001E-2,1.26698531E-2,1.0454605400000001E-2,1.04801876E-2,1.06754541E-2,1.0636766299999999E-2,2.3691906400000001E-2]
[null,null,null,null,null,null,null,null,null,null,"T03_3|CZ","T03_3","CZ","waver",0.3631973966,0.38924976770000003,0.35909845219999997,0.33780147500000002,0.23040879410000001,0.3010529455,0.33231379630000002,0.302756356,0.22841202499999999,0.29180163879999998,0.15558417769999999,0.13836476980000001,0.15554434180000001,2.4377784E-2,2.4464251699999998E-2,2.7798223699999999E-2,2.0458547800000001E-2,2.44559336E-2,2.5434767600000002E-2,2.7552770300000001E-2,2.1200300500000002E-2,3.4807901099999997E-2,3.5940699700000002E-2,3.3742392599999997E-2,2.3691906400000001E-2,0.2309423884]
[null,null,null,null,null,null,null,null,null,null,"T03_3|DE","T03_3","DE","waver",0.9468917335,0.94233268550000004,0.90999036440000003,0.91292675980000004,0.74244624680000004,0.72283521260000005,0.71792481969999999,0.69488689049999997,0.64973998730000004,0.60552371260000004,0.58110872800000002,0.57423411629999999,0.53615496740000002,0.24523221349999999,0.23811621290000001,0.2328461403,0.2292358458,0.24078667949999999,0.25686347300000001,0.26842329860000003,0.23842290699999999,0.25841737409999999,0.24121301000000001,0.23117524580000001,0.2309423884,0.64700033589999995]
[null,null,null,null,null,null,null,null,null,null,"T03_3|DK","T03_3","DK","waver",0.96638926869999997,0.95210268460000003,0.94215442989999998,0.94882106190000004,0.95986171389999997,0.95251460030000001,0.93670906880000004,0.94898344820000002,0.92802651270000003,0.91223996299999999,0.90161548879999998,0.90705478080000002,0.89886008709999998,0.64045279700000002,0.65322089630000002,0.64732308189999999,0.65481788419999998,0.65865489030000002,0.65583228339999999,0.66840473590000005,0.65955307149999998,0.66755055299999999,0.66324127229999996,0.66462103319999999,0.64700033589999995,7.2272910600000004E-2]
[null,null,null,null,null,null,null,null,null,null,"T03_3|EE","T03_3","EE","waver","n.a.","n.a.","n.a.","n.a.","n.a.",9.5433123199999997E-2,0.12137962619999999,0.1145772721,0.1217171023,0.1014782274,0.10514225839999999,0.1012229511,7.0245329100000004E-2,1.7739251599999999E-2,1.67683821E-2,1.6528150700000001E-2,1.54466472E-2,1.6875564999999999E-2,2.0172592999999999E-2,2.2165019599999999E-2,1.9461067700000001E-2,2.45174534E-2,8.2651383800000006E-2,8.09540859E-2,7.2272910600000004E-2,0.1033701152]
[null,null,null,null,null,null,null,null,null,null,"T03_3|ES","T03_3","ES","waver",0.75495750650000004,0.77196852419999995,0.72800983559999999,0.74039868509999995,0.70038278269999998,0.74409459339999995,0.75132350839999995,0.74594121120000001,0.66472717380000002,0.68666750489999995,0.64045760200000001,0.58240007620000001,0.54594647330000001,0.1117412616,0.1046369732,0.1047510801,0.10153388100000001,0.1067781436,0.11163811329999999,0.1163832524,0.104555245,0.1179806731,0.1178212495,0.1050547104,0.1033701152,0.17731335279999999]
[null,null,null,null,null,null,null,null,null,null,"T03_3|EU","T03_3","EU","waver",0.84937125160000004,0.85322342520000005,0.82063229709999996,0.82156071549999998,0.78360585650000003,0.77985067559999999,0.77665286739999995,0.76098067599999997,0.73429687219999995,0.69235265219999997,0.67700942710000001,0.67063487529999999,0.65199374080000005,0.21449445880000001,0.21199677850000001,0.2070052731,0.19674349299999999,0.20594392119999999,0.2140778783,0.22673405699999999,0.2003176559,0.20516729989999999,0.18884673569999999,0.18330599219999999,0.17731335279999999,0.25588960220000001]
[null,null,null,null,null,null,null,null,null,null,"T03_3|FI","T03_3","FI","waver",0.8420354753,0.84256987539999995,0.77805269190000004,0.77063638300000004,0.75620530470000002,0.72762809760000002,0.72431323729999997,0.69664939540000004,0.73893938039999996,0.41412708780000002,0.39876310879999999,0.37798170339999998,0.31654670730000001,6.5472873900000006E-2,6.53407451E-2,6.2480487899999999E-2,0.25614943600000001,0.28133508480000002,0.2990072346,0.31143277479999998,0.27943366209999998,0.3165696355,0.29135575590000001,0.28052387820000002,0.25588960220000001,0.23313212389999999]
[null,null,null,null,null,null,null,null,null,null,"T03_3|FR","T03_3","FR","waver",0.8377552815,0.8647957449,0.83442622290000001,0.83063907010000004,0.80262765670000003,0.80730942770000003,0.80413936220000004,0.79735211500000003,0.76963089289999997,0.73681722240000003,0.72154541859999999,0.73651688140000005,0.70756103960000005,0.25568733059999998,0.2605888469,0.25696148730000001,0.23212010850000001,0.25378786539999998,0.26644942119999998,0.2837812569,0.2348150282,0.27789546570000001,0.2460659925,0.24425883300000001,0.23313212389999999,0.29021213010000002]
[null,null,null,null,null,null,null,null,null,null,"T03_3|GB","T03_3","GB","waver",0.83699767979999995,0.84677289909999998,0.80834318520000004,0.82344441459999995,0.81713009979999995,0.82563317000000003,0.81990392099999998,0.80318943919999997,0.78464310159999995,0.7532423452,0.73893859689999997,0.72690724100000004,0.7108500324,0.29740244310000002,0.28292596349999999,0.27555050650000001,0.26807740969999999,0.27187093880000002,0.27855560400000001,0.295926678,0.27493941579999998,0.3099284846,0.28245192019999998,0.28025845220000001,0.29021213010000002,4.9290667099999998E-2]
[null,null,null,null,null,null,null,null,null,null,"T03_3|GR","T03_3","GR","waver",0.47955062300000001,0.4810523565,0.4516613263,0.48051554260000001,0.46397401519999998,0.51738992689999996,0.51453589830000002,0.52511977659999998,0.50381639119999999,0.49318015770000001,0.53618464850000003,0.49134792770000002,0.52980738189999999,6.3648386700000004E-2,6.9412922299999999E-2,6.61125241E-2,6.28531705E-2,4.72598454E-2,5.25020161E-2,6.0881721999999999E-2,5.1622286099999998E-2,5.4178802400000003E-2,5.3141253899999998E-2,4.9957563500000003E-2,4.9290667099999998E-2,7.7353296999999998E-3]
[null,null,null,null,null,null,null,null,null,null,"T03_3|HR","T03_3","HR","waver",0.41435577420000003,0.34266842510000001,0.30698240430000001,0.22843776090000001,0.26116922310000001,0.26136354049999999,0.24867890610000001,0.2421208537,0.22466925679999999,0.23298047299999999,0.19197740490000001,0.17573599640000001,8.39357456E-2,8.2919719000000003E-3,8.5998718000000005E-3,8.1751694999999992E-3,8.9222115000000008E-3,9.1986114000000008E-3,9.9437954999999998E-3,1.17523074E-2,1.19815745E-2,1.35833545E-2,1.1722456500000001E-2,8.4405959999999999E-3,7.7353296999999998E-3,4.6702595200000002E-2]
[null,null,null,null,null,null,null,null,null,null,"T03_3|HU","T03_3","HU","waver",0.37940041829999999,0.35656824050000002,0.41341998320000001,0.35180969950000002,0.30919110550000001,0.406805164,0.31872586139999998,0.33558091750000002,0.27959419530000001,0.26136014860000001,0.25183255100000002,0.25842478009999997,0.25945748419999998,3.3250062800000001E-2,3.4774332900000003E-2,2.8625445900000001E-2,2.3476484299999999E-2,2.3006120299999998E-2,2.3787446E-2,2.7670981099999999E-2,2.4417049600000001E-2,3.1189668E-2,2.5648476199999999E-2,2.3551876199999999E-2,4.6702595200000002E-2,5.3728327200000002E-2]
[null,null,null,null,null,null,null,null,null,null,"T03_3|IE","T03_3","IE","waver",0.69944283679999997,0.61481003040000004,0.56061235310000002,0.5828482183,0.51689528770000004,0.50061425849999996,0.51117495229999999,0.51466130519999997,0.39268146250000002,0.39113645949999998,0.38330003429999998,0.35629719580000002,0.31080865549999998,5.5317393999999999E-2,5.2574895699999999E-2,4.8707269599999999E-2,4.6802819699999998E-2,2.8417718200000001E-2,3.2258674299999998E-2,3.8530594299999998E-2,3.3570766199999998E-2,4.5339792400000002E-2,4.7051268799999997E-2,4.5359990400000001E-2,5.3728327200000002E-2,0.1006290832]
[null,null,null,null,null,null,null,null,null,null,"T03_3|IS","T03_3","IS","waver",0,0,0,0,0,0,0,0,0,0,0,0,0.3905859009,7.2235570999999998E-2,7.0309531600000003E-2,7.3188879100000007E-2,7.3880883100000003E-2,7.5009488099999994E-2,7.7582735099999994E-2,7.8507401199999993E-2,8.3864380000000002E-2,8.3623141400000003E-2,9.6866748599999997E-2,9.6727754700000002E-2,0.1006290832,7.7023015599999994E-2]
[null,null,null,null,null,null,null,null,null,null,"T03_3|IT","T03_3","IT","waver",0.93064779139999998,0.93734763590000003,0.92429926269999996,0.91584500059999996,0.90611062220000005,0.92539398370000003,0.90905843509999995,0.89356685550000003,0.87386329880000002,0.80569216070000005,0.74890799299999999,0.75263836179999999,0.67836263299999999,9.3310304999999996E-2,9.5553091800000003E-2,8.9397810899999999E-2,8.1363738000000005E-2,8.0073261199999995E-2,8.4300200300000003E-2,8.7361656600000004E-2,7.8976572999999994E-2,8.4034435599999999E-2,8.2696320500000003E-2,8.0435362299999993E-2,7.7023015599999994E-2,2.93706668E-2]
[null,null,null,null,null,null,null,null,null,null,"T03_3|LT","T03_3","LT","waver",0.31924066229999998,0.40088113180000001,0.26143337919999998,0.22614473809999999,0.2473117527,0.20954344420000001,0.2223735879,0.2181433139,0.18657070819999999,0.15841903039999999,0.15423211140000001,0.11136092829999999,0.10226811,3.0992073500000002E-2,2.7844826499999999E-2,2.7269385100000001E-2,2.5707285E-2,3.5223982000000001E-2,3.3406498899999998E-2,3.6148410800000003E-2,3.4346325699999999E-2,2.2654070799999999E-2,2.99492024E-2,2.8597393799999999E-2,2.93706668E-2,1.7892960199999999E-2]
[null,null,null,null,null,null,null,null,null,null,"T03_3|LU","T03_3","LU","waver",0.76250577939999997,0.63819827129999995,0.67858354929999998,0.68450392010000005,0.67444731710000005,0.66472580670000003,0.73842091590000003,0.70032220789999999,0.75354720730000002,0.72904541879999996,0.68761578109999999,0.68640286530000005,0.70519552720000001,0.3016700377,0.27704319319999998,0.2916784114,0.25215526059999999,0.26031446559999999,0.26272694460000001,0.26731243230000001,0.27183051590000001,0.24807591749999999,0.22544528489999999,0.21827896869999999,1.7892960199999999E-2,3.8000120700000001E-2]
[null,null,null,null,null,null,null,null,null,null,"T03_3|LV","T03_3","LV","waver",0.1741347748,0.20887127599999999,0.18439933610000001,0.13036256230000001,0.1419131129,0.14675267289999999,0.18825988420000001,0.18820618829999999,0.22432735619999999,0.1426550338,0.14008893119999999,0.14566722539999999,0.1374210478,2.6750102099999999E-2,3.13189288E-2,3.2847434199999997E-2,3.2980732499999998E-2,2.3031269699999999E-2,2.2596870799999998E-2,2.5661527199999999E-2,2.1989362599999999E-2,2.0775269999999998E-2,8.4194302100000007E-2,8.2810060699999993E-2,3.8000120700000001E-2,8.0477451999999994E-3]
[null,null,null,null,null,null,null,null,null,null,"T03_3|MT","T03_3","MT","waver","n.a.","n.a.","n.a.","n.a.",0.36545157449999999,0.43608275730000001,0.44064872189999998,0.45392982850000002,0.4214248692,0.34616632349999998,0.3217722959,0.3367041087,0.27746234260000002,1.4713397200000001E-2,1.307144E-2,1.22254801E-2,1.1116017299999999E-2,1.0203209E-2,1.10666254E-2,1.14549678E-2,1.0724026899999999E-2,1.07978782E-2,8.8160219999999997E-3,8.5121138999999998E-3,8.0477451999999994E-3,7.4195261700000001E-2]
[null,null,null,null,null,null,null,null,null,null,"T03_3|NL","T03_3","NL","waver",0.79823174259999996,0.79220962669999995,0.72188991550000003,0.65755265630000004,0.65286050110000005,0.65791624530000004,0.68370713900000002,0.61788692899999997,0.59999280740000005,0.53603630280000003,0.61734670280000004,0.56648878140000003,0.57989927630000004,0.1019993086,0.10072582450000001,8.9706832E-2,8.3834527000000006E-2,8.6229415899999995E-2,8.6108537700000001E-2,9.0723005800000006E-2,7.2494625500000007E-2,8.5479956900000001E-2,7.8658421000000006E-2,7.6359379699999994E-2,7.4195261700000001E-2,0.1739225848]
[null,null,null,null,null,null,null,null,null,null,"T03_3|NO","T03_3","NO","waver",0.92427126800000003,0.71211189109999995,0.81879841480000004,0.80236796440000002,0.95273429990000003,0.80451393159999995,0.80385881420000005,0.80075855259999995,0.76909479660000002,0.66576497639999999,0.71002372940000003,0.66520444239999998,0.82375222609999998,0.16411907249999999,0.16169086969999999,0.1731883401,0.19044818029999999,0.16187925,0.139306017,0.14805661680000001,0.14843007969999999,0.17509285099999999,0.1822954812,0.16722803259999999,0.1739225848,3.2179398400000003E-2]
[null,null,null,null,null,null,null,null,null,null,"T03_3|PL","T03_3","PL","waver",0.50068713949999999,0.5716390589,0.50643290389999995,0.5869165771,0.45293124540000002,0.45460567089999998,0.49050795209999998,0.47088020339999997,0.44619051050000003,0.43009547549999999,0.41322892789999999,0.30322581479999999,0.34140691579999999,2.7278966000000002E-2,2.5596209200000001E-2,3.1052184900000002E-2,2.8141843499999999E-2,3.5781779399999998E-2,3.0203142499999999E-2,3.3544615899999998E-2,2.9091100599999999E-2,3.7728997399999999E-2,3.4839562800000001E-2,3.5484593699999997E-2,3.2179398400000003E-2,3.8389345200000001E-2]
[null,null,null,null,null,null,null,null,null,null,"T03_3|PT","T03_3","PT","waver",0.41700527250000002,0.45442630379999999,0.39020436489999999,0.39353739640000002,0.3758628752,0.48512952590000002,0.51226480409999997,0.57320864380000003,0.53042015229999995,0.52222827329999999,0.50613487430000004,0.4595938564,0.37891115320000002,5.8823128199999998E-2,5.6731457899999997E-2,5.78597348E-2,5.49001192E-2,5.9750677000000002E-2,5.7585205100000002E-2,5.4498936400000003E-2,5.1570807400000002E-2,5.5372732799999998E-2,5.1367409699999998E-2,4.6249365899999999E-2,3.8389345200000001E-2,2.1283752499999999E-2]
[null,null,null,null,null,null,null,null,null,null,"T03_3|RO","T03_3","RO","waver",5.3144166299999997E-2,7.3349812599999994E-2,8.1655595499999997E-2,6.4973509999999998E-2,5.67575513E-2,5.9050783199999998E-2,7.6665981999999994E-2,5.4248136600000003E-2,6.9469460400000002E-2,9.2847586900000001E-2,5.7550431399999998E-2,6.6314886899999995E-2,2.7885485200000001E-2,9.4832575999999995E-3,1.6856975900000001E-2,1.7767018999999998E-2,1.63787863E-2,1.55510713E-2,1.91331314E-2,1.8797849799999999E-2,1.4012524E-2,2.2071249800000001E-2,2.1647822300000001E-2,2.0537305400000001E-2,2.1283752499999999E-2,0.1188751009]
[null,null,null,null,null,null,null,null,null,null,"T03_3|SE","T03_3","SE","waver","n.a.","n.a.","n.a.","n.a.",0.79725797239999996,0.71878749870000003,0.70320832529999999,0.70173958430000005,0.77396935850000004,0.64106592259999995,0.62907678440000003,0.62519276319999995,0.70044990640000004,0.2118973237,0.20713961950000001,0.2050219049,0.1110219699,0.1322759687,0.14362460399999999,0.14821796879999999,0.13142446129999999,0.1593081136,0.14910757020000001,0.13661775900000001,0.1188751009,7.5982226000000002E-3]
[null,null,null,null,null,null,null,null,null,null,"T03_3|SI","T03_3","SI","waver",9.7428271299999994E-2,0.1345740523,0.13111548279999999,0.1095220769,0.1529579834,0.15720336039999999,0.15756236209999999,0.1209040311,7.4204823700000005E-2,5.5998187099999999E-2,6.9617632600000007E-2,7.2992507900000003E-2,4.3120472700000002E-2,7.8433089000000001E-3,8.5825855E-3,7.4421649999999997E-3,8.5937502999999995E-3,6.8171858999999998E-3,1.09773315E-2,8.5656492000000008E-3,4.8238294999999997E-3,6.7153101E-3,6.1805217999999999E-3,5.9410032000000003E-3,7.5982226000000002E-3,6.7708826E-3]
[null,null,null,null,null,null,null,null,null,null,"T03_3|SK","T03_3","SK","waver",0.22090839300000001,0.25938053570000003,0.3331455297,0.36560175020000002,0.18203241849999999,0.22472175029999999,0.21260424089999999,0.2131246483,0.1107019304,8.6842936199999998E-2,7.7751624300000002E-2,0.13808975239999999,5.7327923500000003E-2,4.4162155999999996E-3,6.2063335000000002E-3,4.6506446999999996E-3,3.818859E-3,5.6426519999999997E-3,7.7847732999999997E-3,8.5280118000000005E-3,4.6034138E-3,6.2527403000000002E-3,9.8012858000000001E-3,9.1549496999999997E-3,6.7708826E-3,2.0326627600000001E-2]
[null,null,null,null,null,null,null,null,null,null,"T04_1|AT","T04_1","AT","waver",2.8904534499999999E-2,2.8210594200000001E-2,3.0532327099999999E-2,3.1526213099999999E-2,2.9862157600000001E-2,3.0295070699999999E-2,3.1152401600000001E-2,3.12376262E-2,2.9850821699999999E-2,2.7651093299999999E-2,2.86534762E-2,2.6496949400000001E-2,2.59583104E-2,2.45364972E-2,2.3565214000000001E-2,2.25245707E-2,2.2197276799999999E-2,2.2551320199999999E-2,2.3169173599999999E-2,2.3202092800000001E-2,2.3387686599999999E-2,2.1647931799999999E-2,2.03650046E-2,2.0940603799999999E-2,2.0326627600000001E-2,9.3844362000000004E-3]
[null,null,null,null,null,null,null,null,null,null,"T04_1|BE","T04_1","BE","waver",1.30540182E-2,1.2510308100000001E-2,1.23671491E-2,1.2148360800000001E-2,1.3497291599999999E-2,1.1853753700000001E-2,1.22468582E-2,1.1957524299999999E-2,1.22870384E-2,1.18886749E-2,1.14310334E-2,1.15555541E-2,1.01239316E-2,8.8308728000000003E-3,8.3212137999999995E-3,8.2982582000000003E-3,9.8517941999999997E-3,1.02639047E-2,1.0288028499999999E-2,1.07320778E-2,1.0388084400000001E-2,9.5368953000000006E-3,9.3119780999999999E-3,9.3711769E-3,9.3844362000000004E-3,4.2976103E-3]
[null,null,null,null,null,null,null,null,null,null,"T04_1|BG","T04_1","BG","waver",9.8705847000000006E-3,1.0741585200000001E-2,1.0600493900000001E-2,7.4581072999999999E-3,5.9424424000000002E-3,6.0490420000000001E-3,5.6727104999999998E-3,5.5887213999999998E-3,5.8081840000000001E-3,5.8628324999999998E-3,5.9976728000000002E-3,5.6994398999999996E-3,5.8343474999999999E-3,5.9943490000000004E-3,5.8141102E-3,5.4604620000000001E-3,5.5389977000000002E-3,4.35828E-3,3.7825729E-3,3.5568066999999998E-3,4.6078956999999997E-3,4.7644339999999997E-3,4.8585149000000003E-3,4.4508995999999997E-3,4.2976103E-3,8.1583511000000008E-3]
[null,null,null,null,null,null,null,null,null,null,"T04_1|CY","T04_1","CY","waver",1.401748E-3,1.4756935000000001E-3,1.6620439000000001E-3,1.9018755000000001E-3,2.2300632000000001E-3,2.7242270000000001E-3,3.3996606999999999E-3,3.3165122999999999E-3,4.7720579000000004E-3,6.9066715999999998E-3,7.0745347000000002E-3,7.1749965000000001E-3,8.0936505000000006E-3,7.9467361000000007E-3,7.6123700000000002E-3,7.6544389000000003E-3,7.8805362999999993E-3,7.5241650999999998E-3,7.6576344999999997E-3,8.0446235000000005E-3,8.1702118000000004E-3,7.9069437000000003E-3,7.8254289000000005E-3,8.0122075999999997E-3,8.1583511000000008E-3,6.6692240000000005E-4]
[null,null,null,null,null,null,null,null,null,null,"T04_1|CZ","T04_1","CZ","waver",1.070117E-4,0,0,0,0,0,0,0,0,0,0,0,7.5130979999999997E-4,6.9667100000000005E-4,6.9382920000000004E-4,6.7134979999999996E-4,7.1198400000000003E-4,6.5377220000000002E-4,6.2922279999999998E-4,6.2212309999999996E-4,6.6604420000000004E-4,6.2721770000000003E-4,6.2285249999999997E-4,6.2199149999999997E-4,6.6692240000000005E-4,1.02808307E-2]
[null,null,null,null,null,null,null,null,null,null,"T04_1|DE","T04_1","DE","waver",1.3884397999999999E-2,1.3318262900000001E-2,1.4716416100000001E-2,1.4082889600000001E-2,1.3011992199999999E-2,1.21173455E-2,1.2077184600000001E-2,1.2366448400000001E-2,1.31670685E-2,1.2812441799999999E-2,1.2767744399999999E-2,1.2289427800000001E-2,1.22337257E-2,1.15910995E-2,1.11420527E-2,1.1241258299999999E-2,1.1589420600000001E-2,1.0552454100000001E-2,1.06910327E-2,1.04019879E-2,1.1094388199999999E-2,9.7767769000000008E-3,9.3187310000000002E-3,1.00146374E-2,1.02808307E-2,3.1306293499999999E-2]
[null,null,null,null,null,null,null,null,null,null,"T04_1|DK","T04_1","DK","waver",1.18884084E-2,1.01778549E-2,9.8317032999999995E-3,1.0041395599999999E-2,3.4248261199999998E-2,3.0640012000000001E-2,2.4475815800000002E-2,2.4275904599999999E-2,2.43237592E-2,2.49431998E-2,3.05491562E-2,2.9154257100000001E-2,2.9985508800000001E-2,2.9523136299999999E-2,3.2995602499999999E-2,3.36290266E-2,3.2489591900000003E-2,3.0837208099999999E-2,2.9700813699999998E-2,2.94350177E-2,3.01946134E-2,2.8911170600000001E-2,2.9179780299999999E-2,2.9523250000000001E-2,3.1306293499999999E-2,0]
[null,null,null,null,null,null,null,null,null,null,"T04_1|EE","T04_1","EE","waver",0,0,0,0,0,0,0,0,0,0,0,0,0,0,0,0,0,0,0,0,0,0,0,0,0,1.5698090200000001E-2]
[null,null,null,null,null,null,null,null,null,null,"T04_1|ES","T04_1","ES","waver",1.5690729800000001E-2,1.6159019899999998E-2,1.6655482700000002E-2,1.5690633999999998E-2,1.6113588700000001E-2,1.6135613300000001E-2,1.7055797000000001E-2,1.6431958699999999E-2,1.6361709700000001E-2,1.69485095E-2,1.72090079E-2,1.75434818E-2,1.7718036400000001E-2,1.8244380899999999E-2,1.8350457399999999E-2,1.8949151599999998E-2,1.8763500700000001E-2,1.8534034299999998E-2,1.7172260299999999E-2,1.7437408599999999E-2,1.7358427100000001E-2,1.6850582499999999E-2,1.5600182299999999E-2,1.62365841E-2,1.5698090200000001E-2,1.3546015200000001E-2]
[null,null,null,null,null,null,null,null,null,null,"T04_1|EU","T04_1","EU","waver",1.7413260999999999E-2,1.7037664399999999E-2,1.7605331799999999E-2,1.7324396700000001E-2,1.86570109E-2,1.7467491200000001E-2,1.7387686900000001E-2,1.7742190500000001E-2,1.8101635200000001E-2,1.7466619499999999E-2,1.7635263299999999E-2,1.7199239500000001E-2,1.7119390000000002E-2,1.8704192099999999E-2,1.8176193899999998E-2,1.82389193E-2,1.6314636300000001E-2,1.5695109700000001E-2,1.52642374E-2,1.53594583E-2,1.5845447499999998E-2,1.3991941799999999E-2,1.3511767100000001E-2,1.37297276E-2,1.3546015200000001E-2,1.42856545E-2]
[null,null,null,null,null,null,null,null,null,null,"T04_1|FI","T04_1","FI","waver",3.9263815999999998E-3,3.6165248000000001E-3,3.8296932E-3,5.0276547999999997E-3,5.6780811000000002E-3,5.1531166999999999E-3,4.8560254999999997E-3,4.9046565999999996E-3,5.7123395999999996E-3,9.3081798999999996E-3,8.9405017000000007E-3,8.8981508000000008E-3,8.8546322000000004E-3,1.0479254800000001E-2,1.0133176799999999E-2,9.9198129999999995E-3,1.6777019600000002E-2,1.7356109799999998E-2,1.81117376E-2,1.68948363E-2,1.75471764E-2,1.41817683E-2,1.6139384E-2,1.44445405E-2,1.42856545E-2,1.15788217E-2]
[null,null,null,null,null,null,null,null,null,null,"T04_1|FR","T04_1","FR","waver",1.1714216600000001E-2,1.2136153699999999E-2,1.29143005E-2,1.3171897599999999E-2,1.420162E-2,1.3569537200000001E-2,1.39329934E-2,1.4580385899999999E-2,1.4527768E-2,1.40286918E-2,1.3921639099999999E-2,1.34217906E-2,1.3723191799999999E-2,2.22292098E-2,2.2232961400000001E-2,2.1677949799999999E-2,1.26066527E-2,1.24958867E-2,1.2084333399999999E-2,1.20970785E-2,1.25439353E-2,1.15990586E-2,1.1432253999999999E-2,1.155575E-2,1.15788217E-2,1.5348694899999999E-2]
[null,null,null,null,null,null,null,null,null,null,"T04_1|GB","T04_1","GB","waver",2.24709877E-2,2.1226542800000001E-2,2.1932470999999999E-2,2.2201789E-2,2.3815845700000001E-2,2.1845110399999999E-2,2.1338631300000001E-2,2.2654956300000001E-2,2.3129864199999999E-2,2.2007842199999999E-2,2.22238417E-2,2.1744641700000001E-2,2.1368782699999998E-2,1.9935324599999998E-2,1.82077647E-2,1.8542064899999999E-2,1.9644286800000001E-2,1.85408712E-2,1.7913327900000001E-2,1.7864144200000001E-2,1.8355371299999999E-2,1.6705851899999999E-2,1.75919187E-2,1.6390746899999999E-2,1.5348694899999999E-2,1.09279793E-2]
[null,null,null,null,null,null,null,null,null,null,"T04_1|GR","T04_1","GR","waver",2.1334024000000001E-3,2.0415652E-3,1.9271672999999999E-3,1.9732210999999999E-3,6.6319990000000004E-4,5.9445340000000002E-4,6.4442269999999999E-4,6.5848969999999997E-4,6.7213609999999997E-4,5.38354E-4,2.3872330000000001E-4,2.5297729999999998E-4,2.5963210000000002E-4,4.7574304999999997E-3,4.6651933000000003E-3,4.5615739000000001E-3,4.3620969999999997E-3,4.4824603999999999E-3,6.2723659000000001E-3,6.2126519999999999E-3,6.1162396999999997E-3,1.0293724400000001E-2,1.1388261199999999E-2,1.12695165E-2,1.09279793E-2,4.1198763999999999E-3]
[null,null,null,null,null,null,null,null,null,null,"T04_1|HR","T04_1","HR","waver",1.6805981099999999E-2,1.7218314500000002E-2,1.68841011E-2,2.7411245300000001E-2,1.90819871E-2,1.4191258199999999E-2,1.1234569599999999E-2,9.1855192000000006E-3,8.3279145000000002E-3,7.9594281000000006E-3,7.5774646000000001E-3,4.3327697E-3,5.1677626000000004E-3,5.0233420000000001E-3,4.8593191000000004E-3,4.7586102999999996E-3,4.6000948999999998E-3,4.5375016000000004E-3,4.4709355000000003E-3,4.3803551999999999E-3,4.3637260999999997E-3,4.3291409999999999E-3,4.2132710000000002E-3,4.2217106000000003E-3,4.1198763999999999E-3,1.1265793E-2]
[null,null,null,null,null,null,null,null,null,null,"T04_1|HU","T04_1","HU","waver",3.1680459199999997E-2,2.6429998100000001E-2,2.7792450199999999E-2,2.8341116699999998E-2,2.5900318299999999E-2,2.6789546800000001E-2,2.73530882E-2,1.1588264500000001E-2,8.4888866000000004E-3,4.0161403000000002E-3,3.8523588E-3,3.7780043999999999E-3,6.9048106999999997E-3,6.7395718E-3,6.8839419999999997E-3,6.7928661000000003E-3,6.6485425000000001E-3,6.1032856999999998E-3,6.0901912999999997E-3,1.30246128E-2,1.21582774E-2,1.2261518399999999E-2,1.20901182E-2,1.17182855E-2,1.1265793E-2,1.1837449E-2]
[null,null,null,null,null,null,null,null,null,null,"T04_1|IE","T04_1","IE","waver",1.8702517200000001E-2,1.99143177E-2,2.0565922300000001E-2,1.8676385899999998E-2,2.11447258E-2,2.07960357E-2,1.95952696E-2,1.0176137199999999E-2,1.0125925399999999E-2,1.1703070899999999E-2,1.03501155E-2,1.36140159E-2,1.3872214399999999E-2,1.47192964E-2,1.4598208999999999E-2,1.4856190300000001E-2,1.43556654E-2,1.32871481E-2,9.7427899999999994E-3,9.8434160000000007E-3,1.2962363100000001E-2,1.16948839E-2,1.1640223200000001E-2,1.5434174300000001E-2,1.1837449E-2,2.46078762E-2]
[null,null,null,null,null,null,null,null,null,null,"T04_1|IS","T04_1","IS","waver",0,0,0,0,0,0,0,0,0,0,0,0,3.5182764E-3,3.1521564999999999E-3,3.0584725999999998E-3,9.1965034000000001E-3,1.2013180199999999E-2,1.17868147E-2,1.4936410799999999E-2,1.55574297E-2,2.0011732000000001E-2,2.4313036499999999E-2,2.4856199999999998E-2,2.4107377499999999E-2,2.46078762E-2,1.3370167000000001E-2]
[null,null,null,null,null,null,null,null,null,null,"T04_1|IT","T04_1","IT","waver",2.7863325000000001E-2,2.7337353000000002E-2,2.56887861E-2,2.6204568500000001E-2,2.5722391899999999E-2,2.45296853E-2,2.3955339999999999E-2,2.4268190700000001E-2,2.2853568099999999E-2,2.2219043599999998E-2,2.20171698E-2,2.1429130300000002E-2,1.9490539599999999E-2,1.9046662900000001E-2,1.6897944200000001E-2,1.6475953000000002E-2,1.6142119999999999E-2,1.52685027E-2,1.5699924399999999E-2,1.5749504500000001E-2,1.5380334000000001E-2,1.54815336E-2,1.49232844E-2,1.44238152E-2,1.3370167000000001E-2,4.8332016999999998E-2]
[null,null,null,null,null,null,null,null,null,null,"T04_1|LT","T04_1","LT","waver",0,0,0,0,0,0,0,0,0,0,0,0,0,0,0,0,0,0,0,0,1.0208361E-3,9.9871000000000009E-4,9.4178739999999995E-4,2.48638186E-2,4.8332016999999998E-2,1.5113411000000001E-3]
[null,null,null,null,null,null,null,null,null,null,"T04_1|LU","T04_1","LU","waver",1.5435343799999999E-2,1.3098825600000001E-2,7.5960274000000001E-3,7.5225498000000002E-3,7.1341716000000001E-3,5.8004481000000002E-3,5.3279822999999999E-3,4.8539346999999997E-3,4.2709836999999997E-3,4.0337575000000004E-3,3.9601927999999998E-3,4.1471770999999998E-3,2.6600360000000002E-3,3.2335108E-3,3.0283319999999999E-3,3.4977324000000001E-3,4.4551438000000002E-3,4.2649645000000002E-3,4.1676400000000002E-3,4.1107058000000004E-3,1.6328715999999999E-3,1.3615884000000001E-3,1.283803E-3,1.3007597000000001E-3,1.5113411000000001E-3,7.4859797E-3]
[null,null,null,null,null,null,null,null,null,null,"T04_1|LV","T04_1","LV","waver",1.15074188E-2,1.2347653700000001E-2,1.2736938600000001E-2,1.1239210499999999E-2,1.13689243E-2,1.1391020999999999E-2,1.23989372E-2,1.26941091E-2,1.28410465E-2,1.30575224E-2,1.16506348E-2,1.2060895800000001E-2,1.22833427E-2,9.7290085000000005E-3,1.01761717E-2,0,0,5.3984625000000003E-3,5.4207290999999996E-3,5.2997814999999997E-3,5.0545358999999996E-3,4.9383079000000002E-3,4.3271941E-3,4.3153788999999998E-3,7.4859797E-3,1.33034092E-2]
[null,null,null,null,null,null,null,null,null,null,"T04_1|MT","T04_1","MT","waver","n.a.","n.a.","n.a.","n.a.",1.97055901E-2,2.1600341700000001E-2,2.1103988800000001E-2,2.1288577600000001E-2,2.05926632E-2,1.7192961100000001E-2,1.6993879900000002E-2,1.7181974799999999E-2,1.8175407800000001E-2,1.8235667800000001E-2,1.8448045900000001E-2,1.8160129099999998E-2,1.9635742899999999E-2,1.9241604999999998E-2,1.9263075399999999E-2,1.9048763600000001E-2,1.8229768300000001E-2,1.40805875E-2,1.36583746E-2,1.36097899E-2,1.33034092E-2,1.8454426900000001E-2]
[null,null,null,null,null,null,null,null,null,null,"T04_1|NL","T04_1","NL","waver",1.9410841500000001E-2,1.8743892700000001E-2,1.9705780999999999E-2,2.05157433E-2,2.28207466E-2,2.0142709299999999E-2,2.1091072900000001E-2,2.1264394999999998E-2,2.3214276799999999E-2,2.2918047099999998E-2,2.3249975999999999E-2,2.22937125E-2,2.2360025200000001E-2,2.2189278199999999E-2,2.16617237E-2,2.1544254799999999E-2,2.11385171E-2,2.15921746E-2,2.0487920100000001E-2,2.13582802E-2,2.2217168799999999E-2,2.1065011299999999E-2,1.958762E-2,1.8865690099999999E-2,1.8454426900000001E-2,1.2739765300000001E-2]
[null,null,null,null,null,null,null,null,null,null,"T04_1|NO","T04_1","NO","waver",1.1819787599999999E-2,1.29564689E-2,1.3234122500000001E-2,4.2331827999999997E-3,1.51456052E-2,1.4378604999999999E-2,1.41502581E-2,1.4070056500000001E-2,1.4837743E-2,1.30221986E-2,1.40872992E-2,1.3711612099999999E-2,1.34946919E-2,1.8169584499999999E-2,1.5023724400000001E-2,1.3265053799999999E-2,1.4179719699999999E-2,1.29744514E-2,1.27073828E-2,1.29308848E-2,1.3218579100000001E-2,1.2632994999999999E-2,1.26424655E-2,1.53678667E-2,1.2739765300000001E-2,1.10839085E-2]
[null,null,null,null,null,null,null,null,null,null,"T04_1|PL","T04_1","PL","waver",8.2762012999999992E-3,0.26067133390000002,0.1732643109,0.11778283790000001,7.8248031199999998E-2,5.4970934200000002E-2,3.8368932299999998E-2,2.6790050199999998E-2,1.8861123800000001E-2,1.5028318299999999E-2,1.04006363E-2,8.7353059000000004E-3,8.1225075000000008E-3,9.9594969999999994E-3,1.17511647E-2,1.1405394500000001E-2,1.1718032999999999E-2,1.15696302E-2,1.14858731E-2,1.19289058E-2,1.21981647E-2,1.17380039E-2,1.1143070600000001E-2,1.1234313900000001E-2,1.10839085E-2,1.09409681E-2]
[null,null,null,null,null,null,null,null,null,null,"T04_1|PT","T04_1","PT","waver",4.4053691200000002E-2,4.4502966900000003E-2,4.1976333499999997E-2,1.73399952E-2,1.69487571E-2,1.6938595300000001E-2,1.6771596499999999E-2,1.7184614000000001E-2,1.6884244499999999E-2,1.21161299E-2,1.21549998E-2,1.18698751E-2,1.1276235399999999E-2,9.2978268000000006E-3,1.1968254100000001E-2,1.1508797499999999E-2,1.04255596E-2,1.1285873199999999E-2,9.4259436000000002E-3,1.06573903E-2,1.2153367300000001E-2,1.15367649E-2,1.07852435E-2,1.09666221E-2,1.09409681E-2,1.50229548E-2]
[null,null,null,null,null,null,null,null,null,null,"T04_1|RO","T04_1","RO","waver",2.63727162E-2,2.63808666E-2,2.4895082700000001E-2,2.1888931100000002E-2,2.1203212400000001E-2,2.15326578E-2,2.0886901900000001E-2,2.0624463400000001E-2,1.9103403299999999E-2,1.8997633600000001E-2,1.8865513099999998E-2,1.8431229399999999E-2,1.74126985E-2,1.72057015E-2,2.0083648400000001E-2,1.9820725599999998E-2,1.4862775599999999E-2,1.5320604999999999E-2,1.4668341099999999E-2,1.46163178E-2,1.3932582900000001E-2,1.6442759899999999E-2,1.62259555E-2,1.6089061599999999E-2,1.50229548E-2,1.13842926E-2]
[null,null,null,null,null,null,null,null,null,null,"T04_1|SE","T04_1","SE","waver","n.a.","n.a.","n.a.","n.a.",1.5223910699999999E-2,1.35048224E-2,1.3415081800000001E-2,1.4430363599999999E-2,1.6962279E-2,1.5061069999999999E-2,1.54595727E-2,1.47523806E-2,1.5310988500000001E-2,1.45697098E-2,1.46722733E-2,1.6076927899999999E-2,1.61640576E-2,1.2501932800000001E-2,1.26338037E-2,1.3084371500000001E-2,1.42656599E-2,1.2031622800000001E-2,1.05898264E-2,1.1718292599999999E-2,1.13842926E-2,1.31123826E-2]
[null,null,null,null,null,null,null,null,null,null,"T04_1|SI","T04_1","SI","waver",1.2981543E-3,1.3326764E-3,2.0715337999999998E-3,3.5281475999999999E-3,3.5462457000000002E-3,1.4212608E-3,1.4087011000000001E-3,1.4245881000000001E-3,1.4174796999999999E-3,1.4513929E-3,1.4961156000000001E-3,1.5534905E-3,1.6013285999999999E-3,1.7091513E-3,1.2588451E-3,1.4796823000000001E-3,1.9841287000000002E-3,2.4468981999999999E-3,4.6733725E-3,7.9526531000000001E-3,1.5033640799999999E-2,1.60240166E-2,1.6243095499999999E-2,1.56627225E-2,1.31123826E-2,8.4699674999999999E-3]
[null,null,null,null,null,null,null,null,null,null,"T04_1|SK","T04_1","SK","waver",1.34380973E-2,1.32296462E-2,1.28132384E-2,1.25572185E-2,1.2090827E-2,1.1975748200000001E-2,1.17441879E-2,1.15092852E-2,1.4128591100000001E-2,1.3751859599999999E-2,1.3441528899999999E-2,1.3175145799999999E-2,1.2955012300000001E-2,1.2730783900000001E-2,1.2146674999999999E-2,9.7623729999999995E-3,9.4952418E-3,9.3477672000000008E-3,9.0572948000000007E-3,9.0078668999999997E-3,8.8759071000000002E-3,9.6131208999999992E-3,9.2103668999999992E-3,8.6948826999999999E-3,8.4699674999999999E-3,0.38847055600000002]
[null,null,null,null,null,null,null,null,null,null,"T04_2|AT","T04_2","AT","waver",0.26698014289999999,0.3157948371,0.34142621480000002,0.3588991373,0.31033802529999999,0.3208341247,0.34002332940000002,0.35561832719999997,0.30960625429999999,0.33887322759999999,0.34663697020000001,0.3560859804,0.3520281166,0.35740928290000001,0.37858278560000003,0.36003416960000001,0.36075305029999999,0.38098212100000001,0.39542122549999997,0.39677089240000002,0.38929781190000001,0.4128684185,0.40231785590000002,0.40105747310000001,0.38847055600000002,0.2274953307]
[null,null,null,null,null,null,null,null,null,null,"T04_2|BE","T04_2","BE","waver",0.25388288399999998,0.23559322399999999,0.25338055170000001,0.26131223710000001,0.26445311739999999,0.25967197660000002,0.25291836629999997,0.2419611465,0.22965460130000001,0.2292520911,0.22681609599999999,0.2261698778,0.2167480091,0.24585648809999999,0.25013549889999998,0.25002873640000001,0.1763201318,0.19073873,0.20164963220000001,0.19291696259999999,0.20284195720000001,0.2155895015,0.2242127944,0.23026252650000001,0.2274953307,0]
[null,null,null,null,null,null,null,null,null,null,"T04_2|BG","T04_2","BG","waver",0,0,0,0,0,0,0,0,0,0,0,0,0,0,0,0,0,0,0,0,0,0,0,0,0,0]
[null,null,null,null,null,null,null,null,null,null,"T04_2|CY","T04_2","CY","waver",0,0,0,0,0,0,0,0,0,0,0,0,0,0,0,"n.a.","n.a.",0,0,0,0,0,0,0,0,0.2831944468]
[null,null,null,null,null,null,null,null,null,null,"T04_2|CZ","T04_2","CZ","waver",0.69276980990000003,0.68695541339999999,0.65292329869999999,0.70082548170000003,0.21212344320000001,0.2144127582,0.19240657389999999,0.25374477080000002,0.15336945590000001,0.122881452,0.1202551697,0.1100782904,4.4181216699999998E-2,4.4504473599999997E-2,3.8299368200000003E-2,3.7293216300000001E-2,4.2531458199999997E-2,4.1581358999999998E-2,4.1582809300000002E-2,3.94309074E-2,3.4060718699999999E-2,3.4563557799999998E-2,3.7733860299999998E-2,3.3795489300000002E-2,0.2831944468,0.308922321]
[null,null,null,null,null,null,null,null,null,null,"T04_2|DE","T04_2","DE","waver",0.28552028769999999,0.26840653990000002,0.26207042679999998,0.24735528349999999,0.24660715129999999,0.24770198560000001,0.2402368245,0.2477316611,0.244520558,0.25069634340000002,0.2495342009,0.24959994799999999,0.25142454959999999,0.23994746920000001,0.2373287775,0.23948975010000001,0.2450090426,0.26968171169999999,0.3047872371,0.294993438,0.30663665579999999,0.31286703360000001,0.31088997660000001,0.30872486539999999,0.308922321,0.9072572807]
[null,null,null,null,null,null,null,null,null,null,"T04_2|DK","T04_2","DK","waver",0.89361040059999997,0.8907075525,0.89801561259999996,0.89842359589999998,0.89087582570000001,0.89935002519999996,0.89964416749999998,0.90075000810000005,0.89659160090000001,0.86699074840000001,0.87556548280000002,0.88215797029999998,0.88898622709999997,0.89723889050000005,0.89711473620000004,0.90104059420000004,0.92706881480000003,0.91370326150000003,0.91808344200000003,0.91595085399999998,0.9171270721,0.91858318130000005,0.91127002729999995,0.90717165560000002,0.9072572807,0.4810080471]
[null,null,null,null,null,null,null,null,null,null,"T04_2|EE","T04_2","EE","waver",0,0,0,0,0,0,0,0,0,0,0,0,0,0,0,0,0,0,0,0,0,0.40845441290000001,0.50053267369999999,0.48802778499999999,0.4810080471,0.36818598260000002]
[null,null,null,null,null,null,null,null,null,null,"T04_2|ES","T04_2","ES","waver",0.53205420130000003,0.51099123400000002,0.50666888040000002,0.50569464330000002,0.50077230780000004,0.49722627120000001,0.49318925200000002,0.48642347409999998,0.47994006360000002,0.46000533100000002,0.45592466440000001,0.4598964834,0.44900210270000002,0.41423919770000001,0.41267231469999999,0.41046836250000002,0.40427215080000001,0.39655857849999998,0.38372218450000001,0.38052981609999997,0.3812894087,0.39479839109999998,0.38399858139999998,0.38700370119999999,0.36818598260000002,0.37539334260000001]
[null,null,null,null,null,null,null,null,null,null,"T04_2|EU","T04_2","EU","waver",0.31858844159999999,0.32484124149999999,0.32571703790000001,0.33407438989999999,0.32746414930000001,0.33062516889999999,0.326154834,0.32656277709999998,0.32708203689999998,0.31947888860000001,0.3247728849,0.32847361739999997,0.3319829057,0.33141565179999999,0.33355621200000002,0.32531962339999998,0.32756108719999999,0.32422370789999999,0.32989143399999998,0.32749609019999998,0.33432253200000001,0.36920557430000001,0.3671460701,0.37067059590000001,0.37539334260000001,0.5063295001]
[null,null,null,null,null,null,null,null,null,null,"T04_2|FI","T04_2","FI","waver",0.35002594599999998,0.39679298600000001,0.41799329540000002,0.42265880379999998,0.38949860730000002,0.44942841109999998,0.32039874239999999,0.29364952259999999,0.1585462393,0.2163080926,0.21905697399999999,0.22329625889999999,0.1937563491,0.19825473229999999,0.21032623880000001,0.19669252609999999,0.45781722009999998,0.47729176960000003,0.47037802350000002,0.47559846160000002,0.4739248056,0.48082849300000002,0.47584503890000002,0.4881119069,0.5063295001,0.23961423949999999]
[null,null,null,null,null,null,null,null,null,null,"T04_2|FR","T04_2","FR","waver",0.1843391184,0.25146725330000003,0.23560383300000001,0.26734165799999998,0.2387579232,0.23701712359999999,0.23237940300000001,0.2305490617,0.23228607030000001,0.2255118042,0.23366289570000001,0.2361719367,0.2362898474,0.2398354103,0.24262147649999999,0.23246673679999999,0.23942670639999999,0.2289169617,0.22662327809999999,0.22850774669999999,0.23223154630000001,0.2381373544,0.2364863076,0.23755585139999999,0.23961423949999999,0.13459727060000001]
[null,null,null,null,null,null,null,null,null,null,"T04_2|GB","T04_2","GB","waver",0.19665239339999999,0.18432478469999999,0.1917171215,0.1857724909,0.18670755210000001,0.18873672220000001,0.1855409928,0.1842925943,0.1799855125,0.16143764930000001,0.16322387939999999,0.1617108515,0.1580620613,0.1524391672,0.14529325100000001,0.1468633785,0.1530102056,0.1470125591,0.1470579947,0.14830067180000001,0.15032525520000001,0.15219651610000001,0.13863488660000001,0.12912387489999999,0.13459727060000001,0.34804633239999999]
[null,null,null,null,null,null,null,null,null,null,"T04_2|GR","T04_2","GR","waver",0.20577561329999999,0.19488824560000001,0.2003114507,0.2091338083,0.65425869000000003,0.70781000810000005,0.71241632889999995,0.74400065719999997,1.2534742702999999,1.3052718946999999,1.3900623102,1.4024881973000001,0.85215173369999997,0.67132556300000001,0.73798021899999999,0.73677964169999999,0.76190255419999997,0.81240073089999998,0.75004418090000002,0.68939963770000001,0.68883895480000001,0.56836263389999997,0.55589160650000002,0.55840821149999997,0.34804633239999999,0]
[null,null,null,null,null,null,null,null,null,null,"T04_2|HR","T04_2","HR","waver",0,0,0,0,0,0,0,0,0,0,0,0,0,0,0,0,0,0,0,0,0,0,0,0,0,0.59392987080000004]
[null,null,null,null,null,null,null,null,null,null,"T04_2|HU","T04_2","HU","waver",0.1132122896,0.1184305245,0.115402614,0.1171509651,0.1113307199,0.11289123700000001,0.11148304890000001,0.13610547940000001,0.35057155559999997,0.48426900950000001,0.52536361149999999,0.53367007330000005,0.55227609929999999,0.60437365830000001,0.63704998459999995,0.64589385730000004,0.69348737090000001,0.68546032089999998,0.6893940019,0.53897467330000004,0.53718525760000002,0.53640101330000001,0.54771581250000001,0.5701225687,0.59392987080000004,0.3545577405]
[null,null,null,null,null,null,null,null,null,null,"T04_2|IE","T04_2","IE","waver",0.66655010550000005,0.72447636130000004,0.73303612849999999,0.74738178830000002,0.71316153439999996,0.72094486530000002,0.76319004499999998,0.78035263710000002,0.71396235880000003,0.71887324159999999,0.68794367840000004,0.66466433229999999,0.63233387829999999,0.63079778639999995,0.61094012170000001,0.55797921819999996,0.54203640310000001,0.47009489659999998,0.48259573300000003,0.4699072333,0.42650704090000002,0.41510068210000001,0.42541101520000002,0.3565218054,0.3545577405,0.64344564950000005]
[null,null,null,null,null,null,null,null,null,null,"T04_2|IS","T04_2","IS","waver",0,0,0,0,0,0,0,0,0,0,0,0,0.63660992920000004,0.61036657520000004,0.72678567179999998,0.59757345080000002,0.58701500780000004,0.58604125650000005,0.59779701100000004,0.60477157680000004,0.65360858759999996,0.64375682889999997,0.64726379690000002,0.66356720709999995,0.64344564950000005,0.30325074270000002]
[null,null,null,null,null,null,null,null,null,null,"T04_2|IT","T04_2","IT","waver",0.22324661840000001,0.2290841488,0.2362827381,0.28600225680000002,0.2462022401,0.25752444520000001,0.26247401409999999,0.25848784819999998,0.25920650070000001,0.258984887,0.25125163700000003,0.2659848225,0.27249805919999998,0.2681937452,0.28849233909999999,0.299313785,0.3060225895,0.29903416090000001,0.29371142979999998,0.28634438620000002,0.2938308858,0.31507191890000003,0.31565413549999999,0.31571370059999998,0.30325074270000002,0]
[null,null,null,null,null,null,null,null,null,null,"T04_2|LT","T04_2","LT","waver",0,0,0,0,0,0,0,0,0,0,0,0,0,0,0,0,0,0,0,0,0,0,0,0,0,0]
[null,null,null,null,null,null,null,null,null,null,"T04_2|LU","T04_2","LU","waver",9.974567000000001E-4,6.9949618699999994E-2,6.6509769600000004E-2,6.5954262999999999E-2,0,0,6.8437670000000002E-4,0,0,0,0,0,0,0,0,0.46832624119999999,0,0,0,0,0,0,0,0,0,0]
[null,null,null,null,null,null,null,null,null,null,"T04_2|LV","T04_2","LV","waver",0,0,0,0,0,0,0,0,0,0,0,0,0,0,0,0,0,0,0,0,0,0,0,0,0,0.71729162160000004]
[null,null,null,null,null,null,null,null,null,null,"T04_2|MT","T04_2","MT","waver","n.a.","n.a.","n.a.","n.a.",0,0,0,0,0,0,0,0,0,0,0,0,0,0,0,0,0,0,0.61484370470000005,0.67527584429999998,0.71729162160000004,0.2455421384]
[null,null,null,null,null,null,null,null,null,null,"T04_2|NL","T04_2","NL","waver",0.18837330920000001,0.17258703480000001,0.1760677142,0.1735872081,0.17001786830000001,0.16544341160000001,0.1726219064,0.17011019029999999,0.17471594709999999,0.16900475249999999,0.1904844527,0.1850672193,0.19114373479999999,0.18666208940000001,0.19566995679999999,0.19247859379999999,0.20387198979999999,0.19667817460000001,0.2120808029,0.20260807719999999,0.2161118628,0.217412349,0.2185018836,0.223368452,0.2455421384,0.55735339959999997]
[null,null,null,null,null,null,null,null,null,null,"T04_2|NO","T04_2","NO","waver",0.56016844690000001,0.53295637060000001,0.58097516189999998,0.52111863069999997,0.53283614199999996,0.5625376983,0.56160445510000001,0.57806554330000004,0.56116631689999996,0.5214499668,0.55558360409999996,0.53653509030000002,0.54725067940000005,0.69277752020000005,0.68579267740000005,0.69572047879999999,0.55145099620000004,0.52540475929999997,0.50617382359999996,0.50056958929999995,0.50420290960000003,0.53583961179999995,0.54913496910000004,0.524716038,0.55735339959999997,0.44967250860000002]
[null,null,null,null,null,null,null,null,null,null,"T04_2|PL","T04_2","PL","waver",1.8991293999999999E-2,5.6979371700000003E-2,5.4391992899999998E-2,9.40855263E-2,0.123333737,0.1282035906,0.1702823544,0.22558543480000001,0.28401629760000002,0.34202423059999998,0.41575103320000001,0.39978914209999999,0.3668372211,0.38735693310000002,0.37254596800000001,0.36378011380000003,0.36144866460000002,0.40235949809999999,0.40937070599999997,0.42497208190000002,0.42551508960000001,0.4400296957,0.48163026399999997,0.48381882520000002,0.44967250860000002,0.54083848379999999]
[null,null,null,null,null,null,null,null,null,null,"T04_2|PT","T04_2","PT","waver",0.28933714160000001,0.28129872249999999,0.29775884749999998,0.36524636360000001,0.38431528269999998,0.40139341299999998,0.42900279099999999,0.46198274810000001,0.41380939560000002,0.43865723779999999,0.43574974579999998,0.4246396342,0.54688303029999996,0.6424488464,0.62464810690000006,0.63161557059999995,0.65127620409999998,0.62873501490000006,0.61394266659999996,0.59273468730000001,0.5927063253,0.55842175829999996,0.55748918780000001,0.5615826827,0.54083848379999999,0]
[null,null,null,null,null,null,null,null,null,null,"T04_2|RO","T04_2","RO","waver",0,0,0,0,0,0,0,0,0,0,0,0,0,0,0,0,0,0,0,0,0,0,0,0,0,0.4762374003]
[null,null,null,null,null,null,null,null,null,null,"T04_2|SE","T04_2","SE","waver","n.a.","n.a.","n.a.","n.a.",0.47707641000000001,0.49543277270000002,0.47940954419999998,0.4750017547,0.49479053319999999,0.47816722740000001,0.48266096110000001,0.48800425019999999,0.50693903630000003,0.52293176870000002,0.5221060085,0.47562358059999998,0.47522828480000001,0.46989840659999998,0.47527849210000001,0.4699663013,0.48366868120000001,0.47516232829999999,0.47108260120000001,0.46960026300000002,0.4762374003,0]
[null,null,null,null,null,null,null,null,null,null,"T04_2|SI","T04_2","SI","waver",0,0,0,0,0,0,0,0,0,0,0,0,0,0,0,0,0,0,0,0,0,0,0,0,0,0.91527934970000002]
[null,null,null,null,null,null,null,null,null,null,"T04_2|SK","T04_2","SK","waver",0.89345156940000003,0.91963156079999997,0.92238394369999999,0.92099356799999998,0.9223356855,0.87914024410000002,0.89223706800000002,0.93504363020000003,0.93724842779999995,0.93949768320000004,0.94275436759999998,0.93751170070000001,0.93746592900000003,0.9276561243,0.93218300160000001,0.92601049349999998,0.92979926660000001,0.93330261540000004,0.95767557709999995,0.96128247410000001,0.96042185989999995,0.95029920859999994,0.94990195430000002,0.94919933050000005,0.91527934970000002,0.1194477529]
[null,null,null,null,null,null,null,null,null,null,"T04_3|AT","T04_3","AT","waver",0.16151880709999999,0.15514293970000001,0.1522863575,0.14790909960000001,0.1497901076,0.14702655079999999,0.12599636119999999,0.1254876483,0.14990276150000001,0.14145278989999999,0.1395568838,0.1343999877,0.1342928478,0.1249811525,0.1273361579,0.12496630390000001,0.12741782300000001,0.1253909191,0.12817937200000001,0.12795980169999999,0.12979706069999999,0.1235871122,0.1195961017,0.1208092985,0.1194477529,0.12788839969999999]
[null,null,null,null,null,null,null,null,null,null,"T04_3|BE","T04_3","BE","waver",0.18768601679999999,0.19320018080000001,0.1900520627,0.18513756849999999,0.19195587410000001,0.1957671144,0.19479884680000001,0.19371286039999999,0.20338231770000001,0.2056045175,0.19885056919999999,0.20076850399999999,0.2056791811,0.18698558500000001,0.1893573986,0.19085186379999999,0.17906375760000001,0.15423726879999999,0.15018867359999999,0.15105448690000001,0.14823465499999999,0.1394275743,0.13333998080000001,0.1302974435,0.12788839969999999,4.4521661999999997E-3]
[null,null,null,null,null,null,null,null,null,null,"T04_3|BG","T04_3","BG","waver",9.7660964000000003E-3,9.4399939000000006E-3,9.3209591999999994E-3,7.4330663999999996E-3,7.2560539E-3,6.0490420000000001E-3,5.6727104999999998E-3,5.5887213999999998E-3,5.8081840000000001E-3,5.8628324999999998E-3,5.9976728000000002E-3,5.6994398999999996E-3,5.8343474999999999E-3,5.9943490000000004E-3,5.8141102E-3,5.4604620000000001E-3,5.5389977000000002E-3,4.35828E-3,3.7825729E-3,3.5568066999999998E-3,4.6078956999999997E-3,4.7644339999999997E-3,4.8585149000000003E-3,4.6138280000000004E-3,4.4521661999999997E-3,1.20453947E-2]
[null,null,null,null,null,null,null,null,null,null,"T04_3|CY","T04_3","CY","waver",4.3078253E-3,4.2750532999999997E-3,4.4388263000000004E-3,4.5549528000000004E-3,4.6230845000000001E-3,4.7255385999999998E-3,4.8133500000000001E-3,4.0270369000000002E-3,5.1974704999999998E-3,1.0332844900000001E-2,1.0516675200000001E-2,1.05825738E-2,1.14542902E-2,1.14319585E-2,1.0886769399999999E-2,"n.a.","n.a.",1.13610815E-2,1.1455972599999999E-2,1.1944116499999999E-2,1.2062657100000001E-2,1.19299756E-2,1.17172305E-2,1.1910464799999999E-2,1.20453947E-2,0.1525860091]
[null,null,null,null,null,null,null,null,null,null,"T04_3|CZ","T04_3","CZ","waver",3.8194980599999998E-2,3.7956775200000001E-2,4.0314082399999999E-2,3.62976848E-2,8.2931595600000005E-2,7.1322973499999998E-2,7.7175658899999999E-2,5.4356501600000003E-2,9.1066169700000005E-2,9.2179396900000002E-2,9.6679529700000003E-2,9.2392736399999995E-2,0.10907286419999999,8.7482137500000001E-2,8.9990199699999995E-2,9.2914455699999995E-2,0.1115449657,0.116806968,0.1155967467,0.1142814575,0.123470234,9.5934199299999995E-2,8.8420857399999997E-2,9.1457776500000004E-2,0.1525860091,0.16160830879999999]
[null,null,null,null,null,null,null,null,null,null,"T04_3|DE","T04_3","DE","waver",0.18800547810000001,0.17983429379999999,0.19374364129999999,0.19509065340000001,0.1986963642,0.19063113300000001,0.18833634960000001,0.19365374760000001,0.2012976504,0.2029684061,0.19913629050000001,0.19891509039999999,0.20411321809999999,0.19718005399999999,0.19948180600000001,0.20232592099999999,0.20541816290000001,0.18942712370000001,0.16934317199999999,0.16896872090000001,0.17950366039999999,0.15756835969999999,0.16073908640000001,0.15917948100000001,0.16160830879999999,0.53561019929999998]
[null,null,null,null,null,null,null,null,null,null,"T04_3|DK","T04_3","DK","waver",0.49808450679999999,0.49280642050000001,0.51823935200000004,0.5277337996,0.53972005550000002,0.52808079340000003,0.52681534640000005,0.53142867709999997,0.53805556089999995,0.55101575759999999,0.54135320929999997,0.54982322959999996,0.55238181679999998,0.54511866529999997,0.54110786359999996,0.5466064088,0.5485667555,0.54795982710000002,0.54803165139999999,0.54661183390000001,0.56292429050000004,0.52875040360000003,0.53081324409999997,0.54058289599999998,0.53561019929999998,4.2381725699999998E-2]
[null,null,null,null,null,null,null,null,null,null,"T04_3|EE","T04_3","EE","waver","n.a.","n.a.","n.a.","n.a.","n.a.",2.5008287999999999E-3,2.4335170000000001E-3,2.3908393000000002E-3,2.3593281E-3,2.3251204000000001E-3,2.3592403E-3,2.3042872E-3,5.3526811000000002E-3,6.4912075999999999E-3,5.1885133999999998E-3,5.1377706E-3,2.0586254700000001E-2,1.42234883E-2,2.4982225E-2,2.4794411299999999E-2,2.4223956599999999E-2,4.05173562E-2,4.4875441699999997E-2,4.4541157300000002E-2,4.2381725699999998E-2,0.1162665444]
[null,null,null,null,null,null,null,null,null,null,"T04_3|ES","T04_3","ES","waver",0.14453947240000001,0.1422486959,0.14091739740000001,0.13956131829999999,0.1429092065,0.1399444239,0.14015316,0.14141814150000001,0.1393818013,0.1310059797,0.1290270691,0.12688651419999999,0.12587833979999999,0.12795596579999999,0.12697481469999999,0.1306198365,0.1338041677,0.1335418968,0.1337894433,0.1359169848,0.1384806116,0.1349244913,0.12738389159999999,0.12714136879999999,0.1162665444,0.18070419530000001]
[null,null,null,null,null,null,null,null,null,null,"T04_3|EU","T04_3","EU","waver",0.19079180949999999,0.18407550510000001,0.18999907939999999,0.1876456618,0.1907405331,0.18618607349999999,0.18366199850000001,0.18739441570000001,0.19032853869999999,0.18971512169999999,0.1876413841,0.18587710090000001,0.18798192859999999,0.18390620369999999,0.1855477294,0.1880053696,0.18905438620000001,0.18670410670000001,0.18423153859999999,0.18301495400000001,0.18835536189999999,0.18960998779999999,0.1861471468,0.1834280117,0.18070419530000001,0.39179296600000002]
[null,null,null,null,null,null,null,null,null,null,"T04_3|FI","T04_3","FI","waver",0.1768082104,0.15011263959999999,0.14694416530000001,0.15043348770000001,0.18784252430000001,0.1513669091,0.20235229839999999,0.21396504299999999,0.19890799319999999,0.36612108669999999,0.36143685790000002,0.35347184910000001,0.33892296199999999,0.39914004790000002,0.39632337439999998,0.39365024630000001,0.41123540549999998,0.39513813240000001,0.39496148069999998,0.3996113859,0.42597290119999998,0.37375757859999997,0.38105646659999998,0.38479375300000002,0.39179296600000002,0.16382852170000001]
[null,null,null,null,null,null,null,null,null,null,"T04_3|FR","T04_3","FR","waver",0.18910453059999999,0.1843634612,0.19045936120000001,0.18304754549999999,0.18682351959999999,0.18072976800000001,0.17712025880000001,0.1806968068,0.18432212410000001,0.18305478550000001,0.1837493959,0.17844926790000001,0.1871425598,0.18178042699999999,0.18261305899999999,0.185602724,0.18899307970000001,0.1904220774,0.18735210229999999,0.18408601499999999,0.1931370144,0.1676120918,0.1684457583,0.16290656279999999,0.16382852170000001,0.10060627599999999]
[null,null,null,null,null,null,null,null,null,null,"T04_3|GB","T04_3","GB","waver",0.1048628172,0.1010552123,0.1056998281,0.1035894181,0.10387237890000001,0.10049339259999999,9.7375232699999995E-2,0.1017182534,0.1033527038,0.1047765752,0.1055724883,0.1041320639,0.10534278499999999,0.1056095522,0.1074990608,0.11063541690000001,0.1132584047,0.1147105157,0.11760937120000001,0.1143362014,0.1178486302,0.1035809005,0.1124501262,0.10760454060000001,0.10060627599999999,1.9829075099999999E-2]
[null,null,null,null,null,null,null,null,null,null,"T04_3|GR","T04_3","GR","waver",2.3788302399999999E-2,2.2476218499999999E-2,2.1049858300000002E-2,2.1043502799999999E-2,6.4344722999999998E-3,5.8227438999999999E-3,6.4521029000000002E-3,7.422339E-3,5.4603992000000004E-3,4.9181816999999996E-3,4.3688889000000003E-3,4.2038272000000003E-3,1.2510693099999999E-2,1.9570529699999999E-2,2.3618005500000001E-2,2.3097137699999999E-2,2.4519981E-2,2.4371142299999999E-2,2.54417051E-2,2.61872301E-2,2.5888293199999999E-2,2.8212201700000002E-2,2.58083531E-2,2.56846963E-2,1.9829075099999999E-2,2.3526236000000001E-3]
[null,null,null,null,null,null,null,null,null,null,"T04_3|HR","T04_3","HR","waver",4.5395282000000002E-3,4.5546440999999997E-3,4.4582705E-3,4.0165571000000001E-3,4.1882635E-3,4.3577431999999999E-3,4.3762093000000004E-3,4.1504508999999998E-3,4.1639590000000001E-3,4.300697E-3,4.2542574000000001E-3,1.4182916999999999E-3,1.7017584E-3,1.6761261E-3,1.6237958E-3,1.6015532E-3,2.6304949E-3,2.6071015999999999E-3,2.5645921000000001E-3,2.5226859000000001E-3,2.4980534000000002E-3,2.4667117000000001E-3,2.4013302000000002E-3,2.4184672000000002E-3,2.3526236000000001E-3,3.8799481900000002E-2]
[null,null,null,null,null,null,null,null,null,null,"T04_3|HU","T04_3","HU","waver",4.25612696E-2,3.4910290500000003E-2,3.6344673700000003E-2,3.5278360799999998E-2,3.1602966099999998E-2,3.2105105000000002E-2,3.2285736199999998E-2,2.0281988800000001E-2,1.9148881999999999E-2,3.0544765799999998E-2,2.9910322199999999E-2,2.8726218599999999E-2,2.9093170200000001E-2,3.1306109700000001E-2,3.2381770800000001E-2,3.6438079499999998E-2,4.1203941100000002E-2,3.6166241699999997E-2,3.6822992800000003E-2,4.2136557800000002E-2,3.9302193499999999E-2,3.7982795600000001E-2,3.8412599899999997E-2,3.8834563799999999E-2,3.8799481900000002E-2,5.8767468500000003E-2]
[null,null,null,null,null,null,null,null,null,null,"T04_3|IE","T04_3","IE","waver",0.20180549789999999,0.1909722103,0.1806418105,0.18533925370000001,0.1818972868,0.1650762948,0.1532051807,0.14569287410000001,0.113061485,0.10835067850000001,9.3153161600000006E-2,9.5143603100000002E-2,8.9069114399999996E-2,8.8164203999999996E-2,8.8139817999999995E-2,8.9653153799999996E-2,8.9561190299999996E-2,7.3845779200000003E-2,7.4639649000000002E-2,7.5460260900000006E-2,8.0502692000000001E-2,7.1324448400000004E-2,6.9001834900000003E-2,6.6278330900000001E-2,5.8767468500000003E-2,0.34077996249999998]
[null,null,null,null,null,null,null,null,null,null,"T04_3|IS","T04_3","IS","waver",0,0,0,0,0,0,0,0,0,0,0,0,0.32741106720000002,0.34018502379999999,0.34381143130000003,0.33883931389999999,0.34479558770000002,0.35177575239999997,0.35805703160000002,0.34654628450000002,0.33217469620000001,0.33221636469999999,0.32811078500000002,0.31984593989999999,0.34077996249999998,0.11357005050000001]
[null,null,null,null,null,null,null,null,null,null,"T04_3|IT","T04_3","IT","waver",0.22568983989999999,0.21213559709999999,0.21032823449999999,0.20668817179999999,0.20450117400000001,0.1925142645,0.1874295547,0.18147253599999999,0.17284993030000001,0.16865285269999999,0.17077101419999999,0.1649996302,0.1515509645,0.1431461906,0.13567927320000001,0.12961320940000001,0.12927765229999999,0.12604092150000001,0.1301067179,0.13028044389999999,0.1316431965,0.12246954979999999,0.1186440421,0.1178601582,0.11357005050000001,7.9960589999999998E-4]
[null,null,null,null,null,null,null,null,null,null,"T04_3|LT","T04_3","LT","waver",3.8645661999999999E-3,2.7090081999999998E-3,2.7153516000000002E-3,2.5307956E-3,2.8119228E-3,2.5196575E-3,1.9467589999999999E-3,1.1374938999999999E-3,7.2695880000000004E-4,3.4836140000000002E-4,1.026047E-4,5.5884699999999997E-5,2.6128399999999999E-5,1.77062E-5,1.7189399999999998E-5,0,8.4780700000000001E-4,1.135769E-3,1.1293072E-3,1.1063748999999999E-3,1.023082E-3,1.0151887E-3,9.7178330000000004E-4,9.1371390000000001E-4,7.9960589999999998E-4,3.8968713000000002E-2]
[null,null,null,null,null,null,null,null,null,null,"T04_3|LU","T04_3","LU","waver",0.123129398,0.1111369946,0.1849215816,0.18333780799999999,0.1999338849,0.1949566529,0.21171857960000001,0.22230691829999999,0.26735093789999997,0.25715981129999999,0.26331533620000003,0.26603839109999999,0.25016517379999997,0.24565567690000001,0.2355075261,0.28095596909999998,0.25231155599999999,0.25973373849999998,0.26505698630000002,0.2692744675,0.26425931289999999,0.22929340009999999,0.2397234194,0.24063003729999999,3.8968713000000002E-2,7.4859797E-3]
[null,null,null,null,null,null,null,null,null,null,"T04_3|LV","T04_3","LV","waver",3.9781666100000002E-2,4.6638725700000001E-2,4.1306318299999999E-2,4.44204645E-2,4.5922729699999998E-2,4.6623856300000002E-2,4.79965693E-2,4.7128981399999999E-2,4.62509236E-2,4.6030759300000001E-2,4.09304074E-2,4.3812040699999999E-2,4.5737890500000003E-2,2.9182452800000001E-2,3.1191731E-2,0,0,5.3984625000000003E-3,5.4207290999999996E-3,5.2997814999999997E-3,5.0545358999999996E-3,4.9383079000000002E-3,4.3271941E-3,4.3153788999999998E-3,7.4859797E-3,3.6648953200000001E-2]
[null,null,null,null,null,null,null,null,null,null,"T04_3|MT","T04_3","MT","waver","n.a.","n.a.","n.a.","n.a.",2.5356006699999999E-2,2.7178030400000001E-2,2.6541616899999999E-2,2.6769140399999999E-2,2.59235266E-2,2.24768825E-2,2.2212479100000002E-2,2.2437475700000001E-2,2.3442487500000001E-2,2.34693968E-2,2.37054046E-2,2.0334018400000001E-2,1.8458068300000002E-2,1.8110412900000001E-2,1.5995928E-2,1.5815763300000001E-2,1.50141583E-2,1.0967504600000001E-2,2.7648932399999999E-2,3.2681902999999998E-2,3.6648953200000001E-2,0.20625914170000001]
[null,null,null,null,null,null,null,null,null,null,"T04_3|NL","T04_3","NL","waver",0.2829855678,0.28182369889999997,0.28425277729999998,0.27816436909999998,0.27917344799999999,0.27640004730000001,0.26722521170000002,0.26538416980000001,0.26662936679999999,0.26423561620000002,0.2526468268,0.24906403560000001,0.2492439122,0.25213436509999998,0.2541855053,0.25709497170000001,0.25672453899999997,0.26062524009999999,0.25442677299999999,0.26139605659999998,0.25764751149999998,0.24469067880000001,0.2292914979,0.21614595850000001,0.20625914170000001,0.3694912293]
[null,null,null,null,null,null,null,null,null,null,"T04_3|NO","T04_3","NO","waver",0.34924831979999998,0.34777866340000002,0.33996055310000001,0.3466042768,0.35704748730000002,0.36636141259999999,0.35322660080000001,0.34829458169999999,0.34962236800000002,0.38891388910000002,0.38148560069999998,0.37504105269999999,0.39059296329999998,0.3878245012,0.3753948721,0.38690443559999999,0.40814359550000001,0.41258714870000002,0.41417989719999998,0.42422437019999998,0.41614272749999998,0.37915211830000001,0.36665741880000002,0.39451692710000003,0.3694912293,7.8007443900000001E-2]
[null,null,null,null,null,null,null,null,null,null,"T04_3|PL","T04_3","PL","waver",4.7466886E-2,4.8604896000000002E-2,4.7938060599999999E-2,4.9587159300000003E-2,3.74857808E-2,3.6949352099999999E-2,3.8333169200000003E-2,3.8407875500000001E-2,4.44722886E-2,4.9291412700000002E-2,4.9556295100000002E-2,6.22936241E-2,6.7419584000000005E-2,7.3461942700000005E-2,7.8749647500000006E-2,8.2560115099999998E-2,8.0183969300000005E-2,8.1446705800000005E-2,8.2835715200000007E-2,8.7866952299999995E-2,8.4387251999999996E-2,8.2882617000000006E-2,7.1545155200000002E-2,7.3661760100000001E-2,7.8007443900000001E-2,4.1717482200000003E-2]
[null,null,null,null,null,null,null,null,null,null,"T04_3|PT","T04_3","PT","waver",0.1133695487,0.1100562002,0.1039641097,0.1032416437,8.9276759100000005E-2,8.4481315799999998E-2,7.9313844999999994E-2,7.8392532599999995E-2,7.1634452200000004E-2,6.3082292600000006E-2,6.07976738E-2,5.8998875999999999E-2,5.1818542600000003E-2,5.3390937100000001E-2,5.2349581899999997E-2,5.3043977800000003E-2,5.3042876199999998E-2,5.2237707000000001E-2,4.7737433699999998E-2,4.8825814000000002E-2,5.1803315000000003E-2,4.7810918399999999E-2,4.4726430900000003E-2,4.4589891499999999E-2,4.1717482200000003E-2,9.8245481000000003E-3]
[null,null,null,null,null,null,null,null,null,null,"T04_3|RO","T04_3","RO","waver",8.4451401999999995E-3,7.4361061000000001E-3,6.9037131000000002E-3,6.9998237000000003E-3,6.7599918000000002E-3,6.3131504000000001E-3,5.8502169999999996E-3,5.4811399999999998E-3,4.5051344000000002E-3,4.0334024999999999E-3,4.0010367000000002E-3,3.7887283E-3,3.5857863999999998E-3,3.6072029000000002E-3,1.02610358E-2,9.9484165999999992E-3,9.4984413000000004E-3,9.8357566000000004E-3,8.9156185999999995E-3,8.8274793999999993E-3,1.19995156E-2,1.1674816500000001E-2,1.07358573E-2,1.0727899500000001E-2,9.8245481000000003E-3,0.4467450409]
[null,null,null,null,null,null,null,null,null,null,"T04_3|SE","T04_3","SE","waver","n.a.","n.a.","n.a.","n.a.",0.45758530790000002,0.4215041242,0.42170639780000002,0.43158365300000001,0.46820980639999998,0.43980634400000002,0.43035950830000003,0.43553821059999998,0.46082953850000002,0.4252744584,0.4500363597,0.45704621779999999,0.49186225309999998,0.48437544040000002,0.48712225739999998,0.48512866189999998,0.49911556629999998,0.45295547609999998,0.4357143798,0.44883297519999998,0.4467450409,1.31123826E-2]
[null,null,null,null,null,null,null,null,null,null,"T04_3|SI","T04_3","SI","waver",2.9364084700000001E-2,2.8944296599999999E-2,2.7054861199999999E-2,2.1918667100000001E-2,1.94225235E-2,1.7162479299999998E-2,1.7180498200000002E-2,1.55186026E-2,1.56348459E-2,1.5248530999999999E-2,1.52097052E-2,1.2273389799999999E-2,9.4787967000000001E-3,7.7394005999999998E-3,6.3870645000000002E-3,5.3369469000000003E-3,5.2070778999999999E-3,4.7495569000000001E-3,4.7911081999999997E-3,5.8844136999999996E-3,1.34813365E-2,1.6639280999999999E-2,1.6243095499999999E-2,1.56627225E-2,1.31123826E-2,0.12024603659999999]
[null,null,null,null,null,null,null,null,null,null,"T04_3|SK","T04_3","SK","waver",0.1025499834,0.1019285162,0.10287127240000001,0.1030163819,0.1006567664,0.10922319580000001,0.10901616040000001,0.10084654210000001,0.1038412635,0.1069632519,0.1112115256,0.11474744000000001,0.11586742329999999,0.1076146535,0.1110956234,0.10829288550000001,0.1096847106,0.118579714,0.13073843199999999,0.13434167159999999,0.12915069639999999,0.12513209920000001,0.1281933764,0.1215169118,0.12024603659999999,8.8630275300000005E-2]
[null,null,null,null,null,null,null,null,null,null,"T04_4|AT","T04_4","AT","waver",0.14459750129999999,0.14370099159999999,0.14298123739999999,0.1427996443,0.13105531140000001,0.1336751709,0.1181547006,0.1108088248,0.12726096100000001,0.14016922079999999,0.13336548579999999,0.13347433510000001,0.1144341007,0.1173298574,0.113531484,0.11256236660000001,0.10893567949999999,0.1182510776,0.1166015508,0.11459238939999999,9.9103740900000001E-2,0.10452487019999999,9.8476219300000001E-2,9.4915476600000007E-2,8.8630275300000005E-2,7.1249702100000006E-2]
[null,null,null,null,null,null,null,null,null,null,"T04_4|BE","T04_4","BE","waver",0.109818558,0.11122346700000001,0.1105552491,0.11917712530000001,0.11512562799999999,0.1131871975,0.1106001296,0.1226244722,0.12114896510000001,0.1327577244,0.14163614990000001,0.1380418014,0.11645771639999999,0.1367046425,0.13653551180000001,0.13489384330000001,0.1005200606,0.1155382821,0.11445586250000001,0.1125584394,0.1020371237,0.1069756545,8.3624173199999999E-2,8.6464095000000005E-2,7.1249702100000006E-2,4.1180039699999997E-2]
[null,null,null,null,null,null,null,null,null,null,"T04_4|BG","T04_4","BG","waver",0.1017449965,8.7524223200000001E-2,8.5146853699999997E-2,7.8920237500000004E-2,8.3154959200000003E-2,7.5564726999999998E-2,7.4868071899999999E-2,6.79527833E-2,6.8316392399999995E-2,6.3339539E-2,5.1571571099999998E-2,4.9784823499999999E-2,3.6295568E-2,3.9651885599999999E-2,4.1180647399999999E-2,3.41065989E-2,2.4298384400000001E-2,5.85404193E-2,4.8290935200000003E-2,5.3016458299999999E-2,4.9987115499999998E-2,3.7473570300000002E-2,3.1710492600000001E-2,3.08264483E-2,4.1180039699999997E-2,1.61103246E-2]
[null,null,null,null,null,null,null,null,null,null,"T04_4|CY","T04_4","CY","waver",1.23099895E-2,1.24163204E-2,1.4171623600000001E-2,1.28703823E-2,9.7850129000000008E-3,1.4283643400000001E-2,1.53832065E-2,1.55233618E-2,1.6601841400000001E-2,1.5548070000000001E-2,1.64861083E-2,1.7962627299999999E-2,1.9956759599999999E-2,1.8495616400000001E-2,1.9446298000000001E-2,"n.a.","n.a.",2.14275869E-2,2.3577389599999998E-2,2.04500619E-2,2.34301393E-2,1.9185500099999999E-2,1.7277039800000001E-2,1.6696067500000002E-2,1.61103246E-2,5.8316662399999997E-2]
[null,null,null,null,null,null,null,null,null,null,"T04_4|CZ","T04_4","CZ","waver",8.2649800100000004E-2,9.24426785E-2,9.5263850900000002E-2,0.11873011040000001,6.2006336000000002E-2,8.2052286200000005E-2,8.2515775099999994E-2,0.1076656335,6.9798229099999998E-2,0.16110927459999999,0.1443849448,0.15532552359999999,0.1315812157,0.1455938668,0.1547686066,0.15446257790000001,0.1286805701,0.14894845840000001,0.12883036040000001,0.1387957132,0.1182568145,0.13502979549999999,0.13504761679999999,0.12027137609999999,5.8316662399999997E-2,0.1176328946]
[null,null,null,null,null,null,null,null,null,null,"T04_4|DE","T04_4","DE","waver",0.13514144729999999,0.13789484069999999,0.14091466129999999,0.1377309699,0.14158065919999999,0.14051078859999999,0.13810191259999999,0.13879000480000001,0.13791726570000001,0.1413713677,0.13817302379999999,0.1408898059,0.13433537800000001,0.137780403,0.1386592526,0.13872509629999999,0.1314518341,0.12964068989999999,0.12846700129999999,0.12767209569999999,0.12039493800000001,0.1200967611,0.1210955628,0.12258964059999999,0.1176328946,2.8119070499999999E-2]
[null,null,null,null,null,null,null,null,null,null,"T04_4|DK","T04_4","DK","waver",5.8629531899999997E-2,7.4858598700000001E-2,6.7739591399999993E-2,6.0784840700000002E-2,5.2697778399999999E-2,5.4257996400000001E-2,4.93025068E-2,4.0887960600000002E-2,3.8925259900000002E-2,3.4299402399999998E-2,3.06163541E-2,2.72640894E-2,2.5606302500000001E-2,3.29675231E-2,2.6052312099999999E-2,2.4277338999999998E-2,2.2585108699999999E-2,2.44887765E-2,2.75479668E-2,2.7528351699999998E-2,2.4672328E-2,2.9228782799999999E-2,2.6860699299999999E-2,2.5366631800000001E-2,2.8119070499999999E-2,2.9156992900000001E-2]
[null,null,null,null,null,null,null,null,null,null,"T04_4|EE","T04_4","EE","waver","n.a.","n.a.","n.a.","n.a.","n.a.",9.2908197299999995E-2,7.6233988899999994E-2,8.25629945E-2,8.1510356699999995E-2,8.5986585599999998E-2,7.3891211700000001E-2,8.0776215999999998E-2,0.1522788048,0.146335825,0.13823385169999999,0.1378393778,0.1332800663,0.11675249,0.1056901034,8.0688480500000007E-2,7.3142038000000006E-2,5.0706664300000003E-2,3.80976357E-2,3.4323571400000003E-2,2.9156992900000001E-2,4.3565790600000001E-2]
[null,null,null,null,null,null,null,null,null,null,"T04_4|ES","T04_4","ES","waver",9.9867365E-2,9.5671857299999996E-2,8.9464690900000005E-2,9.4771191899999996E-2,8.7491561400000001E-2,8.9204482500000001E-2,8.5773046399999997E-2,8.5127603999999996E-2,7.7683853100000005E-2,7.8558945899999996E-2,7.7872013000000004E-2,7.3422669300000007E-2,7.46168418E-2,7.7470074599999994E-2,7.3292722000000005E-2,7.25756075E-2,6.8600939099999994E-2,7.6159970199999996E-2,7.1629975900000004E-2,6.6951997900000004E-2,6.9811413700000005E-2,7.3705536500000002E-2,6.2636170099999999E-2,5.6079523800000003E-2,4.3565790600000001E-2,5.3387795000000002E-2]
[null,null,null,null,null,null,null,null,null,null,"T04_4|EU","T04_4","EU","waver",8.0068932999999995E-2,8.2247258000000004E-2,7.9183089299999995E-2,7.8850171799999993E-2,7.4637280299999997E-2,7.7232019099999993E-2,7.6211935199999997E-2,7.5760524800000006E-2,6.95691908E-2,7.2287840800000003E-2,7.0791076300000005E-2,6.9371919800000001E-2,6.4192011600000001E-2,7.1428573699999998E-2,6.7489233100000004E-2,6.6961729900000003E-2,6.1861277499999999E-2,6.7429684700000006E-2,6.5176221899999998E-2,6.4103432500000002E-2,5.8921012199999998E-2,6.7134245999999995E-2,6.2586608000000002E-2,6.0780126300000001E-2,5.3387795000000002E-2,1.51923226E-2]
[null,null,null,null,null,null,null,null,null,null,"T04_4|FI","T04_4","FI","waver",0.1783060856,0.1899083905,0.2235202523,0.20645007169999999,0.18013761740000001,0.2006107204,0.1797622371,0.17662649250000001,0.16518203070000001,2.8677924399999999E-2,1.85861316E-2,1.49885643E-2,1.43424715E-2,9.4457423000000006E-3,9.1055925000000006E-3,8.5205869E-3,4.7250208000000002E-2,5.6200164800000001E-2,4.6055932299999998E-2,4.1801502499999997E-2,3.8160117E-2,4.10662049E-2,3.4812668900000003E-2,2.6692830300000001E-2,1.51923226E-2,4.49813809E-2]
[null,null,null,null,null,null,null,null,null,null,"T04_4|FR","T04_4","FR","waver",7.8851787399999998E-2,7.9500653800000001E-2,7.4253498400000006E-2,7.6849230099999999E-2,7.0884845200000005E-2,7.3003958800000004E-2,7.1909500400000007E-2,7.0231853400000002E-2,6.0925081800000003E-2,5.9546549400000003E-2,5.9045562900000001E-2,5.6088798000000002E-2,4.94600735E-2,6.6161250000000005E-2,5.6889018999999999E-2,5.4495568600000002E-2,5.0211882399999998E-2,5.8259985700000003E-2,5.8511886899999997E-2,5.7755432900000001E-2,5.4373153799999997E-2,5.2592758900000001E-2,5.3959744400000002E-2,5.4029492599999999E-2,4.49813809E-2,4.02231823E-2]
[null,null,null,null,null,null,null,null,null,null,"T04_4|GB","T04_4","GB","waver",6.1687601500000001E-2,6.3786169899999995E-2,5.9704647299999997E-2,5.6741132100000001E-2,5.2780321300000002E-2,5.4392217600000001E-2,5.4136999900000003E-2,5.3461080600000002E-2,5.0297710699999998E-2,5.1772066300000003E-2,5.0498744399999997E-2,5.0649916500000003E-2,4.7668066199999998E-2,4.5449060499999999E-2,4.3244056199999999E-2,4.3100422899999997E-2,4.1206102000000001E-2,5.0634972600000001E-2,4.6059647000000002E-2,4.4666401000000001E-2,3.9369512699999998E-2,4.4239066799999997E-2,3.9345066599999999E-2,4.2423070200000003E-2,4.02231823E-2,2.0585803600000001E-2]
[null,null,null,null,null,null,null,null,null,null,"T04_4|GR","T04_4","GR","waver",8.7178305900000003E-2,2.30919856E-2,1.8914269599999999E-2,2.0770029200000002E-2,2.6040037299999999E-2,3.8898447099999997E-2,5.7378175900000002E-2,6.7362701400000002E-2,7.5334014000000005E-2,8.2893509800000001E-2,7.4039679299999994E-2,5.84378183E-2,5.3444628700000003E-2,6.8590487899999997E-2,7.9483241800000007E-2,8.6555039200000003E-2,9.6889422099999997E-2,8.8291006899999996E-2,8.3647532100000005E-2,7.5587294400000005E-2,7.36790955E-2,7.0297095800000001E-2,2.8654406899999998E-2,2.23661203E-2,2.0585803600000001E-2,6.7131834500000001E-2]
[null,null,null,null,null,null,null,null,null,null,"T04_4|HR","T04_4","HR","waver",0.22494794370000001,0.20034862389999999,0.20815349429999999,0.18887387850000001,0.15840012680000001,0.1519907868,0.13259184730000001,0.1191521619,0.1088363582,0.1116884963,0.10385576439999999,7.8845855699999995E-2,7.7332276500000005E-2,9.2710977599999994E-2,9.5822819300000001E-2,7.4426477699999993E-2,9.2599930699999999E-2,9.5935769800000001E-2,9.15666064E-2,7.5215826999999999E-2,7.4361827000000005E-2,8.0014143699999998E-2,7.2520182799999999E-2,6.2129651000000001E-2,6.7131834500000001E-2,3.3116222399999999E-2]
[null,null,null,null,null,null,null,null,null,null,"T04_4|HU","T04_4","HU","waver",7.4848221399999998E-2,0.10743751040000001,0.1108855435,0.10138807029999999,9.7762060999999997E-2,7.7161954699999993E-2,7.7376327300000006E-2,7.4010592400000005E-2,7.20296775E-2,6.7260461800000004E-2,6.4074500399999998E-2,5.7046135300000002E-2,5.0306532399999999E-2,5.7168935400000002E-2,7.4175667299999998E-2,6.6530240800000001E-2,4.7165360000000003E-2,5.3634488000000001E-2,4.8649689000000003E-2,5.3381570400000002E-2,5.22634508E-2,5.2817779400000001E-2,5.3387776599999999E-2,5.1658389899999997E-2,3.3116222399999999E-2,5.1405711299999997E-2]
[null,null,null,null,null,null,null,null,null,null,"T04_4|IE","T04_4","IE","waver",8.7324939099999999E-2,9.4189157800000006E-2,9.3143980099999996E-2,8.8327704100000001E-2,7.9796372099999999E-2,9.6022660199999998E-2,9.1922270799999997E-2,9.0120060299999999E-2,8.2797680999999998E-2,7.7951309100000005E-2,7.6105313499999994E-2,6.8227288799999994E-2,5.7367739000000001E-2,5.6157981400000001E-2,6.0995442300000001E-2,5.27951376E-2,6.6666679899999998E-2,4.9512411100000001E-2,7.1461916099999995E-2,7.4100085699999999E-2,6.5567280300000003E-2,6.8837806000000001E-2,6.9551673999999994E-2,5.5653811900000003E-2,5.1405711299999997E-2,1.6884086699999998E-2]
[null,null,null,null,null,null,null,null,null,null,"T04_4|IS","T04_4","IS","waver",0,0,0,0,0,0,0,0,0,0,0,0,9.2306822999999993E-3,1.01362833E-2,1.00491378E-2,1.2800974099999999E-2,1.1037464699999999E-2,1.07281745E-2,1.1141522100000001E-2,1.47724234E-2,1.45280523E-2,1.45430466E-2,1.47272355E-2,1.54386096E-2,1.6884086699999998E-2,5.3737907799999998E-2]
[null,null,null,null,null,null,null,null,null,null,"T04_4|IT","T04_4","IT","waver",6.9326053499999998E-2,7.9510919999999999E-2,7.6215305699999999E-2,7.5630843700000006E-2,7.0892800000000006E-2,7.2865819999999998E-2,7.2083941499999998E-2,7.0053422200000007E-2,6.3627218700000002E-2,7.1224481699999995E-2,6.7784337799999997E-2,6.8118621300000001E-2,6.6735717700000002E-2,7.0133782399999997E-2,7.4172675600000001E-2,8.1757206799999996E-2,7.8213337699999996E-2,8.1266201699999999E-2,7.79303363E-2,7.9196377400000004E-2,7.7129201199999997E-2,7.1933932699999995E-2,5.5489563800000002E-2,5.1023124199999999E-2,5.3737907799999998E-2,5.1920521400000003E-2]
[null,null,null,null,null,null,null,null,null,null,"T04_4|LT","T04_4","LT","waver",0.17501104170000001,0.1610322253,0.14555044349999999,0.15590337770000001,0.1225959647,0.1343969991,0.14112034000000001,0.15622100150000001,0.12395898499999999,0.1444197482,0.14755846589999999,0.1414557491,0.16549204889999999,0.1343733597,0.1327498245,0.1174812693,8.3033081600000003E-2,3.9016978399999999E-2,3.6956034399999997E-2,3.6232193699999998E-2,3.0329807100000002E-2,2.64211232E-2,2.4917103900000001E-2,6.4348193799999995E-2,5.1920521400000003E-2,0.25715932809999997]
[null,null,null,null,null,null,null,null,null,null,"T04_4|LU","T04_4","LU","waver",0.34729940349999999,0.37851993160000003,0.27464824799999998,0.2776647008,0.2738932543,0.26948546480000002,0.25110363390000001,0.2463669104,0.18609071069999999,0.19220085319999999,0.18501875300000001,0.1890334998,0.1899191787,0.18617336449999999,0.18873123150000001,0.19260940570000001,0.18616821519999999,0.17405947229999999,0.1787240722,0.17510388969999999,0.19076315990000001,0.19028651229999999,0.19993136289999999,0.1927968994,0.25715932809999997,3.0731039799999998E-2]
[null,null,null,null,null,null,null,null,null,null,"T04_4|LV","T04_4","LV","waver",9.3448135299999999E-2,8.7586836900000006E-2,9.3176728700000003E-2,8.8673151000000006E-2,7.5560482200000001E-2,5.8653517099999997E-2,6.78862197E-2,6.9578668499999996E-2,6.3457363700000005E-2,7.0419374300000004E-2,7.0783837099999997E-2,7.8831291400000003E-2,7.9120794100000003E-2,0.12574586169999999,0.11258870780000001,0.14192799049999999,0.14250193119999999,4.6961838800000003E-2,3.6420832799999997E-2,3.7938308300000001E-2,2.8442596399999999E-2,2.8558771100000001E-2,2.64886885E-2,3.3001532799999997E-2,3.0731039799999998E-2,1.13109035E-2]
[null,null,null,null,null,null,null,null,null,null,"T04_4|MT","T04_4","MT","waver","n.a.","n.a.","n.a.","n.a.",1.14168124E-2,1.59405517E-2,1.6046068300000001E-2,1.7949830399999998E-2,1.7500937099999999E-2,1.9641258000000002E-2,1.48993279E-2,9.5211310000000004E-3,8.2285932000000003E-3,2.0012279599999998E-2,1.2286556299999999E-2,1.3978432900000001E-2,1.41095584E-2,1.18329187E-2,9.2158815999999998E-3,9.8752590000000008E-3,6.6865047E-3,1.1595995200000001E-2,1.17934258E-2,1.1415842900000001E-2,1.13109035E-2,2.85551026E-2]
[null,null,null,null,null,null,null,null,null,null,"T04_4|NL","T04_4","NL","waver",3.66205743E-2,4.1173415499999998E-2,3.96371565E-2,4.0809023299999997E-2,3.3826122200000003E-2,3.97493176E-2,3.9127167599999998E-2,4.1193033499999997E-2,3.3644062199999998E-2,3.79443946E-2,3.4871641100000003E-2,3.9046661000000003E-2,3.2052764400000003E-2,3.96732786E-2,3.5098680200000003E-2,3.8333089899999999E-2,3.1883404400000002E-2,3.5423233300000002E-2,3.39571262E-2,3.6727730799999997E-2,2.9598135899999999E-2,3.7474045599999999E-2,3.0789305900000001E-2,3.3996175199999999E-2,2.85551026E-2,5.1864291600000001E-2]
[null,null,null,null,null,null,null,null,null,null,"T04_4|NO","T04_4","NO","waver",0.12729288059999999,0.12557304350000001,0.13056662760000001,0.11905580039999999,0.1024852773,0.1044949065,0.12636927240000001,0.1144393661,0.12855525540000001,8.1024006100000004E-2,6.8629175599999995E-2,8.2140972899999998E-2,7.6770117400000004E-2,8.2064717100000004E-2,9.1200994600000002E-2,7.5862350300000006E-2,5.53216282E-2,7.2588120199999995E-2,6.8652845700000006E-2,6.6363141799999997E-2,5.7312497300000001E-2,8.0997269799999994E-2,8.7174240400000005E-2,5.4676037099999998E-2,5.1864291600000001E-2,2.1894696299999999E-2]
[null,null,null,null,null,null,null,null,null,null,"T04_4|PL","T04_4","PL","waver",4.1110366799999999E-2,7.5697365200000005E-2,8.2576073299999997E-2,8.0030454799999998E-2,3.5642199100000001E-2,3.3539936800000003E-2,3.0781260899999999E-2,3.09497322E-2,2.85435086E-2,6.0153308199999998E-2,2.4866870999999999E-2,2.5549579699999998E-2,2.5305469800000001E-2,2.3867656300000002E-2,2.3926241099999999E-2,1.9681284800000001E-2,1.87501687E-2,3.0127393400000001E-2,2.8788196299999999E-2,2.3719019599999999E-2,2.0858590400000002E-2,2.2177318599999999E-2,2.0517659600000002E-2,1.93354471E-2,2.1894696299999999E-2,2.714275E-2]
[null,null,null,null,null,null,null,null,null,null,"T04_4|PT","T04_4","PT","waver",3.7830828300000001E-2,4.1754620700000002E-2,5.08230369E-2,4.8319751699999997E-2,4.44939117E-2,4.9077428899999997E-2,5.3045138200000001E-2,5.0128481099999997E-2,4.5939540199999997E-2,4.9850027099999999E-2,4.6646751700000003E-2,4.5466574000000003E-2,3.8824192399999999E-2,5.2976782200000003E-2,5.2868495799999998E-2,5.21851443E-2,4.4557755599999999E-2,4.6950748E-2,4.4063938599999998E-2,4.06385571E-2,4.0683376700000003E-2,3.8897466200000001E-2,3.1392349799999997E-2,2.6696588899999998E-2,2.714275E-2,3.4831569299999997E-2]
[null,null,null,null,null,null,null,null,null,null,"T04_4|RO","T04_4","RO","waver",0.14583009450000001,0.14787656199999999,0.1421625306,0.1172781036,0.10158641509999999,0.1089895124,0.1015147918,9.2892332699999997E-2,8.8660660899999993E-2,8.7736071200000001E-2,7.8169101099999999E-2,7.8484353699999995E-2,6.89956184E-2,7.1734330799999996E-2,6.0583933E-2,5.9059240899999997E-2,5.0122190099999998E-2,4.6769258299999998E-2,4.7986913700000002E-2,4.6821724000000002E-2,4.14096012E-2,3.9255518000000003E-2,3.78867378E-2,3.5953102899999999E-2,3.4831569299999997E-2,2.4628115700000001E-2]
[null,null,null,null,null,null,null,null,null,null,"T04_4|SE","T04_4","SE","waver","n.a.","n.a.","n.a.","n.a.",4.8462418399999999E-2,5.7206598800000001E-2,5.7586832999999997E-2,5.9351878300000001E-2,3.9019825199999997E-2,5.42897845E-2,5.9409921900000003E-2,4.8675239500000002E-2,3.90560847E-2,6.7464545400000006E-2,5.8720027000000001E-2,5.2277233399999998E-2,3.3620594500000003E-2,3.7552384199999997E-2,3.6404136599999998E-2,4.1661422300000001E-2,2.62592117E-2,4.6017265199999997E-2,4.0386575100000002E-2,3.6667862000000002E-2,2.4628115700000001E-2,1.7589091099999999E-2]
[null,null,null,null,null,null,null,null,null,null,"T04_4|SI","T04_4","SI","waver",7.1308065500000004E-2,7.0689586400000004E-2,6.4570298100000006E-2,7.7297289399999997E-2,6.9897162499999999E-2,6.4200287999999994E-2,6.4810580800000003E-2,5.7453750499999998E-2,5.5736269300000002E-2,5.0074635300000003E-2,4.8232027400000002E-2,4.7494282300000003E-2,4.37714144E-2,4.4910117899999998E-2,4.3556371900000002E-2,4.0298437100000001E-2,3.3592001400000002E-2,3.2156014199999999E-2,3.1196261900000001E-2,2.88234157E-2,2.60645202E-2,2.78920265E-2,2.2684649500000001E-2,1.9756238999999998E-2,1.7589091099999999E-2,2.1374737899999999E-2]
[null,null,null,null,null,null,null,null,null,null,"T04_4|SK","T04_4","SK","waver",6.0430241599999997E-2,4.1298017700000002E-2,4.1941108800000002E-2,5.1587045599999999E-2,5.0211779200000001E-2,4.5851867800000001E-2,4.3807128899999999E-2,4.6383927700000001E-2,3.9110920200000003E-2,3.6059739700000003E-2,3.2894430400000001E-2,3.4529715199999998E-2,3.71437555E-2,3.1076954399999999E-2,3.4856396800000002E-2,3.3493166900000003E-2,3.5910868499999998E-2,3.6223037600000001E-2,2.1726047799999999E-2,2.0522528200000001E-2,2.10387909E-2,3.3815145999999997E-2,2.7211885099999999E-2,2.3779917599999999E-2,2.1374737899999999E-2,0.66841134830000004]
[null,null,null,null,null,null,null,null,null,null,"T04_5|AT","T04_5","AT","waver",0.58468108740000002,0.58052901540000001,0.59990071249999999,0.60534790329999999,0.6170509676,0.61723725299999999,0.51128724150000004,0.52604966789999996,0.64181761280000005,0.63136452539999999,0.64052232259999997,0.6448271954,0.66950283759999996,0.68090741269999999,0.66908376039999995,0.67183157309999997,0.69096369840000005,0.67872561259999997,0.67935893260000002,0.676269173,0.70090747720000002,0.68606647239999996,0.66080667959999995,0.65580481000000002,0.66841134830000004,0.62202520859999999]
[null,null,null,null,null,null,null,null,null,null,"T04_5|BE","T04_5","BE","waver",0.4775997958,0.47268064360000001,0.50611270600000002,0.50201762080000001,0.51742319449999996,0.50893243970000002,0.49280663699999999,0.48499508099999999,0.49442652879999999,0.50003754970000003,0.50827544250000001,0.5135836533,0.53389349880000003,0.53512211850000002,0.53414151170000002,0.53776702799999998,0.56378967120000001,0.5727624281,0.59360966370000001,0.58936626830000005,0.61654777790000004,0.5974565892,0.59633081229999996,0.60125019349999997,0.62202520859999999,0.93476868719999995]
[null,null,null,null,null,null,null,null,null,null,"T04_5|BG","T04_5","BG","waver",0.8689462026,0.87932197899999998,0.8833797296,0.89275153659999995,0.89068142939999995,0.88725583640000005,0.8925226315,0.90707898799999997,0.90782339069999995,0.90249925099999995,0.91373516389999998,0.92568220170000004,0.93832899120000002,0.92808419369999995,0.93701116929999995,0.945490728,0.95217128809999996,0.91651991740000005,0.92730033010000001,0.92213020229999998,0.92403911900000002,0.93340591169999998,0.94212901680000005,0.94252486769999999,0.93476868719999995,0.92162282559999997]
[null,null,null,null,null,null,null,null,null,null,"T04_5|CY","T04_5","CY","waver",0.75306269199999998,0.76821104829999998,0.79046119039999996,0.82818294120000002,0.85339054069999998,0.8617290688,0.88364680650000005,0.91384554129999995,0.94086123570000002,0.93399936930000005,0.93087758340000004,0.93128250270000001,0.92526935809999999,0.91907528449999998,0.92580352109999997,0.92228007300000003,0.92480799680000003,0.92226447779999998,0.92035251070000001,0.94540490180000003,0.94378247689999994,0.94750996269999999,0.92095411819999995,0.92073363500000005,0.92162282559999997,0.75076519119999996]
[null,null,null,null,null,null,null,null,null,null,"T04_5|CZ","T04_5","CZ","waver",0.81818716719999995,0.80239871259999995,0.80476922149999996,0.78524919280000005,0.80349493689999996,0.7861231313,0.7799325413,0.78244633659999996,0.78872482590000004,0.7055189637,0.71579127259999997,0.71425848420000004,0.71935751869999998,0.72807034599999998,0.71946547090000001,0.71567314959999995,0.72453476080000001,0.69767937449999995,0.71633495899999999,0.7070560266,0.72250554369999997,0.71553036550000004,0.72706241250000003,0.73784393439999996,0.75076519119999996,0.46083489519999998]
[null,null,null,null,null,null,null,null,null,null,"T04_5|DE","T04_5","DE","waver",0.35164596250000002,0.32741488740000002,0.364159183,0.35698839960000001,0.3755590224,0.3676275436,0.36629070330000002,0.37603592229999999,0.39192453570000002,0.39954304750000003,0.40995411539999999,0.4132736206,0.42799165839999997,0.42973556260000001,0.43260920250000001,0.44050171049999998,0.44524625800000001,0.44305082270000001,0.45308083189999998,0.43925317359999999,0.4745709434,0.4448514153,0.44790032079999997,0.45100120189999998,0.46083489519999998,0.28866800850000002]
[null,null,null,null,null,null,null,null,null,null,"T04_5|DK","T04_5","DK","waver",0.24299305230000001,0.23529625870000001,0.25139356979999999,0.25329068059999998,0.2366619814,0.25125074739999997,0.26222077890000001,0.26192284729999998,0.26326170630000001,0.25583209540000001,0.26851517270000003,0.27031645859999998,0.27227324149999999,0.2745771186,0.2711297413,0.27500338870000002,0.27672562210000001,0.27593759639999998,0.27257851189999999,0.25953674319999998,0.2715691328,0.25928082969999999,0.28422384550000002,0.28403992290000002,0.28866800850000002,0.86302712410000004]
[null,null,null,null,null,null,null,null,null,null,"T04_5|EE","T04_5","EE","waver","n.a.","n.a.","n.a.","n.a.","n.a.",0.88089672529999996,0.89425133800000001,0.89606926090000005,0.89535095389999997,0.88575547359999995,0.90535928180000003,0.89741291580000004,0.81851233459999995,0.81945649030000001,0.83591384980000005,0.8364659297,0.82819142899999998,0.84116487979999999,0.84560912830000001,0.87212560640000003,0.88255845850000003,0.88522215449999997,0.84927676539999997,0.85062211899999995,0.86302712410000004,0.58079640259999998]
[null,null,null,null,null,null,null,null,null,null,"T04_5|ES","T04_5","ES","waver",0.59063578289999996,0.58606699620000002,0.59915159360000003,0.59527768879999998,0.60541042889999996,0.60606916659999999,0.60376474940000002,0.60315498089999997,0.61474147970000004,0.61521213029999999,0.61918364280000004,0.62773728259999995,0.62427316889999995,0.62004817489999997,0.6289878981,0.62995725270000003,0.63126713550000002,0.62717295080000002,0.63162312870000004,0.62834289629999995,0.63933007549999998,0.61730542340000005,0.6166812559,0.62938561299999995,0.58079640259999998,0.55206752550000004]
[null,null,null,null,null,null,null,null,null,null,"T04_5|EU","T04_5","EU","waver",0.48317045180000001,0.47000662920000003,0.49747614800000001,0.49546430450000001,0.51093989070000001,0.49909215169999999,0.49770284199999998,0.50511317560000002,0.52147417510000005,0.52622370240000005,0.53682249250000003,0.54427300069999995,0.55454532320000005,0.54978161930000002,0.55287701860000005,0.55739772070000004,0.56543644100000001,0.55417456850000002,0.5557363716,0.54502225010000005,0.5708437475,0.53682170659999995,0.54388117879999998,0.55055205699999998,0.55206752550000004,0.42098058970000002]
[null,null,null,null,null,null,null,null,null,null,"T04_5|FI","T04_5","FI","waver",0.31796903830000001,0.3035516989,0.33351931899999998,0.33530543419999997,0.32688615739999999,0.33804946629999999,0.31159725649999997,0.31916405170000001,0.34163863500000002,0.4566300163,0.48260388279999999,0.49985511869999999,0.49903889340000002,0.46828065880000003,0.4695987955,0.47731073680000002,0.38054368030000002,0.37415425740000002,0.38332437380000001,0.36862223420000001,0.38233612439999998,0.37416612230000001,0.40058190960000001,0.4132885033,0.42098058970000002,0.55023128909999997]
[null,null,null,null,null,null,null,null,null,null,"T04_5|FR","T04_5","FR","waver",0.44383379969999998,0.43252027450000002,0.4623870544,0.46325706300000002,0.4812182404,0.47100895599999998,0.47024975860000001,0.48221912820000001,0.50366211620000001,0.51319627609999996,0.52102187899999997,0.5307769739,0.54214826230000002,0.53341016119999995,0.5424681267,0.54725094439999999,0.55080880239999996,0.533956082,0.53216266639999998,0.5205520079,0.54483930729999996,0.52086613079999999,0.53486196350000004,0.54084299950000003,0.55023128909999997,0.60248575390000003]
[null,null,null,null,null,null,null,null,null,null,"T04_5|GB","T04_5","GB","waver",0.53744129129999996,0.52055308430000002,0.55712269540000003,0.55211215130000002,0.57582837610000004,0.54839498919999996,0.54057497470000004,0.55153388479999998,0.57211084290000003,0.58613341269999997,0.59893093220000004,0.60215950370000004,0.61311946169999998,0.60658803380000004,0.59960897680000003,0.60319009820000002,0.61645998970000004,0.5911830575,0.58873260199999999,0.57139720819999995,0.60104027289999995,0.55333072650000004,0.57966316330000001,0.59068160479999998,0.60248575390000003,0.73580015929999998]
[null,null,null,null,null,null,null,null,null,null,"T04_5|GR","T04_5","GR","waver",0.64903423630000001,0.55048288540000001,0.494837482,0.49987192850000001,0.48201535509999999,0.48091097849999997,0.54657030600000001,0.57150133410000004,0.59273340559999999,0.60589959230000001,0.63210026600000002,0.67861206340000002,0.70743901620000005,0.73212989780000004,0.75775965420000002,0.77029064250000001,0.76400522820000005,0.77395029420000006,0.77613809680000001,0.77951736140000005,0.79682823410000003,0.7774025296,0.72323476119999996,0.72634659759999998,0.73580015929999998,0.89461046629999996]
[null,null,null,null,null,null,null,null,null,null,"T04_5|HR","T04_5","HR","waver",0.74361716720000004,0.75760931740000004,0.75373166000000003,0.76097396799999995,0.79385590449999999,0.80839472639999999,0.82721267519999997,0.8421925763,0.84842769969999998,0.84570556720000001,0.85156236799999996,0.8830487387,0.88184001160000003,0.8664522563,0.86166874910000002,0.88391946430000001,0.87007711870000004,0.85908929280000002,0.8641263293,0.87982081899999998,0.88056915810000003,0.8767692587,0.88505602989999999,0.89945268150000002,0.89461046629999996,0.83552048970000004]
[null,null,null,null,null,null,null,null,null,null,"T04_5|HU","T04_5","HU","waver",0.77683521060000005,0.76013540430000004,0.76320600969999997,0.77449075889999996,0.78707000309999997,0.78843736419999999,0.80427314719999998,0.78583237689999996,0.82260659970000005,0.80442346109999996,0.82432092189999995,0.83432923049999996,0.85099020420000004,0.83545072139999998,0.82023464000000001,0.82663379609999998,0.84525934599999997,0.83712945949999995,0.84309871560000005,0.83539402389999995,0.84133816139999995,0.81222030450000005,0.82188108439999996,0.82100178329999995,0.83552048970000004,0.77536370779999997]
[null,null,null,null,null,null,null,null,null,null,"T04_5|IE","T04_5","IE","waver",0.5486694178,0.57678012040000004,0.61026024209999996,0.61428013280000004,0.62660697970000001,0.60735380900000002,0.61579188169999999,0.6253891144,0.68005513719999999,0.67846654849999999,0.70348279690000004,0.71876574640000002,0.74429410110000005,0.72644752420000003,0.74234010120000005,0.76113971020000004,0.73462875979999998,0.77189042519999995,0.75234324480000003,0.75700144660000002,0.77203909959999995,0.75665959589999998,0.76630336779999997,0.76808397579999999,0.77536370779999997,0.60539009040000002]
[null,null,null,null,null,null,null,null,null,null,"T04_5|IS","T04_5","IS","waver",0,0,0,0,0,0,0,0,0,0,0,0,0.60938835099999999,0.59213011339999999,0.59123926299999996,0.58661450130000004,0.58730316069999999,0.57118169129999996,0.56700998800000002,0.57431891310000005,0.60160882550000006,0.58852343380000005,0.60067803419999999,0.60619072279999997,0.60539009040000002,0.59447599230000003]
[null,null,null,null,null,null,null,null,null,null,"T04_5|IT","T04_5","IT","waver",0.50290037600000004,0.50690994330000005,0.52403489290000005,0.52950944020000001,0.5462088169,0.55655409870000006,0.55528994399999998,0.55853298839999999,0.56177944329999996,0.53747352000000004,0.54800263329999999,0.56435269799999999,0.58184809110000002,0.58695770940000003,0.59293550179999999,0.59464879299999995,0.59687165679999998,0.60407396550000003,0.59768597940000001,0.58627214849999998,0.61130307959999997,0.59787495160000004,0.59380808360000004,0.598932515,0.59447599230000003,0.92732797519999999]
[null,null,null,null,null,null,null,null,null,null,"T04_5|LT","T04_5","LT","waver",0.79777775939999995,0.78261696449999996,0.80318733399999998,0.79278962509999995,0.82930659360000003,0.81415961140000004,0.81623440400000002,0.80597028869999998,0.83647744879999997,0.81218553520000003,0.81775916979999996,0.82411277299999997,0.80454854239999996,0.82896385559999997,0.8429363956,0.85833939690000005,0.89237161450000002,0.93431441969999995,0.93562048210000004,0.9359500194,0.94712073929999996,0.94782978569999998,0.94549551580000002,0.9094166534,0.92732797519999999,0.65156397300000002]
[null,null,null,null,null,null,null,null,null,null,"T04_5|LU","T04_5","LU","waver",0.47617932200000002,0.4542613647,0.4792820129,0.4777078683,0.4633000545,0.46241770780000002,0.45816272860000001,0.4433613025,0.46154366320000001,0.45068386300000002,0.46273585150000002,0.47136069180000001,0.39119222999999997,0.39086178830000001,0.40464303800000001,0.47171086839999998,0.5058587739,0.50619551009999997,0.50164880680000001,0.49978897389999999,0.48390701470000003,0.50090573449999998,0.50913561409999997,0.51835868399999996,0.65156397300000002,0.88795069469999999]
[null,null,null,null,null,null,null,null,null,null,"T04_5|LV","T04_5","LV","waver",0.84651027720000005,0.82852550989999996,0.83392737569999997,0.83359939419999995,0.84096651929999999,0.85045757109999998,0.85743299399999995,0.85817387789999999,0.86130975009999999,0.86099290370000003,0.86545646009999999,0.85332178280000004,0.85256484450000003,0.820365389,0.83352163960000003,0.83246168450000002,0.83593951639999997,0.91197065070000005,0.92896842580000005,0.93145842170000004,0.94444976049999996,0.94618544439999996,0.8660267908,0.86280952749999995,0.88795069469999999,0.9305535774]
[null,null,null,null,null,null,null,null,null,null,"T04_5|MT","T04_5","MT","waver","n.a.","n.a.","n.a.","n.a.",0.94362979769999999,0.93171033069999998,0.93394116760000001,0.9338471639,0.9297485714,0.93758940550000003,0.941077889,0.94348545589999999,0.94108183670000001,0.93383680530000002,0.93593746190000005,0.94011016000000003,0.94270045420000004,0.9415240506,0.94744331530000003,0.94652974300000003,0.94995538769999999,0.94962839379999997,0.93478747269999996,0.93213012049999999,0.9305535774,0.62837218459999999]
[null,null,null,null,null,null,null,null,null,null,"T04_5|NL","T04_5","NL","waver",0.54755789190000004,0.5312694617,0.55535840059999997,0.55791786070000005,0.56910757059999995,0.55643769649999997,0.56536243850000001,0.57209890519999995,0.58663142400000001,0.5912083736,0.61012816540000003,0.61353129009999996,0.62159732270000001,0.61516776419999997,0.61728262519999999,0.61435144220000004,0.62761716420000002,0.61261249669999995,0.61396473340000002,0.6087282705,0.63223024210000001,0.61442984860000005,0.61157523020000004,0.61768386450000001,0.62837218459999999,0.47211108559999998]
[null,null,null,null,null,null,null,null,null,null,"T04_5|NO","T04_5","NO","waver",0.41733725100000002,0.40958561780000002,0.42642262800000003,0.41673902619999997,0.44433600140000001,0.41843160639999999,0.4234698683,0.4215707481,0.42427272230000002,0.43602372350000002,0.45743231680000002,0.45091615299999999,0.45504623100000002,0.45515993469999999,0.4545864416,0.4454485547,0.43773944370000001,0.42444756719999999,0.42341832369999999,0.42223220430000002,0.43996913560000001,0.41119506010000001,0.4273794474,0.44597489480000002,0.47211108559999998,0.84180642920000004]
[null,null,null,null,null,null,null,null,null,null,"T04_5|PL","T04_5","PL","waver",0.81081525710000002,0.81267354349999998,0.80812620229999999,0.81779748429999999,0.83729128829999999,0.84384432440000001,0.83574545119999999,0.84666608139999999,0.83971417150000005,0.84412566259999999,0.84535990130000005,0.84718143999999995,0.85491826230000001,0.85086724749999998,0.84095271829999996,0.84644369539999997,0.85290292069999996,0.83501172720000005,0.83157870239999998,0.83671405700000001,0.84458708220000001,0.83155297829999997,0.84840747719999998,0.84830814060000004,0.84180642920000004,0.78427600289999999]
[null,null,null,null,null,null,null,null,null,null,"T04_5|PT","T04_5","PT","waver",0.69673730330000005,0.70529145339999999,0.70551356269999999,0.72275319429999996,0.7416979547,0.73024537599999995,0.72918143160000004,0.73770221520000001,0.72773460400000001,0.75193174910000005,0.75945339089999997,0.76103546590000004,0.77899967390000002,0.76385721399999995,0.77319486780000002,0.77724146149999995,0.78922545509999997,0.78654538870000001,0.79331475419999997,0.79601077220000005,0.80333340009999998,0.80279206280000004,0.78242079070000004,0.77942480300000005,0.78427600289999999,0.91975173710000002]
[null,null,null,null,null,null,null,null,null,null,"T04_5|RO","T04_5","RO","waver",0.8233386654,0.81839073429999998,0.82339892910000001,0.84542171170000002,0.86279098570000001,0.85273259879999996,0.86150799730000005,0.87049663619999995,0.87415134090000002,0.87650740110000003,0.88305174580000001,0.88420303919999998,0.89050641760000004,0.88600090070000004,0.89099399450000005,0.88253680040000004,0.91151628409999996,0.90226473289999998,0.89629201169999995,0.90175822989999999,0.90896107169999996,0.8871215536,0.89722507510000005,0.91248704449999996,0.91975173710000002,0.45642343210000003]
[null,null,null,null,null,null,null,null,null,null,"T04_5|SE","T04_5","SE","waver","n.a.","n.a.","n.a.","n.a.",0.3431798224,0.3623331715,0.36287408659999998,0.35609880189999998,0.35301836749999999,0.37044778420000002,0.37814422330000003,0.38970477339999998,0.38626247390000001,0.37267552939999998,0.37492681960000002,0.37928526480000002,0.41411142750000002,0.4021802706,0.40958209239999999,0.40374475650000002,0.41601365829999998,0.40840332260000001,0.43013953980000003,0.44471181240000002,0.45642343210000003,0.93866830779999999]
[null,null,null,null,null,null,null,null,null,null,"T04_5|SI","T04_5","SI","waver",0.8510031522,0.84998265669999995,0.86012877909999996,0.84814300490000005,0.85867015570000005,0.86296308939999999,0.87716646819999999,0.88398058310000005,0.88350352480000005,0.88415581310000002,0.88186720679999997,0.9004589757,0.90623390969999995,0.90097773969999995,0.90453372109999997,0.91038585989999998,0.93186074949999997,0.92819671879999999,0.92407753640000001,0.93076410009999999,0.92627511689999997,0.91866937879999999,0.92604327369999995,0.93094744330000001,0.93866830779999999,0.79287004289999996]
[null,null,null,null,null,null,null,null,null,null,"T04_5|SK","T04_5","SK","waver",0.81219709579999999,0.82687331539999998,0.83136421849999997,0.82205849959999999,0.82677334069999997,0.81736238670000005,0.8234877652,0.8269255888,0.83197962920000001,0.82947274370000001,0.82752622369999995,0.82346564440000003,0.82024608799999998,0.82913062810000004,0.8291830348,0.83033104930000001,0.83240914720000003,0.81815624490000005,0.81868857559999997,0.81578934010000004,0.82776932969999995,0.82066102600000002,0.80298703130000004,0.79405422029999995,0.79287004289999996,0.40414835430000001]
[null,null,null,null,null,null,null,null,null,null,"T04_6|AT","T04_6","AT","waver",0,0,0,0,0,0,0,0,0,0,0,0,0,0,0,0,0,0.40590861579999998,0.41085478600000003,0.40607987039999999,0.42269374129999998,0.40223880280000002,0.39531898830000001,0.39171852740000002,0.40414835430000001,0.36847541719999999]
[null,null,null,null,null,null,null,null,null,null,"T04_6|BE","T04_6","BE","waver",0,0,0,0,0,0,0,0,0,0,0,0,0,0,0,0,0,0.33725687630000001,0.35680805339999999,0.34769250800000001,0.36997970070000002,0.34786227419999999,0.35476250269999998,0.35777811409999999,0.36847541719999999,0.63310353450000001]
[null,null,null,null,null,null,null,null,null,null,"T04_6|BG","T04_6","BG","waver",0,0,0,0,0,0,0,0,0,0,0,0,0,0,0,0,0,0.62226711410000002,0.62309982890000004,0.61651067280000005,0.62720528230000006,0.63663787449999998,0.64402622850000002,0.63142446080000003,0.63310353450000001,0.76135160989999995]
[null,null,null,null,null,null,null,null,null,null,"T04_6|CY","T04_6","CY","waver",0,0,0,0,0,0,0,0,0,0,0,0,0,0,0,"n.a.","n.a.",0.64218233160000004,0.63205188879999996,0.64122943659999998,0.64627116600000001,0.66427467529999995,0.64990651129999999,0.64613691539999996,0.76135160989999995,0.48157632620000002]
[null,null,null,null,null,null,null,null,null,null,"T04_6|CZ","T04_6","CZ","waver",0,0,0,0,0,0,0,0,0,0,0,0,0,0,0,0,0,0.41600528650000002,0.42537795589999999,0.41734293719999999,0.45741058530000001,0.41145713909999998,0.43448277089999998,0.44352128210000002,0.48157632620000002,0.19315179369999999]
[null,null,null,null,null,null,null,null,null,null,"T04_6|DE","T04_6","DE","waver",0,0,0,0,0,0,0,0,0,0,0,0,0,0,0,0,0,0.1664080956,0.169896045,0.1637567432,0.18484537810000001,0.16586687059999999,0.17177175820000001,0.1751302072,0.19315179369999999,0.11243234489999999]
[null,null,null,null,null,null,null,null,null,null,"T04_6|DK","T04_6","DK","waver",0,0,0,0,0,0,0,0,0,0,0,0,0,0,0,0,0,0.11080605120000001,0.11005489290000001,0.10619148170000001,0.1113292936,0.1066310982,0.1113462519,0.1109984451,0.11243234489999999,0.36170224579999999]
[null,null,null,null,null,null,null,null,null,null,"T04_6|EE","T04_6","EE","waver",0,0,0,0,0,0,0,0,0,0,0,0,0,0,0,0,0,0.38092682369999997,0.3863426982,0.38782914600000001,0.39307758209999999,0.39778875409999997,0.3736192458,0.36458828230000001,0.36170224579999999,0.35313755790000001]
[null,null,null,null,null,null,null,null,null,null,"T04_6|ES","T04_6","ES","waver",0,0,0,0,0,0,0,0,0,0,0,0,0,0,0,0,0,0.38527520119999997,0.38933702209999999,0.38425168980000002,0.39643707810000001,0.38185780559999999,0.37462558439999999,0.38160968839999998,0.35313755790000001,0.2884082691]
[null,null,null,null,null,null,null,null,null,null,"T04_6|EU","T04_6","EU","waver",0,0,0,0,0,0,0,0,0,0,0,0,0,0,0,0,0,0.28265419629999999,0.28314294420000002,0.2775628839,0.2976826058,0.27494934770000001,0.27853428959999998,0.28088714889999999,0.2884082691,0.21798849789999999]
[null,null,null,null,null,null,null,null,null,null,"T04_6|FI","T04_6","FI","waver",0,0,0,0,0,0,0,0,0,0,0,0,0,0,0,0,0,0.1834596101,0.19963507799999999,0.19688912010000001,0.1947799043,0.18945963590000001,0.20221163680000001,0.20753973070000001,0.21798849789999999,0.25148203520000001]
[null,null,null,null,null,null,null,null,null,null,"T04_6|FR","T04_6","FR","waver",0,0,0,0,0,0,0,0,0,0,0,0,0,0,0,0,0,0.25121728300000001,0.24875306629999999,0.24335123380000001,0.26224892189999999,0.23537377700000001,0.2401482566,0.24222372410000001,0.25148203520000001,0.28782343929999998]
[null,null,null,null,null,null,null,null,null,null,"T04_6|GB","T04_6","GB","waver",0,0,0,0,0,0,0,0,0,0,0,0,0,0,0,0,0,0.28615073730000001,0.28076347769999999,0.27335420179999997,0.29431892079999999,0.25922020270000001,0.27325475310000003,0.27668366189999999,0.28782343929999998,0.51236870030000004]
[null,null,null,null,null,null,null,null,null,null,"T04_6|GR","T04_6","GR","waver",0,0,0,0,0,0,0,0,0,0,0,0,0,0,0,0,0,0.54101396170000005,0.5435207568,0.54854033999999996,0.55326542310000004,0.53513590249999998,0.51530518950000004,0.50970582099999995,0.51236870030000004,0.57116666729999999]
[null,null,null,null,null,null,null,null,null,null,"T04_6|HR","T04_6","HR","waver",0,0,0,0,0,0,0,0,0,0,0,0,0,0,0,0,0,0.56047389120000002,0.56153064819999998,0.56444125310000004,0.57081201960000005,0.57153314820000001,0.564117223,0.57431661089999997,0.57116666729999999,0.4673638148]
[null,null,null,null,null,null,null,null,null,null,"T04_6|HU","T04_6","HU","waver",0,0,0,0,0,0,0,0,0,0,0,0,0,0,0,0,0,0.4813048754,0.48450543130000001,0.46516122129999998,0.47497170979999997,0.46626333240000001,0.4741994886,0.46675949550000001,0.4673638148,0.38906465309999999]
[null,null,null,null,null,null,null,null,null,null,"T04_6|IE","T04_6","IE","waver",0,0,0,0,0,0,0,0,0,0,0,0,0,0,0,0,0,0.40322118210000002,0.38671177969999998,0.39027986419999999,0.39096938650000002,0.38183903590000001,0.39200610730000002,0.38601697200000001,0.38906465309999999,0.31349557709999998]
[null,null,null,null,null,null,null,null,null,null,"T04_6|IS","T04_6","IS","waver",0,0,0,0,0,0,0,0,0,0,0,0,0,0,0,0,0,0.28623050519999998,0.28525737829999998,0.28646093719999999,0.30845546730000001,0.29167104599999999,0.30324209149999998,0.29024423630000001,0.31349557709999998,0.325247542]
[null,null,null,null,null,null,null,null,null,null,"T04_6|IT","T04_6","IT","waver",0,0,0,0,0,0,0,0,0,0,0,0,0,0,0,0,0,0.33431054840000002,0.3296548762,0.33070431109999998,0.34235816130000002,0.33615566609999997,0.32916839120000002,0.32936130609999997,0.325247542,0.58575177150000002]
[null,null,null,null,null,null,null,null,null,null,"T04_6|LT","T04_6","LT","waver",0,0,0,0,0,0,0,0,0,0,0,0,0,0,0,0,0,0.6143279358,0.62656005859999997,0.62204091669999995,0.62024370110000004,0.60795853040000003,0.59948043470000001,0.57808354230000003,0.58575177150000002,0.1663422678]
[null,null,null,null,null,null,null,null,null,null,"T04_6|LU","T04_6","LU","waver",0,0,0,0,0,0,0,0,0,0,0,0,0,0,0,0,0,0.128266351,0.12618935919999999,0.12522764080000001,0.1239231566,0.12813913399999999,0.1356590201,0.13434733709999999,0.1663422678,0.50323293150000004]
[null,null,null,null,null,null,null,null,null,null,"T04_6|LV","T04_6","LV","waver",0,0,0,0,0,0,0,0,0,0,0,0,0,0,0,0,0,0.53406389649999997,0.55238563009999997,0.54891029179999995,0.5616385371,0.56100301029999999,0.51556780479999997,0.51093652899999997,0.50323293150000004,0.6705650205]
[null,null,null,null,null,null,null,null,null,null,"T04_6|MT","T04_6","MT","waver",0,0,0,0,0,0,0,0,0,0,0,0,0,0,0,0,0,0.64795381740000002,0.66237464410000002,0.6605037963,0.67112914170000004,0.66466692189999999,0.6632991989,0.66730833680000001,0.6705650205,0.38973780600000002]
[null,null,null,null,null,null,null,null,null,null,"T04_6|NL","T04_6","NL","waver",0,0,0,0,0,0,0,0,0,0,0,0,0,0,0,0,0,0.35904588230000001,0.36374137670000001,0.35661640280000001,0.39227963830000001,0.36638794460000002,0.37369192769999998,0.3693310527,0.38973780600000002,0.18981858779999999]
[null,null,null,null,null,null,null,null,null,null,"T04_6|NO","T04_6","NO","waver",0,0,0,0,0,0,0,0,0,0,0,0,0,0,0,0,0,0.17636525619999999,0.1796688397,0.17890796070000001,0.18521382950000001,0.1630911515,0.17264104760000001,0.1819803217,0.18981858779999999,0.59562184490000003]
[null,null,null,null,null,null,null,null,null,null,"T04_6|PL","T04_6","PL","waver",0,0,0,0,0,0,0,0,0,0,0,0,0,0,0,0,0,0.5709474618,0.57746619109999997,0.58130690389999995,0.58438405459999998,0.58376614059999998,0.57830561489999999,0.58692742840000001,0.59562184490000003,0.54828191520000003]
[null,null,null,null,null,null,null,null,null,null,"T04_6|PT","T04_6","PT","waver",0,0,0,0,0,0,0,0,0,0,0,0,0,0,0,0,0,0.5391075448,0.5482305462,0.54976061409999999,0.55872185480000003,0.55549773619999998,0.54069396989999996,0.54156770909999996,0.54828191520000003,0.59446012150000005]
[null,null,null,null,null,null,null,null,null,null,"T04_6|RO","T04_6","RO","waver",0,0,0,0,0,0,0,0,0,0,0,0,0,0,0,0,0,0.59104568489999998,0.58542505649999999,0.5894628354,0.58652130420000004,0.58024949680000004,0.6018463677,0.6016563828,0.59446012150000005,0.20003921799999999]
[null,null,null,null,null,null,null,null,null,null,"T04_6|SE","T04_6","SE","waver",0,0,0,0,0,0,0,0,0,0,0,0,0,0,0,0,0,0.17771264179999999,0.18483828099999999,0.18141322430000001,0.19310399140000001,0.17145736589999999,0.178366992,0.1863813932,0.20003921799999999,0.71641387089999997]
[null,null,null,null,null,null,null,null,null,null,"T04_6|SI","T04_6","SI","waver",0,0,0,0,0,0,0,0,0,0,0,0,0,0,0,0,0,0.72163632889999996,0.7295351457,0.73072139650000001,0.73301331160000005,0.70420752760000005,0.71624951130000003,0.71161464399999996,0.71641387089999997,0.52528224749999997]
[null,null,null,null,null,null,null,null,null,null,"T04_6|SK","T04_6","SK","waver",0,0,0,0,0,0,0,0,0,0,0,0,0,0,0,0,0,0.52532621059999995,0.5189772131,0.5210776962,0.52486615599999997,0.54026921059999999,0.52716903459999997,0.52037839399999997,0.52528224749999997,0.17523262649999999]
[null,null,null,null,null,null,null,null,null,null,"T04_7|AT","T04_7","AT","waver",0,0,0,0,0,0,0,0,0,0,0,0,0,0,0,0,0,0.1681054286,0.1638931133,0.16307000569999999,0.1758624698,0.1730104224,0.17038845729999999,0.17375750570000001,0.17523262649999999,0.14005132519999999]
[null,null,null,null,null,null,null,null,null,null,"T04_7|BE","T04_7","BE","waver",0,0,0,0,0,0,0,0,0,0,0,0,0,0,0,0,0,0.12660789489999999,0.13134879799999999,0.13172701980000001,0.1379351878,0.1359107648,0.13586439980000001,0.13736773150000001,0.14005132519999999,0.25877094499999997]
[null,null,null,null,null,null,null,null,null,null,"T04_7|BG","T04_7","BG","waver",0,0,0,0,0,0,0,0,0,0,0,0,0,0,0,0,0,0.236544597,0.23321168070000001,0.24605910980000001,0.25019955240000002,0.24346005609999999,0.2511109627,0.26549829899999999,0.25877094499999997,0.13065284529999999]
[null,null,null,null,null,null,null,null,null,null,"T04_7|CY","T04_7","CY","waver",0,0,0,0,0,0,0,0,0,0,0,0,0,0,0,"n.a.","n.a.",0.1913280504,0.19628641769999999,0.20276762449999999,0.19829404470000001,0.19449859150000001,0.18806436100000001,0.19063582709999999,0.13065284529999999,0.17894775979999999]
[null,null,null,null,null,null,null,null,null,null,"T04_7|CZ","T04_7","CZ","waver",0,0,0,0,0,0,0,0,0,0,0,0,0,0,0,0,0,0.15600589370000001,0.15462273779999999,0.1529975865,0.17012191030000001,0.15676368569999999,0.15965665339999999,0.16478001,0.17894775979999999,0.1278603207]
[null,null,null,null,null,null,null,null,null,null,"T04_7|DE","T04_7","DE","waver",0,0,0,0,0,0,0,0,0,0,0,0,0,0,0,0,0,9.9865121400000006E-2,0.10158179840000001,0.1009406103,0.1138088243,0.10122452429999999,0.1077217295,0.1104486878,0.1278603207,0.1018430939]
[null,null,null,null,null,null,null,null,null,null,"T04_7|DK","T04_7","DK","waver",0,0,0,0,0,0,0,0,0,0,0,0,0,0,0,0,0,8.2391331400000004E-2,7.7869243300000002E-2,7.7075262699999994E-2,8.3022109999999996E-2,7.7276470400000005E-2,9.2892349999999999E-2,9.5658579800000004E-2,0.1018430939,0.32111505800000001]
[null,null,null,null,null,null,null,null,null,null,"T04_7|EE","T04_7","EE","waver",0,0,0,0,0,0,0,0,0,0,0,0,0,0,0,0,0,0.33163553909999999,0.31869638119999999,0.3261333427,0.33967514809999999,0.33300434620000002,0.30674175939999998,0.30695242779999998,0.32111505800000001,0.1482008641]
[null,null,null,null,null,null,null,null,null,null,"T04_7|ES","T04_7","ES","waver",0,0,0,0,0,0,0,0,0,0,0,0,0,0,0,0,0,0.14492667079999999,0.14707007650000001,0.14816581679999999,0.15187620199999999,0.14687343520000001,0.1552906473,0.1589575701,0.1482008641,0.15978646799999999]
[null,null,null,null,null,null,null,null,null,null,"T04_7|EU","T04_7","EU","waver",0,0,0,0,0,0,0,0,0,0,0,0,0,0,0,0,0,0.14146006859999999,0.1423682352,0.14154515779999999,0.15091069109999999,0.13973764929999999,0.15103356979999999,0.1553407329,0.15978646799999999,0.13135708069999999]
[null,null,null,null,null,null,null,null,null,null,"T04_7|FI","T04_7","FI","waver",0,0,0,0,0,0,0,0,0,0,0,0,0,0,0,0,0,0.13190807569999999,0.12612868199999999,0.11911766090000001,0.12010679220000001,0.114267853,0.14051290759999999,0.1406308439,0.13135708069999999,0.1747919319]
[null,null,null,null,null,null,null,null,null,null,"T04_7|FR","T04_7","FR","waver",0,0,0,0,0,0,0,0,0,0,0,0,0,0,0,0,0,0.1441602206,0.14488649510000001,0.14501260320000001,0.158566338,0.1508507912,0.16848170100000001,0.1721621572,0.1747919319,0.1747188989]
[null,null,null,null,null,null,null,null,null,null,"T04_7|GB","T04_7","GB","waver",0,0,0,0,0,0,0,0,0,0,0,0,0,0,0,0,0,0.15522852979999999,0.15518900490000001,0.1517814337,0.16361596980000001,0.15006742640000001,0.1668209182,0.1704806703,0.1747188989,0.16039522349999999]
[null,null,null,null,null,null,null,null,null,null,"T04_7|GR","T04_7","GR","waver",0,0,0,0,0,0,0,0,0,0,0,0,0,0,0,0,0,0.12858159329999999,0.13578392589999999,0.13869550980000001,0.14555124699999999,0.14005065529999999,0.1400918461,0.1524700598,0.16039522349999999,0.2234516346]
[null,null,null,null,null,null,null,null,null,null,"T04_7|HR","T04_7","HR","waver",0,0,0,0,0,0,0,0,0,0,0,0,0,0,0,0,0,0.18790342730000001,0.19362415050000001,0.20406178119999999,0.2041697616,0.20103076040000001,0.21292555630000001,0.22123038449999999,0.2234516346,0.28713199029999997]
[null,null,null,null,null,null,null,null,null,null,"T04_7|HU","T04_7","HU","waver",0,0,0,0,0,0,0,0,0,0,0,0,0,0,0,0,0,0.2499994962,0.25553691979999998,0.25101428510000001,0.26751545399999999,0.25461141370000001,0.26071317550000001,0.27410894699999999,0.28713199029999997,0.3145897909]
[null,null,null,null,null,null,null,null,null,null,"T04_7|IE","T04_7","IE","waver",0,0,0,0,0,0,0,0,0,0,0,0,0,0,0,0,0,0.28902479330000003,0.29213316020000002,0.29043772449999999,0.30363466610000001,0.29155548240000001,0.29651402719999997,0.30865726339999999,0.3145897909,0.18639036070000001]
[null,null,null,null,null,null,null,null,null,null,"T04_7|IS","T04_7","IS","waver",0,0,0,0,0,0,0,0,0,0,0,0,0,0,0,0,0,0.17749036209999999,0.17798524900000001,0.18204574130000001,0.18452312030000001,0.18702286460000001,0.1833340259,0.19424597090000001,0.18639036070000001,0.17244543849999999]
[null,null,null,null,null,null,null,null,null,null,"T04_7|IT","T04_7","IT","waver",0,0,0,0,0,0,0,0,0,0,0,0,0,0,0,0,0,0.14582727179999999,0.15091189690000001,0.14544785609999999,0.15150620679999999,0.14909086439999999,0.15891025289999999,0.17020873619999999,0.17244543849999999,0.26594874750000003]
[null,null,null,null,null,null,null,null,null,null,"T04_7|LT","T04_7","LT","waver",0,0,0,0,0,0,0,0,0,0,0,0,0,0,0,0,0,0.22162661080000001,0.22559554030000001,0.22861532609999999,0.2301553667,0.2357131411,0.24618373630000001,0.25179075410000001,0.26594874750000003,0.117137228]
[null,null,null,null,null,null,null,null,null,null,"T04_7|LU","T04_7","LU","waver",0,0,0,0,0,0,0,0,0,0,0,0,0,0,0,0,0,0.1063694094,0.1079996498,9.7548352500000005E-2,8.7582090700000004E-2,8.55274231E-2,9.5206687700000001E-2,0.1002203393,0.117137228,0.30761910920000002]
[null,null,null,null,null,null,null,null,null,null,"T04_7|LV","T04_7","LV","waver",0,0,0,0,0,0,0,0,0,0,0,0,0,0,0,0,0,0.3034740662,0.30139756010000002,0.30257147719999999,0.30187827900000003,0.3031102249,0.2744284723,0.28733674920000002,0.30761910920000002,0.14898876829999999]
[null,null,null,null,null,null,null,null,null,null,"T04_7|MT","T04_7","MT","waver",0,0,0,0,0,0,0,0,0,0,0,0,0,0,0,0,0,0.15559889869999999,0.1493283953,0.15748252909999999,0.15114391629999999,0.14124547700000001,0.14433098120000001,0.14214812490000001,0.14898876829999999,0.15194888379999999]
[null,null,null,null,null,null,null,null,null,null,"T04_7|NL","T04_7","NL","waver",0,0,0,0,0,0,0,0,0,0,0,0,0,0,0,0,0,0.15137018199999999,0.1511333084,0.15209589100000001,0.14912658070000001,0.13948932459999999,0.14296305400000001,0.1435000508,0.15194888379999999,0.21690931769999999]
[null,null,null,null,null,null,null,null,null,null,"T04_7|NO","T04_7","NO","waver",0,0,0,0,0,0,0,0,0,0,0,0,0,0,0,0,0,0.181647275,0.17820101569999999,0.1857899811,0.19258165429999999,0.17825910180000001,0.18868398210000001,0.2007487312,0.21690931769999999,0.19191276030000001]
[null,null,null,null,null,null,null,null,null,null,"T04_7|PL","T04_7","PL","waver",0,0,0,0,0,0,0,0,0,0,0,0,0,0,0,0,0,0.17547405599999999,0.17819338700000001,0.1831935465,0.19454732799999999,0.18479918619999999,0.20397511569999999,0.199543052,0.19191276030000001,0.18789562300000001]
[null,null,null,null,null,null,null,null,null,null,"T04_7|PT","T04_7","PT","waver",0,0,0,0,0,0,0,0,0,0,0,0,0,0,0,0,0,0.1684669439,0.16795766519999999,0.17638617309999999,0.18139808569999999,0.18162167209999999,0.1841188913,0.18514623990000001,0.18789562300000001,0.2699853988]
[null,null,null,null,null,null,null,null,null,null,"T04_7|RO","T04_7","RO","waver",0,0,0,0,0,0,0,0,0,0,0,0,0,0,0,0,0,0.25206090720000002,0.24495233969999999,0.25508452510000001,0.26698505950000001,0.24901086350000001,0.2413352325,0.25739743030000001,0.2699853988,0.18357437569999999]
[null,null,null,null,null,null,null,null,null,null,"T04_7|SE","T04_7","SE","waver",0,0,0,0,0,0,0,0,0,0,0,0,0,0,0,0,0,0.152234911,0.1513572759,0.15607653520000001,0.16043397549999999,0.15247420549999999,0.16518411520000001,0.17566428149999999,0.18357437569999999,0.18294422129999999]
[null,null,null,null,null,null,null,null,null,null,"T04_7|SI","T04_7","SI","waver",0,0,0,0,0,0,0,0,0,0,0,0,0,0,0,0,0,0.14888891900000001,0.14327295910000001,0.15110218459999999,0.14719222309999999,0.16704857240000001,0.16899304000000001,0.17919638909999999,0.18294422129999999,0.22749021990000001]
[null,null,null,null,null,null,null,null,null,null,"T04_7|SK","T04_7","SK","waver",0,0,0,0,0,0,0,0,0,0,0,0,0,0,0,0,0,0.20372962280000001,0.19998321699999999,0.2079649093,0.2167855923,0.21012130279999999,0.21755376579999999,0.22044395689999999,0.22749021990000001,8.9030399199999999E-2]
[null,null,null,null,null,null,null,null,null,null,"T04_8|AT","T04_8","AT","waver",0,0,0,0,0,0,0,0,0,0,0,0,0,0,0,0,0,0.10471156819999999,0.1046110333,0.10711929689999999,0.102351266,0.1108172473,9.5099234000000005E-2,9.0328776900000005E-2,8.9030399199999999E-2,0.11349846619999999]
[null,null,null,null,null,null,null,null,null,null,"T04_8|BE","T04_8","BE","waver",0,0,0,0,0,0,0,0,0,0,0,0,0,0,0,0,0,0.10889765680000001,0.1054528122,0.1099467406,0.10863288929999999,0.1136835501,0.1057039098,0.10610434790000001,0.11349846619999999,4.2894207699999999E-2]
[null,null,null,null,null,null,null,null,null,null,"T04_8|BG","T04_8","BG","waver",0,0,0,0,0,0,0,0,0,0,0,0,0,0,0,0,0,5.7708206300000002E-2,7.0988820499999994E-2,5.95604198E-2,4.6634284400000003E-2,5.3307981099999999E-2,4.6991825500000001E-2,4.5602107900000001E-2,4.2894207699999999E-2,7.6991205600000001E-2]
[null,null,null,null,null,null,null,null,null,null,"T04_8|CY","T04_8","CY","waver",0,0,0,0,0,0,0,0,0,0,0,0,0,0,0,"n.a.","n.a.",8.8754095800000002E-2,9.2014204200000005E-2,0.1014078407,9.9217266299999995E-2,8.8736696000000004E-2,8.2983245900000002E-2,8.3960892499999995E-2,7.6991205600000001E-2,9.0241105200000005E-2]
[null,null,null,null,null,null,null,null,null,null,"T04_8|CZ","T04_8","CZ","waver",0,0,0,0,0,0,0,0,0,0,0,0,0,0,0,0,0,0.12566819439999999,0.1363342652,0.13671550290000001,9.4973048199999993E-2,0.14730954060000001,0.13292298820000001,0.12954264230000001,9.0241105200000005E-2,0.14580204390000001]
[null,null,null,null,null,null,null,null,null,null,"T04_8|DE","T04_8","DE","waver",0,0,0,0,0,0,0,0,0,0,0,0,0,0,0,0,0,0.17677760570000001,0.18160298859999999,0.17455582010000001,0.17591674099999999,0.17776002029999999,0.16840683309999999,0.16542230690000001,0.14580204390000001,7.4392569800000002E-2]
[null,null,null,null,null,null,null,null,null,null,"T04_8|DK","T04_8","DK","waver",0,0,0,0,0,0,0,0,0,0,0,0,0,0,0,0,0,8.2740213800000004E-2,8.4654375700000006E-2,7.6269998800000002E-2,7.7217729299999996E-2,7.5373261100000005E-2,7.9985243600000006E-2,7.73828981E-2,7.4392569800000002E-2,0.18020982029999999]
[null,null,null,null,null,null,null,null,null,null,"T04_8|EE","T04_8","EE","waver",0,0,0,0,0,0,0,0,0,0,0,0,0,0,0,0,0,0.12860251689999999,0.14057004880000001,0.15816311760000001,0.1498057284,0.15442905409999999,0.16891576019999999,0.17908140880000001,0.18020982029999999,7.94579807E-2]
[null,null,null,null,null,null,null,null,null,null,"T04_8|ES","T04_8","ES","waver",0,0,0,0,0,0,0,0,0,0,0,0,0,0,0,0,0,9.6971078899999993E-2,9.5216029999999993E-2,9.5925389700000002E-2,9.1016795499999997E-2,8.8574182599999995E-2,8.6765024199999999E-2,8.8818354500000002E-2,7.94579807E-2,0.1061470994]
[null,null,null,null,null,null,null,null,null,null,"T04_8|EU","T04_8","EU","waver",0,0,0,0,0,0,0,0,0,0,0,0,0,0,0,0,0,0.1300603035,0.13022519220000001,0.1259142083,0.1222504506,0.1221347096,0.1143133194,0.1143241752,0.1061470994,7.1635011100000007E-2]
[null,null,null,null,null,null,null,null,null,null,"T04_8|FI","T04_8","FI","waver",0,0,0,0,0,0,0,0,0,0,0,0,0,0,0,0,0,5.8786571599999997E-2,5.75606138E-2,5.2615453200000002E-2,6.7449427899999997E-2,7.0438633400000006E-2,5.7857365299999998E-2,6.5117928699999994E-2,7.1635011100000007E-2,0.12395732199999999]
[null,null,null,null,null,null,null,null,null,null,"T04_8|FR","T04_8","FR","waver",0,0,0,0,0,0,0,0,0,0,0,0,0,0,0,0,0,0.13857857840000001,0.1385231049,0.13218817090000001,0.1240240473,0.13464156259999999,0.1262320059,0.1264571182,0.12395732199999999,0.14158161620000001]
[null,null,null,null,null,null,null,null,null,null,"T04_8|GB","T04_8","GB","waver",0,0,0,0,0,0,0,0,0,0,0,0,0,0,0,0,0,0.1498037904,0.1527801194,0.14626157270000001,0.1431053823,0.14404309730000001,0.1395874919,0.1435172726,0.14158161620000001,6.3036235499999996E-2]
[null,null,null,null,null,null,null,null,null,null,"T04_8|GR","T04_8","GR","waver",0,0,0,0,0,0,0,0,0,0,0,0,0,0,0,0,0,0.1043547392,9.6833414000000007E-2,9.2281511600000005E-2,9.8011563999999995E-2,0.1022159718,6.7837725599999996E-2,6.4170716799999999E-2,6.3036235499999996E-2,9.99921644E-2]
[null,null,null,null,null,null,null,null,null,null,"T04_8|HR","T04_8","HR","waver",0,0,0,0,0,0,0,0,0,0,0,0,0,0,0,0,0,0.1107119743,0.10897153060000001,0.11131778470000001,0.1055873769,0.1042053501,0.10801325069999999,0.10390568610000001,9.99921644E-2,8.1024684599999994E-2]
[null,null,null,null,null,null,null,null,null,null,"T04_8|HU","T04_8","HU","waver",0,0,0,0,0,0,0,0,0,0,0,0,0,0,0,0,0,0.105825088,0.1030563645,0.1192185175,9.8850997600000004E-2,9.1345558300000004E-2,8.6968420300000002E-2,8.0133340900000002E-2,8.1024684599999994E-2,7.1709263800000006E-2]
[null,null,null,null,null,null,null,null,null,null,"T04_8|IE","T04_8","IE","waver",0,0,0,0,0,0,0,0,0,0,0,0,0,0,0,0,0,7.9644449800000003E-2,7.3498304900000005E-2,7.6283857900000002E-2,7.7435046899999999E-2,8.3265077500000007E-2,7.7783233300000004E-2,7.3409740299999998E-2,7.1709263800000006E-2,0.1055041526]
[null,null,null,null,null,null,null,null,null,null,"T04_8|IS","T04_8","IS","waver",0,0,0,0,0,0,0,0,0,0,0,0,0,0,0,0,0,0.1074608239,0.1037673608,0.1058122346,0.1086302378,0.1098295232,0.1141019167,0.12170051549999999,0.1055041526,9.6783011799999999E-2]
[null,null,null,null,null,null,null,null,null,null,"T04_8|IT","T04_8","IT","waver",0,0,0,0,0,0,0,0,0,0,0,0,0,0,0,0,0,0.12393614529999999,0.1171192063,0.1101199813,0.1174387115,0.1126284212,0.10572943949999999,9.9362472800000004E-2,9.6783011799999999E-2,7.5627456199999998E-2]
[null,null,null,null,null,null,null,null,null,null,"T04_8|LT","T04_8","LT","waver",0,0,0,0,0,0,0,0,0,0,0,0,0,0,0,0,0,9.8359873200000003E-2,8.3464883200000006E-2,8.5293776599999996E-2,9.6721671499999995E-2,0.1041581142,9.9831344700000005E-2,7.9542356999999994E-2,7.5627456199999998E-2,0.36808447719999998]
[null,null,null,null,null,null,null,null,null,null,"T04_8|LU","T04_8","LU","waver",0,0,0,0,0,0,0,0,0,0,0,0,0,0,0,0,0,0.27155974970000002,0.26745979780000001,0.27701298060000001,0.27240176739999999,0.28723917739999999,0.27826990639999999,0.28379100759999998,0.36808447719999998,7.7098654000000003E-2]
[null,null,null,null,null,null,null,null,null,null,"T04_8|LV","T04_8","LV","waver",0,0,0,0,0,0,0,0,0,0,0,0,0,0,0,0,0,7.4432687999999997E-2,7.5185235599999997E-2,7.9976652699999998E-2,8.0932944399999998E-2,8.2072209199999996E-2,7.6030513699999996E-2,6.4536249300000001E-2,7.7098654000000003E-2,0.1109997886]
[null,null,null,null,null,null,null,null,null,null,"T04_8|MT","T04_8","MT","waver",0,0,0,0,0,0,0,0,0,0,0,0,0,0,0,0,0,0.13797133449999999,0.13574027590000001,0.12854341750000001,0.12768232970000001,0.1437159948,0.1271572926,0.1226736588,0.1109997886,8.6685494900000007E-2]
[null,null,null,null,null,null,null,null,null,null,"T04_8|NL","T04_8","NL","waver",0,0,0,0,0,0,0,0,0,0,0,0,0,0,0,0,0,0.1021964324,9.9090048200000003E-2,0.10001597669999999,9.0824023099999998E-2,0.10855257929999999,9.4920248400000004E-2,0.1048527611,8.6685494900000007E-2,6.5383180099999993E-2]
[null,null,null,null,null,null,null,null,null,null,"T04_8|NO","T04_8","NO","waver",0,0,0,0,0,0,0,0,0,0,0,0,0,0,0,0,0,6.6435036000000003E-2,6.5548468299999996E-2,5.7534262500000002E-2,6.21736518E-2,6.9844806800000006E-2,6.6054417700000007E-2,6.3245841799999994E-2,6.5383180099999993E-2,5.4271824000000003E-2]
[null,null,null,null,null,null,null,null,null,null,"T04_8|PL","T04_8","PL","waver",0,0,0,0,0,0,0,0,0,0,0,0,0,0,0,0,0,8.85902093E-2,7.5919124300000002E-2,7.2213606599999994E-2,6.5655699600000006E-2,6.2987651500000005E-2,6.6126746599999994E-2,6.1837660199999998E-2,5.4271824000000003E-2,4.8566682299999997E-2]
[null,null,null,null,null,null,null,null,null,null,"T04_8|PT","T04_8","PT","waver",0,0,0,0,0,0,0,0,0,0,0,0,0,0,0,0,0,7.8970900100000005E-2,7.7126542899999997E-2,6.9863985000000003E-2,6.3213459599999994E-2,6.5672654600000005E-2,5.7607929600000003E-2,5.2710854100000003E-2,4.8566682299999997E-2,5.5306216800000002E-2]
[null,null,null,null,null,null,null,null,null,null,"T04_8|RO","T04_8","RO","waver",0,0,0,0,0,0,0,0,0,0,0,0,0,0,0,0,0,5.9158140800000002E-2,6.5914615499999996E-2,5.7210869400000003E-2,5.5454707999999998E-2,5.7861193300000002E-2,5.4043475000000001E-2,5.3433231400000003E-2,5.5306216800000002E-2,7.2809838399999993E-2]
[null,null,null,null,null,null,null,null,null,null,"T04_8|SE","T04_8","SE","waver",0,0,0,0,0,0,0,0,0,0,0,0,0,0,0,0,0,7.2232717799999999E-2,7.3386535500000002E-2,6.6254996999999996E-2,6.2475691399999998E-2,8.44717512E-2,8.6588432600000001E-2,8.2666137700000003E-2,7.2809838399999993E-2,3.9310215699999998E-2]
[null,null,null,null,null,null,null,null,null,null,"T04_8|SI","T04_8","SI","waver",0,0,0,0,0,0,0,0,0,0,0,0,0,0,0,0,0,5.7671470900000001E-2,5.1269431599999998E-2,4.8940519100000003E-2,4.6069582099999999E-2,4.7413278699999999E-2,4.0800722400000003E-2,4.0136410300000001E-2,3.9310215699999998E-2,4.0097575400000002E-2]
[null,null,null,null,null,null,null,null,null,null,"T04_8|SK","T04_8","SK","waver",0,0,0,0,0,0,0,0,0,0,0,0,0,0,0,0,0,8.9100411500000004E-2,9.9728145500000004E-2,8.67467346E-2,8.6117581400000004E-2,7.0270512600000001E-2,5.8264230899999998E-2,5.32318694E-2,4.0097575400000002E-2,647.24417413000003]
[null,null,null,null,null,null,null,null,null,null,"T05_1|AT","T05_1","AT","waver",659.76997757000004,676.24242647999995,656.05644262999999,653.31630743999995,657.27127824000002,667.52567732,660.22761476999995,655.00377624999999,551.48927676999995,568.93110565999996,561.24065102999998,564.09941866999998,555.63178114000004,543.18591153,545.42617160999998,551.43030852000004,548.28219460000003,565.36939419999999,569.9294185,578.01316219,573.29802473999996,596.14858968999999,628.51962843000001,636.15314106000005,647.24417413000003,1108.7959609]
[null,null,null,null,null,null,null,null,null,null,"T05_1|BE","T05_1","BE","waver",968.16461267,1039.998959,965.22138729999995,960.06087767999998,926.85376133,965.97710113000005,982.50568855999995,976.82646633000002,953.56761896,955.42219001000001,963.44388099000003,946.71740618000001,906.49971832000006,934.07953100999998,934.39295646999994,922.10925769000005,876.88618597000004,1078.9935359999999,1058.1741439,1081.8311862999999,1034.2991984,1103.3218050999999,1122.8236531,1111.9540751,1108.7959609,31.834684528]
[null,null,null,null,null,null,null,null,null,null,"T05_1|BG","T05_1","BG","waver",15.467946619999999,15.902406687999999,16.264844054000001,16.661563555000001,17.384272931999998,17.351104919000001,17.627175579999999,17.892357092000001,18.375572143999999,18.696592699,17.912493608999998,18.209441661,18.297200123,18.290055731999999,18.481543103,19.009938644000002,19.272841292999999,25.156019531999998,28.407575928,29.184337867,29.695002555999999,29.455221392999999,29.567208815000001,30.481204111,31.834684528,33.358701545000002]
[null,null,null,null,null,null,null,null,null,null,"T05_1|CY","T05_1","CY","waver",42.400280000000002,42.730694999999997,41.152095000000003,40.103160000000003,39.406590999999999,38.541426999999999,38.307423,37.883611000000002,37.825021,37.846305000000001,37.670746000000001,38.052841000000001,38.584319999999998,37.205086000000001,39.600544999999997,"n.a.","n.a.",33.794846,34.138088000000003,33.252271,33.312477999999999,32.231164,33.317918227,33.262742791000001,33.358701545000002,155.77240695]
[null,null,null,null,null,null,null,null,null,null,"T05_1|CZ","T05_1","CZ","waver",88.302772886,92.449795617999996,93.461331139999999,96.464065093000002,94.87633237,100.02821024000001,103.92390066,106.53267588999999,104.80787784,130.22222475000001,131.45583328999999,137.46889347999999,133.41615118999999,143.87245390000001,144.43706533,149.18718088,140.76678017,153.27756898999999,159.26179074000001,161.07345126000001,150.44524061999999,159.83122005999999,160.90959581000001,158.21536293,155.77240695,3536.5910429999999]
[null,null,null,null,null,null,null,null,null,null,"T05_1|DE","T05_1","DE","waver",3906.9868452000001,4302.8918246000003,3903.8714731,3956.6526113999998,3983.4811135999998,4203.7636802999996,4281.0595426,4114.9694766000002,3895.8890078999998,3961.4514789,3892.5113692999998,3796.8489112000002,3657.6909184000001,3742.0501353999998,3713.6708933999998,3666.7332818,3547.8764508999998,3629.4872844000001,3592.3566216999998,3698.9104192999998,3331.6405802999998,3735.545192,3730.5825983,3707.3645903000001,3536.5910429999999,772.27451359999998]
[null,null,null,null,null,null,null,null,null,null,"T05_1|DK","T05_1","DK","waver",681.31707447999997,710.36390581000001,671.69737018000001,652.41620278000005,645.18019814000002,766.44061901999999,777.70766830000002,781.93605500000001,778.15418268999997,676.05643075,679.96060690000002,675.63293333000001,679.89156023999999,679.76642969,684.37886631000003,680.10640785999999,670.54233505000002,693.45629052000004,715.32967889999998,742.91485249000004,717.49088052000002,750.00116737999997,751.30718016000003,753.68685793999998,772.27451359999998,36.831745341999998]
[null,null,null,null,null,null,null,null,null,null,"T05_1|EE","T05_1","EE","waver","n.a.","n.a.","n.a.","n.a.","n.a.",12.986023707999999,13.344521285000001,13.584497566,13.713005571,13.823343302,13.628667411,13.990655887000001,18.168449137,18.096211735000001,18.763851158000001,18.962291998000001,19.510079952000002,28.381856972000001,29.114265766999999,29.622493531,30.046967497000001,30.409390903999999,33.355509417,34.532864013000001,36.831745341999998,3258.630615]
[null,null,null,null,null,null,null,null,null,null,"T05_1|ES","T05_1","ES","waver",3013.8136647000001,3141.2165331000001,3107.2028687000002,3121.0162209,3121.6304899000002,3076.2976939999999,3112.8557515000002,3040.1857285000001,3054.4417981000001,3075.3022838000002,3024.7740892000002,3006.3199497999999,2995.6611032999999,2986.5806450999999,2999.8716356999998,2976.0051468000001,2999.7771641999998,3077.5992989000001,3093.2962558999998,3114.4295864000001,3093.1205567000002,3183.2898025999998,3336.7926682000002,3256.5098601,3258.630615,24005.121829]
[null,null,null,null,null,null,null,null,null,null,"T05_1|EU","T05_1","EU","waver",29414.749650000002,31792.190068,29717.662574000002,29577.175782999999,28851.927530000001,29508.437613999999,30025.874770999999,29084.809440000001,28297.761269999999,28748.096027,28009.178139,27790.039315000002,27050.614688000001,27541.830687999998,27965.481887999998,27836.525334999998,27295.983606999998,28687.792660999999,28823.007902000001,29706.88553,28396.877331,23943.561965000001,24441.031126999998,24369.165430000001,24005.121829,649.03665303000002]
[null,null,null,null,null,null,null,null,null,null,"T05_1|FI","T05_1","FI","waver",453.31783736,498.88449761999999,466.67604053999997,464.67595741999997,415.64531785000003,448.32553795000001,472.41093695000001,456.97367628000001,390.10929248999997,167.43700518,163.31724381000001,162.61534824,164.40311973999999,149.41914585999999,154.34817167,152.34827057000001,636.28338394000002,681.35303714999998,666.72774994999997,672.50547252000001,640.36930613000004,696.41897648999998,691.48006459999999,676.87081696999996,649.03665303000002,7800.1716929000004]
[null,null,null,null,null,null,null,null,null,null,"T05_1|FR","T05_1","FR","waver",6535.6697631999996,6993.9600257000002,6493.0233217000005,6491.1951141,6290.2195086000002,6534.4396186000004,6753.1927556000001,6648.5448355999997,6482.7352852000004,6676.4745475,6524.7282610000002,6533.2087031000001,6260.9095189,6484.4197633000003,6674.0768982,6687.3187792999997,6532.8702217999999,6943.4892788999996,7154.1246471000004,7405.8218409000001,6950.2933406000002,7844.5663350000004,7951.2182088999998,7965.9968075999996,7800.1716929000004,6751.0599193999997]
[null,null,null,null,null,null,null,null,null,null,"T05_1|GB","T05_1","GB","waver",7224.1905657999996,8150.7489875000001,7399.4618093999998,7292.9564307999999,6987.6051569000001,6904.0551373999997,7049.6169166999998,6540.2407745,6334.4227167999998,6312.0147599000002,6029.2396113000004,5953.6000131999999,5857.5649868999999,5961.9785229999998,6111.0040009000004,6096.2413445000002,6011.3418142999999,6431.8605759000002,6413.0003608999996,6763.6374970999996,6494.2949418999997,7227.0707914000004,6911.8666992999997,6807.7901253,6751.0599193999997,257.21602461999998]
[null,null,null,null,null,null,null,null,null,null,"T05_1|GR","T05_1","GR","waver",317.26162443999999,323.16086490999999,316.50822470000003,309.96981640000001,301.47370618000002,298.59570624999998,268.23093289000002,260.00458992,254.99335343999999,245.51787608999999,233.98639829999999,220.10473986,216.79138061,213.24648891000001,208.84333290999999,210.95124777999999,217.11397625000001,214.66498547,218.87587937999999,219.9886185,222.30618822,231.22784590000001,244.00249875,247.96979759000001,257.21602461999998,41.300418086000001]
[null,null,null,null,null,null,null,null,null,null,"T05_1|HR","T05_1","HR","waver",29.052738333000001,29.274609111,30.000309424000001,32.317992926000002,31.109800886999999,30.386236913000001,30.301758946,31.086675069999998,31.068553818000002,30.645334413,31.210785108,33.870137294999999,33.994424402999996,34.324950819999998,35.278775580000001,35.907173280000002,37.166471276999999,37.572643394000004,38.155175485000001,38.90849334,39.131082251999999,39.337474878999998,40.399057149000001,40.313212827000001,41.300418086000001,78.292675556999995]
[null,null,null,null,null,null,null,null,null,null,"T05_1|HU","T05_1","HU","waver",43.363551196000003,51.624266849000001,49.247042561000001,49.539123857,50.901189975999998,50.450846962999996,49.292167229,51.974323757000001,53.812729627000003,48.840015639000001,50.773088456000004,51.858425769,53.850675449000001,54.636584315,55.158860285000003,55.944257858,57.276698574000001,62.221442387000003,62.249065518999998,67.556644954000006,72.633371552,72.014505025999995,73.470818886000004,74.667568970999994,78.292675556999995,253.72308178]
[null,null,null,null,null,null,null,null,null,null,"T05_1|IE","T05_1","IE","waver",299.14071189999999,285.71314851,270.99271278999998,260.73083630999997,260.05606489000002,292.07452116000002,290.85869400000001,282.75427542,266.68280938999999,264.31206279000003,255.82318190000001,251.67562114,244.17011342999999,226.77219334,230.24766070000001,227.15582187999999,234.02963976000001,225.15874066000001,227.93923101999999,229.54964201000001,233.2779783,241.44141733999999,242.88472587999999,247.09185711999999,253.72308178,22.029289239000001]
[null,null,null,null,null,null,null,null,null,null,"T05_1|IS","T05_1","IS","waver",0,0,0,0,0,0,0,0,0,0,0,0,21.676164225000001,23.267830065999998,23.699456771000001,23.999969147000002,22.552467463999999,23.231579551999999,22.967856081000001,24.011632176999999,22.754439538,21.588502146,21.709265156000001,21.897449587000001,22.029289239000001,2439.1023031]
[null,null,null,null,null,null,null,null,null,null,"T05_1|IT","T05_1","IT","waver",2118.3632812000001,2207.9078558000001,2148.5677718000002,2129.9283581999998,2110.6065248,2155.7602230000002,2165.3266705999999,2129.9681273000001,2127.9313766,2125.8126550000002,2069.4439410999998,2045.8701599000001,2045.1306024,2030.9262646,2050.4479848999999,2054.8734226000001,2033.5039979999999,2238.1534114000001,2221.8202756999999,2288.1756092999999,2236.2838299,2280.3974956000002,2357.5622322999998,2394.5070827999998,2439.1023031,25.046088999999998]
[null,null,null,null,null,null,null,null,null,null,"T05_1|LT","T05_1","LT","waver",14.510504503,14.538531000000001,14.317482999999999,14.669695000000001,15.087185,15.239373000000001,15.819626,16.373714,16.862029,16.815871999999999,16.792598000000002,17.106642999999998,20.131371999999999,19.202332999999999,19.837803999999998,20.442995,23.593813000000001,17.638269999999999,17.765758999999999,18.161114000000001,19.591783,20.025832999999999,21.236215999999999,22.925118999999999,25.046088999999998,161.48517677000001]
[null,null,null,null,null,null,null,null,null,null,"T05_1|LU","T05_1","LU","waver",250.32029957,316.60317479000003,195.84452277,196.68673606999999,198.32382050999999,206.13136076999999,207.04609833999999,215.51985733999999,183.07842821,193.66728062000001,194.99000443,186.87148531,184.74299442,188.68538991,201.19399643,174.78390397999999,197.91018244,207.73569664999999,212.46185105999999,217.67512223,218.12830929,216.04302913999999,206.24154238,203.27496829,161.48517677000001,8.0257119502999998]
[null,null,null,null,null,null,null,null,null,null,"T05_1|LV","T05_1","LV","waver",11.104870592999999,11.448481221,11.425032420999999,11.75921668,11.995760103,11.895024941000001,11.621480796,11.456835042,11.270721012999999,11.178978967999999,11.085203143999999,10.987760023,11.278206687999999,14.18924809,13.738173161000001,11.810312446999999,12.484854746,11.282959414,11.071958616,11.496749419,11.879167842999999,12.342086124,13.878072739,14.127446935,8.0257119502999998,21.070926225000001]
[null,null,null,null,null,null,null,null,null,null,"T05_1|MT","T05_1","MT","waver","n.a.","n.a.","n.a.","n.a.",16.884163038000001,17.103876799999998,17.544432654000001,17.406989926000001,17.895787828,18.054772466999999,18.280767558000001,18.152408425000001,18.112503669999999,18.227921199000001,18.145994186999999,18.4002014,18.513270645999999,18.900377171999999,18.9767987,19.177232755999999,19.280945261999999,19.915948864000001,20.603385527,20.686066620999998,21.070926225000001,2067.4567338000002]
[null,null,null,null,null,null,null,null,null,null,"T05_1|NL","T05_1","NL","waver",2021.9850839999999,2172.3221870000002,2058.3829700000001,2059.2602108999999,1997.2739088999999,2075.3432726999999,2100.3783996000002,2093.8002480999999,1996.5448948999999,2056.5707167999999,1974.8415926,1994.1562759999999,1919.8795508000001,1988.5755795,1992.6716386000001,2007.7186955,1933.665812,1952.6389673000001,1955.6162667999999,1989.6735937999999,1944.4340787000001,2086.4406336000002,2137.4392684999998,2165.0101063000002,2067.4567338000002,275.85433914999999]
[null,null,null,null,null,null,null,null,null,null,"T05_1|NO","T05_1","NO","waver",338.71641027999999,368.33881279000002,344.32030822000002,332.30178009000002,311.88250492999998,321.57181479000002,329.192812,334.63454368999999,349.98521476000002,302.34007622000001,276.05290441,284.54201065000001,267.41814982,269.73313739999998,294.59931037000001,281.84238025000002,260.45654984999999,285.11191545999998,291.37949096,287.72487674000001,276.10897616,277.95282150000003,278.42993894,271.96044769999997,275.85433914999999,162.81681689000001]
[null,null,null,null,null,null,null,null,null,null,"T05_1|PL","T05_1","PL","waver",111.80136057999999,116.97032840999999,116.36846971999999,114.77006591,116.99659942,114.10609152000001,113.66918458000001,116.41636199,120.33687575,123.74292052,124.52861910999999,122.92182846,131.61678814000001,130.57582952000001,129.45312376000001,135.63277912000001,146.55564373000001,148.50793838000001,150.98198004,148.77534783999999,156.47370279,154.23756230000001,164.99409091000001,160.7539463,162.81681689000001,324.67494205999998]
[null,null,null,null,null,null,null,null,null,null,"T05_1|PT","T05_1","PT","waver",301.01341057000002,297.7426433,296.46433268999999,288.95724689999997,275.09332678999999,274.77212919999999,271.66160306,267.61515356000001,264.02295405000001,256.39521752000002,254.61067315,252.76489269000001,252.28766145,295.68740198,302.16627387,300.21673275000001,298.25930031000001,302.82199178000002,307.83882964999998,306.56698728999999,302.68398208999997,307.28702100999999,325.70963879999999,323.69660006999999,324.67494205999998,45.892815171000002]
[null,null,null,null,null,null,null,null,null,null,"T05_1|RO","T05_1","RO","waver",28.793963770000001,29.162631598000001,30.663408078,30.525516360000001,31.341225217000002,30.862341847,31.691792599999999,32.255896649,33.422537884999997,33.055710171999998,33.290463525,33.299073163000003,35.145700296999998,35.413698617000001,38.113481827999998,38.656909556000002,38.915882207000003,37.886672939999997,39.451138067999999,39.781815768000001,41.529683802999998,42.991347636999997,42.946235639999998,43.302370494000002,45.892815171000002,883.85758740999995]
[null,null,null,null,null,null,null,null,null,null,"T05_1|SE","T05_1","SE","waver","n.a.","n.a.","n.a.","n.a.",1335.9026683,1458.7839337,1452.4540184,1411.5631900000001,1314.9592908,1453.7415089000001,1416.4993167,1405.4132534,1266.3479785,1322.2925134,1362.0073222000001,1344.6221143,774.30552259000001,837.60915849000003,822.06241422999994,833.51799933999996,806.76541706,893.11323114000004,929.95625461999998,890.47977429000002,883.85758740999995,28.880182374]
[null,null,null,null,null,null,null,null,null,null,"T05_1|SI","T05_1","SI","waver",14.311088,13.890093999999999,13.808609000000001,16.502144000000001,16.369706000000001,19.720518999999999,19.841683,19.907978,20.028915000000001,20.117151,19.959952999999999,20.028074,20.322783999999999,20.319006999999999,20.362876,20.575859999999999,18.498868000000002,18.890432000000001,19.060617000000001,19.295770000000001,20.012184999999999,23.580105434,24.269450411000001,24.458583041000001,28.880182374,50.756685675999996]
[null,null,null,null,null,null,null,null,null,null,"T05_1|SK","T05_1","SK","waver",30.612540962000001,31.152679108000001,31.794216343999999,32.506862124000001,33.786589497000001,34.179705572000003,34.881892534999999,35.671434271000003,36.174067774999997,37.225164810000003,38.202091218,38.958313619999998,39.655964023000003,40.424099019000003,41.286742433999997,41.837770343999999,43.039538681000003,43.787550345,45.269959763000003,45.585935581999998,46.296169098,46.036548711000002,48.135225650000002,49.396382954000003,50.756685675999996,122.66483827]
[null,null,null,null,null,null,null,null,null,null,"T05_2|AT","T05_2","AT","waver",0,0,0,0,0,0,0,0,0,0,0,0,0,0,0,0,0,110.26454083,113.01098828000001,114.98641266,117.68100938000001,113.94397832,117.27329278000001,119.32186407,122.66483827,161.32629829000001]
[null,null,null,null,null,null,null,null,null,null,"T05_2|BE","T05_2","BE","waver",0,0,0,0,0,0,0,0,0,0,0,0,0,0,0,0,0,155.75038757999999,154.94918197999999,155.02371109000001,158.09538341000001,148.92938262999999,153.01382719,157.21068758999999,161.32629829000001,4.5203481951000004]
[null,null,null,null,null,null,null,null,null,null,"T05_2|BG","T05_2","BG","waver",0,0,0,0,0,0,0,0,0,0,0,0,0,0,0,0,0,2.4499539829999999,2.9244697822000001,2.9984129256999998,3.9165456591000001,3.8946436241,3.867089682,4.0638470190999998,4.5203481951000004,1.061308218]
[null,null,null,null,null,null,null,null,null,null,"T05_2|CY","T05_2","CY","waver",0,0,0,0,0,0,0,0,0,0,0,0,0,0,0,"n.a.","n.a.",2.9327899999999998,2.9204319999999999,2.9135019999999998,2.9252940000000001,2.7341839999999999,2.9271116250000002,3.0671094179999998,1.061308218,19.436710875999999]
[null,null,null,null,null,null,null,null,null,null,"T05_2|CZ","T05_2","CZ","waver",0,0,0,0,0,0,0,0,0,0,0,0,0,0,0,0,0,17.813313876999999,17.747729369999998,17.164636781999999,17.801498705,17.277779114000001,18.078329850999999,20.243961263999999,19.436710875999999,578.18234683000003]
[null,null,null,null,null,null,null,null,null,null,"T05_2|DE","T05_2","DE","waver",0,0,0,0,0,0,0,0,0,0,0,0,0,0,0,0,0,584.63295878999998,586.45880607000004,603.09029238000005,602.13983672999996,585.04757408,609.10960969999996,633.90472344,578.18234683000003,124.75097604]
[null,null,null,null,null,null,null,null,null,null,"T05_2|DK","T05_2","DK","waver",0,0,0,0,0,0,0,0,0,0,0,0,0,0,0,0,0,108.45515026,114.00014357000001,109.31258923999999,108.1743491,119.56613606000001,120.0319482,120.58990183,124.75097604,3.1803216591000001]
[null,null,null,null,null,null,null,null,null,null,"T05_2|EE","T05_2","EE","waver",0,0,0,0,0,0,0,0,0,0,0,0,0,0,0,0,0,2.7229526114999998,3.0586969966000002,3.0068624074999999,2.8324188951,2.9818250292999999,3.3047477499000002,3.2660846648000001,3.1803216591000001,556.89970306999999]
[null,null,null,null,null,null,null,null,null,null,"T05_2|ES","T05_2","ES","waver",0,0,0,0,0,0,0,0,0,0,0,0,0,0,0,0,0,486.70899464000001,498.47218413000002,528.34263185999998,533.46798022999997,502.88918950999999,541.78561896999997,552.14498547000005,556.89970306999999,4040.6207055]
[null,null,null,null,null,null,null,null,null,null,"T05_2|EU","T05_2","EU","waver",0,0,0,0,0,0,0,0,0,0,0,0,0,0,0,0,0,5082.3551114000002,5071.6888584999997,5232.3049778000004,5192.9374637000001,3807.3656105999999,4052.1018945999999,4112.1732849,4040.6207055,120.60084766999999]
[null,null,null,null,null,null,null,null,null,null,"T05_2|FI","T05_2","FI","waver",0,0,0,0,0,0,0,0,0,0,0,0,0,0,0,0,0,102.65104587,107.05670381,107.2212619,106.0134668,103.77655043999999,115.21078983,120.46161042,120.60084766999999,1165.1218008000001]
[null,null,null,null,null,null,null,null,null,null,"T05_2|FR","T05_2","FR","waver",0,0,0,0,0,0,0,0,0,0,0,0,0,0,0,0,0,1104.9215654,1104.4456845,1123.7598475,1115.2592655000001,1115.3374002,1178.1468848,1193.2857234999999,1165.1218008000001,1332.1337515]
[null,null,null,null,null,null,null,null,null,null,"T05_2|GB","T05_2","GB","waver",0,0,0,0,0,0,0,0,0,0,0,0,0,0,0,0,0,1327.9594274999999,1286.7941931,1356.4233781999999,1346.4320677000001,1283.4794431,1319.0440329999999,1324.9333528,1332.1337515,22.551746565999998]
[null,null,null,null,null,null,null,null,null,null,"T05_2|GR","T05_2","GR","waver",0,0,0,0,0,0,0,0,0,0,0,0,0,0,0,0,0,18.101598391,18.386307896999998,18.584046825000001,18.897589394000001,19.215260677,20.859086029,21.608022107,22.551746565999998,5.5434979095000001]
[null,null,null,null,null,null,null,null,null,null,"T05_2|HR","T05_2","HR","waver",0,0,0,0,0,0,0,0,0,0,0,0,0,0,0,0,0,5.3144122726000003,5.4009583220000001,5.6467632178000002,5.6752441649999996,5.3775246873000002,5.7679614815000004,5.7013529875,5.5434979095000001,12.682475328000001]
[null,null,null,null,null,null,null,null,null,null,"T05_2|HU","T05_2","HU","waver",0,0,0,0,0,0,0,0,0,0,0,0,0,0,0,0,0,11.978463064,11.972287818,12.893479683000001,13.447094269000001,12.222034323999999,13.257224192000001,13.412974220000001,12.682475328000001,51.355558406999997]
[null,null,null,null,null,null,null,null,null,null,"T05_2|IE","T05_2","IE","waver",0,0,0,0,0,0,0,0,0,0,0,0,0,0,0,0,0,46.00344836,46.836949865000001,46.589944541000001,47.951163524999998,44.508480016,47.730234944999999,50.003834974,51.355558406999997,1.9359225805]
[null,null,null,null,null,null,null,null,null,null,"T05_2|IS","T05_2","IS","waver",0,0,0,0,0,0,0,0,0,0,0,0,0,0,0,0,0,2.3343308649000001,2.2447901765,2.1518981829000001,1.9787647987000001,1.6321727994999999,1.7271160058999999,1.8235534165,1.9359225805,597.29156476000003]
[null,null,null,null,null,null,null,null,null,null,"T05_2|IT","T05_2","IT","waver",0,0,0,0,0,0,0,0,0,0,0,0,0,0,0,0,0,566.40533971000002,571.12024467000003,600.49781009000003,562.99449017999996,571.58447179999996,616.57407994000005,599.68847106999999,597.29156476000003,2.449335]
[null,null,null,null,null,null,null,null,null,null,"T05_2|LT","T05_2","LT","waver",0,0,0,0,0,0,0,0,0,0,0,0,0,0,0,0,0,2.3705150000000001,2.2822610000000001,2.2761680000000002,2.139796,1.9581729999999999,2.276767,2.3237459999999999,2.449335,17.337393249000002]
[null,null,null,null,null,null,null,null,null,null,"T05_2|LU","T05_2","LU","waver",0,0,0,0,0,0,0,0,0,0,0,0,0,0,0,0,0,19.943680814,19.371801729000001,16.790696919999998,17.794847428000001,16.974056764,19.219323928000001,19.516201877,17.337393249000002,0.89720517499999997]
[null,null,null,null,null,null,null,null,null,null,"T05_2|LV","T05_2","LV","waver",0,0,0,0,0,0,0,0,0,0,0,0,0,0,0,0,0,1.611739112,1.523948402,1.512333468,1.391841377,1.4496110719999999,1.4943745859999999,1.4885658049999999,0.89720517499999997,2.8176008842]
[null,null,null,null,null,null,null,null,null,null,"T05_2|MT","T05_2","MT","waver",0,0,0,0,0,0,0,0,0,0,0,0,0,0,0,0,0,2.6432477093000002,2.6006700933000002,2.6672988218999998,3.4402978628000001,2.7654424944999998,2.5399015908,2.6538158418000002,2.8176008842,365.77726976999998]
[null,null,null,null,null,null,null,null,null,null,"T05_2|NL","T05_2","NL","waver",0,0,0,0,0,0,0,0,0,0,0,0,0,0,0,0,0,364.19452768999997,360.26780709000002,363.77087170999999,373.40157692999998,346.07535816000001,367.28867833999999,368.70649860999998,365.77726976999998,64.119114272000004]
[null,null,null,null,null,null,null,null,null,null,"T05_2|NO","T05_2","NO","waver",0,0,0,0,0,0,0,0,0,0,0,0,0,0,0,0,0,67.412074165999996,66.945502978999997,64.333967587000004,64.520382279000003,56.564237659,60.957003434999997,62.38609014,64.119114272000004,29.284556163000001]
[null,null,null,null,null,null,null,null,null,null,"T05_2|PL","T05_2","PL","waver",0,0,0,0,0,0,0,0,0,0,0,0,0,0,0,0,0,24.986620256999998,27.793387228,27.564160641000001,28.350113661999998,24.583179172000001,27.524054386,28.321801153999999,29.284556163000001,33.891678782]
[null,null,null,null,null,null,null,null,null,null,"T05_2|PT","T05_2","PT","waver",0,0,0,0,0,0,0,0,0,0,0,0,0,0,0,0,0,28.122826664000002,28.493014827,29.307806895999999,30.260878171000002,29.982571045,32.469059723000001,33.212632188000001,33.891678782,6.9571001138000002]
[null,null,null,null,null,null,null,null,null,null,"T05_2|RO","T05_2","RO","waver",0,0,0,0,0,0,0,0,0,0,0,0,0,0,0,0,0,5.5253938329999999,6.2179200522000002,6.2110018016000001,6.4106528409000001,6.2620599936000003,6.453525859,6.8792036471999998,6.9571001138000002,151.53953730000001]
[null,null,null,null,null,null,null,null,null,null,"T05_2|SE","T05_2","SE","waver",0,0,0,0,0,0,0,0,0,0,0,0,0,0,0,0,0,126.91483593,126.99118405999999,127.95423715,126.76418049,121.60077506,141.00486977,149.18273707,151.53953730000001,3.4693948035000002]
[null,null,null,null,null,null,null,null,null,null,"T05_2|SI","T05_2","SI","waver",0,0,0,0,0,0,0,0,0,0,0,0,0,0,0,0,0,2.1461070000000002,2.2395309999999999,2.3114690000000002,2.388674,2.6069262541999998,3.2178018559999999,3.2391852837999999,3.4693948035000002,9.0032705000999993]
[null,null,null,null,null,null,null,null,null,null,"T05_2|SK","T05_2","SK","waver",0,0,0,0,0,0,0,0,0,0,0,0,0,0,0,0,0,7.6745720880999997,7.7265924118999996,7.7856116123000003,8.2359862102000001,8.1847780074000003,7.6981498795999999,7.7202089159999998,9.0032705000999993,0.22998549369999999]
[null,null,null,null,null,null,null,null,null,null,"T05_3|AT","T05_3","AT","waver",0,0,0,0,0,0,0,0,0,0,0,0,0,0,0,0,0,0.25176092799999999,0.24778723380000001,0.24131182039999999,0.23681104059999999,0.24511383819999999,0.2418372671,0.2343113607,0.22998549369999999,0.18033684890000001]
[null,null,null,null,null,null,null,null,null,null,"T05_3|BE","T05_3","BE","waver",0,0,0,0,0,0,0,0,0,0,0,0,0,0,0,0,0,0.16519358079999999,0.17533294820000001,0.1732821671,0.17310997249999999,0.19129869769999999,0.20239160340000001,0.18594484650000001,0.18033684890000001,0.1455744819]
[null,null,null,null,null,null,null,null,null,null,"T05_3|BG","T05_3","BG","waver",0,0,0,0,0,0,0,0,0,0,0,0,0,0,0,0,0,0.23762255769999999,0.21243451120000001,0.2077688439,0.16277013779999999,0.16416546670000001,0.16366778109999999,0.1557133604,0.1455744819,0.34485019410000001]
[null,null,null,null,null,null,null,null,null,null,"T05_3|CY","T05_3","CY","waver",0,0,0,0,0,0,0,0,0,0,0,0,0,0,0,"n.a.","n.a.",0.35603572030000002,0.35816721639999999,0.35517394530000002,0.35486484439999999,0.36309187679999999,0.35037968390000002,0.33344151760000001,0.34485019410000001,0.26881963609999998]
[null,null,null,null,null,null,null,null,null,null,"T05_3|CZ","T05_3","CZ","waver",0,0,0,0,0,0,0,0,0,0,0,0,0,0,0,0,0,0.2965062946,0.29889866710000002,0.29028186299999997,0.28030294569999997,0.28341633379999998,0.27762512119999999,0.2489829335,0.26881963609999998,0.1788395898]
[null,null,null,null,null,null,null,null,null,null,"T05_3|DE","T05_3","DE","waver",0,0,0,0,0,0,0,0,0,0,0,0,0,0,0,0,0,0.17937496410000001,0.17861254739999999,0.17517072689999999,0.1778622285,0.18952271949999999,0.18231070160000001,0.17663014369999999,0.1788395898,0.18912893580000001]
[null,null,null,null,null,null,null,null,null,null,"T05_3|DK","T05_3","DK","waver",0,0,0,0,0,0,0,0,0,0,0,0,0,0,0,0,0,0.18199223989999999,0.18173450930000001,0.18520109940000001,0.1812787666,0.16866508180000001,0.1838587938,0.18521253109999999,0.18912893580000001,0.1821137883]
[null,null,null,null,null,null,null,null,null,null,"T05_3|EE","T05_3","EE","waver",0,0,0,0,0,0,0,0,0,0,0,0,0,0,0,0,0,0.20711369169999999,0.1925453154,0.19555691610000001,0.1924988893,0.19461421370000001,0.1695125488,0.17980741149999999,0.1821137883,0.38557870950000001]
[null,null,null,null,null,null,null,null,null,null,"T05_3|ES","T05_3","ES","waver",0,0,0,0,0,0,0,0,0,0,0,0,0,0,0,0,0,0.44620130969999999,0.43660210030000002,0.42990300199999998,0.42634281550000003,0.4355666232,0.39300966780000002,0.38761599699999999,0.38557870950000001,0.20787740539999999]
[null,null,null,null,null,null,null,null,null,null,"T05_3|EU","T05_3","EU","waver",0,0,0,0,0,0,0,0,0,0,0,0,0,0,0,0,0,0.27319411900000001,0.27392743479999998,0.27024963149999998,0.27440985429999998,0.21871545370000001,0.20746881819999999,0.20720720379999999,0.20787740539999999,0.30992739079999998]
[null,null,null,null,null,null,null,null,null,null,"T05_3|FI","T05_3","FI","waver",0,0,0,0,0,0,0,0,0,0,0,0,0,0,0,0,0,0.29965520109999999,0.30516350710000001,0.29952665789999999,0.29807211849999998,0.3061493676,0.30170830990000003,0.31806035910000002,0.30992739079999998,0.1750695646]
[null,null,null,null,null,null,null,null,null,null,"T05_3|FR","T05_3","FR","waver",0,0,0,0,0,0,0,0,0,0,0,0,0,0,0,0,0,0.17966367629999999,0.1827675721,0.179582406,0.18912215020000001,0.19009339610000001,0.17844732520000001,0.17503745879999999,0.1750695646,0.43041950080000002]
[null,null,null,null,null,null,null,null,null,null,"T05_3|GB","T05_3","GB","waver",0,0,0,0,0,0,0,0,0,0,0,0,0,0,0,0,0,0.43449131899999999,0.43948625769999999,0.43268931690000001,0.43684625020000001,0.46443932929999998,0.44239842709999999,0.43437178990000003,0.43041950080000002,0.28337713170000001]
[null,null,null,null,null,null,null,null,null,null,"T05_3|GR","T05_3","GR","waver",0,0,0,0,0,0,0,0,0,0,0,0,0,0,0,0,0,0.336793746,0.33350941160000003,0.3250347683,0.3167789453,0.3220450762,0.30151796889999999,0.29099569240000001,0.28337713170000001,0.55242607539999999]
[null,null,null,null,null,null,null,null,null,null,"T05_3|HR","T05_3","HR","waver",0,0,0,0,0,0,0,0,0,0,0,0,0,0,0,0,0,0.53771190899999999,0.53974427550000004,0.52500689180000004,0.5277205371,0.55351250149999998,0.5275120808,0.52373317870000002,0.55242607539999999,0.18884362330000001]
[null,null,null,null,null,null,null,null,null,null,"T05_3|HU","T05_3","HU","waver",0,0,0,0,0,0,0,0,0,0,0,0,0,0,0,0,0,0.21304719750000001,0.2155076215,0.2051039375,0.2049390136,0.20560322010000001,0.206279084,0.1784403685,0.18884362330000001,0.16920677349999999]
[null,null,null,null,null,null,null,null,null,null,"T05_3|IE","T05_3","IE","waver",0,0,0,0,0,0,0,0,0,0,0,0,0,0,0,0,0,0.25538117100000002,0.2466021696,0.19264056509999999,0.17942764929999999,0.19133795940000001,0.1720701593,0.17742325040000001,0.16920677349999999,0.1403824545]
[null,null,null,null,null,null,null,null,null,null,"T05_3|IS","T05_3","IS","waver",0,0,0,0,0,0,0,0,0,0,0,0,0,0,0,0,0,9.9870508499999996E-2,0.1043560912,0.13362879690000001,0.1431757193,0.16469526940000001,0.191617711,0.16374874189999999,0.1403824545,8.2347489800000007E-2]
[null,null,null,null,null,null,null,null,null,null,"T05_3|IT","T05_3","IT","waver",0,0,0,0,0,0,0,0,0,0,0,0,0,0,0,0,0,8.8991133900000005E-2,8.8421965800000002E-2,8.47348728E-2,8.99936135E-2,8.3467243699999999E-2,8.0094089300000004E-2,8.2488737100000001E-2,8.2347489800000007E-2,0.18457581340000001]
[null,null,null,null,null,null,null,null,null,null,"T05_3|LT","T05_3","LT","waver",0,0,0,0,0,0,0,0,0,0,0,0,0,0,0,0,0,0.2172624936,0.2202548262,0.21805024940000001,0.22776563750000001,0.22925247160000001,0.18209197520000001,0.19085691809999999,0.18457581340000001,0.26159649569999999]
[null,null,null,null,null,null,null,null,null,null,"T05_3|LU","T05_3","LU","waver",0,0,0,0,0,0,0,0,0,0,0,0,0,0,0,0,0,0.22455747009999999,0.2412570245,0.27233238990000003,0.2584622191,0.26510197210000003,0.24885290860000001,0.2423794883,0.26159649569999999,0.21013388050000001]
[null,null,null,null,null,null,null,null,null,null,"T05_3|LV","T05_3","LV","waver",0,0,0,0,0,0,0,0,0,0,0,0,0,0,0,0,0,0.2268978697,0.25238530879999999,0.25320237179999999,0.27966479039999997,0.25591771829999999,0.23775420659999999,0.248431085,0.21013388050000001,0.37068627790000003]
[null,null,null,null,null,null,null,null,null,null,"T05_3|MT","T05_3","MT","waver",0,0,0,0,0,0,0,0,0,0,0,0,0,0,0,0,0,0.32223376729999997,0.33712826670000001,0.33701309559999998,0.33051222260000002,0.38840553020000002,0.38866407559999999,0.3748900946,0.37068627790000003,0.18383283889999999]
[null,null,null,null,null,null,null,null,null,null,"T05_3|NL","T05_3","NL","waver",0,0,0,0,0,0,0,0,0,0,0,0,0,0,0,0,0,0.16103183060000001,0.16735157610000001,0.1611310775,0.1672784803,0.17911834800000001,0.1706626145,0.1757758448,0.18383283889999999,0.43943428950000002]
[null,null,null,null,null,null,null,null,null,null,"T05_3|NO","T05_3","NO","waver",0,0,0,0,0,0,0,0,0,0,0,0,0,0,0,0,0,0.41654977609999999,0.43001897290000002,0.43148257639999998,0.41314415199999999,0.42738148279999999,0.44648227080000003,0.45351884739999998,0.43943428950000002,0.21204474979999999]
[null,null,null,null,null,null,null,null,null,null,"T05_3|PL","T05_3","PL","waver",0,0,0,0,0,0,0,0,0,0,0,0,0,0,0,0,0,0.26587884540000001,0.24367886489999999,0.24335321130000001,0.23685456869999999,0.2611061938,0.2363911517,0.2205827464,0.21204474979999999,0.2150522524]
[null,null,null,null,null,null,null,null,null,null,"T05_3|PT","T05_3","PT","waver",0,0,0,0,0,0,0,0,0,0,0,0,0,0,0,0,0,0.22564437239999999,0.23035639020000001,0.22208286560000001,0.21614706659999999,0.22245987349999999,0.2086598727,0.2066013612,0.2150522524,0.18683572209999999]
[null,null,null,null,null,null,null,null,null,null,"T05_3|RO","T05_3","RO","waver",0,0,0,0,0,0,0,0,0,0,0,0,0,0,0,0,0,0.22032912690000001,0.204859544,0.2017787009,0.19758217019999999,0.19936523140000001,0.19621398779999999,0.18194742329999999,0.18683572209999999,0.24998751159999999]
[null,null,null,null,null,null,null,null,null,null,"T05_3|SE","T05_3","SE","waver",0,0,0,0,0,0,0,0,0,0,0,0,0,0,0,0,0,0.24134800049999999,0.25934051809999997,0.25496968539999998,0.23515732989999999,0.26511971649999999,0.25574147180000001,0.26110568270000001,0.24998751159999999,0.34603817320000002]
[null,null,null,null,null,null,null,null,null,null,"T05_3|SI","T05_3","SI","waver",0,0,0,0,0,0,0,0,0,0,0,0,0,0,0,0,0,0.41511164169999998,0.41500340920000001,0.39298515360000003,0.37548572969999999,0.40856569370000001,0.34664218029999999,0.32731835440000001,0.34603817320000002,0.25248841929999999]
[null,null,null,null,null,null,null,null,null,null,"T05_3|SK","T05_3","SK","waver",0,0,0,0,0,0,0,0,0,0,0,0,0,0,0,0,0,0.3147339314,0.30250395359999999,0.3054247008,0.29503529319999999,0.31071057400000002,0.30441767580000001,0.29706854069999999,0.25248841929999999,0.59673456049999996]
[null,null,null,null,null,null,null,null,null,null,"T05_4|AT","T05_4","AT","waver",0,0,0,0,0,0,0,0,0,0,0,0,0,0,0,0,0,0.59038209500000005,0.58873488819999997,0.59556420600000004,0.60872687800000003,0.5992900793,0.59622394869999995,0.59495046969999998,0.59673456049999996,0.5576029831]
[null,null,null,null,null,null,null,null,null,null,"T05_4|BE","T05_4","BE","waver",0,0,0,0,0,0,0,0,0,0,0,0,0,0,0,0,0,0.59567337620000005,0.59072919550000003,0.58160089020000005,0.58449522220000005,0.57888531399999998,0.55356475869999999,0.57710190400000005,0.5576029831,0.81746354470000004]
[null,null,null,null,null,null,null,null,null,null,"T05_4|BG","T05_4","BG","waver",0,0,0,0,0,0,0,0,0,0,0,0,0,0,0,0,0,0.71499075469999995,0.73278076140000004,0.73839093389999999,0.74014188030000005,0.7859036143,0.7913131041,0.80051816340000004,0.81746354470000004,0.62567388879999997]
[null,null,null,null,null,null,null,null,null,null,"T05_4|CY","T05_4","CY","waver",0,0,0,0,0,0,0,0,0,0,0,0,0,0,0,"n.a.","n.a.",0.62587399710000002,0.62406486439999997,0.62753071729999998,0.62714619449999998,0.62013748889999998,0.63416798910000005,0.6519784179,0.62567388879999997,0.5559231845]
[null,null,null,null,null,null,null,null,null,null,"T05_4|CZ","T05_4","CZ","waver",0,0,0,0,0,0,0,0,0,0,0,0,0,0,0,0,0,0.56258791389999996,0.54851054460000004,0.55406918490000001,0.58294413369999998,0.56797217470000005,0.58005433399999995,0.57913309859999995,0.5559231845,0.64013038560000002]
[null,null,null,null,null,null,null,null,null,null,"T05_4|DE","T05_4","DE","waver",0,0,0,0,0,0,0,0,0,0,0,0,0,0,0,0,0,0.6132731011,0.61883725619999996,0.62002413479999996,0.62557629699999995,0.6082328186,0.61611641890000002,0.60995125350000001,0.64013038560000002,0.62286600859999997]
[null,null,null,null,null,null,null,null,null,null,"T05_4|DK","T05_4","DK","waver",0,0,0,0,0,0,0,0,0,0,0,0,0,0,0,0,0,0.60191027269999997,0.57343980900000002,0.61100424840000001,0.61453813170000005,0.56745854709999999,0.62174293570000005,0.6168744907,0.62286600859999997,0.74075653969999999]
[null,null,null,null,null,null,null,null,null,null,"T05_4|EE","T05_4","EE","waver",0,0,0,0,0,0,0,0,0,0,0,0,0,0,0,0,0,0.75692682060000005,0.74981428719999998,0.74066465029999995,0.74392751450000005,0.74160184900000004,0.72631812360000003,0.7175492604,0.74075653969999999,0.50676194050000001]
[null,null,null,null,null,null,null,null,null,null,"T05_4|ES","T05_4","ES","waver",0,0,0,0,0,0,0,0,0,0,0,0,0,0,0,0,0,0.46909255589999999,0.47846202300000001,0.4752460168,0.47812009179999998,0.4682137583,0.50452377410000004,0.50103914949999995,0.50676194050000001,0.60425323689999999]
[null,null,null,null,null,null,null,null,null,null,"T05_4|EU","T05_4","EU","waver",0,0,0,0,0,0,0,0,0,0,0,0,0,0,0,0,0,0.55381164650000003,0.55851534950000004,0.55384953969999995,0.56084740300000002,0.5788308781,0.59280167579999998,0.59664263989999999,0.60425323689999999,0.56597256119999995]
[null,null,null,null,null,null,null,null,null,null,"T05_4|FI","T05_4","FI","waver",0,0,0,0,0,0,0,0,0,0,0,0,0,0,0,0,0,0.57029835259999995,0.5632524565,0.57341133980000003,0.56947585290000002,0.54876827930000005,0.55919437530000005,0.55121910789999995,0.56597256119999995,0.59035751000000003]
[null,null,null,null,null,null,null,null,null,null,"T05_4|FR","T05_4","FR","waver",0,0,0,0,0,0,0,0,0,0,0,0,0,0,0,0,0,0.57651135379999996,0.58912507660000002,0.595391691,0.59933730490000003,0.56777297599999998,0.58073935560000001,0.59117719739999997,0.59035751000000003,0.43222855310000002]
[null,null,null,null,null,null,null,null,null,null,"T05_4|GB","T05_4","GB","waver",0,0,0,0,0,0,0,0,0,0,0,0,0,0,0,0,0,0.44898994730000003,0.45044982490000002,0.43996210200000002,0.4410576705,0.41348655400000001,0.42714511550000001,0.43445709809999999,0.43222855310000002,0.69846840040000002]
[null,null,null,null,null,null,null,null,null,null,"T05_4|GR","T05_4","GR","waver",0,0,0,0,0,0,0,0,0,0,0,0,0,0,0,0,0,0.64988016029999995,0.65377545790000002,0.66204366339999998,0.66673722479999997,0.65566392699999998,0.68410075059999997,0.69524755159999996,0.69846840040000002,0.39348869829999999]
[null,null,null,null,null,null,null,null,null,null,"T05_4|HR","T05_4","HR","waver",0,0,0,0,0,0,0,0,0,0,0,0,0,0,0,0,0,0.42143672770000001,0.42057875900000002,0.43172389830000002,0.43270224480000002,0.3935812219,0.39707417610000001,0.41289599160000001,0.39348869829999999,0.63470620700000002]
[null,null,null,null,null,null,null,null,null,null,"T05_4|HU","T05_4","HU","waver",0,0,0,0,0,0,0,0,0,0,0,0,0,0,0,0,0,0.5842960747,0.57788523150000004,0.60701303849999999,0.61464111779999997,0.6246302923,0.63610529729999998,0.64759891579999995,0.63470620700000002,0.76392526890000001]
[null,null,null,null,null,null,null,null,null,null,"T05_4|IE","T05_4","IE","waver",0,0,0,0,0,0,0,0,0,0,0,0,0,0,0,0,0,0.68424597970000001,0.68682843100000002,0.73483591079999999,0.74753163489999996,0.7273700837,0.75762573649999998,0.75480947310000002,0.76392526890000001,0.79161039379999998]
[null,null,null,null,null,null,null,null,null,null,"T05_4|IS","T05_4","IS","waver",0,0,0,0,0,0,0,0,0,0,0,0,0,0,0,0,0,0.8235582629,0.82555625060000004,0.77925910060000003,0.79170187560000005,0.77066253149999997,0.7316916242,0.75059601580000002,0.79161039379999998,0.67878312249999995]
[null,null,null,null,null,null,null,null,null,null,"T05_4|IT","T05_4","IT","waver",0,0,0,0,0,0,0,0,0,0,0,0,0,0,0,0,0,0.67911153130000002,0.68091952639999997,0.64892668440000001,0.69826986999999996,0.63334423620000002,0.63824563069999996,0.65926862659999996,0.67878312249999995,0.80045645040000002]
[null,null,null,null,null,null,null,null,null,null,"T05_4|LT","T05_4","LT","waver",0,0,0,0,0,0,0,0,0,0,0,0,0,0,0,0,0,0.75937886909999996,0.7588382749,0.76181459370000004,0.76102394809999996,0.75354118349999999,0.79976255799999996,0.78881469829999995,0.80045645040000002,0.42924598860000002]
[null,null,null,null,null,null,null,null,null,null,"T05_4|LU","T05_4","LU","waver",0,0,0,0,0,0,0,0,0,0,0,0,0,0,0,0,0,0.40363490880000003,0.3805370689,0.39878690709999998,0.4194211149,0.37453547380000002,0.36482913239999998,0.36443217970000003,0.42924598860000002,0.65501636119999995]
[null,null,null,null,null,null,null,null,null,null,"T05_4|LV","T05_4","LV","waver",0,0,0,0,0,0,0,0,0,0,0,0,0,0,0,0,0,0.62510489540000003,0.58994940370000004,0.58790593729999996,0.55295243029999996,0.54693326799999997,0.60124412009999995,0.59433400660000002,0.65501636119999995,0.46938269760000001]
[null,null,null,null,null,null,null,null,null,null,"T05_4|MT","T05_4","MT","waver",0,0,0,0,0,0,0,0,0,0,0,0,0,0,0,0,0,0.47591722269999998,0.41750826279999997,0.45218131459999999,0.50102682379999997,0.49598367510000002,0.46709699719999997,0.4926350109,0.46938269760000001,0.61599608640000003]
[null,null,null,null,null,null,null,null,null,null,"T05_4|NL","T05_4","NL","waver",0,0,0,0,0,0,0,0,0,0,0,0,0,0,0,0,0,0.64089344670000004,0.64428355900000001,0.63916827259999998,0.63054392650000002,0.62749599219999996,0.63268362160000002,0.63240152449999998,0.61599608640000003,0.50467808970000005]
[null,null,null,null,null,null,null,null,null,null,"T05_4|NO","T05_4","NO","waver",0,0,0,0,0,0,0,0,0,0,0,0,0,0,0,0,0,0.50190492279999999,0.49791112050000003,0.49599549240000002,0.49977965680000003,0.48555677489999999,0.48654378999999998,0.47254349559999997,0.50467808970000005,0.69992005290000003]
[null,null,null,null,null,null,null,null,null,null,"T05_4|PL","T05_4","PL","waver",0,0,0,0,0,0,0,0,0,0,0,0,0,0,0,0,0,0.66669305830000003,0.68347226289999996,0.68340932619999994,0.69242013810000003,0.65781085589999999,0.68918622839999999,0.70151085629999999,0.69992005290000003,0.72155094740000003]
[null,null,null,null,null,null,null,null,null,null,"T05_4|PT","T05_4","PT","waver",0,0,0,0,0,0,0,0,0,0,0,0,0,0,0,0,0,0.69443405479999998,0.70459869730000002,0.71722836860000005,0.73086357120000001,0.72589343709999998,0.73353795330000005,0.73951460719999995,0.72155094740000003,0.67159750929999995]
[null,null,null,null,null,null,null,null,null,null,"T05_4|RO","T05_4","RO","waver",0,0,0,0,0,0,0,0,0,0,0,0,0,0,0,0,0,0.62500397350000003,0.60719699579999997,0.6325700608,0.64244106509999999,0.65433188460000002,0.64998812350000001,0.65400090259999999,0.67159750929999995,0.64062112059999998]
[null,null,null,null,null,null,null,null,null,null,"T05_4|SE","T05_4","SE","waver",0,0,0,0,0,0,0,0,0,0,0,0,0,0,0,0,0,0.67640661270000002,0.65823705050000003,0.65929177480000001,0.67784982930000004,0.62700340020000001,0.6375480429,0.63058461040000002,0.64062112059999998,0.58116655589999999]
[null,null,null,null,null,null,null,null,null,null,"T05_4|SI","T05_4","SI","waver",0,0,0,0,0,0,0,0,0,0,0,0,0,0,0,0,0,0.53462199229999996,0.53578405480000002,0.56025886570000005,0.57175612909999995,0.5390160866,0.56509146040000002,0.59032316029999998,0.58116655589999999,0.68332160060000002]
[null,null,null,null,null,null,null,null,null,null,"T05_4|SK","T05_4","SK","waver",0,0,0,0,0,0,0,0,0,0,0,0,0,0,0,0,0,0.60916293030000002,0.63288862300000004,0.6246143153,0.64388521119999997,0.62903177070000005,0.61654688540000002,0.63809497209999999,0.68332160060000002,0.84959394379999997]
[null,null,null,null,null,null,null,null,null,null,"T07_1|AT","T07_1","AT","waver",0.86434611350000001,0.85602217300000005,0.85998030859999997,0.86439593329999997,0.86780552160000002,0.8615286593,0.85940163270000003,0.85932176770000002,0.84903524320000001,0.84188468350000001,0.83394368429999999,0.83216812090000003,0.84366847499999997,0.84181660359999999,0.84403906799999995,0.840211716,0.84741335620000002,0.85311961430000005,0.85820984779999998,0.85960393180000005,0.85462943250000001,0.85419330520000003,0.84873638279999997,0.85130887550000001,0.84959394379999997,0.83309522840000005]
[null,null,null,null,null,null,null,null,null,null,"T07_1|BE","T07_1","BE","waver",0.84508652269999995,0.84559063670000001,0.83988529450000005,0.83734972929999996,0.84221825679999995,0.84138861629999995,0.84122728950000003,0.84802070630000004,0.85004798520000002,0.84966140320000005,0.8478988247,0.84919692079999998,0.84879315639999997,0.85071998280000005,0.83722623949999997,0.83480220409999994,0.83150095719999995,0.83151284969999995,0.82999013129999999,0.82830584979999999,0.82277435450000003,0.83923251610000005,0.82824943220000002,0.83087181480000005,0.83309522840000005,0.91485449009999997]
[null,null,null,null,null,null,null,null,null,null,"T07_1|BG","T07_1","BG","waver",0.91256981299999995,0.90569649829999999,0.91054826980000003,0.9081737205,0.91075972800000005,0.90879290660000001,0.91165995200000005,0.90854238070000004,0.90638951469999995,0.89867063479999998,0.90066559499999999,0.89720189610000001,0.90310588530000002,0.903387355,0.91331000500000004,0.9150240355,0.90813361979999996,0.90160087200000005,0.88856123580000002,0.89571194899999995,0.89838970289999998,0.90941988330000001,0.90960236039999998,0.91352248979999995,0.91485449009999997,0.88439881389999997]
[null,null,null,null,null,null,null,null,null,null,"T07_1|CY","T07_1","CY","waver",0.89486971920000002,0.89897915569999998,0.89294467929999999,0.88556648760000001,0.87585472210000004,0.87249725180000004,0.87313243510000005,0.87158066570000003,0.87828678989999998,0.88371692840000005,0.87676495089999995,0.87650499820000005,0.88383412530000005,0.88596157620000004,0.88493828919999995,0.85646171130000004,0.86793119350000003,0.86759078619999996,0.86008067499999996,0.86476336330000003,0.87382932459999996,0.87341202849999999,0.86937865800000003,0.86834595780000001,0.88439881389999997,0.84281468029999995]
[null,null,null,null,null,null,null,null,null,null,"T07_1|CZ","T07_1","CZ","waver",0.81884392780000004,0.82044003200000004,0.82488657430000001,0.82512484689999999,0.83080044139999998,0.82647498409999998,0.8284984795,0.83063756970000002,0.82938157550000002,0.81724873909999995,0.81611064680000001,0.8182608214,0.81064773680000002,0.80947989399999998,0.81291248670000005,0.81569046059999994,0.84091111829999998,0.84140443740000004,0.8455496991,0.85009454470000001,0.84351785999999995,0.8406374888,0.83184551399999995,0.83636335409999996,0.84281468029999995,0.78562856069999998]
[null,null,null,null,null,null,null,null,null,null,"T07_1|DE","T07_1","DE","waver",0.76839342150000001,0.76165187710000004,0.76247941610000003,0.75810177519999999,0.76233198079999998,0.75818367129999997,0.76600508830000003,0.77017402960000003,0.77763191990000002,0.78128364969999997,0.78197118300000001,0.77429033130000002,0.78333092550000005,0.78424034239999996,0.78471718059999995,0.78649014959999997,0.78095766310000003,0.78973016809999996,0.7890661497,0.79049942910000004,0.79626338969999999,0.80592608629999996,0.79953492780000002,0.79801183649999996,0.78562856069999998,0.82781789650000004]
[null,null,null,null,null,null,null,null,null,null,"T07_1|DK","T07_1","DK","waver",0.81811386289999999,0.82109942960000004,0.79934409480000002,0.81036654620000004,0.81289227509999995,0.82519983470000002,0.83855347339999997,0.83577049189999997,0.83115440169999999,0.83213496340000004,0.83719549419999995,0.84161368120000002,0.83914932630000005,0.84220941559999996,0.83956200270000003,0.83941595869999996,0.82994185220000005,0.83694559040000005,0.83019737930000004,0.82707377920000003,0.83163892699999997,0.8281514942,0.81061509369999996,0.82178330499999996,0.82781789650000004,0.89414849220000003]
[null,null,null,null,null,null,null,null,null,null,"T07_1|EE","T07_1","EE","waver","n.a.","n.a.","n.a.","n.a.","n.a.",0.89402652900000001,0.89847372550000004,0.90001477760000004,0.90021051100000005,0.89637036059999997,0.89778183619999996,0.89725814699999995,0.90525225809999998,0.90292398080000003,0.9041501971,0.90330577759999997,0.89949586079999999,0.89847510779999995,0.90503720460000003,0.90273671799999999,0.89970741259999998,0.89809306870000005,0.89434295009999998,0.8958229929,0.89414849220000003,0.86441782889999996]
[null,null,null,null,null,null,null,null,null,null,"T07_1|ES","T07_1","ES","waver",0.8559915414,0.86115143719999998,0.85908956940000003,0.86314861450000002,0.87430294040000001,0.87256202709999997,0.87168966349999999,0.87202802089999998,0.87449721140000003,0.87214350750000003,0.87231755129999999,0.87486871929999999,0.87249368670000005,0.87025036639999998,0.87289942030000001,0.87190187050000001,0.86936883629999995,0.87014787110000003,0.86578316150000001,0.86314480469999999,0.86766546720000004,0.86992268930000005,0.86434070600000001,0.86694926289999996,0.86441782889999996,0.83850817119999999]
[null,null,null,null,null,null,null,null,null,null,"T07_1|EU","T07_1","EU","waver",0.79677350629999999,0.79401837369999995,0.79618339130000004,0.80071126589999997,0.80326649419999996,0.80271044229999999,0.80518140279999995,0.80335073059999995,0.80626814560000004,0.80542933900000002,0.80883075390000003,0.80815678980000005,0.81111542120000002,0.81004630440000003,0.81051422009999996,0.81126899320000001,0.80476518500000005,0.80841969680000003,0.80904947459999998,0.80631944680000001,0.80787540790000001,0.8435579795,0.8377877641,0.83975679729999997,0.83850817119999999,0.81338826659999997]
[null,null,null,null,null,null,null,null,null,null,"T07_1|FI","T07_1","FI","waver",0.8298220717,0.82707947189999997,0.8223114211,0.83036866129999998,0.82924024949999997,0.82490351049999999,0.82893797499999999,0.82482127859999999,0.83132389380000005,0.81120857899999999,0.80662322760000005,0.80708417789999998,0.81148804299999999,0.79020852939999997,0.79679743380000001,0.79382161019999997,0.78300572680000002,0.79116764149999996,0.81750302379999995,0.81877815300000001,0.81010794060000002,0.8041050327,0.79753734170000001,0.80168838689999999,0.81338826659999997,0.86471282120000004]
[null,null,null,null,null,null,null,null,null,null,"T07_1|FR","T07_1","FR","waver",0.85187045279999996,0.85075170980000003,0.85167581130000003,0.85232844990000001,0.85484112629999998,0.85449224909999999,0.85674002459999998,0.85691561819999995,0.85750244460000002,0.863050019,0.86416061129999999,0.86395367700000003,0.86402273399999996,0.8625496815,0.85945206959999998,0.86154737800000003,0.85515327789999995,0.85953037629999995,0.85905775220000002,0.86086343060000003,0.86103867850000004,0.86073034500000001,0.85790906820000001,0.8598169215,0.86471282120000004,0.70436479620000003]
[null,null,null,null,null,null,null,null,null,null,"T07_1|GB","T07_1","GB","waver",0.694026527,0.6932386626,0.69829107599999996,0.70832794580000003,0.70419189120000003,0.70686877199999998,0.70864876489999995,0.69346942249999999,0.69770945299999998,0.69068360790000005,0.69417536619999998,0.69515319710000001,0.69771112479999997,0.70021568249999999,0.70205992240000004,0.70264547369999997,0.70288583429999996,0.70711612550000003,0.70689545789999997,0.70278414720000004,0.70357814470000002,0.70449182310000003,0.69287684350000001,0.70302210620000005,0.70436479620000003,0.90219598720000005]
[null,null,null,null,null,null,null,null,null,null,"T07_1|GR","T07_1","GR","waver",0.90482141640000002,0.91051837219999998,0.90494242629999999,0.90233025410000001,0.89129950390000001,0.89370385910000005,0.89756253119999996,0.89570087259999998,0.89095276430000003,0.89080157709999996,0.89019154840000003,0.89173608169999996,0.89143758529999995,0.89262286079999997,0.89485124419999995,0.89434965860000004,0.90271800219999998,0.90185190569999996,0.90527550310000005,0.89733719820000002,0.89674203730000002,0.9017627185,0.89842701729999996,0.90002461199999995,0.90219598720000005,0.89112895640000001]
[null,null,null,null,null,null,null,null,null,null,"T07_1|HR","T07_1","HR","waver",0.88122356980000005,0.88283606260000003,0.88500101269999998,0.86609408700000001,0.87024856569999998,0.87312000089999997,0.87499721460000002,0.87216282850000004,0.87437826640000005,0.87711342810000004,0.87956053489999997,0.88075131900000003,0.88468629610000005,0.89323296569999999,0.89544775769999996,0.89089274819999997,0.89695134170000002,0.8945348045,0.89461790649999995,0.89187895800000005,0.8827243025,0.88894353869999998,0.88803017870000001,0.88966182680000006,0.89112895640000001,0.8850403308]
[null,null,null,null,null,null,null,null,null,null,"T07_1|HU","T07_1","HU","waver",0.8093552597,0.79919852489999998,0.81309042450000002,0.81187392979999995,0.81347614219999997,0.79829185339999997,0.79341370229999997,0.78945510720000001,0.79180758770000004,0.82401793109999999,0.82644598300000005,0.82806873869999997,0.82074154050000003,0.82318204930000005,0.84528225469999996,0.84735615860000002,0.84551128730000003,0.87112260929999996,0.86399401480000004,0.87141067780000003,0.87448794210000003,0.88290754839999996,0.88326909460000003,0.88498483360000002,0.8850403308,0.86902996229999996]
[null,null,null,null,null,null,null,null,null,null,"T07_1|IE","T07_1","IE","waver",0.88124785370000003,0.90649104010000003,0.90578642080000005,0.91195913009999996,0.91005698940000002,0.88974837819999997,0.8895814608,0.89045566269999998,0.88960166829999998,0.88696745759999995,0.88179027200000004,0.87589884149999997,0.88371709040000002,0.8782037721,0.88404847529999997,0.88819623280000004,0.88791175909999998,0.88661844430000003,0.88100338180000004,0.87111699450000002,0.86755331359999999,0.86987639250000004,0.8621964915,0.86249711380000005,0.86902996229999996,0.8832947552]
[null,null,null,null,null,null,null,null,null,null,"T07_1|IS","T07_1","IS","waver",0,0,0,0,0,0,0,0,0,0,0,0,0.87571645310000001,0.87485975439999997,0.87441530879999996,0.88077343829999999,0.88234429690000005,0.88652450029999996,0.88309325279999995,0.88454483569999998,0.88067463609999996,0.88128808439999995,0.88247571280000003,0.88465250120000005,0.8832947552,0.85247678510000002]
[null,null,null,null,null,null,null,null,null,null,"T07_1|IT","T07_1","IT","waver",0.85598075259999995,0.85359179819999997,0.85991960499999998,0.86200844850000002,0.86421754340000001,0.86376408770000002,0.86178026019999998,0.86249426929999995,0.86600763479999998,0.86496432339999996,0.86451515489999997,0.86361650109999999,0.86836908069999996,0.86693644420000004,0.86645425760000006,0.86481405109999998,0.86195314999999995,0.85976146340000004,0.86545760159999996,0.86646639930000002,0.85917281720000005,0.85912674759999996,0.85319613650000004,0.85514896169999999,0.85247678510000002,0.88650690620000006]
[null,null,null,null,null,null,null,null,null,null,"T07_1|LT","T07_1","LT","waver",0.83710694379999995,0.89457301229999997,0.8948101557,0.895542799,0.89411541660000005,0.90089969700000005,0.90327773730000005,0.90708481539999997,0.90093909210000001,0.89972593219999997,0.89869410199999999,0.89952637879999997,0.90799262359999999,0.90685252849999998,0.91108009270000001,0.91167301519999999,0.87058335710000001,0.86575884619999999,0.86813429769999995,0.86684071269999996,0.8705937145,0.88082142990000001,0.88113458899999997,0.88917400040000005,0.88650690620000006,0.88609168890000001]
[null,null,null,null,null,null,null,null,null,null,"T07_1|LU","T07_1","LU","waver",0.91392587569999995,0.91593299260000005,0.88684695339999997,0.88463918669999997,0.88339200600000001,0.88344231159999997,0.88172129590000003,0.87570443340000004,0.86014626969999997,0.84441949709999997,0.88388918000000005,0.88607947499999995,0.88484920249999999,0.8858573542,0.8838695016,0.88532597400000002,0.88687946969999998,0.89363911470000001,0.89406943419999996,0.89575858740000003,0.90455578130000003,0.87924268890000001,0.87440803759999997,0.87831535429999996,0.88609168890000001,0.88846555979999997]
[null,null,null,null,null,null,null,null,null,null,"T07_1|LV","T07_1","LV","waver",0.88056318069999995,0.87384722569999995,0.87232258949999997,0.86585042199999995,0.86155327150000005,0.86182775219999996,0.8662738244,0.86338205830000003,0.86539971179999997,0.86833577100000003,0.86658906120000001,0.86758444339999996,0.85817949090000001,0.85304455219999997,0.86239009980000003,0.8998968772,0.89931644700000002,0.88312380209999997,0.8865380128,0.88905745300000005,0.88699495419999996,0.88536036870000001,0.87165468629999998,0.88472529160000002,0.88846555979999997,0.90336619500000004]
[null,null,null,null,null,null,null,null,null,null,"T07_1|MT","T07_1","MT","waver","n.a.","n.a.","n.a.","n.a.",0.8935866643,0.8950186591,0.90028330509999999,0.90820461370000005,0.90971374459999998,0.90903033740000005,0.9078455231,0.91038646209999996,0.91340522639999999,0.91201540560000005,0.91263140899999995,0.91591866609999995,0.91284672479999995,0.91197078080000005,0.90676693590000002,0.89808249009999996,0.90041692949999996,0.90549686009999997,0.90430245129999998,0.9020351901,0.90336619500000004,0.793923763]
[null,null,null,null,null,null,null,null,null,null,"T07_1|NL","T07_1","NL","waver",0.83855920500000003,0.84094075189999995,0.83987820329999996,0.83164608019999997,0.83284761559999998,0.82922072120000001,0.83113393300000005,0.82857283520000002,0.83135933520000005,0.83130204750000003,0.83361840939999998,0.83046855850000001,0.83404516709999998,0.82740086049999995,0.83592102199999996,0.83779497609999998,0.82530839300000003,0.82842233460000003,0.82307325190000002,0.80835539150000002,0.80275076590000005,0.80794668120000002,0.79960822720000002,0.79524990139999996,0.793923763,0.88493195680000003]
[null,null,null,null,null,null,null,null,null,null,"T07_1|NO","T07_1","NO","waver",0.74823526100000004,0.77745829339999994,0.75762078200000005,0.76219885659999997,0.74076653479999999,0.73008693079999998,0.74279506650000005,0.72716518460000001,0.72903641289999999,0.80897469600000005,0.87485329879999996,0.85791608519999996,0.86377967639999997,0.84326374100000001,0.84676197959999999,0.84930116550000001,0.84939656740000002,0.84746769239999997,0.8399841495,0.8166428966,0.88987621979999998,0.8954988264,0.89308652600000005,0.89115171280000005,0.88493195680000003,0.89302924660000005]
[null,null,null,null,null,null,null,null,null,null,"T07_1|PL","T07_1","PL","waver",0.88958277190000001,0.89167042569999999,0.89708639580000005,0.90073549090000005,0.90265734200000003,0.89947916770000003,0.90647644009999995,0.90705406990000004,0.90850147640000001,0.90623176350000001,0.91287251130000002,0.91404190549999997,0.91424587469999996,0.91383123070000005,0.91401677650000002,0.91324661119999995,0.91966255949999998,0.91939113400000005,0.91898395830000001,0.91900334780000004,0.91728441849999998,0.90916704150000005,0.90585407630000003,0.89826282049999995,0.89302924660000005,0.87009269469999995]
[null,null,null,null,null,null,null,null,null,null,"T07_1|PT","T07_1","PT","waver",0.89592273519999999,0.89504166529999996,0.89683805279999995,0.89509299929999997,0.89729767599999999,0.89280661500000003,0.89235802600000003,0.89136836019999999,0.88187301959999997,0.89541404049999995,0.89104867730000004,0.88895073690000004,0.87852065909999999,0.8822499399,0.87886456899999998,0.87835625039999998,0.88591040119999998,0.88421419599999995,0.88224924360000001,0.88132171199999998,0.87741201339999997,0.87340034550000001,0.86952547719999995,0.86871270899999997,0.87009269469999995,0.75883244559999996]
[null,null,null,null,null,null,null,null,null,null,"T07_1|RO","T07_1","RO","waver",0.81750557670000001,0.81782371269999998,0.82541953379999999,0.82446563409999996,0.81417905800000001,0.79107703640000004,0.78693313300000001,0.7890884212,0.77612952349999997,0.76364401280000005,0.76778339200000001,0.76472543810000004,0.7705337418,0.76439148310000005,0.78523009629999996,0.78418767290000002,0.77261854730000001,0.79082103589999997,0.78317525119999998,0.78534778999999999,0.77469526300000002,0.77738115610000003,0.76392224639999995,0.77360171550000001,0.75883244559999996,0.5907200856]
[null,null,null,null,null,null,null,null,null,null,"T07_1|SE","T07_1","SE","waver","n.a.","n.a.","n.a.","n.a.",0.81415091650000004,0.8124768953,0.81821282939999995,0.81941080789999998,0.8130981115,0.81285752879999995,0.81546753449999998,0.81990108610000001,0.81517701799999998,0.82469021990000002,0.82056695940000002,0.82043336629999997,0.62389633069999995,0.62676106099999995,0.6229744438,0.62543836750000004,0.62321151340000003,0.62237927029999995,0.60690888990000003,0.61192254349999997,0.5907200856,0.85160979380000001]
[null,null,null,null,null,null,null,null,null,null,"T07_1|SI","T07_1","SI","waver",0.84830289000000003,0.86086196370000001,0.86610586079999996,0.86450419450000004,0.86735713010000004,0.870951535,0.87077651379999998,0.86841514809999998,0.87289052810000001,0.8713435786,0.87113325220000004,0.87359488510000005,0.85140755759999998,0.85415255469999996,0.85739005059999995,0.85534633930000004,0.85115825160000003,0.85123714930000005,0.85664789819999998,0.85906548009999995,0.86112251319999999,0.86928469590000002,0.86626831660000003,0.86385034679999995,0.85160979380000001,0.90849910140000001]
[null,null,null,null,null,null,null,null,null,null,"T07_1|SK","T07_1","SK","waver",0.87714110379999999,0.84793966779999996,0.87898538059999998,0.87855018539999996,0.87809178600000004,0.86868212239999998,0.86237965260000005,0.8553405422,0.86423394119999997,0.83923523050000004,0.82739387480000004,0.83892240969999998,0.85512673009999995,0.85385985649999996,0.86151715480000002,0.87613129540000001,0.89595267609999996,0.89187051490000002,0.89148478050000002,0.89952531540000003,0.90779755669999995,0.90699792560000003,0.90019631359999996,0.90236021919999998,0.90849910140000001,4.6837650000000003E-3]
[null,null,null,null,null,null,null,null,null,null,"T07_2|AT","T07_2","AT","waver",0,0,0,0,0,0,0,0,0,0,0,0,0,0,0,0,0,2.1120569E-3,2.1058179000000002E-3,2.9166156000000002E-3,1.2144838E-3,4.2136680000000003E-3,3.6813051999999998E-3,3.5549305000000002E-3,4.6837650000000003E-3,7.3680450000000001E-3]
[null,null,null,null,null,null,null,null,null,null,"T07_2|BE","T07_2","BE","waver",0,0,0,0,0,0,0,0,0,0,0,0,0,0,0,0,0,4.1348875999999996E-3,3.1637871E-3,3.0508890999999998E-3,2.3912928E-3,7.0697217E-3,6.8400251999999996E-3,7.2313814000000004E-3,7.3680450000000001E-3,0]
[null,null,null,null,null,null,null,null,null,null,"T07_2|BG","T07_2","BG","waver",0,0,0,0,0,0,0,0,0,0,0,0,0,0,0,0,0,0,0,0,0,0,0,0,0,7.5356167999999996E-3]
[null,null,null,null,null,null,null,null,null,null,"T07_2|CY","T07_2","CY","waver",0,0,0,0,0,0,0,0,0,0,0,0,0,0,0,0,0,5.20202E-5,5.6967253999999998E-3,5.4887920999999998E-3,5.2871827000000003E-3,7.0810101999999996E-3,7.1955496999999997E-3,7.4166181000000003E-3,7.5356167999999996E-3,2.2254308999999999E-3]
[null,null,null,null,null,null,null,null,null,null,"T07_2|CZ","T07_2","CZ","waver",0,0,0,0,0,0,0,0,0,0,0,0,0,0,0,0,0,0,0,0,3.5422780999999999E-3,4.6860536999999997E-3,3.2338366000000001E-3,3.8955802000000001E-3,2.2254308999999999E-3,2.32595591E-2]
[null,null,null,null,null,null,null,null,null,null,"T07_2|DE","T07_2","DE","waver",0,0,0,0,0,0,0,0,0,0,0,0,0,0,0,0,0,1.6892012299999998E-2,1.6490566500000001E-2,1.5392700400000001E-2,1.2875825400000001E-2,2.6317660100000001E-2,2.4532851599999999E-2,2.2718587299999999E-2,2.32595591E-2,1.6696262999999999E-3]
[null,null,null,null,null,null,null,null,null,null,"T07_2|DK","T07_2","DK","waver",0,0,0,0,0,0,0,0,0,0,0,0,0,0,0,0,0,4.9375709999999998E-4,4.1204620000000002E-4,3.0394040000000002E-4,1.161469E-4,1.8408152000000001E-3,1.7186712E-3,1.6830020000000001E-3,1.6696262999999999E-3,0]
[null,null,null,null,null,null,null,null,null,null,"T07_2|EE","T07_2","EE","waver",0,0,0,0,0,0,0,0,0,0,0,0,0,0,0,0,0,0,0,0,0,0,0,0,0,7.1211948999999998E-3]
[null,null,null,null,null,null,null,null,null,null,"T07_2|ES","T07_2","ES","waver",0,0,0,0,0,0,0,0,0,0,0,0,0,0,0,0,0,4.9155088999999997E-3,3.9954791000000002E-3,3.6446670999999999E-3,3.1056919000000001E-3,7.4374857000000004E-3,6.9227951999999999E-3,6.9141552999999996E-3,7.1211948999999998E-3,1.20249659E-2]
[null,null,null,null,null,null,null,null,null,null,"T07_2|EU","T07_2","EU","waver",0,0,0,0,0,0,0,0,0,0,0,0,0,0,0,0,0,8.4475756999999995E-3,7.9066594999999996E-3,7.5608539000000001E-3,6.8564111000000002E-3,1.2638320600000001E-2,1.18177814E-2,1.13933582E-2,1.20249659E-2,1.6512281000000001E-3]
[null,null,null,null,null,null,null,null,null,null,"T07_2|FI","T07_2","FI","waver",0,0,0,0,0,0,0,0,0,0,0,0,0,0,0,0,0,5.7701367000000002E-3,3.9763015000000004E-3,6.9232408E-3,5.5609676000000002E-3,4.6072574999999998E-3,4.4924246999999999E-3,4.5108516E-3,1.6512281000000001E-3,1.37978539E-2]
[null,null,null,null,null,null,null,null,null,null,"T07_2|FR","T07_2","FR","waver",0,0,0,0,0,0,0,0,0,0,0,0,0,0,0,0,0,8.5453245999999993E-3,7.6244759999999998E-3,7.7564423000000002E-3,7.2698512999999996E-3,1.46411549E-2,1.38130076E-2,1.3746331699999999E-2,1.37978539E-2,1.58613035E-2]
[null,null,null,null,null,null,null,null,null,null,"T07_2|GB","T07_2","GB","waver",0,0,0,0,0,0,0,0,0,0,0,0,0,0,0,0,0,9.3240182000000008E-3,8.3911184999999992E-3,7.7032867E-3,7.1497399000000003E-3,1.43389381E-2,1.4825364000000001E-2,1.5052419500000001E-2,1.58613035E-2,6.9383763999999997E-3]
[null,null,null,null,null,null,null,null,null,null,"T07_2|GR","T07_2","GR","waver",0,0,0,0,0,0,0,0,0,0,0,0,0,0,0,0,0,6.5726939999999996E-4,7.3526910000000002E-4,7.2062609999999996E-4,7.9624820000000001E-4,6.1770434999999999E-3,6.5669001000000001E-3,6.9288821000000004E-3,6.9383763999999997E-3,0]
[null,null,null,null,null,null,null,null,null,null,"T07_2|HR","T07_2","HR","waver",0,0,0,0,0,0,0,0,0,0,0,0,0,0,0,0,0,0,0,0,0,0,0,0,0,0]
[null,null,null,null,null,null,null,null,null,null,"T07_2|HU","T07_2","HU","waver",0,0,0,0,0,0,0,0,0,0,0,0,0,0,0,0,0,0,0,0,0,0,0,0,0,1.8395097900000001E-2]
[null,null,null,null,null,null,null,null,null,null,"T07_2|IE","T07_2","IE","waver",0,0,0,0,0,0,0,0,0,0,0,0,0,0,0,0,0,2.45987659E-2,2.5506857500000001E-2,2.3927057099999999E-2,2.24429129E-2,2.2399368999999999E-2,1.87424315E-2,1.8419275799999999E-2,1.8395097900000001E-2,0]
[null,null,null,null,null,null,null,null,null,null,"T07_2|IS","T07_2","IS","waver",0,0,0,0,0,0,0,0,0,0,0,0,0,0,0,0,0,0,0,0,0,0,0,0,0,1.8213766199999998E-2]
[null,null,null,null,null,null,null,null,null,null,"T07_2|IT","T07_2","IT","waver",0,0,0,0,0,0,0,0,0,0,0,0,0,0,0,0,0,1.0202818799999999E-2,1.0874806900000001E-2,1.00013245E-2,9.9660211999999995E-3,1.46820918E-2,1.45425893E-2,1.48029153E-2,1.8213766199999998E-2,0]
[null,null,null,null,null,null,null,null,null,null,"T07_2|LT","T07_2","LT","waver",0,0,0,0,0,0,0,0,0,0,0,0,0,0,0,0,0,0,0,0,0,0,0,0,0,2.15540449E-2]
[null,null,null,null,null,null,null,null,null,null,"T07_2|LU","T07_2","LU","waver",0,0,0,0,0,0,0,0,0,0,0,0,0,0,0,0,0,1.46008904E-2,1.7522700700000001E-2,1.7017971900000001E-2,1.7207513300000001E-2,2.1927302999999999E-2,2.26904377E-2,2.2302722600000002E-2,2.15540449E-2,0]
[null,null,null,null,null,null,null,null,null,null,"T07_2|LV","T07_2","LV","waver",0,0,0,0,0,0,0,0,0,0,0,0,0,0,0,0,0,0,0,0,0,0,0,0,0,9.1446189999999997E-3]
[null,null,null,null,null,null,null,null,null,null,"T07_2|MT","T07_2","MT","waver",0,0,0,0,0,0,0,0,0,0,0,0,0,0,0,0,0,0,0,0,0,6.7493465000000004E-3,6.6213601000000002E-3,6.7072277999999999E-3,9.1446189999999997E-3,8.8202804999999995E-3]
[null,null,null,null,null,null,null,null,null,null,"T07_2|NL","T07_2","NL","waver",0,0,0,0,0,0,0,0,0,0,0,0,0,0,0,0,0,6.1195523E-3,6.5284797999999996E-3,6.1093715000000003E-3,5.4874993000000004E-3,1.06125649E-2,8.9271809999999993E-3,8.9931152000000004E-3,8.8202804999999995E-3,0]
[null,null,null,null,null,null,null,null,null,null,"T07_2|NO","T07_2","NO","waver",0,0,0,0,0,0,0,0,0,0,0,0,0,0,0,0,0,0,0,0,0,0,0,0,0,0]
[null,null,null,null,null,null,null,null,null,null,"T07_2|PL","T07_2","PL","waver",0,0,0,0,0,0,0,0,0,0,0,0,0,0,0,0,0,0,0,0,0,0,0,3.6292954E-6,0,4.7128945000000002E-3]
[null,null,null,null,null,null,null,null,null,null,"T07_2|PT","T07_2","PT","waver",0,0,0,0,0,0,0,0,0,0,0,0,0,0,0,0,0,2.061139E-3,3.8015918999999999E-3,3.6634009000000001E-3,3.6086311999999998E-3,5.3854002999999999E-3,5.1222272000000001E-3,5.0632843999999996E-3,4.7128945000000002E-3,0]
[null,null,null,null,null,null,null,null,null,null,"T07_2|RO","T07_2","RO","waver",0,0,0,0,0,0,0,0,0,0,0,0,0,0,0,0,0,0,0,0,0,0,0,0,0,8.1271550000000005E-4]
[null,null,null,null,null,null,null,null,null,null,"T07_2|SE","T07_2","SE","waver",0,0,0,0,0,0,0,0,0,0,0,0,0,0,0,0,0,4.7907059999999999E-4,4.2702460000000001E-4,4.7269819999999998E-4,4.881733E-4,8.9163290000000004E-4,8.9689979999999999E-4,9.3011479999999995E-4,8.1271550000000005E-4,0]
[null,null,null,null,null,null,null,null,null,null,"T07_2|SI","T07_2","SI","waver",0,0,0,0,0,0,0,0,0,0,0,0,0,0,0,0,0,0,0,0,0,0,0,0,0,0]
[null,null,null,null,null,null,null,null,null,null,"T07_2|SK","T07_2","SK","waver",0,0,0,0,0,0,0,0,0,0,0,0,0,0,0,0,0,1.4023375999999999E-6,0,0,0,0,0,0,0,3.0622287500000001E-2]
[null,null,null,null,null,null,null,null,null,null,"T07_3|AT","T07_3","AT","waver",3.06484596E-2,3.9812826099999997E-2,3.4142598699999999E-2,2.6988173899999999E-2,2.7738459E-2,2.9564329800000001E-2,2.8382906699999998E-2,2.5217955300000001E-2,2.5520065099999999E-2,2.8895714100000001E-2,2.6843361900000001E-2,2.5478781499999999E-2,2.5268361499999999E-2,2.5717872900000001E-2,2.6780403500000001E-2,2.91506565E-2,2.66539906E-2,2.3577518799999999E-2,2.3620267E-2,2.3160830100000002E-2,2.18355966E-2,2.6478581500000001E-2,3.0051615399999999E-2,2.9821795000000002E-2,3.0622287500000001E-2,1.6662518800000001E-2]
[null,null,null,null,null,null,null,null,null,null,"T07_3|BE","T07_3","BE","waver",2.5679312700000002E-2,2.6599304099999999E-2,2.8882141600000001E-2,3.1466965200000002E-2,2.8916014899999998E-2,2.7722859799999999E-2,2.6797434200000001E-2,2.5516827700000001E-2,2.1342043000000002E-2,2.2573542799999999E-2,2.5579703499999999E-2,2.44550592E-2,2.4208841299999999E-2,2.4222701400000001E-2,2.7247824899999998E-2,2.3725564899999999E-2,2.3189476000000001E-2,2.0028760900000001E-2,1.9994000299999998E-2,1.8468803400000001E-2,1.6434840700000002E-2,1.9830573000000001E-2,1.9674109700000001E-2,1.7703446099999999E-2,1.6662518800000001E-2,5.9131237E-3]
[null,null,null,null,null,null,null,null,null,null,"T07_3|BG","T07_3","BG","waver",3.6299252000000001E-3,4.9248421999999997E-3,3.2386823999999998E-3,3.5960734000000001E-3,3.5131466000000002E-3,1.9116484000000001E-3,2.9090002999999998E-3,3.7521261000000002E-3,4.0808811999999998E-3,5.7056396000000004E-3,5.5596776000000001E-3,6.7619172999999998E-3,5.0754915999999999E-3,7.3299022999999998E-3,3.6922747E-3,4.9738352000000003E-3,5.0967469E-3,7.7575515000000003E-3,1.8715526699999999E-2,9.3795692E-3,9.0278431999999999E-3,4.7435011000000003E-3,5.2924512999999998E-3,4.8345881000000004E-3,5.9131237E-3,3.7394659999999999E-3]
[null,null,null,null,null,null,null,null,null,null,"T07_3|CY","T07_3","CY","waver",1.0975528E-3,3.8832729999999999E-4,7.3142970000000004E-4,5.7704584000000001E-3,7.8938749999999999E-3,1.06178924E-2,5.3283621999999998E-3,7.0688551999999998E-3,7.9392616000000006E-3,5.2396281999999997E-3,6.7079399999999999E-3,6.0730971E-3,5.1880134000000001E-3,5.7664915999999997E-3,4.6762345999999998E-3,5.9881374999999999E-3,5.6222883999999997E-3,7.6418998E-3,8.9418642E-3,3.2780040000000002E-3,3.3541081000000002E-3,3.4446161999999998E-3,3.7490332999999998E-3,3.7556531999999999E-3,3.7394659999999999E-3,2.27273248E-2]
[null,null,null,null,null,null,null,null,null,null,"T07_3|CZ","T07_3","CZ","waver",3.6751372900000003E-2,3.9024134199999998E-2,3.89104506E-2,3.84780521E-2,3.3642903699999997E-2,3.7284151000000001E-2,3.5173944200000001E-2,3.2403225500000001E-2,3.2170515900000002E-2,3.9947476500000002E-2,4.3891830100000001E-2,3.7873582900000001E-2,4.8313106199999997E-2,4.7292382500000001E-2,4.5380891E-2,4.4902262800000002E-2,3.5493148500000002E-2,3.2879827299999997E-2,2.96998427E-2,2.68490446E-2,2.33098253E-2,2.67617567E-2,2.52444977E-2,2.48716002E-2,2.27273248E-2,6.9656864499999999E-2]
[null,null,null,null,null,null,null,null,null,null,"T07_3|DE","T07_3","DE","waver",9.2770209500000006E-2,9.80528185E-2,9.5351406900000005E-2,9.3779958199999999E-2,8.7915783499999997E-2,8.8511450699999994E-2,8.2679702800000004E-2,7.6771328200000002E-2,6.7668321599999998E-2,6.5252447800000002E-2,6.4859550599999996E-2,6.42624854E-2,6.0272725700000002E-2,6.1831219700000002E-2,5.8927772000000003E-2,5.9703016599999999E-2,6.7113294700000006E-2,5.8869760600000001E-2,5.7140046600000001E-2,5.9664740000000001E-2,5.4817294799999999E-2,5.8069828400000002E-2,6.4945519100000002E-2,5.8656212200000002E-2,6.9656864499999999E-2,6.8335347699999993E-2]
[null,null,null,null,null,null,null,null,null,null,"T07_3|DK","T07_3","DK","waver",8.4052118199999998E-2,8.0301248699999994E-2,0.1055842202,9.29821547E-2,9.3629512499999998E-2,7.7062215099999998E-2,6.1786187700000002E-2,6.80179427E-2,7.0300852699999999E-2,7.2545161400000002E-2,6.6600074400000001E-2,6.2597828999999994E-2,6.4282970800000006E-2,5.8437853900000003E-2,6.0479392600000001E-2,5.89838512E-2,5.77229493E-2,5.2717924999999999E-2,6.1329936699999997E-2,6.6551619899999997E-2,6.3028392599999997E-2,6.8545465400000005E-2,8.6649824400000006E-2,7.3875492200000004E-2,6.8335347699999993E-2,4.4740635000000001E-3]
[null,null,null,null,null,null,null,null,null,null,"T07_3|EE","T07_3","EE","waver","n.a.","n.a.","n.a.","n.a.","n.a.",4.5727125999999998E-3,4.7079634E-3,4.3098813999999999E-3,4.5703163999999998E-3,4.4082161E-3,3.3459922E-3,4.9128434999999998E-3,3.3391508999999998E-3,3.0398030000000002E-3,3.1909799999999999E-3,3.1970072E-3,3.5561277999999999E-3,7.4411612E-3,8.8331881999999997E-3,3.4780301E-3,3.2830809000000002E-3,3.6038018000000001E-3,4.9782113999999999E-3,4.5363998000000003E-3,4.4740635000000001E-3,2.6553212600000001E-2]
[null,null,null,null,null,null,null,null,null,null,"T07_3|ES","T07_3","ES","waver",4.0543491000000001E-2,3.8193665199999997E-2,3.8726014199999999E-2,3.6552829600000003E-2,3.16922569E-2,3.4061037799999999E-2,3.6100036500000002E-2,3.4972587200000002E-2,3.0911303300000002E-2,3.3586407899999997E-2,3.4942541399999999E-2,3.06620708E-2,3.0192432599999999E-2,3.08035134E-2,2.8611152899999999E-2,2.8424563699999999E-2,2.9634625099999999E-2,2.9664844199999998E-2,3.1260309399999998E-2,3.4601982000000003E-2,2.8724062799999998E-2,3.1594079900000002E-2,3.38198652E-2,2.90956676E-2,2.6553212600000001E-2,3.3915613900000002E-2]
[null,null,null,null,null,null,null,null,null,null,"T07_3|EU","T07_3","EU","waver",6.7527329600000005E-2,7.0944416199999999E-2,6.8138153300000004E-2,6.5975981500000003E-2,6.3937007899999995E-2,6.4163136800000006E-2,6.2609793499999997E-2,6.2924366999999995E-2,6.1043327500000001E-2,6.2532154199999995E-2,6.28411106E-2,6.2843005699999996E-2,6.14587412E-2,6.4408604699999997E-2,6.2769643900000005E-2,6.1016002899999998E-2,6.17765937E-2,5.9683760500000002E-2,5.8886247699999998E-2,6.1708366100000002E-2,5.7419791599999999E-2,3.5443235599999998E-2,3.8836386899999999E-2,3.4156300700000003E-2,3.3915613900000002E-2,3.48452629E-2]
[null,null,null,null,null,null,null,null,null,null,"T07_3|FI","T07_3","FI","waver",6.5496203099999997E-2,6.5784619700000005E-2,7.1788928399999993E-2,5.8677048199999998E-2,5.8357469600000003E-2,6.4452013799999999E-2,5.8832776099999998E-2,6.3650703000000003E-2,5.70071807E-2,2.6994468099999998E-2,3.3600187199999999E-2,3.4482363199999998E-2,2.09741653E-2,2.4035278E-2,2.15427316E-2,2.2768435E-2,3.4467263200000001E-2,3.9533897200000001E-2,3.0215250799999999E-2,2.5921580900000001E-2,2.9508726700000001E-2,4.8953296100000002E-2,5.2223043400000002E-2,4.2457160700000003E-2,3.48452629E-2,2.7557452600000001E-2]
[null,null,null,null,null,null,null,null,null,null,"T07_3|FR","T07_3","FR","waver",3.49437571E-2,3.6809227399999998E-2,3.5376323000000001E-2,3.2270657799999998E-2,3.1415965800000001E-2,3.0986525399999999E-2,3.00317836E-2,2.97456535E-2,3.05215231E-2,2.96267596E-2,2.83895651E-2,2.7857578000000001E-2,2.6556827500000001E-2,2.8168664999999999E-2,2.81397517E-2,2.6148040500000001E-2,3.0045103300000001E-2,2.74743392E-2,2.7937039300000001E-2,2.7392325299999999E-2,2.60289184E-2,3.1133125300000002E-2,3.4956429499999997E-2,3.0551032400000001E-2,2.7557452600000001E-2,0.14961004080000001]
[null,null,null,null,null,null,null,null,null,null,"T07_3|GB","T07_3","GB","waver",0.1196061756,0.1227462022,0.1179655403,0.1186089515,0.1199325061,0.119523911,0.1177168739,0.12716410510000001,0.12704183429999999,0.13387573129999999,0.14014615059999999,0.14401232450000001,0.14407840929999999,0.15197706220000001,0.14694451159999999,0.1421326551,0.1434351982,0.1409380694,0.14237224060000001,0.1474398525,0.14061628440000001,0.14994934630000001,0.16055133469999999,0.1494363631,0.14961004080000001,2.5367413799999999E-2]
[null,null,null,null,null,null,null,null,null,null,"T07_3|GR","T07_3","GR","waver",2.44280609E-2,2.2816553900000001E-2,2.6257269499999999E-2,2.8397530399999999E-2,3.2490943000000001E-2,3.0574391999999999E-2,3.1857328800000001E-2,3.2978198100000002E-2,3.4463147200000002E-2,3.4725672999999999E-2,3.3927588500000001E-2,3.1887186999999997E-2,2.99524215E-2,2.7753256800000001E-2,2.5443079E-2,2.5580875400000001E-2,1.96514499E-2,2.06113411E-2,2.0967637500000001E-2,2.29186033E-2,2.53342376E-2,2.5618789100000001E-2,2.7546035999999999E-2,2.4479992499999999E-2,2.5367413799999999E-2,1.7229641600000001E-2]
[null,null,null,null,null,null,null,null,null,null,"T07_3|HR","T07_3","HR","waver",1.39406042E-2,1.01083327E-2,9.7417327999999997E-3,3.0736863699999999E-2,2.5065695700000001E-2,2.0849187700000001E-2,2.1359000199999999E-2,2.5842333799999999E-2,2.3250098399999999E-2,2.0709773399999999E-2,2.1290748500000001E-2,1.85423545E-2,1.5759086700000001E-2,1.2571229600000001E-2,1.1376138900000001E-2,1.9273161899999999E-2,1.53997966E-2,2.0195402000000001E-2,1.4445089899999999E-2,1.75736279E-2,2.4823258300000001E-2,2.0306159599999998E-2,1.6501021300000002E-2,1.68089599E-2,1.7229641600000001E-2,1.42910616E-2]
[null,null,null,null,null,null,null,null,null,null,"T07_3|HU","T07_3","HU","waver",5.1083683800000002E-2,5.74530558E-2,4.31697448E-2,4.5930031699999999E-2,5.0016483799999997E-2,5.7215403200000001E-2,5.0585015099999998E-2,5.4636058899999999E-2,5.28047289E-2,3.7390890500000003E-2,3.5601027299999997E-2,3.72019689E-2,5.0444291099999997E-2,5.2658031600000002E-2,3.6703031900000002E-2,3.6993181299999997E-2,3.6136858799999998E-2,1.2770576400000001E-2,1.37835105E-2,1.4646889200000001E-2,1.53910483E-2,1.2074544E-2,1.3759053800000001E-2,1.3332253000000001E-2,1.42910616E-2,2.5930824000000002E-2]
[null,null,null,null,null,null,null,null,null,null,"T07_3|IE","T07_3","IE","waver",1.7949612399999999E-2,8.7473132000000006E-3,1.02669396E-2,6.5116354999999997E-3,6.2230743E-3,1.3235863E-2,1.2016382500000001E-2,1.10796643E-2,9.2993238999999998E-3,1.03661228E-2,1.2079715E-2,1.6505107799999998E-2,1.36519923E-2,1.7562397E-2,1.4147262900000001E-2,1.5423285700000001E-2,1.5760630300000002E-2,1.311813E-2,1.31945615E-2,1.83459305E-2,2.2287971899999998E-2,2.3589878500000001E-2,2.9535135099999998E-2,2.9487245700000001E-2,2.5930824000000002E-2,1.7310290900000001E-2]
[null,null,null,null,null,null,null,null,null,null,"T07_3|IS","T07_3","IS","waver",0,0,0,0,0,0,0,0,0,0,0,0,1.4444252100000001E-2,1.6283100599999999E-2,1.9941603200000001E-2,1.6898138199999999E-2,1.4415896399999999E-2,1.2618938200000001E-2,1.6881263399999999E-2,1.4589174999999999E-2,1.5334960999999999E-2,1.6967245400000001E-2,1.60861767E-2,1.70308908E-2,1.7310290900000001E-2,3.7599183199999997E-2]
[null,null,null,null,null,null,null,null,null,null,"T07_3|IT","T07_3","IT","waver",4.3254848300000003E-2,4.8277275600000003E-2,4.2130997699999999E-2,3.9047433100000001E-2,3.8994532800000002E-2,3.96796133E-2,4.3661090299999997E-2,4.1692542499999999E-2,4.1253349299999999E-2,4.2397631999999998E-2,4.1858823900000001E-2,4.0166575900000001E-2,4.15824069E-2,4.0896785800000002E-2,4.3235905800000002E-2,4.39554089E-2,4.1493267E-2,4.2712234699999997E-2,3.6153490099999998E-2,3.6272205000000002E-2,3.4499305899999999E-2,3.9270636499999997E-2,4.0375629699999999E-2,3.6619023200000003E-2,3.7599183199999997E-2,4.1399198E-3]
[null,null,null,null,null,null,null,null,null,null,"T07_3|LT","T07_3","LT","waver",7.9410074600000005E-2,1.53884025E-2,1.50584299E-2,1.49647666E-2,1.7424988400000001E-2,1.37279577E-2,1.54533325E-2,1.2808640499999999E-2,1.46911235E-2,1.5729447000000001E-2,1.7181257500000002E-2,1.5573713600000001E-2,1.33695091E-2,1.44450654E-2,1.2135942800000001E-2,1.21570876E-2,1.28595017E-2,1.0895541599999999E-2,1.31836705E-2,1.23079338E-2,1.02278969E-2,6.2269103000000001E-3,5.3669722999999999E-3,4.0658194999999998E-3,4.1399198E-3,3.7180632999999999E-3]
[null,null,null,null,null,null,null,null,null,null,"T07_3|LU","T07_3","LU","waver",5.6312410000000004E-3,6.5426186000000002E-3,9.3537186999999994E-3,8.8261200999999994E-3,7.2434166999999997E-3,6.6968349999999999E-3,5.7979473999999996E-3,9.2368083999999993E-3,9.8714362E-3,1.09300766E-2,7.6051340000000004E-3,7.8274738E-3,6.9962597999999997E-3,7.8935541000000001E-3,7.3585539999999998E-3,8.4569766000000008E-3,6.587295E-3,4.8379041999999997E-3,4.9072991999999996E-3,5.2013320000000004E-3,3.6842528000000001E-3,5.3230884999999999E-3,6.2949844000000001E-3,5.3205758000000004E-3,3.7180632999999999E-3,3.1134089000000001E-3]
[null,null,null,null,null,null,null,null,null,null,"T07_3|LV","T07_3","LV","waver",1.2631652199999999E-2,1.65776404E-2,1.4683515899999999E-2,1.7518716399999999E-2,1.7456424299999999E-2,1.7508066199999998E-2,1.50607103E-2,1.64011461E-2,1.6963158499999999E-2,1.3235152700000001E-2,1.40236175E-2,1.2753080300000001E-2,2.1678138699999999E-2,4.0372085000000002E-2,2.7751825000000001E-2,1.5680297000000001E-3,1.2953274999999999E-3,3.4273208E-3,3.4052191000000002E-3,3.0861576000000002E-3,4.3740897000000001E-3,5.2156562999999996E-3,1.42735486E-2,5.2920437000000004E-3,3.1134089000000001E-3,8.5588009999999998E-4]
[null,null,null,null,null,null,null,null,null,null,"T07_3|MT","T07_3","MT","waver","n.a.","n.a.","n.a.","n.a.",4.8296400000000001E-4,1.9675620000000001E-4,1.6708470000000001E-4,3.097447E-4,6.2489279999999999E-4,6.2529250000000001E-4,7.8072799999999996E-4,7.2794370000000001E-4,3.4216079999999999E-4,2.964989E-4,4.6574909999999998E-4,6.695955E-4,3.4523170000000001E-4,6.3116479999999998E-4,2.7848139999999999E-4,9.6302430000000004E-4,4.0647090000000001E-4,3.6232190000000001E-4,3.1240329999999999E-4,2.5102065999999998E-3,8.5588009999999998E-4,2.1988291100000001E-2]
[null,null,null,null,null,null,null,null,null,null,"T07_3|NL","T07_3","NL","waver",3.0349928200000001E-2,2.8341942700000001E-2,2.56557595E-2,2.6258162000000002E-2,2.2278997599999999E-2,2.5944347100000001E-2,2.3661021399999999E-2,2.25870962E-2,2.2584688499999998E-2,2.2610023E-2,2.1180510100000001E-2,1.8851380899999999E-2,1.7207516799999999E-2,1.8488304099999998E-2,1.6736004400000001E-2,1.6410297300000001E-2,1.8771684E-2,1.5686571900000001E-2,1.4370192E-2,1.90439253E-2,1.6576829299999998E-2,2.50147727E-2,2.6649920300000001E-2,2.21242153E-2,2.1988291100000001E-2,9.3310054999999996E-3]
[null,null,null,null,null,null,null,null,null,null,"T07_3|NO","T07_3","NO","waver",1.45021596E-2,1.30734045E-2,1.33351919E-2,1.34390671E-2,1.18685519E-2,1.13819929E-2,1.12673228E-2,1.0322923100000001E-2,9.914984E-3,1.1029226099999999E-2,9.3792930000000004E-3,1.02928884E-2,1.20241224E-2,9.5388299000000003E-3,8.4119477999999998E-3,8.9103342999999995E-3,9.5865354999999999E-3,8.6121401000000004E-3,7.9439613999999995E-3,7.7622871000000001E-3,1.01511858E-2,9.2494146999999999E-3,9.2808787E-3,9.3580328000000008E-3,9.3310054999999996E-3,1.5378318199999999E-2]
[null,null,null,null,null,null,null,null,null,null,"T07_3|PL","T07_3","PL","waver",2.6429309200000001E-2,2.5755568199999999E-2,2.2761407800000001E-2,2.0034940599999999E-2,2.1411517599999999E-2,2.5643991200000001E-2,2.37532391E-2,2.37604836E-2,2.35410325E-2,2.40655036E-2,1.9690042299999998E-2,1.9175020599999999E-2,1.8113129200000001E-2,1.7598449700000001E-2,1.8921263800000001E-2,1.9467874499999999E-2,1.6498232299999999E-2,1.6276867E-2,1.6282584499999999E-2,1.6757067300000001E-2,1.6126322299999999E-2,1.53350668E-2,1.5046411000000001E-2,1.9447093200000001E-2,1.5378318199999999E-2,3.1523687699999997E-2]
[null,null,null,null,null,null,null,null,null,null,"T07_3|PT","T07_3","PT","waver",2.1524682400000002E-2,2.8986075E-2,2.8422698900000001E-2,2.8992378999999999E-2,2.9480132100000001E-2,3.4136470000000002E-2,3.4928622899999998E-2,3.4806545899999999E-2,3.4423833799999998E-2,2.5172053699999999E-2,2.4572908899999999E-2,2.54948768E-2,2.5437818599999999E-2,2.5725745899999999E-2,2.7355830099999999E-2,2.5506596900000001E-2,2.2499042600000001E-2,2.47518696E-2,2.5568016200000002E-2,2.7729238900000001E-2,2.83623229E-2,3.0353461200000001E-2,3.2606128200000001E-2,3.2673111999999997E-2,3.1523687699999997E-2,8.9585639300000006E-2]
[null,null,null,null,null,null,null,null,null,null,"T07_3|RO","T07_3","RO","waver",4.7932091400000001E-2,4.49870853E-2,4.6305703400000002E-2,4.7115760399999998E-2,5.4141799099999999E-2,5.7425641999999999E-2,6.1628370600000003E-2,5.7084363700000001E-2,6.57456649E-2,6.9027802400000005E-2,5.9145248499999997E-2,5.8708203399999999E-2,5.8554687199999997E-2,6.7291434100000005E-2,6.2115739699999999E-2,6.5892529699999994E-2,7.3890708499999999E-2,6.2702113300000001E-2,7.2952854100000006E-2,7.5163117400000007E-2,7.92954097E-2,7.9914836500000003E-2,8.4216287700000003E-2,7.2072531300000006E-2,8.9585639300000006E-2,2.5201141199999999E-2]
[null,null,null,null,null,null,null,null,null,null,"T07_3|SE","T07_3","SE","waver","n.a.","n.a.","n.a.","n.a.",4.71121189E-2,4.5571724600000002E-2,4.3378263100000002E-2,3.8681977300000003E-2,3.73701242E-2,3.4481631300000003E-2,3.3416574400000003E-2,3.2984533500000003E-2,3.2079501000000003E-2,3.1735535400000001E-2,3.7129075499999997E-2,3.5976812400000002E-2,2.53306934E-2,2.7283306600000001E-2,3.0087469499999998E-2,2.8874081499999999E-2,2.2010793000000001E-2,2.5273575600000001E-2,2.72991138E-2,2.54916164E-2,2.5201141199999999E-2,6.4407090400000006E-2]
[null,null,null,null,null,null,null,null,null,null,"T07_3|SI","T07_3","SI","waver",1.7156879600000001E-2,2.3225516099999999E-2,1.65101413E-2,1.6877039699999999E-2,1.47162331E-2,1.35347935E-2,1.18707239E-2,1.2830823700000001E-2,1.16889206E-2,9.6380165000000007E-3,1.18495133E-2,9.1749537999999999E-3,3.8240308000000001E-2,4.0422264399999998E-2,3.8408884900000002E-2,4.0073894999999998E-2,4.1058553999999997E-2,4.3228098100000001E-2,4.1391641700000002E-2,4.0003598199999997E-2,3.82369267E-2,3.3099363899999998E-2,3.4519015600000001E-2,3.4028897400000001E-2,6.4407090400000006E-2,6.0876899999999998E-3]
[null,null,null,null,null,null,null,null,null,null,"T07_3|SK","T07_3","SK","waver",9.7277560000000006E-3,1.0096464600000001E-2,7.0634019999999999E-3,7.9371245E-3,8.5903095000000006E-3,8.3372997999999997E-3,1.1322767500000001E-2,1.2199542799999999E-2,8.0906617999999993E-3,2.91652482E-2,4.0677302399999997E-2,2.4235962900000001E-2,1.6803128399999999E-2,2.2481237099999999E-2,2.15237463E-2,1.3582957999999999E-2,1.25191001E-2,1.9018068999999999E-2,1.8466746199999998E-2,1.04587659E-2,4.5957215999999999E-3,3.5809804999999998E-3,1.0453976800000001E-2,7.0631056000000003E-3,6.0876899999999998E-3,0.1027557857]
[null,null,null,null,null,null,null,null,null,null,"T07_4|AT","T07_4","AT","waver",9.4611796799999995E-2,9.4152044700000007E-2,9.6944164400000005E-2,0.10058875370000001,9.75389916E-2,0.1017227133,0.1054343346,0.10849246899999999,0.1181734457,0.1228126708,0.12509826169999999,0.12901042169999999,0.1182925993,0.11918355999999999,0.1159932672,0.114899767,0.1062792731,0.10259214060000001,0.1010371291,0.1000670791,0.1035529434,0.1011615996,0.10441456440000001,0.10249353880000001,0.1027557857,8.7412296900000006E-2]
[null,null,null,null,null,null,null,null,null,null,"T07_4|BE","T07_4","BE","waver",7.3447917299999999E-2,7.09804193E-2,7.4488091899999997E-2,7.4997142500000002E-2,7.4888182999999997E-2,7.4703589799999998E-2,7.4722120599999997E-2,7.5618722799999996E-2,8.1163923799999996E-2,8.2573144099999995E-2,8.3981054499999999E-2,8.4567601399999998E-2,8.5936190400000001E-2,8.5734997300000004E-2,8.4414530299999999E-2,8.8701148499999993E-2,8.9784301900000002E-2,8.7569461400000007E-2,8.9202417000000006E-2,8.8026932399999994E-2,8.7580216500000002E-2,8.4671063699999993E-2,8.8154391400000004E-2,8.9306901499999994E-2,8.7412296900000006E-2,7.9066379300000003E-2]
[null,null,null,null,null,null,null,null,null,null,"T07_4|BG","T07_4","BG","waver",8.3423165600000002E-2,8.8860103400000001E-2,8.5830699699999999E-2,8.5869952799999996E-2,8.3481918799999999E-2,8.7305371300000004E-2,8.3442523399999996E-2,8.4806156800000004E-2,8.9415933399999994E-2,9.5582235200000004E-2,9.3742636300000001E-2,9.5961900000000003E-2,9.1768831199999998E-2,8.9184496000000002E-2,8.2673256900000006E-2,7.9889009799999994E-2,8.6591489800000004E-2,8.7746058399999993E-2,9.1670789200000005E-2,9.3796786199999996E-2,9.1675568900000004E-2,8.4947929800000002E-2,8.4919152400000003E-2,8.1477743500000005E-2,7.9066379300000003E-2,0.11108439959999999]
[null,null,null,null,null,null,null,null,null,null,"T07_4|CY","T07_4","CY","waver",0.10183433610000001,9.9277796299999999E-2,0.10325813239999999,0.10652843920000001,0.1144494444,0.1149454915,0.1182771693,0.1185084736,0.11125019880000001,0.10870642699999999,0.1142641932,0.1151625563,0.10887852369999999,0.1067604716,0.1086548665,0.136312357,0.12489557029999999,0.1232815711,0.1299092798,0.13098575330000001,0.1219582329,0.1223339313,0.12596841040000001,0.1274774186,0.11108439959999999,0.12101376279999999]
[null,null,null,null,null,null,null,null,null,null,"T07_4|CZ","T07_4","CZ","waver",0.13340730040000001,0.12817898829999999,0.12792197290000001,0.12762949909999999,0.12685419649999999,0.12674308879999999,0.12790652629999999,0.12920645610000001,0.12972076969999999,0.13139415630000001,0.1327600286,0.137204884,0.13392106840000001,0.1363172544,0.1341838682,0.1331489605,0.1173092161,0.1183714823,0.1171640469,0.1163617099,0.12548665710000001,0.1210438252,0.1237163532,0.1240968267,0.12101376279999999,0.1215693025]
[null,null,null,null,null,null,null,null,null,null,"T07_4|DE","T07_4","DE","waver",0.102061638,0.10322260480000001,0.1097005491,0.1155107663,0.1212396132,0.12653107550000001,0.12586665929999999,0.12879810420000001,0.13229987109999999,0.13180840739999999,0.13378736890000001,0.14159478640000001,0.13725692240000001,0.13496734760000001,0.13496620970000001,0.1338013616,0.1338854522,0.13035597730000001,0.13119437140000001,0.1246042235,0.1213264423,0.115112221,0.1152239945,0.1232237171,0.1215693025,8.6092910800000005E-2]
[null,null,null,null,null,null,null,null,null,null,"T07_4|DK","T07_4","DK","waver",7.9793215400000006E-2,7.9515919599999998E-2,8.0450973100000003E-2,8.48216636E-2,8.3551533900000002E-2,8.9648272700000003E-2,9.2047302400000003E-2,8.8831667700000005E-2,9.17453357E-2,8.8402193899999995E-2,8.96753198E-2,9.0646939300000007E-2,9.1297111E-2,9.4389837700000007E-2,9.4219800199999995E-2,9.6116212600000001E-2,9.6215410200000004E-2,9.38633158E-2,9.2696437699999995E-2,9.0855002500000004E-2,8.8198402800000006E-2,8.7903817600000003E-2,8.6739886000000002E-2,8.7960497499999998E-2,8.6092910800000005E-2,8.9939877700000004E-2]
[null,null,null,null,null,null,null,null,null,null,"T07_4|EE","T07_4","EE","waver","n.a.","n.a.","n.a.","n.a.","n.a.",0.1002325083,9.6339391600000004E-2,9.5074768300000001E-2,9.4817013199999994E-2,9.8903260399999998E-2,9.8683073699999999E-2,9.7552753000000006E-2,9.1022779400000003E-2,9.3724051099999997E-2,9.2257316800000003E-2,9.3053420600000006E-2,9.2915750300000002E-2,8.3649061299999994E-2,8.5056705499999996E-2,8.4534305399999995E-2,8.7124732600000004E-2,8.8195691100000001E-2,8.9096967400000004E-2,8.8635559899999994E-2,8.9939877700000004E-2,9.4769678400000001E-2]
[null,null,null,null,null,null,null,null,null,null,"T07_4|ES","T07_4","ES","waver",9.5524621599999998E-2,9.2027841599999993E-2,9.3798423000000006E-2,9.2401082900000001E-2,8.6178790800000002E-2,8.5430717000000003E-2,8.4899079399999994E-2,8.5765229700000001E-2,8.9797383800000005E-2,8.9531117600000001E-2,8.8214198699999996E-2,9.0380019500000006E-2,9.3126178700000006E-2,9.3747238199999999E-2,9.3409527800000003E-2,9.2919372E-2,9.5487338199999994E-2,9.4892584399999994E-2,9.4643002099999998E-2,9.3760952300000006E-2,9.4344956600000002E-2,9.1633426899999995E-2,9.2978484200000003E-2,9.3779569100000001E-2,9.4769678400000001E-2,0.10141064549999999]
[null,null,null,null,null,null,null,null,null,null,"T07_4|EU","T07_4","EU","waver",9.4400074099999995E-2,9.2878489300000006E-2,9.6220972900000007E-2,9.8803559200000002E-2,0.1008450558,0.10066713989999999,0.1003788452,0.1022228825,0.10333567590000001,0.1028355755,0.1039435353,0.1055606509,0.1050890335,0.1046925261,0.1045516192,0.1049501184,0.1054373416,0.103258896,0.1036541258,0.10117112039999999,0.1016373701,9.9286128500000001E-2,0.1002177804,0.1023292978,0.10141064549999999,8.8191323799999999E-2]
[null,null,null,null,null,null,null,null,null,null,"T07_4|FI","T07_4","FI","waver",8.0366196200000004E-2,8.1209284000000007E-2,8.3747404999999997E-2,8.5576212200000001E-2,8.9162192700000004E-2,8.8878128200000003E-2,8.9135543799999994E-2,8.9428421499999994E-2,9.1689143000000001E-2,8.5332178100000003E-2,8.4848899199999994E-2,8.4564419500000002E-2,8.5621550399999996E-2,8.5858870099999998E-2,8.4404822500000004E-2,8.3307840499999994E-2,9.9861418600000001E-2,9.2989339599999998E-2,9.3565212699999997E-2,9.4889637099999993E-2,9.8105991899999995E-2,8.9005635700000002E-2,8.7789962200000002E-2,8.9848878399999998E-2,8.8191323799999999E-2,9.9844891399999997E-2]
[null,null,null,null,null,null,null,null,null,null,"T07_4|FR","T07_4","FR","waver",9.2590528399999997E-2,9.09198004E-2,9.2670894200000006E-2,9.4866204199999998E-2,9.6555321999999999E-2,9.72256804E-2,9.6520046700000001E-2,9.7204279000000005E-2,9.6229768899999998E-2,9.77078423E-2,9.9691368099999997E-2,0.1007774134,0.1017625991,0.1019832592,0.10324962610000001,0.1030213588,0.10599521589999999,0.10339918250000001,0.1033324508,0.1012492343,0.1013029484,9.9184747200000006E-2,9.8671699099999996E-2,0.1016525148,9.9844891399999997E-2,0.10248824030000001]
[null,null,null,null,null,null,null,null,null,null,"T07_4|GB","T07_4","GB","waver",9.5539439399999995E-2,9.3584930999999996E-2,9.8250195600000007E-2,0.10168653499999999,0.1077334927,0.1039950701,0.1037818885,0.10670942059999999,0.1086619196,0.10506336970000001,0.10683789120000001,0.1053838694,0.10542662010000001,0.1025429853,0.1039162263,0.1063505584,0.10970990999999999,0.1072120021,0.10726047280000001,0.10121717230000001,0.10182478909999999,9.5542946200000006E-2,0.1009107387,0.1019077967,0.10248824030000001,7.1038389699999996E-2]
[null,null,null,null,null,null,null,null,null,null,"T07_4|GR","T07_4","GR","waver",6.8405999199999998E-2,6.4434965199999999E-2,6.6230756299999999E-2,6.7170646099999995E-2,7.3143888599999998E-2,7.3510528300000003E-2,6.8120581799999996E-2,6.9030709999999995E-2,7.2726883399999998E-2,7.2745482900000005E-2,7.4166378899999996E-2,7.4664863200000001E-2,7.6768970699999994E-2,7.7616536299999997E-2,7.7777173800000002E-2,7.8139835399999996E-2,7.6129209500000003E-2,7.59620077E-2,7.2399530899999995E-2,7.2354609900000005E-2,7.1005910699999994E-2,7.1027392999999994E-2,7.2513876000000005E-2,7.3819342499999996E-2,7.1038389699999996E-2,9.1287064900000006E-2]
[null,null,null,null,null,null,null,null,null,null,"T07_4|HR","T07_4","HR","waver",0.1043999015,0.1063175962,0.10376393320000001,9.8934595099999995E-2,0.1019155573,0.1025258171,0.1006212942,9.9310763199999999E-2,0.1008643432,0.1015755384,9.8478008899999997E-2,9.9713735100000006E-2,9.9185374199999995E-2,9.3810937699999999E-2,9.2567608199999998E-2,8.9408474799999998E-2,8.7295144699999994E-2,8.4849404399999995E-2,9.0452423599999998E-2,9.01266862E-2,9.2075973399999997E-2,9.0284395099999998E-2,9.1972302199999995E-2,9.31556895E-2,9.1287064900000006E-2,0.100061397]
[null,null,null,null,null,null,null,null,null,null,"T07_4|HU","T07_4","HU","waver",0.13474879479999999,0.13736280400000001,0.1387046448,0.1386508581,0.13357852249999999,0.1383016815,0.15305245449999999,0.1529778732,0.15246252769999999,0.1361878835,0.13596801659999999,0.13310433260000001,0.1269332369,0.1225087055,0.1166096512,0.11426422260000001,0.11711763729999999,0.1140337178,0.12125015829999999,0.1133072598,0.1096751658,0.10438663099999999,0.1024145147,0.10112426150000001,0.100061397,9.14744584E-2]
[null,null,null,null,null,null,null,null,null,null,"T07_4|IE","T07_4","IE","waver",5.5420491199999998E-2,5.59794552E-2,5.7894857199999997E-2,5.9774476299999997E-2,6.4589120099999994E-2,7.6805638300000006E-2,7.7557746799999994E-2,7.8937983200000006E-2,8.0540054799999997E-2,8.3847465499999996E-2,8.5902602800000005E-2,8.6397890000000005E-2,8.7948008499999994E-2,8.8909213200000003E-2,8.9955099600000005E-2,9.0353213700000004E-2,9.0077956599999995E-2,9.2183276999999994E-2,9.1975461499999994E-2,9.2892439800000004E-2,9.36044179E-2,9.4277292900000004E-2,9.6649389899999993E-2,9.6405045300000006E-2,9.14744584E-2,9.75097615E-2]
[null,null,null,null,null,null,null,null,null,null,"T07_4|IS","T07_4","IS","waver",0,0,0,0,0,0,0,0,0,0,0,0,0.1079722182,0.1067688918,0.10375263379999999,0.1003753262,0.1013190068,9.9277523399999998E-2,9.8192454900000004E-2,9.8859205300000003E-2,0.1026147005,0.1003602096,0.1000302189,9.7123648500000007E-2,9.75097615E-2,9.9108564600000004E-2]
[null,null,null,null,null,null,null,null,null,null,"T07_4|IT","T07_4","IT","waver",9.0574592499999995E-2,8.8268540100000001E-2,8.8587576000000001E-2,8.95769659E-2,8.82850102E-2,8.7985125400000003E-2,8.6806833999999999E-2,8.8450323400000003E-2,8.5856898500000001E-2,8.6185199599999998E-2,8.7268481499999995E-2,9.0201493600000002E-2,8.3526932100000006E-2,8.5548705500000002E-2,8.3924107499999998E-2,8.4113611899999996E-2,8.1403910699999998E-2,8.3683597299999996E-2,8.5489348699999995E-2,8.4241851399999998E-2,8.95264536E-2,9.0957392900000003E-2,9.4442788900000005E-2,9.7030755199999999E-2,9.9108564600000004E-2,8.5570852700000005E-2]
[null,null,null,null,null,null,null,null,null,null,"T07_4|LT","T07_4","LT","waver",8.3136110099999994E-2,8.97940609E-2,9.0014771899999999E-2,8.9274148600000006E-2,8.8329308300000006E-2,8.5262589999999999E-2,8.1157306499999998E-2,8.0001934199999999E-2,8.4146788E-2,8.42850978E-2,8.3831391699999994E-2,8.3756908800000002E-2,7.8043978999999999E-2,7.80875709E-2,7.6008299299999998E-2,7.5459193600000002E-2,8.02764688E-2,8.4317213799999999E-2,8.24278861E-2,7.9568300999999994E-2,8.6592397700000004E-2,8.3831085400000005E-2,8.3586618599999996E-2,8.2954710299999998E-2,8.5570852700000005E-2,8.8745754499999996E-2]
[null,null,null,null,null,null,null,null,null,null,"T07_4|LU","T07_4","LU","waver",7.2405290600000005E-2,6.8510582599999995E-2,9.2517936499999995E-2,9.42252809E-2,9.7641778299999996E-2,9.7553839099999998E-2,9.7617370699999997E-2,0.1012757975,0.11327288369999999,0.11494802430000001,8.6965453400000003E-2,8.6909057100000006E-2,8.9068461000000002E-2,8.7452378999999997E-2,8.8767593500000005E-2,8.6137534000000002E-2,8.7987429199999995E-2,8.6055345300000002E-2,8.5159840299999998E-2,8.3991071E-2,7.7429937200000007E-2,9.5897101100000007E-2,9.9236405200000002E-2,9.6598105000000004E-2,8.8745754499999996E-2,0.1082569325]
[null,null,null,null,null,null,null,null,null,null,"T07_4|LV","T07_4","LV","waver",0.1065431793,0.1094228347,0.1128878681,0.1165291306,0.1208117855,0.1205754837,0.1185840638,0.1201159555,0.1174879296,0.11828014990000001,0.1191539573,0.1194782746,0.11985455,0.1055903329,0.1080438172,9.6392453099999997E-2,9.7826045700000003E-2,0.1132890205,0.1098651452,0.1076703334,0.10847399000000001,0.1091712032,0.1095032829,0.1096195229,0.1082569325,9.5627961499999997E-2]
[null,null,null,null,null,null,null,null,null,null,"T07_4|MT","T07_4","MT","waver","n.a.","n.a.","n.a.","n.a.",0.1037488027,0.1026475964,9.7627579300000003E-2,9.0134492699999999E-2,8.8527231900000003E-2,8.9032288000000001E-2,8.9841230999999994E-2,8.8357023399999998E-2,8.5615649299999999E-2,8.5984634899999995E-2,8.6224616000000004E-2,8.2722090100000006E-2,8.5288060299999996E-2,8.6345196200000002E-2,8.9926497800000005E-2,9.2212659299999999E-2,9.3058132000000002E-2,9.3678940799999999E-2,9.4925781700000003E-2,9.5166467099999999E-2,9.5627961499999997E-2,0.132088554]
[null,null,null,null,null,null,null,null,null,null,"T07_4|NL","T07_4","NL","waver",0.11507006,0.11348005059999999,0.12047119890000001,0.12807083029999999,0.12938916340000001,0.12872355960000001,0.12967060829999999,0.13439915120000001,0.13302102839999999,0.13400903110000001,0.1338644121,0.1398733143,0.13859817560000001,0.13999395070000001,0.13267412370000001,0.13147509339999999,0.1315941115,0.1287515981,0.1356932709,0.14341505970000001,0.13807750050000001,0.13514976649999999,0.13689333619999999,0.13694968460000001,0.132088554,9.9092206299999999E-2]
[null,null,null,null,null,null,null,null,null,null,"T07_4|NO","T07_4","NO","waver",7.2866411300000003E-2,7.2644129599999996E-2,7.3104926099999995E-2,7.1268827300000004E-2,7.4438201400000001E-2,7.6239955700000001E-2,7.4786358799999994E-2,7.6231106600000001E-2,7.4843389600000004E-2,7.7159532899999994E-2,7.6401266300000006E-2,7.8203144299999999E-2,8.3797598500000001E-2,8.4739346100000001E-2,8.3286749199999996E-2,8.3375475700000007E-2,7.9113964600000003E-2,7.9878123999999995E-2,7.9110134100000007E-2,7.9514505999999999E-2,9.4393389699999997E-2,8.8254669499999994E-2,9.0306856399999996E-2,9.2597532100000005E-2,9.9092206299999999E-2,8.9735564200000006E-2]
[null,null,null,null,null,null,null,null,null,null,"T07_4|PL","T07_4","PL","waver",7.3698897299999996E-2,7.2934623500000004E-2,7.1593954200000004E-2,7.0641367799999993E-2,6.6936023299999994E-2,6.7355391299999998E-2,6.4737299700000001E-2,6.4915451400000004E-2,6.3209123300000003E-2,6.5239702900000002E-2,6.3868746599999998E-2,6.3354611000000005E-2,6.4008519700000002E-2,6.4885884000000005E-2,6.3716488399999993E-2,6.4242825500000003E-2,6.2242394899999998E-2,6.2699906099999994E-2,6.3102830799999995E-2,6.2683896500000003E-2,6.5188074100000007E-2,7.37263472E-2,7.75064382E-2,8.0626710700000007E-2,8.9735564200000006E-2,8.2924122200000006E-2]
[null,null,null,null,null,null,null,null,null,null,"T07_4|PT","T07_4","PT","waver",5.9905595800000003E-2,5.8013887100000001E-2,5.9774574599999998E-2,6.1321521499999997E-2,5.9550705000000002E-2,6.0798871900000002E-2,6.0609885600000003E-2,6.1395242500000002E-2,6.7856855600000002E-2,6.5288042199999993E-2,6.69144297E-2,6.7401940399999999E-2,7.3954932500000001E-2,7.5141824800000007E-2,7.5047227100000002E-2,7.6029392599999995E-2,7.9015172600000003E-2,7.8172064099999994E-2,7.9176197800000001E-2,7.9334007900000003E-2,8.2179285800000001E-2,8.1571506399999993E-2,8.2816312399999994E-2,8.4232352799999993E-2,8.2924122200000006E-2,0.14987283109999999]
[null,null,null,null,null,null,null,null,null,null,"T07_4|RO","T07_4","RO","waver",0.1325267148,0.1348652756,0.12647352040000001,0.12643448600000001,0.12911220409999999,0.1486366707,0.1484259695,0.15136643599999999,0.155840601,0.16540346419999999,0.17157721140000001,0.17538697010000001,0.17001638590000001,0.1670499527,0.15073524099999999,0.14815107650000001,0.15178727880000001,0.1449780057,0.14239780930000001,0.13793201829999999,0.14471919699999999,0.1413313424,0.15049802670000001,0.1530237579,0.14987283109999999,8.7484214500000004E-2]
[null,null,null,null,null,null,null,null,null,null,"T07_4|SE","T07_4","SE","waver","n.a.","n.a.","n.a.","n.a.",0.1164724581,0.1169994233,0.1146224555,0.1174833049,0.12051095539999999,0.1180328755,0.11892444119999999,0.1191861119,0.12145266740000001,0.12112142369999999,0.1190987766,0.1203046995,8.2963185600000003E-2,8.3319230800000005E-2,8.2706377400000003E-2,8.1681585299999998E-2,8.3933359499999999E-2,8.2917643799999996E-2,8.5114529499999994E-2,8.6630476299999995E-2,8.7484214500000004E-2,8.3834003099999999E-2]
[null,null,null,null,null,null,null,null,null,null,"T07_4|SI","T07_4","SI","waver",0.13373337800000001,0.1151037439,0.11663264399999999,0.1176737985,0.1169909572,0.11458662779999999,0.11725911679999999,0.1186664085,0.11533799040000001,0.1189151024,0.1168690436,0.1171373223,0.11026376340000001,0.10532638449999999,0.1040175502,0.1043511095,0.107430344,0.1050415171,0.1014097175,0.10032583840000001,0.10049470150000001,9.7425346800000007E-2,9.9021259599999994E-2,0.1019864841,8.3834003099999999E-2,8.0332141499999996E-2]
[null,null,null,null,null,null,null,null,null,null,"T07_4|SK","T07_4","SK","waver",0.1046234493,0.1039191195,0.1056793509,0.1058593338,0.1030169224,0.10951282349999999,0.11620202289999999,0.11966163639999999,0.1179482194,0.1221620215,0.1206316912,0.12662389660000001,0.118552874,0.11410878200000001,0.10718150479999999,0.10664472699999999,8.6869781199999996E-2,8.2590938500000002E-2,8.2287785500000002E-2,8.1418235000000005E-2,8.2737030200000006E-2,8.4379381599999997E-2,8.3835685699999996E-2,8.5389444499999995E-2,8.0332141499999996E-2,2.5291441000000001E-2]
[null,null,null,null,null,null,null,null,null,null,"T10_2|AT","T10_2","AT","waver",3.0603463300000001E-2,7.2523932000000003E-3,1.5186095E-2,2.22842587E-2,3.0258373799999998E-2,6.7548130000000001E-3,1.1042152600000001E-2,1.6604698899999999E-2,2.42354558E-2,6.5236063E-3,1.3365753100000001E-2,1.97843264E-2,2.6503013299999999E-2,6.5112798999999999E-3,1.3614872E-2,2.06314771E-2,2.78924633E-2,6.3557891000000002E-3,1.3135025200000001E-2,1.97892143E-2,2.7439849799999999E-2,6.0211789000000002E-3,1.25126869E-2,1.87535819E-2,2.5291441000000001E-2,1.7766166699999999E-2]
[null,null,null,null,null,null,null,null,null,null,"T10_2|BE","T10_2","BE","waver",1.5470882199999999E-2,4.1272193000000002E-3,9.0736615E-3,1.3119079800000001E-2,1.7565319999999999E-2,4.0805179000000004E-3,8.2087631000000005E-3,1.26552112E-2,1.7255152400000001E-2,4.3746584000000002E-3,8.8903209E-3,1.33846765E-2,1.8043402199999999E-2,4.3915852999999996E-3,8.7714325000000006E-3,1.3338919600000001E-2,1.8180895700000001E-2,4.3329752999999999E-3,9.2540256999999997E-3,1.34602844E-2,1.86226673E-2,3.4668231E-3,8.3971888000000001E-3,1.30967058E-2,1.7766166699999999E-2,3.6993829200000002E-2]
[null,null,null,null,null,null,null,null,null,null,"T10_2|BG","T10_2","BG","waver",5.7597760200000001E-2,1.3615027300000001E-2,2.7303882200000001E-2,4.0532471100000002E-2,5.8993349899999999E-2,1.20185914E-2,2.62549402E-2,3.9284985100000003E-2,5.0826793199999998E-2,1.0384891199999999E-2,2.3242472600000001E-2,3.5408886200000003E-2,4.7126383299999998E-2,1.0256753E-2,2.1789739799999999E-2,3.3802701599999999E-2,4.6966981900000003E-2,8.8496248000000007E-3,2.17176665E-2,3.1878640100000001E-2,4.3205192099999998E-2,7.7887166000000004E-3,1.8833682800000001E-2,2.7881930900000001E-2,3.6993829200000002E-2,2.5101860600000001E-2]
[null,null,null,null,null,null,null,null,null,null,"T10_2|CY","T10_2","CY","waver",4.2488211800000002E-2,9.7227111999999994E-3,2.29932316E-2,2.6683899000000001E-2,3.6515693600000003E-2,8.4159161000000003E-3,1.8992212500000001E-2,2.7173723E-2,3.5750680100000001E-2,8.1728355999999992E-3,1.7025488700000001E-2,2.4779670300000001E-2,3.2828751400000002E-2,6.9557322999999997E-3,1.2867358299999999E-2,2.1893471300000002E-2,2.9772742800000002E-2,6.7485801000000002E-3,1.412213E-2,2.09337458E-2,2.7795538599999999E-2,6.0902630999999999E-3,1.2222889900000001E-2,1.8161944999999999E-2,2.5101860600000001E-2,2.40555291E-2]
[null,null,null,null,null,null,null,null,null,null,"T10_2|CZ","T10_2","CZ","waver",3.76717045E-2,9.3313892999999995E-3,1.87780967E-2,2.7734281900000001E-2,3.7440368199999997E-2,8.6576281000000001E-3,1.8765362800000001E-2,2.6974503300000001E-2,3.5950495999999998E-2,7.8342106000000005E-3,1.5933435400000001E-2,2.31290361E-2,3.19893152E-2,6.9483301000000004E-3,1.33952172E-2,2.04162055E-2,2.8558145199999999E-2,7.0442209999999998E-3,1.43832487E-2,2.07002186E-2,2.9130822600000002E-2,5.7020919999999998E-3,1.1914767600000001E-2,1.74367832E-2,2.40555291E-2,1.56128382E-2]
[null,null,null,null,null,null,null,null,null,null,"T10_2|DE","T10_2","DE","waver",1.5415429200000001E-2,4.4653330000000001E-3,9.0238893000000008E-3,1.29684876E-2,1.6689494199999998E-2,4.0860807000000004E-3,7.6838319999999998E-3,1.16113467E-2,1.57551792E-2,4.0933361E-3,8.1039079000000003E-3,1.11014458E-2,1.49806192E-2,3.8315112000000002E-3,7.4961107000000001E-3,1.12030693E-2,1.48923284E-2,3.7100722000000001E-3,7.5414886999999996E-3,1.09101233E-2,1.52230469E-2,3.3947351999999999E-3,7.5557894000000004E-3,1.1370656200000001E-2,1.56128382E-2,1.1541899E-2]
[null,null,null,null,null,null,null,null,null,null,"T10_2|DK","T10_2","DK","waver",1.20961321E-2,3.134361E-3,6.7988158E-3,9.7231161999999996E-3,1.31519464E-2,3.3496787999999999E-3,6.9166732999999996E-3,1.0653248400000001E-2,1.0990097399999999E-2,2.8708025000000002E-3,5.5987818E-3,8.2207037E-3,1.05198953E-2,3.3138339999999999E-3,6.5423462000000002E-3,9.7507862000000001E-3,1.2885888200000001E-2,3.1632866000000002E-3,6.1363119000000001E-3,8.8809781000000008E-3,1.25184514E-2,1.9847772000000001E-3,5.3132036999999997E-3,8.3706632999999992E-3,1.1541899E-2,2.6044359999999999E-2]
[null,null,null,null,null,null,null,null,null,null,"T10_2|EE","T10_2","EE","waver","n.a.","n.a.","n.a.","n.a.","n.a.",7.5518724000000004E-3,1.6276584399999999E-2,2.3921986100000001E-2,3.1810379799999997E-2,7.5734210999999999E-3,1.54231475E-2,2.2861312599999999E-2,2.63712171E-2,8.7153344000000001E-3,1.6041074400000001E-2,2.3270105199999998E-2,3.0591844199999999E-2,8.2685552999999992E-3,1.7756144200000001E-2,2.6051337800000001E-2,3.4729786499999998E-2,7.9425291999999995E-3,1.4228045E-2,2.0470034500000001E-2,2.6044359999999999E-2,2.5195413199999999E-2]
[null,null,null,null,null,null,null,null,null,null,"T10_2|ES","T10_2","ES","waver",2.8928147599999999E-2,7.5582113000000001E-3,1.5559972599999999E-2,2.3221549000000001E-2,3.0206622700000001E-2,6.8706645E-3,1.3913855399999999E-2,2.1021378100000002E-2,2.77913194E-2,7.4111710000000003E-3,1.4872776900000001E-2,2.22554698E-2,2.9720345700000001E-2,7.3392426000000004E-3,1.45045617E-2,2.1469639499999998E-2,2.84622208E-2,7.1387433999999996E-3,1.43048798E-2,2.1536124E-2,2.8802852800000001E-2,7.0408359000000004E-3,1.35650131E-2,2.0202818000000001E-2,2.5195413199999999E-2,1.9393910300000001E-2]
[null,null,null,null,null,null,null,null,null,null,"T10_2|EU","T10_2","EU","waver",2.0432933800000001E-2,5.5202428999999997E-3,1.11899081E-2,1.6247258399999999E-2,2.1742737500000001E-2,5.1841201E-3,1.0283894700000001E-2,1.52071659E-2,2.0472515399999999E-2,5.5140713000000003E-3,1.0771811900000001E-2,1.56180764E-2,2.0959236700000002E-2,5.4707703999999999E-3,1.06318965E-2,1.5833975E-2,2.1045327400000001E-2,5.3488218000000004E-3,1.04777247E-2,1.5394728E-2,2.1079275599999999E-2,4.7824985000000002E-3,9.6997991999999995E-3,1.4429245E-2,1.9393910300000001E-2,1.5586367800000001E-2]
[null,null,null,null,null,null,null,null,null,null,"T10_2|FI","T10_2","FI","waver",1.03660022E-2,2.8287834999999998E-3,5.6643702000000002E-3,8.3260113999999996E-3,1.13433206E-2,2.6533883000000001E-3,5.1485343999999999E-3,7.8136785000000007E-3,1.21871944E-2,5.1345009999999996E-3,9.2369240000000005E-3,1.3126898600000001E-2,1.8559925599999999E-2,4.2116033999999997E-3,7.4555228999999999E-3,1.10847581E-2,1.6184816500000001E-2,3.7197479000000001E-3,7.4329378999999996E-3,1.11240369E-2,1.54468698E-2,3.5169596999999999E-3,7.3347096000000002E-3,1.12863076E-2,1.5586367800000001E-2,1.7815434099999999E-2]
[null,null,null,null,null,null,null,null,null,null,"T10_2|FR","T10_2","FR","waver",2.00095881E-2,5.2381872000000001E-3,1.10118006E-2,1.6115245899999998E-2,2.1520298E-2,5.1511359000000001E-3,1.07298172E-2,1.5815302E-2,2.1355151100000001E-2,5.4512935999999996E-3,1.0627005700000001E-2,1.5298729699999999E-2,2.0811413099999999E-2,5.3291948E-3,1.0638208E-2,1.5724973600000001E-2,2.0907686599999999E-2,5.0207612000000004E-3,1.0031612699999999E-2,1.45647738E-2,2.0091087000000001E-2,4.1979466999999999E-3,8.5719908999999997E-3,1.2989272899999999E-2,1.7815434099999999E-2,1.64783623E-2]
[null,null,null,null,null,null,null,null,null,null,"T10_2|GB","T10_2","GB","waver",1.92398246E-2,5.4761315000000001E-3,1.06155464E-2,1.5452348600000001E-2,2.1120276399999999E-2,5.1228949999999997E-3,9.3483686999999999E-3,1.33403907E-2,1.8639212400000001E-2,5.8658887999999999E-3,1.00217819E-2,1.4844304399999999E-2,1.9355714699999998E-2,5.5070249E-3,1.0072705100000001E-2,1.5167588399999999E-2,1.9780483500000001E-2,5.5077030000000001E-3,9.9211791999999997E-3,1.47947125E-2,2.0051898299999999E-2,5.2259415999999998E-3,9.0308776000000007E-3,1.2794162E-2,1.64783623E-2,3.5198829799999998E-2]
[null,null,null,null,null,null,null,null,null,null,"T10_2|GR","T10_2","GR","waver",2.8922257400000002E-2,6.9671769999999997E-3,1.4413981100000001E-2,2.1326694E-2,2.4046643699999998E-2,6.4924090000000002E-3,1.404059E-2,2.11820193E-2,2.7932793800000001E-2,7.5643176999999999E-3,1.52475471E-2,2.3050324399999999E-2,3.0507976999999999E-2,8.1784709999999997E-3,1.5937298900000001E-2,2.3897017600000001E-2,3.09398309E-2,7.6865798000000001E-3,1.55548211E-2,2.3456127699999999E-2,3.25561137E-2,9.9321801999999997E-3,1.80355767E-2,2.5651031500000001E-2,3.5198829799999998E-2,3.3786214799999999E-2]
[null,null,null,null,null,null,null,null,null,null,"T10_2|HR","T10_2","HR","waver",4.2233211299999997E-2,9.4716465999999996E-3,2.0496927099999999E-2,3.1399967600000002E-2,3.9349897299999999E-2,9.5584533000000003E-3,2.2857168000000001E-2,3.4599746100000002E-2,4.60650778E-2,1.0795652899999999E-2,2.2267129699999999E-2,3.3623898700000002E-2,4.5450961599999999E-2,9.9583002000000007E-3,2.1046975799999999E-2,3.1561048299999998E-2,4.1848607099999997E-2,9.9142533999999997E-3,2.02617254E-2,2.9943876599999999E-2,3.8826365799999998E-2,8.3757106000000008E-3,1.73681628E-2,2.5940208900000001E-2,3.3786214799999999E-2,4.9728006700000001E-2]
[null,null,null,null,null,null,null,null,null,null,"T10_2|HU","T10_2","HU","waver",7.3567558800000002E-2,1.1860820899999999E-2,2.57893124E-2,4.0235676800000002E-2,5.6808748300000003E-2,1.48069329E-2,2.9791269799999999E-2,4.4613595999999998E-2,6.1889683500000001E-2,1.5940108200000001E-2,3.1702736799999999E-2,4.6552555699999998E-2,6.02524194E-2,1.51535386E-2,3.0488085500000001E-2,4.6977113100000002E-2,6.2230711100000002E-2,1.45587752E-2,2.99924627E-2,4.2810195699999998E-2,5.7461817599999999E-2,1.31257901E-2,2.57413485E-2,3.8056302E-2,4.9728006700000001E-2,2.46930754E-2]
[null,null,null,null,null,null,null,null,null,null,"T10_2|IE","T10_2","IE","waver",1.73782689E-2,4.7666147000000004E-3,1.04355487E-2,1.5322505599999999E-2,2.0629502800000001E-2,5.8024912999999996E-3,1.2860758700000001E-2,1.9409221000000001E-2,2.6430786500000001E-2,6.8504394999999996E-3,1.3939022000000001E-2,2.1111821999999999E-2,2.85312094E-2,7.1276309999999997E-3,1.4621502999999999E-2,2.18635407E-2,2.86096541E-2,7.6048723E-3,1.51875525E-2,2.2172666600000002E-2,2.88549375E-2,6.1822398999999998E-3,1.24330958E-2,1.8664939299999999E-2,2.46930754E-2,3.46651917E-2]
[null,null,null,null,null,null,null,null,null,null,"T10_2|IS","T10_2","IS","waver",0,0,0,0,0,0,0,0,0,0,0,0,4.5225410299999998E-2,1.15458955E-2,2.2083205000000002E-2,3.1401957100000003E-2,3.9733133400000002E-2,1.066026E-2,2.0483764599999999E-2,3.0226776399999999E-2,4.1717097100000003E-2,6.6181401999999999E-3,1.6031370600000001E-2,2.3513937700000001E-2,3.46651917E-2,2.2461028800000001E-2]
[null,null,null,null,null,null,null,null,null,null,"T10_2|IT","T10_2","IT","waver",2.77865604E-2,7.8244439999999998E-3,1.50573631E-2,2.0888807799999999E-2,2.8806090100000001E-2,7.1956824999999999E-3,1.4364551999999999E-2,2.0294141500000001E-2,2.57258621E-2,6.9832727999999998E-3,1.5747668900000001E-2,2.1067042000000001E-2,2.79558232E-2,7.4483372000000003E-3,1.4047747399999999E-2,1.95705987E-2,2.60683788E-2,7.2234954999999997E-3,1.37764681E-2,1.9282917399999999E-2,2.6379508400000001E-2,6.9504051999999998E-3,1.23457666E-2,1.6774397900000002E-2,2.2461028800000001E-2,2.3657841999999998E-2]
[null,null,null,null,null,null,null,null,null,null,"T10_2|LT","T10_2","LT","waver",2.82762051E-2,6.2887432000000004E-3,1.2338827599999999E-2,1.8713719399999999E-2,2.4798725399999999E-2,6.0370781999999996E-3,1.3754571199999999E-2,2.0181131500000001E-2,2.6310414399999999E-2,6.3258326999999998E-3,1.2812872499999999E-2,1.87627982E-2,2.4837774699999999E-2,6.3543643999999996E-3,1.29569479E-2,1.9624151400000001E-2,2.7062589599999999E-2,6.999941E-3,1.43170585E-2,2.1541894799999999E-2,2.8208414000000001E-2,6.2906769000000001E-3,1.2748946299999999E-2,1.8564827999999998E-2,2.3657841999999998E-2,1.8566088000000001E-2]
[null,null,null,null,null,null,null,null,null,null,"T10_2|LU","T10_2","LU","waver",1.9510688599999999E-2,4.2315475000000002E-3,1.04247347E-2,1.5083403699999999E-2,2.0395774700000001E-2,4.6051317E-3,8.9842697999999999E-3,1.3197907700000001E-2,1.9783221199999999E-2,4.4920956999999996E-3,9.1391917999999999E-3,1.3544096699999999E-2,1.54035431E-2,3.6523117999999999E-3,7.3382511999999997E-3,1.3666955E-2,1.8208874100000001E-2,4.1063729000000004E-3,8.4735078000000002E-3,1.24403953E-2,1.6704791699999999E-2,4.0076427999999999E-3,8.5234898000000007E-3,1.25814099E-2,1.8566088000000001E-2,2.92669846E-2]
[null,null,null,null,null,null,null,null,null,null,"T10_2|LV","T10_2","LV","waver",3.3486451399999999E-2,8.1274854000000004E-3,1.6554288800000001E-2,2.4321194899999999E-2,3.2337807000000003E-2,7.5487636999999998E-3,1.8254767299999999E-2,2.6399722699999999E-2,3.4729394800000001E-2,8.0197754E-3,1.59610294E-2,2.4373460199999999E-2,3.2325690999999997E-2,7.2082283000000002E-3,1.35496969E-2,2.3557648800000001E-2,3.0362222500000001E-2,8.4538960000000007E-3,1.7005591399999999E-2,2.4912387000000001E-2,3.2728180099999997E-2,7.3993998000000004E-3,1.24767201E-2,1.96870775E-2,2.92669846E-2,1.9032250699999999E-2]
[null,null,null,null,null,null,null,null,null,null,"T10_2|MT","T10_2","MT","waver","n.a.","n.a.","n.a.","n.a.",1.53134642E-2,1.22238972E-2,1.73399334E-2,2.3951546800000001E-2,1.50596224E-2,1.18548747E-2,1.4041061800000001E-2,1.99183195E-2,2.5542222699999999E-2,8.6172200000000001E-3,1.07083465E-2,1.6193513400000002E-2,2.2121512100000001E-2,8.3047138000000003E-3,1.03856881E-2,1.5858522399999998E-2,2.1340824000000001E-2,4.6482876000000003E-3,9.2162984999999992E-3,1.4099560000000001E-2,1.9032250699999999E-2,1.7713873799999998E-2]
[null,null,null,null,null,null,null,null,null,null,"T10_2|NL","T10_2","NL","waver",1.7372965800000001E-2,4.4891756999999996E-3,9.6378793000000008E-3,1.3888292300000001E-2,1.8645462799999998E-2,4.0177327000000002E-3,8.5540298999999993E-3,1.3178304300000001E-2,1.8719553100000001E-2,4.5643838000000003E-3,9.5372250999999995E-3,1.41305081E-2,1.9191591099999999E-2,4.7352080999999999E-3,9.5714923999999993E-3,1.4675432299999999E-2,1.9757738800000001E-2,4.5006129999999997E-3,9.3204965000000008E-3,1.4058200200000001E-2,1.9103761100000002E-2,4.3288874999999997E-3,8.7659448999999993E-3,1.3121588599999999E-2,1.7713873799999998E-2,2.0514317899999999E-2]
[null,null,null,null,null,null,null,null,null,null,"T10_2|NO","T10_2","NO","waver",1.87937309E-2,5.4454285000000002E-3,1.0430699999999999E-2,1.44004943E-2,1.95396953E-2,5.0127781000000003E-3,9.92905E-3,1.51363101E-2,2.27546317E-2,4.4005496000000003E-3,9.1337640000000008E-3,1.42239514E-2,1.9069919099999999E-2,4.7283942000000004E-3,9.5788755000000003E-3,1.5155352800000001E-2,2.02204655E-2,5.3065198000000003E-3,1.08376294E-2,1.61019362E-2,2.1746050400000001E-2,5.1738792000000002E-3,1.05040729E-2,1.50342705E-2,2.0514317899999999E-2,3.6268619699999997E-2]
[null,null,null,null,null,null,null,null,null,null,"T10_2|PL","T10_2","PL","waver",4.5039908400000002E-2,1.14395103E-2,2.2226648599999999E-2,3.2955241199999999E-2,4.3756669800000002E-2,1.1027101100000001E-2,2.2996723100000001E-2,3.4339952799999997E-2,4.3989872700000002E-2,1.0947665299999999E-2,2.2247643500000001E-2,3.3379482500000002E-2,4.5179785799999997E-2,1.10215546E-2,2.17553399E-2,3.2822966500000002E-2,4.3016183999999999E-2,1.0710062100000001E-2,2.1981984999999999E-2,3.2690256600000002E-2,4.3441408000000001E-2,9.6623051000000008E-3,1.8876394899999999E-2,2.75489898E-2,3.6268619699999997E-2,2.1913960900000001E-2]
[null,null,null,null,null,null,null,null,null,null,"T10_2|PT","T10_2","PT","waver",2.2137545200000001E-2,6.6935177999999998E-3,1.2708432E-2,1.8278816199999999E-2,2.4002129300000001E-2,5.0383931E-3,1.1002095599999999E-2,1.6667761600000001E-2,2.1550743300000001E-2,5.0222783999999999E-3,1.1341466099999999E-2,1.7454548E-2,2.6782771600000001E-2,6.0603337E-3,1.1457230299999999E-2,1.7745828599999999E-2,2.2065156200000002E-2,5.8778982000000004E-3,1.1442222199999999E-2,1.7294205100000001E-2,2.2495641899999998E-2,5.6648198E-3,1.05545958E-2,1.6363851400000001E-2,2.1913960900000001E-2,4.6775309000000001E-2]
[null,null,null,null,null,null,null,null,null,null,"T10_2|RO","T10_2","RO","waver",5.6900167600000003E-2,1.3432868800000001E-2,2.5992083799999999E-2,4.0226123699999998E-2,5.5402206799999999E-2,1.3014264100000001E-2,2.81606132E-2,4.1863393899999997E-2,5.2950253500000002E-2,1.2066726200000001E-2,2.56499486E-2,3.8309664700000003E-2,4.9395065500000002E-2,1.2457073900000001E-2,2.65956054E-2,4.0975294500000002E-2,5.3073278600000003E-2,1.25993945E-2,2.62561028E-2,4.0362833799999998E-2,5.2510483300000001E-2,1.11734274E-2,2.32688203E-2,3.5239330300000003E-2,4.6775309000000001E-2,1.6320921200000001E-2]
[null,null,null,null,null,null,null,null,null,null,"T10_2|SE","T10_2","SE","waver","n.a.","n.a.","n.a.","n.a.",1.5906156500000001E-2,3.5925735000000001E-3,7.4039242000000002E-3,1.1190357200000001E-2,1.6123565199999999E-2,3.9346991999999999E-3,7.9092703E-3,1.18397486E-2,1.6481802100000002E-2,3.9856739000000002E-3,8.1358868000000004E-3,1.21472569E-2,1.7281851500000001E-2,4.0882358000000002E-3,8.2490559999999994E-3,1.2020507999999999E-2,1.69810073E-2,2.968296E-3,7.3086052000000002E-3,1.13834643E-2,1.6320921200000001E-2,3.1925326599999998E-2]
[null,null,null,null,null,null,null,null,null,null,"T10_2|SI","T10_2","SI","waver",4.3143072099999999E-2,9.9920658999999995E-3,2.0479388000000001E-2,2.8842562200000001E-2,3.8812680000000002E-2,9.5439148000000008E-3,1.57202413E-2,2.46647477E-2,3.3207908899999999E-2,9.3801613999999998E-3,1.7622404099999999E-2,2.6520826800000001E-2,3.4951446300000001E-2,9.2336718000000009E-3,1.7577643800000001E-2,2.6565935299999999E-2,3.6508407999999999E-2,9.5824838999999992E-3,1.9045258200000002E-2,2.7772399900000001E-2,3.6281840500000002E-2,7.6680502999999997E-3,1.69636713E-2,2.61141132E-2,3.1925326599999998E-2,2.79609392E-2]
[null,null,null,null,null,null,null,null,null,null,"T10_2|SK","T10_2","SK","waver",4.4046405300000001E-2,1.09560097E-2,2.1897691800000001E-2,3.2526833800000002E-2,4.1879251100000001E-2,9.5539874E-3,2.11317912E-2,3.0297870899999999E-2,3.9482385600000003E-2,8.5946040000000005E-3,1.77101598E-2,2.6256035899999999E-2,3.4669998399999999E-2,8.4560673999999995E-3,1.64845546E-2,2.4529563800000001E-2,3.2239104800000001E-2,7.1150409000000003E-3,1.40314185E-2,2.1271249499999999E-2,2.8915871100000001E-2,5.9286723E-3,1.41216356E-2,2.10153782E-2,2.79609392E-2,11.866378508]
[null,null,null,null,null,null,null,null,null,null,"T10_3|AT","T10_3","AT","waver",14.012633511000001,14.252063564,14.096490464,14.068052214,13.930193990999999,13.610340422,13.414633255,13.059800558999999,13.190015728000001,12.696598197,12.457858332000001,12.191129534,12.052649225,11.95515417,11.990313179999999,11.918372391,11.804841852999999,11.725339124,11.753916552,11.735531587000001,11.612600887999999,11.754495886000001,11.982042984,11.935689985,11.866378508,13.799175949]
[null,null,null,null,null,null,null,null,null,null,"T10_3|BE","T10_3","BE","waver",18.306676556999999,18.271481807000001,17.724206102,17.462526234999999,17.517604691999999,17.432054924999999,17.489133633000002,17.249222473,16.650607480000001,16.188436398,16.049323563000002,15.807102499999999,15.340465422999999,14.379574440000001,14.313804991,14.17212879,13.944584524,14.050104265,13.947196833,14.055499488000001,13.555650591999999,14.082553953,14.178960088,13.992205283000001,13.799175949,7.7046076300999999]
[null,null,null,null,null,null,null,null,null,null,"T10_3|BG","T10_3","BG","waver",7.4881703024000004,7.4240111144999998,7.6733015111,7.6059091757999999,7.6309791422000002,7.8645028797999998,7.8494357086999997,7.7161582939000004,7.7278295507000001,7.8156496736000003,7.6936863337999997,7.5920565284999997,7.4500639569000002,7.3966084029000001,7.4898134766000002,7.4445008140000004,6.8537609880000003,6.8416028753000004,7.2658151545000003,7.3979611128,7.3363873991000004,7.6867710999999996,7.6489681955000002,7.6076317033,7.7046076300999999,11.821226601999999]
[null,null,null,null,null,null,null,null,null,null,"T10_3|CY","T10_3","CY","waver",9.8242063513000009,9.3087690815999995,9.1569796621999995,9.2325255217999995,9.3109090720999994,9.1474963241000005,9.1198959670999997,9.0588562938999999,9.2086790168999997,9.1408438143000001,9.6226084910999994,9.6778588048999996,9.7555636581999998,10.640103705,11.064823186,11.595441718,11.297381797,11.997507858000001,11.933302568,11.731954980999999,12.031593306,11.461743972000001,11.824056993999999,11.772607383,11.821226601999999,12.021920507999999]
[null,null,null,null,null,null,null,null,null,null,"T10_3|CZ","T10_3","CZ","waver",9.1317226779999991,9.1195210438000007,9.6143571859999994,9.5258985021000004,9.1166113406000004,9.1863006513999999,9.7605588007000001,9.6851342841000001,9.5417349914000003,10.943666619,11.189893078000001,11.299930354000001,10.927515954,12.117474631,12.772951156,12.706103639,12.110395669000001,12.698271966,13.035270228,12.963953924,12.242080927,12.675364426,12.5004075,12.38549268,12.021920507999999,17.80120763]
[null,null,null,null,null,null,null,null,null,null,"T10_3|DE","T10_3","DE","waver",22.459928616999999,22.149150574,21.096775167000001,21.614879690999999,19.618714195999999,19.436156071999999,19.717692457999998,19.361226514999998,18.821848822,18.745788601000001,18.38651686,18.426798328,18.179843997999999,17.861515343000001,17.764199193,17.61270103,17.350169404999999,18.427341120000001,18.628598190999998,18.759802006000001,17.724833274000002,18.366844308000001,18.210312047999999,18.136847998,17.80120763,19.198156218000001]
[null,null,null,null,null,null,null,null,null,null,"T10_3|DK","T10_3","DK","waver",21.184907106000001,20.951475171999999,20.194866449999999,19.905301904000002,19.771205827999999,18.877245109,18.912992990999999,18.777711448000002,24.264801604999999,25.749708031000001,25.559555923000001,25.238445659,25.146353717,18.612864698999999,18.540258359999999,18.468794124999999,18.262620117000001,18.768775510000001,18.836233829000001,19.078190685999999,18.513306424,19.285224297999999,19.256332549,19.144288232000001,19.198156218000001,8.1458752757999999]
[null,null,null,null,null,null,null,null,null,null,"T10_3|EE","T10_3","EE","waver","n.a.","n.a.","n.a.","n.a.","n.a.",5.9685038390000003,5.9574770719999997,5.9420712192999998,5.9114073223999997,6.0143103323,5.9222325972999998,5.9338238808000003,6.2987399396999999,6.5016427223999997,6.5340556747000003,6.4985112388999999,6.5242157561000003,6.8170962237000001,6.9702364471999996,7.1016340377000002,7.1086035183999998,7.4107577197000003,7.6718912503999999,7.7280844762000003,8.1458752757999999,14.670684267]
[null,null,null,null,null,null,null,null,null,null,"T10_3|ES","T10_3","ES","waver",14.392524141000001,13.611159107000001,13.667904388,13.671671689,13.650080900000001,13.504159377000001,13.448449852,13.21249577,13.313952575,13.035702594,13.275717829,13.214513839,13.260652461999999,13.581283697,13.659580078999999,13.584789998,13.552857996,13.623190173999999,13.628029976000001,13.609221824,13.558138157,14.009283432,14.702461108,14.563999999,14.670684267,15.133151718000001]
[null,null,null,null,null,null,null,null,null,null,"T10_3|EU","T10_3","EU","waver",17.591747267999999,17.138493022999999,16.821281647999999,16.759514868,16.166710742999999,15.767669195,15.908976040000001,15.621892687000001,15.420985012999999,15.248139868000001,15.309122777000001,15.188297787,14.963079348999999,14.831403076000001,14.950907578000001,14.854004015999999,14.658320363,14.977978307000001,15.046359027999999,15.145900620000001,14.748603315,15.199473284,15.355544503999999,15.296218837,15.133151718000001,14.574141456]
[null,null,null,null,null,null,null,null,null,null,"T10_3|FI","T10_3","FI","waver",24.135817256999999,25.454777602,24.097607058000001,22.726383867999999,21.155075368999999,19.376589275000001,19.583823109000001,18.970149981999999,17.689901661,12.82180761,12.539981112,12.403516894999999,12.343213156999999,12.049238353,12.157391995999999,11.964947264999999,14.770389782000001,15.467666276999999,15.200287335000001,15.303219030999999,14.822999063999999,15.557362551000001,15.460462247000001,15.15050366,14.574141456,15.812601523]
[null,null,null,null,null,null,null,null,null,null,"T10_3|FR","T10_3","FR","waver",18.147708849000001,17.912031964000001,17.45766252,17.310963097999998,16.883399955000002,16.374522445,16.626152184999999,16.332893982000002,16.021427156000001,16.056948221999999,15.935867671,15.870169220999999,15.501273268,15.387433376000001,15.565911221,15.488826816,15.232583123,15.612565158000001,15.786058305999999,15.89606521,15.313839975,16.099003360000001,16.165807532999999,16.114371783999999,15.812601523,16.151702646]
[null,null,null,null,null,null,null,null,null,null,"T10_3|GB","T10_3","GB","waver",17.890980448000001,16.938097111000001,16.645673667000001,16.564959506000001,15.695464231000001,15.205094068999999,15.441585988,15.059511347000001,14.302308056999999,13.726051045,14.330570315999999,14.255753638,14.254862666999999,14.876213872999999,15.050461294,14.932352135,14.809736839999999,15.068823698999999,15.209425365,15.505362311000001,15.208332499999999,16.252949121,16.262457053999999,16.211799821,16.151702646,9.9031712175000006]
[null,null,null,null,null,null,null,null,null,null,"T10_3|GR","T10_3","GR","waver",11.436729051,11.189270754000001,12.089102422,11.795778814,10.122805323,9.3517406338000004,8.9304914780000004,8.7996573280000003,8.9568764837000003,8.3747966563999992,8.1893170830000006,8.0578010516000003,7.9877057809999998,8.0808828537000004,8.0854426612000001,8.1275601288000008,8.2387115211000008,9.1729403451000007,9.0334645833000007,8.9446488548000005,9.0758851829000005,9.1538076627000002,9.4957767933999992,9.5579716415,9.9031712175000006,7.3461785905000001]
[null,null,null,null,null,null,null,null,null,null,"T10_3|HR","T10_3","HR","waver",6.5727568993999999,6.5815821567999997,6.6624787742000002,7.1336475302000002,6.9650473460000004,7.1910486888999996,7.0980163576999997,7.07621491,7.0316928570000004,6.6449247438999999,6.7789144976999998,6.9027320676999997,6.8164195805999999,6.9746072437000004,7.0294820828000004,7.0019200937999999,7.0387167941,7.1089864132000002,7.2731157060999996,7.2545459148000004,7.2329932600999998,7.3562646252999997,7.3874177388,7.3112283980999999,7.3461785905000001,9.1288364794000003]
[null,null,null,null,null,null,null,null,null,null,"T10_3|HU","T10_3","HU","waver",8.5159632448,9.4692649877000008,9.3969267604999995,9.3862365452999992,9.5705824549000003,9.4987265774999994,9.1911542695000001,8.9071038123000008,8.8980351335000005,8.5064059597000004,8.5612841957000008,8.4590076853999996,8.4388210166000004,8.6075408357000001,8.6370834009999999,8.4692540933,8.3645698316000008,8.5981482371000002,8.3828062338000002,8.5044791092000001,8.5959693323999993,9.1255430808,9.0362738117999992,9.0567606314999995,9.1288364794000003,8.4171650992]
[null,null,null,null,null,null,null,null,null,null,"T10_3|IE","T10_3","IE","waver",12.029091177,12.569176877,11.797091735,11.490508517,11.854540588000001,10.122825117,10.081879691999999,9.8892268189999992,9.3205974535999996,8.6939587401999994,8.5897801228000006,8.4922108323999996,8.3590879723999993,7.8613446332999999,7.8930891767000002,7.7991716708999999,7.8950154953,7.8413079658999996,7.9233626751999999,7.8427554194000004,7.8831935203999999,7.9303621278999996,8.1206774247000002,8.2129960779999998,8.4171650992,6.1696801375000003]
[null,null,null,null,null,null,null,null,null,null,"T10_3|IS","T10_3","IS","waver",0,0,0,0,0,0,0,0,0,0,0,0,5.1719681603999996,5.4379452094999996,5.4685030525,5.5952512529999998,5.5011081962999997,6.0379656088999996,6.0876276988000004,6.0590440739,5.9361982164000002,6.2461898609000004,6.2355757681000004,6.3208175862999996,6.1696801375000003,13.631581582000001]
[null,null,null,null,null,null,null,null,null,null,"T10_3|IT","T10_3","IT","waver",14.565280926,14.479324166,14.291659981,14.110829531,14.100832209,13.828845084999999,13.915563681,13.774399465,14.465898626,14.652555660999999,14.659884394000001,14.093876949,13.931236758000001,13.009574438,13.29810191,13.3089543,13.138675954,13.445100062,13.376364568,13.398510533,13.215666469,13.131902281,13.291927448999999,13.382076073,13.631581582000001,11.735313096]
[null,null,null,null,null,null,null,null,null,null,"T10_3|LT","T10_3","LT","waver",7.3327904518000002,7.4611107099999998,7.3597498856000003,7.3709921048,7.3689080567999996,8.2686339504999999,8.3337720763000007,8.3670345630000007,8.3792939539999995,9.8079844333999997,9.6652255789999995,9.1794394036,9.7509443835000003,9.9586703241999999,9.9506267694999995,9.9263814492000009,9.8697467203000002,10.595276967,10.610108314,10.527085120000001,10.734537733,10.952789486,11.109416083999999,11.360280391,11.735313096,13.366491111]
[null,null,null,null,null,null,null,null,null,null,"T10_3|LU","T10_3","LU","waver",11.36957365,12.948182984000001,13.151273206999999,13.142754102,13.008273665999999,13.674146211,13.909013966,14.030290165,12.714713569000001,13.958205339999999,14.153939643999999,13.781927624,13.594264352,13.620473248,14.315273677,13.938028774999999,14.271714101000001,14.879269817000001,15.215629268000001,15.282896986000001,15.142840477,15.52006709,15.139754633000001,14.877586131999999,13.366491111,8.7347610631000006]
[null,null,null,null,null,null,null,null,null,null,"T10_3|LV","T10_3","LV","waver",7.1091128866000002,7.3186720758000003,7.2263568646999996,7.2281301296000002,7.1779395578000003,7.6321386090000001,8.1787810807000003,8.0311153793999992,7.8717142529000004,8.6794013090999993,8.7328307075999998,8.5663057765000001,8.5664252140000006,8.3698978599,8.1184935114000005,7.8703240119000002,8.0617296225999997,8.6276923643999996,8.4324387464000008,8.4919519245000004,8.5578456034000006,8.5894260667999998,9.0506904663000007,9.0213946239999991,8.7347610631000006,12.194543803]
[null,null,null,null,null,null,null,null,null,null,"T10_3|MT","T10_3","MT","waver","n.a.","n.a.","n.a.","n.a.",14.292246116999999,14.098757857000001,14.150471014000001,14.03903055,14.160614318,13.951134594999999,13.974556548000001,13.771837213,12.677383452000001,11.745743456,11.729120200000001,11.735848498999999,11.627221553,11.698460604999999,11.602991338000001,11.605240328000001,11.630988990000001,11.751469037,12.056996238,12.004408316999999,12.194543803,16.943615547]
[null,null,null,null,null,null,null,null,null,null,"T10_3|NL","T10_3","NL","waver",20.615368988,19.234120823000001,19.303917058,19.219277936000001,18.705480247000001,18.668064954999998,18.772612646999999,18.669266588999999,18.164317604000001,17.919529143999998,17.776353663999998,17.769542855000001,17.414866948,17.191745015999999,17.19832882,17.207948516999998,16.755291012000001,16.752876216000001,16.96741638,16.917355439000001,16.532171794,17.026864665000002,17.280679955,17.342473781999999,16.943615547,11.036993583999999]
[null,null,null,null,null,null,null,null,null,null,"T10_3|NO","T10_3","NO","waver",16.192814520999999,15.909603177999999,15.204766621999999,15.241334494,14.587817346,13.139433782999999,13.184399730000001,12.979245913,11.130934966,12.691020572999999,12.389300872,12.359621126,12.049615559999999,11.797452925,12.447843303000001,11.991439825,11.658053791,11.647149398,11.817797664,11.703746784,11.153486471000001,11.760920532,11.441978076,11.311704871,11.036993583999999,8.3292819185999996]
[null,null,null,null,null,null,null,null,null,null,"T10_3|PL","T10_3","PL","waver",7.9525553131000004,7.7360245471000004,7.8843314361000001,7.7830662222999996,7.7845365039000001,7.5280967454000001,7.7538814795000004,7.6696822986999997,7.8153317705000003,7.7810370953000003,7.8263616727,7.7438529997999996,7.7616705953,7.6036213260999999,7.7433580864999998,7.7461296168000002,7.8663121092999999,8.1032274977000007,8.2158271099999993,8.1486735088,8.1640884186000005,8.3508175596999994,8.4063886471,8.3168687761999998,8.3292819185999996,11.259543487]
[null,null,null,null,null,null,null,null,null,null,"T10_3|PT","T10_3","PT","waver",14.281647734,13.755510835000001,14.038276186999999,13.93232355,13.446323354,12.944736285999999,13.160084038999999,13.061341176000001,13.518096825000001,12.641538153000001,12.472602276,12.32687247,12.195297295,10.822286709,10.990755841,10.887853722999999,10.984992362,10.96183525,11.093804301,10.931456563999999,10.993615634999999,11.001809432,11.302051686,11.247414959,11.259543487,8.6117614898999992]
[null,null,null,null,null,null,null,null,null,null,"T10_3|RO","T10_3","RO","waver",9.9210347008999999,9.7225678885000004,9.4235903248999993,9.1815144883999995,9.2463675925000004,8.4689999525000008,8.7900343542999995,8.5396134123999996,8.7182130142999998,8.5376328128000001,8.5367250585000001,8.4312440942000002,8.5855647292999997,8.3538824282000004,8.8064294454999992,8.6167850131999995,8.5243038542999994,8.3714164247999996,8.7527840140999995,8.5152061756999995,8.6324089596999993,8.8117981574000002,8.6954552363000008,8.5434176602999994,8.6117614898999992,17.062386378999999]
[null,null,null,null,null,null,null,null,null,null,"T10_3|SE","T10_3","SE","waver","n.a.","n.a.","n.a.","n.a.",19.347832700000001,19.785425138000001,19.609063959,19.129414104999999,17.800676824,18.491150089000001,18.147428621,17.843257005000002,16.850165253,17.527973231000001,17.555043286,17.158551087999999,17.068358555,18.608572043999999,18.250727140999999,18.169123538000001,17.411086452999999,18.662455610999999,18.469178410000001,17.869325483000001,17.062386378999999,8.6415513877999999]
[null,null,null,null,null,null,null,null,null,null,"T10_3|SI","T10_3","SI","waver",8.4924339615999997,8.1079749396,8.1120326670999994,8.3863122223000008,8.2742123545999995,7.7100831288,7.6096911883000002,7.5267062516000003,7.5573369130000003,7.4225599359999999,7.5291115341000001,7.4159941325999998,7.4052757565,7.1955860531000004,7.1672863410999996,7.1714194961000004,7.1935922202000002,7.2473337219999996,7.4056403493999996,7.3418894432000004,7.422075059,8.3966922103999995,8.3779733256999993,8.2928112957,8.6415513877999999,11.41459163]
[null,null,null,null,null,null,null,null,null,null,"T10_3|SK","T10_3","SK","waver",9.2448679439999992,9.2511647809999999,9.5644456343000002,9.4768464661999996,9.3128382279000004,9.4490568081999999,9.6778535022999996,9.6454095917,9.6446365649000008,10.000028370000001,10.328415081999999,10.272354889000001,10.228469951999999,10.916414518,10.980944549,10.760156160999999,10.824323373,11.143625801000001,11.388416843,11.274574534999999,11.228623094,11.189376147000001,11.366943042000001,11.374509298,11.41459163,0.1962098598]
[null,null,null,null,null,null,null,null,null,null,"T10_4|AT","T10_4","AT","waver",3.5719276199999997E-2,5.8011756300000002E-2,0.12850284740000001,0.17523660839999999,0.22074563659999999,5.2752769099999999E-2,0.1176202673,0.20694972070000001,0.20111439719999999,7.3689122100000004E-2,0.17917227050000001,0.28276495330000001,0.36461925560000003,9.2729145099999993E-2,0.19413087200000001,0.29787283580000001,0.36525833130000002,8.3639431799999997E-2,0.1782781776,0.26892713239999999,0.32878776669999998,3.0180897000000002E-2,6.0541215000000002E-2,0.1464359603,0.1962098598,0.25134692139999998]
[null,null,null,null,null,null,null,null,null,null,"T10_4|BE","T10_4","BE","waver",0.29350702379999999,5.7756595100000002E-2,0.17856753550000001,0.287285081,0.36713799629999999,6.2845684499999999E-2,0.17412461100000001,0.29829059330000002,0.41124706789999999,7.3660247700000001E-2,0.20567219370000001,0.30445796650000001,0.40849233969999998,6.7075432899999995E-2,0.17028053039999999,0.28064296399999999,0.36042916419999999,4.1524371300000001E-2,0.16341291450000001,0.25622453610000001,0.35950168999999998,-3.2804200999999998E-2,4.44808176E-2,0.15125303770000001,0.25134692139999998,0.22532596899999999]
[null,null,null,null,null,null,null,null,null,null,"T10_4|BG","T10_4","BG","waver",0.30994784240000001,0.1145408195,0.20683123149999999,0.31583208930000001,0.34795781469999998,0.1209729836,0.26098071439999998,0.34771120599999999,0.41960545170000002,0.1070647642,0.2222740856,0.33682419260000002,0.45212729169999999,9.2435246999999998E-2,0.220185307,0.34212510289999998,0.4569239115,0.1026255095,0.21612646690000001,0.31010525830000002,0.4166476569,6.2518584700000004E-2,0.1090498354,0.17803060779999999,0.22532596899999999,-0.12724080199999999]
[null,null,null,null,null,null,null,null,null,null,"T10_4|CY","T10_4","CY","waver",-3.8582040000000001E-3,5.0910579099999999E-2,6.0000185499999997E-2,-6.7436906000000005E-2,-0.35624844999999999,5.28811166E-2,9.0907336000000005E-2,0.1027893013,7.7219798000000006E-2,-6.8985829999999998E-3,-0.37450607200000002,-0.42183596899999998,-0.46760513199999998,7.8776363899999993E-2,2.81332166E-2,0.22793081749999999,0.28447572409999999,-9.7586050000000001E-3,5.07831511E-2,9.0680630499999998E-2,-7.1890329000000003E-2,-3.0740806999999998E-2,-0.13917700899999999,-0.118374042,-0.12724080199999999,0.31120642739999999]
[null,null,null,null,null,null,null,null,null,null,"T10_4|CZ","T10_4","CZ","waver",0.48756938290000001,0.12696501369999999,0.24544436250000001,0.3750676208,0.48004894840000001,0.1149797328,0.25370561209999998,0.38983655379999999,0.49874732620000001,0.13550642160000001,0.2783342848,0.41930993550000001,0.53885372080000005,0.1285527058,0.26153403889999999,0.3954525585,0.51844578890000004,0.12607790020000001,0.27307995550000003,0.40558640200000001,0.54427306559999999,9.4830840299999997E-2,0.14350213889999999,0.2365251266,0.31120642739999999,4.7524521100000001E-2]
[null,null,null,null,null,null,null,null,null,null,"T10_4|DE","T10_4","DE","waver",0.15139599240000001,5.2306201199999999E-2,0.1096609717,7.0663594900000001E-2,7.1463671600000001E-2,3.3193388400000003E-2,7.1945452600000001E-2,9.4276836099999997E-2,8.2710722900000005E-2,4.3991040199999998E-2,7.9934128199999996E-2,0.13547269240000001,0.1158981077,3.7094853900000002E-2,8.8966589900000004E-2,0.1382440503,0.11325619820000001,3.01980185E-2,5.3985632700000001E-2,8.10279691E-2,8.0300318600000004E-2,-9.6161170000000004E-3,3.1903471099999997E-2,6.7054660399999994E-2,4.7524521100000001E-2,0.2345121278]
[null,null,null,null,null,null,null,null,null,null,"T10_4|DK","T10_4","DK","waver",0.1963762359,0.1173563706,0.25453696240000001,0.33593535099999999,0.38616048879999998,0.1098998613,0.22639802110000001,0.34705608650000003,0.48572726599999999,0.1436832958,0.28552653610000001,0.42135012589999998,0.55123427999999997,0.1274070102,0.25222737649999999,0.34696554540000002,0.44621676459999998,0.1015837953,0.22025094910000001,0.31505091369999999,0.38690975309999998,-8.4759503999999999E-2,5.7363687900000002E-2,0.1501152993,0.2345121278,0.39163696059999997]
[null,null,null,null,null,null,null,null,null,null,"T10_4|EE","T10_4","EE","waver","n.a.","n.a.","n.a.","n.a.","n.a.",0.26295467929999999,0.39267165079999999,0.54128346959999996,0.67693289099999998,0.20220177010000001,0.34165754100000001,0.48933698580000001,0.6337493153,0.15345409130000001,0.31513156209999998,0.4544034515,0.60421789889999999,0.11784785590000001,0.24259540739999999,0.35307300019999999,0.43458545389999997,9.8430756899999999E-2,0.17831595880000001,0.2856012986,0.39163696059999997,5.9574942700000001E-2]
[null,null,null,null,null,null,null,null,null,null,"T10_4|ES","T10_4","ES","waver",0.21650935399999999,7.62023545E-2,0.13854632040000001,0.18353798390000001,0.2061876104,6.3962144999999998E-2,0.1251349279,0.19278975840000001,0.183185549,7.0760124800000004E-2,0.1457697359,0.2044186768,0.24736302939999999,8.4918996999999996E-2,0.1587997998,0.2481802401,0.30907600569999999,7.9878134899999995E-2,0.14477734710000001,0.2065079652,0.25726292340000001,1.3656734300000001E-2,-6.2203142000000003E-2,2.4866604E-3,5.9574942700000001E-2,0.13067760410000001]
[null,null,null,null,null,null,null,null,null,null,"T10_4|EU","T10_4","EU","waver",0.1512153021,6.7905146999999999E-2,0.1222412234,0.17266045259999999,0.175807777,6.1293007300000001E-2,0.12089153699999999,0.17666421199999999,0.15425333729999999,7.7287233400000002E-2,0.1470997802,0.2229037009,0.26057364490000001,7.4479547899999998E-2,0.15238578280000001,0.22982515419999999,0.27733930579999999,7.4852666100000007E-2,0.1479291073,0.21066527569999999,0.24922429030000001,2.23927955E-2,3.1106765500000001E-2,0.10162507160000001,0.13067760410000001,0.33564219010000002]
[null,null,null,null,null,null,null,null,null,null,"T10_4|FI","T10_4","FI","waver",0.46025482550000002,0.1319496362,0.2608371136,0.39754588639999999,0.49384984980000002,0.1229562855,0.24852711320000001,0.37562703990000001,0.51475329089999999,0.14313368570000001,0.24841920649999999,0.3591712956,0.48355585849999999,0.1060729728,0.17950616250000001,0.27760557270000003,0.44562680389999998,0.1034001999,0.19790464639999999,0.1754319342,0.2682447905,8.9998805400000007E-2,0.1238450006,0.2445352885,0.33564219010000002,0.20233539110000001]
[null,null,null,null,null,null,null,null,null,null,"T10_4|FR","T10_4","FR","waver",0.186300509,5.8235521700000001E-2,0.13966600179999999,0.21438946489999999,0.26415001420000001,5.4412766600000002E-2,0.1368519107,0.20684891650000001,0.26096326489999999,6.3407809199999998E-2,0.14481392160000001,0.2269153303,0.27767428080000001,6.0561594699999999E-2,0.1359057998,0.21176858949999999,0.264038512,5.7784814499999997E-2,0.13532861700000001,0.20801413160000001,0.26501285470000002,5.1203115600000002E-2,8.5937089300000005E-2,0.15525577609999999,0.20233539110000001,0.12788504310000001]
[null,null,null,null,null,null,null,null,null,null,"T10_4|GB","T10_4","GB","waver",0.1942077854,7.7391580400000007E-2,0.12197505760000001,0.18007802710000001,0.11511031400000001,7.7755753799999994E-2,0.1138997425,0.14283037979999999,8.7552927599999997E-2,8.6032193199999996E-2,0.14843348689999999,0.22772672090000001,0.24668738439999999,7.4358678600000006E-2,0.14875388489999999,0.23267192319999999,0.28055940410000002,9.1496855299999999E-2,0.16888780380000001,0.21203163059999999,0.22171959499999999,5.4146875300000001E-2,5.2982520999999998E-2,0.10037251680000001,0.12788504310000001,-9.3830377000000006E-2]
[null,null,null,null,null,null,null,null,null,null,"T10_4|GR","T10_4","GR","waver",-0.71566438099999996,-4.1951671000000003E-2,-0.70523615299999998,-0.80853983600000001,-1.2958508559999999,1.0369888400000001E-2,1.18005755E-2,2.9280384999999999E-2,7.7302105999999997E-3,1.5747412799999999E-2,2.5202907699999999E-2,3.3979276599999997E-2,-0.11975894600000001,6.4948044E-3,2.1950619300000002E-2,5.5492395999999999E-2,2.3349985000000002E-3,1.8311876099999999E-2,4.6036243400000003E-2,8.2268191399999996E-2,0.1199412831,2.7128322000000002E-3,-9.3287315999999995E-2,-5.1202834000000003E-2,-9.3830377000000006E-2,0.25094388229999998]
[null,null,null,null,null,null,null,null,null,null,"T10_4|HR","T10_4","HR","waver",0.30988661670000001,7.3355738399999995E-2,0.1504349794,-9.9229962000000005E-2,-6.7089518000000001E-2,0.12901157769999999,0.2419320861,0.34713488469999998,0.43015240869999999,4.1889507999999999E-2,0.1020361625,0.20326331959999999,0.27755619050000002,0.116436445,0.2372319796,0.36865371619999998,0.42937341600000001,0.10580309979999999,0.2374007638,0.3408643402,0.42166854679999999,0.1004647853,0.13397961789999999,0.2145589688,0.25094388229999998,0.23960176050000001]
[null,null,null,null,null,null,null,null,null,null,"T10_4|HU","T10_4","HU","waver",-0.24053402800000001,-6.8480570000000003E-3,7.0663160899999994E-2,9.09619396E-2,0.1269163478,6.7299727300000001E-2,0.20992871229999999,0.31528858520000003,0.35631129280000001,7.0891806000000002E-2,0.18706836969999999,0.294785138,0.3975754306,8.2598535200000003E-2,0.1919269622,0.29676052460000002,0.38412893640000001,7.8483056499999995E-2,0.18801910399999999,0.31570193880000003,0.41533379310000001,1.3373748E-3,7.1500065299999999E-2,0.18055441899999999,0.23960176050000001,-0.189288451]
[null,null,null,null,null,null,null,null,null,null,"T10_4|IE","T10_4","IE","waver",0.31508714710000002,0.1369630473,0.22927504500000001,0.3771441734,0.4315019027,0.1075342592,0.2479821656,0.34861536700000001,0.40125010750000001,8.2735748799999995E-2,0.19223759069999999,0.29971679150000002,0.35216023210000003,0.1019370137,0.21555231920000001,0.32723888950000002,0.39619268190000001,9.8377410400000004E-2,0.1716300597,0.26387468349999998,0.30230664419999997,8.9830019000000007E-3,-0.25209263900000001,-0.20212042199999999,-0.189288451,0.32232460889999998]
[null,null,null,null,null,null,null,null,null,null,"T10_4|IS","T10_4","IS","waver",0,0,0,0,0,0,0,0,0,0,0,0,0.42497761119999999,0.10278641619999999,0.21599572119999999,0.29633926500000002,0.39255918290000003,9.5867300099999997E-2,0.1821014648,0.28392816139999999,0.37291637,-3.3632330000000002E-2,4.34006423E-2,0.16886619589999999,0.32232460889999998,-6.2354130000000004E-3]
[null,null,null,null,null,null,null,null,null,null,"T10_4|IT","T10_4","IT","waver",-0.109435062,6.2112621700000002E-2,8.4726861400000006E-2,9.9689836200000007E-2,8.6651098900000001E-2,3.6300509699999997E-2,3.7109818099999997E-2,3.08648111E-2,-0.31178781,0.1012025999,0.1185199317,0.14763369509999999,0.16017159149999999,7.9109543099999999E-2,0.1366248907,0.1522815374,0.16953498219999999,8.1582688599999995E-2,0.13606869129999999,0.1925258061,0.19199930670000001,3.4382408999999998E-3,1.6238663800000001E-2,9.4508709699999999E-2,-6.2354130000000004E-3,0.499349449]
[null,null,null,null,null,null,null,null,null,null,"T10_4|LT","T10_4","LT","waver",0.48085708760000001,0.1163560174,0.2204968491,0.34278754379999998,0.44891254429999999,0.1029759161,0.25256481380000001,0.39111496330000001,0.51327906469999995,0.14399649279999999,0.28405991149999998,0.3289787884,0.4607826284,0.13556003459999999,0.28014652499999998,0.42923163450000001,0.55250287850000002,0.16134186480000001,0.31805800639999998,0.46510792890000002,0.58908397840000004,0.1293124822,0.2480323495,0.38495053759999998,0.499349449,0.27026270299999999]
[null,null,null,null,null,null,null,null,null,null,"T10_4|LU","T10_4","LU","waver",0.42560822409999999,0.1075427937,0.2004570815,0.28352070759999998,0.37152177549999998,7.9960521699999995E-2,0.17323202209999999,0.26775045060000002,0.31527901429999999,9.2323989999999995E-2,0.18630031559999999,0.26281157929999999,0.35058402100000002,7.3094055500000005E-2,0.1592204609,0.31094697389999998,0.3635520089,6.7027699800000007E-2,0.15907797339999999,0.2382443786,0.28774806889999999,6.3613822200000003E-2,0.146136772,0.2128576049,0.27026270299999999,0.29468649759999999]
[null,null,null,null,null,null,null,null,null,null,"T10_4|LV","T10_4","LV","waver",0.53078283810000004,0.13927899469999999,0.29633792370000001,0.43875342160000003,0.57366586659999996,0.13373960260000001,0.28886721180000002,0.41827504770000001,0.55526876629999999,0.1473070323,0.26625824250000002,0.40328764779999998,0.53704322540000005,0.10931381499999999,0.202626635,0.39819079689999998,0.48679289310000001,0.12243986950000001,0.22206195040000001,0.34049252019999998,0.4259043039,5.44929756E-2,7.6825141099999994E-2,0.18213762459999999,0.29468649759999999,-9.7448520999999996E-2]
[null,null,null,null,null,null,null,null,null,null,"T10_4|MT","T10_4","MT","waver","n.a.","n.a.","n.a.","n.a.",0.19206090300000001,0.20823778370000001,0.3157260315,0.40642823649999998,0.2371378133,0.22240946249999999,0.2858002154,0.34101571079999998,0.4491300808,0.14653685,9.1501737299999997E-2,0.17724434859999999,0.28507904270000001,0.1229855279,0.1829717122,0.27728132480000001,0.32502942029999998,2.3819194299999999E-2,-8.8126379000000005E-2,2.4792170000000001E-3,-9.7448520999999996E-2,0.164880209]
[null,null,null,null,null,null,null,null,null,null,"T10_4|NL","T10_4","NL","waver",0.17566519210000001,4.9588940599999999E-2,0.14128504480000001,0.26223997919999997,0.31678720830000001,6.4326261400000001E-2,0.1554443952,0.25983187569999999,0.30352035989999998,9.3686828E-2,0.2037788894,0.31712859760000001,0.39186986109999999,9.2332784700000003E-2,0.202096949,0.29071871220000001,0.36215786989999998,8.55539674E-2,0.18179520060000001,0.28484567960000001,0.33330214060000002,2.0433244600000001E-2,4.7724439399999999E-2,0.122813009,0.164880209,0.39756895390000002]
[null,null,null,null,null,null,null,null,null,null,"T10_4|NO","T10_4","NO","waver",0.56537019919999998,0.1525058282,0.28787767990000002,0.45023805909999998,0.60383358249999997,0.12905210810000001,0.2562262018,0.3655647823,0.49269336920000001,0.1271890493,0.2596573277,0.39919504890000002,0.52812147450000002,0.14846339820000001,0.3029105373,0.43889509199999999,0.56262790470000001,0.15070172709999999,0.29477184350000002,0.42650564019999998,0.54762509250000002,7.5024351399999994E-2,0.17749783699999999,0.2952378537,0.39756895390000002,0.25980210799999998]
[null,null,null,null,null,null,null,null,null,null,"T10_4|PL","T10_4","PL","waver",0.40515553799999998,0.1355286379,0.23479590719999999,0.33601915659999998,0.39176432449999998,9.1920521899999996E-2,0.1974864358,0.28389780079999999,0.37379500840000002,7.8708272699999998E-2,0.17959611980000001,0.27869487539999999,0.39062736059999997,8.3830677000000006E-2,0.18243591240000001,0.28396745239999999,0.39197319730000002,7.3772689599999997E-2,0.1785587209,0.28438394360000002,0.37752945490000001,4.90223137E-2,0.1226635113,0.2016647114,0.25980210799999998,4.8495210400000002E-2]
[null,null,null,null,null,null,null,null,null,null,"T10_4|PT","T10_4","PT","waver",-0.16386418799999999,2.80889546E-2,4.1815848699999998E-2,2.8906170700000001E-2,-6.4877029000000003E-2,-3.2674466999999999E-2,-0.11971098500000001,-0.11541244000000001,-0.61743477499999999,-1.29009E-3,-7.5518299999999998E-4,4.3589222599999998E-2,-1.1161109000000001E-2,0.1044174673,0.12829258169999999,0.2249730184,0.25235298229999997,9.56913977E-2,0.1556004996,0.23469713440000001,0.27732961420000002,4.4932255599999998E-2,3.62383935E-2,7.2928599499999996E-2,4.8495210400000002E-2,0.3426682264]
[null,null,null,null,null,null,null,null,null,null,"T10_4|RO","T10_4","RO","waver",-0.29859207799999998,9.8671093099999996E-2,0.43307351760000001,0.49018411899999997,0.45693918859999999,9.1751221300000005E-2,0.1969852698,0.3140556061,0.35470962160000002,0.11273131159999999,0.22221509540000001,0.33509285379999998,0.44431513389999999,0.1355328787,0.2862199741,0.39905575780000002,0.48153521049999998,0.1222389453,0.1983242271,0.34218789090000001,0.42203814490000002,0.1186301469,0.18172009659999999,0.28547669419999999,0.3426682264,0.40843339239999998]
[null,null,null,null,null,null,null,null,null,null,"T10_4|SE","T10_4","SE","waver","n.a.","n.a.","n.a.","n.a.",0.48971850610000001,0.1194765668,0.27044176580000001,0.41754936469999998,0.53453081000000002,0.1437967735,0.27076892930000002,0.39618005290000002,0.51094172000000004,0.12513265379999999,0.27551724700000002,0.40581318020000001,0.55685426780000002,0.13522288390000001,0.26703054269999998,0.38432475960000001,0.50449178660000005,6.2636429899999999E-2,0.16816759949999999,0.28241223659999998,0.40843339239999998,0.61831549880000003]
[null,null,null,null,null,null,null,null,null,null,"T10_4|SI","T10_4","SI","waver",0.1473652271,6.0862017499999997E-2,0.1117826705,0.16140195700000001,0.18542858400000001,0.126625453,0.80423995199999998,0.85947824979999998,0.87219270660000003,0.13660187039999999,0.25010090670000001,0.37996387390000003,0.43577204060000002,0.14191775039999999,0.26784163020000001,0.37830101560000001,0.48507678599999998,0.1171865978,0.2388095797,0.36590673810000002,0.42491122860000002,0.3031053782,0.3685805123,0.44238952190000003,0.61831549880000003,0.2665321397]
[null,null,null,null,null,null,null,null,null,null,"T10_4|SK","T10_4","SK","waver",0.38454364489999998,0.10171669329999999,0.21385283869999999,0.32693809889999997,0.41007733499999999,9.6047423800000004E-2,0.2446434217,0.34686172589999997,0.42848721379999999,0.1025549747,0.22144074490000001,0.3255467776,0.4086039555,0.110859394,0.21519978310000001,0.3272913657,0.4053387155,0.10784401640000001,0.20163202699999999,0.2994309544,0.38912445759999997,6.8858150800000004E-2,8.8070165800000003E-2,0.1829625389,0.2665321397,1]
[null,null,null,null,null,null,null,null,null,null,"T10_5|AT","T10_5","AT","waver",1,0.25,0.5,0.75,1,0.25,0.5,0.75,1,0.25,0.5,0.75,1,0.25,0.5,0.75,1,0.25,0.5,0.75,1,0.25,0.5,0.75,1,1]
[null,null,null,null,null,null,null,null,null,null,"T10_5|BE","T10_5","BE","waver",1,0.25,0.5,0.75,1,0.25,0.5,0.75,1,0.25,0.5,0.75,1,0.25,0.5,0.75,1,0.25,0.5,0.75,1,1.75,0.5,0.75,1,1]
[null,null,null,null,null,null,null,null,null,null,"T10_5|BG","T10_5","BG","waver",1,0.25,0.5,0.75,1,0.25,0.5,0.75,1,0.25,0.5,0.75,1,0.25,0.5,0.75,1,0.25,0.5,0.75,1,0.25,0.5,0.75,1,1]
[null,null,null,null,null,null,null,null,null,null,"T10_5|CY","T10_5","CY","waver",1,0.25,0.5,1.25,1,0.25,0.5,0.75,1,1.75,1.5,1.25,1,0.25,0.5,0.75,1,0.25,0.5,0.75,1,1.75,1.5,1.25,1,1]
[null,null,null,null,null,null,null,null,null,null,"T10_5|CZ","T10_5","CZ","waver",1,0.25,0.5,0.75,1,0.25,0.5,0.75,1,0.25,0.5,0.75,1,0.25,0.5,0.75,1,0.25,0.5,0.75,1,0.25,0.5,0.75,1,1]
[null,null,null,null,null,null,null,null,null,null,"T10_5|DE","T10_5","DE","waver",1,0.25,0.5,0.75,1,0.25,0.5,0.75,1,0.25,0.5,0.75,1,0.25,0.5,0.75,1,0.25,0.5,0.75,1,1.75,0.5,0.75,1,1]
[null,null,null,null,null,null,null,null,null,null,"T10_5|DK","T10_5","DK","waver",1,0.25,0.5,0.75,1,0.25,0.5,0.75,1,0.25,0.5,0.75,1,0.25,0.5,0.75,1,0.25,0.5,0.75,1,1.75,0.5,0.75,1,1]
[null,null,null,null,null,null,null,null,null,null,"T10_5|EE","T10_5","EE","waver","n.a.","n.a.","n.a.","n.a.","n.a.",0.25,0.5,0.75,1,0.25,0.5,0.75,1,0.25,0.5,0.75,1,0.25,0.5,0.75,1,0.25,0.5,0.75,1,1]
[null,null,null,null,null,null,null,null,null,null,"T10_5|ES","T10_5","ES","waver",1,0.25,0.5,0.75,1,0.25,0.5,0.75,1,0.25,0.5,0.75,1,0.25,0.5,0.75,1,0.25,0.5,0.75,1,0.25,1.5,1.25,1,0.98983425570000005]
[null,null,null,null,null,null,null,null,null,null,"T10_5|EU","T10_5","EU","waver",0.98565240040000002,0.25920847759999999,0.49916142769999999,0.7419045595,0.98982337409999999,0.26133466370000002,0.49980669350000001,0.74272195060000001,0.9874670418,0.25779385119999998,0.50094555969999999,0.74438003109999995,0.99259489059999995,0.25777617559999999,0.50114604370000004,0.74489001089999995,0.99368884229999999,0.25728822070000001,0.50191218189999998,0.74474161890000001,0.99317997170000005,0.26403806429999999,0.51891746110000003,0.74099861150000002,0.98983425570000005,1]
[null,null,null,null,null,null,null,null,null,null,"T10_5|FI","T10_5","FI","waver",1,0.25,0.5,0.75,1,0.25,0.5,0.75,1,0.25,0.5,0.75,1,0.25,0.5,0.75,1,0.25,0.5,0.75,1,0.25,0.5,0.75,1,1]
[null,null,null,null,null,null,null,null,null,null,"T10_5|FR","T10_5","FR","waver",1,0.25,0.5,0.75,1,0.25,0.5,0.75,1,0.25,0.5,0.75,1,0.25,0.5,0.75,1,0.25,0.5,0.75,1,0.25,0.5,0.75,1,0.97971420939999998]
[null,null,null,null,null,null,null,null,null,null,"T10_5|GB","T10_5","GB","waver",0.96572736140000004,0.27661931670000001,0.48759050230000001,0.73280746699999999,0.9617899714,0.28332934900000001,0.486424144,0.73236709909999997,0.94159271379999998,0.27371690700000001,0.49092947250000002,0.7421658351,0.9792150905,0.27315464950000001,0.49143504399999999,0.74160291040000004,0.98622545939999995,0.26611655740000001,0.49604722829999998,0.74412849560000005,0.98534735360000003,0.26337890850000001,0.487112722,0.73471993899999999,0.97971420939999998,1]
[null,null,null,null,null,null,null,null,null,null,"T10_5|GR","T10_5","GR","waver",1,1.75,1.5,1.25,1,0.25,1.5,1.25,1,0.25,0.5,0.75,1,0.25,1.5,0.75,1,0.25,0.5,0.75,1,0.25,1.5,1.25,1,1]
[null,null,null,null,null,null,null,null,null,null,"T10_5|HR","T10_5","HR","waver",1,0.25,0.5,1.25,1,0.25,0.5,0.75,1,0.25,0.5,0.75,1,0.25,0.5,0.75,1,0.25,0.5,0.75,1,0.25,0.5,0.75,1,1]
[null,null,null,null,null,null,null,null,null,null,"T10_5|HU","T10_5","HU","waver",1,1.75,0.5,0.75,1,0.25,0.5,0.75,1,0.25,0.5,0.75,1,0.25,0.5,0.75,1,0.25,0.5,0.75,1,0.25,0.5,0.75,1,1]
[null,null,null,null,null,null,null,null,null,null,"T10_5|IE","T10_5","IE","waver",1,0.25,0.5,0.75,1,0.25,0.5,0.75,1,0.25,0.5,0.75,1,0.25,0.5,0.75,1,0.25,0.5,0.75,1,0.25,1.5,1.25,1,1]
[null,null,null,null,null,null,null,null,null,null,"T10_5|IS","T10_5","IS","waver",0,0,0,0,0,0,0,0,0,0,0,0,1,0.25,0.5,0.75,1,0.25,0.5,0.75,1,1.75,0.5,0.75,1,8.3044802000000004E-3]
[null,null,null,null,null,null,null,null,null,null,"T10_5|IT","T10_5","IT","waver",0.95333024239999997,0.2775573744,0.53810898100000004,0.68367040420000003,0.93859747849999997,0.29900942050000001,0.58577895710000005,0.54849896819999999,0.97350823939999998,0.27190656870000002,0.52590660180000004,0.70595022529999996,0.95627137279999996,0.28291375169999999,0.53535255189999997,0.7018727092,0.95042855559999995,0.28003823179999998,0.53094664940000003,0.71176988659999996,0.95122148169999998,1.9194051525,0.91944719239999995,0.68561021430000002,8.3044802000000004E-3,1]
[null,null,null,null,null,null,null,null,null,null,"T10_5|LT","T10_5","LT","waver",1,0.25,0.5,0.75,1,0.25,0.5,0.75,1,0.25,0.5,0.75,1,0.25,0.5,0.75,1,0.25,0.5,0.75,1,0.25,0.5,0.75,1,1]
[null,null,null,null,null,null,null,null,null,null,"T10_5|LU","T10_5","LU","waver",1,0.25,0.5,0.75,1,0.25,0.5,0.75,1,0.25,0.5,0.75,1,0.25,0.5,0.75,1,0.25,0.5,0.75,1,0.25,0.5,0.75,1,1]
[null,null,null,null,null,null,null,null,null,null,"T10_5|LV","T10_5","LV","waver",1,0.25,0.5,0.75,1,0.25,0.5,0.75,1,0.25,0.5,0.75,1,0.25,0.5,0.75,1,0.25,0.5,0.75,1,0.25,0.5,0.75,1,1]
[null,null,null,null,null,null,null,null,null,null,"T10_5|MT","T10_5","MT","waver","n.a.","n.a.","n.a.","n.a.",0.45679726999999998,0.46682191709999998,0.63216539959999996,0.87953713460000005,0.50832524140000002,0.50334674670000001,0.62715184550000003,0.72947630679999997,0.96966342949999995,0.32296306299999999,0.44058165370000002,0.70401677620000003,0.95169162709999999,0.38084518940000001,0.47340206000000001,0.71781299799999998,1,0.25,1.5,1.25,1,1]
[null,null,null,null,null,null,null,null,null,null,"T10_5|NL","T10_5","NL","waver",1,0.25,0.5,0.75,1,0.25,0.5,0.75,1,0.25,0.5,0.75,1,0.25,0.5,0.75,1,0.25,0.5,0.75,1,0.25,0.5,0.75,1,1]
[null,null,null,null,null,null,null,null,null,null,"T10_5|NO","T10_5","NO","waver",1,0.25,0.5,0.75,1,0.25,0.5,0.75,1,0.25,0.5,0.75,1,0.25,0.5,0.75,1,0.25,0.5,0.75,1,0.25,0.5,0.75,1,1]
[null,null,null,null,null,null,null,null,null,null,"T10_5|PL","T10_5","PL","waver",1,0.25,0.5,0.75,1,0.25,0.5,0.75,1,0.25,0.5,0.75,1,0.25,0.5,0.75,1,0.25,0.5,0.75,1,0.25,0.5,0.75,1,1]
[null,null,null,null,null,null,null,null,null,null,"T10_5|PT","T10_5","PT","waver",1,0.25,0.5,0.75,1,1.75,1.5,1.25,1,1.75,1.5,0.75,1,0.25,0.5,0.75,1,0.25,0.5,0.75,1,0.25,0.5,0.75,1,1]
[null,null,null,null,null,null,null,null,null,null,"T10_5|RO","T10_5","RO","waver",1,0.25,0.5,0.75,1,0.25,0.5,0.75,1,0.25,0.5,0.75,1,0.25,0.5,0.75,1,0.25,0.5,0.75,1,0.25,0.5,0.75,1,1]
[null,null,null,null,null,null,null,null,null,null,"T10_5|SE","T10_5","SE","waver","n.a.","n.a.","n.a.","n.a.",1,0.25,0.5,0.75,1,0.25,0.5,0.75,1,0.25,0.5,0.75,1,0.25,0.5,0.75,1,0.25,0.5,0.75,1,1]
[null,null,null,null,null,null,null,null,null,null,"T10_5|SI","T10_5","SI","waver",1,0.25,0.5,0.75,1,0.25,0.5,0.75,1,0.25,0.5,0.75,1,0.25,0.5,0.75,1,0.25,0.5,0.75,1,0.25,0.5,0.75,1,1]
[null,null,null,null,null,null,null,null,null,null,"T10_5|SK","T10_5","SK","waver",1,0.25,0.5,0.75,1,0.25,0.5,0.75,1,0.25,0.5,0.75,1,0.25,0.5,0.75,1,0.25,0.5,0.75,1,0.25,0.5,0.75,1,2.5700323159999998]
[null,null,null,null,null,null,null,null,null,null,"T11_1|AT","T11_1","AT","waver",-0.81272458000000003,3.3205401147,3.8027385212000002,3.5128404118000001,3.2264630025000001,3.1493039732999999,4.2957216450000004,4.8558427916999998,3.5422333781000002,3.8403074959999999,4.8433352549000004,5.1045029563000002,4.9399641596999997,4.5804343259999998,5.1178366939000002,5.3183523796000003,5.0524140185000004,4.3076781253999998,4.7054614691000003,4.7120652976999997,4.6823040944000001,1.1517012051,1.3910224778,2.4323539269999999,2.5700323159999998,3.9677260050999998]
[null,null,null,null,null,null,null,null,null,null,"T11_1|BE","T11_1","BE","waver",3.4531088469000002,3.134432012,5.0575242696,5.1483070740999999,5.6732010602000003,4.7704280736999998,5.1012786381000002,5.7127395288000002,5.9733033234999997,4.2574730582999996,5.7569559546000004,5.4718304219,5.2303275982999997,3.5036962865999999,4.3551914945999997,4.8813904475000003,4.7328079316,2.5707860194999999,5.2831129458000001,5.2458791528999997,5.6950859648999996,-2.2888765310000001,1.09380685,3.0082734712999999,3.9677260050999998,0.26543511609999998]
[null,null,null,null,null,null,null,null,null,null,"T11_1|BG","T11_1","BG","waver",0.28548368950000003,0.40674915639999998,0.3702167911,0.37833043599999999,0.34878106149999999,0.41516105939999998,0.4947540648,0.44313528990000001,0.39454749970000003,0.3393884855,0.3870303712,0.40131029080000002,0.40632426630000001,0.3114572042,0.37831680130000001,0.40611991679999998,0.4389063299,0.38071377439999998,0.51603026890000003,0.49197872990000002,0.51155383990000003,0.2383454341,0.25230902960000001,0.27589664930000002,0.26543511609999998,-0.12824153099999999]
[null,null,null,null,null,null,null,null,null,null,"T11_1|CY","T11_1","CY","waver",-0.44765700000000003,0.261544,0.170158,-0.24992266699999999,-0.62833499999999998,0.27156799999999998,0.24648800000000001,0.17137733329999999,3.7760000000000002E-2,-5.8892E-2,-1.2089719999999999,-0.88027999999999995,-0.71786700000000003,0.35095999999999999,5.0686000000000002E-2,0.31049199999999999,0.21490600000000001,0.41123999999999999,0.34023199999999998,0.2819826667,5.5592000000000003E-2,-0.122408,-0.25997367999999998,-0.14971578399999999,-0.12824153099999999,1.0220954542]
[null,null,null,null,null,null,null,null,null,null,"T11_1|CZ","T11_1","CZ","waver",1.4979307734,1.59293503,1.5467954384,1.5802558324,1.5212116666,1.4251126778000001,1.7150150075999999,1.7195705991000001,1.6494054710999999,1.8312032143999999,1.8995722195,1.8903936241999999,1.870494452,1.7570307413999999,1.7118000966,1.7935239339,1.8013248918,1.8653844792000001,2.1215165410000001,2.0154617513000002,2.0730687169999999,1.1852081734,0.94474373860000005,1.0034808958000001,1.0220954542,0.94226854780000002]
[null,null,null,null,null,null,null,null,null,null,"T11_1|DE","T11_1","DE","waver",4.2417721099000003,9.3090555170999991,10.737366952,2.0256664645,1.5726173908000001,4.9724881091000004,5.9509478061000003,4.6431155091000003,2.9411027517999999,8.6295846612999991,6.6608228745,7.2033095735000003,3.0808207078000001,5.3927554467999999,6.8411870905000001,7.1005735350999997,3.3500724310000001,4.7355184737,-0.27165730999999999,0.58574541369999999,-0.33575711200000002,-3.2398013529999998,1.8924226014000001,2.9788918476999999,0.94226854780000002,1.6923411991999999]
[null,null,null,null,null,null,null,null,null,null,"T11_1|DK","T11_1","DK","waver",1.1629740851000001,3.3967937875000001,3.8627927413999998,3.1251828968000002,2.6459813595999999,3.7577284235000001,3.9977989396,4.2181520673000001,4.5308328907000002,5.0366700809999996,4.8987521331000003,4.7353682078999997,4.5108747355999999,3.8799156241000001,3.7972910596,3.3965167699999999,3.2281705452999998,2.9115058835999998,3.2509964901999999,3.0390986312999999,3.4536890687000001,-1.551451908,0.80714734779999997,1.4094112803000001,1.6923411991999999,0.33982181319999999]
[null,null,null,null,null,null,null,null,null,null,"T11_1|EE","T11_1","EE","waver","n.a.","n.a.","n.a.","n.a.","n.a.",0.4465788778,0.36878494760000002,0.3360144799,0.316779374,0.34745448849999999,0.30703359429999999,0.28228111859999999,0.29975170680000002,0.34563532009999998,0.36287461040000002,0.34605946259999998,0.32758361200000002,0.37843692870000001,0.4315913817,0.41081574500000001,0.37422677380000002,0.38309618940000001,0.33067472269999998,0.34469881520000001,0.33982181319999999,-9.0161706289999994]
[null,null,null,null,null,null,null,null,null,null,"T11_1|ES","T11_1","ES","waver",16.034916628000001,23.449822738999998,23.891252284,20.38048964,16.414992195,17.332014074,17.099905671999998,17.789553571999999,12.687385169000001,20.183515092,20.058363851999999,18.768161103000001,17.051346878,22.969577923999999,21.13021329,21.301711570999998,19.953324414000001,20.618778032000002,18.961407465000001,17.671106906999999,16.975657544000001,-1.2123367279999999,-20.443300239999999,-7.9442355510000002,-9.0161706289999994,32.846001432000001]
[null,null,null,null,null,null,null,null,null,null,"T11_1|EU","T11_1","EU","waver",61.851837728,130.69761065,128.20058506999999,120.26773577,85.636444413999996,111.42365279000001,112.79015424000001,106.6137609,64.277961253000001,144.45810843999999,138.89654091,141.22691635000001,119.37202357,133.16826813,142.25015249,143.38791347,129.52691099,135.32710453000001,139.59951383000001,131.71163673000001,115.64923063000001,20.947895218999999,7.9959733236000003,40.324773143999998,32.846001432000001,2.8555533109]
[null,null,null,null,null,null,null,null,null,null,"T11_1|FI","T11_1","FI","waver",1.7412772700000001,2.3316157039999998,2.152632364,2.2294889427000002,2.001812648,2.0718198879999998,2.1033235498999998,2.0831074333999999,2.3452071123999998,1.8355945502,1.3807507297999999,1.2387866642000001,1.3591952372,0.91875861999999997,0.69981957080000001,0.71933005029999997,3.8296166220000001,3.5247437640000001,3.26303287,1.9353708972999999,2.1957666389999999,3.0235455172000001,2.1410572478000001,2.7692065524,2.8555533109,21.534041019]
[null,null,null,null,null,null,null,null,null,null,"T11_1|FR","T11_1","FR","waver",17.924259945999999,24.153604261000002,29.494200979999999,29.894608734999998,27.208307600000001,21.961333157999999,31.282266628999999,30.452093057999999,27.930415993,27.655309885000001,31.234972284000001,31.513722138999999,28.266974039000001,25.183085798,31.012988941,31.755171624999999,29.880660759000001,24.277397323999999,30.246000641999998,30.483331992,30.582268457000001,22.867538515,18.196573068999999,21.393536748999999,21.534041019,11.205109265000001]
[null,null,null,null,null,null,null,null,null,null,"T11_1|GB","T11_1","GB","waver",15.689351774,31.804827008,32.480259834999998,31.932937766999999,12.83080051,28.713899471000001,23.917529663,15.969920787,3.916863711,26.895768611000001,22.762943914000001,24.745682296999998,17.188746115000001,24.726570844000001,28.666129345000002,30.042508593000001,26.148662564999999,35.340392745000003,35.993258308000001,29.347692726999998,21.826736839999999,24.536197388000001,11.555683481000001,12.17415437,11.205109265000001,-1.752606023]
[null,null,null,null,null,null,null,null,null,null,"T11_1|GR","T11_1","GR","waver",-3.40074195,-1.7267492799999999,-11.076485760000001,-6.1319680930000002,-8.6211131600000002,0.47324664,-5.8038072999999999,-3.63242076,-2.5965298200000002,0.44074984,-0.11988088,-9.5238039999999996E-2,-0.46362914,0.22089768000000001,-0.57888152000000004,-0.149915467,-8.7709835E-2,0.4674835846,0.78497535220000003,0.87515910210000003,0.26022020870000001,0.47713115550000001,-1.735326924,-0.84564604700000001,-1.752606023,0.33244805820000001]
[null,null,null,null,null,null,null,null,null,null,"T11_1|HR","T11_1","HR","waver",0.35901561370000001,0.30656591659999999,0.34694666019999998,-0.15529799,-7.2362630999999997E-2,0.56999547299999997,0.63091258029999997,0.61821591779999996,0.55530221879999997,0.21812220860000001,0.27112714469999999,0.36776452729999998,0.38363861869999999,0.61912427400000003,0.66554459420000001,0.69390133600000004,0.64418467950000002,0.60798132680000005,0.69579087100000003,0.66458798939999997,0.60108304079999997,0.50451948260000001,0.36645296760000001,0.3841547541,0.33244805820000001,0.91365114780000001]
[null,null,null,null,null,null,null,null,null,null,"T11_1|HU","T11_1","HU","waver",-0.70907659499999998,-5.724537E-3,0.3318838295,0.30634986739999998,0.34423315760000001,0.67566223609999998,1.1679159617999999,1.2456811121,1.0855775854,0.88096674610000003,1.1571819430000001,1.21531893,1.208298774,1.0599445144999999,1.2752922053,1.3655278614999999,1.3569597336000001,1.0752868567,1.3754445833,1.5153137597999999,1.5616431085,-9.5712790000000002E-3,0.51923041089999999,0.88514784960000004,0.91365114780000001,-1.0792684880000001]
[null,null,null,null,null,null,null,null,null,null,"T11_1|IE","T11_1","IE","waver",1.4591833657,1.6499771534000001,1.9876338281999999,2.2920593042999999,1.8611065046999999,2.7316277195000001,3.3373967403,2.9997720824999998,2.6949815458000002,2.2539662876,2.6377663457999998,2.7607775378000001,2.4568595629000001,2.5743858670000002,2.7638219571999998,2.7781438731999999,2.4890063967999998,2.6226790793000001,2.2087442756,2.2521502346000002,1.8098959298999999,0.18308914670000001,-2.8249672069999998,-1.502537156,-1.0792684880000001,0.1905479018]
[null,null,null,null,null,null,null,null,null,null,"T11_1|IS","T11_1","IS","waver",0,0,0,0,0,0,0,0,0,0,0,0,0.37732287959999999,0.39993391839999998,0.3849988754,0.31903071869999999,0.2829068636,0.30229314010000002,0.26727040749999997,0.24702154579999999,0.2046270301,-0.18444883400000001,-8.7065849999999993E-3,8.7445430099999999E-2,0.1905479018,0.77248232579999998]
[null,null,null,null,null,null,null,null,null,null,"T11_1|IT","T11_1","IT","waver",-5.8279784809999997,10.460874094999999,7.0061005209999996,6.3842313253,4.9883767319999999,5.5273785279999998,3.6484453160000001,2.4476046999999999,-16.925981719999999,20.357606240999999,16.894660471000002,17.083833639000002,14.092928911,14.179160754,12.273309825,10.181423583999999,10.233477090999999,13.69386203,14.908090142000001,14.928237558999999,9.8861770057000005,-3.975275425,0.56004076110000001,6.9953893041999997,0.77248232579999998,0.232928]
[null,null,null,null,null,null,null,null,null,null,"T11_1|LT","T11_1","LT","waver",0.18964665829999999,0.1666,0.155222,0.1650666667,0.16576299999999999,0.14469599999999999,0.208568,0.21358133330000001,0.21853300000000001,0.23452799999999999,0.23621,0.17053199999999999,0.19537499999999999,0.26588400000000001,0.28100999999999998,0.29293200000000003,0.32738,0.29804000000000003,0.30139199999999999,0.29789333330000001,0.28910000000000002,0.22773199999999999,0.227246,0.23770266670000001,0.232928,0.85515179939999997]
[null,null,null,null,null,null,null,null,null,null,"T11_1|LU","T11_1","LU","waver",1.8187656763,1.8766035641000001,1.3456021588,1.1953901463000001,1.2191218538999999,0.96671681949999999,1.0327881217999999,1.0390030523,0.88942063289999995,1.0601858356,1.1279917552000001,1.0067191266,1.0101388334000001,0.77532609100000005,0.89530151790000001,1.2455993512000001,1.3042278596000001,0.7413449446,0.9809454259,0.94591883750000005,0.85096077589999997,0.73388351129999996,0.91663387240000005,0.87918824979999999,0.85515179939999997,0.1182110254]
[null,null,null,null,null,null,null,null,null,null,"T11_1|LV","T11_1","LV","waver",0.20245342299999999,0.209552712,0.22493819200000001,0.22067811070000001,0.216240511,0.19631982000000001,0.25844492400000002,0.23784413200000001,0.23150718100000001,0.21204825199999999,0.18810492400000001,0.19283850929999999,0.198776704,0.20800278799999999,0.17838572,0.22263240670000001,0.204078393,0.206324484,0.18790985199999999,0.19295772529999999,0.181876961,8.5672403999999994E-2,5.2890571999999997E-2,9.0485267999999994E-2,0.1182110254,-4.4852436000000002E-2]
[null,null,null,null,null,null,null,null,null,null,"T11_1|MT","T11_1","MT","waver","n.a.","n.a.","n.a.","n.a.",0.14535789669999999,0.1507593216,0.17298829330000001,0.15906581920000001,0.1549279569,0.14293379519999999,0.1484771101,0.14131514940000001,0.53412401099999995,0.15852550309999999,8.5302757600000001E-2,0.10588441329999999,0.1080855417,0.1057179306,0.12943136089999999,0.12726484229999999,0.1027909306,2.8959719700000001E-2,-6.6117118000000002E-2,-1.2152661E-2,-4.4852436000000002E-2,4.0085745587000003]
[null,null,null,null,null,null,null,null,null,null,"T11_1|NL","T11_1","NL","waver",3.7196319999999998,8.2020759999999999,8.8449399999999994,11.057020585,8.7939301269999994,8.5871666879999999,9.3753497160000006,10.366014191,9.2534174480000004,10.954948384,12.13748534,12.341581027,11.152973937000001,11.067090651999999,12.090443437999999,11.608926180999999,10.754148931,9.2958108320000008,10.229220624,10.800459054999999,9.5664281735000003,1.7075095790000001,2.0789010368,3.9247544240000001,4.0085745587000003,2.0316306706999998]
[null,null,null,null,null,null,null,null,null,null,"T11_1|NO","T11_1","NO","waver",2.8857900340999998,3.7403296042999998,3.2828723581000001,3.0747851399999999,3.1122296918000001,2.7341356755000001,2.7584955998999998,2.685560503,2.9468792244999999,2.1707992727000001,2.2000640380999998,2.3803456095,2.3854831017000002,2.6154964125000002,2.843237969,2.8267843931000001,2.6673302667000001,3.1401891441999998,3.1249101370000001,2.9480972571000001,2.8932847267000001,1.5158302367000001,1.8253526602000001,1.9106406565,2.0316306706999998,1.1372135218999999]
[null,null,null,null,null,null,null,null,null,null,"T11_1|PL","T11_1","PL","waver",1.8675540234000001,2.6888219699000002,2.2409880995,2.0867362797000002,1.8356695118999999,1.7290592597000001,1.8892617749,1.8098188066000001,1.7306598931999999,1.3396716754,1.6524616777000001,1.7222828035,1.9282234700000001,1.5964884291999999,1.7794560696999999,1.9062784264999999,2.0366831968999999,1.4293533181,1.8875453925000001,2.0177089403999999,2.0345060839000002,0.8118409634,1.095320149,1.1851600715999999,1.1372135218999999,-7.6788705999999998E-2]
[null,null,null,null,null,null,null,null,null,null,"T11_1|PT","T11_1","PT","waver",-1.3890304710000001,0.47967925080000001,0.5650295675,0.26702603110000001,-0.55003130300000003,-0.58621022,-1.022832695,-0.54146725200000001,-2.0598735669999999,-0.71118992999999997,-0.47060537000000002,-7.3506109E-2,-0.88157049899999995,2.5223726549999999,1.7946765928999999,1.8171778864000001,0.65151516519999997,1.8435038228,1.5077210619000001,1.6381242683999999,1.1851476827,0.50978332339999999,5.0654635599999998E-2,0.32000493429999999,-7.6788705999999998E-2,0.66235251179999999]
[null,null,null,null,null,null,null,null,null,null,"T11_1|RO","T11_1","RO","waver",-0.508910627,0.58619497480000005,1.4101398073,1.0805391006,0.84847680790000002,0.56063317229999998,0.66324758770000003,0.73149022669999997,0.67574111589999997,0.6864435646,0.68070381349999998,0.6998561593,0.70266691879999998,0.91603981099999998,0.99541060749999999,0.97808713839999994,0.86636721149999996,0.89732479580000002,0.71376866360000002,0.87963364909999997,0.82135810580000002,0.80662083470000001,0.66496302330000001,0.72151400229999996,0.66235251179999999,4.6692231385999996]
[null,null,null,null,null,null,null,null,null,null,"T11_1|SE","T11_1","SE","waver","n.a.","n.a.","n.a.","n.a.",8.7284221406999993,8.0845191404999994,9.6374383425999994,9.8422678282000007,9.9355794198999998,10.681855659,9.7793714540999996,9.4406289986999994,9.1369643756999999,8.4869336973999996,10.206313557,9.8701234222000007,6.3356560227000003,5.9571967151000003,5.9391110927000001,5.5787427793999997,5.7786871299999998,1.8055550795999999,3.3876669927999998,3.9649331854000001,4.6692231385999996,0.52972993359999998]
[null,null,null,null,null,null,null,null,null,null,"T11_1|SI","T11_1","SI","waver",8.4081000000000003E-2,0.14496400000000001,0.12823799999999999,0.131664,0.112619,0.39389600000000002,1.1138920000000001,0.8220106667,0.643706,0.43889600000000001,0.37434000000000001,0.39284266670000001,0.34821400000000002,0.45655600000000002,0.406634,0.386212,0.349524,0.355408,0.34737200000000001,0.35896400000000001,0.316355,0.89384709279999996,0.61021152140000001,0.49340559020000002,0.52972993359999998,0.29612568449999999]
[null,null,null,null,null,null,null,null,null,null,"T11_1|SK","T11_1","SK","waver",0.4435911105,0.47154281460000003,0.49778399010000002,0.50817036390000003,0.47016050790000002,0.42486387840000001,0.60947045560000002,0.54714721200000005,0.49715493849999998,0.44835900159999997,0.50067924669999997,0.49191536409999997,0.46322487130000001,0.51299658660000003,0.49245917560000002,0.50252373790000004,0.46386349609999999,0.4580688671,0.43499571120000002,0.43819300729999999,0.43510115570000002,0.26000203700000002,0.1982739563,0.27539042959999999,0.29612568449999999,56.161406393999997]
[null,null,null,null,null,null,null,null,null,null,"T12_1|AT","T12_1","AT","waver",50.598118919999997,50.407711886000001,50.235840807999999,49.871662047000001,50.812831639000002,52.528675391999997,53.062819802999996,54.407494128000003,49.580434662000002,48.031435715999997,48.694696037,50.006507429000003,49.698352577999998,49.075550059999998,49.020472671999997,49.618422596000002,49.994101325000003,51.916847380999997,51.990900603,52.456431602999999,52.841910818000002,54.370127007000001,54.717398889999998,55.298347315999997,56.161406393999997,83.720044470000005]
[null,null,null,null,null,null,null,null,null,null,"T12_1|BE","T12_1","BE","waver",56.001045326000003,58.135242656999999,57.733446334,58.564082540000001,57.363595068999999,57.595683289,57.897506700000001,58.577579049999997,60.075028488000001,62.843526449999999,63.690952355999997,64.168024274000004,64.853799460999994,68.783176088000005,69.134731806999994,69.412051961000003,68.885405363999993,80.587280923999998,80.496895104999993,80.950788419999995,82.070641545000001,81.697389185000006,81.839645813999994,82.597727899999995,83.720044470000005,4.5886120768999996]
[null,null,null,null,null,null,null,null,null,null,"T12_1|BG","T12_1","BG","waver",2.3840229061999998,2.4416484302999999,2.3775930564999999,2.4318764700000002,2.4771771141999999,2.5300723489000001,2.555790725,2.6262506390999998,2.6576063503,2.7196354433000001,2.7106189283000002,2.7749317415000001,2.8428223744999999,2.8598949279000001,2.8335747520000001,2.8944940688999998,3.2090515389999998,4.2473460987999996,4.2211598834000004,4.1987327435999999,4.2993565292999998,4.4229287248000002,4.4564968298999998,4.5535381940999997,4.5886120768999996,3.0805740419999998]
[null,null,null,null,null,null,null,null,null,null,"T12_1|CY","T12_1","CY","waver",4.8333884999999999,5.1229595000000003,5.1215264999999999,5.0108220000000001,4.9216559999999996,4.7835565000000004,4.7854070000000002,4.7953580000000002,4.7042655,4.647634,4.3777799999999996,4.3719229999999998,4.3634734999999996,3.9309435000000001,3.8840655000000002,"n.a.","n.a.",3.0995425000000001,3.1334415,3.1509594999999999,3.0681025000000002,3.132539,3.0778845800000001,3.0900235395000002,3.0805740419999998,13.891301761999999]
[null,null,null,null,null,null,null,null,null,null,"T12_1|CZ","T12_1","CZ","waver",10.859048746999999,11.130740815999999,10.550067762999999,10.835622661,11.284210715,11.904311292999999,11.346321481,11.595042843,11.688738318,11.818080372000001,11.593041719,11.761087842,11.998169035,12.470844967,11.800491349,12.070768413,12.339026418,12.56785404,12.464554812999999,12.614568449,12.95187353,13.287656355999999,13.536687132000001,13.554995476,13.891301761999999,205.70295726000001]
[null,null,null,null,null,null,null,null,null,null,"T12_1|DE","T12_1","DE","waver",182.40937174999999,194.09476142,194.32231299,190.72727017,218.32780775000001,223.06936092000001,221.89039428999999,219.25774322999999,219.74468225999999,221.41659261999999,224.00932990999999,220.74684572000001,219.86996887999999,219.42692880999999,219.85427772,220.44651823000001,220.35145908000001,202.18921087999999,196.40161936000001,197.95052493,199.22035428000001,205.08181468999999,206.57030463999999,206.75813385999999,205.70295726000001,40.929416603]
[null,null,null,null,null,null,null,null,null,null,"T12_1|DK","T12_1","DK","waver",33.779109730999998,34.876643665000003,35.278982659,35.274053915000003,35.333939244,42.314364517000001,42.551004876999997,43.041322389000001,43.869716007000001,37.688664363000001,38.059952307000003,38.474896594999997,38.709819907000004,38.598433960000001,38.889690182000002,38.926498250999998,39.114395322,38.381897074000001,38.849905960000001,39.092883020000002,39.627960070999997,40.127810955000001,40.227084400999999,40.541070541000003,40.929416603,4.6795326154000003]
[null,null,null,null,null,null,null,null,null,null,"T12_1|EE","T12_1","EE","waver","n.a.","n.a.","n.a.","n.a.","n.a.",2.5830095026,2.6268979997000002,2.6653745981000001,2.6992819914999999,2.7457762937000001,2.7773649901000002,2.8075243586999998,3.3047033061,3.2958029670000002,3.3368204346999999,3.3764358674000001,3.4103057080000001,4.1164814055000001,4.0722294768999996,4.0261816041999996,4.0563319637999999,4.7152271994000001,4.7514621067,4.7992732356000003,4.6795326154000003,232.31284715000001]
[null,null,null,null,null,null,null,null,null,null,"T12_1|GB","T12_1","GB","waver",429.45680342000003,482.33297384000002,481.06106055999999,481.05402554,477.30403934999998,482.81115590000002,480.03961588999999,474.87217306000002,472.76517283999999,452.11420657999997,442.37698132000003,442.02071156,438.42778977,425.89223612000001,425.91373823999999,428.99455224000002,430.08886794,442.57871244,437.75476342000002,440.69566839999999,437.07315926000001,445.82583009000001,435.73268485,433.25040080000002,433.09675535999997,26.929854605999999]
[null,null,null,null,null,null,null,null,null,null,"T12_1|IS","T12_1","IS","waver",0,0,0,0,0,0,0,0,0,0,0,0,5.1956686607,5.0636040069000003,5.0772731341000004,4.9699277424000003,4.9130824853000004,4.5439022980999999,4.4736295814,4.6020650305000004,4.5892513453000001,4.2262045854999997,4.2463077016000002,4.1959614297999996,4.3316017776000004,180.53223113000001]
[null,null,null,null,null,null,null,null,null,null,"T12_1|IT","T12_1","IT","waver",156.24638529999999,160.47804348,160.7486926,162.01460139,161.40080796999999,166.28023490999999,165.53460457,165.97941317999999,157.38043261000001,153.20575194,148.92562566999999,154.46303237000001,156.37716627,169.70030406999999,166.51263008000001,166.54558648,168.00162619,173.4256642,173.75079460000001,176.13428214000001,176.64944374000001,186.14893284999999,186.86434987999999,182.36925547000001,180.53223113000001,2.0790204999999999]
[null,null,null,null,null,null,null,null,null,null,"T12_1|NO","T12_1","NO","waver",22.294513623,23.711403137000001,24.094814952,23.558824164000001,23.982589563000001,26.137854071,26.347975341000001,27.032595832999998,29.397668067000001,24.737676204,24.238985223,24.675968109999999,24.593409315999999,24.873981434000001,24.546870765000001,24.985831647000001,24.764122513,25.620400583999999,25.505932813000001,25.606987796999999,26.422723245,25.744163617000002,26.553346074,26.575112007000001,27.496446554999999,21.781841880000002]
[null,null,null,null,null,null,null,null,null,null,"T12_1|RO","T12_1","RO","waver",3.2276484438000002,3.3222209393000002,3.5292179198000002,3.6252139023000001,3.6461622836999998,4.1641161775000004,4.0457471012999999,4.2175320130999996,4.1955153985000004,4.4097563324999998,4.4258614246999999,4.4892625111999998,4.5196528293,4.7974250067000002,4.6922336669,4.8447349980999999,4.9214906746000002,5.2094842239999997,5.0541212120000001,5.2358974681000001,5.2699983999000004,5.4098320089999996,5.4886888982000004,5.6229190876999997,5.7425931626000004,52.626769291000002]
[null,null,null,null,null,null,null,null,null,null,"T13_1|BE","T13_1","BE","waver",0,0,0,0,0,0,0,0,0,0,0,0,0,0.86318475910000003,0.86901304550000003,0.87521542029999999,0.87573407290000005,0.87697784030000003,0.88092014819999997,0.88676600530000005,0.88808540810000003,0.88423261580000001,0.87443357820000001,0.86550425080000004,0.8622527619,0.80184843009999995]
[null,null,null,null,null,null,null,null,null,null,"T13_1|BG","T13_1","BG","waver",0,0,0,0,0,0,0,0,0,0,0,0,0,0.80859504069999999,0.79905438529999995,0.79976759760000005,0.7988686263,0.80046351780000002,0.8163228776,0.82300541230000002,0.84094625410000001,0.81875284589999997,0.80949261689999996,0.79770748930000002,0.80184843009999995,0.64448098740000004]
[null,null,null,null,null,null,null,null,null,null,"T13_1|EE","T13_1","EE","waver",0,0,0,0,0,0,0,0,0,0,0,0,0,0.86966287890000005,0.87076699319999995,0.88120259050000005,0.8848229675,0.86291637619999995,0.87355744189999995,0.87416243770000002,0.90199598759999999,0.88029164869999998,0.86644006880000002,0.86622836240000001,0.87815929940000004,0.89508145930000005]
[null,null,null,null,null,null,null,null,null,null,"T13_1|FR","T13_1","FR","waver",0,0,0,0,0,0,0,0,0,0,0,0,0,0.88637075450000002,0.89074814300000005,0.89280890329999996,0.89626005350000004,0.90083647170000003,0.90256937199999998,0.90289283870000003,0.90590168739999999,0.90476265659999999,0.90002165430000003,0.90112686340000003,0.88985729359999999,0.84990780519999998]
[null,null,null,null,null,null,null,null,null,null,"T13_1|IE","T13_1","IE","waver",0,0,0,0,0,0,0,0,0,0,0,0,0,0.82639754990000003,0.84109157919999999,0.84754191189999994,0.87422112190000001,0.88228239210000003,0.88790528629999999,0.89231106390000003,0.90271318270000001,0.8904251125,0.80503756950000005,0.80446923370000001,0.78962273650000003,0.83307332619999996]
[null,null,null,null,null,null,null,null,null,null,"T13_1|IS","T13_1","IS","waver",0,0,0,0,0,0,0,0,0,0,0,0,0,0.90738360159999998,0.91111177539999999,0.91128226649999999,0.91443573960000002,0.90649351960000002,0.90514414830000001,0.89929257439999999,0.89755798369999995,0.84732752739999995,0.82464789390000004,0.82698967990000005,0.83307332619999996,0.81200322459999996]
[null,null,null,null,null,null,null,null,null,null,"T13_1|MT","T13_1","MT","waver",0,0,0,0,0,0,0,0,0,0,0,0,0,0.91547938299999998,0.91147182640000002,0.90761461210000005,0.90599099370000002,0.90025326419999996,0.90699346800000002,0.89631288740000004,0.89777427750000005,0.88528162050000003,0.868949576,0.8821537357,0.85273238969999998,0.89881469530000002]
[null,null,null,null,null,null,null,null,null,null,"T13_1|RO","T13_1","RO","waver",0,0,0,0,0,0,0,0,0,0,0,0,0,0.78338019240000001,0.79626575820000001,0.80075344609999999,0.79107383769999995,0.79442595360000001,0.80610732669999996,0.81664777219999996,0.80820247239999998,0.7972072026,0.78750530829999998,0.78840050449999999,0.75708885640000001,0.95492319329999997]
[null,null,null,null,null,null,null,null,null,null,"T13_2|AT","T13_2","AT","waver",0,0,0,0,0,0,0,0,0,0,0,0,0,0.1156699172,0.10343815269999999,9.9979550599999994E-2,0.1083303831,0.109218675,0.1034099215,9.8485694700000001E-2,0.1033835221,0.14615400670000001,0.1783754099,0.1764531174,0.18140817109999999,0.1135495183]
[null,null,null,null,null,null,null,null,null,null,"T13_2|BE","T13_2","BE","waver",0,0,0,0,0,0,0,0,0,0,0,0,0,0.10906756889999999,0.1039963357,0.1008340658,0.1003566571,9.9934147200000004E-2,9.7638958299999995E-2,9.1824689200000004E-2,9.0641435100000001E-2,9.4269925199999993E-2,0.1025342957,0.1116465614,0.1135495183,0.1077887886]
[null,null,null,null,null,null,null,null,null,null,"T13_2|DK","T13_2","DK","waver",0,0,0,0,0,0,0,0,0,0,0,0,0,6.6603284400000004E-2,6.9145964700000007E-2,7.2983160000000005E-2,6.8210973300000005E-2,8.11626716E-2,7.0219696299999995E-2,6.9612228999999998E-2,7.1250361999999998E-2,0.1054675927,0.12333599789999999,8.1260349699999998E-2,7.5770941100000003E-2,0.1068018486]
[null,null,null,null,null,null,null,null,null,null,"T13_2|FR","T13_2","FR","waver",0,0,0,0,0,0,0,0,0,0,0,0,0,8.03755622E-2,7.7082120200000007E-2,7.6106756400000003E-2,7.4267463899999997E-2,7.0380839700000003E-2,6.9215689699999999E-2,6.8986320500000003E-2,6.7155057899999995E-2,6.8707833100000004E-2,7.2802045900000001E-2,7.1441428400000007E-2,8.3840368299999996E-2,0.13351754069999999]
[null,null,null,null,null,null,null,null,null,null,"T13_2|HR","T13_2","HR","waver",0,0,0,0,0,0,0,0,0,0,0,0,0,7.9969936599999999E-2,7.3280677000000002E-2,7.2708855000000003E-2,8.2413374799999994E-2,7.7224920200000005E-2,7.5772464900000003E-2,7.0070312400000001E-2,6.4819095300000004E-2,7.5413901800000002E-2,8.7017085800000005E-2,0.1036714877,0.1129819242,0.1200414271]
[null,null,null,null,null,null,null,null,null,null,"T13_2|IE","T13_2","IE","waver",0,0,0,0,0,0,0,0,0,0,0,0,0,8.6472351599999997E-2,8.5944971800000006E-2,8.2508390099999995E-2,6.6574971799999993E-2,6.7060216800000003E-2,6.3452099900000003E-2,6.2132011799999998E-2,5.9426489200000002E-2,7.1367046200000006E-2,0.14539342920000001,0.1437276233,0.15606161220000001,0.13856649709999999]
[null,null,null,null,null,null,null,null,null,null,"T13_2|LV","T13_2","LV","waver",0,0,0,0,0,0,0,0,0,0,0,0,0,0.1299691899,0.1099497275,0.1069496615,0.10916541019999999,0.121269261,0.1143130072,0.1186383152,0.1121204973,0.12083168950000001,0.1090895699,0.1046326159,5.10026591E-2,9.9065500099999995E-2]
[null,null,null,null,null,null,null,null,null,null,"T13_2|PT","T13_2","PT","waver",0,0,0,0,0,0,0,0,0,0,0,0,0,0.1123791715,0.1094949279,0.1052862479,0.1083232492,0.11013482550000001,0.10521714090000001,0.1040968231,0.10076143429999999,9.6609867000000002E-2,9.48150346E-2,9.3267776299999994E-2,0.1156885958,0.19678244889999999]
[null,null,null,null,null,null,null,null,null,null,"T13_2|SE","T13_2","SE","waver",0,0,0,0,0,0,0,0,0,0,0,0,0,4.8138961600000002E-2,4.6840609499999998E-2,4.77415453E-2,4.16703764E-2,4.0421919200000003E-2,3.9221828E-2,3.8838450199999999E-2,3.9017391300000002E-2,4.0329750599999999E-2,4.4184269200000001E-2,4.2310037600000003E-2,3.9983057000000002E-2,8.1253587200000005E-2]
[null,null,null,null,null,null,null,null,null,null,"T13_3|AT","T13_3","AT","waver",0,0,0,0,0,0,0,0,0,0,0,0,0,3.6686233800000002E-2,3.37725106E-2,3.23310588E-2,2.94797054E-2,2.81567E-2,2.6584769599999999E-2,2.5421013999999999E-2,2.4942680500000002E-2,2.4014536400000001E-2,2.4028541300000001E-2,2.3894748899999999E-2,2.6065199899999999E-2,2.41977198E-2]
[null,null,null,null,null,null,null,null,null,null,"T13_3|DE","T13_3","DE","waver",0,0,0,0,0,0,0,0,0,0,0,0,0,1.9290182699999998E-2,1.81823118E-2,1.78869704E-2,1.64546554E-2,1.55597136E-2,1.5364596100000001E-2,1.4625325099999999E-2,1.44735266E-2,1.3451257899999999E-2,1.5781769399999999E-2,1.59352546E-2,1.6026624400000002E-2,3.09601758E-2]
[null,null,null,null,null,null,null,null,null,null,"T13_3|FI","T13_3","FI","waver",0,0,0,0,0,0,0,0,0,0,0,0,0,1.25729315E-2,1.1724544599999999E-2,1.1695916299999999E-2,1.6797274800000001E-2,1.64698556E-2,1.59779546E-2,1.6369204500000002E-2,1.6111926400000001E-2,1.7361712500000001E-2,1.8150907899999999E-2,1.79490673E-2,1.6885732800000001E-2,2.6302338200000001E-2]
[null,null,null,null,null,null,null,null,null,null,"T13_3|HU","T13_3","HU","waver",0,0,0,0,0,0,0,0,0,0,0,0,0,9.5247331500000004E-2,8.5682977899999999E-2,7.5575815599999999E-2,6.8402840199999995E-2,6.6621010699999997E-2,6.3189777099999997E-2,5.7279943700000002E-2,5.13080037E-2,4.9773215199999998E-2,4.9257149E-2,4.6872572500000001E-2,4.6467687100000002E-2,5.4315651299999997E-2]
[null,null,null,null,null,null,null,null,null,null,"T13_3|IT","T13_3","IT","waver",0,0,0,0,0,0,0,0,0,0,0,0,0,0.11324126800000001,0.1035765791,9.8433038900000006E-2,8.6900086799999998E-2,8.7366759399999994E-2,8.3424208900000005E-2,7.6283168900000003E-2,6.9153277499999999E-2,6.7785175599999997E-2,6.5303567100000001E-2,5.9357773599999997E-2,5.05693459E-2,1.92199646E-2]
[null,null,null,null,null,null,null,null,null,null,"T13_3|LU","T13_3","LU","waver",0,0,0,0,0,0,0,0,0,0,0,0,0,1.35194841E-2,1.36629456E-2,1.4168469499999999E-2,1.72364066E-2,1.9168342800000002E-2,1.8528705199999999E-2,1.7695649099999999E-2,1.53472544E-2,1.7111995000000001E-2,1.8989961699999999E-2,2.32268048E-2,2.3473813E-2,3.02913631E-2]
[null,null,null,null,null,null,null,null,null,null,"T13_3|PL","T13_3","PL","waver",0,0,0,0,0,0,0,0,0,0,0,0,0,7.0644607999999998E-2,5.84764381E-2,5.6227795300000001E-2,5.3247789300000001E-2,5.2574053099999997E-2,5.0096205300000002E-2,4.96081092E-2,4.8845553399999998E-2,4.8162537499999998E-2,5.0269822800000002E-2,5.0565961E-2,5.16516136E-2,5.6671543800000002E-2]
[null,null,null,null,null,null,null,null,null,null,"T13_3|SK","T13_3","SK","waver",0,0,0,0,0,0,0,0,0,0,0,0,0,3.3886409899999997E-2,3.0841366299999999E-2,2.9677441299999999E-2,2.88343595E-2,2.7374371200000001E-2,2.68482674E-2,2.7117931099999999E-2,2.7044146799999998E-2,2.64174041E-2,2.6137985900000001E-2,2.4573260900000001E-2,2.3370026499999998E-2,2.3824152000000002E-3]
[null,null,null,null,null,null,null,null,null,null,"T13_4|AT","T13_4","AT","waver",0,0,0,0,0,0,0,0,0,0,0,0,0,2.1697352E-3,1.9996315000000001E-3,1.9577708E-3,1.9249384999999999E-3,1.8665554999999999E-3,1.8912673E-3,1.8828929E-3,1.8529676000000001E-3,1.9398624E-3,2.1323521000000002E-3,2.1585452000000001E-3,2.3824152000000002E-3,1.075023E-3]
[null,null,null,null,null,null,null,null,null,null,"T13_4|CZ","T13_4","CZ","waver",0,0,0,0,0,0,0,0,0,0,0,0,0,1.2127119999999999E-3,1.1836044999999999E-3,1.0953854000000001E-3,1.1333335E-3,1.0186259999999999E-3,1.032318E-3,1.0221296999999999E-3,1.0469489999999999E-3,9.8128509999999996E-4,1.1446061000000001E-3,1.116382E-3,1.2624227E-3,1.1569644E-3]
[null,null,null,null,null,null,null,null,null,null,"T13_4|EU","T13_4","EU","waver",0,0,0,0,0,0,0,0,0,0,0,0,0,1.9376166000000001E-3,1.8637529999999999E-3,1.8371691000000001E-3,1.7769957E-3,1.7789956E-3,1.7839702E-3,1.7609359E-3,1.747127E-3,2.1293976000000001E-3,2.4226540999999998E-3,2.4050473000000001E-3,2.3611882999999998E-3,9.4917099999999996E-4]
[null,null,null,null,null,null,null,null,null,null,"T13_4|HR","T13_4","HR","waver",0,0,0,0,0,0,0,0,0,0,0,0,0,8.3502435999999996E-3,7.9297433999999997E-3,7.9814295999999993E-3,7.9403483000000004E-3,7.5985078000000003E-3,7.4206237000000001E-3,7.4742278999999998E-3,7.6020074000000002E-3,6.7865388000000002E-3,6.3508202999999997E-3,5.6870823999999997E-3,5.7085861999999999E-3,7.5181618999999996E-3]
[null,null,null,null,null,null,null,null,null,null,"T13_4|HU","T13_4","HU","waver",0,0,0,0,0,0,0,0,0,0,0,0,0,1.07099003E-2,9.5615924000000008E-3,9.6643179999999999E-3,8.7072178999999996E-3,9.5792159999999998E-3,9.7364285999999994E-3,9.2595556999999998E-3,8.5511366999999998E-3,1.0335486E-2,8.9675998E-3,7.0515952E-3,7.5181618999999996E-3,4.9133878999999998E-3]
[null,null,null,null,null,null,null,null,null,null,"T13_4|LV","T13_4","LV","waver",0,0,0,0,0,0,0,0,0,0,0,0,0,7.9222850000000003E-4,8.0949259999999997E-4,7.9024130000000001E-4,7.8958510000000002E-4,2.4051818E-3,2.4100929999999999E-3,2.4762607999999999E-3,2.1157285000000001E-3,3.5423405999999999E-3,3.5201616000000002E-3,3.3121937E-3,5.8723828999999996E-3,4.1339124000000001E-3]
[null,null,null,null,null,null,null,null,null,null,"T13_4|NO","T13_4","NO","waver",0,0,0,0,0,0,0,0,0,0,0,0,0,3.7702230000000002E-4,3.6886960000000001E-4,3.7813469999999999E-4,3.6837630000000001E-4,3.989423E-4,3.5533800000000002E-4,3.4683099999999997E-4,3.0507419999999997E-4,6.0840220000000003E-4,7.1290500000000001E-4,6.4067020000000004E-4,6.6109749999999998E-4,3.7162565E-3]
[null,null,null,null,null,null,null,null,null,null,"T13_4|SI","T13_4","SI","waver",0,0,0,0,0,0,0,0,0,0,0,0,0,4.7630108999999997E-3,4.9675459999999998E-3,5.3750689000000001E-3,6.0370351000000001E-3,6.1479854E-3,6.0735718000000001E-3,6.5017892999999997E-3,7.2067735000000003E-3,6.0354746999999997E-3,7.2551834999999999E-3,6.8597626000000004E-3,7.0112584000000004E-3,2.5224692999999999E-3]
[null,null,null,null,null,null,null,null,null,null,"T13_4|SK","T13_4","SK","waver",0,0,0,0,0,0,0,0,0,0,0,0,0,3.1893931E-3,3.1150267000000001E-3,2.8901329E-3,2.9180178E-3,2.7043308999999999E-3,2.4427626E-3,2.3873046E-3,2.4364817000000001E-3,2.4054515E-3,2.2453425000000002E-3,2.3413682E-3,2.5224692999999999E-3,3.0006649100000001E-2]
[null,null,null,null,null,null,null,null,null,null,"T13_5|CZ","T13_5","CZ","waver",0,0,0,0,0,0,0,0,0,0,0,0,0,4.5908337399999999E-2,4.0395643199999998E-2,4.71326735E-2,4.4273336099999998E-2,4.4488961299999998E-2,4.3399394000000001E-2,4.2544916100000003E-2,4.00874799E-2,3.80565291E-2,6.7930018100000003E-2,7.1895105799999998E-2,7.1770817700000003E-2,2.35797391E-2]
[null,null,null,null,null,null,null,null,null,null,"T13_5|ES","T13_5","ES","waver",0,0,0,0,0,0,0,0,0,0,0,0,0,7.4705037000000002E-2,7.0852415599999996E-2,7.3908976299999998E-2,7.3780381800000003E-2,7.5113031100000005E-2,7.0303246700000002E-2,6.7161574500000001E-2,6.8779860799999995E-2,7.1011379799999996E-2,7.27670178E-2,8.0345877699999999E-2,7.3444849300000004E-2,4.0408656699999997E-2]
[null,null,null,null,null,null,null,null,null,null,"T13_5|GR","T13_5","GR","waver",0,0,0,0,0,0,0,0,0,0,0,0,0,8.7937790299999999E-2,8.2345893399999995E-2,7.9243952899999998E-2,6.8074467499999999E-2,6.6422333400000005E-2,6.5592898600000005E-2,6.3772939299999998E-2,6.1746289599999997E-2,6.6633378500000007E-2,6.4684927200000006E-2,6.3296062700000003E-2,5.76984049E-2,7.7521426599999999E-2]
[null,null,null,null,null,null,null,null,null,null,"T13_5|HR","T13_5","HR","waver",0,0,0,0,0,0,0,0,0,0,0,0,0,7.1511646900000003E-2,7.6325880999999998E-2,7.0095288800000002E-2,6.11293683E-2,6.3490266200000006E-2,6.4524213799999994E-2,6.5386929699999999E-2,6.9247717700000003E-2,7.23871715E-2,7.6393168900000002E-2,7.0913919199999995E-2,7.7521426599999999E-2,9.8871495000000004E-2]
[null,null,null,null,null,null,null,null,null,null,"T13_5|LT","T13_5","LT","waver",0,0,0,0,0,0,0,0,0,0,0,0,0,1.2917148099999999E-2,1.1780908600000001E-2,1.11673954E-2,1.3899791700000001E-2,1.1326740700000001E-2,9.4655573999999996E-3,1.13081213E-2,9.8783385000000001E-3,1.25638074E-2,1.52291406E-2,1.51032379E-2,1.7924646900000001E-2,2.4204095200000001E-2]
[null,null,null,null,null,null,null,null,null,null,"T13_5|MT","T13_5","MT","waver",0,0,0,0,0,0,0,0,0,0,0,0,0,6.6318803000000003E-3,4.7636069199999999E-2,4.6132002900000003E-2,3.65269025E-2,4.3061815599999997E-2,5.03392202E-2,4.1069876700000001E-2,4.7618203599999999E-2,3.8200677199999998E-2,4.00004313E-2,4.2947655799999998E-2,4.9591067799999999E-2,2.3870827000000001E-2]
[null,null,null,null,null,null,null,null,null,null,"T13_5|SE","T13_5","SE","waver",0,0,0,0,0,0,0,0,0,0,0,0,0,1.6500613099999999E-2,1.7280686199999999E-2,1.7238594999999999E-2,1.51601562E-2,1.52975803E-2,1.3997239200000001E-2,1.35576667E-2,1.27856927E-2,1.58701461E-2,1.6877820299999999E-2,1.60990048E-2,1.7798795499999999E-2,5.9011341100000003E-2]
[null,null,null,null,null,null,null,null,null,null,"T13_5|SI","T13_5","SI","waver",0,0,0,0,0,0,0,0,0,0,0,0,0,5.7797025699999997E-2,5.5730460699999998E-2,5.5428990499999997E-2,7.8694524900000007E-2,8.1654623100000004E-2,9.4655776100000005E-2,8.8523164500000001E-2,8.1933358600000006E-2,8.2870338700000004E-2,7.6817783799999997E-2,7.7279707000000003E-2,5.9011341100000003E-2,3.3003362600000002E-2]
[null,null,null,null,null,null,null,null,null,null,"T13_6|CY","T13_6","CY","waver",0,0,0,0,0,0,0,0,0,0,0,0,0,0.4677981927,0.44502861290000001,"n.a.","n.a.",0.46533328330000001,0.46524228299999998,0.47688195309999998,0.49656798600000002,0.51292872810000001,0.47425505829999998,0.47143533679999999,0.45167220130000002,0.54732337669999997]
[null,null,null,null,null,null,null,null,null,null,"T13_6|EE","T13_6","EE","waver",0,0,0,0,0,0,0,0,0,0,0,0,0,0.25857004039999998,0.26552780320000002,0.2778501263,0.24839805819999999,0.26360195780000001,0.29053681770000001,0.33268927910000001,0.35677175589999999,0.352827377,0.3383063945,0.34643561779999998,0.29713743129999998,0.45849655900000003]
[null,null,null,null,null,null,null,null,null,null,"T13_6|GB","T13_6","GB","waver",0,0,0,0,0,0,0,0,0,0,0,0,0,0.34946007620000002,0.35132266420000002,0.35264024859999998,0.34823796060000001,0.3372535331,0.34326713660000002,0.34842870250000002,0.37240364500000001,0.39036688689999999,0.38843607530000002,0.38544192770000002,0.37773825640000003,0.44629102650000002]
[null,null,null,null,null,null,null,null,null,null,"T13_6|GR","T13_6","GR","waver",0,0,0,0,0,0,0,0,0,0,0,0,0,0.50051838839999996,0.49496401629999998,0.48223290419999998,0.48145004949999998,0.47838825039999999,0.46953989550000003,0.45182041899999997,0.4469507593,0.45092234650000002,0.44476321190000001,0.44772768060000001,0.44629102650000002,0.62885542859999999]
[null,null,null,null,null,null,null,null,null,null,"T13_6|IT","T13_6","IT","waver",0,0,0,0,0,0,0,0,0,0,0,0,0,0.55515394799999995,0.544920917,0.54437468349999996,0.53264991070000001,0.53238336779999995,0.52916002500000003,0.52794229380000002,0.53717639549999996,0.53724197149999997,0.52612861899999996,0.53776786980000002,0.53475177240000005,0.31145453880000001]
[null,null,null,null,null,null,null,null,null,null,"T13_6|NL","T13_6","NL","waver",0,0,0,0,0,0,0,0,0,0,0,0,0,0.27672846579999999,0.2699210695,0.26379643590000001,0.2526275281,0.25017441530000001,0.25110491569999999,0.25171913540000002,0.26230621430000001,0.26339626690000001,0.28412389910000002,0.27843069869999998,0.27650499099999998,0.37424364440000002]
[null,null,null,null,null,null,null,null,null,null,"T13_6|PL","T13_6","PL","waver",0,0,0,0,0,0,0,0,0,0,0,0,0,0.68130169289999998,0.61912508420000001,0.60985698420000001,0.601922136,0.61314868700000003,0.6249494592,0.62317551449999997,0.608772066,0.61801550419999995,0.62629891500000001,0.64125173449999995,0.63857614819999997,0.5414304633]
[null,null,null,null,null,null,null,null,null,null,"T13_6|SE","T13_6","SE","waver",0,0,0,0,0,0,0,0,0,0,0,0,0,0.34587812849999999,0.3359280388,0.35730283670000001,0.37172193170000001,0.3712897027,0.37258794280000002,0.38298903249999999,0.4052753664,0.44246746219999999,0.4296103872,0.44099972370000001,0.44901065029999998,0.55495807610000003]
[null,null,null,null,null,null,null,null,null,null,"T14_0|BG","T14_0","BG","waver",0,0,0,0,0,0,0,0,0,0,0,0,0,3.0995904488999999,3.1167251252999999,3.1105547601999999,3.0708431331999999,3.4085872788999998,3.7296395336999999,3.8694866550999998,3.9661586052,4.1283878720000002,4.0623284588999997,4.0701830453000003,4.0983316289999996,1.2788481067999999]
[null,null,null,null,null,null,null,null,null,null,"T14_0|EE","T14_0","EE","waver",0,0,0,0,0,0,0,0,0,0,0,0,0,0.3746640859,0.36664550379999999,0.36561882070000001,0.35118305630000002,0.56267459529999997,0.68439632949999996,0.76064490060000001,0.66805999640000002,0.85317748069999999,3.1236931351999999,3.1616566179999999,2.9657086131999999,512.7623284]
[null,null,null,null,null,null,null,null,null,null,"T14_0|FR","T14_0","FR","waver",0,0,0,0,0,0,0,0,0,0,0,0,0,1930.2567626,2001.0918273,1986.6980165,1782.7532964,2032.9964309,2167.54457,2364.9199723000002,1902.5333364999999,2449.5829997000001,2256.3301958000002,2235.4395221,2105.3882683000002,2621.9658995999998]
[null,null,null,null,null,null,null,null,null,null,"T14_0|GB","T14_0","GB","waver",0,0,0,0,0,0,0,0,0,0,0,0,0,2257.1981311,2298.4121377000001,2254.5682796000001,2211.5013641999999,2387.3374438000001,2414.1126509999999,2661.4403880999998,2439.3431172000001,2911.9378538999999,2651.2717647999998,2562.5385345,2621.9658995999998,28.986606587000001]
[null,null,null,null,null,null,null,null,null,null,"T14_0|IS","T14_0","IS","waver",0,0,0,0,0,0,0,0,0,0,0,0,0,2.3394163523999998,2.2674747354,2.4370139527000001,2.3630695025000001,2.4850591582999999,2.5840083947000001,2.9075533191999998,2.5990858021999999,2.7874216345999998,3.1901254828000001,3.3548627890999998,3.4504190811000002,369.87281421]
[null,null,null,null,null,null,null,null,null,null,"T14_0|MT","T14_0","MT","waver",0,0,0,0,0,0,0,0,0,0,0,0,0,1.4976297358999999,1.7344439583,1.6588134804000001,1.617616712,1.8409988124000001,1.8604757547999999,1.8189964679999999,2.0557064298999999,2.0105126383999998,2.6036003951,2.4362537705,2.2784051477,267.15766095999999]
[null,null,null,null,null,null,null,null,null,null,"T14_0|RO","T14_0","RO","waver",0,0,0,0,0,0,0,0,0,0,0,0,0,8.0692059131999994,8.4967275212000004,8.7726476919999996,8.9916704829,8.2898867799999998,8.5720902653,9.0870730851000001,9.5746518066000004,10.093566132999999,10.588039772,10.902048034,12.245197489000001,120.25003966]
[null,null,null,null,null,null,null,null,null,null,"T14_0|SI","T14_0","SI","waver",0,0,0,0,0,0,0,0,0,0,0,0,0,4.1315189999999999,4.1889269999999996,4.188777,3.7145600000000001,3.7781500000000001,3.686461,3.5828410000000002,3.551336,4.7519172522000002,4.5384459767000003,4.6728201,5.9603892592000003,2.2088615892000001]
[null,null,null,null,null,null,null,null,null,null,"T14_1|BE","T14_1","BE","waver",0,0,0,0,0,0,0,0,0,0,0,0,0,0.36951223249999998,0.36298507000000002,0.36397292310000001,0.37620659969999998,0.3459550488,0.32424987150000001,0.2970073943,0.33706611669999997,0.30984338480000001,0.33222986069999999,0.33429803120000001,0.35534477279999999,0.77653281750000003]
[null,null,null,null,null,null,null,null,null,null,"T14_1|DK","T14_1","DK","waver",0,0,0,0,0,0,0,0,0,0,0,0,0,9.4642610599999996E-2,0.1095020547,9.9482931799999993E-2,8.5235953000000003E-2,0.1107868744,0.1212750507,0.1186696349,0.10814480880000001,0.12332114030000001,0.1201792756,0.1281743481,0.129629674,0.33690679820000002]
[null,null,null,null,null,null,null,null,null,null,"T14_1|FR","T14_1","FR","waver",0,0,0,0,0,0,0,0,0,0,0,0,0,0.32127077380000002,0.30402785240000002,0.31560305649999998,0.28723488539999997,0.31102413880000002,0.28952079930000002,0.26934127689999998,0.28197185190000001,0.2538935524,0.29471880690000002,0.29469008460000001,0.29198577329999997,0.2848163917]
[null,null,null,null,null,null,null,null,null,null,"T14_1|HR","T14_1","HR","waver",0,0,0,0,0,0,0,0,0,0,0,0,0,0.40951278720000001,0.42103576050000002,0.4353027887,0.37994269450000001,0.42494804850000001,0.41780003370000002,0.42625005789999998,0.4228369126,0.42596616199999998,0.43417529640000002,0.40496671499999998,0.44101975500000001,0.3988263145]
[null,null,null,null,null,null,null,null,null,null,"T14_1|IE","T14_1","IE","waver",0,0,0,0,0,0,0,0,0,0,0,0,0,0.63974659479999996,0.65407199449999998,0.673074701,0.67666676540000004,0.77224087389999996,0.74929625499999997,0.7212830496,0.71684626699999998,0.66656393859999996,0.6638656235,0.66447863009999997,0.61661502899999998,0.86972063290000001]
[null,null,null,null,null,null,null,null,null,null,"T14_1|LV","T14_1","LV","waver",0,0,0,0,0,0,0,0,0,0,0,0,0,0.5516577614,0.35504483679999999,0.2409155929,0.8268132788,0.91412971679999999,0.92290314750000002,0.90213395919999995,0.90418683759999996,0.86840141069999999,0.44143202180000002,0.47960333430000002,0.93729468549999995,0.71798417530000003]
[null,null,null,null,null,null,null,null,null,null,"T14_1|PT","T14_1","PT","waver",0,0,0,0,0,0,0,0,0,0,0,0,0,0.69760587240000005,0.72628274780000002,0.72051194249999995,0.72269787190000001,0.74191497989999999,0.74899637910000005,0.73699972459999996,0.74601273800000001,0.68734286,0.71720752219999995,0.70971330420000001,0.70313313,0.9668655129]
[null,null,null,null,null,null,null,null,null,null,"T14_1|RO","T14_1","RO","waver",0,0,0,0,0,0,0,0,0,0,0,0,0,0.97289274189999997,0.98984337440000003,0.95614206879999997,0.95702362630000004,0.95648064219999995,0.95211073479999997,0.95325281679999996,0.98457329049999998,0.94815826469999998,0.94938972690000001,0.96737639330000003,0.9668655129,0.38423655509999999]
[null,null,null,null,null,null,null,null,null,null,"T14_2|BE","T14_2","BE","waver",0,0,0,0,0,0,0,0,0,0,0,0,0,0.46074315999999998,0.51645271770000001,0.52234605670000001,0.50511747760000003,0.55002539110000004,0.5614867603,0.58542144110000005,0.55911549559999996,0.59602331590000002,0.57537574420000004,0.5544711202,0.5485372583,0.21252353399999999]
[null,null,null,null,null,null,null,null,null,null,"T14_2|DE","T14_2","DE","waver",0,0,0,0,0,0,0,0,0,0,0,0,0,0.68734295950000002,0.69074667300000003,0.69355061039999999,0.70002312990000004,0.70304353379999995,0.71459448670000003,0.7572826802,0.72454560769999998,0.74514184080000001,0.73409602060000001,0.74041409459999996,0.73442009119999996,0.86793725499999996]
[null,null,null,null,null,null,null,null,null,null,"T14_2|FI","T14_2","FI","waver",0,0,0,0,0,0,0,0,0,0,0,0,0,0.2950310532,0.30576903,0.2809379756,0.77864680919999996,0.77197516249999998,0.7942205484,0.80612041280000002,0.8082266682,0.76966637940000004,0.75825722230000003,0.74526504709999997,0.75558989919999997,0.67353855470000001]
[null,null,null,null,null,null,null,null,null,null,"T14_2|FR","T14_2","FR","waver",0,0,0,0,0,0,0,0,0,0,0,0,0,0.64904659450000002,0.66633392979999995,0.65575966620000004,0.67571791079999999,0.65744798240000002,0.67885756679999998,0.69959446930000002,0.68067484879999995,0.71121711180000002,0.66991253829999997,0.67144717369999996,0.67353855470000001,0.69896108440000004]
[null,null,null,null,null,null,null,null,null,null,"T14_2|HU","T14_2","HU","waver",0,0,0,0,0,0,0,0,0,0,0,0,0,0.2499524836,0.29983361260000002,0.28673922060000001,0.26797897529999998,0.27970719049999998,0.27198657479999999,0.2924119859,0.31110073859999998,0.36727070699999997,0.39434720150000002,0.4351180368,0.35239023400000002,0.34675499799999998]
[null,null,null,null,null,null,null,null,null,null,"T14_2|LU","T14_2","LU","waver",0,0,0,0,0,0,0,0,0,0,0,0,0,0.5023570718,0.47085282070000001,0.58232239050000001,0.47249657769999998,0.47281806840000001,0.46061367050000002,0.44123906819999997,0.44576256190000002,0.53804039889999999,0.4173267068,0.40735459200000002,0.370404126,5.4318589899999999E-2]
[null,null,null,null,null,null,null,null,null,null,"T14_2|PL","T14_2","PL","waver",0,0,0,0,0,0,0,0,0,0,0,0,0,0.15018946729999999,0.1991772098,0.15010836699999999,0.1719331365,0.1767090036,0.15226771289999999,0.13604868149999999,0.1503297763,0.1830182816,0.2460144112,0.24092532550000001,0.1953396657,0.1679144129]
[null,null,null,null,null,null,null,null,null,null,"T14_2|PT","T14_2","PT","waver",0,0,0,0,0,0,0,0,0,0,0,0,0,0.12972258189999999,0.1116192604,0.1160231799,0.1219858328,0.1090395992,0.1077253074,0.1207358307,0.1139500729,0.17360323890000001,0.16047214539999999,0.1644149734,0.1679144129,2.5031755999999999E-2]
[null,null,null,null,null,null,null,null,null,null,"T14_3|AT","T14_3","AT","waver",0,0,0,0,0,0,0,0,0,0,0,0,0,9.1111371999999996E-2,8.3340719600000002E-2,8.6273355800000007E-2,8.0650028400000004E-2,7.7184294299999998E-2,7.5244097699999998E-2,7.4016073200000004E-2,8.1106229700000004E-2,7.1960828000000004E-2,7.6237639800000007E-2,7.6778242199999999E-2,7.5773439100000006E-2,9.6117968900000003E-2]
[null,null,null,null,null,null,null,null,null,null,"T14_3|CZ","T14_3","CZ","waver",0,0,0,0,0,0,0,0,0,0,0,0,0,5.5971416099999997E-2,5.9464153499999998E-2,5.7994833500000002E-2,6.3993265199999996E-2,5.9872346700000002E-2,5.5954270399999999E-2,4.7429672399999998E-2,5.8032889099999999E-2,4.0228905600000003E-2,3.8262392899999997E-2,4.0003917299999997E-2,4.9970744599999999E-2,5.48684433E-2]
[null,null,null,null,null,null,null,null,null,null,"T14_3|EU","T14_3","EU","waver",0,0,0,0,0,0,0,0,0,0,0,0,0,3.9991958199999997E-2,3.66320443E-2,3.7771196399999998E-2,4.1208247699999999E-2,3.7676104799999999E-2,3.1535584200000001E-2,3.0560324699999999E-2,3.3586763499999998E-2,3.8749567800000002E-2,3.7496428200000001E-2,3.76517413E-2,3.9208988200000003E-2,1.9586503099999999E-2]
[null,null,null,null,null,null,null,null,null,null,"T14_3|FI","T14_3","FI","waver",0,0,0,0,0,0,0,0,0,0,0,0,0,2.9302585799999999E-2,4.3050095300000001E-2,2.5195541799999999E-2,1.20131119E-2,1.1970880999999999E-2,1.3226325800000001E-2,1.3915964499999999E-2,1.74398856E-2,1.48804362E-2,1.8164957900000001E-2,2.0634472300000001E-2,1.9586503099999999E-2,3.44756721E-2]
[null,null,null,null,null,null,null,null,null,null,"T14_3|HU","T14_3","HU","waver",0,0,0,0,0,0,0,0,0,0,0,0,0,1.16536529E-2,1.32770604E-2,1.33909466E-2,2.2172348299999999E-2,2.06584977E-2,2.10244204E-2,3.9281643300000002E-2,4.4888811799999997E-2,5.1005777500000002E-2,6.0035845800000001E-2,6.7677304199999996E-2,0.2487834515,3.6629973000000003E-2]
[null,null,null,null,null,null,null,null,null,null,"T14_3|IT","T14_3","IT","waver",0,0,0,0,0,0,0,0,0,0,0,0,0,3.2112333700000002E-2,3.2287457899999997E-2,3.33826672E-2,3.7237923499999999E-2,3.3905904200000003E-2,3.3568995900000002E-2,3.1713799000000001E-2,3.9368570499999998E-2,3.5721915999999999E-2,3.6337776299999999E-2,3.6209480699999998E-2,3.7572372899999998E-2,1.36713253E-2]
[null,null,null,null,null,null,null,null,null,null,"T14_3|NO","T14_3","NO","waver",0,0,0,0,0,0,0,0,0,0,0,0,0,0.2272619075,0.22248924019999999,0.2269635193,0.21789108539999999,0.23077279719999999,0.25772883530000001,0.25295231019999997,0.25138163569999999,0.20121474219999999,0.20220993340000001,0.2171550048,0.21587237870000001,0.1090729111]
[null,null,null,null,null,null,null,null,null,null,"T14_3|PL","T14_3","PL","waver",0,0,0,0,0,0,0,0,0,0,0,0,0,8.3451489899999995E-2,7.8071831100000003E-2,9.0028490599999997E-2,0.1056048675,8.8758759600000001E-2,0.1065027558,0.16451526699999999,0.14390413260000001,0.1246629767,0.1030195904,0.115629394,0.1090729111,0.1289524571]
[null,null,null,null,null,null,null,null,null,null,"T14_3|SK","T14_3","SK","waver",0,0,0,0,0,0,0,0,0,0,0,0,0,2.2538684600000001E-2,6.9226998400000003E-2,6.9811931999999993E-2,5.7993139700000002E-2,8.1012831800000004E-2,6.6082529299999998E-2,6.1147529499999999E-2,4.82361683E-2,2.09265371E-2,1.9495184700000001E-2,2.3718682200000001E-2,1.25997204E-2,93.883978573999997]
[null,null,null,null,null,null,null,null,null,null,"T15_1|CZ","T15_1","CZ","waver",0,0,0,0,0,0,0,0,0,0,0,0,0,0,43.255083155000001,0,41.057159140000003,0,50.878126748,0,47.414107864000002,0,27.994285055999999,0,26.015510943999999,476.36161038]
[null,null,null,null,null,null,null,null,null,null,"T15_1|ES","T15_1","ES","waver",0,0,0,0,0,0,0,0,0,0,0,0,0,0,482.87554383000003,0,457.60492302,0,459.89160930999998,0,442.49625835000001,0,469.44244329000003,0,453.54164508000002,3217.6724273]
[null,null,null,null,null,null,null,null,null,null,"T15_1|EU","T15_1","EU","waver",0,0,0,0,0,0,0,0,0,0,0,0,0,19.846941531999999,4106.6910500000004,22.165399458,3821.8674458999999,10.817425754,3983.0063608,17.659598975000002,3873.1000709,3.2679996264,3416.7419860999998,0,3217.6724273,21.387012949999999]
[null,null,null,null,null,null,null,null,null,null,"T15_1|HR","T15_1","HR","waver",0,0,0,0,0,0,0,0,0,0,0,0,0,2.8245989868999999,9.6319015204999996,0,9.8338254032000005,0,10.168763643,0,10.111118941999999,0,11.139261107999999,0,7.6645723694000001,7.6068184318999998]
[null,null,null,null,null,null,null,null,null,null,"T15_1|LT","T15_1","LT","waver",0,0,0,0,0,0,0,0,0,0,0,0,0,0,0.74145099999999997,0,1.0923449999999999,0,1.1919979999999999,0,1.239903,0,1.4624699999999999,0,1.826022,23.854812281000001]
[null,null,null,null,null,null,null,null,null,null,"T15_1|LV","T15_1","LV","waver",0,0,0,0,0,0,0,0,0,0,0,0,0,0,0.54071183700000003,0,0.42746256300000002,0,0.83895187199999999,0,0.99043973200000002,0,1.49262568,0,1.7796004700000001,3.1241212545999999]
[null,null,null,null,null,null,null,null,null,null,"T15_1|NO","T15_1","NO","waver",0,0,0,0,0,0,0,0,0,0,0,0,0,12.888153094,16.318818921999998,1.5729782103000001,18.873271116000002,1.8211487743999999,12.8635717,2.7936029424000002,14.124108293000001,3.2679996264,26.892078965,0,18.481740533,47.038489708999997]
[null,null,null,null,null,null,null,null,null,null,"T15_1|SI","T15_1","SI","waver",0,0,0,0,0,0,0,0,0,0,0,0,0,0,5.2928850000000001,0,4.7902610000000001,0,4.7731810000000001,0,4.6872290000000003,0,5.0029001230999999,0,6.6137783787000002,6.8452839739]
[null,null,null,null,null,null,null,null,null,null,"T15_2|CY","T15_2","CY","waver",0,0,0,0,0,0,0,0,0,0,0,0,0,0,0.68919241360000005,0,0.89799966819999999,0,0.89513406809999996,0,0.8712251312,0,0.91186402769999997,0,0.9257265885,0.94530202500000005]
[null,null,null,null,null,null,null,null,null,null,"T15_2|ES","T15_2","ES","waver",0,0,0,0,0,0,0,0,0,0,0,0,0,0,0.5461311713,0,0.52259338030000002,0,0.51874224729999996,0,0.48346675880000001,0,0.50711293189999995,0,0.5176700649,0.51272690369999996]
[null,null,null,null,null,null,null,null,null,null,"T15_2|FR","T15_2","FR","waver",0,0,0,0,0,0,0,0,0,0,0,0,0,0,0.59139474240000001,0,0.56746838749999995,0,0.5256615577,0,0.53946622590000004,0,0.5106979801,0,0.53261420670000004,0.19828352269999999]
[null,null,null,null,null,null,null,null,null,null,"T15_2|GR","T15_2","GR","waver",0,0,0,0,0,0,0,0,0,0,0,0,0,0,0.63966072330000001,0,0.62831968530000004,0,0.63387055299999995,0,0.69453443719999997,0,0.64636058659999995,0,0.66631671290000005,0.87065180350000004]
[null,null,null,null,null,null,null,null,null,null,"T15_2|IT","T15_2","IT","waver",0,0,0,0,0,0,0,0,0,0,0,0,0,0,0.58761023690000003,0,0.58404628629999999,0,0.65831216469999998,0,0.61656851339999996,0,0.61802127979999999,0,0.62539154620000004,0.88415254580000002]
[null,null,null,null,null,null,null,null,null,null,"T15_2|NL","T15_2","NL","waver",0,0,0,0,0,0,0,0,0,0,0,0,0,0,0.54185039980000005,0,0.53973966569999998,0,0.53706223630000005,0,0.53873381330000003,0,0.51112809989999997,0,0.50461525070000002,0.36740920649999997]
[null,null,null,null,null,null,null,null,null,null,"T15_2|PL","T15_2","PL","waver",0,0,0,0,0,0,0,0,0,0,0,0,0,0,1,0,1,0,1,0,1,0,1,0,0.97199505100000005,0.60956878640000001]
[null,null,null,null,null,null,null,null,null,null,"T15_2|SE","T15_2","SE","waver",0,0,0,0,0,0,0,0,0,0,0,0,0,0,0.66604929059999995,0,0.63399917370000003,0,0.69516463910000004,0,0.67830276170000003,0,0.73801071480000002,0,0.78337427999999998,0.33802850899999998]
[null,null,null,null,null,null,null,null,null,null,"T15_3|BG","T15_3","BG","waver",0,0,0,0,0,0,0,0,0,0,0,0,0,0,9.0275015E-2,0,8.7501325699999993E-2,0,0.14749156259999999,0,0.1451226813,0,0.20074281399999999,0,0.19453861619999999,1.8780136499999999E-2]
[null,null,null,null,null,null,null,null,null,null,"T15_3|EE","T15_3","EE","waver",0,0,0,0,0,0,0,0,0,0,0,0,0,0,0.14862985719999999,0,0.34532325460000002,0,0.51228309849999998,0,0.26068333830000001,0,0.20636046429999999,0,0.17957043419999999,0.1848307518]
[null,null,null,null,null,null,null,null,null,null,"T15_3|ES","T15_3","ES","waver",0,0,0,0,0,0,0,0,0,0,0,0,0,0,0.1680832229,0,0.17764984349999999,0,0.1903404276,0,0.18839147049999999,0,0.179205159,0,0.1848307518,0.27911407469999999]
[null,null,null,null,null,null,null,null,null,null,"T15_3|GB","T15_3","GB","waver",0,0,0,0,0,0,0,0,0,0,0,0,0,0,0.2590259754,0.38920185330000001,0.205261633,0.27652181059999997,0.2177066704,0.2326747378,0.1614769673,0.22301249440000001,0.2186956514,0,0.2033550962,0.28550061570000002]
[null,null,null,null,null,null,null,null,null,null,"T15_3|IS","T15_3","IS","waver",0,0,0,0,0,0,0,0,0,0,0,0,0,0,0.17587670420000001,0,0.24450917790000001,0,0.24680690350000001,0,0.170714527,0,0.1344279535,0,0.20464464869999999,0.27266291310000002]
[null,null,null,null,null,null,null,null,null,null,"T15_3|MT","T15_3","MT","waver",0,0,0,0,0,0,0,0,0,0,0,0,0,0,0.45519118250000001,0,0.3686623564,0,0.58337588839999999,0,0.43899071029999998,0,0.36822150279999999,0,0.37730626350000002,0.34508103680000002]
[null,null,null,null,null,null,null,null,null,null,"T15_3|NL","T15_3","NL","waver",0,0,0,0,0,0,0,0,0,0,0,0,0,0,0.33958957360000003,0,0.33087872000000002,0,0.33168762270000002,0,0.31051301040000001,0,0.34093067960000001,0,0.34508103680000002,6.8468779100000002E-2]
[null,null,null,null,null,null,null,null,null,null,"T15_3|SE","T15_3","SE","waver",0,0,0,0,0,0,0,0,0,0,0,0,0,0,0.23079632650000001,0,0.22821848110000001,0,0.19377731570000001,0,0.1970484528,0,0.1968275012,0,0.1575970266,0.3053699782]
[null,null,null,null,null,null,null,null,null,null,"T15_4|BE","T15_4","BE","waver",0,0,0,0,0,0,0,0,0,0,0,0,0,0,187.53467289,0,218.32326685000001,0,217.09583523000001,0,200.4811196,0,197.89707131,0,175.40331347,5.4958635852000004]
[null,null,null,null,null,null,null,null,null,null,"T15_4|DK","T15_4","DK","waver",0,0,0,0,0,0,0,0,0,0,0,0,0,5.6852731264000003,35.906847345000003,5.8854467778000004,30.937443209000001,7.8691163556000001,38.910674120000003,13.238622763,37.287115679999999,0,41.938787945000001,0,46.749511476000002,4.1093640646000003]
[null,null,null,null,null,null,null,null,null,null,"T15_4|EE","T15_4","EE","waver",0,0,0,0,0,0,0,0,0,0,0,0,0,0,1.4362204488000001,0,0.65573345400000005,0,1.1220662387,0,2.3447543806,0,3.1055240024000001,0,4.1093640646000003,437.18768181000002]
[null,null,null,null,null,null,null,null,null,null,"T15_4|GB","T15_4","GB","waver",0,0,0,0,0,0,0,0,0,0,0,0,0,0,825.31240707999996,8.7213127172,723.18438501000003,0,839.84009330000004,1.5932211790999999,815.49041199999999,1.6496840832999999,860.25440457000002,0,782.28844256000002,39.866194581000002]
[null,null,null,null,null,null,null,null,null,null,"T15_4|HU","T15_4","HU","waver",0,0,0,0,0,0,0,0,0,0,0,0,0,0,5.0342684539000002,0,5.5773309510000004,0,4.8394365192000004,0,5.8856968962999998,0,6.6924710088000001,0,7.5754980671999999,33.699940810999998]
[null,null,null,null,null,null,null,null,null,null,"T15_4|LV","T15_4","LV","waver",0,0,0,0,0,0,0,0,0,0,0,0,0,0,0.54015431899999999,0,0.427460697,0,0.83894821799999997,0,0.99043680300000003,0,1.492598487,0,1.7795968339999999,3.1234680396000001]
[null,null,null,null,null,null,null,null,null,null,"T15_4|MT","T15_4","MT","waver",0,0,0,0,0,0,0,0,0,0,0,0,0,0,1.5780081855999999,0,1.7796456845999999,0,2.1035725701999999,0,3.0256923767999999,0,3.6222583728000002,0,3.1234680396000001,251.44863615]
[null,null,null,null,null,null,null,null,null,null,"T15_4|RO","T15_4","RO","waver",0,0,0,0,0,0,0,0,0,0,0,0,0,0,14.920593032999999,0,15.571662494,0,14.953684976,0,16.017515829000001,0,16.017571703000002,0,19.186287658000001,56.506675792000003]
[null,null,null,null,null,null,null,null,null,null,"T15_5|BE","T15_5","BE","waver",0,0,0,0,0,0,0,0,0,0,0,0,0,0,1.2208017200000001E-2,0,5.7599393999999996E-3,0,4.5448961000000001E-3,0,3.0520929E-3,0,9.2002117000000005E-3,0,1.5957453900000002E-2,8.8862860000000002E-3]
[null,null,null,null,null,null,null,null,null,null,"T15_5|DE","T15_5","DE","waver",0,0,0,0,0,0,0,0,0,0,0,0,0,0,0.22388810340000001,0,0.24400456800000001,0,0.3008369105,0,0.25948105760000001,0,0.29232182159999998,0,0.27912915469999999,0.47040896900000001]
[null,null,null,null,null,null,null,null,null,null,"T15_5|DK","T15_5","DK","waver",0,0,0,0,0,0,0,0,0,0,0,0,0,0.2699136338,0.42804766179999998,0.30549405880000002,0.32817695819999998,0.20623770299999999,0.4620243128,7.7000207200000004E-2,0.37119807869999999,0,0.47109296179999999,0,0.47040896900000001,6.2335470000000003E-4]
[null,null,null,null,null,null,null,null,null,null,"T15_5|FR","T15_5","FR","waver",0,0,0,0,0,0,0,0,0,0,0,0,0,0,0.17111648860000001,0,0.1529330609,0,0.1954758003,0,0.14229882399999999,0,0.21447763710000001,0,0.19133569619999999,0.3449271397]
[null,null,null,null,null,null,null,null,null,null,"T15_5|IE","T15_5","IE","waver",0,0,0,0,0,0,0,0,0,0,0,0,0,0,2.3184227299999999E-2,0,1.5883355599999999E-2,0,3.2395307499999998E-2,0,3.38792703E-2,0,4.5446152199999999E-2,0,0.1702983666,0.99953114730000003]
[null,null,null,null,null,null,null,null,null,null,"T15_5|LT","T15_5","LT","waver",0,0,0,0,0,0,0,0,0,0,0,0,0,0,7.2932036699999994E-2,0,2.4152378200000001E-2,0,1.7788605499999999E-2,0,4.9485362599999999E-2,0,2.08599293E-2,0,6.1873648000000002E-3,6.566136E-4]
[null,null,null,null,null,null,null,null,null,null,"T15_5|LV","T15_5","LV","waver",0,0,0,0,0,0,0,0,0,0,0,0,0,0,2.7445047699999999E-2,0,3.4460192700000003E-2,0,1.6883547400000001E-2,0,2.3876292699999999E-2,0,3.251417E-4,0,7.8181200000000003E-5,0]
[null,null,null,null,null,null,null,null,null,null,"T15_5|PT","T15_5","PT","waver",0,0,0,0,0,0,0,0,0,0,0,0,0,0,0.1442863794,0,0.16142084239999999,0,0.1570485033,0,7.8632030899999997E-2,0,0.15488495720000001,0,3.84900455E-2,0.34088967240000001]
[null,null,null,null,null,null,null,null,null,null,"T15_6|AT","T15_6","AT","waver",0,0,0,0,0,0,0,0,0,0,0,0,0,0,4.0932337999999999E-2,0,3.1417056399999997E-2,0,3.20610333E-2,0,2.2240618899999998E-2,0,8.3482628000000007E-3,0,5.8317585999999996E-3,3.4992759999999997E-4]
[null,null,null,null,null,null,null,null,null,null,"T15_6|CZ","T15_6","CZ","waver",0,0,0,0,0,0,0,0,0,0,0,0,0,0,6.7438738999999998E-2,0,6.2481698400000001E-2,0,5.3326400900000001E-2,0,5.6539299600000002E-2,0,0.11155223190000001,0,0.1223160917,1.0729045899999999E-2]
[null,null,null,null,null,null,null,null,null,null,"T15_6|DE","T15_6","DE","waver",0,0,0,0,0,0,0,0,0,0,0,0,0,0,1.6937378699999998E-2,0,1.51060677E-2,0,3.0535594499999999E-2,0,3.2969221999999999E-2,0,3.1846480599999998E-2,0,1.0729045899999999E-2,5.2141150000000001E-3]
[null,null,null,null,null,null,null,null,null,null,"T15_6|FI","T15_6","FI","waver",0,0,0,0,0,0,0,0,0,0,0,0,0,0,6.7634321999999998E-3,0,1.4605226999999999E-3,0,3.4600085999999999E-3,0,3.0252609E-3,0,2.6395269E-3,0,5.8624443999999998E-3,1.6336033000000001E-3]
[null,null,null,null,null,null,null,null,null,null,"T15_6|HU","T15_6","HU","waver",0,0,0,0,0,0,0,0,0,0,0,0,0,0,0,0,0,0,0,0,0,0,0,0,0,2.6132331E-3]
[null,null,null,null,null,null,null,null,null,null,"T15_6|LU","T15_6","LU","waver",0,0,0,0,0,0,0,0,0,0,0,0,0,0,0,0,0,0,0,0,5.2572611999999998E-2,0,0,0,0,0]
[null,null,null,null,null,null,null,null,null,null,"T15_6|MT","T15_6","MT","waver",0,0,0,0,0,0,0,0,0,0,0,0,0,0,2.1944976299999999E-2,0,1.28347967E-2,0,1.67047302E-2,0,1.10381886E-2,0,2.6753551E-3,0,3.0366242E-3,1.0310760400000001E-2]
[null,null,null,null,null,null,null,null,null,null,"T15_6|PL","T15_6","PL","waver",0,0,0,0,0,0,0,0,0,0,0,0,0,0,0,0,0,0,0,0,0,0,0,0,0,5.3365016000000002E-7]
[null,null,null,null,null,null,null,null,null,null,"T15_6|SK","T15_6","SK","waver",0,0,0,0,0,0,0,0,0,0,0,0,0,0,0,0,0,0,0,0,0,0,0,0,0,0.33121905299999999]
[null,null,null,null,null,null,null,null,null,null,"T15_7|CZ","T15_7","CZ","waver",0,0,0,0,0,0,0,0,0,0,0,0,0,0,6.0409163000000002E-2,0,6.2644150199999998E-2,0,5.0706575699999999E-2,0,4.6247340099999999E-2,0,7.6976249299999994E-2,0,0.1002486618,0.26040120319999999]
[null,null,null,null,null,null,null,null,null,null,"T15_7|DE","T15_7","DE","waver",0,0,0,0,0,0,0,0,0,0,0,0,0,0,0.22246299059999999,0,0.2331973688,0,0.24580992779999999,0,0.23383147130000001,0,0.2411532035,0,0.26040120319999999,2.1652377300000001E-2]
[null,null,null,null,null,null,null,null,null,null,"T15_7|EU","T15_7","EU","waver",0,0,0,0,0,0,0,0,0,0,0,0,0,4.0782816700000002E-2,0.31088432799999999,0.10495878309999999,0.31766845290000001,0.10635869570000001,0.3081966163,9.3588506399999993E-2,0.32123245,0,0.2607904063,0,0.2574021749,0.2024978083]
[null,null,null,null,null,null,null,null,null,null,"T15_7|HR","T15_7","HR","waver",0,0,0,0,0,0,0,0,0,0,0,0,0,0.48830606580000002,0.40577223810000002,0,0.3998688238,0,0.44567407409999998,0,0.4404522978,0,0.38814326560000001,0,0.40590035470000002,0.2463734534]
[null,null,null,null,null,null,null,null,null,null,"T15_7|LT","T15_7","LT","waver",0,0,0,0,0,0,0,0,0,0,0,0,0,0,1.7075111999999999E-3,0,1.2103866999999999E-3,0,1.0394304E-3,0,1.0831501E-3,0,1.21000855E-2,0,9.8226219E-3,0.30814123030000001]
[null,null,null,null,null,null,null,null,null,null,"T15_7|LU","T15_7","LU","waver",0,0,0,0,0,0,0,0,0,0,0,0,0,0,0.1948708542,0,0.22080267649999999,0,0.21601458879999999,0,0.31479401379999999,0,0.38182379519999998,0,0.30814123030000001,0.10019415330000001]
[null,null,null,null,null,null,null,null,null,null,"T15_7|PT","T15_7","PT","waver",0,0,0,0,0,0,0,0,0,0,0,0,0,0,0.42028514039999998,0,0.40689323910000003,0,0.4020492483,0,0.34161041190000002,0,0.35627234130000002,0,0.39688134749999998,0.23515607760000001]
[null,null,null,null,null,null,null,null,null,null,"T15_7|SI","T15_7","SI","waver",0,0,0,0,0,0,0,0,0,0,0,0,0,0,0.51429717959999999,0,0.45856835229999998,0,0.43971153239999999,0,0.4689903487,0,0.59700657300000004,0,0.64158013020000004,1.42196244E-2]
[null,null,null,null,null,null,null,null,null,null,"T15_8|CY","T15_8","CY","waver",0,0,0,0,0,0,0,0,0,0,0,0,0,0,0.40364198610000002,0,0.84205397940000004,0,0.83872884089999999,0,0.80621190860000003,0,0.8373677679,0,0.83284041460000002,0.75554183890000004]
[null,null,null,null,null,null,null,null,null,null,"T15_8|CZ","T15_8","CZ","waver",0,0,0,0,0,0,0,0,0,0,0,0,0,0,0.85255490020000002,0,0.86578598070000001,0,0.89117617920000003,0,0.89345283789999996,0,0.78752634040000002,0,0.75554183890000004,0.36112408039999999]
[null,null,null,null,null,null,null,null,null,null,"T15_8|ES","T15_8","ES","waver",0,0,0,0,0,0,0,0,0,0,0,0,0,0,0.51189974729999999,0,0.49021884980000002,0,0.50332511899999999,0,0.49066794250000001,0,0.51790150059999995,0,0.51858703589999999,0.53174281680000002]
[null,null,null,null,null,null,null,null,null,null,"T15_8|GR","T15_8","GR","waver",0,0,0,0,0,0,0,0,0,0,0,0,0,0,0.24545029870000001,0,0.26294459990000002,0,0.35466297320000001,0,0.42596736499999999,0,0.58405109980000003,0,0.63030581819999998,0.57177833840000003]
[null,null,null,null,null,null,null,null,null,null,"T15_8|IT","T15_8","IT","waver",0,0,0,0,0,0,0,0,0,0,0,0,0,0,0.28318312750000002,0,0.38276517240000002,0,0.43611426440000001,0,0.48151139749999999,0,0.53168338550000005,0,0.58734193170000004,0.58000032150000003]
[null,null,null,null,null,null,null,null,null,null,"T15_8|LT","T15_8","LT","waver",0,0,0,0,0,0,0,0,0,0,0,0,0,0,0.30680441850000001,0,0.56671544019999998,0,0.56597782379999995,0,0.51845468429999997,0,0.55350916839999997,0,0.58000032150000003,0.68479338940000001]
[null,null,null,null,null,null,null,null,null,null,"T15_8|NO","T15_8","NO","waver",0,0,0,0,0,0,0,0,0,0,0,0,0,0.17324724590000001,0.26397915049999998,0.15905608239999999,0.29475168429999998,0.11845304550000001,0.2643329525,0.37103029729999998,0.226063712,0.31160067330000002,0.1407091043,0,7.7968603499999997E-2,0.35382623369999999]
[null,null,null,null,null,null,null,null,null,null,"T15_8|SI","T15_8","SI","waver",0,0,0,0,0,0,0,0,0,0,0,0,0,0,0.47570634769999998,0,0.53113832989999998,0,0.54063496389999999,0,0.53006391060000002,0,0.3998257087,0,0.34602835009999999,0.98284338579999997]
[null,null,null,null,null,null,null,null,null,null,"T15_9|BG","T15_9","BG","waver",0,0,0,0,0,0,0,0,0,0,0,0,0,0,4.8128985499999999E-2,0,4.5284476099999998E-2,0,4.4545674299999997E-2,0,4.1837647399999997E-2,0,4.6291455000000002E-2,0,4.3040950600000003E-2,0]
[null,null,null,null,null,null,null,null,null,null,"T15_9|CY","T15_9","CY","waver",0,0,0,0,0,0,0,0,0,0,0,0,0,0,0,0,0,0,0,0,0,0,0,0,0,0]
[null,null,null,null,null,null,null,null,null,null,"T15_9|ES","T15_9","ES","waver",0,0,0,0,0,0,0,0,0,0,0,0,0,0,3.3689751999999998E-3,0,4.9553716999999999E-3,0,8.1333676999999997E-3,0,1.7695106E-3,0,7.0044729999999998E-4,0,8.0437260000000002E-4,5.2808945000000003E-2]
[null,null,null,null,null,null,null,null,null,null,"T15_9|FR","T15_9","FR","waver",0,0,0,0,0,0,0,0,0,0,0,0,0,0,2.3451508699999998E-2,0,1.4978370499999999E-2,0,1.3328586599999999E-2,0,1.3797943599999999E-2,0,9.6420033999999998E-3,0,1.1665395E-2,5.1039811999999997E-3]
[null,null,null,null,null,null,null,null,null,null,"T15_9|IS","T15_9","IS","waver",0,0,0,0,0,0,0,0,0,0,0,0,0,0,0,0,0,0,0,0,0,0,0,0,0,1.66655663E-2]
[null,null,null,null,null,null,null,null,null,null,"T15_9|IT","T15_9","IT","waver",0,0,0,0,0,0,0,0,0,0,0,0,0,0,6.9554085000000002E-2,0,3.8053144099999998E-2,0,2.7135968399999998E-2,0,2.2996136699999999E-2,0,1.9066970499999999E-2,0,1.66655663E-2,0.40398969179999999]
[null,null,null,null,null,null,null,null,null,null,"T15_9|NL","T15_9","NL","waver",0,0,0,0,0,0,0,0,0,0,0,0,0,0,0.26322458050000003,0,0.2749300952,0,0.2940181087,0,0.29540023110000002,0,0.2971319006,0,0.29885280219999999,4.63384752E-2]
[null,null,null,null,null,null,null,null,null,null,"T15_9|SE","T15_9","SE","waver",0,0,0,0,0,0,0,0,0,0,0,0,0,0,0.1461510426,0,0.17832260259999999,0,0.17766289439999999,0,0.2033726277,0,0.14732519099999999,0,0.13367566610000001,1.9868071000000002E-3]
[null,null,null,null,null,null,null,null,null,null,"T16_1|BE","T16_1","BE","waver",0,0,0,0,0,0,0,0,0,0,0,0,0,0,0.142571949,0,0.12786770310000001,0,0.1569623013,0,0.15145581029999999,0,5.94344443E-2,0,5.2892549599999998E-2,5.9243956700000003E-2]
[null,null,null,null,null,null,null,null,null,null,"T16_1|BG","T16_1","BG","waver",0,0,0,0,0,0,0,0,0,0,0,0,0,0,0.24710396749999999,0,5.6990408399999998E-2,0,3.2301244700000002E-2,0,7.5452379200000003E-2,0,3.8585406599999997E-2,0,5.9243956700000003E-2,2.4080983899999998E-2]
[null,null,null,null,null,null,null,null,null,null,"T16_1|EE","T16_1","EE","waver",0,0,0,0,0,0,0,0,0,0,0,0,0,0,0.60358496169999998,0,5.0886677300000002E-2,0,4.9270727399999999E-2,0,0.60035621210000001,0,0.45590302999999999,0,0.61977762140000003,6.4508684499999996E-2]
[null,null,null,null,null,null,null,null,null,null,"T16_1|GB","T16_1","GB","waver",0,0,0,0,0,0,0,0,0,0,0,0,0,0,0.1949098413,4.4074079500000002E-2,0.24373030670000001,0,0.18557956719999999,0,0.21328288949999999,5.1271131400000003E-2,0.23795738150000001,0,0.25183616619999999,3.8514329E-2]
[null,null,null,null,null,null,null,null,null,null,"T16_1|HU","T16_1","HU","waver",0,0,0,0,0,0,0,0,0,0,0,0,0,0,0.1134553982,0,0.16772029890000001,0,2.1641592099999999E-2,0,0.14309373980000001,0,0.1935581328,0,0.27996886809999999,0.23488244350000001]
[null,null,null,null,null,null,null,null,null,null,"T16_1|IS","T16_1","IS","waver",0,0,0,0,0,0,0,0,0,0,0,0,0,0,0.64807246669999996,0,0.66353976339999998,0,0.63400978389999996,0,0.45187824059999998,0,0.2861611422,0,0.26250908509999998,3.9692214699999999E-2]
[null,null,null,null,null,null,null,null,null,null,"T16_1|MT","T16_1","MT","waver",0,0,0,0,0,0,0,0,0,0,0,0,0,0,0.2294744625,0,0.17635894029999999,0,0.35328538370000001,0,0.17775099720000001,0,0.252043305,0,7.68895156E-2,6.3004247999999999E-2]
[null,null,null,null,null,null,null,null,null,null,"T16_1|RO","T16_1","RO","waver",0,0,0,0,0,0,0,0,0,0,0,0,0,0,0.16560462940000001,0,0.1827821063,0,0.1315299184,0,0.2151352882,0,0.2087400687,0,0.27476401839999998,0.28198124120000001]
[null,null,null,null,null,null,null,null,null,null,"T16_2|BE","T16_2","BE","waver",0,0,0,0,0,0,0,0,0,0,0,0,0,0,7.1384317899999994E-2,0,4.3783031200000003E-2,0,4.3732215400000003E-2,0,4.4487150699999999E-2,0,6.1540043599999997E-2,0,5.22874755E-2,2.9484125199999999E-2]
[null,null,null,null,null,null,null,null,null,null,"T16_2|BG","T16_2","BG","waver",0,0,0,0,0,0,0,0,0,0,0,0,0,0,5.5087796100000003E-2,0,5.4907128899999998E-2,0,6.4041496899999995E-2,0,3.5033542100000002E-2,0,6.1883392199999998E-2,0,2.9484125199999999E-2,0.33220176379999999]
[null,null,null,null,null,null,null,null,null,null,"T16_2|DK","T16_2","DK","waver",0,0,0,0,0,0,0,0,0,0,0,0,0,2.5810864999999999E-2,0.1597892913,2.49400652E-2,0.16299999700000001,2.7411251500000001E-2,0.15195915160000001,6.8066341999999998E-3,0.13381001079999999,0,0.20982614790000001,0,0.123733916,6.45181856E-2]
[null,null,null,null,null,null,null,null,null,null,"T16_2|FR","T16_2","FR","waver",0,0,0,0,0,0,0,0,0,0,0,0,0,0,0.12950661469999999,0,8.63797226E-2,0,0.13659549570000001,0,8.0530939800000007E-2,0,0.15931282729999999,0,8.6518519299999999E-2,0.1235514073]
[null,null,null,null,null,null,null,null,null,null,"T16_2|IE","T16_2","IE","waver",0,0,0,0,0,0,0,0,0,0,0,0,0,0,0.21195444499999999,0,0.2275869734,0,0.22429897039999999,0,0.16057345749999999,0,0.1986847564,0,8.3964618899999996E-2,0.2208487321]
[null,null,null,null,null,null,null,null,null,null,"T16_2|IT","T16_2","IT","waver",0,0,0,0,0,0,0,0,0,0,0,0,0,0,0.1268310959,0,0.10859309559999999,0,0.11289830620000001,0,0.1095999904,0,0.10279670539999999,0,9.7614409499999999E-2,5.64807924E-2]
[null,null,null,null,null,null,null,null,null,null,"T16_2|LV","T16_2","LV","waver",0,0,0,0,0,0,0,0,0,0,0,0,0,0,0.30555958589999999,0,0.13265200460000001,0,0.35354219730000003,0,0.12067068709999999,0,0.14193217329999999,0,4.93663373E-2,0.12813009289999999]
[null,null,null,null,null,null,null,null,null,null,"T16_2|PT","T16_2","PT","waver",0,0,0,0,0,0,0,0,0,0,0,0,0,0,0.25906879919999998,0,0.2546398044,0,0.24310196519999999,0,0.17995446740000001,0,0.26753313969999998,0,0.26588100329999997,8.5986001699999995E-2]
[null,null,null,null,null,null,null,null,null,null,"T16_3|AT","T16_3","AT","waver",0,0,0,0,0,0,0,0,0,0,0,0,0,0,0.39842594240000001,0,0.4127483911,0,0.41795700190000001,0,0.40276692990000001,0,0.3519091459,0,0.3851824647,0.26120291680000002]
[null,null,null,null,null,null,null,null,null,null,"T16_3|BE","T16_3","BE","waver",0,0,0,0,0,0,0,0,0,0,0,0,0,0,0.2290706009,0,0.2464708189,0,0.23882976929999999,0,0.25123873769999999,0,0.27436414310000001,0,0.26120291680000002,0.48775054210000002]
[null,null,null,null,null,null,null,null,null,null,"T16_3|DE","T16_3","DE","waver",0,0,0,0,0,0,0,0,0,0,0,0,0,0,0.26299422090000002,0,0.3314677452,0,0.3047117681,0,0.30748449109999998,0,0.28638692310000002,0,0.29027402050000001,0.34434038579999998]
[null,null,null,null,null,null,null,null,null,null,"T16_3|FI","T16_3","FI","waver",0,0,0,0,0,0,0,0,0,0,0,0,0,0,0.15285738030000001,0,0.18244927650000001,0,0.33325185060000001,0,0.32283558890000003,0,0.30074551890000001,0,0.22983005770000001,0.32456726660000002]
[null,null,null,null,null,null,null,null,null,null,"T16_3|HU","T16_3","HU","waver",0,0,0,0,0,0,0,0,0,0,0,0,0,0,0.37436977030000002,0,0.43814253190000002,0,0.50270388470000005,0,0.37884728839999998,0,0.34331536060000001,0,0.2662638819,0.29175974500000001]
[null,null,null,null,null,null,null,null,null,null,"T16_3|IE","T16_3","IE","waver",0,0,0,0,0,0,0,0,0,0,0,0,0,0,0.41495204549999998,0,0.3915711019,0,0.40145545799999999,0,0.40456682220000001,0,0.33554046599999998,0,0.29175974500000001,0.51536426639999999]
[null,null,null,null,null,null,null,null,null,null,"T16_3|MT","T16_3","MT","waver",0,0,0,0,0,0,0,0,0,0,0,0,0,0,0.4554064572,0,0.43075146320000002,0,0.31462337870000001,0,0.32072474919999999,0,0.29542883260000002,0,0.44019280910000003,0.32469573819999997]
[null,null,null,null,null,null,null,null,null,null,"T16_3|PL","T16_3","PL","waver",0,0,0,0,0,0,0,0,0,0,0,0,0,0,0.46903714959999998,0,0.39931121219999999,0,0.57648167299999997,0,0.55400674260000005,0,0.54570914690000005,0,0.55210938919999997,0.1557182775]
[null,null,null,null,null,null,null,null,null,null,"T16_3|SK","T16_3","SK","waver",0,0,0,0,0,0,0,0,0,0,0,0,0,0,0.25193988179999999,0,0.3311660864,0,0.207682227,0,0.29711501410000002,0,0.21060367269999999,0,0.24856687299999999,0.28434622580000002]
[null,null,null,null,null,null,null,null,null,null,"T16_4|AT","T16_4","AT","waver",0,0,0,0,0,0,0,0,0,0,0,0,0,0,0.276476371,0,0.24362940850000001,0,0.24826492459999999,0,0.28310564310000003,0,0.27537246059999998,0,0.28434622580000002,0.29946861809999997]
[null,null,null,null,null,null,null,null,null,null,"T16_4|DE","T16_4","DE","waver",0,0,0,0,0,0,0,0,0,0,0,0,0,0,0.17819160149999999,0,0.1692073684,0,0.14094077129999999,0,0.16287569830000001,0,0.15225439609999999,0,0.14272900529999999,9.4400163499999995E-2]
[null,null,null,null,null,null,null,null,null,null,"T16_4|EU","T16_4","EU","waver",0,0,0,0,0,0,0,0,0,0,0,0,0,7.0618147199999995E-2,0.212015123,0.32269460849999998,0.21404297159999999,0.1102136349,0.20633685739999999,6.2398334200000002E-2,0.21669260200000001,5.4323375899999998E-2,0.21403650860000001,0,0.2154090816,0.37769569390000002]
[null,null,null,null,null,null,null,null,null,null,"T16_4|HR","T16_4","HR","waver",0,0,0,0,0,0,0,0,0,0,0,0,0,0.13126632390000001,0.1318522355,0,0.1054381092,0,9.9751802299999998E-2,0,0.105147172,0,0.27592223770000002,0,0.31319178660000002,0.35761716059999998]
[null,null,null,null,null,null,null,null,null,null,"T16_4|HU","T16_4","HU","waver",0,0,0,0,0,0,0,0,0,0,0,0,0,0,0.41995367509999998,0,0.37622280600000002,0,0.39133998219999999,0,0.35831331059999999,0,0.2996407317,0,0.35761716059999998,0.30803030869999998]
[null,null,null,null,null,null,null,null,null,null,"T16_4|LU","T16_4","LU","waver",0,0,0,0,0,0,0,0,0,0,0,0,0,0,0.1999419898,0,0.18961286299999999,0,0.16939566149999999,0,0.2330246795,0,0.32432148929999999,0,0.30276131179999999,0.1651410589]
[null,null,null,null,null,null,null,null,null,null,"T16_4|PL","T16_4","PL","waver",0,0,0,0,0,0,0,0,0,0,0,0,0,0,0.3853148897,0,0.39855013750000001,0,0.24278942989999999,0,0.2503300068,0,0.25083920059999998,0,0.2387847092,0.25135633060000001]
[null,null,null,null,null,null,null,null,null,null,"T16_4|SI","T16_4","SI","waver",0,0,0,0,0,0,0,0,0,0,0,0,0,0,0.26082387629999998,0,0.24082487359999999,0,0.23077806219999999,0,0.24108369399999999,0,0.2297909769,0,0.2270513096,0.48563132920000002]
[null,null,null,null,null,null,null,null,null,null,"T16_4|SK","T16_4","SK","waver",0,0,0,0,0,0,0,0,0,0,0,0,0,0,0.31906754469999998,0,0.31580301970000002,0,0.35983256470000002,0,0.40658739589999998,0,0.42713703469999997,0,0.48563132920000002,0.1348857202]
[null,null,null,null,null,null,null,null,null,null,"T16_5|CZ","T16_5","CZ","waver",0,0,0,0,0,0,0,0,0,0,0,0,0,0,6.9704781399999999E-2,0,5.7700677399999997E-2,0,7.6857862499999999E-2,0,5.7525614900000001E-2,0,0.1415671979,0,0.19503320290000001,0.3911301371]
[null,null,null,null,null,null,null,null,null,null,"T16_5|EU","T16_5","EU","waver",0,0,0,0,0,0,0,0,0,0,0,0,0,1.94584392E-2,0.1997103217,9.9562215699999998E-2,0.18813880769999999,2.56693219E-2,0.2107598208,3.5212368199999997E-2,0.20463681189999999,8.9098966999999994E-3,0.21764039269999999,0,0.2184145103,0.26433908189999999]
[null,null,null,null,null,null,null,null,null,null,"T16_5|GB","T16_5","GB","waver",0,0,0,0,0,0,0,0,0,0,0,0,0,0.40176222410000001,0.17199778960000001,0.16205331049999999,0.1099902452,0.22072863340000001,0.1409440622,0.35048434919999999,0.1454761081,0.30452886680000002,0.16598261959999999,0,0.15397241270000001,0.45909205679999998]
[null,null,null,null,null,null,null,null,null,null,"T16_5|HR","T16_5","HR","waver",0,0,0,0,0,0,0,0,0,0,0,0,0,0.13525113129999999,0.2481356612,0,0.2135389349,0,0.2134960947,0,0.2129066432,0,2.4747167300000001E-2,0,3.4279671999999997E-2,6.9977130700000001E-2]
[null,null,null,null,null,null,null,null,null,null,"T16_5|LT","T16_5","LT","waver",0,0,0,0,0,0,0,0,0,0,0,0,0,0,0,0,3.0878579000000001E-3,0,4.8145973E-3,0,4.1140381E-3,0,3.9762247000000002E-3,0,1.4282436E-3,4.57313549E-2]
[null,null,null,null,null,null,null,null,null,null,"T16_5|NO","T16_5","NO","waver",0,0,0,0,0,0,0,0,0,0,0,0,0,2.4387223E-3,1.51665094E-2,1.6728789999999999E-4,2.65150725E-2,0,0.1100708292,9.6933600999999994E-3,0.1068358442,8.9098966999999994E-3,0.18160194830000001,0,0.13501807339999999,3.3383904300000003E-2]
[null,null,null,null,null,null,null,null,null,null,"T16_5|PT","T16_5","PT","waver",0,0,0,0,0,0,0,0,0,0,0,0,0,0,8.5414547100000002E-2,0,5.7304430900000002E-2,0,6.2645126999999995E-2,0,0.10198534920000001,0,9.7903306800000006E-2,0,9.7380244399999996E-2,5.1461824400000002E-2]
[null,null,null,null,null,null,null,null,null,null,"T16_5|SI","T16_5","SI","waver",0,0,0,0,0,0,0,0,0,0,0,0,0,0,5.6628883800000002E-2,0,4.93576446E-2,0,5.2826219200000003E-2,0,6.1428430899999997E-2,0,0.12605467419999999,0,0.1050966436,7.7360759200000004E-2]
[null,null,null,null,null,null,null,null,null,null,"T20_1|CY","T20_1","CY","waver",46.065539999999999,48.413142000000001,47.901297,46.861853000000004,47.161574000000002,45.897075000000001,45.035584999999998,44.544344000000002,44.341763,44.02543,43.527374999999999,43.355429000000001,43.358544999999999,41.833016999999998,38.805545000000002,"n.a.","n.a.",29.116448999999999,30.017899,29.557765,30.031703,28.431063000000002,27.265730631,27.037255834,27.359479196999999,138.71606141999999]
[null,null,null,null,null,null,null,null,null,null,"T20_1|ES","T20_1","ES","waver",2148.5576732,2240.0897347999999,2315.9466867000001,2348.2532053,2395.2129123999998,2334.2264224999999,2368.9808124000001,2324.1591877999999,2359.4316847999999,2379.4650857000001,2354.6432902000001,2352.9609194999998,2346.9984985999999,2298.7100902000002,2333.1966194000001,2349.7918611999999,2376.1995814000002,2434.0768788999999,2433.1349656000002,2425.7260477,2450.2097994999999,2489.5178110000002,2628.9851999000002,2570.8149165999998,2381.5660260999998,18172.990232]
[null,null,null,null,null,null,null,null,null,null,"T20_1|GR","T20_1","GR","waver",272.73010314999999,278.1279839,272.63055216999999,266.46291542,249.63351044999999,248.26104018999999,245.68651588,242.40169609,243.23782549000001,238.57203257,232.24852465000001,228.07691119,224.43517172,218.05488853,211.09966907,207.68064595000001,208.81149826999999,203.52253381,201.74299725,199.09600279,200.45669699000001,204.37454758000001,202.33538791000001,208.76865516999999,210.1610824,41.254798125999997]
[null,null,null,null,null,null,null,null,null,null,"T20_1|IE","T20_1","IE","waver",231.18790736,226.71386107000001,217.42357658,211.24845901,209.71081089,228.58452657999999,224.46775726000001,216.15765522000001,231.66933803000001,228.86083421999999,222.76333554999999,222.311273,219.48499419000001,200.21937242000001,200.18091631999999,199.89477144,203.65440778000001,201.62696443999999,205.15606145000001,206.02584669999999,212.24769198000001,214.03684041,213.11563416999999,218.82101588,222.81012914999999,22.423720517]
[null,null,null,null,null,null,null,null,null,null,"T20_1|IT","T20_1","IT","waver",1637.4399943000001,1685.3828860000001,1675.0218955,1675.4600571999999,1671.4431757,1690.2935087999999,1684.5723700999999,1685.5774807,1660.9613196,1685.8773326,1662.5363292,1653.9775755999999,1677.5579287999999,1665.8987586000001,1633.9166545999999,1639.86347,1629.5572655999999,1754.8531129999999,1736.4092224999999,1760.0590433,1731.1132757,1751.2681540000001,1787.0497897,1823.3991375999999,1855.5251625000001,25.315460999999999]
[null,null,null,null,null,null,null,null,null,null,"T20_1|NL","T20_1","NL","waver",1507.1733859999999,1595.2313260000001,1635.876976,1642.4843619999999,1610.3535724999999,1652.2383712000001,1661.3760141,1687.7565486999999,1649.7774194000001,1718.7771557999999,1650.6798553000001,1685.0200431999999,1639.8987308999999,1767.3952933999999,1773.5652494000001,1809.2656826,1748.4404442,1748.4865064000001,1739.5535553,1764.1853775,1750.4216375999999,1850.9754467,1901.9434555,1940.3798025000001,1852.2203004,244.45840652999999]
[null,null,null,null,null,null,null,null,null,null,"T20_1|SE","T20_1","SE","waver","n.a.","n.a.","n.a.","n.a.",1000.3513635,1049.3792584,1060.6516485,1054.6589558000001,1015.6250468,1112.8607982000001,1097.4232485,1107.7892240000001,1034.3590008000001,1071.2163071,1098.0106825,1101.1888977999999,707.62897212999997,734.34041316000003,710.85009388000003,719.18492186000003,721.25533848999999,760.63860400999999,805.34608498,788.87512934999995,798.49228760000005,23.622079203999998]
[null,null,null,null,null,null,null,null,null,null,"T20_1|SI","T20_1","SI","waver",12.734908000000001,12.434443,12.423368999999999,14.877048,14.549283000000001,17.225460999999999,17.531306000000001,17.254010000000001,17.445484,17.74736,17.214376999999999,17.117730999999999,17.482147999999999,17.417622999999999,17.269238999999999,17.394724,15.017588,15.482707,15.279222000000001,15.540338999999999,16.302398,19.449913794,20.440867901000001,20.461306650000001,23.622079203999998,46.904878294]
[null,null,null,null,null,null,null,null,null,null,"T20_2|BG","T20_2","BG","waver",0,0,0,0,0,0,0,0,0,0,0,0,0,0,0,0,0,6.9901360057000002,8.1408170569999996,8.3856876980999999,8.5721730237999996,8.7331465384999998,8.7988925247999994,8.9684390019000002,9.0498021269999995,3.9121155089999999]
[null,null,null,null,null,null,null,null,null,null,"T20_2|EE","T20_2","EE","waver",0,0,0,0,0,0,0,0,0,0,0,0,0,0,0,0,0,13.146048916,13.247770779,13.359726603,13.81064091,13.828465349,13.81856956,13.877409526999999,13.991184282000001,1056.8295040999999]
[null,null,null,null,null,null,null,null,null,null,"T20_2|GB","T20_2","GB","waver",0,0,0,0,0,0,0,0,0,0,0,0,0,0,0,0,0,1733.6240792999999,1692.4809448999999,1746.0708494,1804.9437002,1729.2248442,1683.4081076,1696.3498036999999,1716.1390320999999,69.631563935000003]
[null,null,null,null,null,null,null,null,null,null,"T20_2|GR","T20_2","GR","waver",0,0,0,0,0,0,0,0,0,0,0,0,0,0,0,0,0,86.176624700999994,82.542441123000003,81.124267867,79.679616632999995,78.742327875000001,75.713284626000004,75.333879968999995,69.631563935000003,13.647954904000001]
[null,null,null,null,null,null,null,null,null,null,"T20_2|LT","T20_2","LT","waver",0,0,0,0,0,0,0,0,0,0,0,0,0,0,0,0,0,6.6094499999999998,6.8134920000000001,7.0426679999999999,7.204853,7.3866139999999998,7.6143369999999999,7.7812150000000004,7.9083490000000003,20.997377504999999]
[null,null,null,null,null,null,null,null,null,null,"T20_2|MT","T20_2","MT","waver",0,0,0,0,0,0,0,0,0,0,0,0,0,0,0,0,0,4.6544072013999997,4.7325186265000001,4.7392497471999997,4.9384006357999999,5.2610615457999996,5.4271519524,5.7093242461999996,5.9982463303999998,740.21798267999998]
[null,null,null,null,null,null,null,null,null,null,"T20_2|RO","T20_2","RO","waver",0,0,0,0,0,0,0,0,0,0,0,0,0,0,0,0,0,14.322034281000001,14.593296176999999,14.897856009,14.945306232,14.979297001999999,15.006002272,15.196264458,15.291050774,359.51114233999999]
[null,null,null,null,null,null,null,null,null,null,"T20_2|SE","T20_2","SE","waver",0,0,0,0,0,0,0,0,0,0,0,0,0,0,0,0,0,325.00894577999998,324.60485154000003,323.87653404000002,334.16428208999997,318.71807575999998,337.60057647000002,338.92793919000002,359.51114233999999,9.4155123805999992]
[null,null,null,null,null,null,null,null,null,null,"T20_3|BG","T20_3","BG","waver",0,0,0,0,0,0,0,0,0,0,0,0,0,0,0,0,0,3.2315420800000001,3.7095786890000002,3.8329859904000001,3.9666019019999998,4.0439635955000002,4.1068493711,4.1732636260999998,4.2790556294000002,2.8789266859999998]
[null,null,null,null,null,null,null,null,null,null,"T20_3|DK","T20_3","DK","waver",0,0,0,0,0,0,0,0,0,0,0,0,0,0,0,0,0,53.728356941000001,53.748548188000001,53.621500544,55.139472650000002,52.297014507,53.982723872999998,53.9252562,56.026140595999998,11.621959169]
[null,null,null,null,null,null,null,null,null,null,"T20_3|FR","T20_3","FR","waver",0,0,0,0,0,0,0,0,0,0,0,0,0,0,0,0,0,587.26454704000002,590.94457937000004,599.82477132999998,599.17778964000001,608.07251525000004,609.74328845000002,601.57080702999997,609.08263566000005,1459.784431]
[null,null,null,null,null,null,null,null,null,null,"T20_3|GB","T20_3","GB","waver",0,0,0,0,0,0,0,0,0,0,0,0,0,0,0,0,0,1437.8069811,1403.0844043,1444.4256098999999,1500.5166492000001,1439.8779159000001,1414.5484117999999,1423.0368309999999,1459.784431,50.458706509999999]
[null,null,null,null,null,null,null,null,null,null,"T20_3|IS","T20_3","IS","waver",0,0,0,0,0,0,0,0,0,0,0,0,0,0,0,0,0,7.1196108870000003,7.1127596441999996,7.6331648547000004,7.4085598463000002,6.5911267570999996,6.9388239239000002,7.1706850219999998,8.1446460489000003,355.78982179000002]
[null,null,null,null,null,null,null,null,null,null,"T20_3|MT","T20_3","MT","waver",0,0,0,0,0,0,0,0,0,0,0,0,0,0,0,0,0,4.0077431885000001,4.0733877443999997,4.1160712979999996,4.2962805009,4.6029579704000003,4.7880504854000003,5.0237761823999998,5.2581118014000001,682.94695000000002]
[null,null,null,null,null,null,null,null,null,null,"T20_3|PT","T20_3","PT","waver",0,0,0,0,0,0,0,0,0,0,0,0,0,0,0,0,0,100.38622187999999,101.74602726000001,101.62612596,100.63544957000001,100.62212795000001,100.73905563,101.01292977999999,101.63977429000001,9.9691179971999997]
[null,null,null,null,null,null,null,null,null,null,"T20_3|RO","T20_3","RO","waver",0,0,0,0,0,0,0,0,0,0,0,0,0,0,0,0,0,9.2696808659999999,9.3432933103,9.4476277046000003,9.5874860454000004,9.6592608469000005,9.7234961125999995,9.7898153219000008,9.9691179971999997,323.28056183000001]
[null,null,null,null,null,null,null,null,null,null,"T20_4|BE","T20_4","BE","waver",0,0,0,0,0,0,0,0,0,0,0,0,0,0,0,0,0,260.60386470999998,262.49515480999997,260.94177982000002,260.56917497000001,261.26382455999999,252.60276626000001,247.12405974000001,247.42598303,11.325403927]
[null,null,null,null,null,null,null,null,null,null,"T20_4|DE","T20_4","DE","waver",0,0,0,0,0,0,0,0,0,0,0,0,0,0,0,0,0,781.12531103000003,795.66416000000004,805.91360754000004,795.42973598000003,845.85590033999995,823.95497995000005,797.70173542999999,700.34492262000003,81.685321360000003]
[null,null,null,null,null,null,null,null,null,null,"T20_4|FI","T20_4","FI","waver",0,0,0,0,0,0,0,0,0,0,0,0,0,0,0,0,0,154.21036960999999,152.4082094,152.96054383000001,154.85319663999999,155.45322032000001,151.47913713,152.27812954999999,160.79931532000001,1669.9128121000001]
[null,null,null,null,null,null,null,null,null,null,"T20_4|FR","T20_4","FR","waver",0,0,0,0,0,0,0,0,0,0,0,0,0,0,0,0,0,1487.4166092,1505.6651526000001,1525.2544748,1552.6474452,1633.3820866000001,1699.9513113,1672.0438383000001,1669.9128121000001,855.13470485000005]
[null,null,null,null,null,null,null,null,null,null,"T20_4|IE","T20_4","IE","waver",0,0,0,0,0,0,0,0,0,0,0,0,0,0,0,0,0,67.715395172000001,69.038321311000004,69.185262089999995,66.681779108000001,69.746373591999998,66.785156219000001,65.309606216000006,64.956439501999995,10.111769175999999]
[null,null,null,null,null,null,null,null,null,null,"T20_4|LV","T20_4","LV","waver",0,0,0,0,0,0,0,0,0,0,0,0,0,0,0,0,0,4.4185825789999997,4.4477658379999996,4.4201370339999997,4.4607392480000003,4.3992141609999997,4.3894249570000001,4.3585514119999997,2.7126265209999998,3.5083051484999999]
[null,null,null,null,null,null,null,null,null,null,"T20_4|NL","T20_4","NL","waver",0,0,0,0,0,0,0,0,0,0,0,0,0,0,0,0,0,589.60744,583.96223640999995,586.44023299000003,578.51855604000002,588.03178509999998,575.73579482000002,550.49890619999996,536.27090908000002,82.194836476999996]
[null,null,null,null,null,null,null,null,null,null,"T20_4|PT","T20_4","PT","waver",0,0,0,0,0,0,0,0,0,0,0,0,0,0,0,0,0,80.389804906999998,80.623565514000006,79.380185587,75.124711060999999,75.055233709999996,78.610017037999995,78.338637057,77.636480926999994,9.0848790791000003]
[null,null,null,null,null,null,null,null,null,null,"T20_5|AT","T20_5","AT","waver",0,0,0,0,0,0,0,0,0,0,0,0,0,0,0,0,0,63.861429673000004,64.581205237999995,70.881107810000003,71.385532166000004,70.942705360000005,71.593764929000002,72.172784806999999,72.406481854000006,119.64769463]
[null,null,null,null,null,null,null,null,null,null,"T20_5|DE","T20_5","DE","waver",0,0,0,0,0,0,0,0,0,0,0,0,0,0,0,0,0,180.68198147000001,176.84963475999999,181.37556831000001,185.40106936000001,185.83177710000001,197.06107831,192.37624327,181.56308010999999,34.625246079]
[null,null,null,null,null,null,null,null,null,null,"T20_5|ES","T20_5","ES","waver",0,0,0,0,0,0,0,0,0,0,0,0,0,0,0,0,0,301.07609043999997,306.85425834,303.32564251000002,294.06153094000001,291.89529082000001,320.23297508000002,318.27239401999998,299.44114798999999,2255.0487380999998]
[null,null,null,null,null,null,null,null,null,null,"T20_5|FI","T20_5","FI","waver",0,0,0,0,0,0,0,0,0,0,0,0,0,0,0,0,0,54.073679190999997,53.698834181000002,52.844142472999998,54.581863673999997,53.246799668000001,59.314029955000002,57.655755249000002,59.914802051000002,759.77096247999998]
[null,null,null,null,null,null,null,null,null,null,"T20_5|HU","T20_5","HU","waver",0,0,0,0,0,0,0,0,0,0,0,0,0,0,0,0,0,7.4255764467000001,7.9529734975000004,8.0418739430000006,8.6283695510000005,8.4263400405999995,7.874972487,8.7026369621999997,9.1009031823999997,28.388010936000001]
[null,null,null,null,null,null,null,null,null,null,"T20_5|LU","T20_5","LU","waver",0,0,0,0,0,0,0,0,0,0,0,0,0,0,0,0,0,22.205481174999999,22.109886634999999,22.076371639000001,23.212405209,21.743597268999999,21.717983395000001,21.695603037000001,22.689661388000001,1.4173067050000001]
[null,null,null,null,null,null,null,null,null,null,"T20_5|PL","T20_5","PL","waver",0,0,0,0,0,0,0,0,0,0,0,0,0,0,0,0,0,20.834876457,21.623141768,20.894206171,21.254943746999999,20.569014008,19.860552143,19.386648095000002,19.423873134000001,53.419592049000002]
[null,null,null,null,null,null,null,null,null,null,"T20_5|PT","T20_5","PT","waver",0,0,0,0,0,0,0,0,0,0,0,0,0,0,0,0,0,51.756679419999998,52.142297911999997,51.735626011000001,50.068307996999998,49.834201012999998,52.389199892999997,53.280971786999999,53.419592049000002,4.6184229895]
[null,null,null,null,null,null,null,null,null,null,"T20_5|SK","T20_5","SK","waver",0,0,0,0,0,0,0,0,0,0,0,0,0,0,0,0,0,4.9512928333000001,4.9289132866000003,5.0682329818999996,5.2185738535999997,5.2948968479999996,5.3951882394000004,5.6080040046999997,5.6524920314999996,59.315264655999997]
[null,null,null,null,null,null,null,null,null,null,"T20_6|CZ","T20_6","CZ","waver",0,0,0,0,0,0,0,0,0,0,0,0,0,0,0,0,0,11.431444141,11.306878405999999,12.045455239000001,12.330657265999999,12.069901378000001,12.162069296,12.101875974,12.953168940999999,214.85322244]
[null,null,null,null,null,null,null,null,null,null,"T20_6|EU","T20_6","EU","waver",0,0,0,0,0,0,0,0,0,0,0,0,0,0,0,0,0,1435.5295126000001,1456.2263541,1454.2177597,1453.9037315,1260.7618147000001,1271.5042974999999,1237.8010916999999,1212.2379906000001,34.012970445000001]
[null,null,null,null,null,null,null,null,null,null,"T20_6|GB","T20_6","GB","waver",0,0,0,0,0,0,0,0,0,0,0,0,0,0,0,0,0,187.52217683999999,190.56081219999999,193.57871309999999,192.9583571,194.59547837,206.45190328999999,206.13986754999999,198.65647433000001,30.644420073999999]
[null,null,null,null,null,null,null,null,null,null,"T20_6|HR","T20_6","HR","waver",0,0,0,0,0,0,0,0,0,0,0,0,0,0,0,0,0,3.6719549118999999,3.6544892229000001,3.6730412448999998,3.7315371510999999,3.8730388462000001,4.2434225676999997,4.2642567634999997,4.3672893655999996,7.8447830475]
[null,null,null,null,null,null,null,null,null,null,"T20_6|LT","T20_6","LT","waver",0,0,0,0,0,0,0,0,0,0,0,0,0,0,0,0,0,3.5469170000000001,3.5881880000000002,3.5985510000000001,3.6121569999999998,3.559285,3.8791549999999999,3.7216689999999999,3.6198049999999999,6.1438044227999997]
[null,null,null,null,null,null,null,null,null,null,"T20_6|NO","T20_6","NO","waver",0,0,0,0,0,0,0,0,0,0,0,0,0,0,0,0,0,25.506902644,25.650063855999999,25.228554377999998,25.788145226000001,22.372641495,24.108325431000001,23.501826990000001,25.035973000999999,13.336132559999999]
[null,null,null,null,null,null,null,null,null,null,"T20_6|PL","T20_6","PL","waver",0,0,0,0,0,0,0,0,0,0,0,0,0,0,0,0,0,13.518316414999999,14.395005895000001,13.684084445,13.397742898000001,13.218663448999999,13.953413320999999,14.005364698999999,13.336132559999999,22.23863356]
[null,null,null,null,null,null,null,null,null,null,"T20_6|SK","T20_6","SK","waver",0,0,0,0,0,0,0,0,0,0,0,0,0,0,0,0,0,4.5256257896000003,4.7134371067999998,4.8218566658000004,4.6820355385000001,4.8289760673000002,5.0149555396999999,5.0874058986000001,4.9552273648999998,11.910161583000001]
[null,null,null,null,null,null,null,null,null,null,"T21_1|CY","T21_1","CY","waver",23.409282999999999,23.986923000000001,23.777756,23.449957999999999,23.083286000000001,22.274584999999998,21.360399000000001,20.783273999999999,19.946407000000001,19.279878,18.576407,17.612988999999999,16.846872000000001,16.279492000000001,13.238996999999999,"n.a.","n.a.",6.8683990000000001,6.4547249999999998,6.2344280000000003,5.8024060000000004,5.70505,4.2311326210000004,3.8792763080000001,3.1435000280000001,2.0471712797000001]
[null,null,null,null,null,null,null,null,null,null,"T21_1|ES","T21_1","ES","waver",174.59898899999999,173.09542235000001,164.95830683,158.81186493000001,150.86381668999999,145.94886528999999,141.20511630999999,136.09856502,134.72062016999999,131.82491152,127.30516129,111.82998698,106.22183099999999,103.02216616,98.868227927999996,95.368698834,89.220346750999994,88.137151845999995,84.424774232000004,83.460167365999993,79.152251995,77.523255684000006,79.273073062999998,76.906396838000006,69.668386204000001,467.71759280999999]
[null,null,null,null,null,null,null,null,null,null,"T21_1|EU","T21_1","EU","waver",1174.6558858000001,1181.7526192,1152.3332806000001,1125.1721207000001,1098.4162220999999,1078.7797654999999,1062.2785882999999,1037.9889594000001,988.84288881999998,967.00511914000003,893.25111543000003,854.41608509000002,815.08089115999996,791.21281710999995,746.51202215000001,714.09701748999998,659.70671988000004,662.92578479999997,635.49492017,618.62857072999998,583.99216176000004,524.66980663000004,528.49835655000004,510.33687508999998,467.71759280999999,7.8632483344999997]
[null,null,null,null,null,null,null,null,null,null,"T21_1|HU","T21_1","HU","waver",7.6464122411000002,7.2801196018000001,6.915104833,6.8674611947999997,6.0818015559000003,5.7900176312999996,5.6722705202999997,5.5378177151000001,5.0909427920999999,4.6151848857999997,4.3690931901000001,4.1617428834999997,3.7638060082,3.5709562426999999,3.3791432849,3.0687065862999998,2.7613162774000002,2.8954406096,2.8093782155000002,2.7907434234999999,2.6795361610000001,2.5909449771999999,2.6768928882999998,2.5909289735000001,2.6251924979000001,9.344441346]
[null,null,null,null,null,null,null,null,null,null,"T21_1|IT","T21_1","IT","waver",278.27328512000003,281.26369949000002,281.72913869000001,283.84321505999998,281.36134815000003,280.99082327000002,276.62854716999999,275.91203188999998,254.00677959999999,249.33355897999999,199.69388006,195.97033931999999,186.72227844,179.55226210000001,158.96608642999999,153.48411727999999,134.71155949999999,144.85850976,137.18526836999999,127.05238319999999,115.53725057,111.62319395999999,108.40682362,97.962976042999998,76.698126465000001,0.31700600000000001]
[null,null,null,null,null,null,null,null,null,null,"T21_1|NL","T21_1","NL","waver",49.724457000000001,50.812677999999998,47.934856000000003,45.413544031000001,45.021915047999997,43.794163527999999,44.578143463000004,43.428713361,41.844858516999999,41.017192664,41.163458693000003,40.147832481000002,38.879059036999998,40.006737065000003,38.577317323999999,37.069960526000003,35.682497896999998,35.136451543,33.755705706000001,34.711499787999998,34.209118908999997,35.973356381000002,37.738147791999999,37.343708786000001,36.807508786,3.8268926012]
[null,null,null,null,null,null,null,null,null,null,"T21_1|NO","T21_1","NO","waver",4.1501635243999999,3.9502472986999999,3.7708180789000001,3.2540386226,3.2632150332999998,3.3977316060999998,4.1450501740999997,4.1178000302999997,4.8741851888000003,3.6460295940999998,3.5858563717999998,3.2705222883,3.5001669063,3.0231316082999999,3.4290442112999999,3.7797066789999998,3.3332036966,3.4161600780999999,3.2026464155999999,3.4847313711000001,3.2025693444000001,3.6422846960999999,4.1027698441,4.0292160118,3.8268926012,6.1472291605000002]
[null,null,null,null,null,null,null,null,null,null,"T21_1|SI","T21_1","SI","waver",3.6181030000000001,3.6309939999999998,3.5234489999999998,3.657648,3.1309100000000001,3.3925429999999999,3.3680780000000001,2.818041,2.5142039999999999,2.4020260000000002,2.2951260000000002,2.161985,1.8291409999999999,1.6112249999999999,1.4751559999999999,1.379742,1.061793,0.97716700000000001,0.802979,0.72376300000000005,0.60361600000000004,0.6750579793,0.66432601989999995,0.65218206420000002,0.75223430579999995,1.0086954897]
[null,null,null,null,null,null,null,null,null,null,"T21_2|BG","T21_2","BG","waver",0,0,0,0,0,0,0,0,0,0,0,0,0,0,0,0,0,0.65860108399999995,0.6657025258,0.66601083959999996,0.63838684940000001,0.64958380199999999,0.72267716540000004,0.72305808360000001,0.74211575829999998,0.77640734600000005]
[null,null,null,null,null,null,null,null,null,null,"T21_2|EE","T21_2","EE","waver",0,0,0,0,0,0,0,0,0,0,0,0,0,0,0,0,0,0.28271694159999999,0.26717549750000003,0.25326179409999999,0.22085351980000001,0.21262275410000001,0.2262957823,0.2065248381,0.20627640059999999,36.927460301000004]
[null,null,null,null,null,null,null,null,null,null,"T21_2|ES","T21_2","ES","waver",0,0,0,0,0,0,0,0,0,0,0,0,0,0,0,0,0,46.555562696000003,45.561980523999999,45.615667510999998,43.911202975000002,43.384765545999997,43.840589950000002,41.364346881000003,36.927460301000004,174.54027042999999]
[null,null,null,null,null,null,null,null,null,null,"T21_2|GR","T21_2","GR","waver",0,0,0,0,0,0,0,0,0,0,0,0,0,0,0,0,0,40.065047814000003,36.918310712999997,35.721485747999999,34.411572987,33.928467775999998,31.143853823000001,30.570691768,25.650236511999999,0.80790087269999999]
[null,null,null,null,null,null,null,null,null,null,"T21_2|IE","T21_2","IE","waver",0,0,0,0,0,0,0,0,0,0,0,0,0,0,0,0,0,5.8494188697,5.6565600459000001,5.2972079467000004,4.7598480866999999,4.6639933713000001,5.0182401555,5.0023016754,4.9207644391000001,0.11592955369999999]
[null,null,null,null,null,null,null,null,null,null,"T21_2|MT","T21_2","MT","waver",0,0,0,0,0,0,0,0,0,0,0,0,0,0,0,0,0,0.15130308670000001,0.14645881099999999,0.13533803129999999,0.13238807350000001,0.12767348179999999,0.15173800179999999,0.1510728311,0.16325885479999999,9.5669295890000008]
[null,null,null,null,null,null,null,null,null,null,"T21_2|NL","T21_2","NL","waver",0,0,0,0,0,0,0,0,0,0,0,0,0,0,0,0,0,7.4094346550000001,7.2235725820000001,7.1360823753,8.0421532702,9.0159175048000009,9.4703193104000007,9.2879217806999996,9.5669295890000008,0.39986114179999999]
[null,null,null,null,null,null,null,null,null,null,"T21_2|SE","T21_2","SE","waver",0,0,0,0,0,0,0,0,0,0,0,0,0,0,0,0,0,1.0705839378999999,1.0751958374999999,1.0561427561000001,1.0806238497,0.99369704670000003,1.0179848031000001,0.97865093489999999,1.0322268286,0.25337173769999999]
[null,null,null,null,null,null,null,null,null,null,"T21_3|BG","T21_3","BG","waver",0,0,0,0,0,0,0,0,0,0,0,0,0,0,0,0,0,0.28517077410000002,0.28152827489999999,0.27307546780000003,0.25123785659999998,0.2482385725,0.2609515288,0.25336895390000003,0.25467736990000001,0.53957307099999996]
[null,null,null,null,null,null,null,null,null,null,"T21_3|DK","T21_3","DK","waver",0,0,0,0,0,0,0,0,0,0,0,0,0,0,0,0,0,0.99185087810000006,0.96734209969999996,0.96665010750000002,0.99289947010000001,1.0391287409000001,1.0563093969999999,1.123468879,1.0866705316,0.1727878675]
[null,null,null,null,null,null,null,null,null,null,"T21_3|EE","T21_3","EE","waver",0,0,0,0,0,0,0,0,0,0,0,0,0,0,0,0,0,0.21912201540000001,0.2137751101,0.2051349318,0.18408262440000001,0.17594280800000001,0.18684527740000001,0.16903846950000001,0.1727878675,21.439524428999999]
[null,null,null,null,null,null,null,null,null,null,"T21_3|GB","T21_3","GB","waver",0,0,0,0,0,0,0,0,0,0,0,0,0,0,0,0,0,23.24471423,22.036618841999999,21.58774567,22.069448527999999,20.541949836000001,20.570793204000001,19.840128762999999,20.193517557,17.619793978000001]
[null,null,null,null,null,null,null,null,null,null,"T21_3|IS","T21_3","IS","waver",0,0,0,0,0,0,0,0,0,0,0,0,0,0,0,0,0,0.1047936283,0.10980238019999999,0.1267420689,0.12166591459999999,0.1018550592,0.10915323959999999,9.3072650699999995E-2,8.4083315899999997E-2,9.466365176]
[null,null,null,null,null,null,null,null,null,null,"T21_3|LT","T21_3","LT","waver",0,0,0,0,0,0,0,0,0,0,0,0,0,0,0,0,0,0.11082400000000001,0.10903400000000001,0.10567699999999999,9.6428E-2,9.1064999999999993E-2,9.7590999999999997E-2,9.5615000000000006E-2,9.3183000000000002E-2,0.35208824030000002]
[null,null,null,null,null,null,null,null,null,null,"T21_3|MT","T21_3","MT","waver",0,0,0,0,0,0,0,0,0,0,0,0,0,0,0,0,0,0.1198413416,0.1176184592,0.1107710306,0.10788832769999999,0.1022375284,0.1244897254,0.12382718080000001,0.1368172138,6.9245831410000003]
[null,null,null,null,null,null,null,null,null,null,"T21_3|RO","T21_3","RO","waver",0,0,0,0,0,0,0,0,0,0,0,0,0,0,0,0,0,0.32408806709999999,0.3023797829,0.30743556280000001,0.29094058540000001,0.2904499901,0.29020068370000002,0.26170717850000003,0.26261596370000001,0.49162871879999998]
[null,null,null,null,null,null,null,null,null,null,"T21_4|BE","T21_4","BE","waver",0,0,0,0,0,0,0,0,0,0,0,0,0,0,0,0,0,9.7033072304000001,9.2285937298,9.6264766298000009,9.4902449572999998,9.3612940605000006,9.5081158644000006,9.2759145752999999,10.10271657,1.3156350343000001]
[null,null,null,null,null,null,null,null,null,null,"T21_4|DK","T21_4","DK","waver",0,0,0,0,0,0,0,0,0,0,0,0,0,0,0,0,0,3.2160485167999999,3.1973725787,3.5837139027,3.6910778589,3.7199101762,4.0676187268000001,4.1320509460999997,4.5089050131999997,0.2039890114]
[null,null,null,null,null,null,null,null,null,null,"T21_4|EU","T21_4","EU","waver",0,0,0,0,0,0,0,0,0,0,0,0,0,0,0,0,0,370.79774219000001,356.27040152000001,346.28305612000003,322.15418774,294.5350474,298.14154245999998,289.90587428999999,261.86878359999997,3.7059035964999998]
[null,null,null,null,null,null,null,null,null,null,"T21_4|FR","T21_4","FR","waver",0,0,0,0,0,0,0,0,0,0,0,0,0,0,0,0,0,64.479273649000007,62.819276361,63.362247815000003,61.232935865000002,61.565593020000001,66.439259414000006,67.380427604000005,64.659532366999997,29.049469962]
[null,null,null,null,null,null,null,null,null,null,"T21_4|IE","T21_4","IE","waver",0,0,0,0,0,0,0,0,0,0,0,0,0,0,0,0,0,4.2209062293999997,3.6081986396999999,3.4317138855999998,2.2220380525999999,2.4699771561000001,3.5892457431999998,3.8127304708,4.402086444,0.45146346430000001]
[null,null,null,null,null,null,null,null,null,null,"T21_4|LV","T21_4","LV","waver",0,0,0,0,0,0,0,0,0,0,0,0,0,0,0,0,0,0.12211564599999999,0.14001628999999999,0.13881076000000001,0.12322234,0.12256837499999999,0.14246468600000001,0.14223307900000001,0.10240350500000001,0.34734314189999999]
[null,null,null,null,null,null,null,null,null,null,"T21_4|NL","T21_4","NL","waver",0,0,0,0,0,0,0,0,0,0,0,0,0,0,0,0,0,24.491942462000001,24.905259672,25.948920517000001,25.127655083000001,25.749740778,27.367002627000002,26.836017467000001,25.908438704999998,3.3519880505000001]
[null,null,null,null,null,null,null,null,null,null,"T21_4|PT","T21_4","PT","waver",0,0,0,0,0,0,0,0,0,0,0,0,0,0,0,0,0,15.201221713000001,14.526337114,13.425877850999999,9.9121272235000006,9.5067388394000005,9.3058148120999995,8.7038853503000002,7.8466262023000004,0.66059547480000003]
[null,null,null,null,null,null,null,null,null,null,"T21_5|AT","T21_5","AT","waver",0,0,0,0,0,0,0,0,0,0,0,0,0,0,0,0,0,3.2183906677,3.1394222358000001,3.1769088675999999,3.1881042234999999,2.9701712596999998,3.0079056431,3.0124689172000001,3.2982486724000002,4.9052511103000001]
[null,null,null,null,null,null,null,null,null,null,"T21_5|DE","T21_5","DE","waver",0,0,0,0,0,0,0,0,0,0,0,0,0,0,0,0,0,5.7175041924999999,5.3433033763999997,4.8692085989000002,4.8846606008000002,4.8631246337,5.3359515871000003,4.7739717974999998,5.6195268437000001,2.0365803135]
[null,null,null,null,null,null,null,null,null,null,"T21_5|DK","T21_5","DK","waver",0,0,0,0,0,0,0,0,0,0,0,0,0,0,0,0,0,1.5536546989,1.4620728427,1.4809232925,1.6226928616,1.6307578999000001,1.8531820491,2.0034368841000001,2.0365803135,0.13704588879999999]
[null,null,null,null,null,null,null,null,null,null,"T21_5|FI","T21_5","FI","waver",0,0,0,0,0,0,0,0,0,0,0,0,0,0,0,0,0,2.1874648625000002,2.2286106559999999,1.6631839826000001,1.5128378255999999,1.6468338360999999,1.6848361681999999,1.6891699147000001,1.5513967846000001,33.043760677000002]
[null,null,null,null,null,null,null,null,null,null,"T21_5|HU","T21_5","HU","waver",0,0,0,0,0,0,0,0,0,0,0,0,0,0,0,0,0,0.37146314070000003,0.4191744168,0.40863087120000002,0.40927540470000001,0.38296495739999997,0.35144404579999999,0.4064110252,0.43314450580000002,2.7291819722000001]
[null,null,null,null,null,null,null,null,null,null,"T21_5|LU","T21_5","LU","waver",0,0,0,0,0,0,0,0,0,0,0,0,0,0,0,0,0,0.9804139248,0.9852121559,0.88552659909999998,0.85273096540000004,0.89548401280000001,0.97438406379999998,1.1001789644,1.1876070879,4.9526382000000001E-2]
[null,null,null,null,null,null,null,null,null,null,"T21_5|LV","T21_5","LV","waver",0,0,0,0,0,0,0,0,0,0,0,0,0,0,0,0,0,9.0294339000000001E-2,6.8224990999999999E-2,6.4732399999999995E-2,4.9864709E-2,5.1537152000000003E-2,7.4693102999999997E-2,8.0829247000000007E-2,4.9526382000000001E-2,0.1734910922]
[null,null,null,null,null,null,null,null,null,null,"T21_5|PT","T21_5","PT","waver",0,0,0,0,0,0,0,0,0,0,0,0,0,0,0,0,0,9.7335368737000003,9.3759962022999996,8.5632175343999997,6.7698987215999997,6.5186167455000001,6.4145801001000002,6.0996366082,5.6524003722999998,0.33023043749999997]
[null,null,null,null,null,null,null,null,null,null,"T21_5|SK","T21_5","SK","waver",0,0,0,0,0,0,0,0,0,0,0,0,0,0,0,0,0,0.22719280480000001,0.2292711674,0.24228568210000001,0.23611709080000001,0.24673642800000001,0.25369448039999998,0.2569344811,0.24556692899999999,2.1439112603999999]
[null,null,null,null,null,null,null,null,null,null,"T21_6|CZ","T21_6","CZ","waver",0,0,0,0,0,0,0,0,0,0,0,0,0,0,0,0,0,0.2410350832,0.23989173429999999,0.2510946114,0.28060083029999999,0.25998347919999998,0.30325361569999998,0.29986419279999998,0.3897852698,4.6407838424000003]
[null,null,null,null,null,null,null,null,null,null,"T21_6|DE","T21_6","DE","waver",0,0,0,0,0,0,0,0,0,0,0,0,0,0,0,0,0,4.3880288092999997,4.3925505380000001,4.0110766700999996,3.8599850665000002,3.8617901739999998,4.0386064250000002,4.0678805793999997,4.6407838424000003,1.0278900858]
[null,null,null,null,null,null,null,null,null,null,"T21_6|FI","T21_6","FI","waver",0,0,0,0,0,0,0,0,0,0,0,0,0,0,0,0,0,0.768863199,0.72662637799999996,0.6610877355,0.6999003251,0.72012577740000006,0.62427052699999996,0.73575416890000001,0.66849638199999994,7.6398279001000002]
[null,null,null,null,null,null,null,null,null,null,"T21_6|GR","T21_6","GR","waver",0,0,0,0,0,0,0,0,0,0,0,0,0,0,0,0,0,20.963385684999999,20.297921009,18.568453390999998,17.628997306999999,17.302660753000001,15.015127080999999,14.642008222999999,14.324945359999999,0.44901288140000001]
[null,null,null,null,null,null,null,null,null,null,"T21_6|LT","T21_6","LT","waver",0,0,0,0,0,0,0,0,0,0,0,0,0,0,0,0,0,0.126774,0.12673100000000001,0.113229,0.107534,0.109774,0.121076,0.11788800000000001,0.14471200000000001,0.31511983799999999]
[null,null,null,null,null,null,null,null,null,null,"T21_6|LU","T21_6","LU","waver",0,0,0,0,0,0,0,0,0,0,0,0,0,0,0,0,0,0.16161271399999999,0.17751220000000001,0.18691010199999999,0.183131392,0.172245549,0.16930298899999999,0.21197253099999999,0.31511983799999999,7.9230832000000001E-2]
[null,null,null,null,null,null,null,null,null,null,"T21_6|PL","T21_6","PL","waver",0,0,0,0,0,0,0,0,0,0,0,0,0,0,0,0,0,1.7519453058000001,1.6855207198,1.6148964897,1.4993273498999999,1.4616389217000001,1.5257279197,1.5344949694000001,1.6023644249,3.5172178903]
[null,null,null,null,null,null,null,null,null,null,"T21_6|SI","T21_6","SI","waver",0,0,0,0,0,0,0,0,0,0,0,0,0,0,0,0,0,0.40096300000000001,0.348387,0.30257000000000001,0.23710000000000001,0.25261271330000001,0.25190791299999998,0.22521469290000001,0.26078547260000001,0.14949782740000001]
[null,null,null,null,null,null,null,null,null,null,"T22_1|CY","T22_1","CY","waver",0.50817341989999998,0.49546305010000002,0.49639065100000002,0.5004061192,0.4894511366,0.48531600330000002,0.47430046710000001,0.46657492589999999,0.44983342230000001,0.43792594419999997,0.42677526500000001,0.40624644720000003,0.38854790909999998,0.38915414590000003,0.34116250650000002,"n.a.","n.a.",0.2358941161,0.21502920640000001,0.21092352549999999,0.19320935610000001,0.20066256399999999,0.15518134019999999,0.1434789215,0.1148961939,1.47579974E-2]
[null,null,null,null,null,null,null,null,null,null,"T22_1|CZ","T22_1","CZ","waver",4.46917368E-2,4.2476226300000003E-2,3.7110380399999997E-2,3.3666238299999998E-2,3.3208946599999997E-2,2.9606391499999999E-2,2.6808305899999999E-2,2.5141245100000001E-2,2.5334622399999999E-2,1.8382470299999999E-2,1.7137268000000001E-2,1.5718226700000001E-2,1.5827651200000001E-2,1.43938755E-2,1.3877022899999999E-2,1.38917287E-2,1.4499829400000001E-2,1.30875785E-2,1.2669472899999999E-2,1.20456782E-2,1.27821025E-2,1.14285415E-2,1.24192711E-2,1.2508041900000001E-2,1.47579974E-2,1.27121506E-2]
[null,null,null,null,null,null,null,null,null,null,"T22_1|EU","T22_1","EU","waver",6.4763577200000005E-2,6.1916476300000002E-2,6.0043461800000003E-2,5.8717885800000001E-2,5.7208654999999997E-2,5.6180528399999999E-2,5.4317499200000001E-2,5.3093890400000003E-2,5.0744811600000002E-2,4.8017137799999998E-2,4.44258233E-2,4.2294588500000001E-2,4.0536493399999998E-2,3.8435022100000001E-2,3.5850995099999998E-2,3.4094554399999998E-2,3.1861204499999997E-2,3.0971663199999999E-2,2.99151533E-2,2.8785687599999998E-2,2.74819231E-2,2.9654452500000001E-2,2.8682688599999999E-2,2.7562481999999999E-2,2.57369639E-2,1.52415252E-2]
[null,null,null,null,null,null,null,null,null,null,"T22_1|HR","T22_1","HR","waver",0.1367609162,0.14526325779999999,0.14433547369999999,0.13622422740000001,0.12511884240000001,0.1252408226,0.108326429,0.1049114126,0.10108099,0.10436261049999999,9.7818548899999996E-2,8.8983364800000006E-2,7.5143218900000003E-2,7.9077612199999994E-2,7.5871417900000002E-2,6.6974615700000004E-2,6.37269055E-2,6.2935321299999999E-2,6.0861862400000001E-2,4.7585223599999997E-2,4.3319146000000003E-2,4.16758832E-2,4.3015447800000002E-2,4.4695342399999997E-2,4.3500259899999998E-2,4.03936077E-2]
[null,null,null,null,null,null,null,null,null,null,"T22_1|IE","T22_1","IE","waver",0.21609110740000001,0.2095051349,0.20380221179999999,0.19560387400000001,0.17830347760000001,0.15064694540000001,0.14606236380000001,0.14403747059999999,0.1227195148,0.1154835585,0.11819183380000001,0.1136560687,0.10467247440000001,8.2458857400000002E-2,7.0121023000000005E-2,6.8279312199999997E-2,5.7958474099999997E-2,5.0496495699999998E-2,4.5602797100000002E-2,4.26974954E-2,3.2956183299999997E-2,3.3384932300000003E-2,4.04614191E-2,4.0360537100000003E-2,4.1939032899999999E-2,2.6595241400000001E-2]
[null,null,null,null,null,null,null,null,null,null,"T22_1|LT","T22_1","LT","waver",6.3411042500000001E-2,6.3705393900000004E-2,5.9998555799999999E-2,5.5456497399999999E-2,5.0868867200000001E-2,4.9164306900000003E-2,4.4988605100000002E-2,4.0719467400000001E-2,3.7754951000000002E-2,3.6660213900000002E-2,3.3313059800000003E-2,3.10619904E-2,2.84625573E-2,3.0061481300000002E-2,2.6777284700000001E-2,2.4819707699999999E-2,2.39637007E-2,1.83250228E-2,1.8168779999999999E-2,1.66326888E-2,1.49172312E-2,1.39220287E-2,1.35947541E-2,1.2308480700000001E-2,1.2522228999999999E-2,1.8228507500000001E-2]
[null,null,null,null,null,null,null,null,null,null,"T22_1|NO","T22_1","NO","waver",1.5651789199999998E-2,1.3930929599999999E-2,1.32005556E-2,1.3174017999999999E-2,1.38856376E-2,1.41397534E-2,1.68161597E-2,1.67373361E-2,1.8620916599999999E-2,1.7991445700000001E-2,1.8182315399999999E-2,1.6303872099999998E-2,1.7673385699999999E-2,1.2086059E-2,1.26797171E-2,1.4970654200000001E-2,1.4549712500000001E-2,1.33012042E-2,1.2007249899999999E-2,1.31397033E-2,1.25015839E-2,1.49440298E-2,1.6913083499999999E-2,1.6668201699999999E-2,1.5654575600000002E-2,5.0890386099999997E-2]
[null,null,null,null,null,null,null,null,null,null,"T22_1|SI","T22_1","SI","waver",0.28410908029999998,0.29201098920000002,0.28361461370000002,0.2458584526,0.21519342220000001,0.19694932979999999,0.19211791750000001,0.16332672810000001,0.14411775560000001,0.13534553869999999,0.13332611459999999,0.12630090990000001,0.1046290765,9.2505446899999996E-2,8.5421019400000006E-2,7.9319568399999998E-2,7.0703297999999998E-2,6.3113446500000003E-2,5.2553657500000003E-2,4.65731796E-2,3.7026209300000001E-2,3.4707505E-2,3.2499893000000002E-2,3.1873920600000001E-2,3.1844542500000003E-2,2.15051297E-2]
[null,null,null,null,null,null,null,null,null,null,"T22_2|BG","T22_2","BG","waver",0,0,0,0,0,0,0,0,0,0,0,0,0,0,0,0,0,9.4218636600000003E-2,8.1773428999999995E-2,7.9422328099999995E-2,7.4471997700000001E-2,7.43814156E-2,8.2132741499999995E-2,8.0622512300000004E-2,8.2003534200000006E-2,0.19846227550000001]
[null,null,null,null,null,null,null,null,null,null,"T22_2|CY","T22_2","CY","waver",0,0,0,0,0,0,0,0,0,0,0,0,0,0,0,"n.a.","n.a.",0.34860291170000002,0.34020117170000003,0.3350754454,0.3209905925,0.31904797019999998,0.25436705679999999,0.23884952109999999,0.19846227550000001,1.7103601400000001E-2]
[null,null,null,null,null,null,null,null,null,null,"T22_2|ES","T22_2","ES","waver",0,0,0,0,0,0,0,0,0,0,0,0,0,0,0,0,0,3.9939614800000002E-2,3.8903220500000002E-2,3.8864009999999997E-2,3.6925548099999997E-2,3.7469825900000003E-2,3.8084541899999998E-2,3.6304410299999999E-2,3.4941738600000001E-2,2.87325797E-2]
[null,null,null,null,null,null,null,null,null,null,"T22_2|GR","T22_2","GR","waver",0,0,0,0,0,0,0,0,0,0,0,0,0,0,0,0,0,0.46491781209999999,0.44726458549999998,0.44033045459999998,0.43187422879999998,0.430879664,0.41133935710000002,0.40580269829999999,0.36837082300000001,5.9195746100000002E-2]
[null,null,null,null,null,null,null,null,null,null,"T22_2|IT","T22_2","IT","waver",0,0,0,0,0,0,0,0,0,0,0,0,0,0,0,0,0,6.61784235E-2,6.3877660700000005E-2,5.4918622700000003E-2,5.0512959599999997E-2,5.07695076E-2,5.08994049E-2,4.5264334599999997E-2,3.72070288E-2,1.63807895E-2]
[null,null,null,null,null,null,null,null,null,null,"T22_2|LU","T22_2","LU","waver",0,0,0,0,0,0,0,0,0,0,0,0,0,0,0,0,0,2.3574359600000001E-2,2.2993802800000001E-2,2.3938054300000001E-2,1.98989792E-2,2.1214917600000001E-2,2.0047588599999999E-2,2.1689779900000001E-2,2.1437849799999999E-2,2.5709846599999999E-2]
[null,null,null,null,null,null,null,null,null,null,"T22_2|NL","T22_2","NL","waver",0,0,0,0,0,0,0,0,0,0,0,0,0,0,0,0,0,1.08172233E-2,1.0529711000000001E-2,1.0344263100000001E-2,1.08856722E-2,1.22578028E-2,1.28311021E-2,1.2572164300000001E-2,1.29244761E-2,3.9064657000000003E-3]
[null,null,null,null,null,null,null,null,null,null,"T22_2|SE","T22_2","SE","waver",0,0,0,0,0,0,0,0,0,0,0,0,0,0,0,0,0,3.2940138E-3,3.3123221E-3,3.2609424999999999E-3,3.2338101999999998E-3,3.1177931999999998E-3,3.0153527E-3,2.8874896999999998E-3,2.8711956999999998E-3,2.6910031800000001E-2]
[null,null,null,null,null,null,null,null,null,null,"T22_3|BG","T22_3","BG","waver",0,0,0,0,0,0,0,0,0,0,0,0,0,0,0,0,0,8.8246034599999995E-2,7.58922504E-2,7.1243533999999997E-2,6.3338308900000001E-2,6.13849671E-2,6.3540564800000005E-2,6.0712424799999998E-2,5.95171907E-2,0.1874216088]
[null,null,null,null,null,null,null,null,null,null,"T22_3|DE","T22_3","DE","waver",0,0,0,0,0,0,0,0,0,0,0,0,0,0,0,0,0,1.05589103E-2,1.02354109E-2,9.7567976000000004E-3,9.7804876000000002E-3,9.9396161999999993E-3,1.0758819100000001E-2,1.05708296E-2,9.3380466999999998E-3,1.9395776999999999E-2]
[null,null,null,null,null,null,null,null,null,null,"T22_3|EE","T22_3","EE","waver",0,0,0,0,0,0,0,0,0,0,0,0,0,0,0,0,0,2.0662679199999999E-2,1.9974082399999999E-2,1.8997492500000001E-2,1.6406954800000002E-2,1.5573169600000001E-2,1.6380618699999999E-2,1.4733732100000001E-2,1.4867361399999999E-2,2.91041483E-2]
[null,null,null,null,null,null,null,null,null,null,"T22_3|GB","T22_3","GB","waver",0,0,0,0,0,0,0,0,0,0,0,0,0,0,0,0,0,1.61667835E-2,1.5705839799999999E-2,1.49455573E-2,1.47078998E-2,1.42664525E-2,1.45423041E-2,1.39421049E-2,1.3833218899999999E-2,0.3491923435]
[null,null,null,null,null,null,null,null,null,null,"T22_3|IS","T22_3","IS","waver",0,0,0,0,0,0,0,0,0,0,0,0,0,0,0,0,0,1.47190106E-2,1.54373809E-2,1.6604131000000001E-2,1.6422343499999999E-2,1.54533607E-2,1.5730798300000001E-2,1.29796038E-2,1.0323753200000001E-2,2.6606621699999999E-2]
[null,null,null,null,null,null,null,null,null,null,"T22_3|IT","T22_3","IT","waver",0,0,0,0,0,0,0,0,0,0,0,0,0,0,0,0,0,4.6471253800000001E-2,4.4911311699999998E-2,3.4253748700000003E-2,3.4616267300000003E-2,3.4617674700000003E-2,3.61214095E-2,3.2432669900000002E-2,2.6606621699999999E-2,1.39880557E-2]
[null,null,null,null,null,null,null,null,null,null,"T22_3|NL","T22_3","NL","waver",0,0,0,0,0,0,0,0,0,0,0,0,0,0,0,0,0,8.8339201999999995E-3,8.5916124999999999E-3,8.374032E-3,8.6785465999999999E-3,9.7376891000000004E-3,1.0005441E-2,9.7845241000000006E-3,1.01392694E-2,2.0618644000000002E-3]
[null,null,null,null,null,null,null,null,null,null,"T22_3|RO","T22_3","RO","waver",0,0,0,0,0,0,0,0,0,0,0,0,0,0,0,0,0,3.4962160200000002E-2,3.2363297700000002E-2,3.2541032800000001E-2,3.03458679E-2,3.0069587599999999E-2,2.9845302600000002E-2,2.6732596099999999E-2,2.63429487E-2,1.5207494E-3]
[null,null,null,null,null,null,null,null,null,null,"T22_4|BE","T22_4","BE","waver",0,0,0,0,0,0,0,0,0,0,0,0,0,0,0,0,0,3.7233934500000003E-2,3.5157196500000001E-2,3.6891281400000003E-2,3.6421211199999998E-2,3.5830808499999998E-2,3.7640584900000003E-2,3.7535457199999997E-2,4.0831267800000001E-2,0.1161667207]
[null,null,null,null,null,null,null,null,null,null,"T22_4|BG","T22_4","BG","waver",0,0,0,0,0,0,0,0,0,0,0,0,0,0,0,0,0,0.13448054309999999,0.1127620043,0.1307736739,0.1192562288,0.1206417572,0.1244434317,0.1158531864,0.1161667207,0.26015641090000002]
[null,null,null,null,null,null,null,null,null,null,"T22_4|DK","T22_4","DK","waver",0,0,0,0,0,0,0,0,0,0,0,0,0,0,0,0,0,3.9561855700000002E-2,3.8948338899999997E-2,4.3281761100000003E-2,4.5211069100000001E-2,4.4599525299999998E-2,4.8506610499999998E-2,5.0215957800000002E-2,5.5198473099999999E-2,1.82677428E-2]
[null,null,null,null,null,null,null,null,null,null,"T22_4|FR","T22_4","FR","waver",0,0,0,0,0,0,0,0,0,0,0,0,0,0,0,0,0,4.3349841100000001E-2,4.1721943499999997E-2,4.1542082899999999E-2,3.9437759099999997E-2,3.7692095100000003E-2,3.9083036699999997E-2,4.0298242200000001E-2,3.8720304400000002E-2,3.3970636200000001E-2]
[null,null,null,null,null,null,null,null,null,null,"T22_4|IE","T22_4","IE","waver",0,0,0,0,0,0,0,0,0,0,0,0,0,0,0,0,0,6.2333037000000001E-2,5.2263707600000001E-2,4.96018051E-2,3.3323016900000002E-2,3.5413700100000001E-2,5.3743166100000003E-2,5.8379321099999999E-2,6.7769823600000001E-2,4.4647326899999999E-2]
[null,null,null,null,null,null,null,null,null,null,"T22_4|IS","T22_4","IS","waver",0,0,0,0,0,0,0,0,0,0,0,0,0,0,0,0,0,3.2589394200000003E-2,3.2470335599999997E-2,3.5027994E-2,3.91983734E-2,3.9477050999999999E-2,4.5019270700000003E-2,4.59093634E-2,4.4647326899999999E-2,7.4778743199999997E-2]
[null,null,null,null,null,null,null,null,null,null,"T22_4|MT","T22_4","MT","waver",0,0,0,0,0,0,0,0,0,0,0,0,0,0,0,0,0,7.6986252599999999E-2,7.4106282300000006E-2,8.19518469E-2,8.4541694599999995E-2,8.1988811999999994E-2,7.5600072599999998E-2,9.9525801900000002E-2,9.9005966500000001E-2,4.8312221099999997E-2]
[null,null,null,null,null,null,null,null,null,null,"T22_4|RO","T22_4","RO","waver",0,0,0,0,0,0,0,0,0,0,0,0,0,0,0,0,0,0.1004980795,9.3886475900000002E-2,8.4838877300000004E-2,8.0817036800000006E-2,7.4941131800000005E-2,8.4935749599999999E-2,7.4197001200000001E-2,7.27137333E-2,9.5588016999999994E-3]
[null,null,null,null,null,null,null,null,null,null,"T22_5|AT","T22_5","AT","waver",0,0,0,0,0,0,0,0,0,0,0,0,0,0,0,0,0,5.0396470700000001E-2,4.8612010599999998E-2,4.48202485E-2,4.4660369200000001E-2,4.1867183400000001E-2,4.2013514000000002E-2,4.1739679600000003E-2,4.5551842699999998E-2,4.0997456100000003E-2]
[null,null,null,null,null,null,null,null,null,null,"T22_5|BE","T22_5","BE","waver",0,0,0,0,0,0,0,0,0,0,0,0,0,0,0,0,0,3.8146579200000003E-2,3.6968313400000001E-2,3.7128853199999999E-2,3.78292847E-2,3.6975901800000002E-2,3.9025109099999997E-2,3.7745198200000003E-2,4.0997456100000003E-2,0.16505308260000001]
[null,null,null,null,null,null,null,null,null,null,"T22_5|DK","T22_5","DK","waver",0,0,0,0,0,0,0,0,0,0,0,0,0,0,0,0,0,4.5554552999999998E-2,4.2412605999999999E-2,4.3016917000000002E-2,4.50650857E-2,4.6938825500000003E-2,5.41368401E-2,5.8686097100000001E-2,5.8817785999999997E-2,1.72037079E-2]
[null,null,null,null,null,null,null,null,null,null,"T22_5|EU","T22_5","EU","waver",0,0,0,0,0,0,0,0,0,0,0,0,0,0,0,0,0,8.9193572999999998E-2,8.4485923800000001E-2,8.0451961700000005E-2,7.7144177600000002E-2,7.6896921300000004E-2,7.2219703900000001E-2,6.7261264599999995E-2,6.2028686399999998E-2,2.5893380800000001E-2]
[null,null,null,null,null,null,null,null,null,null,"T22_5|HU","T22_5","HU","waver",0,0,0,0,0,0,0,0,0,0,0,0,0,0,0,0,0,5.0024822099999998E-2,5.27066281E-2,5.0812891899999997E-2,4.7433689799999998E-2,4.5448552500000003E-2,4.4627971299999999E-2,4.6699756299999999E-2,4.7593573600000001E-2,9.6138541699999996E-2]
[null,null,null,null,null,null,null,null,null,null,"T22_5|IE","T22_5","IE","waver",0,0,0,0,0,0,0,0,0,0,0,0,0,0,0,0,0,7.9685225799999995E-2,7.2805085399999997E-2,6.9230389500000003E-2,5.3800819100000001E-2,6.1161676800000002E-2,8.4628275899999994E-2,8.88176512E-2,9.6138541699999996E-2,7.7358295199999996E-2]
[null,null,null,null,null,null,null,null,null,null,"T22_5|LV","T22_5","LV","waver",0,0,0,0,0,0,0,0,0,0,0,0,0,0,0,0,0,3.6797603599999999E-2,2.7800512499999999E-2,2.8671908400000001E-2,2.3686890299999999E-2,2.5073453400000001E-2,2.59843196E-2,2.87604477E-2,3.4944011599999998E-2,8.5160452499999997E-2]
[null,null,null,null,null,null,null,null,null,null,"T22_5|PT","T22_5","PT","waver",0,0,0,0,0,0,0,0,0,0,0,0,0,0,0,0,0,0.18806339550000001,0.17981555430000001,0.16551877679999999,0.13521325149999999,0.13080608520000001,0.1224408869,0.114480581,0.10581137290000001,7.15028568E-2]
[null,null,null,null,null,null,null,null,null,null,"T22_5|SK","T22_5","SK","waver",0,0,0,0,0,0,0,0,0,0,0,0,0,0,0,0,0,4.5885552000000003E-2,4.65155612E-2,4.7804764100000001E-2,4.5245520599999998E-2,4.6598911200000002E-2,4.7022359399999998E-2,4.5815673600000002E-2,4.3444011499999997E-2,3.61443428E-2]
[null,null,null,null,null,null,null,null,null,null,"T22_6|AT","T22_6","AT","waver",0,0,0,0,0,0,0,0,0,0,0,0,0,0,0,0,0,4.7928610900000002E-2,4.3358947699999997E-2,4.0738672900000002E-2,3.9139643100000003E-2,3.5400696400000001E-2,3.51161283E-2,3.3570179999999998E-2,3.61443428E-2,4.73433532E-2]
[null,null,null,null,null,null,null,null,null,null,"T22_6|DE","T22_6","DE","waver",0,0,0,0,0,0,0,0,0,0,0,0,0,0,0,0,0,1.7411784400000001E-2,1.7205883500000001E-2,1.5468698100000001E-2,1.4891852000000001E-2,1.4758455E-2,1.56021519E-2,1.7498467E-2,2.1599786999999999E-2,3.7696799099999997E-2]
[null,null,null,null,null,null,null,null,null,null,"T22_6|FI","T22_6","FI","waver",0,0,0,0,0,0,0,0,0,0,0,0,0,0,0,0,0,2.3535712100000002E-2,2.3253448199999999E-2,2.1286144600000001E-2,2.1538462000000001E-2,2.19311058E-2,2.24060656E-2,2.1743615500000001E-2,1.9654160600000001E-2,3.8021873400000003E-2]
[null,null,null,null,null,null,null,null,null,null,"T22_6|GR","T22_6","GR","waver",0,0,0,0,0,0,0,0,0,0,0,0,0,0,0,0,0,0.57815816330000003,0.55190500330000003,0.53454530140000001,0.5194256988,0.51179879699999997,0.47612021570000002,0.47049739359999998,0.4674568918,0.102812716]
[null,null,null,null,null,null,null,null,null,null,"T22_6|HU","T22_6","HU","waver",0,0,0,0,0,0,0,0,0,0,0,0,0,0,0,0,0,8.3522193300000006E-2,8.0383356399999994E-2,7.4814393500000007E-2,6.6319292899999993E-2,6.1616336100000002E-2,5.7289631000000001E-2,5.8595942999999998E-2,5.3913509900000003E-2,0.12666641819999999]
[null,null,null,null,null,null,null,null,null,null,"T22_6|LU","T22_6","LU","waver",0,0,0,0,0,0,0,0,0,0,0,0,0,0,0,0,0,3.6750081400000002E-2,3.8732368599999997E-2,4.00293387E-2,3.8736044099999999E-2,3.5022929699999997E-2,3.3212524600000001E-2,4.1633995899999998E-2,5.1290668800000001E-2,4.8452634699999997E-2]
[null,null,null,null,null,null,null,null,null,null,"T22_6|PL","T22_6","PL","waver",0,0,0,0,0,0,0,0,0,0,0,0,0,0,0,0,0,0.12959789159999999,0.1170906585,0.1180127539,0.1119089507,0.1105738812,0.1093444224,0.1095647991,0.1201521069,0.1581580038]
[null,null,null,null,null,null,null,null,null,null,"T22_6|SK","T22_6","SK","waver",0,0,0,0,0,0,0,0,0,0,0,0,0,0,0,0,0,3.7247015299999998E-2,3.1451556800000002E-2,3.1582914599999998E-2,3.2755267099999999E-2,2.9768433699999999E-2,2.8200352800000002E-2,2.6663901399999999E-2,3.0169721100000001E-2,0.51453585609999997]
[null,null,null,null,null,null,null,null,null,null,"T23_1|AT","T23_1","AT","waver",0.53268527779999997,0.53092438659999996,0.54701082310000004,0.54695292269999995,0.55940504680000003,0.57171997529999996,0.56867137800000001,0.56876869100000005,0.57533433050000005,0.56300322989999996,0.55170162339999995,0.5469351576,0.5270191488,0.52375000500000002,0.54313169210000001,0.54021840119999998,0.52806974139999996,0.53048033049999999,0.5310222483,0.52611729399999996,0.52017586339999999,0.52820336940000001,0.52740168379999997,0.53675114710000005,0.51453585609999997,0.4024363467]
[null,null,null,null,null,null,null,null,null,null,"T23_1|CZ","T23_1","CZ","waver",0.59425074970000002,0.60715947479999999,0.59950024339999997,0.5960362937,0.59944579310000001,0.60520033029999998,0.60809837619999996,0.62408632200000003,0.62566784880000004,0.61947173950000001,0.62690104020000004,0.62018187049999995,0.62496736850000001,0.6113976257,0.61451551329999998,0.58584061700000001,0.57701612000000002,0.5835329641,0.57892897269999999,0.58053788009999996,0.57435352250000005,0.56894855769999997,0.55993847969999999,0.56918304050000001,0.54732337669999997,0.36625115790000001]
[null,null,null,null,null,null,null,null,null,null,"T23_1|EU","T23_1","EU","waver",0.4336813967,0.42961563270000003,0.43586921569999998,0.43638406470000002,0.4368733682,0.43748047849999999,0.4385194368,0.44287608350000002,0.44772592999999999,0.45154985549999999,0.44986772580000001,0.44736173350000003,0.44597963219999998,0.46656831059999998,0.45951551839999999,0.45697663399999999,0.45009716090000002,0.45115197330000001,0.44865810680000001,0.44585612460000001,0.44710542749999999,0.4599164932,0.4545849985,0.45491587859999999,0.44940126359999999,0.29535808569999999]
[null,null,null,null,null,null,null,null,null,null,"T23_1|HR","T23_1","HR","waver",0.52915807120000002,0.53623940420000005,0.54890348570000003,0.56150681540000003,0.57767559229999998,0.58888320839999997,0.59549146689999999,0.61429364610000003,0.63299585859999996,0.62990974300000002,0.57716997849999996,0.57899732230000001,0.58868731050000001,0.58210841719999995,0.58896395300000004,0.58526386340000003,0.57688426839999996,0.58068128480000003,0.55339236120000002,0.63543667029999995,0.65837829319999996,0.67811870799999996,0.67484730810000004,0.67516264179999996,0.62872757820000003,0.62837513190000005]
[null,null,null,null,null,null,null,null,null,null,"T23_1|IE","T23_1","IE","waver",0.42671356700000002,0.41866506069999998,0.41148821029999999,0.40766449529999998,0.3839918021,0.38637215429999999,0.37912983430000002,0.37920337720000002,0.35287709909999998,0.34609055160000002,0.32366553170000001,0.32189089799999998,0.29475093740000002,0.31253247909999998,0.30417891349999998,0.30324849059999998,0.2603382065,0.25987099340000003,0.2717088399,0.27145351449999999,0.27021966829999999,0.27638564069999999,0.29753918559999998,0.29840683229999998,0.30798506339999998,0.30421958389999998]
[null,null,null,null,null,null,null,null,null,null,"T23_1|LT","T23_1","LT","waver",0.31002732100000002,0.30884007460000001,0.31014572569999999,0.31461181900000001,0.31669413590000001,0.32814633059999998,0.32854322609999997,0.33256526419999999,0.30434086370000002,0.30961098180000002,0.30884020969999998,0.30188164379999999,0.29221596129999999,0.2613902971,0.26015097110000002,0.2645970379,0.26241694830000001,0.3339117486,0.33400630570000001,0.32932189270000001,0.3157479889,0.32115379929999999,0.31488751580000002,0.31982298720000002,0.29634454869999999,0.33016898859999999]
[null,null,null,null,null,null,null,null,null,null,"T23_1|NO","T23_1","NO","waver",0.3481303355,0.39032289710000001,0.39189736730000002,0.4267166583,0.37097245109999999,0.37484510009999999,0.31588382069999998,0.3043058522,0.2819839851,0.29561692699999997,0.27440114869999999,0.3251644078,0.32774492560000001,0.40488545860000003,0.2549383046,0.25817661110000001,0.28367352000000001,0.2942905817,0.30174003579999997,0.30243828769999997,0.3478027045,0.32097243069999998,0.35933478670000002,0.37791294320000002,0.36896631749999997,0.63138405870000003]
[null,null,null,null,null,null,null,null,null,null,"T23_1|SI","T23_1","SI","waver",0.59165120510000002,0.6009745541,0.61028583069999998,0.59911587990000004,0.62738660639999999,0.64118980950000004,0.66056724339999995,0.66510813719999995,0.63749122979999995,0.63718461000000004,0.64789994100000003,0.65074919580000001,0.62899360959999995,0.5956362395,0.60597523239999995,0.61584557110000004,0.59524219879999996,0.60425904679999998,0.59745273539999999,0.60487341849999998,0.56389492659999996,0.52595892529999999,0.52262703899999996,0.52878185840000003,0.51269833649999996,0.62160483040000003]
[null,null,null,null,null,null,null,null,null,null,"T23_1|SK","T23_1","SK","waver",0.54173088089999999,0.53765025180000003,0.54298383130000005,0.55287254100000005,0.54084828039999999,0.55023248359999999,0.53231143910000001,0.54053552589999998,0.54995364950000003,0.55930835450000005,0.56765541509999995,0.59761708700000005,0.59846026829999999,0.61368448229999994,0.63348486579999996,0.64469548489999995,0.64809087659999998,0.64279959409999998,0.63583890330000004,0.63743582929999998,0.62031768939999998,0.61114273119999996,0.62540424770000003,0.64644367940000003,0.62160483040000003,0.54662229259999995]
[null,null,null,null,null,null,null,null,null,null,"T23_2|CY","T23_2","CY","waver",0,0,0,0,0,0,0,0,0,0,0,0,0,0,0,"n.a.","n.a.",0.42419150189999999,0.43015097839999999,0.43979163129999999,0.46068779380000002,0.47784046479999998,0.44294394799999998,0.42714133929999998,0.35221918679999997,0.55242398670000004]
[null,null,null,null,null,null,null,null,null,null,"T23_2|ES","T23_2","ES","waver",0,0,0,0,0,0,0,0,0,0,0,0,0,0,0,0,0,0.37344314899999997,0.37576014429999999,0.37836837270000001,0.38004168020000001,0.38289977149999999,0.3922529703,0.391809407,0.41819565469999997,0.42363688579999997]
[null,null,null,null,null,null,null,null,null,null,"T23_2|GR","T23_2","GR","waver",0,0,0,0,0,0,0,0,0,0,0,0,0,0,0,0,0,0.43160370710000001,0.41808802639999998,0.40218797789999999,0.40299457579999998,0.41439415210000002,0.40847807349999998,0.41245779469999999,0.41663220359999997,0.59848599199999997]
[null,null,null,null,null,null,null,null,null,null,"T23_2|HR","T23_2","HR","waver",0,0,0,0,0,0,0,0,0,0,0,0,0,0,0,0,0,0.68816080339999997,0.68454704219999996,0.67431733739999999,0.65581657260000004,0.66961360950000004,0.6543462578,0.66261722710000004,0.59848599199999997,0.66924711290000005]
[null,null,null,null,null,null,null,null,null,null,"T23_2|LU","T23_2","LU","waver",0,0,0,0,0,0,0,0,0,0,0,0,0,0,0,0,0,0.22909376510000001,0.22561769770000001,0.20366138540000001,0.24139805640000001,0.24173963909999999,0.24863381979999999,0.22070115160000001,0.1987780858,0.56328645379999998]
[null,null,null,null,null,null,null,null,null,null,"T23_2|NL","T23_2","NL","waver",0,0,0,0,0,0,0,0,0,0,0,0,0,0,0,0,0,0.1877167388,0.18870381110000001,0.1908845656,0.1686230903,0.15990225490000001,0.16405264680000001,0.17324617119999999,0.17079219009999999,0.22511735490000001]
[null,null,null,null,null,null,null,null,null,null,"T23_2|SE","T23_2","SE","waver",0,0,0,0,0,0,0,0,0,0,0,0,0,0,0,0,0,0.31281614679999997,0.30613564440000002,0.30683282270000001,0.30863603150000002,0.31953030339999999,0.31217320630000001,0.32314767570000003,0.32999225389999998,0.49800079580000001]
[null,null,null,null,null,null,null,null,null,null,"T23_2|SI","T23_2","SI","waver",0,0,0,0,0,0,0,0,0,0,0,0,0,0,0,0,0,0.57195859250000003,0.553392883,0.55243807840000003,0.51698091739999996,0.53587416590000003,0.52755065830000003,0.52567553980000004,0.49800079580000001,0.58869067180000001]
[null,null,null,null,null,null,null,null,null,null,"T23_3|CY","T23_3","CY","waver",0,0,0,0,0,0,0,0,0,0,0,0,0,0,0,"n.a.","n.a.",0.3417845914,0.34216957730000003,0.35055228649999998,0.3912184735,0.40792995030000001,0.39043409870000001,0.37676602469999998,0.29836787570000001,0.33405343799999998]
[null,null,null,null,null,null,null,null,null,null,"T23_3|DK","T23_3","DK","waver",0,0,0,0,0,0,0,0,0,0,0,0,0,0,0,0,0,0.27807660290000003,0.27326206349999999,0.26694152180000003,0.27157757249999998,0.2683251103,0.2450575512,0.217254895,0.21031397199999999,0.20323522760000001]
[null,null,null,null,null,null,null,null,null,null,"T23_3|GB","T23_3","GB","waver",0,0,0,0,0,0,0,0,0,0,0,0,0,0,0,0,0,9.2202309800000007E-2,9.8362771700000004E-2,9.7941326600000003E-2,0.1045749847,0.107972965,0.1209251948,0.13294844780000001,0.118845887,0.31688291330000001]
[null,null,null,null,null,null,null,null,null,null,"T23_3|GR","T23_3","GR","waver",0,0,0,0,0,0,0,0,0,0,0,0,0,0,0,0,0,0.3404793673,0.33388291240000001,0.31912575310000002,0.32078273489999998,0.33272505759999998,0.3273254511,0.32710857319999997,0.31688291330000001,0.55946219109999995]
[null,null,null,null,null,null,null,null,null,null,"T23_3|IT","T23_3","IT","waver",0,0,0,0,0,0,0,0,0,0,0,0,0,0,0,0,0,0.40653429699999999,0.40627216989999998,0.3223962782,0.31775852160000001,0.31940415239999997,0.31815177849999998,0.32987862600000001,0.34428462580000002,0.17238122829999999]
[null,null,null,null,null,null,null,null,null,null,"T23_3|NL","T23_3","NL","waver",0,0,0,0,0,0,0,0,0,0,0,0,0,0,0,0,0,8.6896646399999999E-2,8.6690552599999998E-2,8.5340815E-2,7.2406995099999996E-2,7.5127869E-2,7.5871946199999998E-2,7.7650188600000003E-2,8.2801656799999998E-2,0.1178311487]
[null,null,null,null,null,null,null,null,null,null,"T23_3|RO","T23_3","RO","waver",0,0,0,0,0,0,0,0,0,0,0,0,0,0,0,0,0,0.55847413830000003,0.55117322479999997,0.56373255700000002,0.5477034596,0.5462946541,0.54102987950000003,0.53506536039999997,0.52004073319999999,0.17233117319999999]
[null,null,null,null,null,null,null,null,null,null,"T23_3|SE","T23_3","SE","waver",0,0,0,0,0,0,0,0,0,0,0,0,0,0,0,0,0,0.16291399500000001,0.168677935,0.18199692880000001,0.18165365119999999,0.19208090150000001,0.17671744980000001,0.1714615088,0.17233117319999999,0.35230845779999997]
[null,null,null,null,null,null,null,null,null,null,"T23_4|BG","T23_4","BG","waver",0,0,0,0,0,0,0,0,0,0,0,0,0,0,0,0,0,0.51508239479999995,0.4897575428,0.43732508669999998,0.43226438630000003,0.43019795770000002,0.41891703419999998,0.43049541299999999,0.43908113069999999,0.51825468870000002]
[null,null,null,null,null,null,null,null,null,null,"T23_4|EE","T23_4","EE","waver",0,0,0,0,0,0,0,0,0,0,0,0,0,0,0,0,0,0.25286831659999998,0.29504609570000001,0.37112737270000001,0.41812816279999998,0.40882200790000001,0.38479689150000002,0.40545332769999998,0.35607138859999998,0.4868256581]
[null,null,null,null,null,null,null,null,null,null,"T23_4|FI","T23_4","FI","waver",0,0,0,0,0,0,0,0,0,0,0,0,0,0,0,0,0,0.36972207089999998,0.34112327349999999,0.39071914810000002,0.3998439453,0.41768110780000001,0.4304522288,0.43834808829999999,0.42920958040000001,0.49335154460000002]
[null,null,null,null,null,null,null,null,null,null,"T23_4|GB","T23_4","GB","waver",0,0,0,0,0,0,0,0,0,0,0,0,0,0,0,0,0,0.40327026259999998,0.41324972989999997,0.4146123129,0.4532817797,0.47260665940000002,0.45604254950000001,0.45261561360000002,0.43763098909999998,0.4777370037]
[null,null,null,null,null,null,null,null,null,null,"T23_4|IS","T23_4","IS","waver",0,0,0,0,0,0,0,0,0,0,0,0,0,0,0,0,0,0.324824685,0.35654297029999998,0.33302708450000001,0.31455068759999999,0.34138618809999999,0.3428578887,0.34660181109999999,0.34879280800000001,0.56062187470000002]
[null,null,null,null,null,null,null,null,null,null,"T23_4|MT","T23_4","MT","waver",0,0,0,0,0,0,0,0,0,0,0,0,0,0,0,0,0,0.31687564620000003,0.33687751040000002,0.3334011918,0.30781620329999998,0.31967682990000001,0.35852937099999999,0.29012076050000002,0.3377799964,0.30894586130000001]
[null,null,null,null,null,null,null,null,null,null,"T23_4|PT","T23_4","PT","waver",0,0,0,0,0,0,0,0,0,0,0,0,0,0,0,0,0,0.56247348109999995,0.56731649669999995,0.58225877559999994,0.55900499429999995,0.5626938869,0.56693421310000003,0.58035470450000004,0.56213622100000005,0.63902770819999999]
[null,null,null,null,null,null,null,null,null,null,"T23_4|RO","T23_4","RO","waver",0,0,0,0,0,0,0,0,0,0,0,0,0,0,0,0,0,0.63196306199999996,0.64258738309999996,0.62973965279999999,0.62496431730000002,0.63529874779999995,0.63019436039999999,0.62195344249999995,0.63902770819999999,0.46433713720000003]
[null,null,null,null,null,null,null,null,null,null,"T23_5|BE","T23_5","BE","waver",0,0,0,0,0,0,0,0,0,0,0,0,0,0,0,0,0,0.49666143270000002,0.49536080799999999,0.50500806050000002,0.48181393560000002,0.48261017150000002,0.49762127039999998,0.49053724510000002,0.46048882079999998,0.45467200060000001]
[null,null,null,null,null,null,null,null,null,null,"T23_5|DK","T23_5","DK","waver",0,0,0,0,0,0,0,0,0,0,0,0,0,0,0,0,0,0.4522304311,0.44796086810000002,0.4167918068,0.42035277989999997,0.43494752580000001,0.40180699440000001,0.34380898529999998,0.31529033010000002,0.29809942239999998]
[null,null,null,null,null,null,null,null,null,null,"T23_5|FR","T23_5","FR","waver",0,0,0,0,0,0,0,0,0,0,0,0,0,0,0,0,0,0.53939487929999996,0.52844712120000004,0.51753909460000003,0.51667224879999996,0.51451366870000004,0.49687484850000002,0.50494263049999999,0.49647471319999997,0.29243234150000003]
[null,null,null,null,null,null,null,null,null,null,"T23_5|GR","T23_5","GR","waver",0,0,0,0,0,0,0,0,0,0,0,0,0,0,0,0,0,0.51043566669999996,0.50723021219999997,0.4910736597,0.4919497155,0.49359405179999999,0.4943613342,0.49653170720000001,0.4801586477,0.62137027580000004]
[null,null,null,null,null,null,null,null,null,null,"T23_5|IE","T23_5","IE","waver",0,0,0,0,0,0,0,0,0,0,0,0,0,0,0,0,0,0.36864963940000001,0.35831277360000002,0.34674181580000002,0.34500304590000003,0.32114498019999999,0.28922390720000002,0.32300090320000002,0.31430904079999999,0.3101563678]
[null,null,null,null,null,null,null,null,null,null,"T23_5|LV","T23_5","LV","waver",0,0,0,0,0,0,0,0,0,0,0,0,0,0,0,0,0,0.32321572230000001,0.3532663566,0.3460243248,0.38175560190000002,0.38523494660000002,0.32203125900000001,0.29994811160000001,0.46905011149999998,0.44641874190000003]
[null,null,null,null,null,null,null,null,null,null,"T23_5|PT","T23_5","PT","waver",0,0,0,0,0,0,0,0,0,0,0,0,0,0,0,0,0,0.52297920099999995,0.52795089799999995,0.53007390229999996,0.51795276420000003,0.51554329109999997,0.51682449770000005,0.53760006680000005,0.52279271250000003,0.6284500328]
[null,null,null,null,null,null,null,null,null,null,"T23_5|RO","T23_5","RO","waver",0,0,0,0,0,0,0,0,0,0,0,0,0,0,0,0,0,0.64223089840000003,0.63815233250000003,0.61855335649999998,0.62108139579999999,0.65187767620000003,0.63844154040000001,0.61824794520000004,0.6284500328,0.26736496589999997]
[null,null,null,null,null,null,null,null,null,null,"T23_6|AT","T23_6","AT","waver",0,0,0,0,0,0,0,0,0,0,0,0,0,0,0,0,0,0.43009511709999998,0.42186171750000001,0.4295021597,0.42922864500000002,0.44849582269999999,0.47086515309999999,0.48370760740000002,0.42431334079999999,0.25506141199999999]
[null,null,null,null,null,null,null,null,null,null,"T23_6|DE","T23_6","DE","waver",0,0,0,0,0,0,0,0,0,0,0,0,0,0,0,0,0,0.28477352589999999,0.28592668650000003,0.3179335532,0.32015894709999998,0.31458423639999999,0.2845420119,0.27298907160000002,0.26830921720000001,0.2283048225]
[null,null,null,null,null,null,null,null,null,null,"T23_6|FI","T23_6","FI","waver",0,0,0,0,0,0,0,0,0,0,0,0,0,0,0,0,0,0.1587716046,0.17663045920000001,0.19556635289999999,0.18675296850000001,0.18974097719999999,0.2397475537,0.21479960619999999,0.24261175239999999,0.30978394939999998]
[null,null,null,null,null,null,null,null,null,null,"T23_6|FR","T23_6","FR","waver",0,0,0,0,0,0,0,0,0,0,0,0,0,0,0,0,0,0.37099903010000002,0.34837478820000001,0.34144107369999999,0.28930259990000001,0.31328903330000002,0.31116170669999998,0.31806793049999998,0.30978394939999998,0.2930411161]
[null,null,null,null,null,null,null,null,null,null,"T23_6|IS","T23_6","IS","waver",0,0,0,0,0,0,0,0,0,0,0,0,0,0,0,0,0,0.31195573910000002,0.30856248209999998,0.27780670120000001,0.26584376980000002,0.21206897459999999,0.19973320650000001,0.1926296767,0.2190481323,0.45546271820000001]
[null,null,null,null,null,null,null,null,null,null,"T23_6|LU","T23_6","LU","waver",0,0,0,0,0,0,0,0,0,0,0,0,0,0,0,0,0,0.43807914149999999,0.40207556439999997,0.38890885629999999,0.40474036260000001,0.37163414309999998,0.33996975680000002,0.30334805980000001,0.2361845337,0.33772820910000001]
[null,null,null,null,null,null,null,null,null,null,"T23_6|PL","T23_6","PL","waver",0,0,0,0,0,0,0,0,0,0,0,0,0,0,0,0,0,0.46799011280000002,0.48098456940000001,0.47253255529999999,0.4419463535,0.46845695790000003,0.48871408290000001,0.50069415610000001,0.50441411169999995,0.46420898090000001]
[null,null,null,null,null,null,null,null,null,null,"T23_6|PT","T23_6","PT","waver",0,0,0,0,0,0,0,0,0,0,0,0,0,0,0,0,0,0.50051334199999997,0.49523719379999998,0.49460260360000002,0.47353395149999999,0.46545600850000002,0.47305378770000001,0.48698321929999999,0.46420898090000001,0.58377126739999996]
[null,null,null,null,null,null,null,null,null,null,"T23_6|SK","T23_6","SK","waver",0,0,0,0,0,0,0,0,0,0,0,0,0,0,0,0,0,0.56389544650000001,0.52735081750000001,0.58455212420000002,0.63049072319999999,0.65637601459999995,0.6158820841,0.68723363829999995,0.68303798520000003,2.1120003799999999E-2]
[null,null,null,null,null,null,null,null,null,null,"T2410|CZ","T2410","CZ","waver",0,0,0,0,0,0,0,0,0,0,0,0,0,0,0,0,0,2.0171521800000002E-2,1.9588454000000002E-2,1.9330788000000002E-2,2.1623756300000001E-2,1.91324971E-2,1.9322499900000002E-2,1.9504659899999999E-2,2.2190435800000002E-2,2.74741225E-2]
[null,null,null,null,null,null,null,null,null,null,"T2410|EU","T2410","EU","waver",0,0,0,0,0,0,0,0,0,0,0,0,0,0,0,0,0,2.7227701999999999E-2,2.79225879E-2,2.7306312100000001E-2,2.77862023E-2,2.66039767E-2,2.6429174499999999E-2,2.5684393400000002E-2,2.6476598300000001E-2,2.1047455E-2]
[null,null,null,null,null,null,null,null,null,null,"T2410|FI","T2410","FI","waver",0,0,0,0,0,0,0,0,0,0,0,0,0,0,0,0,0,1.80803992E-2,1.9134618799999999E-2,1.9589898599999999E-2,2.0445498999999999E-2,2.1005648200000001E-2,2.0510892499999999E-2,2.0372092099999999E-2,2.1047455E-2,2.4650163100000001E-2]
[null,null,null,null,null,null,null,null,null,null,"T2410|HU","T2410","HU","waver",0,0,0,0,0,0,0,0,0,0,0,0,0,0,0,0,0,1.57888757E-2,1.5131177900000001E-2,1.8764046199999999E-2,1.9164000099999998E-2,1.9590568499999999E-2,2.1307248500000001E-2,2.10827367E-2,2.27203084E-2,4.8000590699999998E-2]
[null,null,null,null,null,null,null,null,null,null,"T2410|LU","T2410","LU","waver",0,0,0,0,0,0,0,0,0,0,0,0,0,0,0,0,0,1.2870449500000001E-2,1.40962308E-2,1.53729926E-2,1.39484468E-2,1.5640342299999999E-2,1.4346549199999999E-2,1.5655941499999999E-2,1.6738447900000002E-2,1.3831657900000001E-2]
[null,null,null,null,null,null,null,null,null,null,"T2410|NO","T2410","NO","waver",0,0,0,0,0,0,0,0,0,0,0,0,0,0,0,0,0,3.3890181800000002E-2,3.3753588500000001E-2,3.0579151400000001E-2,3.0178064399999999E-2,3.2691801200000002E-2,3.1815402E-2,3.0502901900000001E-2,3.0299522200000002E-2,4.81834664E-2]
[null,null,null,null,null,null,null,null,null,null,"T2410|PL","T2410","PL","waver",0,0,0,0,0,0,0,0,0,0,0,0,0,0,0,0,0,4.9304142500000002E-2,4.8980395000000003E-2,4.8844440000000003E-2,4.7154640400000003E-2,4.9312198199999997E-2,5.3828255399999997E-2,5.2004803299999999E-2,4.81834664E-2,1.4800847299999999E-2]
[null,null,null,null,null,null,null,null,null,null,"T2410|SK","T2410","SK","waver",0,0,0,0,0,0,0,0,0,0,0,0,0,0,0,0,0,2.62815466E-2,2.9267039599999999E-2,3.0395545699999998E-2,2.7906824600000001E-2,2.5780493799999998E-2,2.6423794399999999E-2,2.4733433999999999E-2,2.5961899100000001E-2,1.74399529E-2]
[null,null,null,null,null,null,null,null,null,null,"T24_1|CY","T24_1","CY","waver",0,0,0,0,0,0,0,0,0,0,0,0,0,0,0,"n.a.","n.a.",1.53246236E-2,1.4694432300000001E-2,1.37043224E-2,1.32793927E-2,1.2765318899999999E-2,1.2908335E-2,1.3932725700000001E-2,1.74050496E-2,4.07913653E-2]
[null,null,null,null,null,null,null,null,null,null,"T24_1|ES","T24_1","ES","waver",0,0,0,0,0,0,0,0,0,0,0,0,0,0,0,0,0,2.7117332099999999E-2,2.6977153E-2,2.64453454E-2,2.6029212699999998E-2,2.5216466699999999E-2,2.4758423099999999E-2,2.4436335300000001E-2,2.5852603700000001E-2,3.92292505E-2]
[null,null,null,null,null,null,null,null,null,null,"T24_1|EU","T24_1","EU","waver",0,0,0,0,0,0,0,0,0,0,0,0,0,0,0,0,0,3.7597187499999997E-2,3.7848738700000002E-2,3.8089614399999999E-2,3.7657997499999998E-2,3.6974981599999998E-2,3.7447030499999999E-2,3.8128964799999998E-2,3.92292505E-2,5.36794144E-2]
[null,null,null,null,null,null,null,null,null,null,"T24_1|HR","T24_1","HR","waver",0,0,0,0,0,0,0,0,0,0,0,0,0,0,0,0,0,5.7851255800000001E-2,5.0324284699999999E-2,5.3782777599999998E-2,5.51200419E-2,5.01897803E-2,4.9496934200000002E-2,5.1429502699999997E-2,5.0018842899999999E-2,7.13061163E-2]
[null,null,null,null,null,null,null,null,null,null,"T24_1|LT","T24_1","LT","waver",0,0,0,0,0,0,0,0,0,0,0,0,0,0,0,0,0,3.5066E-2,3.4860279399999999E-2,3.6336084599999999E-2,3.2783278999999999E-2,3.2256970000000003E-2,3.5303512500000002E-2,3.6030141199999997E-2,3.7072271099999998E-2,0.13830703729999999]
[null,null,null,null,null,null,null,null,null,null,"T24_1|LV","T24_1","LV","waver",0,0,0,0,0,0,0,0,0,0,0,0,0,0,0,0,0,0.1175160646,0.1197805708,0.12292431049999999,0.11734138619999999,0.1193666795,0.1210335771,0.1215666059,0.1166650402,1.3190096999999999E-3]
[null,null,null,null,null,null,null,null,null,null,"T24_1|NO","T24_1","NO","waver",0,0,0,0,0,0,0,0,0,0,0,0,0,0,0,0,0,3.8309442399999998E-2,3.8370881400000001E-2,4.15402312E-2,4.3910222300000003E-2,4.4236375000000001E-2,4.48743297E-2,4.8549222699999998E-2,5.0864078200000003E-2,1.33387534E-2]
[null,null,null,null,null,null,null,null,null,null,"T24_1|SI","T24_1","SI","waver",0,0,0,0,0,0,0,0,0,0,0,0,0,0,0,0,0,1.4232140399999999E-2,1.3238418599999999E-2,1.36832625E-2,1.4706539500000001E-2,1.22805402E-2,1.3714310699999999E-2,1.4090973E-2,1.6436680400000001E-2,3.8725314599999998E-2]
[null,null,null,null,null,null,null,null,null,null,"T24_2|CY","T24_2","CY","waver",0,0,0,0,0,0,0,0,0,0,0,0,0,0,0,"n.a.","n.a.",5.3750027000000001E-3,5.4490594999999998E-3,5.3594595999999998E-3,5.2468578E-3,5.2483711000000004E-3,7.2739103999999999E-3,2.8673878000000002E-3,4.3631216000000004E-3,5.2565574000000004E-3]
[null,null,null,null,null,null,null,null,null,null,"T24_2|DK","T24_2","DK","waver",0,0,0,0,0,0,0,0,0,0,0,0,0,0,0,0,0,9.2902416000000005E-3,8.9196668999999996E-3,9.6047666E-3,5.5233399999999998E-3,6.5875027000000001E-3,6.1387482000000004E-3,5.6268359999999996E-3,4.5708251000000002E-3,5.8242175999999998E-3]
[null,null,null,null,null,null,null,null,null,null,"T24_2|ES","T24_2","ES","waver",0,0,0,0,0,0,0,0,0,0,0,0,0,0,0,0,0,1.7037528900000001E-2,1.8255181200000001E-2,1.83019182E-2,1.7955462200000001E-2,1.85058567E-2,1.7789255699999999E-2,1.7561749000000001E-2,1.7683212199999999E-2,1.6237845399999999E-2]
[null,null,null,null,null,null,null,null,null,null,"T24_2|GR","T24_2","GR","waver",0,0,0,0,0,0,0,0,0,0,0,0,0,0,0,0,0,1.44945395E-2,1.3818352000000001E-2,1.406923E-2,1.3941695299999999E-2,1.4347779E-2,1.4307485E-2,1.3499263100000001E-2,1.27134442E-2,5.4848335000000003E-3]
[null,null,null,null,null,null,null,null,null,null,"T24_2|IT","T24_2","IT","waver",0,0,0,0,0,0,0,0,0,0,0,0,0,0,0,0,0,1.0392833400000001E-2,1.1509036699999999E-2,1.1669786200000001E-2,1.3191380900000001E-2,9.8336424999999998E-3,1.1509739499999999E-2,1.0060611699999999E-2,1.09675216E-2,3.0404351999999998E-3]
[null,null,null,null,null,null,null,null,null,null,"T24_2|NL","T24_2","NL","waver",0,0,0,0,0,0,0,0,0,0,0,0,0,0,0,0,0,3.3048049500000003E-2,3.1352150799999999E-2,3.4728439600000001E-2,3.2076211899999998E-2,3.4641597599999997E-2,3.3954680299999998E-2,3.1707697399999998E-2,2.9279962100000001E-2,4.4266461100000001E-2]
[null,null,null,null,null,null,null,null,null,null,"T24_2|NO","T24_2","NO","waver",0,0,0,0,0,0,0,0,0,0,0,0,0,0,0,0,0,4.78981333E-2,4.6690543500000001E-2,5.0570112700000003E-2,5.0660076200000001E-2,5.4922747700000003E-2,5.2734704299999997E-2,5.1274515100000001E-2,4.4266461100000001E-2,1.795298E-2]
[null,null,null,null,null,null,null,null,null,null,"T24_2|SE","T24_2","SE","waver",0,0,0,0,0,0,0,0,0,0,0,0,0,0,0,0,0,1.54811736E-2,1.43802567E-2,1.55439766E-2,1.72024954E-2,1.6043652500000002E-2,1.49845459E-2,1.4230884799999999E-2,1.24912072E-2,1.48994057E-2]
[null,null,null,null,null,null,null,null,null,null,"T24_3|BG","T24_3","BG","waver",0,0,0,0,0,0,0,0,0,0,0,0,0,0,0,0,0,0.24049927360000001,0.24975575389999999,0.24835826999999999,0.24740273369999999,0.25507018399999998,0.25467483899999999,0.26330461500000002,0.26586964279999997,0.13162412770000001]
[null,null,null,null,null,null,null,null,null,null,"T24_3|EE","T24_3","EE","waver",0,0,0,0,0,0,0,0,0,0,0,0,0,0,0,0,0,0.14304770959999999,0.1419120186,0.1400477433,0.13724360350000001,0.13022263819999999,0.12886260120000001,0.12581493220000001,0.12828974439999999,0.17574317270000001]
[null,null,null,null,null,null,null,null,null,null,"T24_3|FI","T24_3","FI","waver",0,0,0,0,0,0,0,0,0,0,0,0,0,0,0,0,0,9.9994867900000006E-2,9.7942163200000001E-2,9.2375753199999994E-2,9.3822355400000002E-2,9.1066548299999994E-2,0.1090024794,0.1100752859,0.1319287807,0.1305042652]
[null,null,null,null,null,null,null,null,null,null,"T24_3|GB","T24_3","GB","waver",0,0,0,0,0,0,0,0,0,0,0,0,0,0,0,0,0,0.18186089620000001,0.1864678136,0.18419883279999999,0.17963494960000001,0.18903314430000001,0.177948143,0.16937886960000001,0.1636203037,0.19031491549999999]
[null,null,null,null,null,null,null,null,null,null,"T24_3|IS","T24_3","IS","waver",0,0,0,0,0,0,0,0,0,0,0,0,0,0,0,0,0,0.15886385729999999,0.1340574065,0.15812049289999999,0.15946046389999999,0.17177394160000001,0.17021445809999999,0.17702568199999999,0.1755032715,0.2805052307]
[null,null,null,null,null,null,null,null,null,null,"T24_3|MT","T24_3","MT","waver",0,0,0,0,0,0,0,0,0,0,0,0,0,0,0,0,0,0.1387407735,0.14083301079999999,0.12995612679999999,0.1084585523,0.1044357323,0.1036184983,8.1022723099999999E-2,5.8354155800000002E-2,0.1434857926]
[null,null,null,null,null,null,null,null,null,null,"T24_3|NL","T24_3","NL","waver",0,0,0,0,0,0,0,0,0,0,0,0,0,0,0,0,0,0.14133322819999999,0.1435205074,0.14138478439999999,0.1397402837,0.15145259920000001,0.14661916999999999,0.14513332509999999,0.1434857926,8.08749686E-2]
[null,null,null,null,null,null,null,null,null,null,"T24_3|SE","T24_3","SE","waver",0,0,0,0,0,0,0,0,0,0,0,0,0,0,0,0,0,5.91810854E-2,6.3315957699999995E-2,6.0800338400000001E-2,6.1135648500000001E-2,5.8664111200000001E-2,5.7198286000000001E-2,5.3872302300000001E-2,5.1568422199999998E-2,0.26657987509999997]
[null,null,null,null,null,null,null,null,null,null,"T24_4|BE","T24_4","BE","waver",0,0,0,0,0,0,0,0,0,0,0,0,0,0,0,0,0,4.0537508700000002E-2,4.0446163399999999E-2,4.1422705999999997E-2,4.2334489199999999E-2,4.4260589000000003E-2,4.5019024499999998E-2,4.6282991199999998E-2,4.6421601399999998E-2,4.5829806600000002E-2]
[null,null,null,null,null,null,null,null,null,null,"T24_4|DK","T24_4","DK","waver",0,0,0,0,0,0,0,0,0,0,0,0,0,0,0,0,0,2.22980539E-2,2.1406772000000001E-2,2.13937867E-2,2.2318344399999999E-2,2.6619601E-2,2.7428081900000002E-2,3.0546928300000002E-2,3.2661873700000003E-2,6.5949860599999993E-2]
[null,null,null,null,null,null,null,null,null,null,"T24_4|EE","T24_4","EE","waver",0,0,0,0,0,0,0,0,0,0,0,0,0,0,0,0,0,6.1965844399999997E-2,6.1869259099999997E-2,6.2766909400000001E-2,6.3727983700000004E-2,6.0214372100000003E-2,5.82243156E-2,5.75773708E-2,6.5949860599999993E-2,5.8953134599999998E-2]
[null,null,null,null,null,null,null,null,null,null,"T24_4|GR","T24_4","GR","waver",0,0,0,0,0,0,0,0,0,0,0,0,0,0,0,0,0,5.66047498E-2,5.95627621E-2,5.9699755E-2,6.0813774600000002E-2,6.4779240099999996E-2,6.5797933700000005E-2,6.5358486699999996E-2,6.5245979300000007E-2,6.5851127100000004E-2]
[null,null,null,null,null,null,null,null,null,null,"T24_4|IE","T24_4","IE","waver",0,0,0,0,0,0,0,0,0,0,0,0,0,0,0,0,0,2.22088145E-2,2.3838010400000002E-2,2.5943692800000001E-2,2.9628878399999999E-2,3.0364136600000001E-2,2.8895650299999999E-2,3.0240089299999998E-2,3.1523222699999999E-2,9.3438924999999992E-3]
[null,null,null,null,null,null,null,null,null,null,"T24_4|LV","T24_4","LV","waver",0,0,0,0,0,0,0,0,0,0,0,0,0,0,0,0,0,6.35844188E-2,6.4909472600000004E-2,6.6967545700000006E-2,7.74850344E-2,8.0784490799999997E-2,0.1047109447,0.1062195278,0.13449250609999999,6.23038359E-2]
[null,null,null,null,null,null,null,null,null,null,"T24_4|MT","T24_4","MT","waver",0,0,0,0,0,0,0,0,0,0,0,0,0,0,0,0,0,7.0348978600000001E-2,7.3986700500000002E-2,5.5964495500000003E-2,5.84537844E-2,6.90095337E-2,6.7239921300000005E-2,6.8177344200000004E-2,6.23038359E-2,3.7013549600000001E-2]
[null,null,null,null,null,null,null,null,null,null,"T24_4|RO","T24_4","RO","waver",0,0,0,0,0,0,0,0,0,0,0,0,0,0,0,0,0,3.6895343499999997E-2,4.1423239700000003E-2,4.0019239099999999E-2,4.4923983899999999E-2,3.6873403800000003E-2,3.5589256E-2,3.0282628999999998E-2,3.10318092E-2,3.2834913899999998E-2]
[null,null,null,null,null,null,null,null,null,null,"T24_5|AT","T24_5","AT","waver",0,0,0,0,0,0,0,0,0,0,0,0,0,0,0,0,0,7.8044159999999998E-3,7.9685773999999994E-3,9.6536204999999996E-3,1.0307934899999999E-2,9.6638672000000005E-3,9.6800763999999994E-3,9.5127171999999996E-3,9.9348544E-3,1.2362878000000001E-2]
[null,null,null,null,null,null,null,null,null,null,"T24_5|DE","T24_5","DE","waver",0,0,0,0,0,0,0,0,0,0,0,0,0,0,0,0,0,1.4659941500000001E-2,1.5615708400000001E-2,1.51703915E-2,1.5541127300000001E-2,1.50198126E-2,1.5555129799999999E-2,1.5847442E-2,1.83455106E-2,3.2871251000000002E-3]
[null,null,null,null,null,null,null,null,null,null,"T24_5|DK","T24_5","DK","waver",0,0,0,0,0,0,0,0,0,0,0,0,0,0,0,0,0,2.9743001000000001E-3,3.168541E-3,3.0063678000000001E-3,3.0644321000000002E-3,2.8241522E-3,2.9770062E-3,3.1720805E-3,3.2871251000000002E-3,6.7093930000000001E-3]
[null,null,null,null,null,null,null,null,null,null,"T24_5|FR","T24_5","FR","waver",0,0,0,0,0,0,0,0,0,0,0,0,0,0,0,0,0,6.6420725000000003E-3,6.1498585E-3,5.8834148999999999E-3,5.9249000999999999E-3,5.7077374000000002E-3,5.6476772999999999E-3,5.6339424000000004E-3,5.8304385E-3,9.7674483000000003E-3]
[null,null,null,null,null,null,null,null,null,null,"T24_5|IE","T24_5","IE","waver",0,0,0,0,0,0,0,0,0,0,0,0,0,0,0,0,0,6.4703156999999997E-3,6.2922997000000001E-3,6.1768493000000004E-3,4.8499442000000002E-3,5.5470008999999997E-3,5.4507974000000004E-3,5.5344319999999997E-3,5.5430946000000004E-3,6.0020207000000001E-3]
[null,null,null,null,null,null,null,null,null,null,"T24_5|LU","T24_5","LU","waver",0,0,0,0,0,0,0,0,0,0,0,0,0,0,0,0,0,4.4495033999999998E-3,4.1936446E-3,4.1647782999999997E-3,3.8414308000000001E-3,3.5856586E-3,3.9406920999999996E-3,3.8904072999999999E-3,4.4410691999999998E-3,8.0516067E-3]
[null,null,null,null,null,null,null,null,null,null,"T24_5|LV","T24_5","LV","waver",0,0,0,0,0,0,0,0,0,0,0,0,0,0,0,0,0,1.1368975700000001E-2,1.0976054400000001E-2,1.1475919100000001E-2,1.1815384E-2,1.1861230699999999E-2,1.1564444199999999E-2,1.15481579E-2,8.0516067E-3,1.02250017E-2]
[null,null,null,null,null,null,null,null,null,null,"T24_5|PT","T24_5","PT","waver",0,0,0,0,0,0,0,0,0,0,0,0,0,0,0,0,0,1.1950143099999999E-2,1.1988615899999999E-2,1.3054319700000001E-2,1.41524019E-2,1.4213132E-2,1.37958153E-2,1.32147537E-2,1.3412556799999999E-2,1.3296858599999999E-2]
[null,null,null,null,null,null,null,null,null,null,"T24_6|AT","T24_6","AT","waver",0,0,0,0,0,0,0,0,0,0,0,0,0,0,0,0,0,7.7421943600000001E-2,7.7547560099999996E-2,7.8538817799999994E-2,7.86752114E-2,7.5630930400000004E-2,7.4190605800000003E-2,7.4494919399999998E-2,7.4446106600000006E-2,0.1099999466]
[null,null,null,null,null,null,null,null,null,null,"T24_6|CY","T24_6","CY","waver",0,0,0,0,0,0,0,0,0,0,0,0,0,0,0,"n.a.","n.a.",0.162344352,0.14970540509999999,0.1487712773,0.1451287772,0.14411052099999999,0.1308566618,0.12871097949999999,0.13238329739999999,4.4257523100000001E-2]
[null,null,null,null,null,null,null,null,null,null,"T24_6|DE","T24_6","DE","waver",0,0,0,0,0,0,0,0,0,0,0,0,0,0,0,0,0,3.3747602699999997E-2,3.2534800500000002E-2,3.2232957E-2,2.16619129E-2,2.08320351E-2,2.16708634E-2,2.2419247999999999E-2,2.1562489300000001E-2,2.6556424200000001E-2]
[null,null,null,null,null,null,null,null,null,null,"T24_6|FI","T24_6","FI","waver",0,0,0,0,0,0,0,0,0,0,0,0,0,0,0,0,0,4.3919045400000002E-2,4.4789422500000002E-2,4.72686711E-2,4.7327279999999999E-2,4.5376083800000001E-2,4.5790976300000001E-2,4.57259421E-2,4.6953175799999997E-2,4.63966585E-2]
[null,null,null,null,null,null,null,null,null,null,"T24_6|HU","T24_6","HU","waver",0,0,0,0,0,0,0,0,0,0,0,0,0,0,0,0,0,5.4281602599999999E-2,5.3115004200000003E-2,5.7221156199999998E-2,5.5309056500000002E-2,5.2969927600000001E-2,5.3144391700000002E-2,5.6158526899999998E-2,5.7157196E-2,2.4537776899999999E-2]
[null,null,null,null,null,null,null,null,null,null,"T24_6|IS","T24_6","IS","waver",0,0,0,0,0,0,0,0,0,0,0,0,0,0,0,0,0,0.1059244552,8.7945108999999994E-2,0.1137026233,0.12319487899999999,0.1196633953,0.1198924561,0.117108184,0.11036877859999999,8.2929868599999998E-2]
[null,null,null,null,null,null,null,null,null,null,"T24_6|LU","T24_6","LU","waver",0,0,0,0,0,0,0,0,0,0,0,0,0,0,0,0,0,5.8302099900000001E-2,5.9920222099999997E-2,6.0103922099999998E-2,6.1047762499999998E-2,6.2916286200000004E-2,6.1748170099999999E-2,6.5757061300000003E-2,6.9847222700000003E-2,2.10094241E-2]
[null,null,null,null,null,null,null,null,null,null,"T24_6|PL","T24_6","PL","waver",0,0,0,0,0,0,0,0,0,0,0,0,0,0,0,0,0,5.6753865100000002E-2,5.7814749499999998E-2,5.7187466800000003E-2,5.3736521299999999E-2,5.0019624800000002E-2,5.3467570499999999E-2,5.4846502900000003E-2,5.4360006900000001E-2,0.103393244]
[null,null,null,null,null,null,null,null,null,null,"T24_6|SK","T24_6","SK","waver",0,0,0,0,0,0,0,0,0,0,0,0,0,0,0,0,0,5.6210411799999999E-2,5.6777679800000001E-2,5.5950148599999999E-2,5.40666021E-2,5.5819262799999998E-2,5.2828990800000003E-2,6.0791980299999999E-2,5.7588588699999999E-2,0.12856373199999999]
[null,null,null,null,null,null,null,null,null,null,"T24_7|CZ","T24_7","CZ","waver",0,0,0,0,0,0,0,0,0,0,0,0,0,0,0,0,0,0.17051091709999999,0.16675895069999999,0.16413320670000001,0.16581831399999999,0.16237474730000001,0.16252462500000001,0.16446132320000001,0.16245804720000001,8.3307598299999994E-2]
[null,null,null,null,null,null,null,null,null,null,"T24_7|EE","T24_7","EE","waver",0,0,0,0,0,0,0,0,0,0,0,0,0,0,0,0,0,0.15937315630000001,0.1518566657,0.15553884370000001,0.15350456870000001,0.14717416550000001,0.14115671290000001,0.14876316449999999,0.13557720979999999,0.1818305871]
[null,null,null,null,null,null,null,null,null,null,"T24_7|EU","T24_7","EU","waver",0,0,0,0,0,0,0,0,0,0,0,0,0,0,0,0,0,0.13814141539999999,0.13480812549999999,0.13395097850000001,0.1339944357,0.1265711545,0.1256680513,0.12346956119999999,0.127188573,6.2323494899999998E-2]
[null,null,null,null,null,null,null,null,null,null,"T24_7|HR","T24_7","HR","waver",0,0,0,0,0,0,0,0,0,0,0,0,0,0,0,0,0,0.20016226149999999,0.20728356310000001,0.2073696132,0.20874190989999999,0.21132650720000001,0.21019318209999999,0.2042934964,0.1990161744,0.21017235070000001]
[null,null,null,null,null,null,null,null,null,null,"T24_7|LT","T24_7","LT","waver",0,0,0,0,0,0,0,0,0,0,0,0,0,0,0,0,0,0.24272418030000001,0.23112142199999999,0.22468104929999999,0.2225856178,0.21283113779999999,0.20091937800000001,0.2099425842,0.1877152181,7.5467377099999997E-2]
[null,null,null,null,null,null,null,null,null,null,"T24_7|LU","T24_7","LU","waver",0,0,0,0,0,0,0,0,0,0,0,0,0,0,0,0,0,8.4614496100000006E-2,7.9317755099999998E-2,6.8138899099999997E-2,7.0019063500000006E-2,7.9131545499999997E-2,7.7387951199999999E-2,7.5708258900000006E-2,7.5467377099999997E-2,0.1391702065]
[null,null,null,null,null,null,null,null,null,null,"T24_7|NO","T24_7","NO","waver",0,0,0,0,0,0,0,0,0,0,0,0,0,0,0,0,0,6.4458400599999993E-2,5.59993622E-2,6.13444483E-2,5.8951002099999997E-2,5.9874550800000002E-2,5.3486955599999997E-2,5.0777164E-2,5.0745539999999999E-2,0.1879111544]
[null,null,null,null,null,null,null,null,null,null,"T24_7|SI","T24_7","SI","waver",0,0,0,0,0,0,0,0,0,0,0,0,0,0,0,0,0,0.21086391760000001,0.21687209020000001,0.21370385410000001,0.21165063079999999,0.22470993140000001,0.20785113699999999,0.2044687885,0.2046572747,0.16379117330000001]
[null,null,null,null,null,null,null,null,null,null,"T24_8|CY","T24_8","CY","waver",0,0,0,0,0,0,0,0,0,0,0,0,0,0,0,"n.a.","n.a.",4.9434003999999997E-2,5.08414633E-2,5.7849020299999998E-2,6.1649501400000001E-2,5.98464909E-2,6.3963203900000001E-2,6.8207682000000006E-2,9.6791832100000003E-2,5.8326841800000001E-2]
[null,null,null,null,null,null,null,null,null,null,"T24_8|CZ","T24_8","CZ","waver",0,0,0,0,0,0,0,0,0,0,0,0,0,0,0,0,0,6.3139735000000002E-2,5.9788178599999998E-2,5.5982776099999999E-2,5.3078713899999998E-2,5.33654613E-2,5.81490811E-2,5.83098331E-2,5.8326841800000001E-2,5.1100779499999999E-2]
[null,null,null,null,null,null,null,null,null,null,"T24_8|FI","T24_8","FI","waver",0,0,0,0,0,0,0,0,0,0,0,0,0,0,0,0,0,7.4758852700000003E-2,7.1538742599999997E-2,7.2340171199999997E-2,7.0493917899999994E-2,6.9263823599999996E-2,6.7401244400000004E-2,6.3671553800000003E-2,5.9804507200000002E-2,5.8336309400000001E-2]
[null,null,null,null,null,null,null,null,null,null,"T24_8|GR","T24_8","GR","waver",0,0,0,0,0,0,0,0,0,0,0,0,0,0,0,0,0,0.1195470632,0.11746887759999999,0.1209966623,0.123951535,0.12609199330000001,0.1334932372,0.1296204614,0.13415389180000001,7.9770435599999995E-2]
[null,null,null,null,null,null,null,null,null,null,"T24_8|IT","T24_8","IT","waver",0,0,0,0,0,0,0,0,0,0,0,0,0,0,0,0,0,4.8555810900000003E-2,4.9455107800000002E-2,4.8066527900000003E-2,4.7782597699999999E-2,4.97343908E-2,5.3049573699999998E-2,5.6321405900000003E-2,5.73380946E-2,0.116976622]
[null,null,null,null,null,null,null,null,null,null,"T24_8|LT","T24_8","LT","waver",0,0,0,0,0,0,0,0,0,0,0,0,0,0,0,0,0,0.1079026661,0.11534503,0.11782921659999999,0.1163210793,0.11727115940000001,0.1155908288,0.1153911062,0.116976622,6.3533529899999996E-2]
[null,null,null,null,null,null,null,null,null,null,"T24_8|NO","T24_8","NO","waver",0,0,0,0,0,0,0,0,0,0,0,0,0,0,0,0,0,0.1483325804,0.14709227320000001,0.14614910040000001,0.13858112850000001,0.1460746188,0.13962360469999999,0.13631530280000001,0.12731727910000001,7.5796292599999995E-2]
[null,null,null,null,null,null,null,null,null,null,"T24_8|SE","T24_8","SE","waver",0,0,0,0,0,0,0,0,0,0,0,0,0,0,0,0,0,5.11488446E-2,5.2253151900000003E-2,5.30291289E-2,4.9902653300000002E-2,4.9023834799999999E-2,4.8048702999999998E-2,4.5019536999999998E-2,4.2270305199999997E-2,0.12420853179999999]
[null,null,null,null,null,null,null,null,null,null,"T24_9|BG","T24_9","BG","waver",0,0,0,0,0,0,0,0,0,0,0,0,0,0,0,0,0,4.1356524999999998E-2,4.3284101700000001E-2,3.9457753599999999E-2,3.9939743E-2,4.4687793500000003E-2,4.60171422E-2,4.5445569599999999E-2,4.4968952899999998E-2,0.18764091059999999]
[null,null,null,null,null,null,null,null,null,null,"T24_9|CY","T24_9","CY","waver",0,0,0,0,0,0,0,0,0,0,0,0,0,0,0,"n.a.","n.a.",0.16525606579999999,0.16548995120000001,0.1649495628,0.16963131240000001,0.1755811706,0.18934904150000001,0.19598047730000001,0.18764091059999999,1.6262247399999999E-2]
[null,null,null,null,null,null,null,null,null,null,"T24_9|ES","T24_9","ES","waver",0,0,0,0,0,0,0,0,0,0,0,0,0,0,0,0,0,4.7027321599999998E-2,4.6546644599999999E-2,4.6611157E-2,4.7493670000000002E-2,4.93060258E-2,5.4692038900000003E-2,5.6695874799999997E-2,5.7605548999999999E-2,2.9259657200000001E-2]
[null,null,null,null,null,null,null,null,null,null,"T24_9|FR","T24_9","FR","waver",0,0,0,0,0,0,0,0,0,0,0,0,0,0,0,0,0,2.44173172E-2,2.3657398400000001E-2,2.32620477E-2,2.2895378399999999E-2,2.3324546200000001E-2,2.5407364599999999E-2,2.49166831E-2,2.5784871899999999E-2,4.6803976599999998E-2]
[null,null,null,null,null,null,null,null,null,null,"T24_9|IS","T24_9","IS","waver",0,0,0,0,0,0,0,0,0,0,0,0,0,0,0,0,0,5.45110517E-2,0.13804909239999999,5.5591989699999997E-2,6.11999425E-2,6.0124565400000003E-2,6.1230554600000001E-2,6.3948369099999999E-2,6.8201352300000004E-2,3.6167326299999997E-2]
[null,null,null,null,null,null,null,null,null,null,"T24_9|IT","T24_9","IT","waver",0,0,0,0,0,0,0,0,0,0,0,0,0,0,0,0,0,3.3628682700000002E-2,3.3352054200000002E-2,3.2388669100000003E-2,3.2891295500000001E-2,3.1722206699999998E-2,3.3507463799999998E-2,3.4416299400000003E-2,3.6167326299999997E-2,2.8141690099999998E-2]
[null,null,null,null,null,null,null,null,null,null,"T24_9|NL","T24_9","NL","waver",0,0,0,0,0,0,0,0,0,0,0,0,0,0,0,0,0,1.38448492E-2,1.3717866299999999E-2,1.3176293400000001E-2,1.4294056899999999E-2,1.5747798300000001E-2,1.6377582599999999E-2,1.59388172E-2,1.7263207999999999E-2,1.3958506799999999E-2]
[null,null,null,null,null,null,null,null,null,null,"T24_9|RO","T24_9","RO","waver",0,0,0,0,0,0,0,0,0,0,0,0,0,0,0,0,0,2.2268409100000001E-2,2.29741293E-2,2.2223933599999999E-2,2.2310944700000002E-2,2.2753315900000001E-2,2.3491903799999998E-2,2.6743227299999998E-2,2.7486032300000001E-2,9.5243266000000007E-3]
[null,null,null,null,null,null,null,null,null,null,"T25_1|BE","T25_1","BE","waver",0,0,0,0,0,0,0,0,0,0,0,0,0,0,0,0,0,1.8711887199999999E-2,1.75276953E-2,1.9531659900000001E-2,1.95520125E-2,2.0956723100000001E-2,2.2065253199999999E-2,2.2287004700000002E-2,2.34686541E-2,8.9816848000000005E-3]
[null,null,null,null,null,null,null,null,null,null,"T25_1|BG","T25_1","BG","waver",0,0,0,0,0,0,0,0,0,0,0,0,0,0,0,0,0,6.7145696999999999E-3,3.2227467000000001E-3,8.1965200000000005E-3,1.1011663600000001E-2,1.07341126E-2,9.7746007999999999E-3,8.3426791E-3,8.9816848000000005E-3,0]
[null,null,null,null,null,null,null,null,null,null,"T25_1|EE","T25_1","EE","waver",0,0,0,0,0,0,0,0,0,0,0,0,0,0,0,0,0,0,0,0,0,0,0,0,0,3.2652933500000002E-2]
[null,null,null,null,null,null,null,null,null,null,"T25_1|GB","T25_1","GB","waver",0,0,0,0,0,0,0,0,0,0,0,0,0,0,0,0,0,3.1725256E-3,2.2913263999999999E-3,1.9418650999999999E-3,2.156575E-3,1.6543116999999999E-3,6.1297671999999996E-3,2.1779441999999999E-3,1.1514937E-3,1.502652E-4]
[null,null,null,null,null,null,null,null,null,null,"T25_1|HR","T25_1","HR","waver",0,0,0,0,0,0,0,0,0,0,0,0,0,0,0,0,0,2.1049812000000001E-2,2.7441941800000001E-2,5.5581266999999998E-3,4.9766749000000002E-3,8.2467784999999995E-3,5.0206280999999997E-3,4.8610785000000002E-3,4.7403677999999999E-3,1.8884653500000001E-2]
[null,null,null,null,null,null,null,null,null,null,"T25_1|IS","T25_1","IS","waver",0,0,0,0,0,0,0,0,0,0,0,0,0,0,0,0,0,1.78004784E-2,1.8731965199999999E-2,1.8357697199999998E-2,1.7055217500000001E-2,1.88031299E-2,1.6747608600000002E-2,1.8375497800000001E-2,2.0483813300000001E-2,1.3335425999999999E-2]
[null,null,null,null,null,null,null,null,null,null,"T25_1|MT","T25_1","MT","waver",0,0,0,0,0,0,0,0,0,0,0,0,0,0,0,0,0,0,0,5.1825631900000002E-2,5.39058579E-2,7.8580990000000003E-4,7.7338289999999996E-4,7.4999660000000005E-4,9.2646456599999996E-2,3.2718607900000002E-2]
[null,null,null,null,null,null,null,null,null,null,"T25_1|RO","T25_1","RO","waver",0,0,0,0,0,0,0,0,0,0,0,0,0,0,0,0,0,2.2582138000000001E-3,1.3956055E-3,4.8213379999999999E-4,6.1275109999999995E-4,5.4480999999999996E-4,9.6018939999999999E-4,9.6830560000000002E-4,7.8146758000000004E-3,5.0006339900000002E-2]
[null,null,null,null,null,null,null,null,null,null,"T25_2|AT","T25_2","AT","waver",0,0,0,0,0,0,0,0,0,0,0,0,0,0,0,0,0,0.27242048590000001,0.27100621470000003,0.26759895140000001,0.27416153440000002,0.27472427119999998,0.2783291423,0.27481737039999998,0.28046860559999998,0.14265809879999999]
[null,null,null,null,null,null,null,null,null,null,"T25_2|BE","T25_2","BE","waver",0,0,0,0,0,0,0,0,0,0,0,0,0,0,0,0,0,0.13191343629999999,0.13265215390000001,0.13418975520000001,0.1346735225,0.13401579189999999,0.1392530085,0.1430437507,0.14265809879999999,0.124034293]
[null,null,null,null,null,null,null,null,null,null,"T25_2|DK","T25_2","DK","waver",0,0,0,0,0,0,0,0,0,0,0,0,0,0,0,0,0,0.60532168289999999,0.600704566,0.60858431049999995,0.61270705469999998,0.603999493,0.61086207469999998,0.61661764090000004,0.62414459280000001,0.33988808349999999]
[null,null,null,null,null,null,null,null,null,null,"T25_2|FR","T25_2","FR","waver",0,0,0,0,0,0,0,0,0,0,0,0,0,0,0,0,0,0.21499032409999999,0.22105406080000001,0.22155295480000001,0.22130175739999999,0.21763395369999999,0.2130143253,0.22048948509999999,0.22336497499999999,0.2489847838]
[null,null,null,null,null,null,null,null,null,null,"T25_2|IE","T25_2","IE","waver",0,0,0,0,0,0,0,0,0,0,0,0,0,0,0,0,0,0.22428056399999999,0.22224366230000001,0.22596174399999999,0.22410238099999999,0.21453584649999999,0.22193868280000001,0.2271594559,0.2346156509,0.233129062]
[null,null,null,null,null,null,null,null,null,null,"T25_2|IT","T25_2","IT","waver",0,0,0,0,0,0,0,0,0,0,0,0,0,0,0,0,0,0.13924788630000001,0.13713972220000001,0.13616075220000001,0.1340979061,0.13140856810000001,0.1322848224,0.1310249973,0.12864961859999999,0.27558236050000001]
[null,null,null,null,null,null,null,null,null,null,"T25_2|LV","T25_2","LV","waver",0,0,0,0,0,0,0,0,0,0,0,0,0,0,0,0,0,0.2752955413,0.27893940360000002,0.28215485229999998,0.28593421699999999,0.28577201000000002,0.28531390610000001,0.28640785759999998,0.29585877849999997,0.13282688649999999]
[null,null,null,null,null,null,null,null,null,null,"T25_2|PT","T25_2","PT","waver",0,0,0,0,0,0,0,0,0,0,0,0,0,0,0,0,0,0.1163772134,0.1164635329,0.1182737624,0.1261389523,0.12718640149999999,0.1185071818,0.1241658194,0.1262731704,6.8209631500000006E-2]
[null,null,null,null,null,null,null,null,null,null,"T25_3|AT","T25_3","AT","waver",0,0,0,0,0,0,0,0,0,0,0,0,0,0,0,0,0,8.33370207E-2,8.4422028299999993E-2,8.7102887599999998E-2,8.5387389899999999E-2,8.8434460800000003E-2,8.5801320299999997E-2,8.8552794800000001E-2,8.4128307200000002E-2,7.3381754100000002E-2]
[null,null,null,null,null,null,null,null,null,null,"T25_3|BE","T25_3","BE","waver",0,0,0,0,0,0,0,0,0,0,0,0,0,0,0,0,0,6.6567011999999995E-2,6.7839879000000006E-2,6.84155454E-2,6.9655507800000002E-2,7.0518754700000005E-2,7.4094876700000006E-2,7.3073555299999995E-2,7.3381754100000002E-2,2.0220582899999999E-2]
[null,null,null,null,null,null,null,null,null,null,"T25_3|EE","T25_3","EE","waver",0,0,0,0,0,0,0,0,0,0,0,0,0,0,0,0,0,4.1350836000000002E-2,4.0941004199999999E-2,4.1688624799999997E-2,4.2471404599999998E-2,4.4031647700000003E-2,4.27117812E-2,3.9254312299999997E-2,3.9272593600000003E-2,4.4920472099999997E-2]
[null,null,null,null,null,null,null,null,null,null,"T25_3|FI","T25_3","FI","waver",0,0,0,0,0,0,0,0,0,0,0,0,0,0,0,0,0,5.3708813899999999E-2,5.6250473500000002E-2,5.6364030500000002E-2,5.7308458999999999E-2,5.6192058400000001E-2,5.96789655E-2,6.2696329699999997E-2,6.1613502600000002E-2,5.2412141299999999E-2]
[null,null,null,null,null,null,null,null,null,null,"T25_3|HU","T25_3","HU","waver",0,0,0,0,0,0,0,0,0,0,0,0,0,0,0,0,0,2.51670214E-2,2.60958843E-2,2.5144903999999999E-2,2.5768212700000001E-2,2.38557163E-2,2.59384922E-2,2.6808273699999999E-2,2.62065075E-2,2.5747944299999999E-2]
[null,null,null,null,null,null,null,null,null,null,"T25_3|IE","T25_3","IE","waver",0,0,0,0,0,0,0,0,0,0,0,0,0,0,0,0,0,2.2329742E-2,2.2171093900000001E-2,2.31617753E-2,2.4687071800000002E-2,2.9369245400000001E-2,2.5695843400000001E-2,2.3581477100000001E-2,2.5747944299999999E-2,9.4008706999999993E-3]
[null,null,null,null,null,null,null,null,null,null,"T25_3|LV","T25_3","LV","waver",0,0,0,0,0,0,0,0,0,0,0,0,0,0,0,0,0,7.1616563999999999E-3,7.1102548999999998E-3,7.0397055E-3,6.7912665000000004E-3,7.5766797999999996E-3,7.3355970999999997E-3,7.7142901E-3,7.8833510000000002E-3,8.90345362E-2]
[null,null,null,null,null,null,null,null,null,null,"T25_3|PL","T25_3","PL","waver",0,0,0,0,0,0,0,0,0,0,0,0,0,0,0,0,0,8.2904176499999996E-2,8.8723569099999997E-2,9.9167058500000002E-2,9.8518461200000004E-2,8.1582485100000005E-2,6.9956877000000001E-2,6.8859016999999995E-2,7.0640341400000001E-2,5.4967482300000002E-2]
[null,null,null,null,null,null,null,null,null,null,"T25_3|SK","T25_3","SK","waver",0,0,0,0,0,0,0,0,0,0,0,0,0,0,0,0,0,2.6652206800000001E-2,2.7053475399999999E-2,2.7244001699999999E-2,2.7399143599999998E-2,3.1890601300000002E-2,3.3212052399999997E-2,3.1224583399999999E-2,3.6001213300000001E-2,2.43061878E-2]
[null,null,null,null,null,null,null,null,null,null,"T25_4|AT","T25_4","AT","waver",0,0,0,0,0,0,0,0,0,0,0,0,0,0,0,0,0,2.2811663400000001E-2,2.2935447800000001E-2,2.2329767300000001E-2,2.24513226E-2,2.23288336E-2,2.1683982000000001E-2,2.1732138200000001E-2,2.43061878E-2,4.8595752200000002E-2]
[null,null,null,null,null,null,null,null,null,null,"T25_4|DE","T25_4","DE","waver",0,0,0,0,0,0,0,0,0,0,0,0,0,0,0,0,0,4.2845090699999998E-2,4.5496326500000003E-2,4.56684272E-2,4.6940220900000003E-2,4.6098205500000003E-2,4.5859855800000002E-2,4.3851889499999998E-2,4.7775445899999998E-2,1.9689358899999999E-2]
[null,null,null,null,null,null,null,null,null,null,"T25_4|ES","T25_4","ES","waver",0,0,0,0,0,0,0,0,0,0,0,0,0,0,0,0,0,3.2934788299999997E-2,3.4340371600000003E-2,3.3540328899999999E-2,2.8968274499999998E-2,2.9206466E-2,3.0373320400000001E-2,3.0942875799999998E-2,3.1216693699999999E-2,3.9086776400000002E-2]
[null,null,null,null,null,null,null,null,null,null,"T25_4|HR","T25_4","HR","waver",0,0,0,0,0,0,0,0,0,0,0,0,0,0,0,0,0,1.9828413400000001E-2,2.8744023099999998E-2,2.8776142500000001E-2,2.4338779200000001E-2,2.2270238099999999E-2,2.3105139800000001E-2,2.2566899500000001E-2,2.1004960900000001E-2,2.7779589699999999E-2]
[null,null,null,null,null,null,null,null,null,null,"T25_4|HU","T25_4","HU","waver",0,0,0,0,0,0,0,0,0,0,0,0,0,0,0,0,0,2.5753855400000001E-2,2.9032667099999999E-2,2.9914752199999999E-2,2.76123731E-2,2.6281237999999998E-2,2.8467177499999999E-2,3.0246655899999999E-2,2.7779589699999999E-2,5.1512539900000001E-2]
[null,null,null,null,null,null,null,null,null,null,"T25_4|LU","T25_4","LU","waver",0,0,0,0,0,0,0,0,0,0,0,0,0,0,0,0,0,0.2061146814,0.2126642024,0.2078655019,0.20093298300000001,0.21881225009999999,0.2177353736,0.21530309540000001,0.20663167900000001,1.7302239600000002E-2]
[null,null,null,null,null,null,null,null,null,null,"T25_4|NO","T25_4","NO","waver",0,0,0,0,0,0,0,0,0,0,0,0,0,0,0,0,0,6.0774476399999999E-2,5.8504035099999997E-2,5.57067937E-2,6.1844330199999999E-2,6.1912607000000001E-2,6.73509781E-2,6.1873601200000003E-2,6.5553304699999995E-2,1.99116971E-2]
[null,null,null,null,null,null,null,null,null,null,"T25_4|SI","T25_4","SI","waver",0,0,0,0,0,0,0,0,0,0,0,0,0,0,0,0,0,1.9749394E-2,2.2455587999999999E-2,2.2421221000000002E-2,2.2510255699999999E-2,1.6881813999999998E-2,1.83259585E-2,1.7465731000000002E-2,1.8112843199999999E-2,3.2340935299999998E-2]
[null,null,null,null,null,null,null,null,null,null,"T25_4|SK","T25_4","SK","waver",0,0,0,0,0,0,0,0,0,0,0,0,0,0,0,0,0,3.1886008299999997E-2,3.1899413100000003E-2,3.1344120199999999E-2,3.3069119399999999E-2,3.3519128699999998E-2,3.3012802700000003E-2,3.2236713700000003E-2,3.2340935299999998E-2,5.2694109999999999E-3]
[null,null,null,null,null,null,null,null,null,null,"T25_5|CZ","T25_5","CZ","waver",0,0,0,0,0,0,0,0,0,0,0,0,0,0,0,0,0,1.9202332E-3,5.894909E-4,5.7180550000000005E-4,5.0503859999999996E-4,4.468613E-4,3.6916169999999998E-4,5.8362430000000003E-4,5.2520780000000003E-4,3.2043922E-3]
[null,null,null,null,null,null,null,null,null,null,"T25_5|EU","T25_5","EU","waver",0,0,0,0,0,0,0,0,0,0,0,0,0,0,0,0,0,3.6211848999999998E-3,3.6205228E-3,3.4114861000000001E-3,3.6191233999999998E-3,3.6740841999999998E-3,4.0387673000000001E-3,2.5146522000000001E-3,2.3767883E-3,6.0131479999999998E-4]
[null,null,null,null,null,null,null,null,null,null,"T25_5|FR","T25_5","FR","waver",0,0,0,0,0,0,0,0,0,0,0,0,0,0,0,0,0,9.9187204000000008E-3,8.954198E-3,8.6396094999999992E-3,8.9455443999999999E-3,8.5242149999999999E-3,9.5339525999999994E-3,3.7703530000000002E-3,2.8442862999999998E-3,2.6520858E-3]
[null,null,null,null,null,null,null,null,null,null,"T25_5|HR","T25_5","HR","waver",0,0,0,0,0,0,0,0,0,0,0,0,0,0,0,0,0,5.2186689E-3,5.0584476E-3,5.2393313000000004E-3,5.0074222999999998E-3,4.7519082000000001E-3,4.7935101000000004E-3,4.7865039E-3,4.5062694000000004E-3,7.2522999999999997E-5]
[null,null,null,null,null,null,null,null,null,null,"T25_5|LT","T25_5","LT","waver",0,0,0,0,0,0,0,0,0,0,0,0,0,0,0,0,0,2.3238600000000001E-5,3.4368400000000001E-5,9.6146199999999998E-5,4.8395400000000001E-5,2.8733499999999999E-5,9.2605882999999994E-6,6.8717100000000007E-5,4.8876499999999999E-5,7.0259429999999996E-4]
[null,null,null,null,null,null,null,null,null,null,"T25_5|NO","T25_5","NO","waver",0,0,0,0,0,0,0,0,0,0,0,0,0,0,0,0,0,4.6440179999999998E-4,4.597329E-4,8.0732359999999997E-4,8.6262399999999999E-4,8.523227E-4,3.6860130000000002E-4,3.6658669999999998E-4,3.7013470000000001E-4,3.4675519999999998E-4]
[null,null,null,null,null,null,null,null,null,null,"T25_5|SE","T25_5","SE","waver",0,0,0,0,0,0,0,0,0,0,0,0,0,0,0,0,0,1.4324679999999999E-3,1.0855754E-3,1.0483631999999999E-3,1.2388111000000001E-3,1.1461524E-3,1.3066842000000001E-3,1.6031636999999999E-3,1.6048690999999999E-3,1.38936E-5]
[null,null,null,null,null,null,null,null,null,null,"T25_5|SI","T25_5","SI","waver",0,0,0,0,0,0,0,0,0,0,0,0,0,0,0,0,0,4.2389375000000003E-6,1.29518E-5,1.4945499999999999E-5,2.4511527999999998E-6,1.5972800000000001E-5,2.2463000000000002E-5,1.6107899999999999E-5,1.38936E-5,4.700781E-4]
[null,null,null,null,null,null,null,null,null,null,"T25_6|CY","T25_6","CY","waver",0,0,0,0,0,0,0,0,0,0,0,0,0,0,0,"n.a.","n.a.",1.03139862E-2,1.1449753199999999E-2,1.1872446700000001E-2,1.21750877E-2,1.2142086E-2,1.2862745199999999E-2,1.30622364E-2,7.4721344000000002E-3,1.5327384E-3]
[null,null,null,null,null,null,null,null,null,null,"T25_6|ES","T25_6","ES","waver",0,0,0,0,0,0,0,0,0,0,0,0,0,0,0,0,0,5.9726776000000002E-3,5.6441088000000004E-3,5.7957898999999998E-3,6.1514038999999996E-3,5.6090751999999999E-3,6.0993154999999999E-3,6.3002971000000003E-3,5.9435703000000001E-3,3.2473136000000001E-3]
[null,null,null,null,null,null,null,null,null,null,"T25_6|GR","T25_6","GR","waver",0,0,0,0,0,0,0,0,0,0,0,0,0,0,0,0,0,2.4088120000000002E-3,2.3847789E-3,2.3913671000000002E-3,2.4061226999999999E-3,2.3736723E-3,2.2856160999999999E-3,2.3495428999999999E-3,2.6559961999999999E-3,2.2554465000000001E-3]
[null,null,null,null,null,null,null,null,null,null,"T25_6|HU","T25_6","HU","waver",0,0,0,0,0,0,0,0,0,0,0,0,0,0,0,0,0,1.6056670000000001E-3,1.798205E-3,1.7430117000000001E-3,1.8037821999999999E-3,2.0989075999999999E-3,1.8628518000000001E-3,1.8338929E-3,1.7317489000000001E-3,1.26934727E-2]
[null,null,null,null,null,null,null,null,null,null,"T25_6|IT","T25_6","IT","waver",0,0,0,0,0,0,0,0,0,0,0,0,0,0,0,0,0,9.2436169999999998E-4,9.679345E-4,9.6579299999999995E-4,9.8552969999999998E-4,9.0331750000000001E-4,1.1796609E-3,1.2597469E-3,1.3236655999999999E-3,7.0746920000000003E-4]
[null,null,null,null,null,null,null,null,null,null,"T25_6|NL","T25_6","NL","waver",0,0,0,0,0,0,0,0,0,0,0,0,0,0,0,0,0,1.9084763E-3,1.8155598000000001E-3,1.8291627999999999E-3,2.0599397E-3,1.9009840999999999E-3,1.9286564999999999E-3,1.8683087E-3,2.1166481000000001E-3,4.1913519999999998E-3]
[null,null,null,null,null,null,null,null,null,null,"T25_6|SE","T25_6","SE","waver",0,0,0,0,0,0,0,0,0,0,0,0,0,0,0,0,0,2.0352365999999999E-3,1.9232247000000001E-3,1.9900994000000001E-3,2.0318162000000002E-3,1.9118496E-3,1.9022893E-3,1.9271677000000001E-3,2.3700293000000002E-3,2.6823912000000002E-3]
[null,null,null,null,null,null,null,null,null,null,"T25_7|AT","T25_7","AT","waver",0,0,0,0,0,0,0,0,0,0,0,0,0,0,0,0,0,1.1220680800000001E-2,1.1246304699999999E-2,1.03711467E-2,1.06374386E-2,1.04829681E-2,1.05370243E-2,1.05465608E-2,1.1025202E-2,6.1395144800000002E-2]
[null,null,null,null,null,null,null,null,null,null,"T25_7|BG","T25_7","BG","waver",0,0,0,0,0,0,0,0,0,0,0,0,0,0,0,0,0,4.3424631E-3,5.1732057999999996E-3,4.9274508999999998E-3,5.1421451000000003E-3,5.2905473000000001E-3,5.4836709999999999E-3,5.3496966999999999E-3,5.7983497000000002E-3,3.72579865E-2]
[null,null,null,null,null,null,null,null,null,null,"T25_7|EE","T25_7","EE","waver",0,0,0,0,0,0,0,0,0,0,0,0,0,0,0,0,0,6.9043595000000003E-3,7.2314488999999996E-3,7.2903196000000002E-3,7.3277623000000004E-3,7.6817415000000003E-3,7.8824207E-3,7.8149710000000004E-3,7.036779E-3,1.5466057700000001E-2]
[null,null,null,null,null,null,null,null,null,null,"T25_7|GB","T25_7","GB","waver",0,0,0,0,0,0,0,0,0,0,0,0,0,0,0,0,0,2.0702123699999998E-2,2.03229108E-2,2.0220459600000001E-2,2.0192646799999998E-2,2.12308745E-2,2.13321268E-2,2.30667136E-2,2.3176196900000001E-2,1.51726239E-2]
[null,null,null,null,null,null,null,null,null,null,"T25_7|GR","T25_7","GR","waver",0,0,0,0,0,0,0,0,0,0,0,0,0,0,0,0,0,1.39841528E-2,1.3476325000000001E-2,1.3553464100000001E-2,1.37911032E-2,1.3800650899999999E-2,1.35581881E-2,1.3927254999999999E-2,1.51726239E-2,6.9950244E-3]
[null,null,null,null,null,null,null,null,null,null,"T25_7|IT","T25_7","IT","waver",0,0,0,0,0,0,0,0,0,0,0,0,0,0,0,0,0,1.23704095E-2,1.25723429E-2,1.23057428E-2,1.24133647E-2,1.22713157E-2,1.25195385E-2,1.27328988E-2,1.32991646E-2,7.7880049999999998E-3]
[null,null,null,null,null,null,null,null,null,null,"T25_7|MT","T25_7","MT","waver",0,0,0,0,0,0,0,0,0,0,0,0,0,0,0,0,0,3.5864426999999997E-2,4.0366924800000002E-2,3.3864991499999997E-2,3.7361116E-2,4.2907290100000002E-2,3.6159712300000001E-2,2.3958992299999999E-2,4.9061160999999999E-2,3.3601074299999999E-2]
[null,null,null,null,null,null,null,null,null,null,"T25_7|RO","T25_7","RO","waver",0,0,0,0,0,0,0,0,0,0,0,0,0,0,0,0,0,2.0656491999999999E-2,2.1130416499999999E-2,2.14249865E-2,2.3994645299999999E-2,2.7598655400000002E-2,2.8036469099999999E-2,2.8784502900000002E-2,2.91097188E-2,6.4629754000000003E-3]
[null,null,null,null,null,null,null,null,null,null,"T25_7|SE","T25_7","SE","waver",0,0,0,0,0,0,0,0,0,0,0,0,0,0,0,0,0,6.8139219000000004E-3,6.9504301999999997E-3,6.4838216999999997E-3,5.9721521999999997E-3,6.1561024000000002E-3,5.2721568999999999E-3,5.4045828999999997E-3,6.4629754000000003E-3,1.36368802E-2]
[null,null,null,null,null,null,null,null,null,null,"T25_8|BE","T25_8","BE","waver",0,0,0,0,0,0,0,0,0,0,0,0,0,0,0,0,0,7.2337091000000001E-3,7.2350673000000001E-3,7.5053793000000001E-3,7.5693536999999998E-3,7.0870710000000003E-3,7.3330638999999998E-3,7.3156369000000002E-3,7.5236017000000002E-3,2.1184169E-3]
[null,null,null,null,null,null,null,null,null,null,"T25_8|DK","T25_8","DK","waver",0,0,0,0,0,0,0,0,0,0,0,0,0,0,0,0,0,2.5951755000000001E-3,2.5243312E-3,2.3635004999999999E-3,9.0917176000000002E-3,8.6785030000000006E-3,8.4368311000000001E-3,8.3071884999999998E-3,3.1084331999999999E-3,7.2426017999999998E-3]
[null,null,null,null,null,null,null,null,null,null,"T25_8|FR","T25_8","FR","waver",0,0,0,0,0,0,0,0,0,0,0,0,0,0,0,0,0,5.7063877999999997E-3,5.7462653999999997E-3,5.1655994E-3,5.0961225000000004E-3,5.7098779999999998E-3,5.7971460000000004E-3,6.0322040999999998E-3,6.2526641999999999E-3,8.7480746000000009E-3]
[null,null,null,null,null,null,null,null,null,null,"T25_8|GB","T25_8","GB","waver",0,0,0,0,0,0,0,0,0,0,0,0,0,0,0,0,0,7.1887558000000001E-3,7.3153211999999997E-3,6.6799822999999998E-3,6.9752981E-3,7.8077060000000002E-3,7.7627297999999997E-3,7.8854045000000001E-3,8.7480746000000009E-3,1.27942473E-2]
[null,null,null,null,null,null,null,null,null,null,"T25_8|IS","T25_8","IS","waver",0,0,0,0,0,0,0,0,0,0,0,0,0,0,0,0,0,5.5247355E-3,3.6503733099999998E-2,6.1285565999999996E-3,7.1456545999999998E-3,6.7303017999999996E-3,6.9605715000000002E-3,7.4847272999999997E-3,8.0728625999999994E-3,5.6791958999999996E-3]
[null,null,null,null,null,null,null,null,null,null,"T25_8|MT","T25_8","MT","waver",0,0,0,0,0,0,0,0,0,0,0,0,0,0,0,0,0,1.6788365199999999E-2,1.6987940199999999E-2,1.6302763800000002E-2,1.59551577E-2,1.51186944E-2,1.54685029E-2,8.7160086999999997E-3,1.10322272E-2,5.6061554E-3]
[null,null,null,null,null,null,null,null,null,null,"T25_8|PT","T25_8","PT","waver",0,0,0,0,0,0,0,0,0,0,0,0,0,0,0,0,0,1.0187246699999999E-2,1.0259685500000001E-2,1.0243043E-2,1.02594166E-2,1.1471943199999999E-2,1.20186576E-2,1.2647819899999999E-2,1.3672312799999999E-2,6.1327975000000003E-3]
[null,null,null,null,null,null,null,null,null,null,"T25_8|RO","T25_8","RO","waver",0,0,0,0,0,0,0,0,0,0,0,0,0,0,0,0,0,5.3506331999999997E-3,5.3627010000000001E-3,5.5920550999999999E-3,5.9098878000000002E-3,6.0267319000000003E-3,6.0267738000000003E-3,6.1855419E-3,6.1327975000000003E-3,3.7301925E-3]
[null,null,null,null,null,null,null,null,null,null,"T25_9|BE","T25_9","BE","waver",0,0,0,0,0,0,0,0,0,0,0,0,0,0,0,0,0,2.8770158899999999E-2,2.8792270500000001E-2,2.8426020199999999E-2,2.8364837600000001E-2,2.6471151200000001E-2,2.56691413E-2,1.8166350099999999E-2,1.9864848899999999E-2,7.1332777999999998E-3]
[null,null,null,null,null,null,null,null,null,null,"T25_9|CZ","T25_9","CZ","waver",0,0,0,0,0,0,0,0,0,0,0,0,0,0,0,0,0,3.9090012100000002E-2,4.2386828799999998E-2,4.6039934499999997E-2,4.2931371599999997E-2,4.1653865200000001E-2,3.7773282499999998E-2,3.5690459700000003E-2,3.8155474699999997E-2,2.19604568E-2]
[null,null,null,null,null,null,null,null,null,null,"T25_9|FI","T25_9","FI","waver",0,0,0,0,0,0,0,0,0,0,0,0,0,0,0,0,0,1.23518328E-2,1.04456859E-2,1.16390774E-2,2.2469817400000001E-2,8.1984354000000006E-3,1.03399528E-2,5.9560708999999998E-3,1.01794546E-2,4.9375498300000001E-2]
[null,null,null,null,null,null,null,null,null,null,"T25_9|FR","T25_9","FR","waver",0,0,0,0,0,0,0,0,0,0,0,0,0,0,0,0,0,7.0252870100000003E-2,6.2444068599999999E-2,6.7073170099999996E-2,6.6331294299999996E-2,6.6501602899999998E-2,6.7874536900000004E-2,6.07157324E-2,4.9375498300000001E-2,1.8787461200000001E-2]
[null,null,null,null,null,null,null,null,null,null,"T25_9|IE","T25_9","IE","waver",0,0,0,0,0,0,0,0,0,0,0,0,0,0,0,0,0,3.0829273099999999E-2,3.0970102999999999E-2,2.8509636099999999E-2,2.9524332899999998E-2,2.7012442099999999E-2,2.73561064E-2,2.71872747E-2,2.5658770599999998E-2,4.2353881999999997E-3]
[null,null,null,null,null,null,null,null,null,null,"T25_9|LV","T25_9","LV","waver",0,0,0,0,0,0,0,0,0,0,0,0,0,0,0,0,0,3.63740564E-2,3.7554734700000002E-2,3.1688495599999998E-2,3.4996022699999997E-2,2.2502757200000001E-2,2.13680261E-2,1.76690298E-2,1.8103012200000001E-2,6.2426384000000001E-3]
[null,null,null,null,null,null,null,null,null,null,"T25_9|PL","T25_9","PL","waver",0,0,0,0,0,0,0,0,0,0,0,0,0,0,0,0,0,2.75990305E-2,2.3523851700000001E-2,2.28950617E-2,2.2047768999999998E-2,2.25521999E-2,1.8438778900000001E-2,1.82449347E-2,1.89412677E-2,5.1902428700000003E-2]
[null,null,null,null,null,null,null,null,null,null,"T25_9|PT","T25_9","PT","waver",0,0,0,0,0,0,0,0,0,0,0,0,0,0,0,0,0,5.9048128599999999E-2,6.2163483499999998E-2,6.3717091399999995E-2,6.9285536800000005E-2,6.7658050799999994E-2,7.18023624E-2,5.5591284599999999E-2,5.1902428700000003E-2,7.5019568E-3]
[null,null,null,null,null,null,null,null,null,null,"T2610|AT","T2610","AT","waver",0,0,0,0,0,0,0,0,0,0,0,0,0,0,0,0,0,3.4038328100000001E-2,3.0730403999999999E-2,3.1798726800000003E-2,2.3751054300000001E-2,2.31697685E-2,2.51177777E-2,3.0179375800000002E-2,4.0217412899999999E-2,2.31661282E-2]
[null,null,null,null,null,null,null,null,null,null,"T2610|DE","T2610","DE","waver",0,0,0,0,0,0,0,0,0,0,0,0,0,0,0,0,0,9.5724516000000003E-3,9.1739733000000007E-3,9.3861958999999998E-3,7.6297505E-3,1.07208327E-2,2.9371461099999999E-2,2.6238670299999999E-2,2.5841624699999999E-2,2.4757029E-2]
[null,null,null,null,null,null,null,null,null,null,"T2610|ES","T2610","ES","waver",0,0,0,0,0,0,0,0,0,0,0,0,0,0,0,0,0,2.8846633999999999E-2,2.7876625700000001E-2,2.6201151900000001E-2,2.1453618099999999E-2,2.0867632000000001E-2,2.0906045500000001E-2,2.0997071799999999E-2,1.9425600500000001E-2,2.8194497700000001E-2]
[null,null,null,null,null,null,null,null,null,null,"T2610|FI","T2610","FI","waver",0,0,0,0,0,0,0,0,0,0,0,0,0,0,0,0,0,2.6399637600000001E-2,2.40420441E-2,2.56374085E-2,2.1267512299999999E-2,2.1591609500000001E-2,1.40933443E-2,9.9427132999999994E-3,8.4031378999999996E-3,3.2189606400000001E-2]
[null,null,null,null,null,null,null,null,null,null,"T2610|HU","T2610","HU","waver",0,0,0,0,0,0,0,0,0,0,0,0,0,0,0,0,0,5.0858846999999999E-2,4.1589401499999998E-2,2.9108381199999998E-2,2.9173533799999998E-2,2.6962267299999999E-2,2.06037572E-2,2.2620989500000001E-2,2.05925437E-2,1.3195028100000001E-2]
[null,null,null,null,null,null,null,null,null,null,"T2610|LU","T2610","LU","waver",0,0,0,0,0,0,0,0,0,0,0,0,0,0,0,0,0,3.08692315E-2,2.80750544E-2,4.0143816499999999E-2,3.8068364299999997E-2,3.3267148599999997E-2,3.2239384099999997E-2,3.4793071600000003E-2,3.3797655099999997E-2,4.5961737999999997E-3]
[null,null,null,null,null,null,null,null,null,null,"T2610|PL","T2610","PL","waver",0,0,0,0,0,0,0,0,0,0,0,0,0,0,0,0,0,2.7423523700000001E-2,2.73463501E-2,2.5359122200000001E-2,2.4186177600000001E-2,2.31940263E-2,2.42297538E-2,2.3330650000000001E-2,2.56411494E-2,7.3377139800000005E-2]
[null,null,null,null,null,null,null,null,null,null,"T2610|PT","T2610","PT","waver",0,0,0,0,0,0,0,0,0,0,0,0,0,0,0,0,0,0.1090204358,0.10289164720000001,0.10620664119999999,5.7525410700000001E-2,7.02505088E-2,5.5142513900000002E-2,5.7693270300000002E-2,7.3377139800000005E-2,4.6720457200000003E-2]
[null,null,null,null,null,null,null,null,null,null,"T2610|SK","T2610","SK","waver",0,0,0,0,0,0,0,0,0,0,0,0,0,0,0,0,0,3.0594931E-3,2.4471905999999999E-3,2.3951961000000001E-3,4.0946804E-3,4.2732700999999996E-3,5.1599530999999997E-3,6.0649479000000001E-3,4.7746923999999998E-3,3.94215043E-2]
[null,null,null,null,null,null,null,null,null,null,"T26_1|CZ","T26_1","CZ","waver",0,0,0,0,0,0,0,0,0,0,0,0,0,0,0,0,0,1.3255851900000001E-2,1.32938973E-2,1.26838955E-2,1.13514798E-2,9.4638575000000006E-3,1.30171208E-2,1.3563763899999999E-2,1.3395248699999999E-2,3.8543369299999998E-2]
[null,null,null,null,null,null,null,null,null,null,"T26_1|EU","T26_1","EU","waver",0,0,0,0,0,0,0,0,0,0,0,0,0,0,0,0,0,7.5584031900000001E-2,7.42666139E-2,7.1434351600000001E-2,6.5394745000000004E-2,6.78023918E-2,6.4720094300000003E-2,6.1673560600000003E-2,5.8680710400000002E-2,8.2890138399999994E-2]
[null,null,null,null,null,null,null,null,null,null,"T26_1|FR","T26_1","FR","waver",0,0,0,0,0,0,0,0,0,0,0,0,0,0,0,0,0,4.8940601399999999E-2,4.8353764200000003E-2,4.7667676300000003E-2,4.5328195100000003E-2,4.5983007300000003E-2,4.5689636899999997E-2,4.6881139299999999E-2,4.5644180200000002E-2,4.6058175799999997E-2]
[null,null,null,null,null,null,null,null,null,null,"T26_1|HR","T26_1","HR","waver",0,0,0,0,0,0,0,0,0,0,0,0,0,0,0,0,0,0.22262633470000001,0.17610727900000001,0.15418561040000001,0.1558152052,0.1556897059,0.14621373500000001,0.1382090651,0.156552571,2.2616488000000001E-2]
[null,null,null,null,null,null,null,null,null,null,"T26_1|LT","T26_1","LT","waver",0,0,0,0,0,0,0,0,0,0,0,0,0,0,0,0,0,1.7181887699999999E-2,3.2253965500000002E-2,2.9356901000000001E-2,1.7173240999999999E-2,2.52352479E-2,3.0475209E-2,3.0725721599999999E-2,4.7758941100000001E-2,4.2371276999999999E-2]
[null,null,null,null,null,null,null,null,null,null,"T26_1|NO","T26_1","NO","waver",0,0,0,0,0,0,0,0,0,0,0,0,0,0,0,0,0,2.9895794000000002E-3,1.4893768E-3,3.1268730000000001E-3,4.0588878E-3,3.0989355999999999E-3,3.8638497000000002E-3,2.8819682E-3,2.4838401000000002E-3,6.7908027999999995E-2]
[null,null,null,null,null,null,null,null,null,null,"T26_1|PL","T26_1","PL","waver",0,0,0,0,0,0,0,0,0,0,0,0,0,0,0,0,0,5.8042007499999999E-2,5.9360627999999999E-2,5.6824273199999997E-2,5.65297248E-2,6.2019191500000001E-2,7.1788485099999993E-2,7.2293234999999997E-2,6.7908027999999995E-2,6.8060547900000004E-2]
[null,null,null,null,null,null,null,null,null,null,"T26_1|SI","T26_1","SI","waver",0,0,0,0,0,0,0,0,0,0,0,0,0,0,0,0,0,0.25011007229999999,0.1796758688,0.14100783450000001,9.2540834399999994E-2,8.6836446600000006E-2,8.09151912E-2,7.77077657E-2,6.3137177700000005E-2,4.7595765399999997E-2]
[null,null,null,null,null,null,null,null,null,null,"T26_2|CY","T26_2","CY","waver",0,0,0,0,0,0,0,0,0,0,0,0,0,0,0,"n.a.","n.a.",0.66348315719999995,0.66394253599999997,0.67013369960000002,0.69154962200000003,0.70231434380000002,6.5961333100000005E-2,0.1681454715,0.1043463853,5.1045324000000003E-3]
[null,null,null,null,null,null,null,null,null,null,"T26_2|ES","T26_2","ES","waver",0,0,0,0,0,0,0,0,0,0,0,0,0,0,0,0,0,3.7592198E-2,3.4508234300000003E-2,3.20115079E-2,2.37753442E-2,2.3397566099999999E-2,3.30713007E-2,3.6542743000000003E-2,1.67637949E-2,8.3749864300000004E-2]
[null,null,null,null,null,null,null,null,null,null,"T26_2|EU","T26_2","EU","waver",0,0,0,0,0,0,0,0,0,0,0,0,0,0,0,0,0,6.8211692199999993E-2,6.5074399399999996E-2,6.5256453500000006E-2,6.22846398E-2,7.06743237E-2,8.5696640199999993E-2,9.2974686700000003E-2,8.3749864300000004E-2,0.28216810129999997]
[null,null,null,null,null,null,null,null,null,null,"T26_2|HU","T26_2","HU","waver",0,0,0,0,0,0,0,0,0,0,0,0,0,0,0,0,0,3.1306401000000001E-3,3.2841777999999999E-3,2.5724385400000001E-2,3.8862656699999998E-2,2.0325115500000001E-2,2.3384204200000001E-2,1.91493997E-2,2.32255894E-2,1.6245925000000001E-2]
[null,null,null,null,null,null,null,null,null,null,"T26_2|IT","T26_2","IT","waver",0,0,0,0,0,0,0,0,0,0,0,0,0,0,0,0,0,9.3367809800000007E-2,8.0774252899999996E-2,7.5672640700000002E-2,6.1219022900000003E-2,7.1354895400000007E-2,6.4635215300000007E-2,6.2901766200000001E-2,4.5191311499999998E-2,9.9481623899999996E-2]
[null,null,null,null,null,null,null,null,null,null,"T26_2|NL","T26_2","NL","waver",0,0,0,0,0,0,0,0,0,0,0,0,0,0,0,0,0,6.0445532599999997E-2,6.1378967100000001E-2,6.6790242999999999E-2,7.5037573600000004E-2,8.2867479899999999E-2,0.1157472811,0.124619199,0.12675185250000001,0.25232153260000001]
[null,null,null,null,null,null,null,null,null,null,"T26_2|NO","T26_2","NO","waver",0,0,0,0,0,0,0,0,0,0,0,0,0,0,0,0,0,0.2134388022,0.1777209928,0.1538602516,0.115981678,0.18000103589999999,0.2744653594,0.26764301750000002,0.25232153260000001,1.78340606E-2]
[null,null,null,null,null,null,null,null,null,null,"T26_2|SI","T26_2","SI","waver",0,0,0,0,0,0,0,0,0,0,0,0,0,0,0,0,0,0.1271382204,0.124321686,9.9895166600000002E-2,4.8718509200000003E-2,4.0052905100000001E-2,1.8375717000000001E-3,1.7201479000000001E-3,1.01957599E-2,1.7767010999999999E-3]
[null,null,null,null,null,null,null,null,null,null,"T26_3|BE","T26_3","BE","waver",0,0,0,0,0,0,0,0,0,0,0,0,0,0,0,0,0,3.3170005599999997E-2,3.0465277700000001E-2,3.3960761899999997E-2,4.2519090599999997E-2,3.7079073800000001E-2,3.9842099300000003E-2,4.6272629000000003E-2,4.8814817099999998E-2,6.5404575300000004E-2]
[null,null,null,null,null,null,null,null,null,null,"T26_3|EE","T26_3","EE","waver",0,0,0,0,0,0,0,0,0,0,0,0,0,0,0,0,0,3.5203721200000003E-2,3.0677451800000002E-2,3.6458563499999999E-2,3.11472494E-2,3.4112077099999999E-2,3.6950626899999998E-2,2.85553705E-2,2.1174232500000001E-2,4.53428102E-2]
[null,null,null,null,null,null,null,null,null,null,"T26_3|ES","T26_3","ES","waver",0,0,0,0,0,0,0,0,0,0,0,0,0,0,0,0,0,5.3654739799999997E-2,5.0959808500000002E-2,4.8292220800000001E-2,4.8164133999999997E-2,4.4600390099999998E-2,4.3596788499999997E-2,4.6131645499999999E-2,4.53428102E-2,5.4528700300000003E-2]
[null,null,null,null,null,null,null,null,null,null,"T26_3|GR","T26_3","GR","waver",0,0,0,0,0,0,0,0,0,0,0,0,0,0,0,0,0,0.45508307120000002,0.43762608489999999,0.41817333249999999,0.39176114090000003,0.37888677869999998,0.3392815052,0.32886415800000002,0.31566289269999998,0.15634818959999999]
[null,null,null,null,null,null,null,null,null,null,"T26_3|IT","T26_3","IT","waver",0,0,0,0,0,0,0,0,0,0,0,0,0,0,0,0,0,0.1071088639,0.1028931459,9.7254225499999999E-2,9.0755567400000001E-2,8.3830072199999994E-2,7.7519511599999993E-2,7.0405853099999999E-2,6.0617905299999997E-2,5.2782611100000001E-2]
[null,null,null,null,null,null,null,null,null,null,"T26_3|MT","T26_3","MT","waver",0,0,0,0,0,0,0,0,0,0,0,0,0,0,0,0,0,4.80001517E-2,4.8914271699999998E-2,5.4800577900000001E-2,6.6064260400000005E-2,7.8477181100000001E-2,6.9041328200000002E-2,0.1346825861,0.1383823941,5.1178432500000003E-2]
[null,null,null,null,null,null,null,null,null,null,"T26_3|NL","T26_3","NL","waver",0,0,0,0,0,0,0,0,0,0,0,0,0,0,0,0,0,3.3198668600000002E-2,3.4690118499999999E-2,3.8983504299999999E-2,4.4147641600000002E-2,4.3729118300000001E-2,4.7920161699999998E-2,5.1927292E-2,5.1178432500000003E-2,1.7195346699999999E-2]
[null,null,null,null,null,null,null,null,null,null,"T26_3|SE","T26_3","SE","waver",0,0,0,0,0,0,0,0,0,0,0,0,0,0,0,0,0,1.93644288E-2,2.7604254599999999E-2,3.2067644499999999E-2,3.1616526999999998E-2,3.1882880600000003E-2,3.1766431300000002E-2,2.4892064299999999E-2,2.31015896E-2,3.47386217E-2]
[null,null,null,null,null,null,null,null,null,null,"T26_4|BG","T26_4","BG","waver",0,0,0,0,0,0,0,0,0,0,0,0,0,0,0,0,0,3.9528208600000003E-2,2.95229173E-2,9.3187685800000003E-2,9.8930987499999998E-2,0.1041163326,0.1068137944,9.5333416500000004E-2,9.0491141999999997E-2,1.30849876E-2]
[null,null,null,null,null,null,null,null,null,null,"T26_4|DE","T26_4","DE","waver",0,0,0,0,0,0,0,0,0,0,0,0,0,0,0,0,0,1.8745134600000001E-2,1.7189582700000001E-2,1.4902598899999999E-2,1.4294714700000001E-2,1.43379357E-2,1.40923058E-2,1.3874615200000001E-2,1.1198235000000001E-2,1.5752136E-3]
[null,null,null,null,null,null,null,null,null,null,"T26_4|EE","T26_4","EE","waver",0,0,0,0,0,0,0,0,0,0,0,0,0,0,0,0,0,9.9205992999999992E-3,1.93144736E-2,2.98608294E-2,1.8213614400000001E-2,2.23090458E-2,2.2432456900000002E-2,2.25510326E-2,1.6635253400000001E-2,2.2298822400000001E-2]
[null,null,null,null,null,null,null,null,null,null,"T26_4|GB","T26_4","GB","waver",0,0,0,0,0,0,0,0,0,0,0,0,0,0,0,0,0,2.27077792E-2,2.51349355E-2,2.0955413400000001E-2,1.98426212E-2,1.20901341E-2,1.6353117399999999E-2,2.2908806600000001E-2,1.6327641E-2,2.68079302E-2]
[null,null,null,null,null,null,null,null,null,null,"T26_4|IS","T26_4","IS","waver",0,0,0,0,0,0,0,0,0,0,0,0,0,0,0,0,0,1.9775049999999999E-4,3.7605059999999999E-4,1.6280099999999999E-4,1.447466E-4,2.5588729999999999E-4,2.397667E-4,2.3548920000000001E-4,0,2.2438473E-2]
[null,null,null,null,null,null,null,null,null,null,"T26_4|LV","T26_4","LV","waver",0,0,0,0,0,0,0,0,0,0,0,0,0,0,0,0,0,1.3132395599999999E-2,8.9238239000000007E-3,1.20364866E-2,9.7199595E-3,9.1599504999999998E-3,1.06600433E-2,9.1593572000000009E-3,1.14156087E-2,3.6530096999999998E-3]
[null,null,null,null,null,null,null,null,null,null,"T26_4|MT","T26_4","MT","waver",0,0,0,0,0,0,0,0,0,0,0,0,0,0,0,0,0,1.2039535E-3,1.3855635E-3,4.2878399999999999E-5,4.2408599999999999E-5,6.8122903E-3,7.2418198000000003E-3,6.8295533E-3,3.6530096999999998E-3,1.64128737E-2]
[null,null,null,null,null,null,null,null,null,null,"T26_4|RO","T26_4","RO","waver",0,0,0,0,0,0,0,0,0,0,0,0,0,0,0,0,0,0.1247128747,8.2294091400000005E-2,6.5277542999999993E-2,7.4633825900000006E-2,7.3321534300000005E-2,6.8389189399999994E-2,7.0743562600000004E-2,6.9079763500000002E-2,2.0600725000000002E-3]
[null,null,null,null,null,null,null,null,null,null,"T26_5|BE","T26_5","BE","waver",0,0,0,0,0,0,0,0,0,0,0,0,0,0,0,0,0,2.3447457000000001E-2,2.2617812399999999E-2,2.3430640400000001E-2,2.3398485900000002E-2,2.4021787499999999E-2,2.19209182E-2,2.22451766E-2,2.2781659900000001E-2,0.1934119114]
[null,null,null,null,null,null,null,null,null,null,"T26_5|DK","T26_5","DK","waver",0,0,0,0,0,0,0,0,0,0,0,0,0,0,0,0,0,5.3663301300000001E-2,4.7840350300000001E-2,4.94525429E-2,2.1140648299999999E-2,4.5094332899999999E-2,4.3665404800000002E-2,3.9164659599999999E-2,4.0484004400000002E-2,1.257303E-4]
[null,null,null,null,null,null,null,null,null,null,"T26_5|ES","T26_5","ES","waver",0,0,0,0,0,0,0,0,0,0,0,0,0,0,0,0,0,2.9881331899999999E-2,2.66452228E-2,2.5724226199999999E-2,2.2087370299999999E-2,2.07678169E-2,2.12099678E-2,2.0346030599999999E-2,1.7826136100000001E-2,2.6139397700000001E-2]
[null,null,null,null,null,null,null,null,null,null,"T26_5|FR","T26_5","FR","waver",0,0,0,0,0,0,0,0,0,0,0,0,0,0,0,0,0,4.6282670599999999E-2,4.0772548200000001E-2,4.6303843900000002E-2,3.8754214699999998E-2,3.8716460699999997E-2,3.4616258300000001E-2,3.5435160600000001E-2,3.4754592399999999E-2,9.5513990999999999E-3]
[null,null,null,null,null,null,null,null,null,null,"T26_5|IE","T26_5","IE","waver",0,0,0,0,0,0,0,0,0,0,0,0,0,0,0,0,0,1.00357229E-2,9.2418898999999995E-3,8.8530900000000003E-5,1.06950877E-2,8.4961592000000006E-3,1.18401E-5,1.24001E-5,3.8509302999999999E-3,0.11831198950000001]
[null,null,null,null,null,null,null,null,null,null,"T26_5|LV","T26_5","LV","waver",0,0,0,0,0,0,0,0,0,0,0,0,0,0,0,0,0,2.1452874999999998E-3,1.4784227000000001E-3,1.4968713E-3,3.1142950000000001E-4,3.7753899999999998E-5,2.0645700000000001E-5,1.6837779999999999E-4,3.925186E-4,5.6538479999999999E-4]
[null,null,null,null,null,null,null,null,null,null,"T26_5|MT","T26_5","MT","waver",0,0,0,0,0,0,0,0,0,0,0,0,0,0,0,0,0,7.8080657000000001E-3,7.9630881999999993E-3,5.5330704999999999E-3,3.3460960999999998E-3,3.3176364999999998E-3,6.0890100000000002E-4,6.7833599999999998E-4,5.6538479999999999E-4,4.2689081500000003E-2]
[null,null,null,null,null,null,null,null,null,null,"T26_5|PT","T26_5","PT","waver",0,0,0,0,0,0,0,0,0,0,0,0,0,0,0,0,0,0.14551140109999999,0.1407060466,0.1242440643,5.1933711700000003E-2,5.1547974099999998E-2,5.46324459E-2,5.7164749100000002E-2,5.6781094900000002E-2,3.3623110999999997E-2]
[null,null,null,null,null,null,null,null,null,null,"T26_6|AT","T26_6","AT","waver",0,0,0,0,0,0,0,0,0,0,0,0,0,0,0,0,0,5.2886825300000002E-2,4.9621938900000002E-2,4.69749504E-2,4.4114413900000003E-2,3.8436242599999997E-2,3.8170229E-2,3.7377616799999999E-2,3.6709169E-2,5.0899592E-2]
[null,null,null,null,null,null,null,null,null,null,"T26_6|DE","T26_6","DE","waver",0,0,0,0,0,0,0,0,0,0,0,0,0,0,0,0,0,5.4858393800000002E-2,5.5176903999999999E-2,5.2059523199999999E-2,7.2911664099999995E-2,7.3389223599999998E-2,6.8306120799999995E-2,6.69994322E-2,6.9941415699999995E-2,5.2407801300000001E-2]
[null,null,null,null,null,null,null,null,null,null,"T26_6|DK","T26_6","DK","waver",0,0,0,0,0,0,0,0,0,0,0,0,0,0,0,0,0,4.2520544100000002E-2,4.2531170200000003E-2,5.9437151600000002E-2,4.4865274599999998E-2,4.8546885300000002E-2,4.7474111800000003E-2,5.1243926099999997E-2,5.2407801300000001E-2,5.8566525299999998E-2]
[null,null,null,null,null,null,null,null,null,null,"T26_6|GB","T26_6","GB","waver",0,0,0,0,0,0,0,0,0,0,0,0,0,0,0,0,0,6.4860092300000005E-2,6.1111478400000002E-2,5.8471639200000002E-2,5.9286781599999998E-2,4.9764818699999998E-2,4.6128072700000002E-2,5.4631069300000001E-2,5.2567019600000001E-2,0.48875362789999999]
[null,null,null,null,null,null,null,null,null,null,"T26_6|HU","T26_6","HU","waver",0,0,0,0,0,0,0,0,0,0,0,0,0,0,0,0,0,9.4453563099999999E-2,9.0138954800000004E-2,7.8520147200000001E-2,7.2236174900000005E-2,7.1440353200000001E-2,5.3785899400000003E-2,5.6662424500000003E-2,5.3754830099999998E-2,4.1216522800000002E-2]
[null,null,null,null,null,null,null,null,null,null,"T26_6|LU","T26_6","LU","waver",0,0,0,0,0,0,0,0,0,0,0,0,0,0,0,0,0,4.5239151599999999E-2,4.5423155600000001E-2,4.67095316E-2,4.0260575600000001E-2,4.2302079700000002E-2,4.3585892199999997E-2,4.7195092000000001E-2,4.4288313900000001E-2,3.4915806700000003E-2]
[null,null,null,null,null,null,null,null,null,null,"T26_6|LV","T26_6","LV","waver",0,0,0,0,0,0,0,0,0,0,0,0,0,0,0,0,0,8.0371619500000005E-2,5.6679151099999998E-2,4.6919341699999999E-2,4.5158211900000002E-2,4.0458399999999999E-2,4.4034183599999999E-2,4.5868951200000001E-2,3.4915806700000003E-2,0.27780234059999998]
[null,null,null,null,null,null,null,null,null,null,"T26_6|PL","T26_6","PL","waver",0,0,0,0,0,0,0,0,0,0,0,0,0,0,0,0,0,0.1988692198,0.18691846079999999,0.18478980519999999,0.18861488879999999,0.17890166320000001,0.17644954909999999,0.16915344090000001,0.1655764626,0.16200554]
[null,null,null,null,null,null,null,null,null,null,"T26_6|SK","T26_6","SK","waver",0,0,0,0,0,0,0,0,0,0,0,0,0,0,0,0,0,4.4308863400000002E-2,3.7781929300000003E-2,3.6648079200000003E-2,3.6282925100000002E-2,3.5381734800000002E-2,3.32309171E-2,2.8118015499999999E-2,3.10364154E-2,4.1241186999999999E-2]
[null,null,null,null,null,null,null,null,null,null,"T26_7|CZ","T26_7","CZ","waver",0,0,0,0,0,0,0,0,0,0,0,0,0,0,0,0,0,4.1404551599999999E-2,3.6901029799999999E-2,3.6299131599999999E-2,3.3476500999999999E-2,3.2266008300000003E-2,3.3446167200000002E-2,3.4525903199999999E-2,4.0630573400000002E-2,4.0455809299999999E-2]
[null,null,null,null,null,null,null,null,null,null,"T26_7|DE","T26_7","DE","waver",0,0,0,0,0,0,0,0,0,0,0,0,0,0,0,0,0,3.2531715199999998E-2,3.3088103100000002E-2,3.6405362900000002E-2,3.2158384900000003E-2,3.0586139700000001E-2,4.1627672499999997E-2,4.0044649299999999E-2,4.0455809299999999E-2,5.2685102599999999E-2]
[null,null,null,null,null,null,null,null,null,null,"T26_7|FI","T26_7","FI","waver",0,0,0,0,0,0,0,0,0,0,0,0,0,0,0,0,0,2.2774085600000001E-2,2.3529429899999999E-2,1.9815314399999999E-2,1.9723292900000002E-2,2.2783702499999999E-2,2.48296366E-2,2.48725097E-2,2.4806378399999999E-2,4.8275276700000001E-2]
[null,null,null,null,null,null,null,null,null,null,"T26_7|HU","T26_7","HU","waver",0,0,0,0,0,0,0,0,0,0,0,0,0,0,0,0,0,5.8941441900000002E-2,5.1298270399999998E-2,4.39150705E-2,3.7419348599999999E-2,3.7143339800000001E-2,3.6687143300000002E-2,3.6880484800000002E-2,3.30145622E-2,5.0541930700000001E-2]
[null,null,null,null,null,null,null,null,null,null,"T26_7|LT","T26_7","LT","waver",0,0,0,0,0,0,0,0,0,0,0,0,0,0,0,0,0,1.5933834099999999E-2,1.61742507E-2,1.6447123599999999E-2,1.7925544200000001E-2,1.5683661099999999E-2,1.9237258699999999E-2,1.7406184099999999E-2,2.6818690799999999E-2,3.6765494599999997E-2]
[null,null,null,null,null,null,null,null,null,null,"T26_7|LU","T26_7","LU","waver",0,0,0,0,0,0,0,0,0,0,0,0,0,0,0,0,0,3.1612197500000001E-2,3.6628879099999997E-2,4.2971218800000002E-2,3.7636347399999999E-2,3.6465852399999998E-2,3.4457287699999999E-2,3.88862045E-2,3.6765494599999997E-2,9.0401011999999992E-3]
[null,null,null,null,null,null,null,null,null,null,"T26_7|PL","T26_7","PL","waver",0,0,0,0,0,0,0,0,0,0,0,0,0,0,0,0,0,7.6304158499999997E-2,6.9002368499999994E-2,6.8412614900000002E-2,6.7512256000000007E-2,6.7138166099999994E-2,7.5086405499999995E-2,7.4755110099999994E-2,6.9987264499999993E-2,6.7527120800000007E-2]
[null,null,null,null,null,null,null,null,null,null,"T26_7|SI","T26_7","SI","waver",0,0,0,0,0,0,0,0,0,0,0,0,0,0,0,0,0,0.26823141550000001,0.21864935629999999,0.19859040859999999,0.15666859089999999,0.1387565539,0.14623199210000001,0.1422605814,0.1314087937,3.1272098599999999E-2]
[null,null,null,null,null,null,null,null,null,null,"T26_8|CY","T26_8","CY","waver",0,0,0,0,0,0,0,0,0,0,0,0,0,0,0,"n.a.","n.a.",0.16959195899999999,0.16080014079999999,0.1439923659,0.1042266293,8.8998258499999996E-2,5.9339120699999998E-2,4.1543045000000001E-2,5.36061091E-2,4.2245150500000002E-2]
[null,null,null,null,null,null,null,null,null,null,"T26_8|CZ","T26_8","CZ","waver",0,0,0,0,0,0,0,0,0,0,0,0,0,0,0,0,0,1.36725856E-2,1.3951396E-2,1.13224273E-2,1.44155386E-2,1.48518587E-2,3.6422822000000001E-2,3.7909468600000003E-2,4.2245150500000002E-2,4.7335918300000002E-2]
[null,null,null,null,null,null,null,null,null,null,"T26_8|EU","T26_8","EU","waver",0,0,0,0,0,0,0,0,0,0,0,0,0,0,0,0,0,6.9780920499999996E-2,6.9955601699999995E-2,6.6099900500000003E-2,6.0677603400000002E-2,6.0569034200000003E-2,6.3286229700000002E-2,6.3049253299999997E-2,5.6720899300000002E-2,6.3269810900000001E-2]
[null,null,null,null,null,null,null,null,null,null,"T26_8|HR","T26_8","HR","waver",0,0,0,0,0,0,0,0,0,0,0,0,0,0,0,0,0,0.1426240778,0.13592329319999999,4.5966137499999997E-2,3.8551236500000002E-2,3.5876843499999998E-2,3.9617513299999997E-2,4.3226471599999997E-2,5.3484310799999997E-2,6.6289058400000003E-2]
[null,null,null,null,null,null,null,null,null,null,"T26_8|IE","T26_8","IE","waver",0,0,0,0,0,0,0,0,0,0,0,0,0,0,0,0,0,4.8088562000000001E-2,4.3094797400000003E-2,4.0322277300000001E-2,2.3531079199999999E-2,2.8969875199999998E-2,3.5013932999999997E-2,3.5514888600000002E-2,4.4204936399999999E-2,5.5651345200000001E-2]
[null,null,null,null,null,null,null,null,null,null,"T26_8|LT","T26_8","LT","waver",0,0,0,0,0,0,0,0,0,0,0,0,0,0,0,0,0,1.3516404500000001E-2,1.0517394399999999E-2,9.4724518000000001E-3,3.0166915999999999E-3,4.8182375999999997E-3,4.4220758000000004E-3,4.1744390000000003E-3,1.29724443E-2,4.56501146E-2]
[null,null,null,null,null,null,null,null,null,null,"T26_8|NO","T26_8","NO","waver",0,0,0,0,0,0,0,0,0,0,0,0,0,0,0,0,0,9.3012208599999993E-2,8.7447549999999999E-2,0.1015516756,9.4841239100000002E-2,9.9394501800000007E-2,0.1122030494,0.12588452450000001,0.1347778131,6.3487061499999997E-2]
[null,null,null,null,null,null,null,null,null,null,"T26_8|SI","T26_8","SI","waver",0,0,0,0,0,0,0,0,0,0,0,0,0,0,0,0,0,4.2748364699999999E-2,4.3635316899999999E-2,2.54154121E-2,2.4984894800000001E-2,2.2850855999999999E-2,2.7426211799999999E-2,2.6313877900000001E-2,4.0836416899999999E-2,1.50006515E-2]
[null,null,null,null,null,null,null,null,null,null,"T26_9|BE","T26_9","BE","waver",0,0,0,0,0,0,0,0,0,0,0,0,0,0,0,0,0,6.4723884999999995E-2,6.4838914400000003E-2,6.4873464899999997E-2,5.4184746800000003E-2,5.0343827600000002E-2,5.3930713599999999E-2,5.3973008199999999E-2,7.3093753100000006E-2,0.13405421789999999]
[null,null,null,null,null,null,null,null,null,null,"T26_9|CY","T26_9","CY","waver",0,0,0,0,0,0,0,0,0,0,0,0,0,0,0,"n.a.","n.a.",0.1316770082,0.12475591229999999,0.110799485,0.1022071577,0.1002272392,8.44402769E-2,8.2637993800000004E-2,0.1533171555,0.1278833389]
[null,null,null,null,null,null,null,null,null,null,"T26_9|ES","T26_9","ES","waver",0,0,0,0,0,0,0,0,0,0,0,0,0,0,0,0,0,5.96906559E-2,5.3500985500000001E-2,5.15130782E-2,4.5655273199999999E-2,4.2229669800000001E-2,4.4477458999999997E-2,4.9043852899999997E-2,5.9417040900000002E-2,8.4736440999999996E-2]
[null,null,null,null,null,null,null,null,null,null,"T26_9|GR","T26_9","GR","waver",0,0,0,0,0,0,0,0,0,0,0,0,0,0,0,0,0,0.37394994259999997,0.34843658550000001,0.3231111304,0.30624908969999998,0.29571626960000003,0.2582048401,0.2462617228,0.23798895910000001,7.5962831100000003E-2]
[null,null,null,null,null,null,null,null,null,null,"T26_9|IT","T26_9","IT","waver",0,0,0,0,0,0,0,0,0,0,0,0,0,0,0,0,0,0.16586066620000001,0.16217410400000001,0.1553159485,0.1431271365,0.13873681309999999,0.13187634170000001,0.1091571704,8.8231352200000002E-2,0.16323397079999999]
[null,null,null,null,null,null,null,null,null,null,"T26_9|LT","T26_9","LT","waver",0,0,0,0,0,0,0,0,0,0,0,0,0,0,0,0,0,0.14545444320000001,0.1459339133,0.1363261412,0.1178709144,0.11884473180000001,9.3115195100000006E-2,8.99547666E-2,0.16323397079999999,0.35453333310000001]
[null,null,null,null,null,null,null,null,null,null,"T26_9|NL","T26_9","NL","waver",0,0,0,0,0,0,0,0,0,0,0,0,0,0,0,0,0,5.5912401E-2,3.9435534899999999E-2,4.1287402600000002E-2,3.5045506999999997E-2,3.72559825E-2,4.3307739499999998E-2,4.4710021400000001E-2,7.6006865800000004E-2,2.4481776600000001E-2]
[null,null,null,null,null,null,null,null,null,null,"T26_9|SE","T26_9","SE","waver",0,0,0,0,0,0,0,0,0,0,0,0,0,0,0,0,0,7.7801401999999997E-3,7.7213485999999996E-3,6.9093651000000002E-3,6.6634880000000004E-3,5.0201033999999999E-3,6.9952165E-3,1.5157586900000001E-2,1.6728855399999999E-2,0.1758167725]
[null,null,null,null,null,null,null,null,null,null,"T27_1|BG","T27_1","BG","waver",0,0,0,0,0,0,0,0,0,0,0,0,0,0,0,0,0,0,0,0.19186030230000001,0.14015465399999999,0.138546368,3.8177399999999998E-5,2.2500769999999999E-4,3.01527E-5,0]
[null,null,null,null,null,null,null,null,null,null,"T27_1|DE","T27_1","DE","waver",0,0,0,0,0,0,0,0,0,0,0,0,0,0,0,0,0,6.8758600000000001E-3,6.3601328000000004E-3,5.9485196000000004E-3,1.33464633E-2,1.1127557499999999E-2,3.5498113099999999E-2,2.91045227E-2,3.0107419999999999E-2,4.5006318900000002E-2]
[null,null,null,null,null,null,null,null,null,null,"T27_1|EE","T27_1","EE","waver",0,0,0,0,0,0,0,0,0,0,0,0,0,0,0,0,0,0,0,0,0,0,0,0,0,2.3979907299999999E-2]
[null,null,null,null,null,null,null,null,null,null,"T27_1|GB","T27_1","GB","waver",0,0,0,0,0,0,0,0,0,0,0,0,0,0,0,0,0,5.1204387099999998E-2,1.32912923E-2,1.2275193699999999E-2,2.4379484699999999E-2,3.11135604E-2,9.6676156999999999E-3,5.3236114700000003E-2,2.58631808E-2,0.35733442300000001]
[null,null,null,null,null,null,null,null,null,null,"T27_1|IS","T27_1","IS","waver",0,0,0,0,0,0,0,0,0,0,0,0,0,0,0,0,0,4.6394165000000001E-3,4.3960722999999997E-3,3.3976030999999999E-3,3.6829060000000001E-3,2.7515650000000001E-3,3.2425915000000001E-3,5.3165267999999996E-3,2.333948E-4,2.52711664E-2]
[null,null,null,null,null,null,null,null,null,null,"T27_1|IT","T27_1","IT","waver",0,0,0,0,0,0,0,0,0,0,0,0,0,0,0,0,0,9.7838411299999997E-2,8.9898497300000005E-2,5.6629570300000001E-2,5.3396755300000001E-2,5.9046950799999998E-2,5.38796307E-2,4.4433908500000001E-2,2.52711664E-2,0]
[null,null,null,null,null,null,null,null,null,null,"T27_1|MT","T27_1","MT","waver",0,0,0,0,0,0,0,0,0,0,0,0,0,0,0,0,0,0,0,2.6681946999999998E-3,2.5752455E-3,3.2349372999999999E-3,0,2.9021558999999999E-3,5.7127897999999996E-3,0.1071320489]
[null,null,null,null,null,null,null,null,null,null,"T27_1|RO","T27_1","RO","waver",0,0,0,0,0,0,0,0,0,0,0,0,0,0,0,0,0,2.0761720999999999E-3,5.9795895799999998E-2,5.1146651000000001E-2,4.0128176699999997E-2,5.29666076E-2,5.2692105699999998E-2,6.9265350599999997E-2,1.40753375E-2,2.4319586999999999E-3]
[null,null,null,null,null,null,null,null,null,null,"T27_2|BE","T27_2","BE","waver",0,0,0,0,0,0,0,0,0,0,0,0,0,0,0,0,0,4.3477103099999997E-2,3.9184483700000002E-2,3.8991020199999997E-2,3.2748930900000001E-2,3.3079305199999999E-2,3.09381011E-2,2.8955360400000001E-2,3.63007724E-2,0.18295426879999999]
[null,null,null,null,null,null,null,null,null,null,"T27_2|BG","T27_2","BG","waver",0,0,0,0,0,0,0,0,0,0,0,0,0,0,0,0,0,0.19713360999999999,0.18199522609999999,0.21820103800000001,0.19688528620000001,0.1877982946,0.18705247959999999,0.1806576101,0.18295426879999999,0.43851273390000001]
[null,null,null,null,null,null,null,null,null,null,"T27_2|ES","T27_2","ES","waver",0,0,0,0,0,0,0,0,0,0,0,0,0,0,0,0,0,5.1253747500000002E-2,4.7418569200000003E-2,4.61474246E-2,3.3346593600000002E-2,3.2996303499999997E-2,3.2771382000000002E-2,3.2895837400000003E-2,3.7378692499999998E-2,2.7061724799999999E-2]
[null,null,null,null,null,null,null,null,null,null,"T27_2|FR","T27_2","FR","waver",0,0,0,0,0,0,0,0,0,0,0,0,0,0,0,0,0,3.6842221100000003E-2,3.3632926700000003E-2,3.2730771700000001E-2,2.89807435E-2,2.8599424200000001E-2,2.8317685799999999E-2,2.4344199399999999E-2,2.3967351200000001E-2,1.9029284899999999E-2]
[null,null,null,null,null,null,null,null,null,null,"T27_2|IE","T27_2","IE","waver",0,0,0,0,0,0,0,0,0,0,0,0,0,0,0,0,0,0.1127662582,9.8263183800000001E-2,8.9243298400000004E-2,5.7647319799999999E-2,6.4702479399999999E-2,0.1041520195,0.12671712269999999,0.14207031319999999,3.7142028299999998E-2]
[null,null,null,null,null,null,null,null,null,null,"T27_2|IS","T27_2","IS","waver",0,0,0,0,0,0,0,0,0,0,0,0,0,0,0,0,0,3.2197131300000001E-2,3.01499291E-2,2.59001988E-2,2.91562629E-2,2.69387954E-2,3.3055386499999999E-2,4.3018965700000002E-2,3.7142028299999998E-2,0.1080316399]
[null,null,null,null,null,null,null,null,null,null,"T27_2|MT","T27_2","MT","waver",0,0,0,0,0,0,0,0,0,0,0,0,0,0,0,0,0,5.2135397299999997E-2,6.4343703799999999E-2,6.3551208999999997E-2,5.4483045899999999E-2,5.4745732900000003E-2,5.0365954400000003E-2,4.6608057100000003E-2,8.1180227199999996E-2,1.62808248E-2]
[null,null,null,null,null,null,null,null,null,null,"T27_2|PT","T27_2","PT","waver",0,0,0,0,0,0,0,0,0,0,0,0,0,0,0,0,0,0.22089199039999999,0.2126970826,0.1823404284,0.1436794847,0.14000975060000001,0.12793864320000001,0.12291617520000001,0.11544053360000001,3.2032965900000002E-2]
[null,null,null,null,null,null,null,null,null,null,"T27_3|AT","T27_3","AT","waver",0,0,0,0,0,0,0,0,0,0,0,0,0,0,0,0,0,2.8169769399999999E-2,2.5345560900000001E-2,2.4304312599999999E-2,2.4290440699999999E-2,2.20119763E-2,2.58244306E-2,2.3770995100000001E-2,4.0019599699999998E-2,3.5174602399999998E-2]
[null,null,null,null,null,null,null,null,null,null,"T27_3|BE","T27_3","BE","waver",0,0,0,0,0,0,0,0,0,0,0,0,0,0,0,0,0,2.49357856E-2,2.4544363E-2,2.7329164699999998E-2,2.9544881499999998E-2,3.1817011700000002E-2,3.12080294E-2,2.90951419E-2,3.5174602399999998E-2,0.1031179824]
[null,null,null,null,null,null,null,null,null,null,"T27_3|DK","T27_3","DK","waver",0,0,0,0,0,0,0,0,0,0,0,0,0,0,0,0,0,6.3569550000000002E-2,6.2281044600000002E-2,6.5208488800000006E-2,5.7792159000000003E-2,2.8258441799999999E-2,2.4762379899999999E-2,2.8173387000000001E-2,4.1461689599999997E-2,2.3887728000000002E-3]
[null,null,null,null,null,null,null,null,null,null,"T27_3|FR","T27_3","FR","waver",0,0,0,0,0,0,0,0,0,0,0,0,0,0,0,0,0,3.093636E-2,3.4621066999999998E-2,3.5030320900000002E-2,3.4158414099999999E-2,3.3519544999999998E-2,3.4456131199999997E-2,4.0634002400000001E-2,3.9817821400000002E-2,1.99227173E-2]
[null,null,null,null,null,null,null,null,null,null,"T27_3|HU","T27_3","HU","waver",0,0,0,0,0,0,0,0,0,0,0,0,0,0,0,0,0,7.5016961199999996E-2,7.6019904499999999E-2,7.1487570099999995E-2,3.8212027500000002E-2,4.1357340899999998E-2,2.0625560500000001E-2,3.6170034199999999E-2,3.4640337399999999E-2,4.3931469700000003E-2]
[null,null,null,null,null,null,null,null,null,null,"T27_3|IE","T27_3","IE","waver",0,0,0,0,0,0,0,0,0,0,0,0,0,0,0,0,0,5.6749885100000001E-2,3.3055397700000003E-2,3.62381736E-2,2.5361608000000001E-2,2.4945547200000001E-2,4.57141327E-2,5.29622389E-2,4.3931469700000003E-2,7.9145400300000002E-2]
[null,null,null,null,null,null,null,null,null,null,"T27_3|LV","T27_3","LV","waver",0,0,0,0,0,0,0,0,0,0,0,0,0,0,0,0,0,6.5569420399999995E-2,4.0309221100000001E-2,4.0392476500000003E-2,2.6110226399999999E-2,1.94365157E-2,1.5949568500000001E-2,2.0909385900000001E-2,2.0495509200000001E-2,9.5451143599999996E-2]
[null,null,null,null,null,null,null,null,null,null,"T27_3|PT","T27_3","PT","waver",0,0,0,0,0,0,0,0,0,0,0,0,0,0,0,0,0,0.31539473159999998,0.30896868989999998,0.2998086942,0.22454702269999999,0.19117984199999999,0.16163916810000001,0.15807733339999999,0.1098901305,9.80557648E-2]
[null,null,null,null,null,null,null,null,null,null,"T27_3|SI","T27_3","SI","waver",0,0,0,0,0,0,0,0,0,0,0,0,0,0,0,0,0,0.2179371158,0.21449010299999999,0.15962814289999999,0.17166682129999999,0.13368111669999999,0.1451772009,0.1237744893,0.13432884449999999,1.3280922800000001E-2]
[null,null,null,null,null,null,null,null,null,null,"T27_4|AT","T27_4","AT","waver",0,0,0,0,0,0,0,0,0,0,0,0,0,0,0,0,0,3.9828514299999999E-2,3.3174311900000003E-2,3.3545457799999998E-2,3.15141559E-2,3.52947105E-2,3.8504810700000003E-2,2.7965863699999999E-2,4.6318272200000003E-2,3.2962984299999998E-2]
[null,null,null,null,null,null,null,null,null,null,"T27_4|DE","T27_4","DE","waver",0,0,0,0,0,0,0,0,0,0,0,0,0,0,0,0,0,1.8284100399999999E-2,2.0935093599999999E-2,2.2690722900000002E-2,2.1300693499999999E-2,2.2604810499999999E-2,2.78831189E-2,4.2574531800000003E-2,4.5822526000000002E-2,2.9856148200000002E-2]
[null,null,null,null,null,null,null,null,null,null,"T27_4|FI","T27_4","FI","waver",0,0,0,0,0,0,0,0,0,0,0,0,0,0,0,0,0,2.4251235900000001E-2,2.2334074200000002E-2,2.4643625200000002E-2,2.17444717E-2,2.68982415E-2,9.3927125000000007E-3,7.8923646E-3,1.0937998799999999E-2,2.6757916100000001E-2]
[null,null,null,null,null,null,null,null,null,null,"T27_4|GB","T27_4","GB","waver",0,0,0,0,0,0,0,0,0,0,0,0,0,0,0,0,0,2.1015978899999999E-2,1.9624690600000001E-2,2.5378334200000002E-2,2.4468305199999998E-2,2.0533698999999999E-2,3.24641622E-2,3.6054572999999999E-2,3.9140764500000001E-2,0.2496138648]
[null,null,null,null,null,null,null,null,null,null,"T27_4|HU","T27_4","HU","waver",0,0,0,0,0,0,0,0,0,0,0,0,0,0,0,0,0,2.7314244800000002E-2,2.4822185E-2,2.3752742300000001E-2,2.3350094500000002E-2,2.3772047500000001E-2,2.1929707999999999E-2,2.4566442099999999E-2,2.94559431E-2,0.10961996910000001]
[null,null,null,null,null,null,null,null,null,null,"T27_4|LU","T27_4","LU","waver",0,0,0,0,0,0,0,0,0,0,0,0,0,0,0,0,0,4.4967582999999997E-3,4.6997933000000004E-3,4.6346041000000001E-3,4.0637855999999997E-3,4.0506196999999999E-3,4.0727259999999996E-3,5.6723316000000003E-3,7.1929066999999996E-3,1.27781018E-2]
[null,null,null,null,null,null,null,null,null,null,"T27_4|PL","T27_4","PL","waver",0,0,0,0,0,0,0,0,0,0,0,0,0,0,0,0,0,5.0705849599999998E-2,4.8864967500000002E-2,4.8535899899999999E-2,6.0109531899999999E-2,6.9145650200000006E-2,8.4391009700000005E-2,8.2478598200000003E-2,8.7655451199999998E-2,8.4128273500000003E-2]
[null,null,null,null,null,null,null,null,null,null,"T27_4|SK","T27_4","SK","waver",0,0,0,0,0,0,0,0,0,0,0,0,0,0,0,0,0,1.32884605E-2,2.04698439E-2,2.0173703899999999E-2,3.2059877100000002E-2,2.28640133E-2,2.1952682099999999E-2,2.3444594799999999E-2,3.6722753400000002E-2,5.2207699999999998E-5]
[null,null,null,null,null,null,null,null,null,null,"T27_5|BG","T27_5","BG","waver",0,0,0,0,0,0,0,0,0,0,0,0,0,0,0,0,0,0.6288659794,7.5021313000000001E-3,8.4004735000000001E-3,1.1486128000000001E-3,1.3894606999999999E-3,1.6295492E-3,8.4788029900000006E-2,9.5238095199999998E-2,0]
[null,null,null,null,null,null,null,null,null,null,"T27_5|CZ","T27_5","CZ","waver",0,0,0,0,0,0,0,0,0,0,0,0,0,0,0,0,0,4.0188220000000001E-4,5.3456759999999999E-4,3.7907840000000001E-4,2.5395419999999999E-4,0,0,0,0,4.1686800000000002E-5]
[null,null,null,null,null,null,null,null,null,null,"T27_5|EU","T27_5","EU","waver",0,0,0,0,0,0,0,0,0,0,0,0,0,0,0,0,0,1.3478832600000001E-2,1.1831533599999999E-2,1.11633992E-2,9.4641770000000007E-3,1.0658746700000001E-2,9.4188329000000001E-3,1.41091224E-2,1.52778729E-2,0]
[null,null,null,null,null,null,null,null,null,null,"T27_5|HR","T27_5","HR","waver",0,0,0,0,0,0,0,0,0,0,0,0,0,0,0,0,0,2.5889518999999999E-7,2.6192200999999999E-7,2.6503304E-7,2.7329474000000002E-7,2.7431287999999999E-7,2.7758856999999999E-7,2.8254863000000001E-7,2.9107223000000001E-7,1.16948669E-2]
[null,null,null,null,null,null,null,null,null,null,"T27_5|HU","T27_5","HU","waver",0,0,0,0,0,0,0,0,0,0,0,0,0,0,0,0,0,4.1305850000000001E-4,9.2350785000000003E-6,1.6930900000000001E-5,1.1148441000000001E-3,2.7756933999999998E-3,1.4891007E-3,1.4495296499999999E-2,1.16948669E-2,0]
[null,null,null,null,null,null,null,null,null,null,"T27_5|LT","T27_5","LT","waver",0,0,0,0,0,0,0,0,0,0,0,0,0,0,0,0,0,0,0,0,0,0,0,0,0,2.5329630000000001E-3]
[null,null,null,null,null,null,null,null,null,null,"T27_5|NO","T27_5","NO","waver",0,0,0,0,0,0,0,0,0,0,0,0,0,0,0,0,0,0,5.4910940000000002E-4,2.0170199999999999E-5,1.6926799999999999E-5,2.9275098999999998E-6,0,0,0,2.808509E-4]
[null,null,null,null,null,null,null,null,null,null,"T27_5|SI","T27_5","SI","waver",0,0,0,0,0,0,0,0,0,0,0,0,0,0,0,0,0,0.13043478259999999,2.89855072E-2,3.7037037000000002E-2,0,9.3973206999999996E-3,1.3966703800000001E-2,1.9802360599999999E-2,0.38358894529999998,4.0334199999999997E-5]
[null,null,null,null,null,null,null,null,null,null,"T27_5|SK","T27_5","SK","waver",0,0,0,0,0,0,0,0,0,0,0,0,0,0,0,0,0,2.5849254999999998E-3,2.6795742000000002E-3,2.6346007999999998E-3,2.1478999999999999E-5,1.9785399999999999E-5,3.6385299999999999E-5,3.6352E-5,4.0334199999999997E-5,1.7019408600000001E-2]
[null,null,null,null,null,null,null,null,null,null,"T27_6|DE","T27_6","DE","waver",0,0,0,0,0,0,0,0,0,0,0,0,0,0,0,0,0,1.4652831E-2,1.3794078600000001E-2,1.4154624399999999E-2,1.3061291799999999E-2,1.0962684300000001E-2,1.07698368E-2,1.34768743E-2,1.4040325399999999E-2,2.3609458E-3]
[null,null,null,null,null,null,null,null,null,null,"T27_6|ES","T27_6","ES","waver",0,0,0,0,0,0,0,0,0,0,0,0,0,0,0,0,0,6.92945118E-2,6.6540970000000005E-2,6.4301793699999998E-2,6.1875018599999998E-2,6.2610383000000006E-2,5.6671110199999999E-2,5.8974038899999998E-2,5.8615869700000003E-2,4.24762552E-2]
[null,null,null,null,null,null,null,null,null,null,"T27_6|GR","T27_6","GR","waver",0,0,0,0,0,0,0,0,0,0,0,0,0,0,0,0,0,0.65592898600000005,0.62771393360000005,0.60403393620000001,0.5075804357,0.52975577829999998,0.49294677860000002,0.46711507250000001,0.50899009719999999,0.14595090499999999]
[null,null,null,null,null,null,null,null,null,null,"T27_6|HR","T27_6","HR","waver",0,0,0,0,0,0,0,0,0,0,0,0,0,0,0,0,0,1.7923579500000002E-2,1.63986476E-2,9.5925843199999999E-2,9.2300768699999994E-2,0.12831213250000001,0.13504876139999999,0.13721756630000001,0.14595090499999999,1.32435625E-2]
[null,null,null,null,null,null,null,null,null,null,"T27_6|LT","T27_6","LT","waver",0,0,0,0,0,0,0,0,0,0,0,0,0,0,0,0,0,8.3081570999999996E-3,7.8566166999999992E-3,5.8323207999999996E-3,5.8252427000000002E-3,5.9724747E-3,5.2562070799999999E-2,4.84029484E-2,4.4806007500000002E-2,3.7792249700000002E-2]
[null,null,null,null,null,null,null,null,null,null,"T27_6|NL","T27_6","NL","waver",0,0,0,0,0,0,0,0,0,0,0,0,0,0,0,0,0,1.7461909300000002E-2,2.8027074499999999E-2,3.1809059000000001E-2,2.9858431099999999E-2,2.5086069999999999E-2,4.52141842E-2,4.81143152E-2,4.8935684700000003E-2,1.0698153999999999E-3]
[null,null,null,null,null,null,null,null,null,null,"T27_6|SE","T27_6","SE","waver",0,0,0,0,0,0,0,0,0,0,0,0,0,0,0,0,0,7.7460005999999996E-3,7.632799E-3,1.12277605E-2,1.23177553E-2,1.2081608000000001E-3,7.0835413000000002E-3,6.7792598000000004E-3,5.3165727000000001E-3,6.20118224E-2]
[null,null,null,null,null,null,null,null,null,null,"T27_6|SI","T27_6","SI","waver",0,0,0,0,0,0,0,0,0,0,0,0,0,0,0,0,0,2.3921977999999998E-3,2.1666459999999999E-3,2.3091805999999999E-3,3.4338038999999999E-3,2.0774629999999999E-3,3.1108994E-3,6.1581106199999999E-2,6.20118224E-2,6.6323116999999999E-3]
[null,null,null,null,null,null,null,null,null,null,"T27_7|CY","T27_7","CY","waver",0,0,0,0,0,0,0,0,0,0,0,0,0,0,0,"n.a.","n.a.",7.7110813700000003E-2,7.4823943700000006E-2,6.1837926199999997E-2,4.90388436E-2,4.4859195499999997E-2,2.8537109799999998E-2,2.7761736700000001E-2,2.3653399299999999E-2,4.5690944000000002E-3]
[null,null,null,null,null,null,null,null,null,null,"T27_7|DK","T27_7","DK","waver",0,0,0,0,0,0,0,0,0,0,0,0,0,0,0,0,0,2.7510037300000002E-2,2.4028366200000002E-2,1.46675838E-2,2.61643568E-2,6.3089605600000001E-2,5.8681394200000001E-2,6.5089251200000003E-2,5.7414995400000002E-2,2.25593363E-2]
[null,null,null,null,null,null,null,null,null,null,"T27_7|GB","T27_7","GB","waver",0,0,0,0,0,0,0,0,0,0,0,0,0,0,0,0,0,3.2929909100000002E-2,3.7001590199999997E-2,3.80962896E-2,3.5136688100000001E-2,4.9119550300000002E-2,5.02423626E-2,4.9196066900000002E-2,4.8940956799999998E-2,0.24428917159999999]
[null,null,null,null,null,null,null,null,null,null,"T27_7|GR","T27_7","GR","waver",0,0,0,0,0,0,0,0,0,0,0,0,0,0,0,0,0,0.41499293819999999,0.36172416699999999,0.35929244669999999,0.33598556200000002,0.33457073980000002,0.29510353950000001,0.28319944530000002,0.24428917159999999,1.04086318E-2]
[null,null,null,null,null,null,null,null,null,null,"T27_7|IT","T27_7","IT","waver",0,0,0,0,0,0,0,0,0,0,0,0,0,0,0,0,0,6.3576831299999997E-2,5.6802131200000001E-2,5.2848788000000001E-2,4.7759841400000003E-2,4.6873020799999998E-2,4.7000519599999999E-2,4.5975729600000001E-2,3.80608962E-2,3.4517258600000003E-2]
[null,null,null,null,null,null,null,null,null,null,"T27_7|MT","T27_7","MT","waver",0,0,0,0,0,0,0,0,0,0,0,0,0,0,0,0,0,3.9157761300000003E-2,3.6098066900000003E-2,4.99708715E-2,4.3898823300000001E-2,3.7310590300000002E-2,4.4253185799999997E-2,6.5477983300000001E-2,2.83200773E-2,3.4148744299999999E-2]
[null,null,null,null,null,null,null,null,null,null,"T27_7|RO","T27_7","RO","waver",0,0,0,0,0,0,0,0,0,0,0,0,0,0,0,0,0,3.5382906399999997E-2,3.1540031900000001E-2,2.5076807E-2,2.1237623899999999E-2,2.0347181999999998E-2,1.9723538299999999E-2,1.7510500500000001E-2,1.78818226E-2,1.38941749E-2]
[null,null,null,null,null,null,null,null,null,null,"T27_7|SE","T27_7","SE","waver",0,0,0,0,0,0,0,0,0,0,0,0,0,0,0,0,0,1.1662241E-3,1.7003465000000001E-3,3.5881101999999999E-3,2.4122544000000001E-3,9.9601450000000001E-3,5.4023880000000002E-3,7.1892668E-3,1.38941749E-2,3.00924534E-2]
[null,null,null,null,null,null,null,null,null,null,"T27_8|BG","T27_8","BG","waver",0,0,0,0,0,0,0,0,0,0,0,0,0,0,0,0,0,0.36611797369999999,0.34728762349999998,0.56529130800000005,0.56117922929999997,0.46576870279999999,0.40968342639999999,0.403902965,0.39635224679999997,0.48303717730000001]
[null,null,null,null,null,null,null,null,null,null,"T27_8|EE","T27_8","EE","waver",0,0,0,0,0,0,0,0,0,0,0,0,0,0,0,0,0,1.29656906E-2,1.3149810099999999E-2,1.3075188200000001E-2,7.9168325999999997E-3,4.6264437800000002E-2,4.4446999199999997E-2,4.35816906E-2,4.7329176299999998E-2,5.93974133E-2]
[null,null,null,null,null,null,null,null,null,null,"T27_8|EU","T27_8","EU","waver",0,0,0,0,0,0,0,0,0,0,0,0,0,0,0,0,0,8.3193724299999994E-2,7.8847201899999997E-2,7.4674969300000005E-2,6.7550822999999996E-2,7.2052844000000005E-2,6.7997879400000003E-2,6.7494642399999999E-2,7.2621243299999999E-2,3.4959793500000003E-2]
[null,null,null,null,null,null,null,null,null,null,"T27_8|GB","T27_8","GB","waver",0,0,0,0,0,0,0,0,0,0,0,0,0,0,0,0,0,2.04538883E-2,2.3006563599999998E-2,2.1011043600000001E-2,1.71972546E-2,1.3636788400000001E-2,1.8918928500000001E-2,3.5263341599999998E-2,4.4249835799999998E-2,0.22487428649999999]
[null,null,null,null,null,null,null,null,null,null,"T27_8|IS","T27_8","IS","waver",0,0,0,0,0,0,0,0,0,0,0,0,0,0,0,0,0,5.7959633500000003E-2,1.34447488E-2,7.8029067199999996E-2,7.5204344899999997E-2,6.9732880600000005E-2,8.5388813600000002E-2,7.7780773299999995E-2,7.4813391500000007E-2,0.11080121580000001]
[null,null,null,null,null,null,null,null,null,null,"T27_8|MT","T27_8","MT","waver",0,0,0,0,0,0,0,0,0,0,0,0,0,0,0,0,0,1.26096505E-2,6.8384832999999999E-3,1.20607367E-2,1.41318195E-2,1.26673551E-2,1.1710489500000001E-2,2.55989865E-2,3.31458086E-2,5.9869494099999997E-2]
[null,null,null,null,null,null,null,null,null,null,"T27_8|PT","T27_8","PT","waver",0,0,0,0,0,0,0,0,0,0,0,0,0,0,0,0,0,0.39435108749999997,0.3730232396,0.35878735229999997,0.37138793370000001,0.3621298718,0.33525465789999997,0.321925399,0.3375663773,4.7038458200000001E-2]
[null,null,null,null,null,null,null,null,null,null,"T27_8|RO","T27_8","RO","waver",0,0,0,0,0,0,0,0,0,0,0,0,0,0,0,0,0,3.2751795200000003E-2,2.70091836E-2,2.6355677599999999E-2,2.4315676899999999E-2,2.5967715999999998E-2,3.2935123400000002E-2,3.3142486700000001E-2,4.7038458200000001E-2,2.0648894000000001E-2]
[null,null,null,null,null,null,null,null,null,null,"T27_9|BE","T27_9","BE","waver",0,0,0,0,0,0,0,0,0,0,0,0,0,0,0,0,0,5.3143862700000002E-2,5.8311451E-2,6.2802860200000005E-2,5.55369816E-2,5.6933825799999997E-2,6.6094573200000006E-2,3.3410125899999997E-2,2.8866742899999999E-2,7.1781113199999996E-2]
[null,null,null,null,null,null,null,null,null,null,"T27_9|DK","T27_9","DK","waver",0,0,0,0,0,0,0,0,0,0,0,0,0,0,0,0,0,2.57038027E-2,1.8259060300000001E-2,1.71933563E-2,2.9109354399999999E-2,1.79897231E-2,1.8326356500000002E-2,1.75057661E-2,2.8018075100000001E-2,1.48076215E-2]
[null,null,null,null,null,null,null,null,null,null,"T27_9|FR","T27_9","FR","waver",0,0,0,0,0,0,0,0,0,0,0,0,0,0,0,0,0,4.7357493799999997E-2,4.9631376099999999E-2,4.0469837500000001E-2,3.9094712199999999E-2,3.4879620799999997E-2,3.4164086199999999E-2,3.0943566299999999E-2,2.9970873499999998E-2,8.8299822799999997E-2]
[null,null,null,null,null,null,null,null,null,null,"T27_9|GR","T27_9","GR","waver",0,0,0,0,0,0,0,0,0,0,0,0,0,0,0,0,0,0.51464017210000002,0.50321367110000004,0.46693074499999998,0.42365885040000001,0.46108601989999998,0.37088651430000003,0.34847263290000002,0.29193814829999998,0.1142251158]
[null,null,null,null,null,null,null,null,null,null,"T27_9|IE","T27_9","IE","waver",0,0,0,0,0,0,0,0,0,0,0,0,0,0,0,0,0,2.3004619800000001E-2,3.6267275600000003E-2,3.2167008699999999E-2,2.52491395E-2,3.3418114300000003E-2,4.3024553799999997E-2,5.8675834699999999E-2,5.1388242600000002E-2,4.6287910100000003E-2]
[null,null,null,null,null,null,null,null,null,null,"T27_9|LV","T27_9","LV","waver",0,0,0,0,0,0,0,0,0,0,0,0,0,0,0,0,0,3.6090443000000002E-3,8.2813288999999991E-3,1.0053024900000001E-2,8.4716215000000001E-3,6.8764361000000001E-3,6.0237535000000004E-3,6.9899024999999998E-3,9.9768645E-3,0.2155528974]
[null,null,null,null,null,null,null,null,null,null,"T27_9|PT","T27_9","PT","waver",0,0,0,0,0,0,0,0,0,0,0,0,0,0,0,0,0,0.27031100720000001,0.24197208310000001,0.23423297840000001,0.22087012610000001,0.222019562,0.1923658627,0.18424729449999999,0.18024244919999999,7.7756981399999994E-2]
[null,null,null,null,null,null,null,null,null,null,"T27_9|SI","T27_9","SI","waver",0,0,0,0,0,0,0,0,0,0,0,0,0,0,0,0,0,2.7335701600000002E-2,2.8678101000000001E-2,2.8244157700000001E-2,2.38023453E-2,2.89723284E-2,5.0727781700000002E-2,4.6795142099999999E-2,8.41275727E-2,4.4796428000000001E-3]
[null,null,null,null,null,null,null,null,null,null,"T28_1|AT","T28_1","AT","waver",-1.6062348000000001E-2,6.5873652899999996E-2,7.56977182E-2,7.0437604599999995E-2,6.3497012399999997E-2,5.9953995599999997E-2,8.0955396999999998E-2,8.9249520999999998E-2,7.1444177600000006E-2,7.9954043399999994E-2,9.9463301899999995E-2,0.102076774,9.9398951900000004E-2,9.3334345099999994E-2,0.1044020266,0.1071850353,0.1010602028,8.2972644600000006E-2,9.0505480999999999E-2,8.9828170799999996E-2,8.8609666500000003E-2,2.11826102E-2,2.5421940800000001E-2,4.3986014900000002E-2,4.57615377E-2,4.7392784299999997E-2]
[null,null,null,null,null,null,null,null,null,null,"T28_1|DE","T28_1","DE","waver",2.3254134700000002E-2,4.7961394999999997E-2,5.5255450499999997E-2,1.0620749000000001E-2,7.2030100000000001E-3,2.2291219599999999E-2,2.68193124E-2,2.1176517799999999E-2,1.3384181699999999E-2,3.8974426299999997E-2,2.97345779E-2,3.2631540200000003E-2,1.40120123E-2,2.4576543400000001E-2,3.1116916000000001E-2,3.2209960000000003E-2,1.5203314000000001E-2,2.34212224E-2,-1.383172E-3,2.9590495999999998E-3,-1.6853549999999999E-3,-1.5797604E-2,9.1611551000000003E-3,1.4407616200000001E-2,4.5807243999999997E-3,4.1347796800000003E-2]
[null,null,null,null,null,null,null,null,null,null,"T28_1|FI","T28_1","FI","waver",8.8918850699999996E-2,0.11976266269999999,0.10799741039999999,0.10553172130000001,9.2861669899999999E-2,8.8134878400000005E-2,8.4714255599999996E-2,8.2599976300000003E-2,9.3346606999999998E-2,0.13141802150000001,9.7716185400000002E-2,8.68194771E-2,9.4236776800000005E-2,6.8033969700000002E-2,5.1442708500000003E-2,5.2289236199999999E-2,8.3137039400000001E-2,7.7403471400000007E-2,7.1121425000000002E-2,4.2301756599999997E-2,4.75494713E-2,6.5851636899999996E-2,4.6492761399999999E-2,5.9496619899999999E-2,6.0123321600000001E-2,4.3249506799999997E-2]
[null,null,null,null,null,null,null,null,null,null,"T28_1|FR","T28_1","FR","waver",4.6945637999999998E-2,6.0389069699999999E-2,7.4513622599999996E-2,7.48621966E-2,6.7390472199999996E-2,5.2656924600000002E-2,7.4954726299999996E-2,7.2175427900000005E-2,6.5695898399999994E-2,6.3289751699999994E-2,7.1734304099999993E-2,7.2009178199999996E-2,6.4333931799999994E-2,5.6855332799999998E-2,6.9846605000000006E-2,7.1066893699999995E-2,6.6482149399999996E-2,5.2648499100000003E-2,6.5349499000000005E-2,6.5154133399999994E-2,6.4932787399999997E-2,4.6675270800000002E-2,3.7038621799999998E-2,4.3355266599999998E-2,4.3249506799999997E-2,2.5872069300000002E-2]
[null,null,null,null,null,null,null,null,null,null,"T28_1|IE","T28_1","IE","waver",5.3646978900000003E-2,6.7015442999999994E-2,7.7295344599999996E-2,8.8286058000000001E-2,7.4266120899999996E-2,8.4292050499999993E-2,0.1024879464,9.1896085599999996E-2,7.9301876699999996E-2,6.5319410999999994E-2,7.6631909499999998E-2,7.9808047199999996E-2,7.0785445899999994E-2,7.8459034400000002E-2,8.3973978899999996E-2,8.38302883E-2,7.5020016300000006E-2,8.0578860799999999E-2,6.8248995100000001E-2,6.8533702500000002E-2,5.4945722699999998E-2,5.3457857000000003E-3,-8.4490783999999999E-2,-4.5122711000000003E-2,-3.2875134E-2,4.3990170699999998E-2]
[null,null,null,null,null,null,null,null,null,null,"T28_1|LU","T28_1","LU","waver",7.5342769500000004E-2,7.3375530699999997E-2,8.7421422200000001E-2,7.7069519200000006E-2,7.7661738100000002E-2,6.05859994E-2,6.5777519300000004E-2,6.5427360099999998E-2,6.1198576999999997E-2,7.2930390100000006E-2,7.8491268700000005E-2,6.9565152199999994E-2,6.9174630500000001E-2,5.2406204800000002E-2,6.1777880899999998E-2,8.9648926500000004E-2,8.5112938099999993E-2,5.0732466400000002E-2,6.79640247E-2,6.5021308700000002E-2,5.7857327E-2,4.9086786100000002E-2,6.1083406299999997E-2,5.7906577000000001E-2,5.5715761000000003E-2,7.3523634500000004E-2]
[null,null,null,null,null,null,null,null,null,null,"T28_1|PL","T28_1","PL","waver",0.11595096269999999,0.1583410156,0.13522756059999999,0.1249448846,0.1088660652,9.7683554300000003E-2,0.1106177302,0.1034297015,9.9396187999999996E-2,7.4437650800000005E-2,9.2134672299999998E-2,9.5493578199999998E-2,0.1034953153,8.0418778600000004E-2,9.19256408E-2,9.6239642099999995E-2,0.10054556739999999,6.8819213300000001E-2,9.1552799599999998E-2,9.7679843000000002E-2,9.6197821399999994E-2,3.8413121600000003E-2,5.0470789799999999E-2,5.4671531600000003E-2,5.2209245100000003E-2,-2.5115350000000001E-3]
[null,null,null,null,null,null,null,null,null,null,"T28_1|PT","T28_1","PT","waver",-6.1246900999999999E-2,2.0437551599999999E-2,2.46603715E-2,1.17065721E-2,-2.4285280999999999E-2,-2.5468508000000001E-2,-4.5496549999999997E-2,-2.4067511E-2,-9.5659127999999996E-2,-3.1818046000000003E-2,-2.0820354999999999E-2,-3.2221900000000002E-3,-3.8230645000000001E-2,8.3291017600000003E-2,5.9439537299999998E-2,5.9902389600000001E-2,2.1760838599999999E-2,6.1105483100000003E-2,5.0218407200000002E-2,5.37971327E-2,3.9417731300000002E-2,1.6718026399999999E-2,1.6608911000000001E-3,1.04703864E-2,-2.5115350000000001E-3,0.1153403163]
[null,null,null,null,null,null,null,null,null,null,"T28_1|SK","T28_1","SK","waver",0.119472282,0.125986031,0.13662763789999999,0.1364931207,0.12137953460000001,0.1056317412,0.1540414225,0.13620634440000001,0.1228611602,0.1099532949,0.125592499,0.1214180556,0.1127483849,0.1270500198,0.121449058,0.1203702394,0.11021506220000001,0.10702833019999999,0.1023427118,0.1016016388,9.96350919E-2,5.7385044400000002E-2,4.3534140700000001E-2,5.9712914200000002E-2,6.3553577700000002E-2,0.19408465129999999]
[null,null,null,null,null,null,null,null,null,null,"T28_2|CZ","T28_2","CZ","waver",0,0,0,0,0,0,0,0,0,0,0,0,0,0,0,0,0,0.25978746749999998,0.2661816809,0.26198260340000001,0.2624854982,0.24753668000000001,0.2260037235,0.2134430095,0.21134780859999999,0.15556679649999999]
[null,null,null,null,null,null,null,null,null,null,"T28_2|EU","T28_2","EU","waver",0,0,0,0,0,0,0,0,0,0,0,0,0,0,0,0,0,0.1812116866,0.18211989670000001,0.18222646949999999,0.1824424053,0.18131420579999999,0.17879049399999999,0.17663844500000001,0.17465858710000001,0.13308069829999999]
[null,null,null,null,null,null,null,null,null,null,"T28_2|FI","T28_2","FI","waver",0,0,0,0,0,0,0,0,0,0,0,0,0,0,0,0,0,0.13321329030000001,0.13028215000000001,0.13149427699999999,0.13236818659999999,0.13425385479999999,0.13441682569999999,0.1345161081,0.13308069829999999,0.1404031301]
[null,null,null,null,null,null,null,null,null,null,"T28_2|HU","T28_2","HU","waver",0,0,0,0,0,0,0,0,0,0,0,0,0,0,0,0,0,0.31084987870000003,0.30696584840000002,0.29412449099999999,0.29976188349999999,0.29742225979999998,0.29075722570000001,0.28177642089999999,0.27780374870000002,0.13274485280000001]
[null,null,null,null,null,null,null,null,null,null,"T28_2|LT","T28_2","LT","waver",0,0,0,0,0,0,0,0,0,0,0,0,0,0,0,0,0,0.1744110307,0.17835687359999999,0.17775593419999999,0.17707626879999999,0.17329246130000001,0.17433914780000001,0.16956229010000001,0.16308930090000001,0.13112811899999999]
[null,null,null,null,null,null,null,null,null,null,"T28_2|NO","T28_2","NO","waver",0,0,0,0,0,0,0,0,0,0,0,0,0,0,0,0,0,0.1879008881,0.19031478339999999,0.18809837039999999,0.18616680569999999,0.17280810839999999,0.1697761173,0.164015094,0.16709634330000001,0.21438501639999999]
[null,null,null,null,null,null,null,null,null,null,"T28_2|PL","T28_2","PL","waver",0,0,0,0,0,0,0,0,0,0,0,0,0,0,0,0,0,0.23963005379999999,0.2481510213,0.2450600701,0.2477192376,0.23997079560000001,0.23122660759999999,0.21947236910000001,0.21438501639999999,0.16077402769999999]
[null,null,null,null,null,null,null,null,null,null,"T28_2|SK","T28_2","SK","waver",0,0,0,0,0,0,0,0,0,0,0,0,0,0,0,0,0,0.25062351980000003,0.25339699180000003,0.24865449000000001,0.24360089500000001,0.22813966669999999,0.22529652750000001,0.22185961600000001,0.21892256369999999,9.1773032399999996E-2]
[null,null,null,null,null,null,null,null,null,null,"T28_3|BG","T28_3","BG","waver",0,0,0,0,0,0,0,0,0,0,0,0,0,0,0,0,0,7.5353683899999996E-2,8.5563936699999996E-2,8.6508798299999995E-2,8.5914539600000006E-2,7.7560204399999999E-2,7.5606557199999994E-2,7.65669452E-2,7.8291519500000004E-2,5.6936432199999998E-2]
[null,null,null,null,null,null,null,null,null,null,"T28_3|ES","T28_3","ES","waver",0,0,0,0,0,0,0,0,0,0,0,0,0,0,0,0,0,9.9046884299999999E-2,9.97058215E-2,0.10017524680000001,0.1009931939,0.10083615930000001,9.6188424699999997E-2,9.5334859300000005E-2,8.9039800799999999E-2,8.9679156900000001E-2]
[null,null,null,null,null,null,null,null,null,null,"T28_3|EU","T28_3","EU","waver",0,0,0,0,0,0,0,0,0,0,0,0,0,0,0,0,0,8.7933092700000007E-2,8.8319283499999998E-2,8.8480647499999995E-2,8.9218779799999995E-2,9.4790458899999999E-2,9.0142853600000003E-2,8.9144663700000001E-2,8.9679156900000001E-2,6.9154692599999998E-2]
[null,null,null,null,null,null,null,null,null,null,"T28_3|HR","T28_3","HR","waver",0,0,0,0,0,0,0,0,0,0,0,0,0,0,0,0,0,8.13052789E-2,8.1981144300000003E-2,8.3259612699999999E-2,8.1677447400000006E-2,6.9966808699999994E-2,6.7950196099999999E-2,6.8675354100000002E-2,6.9734803200000001E-2,0.14911962840000001]
[null,null,null,null,null,null,null,null,null,null,"T28_3|LT","T28_3","LT","waver",0,0,0,0,0,0,0,0,0,0,0,0,0,0,0,0,0,9.4454116899999996E-2,9.87674459E-2,9.8917952700000006E-2,9.7934977800000003E-2,8.8550488199999999E-2,8.5940438399999999E-2,8.7230235200000006E-2,8.7759596400000001E-2,8.4176385399999998E-2]
[null,null,null,null,null,null,null,null,null,null,"T28_3|NL","T28_3","NL","waver",0,0,0,0,0,0,0,0,0,0,0,0,0,0,0,0,0,5.27392608E-2,5.3801642400000002E-2,5.3502697000000002E-2,5.2631296500000001E-2,5.3570379299999998E-2,5.1136292299999997E-2,5.0350837099999997E-2,5.1026125300000003E-2,3.0858178699999999E-2]
[null,null,null,null,null,null,null,null,null,null,"T28_3|NO","T28_3","NO","waver",0,0,0,0,0,0,0,0,0,0,0,0,0,0,0,0,0,3.4201013199999998E-2,3.6844451299999997E-2,3.4895784399999998E-2,3.5092819400000003E-2,2.79867185E-2,2.97418404E-2,2.9372198700000001E-2,3.0858178699999999E-2,8.2780335699999999E-2]
[null,null,null,null,null,null,null,null,null,null,"T28_3|SI","T28_3","SI","waver",0,0,0,0,0,0,0,0,0,0,0,0,0,0,0,0,0,8.2207697699999999E-2,8.4996304300000006E-2,8.4419284299999994E-2,8.3631109800000006E-2,9.0011132699999996E-2,8.7111506899999996E-2,8.9483037700000004E-2,8.6321671200000005E-2,8.8890170300000002E-2]
[null,null,null,null,null,null,null,null,null,null,"T28_4|CY","T28_4","CY","waver",0,0,0,0,0,0,0,0,0,0,0,0,0,0,0,"n.a.","n.a.",4.8058705E-3,7.6650544999999999E-3,5.8276428999999999E-3,5.3358713000000004E-3,-6.3833199999999996E-3,1.6189002E-3,5.652535E-4,4.9277588999999998E-3,-4.8344759999999999E-3]
[null,null,null,null,null,null,null,null,null,null,"T28_4|DE","T28_4","DE","waver",0,0,0,0,0,0,0,0,0,0,0,0,0,0,0,0,0,2.02846821E-2,1.6322520300000001E-2,7.8726674999999996E-3,5.8443098000000001E-3,-9.4610809999999997E-3,1.22261005E-2,1.65497361E-2,1.7447262200000001E-2,5.9771166000000004E-3]
[null,null,null,null,null,null,null,null,null,null,"T28_4|ES","T28_4","ES","waver",0,0,0,0,0,0,0,0,0,0,0,0,0,0,0,0,0,5.7896331999999998E-3,2.3924866999999999E-3,5.5771166999999998E-3,7.8580562999999992E-3,6.6215906500000005E-2,2.1072160900000001E-2,3.1753473900000002E-2,2.0487510800000001E-2,1.58772615E-2]
[null,null,null,null,null,null,null,null,null,null,"T28_4|GR","T28_4","GR","waver",0,0,0,0,0,0,0,0,0,0,0,0,0,0,0,0,0,1.25611431E-2,7.7906534E-3,2.2148816999999999E-3,3.4727757999999998E-3,-1.5729750000000001E-2,-6.3648899999999996E-4,-6.4314799999999996E-4,3.4094268E-3,1.01387734E-2]
[null,null,null,null,null,null,null,null,null,null,"T28_4|IT","T28_4","IT","waver",0,0,0,0,0,0,0,0,0,0,0,0,0,0,0,0,0,1.75655675E-2,9.1744961000000003E-3,9.6432587000000007E-3,1.24016297E-2,-3.1668909999999998E-3,8.9919373000000007E-3,9.8502031999999993E-3,7.8247283999999997E-3,1.23755393E-2]
[null,null,null,null,null,null,null,null,null,null,"T28_4|NL","T28_4","NL","waver",0,0,0,0,0,0,0,0,0,0,0,0,0,0,0,0,0,1.22556626E-2,1.06218809E-2,5.5077143999999996E-3,2.4596069999999999E-3,-5.0134300000000001E-3,2.4827515999999998E-3,3.0786519999999999E-3,7.811475E-4,1.78378865E-2]
[null,null,null,null,null,null,null,null,null,null,"T28_4|PT","T28_4","PT","waver",0,0,0,0,0,0,0,0,0,0,0,0,0,0,0,0,0,-1.1198196000000001E-2,-1.6625753E-2,-1.5041552E-2,-1.8776173E-2,-9.2297119999999993E-3,-2.8594522000000001E-2,-1.6246130000000001E-2,-1.6772532999999999E-2,1.71616993E-2]
[null,null,null,null,null,null,null,null,null,null,"T28_4|SE","T28_4","SE","waver",0,0,0,0,0,0,0,0,0,0,0,0,0,0,0,0,0,2.70362026E-2,2.25152219E-2,2.2751484999999998E-2,2.0493496999999999E-2,-4.75575E-4,1.42031355E-2,1.16198034E-2,8.4965658999999992E-3,8.684476E-3]
[null,null,null,null,null,null,null,null,null,null,"T28_5|BG","T28_5","BG","waver",0,0,0,0,0,0,0,0,0,0,0,0,0,0,0,0,0,-3.5481092999999998E-2,9.1325500999999993E-3,-3.2737930000000001E-3,1.35074684E-2,-7.8096598000000003E-2,-1.660621E-2,3.1154194000000001E-3,1.46638093E-2,1.8366915099999999E-2]
[null,null,null,null,null,null,null,null,null,null,"T28_5|EE","T28_5","EE","waver",0,0,0,0,0,0,0,0,0,0,0,0,0,0,0,0,0,8.7689481E-3,3.0000097399999998E-2,2.3418338800000001E-2,2.6529607100000002E-2,5.2092847900000003E-2,3.4541584100000002E-2,2.8667556899999998E-2,2.2564850800000001E-2,6.2853274000000004E-3]
[null,null,null,null,null,null,null,null,null,null,"T28_5|EU","T28_5","EU","waver",0,0,0,0,0,0,0,0,0,0,0,0,0,0,0,0,0,1.89145348E-2,2.344007E-2,2.25144909E-2,2.2274336700000001E-2,-2.6389300000000002E-4,1.59704572E-2,1.45321268E-2,1.5265375100000001E-2,4.8645518999999998E-3]
[null,null,null,null,null,null,null,null,null,null,"T28_5|GB","T28_5","GB","waver",0,0,0,0,0,0,0,0,0,0,0,0,0,0,0,0,0,2.02085966E-2,2.9967574300000001E-2,2.9241129099999999E-2,3.0367126099999999E-2,2.6021899500000001E-2,2.2421344900000001E-2,1.62836357E-2,1.5365082400000001E-2,9.5169424399999994E-2]
[null,null,null,null,null,null,null,null,null,null,"T28_5|IS","T28_5","IS","waver",0,0,0,0,0,0,0,0,0,0,0,0,0,0,0,0,0,1.3501125100000001E-2,8.3645318999999996E-3,1.0418894499999999E-2,1.46092115E-2,2.257114E-4,5.5407312999999998E-3,8.6871819000000003E-3,8.2143644000000002E-3,3.0178518200000001E-2]
[null,null,null,null,null,null,null,null,null,null,"T28_5|MT","T28_5","MT","waver",0,0,0,0,0,0,0,0,0,0,0,0,0,0,0,0,0,-1.2793700000000001E-4,1.2723159899999999E-2,1.2234988800000001E-2,1.2357383499999999E-2,-2.8305079999999998E-3,3.5842360999999998E-3,5.0790840999999998E-3,5.3736974000000003E-3,1.53198317E-2]
[null,null,null,null,null,null,null,null,null,null,"T28_5|NL","T28_5","NL","waver",0,0,0,0,0,0,0,0,0,0,0,0,0,0,0,0,0,-3.044616E-3,6.7992130999999997E-3,1.41160086E-2,1.55810516E-2,7.7367822999999999E-3,1.1435753700000001E-2,1.47959176E-2,1.53198317E-2,1.06239861E-2]
[null,null,null,null,null,null,null,null,null,null,"T28_5|RO","T28_5","RO","waver",0,0,0,0,0,0,0,0,0,0,0,0,0,0,0,0,0,2.7489154700000001E-2,3.7244322900000001E-2,4.5367591499999999E-2,4.1709888600000002E-2,3.5202842400000003E-2,3.7123172000000003E-2,3.9147745099999999E-2,4.3175754400000002E-2,1.4039187E-2]
[null,null,null,null,null,null,null,null,null,null,"T29_1|BE","T29_1","BE","waver",0,0,0,0,0,0,0,0,0,0,0,0,0,0,0,0,0,8.0885682400000006E-2,8.2238337600000003E-2,8.1861292399999994E-2,8.1513061600000006E-2,8.0807744500000001E-2,7.7893352599999993E-2,7.6902037399999998E-2,7.6755269799999998E-2,5.8363518699999999E-2]
[null,null,null,null,null,null,null,null,null,null,"T29_1|DK","T29_1","DK","waver",0,0,0,0,0,0,0,0,0,0,0,0,0,0,0,0,0,7.7434544699999996E-2,7.68347999E-2,7.61449773E-2,7.6524388900000004E-2,7.7704992000000001E-2,7.7631673900000003E-2,7.5671345799999998E-2,7.8041526999999999E-2,5.5463696799999997E-2]
[null,null,null,null,null,null,null,null,null,null,"T29_1|EE","T29_1","EE","waver",0,0,0,0,0,0,0,0,0,0,0,0,0,0,0,0,0,6.9030461099999996E-2,6.5645574200000001E-2,6.5304753100000001E-2,6.3836086599999994E-2,5.2190177900000002E-2,5.2999759E-2,5.2102656800000001E-2,5.5463696799999997E-2,9.8011985300000007E-2]
[null,null,null,null,null,null,null,null,null,null,"T29_1|GB","T29_1","GB","waver",0,0,0,0,0,0,0,0,0,0,0,0,0,0,0,0,0,0.10190115449999999,0.10141881799999999,0.10219353289999999,0.1026163621,9.5424015599999995E-2,9.6076766199999997E-2,9.5303996099999996E-2,9.4646210999999994E-2,7.4805449699999998E-2]
[null,null,null,null,null,null,null,null,null,null,"T29_1|IE","T29_1","IE","waver",0,0,0,0,0,0,0,0,0,0,0,0,0,0,0,0,0,6.8870137999999997E-2,6.9786215499999998E-2,6.8935401199999996E-2,7.0113073200000001E-2,6.6847346700000004E-2,6.7959630399999998E-2,6.8532609600000002E-2,7.0098682400000001E-2,5.8620850600000003E-2]
[null,null,null,null,null,null,null,null,null,null,"T29_1|LV","T29_1","LV","waver",0,0,0,0,0,0,0,0,0,0,0,0,0,0,0,0,0,8.52040929E-2,8.4143870400000001E-2,8.3499040400000002E-2,8.2655497600000002E-2,7.9427525400000004E-2,8.0716840799999995E-2,8.0111435499999994E-2,0.10384140510000001,8.0044121499999996E-2]
[null,null,null,null,null,null,null,null,null,null,"T29_1|MT","T29_1","MT","waver",0,0,0,0,0,0,0,0,0,0,0,0,0,0,0,0,0,8.3340857800000001E-2,8.4326738200000001E-2,8.4193118999999997E-2,8.7733057700000006E-2,8.0680794299999997E-2,8.1241607399999999E-2,7.9509919700000001E-2,8.0044121499999996E-2,0.10440838750000001]
[null,null,null,null,null,null,null,null,null,null,"T29_1|RO","T29_1","RO","waver",0,0,0,0,0,0,0,0,0,0,0,0,0,0,0,0,0,0.1074472866,0.1105590092,0.1044839581,0.1027808576,0.1104771224,0.1056827269,9.9801452600000007E-2,9.7010021799999999E-2,8.2689207200000003E-2]
[null,null,null,null,null,null,null,null,null,null,"T29_1|SK","T29_1","SK","waver",0,0,0,0,0,0,0,0,0,0,0,0,0,0,0,0,0,9.3473380800000005E-2,9.4052193199999995E-2,9.4514551399999994E-2,9.5516562099999994E-2,8.9188784199999996E-2,8.9263116700000006E-2,8.9802789100000002E-2,8.9954423199999994E-2,7.8521025199999997E-2]
[null,null,null,null,null,null,null,null,null,null,"T29_2|DE","T29_2","DE","waver",0,0,0,0,0,0,0,0,0,0,0,0,0,0,0,0,0,0.12603493439999999,0.12135413070000001,0.117063587,0.1156172305,0.1230419147,9.7514578199999993E-2,9.7011475999999999E-2,0.1020729333,6.7778589700000003E-2]
[null,null,null,null,null,null,null,null,null,null,"T29_2|DK","T29_2","DK","waver",0,0,0,0,0,0,0,0,0,0,0,0,0,0,0,0,0,6.0662309099999999E-2,6.3053555100000006E-2,6.3943137600000005E-2,7.2296767799999995E-2,6.8769401199999997E-2,6.7079859199999994E-2,6.7024326100000003E-2,6.7778589700000003E-2,5.4360880700000003E-2]
[null,null,null,null,null,null,null,null,null,null,"T29_2|FR","T29_2","FR","waver",0,0,0,0,0,0,0,0,0,0,0,0,0,0,0,0,0,0.1195620847,0.105497464,9.9328411599999999E-2,9.8404718799999999E-2,0.11404761870000001,8.8693730600000006E-2,8.5539765300000001E-2,8.4667870100000001E-2,7.90719483E-2]
[null,null,null,null,null,null,null,null,null,null,"T29_2|IE","T29_2","IE","waver",0,0,0,0,0,0,0,0,0,0,0,0,0,0,0,0,0,8.1187147799999998E-2,8.0954955699999998E-2,7.5389023599999994E-2,8.3795060599999999E-2,7.3421862700000007E-2,6.3203903800000003E-2,6.20449499E-2,6.8225037799999999E-2,4.6834324599999998E-2]
[null,null,null,null,null,null,null,null,null,null,"T29_2|LU","T29_2","LU","waver",0,0,0,0,0,0,0,0,0,0,0,0,0,0,0,0,0,8.0722871000000002E-2,7.5144976399999994E-2,7.2110449399999998E-2,7.1595171499999999E-2,8.1245044200000005E-2,6.8892510200000007E-2,6.7818482099999994E-2,6.8400788399999995E-2,7.2771768099999995E-2]
[null,null,null,null,null,null,null,null,null,null,"T29_2|LV","T29_2","LV","waver",0,0,0,0,0,0,0,0,0,0,0,0,0,0,0,0,0,5.7719306300000002E-2,6.3997592500000006E-2,6.3495937500000002E-2,7.3273529599999998E-2,5.8837461899999999E-2,6.1566559700000002E-2,6.3994814799999994E-2,7.2771768099999995E-2,8.4436044799999999E-2]
[null,null,null,null,null,null,null,null,null,null,"T29_2|PT","T29_2","PT","waver",0,0,0,0,0,0,0,0,0,0,0,0,0,0,0,0,0,5.6656585099999997E-2,5.8299049499999998E-2,5.8375493399999999E-2,6.0611152500000001E-2,5.6041065600000002E-2,5.4880292099999999E-2,5.3962338800000002E-2,5.51145013E-2,9.0591687599999998E-2]
[null,null,null,null,null,null,null,null,null,null,"T29_3|AT","T29_3","AT","waver",0,0,0,0,0,0,0,0,0,0,0,0,0,0,0,0,0,-9.0785910000000004E-3,1.0603476999999999E-3,6.4851269999999998E-4,4.4045797999999999E-3,3.7845818999999998E-3,6.5969579000000004E-3,5.2246057999999996E-3,5.9225672000000002E-3,3.1384261999999998E-3]
[null,null,null,null,null,null,null,null,null,null,"T29_3|CY","T29_3","CY","waver",0,0,0,0,0,0,0,0,0,0,0,0,0,0,0,"n.a.","n.a.",-3.7476499999999999E-3,-1.313572E-3,1.6502900000000001E-5,3.6576352999999999E-3,2.2167322E-3,4.0950203999999997E-3,5.6027517000000002E-3,-6.6312569999999998E-3,4.3952957999999999E-3]
[null,null,null,null,null,null,null,null,null,null,"T29_3|DE","T29_3","DE","waver",0,0,0,0,0,0,0,0,0,0,0,0,0,0,0,0,0,3.8011493999999999E-3,1.8742264E-3,1.5016306000000001E-3,6.5187022000000004E-3,2.8263950999999998E-3,3.8696435E-3,4.94642E-3,1.18051567E-2,3.1139127000000002E-3]
[null,null,null,null,null,null,null,null,null,null,"T29_3|FI","T29_3","FI","waver",0,0,0,0,0,0,0,0,0,0,0,0,0,0,0,0,0,1.1657122E-3,5.4102037000000004E-3,1.1013743499999999E-2,8.6164089000000006E-3,1.0038444E-3,5.8301033999999998E-3,4.4675052000000002E-3,3.8706293000000001E-3,2.9366663999999998E-3]
[null,null,null,null,null,null,null,null,null,null,"T29_3|HU","T29_3","HU","waver",0,0,0,0,0,0,0,0,0,0,0,0,0,0,0,0,0,1.0452909E-3,2.0773519000000002E-3,6.3608750999999998E-3,5.4792375999999999E-3,3.7480420399999999E-2,2.3810514099999999E-2,1.4823367699999999E-2,6.1996650999999996E-3,1.6615318600000002E-2]
[null,null,null,null,null,null,null,null,null,null,"T29_3|LT","T29_3","LT","waver",0,0,0,0,0,0,0,0,0,0,0,0,0,0,0,0,0,2.3537251000000001E-3,-5.5209120000000002E-3,-3.3639569999999999E-3,-2.2665960000000001E-3,1.4731618E-3,4.5966299000000004E-3,6.5889560000000004E-4,6.1086460000000001E-4,8.9442899999999997E-5]
[null,null,null,null,null,null,null,null,null,null,"T29_3|LU","T29_3","LU","waver",0,0,0,0,0,0,0,0,0,0,0,0,0,0,0,0,0,-2.8979899999999998E-4,-5.9406300000000003E-4,-3.7060100000000003E-4,1.7253641000000001E-3,-1.8240509999999999E-3,-1.8306999999999999E-5,-6.2963699999999995E-4,8.9442899999999997E-5,5.5012599999999996E-4]
[null,null,null,null,null,null,null,null,null,null,"T29_3|PL","T29_3","PL","waver",0,0,0,0,0,0,0,0,0,0,0,0,0,0,0,0,0,3.5696688000000001E-3,5.0377525999999997E-3,4.6642450999999996E-3,7.6639691999999997E-3,1.4219116800000001E-2,1.4216014500000001E-2,1.5813014100000002E-2,1.6302352900000001E-2,1.6587366999999999E-2]
[null,null,null,null,null,null,null,null,null,null,"T29_3|SK","T29_3","SK","waver",0,0,0,0,0,0,0,0,0,0,0,0,0,0,0,0,0,-7.1038780000000001E-3,-3.805325E-3,-5.767136E-3,-3.3355720000000002E-3,-1.3166841E-2,-4.4003000000000002E-3,-1.3944070000000001E-3,-3.9255999999999998E-5,4.7068516499999997E-2]
[null,null,null,null,null,null,null,null,null,null,"T29_4|CZ","T29_4","CZ","waver",0,0,0,0,0,0,0,0,0,0,0,0,0,0,0,0,0,3.1193529999999999E-4,-3.4589219999999998E-6,1.7025300000000001E-3,2.5261111999999998E-3,8.0905933000000006E-3,5.1890133800000002E-2,4.5058289500000001E-2,4.5873001099999998E-2,3.3806011499999997E-2]
[null,null,null,null,null,null,null,null,null,null,"T29_4|DK","T29_4","DK","waver",0,0,0,0,0,0,0,0,0,0,0,0,0,0,0,0,0,7.8727412999999996E-3,3.4235893E-3,4.0434931999999996E-3,4.4324493000000003E-3,5.7081746199999998E-2,3.4900204900000002E-2,2.4702556300000001E-2,2.24302818E-2,2.2530748900000001E-2]
[null,null,null,null,null,null,null,null,null,null,"T29_4|EU","T29_4","EU","waver",0,0,0,0,0,0,0,0,0,0,0,0,0,0,0,0,0,2.2314325699999998E-2,2.3754981800000002E-2,2.5106298900000001E-2,2.70934026E-2,5.6627505299999999E-2,6.6460383600000006E-2,5.6021914300000003E-2,5.5103597999999997E-2,2.1985159899999999E-2]
[null,null,null,null,null,null,null,null,null,null,"T29_4|HR","T29_4","HR","waver",0,0,0,0,0,0,0,0,0,0,0,0,0,0,0,0,0,7.9645311999999996E-3,1.02530078E-2,1.08836708E-2,1.5626424600000001E-2,2.4747496000000001E-2,4.8606820500000002E-2,4.5263492900000001E-2,4.5877531999999999E-2,6.6014209800000001E-2]
[null,null,null,null,null,null,null,null,null,null,"T29_4|LT","T29_4","LT","waver",0,0,0,0,0,0,0,0,0,0,0,0,0,0,0,0,0,-4.9493610000000002E-3,5.4056434999999996E-3,6.7542108999999999E-3,7.7361740999999998E-3,1.9360119200000001E-2,2.0074228499999999E-2,1.5634149199999999E-2,1.4042189599999999E-2,1.6534724899999999E-2]
[null,null,null,null,null,null,null,null,null,null,"T29_4|LU","T29_4","LU","waver",0,0,0,0,0,0,0,0,0,0,0,0,0,0,0,0,0,5.8224486999999998E-3,6.7012965000000004E-3,7.4557050999999996E-3,8.7056075000000004E-3,1.26770498E-2,1.55234845E-2,1.6301532600000002E-2,1.6534724899999999E-2,3.2785046900000003E-2]
[null,null,null,null,null,null,null,null,null,null,"T29_4|NO","T29_4","NO","waver",0,0,0,0,0,0,0,0,0,0,0,0,0,0,0,0,0,6.8091011000000002E-3,7.1249996000000001E-3,1.05444479E-2,1.24950358E-2,6.8892418100000005E-2,5.9752313100000003E-2,4.7944450200000002E-2,4.4101966800000003E-2,4.8260514300000001E-2]
[null,null,null,null,null,null,null,null,null,null,"T29_4|SI","T29_4","SI","waver",0,0,0,0,0,0,0,0,0,0,0,0,0,0,0,0,0,-1.0511892E-2,-1.9319509999999999E-3,-1.3152731000000001E-2,-1.1101832000000001E-2,5.1219522699999999E-2,4.6530868000000003E-2,3.6976791299999999E-2,3.6434365099999998E-2,4.7759409799999999E-2]
[null,null,null,null,null,null,null,null,null,null,"T29_5|CY","T29_5","CY","waver",0,0,0,0,0,0,0,0,0,0,0,0,0,0,0,"n.a.","n.a.",-0.13965028700000001,-6.2709324999999996E-2,-4.1658845E-2,-2.7183250999999999E-2,2.0295357900000002E-2,4.8875440300000003E-2,4.0507327199999998E-2,4.4162737200000003E-2,2.59930835E-2]
[null,null,null,null,null,null,null,null,null,null,"T29_5|CZ","T29_5","CZ","waver",0,0,0,0,0,0,0,0,0,0,0,0,0,0,0,0,0,3.1201387399999999E-2,3.3368705899999997E-2,3.26030551E-2,3.2871466299999999E-2,1.87437487E-2,3.40829754E-2,2.9545839300000001E-2,2.59930835E-2,2.83403973E-2]
[null,null,null,null,null,null,null,null,null,null,"T29_5|EU","T29_5","EU","waver",0,0,0,0,0,0,0,0,0,0,0,0,0,0,0,0,0,1.26116575E-2,1.3795411699999999E-2,1.5286302599999999E-2,1.8925144299999998E-2,5.7929059E-3,3.3764175899999999E-2,2.6828342799999998E-2,2.8540397799999999E-2,1.8668589100000001E-2]
[null,null,null,null,null,null,null,null,null,null,"T29_5|GR","T29_5","GR","waver",0,0,0,0,0,0,0,0,0,0,0,0,0,0,0,0,0,2.7568944599999999E-2,2.9079574E-2,2.6790708E-2,5.4945798999999997E-2,3.6723904999999999E-3,1.6084791800000001E-2,2.62593393E-2,5.6206939400000003E-2,2.23639736E-2]
[null,null,null,null,null,null,null,null,null,null,"T29_5|IT","T29_5","IT","waver",0,0,0,0,0,0,0,0,0,0,0,0,0,0,0,0,0,9.4827864999999997E-3,-8.5872899999999992E-3,-5.0102590000000004E-3,6.3879656E-3,4.4201506600000003E-2,2.5259417199999998E-2,-2.8298870000000001E-3,4.2278226999999998E-3,3.5322883999999999E-2]
[null,null,null,null,null,null,null,null,null,null,"T29_5|LT","T29_5","LT","waver",0,0,0,0,0,0,0,0,0,0,0,0,0,0,0,0,0,2.7399103800000001E-2,2.84929934E-2,2.8368680899999998E-2,2.5759490499999999E-2,2.81709531E-2,3.6044075500000002E-2,3.6848766999999998E-2,3.5322883999999999E-2,1.4231952399999999E-2]
[null,null,null,null,null,null,null,null,null,null,"T29_5|NL","T29_5","NL","waver",0,0,0,0,0,0,0,0,0,0,0,0,0,0,0,0,0,2.5158778199999999E-2,2.7571917800000002E-2,2.92368083E-2,2.9173320900000001E-2,8.9165818999999997E-3,3.4247405000000002E-2,3.80382857E-2,3.7047007899999998E-2,1.3148348000000001E-2]
[null,null,null,null,null,null,null,null,null,null,"T29_5|SE","T29_5","SE","waver",0,0,0,0,0,0,0,0,0,0,0,0,0,0,0,0,0,3.3620024399999997E-2,2.9519261000000001E-2,2.8115851399999999E-2,2.6967871599999998E-2,1.7751379899999999E-2,2.9542878200000001E-2,2.84130467E-2,2.7436911599999999E-2,-9.7995410000000005E-2]
[null,null,null,null,null,null,null,null,null,null,"T30_1|BG","T30_1","BG","waver",0,0,0,0,0,0,0,0,0,0,0,0,0,0,0,0,0,3.2101748644999999,3.9283086205000002,3.9248588813,3.985506698,4.1611146334000004,4.4703471725000004,4.6292335617000004,4.6424424787999996,3.5944646229999999]
[null,null,null,null,null,null,null,null,null,null,"T30_1|CY","T30_1","CY","waver",0,0,0,0,0,0,0,0,0,0,0,0,0,0,0,0,0,3.6869269999999998,3.6822319999999999,3.7070500000000002,3.7260149999999999,3.6301296550000002,3.5441530640000001,3.5527456831999999,3.5944646229999999,12.570732616000001]
[null,null,null,null,null,null,null,null,null,null,"T30_1|ES","T30_1","ES","waver",0,0,0,0,0,0,0,0,0,0,0,0,0,0,0,0,0,192.72188671000001,193.86721846,197.10542842000001,197.52385219999999,191.56623264999999,192.67998470000001,192.06908297000001,199.67267855,1464.5652726999999]
[null,null,null,null,null,null,null,null,null,null,"T30_1|GR","T30_1","GR","waver",0,0,0,0,0,0,0,0,0,0,0,0,0,0,0,0,0,25.271193512,27.131133766000001,27.678100371999999,28.113808565999999,25.594278082999999,24.903980798999999,24.353918319000002,25.013754340999999,6.3028905457000004]
[null,null,null,null,null,null,null,null,null,null,"T30_1|IS","T30_1","IS","waver",0,0,0,0,0,0,0,0,0,0,0,0,0,0,0,0,0,4.1040775696000003,4.0183480634000004,4.1945687655999997,4.2165567496999996,3.7961619964,3.8552265216000001,3.7371773698999999,4.0214378013000003,171.73145568000001]
[null,null,null,null,null,null,null,null,null,null,"T30_1|IT","T30_1","IT","waver",0,0,0,0,0,0,0,0,0,0,0,0,0,0,0,0,0,149.5715802,153.35860683000001,160.69402160000001,162.02485947,163.19369821999999,168.55712414999999,169.30068890000001,171.73145568000001,1.904587]
[null,null,null,null,null,null,null,null,null,null,"T30_1|NL","T30_1","NL","waver",0,0,0,0,0,0,0,0,0,0,0,0,0,0,0,0,0,121.6594261,119.9183924,123.20231729,125.02351083000001,123.18990774,124.49370828000001,123.7380872,123.67143205000001,23.222930199]
[null,null,null,null,null,null,null,null,null,null,"T30_1|PT","T30_1","PT","waver",0,0,0,0,0,0,0,0,0,0,0,0,0,0,0,0,0,25.604823718999999,25.829113363000001,26.059019658,26.355740268000002,26.289577721000001,26.556182410000002,26.443458747000001,27.319405246999999,5.0501118091999997]
[null,null,null,null,null,null,null,null,null,null,"T30_2|BE","T30_2","BE","waver",0,0,0,0,0,0,0,0,0,0,0,0,0,0,0,0,0,0.52245162469999995,0.51768958549999999,0.52151527330000003,0.49724108150000002,0.49552371360000003,0.49710484269999999,0.49489609299999998,0.46567937339999999,0.25522845550000001]
[null,null,null,null,null,null,null,null,null,null,"T30_2|BG","T30_2","BG","waver",0,0,0,0,0,0,0,0,0,0,0,0,0,0,0,0,0,0.33831417260000002,0.27646776919999999,0.27671089970000001,0.27249811219999998,0.26100216409999999,0.2430804617,0.25632352190000002,0.25522845550000001,0.42784633579999998]
[null,null,null,null,null,null,null,null,null,null,"T30_2|EE","T30_2","EE","waver",0,0,0,0,0,0,0,0,0,0,0,0,0,0,0,0,0,0.4475044292,0.44656851120000002,8.0774974700000002E-2,7.8958710500000001E-2,7.8494501100000003E-2,7.8626684500000002E-2,7.8359867299999997E-2,7.78959278E-2,0.64637696899999997]
[null,null,null,null,null,null,null,null,null,null,"T30_2|GB","T30_2","GB","waver",0,0,0,0,0,0,0,0,0,0,0,0,0,0,0,0,0,0.2689627725,0.26900008199999997,0.27208171149999999,0.30099386979999998,0.30237389689999999,0.25032277670000003,0.24592537370000001,0.222461041,2.1779031689999999]
[null,null,null,null,null,null,null,null,null,null,"T30_2|IE","T30_2","IE","waver",0,0,0,0,0,0,0,0,0,0,0,0,0,0,0,0,0,0.40482461419999999,0.40302416899999999,0.40018524599999999,0.3718245248,0.38157336159999999,0.3818658332,0.37921028530000001,0.39288860019999999,0.41511214680000003]
[null,null,null,null,null,null,null,null,null,null,"T30_2|IS","T30_2","IS","waver",0,0,0,0,0,0,0,0,0,0,0,0,0,0,0,0,0,0.46645775369999998,0.46262028700000002,0.46482257459999998,0.45430178510000002,0.4329839546,0.44302356749999999,0.42191646599999999,0.41511214680000003,0.53583792340000003]
[null,null,null,null,null,null,null,null,null,null,"T30_2|MT","T30_2","MT","waver",0,0,0,0,0,0,0,0,0,0,0,0,0,0,0,0,0,0.57685791799999997,0.5635808215,0.57195171639999998,0.56222212490000001,0.57218448150000001,0.57367424789999999,0.57486288389999995,0.5578442388,0.34691718370000002]
[null,null,null,null,null,null,null,null,null,null,"T30_2|RO","T30_2","RO","waver",0,0,0,0,0,0,0,0,0,0,0,0,0,0,0,0,0,0.53067524269999999,0.52733362390000005,0.53747697039999998,0.4728766922,0.48835517490000002,0.47341444160000001,0.46190510880000002,0.47498593239999998,0.16746963140000001]
[null,null,null,null,null,null,null,null,null,null,"T30_2|SK","T30_2","SK","waver",0,0,0,0,0,0,0,0,0,0,0,0,0,0,0,0,0,0.27366168899999999,0.26711925409999998,0.26648880549999998,0.26906913980000002,0.2526228895,0.2439631125,0.24481110419999999,0.24072988710000001,0.60559876489999998]
[null,null,null,null,null,null,null,null,null,null,"T30_3|BE","T30_3","BE","waver",0,0,0,0,0,0,0,0,0,0,0,0,0,0,0,0,0,0.62550053319999999,0.62302523170000002,0.62415954269999996,0.63567320969999996,0.65781190229999997,0.65037928739999995,0.65103534169999999,0.64026081739999996,0.34372234559999998]
[null,null,null,null,null,null,null,null,null,null,"T30_3|DK","T30_3","DK","waver",0,0,0,0,0,0,0,0,0,0,0,0,0,0,0,0,0,0.77687477510000003,0.78064194570000001,0.78168537800000004,0.74349489530000001,0.76316055579999997,0.77040038799999999,0.77823343469999995,0.79773735960000003,0.5942886959]
[null,null,null,null,null,null,null,null,null,null,"T30_3|FR","T30_3","FR","waver",0,0,0,0,0,0,0,0,0,0,0,0,0,0,0,0,0,0.31917880110000002,0.31736896910000001,0.322200337,0.35553091619999999,0.33921406430000001,0.3342265062,0.3353823293,0.34715061739999997,0.61975521060000005]
[null,null,null,null,null,null,null,null,null,null,"T30_3|IE","T30_3","IE","waver",0,0,0,0,0,0,0,0,0,0,0,0,0,0,0,0,0,0.67245826379999996,0.67505176219999996,0.69744157610000002,0.70898524149999997,0.72826869159999996,0.69660801770000003,0.69938549530000005,0.66977564050000005,0.54687485219999998]
[null,null,null,null,null,null,null,null,null,null,"T30_3|IS","T30_3","IS","waver",0,0,0,0,0,0,0,0,0,0,0,0,0,0,0,0,0,0.50404773260000002,0.52156642509999995,0.52493344829999999,0.54886000089999998,0.52183697750000002,0.50054748959999995,0.51332623320000004,0.54687485219999998,0.31750818209999998]
[null,null,null,null,null,null,null,null,null,null,"T30_3|LV","T30_3","LV","waver",0,0,0,0,0,0,0,0,0,0,0,0,0,0,0,0,0,0.37583041490000002,0.37599236419999998,0.37774060320000002,0.3935494236,0.44982632950000001,0.44268154780000002,0.44764122499999998,0.45478102929999997,0.3672850265]
[null,null,null,null,null,null,null,null,null,null,"T30_3|PT","T30_3","PT","waver",0,0,0,0,0,0,0,0,0,0,0,0,0,0,0,0,0,0.2148897112,0.20431306120000001,0.19846939029999999,0.2181011997,0.23848229809999999,0.23592717890000001,0.2340520787,0.23355088909999999,0.34776180420000002]
[null,null,null,null,null,null,null,null,null,null,"T30_4|AT","T30_4","AT","waver",0,0,0,0,0,0,0,0,0,0,0,0,0,0,0,0,0,-0.153609316,-0.144828443,-0.15283571100000001,-0.14349009500000001,-0.172445826,-0.15832599,-0.17087794100000001,-0.16010355900000001,-3.0474983000000001E-2]
[null,null,null,null,null,null,null,null,null,null,"T30_4|BG","T30_4","BG","waver",0,0,0,0,0,0,0,0,0,0,0,0,0,0,0,0,0,5.7277262299999999E-2,4.8819560499999998E-2,4.9809939499999997E-2,5.8193392699999999E-2,4.4489591699999997E-2,4.1377176600000003E-2,4.3367383299999999E-2,4.5562463599999999E-2,2.01225233E-2]
[null,null,null,null,null,null,null,null,null,null,"T30_4|DE","T30_4","DE","waver",0,0,0,0,0,0,0,0,0,0,0,0,0,0,0,0,0,-2.3295299999999998E-3,1.8503755E-3,4.6220554999999997E-3,-5.5834999999999999E-4,-5.2849380000000003E-3,-1.5551370000000001E-3,-1.5577669000000001E-2,-2.2585424999999999E-2,1.0273289E-3]
[null,null,null,null,null,null,null,null,null,null,"T30_4|FI","T30_4","FI","waver",0,0,0,0,0,0,0,0,0,0,0,0,0,0,0,0,0,-2.3971976999999998E-2,-2.4507154999999999E-2,-2.7151255999999999E-2,-2.3206872999999999E-2,-2.6671099E-2,-2.9040331999999999E-2,-2.7102356000000001E-2,-1.4039305E-2,5.0885489999999997E-4]
[null,null,null,null,null,null,null,null,null,null,"T30_4|HU","T30_4","HU","waver",0,0,0,0,0,0,0,0,0,0,0,0,0,0,0,0,0,-2.6358659E-2,-1.6174211000000001E-2,1.8557415000000001E-2,1.08890042E-2,1.9035670000000001E-2,2.6797553599999999E-2,2.2718331299999998E-2,2.1650562299999999E-2,-5.0791769000000001E-2]
[null,null,null,null,null,null,null,null,null,null,"T30_4|IE","T30_4","IE","waver",0,0,0,0,0,0,0,0,0,0,0,0,0,0,0,0,0,-5.1092900000000003E-4,-2.6653710000000001E-3,-3.8390422E-2,-3.5393202999999998E-2,-2.9341407999999999E-2,-3.4683250999999998E-2,-4.6820384E-2,-5.0791769000000001E-2,3.6415945999999999E-3]
[null,null,null,null,null,null,null,null,null,null,"T30_4|LU","T30_4","LU","waver",0,0,0,0,0,0,0,0,0,0,0,0,0,0,0,0,0,2.2927527400000002E-2,2.37878584E-2,2.71299209E-2,2.25856498E-2,6.9295104E-3,1.1538767199999999E-2,1.19083703E-2,3.4007854400000002E-2,4.8350271E-3]
[null,null,null,null,null,null,null,null,null,null,"T30_4|PL","T30_4","PL","waver",0,0,0,0,0,0,0,0,0,0,0,0,0,0,0,0,0,1.84610326E-2,2.6690186800000001E-2,3.15696668E-2,2.7191422E-2,3.5338560900000003E-2,5.3401863899999999E-2,5.2940261799999999E-2,5.25220125E-2,-0.156459562]
[null,null,null,null,null,null,null,null,null,null,"T30_4|SK","T30_4","SK","waver",0,0,0,0,0,0,0,0,0,0,0,0,0,0,0,0,0,2.2156974900000001E-2,2.3975781299999999E-2,2.8255861E-2,2.84644384E-2,4.1594995000000003E-3,1.0122869099999999E-2,1.27550184E-2,7.1597817999999999E-3,0.1041749339]
[null,null,null,null,null,null,null,null,null,null,"T30_6|AT","T30_6","AT","waver",0,0,0,0,0,0,0,0,0,0,0,0,0,0,0,0,0,6.8806210500000006E-2,7.1045795300000006E-2,7.1465500599999995E-2,6.9515168000000002E-2,8.2426805500000005E-2,8.0110098899999996E-2,9.3733271800000004E-2,0.1041749339,5.5724902899999998E-2]
[null,null,null,null,null,null,null,null,null,null,"T30_6|DK","T30_6","DK","waver",0,0,0,0,0,0,0,0,0,0,0,0,0,0,0,0,0,0.11581536889999999,0.1164609761,0.1181518703,0.1146346878,9.44756982E-2,9.2697923000000002E-2,7.8665991000000005E-2,8.6659352300000006E-2,7.9008494999999995E-3]
[null,null,null,null,null,null,null,null,null,null,"T30_6|EU","T30_6","EU","waver",0,0,0,0,0,0,0,0,0,0,0,0,0,0,0,0,0,9.8867352800000002E-2,9.5282728400000002E-2,9.5673499699999998E-2,9.2032307699999996E-2,7.8605350199999993E-2,7.7433799400000003E-2,7.7355710199999997E-2,7.6530765400000006E-2,2.7635628200000002E-2]
[null,null,null,null,null,null,null,null,null,null,"T30_6|HR","T30_6","HR","waver",0,0,0,0,0,0,0,0,0,0,0,0,0,0,0,0,0,0,0,0,0,0,0,0,0,0]
[null,null,null,null,null,null,null,null,null,null,"T30_6|HU","T30_6","HU","waver",0,0,0,0,0,0,0,0,0,0,0,0,0,0,0,0,0,0,0,0,0,0,0,0,0,5.8878569300000003E-2]
[null,null,null,null,null,null,null,null,null,null,"T30_6|LU","T30_6","LU","waver",0,0,0,0,0,0,0,0,0,0,0,0,0,0,0,0,0,4.4102296999999999E-2,4.4103679399999998E-2,4.3589390800000002E-2,4.5882965400000003E-2,8.7440522999999992E-3,8.5434527000000007E-3,8.5580771999999999E-3,1.26063637E-2,0]
[null,null,null,null,null,null,null,null,null,null,"T30_6|NO","T30_6","NO","waver",0,0,0,0,0,0,0,0,0,0,0,0,0,0,0,0,0,8.3842476999999999E-2,9.5219267299999993E-2,9.4656535099999994E-2,0.12702040370000001,9.3296946699999994E-2,9.3344518099999996E-2,9.3470566500000005E-2,8.8586911099999999E-2,0]
[null,null,null,null,null,null,null,null,null,null,"T30_6|SI","T30_6","SI","waver",0,0,0,0,0,0,0,0,0,0,0,0,0,0,0,0,0,0,0,0,0,0,1.3255671E-3,1.6639992000000001E-3,4.8067229000000001E-3,9.4677386299999999E-2]
[null,null,null,null,null,null,null,null,null,null,"T30_6|SK","T30_6","SK","waver",0,0,0,0,0,0,0,0,0,0,0,0,0,0,0,0,0,6.7444333499999995E-2,6.5634253000000004E-2,6.5626552899999996E-2,6.6370277699999994E-2,9.9798101799999997E-2,9.6377076399999997E-2,9.6712073600000004E-2,9.4677386299999999E-2,298.79936601999998]
[null,null,null,null,null,null,null,null,null,null,"T31_1|CZ","T31_1","CZ","waver",0,0,0,0,0,0,0,0,0,0,0,0,0,0,0,0,0,53.847700154999998,54.785183191000002,54.639258124000001,53.706606763000003,53.311034560000003,52.414540248999998,51.811673472000003,53.224520837999997,1027.1328312000001]
[null,null,null,null,null,null,null,null,null,null,"T31_1|EU","T31_1","EU","waver",0,0,0,0,0,0,0,0,0,0,0,0,0,0,0,0,0,11724.72442,11668.363869000001,11874.282653,11580.939003,9002.7662070000006,8939.0686686000008,8603.3535972999998,8537.4608502999999,66.735193112999994]
[null,null,null,null,null,null,null,null,null,null,"T31_1|GR","T31_1","GR","waver",0,0,0,0,0,0,0,0,0,0,0,0,0,0,0,0,0,169.43011315999999,173.59138399,173.69915739999999,171.93023020999999,171.87822967,168.35484797000001,165.37755756999999,165.37999604000001,25.640603487]
[null,null,null,null,null,null,null,null,null,null,"T31_1|HR","T31_1","HR","waver",0,0,0,0,0,0,0,0,0,0,0,0,0,0,0,0,0,26.675652964000001,26.980309632000001,27.040574157999998,26.486278698,26.433068085999999,25.695754780000001,25.415442696,25.640603487,51.968120718000002]
[null,null,null,null,null,null,null,null,null,null,"T31_1|LT","T31_1","LT","waver",0,0,0,0,0,0,0,0,0,0,0,0,0,0,0,0,0,8.1369980000000002,8.1732169999999993,8.3954789999999999,8.2021750000000004,8.4171759999999995,8.4720019999999998,8.7217350000000007,8.9794009999999993,101.89440534000001]
[null,null,null,null,null,null,null,null,null,null,"T31_1|NO","T31_1","NO","waver",0,0,0,0,0,0,0,0,0,0,0,0,0,0,0,0,0,133.76582026,134.77352273,131.39267348000001,115.42903975999999,105.80054529,109.06106324,104.55411227,109.33225507,108.50347621]
[null,null,null,null,null,null,null,null,null,null,"T31_1|RO","T31_1","RO","waver",0,0,0,0,0,0,0,0,0,0,0,0,0,0,0,0,0,24.469195272,25.017316097999998,25.713584945000001,25.741058818999999,27.273034333999998,25.385604782000001,25.211637670000002,25.455320603000001,247.85240920000001]
[null,null,null,null,null,null,null,null,null,null,"T31_1|SI","T31_1","SI","waver",0,0,0,0,0,0,0,0,0,0,0,0,0,0,0,0,0,13.950741000000001,14.077359,14.229445,14.205534999999999,16.986882335000001,16.713106960000001,16.227178706,19.680348728999999,24.004290637]
[null,null,null,null,null,null,null,null,null,null,"RE_T11_1|CY","RE_T11_1","CY","waver",3.7412856311245299,4.4264292707983897,4.3644315914295602,4.6877907233348797,5.1527078377533,4.9332966521055797,5.14072786653806,5.1579753936960397,5.1232850726004999,4.8724226175169401,4.6285352474639803,4.2449255903314302,3.7116047453480099,3.6718847529013399,3.20200527473484,3.18035370066473,2.9753131011170102,2.8451314731504,2.7794482707746302,2.6349802012189398,2.5588778259145002,2.3995191508735201,2.2882163811823899,2.2652194421412699,1.2707768895556799,225.01389562]
[null,null,null,null,null,null,null,null,null,null,"RE_T11_1|ES","RE_T11_1","ES","waver",32.111196600375301,31.3486004581404,30.232549332322701,37.422792120986699,28.9477501491805,27.013697933493798,29.9066106327016,27.424627330729098,26.583817324443899,26.850828817089099,31.1134296068339,43.547109060161603,44.532634358393999,44.6105760096751,43.558420693062097,44.437809748203101,41.6233334985534,42.106653359364003,43.989720399417202,41.993757959116799,39.941441925049098,40.994864512719197,42.175196961397099,41.457367190350404,40.5515788695268,103.45093731]
[null,null,null,null,null,null,null,null,null,null,"RE_T11_1|FI","RE_T11_1","FI","waver",27.128850742843898,27.432077069329502,28.108636767263899,28.625918913267,28.789090515334401,26.121162271076699,38.860375250905598,39.295369999871397,40.022621478208002,40.412946599844901,41.2049298519537,41.5234574513429,40.072472691704,39.854601918713101,42.5825429672851,43.905318429047597,45.005456319617302,46.116936302160099,46.0246248208108,47.774999103203598,47.481255516871101,48.867202141935699,50.929931781648101,50.466594989269801,50.951587922885103,8.7727330289999994]
[null,null,null,null,null,null,null,null,null,null,"RE_T11_1|GR","RE_T11_1","GR","waver",4.6191369097316297,5.4332904040118697,5.5712699215732604,5.4142072175032601,5.2108893144984698,5.1599661130444501,5.2547218639434101,5.3746947006114603,5.3581911716805104,5.2998037871474803,5.3539574575694298,5.3821796151985399,5.46694462187107,5.4924990849242903,4.8997467892777697,4.5757604036946598,4.6800423769055701,4.7386449753572997,4.8309978189826097,4.64989540684277,4.6430184208626102,4.7761820104200003,4.3507811498700004,4.5777044150000004,4.3902860836800004,108.50347621]
[null,null,null,null,null,null,null,null,null,null,"RE_T11_1|IT","RE_T11_1","IT","waver",63.844516724541499,63.2213535556658,66.098188096783204,71.457583241119906,69.599019194242203,68.637063783824999,69.322515266642696,60.058095939800197,58.916016730583699,62.648032232076297,62.1150424833532,60.719719494725702,59.787992704078903,58.749579465542901,56.030482421929001,54.776586880135604,62.672035101676798,61.791453113597903,64.954662193125799,64.072483959305302,61.219100471077297,61.574550553520503,61.906516463567201,61.572571227116597,55.681474582470003,24.004290637]
[null,null,null,null,null,null,null,null,null,null,"RE_T11_1|NEU","RE_T11_1","NEU","waver",182.39215546494501,215.641628753394,198.12392326627099,202.36096455554801,201.881111104985,199.96948808980099,202.536491359309,197.391255493654,206.56454667677301,207.34275407086599,199.43627442191001,196.17539674642401,200.22921510059601,201.948768237797,209.85056035012701,218.12300260390799,216.269252090724,223.627384612242,227.03699253238,236.75998862982399,250.876005998241,132.288812244833,131.62927470225799,127.320451342659,113.399198443375]
[null,null,null,null,null,null,null,null,null,null,"RE_T11_1|RO","RE_T11_1","RO","waver",4.1690505877139596,4.5502766721055101,4.2697803839805504,4.2316837700946897,3.9372787793085502,3.95904407350901,3.8120710131845899,3.7821021034158502,3.6705953830202702,3.7051302617174602,3.4737769264752298,3.2390364228589199,2.9962067038147899,2.8693107315624098,2.5899663645870401,2.6201611300479302,2.7790238070066402,2.77972477282291,2.8064751463958899,2.7964335559835298,2.8283733297600002,3.00197605254121,3.09070489671875,3.72120905465348,3.60046867682816]
[null,null,null,null,null,null,null,null,null,null,"RE_T11_1|SK","RE_T11_1","SK","waver",3.5979258477265899,3.4724362150072801,3.2937333778795801,3.2861380881130602,3.2639534598119102,3.1644765004158102,3.3140021711628802,3.4293729486129099,3.59603167929976,3.6027016215005601,3.5828425767512302,3.6442563508863501,3.8456302385520602,3.6557386368835298,3.6778583855716702,3.71362896444858,3.9452274437991099,4.0013098107023,4.0936175506061101,4.0918431674419899,4.2311120466907601,4.2299116402296599,4.4276927136507602,4.4864924139217299,4.4891903050827402]
[null,null,null,null,null,null,null,null,null,null,"RE_T11_2|BE","RE_T11_2","BE","waver",0.147098843915141,0.14198239202096499,0.14142985397996899,0.142904478759244,0.14892132009863901,0.14998620889929201,0.14785945037363801,0.15460783228709199,0.14969343293122001,0.14508429842873799,0.14830290047488601,0.15695692428090699,0.158515486746519,0.15386191945472799,0.15374557715040699,0.160495724970244,0.157741896478441,0.158195300620351,0.157868232972632,0.15744461280390101,0.16045345944459199,0.156943196856838,0.16276674106832101,0.16920762425309199,0.16762191120085701]
[null,null,null,null,null,null,null,null,null,null,"RE_T11_2|DK","RE_T11_2","DK","waver",0.39171063096258102,0.46800471985742198,0.46338765584694802,0.47825676721807397,0.48360000473630899,0.47293187577791701,0.49359917423659599,0.50199275087937001,0.49919544508984798,0.50324539082292596,0.49351799953407299,0.49528636092464901,0.49695823541425199,0.48141956583454998,0.452560962256841,0.45998674155726399,0.46878860179469101,0.45400576889290201,0.44480442530676201,0.47516408010656003,0.47066086540257601,0.50081625204521296,0.51973004282620705,0.51416104954446495,0.48676125942621401]
[null,null,null,null,null,null,null,null,null,null,"RE_T11_2|FR","RE_T11_2","FR","waver",0.27231467790626301,0.27041427494255599,0.26379691030464297,0.29022750376276202,0.307263039729678,0.31291166071020499,0.311921592911371,0.30962486494402203,0.30682543627847297,0.309126139214356,0.31215405057095102,0.31907262384650298,0.31457447796228499,0.30935506414590402,0.315467015794275,0.31884843487652198,0.31653199011509198,0.31765227957801001,0.32192023609273301,0.32051004666753002,0.32076836927879698,0.31603006960242203,0.30043025366410397,0.306979134875563,0.30844885433414798]
[null,null,null,null,null,null,null,null,null,null,"RE_T11_2|GB","RE_T11_2","GB","waver",0.26122715766877103,0.25565196946951502,0.25702745206098399,0.26086673065287003,0.250267910198748,0.22499611522752799,0.22417182647837,0.226330157410222,0.230852620275137,0.22971047506678599,0.22605790181657201,0.21980531768077,0.22654693694747999,0.23037541651419799,0.227319160693468,0.226679879263356,0.24601366290402199,0.23343926086179001,0.239015055921972,0.24740852599618399,0.24687689576855401,0.20651963398577,0.210160617446287,0.20788823501320899,0.20780784946443301]
[null,null,null,null,null,null,null,null,null,null,"RE_T11_2|IE","RE_T11_2","IE","waver",0.31809014539365699,0.29994692202013001,0.28645985569897697,0.26232104579732002,0.27022675514891698,0.25829882645496599,0.24086739408235,0.23014923796633099,0.23420731383347099,0.24060150702701899,0.23582850026988,0.235346911320574,0.219552217051591,0.22082413593458,0.210670479254364,0.200814656819364,0.18663289429518701,0.19482949339410099,0.18079428488632099,0.17873342524973401,0.17724768978171601,0.17806590467360101,0.17239987418651501,0.18027721016353401,0.19318056264233499]
[null,null,null,null,null,null,null,null,null,null,"RE_T11_2|LV","RE_T11_2","LV","waver",0.27967154587305698,0.27624716127023802,0.27870185098247502,0.27303241340935402,0.27481622946022199,0.27606870269389799,0.26551752220990898,0.27024920979084199,0.27913338493381701,0.28022343842131198,0.27519776877267599,0.28443907095241899,0.27414214761368999,0.26809870616863601,0.25727537952794599,0.225498134489481,0.23255113592673901,0.24239637309884701,0.251289455514979,0.25496652440278,0.26805280498244999,0.27027733345680299,0.28088710187381999,0.271624481322574,0.27699584713518599]
[null,null,null,null,null,null,null,null,null,null,"RE_T11_2|PL","RE_T11_2","PL","waver",0.179805505491104,0.18580721666286701,0.189336000038728,0.184063355448046,0.193543461773697,0.181529836247526,0.18556170196114299,0.199391012268057,0.20408484103412,0.193681920909172,0.19109118553762,0.201009948940268,0.191272453722591,0.18304349361059599,0.19175882252144799,0.18595093549250499,0.18204155317364701,0.175363731498448,0.180589867220008,0.18229203999767701,0.177070785090676,0.18844088568229,0.193873662095914,0.201085670616137,0.20043422827663099]
[null,null,null,null,null,null,null,null,null,null,"RE_T11_2|PT","RE_T11_2","PT","waver",0.12681624378995601,0.1247014646928,0.121773336919696,0.12102986500910499,0.116483760181906,0.119109810320017,0.11178391736155099,0.11102459059747199,0.109207534650463,0.11307509085067501,0.109219125100652,0.106975967072699,0.11051737870487401,0.106737666362152,0.109118415197899,0.11009356435086,0.112251421637433,0.112560303273393,0.111542438904633,0.115276882305642,0.121539719105658,0.125619046652786,0.119335503457178,0.120102332631132,0.12287575240258999]
[null,null,null,null,null,null,null,null,null,null,"RE_T11_3|BE","RE_T11_3","BE","waver",1.1133345825400001,0.92244834828942901,1.0521005214786801,1.1603449779928701,1.12700206952611,1.18341838145547,1.1353335478023201,1.0801551531,0.97866798693000001,0.97082619307815499,0.89945180152000004,0.88879717982999995,0.87131999291999995,0.99091617090999995,0.97989101637999998,0.95871955116999996,0.94951713844999996,0.85098344625,0.76882930695999996,0.78760920805000001,0.79082493820999999,0.85038502167999996,0.86143763838999998,0.76874963831999998,1.0395514372500001]
[null,null,null,null,null,null,null,null,null,null,"RE_T11_3|CZ","RE_T11_3","CZ","waver",0.62146218926465102,0.43861412603427102,0.43898663437913199,0.36783057178766598,0.33304872032163402,0.32604284489350499,0.27612112583598802,0.26729982270163,0.28186460891334902,0.33837521681032801,0.23249823083691201,0.20983766607280699,0.17519968456218701,0.12897379223629701,0.118930360766344,0.117079794218811,0.10262616158401699,9.5112014055565297E-2,9.2787485330224601E-2,7.4964201453262894E-2,7.64640353921308E-2,6.0902616276366901E-2,5.9045332875456297E-2,5.5623609446432597E-2,0.12566006020415199]
[null,null,null,null,null,null,null,null,null,null,"RE_T11_3|EU","RE_T11_3","EU","waver",112.18059134278499,109.754618599685,100.778008116618,100.90824360393501,90.768021371614395,87.785009583035404,83.463250556133303,74.883754778147306,71.017088817781698,69.620462123056896,67.449560249013501,67.491289649507493,62.729658872614998,60.337715153435198,54.017156046616797,50.5848647600315,49.1765033796651,46.741212123931803,45.4735327903431,42.5226678671767,37.7067803297425,35.788275292745098,35.262901173852697,34.147671915628699,31.119037387644301]
[null,null,null,null,null,null,null,null,null,null,"RE_T11_3|FI","RE_T11_3","FI","waver",0.31240258306373198,0.30807120214932798,0.283140119999992,0.28952835171050201,0.273165625966027,0.231968858556795,0.25734647755642398,0.23118849526611801,0.20495345720976199,0.216864436588347,0.21138829132610501,0.218645926199311,0.17622657194576799,0.22377975198575301,0.24354931471570701,0.25302955206439998,0.26244458554364603,0.28581004702135498,0.315119530015046,0.348999030343149,0.36079682657623402,0.46279925589179699,0.52376640374821903,0.58320310721951296,0.75640433708086796]
[null,null,null,null,null,null,null,null,null,null,"RE_T11_3|HU","RE_T11_3","HU","waver",1.82675675109088,1.8131623086158899,1.6498872264031299,1.48960663466729,1.29599723391463,1.11976878565094,1.03691507340881,0.82125152324156603,0.48952245501984398,0.55236205834599095,0.450939889196668,0.353416065535402,0.31858433166189898,0.25578510264496201,0.242986395957805,0.19715296235647001,0.15840111803124901,0.11898662978360799,0.11662350821311,0.110522849215083,8.5813916300733997E-2,8.3304293004567501E-2,8.04917410562421E-2,7.7110287285533305E-2,7.8899109720799401E-2]
[null,null,null,null,null,null,null,null,null,null,"RE_T11_3|LT","RE_T11_3","LT","waver",0.28078884869422899,0.191456107270084,0.180962719558204,0.130681493313694,0.14500159655197201,0.148424691513901,0.14012305858405699,3.3410974969346703E-2,2.2228338525992999E-2,1.7912595908854901E-2,1.6098009144085601E-2,4.0463654938101598E-2,0.13644933226829101,0.124882640111592,0.106293040459302,6.7397966959661895E-2,6.2641817903390296E-2,8.3382765364493197E-2,4.9457690226813601E-2,4.0890033967328203E-2,4.4409795277617299E-2,4.0451598818268597E-2,4.07306133421588E-2,3.5240051457062598E-2,4.7224086466908198E-2]
[null,null,null,null,null,null,null,null,null,null,"RE_T11_3|NL","RE_T11_3","NL","waver",7.7106787932782899,8.5659129669171303,5.3367092249639603,5.5196186444658597,5.3000712452992902,4.9514636866956003,4.5210456521309004,4.0760269406124001,4.6772473759530104,4.1199208894400003,4.0186549650099996,3.61457729987234,3.6479358327529501,3.3445770403699999,2.5406561939563801,2.36361344343032,2.1201467654948098,1.8623895165647699,1.7292481474630299,1.65790153122726,1.59634130409426,1.60093413831243,1.4493298628606699,1.2926456399995201,1.34171396321579]
[null,null,null,null,null,null,null,null,null,null,"RE_T11_3|NO","RE_T11_3","NO","waver",0.80412728648106302,0.536535730149863,0.46494509005270201,0.29332229339094901,0.27795371947379299,0.30746302791675401,0.32740965203154998,0.27803500577817902,0.30056353628381,0.31415936925749099,0.314607772016742,0.36976319492246901,0.39584839517598702,0.30058995546757,0.303799947354633,0.32946961284433701,0.271392988512211,0.318713958725727,0.27638284519210199,0.22666071762109299,0.26132200590702798,0.235107821478172,0.26430706292642497,0.240022600249023,0.32049414449444502]
[null,null,null,null,null,null,null,null,null,null,"RE_T11_3|SI","RE_T11_3","SI","waver",0.25920425379000001,0.25450243101999998,0.25129974066999999,0.25821181988000003,0.23067865926,0.2725025237,0.27106721410000001,0.23599002109,0.22726795676,0.22328946519000001,0.20379033424000001,0.18696460645999999,0.18037078277999999,0.11991200562,0.10034667332,8.1247343299999997E-2,6.9388129399999998E-2,4.9063480239999999E-2,3.786831978E-2,3.6041174529999997E-2,3.5742225217392697E-2,3.6344966530003901E-2,3.9364004970773497E-2,3.2501902830486998E-2,3.1721902282526603E-2]
[null,null,null,null,null,null,null,null,null,null,"RE_T11_4|CY","RE_T11_4","CY","waver",0.47168982588757102,0.49247729320843903,0.53086961653328801,0.51107394590095301,0.46113109115064599,0.47568236298375099,0.42358468282325101,0.41156284532362097,0.38310514316141298,0.36743447587188799,0.37193684052338999,0.367737822361832,0.43324503381649299,0.42450939705631202,0.312419170413132,0.328864542487459,0.30194047055120798,0.29139998276140999,0.26705475718145599,0.26053838608605701,0.243439678507267,0.242761298507638,0.227413141178156,0.31877168213664298,0.41385100081878601]
[null,null,null,null,null,null,null,null,null,null,"RE_T11_4|EE","RE_T11_4","EE","waver",3.7745079667564102E-2,3.4260874262183098E-2,3.7327227646036701E-2,3.3484529228293598E-2,2.6815700777398099E-2,2.41146968304208E-2,1.7377664195845199E-2,1.6155497241174099E-2,1.78441025547098E-2,1.9614674233546601E-2,1.6035430121018299E-2,1.7800395865978098E-2,1.50439693693636E-2,1.7260350077668601E-2,8.2827478645146699E-3,6.4313093900657597E-3,6.4207481245641797E-3,7.0916615697155204E-3,5.2351607545073403E-3,4.8848427655196099E-3,5.0937177001610101E-3,6.0104472171084904E-3,7.4687434047988003E-3,7.4500358432427801E-3,7.34746467070685E-3]
[null,null,null,null,null,null,null,null,null,null,"RE_T11_4|ES","RE_T11_4","ES","waver",0.36247242328589002,0.365243036783719,0.33965481169112999,0.29960327006730902,0.19663078312592799,0.20125723174041901,0.170986776072546,0.17857525789690301,0.17410501026981001,0.168081861727638,0.20020579683744699,0.151213677136941,0.138665075055243,0.13114985488230599,0.127502362677645,0.112667562866008,9.7800835879994497E-2,8.7898730987710699E-2,8.0269077559351296E-2,7.8607703570953202E-2,4.8003715665312197E-2,4.7930539207011701E-2,4.32182670352496E-2,4.8261956195516299E-2,5.1539850837337399E-2]
[null,null,null,null,null,null,null,null,null,null,"RE_T11_4|GR","RE_T11_4","GR","waver",0.53805422893925903,0.50257357706601102,0.53087980376086696,0.54239435986386997,0.55617036662399999,0.57592235708216999,0.58679432331648396,0.58651357871764698,0.58622130522020599,0.575726370721375,0.568625120377517,0.57615261909190996,0.564011196365927,0.56104851945451795,0.52812956159893998,0.52092177631554204,0.48692467999361499,0.47896641230876402,0.43849683747676499,0.39717572840295901,0.38418826268174799,0.376343701468767,0.32854281926883599,0.29402948071298801,0.30664515850218699]
[null,null,null,null,null,null,null,null,null,null,"RE_T11_4|IS","RE_T11_4","IS","waver",0,0,0,0.37916531549398502,0.15141430948419299,0.17333333333333301,0.16856492027334899,0.15677965477610001,0.16894977168949801,0.169336384439359,0.18577981651376099,0.35107085343403199,2.4823088272185601E-2,2.8057913432918299E-2,2.32350819274511E-2,2.0755820761623699E-2,3.02149199608291E-2,3.2246362604575599E-2,3.0225130601931001E-2,2.5903611297176998E-2,2.9151921195829801E-2,2.6934599403408602E-2,3.3050185096180199E-2,4.3012029843070898E-2,3.7136290074768902E-2]
[null,null,null,null,null,null,null,null,null,null,"RE_T11_4|MT","RE_T11_4","MT","waver",5.1798746744409603E-2,5.6890440445220097E-2,5.35553799792515E-2,9.6704768837720806E-2,0.10609090000446,0.10177684809224299,0.11470467358958999,0.105349245104657,9.7870346691500298E-2,9.9848016537955595E-2,0.116035532382242,0.107450645713155,0.11124248067395,7.31533232167213E-2,9.3235072865201205E-2,7.3278579712899194E-2,6.9889532603865198E-2,5.5992049981861101E-2,6.2898170978977194E-2,6.5824893424281494E-2,6.9996766441117603E-2,7.6111644282703297E-2,7.3051317942077004E-2,6.9345716979699101E-2,0.10431750433659]
[null,null,null,null,null,null,null,null,null,null,"RE_T11_4|NEU","RE_T11_4","NEU","waver",3.7110697181461302E-2,3.2323065706841597E-2,3.0412070021690999E-2,2.92232441177959E-2,2.7671200435261601E-2,2.65919500331405E-2,2.5056016163538399E-2,2.2257450046316799E-2,2.2210068394804199E-2,2.0340939422414502E-2,1.8744936015590598E-2,1.7368852075692099E-2,1.6570675169276999E-2,1.6716279669076101E-2,1.65332870230794E-2,1.49190878896886E-2,1.4139209514105E-2,1.3885841278793E-2,1.41610288338386E-2,1.52376361194142E-2,1.4646705866852201E-2,1.9833726497902299E-2,2.35116501015258E-2,2.2433715111477199E-2,2.92993777840653E-2]
[null,null,null,null,null,null,null,null,null,null,"RE_T11_4|RO","RE_T11_4","RO","waver",0.43433436904414402,0.42028095647070901,0.44102588216702199,0.43265298350992698,0.43412593193617299,0.42105987476537499,0.38229283704323402,0.36028528534374299,0.34813727249440202,0.30282641316495701,0.28063898372569401,0.274725715305281,0.218113352464647,0.23247815091167801,0.19786049985284901,0.207537165350307,0.19461688532685401,0.17402105667644399,0.148728079634736,0.14479165323818399,0.115626437739341,0.10433330089159,9.91718197521127E-2,8.4627247502915406E-2,0.107498816845465]
[null,null,null,null,null,null,null,null,null,null,"RE_T12_1|BE","RE_T12_1","BE","waver",15.509444800707801,14.250912620216299,14.846472321125299,13.9330647776203,14.1094149183645,14.7433693208348,14.955379150609,15.028352752981499,16.243112877895399,15.3153053625315,15.6610543051642,15.779016384963899,15.4824480849261,16.685864398556902,18.1000569026195,17.9603284222495,17.987218452451,17.861991242531001,18.639691088206501,18.742219533554199,18.725826116009198,19.263871033165401,19.445677747520001,19.6608285792407,19.736735841079099]
[null,null,null,null,null,null,null,null,null,null,"RE_T12_1|CY","RE_T12_1","CY","waver",4.4819316628819799,6.1469362968841201,6.2867898817921599,6.1805962573457602,6.0511453103192903,5.90213221332362,5.5715942688354199,5.3640770866323901,5.1784158846260597,5.09996521239351,4.8050176294168301,4.7111067963633797,4.5076479536216798,4.3168088747817803,3.2798623063693002,3.2871078569677401,2.9764838507990499,2.8714812832502798,2.5916285019134202,2.5022840507255699,2.3004242025666999,2.1957522804499998,1.97074252842,1.9181183930000001,1.2108729122299999]
[null,null,null,null,null,null,null,null,null,null,"RE_T12_1|DK","RE_T12_1","DK","waver",2.1622738882380701,2.5759786767362498,2.5106831643263798,2.7456029121929899,2.6874269848345298,3.0321203819482898,3.1286601927583502,2.9747706874192499,2.9913166695585001,2.8843759113453702,2.8958208936338599,2.9562195168454601,2.96585796538819,3.0587166312821501,3.1883710974560899,3.26093600506388,3.36609986766747,3.4391198565107302,3.4036593628382499,3.3263417265411999,3.3590506099900401,3.2793542920269299,3.3443773432514701,3.5047192543080601,3.5686596177996699]
[null,null,null,null,null,null,null,null,null,null,"RE_T12_1|FR","RE_T12_1","FR","waver",28.354289036412201,27.688422664010599,27.842218368476999,27.350425896997699,29.645445105756199,29.375618420442901,29.556951674692101,29.466513751910401,29.8838937192209,29.722417072391298,30.380116869474399,33.964046594188602,34.172238916980099,33.990652976014402,34.946063992171901,35.332678236427398,36.591495761517898,35.898932049963904,37.600110650264099,37.881840532285104,38.5633492331513,40.345079898657801,45.5869647825131,47.873975664842298,47.616990597944898]
[null,null,null,null,null,null,null,null,null,null,"RE_T12_1|IE","RE_T12_1","IE","waver",6.4418599823330798,4.8029888244582803,5.0188632094794299,4.1347679062537601,2.1743009614489299,2.00459197287346,2.0106406917970499,2.9450706039698802,2.6017209860855299,2.28130174155543,2.32782206299078,2.3547686522468601,2.35479700920098,2.3744175603411599,2.2433359982880399,2.7117287994687298,1.9797388703668,2.1196695509638501,2.05578938014424,2.0870244953950299,1.83908406157099,1.5290597549626399,1.55282594573634,1.5103349925507401,1.3911001553589399]
[null,null,null,null,null,null,null,null,null,null,"RE_T12_1|LT","RE_T12_1","LT","waver",0.20749118590667001,0.53757004195166103,0.56779558909426897,0.59399774972113695,0.50171656513736895,0.51263129915992001,0.543970106976153,0.46512690278923602,0.47828098012074899,0.22946713740894001,0.22987859392982599,0.17874729236162601,0.25096986641143898,0.25042516272967702,0.295784783611866,0.25213890190881699,0.29981218766669798,0.41582969093511801,0.38716864902584502,0.37467374039663898,0.32770954697257998,0.35509448098436402,0.34140519538785702,0.32791760874953002,0.27552178250589499]
[null,null,null,null,null,null,null,null,null,null,"RE_T12_1|LV","RE_T12_1","LV","waver",0.271470204464894,0.26628352432346503,0.27455439253844999,0.22953749295183701,0.213669794834002,0.20174252758769301,0.201615618734347,5.4567415278630099E-2,4.6791353029782802E-2,5.0013242717817298E-2,0.154207458310164,0.16594116396335901,0.20485284176743901,0.20617462125723901,0.21991251426984801,0.187125426133988,0.15672010440328399,0.24692969124280501,0.23897081452484201,0.24678824786373399,0.22249072064403499,0.20888935919067,0.20238385595882799,0.195820104882243,0.15925435786247899]
[null,null,null,null,null,null,null,null,null,null,"RE_T12_1|PL","RE_T12_1","PL","waver",4.7693797852420898,4.9805671686316897,4.7320770437497703,4.8673532074582502,4.4874761521276403,5.3892260612940603,5.6686009414706602,4.6139755583220898,3.56448935212011,3.77420441684685,3.80838195387713,3.79351970054651,3.79571374789285,3.58290676828494,3.3959186353549899,3.6915042301159202,3.7160129052714699,3.7585053929532601,4.1977697624764199,4.2278563100638502,4.1747321403810904,4.1464466170167897,4.0710367194238497,3.9685076360172502,3.8306716372051999]
[null,null,null,null,null,null,null,null,null,null,"RE_T12_1|SK","RE_T12_1","SK","waver",0.85689255932780595,0.87663970397552404,0.90206633792271895,0.90838145269341997,0.69133397957863696,0.71796530857785401,0.754595940432917,0.77889894205035903,0.81119652033727796,0.776768456854949,0.962459284881379,1.0118395750598299,0.91341430109553001,0.92141268342611005,1.04395162877355,1.03530325594409,1.0089396990680699,1.0713771162593699,1.1156302703655001,1.1193592680014299,1.0648651322308,1.1975685468277999,1.1656806036390399,1.28425537651139,1.2473391058200001]
[null,null,null,null,null,null,null,null,null,null,"RE_T12_2|CZ","RE_T12_2","CZ","waver",4.8665115316250299E-2,5.1432872836455402E-2,5.0093937365156598E-2,5.2764131988201797E-2,4.58775818456717E-2,4.5038520628924397E-2,4.2523621269587697E-2,4.2321839806313301E-2,4.07170291932109E-2,3.9790398090554999E-2,4.08005663229178E-2,4.0300952329103301E-2,3.8652682408919697E-2,3.7222120254540803E-2,3.8988544564269499E-2,3.8409746766128301E-2,3.7939432752512298E-2,3.6638216545428301E-2,3.8549543887994198E-2,3.6820853608635198E-2,3.7309243306545101E-2,3.8279770593247997E-2,3.9309476075544698E-2,3.8850230343624899E-2,3.7079019635143498E-2]
[null,null,null,null,null,null,null,null,null,null,"RE_T12_2|DE","RE_T12_2","DE","waver",2.7544349999226499E-2,2.6884633179546199E-2,2.75052931673531E-2,2.8464067103419002E-2,2.7132391744937E-2,2.8238021561084001E-2,2.88585478932731E-2,2.87487121154117E-2,2.85522919696151E-2,2.9461537252617999E-2,2.9722163292133799E-2,2.7539194238011402E-2,2.68290078636346E-2,4.20161269607391E-2,4.9658719986194998E-2,4.98300241958635E-2,4.2304644665112003E-2,4.1346571105110003E-2,4.2212097126422703E-2,4.2752579629169403E-2,2.8032336442066499E-2,2.75170760118939E-2,2.7436289720567501E-2,2.7565359451227501E-2,2.6593494523093099E-2]
[null,null,null,null,null,null,null,null,null,null,"RE_T12_2|EU","RE_T12_2","EU","waver",7.2402569062505903E-2,7.1823493757329701E-2,7.1857191403121995E-2,7.2979781764621499E-2,7.2985019862102804E-2,7.3611314941203307E-2,7.2016492513022196E-2,6.9755943101931006E-2,6.7304170052400206E-2,6.7000540695279401E-2,6.8113749338310103E-2,6.7564866873059806E-2,6.5450425144987501E-2,6.4635352626849704E-2,6.3792624273950105E-2,6.20911409194276E-2,6.0765320584162397E-2,6.0663160615187901E-2,6.1334581064612897E-2,6.0547452718050399E-2,5.7032525259178998E-2,5.6076419584154699E-2,5.6269306070931301E-2,5.7693189484535598E-2,5.6447604656034003E-2]
[null,null,null,null,null,null,null,null,null,null,"RE_T12_2|HR","RE_T12_2","HR","waver",0.17905464909103899,0.178609314694263,0.175341719726407,0.17743080416012999,0.172542631728066,0.13765982739968499,0.13169058495775901,0.12097225463460699,0.12957463922663701,0.12165574958923001,0.11391445806216,0.11097864877571401,0.109164166986766,0.105346773593281,8.7686953919222196E-2,9.2895622175138595E-2,9.5392082788746002E-2,9.4280194732754202E-2,9.2875440303552007E-2,9.2187810427543995E-2,7.7351543723480506E-2,8.1467453059201403E-2,8.1468344597036099E-2,8.3717048544493897E-2,9.5957541259259496E-2]
[null,null,null,null,null,null,null,null,null,null,"RE_T12_2|LT","RE_T12_2","LT","waver",2.7684567261515601E-2,7.1549954287788001E-2,7.3374440028748406E-2,7.4685873628466098E-2,6.4148640366522597E-2,6.37527581777384E-2,6.4989106848869896E-2,7.4342531984372601E-2,7.5095375320621605E-2,3.6114254906743998E-2,3.44028538651035E-2,2.59037121523032E-2,2.7962646497928401E-2,2.7710544659761902E-2,3.0704360850834798E-2,2.83313475172727E-2,3.08768038834904E-2,3.4505597388407201E-2,3.52328828400666E-2,3.2751579528776303E-2,2.9643214951517099E-2,3.2243135103810702E-2,3.5566968178663103E-2,3.29646512864427E-2,2.9551960163795198E-2]
[null,null,null,null,null,null,null,null,null,null,"RE_T12_2|MT","RE_T12_2","MT","waver",8.8564577729213195E-2,8.7250636489802802E-2,8.3707519839979899E-2,4.4476658095998697E-2,3.9409387347662597E-2,3.8411986321271997E-2,3.9497046329502801E-2,4.2226452047180597E-2,4.15100706279138E-2,4.0258820230209998E-2,3.9667698993574398E-2,4.0352506621474903E-2,4.0811726859059601E-2,3.9595273500793303E-2,3.8914052966427602E-2,4.1861532221820298E-2,4.1733923788185197E-2,4.0386770315296097E-2,3.6171103526288502E-2,3.3074659678018599E-2,3.3346073381181097E-2,3.6104048960171303E-2,3.7814628133625003E-2,4.0839045389170603E-2,3.6126364483376E-2]
[null,null,null,null,null,null,null,null,null,null,"RE_T12_2|NL","RE_T12_2","NL","waver",4.1920627184742501E-2,4.3352913641865297E-2,4.5163105884040003E-2,4.6204701030747301E-2,4.5435392751471397E-2,4.4172850641256103E-2,4.2208980760025598E-2,4.3414667616475597E-2,3.8574467225734002E-2,3.91277941784023E-2,3.6966165429990198E-2,3.7063144457503597E-2,3.5484448839723397E-2,3.4629156188021301E-2,3.53598320336697E-2,3.55218507034782E-2,3.6188554043856097E-2,3.73386898383875E-2,3.8189946543012901E-2,3.3104387001159502E-2,3.0661453360599899E-2,3.2129237140261897E-2,3.2247630399108801E-2,3.23183758232179E-2,3.4395331249633503E-2]
[null,null,null,null,null,null,null,null,null,null,"RE_T12_2|SE","RE_T12_2","SE","waver",2.26274256826011E-2,2.40674666159797E-2,2.5345291958162399E-2,2.5002760177791801E-2,2.5917907303830302E-2,2.5040699861898202E-2,2.51313576914266E-2,2.7710053584350299E-2,2.84936837028931E-2,2.8798388314061101E-2,2.7955297607133799E-2,2.8418008512466099E-2,2.75918133075479E-2,2.7642526739462402E-2,2.6843913843734E-2,2.69117115337353E-2,2.6217955446609601E-2,2.6775035365392399E-2,2.53637408248585E-2,2.6027629854234902E-2,2.4620433047172301E-2,2.3639844878551201E-2,2.5696622988029699E-2,2.6655439466997201E-2,2.6595065062627599E-2]
[null,null,null,null,null,null,null,null,null,null,"RE_T12_3|BG","RE_T12_3","BG","waver",0.85265681412400196,0.89040864768085604,0.93165772943098002,0.74127663777702602,0.74449177003945899,0.64672042643198502,0.70312773242034798,0.67744383423398302,0.55215939914780798,0.49043381490773702,0.47134846034722,0.45004688004003501,0.38600573555453999,0.39445932024748298,0.295934394531088,0.26905693228027999,0.26478954023638801,0.22140116296120901,0.240685774240088,0.264024658176642,0.24243332878979801,0.25260987936137502,0.238542414813806,0.22802166780719499,0.23213539127819599]
[null,null,null,null,null,null,null,null,null,null,"RE_T12_3|CY","RE_T12_3","CY","waver",3.7689116386686701,4.9442273313665597,5.1729902871500899,5.1585163869689996,4.9893106285328104,4.8117339527557696,4.4434737184199999,4.2321708316000004,3.9785477767400002,3.7919252000000001,3.60982074,3.4789519100000001,3.44111235,3.23211738925857,2.2381116907436001,2.1974817769539499,1.9316711345370201,1.8856301336026999,1.6934827696491299,1.5789016314861499,1.37580455952185,1.30929634063,1.07717791442,1.0224172090000001,0.85543203899999998]
[null,null,null,null,null,null,null,null,null,null,"RE_T12_3|ES","RE_T12_3","ES","waver",9.2610896401118996,8.7121063501820295,8.8419621324851807,12.1200818061753,16.2000909263128,14.1387211111049,13.156969063379201,13.7378007690918,12.5778780510693,11.496762024441701,18.828985317833599,13.2503641979478,11.5132338910601,8.3407506854088496,7.4333642273716798,6.4347820684652204,5.1181206564882098,4.88738202765136,5.3829436262715804,4.7943001894639998,4.0133730144653903,3.9383756719500398,3.6571069985790299,3.56537613126426,3.3091283198557799]
[null,null,null,null,null,null,null,null,null,null,"RE_T12_3|GB","RE_T12_3","GB","waver",5.9567117398756801,7.2173153375000902,6.34465043450097,4.3604348920201801,4.8194621392687997,4.13311852595697,3.33491102699519,2.3042507345860801,2.4994062655186799,2.28427035079685,1.4224626700143701,2.0759331163372101,2.8697074539604301,2.47757721673227,1.98489745475284,2.15357919125797,1.7992091812611599,1.53024964729673,1.52294939315161,1.31456386109016,1.54446782379256,0.31565714799830402,0.28889546982441999,0.30216818204638002,0.31756602368204201]
[null,null,null,null,null,null,null,null,null,null,"RE_T12_3|IS","RE_T12_3","IS","waver",0,0,0,3.1000000000000001E-5,3.1000000000000001E-5,3.1000000000000001E-5,3.1000000000000001E-5,3.1000000000000001E-5,3.1000000000000001E-5,3.1000000000000001E-5,3.1000000000000001E-5,3.1002204963519002E-5,3.9563011025415797E-2,3.9608095530864203E-2,1.77732097568882E-2,1.9663075749805699E-2,3.0312670375375401E-2,2.4122489469090899E-2,2.3571184001411401E-2,3.8231187017024403E-2,5.17881207605385E-2,6.9156358334945101E-2,7.0660817267235804E-2,4.3041472222624298E-2,3.1843344273115498E-2]
[null,null,null,null,null,null,null,null,null,null,"RE_T12_3|IT","RE_T12_3","IT","waver",30.434268156513099,31.389596434967601,32.786264420420999,33.547836227996001,33.222191609355399,33.334862996237902,33.186952417972599,24.959041773316901,20.741143012999601,23.23826279375,22.4546714306816,22.256547350070601,21.840871716426701,21.1682893469705,17.003522509723901,16.891911036149899,19.358531284095999,19.010456418244299,20.515365969424,19.4176858532518,18.221275878673101,17.367246794829999,16.39437679109,16.192730223280002,10.67995373492]
[null,null,null,null,null,null,null,null,null,null,"RE_T12_3|NL","RE_T12_3","NL","waver",2.0135316239930701,2.0880265872677399,2.2965448748483501,2.1546018354603098,1.99026124067999,1.75664389323245,1.90126411738951,1.76503512709559,1.64096153187074,1.61324023826,1.4863125780299999,1.3971456725849101,1.2586786002677299,1.15133726087759,0.92073315314231197,0.89495208185733699,0.85246243475332295,0.79741447312000002,0.78862949402456906,0.73102102867999996,0.72751857565,0.60761129859999996,0.69924477278999997,0.66456400781000002,0.64329828544000001]
[null,null,null,null,null,null,null,null,null,null,"RE_T12_3|PT","RE_T12_3","PT","waver",6.8894224366087604,7.0060296271608999,6.9492281770055797,7.2182222075015199,6.8919939299721502,6.8157945546076704,6.9683223657929796,6.70266577803147,5.6510072950297197,5.4313275454405803,5.3203914099120801,5.1431470983196803,4.66045766906075,4.6342318770025699,4.2418681890982199,4.0397954051031304,2.93880318256311,2.7697948904891501,2.4669247833543499,2.16072155430194,1.51252797166,1.68703580417,1.6739017896799999,1.6277288867399999,1.3290907589000001]
[null,null,null,null,null,null,null,null,null,null,"RE_T12_4|AT","RE_T12_4","AT","waver",6.0863921084670099E-2,6.2565252437630198E-2,5.7618505601701397E-2,5.6715671245415898E-2,5.2218538822131302E-2,5.0016936108396401E-2,4.9326323340289302E-2,4.7981264525513101E-2,4.6268834075561302E-2,4.6178365335522303E-2,4.3580905955321998E-2,4.03327675153227E-2,3.8536418130029101E-2,4.20085570374652E-2,4.3867805817262698E-2,4.3874464741065503E-2,4.2816584027577903E-2,4.0543076668348797E-2,3.9775379068922798E-2,4.2532600429466598E-2,3.9887721452695403E-2,3.3953020177757101E-2,2.88975434622652E-2,2.89365061488485E-2,2.97832282161338E-2]
[null,null,null,null,null,null,null,null,null,null,"RE_T12_4|BE","RE_T12_4","BE","waver",6.1457536447500898E-2,6.9118825390295097E-2,6.7049070825412893E-2,6.9566916698900999E-2,6.6706125475663805E-2,6.0826615852503402E-2,5.4946795015892398E-2,5.3503941282816998E-2,4.2281172517361798E-2,4.6597464651066303E-2,4.8435877952356501E-2,4.4453898285725303E-2,4.6979493129034502E-2,4.0691374913962498E-2,3.7350620906730997E-2,3.6195915735853602E-2,3.5897910650104697E-2,3.9407538336708903E-2,3.6976688144047899E-2,3.7899264217790302E-2,3.4933155362408701E-2,3.5242239715536798E-2,3.6867038628233498E-2,3.5154891396072203E-2,4.27826359408695E-2]
[null,null,null,null,null,null,null,null,null,null,"RE_T12_4|DK","RE_T12_4","DK","waver",0.148502143032367,0.18899686821742301,0.13473498808322701,0.13023337145093999,0.110867105350752,9.2349523519736701E-2,8.6516726932486507E-2,8.2835960507513906E-2,8.7103334113072306E-2,5.89490907523691E-2,5.8909886831022301E-2,5.2039699739784798E-2,5.43763403705066E-2,5.7488552149656501E-2,4.6536669750226703E-2,4.1753204334999398E-2,3.9280812441026901E-2,3.5002481790720102E-2,3.3595111600249097E-2,3.7565110515465801E-2,3.5400079132372801E-2,3.7099049295704699E-2,3.54093820996811E-2,3.6702582528011597E-2,4.1076468051138702E-2]
[null,null,null,null,null,null,null,null,null,null,"RE_T12_4|FI","RE_T12_4","FI","waver",4.5494812515446098E-2,4.16248707138267E-2,4.14540048514642E-2,4.0538655647120399E-2,4.2778099870565703E-2,4.04712159439767E-2,3.9157971459181901E-2,3.6270216437628698E-2,3.6256129528065797E-2,3.97023315670888E-2,4.11288038946305E-2,4.1845114924708403E-2,3.3599799055137998E-2,3.4709280693055802E-2,2.9039629884919101E-2,3.2342084104214998E-2,2.9924828181622499E-2,3.2535194506233898E-2,3.5005037785398901E-2,4.3565806478435803E-2,4.7024861090169602E-2,5.1369079035173099E-2,5.3799553392558902E-2,5.24126815718053E-2,5.1211335228126299E-2]
[null,null,null,null,null,null,null,null,null,null,"RE_T12_4|HU","RE_T12_4","HU","waver",0.25260387685201302,0.22093808590022099,0.216081577986317,0.16757637454900301,0.15208050397301201,0.16912489343346801,0.16503801635338899,0.15177884768202801,9.5099116943520801E-2,8.3391712152218897E-2,0.13406475233339901,0.12689121054775199,0.111451722744071,4.7120536173360802E-2,3.2403718562854497E-2,2.9361740344481399E-2,2.7823054554956601E-2,2.2365460092151301E-2,2.1582219404265801E-2,2.1436098787330399E-2,2.0598948540372201E-2,1.84032532121414E-2,1.5566952131818799E-2,1.6497285846930301E-2,1.6368944976147101E-2]
[null,null,null,null,null,null,null,null,null,null,"RE_T12_4|IE","RE_T12_4","IE","waver",0.75232558585295595,0.75046754933240101,0.71515649581428997,0.71329167804645599,0.59448077438253499,0.58110507652430798,0.520568230658497,0.534765202933421,0.42085719062759003,0.42972938116006298,0.38758268015505998,0.37949747169993497,0.30408805439014802,0.28733402393582902,0.24140476539351499,0.194990766731756,0.21897637121519301,0.17180191306693099,0.10486952782416301,8.67168444764779E-2,7.9194688735752E-2,8.9754368495703701E-2,7.8195430992281795E-2,8.6081607247854006E-2,8.2406085075603694E-2]
[null,null,null,null,null,null,null,null,null,null,"RE_T12_4|LV","RE_T12_4","LV","waver",0.11374183505341801,0.118693584086176,0.113284992048552,0.10554997494649,0.100026701984314,9.7330023631995999E-2,9.1354441351020596E-2,3.2519588876678197E-2,3.8525286205429499E-2,7.8001887927760596E-2,1.3205212380539601E-2,2.2622170937512402E-2,9.9406467798650797E-2,9.8072776593570304E-2,7.7367285875929795E-2,6.2650364667507202E-2,2.7240651310286901E-2,2.88769376764423E-2,2.1127681436507399E-2,1.91378083682518E-2,2.5291681338840199E-2,2.8120438651550301E-2,2.94082918793429E-2,3.6617241642785799E-2,3.9536293336228899E-2]
[null,null,null,null,null,null,null,null,null,null,"RE_T12_4|NL","RE_T12_4","NL","waver",0.151456739768001,0.15021312409045701,0.16161802173052001,0.15068534009679499,0.143374668975288,0.12851814568209599,0.14305651563454899,0.130121469517052,0.13053995952915301,0.126594344584541,0.12396547120748801,0.116746311634807,0.113439498738893,0.10304722561407199,8.1009548451345004E-2,7.7851606409976501E-2,7.4740849888078401E-2,6.7494058972207699E-2,6.4562374399215597E-2,6.7796515070264601E-2,7.3816124177327996E-2,5.8395692573749498E-2,6.7819816772527894E-2,6.6268660920765804E-2,6.1749737362084799E-2]
[null,null,null,null,null,null,null,null,null,null,"RE_T12_4|SI","RE_T12_4","SI","waver",0.62078183176852197,0.66433015415028995,0.66928330721303597,0.67848623747127801,0.65996440226376396,0.61234138535601901,0.61131920961821595,0.61824684141318398,0.51667936760273303,0.50842446957026799,0.46821618268124798,0.41632826486337399,0.36952345218452098,0.34584406366225501,0.30971520618371301,0.31457642962394899,0.30672995183709501,0.27179044546974901,0.18277602820963601,0.17474486868644401,0.13655133989934701,0.128126530654909,0.125128996358635,0.113037153943608,0.11448338469177199]
[null,null,null,null,null,null,null,null,null,null,"RE_T12_4|SK","RE_T12_4","SK","waver",0.220883501331505,0.222153554879958,0.21977434519848399,0.17422150454145299,0.186841618062835,0.16944527776631799,0.15208642508033701,0.138377395600111,0.11977068944911,0.11969966198854599,9.4486725375183295E-2,9.28718476086524E-2,9.4667563832933593E-2,8.2643522377030307E-2,6.6531385233210796E-2,6.4791838878882305E-2,7.5174814954943506E-2,7.0029967940433799E-2,6.4511057084385606E-2,5.8525788061209602E-2,5.9748034380128698E-2,5.65220614463849E-2,5.8403375510203699E-2,4.1080836620178598E-2,4.1806024838545501E-2]
[null,null,null,null,null,null,null,null,null,null,"T90_1|DE","T90_1","DE","waver",null,null,null,null,null,null,null,null,null,null,null,null,null,null,null,null,null,null,null,null,null,null,16.782448547000001,9.2736979653000002,2.8043853055999999]
[null,null,null,null,null,null,null,null,null,null,"T90_1|FR","T90_1","FR","waver",null,null,null,null,null,null,null,null,null,null,null,null,null,null,null,null,null,null,null,null,null,null,249.81418149999999,131.21257681,41.437389416999999]
[null,null,null,null,null,null,null,null,null,null,"T90_1|IE","T90_1","IE","waver",null,null,null,null,null,null,null,null,null,null,null,null,null,null,null,null,null,null,null,null,null,null,15.822396274999999,8.9272307985000001,1.7993945299]
[null,null,null,null,null,null,null,null,null,null,"T90_1|IS","T90_1","IS","waver",null,null,null,null,null,null,null,null,null,null,null,null,null,null,null,null,null,null,null,null,null,null,2.3007991619000001,1.3741107548,3.4822648900000003E-2]
[null,null,null,null,null,null,null,null,null,null,"T90_1|MT","T90_1","MT","waver",null,null,null,null,null,null,null,null,null,null,null,null,null,null,null,null,null,null,null,null,null,null,1.1229889982000001,1.1382555478,0.58084428769999996]
[null,null,null,null,null,null,null,null,null,null,"T90_1|SE","T90_1","SE","waver",null,null,null,null,null,null,null,null,null,null,null,null,null,null,null,null,null,null,null,null,null,null,22.479139619000001,23.947586588,24.832031993000001]
[null,null,null,null,null,null,null,null,null,null,"T90_1|SK","T90_1","SK","waver",null,null,null,null,null,null,null,null,null,null,null,null,null,null,null,null,null,null,null,null,null,null,4.7243192606999997,4.3494818390000001,2.3366917976999999]
[null,null,null,null,null,null,null,null,null,null,"T90_2|BG","T90_2","BG","waver",null,null,null,null,null,null,null,null,null,null,null,null,null,null,null,null,null,null,null,null,null,null,0.29728474620000001,0.26904620229999998,0.2772948449]
[null,null,null,null,null,null,null,null,null,null,"T90_2|ES","T90_2","ES","waver",null,null,null,null,null,null,null,null,null,null,null,null,null,null,null,null,null,null,null,null,null,null,0.74373045069999999,0.72534384760000004,0.77435329139999998]
[null,null,null,null,null,null,null,null,null,null,"T90_2|HR","T90_2","HR","waver",null,null,null,null,null,null,null,null,null,null,null,null,null,null,null,null,null,null,null,null,null,null,0.26345653959999998,0.18475129900000001,0.10112675140000001]
[null,null,null,null,null,null,null,null,null,null,"T90_2|LT","T90_2","LT","waver",null,null,null,null,null,null,null,null,null,null,null,null,null,null,null,null,null,null,null,null,null,null,0.50228651030000004,0.54533952240000005,0.9288072154]
[null,null,null,null,null,null,null,null,null,null,"T90_2|MT","T90_2","MT","waver",null,null,null,null,null,null,null,null,null,null,null,null,null,null,null,null,null,null,null,null,null,null,0.40878494370000001,0.37957678779999998,0.24124252330000001]
[null,null,null,null,null,null,null,null,null,null,"T90_2|PL","T90_2","PL","waver",null,null,null,null,null,null,null,null,null,null,null,null,null,null,null,null,null,null,null,null,null,null,0.47715839770000001,0.39043466449999997,0.46547948420000002]
[null,null,null,null,null,null,null,null,null,null,"T90_2|SK","T90_2","SK","waver",null,null,null,null,null,null,null,null,null,null,null,null,null,null,null,null,null,null,null,null,null,null,0.64527177420000004,0.64318856820000003,0.73474941159999996]
[null,null,null,null,null,null,null,null,null,null,"T90_3|DE","T90_3","DE","waver",null,null,null,null,null,null,null,null,null,null,null,null,null,null,null,null,null,null,null,null,null,null,0.49245536369999998,0.51203988010000001,0.581171573]
[null,null,null,null,null,null,null,null,null,null,"T90_3|EE","T90_3","EE","waver",null,null,null,null,null,null,null,null,null,null,null,null,null,null,null,null,null,null,null,null,null,null,0.48442372230000003,0.42426336219999999,0.31233051410000001]
[null,null,null,null,null,null,null,null,null,null,"T90_3|FI","T90_3","FI","waver",null,null,null,null,null,null,null,null,null,null,null,null,null,null,null,null,null,null,null,null,null,null,0.26346232469999997,0.27410326070000002,2.646161E-4]
[null,null,null,null,null,null,null,null,null,null,"T90_3|IE","T90_3","IE","waver",null,null,null,null,null,null,null,null,null,null,null,null,null,null,null,null,null,null,null,null,null,null,0.5178447061,0.49954777890000002,0.6212600143]
[null,null,null,null,null,null,null,null,null,null,"T90_3|LV","T90_3","LV","waver",null,null,null,null,null,null,null,null,null,null,null,null,null,null,null,null,null,null,null,null,null,null,0.51446451800000004,0.28507125239999997,2.7272035600000001E-2]
[null,null,null,null,null,null,null,null,null,null,"T90_3|MT","T90_3","MT","waver",null,null,null,null,null,null,null,null,null,null,null,null,null,null,null,null,null,null,null,null,null,null,0.48655468639999999,0.51842857269999998,0.55571412070000004]
[null,null,null,null,null,null,null,null,null,null,"T90_3|SI","T90_3","SI","waver",null,null,null,null,null,null,null,null,null,null,null,null,null,null,null,null,null,null,null,null,null,null,0.54112043160000001,0.56308128759999998,0.72564022399999994]
[null,null,null,null,null,null,null,null,null,null,"T90_4|BE","T90_4","BE","waver",null,null,null,null,null,null,null,null,null,null,null,null,null,null,null,null,null,null,null,null,null,null,0.21174376859999999,0.32282319910000001,0.25004653269999999]
[null,null,null,null,null,null,null,null,null,null,"T90_4|EE","T90_4","EE","waver",null,null,null,null,null,null,null,null,null,null,null,null,null,null,null,null,null,null,null,null,null,null,0.236704577,0.2488342305,0.35358657919999997]
[null,null,null,null,null,null,null,null,null,null,"T90_4|ES","T90_4","ES","waver",null,null,null,null,null,null,null,null,null,null,null,null,null,null,null,null,null,null,null,null,null,null,0.159960774,0.1794506186,0.2604812433]
[null,null,null,null,null,null,null,null,null,null,"T90_4|HR","T90_4","HR","waver",null,null,null,null,null,null,null,null,null,null,null,null,null,null,null,null,null,null,null,null,null,null,0.26919321010000002,0.29543700309999998,0.31789823950000001]
[null,null,null,null,null,null,null,null,null,null,"T90_4|IT","T90_4","IT","waver",null,null,null,null,null,null,null,null,null,null,null,null,null,null,null,null,null,null,null,null,null,null,0.17732643519999999,0.22405097430000001,0.3185466582]
[null,null,null,null,null,null,null,null,null,null,"T90_4|NL","T90_4","NL","waver",null,null,null,null,null,null,null,null,null,null,null,null,null,null,null,null,null,null,null,null,null,null,0.20961154330000001,0.2912605311,0.26490001590000001]
[null,null,null,null,null,null,null,null,null,null,"T90_4|PL","T90_4","PL","waver",null,null,null,null,null,null,null,null,null,null,null,null,null,null,null,null,null,null,null,null,null,null,0.18356241609999999,0.208246771,0.33848643470000001]
[null,null,null,null,null,null,null,null,null,null,"T90_4|SK","T90_4","SK","waver",null,null,null,null,null,null,null,null,null,null,null,null,null,null,null,null,null,null,null,null,null,null,0.38583440800000002,0.43889192220000001,0.47459579909999999]
[null,null,null,null,null,null,null,null,null,null,"T90_5|BG","T90_5","BG","waver",null,null,null,null,null,null,null,null,null,null,null,null,null,null,null,null,null,null,null,null,null,null,2.8790821000000001E-2,3.4494534799999997E-2,4.63796156E-2]
[null,null,null,null,null,null,null,null,null,null,"T90_5|EU","T90_5","EU","waver",null,null,null,null,null,null,null,null,null,null,null,null,null,null,null,null,null,null,null,null,null,null,2.50585592E-2,2.92646513E-2,3.2814565900000002E-2]
[null,null,null,null,null,null,null,null,null,null,"T90_5|FI","T90_5","FI","waver",null,null,null,null,null,null,null,null,null,null,null,null,null,null,null,null,null,null,null,null,null,null,6.390588E-3,1.0229684399999999E-2,1.5255325E-3]
[null,null,null,null,null,null,null,null,null,null,"T90_5|IE","T90_5","IE","waver",null,null,null,null,null,null,null,null,null,null,null,null,null,null,null,null,null,null,null,null,null,null,9.0905302600000001E-2,7.5975404199999999E-2,6.2183572499999999E-2]
[null,null,null,null,null,null,null,null,null,null,"T90_5|LU","T90_5","LU","waver",null,null,null,null,null,null,null,null,null,null,null,null,null,null,null,null,null,null,null,null,null,null,5.42066192E-2,7.4901937599999996E-2,4.5718943999999997E-2]
[null,null,null,null,null,null,null,null,null,null,"T90_5|PT","T90_5","PT","waver",null,null,null,null,null,null,null,null,null,null,null,null,null,null,null,null,null,null,null,null,null,null,5.4161029999999999E-2,6.0486367399999998E-2,7.3391517099999998E-2]
[null,null,null,null,null,null,null,null,null,null,"T90_5|RO","T90_5","RO","waver",null,null,null,null,null,null,null,null,null,null,null,null,null,null,null,null,null,null,null,null,null,null,8.5133180000000003E-2,0.10785216979999999,0.33297885519999998]
[null,null,null,null,null,null,null,null,null,null,"T90_6|BE","T90_6","BE","waver",null,null,null,null,null,null,null,null,null,null,null,null,null,null,null,null,null,null,null,null,null,null,0.1475167211,0.15127157920000001,0.1494392054]
[null,null,null,null,null,null,null,null,null,null,"T90_6|EE","T90_6","EE","waver",null,null,null,null,null,null,null,null,null,null,null,null,null,null,null,null,null,null,null,null,null,null,0.13043415329999999,0.2246288196,0.24540003520000001]
[null,null,null,null,null,null,null,null,null,null,"T90_6|EU","T90_6","EU","waver",null,null,null,null,null,null,null,null,null,null,null,null,null,null,null,null,null,null,null,null,null,null,0.24761745969999999,0.27927309189999999,0.317353359]
[null,null,null,null,null,null,null,null,null,null,"T90_6|GR","T90_6","GR","waver",null,null,null,null,null,null,null,null,null,null,null,null,null,null,null,null,null,null,null,null,null,null,0.23814802739999999,0.2410284681,0.25550725000000002]
[null,null,null,null,null,null,null,null,null,null,"T90_6|IT","T90_6","IT","waver",null,null,null,null,null,null,null,null,null,null,null,null,null,null,null,null,null,null,null,null,null,null,0.32184248640000002,0.33350899620000002,0.36752558390000001]
[null,null,null,null,null,null,null,null,null,null,"T90_6|NL","T90_6","NL","waver",null,null,null,null,null,null,null,null,null,null,null,null,null,null,null,null,null,null,null,null,null,null,0.1224147327,0.1902224666,0.1160352313]
[null,null,null,null,null,null,null,null,null,null,"T90_6|SE","T90_6","SE","waver",null,null,null,null,null,null,null,null,null,null,null,null,null,null,null,null,null,null,null,null,null,null,0.1454799943,0.1125258208,7.02411431E-2]
[null,null,null,null,null,null,null,null,null,null,"T90_6|SI","T90_6","SI","waver",null,null,null,null,null,null,null,null,null,null,null,null,null,null,null,null,null,null,null,null,null,null,0.38291611460000002,0.4694501351,0.31373833550000002]
[null,null,null,null,null,null,null,null,null,null,"T91_1|CY","T91_1","CY","waver",null,null,null,null,null,null,null,null,null,null,null,null,null,null,null,null,null,null,null,null,null,null,0,0,0]
[null,null,null,null,null,null,null,null,null,null,"T91_1|FI","T91_1","FI","waver",null,null,null,null,null,null,null,null,null,null,null,null,null,null,null,null,null,null,null,null,null,null,5.3586579000000001E-3,3.5592634129,5.9888413299999999E-2]
[null,null,null,null,null,null,null,null,null,null,"T91_1|IE","T91_1","IE","waver",null,null,null,null,null,null,null,null,null,null,null,null,null,null,null,null,null,null,null,null,null,null,6.8522160255999998,15.232598948,21.560414626]
[null,null,null,null,null,null,null,null,null,null,"T91_1|IT","T91_1","IT","waver",null,null,null,null,null,null,null,null,null,null,null,null,null,null,null,null,null,null,null,null,null,null,10.058104738999999,31.697327291000001,58.187454727000002]
[null,null,null,null,null,null,null,null,null,null,"T91_1|LV","T91_1","LV","waver",null,null,null,null,null,null,null,null,null,null,null,null,null,null,null,null,null,null,null,null,null,null,1.57844969E-2,0.1208483026,0.24156414579999999]
[null,null,null,null,null,null,null,null,null,null,"T91_1|RO","T91_1","RO","waver",null,null,null,null,null,null,null,null,null,null,null,null,null,null,null,null,null,null,null,null,null,null,0.81981155279999995,1.4156987700999999,3.2401789983999998]
[null,null,null,null,null,null,null,null,null,null,"T91_2|BE","T91_2","BE","waver",null,null,null,null,null,null,null,null,null,null,null,null,null,null,null,null,null,null,null,null,null,null,0.73273252720000004,0.55569899739999995,0.38934254000000001]
[null,null,null,null,null,null,null,null,null,null,"T91_2|DE","T91_2","DE","waver",null,null,null,null,null,null,null,null,null,null,null,null,null,null,null,null,null,null,null,null,null,null,0.85843042619999999,0.66170527810000002,0.62321890310000005]
[null,null,null,null,null,null,null,null,null,null,"T91_2|EE","T91_2","EE","waver",null,null,null,null,null,null,null,null,null,null,null,null,null,null,null,null,null,null,null,null,null,null,0.43400265599999999,0.39125686679999999,0.47337724930000002]
[null,null,null,null,null,null,null,null,null,null,"T91_2|GR","T91_2","GR","waver",null,null,null,null,null,null,null,null,null,null,null,null,null,null,null,null,null,null,null,null,null,null,0.79931226600000005,0.67227400749999999,0.53138811429999999]
[null,null,null,null,null,null,null,null,null,null,"T91_2|IT","T91_2","IT","waver",null,null,null,null,null,null,null,null,null,null,null,null,null,null,null,null,null,null,null,null,null,null,0.34940809299999998,0.43197548470000002,0.48642505889999998]
[null,null,null,null,null,null,null,null,null,null,"T91_2|LT","T91_2","LT","waver",null,null,null,null,null,null,null,null,null,null,null,null,null,null,null,null,null,null,null,null,null,null,0.8790242586,0.50501608239999995,0.43986832129999998]
[null,null,null,null,null,null,null,null,null,null,"T91_2|PL","T91_2","PL","waver",null,null,null,null,null,null,null,null,null,null,null,null,null,null,null,null,null,null,null,null,null,null,0.31159907920000002,0.62238211070000005,0.5249728387]
[null,null,null,null,null,null,null,null,null,null,"T91_2|SI","T91_2","SI","waver",null,null,null,null,null,null,null,null,null,null,null,null,null,null,null,null,null,null,null,null,null,null,0.5393699877,0.42949832110000002,0.60615091990000003]
[null,null,null,null,null,null,null,null,null,null,"T91_3|CY","T91_3","CY","waver"]
[null,null,null,null,null,null,null,null,null,null,"T91_3|DE","T91_3","DE","waver",null,null,null,null,null,null,null,null,null,null,null,null,null,null,null,null,null,null,null,null,null,null,0.1382534866,0.33288964580000002,0.36672652169999997]
[null,null,null,null,null,null,null,null,null,null,"T91_3|EU","T91_3","EU","waver",null,null,null,null,null,null,null,null,null,null,null,null,null,null,null,null,null,null,null,null,null,null,0.2968212107,0.53536208080000003,0.5791010446]
[null,null,null,null,null,null,null,null,null,null,"T91_3|HU","T91_3","HU","waver",null,null,null,null,null,null,null,null,null,null,null,null,null,null,null,null,null,null,null,null,null,null,null,0.41721963369999998,0.4941789473]
[null,null,null,null,null,null,null,null,null,null,"T91_3|LU","T91_3","LU","waver",null,null,null,null,null,null,null,null,null,null,null,null,null,null,null,null,null,null,null,null,null,null,0.69935137449999996,0.80132940630000005,0.79942673539999998]
[null,null,null,null,null,null,null,null,null,null,"T91_3|LV","T91_3","LV","waver",null,null,null,null,null,null,null,null,null,null,null,null,null,null,null,null,null,null,null,null,null,null,0.53717295330000003,0.68750776449999995,0.54374091759999998]
[null,null,null,null,null,null,null,null,null,null,"T91_3|RO","T91_3","RO","waver",null,null,null,null,null,null,null,null,null,null,null,null,null,null,null,null,null,null,null,null,null,null,7.5503705800000001E-2,0.18957441019999999,0.4052121836]
[null,null,null,null,null,null,null,null,null,null,"T91_4|BE","T91_4","BE","waver",null,null,null,null,null,null,null,null,null,null,null,null,null,null,null,null,null,null,null,null,null,null,0.30211090070000002,0.3398878259,0.21883555399999999]
[null,null,null,null,null,null,null,null,null,null,"T91_4|DK","T91_4","DK","waver"]
[null,null,null,null,null,null,null,null,null,null,"T91_4|EE","T91_4","EE","waver",null,null,null,null,null,null,null,null,null,null,null,null,null,null,null,null,null,null,null,null,null,null,0.148622377,0.2814228775,0.233582543]
[null,null,null,null,null,null,null,null,null,null,"T91_4|GR","T91_4","GR","waver",null,null,null,null,null,null,null,null,null,null,null,null,null,null,null,null,null,null,null,null,null,null,0.38580985249999999,0.32492277330000002,0.39020458400000002]
[null,null,null,null,null,null,null,null,null,null,"T91_4|IE","T91_4","IE","waver",null,null,null,null,null,null,null,null,null,null,null,null,null,null,null,null,null,null,null,null,null,null,0.22343886299999999,0.31391679519999999,0.34933821850000002]
[null,null,null,null,null,null,null,null,null,null,"T91_4|MT","T91_4","MT","waver",null,null,null,null,null,null,null,null,null,null,null,null,null,null,null,null,null,null,null,null,null,null,0.1045002895,7.2720785299999993E-2,0.14140668540000001]
[null,null,null,null,null,null,null,null,null,null,"T91_4|NL","T91_4","NL","waver",null,null,null,null,null,null,null,null,null,null,null,null,null,null,null,null,null,null,null,null,null,null,0.1409916615,0.13506185679999999,0.25599128310000002]
[null,null,null,null,null,null,null,null,null,null,"T91_4|SI","T91_4","SI","waver",null,null,null,null,null,null,null,null,null,null,null,null,null,null,null,null,null,null,null,null,null,null,0.1154102501,0.15674588189999999,8.3001798399999993E-2]
[null,null,null,null,null,null,null,null,null,null,"T91_5|CY","T91_5","CY","waver"]
[null,null,null,null,null,null,null,null,null,null,"T91_5|ES","T91_5","ES","waver",null,null,null,null,null,null,null,null,null,null,null,null,null,null,null,null,null,null,null,null,null,null,2.8623218999999998E-2,2.7620727800000001E-2,4.2035518700000003E-2]
[null,null,null,null,null,null,null,null,null,null,"T91_5|EU","T91_5","EU","waver",null,null,null,null,null,null,null,null,null,null,null,null,null,null,null,null,null,null,null,null,null,null,3.58355531E-2,2.61866917E-2,3.9416905500000002E-2]
[null,null,null,null,null,null,null,null,null,null,"T91_5|HU","T91_5","HU","waver",null,null,null,null,null,null,null,null,null,null,null,null,null,null,null,null,null,null,null,null,null,null,null,0,0]
[null,null,null,null,null,null,null,null,null,null,"T91_5|LU","T91_5","LU","waver",null,null,null,null,null,null,null,null,null,null,null,null,null,null,null,null,null,null,null,null,null,null,1.79415432E-2,4.2201909099999997E-2,4.8149177899999999E-2]
[null,null,null,null,null,null,null,null,null,null,"T91_5|NL","T91_5","NL","waver",null,null,null,null,null,null,null,null,null,null,null,null,null,null,null,null,null,null,null,null,null,null,3.3279368300000001E-2,1.6626626799999999E-2,3.7587693399999997E-2]
[null,null,null,null,null,null,null,null,null,null,"T91_5|PT","T91_5","PT","waver",null,null,null,null,null,null,null,null,null,null,null,null,null,null,null,null,null,null,null,null,null,null,8.4866027600000005E-2,3.2679444100000003E-2,2.7997364899999998E-2]
[null,null,null,null,null,null,null,null,null,null,"T91_6|AT","T91_6","AT","waver",null,null,null,null,null,null,null,null,null,null,null,null,null,null,null,null,null,null,null,null,null,null,0.38670331540000003,0.2937551746,0.44894401010000001]
[null,null,null,null,null,null,null,null,null,null,"T91_6|DK","T91_6","DK","waver"]
[null,null,null,null,null,null,null,null,null,null,"T91_6|FR","T91_6","FR","waver",null,null,null,null,null,null,null,null,null,null,null,null,null,null,null,null,null,null,null,null,null,null,0.26465839460000001,0.26063852450000002,0.2802634852]
[null,null,null,null,null,null,null,null,null,null,"T91_6|GR","T91_6","GR","waver",null,null,null,null,null,null,null,null,null,null,null,null,null,null,null,null,null,null,null,null,null,null,0.15337470540000001,0.23033083979999999,0.2254668829]
[null,null,null,null,null,null,null,null,null,null,"T91_6|IS","T91_6","IS","waver"]
[null,null,null,null,null,null,null,null,null,null,"T91_6|MT","T91_6","MT","waver",null,null,null,null,null,null,null,null,null,null,null,null,null,null,null,null,null,null,null,null,null,null,0.49009007960000001,0.62325478300000003,0.40230237759999998]
[null,null,null,null,null,null,null,null,null,null,"T91_6|SE","T91_6","SE","waver"]
[null,null,null,null,null,null,null,null,null,null,"T91_6|SI","T91_6","SI","waver",null,null,null,null,null,null,null,null,null,null,null,null,null,null,null,null,null,null,null,null,null,null,0.37525443260000002,0.41645254069999998,0.37457998809999998]
[null,null,null,null,null,null,null,null,null,null,"T92_1|BG","T92_1","BG","waver",null,null,null,null,null,null,null,null,null,null,null,null,null,null,null,null,null,null,null,null,null,null,1.2989569499999999E-2,4.1759382300000002E-2,0.1021796707]
[null,null,null,null,null,null,null,null,null,null,"T92_1|CY","T92_1","CY","waver",null,null,null,null,null,null,null,null,null,null,null,null,null,null,null,null,null,null,null,null,null,null,0,0,0]
[null,null,null,null,null,null,null,null,null,null,"T92_1|DE","T92_1","DE","waver",null,null,null,null,null,null,null,null,null,null,null,null,null,null,null,null,null,null,null,null,null,null,4.1715970756000003,7.7858321702,9.9029126616000003]
[null,null,null,null,null,null,null,null,null,null,"T92_1|DK","T92_1","DK","waver",null,null,null,null,null,null,null,null,null,null,null,null,null,null,null,null,null,null,null,null,null,null,0.63266373269999998,0.8294790662,0.81984727420000003]
[null,null,null,null,null,null,null,null,null,null,"T92_1|EE","T92_1","EE","waver",null,null,null,null,null,null,null,null,null,null,null,null,null,null,null,null,null,null,null,null,null,null,5.948526E-3,2.1211969300000001E-2,4.1189402799999997E-2]
[null,null,null,null,null,null,null,null,null,null,"T92_1|ES","T92_1","ES","waver",null,null,null,null,null,null,null,null,null,null,null,null,null,null,null,null,null,null,null,null,null,null,73.273316101000006,92.142179186999996,102.07036134000001]
[null,null,null,null,null,null,null,null,null,null,"T92_1|EU","T92_1","EU","waver",null,null,null,null,null,null,null,null,null,null,null,null,null,null,null,null,null,null,null,null,null,null,184.4005918,288.74169834000003,342.88569558]
[null,null,null,null,null,null,null,null,null,null,"T92_1|FI","T92_1","FI","waver",null,null,null,null,null,null,null,null,null,null,null,null,null,null,null,null,null,null,null,null,null,null,0.94342255519999996,1.0849609965,0.99570066170000004]
[null,null,null,null,null,null,null,null,null,null,"T92_1|FR","T92_1","FR","waver",null,null,null,null,null,null,null,null,null,null,null,null,null,null,null,null,null,null,null,null,null,null,78.262653395000001,115.43004242000001,126.79878325999999]
[null,null,null,null,null,null,null,null,null,null,"T92_1|GR","T92_1","GR","waver",null,null,null,null,null,null,null,null,null,null,null,null,null,null,null,null,null,null,null,null,null,null,4.5034551999999999E-2,2.6781155555999998,4.5796178480999998]
[null,null,null,null,null,null,null,null,null,null,"T92_1|HR","T92_1","HR","waver",null,null,null,null,null,null,null,null,null,null,null,null,null,null,null,null,null,null,null,null,null,null,3.9254865000000003E-3,1.5969425900000001E-2,4.2617578500000003E-2]
[null,null,null,null,null,null,null,null,null,null,"T92_1|HU","T92_1","HU","waver",null,null,null,null,null,null,null,null,null,null,null,null,null,null,null,null,null,null,null,null,null,null,3.5552816000000002E-3,0.28459929249999999,0.58881629229999999]
[null,null,null,null,null,null,null,null,null,null,"T92_1|IE","T92_1","IE","waver",null,null,null,null,null,null,null,null,null,null,null,null,null,null,null,null,null,null,null,null,null,null,0.1629997467,0.37459470249999999,0.67125201769999998]
[null,null,null,null,null,null,null,null,null,null,"T92_1|IS","T92_1","IS","waver",null,null,null,null,null,null,null,null,null,null,null,null,null,null,null,null,null,null,null,null,null,null,0,3.5304334899999998E-2,7.1715179800000001E-2]
[null,null,null,null,null,null,null,null,null,null,"T92_1|IT","T92_1","IT","waver",null,null,null,null,null,null,null,null,null,null,null,null,null,null,null,null,null,null,null,null,null,null,20.41928411,56.845444512,82.123074211000002]
[null,null,null,null,null,null,null,null,null,null,"T92_1|LT","T92_1","LT","waver",null,null,null,null,null,null,null,null,null,null,null,null,null,null,null,null,null,null,null,null,null,null,3.7464170000000001E-4,5.3239999999999997E-3,8.1169999999999992E-3]
[null,null,null,null,null,null,null,null,null,null,"T92_1|LU","T92_1","LU","waver",null,null,null,null,null,null,null,null,null,null,null,null,null,null,null,null,null,null,null,null,null,null,9.2809951999999994E-3,6.0232294899999997E-2,7.8549290499999994E-2]
[null,null,null,null,null,null,null,null,null,null,"T92_1|LV","T92_1","LV","waver",null,null,null,null,null,null,null,null,null,null,null,null,null,null,null,null,null,null,null,null,null,null,7.3238399999999999E-4,1.3993930000000001E-3,5.0105369999999998E-3]
[null,null,null,null,null,null,null,null,null,null,"T92_1|MT","T92_1","MT","waver",null,null,null,null,null,null,null,null,null,null,null,null,null,null,null,null,null,null,null,null,null,null,5.0590441600000001E-2,0.1204821563,0.20820884519999999]
[null,null,null,null,null,null,null,null,null,null,"T92_1|NL","T92_1","NL","waver",null,null,null,null,null,null,null,null,null,null,null,null,null,null,null,null,null,null,null,null,null,null,1.0253058872,1.9424361226,2.6547308963999998]
[null,null,null,null,null,null,null,null,null,null,"T92_1|PL","T92_1","PL","waver",null,null,null,null,null,null,null,null,null,null,null,null,null,null,null,null,null,null,null,null,null,null,0.56592643009999999,1.3982563633,2.1984558950999999]
[null,null,null,null,null,null,null,null,null,null,"T92_1|PT","T92_1","PT","waver",null,null,null,null,null,null,null,null,null,null,null,null,null,null,null,null,null,null,null,null,null,null,4.3593307882000003,6.0222017793999996,6.8248269197000004]
[null,null,null,null,null,null,null,null,null,null,"T92_1|RO","T92_1","RO","waver",null,null,null,null,null,null,null,null,null,null,null,null,null,null,null,null,null,null,null,null,null,null,4.5870034599999998E-2,0.50362225540000005,0.86336382020000002]
[null,null,null,null,null,null,null,null,null,null,"T92_1|SE","T92_1","SE","waver",null,null,null,null,null,null,null,null,null,null,null,null,null,null,null,null,null,null,null,null,null,null,8.5609748499999999E-2,0.1037920737,0.13337376640000001]
[null,null,null,null,null,null,null,null,null,null,"T92_1|SI","T92_1","SI","waver",null,null,null,null,null,null,null,null,null,null,null,null,null,null,null,null,null,null,null,null,null,null,4.42829629E-2,5.8563999999999998E-2,0.15673358900000001]
[null,null,null,null,null,null,null,null,null,null,"T92_1|SK","T92_1","SK","waver",null,null,null,null,null,null,null,null,null,null,null,null,null,null,null,null,null,null,null,null,null,null,4.8731280699999997E-2,0.27725349129999999,0.48302283019999998]
[null,null,null,null,null,null,null,null,null,null,"T92_2|AT","T92_2","AT","waver",null,null,null,null,null,null,null,null,null,null,null,null,null,null,null,null,null,null,null,null,null,null,5.3047459999999999E-3,8.9961763000000004E-3,9.9500079999999998E-3]
[null,null,null,null,null,null,null,null,null,null,"T92_2|BE","T92_2","BE","waver",null,null,null,null,null,null,null,null,null,null,null,null,null,null,null,null,null,null,null,null,null,null,0.31381008059999999,0.31247313240000002,0.32854122899999999]
[null,null,null,null,null,null,null,null,null,null,"T92_2|BG","T92_2","BG","waver",null,null,null,null,null,null,null,null,null,null,null,null,null,null,null,null,null,null,null,null,null,null,0,0,0.13179846179999999]
[null,null,null,null,null,null,null,null,null,null,"T92_2|CY","T92_2","CY","waver"]
[null,null,null,null,null,null,null,null,null,null,"T92_2|DE","T92_2","DE","waver",null,null,null,null,null,null,null,null,null,null,null,null,null,null,null,null,null,null,null,null,null,null,1.60385054E-2,2.1504805599999999E-2,5.2018729899999998E-2]
[null,null,null,null,null,null,null,null,null,null,"T92_2|DK","T92_2","DK","waver",null,null,null,null,null,null,null,null,null,null,null,null,null,null,null,null,null,null,null,null,null,null,0,0,0]
[null,null,null,null,null,null,null,null,null,null,"T92_2|EE","T92_2","EE","waver",null,null,null,null,null,null,null,null,null,null,null,null,null,null,null,null,null,null,null,null,null,null,9.1929144500000004E-2,5.0477745099999999E-2,2.5095587999999999E-2]
[null,null,null,null,null,null,null,null,null,null,"T92_2|ES","T92_2","ES","waver",null,null,null,null,null,null,null,null,null,null,null,null,null,null,null,null,null,null,null,null,null,null,2.34177393E-2,4.2532754300000003E-2,1.6227309499999999E-2]
[null,null,null,null,null,null,null,null,null,null,"T92_2|EU","T92_2","EU","waver",null,null,null,null,null,null,null,null,null,null,null,null,null,null,null,null,null,null,null,null,null,null,2.27584763E-2,8.9237845800000007E-2,0.1959858555]
[null,null,null,null,null,null,null,null,null,null,"T92_2|FI","T92_2","FI","waver",null,null,null,null,null,null,null,null,null,null,null,null,null,null,null,null,null,null,null,null,null,null,4.1694456599999999E-2,0.136269008,3.9073794999999996E-3]
[null,null,null,null,null,null,null,null,null,null,"T92_2|FR","T92_2","FR","waver",null,null,null,null,null,null,null,null,null,null,null,null,null,null,null,null,null,null,null,null,null,null,4.5685841000000001E-3,0.1790437111,0.49898415889999997]
[null,null,null,null,null,null,null,null,null,null,"T92_2|GR","T92_2","GR","waver",null,null,null,null,null,null,null,null,null,null,null,null,null,null,null,null,null,null,null,null,null,null,0,0,3.5065699999999999E-5]
[null,null,null,null,null,null,null,null,null,null,"T92_2|HR","T92_2","HR","waver",null,null,null,null,null,null,null,null,null,null,null,null,null,null,null,null,null,null,null,null,null,null,0,0.26672433130000001,6.9189629599999997E-2]
[null,null,null,null,null,null,null,null,null,null,"T92_2|HU","T92_2","HU","waver",null,null,null,null,null,null,null,null,null,null,null,null,null,null,null,null,null,null,null,null,null,null,0,0,0]
[null,null,null,null,null,null,null,null,null,null,"T92_2|IE","T92_2","IE","waver",null,null,null,null,null,null,null,null,null,null,null,null,null,null,null,null,null,null,null,null,null,null,0,0,1.12696766E-2]
[null,null,null,null,null,null,null,null,null,null,"T92_2|IS","T92_2","IS","waver",null,null,null,null,null,null,null,null,null,null,null,null,null,null,null,null,null,null,null,null,null,null,null,0,0]
[null,null,null,null,null,null,null,null,null,null,"T92_2|IT","T92_2","IT","waver",null,null,null,null,null,null,null,null,null,null,null,null,null,null,null,null,null,null,null,null,null,null,8.8959918400000004E-2,6.834672E-3,6.8125327999999999E-3]
[null,null,null,null,null,null,null,null,null,null,"T92_2|LT","T92_2","LT","waver",null,null,null,null,null,null,null,null,null,null,null,null,null,null,null,null,null,null,null,null,null,null,0,2.3478587499999998E-2,9.6587409099999993E-2]
[null,null,null,null,null,null,null,null,null,null,"T92_2|LU","T92_2","LU","waver",null,null,null,null,null,null,null,null,null,null,null,null,null,null,null,null,null,null,null,null,null,null,0,0,4.0189893800000001E-2]
[null,null,null,null,null,null,null,null,null,null,"T92_2|LV","T92_2","LV","waver",null,null,null,null,null,null,null,null,null,null,null,null,null,null,null,null,null,null,null,null,null,null,0,0,0.25872775710000001]
[null,null,null,null,null,null,null,null,null,null,"T92_2|MT","T92_2","MT","waver",null,null,null,null,null,null,null,null,null,null,null,null,null,null,null,null,null,null,null,null,null,null,0,0,0]
[null,null,null,null,null,null,null,null,null,null,"T92_2|NL","T92_2","NL","waver",null,null,null,null,null,null,null,null,null,null,null,null,null,null,null,null,null,null,null,null,null,null,3.6687251499999997E-2,6.1151591399999997E-2,0.1121971167]
[null,null,null,null,null,null,null,null,null,null,"T92_2|PL","T92_2","PL","waver",null,null,null,null,null,null,null,null,null,null,null,null,null,null,null,null,null,null,null,null,null,null,6.3007208499999995E-2,0.1093322464,0.16611613489999999]
[null,null,null,null,null,null,null,null,null,null,"T92_2|PT","T92_2","PT","waver",null,null,null,null,null,null,null,null,null,null,null,null,null,null,null,null,null,null,null,null,null,null,1.2382149999999999E-4,1.4027533E-3,8.6324147000000004E-3]
[null,null,null,null,null,null,null,null,null,null,"T92_2|RO","T92_2","RO","waver",null,null,null,null,null,null,null,null,null,null,null,null,null,null,null,null,null,null,null,null,null,null,1.64191E-5,1.1189982E-3,5.4337335000000002E-3]
[null,null,null,null,null,null,null,null,null,null,"T92_2|SE","T92_2","SE","waver",null,null,null,null,null,null,null,null,null,null,null,null,null,null,null,null,null,null,null,null,null,null,0,0,0]
[null,null,null,null,null,null,null,null,null,null,"T92_2|SI","T92_2","SI","waver",null,null,null,null,null,null,null,null,null,null,null,null,null,null,null,null,null,null,null,null,null,null,0,0,5.4359758000000003E-3]
[null,null,null,null,null,null,null,null,null,null,"T92_2|SK","T92_2","SK","waver",null,null,null,null,null,null,null,null,null,null,null,null,null,null,null,null,null,null,null,null,null,null,0,4.1301048999999998E-3,1.8430615399999999E-2]
[null,null,null,null,null,null,null,null,null,null,"T92_3|AT","T92_3","AT","waver",null,null,null,null,null,null,null,null,null,null,null,null,null,null,null,null,null,null,null,null,null,null,6.3226113999999998E-3,9.0618087E-3,1.00434949E-2]
[null,null,null,null,null,null,null,null,null,null,"T92_3|BE","T92_3","BE","waver",null,null,null,null,null,null,null,null,null,null,null,null,null,null,null,null,null,null,null,null,null,null,0.50480192629999998,0.41115568749999998,8.13268672E-2]
[null,null,null,null,null,null,null,null,null,null,"T92_3|BG","T92_3","BG","waver",null,null,null,null,null,null,null,null,null,null,null,null,null,null,null,null,null,null,null,null,null,null,3.3064357000000002E-3,4.1886547599999997E-2,6.2744254200000002E-2]
[null,null,null,null,null,null,null,null,null,null,"T92_3|CY","T92_3","CY","waver"]
[null,null,null,null,null,null,null,null,null,null,"T92_3|DE","T92_3","DE","waver",null,null,null,null,null,null,null,null,null,null,null,null,null,null,null,null,null,null,null,null,null,null,4.6165086899999999E-2,6.1741745200000003E-2,1.6288042199999998E-2]
[null,null,null,null,null,null,null,null,null,null,"T92_3|DK","T92_3","DK","waver",null,null,null,null,null,null,null,null,null,null,null,null,null,null,null,null,null,null,null,null,null,null,0,0,0]
[null,null,null,null,null,null,null,null,null,null,"T92_3|EE","T92_3","EE","waver",null,null,null,null,null,null,null,null,null,null,null,null,null,null,null,null,null,null,null,null,null,null,0.22832362010000001,4.3984128999999999E-3,6.1517049300000001E-2]
[null,null,null,null,null,null,null,null,null,null,"T92_3|ES","T92_3","ES","waver",null,null,null,null,null,null,null,null,null,null,null,null,null,null,null,null,null,null,null,null,null,null,3.10698841E-2,5.3115481899999997E-2,1.07191388E-2]
[null,null,null,null,null,null,null,null,null,null,"T92_3|EU","T92_3","EU","waver",null,null,null,null,null,null,null,null,null,null,null,null,null,null,null,null,null,null,null,null,null,null,0.34503556130000002,0.2691271039,0.1123695565]
[null,null,null,null,null,null,null,null,null,null,"T92_3|FI","T92_3","FI","waver",null,null,null,null,null,null,null,null,null,null,null,null,null,null,null,null,null,null,null,null,null,null,0.1056389512,5.3114219000000001E-3,0.22596252250000001]
[null,null,null,null,null,null,null,null,null,null,"T92_3|FR","T92_3","FR","waver",null,null,null,null,null,null,null,null,null,null,null,null,null,null,null,null,null,null,null,null,null,null,0.7712302754,0.61176517929999996,0.27331337280000001]
[null,null,null,null,null,null,null,null,null,null,"T92_3|GR","T92_3","GR","waver",null,null,null,null,null,null,null,null,null,null,null,null,null,null,null,null,null,null,null,null,null,null,6.5998209999999996E-4,5.3594469000000002E-3,3.2716707999999998E-3]
[null,null,null,null,null,null,null,null,null,null,"T92_3|HR","T92_3","HR","waver",null,null,null,null,null,null,null,null,null,null,null,null,null,null,null,null,null,null,null,null,null,null,5.7982305499999998E-2,0.1863977899,0.2518100318]
[null,null,null,null,null,null,null,null,null,null,"T92_3|HU","T92_3","HU","waver",null,null,null,null,null,null,null,null,null,null,null,null,null,null,null,null,null,null,null,null,null,null,0,0,0]
[null,null,null,null,null,null,null,null,null,null,"T92_3|IE","T92_3","IE","waver",null,null,null,null,null,null,null,null,null,null,null,null,null,null,null,null,null,null,null,null,null,null,7.9646791000000002E-3,2.28621738E-2,7.2493005700000002E-2]
[null,null,null,null,null,null,null,null,null,null,"T92_3|IS","T92_3","IS","waver",null,null,null,null,null,null,null,null,null,null,null,null,null,null,null,null,null,null,null,null,null,null,null,0,0]
[null,null,null,null,null,null,null,null,null,null,"T92_3|IT","T92_3","IT","waver",null,null,null,null,null,null,null,null,null,null,null,null,null,null,null,null,null,null,null,null,null,null,1.12489485E-2,5.9634029000000003E-3,1.3161728399999999E-2]
[null,null,null,null,null,null,null,null,null,null,"T92_3|LT","T92_3","LT","waver",null,null,null,null,null,null,null,null,null,null,null,null,null,null,null,null,null,null,null,null,null,null,0.39953726449999999,0.42167543200000002,0.14980904270000001]
[null,null,null,null,null,null,null,null,null,null,"T92_3|LU","T92_3","LU","waver",null,null,null,null,null,null,null,null,null,null,null,null,null,null,null,null,null,null,null,null,null,null,6.8143958199999993E-2,0.14205951080000001,7.6408030200000004E-2]
[null,null,null,null,null,null,null,null,null,null,"T92_3|LV","T92_3","LV","waver",null,null,null,null,null,null,null,null,null,null,null,null,null,null,null,null,null,null,null,null,null,null,0.1545268602,0.59611202860000001,0.43427500879999997]
[null,null,null,null,null,null,null,null,null,null,"T92_3|MT","T92_3","MT","waver",null,null,null,null,null,null,null,null,null,null,null,null,null,null,null,null,null,null,null,null,null,null,0,0,0]
[null,null,null,null,null,null,null,null,null,null,"T92_3|NL","T92_3","NL","waver",null,null,null,null,null,null,null,null,null,null,null,null,null,null,null,null,null,null,null,null,null,null,3.7541114399999999E-2,0.17466344819999999,0.15849467170000001]
[null,null,null,null,null,null,null,null,null,null,"T92_3|PL","T92_3","PL","waver",null,null,null,null,null,null,null,null,null,null,null,null,null,null,null,null,null,null,null,null,null,null,0.23934928320000001,0.45228464159999998,0.35683926090000001]
[null,null,null,null,null,null,null,null,null,null,"T92_3|PT","T92_3","PT","waver",null,null,null,null,null,null,null,null,null,null,null,null,null,null,null,null,null,null,null,null,null,null,1.09760012E-2,1.65030184E-2,8.3448781999999992E-3]
[null,null,null,null,null,null,null,null,null,null,"T92_3|RO","T92_3","RO","waver",null,null,null,null,null,null,null,null,null,null,null,null,null,null,null,null,null,null,null,null,null,null,2.9386770999999998E-3,1.24706856E-2,4.4606940999999999E-3]
[null,null,null,null,null,null,null,null,null,null,"T92_3|SE","T92_3","SE","waver",null,null,null,null,null,null,null,null,null,null,null,null,null,null,null,null,null,null,null,null,null,null,0,0,0]
[null,null,null,null,null,null,null,null,null,null,"T92_3|SI","T92_3","SI","waver",null,null,null,null,null,null,null,null,null,null,null,null,null,null,null,null,null,null,null,null,null,null,0,0,2.40407945E-2]
[null,null,null,null,null,null,null,null,null,null,"T92_3|SK","T92_3","SK","waver",null,null,null,null,null,null,null,null,null,null,null,null,null,null,null,null,null,null,null,null,null,null,0.11234065510000001,3.35745925E-2,1.77643156E-2]
[null,null,null,null,null,null,null,null,null,null,"T92_4|AT","T92_4","AT","waver",null,null,null,null,null,null,null,null,null,null,null,null,null,null,null,null,null,null,null,null,null,null,0.2244763344,0.2601566381,0.230770692]
[null,null,null,null,null,null,null,null,null,null,"T92_4|BE","T92_4","BE","waver",null,null,null,null,null,null,null,null,null,null,null,null,null,null,null,null,null,null,null,null,null,null,7.8570780000000002E-4,2.66615615E-2,2.58787898E-2]
[null,null,null,null,null,null,null,null,null,null,"T92_4|BG","T92_4","BG","waver",null,null,null,null,null,null,null,null,null,null,null,null,null,null,null,null,null,null,null,null,null,null,6.4554221999999998E-3,7.16638302E-2,4.1927913400000003E-2]
[null,null,null,null,null,null,null,null,null,null,"T92_4|CY","T92_4","CY","waver"]
[null,null,null,null,null,null,null,null,null,null,"T92_4|DE","T92_4","DE","waver",null,null,null,null,null,null,null,null,null,null,null,null,null,null,null,null,null,null,null,null,null,null,0.1023934752,0.1111240803,0.1223419565]
[null,null,null,null,null,null,null,null,null,null,"T92_4|DK","T92_4","DK","waver",null,null,null,null,null,null,null,null,null,null,null,null,null,null,null,null,null,null,null,null,null,null,0,0,0]
[null,null,null,null,null,null,null,null,null,null,"T92_4|EE","T92_4","EE","waver",null,null,null,null,null,null,null,null,null,null,null,null,null,null,null,null,null,null,null,null,null,null,0.21155543260000001,0.32399858320000002,0.23043456239999999]
[null,null,null,null,null,null,null,null,null,null,"T92_4|ES","T92_4","ES","waver",null,null,null,null,null,null,null,null,null,null,null,null,null,null,null,null,null,null,null,null,null,null,6.9779310999999997E-2,3.3754068399999997E-2,5.8351123800000002E-2]
[null,null,null,null,null,null,null,null,null,null,"T92_4|EU","T92_4","EU","waver",null,null,null,null,null,null,null,null,null,null,null,null,null,null,null,null,null,null,null,null,null,null,0.1005688473,3.7189445500000001E-2,3.98750836E-2]
[null,null,null,null,null,null,null,null,null,null,"T92_4|FI","T92_4","FI","waver",null,null,null,null,null,null,null,null,null,null,null,null,null,null,null,null,null,null,null,null,null,null,0.24389241549999999,0.35490064090000001,0.1714629436]
[null,null,null,null,null,null,null,null,null,null,"T92_4|FR","T92_4","FR","waver",null,null,null,null,null,null,null,null,null,null,null,null,null,null,null,null,null,null,null,null,null,null,0.14270950569999999,2.8652670299999999E-2,2.14043724E-2]
[null,null,null,null,null,null,null,null,null,null,"T92_4|GR","T92_4","GR","waver",null,null,null,null,null,null,null,null,null,null,null,null,null,null,null,null,null,null,null,null,null,null,1.0673739599999999E-2,9.8873449999999996E-4,4.9602444000000001E-3]
[null,null,null,null,null,null,null,null,null,null,"T92_4|HR","T92_4","HR","waver",null,null,null,null,null,null,null,null,null,null,null,null,null,null,null,null,null,null,null,null,null,null,0.33597214689999999,0.1943883689,9.3227759199999996E-2]
[null,null,null,null,null,null,null,null,null,null,"T92_4|HU","T92_4","HU","waver",null,null,null,null,null,null,null,null,null,null,null,null,null,null,null,null,null,null,null,null,null,null,0,0,0]
[null,null,null,null,null,null,null,null,null,null,"T92_4|IE","T92_4","IE","waver",null,null,null,null,null,null,null,null,null,null,null,null,null,null,null,null,null,null,null,null,null,null,6.0405593100000002E-2,1.1030095E-2,8.9585389000000001E-3]
[null,null,null,null,null,null,null,null,null,null,"T92_4|IS","T92_4","IS","waver",null,null,null,null,null,null,null,null,null,null,null,null,null,null,null,null,null,null,null,null,null,null,null,0,0]
[null,null,null,null,null,null,null,null,null,null,"T92_4|IT","T92_4","IT","waver",null,null,null,null,null,null,null,null,null,null,null,null,null,null,null,null,null,null,null,null,null,null,3.8478507500000002E-2,2.7117565400000002E-2,2.1026360300000001E-2]
[null,null,null,null,null,null,null,null,null,null,"T92_4|LT","T92_4","LT","waver",null,null,null,null,null,null,null,null,null,null,null,null,null,null,null,null,null,null,null,null,null,null,0.60046273549999996,0.37509391440000001,0.42836023159999997]
[null,null,null,null,null,null,null,null,null,null,"T92_4|LU","T92_4","LU","waver",null,null,null,null,null,null,null,null,null,null,null,null,null,null,null,null,null,null,null,null,null,null,1.981695E-4,5.9166768999999999E-3,5.0950629999999995E-4]
[null,null,null,null,null,null,null,null,null,null,"T92_4|LV","T92_4","LV","waver",null,null,null,null,null,null,null,null,null,null,null,null,null,null,null,null,null,null,null,null,null,null,0.84547313980000005,0.38497834419999999,0.2867193676]
[null,null,null,null,null,null,null,null,null,null,"T92_4|MT","T92_4","MT","waver",null,null,null,null,null,null,null,null,null,null,null,null,null,null,null,null,null,null,null,null,null,null,1.958149E-4,6.6578322400000001E-2,4.0495311800000003E-2]
[null,null,null,null,null,null,null,null,null,null,"T92_4|NL","T92_4","NL","waver",null,null,null,null,null,null,null,null,null,null,null,null,null,null,null,null,null,null,null,null,null,null,0.3699608653,0.28258373790000002,0.22318902290000001]
[null,null,null,null,null,null,null,null,null,null,"T92_4|PL","T92_4","PL","waver",null,null,null,null,null,null,null,null,null,null,null,null,null,null,null,null,null,null,null,null,null,null,0.36491988609999998,0.27370609330000001,0.28875033319999999]
[null,null,null,null,null,null,null,null,null,null,"T92_4|PT","T92_4","PT","waver",null,null,null,null,null,null,null,null,null,null,null,null,null,null,null,null,null,null,null,null,null,null,7.6990126000000001E-3,8.9087083000000001E-3,1.25393689E-2]
[null,null,null,null,null,null,null,null,null,null,"T92_4|RO","T92_4","RO","waver",null,null,null,null,null,null,null,null,null,null,null,null,null,null,null,null,null,null,null,null,null,null,1.9253312500000001E-2,1.22213653E-2,1.16874827E-2]
[null,null,null,null,null,null,null,null,null,null,"T92_4|SE","T92_4","SE","waver",null,null,null,null,null,null,null,null,null,null,null,null,null,null,null,null,null,null,null,null,null,null,0,0,0]
[null,null,null,null,null,null,null,null,null,null,"T92_4|SI","T92_4","SI","waver",null,null,null,null,null,null,null,null,null,null,null,null,null,null,null,null,null,null,null,null,null,null,6.8231785099999998E-2,8.4693668499999999E-2,0.13951448529999999]
[null,null,null,null,null,null,null,null,null,null,"T92_4|SK","T92_4","SK","waver",null,null,null,null,null,null,null,null,null,null,null,null,null,null,null,null,null,null,null,null,null,null,2.3195409300000001E-2,1.48725413E-2,6.2873922999999998E-3]
[null,null,null,null,null,null,null,null,null,null,"T92_5|AT","T92_5","AT","waver",null,null,null,null,null,null,null,null,null,null,null,null,null,null,null,null,null,null,null,null,null,null,0.62467152609999999,0.5489959445,0.54474780820000002]
[null,null,null,null,null,null,null,null,null,null,"T92_5|BE","T92_5","BE","waver",null,null,null,null,null,null,null,null,null,null,null,null,null,null,null,null,null,null,null,null,null,null,0.15597581250000001,0.21356390010000001,0.17363053819999999]
[null,null,null,null,null,null,null,null,null,null,"T92_5|BG","T92_5","BG","waver",null,null,null,null,null,null,null,null,null,null,null,null,null,null,null,null,null,null,null,null,null,null,0.99023814210000005,0.88644962230000002,0.76352937060000003]
[null,null,null,null,null,null,null,null,null,null,"T92_5|CY","T92_5","CY","waver"]
[null,null,null,null,null,null,null,null,null,null,"T92_5|DE","T92_5","DE","waver",null,null,null,null,null,null,null,null,null,null,null,null,null,null,null,null,null,null,null,null,null,null,0.66657263089999996,0.46770474950000002,0.43454094669999999]
[null,null,null,null,null,null,null,null,null,null,"T92_5|DK","T92_5","DK","waver",null,null,null,null,null,null,null,null,null,null,null,null,null,null,null,null,null,null,null,null,null,null,0,0,0]
[null,null,null,null,null,null,null,null,null,null,"T92_5|EE","T92_5","EE","waver",null,null,null,null,null,null,null,null,null,null,null,null,null,null,null,null,null,null,null,null,null,null,0.39254381910000002,0.52669008530000005,0.54981246240000003]
[null,null,null,null,null,null,null,null,null,null,"T92_5|ES","T92_5","ES","waver",null,null,null,null,null,null,null,null,null,null,null,null,null,null,null,null,null,null,null,null,null,null,0.86575415089999996,0.85977751690000004,0.90261999510000002]
[null,null,null,null,null,null,null,null,null,null,"T92_5|EU","T92_5","EU","waver",null,null,null,null,null,null,null,null,null,null,null,null,null,null,null,null,null,null,null,null,null,null,0.43804609020000002,0.38089028920000001,0.38604251429999997]
[null,null,null,null,null,null,null,null,null,null,"T92_5|FI","T92_5","FI","waver",null,null,null,null,null,null,null,null,null,null,null,null,null,null,null,null,null,null,null,null,null,null,0.54947449449999997,0.35862042989999998,0.42774308519999998]
[null,null,null,null,null,null,null,null,null,null,"T92_5|FR","T92_5","FR","waver",null,null,null,null,null,null,null,null,null,null,null,null,null,null,null,null,null,null,null,null,null,null,8.1491634800000004E-2,3.8593588900000003E-2,3.85539009E-2]
[null,null,null,null,null,null,null,null,null,null,"T92_5|GR","T92_5","GR","waver",null,null,null,null,null,null,null,null,null,null,null,null,null,null,null,null,null,null,null,null,null,null,0.98866627829999998,0.99365181849999995,0.99173301889999999]
[null,null,null,null,null,null,null,null,null,null,"T92_5|HR","T92_5","HR","waver",null,null,null,null,null,null,null,null,null,null,null,null,null,null,null,null,null,null,null,null,null,null,0.43994551469999998,0.2345288744,0.33459614119999997]
[null,null,null,null,null,null,null,null,null,null,"T92_5|HU","T92_5","HU","waver",null,null,null,null,null,null,null,null,null,null,null,null,null,null,null,null,null,null,null,null,null,null,0,0,0]
[null,null,null,null,null,null,null,null,null,null,"T92_5|IE","T92_5","IE","waver",null,null,null,null,null,null,null,null,null,null,null,null,null,null,null,null,null,null,null,null,null,null,0.1204691598,0.28175092550000003,0.28022328219999998]
[null,null,null,null,null,null,null,null,null,null,"T92_5|IS","T92_5","IS","waver",null,null,null,null,null,null,null,null,null,null,null,null,null,null,null,null,null,null,null,null,null,null,null,0,0]
[null,null,null,null,null,null,null,null,null,null,"T92_5|IT","T92_5","IT","waver",null,null,null,null,null,null,null,null,null,null,null,null,null,null,null,null,null,null,null,null,null,null,0.23322133640000001,0.26205907880000001,0.24156769119999999]
[null,null,null,null,null,null,null,null,null,null,"T92_5|LT","T92_5","LT","waver",null,null,null,null,null,null,null,null,null,null,null,null,null,null,null,null,null,null,null,null,null,null,0,0.1797520661,0.32314894669999999]
[null,null,null,null,null,null,null,null,null,null,"T92_5|LU","T92_5","LU","waver",null,null,null,null,null,null,null,null,null,null,null,null,null,null,null,null,null,null,null,null,null,null,0.237627808,0.2243550044,0.28776975669999999]
[null,null,null,null,null,null,null,null,null,null,"T92_5|LV","T92_5","LV","waver",null,null,null,null,null,null,null,null,null,null,null,null,null,null,null,null,null,null,null,null,null,null,0,1.8909627200000001E-2,1.43002636E-2]
[null,null,null,null,null,null,null,null,null,null,"T92_5|MT","T92_5","MT","waver",null,null,null,null,null,null,null,null,null,null,null,null,null,null,null,null,null,null,null,null,null,null,0.20769899989999999,0.21981666280000001,0.2294600091]
[null,null,null,null,null,null,null,null,null,null,"T92_5|NL","T92_5","NL","waver",null,null,null,null,null,null,null,null,null,null,null,null,null,null,null,null,null,null,null,null,null,null,0.5422883678,0.3662702229,0.37771844900000001]
[null,null,null,null,null,null,null,null,null,null,"T92_5|PL","T92_5","PL","waver",null,null,null,null,null,null,null,null,null,null,null,null,null,null,null,null,null,null,null,null,null,null,0.32924271729999999,0.16467701870000001,0.17637078950000001]
[null,null,null,null,null,null,null,null,null,null,"T92_5|PT","T92_5","PT","waver",null,null,null,null,null,null,null,null,null,null,null,null,null,null,null,null,null,null,null,null,null,null,0.50877036470000003,0.51557111680000001,0.5217154048]
[null,null,null,null,null,null,null,null,null,null,"T92_5|RO","T92_5","RO","waver",null,null,null,null,null,null,null,null,null,null,null,null,null,null,null,null,null,null,null,null,null,null,0.97779159120000003,0.9586450903,0.95451266540000002]
[null,null,null,null,null,null,null,null,null,null,"T92_5|SE","T92_5","SE","waver",null,null,null,null,null,null,null,null,null,null,null,null,null,null,null,null,null,null,null,null,null,null,0,0,0]
[null,null,null,null,null,null,null,null,null,null,"T92_5|SI","T92_5","SI","waver",null,null,null,null,null,null,null,null,null,null,null,null,null,null,null,null,null,null,null,null,null,null,0.92671128859999996,0.91163513419999997,0.82859062839999997]
[null,null,null,null,null,null,null,null,null,null,"T92_5|SK","T92_5","SK","waver",null,null,null,null,null,null,null,null,null,null,null,null,null,null,null,null,null,null,null,null,null,null,0.86446395610000004,0.52234018270000004,0.45082046390000002]
[null,null,null,null,null,null,null,null,null,null,"T93_1|AT","T93_1","AT","waver",null,null,null,null,null,null,null,null,null,null,null,null,null,null,null,null,null,null,null,null,null,null,0.70989234810000001,0.71825271999999996,0.73896230009999997]
[null,null,null,null,null,null,null,null,null,null,"T93_1|BE","T93_1","BE","waver",null,null,null,null,null,null,null,null,null,null,null,null,null,null,null,null,null,null,null,null,null,null,0.18487072069999999,0.29252725709999999,0.53560553259999999]
[null,null,null,null,null,null,null,null,null,null,"T93_1|BG","T93_1","BG","waver",null,null,null,null,null,null,null,null,null,null,null,null,null,null,null,null,null,null,null,null,null,null,0.95363117500000005,0.92850758509999998,0.90164779350000002]
[null,null,null,null,null,null,null,null,null,null,"T93_1|CY","T93_1","CY","waver"]
[null,null,null,null,null,null,null,null,null,null,"T93_1|DE","T93_1","DE","waver",null,null,null,null,null,null,null,null,null,null,null,null,null,null,null,null,null,null,null,null,null,null,0.85778066159999999,0.79101711320000001,0.78357622130000004]
[null,null,null,null,null,null,null,null,null,null,"T93_1|DK","T93_1","DK","waver",null,null,null,null,null,null,null,null,null,null,null,null,null,null,null,null,null,null,null,null,null,null,0.82235911120000005,0.83687432539999995,0.82707122990000004]
[null,null,null,null,null,null,null,null,null,null,"T93_1|EE","T93_1","EE","waver",null,null,null,null,null,null,null,null,null,null,null,null,null,null,null,null,null,null,null,null,null,null,0.918528436,0.85538701019999996,0.78647976630000005]
[null,null,null,null,null,null,null,null,null,null,"T93_1|ES","T93_1","ES","waver",null,null,null,null,null,null,null,null,null,null,null,null,null,null,null,null,null,null,null,null,null,null,0.78016977040000002,0.7827413111,0.78236434499999996]
[null,null,null,null,null,null,null,null,null,null,"T93_1|EU","T93_1","EU","waver",null,null,null,null,null,null,null,null,null,null,null,null,null,null,null,null,null,null,null,null,null,null,0.57854215409999998,0.68413518439999998,0.70868624160000004]
[null,null,null,null,null,null,null,null,null,null,"T93_1|FI","T93_1","FI","waver",null,null,null,null,null,null,null,null,null,null,null,null,null,null,null,null,null,null,null,null,null,null,0.74052416720000003,0.74920577899999996,0.75771334759999998]
[null,null,null,null,null,null,null,null,null,null,"T93_1|FR","T93_1","FR","waver",null,null,null,null,null,null,null,null,null,null,null,null,null,null,null,null,null,null,null,null,null,null,0.29862018810000002,0.53101387320000004,0.55028771170000002]
[null,null,null,null,null,null,null,null,null,null,"T93_1|GR","T93_1","GR","waver",null,null,null,null,null,null,null,null,null,null,null,null,null,null,null,null,null,null,null,null,null,null,0.80245286520000003,0.64859101129999996,0.63955706599999995]
[null,null,null,null,null,null,null,null,null,null,"T93_1|HR","T93_1","HR","waver",null,null,null,null,null,null,null,null,null,null,null,null,null,null,null,null,null,null,null,null,null,null,0.89067645699999998,0.7095221666,0.49833327080000001]
[null,null,null,null,null,null,null,null,null,null,"T93_1|HU","T93_1","HU","waver",null,null,null,null,null,null,null,null,null,null,null,null,null,null,null,null,null,null,null,null,null,null,0.9,0.70665896549999996,0.38498960199999999]
[null,null,null,null,null,null,null,null,null,null,"T93_1|IE","T93_1","IE","waver",null,null,null,null,null,null,null,null,null,null,null,null,null,null,null,null,null,null,null,null,null,null,0.9388743785,0.76200123829999999,0.86670989850000002]
[null,null,null,null,null,null,null,null,null,null,"T93_1|IS","T93_1","IS","waver",null,null,null,null,null,null,null,null,null,null,null,null,null,null,null,null,null,null,null,null,null,null,null,0.93305614299999995,0.89698239489999998]
[null,null,null,null,null,null,null,null,null,null,"T93_1|IT","T93_1","IT","waver",null,null,null,null,null,null,null,null,null,null,null,null,null,null,null,null,null,null,null,null,null,null,0.82830643010000005,0.8158592066,0.86633479729999996]
[null,null,null,null,null,null,null,null,null,null,"T93_1|LT","T93_1","LT","waver",null,null,null,null,null,null,null,null,null,null,null,null,null,null,null,null,null,null,null,null,null,null,0.15999970099999999,0.1752441773,0.29801650860000001]
[null,null,null,null,null,null,null,null,null,null,"T93_1|LU","T93_1","LU","waver",null,null,null,null,null,null,null,null,null,null,null,null,null,null,null,null,null,null,null,null,null,null,0.49380543259999998,0.83034285090000004,0.85445208230000003]
[null,null,null,null,null,null,null,null,null,null,"T93_1|LV","T93_1","LV","waver",null,null,null,null,null,null,null,null,null,null,null,null,null,null,null,null,null,null,null,null,null,null,0.79999972689999999,0.8000004288,0.75654385950000003]
[null,null,null,null,null,null,null,null,null,null,"T93_1|MT","T93_1","MT","waver",null,null,null,null,null,null,null,null,null,null,null,null,null,null,null,null,null,null,null,null,null,null,0.45,0.46273220700000001,0.48217831719999998]
[null,null,null,null,null,null,null,null,null,null,"T93_1|NL","T93_1","NL","waver",null,null,null,null,null,null,null,null,null,null,null,null,null,null,null,null,null,null,null,null,null,null,0.73481541159999997,0.84816977049999998,0.83185822239999996]
[null,null,null,null,null,null,null,null,null,null,"T93_1|PL","T93_1","PL","waver",null,null,null,null,null,null,null,null,null,null,null,null,null,null,null,null,null,null,null,null,null,null,0.77993040319999996,0.67060092039999997,0.35370578699999999]
[null,null,null,null,null,null,null,null,null,null,"T93_1|PT","T93_1","PT","waver",null,null,null,null,null,null,null,null,null,null,null,null,null,null,null,null,null,null,null,null,null,null,0.39389957660000002,0.78726666270000001,0.78806013689999999]
[null,null,null,null,null,null,null,null,null,null,"T93_1|RO","T93_1","RO","waver",null,null,null,null,null,null,null,null,null,null,null,null,null,null,null,null,null,null,null,null,null,null,0.15020994779999999,0.28122450100000002,0.28564281870000002]
[null,null,null,null,null,null,null,null,null,null,"T93_1|SE","T93_1","SE","waver",null,null,null,null,null,null,null,null,null,null,null,null,null,null,null,null,null,null,null,null,null,null,0.74637741079999997,0.72903651729999996,0.72365465360000003]
[null,null,null,null,null,null,null,null,null,null,"T93_1|SI","T93_1","SI","waver",null,null,null,null,null,null,null,null,null,null,null,null,null,null,null,null,null,null,null,null,null,null,0.3953778651,0.39503790719999998,0.34602211529999999]
[null,null,null,null,null,null,null,null,null,null,"T93_1|SK","T93_1","SK","waver",null,null,null,null,null,null,null,null,null,null,null,null,null,null,null,null,null,null,null,null,null,null,0.78202552510000001,0.31373598139999997,0.38986559879999999]
[null,null,null,null,null,null,null,null,null,null,"T93_2|AT","T93_2","AT","waver",null,null,null,null,null,null,null,null,null,null,null,null,null,null,null,null,null,null,null,null,null,null,0.29960133979999998,0.31265493500000002,0.47819945460000002]
[null,null,null,null,null,null,null,null,null,null,"T93_2|BE","T93_2","BE","waver",null,null,null,null,null,null,null,null,null,null,null,null,null,null,null,null,null,null,null,null,null,null,6.9317123000000001E-3,5.1077763599999999E-2,6.4387608599999993E-2]
[null,null,null,null,null,null,null,null,null,null,"T93_2|BG","T93_2","BG","waver",null,null,null,null,null,null,null,null,null,null,null,null,null,null,null,null,null,null,null,null,null,null,2.1058846700000002E-2,5.8930123799999998E-2,8.2094444099999997E-2]
[null,null,null,null,null,null,null,null,null,null,"T93_2|CY","T93_2","CY","waver"]
[null,null,null,null,null,null,null,null,null,null,"T93_2|DE","T93_2","DE","waver",null,null,null,null,null,null,null,null,null,null,null,null,null,null,null,null,null,null,null,null,null,null,3.3523404100000001E-2,7.5369963299999995E-2,0.13823319019999999]
[null,null,null,null,null,null,null,null,null,null,"T93_2|DK","T93_2","DK","waver",null,null,null,null,null,null,null,null,null,null,null,null,null,null,null,null,null,null,null,null,null,null,0.3673380926,0.2591516894,0.14176405789999999]
[null,null,null,null,null,null,null,null,null,null,"T93_2|EE","T93_2","EE","waver",null,null,null,null,null,null,null,null,null,null,null,null,null,null,null,null,null,null,null,null,null,null,0.4593043691,0.13336522219999999,0.2424362417]
[null,null,null,null,null,null,null,null,null,null,"T93_2|ES","T93_2","ES","waver",null,null,null,null,null,null,null,null,null,null,null,null,null,null,null,null,null,null,null,null,null,null,1.5234463199999999E-2,2.3147882599999999E-2,9.2017850700000001E-2]
[null,null,null,null,null,null,null,null,null,null,"T93_2|EU","T93_2","EU","waver",null,null,null,null,null,null,null,null,null,null,null,null,null,null,null,null,null,null,null,null,null,null,3.1212587399999998E-2,4.9442650900000003E-2,0.11669982080000001]
[null,null,null,null,null,null,null,null,null,null,"T93_2|FI","T93_2","FI","waver",null,null,null,null,null,null,null,null,null,null,null,null,null,null,null,null,null,null,null,null,null,null,2.4212564999999998E-3,5.2046866499999997E-2,0.1140574152]
[null,null,null,null,null,null,null,null,null,null,"T93_2|FR","T93_2","FR","waver",null,null,null,null,null,null,null,null,null,null,null,null,null,null,null,null,null,null,null,null,null,null,3.3330475399999997E-2,5.6331456199999998E-2,0.12798738370000001]
[null,null,null,null,null,null,null,null,null,null,"T93_2|GR","T93_2","GR","waver",null,null,null,null,null,null,null,null,null,null,null,null,null,null,null,null,null,null,null,null,null,null,4.4500860400000002E-2,9.6711127999999993E-3,3.7627215399999997E-2]
[null,null,null,null,null,null,null,null,null,null,"T93_2|HR","T93_2","HR","waver",null,null,null,null,null,null,null,null,null,null,null,null,null,null,null,null,null,null,null,null,null,null,0.5566442895,0.47027074250000001,0.46777959349999998]
[null,null,null,null,null,null,null,null,null,null,"T93_2|HU","T93_2","HU","waver",null,null,null,null,null,null,null,null,null,null,null,null,null,null,null,null,null,null,null,null,null,null,0.19527589519999999,0.10970465510000001,3.4750351200000001E-2]
[null,null,null,null,null,null,null,null,null,null,"T93_2|IE","T93_2","IE","waver",null,null,null,null,null,null,null,null,null,null,null,null,null,null,null,null,null,null,null,null,null,null,1.9493487E-2,3.1627848799999997E-2,0.2535673021]
[null,null,null,null,null,null,null,null,null,null,"T93_2|IS","T93_2","IS","waver",null,null,null,null,null,null,null,null,null,null,null,null,null,null,null,null,null,null,null,null,null,null,null,0.51408652070000005,0.62307796370000001]
[null,null,null,null,null,null,null,null,null,null,"T93_2|IT","T93_2","IT","waver",null,null,null,null,null,null,null,null,null,null,null,null,null,null,null,null,null,null,null,null,null,null,4.4431156600000001E-2,5.07700003E-2,0.1086783809]
[null,null,null,null,null,null,null,null,null,null,"T93_2|LT","T93_2","LT","waver",null,null,null,null,null,null,null,null,null,null,null,null,null,null,null,null,null,null,null,null,null,null,0,9.9549211100000007E-2,1.4044597799999999E-2]
[null,null,null,null,null,null,null,null,null,null,"T93_2|LU","T93_2","LU","waver",null,null,null,null,null,null,null,null,null,null,null,null,null,null,null,null,null,null,null,null,null,null,1.6520739000000001E-3,9.2736098899999994E-2,0.1669097276]
[null,null,null,null,null,null,null,null,null,null,"T93_2|LV","T93_2","LV","waver",null,null,null,null,null,null,null,null,null,null,null,null,null,null,null,null,null,null,null,null,null,null,0,0,0]
[null,null,null,null,null,null,null,null,null,null,"T93_2|MT","T93_2","MT","waver",null,null,null,null,null,null,null,null,null,null,null,null,null,null,null,null,null,null,null,null,null,null,9.7725812100000004E-2,0.12778065320000001,0.17903499]
[null,null,null,null,null,null,null,null,null,null,"T93_2|NL","T93_2","NL","waver",null,null,null,null,null,null,null,null,null,null,null,null,null,null,null,null,null,null,null,null,null,null,0.10262486129999999,0.2245081736,0.28050858270000001]
[null,null,null,null,null,null,null,null,null,null,"T93_2|PL","T93_2","PL","waver",null,null,null,null,null,null,null,null,null,null,null,null,null,null,null,null,null,null,null,null,null,null,0.1111968212,9.0696226000000005E-2,0.13411917840000001]
[null,null,null,null,null,null,null,null,null,null,"T93_2|PT","T93_2","PT","waver",null,null,null,null,null,null,null,null,null,null,null,null,null,null,null,null,null,null,null,null,null,null,4.1438524900000002E-2,7.1351846600000005E-2,0.1468120634]
[null,null,null,null,null,null,null,null,null,null,"T93_2|RO","T93_2","RO","waver",null,null,null,null,null,null,null,null,null,null,null,null,null,null,null,null,null,null,null,null,null,null,1.6449841900000001E-2,9.9225199900000005E-2,0.12597126680000001]
[null,null,null,null,null,null,null,null,null,null,"T93_2|SE","T93_2","SE","waver",null,null,null,null,null,null,null,null,null,null,null,null,null,null,null,null,null,null,null,null,null,null,0.37100378210000001,0.26177683169999999,0.2488432475]
[null,null,null,null,null,null,null,null,null,null,"T93_2|SI","T93_2","SI","waver",null,null,null,null,null,null,null,null,null,null,null,null,null,null,null,null,null,null,null,null,null,null,9.0280901100000005E-2,7.0179633E-3,8.8769459600000003E-2]
[null,null,null,null,null,null,null,null,null,null,"T93_2|SK","T93_2","SK","waver",null,null,null,null,null,null,null,null,null,null,null,null,null,null,null,null,null,null,null,null,null,null,0.1200320678,0.2038827621,0.36283042209999999]
[null,null,null,null,null,null,null,null,null,null,"T93_3|AT","T93_3","AT","waver",null,null,null,null,null,null,null,null,null,null,null,null,null,null,null,null,null,null,null,null,null,null,7.2788148E-3,7.0871627E-3,2.6793547599999998E-2]
[null,null,null,null,null,null,null,null,null,null,"T93_3|BE","T93_3","BE","waver",null,null,null,null,null,null,null,null,null,null,null,null,null,null,null,null,null,null,null,null,null,null,1.2703470000000001E-4,1.5920893E-3,1.14191854E-2]
[null,null,null,null,null,null,null,null,null,null,"T93_3|BG","T93_3","BG","waver",null,null,null,null,null,null,null,null,null,null,null,null,null,null,null,null,null,null,null,null,null,null,2.9521748E-3,2.5957171E-3,1.08184925E-2]
[null,null,null,null,null,null,null,null,null,null,"T93_3|CY","T93_3","CY","waver"]
[null,null,null,null,null,null,null,null,null,null,"T93_3|DE","T93_3","DE","waver",null,null,null,null,null,null,null,null,null,null,null,null,null,null,null,null,null,null,null,null,null,null,9.1596980000000004E-4,4.5392404999999997E-3,1.4188320000000001E-2]
[null,null,null,null,null,null,null,null,null,null,"T93_3|DK","T93_3","DK","waver",null,null,null,null,null,null,null,null,null,null,null,null,null,null,null,null,null,null,null,null,null,null,0.1815335303,0.16621429809999999,0.21161801669999999]
[null,null,null,null,null,null,null,null,null,null,"T93_3|EE","T93_3","EE","waver",null,null,null,null,null,null,null,null,null,null,null,null,null,null,null,null,null,null,null,null,null,null,0,0.22754190960000001,0.1954370654]
[null,null,null,null,null,null,null,null,null,null,"T93_3|ES","T93_3","ES","waver",null,null,null,null,null,null,null,null,null,null,null,null,null,null,null,null,null,null,null,null,null,null,1.6438161E-3,1.9029686000000001E-3,5.6249936999999998E-3]
[null,null,null,null,null,null,null,null,null,null,"T93_3|EU","T93_3","EU","waver",null,null,null,null,null,null,null,null,null,null,null,null,null,null,null,null,null,null,null,null,null,null,5.8825971999999999E-3,7.3677919000000001E-3,1.0783732399999999E-2]
[null,null,null,null,null,null,null,null,null,null,"T93_3|FI","T93_3","FI","waver",null,null,null,null,null,null,null,null,null,null,null,null,null,null,null,null,null,null,null,null,null,null,5.9289277000000003E-3,5.7102039000000004E-3,1.2029218100000001E-2]
[null,null,null,null,null,null,null,null,null,null,"T93_3|FR","T93_3","FR","waver",null,null,null,null,null,null,null,null,null,null,null,null,null,null,null,null,null,null,null,null,null,null,9.5023555999999999E-3,1.36078308E-2,1.83250298E-2]
[null,null,null,null,null,null,null,null,null,null,"T93_3|GR","T93_3","GR","waver",null,null,null,null,null,null,null,null,null,null,null,null,null,null,null,null,null,null,null,null,null,null,1.068069E-4,3.4057673999999998E-3,6.0699185000000003E-3]
[null,null,null,null,null,null,null,null,null,null,"T93_3|HR","T93_3","HR","waver",null,null,null,null,null,null,null,null,null,null,null,null,null,null,null,null,null,null,null,null,null,null,0,0,0]
[null,null,null,null,null,null,null,null,null,null,"T93_3|HU","T93_3","HU","waver",null,null,null,null,null,null,null,null,null,null,null,null,null,null,null,null,null,null,null,null,null,null,0,2.4671570000000002E-4,1.9066610099999999E-2]
[null,null,null,null,null,null,null,null,null,null,"T93_3|IE","T93_3","IE","waver",null,null,null,null,null,null,null,null,null,null,null,null,null,null,null,null,null,null,null,null,null,null,0.10058207669999999,4.5052844699999997E-2,3.4269823999999997E-2]
[null,null,null,null,null,null,null,null,null,null,"T93_3|IS","T93_3","IS","waver",null,null,null,null,null,null,null,null,null,null,null,null,null,null,null,null,null,null,null,null,null,null,null,1.7637283699999999E-2,8.1437755000000001E-2]
[null,null,null,null,null,null,null,null,null,null,"T93_3|IT","T93_3","IT","waver",null,null,null,null,null,null,null,null,null,null,null,null,null,null,null,null,null,null,null,null,null,null,1.9991800000000001E-3,1.3667136000000001E-3,1.8057947999999999E-3]
[null,null,null,null,null,null,null,null,null,null,"T93_3|LT","T93_3","LT","waver",null,null,null,null,null,null,null,null,null,null,null,null,null,null,null,null,null,null,null,null,null,null,0,0,0]
[null,null,null,null,null,null,null,null,null,null,"T93_3|LU","T93_3","LU","waver",null,null,null,null,null,null,null,null,null,null,null,null,null,null,null,null,null,null,null,null,null,null,3.0131919E-3,3.5304387299999997E-2,7.2527448999999994E-2]
[null,null,null,null,null,null,null,null,null,null,"T93_3|LV","T93_3","LV","waver",null,null,null,null,null,null,null,null,null,null,null,null,null,null,null,null,null,null,null,null,null,null,0,0,0]
[null,null,null,null,null,null,null,null,null,null,"T93_3|MT","T93_3","MT","waver",null,null,null,null,null,null,null,null,null,null,null,null,null,null,null,null,null,null,null,null,null,null,1.5019575999999999E-3,6.5297026000000003E-3,9.8464840000000008E-3]
[null,null,null,null,null,null,null,null,null,null,"T93_3|NL","T93_3","NL","waver",null,null,null,null,null,null,null,null,null,null,null,null,null,null,null,null,null,null,null,null,null,null,1.84832646E-2,2.9607339199999999E-2,4.1054780999999999E-2]
[null,null,null,null,null,null,null,null,null,null,"T93_3|PL","T93_3","PL","waver",null,null,null,null,null,null,null,null,null,null,null,null,null,null,null,null,null,null,null,null,null,null,9.3269770999999998E-3,1.787383E-4,7.4680564E-3]
[null,null,null,null,null,null,null,null,null,null,"T93_3|PT","T93_3","PT","waver",null,null,null,null,null,null,null,null,null,null,null,null,null,null,null,null,null,null,null,null,null,null,1.8007157000000001E-3,2.4232011999999999E-3,3.6027944E-3]
[null,null,null,null,null,null,null,null,null,null,"T93_3|RO","T93_3","RO","waver",null,null,null,null,null,null,null,null,null,null,null,null,null,null,null,null,null,null,null,null,null,null,0,4.7046724000000002E-3,4.2835577999999997E-3]
[null,null,null,null,null,null,null,null,null,null,"T93_3|SE","T93_3","SE","waver",null,null,null,null,null,null,null,null,null,null,null,null,null,null,null,null,null,null,null,null,null,null,2.1989918099999999E-2,1.81614004E-2,4.0614583400000001E-2]
[null,null,null,null,null,null,null,null,null,null,"T93_3|SI","T93_3","SI","waver",null,null,null,null,null,null,null,null,null,null,null,null,null,null,null,null,null,null,null,null,null,null,4.4919190000000003E-4,0,5.1041999999999997E-5]
[null,null,null,null,null,null,null,null,null,null,"T93_3|SK","T93_3","SK","waver",null,null,null,null,null,null,null,null,null,null,null,null,null,null,null,null,null,null,null,null,null,null,0,2.5470625999999999E-3,3.8082403000000002E-3]
[null,null,null,null,null,null,null,null,null,null,"T93_4|AT","T93_4","AT","waver",null,null,null,null,null,null,null,null,null,null,null,null,null,null,null,null,null,null,null,null,null,null,0.3035303607,0.2308803277,0.18495340260000001]
[null,null,null,null,null,null,null,null,null,null,"T93_4|BE","T93_4","BE","waver",null,null,null,null,null,null,null,null,null,null,null,null,null,null,null,null,null,null,null,null,null,null,0.2405704219,7.2876632699999999E-2,0.1094529091]
[null,null,null,null,null,null,null,null,null,null,"T93_4|BG","T93_4","BG","waver",null,null,null,null,null,null,null,null,null,null,null,null,null,null,null,null,null,null,null,null,null,null,0.24,0.35377358489999999,0.64292321919999995]
[null,null,null,null,null,null,null,null,null,null,"T93_4|CY","T93_4","CY","waver"]
[null,null,null,null,null,null,null,null,null,null,"T93_4|DE","T93_4","DE","waver",null,null,null,null,null,null,null,null,null,null,null,null,null,null,null,null,null,null,null,null,null,null,0.12815071850000001,8.02277718E-2,0.13428162639999999]
[null,null,null,null,null,null,null,null,null,null,"T93_4|DK","T93_4","DK","waver",null,null,null,null,null,null,null,null,null,null,null,null,null,null,null,null,null,null,null,null,null,null,2.410149E-2,7.1697097799999998E-2,6.8654956500000003E-2]
[null,null,null,null,null,null,null,null,null,null,"T93_4|EE","T93_4","EE","waver",null,null,null,null,null,null,null,null,null,null,null,null,null,null,null,null,null,null,null,null,null,null,null,0.66961628569999998,0.46744210139999998]
[null,null,null,null,null,null,null,null,null,null,"T93_4|ES","T93_4","ES","waver",null,null,null,null,null,null,null,null,null,null,null,null,null,null,null,null,null,null,null,null,null,null,0.22225331070000001,0.18213791160000001,0.13244788730000001]
[null,null,null,null,null,null,null,null,null,null,"T93_4|EU","T93_4","EU","waver",null,null,null,null,null,null,null,null,null,null,null,null,null,null,null,null,null,null,null,null,null,null,0.1092517242,0.1040133511,0.1044450936]
[null,null,null,null,null,null,null,null,null,null,"T93_4|FI","T93_4","FI","waver",null,null,null,null,null,null,null,null,null,null,null,null,null,null,null,null,null,null,null,null,null,null,0.1168962251,0.1522090039,0.15403091529999999]
[null,null,null,null,null,null,null,null,null,null,"T93_4|FR","T93_4","FR","waver",null,null,null,null,null,null,null,null,null,null,null,null,null,null,null,null,null,null,null,null,null,null,0.1018176983,8.9788750299999998E-2,8.6002726400000007E-2]
[null,null,null,null,null,null,null,null,null,null,"T93_4|GR","T93_4","GR","waver",null,null,null,null,null,null,null,null,null,null,null,null,null,null,null,null,null,null,null,null,null,null,0.92910602909999995,1.43690564E-2,5.3426216999999998E-2]
[null,null,null,null,null,null,null,null,null,null,"T93_4|HR","T93_4","HR","waver"]
[null,null,null,null,null,null,null,null,null,null,"T93_4|HU","T93_4","HU","waver",null,null,null,null,null,null,null,null,null,null,null,null,null,null,null,null,null,null,null,null,null,null,null,0.3532575241,0.22650629459999999]
[null,null,null,null,null,null,null,null,null,null,"T93_4|IE","T93_4","IE","waver",null,null,null,null,null,null,null,null,null,null,null,null,null,null,null,null,null,null,null,null,null,null,-3.7984405999999998E-2,0.1108413478,2.6308791299999999E-2]
[null,null,null,null,null,null,null,null,null,null,"T93_4|IS","T93_4","IS","waver",null,null,null,null,null,null,null,null,null,null,null,null,null,null,null,null,null,null,null,null,null,null,null,6.3310879700000003E-2,0.32803675189999998]
[null,null,null,null,null,null,null,null,null,null,"T93_4|IT","T93_4","IT","waver",null,null,null,null,null,null,null,null,null,null,null,null,null,null,null,null,null,null,null,null,null,null,0.1775710788,0.18156208700000001,0.22182248660000001]
[null,null,null,null,null,null,null,null,null,null,"T93_4|LT","T93_4","LT","waver"]
[null,null,null,null,null,null,null,null,null,null,"T93_4|LU","T93_4","LU","waver",null,null,null,null,null,null,null,null,null,null,null,null,null,null,null,null,null,null,null,null,null,null,2.4333981000000001E-2,3.4649263100000001E-2,7.6374425699999998E-2]
[null,null,null,null,null,null,null,null,null,null,"T93_4|LV","T93_4","LV","waver"]
[null,null,null,null,null,null,null,null,null,null,"T93_4|MT","T93_4","MT","waver",null,null,null,null,null,null,null,null,null,null,null,null,null,null,null,null,null,null,null,null,null,null,0.62670681070000001,9.2599010400000001E-2,3.1959869799999999E-2]
[null,null,null,null,null,null,null,null,null,null,"T93_4|NL","T93_4","NL","waver",null,null,null,null,null,null,null,null,null,null,null,null,null,null,null,null,null,null,null,null,null,null,4.33872155E-2,0.1362361738,0.12967559079999999]
[null,null,null,null,null,null,null,null,null,null,"T93_4|PL","T93_4","PL","waver",null,null,null,null,null,null,null,null,null,null,null,null,null,null,null,null,null,null,null,null,null,null,0.3865540308,0.31321204619999998,0.1730921601]
[null,null,null,null,null,null,null,null,null,null,"T93_4|PT","T93_4","PT","waver",null,null,null,null,null,null,null,null,null,null,null,null,null,null,null,null,null,null,null,null,null,null,0.1333839748,0.20120002179999999,0.25692095190000003]
[null,null,null,null,null,null,null,null,null,null,"T93_4|RO","T93_4","RO","waver",null,null,null,null,null,null,null,null,null,null,null,null,null,null,null,null,null,null,null,null,null,null,null,9.1389575900000006E-2,8.1648076799999997E-2]
[null,null,null,null,null,null,null,null,null,null,"T93_4|SE","T93_4","SE","waver",null,null,null,null,null,null,null,null,null,null,null,null,null,null,null,null,null,null,null,null,null,null,0.27620590169999998,0.29798765490000001,0.1862754116]
[null,null,null,null,null,null,null,null,null,null,"T93_4|SI","T93_4","SI","waver",null,null,null,null,null,null,null,null,null,null,null,null,null,null,null,null,null,null,null,null,null,null,0.71967996460000005,null,0]
[null,null,null,null,null,null,null,null,null,null,"T93_4|SK","T93_4","SK","waver",null,null,null,null,null,null,null,null,null,null,null,null,null,null,null,null,null,null,null,null,null,null,null,0.39713699870000002,0.55051151180000002]

{"sheet":"Mapping","index":21,"n_rows":158,"n_cols":3,"rows_kept":158,"cut":false,"hidden":false,"merged":[[0,0,0,2]]}
["This table maps the codes in column L of sheet \"Data Annex\" with the items of each Statistical Annex table."]
["Label","Sheet","Statistical Annex Item"]
["T01_1","Assets","Asset composition - Cash balances"]
["T01_2","Assets","Asset composition - Equity instruments"]
["T01_3","Assets","Asset composition - Debt securities"]
["T01_4","Assets","Asset composition - Loans and advances"]
["T01_5","Assets","Asset composition - Derivatives"]
["T01_6","Assets","Asset composition - Other Assets"]
["T02_1","Assets","Total Assets"]
["T02_2","Assets","Total Financial Assets"]
["T03_1","Assets","Financial Assets - Share of financial assets valued at (amortised) cost"]
["T03_2","Assets","Financial Assets - Share of financial assets at fair value through OCI"]
["T03_3","Assets","Financial Assets - Share of financial assets at fair value through profit&loss"]
["T04_3","Liabilities","Liabilities composition - Debt securities issued"]
["T04_4","Liabilities","Liabilities composition - Deposits from credit institutions"]
["T04_6","Liabilities","Liabilities composition - Customer deposits from HHs"]
["T04_7","Liabilities","Liabilities composition - Customer deposits from NFCs"]
["T04_8","Liabilities","Liabilities composition - Other deposits"]
["T05_1","Liabilities","Total liabilities"]
["T04_2","Liabilities","Share of secured funding"]
["T05_2","Liabilities","Contingent liabilities - loan commitments volume"]
["T05_3","Liabilities","Contingent liabilities - Share of loan commitments to HHs"]
["T05_4","Liabilities","Contingent liabilities - Share of loan commitments to NFCs"]
["T20_1","Loans Composition","Loans and advances (1)"]
["T20_2","Loans Composition","Loans and advances at amortised cost - HHs"]
["T20_3","Loans Composition","Loans and advances at amortised cost - HHs, of which mortgages"]
["T20_4","Loans Composition","Loans and advances at amortised cost - NFCs"]
["T20_5","Loans Composition","Loans and advances at amortised cost - NFCs, of which SMEs"]
["T20_6","Loans Composition","Loans and advances at amortised cost - NFCs, of which CRE"]
["T21_1","Loans Composition","Non-performing loans and advances"]
["T21_2","Loans Composition","Non-performing loans and advances at amortised cost - HHs"]
["T21_3","Loans Composition","Non-performing loans and advances at amortised cost - HHs, of which mortgages"]
["T21_4","Loans Composition","Non-performing loans and advances at amortised cost - NFCs"]
["T21_5","Loans Composition","Non-performing loans and advances at amortised cost - NFCs, of which SMEs"]
["T21_6","Loans Composition","Non-performing loans and advances at amortised cost - NFCs, of which CRE"]
["T22_1","Loans NPL and coverage ratio","Loans and advances: NPL ratio"]
["T22_2","Loans NPL and coverage ratio","Loans and advances at amortised cost: NPL ratio - HHs"]
["T22_3","Loans NPL and coverage ratio","Loans and advances at amortised cost: NPL ratio - HHs, of which mortgages"]
["T22_4","Loans NPL and coverage ratio","Loans and advances at amortised cost: NPL ratio - NFCs"]
["T22_5","Loans NPL and coverage ratio","Loans and advances at amortised cost: NPL ratio - NFCs, of which SMEs"]
["T22_6","Loans NPL and coverage ratio","Loans and advances at amortised cost: NPL ratio - NFCs, of which CRE"]
["T23_1","Loans NPL and coverage ratio","Non-performing loans and advances: coverage ratio"]
["T23_2","Loans NPL and coverage ratio","Non-performing loans and advances at amortised cost: coverage ratio - HHs"]
["T23_3","Loans NPL and coverage ratio","Non-performing loans and advances at amortised cost: coverage ratio - HHs, of which mortgages"]
["T23_4","Loans NPL and coverage ratio","Non-performing loans and advances at amortised cost: coverage ratio - NFCs"]
["T23_5","Loans NPL and coverage ratio","Non-performing loans and advances at amortised cost: coverage ratio - NFCs, of which SMEs"]
["T23_6","Loans NPL and coverage ratio","Non-performing loans and advances at amortised cost: coverage ratio - NFCs, of which CRE"]
["T24_1","NACE composition","Distribution of NFC loans and advances by NACE code (other than trading exposures) - A Agriculture, forestry and fishing"]
["T24_2","NACE composition","Distribution of NFC loans and advances by NACE code (other than trading exposures) - B Mining and quarrying"]
["T24_3","NACE composition","Distribution of NFC loans and advances by NACE code (other than trading exposures) - C Manufacturing"]
["T24_4","NACE composition","Distribution of NFC loans and advances by NACE code (other than trading exposures) - D Electricity, gas, steam and air conditioning supply"]
["T24_5","NACE composition","Distribution of NFC loans and advances by NACE code (other than trading exposures) - E Water supply"]
["T24_6","NACE composition","Distribution of NFC loans and advances by NACE code (other than trading exposures) - F Construction"]
["T24_7","NACE composition","Distribution of NFC loans and advances by NACE code (other than trading exposures) - G Wholesale and retail trade"]
["T24_8","NACE composition","Distribution of NFC loans and advances by NACE code (other than trading exposures) - H Transport and storage"]
["T24_9","NACE composition","Distribution of NFC loans and advances by NACE code (other than trading exposures) - I Accommodation and food service activities"]
["T2410","NACE composition","Distribution of NFC loans and advances by NACE code (other than trading exposures) - J Information and communication"]
["T25_1","NACE composition","Distribution of NFC loans and advances by NACE code (other than trading exposures) - K Financial and insurance activities"]
["T25_2","NACE composition","Distribution of NFC loans and advances by NACE code (other than trading exposures) - L Real estate activities"]
["T25_3","NACE composition","Distribution of NFC loans and advances by NACE code (other than trading exposures) - M Professional, scientific and technical activities"]
["T25_4","NACE composition","Distribution of NFC loans and advances by NACE code (other than trading exposures) - N Administrative and support service activities"]
["T25_5","NACE composition","Distribution of NFC loans and advances by NACE code (other than trading exposures) - O Public administration and defence, compulsory social security"]
["T25_6","NACE composition","Distribution of NFC loans and advances by NACE code (other than trading exposures) - P Education"]
["T25_7","NACE composition","Distribution of NFC loans and advances by NACE code (other than trading exposures) - Q Human health services and social work activities"]
["T25_8","NACE composition","Distribution of NFC loans and advances by NACE code (other than trading exposures) - R Arts, entertainment and recreation"]
["T25_9","NACE composition","Distribution of NFC loans and advances by NACE code (other than trading exposures) - S Other services"]
["T26_1","NPL ratio by NACE","NPL ratios of NFC loans and advances by NACE code (other than trading exposures) - A Agriculture, forestry and fishing"]
["T26_2","NPL ratio by NACE","NPL ratios of NFC loans and advances by NACE code (other than trading exposures) - B Mining and quarrying"]
["T26_3","NPL ratio by NACE","NPL ratios of NFC loans and advances by NACE code (other than trading exposures) - C Manufacturing"]
["T26_4","NPL ratio by NACE","NPL ratios of NFC loans and advances by NACE code (other than trading exposures) - D Electricity, gas, steam and air conditioning supply"]
["T26_5","NPL ratio by NACE","NPL ratios of NFC loans and advances by NACE code (other than trading exposures) - E Water supply"]
["T26_6","NPL ratio by NACE","NPL ratios of NFC loans and advances by NACE code (other than trading exposures) - F Construction"]
["T26_7","NPL ratio by NACE","NPL ratios of NFC loans and advances by NACE code (other than trading exposures) - G Wholesale and retail trade"]
["T26_8","NPL ratio by NACE","NPL ratios of NFC loans and advances by NACE code (other than trading exposures) - H Transport and storage"]
["T26_9","NPL ratio by NACE","NPL ratios of NFC loans and advances by NACE code (other than trading exposures) - I Accommodation and food service activities"]
["T2610","NPL ratio by NACE","NPL ratios of NFC loans and advances by NACE code (other than trading exposures) - J Information and communication"]
["T27_1","NPL ratio by NACE","NPL ratios of NFC loans and advances by NACE code (other than trading exposures) - K Financial and insurance activities"]
["T27_2","NPL ratio by NACE","NPL ratios of NFC loans and advances by NACE code (other than trading exposures) - L Real estate activities"]
["T27_3","NPL ratio by NACE","NPL ratios of NFC loans and advances by NACE code (other than trading exposures) - M Professional, scientific and technical activities"]
["T27_4","NPL ratio by NACE","NPL ratios of NFC loans and advances by NACE code (other than trading exposures) - N Administrative and support service activities"]
["T27_5","NPL ratio by NACE","NPL ratios of NFC loans and advances by NACE code (other than trading exposures) - O Public administration and defence, compulsory social security"]
["T27_6","NPL ratio by NACE","NPL ratios of NFC loans and advances by NACE code (other than trading exposures) - P Education"]
["T27_7","NPL ratio by NACE","NPL ratios of NFC loans and advances by NACE code (other than trading exposures) - Q Human health services and social work activities"]
["T27_8","NPL ratio by NACE","NPL ratios of NFC loans and advances by NACE code (other than trading exposures) - R Arts, entertainment and recreation"]
["T27_9","NPL ratio by NACE","NPL ratios of NFC loans and advances by NACE code (other than trading exposures) - S Other services"]
["T30_1","Own funds and RWA","Composition of own funds (Tier 1 capital) - Own funds (Tier 1 capital) volume"]
["T30_2","Own funds and RWA","Composition of own funds (Tier 1 capital) - Capital instruments eligible as CET1 Capital"]
["T30_3","Own funds and RWA","Composition of own funds (Tier 1 capital) - Retained earnings"]
["T30_4","Own funds and RWA","Composition of own funds (Tier 1 capital) - Accumulated other comprehensive income"]
["T30_6","Own funds and RWA","Composition of own funds (Tier 1 capital) - Additional Tier 1 capital"]
["T31_1","Own funds and RWA","RWA composition - RWA volume"]
["T07_1","Own funds and RWA","RWA composition - Credit risk capital requirements"]
["T07_2","Own funds and RWA","RWA composition - Securitisation capital requirements"]
["T07_3","Own funds and RWA","RWA composition - Market risk capital requirements"]
["T07_4","Own funds and RWA","RWA composition - Operational risk capital requirements"]
["T28_1","Profitability","Components of RoE: RoE\n(Return on Equity)"]
["T28_2","Profitability","Components of RoE: Net interest income / equity"]
["T28_3","Profitability","Components of RoE: Net fee & commission income / equity"]
["T28_4","Profitability","Components of RoE: Net trading income (incl. FV result) / equity"]
["T28_5","Profitability","Components of RoE: Other operating income / equity"]
["T29_1","Profitability","Components of RoE: Staff expenses / equity"]
["T29_2","Profitability","Components of RoE: Other admin. (incl. depreciation) expenses / equity"]
["T29_3","Profitability","Components of RoE: Provisions / equity"]
["T29_4","Profitability","Components of RoE: Impairments (credit risk losses) / equity"]
["T29_5","Profitability","Components of RoE: Other (incl. tax) / equity"]
["T13_1","IFRS9","Loans and advances at amortised cost - Stage 1"]
["T13_2","IFRS9","Loans and advances at amortised cost - Stage 2"]
["T13_3","IFRS9","Loans and advances at amortised cost - Stage 3"]
["T13_4","IFRS9","Loans and advances at amortised cost - Coverage ratio of stage 1 loans and advances"]
["T13_5","IFRS9","Loans and advances at amortised cost - Coverage ratio of stage 2 loans and advances"]
["T13_6","IFRS9","Loans and advances at amortised cost - Coverage ratio of stage 3 loans and advances"]
["T14_0","IFRS9","Total fair valued financial assets"]
["T14_1","IFRS9","Level 1 financial assets"]
["T14_2","IFRS9","Level 2 financial assets"]
["T14_3","IFRS9","Level 3 financial assets"]
["T15_1","Sovereigns","Sovereign exposure - Total gross carrying amount"]
["T15_2","Sovereigns","Sovereign exposure - Total gross carrying amount, of which: to home country"]
["T15_3","Sovereigns","Sovereign exposure - Total gross carrying amount, of which: to other EU/EEA countries"]
["T15_4","Sovereigns","Sovereign exposure - Total carrying amount (net of short positions)"]
["T15_5","Sovereigns","Sovereign exposure - Total carrying amount (net of short positions), of which: Financial assets held for trading"]
["T15_6","Sovereigns","Sovereign exposure - Total carrying amount (net of short positions), of which: Fair value through P&L"]
["T15_7","Sovereigns","Sovereign exposure - Total carrying amount (net of short positions), of which: Fair value through OCI"]
["T15_8","Sovereigns","Sovereign exposure - Total carrying amount (net of short positions), of which: Amortised cost"]
["T15_9","Sovereigns","Sovereign exposure - Total carrying amount (net of short positions), of which: Other financial assets"]
["T16_1","Sovereigns","Sovereign exposure - Total gross carrying amount by maturity: 0 - 3M"]
["T16_2","Sovereigns","Sovereign exposure - Total gross carrying amount by maturity: 3M - 1Y"]
["T16_3","Sovereigns","Sovereign exposure - Total gross carrying amount by maturity: 1Y - 5Y"]
["T16_4","Sovereigns","Sovereign exposure - Total gross carrying amount by maturity: 5Y - 10Y"]
["T16_5","Sovereigns","Sovereign exposure - Total gross carrying amount by maturity: 10Y - more"]
["T90_1","Moratoria","Loans and advances with non-expired EBA-compliant moratoria - Total"]
["T90_2","Moratoria","Loans and advances with non-expired EBA-compliant moratoria - of which households"]
["T90_3","Moratoria","Loans and advances with non-expired EBA-compliant moratoria - of which NFCs"]
["T90_4","Moratoria","Loans and advances with non-expired EBA-compliant moratoria - Stage 2"]
["T90_5","Moratoria","Loans and advances with non-expired EBA-compliant moratoria - Non performing"]
["T90_6","Moratoria","Loans and advances with non-expired EBA-compliant moratoria - Coverage of NPLs"]
["T91_1","Moratoria","Loans and advances with expired EBA-compliant moratoria - Total"]
["T91_2","Moratoria","Loans and advances with expired EBA-compliant moratoria - of which households"]
["T91_3","Moratoria","Loans and advances with expired EBA-compliant moratoria - of which NFCs"]
["T91_4","Moratoria","Loans and advances with expired EBA-compliant moratoria - Stage 2"]
["T91_5","Moratoria","Loans and advances with expired EBA-compliant moratoria - Non performing"]
["T91_6","Moratoria","Loans and advances with expired EBA-compliant moratoria - Coverage of NPLs"]
["T92_1","Public guarantee schemes","Newly originated loans subject to PGS"]
["T92_2","Public guarantee schemes","Newly originated loans subject to PGS, of which: Residual maturity <= 6 months"]
["T92_3","Public guarantee schemes","Newly originated loans subject to PGS, of which: Residual maturity > 6 months <= 12 months"]
["T92_4","Public guarantee schemes","Newly originated loans subject to PGS, of which: Residual maturity > 1 year <= 2 years"]
["T92_5","Public guarantee schemes","Newly originated loans subject to PGS, of which: Residual maturity > 2 years <= 5 years"]
["T93_1","Public guarantee schemes","Public guarantee received"]
["T93_2","Public guarantee schemes","Loans subject to PGS classified as stage 2"]
["T93_3","Public guarantee schemes","Non-performing loans subject to PGS"]
["T93_4","Public guarantee schemes","Coverage of non-performing loans subject to PGS"]
["RE_T11_1","RE and Construction Exposures","Total exposures to Real Estate activities (NACE L) - Gross carrying amount"]
["RE_T11_2","RE and Construction Exposures","Total exposures to Real Estate activities (NACE L) - As % of Total of exposures to Non-financial corporations"]
["RE_T11_3","RE and Construction Exposures","Non-performing exposures to Real Estate activities (NACE L) - Gross carrying amount"]
["RE_T11_4","RE and Construction Exposures","Non-performing exposures to Real Estate activities (NACE L) - NPL ratio"]
["RE_T12_1","RE and Construction Exposures","Total exposures to Real Estate activities (NACE F) - Gross carrying amount"]
["RE_T12_2","RE and Construction Exposures","Total exposures to Real Estate activities (NACE F) - As % of Total of exposures to Non-financial corporations"]
["RE_T12_3","RE and Construction Exposures","Non-performing exposures to Real Estate activities (NACE F) - Gross carrying amount"]
["RE_T12_4","RE and Construction Exposures","Non-performing exposures to Real Estate activities (NACE F) - NPL ratio"]

{"sheet":"Reference Dates","index":22,"n_rows":8,"n_cols":5,"rows_kept":8,"cut":false,"hidden":true,"merged":[[0,2,0,3],[2,4,7,4]]}
["Insert your data's reference date in cell B1, in the format dd/mm/yyyy:","2020-12-31"]
[]
["Sheet","Cell","Content","Notes","Do not edit these cells"]
["Start","G3",{"$f":"\"Q\"&ROUNDUP(MONTH($B$1)/3,0)&YEAR(B1)&\" Data\"","v":"Q42020 Data"},"Relevant reference date"]
["Tables","A2",{"$f":"YEAR($B$1)&IF(MONTH($B$1)<10,\"0\"&MONTH($B$1),MONTH($B$1))","v":"202012"},"Relevant reference date"]
["Charts","AL24",{"$f":"$B$1","v":"2020-12-31"},"Relevant reference date"]
["Charts","AM25",{"$f":"EOMONTH(EOMONTH(C6,-33),-1)+1","v":"2018-03-01"},"12 quarters before (f.e. if reference date is 31/12/2019, this will be 31/03/2019)"]
["Time series","A2",{"$f":"YEAR($B$1)&IF(MONTH($B$1)<10,\"0\"&MONTH($B$1),MONTH($B$1))","v":"202012"},"Relevant reference date"]

{"sheet":"List","index":23,"n_rows":23,"n_cols":13,"rows_kept":23,"cut":false,"hidden":true,"merged":[]}
[1,2,3,4,5,6,7,8,9,10,11,12,13]
["Nr",null,null,"Kri Code","KRI name","RI_by_Type","Final version","Dashboard name","Numerator","Denominator","Annualisation_Num","Annualisation_Den","Family"]
[1,1,1,1,"Tier 1 capital ratio","SVC_1","YES","Tier 1 capital ratio","Tier 1 capital","Total risk exposure amount",0,0,"Solvency"]
[2,2,1,2,"Total capital ratio","SVC_2","YES","Total capital ratio","Total capital","Total risk exposure amount",0,0,"Solvency"]
[3,3,1,3,"Tier 1 Ratio excluding hybrid instruments","SVC_3","YES","CET1 ratio","CET1 capital","Total risk exposure amount",0,0,"Solvency"]
[4,4,1,208,"CET 1 ratio (fully phased-in definition)","SVC_29","YES","CET1 ratio (fully loaded)","CET1 capital (fully loaded)","Total risk exposure amount (fully loaded)",null,null,"Solvency"]
[5,5,1,195,"Leverage ratio (transitional definition of Tier 1)","SVC_13","YES","Leverage Ratio","Tier 1 capital - transitional definition ","Total Leverage Ratio exposure - using a transitional definition of Tier 1 capital ",0,0,"Solvency"]
[6,6,1,194,"Leverage ratio (fully phased-in definition of Tier 1)","SVC_12","YES","Leverage ratio (fully phased-in definition of Tier 1)","Tier 1 capital - fully phased-in definition","Total Leverage Ratio exposure - using a fully phased-in definition of Tier 1 capital ",0,0,"Solvency"]
[7,7,1,93,"Share of non-performing loans and advances.(NPL ratio)","AQT_3.2","YES","Ratio of non-performing loans and advances (NPL ratio)","Non-performing loans","Total loans",null,null,"Credit Risk and Asset Quality"]
[8,8,1,235,"Coverage ratio of non-performing loans and advances","AQT_41.2","YES","Coverage ratio of non-performing loans and advances","Specific allowances for loans","Non-performing loans",null,null,"Credit Risk and Asset Quality"]
[9,9,1,239,"Forbearance ratio - Loans and advances (gross amount) (FBL)","AQT_42.2","YES","Forbearance ratio for loans and advances","Forborne loans","Total loans",null,null,"Credit Risk and Asset Quality"]
[10,10,1,92,"Non-performing debt instruments (loans and advances & debt securities) other than held for trading to total gross debt instruments (NPE rati","AQT_3.1","yes","Ratio of non-performing exposures (NPE ratio)","Non-performing debt instruments","Total debt instruments",null,null,"Credit Risk and Asset Quality"]
[11,11,1,22,"Return on equity","PFT_21","YES","Return on equity","Profit or loss for the year","Total equity",0,0,"Profitability"]
[12,12,1,25,"Return on assets","PFT_24","YES","Return on assets","Profit or loss for the year","Total assets",0,0,"Profitability"]
[13,13,1,24,"Cost-income ratio","PFT_23","YES","Cost to income ratio","Costs","Total net operating income",null,null,"Profitability"]
[14,14,1,26,"Net interest income to total net operating income","PFT_25","YES","Net interest income to total net operating income","Net interest income","Total net operating income",0,0,"Profitability"]
[15,15,1,27,"Net fee and commission income to total net operating income","PFT_26","YES","Net fee and commission income to total net operating income","Net fee and commission income","Total net operating income",0,0,"Profitability"]
[16,16,1,30,"Net gains on financial assets and liabilities held for trading to total net operating income","PFT_29","YES","Net trading income to total net operating income","Net trading income","Total net operating income",0,0,"Profitability"]
[17,17,1,237,"Net interest margin","PFT_41","YES","Net interest margin","Net interest income","Interest earning assets",0,null,"Profitability"]
[18,18,1,392,"Cost of risk","PFT_43","YES","Cost of Risk","Changes in allowances for credit losses","Total gross loans and advances subject to impairment",0,0,"Profitability"]
[19,19,1,87,"Loans and advances-to-deposits ratio for households and non-financial corporations","FND_32","YES","Loan-to-deposit ratio for households and non-financial corporations","Loans to NFCs and households","Deposits to NFCs and households",null,null,"Funding and Liquidity"]
[20,20,1,88,"Asset encumbrance ratio","FND_33","YES","Asset encumbrance ratio","Encumbered assets and collateral","Total assets and collateral",null,null,"Funding and Liquidity"]
[21,21,1,391,"Liquidity coverage ratio","LIQ_17","YES","Liquidity coverage ratio (%)","Liquidity Buffer ","Net Liquidity Outflow",0,0,"Funding and Liquidity"]